{"text_format":"1","workbook":"xlsx","n_sheets":24,"sheets":["Welcome","Notes","Index","Pivot % growth","Pivot_T","Service delivery impact","Performance impact","Pivot Infra impact","Pivot Personnel impact","Pivot HRBP","Data","Programme Assessment Matrix","Component Assessment Matrix","Summary","SRT1","SRT2","SRT3","SRT4","Other reallocations","Targeted savings","Metadata","Sheet1","HRBP_Data","Tables"],"not_rendered":{"charts":20,"images":9,"macros":1,"external_links":2,"defined_names":164,"comments":1,"pivot_tables":7},"unopened":[],"bounds":{"document_bytes":16777216,"sheet_cells":100000,"rows_first":2000,"rows_last":500,"rows_between":2000,"halvings":0,"cell_chars":16384,"cell_head_chars":4096},"cells_cut":0,"cells_raw":0,"read":"whole","date_system":"1900"}

{"sheet":"Welcome","index":0,"n_rows":52,"n_cols":54,"rows_kept":52,"cut":false,"hidden":false,"merged":[[9,1,9,3],[9,5,9,6],[9,8,10,13],[6,2,6,5]]}
[null,null,null,null,null,null,null,null,null,null,null,null,null,null,null,null,null,null,null,null,null,null,null,null,null,null,30,{"$f":"INDEX(AB$4:AB$50,MATCH(MyVoteNo,$AA$4:$AA$50,0))","v":"Communications and Digital Technologies"},{"$f":"INDEX(AC$4:AC$50,MATCH(MyVoteNo,$AA$4:$AA$50,0))","v":"Rezah Atcha"},null,{"$f":"INDEX(AE$4:AE$50,MATCH(MyVoteNo,$AA$4:$AA$50,0))","v":"Rezah.Atcha@treasury.gov.za"},{"$f":"INDEX(AF$4:AF$50,MATCH(MyVoteNo,$AA$4:$AA$50,0))","v":"Keitumetse Motshegwe"},null,{"$f":"INDEX(AH$4:AH$50,MATCH(MyVoteNo,$AA$4:$AA$50,0))","v":"keitumetse.motshegwe@treasury.gov.za"}]
[null,null,null,null,"2027 MTEF Workbook - National departments",null,null,null,null,null,null,null,null,null,null,null,null,null,null,null,null,null,null,null,null,null,null,null,null,null,null,null,null,null,"Dept Ceilings",null,null,"CoE Ceilings",null,null,null,null,null,null,"Departmental Ceilings",{"$f":"SUM(AT4:AT45)","v":2411225291},2504955698,2577230955,null,null,"Compensation Ceilings",{"$f":"SUM(AZ4:AZ45)","v":237266859},243819845,251161615]
[null,null,null,null,null,null,null,null,null,null,null,null,null,null,null,null,null,null,null,null,null,null,null,null,null,"Dept Index No.","Vote No.","Department","Contact Person","Tel","email","Contact Person","Tel","email",{"$f":"MyYear5","v":"2027/28"},{"$f":"MyYear6","v":"2028/29"},{"$f":"MyYear7","v":"2029/30"},{"$f":"AI3","v":"2027/28"},"2028/29","2029/30",null,null,null,null,"Department",{"$f":"AI3","v":"2027/28"},"2028/29","2029/30",null,null,"Department",{"$f":"AI3","v":"2027/28"},"2028/29","2029/30"]
[null,null,null,null,null,null,null,null,null,null,null,null,null,null,null,null,null,null,null,null,null,null,null,null,null,1,29,"Agriculture","Bothwell Deka","(012) 395 6784","Bothwell.Deka@treasury.gov.za","Humbelani Ramuedzisi","(012) 315 5320","Humbelani.Ramuedzisi@treasury.gov.za",{"$f":"IFERROR(INDEX((AT$4:AT$47),MATCH($AB4,$AS$4:$AS$47,0)),0)","v":8150566},{"$f":"IFERROR(INDEX((AU$4:AU$47),MATCH($AB4,$AS$4:$AS$47,0)),0)","v":8405170},{"$f":"IFERROR(INDEX((AV$4:AV$47),MATCH($AB4,$AS$4:$AS$47,0)),0)","v":8658257},{"$f":"IFERROR(INDEX((AZ$4:AZ$47),MATCH($AB4,$AY$4:$AY$47,0)),0)","v":1740713},{"$f":"IFERROR(INDEX((BA$4:BA$47),MATCH($AB4,$AY$4:$AY$47,0)),0)","v":1794816},{"$f":"IFERROR(INDEX((BB$4:BB$47),MATCH($AB4,$AY$4:$AY$47,0)),0)","v":1848859},null,null,null,null,"Agriculture",8150566,8405170,8658257,null,null,"Agriculture",1740713,1794816,1848859]
[null,null,null,null,null,null,null,null,null,null,null,null,null,null,null,null,null,null,null,null,null,null,null,null,null,2,16,"Basic Education","Shaneel Ragoo","(012) 315 5323","shaneel.ragoo@treasury.gov.za","Grace Leach",null,"Grace.Leach@treasury.gov.za",{"$f":"IFERROR(INDEX((AT$4:AT$47),MATCH($AB5,$AS$4:$AS$47,0)),0)","v":41108486},42548570,43829766,731264,753993,776700,null,null,null,null,"Basic Education",41108486,42548570,43829766,null,null,"Basic Education",731264,753993,776700]
[null,null,null,null,null,null,null,null,null,null,null,null,null,null,null,null,null,null,null,null,null,null,null,null,null,3,45,"Centre for Public Service Innovation","George Tembo","(012) 315 5514","George.Tembo@treasury.gov.za","Uvadhya Singh","(012) 315 9030","Uvadhya.Singh@treasury.gov.za",54822,56520,58220,34375,35443,36511,null,null,null,null,"Centre for Public Service Innovation",54822,56520,58220,null,null,"Centre for Public Service Innovation",34375,35443,36511]
[null,{"$f":"\"VOTE \" &$AA$1&\": \"","v":"VOTE 30: "},{"$f":"MyDeptName","v":"Communications and Digital Technologies"},null,null,null,null,null,null,null,null,null,null,null,null,null,null,null,null,null,null,null,null,null,null,4,21,"Civilian Secretariat for the Police Service","Velisubuhle Buti","(012) 395 6709","Velisubuhle.Buti@treasury.gov.za","Mmathaphelo Maphangela","(012) 406 9013","Mmathaphelo.Maphangela@treasury.gov.za",189380,195266,201143,148489,153104,157714,null,null,null,null,"Civilian Secretariat for the Police Service",189380,195266,201143,null,null,"Civilian Secretariat for the Police Service",148489,153104,157714]
[null,null,null,null,null,null,null,null,null,null,null,null,null,null,null,null,null,null,null,null,null,null,null,null,null,5,30,"Communications and Digital Technologies","Rezah Atcha","(012) 315 5287","Rezah.Atcha@treasury.gov.za","Keitumetse Motshegwe","(012) 395 6750","keitumetse.motshegwe@treasury.gov.za",2649154,2731488,2813729,362770,374043,385307,null,null,null,null,"Communications and Digital Technologies",2649154,2731488,2813729,null,null,"Communications and Digital Technologies",362770,374043,385307]
[null,null,null,null,null,null,null,null,null,null,null,null,null,null,null,null,null,null,null,null,null,null,null,null,null,6,3,"Cooperative Governance","Bongani Daka","(012) 315 5586","Bongani.Daka@treasury.gov.za","Iqbal Mahomed Alli","(012) 315 5809","Iqbal.Mahomed-Alli@treasury.gov.za",141530171,145928814,150322929,493867,509214,524547,null,null,null,null,"Cooperative Governance",141530171,145928814,150322929,null,null,"Cooperative Governance",493867,509214,524547]
[null,"Enquiries",null,null,null,"Department Contact Details ",null,null,"PLEASE CLICK THE BUTTON BELOW TO SUBMIT AN INPUT… (Note: Input can not be submitted if ceilings on the 'Data' sheet are exceeded.)",null,null,null,null,null,null,null,null,null,null,null,null,null,null,null,null,7,22,"Correctional Services","Elvis Ramafamba","(012) 315 5204","Elvis.Ramafamba@treasury.gov.za","Keabetswe Matlwa","(012) 395 6678","Keabetswe.Matlwa@treasury.gov.za",31853961,32843954,33832927,23018260,23200128,23898716,null,null,null,null,"Correctional Services",31853961,32843954,33832927,null,null,"Correctional Services",23018260,23200128,23898716]
[null,{"$f":"AC1","v":"Rezah Atcha"},null,{"$f":"AE1","v":"Rezah.Atcha@treasury.gov.za"},null,"Name:",null,null,null,null,null,null,null,null,null,null,null,null,null,null,null,null,null,null,null,8,23,"Defence","Lesiba Ledwaba","(012) 315 6660","Lesiba.Ledwaba@treasury.gov.za","Sesethu Mazoza","(012) 315 5106","Sesethu.Mazoza@treasury.gov.za",59878246,61754363,63613865,39357404,40580593,41802532,null,null,null,null,"Defence",59878246,61754363,63613865,null,null,"Defence",39357404,40580593,41802532]
[null,{"$f":"IF(AF1=B11,\"\",AF1)","v":"Keitumetse Motshegwe"},null,{"$f":"IF(AH1=D11,\"\",AH1)","v":"keitumetse.motshegwe@treasury.gov.za"},null,"Email:",null,null,null,null,null,null,null,null,null,null,null,null,null,null,null,null,null,null,null,9,10,"Electricity and Energy","Rezah Atcha","(012) 315 5287","Rezah.Atcha@treasury.gov.za","Nomagugu Madikane","(012) 315 5312","Nomagugu.Madikane@treasury.gov.za",7074223,6871580,7078487,404921,417506,430079,null,null,null,null,"Electricity and Energy",7074223,6871580,7078487,null,null,"Electricity and Energy",404921,417506,430079]
[null,null,null,null,null,"Telephone number:",null,null,null,null,null,null,null,null,null,null,null,null,null,null,null,null,null,null,null,10,31,"Employment and Labour","Dennis Machobani","(012) 315 5269","Dennis.Machobani@treasury.gov.za","Palesa Ndokweni","(012) 315 1620","Palesa.Ndokweni@treasury.gov.za",4138911,4267546,4396045,1715813,1769140,1822410,null,null,null,null,"Employment and Labour",4138911,4267546,4396045,null,null,"Employment and Labour",1715813,1769140,1822410]
[null,null,null,null,null,"Mobile (optional):",null,null,null,null,null,null,null,null,null,null,null,null,null,null,null,null,null,null,null,11,32,"Forestry, Fisheries and the Environment","Ashley Ramasimu","(012) 315 5166","Ashley.Ramasimu@treasury.gov.za","Jabulani Mahlangu","(012) 315 5612","Jabulani.Mahlangu@treasury.gov.za",9851222,10157385,10463234,2614786,2696047,2777229,null,null,null,null,"Forestry, Fisheries and the Environment",9851222,10157385,10463234,null,null,"Forestry, Fisheries and the Environment",2614786,2696047,2777229]
[null,null,null,null,null,null,null,null,null,null,null,null,null,null,null,null,null,null,null,null,null,null,null,null,null,12,4,"Government Communication and Information System","Viwe Sobudula","(012) 315 5015 ","Viwe.Sobudula@treasury.gov.za","Thobeka Mbonambi","(012) 395 6719","Thobeka.Mbonambi@treasury.gov.za",837030,863045,889029,339194,349736,360267,null,null,null,null,"Government Communication and Information System",837030,863045,889029,null,null,"Government Communication and Information System",339194,349736,360267]
[null,null,null,null,null,null,null,null,null,null,null,null,null,null,null,null,null,null,null,null,null,null,null,null,null,13,18,"Health","Refiloe Thokoa","(012) 395 6559","Refiloe.thokoa@treasury.gov.za","Jonatan Daven","(012) 315 6711","Jonatan.Daven@treasury.gov.za ",69793803,72009303,73811911,815301,840644,865957,null,null,null,null,"Health",69793803,72009303,73811911,null,null,"Health",815301,840644,865957]
[null,null,null,null,null,null,null,null,null,null,null,null,null,null,null,null,null,null,null,null,null,null,null,null,null,14,17,"Higher Education","Barileng Khumisi","(012) 406 9069","barileng.khumisi@treasury.gov.za","Nkhumeleni Munyai (Walter)","(012) 315 5636","Nkhumeleni.Munyai@treasury.gov.za",155829223,161539798,166351810,13912474,14344859,14776803,null,null,null,null,"Higher Education",155829223,161539798,166351810,null,null,"Higher Education",13912474,14344859,14776803]
[null,null,null,null,null,null,null,null,null,null,null,null,null,null,null,null,null,null,null,null,null,null,null,null,null,15,5,"Home Affairs","Viwe Sobudula","(012) 315 5015 ","Viwe.Sobudula@treasury.gov.za","Viwe Sobudula","(012) 315 5015 ","Viwe.Sobudula@treasury.gov.za",12879751,13291494,13691722,4596571,4739427,4882137,null,null,null,null,"Home Affairs",12879751,13291494,13691722,null,null,"Home Affairs",4596571,4739427,4882137]
[null,null,null,null,null,null,null,null,null,null,null,null,null,null,null,null,null,null,null,null,null,null,null,null,null,16,33,"Human Settlements","Katlego Moilwa","(012) 315 5812","Katlego.Moilwa@treasury.gov.za","Claudette Mkhwanazi","(012) 315 6535","Claudette.Mkhwanazi@treasury.gov.za",27180443,27212137,28031525,498830,514334,529822,null,null,null,null,"Human Settlements",27180443,27212137,28031525,null,null,"Human Settlements",498830,514334,529822]
[null,null,null,null,null,null,null,null,null,null,null,null,null,null,null,null,null,null,null,null,null,null,null,null,null,17,24,"Independent Police Investigative Directorate","Velisubuhle Buti","(012) 395 6709","Velisubuhle.Buti@treasury.gov.za","Mmathaphelo Maphangela","(012) 406 9013","Mmathaphelo.Maphangela@treasury.gov.za",465427,479893,494343,321353,331341,341321,null,null,null,null,"Independent Police Investigative Directorate",465427,479893,494343,null,null,"Independent Police Investigative Directorate",321353,331341,341321]
[null,null,null,null,null,null,null,null,null,null,null,null,null,null,null,null,null,null,null,null,null,null,null,null,null,18,6,"International Relations and Cooperation","George Tembo","(012) 315 5514","George.Tembo@treasury.gov.za","Mercy Mhlophe","(012) 315 5598","mercy.mhlope@treasury.gov.za",7475600,7707934,7940027,3537928,3647882,3757723,null,null,null,null,"International Relations and Cooperation",7475600,7707934,7940027,null,null,"International Relations and Cooperation",3537928,3647882,3757723]
[null,null,null,null,null,null,null,null,null,null,null,null,null,null,null,null,null,null,null,null,null,null,null,null,null,19,46,"Judicial Inspectorate for Correctional Services","Elvis Ramafamba","(012) 315 5204","Elvis.Ramafamba@treasury.gov.za","Keabetswe Matlwa","(012) 395 6678","Keabetswe.Matlwa@treasury.gov.za",135427,139636,143841,89873,92668,95459,null,null,null,null,"Judicial Inspectorate for Correctional Services",135427,139636,143841,null,null,"Judicial Inspectorate for Correctional Services",89873,92668,95459]
[null,null,null,null,null,null,null,null,null,null,null,null,null,null,null,null,null,null,null,null,null,null,null,null,null,20,25,"Justice and Constitutional Development","Werner Krause","(012) 315 5211","Werner.Krause@treasury.gov.za","Siphamandla Khumalo","(012)315 5759","siphamandla.khumalo@treasury.gov.za",27300947,28146036,28993552,17174746,17708523,18241749,null,null,null,null,"Justice and Constitutional Development",27300947,28146036,28993552,null,null,"Justice and Constitutional Development",17174746,17708523,18241749]
[null,null,null,null,null,null,null,null,null,null,null,null,null,null,null,null,null,null,null,null,null,null,null,null,null,21,42,"Land Reform and Rural Development","Bothwell Deka","(012) 395 6784","Bothwell.Deka@treasury.gov.za","Humbelani Ramuedzisi","(012) 315 5320","Humbelani.Ramuedzisi@treasury.gov.za",10715093,11048111,11380779,2971624,3063981,3156244,null,null,null,null,"Land Reform and Rural Development",10715093,11048111,11380779,null,null,"Land Reform and Rural Development",2971624,3063981,3156244]
[null,null,null,null,null,null,null,null,null,null,null,null,null,null,null,null,null,null,null,null,null,null,null,null,null,22,26,"Military Veterans","Lesiba Ledwaba","(012) 315 6660","Lesiba.Ledwaba@treasury.gov.za","Sesethu Mazoza","(012) 315 5106","Sesethu.Mazoza@treasury.gov.za",947565,977015,1006428,167683,172895,178101,null,null,null,null,"Military Veterans",947565,977015,1006428,null,null,"Military Veterans",167683,172895,178101]
[null,null,null,null,null,null,null,null,null,null,null,null,null,null,null,null,null,null,null,null,null,null,null,null,null,23,34,"Mineral and Petroleum Resources","Rezah Atcha","(012) 315 5287","Rezah.Atcha@treasury.gov.za","Portia Thebe","(012) 315 5855","Portia.Thebe@treasury.gov.za",2976215,3068712,3161118,990787,1021579,1052344,null,null,null,null,"Mineral and Petroleum Resources",2976215,3068712,3161118,null,null,"Mineral and Petroleum Resources",990787,1021579,1052344]
[null,null,null,null,null,null,null,null,null,null,null,null,null,null,null,null,null,null,null,null,null,null,null,null,null,24,7,"National School of Government","George Tembo","(012) 315 5514","George.Tembo@treasury.gov.za","Uvadhya Singh","(012) 315 9030","Uvadhya.Singh@treasury.gov.za",248185,255906,263612,72656,74914,77170,null,null,null,null,"National School of Government",248185,255906,263612,null,null,"National School of Government",72656,74914,77170]
[null,null,null,null,null,null,null,null,null,null,null,null,null,null,null,null,null,null,null,null,null,null,null,null,null,25,8,"National Treasury","Mokgatla Tema","(012) 315 5948","Mokgatla.Tema@treasury.gov.za","Rhoda Marais","(012) 315 5906","Rhoda.Marais@treasury.gov.za",1225147002,1271239585,1323080787,1200212,1237516,1274778,null,null,null,null,"National Treasury",1225147002,1271239585,1323080787,null,null,"National Treasury",1200212,1237516,1274778]
[null,null,null,null,null,null,null,null,null,null,null,null,null,null,null,null,null,null,null,null,null,null,null,null,null,26,27,"Office of the Chief Justice","Elvis Ramafamba","(012) 315 5204","Elvis.Ramafamba@treasury.gov.za","Keabetswe Matlwa","(012) 395 6678","Keabetswe.Matlwa@treasury.gov.za",3583908,3702026,3813497,2535487,2632499,2711765,null,null,null,null,"Office of the Chief Justice",3583908,3702026,3813497,null,null,"Office of the Chief Justice",2535487,2632499,2711765]
[null,null,null,null,null,null,null,null,null,null,null,null,null,null,null,null,null,null,null,null,null,null,null,null,null,27,2,"Parliament","Viwe Sobudula","(012) 315 5015 ","Viwe.Sobudula@treasury.gov.za","Viwe Sobudula","(012) 315 5015 ","Viwe.Sobudula@treasury.gov.za",3560738,3671403,3781954,2076189,2140715,2205176,null,null,null,null,"Parliament",3560738,3671403,3781954,null,null,"Parliament",2076189,2140715,2205176]
[null,null,null,null,null,null,null,null,null,null,null,null,null,null,null,null,null,null,null,null,null,null,null,null,null,28,9,"Planning, Monitoring and Evaluation","Mokgatla Tema","(012) 315 5948","Mokgatla.Tema@treasury.gov.za","Thobeka Mbonambi","(012) 395 6719","Thobeka.Mbonambi@treasury.gov.za",550565,567679,584769,406385,419018,431637,null,null,null,null,"Planning, Monitoring and Evaluation",550565,567679,584769,null,null,"Planning, Monitoring and Evaluation",406385,419018,431637]
[null,null,null,null,null,null,null,null,null,null,null,null,null,null,null,null,null,null,null,null,null,null,null,null,null,29,28,"Police","Velisubuhle Buti","(012) 395 6709","Velisubuhle.Buti@treasury.gov.za","Mmathaphelo Maphangela","(012) 406 9013","Mmathaphelo.Maphangela@treasury.gov.za",131680915,135773451,139861787,106562843,109572346,112871720,null,null,null,null,"Police",131680915,135773451,139861787,null,null,"Police",106562843,109572346,112871720]
[null,null,null,null,null,null,null,null,null,null,null,null,null,null,null,null,null,null,null,null,null,null,null,null,null,30,11,"Public Service and Administration","George Tembo","(012) 315 5514","George.Tembo@treasury.gov.za","Uvadhya Singh","(012) 315 9030","Uvadhya.Singh@treasury.gov.za",616123,635270,654390,336536,346997,357447,null,null,null,null,"Public Service Commission",367745,379696,391128,null,null,"Public Service Commission",287397,296851,305790]
[null,null,null,null,null,null,null,null,null,null,null,null,null,null,null,null,null,null,null,null,null,null,null,null,null,31,12,"Public Service Commission","George Tembo","(012) 315 5514","George.Tembo@treasury.gov.za","Mercy Mhlophe","(012) 315 5598","mercy.mhlope@treasury.gov.za",367745,379696,391128,287397,296851,305790,null,null,null,null,"Public Service and Administration",616123,635270,654390,null,null,"Public Service and Administration",336536,346997,357447]
[null,null,null,null,null,null,null,null,null,null,null,null,null,null,null,null,null,null,null,null,null,null,null,null,null,32,13,"Public Works and Infrastructure","George Tembo","(012) 315 5514","George.Tembo@treasury.gov.za","Tumelo Movare","(012) 315 5279","Tumelo.Movare@treasury.gov.za",8233497,8489921,8745554,713274,735443,757589,null,null,null,null,"Public Works and Infrastructure",8233497,8489921,8745554,null,null,"Public Works and Infrastructure",713274,735443,757589]
[null,null,null,null,null,null,null,null,null,null,null,null,null,null,null,null,null,null,null,null,null,null,null,null,null,33,35,"Science, Technology and Innovation","Ashley Ramasimu","(012) 315 5166","Ashley.Ramasimu@treasury.gov.za","Thabiso Molewa","(012) 395 6780","Thabiso.Molewa@treasury.gov.za",10815433,11120487,11455349,422717,435853,448975,null,null,null,null,"Science, Technology and Innovation",10815433,11120487,11455349,null,null,"Science, Technology and Innovation",422717,435853,448975]
[null,null,null,null,null,null,null,null,null,null,null,null,null,null,null,null,null,null,null,null,null,null,null,null,null,34,36,"Small Business Development","Bothwell Deka","(012) 395 6784","Bothwell.Deka@treasury.gov.za","Humbelani Ramuedzisi","(012) 315 5320","Humbelani.Ramuedzisi@treasury.gov.za",3158268,3256425,3354477,289603,298604,307595,null,null,null,null,"Small Business Development",3158268,3256425,3354477,null,null,"Small Business Development",289603,298604,307595]
[null,null,null,null,null,null,null,null,null,null,null,null,null,null,null,null,null,null,null,null,null,null,null,null,null,35,19,"Social Development","Yusuf Mayet","(012) 315 5189","Yusuf.Mayet@treasury.gov.za","Lindi Mzankomo","(012) 315 5256","Lindi.Mzankomo@treasury.gov.za",277272930,286620567,295251101,649392,669629,689795,null,null,null,null,"Social Development",277272930,286620567,295251101,null,null,"Social Development",649392,669629,689795]
[null,null,null,null,null,null,null,null,null,null,null,null,null,null,null,null,null,null,null,null,null,null,null,null,null,36,37,"Sport, Arts and Culture","Dennis Machobani","(012) 315 5269","Dennis.Machobani@treasury.gov.za","Mabele Mdhluli","(012) 315 5573","Mabele.Mdhluli@treasury.gov.za",6460865,6663530,6864167,475051,489737,504484,null,null,null,null,"Sport, Arts and Culture",6460865,6663530,6864167,null,null,"Sport, Arts and Culture",475051,489737,504484]
[null,null,null,null,null,null,null,null,null,null,null,null,null,null,null,null,null,null,null,null,null,null,null,null,null,37,14,"Statistics South Africa","Viwe Sobudula","(012) 315 5015 ","Viwe.Sobudula@treasury.gov.za","Thobeka Mbonambi","(012) 395 6719","Thobeka.Mbonambi@treasury.gov.za",3094215,3201635,3298037,1996462,2058509,2120497,null,null,null,null,"Statistics South Africa",3094215,3201635,3298037,null,null,"Statistics South Africa",1996462,2058509,2120497]
[null,null,null,null,null,null,null,null,null,null,null,null,null,null,null,null,null,null,null,null,null,null,null,null,null,38,1,"The Presidency","Viwe Sobudula","(012) 315 5015 ","Viwe.Sobudula@treasury.gov.za","Yamkela Ngewu","(012) 315 5936","Yamkela.Ngewu@treasury.gov.za",880447,905014,932262,591779,607374,625664,null,null,null,null,"The Presidency",880447,905014,932262,null,null,"The Presidency",591779,607374,625664]
[null,null,null,null,null,null,null,null,null,null,null,null,null,null,null,null,null,null,null,null,null,null,null,null,null,39,38,"Tourism","Rudzani Sikwari","(012) 315 5812","Rudzani.Sikwari@treasury.gov.za","Phumelele Gulukunqu","(012) 315 5539","Phumelele.Gulukunqu@treasury.gov.za",2640637,2722705,2804693,472215,486890,501554,null,null,null,null,"Tourism",2640637,2722705,2804693,null,null,"Tourism",472215,486890,501554]
[null,null,null,null,null,null,null,null,null,null,null,null,null,null,null,null,null,null,null,null,null,null,null,null,null,40,39,"Trade, Industry and Competition","Rudzani Sikhwari","(012) 315 5823","rudzani.sikhwari@treasury.gov.za","Phumelele Gulukunqu","(012) 315 5539","Phumelele.Gulukunqu@treasury.gov.za",10601456,10930944,11260095,1294447,1333127,1373267,null,null,null,null,"Trade, Industry and Competition",10601456,10930944,11260095,null,null,"Trade, Industry and Competition",1294447,1333127,1373267]
[null,null,null,null,null,null,null,null,null,null,null,null,null,null,null,null,null,null,null,null,null,null,null,null,null,41,15,"Traditional Affairs","Bongani Daka","(012) 315 5586","Bongani.Daka@treasury.gov.za","Iqbal Mahomed Alli","(012) 315 5809","Iqbal.Mahomed-Alli@treasury.gov.za",265451,274388,282650,150578,155730,160418,null,null,null,null,"Traditional Affairs",265451,274388,282650,null,null,"Traditional Affairs",150578,155730,160418]
[null,null,null,null,null,null,null,null,null,null,null,null,null,null,null,null,null,null,null,null,null,null,null,null,null,42,40,"Transport","Luyolo Ntlangula ","(012) 315-5571","luyolo.ntangula@treasury.gov.za","Resego Tekanyo","(012) 395-6786","Resego.Tekanyo@treasury.gov.za",99031245,112301296,99385959,694610,716197,737763,null,null,null,null,"Transport",99031245,112301296,99385959,null,null,"Transport",694610,716197,737763]
[null,null,null,null,null,null,null,null,null,null,null,null,null,null,null,null,null,null,null,null,null,null,null,null,null,43,41,"Water and Sanitation","Bongani Daka","(012) 315 5586","Bongani.Daka@treasury.gov.za","Iqbal Mahomed Alli","(012) 315 5809","Iqbal.Mahomed-Alli@treasury.gov.za",21295116,27869270,24793867,2294407,2365719,2436952,null,null,null,null,"Water and Sanitation",21295116,27869270,24793867,null,null,"Water and Sanitation",2294407,2365719,2436952]
[null,null,null,null,null,null,null,null,null,null,null,null,null,null,null,null,null,null,null,null,null,null,null,null,null,44,20,"Women, Youth and Persons with Disabilities","Yusuf Mayet","(012) 315 5189","Yusuf.Mayet@treasury.gov.za","Lindi Mzankomo","(012) 315 5256","Lindi.Mzankomo@treasury.gov.za",928850,958608,987476,152455,157194,161929,null,null,null,null,"Women, Youth and Persons with Disabilities",928850,958608,987476,null,null,"Women, Youth and Persons with Disabilities",152455,157194,161929]
[null,null,null,null,null,null,null,null,null,null,null,null,null,null,null,null,null,null,null,null,null,null,null,null,null,null,null,null,null,null,null,null,null,null,{"$f":"SUM(AI4:AI47)","v":2433449257},2533783576,2603012298,239713721,246342758,253760496]
[null,null,null,null,null,null,null,null,null,null,null,null,null,null,null,null,null,null,null,null,null,null,null,null,null,null,null,null,null,null,null,null,null,null,{"$f":"AI48-SUM(AT$4:AT$47)","v":0},0,0,{"$f":"AL48-SUM(AZ$4:AZ$47)","v":0},0,0]
[]
[null,null,null,null,null,null,null,null,null,null,null,null,null,null,null,null,null,null,null,null,null,null,null,null,null,null,null,null,null,null,null,null,null,null,2433449257,2533783576,2603012298,239713721,246342758,253760496]
[null,null,null,null,null,null,null,null,null,null,null,null,null,null,null,null,null,null,null,null,null,null,null,null,null,null,null,null,null,null,null,null,null,null,{"$f":"AI51-AI48","v":0},0,0,0,0,0]

{"sheet":"Notes","index":1,"n_rows":72,"n_cols":18,"rows_kept":72,"cut":false,"hidden":false,"merged":[[42,1,42,15]]}
[]
[]
[]
[]
[]
[]
[]
[]
[]
[]
[]
[]
[]
[]
[]
[]
[]
[]
[]
[]
[]
[]
[]
[]
[]
[]
[]
[]
[]
[]
[]
[]
[]
[]
[]
[]
[]
[]
[]
[]
[]
[null,"Link to the MTEF Guidelines"]
[null,"http://www.treasury.gov.za/publications/guidelines/default.aspx"]
[]
[]
[]
[]
[]
[]
[]
[]
[]
[]
[]
[]
[]
[null,null,null,null,null,null,null,null,null,null,null,null,null,null,null,null,null,"Click \"Enable Content\""]
[]
[]
[]
[]
[]
[]
[]
[]
[]
[]
[]
[null,null,null,null,null,null,null,null,null,null,null,null,null,null,null,null,null,"Tick \"Ignore Privacy Levels\" box"]
[]
[]
[null,null,null,null,null,null,null,null,null,null,null,null,null,null,null,null,null,"Click \"Save\""]

{"sheet":"Index","index":2,"n_rows":0,"n_cols":0,"rows_kept":0,"cut":false,"hidden":false,"merged":[]}

{"sheet":"Pivot % growth","index":3,"n_rows":37,"n_cols":17,"rows_kept":37,"cut":false,"hidden":false,"merged":[]}
[]
[]
[]
[]
[]
[]
[]
[]
[]
[]
[]
[]
[]
[]
[]
[null,"Row Labels"," 2026/27 Revised baseline"," 2027/28 Revised baseline"," 2028/29 Revised baseline"," 2029/30 Revised baseline"," 2027/28 adjustment"," 2028/29 adjustment"," 2029/30 adjustment"," 2027/28 % adjustment"," 2028/29 % adjustment"," 2029/30 % adjustment","% YoY 2027/28","% YoY 2028/29","% YoY 2029/30"," Ave Ann growth History"," Ave Ann growth MTEF"]
[null,"Current payments",792252,824383,850577,876181,0,0,0,0,0,0,4.0556540090779247E-2,3.1774066180404015E-2,3.010191905024473E-2,-0.20948426946029031,3.4134028636508384E-2]
[null,"Compensation of employees",347072,362770,374043,385307,0,0,0,0,0,0,4.5229808224230172E-2,3.1074785676875161E-2,3.0114184732771276E-2,8.642856206154903E-2,3.5449939047780932E-2]
[null,"Goods and services",445180,461613,476534,490874,0,0,0,0,0,0,3.6913158722314598E-2,3.2323613069822565E-2,3.009229142096892E-2,-0.3062119690683055,3.310578824662791E-2]
[null,"Interest and rent on land",0,0,0,0,0,0,0,0,0,0,0,0,0,0,0]
[null,"Transfers and subsidies",1749944,1816382,1872834,1929227,0,0,0,0,0,0,3.7965786333734153E-2,3.1079365463872577E-2,3.0111050952727147E-2,1.7053683650267493E-2,3.3046157784217156E-2]
[null,"Provinces and municipalities",29,30,31,32,0,0,0,0,0,0,3.4482758620689724E-2,3.3333333333333437E-2,3.2258064516129004E-2,5.0717574498580165E-2,3.335765289365078E-2]
[null,"Departmental agencies and accounts",870141,904867,932990,961084,0,0,0,0,0,0,3.9908474603541189E-2,3.1079705636297916E-2,3.0111791123163201E-2,1.8660160290805861E-2,3.369061089043357E-2]
[null,"Foreign governments and international organisations",45517,47333,48805,50275,0,0,0,0,0,0,3.9897181272930959E-2,3.1098810555003853E-2,3.0119864767954141E-2,3.4477202556940645E-2,3.3695953876027973E-2]
[null,"Households",4600,1387,1429,1472,0,0,0,0,0,0,-0.69847826086956522,3.0281182408075091E-2,3.0090972708187502E-2,-0.17337851517433389,-0.3160096213293212]
[null,"Public corporations and private enterprises",829657,862765,889579,916364,0,0,0,0,0,0,3.9905647755638762E-2,3.1079146696956883E-2,3.010974854397408E-2,1.6072203286879194E-2,3.3688804231439606E-2]
[null,"Payments for capital assets",6826,8389,8077,8321,0,0,0,0,0,0,0.22897743920304725,-3.7191560376683808E-2,3.0209236102513248E-2,7.0195257309257242E-2,6.824223841133592E-2]
[null,"Buildings and other fixed structures",0,0,0,0,0,0,0,0,0,0,0,0,0,0,0]
[null,"Machinery and equipment",6826,8389,7171,7387,0,0,0,0,0,0,0.22897743920304725,-0.14519012993205394,3.0121321991354089E-2,0.14168382442109562,2.6677249296618077E-2]
[null,"Heritage assets",0,0,0,0,0,0,0,0,0,0,0,0,0,0,0]
[null,"Specialised military assets",0,0,0,0,0,0,0,0,0,0,0,0,0,0,0]
[null,"Biological assets",0,0,0,0,0,0,0,0,0,0,0,0,0,0,0]
[null,"Land and sub-soil assets",0,0,0,0,0,0,0,0,0,0,0,0,0,0,0]
[null,"Software and other intangible assets",0,0,906,934,0,0,0,0,0,0,0,0,3.0905077262693093E-2,-1,0]
[null,"Payments for financial assets",0,0,0,0,0,0,0,0,0,0,0,0,0,-1,0]
[null,"Payments for financial assets",0,0,0,0,0,0,0,0,0,0,0,0,0,-1,0]
[null,"Grand Total",2549022,2649154,2731488,2813729,0,0,0,0,0,0,3.9282516981022475E-2,3.1079355900034411E-2,3.0108497639381948E-2,-8.0577471639661558E-2,3.3481946032289267E-2]

{"sheet":"Pivot_T","index":4,"n_rows":34,"n_cols":10,"rows_kept":34,"cut":false,"hidden":false,"merged":[]}
[]
[]
[]
[]
[]
[]
[]
[]
[]
[]
[null,"Econ4","(All)"]
[null,"DOR","(All)"]
[null,"Econ2","(All)"]
[null,"Econ3","(All)"]
[]
[null,null,"Column Labels"]
[null,null,"Baseline",null,null,null,"Revised baseline"]
[null,"Row Labels","2026/27","2027/28","2028/29","2029/30","2026/27","2027/28","2028/29","2029/30"]
[null," Value"]
[null,"Administration",280032,291513,286186,294798,280032,291513,286186,294798]
[null,"ICT Transformation, Global Partnerships and State-Owned Enterprises Governance",108723,112672,114984,118444,108723,112672,114984,118444]
[null,"Media and Content",396870,408114,412711,425137,396870,408114,412711,425137]
[null,"Digital Communication, Access and Services",1297307,1349557,1399069,1441196,1297307,1349557,1399069,1441196]
[null,"Digital Infrastructure and Technologies",299145,312337,336040,346160,299145,312337,336040,346160]
[null,"Digital Society and Economy",166945,174961,182498,187994,166945,174961,182498,187994]
[null,"% of total"]
[null,"Administration",0.10985860459423261,0.11004003542262926,0.10477292962663574,0.10477128394383396,0.10985860459423261,0.11004003542262926,0.10477292962663574,0.10477128394383396]
[null,"ICT Transformation, Global Partnerships and State-Owned Enterprises Governance",4.2652829202729517E-2,4.2531313770358389E-2,4.2095736829156856E-2,4.209502763059271E-2,4.2652829202729517E-2,4.2531313770358389E-2,4.2095736829156856E-2,4.209502763059271E-2]
[null,"Media and Content",0.15569500773237735,0.15405446417988536,0.151093836033693,0.15109379759031519,0.15569500773237735,0.15405446417988536,0.151093836033693,0.15109379759031519]
[null,"Digital Communication, Access and Services",0.50894303776114913,0.50942942539391822,0.51220030986773513,0.51220142380449574,0.50894303776114913,0.50942942539391822,0.51220030986773513,0.51220142380449574]
[null,"Digital Infrastructure and Technologies",0.11735677448056549,0.11790065809688678,0.1230245199686032,0.12302535176628596,0.11735677448056549,0.11790065809688678,0.1230245199686032,0.12302535176628596]
[null,"Digital Society and Economy",6.549374622894584E-2,6.6044103136322016E-2,6.6812667674176124E-2,6.6813115264476433E-2,6.549374622894584E-2,6.6044103136322016E-2,6.6812667674176124E-2,6.6813115264476433E-2]
[null,"Total  Value",2549022,2649154,2731488,2813729,2549022,2649154,2731488,2813729]
[null,"Total % of total",1,1,1,1,1,1,1,1]

{"sheet":"Service delivery impact","index":5,"n_rows":17,"n_cols":5,"rows_kept":17,"cut":false,"hidden":false,"merged":[[14,1,14,7]]}
[]
[]
[]
[]
[]
[]
[]
[]
[]
[]
[]
[]
[]
[]
[null,"Note: Data in the table below is sourced from the individual SRT sheets. Any adjustments should be made on the SRT sheets. Ajustments made directly on this table will be over-written when the data is refreshed! …remember to refresh."]
[]
[null,"Impact area","Unit no","Unit name","Comment"]

{"sheet":"Performance impact","index":6,"n_rows":17,"n_cols":18,"rows_kept":17,"cut":false,"hidden":false,"merged":[[14,1,14,8]]}
[]
[]
[]
[]
[]
[]
[]
[]
[]
[]
[]
[]
[]
[]
[null,"Note: Data in the table below is sourced from the individual SRT sheets. Any adjustments should be made on the SRT sheets. Ajustments made directly on this table will be over-written when the data is refreshed!  …remember to refresh."]
[]
[null,"Impact area","Unit no","Unit name","Performance indicator","2026/27 Current performance","2026/27 Performance @ benchmark level","2026/27 Change","2027/28 Original target","2027/28 Revised target","2027/28 Change","2028/29 Original target","2028/29 Revised target","2028/29 Change","2029/30 Original target","2029/30 Revised target","2029/30 Change","Comment"]

{"sheet":"Pivot Infra impact","index":7,"n_rows":20,"n_cols":6,"rows_kept":20,"cut":false,"hidden":false,"merged":[]}
[]
[]
[]
[]
[]
[]
[]
[]
[]
[]
[]
[]
[]
[null,"Impact area","(All)"]
[]
[null," Value","Column Labels"]
[null,null,"2026/27","2027/28","2028/29","2029/30"]
[null,"Row Labels","Change","Change","Change","Change"]
[null,"(blank)",0,0,0,0]
[null,"Grand Total",0,0,0,0]

{"sheet":"Pivot Personnel impact","index":8,"n_rows":23,"n_cols":6,"rows_kept":23,"cut":false,"hidden":false,"merged":[]}
[]
[]
[]
[]
[]
[]
[]
[]
[]
[]
[]
[]
[]
[]
[]
[null," Value","Column Labels"]
[null,null,"2026/27","2027/28","2028/29","2029/30"]
[null,"Row Labels","Change in number","Change in number","Change in number","Change in number"]
[null,"Levels 01 - 06",0,0,0,0]
[null,"Levels 07 - 12",0,0,0,0]
[null,"Levels 13 - 16",0,0,0,0]
[null,"Other",0,0,0,0]
[null,"Grand Total",0,0,0,0]

{"sheet":"Pivot HRBP","index":9,"n_rows":22,"n_cols":44,"rows_kept":22,"cut":false,"hidden":false,"merged":[]}
[]
[]
[]
[]
[]
[]
[]
[]
[]
[]
[]
[null,"Salary level","(All)"]
[null,"Programme No","(All)"]
[]
[null," Number","Columns"]
[null,null,"2025/26",null,null,null,null,null,"2026/27",null,null,null,null,null,null,null,null,"2027/28",null,null,null,null,null,null,null,null,"2028/29",null,null,null,null,null,null,null,null,"2029/30"]
[null,"Row Labels","Unit Costs","Once-off Payments per person","Establishment: Number of funded posts additional to the establishment","FTE Headcount","Estimated Outcome","Establishment: Number of funded posts as at 31 March 2025","Initial Headcount","Unit Costs","Once-off Payments per person","Vacant funded posts to be filled","Headcount reductions to be made","Revised Headcount","Cost of vacant posts to be filled","Savings from headcount reductions","Revised Estimate","Initial Headcount","Unit Costs","Once-off Payments per person","Vacant funded posts to be filled","Headcount reductions to be made","Revised Headcount","Cost of vacant posts to be filled","Savings from headcount reductions","MTEF Estimate","Initial Headcount","Unit Costs","Once-off Payments per person","Vacant funded posts to be filled","Headcount reductions to be made","Revised Headcount","Cost of vacant posts to be filled","Savings from headcount reductions","MTEF Estimate","Initial Headcount","Unit Costs","Once-off Payments per person","Vacant funded posts to be filled","Headcount reductions to be made","Revised Headcount","Cost of vacant posts to be filled","Savings from headcount reductions","MTEF Estimate"]
[null,"Levels 01 - 06",0,0,0,0,0,0,0,0,0,0,0,0,0,0,0,0,0,0,0,0,0,0,0,0,0,0,0,0,0,0,0,0,0,0,0,0,0,0,0,0,0,0]
[null,"Levels 07 - 12",0,0,0,0,0,0,0,0,0,0,0,0,0,0,0,0,0,0,0,0,0,0,0,0,0,0,0,0,0,0,0,0,0,0,0,0,0,0,0,0,0,0]
[null,"Levels 13 - 16",0,0,0,0,0,0,0,0,0,0,0,0,0,0,0,0,0,0,0,0,0,0,0,0,0,0,0,0,0,0,0,0,0,0,0,0,0,0,0,0,0,0]
[null,"Other",0,0,0,0,0,0,0,0,0,0,0,0,0,0,0,0,0,0,0,0,0,0,0,0,0,0,0,0,0,0,0,0,0,0,0,0,0,0,0,0,0,0]
[null,"Grand Total",0,0,0,0,0,0,0,0,0,0,0,0,0,0,0,0,0,0,0,0,0,0,0,0,0,0,0,0,0,0,0,0,0,0,0,0,0,0,0,0,0,0]

{"sheet":"Data","index":10,"n_rows":662,"n_cols":120,"rows_kept":662,"cut":false,"hidden":false,"merged":[[16,112,16,119],[16,104,16,111],[16,96,16,103],[1,51,1,52],[2,51,2,52],[3,51,3,52],[4,51,4,52],[5,51,5,52]]}
[null,null,null,null,null,null,null,null,null,null,null,null,null,null,null,null,null,null,null,null,null,null,null,null,null,null,null,null,null,null,null,null,null,null,null,null,null,null,null,null,null,null,null,null,null,null,null,null,null,null,null,null,null,null,null,null,null,null,null,null,null,null,null,null,null,null,null,null,null,null,null,null,null,null,null,null,null,null,null,null,null,null,null,null,null,null,null,null,null,null,null,{"$f":"SUM(CO1:CR1)","v":0},{"$f":"COUNTIF(Dataset[2026/27 Revised baseline],\"<0\")","v":0},{"$f":"COUNTIF(Dataset[2027/28 Revised baseline],\"<0\")","v":0},{"$f":"COUNTIF(Dataset[2028/29 Revised baseline],\"<0\")","v":0},{"$f":"COUNTIF(Dataset[2029/30 Revised baseline],\"<0\")","v":0}]
[null,null,null,null,null,null,null,null,null,null,null,null,null,null,null,null,null,null,null,null,null,null,null,null,null,null,null,null,null,null,null,null,null,null,null,null,null,null,null,null,null,null,null,null,null,null,null,null,null,null,null,"Spending review topics…"]
[null,null,null,null,null,null,null,null,null,null,null,null,null,null,null,null,null,null,null,null,null,null,null,null,null,null,null,null,null,null,null,null,null,null,null,null,null,null,null,null,null,null,null,null,null,null,null,null,null,null,1,"Spending review topic 1",null,null,null,null,null,null,null,null,null,null,null,null,null,null,null,null,null,null,null,null,null,null,null,null,null,null,null,null,null,null,null,null,null,null,null,null,null,null,null,null,null,{"$f":"COUNTIF(Dataset[2027/28 Revised baseline],\"<0\")","v":0},{"$f":"COUNTIF(Dataset[2028/29 Revised baseline],\"<0\")","v":0},{"$f":"COUNTIF(Dataset[2029/30 Revised baseline],\"<0\")","v":0}]
[null,null,null,null,null,null,null,null,null,null,null,null,null,null,null,null,null,null,null,null,null,null,null,null,null,null,null,null,null,null,null,null,null,null,null,null,null,null,null,null,null,null,null,null,null,null,null,null,null,null,2,"Spending review topic 2"]
[null,null,null,null,null,null,null,null,null,null,null,null,null,null,null,null,null,null,null,null,null,null,null,null,null,null,null,null,null,null,null,null,null,null,null,null,null,null,null,null,null,null,null,null,null,null,null,null,null,null,3,"Spending review topic 3"]
[null,null,null,null,null,null,null,null,null,null,null,null,null,null,null,null,null,null,null,null,null,null,null,null,null,null,null,null,null,null,null,null,null,null,null,null,null,null,null,null,null,null,null,null,null,null,null,null,null,null,4,"Spending review topic 4",null,null,null,null,null,null,null,null,null,null,null,null,null,null,null,null,null,null,null,null,null,null,null,null,null,null,null,null,null,null,null,null,null,null,null,null,null,null,null,null,null,{"$f":"MyYear5","v":"2027/28"},{"$f":"MyYear6","v":"2028/29"},{"$f":"MyYear7","v":"2029/30"}]
[]
[null,null,null,null,null,null,null,null,null,null,null,null,null,null,null,null,null,null,null,null,null,null,null,null,null,null,null,null,null,null,null,null,null,null,null,null,null,null,null,null,null,null,null,null,null,null,null,null,null,null,null,null,null,null,null,null,null,null,null,null,null,null,null,null,null,null,null,null,null,null,null,null,null,null,null,null,null,null,null,null,null,null,null,null,null,null,null,null,null,null,null,"Baseline ceiling:",null,{"$f":"INDEX(DeptCeiling,MATCH(MyVoteNo,VoteNoList,0),1)","v":2649154},{"$f":"INDEX(DeptCeiling,MATCH(MyVoteNo,VoteNoList,0),2)","v":2731488},{"$f":"INDEX(DeptCeiling,MATCH(MyVoteNo,VoteNoList,0),3)","v":2813729}]
[null,null,null,null,null,null,null,null,null,null,null,null,null,null,null,null,null,null,null,null,null,null,null,null,null,null,null,null,null,null,null,null,null,null,null,null,null,null,null,null,null,null,null,null,null,null,null,null,null,null,null,null,null,null,null,null,null,null,null,null,null,null,null,null,null,null,null,null,null,null,null,null,null,null,null,null,null,null,null,null,null,null,null,null,null,null,null,null,null,null,null,"(Over)/Under",null,{"$f":"CP8-SUM(Dataset[2027/28 Revised baseline])","v":0},{"$f":"CQ8-SUM(Dataset[2028/29 Revised baseline])","v":0},{"$f":"CR8-SUM(Dataset[2029/30 Revised baseline])","v":0}]
[]
[null,null,null,null,null,null,null,null,null,null,null,null,null,null,null,null,null,null,null,null,null,null,null,null,null,null,null,null,null,null,null,null,null,null,null,null,null,null,null,null,null,null,null,null,null,null,null,null,null,null,null,null,null,null,null,null,null,null,null,null,null,null,null,null,null,null,null,null,null,null,null,null,null,null,null,null,null,null,null,null,null,null,null,null,null,null,null,null,null,null,null,"CoE budget:",null,{"$f":"INDEX(CoECeiling,MATCH(MyVoteNo,VoteNoList,0),1)","v":362770},{"$f":"INDEX(CoECeiling,MATCH(MyVoteNo,VoteNoList,0),2)","v":374043},{"$f":"INDEX(CoECeiling,MATCH(MyVoteNo,VoteNoList,0),3)","v":385307}]
[null,null,null,null,null,null,null,null,null,null,null,null,null,null,null,null,null,null,null,null,null,null,null,null,null,null,null,null,null,null,null,null,null,null,null,null,null,null,null,null,null,null,null,null,null,null,null,null,null,null,null,null,null,null,null,null,null,null,null,null,null,null,null,null,null,null,null,null,null,null,null,null,null,null,null,null,null,null,null,null,null,null,null,null,null,null,null,null,null,null,null,"(Over)/Under",null,{"$f":"CP11-SUMIF(Dataset[Econ3],\"Compensation of employees\",Dataset[2027/28 Revised baseline])","v":0},{"$f":"CQ11-SUMIF(Dataset[Econ3],\"Compensation of employees\",Dataset[2028/29 Revised baseline])","v":0},{"$f":"CR11-SUMIF(Dataset[Econ3],\"Compensation of employees\",Dataset[2029/30 Revised baseline])","v":0}]
[]
[null,null,null,null,null,null,null,null,null,null,null,null,null,null,null,null,null,null,null,null,null,null,null,null,null,null,null,null,null,null,null,null,null,null,null,null,null,null,null,null,null,null,null,null,null,null,null,null,null,null,null,null,null,null,null,null,null,null,null,null,null,null,null,null,null,null,null,null,null,null,null,null,null,null,null,null,null,null,null,null,null,null,null,null,null,null,null,null,null,null,null,null,"…red shaded cells below indicate negative budgets."]
[null,null,null,null,null,null,null,null,null,null,null,null,null,null,null,null,null,null,null,null,null,null,null,null,null,null,null,null,null,null,null,null,null,null,{"$f":"AI18","v":"2022/23"},{"$f":"AJ18","v":"2023/24"},"2024/25","2025/26 Main appropriation","2025/26 Adjusted appropriation","2025/26 Revised estimate","2025/26 Preliminary outcome","2026/27 Baseline","2027/28 Baseline","2028/29 Baseline","2029/30 Baseline","2027/28 From - Spending review Topic 1","2028/29 From - Spending review Topic 1","2029/30 From - Spending review Topic 1","2027/28 To - Spending review Topic 1","2028/29 To - Spending review Topic 1","2029/30 To - Spending review Topic 1","2027/28 From - Spending review Topic 2","2028/29 From - Spending review Topic 2","2029/30 From - Spending review Topic 2","2027/28 To - Spending review Topic 2","2028/29 To - Spending review Topic 2","2029/30 To - Spending review Topic 2","2027/28 From - Spending review Topic 3","2028/29 From - Spending review Topic 3","2029/30 From - Spending review Topic 3","2027/28 To - Spending review Topic 3","2028/29 To - Spending review Topic 3","2029/30 To - Spending review Topic 3","2027/28 From - Spending review Topic 4","2028/29 From - Spending review Topic 4","2029/30 From - Spending review Topic 4","2027/28 To - Spending review Topic 4","2028/29 To - Spending review Topic 4","2029/30 To - Spending review Topic 4","2027/28 From - Other reallocations","2028/29 From - Other reallocations","2029/30 From - Other reallocations","2027/28 To - Other reallocations","2028/29 To - Other reallocations","2029/30 To - Other reallocations","2026/27 Targeted savings","2027/28 Targeted savings","2028/29 Targeted savings","2029/30 Targeted savings","2027/28 From - Total","2028/29 From - Total","2029/30 From - Total","2027/28 To - Total","2028/29 To - Total","2029/30 To - Total","2027/28 Total decrease","2028/29 Total decrease","2029/30 Total decrease","2026/27 Total change","2027/28 Total change","2028/29 Total change","2029/30 Total change","2026/27 Revised baseline","2027/28 Revised baseline","2028/29 Revised baseline","2029/30 Revised baseline",{"$f":"CS18","v":"2022/23 PEI Actual"},"2023/24 PEI Actual","2024/25 PEI Actual","2025/26 PEI Preliminary outcome","2026/27 PEI Baseline","2027/28 PEI Baseline","2028/29 PEI Baseline","2029/30 PEI Baseline",{"$f":"DA18","v":"2022/23 Other employment programmes Actual"},"2023/24 Other employment programmes Actual","2024/25 Other employment programmes Actual","2025/26 Other employment programmes Preliminary outcome","2026/27 Other employment programmes Baseline","2027/28 Other employment programmes Baseline","2028/29 Other employment programmes Baseline","2029/30 Other employment programmes Baseline",{"$f":"DI18","v":"2022/23 Sector programmes Actual"},"2023/24 Sector programmes Actual","2024/25 Sector programmes Actual","2025/26 Sector programmes Preliminary outcome","2026/27 Sector programmes Baseline","2027/28 Sector programmes Baseline","2028/29 Sector programmes Baseline","2029/30 Sector programmes Baseline"]
[null,null,null,null,null,null,null,null,null,null,null,null,null,null,null,null,null,null,null,null,null,null,null,null,null,null,null,null,null,null,null,null,null,"Subtotal:  ",{"$f":"SUBTOTAL(9,Dataset[2022/23])","v":5221342},{"$f":"SUBTOTAL(9,Dataset[2023/24])","v":3279655},{"$f":"SUBTOTAL(9,Dataset[2024/25])","v":2915163},{"$f":"SUBTOTAL(9,Dataset[2025/26 Main appropriation])","v":2545626},{"$f":"SUBTOTAL(9,Dataset[2025/26 Adjusted appropriation])","v":4439413},{"$f":"SUBTOTAL(9,Dataset[2025/26 Revised estimate])","v":4439413},{"$f":"SUBTOTAL(9,Dataset[2025/26 Preliminary outcome])","v":364464},{"$f":"SUBTOTAL(9,Dataset[2026/27 Baseline])","v":2549022},{"$f":"SUBTOTAL(9,Dataset[2027/28 Baseline])","v":2649154},{"$f":"SUBTOTAL(9,Dataset[2028/29 Baseline])","v":2731488},{"$f":"SUBTOTAL(9,Dataset[2029/30 Baseline])","v":2813729},{"$f":"SUBTOTAL(9,Dataset[2027/28 From - Spending review Topic 1])","v":0},{"$f":"SUBTOTAL(9,Dataset[2028/29 From - Spending review Topic 1])","v":0},{"$f":"SUBTOTAL(9,Dataset[2029/30 From - Spending review Topic 1])","v":0},{"$f":"SUBTOTAL(9,Dataset[2027/28 To - Spending review Topic 1])","v":0},{"$f":"SUBTOTAL(9,Dataset[2028/29 To - Spending review Topic 1])","v":0},{"$f":"SUBTOTAL(9,Dataset[2029/30 To - Spending review Topic 1])","v":0},{"$f":"SUBTOTAL(9,Dataset[2027/28 From - Spending review Topic 2])","v":0},{"$f":"SUBTOTAL(9,Dataset[2028/29 From - Spending review Topic 2])","v":0},{"$f":"SUBTOTAL(9,Dataset[2029/30 From - Spending review Topic 2])","v":0},{"$f":"SUBTOTAL(9,Dataset[2027/28 To - Spending review Topic 2])","v":0},{"$f":"SUBTOTAL(9,Dataset[2028/29 To - Spending review Topic 2])","v":0},{"$f":"SUBTOTAL(9,Dataset[2029/30 To - Spending review Topic 2])","v":0},{"$f":"SUBTOTAL(9,Dataset[2027/28 From - Spending review Topic 3])","v":0},{"$f":"SUBTOTAL(9,Dataset[2028/29 From - Spending review Topic 3])","v":0},{"$f":"SUBTOTAL(9,Dataset[2029/30 From - Spending review Topic 3])","v":0},{"$f":"SUBTOTAL(9,Dataset[2027/28 To - Spending review Topic 3])","v":0},{"$f":"SUBTOTAL(9,Dataset[2028/29 To - Spending review Topic 3])","v":0},{"$f":"SUBTOTAL(9,Dataset[2029/30 To - Spending review Topic 3])","v":0},{"$f":"SUBTOTAL(9,Dataset[2027/28 From - Spending review Topic 4])","v":0},{"$f":"SUBTOTAL(9,Dataset[2028/29 From - Spending review Topic 4])","v":0},{"$f":"SUBTOTAL(9,Dataset[2029/30 From - Spending review Topic 4])","v":0},{"$f":"SUBTOTAL(9,Dataset[2027/28 To - Spending review Topic 4])","v":0},{"$f":"SUBTOTAL(9,Dataset[2028/29 To - Spending review Topic 4])","v":0},{"$f":"SUBTOTAL(9,Dataset[2029/30 To - Spending review Topic 4])","v":0},{"$f":"SUBTOTAL(9,Dataset[2027/28 From - Other reallocations])","v":0},{"$f":"SUBTOTAL(9,Dataset[2028/29 From - Other reallocations])","v":0},{"$f":"SUBTOTAL(9,Dataset[2029/30 From - Other reallocations])","v":0},{"$f":"SUBTOTAL(9,Dataset[2027/28 To - Other reallocations])","v":0},{"$f":"SUBTOTAL(9,Dataset[2028/29 To - Other reallocations])","v":0},{"$f":"SUBTOTAL(9,Dataset[2029/30 To - Other reallocations])","v":0},{"$f":"SUBTOTAL(9,Dataset[2026/27 Targeted savings])","v":0},{"$f":"SUBTOTAL(9,Dataset[2027/28 Targeted savings])","v":0},{"$f":"SUBTOTAL(9,Dataset[2028/29 Targeted savings])","v":0},{"$f":"SUBTOTAL(9,Dataset[2029/30 Targeted savings])","v":0},{"$f":"SUBTOTAL(9,Dataset[2027/28 From - Total])","v":0},{"$f":"SUBTOTAL(9,Dataset[2028/29 From - Total])","v":0},{"$f":"SUBTOTAL(9,Dataset[2029/30 From - Total])","v":0},{"$f":"SUBTOTAL(9,Dataset[2027/28 To - Total])","v":0},{"$f":"SUBTOTAL(9,Dataset[2028/29 To - Total])","v":0},{"$f":"SUBTOTAL(9,Dataset[2029/30 To - Total])","v":0},{"$f":"SUBTOTAL(9,Dataset[2027/28 Total decrease])","v":0},{"$f":"SUBTOTAL(9,Dataset[2028/29 Total decrease])","v":0},{"$f":"SUBTOTAL(9,Dataset[2029/30 Total decrease])","v":0},{"$f":"SUBTOTAL(9,Dataset[2026/27 Total change])","v":0},{"$f":"SUBTOTAL(9,Dataset[2027/28 Total change])","v":0},{"$f":"SUBTOTAL(9,Dataset[2028/29 Total change])","v":0},{"$f":"SUBTOTAL(9,Dataset[2029/30 Total change])","v":0},{"$f":"SUBTOTAL(9,Dataset[2026/27 Revised baseline])","v":2549022},{"$f":"SUBTOTAL(9,Dataset[2027/28 Revised baseline])","v":2649154},{"$f":"SUBTOTAL(9,Dataset[2028/29 Revised baseline])","v":2731488},{"$f":"SUBTOTAL(9,Dataset[2029/30 Revised baseline])","v":2813729},{"$f":"SUBTOTAL(9,Dataset[2022/23 PEI Actual])","v":0},{"$f":"SUBTOTAL(9,Dataset[2023/24 PEI Actual])","v":0},{"$f":"SUBTOTAL(9,Dataset[2024/25 PEI Actual])","v":0},{"$f":"SUBTOTAL(9,Dataset[2025/26 PEI Preliminary outcome])","v":0},{"$f":"SUBTOTAL(9,Dataset[2026/27 PEI Baseline])","v":0},{"$f":"SUBTOTAL(9,Dataset[2027/28 PEI Baseline])","v":0},{"$f":"SUBTOTAL(9,Dataset[2028/29 PEI Baseline])","v":0},{"$f":"SUBTOTAL(9,Dataset[2029/30 PEI Baseline])","v":0},{"$f":"SUBTOTAL(9,Dataset[2022/23 Other employment programmes Actual])","v":0},{"$f":"SUBTOTAL(9,Dataset[2023/24 Other employment programmes Actual])","v":0},{"$f":"SUBTOTAL(9,Dataset[2024/25 Other employment programmes Actual])","v":0},{"$f":"SUBTOTAL(9,Dataset[2025/26 Other employment programmes Preliminary outcome])","v":0},{"$f":"SUBTOTAL(9,Dataset[2026/27 Other employment programmes Baseline])","v":0},{"$f":"SUBTOTAL(9,Dataset[2027/28 Other employment programmes Baseline])","v":0},{"$f":"SUBTOTAL(9,Dataset[2028/29 Other employment programmes Baseline])","v":0},{"$f":"SUBTOTAL(9,Dataset[2029/30 Other employment programmes Baseline])","v":0},{"$f":"SUBTOTAL(9,Dataset[2022/23 Sector programmes Actual])","v":0},{"$f":"SUBTOTAL(9,Dataset[2023/24 Sector programmes Actual])","v":0},{"$f":"SUBTOTAL(9,Dataset[2024/25 Sector programmes Actual])","v":0},{"$f":"SUBTOTAL(9,Dataset[2025/26 Sector programmes Preliminary outcome])","v":0},{"$f":"SUBTOTAL(9,Dataset[2026/27 Sector programmes Baseline])","v":0},{"$f":"SUBTOTAL(9,Dataset[2027/28 Sector programmes Baseline])","v":0},{"$f":"SUBTOTAL(9,Dataset[2028/29 Sector programmes Baseline])","v":0},{"$f":"SUBTOTAL(9,Dataset[2029/30 Sector programmes Baseline])","v":0}]
[null,null,null,null,null,null,null,null,null,null,null,null,null,null,null,null,null,null,null,null,null,null,null,null,null,null,null,null,null,null,null,null,null,null,null,null,null,null,null,null,null,null,null,null,null,{"$f":"\"…\"&SRTopic1","v":"…Spending review topic 1"},null,null,null,null,null,{"$f":"\"…\"&SRTopic2","v":"…Spending review topic 2"},null,null,null,null,null,{"$f":"\"…\"&SRTopic3","v":"…Spending review topic 3"},null,null,null,null,null,{"$f":"\"…\"&SRTopic4","v":"…Spending review topic 4"},null,null,null,null,null,"…Reallocations other than spending reviews",null,null,null,null,null,"…Targeted savings",null,null,null,null,null,null,null,null,null,null,null,null,null,null,null,null,{"$f":"IF(CO1<>0,\"Negative budgets\",\"\")","v":""},"","","","Presidential Employment Initiative (PEI)",null,null,null,null,null,null,null,"Employment Programmes",null,null,null,null,null,null,null,"Sector programmes having a strong employment impact"]
["Combo_DoR","Combo_Econ","Budget Year","Process","Vote No. - N","Programme No. - N","Subprogramme No. - N","Index - N","Index - N2","Vote No.","Programme No.","Subprogramme No.","Index","Index2","UID","Econ1_IDn","Econ2_IDn","Econ3_IDn","Econ4_IDn","Econ5_IDn","Econ_UID","Province","Department","Programme","Subprogramme","Transfers and subsidies / Payments for financial assets detail","Econ1","Econ2","Econ3","Econ4","Econ5","Function group","Technical group","DOR","2022/23","2023/24","2024/25","2025/26 Main appropriation","2025/26 Adjusted appropriation","2025/26 Revised estimate","2025/26 Preliminary outcome","2026/27 Baseline","2027/28 Baseline","2028/29 Baseline","2029/30 Baseline","2027/28 From - Spending review Topic 1","2028/29 From - Spending review Topic 1","2029/30 From - Spending review Topic 1","2027/28 To - Spending review Topic 1","2028/29 To - Spending review Topic 1","2029/30 To - Spending review Topic 1","2027/28 From - Spending review Topic 2","2028/29 From - Spending review Topic 2","2029/30 From - Spending review Topic 2","2027/28 To - Spending review Topic 2","2028/29 To - Spending review Topic 2","2029/30 To - Spending review Topic 2","2027/28 From - Spending review Topic 3","2028/29 From - Spending review Topic 3","2029/30 From - Spending review Topic 3","2027/28 To - Spending review Topic 3","2028/29 To - Spending review Topic 3","2029/30 To - Spending review Topic 3","2027/28 From - Spending review Topic 4","2028/29 From - Spending review Topic 4","2029/30 From - Spending review Topic 4","2027/28 To - Spending review Topic 4","2028/29 To - Spending review Topic 4","2029/30 To - Spending review Topic 4","2027/28 From - Other reallocations","2028/29 From - Other reallocations","2029/30 From - Other reallocations","2027/28 To - Other reallocations","2028/29 To - Other reallocations","2029/30 To - Other reallocations","2026/27 Targeted savings","2027/28 Targeted savings","2028/29 Targeted savings","2029/30 Targeted savings","2027/28 From - Total","2028/29 From - Total","2029/30 From - Total","2027/28 To - Total","2028/29 To - Total","2029/30 To - Total","2027/28 Total decrease","2028/29 Total decrease","2029/30 Total decrease","2026/27 Total change","2027/28 Total change","2028/29 Total change","2029/30 Total change","2026/27 Revised baseline","2027/28 Revised baseline","2028/29 Revised baseline","2029/30 Revised baseline","2022/23 PEI Actual","2023/24 PEI Actual","2024/25 PEI Actual","2025/26 PEI Preliminary outcome","2026/27 PEI Baseline","2027/28 PEI Baseline","2028/29 PEI Baseline","2029/30 PEI Baseline","2022/23 Other employment programmes Actual","2023/24 Other employment programmes Actual","2024/25 Other employment programmes Actual","2025/26 Other employment programmes Preliminary outcome","2026/27 Other employment programmes Baseline","2027/28 Other employment programmes Baseline","2028/29 Other employment programmes Baseline","2029/30 Other employment programmes Baseline","2022/23 Sector programmes Actual","2023/24 Sector programmes Actual","2024/25 Sector programmes Actual","2025/26 Sector programmes Preliminary outcome","2026/27 Sector programmes Baseline","2027/28 Sector programmes Baseline","2028/29 Sector programmes Baseline","2029/30 Sector programmes Baseline"]
["NAT|Non-transfer","30|Salaries and wages","2027_28","MTEC2027",30,1,1,32521,1,"30","01","01","032521","000001","30|01|01|000001","01","01","01","01","01","01|01|01|01|01","National","Communications and Digital Technologies","Administration","Ministry","Non-transfer","Current","Current payments","Compensation of employees","Salaries and wages","Salaries and wages","Economic development","Economic regulation and infrastructure","NAT",3935,4247,4292,4610,4610,4610,4404,5222,5094,5252,5410,null,null,null,null,null,null,null,null,null,null,null,null,null,null,null,null,null,null,null,null,null,null,null,null,null,null,null,null,null,null,null,null,null,null,{"$f":"Dataset[[#This Row],[2027/28 From - Spending review Topic 1]]+Dataset[[#This Row],[2027/28 From - Spending review Topic 2]]+Dataset[[#This Row],[2027/28 From - Spending review Topic 3]]+Dataset[[#This Row],[2027/28 From - Spending review Topic 4]]+Dataset[[#This Row],[2027/28 From - Other reallocations]]","v":0},{"$f":"Dataset[[#This Row],[2028/29 From - Spending review Topic 1]]+Dataset[[#This Row],[2028/29 From - Spending review Topic 2]]+Dataset[[#This Row],[2028/29 From - Spending review Topic 3]]+Dataset[[#This Row],[2028/29 From - Spending review Topic 4]]+Dataset[[#This Row],[2028/29 From - Other reallocations]]","v":0},{"$f":"Dataset[[#This Row],[2029/30 From - Spending review Topic 1]]+Dataset[[#This Row],[2029/30 From - Spending review Topic 2]]+Dataset[[#This Row],[2029/30 From - Spending review Topic 3]]+Dataset[[#This Row],[2029/30 From - Spending review Topic 4]]+Dataset[[#This Row],[2029/30 From - Other reallocations]]","v":0},{"$f":"Dataset[[#This Row],[2027/28 To - Spending review Topic 1]]+Dataset[[#This Row],[2027/28 To - Spending review Topic 2]]+Dataset[[#This Row],[2027/28 To - Spending review Topic 3]]+Dataset[[#This Row],[2027/28 To - Spending review Topic 4]]+Dataset[[#This Row],[2027/28 To - Other reallocations]]","v":0},{"$f":"Dataset[[#This Row],[2028/29 To - Spending review Topic 1]]+Dataset[[#This Row],[2028/29 To - Spending review Topic 2]]+Dataset[[#This Row],[2028/29 To - Spending review Topic 3]]+Dataset[[#This Row],[2028/29 To - Spending review Topic 4]]+Dataset[[#This Row],[2028/29 To - Other reallocations]]","v":0},{"$f":"Dataset[[#This Row],[2029/30 To - Spending review Topic 1]]+Dataset[[#This Row],[2029/30 To - Spending review Topic 2]]+Dataset[[#This Row],[2029/30 To - Spending review Topic 3]]+Dataset[[#This Row],[2029/30 To - Spending review Topic 4]]+Dataset[[#This Row],[2029/30 To - Other reallocations]]","v":0},{"$f":"Dataset[[#This Row],[2027/28 Targeted savings]]+Dataset[[#This Row],[2027/28 From - Total]]","v":0},{"$f":"Dataset[[#This Row],[2028/29 Targeted savings]]+Dataset[[#This Row],[2028/29 From - Total]]","v":0},{"$f":"Dataset[[#This Row],[2029/30 Targeted savings]]+Dataset[[#This Row],[2029/30 From - Total]]","v":0},{"$f":"Dataset[[#This Row],[2026/27 Targeted savings]]","v":0},{"$f":"SUM(Dataset[[#This Row],[2027/28 Targeted savings]],Dataset[[#This Row],[2027/28 From - Total]],Dataset[[#This Row],[2027/28 To - Total]])","v":0},{"$f":"SUM(Dataset[[#This Row],[2028/29 Targeted savings]],Dataset[[#This Row],[2028/29 From - Total]],Dataset[[#This Row],[2028/29 To - Total]])","v":0},{"$f":"SUM(Dataset[[#This Row],[2029/30 Targeted savings]],Dataset[[#This Row],[2029/30 From - Total]],Dataset[[#This Row],[2029/30 To - Total]])","v":0},{"$f":"Dataset[[#This Row],[2026/27 Baseline]]+Dataset[[#This Row],[2026/27 Total change]]","v":5222},{"$f":"Dataset[[#This Row],[2027/28 Baseline]]+Dataset[[#This Row],[2027/28 Total change]]","v":5094},{"$f":"Dataset[[#This Row],[2028/29 Baseline]]+Dataset[[#This Row],[2028/29 Total change]]","v":5252},{"$f":"Dataset[[#This Row],[2029/30 Baseline]]+Dataset[[#This Row],[2029/30 Total change]]","v":5410}]
["NAT|Non-transfer","30|Social contributions","2027_28","MTEC2027",30,1,1,32522,2,"30","01","01","032522","000002","30|01|01|000002","01","01","01","02","02","01|01|01|02|02","National","Communications and Digital Technologies","Administration","Ministry","Non-transfer","Current","Current payments","Compensation of employees","Social contributions","Social contributions","Economic development","Economic regulation and infrastructure","NAT",619,663,658,1539,809,809,687,850,883,1246,1284,null,null,null,null,null,null,null,null,null,null,null,null,null,null,null,null,null,null,null,null,null,null,null,null,null,null,null,null,null,null,null,null,null,null,{"$f":"Dataset[[#This Row],[2027/28 From - Spending review Topic 1]]+Dataset[[#This Row],[2027/28 From - Spending review Topic 2]]+Dataset[[#This Row],[2027/28 From - Spending review Topic 3]]+Dataset[[#This Row],[2027/28 From - Spending review Topic 4]]+Dataset[[#This Row],[2027/28 From - Other reallocations]]","v":0},{"$f":"Dataset[[#This Row],[2028/29 From - Spending review Topic 1]]+Dataset[[#This Row],[2028/29 From - Spending review Topic 2]]+Dataset[[#This Row],[2028/29 From - Spending review Topic 3]]+Dataset[[#This Row],[2028/29 From - Spending review Topic 4]]+Dataset[[#This Row],[2028/29 From - Other reallocations]]","v":0},{"$f":"Dataset[[#This Row],[2029/30 From - Spending review Topic 1]]+Dataset[[#This Row],[2029/30 From - Spending review Topic 2]]+Dataset[[#This Row],[2029/30 From - Spending review Topic 3]]+Dataset[[#This Row],[2029/30 From - Spending review Topic 4]]+Dataset[[#This Row],[2029/30 From - Other reallocations]]","v":0},{"$f":"Dataset[[#This Row],[2027/28 To - Spending review Topic 1]]+Dataset[[#This Row],[2027/28 To - Spending review Topic 2]]+Dataset[[#This Row],[2027/28 To - Spending review Topic 3]]+Dataset[[#This Row],[2027/28 To - Spending review Topic 4]]+Dataset[[#This Row],[2027/28 To - Other reallocations]]","v":0},{"$f":"Dataset[[#This Row],[2028/29 To - Spending review Topic 1]]+Dataset[[#This Row],[2028/29 To - Spending review Topic 2]]+Dataset[[#This Row],[2028/29 To - Spending review Topic 3]]+Dataset[[#This Row],[2028/29 To - Spending review Topic 4]]+Dataset[[#This Row],[2028/29 To - Other reallocations]]","v":0},{"$f":"Dataset[[#This Row],[2029/30 To - Spending review Topic 1]]+Dataset[[#This Row],[2029/30 To - Spending review Topic 2]]+Dataset[[#This Row],[2029/30 To - Spending review Topic 3]]+Dataset[[#This Row],[2029/30 To - Spending review Topic 4]]+Dataset[[#This Row],[2029/30 To - Other reallocations]]","v":0},{"$f":"Dataset[[#This Row],[2027/28 Targeted savings]]+Dataset[[#This Row],[2027/28 From - Total]]","v":0},{"$f":"Dataset[[#This Row],[2028/29 Targeted savings]]+Dataset[[#This Row],[2028/29 From - Total]]","v":0},{"$f":"Dataset[[#This Row],[2029/30 Targeted savings]]+Dataset[[#This Row],[2029/30 From - Total]]","v":0},{"$f":"Dataset[[#This Row],[2026/27 Targeted savings]]","v":0},{"$f":"SUM(Dataset[[#This Row],[2027/28 Targeted savings]],Dataset[[#This Row],[2027/28 From - Total]],Dataset[[#This Row],[2027/28 To - Total]])","v":0},{"$f":"SUM(Dataset[[#This Row],[2028/29 Targeted savings]],Dataset[[#This Row],[2028/29 From - Total]],Dataset[[#This Row],[2028/29 To - Total]])","v":0},{"$f":"SUM(Dataset[[#This Row],[2029/30 Targeted savings]],Dataset[[#This Row],[2029/30 From - Total]],Dataset[[#This Row],[2029/30 To - Total]])","v":0},{"$f":"Dataset[[#This Row],[2026/27 Baseline]]+Dataset[[#This Row],[2026/27 Total change]]","v":850},{"$f":"Dataset[[#This Row],[2027/28 Baseline]]+Dataset[[#This Row],[2027/28 Total change]]","v":883},{"$f":"Dataset[[#This Row],[2028/29 Baseline]]+Dataset[[#This Row],[2028/29 Total change]]","v":1246},{"$f":"Dataset[[#This Row],[2029/30 Baseline]]+Dataset[[#This Row],[2029/30 Total change]]","v":1284}]
["NAT|Non-transfer item","30|Administrative fees","2027_28","MTEC2027",30,1,1,32523,3,"30","01","01","032523","000003","30|01|01|000003","01","01","02","03","03","01|01|02|03|03","National","Communications and Digital Technologies","Administration","Ministry","Non-transfer item","Current","Current payments","Goods and services","Administrative fees","Administrative fees","Economic development","Economic regulation and infrastructure","NAT",0,0,0,0,0,0,0,0,0,0,0,null,null,null,null,null,null,null,null,null,null,null,null,null,null,null,null,null,null,null,null,null,null,null,null,null,null,null,null,null,null,null,null,null,null,{"$f":"Dataset[[#This Row],[2027/28 From - Spending review Topic 1]]+Dataset[[#This Row],[2027/28 From - Spending review Topic 2]]+Dataset[[#This Row],[2027/28 From - Spending review Topic 3]]+Dataset[[#This Row],[2027/28 From - Spending review Topic 4]]+Dataset[[#This Row],[2027/28 From - Other reallocations]]","v":0},{"$f":"Dataset[[#This Row],[2028/29 From - Spending review Topic 1]]+Dataset[[#This Row],[2028/29 From - Spending review Topic 2]]+Dataset[[#This Row],[2028/29 From - Spending review Topic 3]]+Dataset[[#This Row],[2028/29 From - Spending review Topic 4]]+Dataset[[#This Row],[2028/29 From - Other reallocations]]","v":0},{"$f":"Dataset[[#This Row],[2029/30 From - Spending review Topic 1]]+Dataset[[#This Row],[2029/30 From - Spending review Topic 2]]+Dataset[[#This Row],[2029/30 From - Spending review Topic 3]]+Dataset[[#This Row],[2029/30 From - Spending review Topic 4]]+Dataset[[#This Row],[2029/30 From - Other reallocations]]","v":0},{"$f":"Dataset[[#This Row],[2027/28 To - Spending review Topic 1]]+Dataset[[#This Row],[2027/28 To - Spending review Topic 2]]+Dataset[[#This Row],[2027/28 To - Spending review Topic 3]]+Dataset[[#This Row],[2027/28 To - Spending review Topic 4]]+Dataset[[#This Row],[2027/28 To - Other reallocations]]","v":0},{"$f":"Dataset[[#This Row],[2028/29 To - Spending review Topic 1]]+Dataset[[#This Row],[2028/29 To - Spending review Topic 2]]+Dataset[[#This Row],[2028/29 To - Spending review Topic 3]]+Dataset[[#This Row],[2028/29 To - Spending review Topic 4]]+Dataset[[#This Row],[2028/29 To - Other reallocations]]","v":0},{"$f":"Dataset[[#This Row],[2029/30 To - Spending review Topic 1]]+Dataset[[#This Row],[2029/30 To - Spending review Topic 2]]+Dataset[[#This Row],[2029/30 To - Spending review Topic 3]]+Dataset[[#This Row],[2029/30 To - Spending review Topic 4]]+Dataset[[#This Row],[2029/30 To - Other reallocations]]","v":0},{"$f":"Dataset[[#This Row],[2027/28 Targeted savings]]+Dataset[[#This Row],[2027/28 From - Total]]","v":0},{"$f":"Dataset[[#This Row],[2028/29 Targeted savings]]+Dataset[[#This Row],[2028/29 From - Total]]","v":0},{"$f":"Dataset[[#This Row],[2029/30 Targeted savings]]+Dataset[[#This Row],[2029/30 From - Total]]","v":0},{"$f":"Dataset[[#This Row],[2026/27 Targeted savings]]","v":0},{"$f":"SUM(Dataset[[#This Row],[2027/28 Targeted savings]],Dataset[[#This Row],[2027/28 From - Total]],Dataset[[#This Row],[2027/28 To - Total]])","v":0},{"$f":"SUM(Dataset[[#This Row],[2028/29 Targeted savings]],Dataset[[#This Row],[2028/29 From - Total]],Dataset[[#This Row],[2028/29 To - Total]])","v":0},{"$f":"SUM(Dataset[[#This Row],[2029/30 Targeted savings]],Dataset[[#This Row],[2029/30 From - Total]],Dataset[[#This Row],[2029/30 To - Total]])","v":0},{"$f":"Dataset[[#This Row],[2026/27 Baseline]]+Dataset[[#This Row],[2026/27 Total change]]","v":0},{"$f":"Dataset[[#This Row],[2027/28 Baseline]]+Dataset[[#This Row],[2027/28 Total change]]","v":0},{"$f":"Dataset[[#This Row],[2028/29 Baseline]]+Dataset[[#This Row],[2028/29 Total change]]","v":0},{"$f":"Dataset[[#This Row],[2029/30 Baseline]]+Dataset[[#This Row],[2029/30 Total change]]","v":0}]
["NAT|Non-transfer item","30|Advertising","2027_28","MTEC2027",30,1,1,32524,4,"30","01","01","032524","000004","30|01|01|000004","01","01","02","04","04","01|01|02|04|04","National","Communications and Digital Technologies","Administration","Ministry","Non-transfer item","Current","Current payments","Goods and services","Advertising","Advertising","Economic development","Economic regulation and infrastructure","NAT",0,0,0,0,0,0,0,0,0,0,0,null,null,null,null,null,null,null,null,null,null,null,null,null,null,null,null,null,null,null,null,null,null,null,null,null,null,null,null,null,null,null,null,null,null,{"$f":"Dataset[[#This Row],[2027/28 From - Spending review Topic 1]]+Dataset[[#This Row],[2027/28 From - Spending review Topic 2]]+Dataset[[#This Row],[2027/28 From - Spending review Topic 3]]+Dataset[[#This Row],[2027/28 From - Spending review Topic 4]]+Dataset[[#This Row],[2027/28 From - Other reallocations]]","v":0},{"$f":"Dataset[[#This Row],[2028/29 From - Spending review Topic 1]]+Dataset[[#This Row],[2028/29 From - Spending review Topic 2]]+Dataset[[#This Row],[2028/29 From - Spending review Topic 3]]+Dataset[[#This Row],[2028/29 From - Spending review Topic 4]]+Dataset[[#This Row],[2028/29 From - Other reallocations]]","v":0},{"$f":"Dataset[[#This Row],[2029/30 From - Spending review Topic 1]]+Dataset[[#This Row],[2029/30 From - Spending review Topic 2]]+Dataset[[#This Row],[2029/30 From - Spending review Topic 3]]+Dataset[[#This Row],[2029/30 From - Spending review Topic 4]]+Dataset[[#This Row],[2029/30 From - Other reallocations]]","v":0},{"$f":"Dataset[[#This Row],[2027/28 To - Spending review Topic 1]]+Dataset[[#This Row],[2027/28 To - Spending review Topic 2]]+Dataset[[#This Row],[2027/28 To - Spending review Topic 3]]+Dataset[[#This Row],[2027/28 To - Spending review Topic 4]]+Dataset[[#This Row],[2027/28 To - Other reallocations]]","v":0},{"$f":"Dataset[[#This Row],[2028/29 To - Spending review Topic 1]]+Dataset[[#This Row],[2028/29 To - Spending review Topic 2]]+Dataset[[#This Row],[2028/29 To - Spending review Topic 3]]+Dataset[[#This Row],[2028/29 To - Spending review Topic 4]]+Dataset[[#This Row],[2028/29 To - Other reallocations]]","v":0},{"$f":"Dataset[[#This Row],[2029/30 To - Spending review Topic 1]]+Dataset[[#This Row],[2029/30 To - Spending review Topic 2]]+Dataset[[#This Row],[2029/30 To - Spending review Topic 3]]+Dataset[[#This Row],[2029/30 To - Spending review Topic 4]]+Dataset[[#This Row],[2029/30 To - Other reallocations]]","v":0},{"$f":"Dataset[[#This Row],[2027/28 Targeted savings]]+Dataset[[#This Row],[2027/28 From - Total]]","v":0},{"$f":"Dataset[[#This Row],[2028/29 Targeted savings]]+Dataset[[#This Row],[2028/29 From - Total]]","v":0},{"$f":"Dataset[[#This Row],[2029/30 Targeted savings]]+Dataset[[#This Row],[2029/30 From - Total]]","v":0},{"$f":"Dataset[[#This Row],[2026/27 Targeted savings]]","v":0},{"$f":"SUM(Dataset[[#This Row],[2027/28 Targeted savings]],Dataset[[#This Row],[2027/28 From - Total]],Dataset[[#This Row],[2027/28 To - Total]])","v":0},{"$f":"SUM(Dataset[[#This Row],[2028/29 Targeted savings]],Dataset[[#This Row],[2028/29 From - Total]],Dataset[[#This Row],[2028/29 To - Total]])","v":0},{"$f":"SUM(Dataset[[#This Row],[2029/30 Targeted savings]],Dataset[[#This Row],[2029/30 From - Total]],Dataset[[#This Row],[2029/30 To - Total]])","v":0},{"$f":"Dataset[[#This Row],[2026/27 Baseline]]+Dataset[[#This Row],[2026/27 Total change]]","v":0},{"$f":"Dataset[[#This Row],[2027/28 Baseline]]+Dataset[[#This Row],[2027/28 Total change]]","v":0},{"$f":"Dataset[[#This Row],[2028/29 Baseline]]+Dataset[[#This Row],[2028/29 Total change]]","v":0},{"$f":"Dataset[[#This Row],[2029/30 Baseline]]+Dataset[[#This Row],[2029/30 Total change]]","v":0}]
["NAT|Non-transfer item","30|Minor assets","2027_28","MTEC2027",30,1,1,32525,5,"30","01","01","032525","000005","30|01|01|000005","01","01","02","05","05","01|01|02|05|05","National","Communications and Digital Technologies","Administration","Ministry","Non-transfer item","Current","Current payments","Goods and services","Minor assets","Minor assets","Economic development","Economic regulation and infrastructure","NAT",0,0,0,0,0,0,0,0,0,0,0,null,null,null,null,null,null,null,null,null,null,null,null,null,null,null,null,null,null,null,null,null,null,null,null,null,null,null,null,null,null,null,null,null,null,{"$f":"Dataset[[#This Row],[2027/28 From - Spending review Topic 1]]+Dataset[[#This Row],[2027/28 From - Spending review Topic 2]]+Dataset[[#This Row],[2027/28 From - Spending review Topic 3]]+Dataset[[#This Row],[2027/28 From - Spending review Topic 4]]+Dataset[[#This Row],[2027/28 From - Other reallocations]]","v":0},{"$f":"Dataset[[#This Row],[2028/29 From - Spending review Topic 1]]+Dataset[[#This Row],[2028/29 From - Spending review Topic 2]]+Dataset[[#This Row],[2028/29 From - Spending review Topic 3]]+Dataset[[#This Row],[2028/29 From - Spending review Topic 4]]+Dataset[[#This Row],[2028/29 From - Other reallocations]]","v":0},{"$f":"Dataset[[#This Row],[2029/30 From - Spending review Topic 1]]+Dataset[[#This Row],[2029/30 From - Spending review Topic 2]]+Dataset[[#This Row],[2029/30 From - Spending review Topic 3]]+Dataset[[#This Row],[2029/30 From - Spending review Topic 4]]+Dataset[[#This Row],[2029/30 From - Other reallocations]]","v":0},{"$f":"Dataset[[#This Row],[2027/28 To - Spending review Topic 1]]+Dataset[[#This Row],[2027/28 To - Spending review Topic 2]]+Dataset[[#This Row],[2027/28 To - Spending review Topic 3]]+Dataset[[#This Row],[2027/28 To - Spending review Topic 4]]+Dataset[[#This Row],[2027/28 To - Other reallocations]]","v":0},{"$f":"Dataset[[#This Row],[2028/29 To - Spending review Topic 1]]+Dataset[[#This Row],[2028/29 To - Spending review Topic 2]]+Dataset[[#This Row],[2028/29 To - Spending review Topic 3]]+Dataset[[#This Row],[2028/29 To - Spending review Topic 4]]+Dataset[[#This Row],[2028/29 To - Other reallocations]]","v":0},{"$f":"Dataset[[#This Row],[2029/30 To - Spending review Topic 1]]+Dataset[[#This Row],[2029/30 To - Spending review Topic 2]]+Dataset[[#This Row],[2029/30 To - Spending review Topic 3]]+Dataset[[#This Row],[2029/30 To - Spending review Topic 4]]+Dataset[[#This Row],[2029/30 To - Other reallocations]]","v":0},{"$f":"Dataset[[#This Row],[2027/28 Targeted savings]]+Dataset[[#This Row],[2027/28 From - Total]]","v":0},{"$f":"Dataset[[#This Row],[2028/29 Targeted savings]]+Dataset[[#This Row],[2028/29 From - Total]]","v":0},{"$f":"Dataset[[#This Row],[2029/30 Targeted savings]]+Dataset[[#This Row],[2029/30 From - Total]]","v":0},{"$f":"Dataset[[#This Row],[2026/27 Targeted savings]]","v":0},{"$f":"SUM(Dataset[[#This Row],[2027/28 Targeted savings]],Dataset[[#This Row],[2027/28 From - Total]],Dataset[[#This Row],[2027/28 To - Total]])","v":0},{"$f":"SUM(Dataset[[#This Row],[2028/29 Targeted savings]],Dataset[[#This Row],[2028/29 From - Total]],Dataset[[#This Row],[2028/29 To - Total]])","v":0},{"$f":"SUM(Dataset[[#This Row],[2029/30 Targeted savings]],Dataset[[#This Row],[2029/30 From - Total]],Dataset[[#This Row],[2029/30 To - Total]])","v":0},{"$f":"Dataset[[#This Row],[2026/27 Baseline]]+Dataset[[#This Row],[2026/27 Total change]]","v":0},{"$f":"Dataset[[#This Row],[2027/28 Baseline]]+Dataset[[#This Row],[2027/28 Total change]]","v":0},{"$f":"Dataset[[#This Row],[2028/29 Baseline]]+Dataset[[#This Row],[2028/29 Total change]]","v":0},{"$f":"Dataset[[#This Row],[2029/30 Baseline]]+Dataset[[#This Row],[2029/30 Total change]]","v":0}]
["NAT|Non-transfer item","30|Audit costs: External","2027_28","MTEC2027",30,1,1,32526,6,"30","01","01","032526","000006","30|01|01|000006","01","01","02","06","06","01|01|02|06|06","National","Communications and Digital Technologies","Administration","Ministry","Non-transfer item","Current","Current payments","Goods and services","Audit costs: External","Audit costs: External","Economic development","Economic regulation and infrastructure","NAT",0,0,0,0,0,0,0,0,0,0,0,null,null,null,null,null,null,null,null,null,null,null,null,null,null,null,null,null,null,null,null,null,null,null,null,null,null,null,null,null,null,null,null,null,null,{"$f":"Dataset[[#This Row],[2027/28 From - Spending review Topic 1]]+Dataset[[#This Row],[2027/28 From - Spending review Topic 2]]+Dataset[[#This Row],[2027/28 From - Spending review Topic 3]]+Dataset[[#This Row],[2027/28 From - Spending review Topic 4]]+Dataset[[#This Row],[2027/28 From - Other reallocations]]","v":0},{"$f":"Dataset[[#This Row],[2028/29 From - Spending review Topic 1]]+Dataset[[#This Row],[2028/29 From - Spending review Topic 2]]+Dataset[[#This Row],[2028/29 From - Spending review Topic 3]]+Dataset[[#This Row],[2028/29 From - Spending review Topic 4]]+Dataset[[#This Row],[2028/29 From - Other reallocations]]","v":0},{"$f":"Dataset[[#This Row],[2029/30 From - Spending review Topic 1]]+Dataset[[#This Row],[2029/30 From - Spending review Topic 2]]+Dataset[[#This Row],[2029/30 From - Spending review Topic 3]]+Dataset[[#This Row],[2029/30 From - Spending review Topic 4]]+Dataset[[#This Row],[2029/30 From - Other reallocations]]","v":0},{"$f":"Dataset[[#This Row],[2027/28 To - Spending review Topic 1]]+Dataset[[#This Row],[2027/28 To - Spending review Topic 2]]+Dataset[[#This Row],[2027/28 To - Spending review Topic 3]]+Dataset[[#This Row],[2027/28 To - Spending review Topic 4]]+Dataset[[#This Row],[2027/28 To - Other reallocations]]","v":0},{"$f":"Dataset[[#This Row],[2028/29 To - Spending review Topic 1]]+Dataset[[#This Row],[2028/29 To - Spending review Topic 2]]+Dataset[[#This Row],[2028/29 To - Spending review Topic 3]]+Dataset[[#This Row],[2028/29 To - Spending review Topic 4]]+Dataset[[#This Row],[2028/29 To - Other reallocations]]","v":0},{"$f":"Dataset[[#This Row],[2029/30 To - Spending review Topic 1]]+Dataset[[#This Row],[2029/30 To - Spending review Topic 2]]+Dataset[[#This Row],[2029/30 To - Spending review Topic 3]]+Dataset[[#This Row],[2029/30 To - Spending review Topic 4]]+Dataset[[#This Row],[2029/30 To - Other reallocations]]","v":0},{"$f":"Dataset[[#This Row],[2027/28 Targeted savings]]+Dataset[[#This Row],[2027/28 From - Total]]","v":0},{"$f":"Dataset[[#This Row],[2028/29 Targeted savings]]+Dataset[[#This Row],[2028/29 From - Total]]","v":0},{"$f":"Dataset[[#This Row],[2029/30 Targeted savings]]+Dataset[[#This Row],[2029/30 From - Total]]","v":0},{"$f":"Dataset[[#This Row],[2026/27 Targeted savings]]","v":0},{"$f":"SUM(Dataset[[#This Row],[2027/28 Targeted savings]],Dataset[[#This Row],[2027/28 From - Total]],Dataset[[#This Row],[2027/28 To - Total]])","v":0},{"$f":"SUM(Dataset[[#This Row],[2028/29 Targeted savings]],Dataset[[#This Row],[2028/29 From - Total]],Dataset[[#This Row],[2028/29 To - Total]])","v":0},{"$f":"SUM(Dataset[[#This Row],[2029/30 Targeted savings]],Dataset[[#This Row],[2029/30 From - Total]],Dataset[[#This Row],[2029/30 To - Total]])","v":0},{"$f":"Dataset[[#This Row],[2026/27 Baseline]]+Dataset[[#This Row],[2026/27 Total change]]","v":0},{"$f":"Dataset[[#This Row],[2027/28 Baseline]]+Dataset[[#This Row],[2027/28 Total change]]","v":0},{"$f":"Dataset[[#This Row],[2028/29 Baseline]]+Dataset[[#This Row],[2028/29 Total change]]","v":0},{"$f":"Dataset[[#This Row],[2029/30 Baseline]]+Dataset[[#This Row],[2029/30 Total change]]","v":0}]
["NAT|Non-transfer item","30|Bursaries: Employees","2027_28","MTEC2027",30,1,1,32527,7,"30","01","01","032527","000007","30|01|01|000007","01","01","02","07","07","01|01|02|07|07","National","Communications and Digital Technologies","Administration","Ministry","Non-transfer item","Current","Current payments","Goods and services","Bursaries: Employees","Bursaries: Employees","Economic development","Economic regulation and infrastructure","NAT",0,0,0,0,0,0,0,0,0,0,0,null,null,null,null,null,null,null,null,null,null,null,null,null,null,null,null,null,null,null,null,null,null,null,null,null,null,null,null,null,null,null,null,null,null,{"$f":"Dataset[[#This Row],[2027/28 From - Spending review Topic 1]]+Dataset[[#This Row],[2027/28 From - Spending review Topic 2]]+Dataset[[#This Row],[2027/28 From - Spending review Topic 3]]+Dataset[[#This Row],[2027/28 From - Spending review Topic 4]]+Dataset[[#This Row],[2027/28 From - Other reallocations]]","v":0},{"$f":"Dataset[[#This Row],[2028/29 From - Spending review Topic 1]]+Dataset[[#This Row],[2028/29 From - Spending review Topic 2]]+Dataset[[#This Row],[2028/29 From - Spending review Topic 3]]+Dataset[[#This Row],[2028/29 From - Spending review Topic 4]]+Dataset[[#This Row],[2028/29 From - Other reallocations]]","v":0},{"$f":"Dataset[[#This Row],[2029/30 From - Spending review Topic 1]]+Dataset[[#This Row],[2029/30 From - Spending review Topic 2]]+Dataset[[#This Row],[2029/30 From - Spending review Topic 3]]+Dataset[[#This Row],[2029/30 From - Spending review Topic 4]]+Dataset[[#This Row],[2029/30 From - Other reallocations]]","v":0},{"$f":"Dataset[[#This Row],[2027/28 To - Spending review Topic 1]]+Dataset[[#This Row],[2027/28 To - Spending review Topic 2]]+Dataset[[#This Row],[2027/28 To - Spending review Topic 3]]+Dataset[[#This Row],[2027/28 To - Spending review Topic 4]]+Dataset[[#This Row],[2027/28 To - Other reallocations]]","v":0},{"$f":"Dataset[[#This Row],[2028/29 To - Spending review Topic 1]]+Dataset[[#This Row],[2028/29 To - Spending review Topic 2]]+Dataset[[#This Row],[2028/29 To - Spending review Topic 3]]+Dataset[[#This Row],[2028/29 To - Spending review Topic 4]]+Dataset[[#This Row],[2028/29 To - Other reallocations]]","v":0},{"$f":"Dataset[[#This Row],[2029/30 To - Spending review Topic 1]]+Dataset[[#This Row],[2029/30 To - Spending review Topic 2]]+Dataset[[#This Row],[2029/30 To - Spending review Topic 3]]+Dataset[[#This Row],[2029/30 To - Spending review Topic 4]]+Dataset[[#This Row],[2029/30 To - Other reallocations]]","v":0},{"$f":"Dataset[[#This Row],[2027/28 Targeted savings]]+Dataset[[#This Row],[2027/28 From - Total]]","v":0},{"$f":"Dataset[[#This Row],[2028/29 Targeted savings]]+Dataset[[#This Row],[2028/29 From - Total]]","v":0},{"$f":"Dataset[[#This Row],[2029/30 Targeted savings]]+Dataset[[#This Row],[2029/30 From - Total]]","v":0},{"$f":"Dataset[[#This Row],[2026/27 Targeted savings]]","v":0},{"$f":"SUM(Dataset[[#This Row],[2027/28 Targeted savings]],Dataset[[#This Row],[2027/28 From - Total]],Dataset[[#This Row],[2027/28 To - Total]])","v":0},{"$f":"SUM(Dataset[[#This Row],[2028/29 Targeted savings]],Dataset[[#This Row],[2028/29 From - Total]],Dataset[[#This Row],[2028/29 To - Total]])","v":0},{"$f":"SUM(Dataset[[#This Row],[2029/30 Targeted savings]],Dataset[[#This Row],[2029/30 From - Total]],Dataset[[#This Row],[2029/30 To - Total]])","v":0},{"$f":"Dataset[[#This Row],[2026/27 Baseline]]+Dataset[[#This Row],[2026/27 Total change]]","v":0},{"$f":"Dataset[[#This Row],[2027/28 Baseline]]+Dataset[[#This Row],[2027/28 Total change]]","v":0},{"$f":"Dataset[[#This Row],[2028/29 Baseline]]+Dataset[[#This Row],[2028/29 Total change]]","v":0},{"$f":"Dataset[[#This Row],[2029/30 Baseline]]+Dataset[[#This Row],[2029/30 Total change]]","v":0}]
["NAT|Non-transfer item","30|Catering: Departmental activities","2027_28","MTEC2027",30,1,1,32528,8,"30","01","01","032528","000008","30|01|01|000008","01","01","02","08","08","01|01|02|08|08","National","Communications and Digital Technologies","Administration","Ministry","Non-transfer item","Current","Current payments","Goods and services","Catering: Departmental activities","Catering: Departmental activities","Economic development","Economic regulation and infrastructure","NAT",0,0,0,0,0,0,0,0,0,0,0,null,null,null,null,null,null,null,null,null,null,null,null,null,null,null,null,null,null,null,null,null,null,null,null,null,null,null,null,null,null,null,null,null,null,{"$f":"Dataset[[#This Row],[2027/28 From - Spending review Topic 1]]+Dataset[[#This Row],[2027/28 From - Spending review Topic 2]]+Dataset[[#This Row],[2027/28 From - Spending review Topic 3]]+Dataset[[#This Row],[2027/28 From - Spending review Topic 4]]+Dataset[[#This Row],[2027/28 From - Other reallocations]]","v":0},{"$f":"Dataset[[#This Row],[2028/29 From - Spending review Topic 1]]+Dataset[[#This Row],[2028/29 From - Spending review Topic 2]]+Dataset[[#This Row],[2028/29 From - Spending review Topic 3]]+Dataset[[#This Row],[2028/29 From - Spending review Topic 4]]+Dataset[[#This Row],[2028/29 From - Other reallocations]]","v":0},{"$f":"Dataset[[#This Row],[2029/30 From - Spending review Topic 1]]+Dataset[[#This Row],[2029/30 From - Spending review Topic 2]]+Dataset[[#This Row],[2029/30 From - Spending review Topic 3]]+Dataset[[#This Row],[2029/30 From - Spending review Topic 4]]+Dataset[[#This Row],[2029/30 From - Other reallocations]]","v":0},{"$f":"Dataset[[#This Row],[2027/28 To - Spending review Topic 1]]+Dataset[[#This Row],[2027/28 To - Spending review Topic 2]]+Dataset[[#This Row],[2027/28 To - Spending review Topic 3]]+Dataset[[#This Row],[2027/28 To - Spending review Topic 4]]+Dataset[[#This Row],[2027/28 To - Other reallocations]]","v":0},{"$f":"Dataset[[#This Row],[2028/29 To - Spending review Topic 1]]+Dataset[[#This Row],[2028/29 To - Spending review Topic 2]]+Dataset[[#This Row],[2028/29 To - Spending review Topic 3]]+Dataset[[#This Row],[2028/29 To - Spending review Topic 4]]+Dataset[[#This Row],[2028/29 To - Other reallocations]]","v":0},{"$f":"Dataset[[#This Row],[2029/30 To - Spending review Topic 1]]+Dataset[[#This Row],[2029/30 To - Spending review Topic 2]]+Dataset[[#This Row],[2029/30 To - Spending review Topic 3]]+Dataset[[#This Row],[2029/30 To - Spending review Topic 4]]+Dataset[[#This Row],[2029/30 To - Other reallocations]]","v":0},{"$f":"Dataset[[#This Row],[2027/28 Targeted savings]]+Dataset[[#This Row],[2027/28 From - Total]]","v":0},{"$f":"Dataset[[#This Row],[2028/29 Targeted savings]]+Dataset[[#This Row],[2028/29 From - Total]]","v":0},{"$f":"Dataset[[#This Row],[2029/30 Targeted savings]]+Dataset[[#This Row],[2029/30 From - Total]]","v":0},{"$f":"Dataset[[#This Row],[2026/27 Targeted savings]]","v":0},{"$f":"SUM(Dataset[[#This Row],[2027/28 Targeted savings]],Dataset[[#This Row],[2027/28 From - Total]],Dataset[[#This Row],[2027/28 To - Total]])","v":0},{"$f":"SUM(Dataset[[#This Row],[2028/29 Targeted savings]],Dataset[[#This Row],[2028/29 From - Total]],Dataset[[#This Row],[2028/29 To - Total]])","v":0},{"$f":"SUM(Dataset[[#This Row],[2029/30 Targeted savings]],Dataset[[#This Row],[2029/30 From - Total]],Dataset[[#This Row],[2029/30 To - Total]])","v":0},{"$f":"Dataset[[#This Row],[2026/27 Baseline]]+Dataset[[#This Row],[2026/27 Total change]]","v":0},{"$f":"Dataset[[#This Row],[2027/28 Baseline]]+Dataset[[#This Row],[2027/28 Total change]]","v":0},{"$f":"Dataset[[#This Row],[2028/29 Baseline]]+Dataset[[#This Row],[2028/29 Total change]]","v":0},{"$f":"Dataset[[#This Row],[2029/30 Baseline]]+Dataset[[#This Row],[2029/30 Total change]]","v":0}]
["NAT|Non-transfer item","30|Communication (G&S)","2027_28","MTEC2027",30,1,1,32529,9,"30","01","01","032529","000009","30|01|01|000009","01","01","02","09","09","01|01|02|09|09","National","Communications and Digital Technologies","Administration","Ministry","Non-transfer item","Current","Current payments","Goods and services","Communication (G&S)","Communication (G&S)","Economic development","Economic regulation and infrastructure","NAT",0,0,0,0,0,0,0,0,0,0,0,null,null,null,null,null,null,null,null,null,null,null,null,null,null,null,null,null,null,null,null,null,null,null,null,null,null,null,null,null,null,null,null,null,null,{"$f":"Dataset[[#This Row],[2027/28 From - Spending review Topic 1]]+Dataset[[#This Row],[2027/28 From - Spending review Topic 2]]+Dataset[[#This Row],[2027/28 From - Spending review Topic 3]]+Dataset[[#This Row],[2027/28 From - Spending review Topic 4]]+Dataset[[#This Row],[2027/28 From - Other reallocations]]","v":0},{"$f":"Dataset[[#This Row],[2028/29 From - Spending review Topic 1]]+Dataset[[#This Row],[2028/29 From - Spending review Topic 2]]+Dataset[[#This Row],[2028/29 From - Spending review Topic 3]]+Dataset[[#This Row],[2028/29 From - Spending review Topic 4]]+Dataset[[#This Row],[2028/29 From - Other reallocations]]","v":0},{"$f":"Dataset[[#This Row],[2029/30 From - Spending review Topic 1]]+Dataset[[#This Row],[2029/30 From - Spending review Topic 2]]+Dataset[[#This Row],[2029/30 From - Spending review Topic 3]]+Dataset[[#This Row],[2029/30 From - Spending review Topic 4]]+Dataset[[#This Row],[2029/30 From - Other reallocations]]","v":0},{"$f":"Dataset[[#This Row],[2027/28 To - Spending review Topic 1]]+Dataset[[#This Row],[2027/28 To - Spending review Topic 2]]+Dataset[[#This Row],[2027/28 To - Spending review Topic 3]]+Dataset[[#This Row],[2027/28 To - Spending review Topic 4]]+Dataset[[#This Row],[2027/28 To - Other reallocations]]","v":0},{"$f":"Dataset[[#This Row],[2028/29 To - Spending review Topic 1]]+Dataset[[#This Row],[2028/29 To - Spending review Topic 2]]+Dataset[[#This Row],[2028/29 To - Spending review Topic 3]]+Dataset[[#This Row],[2028/29 To - Spending review Topic 4]]+Dataset[[#This Row],[2028/29 To - Other reallocations]]","v":0},{"$f":"Dataset[[#This Row],[2029/30 To - Spending review Topic 1]]+Dataset[[#This Row],[2029/30 To - Spending review Topic 2]]+Dataset[[#This Row],[2029/30 To - Spending review Topic 3]]+Dataset[[#This Row],[2029/30 To - Spending review Topic 4]]+Dataset[[#This Row],[2029/30 To - Other reallocations]]","v":0},{"$f":"Dataset[[#This Row],[2027/28 Targeted savings]]+Dataset[[#This Row],[2027/28 From - Total]]","v":0},{"$f":"Dataset[[#This Row],[2028/29 Targeted savings]]+Dataset[[#This Row],[2028/29 From - Total]]","v":0},{"$f":"Dataset[[#This Row],[2029/30 Targeted savings]]+Dataset[[#This Row],[2029/30 From - Total]]","v":0},{"$f":"Dataset[[#This Row],[2026/27 Targeted savings]]","v":0},{"$f":"SUM(Dataset[[#This Row],[2027/28 Targeted savings]],Dataset[[#This Row],[2027/28 From - Total]],Dataset[[#This Row],[2027/28 To - Total]])","v":0},{"$f":"SUM(Dataset[[#This Row],[2028/29 Targeted savings]],Dataset[[#This Row],[2028/29 From - Total]],Dataset[[#This Row],[2028/29 To - Total]])","v":0},{"$f":"SUM(Dataset[[#This Row],[2029/30 Targeted savings]],Dataset[[#This Row],[2029/30 From - Total]],Dataset[[#This Row],[2029/30 To - Total]])","v":0},{"$f":"Dataset[[#This Row],[2026/27 Baseline]]+Dataset[[#This Row],[2026/27 Total change]]","v":0},{"$f":"Dataset[[#This Row],[2027/28 Baseline]]+Dataset[[#This Row],[2027/28 Total change]]","v":0},{"$f":"Dataset[[#This Row],[2028/29 Baseline]]+Dataset[[#This Row],[2028/29 Total change]]","v":0},{"$f":"Dataset[[#This Row],[2029/30 Baseline]]+Dataset[[#This Row],[2029/30 Total change]]","v":0}]
["NAT|Non-transfer item","30|Computer services","2027_28","MTEC2027",30,1,1,32530,10,"30","01","01","032530","000010","30|01|01|000010","01","01","02","10","10","01|01|02|10|10","National","Communications and Digital Technologies","Administration","Ministry","Non-transfer item","Current","Current payments","Goods and services","Computer services","Computer services","Economic development","Economic regulation and infrastructure","NAT",0,0,0,0,0,0,0,0,0,0,0,null,null,null,null,null,null,null,null,null,null,null,null,null,null,null,null,null,null,null,null,null,null,null,null,null,null,null,null,null,null,null,null,null,null,{"$f":"Dataset[[#This Row],[2027/28 From - Spending review Topic 1]]+Dataset[[#This Row],[2027/28 From - Spending review Topic 2]]+Dataset[[#This Row],[2027/28 From - Spending review Topic 3]]+Dataset[[#This Row],[2027/28 From - Spending review Topic 4]]+Dataset[[#This Row],[2027/28 From - Other reallocations]]","v":0},{"$f":"Dataset[[#This Row],[2028/29 From - Spending review Topic 1]]+Dataset[[#This Row],[2028/29 From - Spending review Topic 2]]+Dataset[[#This Row],[2028/29 From - Spending review Topic 3]]+Dataset[[#This Row],[2028/29 From - Spending review Topic 4]]+Dataset[[#This Row],[2028/29 From - Other reallocations]]","v":0},{"$f":"Dataset[[#This Row],[2029/30 From - Spending review Topic 1]]+Dataset[[#This Row],[2029/30 From - Spending review Topic 2]]+Dataset[[#This Row],[2029/30 From - Spending review Topic 3]]+Dataset[[#This Row],[2029/30 From - Spending review Topic 4]]+Dataset[[#This Row],[2029/30 From - Other reallocations]]","v":0},{"$f":"Dataset[[#This Row],[2027/28 To - Spending review Topic 1]]+Dataset[[#This Row],[2027/28 To - Spending review Topic 2]]+Dataset[[#This Row],[2027/28 To - Spending review Topic 3]]+Dataset[[#This Row],[2027/28 To - Spending review Topic 4]]+Dataset[[#This Row],[2027/28 To - Other reallocations]]","v":0},{"$f":"Dataset[[#This Row],[2028/29 To - Spending review Topic 1]]+Dataset[[#This Row],[2028/29 To - Spending review Topic 2]]+Dataset[[#This Row],[2028/29 To - Spending review Topic 3]]+Dataset[[#This Row],[2028/29 To - Spending review Topic 4]]+Dataset[[#This Row],[2028/29 To - Other reallocations]]","v":0},{"$f":"Dataset[[#This Row],[2029/30 To - Spending review Topic 1]]+Dataset[[#This Row],[2029/30 To - Spending review Topic 2]]+Dataset[[#This Row],[2029/30 To - Spending review Topic 3]]+Dataset[[#This Row],[2029/30 To - Spending review Topic 4]]+Dataset[[#This Row],[2029/30 To - Other reallocations]]","v":0},{"$f":"Dataset[[#This Row],[2027/28 Targeted savings]]+Dataset[[#This Row],[2027/28 From - Total]]","v":0},{"$f":"Dataset[[#This Row],[2028/29 Targeted savings]]+Dataset[[#This Row],[2028/29 From - Total]]","v":0},{"$f":"Dataset[[#This Row],[2029/30 Targeted savings]]+Dataset[[#This Row],[2029/30 From - Total]]","v":0},{"$f":"Dataset[[#This Row],[2026/27 Targeted savings]]","v":0},{"$f":"SUM(Dataset[[#This Row],[2027/28 Targeted savings]],Dataset[[#This Row],[2027/28 From - Total]],Dataset[[#This Row],[2027/28 To - Total]])","v":0},{"$f":"SUM(Dataset[[#This Row],[2028/29 Targeted savings]],Dataset[[#This Row],[2028/29 From - Total]],Dataset[[#This Row],[2028/29 To - Total]])","v":0},{"$f":"SUM(Dataset[[#This Row],[2029/30 Targeted savings]],Dataset[[#This Row],[2029/30 From - Total]],Dataset[[#This Row],[2029/30 To - Total]])","v":0},{"$f":"Dataset[[#This Row],[2026/27 Baseline]]+Dataset[[#This Row],[2026/27 Total change]]","v":0},{"$f":"Dataset[[#This Row],[2027/28 Baseline]]+Dataset[[#This Row],[2027/28 Total change]]","v":0},{"$f":"Dataset[[#This Row],[2028/29 Baseline]]+Dataset[[#This Row],[2028/29 Total change]]","v":0},{"$f":"Dataset[[#This Row],[2029/30 Baseline]]+Dataset[[#This Row],[2029/30 Total change]]","v":0}]
["NAT|Non-transfer item","30|Consultants: Business and advisory services","2027_28","MTEC2027",30,1,1,32531,11,"30","01","01","032531","000011","30|01|01|000011","01","01","02","11","11","01|01|02|11|11","National","Communications and Digital Technologies","Administration","Ministry","Non-transfer item","Current","Current payments","Goods and services","Consultants: Business and advisory services","Consultants: Business and advisory services","Economic development","Economic regulation and infrastructure","NAT",0,0,0,0,0,0,0,0,0,0,0,null,null,null,null,null,null,null,null,null,null,null,null,null,null,null,null,null,null,null,null,null,null,null,null,null,null,null,null,null,null,null,null,null,null,{"$f":"Dataset[[#This Row],[2027/28 From - Spending review Topic 1]]+Dataset[[#This Row],[2027/28 From - Spending review Topic 2]]+Dataset[[#This Row],[2027/28 From - Spending review Topic 3]]+Dataset[[#This Row],[2027/28 From - Spending review Topic 4]]+Dataset[[#This Row],[2027/28 From - Other reallocations]]","v":0},{"$f":"Dataset[[#This Row],[2028/29 From - Spending review Topic 1]]+Dataset[[#This Row],[2028/29 From - Spending review Topic 2]]+Dataset[[#This Row],[2028/29 From - Spending review Topic 3]]+Dataset[[#This Row],[2028/29 From - Spending review Topic 4]]+Dataset[[#This Row],[2028/29 From - Other reallocations]]","v":0},{"$f":"Dataset[[#This Row],[2029/30 From - Spending review Topic 1]]+Dataset[[#This Row],[2029/30 From - Spending review Topic 2]]+Dataset[[#This Row],[2029/30 From - Spending review Topic 3]]+Dataset[[#This Row],[2029/30 From - Spending review Topic 4]]+Dataset[[#This Row],[2029/30 From - Other reallocations]]","v":0},{"$f":"Dataset[[#This Row],[2027/28 To - Spending review Topic 1]]+Dataset[[#This Row],[2027/28 To - Spending review Topic 2]]+Dataset[[#This Row],[2027/28 To - Spending review Topic 3]]+Dataset[[#This Row],[2027/28 To - Spending review Topic 4]]+Dataset[[#This Row],[2027/28 To - Other reallocations]]","v":0},{"$f":"Dataset[[#This Row],[2028/29 To - Spending review Topic 1]]+Dataset[[#This Row],[2028/29 To - Spending review Topic 2]]+Dataset[[#This Row],[2028/29 To - Spending review Topic 3]]+Dataset[[#This Row],[2028/29 To - Spending review Topic 4]]+Dataset[[#This Row],[2028/29 To - Other reallocations]]","v":0},{"$f":"Dataset[[#This Row],[2029/30 To - Spending review Topic 1]]+Dataset[[#This Row],[2029/30 To - Spending review Topic 2]]+Dataset[[#This Row],[2029/30 To - Spending review Topic 3]]+Dataset[[#This Row],[2029/30 To - Spending review Topic 4]]+Dataset[[#This Row],[2029/30 To - Other reallocations]]","v":0},{"$f":"Dataset[[#This Row],[2027/28 Targeted savings]]+Dataset[[#This Row],[2027/28 From - Total]]","v":0},{"$f":"Dataset[[#This Row],[2028/29 Targeted savings]]+Dataset[[#This Row],[2028/29 From - Total]]","v":0},{"$f":"Dataset[[#This Row],[2029/30 Targeted savings]]+Dataset[[#This Row],[2029/30 From - Total]]","v":0},{"$f":"Dataset[[#This Row],[2026/27 Targeted savings]]","v":0},{"$f":"SUM(Dataset[[#This Row],[2027/28 Targeted savings]],Dataset[[#This Row],[2027/28 From - Total]],Dataset[[#This Row],[2027/28 To - Total]])","v":0},{"$f":"SUM(Dataset[[#This Row],[2028/29 Targeted savings]],Dataset[[#This Row],[2028/29 From - Total]],Dataset[[#This Row],[2028/29 To - Total]])","v":0},{"$f":"SUM(Dataset[[#This Row],[2029/30 Targeted savings]],Dataset[[#This Row],[2029/30 From - Total]],Dataset[[#This Row],[2029/30 To - Total]])","v":0},{"$f":"Dataset[[#This Row],[2026/27 Baseline]]+Dataset[[#This Row],[2026/27 Total change]]","v":0},{"$f":"Dataset[[#This Row],[2027/28 Baseline]]+Dataset[[#This Row],[2027/28 Total change]]","v":0},{"$f":"Dataset[[#This Row],[2028/29 Baseline]]+Dataset[[#This Row],[2028/29 Total change]]","v":0},{"$f":"Dataset[[#This Row],[2029/30 Baseline]]+Dataset[[#This Row],[2029/30 Total change]]","v":0}]
["NAT|Non-transfer item","30|Infrastructure and planning services","2027_28","MTEC2027",30,1,1,32532,12,"30","01","01","032532","000012","30|01|01|000012","01","01","02","12","12","01|01|02|12|12","National","Communications and Digital Technologies","Administration","Ministry","Non-transfer item","Current","Current payments","Goods and services","Infrastructure and planning services","Infrastructure and planning services","Economic development","Economic regulation and infrastructure","NAT",0,0,0,0,0,0,0,0,0,0,0,null,null,null,null,null,null,null,null,null,null,null,null,null,null,null,null,null,null,null,null,null,null,null,null,null,null,null,null,null,null,null,null,null,null,{"$f":"Dataset[[#This Row],[2027/28 From - Spending review Topic 1]]+Dataset[[#This Row],[2027/28 From - Spending review Topic 2]]+Dataset[[#This Row],[2027/28 From - Spending review Topic 3]]+Dataset[[#This Row],[2027/28 From - Spending review Topic 4]]+Dataset[[#This Row],[2027/28 From - Other reallocations]]","v":0},{"$f":"Dataset[[#This Row],[2028/29 From - Spending review Topic 1]]+Dataset[[#This Row],[2028/29 From - Spending review Topic 2]]+Dataset[[#This Row],[2028/29 From - Spending review Topic 3]]+Dataset[[#This Row],[2028/29 From - Spending review Topic 4]]+Dataset[[#This Row],[2028/29 From - Other reallocations]]","v":0},{"$f":"Dataset[[#This Row],[2029/30 From - Spending review Topic 1]]+Dataset[[#This Row],[2029/30 From - Spending review Topic 2]]+Dataset[[#This Row],[2029/30 From - Spending review Topic 3]]+Dataset[[#This Row],[2029/30 From - Spending review Topic 4]]+Dataset[[#This Row],[2029/30 From - Other reallocations]]","v":0},{"$f":"Dataset[[#This Row],[2027/28 To - Spending review Topic 1]]+Dataset[[#This Row],[2027/28 To - Spending review Topic 2]]+Dataset[[#This Row],[2027/28 To - Spending review Topic 3]]+Dataset[[#This Row],[2027/28 To - Spending review Topic 4]]+Dataset[[#This Row],[2027/28 To - Other reallocations]]","v":0},{"$f":"Dataset[[#This Row],[2028/29 To - Spending review Topic 1]]+Dataset[[#This Row],[2028/29 To - Spending review Topic 2]]+Dataset[[#This Row],[2028/29 To - Spending review Topic 3]]+Dataset[[#This Row],[2028/29 To - Spending review Topic 4]]+Dataset[[#This Row],[2028/29 To - Other reallocations]]","v":0},{"$f":"Dataset[[#This Row],[2029/30 To - Spending review Topic 1]]+Dataset[[#This Row],[2029/30 To - Spending review Topic 2]]+Dataset[[#This Row],[2029/30 To - Spending review Topic 3]]+Dataset[[#This Row],[2029/30 To - Spending review Topic 4]]+Dataset[[#This Row],[2029/30 To - Other reallocations]]","v":0},{"$f":"Dataset[[#This Row],[2027/28 Targeted savings]]+Dataset[[#This Row],[2027/28 From - Total]]","v":0},{"$f":"Dataset[[#This Row],[2028/29 Targeted savings]]+Dataset[[#This Row],[2028/29 From - Total]]","v":0},{"$f":"Dataset[[#This Row],[2029/30 Targeted savings]]+Dataset[[#This Row],[2029/30 From - Total]]","v":0},{"$f":"Dataset[[#This Row],[2026/27 Targeted savings]]","v":0},{"$f":"SUM(Dataset[[#This Row],[2027/28 Targeted savings]],Dataset[[#This Row],[2027/28 From - Total]],Dataset[[#This Row],[2027/28 To - Total]])","v":0},{"$f":"SUM(Dataset[[#This Row],[2028/29 Targeted savings]],Dataset[[#This Row],[2028/29 From - Total]],Dataset[[#This Row],[2028/29 To - Total]])","v":0},{"$f":"SUM(Dataset[[#This Row],[2029/30 Targeted savings]],Dataset[[#This Row],[2029/30 From - Total]],Dataset[[#This Row],[2029/30 To - Total]])","v":0},{"$f":"Dataset[[#This Row],[2026/27 Baseline]]+Dataset[[#This Row],[2026/27 Total change]]","v":0},{"$f":"Dataset[[#This Row],[2027/28 Baseline]]+Dataset[[#This Row],[2027/28 Total change]]","v":0},{"$f":"Dataset[[#This Row],[2028/29 Baseline]]+Dataset[[#This Row],[2028/29 Total change]]","v":0},{"$f":"Dataset[[#This Row],[2029/30 Baseline]]+Dataset[[#This Row],[2029/30 Total change]]","v":0}]
["NAT|Non-transfer item","30|Laboratory services","2027_28","MTEC2027",30,1,1,32533,13,"30","01","01","032533","000013","30|01|01|000013","01","01","02","13","13","01|01|02|13|13","National","Communications and Digital Technologies","Administration","Ministry","Non-transfer item","Current","Current payments","Goods and services","Laboratory services","Laboratory services","Economic development","Economic regulation and infrastructure","NAT",0,0,0,0,0,0,0,0,0,0,0,null,null,null,null,null,null,null,null,null,null,null,null,null,null,null,null,null,null,null,null,null,null,null,null,null,null,null,null,null,null,null,null,null,null,{"$f":"Dataset[[#This Row],[2027/28 From - Spending review Topic 1]]+Dataset[[#This Row],[2027/28 From - Spending review Topic 2]]+Dataset[[#This Row],[2027/28 From - Spending review Topic 3]]+Dataset[[#This Row],[2027/28 From - Spending review Topic 4]]+Dataset[[#This Row],[2027/28 From - Other reallocations]]","v":0},{"$f":"Dataset[[#This Row],[2028/29 From - Spending review Topic 1]]+Dataset[[#This Row],[2028/29 From - Spending review Topic 2]]+Dataset[[#This Row],[2028/29 From - Spending review Topic 3]]+Dataset[[#This Row],[2028/29 From - Spending review Topic 4]]+Dataset[[#This Row],[2028/29 From - Other reallocations]]","v":0},{"$f":"Dataset[[#This Row],[2029/30 From - Spending review Topic 1]]+Dataset[[#This Row],[2029/30 From - Spending review Topic 2]]+Dataset[[#This Row],[2029/30 From - Spending review Topic 3]]+Dataset[[#This Row],[2029/30 From - Spending review Topic 4]]+Dataset[[#This Row],[2029/30 From - Other reallocations]]","v":0},{"$f":"Dataset[[#This Row],[2027/28 To - Spending review Topic 1]]+Dataset[[#This Row],[2027/28 To - Spending review Topic 2]]+Dataset[[#This Row],[2027/28 To - Spending review Topic 3]]+Dataset[[#This Row],[2027/28 To - Spending review Topic 4]]+Dataset[[#This Row],[2027/28 To - Other reallocations]]","v":0},{"$f":"Dataset[[#This Row],[2028/29 To - Spending review Topic 1]]+Dataset[[#This Row],[2028/29 To - Spending review Topic 2]]+Dataset[[#This Row],[2028/29 To - Spending review Topic 3]]+Dataset[[#This Row],[2028/29 To - Spending review Topic 4]]+Dataset[[#This Row],[2028/29 To - Other reallocations]]","v":0},{"$f":"Dataset[[#This Row],[2029/30 To - Spending review Topic 1]]+Dataset[[#This Row],[2029/30 To - Spending review Topic 2]]+Dataset[[#This Row],[2029/30 To - Spending review Topic 3]]+Dataset[[#This Row],[2029/30 To - Spending review Topic 4]]+Dataset[[#This Row],[2029/30 To - Other reallocations]]","v":0},{"$f":"Dataset[[#This Row],[2027/28 Targeted savings]]+Dataset[[#This Row],[2027/28 From - Total]]","v":0},{"$f":"Dataset[[#This Row],[2028/29 Targeted savings]]+Dataset[[#This Row],[2028/29 From - Total]]","v":0},{"$f":"Dataset[[#This Row],[2029/30 Targeted savings]]+Dataset[[#This Row],[2029/30 From - Total]]","v":0},{"$f":"Dataset[[#This Row],[2026/27 Targeted savings]]","v":0},{"$f":"SUM(Dataset[[#This Row],[2027/28 Targeted savings]],Dataset[[#This Row],[2027/28 From - Total]],Dataset[[#This Row],[2027/28 To - Total]])","v":0},{"$f":"SUM(Dataset[[#This Row],[2028/29 Targeted savings]],Dataset[[#This Row],[2028/29 From - Total]],Dataset[[#This Row],[2028/29 To - Total]])","v":0},{"$f":"SUM(Dataset[[#This Row],[2029/30 Targeted savings]],Dataset[[#This Row],[2029/30 From - Total]],Dataset[[#This Row],[2029/30 To - Total]])","v":0},{"$f":"Dataset[[#This Row],[2026/27 Baseline]]+Dataset[[#This Row],[2026/27 Total change]]","v":0},{"$f":"Dataset[[#This Row],[2027/28 Baseline]]+Dataset[[#This Row],[2027/28 Total change]]","v":0},{"$f":"Dataset[[#This Row],[2028/29 Baseline]]+Dataset[[#This Row],[2028/29 Total change]]","v":0},{"$f":"Dataset[[#This Row],[2029/30 Baseline]]+Dataset[[#This Row],[2029/30 Total change]]","v":0}]
["NAT|Non-transfer item","30|Legal services (G&S)","2027_28","MTEC2027",30,1,1,32534,14,"30","01","01","032534","000014","30|01|01|000014","01","01","02","14","14","01|01|02|14|14","National","Communications and Digital Technologies","Administration","Ministry","Non-transfer item","Current","Current payments","Goods and services","Legal services (G&S)","Legal services (G&S)","Economic development","Economic regulation and infrastructure","NAT",0,0,0,0,0,0,0,0,0,0,0,null,null,null,null,null,null,null,null,null,null,null,null,null,null,null,null,null,null,null,null,null,null,null,null,null,null,null,null,null,null,null,null,null,null,{"$f":"Dataset[[#This Row],[2027/28 From - Spending review Topic 1]]+Dataset[[#This Row],[2027/28 From - Spending review Topic 2]]+Dataset[[#This Row],[2027/28 From - Spending review Topic 3]]+Dataset[[#This Row],[2027/28 From - Spending review Topic 4]]+Dataset[[#This Row],[2027/28 From - Other reallocations]]","v":0},{"$f":"Dataset[[#This Row],[2028/29 From - Spending review Topic 1]]+Dataset[[#This Row],[2028/29 From - Spending review Topic 2]]+Dataset[[#This Row],[2028/29 From - Spending review Topic 3]]+Dataset[[#This Row],[2028/29 From - Spending review Topic 4]]+Dataset[[#This Row],[2028/29 From - Other reallocations]]","v":0},{"$f":"Dataset[[#This Row],[2029/30 From - Spending review Topic 1]]+Dataset[[#This Row],[2029/30 From - Spending review Topic 2]]+Dataset[[#This Row],[2029/30 From - Spending review Topic 3]]+Dataset[[#This Row],[2029/30 From - Spending review Topic 4]]+Dataset[[#This Row],[2029/30 From - Other reallocations]]","v":0},{"$f":"Dataset[[#This Row],[2027/28 To - Spending review Topic 1]]+Dataset[[#This Row],[2027/28 To - Spending review Topic 2]]+Dataset[[#This Row],[2027/28 To - Spending review Topic 3]]+Dataset[[#This Row],[2027/28 To - Spending review Topic 4]]+Dataset[[#This Row],[2027/28 To - Other reallocations]]","v":0},{"$f":"Dataset[[#This Row],[2028/29 To - Spending review Topic 1]]+Dataset[[#This Row],[2028/29 To - Spending review Topic 2]]+Dataset[[#This Row],[2028/29 To - Spending review Topic 3]]+Dataset[[#This Row],[2028/29 To - Spending review Topic 4]]+Dataset[[#This Row],[2028/29 To - Other reallocations]]","v":0},{"$f":"Dataset[[#This Row],[2029/30 To - Spending review Topic 1]]+Dataset[[#This Row],[2029/30 To - Spending review Topic 2]]+Dataset[[#This Row],[2029/30 To - Spending review Topic 3]]+Dataset[[#This Row],[2029/30 To - Spending review Topic 4]]+Dataset[[#This Row],[2029/30 To - Other reallocations]]","v":0},{"$f":"Dataset[[#This Row],[2027/28 Targeted savings]]+Dataset[[#This Row],[2027/28 From - Total]]","v":0},{"$f":"Dataset[[#This Row],[2028/29 Targeted savings]]+Dataset[[#This Row],[2028/29 From - Total]]","v":0},{"$f":"Dataset[[#This Row],[2029/30 Targeted savings]]+Dataset[[#This Row],[2029/30 From - Total]]","v":0},{"$f":"Dataset[[#This Row],[2026/27 Targeted savings]]","v":0},{"$f":"SUM(Dataset[[#This Row],[2027/28 Targeted savings]],Dataset[[#This Row],[2027/28 From - Total]],Dataset[[#This Row],[2027/28 To - Total]])","v":0},{"$f":"SUM(Dataset[[#This Row],[2028/29 Targeted savings]],Dataset[[#This Row],[2028/29 From - Total]],Dataset[[#This Row],[2028/29 To - Total]])","v":0},{"$f":"SUM(Dataset[[#This Row],[2029/30 Targeted savings]],Dataset[[#This Row],[2029/30 From - Total]],Dataset[[#This Row],[2029/30 To - Total]])","v":0},{"$f":"Dataset[[#This Row],[2026/27 Baseline]]+Dataset[[#This Row],[2026/27 Total change]]","v":0},{"$f":"Dataset[[#This Row],[2027/28 Baseline]]+Dataset[[#This Row],[2027/28 Total change]]","v":0},{"$f":"Dataset[[#This Row],[2028/29 Baseline]]+Dataset[[#This Row],[2028/29 Total change]]","v":0},{"$f":"Dataset[[#This Row],[2029/30 Baseline]]+Dataset[[#This Row],[2029/30 Total change]]","v":0}]
["NAT|Non-transfer item","30|Science and technological services","2027_28","MTEC2027",30,1,1,32535,15,"30","01","01","032535","000015","30|01|01|000015","01","01","02","15","15","01|01|02|15|15","National","Communications and Digital Technologies","Administration","Ministry","Non-transfer item","Current","Current payments","Goods and services","Science and technological services","Science and technological services","Economic development","Economic regulation and infrastructure","NAT",0,0,0,0,0,0,0,0,0,0,0,null,null,null,null,null,null,null,null,null,null,null,null,null,null,null,null,null,null,null,null,null,null,null,null,null,null,null,null,null,null,null,null,null,null,{"$f":"Dataset[[#This Row],[2027/28 From - Spending review Topic 1]]+Dataset[[#This Row],[2027/28 From - Spending review Topic 2]]+Dataset[[#This Row],[2027/28 From - Spending review Topic 3]]+Dataset[[#This Row],[2027/28 From - Spending review Topic 4]]+Dataset[[#This Row],[2027/28 From - Other reallocations]]","v":0},{"$f":"Dataset[[#This Row],[2028/29 From - Spending review Topic 1]]+Dataset[[#This Row],[2028/29 From - Spending review Topic 2]]+Dataset[[#This Row],[2028/29 From - Spending review Topic 3]]+Dataset[[#This Row],[2028/29 From - Spending review Topic 4]]+Dataset[[#This Row],[2028/29 From - Other reallocations]]","v":0},{"$f":"Dataset[[#This Row],[2029/30 From - Spending review Topic 1]]+Dataset[[#This Row],[2029/30 From - Spending review Topic 2]]+Dataset[[#This Row],[2029/30 From - Spending review Topic 3]]+Dataset[[#This Row],[2029/30 From - Spending review Topic 4]]+Dataset[[#This Row],[2029/30 From - Other reallocations]]","v":0},{"$f":"Dataset[[#This Row],[2027/28 To - Spending review Topic 1]]+Dataset[[#This Row],[2027/28 To - Spending review Topic 2]]+Dataset[[#This Row],[2027/28 To - Spending review Topic 3]]+Dataset[[#This Row],[2027/28 To - Spending review Topic 4]]+Dataset[[#This Row],[2027/28 To - Other reallocations]]","v":0},{"$f":"Dataset[[#This Row],[2028/29 To - Spending review Topic 1]]+Dataset[[#This Row],[2028/29 To - Spending review Topic 2]]+Dataset[[#This Row],[2028/29 To - Spending review Topic 3]]+Dataset[[#This Row],[2028/29 To - Spending review Topic 4]]+Dataset[[#This Row],[2028/29 To - Other reallocations]]","v":0},{"$f":"Dataset[[#This Row],[2029/30 To - Spending review Topic 1]]+Dataset[[#This Row],[2029/30 To - Spending review Topic 2]]+Dataset[[#This Row],[2029/30 To - Spending review Topic 3]]+Dataset[[#This Row],[2029/30 To - Spending review Topic 4]]+Dataset[[#This Row],[2029/30 To - Other reallocations]]","v":0},{"$f":"Dataset[[#This Row],[2027/28 Targeted savings]]+Dataset[[#This Row],[2027/28 From - Total]]","v":0},{"$f":"Dataset[[#This Row],[2028/29 Targeted savings]]+Dataset[[#This Row],[2028/29 From - Total]]","v":0},{"$f":"Dataset[[#This Row],[2029/30 Targeted savings]]+Dataset[[#This Row],[2029/30 From - Total]]","v":0},{"$f":"Dataset[[#This Row],[2026/27 Targeted savings]]","v":0},{"$f":"SUM(Dataset[[#This Row],[2027/28 Targeted savings]],Dataset[[#This Row],[2027/28 From - Total]],Dataset[[#This Row],[2027/28 To - Total]])","v":0},{"$f":"SUM(Dataset[[#This Row],[2028/29 Targeted savings]],Dataset[[#This Row],[2028/29 From - Total]],Dataset[[#This Row],[2028/29 To - Total]])","v":0},{"$f":"SUM(Dataset[[#This Row],[2029/30 Targeted savings]],Dataset[[#This Row],[2029/30 From - Total]],Dataset[[#This Row],[2029/30 To - Total]])","v":0},{"$f":"Dataset[[#This Row],[2026/27 Baseline]]+Dataset[[#This Row],[2026/27 Total change]]","v":0},{"$f":"Dataset[[#This Row],[2027/28 Baseline]]+Dataset[[#This Row],[2027/28 Total change]]","v":0},{"$f":"Dataset[[#This Row],[2028/29 Baseline]]+Dataset[[#This Row],[2028/29 Total change]]","v":0},{"$f":"Dataset[[#This Row],[2029/30 Baseline]]+Dataset[[#This Row],[2029/30 Total change]]","v":0}]
["NAT|Non-transfer item","30|Contractors","2027_28","MTEC2027",30,1,1,32536,16,"30","01","01","032536","000016","30|01|01|000016","01","01","02","16","16","01|01|02|16|16","National","Communications and Digital Technologies","Administration","Ministry","Non-transfer item","Current","Current payments","Goods and services","Contractors","Contractors","Economic development","Economic regulation and infrastructure","NAT",0,0,0,0,0,0,0,0,0,0,0,null,null,null,null,null,null,null,null,null,null,null,null,null,null,null,null,null,null,null,null,null,null,null,null,null,null,null,null,null,null,null,null,null,null,{"$f":"Dataset[[#This Row],[2027/28 From - Spending review Topic 1]]+Dataset[[#This Row],[2027/28 From - Spending review Topic 2]]+Dataset[[#This Row],[2027/28 From - Spending review Topic 3]]+Dataset[[#This Row],[2027/28 From - Spending review Topic 4]]+Dataset[[#This Row],[2027/28 From - Other reallocations]]","v":0},{"$f":"Dataset[[#This Row],[2028/29 From - Spending review Topic 1]]+Dataset[[#This Row],[2028/29 From - Spending review Topic 2]]+Dataset[[#This Row],[2028/29 From - Spending review Topic 3]]+Dataset[[#This Row],[2028/29 From - Spending review Topic 4]]+Dataset[[#This Row],[2028/29 From - Other reallocations]]","v":0},{"$f":"Dataset[[#This Row],[2029/30 From - Spending review Topic 1]]+Dataset[[#This Row],[2029/30 From - Spending review Topic 2]]+Dataset[[#This Row],[2029/30 From - Spending review Topic 3]]+Dataset[[#This Row],[2029/30 From - Spending review Topic 4]]+Dataset[[#This Row],[2029/30 From - Other reallocations]]","v":0},{"$f":"Dataset[[#This Row],[2027/28 To - Spending review Topic 1]]+Dataset[[#This Row],[2027/28 To - Spending review Topic 2]]+Dataset[[#This Row],[2027/28 To - Spending review Topic 3]]+Dataset[[#This Row],[2027/28 To - Spending review Topic 4]]+Dataset[[#This Row],[2027/28 To - Other reallocations]]","v":0},{"$f":"Dataset[[#This Row],[2028/29 To - Spending review Topic 1]]+Dataset[[#This Row],[2028/29 To - Spending review Topic 2]]+Dataset[[#This Row],[2028/29 To - Spending review Topic 3]]+Dataset[[#This Row],[2028/29 To - Spending review Topic 4]]+Dataset[[#This Row],[2028/29 To - Other reallocations]]","v":0},{"$f":"Dataset[[#This Row],[2029/30 To - Spending review Topic 1]]+Dataset[[#This Row],[2029/30 To - Spending review Topic 2]]+Dataset[[#This Row],[2029/30 To - Spending review Topic 3]]+Dataset[[#This Row],[2029/30 To - Spending review Topic 4]]+Dataset[[#This Row],[2029/30 To - Other reallocations]]","v":0},{"$f":"Dataset[[#This Row],[2027/28 Targeted savings]]+Dataset[[#This Row],[2027/28 From - Total]]","v":0},{"$f":"Dataset[[#This Row],[2028/29 Targeted savings]]+Dataset[[#This Row],[2028/29 From - Total]]","v":0},{"$f":"Dataset[[#This Row],[2029/30 Targeted savings]]+Dataset[[#This Row],[2029/30 From - Total]]","v":0},{"$f":"Dataset[[#This Row],[2026/27 Targeted savings]]","v":0},{"$f":"SUM(Dataset[[#This Row],[2027/28 Targeted savings]],Dataset[[#This Row],[2027/28 From - Total]],Dataset[[#This Row],[2027/28 To - Total]])","v":0},{"$f":"SUM(Dataset[[#This Row],[2028/29 Targeted savings]],Dataset[[#This Row],[2028/29 From - Total]],Dataset[[#This Row],[2028/29 To - Total]])","v":0},{"$f":"SUM(Dataset[[#This Row],[2029/30 Targeted savings]],Dataset[[#This Row],[2029/30 From - Total]],Dataset[[#This Row],[2029/30 To - Total]])","v":0},{"$f":"Dataset[[#This Row],[2026/27 Baseline]]+Dataset[[#This Row],[2026/27 Total change]]","v":0},{"$f":"Dataset[[#This Row],[2027/28 Baseline]]+Dataset[[#This Row],[2027/28 Total change]]","v":0},{"$f":"Dataset[[#This Row],[2028/29 Baseline]]+Dataset[[#This Row],[2028/29 Total change]]","v":0},{"$f":"Dataset[[#This Row],[2029/30 Baseline]]+Dataset[[#This Row],[2029/30 Total change]]","v":0}]
["NAT|Non-transfer item","30|Agency and support/outsourced services","2027_28","MTEC2027",30,1,1,32537,17,"30","01","01","032537","000017","30|01|01|000017","01","01","02","17","17","01|01|02|17|17","National","Communications and Digital Technologies","Administration","Ministry","Non-transfer item","Current","Current payments","Goods and services","Agency and support/outsourced services","Agency and support/outsourced services","Economic development","Economic regulation and infrastructure","NAT",0,0,0,0,0,0,0,0,0,0,0,null,null,null,null,null,null,null,null,null,null,null,null,null,null,null,null,null,null,null,null,null,null,null,null,null,null,null,null,null,null,null,null,null,null,{"$f":"Dataset[[#This Row],[2027/28 From - Spending review Topic 1]]+Dataset[[#This Row],[2027/28 From - Spending review Topic 2]]+Dataset[[#This Row],[2027/28 From - Spending review Topic 3]]+Dataset[[#This Row],[2027/28 From - Spending review Topic 4]]+Dataset[[#This Row],[2027/28 From - Other reallocations]]","v":0},{"$f":"Dataset[[#This Row],[2028/29 From - Spending review Topic 1]]+Dataset[[#This Row],[2028/29 From - Spending review Topic 2]]+Dataset[[#This Row],[2028/29 From - Spending review Topic 3]]+Dataset[[#This Row],[2028/29 From - Spending review Topic 4]]+Dataset[[#This Row],[2028/29 From - Other reallocations]]","v":0},{"$f":"Dataset[[#This Row],[2029/30 From - Spending review Topic 1]]+Dataset[[#This Row],[2029/30 From - Spending review Topic 2]]+Dataset[[#This Row],[2029/30 From - Spending review Topic 3]]+Dataset[[#This Row],[2029/30 From - Spending review Topic 4]]+Dataset[[#This Row],[2029/30 From - Other reallocations]]","v":0},{"$f":"Dataset[[#This Row],[2027/28 To - Spending review Topic 1]]+Dataset[[#This Row],[2027/28 To - Spending review Topic 2]]+Dataset[[#This Row],[2027/28 To - Spending review Topic 3]]+Dataset[[#This Row],[2027/28 To - Spending review Topic 4]]+Dataset[[#This Row],[2027/28 To - Other reallocations]]","v":0},{"$f":"Dataset[[#This Row],[2028/29 To - Spending review Topic 1]]+Dataset[[#This Row],[2028/29 To - Spending review Topic 2]]+Dataset[[#This Row],[2028/29 To - Spending review Topic 3]]+Dataset[[#This Row],[2028/29 To - Spending review Topic 4]]+Dataset[[#This Row],[2028/29 To - Other reallocations]]","v":0},{"$f":"Dataset[[#This Row],[2029/30 To - Spending review Topic 1]]+Dataset[[#This Row],[2029/30 To - Spending review Topic 2]]+Dataset[[#This Row],[2029/30 To - Spending review Topic 3]]+Dataset[[#This Row],[2029/30 To - Spending review Topic 4]]+Dataset[[#This Row],[2029/30 To - Other reallocations]]","v":0},{"$f":"Dataset[[#This Row],[2027/28 Targeted savings]]+Dataset[[#This Row],[2027/28 From - Total]]","v":0},{"$f":"Dataset[[#This Row],[2028/29 Targeted savings]]+Dataset[[#This Row],[2028/29 From - Total]]","v":0},{"$f":"Dataset[[#This Row],[2029/30 Targeted savings]]+Dataset[[#This Row],[2029/30 From - Total]]","v":0},{"$f":"Dataset[[#This Row],[2026/27 Targeted savings]]","v":0},{"$f":"SUM(Dataset[[#This Row],[2027/28 Targeted savings]],Dataset[[#This Row],[2027/28 From - Total]],Dataset[[#This Row],[2027/28 To - Total]])","v":0},{"$f":"SUM(Dataset[[#This Row],[2028/29 Targeted savings]],Dataset[[#This Row],[2028/29 From - Total]],Dataset[[#This Row],[2028/29 To - Total]])","v":0},{"$f":"SUM(Dataset[[#This Row],[2029/30 Targeted savings]],Dataset[[#This Row],[2029/30 From - Total]],Dataset[[#This Row],[2029/30 To - Total]])","v":0},{"$f":"Dataset[[#This Row],[2026/27 Baseline]]+Dataset[[#This Row],[2026/27 Total change]]","v":0},{"$f":"Dataset[[#This Row],[2027/28 Baseline]]+Dataset[[#This Row],[2027/28 Total change]]","v":0},{"$f":"Dataset[[#This Row],[2028/29 Baseline]]+Dataset[[#This Row],[2028/29 Total change]]","v":0},{"$f":"Dataset[[#This Row],[2029/30 Baseline]]+Dataset[[#This Row],[2029/30 Total change]]","v":0}]
["NAT|Non-transfer item","30|Entertainment","2027_28","MTEC2027",30,1,1,32538,18,"30","01","01","032538","000018","30|01|01|000018","01","01","02","18","18","01|01|02|18|18","National","Communications and Digital Technologies","Administration","Ministry","Non-transfer item","Current","Current payments","Goods and services","Entertainment","Entertainment","Economic development","Economic regulation and infrastructure","NAT",0,0,0,0,0,0,0,0,0,0,0,null,null,null,null,null,null,null,null,null,null,null,null,null,null,null,null,null,null,null,null,null,null,null,null,null,null,null,null,null,null,null,null,null,null,{"$f":"Dataset[[#This Row],[2027/28 From - Spending review Topic 1]]+Dataset[[#This Row],[2027/28 From - Spending review Topic 2]]+Dataset[[#This Row],[2027/28 From - Spending review Topic 3]]+Dataset[[#This Row],[2027/28 From - Spending review Topic 4]]+Dataset[[#This Row],[2027/28 From - Other reallocations]]","v":0},{"$f":"Dataset[[#This Row],[2028/29 From - Spending review Topic 1]]+Dataset[[#This Row],[2028/29 From - Spending review Topic 2]]+Dataset[[#This Row],[2028/29 From - Spending review Topic 3]]+Dataset[[#This Row],[2028/29 From - Spending review Topic 4]]+Dataset[[#This Row],[2028/29 From - Other reallocations]]","v":0},{"$f":"Dataset[[#This Row],[2029/30 From - Spending review Topic 1]]+Dataset[[#This Row],[2029/30 From - Spending review Topic 2]]+Dataset[[#This Row],[2029/30 From - Spending review Topic 3]]+Dataset[[#This Row],[2029/30 From - Spending review Topic 4]]+Dataset[[#This Row],[2029/30 From - Other reallocations]]","v":0},{"$f":"Dataset[[#This Row],[2027/28 To - Spending review Topic 1]]+Dataset[[#This Row],[2027/28 To - Spending review Topic 2]]+Dataset[[#This Row],[2027/28 To - Spending review Topic 3]]+Dataset[[#This Row],[2027/28 To - Spending review Topic 4]]+Dataset[[#This Row],[2027/28 To - Other reallocations]]","v":0},{"$f":"Dataset[[#This Row],[2028/29 To - Spending review Topic 1]]+Dataset[[#This Row],[2028/29 To - Spending review Topic 2]]+Dataset[[#This Row],[2028/29 To - Spending review Topic 3]]+Dataset[[#This Row],[2028/29 To - Spending review Topic 4]]+Dataset[[#This Row],[2028/29 To - Other reallocations]]","v":0},{"$f":"Dataset[[#This Row],[2029/30 To - Spending review Topic 1]]+Dataset[[#This Row],[2029/30 To - Spending review Topic 2]]+Dataset[[#This Row],[2029/30 To - Spending review Topic 3]]+Dataset[[#This Row],[2029/30 To - Spending review Topic 4]]+Dataset[[#This Row],[2029/30 To - Other reallocations]]","v":0},{"$f":"Dataset[[#This Row],[2027/28 Targeted savings]]+Dataset[[#This Row],[2027/28 From - Total]]","v":0},{"$f":"Dataset[[#This Row],[2028/29 Targeted savings]]+Dataset[[#This Row],[2028/29 From - Total]]","v":0},{"$f":"Dataset[[#This Row],[2029/30 Targeted savings]]+Dataset[[#This Row],[2029/30 From - Total]]","v":0},{"$f":"Dataset[[#This Row],[2026/27 Targeted savings]]","v":0},{"$f":"SUM(Dataset[[#This Row],[2027/28 Targeted savings]],Dataset[[#This Row],[2027/28 From - Total]],Dataset[[#This Row],[2027/28 To - Total]])","v":0},{"$f":"SUM(Dataset[[#This Row],[2028/29 Targeted savings]],Dataset[[#This Row],[2028/29 From - Total]],Dataset[[#This Row],[2028/29 To - Total]])","v":0},{"$f":"SUM(Dataset[[#This Row],[2029/30 Targeted savings]],Dataset[[#This Row],[2029/30 From - Total]],Dataset[[#This Row],[2029/30 To - Total]])","v":0},{"$f":"Dataset[[#This Row],[2026/27 Baseline]]+Dataset[[#This Row],[2026/27 Total change]]","v":0},{"$f":"Dataset[[#This Row],[2027/28 Baseline]]+Dataset[[#This Row],[2027/28 Total change]]","v":0},{"$f":"Dataset[[#This Row],[2028/29 Baseline]]+Dataset[[#This Row],[2028/29 Total change]]","v":0},{"$f":"Dataset[[#This Row],[2029/30 Baseline]]+Dataset[[#This Row],[2029/30 Total change]]","v":0}]
["NAT|Non-transfer item","30|Fleet services (including government motor transport)","2027_28","MTEC2027",30,1,1,32539,19,"30","01","01","032539","000019","30|01|01|000019","01","01","02","19","19","01|01|02|19|19","National","Communications and Digital Technologies","Administration","Ministry","Non-transfer item","Current","Current payments","Goods and services","Fleet services (including government motor transport)","Fleet services (including government motor transport)","Economic development","Economic regulation and infrastructure","NAT",0,0,0,0,0,0,0,0,0,0,0,null,null,null,null,null,null,null,null,null,null,null,null,null,null,null,null,null,null,null,null,null,null,null,null,null,null,null,null,null,null,null,null,null,null,{"$f":"Dataset[[#This Row],[2027/28 From - Spending review Topic 1]]+Dataset[[#This Row],[2027/28 From - Spending review Topic 2]]+Dataset[[#This Row],[2027/28 From - Spending review Topic 3]]+Dataset[[#This Row],[2027/28 From - Spending review Topic 4]]+Dataset[[#This Row],[2027/28 From - Other reallocations]]","v":0},{"$f":"Dataset[[#This Row],[2028/29 From - Spending review Topic 1]]+Dataset[[#This Row],[2028/29 From - Spending review Topic 2]]+Dataset[[#This Row],[2028/29 From - Spending review Topic 3]]+Dataset[[#This Row],[2028/29 From - Spending review Topic 4]]+Dataset[[#This Row],[2028/29 From - Other reallocations]]","v":0},{"$f":"Dataset[[#This Row],[2029/30 From - Spending review Topic 1]]+Dataset[[#This Row],[2029/30 From - Spending review Topic 2]]+Dataset[[#This Row],[2029/30 From - Spending review Topic 3]]+Dataset[[#This Row],[2029/30 From - Spending review Topic 4]]+Dataset[[#This Row],[2029/30 From - Other reallocations]]","v":0},{"$f":"Dataset[[#This Row],[2027/28 To - Spending review Topic 1]]+Dataset[[#This Row],[2027/28 To - Spending review Topic 2]]+Dataset[[#This Row],[2027/28 To - Spending review Topic 3]]+Dataset[[#This Row],[2027/28 To - Spending review Topic 4]]+Dataset[[#This Row],[2027/28 To - Other reallocations]]","v":0},{"$f":"Dataset[[#This Row],[2028/29 To - Spending review Topic 1]]+Dataset[[#This Row],[2028/29 To - Spending review Topic 2]]+Dataset[[#This Row],[2028/29 To - Spending review Topic 3]]+Dataset[[#This Row],[2028/29 To - Spending review Topic 4]]+Dataset[[#This Row],[2028/29 To - Other reallocations]]","v":0},{"$f":"Dataset[[#This Row],[2029/30 To - Spending review Topic 1]]+Dataset[[#This Row],[2029/30 To - Spending review Topic 2]]+Dataset[[#This Row],[2029/30 To - Spending review Topic 3]]+Dataset[[#This Row],[2029/30 To - Spending review Topic 4]]+Dataset[[#This Row],[2029/30 To - Other reallocations]]","v":0},{"$f":"Dataset[[#This Row],[2027/28 Targeted savings]]+Dataset[[#This Row],[2027/28 From - Total]]","v":0},{"$f":"Dataset[[#This Row],[2028/29 Targeted savings]]+Dataset[[#This Row],[2028/29 From - Total]]","v":0},{"$f":"Dataset[[#This Row],[2029/30 Targeted savings]]+Dataset[[#This Row],[2029/30 From - Total]]","v":0},{"$f":"Dataset[[#This Row],[2026/27 Targeted savings]]","v":0},{"$f":"SUM(Dataset[[#This Row],[2027/28 Targeted savings]],Dataset[[#This Row],[2027/28 From - Total]],Dataset[[#This Row],[2027/28 To - Total]])","v":0},{"$f":"SUM(Dataset[[#This Row],[2028/29 Targeted savings]],Dataset[[#This Row],[2028/29 From - Total]],Dataset[[#This Row],[2028/29 To - Total]])","v":0},{"$f":"SUM(Dataset[[#This Row],[2029/30 Targeted savings]],Dataset[[#This Row],[2029/30 From - Total]],Dataset[[#This Row],[2029/30 To - Total]])","v":0},{"$f":"Dataset[[#This Row],[2026/27 Baseline]]+Dataset[[#This Row],[2026/27 Total change]]","v":0},{"$f":"Dataset[[#This Row],[2027/28 Baseline]]+Dataset[[#This Row],[2027/28 Total change]]","v":0},{"$f":"Dataset[[#This Row],[2028/29 Baseline]]+Dataset[[#This Row],[2028/29 Total change]]","v":0},{"$f":"Dataset[[#This Row],[2029/30 Baseline]]+Dataset[[#This Row],[2029/30 Total change]]","v":0}]
["NAT|Non-transfer item","30|Housing","2027_28","MTEC2027",30,1,1,32540,20,"30","01","01","032540","000020","30|01|01|000020","01","01","02","20","20","01|01|02|20|20","National","Communications and Digital Technologies","Administration","Ministry","Non-transfer item","Current","Current payments","Goods and services","Housing","Housing","Economic development","Economic regulation and infrastructure","NAT",0,0,0,0,0,0,0,0,0,0,0,null,null,null,null,null,null,null,null,null,null,null,null,null,null,null,null,null,null,null,null,null,null,null,null,null,null,null,null,null,null,null,null,null,null,{"$f":"Dataset[[#This Row],[2027/28 From - Spending review Topic 1]]+Dataset[[#This Row],[2027/28 From - Spending review Topic 2]]+Dataset[[#This Row],[2027/28 From - Spending review Topic 3]]+Dataset[[#This Row],[2027/28 From - Spending review Topic 4]]+Dataset[[#This Row],[2027/28 From - Other reallocations]]","v":0},{"$f":"Dataset[[#This Row],[2028/29 From - Spending review Topic 1]]+Dataset[[#This Row],[2028/29 From - Spending review Topic 2]]+Dataset[[#This Row],[2028/29 From - Spending review Topic 3]]+Dataset[[#This Row],[2028/29 From - Spending review Topic 4]]+Dataset[[#This Row],[2028/29 From - Other reallocations]]","v":0},{"$f":"Dataset[[#This Row],[2029/30 From - Spending review Topic 1]]+Dataset[[#This Row],[2029/30 From - Spending review Topic 2]]+Dataset[[#This Row],[2029/30 From - Spending review Topic 3]]+Dataset[[#This Row],[2029/30 From - Spending review Topic 4]]+Dataset[[#This Row],[2029/30 From - Other reallocations]]","v":0},{"$f":"Dataset[[#This Row],[2027/28 To - Spending review Topic 1]]+Dataset[[#This Row],[2027/28 To - Spending review Topic 2]]+Dataset[[#This Row],[2027/28 To - Spending review Topic 3]]+Dataset[[#This Row],[2027/28 To - Spending review Topic 4]]+Dataset[[#This Row],[2027/28 To - Other reallocations]]","v":0},{"$f":"Dataset[[#This Row],[2028/29 To - Spending review Topic 1]]+Dataset[[#This Row],[2028/29 To - Spending review Topic 2]]+Dataset[[#This Row],[2028/29 To - Spending review Topic 3]]+Dataset[[#This Row],[2028/29 To - Spending review Topic 4]]+Dataset[[#This Row],[2028/29 To - Other reallocations]]","v":0},{"$f":"Dataset[[#This Row],[2029/30 To - Spending review Topic 1]]+Dataset[[#This Row],[2029/30 To - Spending review Topic 2]]+Dataset[[#This Row],[2029/30 To - Spending review Topic 3]]+Dataset[[#This Row],[2029/30 To - Spending review Topic 4]]+Dataset[[#This Row],[2029/30 To - Other reallocations]]","v":0},{"$f":"Dataset[[#This Row],[2027/28 Targeted savings]]+Dataset[[#This Row],[2027/28 From - Total]]","v":0},{"$f":"Dataset[[#This Row],[2028/29 Targeted savings]]+Dataset[[#This Row],[2028/29 From - Total]]","v":0},{"$f":"Dataset[[#This Row],[2029/30 Targeted savings]]+Dataset[[#This Row],[2029/30 From - Total]]","v":0},{"$f":"Dataset[[#This Row],[2026/27 Targeted savings]]","v":0},{"$f":"SUM(Dataset[[#This Row],[2027/28 Targeted savings]],Dataset[[#This Row],[2027/28 From - Total]],Dataset[[#This Row],[2027/28 To - Total]])","v":0},{"$f":"SUM(Dataset[[#This Row],[2028/29 Targeted savings]],Dataset[[#This Row],[2028/29 From - Total]],Dataset[[#This Row],[2028/29 To - Total]])","v":0},{"$f":"SUM(Dataset[[#This Row],[2029/30 Targeted savings]],Dataset[[#This Row],[2029/30 From - Total]],Dataset[[#This Row],[2029/30 To - Total]])","v":0},{"$f":"Dataset[[#This Row],[2026/27 Baseline]]+Dataset[[#This Row],[2026/27 Total change]]","v":0},{"$f":"Dataset[[#This Row],[2027/28 Baseline]]+Dataset[[#This Row],[2027/28 Total change]]","v":0},{"$f":"Dataset[[#This Row],[2028/29 Baseline]]+Dataset[[#This Row],[2028/29 Total change]]","v":0},{"$f":"Dataset[[#This Row],[2029/30 Baseline]]+Dataset[[#This Row],[2029/30 Total change]]","v":0}]
["NAT|Non-transfer item","30|Inventory: Clothing material and accessories","2027_28","MTEC2027",30,1,1,32541,21,"30","01","01","032541","000021","30|01|01|000021","01","01","02","21","21","01|01|02|21|21","National","Communications and Digital Technologies","Administration","Ministry","Non-transfer item","Current","Current payments","Goods and services","Inventory: Clothing material and accessories","Inventory: Clothing material and accessories","Economic development","Economic regulation and infrastructure","NAT",0,0,0,0,0,0,0,0,0,0,0,null,null,null,null,null,null,null,null,null,null,null,null,null,null,null,null,null,null,null,null,null,null,null,null,null,null,null,null,null,null,null,null,null,null,{"$f":"Dataset[[#This Row],[2027/28 From - Spending review Topic 1]]+Dataset[[#This Row],[2027/28 From - Spending review Topic 2]]+Dataset[[#This Row],[2027/28 From - Spending review Topic 3]]+Dataset[[#This Row],[2027/28 From - Spending review Topic 4]]+Dataset[[#This Row],[2027/28 From - Other reallocations]]","v":0},{"$f":"Dataset[[#This Row],[2028/29 From - Spending review Topic 1]]+Dataset[[#This Row],[2028/29 From - Spending review Topic 2]]+Dataset[[#This Row],[2028/29 From - Spending review Topic 3]]+Dataset[[#This Row],[2028/29 From - Spending review Topic 4]]+Dataset[[#This Row],[2028/29 From - Other reallocations]]","v":0},{"$f":"Dataset[[#This Row],[2029/30 From - Spending review Topic 1]]+Dataset[[#This Row],[2029/30 From - Spending review Topic 2]]+Dataset[[#This Row],[2029/30 From - Spending review Topic 3]]+Dataset[[#This Row],[2029/30 From - Spending review Topic 4]]+Dataset[[#This Row],[2029/30 From - Other reallocations]]","v":0},{"$f":"Dataset[[#This Row],[2027/28 To - Spending review Topic 1]]+Dataset[[#This Row],[2027/28 To - Spending review Topic 2]]+Dataset[[#This Row],[2027/28 To - Spending review Topic 3]]+Dataset[[#This Row],[2027/28 To - Spending review Topic 4]]+Dataset[[#This Row],[2027/28 To - Other reallocations]]","v":0},{"$f":"Dataset[[#This Row],[2028/29 To - Spending review Topic 1]]+Dataset[[#This Row],[2028/29 To - Spending review Topic 2]]+Dataset[[#This Row],[2028/29 To - Spending review Topic 3]]+Dataset[[#This Row],[2028/29 To - Spending review Topic 4]]+Dataset[[#This Row],[2028/29 To - Other reallocations]]","v":0},{"$f":"Dataset[[#This Row],[2029/30 To - Spending review Topic 1]]+Dataset[[#This Row],[2029/30 To - Spending review Topic 2]]+Dataset[[#This Row],[2029/30 To - Spending review Topic 3]]+Dataset[[#This Row],[2029/30 To - Spending review Topic 4]]+Dataset[[#This Row],[2029/30 To - Other reallocations]]","v":0},{"$f":"Dataset[[#This Row],[2027/28 Targeted savings]]+Dataset[[#This Row],[2027/28 From - Total]]","v":0},{"$f":"Dataset[[#This Row],[2028/29 Targeted savings]]+Dataset[[#This Row],[2028/29 From - Total]]","v":0},{"$f":"Dataset[[#This Row],[2029/30 Targeted savings]]+Dataset[[#This Row],[2029/30 From - Total]]","v":0},{"$f":"Dataset[[#This Row],[2026/27 Targeted savings]]","v":0},{"$f":"SUM(Dataset[[#This Row],[2027/28 Targeted savings]],Dataset[[#This Row],[2027/28 From - Total]],Dataset[[#This Row],[2027/28 To - Total]])","v":0},{"$f":"SUM(Dataset[[#This Row],[2028/29 Targeted savings]],Dataset[[#This Row],[2028/29 From - Total]],Dataset[[#This Row],[2028/29 To - Total]])","v":0},{"$f":"SUM(Dataset[[#This Row],[2029/30 Targeted savings]],Dataset[[#This Row],[2029/30 From - Total]],Dataset[[#This Row],[2029/30 To - Total]])","v":0},{"$f":"Dataset[[#This Row],[2026/27 Baseline]]+Dataset[[#This Row],[2026/27 Total change]]","v":0},{"$f":"Dataset[[#This Row],[2027/28 Baseline]]+Dataset[[#This Row],[2027/28 Total change]]","v":0},{"$f":"Dataset[[#This Row],[2028/29 Baseline]]+Dataset[[#This Row],[2028/29 Total change]]","v":0},{"$f":"Dataset[[#This Row],[2029/30 Baseline]]+Dataset[[#This Row],[2029/30 Total change]]","v":0}]
["NAT|Non-transfer item","30|Inventory: Farming supplies","2027_28","MTEC2027",30,1,1,32542,22,"30","01","01","032542","000022","30|01|01|000022","01","01","02","22","22","01|01|02|22|22","National","Communications and Digital Technologies","Administration","Ministry","Non-transfer item","Current","Current payments","Goods and services","Inventory: Farming supplies","Inventory: Farming supplies","Economic development","Economic regulation and infrastructure","NAT",0,0,0,0,0,0,0,0,0,0,0,null,null,null,null,null,null,null,null,null,null,null,null,null,null,null,null,null,null,null,null,null,null,null,null,null,null,null,null,null,null,null,null,null,null,{"$f":"Dataset[[#This Row],[2027/28 From - Spending review Topic 1]]+Dataset[[#This Row],[2027/28 From - Spending review Topic 2]]+Dataset[[#This Row],[2027/28 From - Spending review Topic 3]]+Dataset[[#This Row],[2027/28 From - Spending review Topic 4]]+Dataset[[#This Row],[2027/28 From - Other reallocations]]","v":0},{"$f":"Dataset[[#This Row],[2028/29 From - Spending review Topic 1]]+Dataset[[#This Row],[2028/29 From - Spending review Topic 2]]+Dataset[[#This Row],[2028/29 From - Spending review Topic 3]]+Dataset[[#This Row],[2028/29 From - Spending review Topic 4]]+Dataset[[#This Row],[2028/29 From - Other reallocations]]","v":0},{"$f":"Dataset[[#This Row],[2029/30 From - Spending review Topic 1]]+Dataset[[#This Row],[2029/30 From - Spending review Topic 2]]+Dataset[[#This Row],[2029/30 From - Spending review Topic 3]]+Dataset[[#This Row],[2029/30 From - Spending review Topic 4]]+Dataset[[#This Row],[2029/30 From - Other reallocations]]","v":0},{"$f":"Dataset[[#This Row],[2027/28 To - Spending review Topic 1]]+Dataset[[#This Row],[2027/28 To - Spending review Topic 2]]+Dataset[[#This Row],[2027/28 To - Spending review Topic 3]]+Dataset[[#This Row],[2027/28 To - Spending review Topic 4]]+Dataset[[#This Row],[2027/28 To - Other reallocations]]","v":0},{"$f":"Dataset[[#This Row],[2028/29 To - Spending review Topic 1]]+Dataset[[#This Row],[2028/29 To - Spending review Topic 2]]+Dataset[[#This Row],[2028/29 To - Spending review Topic 3]]+Dataset[[#This Row],[2028/29 To - Spending review Topic 4]]+Dataset[[#This Row],[2028/29 To - Other reallocations]]","v":0},{"$f":"Dataset[[#This Row],[2029/30 To - Spending review Topic 1]]+Dataset[[#This Row],[2029/30 To - Spending review Topic 2]]+Dataset[[#This Row],[2029/30 To - Spending review Topic 3]]+Dataset[[#This Row],[2029/30 To - Spending review Topic 4]]+Dataset[[#This Row],[2029/30 To - Other reallocations]]","v":0},{"$f":"Dataset[[#This Row],[2027/28 Targeted savings]]+Dataset[[#This Row],[2027/28 From - Total]]","v":0},{"$f":"Dataset[[#This Row],[2028/29 Targeted savings]]+Dataset[[#This Row],[2028/29 From - Total]]","v":0},{"$f":"Dataset[[#This Row],[2029/30 Targeted savings]]+Dataset[[#This Row],[2029/30 From - Total]]","v":0},{"$f":"Dataset[[#This Row],[2026/27 Targeted savings]]","v":0},{"$f":"SUM(Dataset[[#This Row],[2027/28 Targeted savings]],Dataset[[#This Row],[2027/28 From - Total]],Dataset[[#This Row],[2027/28 To - Total]])","v":0},{"$f":"SUM(Dataset[[#This Row],[2028/29 Targeted savings]],Dataset[[#This Row],[2028/29 From - Total]],Dataset[[#This Row],[2028/29 To - Total]])","v":0},{"$f":"SUM(Dataset[[#This Row],[2029/30 Targeted savings]],Dataset[[#This Row],[2029/30 From - Total]],Dataset[[#This Row],[2029/30 To - Total]])","v":0},{"$f":"Dataset[[#This Row],[2026/27 Baseline]]+Dataset[[#This Row],[2026/27 Total change]]","v":0},{"$f":"Dataset[[#This Row],[2027/28 Baseline]]+Dataset[[#This Row],[2027/28 Total change]]","v":0},{"$f":"Dataset[[#This Row],[2028/29 Baseline]]+Dataset[[#This Row],[2028/29 Total change]]","v":0},{"$f":"Dataset[[#This Row],[2029/30 Baseline]]+Dataset[[#This Row],[2029/30 Total change]]","v":0}]
["NAT|Non-transfer item","30|Inventory: Food and food supplies","2027_28","MTEC2027",30,1,1,32543,23,"30","01","01","032543","000023","30|01|01|000023","01","01","02","23","23","01|01|02|23|23","National","Communications and Digital Technologies","Administration","Ministry","Non-transfer item","Current","Current payments","Goods and services","Inventory: Food and food supplies","Inventory: Food and food supplies","Economic development","Economic regulation and infrastructure","NAT",0,0,0,0,0,0,0,0,0,0,0,null,null,null,null,null,null,null,null,null,null,null,null,null,null,null,null,null,null,null,null,null,null,null,null,null,null,null,null,null,null,null,null,null,null,{"$f":"Dataset[[#This Row],[2027/28 From - Spending review Topic 1]]+Dataset[[#This Row],[2027/28 From - Spending review Topic 2]]+Dataset[[#This Row],[2027/28 From - Spending review Topic 3]]+Dataset[[#This Row],[2027/28 From - Spending review Topic 4]]+Dataset[[#This Row],[2027/28 From - Other reallocations]]","v":0},{"$f":"Dataset[[#This Row],[2028/29 From - Spending review Topic 1]]+Dataset[[#This Row],[2028/29 From - Spending review Topic 2]]+Dataset[[#This Row],[2028/29 From - Spending review Topic 3]]+Dataset[[#This Row],[2028/29 From - Spending review Topic 4]]+Dataset[[#This Row],[2028/29 From - Other reallocations]]","v":0},{"$f":"Dataset[[#This Row],[2029/30 From - Spending review Topic 1]]+Dataset[[#This Row],[2029/30 From - Spending review Topic 2]]+Dataset[[#This Row],[2029/30 From - Spending review Topic 3]]+Dataset[[#This Row],[2029/30 From - Spending review Topic 4]]+Dataset[[#This Row],[2029/30 From - Other reallocations]]","v":0},{"$f":"Dataset[[#This Row],[2027/28 To - Spending review Topic 1]]+Dataset[[#This Row],[2027/28 To - Spending review Topic 2]]+Dataset[[#This Row],[2027/28 To - Spending review Topic 3]]+Dataset[[#This Row],[2027/28 To - Spending review Topic 4]]+Dataset[[#This Row],[2027/28 To - Other reallocations]]","v":0},{"$f":"Dataset[[#This Row],[2028/29 To - Spending review Topic 1]]+Dataset[[#This Row],[2028/29 To - Spending review Topic 2]]+Dataset[[#This Row],[2028/29 To - Spending review Topic 3]]+Dataset[[#This Row],[2028/29 To - Spending review Topic 4]]+Dataset[[#This Row],[2028/29 To - Other reallocations]]","v":0},{"$f":"Dataset[[#This Row],[2029/30 To - Spending review Topic 1]]+Dataset[[#This Row],[2029/30 To - Spending review Topic 2]]+Dataset[[#This Row],[2029/30 To - Spending review Topic 3]]+Dataset[[#This Row],[2029/30 To - Spending review Topic 4]]+Dataset[[#This Row],[2029/30 To - Other reallocations]]","v":0},{"$f":"Dataset[[#This Row],[2027/28 Targeted savings]]+Dataset[[#This Row],[2027/28 From - Total]]","v":0},{"$f":"Dataset[[#This Row],[2028/29 Targeted savings]]+Dataset[[#This Row],[2028/29 From - Total]]","v":0},{"$f":"Dataset[[#This Row],[2029/30 Targeted savings]]+Dataset[[#This Row],[2029/30 From - Total]]","v":0},{"$f":"Dataset[[#This Row],[2026/27 Targeted savings]]","v":0},{"$f":"SUM(Dataset[[#This Row],[2027/28 Targeted savings]],Dataset[[#This Row],[2027/28 From - Total]],Dataset[[#This Row],[2027/28 To - Total]])","v":0},{"$f":"SUM(Dataset[[#This Row],[2028/29 Targeted savings]],Dataset[[#This Row],[2028/29 From - Total]],Dataset[[#This Row],[2028/29 To - Total]])","v":0},{"$f":"SUM(Dataset[[#This Row],[2029/30 Targeted savings]],Dataset[[#This Row],[2029/30 From - Total]],Dataset[[#This Row],[2029/30 To - Total]])","v":0},{"$f":"Dataset[[#This Row],[2026/27 Baseline]]+Dataset[[#This Row],[2026/27 Total change]]","v":0},{"$f":"Dataset[[#This Row],[2027/28 Baseline]]+Dataset[[#This Row],[2027/28 Total change]]","v":0},{"$f":"Dataset[[#This Row],[2028/29 Baseline]]+Dataset[[#This Row],[2028/29 Total change]]","v":0},{"$f":"Dataset[[#This Row],[2029/30 Baseline]]+Dataset[[#This Row],[2029/30 Total change]]","v":0}]
["NAT|Non-transfer item","30|Inventory: Fuel, oil and gas","2027_28","MTEC2027",30,1,1,32544,24,"30","01","01","032544","000024","30|01|01|000024","01","01","02","24","24","01|01|02|24|24","National","Communications and Digital Technologies","Administration","Ministry","Non-transfer item","Current","Current payments","Goods and services","Inventory: Fuel, oil and gas","Inventory: Fuel, oil and gas","Economic development","Economic regulation and infrastructure","NAT",0,0,0,0,0,0,0,0,0,0,0,null,null,null,null,null,null,null,null,null,null,null,null,null,null,null,null,null,null,null,null,null,null,null,null,null,null,null,null,null,null,null,null,null,null,{"$f":"Dataset[[#This Row],[2027/28 From - Spending review Topic 1]]+Dataset[[#This Row],[2027/28 From - Spending review Topic 2]]+Dataset[[#This Row],[2027/28 From - Spending review Topic 3]]+Dataset[[#This Row],[2027/28 From - Spending review Topic 4]]+Dataset[[#This Row],[2027/28 From - Other reallocations]]","v":0},{"$f":"Dataset[[#This Row],[2028/29 From - Spending review Topic 1]]+Dataset[[#This Row],[2028/29 From - Spending review Topic 2]]+Dataset[[#This Row],[2028/29 From - Spending review Topic 3]]+Dataset[[#This Row],[2028/29 From - Spending review Topic 4]]+Dataset[[#This Row],[2028/29 From - Other reallocations]]","v":0},{"$f":"Dataset[[#This Row],[2029/30 From - Spending review Topic 1]]+Dataset[[#This Row],[2029/30 From - Spending review Topic 2]]+Dataset[[#This Row],[2029/30 From - Spending review Topic 3]]+Dataset[[#This Row],[2029/30 From - Spending review Topic 4]]+Dataset[[#This Row],[2029/30 From - Other reallocations]]","v":0},{"$f":"Dataset[[#This Row],[2027/28 To - Spending review Topic 1]]+Dataset[[#This Row],[2027/28 To - Spending review Topic 2]]+Dataset[[#This Row],[2027/28 To - Spending review Topic 3]]+Dataset[[#This Row],[2027/28 To - Spending review Topic 4]]+Dataset[[#This Row],[2027/28 To - Other reallocations]]","v":0},{"$f":"Dataset[[#This Row],[2028/29 To - Spending review Topic 1]]+Dataset[[#This Row],[2028/29 To - Spending review Topic 2]]+Dataset[[#This Row],[2028/29 To - Spending review Topic 3]]+Dataset[[#This Row],[2028/29 To - Spending review Topic 4]]+Dataset[[#This Row],[2028/29 To - Other reallocations]]","v":0},{"$f":"Dataset[[#This Row],[2029/30 To - Spending review Topic 1]]+Dataset[[#This Row],[2029/30 To - Spending review Topic 2]]+Dataset[[#This Row],[2029/30 To - Spending review Topic 3]]+Dataset[[#This Row],[2029/30 To - Spending review Topic 4]]+Dataset[[#This Row],[2029/30 To - Other reallocations]]","v":0},{"$f":"Dataset[[#This Row],[2027/28 Targeted savings]]+Dataset[[#This Row],[2027/28 From - Total]]","v":0},{"$f":"Dataset[[#This Row],[2028/29 Targeted savings]]+Dataset[[#This Row],[2028/29 From - Total]]","v":0},{"$f":"Dataset[[#This Row],[2029/30 Targeted savings]]+Dataset[[#This Row],[2029/30 From - Total]]","v":0},{"$f":"Dataset[[#This Row],[2026/27 Targeted savings]]","v":0},{"$f":"SUM(Dataset[[#This Row],[2027/28 Targeted savings]],Dataset[[#This Row],[2027/28 From - Total]],Dataset[[#This Row],[2027/28 To - Total]])","v":0},{"$f":"SUM(Dataset[[#This Row],[2028/29 Targeted savings]],Dataset[[#This Row],[2028/29 From - Total]],Dataset[[#This Row],[2028/29 To - Total]])","v":0},{"$f":"SUM(Dataset[[#This Row],[2029/30 Targeted savings]],Dataset[[#This Row],[2029/30 From - Total]],Dataset[[#This Row],[2029/30 To - Total]])","v":0},{"$f":"Dataset[[#This Row],[2026/27 Baseline]]+Dataset[[#This Row],[2026/27 Total change]]","v":0},{"$f":"Dataset[[#This Row],[2027/28 Baseline]]+Dataset[[#This Row],[2027/28 Total change]]","v":0},{"$f":"Dataset[[#This Row],[2028/29 Baseline]]+Dataset[[#This Row],[2028/29 Total change]]","v":0},{"$f":"Dataset[[#This Row],[2029/30 Baseline]]+Dataset[[#This Row],[2029/30 Total change]]","v":0}]
["NAT|Non-transfer item","30|Inventory: Learner and teacher support material","2027_28","MTEC2027",30,1,1,32545,25,"30","01","01","032545","000025","30|01|01|000025","01","01","02","25","25","01|01|02|25|25","National","Communications and Digital Technologies","Administration","Ministry","Non-transfer item","Current","Current payments","Goods and services","Inventory: Learner and teacher support material","Inventory: Learner and teacher support material","Economic development","Economic regulation and infrastructure","NAT",0,0,0,0,0,0,0,0,0,0,0,null,null,null,null,null,null,null,null,null,null,null,null,null,null,null,null,null,null,null,null,null,null,null,null,null,null,null,null,null,null,null,null,null,null,{"$f":"Dataset[[#This Row],[2027/28 From - Spending review Topic 1]]+Dataset[[#This Row],[2027/28 From - Spending review Topic 2]]+Dataset[[#This Row],[2027/28 From - Spending review Topic 3]]+Dataset[[#This Row],[2027/28 From - Spending review Topic 4]]+Dataset[[#This Row],[2027/28 From - Other reallocations]]","v":0},{"$f":"Dataset[[#This Row],[2028/29 From - Spending review Topic 1]]+Dataset[[#This Row],[2028/29 From - Spending review Topic 2]]+Dataset[[#This Row],[2028/29 From - Spending review Topic 3]]+Dataset[[#This Row],[2028/29 From - Spending review Topic 4]]+Dataset[[#This Row],[2028/29 From - Other reallocations]]","v":0},{"$f":"Dataset[[#This Row],[2029/30 From - Spending review Topic 1]]+Dataset[[#This Row],[2029/30 From - Spending review Topic 2]]+Dataset[[#This Row],[2029/30 From - Spending review Topic 3]]+Dataset[[#This Row],[2029/30 From - Spending review Topic 4]]+Dataset[[#This Row],[2029/30 From - Other reallocations]]","v":0},{"$f":"Dataset[[#This Row],[2027/28 To - Spending review Topic 1]]+Dataset[[#This Row],[2027/28 To - Spending review Topic 2]]+Dataset[[#This Row],[2027/28 To - Spending review Topic 3]]+Dataset[[#This Row],[2027/28 To - Spending review Topic 4]]+Dataset[[#This Row],[2027/28 To - Other reallocations]]","v":0},{"$f":"Dataset[[#This Row],[2028/29 To - Spending review Topic 1]]+Dataset[[#This Row],[2028/29 To - Spending review Topic 2]]+Dataset[[#This Row],[2028/29 To - Spending review Topic 3]]+Dataset[[#This Row],[2028/29 To - Spending review Topic 4]]+Dataset[[#This Row],[2028/29 To - Other reallocations]]","v":0},{"$f":"Dataset[[#This Row],[2029/30 To - Spending review Topic 1]]+Dataset[[#This Row],[2029/30 To - Spending review Topic 2]]+Dataset[[#This Row],[2029/30 To - Spending review Topic 3]]+Dataset[[#This Row],[2029/30 To - Spending review Topic 4]]+Dataset[[#This Row],[2029/30 To - Other reallocations]]","v":0},{"$f":"Dataset[[#This Row],[2027/28 Targeted savings]]+Dataset[[#This Row],[2027/28 From - Total]]","v":0},{"$f":"Dataset[[#This Row],[2028/29 Targeted savings]]+Dataset[[#This Row],[2028/29 From - Total]]","v":0},{"$f":"Dataset[[#This Row],[2029/30 Targeted savings]]+Dataset[[#This Row],[2029/30 From - Total]]","v":0},{"$f":"Dataset[[#This Row],[2026/27 Targeted savings]]","v":0},{"$f":"SUM(Dataset[[#This Row],[2027/28 Targeted savings]],Dataset[[#This Row],[2027/28 From - Total]],Dataset[[#This Row],[2027/28 To - Total]])","v":0},{"$f":"SUM(Dataset[[#This Row],[2028/29 Targeted savings]],Dataset[[#This Row],[2028/29 From - Total]],Dataset[[#This Row],[2028/29 To - Total]])","v":0},{"$f":"SUM(Dataset[[#This Row],[2029/30 Targeted savings]],Dataset[[#This Row],[2029/30 From - Total]],Dataset[[#This Row],[2029/30 To - Total]])","v":0},{"$f":"Dataset[[#This Row],[2026/27 Baseline]]+Dataset[[#This Row],[2026/27 Total change]]","v":0},{"$f":"Dataset[[#This Row],[2027/28 Baseline]]+Dataset[[#This Row],[2027/28 Total change]]","v":0},{"$f":"Dataset[[#This Row],[2028/29 Baseline]]+Dataset[[#This Row],[2028/29 Total change]]","v":0},{"$f":"Dataset[[#This Row],[2029/30 Baseline]]+Dataset[[#This Row],[2029/30 Total change]]","v":0}]
["NAT|Non-transfer item","30|Inventory: Materials and supplies","2027_28","MTEC2027",30,1,1,32546,26,"30","01","01","032546","000026","30|01|01|000026","01","01","02","26","26","01|01|02|26|26","National","Communications and Digital Technologies","Administration","Ministry","Non-transfer item","Current","Current payments","Goods and services","Inventory: Materials and supplies","Inventory: Materials and supplies","Economic development","Economic regulation and infrastructure","NAT",0,0,0,0,0,0,0,0,0,0,0,null,null,null,null,null,null,null,null,null,null,null,null,null,null,null,null,null,null,null,null,null,null,null,null,null,null,null,null,null,null,null,null,null,null,{"$f":"Dataset[[#This Row],[2027/28 From - Spending review Topic 1]]+Dataset[[#This Row],[2027/28 From - Spending review Topic 2]]+Dataset[[#This Row],[2027/28 From - Spending review Topic 3]]+Dataset[[#This Row],[2027/28 From - Spending review Topic 4]]+Dataset[[#This Row],[2027/28 From - Other reallocations]]","v":0},{"$f":"Dataset[[#This Row],[2028/29 From - Spending review Topic 1]]+Dataset[[#This Row],[2028/29 From - Spending review Topic 2]]+Dataset[[#This Row],[2028/29 From - Spending review Topic 3]]+Dataset[[#This Row],[2028/29 From - Spending review Topic 4]]+Dataset[[#This Row],[2028/29 From - Other reallocations]]","v":0},{"$f":"Dataset[[#This Row],[2029/30 From - Spending review Topic 1]]+Dataset[[#This Row],[2029/30 From - Spending review Topic 2]]+Dataset[[#This Row],[2029/30 From - Spending review Topic 3]]+Dataset[[#This Row],[2029/30 From - Spending review Topic 4]]+Dataset[[#This Row],[2029/30 From - Other reallocations]]","v":0},{"$f":"Dataset[[#This Row],[2027/28 To - Spending review Topic 1]]+Dataset[[#This Row],[2027/28 To - Spending review Topic 2]]+Dataset[[#This Row],[2027/28 To - Spending review Topic 3]]+Dataset[[#This Row],[2027/28 To - Spending review Topic 4]]+Dataset[[#This Row],[2027/28 To - Other reallocations]]","v":0},{"$f":"Dataset[[#This Row],[2028/29 To - Spending review Topic 1]]+Dataset[[#This Row],[2028/29 To - Spending review Topic 2]]+Dataset[[#This Row],[2028/29 To - Spending review Topic 3]]+Dataset[[#This Row],[2028/29 To - Spending review Topic 4]]+Dataset[[#This Row],[2028/29 To - Other reallocations]]","v":0},{"$f":"Dataset[[#This Row],[2029/30 To - Spending review Topic 1]]+Dataset[[#This Row],[2029/30 To - Spending review Topic 2]]+Dataset[[#This Row],[2029/30 To - Spending review Topic 3]]+Dataset[[#This Row],[2029/30 To - Spending review Topic 4]]+Dataset[[#This Row],[2029/30 To - Other reallocations]]","v":0},{"$f":"Dataset[[#This Row],[2027/28 Targeted savings]]+Dataset[[#This Row],[2027/28 From - Total]]","v":0},{"$f":"Dataset[[#This Row],[2028/29 Targeted savings]]+Dataset[[#This Row],[2028/29 From - Total]]","v":0},{"$f":"Dataset[[#This Row],[2029/30 Targeted savings]]+Dataset[[#This Row],[2029/30 From - Total]]","v":0},{"$f":"Dataset[[#This Row],[2026/27 Targeted savings]]","v":0},{"$f":"SUM(Dataset[[#This Row],[2027/28 Targeted savings]],Dataset[[#This Row],[2027/28 From - Total]],Dataset[[#This Row],[2027/28 To - Total]])","v":0},{"$f":"SUM(Dataset[[#This Row],[2028/29 Targeted savings]],Dataset[[#This Row],[2028/29 From - Total]],Dataset[[#This Row],[2028/29 To - Total]])","v":0},{"$f":"SUM(Dataset[[#This Row],[2029/30 Targeted savings]],Dataset[[#This Row],[2029/30 From - Total]],Dataset[[#This Row],[2029/30 To - Total]])","v":0},{"$f":"Dataset[[#This Row],[2026/27 Baseline]]+Dataset[[#This Row],[2026/27 Total change]]","v":0},{"$f":"Dataset[[#This Row],[2027/28 Baseline]]+Dataset[[#This Row],[2027/28 Total change]]","v":0},{"$f":"Dataset[[#This Row],[2028/29 Baseline]]+Dataset[[#This Row],[2028/29 Total change]]","v":0},{"$f":"Dataset[[#This Row],[2029/30 Baseline]]+Dataset[[#This Row],[2029/30 Total change]]","v":0}]
["NAT|Non-transfer item","30|Inventory: Medical supplies","2027_28","MTEC2027",30,1,1,32547,27,"30","01","01","032547","000027","30|01|01|000027","01","01","02","27","27","01|01|02|27|27","National","Communications and Digital Technologies","Administration","Ministry","Non-transfer item","Current","Current payments","Goods and services","Inventory: Medical supplies","Inventory: Medical supplies","Economic development","Economic regulation and infrastructure","NAT",0,0,0,0,0,0,0,0,0,0,0,null,null,null,null,null,null,null,null,null,null,null,null,null,null,null,null,null,null,null,null,null,null,null,null,null,null,null,null,null,null,null,null,null,null,{"$f":"Dataset[[#This Row],[2027/28 From - Spending review Topic 1]]+Dataset[[#This Row],[2027/28 From - Spending review Topic 2]]+Dataset[[#This Row],[2027/28 From - Spending review Topic 3]]+Dataset[[#This Row],[2027/28 From - Spending review Topic 4]]+Dataset[[#This Row],[2027/28 From - Other reallocations]]","v":0},{"$f":"Dataset[[#This Row],[2028/29 From - Spending review Topic 1]]+Dataset[[#This Row],[2028/29 From - Spending review Topic 2]]+Dataset[[#This Row],[2028/29 From - Spending review Topic 3]]+Dataset[[#This Row],[2028/29 From - Spending review Topic 4]]+Dataset[[#This Row],[2028/29 From - Other reallocations]]","v":0},{"$f":"Dataset[[#This Row],[2029/30 From - Spending review Topic 1]]+Dataset[[#This Row],[2029/30 From - Spending review Topic 2]]+Dataset[[#This Row],[2029/30 From - Spending review Topic 3]]+Dataset[[#This Row],[2029/30 From - Spending review Topic 4]]+Dataset[[#This Row],[2029/30 From - Other reallocations]]","v":0},{"$f":"Dataset[[#This Row],[2027/28 To - Spending review Topic 1]]+Dataset[[#This Row],[2027/28 To - Spending review Topic 2]]+Dataset[[#This Row],[2027/28 To - Spending review Topic 3]]+Dataset[[#This Row],[2027/28 To - Spending review Topic 4]]+Dataset[[#This Row],[2027/28 To - Other reallocations]]","v":0},{"$f":"Dataset[[#This Row],[2028/29 To - Spending review Topic 1]]+Dataset[[#This Row],[2028/29 To - Spending review Topic 2]]+Dataset[[#This Row],[2028/29 To - Spending review Topic 3]]+Dataset[[#This Row],[2028/29 To - Spending review Topic 4]]+Dataset[[#This Row],[2028/29 To - Other reallocations]]","v":0},{"$f":"Dataset[[#This Row],[2029/30 To - Spending review Topic 1]]+Dataset[[#This Row],[2029/30 To - Spending review Topic 2]]+Dataset[[#This Row],[2029/30 To - Spending review Topic 3]]+Dataset[[#This Row],[2029/30 To - Spending review Topic 4]]+Dataset[[#This Row],[2029/30 To - Other reallocations]]","v":0},{"$f":"Dataset[[#This Row],[2027/28 Targeted savings]]+Dataset[[#This Row],[2027/28 From - Total]]","v":0},{"$f":"Dataset[[#This Row],[2028/29 Targeted savings]]+Dataset[[#This Row],[2028/29 From - Total]]","v":0},{"$f":"Dataset[[#This Row],[2029/30 Targeted savings]]+Dataset[[#This Row],[2029/30 From - Total]]","v":0},{"$f":"Dataset[[#This Row],[2026/27 Targeted savings]]","v":0},{"$f":"SUM(Dataset[[#This Row],[2027/28 Targeted savings]],Dataset[[#This Row],[2027/28 From - Total]],Dataset[[#This Row],[2027/28 To - Total]])","v":0},{"$f":"SUM(Dataset[[#This Row],[2028/29 Targeted savings]],Dataset[[#This Row],[2028/29 From - Total]],Dataset[[#This Row],[2028/29 To - Total]])","v":0},{"$f":"SUM(Dataset[[#This Row],[2029/30 Targeted savings]],Dataset[[#This Row],[2029/30 From - Total]],Dataset[[#This Row],[2029/30 To - Total]])","v":0},{"$f":"Dataset[[#This Row],[2026/27 Baseline]]+Dataset[[#This Row],[2026/27 Total change]]","v":0},{"$f":"Dataset[[#This Row],[2027/28 Baseline]]+Dataset[[#This Row],[2027/28 Total change]]","v":0},{"$f":"Dataset[[#This Row],[2028/29 Baseline]]+Dataset[[#This Row],[2028/29 Total change]]","v":0},{"$f":"Dataset[[#This Row],[2029/30 Baseline]]+Dataset[[#This Row],[2029/30 Total change]]","v":0}]
["NAT|Non-transfer item","30|Inventory: Medicine","2027_28","MTEC2027",30,1,1,32548,28,"30","01","01","032548","000028","30|01|01|000028","01","01","02","28","28","01|01|02|28|28","National","Communications and Digital Technologies","Administration","Ministry","Non-transfer item","Current","Current payments","Goods and services","Inventory: Medicine","Inventory: Medicine","Economic development","Economic regulation and infrastructure","NAT",0,0,0,0,0,0,0,0,0,0,0,null,null,null,null,null,null,null,null,null,null,null,null,null,null,null,null,null,null,null,null,null,null,null,null,null,null,null,null,null,null,null,null,null,null,{"$f":"Dataset[[#This Row],[2027/28 From - Spending review Topic 1]]+Dataset[[#This Row],[2027/28 From - Spending review Topic 2]]+Dataset[[#This Row],[2027/28 From - Spending review Topic 3]]+Dataset[[#This Row],[2027/28 From - Spending review Topic 4]]+Dataset[[#This Row],[2027/28 From - Other reallocations]]","v":0},{"$f":"Dataset[[#This Row],[2028/29 From - Spending review Topic 1]]+Dataset[[#This Row],[2028/29 From - Spending review Topic 2]]+Dataset[[#This Row],[2028/29 From - Spending review Topic 3]]+Dataset[[#This Row],[2028/29 From - Spending review Topic 4]]+Dataset[[#This Row],[2028/29 From - Other reallocations]]","v":0},{"$f":"Dataset[[#This Row],[2029/30 From - Spending review Topic 1]]+Dataset[[#This Row],[2029/30 From - Spending review Topic 2]]+Dataset[[#This Row],[2029/30 From - Spending review Topic 3]]+Dataset[[#This Row],[2029/30 From - Spending review Topic 4]]+Dataset[[#This Row],[2029/30 From - Other reallocations]]","v":0},{"$f":"Dataset[[#This Row],[2027/28 To - Spending review Topic 1]]+Dataset[[#This Row],[2027/28 To - Spending review Topic 2]]+Dataset[[#This Row],[2027/28 To - Spending review Topic 3]]+Dataset[[#This Row],[2027/28 To - Spending review Topic 4]]+Dataset[[#This Row],[2027/28 To - Other reallocations]]","v":0},{"$f":"Dataset[[#This Row],[2028/29 To - Spending review Topic 1]]+Dataset[[#This Row],[2028/29 To - Spending review Topic 2]]+Dataset[[#This Row],[2028/29 To - Spending review Topic 3]]+Dataset[[#This Row],[2028/29 To - Spending review Topic 4]]+Dataset[[#This Row],[2028/29 To - Other reallocations]]","v":0},{"$f":"Dataset[[#This Row],[2029/30 To - Spending review Topic 1]]+Dataset[[#This Row],[2029/30 To - Spending review Topic 2]]+Dataset[[#This Row],[2029/30 To - Spending review Topic 3]]+Dataset[[#This Row],[2029/30 To - Spending review Topic 4]]+Dataset[[#This Row],[2029/30 To - Other reallocations]]","v":0},{"$f":"Dataset[[#This Row],[2027/28 Targeted savings]]+Dataset[[#This Row],[2027/28 From - Total]]","v":0},{"$f":"Dataset[[#This Row],[2028/29 Targeted savings]]+Dataset[[#This Row],[2028/29 From - Total]]","v":0},{"$f":"Dataset[[#This Row],[2029/30 Targeted savings]]+Dataset[[#This Row],[2029/30 From - Total]]","v":0},{"$f":"Dataset[[#This Row],[2026/27 Targeted savings]]","v":0},{"$f":"SUM(Dataset[[#This Row],[2027/28 Targeted savings]],Dataset[[#This Row],[2027/28 From - Total]],Dataset[[#This Row],[2027/28 To - Total]])","v":0},{"$f":"SUM(Dataset[[#This Row],[2028/29 Targeted savings]],Dataset[[#This Row],[2028/29 From - Total]],Dataset[[#This Row],[2028/29 To - Total]])","v":0},{"$f":"SUM(Dataset[[#This Row],[2029/30 Targeted savings]],Dataset[[#This Row],[2029/30 From - Total]],Dataset[[#This Row],[2029/30 To - Total]])","v":0},{"$f":"Dataset[[#This Row],[2026/27 Baseline]]+Dataset[[#This Row],[2026/27 Total change]]","v":0},{"$f":"Dataset[[#This Row],[2027/28 Baseline]]+Dataset[[#This Row],[2027/28 Total change]]","v":0},{"$f":"Dataset[[#This Row],[2028/29 Baseline]]+Dataset[[#This Row],[2028/29 Total change]]","v":0},{"$f":"Dataset[[#This Row],[2029/30 Baseline]]+Dataset[[#This Row],[2029/30 Total change]]","v":0}]
["NAT|Non-transfer item","30|Medsas inventory interface","2027_28","MTEC2027",30,1,1,32549,29,"30","01","01","032549","000029","30|01|01|000029","01","01","02","29","29","01|01|02|29|29","National","Communications and Digital Technologies","Administration","Ministry","Non-transfer item","Current","Current payments","Goods and services","Medsas inventory interface","Medsas inventory interface","Economic development","Economic regulation and infrastructure","NAT",0,0,0,0,0,0,0,0,0,0,0,null,null,null,null,null,null,null,null,null,null,null,null,null,null,null,null,null,null,null,null,null,null,null,null,null,null,null,null,null,null,null,null,null,null,{"$f":"Dataset[[#This Row],[2027/28 From - Spending review Topic 1]]+Dataset[[#This Row],[2027/28 From - Spending review Topic 2]]+Dataset[[#This Row],[2027/28 From - Spending review Topic 3]]+Dataset[[#This Row],[2027/28 From - Spending review Topic 4]]+Dataset[[#This Row],[2027/28 From - Other reallocations]]","v":0},{"$f":"Dataset[[#This Row],[2028/29 From - Spending review Topic 1]]+Dataset[[#This Row],[2028/29 From - Spending review Topic 2]]+Dataset[[#This Row],[2028/29 From - Spending review Topic 3]]+Dataset[[#This Row],[2028/29 From - Spending review Topic 4]]+Dataset[[#This Row],[2028/29 From - Other reallocations]]","v":0},{"$f":"Dataset[[#This Row],[2029/30 From - Spending review Topic 1]]+Dataset[[#This Row],[2029/30 From - Spending review Topic 2]]+Dataset[[#This Row],[2029/30 From - Spending review Topic 3]]+Dataset[[#This Row],[2029/30 From - Spending review Topic 4]]+Dataset[[#This Row],[2029/30 From - Other reallocations]]","v":0},{"$f":"Dataset[[#This Row],[2027/28 To - Spending review Topic 1]]+Dataset[[#This Row],[2027/28 To - Spending review Topic 2]]+Dataset[[#This Row],[2027/28 To - Spending review Topic 3]]+Dataset[[#This Row],[2027/28 To - Spending review Topic 4]]+Dataset[[#This Row],[2027/28 To - Other reallocations]]","v":0},{"$f":"Dataset[[#This Row],[2028/29 To - Spending review Topic 1]]+Dataset[[#This Row],[2028/29 To - Spending review Topic 2]]+Dataset[[#This Row],[2028/29 To - Spending review Topic 3]]+Dataset[[#This Row],[2028/29 To - Spending review Topic 4]]+Dataset[[#This Row],[2028/29 To - Other reallocations]]","v":0},{"$f":"Dataset[[#This Row],[2029/30 To - Spending review Topic 1]]+Dataset[[#This Row],[2029/30 To - Spending review Topic 2]]+Dataset[[#This Row],[2029/30 To - Spending review Topic 3]]+Dataset[[#This Row],[2029/30 To - Spending review Topic 4]]+Dataset[[#This Row],[2029/30 To - Other reallocations]]","v":0},{"$f":"Dataset[[#This Row],[2027/28 Targeted savings]]+Dataset[[#This Row],[2027/28 From - Total]]","v":0},{"$f":"Dataset[[#This Row],[2028/29 Targeted savings]]+Dataset[[#This Row],[2028/29 From - Total]]","v":0},{"$f":"Dataset[[#This Row],[2029/30 Targeted savings]]+Dataset[[#This Row],[2029/30 From - Total]]","v":0},{"$f":"Dataset[[#This Row],[2026/27 Targeted savings]]","v":0},{"$f":"SUM(Dataset[[#This Row],[2027/28 Targeted savings]],Dataset[[#This Row],[2027/28 From - Total]],Dataset[[#This Row],[2027/28 To - Total]])","v":0},{"$f":"SUM(Dataset[[#This Row],[2028/29 Targeted savings]],Dataset[[#This Row],[2028/29 From - Total]],Dataset[[#This Row],[2028/29 To - Total]])","v":0},{"$f":"SUM(Dataset[[#This Row],[2029/30 Targeted savings]],Dataset[[#This Row],[2029/30 From - Total]],Dataset[[#This Row],[2029/30 To - Total]])","v":0},{"$f":"Dataset[[#This Row],[2026/27 Baseline]]+Dataset[[#This Row],[2026/27 Total change]]","v":0},{"$f":"Dataset[[#This Row],[2027/28 Baseline]]+Dataset[[#This Row],[2027/28 Total change]]","v":0},{"$f":"Dataset[[#This Row],[2028/29 Baseline]]+Dataset[[#This Row],[2028/29 Total change]]","v":0},{"$f":"Dataset[[#This Row],[2029/30 Baseline]]+Dataset[[#This Row],[2029/30 Total change]]","v":0}]
["NAT|Non-transfer item","30|Inventory: Other supplies","2027_28","MTEC2027",30,1,1,32550,30,"30","01","01","032550","000030","30|01|01|000030","01","01","02","30","30","01|01|02|30|30","National","Communications and Digital Technologies","Administration","Ministry","Non-transfer item","Current","Current payments","Goods and services","Inventory: Other supplies","Inventory: Other supplies","Economic development","Economic regulation and infrastructure","NAT",0,0,0,0,0,0,0,0,0,0,0,null,null,null,null,null,null,null,null,null,null,null,null,null,null,null,null,null,null,null,null,null,null,null,null,null,null,null,null,null,null,null,null,null,null,{"$f":"Dataset[[#This Row],[2027/28 From - Spending review Topic 1]]+Dataset[[#This Row],[2027/28 From - Spending review Topic 2]]+Dataset[[#This Row],[2027/28 From - Spending review Topic 3]]+Dataset[[#This Row],[2027/28 From - Spending review Topic 4]]+Dataset[[#This Row],[2027/28 From - Other reallocations]]","v":0},{"$f":"Dataset[[#This Row],[2028/29 From - Spending review Topic 1]]+Dataset[[#This Row],[2028/29 From - Spending review Topic 2]]+Dataset[[#This Row],[2028/29 From - Spending review Topic 3]]+Dataset[[#This Row],[2028/29 From - Spending review Topic 4]]+Dataset[[#This Row],[2028/29 From - Other reallocations]]","v":0},{"$f":"Dataset[[#This Row],[2029/30 From - Spending review Topic 1]]+Dataset[[#This Row],[2029/30 From - Spending review Topic 2]]+Dataset[[#This Row],[2029/30 From - Spending review Topic 3]]+Dataset[[#This Row],[2029/30 From - Spending review Topic 4]]+Dataset[[#This Row],[2029/30 From - Other reallocations]]","v":0},{"$f":"Dataset[[#This Row],[2027/28 To - Spending review Topic 1]]+Dataset[[#This Row],[2027/28 To - Spending review Topic 2]]+Dataset[[#This Row],[2027/28 To - Spending review Topic 3]]+Dataset[[#This Row],[2027/28 To - Spending review Topic 4]]+Dataset[[#This Row],[2027/28 To - Other reallocations]]","v":0},{"$f":"Dataset[[#This Row],[2028/29 To - Spending review Topic 1]]+Dataset[[#This Row],[2028/29 To - Spending review Topic 2]]+Dataset[[#This Row],[2028/29 To - Spending review Topic 3]]+Dataset[[#This Row],[2028/29 To - Spending review Topic 4]]+Dataset[[#This Row],[2028/29 To - Other reallocations]]","v":0},{"$f":"Dataset[[#This Row],[2029/30 To - Spending review Topic 1]]+Dataset[[#This Row],[2029/30 To - Spending review Topic 2]]+Dataset[[#This Row],[2029/30 To - Spending review Topic 3]]+Dataset[[#This Row],[2029/30 To - Spending review Topic 4]]+Dataset[[#This Row],[2029/30 To - Other reallocations]]","v":0},{"$f":"Dataset[[#This Row],[2027/28 Targeted savings]]+Dataset[[#This Row],[2027/28 From - Total]]","v":0},{"$f":"Dataset[[#This Row],[2028/29 Targeted savings]]+Dataset[[#This Row],[2028/29 From - Total]]","v":0},{"$f":"Dataset[[#This Row],[2029/30 Targeted savings]]+Dataset[[#This Row],[2029/30 From - Total]]","v":0},{"$f":"Dataset[[#This Row],[2026/27 Targeted savings]]","v":0},{"$f":"SUM(Dataset[[#This Row],[2027/28 Targeted savings]],Dataset[[#This Row],[2027/28 From - Total]],Dataset[[#This Row],[2027/28 To - Total]])","v":0},{"$f":"SUM(Dataset[[#This Row],[2028/29 Targeted savings]],Dataset[[#This Row],[2028/29 From - Total]],Dataset[[#This Row],[2028/29 To - Total]])","v":0},{"$f":"SUM(Dataset[[#This Row],[2029/30 Targeted savings]],Dataset[[#This Row],[2029/30 From - Total]],Dataset[[#This Row],[2029/30 To - Total]])","v":0},{"$f":"Dataset[[#This Row],[2026/27 Baseline]]+Dataset[[#This Row],[2026/27 Total change]]","v":0},{"$f":"Dataset[[#This Row],[2027/28 Baseline]]+Dataset[[#This Row],[2027/28 Total change]]","v":0},{"$f":"Dataset[[#This Row],[2028/29 Baseline]]+Dataset[[#This Row],[2028/29 Total change]]","v":0},{"$f":"Dataset[[#This Row],[2029/30 Baseline]]+Dataset[[#This Row],[2029/30 Total change]]","v":0}]
["NAT|Non-transfer item","30|Consumable supplies","2027_28","MTEC2027",30,1,1,32551,31,"30","01","01","032551","000031","30|01|01|000031","01","01","02","31","31","01|01|02|31|31","National","Communications and Digital Technologies","Administration","Ministry","Non-transfer item","Current","Current payments","Goods and services","Consumable supplies","Consumable supplies","Economic development","Economic regulation and infrastructure","NAT",0,0,0,0,0,0,0,0,0,0,0,null,null,null,null,null,null,null,null,null,null,null,null,null,null,null,null,null,null,null,null,null,null,null,null,null,null,null,null,null,null,null,null,null,null,{"$f":"Dataset[[#This Row],[2027/28 From - Spending review Topic 1]]+Dataset[[#This Row],[2027/28 From - Spending review Topic 2]]+Dataset[[#This Row],[2027/28 From - Spending review Topic 3]]+Dataset[[#This Row],[2027/28 From - Spending review Topic 4]]+Dataset[[#This Row],[2027/28 From - Other reallocations]]","v":0},{"$f":"Dataset[[#This Row],[2028/29 From - Spending review Topic 1]]+Dataset[[#This Row],[2028/29 From - Spending review Topic 2]]+Dataset[[#This Row],[2028/29 From - Spending review Topic 3]]+Dataset[[#This Row],[2028/29 From - Spending review Topic 4]]+Dataset[[#This Row],[2028/29 From - Other reallocations]]","v":0},{"$f":"Dataset[[#This Row],[2029/30 From - Spending review Topic 1]]+Dataset[[#This Row],[2029/30 From - Spending review Topic 2]]+Dataset[[#This Row],[2029/30 From - Spending review Topic 3]]+Dataset[[#This Row],[2029/30 From - Spending review Topic 4]]+Dataset[[#This Row],[2029/30 From - Other reallocations]]","v":0},{"$f":"Dataset[[#This Row],[2027/28 To - Spending review Topic 1]]+Dataset[[#This Row],[2027/28 To - Spending review Topic 2]]+Dataset[[#This Row],[2027/28 To - Spending review Topic 3]]+Dataset[[#This Row],[2027/28 To - Spending review Topic 4]]+Dataset[[#This Row],[2027/28 To - Other reallocations]]","v":0},{"$f":"Dataset[[#This Row],[2028/29 To - Spending review Topic 1]]+Dataset[[#This Row],[2028/29 To - Spending review Topic 2]]+Dataset[[#This Row],[2028/29 To - Spending review Topic 3]]+Dataset[[#This Row],[2028/29 To - Spending review Topic 4]]+Dataset[[#This Row],[2028/29 To - Other reallocations]]","v":0},{"$f":"Dataset[[#This Row],[2029/30 To - Spending review Topic 1]]+Dataset[[#This Row],[2029/30 To - Spending review Topic 2]]+Dataset[[#This Row],[2029/30 To - Spending review Topic 3]]+Dataset[[#This Row],[2029/30 To - Spending review Topic 4]]+Dataset[[#This Row],[2029/30 To - Other reallocations]]","v":0},{"$f":"Dataset[[#This Row],[2027/28 Targeted savings]]+Dataset[[#This Row],[2027/28 From - Total]]","v":0},{"$f":"Dataset[[#This Row],[2028/29 Targeted savings]]+Dataset[[#This Row],[2028/29 From - Total]]","v":0},{"$f":"Dataset[[#This Row],[2029/30 Targeted savings]]+Dataset[[#This Row],[2029/30 From - Total]]","v":0},{"$f":"Dataset[[#This Row],[2026/27 Targeted savings]]","v":0},{"$f":"SUM(Dataset[[#This Row],[2027/28 Targeted savings]],Dataset[[#This Row],[2027/28 From - Total]],Dataset[[#This Row],[2027/28 To - Total]])","v":0},{"$f":"SUM(Dataset[[#This Row],[2028/29 Targeted savings]],Dataset[[#This Row],[2028/29 From - Total]],Dataset[[#This Row],[2028/29 To - Total]])","v":0},{"$f":"SUM(Dataset[[#This Row],[2029/30 Targeted savings]],Dataset[[#This Row],[2029/30 From - Total]],Dataset[[#This Row],[2029/30 To - Total]])","v":0},{"$f":"Dataset[[#This Row],[2026/27 Baseline]]+Dataset[[#This Row],[2026/27 Total change]]","v":0},{"$f":"Dataset[[#This Row],[2027/28 Baseline]]+Dataset[[#This Row],[2027/28 Total change]]","v":0},{"$f":"Dataset[[#This Row],[2028/29 Baseline]]+Dataset[[#This Row],[2028/29 Total change]]","v":0},{"$f":"Dataset[[#This Row],[2029/30 Baseline]]+Dataset[[#This Row],[2029/30 Total change]]","v":0}]
["NAT|Non-transfer item","30|Consumables: Stationery, printing and office supplies","2027_28","MTEC2027",30,1,1,32552,32,"30","01","01","032552","000032","30|01|01|000032","01","01","02","32","32","01|01|02|32|32","National","Communications and Digital Technologies","Administration","Ministry","Non-transfer item","Current","Current payments","Goods and services","Consumables: Stationery, printing and office supplies","Consumables: Stationery, printing and office supplies","Economic development","Economic regulation and infrastructure","NAT",0,0,0,0,0,0,0,0,0,0,0,null,null,null,null,null,null,null,null,null,null,null,null,null,null,null,null,null,null,null,null,null,null,null,null,null,null,null,null,null,null,null,null,null,null,{"$f":"Dataset[[#This Row],[2027/28 From - Spending review Topic 1]]+Dataset[[#This Row],[2027/28 From - Spending review Topic 2]]+Dataset[[#This Row],[2027/28 From - Spending review Topic 3]]+Dataset[[#This Row],[2027/28 From - Spending review Topic 4]]+Dataset[[#This Row],[2027/28 From - Other reallocations]]","v":0},{"$f":"Dataset[[#This Row],[2028/29 From - Spending review Topic 1]]+Dataset[[#This Row],[2028/29 From - Spending review Topic 2]]+Dataset[[#This Row],[2028/29 From - Spending review Topic 3]]+Dataset[[#This Row],[2028/29 From - Spending review Topic 4]]+Dataset[[#This Row],[2028/29 From - Other reallocations]]","v":0},{"$f":"Dataset[[#This Row],[2029/30 From - Spending review Topic 1]]+Dataset[[#This Row],[2029/30 From - Spending review Topic 2]]+Dataset[[#This Row],[2029/30 From - Spending review Topic 3]]+Dataset[[#This Row],[2029/30 From - Spending review Topic 4]]+Dataset[[#This Row],[2029/30 From - Other reallocations]]","v":0},{"$f":"Dataset[[#This Row],[2027/28 To - Spending review Topic 1]]+Dataset[[#This Row],[2027/28 To - Spending review Topic 2]]+Dataset[[#This Row],[2027/28 To - Spending review Topic 3]]+Dataset[[#This Row],[2027/28 To - Spending review Topic 4]]+Dataset[[#This Row],[2027/28 To - Other reallocations]]","v":0},{"$f":"Dataset[[#This Row],[2028/29 To - Spending review Topic 1]]+Dataset[[#This Row],[2028/29 To - Spending review Topic 2]]+Dataset[[#This Row],[2028/29 To - Spending review Topic 3]]+Dataset[[#This Row],[2028/29 To - Spending review Topic 4]]+Dataset[[#This Row],[2028/29 To - Other reallocations]]","v":0},{"$f":"Dataset[[#This Row],[2029/30 To - Spending review Topic 1]]+Dataset[[#This Row],[2029/30 To - Spending review Topic 2]]+Dataset[[#This Row],[2029/30 To - Spending review Topic 3]]+Dataset[[#This Row],[2029/30 To - Spending review Topic 4]]+Dataset[[#This Row],[2029/30 To - Other reallocations]]","v":0},{"$f":"Dataset[[#This Row],[2027/28 Targeted savings]]+Dataset[[#This Row],[2027/28 From - Total]]","v":0},{"$f":"Dataset[[#This Row],[2028/29 Targeted savings]]+Dataset[[#This Row],[2028/29 From - Total]]","v":0},{"$f":"Dataset[[#This Row],[2029/30 Targeted savings]]+Dataset[[#This Row],[2029/30 From - Total]]","v":0},{"$f":"Dataset[[#This Row],[2026/27 Targeted savings]]","v":0},{"$f":"SUM(Dataset[[#This Row],[2027/28 Targeted savings]],Dataset[[#This Row],[2027/28 From - Total]],Dataset[[#This Row],[2027/28 To - Total]])","v":0},{"$f":"SUM(Dataset[[#This Row],[2028/29 Targeted savings]],Dataset[[#This Row],[2028/29 From - Total]],Dataset[[#This Row],[2028/29 To - Total]])","v":0},{"$f":"SUM(Dataset[[#This Row],[2029/30 Targeted savings]],Dataset[[#This Row],[2029/30 From - Total]],Dataset[[#This Row],[2029/30 To - Total]])","v":0},{"$f":"Dataset[[#This Row],[2026/27 Baseline]]+Dataset[[#This Row],[2026/27 Total change]]","v":0},{"$f":"Dataset[[#This Row],[2027/28 Baseline]]+Dataset[[#This Row],[2027/28 Total change]]","v":0},{"$f":"Dataset[[#This Row],[2028/29 Baseline]]+Dataset[[#This Row],[2028/29 Total change]]","v":0},{"$f":"Dataset[[#This Row],[2029/30 Baseline]]+Dataset[[#This Row],[2029/30 Total change]]","v":0}]
["NAT|Non-transfer item","30|Operating leases","2027_28","MTEC2027",30,1,1,32553,33,"30","01","01","032553","000033","30|01|01|000033","01","01","02","33","33","01|01|02|33|33","National","Communications and Digital Technologies","Administration","Ministry","Non-transfer item","Current","Current payments","Goods and services","Operating leases","Operating leases","Economic development","Economic regulation and infrastructure","NAT",0,0,0,0,0,0,0,0,0,0,0,null,null,null,null,null,null,null,null,null,null,null,null,null,null,null,null,null,null,null,null,null,null,null,null,null,null,null,null,null,null,null,null,null,null,{"$f":"Dataset[[#This Row],[2027/28 From - Spending review Topic 1]]+Dataset[[#This Row],[2027/28 From - Spending review Topic 2]]+Dataset[[#This Row],[2027/28 From - Spending review Topic 3]]+Dataset[[#This Row],[2027/28 From - Spending review Topic 4]]+Dataset[[#This Row],[2027/28 From - Other reallocations]]","v":0},{"$f":"Dataset[[#This Row],[2028/29 From - Spending review Topic 1]]+Dataset[[#This Row],[2028/29 From - Spending review Topic 2]]+Dataset[[#This Row],[2028/29 From - Spending review Topic 3]]+Dataset[[#This Row],[2028/29 From - Spending review Topic 4]]+Dataset[[#This Row],[2028/29 From - Other reallocations]]","v":0},{"$f":"Dataset[[#This Row],[2029/30 From - Spending review Topic 1]]+Dataset[[#This Row],[2029/30 From - Spending review Topic 2]]+Dataset[[#This Row],[2029/30 From - Spending review Topic 3]]+Dataset[[#This Row],[2029/30 From - Spending review Topic 4]]+Dataset[[#This Row],[2029/30 From - Other reallocations]]","v":0},{"$f":"Dataset[[#This Row],[2027/28 To - Spending review Topic 1]]+Dataset[[#This Row],[2027/28 To - Spending review Topic 2]]+Dataset[[#This Row],[2027/28 To - Spending review Topic 3]]+Dataset[[#This Row],[2027/28 To - Spending review Topic 4]]+Dataset[[#This Row],[2027/28 To - Other reallocations]]","v":0},{"$f":"Dataset[[#This Row],[2028/29 To - Spending review Topic 1]]+Dataset[[#This Row],[2028/29 To - Spending review Topic 2]]+Dataset[[#This Row],[2028/29 To - Spending review Topic 3]]+Dataset[[#This Row],[2028/29 To - Spending review Topic 4]]+Dataset[[#This Row],[2028/29 To - Other reallocations]]","v":0},{"$f":"Dataset[[#This Row],[2029/30 To - Spending review Topic 1]]+Dataset[[#This Row],[2029/30 To - Spending review Topic 2]]+Dataset[[#This Row],[2029/30 To - Spending review Topic 3]]+Dataset[[#This Row],[2029/30 To - Spending review Topic 4]]+Dataset[[#This Row],[2029/30 To - Other reallocations]]","v":0},{"$f":"Dataset[[#This Row],[2027/28 Targeted savings]]+Dataset[[#This Row],[2027/28 From - Total]]","v":0},{"$f":"Dataset[[#This Row],[2028/29 Targeted savings]]+Dataset[[#This Row],[2028/29 From - Total]]","v":0},{"$f":"Dataset[[#This Row],[2029/30 Targeted savings]]+Dataset[[#This Row],[2029/30 From - Total]]","v":0},{"$f":"Dataset[[#This Row],[2026/27 Targeted savings]]","v":0},{"$f":"SUM(Dataset[[#This Row],[2027/28 Targeted savings]],Dataset[[#This Row],[2027/28 From - Total]],Dataset[[#This Row],[2027/28 To - Total]])","v":0},{"$f":"SUM(Dataset[[#This Row],[2028/29 Targeted savings]],Dataset[[#This Row],[2028/29 From - Total]],Dataset[[#This Row],[2028/29 To - Total]])","v":0},{"$f":"SUM(Dataset[[#This Row],[2029/30 Targeted savings]],Dataset[[#This Row],[2029/30 From - Total]],Dataset[[#This Row],[2029/30 To - Total]])","v":0},{"$f":"Dataset[[#This Row],[2026/27 Baseline]]+Dataset[[#This Row],[2026/27 Total change]]","v":0},{"$f":"Dataset[[#This Row],[2027/28 Baseline]]+Dataset[[#This Row],[2027/28 Total change]]","v":0},{"$f":"Dataset[[#This Row],[2028/29 Baseline]]+Dataset[[#This Row],[2028/29 Total change]]","v":0},{"$f":"Dataset[[#This Row],[2029/30 Baseline]]+Dataset[[#This Row],[2029/30 Total change]]","v":0}]
["NAT|Non-transfer item","30|Rental and hiring","2027_28","MTEC2027",30,1,1,32554,34,"30","01","01","032554","000034","30|01|01|000034","01","01","02","34","34","01|01|02|34|34","National","Communications and Digital Technologies","Administration","Ministry","Non-transfer item","Current","Current payments","Goods and services","Rental and hiring","Rental and hiring","Economic development","Economic regulation and infrastructure","NAT",0,0,0,0,0,0,0,0,0,0,0,null,null,null,null,null,null,null,null,null,null,null,null,null,null,null,null,null,null,null,null,null,null,null,null,null,null,null,null,null,null,null,null,null,null,{"$f":"Dataset[[#This Row],[2027/28 From - Spending review Topic 1]]+Dataset[[#This Row],[2027/28 From - Spending review Topic 2]]+Dataset[[#This Row],[2027/28 From - Spending review Topic 3]]+Dataset[[#This Row],[2027/28 From - Spending review Topic 4]]+Dataset[[#This Row],[2027/28 From - Other reallocations]]","v":0},{"$f":"Dataset[[#This Row],[2028/29 From - Spending review Topic 1]]+Dataset[[#This Row],[2028/29 From - Spending review Topic 2]]+Dataset[[#This Row],[2028/29 From - Spending review Topic 3]]+Dataset[[#This Row],[2028/29 From - Spending review Topic 4]]+Dataset[[#This Row],[2028/29 From - Other reallocations]]","v":0},{"$f":"Dataset[[#This Row],[2029/30 From - Spending review Topic 1]]+Dataset[[#This Row],[2029/30 From - Spending review Topic 2]]+Dataset[[#This Row],[2029/30 From - Spending review Topic 3]]+Dataset[[#This Row],[2029/30 From - Spending review Topic 4]]+Dataset[[#This Row],[2029/30 From - Other reallocations]]","v":0},{"$f":"Dataset[[#This Row],[2027/28 To - Spending review Topic 1]]+Dataset[[#This Row],[2027/28 To - Spending review Topic 2]]+Dataset[[#This Row],[2027/28 To - Spending review Topic 3]]+Dataset[[#This Row],[2027/28 To - Spending review Topic 4]]+Dataset[[#This Row],[2027/28 To - Other reallocations]]","v":0},{"$f":"Dataset[[#This Row],[2028/29 To - Spending review Topic 1]]+Dataset[[#This Row],[2028/29 To - Spending review Topic 2]]+Dataset[[#This Row],[2028/29 To - Spending review Topic 3]]+Dataset[[#This Row],[2028/29 To - Spending review Topic 4]]+Dataset[[#This Row],[2028/29 To - Other reallocations]]","v":0},{"$f":"Dataset[[#This Row],[2029/30 To - Spending review Topic 1]]+Dataset[[#This Row],[2029/30 To - Spending review Topic 2]]+Dataset[[#This Row],[2029/30 To - Spending review Topic 3]]+Dataset[[#This Row],[2029/30 To - Spending review Topic 4]]+Dataset[[#This Row],[2029/30 To - Other reallocations]]","v":0},{"$f":"Dataset[[#This Row],[2027/28 Targeted savings]]+Dataset[[#This Row],[2027/28 From - Total]]","v":0},{"$f":"Dataset[[#This Row],[2028/29 Targeted savings]]+Dataset[[#This Row],[2028/29 From - Total]]","v":0},{"$f":"Dataset[[#This Row],[2029/30 Targeted savings]]+Dataset[[#This Row],[2029/30 From - Total]]","v":0},{"$f":"Dataset[[#This Row],[2026/27 Targeted savings]]","v":0},{"$f":"SUM(Dataset[[#This Row],[2027/28 Targeted savings]],Dataset[[#This Row],[2027/28 From - Total]],Dataset[[#This Row],[2027/28 To - Total]])","v":0},{"$f":"SUM(Dataset[[#This Row],[2028/29 Targeted savings]],Dataset[[#This Row],[2028/29 From - Total]],Dataset[[#This Row],[2028/29 To - Total]])","v":0},{"$f":"SUM(Dataset[[#This Row],[2029/30 Targeted savings]],Dataset[[#This Row],[2029/30 From - Total]],Dataset[[#This Row],[2029/30 To - Total]])","v":0},{"$f":"Dataset[[#This Row],[2026/27 Baseline]]+Dataset[[#This Row],[2026/27 Total change]]","v":0},{"$f":"Dataset[[#This Row],[2027/28 Baseline]]+Dataset[[#This Row],[2027/28 Total change]]","v":0},{"$f":"Dataset[[#This Row],[2028/29 Baseline]]+Dataset[[#This Row],[2028/29 Total change]]","v":0},{"$f":"Dataset[[#This Row],[2029/30 Baseline]]+Dataset[[#This Row],[2029/30 Total change]]","v":0}]
["NAT|Non-transfer item","30|Property payments","2027_28","MTEC2027",30,1,1,32555,35,"30","01","01","032555","000035","30|01|01|000035","01","01","02","35","35","01|01|02|35|35","National","Communications and Digital Technologies","Administration","Ministry","Non-transfer item","Current","Current payments","Goods and services","Property payments","Property payments","Economic development","Economic regulation and infrastructure","NAT",0,0,0,0,0,0,0,0,0,0,0,null,null,null,null,null,null,null,null,null,null,null,null,null,null,null,null,null,null,null,null,null,null,null,null,null,null,null,null,null,null,null,null,null,null,{"$f":"Dataset[[#This Row],[2027/28 From - Spending review Topic 1]]+Dataset[[#This Row],[2027/28 From - Spending review Topic 2]]+Dataset[[#This Row],[2027/28 From - Spending review Topic 3]]+Dataset[[#This Row],[2027/28 From - Spending review Topic 4]]+Dataset[[#This Row],[2027/28 From - Other reallocations]]","v":0},{"$f":"Dataset[[#This Row],[2028/29 From - Spending review Topic 1]]+Dataset[[#This Row],[2028/29 From - Spending review Topic 2]]+Dataset[[#This Row],[2028/29 From - Spending review Topic 3]]+Dataset[[#This Row],[2028/29 From - Spending review Topic 4]]+Dataset[[#This Row],[2028/29 From - Other reallocations]]","v":0},{"$f":"Dataset[[#This Row],[2029/30 From - Spending review Topic 1]]+Dataset[[#This Row],[2029/30 From - Spending review Topic 2]]+Dataset[[#This Row],[2029/30 From - Spending review Topic 3]]+Dataset[[#This Row],[2029/30 From - Spending review Topic 4]]+Dataset[[#This Row],[2029/30 From - Other reallocations]]","v":0},{"$f":"Dataset[[#This Row],[2027/28 To - Spending review Topic 1]]+Dataset[[#This Row],[2027/28 To - Spending review Topic 2]]+Dataset[[#This Row],[2027/28 To - Spending review Topic 3]]+Dataset[[#This Row],[2027/28 To - Spending review Topic 4]]+Dataset[[#This Row],[2027/28 To - Other reallocations]]","v":0},{"$f":"Dataset[[#This Row],[2028/29 To - Spending review Topic 1]]+Dataset[[#This Row],[2028/29 To - Spending review Topic 2]]+Dataset[[#This Row],[2028/29 To - Spending review Topic 3]]+Dataset[[#This Row],[2028/29 To - Spending review Topic 4]]+Dataset[[#This Row],[2028/29 To - Other reallocations]]","v":0},{"$f":"Dataset[[#This Row],[2029/30 To - Spending review Topic 1]]+Dataset[[#This Row],[2029/30 To - Spending review Topic 2]]+Dataset[[#This Row],[2029/30 To - Spending review Topic 3]]+Dataset[[#This Row],[2029/30 To - Spending review Topic 4]]+Dataset[[#This Row],[2029/30 To - Other reallocations]]","v":0},{"$f":"Dataset[[#This Row],[2027/28 Targeted savings]]+Dataset[[#This Row],[2027/28 From - Total]]","v":0},{"$f":"Dataset[[#This Row],[2028/29 Targeted savings]]+Dataset[[#This Row],[2028/29 From - Total]]","v":0},{"$f":"Dataset[[#This Row],[2029/30 Targeted savings]]+Dataset[[#This Row],[2029/30 From - Total]]","v":0},{"$f":"Dataset[[#This Row],[2026/27 Targeted savings]]","v":0},{"$f":"SUM(Dataset[[#This Row],[2027/28 Targeted savings]],Dataset[[#This Row],[2027/28 From - Total]],Dataset[[#This Row],[2027/28 To - Total]])","v":0},{"$f":"SUM(Dataset[[#This Row],[2028/29 Targeted savings]],Dataset[[#This Row],[2028/29 From - Total]],Dataset[[#This Row],[2028/29 To - Total]])","v":0},{"$f":"SUM(Dataset[[#This Row],[2029/30 Targeted savings]],Dataset[[#This Row],[2029/30 From - Total]],Dataset[[#This Row],[2029/30 To - Total]])","v":0},{"$f":"Dataset[[#This Row],[2026/27 Baseline]]+Dataset[[#This Row],[2026/27 Total change]]","v":0},{"$f":"Dataset[[#This Row],[2027/28 Baseline]]+Dataset[[#This Row],[2027/28 Total change]]","v":0},{"$f":"Dataset[[#This Row],[2028/29 Baseline]]+Dataset[[#This Row],[2028/29 Total change]]","v":0},{"$f":"Dataset[[#This Row],[2029/30 Baseline]]+Dataset[[#This Row],[2029/30 Total change]]","v":0}]
["NAT|Non-transfer item","30|Transport provided: Departmental activity","2027_28","MTEC2027",30,1,1,32556,36,"30","01","01","032556","000036","30|01|01|000036","01","01","02","36","36","01|01|02|36|36","National","Communications and Digital Technologies","Administration","Ministry","Non-transfer item","Current","Current payments","Goods and services","Transport provided: Departmental activity","Transport provided: Departmental activity","Economic development","Economic regulation and infrastructure","NAT",0,0,0,0,0,0,0,0,0,0,0,null,null,null,null,null,null,null,null,null,null,null,null,null,null,null,null,null,null,null,null,null,null,null,null,null,null,null,null,null,null,null,null,null,null,{"$f":"Dataset[[#This Row],[2027/28 From - Spending review Topic 1]]+Dataset[[#This Row],[2027/28 From - Spending review Topic 2]]+Dataset[[#This Row],[2027/28 From - Spending review Topic 3]]+Dataset[[#This Row],[2027/28 From - Spending review Topic 4]]+Dataset[[#This Row],[2027/28 From - Other reallocations]]","v":0},{"$f":"Dataset[[#This Row],[2028/29 From - Spending review Topic 1]]+Dataset[[#This Row],[2028/29 From - Spending review Topic 2]]+Dataset[[#This Row],[2028/29 From - Spending review Topic 3]]+Dataset[[#This Row],[2028/29 From - Spending review Topic 4]]+Dataset[[#This Row],[2028/29 From - Other reallocations]]","v":0},{"$f":"Dataset[[#This Row],[2029/30 From - Spending review Topic 1]]+Dataset[[#This Row],[2029/30 From - Spending review Topic 2]]+Dataset[[#This Row],[2029/30 From - Spending review Topic 3]]+Dataset[[#This Row],[2029/30 From - Spending review Topic 4]]+Dataset[[#This Row],[2029/30 From - Other reallocations]]","v":0},{"$f":"Dataset[[#This Row],[2027/28 To - Spending review Topic 1]]+Dataset[[#This Row],[2027/28 To - Spending review Topic 2]]+Dataset[[#This Row],[2027/28 To - Spending review Topic 3]]+Dataset[[#This Row],[2027/28 To - Spending review Topic 4]]+Dataset[[#This Row],[2027/28 To - Other reallocations]]","v":0},{"$f":"Dataset[[#This Row],[2028/29 To - Spending review Topic 1]]+Dataset[[#This Row],[2028/29 To - Spending review Topic 2]]+Dataset[[#This Row],[2028/29 To - Spending review Topic 3]]+Dataset[[#This Row],[2028/29 To - Spending review Topic 4]]+Dataset[[#This Row],[2028/29 To - Other reallocations]]","v":0},{"$f":"Dataset[[#This Row],[2029/30 To - Spending review Topic 1]]+Dataset[[#This Row],[2029/30 To - Spending review Topic 2]]+Dataset[[#This Row],[2029/30 To - Spending review Topic 3]]+Dataset[[#This Row],[2029/30 To - Spending review Topic 4]]+Dataset[[#This Row],[2029/30 To - Other reallocations]]","v":0},{"$f":"Dataset[[#This Row],[2027/28 Targeted savings]]+Dataset[[#This Row],[2027/28 From - Total]]","v":0},{"$f":"Dataset[[#This Row],[2028/29 Targeted savings]]+Dataset[[#This Row],[2028/29 From - Total]]","v":0},{"$f":"Dataset[[#This Row],[2029/30 Targeted savings]]+Dataset[[#This Row],[2029/30 From - Total]]","v":0},{"$f":"Dataset[[#This Row],[2026/27 Targeted savings]]","v":0},{"$f":"SUM(Dataset[[#This Row],[2027/28 Targeted savings]],Dataset[[#This Row],[2027/28 From - Total]],Dataset[[#This Row],[2027/28 To - Total]])","v":0},{"$f":"SUM(Dataset[[#This Row],[2028/29 Targeted savings]],Dataset[[#This Row],[2028/29 From - Total]],Dataset[[#This Row],[2028/29 To - Total]])","v":0},{"$f":"SUM(Dataset[[#This Row],[2029/30 Targeted savings]],Dataset[[#This Row],[2029/30 From - Total]],Dataset[[#This Row],[2029/30 To - Total]])","v":0},{"$f":"Dataset[[#This Row],[2026/27 Baseline]]+Dataset[[#This Row],[2026/27 Total change]]","v":0},{"$f":"Dataset[[#This Row],[2027/28 Baseline]]+Dataset[[#This Row],[2027/28 Total change]]","v":0},{"$f":"Dataset[[#This Row],[2028/29 Baseline]]+Dataset[[#This Row],[2028/29 Total change]]","v":0},{"$f":"Dataset[[#This Row],[2029/30 Baseline]]+Dataset[[#This Row],[2029/30 Total change]]","v":0}]
["NAT|Non-transfer","30|Travel and subsistence","2027_28","MTEC2027",30,1,1,32557,37,"30","01","01","032557","000037","30|01|01|000037","01","01","02","37","37","01|01|02|37|37","National","Communications and Digital Technologies","Administration","Ministry","Non-transfer","Current","Current payments","Goods and services","Travel and subsistence","Travel and subsistence","Economic development","Economic regulation and infrastructure","NAT",2,0,0,0,0,0,0,0,0,0,0,null,null,null,null,null,null,null,null,null,null,null,null,null,null,null,null,null,null,null,null,null,null,null,null,null,null,null,null,null,null,null,null,null,null,{"$f":"Dataset[[#This Row],[2027/28 From - Spending review Topic 1]]+Dataset[[#This Row],[2027/28 From - Spending review Topic 2]]+Dataset[[#This Row],[2027/28 From - Spending review Topic 3]]+Dataset[[#This Row],[2027/28 From - Spending review Topic 4]]+Dataset[[#This Row],[2027/28 From - Other reallocations]]","v":0},{"$f":"Dataset[[#This Row],[2028/29 From - Spending review Topic 1]]+Dataset[[#This Row],[2028/29 From - Spending review Topic 2]]+Dataset[[#This Row],[2028/29 From - Spending review Topic 3]]+Dataset[[#This Row],[2028/29 From - Spending review Topic 4]]+Dataset[[#This Row],[2028/29 From - Other reallocations]]","v":0},{"$f":"Dataset[[#This Row],[2029/30 From - Spending review Topic 1]]+Dataset[[#This Row],[2029/30 From - Spending review Topic 2]]+Dataset[[#This Row],[2029/30 From - Spending review Topic 3]]+Dataset[[#This Row],[2029/30 From - Spending review Topic 4]]+Dataset[[#This Row],[2029/30 From - Other reallocations]]","v":0},{"$f":"Dataset[[#This Row],[2027/28 To - Spending review Topic 1]]+Dataset[[#This Row],[2027/28 To - Spending review Topic 2]]+Dataset[[#This Row],[2027/28 To - Spending review Topic 3]]+Dataset[[#This Row],[2027/28 To - Spending review Topic 4]]+Dataset[[#This Row],[2027/28 To - Other reallocations]]","v":0},{"$f":"Dataset[[#This Row],[2028/29 To - Spending review Topic 1]]+Dataset[[#This Row],[2028/29 To - Spending review Topic 2]]+Dataset[[#This Row],[2028/29 To - Spending review Topic 3]]+Dataset[[#This Row],[2028/29 To - Spending review Topic 4]]+Dataset[[#This Row],[2028/29 To - Other reallocations]]","v":0},{"$f":"Dataset[[#This Row],[2029/30 To - Spending review Topic 1]]+Dataset[[#This Row],[2029/30 To - Spending review Topic 2]]+Dataset[[#This Row],[2029/30 To - Spending review Topic 3]]+Dataset[[#This Row],[2029/30 To - Spending review Topic 4]]+Dataset[[#This Row],[2029/30 To - Other reallocations]]","v":0},{"$f":"Dataset[[#This Row],[2027/28 Targeted savings]]+Dataset[[#This Row],[2027/28 From - Total]]","v":0},{"$f":"Dataset[[#This Row],[2028/29 Targeted savings]]+Dataset[[#This Row],[2028/29 From - Total]]","v":0},{"$f":"Dataset[[#This Row],[2029/30 Targeted savings]]+Dataset[[#This Row],[2029/30 From - Total]]","v":0},{"$f":"Dataset[[#This Row],[2026/27 Targeted savings]]","v":0},{"$f":"SUM(Dataset[[#This Row],[2027/28 Targeted savings]],Dataset[[#This Row],[2027/28 From - Total]],Dataset[[#This Row],[2027/28 To - Total]])","v":0},{"$f":"SUM(Dataset[[#This Row],[2028/29 Targeted savings]],Dataset[[#This Row],[2028/29 From - Total]],Dataset[[#This Row],[2028/29 To - Total]])","v":0},{"$f":"SUM(Dataset[[#This Row],[2029/30 Targeted savings]],Dataset[[#This Row],[2029/30 From - Total]],Dataset[[#This Row],[2029/30 To - Total]])","v":0},{"$f":"Dataset[[#This Row],[2026/27 Baseline]]+Dataset[[#This Row],[2026/27 Total change]]","v":0},{"$f":"Dataset[[#This Row],[2027/28 Baseline]]+Dataset[[#This Row],[2027/28 Total change]]","v":0},{"$f":"Dataset[[#This Row],[2028/29 Baseline]]+Dataset[[#This Row],[2028/29 Total change]]","v":0},{"$f":"Dataset[[#This Row],[2029/30 Baseline]]+Dataset[[#This Row],[2029/30 Total change]]","v":0}]
["NAT|Non-transfer item","30|Training and development","2027_28","MTEC2027",30,1,1,32558,38,"30","01","01","032558","000038","30|01|01|000038","01","01","02","38","38","01|01|02|38|38","National","Communications and Digital Technologies","Administration","Ministry","Non-transfer item","Current","Current payments","Goods and services","Training and development","Training and development","Economic development","Economic regulation and infrastructure","NAT",0,0,0,0,0,0,0,0,0,0,0,null,null,null,null,null,null,null,null,null,null,null,null,null,null,null,null,null,null,null,null,null,null,null,null,null,null,null,null,null,null,null,null,null,null,{"$f":"Dataset[[#This Row],[2027/28 From - Spending review Topic 1]]+Dataset[[#This Row],[2027/28 From - Spending review Topic 2]]+Dataset[[#This Row],[2027/28 From - Spending review Topic 3]]+Dataset[[#This Row],[2027/28 From - Spending review Topic 4]]+Dataset[[#This Row],[2027/28 From - Other reallocations]]","v":0},{"$f":"Dataset[[#This Row],[2028/29 From - Spending review Topic 1]]+Dataset[[#This Row],[2028/29 From - Spending review Topic 2]]+Dataset[[#This Row],[2028/29 From - Spending review Topic 3]]+Dataset[[#This Row],[2028/29 From - Spending review Topic 4]]+Dataset[[#This Row],[2028/29 From - Other reallocations]]","v":0},{"$f":"Dataset[[#This Row],[2029/30 From - Spending review Topic 1]]+Dataset[[#This Row],[2029/30 From - Spending review Topic 2]]+Dataset[[#This Row],[2029/30 From - Spending review Topic 3]]+Dataset[[#This Row],[2029/30 From - Spending review Topic 4]]+Dataset[[#This Row],[2029/30 From - Other reallocations]]","v":0},{"$f":"Dataset[[#This Row],[2027/28 To - Spending review Topic 1]]+Dataset[[#This Row],[2027/28 To - Spending review Topic 2]]+Dataset[[#This Row],[2027/28 To - Spending review Topic 3]]+Dataset[[#This Row],[2027/28 To - Spending review Topic 4]]+Dataset[[#This Row],[2027/28 To - Other reallocations]]","v":0},{"$f":"Dataset[[#This Row],[2028/29 To - Spending review Topic 1]]+Dataset[[#This Row],[2028/29 To - Spending review Topic 2]]+Dataset[[#This Row],[2028/29 To - Spending review Topic 3]]+Dataset[[#This Row],[2028/29 To - Spending review Topic 4]]+Dataset[[#This Row],[2028/29 To - Other reallocations]]","v":0},{"$f":"Dataset[[#This Row],[2029/30 To - Spending review Topic 1]]+Dataset[[#This Row],[2029/30 To - Spending review Topic 2]]+Dataset[[#This Row],[2029/30 To - Spending review Topic 3]]+Dataset[[#This Row],[2029/30 To - Spending review Topic 4]]+Dataset[[#This Row],[2029/30 To - Other reallocations]]","v":0},{"$f":"Dataset[[#This Row],[2027/28 Targeted savings]]+Dataset[[#This Row],[2027/28 From - Total]]","v":0},{"$f":"Dataset[[#This Row],[2028/29 Targeted savings]]+Dataset[[#This Row],[2028/29 From - Total]]","v":0},{"$f":"Dataset[[#This Row],[2029/30 Targeted savings]]+Dataset[[#This Row],[2029/30 From - Total]]","v":0},{"$f":"Dataset[[#This Row],[2026/27 Targeted savings]]","v":0},{"$f":"SUM(Dataset[[#This Row],[2027/28 Targeted savings]],Dataset[[#This Row],[2027/28 From - Total]],Dataset[[#This Row],[2027/28 To - Total]])","v":0},{"$f":"SUM(Dataset[[#This Row],[2028/29 Targeted savings]],Dataset[[#This Row],[2028/29 From - Total]],Dataset[[#This Row],[2028/29 To - Total]])","v":0},{"$f":"SUM(Dataset[[#This Row],[2029/30 Targeted savings]],Dataset[[#This Row],[2029/30 From - Total]],Dataset[[#This Row],[2029/30 To - Total]])","v":0},{"$f":"Dataset[[#This Row],[2026/27 Baseline]]+Dataset[[#This Row],[2026/27 Total change]]","v":0},{"$f":"Dataset[[#This Row],[2027/28 Baseline]]+Dataset[[#This Row],[2027/28 Total change]]","v":0},{"$f":"Dataset[[#This Row],[2028/29 Baseline]]+Dataset[[#This Row],[2028/29 Total change]]","v":0},{"$f":"Dataset[[#This Row],[2029/30 Baseline]]+Dataset[[#This Row],[2029/30 Total change]]","v":0}]
["NAT|Non-transfer item","30|Operating payments","2027_28","MTEC2027",30,1,1,32559,39,"30","01","01","032559","000039","30|01|01|000039","01","01","02","39","39","01|01|02|39|39","National","Communications and Digital Technologies","Administration","Ministry","Non-transfer item","Current","Current payments","Goods and services","Operating payments","Operating payments","Economic development","Economic regulation and infrastructure","NAT",0,0,0,0,0,0,0,0,0,0,0,null,null,null,null,null,null,null,null,null,null,null,null,null,null,null,null,null,null,null,null,null,null,null,null,null,null,null,null,null,null,null,null,null,null,{"$f":"Dataset[[#This Row],[2027/28 From - Spending review Topic 1]]+Dataset[[#This Row],[2027/28 From - Spending review Topic 2]]+Dataset[[#This Row],[2027/28 From - Spending review Topic 3]]+Dataset[[#This Row],[2027/28 From - Spending review Topic 4]]+Dataset[[#This Row],[2027/28 From - Other reallocations]]","v":0},{"$f":"Dataset[[#This Row],[2028/29 From - Spending review Topic 1]]+Dataset[[#This Row],[2028/29 From - Spending review Topic 2]]+Dataset[[#This Row],[2028/29 From - Spending review Topic 3]]+Dataset[[#This Row],[2028/29 From - Spending review Topic 4]]+Dataset[[#This Row],[2028/29 From - Other reallocations]]","v":0},{"$f":"Dataset[[#This Row],[2029/30 From - Spending review Topic 1]]+Dataset[[#This Row],[2029/30 From - Spending review Topic 2]]+Dataset[[#This Row],[2029/30 From - Spending review Topic 3]]+Dataset[[#This Row],[2029/30 From - Spending review Topic 4]]+Dataset[[#This Row],[2029/30 From - Other reallocations]]","v":0},{"$f":"Dataset[[#This Row],[2027/28 To - Spending review Topic 1]]+Dataset[[#This Row],[2027/28 To - Spending review Topic 2]]+Dataset[[#This Row],[2027/28 To - Spending review Topic 3]]+Dataset[[#This Row],[2027/28 To - Spending review Topic 4]]+Dataset[[#This Row],[2027/28 To - Other reallocations]]","v":0},{"$f":"Dataset[[#This Row],[2028/29 To - Spending review Topic 1]]+Dataset[[#This Row],[2028/29 To - Spending review Topic 2]]+Dataset[[#This Row],[2028/29 To - Spending review Topic 3]]+Dataset[[#This Row],[2028/29 To - Spending review Topic 4]]+Dataset[[#This Row],[2028/29 To - Other reallocations]]","v":0},{"$f":"Dataset[[#This Row],[2029/30 To - Spending review Topic 1]]+Dataset[[#This Row],[2029/30 To - Spending review Topic 2]]+Dataset[[#This Row],[2029/30 To - Spending review Topic 3]]+Dataset[[#This Row],[2029/30 To - Spending review Topic 4]]+Dataset[[#This Row],[2029/30 To - Other reallocations]]","v":0},{"$f":"Dataset[[#This Row],[2027/28 Targeted savings]]+Dataset[[#This Row],[2027/28 From - Total]]","v":0},{"$f":"Dataset[[#This Row],[2028/29 Targeted savings]]+Dataset[[#This Row],[2028/29 From - Total]]","v":0},{"$f":"Dataset[[#This Row],[2029/30 Targeted savings]]+Dataset[[#This Row],[2029/30 From - Total]]","v":0},{"$f":"Dataset[[#This Row],[2026/27 Targeted savings]]","v":0},{"$f":"SUM(Dataset[[#This Row],[2027/28 Targeted savings]],Dataset[[#This Row],[2027/28 From - Total]],Dataset[[#This Row],[2027/28 To - Total]])","v":0},{"$f":"SUM(Dataset[[#This Row],[2028/29 Targeted savings]],Dataset[[#This Row],[2028/29 From - Total]],Dataset[[#This Row],[2028/29 To - Total]])","v":0},{"$f":"SUM(Dataset[[#This Row],[2029/30 Targeted savings]],Dataset[[#This Row],[2029/30 From - Total]],Dataset[[#This Row],[2029/30 To - Total]])","v":0},{"$f":"Dataset[[#This Row],[2026/27 Baseline]]+Dataset[[#This Row],[2026/27 Total change]]","v":0},{"$f":"Dataset[[#This Row],[2027/28 Baseline]]+Dataset[[#This Row],[2027/28 Total change]]","v":0},{"$f":"Dataset[[#This Row],[2028/29 Baseline]]+Dataset[[#This Row],[2028/29 Total change]]","v":0},{"$f":"Dataset[[#This Row],[2029/30 Baseline]]+Dataset[[#This Row],[2029/30 Total change]]","v":0}]
["NAT|Non-transfer item","30|Venues and facilities","2027_28","MTEC2027",30,1,1,32560,40,"30","01","01","032560","000040","30|01|01|000040","01","01","02","40","40","01|01|02|40|40","National","Communications and Digital Technologies","Administration","Ministry","Non-transfer item","Current","Current payments","Goods and services","Venues and facilities","Venues and facilities","Economic development","Economic regulation and infrastructure","NAT",0,0,0,0,0,0,0,0,0,0,0,null,null,null,null,null,null,null,null,null,null,null,null,null,null,null,null,null,null,null,null,null,null,null,null,null,null,null,null,null,null,null,null,null,null,{"$f":"Dataset[[#This Row],[2027/28 From - Spending review Topic 1]]+Dataset[[#This Row],[2027/28 From - Spending review Topic 2]]+Dataset[[#This Row],[2027/28 From - Spending review Topic 3]]+Dataset[[#This Row],[2027/28 From - Spending review Topic 4]]+Dataset[[#This Row],[2027/28 From - Other reallocations]]","v":0},{"$f":"Dataset[[#This Row],[2028/29 From - Spending review Topic 1]]+Dataset[[#This Row],[2028/29 From - Spending review Topic 2]]+Dataset[[#This Row],[2028/29 From - Spending review Topic 3]]+Dataset[[#This Row],[2028/29 From - Spending review Topic 4]]+Dataset[[#This Row],[2028/29 From - Other reallocations]]","v":0},{"$f":"Dataset[[#This Row],[2029/30 From - Spending review Topic 1]]+Dataset[[#This Row],[2029/30 From - Spending review Topic 2]]+Dataset[[#This Row],[2029/30 From - Spending review Topic 3]]+Dataset[[#This Row],[2029/30 From - Spending review Topic 4]]+Dataset[[#This Row],[2029/30 From - Other reallocations]]","v":0},{"$f":"Dataset[[#This Row],[2027/28 To - Spending review Topic 1]]+Dataset[[#This Row],[2027/28 To - Spending review Topic 2]]+Dataset[[#This Row],[2027/28 To - Spending review Topic 3]]+Dataset[[#This Row],[2027/28 To - Spending review Topic 4]]+Dataset[[#This Row],[2027/28 To - Other reallocations]]","v":0},{"$f":"Dataset[[#This Row],[2028/29 To - Spending review Topic 1]]+Dataset[[#This Row],[2028/29 To - Spending review Topic 2]]+Dataset[[#This Row],[2028/29 To - Spending review Topic 3]]+Dataset[[#This Row],[2028/29 To - Spending review Topic 4]]+Dataset[[#This Row],[2028/29 To - Other reallocations]]","v":0},{"$f":"Dataset[[#This Row],[2029/30 To - Spending review Topic 1]]+Dataset[[#This Row],[2029/30 To - Spending review Topic 2]]+Dataset[[#This Row],[2029/30 To - Spending review Topic 3]]+Dataset[[#This Row],[2029/30 To - Spending review Topic 4]]+Dataset[[#This Row],[2029/30 To - Other reallocations]]","v":0},{"$f":"Dataset[[#This Row],[2027/28 Targeted savings]]+Dataset[[#This Row],[2027/28 From - Total]]","v":0},{"$f":"Dataset[[#This Row],[2028/29 Targeted savings]]+Dataset[[#This Row],[2028/29 From - Total]]","v":0},{"$f":"Dataset[[#This Row],[2029/30 Targeted savings]]+Dataset[[#This Row],[2029/30 From - Total]]","v":0},{"$f":"Dataset[[#This Row],[2026/27 Targeted savings]]","v":0},{"$f":"SUM(Dataset[[#This Row],[2027/28 Targeted savings]],Dataset[[#This Row],[2027/28 From - Total]],Dataset[[#This Row],[2027/28 To - Total]])","v":0},{"$f":"SUM(Dataset[[#This Row],[2028/29 Targeted savings]],Dataset[[#This Row],[2028/29 From - Total]],Dataset[[#This Row],[2028/29 To - Total]])","v":0},{"$f":"SUM(Dataset[[#This Row],[2029/30 Targeted savings]],Dataset[[#This Row],[2029/30 From - Total]],Dataset[[#This Row],[2029/30 To - Total]])","v":0},{"$f":"Dataset[[#This Row],[2026/27 Baseline]]+Dataset[[#This Row],[2026/27 Total change]]","v":0},{"$f":"Dataset[[#This Row],[2027/28 Baseline]]+Dataset[[#This Row],[2027/28 Total change]]","v":0},{"$f":"Dataset[[#This Row],[2028/29 Baseline]]+Dataset[[#This Row],[2028/29 Total change]]","v":0},{"$f":"Dataset[[#This Row],[2029/30 Baseline]]+Dataset[[#This Row],[2029/30 Total change]]","v":0}]
["NAT|Non-transfer item","30|Interest (Incl. interest on unitary payments (PPP))","2027_28","MTEC2027",30,1,1,32561,41,"30","01","01","032561","000041","30|01|01|000041","01","01","03","41","41","01|01|03|41|41","National","Communications and Digital Technologies","Administration","Ministry","Non-transfer item","Current","Current payments","Interest and rent on land","Interest (Incl. interest on unitary payments (PPP))","Interest (Incl. interest on unitary payments (PPP))","Economic development","Economic regulation and infrastructure","NAT",0,0,0,0,0,0,0,0,0,0,0,null,null,null,null,null,null,null,null,null,null,null,null,null,null,null,null,null,null,null,null,null,null,null,null,null,null,null,null,null,null,null,null,null,null,{"$f":"Dataset[[#This Row],[2027/28 From - Spending review Topic 1]]+Dataset[[#This Row],[2027/28 From - Spending review Topic 2]]+Dataset[[#This Row],[2027/28 From - Spending review Topic 3]]+Dataset[[#This Row],[2027/28 From - Spending review Topic 4]]+Dataset[[#This Row],[2027/28 From - Other reallocations]]","v":0},{"$f":"Dataset[[#This Row],[2028/29 From - Spending review Topic 1]]+Dataset[[#This Row],[2028/29 From - Spending review Topic 2]]+Dataset[[#This Row],[2028/29 From - Spending review Topic 3]]+Dataset[[#This Row],[2028/29 From - Spending review Topic 4]]+Dataset[[#This Row],[2028/29 From - Other reallocations]]","v":0},{"$f":"Dataset[[#This Row],[2029/30 From - Spending review Topic 1]]+Dataset[[#This Row],[2029/30 From - Spending review Topic 2]]+Dataset[[#This Row],[2029/30 From - Spending review Topic 3]]+Dataset[[#This Row],[2029/30 From - Spending review Topic 4]]+Dataset[[#This Row],[2029/30 From - Other reallocations]]","v":0},{"$f":"Dataset[[#This Row],[2027/28 To - Spending review Topic 1]]+Dataset[[#This Row],[2027/28 To - Spending review Topic 2]]+Dataset[[#This Row],[2027/28 To - Spending review Topic 3]]+Dataset[[#This Row],[2027/28 To - Spending review Topic 4]]+Dataset[[#This Row],[2027/28 To - Other reallocations]]","v":0},{"$f":"Dataset[[#This Row],[2028/29 To - Spending review Topic 1]]+Dataset[[#This Row],[2028/29 To - Spending review Topic 2]]+Dataset[[#This Row],[2028/29 To - Spending review Topic 3]]+Dataset[[#This Row],[2028/29 To - Spending review Topic 4]]+Dataset[[#This Row],[2028/29 To - Other reallocations]]","v":0},{"$f":"Dataset[[#This Row],[2029/30 To - Spending review Topic 1]]+Dataset[[#This Row],[2029/30 To - Spending review Topic 2]]+Dataset[[#This Row],[2029/30 To - Spending review Topic 3]]+Dataset[[#This Row],[2029/30 To - Spending review Topic 4]]+Dataset[[#This Row],[2029/30 To - Other reallocations]]","v":0},{"$f":"Dataset[[#This Row],[2027/28 Targeted savings]]+Dataset[[#This Row],[2027/28 From - Total]]","v":0},{"$f":"Dataset[[#This Row],[2028/29 Targeted savings]]+Dataset[[#This Row],[2028/29 From - Total]]","v":0},{"$f":"Dataset[[#This Row],[2029/30 Targeted savings]]+Dataset[[#This Row],[2029/30 From - Total]]","v":0},{"$f":"Dataset[[#This Row],[2026/27 Targeted savings]]","v":0},{"$f":"SUM(Dataset[[#This Row],[2027/28 Targeted savings]],Dataset[[#This Row],[2027/28 From - Total]],Dataset[[#This Row],[2027/28 To - Total]])","v":0},{"$f":"SUM(Dataset[[#This Row],[2028/29 Targeted savings]],Dataset[[#This Row],[2028/29 From - Total]],Dataset[[#This Row],[2028/29 To - Total]])","v":0},{"$f":"SUM(Dataset[[#This Row],[2029/30 Targeted savings]],Dataset[[#This Row],[2029/30 From - Total]],Dataset[[#This Row],[2029/30 To - Total]])","v":0},{"$f":"Dataset[[#This Row],[2026/27 Baseline]]+Dataset[[#This Row],[2026/27 Total change]]","v":0},{"$f":"Dataset[[#This Row],[2027/28 Baseline]]+Dataset[[#This Row],[2027/28 Total change]]","v":0},{"$f":"Dataset[[#This Row],[2028/29 Baseline]]+Dataset[[#This Row],[2028/29 Total change]]","v":0},{"$f":"Dataset[[#This Row],[2029/30 Baseline]]+Dataset[[#This Row],[2029/30 Total change]]","v":0}]
["NAT|Non-transfer item","30|Rent on land","2027_28","MTEC2027",30,1,1,32562,42,"30","01","01","032562","000042","30|01|01|000042","01","01","03","42","42","01|01|03|42|42","National","Communications and Digital Technologies","Administration","Ministry","Non-transfer item","Current","Current payments","Interest and rent on land","Rent on land","Rent on land","Economic development","Economic regulation and infrastructure","NAT",0,0,0,0,0,0,0,0,0,0,0,null,null,null,null,null,null,null,null,null,null,null,null,null,null,null,null,null,null,null,null,null,null,null,null,null,null,null,null,null,null,null,null,null,null,{"$f":"Dataset[[#This Row],[2027/28 From - Spending review Topic 1]]+Dataset[[#This Row],[2027/28 From - Spending review Topic 2]]+Dataset[[#This Row],[2027/28 From - Spending review Topic 3]]+Dataset[[#This Row],[2027/28 From - Spending review Topic 4]]+Dataset[[#This Row],[2027/28 From - Other reallocations]]","v":0},{"$f":"Dataset[[#This Row],[2028/29 From - Spending review Topic 1]]+Dataset[[#This Row],[2028/29 From - Spending review Topic 2]]+Dataset[[#This Row],[2028/29 From - Spending review Topic 3]]+Dataset[[#This Row],[2028/29 From - Spending review Topic 4]]+Dataset[[#This Row],[2028/29 From - Other reallocations]]","v":0},{"$f":"Dataset[[#This Row],[2029/30 From - Spending review Topic 1]]+Dataset[[#This Row],[2029/30 From - Spending review Topic 2]]+Dataset[[#This Row],[2029/30 From - Spending review Topic 3]]+Dataset[[#This Row],[2029/30 From - Spending review Topic 4]]+Dataset[[#This Row],[2029/30 From - Other reallocations]]","v":0},{"$f":"Dataset[[#This Row],[2027/28 To - Spending review Topic 1]]+Dataset[[#This Row],[2027/28 To - Spending review Topic 2]]+Dataset[[#This Row],[2027/28 To - Spending review Topic 3]]+Dataset[[#This Row],[2027/28 To - Spending review Topic 4]]+Dataset[[#This Row],[2027/28 To - Other reallocations]]","v":0},{"$f":"Dataset[[#This Row],[2028/29 To - Spending review Topic 1]]+Dataset[[#This Row],[2028/29 To - Spending review Topic 2]]+Dataset[[#This Row],[2028/29 To - Spending review Topic 3]]+Dataset[[#This Row],[2028/29 To - Spending review Topic 4]]+Dataset[[#This Row],[2028/29 To - Other reallocations]]","v":0},{"$f":"Dataset[[#This Row],[2029/30 To - Spending review Topic 1]]+Dataset[[#This Row],[2029/30 To - Spending review Topic 2]]+Dataset[[#This Row],[2029/30 To - Spending review Topic 3]]+Dataset[[#This Row],[2029/30 To - Spending review Topic 4]]+Dataset[[#This Row],[2029/30 To - Other reallocations]]","v":0},{"$f":"Dataset[[#This Row],[2027/28 Targeted savings]]+Dataset[[#This Row],[2027/28 From - Total]]","v":0},{"$f":"Dataset[[#This Row],[2028/29 Targeted savings]]+Dataset[[#This Row],[2028/29 From - Total]]","v":0},{"$f":"Dataset[[#This Row],[2029/30 Targeted savings]]+Dataset[[#This Row],[2029/30 From - Total]]","v":0},{"$f":"Dataset[[#This Row],[2026/27 Targeted savings]]","v":0},{"$f":"SUM(Dataset[[#This Row],[2027/28 Targeted savings]],Dataset[[#This Row],[2027/28 From - Total]],Dataset[[#This Row],[2027/28 To - Total]])","v":0},{"$f":"SUM(Dataset[[#This Row],[2028/29 Targeted savings]],Dataset[[#This Row],[2028/29 From - Total]],Dataset[[#This Row],[2028/29 To - Total]])","v":0},{"$f":"SUM(Dataset[[#This Row],[2029/30 Targeted savings]],Dataset[[#This Row],[2029/30 From - Total]],Dataset[[#This Row],[2029/30 To - Total]])","v":0},{"$f":"Dataset[[#This Row],[2026/27 Baseline]]+Dataset[[#This Row],[2026/27 Total change]]","v":0},{"$f":"Dataset[[#This Row],[2027/28 Baseline]]+Dataset[[#This Row],[2027/28 Total change]]","v":0},{"$f":"Dataset[[#This Row],[2028/29 Baseline]]+Dataset[[#This Row],[2028/29 Total change]]","v":0},{"$f":"Dataset[[#This Row],[2029/30 Baseline]]+Dataset[[#This Row],[2029/30 Total change]]","v":0}]
["NAT|Non-transfer item","30|Buildings","2027_28","MTEC2027",30,1,1,32563,43,"30","01","01","032563","000043","30|01|01|000043","02","03","11","54","58","02|03|11|54|58","National","Communications and Digital Technologies","Administration","Ministry","Non-transfer item","Capital","Payments for capital assets","Buildings and other fixed structures","Buildings","Buildings","Economic development","Economic regulation and infrastructure","NAT",0,0,0,0,0,0,0,0,0,0,0,null,null,null,null,null,null,null,null,null,null,null,null,null,null,null,null,null,null,null,null,null,null,null,null,null,null,null,null,null,null,null,null,null,null,{"$f":"Dataset[[#This Row],[2027/28 From - Spending review Topic 1]]+Dataset[[#This Row],[2027/28 From - Spending review Topic 2]]+Dataset[[#This Row],[2027/28 From - Spending review Topic 3]]+Dataset[[#This Row],[2027/28 From - Spending review Topic 4]]+Dataset[[#This Row],[2027/28 From - Other reallocations]]","v":0},{"$f":"Dataset[[#This Row],[2028/29 From - Spending review Topic 1]]+Dataset[[#This Row],[2028/29 From - Spending review Topic 2]]+Dataset[[#This Row],[2028/29 From - Spending review Topic 3]]+Dataset[[#This Row],[2028/29 From - Spending review Topic 4]]+Dataset[[#This Row],[2028/29 From - Other reallocations]]","v":0},{"$f":"Dataset[[#This Row],[2029/30 From - Spending review Topic 1]]+Dataset[[#This Row],[2029/30 From - Spending review Topic 2]]+Dataset[[#This Row],[2029/30 From - Spending review Topic 3]]+Dataset[[#This Row],[2029/30 From - Spending review Topic 4]]+Dataset[[#This Row],[2029/30 From - Other reallocations]]","v":0},{"$f":"Dataset[[#This Row],[2027/28 To - Spending review Topic 1]]+Dataset[[#This Row],[2027/28 To - Spending review Topic 2]]+Dataset[[#This Row],[2027/28 To - Spending review Topic 3]]+Dataset[[#This Row],[2027/28 To - Spending review Topic 4]]+Dataset[[#This Row],[2027/28 To - Other reallocations]]","v":0},{"$f":"Dataset[[#This Row],[2028/29 To - Spending review Topic 1]]+Dataset[[#This Row],[2028/29 To - Spending review Topic 2]]+Dataset[[#This Row],[2028/29 To - Spending review Topic 3]]+Dataset[[#This Row],[2028/29 To - Spending review Topic 4]]+Dataset[[#This Row],[2028/29 To - Other reallocations]]","v":0},{"$f":"Dataset[[#This Row],[2029/30 To - Spending review Topic 1]]+Dataset[[#This Row],[2029/30 To - Spending review Topic 2]]+Dataset[[#This Row],[2029/30 To - Spending review Topic 3]]+Dataset[[#This Row],[2029/30 To - Spending review Topic 4]]+Dataset[[#This Row],[2029/30 To - Other reallocations]]","v":0},{"$f":"Dataset[[#This Row],[2027/28 Targeted savings]]+Dataset[[#This Row],[2027/28 From - Total]]","v":0},{"$f":"Dataset[[#This Row],[2028/29 Targeted savings]]+Dataset[[#This Row],[2028/29 From - Total]]","v":0},{"$f":"Dataset[[#This Row],[2029/30 Targeted savings]]+Dataset[[#This Row],[2029/30 From - Total]]","v":0},{"$f":"Dataset[[#This Row],[2026/27 Targeted savings]]","v":0},{"$f":"SUM(Dataset[[#This Row],[2027/28 Targeted savings]],Dataset[[#This Row],[2027/28 From - Total]],Dataset[[#This Row],[2027/28 To - Total]])","v":0},{"$f":"SUM(Dataset[[#This Row],[2028/29 Targeted savings]],Dataset[[#This Row],[2028/29 From - Total]],Dataset[[#This Row],[2028/29 To - Total]])","v":0},{"$f":"SUM(Dataset[[#This Row],[2029/30 Targeted savings]],Dataset[[#This Row],[2029/30 From - Total]],Dataset[[#This Row],[2029/30 To - Total]])","v":0},{"$f":"Dataset[[#This Row],[2026/27 Baseline]]+Dataset[[#This Row],[2026/27 Total change]]","v":0},{"$f":"Dataset[[#This Row],[2027/28 Baseline]]+Dataset[[#This Row],[2027/28 Total change]]","v":0},{"$f":"Dataset[[#This Row],[2028/29 Baseline]]+Dataset[[#This Row],[2028/29 Total change]]","v":0},{"$f":"Dataset[[#This Row],[2029/30 Baseline]]+Dataset[[#This Row],[2029/30 Total change]]","v":0}]
["NAT|Non-transfer item","30|Other fixed structures","2027_28","MTEC2027",30,1,1,32564,44,"30","01","01","032564","000044","30|01|01|000044","02","03","11","55","59","02|03|11|55|59","National","Communications and Digital Technologies","Administration","Ministry","Non-transfer item","Capital","Payments for capital assets","Buildings and other fixed structures","Other fixed structures","Other fixed structures","Economic development","Economic regulation and infrastructure","NAT",0,0,0,0,0,0,0,0,0,0,0,null,null,null,null,null,null,null,null,null,null,null,null,null,null,null,null,null,null,null,null,null,null,null,null,null,null,null,null,null,null,null,null,null,null,{"$f":"Dataset[[#This Row],[2027/28 From - Spending review Topic 1]]+Dataset[[#This Row],[2027/28 From - Spending review Topic 2]]+Dataset[[#This Row],[2027/28 From - Spending review Topic 3]]+Dataset[[#This Row],[2027/28 From - Spending review Topic 4]]+Dataset[[#This Row],[2027/28 From - Other reallocations]]","v":0},{"$f":"Dataset[[#This Row],[2028/29 From - Spending review Topic 1]]+Dataset[[#This Row],[2028/29 From - Spending review Topic 2]]+Dataset[[#This Row],[2028/29 From - Spending review Topic 3]]+Dataset[[#This Row],[2028/29 From - Spending review Topic 4]]+Dataset[[#This Row],[2028/29 From - Other reallocations]]","v":0},{"$f":"Dataset[[#This Row],[2029/30 From - Spending review Topic 1]]+Dataset[[#This Row],[2029/30 From - Spending review Topic 2]]+Dataset[[#This Row],[2029/30 From - Spending review Topic 3]]+Dataset[[#This Row],[2029/30 From - Spending review Topic 4]]+Dataset[[#This Row],[2029/30 From - Other reallocations]]","v":0},{"$f":"Dataset[[#This Row],[2027/28 To - Spending review Topic 1]]+Dataset[[#This Row],[2027/28 To - Spending review Topic 2]]+Dataset[[#This Row],[2027/28 To - Spending review Topic 3]]+Dataset[[#This Row],[2027/28 To - Spending review Topic 4]]+Dataset[[#This Row],[2027/28 To - Other reallocations]]","v":0},{"$f":"Dataset[[#This Row],[2028/29 To - Spending review Topic 1]]+Dataset[[#This Row],[2028/29 To - Spending review Topic 2]]+Dataset[[#This Row],[2028/29 To - Spending review Topic 3]]+Dataset[[#This Row],[2028/29 To - Spending review Topic 4]]+Dataset[[#This Row],[2028/29 To - Other reallocations]]","v":0},{"$f":"Dataset[[#This Row],[2029/30 To - Spending review Topic 1]]+Dataset[[#This Row],[2029/30 To - Spending review Topic 2]]+Dataset[[#This Row],[2029/30 To - Spending review Topic 3]]+Dataset[[#This Row],[2029/30 To - Spending review Topic 4]]+Dataset[[#This Row],[2029/30 To - Other reallocations]]","v":0},{"$f":"Dataset[[#This Row],[2027/28 Targeted savings]]+Dataset[[#This Row],[2027/28 From - Total]]","v":0},{"$f":"Dataset[[#This Row],[2028/29 Targeted savings]]+Dataset[[#This Row],[2028/29 From - Total]]","v":0},{"$f":"Dataset[[#This Row],[2029/30 Targeted savings]]+Dataset[[#This Row],[2029/30 From - Total]]","v":0},{"$f":"Dataset[[#This Row],[2026/27 Targeted savings]]","v":0},{"$f":"SUM(Dataset[[#This Row],[2027/28 Targeted savings]],Dataset[[#This Row],[2027/28 From - Total]],Dataset[[#This Row],[2027/28 To - Total]])","v":0},{"$f":"SUM(Dataset[[#This Row],[2028/29 Targeted savings]],Dataset[[#This Row],[2028/29 From - Total]],Dataset[[#This Row],[2028/29 To - Total]])","v":0},{"$f":"SUM(Dataset[[#This Row],[2029/30 Targeted savings]],Dataset[[#This Row],[2029/30 From - Total]],Dataset[[#This Row],[2029/30 To - Total]])","v":0},{"$f":"Dataset[[#This Row],[2026/27 Baseline]]+Dataset[[#This Row],[2026/27 Total change]]","v":0},{"$f":"Dataset[[#This Row],[2027/28 Baseline]]+Dataset[[#This Row],[2027/28 Total change]]","v":0},{"$f":"Dataset[[#This Row],[2028/29 Baseline]]+Dataset[[#This Row],[2028/29 Total change]]","v":0},{"$f":"Dataset[[#This Row],[2029/30 Baseline]]+Dataset[[#This Row],[2029/30 Total change]]","v":0}]
["NAT|Non-transfer item","30|Transport equipment","2027_28","MTEC2027",30,1,1,32565,45,"30","01","01","032565","000045","30|01|01|000045","02","03","12","56","60","02|03|12|56|60","National","Communications and Digital Technologies","Administration","Ministry","Non-transfer item","Capital","Payments for capital assets","Machinery and equipment","Transport equipment","Transport equipment","Economic development","Economic regulation and infrastructure","NAT",0,0,0,0,0,0,0,0,0,0,0,null,null,null,null,null,null,null,null,null,null,null,null,null,null,null,null,null,null,null,null,null,null,null,null,null,null,null,null,null,null,null,null,null,null,{"$f":"Dataset[[#This Row],[2027/28 From - Spending review Topic 1]]+Dataset[[#This Row],[2027/28 From - Spending review Topic 2]]+Dataset[[#This Row],[2027/28 From - Spending review Topic 3]]+Dataset[[#This Row],[2027/28 From - Spending review Topic 4]]+Dataset[[#This Row],[2027/28 From - Other reallocations]]","v":0},{"$f":"Dataset[[#This Row],[2028/29 From - Spending review Topic 1]]+Dataset[[#This Row],[2028/29 From - Spending review Topic 2]]+Dataset[[#This Row],[2028/29 From - Spending review Topic 3]]+Dataset[[#This Row],[2028/29 From - Spending review Topic 4]]+Dataset[[#This Row],[2028/29 From - Other reallocations]]","v":0},{"$f":"Dataset[[#This Row],[2029/30 From - Spending review Topic 1]]+Dataset[[#This Row],[2029/30 From - Spending review Topic 2]]+Dataset[[#This Row],[2029/30 From - Spending review Topic 3]]+Dataset[[#This Row],[2029/30 From - Spending review Topic 4]]+Dataset[[#This Row],[2029/30 From - Other reallocations]]","v":0},{"$f":"Dataset[[#This Row],[2027/28 To - Spending review Topic 1]]+Dataset[[#This Row],[2027/28 To - Spending review Topic 2]]+Dataset[[#This Row],[2027/28 To - Spending review Topic 3]]+Dataset[[#This Row],[2027/28 To - Spending review Topic 4]]+Dataset[[#This Row],[2027/28 To - Other reallocations]]","v":0},{"$f":"Dataset[[#This Row],[2028/29 To - Spending review Topic 1]]+Dataset[[#This Row],[2028/29 To - Spending review Topic 2]]+Dataset[[#This Row],[2028/29 To - Spending review Topic 3]]+Dataset[[#This Row],[2028/29 To - Spending review Topic 4]]+Dataset[[#This Row],[2028/29 To - Other reallocations]]","v":0},{"$f":"Dataset[[#This Row],[2029/30 To - Spending review Topic 1]]+Dataset[[#This Row],[2029/30 To - Spending review Topic 2]]+Dataset[[#This Row],[2029/30 To - Spending review Topic 3]]+Dataset[[#This Row],[2029/30 To - Spending review Topic 4]]+Dataset[[#This Row],[2029/30 To - Other reallocations]]","v":0},{"$f":"Dataset[[#This Row],[2027/28 Targeted savings]]+Dataset[[#This Row],[2027/28 From - Total]]","v":0},{"$f":"Dataset[[#This Row],[2028/29 Targeted savings]]+Dataset[[#This Row],[2028/29 From - Total]]","v":0},{"$f":"Dataset[[#This Row],[2029/30 Targeted savings]]+Dataset[[#This Row],[2029/30 From - Total]]","v":0},{"$f":"Dataset[[#This Row],[2026/27 Targeted savings]]","v":0},{"$f":"SUM(Dataset[[#This Row],[2027/28 Targeted savings]],Dataset[[#This Row],[2027/28 From - Total]],Dataset[[#This Row],[2027/28 To - Total]])","v":0},{"$f":"SUM(Dataset[[#This Row],[2028/29 Targeted savings]],Dataset[[#This Row],[2028/29 From - Total]],Dataset[[#This Row],[2028/29 To - Total]])","v":0},{"$f":"SUM(Dataset[[#This Row],[2029/30 Targeted savings]],Dataset[[#This Row],[2029/30 From - Total]],Dataset[[#This Row],[2029/30 To - Total]])","v":0},{"$f":"Dataset[[#This Row],[2026/27 Baseline]]+Dataset[[#This Row],[2026/27 Total change]]","v":0},{"$f":"Dataset[[#This Row],[2027/28 Baseline]]+Dataset[[#This Row],[2027/28 Total change]]","v":0},{"$f":"Dataset[[#This Row],[2028/29 Baseline]]+Dataset[[#This Row],[2028/29 Total change]]","v":0},{"$f":"Dataset[[#This Row],[2029/30 Baseline]]+Dataset[[#This Row],[2029/30 Total change]]","v":0}]
["NAT|Non-transfer item","30|Other machinery and equipment","2027_28","MTEC2027",30,1,1,32566,46,"30","01","01","032566","000046","30|01|01|000046","02","03","12","57","61","02|03|12|57|61","National","Communications and Digital Technologies","Administration","Ministry","Non-transfer item","Capital","Payments for capital assets","Machinery and equipment","Other machinery and equipment","Other machinery and equipment","Economic development","Economic regulation and infrastructure","NAT",0,0,0,0,0,0,0,0,0,0,0,null,null,null,null,null,null,null,null,null,null,null,null,null,null,null,null,null,null,null,null,null,null,null,null,null,null,null,null,null,null,null,null,null,null,{"$f":"Dataset[[#This Row],[2027/28 From - Spending review Topic 1]]+Dataset[[#This Row],[2027/28 From - Spending review Topic 2]]+Dataset[[#This Row],[2027/28 From - Spending review Topic 3]]+Dataset[[#This Row],[2027/28 From - Spending review Topic 4]]+Dataset[[#This Row],[2027/28 From - Other reallocations]]","v":0},{"$f":"Dataset[[#This Row],[2028/29 From - Spending review Topic 1]]+Dataset[[#This Row],[2028/29 From - Spending review Topic 2]]+Dataset[[#This Row],[2028/29 From - Spending review Topic 3]]+Dataset[[#This Row],[2028/29 From - Spending review Topic 4]]+Dataset[[#This Row],[2028/29 From - Other reallocations]]","v":0},{"$f":"Dataset[[#This Row],[2029/30 From - Spending review Topic 1]]+Dataset[[#This Row],[2029/30 From - Spending review Topic 2]]+Dataset[[#This Row],[2029/30 From - Spending review Topic 3]]+Dataset[[#This Row],[2029/30 From - Spending review Topic 4]]+Dataset[[#This Row],[2029/30 From - Other reallocations]]","v":0},{"$f":"Dataset[[#This Row],[2027/28 To - Spending review Topic 1]]+Dataset[[#This Row],[2027/28 To - Spending review Topic 2]]+Dataset[[#This Row],[2027/28 To - Spending review Topic 3]]+Dataset[[#This Row],[2027/28 To - Spending review Topic 4]]+Dataset[[#This Row],[2027/28 To - Other reallocations]]","v":0},{"$f":"Dataset[[#This Row],[2028/29 To - Spending review Topic 1]]+Dataset[[#This Row],[2028/29 To - Spending review Topic 2]]+Dataset[[#This Row],[2028/29 To - Spending review Topic 3]]+Dataset[[#This Row],[2028/29 To - Spending review Topic 4]]+Dataset[[#This Row],[2028/29 To - Other reallocations]]","v":0},{"$f":"Dataset[[#This Row],[2029/30 To - Spending review Topic 1]]+Dataset[[#This Row],[2029/30 To - Spending review Topic 2]]+Dataset[[#This Row],[2029/30 To - Spending review Topic 3]]+Dataset[[#This Row],[2029/30 To - Spending review Topic 4]]+Dataset[[#This Row],[2029/30 To - Other reallocations]]","v":0},{"$f":"Dataset[[#This Row],[2027/28 Targeted savings]]+Dataset[[#This Row],[2027/28 From - Total]]","v":0},{"$f":"Dataset[[#This Row],[2028/29 Targeted savings]]+Dataset[[#This Row],[2028/29 From - Total]]","v":0},{"$f":"Dataset[[#This Row],[2029/30 Targeted savings]]+Dataset[[#This Row],[2029/30 From - Total]]","v":0},{"$f":"Dataset[[#This Row],[2026/27 Targeted savings]]","v":0},{"$f":"SUM(Dataset[[#This Row],[2027/28 Targeted savings]],Dataset[[#This Row],[2027/28 From - Total]],Dataset[[#This Row],[2027/28 To - Total]])","v":0},{"$f":"SUM(Dataset[[#This Row],[2028/29 Targeted savings]],Dataset[[#This Row],[2028/29 From - Total]],Dataset[[#This Row],[2028/29 To - Total]])","v":0},{"$f":"SUM(Dataset[[#This Row],[2029/30 Targeted savings]],Dataset[[#This Row],[2029/30 From - Total]],Dataset[[#This Row],[2029/30 To - Total]])","v":0},{"$f":"Dataset[[#This Row],[2026/27 Baseline]]+Dataset[[#This Row],[2026/27 Total change]]","v":0},{"$f":"Dataset[[#This Row],[2027/28 Baseline]]+Dataset[[#This Row],[2027/28 Total change]]","v":0},{"$f":"Dataset[[#This Row],[2028/29 Baseline]]+Dataset[[#This Row],[2028/29 Total change]]","v":0},{"$f":"Dataset[[#This Row],[2029/30 Baseline]]+Dataset[[#This Row],[2029/30 Total change]]","v":0}]
["NAT|Non-transfer item","30|Heritage assets","2027_28","MTEC2027",30,1,1,32567,47,"30","01","01","032567","000047","30|01|01|000047","02","03","13","58","62","02|03|13|58|62","National","Communications and Digital Technologies","Administration","Ministry","Non-transfer item","Capital","Payments for capital assets","Heritage assets","Heritage assets","Heritage assets","Economic development","Economic regulation and infrastructure","NAT",0,0,0,0,0,0,0,0,0,0,0,null,null,null,null,null,null,null,null,null,null,null,null,null,null,null,null,null,null,null,null,null,null,null,null,null,null,null,null,null,null,null,null,null,null,{"$f":"Dataset[[#This Row],[2027/28 From - Spending review Topic 1]]+Dataset[[#This Row],[2027/28 From - Spending review Topic 2]]+Dataset[[#This Row],[2027/28 From - Spending review Topic 3]]+Dataset[[#This Row],[2027/28 From - Spending review Topic 4]]+Dataset[[#This Row],[2027/28 From - Other reallocations]]","v":0},{"$f":"Dataset[[#This Row],[2028/29 From - Spending review Topic 1]]+Dataset[[#This Row],[2028/29 From - Spending review Topic 2]]+Dataset[[#This Row],[2028/29 From - Spending review Topic 3]]+Dataset[[#This Row],[2028/29 From - Spending review Topic 4]]+Dataset[[#This Row],[2028/29 From - Other reallocations]]","v":0},{"$f":"Dataset[[#This Row],[2029/30 From - Spending review Topic 1]]+Dataset[[#This Row],[2029/30 From - Spending review Topic 2]]+Dataset[[#This Row],[2029/30 From - Spending review Topic 3]]+Dataset[[#This Row],[2029/30 From - Spending review Topic 4]]+Dataset[[#This Row],[2029/30 From - Other reallocations]]","v":0},{"$f":"Dataset[[#This Row],[2027/28 To - Spending review Topic 1]]+Dataset[[#This Row],[2027/28 To - Spending review Topic 2]]+Dataset[[#This Row],[2027/28 To - Spending review Topic 3]]+Dataset[[#This Row],[2027/28 To - Spending review Topic 4]]+Dataset[[#This Row],[2027/28 To - Other reallocations]]","v":0},{"$f":"Dataset[[#This Row],[2028/29 To - Spending review Topic 1]]+Dataset[[#This Row],[2028/29 To - Spending review Topic 2]]+Dataset[[#This Row],[2028/29 To - Spending review Topic 3]]+Dataset[[#This Row],[2028/29 To - Spending review Topic 4]]+Dataset[[#This Row],[2028/29 To - Other reallocations]]","v":0},{"$f":"Dataset[[#This Row],[2029/30 To - Spending review Topic 1]]+Dataset[[#This Row],[2029/30 To - Spending review Topic 2]]+Dataset[[#This Row],[2029/30 To - Spending review Topic 3]]+Dataset[[#This Row],[2029/30 To - Spending review Topic 4]]+Dataset[[#This Row],[2029/30 To - Other reallocations]]","v":0},{"$f":"Dataset[[#This Row],[2027/28 Targeted savings]]+Dataset[[#This Row],[2027/28 From - Total]]","v":0},{"$f":"Dataset[[#This Row],[2028/29 Targeted savings]]+Dataset[[#This Row],[2028/29 From - Total]]","v":0},{"$f":"Dataset[[#This Row],[2029/30 Targeted savings]]+Dataset[[#This Row],[2029/30 From - Total]]","v":0},{"$f":"Dataset[[#This Row],[2026/27 Targeted savings]]","v":0},{"$f":"SUM(Dataset[[#This Row],[2027/28 Targeted savings]],Dataset[[#This Row],[2027/28 From - Total]],Dataset[[#This Row],[2027/28 To - Total]])","v":0},{"$f":"SUM(Dataset[[#This Row],[2028/29 Targeted savings]],Dataset[[#This Row],[2028/29 From - Total]],Dataset[[#This Row],[2028/29 To - Total]])","v":0},{"$f":"SUM(Dataset[[#This Row],[2029/30 Targeted savings]],Dataset[[#This Row],[2029/30 From - Total]],Dataset[[#This Row],[2029/30 To - Total]])","v":0},{"$f":"Dataset[[#This Row],[2026/27 Baseline]]+Dataset[[#This Row],[2026/27 Total change]]","v":0},{"$f":"Dataset[[#This Row],[2027/28 Baseline]]+Dataset[[#This Row],[2027/28 Total change]]","v":0},{"$f":"Dataset[[#This Row],[2028/29 Baseline]]+Dataset[[#This Row],[2028/29 Total change]]","v":0},{"$f":"Dataset[[#This Row],[2029/30 Baseline]]+Dataset[[#This Row],[2029/30 Total change]]","v":0}]
["NAT|Non-transfer item","30|Specialised military assets","2027_28","MTEC2027",30,1,1,32568,48,"30","01","01","032568","000048","30|01|01|000048","02","03","14","59","63","02|03|14|59|63","National","Communications and Digital Technologies","Administration","Ministry","Non-transfer item","Capital","Payments for capital assets","Specialised military assets","Specialised military assets","Specialised military assets","Economic development","Economic regulation and infrastructure","NAT",0,0,0,0,0,0,0,0,0,0,0,null,null,null,null,null,null,null,null,null,null,null,null,null,null,null,null,null,null,null,null,null,null,null,null,null,null,null,null,null,null,null,null,null,null,{"$f":"Dataset[[#This Row],[2027/28 From - Spending review Topic 1]]+Dataset[[#This Row],[2027/28 From - Spending review Topic 2]]+Dataset[[#This Row],[2027/28 From - Spending review Topic 3]]+Dataset[[#This Row],[2027/28 From - Spending review Topic 4]]+Dataset[[#This Row],[2027/28 From - Other reallocations]]","v":0},{"$f":"Dataset[[#This Row],[2028/29 From - Spending review Topic 1]]+Dataset[[#This Row],[2028/29 From - Spending review Topic 2]]+Dataset[[#This Row],[2028/29 From - Spending review Topic 3]]+Dataset[[#This Row],[2028/29 From - Spending review Topic 4]]+Dataset[[#This Row],[2028/29 From - Other reallocations]]","v":0},{"$f":"Dataset[[#This Row],[2029/30 From - Spending review Topic 1]]+Dataset[[#This Row],[2029/30 From - Spending review Topic 2]]+Dataset[[#This Row],[2029/30 From - Spending review Topic 3]]+Dataset[[#This Row],[2029/30 From - Spending review Topic 4]]+Dataset[[#This Row],[2029/30 From - Other reallocations]]","v":0},{"$f":"Dataset[[#This Row],[2027/28 To - Spending review Topic 1]]+Dataset[[#This Row],[2027/28 To - Spending review Topic 2]]+Dataset[[#This Row],[2027/28 To - Spending review Topic 3]]+Dataset[[#This Row],[2027/28 To - Spending review Topic 4]]+Dataset[[#This Row],[2027/28 To - Other reallocations]]","v":0},{"$f":"Dataset[[#This Row],[2028/29 To - Spending review Topic 1]]+Dataset[[#This Row],[2028/29 To - Spending review Topic 2]]+Dataset[[#This Row],[2028/29 To - Spending review Topic 3]]+Dataset[[#This Row],[2028/29 To - Spending review Topic 4]]+Dataset[[#This Row],[2028/29 To - Other reallocations]]","v":0},{"$f":"Dataset[[#This Row],[2029/30 To - Spending review Topic 1]]+Dataset[[#This Row],[2029/30 To - Spending review Topic 2]]+Dataset[[#This Row],[2029/30 To - Spending review Topic 3]]+Dataset[[#This Row],[2029/30 To - Spending review Topic 4]]+Dataset[[#This Row],[2029/30 To - Other reallocations]]","v":0},{"$f":"Dataset[[#This Row],[2027/28 Targeted savings]]+Dataset[[#This Row],[2027/28 From - Total]]","v":0},{"$f":"Dataset[[#This Row],[2028/29 Targeted savings]]+Dataset[[#This Row],[2028/29 From - Total]]","v":0},{"$f":"Dataset[[#This Row],[2029/30 Targeted savings]]+Dataset[[#This Row],[2029/30 From - Total]]","v":0},{"$f":"Dataset[[#This Row],[2026/27 Targeted savings]]","v":0},{"$f":"SUM(Dataset[[#This Row],[2027/28 Targeted savings]],Dataset[[#This Row],[2027/28 From - Total]],Dataset[[#This Row],[2027/28 To - Total]])","v":0},{"$f":"SUM(Dataset[[#This Row],[2028/29 Targeted savings]],Dataset[[#This Row],[2028/29 From - Total]],Dataset[[#This Row],[2028/29 To - Total]])","v":0},{"$f":"SUM(Dataset[[#This Row],[2029/30 Targeted savings]],Dataset[[#This Row],[2029/30 From - Total]],Dataset[[#This Row],[2029/30 To - Total]])","v":0},{"$f":"Dataset[[#This Row],[2026/27 Baseline]]+Dataset[[#This Row],[2026/27 Total change]]","v":0},{"$f":"Dataset[[#This Row],[2027/28 Baseline]]+Dataset[[#This Row],[2027/28 Total change]]","v":0},{"$f":"Dataset[[#This Row],[2028/29 Baseline]]+Dataset[[#This Row],[2028/29 Total change]]","v":0},{"$f":"Dataset[[#This Row],[2029/30 Baseline]]+Dataset[[#This Row],[2029/30 Total change]]","v":0}]
["NAT|Non-transfer item","30|Biological assets","2027_28","MTEC2027",30,1,1,32569,49,"30","01","01","032569","000049","30|01|01|000049","02","03","15","60","64","02|03|15|60|64","National","Communications and Digital Technologies","Administration","Ministry","Non-transfer item","Capital","Payments for capital assets","Biological assets","Biological assets","Biological assets","Economic development","Economic regulation and infrastructure","NAT",0,0,0,0,0,0,0,0,0,0,0,null,null,null,null,null,null,null,null,null,null,null,null,null,null,null,null,null,null,null,null,null,null,null,null,null,null,null,null,null,null,null,null,null,null,{"$f":"Dataset[[#This Row],[2027/28 From - Spending review Topic 1]]+Dataset[[#This Row],[2027/28 From - Spending review Topic 2]]+Dataset[[#This Row],[2027/28 From - Spending review Topic 3]]+Dataset[[#This Row],[2027/28 From - Spending review Topic 4]]+Dataset[[#This Row],[2027/28 From - Other reallocations]]","v":0},{"$f":"Dataset[[#This Row],[2028/29 From - Spending review Topic 1]]+Dataset[[#This Row],[2028/29 From - Spending review Topic 2]]+Dataset[[#This Row],[2028/29 From - Spending review Topic 3]]+Dataset[[#This Row],[2028/29 From - Spending review Topic 4]]+Dataset[[#This Row],[2028/29 From - Other reallocations]]","v":0},{"$f":"Dataset[[#This Row],[2029/30 From - Spending review Topic 1]]+Dataset[[#This Row],[2029/30 From - Spending review Topic 2]]+Dataset[[#This Row],[2029/30 From - Spending review Topic 3]]+Dataset[[#This Row],[2029/30 From - Spending review Topic 4]]+Dataset[[#This Row],[2029/30 From - Other reallocations]]","v":0},{"$f":"Dataset[[#This Row],[2027/28 To - Spending review Topic 1]]+Dataset[[#This Row],[2027/28 To - Spending review Topic 2]]+Dataset[[#This Row],[2027/28 To - Spending review Topic 3]]+Dataset[[#This Row],[2027/28 To - Spending review Topic 4]]+Dataset[[#This Row],[2027/28 To - Other reallocations]]","v":0},{"$f":"Dataset[[#This Row],[2028/29 To - Spending review Topic 1]]+Dataset[[#This Row],[2028/29 To - Spending review Topic 2]]+Dataset[[#This Row],[2028/29 To - Spending review Topic 3]]+Dataset[[#This Row],[2028/29 To - Spending review Topic 4]]+Dataset[[#This Row],[2028/29 To - Other reallocations]]","v":0},{"$f":"Dataset[[#This Row],[2029/30 To - Spending review Topic 1]]+Dataset[[#This Row],[2029/30 To - Spending review Topic 2]]+Dataset[[#This Row],[2029/30 To - Spending review Topic 3]]+Dataset[[#This Row],[2029/30 To - Spending review Topic 4]]+Dataset[[#This Row],[2029/30 To - Other reallocations]]","v":0},{"$f":"Dataset[[#This Row],[2027/28 Targeted savings]]+Dataset[[#This Row],[2027/28 From - Total]]","v":0},{"$f":"Dataset[[#This Row],[2028/29 Targeted savings]]+Dataset[[#This Row],[2028/29 From - Total]]","v":0},{"$f":"Dataset[[#This Row],[2029/30 Targeted savings]]+Dataset[[#This Row],[2029/30 From - Total]]","v":0},{"$f":"Dataset[[#This Row],[2026/27 Targeted savings]]","v":0},{"$f":"SUM(Dataset[[#This Row],[2027/28 Targeted savings]],Dataset[[#This Row],[2027/28 From - Total]],Dataset[[#This Row],[2027/28 To - Total]])","v":0},{"$f":"SUM(Dataset[[#This Row],[2028/29 Targeted savings]],Dataset[[#This Row],[2028/29 From - Total]],Dataset[[#This Row],[2028/29 To - Total]])","v":0},{"$f":"SUM(Dataset[[#This Row],[2029/30 Targeted savings]],Dataset[[#This Row],[2029/30 From - Total]],Dataset[[#This Row],[2029/30 To - Total]])","v":0},{"$f":"Dataset[[#This Row],[2026/27 Baseline]]+Dataset[[#This Row],[2026/27 Total change]]","v":0},{"$f":"Dataset[[#This Row],[2027/28 Baseline]]+Dataset[[#This Row],[2027/28 Total change]]","v":0},{"$f":"Dataset[[#This Row],[2028/29 Baseline]]+Dataset[[#This Row],[2028/29 Total change]]","v":0},{"$f":"Dataset[[#This Row],[2029/30 Baseline]]+Dataset[[#This Row],[2029/30 Total change]]","v":0}]
["NAT|Non-transfer item","30|Land and sub-soil assets","2027_28","MTEC2027",30,1,1,32570,50,"30","01","01","032570","000050","30|01|01|000050","02","03","16","61","65","02|03|16|61|65","National","Communications and Digital Technologies","Administration","Ministry","Non-transfer item","Capital","Payments for capital assets","Land and sub-soil assets","Land and sub-soil assets","Land and sub-soil assets","Economic development","Economic regulation and infrastructure","NAT",0,0,0,0,0,0,0,0,0,0,0,null,null,null,null,null,null,null,null,null,null,null,null,null,null,null,null,null,null,null,null,null,null,null,null,null,null,null,null,null,null,null,null,null,null,{"$f":"Dataset[[#This Row],[2027/28 From - Spending review Topic 1]]+Dataset[[#This Row],[2027/28 From - Spending review Topic 2]]+Dataset[[#This Row],[2027/28 From - Spending review Topic 3]]+Dataset[[#This Row],[2027/28 From - Spending review Topic 4]]+Dataset[[#This Row],[2027/28 From - Other reallocations]]","v":0},{"$f":"Dataset[[#This Row],[2028/29 From - Spending review Topic 1]]+Dataset[[#This Row],[2028/29 From - Spending review Topic 2]]+Dataset[[#This Row],[2028/29 From - Spending review Topic 3]]+Dataset[[#This Row],[2028/29 From - Spending review Topic 4]]+Dataset[[#This Row],[2028/29 From - Other reallocations]]","v":0},{"$f":"Dataset[[#This Row],[2029/30 From - Spending review Topic 1]]+Dataset[[#This Row],[2029/30 From - Spending review Topic 2]]+Dataset[[#This Row],[2029/30 From - Spending review Topic 3]]+Dataset[[#This Row],[2029/30 From - Spending review Topic 4]]+Dataset[[#This Row],[2029/30 From - Other reallocations]]","v":0},{"$f":"Dataset[[#This Row],[2027/28 To - Spending review Topic 1]]+Dataset[[#This Row],[2027/28 To - Spending review Topic 2]]+Dataset[[#This Row],[2027/28 To - Spending review Topic 3]]+Dataset[[#This Row],[2027/28 To - Spending review Topic 4]]+Dataset[[#This Row],[2027/28 To - Other reallocations]]","v":0},{"$f":"Dataset[[#This Row],[2028/29 To - Spending review Topic 1]]+Dataset[[#This Row],[2028/29 To - Spending review Topic 2]]+Dataset[[#This Row],[2028/29 To - Spending review Topic 3]]+Dataset[[#This Row],[2028/29 To - Spending review Topic 4]]+Dataset[[#This Row],[2028/29 To - Other reallocations]]","v":0},{"$f":"Dataset[[#This Row],[2029/30 To - Spending review Topic 1]]+Dataset[[#This Row],[2029/30 To - Spending review Topic 2]]+Dataset[[#This Row],[2029/30 To - Spending review Topic 3]]+Dataset[[#This Row],[2029/30 To - Spending review Topic 4]]+Dataset[[#This Row],[2029/30 To - Other reallocations]]","v":0},{"$f":"Dataset[[#This Row],[2027/28 Targeted savings]]+Dataset[[#This Row],[2027/28 From - Total]]","v":0},{"$f":"Dataset[[#This Row],[2028/29 Targeted savings]]+Dataset[[#This Row],[2028/29 From - Total]]","v":0},{"$f":"Dataset[[#This Row],[2029/30 Targeted savings]]+Dataset[[#This Row],[2029/30 From - Total]]","v":0},{"$f":"Dataset[[#This Row],[2026/27 Targeted savings]]","v":0},{"$f":"SUM(Dataset[[#This Row],[2027/28 Targeted savings]],Dataset[[#This Row],[2027/28 From - Total]],Dataset[[#This Row],[2027/28 To - Total]])","v":0},{"$f":"SUM(Dataset[[#This Row],[2028/29 Targeted savings]],Dataset[[#This Row],[2028/29 From - Total]],Dataset[[#This Row],[2028/29 To - Total]])","v":0},{"$f":"SUM(Dataset[[#This Row],[2029/30 Targeted savings]],Dataset[[#This Row],[2029/30 From - Total]],Dataset[[#This Row],[2029/30 To - Total]])","v":0},{"$f":"Dataset[[#This Row],[2026/27 Baseline]]+Dataset[[#This Row],[2026/27 Total change]]","v":0},{"$f":"Dataset[[#This Row],[2027/28 Baseline]]+Dataset[[#This Row],[2027/28 Total change]]","v":0},{"$f":"Dataset[[#This Row],[2028/29 Baseline]]+Dataset[[#This Row],[2028/29 Total change]]","v":0},{"$f":"Dataset[[#This Row],[2029/30 Baseline]]+Dataset[[#This Row],[2029/30 Total change]]","v":0}]
["NAT|Non-transfer item","30|Software and other intangible assets","2027_28","MTEC2027",30,1,1,32571,51,"30","01","01","032571","000051","30|01|01|000051","02","03","17","62","66","02|03|17|62|66","National","Communications and Digital Technologies","Administration","Ministry","Non-transfer item","Capital","Payments for capital assets","Software and other intangible assets","Software and other intangible assets","Software and other intangible assets","Economic development","Economic regulation and infrastructure","NAT",0,0,0,0,0,0,0,0,0,0,0,null,null,null,null,null,null,null,null,null,null,null,null,null,null,null,null,null,null,null,null,null,null,null,null,null,null,null,null,null,null,null,null,null,null,{"$f":"Dataset[[#This Row],[2027/28 From - Spending review Topic 1]]+Dataset[[#This Row],[2027/28 From - Spending review Topic 2]]+Dataset[[#This Row],[2027/28 From - Spending review Topic 3]]+Dataset[[#This Row],[2027/28 From - Spending review Topic 4]]+Dataset[[#This Row],[2027/28 From - Other reallocations]]","v":0},{"$f":"Dataset[[#This Row],[2028/29 From - Spending review Topic 1]]+Dataset[[#This Row],[2028/29 From - Spending review Topic 2]]+Dataset[[#This Row],[2028/29 From - Spending review Topic 3]]+Dataset[[#This Row],[2028/29 From - Spending review Topic 4]]+Dataset[[#This Row],[2028/29 From - Other reallocations]]","v":0},{"$f":"Dataset[[#This Row],[2029/30 From - Spending review Topic 1]]+Dataset[[#This Row],[2029/30 From - Spending review Topic 2]]+Dataset[[#This Row],[2029/30 From - Spending review Topic 3]]+Dataset[[#This Row],[2029/30 From - Spending review Topic 4]]+Dataset[[#This Row],[2029/30 From - Other reallocations]]","v":0},{"$f":"Dataset[[#This Row],[2027/28 To - Spending review Topic 1]]+Dataset[[#This Row],[2027/28 To - Spending review Topic 2]]+Dataset[[#This Row],[2027/28 To - Spending review Topic 3]]+Dataset[[#This Row],[2027/28 To - Spending review Topic 4]]+Dataset[[#This Row],[2027/28 To - Other reallocations]]","v":0},{"$f":"Dataset[[#This Row],[2028/29 To - Spending review Topic 1]]+Dataset[[#This Row],[2028/29 To - Spending review Topic 2]]+Dataset[[#This Row],[2028/29 To - Spending review Topic 3]]+Dataset[[#This Row],[2028/29 To - Spending review Topic 4]]+Dataset[[#This Row],[2028/29 To - Other reallocations]]","v":0},{"$f":"Dataset[[#This Row],[2029/30 To - Spending review Topic 1]]+Dataset[[#This Row],[2029/30 To - Spending review Topic 2]]+Dataset[[#This Row],[2029/30 To - Spending review Topic 3]]+Dataset[[#This Row],[2029/30 To - Spending review Topic 4]]+Dataset[[#This Row],[2029/30 To - Other reallocations]]","v":0},{"$f":"Dataset[[#This Row],[2027/28 Targeted savings]]+Dataset[[#This Row],[2027/28 From - Total]]","v":0},{"$f":"Dataset[[#This Row],[2028/29 Targeted savings]]+Dataset[[#This Row],[2028/29 From - Total]]","v":0},{"$f":"Dataset[[#This Row],[2029/30 Targeted savings]]+Dataset[[#This Row],[2029/30 From - Total]]","v":0},{"$f":"Dataset[[#This Row],[2026/27 Targeted savings]]","v":0},{"$f":"SUM(Dataset[[#This Row],[2027/28 Targeted savings]],Dataset[[#This Row],[2027/28 From - Total]],Dataset[[#This Row],[2027/28 To - Total]])","v":0},{"$f":"SUM(Dataset[[#This Row],[2028/29 Targeted savings]],Dataset[[#This Row],[2028/29 From - Total]],Dataset[[#This Row],[2028/29 To - Total]])","v":0},{"$f":"SUM(Dataset[[#This Row],[2029/30 Targeted savings]],Dataset[[#This Row],[2029/30 From - Total]],Dataset[[#This Row],[2029/30 To - Total]])","v":0},{"$f":"Dataset[[#This Row],[2026/27 Baseline]]+Dataset[[#This Row],[2026/27 Total change]]","v":0},{"$f":"Dataset[[#This Row],[2027/28 Baseline]]+Dataset[[#This Row],[2027/28 Total change]]","v":0},{"$f":"Dataset[[#This Row],[2028/29 Baseline]]+Dataset[[#This Row],[2028/29 Total change]]","v":0},{"$f":"Dataset[[#This Row],[2029/30 Baseline]]+Dataset[[#This Row],[2029/30 Total change]]","v":0}]
["NAT|Non-transfer","30|Salaries and wages","2027_28","MTEC2027",30,1,2,32572,52,"30","01","02","032572","000052","30|01|02|000052","01","01","01","01","01","01|01|01|01|01","National","Communications and Digital Technologies","Administration","Departmental Management","Non-transfer","Current","Current payments","Compensation of employees","Salaries and wages","Salaries and wages","Economic development","Economic regulation and infrastructure","NAT",28639,37427,35920,42349,38902,38902,33655,39814,38988,40200,41410,null,null,null,null,null,null,null,null,null,null,null,null,null,null,null,null,null,null,null,null,null,null,null,null,null,null,null,null,null,null,null,null,null,null,{"$f":"Dataset[[#This Row],[2027/28 From - Spending review Topic 1]]+Dataset[[#This Row],[2027/28 From - Spending review Topic 2]]+Dataset[[#This Row],[2027/28 From - Spending review Topic 3]]+Dataset[[#This Row],[2027/28 From - Spending review Topic 4]]+Dataset[[#This Row],[2027/28 From - Other reallocations]]","v":0},{"$f":"Dataset[[#This Row],[2028/29 From - Spending review Topic 1]]+Dataset[[#This Row],[2028/29 From - Spending review Topic 2]]+Dataset[[#This Row],[2028/29 From - Spending review Topic 3]]+Dataset[[#This Row],[2028/29 From - Spending review Topic 4]]+Dataset[[#This Row],[2028/29 From - Other reallocations]]","v":0},{"$f":"Dataset[[#This Row],[2029/30 From - Spending review Topic 1]]+Dataset[[#This Row],[2029/30 From - Spending review Topic 2]]+Dataset[[#This Row],[2029/30 From - Spending review Topic 3]]+Dataset[[#This Row],[2029/30 From - Spending review Topic 4]]+Dataset[[#This Row],[2029/30 From - Other reallocations]]","v":0},{"$f":"Dataset[[#This Row],[2027/28 To - Spending review Topic 1]]+Dataset[[#This Row],[2027/28 To - Spending review Topic 2]]+Dataset[[#This Row],[2027/28 To - Spending review Topic 3]]+Dataset[[#This Row],[2027/28 To - Spending review Topic 4]]+Dataset[[#This Row],[2027/28 To - Other reallocations]]","v":0},{"$f":"Dataset[[#This Row],[2028/29 To - Spending review Topic 1]]+Dataset[[#This Row],[2028/29 To - Spending review Topic 2]]+Dataset[[#This Row],[2028/29 To - Spending review Topic 3]]+Dataset[[#This Row],[2028/29 To - Spending review Topic 4]]+Dataset[[#This Row],[2028/29 To - Other reallocations]]","v":0},{"$f":"Dataset[[#This Row],[2029/30 To - Spending review Topic 1]]+Dataset[[#This Row],[2029/30 To - Spending review Topic 2]]+Dataset[[#This Row],[2029/30 To - Spending review Topic 3]]+Dataset[[#This Row],[2029/30 To - Spending review Topic 4]]+Dataset[[#This Row],[2029/30 To - Other reallocations]]","v":0},{"$f":"Dataset[[#This Row],[2027/28 Targeted savings]]+Dataset[[#This Row],[2027/28 From - Total]]","v":0},{"$f":"Dataset[[#This Row],[2028/29 Targeted savings]]+Dataset[[#This Row],[2028/29 From - Total]]","v":0},{"$f":"Dataset[[#This Row],[2029/30 Targeted savings]]+Dataset[[#This Row],[2029/30 From - Total]]","v":0},{"$f":"Dataset[[#This Row],[2026/27 Targeted savings]]","v":0},{"$f":"SUM(Dataset[[#This Row],[2027/28 Targeted savings]],Dataset[[#This Row],[2027/28 From - Total]],Dataset[[#This Row],[2027/28 To - Total]])","v":0},{"$f":"SUM(Dataset[[#This Row],[2028/29 Targeted savings]],Dataset[[#This Row],[2028/29 From - Total]],Dataset[[#This Row],[2028/29 To - Total]])","v":0},{"$f":"SUM(Dataset[[#This Row],[2029/30 Targeted savings]],Dataset[[#This Row],[2029/30 From - Total]],Dataset[[#This Row],[2029/30 To - Total]])","v":0},{"$f":"Dataset[[#This Row],[2026/27 Baseline]]+Dataset[[#This Row],[2026/27 Total change]]","v":39814},{"$f":"Dataset[[#This Row],[2027/28 Baseline]]+Dataset[[#This Row],[2027/28 Total change]]","v":38988},{"$f":"Dataset[[#This Row],[2028/29 Baseline]]+Dataset[[#This Row],[2028/29 Total change]]","v":40200},{"$f":"Dataset[[#This Row],[2029/30 Baseline]]+Dataset[[#This Row],[2029/30 Total change]]","v":41410}]
["NAT|Non-transfer","30|Social contributions","2027_28","MTEC2027",30,1,2,32573,53,"30","01","02","032573","000053","30|01|02|000053","01","01","01","02","02","01|01|01|02|02","National","Communications and Digital Technologies","Administration","Departmental Management","Non-transfer","Current","Current payments","Compensation of employees","Social contributions","Social contributions","Economic development","Economic regulation and infrastructure","NAT",3008,2747,2816,5191,2920,2920,2236,4393,3803,4735,4878,null,null,null,null,null,null,null,null,null,null,null,null,null,null,null,null,null,null,null,null,null,null,null,null,null,null,null,null,null,null,null,null,null,null,{"$f":"Dataset[[#This Row],[2027/28 From - Spending review Topic 1]]+Dataset[[#This Row],[2027/28 From - Spending review Topic 2]]+Dataset[[#This Row],[2027/28 From - Spending review Topic 3]]+Dataset[[#This Row],[2027/28 From - Spending review Topic 4]]+Dataset[[#This Row],[2027/28 From - Other reallocations]]","v":0},{"$f":"Dataset[[#This Row],[2028/29 From - Spending review Topic 1]]+Dataset[[#This Row],[2028/29 From - Spending review Topic 2]]+Dataset[[#This Row],[2028/29 From - Spending review Topic 3]]+Dataset[[#This Row],[2028/29 From - Spending review Topic 4]]+Dataset[[#This Row],[2028/29 From - Other reallocations]]","v":0},{"$f":"Dataset[[#This Row],[2029/30 From - Spending review Topic 1]]+Dataset[[#This Row],[2029/30 From - Spending review Topic 2]]+Dataset[[#This Row],[2029/30 From - Spending review Topic 3]]+Dataset[[#This Row],[2029/30 From - Spending review Topic 4]]+Dataset[[#This Row],[2029/30 From - Other reallocations]]","v":0},{"$f":"Dataset[[#This Row],[2027/28 To - Spending review Topic 1]]+Dataset[[#This Row],[2027/28 To - Spending review Topic 2]]+Dataset[[#This Row],[2027/28 To - Spending review Topic 3]]+Dataset[[#This Row],[2027/28 To - Spending review Topic 4]]+Dataset[[#This Row],[2027/28 To - Other reallocations]]","v":0},{"$f":"Dataset[[#This Row],[2028/29 To - Spending review Topic 1]]+Dataset[[#This Row],[2028/29 To - Spending review Topic 2]]+Dataset[[#This Row],[2028/29 To - Spending review Topic 3]]+Dataset[[#This Row],[2028/29 To - Spending review Topic 4]]+Dataset[[#This Row],[2028/29 To - Other reallocations]]","v":0},{"$f":"Dataset[[#This Row],[2029/30 To - Spending review Topic 1]]+Dataset[[#This Row],[2029/30 To - Spending review Topic 2]]+Dataset[[#This Row],[2029/30 To - Spending review Topic 3]]+Dataset[[#This Row],[2029/30 To - Spending review Topic 4]]+Dataset[[#This Row],[2029/30 To - Other reallocations]]","v":0},{"$f":"Dataset[[#This Row],[2027/28 Targeted savings]]+Dataset[[#This Row],[2027/28 From - Total]]","v":0},{"$f":"Dataset[[#This Row],[2028/29 Targeted savings]]+Dataset[[#This Row],[2028/29 From - Total]]","v":0},{"$f":"Dataset[[#This Row],[2029/30 Targeted savings]]+Dataset[[#This Row],[2029/30 From - Total]]","v":0},{"$f":"Dataset[[#This Row],[2026/27 Targeted savings]]","v":0},{"$f":"SUM(Dataset[[#This Row],[2027/28 Targeted savings]],Dataset[[#This Row],[2027/28 From - Total]],Dataset[[#This Row],[2027/28 To - Total]])","v":0},{"$f":"SUM(Dataset[[#This Row],[2028/29 Targeted savings]],Dataset[[#This Row],[2028/29 From - Total]],Dataset[[#This Row],[2028/29 To - Total]])","v":0},{"$f":"SUM(Dataset[[#This Row],[2029/30 Targeted savings]],Dataset[[#This Row],[2029/30 From - Total]],Dataset[[#This Row],[2029/30 To - Total]])","v":0},{"$f":"Dataset[[#This Row],[2026/27 Baseline]]+Dataset[[#This Row],[2026/27 Total change]]","v":4393},{"$f":"Dataset[[#This Row],[2027/28 Baseline]]+Dataset[[#This Row],[2027/28 Total change]]","v":3803},{"$f":"Dataset[[#This Row],[2028/29 Baseline]]+Dataset[[#This Row],[2028/29 Total change]]","v":4735},{"$f":"Dataset[[#This Row],[2029/30 Baseline]]+Dataset[[#This Row],[2029/30 Total change]]","v":4878}]
["NAT|Non-transfer","30|Administrative fees","2027_28","MTEC2027",30,1,2,32574,54,"30","01","02","032574","000054","30|01|02|000054","01","01","02","03","03","01|01|02|03|03","National","Communications and Digital Technologies","Administration","Departmental Management","Non-transfer","Current","Current payments","Goods and services","Administrative fees","Administrative fees","Economic development","Economic regulation and infrastructure","NAT",192,309,351,440,424,424,534,604,596,614,632,null,null,null,null,null,null,null,null,null,null,null,null,null,null,null,null,null,null,null,null,null,null,null,null,null,null,null,null,null,null,null,null,null,null,{"$f":"Dataset[[#This Row],[2027/28 From - Spending review Topic 1]]+Dataset[[#This Row],[2027/28 From - Spending review Topic 2]]+Dataset[[#This Row],[2027/28 From - Spending review Topic 3]]+Dataset[[#This Row],[2027/28 From - Spending review Topic 4]]+Dataset[[#This Row],[2027/28 From - Other reallocations]]","v":0},{"$f":"Dataset[[#This Row],[2028/29 From - Spending review Topic 1]]+Dataset[[#This Row],[2028/29 From - Spending review Topic 2]]+Dataset[[#This Row],[2028/29 From - Spending review Topic 3]]+Dataset[[#This Row],[2028/29 From - Spending review Topic 4]]+Dataset[[#This Row],[2028/29 From - Other reallocations]]","v":0},{"$f":"Dataset[[#This Row],[2029/30 From - Spending review Topic 1]]+Dataset[[#This Row],[2029/30 From - Spending review Topic 2]]+Dataset[[#This Row],[2029/30 From - Spending review Topic 3]]+Dataset[[#This Row],[2029/30 From - Spending review Topic 4]]+Dataset[[#This Row],[2029/30 From - Other reallocations]]","v":0},{"$f":"Dataset[[#This Row],[2027/28 To - Spending review Topic 1]]+Dataset[[#This Row],[2027/28 To - Spending review Topic 2]]+Dataset[[#This Row],[2027/28 To - Spending review Topic 3]]+Dataset[[#This Row],[2027/28 To - Spending review Topic 4]]+Dataset[[#This Row],[2027/28 To - Other reallocations]]","v":0},{"$f":"Dataset[[#This Row],[2028/29 To - Spending review Topic 1]]+Dataset[[#This Row],[2028/29 To - Spending review Topic 2]]+Dataset[[#This Row],[2028/29 To - Spending review Topic 3]]+Dataset[[#This Row],[2028/29 To - Spending review Topic 4]]+Dataset[[#This Row],[2028/29 To - Other reallocations]]","v":0},{"$f":"Dataset[[#This Row],[2029/30 To - Spending review Topic 1]]+Dataset[[#This Row],[2029/30 To - Spending review Topic 2]]+Dataset[[#This Row],[2029/30 To - Spending review Topic 3]]+Dataset[[#This Row],[2029/30 To - Spending review Topic 4]]+Dataset[[#This Row],[2029/30 To - Other reallocations]]","v":0},{"$f":"Dataset[[#This Row],[2027/28 Targeted savings]]+Dataset[[#This Row],[2027/28 From - Total]]","v":0},{"$f":"Dataset[[#This Row],[2028/29 Targeted savings]]+Dataset[[#This Row],[2028/29 From - Total]]","v":0},{"$f":"Dataset[[#This Row],[2029/30 Targeted savings]]+Dataset[[#This Row],[2029/30 From - Total]]","v":0},{"$f":"Dataset[[#This Row],[2026/27 Targeted savings]]","v":0},{"$f":"SUM(Dataset[[#This Row],[2027/28 Targeted savings]],Dataset[[#This Row],[2027/28 From - Total]],Dataset[[#This Row],[2027/28 To - Total]])","v":0},{"$f":"SUM(Dataset[[#This Row],[2028/29 Targeted savings]],Dataset[[#This Row],[2028/29 From - Total]],Dataset[[#This Row],[2028/29 To - Total]])","v":0},{"$f":"SUM(Dataset[[#This Row],[2029/30 Targeted savings]],Dataset[[#This Row],[2029/30 From - Total]],Dataset[[#This Row],[2029/30 To - Total]])","v":0},{"$f":"Dataset[[#This Row],[2026/27 Baseline]]+Dataset[[#This Row],[2026/27 Total change]]","v":604},{"$f":"Dataset[[#This Row],[2027/28 Baseline]]+Dataset[[#This Row],[2027/28 Total change]]","v":596},{"$f":"Dataset[[#This Row],[2028/29 Baseline]]+Dataset[[#This Row],[2028/29 Total change]]","v":614},{"$f":"Dataset[[#This Row],[2029/30 Baseline]]+Dataset[[#This Row],[2029/30 Total change]]","v":632}]
["NAT|Non-transfer","30|Advertising","2027_28","MTEC2027",30,1,2,32575,55,"30","01","02","032575","000055","30|01|02|000055","01","01","02","04","04","01|01|02|04|04","National","Communications and Digital Technologies","Administration","Departmental Management","Non-transfer","Current","Current payments","Goods and services","Advertising","Advertising","Economic development","Economic regulation and infrastructure","NAT",0,0,0,0,0,0,0,0,326,336,346,null,null,null,null,null,null,null,null,null,null,null,null,null,null,null,null,null,null,null,null,null,null,null,null,null,null,null,null,null,null,null,null,null,null,{"$f":"Dataset[[#This Row],[2027/28 From - Spending review Topic 1]]+Dataset[[#This Row],[2027/28 From - Spending review Topic 2]]+Dataset[[#This Row],[2027/28 From - Spending review Topic 3]]+Dataset[[#This Row],[2027/28 From - Spending review Topic 4]]+Dataset[[#This Row],[2027/28 From - Other reallocations]]","v":0},{"$f":"Dataset[[#This Row],[2028/29 From - Spending review Topic 1]]+Dataset[[#This Row],[2028/29 From - Spending review Topic 2]]+Dataset[[#This Row],[2028/29 From - Spending review Topic 3]]+Dataset[[#This Row],[2028/29 From - Spending review Topic 4]]+Dataset[[#This Row],[2028/29 From - Other reallocations]]","v":0},{"$f":"Dataset[[#This Row],[2029/30 From - Spending review Topic 1]]+Dataset[[#This Row],[2029/30 From - Spending review Topic 2]]+Dataset[[#This Row],[2029/30 From - Spending review Topic 3]]+Dataset[[#This Row],[2029/30 From - Spending review Topic 4]]+Dataset[[#This Row],[2029/30 From - Other reallocations]]","v":0},{"$f":"Dataset[[#This Row],[2027/28 To - Spending review Topic 1]]+Dataset[[#This Row],[2027/28 To - Spending review Topic 2]]+Dataset[[#This Row],[2027/28 To - Spending review Topic 3]]+Dataset[[#This Row],[2027/28 To - Spending review Topic 4]]+Dataset[[#This Row],[2027/28 To - Other reallocations]]","v":0},{"$f":"Dataset[[#This Row],[2028/29 To - Spending review Topic 1]]+Dataset[[#This Row],[2028/29 To - Spending review Topic 2]]+Dataset[[#This Row],[2028/29 To - Spending review Topic 3]]+Dataset[[#This Row],[2028/29 To - Spending review Topic 4]]+Dataset[[#This Row],[2028/29 To - Other reallocations]]","v":0},{"$f":"Dataset[[#This Row],[2029/30 To - Spending review Topic 1]]+Dataset[[#This Row],[2029/30 To - Spending review Topic 2]]+Dataset[[#This Row],[2029/30 To - Spending review Topic 3]]+Dataset[[#This Row],[2029/30 To - Spending review Topic 4]]+Dataset[[#This Row],[2029/30 To - Other reallocations]]","v":0},{"$f":"Dataset[[#This Row],[2027/28 Targeted savings]]+Dataset[[#This Row],[2027/28 From - Total]]","v":0},{"$f":"Dataset[[#This Row],[2028/29 Targeted savings]]+Dataset[[#This Row],[2028/29 From - Total]]","v":0},{"$f":"Dataset[[#This Row],[2029/30 Targeted savings]]+Dataset[[#This Row],[2029/30 From - Total]]","v":0},{"$f":"Dataset[[#This Row],[2026/27 Targeted savings]]","v":0},{"$f":"SUM(Dataset[[#This Row],[2027/28 Targeted savings]],Dataset[[#This Row],[2027/28 From - Total]],Dataset[[#This Row],[2027/28 To - Total]])","v":0},{"$f":"SUM(Dataset[[#This Row],[2028/29 Targeted savings]],Dataset[[#This Row],[2028/29 From - Total]],Dataset[[#This Row],[2028/29 To - Total]])","v":0},{"$f":"SUM(Dataset[[#This Row],[2029/30 Targeted savings]],Dataset[[#This Row],[2029/30 From - Total]],Dataset[[#This Row],[2029/30 To - Total]])","v":0},{"$f":"Dataset[[#This Row],[2026/27 Baseline]]+Dataset[[#This Row],[2026/27 Total change]]","v":0},{"$f":"Dataset[[#This Row],[2027/28 Baseline]]+Dataset[[#This Row],[2027/28 Total change]]","v":326},{"$f":"Dataset[[#This Row],[2028/29 Baseline]]+Dataset[[#This Row],[2028/29 Total change]]","v":336},{"$f":"Dataset[[#This Row],[2029/30 Baseline]]+Dataset[[#This Row],[2029/30 Total change]]","v":346}]
["NAT|Non-transfer","30|Minor assets","2027_28","MTEC2027",30,1,2,32576,56,"30","01","02","032576","000056","30|01|02|000056","01","01","02","05","05","01|01|02|05|05","National","Communications and Digital Technologies","Administration","Departmental Management","Non-transfer","Current","Current payments","Goods and services","Minor assets","Minor assets","Economic development","Economic regulation and infrastructure","NAT",11,3,5,20,20,20,20,21,0,0,0,null,null,null,null,null,null,null,null,null,null,null,null,null,null,null,null,null,null,null,null,null,null,null,null,null,null,null,null,null,null,null,null,null,null,{"$f":"Dataset[[#This Row],[2027/28 From - Spending review Topic 1]]+Dataset[[#This Row],[2027/28 From - Spending review Topic 2]]+Dataset[[#This Row],[2027/28 From - Spending review Topic 3]]+Dataset[[#This Row],[2027/28 From - Spending review Topic 4]]+Dataset[[#This Row],[2027/28 From - Other reallocations]]","v":0},{"$f":"Dataset[[#This Row],[2028/29 From - Spending review Topic 1]]+Dataset[[#This Row],[2028/29 From - Spending review Topic 2]]+Dataset[[#This Row],[2028/29 From - Spending review Topic 3]]+Dataset[[#This Row],[2028/29 From - Spending review Topic 4]]+Dataset[[#This Row],[2028/29 From - Other reallocations]]","v":0},{"$f":"Dataset[[#This Row],[2029/30 From - Spending review Topic 1]]+Dataset[[#This Row],[2029/30 From - Spending review Topic 2]]+Dataset[[#This Row],[2029/30 From - Spending review Topic 3]]+Dataset[[#This Row],[2029/30 From - Spending review Topic 4]]+Dataset[[#This Row],[2029/30 From - Other reallocations]]","v":0},{"$f":"Dataset[[#This Row],[2027/28 To - Spending review Topic 1]]+Dataset[[#This Row],[2027/28 To - Spending review Topic 2]]+Dataset[[#This Row],[2027/28 To - Spending review Topic 3]]+Dataset[[#This Row],[2027/28 To - Spending review Topic 4]]+Dataset[[#This Row],[2027/28 To - Other reallocations]]","v":0},{"$f":"Dataset[[#This Row],[2028/29 To - Spending review Topic 1]]+Dataset[[#This Row],[2028/29 To - Spending review Topic 2]]+Dataset[[#This Row],[2028/29 To - Spending review Topic 3]]+Dataset[[#This Row],[2028/29 To - Spending review Topic 4]]+Dataset[[#This Row],[2028/29 To - Other reallocations]]","v":0},{"$f":"Dataset[[#This Row],[2029/30 To - Spending review Topic 1]]+Dataset[[#This Row],[2029/30 To - Spending review Topic 2]]+Dataset[[#This Row],[2029/30 To - Spending review Topic 3]]+Dataset[[#This Row],[2029/30 To - Spending review Topic 4]]+Dataset[[#This Row],[2029/30 To - Other reallocations]]","v":0},{"$f":"Dataset[[#This Row],[2027/28 Targeted savings]]+Dataset[[#This Row],[2027/28 From - Total]]","v":0},{"$f":"Dataset[[#This Row],[2028/29 Targeted savings]]+Dataset[[#This Row],[2028/29 From - Total]]","v":0},{"$f":"Dataset[[#This Row],[2029/30 Targeted savings]]+Dataset[[#This Row],[2029/30 From - Total]]","v":0},{"$f":"Dataset[[#This Row],[2026/27 Targeted savings]]","v":0},{"$f":"SUM(Dataset[[#This Row],[2027/28 Targeted savings]],Dataset[[#This Row],[2027/28 From - Total]],Dataset[[#This Row],[2027/28 To - Total]])","v":0},{"$f":"SUM(Dataset[[#This Row],[2028/29 Targeted savings]],Dataset[[#This Row],[2028/29 From - Total]],Dataset[[#This Row],[2028/29 To - Total]])","v":0},{"$f":"SUM(Dataset[[#This Row],[2029/30 Targeted savings]],Dataset[[#This Row],[2029/30 From - Total]],Dataset[[#This Row],[2029/30 To - Total]])","v":0},{"$f":"Dataset[[#This Row],[2026/27 Baseline]]+Dataset[[#This Row],[2026/27 Total change]]","v":21},{"$f":"Dataset[[#This Row],[2027/28 Baseline]]+Dataset[[#This Row],[2027/28 Total change]]","v":0},{"$f":"Dataset[[#This Row],[2028/29 Baseline]]+Dataset[[#This Row],[2028/29 Total change]]","v":0},{"$f":"Dataset[[#This Row],[2029/30 Baseline]]+Dataset[[#This Row],[2029/30 Total change]]","v":0}]
["NAT|Non-transfer","30|Audit costs: External","2027_28","MTEC2027",30,1,2,32577,57,"30","01","02","032577","000057","30|01|02|000057","01","01","02","06","06","01|01|02|06|06","National","Communications and Digital Technologies","Administration","Departmental Management","Non-transfer","Current","Current payments","Goods and services","Audit costs: External","Audit costs: External","Economic development","Economic regulation and infrastructure","NAT",0,0,913,0,3800,3800,48,0,673,694,715,null,null,null,null,null,null,null,null,null,null,null,null,null,null,null,null,null,null,null,null,null,null,null,null,null,null,null,null,null,null,null,null,null,null,{"$f":"Dataset[[#This Row],[2027/28 From - Spending review Topic 1]]+Dataset[[#This Row],[2027/28 From - Spending review Topic 2]]+Dataset[[#This Row],[2027/28 From - Spending review Topic 3]]+Dataset[[#This Row],[2027/28 From - Spending review Topic 4]]+Dataset[[#This Row],[2027/28 From - Other reallocations]]","v":0},{"$f":"Dataset[[#This Row],[2028/29 From - Spending review Topic 1]]+Dataset[[#This Row],[2028/29 From - Spending review Topic 2]]+Dataset[[#This Row],[2028/29 From - Spending review Topic 3]]+Dataset[[#This Row],[2028/29 From - Spending review Topic 4]]+Dataset[[#This Row],[2028/29 From - Other reallocations]]","v":0},{"$f":"Dataset[[#This Row],[2029/30 From - Spending review Topic 1]]+Dataset[[#This Row],[2029/30 From - Spending review Topic 2]]+Dataset[[#This Row],[2029/30 From - Spending review Topic 3]]+Dataset[[#This Row],[2029/30 From - Spending review Topic 4]]+Dataset[[#This Row],[2029/30 From - Other reallocations]]","v":0},{"$f":"Dataset[[#This Row],[2027/28 To - Spending review Topic 1]]+Dataset[[#This Row],[2027/28 To - Spending review Topic 2]]+Dataset[[#This Row],[2027/28 To - Spending review Topic 3]]+Dataset[[#This Row],[2027/28 To - Spending review Topic 4]]+Dataset[[#This Row],[2027/28 To - Other reallocations]]","v":0},{"$f":"Dataset[[#This Row],[2028/29 To - Spending review Topic 1]]+Dataset[[#This Row],[2028/29 To - Spending review Topic 2]]+Dataset[[#This Row],[2028/29 To - Spending review Topic 3]]+Dataset[[#This Row],[2028/29 To - Spending review Topic 4]]+Dataset[[#This Row],[2028/29 To - Other reallocations]]","v":0},{"$f":"Dataset[[#This Row],[2029/30 To - Spending review Topic 1]]+Dataset[[#This Row],[2029/30 To - Spending review Topic 2]]+Dataset[[#This Row],[2029/30 To - Spending review Topic 3]]+Dataset[[#This Row],[2029/30 To - Spending review Topic 4]]+Dataset[[#This Row],[2029/30 To - Other reallocations]]","v":0},{"$f":"Dataset[[#This Row],[2027/28 Targeted savings]]+Dataset[[#This Row],[2027/28 From - Total]]","v":0},{"$f":"Dataset[[#This Row],[2028/29 Targeted savings]]+Dataset[[#This Row],[2028/29 From - Total]]","v":0},{"$f":"Dataset[[#This Row],[2029/30 Targeted savings]]+Dataset[[#This Row],[2029/30 From - Total]]","v":0},{"$f":"Dataset[[#This Row],[2026/27 Targeted savings]]","v":0},{"$f":"SUM(Dataset[[#This Row],[2027/28 Targeted savings]],Dataset[[#This Row],[2027/28 From - Total]],Dataset[[#This Row],[2027/28 To - Total]])","v":0},{"$f":"SUM(Dataset[[#This Row],[2028/29 Targeted savings]],Dataset[[#This Row],[2028/29 From - Total]],Dataset[[#This Row],[2028/29 To - Total]])","v":0},{"$f":"SUM(Dataset[[#This Row],[2029/30 Targeted savings]],Dataset[[#This Row],[2029/30 From - Total]],Dataset[[#This Row],[2029/30 To - Total]])","v":0},{"$f":"Dataset[[#This Row],[2026/27 Baseline]]+Dataset[[#This Row],[2026/27 Total change]]","v":0},{"$f":"Dataset[[#This Row],[2027/28 Baseline]]+Dataset[[#This Row],[2027/28 Total change]]","v":673},{"$f":"Dataset[[#This Row],[2028/29 Baseline]]+Dataset[[#This Row],[2028/29 Total change]]","v":694},{"$f":"Dataset[[#This Row],[2029/30 Baseline]]+Dataset[[#This Row],[2029/30 Total change]]","v":715}]
["NAT|Non-transfer","30|Bursaries: Employees","2027_28","MTEC2027",30,1,2,32578,58,"30","01","02","032578","000058","30|01|02|000058","01","01","02","07","07","01|01|02|07|07","National","Communications and Digital Technologies","Administration","Departmental Management","Non-transfer","Current","Current payments","Goods and services","Bursaries: Employees","Bursaries: Employees","Economic development","Economic regulation and infrastructure","NAT",151,223,223,270,270,270,0,437,426,439,452,null,null,null,null,null,null,null,null,null,null,null,null,null,null,null,null,null,null,null,null,null,null,null,null,null,null,null,null,null,null,null,null,null,null,{"$f":"Dataset[[#This Row],[2027/28 From - Spending review Topic 1]]+Dataset[[#This Row],[2027/28 From - Spending review Topic 2]]+Dataset[[#This Row],[2027/28 From - Spending review Topic 3]]+Dataset[[#This Row],[2027/28 From - Spending review Topic 4]]+Dataset[[#This Row],[2027/28 From - Other reallocations]]","v":0},{"$f":"Dataset[[#This Row],[2028/29 From - Spending review Topic 1]]+Dataset[[#This Row],[2028/29 From - Spending review Topic 2]]+Dataset[[#This Row],[2028/29 From - Spending review Topic 3]]+Dataset[[#This Row],[2028/29 From - Spending review Topic 4]]+Dataset[[#This Row],[2028/29 From - Other reallocations]]","v":0},{"$f":"Dataset[[#This Row],[2029/30 From - Spending review Topic 1]]+Dataset[[#This Row],[2029/30 From - Spending review Topic 2]]+Dataset[[#This Row],[2029/30 From - Spending review Topic 3]]+Dataset[[#This Row],[2029/30 From - Spending review Topic 4]]+Dataset[[#This Row],[2029/30 From - Other reallocations]]","v":0},{"$f":"Dataset[[#This Row],[2027/28 To - Spending review Topic 1]]+Dataset[[#This Row],[2027/28 To - Spending review Topic 2]]+Dataset[[#This Row],[2027/28 To - Spending review Topic 3]]+Dataset[[#This Row],[2027/28 To - Spending review Topic 4]]+Dataset[[#This Row],[2027/28 To - Other reallocations]]","v":0},{"$f":"Dataset[[#This Row],[2028/29 To - Spending review Topic 1]]+Dataset[[#This Row],[2028/29 To - Spending review Topic 2]]+Dataset[[#This Row],[2028/29 To - Spending review Topic 3]]+Dataset[[#This Row],[2028/29 To - Spending review Topic 4]]+Dataset[[#This Row],[2028/29 To - Other reallocations]]","v":0},{"$f":"Dataset[[#This Row],[2029/30 To - Spending review Topic 1]]+Dataset[[#This Row],[2029/30 To - Spending review Topic 2]]+Dataset[[#This Row],[2029/30 To - Spending review Topic 3]]+Dataset[[#This Row],[2029/30 To - Spending review Topic 4]]+Dataset[[#This Row],[2029/30 To - Other reallocations]]","v":0},{"$f":"Dataset[[#This Row],[2027/28 Targeted savings]]+Dataset[[#This Row],[2027/28 From - Total]]","v":0},{"$f":"Dataset[[#This Row],[2028/29 Targeted savings]]+Dataset[[#This Row],[2028/29 From - Total]]","v":0},{"$f":"Dataset[[#This Row],[2029/30 Targeted savings]]+Dataset[[#This Row],[2029/30 From - Total]]","v":0},{"$f":"Dataset[[#This Row],[2026/27 Targeted savings]]","v":0},{"$f":"SUM(Dataset[[#This Row],[2027/28 Targeted savings]],Dataset[[#This Row],[2027/28 From - Total]],Dataset[[#This Row],[2027/28 To - Total]])","v":0},{"$f":"SUM(Dataset[[#This Row],[2028/29 Targeted savings]],Dataset[[#This Row],[2028/29 From - Total]],Dataset[[#This Row],[2028/29 To - Total]])","v":0},{"$f":"SUM(Dataset[[#This Row],[2029/30 Targeted savings]],Dataset[[#This Row],[2029/30 From - Total]],Dataset[[#This Row],[2029/30 To - Total]])","v":0},{"$f":"Dataset[[#This Row],[2026/27 Baseline]]+Dataset[[#This Row],[2026/27 Total change]]","v":437},{"$f":"Dataset[[#This Row],[2027/28 Baseline]]+Dataset[[#This Row],[2027/28 Total change]]","v":426},{"$f":"Dataset[[#This Row],[2028/29 Baseline]]+Dataset[[#This Row],[2028/29 Total change]]","v":439},{"$f":"Dataset[[#This Row],[2029/30 Baseline]]+Dataset[[#This Row],[2029/30 Total change]]","v":452}]
["NAT|Non-transfer","30|Catering: Departmental activities","2027_28","MTEC2027",30,1,2,32579,59,"30","01","02","032579","000059","30|01|02|000059","01","01","02","08","08","01|01|02|08|08","National","Communications and Digital Technologies","Administration","Departmental Management","Non-transfer","Current","Current payments","Goods and services","Catering: Departmental activities","Catering: Departmental activities","Economic development","Economic regulation and infrastructure","NAT",412,319,259,440,340,340,131,238,555,573,590,null,null,null,null,null,null,null,null,null,null,null,null,null,null,null,null,null,null,null,null,null,null,null,null,null,null,null,null,null,null,null,null,null,null,{"$f":"Dataset[[#This Row],[2027/28 From - Spending review Topic 1]]+Dataset[[#This Row],[2027/28 From - Spending review Topic 2]]+Dataset[[#This Row],[2027/28 From - Spending review Topic 3]]+Dataset[[#This Row],[2027/28 From - Spending review Topic 4]]+Dataset[[#This Row],[2027/28 From - Other reallocations]]","v":0},{"$f":"Dataset[[#This Row],[2028/29 From - Spending review Topic 1]]+Dataset[[#This Row],[2028/29 From - Spending review Topic 2]]+Dataset[[#This Row],[2028/29 From - Spending review Topic 3]]+Dataset[[#This Row],[2028/29 From - Spending review Topic 4]]+Dataset[[#This Row],[2028/29 From - Other reallocations]]","v":0},{"$f":"Dataset[[#This Row],[2029/30 From - Spending review Topic 1]]+Dataset[[#This Row],[2029/30 From - Spending review Topic 2]]+Dataset[[#This Row],[2029/30 From - Spending review Topic 3]]+Dataset[[#This Row],[2029/30 From - Spending review Topic 4]]+Dataset[[#This Row],[2029/30 From - Other reallocations]]","v":0},{"$f":"Dataset[[#This Row],[2027/28 To - Spending review Topic 1]]+Dataset[[#This Row],[2027/28 To - Spending review Topic 2]]+Dataset[[#This Row],[2027/28 To - Spending review Topic 3]]+Dataset[[#This Row],[2027/28 To - Spending review Topic 4]]+Dataset[[#This Row],[2027/28 To - Other reallocations]]","v":0},{"$f":"Dataset[[#This Row],[2028/29 To - Spending review Topic 1]]+Dataset[[#This Row],[2028/29 To - Spending review Topic 2]]+Dataset[[#This Row],[2028/29 To - Spending review Topic 3]]+Dataset[[#This Row],[2028/29 To - Spending review Topic 4]]+Dataset[[#This Row],[2028/29 To - Other reallocations]]","v":0},{"$f":"Dataset[[#This Row],[2029/30 To - Spending review Topic 1]]+Dataset[[#This Row],[2029/30 To - Spending review Topic 2]]+Dataset[[#This Row],[2029/30 To - Spending review Topic 3]]+Dataset[[#This Row],[2029/30 To - Spending review Topic 4]]+Dataset[[#This Row],[2029/30 To - Other reallocations]]","v":0},{"$f":"Dataset[[#This Row],[2027/28 Targeted savings]]+Dataset[[#This Row],[2027/28 From - Total]]","v":0},{"$f":"Dataset[[#This Row],[2028/29 Targeted savings]]+Dataset[[#This Row],[2028/29 From - Total]]","v":0},{"$f":"Dataset[[#This Row],[2029/30 Targeted savings]]+Dataset[[#This Row],[2029/30 From - Total]]","v":0},{"$f":"Dataset[[#This Row],[2026/27 Targeted savings]]","v":0},{"$f":"SUM(Dataset[[#This Row],[2027/28 Targeted savings]],Dataset[[#This Row],[2027/28 From - Total]],Dataset[[#This Row],[2027/28 To - Total]])","v":0},{"$f":"SUM(Dataset[[#This Row],[2028/29 Targeted savings]],Dataset[[#This Row],[2028/29 From - Total]],Dataset[[#This Row],[2028/29 To - Total]])","v":0},{"$f":"SUM(Dataset[[#This Row],[2029/30 Targeted savings]],Dataset[[#This Row],[2029/30 From - Total]],Dataset[[#This Row],[2029/30 To - Total]])","v":0},{"$f":"Dataset[[#This Row],[2026/27 Baseline]]+Dataset[[#This Row],[2026/27 Total change]]","v":238},{"$f":"Dataset[[#This Row],[2027/28 Baseline]]+Dataset[[#This Row],[2027/28 Total change]]","v":555},{"$f":"Dataset[[#This Row],[2028/29 Baseline]]+Dataset[[#This Row],[2028/29 Total change]]","v":573},{"$f":"Dataset[[#This Row],[2029/30 Baseline]]+Dataset[[#This Row],[2029/30 Total change]]","v":590}]
["NAT|Non-transfer","30|Communication (G&S)","2027_28","MTEC2027",30,1,2,32580,60,"30","01","02","032580","000060","30|01|02|000060","01","01","02","09","09","01|01|02|09|09","National","Communications and Digital Technologies","Administration","Departmental Management","Non-transfer","Current","Current payments","Goods and services","Communication (G&S)","Communication (G&S)","Economic development","Economic regulation and infrastructure","NAT",1373,1425,1287,1392,1392,1392,1131,1221,1684,1736,1788,null,null,null,null,null,null,null,null,null,null,null,null,null,null,null,null,null,null,null,null,null,null,null,null,null,null,null,null,null,null,null,null,null,null,{"$f":"Dataset[[#This Row],[2027/28 From - Spending review Topic 1]]+Dataset[[#This Row],[2027/28 From - Spending review Topic 2]]+Dataset[[#This Row],[2027/28 From - Spending review Topic 3]]+Dataset[[#This Row],[2027/28 From - Spending review Topic 4]]+Dataset[[#This Row],[2027/28 From - Other reallocations]]","v":0},{"$f":"Dataset[[#This Row],[2028/29 From - Spending review Topic 1]]+Dataset[[#This Row],[2028/29 From - Spending review Topic 2]]+Dataset[[#This Row],[2028/29 From - Spending review Topic 3]]+Dataset[[#This Row],[2028/29 From - Spending review Topic 4]]+Dataset[[#This Row],[2028/29 From - Other reallocations]]","v":0},{"$f":"Dataset[[#This Row],[2029/30 From - Spending review Topic 1]]+Dataset[[#This Row],[2029/30 From - Spending review Topic 2]]+Dataset[[#This Row],[2029/30 From - Spending review Topic 3]]+Dataset[[#This Row],[2029/30 From - Spending review Topic 4]]+Dataset[[#This Row],[2029/30 From - Other reallocations]]","v":0},{"$f":"Dataset[[#This Row],[2027/28 To - Spending review Topic 1]]+Dataset[[#This Row],[2027/28 To - Spending review Topic 2]]+Dataset[[#This Row],[2027/28 To - Spending review Topic 3]]+Dataset[[#This Row],[2027/28 To - Spending review Topic 4]]+Dataset[[#This Row],[2027/28 To - Other reallocations]]","v":0},{"$f":"Dataset[[#This Row],[2028/29 To - Spending review Topic 1]]+Dataset[[#This Row],[2028/29 To - Spending review Topic 2]]+Dataset[[#This Row],[2028/29 To - Spending review Topic 3]]+Dataset[[#This Row],[2028/29 To - Spending review Topic 4]]+Dataset[[#This Row],[2028/29 To - Other reallocations]]","v":0},{"$f":"Dataset[[#This Row],[2029/30 To - Spending review Topic 1]]+Dataset[[#This Row],[2029/30 To - Spending review Topic 2]]+Dataset[[#This Row],[2029/30 To - Spending review Topic 3]]+Dataset[[#This Row],[2029/30 To - Spending review Topic 4]]+Dataset[[#This Row],[2029/30 To - Other reallocations]]","v":0},{"$f":"Dataset[[#This Row],[2027/28 Targeted savings]]+Dataset[[#This Row],[2027/28 From - Total]]","v":0},{"$f":"Dataset[[#This Row],[2028/29 Targeted savings]]+Dataset[[#This Row],[2028/29 From - Total]]","v":0},{"$f":"Dataset[[#This Row],[2029/30 Targeted savings]]+Dataset[[#This Row],[2029/30 From - Total]]","v":0},{"$f":"Dataset[[#This Row],[2026/27 Targeted savings]]","v":0},{"$f":"SUM(Dataset[[#This Row],[2027/28 Targeted savings]],Dataset[[#This Row],[2027/28 From - Total]],Dataset[[#This Row],[2027/28 To - Total]])","v":0},{"$f":"SUM(Dataset[[#This Row],[2028/29 Targeted savings]],Dataset[[#This Row],[2028/29 From - Total]],Dataset[[#This Row],[2028/29 To - Total]])","v":0},{"$f":"SUM(Dataset[[#This Row],[2029/30 Targeted savings]],Dataset[[#This Row],[2029/30 From - Total]],Dataset[[#This Row],[2029/30 To - Total]])","v":0},{"$f":"Dataset[[#This Row],[2026/27 Baseline]]+Dataset[[#This Row],[2026/27 Total change]]","v":1221},{"$f":"Dataset[[#This Row],[2027/28 Baseline]]+Dataset[[#This Row],[2027/28 Total change]]","v":1684},{"$f":"Dataset[[#This Row],[2028/29 Baseline]]+Dataset[[#This Row],[2028/29 Total change]]","v":1736},{"$f":"Dataset[[#This Row],[2029/30 Baseline]]+Dataset[[#This Row],[2029/30 Total change]]","v":1788}]
["NAT|Non-transfer","30|Computer services","2027_28","MTEC2027",30,1,2,32581,61,"30","01","02","032581","000061","30|01|02|000061","01","01","02","10","10","01|01|02|10|10","National","Communications and Digital Technologies","Administration","Departmental Management","Non-transfer","Current","Current payments","Goods and services","Computer services","Computer services","Economic development","Economic regulation and infrastructure","NAT",52,641,60,133,133,133,0,308,0,0,0,null,null,null,null,null,null,null,null,null,null,null,null,null,null,null,null,null,null,null,null,null,null,null,null,null,null,null,null,null,null,null,null,null,null,{"$f":"Dataset[[#This Row],[2027/28 From - Spending review Topic 1]]+Dataset[[#This Row],[2027/28 From - Spending review Topic 2]]+Dataset[[#This Row],[2027/28 From - Spending review Topic 3]]+Dataset[[#This Row],[2027/28 From - Spending review Topic 4]]+Dataset[[#This Row],[2027/28 From - Other reallocations]]","v":0},{"$f":"Dataset[[#This Row],[2028/29 From - Spending review Topic 1]]+Dataset[[#This Row],[2028/29 From - Spending review Topic 2]]+Dataset[[#This Row],[2028/29 From - Spending review Topic 3]]+Dataset[[#This Row],[2028/29 From - Spending review Topic 4]]+Dataset[[#This Row],[2028/29 From - Other reallocations]]","v":0},{"$f":"Dataset[[#This Row],[2029/30 From - Spending review Topic 1]]+Dataset[[#This Row],[2029/30 From - Spending review Topic 2]]+Dataset[[#This Row],[2029/30 From - Spending review Topic 3]]+Dataset[[#This Row],[2029/30 From - Spending review Topic 4]]+Dataset[[#This Row],[2029/30 From - Other reallocations]]","v":0},{"$f":"Dataset[[#This Row],[2027/28 To - Spending review Topic 1]]+Dataset[[#This Row],[2027/28 To - Spending review Topic 2]]+Dataset[[#This Row],[2027/28 To - Spending review Topic 3]]+Dataset[[#This Row],[2027/28 To - Spending review Topic 4]]+Dataset[[#This Row],[2027/28 To - Other reallocations]]","v":0},{"$f":"Dataset[[#This Row],[2028/29 To - Spending review Topic 1]]+Dataset[[#This Row],[2028/29 To - Spending review Topic 2]]+Dataset[[#This Row],[2028/29 To - Spending review Topic 3]]+Dataset[[#This Row],[2028/29 To - Spending review Topic 4]]+Dataset[[#This Row],[2028/29 To - Other reallocations]]","v":0},{"$f":"Dataset[[#This Row],[2029/30 To - Spending review Topic 1]]+Dataset[[#This Row],[2029/30 To - Spending review Topic 2]]+Dataset[[#This Row],[2029/30 To - Spending review Topic 3]]+Dataset[[#This Row],[2029/30 To - Spending review Topic 4]]+Dataset[[#This Row],[2029/30 To - Other reallocations]]","v":0},{"$f":"Dataset[[#This Row],[2027/28 Targeted savings]]+Dataset[[#This Row],[2027/28 From - Total]]","v":0},{"$f":"Dataset[[#This Row],[2028/29 Targeted savings]]+Dataset[[#This Row],[2028/29 From - Total]]","v":0},{"$f":"Dataset[[#This Row],[2029/30 Targeted savings]]+Dataset[[#This Row],[2029/30 From - Total]]","v":0},{"$f":"Dataset[[#This Row],[2026/27 Targeted savings]]","v":0},{"$f":"SUM(Dataset[[#This Row],[2027/28 Targeted savings]],Dataset[[#This Row],[2027/28 From - Total]],Dataset[[#This Row],[2027/28 To - Total]])","v":0},{"$f":"SUM(Dataset[[#This Row],[2028/29 Targeted savings]],Dataset[[#This Row],[2028/29 From - Total]],Dataset[[#This Row],[2028/29 To - Total]])","v":0},{"$f":"SUM(Dataset[[#This Row],[2029/30 Targeted savings]],Dataset[[#This Row],[2029/30 From - Total]],Dataset[[#This Row],[2029/30 To - Total]])","v":0},{"$f":"Dataset[[#This Row],[2026/27 Baseline]]+Dataset[[#This Row],[2026/27 Total change]]","v":308},{"$f":"Dataset[[#This Row],[2027/28 Baseline]]+Dataset[[#This Row],[2027/28 Total change]]","v":0},{"$f":"Dataset[[#This Row],[2028/29 Baseline]]+Dataset[[#This Row],[2028/29 Total change]]","v":0},{"$f":"Dataset[[#This Row],[2029/30 Baseline]]+Dataset[[#This Row],[2029/30 Total change]]","v":0}]
["NAT|Non-transfer","30|Consultants: Business and advisory services","2027_28","MTEC2027",30,1,2,32582,62,"30","01","02","032582","000062","30|01|02|000062","01","01","02","11","11","01|01|02|11|11","National","Communications and Digital Technologies","Administration","Departmental Management","Non-transfer","Current","Current payments","Goods and services","Consultants: Business and advisory services","Consultants: Business and advisory services","Economic development","Economic regulation and infrastructure","NAT",968,926,1657,2493,2293,2293,1616,3487,3586,1120,1154,null,null,null,null,null,null,null,null,null,null,null,null,null,null,null,null,null,null,null,null,null,null,null,null,null,null,null,null,null,null,null,null,null,null,{"$f":"Dataset[[#This Row],[2027/28 From - Spending review Topic 1]]+Dataset[[#This Row],[2027/28 From - Spending review Topic 2]]+Dataset[[#This Row],[2027/28 From - Spending review Topic 3]]+Dataset[[#This Row],[2027/28 From - Spending review Topic 4]]+Dataset[[#This Row],[2027/28 From - Other reallocations]]","v":0},{"$f":"Dataset[[#This Row],[2028/29 From - Spending review Topic 1]]+Dataset[[#This Row],[2028/29 From - Spending review Topic 2]]+Dataset[[#This Row],[2028/29 From - Spending review Topic 3]]+Dataset[[#This Row],[2028/29 From - Spending review Topic 4]]+Dataset[[#This Row],[2028/29 From - Other reallocations]]","v":0},{"$f":"Dataset[[#This Row],[2029/30 From - Spending review Topic 1]]+Dataset[[#This Row],[2029/30 From - Spending review Topic 2]]+Dataset[[#This Row],[2029/30 From - Spending review Topic 3]]+Dataset[[#This Row],[2029/30 From - Spending review Topic 4]]+Dataset[[#This Row],[2029/30 From - Other reallocations]]","v":0},{"$f":"Dataset[[#This Row],[2027/28 To - Spending review Topic 1]]+Dataset[[#This Row],[2027/28 To - Spending review Topic 2]]+Dataset[[#This Row],[2027/28 To - Spending review Topic 3]]+Dataset[[#This Row],[2027/28 To - Spending review Topic 4]]+Dataset[[#This Row],[2027/28 To - Other reallocations]]","v":0},{"$f":"Dataset[[#This Row],[2028/29 To - Spending review Topic 1]]+Dataset[[#This Row],[2028/29 To - Spending review Topic 2]]+Dataset[[#This Row],[2028/29 To - Spending review Topic 3]]+Dataset[[#This Row],[2028/29 To - Spending review Topic 4]]+Dataset[[#This Row],[2028/29 To - Other reallocations]]","v":0},{"$f":"Dataset[[#This Row],[2029/30 To - Spending review Topic 1]]+Dataset[[#This Row],[2029/30 To - Spending review Topic 2]]+Dataset[[#This Row],[2029/30 To - Spending review Topic 3]]+Dataset[[#This Row],[2029/30 To - Spending review Topic 4]]+Dataset[[#This Row],[2029/30 To - Other reallocations]]","v":0},{"$f":"Dataset[[#This Row],[2027/28 Targeted savings]]+Dataset[[#This Row],[2027/28 From - Total]]","v":0},{"$f":"Dataset[[#This Row],[2028/29 Targeted savings]]+Dataset[[#This Row],[2028/29 From - Total]]","v":0},{"$f":"Dataset[[#This Row],[2029/30 Targeted savings]]+Dataset[[#This Row],[2029/30 From - Total]]","v":0},{"$f":"Dataset[[#This Row],[2026/27 Targeted savings]]","v":0},{"$f":"SUM(Dataset[[#This Row],[2027/28 Targeted savings]],Dataset[[#This Row],[2027/28 From - Total]],Dataset[[#This Row],[2027/28 To - Total]])","v":0},{"$f":"SUM(Dataset[[#This Row],[2028/29 Targeted savings]],Dataset[[#This Row],[2028/29 From - Total]],Dataset[[#This Row],[2028/29 To - Total]])","v":0},{"$f":"SUM(Dataset[[#This Row],[2029/30 Targeted savings]],Dataset[[#This Row],[2029/30 From - Total]],Dataset[[#This Row],[2029/30 To - Total]])","v":0},{"$f":"Dataset[[#This Row],[2026/27 Baseline]]+Dataset[[#This Row],[2026/27 Total change]]","v":3487},{"$f":"Dataset[[#This Row],[2027/28 Baseline]]+Dataset[[#This Row],[2027/28 Total change]]","v":3586},{"$f":"Dataset[[#This Row],[2028/29 Baseline]]+Dataset[[#This Row],[2028/29 Total change]]","v":1120},{"$f":"Dataset[[#This Row],[2029/30 Baseline]]+Dataset[[#This Row],[2029/30 Total change]]","v":1154}]
["NAT|Non-transfer item","30|Infrastructure and planning services","2027_28","MTEC2027",30,1,2,32583,63,"30","01","02","032583","000063","30|01|02|000063","01","01","02","12","12","01|01|02|12|12","National","Communications and Digital Technologies","Administration","Departmental Management","Non-transfer item","Current","Current payments","Goods and services","Infrastructure and planning services","Infrastructure and planning services","Economic development","Economic regulation and infrastructure","NAT",0,0,0,0,0,0,0,0,0,0,0,null,null,null,null,null,null,null,null,null,null,null,null,null,null,null,null,null,null,null,null,null,null,null,null,null,null,null,null,null,null,null,null,null,null,{"$f":"Dataset[[#This Row],[2027/28 From - Spending review Topic 1]]+Dataset[[#This Row],[2027/28 From - Spending review Topic 2]]+Dataset[[#This Row],[2027/28 From - Spending review Topic 3]]+Dataset[[#This Row],[2027/28 From - Spending review Topic 4]]+Dataset[[#This Row],[2027/28 From - Other reallocations]]","v":0},{"$f":"Dataset[[#This Row],[2028/29 From - Spending review Topic 1]]+Dataset[[#This Row],[2028/29 From - Spending review Topic 2]]+Dataset[[#This Row],[2028/29 From - Spending review Topic 3]]+Dataset[[#This Row],[2028/29 From - Spending review Topic 4]]+Dataset[[#This Row],[2028/29 From - Other reallocations]]","v":0},{"$f":"Dataset[[#This Row],[2029/30 From - Spending review Topic 1]]+Dataset[[#This Row],[2029/30 From - Spending review Topic 2]]+Dataset[[#This Row],[2029/30 From - Spending review Topic 3]]+Dataset[[#This Row],[2029/30 From - Spending review Topic 4]]+Dataset[[#This Row],[2029/30 From - Other reallocations]]","v":0},{"$f":"Dataset[[#This Row],[2027/28 To - Spending review Topic 1]]+Dataset[[#This Row],[2027/28 To - Spending review Topic 2]]+Dataset[[#This Row],[2027/28 To - Spending review Topic 3]]+Dataset[[#This Row],[2027/28 To - Spending review Topic 4]]+Dataset[[#This Row],[2027/28 To - Other reallocations]]","v":0},{"$f":"Dataset[[#This Row],[2028/29 To - Spending review Topic 1]]+Dataset[[#This Row],[2028/29 To - Spending review Topic 2]]+Dataset[[#This Row],[2028/29 To - Spending review Topic 3]]+Dataset[[#This Row],[2028/29 To - Spending review Topic 4]]+Dataset[[#This Row],[2028/29 To - Other reallocations]]","v":0},{"$f":"Dataset[[#This Row],[2029/30 To - Spending review Topic 1]]+Dataset[[#This Row],[2029/30 To - Spending review Topic 2]]+Dataset[[#This Row],[2029/30 To - Spending review Topic 3]]+Dataset[[#This Row],[2029/30 To - Spending review Topic 4]]+Dataset[[#This Row],[2029/30 To - Other reallocations]]","v":0},{"$f":"Dataset[[#This Row],[2027/28 Targeted savings]]+Dataset[[#This Row],[2027/28 From - Total]]","v":0},{"$f":"Dataset[[#This Row],[2028/29 Targeted savings]]+Dataset[[#This Row],[2028/29 From - Total]]","v":0},{"$f":"Dataset[[#This Row],[2029/30 Targeted savings]]+Dataset[[#This Row],[2029/30 From - Total]]","v":0},{"$f":"Dataset[[#This Row],[2026/27 Targeted savings]]","v":0},{"$f":"SUM(Dataset[[#This Row],[2027/28 Targeted savings]],Dataset[[#This Row],[2027/28 From - Total]],Dataset[[#This Row],[2027/28 To - Total]])","v":0},{"$f":"SUM(Dataset[[#This Row],[2028/29 Targeted savings]],Dataset[[#This Row],[2028/29 From - Total]],Dataset[[#This Row],[2028/29 To - Total]])","v":0},{"$f":"SUM(Dataset[[#This Row],[2029/30 Targeted savings]],Dataset[[#This Row],[2029/30 From - Total]],Dataset[[#This Row],[2029/30 To - Total]])","v":0},{"$f":"Dataset[[#This Row],[2026/27 Baseline]]+Dataset[[#This Row],[2026/27 Total change]]","v":0},{"$f":"Dataset[[#This Row],[2027/28 Baseline]]+Dataset[[#This Row],[2027/28 Total change]]","v":0},{"$f":"Dataset[[#This Row],[2028/29 Baseline]]+Dataset[[#This Row],[2028/29 Total change]]","v":0},{"$f":"Dataset[[#This Row],[2029/30 Baseline]]+Dataset[[#This Row],[2029/30 Total change]]","v":0}]
["NAT|Non-transfer item","30|Laboratory services","2027_28","MTEC2027",30,1,2,32584,64,"30","01","02","032584","000064","30|01|02|000064","01","01","02","13","13","01|01|02|13|13","National","Communications and Digital Technologies","Administration","Departmental Management","Non-transfer item","Current","Current payments","Goods and services","Laboratory services","Laboratory services","Economic development","Economic regulation and infrastructure","NAT",0,0,0,0,0,0,0,0,0,0,0,null,null,null,null,null,null,null,null,null,null,null,null,null,null,null,null,null,null,null,null,null,null,null,null,null,null,null,null,null,null,null,null,null,null,{"$f":"Dataset[[#This Row],[2027/28 From - Spending review Topic 1]]+Dataset[[#This Row],[2027/28 From - Spending review Topic 2]]+Dataset[[#This Row],[2027/28 From - Spending review Topic 3]]+Dataset[[#This Row],[2027/28 From - Spending review Topic 4]]+Dataset[[#This Row],[2027/28 From - Other reallocations]]","v":0},{"$f":"Dataset[[#This Row],[2028/29 From - Spending review Topic 1]]+Dataset[[#This Row],[2028/29 From - Spending review Topic 2]]+Dataset[[#This Row],[2028/29 From - Spending review Topic 3]]+Dataset[[#This Row],[2028/29 From - Spending review Topic 4]]+Dataset[[#This Row],[2028/29 From - Other reallocations]]","v":0},{"$f":"Dataset[[#This Row],[2029/30 From - Spending review Topic 1]]+Dataset[[#This Row],[2029/30 From - Spending review Topic 2]]+Dataset[[#This Row],[2029/30 From - Spending review Topic 3]]+Dataset[[#This Row],[2029/30 From - Spending review Topic 4]]+Dataset[[#This Row],[2029/30 From - Other reallocations]]","v":0},{"$f":"Dataset[[#This Row],[2027/28 To - Spending review Topic 1]]+Dataset[[#This Row],[2027/28 To - Spending review Topic 2]]+Dataset[[#This Row],[2027/28 To - Spending review Topic 3]]+Dataset[[#This Row],[2027/28 To - Spending review Topic 4]]+Dataset[[#This Row],[2027/28 To - Other reallocations]]","v":0},{"$f":"Dataset[[#This Row],[2028/29 To - Spending review Topic 1]]+Dataset[[#This Row],[2028/29 To - Spending review Topic 2]]+Dataset[[#This Row],[2028/29 To - Spending review Topic 3]]+Dataset[[#This Row],[2028/29 To - Spending review Topic 4]]+Dataset[[#This Row],[2028/29 To - Other reallocations]]","v":0},{"$f":"Dataset[[#This Row],[2029/30 To - Spending review Topic 1]]+Dataset[[#This Row],[2029/30 To - Spending review Topic 2]]+Dataset[[#This Row],[2029/30 To - Spending review Topic 3]]+Dataset[[#This Row],[2029/30 To - Spending review Topic 4]]+Dataset[[#This Row],[2029/30 To - Other reallocations]]","v":0},{"$f":"Dataset[[#This Row],[2027/28 Targeted savings]]+Dataset[[#This Row],[2027/28 From - Total]]","v":0},{"$f":"Dataset[[#This Row],[2028/29 Targeted savings]]+Dataset[[#This Row],[2028/29 From - Total]]","v":0},{"$f":"Dataset[[#This Row],[2029/30 Targeted savings]]+Dataset[[#This Row],[2029/30 From - Total]]","v":0},{"$f":"Dataset[[#This Row],[2026/27 Targeted savings]]","v":0},{"$f":"SUM(Dataset[[#This Row],[2027/28 Targeted savings]],Dataset[[#This Row],[2027/28 From - Total]],Dataset[[#This Row],[2027/28 To - Total]])","v":0},{"$f":"SUM(Dataset[[#This Row],[2028/29 Targeted savings]],Dataset[[#This Row],[2028/29 From - Total]],Dataset[[#This Row],[2028/29 To - Total]])","v":0},{"$f":"SUM(Dataset[[#This Row],[2029/30 Targeted savings]],Dataset[[#This Row],[2029/30 From - Total]],Dataset[[#This Row],[2029/30 To - Total]])","v":0},{"$f":"Dataset[[#This Row],[2026/27 Baseline]]+Dataset[[#This Row],[2026/27 Total change]]","v":0},{"$f":"Dataset[[#This Row],[2027/28 Baseline]]+Dataset[[#This Row],[2027/28 Total change]]","v":0},{"$f":"Dataset[[#This Row],[2028/29 Baseline]]+Dataset[[#This Row],[2028/29 Total change]]","v":0},{"$f":"Dataset[[#This Row],[2029/30 Baseline]]+Dataset[[#This Row],[2029/30 Total change]]","v":0}]
["NAT|Non-transfer","30|Legal services (G&S)","2027_28","MTEC2027",30,1,2,32585,65,"30","01","02","032585","000065","30|01|02|000065","01","01","02","14","14","01|01|02|14|14","National","Communications and Digital Technologies","Administration","Departmental Management","Non-transfer","Current","Current payments","Goods and services","Legal services (G&S)","Legal services (G&S)","Economic development","Economic regulation and infrastructure","NAT",0,0,584,600,600,600,0,625,807,299,308,null,null,null,null,null,null,null,null,null,null,null,null,null,null,null,null,null,null,null,null,null,null,null,null,null,null,null,null,null,null,null,null,null,null,{"$f":"Dataset[[#This Row],[2027/28 From - Spending review Topic 1]]+Dataset[[#This Row],[2027/28 From - Spending review Topic 2]]+Dataset[[#This Row],[2027/28 From - Spending review Topic 3]]+Dataset[[#This Row],[2027/28 From - Spending review Topic 4]]+Dataset[[#This Row],[2027/28 From - Other reallocations]]","v":0},{"$f":"Dataset[[#This Row],[2028/29 From - Spending review Topic 1]]+Dataset[[#This Row],[2028/29 From - Spending review Topic 2]]+Dataset[[#This Row],[2028/29 From - Spending review Topic 3]]+Dataset[[#This Row],[2028/29 From - Spending review Topic 4]]+Dataset[[#This Row],[2028/29 From - Other reallocations]]","v":0},{"$f":"Dataset[[#This Row],[2029/30 From - Spending review Topic 1]]+Dataset[[#This Row],[2029/30 From - Spending review Topic 2]]+Dataset[[#This Row],[2029/30 From - Spending review Topic 3]]+Dataset[[#This Row],[2029/30 From - Spending review Topic 4]]+Dataset[[#This Row],[2029/30 From - Other reallocations]]","v":0},{"$f":"Dataset[[#This Row],[2027/28 To - Spending review Topic 1]]+Dataset[[#This Row],[2027/28 To - Spending review Topic 2]]+Dataset[[#This Row],[2027/28 To - Spending review Topic 3]]+Dataset[[#This Row],[2027/28 To - Spending review Topic 4]]+Dataset[[#This Row],[2027/28 To - Other reallocations]]","v":0},{"$f":"Dataset[[#This Row],[2028/29 To - Spending review Topic 1]]+Dataset[[#This Row],[2028/29 To - Spending review Topic 2]]+Dataset[[#This Row],[2028/29 To - Spending review Topic 3]]+Dataset[[#This Row],[2028/29 To - Spending review Topic 4]]+Dataset[[#This Row],[2028/29 To - Other reallocations]]","v":0},{"$f":"Dataset[[#This Row],[2029/30 To - Spending review Topic 1]]+Dataset[[#This Row],[2029/30 To - Spending review Topic 2]]+Dataset[[#This Row],[2029/30 To - Spending review Topic 3]]+Dataset[[#This Row],[2029/30 To - Spending review Topic 4]]+Dataset[[#This Row],[2029/30 To - Other reallocations]]","v":0},{"$f":"Dataset[[#This Row],[2027/28 Targeted savings]]+Dataset[[#This Row],[2027/28 From - Total]]","v":0},{"$f":"Dataset[[#This Row],[2028/29 Targeted savings]]+Dataset[[#This Row],[2028/29 From - Total]]","v":0},{"$f":"Dataset[[#This Row],[2029/30 Targeted savings]]+Dataset[[#This Row],[2029/30 From - Total]]","v":0},{"$f":"Dataset[[#This Row],[2026/27 Targeted savings]]","v":0},{"$f":"SUM(Dataset[[#This Row],[2027/28 Targeted savings]],Dataset[[#This Row],[2027/28 From - Total]],Dataset[[#This Row],[2027/28 To - Total]])","v":0},{"$f":"SUM(Dataset[[#This Row],[2028/29 Targeted savings]],Dataset[[#This Row],[2028/29 From - Total]],Dataset[[#This Row],[2028/29 To - Total]])","v":0},{"$f":"SUM(Dataset[[#This Row],[2029/30 Targeted savings]],Dataset[[#This Row],[2029/30 From - Total]],Dataset[[#This Row],[2029/30 To - Total]])","v":0},{"$f":"Dataset[[#This Row],[2026/27 Baseline]]+Dataset[[#This Row],[2026/27 Total change]]","v":625},{"$f":"Dataset[[#This Row],[2027/28 Baseline]]+Dataset[[#This Row],[2027/28 Total change]]","v":807},{"$f":"Dataset[[#This Row],[2028/29 Baseline]]+Dataset[[#This Row],[2028/29 Total change]]","v":299},{"$f":"Dataset[[#This Row],[2029/30 Baseline]]+Dataset[[#This Row],[2029/30 Total change]]","v":308}]
["NAT|Non-transfer item","30|Science and technological services","2027_28","MTEC2027",30,1,2,32586,66,"30","01","02","032586","000066","30|01|02|000066","01","01","02","15","15","01|01|02|15|15","National","Communications and Digital Technologies","Administration","Departmental Management","Non-transfer item","Current","Current payments","Goods and services","Science and technological services","Science and technological services","Economic development","Economic regulation and infrastructure","NAT",0,0,0,0,0,0,0,0,0,0,0,null,null,null,null,null,null,null,null,null,null,null,null,null,null,null,null,null,null,null,null,null,null,null,null,null,null,null,null,null,null,null,null,null,null,{"$f":"Dataset[[#This Row],[2027/28 From - Spending review Topic 1]]+Dataset[[#This Row],[2027/28 From - Spending review Topic 2]]+Dataset[[#This Row],[2027/28 From - Spending review Topic 3]]+Dataset[[#This Row],[2027/28 From - Spending review Topic 4]]+Dataset[[#This Row],[2027/28 From - Other reallocations]]","v":0},{"$f":"Dataset[[#This Row],[2028/29 From - Spending review Topic 1]]+Dataset[[#This Row],[2028/29 From - Spending review Topic 2]]+Dataset[[#This Row],[2028/29 From - Spending review Topic 3]]+Dataset[[#This Row],[2028/29 From - Spending review Topic 4]]+Dataset[[#This Row],[2028/29 From - Other reallocations]]","v":0},{"$f":"Dataset[[#This Row],[2029/30 From - Spending review Topic 1]]+Dataset[[#This Row],[2029/30 From - Spending review Topic 2]]+Dataset[[#This Row],[2029/30 From - Spending review Topic 3]]+Dataset[[#This Row],[2029/30 From - Spending review Topic 4]]+Dataset[[#This Row],[2029/30 From - Other reallocations]]","v":0},{"$f":"Dataset[[#This Row],[2027/28 To - Spending review Topic 1]]+Dataset[[#This Row],[2027/28 To - Spending review Topic 2]]+Dataset[[#This Row],[2027/28 To - Spending review Topic 3]]+Dataset[[#This Row],[2027/28 To - Spending review Topic 4]]+Dataset[[#This Row],[2027/28 To - Other reallocations]]","v":0},{"$f":"Dataset[[#This Row],[2028/29 To - Spending review Topic 1]]+Dataset[[#This Row],[2028/29 To - Spending review Topic 2]]+Dataset[[#This Row],[2028/29 To - Spending review Topic 3]]+Dataset[[#This Row],[2028/29 To - Spending review Topic 4]]+Dataset[[#This Row],[2028/29 To - Other reallocations]]","v":0},{"$f":"Dataset[[#This Row],[2029/30 To - Spending review Topic 1]]+Dataset[[#This Row],[2029/30 To - Spending review Topic 2]]+Dataset[[#This Row],[2029/30 To - Spending review Topic 3]]+Dataset[[#This Row],[2029/30 To - Spending review Topic 4]]+Dataset[[#This Row],[2029/30 To - Other reallocations]]","v":0},{"$f":"Dataset[[#This Row],[2027/28 Targeted savings]]+Dataset[[#This Row],[2027/28 From - Total]]","v":0},{"$f":"Dataset[[#This Row],[2028/29 Targeted savings]]+Dataset[[#This Row],[2028/29 From - Total]]","v":0},{"$f":"Dataset[[#This Row],[2029/30 Targeted savings]]+Dataset[[#This Row],[2029/30 From - Total]]","v":0},{"$f":"Dataset[[#This Row],[2026/27 Targeted savings]]","v":0},{"$f":"SUM(Dataset[[#This Row],[2027/28 Targeted savings]],Dataset[[#This Row],[2027/28 From - Total]],Dataset[[#This Row],[2027/28 To - Total]])","v":0},{"$f":"SUM(Dataset[[#This Row],[2028/29 Targeted savings]],Dataset[[#This Row],[2028/29 From - Total]],Dataset[[#This Row],[2028/29 To - Total]])","v":0},{"$f":"SUM(Dataset[[#This Row],[2029/30 Targeted savings]],Dataset[[#This Row],[2029/30 From - Total]],Dataset[[#This Row],[2029/30 To - Total]])","v":0},{"$f":"Dataset[[#This Row],[2026/27 Baseline]]+Dataset[[#This Row],[2026/27 Total change]]","v":0},{"$f":"Dataset[[#This Row],[2027/28 Baseline]]+Dataset[[#This Row],[2027/28 Total change]]","v":0},{"$f":"Dataset[[#This Row],[2028/29 Baseline]]+Dataset[[#This Row],[2028/29 Total change]]","v":0},{"$f":"Dataset[[#This Row],[2029/30 Baseline]]+Dataset[[#This Row],[2029/30 Total change]]","v":0}]
["NAT|Non-transfer","30|Contractors","2027_28","MTEC2027",30,1,2,32587,67,"30","01","02","032587","000067","30|01|02|000067","01","01","02","16","16","01|01|02|16|16","National","Communications and Digital Technologies","Administration","Departmental Management","Non-transfer","Current","Current payments","Goods and services","Contractors","Contractors","Economic development","Economic regulation and infrastructure","NAT",491,239,771,700,700,700,862,766,851,878,904,null,null,null,null,null,null,null,null,null,null,null,null,null,null,null,null,null,null,null,null,null,null,null,null,null,null,null,null,null,null,null,null,null,null,{"$f":"Dataset[[#This Row],[2027/28 From - Spending review Topic 1]]+Dataset[[#This Row],[2027/28 From - Spending review Topic 2]]+Dataset[[#This Row],[2027/28 From - Spending review Topic 3]]+Dataset[[#This Row],[2027/28 From - Spending review Topic 4]]+Dataset[[#This Row],[2027/28 From - Other reallocations]]","v":0},{"$f":"Dataset[[#This Row],[2028/29 From - Spending review Topic 1]]+Dataset[[#This Row],[2028/29 From - Spending review Topic 2]]+Dataset[[#This Row],[2028/29 From - Spending review Topic 3]]+Dataset[[#This Row],[2028/29 From - Spending review Topic 4]]+Dataset[[#This Row],[2028/29 From - Other reallocations]]","v":0},{"$f":"Dataset[[#This Row],[2029/30 From - Spending review Topic 1]]+Dataset[[#This Row],[2029/30 From - Spending review Topic 2]]+Dataset[[#This Row],[2029/30 From - Spending review Topic 3]]+Dataset[[#This Row],[2029/30 From - Spending review Topic 4]]+Dataset[[#This Row],[2029/30 From - Other reallocations]]","v":0},{"$f":"Dataset[[#This Row],[2027/28 To - Spending review Topic 1]]+Dataset[[#This Row],[2027/28 To - Spending review Topic 2]]+Dataset[[#This Row],[2027/28 To - Spending review Topic 3]]+Dataset[[#This Row],[2027/28 To - Spending review Topic 4]]+Dataset[[#This Row],[2027/28 To - Other reallocations]]","v":0},{"$f":"Dataset[[#This Row],[2028/29 To - Spending review Topic 1]]+Dataset[[#This Row],[2028/29 To - Spending review Topic 2]]+Dataset[[#This Row],[2028/29 To - Spending review Topic 3]]+Dataset[[#This Row],[2028/29 To - Spending review Topic 4]]+Dataset[[#This Row],[2028/29 To - Other reallocations]]","v":0},{"$f":"Dataset[[#This Row],[2029/30 To - Spending review Topic 1]]+Dataset[[#This Row],[2029/30 To - Spending review Topic 2]]+Dataset[[#This Row],[2029/30 To - Spending review Topic 3]]+Dataset[[#This Row],[2029/30 To - Spending review Topic 4]]+Dataset[[#This Row],[2029/30 To - Other reallocations]]","v":0},{"$f":"Dataset[[#This Row],[2027/28 Targeted savings]]+Dataset[[#This Row],[2027/28 From - Total]]","v":0},{"$f":"Dataset[[#This Row],[2028/29 Targeted savings]]+Dataset[[#This Row],[2028/29 From - Total]]","v":0},{"$f":"Dataset[[#This Row],[2029/30 Targeted savings]]+Dataset[[#This Row],[2029/30 From - Total]]","v":0},{"$f":"Dataset[[#This Row],[2026/27 Targeted savings]]","v":0},{"$f":"SUM(Dataset[[#This Row],[2027/28 Targeted savings]],Dataset[[#This Row],[2027/28 From - Total]],Dataset[[#This Row],[2027/28 To - Total]])","v":0},{"$f":"SUM(Dataset[[#This Row],[2028/29 Targeted savings]],Dataset[[#This Row],[2028/29 From - Total]],Dataset[[#This Row],[2028/29 To - Total]])","v":0},{"$f":"SUM(Dataset[[#This Row],[2029/30 Targeted savings]],Dataset[[#This Row],[2029/30 From - Total]],Dataset[[#This Row],[2029/30 To - Total]])","v":0},{"$f":"Dataset[[#This Row],[2026/27 Baseline]]+Dataset[[#This Row],[2026/27 Total change]]","v":766},{"$f":"Dataset[[#This Row],[2027/28 Baseline]]+Dataset[[#This Row],[2027/28 Total change]]","v":851},{"$f":"Dataset[[#This Row],[2028/29 Baseline]]+Dataset[[#This Row],[2028/29 Total change]]","v":878},{"$f":"Dataset[[#This Row],[2029/30 Baseline]]+Dataset[[#This Row],[2029/30 Total change]]","v":904}]
["NAT|Non-transfer item","30|Agency and support/outsourced services","2027_28","MTEC2027",30,1,2,32588,68,"30","01","02","032588","000068","30|01|02|000068","01","01","02","17","17","01|01|02|17|17","National","Communications and Digital Technologies","Administration","Departmental Management","Non-transfer item","Current","Current payments","Goods and services","Agency and support/outsourced services","Agency and support/outsourced services","Economic development","Economic regulation and infrastructure","NAT",0,0,0,0,0,0,0,0,0,0,0,null,null,null,null,null,null,null,null,null,null,null,null,null,null,null,null,null,null,null,null,null,null,null,null,null,null,null,null,null,null,null,null,null,null,{"$f":"Dataset[[#This Row],[2027/28 From - Spending review Topic 1]]+Dataset[[#This Row],[2027/28 From - Spending review Topic 2]]+Dataset[[#This Row],[2027/28 From - Spending review Topic 3]]+Dataset[[#This Row],[2027/28 From - Spending review Topic 4]]+Dataset[[#This Row],[2027/28 From - Other reallocations]]","v":0},{"$f":"Dataset[[#This Row],[2028/29 From - Spending review Topic 1]]+Dataset[[#This Row],[2028/29 From - Spending review Topic 2]]+Dataset[[#This Row],[2028/29 From - Spending review Topic 3]]+Dataset[[#This Row],[2028/29 From - Spending review Topic 4]]+Dataset[[#This Row],[2028/29 From - Other reallocations]]","v":0},{"$f":"Dataset[[#This Row],[2029/30 From - Spending review Topic 1]]+Dataset[[#This Row],[2029/30 From - Spending review Topic 2]]+Dataset[[#This Row],[2029/30 From - Spending review Topic 3]]+Dataset[[#This Row],[2029/30 From - Spending review Topic 4]]+Dataset[[#This Row],[2029/30 From - Other reallocations]]","v":0},{"$f":"Dataset[[#This Row],[2027/28 To - Spending review Topic 1]]+Dataset[[#This Row],[2027/28 To - Spending review Topic 2]]+Dataset[[#This Row],[2027/28 To - Spending review Topic 3]]+Dataset[[#This Row],[2027/28 To - Spending review Topic 4]]+Dataset[[#This Row],[2027/28 To - Other reallocations]]","v":0},{"$f":"Dataset[[#This Row],[2028/29 To - Spending review Topic 1]]+Dataset[[#This Row],[2028/29 To - Spending review Topic 2]]+Dataset[[#This Row],[2028/29 To - Spending review Topic 3]]+Dataset[[#This Row],[2028/29 To - Spending review Topic 4]]+Dataset[[#This Row],[2028/29 To - Other reallocations]]","v":0},{"$f":"Dataset[[#This Row],[2029/30 To - Spending review Topic 1]]+Dataset[[#This Row],[2029/30 To - Spending review Topic 2]]+Dataset[[#This Row],[2029/30 To - Spending review Topic 3]]+Dataset[[#This Row],[2029/30 To - Spending review Topic 4]]+Dataset[[#This Row],[2029/30 To - Other reallocations]]","v":0},{"$f":"Dataset[[#This Row],[2027/28 Targeted savings]]+Dataset[[#This Row],[2027/28 From - Total]]","v":0},{"$f":"Dataset[[#This Row],[2028/29 Targeted savings]]+Dataset[[#This Row],[2028/29 From - Total]]","v":0},{"$f":"Dataset[[#This Row],[2029/30 Targeted savings]]+Dataset[[#This Row],[2029/30 From - Total]]","v":0},{"$f":"Dataset[[#This Row],[2026/27 Targeted savings]]","v":0},{"$f":"SUM(Dataset[[#This Row],[2027/28 Targeted savings]],Dataset[[#This Row],[2027/28 From - Total]],Dataset[[#This Row],[2027/28 To - Total]])","v":0},{"$f":"SUM(Dataset[[#This Row],[2028/29 Targeted savings]],Dataset[[#This Row],[2028/29 From - Total]],Dataset[[#This Row],[2028/29 To - Total]])","v":0},{"$f":"SUM(Dataset[[#This Row],[2029/30 Targeted savings]],Dataset[[#This Row],[2029/30 From - Total]],Dataset[[#This Row],[2029/30 To - Total]])","v":0},{"$f":"Dataset[[#This Row],[2026/27 Baseline]]+Dataset[[#This Row],[2026/27 Total change]]","v":0},{"$f":"Dataset[[#This Row],[2027/28 Baseline]]+Dataset[[#This Row],[2027/28 Total change]]","v":0},{"$f":"Dataset[[#This Row],[2028/29 Baseline]]+Dataset[[#This Row],[2028/29 Total change]]","v":0},{"$f":"Dataset[[#This Row],[2029/30 Baseline]]+Dataset[[#This Row],[2029/30 Total change]]","v":0}]
["NAT|Non-transfer","30|Entertainment","2027_28","MTEC2027",30,1,2,32589,69,"30","01","02","032589","000069","30|01|02|000069","01","01","02","18","18","01|01|02|18|18","National","Communications and Digital Technologies","Administration","Departmental Management","Non-transfer","Current","Current payments","Goods and services","Entertainment","Entertainment","Economic development","Economic regulation and infrastructure","NAT",5,3,12,70,70,70,3,73,206,212,218,null,null,null,null,null,null,null,null,null,null,null,null,null,null,null,null,null,null,null,null,null,null,null,null,null,null,null,null,null,null,null,null,null,null,{"$f":"Dataset[[#This Row],[2027/28 From - Spending review Topic 1]]+Dataset[[#This Row],[2027/28 From - Spending review Topic 2]]+Dataset[[#This Row],[2027/28 From - Spending review Topic 3]]+Dataset[[#This Row],[2027/28 From - Spending review Topic 4]]+Dataset[[#This Row],[2027/28 From - Other reallocations]]","v":0},{"$f":"Dataset[[#This Row],[2028/29 From - Spending review Topic 1]]+Dataset[[#This Row],[2028/29 From - Spending review Topic 2]]+Dataset[[#This Row],[2028/29 From - Spending review Topic 3]]+Dataset[[#This Row],[2028/29 From - Spending review Topic 4]]+Dataset[[#This Row],[2028/29 From - Other reallocations]]","v":0},{"$f":"Dataset[[#This Row],[2029/30 From - Spending review Topic 1]]+Dataset[[#This Row],[2029/30 From - Spending review Topic 2]]+Dataset[[#This Row],[2029/30 From - Spending review Topic 3]]+Dataset[[#This Row],[2029/30 From - Spending review Topic 4]]+Dataset[[#This Row],[2029/30 From - Other reallocations]]","v":0},{"$f":"Dataset[[#This Row],[2027/28 To - Spending review Topic 1]]+Dataset[[#This Row],[2027/28 To - Spending review Topic 2]]+Dataset[[#This Row],[2027/28 To - Spending review Topic 3]]+Dataset[[#This Row],[2027/28 To - Spending review Topic 4]]+Dataset[[#This Row],[2027/28 To - Other reallocations]]","v":0},{"$f":"Dataset[[#This Row],[2028/29 To - Spending review Topic 1]]+Dataset[[#This Row],[2028/29 To - Spending review Topic 2]]+Dataset[[#This Row],[2028/29 To - Spending review Topic 3]]+Dataset[[#This Row],[2028/29 To - Spending review Topic 4]]+Dataset[[#This Row],[2028/29 To - Other reallocations]]","v":0},{"$f":"Dataset[[#This Row],[2029/30 To - Spending review Topic 1]]+Dataset[[#This Row],[2029/30 To - Spending review Topic 2]]+Dataset[[#This Row],[2029/30 To - Spending review Topic 3]]+Dataset[[#This Row],[2029/30 To - Spending review Topic 4]]+Dataset[[#This Row],[2029/30 To - Other reallocations]]","v":0},{"$f":"Dataset[[#This Row],[2027/28 Targeted savings]]+Dataset[[#This Row],[2027/28 From - Total]]","v":0},{"$f":"Dataset[[#This Row],[2028/29 Targeted savings]]+Dataset[[#This Row],[2028/29 From - Total]]","v":0},{"$f":"Dataset[[#This Row],[2029/30 Targeted savings]]+Dataset[[#This Row],[2029/30 From - Total]]","v":0},{"$f":"Dataset[[#This Row],[2026/27 Targeted savings]]","v":0},{"$f":"SUM(Dataset[[#This Row],[2027/28 Targeted savings]],Dataset[[#This Row],[2027/28 From - Total]],Dataset[[#This Row],[2027/28 To - Total]])","v":0},{"$f":"SUM(Dataset[[#This Row],[2028/29 Targeted savings]],Dataset[[#This Row],[2028/29 From - Total]],Dataset[[#This Row],[2028/29 To - Total]])","v":0},{"$f":"SUM(Dataset[[#This Row],[2029/30 Targeted savings]],Dataset[[#This Row],[2029/30 From - Total]],Dataset[[#This Row],[2029/30 To - Total]])","v":0},{"$f":"Dataset[[#This Row],[2026/27 Baseline]]+Dataset[[#This Row],[2026/27 Total change]]","v":73},{"$f":"Dataset[[#This Row],[2027/28 Baseline]]+Dataset[[#This Row],[2027/28 Total change]]","v":206},{"$f":"Dataset[[#This Row],[2028/29 Baseline]]+Dataset[[#This Row],[2028/29 Total change]]","v":212},{"$f":"Dataset[[#This Row],[2029/30 Baseline]]+Dataset[[#This Row],[2029/30 Total change]]","v":218}]
["NAT|Non-transfer","30|Fleet services (including government motor transport)","2027_28","MTEC2027",30,1,2,32590,70,"30","01","02","032590","000070","30|01|02|000070","01","01","02","19","19","01|01|02|19|19","National","Communications and Digital Technologies","Administration","Departmental Management","Non-transfer","Current","Current payments","Goods and services","Fleet services (including government motor transport)","Fleet services (including government motor transport)","Economic development","Economic regulation and infrastructure","NAT",1776,1370,1513,863,863,863,1658,1524,1101,1135,1169,null,null,null,null,null,null,null,null,null,null,null,null,null,null,null,null,null,null,null,null,null,null,null,null,null,null,null,null,null,null,null,null,null,null,{"$f":"Dataset[[#This Row],[2027/28 From - Spending review Topic 1]]+Dataset[[#This Row],[2027/28 From - Spending review Topic 2]]+Dataset[[#This Row],[2027/28 From - Spending review Topic 3]]+Dataset[[#This Row],[2027/28 From - Spending review Topic 4]]+Dataset[[#This Row],[2027/28 From - Other reallocations]]","v":0},{"$f":"Dataset[[#This Row],[2028/29 From - Spending review Topic 1]]+Dataset[[#This Row],[2028/29 From - Spending review Topic 2]]+Dataset[[#This Row],[2028/29 From - Spending review Topic 3]]+Dataset[[#This Row],[2028/29 From - Spending review Topic 4]]+Dataset[[#This Row],[2028/29 From - Other reallocations]]","v":0},{"$f":"Dataset[[#This Row],[2029/30 From - Spending review Topic 1]]+Dataset[[#This Row],[2029/30 From - Spending review Topic 2]]+Dataset[[#This Row],[2029/30 From - Spending review Topic 3]]+Dataset[[#This Row],[2029/30 From - Spending review Topic 4]]+Dataset[[#This Row],[2029/30 From - Other reallocations]]","v":0},{"$f":"Dataset[[#This Row],[2027/28 To - Spending review Topic 1]]+Dataset[[#This Row],[2027/28 To - Spending review Topic 2]]+Dataset[[#This Row],[2027/28 To - Spending review Topic 3]]+Dataset[[#This Row],[2027/28 To - Spending review Topic 4]]+Dataset[[#This Row],[2027/28 To - Other reallocations]]","v":0},{"$f":"Dataset[[#This Row],[2028/29 To - Spending review Topic 1]]+Dataset[[#This Row],[2028/29 To - Spending review Topic 2]]+Dataset[[#This Row],[2028/29 To - Spending review Topic 3]]+Dataset[[#This Row],[2028/29 To - Spending review Topic 4]]+Dataset[[#This Row],[2028/29 To - Other reallocations]]","v":0},{"$f":"Dataset[[#This Row],[2029/30 To - Spending review Topic 1]]+Dataset[[#This Row],[2029/30 To - Spending review Topic 2]]+Dataset[[#This Row],[2029/30 To - Spending review Topic 3]]+Dataset[[#This Row],[2029/30 To - Spending review Topic 4]]+Dataset[[#This Row],[2029/30 To - Other reallocations]]","v":0},{"$f":"Dataset[[#This Row],[2027/28 Targeted savings]]+Dataset[[#This Row],[2027/28 From - Total]]","v":0},{"$f":"Dataset[[#This Row],[2028/29 Targeted savings]]+Dataset[[#This Row],[2028/29 From - Total]]","v":0},{"$f":"Dataset[[#This Row],[2029/30 Targeted savings]]+Dataset[[#This Row],[2029/30 From - Total]]","v":0},{"$f":"Dataset[[#This Row],[2026/27 Targeted savings]]","v":0},{"$f":"SUM(Dataset[[#This Row],[2027/28 Targeted savings]],Dataset[[#This Row],[2027/28 From - Total]],Dataset[[#This Row],[2027/28 To - Total]])","v":0},{"$f":"SUM(Dataset[[#This Row],[2028/29 Targeted savings]],Dataset[[#This Row],[2028/29 From - Total]],Dataset[[#This Row],[2028/29 To - Total]])","v":0},{"$f":"SUM(Dataset[[#This Row],[2029/30 Targeted savings]],Dataset[[#This Row],[2029/30 From - Total]],Dataset[[#This Row],[2029/30 To - Total]])","v":0},{"$f":"Dataset[[#This Row],[2026/27 Baseline]]+Dataset[[#This Row],[2026/27 Total change]]","v":1524},{"$f":"Dataset[[#This Row],[2027/28 Baseline]]+Dataset[[#This Row],[2027/28 Total change]]","v":1101},{"$f":"Dataset[[#This Row],[2028/29 Baseline]]+Dataset[[#This Row],[2028/29 Total change]]","v":1135},{"$f":"Dataset[[#This Row],[2029/30 Baseline]]+Dataset[[#This Row],[2029/30 Total change]]","v":1169}]
["NAT|Non-transfer item","30|Housing","2027_28","MTEC2027",30,1,2,32591,71,"30","01","02","032591","000071","30|01|02|000071","01","01","02","20","20","01|01|02|20|20","National","Communications and Digital Technologies","Administration","Departmental Management","Non-transfer item","Current","Current payments","Goods and services","Housing","Housing","Economic development","Economic regulation and infrastructure","NAT",0,0,0,0,0,0,0,0,0,0,0,null,null,null,null,null,null,null,null,null,null,null,null,null,null,null,null,null,null,null,null,null,null,null,null,null,null,null,null,null,null,null,null,null,null,{"$f":"Dataset[[#This Row],[2027/28 From - Spending review Topic 1]]+Dataset[[#This Row],[2027/28 From - Spending review Topic 2]]+Dataset[[#This Row],[2027/28 From - Spending review Topic 3]]+Dataset[[#This Row],[2027/28 From - Spending review Topic 4]]+Dataset[[#This Row],[2027/28 From - Other reallocations]]","v":0},{"$f":"Dataset[[#This Row],[2028/29 From - Spending review Topic 1]]+Dataset[[#This Row],[2028/29 From - Spending review Topic 2]]+Dataset[[#This Row],[2028/29 From - Spending review Topic 3]]+Dataset[[#This Row],[2028/29 From - Spending review Topic 4]]+Dataset[[#This Row],[2028/29 From - Other reallocations]]","v":0},{"$f":"Dataset[[#This Row],[2029/30 From - Spending review Topic 1]]+Dataset[[#This Row],[2029/30 From - Spending review Topic 2]]+Dataset[[#This Row],[2029/30 From - Spending review Topic 3]]+Dataset[[#This Row],[2029/30 From - Spending review Topic 4]]+Dataset[[#This Row],[2029/30 From - Other reallocations]]","v":0},{"$f":"Dataset[[#This Row],[2027/28 To - Spending review Topic 1]]+Dataset[[#This Row],[2027/28 To - Spending review Topic 2]]+Dataset[[#This Row],[2027/28 To - Spending review Topic 3]]+Dataset[[#This Row],[2027/28 To - Spending review Topic 4]]+Dataset[[#This Row],[2027/28 To - Other reallocations]]","v":0},{"$f":"Dataset[[#This Row],[2028/29 To - Spending review Topic 1]]+Dataset[[#This Row],[2028/29 To - Spending review Topic 2]]+Dataset[[#This Row],[2028/29 To - Spending review Topic 3]]+Dataset[[#This Row],[2028/29 To - Spending review Topic 4]]+Dataset[[#This Row],[2028/29 To - Other reallocations]]","v":0},{"$f":"Dataset[[#This Row],[2029/30 To - Spending review Topic 1]]+Dataset[[#This Row],[2029/30 To - Spending review Topic 2]]+Dataset[[#This Row],[2029/30 To - Spending review Topic 3]]+Dataset[[#This Row],[2029/30 To - Spending review Topic 4]]+Dataset[[#This Row],[2029/30 To - Other reallocations]]","v":0},{"$f":"Dataset[[#This Row],[2027/28 Targeted savings]]+Dataset[[#This Row],[2027/28 From - Total]]","v":0},{"$f":"Dataset[[#This Row],[2028/29 Targeted savings]]+Dataset[[#This Row],[2028/29 From - Total]]","v":0},{"$f":"Dataset[[#This Row],[2029/30 Targeted savings]]+Dataset[[#This Row],[2029/30 From - Total]]","v":0},{"$f":"Dataset[[#This Row],[2026/27 Targeted savings]]","v":0},{"$f":"SUM(Dataset[[#This Row],[2027/28 Targeted savings]],Dataset[[#This Row],[2027/28 From - Total]],Dataset[[#This Row],[2027/28 To - Total]])","v":0},{"$f":"SUM(Dataset[[#This Row],[2028/29 Targeted savings]],Dataset[[#This Row],[2028/29 From - Total]],Dataset[[#This Row],[2028/29 To - Total]])","v":0},{"$f":"SUM(Dataset[[#This Row],[2029/30 Targeted savings]],Dataset[[#This Row],[2029/30 From - Total]],Dataset[[#This Row],[2029/30 To - Total]])","v":0},{"$f":"Dataset[[#This Row],[2026/27 Baseline]]+Dataset[[#This Row],[2026/27 Total change]]","v":0},{"$f":"Dataset[[#This Row],[2027/28 Baseline]]+Dataset[[#This Row],[2027/28 Total change]]","v":0},{"$f":"Dataset[[#This Row],[2028/29 Baseline]]+Dataset[[#This Row],[2028/29 Total change]]","v":0},{"$f":"Dataset[[#This Row],[2029/30 Baseline]]+Dataset[[#This Row],[2029/30 Total change]]","v":0}]
["NAT|Non-transfer item","30|Inventory: Clothing material and accessories","2027_28","MTEC2027",30,1,2,32592,72,"30","01","02","032592","000072","30|01|02|000072","01","01","02","21","21","01|01|02|21|21","National","Communications and Digital Technologies","Administration","Departmental Management","Non-transfer item","Current","Current payments","Goods and services","Inventory: Clothing material and accessories","Inventory: Clothing material and accessories","Economic development","Economic regulation and infrastructure","NAT",0,0,0,0,0,0,0,0,0,0,0,null,null,null,null,null,null,null,null,null,null,null,null,null,null,null,null,null,null,null,null,null,null,null,null,null,null,null,null,null,null,null,null,null,null,{"$f":"Dataset[[#This Row],[2027/28 From - Spending review Topic 1]]+Dataset[[#This Row],[2027/28 From - Spending review Topic 2]]+Dataset[[#This Row],[2027/28 From - Spending review Topic 3]]+Dataset[[#This Row],[2027/28 From - Spending review Topic 4]]+Dataset[[#This Row],[2027/28 From - Other reallocations]]","v":0},{"$f":"Dataset[[#This Row],[2028/29 From - Spending review Topic 1]]+Dataset[[#This Row],[2028/29 From - Spending review Topic 2]]+Dataset[[#This Row],[2028/29 From - Spending review Topic 3]]+Dataset[[#This Row],[2028/29 From - Spending review Topic 4]]+Dataset[[#This Row],[2028/29 From - Other reallocations]]","v":0},{"$f":"Dataset[[#This Row],[2029/30 From - Spending review Topic 1]]+Dataset[[#This Row],[2029/30 From - Spending review Topic 2]]+Dataset[[#This Row],[2029/30 From - Spending review Topic 3]]+Dataset[[#This Row],[2029/30 From - Spending review Topic 4]]+Dataset[[#This Row],[2029/30 From - Other reallocations]]","v":0},{"$f":"Dataset[[#This Row],[2027/28 To - Spending review Topic 1]]+Dataset[[#This Row],[2027/28 To - Spending review Topic 2]]+Dataset[[#This Row],[2027/28 To - Spending review Topic 3]]+Dataset[[#This Row],[2027/28 To - Spending review Topic 4]]+Dataset[[#This Row],[2027/28 To - Other reallocations]]","v":0},{"$f":"Dataset[[#This Row],[2028/29 To - Spending review Topic 1]]+Dataset[[#This Row],[2028/29 To - Spending review Topic 2]]+Dataset[[#This Row],[2028/29 To - Spending review Topic 3]]+Dataset[[#This Row],[2028/29 To - Spending review Topic 4]]+Dataset[[#This Row],[2028/29 To - Other reallocations]]","v":0},{"$f":"Dataset[[#This Row],[2029/30 To - Spending review Topic 1]]+Dataset[[#This Row],[2029/30 To - Spending review Topic 2]]+Dataset[[#This Row],[2029/30 To - Spending review Topic 3]]+Dataset[[#This Row],[2029/30 To - Spending review Topic 4]]+Dataset[[#This Row],[2029/30 To - Other reallocations]]","v":0},{"$f":"Dataset[[#This Row],[2027/28 Targeted savings]]+Dataset[[#This Row],[2027/28 From - Total]]","v":0},{"$f":"Dataset[[#This Row],[2028/29 Targeted savings]]+Dataset[[#This Row],[2028/29 From - Total]]","v":0},{"$f":"Dataset[[#This Row],[2029/30 Targeted savings]]+Dataset[[#This Row],[2029/30 From - Total]]","v":0},{"$f":"Dataset[[#This Row],[2026/27 Targeted savings]]","v":0},{"$f":"SUM(Dataset[[#This Row],[2027/28 Targeted savings]],Dataset[[#This Row],[2027/28 From - Total]],Dataset[[#This Row],[2027/28 To - Total]])","v":0},{"$f":"SUM(Dataset[[#This Row],[2028/29 Targeted savings]],Dataset[[#This Row],[2028/29 From - Total]],Dataset[[#This Row],[2028/29 To - Total]])","v":0},{"$f":"SUM(Dataset[[#This Row],[2029/30 Targeted savings]],Dataset[[#This Row],[2029/30 From - Total]],Dataset[[#This Row],[2029/30 To - Total]])","v":0},{"$f":"Dataset[[#This Row],[2026/27 Baseline]]+Dataset[[#This Row],[2026/27 Total change]]","v":0},{"$f":"Dataset[[#This Row],[2027/28 Baseline]]+Dataset[[#This Row],[2027/28 Total change]]","v":0},{"$f":"Dataset[[#This Row],[2028/29 Baseline]]+Dataset[[#This Row],[2028/29 Total change]]","v":0},{"$f":"Dataset[[#This Row],[2029/30 Baseline]]+Dataset[[#This Row],[2029/30 Total change]]","v":0}]
["NAT|Non-transfer item","30|Inventory: Farming supplies","2027_28","MTEC2027",30,1,2,32593,73,"30","01","02","032593","000073","30|01|02|000073","01","01","02","22","22","01|01|02|22|22","National","Communications and Digital Technologies","Administration","Departmental Management","Non-transfer item","Current","Current payments","Goods and services","Inventory: Farming supplies","Inventory: Farming supplies","Economic development","Economic regulation and infrastructure","NAT",0,0,0,0,0,0,0,0,0,0,0,null,null,null,null,null,null,null,null,null,null,null,null,null,null,null,null,null,null,null,null,null,null,null,null,null,null,null,null,null,null,null,null,null,null,{"$f":"Dataset[[#This Row],[2027/28 From - Spending review Topic 1]]+Dataset[[#This Row],[2027/28 From - Spending review Topic 2]]+Dataset[[#This Row],[2027/28 From - Spending review Topic 3]]+Dataset[[#This Row],[2027/28 From - Spending review Topic 4]]+Dataset[[#This Row],[2027/28 From - Other reallocations]]","v":0},{"$f":"Dataset[[#This Row],[2028/29 From - Spending review Topic 1]]+Dataset[[#This Row],[2028/29 From - Spending review Topic 2]]+Dataset[[#This Row],[2028/29 From - Spending review Topic 3]]+Dataset[[#This Row],[2028/29 From - Spending review Topic 4]]+Dataset[[#This Row],[2028/29 From - Other reallocations]]","v":0},{"$f":"Dataset[[#This Row],[2029/30 From - Spending review Topic 1]]+Dataset[[#This Row],[2029/30 From - Spending review Topic 2]]+Dataset[[#This Row],[2029/30 From - Spending review Topic 3]]+Dataset[[#This Row],[2029/30 From - Spending review Topic 4]]+Dataset[[#This Row],[2029/30 From - Other reallocations]]","v":0},{"$f":"Dataset[[#This Row],[2027/28 To - Spending review Topic 1]]+Dataset[[#This Row],[2027/28 To - Spending review Topic 2]]+Dataset[[#This Row],[2027/28 To - Spending review Topic 3]]+Dataset[[#This Row],[2027/28 To - Spending review Topic 4]]+Dataset[[#This Row],[2027/28 To - Other reallocations]]","v":0},{"$f":"Dataset[[#This Row],[2028/29 To - Spending review Topic 1]]+Dataset[[#This Row],[2028/29 To - Spending review Topic 2]]+Dataset[[#This Row],[2028/29 To - Spending review Topic 3]]+Dataset[[#This Row],[2028/29 To - Spending review Topic 4]]+Dataset[[#This Row],[2028/29 To - Other reallocations]]","v":0},{"$f":"Dataset[[#This Row],[2029/30 To - Spending review Topic 1]]+Dataset[[#This Row],[2029/30 To - Spending review Topic 2]]+Dataset[[#This Row],[2029/30 To - Spending review Topic 3]]+Dataset[[#This Row],[2029/30 To - Spending review Topic 4]]+Dataset[[#This Row],[2029/30 To - Other reallocations]]","v":0},{"$f":"Dataset[[#This Row],[2027/28 Targeted savings]]+Dataset[[#This Row],[2027/28 From - Total]]","v":0},{"$f":"Dataset[[#This Row],[2028/29 Targeted savings]]+Dataset[[#This Row],[2028/29 From - Total]]","v":0},{"$f":"Dataset[[#This Row],[2029/30 Targeted savings]]+Dataset[[#This Row],[2029/30 From - Total]]","v":0},{"$f":"Dataset[[#This Row],[2026/27 Targeted savings]]","v":0},{"$f":"SUM(Dataset[[#This Row],[2027/28 Targeted savings]],Dataset[[#This Row],[2027/28 From - Total]],Dataset[[#This Row],[2027/28 To - Total]])","v":0},{"$f":"SUM(Dataset[[#This Row],[2028/29 Targeted savings]],Dataset[[#This Row],[2028/29 From - Total]],Dataset[[#This Row],[2028/29 To - Total]])","v":0},{"$f":"SUM(Dataset[[#This Row],[2029/30 Targeted savings]],Dataset[[#This Row],[2029/30 From - Total]],Dataset[[#This Row],[2029/30 To - Total]])","v":0},{"$f":"Dataset[[#This Row],[2026/27 Baseline]]+Dataset[[#This Row],[2026/27 Total change]]","v":0},{"$f":"Dataset[[#This Row],[2027/28 Baseline]]+Dataset[[#This Row],[2027/28 Total change]]","v":0},{"$f":"Dataset[[#This Row],[2028/29 Baseline]]+Dataset[[#This Row],[2028/29 Total change]]","v":0},{"$f":"Dataset[[#This Row],[2029/30 Baseline]]+Dataset[[#This Row],[2029/30 Total change]]","v":0}]
["NAT|Non-transfer item","30|Inventory: Food and food supplies","2027_28","MTEC2027",30,1,2,32594,74,"30","01","02","032594","000074","30|01|02|000074","01","01","02","23","23","01|01|02|23|23","National","Communications and Digital Technologies","Administration","Departmental Management","Non-transfer item","Current","Current payments","Goods and services","Inventory: Food and food supplies","Inventory: Food and food supplies","Economic development","Economic regulation and infrastructure","NAT",0,0,0,0,0,0,0,0,0,0,0,null,null,null,null,null,null,null,null,null,null,null,null,null,null,null,null,null,null,null,null,null,null,null,null,null,null,null,null,null,null,null,null,null,null,{"$f":"Dataset[[#This Row],[2027/28 From - Spending review Topic 1]]+Dataset[[#This Row],[2027/28 From - Spending review Topic 2]]+Dataset[[#This Row],[2027/28 From - Spending review Topic 3]]+Dataset[[#This Row],[2027/28 From - Spending review Topic 4]]+Dataset[[#This Row],[2027/28 From - Other reallocations]]","v":0},{"$f":"Dataset[[#This Row],[2028/29 From - Spending review Topic 1]]+Dataset[[#This Row],[2028/29 From - Spending review Topic 2]]+Dataset[[#This Row],[2028/29 From - Spending review Topic 3]]+Dataset[[#This Row],[2028/29 From - Spending review Topic 4]]+Dataset[[#This Row],[2028/29 From - Other reallocations]]","v":0},{"$f":"Dataset[[#This Row],[2029/30 From - Spending review Topic 1]]+Dataset[[#This Row],[2029/30 From - Spending review Topic 2]]+Dataset[[#This Row],[2029/30 From - Spending review Topic 3]]+Dataset[[#This Row],[2029/30 From - Spending review Topic 4]]+Dataset[[#This Row],[2029/30 From - Other reallocations]]","v":0},{"$f":"Dataset[[#This Row],[2027/28 To - Spending review Topic 1]]+Dataset[[#This Row],[2027/28 To - Spending review Topic 2]]+Dataset[[#This Row],[2027/28 To - Spending review Topic 3]]+Dataset[[#This Row],[2027/28 To - Spending review Topic 4]]+Dataset[[#This Row],[2027/28 To - Other reallocations]]","v":0},{"$f":"Dataset[[#This Row],[2028/29 To - Spending review Topic 1]]+Dataset[[#This Row],[2028/29 To - Spending review Topic 2]]+Dataset[[#This Row],[2028/29 To - Spending review Topic 3]]+Dataset[[#This Row],[2028/29 To - Spending review Topic 4]]+Dataset[[#This Row],[2028/29 To - Other reallocations]]","v":0},{"$f":"Dataset[[#This Row],[2029/30 To - Spending review Topic 1]]+Dataset[[#This Row],[2029/30 To - Spending review Topic 2]]+Dataset[[#This Row],[2029/30 To - Spending review Topic 3]]+Dataset[[#This Row],[2029/30 To - Spending review Topic 4]]+Dataset[[#This Row],[2029/30 To - Other reallocations]]","v":0},{"$f":"Dataset[[#This Row],[2027/28 Targeted savings]]+Dataset[[#This Row],[2027/28 From - Total]]","v":0},{"$f":"Dataset[[#This Row],[2028/29 Targeted savings]]+Dataset[[#This Row],[2028/29 From - Total]]","v":0},{"$f":"Dataset[[#This Row],[2029/30 Targeted savings]]+Dataset[[#This Row],[2029/30 From - Total]]","v":0},{"$f":"Dataset[[#This Row],[2026/27 Targeted savings]]","v":0},{"$f":"SUM(Dataset[[#This Row],[2027/28 Targeted savings]],Dataset[[#This Row],[2027/28 From - Total]],Dataset[[#This Row],[2027/28 To - Total]])","v":0},{"$f":"SUM(Dataset[[#This Row],[2028/29 Targeted savings]],Dataset[[#This Row],[2028/29 From - Total]],Dataset[[#This Row],[2028/29 To - Total]])","v":0},{"$f":"SUM(Dataset[[#This Row],[2029/30 Targeted savings]],Dataset[[#This Row],[2029/30 From - Total]],Dataset[[#This Row],[2029/30 To - Total]])","v":0},{"$f":"Dataset[[#This Row],[2026/27 Baseline]]+Dataset[[#This Row],[2026/27 Total change]]","v":0},{"$f":"Dataset[[#This Row],[2027/28 Baseline]]+Dataset[[#This Row],[2027/28 Total change]]","v":0},{"$f":"Dataset[[#This Row],[2028/29 Baseline]]+Dataset[[#This Row],[2028/29 Total change]]","v":0},{"$f":"Dataset[[#This Row],[2029/30 Baseline]]+Dataset[[#This Row],[2029/30 Total change]]","v":0}]
["NAT|Non-transfer item","30|Inventory: Fuel, oil and gas","2027_28","MTEC2027",30,1,2,32595,75,"30","01","02","032595","000075","30|01|02|000075","01","01","02","24","24","01|01|02|24|24","National","Communications and Digital Technologies","Administration","Departmental Management","Non-transfer item","Current","Current payments","Goods and services","Inventory: Fuel, oil and gas","Inventory: Fuel, oil and gas","Economic development","Economic regulation and infrastructure","NAT",0,0,0,0,0,0,0,0,0,0,0,null,null,null,null,null,null,null,null,null,null,null,null,null,null,null,null,null,null,null,null,null,null,null,null,null,null,null,null,null,null,null,null,null,null,{"$f":"Dataset[[#This Row],[2027/28 From - Spending review Topic 1]]+Dataset[[#This Row],[2027/28 From - Spending review Topic 2]]+Dataset[[#This Row],[2027/28 From - Spending review Topic 3]]+Dataset[[#This Row],[2027/28 From - Spending review Topic 4]]+Dataset[[#This Row],[2027/28 From - Other reallocations]]","v":0},{"$f":"Dataset[[#This Row],[2028/29 From - Spending review Topic 1]]+Dataset[[#This Row],[2028/29 From - Spending review Topic 2]]+Dataset[[#This Row],[2028/29 From - Spending review Topic 3]]+Dataset[[#This Row],[2028/29 From - Spending review Topic 4]]+Dataset[[#This Row],[2028/29 From - Other reallocations]]","v":0},{"$f":"Dataset[[#This Row],[2029/30 From - Spending review Topic 1]]+Dataset[[#This Row],[2029/30 From - Spending review Topic 2]]+Dataset[[#This Row],[2029/30 From - Spending review Topic 3]]+Dataset[[#This Row],[2029/30 From - Spending review Topic 4]]+Dataset[[#This Row],[2029/30 From - Other reallocations]]","v":0},{"$f":"Dataset[[#This Row],[2027/28 To - Spending review Topic 1]]+Dataset[[#This Row],[2027/28 To - Spending review Topic 2]]+Dataset[[#This Row],[2027/28 To - Spending review Topic 3]]+Dataset[[#This Row],[2027/28 To - Spending review Topic 4]]+Dataset[[#This Row],[2027/28 To - Other reallocations]]","v":0},{"$f":"Dataset[[#This Row],[2028/29 To - Spending review Topic 1]]+Dataset[[#This Row],[2028/29 To - Spending review Topic 2]]+Dataset[[#This Row],[2028/29 To - Spending review Topic 3]]+Dataset[[#This Row],[2028/29 To - Spending review Topic 4]]+Dataset[[#This Row],[2028/29 To - Other reallocations]]","v":0},{"$f":"Dataset[[#This Row],[2029/30 To - Spending review Topic 1]]+Dataset[[#This Row],[2029/30 To - Spending review Topic 2]]+Dataset[[#This Row],[2029/30 To - Spending review Topic 3]]+Dataset[[#This Row],[2029/30 To - Spending review Topic 4]]+Dataset[[#This Row],[2029/30 To - Other reallocations]]","v":0},{"$f":"Dataset[[#This Row],[2027/28 Targeted savings]]+Dataset[[#This Row],[2027/28 From - Total]]","v":0},{"$f":"Dataset[[#This Row],[2028/29 Targeted savings]]+Dataset[[#This Row],[2028/29 From - Total]]","v":0},{"$f":"Dataset[[#This Row],[2029/30 Targeted savings]]+Dataset[[#This Row],[2029/30 From - Total]]","v":0},{"$f":"Dataset[[#This Row],[2026/27 Targeted savings]]","v":0},{"$f":"SUM(Dataset[[#This Row],[2027/28 Targeted savings]],Dataset[[#This Row],[2027/28 From - Total]],Dataset[[#This Row],[2027/28 To - Total]])","v":0},{"$f":"SUM(Dataset[[#This Row],[2028/29 Targeted savings]],Dataset[[#This Row],[2028/29 From - Total]],Dataset[[#This Row],[2028/29 To - Total]])","v":0},{"$f":"SUM(Dataset[[#This Row],[2029/30 Targeted savings]],Dataset[[#This Row],[2029/30 From - Total]],Dataset[[#This Row],[2029/30 To - Total]])","v":0},{"$f":"Dataset[[#This Row],[2026/27 Baseline]]+Dataset[[#This Row],[2026/27 Total change]]","v":0},{"$f":"Dataset[[#This Row],[2027/28 Baseline]]+Dataset[[#This Row],[2027/28 Total change]]","v":0},{"$f":"Dataset[[#This Row],[2028/29 Baseline]]+Dataset[[#This Row],[2028/29 Total change]]","v":0},{"$f":"Dataset[[#This Row],[2029/30 Baseline]]+Dataset[[#This Row],[2029/30 Total change]]","v":0}]
["NAT|Non-transfer item","30|Inventory: Learner and teacher support material","2027_28","MTEC2027",30,1,2,32596,76,"30","01","02","032596","000076","30|01|02|000076","01","01","02","25","25","01|01|02|25|25","National","Communications and Digital Technologies","Administration","Departmental Management","Non-transfer item","Current","Current payments","Goods and services","Inventory: Learner and teacher support material","Inventory: Learner and teacher support material","Economic development","Economic regulation and infrastructure","NAT",0,0,0,0,0,0,0,0,0,0,0,null,null,null,null,null,null,null,null,null,null,null,null,null,null,null,null,null,null,null,null,null,null,null,null,null,null,null,null,null,null,null,null,null,null,{"$f":"Dataset[[#This Row],[2027/28 From - Spending review Topic 1]]+Dataset[[#This Row],[2027/28 From - Spending review Topic 2]]+Dataset[[#This Row],[2027/28 From - Spending review Topic 3]]+Dataset[[#This Row],[2027/28 From - Spending review Topic 4]]+Dataset[[#This Row],[2027/28 From - Other reallocations]]","v":0},{"$f":"Dataset[[#This Row],[2028/29 From - Spending review Topic 1]]+Dataset[[#This Row],[2028/29 From - Spending review Topic 2]]+Dataset[[#This Row],[2028/29 From - Spending review Topic 3]]+Dataset[[#This Row],[2028/29 From - Spending review Topic 4]]+Dataset[[#This Row],[2028/29 From - Other reallocations]]","v":0},{"$f":"Dataset[[#This Row],[2029/30 From - Spending review Topic 1]]+Dataset[[#This Row],[2029/30 From - Spending review Topic 2]]+Dataset[[#This Row],[2029/30 From - Spending review Topic 3]]+Dataset[[#This Row],[2029/30 From - Spending review Topic 4]]+Dataset[[#This Row],[2029/30 From - Other reallocations]]","v":0},{"$f":"Dataset[[#This Row],[2027/28 To - Spending review Topic 1]]+Dataset[[#This Row],[2027/28 To - Spending review Topic 2]]+Dataset[[#This Row],[2027/28 To - Spending review Topic 3]]+Dataset[[#This Row],[2027/28 To - Spending review Topic 4]]+Dataset[[#This Row],[2027/28 To - Other reallocations]]","v":0},{"$f":"Dataset[[#This Row],[2028/29 To - Spending review Topic 1]]+Dataset[[#This Row],[2028/29 To - Spending review Topic 2]]+Dataset[[#This Row],[2028/29 To - Spending review Topic 3]]+Dataset[[#This Row],[2028/29 To - Spending review Topic 4]]+Dataset[[#This Row],[2028/29 To - Other reallocations]]","v":0},{"$f":"Dataset[[#This Row],[2029/30 To - Spending review Topic 1]]+Dataset[[#This Row],[2029/30 To - Spending review Topic 2]]+Dataset[[#This Row],[2029/30 To - Spending review Topic 3]]+Dataset[[#This Row],[2029/30 To - Spending review Topic 4]]+Dataset[[#This Row],[2029/30 To - Other reallocations]]","v":0},{"$f":"Dataset[[#This Row],[2027/28 Targeted savings]]+Dataset[[#This Row],[2027/28 From - Total]]","v":0},{"$f":"Dataset[[#This Row],[2028/29 Targeted savings]]+Dataset[[#This Row],[2028/29 From - Total]]","v":0},{"$f":"Dataset[[#This Row],[2029/30 Targeted savings]]+Dataset[[#This Row],[2029/30 From - Total]]","v":0},{"$f":"Dataset[[#This Row],[2026/27 Targeted savings]]","v":0},{"$f":"SUM(Dataset[[#This Row],[2027/28 Targeted savings]],Dataset[[#This Row],[2027/28 From - Total]],Dataset[[#This Row],[2027/28 To - Total]])","v":0},{"$f":"SUM(Dataset[[#This Row],[2028/29 Targeted savings]],Dataset[[#This Row],[2028/29 From - Total]],Dataset[[#This Row],[2028/29 To - Total]])","v":0},{"$f":"SUM(Dataset[[#This Row],[2029/30 Targeted savings]],Dataset[[#This Row],[2029/30 From - Total]],Dataset[[#This Row],[2029/30 To - Total]])","v":0},{"$f":"Dataset[[#This Row],[2026/27 Baseline]]+Dataset[[#This Row],[2026/27 Total change]]","v":0},{"$f":"Dataset[[#This Row],[2027/28 Baseline]]+Dataset[[#This Row],[2027/28 Total change]]","v":0},{"$f":"Dataset[[#This Row],[2028/29 Baseline]]+Dataset[[#This Row],[2028/29 Total change]]","v":0},{"$f":"Dataset[[#This Row],[2029/30 Baseline]]+Dataset[[#This Row],[2029/30 Total change]]","v":0}]
["NAT|Non-transfer item","30|Inventory: Materials and supplies","2027_28","MTEC2027",30,1,2,32597,77,"30","01","02","032597","000077","30|01|02|000077","01","01","02","26","26","01|01|02|26|26","National","Communications and Digital Technologies","Administration","Departmental Management","Non-transfer item","Current","Current payments","Goods and services","Inventory: Materials and supplies","Inventory: Materials and supplies","Economic development","Economic regulation and infrastructure","NAT",0,0,0,0,0,0,0,0,0,0,0,null,null,null,null,null,null,null,null,null,null,null,null,null,null,null,null,null,null,null,null,null,null,null,null,null,null,null,null,null,null,null,null,null,null,{"$f":"Dataset[[#This Row],[2027/28 From - Spending review Topic 1]]+Dataset[[#This Row],[2027/28 From - Spending review Topic 2]]+Dataset[[#This Row],[2027/28 From - Spending review Topic 3]]+Dataset[[#This Row],[2027/28 From - Spending review Topic 4]]+Dataset[[#This Row],[2027/28 From - Other reallocations]]","v":0},{"$f":"Dataset[[#This Row],[2028/29 From - Spending review Topic 1]]+Dataset[[#This Row],[2028/29 From - Spending review Topic 2]]+Dataset[[#This Row],[2028/29 From - Spending review Topic 3]]+Dataset[[#This Row],[2028/29 From - Spending review Topic 4]]+Dataset[[#This Row],[2028/29 From - Other reallocations]]","v":0},{"$f":"Dataset[[#This Row],[2029/30 From - Spending review Topic 1]]+Dataset[[#This Row],[2029/30 From - Spending review Topic 2]]+Dataset[[#This Row],[2029/30 From - Spending review Topic 3]]+Dataset[[#This Row],[2029/30 From - Spending review Topic 4]]+Dataset[[#This Row],[2029/30 From - Other reallocations]]","v":0},{"$f":"Dataset[[#This Row],[2027/28 To - Spending review Topic 1]]+Dataset[[#This Row],[2027/28 To - Spending review Topic 2]]+Dataset[[#This Row],[2027/28 To - Spending review Topic 3]]+Dataset[[#This Row],[2027/28 To - Spending review Topic 4]]+Dataset[[#This Row],[2027/28 To - Other reallocations]]","v":0},{"$f":"Dataset[[#This Row],[2028/29 To - Spending review Topic 1]]+Dataset[[#This Row],[2028/29 To - Spending review Topic 2]]+Dataset[[#This Row],[2028/29 To - Spending review Topic 3]]+Dataset[[#This Row],[2028/29 To - Spending review Topic 4]]+Dataset[[#This Row],[2028/29 To - Other reallocations]]","v":0},{"$f":"Dataset[[#This Row],[2029/30 To - Spending review Topic 1]]+Dataset[[#This Row],[2029/30 To - Spending review Topic 2]]+Dataset[[#This Row],[2029/30 To - Spending review Topic 3]]+Dataset[[#This Row],[2029/30 To - Spending review Topic 4]]+Dataset[[#This Row],[2029/30 To - Other reallocations]]","v":0},{"$f":"Dataset[[#This Row],[2027/28 Targeted savings]]+Dataset[[#This Row],[2027/28 From - Total]]","v":0},{"$f":"Dataset[[#This Row],[2028/29 Targeted savings]]+Dataset[[#This Row],[2028/29 From - Total]]","v":0},{"$f":"Dataset[[#This Row],[2029/30 Targeted savings]]+Dataset[[#This Row],[2029/30 From - Total]]","v":0},{"$f":"Dataset[[#This Row],[2026/27 Targeted savings]]","v":0},{"$f":"SUM(Dataset[[#This Row],[2027/28 Targeted savings]],Dataset[[#This Row],[2027/28 From - Total]],Dataset[[#This Row],[2027/28 To - Total]])","v":0},{"$f":"SUM(Dataset[[#This Row],[2028/29 Targeted savings]],Dataset[[#This Row],[2028/29 From - Total]],Dataset[[#This Row],[2028/29 To - Total]])","v":0},{"$f":"SUM(Dataset[[#This Row],[2029/30 Targeted savings]],Dataset[[#This Row],[2029/30 From - Total]],Dataset[[#This Row],[2029/30 To - Total]])","v":0},{"$f":"Dataset[[#This Row],[2026/27 Baseline]]+Dataset[[#This Row],[2026/27 Total change]]","v":0},{"$f":"Dataset[[#This Row],[2027/28 Baseline]]+Dataset[[#This Row],[2027/28 Total change]]","v":0},{"$f":"Dataset[[#This Row],[2028/29 Baseline]]+Dataset[[#This Row],[2028/29 Total change]]","v":0},{"$f":"Dataset[[#This Row],[2029/30 Baseline]]+Dataset[[#This Row],[2029/30 Total change]]","v":0}]
["NAT|Non-transfer item","30|Inventory: Medical supplies","2027_28","MTEC2027",30,1,2,32598,78,"30","01","02","032598","000078","30|01|02|000078","01","01","02","27","27","01|01|02|27|27","National","Communications and Digital Technologies","Administration","Departmental Management","Non-transfer item","Current","Current payments","Goods and services","Inventory: Medical supplies","Inventory: Medical supplies","Economic development","Economic regulation and infrastructure","NAT",0,0,0,0,0,0,0,0,0,0,0,null,null,null,null,null,null,null,null,null,null,null,null,null,null,null,null,null,null,null,null,null,null,null,null,null,null,null,null,null,null,null,null,null,null,{"$f":"Dataset[[#This Row],[2027/28 From - Spending review Topic 1]]+Dataset[[#This Row],[2027/28 From - Spending review Topic 2]]+Dataset[[#This Row],[2027/28 From - Spending review Topic 3]]+Dataset[[#This Row],[2027/28 From - Spending review Topic 4]]+Dataset[[#This Row],[2027/28 From - Other reallocations]]","v":0},{"$f":"Dataset[[#This Row],[2028/29 From - Spending review Topic 1]]+Dataset[[#This Row],[2028/29 From - Spending review Topic 2]]+Dataset[[#This Row],[2028/29 From - Spending review Topic 3]]+Dataset[[#This Row],[2028/29 From - Spending review Topic 4]]+Dataset[[#This Row],[2028/29 From - Other reallocations]]","v":0},{"$f":"Dataset[[#This Row],[2029/30 From - Spending review Topic 1]]+Dataset[[#This Row],[2029/30 From - Spending review Topic 2]]+Dataset[[#This Row],[2029/30 From - Spending review Topic 3]]+Dataset[[#This Row],[2029/30 From - Spending review Topic 4]]+Dataset[[#This Row],[2029/30 From - Other reallocations]]","v":0},{"$f":"Dataset[[#This Row],[2027/28 To - Spending review Topic 1]]+Dataset[[#This Row],[2027/28 To - Spending review Topic 2]]+Dataset[[#This Row],[2027/28 To - Spending review Topic 3]]+Dataset[[#This Row],[2027/28 To - Spending review Topic 4]]+Dataset[[#This Row],[2027/28 To - Other reallocations]]","v":0},{"$f":"Dataset[[#This Row],[2028/29 To - Spending review Topic 1]]+Dataset[[#This Row],[2028/29 To - Spending review Topic 2]]+Dataset[[#This Row],[2028/29 To - Spending review Topic 3]]+Dataset[[#This Row],[2028/29 To - Spending review Topic 4]]+Dataset[[#This Row],[2028/29 To - Other reallocations]]","v":0},{"$f":"Dataset[[#This Row],[2029/30 To - Spending review Topic 1]]+Dataset[[#This Row],[2029/30 To - Spending review Topic 2]]+Dataset[[#This Row],[2029/30 To - Spending review Topic 3]]+Dataset[[#This Row],[2029/30 To - Spending review Topic 4]]+Dataset[[#This Row],[2029/30 To - Other reallocations]]","v":0},{"$f":"Dataset[[#This Row],[2027/28 Targeted savings]]+Dataset[[#This Row],[2027/28 From - Total]]","v":0},{"$f":"Dataset[[#This Row],[2028/29 Targeted savings]]+Dataset[[#This Row],[2028/29 From - Total]]","v":0},{"$f":"Dataset[[#This Row],[2029/30 Targeted savings]]+Dataset[[#This Row],[2029/30 From - Total]]","v":0},{"$f":"Dataset[[#This Row],[2026/27 Targeted savings]]","v":0},{"$f":"SUM(Dataset[[#This Row],[2027/28 Targeted savings]],Dataset[[#This Row],[2027/28 From - Total]],Dataset[[#This Row],[2027/28 To - Total]])","v":0},{"$f":"SUM(Dataset[[#This Row],[2028/29 Targeted savings]],Dataset[[#This Row],[2028/29 From - Total]],Dataset[[#This Row],[2028/29 To - Total]])","v":0},{"$f":"SUM(Dataset[[#This Row],[2029/30 Targeted savings]],Dataset[[#This Row],[2029/30 From - Total]],Dataset[[#This Row],[2029/30 To - Total]])","v":0},{"$f":"Dataset[[#This Row],[2026/27 Baseline]]+Dataset[[#This Row],[2026/27 Total change]]","v":0},{"$f":"Dataset[[#This Row],[2027/28 Baseline]]+Dataset[[#This Row],[2027/28 Total change]]","v":0},{"$f":"Dataset[[#This Row],[2028/29 Baseline]]+Dataset[[#This Row],[2028/29 Total change]]","v":0},{"$f":"Dataset[[#This Row],[2029/30 Baseline]]+Dataset[[#This Row],[2029/30 Total change]]","v":0}]
["NAT|Non-transfer item","30|Inventory: Medicine","2027_28","MTEC2027",30,1,2,32599,79,"30","01","02","032599","000079","30|01|02|000079","01","01","02","28","28","01|01|02|28|28","National","Communications and Digital Technologies","Administration","Departmental Management","Non-transfer item","Current","Current payments","Goods and services","Inventory: Medicine","Inventory: Medicine","Economic development","Economic regulation and infrastructure","NAT",0,0,0,0,0,0,0,0,0,0,0,null,null,null,null,null,null,null,null,null,null,null,null,null,null,null,null,null,null,null,null,null,null,null,null,null,null,null,null,null,null,null,null,null,null,{"$f":"Dataset[[#This Row],[2027/28 From - Spending review Topic 1]]+Dataset[[#This Row],[2027/28 From - Spending review Topic 2]]+Dataset[[#This Row],[2027/28 From - Spending review Topic 3]]+Dataset[[#This Row],[2027/28 From - Spending review Topic 4]]+Dataset[[#This Row],[2027/28 From - Other reallocations]]","v":0},{"$f":"Dataset[[#This Row],[2028/29 From - Spending review Topic 1]]+Dataset[[#This Row],[2028/29 From - Spending review Topic 2]]+Dataset[[#This Row],[2028/29 From - Spending review Topic 3]]+Dataset[[#This Row],[2028/29 From - Spending review Topic 4]]+Dataset[[#This Row],[2028/29 From - Other reallocations]]","v":0},{"$f":"Dataset[[#This Row],[2029/30 From - Spending review Topic 1]]+Dataset[[#This Row],[2029/30 From - Spending review Topic 2]]+Dataset[[#This Row],[2029/30 From - Spending review Topic 3]]+Dataset[[#This Row],[2029/30 From - Spending review Topic 4]]+Dataset[[#This Row],[2029/30 From - Other reallocations]]","v":0},{"$f":"Dataset[[#This Row],[2027/28 To - Spending review Topic 1]]+Dataset[[#This Row],[2027/28 To - Spending review Topic 2]]+Dataset[[#This Row],[2027/28 To - Spending review Topic 3]]+Dataset[[#This Row],[2027/28 To - Spending review Topic 4]]+Dataset[[#This Row],[2027/28 To - Other reallocations]]","v":0},{"$f":"Dataset[[#This Row],[2028/29 To - Spending review Topic 1]]+Dataset[[#This Row],[2028/29 To - Spending review Topic 2]]+Dataset[[#This Row],[2028/29 To - Spending review Topic 3]]+Dataset[[#This Row],[2028/29 To - Spending review Topic 4]]+Dataset[[#This Row],[2028/29 To - Other reallocations]]","v":0},{"$f":"Dataset[[#This Row],[2029/30 To - Spending review Topic 1]]+Dataset[[#This Row],[2029/30 To - Spending review Topic 2]]+Dataset[[#This Row],[2029/30 To - Spending review Topic 3]]+Dataset[[#This Row],[2029/30 To - Spending review Topic 4]]+Dataset[[#This Row],[2029/30 To - Other reallocations]]","v":0},{"$f":"Dataset[[#This Row],[2027/28 Targeted savings]]+Dataset[[#This Row],[2027/28 From - Total]]","v":0},{"$f":"Dataset[[#This Row],[2028/29 Targeted savings]]+Dataset[[#This Row],[2028/29 From - Total]]","v":0},{"$f":"Dataset[[#This Row],[2029/30 Targeted savings]]+Dataset[[#This Row],[2029/30 From - Total]]","v":0},{"$f":"Dataset[[#This Row],[2026/27 Targeted savings]]","v":0},{"$f":"SUM(Dataset[[#This Row],[2027/28 Targeted savings]],Dataset[[#This Row],[2027/28 From - Total]],Dataset[[#This Row],[2027/28 To - Total]])","v":0},{"$f":"SUM(Dataset[[#This Row],[2028/29 Targeted savings]],Dataset[[#This Row],[2028/29 From - Total]],Dataset[[#This Row],[2028/29 To - Total]])","v":0},{"$f":"SUM(Dataset[[#This Row],[2029/30 Targeted savings]],Dataset[[#This Row],[2029/30 From - Total]],Dataset[[#This Row],[2029/30 To - Total]])","v":0},{"$f":"Dataset[[#This Row],[2026/27 Baseline]]+Dataset[[#This Row],[2026/27 Total change]]","v":0},{"$f":"Dataset[[#This Row],[2027/28 Baseline]]+Dataset[[#This Row],[2027/28 Total change]]","v":0},{"$f":"Dataset[[#This Row],[2028/29 Baseline]]+Dataset[[#This Row],[2028/29 Total change]]","v":0},{"$f":"Dataset[[#This Row],[2029/30 Baseline]]+Dataset[[#This Row],[2029/30 Total change]]","v":0}]
["NAT|Non-transfer item","30|Medsas inventory interface","2027_28","MTEC2027",30,1,2,32600,80,"30","01","02","032600","000080","30|01|02|000080","01","01","02","29","29","01|01|02|29|29","National","Communications and Digital Technologies","Administration","Departmental Management","Non-transfer item","Current","Current payments","Goods and services","Medsas inventory interface","Medsas inventory interface","Economic development","Economic regulation and infrastructure","NAT",0,0,0,0,0,0,0,0,0,0,0,null,null,null,null,null,null,null,null,null,null,null,null,null,null,null,null,null,null,null,null,null,null,null,null,null,null,null,null,null,null,null,null,null,null,{"$f":"Dataset[[#This Row],[2027/28 From - Spending review Topic 1]]+Dataset[[#This Row],[2027/28 From - Spending review Topic 2]]+Dataset[[#This Row],[2027/28 From - Spending review Topic 3]]+Dataset[[#This Row],[2027/28 From - Spending review Topic 4]]+Dataset[[#This Row],[2027/28 From - Other reallocations]]","v":0},{"$f":"Dataset[[#This Row],[2028/29 From - Spending review Topic 1]]+Dataset[[#This Row],[2028/29 From - Spending review Topic 2]]+Dataset[[#This Row],[2028/29 From - Spending review Topic 3]]+Dataset[[#This Row],[2028/29 From - Spending review Topic 4]]+Dataset[[#This Row],[2028/29 From - Other reallocations]]","v":0},{"$f":"Dataset[[#This Row],[2029/30 From - Spending review Topic 1]]+Dataset[[#This Row],[2029/30 From - Spending review Topic 2]]+Dataset[[#This Row],[2029/30 From - Spending review Topic 3]]+Dataset[[#This Row],[2029/30 From - Spending review Topic 4]]+Dataset[[#This Row],[2029/30 From - Other reallocations]]","v":0},{"$f":"Dataset[[#This Row],[2027/28 To - Spending review Topic 1]]+Dataset[[#This Row],[2027/28 To - Spending review Topic 2]]+Dataset[[#This Row],[2027/28 To - Spending review Topic 3]]+Dataset[[#This Row],[2027/28 To - Spending review Topic 4]]+Dataset[[#This Row],[2027/28 To - Other reallocations]]","v":0},{"$f":"Dataset[[#This Row],[2028/29 To - Spending review Topic 1]]+Dataset[[#This Row],[2028/29 To - Spending review Topic 2]]+Dataset[[#This Row],[2028/29 To - Spending review Topic 3]]+Dataset[[#This Row],[2028/29 To - Spending review Topic 4]]+Dataset[[#This Row],[2028/29 To - Other reallocations]]","v":0},{"$f":"Dataset[[#This Row],[2029/30 To - Spending review Topic 1]]+Dataset[[#This Row],[2029/30 To - Spending review Topic 2]]+Dataset[[#This Row],[2029/30 To - Spending review Topic 3]]+Dataset[[#This Row],[2029/30 To - Spending review Topic 4]]+Dataset[[#This Row],[2029/30 To - Other reallocations]]","v":0},{"$f":"Dataset[[#This Row],[2027/28 Targeted savings]]+Dataset[[#This Row],[2027/28 From - Total]]","v":0},{"$f":"Dataset[[#This Row],[2028/29 Targeted savings]]+Dataset[[#This Row],[2028/29 From - Total]]","v":0},{"$f":"Dataset[[#This Row],[2029/30 Targeted savings]]+Dataset[[#This Row],[2029/30 From - Total]]","v":0},{"$f":"Dataset[[#This Row],[2026/27 Targeted savings]]","v":0},{"$f":"SUM(Dataset[[#This Row],[2027/28 Targeted savings]],Dataset[[#This Row],[2027/28 From - Total]],Dataset[[#This Row],[2027/28 To - Total]])","v":0},{"$f":"SUM(Dataset[[#This Row],[2028/29 Targeted savings]],Dataset[[#This Row],[2028/29 From - Total]],Dataset[[#This Row],[2028/29 To - Total]])","v":0},{"$f":"SUM(Dataset[[#This Row],[2029/30 Targeted savings]],Dataset[[#This Row],[2029/30 From - Total]],Dataset[[#This Row],[2029/30 To - Total]])","v":0},{"$f":"Dataset[[#This Row],[2026/27 Baseline]]+Dataset[[#This Row],[2026/27 Total change]]","v":0},{"$f":"Dataset[[#This Row],[2027/28 Baseline]]+Dataset[[#This Row],[2027/28 Total change]]","v":0},{"$f":"Dataset[[#This Row],[2028/29 Baseline]]+Dataset[[#This Row],[2028/29 Total change]]","v":0},{"$f":"Dataset[[#This Row],[2029/30 Baseline]]+Dataset[[#This Row],[2029/30 Total change]]","v":0}]
["NAT|Non-transfer item","30|Inventory: Other supplies","2027_28","MTEC2027",30,1,2,32601,81,"30","01","02","032601","000081","30|01|02|000081","01","01","02","30","30","01|01|02|30|30","National","Communications and Digital Technologies","Administration","Departmental Management","Non-transfer item","Current","Current payments","Goods and services","Inventory: Other supplies","Inventory: Other supplies","Economic development","Economic regulation and infrastructure","NAT",0,0,0,0,0,0,0,0,0,0,0,null,null,null,null,null,null,null,null,null,null,null,null,null,null,null,null,null,null,null,null,null,null,null,null,null,null,null,null,null,null,null,null,null,null,{"$f":"Dataset[[#This Row],[2027/28 From - Spending review Topic 1]]+Dataset[[#This Row],[2027/28 From - Spending review Topic 2]]+Dataset[[#This Row],[2027/28 From - Spending review Topic 3]]+Dataset[[#This Row],[2027/28 From - Spending review Topic 4]]+Dataset[[#This Row],[2027/28 From - Other reallocations]]","v":0},{"$f":"Dataset[[#This Row],[2028/29 From - Spending review Topic 1]]+Dataset[[#This Row],[2028/29 From - Spending review Topic 2]]+Dataset[[#This Row],[2028/29 From - Spending review Topic 3]]+Dataset[[#This Row],[2028/29 From - Spending review Topic 4]]+Dataset[[#This Row],[2028/29 From - Other reallocations]]","v":0},{"$f":"Dataset[[#This Row],[2029/30 From - Spending review Topic 1]]+Dataset[[#This Row],[2029/30 From - Spending review Topic 2]]+Dataset[[#This Row],[2029/30 From - Spending review Topic 3]]+Dataset[[#This Row],[2029/30 From - Spending review Topic 4]]+Dataset[[#This Row],[2029/30 From - Other reallocations]]","v":0},{"$f":"Dataset[[#This Row],[2027/28 To - Spending review Topic 1]]+Dataset[[#This Row],[2027/28 To - Spending review Topic 2]]+Dataset[[#This Row],[2027/28 To - Spending review Topic 3]]+Dataset[[#This Row],[2027/28 To - Spending review Topic 4]]+Dataset[[#This Row],[2027/28 To - Other reallocations]]","v":0},{"$f":"Dataset[[#This Row],[2028/29 To - Spending review Topic 1]]+Dataset[[#This Row],[2028/29 To - Spending review Topic 2]]+Dataset[[#This Row],[2028/29 To - Spending review Topic 3]]+Dataset[[#This Row],[2028/29 To - Spending review Topic 4]]+Dataset[[#This Row],[2028/29 To - Other reallocations]]","v":0},{"$f":"Dataset[[#This Row],[2029/30 To - Spending review Topic 1]]+Dataset[[#This Row],[2029/30 To - Spending review Topic 2]]+Dataset[[#This Row],[2029/30 To - Spending review Topic 3]]+Dataset[[#This Row],[2029/30 To - Spending review Topic 4]]+Dataset[[#This Row],[2029/30 To - Other reallocations]]","v":0},{"$f":"Dataset[[#This Row],[2027/28 Targeted savings]]+Dataset[[#This Row],[2027/28 From - Total]]","v":0},{"$f":"Dataset[[#This Row],[2028/29 Targeted savings]]+Dataset[[#This Row],[2028/29 From - Total]]","v":0},{"$f":"Dataset[[#This Row],[2029/30 Targeted savings]]+Dataset[[#This Row],[2029/30 From - Total]]","v":0},{"$f":"Dataset[[#This Row],[2026/27 Targeted savings]]","v":0},{"$f":"SUM(Dataset[[#This Row],[2027/28 Targeted savings]],Dataset[[#This Row],[2027/28 From - Total]],Dataset[[#This Row],[2027/28 To - Total]])","v":0},{"$f":"SUM(Dataset[[#This Row],[2028/29 Targeted savings]],Dataset[[#This Row],[2028/29 From - Total]],Dataset[[#This Row],[2028/29 To - Total]])","v":0},{"$f":"SUM(Dataset[[#This Row],[2029/30 Targeted savings]],Dataset[[#This Row],[2029/30 From - Total]],Dataset[[#This Row],[2029/30 To - Total]])","v":0},{"$f":"Dataset[[#This Row],[2026/27 Baseline]]+Dataset[[#This Row],[2026/27 Total change]]","v":0},{"$f":"Dataset[[#This Row],[2027/28 Baseline]]+Dataset[[#This Row],[2027/28 Total change]]","v":0},{"$f":"Dataset[[#This Row],[2028/29 Baseline]]+Dataset[[#This Row],[2028/29 Total change]]","v":0},{"$f":"Dataset[[#This Row],[2029/30 Baseline]]+Dataset[[#This Row],[2029/30 Total change]]","v":0}]
["NAT|Non-transfer","30|Consumable supplies","2027_28","MTEC2027",30,1,2,32602,82,"30","01","02","032602","000082","30|01|02|000082","01","01","02","31","31","01|01|02|31|31","National","Communications and Digital Technologies","Administration","Departmental Management","Non-transfer","Current","Current payments","Goods and services","Consumable supplies","Consumable supplies","Economic development","Economic regulation and infrastructure","NAT",79,66,48,240,240,240,24,94,300,309,318,null,null,null,null,null,null,null,null,null,null,null,null,null,null,null,null,null,null,null,null,null,null,null,null,null,null,null,null,null,null,null,null,null,null,{"$f":"Dataset[[#This Row],[2027/28 From - Spending review Topic 1]]+Dataset[[#This Row],[2027/28 From - Spending review Topic 2]]+Dataset[[#This Row],[2027/28 From - Spending review Topic 3]]+Dataset[[#This Row],[2027/28 From - Spending review Topic 4]]+Dataset[[#This Row],[2027/28 From - Other reallocations]]","v":0},{"$f":"Dataset[[#This Row],[2028/29 From - Spending review Topic 1]]+Dataset[[#This Row],[2028/29 From - Spending review Topic 2]]+Dataset[[#This Row],[2028/29 From - Spending review Topic 3]]+Dataset[[#This Row],[2028/29 From - Spending review Topic 4]]+Dataset[[#This Row],[2028/29 From - Other reallocations]]","v":0},{"$f":"Dataset[[#This Row],[2029/30 From - Spending review Topic 1]]+Dataset[[#This Row],[2029/30 From - Spending review Topic 2]]+Dataset[[#This Row],[2029/30 From - Spending review Topic 3]]+Dataset[[#This Row],[2029/30 From - Spending review Topic 4]]+Dataset[[#This Row],[2029/30 From - Other reallocations]]","v":0},{"$f":"Dataset[[#This Row],[2027/28 To - Spending review Topic 1]]+Dataset[[#This Row],[2027/28 To - Spending review Topic 2]]+Dataset[[#This Row],[2027/28 To - Spending review Topic 3]]+Dataset[[#This Row],[2027/28 To - Spending review Topic 4]]+Dataset[[#This Row],[2027/28 To - Other reallocations]]","v":0},{"$f":"Dataset[[#This Row],[2028/29 To - Spending review Topic 1]]+Dataset[[#This Row],[2028/29 To - Spending review Topic 2]]+Dataset[[#This Row],[2028/29 To - Spending review Topic 3]]+Dataset[[#This Row],[2028/29 To - Spending review Topic 4]]+Dataset[[#This Row],[2028/29 To - Other reallocations]]","v":0},{"$f":"Dataset[[#This Row],[2029/30 To - Spending review Topic 1]]+Dataset[[#This Row],[2029/30 To - Spending review Topic 2]]+Dataset[[#This Row],[2029/30 To - Spending review Topic 3]]+Dataset[[#This Row],[2029/30 To - Spending review Topic 4]]+Dataset[[#This Row],[2029/30 To - Other reallocations]]","v":0},{"$f":"Dataset[[#This Row],[2027/28 Targeted savings]]+Dataset[[#This Row],[2027/28 From - Total]]","v":0},{"$f":"Dataset[[#This Row],[2028/29 Targeted savings]]+Dataset[[#This Row],[2028/29 From - Total]]","v":0},{"$f":"Dataset[[#This Row],[2029/30 Targeted savings]]+Dataset[[#This Row],[2029/30 From - Total]]","v":0},{"$f":"Dataset[[#This Row],[2026/27 Targeted savings]]","v":0},{"$f":"SUM(Dataset[[#This Row],[2027/28 Targeted savings]],Dataset[[#This Row],[2027/28 From - Total]],Dataset[[#This Row],[2027/28 To - Total]])","v":0},{"$f":"SUM(Dataset[[#This Row],[2028/29 Targeted savings]],Dataset[[#This Row],[2028/29 From - Total]],Dataset[[#This Row],[2028/29 To - Total]])","v":0},{"$f":"SUM(Dataset[[#This Row],[2029/30 Targeted savings]],Dataset[[#This Row],[2029/30 From - Total]],Dataset[[#This Row],[2029/30 To - Total]])","v":0},{"$f":"Dataset[[#This Row],[2026/27 Baseline]]+Dataset[[#This Row],[2026/27 Total change]]","v":94},{"$f":"Dataset[[#This Row],[2027/28 Baseline]]+Dataset[[#This Row],[2027/28 Total change]]","v":300},{"$f":"Dataset[[#This Row],[2028/29 Baseline]]+Dataset[[#This Row],[2028/29 Total change]]","v":309},{"$f":"Dataset[[#This Row],[2029/30 Baseline]]+Dataset[[#This Row],[2029/30 Total change]]","v":318}]
["NAT|Non-transfer","30|Consumables: Stationery, printing and office supplies","2027_28","MTEC2027",30,1,2,32603,83,"30","01","02","032603","000083","30|01|02|000083","01","01","02","32","32","01|01|02|32|32","National","Communications and Digital Technologies","Administration","Departmental Management","Non-transfer","Current","Current payments","Goods and services","Consumables: Stationery, printing and office supplies","Consumables: Stationery, printing and office supplies","Economic development","Economic regulation and infrastructure","NAT",138,157,218,434,434,434,79,325,369,381,392,null,null,null,null,null,null,null,null,null,null,null,null,null,null,null,null,null,null,null,null,null,null,null,null,null,null,null,null,null,null,null,null,null,null,{"$f":"Dataset[[#This Row],[2027/28 From - Spending review Topic 1]]+Dataset[[#This Row],[2027/28 From - Spending review Topic 2]]+Dataset[[#This Row],[2027/28 From - Spending review Topic 3]]+Dataset[[#This Row],[2027/28 From - Spending review Topic 4]]+Dataset[[#This Row],[2027/28 From - Other reallocations]]","v":0},{"$f":"Dataset[[#This Row],[2028/29 From - Spending review Topic 1]]+Dataset[[#This Row],[2028/29 From - Spending review Topic 2]]+Dataset[[#This Row],[2028/29 From - Spending review Topic 3]]+Dataset[[#This Row],[2028/29 From - Spending review Topic 4]]+Dataset[[#This Row],[2028/29 From - Other reallocations]]","v":0},{"$f":"Dataset[[#This Row],[2029/30 From - Spending review Topic 1]]+Dataset[[#This Row],[2029/30 From - Spending review Topic 2]]+Dataset[[#This Row],[2029/30 From - Spending review Topic 3]]+Dataset[[#This Row],[2029/30 From - Spending review Topic 4]]+Dataset[[#This Row],[2029/30 From - Other reallocations]]","v":0},{"$f":"Dataset[[#This Row],[2027/28 To - Spending review Topic 1]]+Dataset[[#This Row],[2027/28 To - Spending review Topic 2]]+Dataset[[#This Row],[2027/28 To - Spending review Topic 3]]+Dataset[[#This Row],[2027/28 To - Spending review Topic 4]]+Dataset[[#This Row],[2027/28 To - Other reallocations]]","v":0},{"$f":"Dataset[[#This Row],[2028/29 To - Spending review Topic 1]]+Dataset[[#This Row],[2028/29 To - Spending review Topic 2]]+Dataset[[#This Row],[2028/29 To - Spending review Topic 3]]+Dataset[[#This Row],[2028/29 To - Spending review Topic 4]]+Dataset[[#This Row],[2028/29 To - Other reallocations]]","v":0},{"$f":"Dataset[[#This Row],[2029/30 To - Spending review Topic 1]]+Dataset[[#This Row],[2029/30 To - Spending review Topic 2]]+Dataset[[#This Row],[2029/30 To - Spending review Topic 3]]+Dataset[[#This Row],[2029/30 To - Spending review Topic 4]]+Dataset[[#This Row],[2029/30 To - Other reallocations]]","v":0},{"$f":"Dataset[[#This Row],[2027/28 Targeted savings]]+Dataset[[#This Row],[2027/28 From - Total]]","v":0},{"$f":"Dataset[[#This Row],[2028/29 Targeted savings]]+Dataset[[#This Row],[2028/29 From - Total]]","v":0},{"$f":"Dataset[[#This Row],[2029/30 Targeted savings]]+Dataset[[#This Row],[2029/30 From - Total]]","v":0},{"$f":"Dataset[[#This Row],[2026/27 Targeted savings]]","v":0},{"$f":"SUM(Dataset[[#This Row],[2027/28 Targeted savings]],Dataset[[#This Row],[2027/28 From - Total]],Dataset[[#This Row],[2027/28 To - Total]])","v":0},{"$f":"SUM(Dataset[[#This Row],[2028/29 Targeted savings]],Dataset[[#This Row],[2028/29 From - Total]],Dataset[[#This Row],[2028/29 To - Total]])","v":0},{"$f":"SUM(Dataset[[#This Row],[2029/30 Targeted savings]],Dataset[[#This Row],[2029/30 From - Total]],Dataset[[#This Row],[2029/30 To - Total]])","v":0},{"$f":"Dataset[[#This Row],[2026/27 Baseline]]+Dataset[[#This Row],[2026/27 Total change]]","v":325},{"$f":"Dataset[[#This Row],[2027/28 Baseline]]+Dataset[[#This Row],[2027/28 Total change]]","v":369},{"$f":"Dataset[[#This Row],[2028/29 Baseline]]+Dataset[[#This Row],[2028/29 Total change]]","v":381},{"$f":"Dataset[[#This Row],[2029/30 Baseline]]+Dataset[[#This Row],[2029/30 Total change]]","v":392}]
["NAT|Non-transfer","30|Operating leases","2027_28","MTEC2027",30,1,2,32604,84,"30","01","02","032604","000084","30|01|02|000084","01","01","02","33","33","01|01|02|33|33","National","Communications and Digital Technologies","Administration","Departmental Management","Non-transfer","Current","Current payments","Goods and services","Operating leases","Operating leases","Economic development","Economic regulation and infrastructure","NAT",108,425,445,590,590,590,425,589,363,375,386,null,null,null,null,null,null,null,null,null,null,null,null,null,null,null,null,null,null,null,null,null,null,null,null,null,null,null,null,null,null,null,null,null,null,{"$f":"Dataset[[#This Row],[2027/28 From - Spending review Topic 1]]+Dataset[[#This Row],[2027/28 From - Spending review Topic 2]]+Dataset[[#This Row],[2027/28 From - Spending review Topic 3]]+Dataset[[#This Row],[2027/28 From - Spending review Topic 4]]+Dataset[[#This Row],[2027/28 From - Other reallocations]]","v":0},{"$f":"Dataset[[#This Row],[2028/29 From - Spending review Topic 1]]+Dataset[[#This Row],[2028/29 From - Spending review Topic 2]]+Dataset[[#This Row],[2028/29 From - Spending review Topic 3]]+Dataset[[#This Row],[2028/29 From - Spending review Topic 4]]+Dataset[[#This Row],[2028/29 From - Other reallocations]]","v":0},{"$f":"Dataset[[#This Row],[2029/30 From - Spending review Topic 1]]+Dataset[[#This Row],[2029/30 From - Spending review Topic 2]]+Dataset[[#This Row],[2029/30 From - Spending review Topic 3]]+Dataset[[#This Row],[2029/30 From - Spending review Topic 4]]+Dataset[[#This Row],[2029/30 From - Other reallocations]]","v":0},{"$f":"Dataset[[#This Row],[2027/28 To - Spending review Topic 1]]+Dataset[[#This Row],[2027/28 To - Spending review Topic 2]]+Dataset[[#This Row],[2027/28 To - Spending review Topic 3]]+Dataset[[#This Row],[2027/28 To - Spending review Topic 4]]+Dataset[[#This Row],[2027/28 To - Other reallocations]]","v":0},{"$f":"Dataset[[#This Row],[2028/29 To - Spending review Topic 1]]+Dataset[[#This Row],[2028/29 To - Spending review Topic 2]]+Dataset[[#This Row],[2028/29 To - Spending review Topic 3]]+Dataset[[#This Row],[2028/29 To - Spending review Topic 4]]+Dataset[[#This Row],[2028/29 To - Other reallocations]]","v":0},{"$f":"Dataset[[#This Row],[2029/30 To - Spending review Topic 1]]+Dataset[[#This Row],[2029/30 To - Spending review Topic 2]]+Dataset[[#This Row],[2029/30 To - Spending review Topic 3]]+Dataset[[#This Row],[2029/30 To - Spending review Topic 4]]+Dataset[[#This Row],[2029/30 To - Other reallocations]]","v":0},{"$f":"Dataset[[#This Row],[2027/28 Targeted savings]]+Dataset[[#This Row],[2027/28 From - Total]]","v":0},{"$f":"Dataset[[#This Row],[2028/29 Targeted savings]]+Dataset[[#This Row],[2028/29 From - Total]]","v":0},{"$f":"Dataset[[#This Row],[2029/30 Targeted savings]]+Dataset[[#This Row],[2029/30 From - Total]]","v":0},{"$f":"Dataset[[#This Row],[2026/27 Targeted savings]]","v":0},{"$f":"SUM(Dataset[[#This Row],[2027/28 Targeted savings]],Dataset[[#This Row],[2027/28 From - Total]],Dataset[[#This Row],[2027/28 To - Total]])","v":0},{"$f":"SUM(Dataset[[#This Row],[2028/29 Targeted savings]],Dataset[[#This Row],[2028/29 From - Total]],Dataset[[#This Row],[2028/29 To - Total]])","v":0},{"$f":"SUM(Dataset[[#This Row],[2029/30 Targeted savings]],Dataset[[#This Row],[2029/30 From - Total]],Dataset[[#This Row],[2029/30 To - Total]])","v":0},{"$f":"Dataset[[#This Row],[2026/27 Baseline]]+Dataset[[#This Row],[2026/27 Total change]]","v":589},{"$f":"Dataset[[#This Row],[2027/28 Baseline]]+Dataset[[#This Row],[2027/28 Total change]]","v":363},{"$f":"Dataset[[#This Row],[2028/29 Baseline]]+Dataset[[#This Row],[2028/29 Total change]]","v":375},{"$f":"Dataset[[#This Row],[2029/30 Baseline]]+Dataset[[#This Row],[2029/30 Total change]]","v":386}]
["NAT|Non-transfer item","30|Rental and hiring","2027_28","MTEC2027",30,1,2,32605,85,"30","01","02","032605","000085","30|01|02|000085","01","01","02","34","34","01|01|02|34|34","National","Communications and Digital Technologies","Administration","Departmental Management","Non-transfer item","Current","Current payments","Goods and services","Rental and hiring","Rental and hiring","Economic development","Economic regulation and infrastructure","NAT",0,0,0,0,0,0,0,0,0,0,0,null,null,null,null,null,null,null,null,null,null,null,null,null,null,null,null,null,null,null,null,null,null,null,null,null,null,null,null,null,null,null,null,null,null,{"$f":"Dataset[[#This Row],[2027/28 From - Spending review Topic 1]]+Dataset[[#This Row],[2027/28 From - Spending review Topic 2]]+Dataset[[#This Row],[2027/28 From - Spending review Topic 3]]+Dataset[[#This Row],[2027/28 From - Spending review Topic 4]]+Dataset[[#This Row],[2027/28 From - Other reallocations]]","v":0},{"$f":"Dataset[[#This Row],[2028/29 From - Spending review Topic 1]]+Dataset[[#This Row],[2028/29 From - Spending review Topic 2]]+Dataset[[#This Row],[2028/29 From - Spending review Topic 3]]+Dataset[[#This Row],[2028/29 From - Spending review Topic 4]]+Dataset[[#This Row],[2028/29 From - Other reallocations]]","v":0},{"$f":"Dataset[[#This Row],[2029/30 From - Spending review Topic 1]]+Dataset[[#This Row],[2029/30 From - Spending review Topic 2]]+Dataset[[#This Row],[2029/30 From - Spending review Topic 3]]+Dataset[[#This Row],[2029/30 From - Spending review Topic 4]]+Dataset[[#This Row],[2029/30 From - Other reallocations]]","v":0},{"$f":"Dataset[[#This Row],[2027/28 To - Spending review Topic 1]]+Dataset[[#This Row],[2027/28 To - Spending review Topic 2]]+Dataset[[#This Row],[2027/28 To - Spending review Topic 3]]+Dataset[[#This Row],[2027/28 To - Spending review Topic 4]]+Dataset[[#This Row],[2027/28 To - Other reallocations]]","v":0},{"$f":"Dataset[[#This Row],[2028/29 To - Spending review Topic 1]]+Dataset[[#This Row],[2028/29 To - Spending review Topic 2]]+Dataset[[#This Row],[2028/29 To - Spending review Topic 3]]+Dataset[[#This Row],[2028/29 To - Spending review Topic 4]]+Dataset[[#This Row],[2028/29 To - Other reallocations]]","v":0},{"$f":"Dataset[[#This Row],[2029/30 To - Spending review Topic 1]]+Dataset[[#This Row],[2029/30 To - Spending review Topic 2]]+Dataset[[#This Row],[2029/30 To - Spending review Topic 3]]+Dataset[[#This Row],[2029/30 To - Spending review Topic 4]]+Dataset[[#This Row],[2029/30 To - Other reallocations]]","v":0},{"$f":"Dataset[[#This Row],[2027/28 Targeted savings]]+Dataset[[#This Row],[2027/28 From - Total]]","v":0},{"$f":"Dataset[[#This Row],[2028/29 Targeted savings]]+Dataset[[#This Row],[2028/29 From - Total]]","v":0},{"$f":"Dataset[[#This Row],[2029/30 Targeted savings]]+Dataset[[#This Row],[2029/30 From - Total]]","v":0},{"$f":"Dataset[[#This Row],[2026/27 Targeted savings]]","v":0},{"$f":"SUM(Dataset[[#This Row],[2027/28 Targeted savings]],Dataset[[#This Row],[2027/28 From - Total]],Dataset[[#This Row],[2027/28 To - Total]])","v":0},{"$f":"SUM(Dataset[[#This Row],[2028/29 Targeted savings]],Dataset[[#This Row],[2028/29 From - Total]],Dataset[[#This Row],[2028/29 To - Total]])","v":0},{"$f":"SUM(Dataset[[#This Row],[2029/30 Targeted savings]],Dataset[[#This Row],[2029/30 From - Total]],Dataset[[#This Row],[2029/30 To - Total]])","v":0},{"$f":"Dataset[[#This Row],[2026/27 Baseline]]+Dataset[[#This Row],[2026/27 Total change]]","v":0},{"$f":"Dataset[[#This Row],[2027/28 Baseline]]+Dataset[[#This Row],[2027/28 Total change]]","v":0},{"$f":"Dataset[[#This Row],[2028/29 Baseline]]+Dataset[[#This Row],[2028/29 Total change]]","v":0},{"$f":"Dataset[[#This Row],[2029/30 Baseline]]+Dataset[[#This Row],[2029/30 Total change]]","v":0}]
["NAT|Non-transfer","30|Property payments","2027_28","MTEC2027",30,1,2,32606,86,"30","01","02","032606","000086","30|01|02|000086","01","01","02","35","35","01|01|02|35|35","National","Communications and Digital Technologies","Administration","Departmental Management","Non-transfer","Current","Current payments","Goods and services","Property payments","Property payments","Economic development","Economic regulation and infrastructure","NAT",550,6,0,0,0,0,0,0,0,0,0,null,null,null,null,null,null,null,null,null,null,null,null,null,null,null,null,null,null,null,null,null,null,null,null,null,null,null,null,null,null,null,null,null,null,{"$f":"Dataset[[#This Row],[2027/28 From - Spending review Topic 1]]+Dataset[[#This Row],[2027/28 From - Spending review Topic 2]]+Dataset[[#This Row],[2027/28 From - Spending review Topic 3]]+Dataset[[#This Row],[2027/28 From - Spending review Topic 4]]+Dataset[[#This Row],[2027/28 From - Other reallocations]]","v":0},{"$f":"Dataset[[#This Row],[2028/29 From - Spending review Topic 1]]+Dataset[[#This Row],[2028/29 From - Spending review Topic 2]]+Dataset[[#This Row],[2028/29 From - Spending review Topic 3]]+Dataset[[#This Row],[2028/29 From - Spending review Topic 4]]+Dataset[[#This Row],[2028/29 From - Other reallocations]]","v":0},{"$f":"Dataset[[#This Row],[2029/30 From - Spending review Topic 1]]+Dataset[[#This Row],[2029/30 From - Spending review Topic 2]]+Dataset[[#This Row],[2029/30 From - Spending review Topic 3]]+Dataset[[#This Row],[2029/30 From - Spending review Topic 4]]+Dataset[[#This Row],[2029/30 From - Other reallocations]]","v":0},{"$f":"Dataset[[#This Row],[2027/28 To - Spending review Topic 1]]+Dataset[[#This Row],[2027/28 To - Spending review Topic 2]]+Dataset[[#This Row],[2027/28 To - Spending review Topic 3]]+Dataset[[#This Row],[2027/28 To - Spending review Topic 4]]+Dataset[[#This Row],[2027/28 To - Other reallocations]]","v":0},{"$f":"Dataset[[#This Row],[2028/29 To - Spending review Topic 1]]+Dataset[[#This Row],[2028/29 To - Spending review Topic 2]]+Dataset[[#This Row],[2028/29 To - Spending review Topic 3]]+Dataset[[#This Row],[2028/29 To - Spending review Topic 4]]+Dataset[[#This Row],[2028/29 To - Other reallocations]]","v":0},{"$f":"Dataset[[#This Row],[2029/30 To - Spending review Topic 1]]+Dataset[[#This Row],[2029/30 To - Spending review Topic 2]]+Dataset[[#This Row],[2029/30 To - Spending review Topic 3]]+Dataset[[#This Row],[2029/30 To - Spending review Topic 4]]+Dataset[[#This Row],[2029/30 To - Other reallocations]]","v":0},{"$f":"Dataset[[#This Row],[2027/28 Targeted savings]]+Dataset[[#This Row],[2027/28 From - Total]]","v":0},{"$f":"Dataset[[#This Row],[2028/29 Targeted savings]]+Dataset[[#This Row],[2028/29 From - Total]]","v":0},{"$f":"Dataset[[#This Row],[2029/30 Targeted savings]]+Dataset[[#This Row],[2029/30 From - Total]]","v":0},{"$f":"Dataset[[#This Row],[2026/27 Targeted savings]]","v":0},{"$f":"SUM(Dataset[[#This Row],[2027/28 Targeted savings]],Dataset[[#This Row],[2027/28 From - Total]],Dataset[[#This Row],[2027/28 To - Total]])","v":0},{"$f":"SUM(Dataset[[#This Row],[2028/29 Targeted savings]],Dataset[[#This Row],[2028/29 From - Total]],Dataset[[#This Row],[2028/29 To - Total]])","v":0},{"$f":"SUM(Dataset[[#This Row],[2029/30 Targeted savings]],Dataset[[#This Row],[2029/30 From - Total]],Dataset[[#This Row],[2029/30 To - Total]])","v":0},{"$f":"Dataset[[#This Row],[2026/27 Baseline]]+Dataset[[#This Row],[2026/27 Total change]]","v":0},{"$f":"Dataset[[#This Row],[2027/28 Baseline]]+Dataset[[#This Row],[2027/28 Total change]]","v":0},{"$f":"Dataset[[#This Row],[2028/29 Baseline]]+Dataset[[#This Row],[2028/29 Total change]]","v":0},{"$f":"Dataset[[#This Row],[2029/30 Baseline]]+Dataset[[#This Row],[2029/30 Total change]]","v":0}]
["NAT|Non-transfer item","30|Transport provided: Departmental activity","2027_28","MTEC2027",30,1,2,32607,87,"30","01","02","032607","000087","30|01|02|000087","01","01","02","36","36","01|01|02|36|36","National","Communications and Digital Technologies","Administration","Departmental Management","Non-transfer item","Current","Current payments","Goods and services","Transport provided: Departmental activity","Transport provided: Departmental activity","Economic development","Economic regulation and infrastructure","NAT",0,0,0,0,0,0,0,0,0,0,0,null,null,null,null,null,null,null,null,null,null,null,null,null,null,null,null,null,null,null,null,null,null,null,null,null,null,null,null,null,null,null,null,null,null,{"$f":"Dataset[[#This Row],[2027/28 From - Spending review Topic 1]]+Dataset[[#This Row],[2027/28 From - Spending review Topic 2]]+Dataset[[#This Row],[2027/28 From - Spending review Topic 3]]+Dataset[[#This Row],[2027/28 From - Spending review Topic 4]]+Dataset[[#This Row],[2027/28 From - Other reallocations]]","v":0},{"$f":"Dataset[[#This Row],[2028/29 From - Spending review Topic 1]]+Dataset[[#This Row],[2028/29 From - Spending review Topic 2]]+Dataset[[#This Row],[2028/29 From - Spending review Topic 3]]+Dataset[[#This Row],[2028/29 From - Spending review Topic 4]]+Dataset[[#This Row],[2028/29 From - Other reallocations]]","v":0},{"$f":"Dataset[[#This Row],[2029/30 From - Spending review Topic 1]]+Dataset[[#This Row],[2029/30 From - Spending review Topic 2]]+Dataset[[#This Row],[2029/30 From - Spending review Topic 3]]+Dataset[[#This Row],[2029/30 From - Spending review Topic 4]]+Dataset[[#This Row],[2029/30 From - Other reallocations]]","v":0},{"$f":"Dataset[[#This Row],[2027/28 To - Spending review Topic 1]]+Dataset[[#This Row],[2027/28 To - Spending review Topic 2]]+Dataset[[#This Row],[2027/28 To - Spending review Topic 3]]+Dataset[[#This Row],[2027/28 To - Spending review Topic 4]]+Dataset[[#This Row],[2027/28 To - Other reallocations]]","v":0},{"$f":"Dataset[[#This Row],[2028/29 To - Spending review Topic 1]]+Dataset[[#This Row],[2028/29 To - Spending review Topic 2]]+Dataset[[#This Row],[2028/29 To - Spending review Topic 3]]+Dataset[[#This Row],[2028/29 To - Spending review Topic 4]]+Dataset[[#This Row],[2028/29 To - Other reallocations]]","v":0},{"$f":"Dataset[[#This Row],[2029/30 To - Spending review Topic 1]]+Dataset[[#This Row],[2029/30 To - Spending review Topic 2]]+Dataset[[#This Row],[2029/30 To - Spending review Topic 3]]+Dataset[[#This Row],[2029/30 To - Spending review Topic 4]]+Dataset[[#This Row],[2029/30 To - Other reallocations]]","v":0},{"$f":"Dataset[[#This Row],[2027/28 Targeted savings]]+Dataset[[#This Row],[2027/28 From - Total]]","v":0},{"$f":"Dataset[[#This Row],[2028/29 Targeted savings]]+Dataset[[#This Row],[2028/29 From - Total]]","v":0},{"$f":"Dataset[[#This Row],[2029/30 Targeted savings]]+Dataset[[#This Row],[2029/30 From - Total]]","v":0},{"$f":"Dataset[[#This Row],[2026/27 Targeted savings]]","v":0},{"$f":"SUM(Dataset[[#This Row],[2027/28 Targeted savings]],Dataset[[#This Row],[2027/28 From - Total]],Dataset[[#This Row],[2027/28 To - Total]])","v":0},{"$f":"SUM(Dataset[[#This Row],[2028/29 Targeted savings]],Dataset[[#This Row],[2028/29 From - Total]],Dataset[[#This Row],[2028/29 To - Total]])","v":0},{"$f":"SUM(Dataset[[#This Row],[2029/30 Targeted savings]],Dataset[[#This Row],[2029/30 From - Total]],Dataset[[#This Row],[2029/30 To - Total]])","v":0},{"$f":"Dataset[[#This Row],[2026/27 Baseline]]+Dataset[[#This Row],[2026/27 Total change]]","v":0},{"$f":"Dataset[[#This Row],[2027/28 Baseline]]+Dataset[[#This Row],[2027/28 Total change]]","v":0},{"$f":"Dataset[[#This Row],[2028/29 Baseline]]+Dataset[[#This Row],[2028/29 Total change]]","v":0},{"$f":"Dataset[[#This Row],[2029/30 Baseline]]+Dataset[[#This Row],[2029/30 Total change]]","v":0}]
["NAT|Non-transfer","30|Travel and subsistence","2027_28","MTEC2027",30,1,2,32608,88,"30","01","02","032608","000088","30|01|02|000088","01","01","02","37","37","01|01|02|37|37","National","Communications and Digital Technologies","Administration","Departmental Management","Non-transfer","Current","Current payments","Goods and services","Travel and subsistence","Travel and subsistence","Economic development","Economic regulation and infrastructure","NAT",14482,20082,16149,13744,13744,13744,17196,15522,16461,12852,13239,null,null,null,null,null,null,null,null,null,null,null,null,null,null,null,null,null,null,null,null,null,null,null,null,null,null,null,null,null,null,null,null,null,null,{"$f":"Dataset[[#This Row],[2027/28 From - Spending review Topic 1]]+Dataset[[#This Row],[2027/28 From - Spending review Topic 2]]+Dataset[[#This Row],[2027/28 From - Spending review Topic 3]]+Dataset[[#This Row],[2027/28 From - Spending review Topic 4]]+Dataset[[#This Row],[2027/28 From - Other reallocations]]","v":0},{"$f":"Dataset[[#This Row],[2028/29 From - Spending review Topic 1]]+Dataset[[#This Row],[2028/29 From - Spending review Topic 2]]+Dataset[[#This Row],[2028/29 From - Spending review Topic 3]]+Dataset[[#This Row],[2028/29 From - Spending review Topic 4]]+Dataset[[#This Row],[2028/29 From - Other reallocations]]","v":0},{"$f":"Dataset[[#This Row],[2029/30 From - Spending review Topic 1]]+Dataset[[#This Row],[2029/30 From - Spending review Topic 2]]+Dataset[[#This Row],[2029/30 From - Spending review Topic 3]]+Dataset[[#This Row],[2029/30 From - Spending review Topic 4]]+Dataset[[#This Row],[2029/30 From - Other reallocations]]","v":0},{"$f":"Dataset[[#This Row],[2027/28 To - Spending review Topic 1]]+Dataset[[#This Row],[2027/28 To - Spending review Topic 2]]+Dataset[[#This Row],[2027/28 To - Spending review Topic 3]]+Dataset[[#This Row],[2027/28 To - Spending review Topic 4]]+Dataset[[#This Row],[2027/28 To - Other reallocations]]","v":0},{"$f":"Dataset[[#This Row],[2028/29 To - Spending review Topic 1]]+Dataset[[#This Row],[2028/29 To - Spending review Topic 2]]+Dataset[[#This Row],[2028/29 To - Spending review Topic 3]]+Dataset[[#This Row],[2028/29 To - Spending review Topic 4]]+Dataset[[#This Row],[2028/29 To - Other reallocations]]","v":0},{"$f":"Dataset[[#This Row],[2029/30 To - Spending review Topic 1]]+Dataset[[#This Row],[2029/30 To - Spending review Topic 2]]+Dataset[[#This Row],[2029/30 To - Spending review Topic 3]]+Dataset[[#This Row],[2029/30 To - Spending review Topic 4]]+Dataset[[#This Row],[2029/30 To - Other reallocations]]","v":0},{"$f":"Dataset[[#This Row],[2027/28 Targeted savings]]+Dataset[[#This Row],[2027/28 From - Total]]","v":0},{"$f":"Dataset[[#This Row],[2028/29 Targeted savings]]+Dataset[[#This Row],[2028/29 From - Total]]","v":0},{"$f":"Dataset[[#This Row],[2029/30 Targeted savings]]+Dataset[[#This Row],[2029/30 From - Total]]","v":0},{"$f":"Dataset[[#This Row],[2026/27 Targeted savings]]","v":0},{"$f":"SUM(Dataset[[#This Row],[2027/28 Targeted savings]],Dataset[[#This Row],[2027/28 From - Total]],Dataset[[#This Row],[2027/28 To - Total]])","v":0},{"$f":"SUM(Dataset[[#This Row],[2028/29 Targeted savings]],Dataset[[#This Row],[2028/29 From - Total]],Dataset[[#This Row],[2028/29 To - Total]])","v":0},{"$f":"SUM(Dataset[[#This Row],[2029/30 Targeted savings]],Dataset[[#This Row],[2029/30 From - Total]],Dataset[[#This Row],[2029/30 To - Total]])","v":0},{"$f":"Dataset[[#This Row],[2026/27 Baseline]]+Dataset[[#This Row],[2026/27 Total change]]","v":15522},{"$f":"Dataset[[#This Row],[2027/28 Baseline]]+Dataset[[#This Row],[2027/28 Total change]]","v":16461},{"$f":"Dataset[[#This Row],[2028/29 Baseline]]+Dataset[[#This Row],[2028/29 Total change]]","v":12852},{"$f":"Dataset[[#This Row],[2029/30 Baseline]]+Dataset[[#This Row],[2029/30 Total change]]","v":13239}]
["NAT|Non-transfer","30|Training and development","2027_28","MTEC2027",30,1,2,32609,89,"30","01","02","032609","000089","30|01|02|000089","01","01","02","38","38","01|01|02|38|38","National","Communications and Digital Technologies","Administration","Departmental Management","Non-transfer","Current","Current payments","Goods and services","Training and development","Training and development","Economic development","Economic regulation and infrastructure","NAT",98,61,65,500,500,500,37,404,75,78,80,null,null,null,null,null,null,null,null,null,null,null,null,null,null,null,null,null,null,null,null,null,null,null,null,null,null,null,null,null,null,null,null,null,null,{"$f":"Dataset[[#This Row],[2027/28 From - Spending review Topic 1]]+Dataset[[#This Row],[2027/28 From - Spending review Topic 2]]+Dataset[[#This Row],[2027/28 From - Spending review Topic 3]]+Dataset[[#This Row],[2027/28 From - Spending review Topic 4]]+Dataset[[#This Row],[2027/28 From - Other reallocations]]","v":0},{"$f":"Dataset[[#This Row],[2028/29 From - Spending review Topic 1]]+Dataset[[#This Row],[2028/29 From - Spending review Topic 2]]+Dataset[[#This Row],[2028/29 From - Spending review Topic 3]]+Dataset[[#This Row],[2028/29 From - Spending review Topic 4]]+Dataset[[#This Row],[2028/29 From - Other reallocations]]","v":0},{"$f":"Dataset[[#This Row],[2029/30 From - Spending review Topic 1]]+Dataset[[#This Row],[2029/30 From - Spending review Topic 2]]+Dataset[[#This Row],[2029/30 From - Spending review Topic 3]]+Dataset[[#This Row],[2029/30 From - Spending review Topic 4]]+Dataset[[#This Row],[2029/30 From - Other reallocations]]","v":0},{"$f":"Dataset[[#This Row],[2027/28 To - Spending review Topic 1]]+Dataset[[#This Row],[2027/28 To - Spending review Topic 2]]+Dataset[[#This Row],[2027/28 To - Spending review Topic 3]]+Dataset[[#This Row],[2027/28 To - Spending review Topic 4]]+Dataset[[#This Row],[2027/28 To - Other reallocations]]","v":0},{"$f":"Dataset[[#This Row],[2028/29 To - Spending review Topic 1]]+Dataset[[#This Row],[2028/29 To - Spending review Topic 2]]+Dataset[[#This Row],[2028/29 To - Spending review Topic 3]]+Dataset[[#This Row],[2028/29 To - Spending review Topic 4]]+Dataset[[#This Row],[2028/29 To - Other reallocations]]","v":0},{"$f":"Dataset[[#This Row],[2029/30 To - Spending review Topic 1]]+Dataset[[#This Row],[2029/30 To - Spending review Topic 2]]+Dataset[[#This Row],[2029/30 To - Spending review Topic 3]]+Dataset[[#This Row],[2029/30 To - Spending review Topic 4]]+Dataset[[#This Row],[2029/30 To - Other reallocations]]","v":0},{"$f":"Dataset[[#This Row],[2027/28 Targeted savings]]+Dataset[[#This Row],[2027/28 From - Total]]","v":0},{"$f":"Dataset[[#This Row],[2028/29 Targeted savings]]+Dataset[[#This Row],[2028/29 From - Total]]","v":0},{"$f":"Dataset[[#This Row],[2029/30 Targeted savings]]+Dataset[[#This Row],[2029/30 From - Total]]","v":0},{"$f":"Dataset[[#This Row],[2026/27 Targeted savings]]","v":0},{"$f":"SUM(Dataset[[#This Row],[2027/28 Targeted savings]],Dataset[[#This Row],[2027/28 From - Total]],Dataset[[#This Row],[2027/28 To - Total]])","v":0},{"$f":"SUM(Dataset[[#This Row],[2028/29 Targeted savings]],Dataset[[#This Row],[2028/29 From - Total]],Dataset[[#This Row],[2028/29 To - Total]])","v":0},{"$f":"SUM(Dataset[[#This Row],[2029/30 Targeted savings]],Dataset[[#This Row],[2029/30 From - Total]],Dataset[[#This Row],[2029/30 To - Total]])","v":0},{"$f":"Dataset[[#This Row],[2026/27 Baseline]]+Dataset[[#This Row],[2026/27 Total change]]","v":404},{"$f":"Dataset[[#This Row],[2027/28 Baseline]]+Dataset[[#This Row],[2027/28 Total change]]","v":75},{"$f":"Dataset[[#This Row],[2028/29 Baseline]]+Dataset[[#This Row],[2028/29 Total change]]","v":78},{"$f":"Dataset[[#This Row],[2029/30 Baseline]]+Dataset[[#This Row],[2029/30 Total change]]","v":80}]
["NAT|Non-transfer","30|Operating payments","2027_28","MTEC2027",30,1,2,32610,90,"30","01","02","032610","000090","30|01|02|000090","01","01","02","39","39","01|01|02|39|39","National","Communications and Digital Technologies","Administration","Departmental Management","Non-transfer","Current","Current payments","Goods and services","Operating payments","Operating payments","Economic development","Economic regulation and infrastructure","NAT",35,83,29,456,456,456,9,256,46,47,48,null,null,null,null,null,null,null,null,null,null,null,null,null,null,null,null,null,null,null,null,null,null,null,null,null,null,null,null,null,null,null,null,null,null,{"$f":"Dataset[[#This Row],[2027/28 From - Spending review Topic 1]]+Dataset[[#This Row],[2027/28 From - Spending review Topic 2]]+Dataset[[#This Row],[2027/28 From - Spending review Topic 3]]+Dataset[[#This Row],[2027/28 From - Spending review Topic 4]]+Dataset[[#This Row],[2027/28 From - Other reallocations]]","v":0},{"$f":"Dataset[[#This Row],[2028/29 From - Spending review Topic 1]]+Dataset[[#This Row],[2028/29 From - Spending review Topic 2]]+Dataset[[#This Row],[2028/29 From - Spending review Topic 3]]+Dataset[[#This Row],[2028/29 From - Spending review Topic 4]]+Dataset[[#This Row],[2028/29 From - Other reallocations]]","v":0},{"$f":"Dataset[[#This Row],[2029/30 From - Spending review Topic 1]]+Dataset[[#This Row],[2029/30 From - Spending review Topic 2]]+Dataset[[#This Row],[2029/30 From - Spending review Topic 3]]+Dataset[[#This Row],[2029/30 From - Spending review Topic 4]]+Dataset[[#This Row],[2029/30 From - Other reallocations]]","v":0},{"$f":"Dataset[[#This Row],[2027/28 To - Spending review Topic 1]]+Dataset[[#This Row],[2027/28 To - Spending review Topic 2]]+Dataset[[#This Row],[2027/28 To - Spending review Topic 3]]+Dataset[[#This Row],[2027/28 To - Spending review Topic 4]]+Dataset[[#This Row],[2027/28 To - Other reallocations]]","v":0},{"$f":"Dataset[[#This Row],[2028/29 To - Spending review Topic 1]]+Dataset[[#This Row],[2028/29 To - Spending review Topic 2]]+Dataset[[#This Row],[2028/29 To - Spending review Topic 3]]+Dataset[[#This Row],[2028/29 To - Spending review Topic 4]]+Dataset[[#This Row],[2028/29 To - Other reallocations]]","v":0},{"$f":"Dataset[[#This Row],[2029/30 To - Spending review Topic 1]]+Dataset[[#This Row],[2029/30 To - Spending review Topic 2]]+Dataset[[#This Row],[2029/30 To - Spending review Topic 3]]+Dataset[[#This Row],[2029/30 To - Spending review Topic 4]]+Dataset[[#This Row],[2029/30 To - Other reallocations]]","v":0},{"$f":"Dataset[[#This Row],[2027/28 Targeted savings]]+Dataset[[#This Row],[2027/28 From - Total]]","v":0},{"$f":"Dataset[[#This Row],[2028/29 Targeted savings]]+Dataset[[#This Row],[2028/29 From - Total]]","v":0},{"$f":"Dataset[[#This Row],[2029/30 Targeted savings]]+Dataset[[#This Row],[2029/30 From - Total]]","v":0},{"$f":"Dataset[[#This Row],[2026/27 Targeted savings]]","v":0},{"$f":"SUM(Dataset[[#This Row],[2027/28 Targeted savings]],Dataset[[#This Row],[2027/28 From - Total]],Dataset[[#This Row],[2027/28 To - Total]])","v":0},{"$f":"SUM(Dataset[[#This Row],[2028/29 Targeted savings]],Dataset[[#This Row],[2028/29 From - Total]],Dataset[[#This Row],[2028/29 To - Total]])","v":0},{"$f":"SUM(Dataset[[#This Row],[2029/30 Targeted savings]],Dataset[[#This Row],[2029/30 From - Total]],Dataset[[#This Row],[2029/30 To - Total]])","v":0},{"$f":"Dataset[[#This Row],[2026/27 Baseline]]+Dataset[[#This Row],[2026/27 Total change]]","v":256},{"$f":"Dataset[[#This Row],[2027/28 Baseline]]+Dataset[[#This Row],[2027/28 Total change]]","v":46},{"$f":"Dataset[[#This Row],[2028/29 Baseline]]+Dataset[[#This Row],[2028/29 Total change]]","v":47},{"$f":"Dataset[[#This Row],[2029/30 Baseline]]+Dataset[[#This Row],[2029/30 Total change]]","v":48}]
["NAT|Non-transfer","30|Venues and facilities","2027_28","MTEC2027",30,1,2,32611,91,"30","01","02","032611","000091","30|01|02|000091","01","01","02","40","40","01|01|02|40|40","National","Communications and Digital Technologies","Administration","Departmental Management","Non-transfer","Current","Current payments","Goods and services","Venues and facilities","Venues and facilities","Economic development","Economic regulation and infrastructure","NAT",322,238,343,250,250,250,17,1075,346,357,368,null,null,null,null,null,null,null,null,null,null,null,null,null,null,null,null,null,null,null,null,null,null,null,null,null,null,null,null,null,null,null,null,null,null,{"$f":"Dataset[[#This Row],[2027/28 From - Spending review Topic 1]]+Dataset[[#This Row],[2027/28 From - Spending review Topic 2]]+Dataset[[#This Row],[2027/28 From - Spending review Topic 3]]+Dataset[[#This Row],[2027/28 From - Spending review Topic 4]]+Dataset[[#This Row],[2027/28 From - Other reallocations]]","v":0},{"$f":"Dataset[[#This Row],[2028/29 From - Spending review Topic 1]]+Dataset[[#This Row],[2028/29 From - Spending review Topic 2]]+Dataset[[#This Row],[2028/29 From - Spending review Topic 3]]+Dataset[[#This Row],[2028/29 From - Spending review Topic 4]]+Dataset[[#This Row],[2028/29 From - Other reallocations]]","v":0},{"$f":"Dataset[[#This Row],[2029/30 From - Spending review Topic 1]]+Dataset[[#This Row],[2029/30 From - Spending review Topic 2]]+Dataset[[#This Row],[2029/30 From - Spending review Topic 3]]+Dataset[[#This Row],[2029/30 From - Spending review Topic 4]]+Dataset[[#This Row],[2029/30 From - Other reallocations]]","v":0},{"$f":"Dataset[[#This Row],[2027/28 To - Spending review Topic 1]]+Dataset[[#This Row],[2027/28 To - Spending review Topic 2]]+Dataset[[#This Row],[2027/28 To - Spending review Topic 3]]+Dataset[[#This Row],[2027/28 To - Spending review Topic 4]]+Dataset[[#This Row],[2027/28 To - Other reallocations]]","v":0},{"$f":"Dataset[[#This Row],[2028/29 To - Spending review Topic 1]]+Dataset[[#This Row],[2028/29 To - Spending review Topic 2]]+Dataset[[#This Row],[2028/29 To - Spending review Topic 3]]+Dataset[[#This Row],[2028/29 To - Spending review Topic 4]]+Dataset[[#This Row],[2028/29 To - Other reallocations]]","v":0},{"$f":"Dataset[[#This Row],[2029/30 To - Spending review Topic 1]]+Dataset[[#This Row],[2029/30 To - Spending review Topic 2]]+Dataset[[#This Row],[2029/30 To - Spending review Topic 3]]+Dataset[[#This Row],[2029/30 To - Spending review Topic 4]]+Dataset[[#This Row],[2029/30 To - Other reallocations]]","v":0},{"$f":"Dataset[[#This Row],[2027/28 Targeted savings]]+Dataset[[#This Row],[2027/28 From - Total]]","v":0},{"$f":"Dataset[[#This Row],[2028/29 Targeted savings]]+Dataset[[#This Row],[2028/29 From - Total]]","v":0},{"$f":"Dataset[[#This Row],[2029/30 Targeted savings]]+Dataset[[#This Row],[2029/30 From - Total]]","v":0},{"$f":"Dataset[[#This Row],[2026/27 Targeted savings]]","v":0},{"$f":"SUM(Dataset[[#This Row],[2027/28 Targeted savings]],Dataset[[#This Row],[2027/28 From - Total]],Dataset[[#This Row],[2027/28 To - Total]])","v":0},{"$f":"SUM(Dataset[[#This Row],[2028/29 Targeted savings]],Dataset[[#This Row],[2028/29 From - Total]],Dataset[[#This Row],[2028/29 To - Total]])","v":0},{"$f":"SUM(Dataset[[#This Row],[2029/30 Targeted savings]],Dataset[[#This Row],[2029/30 From - Total]],Dataset[[#This Row],[2029/30 To - Total]])","v":0},{"$f":"Dataset[[#This Row],[2026/27 Baseline]]+Dataset[[#This Row],[2026/27 Total change]]","v":1075},{"$f":"Dataset[[#This Row],[2027/28 Baseline]]+Dataset[[#This Row],[2027/28 Total change]]","v":346},{"$f":"Dataset[[#This Row],[2028/29 Baseline]]+Dataset[[#This Row],[2028/29 Total change]]","v":357},{"$f":"Dataset[[#This Row],[2029/30 Baseline]]+Dataset[[#This Row],[2029/30 Total change]]","v":368}]
["NAT|Non-transfer item","30|Interest (Incl. interest on unitary payments (PPP))","2027_28","MTEC2027",30,1,2,32612,92,"30","01","02","032612","000092","30|01|02|000092","01","01","03","41","41","01|01|03|41|41","National","Communications and Digital Technologies","Administration","Departmental Management","Non-transfer item","Current","Current payments","Interest and rent on land","Interest (Incl. interest on unitary payments (PPP))","Interest (Incl. interest on unitary payments (PPP))","Economic development","Economic regulation and infrastructure","NAT",0,0,0,0,0,0,0,0,0,0,0,null,null,null,null,null,null,null,null,null,null,null,null,null,null,null,null,null,null,null,null,null,null,null,null,null,null,null,null,null,null,null,null,null,null,{"$f":"Dataset[[#This Row],[2027/28 From - Spending review Topic 1]]+Dataset[[#This Row],[2027/28 From - Spending review Topic 2]]+Dataset[[#This Row],[2027/28 From - Spending review Topic 3]]+Dataset[[#This Row],[2027/28 From - Spending review Topic 4]]+Dataset[[#This Row],[2027/28 From - Other reallocations]]","v":0},{"$f":"Dataset[[#This Row],[2028/29 From - Spending review Topic 1]]+Dataset[[#This Row],[2028/29 From - Spending review Topic 2]]+Dataset[[#This Row],[2028/29 From - Spending review Topic 3]]+Dataset[[#This Row],[2028/29 From - Spending review Topic 4]]+Dataset[[#This Row],[2028/29 From - Other reallocations]]","v":0},{"$f":"Dataset[[#This Row],[2029/30 From - Spending review Topic 1]]+Dataset[[#This Row],[2029/30 From - Spending review Topic 2]]+Dataset[[#This Row],[2029/30 From - Spending review Topic 3]]+Dataset[[#This Row],[2029/30 From - Spending review Topic 4]]+Dataset[[#This Row],[2029/30 From - Other reallocations]]","v":0},{"$f":"Dataset[[#This Row],[2027/28 To - Spending review Topic 1]]+Dataset[[#This Row],[2027/28 To - Spending review Topic 2]]+Dataset[[#This Row],[2027/28 To - Spending review Topic 3]]+Dataset[[#This Row],[2027/28 To - Spending review Topic 4]]+Dataset[[#This Row],[2027/28 To - Other reallocations]]","v":0},{"$f":"Dataset[[#This Row],[2028/29 To - Spending review Topic 1]]+Dataset[[#This Row],[2028/29 To - Spending review Topic 2]]+Dataset[[#This Row],[2028/29 To - Spending review Topic 3]]+Dataset[[#This Row],[2028/29 To - Spending review Topic 4]]+Dataset[[#This Row],[2028/29 To - Other reallocations]]","v":0},{"$f":"Dataset[[#This Row],[2029/30 To - Spending review Topic 1]]+Dataset[[#This Row],[2029/30 To - Spending review Topic 2]]+Dataset[[#This Row],[2029/30 To - Spending review Topic 3]]+Dataset[[#This Row],[2029/30 To - Spending review Topic 4]]+Dataset[[#This Row],[2029/30 To - Other reallocations]]","v":0},{"$f":"Dataset[[#This Row],[2027/28 Targeted savings]]+Dataset[[#This Row],[2027/28 From - Total]]","v":0},{"$f":"Dataset[[#This Row],[2028/29 Targeted savings]]+Dataset[[#This Row],[2028/29 From - Total]]","v":0},{"$f":"Dataset[[#This Row],[2029/30 Targeted savings]]+Dataset[[#This Row],[2029/30 From - Total]]","v":0},{"$f":"Dataset[[#This Row],[2026/27 Targeted savings]]","v":0},{"$f":"SUM(Dataset[[#This Row],[2027/28 Targeted savings]],Dataset[[#This Row],[2027/28 From - Total]],Dataset[[#This Row],[2027/28 To - Total]])","v":0},{"$f":"SUM(Dataset[[#This Row],[2028/29 Targeted savings]],Dataset[[#This Row],[2028/29 From - Total]],Dataset[[#This Row],[2028/29 To - Total]])","v":0},{"$f":"SUM(Dataset[[#This Row],[2029/30 Targeted savings]],Dataset[[#This Row],[2029/30 From - Total]],Dataset[[#This Row],[2029/30 To - Total]])","v":0},{"$f":"Dataset[[#This Row],[2026/27 Baseline]]+Dataset[[#This Row],[2026/27 Total change]]","v":0},{"$f":"Dataset[[#This Row],[2027/28 Baseline]]+Dataset[[#This Row],[2027/28 Total change]]","v":0},{"$f":"Dataset[[#This Row],[2028/29 Baseline]]+Dataset[[#This Row],[2028/29 Total change]]","v":0},{"$f":"Dataset[[#This Row],[2029/30 Baseline]]+Dataset[[#This Row],[2029/30 Total change]]","v":0}]
["NAT|Non-transfer item","30|Rent on land","2027_28","MTEC2027",30,1,2,32613,93,"30","01","02","032613","000093","30|01|02|000093","01","01","03","42","42","01|01|03|42|42","National","Communications and Digital Technologies","Administration","Departmental Management","Non-transfer item","Current","Current payments","Interest and rent on land","Rent on land","Rent on land","Economic development","Economic regulation and infrastructure","NAT",0,0,0,0,0,0,0,0,0,0,0,null,null,null,null,null,null,null,null,null,null,null,null,null,null,null,null,null,null,null,null,null,null,null,null,null,null,null,null,null,null,null,null,null,null,{"$f":"Dataset[[#This Row],[2027/28 From - Spending review Topic 1]]+Dataset[[#This Row],[2027/28 From - Spending review Topic 2]]+Dataset[[#This Row],[2027/28 From - Spending review Topic 3]]+Dataset[[#This Row],[2027/28 From - Spending review Topic 4]]+Dataset[[#This Row],[2027/28 From - Other reallocations]]","v":0},{"$f":"Dataset[[#This Row],[2028/29 From - Spending review Topic 1]]+Dataset[[#This Row],[2028/29 From - Spending review Topic 2]]+Dataset[[#This Row],[2028/29 From - Spending review Topic 3]]+Dataset[[#This Row],[2028/29 From - Spending review Topic 4]]+Dataset[[#This Row],[2028/29 From - Other reallocations]]","v":0},{"$f":"Dataset[[#This Row],[2029/30 From - Spending review Topic 1]]+Dataset[[#This Row],[2029/30 From - Spending review Topic 2]]+Dataset[[#This Row],[2029/30 From - Spending review Topic 3]]+Dataset[[#This Row],[2029/30 From - Spending review Topic 4]]+Dataset[[#This Row],[2029/30 From - Other reallocations]]","v":0},{"$f":"Dataset[[#This Row],[2027/28 To - Spending review Topic 1]]+Dataset[[#This Row],[2027/28 To - Spending review Topic 2]]+Dataset[[#This Row],[2027/28 To - Spending review Topic 3]]+Dataset[[#This Row],[2027/28 To - Spending review Topic 4]]+Dataset[[#This Row],[2027/28 To - Other reallocations]]","v":0},{"$f":"Dataset[[#This Row],[2028/29 To - Spending review Topic 1]]+Dataset[[#This Row],[2028/29 To - Spending review Topic 2]]+Dataset[[#This Row],[2028/29 To - Spending review Topic 3]]+Dataset[[#This Row],[2028/29 To - Spending review Topic 4]]+Dataset[[#This Row],[2028/29 To - Other reallocations]]","v":0},{"$f":"Dataset[[#This Row],[2029/30 To - Spending review Topic 1]]+Dataset[[#This Row],[2029/30 To - Spending review Topic 2]]+Dataset[[#This Row],[2029/30 To - Spending review Topic 3]]+Dataset[[#This Row],[2029/30 To - Spending review Topic 4]]+Dataset[[#This Row],[2029/30 To - Other reallocations]]","v":0},{"$f":"Dataset[[#This Row],[2027/28 Targeted savings]]+Dataset[[#This Row],[2027/28 From - Total]]","v":0},{"$f":"Dataset[[#This Row],[2028/29 Targeted savings]]+Dataset[[#This Row],[2028/29 From - Total]]","v":0},{"$f":"Dataset[[#This Row],[2029/30 Targeted savings]]+Dataset[[#This Row],[2029/30 From - Total]]","v":0},{"$f":"Dataset[[#This Row],[2026/27 Targeted savings]]","v":0},{"$f":"SUM(Dataset[[#This Row],[2027/28 Targeted savings]],Dataset[[#This Row],[2027/28 From - Total]],Dataset[[#This Row],[2027/28 To - Total]])","v":0},{"$f":"SUM(Dataset[[#This Row],[2028/29 Targeted savings]],Dataset[[#This Row],[2028/29 From - Total]],Dataset[[#This Row],[2028/29 To - Total]])","v":0},{"$f":"SUM(Dataset[[#This Row],[2029/30 Targeted savings]],Dataset[[#This Row],[2029/30 From - Total]],Dataset[[#This Row],[2029/30 To - Total]])","v":0},{"$f":"Dataset[[#This Row],[2026/27 Baseline]]+Dataset[[#This Row],[2026/27 Total change]]","v":0},{"$f":"Dataset[[#This Row],[2027/28 Baseline]]+Dataset[[#This Row],[2027/28 Total change]]","v":0},{"$f":"Dataset[[#This Row],[2028/29 Baseline]]+Dataset[[#This Row],[2028/29 Total change]]","v":0},{"$f":"Dataset[[#This Row],[2029/30 Baseline]]+Dataset[[#This Row],[2029/30 Total change]]","v":0}]
["NAT|Vehicle licences","30|Provincial agencies and funds","2027_28","MTEC2027",30,1,2,32614,94,"30","01","02","032614","000094","30|01|02|000094","01","02","04","43","44","01|02|04|43|44","National","Communications and Digital Technologies","Administration","Departmental Management","Vehicle licences","Current","Transfers and subsidies","Provinces and municipalities","Provinces","Provincial agencies and funds","Economic development","Economic regulation and infrastructure","NAT",7,9,11,0,0,0,0,0,0,0,0,null,null,null,null,null,null,null,null,null,null,null,null,null,null,null,null,null,null,null,null,null,null,null,null,null,null,null,null,null,null,null,null,null,null,{"$f":"Dataset[[#This Row],[2027/28 From - Spending review Topic 1]]+Dataset[[#This Row],[2027/28 From - Spending review Topic 2]]+Dataset[[#This Row],[2027/28 From - Spending review Topic 3]]+Dataset[[#This Row],[2027/28 From - Spending review Topic 4]]+Dataset[[#This Row],[2027/28 From - Other reallocations]]","v":0},{"$f":"Dataset[[#This Row],[2028/29 From - Spending review Topic 1]]+Dataset[[#This Row],[2028/29 From - Spending review Topic 2]]+Dataset[[#This Row],[2028/29 From - Spending review Topic 3]]+Dataset[[#This Row],[2028/29 From - Spending review Topic 4]]+Dataset[[#This Row],[2028/29 From - Other reallocations]]","v":0},{"$f":"Dataset[[#This Row],[2029/30 From - Spending review Topic 1]]+Dataset[[#This Row],[2029/30 From - Spending review Topic 2]]+Dataset[[#This Row],[2029/30 From - Spending review Topic 3]]+Dataset[[#This Row],[2029/30 From - Spending review Topic 4]]+Dataset[[#This Row],[2029/30 From - Other reallocations]]","v":0},{"$f":"Dataset[[#This Row],[2027/28 To - Spending review Topic 1]]+Dataset[[#This Row],[2027/28 To - Spending review Topic 2]]+Dataset[[#This Row],[2027/28 To - Spending review Topic 3]]+Dataset[[#This Row],[2027/28 To - Spending review Topic 4]]+Dataset[[#This Row],[2027/28 To - Other reallocations]]","v":0},{"$f":"Dataset[[#This Row],[2028/29 To - Spending review Topic 1]]+Dataset[[#This Row],[2028/29 To - Spending review Topic 2]]+Dataset[[#This Row],[2028/29 To - Spending review Topic 3]]+Dataset[[#This Row],[2028/29 To - Spending review Topic 4]]+Dataset[[#This Row],[2028/29 To - Other reallocations]]","v":0},{"$f":"Dataset[[#This Row],[2029/30 To - Spending review Topic 1]]+Dataset[[#This Row],[2029/30 To - Spending review Topic 2]]+Dataset[[#This Row],[2029/30 To - Spending review Topic 3]]+Dataset[[#This Row],[2029/30 To - Spending review Topic 4]]+Dataset[[#This Row],[2029/30 To - Other reallocations]]","v":0},{"$f":"Dataset[[#This Row],[2027/28 Targeted savings]]+Dataset[[#This Row],[2027/28 From - Total]]","v":0},{"$f":"Dataset[[#This Row],[2028/29 Targeted savings]]+Dataset[[#This Row],[2028/29 From - Total]]","v":0},{"$f":"Dataset[[#This Row],[2029/30 Targeted savings]]+Dataset[[#This Row],[2029/30 From - Total]]","v":0},{"$f":"Dataset[[#This Row],[2026/27 Targeted savings]]","v":0},{"$f":"SUM(Dataset[[#This Row],[2027/28 Targeted savings]],Dataset[[#This Row],[2027/28 From - Total]],Dataset[[#This Row],[2027/28 To - Total]])","v":0},{"$f":"SUM(Dataset[[#This Row],[2028/29 Targeted savings]],Dataset[[#This Row],[2028/29 From - Total]],Dataset[[#This Row],[2028/29 To - Total]])","v":0},{"$f":"SUM(Dataset[[#This Row],[2029/30 Targeted savings]],Dataset[[#This Row],[2029/30 From - Total]],Dataset[[#This Row],[2029/30 To - Total]])","v":0},{"$f":"Dataset[[#This Row],[2026/27 Baseline]]+Dataset[[#This Row],[2026/27 Total change]]","v":0},{"$f":"Dataset[[#This Row],[2027/28 Baseline]]+Dataset[[#This Row],[2027/28 Total change]]","v":0},{"$f":"Dataset[[#This Row],[2028/29 Baseline]]+Dataset[[#This Row],[2028/29 Total change]]","v":0},{"$f":"Dataset[[#This Row],[2029/30 Baseline]]+Dataset[[#This Row],[2029/30 Total change]]","v":0}]
["NAT|Employee social benefits","30|Social benefits","2027_28","MTEC2027",30,1,2,32615,95,"30","01","02","032615","000095","30|01|02|000095","01","02","10","52","56","01|02|10|52|56","National","Communications and Digital Technologies","Administration","Departmental Management","Employee social benefits","Current","Transfers and subsidies","Households","Social benefits","Social benefits","Economic development","Economic regulation and infrastructure","NAT",146,509,4336,0,64,64,0,0,0,0,0,null,null,null,null,null,null,null,null,null,null,null,null,null,null,null,null,null,null,null,null,null,null,null,null,null,null,null,null,null,null,null,null,null,null,{"$f":"Dataset[[#This Row],[2027/28 From - Spending review Topic 1]]+Dataset[[#This Row],[2027/28 From - Spending review Topic 2]]+Dataset[[#This Row],[2027/28 From - Spending review Topic 3]]+Dataset[[#This Row],[2027/28 From - Spending review Topic 4]]+Dataset[[#This Row],[2027/28 From - Other reallocations]]","v":0},{"$f":"Dataset[[#This Row],[2028/29 From - Spending review Topic 1]]+Dataset[[#This Row],[2028/29 From - Spending review Topic 2]]+Dataset[[#This Row],[2028/29 From - Spending review Topic 3]]+Dataset[[#This Row],[2028/29 From - Spending review Topic 4]]+Dataset[[#This Row],[2028/29 From - Other reallocations]]","v":0},{"$f":"Dataset[[#This Row],[2029/30 From - Spending review Topic 1]]+Dataset[[#This Row],[2029/30 From - Spending review Topic 2]]+Dataset[[#This Row],[2029/30 From - Spending review Topic 3]]+Dataset[[#This Row],[2029/30 From - Spending review Topic 4]]+Dataset[[#This Row],[2029/30 From - Other reallocations]]","v":0},{"$f":"Dataset[[#This Row],[2027/28 To - Spending review Topic 1]]+Dataset[[#This Row],[2027/28 To - Spending review Topic 2]]+Dataset[[#This Row],[2027/28 To - Spending review Topic 3]]+Dataset[[#This Row],[2027/28 To - Spending review Topic 4]]+Dataset[[#This Row],[2027/28 To - Other reallocations]]","v":0},{"$f":"Dataset[[#This Row],[2028/29 To - Spending review Topic 1]]+Dataset[[#This Row],[2028/29 To - Spending review Topic 2]]+Dataset[[#This Row],[2028/29 To - Spending review Topic 3]]+Dataset[[#This Row],[2028/29 To - Spending review Topic 4]]+Dataset[[#This Row],[2028/29 To - Other reallocations]]","v":0},{"$f":"Dataset[[#This Row],[2029/30 To - Spending review Topic 1]]+Dataset[[#This Row],[2029/30 To - Spending review Topic 2]]+Dataset[[#This Row],[2029/30 To - Spending review Topic 3]]+Dataset[[#This Row],[2029/30 To - Spending review Topic 4]]+Dataset[[#This Row],[2029/30 To - Other reallocations]]","v":0},{"$f":"Dataset[[#This Row],[2027/28 Targeted savings]]+Dataset[[#This Row],[2027/28 From - Total]]","v":0},{"$f":"Dataset[[#This Row],[2028/29 Targeted savings]]+Dataset[[#This Row],[2028/29 From - Total]]","v":0},{"$f":"Dataset[[#This Row],[2029/30 Targeted savings]]+Dataset[[#This Row],[2029/30 From - Total]]","v":0},{"$f":"Dataset[[#This Row],[2026/27 Targeted savings]]","v":0},{"$f":"SUM(Dataset[[#This Row],[2027/28 Targeted savings]],Dataset[[#This Row],[2027/28 From - Total]],Dataset[[#This Row],[2027/28 To - Total]])","v":0},{"$f":"SUM(Dataset[[#This Row],[2028/29 Targeted savings]],Dataset[[#This Row],[2028/29 From - Total]],Dataset[[#This Row],[2028/29 To - Total]])","v":0},{"$f":"SUM(Dataset[[#This Row],[2029/30 Targeted savings]],Dataset[[#This Row],[2029/30 From - Total]],Dataset[[#This Row],[2029/30 To - Total]])","v":0},{"$f":"Dataset[[#This Row],[2026/27 Baseline]]+Dataset[[#This Row],[2026/27 Total change]]","v":0},{"$f":"Dataset[[#This Row],[2027/28 Baseline]]+Dataset[[#This Row],[2027/28 Total change]]","v":0},{"$f":"Dataset[[#This Row],[2028/29 Baseline]]+Dataset[[#This Row],[2028/29 Total change]]","v":0},{"$f":"Dataset[[#This Row],[2029/30 Baseline]]+Dataset[[#This Row],[2029/30 Total change]]","v":0}]
["NAT|Employee social benefits","30|Other transfers to households","2027_28","MTEC2027",30,1,2,32616,96,"30","01","02","032616","000096","30|01|02|000096","01","02","10","53","57","01|02|10|53|57","National","Communications and Digital Technologies","Administration","Departmental Management","Employee social benefits","Current","Transfers and subsidies","Households","Other transfers to households","Other transfers to households","Economic development","Economic regulation and infrastructure","NAT",21,84,19,0,163,163,0,0,0,0,0,null,null,null,null,null,null,null,null,null,null,null,null,null,null,null,null,null,null,null,null,null,null,null,null,null,null,null,null,null,null,null,null,null,null,{"$f":"Dataset[[#This Row],[2027/28 From - Spending review Topic 1]]+Dataset[[#This Row],[2027/28 From - Spending review Topic 2]]+Dataset[[#This Row],[2027/28 From - Spending review Topic 3]]+Dataset[[#This Row],[2027/28 From - Spending review Topic 4]]+Dataset[[#This Row],[2027/28 From - Other reallocations]]","v":0},{"$f":"Dataset[[#This Row],[2028/29 From - Spending review Topic 1]]+Dataset[[#This Row],[2028/29 From - Spending review Topic 2]]+Dataset[[#This Row],[2028/29 From - Spending review Topic 3]]+Dataset[[#This Row],[2028/29 From - Spending review Topic 4]]+Dataset[[#This Row],[2028/29 From - Other reallocations]]","v":0},{"$f":"Dataset[[#This Row],[2029/30 From - Spending review Topic 1]]+Dataset[[#This Row],[2029/30 From - Spending review Topic 2]]+Dataset[[#This Row],[2029/30 From - Spending review Topic 3]]+Dataset[[#This Row],[2029/30 From - Spending review Topic 4]]+Dataset[[#This Row],[2029/30 From - Other reallocations]]","v":0},{"$f":"Dataset[[#This Row],[2027/28 To - Spending review Topic 1]]+Dataset[[#This Row],[2027/28 To - Spending review Topic 2]]+Dataset[[#This Row],[2027/28 To - Spending review Topic 3]]+Dataset[[#This Row],[2027/28 To - Spending review Topic 4]]+Dataset[[#This Row],[2027/28 To - Other reallocations]]","v":0},{"$f":"Dataset[[#This Row],[2028/29 To - Spending review Topic 1]]+Dataset[[#This Row],[2028/29 To - Spending review Topic 2]]+Dataset[[#This Row],[2028/29 To - Spending review Topic 3]]+Dataset[[#This Row],[2028/29 To - Spending review Topic 4]]+Dataset[[#This Row],[2028/29 To - Other reallocations]]","v":0},{"$f":"Dataset[[#This Row],[2029/30 To - Spending review Topic 1]]+Dataset[[#This Row],[2029/30 To - Spending review Topic 2]]+Dataset[[#This Row],[2029/30 To - Spending review Topic 3]]+Dataset[[#This Row],[2029/30 To - Spending review Topic 4]]+Dataset[[#This Row],[2029/30 To - Other reallocations]]","v":0},{"$f":"Dataset[[#This Row],[2027/28 Targeted savings]]+Dataset[[#This Row],[2027/28 From - Total]]","v":0},{"$f":"Dataset[[#This Row],[2028/29 Targeted savings]]+Dataset[[#This Row],[2028/29 From - Total]]","v":0},{"$f":"Dataset[[#This Row],[2029/30 Targeted savings]]+Dataset[[#This Row],[2029/30 From - Total]]","v":0},{"$f":"Dataset[[#This Row],[2026/27 Targeted savings]]","v":0},{"$f":"SUM(Dataset[[#This Row],[2027/28 Targeted savings]],Dataset[[#This Row],[2027/28 From - Total]],Dataset[[#This Row],[2027/28 To - Total]])","v":0},{"$f":"SUM(Dataset[[#This Row],[2028/29 Targeted savings]],Dataset[[#This Row],[2028/29 From - Total]],Dataset[[#This Row],[2028/29 To - Total]])","v":0},{"$f":"SUM(Dataset[[#This Row],[2029/30 Targeted savings]],Dataset[[#This Row],[2029/30 From - Total]],Dataset[[#This Row],[2029/30 To - Total]])","v":0},{"$f":"Dataset[[#This Row],[2026/27 Baseline]]+Dataset[[#This Row],[2026/27 Total change]]","v":0},{"$f":"Dataset[[#This Row],[2027/28 Baseline]]+Dataset[[#This Row],[2027/28 Total change]]","v":0},{"$f":"Dataset[[#This Row],[2028/29 Baseline]]+Dataset[[#This Row],[2028/29 Total change]]","v":0},{"$f":"Dataset[[#This Row],[2029/30 Baseline]]+Dataset[[#This Row],[2029/30 Total change]]","v":0}]
["NAT|Non-transfer item","30|Buildings","2027_28","MTEC2027",30,1,2,32617,97,"30","01","02","032617","000097","30|01|02|000097","02","03","11","54","58","02|03|11|54|58","National","Communications and Digital Technologies","Administration","Departmental Management","Non-transfer item","Capital","Payments for capital assets","Buildings and other fixed structures","Buildings","Buildings","Economic development","Economic regulation and infrastructure","NAT",0,0,0,0,0,0,0,0,0,0,0,null,null,null,null,null,null,null,null,null,null,null,null,null,null,null,null,null,null,null,null,null,null,null,null,null,null,null,null,null,null,null,null,null,null,{"$f":"Dataset[[#This Row],[2027/28 From - Spending review Topic 1]]+Dataset[[#This Row],[2027/28 From - Spending review Topic 2]]+Dataset[[#This Row],[2027/28 From - Spending review Topic 3]]+Dataset[[#This Row],[2027/28 From - Spending review Topic 4]]+Dataset[[#This Row],[2027/28 From - Other reallocations]]","v":0},{"$f":"Dataset[[#This Row],[2028/29 From - Spending review Topic 1]]+Dataset[[#This Row],[2028/29 From - Spending review Topic 2]]+Dataset[[#This Row],[2028/29 From - Spending review Topic 3]]+Dataset[[#This Row],[2028/29 From - Spending review Topic 4]]+Dataset[[#This Row],[2028/29 From - Other reallocations]]","v":0},{"$f":"Dataset[[#This Row],[2029/30 From - Spending review Topic 1]]+Dataset[[#This Row],[2029/30 From - Spending review Topic 2]]+Dataset[[#This Row],[2029/30 From - Spending review Topic 3]]+Dataset[[#This Row],[2029/30 From - Spending review Topic 4]]+Dataset[[#This Row],[2029/30 From - Other reallocations]]","v":0},{"$f":"Dataset[[#This Row],[2027/28 To - Spending review Topic 1]]+Dataset[[#This Row],[2027/28 To - Spending review Topic 2]]+Dataset[[#This Row],[2027/28 To - Spending review Topic 3]]+Dataset[[#This Row],[2027/28 To - Spending review Topic 4]]+Dataset[[#This Row],[2027/28 To - Other reallocations]]","v":0},{"$f":"Dataset[[#This Row],[2028/29 To - Spending review Topic 1]]+Dataset[[#This Row],[2028/29 To - Spending review Topic 2]]+Dataset[[#This Row],[2028/29 To - Spending review Topic 3]]+Dataset[[#This Row],[2028/29 To - Spending review Topic 4]]+Dataset[[#This Row],[2028/29 To - Other reallocations]]","v":0},{"$f":"Dataset[[#This Row],[2029/30 To - Spending review Topic 1]]+Dataset[[#This Row],[2029/30 To - Spending review Topic 2]]+Dataset[[#This Row],[2029/30 To - Spending review Topic 3]]+Dataset[[#This Row],[2029/30 To - Spending review Topic 4]]+Dataset[[#This Row],[2029/30 To - Other reallocations]]","v":0},{"$f":"Dataset[[#This Row],[2027/28 Targeted savings]]+Dataset[[#This Row],[2027/28 From - Total]]","v":0},{"$f":"Dataset[[#This Row],[2028/29 Targeted savings]]+Dataset[[#This Row],[2028/29 From - Total]]","v":0},{"$f":"Dataset[[#This Row],[2029/30 Targeted savings]]+Dataset[[#This Row],[2029/30 From - Total]]","v":0},{"$f":"Dataset[[#This Row],[2026/27 Targeted savings]]","v":0},{"$f":"SUM(Dataset[[#This Row],[2027/28 Targeted savings]],Dataset[[#This Row],[2027/28 From - Total]],Dataset[[#This Row],[2027/28 To - Total]])","v":0},{"$f":"SUM(Dataset[[#This Row],[2028/29 Targeted savings]],Dataset[[#This Row],[2028/29 From - Total]],Dataset[[#This Row],[2028/29 To - Total]])","v":0},{"$f":"SUM(Dataset[[#This Row],[2029/30 Targeted savings]],Dataset[[#This Row],[2029/30 From - Total]],Dataset[[#This Row],[2029/30 To - Total]])","v":0},{"$f":"Dataset[[#This Row],[2026/27 Baseline]]+Dataset[[#This Row],[2026/27 Total change]]","v":0},{"$f":"Dataset[[#This Row],[2027/28 Baseline]]+Dataset[[#This Row],[2027/28 Total change]]","v":0},{"$f":"Dataset[[#This Row],[2028/29 Baseline]]+Dataset[[#This Row],[2028/29 Total change]]","v":0},{"$f":"Dataset[[#This Row],[2029/30 Baseline]]+Dataset[[#This Row],[2029/30 Total change]]","v":0}]
["NAT|Non-transfer item","30|Other fixed structures","2027_28","MTEC2027",30,1,2,32618,98,"30","01","02","032618","000098","30|01|02|000098","02","03","11","55","59","02|03|11|55|59","National","Communications and Digital Technologies","Administration","Departmental Management","Non-transfer item","Capital","Payments for capital assets","Buildings and other fixed structures","Other fixed structures","Other fixed structures","Economic development","Economic regulation and infrastructure","NAT",0,0,0,0,0,0,0,0,0,0,0,null,null,null,null,null,null,null,null,null,null,null,null,null,null,null,null,null,null,null,null,null,null,null,null,null,null,null,null,null,null,null,null,null,null,{"$f":"Dataset[[#This Row],[2027/28 From - Spending review Topic 1]]+Dataset[[#This Row],[2027/28 From - Spending review Topic 2]]+Dataset[[#This Row],[2027/28 From - Spending review Topic 3]]+Dataset[[#This Row],[2027/28 From - Spending review Topic 4]]+Dataset[[#This Row],[2027/28 From - Other reallocations]]","v":0},{"$f":"Dataset[[#This Row],[2028/29 From - Spending review Topic 1]]+Dataset[[#This Row],[2028/29 From - Spending review Topic 2]]+Dataset[[#This Row],[2028/29 From - Spending review Topic 3]]+Dataset[[#This Row],[2028/29 From - Spending review Topic 4]]+Dataset[[#This Row],[2028/29 From - Other reallocations]]","v":0},{"$f":"Dataset[[#This Row],[2029/30 From - Spending review Topic 1]]+Dataset[[#This Row],[2029/30 From - Spending review Topic 2]]+Dataset[[#This Row],[2029/30 From - Spending review Topic 3]]+Dataset[[#This Row],[2029/30 From - Spending review Topic 4]]+Dataset[[#This Row],[2029/30 From - Other reallocations]]","v":0},{"$f":"Dataset[[#This Row],[2027/28 To - Spending review Topic 1]]+Dataset[[#This Row],[2027/28 To - Spending review Topic 2]]+Dataset[[#This Row],[2027/28 To - Spending review Topic 3]]+Dataset[[#This Row],[2027/28 To - Spending review Topic 4]]+Dataset[[#This Row],[2027/28 To - Other reallocations]]","v":0},{"$f":"Dataset[[#This Row],[2028/29 To - Spending review Topic 1]]+Dataset[[#This Row],[2028/29 To - Spending review Topic 2]]+Dataset[[#This Row],[2028/29 To - Spending review Topic 3]]+Dataset[[#This Row],[2028/29 To - Spending review Topic 4]]+Dataset[[#This Row],[2028/29 To - Other reallocations]]","v":0},{"$f":"Dataset[[#This Row],[2029/30 To - Spending review Topic 1]]+Dataset[[#This Row],[2029/30 To - Spending review Topic 2]]+Dataset[[#This Row],[2029/30 To - Spending review Topic 3]]+Dataset[[#This Row],[2029/30 To - Spending review Topic 4]]+Dataset[[#This Row],[2029/30 To - Other reallocations]]","v":0},{"$f":"Dataset[[#This Row],[2027/28 Targeted savings]]+Dataset[[#This Row],[2027/28 From - Total]]","v":0},{"$f":"Dataset[[#This Row],[2028/29 Targeted savings]]+Dataset[[#This Row],[2028/29 From - Total]]","v":0},{"$f":"Dataset[[#This Row],[2029/30 Targeted savings]]+Dataset[[#This Row],[2029/30 From - Total]]","v":0},{"$f":"Dataset[[#This Row],[2026/27 Targeted savings]]","v":0},{"$f":"SUM(Dataset[[#This Row],[2027/28 Targeted savings]],Dataset[[#This Row],[2027/28 From - Total]],Dataset[[#This Row],[2027/28 To - Total]])","v":0},{"$f":"SUM(Dataset[[#This Row],[2028/29 Targeted savings]],Dataset[[#This Row],[2028/29 From - Total]],Dataset[[#This Row],[2028/29 To - Total]])","v":0},{"$f":"SUM(Dataset[[#This Row],[2029/30 Targeted savings]],Dataset[[#This Row],[2029/30 From - Total]],Dataset[[#This Row],[2029/30 To - Total]])","v":0},{"$f":"Dataset[[#This Row],[2026/27 Baseline]]+Dataset[[#This Row],[2026/27 Total change]]","v":0},{"$f":"Dataset[[#This Row],[2027/28 Baseline]]+Dataset[[#This Row],[2027/28 Total change]]","v":0},{"$f":"Dataset[[#This Row],[2028/29 Baseline]]+Dataset[[#This Row],[2028/29 Total change]]","v":0},{"$f":"Dataset[[#This Row],[2029/30 Baseline]]+Dataset[[#This Row],[2029/30 Total change]]","v":0}]
["NAT|Non-transfer","30|Transport equipment","2027_28","MTEC2027",30,1,2,32619,99,"30","01","02","032619","000099","30|01|02|000099","02","03","12","56","60","02|03|12|56|60","National","Communications and Digital Technologies","Administration","Departmental Management","Non-transfer","Capital","Payments for capital assets","Machinery and equipment","Transport equipment","Transport equipment","Economic development","Economic regulation and infrastructure","NAT",0,0,760,0,0,0,0,0,0,0,0,null,null,null,null,null,null,null,null,null,null,null,null,null,null,null,null,null,null,null,null,null,null,null,null,null,null,null,null,null,null,null,null,null,null,{"$f":"Dataset[[#This Row],[2027/28 From - Spending review Topic 1]]+Dataset[[#This Row],[2027/28 From - Spending review Topic 2]]+Dataset[[#This Row],[2027/28 From - Spending review Topic 3]]+Dataset[[#This Row],[2027/28 From - Spending review Topic 4]]+Dataset[[#This Row],[2027/28 From - Other reallocations]]","v":0},{"$f":"Dataset[[#This Row],[2028/29 From - Spending review Topic 1]]+Dataset[[#This Row],[2028/29 From - Spending review Topic 2]]+Dataset[[#This Row],[2028/29 From - Spending review Topic 3]]+Dataset[[#This Row],[2028/29 From - Spending review Topic 4]]+Dataset[[#This Row],[2028/29 From - Other reallocations]]","v":0},{"$f":"Dataset[[#This Row],[2029/30 From - Spending review Topic 1]]+Dataset[[#This Row],[2029/30 From - Spending review Topic 2]]+Dataset[[#This Row],[2029/30 From - Spending review Topic 3]]+Dataset[[#This Row],[2029/30 From - Spending review Topic 4]]+Dataset[[#This Row],[2029/30 From - Other reallocations]]","v":0},{"$f":"Dataset[[#This Row],[2027/28 To - Spending review Topic 1]]+Dataset[[#This Row],[2027/28 To - Spending review Topic 2]]+Dataset[[#This Row],[2027/28 To - Spending review Topic 3]]+Dataset[[#This Row],[2027/28 To - Spending review Topic 4]]+Dataset[[#This Row],[2027/28 To - Other reallocations]]","v":0},{"$f":"Dataset[[#This Row],[2028/29 To - Spending review Topic 1]]+Dataset[[#This Row],[2028/29 To - Spending review Topic 2]]+Dataset[[#This Row],[2028/29 To - Spending review Topic 3]]+Dataset[[#This Row],[2028/29 To - Spending review Topic 4]]+Dataset[[#This Row],[2028/29 To - Other reallocations]]","v":0},{"$f":"Dataset[[#This Row],[2029/30 To - Spending review Topic 1]]+Dataset[[#This Row],[2029/30 To - Spending review Topic 2]]+Dataset[[#This Row],[2029/30 To - Spending review Topic 3]]+Dataset[[#This Row],[2029/30 To - Spending review Topic 4]]+Dataset[[#This Row],[2029/30 To - Other reallocations]]","v":0},{"$f":"Dataset[[#This Row],[2027/28 Targeted savings]]+Dataset[[#This Row],[2027/28 From - Total]]","v":0},{"$f":"Dataset[[#This Row],[2028/29 Targeted savings]]+Dataset[[#This Row],[2028/29 From - Total]]","v":0},{"$f":"Dataset[[#This Row],[2029/30 Targeted savings]]+Dataset[[#This Row],[2029/30 From - Total]]","v":0},{"$f":"Dataset[[#This Row],[2026/27 Targeted savings]]","v":0},{"$f":"SUM(Dataset[[#This Row],[2027/28 Targeted savings]],Dataset[[#This Row],[2027/28 From - Total]],Dataset[[#This Row],[2027/28 To - Total]])","v":0},{"$f":"SUM(Dataset[[#This Row],[2028/29 Targeted savings]],Dataset[[#This Row],[2028/29 From - Total]],Dataset[[#This Row],[2028/29 To - Total]])","v":0},{"$f":"SUM(Dataset[[#This Row],[2029/30 Targeted savings]],Dataset[[#This Row],[2029/30 From - Total]],Dataset[[#This Row],[2029/30 To - Total]])","v":0},{"$f":"Dataset[[#This Row],[2026/27 Baseline]]+Dataset[[#This Row],[2026/27 Total change]]","v":0},{"$f":"Dataset[[#This Row],[2027/28 Baseline]]+Dataset[[#This Row],[2027/28 Total change]]","v":0},{"$f":"Dataset[[#This Row],[2028/29 Baseline]]+Dataset[[#This Row],[2028/29 Total change]]","v":0},{"$f":"Dataset[[#This Row],[2029/30 Baseline]]+Dataset[[#This Row],[2029/30 Total change]]","v":0}]
["NAT|Non-transfer","30|Other machinery and equipment","2027_28","MTEC2027",30,1,2,32620,100,"30","01","02","032620","000100","30|01|02|000100","02","03","12","57","61","02|03|12|57|61","National","Communications and Digital Technologies","Administration","Departmental Management","Non-transfer","Capital","Payments for capital assets","Machinery and equipment","Other machinery and equipment","Other machinery and equipment","Economic development","Economic regulation and infrastructure","NAT",1384,992,876,1198,1198,1198,632,436,455,350,361,null,null,null,null,null,null,null,null,null,null,null,null,null,null,null,null,null,null,null,null,null,null,null,null,null,null,null,null,null,null,null,null,null,null,{"$f":"Dataset[[#This Row],[2027/28 From - Spending review Topic 1]]+Dataset[[#This Row],[2027/28 From - Spending review Topic 2]]+Dataset[[#This Row],[2027/28 From - Spending review Topic 3]]+Dataset[[#This Row],[2027/28 From - Spending review Topic 4]]+Dataset[[#This Row],[2027/28 From - Other reallocations]]","v":0},{"$f":"Dataset[[#This Row],[2028/29 From - Spending review Topic 1]]+Dataset[[#This Row],[2028/29 From - Spending review Topic 2]]+Dataset[[#This Row],[2028/29 From - Spending review Topic 3]]+Dataset[[#This Row],[2028/29 From - Spending review Topic 4]]+Dataset[[#This Row],[2028/29 From - Other reallocations]]","v":0},{"$f":"Dataset[[#This Row],[2029/30 From - Spending review Topic 1]]+Dataset[[#This Row],[2029/30 From - Spending review Topic 2]]+Dataset[[#This Row],[2029/30 From - Spending review Topic 3]]+Dataset[[#This Row],[2029/30 From - Spending review Topic 4]]+Dataset[[#This Row],[2029/30 From - Other reallocations]]","v":0},{"$f":"Dataset[[#This Row],[2027/28 To - Spending review Topic 1]]+Dataset[[#This Row],[2027/28 To - Spending review Topic 2]]+Dataset[[#This Row],[2027/28 To - Spending review Topic 3]]+Dataset[[#This Row],[2027/28 To - Spending review Topic 4]]+Dataset[[#This Row],[2027/28 To - Other reallocations]]","v":0},{"$f":"Dataset[[#This Row],[2028/29 To - Spending review Topic 1]]+Dataset[[#This Row],[2028/29 To - Spending review Topic 2]]+Dataset[[#This Row],[2028/29 To - Spending review Topic 3]]+Dataset[[#This Row],[2028/29 To - Spending review Topic 4]]+Dataset[[#This Row],[2028/29 To - Other reallocations]]","v":0},{"$f":"Dataset[[#This Row],[2029/30 To - Spending review Topic 1]]+Dataset[[#This Row],[2029/30 To - Spending review Topic 2]]+Dataset[[#This Row],[2029/30 To - Spending review Topic 3]]+Dataset[[#This Row],[2029/30 To - Spending review Topic 4]]+Dataset[[#This Row],[2029/30 To - Other reallocations]]","v":0},{"$f":"Dataset[[#This Row],[2027/28 Targeted savings]]+Dataset[[#This Row],[2027/28 From - Total]]","v":0},{"$f":"Dataset[[#This Row],[2028/29 Targeted savings]]+Dataset[[#This Row],[2028/29 From - Total]]","v":0},{"$f":"Dataset[[#This Row],[2029/30 Targeted savings]]+Dataset[[#This Row],[2029/30 From - Total]]","v":0},{"$f":"Dataset[[#This Row],[2026/27 Targeted savings]]","v":0},{"$f":"SUM(Dataset[[#This Row],[2027/28 Targeted savings]],Dataset[[#This Row],[2027/28 From - Total]],Dataset[[#This Row],[2027/28 To - Total]])","v":0},{"$f":"SUM(Dataset[[#This Row],[2028/29 Targeted savings]],Dataset[[#This Row],[2028/29 From - Total]],Dataset[[#This Row],[2028/29 To - Total]])","v":0},{"$f":"SUM(Dataset[[#This Row],[2029/30 Targeted savings]],Dataset[[#This Row],[2029/30 From - Total]],Dataset[[#This Row],[2029/30 To - Total]])","v":0},{"$f":"Dataset[[#This Row],[2026/27 Baseline]]+Dataset[[#This Row],[2026/27 Total change]]","v":436},{"$f":"Dataset[[#This Row],[2027/28 Baseline]]+Dataset[[#This Row],[2027/28 Total change]]","v":455},{"$f":"Dataset[[#This Row],[2028/29 Baseline]]+Dataset[[#This Row],[2028/29 Total change]]","v":350},{"$f":"Dataset[[#This Row],[2029/30 Baseline]]+Dataset[[#This Row],[2029/30 Total change]]","v":361}]
["NAT|Non-transfer item","30|Heritage assets","2027_28","MTEC2027",30,1,2,32621,101,"30","01","02","032621","000101","30|01|02|000101","02","03","13","58","62","02|03|13|58|62","National","Communications and Digital Technologies","Administration","Departmental Management","Non-transfer item","Capital","Payments for capital assets","Heritage assets","Heritage assets","Heritage assets","Economic development","Economic regulation and infrastructure","NAT",0,0,0,0,0,0,0,0,0,0,0,null,null,null,null,null,null,null,null,null,null,null,null,null,null,null,null,null,null,null,null,null,null,null,null,null,null,null,null,null,null,null,null,null,null,{"$f":"Dataset[[#This Row],[2027/28 From - Spending review Topic 1]]+Dataset[[#This Row],[2027/28 From - Spending review Topic 2]]+Dataset[[#This Row],[2027/28 From - Spending review Topic 3]]+Dataset[[#This Row],[2027/28 From - Spending review Topic 4]]+Dataset[[#This Row],[2027/28 From - Other reallocations]]","v":0},{"$f":"Dataset[[#This Row],[2028/29 From - Spending review Topic 1]]+Dataset[[#This Row],[2028/29 From - Spending review Topic 2]]+Dataset[[#This Row],[2028/29 From - Spending review Topic 3]]+Dataset[[#This Row],[2028/29 From - Spending review Topic 4]]+Dataset[[#This Row],[2028/29 From - Other reallocations]]","v":0},{"$f":"Dataset[[#This Row],[2029/30 From - Spending review Topic 1]]+Dataset[[#This Row],[2029/30 From - Spending review Topic 2]]+Dataset[[#This Row],[2029/30 From - Spending review Topic 3]]+Dataset[[#This Row],[2029/30 From - Spending review Topic 4]]+Dataset[[#This Row],[2029/30 From - Other reallocations]]","v":0},{"$f":"Dataset[[#This Row],[2027/28 To - Spending review Topic 1]]+Dataset[[#This Row],[2027/28 To - Spending review Topic 2]]+Dataset[[#This Row],[2027/28 To - Spending review Topic 3]]+Dataset[[#This Row],[2027/28 To - Spending review Topic 4]]+Dataset[[#This Row],[2027/28 To - Other reallocations]]","v":0},{"$f":"Dataset[[#This Row],[2028/29 To - Spending review Topic 1]]+Dataset[[#This Row],[2028/29 To - Spending review Topic 2]]+Dataset[[#This Row],[2028/29 To - Spending review Topic 3]]+Dataset[[#This Row],[2028/29 To - Spending review Topic 4]]+Dataset[[#This Row],[2028/29 To - Other reallocations]]","v":0},{"$f":"Dataset[[#This Row],[2029/30 To - Spending review Topic 1]]+Dataset[[#This Row],[2029/30 To - Spending review Topic 2]]+Dataset[[#This Row],[2029/30 To - Spending review Topic 3]]+Dataset[[#This Row],[2029/30 To - Spending review Topic 4]]+Dataset[[#This Row],[2029/30 To - Other reallocations]]","v":0},{"$f":"Dataset[[#This Row],[2027/28 Targeted savings]]+Dataset[[#This Row],[2027/28 From - Total]]","v":0},{"$f":"Dataset[[#This Row],[2028/29 Targeted savings]]+Dataset[[#This Row],[2028/29 From - Total]]","v":0},{"$f":"Dataset[[#This Row],[2029/30 Targeted savings]]+Dataset[[#This Row],[2029/30 From - Total]]","v":0},{"$f":"Dataset[[#This Row],[2026/27 Targeted savings]]","v":0},{"$f":"SUM(Dataset[[#This Row],[2027/28 Targeted savings]],Dataset[[#This Row],[2027/28 From - Total]],Dataset[[#This Row],[2027/28 To - Total]])","v":0},{"$f":"SUM(Dataset[[#This Row],[2028/29 Targeted savings]],Dataset[[#This Row],[2028/29 From - Total]],Dataset[[#This Row],[2028/29 To - Total]])","v":0},{"$f":"SUM(Dataset[[#This Row],[2029/30 Targeted savings]],Dataset[[#This Row],[2029/30 From - Total]],Dataset[[#This Row],[2029/30 To - Total]])","v":0},{"$f":"Dataset[[#This Row],[2026/27 Baseline]]+Dataset[[#This Row],[2026/27 Total change]]","v":0},{"$f":"Dataset[[#This Row],[2027/28 Baseline]]+Dataset[[#This Row],[2027/28 Total change]]","v":0},{"$f":"Dataset[[#This Row],[2028/29 Baseline]]+Dataset[[#This Row],[2028/29 Total change]]","v":0},{"$f":"Dataset[[#This Row],[2029/30 Baseline]]+Dataset[[#This Row],[2029/30 Total change]]","v":0}]
["NAT|Non-transfer item","30|Specialised military assets","2027_28","MTEC2027",30,1,2,32622,102,"30","01","02","032622","000102","30|01|02|000102","02","03","14","59","63","02|03|14|59|63","National","Communications and Digital Technologies","Administration","Departmental Management","Non-transfer item","Capital","Payments for capital assets","Specialised military assets","Specialised military assets","Specialised military assets","Economic development","Economic regulation and infrastructure","NAT",0,0,0,0,0,0,0,0,0,0,0,null,null,null,null,null,null,null,null,null,null,null,null,null,null,null,null,null,null,null,null,null,null,null,null,null,null,null,null,null,null,null,null,null,null,{"$f":"Dataset[[#This Row],[2027/28 From - Spending review Topic 1]]+Dataset[[#This Row],[2027/28 From - Spending review Topic 2]]+Dataset[[#This Row],[2027/28 From - Spending review Topic 3]]+Dataset[[#This Row],[2027/28 From - Spending review Topic 4]]+Dataset[[#This Row],[2027/28 From - Other reallocations]]","v":0},{"$f":"Dataset[[#This Row],[2028/29 From - Spending review Topic 1]]+Dataset[[#This Row],[2028/29 From - Spending review Topic 2]]+Dataset[[#This Row],[2028/29 From - Spending review Topic 3]]+Dataset[[#This Row],[2028/29 From - Spending review Topic 4]]+Dataset[[#This Row],[2028/29 From - Other reallocations]]","v":0},{"$f":"Dataset[[#This Row],[2029/30 From - Spending review Topic 1]]+Dataset[[#This Row],[2029/30 From - Spending review Topic 2]]+Dataset[[#This Row],[2029/30 From - Spending review Topic 3]]+Dataset[[#This Row],[2029/30 From - Spending review Topic 4]]+Dataset[[#This Row],[2029/30 From - Other reallocations]]","v":0},{"$f":"Dataset[[#This Row],[2027/28 To - Spending review Topic 1]]+Dataset[[#This Row],[2027/28 To - Spending review Topic 2]]+Dataset[[#This Row],[2027/28 To - Spending review Topic 3]]+Dataset[[#This Row],[2027/28 To - Spending review Topic 4]]+Dataset[[#This Row],[2027/28 To - Other reallocations]]","v":0},{"$f":"Dataset[[#This Row],[2028/29 To - Spending review Topic 1]]+Dataset[[#This Row],[2028/29 To - Spending review Topic 2]]+Dataset[[#This Row],[2028/29 To - Spending review Topic 3]]+Dataset[[#This Row],[2028/29 To - Spending review Topic 4]]+Dataset[[#This Row],[2028/29 To - Other reallocations]]","v":0},{"$f":"Dataset[[#This Row],[2029/30 To - Spending review Topic 1]]+Dataset[[#This Row],[2029/30 To - Spending review Topic 2]]+Dataset[[#This Row],[2029/30 To - Spending review Topic 3]]+Dataset[[#This Row],[2029/30 To - Spending review Topic 4]]+Dataset[[#This Row],[2029/30 To - Other reallocations]]","v":0},{"$f":"Dataset[[#This Row],[2027/28 Targeted savings]]+Dataset[[#This Row],[2027/28 From - Total]]","v":0},{"$f":"Dataset[[#This Row],[2028/29 Targeted savings]]+Dataset[[#This Row],[2028/29 From - Total]]","v":0},{"$f":"Dataset[[#This Row],[2029/30 Targeted savings]]+Dataset[[#This Row],[2029/30 From - Total]]","v":0},{"$f":"Dataset[[#This Row],[2026/27 Targeted savings]]","v":0},{"$f":"SUM(Dataset[[#This Row],[2027/28 Targeted savings]],Dataset[[#This Row],[2027/28 From - Total]],Dataset[[#This Row],[2027/28 To - Total]])","v":0},{"$f":"SUM(Dataset[[#This Row],[2028/29 Targeted savings]],Dataset[[#This Row],[2028/29 From - Total]],Dataset[[#This Row],[2028/29 To - Total]])","v":0},{"$f":"SUM(Dataset[[#This Row],[2029/30 Targeted savings]],Dataset[[#This Row],[2029/30 From - Total]],Dataset[[#This Row],[2029/30 To - Total]])","v":0},{"$f":"Dataset[[#This Row],[2026/27 Baseline]]+Dataset[[#This Row],[2026/27 Total change]]","v":0},{"$f":"Dataset[[#This Row],[2027/28 Baseline]]+Dataset[[#This Row],[2027/28 Total change]]","v":0},{"$f":"Dataset[[#This Row],[2028/29 Baseline]]+Dataset[[#This Row],[2028/29 Total change]]","v":0},{"$f":"Dataset[[#This Row],[2029/30 Baseline]]+Dataset[[#This Row],[2029/30 Total change]]","v":0}]
["NAT|Non-transfer item","30|Biological assets","2027_28","MTEC2027",30,1,2,32623,103,"30","01","02","032623","000103","30|01|02|000103","02","03","15","60","64","02|03|15|60|64","National","Communications and Digital Technologies","Administration","Departmental Management","Non-transfer item","Capital","Payments for capital assets","Biological assets","Biological assets","Biological assets","Economic development","Economic regulation and infrastructure","NAT",0,0,0,0,0,0,0,0,0,0,0,null,null,null,null,null,null,null,null,null,null,null,null,null,null,null,null,null,null,null,null,null,null,null,null,null,null,null,null,null,null,null,null,null,null,{"$f":"Dataset[[#This Row],[2027/28 From - Spending review Topic 1]]+Dataset[[#This Row],[2027/28 From - Spending review Topic 2]]+Dataset[[#This Row],[2027/28 From - Spending review Topic 3]]+Dataset[[#This Row],[2027/28 From - Spending review Topic 4]]+Dataset[[#This Row],[2027/28 From - Other reallocations]]","v":0},{"$f":"Dataset[[#This Row],[2028/29 From - Spending review Topic 1]]+Dataset[[#This Row],[2028/29 From - Spending review Topic 2]]+Dataset[[#This Row],[2028/29 From - Spending review Topic 3]]+Dataset[[#This Row],[2028/29 From - Spending review Topic 4]]+Dataset[[#This Row],[2028/29 From - Other reallocations]]","v":0},{"$f":"Dataset[[#This Row],[2029/30 From - Spending review Topic 1]]+Dataset[[#This Row],[2029/30 From - Spending review Topic 2]]+Dataset[[#This Row],[2029/30 From - Spending review Topic 3]]+Dataset[[#This Row],[2029/30 From - Spending review Topic 4]]+Dataset[[#This Row],[2029/30 From - Other reallocations]]","v":0},{"$f":"Dataset[[#This Row],[2027/28 To - Spending review Topic 1]]+Dataset[[#This Row],[2027/28 To - Spending review Topic 2]]+Dataset[[#This Row],[2027/28 To - Spending review Topic 3]]+Dataset[[#This Row],[2027/28 To - Spending review Topic 4]]+Dataset[[#This Row],[2027/28 To - Other reallocations]]","v":0},{"$f":"Dataset[[#This Row],[2028/29 To - Spending review Topic 1]]+Dataset[[#This Row],[2028/29 To - Spending review Topic 2]]+Dataset[[#This Row],[2028/29 To - Spending review Topic 3]]+Dataset[[#This Row],[2028/29 To - Spending review Topic 4]]+Dataset[[#This Row],[2028/29 To - Other reallocations]]","v":0},{"$f":"Dataset[[#This Row],[2029/30 To - Spending review Topic 1]]+Dataset[[#This Row],[2029/30 To - Spending review Topic 2]]+Dataset[[#This Row],[2029/30 To - Spending review Topic 3]]+Dataset[[#This Row],[2029/30 To - Spending review Topic 4]]+Dataset[[#This Row],[2029/30 To - Other reallocations]]","v":0},{"$f":"Dataset[[#This Row],[2027/28 Targeted savings]]+Dataset[[#This Row],[2027/28 From - Total]]","v":0},{"$f":"Dataset[[#This Row],[2028/29 Targeted savings]]+Dataset[[#This Row],[2028/29 From - Total]]","v":0},{"$f":"Dataset[[#This Row],[2029/30 Targeted savings]]+Dataset[[#This Row],[2029/30 From - Total]]","v":0},{"$f":"Dataset[[#This Row],[2026/27 Targeted savings]]","v":0},{"$f":"SUM(Dataset[[#This Row],[2027/28 Targeted savings]],Dataset[[#This Row],[2027/28 From - Total]],Dataset[[#This Row],[2027/28 To - Total]])","v":0},{"$f":"SUM(Dataset[[#This Row],[2028/29 Targeted savings]],Dataset[[#This Row],[2028/29 From - Total]],Dataset[[#This Row],[2028/29 To - Total]])","v":0},{"$f":"SUM(Dataset[[#This Row],[2029/30 Targeted savings]],Dataset[[#This Row],[2029/30 From - Total]],Dataset[[#This Row],[2029/30 To - Total]])","v":0},{"$f":"Dataset[[#This Row],[2026/27 Baseline]]+Dataset[[#This Row],[2026/27 Total change]]","v":0},{"$f":"Dataset[[#This Row],[2027/28 Baseline]]+Dataset[[#This Row],[2027/28 Total change]]","v":0},{"$f":"Dataset[[#This Row],[2028/29 Baseline]]+Dataset[[#This Row],[2028/29 Total change]]","v":0},{"$f":"Dataset[[#This Row],[2029/30 Baseline]]+Dataset[[#This Row],[2029/30 Total change]]","v":0}]
["NAT|Non-transfer item","30|Land and sub-soil assets","2027_28","MTEC2027",30,1,2,32624,104,"30","01","02","032624","000104","30|01|02|000104","02","03","16","61","65","02|03|16|61|65","National","Communications and Digital Technologies","Administration","Departmental Management","Non-transfer item","Capital","Payments for capital assets","Land and sub-soil assets","Land and sub-soil assets","Land and sub-soil assets","Economic development","Economic regulation and infrastructure","NAT",0,0,0,0,0,0,0,0,0,0,0,null,null,null,null,null,null,null,null,null,null,null,null,null,null,null,null,null,null,null,null,null,null,null,null,null,null,null,null,null,null,null,null,null,null,{"$f":"Dataset[[#This Row],[2027/28 From - Spending review Topic 1]]+Dataset[[#This Row],[2027/28 From - Spending review Topic 2]]+Dataset[[#This Row],[2027/28 From - Spending review Topic 3]]+Dataset[[#This Row],[2027/28 From - Spending review Topic 4]]+Dataset[[#This Row],[2027/28 From - Other reallocations]]","v":0},{"$f":"Dataset[[#This Row],[2028/29 From - Spending review Topic 1]]+Dataset[[#This Row],[2028/29 From - Spending review Topic 2]]+Dataset[[#This Row],[2028/29 From - Spending review Topic 3]]+Dataset[[#This Row],[2028/29 From - Spending review Topic 4]]+Dataset[[#This Row],[2028/29 From - Other reallocations]]","v":0},{"$f":"Dataset[[#This Row],[2029/30 From - Spending review Topic 1]]+Dataset[[#This Row],[2029/30 From - Spending review Topic 2]]+Dataset[[#This Row],[2029/30 From - Spending review Topic 3]]+Dataset[[#This Row],[2029/30 From - Spending review Topic 4]]+Dataset[[#This Row],[2029/30 From - Other reallocations]]","v":0},{"$f":"Dataset[[#This Row],[2027/28 To - Spending review Topic 1]]+Dataset[[#This Row],[2027/28 To - Spending review Topic 2]]+Dataset[[#This Row],[2027/28 To - Spending review Topic 3]]+Dataset[[#This Row],[2027/28 To - Spending review Topic 4]]+Dataset[[#This Row],[2027/28 To - Other reallocations]]","v":0},{"$f":"Dataset[[#This Row],[2028/29 To - Spending review Topic 1]]+Dataset[[#This Row],[2028/29 To - Spending review Topic 2]]+Dataset[[#This Row],[2028/29 To - Spending review Topic 3]]+Dataset[[#This Row],[2028/29 To - Spending review Topic 4]]+Dataset[[#This Row],[2028/29 To - Other reallocations]]","v":0},{"$f":"Dataset[[#This Row],[2029/30 To - Spending review Topic 1]]+Dataset[[#This Row],[2029/30 To - Spending review Topic 2]]+Dataset[[#This Row],[2029/30 To - Spending review Topic 3]]+Dataset[[#This Row],[2029/30 To - Spending review Topic 4]]+Dataset[[#This Row],[2029/30 To - Other reallocations]]","v":0},{"$f":"Dataset[[#This Row],[2027/28 Targeted savings]]+Dataset[[#This Row],[2027/28 From - Total]]","v":0},{"$f":"Dataset[[#This Row],[2028/29 Targeted savings]]+Dataset[[#This Row],[2028/29 From - Total]]","v":0},{"$f":"Dataset[[#This Row],[2029/30 Targeted savings]]+Dataset[[#This Row],[2029/30 From - Total]]","v":0},{"$f":"Dataset[[#This Row],[2026/27 Targeted savings]]","v":0},{"$f":"SUM(Dataset[[#This Row],[2027/28 Targeted savings]],Dataset[[#This Row],[2027/28 From - Total]],Dataset[[#This Row],[2027/28 To - Total]])","v":0},{"$f":"SUM(Dataset[[#This Row],[2028/29 Targeted savings]],Dataset[[#This Row],[2028/29 From - Total]],Dataset[[#This Row],[2028/29 To - Total]])","v":0},{"$f":"SUM(Dataset[[#This Row],[2029/30 Targeted savings]],Dataset[[#This Row],[2029/30 From - Total]],Dataset[[#This Row],[2029/30 To - Total]])","v":0},{"$f":"Dataset[[#This Row],[2026/27 Baseline]]+Dataset[[#This Row],[2026/27 Total change]]","v":0},{"$f":"Dataset[[#This Row],[2027/28 Baseline]]+Dataset[[#This Row],[2027/28 Total change]]","v":0},{"$f":"Dataset[[#This Row],[2028/29 Baseline]]+Dataset[[#This Row],[2028/29 Total change]]","v":0},{"$f":"Dataset[[#This Row],[2029/30 Baseline]]+Dataset[[#This Row],[2029/30 Total change]]","v":0}]
["NAT|Non-transfer","30|Software and other intangible assets","2027_28","MTEC2027",30,1,2,32625,105,"30","01","02","032625","000105","30|01|02|000105","02","03","17","62","66","02|03|17|62|66","National","Communications and Digital Technologies","Administration","Departmental Management","Non-transfer","Capital","Payments for capital assets","Software and other intangible assets","Software and other intangible assets","Software and other intangible assets","Economic development","Economic regulation and infrastructure","NAT",65,0,0,0,0,0,0,0,0,0,0,null,null,null,null,null,null,null,null,null,null,null,null,null,null,null,null,null,null,null,null,null,null,null,null,null,null,null,null,null,null,null,null,null,null,{"$f":"Dataset[[#This Row],[2027/28 From - Spending review Topic 1]]+Dataset[[#This Row],[2027/28 From - Spending review Topic 2]]+Dataset[[#This Row],[2027/28 From - Spending review Topic 3]]+Dataset[[#This Row],[2027/28 From - Spending review Topic 4]]+Dataset[[#This Row],[2027/28 From - Other reallocations]]","v":0},{"$f":"Dataset[[#This Row],[2028/29 From - Spending review Topic 1]]+Dataset[[#This Row],[2028/29 From - Spending review Topic 2]]+Dataset[[#This Row],[2028/29 From - Spending review Topic 3]]+Dataset[[#This Row],[2028/29 From - Spending review Topic 4]]+Dataset[[#This Row],[2028/29 From - Other reallocations]]","v":0},{"$f":"Dataset[[#This Row],[2029/30 From - Spending review Topic 1]]+Dataset[[#This Row],[2029/30 From - Spending review Topic 2]]+Dataset[[#This Row],[2029/30 From - Spending review Topic 3]]+Dataset[[#This Row],[2029/30 From - Spending review Topic 4]]+Dataset[[#This Row],[2029/30 From - Other reallocations]]","v":0},{"$f":"Dataset[[#This Row],[2027/28 To - Spending review Topic 1]]+Dataset[[#This Row],[2027/28 To - Spending review Topic 2]]+Dataset[[#This Row],[2027/28 To - Spending review Topic 3]]+Dataset[[#This Row],[2027/28 To - Spending review Topic 4]]+Dataset[[#This Row],[2027/28 To - Other reallocations]]","v":0},{"$f":"Dataset[[#This Row],[2028/29 To - Spending review Topic 1]]+Dataset[[#This Row],[2028/29 To - Spending review Topic 2]]+Dataset[[#This Row],[2028/29 To - Spending review Topic 3]]+Dataset[[#This Row],[2028/29 To - Spending review Topic 4]]+Dataset[[#This Row],[2028/29 To - Other reallocations]]","v":0},{"$f":"Dataset[[#This Row],[2029/30 To - Spending review Topic 1]]+Dataset[[#This Row],[2029/30 To - Spending review Topic 2]]+Dataset[[#This Row],[2029/30 To - Spending review Topic 3]]+Dataset[[#This Row],[2029/30 To - Spending review Topic 4]]+Dataset[[#This Row],[2029/30 To - Other reallocations]]","v":0},{"$f":"Dataset[[#This Row],[2027/28 Targeted savings]]+Dataset[[#This Row],[2027/28 From - Total]]","v":0},{"$f":"Dataset[[#This Row],[2028/29 Targeted savings]]+Dataset[[#This Row],[2028/29 From - Total]]","v":0},{"$f":"Dataset[[#This Row],[2029/30 Targeted savings]]+Dataset[[#This Row],[2029/30 From - Total]]","v":0},{"$f":"Dataset[[#This Row],[2026/27 Targeted savings]]","v":0},{"$f":"SUM(Dataset[[#This Row],[2027/28 Targeted savings]],Dataset[[#This Row],[2027/28 From - Total]],Dataset[[#This Row],[2027/28 To - Total]])","v":0},{"$f":"SUM(Dataset[[#This Row],[2028/29 Targeted savings]],Dataset[[#This Row],[2028/29 From - Total]],Dataset[[#This Row],[2028/29 To - Total]])","v":0},{"$f":"SUM(Dataset[[#This Row],[2029/30 Targeted savings]],Dataset[[#This Row],[2029/30 From - Total]],Dataset[[#This Row],[2029/30 To - Total]])","v":0},{"$f":"Dataset[[#This Row],[2026/27 Baseline]]+Dataset[[#This Row],[2026/27 Total change]]","v":0},{"$f":"Dataset[[#This Row],[2027/28 Baseline]]+Dataset[[#This Row],[2027/28 Total change]]","v":0},{"$f":"Dataset[[#This Row],[2028/29 Baseline]]+Dataset[[#This Row],[2028/29 Total change]]","v":0},{"$f":"Dataset[[#This Row],[2029/30 Baseline]]+Dataset[[#This Row],[2029/30 Total change]]","v":0}]
["NAT|Thefts and losses","30|Payments for financial assets","2027_28","MTEC2027",30,1,2,32626,106,"30","01","02","032626","000106","30|01|02|000106","03","04","18","63","67","03|04|18|63|67","National","Communications and Digital Technologies","Administration","Departmental Management","Thefts and losses","Payments for financial assets","Payments for financial assets","Payments for financial assets","Payments for financial assets","Payments for financial assets","Economic development","Economic regulation and infrastructure","NAT",56,22,9,0,0,0,0,0,0,0,0,null,null,null,null,null,null,null,null,null,null,null,null,null,null,null,null,null,null,null,null,null,null,null,null,null,null,null,null,null,null,null,null,null,null,{"$f":"Dataset[[#This Row],[2027/28 From - Spending review Topic 1]]+Dataset[[#This Row],[2027/28 From - Spending review Topic 2]]+Dataset[[#This Row],[2027/28 From - Spending review Topic 3]]+Dataset[[#This Row],[2027/28 From - Spending review Topic 4]]+Dataset[[#This Row],[2027/28 From - Other reallocations]]","v":0},{"$f":"Dataset[[#This Row],[2028/29 From - Spending review Topic 1]]+Dataset[[#This Row],[2028/29 From - Spending review Topic 2]]+Dataset[[#This Row],[2028/29 From - Spending review Topic 3]]+Dataset[[#This Row],[2028/29 From - Spending review Topic 4]]+Dataset[[#This Row],[2028/29 From - Other reallocations]]","v":0},{"$f":"Dataset[[#This Row],[2029/30 From - Spending review Topic 1]]+Dataset[[#This Row],[2029/30 From - Spending review Topic 2]]+Dataset[[#This Row],[2029/30 From - Spending review Topic 3]]+Dataset[[#This Row],[2029/30 From - Spending review Topic 4]]+Dataset[[#This Row],[2029/30 From - Other reallocations]]","v":0},{"$f":"Dataset[[#This Row],[2027/28 To - Spending review Topic 1]]+Dataset[[#This Row],[2027/28 To - Spending review Topic 2]]+Dataset[[#This Row],[2027/28 To - Spending review Topic 3]]+Dataset[[#This Row],[2027/28 To - Spending review Topic 4]]+Dataset[[#This Row],[2027/28 To - Other reallocations]]","v":0},{"$f":"Dataset[[#This Row],[2028/29 To - Spending review Topic 1]]+Dataset[[#This Row],[2028/29 To - Spending review Topic 2]]+Dataset[[#This Row],[2028/29 To - Spending review Topic 3]]+Dataset[[#This Row],[2028/29 To - Spending review Topic 4]]+Dataset[[#This Row],[2028/29 To - Other reallocations]]","v":0},{"$f":"Dataset[[#This Row],[2029/30 To - Spending review Topic 1]]+Dataset[[#This Row],[2029/30 To - Spending review Topic 2]]+Dataset[[#This Row],[2029/30 To - Spending review Topic 3]]+Dataset[[#This Row],[2029/30 To - Spending review Topic 4]]+Dataset[[#This Row],[2029/30 To - Other reallocations]]","v":0},{"$f":"Dataset[[#This Row],[2027/28 Targeted savings]]+Dataset[[#This Row],[2027/28 From - Total]]","v":0},{"$f":"Dataset[[#This Row],[2028/29 Targeted savings]]+Dataset[[#This Row],[2028/29 From - Total]]","v":0},{"$f":"Dataset[[#This Row],[2029/30 Targeted savings]]+Dataset[[#This Row],[2029/30 From - Total]]","v":0},{"$f":"Dataset[[#This Row],[2026/27 Targeted savings]]","v":0},{"$f":"SUM(Dataset[[#This Row],[2027/28 Targeted savings]],Dataset[[#This Row],[2027/28 From - Total]],Dataset[[#This Row],[2027/28 To - Total]])","v":0},{"$f":"SUM(Dataset[[#This Row],[2028/29 Targeted savings]],Dataset[[#This Row],[2028/29 From - Total]],Dataset[[#This Row],[2028/29 To - Total]])","v":0},{"$f":"SUM(Dataset[[#This Row],[2029/30 Targeted savings]],Dataset[[#This Row],[2029/30 From - Total]],Dataset[[#This Row],[2029/30 To - Total]])","v":0},{"$f":"Dataset[[#This Row],[2026/27 Baseline]]+Dataset[[#This Row],[2026/27 Total change]]","v":0},{"$f":"Dataset[[#This Row],[2027/28 Baseline]]+Dataset[[#This Row],[2027/28 Total change]]","v":0},{"$f":"Dataset[[#This Row],[2028/29 Baseline]]+Dataset[[#This Row],[2028/29 Total change]]","v":0},{"$f":"Dataset[[#This Row],[2029/30 Baseline]]+Dataset[[#This Row],[2029/30 Total change]]","v":0}]
["NAT|Non-transfer","30|Salaries and wages","2027_28","MTEC2027",30,1,3,32627,107,"30","01","03","032627","000107","30|01|03|000107","01","01","01","01","01","01|01|01|01|01","National","Communications and Digital Technologies","Administration","Corporate Services","Non-transfer","Current","Current payments","Compensation of employees","Salaries and wages","Salaries and wages","Economic development","Economic regulation and infrastructure","NAT",47825,49500,47384,55559,45905,45905,44485,52459,62486,65085,67045,null,null,null,null,null,null,null,null,null,null,null,null,null,null,null,null,null,null,null,null,null,null,null,null,null,null,null,null,null,null,null,null,null,null,{"$f":"Dataset[[#This Row],[2027/28 From - Spending review Topic 1]]+Dataset[[#This Row],[2027/28 From - Spending review Topic 2]]+Dataset[[#This Row],[2027/28 From - Spending review Topic 3]]+Dataset[[#This Row],[2027/28 From - Spending review Topic 4]]+Dataset[[#This Row],[2027/28 From - Other reallocations]]","v":0},{"$f":"Dataset[[#This Row],[2028/29 From - Spending review Topic 1]]+Dataset[[#This Row],[2028/29 From - Spending review Topic 2]]+Dataset[[#This Row],[2028/29 From - Spending review Topic 3]]+Dataset[[#This Row],[2028/29 From - Spending review Topic 4]]+Dataset[[#This Row],[2028/29 From - Other reallocations]]","v":0},{"$f":"Dataset[[#This Row],[2029/30 From - Spending review Topic 1]]+Dataset[[#This Row],[2029/30 From - Spending review Topic 2]]+Dataset[[#This Row],[2029/30 From - Spending review Topic 3]]+Dataset[[#This Row],[2029/30 From - Spending review Topic 4]]+Dataset[[#This Row],[2029/30 From - Other reallocations]]","v":0},{"$f":"Dataset[[#This Row],[2027/28 To - Spending review Topic 1]]+Dataset[[#This Row],[2027/28 To - Spending review Topic 2]]+Dataset[[#This Row],[2027/28 To - Spending review Topic 3]]+Dataset[[#This Row],[2027/28 To - Spending review Topic 4]]+Dataset[[#This Row],[2027/28 To - Other reallocations]]","v":0},{"$f":"Dataset[[#This Row],[2028/29 To - Spending review Topic 1]]+Dataset[[#This Row],[2028/29 To - Spending review Topic 2]]+Dataset[[#This Row],[2028/29 To - Spending review Topic 3]]+Dataset[[#This Row],[2028/29 To - Spending review Topic 4]]+Dataset[[#This Row],[2028/29 To - Other reallocations]]","v":0},{"$f":"Dataset[[#This Row],[2029/30 To - Spending review Topic 1]]+Dataset[[#This Row],[2029/30 To - Spending review Topic 2]]+Dataset[[#This Row],[2029/30 To - Spending review Topic 3]]+Dataset[[#This Row],[2029/30 To - Spending review Topic 4]]+Dataset[[#This Row],[2029/30 To - Other reallocations]]","v":0},{"$f":"Dataset[[#This Row],[2027/28 Targeted savings]]+Dataset[[#This Row],[2027/28 From - Total]]","v":0},{"$f":"Dataset[[#This Row],[2028/29 Targeted savings]]+Dataset[[#This Row],[2028/29 From - Total]]","v":0},{"$f":"Dataset[[#This Row],[2029/30 Targeted savings]]+Dataset[[#This Row],[2029/30 From - Total]]","v":0},{"$f":"Dataset[[#This Row],[2026/27 Targeted savings]]","v":0},{"$f":"SUM(Dataset[[#This Row],[2027/28 Targeted savings]],Dataset[[#This Row],[2027/28 From - Total]],Dataset[[#This Row],[2027/28 To - Total]])","v":0},{"$f":"SUM(Dataset[[#This Row],[2028/29 Targeted savings]],Dataset[[#This Row],[2028/29 From - Total]],Dataset[[#This Row],[2028/29 To - Total]])","v":0},{"$f":"SUM(Dataset[[#This Row],[2029/30 Targeted savings]],Dataset[[#This Row],[2029/30 From - Total]],Dataset[[#This Row],[2029/30 To - Total]])","v":0},{"$f":"Dataset[[#This Row],[2026/27 Baseline]]+Dataset[[#This Row],[2026/27 Total change]]","v":52459},{"$f":"Dataset[[#This Row],[2027/28 Baseline]]+Dataset[[#This Row],[2027/28 Total change]]","v":62486},{"$f":"Dataset[[#This Row],[2028/29 Baseline]]+Dataset[[#This Row],[2028/29 Total change]]","v":65085},{"$f":"Dataset[[#This Row],[2029/30 Baseline]]+Dataset[[#This Row],[2029/30 Total change]]","v":67045}]
["NAT|Non-transfer","30|Social contributions","2027_28","MTEC2027",30,1,3,32628,108,"30","01","03","032628","000108","30|01|03|000108","01","01","01","02","02","01|01|01|02|02","National","Communications and Digital Technologies","Administration","Corporate Services","Non-transfer","Current","Current payments","Compensation of employees","Social contributions","Social contributions","Economic development","Economic regulation and infrastructure","NAT",6058,5929,5998,6200,4950,4950,5668,5027,4480,4300,4429,null,null,null,null,null,null,null,null,null,null,null,null,null,null,null,null,null,null,null,null,null,null,null,null,null,null,null,null,null,null,null,null,null,null,{"$f":"Dataset[[#This Row],[2027/28 From - Spending review Topic 1]]+Dataset[[#This Row],[2027/28 From - Spending review Topic 2]]+Dataset[[#This Row],[2027/28 From - Spending review Topic 3]]+Dataset[[#This Row],[2027/28 From - Spending review Topic 4]]+Dataset[[#This Row],[2027/28 From - Other reallocations]]","v":0},{"$f":"Dataset[[#This Row],[2028/29 From - Spending review Topic 1]]+Dataset[[#This Row],[2028/29 From - Spending review Topic 2]]+Dataset[[#This Row],[2028/29 From - Spending review Topic 3]]+Dataset[[#This Row],[2028/29 From - Spending review Topic 4]]+Dataset[[#This Row],[2028/29 From - Other reallocations]]","v":0},{"$f":"Dataset[[#This Row],[2029/30 From - Spending review Topic 1]]+Dataset[[#This Row],[2029/30 From - Spending review Topic 2]]+Dataset[[#This Row],[2029/30 From - Spending review Topic 3]]+Dataset[[#This Row],[2029/30 From - Spending review Topic 4]]+Dataset[[#This Row],[2029/30 From - Other reallocations]]","v":0},{"$f":"Dataset[[#This Row],[2027/28 To - Spending review Topic 1]]+Dataset[[#This Row],[2027/28 To - Spending review Topic 2]]+Dataset[[#This Row],[2027/28 To - Spending review Topic 3]]+Dataset[[#This Row],[2027/28 To - Spending review Topic 4]]+Dataset[[#This Row],[2027/28 To - Other reallocations]]","v":0},{"$f":"Dataset[[#This Row],[2028/29 To - Spending review Topic 1]]+Dataset[[#This Row],[2028/29 To - Spending review Topic 2]]+Dataset[[#This Row],[2028/29 To - Spending review Topic 3]]+Dataset[[#This Row],[2028/29 To - Spending review Topic 4]]+Dataset[[#This Row],[2028/29 To - Other reallocations]]","v":0},{"$f":"Dataset[[#This Row],[2029/30 To - Spending review Topic 1]]+Dataset[[#This Row],[2029/30 To - Spending review Topic 2]]+Dataset[[#This Row],[2029/30 To - Spending review Topic 3]]+Dataset[[#This Row],[2029/30 To - Spending review Topic 4]]+Dataset[[#This Row],[2029/30 To - Other reallocations]]","v":0},{"$f":"Dataset[[#This Row],[2027/28 Targeted savings]]+Dataset[[#This Row],[2027/28 From - Total]]","v":0},{"$f":"Dataset[[#This Row],[2028/29 Targeted savings]]+Dataset[[#This Row],[2028/29 From - Total]]","v":0},{"$f":"Dataset[[#This Row],[2029/30 Targeted savings]]+Dataset[[#This Row],[2029/30 From - Total]]","v":0},{"$f":"Dataset[[#This Row],[2026/27 Targeted savings]]","v":0},{"$f":"SUM(Dataset[[#This Row],[2027/28 Targeted savings]],Dataset[[#This Row],[2027/28 From - Total]],Dataset[[#This Row],[2027/28 To - Total]])","v":0},{"$f":"SUM(Dataset[[#This Row],[2028/29 Targeted savings]],Dataset[[#This Row],[2028/29 From - Total]],Dataset[[#This Row],[2028/29 To - Total]])","v":0},{"$f":"SUM(Dataset[[#This Row],[2029/30 Targeted savings]],Dataset[[#This Row],[2029/30 From - Total]],Dataset[[#This Row],[2029/30 To - Total]])","v":0},{"$f":"Dataset[[#This Row],[2026/27 Baseline]]+Dataset[[#This Row],[2026/27 Total change]]","v":5027},{"$f":"Dataset[[#This Row],[2027/28 Baseline]]+Dataset[[#This Row],[2027/28 Total change]]","v":4480},{"$f":"Dataset[[#This Row],[2028/29 Baseline]]+Dataset[[#This Row],[2028/29 Total change]]","v":4300},{"$f":"Dataset[[#This Row],[2029/30 Baseline]]+Dataset[[#This Row],[2029/30 Total change]]","v":4429}]
["NAT|Non-transfer","30|Administrative fees","2027_28","MTEC2027",30,1,3,32629,109,"30","01","03","032629","000109","30|01|03|000109","01","01","02","03","03","01|01|02|03|03","National","Communications and Digital Technologies","Administration","Corporate Services","Non-transfer","Current","Current payments","Goods and services","Administrative fees","Administrative fees","Economic development","Economic regulation and infrastructure","NAT",54,90,164,118,133,133,145,114,148,153,158,null,null,null,null,null,null,null,null,null,null,null,null,null,null,null,null,null,null,null,null,null,null,null,null,null,null,null,null,null,null,null,null,null,null,{"$f":"Dataset[[#This Row],[2027/28 From - Spending review Topic 1]]+Dataset[[#This Row],[2027/28 From - Spending review Topic 2]]+Dataset[[#This Row],[2027/28 From - Spending review Topic 3]]+Dataset[[#This Row],[2027/28 From - Spending review Topic 4]]+Dataset[[#This Row],[2027/28 From - Other reallocations]]","v":0},{"$f":"Dataset[[#This Row],[2028/29 From - Spending review Topic 1]]+Dataset[[#This Row],[2028/29 From - Spending review Topic 2]]+Dataset[[#This Row],[2028/29 From - Spending review Topic 3]]+Dataset[[#This Row],[2028/29 From - Spending review Topic 4]]+Dataset[[#This Row],[2028/29 From - Other reallocations]]","v":0},{"$f":"Dataset[[#This Row],[2029/30 From - Spending review Topic 1]]+Dataset[[#This Row],[2029/30 From - Spending review Topic 2]]+Dataset[[#This Row],[2029/30 From - Spending review Topic 3]]+Dataset[[#This Row],[2029/30 From - Spending review Topic 4]]+Dataset[[#This Row],[2029/30 From - Other reallocations]]","v":0},{"$f":"Dataset[[#This Row],[2027/28 To - Spending review Topic 1]]+Dataset[[#This Row],[2027/28 To - Spending review Topic 2]]+Dataset[[#This Row],[2027/28 To - Spending review Topic 3]]+Dataset[[#This Row],[2027/28 To - Spending review Topic 4]]+Dataset[[#This Row],[2027/28 To - Other reallocations]]","v":0},{"$f":"Dataset[[#This Row],[2028/29 To - Spending review Topic 1]]+Dataset[[#This Row],[2028/29 To - Spending review Topic 2]]+Dataset[[#This Row],[2028/29 To - Spending review Topic 3]]+Dataset[[#This Row],[2028/29 To - Spending review Topic 4]]+Dataset[[#This Row],[2028/29 To - Other reallocations]]","v":0},{"$f":"Dataset[[#This Row],[2029/30 To - Spending review Topic 1]]+Dataset[[#This Row],[2029/30 To - Spending review Topic 2]]+Dataset[[#This Row],[2029/30 To - Spending review Topic 3]]+Dataset[[#This Row],[2029/30 To - Spending review Topic 4]]+Dataset[[#This Row],[2029/30 To - Other reallocations]]","v":0},{"$f":"Dataset[[#This Row],[2027/28 Targeted savings]]+Dataset[[#This Row],[2027/28 From - Total]]","v":0},{"$f":"Dataset[[#This Row],[2028/29 Targeted savings]]+Dataset[[#This Row],[2028/29 From - Total]]","v":0},{"$f":"Dataset[[#This Row],[2029/30 Targeted savings]]+Dataset[[#This Row],[2029/30 From - Total]]","v":0},{"$f":"Dataset[[#This Row],[2026/27 Targeted savings]]","v":0},{"$f":"SUM(Dataset[[#This Row],[2027/28 Targeted savings]],Dataset[[#This Row],[2027/28 From - Total]],Dataset[[#This Row],[2027/28 To - Total]])","v":0},{"$f":"SUM(Dataset[[#This Row],[2028/29 Targeted savings]],Dataset[[#This Row],[2028/29 From - Total]],Dataset[[#This Row],[2028/29 To - Total]])","v":0},{"$f":"SUM(Dataset[[#This Row],[2029/30 Targeted savings]],Dataset[[#This Row],[2029/30 From - Total]],Dataset[[#This Row],[2029/30 To - Total]])","v":0},{"$f":"Dataset[[#This Row],[2026/27 Baseline]]+Dataset[[#This Row],[2026/27 Total change]]","v":114},{"$f":"Dataset[[#This Row],[2027/28 Baseline]]+Dataset[[#This Row],[2027/28 Total change]]","v":148},{"$f":"Dataset[[#This Row],[2028/29 Baseline]]+Dataset[[#This Row],[2028/29 Total change]]","v":153},{"$f":"Dataset[[#This Row],[2029/30 Baseline]]+Dataset[[#This Row],[2029/30 Total change]]","v":158}]
["NAT|Non-transfer","30|Advertising","2027_28","MTEC2027",30,1,3,32630,110,"30","01","03","032630","000110","30|01|03|000110","01","01","02","04","04","01|01|02|04|04","National","Communications and Digital Technologies","Administration","Corporate Services","Non-transfer","Current","Current payments","Goods and services","Advertising","Advertising","Economic development","Economic regulation and infrastructure","NAT",359,618,13,2556,2569,2569,825,2830,2900,1057,1089,null,null,null,null,null,null,null,null,null,null,null,null,null,null,null,null,null,null,null,null,null,null,null,null,null,null,null,null,null,null,null,null,null,null,{"$f":"Dataset[[#This Row],[2027/28 From - Spending review Topic 1]]+Dataset[[#This Row],[2027/28 From - Spending review Topic 2]]+Dataset[[#This Row],[2027/28 From - Spending review Topic 3]]+Dataset[[#This Row],[2027/28 From - Spending review Topic 4]]+Dataset[[#This Row],[2027/28 From - Other reallocations]]","v":0},{"$f":"Dataset[[#This Row],[2028/29 From - Spending review Topic 1]]+Dataset[[#This Row],[2028/29 From - Spending review Topic 2]]+Dataset[[#This Row],[2028/29 From - Spending review Topic 3]]+Dataset[[#This Row],[2028/29 From - Spending review Topic 4]]+Dataset[[#This Row],[2028/29 From - Other reallocations]]","v":0},{"$f":"Dataset[[#This Row],[2029/30 From - Spending review Topic 1]]+Dataset[[#This Row],[2029/30 From - Spending review Topic 2]]+Dataset[[#This Row],[2029/30 From - Spending review Topic 3]]+Dataset[[#This Row],[2029/30 From - Spending review Topic 4]]+Dataset[[#This Row],[2029/30 From - Other reallocations]]","v":0},{"$f":"Dataset[[#This Row],[2027/28 To - Spending review Topic 1]]+Dataset[[#This Row],[2027/28 To - Spending review Topic 2]]+Dataset[[#This Row],[2027/28 To - Spending review Topic 3]]+Dataset[[#This Row],[2027/28 To - Spending review Topic 4]]+Dataset[[#This Row],[2027/28 To - Other reallocations]]","v":0},{"$f":"Dataset[[#This Row],[2028/29 To - Spending review Topic 1]]+Dataset[[#This Row],[2028/29 To - Spending review Topic 2]]+Dataset[[#This Row],[2028/29 To - Spending review Topic 3]]+Dataset[[#This Row],[2028/29 To - Spending review Topic 4]]+Dataset[[#This Row],[2028/29 To - Other reallocations]]","v":0},{"$f":"Dataset[[#This Row],[2029/30 To - Spending review Topic 1]]+Dataset[[#This Row],[2029/30 To - Spending review Topic 2]]+Dataset[[#This Row],[2029/30 To - Spending review Topic 3]]+Dataset[[#This Row],[2029/30 To - Spending review Topic 4]]+Dataset[[#This Row],[2029/30 To - Other reallocations]]","v":0},{"$f":"Dataset[[#This Row],[2027/28 Targeted savings]]+Dataset[[#This Row],[2027/28 From - Total]]","v":0},{"$f":"Dataset[[#This Row],[2028/29 Targeted savings]]+Dataset[[#This Row],[2028/29 From - Total]]","v":0},{"$f":"Dataset[[#This Row],[2029/30 Targeted savings]]+Dataset[[#This Row],[2029/30 From - Total]]","v":0},{"$f":"Dataset[[#This Row],[2026/27 Targeted savings]]","v":0},{"$f":"SUM(Dataset[[#This Row],[2027/28 Targeted savings]],Dataset[[#This Row],[2027/28 From - Total]],Dataset[[#This Row],[2027/28 To - Total]])","v":0},{"$f":"SUM(Dataset[[#This Row],[2028/29 Targeted savings]],Dataset[[#This Row],[2028/29 From - Total]],Dataset[[#This Row],[2028/29 To - Total]])","v":0},{"$f":"SUM(Dataset[[#This Row],[2029/30 Targeted savings]],Dataset[[#This Row],[2029/30 From - Total]],Dataset[[#This Row],[2029/30 To - Total]])","v":0},{"$f":"Dataset[[#This Row],[2026/27 Baseline]]+Dataset[[#This Row],[2026/27 Total change]]","v":2830},{"$f":"Dataset[[#This Row],[2027/28 Baseline]]+Dataset[[#This Row],[2027/28 Total change]]","v":2900},{"$f":"Dataset[[#This Row],[2028/29 Baseline]]+Dataset[[#This Row],[2028/29 Total change]]","v":1057},{"$f":"Dataset[[#This Row],[2029/30 Baseline]]+Dataset[[#This Row],[2029/30 Total change]]","v":1089}]
["NAT|Non-transfer","30|Minor assets","2027_28","MTEC2027",30,1,3,32631,111,"30","01","03","032631","000111","30|01|03|000111","01","01","02","05","05","01|01|02|05|05","National","Communications and Digital Technologies","Administration","Corporate Services","Non-transfer","Current","Current payments","Goods and services","Minor assets","Minor assets","Economic development","Economic regulation and infrastructure","NAT",15,12,16,1455,1455,1455,21,1460,0,0,0,null,null,null,null,null,null,null,null,null,null,null,null,null,null,null,null,null,null,null,null,null,null,null,null,null,null,null,null,null,null,null,null,null,null,{"$f":"Dataset[[#This Row],[2027/28 From - Spending review Topic 1]]+Dataset[[#This Row],[2027/28 From - Spending review Topic 2]]+Dataset[[#This Row],[2027/28 From - Spending review Topic 3]]+Dataset[[#This Row],[2027/28 From - Spending review Topic 4]]+Dataset[[#This Row],[2027/28 From - Other reallocations]]","v":0},{"$f":"Dataset[[#This Row],[2028/29 From - Spending review Topic 1]]+Dataset[[#This Row],[2028/29 From - Spending review Topic 2]]+Dataset[[#This Row],[2028/29 From - Spending review Topic 3]]+Dataset[[#This Row],[2028/29 From - Spending review Topic 4]]+Dataset[[#This Row],[2028/29 From - Other reallocations]]","v":0},{"$f":"Dataset[[#This Row],[2029/30 From - Spending review Topic 1]]+Dataset[[#This Row],[2029/30 From - Spending review Topic 2]]+Dataset[[#This Row],[2029/30 From - Spending review Topic 3]]+Dataset[[#This Row],[2029/30 From - Spending review Topic 4]]+Dataset[[#This Row],[2029/30 From - Other reallocations]]","v":0},{"$f":"Dataset[[#This Row],[2027/28 To - Spending review Topic 1]]+Dataset[[#This Row],[2027/28 To - Spending review Topic 2]]+Dataset[[#This Row],[2027/28 To - Spending review Topic 3]]+Dataset[[#This Row],[2027/28 To - Spending review Topic 4]]+Dataset[[#This Row],[2027/28 To - Other reallocations]]","v":0},{"$f":"Dataset[[#This Row],[2028/29 To - Spending review Topic 1]]+Dataset[[#This Row],[2028/29 To - Spending review Topic 2]]+Dataset[[#This Row],[2028/29 To - Spending review Topic 3]]+Dataset[[#This Row],[2028/29 To - Spending review Topic 4]]+Dataset[[#This Row],[2028/29 To - Other reallocations]]","v":0},{"$f":"Dataset[[#This Row],[2029/30 To - Spending review Topic 1]]+Dataset[[#This Row],[2029/30 To - Spending review Topic 2]]+Dataset[[#This Row],[2029/30 To - Spending review Topic 3]]+Dataset[[#This Row],[2029/30 To - Spending review Topic 4]]+Dataset[[#This Row],[2029/30 To - Other reallocations]]","v":0},{"$f":"Dataset[[#This Row],[2027/28 Targeted savings]]+Dataset[[#This Row],[2027/28 From - Total]]","v":0},{"$f":"Dataset[[#This Row],[2028/29 Targeted savings]]+Dataset[[#This Row],[2028/29 From - Total]]","v":0},{"$f":"Dataset[[#This Row],[2029/30 Targeted savings]]+Dataset[[#This Row],[2029/30 From - Total]]","v":0},{"$f":"Dataset[[#This Row],[2026/27 Targeted savings]]","v":0},{"$f":"SUM(Dataset[[#This Row],[2027/28 Targeted savings]],Dataset[[#This Row],[2027/28 From - Total]],Dataset[[#This Row],[2027/28 To - Total]])","v":0},{"$f":"SUM(Dataset[[#This Row],[2028/29 Targeted savings]],Dataset[[#This Row],[2028/29 From - Total]],Dataset[[#This Row],[2028/29 To - Total]])","v":0},{"$f":"SUM(Dataset[[#This Row],[2029/30 Targeted savings]],Dataset[[#This Row],[2029/30 From - Total]],Dataset[[#This Row],[2029/30 To - Total]])","v":0},{"$f":"Dataset[[#This Row],[2026/27 Baseline]]+Dataset[[#This Row],[2026/27 Total change]]","v":1460},{"$f":"Dataset[[#This Row],[2027/28 Baseline]]+Dataset[[#This Row],[2027/28 Total change]]","v":0},{"$f":"Dataset[[#This Row],[2028/29 Baseline]]+Dataset[[#This Row],[2028/29 Total change]]","v":0},{"$f":"Dataset[[#This Row],[2029/30 Baseline]]+Dataset[[#This Row],[2029/30 Total change]]","v":0}]
["NAT|Non-transfer","30|Bursaries: Employees","2027_28","MTEC2027",30,1,3,32632,112,"30","01","03","032632","000112","30|01|03|000112","01","01","02","07","07","01|01|02|07|07","National","Communications and Digital Technologies","Administration","Corporate Services","Non-transfer","Current","Current payments","Goods and services","Bursaries: Employees","Bursaries: Employees","Economic development","Economic regulation and infrastructure","NAT",409,524,263,455,400,400,450,599,946,976,1005,null,null,null,null,null,null,null,null,null,null,null,null,null,null,null,null,null,null,null,null,null,null,null,null,null,null,null,null,null,null,null,null,null,null,{"$f":"Dataset[[#This Row],[2027/28 From - Spending review Topic 1]]+Dataset[[#This Row],[2027/28 From - Spending review Topic 2]]+Dataset[[#This Row],[2027/28 From - Spending review Topic 3]]+Dataset[[#This Row],[2027/28 From - Spending review Topic 4]]+Dataset[[#This Row],[2027/28 From - Other reallocations]]","v":0},{"$f":"Dataset[[#This Row],[2028/29 From - Spending review Topic 1]]+Dataset[[#This Row],[2028/29 From - Spending review Topic 2]]+Dataset[[#This Row],[2028/29 From - Spending review Topic 3]]+Dataset[[#This Row],[2028/29 From - Spending review Topic 4]]+Dataset[[#This Row],[2028/29 From - Other reallocations]]","v":0},{"$f":"Dataset[[#This Row],[2029/30 From - Spending review Topic 1]]+Dataset[[#This Row],[2029/30 From - Spending review Topic 2]]+Dataset[[#This Row],[2029/30 From - Spending review Topic 3]]+Dataset[[#This Row],[2029/30 From - Spending review Topic 4]]+Dataset[[#This Row],[2029/30 From - Other reallocations]]","v":0},{"$f":"Dataset[[#This Row],[2027/28 To - Spending review Topic 1]]+Dataset[[#This Row],[2027/28 To - Spending review Topic 2]]+Dataset[[#This Row],[2027/28 To - Spending review Topic 3]]+Dataset[[#This Row],[2027/28 To - Spending review Topic 4]]+Dataset[[#This Row],[2027/28 To - Other reallocations]]","v":0},{"$f":"Dataset[[#This Row],[2028/29 To - Spending review Topic 1]]+Dataset[[#This Row],[2028/29 To - Spending review Topic 2]]+Dataset[[#This Row],[2028/29 To - Spending review Topic 3]]+Dataset[[#This Row],[2028/29 To - Spending review Topic 4]]+Dataset[[#This Row],[2028/29 To - Other reallocations]]","v":0},{"$f":"Dataset[[#This Row],[2029/30 To - Spending review Topic 1]]+Dataset[[#This Row],[2029/30 To - Spending review Topic 2]]+Dataset[[#This Row],[2029/30 To - Spending review Topic 3]]+Dataset[[#This Row],[2029/30 To - Spending review Topic 4]]+Dataset[[#This Row],[2029/30 To - Other reallocations]]","v":0},{"$f":"Dataset[[#This Row],[2027/28 Targeted savings]]+Dataset[[#This Row],[2027/28 From - Total]]","v":0},{"$f":"Dataset[[#This Row],[2028/29 Targeted savings]]+Dataset[[#This Row],[2028/29 From - Total]]","v":0},{"$f":"Dataset[[#This Row],[2029/30 Targeted savings]]+Dataset[[#This Row],[2029/30 From - Total]]","v":0},{"$f":"Dataset[[#This Row],[2026/27 Targeted savings]]","v":0},{"$f":"SUM(Dataset[[#This Row],[2027/28 Targeted savings]],Dataset[[#This Row],[2027/28 From - Total]],Dataset[[#This Row],[2027/28 To - Total]])","v":0},{"$f":"SUM(Dataset[[#This Row],[2028/29 Targeted savings]],Dataset[[#This Row],[2028/29 From - Total]],Dataset[[#This Row],[2028/29 To - Total]])","v":0},{"$f":"SUM(Dataset[[#This Row],[2029/30 Targeted savings]],Dataset[[#This Row],[2029/30 From - Total]],Dataset[[#This Row],[2029/30 To - Total]])","v":0},{"$f":"Dataset[[#This Row],[2026/27 Baseline]]+Dataset[[#This Row],[2026/27 Total change]]","v":599},{"$f":"Dataset[[#This Row],[2027/28 Baseline]]+Dataset[[#This Row],[2027/28 Total change]]","v":946},{"$f":"Dataset[[#This Row],[2028/29 Baseline]]+Dataset[[#This Row],[2028/29 Total change]]","v":976},{"$f":"Dataset[[#This Row],[2029/30 Baseline]]+Dataset[[#This Row],[2029/30 Total change]]","v":1005}]
["NAT|Non-transfer","30|Catering: Departmental activities","2027_28","MTEC2027",30,1,3,32633,113,"30","01","03","032633","000113","30|01|03|000113","01","01","02","08","08","01|01|02|08|08","National","Communications and Digital Technologies","Administration","Corporate Services","Non-transfer","Current","Current payments","Goods and services","Catering: Departmental activities","Catering: Departmental activities","Economic development","Economic regulation and infrastructure","NAT",80,118,64,731,577,577,256,32,145,150,155,null,null,null,null,null,null,null,null,null,null,null,null,null,null,null,null,null,null,null,null,null,null,null,null,null,null,null,null,null,null,null,null,null,null,{"$f":"Dataset[[#This Row],[2027/28 From - Spending review Topic 1]]+Dataset[[#This Row],[2027/28 From - Spending review Topic 2]]+Dataset[[#This Row],[2027/28 From - Spending review Topic 3]]+Dataset[[#This Row],[2027/28 From - Spending review Topic 4]]+Dataset[[#This Row],[2027/28 From - Other reallocations]]","v":0},{"$f":"Dataset[[#This Row],[2028/29 From - Spending review Topic 1]]+Dataset[[#This Row],[2028/29 From - Spending review Topic 2]]+Dataset[[#This Row],[2028/29 From - Spending review Topic 3]]+Dataset[[#This Row],[2028/29 From - Spending review Topic 4]]+Dataset[[#This Row],[2028/29 From - Other reallocations]]","v":0},{"$f":"Dataset[[#This Row],[2029/30 From - Spending review Topic 1]]+Dataset[[#This Row],[2029/30 From - Spending review Topic 2]]+Dataset[[#This Row],[2029/30 From - Spending review Topic 3]]+Dataset[[#This Row],[2029/30 From - Spending review Topic 4]]+Dataset[[#This Row],[2029/30 From - Other reallocations]]","v":0},{"$f":"Dataset[[#This Row],[2027/28 To - Spending review Topic 1]]+Dataset[[#This Row],[2027/28 To - Spending review Topic 2]]+Dataset[[#This Row],[2027/28 To - Spending review Topic 3]]+Dataset[[#This Row],[2027/28 To - Spending review Topic 4]]+Dataset[[#This Row],[2027/28 To - Other reallocations]]","v":0},{"$f":"Dataset[[#This Row],[2028/29 To - Spending review Topic 1]]+Dataset[[#This Row],[2028/29 To - Spending review Topic 2]]+Dataset[[#This Row],[2028/29 To - Spending review Topic 3]]+Dataset[[#This Row],[2028/29 To - Spending review Topic 4]]+Dataset[[#This Row],[2028/29 To - Other reallocations]]","v":0},{"$f":"Dataset[[#This Row],[2029/30 To - Spending review Topic 1]]+Dataset[[#This Row],[2029/30 To - Spending review Topic 2]]+Dataset[[#This Row],[2029/30 To - Spending review Topic 3]]+Dataset[[#This Row],[2029/30 To - Spending review Topic 4]]+Dataset[[#This Row],[2029/30 To - Other reallocations]]","v":0},{"$f":"Dataset[[#This Row],[2027/28 Targeted savings]]+Dataset[[#This Row],[2027/28 From - Total]]","v":0},{"$f":"Dataset[[#This Row],[2028/29 Targeted savings]]+Dataset[[#This Row],[2028/29 From - Total]]","v":0},{"$f":"Dataset[[#This Row],[2029/30 Targeted savings]]+Dataset[[#This Row],[2029/30 From - Total]]","v":0},{"$f":"Dataset[[#This Row],[2026/27 Targeted savings]]","v":0},{"$f":"SUM(Dataset[[#This Row],[2027/28 Targeted savings]],Dataset[[#This Row],[2027/28 From - Total]],Dataset[[#This Row],[2027/28 To - Total]])","v":0},{"$f":"SUM(Dataset[[#This Row],[2028/29 Targeted savings]],Dataset[[#This Row],[2028/29 From - Total]],Dataset[[#This Row],[2028/29 To - Total]])","v":0},{"$f":"SUM(Dataset[[#This Row],[2029/30 Targeted savings]],Dataset[[#This Row],[2029/30 From - Total]],Dataset[[#This Row],[2029/30 To - Total]])","v":0},{"$f":"Dataset[[#This Row],[2026/27 Baseline]]+Dataset[[#This Row],[2026/27 Total change]]","v":32},{"$f":"Dataset[[#This Row],[2027/28 Baseline]]+Dataset[[#This Row],[2027/28 Total change]]","v":145},{"$f":"Dataset[[#This Row],[2028/29 Baseline]]+Dataset[[#This Row],[2028/29 Total change]]","v":150},{"$f":"Dataset[[#This Row],[2029/30 Baseline]]+Dataset[[#This Row],[2029/30 Total change]]","v":155}]
["NAT|Non-transfer","30|Communication (G&S)","2027_28","MTEC2027",30,1,3,32634,114,"30","01","03","032634","000114","30|01|03|000114","01","01","02","09","09","01|01|02|09|09","National","Communications and Digital Technologies","Administration","Corporate Services","Non-transfer","Current","Current payments","Goods and services","Communication (G&S)","Communication (G&S)","Economic development","Economic regulation and infrastructure","NAT",1127,1070,1044,981,983,983,924,1993,2056,1398,1440,null,null,null,null,null,null,null,null,null,null,null,null,null,null,null,null,null,null,null,null,null,null,null,null,null,null,null,null,null,null,null,null,null,null,{"$f":"Dataset[[#This Row],[2027/28 From - Spending review Topic 1]]+Dataset[[#This Row],[2027/28 From - Spending review Topic 2]]+Dataset[[#This Row],[2027/28 From - Spending review Topic 3]]+Dataset[[#This Row],[2027/28 From - Spending review Topic 4]]+Dataset[[#This Row],[2027/28 From - Other reallocations]]","v":0},{"$f":"Dataset[[#This Row],[2028/29 From - Spending review Topic 1]]+Dataset[[#This Row],[2028/29 From - Spending review Topic 2]]+Dataset[[#This Row],[2028/29 From - Spending review Topic 3]]+Dataset[[#This Row],[2028/29 From - Spending review Topic 4]]+Dataset[[#This Row],[2028/29 From - Other reallocations]]","v":0},{"$f":"Dataset[[#This Row],[2029/30 From - Spending review Topic 1]]+Dataset[[#This Row],[2029/30 From - Spending review Topic 2]]+Dataset[[#This Row],[2029/30 From - Spending review Topic 3]]+Dataset[[#This Row],[2029/30 From - Spending review Topic 4]]+Dataset[[#This Row],[2029/30 From - Other reallocations]]","v":0},{"$f":"Dataset[[#This Row],[2027/28 To - Spending review Topic 1]]+Dataset[[#This Row],[2027/28 To - Spending review Topic 2]]+Dataset[[#This Row],[2027/28 To - Spending review Topic 3]]+Dataset[[#This Row],[2027/28 To - Spending review Topic 4]]+Dataset[[#This Row],[2027/28 To - Other reallocations]]","v":0},{"$f":"Dataset[[#This Row],[2028/29 To - Spending review Topic 1]]+Dataset[[#This Row],[2028/29 To - Spending review Topic 2]]+Dataset[[#This Row],[2028/29 To - Spending review Topic 3]]+Dataset[[#This Row],[2028/29 To - Spending review Topic 4]]+Dataset[[#This Row],[2028/29 To - Other reallocations]]","v":0},{"$f":"Dataset[[#This Row],[2029/30 To - Spending review Topic 1]]+Dataset[[#This Row],[2029/30 To - Spending review Topic 2]]+Dataset[[#This Row],[2029/30 To - Spending review Topic 3]]+Dataset[[#This Row],[2029/30 To - Spending review Topic 4]]+Dataset[[#This Row],[2029/30 To - Other reallocations]]","v":0},{"$f":"Dataset[[#This Row],[2027/28 Targeted savings]]+Dataset[[#This Row],[2027/28 From - Total]]","v":0},{"$f":"Dataset[[#This Row],[2028/29 Targeted savings]]+Dataset[[#This Row],[2028/29 From - Total]]","v":0},{"$f":"Dataset[[#This Row],[2029/30 Targeted savings]]+Dataset[[#This Row],[2029/30 From - Total]]","v":0},{"$f":"Dataset[[#This Row],[2026/27 Targeted savings]]","v":0},{"$f":"SUM(Dataset[[#This Row],[2027/28 Targeted savings]],Dataset[[#This Row],[2027/28 From - Total]],Dataset[[#This Row],[2027/28 To - Total]])","v":0},{"$f":"SUM(Dataset[[#This Row],[2028/29 Targeted savings]],Dataset[[#This Row],[2028/29 From - Total]],Dataset[[#This Row],[2028/29 To - Total]])","v":0},{"$f":"SUM(Dataset[[#This Row],[2029/30 Targeted savings]],Dataset[[#This Row],[2029/30 From - Total]],Dataset[[#This Row],[2029/30 To - Total]])","v":0},{"$f":"Dataset[[#This Row],[2026/27 Baseline]]+Dataset[[#This Row],[2026/27 Total change]]","v":1993},{"$f":"Dataset[[#This Row],[2027/28 Baseline]]+Dataset[[#This Row],[2027/28 Total change]]","v":2056},{"$f":"Dataset[[#This Row],[2028/29 Baseline]]+Dataset[[#This Row],[2028/29 Total change]]","v":1398},{"$f":"Dataset[[#This Row],[2029/30 Baseline]]+Dataset[[#This Row],[2029/30 Total change]]","v":1440}]
["NAT|Non-transfer","30|Computer services","2027_28","MTEC2027",30,1,3,32635,115,"30","01","03","032635","000115","30|01|03|000115","01","01","02","10","10","01|01|02|10|10","National","Communications and Digital Technologies","Administration","Corporate Services","Non-transfer","Current","Current payments","Goods and services","Computer services","Computer services","Economic development","Economic regulation and infrastructure","NAT",17234,18330,18324,13882,23603,23603,32299,18606,19803,17326,17848,null,null,null,null,null,null,null,null,null,null,null,null,null,null,null,null,null,null,null,null,null,null,null,null,null,null,null,null,null,null,null,null,null,null,{"$f":"Dataset[[#This Row],[2027/28 From - Spending review Topic 1]]+Dataset[[#This Row],[2027/28 From - Spending review Topic 2]]+Dataset[[#This Row],[2027/28 From - Spending review Topic 3]]+Dataset[[#This Row],[2027/28 From - Spending review Topic 4]]+Dataset[[#This Row],[2027/28 From - Other reallocations]]","v":0},{"$f":"Dataset[[#This Row],[2028/29 From - Spending review Topic 1]]+Dataset[[#This Row],[2028/29 From - Spending review Topic 2]]+Dataset[[#This Row],[2028/29 From - Spending review Topic 3]]+Dataset[[#This Row],[2028/29 From - Spending review Topic 4]]+Dataset[[#This Row],[2028/29 From - Other reallocations]]","v":0},{"$f":"Dataset[[#This Row],[2029/30 From - Spending review Topic 1]]+Dataset[[#This Row],[2029/30 From - Spending review Topic 2]]+Dataset[[#This Row],[2029/30 From - Spending review Topic 3]]+Dataset[[#This Row],[2029/30 From - Spending review Topic 4]]+Dataset[[#This Row],[2029/30 From - Other reallocations]]","v":0},{"$f":"Dataset[[#This Row],[2027/28 To - Spending review Topic 1]]+Dataset[[#This Row],[2027/28 To - Spending review Topic 2]]+Dataset[[#This Row],[2027/28 To - Spending review Topic 3]]+Dataset[[#This Row],[2027/28 To - Spending review Topic 4]]+Dataset[[#This Row],[2027/28 To - Other reallocations]]","v":0},{"$f":"Dataset[[#This Row],[2028/29 To - Spending review Topic 1]]+Dataset[[#This Row],[2028/29 To - Spending review Topic 2]]+Dataset[[#This Row],[2028/29 To - Spending review Topic 3]]+Dataset[[#This Row],[2028/29 To - Spending review Topic 4]]+Dataset[[#This Row],[2028/29 To - Other reallocations]]","v":0},{"$f":"Dataset[[#This Row],[2029/30 To - Spending review Topic 1]]+Dataset[[#This Row],[2029/30 To - Spending review Topic 2]]+Dataset[[#This Row],[2029/30 To - Spending review Topic 3]]+Dataset[[#This Row],[2029/30 To - Spending review Topic 4]]+Dataset[[#This Row],[2029/30 To - Other reallocations]]","v":0},{"$f":"Dataset[[#This Row],[2027/28 Targeted savings]]+Dataset[[#This Row],[2027/28 From - Total]]","v":0},{"$f":"Dataset[[#This Row],[2028/29 Targeted savings]]+Dataset[[#This Row],[2028/29 From - Total]]","v":0},{"$f":"Dataset[[#This Row],[2029/30 Targeted savings]]+Dataset[[#This Row],[2029/30 From - Total]]","v":0},{"$f":"Dataset[[#This Row],[2026/27 Targeted savings]]","v":0},{"$f":"SUM(Dataset[[#This Row],[2027/28 Targeted savings]],Dataset[[#This Row],[2027/28 From - Total]],Dataset[[#This Row],[2027/28 To - Total]])","v":0},{"$f":"SUM(Dataset[[#This Row],[2028/29 Targeted savings]],Dataset[[#This Row],[2028/29 From - Total]],Dataset[[#This Row],[2028/29 To - Total]])","v":0},{"$f":"SUM(Dataset[[#This Row],[2029/30 Targeted savings]],Dataset[[#This Row],[2029/30 From - Total]],Dataset[[#This Row],[2029/30 To - Total]])","v":0},{"$f":"Dataset[[#This Row],[2026/27 Baseline]]+Dataset[[#This Row],[2026/27 Total change]]","v":18606},{"$f":"Dataset[[#This Row],[2027/28 Baseline]]+Dataset[[#This Row],[2027/28 Total change]]","v":19803},{"$f":"Dataset[[#This Row],[2028/29 Baseline]]+Dataset[[#This Row],[2028/29 Total change]]","v":17326},{"$f":"Dataset[[#This Row],[2029/30 Baseline]]+Dataset[[#This Row],[2029/30 Total change]]","v":17848}]
["NAT|Non-transfer","30|Consultants: Business and advisory services","2027_28","MTEC2027",30,1,3,32636,116,"30","01","03","032636","000116","30|01|03|000116","01","01","02","11","11","01|01|02|11|11","National","Communications and Digital Technologies","Administration","Corporate Services","Non-transfer","Current","Current payments","Goods and services","Consultants: Business and advisory services","Consultants: Business and advisory services","Economic development","Economic regulation and infrastructure","NAT",440,775,104,3040,1180,1180,981,6385,6623,5592,5760,null,null,null,null,null,null,null,null,null,null,null,null,null,null,null,null,null,null,null,null,null,null,null,null,null,null,null,null,null,null,null,null,null,null,{"$f":"Dataset[[#This Row],[2027/28 From - Spending review Topic 1]]+Dataset[[#This Row],[2027/28 From - Spending review Topic 2]]+Dataset[[#This Row],[2027/28 From - Spending review Topic 3]]+Dataset[[#This Row],[2027/28 From - Spending review Topic 4]]+Dataset[[#This Row],[2027/28 From - Other reallocations]]","v":0},{"$f":"Dataset[[#This Row],[2028/29 From - Spending review Topic 1]]+Dataset[[#This Row],[2028/29 From - Spending review Topic 2]]+Dataset[[#This Row],[2028/29 From - Spending review Topic 3]]+Dataset[[#This Row],[2028/29 From - Spending review Topic 4]]+Dataset[[#This Row],[2028/29 From - Other reallocations]]","v":0},{"$f":"Dataset[[#This Row],[2029/30 From - Spending review Topic 1]]+Dataset[[#This Row],[2029/30 From - Spending review Topic 2]]+Dataset[[#This Row],[2029/30 From - Spending review Topic 3]]+Dataset[[#This Row],[2029/30 From - Spending review Topic 4]]+Dataset[[#This Row],[2029/30 From - Other reallocations]]","v":0},{"$f":"Dataset[[#This Row],[2027/28 To - Spending review Topic 1]]+Dataset[[#This Row],[2027/28 To - Spending review Topic 2]]+Dataset[[#This Row],[2027/28 To - Spending review Topic 3]]+Dataset[[#This Row],[2027/28 To - Spending review Topic 4]]+Dataset[[#This Row],[2027/28 To - Other reallocations]]","v":0},{"$f":"Dataset[[#This Row],[2028/29 To - Spending review Topic 1]]+Dataset[[#This Row],[2028/29 To - Spending review Topic 2]]+Dataset[[#This Row],[2028/29 To - Spending review Topic 3]]+Dataset[[#This Row],[2028/29 To - Spending review Topic 4]]+Dataset[[#This Row],[2028/29 To - Other reallocations]]","v":0},{"$f":"Dataset[[#This Row],[2029/30 To - Spending review Topic 1]]+Dataset[[#This Row],[2029/30 To - Spending review Topic 2]]+Dataset[[#This Row],[2029/30 To - Spending review Topic 3]]+Dataset[[#This Row],[2029/30 To - Spending review Topic 4]]+Dataset[[#This Row],[2029/30 To - Other reallocations]]","v":0},{"$f":"Dataset[[#This Row],[2027/28 Targeted savings]]+Dataset[[#This Row],[2027/28 From - Total]]","v":0},{"$f":"Dataset[[#This Row],[2028/29 Targeted savings]]+Dataset[[#This Row],[2028/29 From - Total]]","v":0},{"$f":"Dataset[[#This Row],[2029/30 Targeted savings]]+Dataset[[#This Row],[2029/30 From - Total]]","v":0},{"$f":"Dataset[[#This Row],[2026/27 Targeted savings]]","v":0},{"$f":"SUM(Dataset[[#This Row],[2027/28 Targeted savings]],Dataset[[#This Row],[2027/28 From - Total]],Dataset[[#This Row],[2027/28 To - Total]])","v":0},{"$f":"SUM(Dataset[[#This Row],[2028/29 Targeted savings]],Dataset[[#This Row],[2028/29 From - Total]],Dataset[[#This Row],[2028/29 To - Total]])","v":0},{"$f":"SUM(Dataset[[#This Row],[2029/30 Targeted savings]],Dataset[[#This Row],[2029/30 From - Total]],Dataset[[#This Row],[2029/30 To - Total]])","v":0},{"$f":"Dataset[[#This Row],[2026/27 Baseline]]+Dataset[[#This Row],[2026/27 Total change]]","v":6385},{"$f":"Dataset[[#This Row],[2027/28 Baseline]]+Dataset[[#This Row],[2027/28 Total change]]","v":6623},{"$f":"Dataset[[#This Row],[2028/29 Baseline]]+Dataset[[#This Row],[2028/29 Total change]]","v":5592},{"$f":"Dataset[[#This Row],[2029/30 Baseline]]+Dataset[[#This Row],[2029/30 Total change]]","v":5760}]
["NAT|Non-transfer","30|Legal services (G&S)","2027_28","MTEC2027",30,1,3,32637,117,"30","01","03","032637","000117","30|01|03|000117","01","01","02","14","14","01|01|02|14|14","National","Communications and Digital Technologies","Administration","Corporate Services","Non-transfer","Current","Current payments","Goods and services","Legal services (G&S)","Legal services (G&S)","Economic development","Economic regulation and infrastructure","NAT",2573,6236,12426,7330,5935,5935,4828,5000,5424,4562,4699,null,null,null,null,null,null,null,null,null,null,null,null,null,null,null,null,null,null,null,null,null,null,null,null,null,null,null,null,null,null,null,null,null,null,{"$f":"Dataset[[#This Row],[2027/28 From - Spending review Topic 1]]+Dataset[[#This Row],[2027/28 From - Spending review Topic 2]]+Dataset[[#This Row],[2027/28 From - Spending review Topic 3]]+Dataset[[#This Row],[2027/28 From - Spending review Topic 4]]+Dataset[[#This Row],[2027/28 From - Other reallocations]]","v":0},{"$f":"Dataset[[#This Row],[2028/29 From - Spending review Topic 1]]+Dataset[[#This Row],[2028/29 From - Spending review Topic 2]]+Dataset[[#This Row],[2028/29 From - Spending review Topic 3]]+Dataset[[#This Row],[2028/29 From - Spending review Topic 4]]+Dataset[[#This Row],[2028/29 From - Other reallocations]]","v":0},{"$f":"Dataset[[#This Row],[2029/30 From - Spending review Topic 1]]+Dataset[[#This Row],[2029/30 From - Spending review Topic 2]]+Dataset[[#This Row],[2029/30 From - Spending review Topic 3]]+Dataset[[#This Row],[2029/30 From - Spending review Topic 4]]+Dataset[[#This Row],[2029/30 From - Other reallocations]]","v":0},{"$f":"Dataset[[#This Row],[2027/28 To - Spending review Topic 1]]+Dataset[[#This Row],[2027/28 To - Spending review Topic 2]]+Dataset[[#This Row],[2027/28 To - Spending review Topic 3]]+Dataset[[#This Row],[2027/28 To - Spending review Topic 4]]+Dataset[[#This Row],[2027/28 To - Other reallocations]]","v":0},{"$f":"Dataset[[#This Row],[2028/29 To - Spending review Topic 1]]+Dataset[[#This Row],[2028/29 To - Spending review Topic 2]]+Dataset[[#This Row],[2028/29 To - Spending review Topic 3]]+Dataset[[#This Row],[2028/29 To - Spending review Topic 4]]+Dataset[[#This Row],[2028/29 To - Other reallocations]]","v":0},{"$f":"Dataset[[#This Row],[2029/30 To - Spending review Topic 1]]+Dataset[[#This Row],[2029/30 To - Spending review Topic 2]]+Dataset[[#This Row],[2029/30 To - Spending review Topic 3]]+Dataset[[#This Row],[2029/30 To - Spending review Topic 4]]+Dataset[[#This Row],[2029/30 To - Other reallocations]]","v":0},{"$f":"Dataset[[#This Row],[2027/28 Targeted savings]]+Dataset[[#This Row],[2027/28 From - Total]]","v":0},{"$f":"Dataset[[#This Row],[2028/29 Targeted savings]]+Dataset[[#This Row],[2028/29 From - Total]]","v":0},{"$f":"Dataset[[#This Row],[2029/30 Targeted savings]]+Dataset[[#This Row],[2029/30 From - Total]]","v":0},{"$f":"Dataset[[#This Row],[2026/27 Targeted savings]]","v":0},{"$f":"SUM(Dataset[[#This Row],[2027/28 Targeted savings]],Dataset[[#This Row],[2027/28 From - Total]],Dataset[[#This Row],[2027/28 To - Total]])","v":0},{"$f":"SUM(Dataset[[#This Row],[2028/29 Targeted savings]],Dataset[[#This Row],[2028/29 From - Total]],Dataset[[#This Row],[2028/29 To - Total]])","v":0},{"$f":"SUM(Dataset[[#This Row],[2029/30 Targeted savings]],Dataset[[#This Row],[2029/30 From - Total]],Dataset[[#This Row],[2029/30 To - Total]])","v":0},{"$f":"Dataset[[#This Row],[2026/27 Baseline]]+Dataset[[#This Row],[2026/27 Total change]]","v":5000},{"$f":"Dataset[[#This Row],[2027/28 Baseline]]+Dataset[[#This Row],[2027/28 Total change]]","v":5424},{"$f":"Dataset[[#This Row],[2028/29 Baseline]]+Dataset[[#This Row],[2028/29 Total change]]","v":4562},{"$f":"Dataset[[#This Row],[2029/30 Baseline]]+Dataset[[#This Row],[2029/30 Total change]]","v":4699}]
["NAT|Non-transfer","30|Contractors","2027_28","MTEC2027",30,1,3,32638,118,"30","01","03","032638","000118","30|01|03|000118","01","01","02","16","16","01|01|02|16|16","National","Communications and Digital Technologies","Administration","Corporate Services","Non-transfer","Current","Current payments","Goods and services","Contractors","Contractors","Economic development","Economic regulation and infrastructure","NAT",741,529,11908,495,420,420,193,180,979,1009,1039,null,null,null,null,null,null,null,null,null,null,null,null,null,null,null,null,null,null,null,null,null,null,null,null,null,null,null,null,null,null,null,null,null,null,{"$f":"Dataset[[#This Row],[2027/28 From - Spending review Topic 1]]+Dataset[[#This Row],[2027/28 From - Spending review Topic 2]]+Dataset[[#This Row],[2027/28 From - Spending review Topic 3]]+Dataset[[#This Row],[2027/28 From - Spending review Topic 4]]+Dataset[[#This Row],[2027/28 From - Other reallocations]]","v":0},{"$f":"Dataset[[#This Row],[2028/29 From - Spending review Topic 1]]+Dataset[[#This Row],[2028/29 From - Spending review Topic 2]]+Dataset[[#This Row],[2028/29 From - Spending review Topic 3]]+Dataset[[#This Row],[2028/29 From - Spending review Topic 4]]+Dataset[[#This Row],[2028/29 From - Other reallocations]]","v":0},{"$f":"Dataset[[#This Row],[2029/30 From - Spending review Topic 1]]+Dataset[[#This Row],[2029/30 From - Spending review Topic 2]]+Dataset[[#This Row],[2029/30 From - Spending review Topic 3]]+Dataset[[#This Row],[2029/30 From - Spending review Topic 4]]+Dataset[[#This Row],[2029/30 From - Other reallocations]]","v":0},{"$f":"Dataset[[#This Row],[2027/28 To - Spending review Topic 1]]+Dataset[[#This Row],[2027/28 To - Spending review Topic 2]]+Dataset[[#This Row],[2027/28 To - Spending review Topic 3]]+Dataset[[#This Row],[2027/28 To - Spending review Topic 4]]+Dataset[[#This Row],[2027/28 To - Other reallocations]]","v":0},{"$f":"Dataset[[#This Row],[2028/29 To - Spending review Topic 1]]+Dataset[[#This Row],[2028/29 To - Spending review Topic 2]]+Dataset[[#This Row],[2028/29 To - Spending review Topic 3]]+Dataset[[#This Row],[2028/29 To - Spending review Topic 4]]+Dataset[[#This Row],[2028/29 To - Other reallocations]]","v":0},{"$f":"Dataset[[#This Row],[2029/30 To - Spending review Topic 1]]+Dataset[[#This Row],[2029/30 To - Spending review Topic 2]]+Dataset[[#This Row],[2029/30 To - Spending review Topic 3]]+Dataset[[#This Row],[2029/30 To - Spending review Topic 4]]+Dataset[[#This Row],[2029/30 To - Other reallocations]]","v":0},{"$f":"Dataset[[#This Row],[2027/28 Targeted savings]]+Dataset[[#This Row],[2027/28 From - Total]]","v":0},{"$f":"Dataset[[#This Row],[2028/29 Targeted savings]]+Dataset[[#This Row],[2028/29 From - Total]]","v":0},{"$f":"Dataset[[#This Row],[2029/30 Targeted savings]]+Dataset[[#This Row],[2029/30 From - Total]]","v":0},{"$f":"Dataset[[#This Row],[2026/27 Targeted savings]]","v":0},{"$f":"SUM(Dataset[[#This Row],[2027/28 Targeted savings]],Dataset[[#This Row],[2027/28 From - Total]],Dataset[[#This Row],[2027/28 To - Total]])","v":0},{"$f":"SUM(Dataset[[#This Row],[2028/29 Targeted savings]],Dataset[[#This Row],[2028/29 From - Total]],Dataset[[#This Row],[2028/29 To - Total]])","v":0},{"$f":"SUM(Dataset[[#This Row],[2029/30 Targeted savings]],Dataset[[#This Row],[2029/30 From - Total]],Dataset[[#This Row],[2029/30 To - Total]])","v":0},{"$f":"Dataset[[#This Row],[2026/27 Baseline]]+Dataset[[#This Row],[2026/27 Total change]]","v":180},{"$f":"Dataset[[#This Row],[2027/28 Baseline]]+Dataset[[#This Row],[2027/28 Total change]]","v":979},{"$f":"Dataset[[#This Row],[2028/29 Baseline]]+Dataset[[#This Row],[2028/29 Total change]]","v":1009},{"$f":"Dataset[[#This Row],[2029/30 Baseline]]+Dataset[[#This Row],[2029/30 Total change]]","v":1039}]
["NAT|Non-transfer","30|Agency and support/outsourced services","2027_28","MTEC2027",30,1,3,32639,119,"30","01","03","032639","000119","30|01|03|000119","01","01","02","17","17","01|01|02|17|17","National","Communications and Digital Technologies","Administration","Corporate Services","Non-transfer","Current","Current payments","Goods and services","Agency and support/outsourced services","Agency and support/outsourced services","Economic development","Economic regulation and infrastructure","NAT",0,120,0,0,0,0,0,0,0,0,0,null,null,null,null,null,null,null,null,null,null,null,null,null,null,null,null,null,null,null,null,null,null,null,null,null,null,null,null,null,null,null,null,null,null,{"$f":"Dataset[[#This Row],[2027/28 From - Spending review Topic 1]]+Dataset[[#This Row],[2027/28 From - Spending review Topic 2]]+Dataset[[#This Row],[2027/28 From - Spending review Topic 3]]+Dataset[[#This Row],[2027/28 From - Spending review Topic 4]]+Dataset[[#This Row],[2027/28 From - Other reallocations]]","v":0},{"$f":"Dataset[[#This Row],[2028/29 From - Spending review Topic 1]]+Dataset[[#This Row],[2028/29 From - Spending review Topic 2]]+Dataset[[#This Row],[2028/29 From - Spending review Topic 3]]+Dataset[[#This Row],[2028/29 From - Spending review Topic 4]]+Dataset[[#This Row],[2028/29 From - Other reallocations]]","v":0},{"$f":"Dataset[[#This Row],[2029/30 From - Spending review Topic 1]]+Dataset[[#This Row],[2029/30 From - Spending review Topic 2]]+Dataset[[#This Row],[2029/30 From - Spending review Topic 3]]+Dataset[[#This Row],[2029/30 From - Spending review Topic 4]]+Dataset[[#This Row],[2029/30 From - Other reallocations]]","v":0},{"$f":"Dataset[[#This Row],[2027/28 To - Spending review Topic 1]]+Dataset[[#This Row],[2027/28 To - Spending review Topic 2]]+Dataset[[#This Row],[2027/28 To - Spending review Topic 3]]+Dataset[[#This Row],[2027/28 To - Spending review Topic 4]]+Dataset[[#This Row],[2027/28 To - Other reallocations]]","v":0},{"$f":"Dataset[[#This Row],[2028/29 To - Spending review Topic 1]]+Dataset[[#This Row],[2028/29 To - Spending review Topic 2]]+Dataset[[#This Row],[2028/29 To - Spending review Topic 3]]+Dataset[[#This Row],[2028/29 To - Spending review Topic 4]]+Dataset[[#This Row],[2028/29 To - Other reallocations]]","v":0},{"$f":"Dataset[[#This Row],[2029/30 To - Spending review Topic 1]]+Dataset[[#This Row],[2029/30 To - Spending review Topic 2]]+Dataset[[#This Row],[2029/30 To - Spending review Topic 3]]+Dataset[[#This Row],[2029/30 To - Spending review Topic 4]]+Dataset[[#This Row],[2029/30 To - Other reallocations]]","v":0},{"$f":"Dataset[[#This Row],[2027/28 Targeted savings]]+Dataset[[#This Row],[2027/28 From - Total]]","v":0},{"$f":"Dataset[[#This Row],[2028/29 Targeted savings]]+Dataset[[#This Row],[2028/29 From - Total]]","v":0},{"$f":"Dataset[[#This Row],[2029/30 Targeted savings]]+Dataset[[#This Row],[2029/30 From - Total]]","v":0},{"$f":"Dataset[[#This Row],[2026/27 Targeted savings]]","v":0},{"$f":"SUM(Dataset[[#This Row],[2027/28 Targeted savings]],Dataset[[#This Row],[2027/28 From - Total]],Dataset[[#This Row],[2027/28 To - Total]])","v":0},{"$f":"SUM(Dataset[[#This Row],[2028/29 Targeted savings]],Dataset[[#This Row],[2028/29 From - Total]],Dataset[[#This Row],[2028/29 To - Total]])","v":0},{"$f":"SUM(Dataset[[#This Row],[2029/30 Targeted savings]],Dataset[[#This Row],[2029/30 From - Total]],Dataset[[#This Row],[2029/30 To - Total]])","v":0},{"$f":"Dataset[[#This Row],[2026/27 Baseline]]+Dataset[[#This Row],[2026/27 Total change]]","v":0},{"$f":"Dataset[[#This Row],[2027/28 Baseline]]+Dataset[[#This Row],[2027/28 Total change]]","v":0},{"$f":"Dataset[[#This Row],[2028/29 Baseline]]+Dataset[[#This Row],[2028/29 Total change]]","v":0},{"$f":"Dataset[[#This Row],[2029/30 Baseline]]+Dataset[[#This Row],[2029/30 Total change]]","v":0}]
["NAT|Non-transfer","30|Entertainment","2027_28","MTEC2027",30,1,3,32640,120,"30","01","03","032640","000120","30|01|03|000120","01","01","02","18","18","01|01|02|18|18","National","Communications and Digital Technologies","Administration","Corporate Services","Non-transfer","Current","Current payments","Goods and services","Entertainment","Entertainment","Economic development","Economic regulation and infrastructure","NAT",0,0,0,25,25,25,0,4,39,40,41,null,null,null,null,null,null,null,null,null,null,null,null,null,null,null,null,null,null,null,null,null,null,null,null,null,null,null,null,null,null,null,null,null,null,{"$f":"Dataset[[#This Row],[2027/28 From - Spending review Topic 1]]+Dataset[[#This Row],[2027/28 From - Spending review Topic 2]]+Dataset[[#This Row],[2027/28 From - Spending review Topic 3]]+Dataset[[#This Row],[2027/28 From - Spending review Topic 4]]+Dataset[[#This Row],[2027/28 From - Other reallocations]]","v":0},{"$f":"Dataset[[#This Row],[2028/29 From - Spending review Topic 1]]+Dataset[[#This Row],[2028/29 From - Spending review Topic 2]]+Dataset[[#This Row],[2028/29 From - Spending review Topic 3]]+Dataset[[#This Row],[2028/29 From - Spending review Topic 4]]+Dataset[[#This Row],[2028/29 From - Other reallocations]]","v":0},{"$f":"Dataset[[#This Row],[2029/30 From - Spending review Topic 1]]+Dataset[[#This Row],[2029/30 From - Spending review Topic 2]]+Dataset[[#This Row],[2029/30 From - Spending review Topic 3]]+Dataset[[#This Row],[2029/30 From - Spending review Topic 4]]+Dataset[[#This Row],[2029/30 From - Other reallocations]]","v":0},{"$f":"Dataset[[#This Row],[2027/28 To - Spending review Topic 1]]+Dataset[[#This Row],[2027/28 To - Spending review Topic 2]]+Dataset[[#This Row],[2027/28 To - Spending review Topic 3]]+Dataset[[#This Row],[2027/28 To - Spending review Topic 4]]+Dataset[[#This Row],[2027/28 To - Other reallocations]]","v":0},{"$f":"Dataset[[#This Row],[2028/29 To - Spending review Topic 1]]+Dataset[[#This Row],[2028/29 To - Spending review Topic 2]]+Dataset[[#This Row],[2028/29 To - Spending review Topic 3]]+Dataset[[#This Row],[2028/29 To - Spending review Topic 4]]+Dataset[[#This Row],[2028/29 To - Other reallocations]]","v":0},{"$f":"Dataset[[#This Row],[2029/30 To - Spending review Topic 1]]+Dataset[[#This Row],[2029/30 To - Spending review Topic 2]]+Dataset[[#This Row],[2029/30 To - Spending review Topic 3]]+Dataset[[#This Row],[2029/30 To - Spending review Topic 4]]+Dataset[[#This Row],[2029/30 To - Other reallocations]]","v":0},{"$f":"Dataset[[#This Row],[2027/28 Targeted savings]]+Dataset[[#This Row],[2027/28 From - Total]]","v":0},{"$f":"Dataset[[#This Row],[2028/29 Targeted savings]]+Dataset[[#This Row],[2028/29 From - Total]]","v":0},{"$f":"Dataset[[#This Row],[2029/30 Targeted savings]]+Dataset[[#This Row],[2029/30 From - Total]]","v":0},{"$f":"Dataset[[#This Row],[2026/27 Targeted savings]]","v":0},{"$f":"SUM(Dataset[[#This Row],[2027/28 Targeted savings]],Dataset[[#This Row],[2027/28 From - Total]],Dataset[[#This Row],[2027/28 To - Total]])","v":0},{"$f":"SUM(Dataset[[#This Row],[2028/29 Targeted savings]],Dataset[[#This Row],[2028/29 From - Total]],Dataset[[#This Row],[2028/29 To - Total]])","v":0},{"$f":"SUM(Dataset[[#This Row],[2029/30 Targeted savings]],Dataset[[#This Row],[2029/30 From - Total]],Dataset[[#This Row],[2029/30 To - Total]])","v":0},{"$f":"Dataset[[#This Row],[2026/27 Baseline]]+Dataset[[#This Row],[2026/27 Total change]]","v":4},{"$f":"Dataset[[#This Row],[2027/28 Baseline]]+Dataset[[#This Row],[2027/28 Total change]]","v":39},{"$f":"Dataset[[#This Row],[2028/29 Baseline]]+Dataset[[#This Row],[2028/29 Total change]]","v":40},{"$f":"Dataset[[#This Row],[2029/30 Baseline]]+Dataset[[#This Row],[2029/30 Total change]]","v":41}]
["NAT|Non-transfer","30|Fleet services (including government motor transport)","2027_28","MTEC2027",30,1,3,32641,121,"30","01","03","032641","000121","30|01|03|000121","01","01","02","19","19","01|01|02|19|19","National","Communications and Digital Technologies","Administration","Corporate Services","Non-transfer","Current","Current payments","Goods and services","Fleet services (including government motor transport)","Fleet services (including government motor transport)","Economic development","Economic regulation and infrastructure","NAT",49,13,26,46,21,21,0,5,43,44,45,null,null,null,null,null,null,null,null,null,null,null,null,null,null,null,null,null,null,null,null,null,null,null,null,null,null,null,null,null,null,null,null,null,null,{"$f":"Dataset[[#This Row],[2027/28 From - Spending review Topic 1]]+Dataset[[#This Row],[2027/28 From - Spending review Topic 2]]+Dataset[[#This Row],[2027/28 From - Spending review Topic 3]]+Dataset[[#This Row],[2027/28 From - Spending review Topic 4]]+Dataset[[#This Row],[2027/28 From - Other reallocations]]","v":0},{"$f":"Dataset[[#This Row],[2028/29 From - Spending review Topic 1]]+Dataset[[#This Row],[2028/29 From - Spending review Topic 2]]+Dataset[[#This Row],[2028/29 From - Spending review Topic 3]]+Dataset[[#This Row],[2028/29 From - Spending review Topic 4]]+Dataset[[#This Row],[2028/29 From - Other reallocations]]","v":0},{"$f":"Dataset[[#This Row],[2029/30 From - Spending review Topic 1]]+Dataset[[#This Row],[2029/30 From - Spending review Topic 2]]+Dataset[[#This Row],[2029/30 From - Spending review Topic 3]]+Dataset[[#This Row],[2029/30 From - Spending review Topic 4]]+Dataset[[#This Row],[2029/30 From - Other reallocations]]","v":0},{"$f":"Dataset[[#This Row],[2027/28 To - Spending review Topic 1]]+Dataset[[#This Row],[2027/28 To - Spending review Topic 2]]+Dataset[[#This Row],[2027/28 To - Spending review Topic 3]]+Dataset[[#This Row],[2027/28 To - Spending review Topic 4]]+Dataset[[#This Row],[2027/28 To - Other reallocations]]","v":0},{"$f":"Dataset[[#This Row],[2028/29 To - Spending review Topic 1]]+Dataset[[#This Row],[2028/29 To - Spending review Topic 2]]+Dataset[[#This Row],[2028/29 To - Spending review Topic 3]]+Dataset[[#This Row],[2028/29 To - Spending review Topic 4]]+Dataset[[#This Row],[2028/29 To - Other reallocations]]","v":0},{"$f":"Dataset[[#This Row],[2029/30 To - Spending review Topic 1]]+Dataset[[#This Row],[2029/30 To - Spending review Topic 2]]+Dataset[[#This Row],[2029/30 To - Spending review Topic 3]]+Dataset[[#This Row],[2029/30 To - Spending review Topic 4]]+Dataset[[#This Row],[2029/30 To - Other reallocations]]","v":0},{"$f":"Dataset[[#This Row],[2027/28 Targeted savings]]+Dataset[[#This Row],[2027/28 From - Total]]","v":0},{"$f":"Dataset[[#This Row],[2028/29 Targeted savings]]+Dataset[[#This Row],[2028/29 From - Total]]","v":0},{"$f":"Dataset[[#This Row],[2029/30 Targeted savings]]+Dataset[[#This Row],[2029/30 From - Total]]","v":0},{"$f":"Dataset[[#This Row],[2026/27 Targeted savings]]","v":0},{"$f":"SUM(Dataset[[#This Row],[2027/28 Targeted savings]],Dataset[[#This Row],[2027/28 From - Total]],Dataset[[#This Row],[2027/28 To - Total]])","v":0},{"$f":"SUM(Dataset[[#This Row],[2028/29 Targeted savings]],Dataset[[#This Row],[2028/29 From - Total]],Dataset[[#This Row],[2028/29 To - Total]])","v":0},{"$f":"SUM(Dataset[[#This Row],[2029/30 Targeted savings]],Dataset[[#This Row],[2029/30 From - Total]],Dataset[[#This Row],[2029/30 To - Total]])","v":0},{"$f":"Dataset[[#This Row],[2026/27 Baseline]]+Dataset[[#This Row],[2026/27 Total change]]","v":5},{"$f":"Dataset[[#This Row],[2027/28 Baseline]]+Dataset[[#This Row],[2027/28 Total change]]","v":43},{"$f":"Dataset[[#This Row],[2028/29 Baseline]]+Dataset[[#This Row],[2028/29 Total change]]","v":44},{"$f":"Dataset[[#This Row],[2029/30 Baseline]]+Dataset[[#This Row],[2029/30 Total change]]","v":45}]
["NAT|Non-transfer","30|Consumable supplies","2027_28","MTEC2027",30,1,3,32642,122,"30","01","03","032642","000122","30|01|03|000122","01","01","02","31","31","01|01|02|31|31","National","Communications and Digital Technologies","Administration","Corporate Services","Non-transfer","Current","Current payments","Goods and services","Consumable supplies","Consumable supplies","Economic development","Economic regulation and infrastructure","NAT",59,46,27,283,262,262,26,40,275,284,293,null,null,null,null,null,null,null,null,null,null,null,null,null,null,null,null,null,null,null,null,null,null,null,null,null,null,null,null,null,null,null,null,null,null,{"$f":"Dataset[[#This Row],[2027/28 From - Spending review Topic 1]]+Dataset[[#This Row],[2027/28 From - Spending review Topic 2]]+Dataset[[#This Row],[2027/28 From - Spending review Topic 3]]+Dataset[[#This Row],[2027/28 From - Spending review Topic 4]]+Dataset[[#This Row],[2027/28 From - Other reallocations]]","v":0},{"$f":"Dataset[[#This Row],[2028/29 From - Spending review Topic 1]]+Dataset[[#This Row],[2028/29 From - Spending review Topic 2]]+Dataset[[#This Row],[2028/29 From - Spending review Topic 3]]+Dataset[[#This Row],[2028/29 From - Spending review Topic 4]]+Dataset[[#This Row],[2028/29 From - Other reallocations]]","v":0},{"$f":"Dataset[[#This Row],[2029/30 From - Spending review Topic 1]]+Dataset[[#This Row],[2029/30 From - Spending review Topic 2]]+Dataset[[#This Row],[2029/30 From - Spending review Topic 3]]+Dataset[[#This Row],[2029/30 From - Spending review Topic 4]]+Dataset[[#This Row],[2029/30 From - Other reallocations]]","v":0},{"$f":"Dataset[[#This Row],[2027/28 To - Spending review Topic 1]]+Dataset[[#This Row],[2027/28 To - Spending review Topic 2]]+Dataset[[#This Row],[2027/28 To - Spending review Topic 3]]+Dataset[[#This Row],[2027/28 To - Spending review Topic 4]]+Dataset[[#This Row],[2027/28 To - Other reallocations]]","v":0},{"$f":"Dataset[[#This Row],[2028/29 To - Spending review Topic 1]]+Dataset[[#This Row],[2028/29 To - Spending review Topic 2]]+Dataset[[#This Row],[2028/29 To - Spending review Topic 3]]+Dataset[[#This Row],[2028/29 To - Spending review Topic 4]]+Dataset[[#This Row],[2028/29 To - Other reallocations]]","v":0},{"$f":"Dataset[[#This Row],[2029/30 To - Spending review Topic 1]]+Dataset[[#This Row],[2029/30 To - Spending review Topic 2]]+Dataset[[#This Row],[2029/30 To - Spending review Topic 3]]+Dataset[[#This Row],[2029/30 To - Spending review Topic 4]]+Dataset[[#This Row],[2029/30 To - Other reallocations]]","v":0},{"$f":"Dataset[[#This Row],[2027/28 Targeted savings]]+Dataset[[#This Row],[2027/28 From - Total]]","v":0},{"$f":"Dataset[[#This Row],[2028/29 Targeted savings]]+Dataset[[#This Row],[2028/29 From - Total]]","v":0},{"$f":"Dataset[[#This Row],[2029/30 Targeted savings]]+Dataset[[#This Row],[2029/30 From - Total]]","v":0},{"$f":"Dataset[[#This Row],[2026/27 Targeted savings]]","v":0},{"$f":"SUM(Dataset[[#This Row],[2027/28 Targeted savings]],Dataset[[#This Row],[2027/28 From - Total]],Dataset[[#This Row],[2027/28 To - Total]])","v":0},{"$f":"SUM(Dataset[[#This Row],[2028/29 Targeted savings]],Dataset[[#This Row],[2028/29 From - Total]],Dataset[[#This Row],[2028/29 To - Total]])","v":0},{"$f":"SUM(Dataset[[#This Row],[2029/30 Targeted savings]],Dataset[[#This Row],[2029/30 From - Total]],Dataset[[#This Row],[2029/30 To - Total]])","v":0},{"$f":"Dataset[[#This Row],[2026/27 Baseline]]+Dataset[[#This Row],[2026/27 Total change]]","v":40},{"$f":"Dataset[[#This Row],[2027/28 Baseline]]+Dataset[[#This Row],[2027/28 Total change]]","v":275},{"$f":"Dataset[[#This Row],[2028/29 Baseline]]+Dataset[[#This Row],[2028/29 Total change]]","v":284},{"$f":"Dataset[[#This Row],[2029/30 Baseline]]+Dataset[[#This Row],[2029/30 Total change]]","v":293}]
["NAT|Non-transfer","30|Consumables: Stationery, printing and office supplies","2027_28","MTEC2027",30,1,3,32643,123,"30","01","03","032643","000123","30|01|03|000123","01","01","02","32","32","01|01|02|32|32","National","Communications and Digital Technologies","Administration","Corporate Services","Non-transfer","Current","Current payments","Goods and services","Consumables: Stationery, printing and office supplies","Consumables: Stationery, printing and office supplies","Economic development","Economic regulation and infrastructure","NAT",503,469,75,524,472,472,139,237,996,1027,1058,null,null,null,null,null,null,null,null,null,null,null,null,null,null,null,null,null,null,null,null,null,null,null,null,null,null,null,null,null,null,null,null,null,null,{"$f":"Dataset[[#This Row],[2027/28 From - Spending review Topic 1]]+Dataset[[#This Row],[2027/28 From - Spending review Topic 2]]+Dataset[[#This Row],[2027/28 From - Spending review Topic 3]]+Dataset[[#This Row],[2027/28 From - Spending review Topic 4]]+Dataset[[#This Row],[2027/28 From - Other reallocations]]","v":0},{"$f":"Dataset[[#This Row],[2028/29 From - Spending review Topic 1]]+Dataset[[#This Row],[2028/29 From - Spending review Topic 2]]+Dataset[[#This Row],[2028/29 From - Spending review Topic 3]]+Dataset[[#This Row],[2028/29 From - Spending review Topic 4]]+Dataset[[#This Row],[2028/29 From - Other reallocations]]","v":0},{"$f":"Dataset[[#This Row],[2029/30 From - Spending review Topic 1]]+Dataset[[#This Row],[2029/30 From - Spending review Topic 2]]+Dataset[[#This Row],[2029/30 From - Spending review Topic 3]]+Dataset[[#This Row],[2029/30 From - Spending review Topic 4]]+Dataset[[#This Row],[2029/30 From - Other reallocations]]","v":0},{"$f":"Dataset[[#This Row],[2027/28 To - Spending review Topic 1]]+Dataset[[#This Row],[2027/28 To - Spending review Topic 2]]+Dataset[[#This Row],[2027/28 To - Spending review Topic 3]]+Dataset[[#This Row],[2027/28 To - Spending review Topic 4]]+Dataset[[#This Row],[2027/28 To - Other reallocations]]","v":0},{"$f":"Dataset[[#This Row],[2028/29 To - Spending review Topic 1]]+Dataset[[#This Row],[2028/29 To - Spending review Topic 2]]+Dataset[[#This Row],[2028/29 To - Spending review Topic 3]]+Dataset[[#This Row],[2028/29 To - Spending review Topic 4]]+Dataset[[#This Row],[2028/29 To - Other reallocations]]","v":0},{"$f":"Dataset[[#This Row],[2029/30 To - Spending review Topic 1]]+Dataset[[#This Row],[2029/30 To - Spending review Topic 2]]+Dataset[[#This Row],[2029/30 To - Spending review Topic 3]]+Dataset[[#This Row],[2029/30 To - Spending review Topic 4]]+Dataset[[#This Row],[2029/30 To - Other reallocations]]","v":0},{"$f":"Dataset[[#This Row],[2027/28 Targeted savings]]+Dataset[[#This Row],[2027/28 From - Total]]","v":0},{"$f":"Dataset[[#This Row],[2028/29 Targeted savings]]+Dataset[[#This Row],[2028/29 From - Total]]","v":0},{"$f":"Dataset[[#This Row],[2029/30 Targeted savings]]+Dataset[[#This Row],[2029/30 From - Total]]","v":0},{"$f":"Dataset[[#This Row],[2026/27 Targeted savings]]","v":0},{"$f":"SUM(Dataset[[#This Row],[2027/28 Targeted savings]],Dataset[[#This Row],[2027/28 From - Total]],Dataset[[#This Row],[2027/28 To - Total]])","v":0},{"$f":"SUM(Dataset[[#This Row],[2028/29 Targeted savings]],Dataset[[#This Row],[2028/29 From - Total]],Dataset[[#This Row],[2028/29 To - Total]])","v":0},{"$f":"SUM(Dataset[[#This Row],[2029/30 Targeted savings]],Dataset[[#This Row],[2029/30 From - Total]],Dataset[[#This Row],[2029/30 To - Total]])","v":0},{"$f":"Dataset[[#This Row],[2026/27 Baseline]]+Dataset[[#This Row],[2026/27 Total change]]","v":237},{"$f":"Dataset[[#This Row],[2027/28 Baseline]]+Dataset[[#This Row],[2027/28 Total change]]","v":996},{"$f":"Dataset[[#This Row],[2028/29 Baseline]]+Dataset[[#This Row],[2028/29 Total change]]","v":1027},{"$f":"Dataset[[#This Row],[2029/30 Baseline]]+Dataset[[#This Row],[2029/30 Total change]]","v":1058}]
["NAT|Non-transfer","30|Operating leases","2027_28","MTEC2027",30,1,3,32644,124,"30","01","03","032644","000124","30|01|03|000124","01","01","02","33","33","01|01|02|33|33","National","Communications and Digital Technologies","Administration","Corporate Services","Non-transfer","Current","Current payments","Goods and services","Operating leases","Operating leases","Economic development","Economic regulation and infrastructure","NAT",298,434,494,520,520,520,453,350,1137,1173,1208,null,null,null,null,null,null,null,null,null,null,null,null,null,null,null,null,null,null,null,null,null,null,null,null,null,null,null,null,null,null,null,null,null,null,{"$f":"Dataset[[#This Row],[2027/28 From - Spending review Topic 1]]+Dataset[[#This Row],[2027/28 From - Spending review Topic 2]]+Dataset[[#This Row],[2027/28 From - Spending review Topic 3]]+Dataset[[#This Row],[2027/28 From - Spending review Topic 4]]+Dataset[[#This Row],[2027/28 From - Other reallocations]]","v":0},{"$f":"Dataset[[#This Row],[2028/29 From - Spending review Topic 1]]+Dataset[[#This Row],[2028/29 From - Spending review Topic 2]]+Dataset[[#This Row],[2028/29 From - Spending review Topic 3]]+Dataset[[#This Row],[2028/29 From - Spending review Topic 4]]+Dataset[[#This Row],[2028/29 From - Other reallocations]]","v":0},{"$f":"Dataset[[#This Row],[2029/30 From - Spending review Topic 1]]+Dataset[[#This Row],[2029/30 From - Spending review Topic 2]]+Dataset[[#This Row],[2029/30 From - Spending review Topic 3]]+Dataset[[#This Row],[2029/30 From - Spending review Topic 4]]+Dataset[[#This Row],[2029/30 From - Other reallocations]]","v":0},{"$f":"Dataset[[#This Row],[2027/28 To - Spending review Topic 1]]+Dataset[[#This Row],[2027/28 To - Spending review Topic 2]]+Dataset[[#This Row],[2027/28 To - Spending review Topic 3]]+Dataset[[#This Row],[2027/28 To - Spending review Topic 4]]+Dataset[[#This Row],[2027/28 To - Other reallocations]]","v":0},{"$f":"Dataset[[#This Row],[2028/29 To - Spending review Topic 1]]+Dataset[[#This Row],[2028/29 To - Spending review Topic 2]]+Dataset[[#This Row],[2028/29 To - Spending review Topic 3]]+Dataset[[#This Row],[2028/29 To - Spending review Topic 4]]+Dataset[[#This Row],[2028/29 To - Other reallocations]]","v":0},{"$f":"Dataset[[#This Row],[2029/30 To - Spending review Topic 1]]+Dataset[[#This Row],[2029/30 To - Spending review Topic 2]]+Dataset[[#This Row],[2029/30 To - Spending review Topic 3]]+Dataset[[#This Row],[2029/30 To - Spending review Topic 4]]+Dataset[[#This Row],[2029/30 To - Other reallocations]]","v":0},{"$f":"Dataset[[#This Row],[2027/28 Targeted savings]]+Dataset[[#This Row],[2027/28 From - Total]]","v":0},{"$f":"Dataset[[#This Row],[2028/29 Targeted savings]]+Dataset[[#This Row],[2028/29 From - Total]]","v":0},{"$f":"Dataset[[#This Row],[2029/30 Targeted savings]]+Dataset[[#This Row],[2029/30 From - Total]]","v":0},{"$f":"Dataset[[#This Row],[2026/27 Targeted savings]]","v":0},{"$f":"SUM(Dataset[[#This Row],[2027/28 Targeted savings]],Dataset[[#This Row],[2027/28 From - Total]],Dataset[[#This Row],[2027/28 To - Total]])","v":0},{"$f":"SUM(Dataset[[#This Row],[2028/29 Targeted savings]],Dataset[[#This Row],[2028/29 From - Total]],Dataset[[#This Row],[2028/29 To - Total]])","v":0},{"$f":"SUM(Dataset[[#This Row],[2029/30 Targeted savings]],Dataset[[#This Row],[2029/30 From - Total]],Dataset[[#This Row],[2029/30 To - Total]])","v":0},{"$f":"Dataset[[#This Row],[2026/27 Baseline]]+Dataset[[#This Row],[2026/27 Total change]]","v":350},{"$f":"Dataset[[#This Row],[2027/28 Baseline]]+Dataset[[#This Row],[2027/28 Total change]]","v":1137},{"$f":"Dataset[[#This Row],[2028/29 Baseline]]+Dataset[[#This Row],[2028/29 Total change]]","v":1173},{"$f":"Dataset[[#This Row],[2029/30 Baseline]]+Dataset[[#This Row],[2029/30 Total change]]","v":1208}]
["NAT|Non-transfer","30|Rental and hiring","2027_28","MTEC2027",30,1,3,32645,125,"30","01","03","032645","000125","30|01|03|000125","01","01","02","34","34","01|01|02|34|34","National","Communications and Digital Technologies","Administration","Corporate Services","Non-transfer","Current","Current payments","Goods and services","Rental and hiring","Rental and hiring","Economic development","Economic regulation and infrastructure","NAT",11,56,0,0,0,0,0,0,0,0,0,null,null,null,null,null,null,null,null,null,null,null,null,null,null,null,null,null,null,null,null,null,null,null,null,null,null,null,null,null,null,null,null,null,null,{"$f":"Dataset[[#This Row],[2027/28 From - Spending review Topic 1]]+Dataset[[#This Row],[2027/28 From - Spending review Topic 2]]+Dataset[[#This Row],[2027/28 From - Spending review Topic 3]]+Dataset[[#This Row],[2027/28 From - Spending review Topic 4]]+Dataset[[#This Row],[2027/28 From - Other reallocations]]","v":0},{"$f":"Dataset[[#This Row],[2028/29 From - Spending review Topic 1]]+Dataset[[#This Row],[2028/29 From - Spending review Topic 2]]+Dataset[[#This Row],[2028/29 From - Spending review Topic 3]]+Dataset[[#This Row],[2028/29 From - Spending review Topic 4]]+Dataset[[#This Row],[2028/29 From - Other reallocations]]","v":0},{"$f":"Dataset[[#This Row],[2029/30 From - Spending review Topic 1]]+Dataset[[#This Row],[2029/30 From - Spending review Topic 2]]+Dataset[[#This Row],[2029/30 From - Spending review Topic 3]]+Dataset[[#This Row],[2029/30 From - Spending review Topic 4]]+Dataset[[#This Row],[2029/30 From - Other reallocations]]","v":0},{"$f":"Dataset[[#This Row],[2027/28 To - Spending review Topic 1]]+Dataset[[#This Row],[2027/28 To - Spending review Topic 2]]+Dataset[[#This Row],[2027/28 To - Spending review Topic 3]]+Dataset[[#This Row],[2027/28 To - Spending review Topic 4]]+Dataset[[#This Row],[2027/28 To - Other reallocations]]","v":0},{"$f":"Dataset[[#This Row],[2028/29 To - Spending review Topic 1]]+Dataset[[#This Row],[2028/29 To - Spending review Topic 2]]+Dataset[[#This Row],[2028/29 To - Spending review Topic 3]]+Dataset[[#This Row],[2028/29 To - Spending review Topic 4]]+Dataset[[#This Row],[2028/29 To - Other reallocations]]","v":0},{"$f":"Dataset[[#This Row],[2029/30 To - Spending review Topic 1]]+Dataset[[#This Row],[2029/30 To - Spending review Topic 2]]+Dataset[[#This Row],[2029/30 To - Spending review Topic 3]]+Dataset[[#This Row],[2029/30 To - Spending review Topic 4]]+Dataset[[#This Row],[2029/30 To - Other reallocations]]","v":0},{"$f":"Dataset[[#This Row],[2027/28 Targeted savings]]+Dataset[[#This Row],[2027/28 From - Total]]","v":0},{"$f":"Dataset[[#This Row],[2028/29 Targeted savings]]+Dataset[[#This Row],[2028/29 From - Total]]","v":0},{"$f":"Dataset[[#This Row],[2029/30 Targeted savings]]+Dataset[[#This Row],[2029/30 From - Total]]","v":0},{"$f":"Dataset[[#This Row],[2026/27 Targeted savings]]","v":0},{"$f":"SUM(Dataset[[#This Row],[2027/28 Targeted savings]],Dataset[[#This Row],[2027/28 From - Total]],Dataset[[#This Row],[2027/28 To - Total]])","v":0},{"$f":"SUM(Dataset[[#This Row],[2028/29 Targeted savings]],Dataset[[#This Row],[2028/29 From - Total]],Dataset[[#This Row],[2028/29 To - Total]])","v":0},{"$f":"SUM(Dataset[[#This Row],[2029/30 Targeted savings]],Dataset[[#This Row],[2029/30 From - Total]],Dataset[[#This Row],[2029/30 To - Total]])","v":0},{"$f":"Dataset[[#This Row],[2026/27 Baseline]]+Dataset[[#This Row],[2026/27 Total change]]","v":0},{"$f":"Dataset[[#This Row],[2027/28 Baseline]]+Dataset[[#This Row],[2027/28 Total change]]","v":0},{"$f":"Dataset[[#This Row],[2028/29 Baseline]]+Dataset[[#This Row],[2028/29 Total change]]","v":0},{"$f":"Dataset[[#This Row],[2029/30 Baseline]]+Dataset[[#This Row],[2029/30 Total change]]","v":0}]
["NAT|Non-transfer","30|Property payments","2027_28","MTEC2027",30,1,3,32646,126,"30","01","03","032646","000126","30|01|03|000126","01","01","02","35","35","01|01|02|35|35","National","Communications and Digital Technologies","Administration","Corporate Services","Non-transfer","Current","Current payments","Goods and services","Property payments","Property payments","Economic development","Economic regulation and infrastructure","NAT",368,20,0,0,0,0,1,100,4,4,4,null,null,null,null,null,null,null,null,null,null,null,null,null,null,null,null,null,null,null,null,null,null,null,null,null,null,null,null,null,null,null,null,null,null,{"$f":"Dataset[[#This Row],[2027/28 From - Spending review Topic 1]]+Dataset[[#This Row],[2027/28 From - Spending review Topic 2]]+Dataset[[#This Row],[2027/28 From - Spending review Topic 3]]+Dataset[[#This Row],[2027/28 From - Spending review Topic 4]]+Dataset[[#This Row],[2027/28 From - Other reallocations]]","v":0},{"$f":"Dataset[[#This Row],[2028/29 From - Spending review Topic 1]]+Dataset[[#This Row],[2028/29 From - Spending review Topic 2]]+Dataset[[#This Row],[2028/29 From - Spending review Topic 3]]+Dataset[[#This Row],[2028/29 From - Spending review Topic 4]]+Dataset[[#This Row],[2028/29 From - Other reallocations]]","v":0},{"$f":"Dataset[[#This Row],[2029/30 From - Spending review Topic 1]]+Dataset[[#This Row],[2029/30 From - Spending review Topic 2]]+Dataset[[#This Row],[2029/30 From - Spending review Topic 3]]+Dataset[[#This Row],[2029/30 From - Spending review Topic 4]]+Dataset[[#This Row],[2029/30 From - Other reallocations]]","v":0},{"$f":"Dataset[[#This Row],[2027/28 To - Spending review Topic 1]]+Dataset[[#This Row],[2027/28 To - Spending review Topic 2]]+Dataset[[#This Row],[2027/28 To - Spending review Topic 3]]+Dataset[[#This Row],[2027/28 To - Spending review Topic 4]]+Dataset[[#This Row],[2027/28 To - Other reallocations]]","v":0},{"$f":"Dataset[[#This Row],[2028/29 To - Spending review Topic 1]]+Dataset[[#This Row],[2028/29 To - Spending review Topic 2]]+Dataset[[#This Row],[2028/29 To - Spending review Topic 3]]+Dataset[[#This Row],[2028/29 To - Spending review Topic 4]]+Dataset[[#This Row],[2028/29 To - Other reallocations]]","v":0},{"$f":"Dataset[[#This Row],[2029/30 To - Spending review Topic 1]]+Dataset[[#This Row],[2029/30 To - Spending review Topic 2]]+Dataset[[#This Row],[2029/30 To - Spending review Topic 3]]+Dataset[[#This Row],[2029/30 To - Spending review Topic 4]]+Dataset[[#This Row],[2029/30 To - Other reallocations]]","v":0},{"$f":"Dataset[[#This Row],[2027/28 Targeted savings]]+Dataset[[#This Row],[2027/28 From - Total]]","v":0},{"$f":"Dataset[[#This Row],[2028/29 Targeted savings]]+Dataset[[#This Row],[2028/29 From - Total]]","v":0},{"$f":"Dataset[[#This Row],[2029/30 Targeted savings]]+Dataset[[#This Row],[2029/30 From - Total]]","v":0},{"$f":"Dataset[[#This Row],[2026/27 Targeted savings]]","v":0},{"$f":"SUM(Dataset[[#This Row],[2027/28 Targeted savings]],Dataset[[#This Row],[2027/28 From - Total]],Dataset[[#This Row],[2027/28 To - Total]])","v":0},{"$f":"SUM(Dataset[[#This Row],[2028/29 Targeted savings]],Dataset[[#This Row],[2028/29 From - Total]],Dataset[[#This Row],[2028/29 To - Total]])","v":0},{"$f":"SUM(Dataset[[#This Row],[2029/30 Targeted savings]],Dataset[[#This Row],[2029/30 From - Total]],Dataset[[#This Row],[2029/30 To - Total]])","v":0},{"$f":"Dataset[[#This Row],[2026/27 Baseline]]+Dataset[[#This Row],[2026/27 Total change]]","v":100},{"$f":"Dataset[[#This Row],[2027/28 Baseline]]+Dataset[[#This Row],[2027/28 Total change]]","v":4},{"$f":"Dataset[[#This Row],[2028/29 Baseline]]+Dataset[[#This Row],[2028/29 Total change]]","v":4},{"$f":"Dataset[[#This Row],[2029/30 Baseline]]+Dataset[[#This Row],[2029/30 Total change]]","v":4}]
["NAT|Non-transfer","30|Travel and subsistence","2027_28","MTEC2027",30,1,3,32647,127,"30","01","03","032647","000127","30|01|03|000127","01","01","02","37","37","01|01|02|37|37","National","Communications and Digital Technologies","Administration","Corporate Services","Non-transfer","Current","Current payments","Goods and services","Travel and subsistence","Travel and subsistence","Economic development","Economic regulation and infrastructure","NAT",2212,3213,2492,4236,3488,3488,2654,3040,3138,1891,1948,null,null,null,null,null,null,null,null,null,null,null,null,null,null,null,null,null,null,null,null,null,null,null,null,null,null,null,null,null,null,null,null,null,null,{"$f":"Dataset[[#This Row],[2027/28 From - Spending review Topic 1]]+Dataset[[#This Row],[2027/28 From - Spending review Topic 2]]+Dataset[[#This Row],[2027/28 From - Spending review Topic 3]]+Dataset[[#This Row],[2027/28 From - Spending review Topic 4]]+Dataset[[#This Row],[2027/28 From - Other reallocations]]","v":0},{"$f":"Dataset[[#This Row],[2028/29 From - Spending review Topic 1]]+Dataset[[#This Row],[2028/29 From - Spending review Topic 2]]+Dataset[[#This Row],[2028/29 From - Spending review Topic 3]]+Dataset[[#This Row],[2028/29 From - Spending review Topic 4]]+Dataset[[#This Row],[2028/29 From - Other reallocations]]","v":0},{"$f":"Dataset[[#This Row],[2029/30 From - Spending review Topic 1]]+Dataset[[#This Row],[2029/30 From - Spending review Topic 2]]+Dataset[[#This Row],[2029/30 From - Spending review Topic 3]]+Dataset[[#This Row],[2029/30 From - Spending review Topic 4]]+Dataset[[#This Row],[2029/30 From - Other reallocations]]","v":0},{"$f":"Dataset[[#This Row],[2027/28 To - Spending review Topic 1]]+Dataset[[#This Row],[2027/28 To - Spending review Topic 2]]+Dataset[[#This Row],[2027/28 To - Spending review Topic 3]]+Dataset[[#This Row],[2027/28 To - Spending review Topic 4]]+Dataset[[#This Row],[2027/28 To - Other reallocations]]","v":0},{"$f":"Dataset[[#This Row],[2028/29 To - Spending review Topic 1]]+Dataset[[#This Row],[2028/29 To - Spending review Topic 2]]+Dataset[[#This Row],[2028/29 To - Spending review Topic 3]]+Dataset[[#This Row],[2028/29 To - Spending review Topic 4]]+Dataset[[#This Row],[2028/29 To - Other reallocations]]","v":0},{"$f":"Dataset[[#This Row],[2029/30 To - Spending review Topic 1]]+Dataset[[#This Row],[2029/30 To - Spending review Topic 2]]+Dataset[[#This Row],[2029/30 To - Spending review Topic 3]]+Dataset[[#This Row],[2029/30 To - Spending review Topic 4]]+Dataset[[#This Row],[2029/30 To - Other reallocations]]","v":0},{"$f":"Dataset[[#This Row],[2027/28 Targeted savings]]+Dataset[[#This Row],[2027/28 From - Total]]","v":0},{"$f":"Dataset[[#This Row],[2028/29 Targeted savings]]+Dataset[[#This Row],[2028/29 From - Total]]","v":0},{"$f":"Dataset[[#This Row],[2029/30 Targeted savings]]+Dataset[[#This Row],[2029/30 From - Total]]","v":0},{"$f":"Dataset[[#This Row],[2026/27 Targeted savings]]","v":0},{"$f":"SUM(Dataset[[#This Row],[2027/28 Targeted savings]],Dataset[[#This Row],[2027/28 From - Total]],Dataset[[#This Row],[2027/28 To - Total]])","v":0},{"$f":"SUM(Dataset[[#This Row],[2028/29 Targeted savings]],Dataset[[#This Row],[2028/29 From - Total]],Dataset[[#This Row],[2028/29 To - Total]])","v":0},{"$f":"SUM(Dataset[[#This Row],[2029/30 Targeted savings]],Dataset[[#This Row],[2029/30 From - Total]],Dataset[[#This Row],[2029/30 To - Total]])","v":0},{"$f":"Dataset[[#This Row],[2026/27 Baseline]]+Dataset[[#This Row],[2026/27 Total change]]","v":3040},{"$f":"Dataset[[#This Row],[2027/28 Baseline]]+Dataset[[#This Row],[2027/28 Total change]]","v":3138},{"$f":"Dataset[[#This Row],[2028/29 Baseline]]+Dataset[[#This Row],[2028/29 Total change]]","v":1891},{"$f":"Dataset[[#This Row],[2029/30 Baseline]]+Dataset[[#This Row],[2029/30 Total change]]","v":1948}]
["NAT|Non-transfer","30|Training and development","2027_28","MTEC2027",30,1,3,32648,128,"30","01","03","032648","000128","30|01|03|000128","01","01","02","38","38","01|01|02|38|38","National","Communications and Digital Technologies","Administration","Corporate Services","Non-transfer","Current","Current payments","Goods and services","Training and development","Training and development","Economic development","Economic regulation and infrastructure","NAT",153,302,94,530,565,565,257,429,714,736,758,null,null,null,null,null,null,null,null,null,null,null,null,null,null,null,null,null,null,null,null,null,null,null,null,null,null,null,null,null,null,null,null,null,null,{"$f":"Dataset[[#This Row],[2027/28 From - Spending review Topic 1]]+Dataset[[#This Row],[2027/28 From - Spending review Topic 2]]+Dataset[[#This Row],[2027/28 From - Spending review Topic 3]]+Dataset[[#This Row],[2027/28 From - Spending review Topic 4]]+Dataset[[#This Row],[2027/28 From - Other reallocations]]","v":0},{"$f":"Dataset[[#This Row],[2028/29 From - Spending review Topic 1]]+Dataset[[#This Row],[2028/29 From - Spending review Topic 2]]+Dataset[[#This Row],[2028/29 From - Spending review Topic 3]]+Dataset[[#This Row],[2028/29 From - Spending review Topic 4]]+Dataset[[#This Row],[2028/29 From - Other reallocations]]","v":0},{"$f":"Dataset[[#This Row],[2029/30 From - Spending review Topic 1]]+Dataset[[#This Row],[2029/30 From - Spending review Topic 2]]+Dataset[[#This Row],[2029/30 From - Spending review Topic 3]]+Dataset[[#This Row],[2029/30 From - Spending review Topic 4]]+Dataset[[#This Row],[2029/30 From - Other reallocations]]","v":0},{"$f":"Dataset[[#This Row],[2027/28 To - Spending review Topic 1]]+Dataset[[#This Row],[2027/28 To - Spending review Topic 2]]+Dataset[[#This Row],[2027/28 To - Spending review Topic 3]]+Dataset[[#This Row],[2027/28 To - Spending review Topic 4]]+Dataset[[#This Row],[2027/28 To - Other reallocations]]","v":0},{"$f":"Dataset[[#This Row],[2028/29 To - Spending review Topic 1]]+Dataset[[#This Row],[2028/29 To - Spending review Topic 2]]+Dataset[[#This Row],[2028/29 To - Spending review Topic 3]]+Dataset[[#This Row],[2028/29 To - Spending review Topic 4]]+Dataset[[#This Row],[2028/29 To - Other reallocations]]","v":0},{"$f":"Dataset[[#This Row],[2029/30 To - Spending review Topic 1]]+Dataset[[#This Row],[2029/30 To - Spending review Topic 2]]+Dataset[[#This Row],[2029/30 To - Spending review Topic 3]]+Dataset[[#This Row],[2029/30 To - Spending review Topic 4]]+Dataset[[#This Row],[2029/30 To - Other reallocations]]","v":0},{"$f":"Dataset[[#This Row],[2027/28 Targeted savings]]+Dataset[[#This Row],[2027/28 From - Total]]","v":0},{"$f":"Dataset[[#This Row],[2028/29 Targeted savings]]+Dataset[[#This Row],[2028/29 From - Total]]","v":0},{"$f":"Dataset[[#This Row],[2029/30 Targeted savings]]+Dataset[[#This Row],[2029/30 From - Total]]","v":0},{"$f":"Dataset[[#This Row],[2026/27 Targeted savings]]","v":0},{"$f":"SUM(Dataset[[#This Row],[2027/28 Targeted savings]],Dataset[[#This Row],[2027/28 From - Total]],Dataset[[#This Row],[2027/28 To - Total]])","v":0},{"$f":"SUM(Dataset[[#This Row],[2028/29 Targeted savings]],Dataset[[#This Row],[2028/29 From - Total]],Dataset[[#This Row],[2028/29 To - Total]])","v":0},{"$f":"SUM(Dataset[[#This Row],[2029/30 Targeted savings]],Dataset[[#This Row],[2029/30 From - Total]],Dataset[[#This Row],[2029/30 To - Total]])","v":0},{"$f":"Dataset[[#This Row],[2026/27 Baseline]]+Dataset[[#This Row],[2026/27 Total change]]","v":429},{"$f":"Dataset[[#This Row],[2027/28 Baseline]]+Dataset[[#This Row],[2027/28 Total change]]","v":714},{"$f":"Dataset[[#This Row],[2028/29 Baseline]]+Dataset[[#This Row],[2028/29 Total change]]","v":736},{"$f":"Dataset[[#This Row],[2029/30 Baseline]]+Dataset[[#This Row],[2029/30 Total change]]","v":758}]
["NAT|Non-transfer","30|Operating payments","2027_28","MTEC2027",30,1,3,32649,129,"30","01","03","032649","000129","30|01|03|000129","01","01","02","39","39","01|01|02|39|39","National","Communications and Digital Technologies","Administration","Corporate Services","Non-transfer","Current","Current payments","Goods and services","Operating payments","Operating payments","Economic development","Economic regulation and infrastructure","NAT",189,185,813,138,141,141,1018,75,291,300,309,null,null,null,null,null,null,null,null,null,null,null,null,null,null,null,null,null,null,null,null,null,null,null,null,null,null,null,null,null,null,null,null,null,null,{"$f":"Dataset[[#This Row],[2027/28 From - Spending review Topic 1]]+Dataset[[#This Row],[2027/28 From - Spending review Topic 2]]+Dataset[[#This Row],[2027/28 From - Spending review Topic 3]]+Dataset[[#This Row],[2027/28 From - Spending review Topic 4]]+Dataset[[#This Row],[2027/28 From - Other reallocations]]","v":0},{"$f":"Dataset[[#This Row],[2028/29 From - Spending review Topic 1]]+Dataset[[#This Row],[2028/29 From - Spending review Topic 2]]+Dataset[[#This Row],[2028/29 From - Spending review Topic 3]]+Dataset[[#This Row],[2028/29 From - Spending review Topic 4]]+Dataset[[#This Row],[2028/29 From - Other reallocations]]","v":0},{"$f":"Dataset[[#This Row],[2029/30 From - Spending review Topic 1]]+Dataset[[#This Row],[2029/30 From - Spending review Topic 2]]+Dataset[[#This Row],[2029/30 From - Spending review Topic 3]]+Dataset[[#This Row],[2029/30 From - Spending review Topic 4]]+Dataset[[#This Row],[2029/30 From - Other reallocations]]","v":0},{"$f":"Dataset[[#This Row],[2027/28 To - Spending review Topic 1]]+Dataset[[#This Row],[2027/28 To - Spending review Topic 2]]+Dataset[[#This Row],[2027/28 To - Spending review Topic 3]]+Dataset[[#This Row],[2027/28 To - Spending review Topic 4]]+Dataset[[#This Row],[2027/28 To - Other reallocations]]","v":0},{"$f":"Dataset[[#This Row],[2028/29 To - Spending review Topic 1]]+Dataset[[#This Row],[2028/29 To - Spending review Topic 2]]+Dataset[[#This Row],[2028/29 To - Spending review Topic 3]]+Dataset[[#This Row],[2028/29 To - Spending review Topic 4]]+Dataset[[#This Row],[2028/29 To - Other reallocations]]","v":0},{"$f":"Dataset[[#This Row],[2029/30 To - Spending review Topic 1]]+Dataset[[#This Row],[2029/30 To - Spending review Topic 2]]+Dataset[[#This Row],[2029/30 To - Spending review Topic 3]]+Dataset[[#This Row],[2029/30 To - Spending review Topic 4]]+Dataset[[#This Row],[2029/30 To - Other reallocations]]","v":0},{"$f":"Dataset[[#This Row],[2027/28 Targeted savings]]+Dataset[[#This Row],[2027/28 From - Total]]","v":0},{"$f":"Dataset[[#This Row],[2028/29 Targeted savings]]+Dataset[[#This Row],[2028/29 From - Total]]","v":0},{"$f":"Dataset[[#This Row],[2029/30 Targeted savings]]+Dataset[[#This Row],[2029/30 From - Total]]","v":0},{"$f":"Dataset[[#This Row],[2026/27 Targeted savings]]","v":0},{"$f":"SUM(Dataset[[#This Row],[2027/28 Targeted savings]],Dataset[[#This Row],[2027/28 From - Total]],Dataset[[#This Row],[2027/28 To - Total]])","v":0},{"$f":"SUM(Dataset[[#This Row],[2028/29 Targeted savings]],Dataset[[#This Row],[2028/29 From - Total]],Dataset[[#This Row],[2028/29 To - Total]])","v":0},{"$f":"SUM(Dataset[[#This Row],[2029/30 Targeted savings]],Dataset[[#This Row],[2029/30 From - Total]],Dataset[[#This Row],[2029/30 To - Total]])","v":0},{"$f":"Dataset[[#This Row],[2026/27 Baseline]]+Dataset[[#This Row],[2026/27 Total change]]","v":75},{"$f":"Dataset[[#This Row],[2027/28 Baseline]]+Dataset[[#This Row],[2027/28 Total change]]","v":291},{"$f":"Dataset[[#This Row],[2028/29 Baseline]]+Dataset[[#This Row],[2028/29 Total change]]","v":300},{"$f":"Dataset[[#This Row],[2029/30 Baseline]]+Dataset[[#This Row],[2029/30 Total change]]","v":309}]
["NAT|Non-transfer","30|Venues and facilities","2027_28","MTEC2027",30,1,3,32650,130,"30","01","03","032650","000130","30|01|03|000130","01","01","02","40","40","01|01|02|40|40","National","Communications and Digital Technologies","Administration","Corporate Services","Non-transfer","Current","Current payments","Goods and services","Venues and facilities","Venues and facilities","Economic development","Economic regulation and infrastructure","NAT",115,577,1182,530,530,530,535,420,1064,1097,1130,null,null,null,null,null,null,null,null,null,null,null,null,null,null,null,null,null,null,null,null,null,null,null,null,null,null,null,null,null,null,null,null,null,null,{"$f":"Dataset[[#This Row],[2027/28 From - Spending review Topic 1]]+Dataset[[#This Row],[2027/28 From - Spending review Topic 2]]+Dataset[[#This Row],[2027/28 From - Spending review Topic 3]]+Dataset[[#This Row],[2027/28 From - Spending review Topic 4]]+Dataset[[#This Row],[2027/28 From - Other reallocations]]","v":0},{"$f":"Dataset[[#This Row],[2028/29 From - Spending review Topic 1]]+Dataset[[#This Row],[2028/29 From - Spending review Topic 2]]+Dataset[[#This Row],[2028/29 From - Spending review Topic 3]]+Dataset[[#This Row],[2028/29 From - Spending review Topic 4]]+Dataset[[#This Row],[2028/29 From - Other reallocations]]","v":0},{"$f":"Dataset[[#This Row],[2029/30 From - Spending review Topic 1]]+Dataset[[#This Row],[2029/30 From - Spending review Topic 2]]+Dataset[[#This Row],[2029/30 From - Spending review Topic 3]]+Dataset[[#This Row],[2029/30 From - Spending review Topic 4]]+Dataset[[#This Row],[2029/30 From - Other reallocations]]","v":0},{"$f":"Dataset[[#This Row],[2027/28 To - Spending review Topic 1]]+Dataset[[#This Row],[2027/28 To - Spending review Topic 2]]+Dataset[[#This Row],[2027/28 To - Spending review Topic 3]]+Dataset[[#This Row],[2027/28 To - Spending review Topic 4]]+Dataset[[#This Row],[2027/28 To - Other reallocations]]","v":0},{"$f":"Dataset[[#This Row],[2028/29 To - Spending review Topic 1]]+Dataset[[#This Row],[2028/29 To - Spending review Topic 2]]+Dataset[[#This Row],[2028/29 To - Spending review Topic 3]]+Dataset[[#This Row],[2028/29 To - Spending review Topic 4]]+Dataset[[#This Row],[2028/29 To - Other reallocations]]","v":0},{"$f":"Dataset[[#This Row],[2029/30 To - Spending review Topic 1]]+Dataset[[#This Row],[2029/30 To - Spending review Topic 2]]+Dataset[[#This Row],[2029/30 To - Spending review Topic 3]]+Dataset[[#This Row],[2029/30 To - Spending review Topic 4]]+Dataset[[#This Row],[2029/30 To - Other reallocations]]","v":0},{"$f":"Dataset[[#This Row],[2027/28 Targeted savings]]+Dataset[[#This Row],[2027/28 From - Total]]","v":0},{"$f":"Dataset[[#This Row],[2028/29 Targeted savings]]+Dataset[[#This Row],[2028/29 From - Total]]","v":0},{"$f":"Dataset[[#This Row],[2029/30 Targeted savings]]+Dataset[[#This Row],[2029/30 From - Total]]","v":0},{"$f":"Dataset[[#This Row],[2026/27 Targeted savings]]","v":0},{"$f":"SUM(Dataset[[#This Row],[2027/28 Targeted savings]],Dataset[[#This Row],[2027/28 From - Total]],Dataset[[#This Row],[2027/28 To - Total]])","v":0},{"$f":"SUM(Dataset[[#This Row],[2028/29 Targeted savings]],Dataset[[#This Row],[2028/29 From - Total]],Dataset[[#This Row],[2028/29 To - Total]])","v":0},{"$f":"SUM(Dataset[[#This Row],[2029/30 Targeted savings]],Dataset[[#This Row],[2029/30 From - Total]],Dataset[[#This Row],[2029/30 To - Total]])","v":0},{"$f":"Dataset[[#This Row],[2026/27 Baseline]]+Dataset[[#This Row],[2026/27 Total change]]","v":420},{"$f":"Dataset[[#This Row],[2027/28 Baseline]]+Dataset[[#This Row],[2027/28 Total change]]","v":1064},{"$f":"Dataset[[#This Row],[2028/29 Baseline]]+Dataset[[#This Row],[2028/29 Total change]]","v":1097},{"$f":"Dataset[[#This Row],[2029/30 Baseline]]+Dataset[[#This Row],[2029/30 Total change]]","v":1130}]
["NAT|Employee social benefits","30|Social benefits","2027_28","MTEC2027",30,1,3,32651,131,"30","01","03","032651","000131","30|01|03|000131","01","02","10","52","56","01|02|10|52|56","National","Communications and Digital Technologies","Administration","Corporate Services","Employee social benefits","Current","Transfers and subsidies","Households","Social benefits","Social benefits","Economic development","Economic regulation and infrastructure","NAT",781,1178,1755,1200,1597,1597,0,1300,1387,1429,1472,null,null,null,null,null,null,null,null,null,null,null,null,null,null,null,null,null,null,null,null,null,null,null,null,null,null,null,null,null,null,null,null,null,null,{"$f":"Dataset[[#This Row],[2027/28 From - Spending review Topic 1]]+Dataset[[#This Row],[2027/28 From - Spending review Topic 2]]+Dataset[[#This Row],[2027/28 From - Spending review Topic 3]]+Dataset[[#This Row],[2027/28 From - Spending review Topic 4]]+Dataset[[#This Row],[2027/28 From - Other reallocations]]","v":0},{"$f":"Dataset[[#This Row],[2028/29 From - Spending review Topic 1]]+Dataset[[#This Row],[2028/29 From - Spending review Topic 2]]+Dataset[[#This Row],[2028/29 From - Spending review Topic 3]]+Dataset[[#This Row],[2028/29 From - Spending review Topic 4]]+Dataset[[#This Row],[2028/29 From - Other reallocations]]","v":0},{"$f":"Dataset[[#This Row],[2029/30 From - Spending review Topic 1]]+Dataset[[#This Row],[2029/30 From - Spending review Topic 2]]+Dataset[[#This Row],[2029/30 From - Spending review Topic 3]]+Dataset[[#This Row],[2029/30 From - Spending review Topic 4]]+Dataset[[#This Row],[2029/30 From - Other reallocations]]","v":0},{"$f":"Dataset[[#This Row],[2027/28 To - Spending review Topic 1]]+Dataset[[#This Row],[2027/28 To - Spending review Topic 2]]+Dataset[[#This Row],[2027/28 To - Spending review Topic 3]]+Dataset[[#This Row],[2027/28 To - Spending review Topic 4]]+Dataset[[#This Row],[2027/28 To - Other reallocations]]","v":0},{"$f":"Dataset[[#This Row],[2028/29 To - Spending review Topic 1]]+Dataset[[#This Row],[2028/29 To - Spending review Topic 2]]+Dataset[[#This Row],[2028/29 To - Spending review Topic 3]]+Dataset[[#This Row],[2028/29 To - Spending review Topic 4]]+Dataset[[#This Row],[2028/29 To - Other reallocations]]","v":0},{"$f":"Dataset[[#This Row],[2029/30 To - Spending review Topic 1]]+Dataset[[#This Row],[2029/30 To - Spending review Topic 2]]+Dataset[[#This Row],[2029/30 To - Spending review Topic 3]]+Dataset[[#This Row],[2029/30 To - Spending review Topic 4]]+Dataset[[#This Row],[2029/30 To - Other reallocations]]","v":0},{"$f":"Dataset[[#This Row],[2027/28 Targeted savings]]+Dataset[[#This Row],[2027/28 From - Total]]","v":0},{"$f":"Dataset[[#This Row],[2028/29 Targeted savings]]+Dataset[[#This Row],[2028/29 From - Total]]","v":0},{"$f":"Dataset[[#This Row],[2029/30 Targeted savings]]+Dataset[[#This Row],[2029/30 From - Total]]","v":0},{"$f":"Dataset[[#This Row],[2026/27 Targeted savings]]","v":0},{"$f":"SUM(Dataset[[#This Row],[2027/28 Targeted savings]],Dataset[[#This Row],[2027/28 From - Total]],Dataset[[#This Row],[2027/28 To - Total]])","v":0},{"$f":"SUM(Dataset[[#This Row],[2028/29 Targeted savings]],Dataset[[#This Row],[2028/29 From - Total]],Dataset[[#This Row],[2028/29 To - Total]])","v":0},{"$f":"SUM(Dataset[[#This Row],[2029/30 Targeted savings]],Dataset[[#This Row],[2029/30 From - Total]],Dataset[[#This Row],[2029/30 To - Total]])","v":0},{"$f":"Dataset[[#This Row],[2026/27 Baseline]]+Dataset[[#This Row],[2026/27 Total change]]","v":1300},{"$f":"Dataset[[#This Row],[2027/28 Baseline]]+Dataset[[#This Row],[2027/28 Total change]]","v":1387},{"$f":"Dataset[[#This Row],[2028/29 Baseline]]+Dataset[[#This Row],[2028/29 Total change]]","v":1429},{"$f":"Dataset[[#This Row],[2029/30 Baseline]]+Dataset[[#This Row],[2029/30 Total change]]","v":1472}]
["NAT|Employee social benefits","30|Other transfers to households","2027_28","MTEC2027",30,1,3,32652,132,"30","01","03","032652","000132","30|01|03|000132","01","02","10","53","57","01|02|10|53|57","National","Communications and Digital Technologies","Administration","Corporate Services","Employee social benefits","Current","Transfers and subsidies","Households","Other transfers to households","Other transfers to households","Economic development","Economic regulation and infrastructure","NAT",0,22,8,0,15,15,0,0,0,0,0,null,null,null,null,null,null,null,null,null,null,null,null,null,null,null,null,null,null,null,null,null,null,null,null,null,null,null,null,null,null,null,null,null,null,{"$f":"Dataset[[#This Row],[2027/28 From - Spending review Topic 1]]+Dataset[[#This Row],[2027/28 From - Spending review Topic 2]]+Dataset[[#This Row],[2027/28 From - Spending review Topic 3]]+Dataset[[#This Row],[2027/28 From - Spending review Topic 4]]+Dataset[[#This Row],[2027/28 From - Other reallocations]]","v":0},{"$f":"Dataset[[#This Row],[2028/29 From - Spending review Topic 1]]+Dataset[[#This Row],[2028/29 From - Spending review Topic 2]]+Dataset[[#This Row],[2028/29 From - Spending review Topic 3]]+Dataset[[#This Row],[2028/29 From - Spending review Topic 4]]+Dataset[[#This Row],[2028/29 From - Other reallocations]]","v":0},{"$f":"Dataset[[#This Row],[2029/30 From - Spending review Topic 1]]+Dataset[[#This Row],[2029/30 From - Spending review Topic 2]]+Dataset[[#This Row],[2029/30 From - Spending review Topic 3]]+Dataset[[#This Row],[2029/30 From - Spending review Topic 4]]+Dataset[[#This Row],[2029/30 From - Other reallocations]]","v":0},{"$f":"Dataset[[#This Row],[2027/28 To - Spending review Topic 1]]+Dataset[[#This Row],[2027/28 To - Spending review Topic 2]]+Dataset[[#This Row],[2027/28 To - Spending review Topic 3]]+Dataset[[#This Row],[2027/28 To - Spending review Topic 4]]+Dataset[[#This Row],[2027/28 To - Other reallocations]]","v":0},{"$f":"Dataset[[#This Row],[2028/29 To - Spending review Topic 1]]+Dataset[[#This Row],[2028/29 To - Spending review Topic 2]]+Dataset[[#This Row],[2028/29 To - Spending review Topic 3]]+Dataset[[#This Row],[2028/29 To - Spending review Topic 4]]+Dataset[[#This Row],[2028/29 To - Other reallocations]]","v":0},{"$f":"Dataset[[#This Row],[2029/30 To - Spending review Topic 1]]+Dataset[[#This Row],[2029/30 To - Spending review Topic 2]]+Dataset[[#This Row],[2029/30 To - Spending review Topic 3]]+Dataset[[#This Row],[2029/30 To - Spending review Topic 4]]+Dataset[[#This Row],[2029/30 To - Other reallocations]]","v":0},{"$f":"Dataset[[#This Row],[2027/28 Targeted savings]]+Dataset[[#This Row],[2027/28 From - Total]]","v":0},{"$f":"Dataset[[#This Row],[2028/29 Targeted savings]]+Dataset[[#This Row],[2028/29 From - Total]]","v":0},{"$f":"Dataset[[#This Row],[2029/30 Targeted savings]]+Dataset[[#This Row],[2029/30 From - Total]]","v":0},{"$f":"Dataset[[#This Row],[2026/27 Targeted savings]]","v":0},{"$f":"SUM(Dataset[[#This Row],[2027/28 Targeted savings]],Dataset[[#This Row],[2027/28 From - Total]],Dataset[[#This Row],[2027/28 To - Total]])","v":0},{"$f":"SUM(Dataset[[#This Row],[2028/29 Targeted savings]],Dataset[[#This Row],[2028/29 From - Total]],Dataset[[#This Row],[2028/29 To - Total]])","v":0},{"$f":"SUM(Dataset[[#This Row],[2029/30 Targeted savings]],Dataset[[#This Row],[2029/30 From - Total]],Dataset[[#This Row],[2029/30 To - Total]])","v":0},{"$f":"Dataset[[#This Row],[2026/27 Baseline]]+Dataset[[#This Row],[2026/27 Total change]]","v":0},{"$f":"Dataset[[#This Row],[2027/28 Baseline]]+Dataset[[#This Row],[2027/28 Total change]]","v":0},{"$f":"Dataset[[#This Row],[2028/29 Baseline]]+Dataset[[#This Row],[2028/29 Total change]]","v":0},{"$f":"Dataset[[#This Row],[2029/30 Baseline]]+Dataset[[#This Row],[2029/30 Total change]]","v":0}]
["NAT|Claims against the state","30|Other transfers to households","2027_28","MTEC2027",30,1,3,32653,133,"30","01","03","032653","000133","30|01|03|000133","01","02","10","53","57","01|02|10|53|57","National","Communications and Digital Technologies","Administration","Corporate Services","Claims against the state","Current","Transfers and subsidies","Households","Other transfers to households","Other transfers to households","Economic development","Economic regulation and infrastructure","NAT",239,130,0,0,0,0,0,0,0,0,0,null,null,null,null,null,null,null,null,null,null,null,null,null,null,null,null,null,null,null,null,null,null,null,null,null,null,null,null,null,null,null,null,null,null,{"$f":"Dataset[[#This Row],[2027/28 From - Spending review Topic 1]]+Dataset[[#This Row],[2027/28 From - Spending review Topic 2]]+Dataset[[#This Row],[2027/28 From - Spending review Topic 3]]+Dataset[[#This Row],[2027/28 From - Spending review Topic 4]]+Dataset[[#This Row],[2027/28 From - Other reallocations]]","v":0},{"$f":"Dataset[[#This Row],[2028/29 From - Spending review Topic 1]]+Dataset[[#This Row],[2028/29 From - Spending review Topic 2]]+Dataset[[#This Row],[2028/29 From - Spending review Topic 3]]+Dataset[[#This Row],[2028/29 From - Spending review Topic 4]]+Dataset[[#This Row],[2028/29 From - Other reallocations]]","v":0},{"$f":"Dataset[[#This Row],[2029/30 From - Spending review Topic 1]]+Dataset[[#This Row],[2029/30 From - Spending review Topic 2]]+Dataset[[#This Row],[2029/30 From - Spending review Topic 3]]+Dataset[[#This Row],[2029/30 From - Spending review Topic 4]]+Dataset[[#This Row],[2029/30 From - Other reallocations]]","v":0},{"$f":"Dataset[[#This Row],[2027/28 To - Spending review Topic 1]]+Dataset[[#This Row],[2027/28 To - Spending review Topic 2]]+Dataset[[#This Row],[2027/28 To - Spending review Topic 3]]+Dataset[[#This Row],[2027/28 To - Spending review Topic 4]]+Dataset[[#This Row],[2027/28 To - Other reallocations]]","v":0},{"$f":"Dataset[[#This Row],[2028/29 To - Spending review Topic 1]]+Dataset[[#This Row],[2028/29 To - Spending review Topic 2]]+Dataset[[#This Row],[2028/29 To - Spending review Topic 3]]+Dataset[[#This Row],[2028/29 To - Spending review Topic 4]]+Dataset[[#This Row],[2028/29 To - Other reallocations]]","v":0},{"$f":"Dataset[[#This Row],[2029/30 To - Spending review Topic 1]]+Dataset[[#This Row],[2029/30 To - Spending review Topic 2]]+Dataset[[#This Row],[2029/30 To - Spending review Topic 3]]+Dataset[[#This Row],[2029/30 To - Spending review Topic 4]]+Dataset[[#This Row],[2029/30 To - Other reallocations]]","v":0},{"$f":"Dataset[[#This Row],[2027/28 Targeted savings]]+Dataset[[#This Row],[2027/28 From - Total]]","v":0},{"$f":"Dataset[[#This Row],[2028/29 Targeted savings]]+Dataset[[#This Row],[2028/29 From - Total]]","v":0},{"$f":"Dataset[[#This Row],[2029/30 Targeted savings]]+Dataset[[#This Row],[2029/30 From - Total]]","v":0},{"$f":"Dataset[[#This Row],[2026/27 Targeted savings]]","v":0},{"$f":"SUM(Dataset[[#This Row],[2027/28 Targeted savings]],Dataset[[#This Row],[2027/28 From - Total]],Dataset[[#This Row],[2027/28 To - Total]])","v":0},{"$f":"SUM(Dataset[[#This Row],[2028/29 Targeted savings]],Dataset[[#This Row],[2028/29 From - Total]],Dataset[[#This Row],[2028/29 To - Total]])","v":0},{"$f":"SUM(Dataset[[#This Row],[2029/30 Targeted savings]],Dataset[[#This Row],[2029/30 From - Total]],Dataset[[#This Row],[2029/30 To - Total]])","v":0},{"$f":"Dataset[[#This Row],[2026/27 Baseline]]+Dataset[[#This Row],[2026/27 Total change]]","v":0},{"$f":"Dataset[[#This Row],[2027/28 Baseline]]+Dataset[[#This Row],[2027/28 Total change]]","v":0},{"$f":"Dataset[[#This Row],[2028/29 Baseline]]+Dataset[[#This Row],[2028/29 Total change]]","v":0},{"$f":"Dataset[[#This Row],[2029/30 Baseline]]+Dataset[[#This Row],[2029/30 Total change]]","v":0}]
["NAT|Non-transfer","30|Other machinery and equipment","2027_28","MTEC2027",30,1,3,32654,134,"30","01","03","032654","000134","30|01|03|000134","02","03","12","57","61","02|03|12|57|61","National","Communications and Digital Technologies","Administration","Corporate Services","Non-transfer","Capital","Payments for capital assets","Machinery and equipment","Other machinery and equipment","Other machinery and equipment","Economic development","Economic regulation and infrastructure","NAT",4610,2502,0,628,628,628,1088,1720,1795,1012,1042,null,null,null,null,null,null,null,null,null,null,null,null,null,null,null,null,null,null,null,null,null,null,null,null,null,null,null,null,null,null,null,null,null,null,{"$f":"Dataset[[#This Row],[2027/28 From - Spending review Topic 1]]+Dataset[[#This Row],[2027/28 From - Spending review Topic 2]]+Dataset[[#This Row],[2027/28 From - Spending review Topic 3]]+Dataset[[#This Row],[2027/28 From - Spending review Topic 4]]+Dataset[[#This Row],[2027/28 From - Other reallocations]]","v":0},{"$f":"Dataset[[#This Row],[2028/29 From - Spending review Topic 1]]+Dataset[[#This Row],[2028/29 From - Spending review Topic 2]]+Dataset[[#This Row],[2028/29 From - Spending review Topic 3]]+Dataset[[#This Row],[2028/29 From - Spending review Topic 4]]+Dataset[[#This Row],[2028/29 From - Other reallocations]]","v":0},{"$f":"Dataset[[#This Row],[2029/30 From - Spending review Topic 1]]+Dataset[[#This Row],[2029/30 From - Spending review Topic 2]]+Dataset[[#This Row],[2029/30 From - Spending review Topic 3]]+Dataset[[#This Row],[2029/30 From - Spending review Topic 4]]+Dataset[[#This Row],[2029/30 From - Other reallocations]]","v":0},{"$f":"Dataset[[#This Row],[2027/28 To - Spending review Topic 1]]+Dataset[[#This Row],[2027/28 To - Spending review Topic 2]]+Dataset[[#This Row],[2027/28 To - Spending review Topic 3]]+Dataset[[#This Row],[2027/28 To - Spending review Topic 4]]+Dataset[[#This Row],[2027/28 To - Other reallocations]]","v":0},{"$f":"Dataset[[#This Row],[2028/29 To - Spending review Topic 1]]+Dataset[[#This Row],[2028/29 To - Spending review Topic 2]]+Dataset[[#This Row],[2028/29 To - Spending review Topic 3]]+Dataset[[#This Row],[2028/29 To - Spending review Topic 4]]+Dataset[[#This Row],[2028/29 To - Other reallocations]]","v":0},{"$f":"Dataset[[#This Row],[2029/30 To - Spending review Topic 1]]+Dataset[[#This Row],[2029/30 To - Spending review Topic 2]]+Dataset[[#This Row],[2029/30 To - Spending review Topic 3]]+Dataset[[#This Row],[2029/30 To - Spending review Topic 4]]+Dataset[[#This Row],[2029/30 To - Other reallocations]]","v":0},{"$f":"Dataset[[#This Row],[2027/28 Targeted savings]]+Dataset[[#This Row],[2027/28 From - Total]]","v":0},{"$f":"Dataset[[#This Row],[2028/29 Targeted savings]]+Dataset[[#This Row],[2028/29 From - Total]]","v":0},{"$f":"Dataset[[#This Row],[2029/30 Targeted savings]]+Dataset[[#This Row],[2029/30 From - Total]]","v":0},{"$f":"Dataset[[#This Row],[2026/27 Targeted savings]]","v":0},{"$f":"SUM(Dataset[[#This Row],[2027/28 Targeted savings]],Dataset[[#This Row],[2027/28 From - Total]],Dataset[[#This Row],[2027/28 To - Total]])","v":0},{"$f":"SUM(Dataset[[#This Row],[2028/29 Targeted savings]],Dataset[[#This Row],[2028/29 From - Total]],Dataset[[#This Row],[2028/29 To - Total]])","v":0},{"$f":"SUM(Dataset[[#This Row],[2029/30 Targeted savings]],Dataset[[#This Row],[2029/30 From - Total]],Dataset[[#This Row],[2029/30 To - Total]])","v":0},{"$f":"Dataset[[#This Row],[2026/27 Baseline]]+Dataset[[#This Row],[2026/27 Total change]]","v":1720},{"$f":"Dataset[[#This Row],[2027/28 Baseline]]+Dataset[[#This Row],[2027/28 Total change]]","v":1795},{"$f":"Dataset[[#This Row],[2028/29 Baseline]]+Dataset[[#This Row],[2028/29 Total change]]","v":1012},{"$f":"Dataset[[#This Row],[2029/30 Baseline]]+Dataset[[#This Row],[2029/30 Total change]]","v":1042}]
["NAT|Non-transfer","30|Software and other intangible assets","2027_28","MTEC2027",30,1,3,32655,135,"30","01","03","032655","000135","30|01|03|000135","02","03","17","62","66","02|03|17|62|66","National","Communications and Digital Technologies","Administration","Corporate Services","Non-transfer","Capital","Payments for capital assets","Software and other intangible assets","Software and other intangible assets","Software and other intangible assets","Economic development","Economic regulation and infrastructure","NAT",1567,982,0,1782,1782,1782,0,0,0,783,807,null,null,null,null,null,null,null,null,null,null,null,null,null,null,null,null,null,null,null,null,null,null,null,null,null,null,null,null,null,null,null,null,null,null,{"$f":"Dataset[[#This Row],[2027/28 From - Spending review Topic 1]]+Dataset[[#This Row],[2027/28 From - Spending review Topic 2]]+Dataset[[#This Row],[2027/28 From - Spending review Topic 3]]+Dataset[[#This Row],[2027/28 From - Spending review Topic 4]]+Dataset[[#This Row],[2027/28 From - Other reallocations]]","v":0},{"$f":"Dataset[[#This Row],[2028/29 From - Spending review Topic 1]]+Dataset[[#This Row],[2028/29 From - Spending review Topic 2]]+Dataset[[#This Row],[2028/29 From - Spending review Topic 3]]+Dataset[[#This Row],[2028/29 From - Spending review Topic 4]]+Dataset[[#This Row],[2028/29 From - Other reallocations]]","v":0},{"$f":"Dataset[[#This Row],[2029/30 From - Spending review Topic 1]]+Dataset[[#This Row],[2029/30 From - Spending review Topic 2]]+Dataset[[#This Row],[2029/30 From - Spending review Topic 3]]+Dataset[[#This Row],[2029/30 From - Spending review Topic 4]]+Dataset[[#This Row],[2029/30 From - Other reallocations]]","v":0},{"$f":"Dataset[[#This Row],[2027/28 To - Spending review Topic 1]]+Dataset[[#This Row],[2027/28 To - Spending review Topic 2]]+Dataset[[#This Row],[2027/28 To - Spending review Topic 3]]+Dataset[[#This Row],[2027/28 To - Spending review Topic 4]]+Dataset[[#This Row],[2027/28 To - Other reallocations]]","v":0},{"$f":"Dataset[[#This Row],[2028/29 To - Spending review Topic 1]]+Dataset[[#This Row],[2028/29 To - Spending review Topic 2]]+Dataset[[#This Row],[2028/29 To - Spending review Topic 3]]+Dataset[[#This Row],[2028/29 To - Spending review Topic 4]]+Dataset[[#This Row],[2028/29 To - Other reallocations]]","v":0},{"$f":"Dataset[[#This Row],[2029/30 To - Spending review Topic 1]]+Dataset[[#This Row],[2029/30 To - Spending review Topic 2]]+Dataset[[#This Row],[2029/30 To - Spending review Topic 3]]+Dataset[[#This Row],[2029/30 To - Spending review Topic 4]]+Dataset[[#This Row],[2029/30 To - Other reallocations]]","v":0},{"$f":"Dataset[[#This Row],[2027/28 Targeted savings]]+Dataset[[#This Row],[2027/28 From - Total]]","v":0},{"$f":"Dataset[[#This Row],[2028/29 Targeted savings]]+Dataset[[#This Row],[2028/29 From - Total]]","v":0},{"$f":"Dataset[[#This Row],[2029/30 Targeted savings]]+Dataset[[#This Row],[2029/30 From - Total]]","v":0},{"$f":"Dataset[[#This Row],[2026/27 Targeted savings]]","v":0},{"$f":"SUM(Dataset[[#This Row],[2027/28 Targeted savings]],Dataset[[#This Row],[2027/28 From - Total]],Dataset[[#This Row],[2027/28 To - Total]])","v":0},{"$f":"SUM(Dataset[[#This Row],[2028/29 Targeted savings]],Dataset[[#This Row],[2028/29 From - Total]],Dataset[[#This Row],[2028/29 To - Total]])","v":0},{"$f":"SUM(Dataset[[#This Row],[2029/30 Targeted savings]],Dataset[[#This Row],[2029/30 From - Total]],Dataset[[#This Row],[2029/30 To - Total]])","v":0},{"$f":"Dataset[[#This Row],[2026/27 Baseline]]+Dataset[[#This Row],[2026/27 Total change]]","v":0},{"$f":"Dataset[[#This Row],[2027/28 Baseline]]+Dataset[[#This Row],[2027/28 Total change]]","v":0},{"$f":"Dataset[[#This Row],[2028/29 Baseline]]+Dataset[[#This Row],[2028/29 Total change]]","v":783},{"$f":"Dataset[[#This Row],[2029/30 Baseline]]+Dataset[[#This Row],[2029/30 Total change]]","v":807}]
["NAT|Thefts and losses","30|Payments for financial assets","2027_28","MTEC2027",30,1,3,32656,136,"30","01","03","032656","000136","30|01|03|000136","03","04","18","63","67","03|04|18|63|67","National","Communications and Digital Technologies","Administration","Corporate Services","Thefts and losses","Payments for financial assets","Payments for financial assets","Payments for financial assets","Payments for financial assets","Payments for financial assets","Economic development","Economic regulation and infrastructure","NAT",0,0,62,0,0,0,0,0,0,0,0,null,null,null,null,null,null,null,null,null,null,null,null,null,null,null,null,null,null,null,null,null,null,null,null,null,null,null,null,null,null,null,null,null,null,{"$f":"Dataset[[#This Row],[2027/28 From - Spending review Topic 1]]+Dataset[[#This Row],[2027/28 From - Spending review Topic 2]]+Dataset[[#This Row],[2027/28 From - Spending review Topic 3]]+Dataset[[#This Row],[2027/28 From - Spending review Topic 4]]+Dataset[[#This Row],[2027/28 From - Other reallocations]]","v":0},{"$f":"Dataset[[#This Row],[2028/29 From - Spending review Topic 1]]+Dataset[[#This Row],[2028/29 From - Spending review Topic 2]]+Dataset[[#This Row],[2028/29 From - Spending review Topic 3]]+Dataset[[#This Row],[2028/29 From - Spending review Topic 4]]+Dataset[[#This Row],[2028/29 From - Other reallocations]]","v":0},{"$f":"Dataset[[#This Row],[2029/30 From - Spending review Topic 1]]+Dataset[[#This Row],[2029/30 From - Spending review Topic 2]]+Dataset[[#This Row],[2029/30 From - Spending review Topic 3]]+Dataset[[#This Row],[2029/30 From - Spending review Topic 4]]+Dataset[[#This Row],[2029/30 From - Other reallocations]]","v":0},{"$f":"Dataset[[#This Row],[2027/28 To - Spending review Topic 1]]+Dataset[[#This Row],[2027/28 To - Spending review Topic 2]]+Dataset[[#This Row],[2027/28 To - Spending review Topic 3]]+Dataset[[#This Row],[2027/28 To - Spending review Topic 4]]+Dataset[[#This Row],[2027/28 To - Other reallocations]]","v":0},{"$f":"Dataset[[#This Row],[2028/29 To - Spending review Topic 1]]+Dataset[[#This Row],[2028/29 To - Spending review Topic 2]]+Dataset[[#This Row],[2028/29 To - Spending review Topic 3]]+Dataset[[#This Row],[2028/29 To - Spending review Topic 4]]+Dataset[[#This Row],[2028/29 To - Other reallocations]]","v":0},{"$f":"Dataset[[#This Row],[2029/30 To - Spending review Topic 1]]+Dataset[[#This Row],[2029/30 To - Spending review Topic 2]]+Dataset[[#This Row],[2029/30 To - Spending review Topic 3]]+Dataset[[#This Row],[2029/30 To - Spending review Topic 4]]+Dataset[[#This Row],[2029/30 To - Other reallocations]]","v":0},{"$f":"Dataset[[#This Row],[2027/28 Targeted savings]]+Dataset[[#This Row],[2027/28 From - Total]]","v":0},{"$f":"Dataset[[#This Row],[2028/29 Targeted savings]]+Dataset[[#This Row],[2028/29 From - Total]]","v":0},{"$f":"Dataset[[#This Row],[2029/30 Targeted savings]]+Dataset[[#This Row],[2029/30 From - Total]]","v":0},{"$f":"Dataset[[#This Row],[2026/27 Targeted savings]]","v":0},{"$f":"SUM(Dataset[[#This Row],[2027/28 Targeted savings]],Dataset[[#This Row],[2027/28 From - Total]],Dataset[[#This Row],[2027/28 To - Total]])","v":0},{"$f":"SUM(Dataset[[#This Row],[2028/29 Targeted savings]],Dataset[[#This Row],[2028/29 From - Total]],Dataset[[#This Row],[2028/29 To - Total]])","v":0},{"$f":"SUM(Dataset[[#This Row],[2029/30 Targeted savings]],Dataset[[#This Row],[2029/30 From - Total]],Dataset[[#This Row],[2029/30 To - Total]])","v":0},{"$f":"Dataset[[#This Row],[2026/27 Baseline]]+Dataset[[#This Row],[2026/27 Total change]]","v":0},{"$f":"Dataset[[#This Row],[2027/28 Baseline]]+Dataset[[#This Row],[2027/28 Total change]]","v":0},{"$f":"Dataset[[#This Row],[2028/29 Baseline]]+Dataset[[#This Row],[2028/29 Total change]]","v":0},{"$f":"Dataset[[#This Row],[2029/30 Baseline]]+Dataset[[#This Row],[2029/30 Total change]]","v":0}]
["NAT|Non-transfer","30|Salaries and wages","2027_28","MTEC2027",30,1,4,32657,137,"30","01","04","032657","000137","30|01|04|000137","01","01","01","01","01","01|01|01|01|01","National","Communications and Digital Technologies","Administration","Financial Management","Non-transfer","Current","Current payments","Compensation of employees","Salaries and wages","Salaries and wages","Economic development","Economic regulation and infrastructure","NAT",24650,25540,26742,32053,28211,28211,27414,32349,30461,31408,32354,null,null,null,null,null,null,null,null,null,null,null,null,null,null,null,null,null,null,null,null,null,null,null,null,null,null,null,null,null,null,null,null,null,null,{"$f":"Dataset[[#This Row],[2027/28 From - Spending review Topic 1]]+Dataset[[#This Row],[2027/28 From - Spending review Topic 2]]+Dataset[[#This Row],[2027/28 From - Spending review Topic 3]]+Dataset[[#This Row],[2027/28 From - Spending review Topic 4]]+Dataset[[#This Row],[2027/28 From - Other reallocations]]","v":0},{"$f":"Dataset[[#This Row],[2028/29 From - Spending review Topic 1]]+Dataset[[#This Row],[2028/29 From - Spending review Topic 2]]+Dataset[[#This Row],[2028/29 From - Spending review Topic 3]]+Dataset[[#This Row],[2028/29 From - Spending review Topic 4]]+Dataset[[#This Row],[2028/29 From - Other reallocations]]","v":0},{"$f":"Dataset[[#This Row],[2029/30 From - Spending review Topic 1]]+Dataset[[#This Row],[2029/30 From - Spending review Topic 2]]+Dataset[[#This Row],[2029/30 From - Spending review Topic 3]]+Dataset[[#This Row],[2029/30 From - Spending review Topic 4]]+Dataset[[#This Row],[2029/30 From - Other reallocations]]","v":0},{"$f":"Dataset[[#This Row],[2027/28 To - Spending review Topic 1]]+Dataset[[#This Row],[2027/28 To - Spending review Topic 2]]+Dataset[[#This Row],[2027/28 To - Spending review Topic 3]]+Dataset[[#This Row],[2027/28 To - Spending review Topic 4]]+Dataset[[#This Row],[2027/28 To - Other reallocations]]","v":0},{"$f":"Dataset[[#This Row],[2028/29 To - Spending review Topic 1]]+Dataset[[#This Row],[2028/29 To - Spending review Topic 2]]+Dataset[[#This Row],[2028/29 To - Spending review Topic 3]]+Dataset[[#This Row],[2028/29 To - Spending review Topic 4]]+Dataset[[#This Row],[2028/29 To - Other reallocations]]","v":0},{"$f":"Dataset[[#This Row],[2029/30 To - Spending review Topic 1]]+Dataset[[#This Row],[2029/30 To - Spending review Topic 2]]+Dataset[[#This Row],[2029/30 To - Spending review Topic 3]]+Dataset[[#This Row],[2029/30 To - Spending review Topic 4]]+Dataset[[#This Row],[2029/30 To - Other reallocations]]","v":0},{"$f":"Dataset[[#This Row],[2027/28 Targeted savings]]+Dataset[[#This Row],[2027/28 From - Total]]","v":0},{"$f":"Dataset[[#This Row],[2028/29 Targeted savings]]+Dataset[[#This Row],[2028/29 From - Total]]","v":0},{"$f":"Dataset[[#This Row],[2029/30 Targeted savings]]+Dataset[[#This Row],[2029/30 From - Total]]","v":0},{"$f":"Dataset[[#This Row],[2026/27 Targeted savings]]","v":0},{"$f":"SUM(Dataset[[#This Row],[2027/28 Targeted savings]],Dataset[[#This Row],[2027/28 From - Total]],Dataset[[#This Row],[2027/28 To - Total]])","v":0},{"$f":"SUM(Dataset[[#This Row],[2028/29 Targeted savings]],Dataset[[#This Row],[2028/29 From - Total]],Dataset[[#This Row],[2028/29 To - Total]])","v":0},{"$f":"SUM(Dataset[[#This Row],[2029/30 Targeted savings]],Dataset[[#This Row],[2029/30 From - Total]],Dataset[[#This Row],[2029/30 To - Total]])","v":0},{"$f":"Dataset[[#This Row],[2026/27 Baseline]]+Dataset[[#This Row],[2026/27 Total change]]","v":32349},{"$f":"Dataset[[#This Row],[2027/28 Baseline]]+Dataset[[#This Row],[2027/28 Total change]]","v":30461},{"$f":"Dataset[[#This Row],[2028/29 Baseline]]+Dataset[[#This Row],[2028/29 Total change]]","v":31408},{"$f":"Dataset[[#This Row],[2029/30 Baseline]]+Dataset[[#This Row],[2029/30 Total change]]","v":32354}]
["NAT|Non-transfer","30|Social contributions","2027_28","MTEC2027",30,1,4,32658,138,"30","01","04","032658","000138","30|01|04|000138","01","01","01","02","02","01|01|01|02|02","National","Communications and Digital Technologies","Administration","Financial Management","Non-transfer","Current","Current payments","Compensation of employees","Social contributions","Social contributions","Economic development","Economic regulation and infrastructure","NAT",3439,3664,3993,4000,3700,3700,4098,5464,4157,4446,4580,null,null,null,null,null,null,null,null,null,null,null,null,null,null,null,null,null,null,null,null,null,null,null,null,null,null,null,null,null,null,null,null,null,null,{"$f":"Dataset[[#This Row],[2027/28 From - Spending review Topic 1]]+Dataset[[#This Row],[2027/28 From - Spending review Topic 2]]+Dataset[[#This Row],[2027/28 From - Spending review Topic 3]]+Dataset[[#This Row],[2027/28 From - Spending review Topic 4]]+Dataset[[#This Row],[2027/28 From - Other reallocations]]","v":0},{"$f":"Dataset[[#This Row],[2028/29 From - Spending review Topic 1]]+Dataset[[#This Row],[2028/29 From - Spending review Topic 2]]+Dataset[[#This Row],[2028/29 From - Spending review Topic 3]]+Dataset[[#This Row],[2028/29 From - Spending review Topic 4]]+Dataset[[#This Row],[2028/29 From - Other reallocations]]","v":0},{"$f":"Dataset[[#This Row],[2029/30 From - Spending review Topic 1]]+Dataset[[#This Row],[2029/30 From - Spending review Topic 2]]+Dataset[[#This Row],[2029/30 From - Spending review Topic 3]]+Dataset[[#This Row],[2029/30 From - Spending review Topic 4]]+Dataset[[#This Row],[2029/30 From - Other reallocations]]","v":0},{"$f":"Dataset[[#This Row],[2027/28 To - Spending review Topic 1]]+Dataset[[#This Row],[2027/28 To - Spending review Topic 2]]+Dataset[[#This Row],[2027/28 To - Spending review Topic 3]]+Dataset[[#This Row],[2027/28 To - Spending review Topic 4]]+Dataset[[#This Row],[2027/28 To - Other reallocations]]","v":0},{"$f":"Dataset[[#This Row],[2028/29 To - Spending review Topic 1]]+Dataset[[#This Row],[2028/29 To - Spending review Topic 2]]+Dataset[[#This Row],[2028/29 To - Spending review Topic 3]]+Dataset[[#This Row],[2028/29 To - Spending review Topic 4]]+Dataset[[#This Row],[2028/29 To - Other reallocations]]","v":0},{"$f":"Dataset[[#This Row],[2029/30 To - Spending review Topic 1]]+Dataset[[#This Row],[2029/30 To - Spending review Topic 2]]+Dataset[[#This Row],[2029/30 To - Spending review Topic 3]]+Dataset[[#This Row],[2029/30 To - Spending review Topic 4]]+Dataset[[#This Row],[2029/30 To - Other reallocations]]","v":0},{"$f":"Dataset[[#This Row],[2027/28 Targeted savings]]+Dataset[[#This Row],[2027/28 From - Total]]","v":0},{"$f":"Dataset[[#This Row],[2028/29 Targeted savings]]+Dataset[[#This Row],[2028/29 From - Total]]","v":0},{"$f":"Dataset[[#This Row],[2029/30 Targeted savings]]+Dataset[[#This Row],[2029/30 From - Total]]","v":0},{"$f":"Dataset[[#This Row],[2026/27 Targeted savings]]","v":0},{"$f":"SUM(Dataset[[#This Row],[2027/28 Targeted savings]],Dataset[[#This Row],[2027/28 From - Total]],Dataset[[#This Row],[2027/28 To - Total]])","v":0},{"$f":"SUM(Dataset[[#This Row],[2028/29 Targeted savings]],Dataset[[#This Row],[2028/29 From - Total]],Dataset[[#This Row],[2028/29 To - Total]])","v":0},{"$f":"SUM(Dataset[[#This Row],[2029/30 Targeted savings]],Dataset[[#This Row],[2029/30 From - Total]],Dataset[[#This Row],[2029/30 To - Total]])","v":0},{"$f":"Dataset[[#This Row],[2026/27 Baseline]]+Dataset[[#This Row],[2026/27 Total change]]","v":5464},{"$f":"Dataset[[#This Row],[2027/28 Baseline]]+Dataset[[#This Row],[2027/28 Total change]]","v":4157},{"$f":"Dataset[[#This Row],[2028/29 Baseline]]+Dataset[[#This Row],[2028/29 Total change]]","v":4446},{"$f":"Dataset[[#This Row],[2029/30 Baseline]]+Dataset[[#This Row],[2029/30 Total change]]","v":4580}]
["NAT|Non-transfer","30|Administrative fees","2027_28","MTEC2027",30,1,4,32659,139,"30","01","04","032659","000139","30|01|04|000139","01","01","02","03","03","01|01|02|03|03","National","Communications and Digital Technologies","Administration","Financial Management","Non-transfer","Current","Current payments","Goods and services","Administrative fees","Administrative fees","Economic development","Economic regulation and infrastructure","NAT",123,114,122,177,172,172,147,35,206,212,218,null,null,null,null,null,null,null,null,null,null,null,null,null,null,null,null,null,null,null,null,null,null,null,null,null,null,null,null,null,null,null,null,null,null,{"$f":"Dataset[[#This Row],[2027/28 From - Spending review Topic 1]]+Dataset[[#This Row],[2027/28 From - Spending review Topic 2]]+Dataset[[#This Row],[2027/28 From - Spending review Topic 3]]+Dataset[[#This Row],[2027/28 From - Spending review Topic 4]]+Dataset[[#This Row],[2027/28 From - Other reallocations]]","v":0},{"$f":"Dataset[[#This Row],[2028/29 From - Spending review Topic 1]]+Dataset[[#This Row],[2028/29 From - Spending review Topic 2]]+Dataset[[#This Row],[2028/29 From - Spending review Topic 3]]+Dataset[[#This Row],[2028/29 From - Spending review Topic 4]]+Dataset[[#This Row],[2028/29 From - Other reallocations]]","v":0},{"$f":"Dataset[[#This Row],[2029/30 From - Spending review Topic 1]]+Dataset[[#This Row],[2029/30 From - Spending review Topic 2]]+Dataset[[#This Row],[2029/30 From - Spending review Topic 3]]+Dataset[[#This Row],[2029/30 From - Spending review Topic 4]]+Dataset[[#This Row],[2029/30 From - Other reallocations]]","v":0},{"$f":"Dataset[[#This Row],[2027/28 To - Spending review Topic 1]]+Dataset[[#This Row],[2027/28 To - Spending review Topic 2]]+Dataset[[#This Row],[2027/28 To - Spending review Topic 3]]+Dataset[[#This Row],[2027/28 To - Spending review Topic 4]]+Dataset[[#This Row],[2027/28 To - Other reallocations]]","v":0},{"$f":"Dataset[[#This Row],[2028/29 To - Spending review Topic 1]]+Dataset[[#This Row],[2028/29 To - Spending review Topic 2]]+Dataset[[#This Row],[2028/29 To - Spending review Topic 3]]+Dataset[[#This Row],[2028/29 To - Spending review Topic 4]]+Dataset[[#This Row],[2028/29 To - Other reallocations]]","v":0},{"$f":"Dataset[[#This Row],[2029/30 To - Spending review Topic 1]]+Dataset[[#This Row],[2029/30 To - Spending review Topic 2]]+Dataset[[#This Row],[2029/30 To - Spending review Topic 3]]+Dataset[[#This Row],[2029/30 To - Spending review Topic 4]]+Dataset[[#This Row],[2029/30 To - Other reallocations]]","v":0},{"$f":"Dataset[[#This Row],[2027/28 Targeted savings]]+Dataset[[#This Row],[2027/28 From - Total]]","v":0},{"$f":"Dataset[[#This Row],[2028/29 Targeted savings]]+Dataset[[#This Row],[2028/29 From - Total]]","v":0},{"$f":"Dataset[[#This Row],[2029/30 Targeted savings]]+Dataset[[#This Row],[2029/30 From - Total]]","v":0},{"$f":"Dataset[[#This Row],[2026/27 Targeted savings]]","v":0},{"$f":"SUM(Dataset[[#This Row],[2027/28 Targeted savings]],Dataset[[#This Row],[2027/28 From - Total]],Dataset[[#This Row],[2027/28 To - Total]])","v":0},{"$f":"SUM(Dataset[[#This Row],[2028/29 Targeted savings]],Dataset[[#This Row],[2028/29 From - Total]],Dataset[[#This Row],[2028/29 To - Total]])","v":0},{"$f":"SUM(Dataset[[#This Row],[2029/30 Targeted savings]],Dataset[[#This Row],[2029/30 From - Total]],Dataset[[#This Row],[2029/30 To - Total]])","v":0},{"$f":"Dataset[[#This Row],[2026/27 Baseline]]+Dataset[[#This Row],[2026/27 Total change]]","v":35},{"$f":"Dataset[[#This Row],[2027/28 Baseline]]+Dataset[[#This Row],[2027/28 Total change]]","v":206},{"$f":"Dataset[[#This Row],[2028/29 Baseline]]+Dataset[[#This Row],[2028/29 Total change]]","v":212},{"$f":"Dataset[[#This Row],[2029/30 Baseline]]+Dataset[[#This Row],[2029/30 Total change]]","v":218}]
["NAT|Non-transfer","30|Advertising","2027_28","MTEC2027",30,1,4,32660,140,"30","01","04","032660","000140","30|01|04|000140","01","01","02","04","04","01|01|02|04|04","National","Communications and Digital Technologies","Administration","Financial Management","Non-transfer","Current","Current payments","Goods and services","Advertising","Advertising","Economic development","Economic regulation and infrastructure","NAT",0,0,0,54,54,54,0,0,254,262,270,null,null,null,null,null,null,null,null,null,null,null,null,null,null,null,null,null,null,null,null,null,null,null,null,null,null,null,null,null,null,null,null,null,null,{"$f":"Dataset[[#This Row],[2027/28 From - Spending review Topic 1]]+Dataset[[#This Row],[2027/28 From - Spending review Topic 2]]+Dataset[[#This Row],[2027/28 From - Spending review Topic 3]]+Dataset[[#This Row],[2027/28 From - Spending review Topic 4]]+Dataset[[#This Row],[2027/28 From - Other reallocations]]","v":0},{"$f":"Dataset[[#This Row],[2028/29 From - Spending review Topic 1]]+Dataset[[#This Row],[2028/29 From - Spending review Topic 2]]+Dataset[[#This Row],[2028/29 From - Spending review Topic 3]]+Dataset[[#This Row],[2028/29 From - Spending review Topic 4]]+Dataset[[#This Row],[2028/29 From - Other reallocations]]","v":0},{"$f":"Dataset[[#This Row],[2029/30 From - Spending review Topic 1]]+Dataset[[#This Row],[2029/30 From - Spending review Topic 2]]+Dataset[[#This Row],[2029/30 From - Spending review Topic 3]]+Dataset[[#This Row],[2029/30 From - Spending review Topic 4]]+Dataset[[#This Row],[2029/30 From - Other reallocations]]","v":0},{"$f":"Dataset[[#This Row],[2027/28 To - Spending review Topic 1]]+Dataset[[#This Row],[2027/28 To - Spending review Topic 2]]+Dataset[[#This Row],[2027/28 To - Spending review Topic 3]]+Dataset[[#This Row],[2027/28 To - Spending review Topic 4]]+Dataset[[#This Row],[2027/28 To - Other reallocations]]","v":0},{"$f":"Dataset[[#This Row],[2028/29 To - Spending review Topic 1]]+Dataset[[#This Row],[2028/29 To - Spending review Topic 2]]+Dataset[[#This Row],[2028/29 To - Spending review Topic 3]]+Dataset[[#This Row],[2028/29 To - Spending review Topic 4]]+Dataset[[#This Row],[2028/29 To - Other reallocations]]","v":0},{"$f":"Dataset[[#This Row],[2029/30 To - Spending review Topic 1]]+Dataset[[#This Row],[2029/30 To - Spending review Topic 2]]+Dataset[[#This Row],[2029/30 To - Spending review Topic 3]]+Dataset[[#This Row],[2029/30 To - Spending review Topic 4]]+Dataset[[#This Row],[2029/30 To - Other reallocations]]","v":0},{"$f":"Dataset[[#This Row],[2027/28 Targeted savings]]+Dataset[[#This Row],[2027/28 From - Total]]","v":0},{"$f":"Dataset[[#This Row],[2028/29 Targeted savings]]+Dataset[[#This Row],[2028/29 From - Total]]","v":0},{"$f":"Dataset[[#This Row],[2029/30 Targeted savings]]+Dataset[[#This Row],[2029/30 From - Total]]","v":0},{"$f":"Dataset[[#This Row],[2026/27 Targeted savings]]","v":0},{"$f":"SUM(Dataset[[#This Row],[2027/28 Targeted savings]],Dataset[[#This Row],[2027/28 From - Total]],Dataset[[#This Row],[2027/28 To - Total]])","v":0},{"$f":"SUM(Dataset[[#This Row],[2028/29 Targeted savings]],Dataset[[#This Row],[2028/29 From - Total]],Dataset[[#This Row],[2028/29 To - Total]])","v":0},{"$f":"SUM(Dataset[[#This Row],[2029/30 Targeted savings]],Dataset[[#This Row],[2029/30 From - Total]],Dataset[[#This Row],[2029/30 To - Total]])","v":0},{"$f":"Dataset[[#This Row],[2026/27 Baseline]]+Dataset[[#This Row],[2026/27 Total change]]","v":0},{"$f":"Dataset[[#This Row],[2027/28 Baseline]]+Dataset[[#This Row],[2027/28 Total change]]","v":254},{"$f":"Dataset[[#This Row],[2028/29 Baseline]]+Dataset[[#This Row],[2028/29 Total change]]","v":262},{"$f":"Dataset[[#This Row],[2029/30 Baseline]]+Dataset[[#This Row],[2029/30 Total change]]","v":270}]
["NAT|Non-transfer","30|Minor assets","2027_28","MTEC2027",30,1,4,32661,141,"30","01","04","032661","000141","30|01|04|000141","01","01","02","05","05","01|01|02|05|05","National","Communications and Digital Technologies","Administration","Financial Management","Non-transfer","Current","Current payments","Goods and services","Minor assets","Minor assets","Economic development","Economic regulation and infrastructure","NAT",8,5,2,10,8,8,456,4,0,0,0,null,null,null,null,null,null,null,null,null,null,null,null,null,null,null,null,null,null,null,null,null,null,null,null,null,null,null,null,null,null,null,null,null,null,{"$f":"Dataset[[#This Row],[2027/28 From - Spending review Topic 1]]+Dataset[[#This Row],[2027/28 From - Spending review Topic 2]]+Dataset[[#This Row],[2027/28 From - Spending review Topic 3]]+Dataset[[#This Row],[2027/28 From - Spending review Topic 4]]+Dataset[[#This Row],[2027/28 From - Other reallocations]]","v":0},{"$f":"Dataset[[#This Row],[2028/29 From - Spending review Topic 1]]+Dataset[[#This Row],[2028/29 From - Spending review Topic 2]]+Dataset[[#This Row],[2028/29 From - Spending review Topic 3]]+Dataset[[#This Row],[2028/29 From - Spending review Topic 4]]+Dataset[[#This Row],[2028/29 From - Other reallocations]]","v":0},{"$f":"Dataset[[#This Row],[2029/30 From - Spending review Topic 1]]+Dataset[[#This Row],[2029/30 From - Spending review Topic 2]]+Dataset[[#This Row],[2029/30 From - Spending review Topic 3]]+Dataset[[#This Row],[2029/30 From - Spending review Topic 4]]+Dataset[[#This Row],[2029/30 From - Other reallocations]]","v":0},{"$f":"Dataset[[#This Row],[2027/28 To - Spending review Topic 1]]+Dataset[[#This Row],[2027/28 To - Spending review Topic 2]]+Dataset[[#This Row],[2027/28 To - Spending review Topic 3]]+Dataset[[#This Row],[2027/28 To - Spending review Topic 4]]+Dataset[[#This Row],[2027/28 To - Other reallocations]]","v":0},{"$f":"Dataset[[#This Row],[2028/29 To - Spending review Topic 1]]+Dataset[[#This Row],[2028/29 To - Spending review Topic 2]]+Dataset[[#This Row],[2028/29 To - Spending review Topic 3]]+Dataset[[#This Row],[2028/29 To - Spending review Topic 4]]+Dataset[[#This Row],[2028/29 To - Other reallocations]]","v":0},{"$f":"Dataset[[#This Row],[2029/30 To - Spending review Topic 1]]+Dataset[[#This Row],[2029/30 To - Spending review Topic 2]]+Dataset[[#This Row],[2029/30 To - Spending review Topic 3]]+Dataset[[#This Row],[2029/30 To - Spending review Topic 4]]+Dataset[[#This Row],[2029/30 To - Other reallocations]]","v":0},{"$f":"Dataset[[#This Row],[2027/28 Targeted savings]]+Dataset[[#This Row],[2027/28 From - Total]]","v":0},{"$f":"Dataset[[#This Row],[2028/29 Targeted savings]]+Dataset[[#This Row],[2028/29 From - Total]]","v":0},{"$f":"Dataset[[#This Row],[2029/30 Targeted savings]]+Dataset[[#This Row],[2029/30 From - Total]]","v":0},{"$f":"Dataset[[#This Row],[2026/27 Targeted savings]]","v":0},{"$f":"SUM(Dataset[[#This Row],[2027/28 Targeted savings]],Dataset[[#This Row],[2027/28 From - Total]],Dataset[[#This Row],[2027/28 To - Total]])","v":0},{"$f":"SUM(Dataset[[#This Row],[2028/29 Targeted savings]],Dataset[[#This Row],[2028/29 From - Total]],Dataset[[#This Row],[2028/29 To - Total]])","v":0},{"$f":"SUM(Dataset[[#This Row],[2029/30 Targeted savings]],Dataset[[#This Row],[2029/30 From - Total]],Dataset[[#This Row],[2029/30 To - Total]])","v":0},{"$f":"Dataset[[#This Row],[2026/27 Baseline]]+Dataset[[#This Row],[2026/27 Total change]]","v":4},{"$f":"Dataset[[#This Row],[2027/28 Baseline]]+Dataset[[#This Row],[2027/28 Total change]]","v":0},{"$f":"Dataset[[#This Row],[2028/29 Baseline]]+Dataset[[#This Row],[2028/29 Total change]]","v":0},{"$f":"Dataset[[#This Row],[2029/30 Baseline]]+Dataset[[#This Row],[2029/30 Total change]]","v":0}]
["NAT|Non-transfer","30|Audit costs: External","2027_28","MTEC2027",30,1,4,32662,142,"30","01","04","032662","000142","30|01|04|000142","01","01","02","06","06","01|01|02|06|06","National","Communications and Digital Technologies","Administration","Financial Management","Non-transfer","Current","Current payments","Goods and services","Audit costs: External","Audit costs: External","Economic development","Economic regulation and infrastructure","NAT",5545,5370,4771,6700,6100,6100,5157,4902,5218,7443,7667,null,null,null,null,null,null,null,null,null,null,null,null,null,null,null,null,null,null,null,null,null,null,null,null,null,null,null,null,null,null,null,null,null,null,{"$f":"Dataset[[#This Row],[2027/28 From - Spending review Topic 1]]+Dataset[[#This Row],[2027/28 From - Spending review Topic 2]]+Dataset[[#This Row],[2027/28 From - Spending review Topic 3]]+Dataset[[#This Row],[2027/28 From - Spending review Topic 4]]+Dataset[[#This Row],[2027/28 From - Other reallocations]]","v":0},{"$f":"Dataset[[#This Row],[2028/29 From - Spending review Topic 1]]+Dataset[[#This Row],[2028/29 From - Spending review Topic 2]]+Dataset[[#This Row],[2028/29 From - Spending review Topic 3]]+Dataset[[#This Row],[2028/29 From - Spending review Topic 4]]+Dataset[[#This Row],[2028/29 From - Other reallocations]]","v":0},{"$f":"Dataset[[#This Row],[2029/30 From - Spending review Topic 1]]+Dataset[[#This Row],[2029/30 From - Spending review Topic 2]]+Dataset[[#This Row],[2029/30 From - Spending review Topic 3]]+Dataset[[#This Row],[2029/30 From - Spending review Topic 4]]+Dataset[[#This Row],[2029/30 From - Other reallocations]]","v":0},{"$f":"Dataset[[#This Row],[2027/28 To - Spending review Topic 1]]+Dataset[[#This Row],[2027/28 To - Spending review Topic 2]]+Dataset[[#This Row],[2027/28 To - Spending review Topic 3]]+Dataset[[#This Row],[2027/28 To - Spending review Topic 4]]+Dataset[[#This Row],[2027/28 To - Other reallocations]]","v":0},{"$f":"Dataset[[#This Row],[2028/29 To - Spending review Topic 1]]+Dataset[[#This Row],[2028/29 To - Spending review Topic 2]]+Dataset[[#This Row],[2028/29 To - Spending review Topic 3]]+Dataset[[#This Row],[2028/29 To - Spending review Topic 4]]+Dataset[[#This Row],[2028/29 To - Other reallocations]]","v":0},{"$f":"Dataset[[#This Row],[2029/30 To - Spending review Topic 1]]+Dataset[[#This Row],[2029/30 To - Spending review Topic 2]]+Dataset[[#This Row],[2029/30 To - Spending review Topic 3]]+Dataset[[#This Row],[2029/30 To - Spending review Topic 4]]+Dataset[[#This Row],[2029/30 To - Other reallocations]]","v":0},{"$f":"Dataset[[#This Row],[2027/28 Targeted savings]]+Dataset[[#This Row],[2027/28 From - Total]]","v":0},{"$f":"Dataset[[#This Row],[2028/29 Targeted savings]]+Dataset[[#This Row],[2028/29 From - Total]]","v":0},{"$f":"Dataset[[#This Row],[2029/30 Targeted savings]]+Dataset[[#This Row],[2029/30 From - Total]]","v":0},{"$f":"Dataset[[#This Row],[2026/27 Targeted savings]]","v":0},{"$f":"SUM(Dataset[[#This Row],[2027/28 Targeted savings]],Dataset[[#This Row],[2027/28 From - Total]],Dataset[[#This Row],[2027/28 To - Total]])","v":0},{"$f":"SUM(Dataset[[#This Row],[2028/29 Targeted savings]],Dataset[[#This Row],[2028/29 From - Total]],Dataset[[#This Row],[2028/29 To - Total]])","v":0},{"$f":"SUM(Dataset[[#This Row],[2029/30 Targeted savings]],Dataset[[#This Row],[2029/30 From - Total]],Dataset[[#This Row],[2029/30 To - Total]])","v":0},{"$f":"Dataset[[#This Row],[2026/27 Baseline]]+Dataset[[#This Row],[2026/27 Total change]]","v":4902},{"$f":"Dataset[[#This Row],[2027/28 Baseline]]+Dataset[[#This Row],[2027/28 Total change]]","v":5218},{"$f":"Dataset[[#This Row],[2028/29 Baseline]]+Dataset[[#This Row],[2028/29 Total change]]","v":7443},{"$f":"Dataset[[#This Row],[2029/30 Baseline]]+Dataset[[#This Row],[2029/30 Total change]]","v":7667}]
["NAT|Non-transfer","30|Bursaries: Employees","2027_28","MTEC2027",30,1,4,32663,143,"30","01","04","032663","000143","30|01|04|000143","01","01","02","07","07","01|01|02|07|07","National","Communications and Digital Technologies","Administration","Financial Management","Non-transfer","Current","Current payments","Goods and services","Bursaries: Employees","Bursaries: Employees","Economic development","Economic regulation and infrastructure","NAT",82,253,235,220,190,190,359,365,160,165,170,null,null,null,null,null,null,null,null,null,null,null,null,null,null,null,null,null,null,null,null,null,null,null,null,null,null,null,null,null,null,null,null,null,null,{"$f":"Dataset[[#This Row],[2027/28 From - Spending review Topic 1]]+Dataset[[#This Row],[2027/28 From - Spending review Topic 2]]+Dataset[[#This Row],[2027/28 From - Spending review Topic 3]]+Dataset[[#This Row],[2027/28 From - Spending review Topic 4]]+Dataset[[#This Row],[2027/28 From - Other reallocations]]","v":0},{"$f":"Dataset[[#This Row],[2028/29 From - Spending review Topic 1]]+Dataset[[#This Row],[2028/29 From - Spending review Topic 2]]+Dataset[[#This Row],[2028/29 From - Spending review Topic 3]]+Dataset[[#This Row],[2028/29 From - Spending review Topic 4]]+Dataset[[#This Row],[2028/29 From - Other reallocations]]","v":0},{"$f":"Dataset[[#This Row],[2029/30 From - Spending review Topic 1]]+Dataset[[#This Row],[2029/30 From - Spending review Topic 2]]+Dataset[[#This Row],[2029/30 From - Spending review Topic 3]]+Dataset[[#This Row],[2029/30 From - Spending review Topic 4]]+Dataset[[#This Row],[2029/30 From - Other reallocations]]","v":0},{"$f":"Dataset[[#This Row],[2027/28 To - Spending review Topic 1]]+Dataset[[#This Row],[2027/28 To - Spending review Topic 2]]+Dataset[[#This Row],[2027/28 To - Spending review Topic 3]]+Dataset[[#This Row],[2027/28 To - Spending review Topic 4]]+Dataset[[#This Row],[2027/28 To - Other reallocations]]","v":0},{"$f":"Dataset[[#This Row],[2028/29 To - Spending review Topic 1]]+Dataset[[#This Row],[2028/29 To - Spending review Topic 2]]+Dataset[[#This Row],[2028/29 To - Spending review Topic 3]]+Dataset[[#This Row],[2028/29 To - Spending review Topic 4]]+Dataset[[#This Row],[2028/29 To - Other reallocations]]","v":0},{"$f":"Dataset[[#This Row],[2029/30 To - Spending review Topic 1]]+Dataset[[#This Row],[2029/30 To - Spending review Topic 2]]+Dataset[[#This Row],[2029/30 To - Spending review Topic 3]]+Dataset[[#This Row],[2029/30 To - Spending review Topic 4]]+Dataset[[#This Row],[2029/30 To - Other reallocations]]","v":0},{"$f":"Dataset[[#This Row],[2027/28 Targeted savings]]+Dataset[[#This Row],[2027/28 From - Total]]","v":0},{"$f":"Dataset[[#This Row],[2028/29 Targeted savings]]+Dataset[[#This Row],[2028/29 From - Total]]","v":0},{"$f":"Dataset[[#This Row],[2029/30 Targeted savings]]+Dataset[[#This Row],[2029/30 From - Total]]","v":0},{"$f":"Dataset[[#This Row],[2026/27 Targeted savings]]","v":0},{"$f":"SUM(Dataset[[#This Row],[2027/28 Targeted savings]],Dataset[[#This Row],[2027/28 From - Total]],Dataset[[#This Row],[2027/28 To - Total]])","v":0},{"$f":"SUM(Dataset[[#This Row],[2028/29 Targeted savings]],Dataset[[#This Row],[2028/29 From - Total]],Dataset[[#This Row],[2028/29 To - Total]])","v":0},{"$f":"SUM(Dataset[[#This Row],[2029/30 Targeted savings]],Dataset[[#This Row],[2029/30 From - Total]],Dataset[[#This Row],[2029/30 To - Total]])","v":0},{"$f":"Dataset[[#This Row],[2026/27 Baseline]]+Dataset[[#This Row],[2026/27 Total change]]","v":365},{"$f":"Dataset[[#This Row],[2027/28 Baseline]]+Dataset[[#This Row],[2027/28 Total change]]","v":160},{"$f":"Dataset[[#This Row],[2028/29 Baseline]]+Dataset[[#This Row],[2028/29 Total change]]","v":165},{"$f":"Dataset[[#This Row],[2029/30 Baseline]]+Dataset[[#This Row],[2029/30 Total change]]","v":170}]
["NAT|Non-transfer","30|Catering: Departmental activities","2027_28","MTEC2027",30,1,4,32664,144,"30","01","04","032664","000144","30|01|04|000144","01","01","02","08","08","01|01|02|08|08","National","Communications and Digital Technologies","Administration","Financial Management","Non-transfer","Current","Current payments","Goods and services","Catering: Departmental activities","Catering: Departmental activities","Economic development","Economic regulation and infrastructure","NAT",46,30,41,36,36,36,49,12,39,40,41,null,null,null,null,null,null,null,null,null,null,null,null,null,null,null,null,null,null,null,null,null,null,null,null,null,null,null,null,null,null,null,null,null,null,{"$f":"Dataset[[#This Row],[2027/28 From - Spending review Topic 1]]+Dataset[[#This Row],[2027/28 From - Spending review Topic 2]]+Dataset[[#This Row],[2027/28 From - Spending review Topic 3]]+Dataset[[#This Row],[2027/28 From - Spending review Topic 4]]+Dataset[[#This Row],[2027/28 From - Other reallocations]]","v":0},{"$f":"Dataset[[#This Row],[2028/29 From - Spending review Topic 1]]+Dataset[[#This Row],[2028/29 From - Spending review Topic 2]]+Dataset[[#This Row],[2028/29 From - Spending review Topic 3]]+Dataset[[#This Row],[2028/29 From - Spending review Topic 4]]+Dataset[[#This Row],[2028/29 From - Other reallocations]]","v":0},{"$f":"Dataset[[#This Row],[2029/30 From - Spending review Topic 1]]+Dataset[[#This Row],[2029/30 From - Spending review Topic 2]]+Dataset[[#This Row],[2029/30 From - Spending review Topic 3]]+Dataset[[#This Row],[2029/30 From - Spending review Topic 4]]+Dataset[[#This Row],[2029/30 From - Other reallocations]]","v":0},{"$f":"Dataset[[#This Row],[2027/28 To - Spending review Topic 1]]+Dataset[[#This Row],[2027/28 To - Spending review Topic 2]]+Dataset[[#This Row],[2027/28 To - Spending review Topic 3]]+Dataset[[#This Row],[2027/28 To - Spending review Topic 4]]+Dataset[[#This Row],[2027/28 To - Other reallocations]]","v":0},{"$f":"Dataset[[#This Row],[2028/29 To - Spending review Topic 1]]+Dataset[[#This Row],[2028/29 To - Spending review Topic 2]]+Dataset[[#This Row],[2028/29 To - Spending review Topic 3]]+Dataset[[#This Row],[2028/29 To - Spending review Topic 4]]+Dataset[[#This Row],[2028/29 To - Other reallocations]]","v":0},{"$f":"Dataset[[#This Row],[2029/30 To - Spending review Topic 1]]+Dataset[[#This Row],[2029/30 To - Spending review Topic 2]]+Dataset[[#This Row],[2029/30 To - Spending review Topic 3]]+Dataset[[#This Row],[2029/30 To - Spending review Topic 4]]+Dataset[[#This Row],[2029/30 To - Other reallocations]]","v":0},{"$f":"Dataset[[#This Row],[2027/28 Targeted savings]]+Dataset[[#This Row],[2027/28 From - Total]]","v":0},{"$f":"Dataset[[#This Row],[2028/29 Targeted savings]]+Dataset[[#This Row],[2028/29 From - Total]]","v":0},{"$f":"Dataset[[#This Row],[2029/30 Targeted savings]]+Dataset[[#This Row],[2029/30 From - Total]]","v":0},{"$f":"Dataset[[#This Row],[2026/27 Targeted savings]]","v":0},{"$f":"SUM(Dataset[[#This Row],[2027/28 Targeted savings]],Dataset[[#This Row],[2027/28 From - Total]],Dataset[[#This Row],[2027/28 To - Total]])","v":0},{"$f":"SUM(Dataset[[#This Row],[2028/29 Targeted savings]],Dataset[[#This Row],[2028/29 From - Total]],Dataset[[#This Row],[2028/29 To - Total]])","v":0},{"$f":"SUM(Dataset[[#This Row],[2029/30 Targeted savings]],Dataset[[#This Row],[2029/30 From - Total]],Dataset[[#This Row],[2029/30 To - Total]])","v":0},{"$f":"Dataset[[#This Row],[2026/27 Baseline]]+Dataset[[#This Row],[2026/27 Total change]]","v":12},{"$f":"Dataset[[#This Row],[2027/28 Baseline]]+Dataset[[#This Row],[2027/28 Total change]]","v":39},{"$f":"Dataset[[#This Row],[2028/29 Baseline]]+Dataset[[#This Row],[2028/29 Total change]]","v":40},{"$f":"Dataset[[#This Row],[2029/30 Baseline]]+Dataset[[#This Row],[2029/30 Total change]]","v":41}]
["NAT|Non-transfer","30|Communication (G&S)","2027_28","MTEC2027",30,1,4,32665,145,"30","01","04","032665","000145","30|01|04|000145","01","01","02","09","09","01|01|02|09|09","National","Communications and Digital Technologies","Administration","Financial Management","Non-transfer","Current","Current payments","Goods and services","Communication (G&S)","Communication (G&S)","Economic development","Economic regulation and infrastructure","NAT",496,573,650,718,711,711,658,1490,819,844,869,null,null,null,null,null,null,null,null,null,null,null,null,null,null,null,null,null,null,null,null,null,null,null,null,null,null,null,null,null,null,null,null,null,null,{"$f":"Dataset[[#This Row],[2027/28 From - Spending review Topic 1]]+Dataset[[#This Row],[2027/28 From - Spending review Topic 2]]+Dataset[[#This Row],[2027/28 From - Spending review Topic 3]]+Dataset[[#This Row],[2027/28 From - Spending review Topic 4]]+Dataset[[#This Row],[2027/28 From - Other reallocations]]","v":0},{"$f":"Dataset[[#This Row],[2028/29 From - Spending review Topic 1]]+Dataset[[#This Row],[2028/29 From - Spending review Topic 2]]+Dataset[[#This Row],[2028/29 From - Spending review Topic 3]]+Dataset[[#This Row],[2028/29 From - Spending review Topic 4]]+Dataset[[#This Row],[2028/29 From - Other reallocations]]","v":0},{"$f":"Dataset[[#This Row],[2029/30 From - Spending review Topic 1]]+Dataset[[#This Row],[2029/30 From - Spending review Topic 2]]+Dataset[[#This Row],[2029/30 From - Spending review Topic 3]]+Dataset[[#This Row],[2029/30 From - Spending review Topic 4]]+Dataset[[#This Row],[2029/30 From - Other reallocations]]","v":0},{"$f":"Dataset[[#This Row],[2027/28 To - Spending review Topic 1]]+Dataset[[#This Row],[2027/28 To - Spending review Topic 2]]+Dataset[[#This Row],[2027/28 To - Spending review Topic 3]]+Dataset[[#This Row],[2027/28 To - Spending review Topic 4]]+Dataset[[#This Row],[2027/28 To - Other reallocations]]","v":0},{"$f":"Dataset[[#This Row],[2028/29 To - Spending review Topic 1]]+Dataset[[#This Row],[2028/29 To - Spending review Topic 2]]+Dataset[[#This Row],[2028/29 To - Spending review Topic 3]]+Dataset[[#This Row],[2028/29 To - Spending review Topic 4]]+Dataset[[#This Row],[2028/29 To - Other reallocations]]","v":0},{"$f":"Dataset[[#This Row],[2029/30 To - Spending review Topic 1]]+Dataset[[#This Row],[2029/30 To - Spending review Topic 2]]+Dataset[[#This Row],[2029/30 To - Spending review Topic 3]]+Dataset[[#This Row],[2029/30 To - Spending review Topic 4]]+Dataset[[#This Row],[2029/30 To - Other reallocations]]","v":0},{"$f":"Dataset[[#This Row],[2027/28 Targeted savings]]+Dataset[[#This Row],[2027/28 From - Total]]","v":0},{"$f":"Dataset[[#This Row],[2028/29 Targeted savings]]+Dataset[[#This Row],[2028/29 From - Total]]","v":0},{"$f":"Dataset[[#This Row],[2029/30 Targeted savings]]+Dataset[[#This Row],[2029/30 From - Total]]","v":0},{"$f":"Dataset[[#This Row],[2026/27 Targeted savings]]","v":0},{"$f":"SUM(Dataset[[#This Row],[2027/28 Targeted savings]],Dataset[[#This Row],[2027/28 From - Total]],Dataset[[#This Row],[2027/28 To - Total]])","v":0},{"$f":"SUM(Dataset[[#This Row],[2028/29 Targeted savings]],Dataset[[#This Row],[2028/29 From - Total]],Dataset[[#This Row],[2028/29 To - Total]])","v":0},{"$f":"SUM(Dataset[[#This Row],[2029/30 Targeted savings]],Dataset[[#This Row],[2029/30 From - Total]],Dataset[[#This Row],[2029/30 To - Total]])","v":0},{"$f":"Dataset[[#This Row],[2026/27 Baseline]]+Dataset[[#This Row],[2026/27 Total change]]","v":1490},{"$f":"Dataset[[#This Row],[2027/28 Baseline]]+Dataset[[#This Row],[2027/28 Total change]]","v":819},{"$f":"Dataset[[#This Row],[2028/29 Baseline]]+Dataset[[#This Row],[2028/29 Total change]]","v":844},{"$f":"Dataset[[#This Row],[2029/30 Baseline]]+Dataset[[#This Row],[2029/30 Total change]]","v":869}]
["NAT|Non-transfer","30|Computer services","2027_28","MTEC2027",30,1,4,32666,146,"30","01","04","032666","000146","30|01|04|000146","01","01","02","10","10","01|01|02|10|10","National","Communications and Digital Technologies","Administration","Financial Management","Non-transfer","Current","Current payments","Goods and services","Computer services","Computer services","Economic development","Economic regulation and infrastructure","NAT",0,0,0,0,0,0,0,0,20,20,21,null,null,null,null,null,null,null,null,null,null,null,null,null,null,null,null,null,null,null,null,null,null,null,null,null,null,null,null,null,null,null,null,null,null,{"$f":"Dataset[[#This Row],[2027/28 From - Spending review Topic 1]]+Dataset[[#This Row],[2027/28 From - Spending review Topic 2]]+Dataset[[#This Row],[2027/28 From - Spending review Topic 3]]+Dataset[[#This Row],[2027/28 From - Spending review Topic 4]]+Dataset[[#This Row],[2027/28 From - Other reallocations]]","v":0},{"$f":"Dataset[[#This Row],[2028/29 From - Spending review Topic 1]]+Dataset[[#This Row],[2028/29 From - Spending review Topic 2]]+Dataset[[#This Row],[2028/29 From - Spending review Topic 3]]+Dataset[[#This Row],[2028/29 From - Spending review Topic 4]]+Dataset[[#This Row],[2028/29 From - Other reallocations]]","v":0},{"$f":"Dataset[[#This Row],[2029/30 From - Spending review Topic 1]]+Dataset[[#This Row],[2029/30 From - Spending review Topic 2]]+Dataset[[#This Row],[2029/30 From - Spending review Topic 3]]+Dataset[[#This Row],[2029/30 From - Spending review Topic 4]]+Dataset[[#This Row],[2029/30 From - Other reallocations]]","v":0},{"$f":"Dataset[[#This Row],[2027/28 To - Spending review Topic 1]]+Dataset[[#This Row],[2027/28 To - Spending review Topic 2]]+Dataset[[#This Row],[2027/28 To - Spending review Topic 3]]+Dataset[[#This Row],[2027/28 To - Spending review Topic 4]]+Dataset[[#This Row],[2027/28 To - Other reallocations]]","v":0},{"$f":"Dataset[[#This Row],[2028/29 To - Spending review Topic 1]]+Dataset[[#This Row],[2028/29 To - Spending review Topic 2]]+Dataset[[#This Row],[2028/29 To - Spending review Topic 3]]+Dataset[[#This Row],[2028/29 To - Spending review Topic 4]]+Dataset[[#This Row],[2028/29 To - Other reallocations]]","v":0},{"$f":"Dataset[[#This Row],[2029/30 To - Spending review Topic 1]]+Dataset[[#This Row],[2029/30 To - Spending review Topic 2]]+Dataset[[#This Row],[2029/30 To - Spending review Topic 3]]+Dataset[[#This Row],[2029/30 To - Spending review Topic 4]]+Dataset[[#This Row],[2029/30 To - Other reallocations]]","v":0},{"$f":"Dataset[[#This Row],[2027/28 Targeted savings]]+Dataset[[#This Row],[2027/28 From - Total]]","v":0},{"$f":"Dataset[[#This Row],[2028/29 Targeted savings]]+Dataset[[#This Row],[2028/29 From - Total]]","v":0},{"$f":"Dataset[[#This Row],[2029/30 Targeted savings]]+Dataset[[#This Row],[2029/30 From - Total]]","v":0},{"$f":"Dataset[[#This Row],[2026/27 Targeted savings]]","v":0},{"$f":"SUM(Dataset[[#This Row],[2027/28 Targeted savings]],Dataset[[#This Row],[2027/28 From - Total]],Dataset[[#This Row],[2027/28 To - Total]])","v":0},{"$f":"SUM(Dataset[[#This Row],[2028/29 Targeted savings]],Dataset[[#This Row],[2028/29 From - Total]],Dataset[[#This Row],[2028/29 To - Total]])","v":0},{"$f":"SUM(Dataset[[#This Row],[2029/30 Targeted savings]],Dataset[[#This Row],[2029/30 From - Total]],Dataset[[#This Row],[2029/30 To - Total]])","v":0},{"$f":"Dataset[[#This Row],[2026/27 Baseline]]+Dataset[[#This Row],[2026/27 Total change]]","v":0},{"$f":"Dataset[[#This Row],[2027/28 Baseline]]+Dataset[[#This Row],[2027/28 Total change]]","v":20},{"$f":"Dataset[[#This Row],[2028/29 Baseline]]+Dataset[[#This Row],[2028/29 Total change]]","v":20},{"$f":"Dataset[[#This Row],[2029/30 Baseline]]+Dataset[[#This Row],[2029/30 Total change]]","v":21}]
["NAT|Non-transfer","30|Consultants: Business and advisory services","2027_28","MTEC2027",30,1,4,32667,147,"30","01","04","032667","000147","30|01|04|000147","01","01","02","11","11","01|01|02|11|11","National","Communications and Digital Technologies","Administration","Financial Management","Non-transfer","Current","Current payments","Goods and services","Consultants: Business and advisory services","Consultants: Business and advisory services","Economic development","Economic regulation and infrastructure","NAT",0,63,56,150,50,50,40,0,14,14,14,null,null,null,null,null,null,null,null,null,null,null,null,null,null,null,null,null,null,null,null,null,null,null,null,null,null,null,null,null,null,null,null,null,null,{"$f":"Dataset[[#This Row],[2027/28 From - Spending review Topic 1]]+Dataset[[#This Row],[2027/28 From - Spending review Topic 2]]+Dataset[[#This Row],[2027/28 From - Spending review Topic 3]]+Dataset[[#This Row],[2027/28 From - Spending review Topic 4]]+Dataset[[#This Row],[2027/28 From - Other reallocations]]","v":0},{"$f":"Dataset[[#This Row],[2028/29 From - Spending review Topic 1]]+Dataset[[#This Row],[2028/29 From - Spending review Topic 2]]+Dataset[[#This Row],[2028/29 From - Spending review Topic 3]]+Dataset[[#This Row],[2028/29 From - Spending review Topic 4]]+Dataset[[#This Row],[2028/29 From - Other reallocations]]","v":0},{"$f":"Dataset[[#This Row],[2029/30 From - Spending review Topic 1]]+Dataset[[#This Row],[2029/30 From - Spending review Topic 2]]+Dataset[[#This Row],[2029/30 From - Spending review Topic 3]]+Dataset[[#This Row],[2029/30 From - Spending review Topic 4]]+Dataset[[#This Row],[2029/30 From - Other reallocations]]","v":0},{"$f":"Dataset[[#This Row],[2027/28 To - Spending review Topic 1]]+Dataset[[#This Row],[2027/28 To - Spending review Topic 2]]+Dataset[[#This Row],[2027/28 To - Spending review Topic 3]]+Dataset[[#This Row],[2027/28 To - Spending review Topic 4]]+Dataset[[#This Row],[2027/28 To - Other reallocations]]","v":0},{"$f":"Dataset[[#This Row],[2028/29 To - Spending review Topic 1]]+Dataset[[#This Row],[2028/29 To - Spending review Topic 2]]+Dataset[[#This Row],[2028/29 To - Spending review Topic 3]]+Dataset[[#This Row],[2028/29 To - Spending review Topic 4]]+Dataset[[#This Row],[2028/29 To - Other reallocations]]","v":0},{"$f":"Dataset[[#This Row],[2029/30 To - Spending review Topic 1]]+Dataset[[#This Row],[2029/30 To - Spending review Topic 2]]+Dataset[[#This Row],[2029/30 To - Spending review Topic 3]]+Dataset[[#This Row],[2029/30 To - Spending review Topic 4]]+Dataset[[#This Row],[2029/30 To - Other reallocations]]","v":0},{"$f":"Dataset[[#This Row],[2027/28 Targeted savings]]+Dataset[[#This Row],[2027/28 From - Total]]","v":0},{"$f":"Dataset[[#This Row],[2028/29 Targeted savings]]+Dataset[[#This Row],[2028/29 From - Total]]","v":0},{"$f":"Dataset[[#This Row],[2029/30 Targeted savings]]+Dataset[[#This Row],[2029/30 From - Total]]","v":0},{"$f":"Dataset[[#This Row],[2026/27 Targeted savings]]","v":0},{"$f":"SUM(Dataset[[#This Row],[2027/28 Targeted savings]],Dataset[[#This Row],[2027/28 From - Total]],Dataset[[#This Row],[2027/28 To - Total]])","v":0},{"$f":"SUM(Dataset[[#This Row],[2028/29 Targeted savings]],Dataset[[#This Row],[2028/29 From - Total]],Dataset[[#This Row],[2028/29 To - Total]])","v":0},{"$f":"SUM(Dataset[[#This Row],[2029/30 Targeted savings]],Dataset[[#This Row],[2029/30 From - Total]],Dataset[[#This Row],[2029/30 To - Total]])","v":0},{"$f":"Dataset[[#This Row],[2026/27 Baseline]]+Dataset[[#This Row],[2026/27 Total change]]","v":0},{"$f":"Dataset[[#This Row],[2027/28 Baseline]]+Dataset[[#This Row],[2027/28 Total change]]","v":14},{"$f":"Dataset[[#This Row],[2028/29 Baseline]]+Dataset[[#This Row],[2028/29 Total change]]","v":14},{"$f":"Dataset[[#This Row],[2029/30 Baseline]]+Dataset[[#This Row],[2029/30 Total change]]","v":14}]
["NAT|Non-transfer item","30|Infrastructure and planning services","2027_28","MTEC2027",30,1,4,32668,148,"30","01","04","032668","000148","30|01|04|000148","01","01","02","12","12","01|01|02|12|12","National","Communications and Digital Technologies","Administration","Corporate Services","Non-transfer item","Current","Current payments","Goods and services","Infrastructure and planning services","Infrastructure and planning services","Economic development","Economic regulation and infrastructure","NAT",0,0,0,0,0,0,0,0,0,0,0,null,null,null,null,null,null,null,null,null,null,null,null,null,null,null,null,null,null,null,null,null,null,null,null,null,null,null,null,null,null,null,null,null,null,{"$f":"Dataset[[#This Row],[2027/28 From - Spending review Topic 1]]+Dataset[[#This Row],[2027/28 From - Spending review Topic 2]]+Dataset[[#This Row],[2027/28 From - Spending review Topic 3]]+Dataset[[#This Row],[2027/28 From - Spending review Topic 4]]+Dataset[[#This Row],[2027/28 From - Other reallocations]]","v":0},{"$f":"Dataset[[#This Row],[2028/29 From - Spending review Topic 1]]+Dataset[[#This Row],[2028/29 From - Spending review Topic 2]]+Dataset[[#This Row],[2028/29 From - Spending review Topic 3]]+Dataset[[#This Row],[2028/29 From - Spending review Topic 4]]+Dataset[[#This Row],[2028/29 From - Other reallocations]]","v":0},{"$f":"Dataset[[#This Row],[2029/30 From - Spending review Topic 1]]+Dataset[[#This Row],[2029/30 From - Spending review Topic 2]]+Dataset[[#This Row],[2029/30 From - Spending review Topic 3]]+Dataset[[#This Row],[2029/30 From - Spending review Topic 4]]+Dataset[[#This Row],[2029/30 From - Other reallocations]]","v":0},{"$f":"Dataset[[#This Row],[2027/28 To - Spending review Topic 1]]+Dataset[[#This Row],[2027/28 To - Spending review Topic 2]]+Dataset[[#This Row],[2027/28 To - Spending review Topic 3]]+Dataset[[#This Row],[2027/28 To - Spending review Topic 4]]+Dataset[[#This Row],[2027/28 To - Other reallocations]]","v":0},{"$f":"Dataset[[#This Row],[2028/29 To - Spending review Topic 1]]+Dataset[[#This Row],[2028/29 To - Spending review Topic 2]]+Dataset[[#This Row],[2028/29 To - Spending review Topic 3]]+Dataset[[#This Row],[2028/29 To - Spending review Topic 4]]+Dataset[[#This Row],[2028/29 To - Other reallocations]]","v":0},{"$f":"Dataset[[#This Row],[2029/30 To - Spending review Topic 1]]+Dataset[[#This Row],[2029/30 To - Spending review Topic 2]]+Dataset[[#This Row],[2029/30 To - Spending review Topic 3]]+Dataset[[#This Row],[2029/30 To - Spending review Topic 4]]+Dataset[[#This Row],[2029/30 To - Other reallocations]]","v":0},{"$f":"Dataset[[#This Row],[2027/28 Targeted savings]]+Dataset[[#This Row],[2027/28 From - Total]]","v":0},{"$f":"Dataset[[#This Row],[2028/29 Targeted savings]]+Dataset[[#This Row],[2028/29 From - Total]]","v":0},{"$f":"Dataset[[#This Row],[2029/30 Targeted savings]]+Dataset[[#This Row],[2029/30 From - Total]]","v":0},{"$f":"Dataset[[#This Row],[2026/27 Targeted savings]]","v":0},{"$f":"SUM(Dataset[[#This Row],[2027/28 Targeted savings]],Dataset[[#This Row],[2027/28 From - Total]],Dataset[[#This Row],[2027/28 To - Total]])","v":0},{"$f":"SUM(Dataset[[#This Row],[2028/29 Targeted savings]],Dataset[[#This Row],[2028/29 From - Total]],Dataset[[#This Row],[2028/29 To - Total]])","v":0},{"$f":"SUM(Dataset[[#This Row],[2029/30 Targeted savings]],Dataset[[#This Row],[2029/30 From - Total]],Dataset[[#This Row],[2029/30 To - Total]])","v":0},{"$f":"Dataset[[#This Row],[2026/27 Baseline]]+Dataset[[#This Row],[2026/27 Total change]]","v":0},{"$f":"Dataset[[#This Row],[2027/28 Baseline]]+Dataset[[#This Row],[2027/28 Total change]]","v":0},{"$f":"Dataset[[#This Row],[2028/29 Baseline]]+Dataset[[#This Row],[2028/29 Total change]]","v":0},{"$f":"Dataset[[#This Row],[2029/30 Baseline]]+Dataset[[#This Row],[2029/30 Total change]]","v":0}]
["NAT|Non-transfer item","30|Laboratory services","2027_28","MTEC2027",30,1,4,32669,149,"30","01","04","032669","000149","30|01|04|000149","01","01","02","13","13","01|01|02|13|13","National","Communications and Digital Technologies","Administration","Corporate Services","Non-transfer item","Current","Current payments","Goods and services","Laboratory services","Laboratory services","Economic development","Economic regulation and infrastructure","NAT",0,0,0,0,0,0,0,0,0,0,0,null,null,null,null,null,null,null,null,null,null,null,null,null,null,null,null,null,null,null,null,null,null,null,null,null,null,null,null,null,null,null,null,null,null,{"$f":"Dataset[[#This Row],[2027/28 From - Spending review Topic 1]]+Dataset[[#This Row],[2027/28 From - Spending review Topic 2]]+Dataset[[#This Row],[2027/28 From - Spending review Topic 3]]+Dataset[[#This Row],[2027/28 From - Spending review Topic 4]]+Dataset[[#This Row],[2027/28 From - Other reallocations]]","v":0},{"$f":"Dataset[[#This Row],[2028/29 From - Spending review Topic 1]]+Dataset[[#This Row],[2028/29 From - Spending review Topic 2]]+Dataset[[#This Row],[2028/29 From - Spending review Topic 3]]+Dataset[[#This Row],[2028/29 From - Spending review Topic 4]]+Dataset[[#This Row],[2028/29 From - Other reallocations]]","v":0},{"$f":"Dataset[[#This Row],[2029/30 From - Spending review Topic 1]]+Dataset[[#This Row],[2029/30 From - Spending review Topic 2]]+Dataset[[#This Row],[2029/30 From - Spending review Topic 3]]+Dataset[[#This Row],[2029/30 From - Spending review Topic 4]]+Dataset[[#This Row],[2029/30 From - Other reallocations]]","v":0},{"$f":"Dataset[[#This Row],[2027/28 To - Spending review Topic 1]]+Dataset[[#This Row],[2027/28 To - Spending review Topic 2]]+Dataset[[#This Row],[2027/28 To - Spending review Topic 3]]+Dataset[[#This Row],[2027/28 To - Spending review Topic 4]]+Dataset[[#This Row],[2027/28 To - Other reallocations]]","v":0},{"$f":"Dataset[[#This Row],[2028/29 To - Spending review Topic 1]]+Dataset[[#This Row],[2028/29 To - Spending review Topic 2]]+Dataset[[#This Row],[2028/29 To - Spending review Topic 3]]+Dataset[[#This Row],[2028/29 To - Spending review Topic 4]]+Dataset[[#This Row],[2028/29 To - Other reallocations]]","v":0},{"$f":"Dataset[[#This Row],[2029/30 To - Spending review Topic 1]]+Dataset[[#This Row],[2029/30 To - Spending review Topic 2]]+Dataset[[#This Row],[2029/30 To - Spending review Topic 3]]+Dataset[[#This Row],[2029/30 To - Spending review Topic 4]]+Dataset[[#This Row],[2029/30 To - Other reallocations]]","v":0},{"$f":"Dataset[[#This Row],[2027/28 Targeted savings]]+Dataset[[#This Row],[2027/28 From - Total]]","v":0},{"$f":"Dataset[[#This Row],[2028/29 Targeted savings]]+Dataset[[#This Row],[2028/29 From - Total]]","v":0},{"$f":"Dataset[[#This Row],[2029/30 Targeted savings]]+Dataset[[#This Row],[2029/30 From - Total]]","v":0},{"$f":"Dataset[[#This Row],[2026/27 Targeted savings]]","v":0},{"$f":"SUM(Dataset[[#This Row],[2027/28 Targeted savings]],Dataset[[#This Row],[2027/28 From - Total]],Dataset[[#This Row],[2027/28 To - Total]])","v":0},{"$f":"SUM(Dataset[[#This Row],[2028/29 Targeted savings]],Dataset[[#This Row],[2028/29 From - Total]],Dataset[[#This Row],[2028/29 To - Total]])","v":0},{"$f":"SUM(Dataset[[#This Row],[2029/30 Targeted savings]],Dataset[[#This Row],[2029/30 From - Total]],Dataset[[#This Row],[2029/30 To - Total]])","v":0},{"$f":"Dataset[[#This Row],[2026/27 Baseline]]+Dataset[[#This Row],[2026/27 Total change]]","v":0},{"$f":"Dataset[[#This Row],[2027/28 Baseline]]+Dataset[[#This Row],[2027/28 Total change]]","v":0},{"$f":"Dataset[[#This Row],[2028/29 Baseline]]+Dataset[[#This Row],[2028/29 Total change]]","v":0},{"$f":"Dataset[[#This Row],[2029/30 Baseline]]+Dataset[[#This Row],[2029/30 Total change]]","v":0}]
["NAT|Non-transfer item","30|Legal services (G&S)","2027_28","MTEC2027",30,1,4,32670,150,"30","01","04","032670","000150","30|01|04|000150","01","01","02","14","14","01|01|02|14|14","National","Communications and Digital Technologies","Administration","Corporate Services","Non-transfer item","Current","Current payments","Goods and services","Legal services (G&S)","Legal services (G&S)","Economic development","Economic regulation and infrastructure","NAT",0,0,0,0,0,0,4828,0,0,0,0,null,null,null,null,null,null,null,null,null,null,null,null,null,null,null,null,null,null,null,null,null,null,null,null,null,null,null,null,null,null,null,null,null,null,{"$f":"Dataset[[#This Row],[2027/28 From - Spending review Topic 1]]+Dataset[[#This Row],[2027/28 From - Spending review Topic 2]]+Dataset[[#This Row],[2027/28 From - Spending review Topic 3]]+Dataset[[#This Row],[2027/28 From - Spending review Topic 4]]+Dataset[[#This Row],[2027/28 From - Other reallocations]]","v":0},{"$f":"Dataset[[#This Row],[2028/29 From - Spending review Topic 1]]+Dataset[[#This Row],[2028/29 From - Spending review Topic 2]]+Dataset[[#This Row],[2028/29 From - Spending review Topic 3]]+Dataset[[#This Row],[2028/29 From - Spending review Topic 4]]+Dataset[[#This Row],[2028/29 From - Other reallocations]]","v":0},{"$f":"Dataset[[#This Row],[2029/30 From - Spending review Topic 1]]+Dataset[[#This Row],[2029/30 From - Spending review Topic 2]]+Dataset[[#This Row],[2029/30 From - Spending review Topic 3]]+Dataset[[#This Row],[2029/30 From - Spending review Topic 4]]+Dataset[[#This Row],[2029/30 From - Other reallocations]]","v":0},{"$f":"Dataset[[#This Row],[2027/28 To - Spending review Topic 1]]+Dataset[[#This Row],[2027/28 To - Spending review Topic 2]]+Dataset[[#This Row],[2027/28 To - Spending review Topic 3]]+Dataset[[#This Row],[2027/28 To - Spending review Topic 4]]+Dataset[[#This Row],[2027/28 To - Other reallocations]]","v":0},{"$f":"Dataset[[#This Row],[2028/29 To - Spending review Topic 1]]+Dataset[[#This Row],[2028/29 To - Spending review Topic 2]]+Dataset[[#This Row],[2028/29 To - Spending review Topic 3]]+Dataset[[#This Row],[2028/29 To - Spending review Topic 4]]+Dataset[[#This Row],[2028/29 To - Other reallocations]]","v":0},{"$f":"Dataset[[#This Row],[2029/30 To - Spending review Topic 1]]+Dataset[[#This Row],[2029/30 To - Spending review Topic 2]]+Dataset[[#This Row],[2029/30 To - Spending review Topic 3]]+Dataset[[#This Row],[2029/30 To - Spending review Topic 4]]+Dataset[[#This Row],[2029/30 To - Other reallocations]]","v":0},{"$f":"Dataset[[#This Row],[2027/28 Targeted savings]]+Dataset[[#This Row],[2027/28 From - Total]]","v":0},{"$f":"Dataset[[#This Row],[2028/29 Targeted savings]]+Dataset[[#This Row],[2028/29 From - Total]]","v":0},{"$f":"Dataset[[#This Row],[2029/30 Targeted savings]]+Dataset[[#This Row],[2029/30 From - Total]]","v":0},{"$f":"Dataset[[#This Row],[2026/27 Targeted savings]]","v":0},{"$f":"SUM(Dataset[[#This Row],[2027/28 Targeted savings]],Dataset[[#This Row],[2027/28 From - Total]],Dataset[[#This Row],[2027/28 To - Total]])","v":0},{"$f":"SUM(Dataset[[#This Row],[2028/29 Targeted savings]],Dataset[[#This Row],[2028/29 From - Total]],Dataset[[#This Row],[2028/29 To - Total]])","v":0},{"$f":"SUM(Dataset[[#This Row],[2029/30 Targeted savings]],Dataset[[#This Row],[2029/30 From - Total]],Dataset[[#This Row],[2029/30 To - Total]])","v":0},{"$f":"Dataset[[#This Row],[2026/27 Baseline]]+Dataset[[#This Row],[2026/27 Total change]]","v":0},{"$f":"Dataset[[#This Row],[2027/28 Baseline]]+Dataset[[#This Row],[2027/28 Total change]]","v":0},{"$f":"Dataset[[#This Row],[2028/29 Baseline]]+Dataset[[#This Row],[2028/29 Total change]]","v":0},{"$f":"Dataset[[#This Row],[2029/30 Baseline]]+Dataset[[#This Row],[2029/30 Total change]]","v":0}]
["NAT|Non-transfer item","30|Science and technological services","2027_28","MTEC2027",30,1,4,32671,151,"30","01","04","032671","000151","30|01|04|000151","01","01","02","15","15","01|01|02|15|15","National","Communications and Digital Technologies","Administration","Corporate Services","Non-transfer item","Current","Current payments","Goods and services","Science and technological services","Science and technological services","Economic development","Economic regulation and infrastructure","NAT",0,0,0,0,0,0,0,0,0,0,0,null,null,null,null,null,null,null,null,null,null,null,null,null,null,null,null,null,null,null,null,null,null,null,null,null,null,null,null,null,null,null,null,null,null,{"$f":"Dataset[[#This Row],[2027/28 From - Spending review Topic 1]]+Dataset[[#This Row],[2027/28 From - Spending review Topic 2]]+Dataset[[#This Row],[2027/28 From - Spending review Topic 3]]+Dataset[[#This Row],[2027/28 From - Spending review Topic 4]]+Dataset[[#This Row],[2027/28 From - Other reallocations]]","v":0},{"$f":"Dataset[[#This Row],[2028/29 From - Spending review Topic 1]]+Dataset[[#This Row],[2028/29 From - Spending review Topic 2]]+Dataset[[#This Row],[2028/29 From - Spending review Topic 3]]+Dataset[[#This Row],[2028/29 From - Spending review Topic 4]]+Dataset[[#This Row],[2028/29 From - Other reallocations]]","v":0},{"$f":"Dataset[[#This Row],[2029/30 From - Spending review Topic 1]]+Dataset[[#This Row],[2029/30 From - Spending review Topic 2]]+Dataset[[#This Row],[2029/30 From - Spending review Topic 3]]+Dataset[[#This Row],[2029/30 From - Spending review Topic 4]]+Dataset[[#This Row],[2029/30 From - Other reallocations]]","v":0},{"$f":"Dataset[[#This Row],[2027/28 To - Spending review Topic 1]]+Dataset[[#This Row],[2027/28 To - Spending review Topic 2]]+Dataset[[#This Row],[2027/28 To - Spending review Topic 3]]+Dataset[[#This Row],[2027/28 To - Spending review Topic 4]]+Dataset[[#This Row],[2027/28 To - Other reallocations]]","v":0},{"$f":"Dataset[[#This Row],[2028/29 To - Spending review Topic 1]]+Dataset[[#This Row],[2028/29 To - Spending review Topic 2]]+Dataset[[#This Row],[2028/29 To - Spending review Topic 3]]+Dataset[[#This Row],[2028/29 To - Spending review Topic 4]]+Dataset[[#This Row],[2028/29 To - Other reallocations]]","v":0},{"$f":"Dataset[[#This Row],[2029/30 To - Spending review Topic 1]]+Dataset[[#This Row],[2029/30 To - Spending review Topic 2]]+Dataset[[#This Row],[2029/30 To - Spending review Topic 3]]+Dataset[[#This Row],[2029/30 To - Spending review Topic 4]]+Dataset[[#This Row],[2029/30 To - Other reallocations]]","v":0},{"$f":"Dataset[[#This Row],[2027/28 Targeted savings]]+Dataset[[#This Row],[2027/28 From - Total]]","v":0},{"$f":"Dataset[[#This Row],[2028/29 Targeted savings]]+Dataset[[#This Row],[2028/29 From - Total]]","v":0},{"$f":"Dataset[[#This Row],[2029/30 Targeted savings]]+Dataset[[#This Row],[2029/30 From - Total]]","v":0},{"$f":"Dataset[[#This Row],[2026/27 Targeted savings]]","v":0},{"$f":"SUM(Dataset[[#This Row],[2027/28 Targeted savings]],Dataset[[#This Row],[2027/28 From - Total]],Dataset[[#This Row],[2027/28 To - Total]])","v":0},{"$f":"SUM(Dataset[[#This Row],[2028/29 Targeted savings]],Dataset[[#This Row],[2028/29 From - Total]],Dataset[[#This Row],[2028/29 To - Total]])","v":0},{"$f":"SUM(Dataset[[#This Row],[2029/30 Targeted savings]],Dataset[[#This Row],[2029/30 From - Total]],Dataset[[#This Row],[2029/30 To - Total]])","v":0},{"$f":"Dataset[[#This Row],[2026/27 Baseline]]+Dataset[[#This Row],[2026/27 Total change]]","v":0},{"$f":"Dataset[[#This Row],[2027/28 Baseline]]+Dataset[[#This Row],[2027/28 Total change]]","v":0},{"$f":"Dataset[[#This Row],[2028/29 Baseline]]+Dataset[[#This Row],[2028/29 Total change]]","v":0},{"$f":"Dataset[[#This Row],[2029/30 Baseline]]+Dataset[[#This Row],[2029/30 Total change]]","v":0}]
["NAT|Non-transfer","30|Contractors","2027_28","MTEC2027",30,1,4,32672,152,"30","01","04","032672","000152","30|01|04|000152","01","01","02","16","16","01|01|02|16|16","National","Communications and Digital Technologies","Administration","Financial Management","Non-transfer","Current","Current payments","Goods and services","Contractors","Contractors","Economic development","Economic regulation and infrastructure","NAT",181,43,57,169,103,103,2,0,0,395,407,null,null,null,null,null,null,null,null,null,null,null,null,null,null,null,null,null,null,null,null,null,null,null,null,null,null,null,null,null,null,null,null,null,null,{"$f":"Dataset[[#This Row],[2027/28 From - Spending review Topic 1]]+Dataset[[#This Row],[2027/28 From - Spending review Topic 2]]+Dataset[[#This Row],[2027/28 From - Spending review Topic 3]]+Dataset[[#This Row],[2027/28 From - Spending review Topic 4]]+Dataset[[#This Row],[2027/28 From - Other reallocations]]","v":0},{"$f":"Dataset[[#This Row],[2028/29 From - Spending review Topic 1]]+Dataset[[#This Row],[2028/29 From - Spending review Topic 2]]+Dataset[[#This Row],[2028/29 From - Spending review Topic 3]]+Dataset[[#This Row],[2028/29 From - Spending review Topic 4]]+Dataset[[#This Row],[2028/29 From - Other reallocations]]","v":0},{"$f":"Dataset[[#This Row],[2029/30 From - Spending review Topic 1]]+Dataset[[#This Row],[2029/30 From - Spending review Topic 2]]+Dataset[[#This Row],[2029/30 From - Spending review Topic 3]]+Dataset[[#This Row],[2029/30 From - Spending review Topic 4]]+Dataset[[#This Row],[2029/30 From - Other reallocations]]","v":0},{"$f":"Dataset[[#This Row],[2027/28 To - Spending review Topic 1]]+Dataset[[#This Row],[2027/28 To - Spending review Topic 2]]+Dataset[[#This Row],[2027/28 To - Spending review Topic 3]]+Dataset[[#This Row],[2027/28 To - Spending review Topic 4]]+Dataset[[#This Row],[2027/28 To - Other reallocations]]","v":0},{"$f":"Dataset[[#This Row],[2028/29 To - Spending review Topic 1]]+Dataset[[#This Row],[2028/29 To - Spending review Topic 2]]+Dataset[[#This Row],[2028/29 To - Spending review Topic 3]]+Dataset[[#This Row],[2028/29 To - Spending review Topic 4]]+Dataset[[#This Row],[2028/29 To - Other reallocations]]","v":0},{"$f":"Dataset[[#This Row],[2029/30 To - Spending review Topic 1]]+Dataset[[#This Row],[2029/30 To - Spending review Topic 2]]+Dataset[[#This Row],[2029/30 To - Spending review Topic 3]]+Dataset[[#This Row],[2029/30 To - Spending review Topic 4]]+Dataset[[#This Row],[2029/30 To - Other reallocations]]","v":0},{"$f":"Dataset[[#This Row],[2027/28 Targeted savings]]+Dataset[[#This Row],[2027/28 From - Total]]","v":0},{"$f":"Dataset[[#This Row],[2028/29 Targeted savings]]+Dataset[[#This Row],[2028/29 From - Total]]","v":0},{"$f":"Dataset[[#This Row],[2029/30 Targeted savings]]+Dataset[[#This Row],[2029/30 From - Total]]","v":0},{"$f":"Dataset[[#This Row],[2026/27 Targeted savings]]","v":0},{"$f":"SUM(Dataset[[#This Row],[2027/28 Targeted savings]],Dataset[[#This Row],[2027/28 From - Total]],Dataset[[#This Row],[2027/28 To - Total]])","v":0},{"$f":"SUM(Dataset[[#This Row],[2028/29 Targeted savings]],Dataset[[#This Row],[2028/29 From - Total]],Dataset[[#This Row],[2028/29 To - Total]])","v":0},{"$f":"SUM(Dataset[[#This Row],[2029/30 Targeted savings]],Dataset[[#This Row],[2029/30 From - Total]],Dataset[[#This Row],[2029/30 To - Total]])","v":0},{"$f":"Dataset[[#This Row],[2026/27 Baseline]]+Dataset[[#This Row],[2026/27 Total change]]","v":0},{"$f":"Dataset[[#This Row],[2027/28 Baseline]]+Dataset[[#This Row],[2027/28 Total change]]","v":0},{"$f":"Dataset[[#This Row],[2028/29 Baseline]]+Dataset[[#This Row],[2028/29 Total change]]","v":395},{"$f":"Dataset[[#This Row],[2029/30 Baseline]]+Dataset[[#This Row],[2029/30 Total change]]","v":407}]
["NAT|Non-transfer item","30|Agency and support/outsourced services","2027_28","MTEC2027",30,1,4,32673,153,"30","01","04","032673","000153","30|01|04|000153","01","01","02","17","17","01|01|02|17|17","National","Communications and Digital Technologies","Administration","Corporate Services","Non-transfer item","Current","Current payments","Goods and services","Agency and support/outsourced services","Agency and support/outsourced services","Economic development","Economic regulation and infrastructure","NAT",0,0,0,0,0,0,0,0,0,0,0,null,null,null,null,null,null,null,null,null,null,null,null,null,null,null,null,null,null,null,null,null,null,null,null,null,null,null,null,null,null,null,null,null,null,{"$f":"Dataset[[#This Row],[2027/28 From - Spending review Topic 1]]+Dataset[[#This Row],[2027/28 From - Spending review Topic 2]]+Dataset[[#This Row],[2027/28 From - Spending review Topic 3]]+Dataset[[#This Row],[2027/28 From - Spending review Topic 4]]+Dataset[[#This Row],[2027/28 From - Other reallocations]]","v":0},{"$f":"Dataset[[#This Row],[2028/29 From - Spending review Topic 1]]+Dataset[[#This Row],[2028/29 From - Spending review Topic 2]]+Dataset[[#This Row],[2028/29 From - Spending review Topic 3]]+Dataset[[#This Row],[2028/29 From - Spending review Topic 4]]+Dataset[[#This Row],[2028/29 From - Other reallocations]]","v":0},{"$f":"Dataset[[#This Row],[2029/30 From - Spending review Topic 1]]+Dataset[[#This Row],[2029/30 From - Spending review Topic 2]]+Dataset[[#This Row],[2029/30 From - Spending review Topic 3]]+Dataset[[#This Row],[2029/30 From - Spending review Topic 4]]+Dataset[[#This Row],[2029/30 From - Other reallocations]]","v":0},{"$f":"Dataset[[#This Row],[2027/28 To - Spending review Topic 1]]+Dataset[[#This Row],[2027/28 To - Spending review Topic 2]]+Dataset[[#This Row],[2027/28 To - Spending review Topic 3]]+Dataset[[#This Row],[2027/28 To - Spending review Topic 4]]+Dataset[[#This Row],[2027/28 To - Other reallocations]]","v":0},{"$f":"Dataset[[#This Row],[2028/29 To - Spending review Topic 1]]+Dataset[[#This Row],[2028/29 To - Spending review Topic 2]]+Dataset[[#This Row],[2028/29 To - Spending review Topic 3]]+Dataset[[#This Row],[2028/29 To - Spending review Topic 4]]+Dataset[[#This Row],[2028/29 To - Other reallocations]]","v":0},{"$f":"Dataset[[#This Row],[2029/30 To - Spending review Topic 1]]+Dataset[[#This Row],[2029/30 To - Spending review Topic 2]]+Dataset[[#This Row],[2029/30 To - Spending review Topic 3]]+Dataset[[#This Row],[2029/30 To - Spending review Topic 4]]+Dataset[[#This Row],[2029/30 To - Other reallocations]]","v":0},{"$f":"Dataset[[#This Row],[2027/28 Targeted savings]]+Dataset[[#This Row],[2027/28 From - Total]]","v":0},{"$f":"Dataset[[#This Row],[2028/29 Targeted savings]]+Dataset[[#This Row],[2028/29 From - Total]]","v":0},{"$f":"Dataset[[#This Row],[2029/30 Targeted savings]]+Dataset[[#This Row],[2029/30 From - Total]]","v":0},{"$f":"Dataset[[#This Row],[2026/27 Targeted savings]]","v":0},{"$f":"SUM(Dataset[[#This Row],[2027/28 Targeted savings]],Dataset[[#This Row],[2027/28 From - Total]],Dataset[[#This Row],[2027/28 To - Total]])","v":0},{"$f":"SUM(Dataset[[#This Row],[2028/29 Targeted savings]],Dataset[[#This Row],[2028/29 From - Total]],Dataset[[#This Row],[2028/29 To - Total]])","v":0},{"$f":"SUM(Dataset[[#This Row],[2029/30 Targeted savings]],Dataset[[#This Row],[2029/30 From - Total]],Dataset[[#This Row],[2029/30 To - Total]])","v":0},{"$f":"Dataset[[#This Row],[2026/27 Baseline]]+Dataset[[#This Row],[2026/27 Total change]]","v":0},{"$f":"Dataset[[#This Row],[2027/28 Baseline]]+Dataset[[#This Row],[2027/28 Total change]]","v":0},{"$f":"Dataset[[#This Row],[2028/29 Baseline]]+Dataset[[#This Row],[2028/29 Total change]]","v":0},{"$f":"Dataset[[#This Row],[2029/30 Baseline]]+Dataset[[#This Row],[2029/30 Total change]]","v":0}]
["NAT|Non-transfer","30|Entertainment","2027_28","MTEC2027",30,1,4,32674,154,"30","01","04","032674","000154","30|01|04|000154","01","01","02","18","18","01|01|02|18|18","National","Communications and Digital Technologies","Administration","Financial Management","Non-transfer","Current","Current payments","Goods and services","Entertainment","Entertainment","Economic development","Economic regulation and infrastructure","NAT",1,0,0,10,10,10,0,0,10,10,10,null,null,null,null,null,null,null,null,null,null,null,null,null,null,null,null,null,null,null,null,null,null,null,null,null,null,null,null,null,null,null,null,null,null,{"$f":"Dataset[[#This Row],[2027/28 From - Spending review Topic 1]]+Dataset[[#This Row],[2027/28 From - Spending review Topic 2]]+Dataset[[#This Row],[2027/28 From - Spending review Topic 3]]+Dataset[[#This Row],[2027/28 From - Spending review Topic 4]]+Dataset[[#This Row],[2027/28 From - Other reallocations]]","v":0},{"$f":"Dataset[[#This Row],[2028/29 From - Spending review Topic 1]]+Dataset[[#This Row],[2028/29 From - Spending review Topic 2]]+Dataset[[#This Row],[2028/29 From - Spending review Topic 3]]+Dataset[[#This Row],[2028/29 From - Spending review Topic 4]]+Dataset[[#This Row],[2028/29 From - Other reallocations]]","v":0},{"$f":"Dataset[[#This Row],[2029/30 From - Spending review Topic 1]]+Dataset[[#This Row],[2029/30 From - Spending review Topic 2]]+Dataset[[#This Row],[2029/30 From - Spending review Topic 3]]+Dataset[[#This Row],[2029/30 From - Spending review Topic 4]]+Dataset[[#This Row],[2029/30 From - Other reallocations]]","v":0},{"$f":"Dataset[[#This Row],[2027/28 To - Spending review Topic 1]]+Dataset[[#This Row],[2027/28 To - Spending review Topic 2]]+Dataset[[#This Row],[2027/28 To - Spending review Topic 3]]+Dataset[[#This Row],[2027/28 To - Spending review Topic 4]]+Dataset[[#This Row],[2027/28 To - Other reallocations]]","v":0},{"$f":"Dataset[[#This Row],[2028/29 To - Spending review Topic 1]]+Dataset[[#This Row],[2028/29 To - Spending review Topic 2]]+Dataset[[#This Row],[2028/29 To - Spending review Topic 3]]+Dataset[[#This Row],[2028/29 To - Spending review Topic 4]]+Dataset[[#This Row],[2028/29 To - Other reallocations]]","v":0},{"$f":"Dataset[[#This Row],[2029/30 To - Spending review Topic 1]]+Dataset[[#This Row],[2029/30 To - Spending review Topic 2]]+Dataset[[#This Row],[2029/30 To - Spending review Topic 3]]+Dataset[[#This Row],[2029/30 To - Spending review Topic 4]]+Dataset[[#This Row],[2029/30 To - Other reallocations]]","v":0},{"$f":"Dataset[[#This Row],[2027/28 Targeted savings]]+Dataset[[#This Row],[2027/28 From - Total]]","v":0},{"$f":"Dataset[[#This Row],[2028/29 Targeted savings]]+Dataset[[#This Row],[2028/29 From - Total]]","v":0},{"$f":"Dataset[[#This Row],[2029/30 Targeted savings]]+Dataset[[#This Row],[2029/30 From - Total]]","v":0},{"$f":"Dataset[[#This Row],[2026/27 Targeted savings]]","v":0},{"$f":"SUM(Dataset[[#This Row],[2027/28 Targeted savings]],Dataset[[#This Row],[2027/28 From - Total]],Dataset[[#This Row],[2027/28 To - Total]])","v":0},{"$f":"SUM(Dataset[[#This Row],[2028/29 Targeted savings]],Dataset[[#This Row],[2028/29 From - Total]],Dataset[[#This Row],[2028/29 To - Total]])","v":0},{"$f":"SUM(Dataset[[#This Row],[2029/30 Targeted savings]],Dataset[[#This Row],[2029/30 From - Total]],Dataset[[#This Row],[2029/30 To - Total]])","v":0},{"$f":"Dataset[[#This Row],[2026/27 Baseline]]+Dataset[[#This Row],[2026/27 Total change]]","v":0},{"$f":"Dataset[[#This Row],[2027/28 Baseline]]+Dataset[[#This Row],[2027/28 Total change]]","v":10},{"$f":"Dataset[[#This Row],[2028/29 Baseline]]+Dataset[[#This Row],[2028/29 Total change]]","v":10},{"$f":"Dataset[[#This Row],[2029/30 Baseline]]+Dataset[[#This Row],[2029/30 Total change]]","v":10}]
["NAT|Non-transfer","30|Fleet services (including government motor transport)","2027_28","MTEC2027",30,1,4,32675,155,"30","01","04","032675","000155","30|01|04|000155","01","01","02","19","19","01|01|02|19|19","National","Communications and Digital Technologies","Administration","Financial Management","Non-transfer","Current","Current payments","Goods and services","Fleet services (including government motor transport)","Fleet services (including government motor transport)","Economic development","Economic regulation and infrastructure","NAT",77,216,185,558,308,308,122,140,222,847,873,null,null,null,null,null,null,null,null,null,null,null,null,null,null,null,null,null,null,null,null,null,null,null,null,null,null,null,null,null,null,null,null,null,null,{"$f":"Dataset[[#This Row],[2027/28 From - Spending review Topic 1]]+Dataset[[#This Row],[2027/28 From - Spending review Topic 2]]+Dataset[[#This Row],[2027/28 From - Spending review Topic 3]]+Dataset[[#This Row],[2027/28 From - Spending review Topic 4]]+Dataset[[#This Row],[2027/28 From - Other reallocations]]","v":0},{"$f":"Dataset[[#This Row],[2028/29 From - Spending review Topic 1]]+Dataset[[#This Row],[2028/29 From - Spending review Topic 2]]+Dataset[[#This Row],[2028/29 From - Spending review Topic 3]]+Dataset[[#This Row],[2028/29 From - Spending review Topic 4]]+Dataset[[#This Row],[2028/29 From - Other reallocations]]","v":0},{"$f":"Dataset[[#This Row],[2029/30 From - Spending review Topic 1]]+Dataset[[#This Row],[2029/30 From - Spending review Topic 2]]+Dataset[[#This Row],[2029/30 From - Spending review Topic 3]]+Dataset[[#This Row],[2029/30 From - Spending review Topic 4]]+Dataset[[#This Row],[2029/30 From - Other reallocations]]","v":0},{"$f":"Dataset[[#This Row],[2027/28 To - Spending review Topic 1]]+Dataset[[#This Row],[2027/28 To - Spending review Topic 2]]+Dataset[[#This Row],[2027/28 To - Spending review Topic 3]]+Dataset[[#This Row],[2027/28 To - Spending review Topic 4]]+Dataset[[#This Row],[2027/28 To - Other reallocations]]","v":0},{"$f":"Dataset[[#This Row],[2028/29 To - Spending review Topic 1]]+Dataset[[#This Row],[2028/29 To - Spending review Topic 2]]+Dataset[[#This Row],[2028/29 To - Spending review Topic 3]]+Dataset[[#This Row],[2028/29 To - Spending review Topic 4]]+Dataset[[#This Row],[2028/29 To - Other reallocations]]","v":0},{"$f":"Dataset[[#This Row],[2029/30 To - Spending review Topic 1]]+Dataset[[#This Row],[2029/30 To - Spending review Topic 2]]+Dataset[[#This Row],[2029/30 To - Spending review Topic 3]]+Dataset[[#This Row],[2029/30 To - Spending review Topic 4]]+Dataset[[#This Row],[2029/30 To - Other reallocations]]","v":0},{"$f":"Dataset[[#This Row],[2027/28 Targeted savings]]+Dataset[[#This Row],[2027/28 From - Total]]","v":0},{"$f":"Dataset[[#This Row],[2028/29 Targeted savings]]+Dataset[[#This Row],[2028/29 From - Total]]","v":0},{"$f":"Dataset[[#This Row],[2029/30 Targeted savings]]+Dataset[[#This Row],[2029/30 From - Total]]","v":0},{"$f":"Dataset[[#This Row],[2026/27 Targeted savings]]","v":0},{"$f":"SUM(Dataset[[#This Row],[2027/28 Targeted savings]],Dataset[[#This Row],[2027/28 From - Total]],Dataset[[#This Row],[2027/28 To - Total]])","v":0},{"$f":"SUM(Dataset[[#This Row],[2028/29 Targeted savings]],Dataset[[#This Row],[2028/29 From - Total]],Dataset[[#This Row],[2028/29 To - Total]])","v":0},{"$f":"SUM(Dataset[[#This Row],[2029/30 Targeted savings]],Dataset[[#This Row],[2029/30 From - Total]],Dataset[[#This Row],[2029/30 To - Total]])","v":0},{"$f":"Dataset[[#This Row],[2026/27 Baseline]]+Dataset[[#This Row],[2026/27 Total change]]","v":140},{"$f":"Dataset[[#This Row],[2027/28 Baseline]]+Dataset[[#This Row],[2027/28 Total change]]","v":222},{"$f":"Dataset[[#This Row],[2028/29 Baseline]]+Dataset[[#This Row],[2028/29 Total change]]","v":847},{"$f":"Dataset[[#This Row],[2029/30 Baseline]]+Dataset[[#This Row],[2029/30 Total change]]","v":873}]
["NAT|Non-transfer item","30|Housing","2027_28","MTEC2027",30,1,4,32676,156,"30","01","04","032676","000156","30|01|04|000156","01","01","02","20","20","01|01|02|20|20","National","Communications and Digital Technologies","Administration","Corporate Services","Non-transfer item","Current","Current payments","Goods and services","Housing","Housing","Economic development","Economic regulation and infrastructure","NAT",0,0,0,0,0,0,0,0,0,0,0,null,null,null,null,null,null,null,null,null,null,null,null,null,null,null,null,null,null,null,null,null,null,null,null,null,null,null,null,null,null,null,null,null,null,{"$f":"Dataset[[#This Row],[2027/28 From - Spending review Topic 1]]+Dataset[[#This Row],[2027/28 From - Spending review Topic 2]]+Dataset[[#This Row],[2027/28 From - Spending review Topic 3]]+Dataset[[#This Row],[2027/28 From - Spending review Topic 4]]+Dataset[[#This Row],[2027/28 From - Other reallocations]]","v":0},{"$f":"Dataset[[#This Row],[2028/29 From - Spending review Topic 1]]+Dataset[[#This Row],[2028/29 From - Spending review Topic 2]]+Dataset[[#This Row],[2028/29 From - Spending review Topic 3]]+Dataset[[#This Row],[2028/29 From - Spending review Topic 4]]+Dataset[[#This Row],[2028/29 From - Other reallocations]]","v":0},{"$f":"Dataset[[#This Row],[2029/30 From - Spending review Topic 1]]+Dataset[[#This Row],[2029/30 From - Spending review Topic 2]]+Dataset[[#This Row],[2029/30 From - Spending review Topic 3]]+Dataset[[#This Row],[2029/30 From - Spending review Topic 4]]+Dataset[[#This Row],[2029/30 From - Other reallocations]]","v":0},{"$f":"Dataset[[#This Row],[2027/28 To - Spending review Topic 1]]+Dataset[[#This Row],[2027/28 To - Spending review Topic 2]]+Dataset[[#This Row],[2027/28 To - Spending review Topic 3]]+Dataset[[#This Row],[2027/28 To - Spending review Topic 4]]+Dataset[[#This Row],[2027/28 To - Other reallocations]]","v":0},{"$f":"Dataset[[#This Row],[2028/29 To - Spending review Topic 1]]+Dataset[[#This Row],[2028/29 To - Spending review Topic 2]]+Dataset[[#This Row],[2028/29 To - Spending review Topic 3]]+Dataset[[#This Row],[2028/29 To - Spending review Topic 4]]+Dataset[[#This Row],[2028/29 To - Other reallocations]]","v":0},{"$f":"Dataset[[#This Row],[2029/30 To - Spending review Topic 1]]+Dataset[[#This Row],[2029/30 To - Spending review Topic 2]]+Dataset[[#This Row],[2029/30 To - Spending review Topic 3]]+Dataset[[#This Row],[2029/30 To - Spending review Topic 4]]+Dataset[[#This Row],[2029/30 To - Other reallocations]]","v":0},{"$f":"Dataset[[#This Row],[2027/28 Targeted savings]]+Dataset[[#This Row],[2027/28 From - Total]]","v":0},{"$f":"Dataset[[#This Row],[2028/29 Targeted savings]]+Dataset[[#This Row],[2028/29 From - Total]]","v":0},{"$f":"Dataset[[#This Row],[2029/30 Targeted savings]]+Dataset[[#This Row],[2029/30 From - Total]]","v":0},{"$f":"Dataset[[#This Row],[2026/27 Targeted savings]]","v":0},{"$f":"SUM(Dataset[[#This Row],[2027/28 Targeted savings]],Dataset[[#This Row],[2027/28 From - Total]],Dataset[[#This Row],[2027/28 To - Total]])","v":0},{"$f":"SUM(Dataset[[#This Row],[2028/29 Targeted savings]],Dataset[[#This Row],[2028/29 From - Total]],Dataset[[#This Row],[2028/29 To - Total]])","v":0},{"$f":"SUM(Dataset[[#This Row],[2029/30 Targeted savings]],Dataset[[#This Row],[2029/30 From - Total]],Dataset[[#This Row],[2029/30 To - Total]])","v":0},{"$f":"Dataset[[#This Row],[2026/27 Baseline]]+Dataset[[#This Row],[2026/27 Total change]]","v":0},{"$f":"Dataset[[#This Row],[2027/28 Baseline]]+Dataset[[#This Row],[2027/28 Total change]]","v":0},{"$f":"Dataset[[#This Row],[2028/29 Baseline]]+Dataset[[#This Row],[2028/29 Total change]]","v":0},{"$f":"Dataset[[#This Row],[2029/30 Baseline]]+Dataset[[#This Row],[2029/30 Total change]]","v":0}]
["NAT|Non-transfer item","30|Inventory: Clothing material and accessories","2027_28","MTEC2027",30,1,4,32677,157,"30","01","04","032677","000157","30|01|04|000157","01","01","02","21","21","01|01|02|21|21","National","Communications and Digital Technologies","Administration","Corporate Services","Non-transfer item","Current","Current payments","Goods and services","Inventory: Clothing material and accessories","Inventory: Clothing material and accessories","Economic development","Economic regulation and infrastructure","NAT",0,0,0,0,0,0,0,0,0,0,0,null,null,null,null,null,null,null,null,null,null,null,null,null,null,null,null,null,null,null,null,null,null,null,null,null,null,null,null,null,null,null,null,null,null,{"$f":"Dataset[[#This Row],[2027/28 From - Spending review Topic 1]]+Dataset[[#This Row],[2027/28 From - Spending review Topic 2]]+Dataset[[#This Row],[2027/28 From - Spending review Topic 3]]+Dataset[[#This Row],[2027/28 From - Spending review Topic 4]]+Dataset[[#This Row],[2027/28 From - Other reallocations]]","v":0},{"$f":"Dataset[[#This Row],[2028/29 From - Spending review Topic 1]]+Dataset[[#This Row],[2028/29 From - Spending review Topic 2]]+Dataset[[#This Row],[2028/29 From - Spending review Topic 3]]+Dataset[[#This Row],[2028/29 From - Spending review Topic 4]]+Dataset[[#This Row],[2028/29 From - Other reallocations]]","v":0},{"$f":"Dataset[[#This Row],[2029/30 From - Spending review Topic 1]]+Dataset[[#This Row],[2029/30 From - Spending review Topic 2]]+Dataset[[#This Row],[2029/30 From - Spending review Topic 3]]+Dataset[[#This Row],[2029/30 From - Spending review Topic 4]]+Dataset[[#This Row],[2029/30 From - Other reallocations]]","v":0},{"$f":"Dataset[[#This Row],[2027/28 To - Spending review Topic 1]]+Dataset[[#This Row],[2027/28 To - Spending review Topic 2]]+Dataset[[#This Row],[2027/28 To - Spending review Topic 3]]+Dataset[[#This Row],[2027/28 To - Spending review Topic 4]]+Dataset[[#This Row],[2027/28 To - Other reallocations]]","v":0},{"$f":"Dataset[[#This Row],[2028/29 To - Spending review Topic 1]]+Dataset[[#This Row],[2028/29 To - Spending review Topic 2]]+Dataset[[#This Row],[2028/29 To - Spending review Topic 3]]+Dataset[[#This Row],[2028/29 To - Spending review Topic 4]]+Dataset[[#This Row],[2028/29 To - Other reallocations]]","v":0},{"$f":"Dataset[[#This Row],[2029/30 To - Spending review Topic 1]]+Dataset[[#This Row],[2029/30 To - Spending review Topic 2]]+Dataset[[#This Row],[2029/30 To - Spending review Topic 3]]+Dataset[[#This Row],[2029/30 To - Spending review Topic 4]]+Dataset[[#This Row],[2029/30 To - Other reallocations]]","v":0},{"$f":"Dataset[[#This Row],[2027/28 Targeted savings]]+Dataset[[#This Row],[2027/28 From - Total]]","v":0},{"$f":"Dataset[[#This Row],[2028/29 Targeted savings]]+Dataset[[#This Row],[2028/29 From - Total]]","v":0},{"$f":"Dataset[[#This Row],[2029/30 Targeted savings]]+Dataset[[#This Row],[2029/30 From - Total]]","v":0},{"$f":"Dataset[[#This Row],[2026/27 Targeted savings]]","v":0},{"$f":"SUM(Dataset[[#This Row],[2027/28 Targeted savings]],Dataset[[#This Row],[2027/28 From - Total]],Dataset[[#This Row],[2027/28 To - Total]])","v":0},{"$f":"SUM(Dataset[[#This Row],[2028/29 Targeted savings]],Dataset[[#This Row],[2028/29 From - Total]],Dataset[[#This Row],[2028/29 To - Total]])","v":0},{"$f":"SUM(Dataset[[#This Row],[2029/30 Targeted savings]],Dataset[[#This Row],[2029/30 From - Total]],Dataset[[#This Row],[2029/30 To - Total]])","v":0},{"$f":"Dataset[[#This Row],[2026/27 Baseline]]+Dataset[[#This Row],[2026/27 Total change]]","v":0},{"$f":"Dataset[[#This Row],[2027/28 Baseline]]+Dataset[[#This Row],[2027/28 Total change]]","v":0},{"$f":"Dataset[[#This Row],[2028/29 Baseline]]+Dataset[[#This Row],[2028/29 Total change]]","v":0},{"$f":"Dataset[[#This Row],[2029/30 Baseline]]+Dataset[[#This Row],[2029/30 Total change]]","v":0}]
["NAT|Non-transfer item","30|Inventory: Farming supplies","2027_28","MTEC2027",30,1,4,32678,158,"30","01","04","032678","000158","30|01|04|000158","01","01","02","22","22","01|01|02|22|22","National","Communications and Digital Technologies","Administration","Corporate Services","Non-transfer item","Current","Current payments","Goods and services","Inventory: Farming supplies","Inventory: Farming supplies","Economic development","Economic regulation and infrastructure","NAT",0,0,0,0,0,0,0,0,0,0,0,null,null,null,null,null,null,null,null,null,null,null,null,null,null,null,null,null,null,null,null,null,null,null,null,null,null,null,null,null,null,null,null,null,null,{"$f":"Dataset[[#This Row],[2027/28 From - Spending review Topic 1]]+Dataset[[#This Row],[2027/28 From - Spending review Topic 2]]+Dataset[[#This Row],[2027/28 From - Spending review Topic 3]]+Dataset[[#This Row],[2027/28 From - Spending review Topic 4]]+Dataset[[#This Row],[2027/28 From - Other reallocations]]","v":0},{"$f":"Dataset[[#This Row],[2028/29 From - Spending review Topic 1]]+Dataset[[#This Row],[2028/29 From - Spending review Topic 2]]+Dataset[[#This Row],[2028/29 From - Spending review Topic 3]]+Dataset[[#This Row],[2028/29 From - Spending review Topic 4]]+Dataset[[#This Row],[2028/29 From - Other reallocations]]","v":0},{"$f":"Dataset[[#This Row],[2029/30 From - Spending review Topic 1]]+Dataset[[#This Row],[2029/30 From - Spending review Topic 2]]+Dataset[[#This Row],[2029/30 From - Spending review Topic 3]]+Dataset[[#This Row],[2029/30 From - Spending review Topic 4]]+Dataset[[#This Row],[2029/30 From - Other reallocations]]","v":0},{"$f":"Dataset[[#This Row],[2027/28 To - Spending review Topic 1]]+Dataset[[#This Row],[2027/28 To - Spending review Topic 2]]+Dataset[[#This Row],[2027/28 To - Spending review Topic 3]]+Dataset[[#This Row],[2027/28 To - Spending review Topic 4]]+Dataset[[#This Row],[2027/28 To - Other reallocations]]","v":0},{"$f":"Dataset[[#This Row],[2028/29 To - Spending review Topic 1]]+Dataset[[#This Row],[2028/29 To - Spending review Topic 2]]+Dataset[[#This Row],[2028/29 To - Spending review Topic 3]]+Dataset[[#This Row],[2028/29 To - Spending review Topic 4]]+Dataset[[#This Row],[2028/29 To - Other reallocations]]","v":0},{"$f":"Dataset[[#This Row],[2029/30 To - Spending review Topic 1]]+Dataset[[#This Row],[2029/30 To - Spending review Topic 2]]+Dataset[[#This Row],[2029/30 To - Spending review Topic 3]]+Dataset[[#This Row],[2029/30 To - Spending review Topic 4]]+Dataset[[#This Row],[2029/30 To - Other reallocations]]","v":0},{"$f":"Dataset[[#This Row],[2027/28 Targeted savings]]+Dataset[[#This Row],[2027/28 From - Total]]","v":0},{"$f":"Dataset[[#This Row],[2028/29 Targeted savings]]+Dataset[[#This Row],[2028/29 From - Total]]","v":0},{"$f":"Dataset[[#This Row],[2029/30 Targeted savings]]+Dataset[[#This Row],[2029/30 From - Total]]","v":0},{"$f":"Dataset[[#This Row],[2026/27 Targeted savings]]","v":0},{"$f":"SUM(Dataset[[#This Row],[2027/28 Targeted savings]],Dataset[[#This Row],[2027/28 From - Total]],Dataset[[#This Row],[2027/28 To - Total]])","v":0},{"$f":"SUM(Dataset[[#This Row],[2028/29 Targeted savings]],Dataset[[#This Row],[2028/29 From - Total]],Dataset[[#This Row],[2028/29 To - Total]])","v":0},{"$f":"SUM(Dataset[[#This Row],[2029/30 Targeted savings]],Dataset[[#This Row],[2029/30 From - Total]],Dataset[[#This Row],[2029/30 To - Total]])","v":0},{"$f":"Dataset[[#This Row],[2026/27 Baseline]]+Dataset[[#This Row],[2026/27 Total change]]","v":0},{"$f":"Dataset[[#This Row],[2027/28 Baseline]]+Dataset[[#This Row],[2027/28 Total change]]","v":0},{"$f":"Dataset[[#This Row],[2028/29 Baseline]]+Dataset[[#This Row],[2028/29 Total change]]","v":0},{"$f":"Dataset[[#This Row],[2029/30 Baseline]]+Dataset[[#This Row],[2029/30 Total change]]","v":0}]
["NAT|Non-transfer item","30|Inventory: Food and food supplies","2027_28","MTEC2027",30,1,4,32679,159,"30","01","04","032679","000159","30|01|04|000159","01","01","02","23","23","01|01|02|23|23","National","Communications and Digital Technologies","Administration","Corporate Services","Non-transfer item","Current","Current payments","Goods and services","Inventory: Food and food supplies","Inventory: Food and food supplies","Economic development","Economic regulation and infrastructure","NAT",0,0,0,0,0,0,0,0,0,0,0,null,null,null,null,null,null,null,null,null,null,null,null,null,null,null,null,null,null,null,null,null,null,null,null,null,null,null,null,null,null,null,null,null,null,{"$f":"Dataset[[#This Row],[2027/28 From - Spending review Topic 1]]+Dataset[[#This Row],[2027/28 From - Spending review Topic 2]]+Dataset[[#This Row],[2027/28 From - Spending review Topic 3]]+Dataset[[#This Row],[2027/28 From - Spending review Topic 4]]+Dataset[[#This Row],[2027/28 From - Other reallocations]]","v":0},{"$f":"Dataset[[#This Row],[2028/29 From - Spending review Topic 1]]+Dataset[[#This Row],[2028/29 From - Spending review Topic 2]]+Dataset[[#This Row],[2028/29 From - Spending review Topic 3]]+Dataset[[#This Row],[2028/29 From - Spending review Topic 4]]+Dataset[[#This Row],[2028/29 From - Other reallocations]]","v":0},{"$f":"Dataset[[#This Row],[2029/30 From - Spending review Topic 1]]+Dataset[[#This Row],[2029/30 From - Spending review Topic 2]]+Dataset[[#This Row],[2029/30 From - Spending review Topic 3]]+Dataset[[#This Row],[2029/30 From - Spending review Topic 4]]+Dataset[[#This Row],[2029/30 From - Other reallocations]]","v":0},{"$f":"Dataset[[#This Row],[2027/28 To - Spending review Topic 1]]+Dataset[[#This Row],[2027/28 To - Spending review Topic 2]]+Dataset[[#This Row],[2027/28 To - Spending review Topic 3]]+Dataset[[#This Row],[2027/28 To - Spending review Topic 4]]+Dataset[[#This Row],[2027/28 To - Other reallocations]]","v":0},{"$f":"Dataset[[#This Row],[2028/29 To - Spending review Topic 1]]+Dataset[[#This Row],[2028/29 To - Spending review Topic 2]]+Dataset[[#This Row],[2028/29 To - Spending review Topic 3]]+Dataset[[#This Row],[2028/29 To - Spending review Topic 4]]+Dataset[[#This Row],[2028/29 To - Other reallocations]]","v":0},{"$f":"Dataset[[#This Row],[2029/30 To - Spending review Topic 1]]+Dataset[[#This Row],[2029/30 To - Spending review Topic 2]]+Dataset[[#This Row],[2029/30 To - Spending review Topic 3]]+Dataset[[#This Row],[2029/30 To - Spending review Topic 4]]+Dataset[[#This Row],[2029/30 To - Other reallocations]]","v":0},{"$f":"Dataset[[#This Row],[2027/28 Targeted savings]]+Dataset[[#This Row],[2027/28 From - Total]]","v":0},{"$f":"Dataset[[#This Row],[2028/29 Targeted savings]]+Dataset[[#This Row],[2028/29 From - Total]]","v":0},{"$f":"Dataset[[#This Row],[2029/30 Targeted savings]]+Dataset[[#This Row],[2029/30 From - Total]]","v":0},{"$f":"Dataset[[#This Row],[2026/27 Targeted savings]]","v":0},{"$f":"SUM(Dataset[[#This Row],[2027/28 Targeted savings]],Dataset[[#This Row],[2027/28 From - Total]],Dataset[[#This Row],[2027/28 To - Total]])","v":0},{"$f":"SUM(Dataset[[#This Row],[2028/29 Targeted savings]],Dataset[[#This Row],[2028/29 From - Total]],Dataset[[#This Row],[2028/29 To - Total]])","v":0},{"$f":"SUM(Dataset[[#This Row],[2029/30 Targeted savings]],Dataset[[#This Row],[2029/30 From - Total]],Dataset[[#This Row],[2029/30 To - Total]])","v":0},{"$f":"Dataset[[#This Row],[2026/27 Baseline]]+Dataset[[#This Row],[2026/27 Total change]]","v":0},{"$f":"Dataset[[#This Row],[2027/28 Baseline]]+Dataset[[#This Row],[2027/28 Total change]]","v":0},{"$f":"Dataset[[#This Row],[2028/29 Baseline]]+Dataset[[#This Row],[2028/29 Total change]]","v":0},{"$f":"Dataset[[#This Row],[2029/30 Baseline]]+Dataset[[#This Row],[2029/30 Total change]]","v":0}]
["NAT|Non-transfer item","30|Inventory: Fuel, oil and gas","2027_28","MTEC2027",30,1,4,32680,160,"30","01","04","032680","000160","30|01|04|000160","01","01","02","24","24","01|01|02|24|24","National","Communications and Digital Technologies","Administration","Corporate Services","Non-transfer item","Current","Current payments","Goods and services","Inventory: Fuel, oil and gas","Inventory: Fuel, oil and gas","Economic development","Economic regulation and infrastructure","NAT",0,0,0,0,0,0,0,0,0,0,0,null,null,null,null,null,null,null,null,null,null,null,null,null,null,null,null,null,null,null,null,null,null,null,null,null,null,null,null,null,null,null,null,null,null,{"$f":"Dataset[[#This Row],[2027/28 From - Spending review Topic 1]]+Dataset[[#This Row],[2027/28 From - Spending review Topic 2]]+Dataset[[#This Row],[2027/28 From - Spending review Topic 3]]+Dataset[[#This Row],[2027/28 From - Spending review Topic 4]]+Dataset[[#This Row],[2027/28 From - Other reallocations]]","v":0},{"$f":"Dataset[[#This Row],[2028/29 From - Spending review Topic 1]]+Dataset[[#This Row],[2028/29 From - Spending review Topic 2]]+Dataset[[#This Row],[2028/29 From - Spending review Topic 3]]+Dataset[[#This Row],[2028/29 From - Spending review Topic 4]]+Dataset[[#This Row],[2028/29 From - Other reallocations]]","v":0},{"$f":"Dataset[[#This Row],[2029/30 From - Spending review Topic 1]]+Dataset[[#This Row],[2029/30 From - Spending review Topic 2]]+Dataset[[#This Row],[2029/30 From - Spending review Topic 3]]+Dataset[[#This Row],[2029/30 From - Spending review Topic 4]]+Dataset[[#This Row],[2029/30 From - Other reallocations]]","v":0},{"$f":"Dataset[[#This Row],[2027/28 To - Spending review Topic 1]]+Dataset[[#This Row],[2027/28 To - Spending review Topic 2]]+Dataset[[#This Row],[2027/28 To - Spending review Topic 3]]+Dataset[[#This Row],[2027/28 To - Spending review Topic 4]]+Dataset[[#This Row],[2027/28 To - Other reallocations]]","v":0},{"$f":"Dataset[[#This Row],[2028/29 To - Spending review Topic 1]]+Dataset[[#This Row],[2028/29 To - Spending review Topic 2]]+Dataset[[#This Row],[2028/29 To - Spending review Topic 3]]+Dataset[[#This Row],[2028/29 To - Spending review Topic 4]]+Dataset[[#This Row],[2028/29 To - Other reallocations]]","v":0},{"$f":"Dataset[[#This Row],[2029/30 To - Spending review Topic 1]]+Dataset[[#This Row],[2029/30 To - Spending review Topic 2]]+Dataset[[#This Row],[2029/30 To - Spending review Topic 3]]+Dataset[[#This Row],[2029/30 To - Spending review Topic 4]]+Dataset[[#This Row],[2029/30 To - Other reallocations]]","v":0},{"$f":"Dataset[[#This Row],[2027/28 Targeted savings]]+Dataset[[#This Row],[2027/28 From - Total]]","v":0},{"$f":"Dataset[[#This Row],[2028/29 Targeted savings]]+Dataset[[#This Row],[2028/29 From - Total]]","v":0},{"$f":"Dataset[[#This Row],[2029/30 Targeted savings]]+Dataset[[#This Row],[2029/30 From - Total]]","v":0},{"$f":"Dataset[[#This Row],[2026/27 Targeted savings]]","v":0},{"$f":"SUM(Dataset[[#This Row],[2027/28 Targeted savings]],Dataset[[#This Row],[2027/28 From - Total]],Dataset[[#This Row],[2027/28 To - Total]])","v":0},{"$f":"SUM(Dataset[[#This Row],[2028/29 Targeted savings]],Dataset[[#This Row],[2028/29 From - Total]],Dataset[[#This Row],[2028/29 To - Total]])","v":0},{"$f":"SUM(Dataset[[#This Row],[2029/30 Targeted savings]],Dataset[[#This Row],[2029/30 From - Total]],Dataset[[#This Row],[2029/30 To - Total]])","v":0},{"$f":"Dataset[[#This Row],[2026/27 Baseline]]+Dataset[[#This Row],[2026/27 Total change]]","v":0},{"$f":"Dataset[[#This Row],[2027/28 Baseline]]+Dataset[[#This Row],[2027/28 Total change]]","v":0},{"$f":"Dataset[[#This Row],[2028/29 Baseline]]+Dataset[[#This Row],[2028/29 Total change]]","v":0},{"$f":"Dataset[[#This Row],[2029/30 Baseline]]+Dataset[[#This Row],[2029/30 Total change]]","v":0}]
["NAT|Non-transfer item","30|Inventory: Learner and teacher support material","2027_28","MTEC2027",30,1,4,32681,161,"30","01","04","032681","000161","30|01|04|000161","01","01","02","25","25","01|01|02|25|25","National","Communications and Digital Technologies","Administration","Corporate Services","Non-transfer item","Current","Current payments","Goods and services","Inventory: Learner and teacher support material","Inventory: Learner and teacher support material","Economic development","Economic regulation and infrastructure","NAT",0,0,0,0,0,0,0,0,0,0,0,null,null,null,null,null,null,null,null,null,null,null,null,null,null,null,null,null,null,null,null,null,null,null,null,null,null,null,null,null,null,null,null,null,null,{"$f":"Dataset[[#This Row],[2027/28 From - Spending review Topic 1]]+Dataset[[#This Row],[2027/28 From - Spending review Topic 2]]+Dataset[[#This Row],[2027/28 From - Spending review Topic 3]]+Dataset[[#This Row],[2027/28 From - Spending review Topic 4]]+Dataset[[#This Row],[2027/28 From - Other reallocations]]","v":0},{"$f":"Dataset[[#This Row],[2028/29 From - Spending review Topic 1]]+Dataset[[#This Row],[2028/29 From - Spending review Topic 2]]+Dataset[[#This Row],[2028/29 From - Spending review Topic 3]]+Dataset[[#This Row],[2028/29 From - Spending review Topic 4]]+Dataset[[#This Row],[2028/29 From - Other reallocations]]","v":0},{"$f":"Dataset[[#This Row],[2029/30 From - Spending review Topic 1]]+Dataset[[#This Row],[2029/30 From - Spending review Topic 2]]+Dataset[[#This Row],[2029/30 From - Spending review Topic 3]]+Dataset[[#This Row],[2029/30 From - Spending review Topic 4]]+Dataset[[#This Row],[2029/30 From - Other reallocations]]","v":0},{"$f":"Dataset[[#This Row],[2027/28 To - Spending review Topic 1]]+Dataset[[#This Row],[2027/28 To - Spending review Topic 2]]+Dataset[[#This Row],[2027/28 To - Spending review Topic 3]]+Dataset[[#This Row],[2027/28 To - Spending review Topic 4]]+Dataset[[#This Row],[2027/28 To - Other reallocations]]","v":0},{"$f":"Dataset[[#This Row],[2028/29 To - Spending review Topic 1]]+Dataset[[#This Row],[2028/29 To - Spending review Topic 2]]+Dataset[[#This Row],[2028/29 To - Spending review Topic 3]]+Dataset[[#This Row],[2028/29 To - Spending review Topic 4]]+Dataset[[#This Row],[2028/29 To - Other reallocations]]","v":0},{"$f":"Dataset[[#This Row],[2029/30 To - Spending review Topic 1]]+Dataset[[#This Row],[2029/30 To - Spending review Topic 2]]+Dataset[[#This Row],[2029/30 To - Spending review Topic 3]]+Dataset[[#This Row],[2029/30 To - Spending review Topic 4]]+Dataset[[#This Row],[2029/30 To - Other reallocations]]","v":0},{"$f":"Dataset[[#This Row],[2027/28 Targeted savings]]+Dataset[[#This Row],[2027/28 From - Total]]","v":0},{"$f":"Dataset[[#This Row],[2028/29 Targeted savings]]+Dataset[[#This Row],[2028/29 From - Total]]","v":0},{"$f":"Dataset[[#This Row],[2029/30 Targeted savings]]+Dataset[[#This Row],[2029/30 From - Total]]","v":0},{"$f":"Dataset[[#This Row],[2026/27 Targeted savings]]","v":0},{"$f":"SUM(Dataset[[#This Row],[2027/28 Targeted savings]],Dataset[[#This Row],[2027/28 From - Total]],Dataset[[#This Row],[2027/28 To - Total]])","v":0},{"$f":"SUM(Dataset[[#This Row],[2028/29 Targeted savings]],Dataset[[#This Row],[2028/29 From - Total]],Dataset[[#This Row],[2028/29 To - Total]])","v":0},{"$f":"SUM(Dataset[[#This Row],[2029/30 Targeted savings]],Dataset[[#This Row],[2029/30 From - Total]],Dataset[[#This Row],[2029/30 To - Total]])","v":0},{"$f":"Dataset[[#This Row],[2026/27 Baseline]]+Dataset[[#This Row],[2026/27 Total change]]","v":0},{"$f":"Dataset[[#This Row],[2027/28 Baseline]]+Dataset[[#This Row],[2027/28 Total change]]","v":0},{"$f":"Dataset[[#This Row],[2028/29 Baseline]]+Dataset[[#This Row],[2028/29 Total change]]","v":0},{"$f":"Dataset[[#This Row],[2029/30 Baseline]]+Dataset[[#This Row],[2029/30 Total change]]","v":0}]
["NAT|Non-transfer item","30|Inventory: Materials and supplies","2027_28","MTEC2027",30,1,4,32682,162,"30","01","04","032682","000162","30|01|04|000162","01","01","02","26","26","01|01|02|26|26","National","Communications and Digital Technologies","Administration","Corporate Services","Non-transfer item","Current","Current payments","Goods and services","Inventory: Materials and supplies","Inventory: Materials and supplies","Economic development","Economic regulation and infrastructure","NAT",0,0,0,0,0,0,0,0,0,0,0,null,null,null,null,null,null,null,null,null,null,null,null,null,null,null,null,null,null,null,null,null,null,null,null,null,null,null,null,null,null,null,null,null,null,{"$f":"Dataset[[#This Row],[2027/28 From - Spending review Topic 1]]+Dataset[[#This Row],[2027/28 From - Spending review Topic 2]]+Dataset[[#This Row],[2027/28 From - Spending review Topic 3]]+Dataset[[#This Row],[2027/28 From - Spending review Topic 4]]+Dataset[[#This Row],[2027/28 From - Other reallocations]]","v":0},{"$f":"Dataset[[#This Row],[2028/29 From - Spending review Topic 1]]+Dataset[[#This Row],[2028/29 From - Spending review Topic 2]]+Dataset[[#This Row],[2028/29 From - Spending review Topic 3]]+Dataset[[#This Row],[2028/29 From - Spending review Topic 4]]+Dataset[[#This Row],[2028/29 From - Other reallocations]]","v":0},{"$f":"Dataset[[#This Row],[2029/30 From - Spending review Topic 1]]+Dataset[[#This Row],[2029/30 From - Spending review Topic 2]]+Dataset[[#This Row],[2029/30 From - Spending review Topic 3]]+Dataset[[#This Row],[2029/30 From - Spending review Topic 4]]+Dataset[[#This Row],[2029/30 From - Other reallocations]]","v":0},{"$f":"Dataset[[#This Row],[2027/28 To - Spending review Topic 1]]+Dataset[[#This Row],[2027/28 To - Spending review Topic 2]]+Dataset[[#This Row],[2027/28 To - Spending review Topic 3]]+Dataset[[#This Row],[2027/28 To - Spending review Topic 4]]+Dataset[[#This Row],[2027/28 To - Other reallocations]]","v":0},{"$f":"Dataset[[#This Row],[2028/29 To - Spending review Topic 1]]+Dataset[[#This Row],[2028/29 To - Spending review Topic 2]]+Dataset[[#This Row],[2028/29 To - Spending review Topic 3]]+Dataset[[#This Row],[2028/29 To - Spending review Topic 4]]+Dataset[[#This Row],[2028/29 To - Other reallocations]]","v":0},{"$f":"Dataset[[#This Row],[2029/30 To - Spending review Topic 1]]+Dataset[[#This Row],[2029/30 To - Spending review Topic 2]]+Dataset[[#This Row],[2029/30 To - Spending review Topic 3]]+Dataset[[#This Row],[2029/30 To - Spending review Topic 4]]+Dataset[[#This Row],[2029/30 To - Other reallocations]]","v":0},{"$f":"Dataset[[#This Row],[2027/28 Targeted savings]]+Dataset[[#This Row],[2027/28 From - Total]]","v":0},{"$f":"Dataset[[#This Row],[2028/29 Targeted savings]]+Dataset[[#This Row],[2028/29 From - Total]]","v":0},{"$f":"Dataset[[#This Row],[2029/30 Targeted savings]]+Dataset[[#This Row],[2029/30 From - Total]]","v":0},{"$f":"Dataset[[#This Row],[2026/27 Targeted savings]]","v":0},{"$f":"SUM(Dataset[[#This Row],[2027/28 Targeted savings]],Dataset[[#This Row],[2027/28 From - Total]],Dataset[[#This Row],[2027/28 To - Total]])","v":0},{"$f":"SUM(Dataset[[#This Row],[2028/29 Targeted savings]],Dataset[[#This Row],[2028/29 From - Total]],Dataset[[#This Row],[2028/29 To - Total]])","v":0},{"$f":"SUM(Dataset[[#This Row],[2029/30 Targeted savings]],Dataset[[#This Row],[2029/30 From - Total]],Dataset[[#This Row],[2029/30 To - Total]])","v":0},{"$f":"Dataset[[#This Row],[2026/27 Baseline]]+Dataset[[#This Row],[2026/27 Total change]]","v":0},{"$f":"Dataset[[#This Row],[2027/28 Baseline]]+Dataset[[#This Row],[2027/28 Total change]]","v":0},{"$f":"Dataset[[#This Row],[2028/29 Baseline]]+Dataset[[#This Row],[2028/29 Total change]]","v":0},{"$f":"Dataset[[#This Row],[2029/30 Baseline]]+Dataset[[#This Row],[2029/30 Total change]]","v":0}]
["NAT|Non-transfer item","30|Inventory: Medical supplies","2027_28","MTEC2027",30,1,4,32683,163,"30","01","04","032683","000163","30|01|04|000163","01","01","02","27","27","01|01|02|27|27","National","Communications and Digital Technologies","Administration","Corporate Services","Non-transfer item","Current","Current payments","Goods and services","Inventory: Medical supplies","Inventory: Medical supplies","Economic development","Economic regulation and infrastructure","NAT",0,0,0,0,0,0,0,0,0,0,0,null,null,null,null,null,null,null,null,null,null,null,null,null,null,null,null,null,null,null,null,null,null,null,null,null,null,null,null,null,null,null,null,null,null,{"$f":"Dataset[[#This Row],[2027/28 From - Spending review Topic 1]]+Dataset[[#This Row],[2027/28 From - Spending review Topic 2]]+Dataset[[#This Row],[2027/28 From - Spending review Topic 3]]+Dataset[[#This Row],[2027/28 From - Spending review Topic 4]]+Dataset[[#This Row],[2027/28 From - Other reallocations]]","v":0},{"$f":"Dataset[[#This Row],[2028/29 From - Spending review Topic 1]]+Dataset[[#This Row],[2028/29 From - Spending review Topic 2]]+Dataset[[#This Row],[2028/29 From - Spending review Topic 3]]+Dataset[[#This Row],[2028/29 From - Spending review Topic 4]]+Dataset[[#This Row],[2028/29 From - Other reallocations]]","v":0},{"$f":"Dataset[[#This Row],[2029/30 From - Spending review Topic 1]]+Dataset[[#This Row],[2029/30 From - Spending review Topic 2]]+Dataset[[#This Row],[2029/30 From - Spending review Topic 3]]+Dataset[[#This Row],[2029/30 From - Spending review Topic 4]]+Dataset[[#This Row],[2029/30 From - Other reallocations]]","v":0},{"$f":"Dataset[[#This Row],[2027/28 To - Spending review Topic 1]]+Dataset[[#This Row],[2027/28 To - Spending review Topic 2]]+Dataset[[#This Row],[2027/28 To - Spending review Topic 3]]+Dataset[[#This Row],[2027/28 To - Spending review Topic 4]]+Dataset[[#This Row],[2027/28 To - Other reallocations]]","v":0},{"$f":"Dataset[[#This Row],[2028/29 To - Spending review Topic 1]]+Dataset[[#This Row],[2028/29 To - Spending review Topic 2]]+Dataset[[#This Row],[2028/29 To - Spending review Topic 3]]+Dataset[[#This Row],[2028/29 To - Spending review Topic 4]]+Dataset[[#This Row],[2028/29 To - Other reallocations]]","v":0},{"$f":"Dataset[[#This Row],[2029/30 To - Spending review Topic 1]]+Dataset[[#This Row],[2029/30 To - Spending review Topic 2]]+Dataset[[#This Row],[2029/30 To - Spending review Topic 3]]+Dataset[[#This Row],[2029/30 To - Spending review Topic 4]]+Dataset[[#This Row],[2029/30 To - Other reallocations]]","v":0},{"$f":"Dataset[[#This Row],[2027/28 Targeted savings]]+Dataset[[#This Row],[2027/28 From - Total]]","v":0},{"$f":"Dataset[[#This Row],[2028/29 Targeted savings]]+Dataset[[#This Row],[2028/29 From - Total]]","v":0},{"$f":"Dataset[[#This Row],[2029/30 Targeted savings]]+Dataset[[#This Row],[2029/30 From - Total]]","v":0},{"$f":"Dataset[[#This Row],[2026/27 Targeted savings]]","v":0},{"$f":"SUM(Dataset[[#This Row],[2027/28 Targeted savings]],Dataset[[#This Row],[2027/28 From - Total]],Dataset[[#This Row],[2027/28 To - Total]])","v":0},{"$f":"SUM(Dataset[[#This Row],[2028/29 Targeted savings]],Dataset[[#This Row],[2028/29 From - Total]],Dataset[[#This Row],[2028/29 To - Total]])","v":0},{"$f":"SUM(Dataset[[#This Row],[2029/30 Targeted savings]],Dataset[[#This Row],[2029/30 From - Total]],Dataset[[#This Row],[2029/30 To - Total]])","v":0},{"$f":"Dataset[[#This Row],[2026/27 Baseline]]+Dataset[[#This Row],[2026/27 Total change]]","v":0},{"$f":"Dataset[[#This Row],[2027/28 Baseline]]+Dataset[[#This Row],[2027/28 Total change]]","v":0},{"$f":"Dataset[[#This Row],[2028/29 Baseline]]+Dataset[[#This Row],[2028/29 Total change]]","v":0},{"$f":"Dataset[[#This Row],[2029/30 Baseline]]+Dataset[[#This Row],[2029/30 Total change]]","v":0}]
["NAT|Non-transfer item","30|Inventory: Medicine","2027_28","MTEC2027",30,1,4,32684,164,"30","01","04","032684","000164","30|01|04|000164","01","01","02","28","28","01|01|02|28|28","National","Communications and Digital Technologies","Administration","Corporate Services","Non-transfer item","Current","Current payments","Goods and services","Inventory: Medicine","Inventory: Medicine","Economic development","Economic regulation and infrastructure","NAT",0,0,0,0,0,0,0,0,0,0,0,null,null,null,null,null,null,null,null,null,null,null,null,null,null,null,null,null,null,null,null,null,null,null,null,null,null,null,null,null,null,null,null,null,null,{"$f":"Dataset[[#This Row],[2027/28 From - Spending review Topic 1]]+Dataset[[#This Row],[2027/28 From - Spending review Topic 2]]+Dataset[[#This Row],[2027/28 From - Spending review Topic 3]]+Dataset[[#This Row],[2027/28 From - Spending review Topic 4]]+Dataset[[#This Row],[2027/28 From - Other reallocations]]","v":0},{"$f":"Dataset[[#This Row],[2028/29 From - Spending review Topic 1]]+Dataset[[#This Row],[2028/29 From - Spending review Topic 2]]+Dataset[[#This Row],[2028/29 From - Spending review Topic 3]]+Dataset[[#This Row],[2028/29 From - Spending review Topic 4]]+Dataset[[#This Row],[2028/29 From - Other reallocations]]","v":0},{"$f":"Dataset[[#This Row],[2029/30 From - Spending review Topic 1]]+Dataset[[#This Row],[2029/30 From - Spending review Topic 2]]+Dataset[[#This Row],[2029/30 From - Spending review Topic 3]]+Dataset[[#This Row],[2029/30 From - Spending review Topic 4]]+Dataset[[#This Row],[2029/30 From - Other reallocations]]","v":0},{"$f":"Dataset[[#This Row],[2027/28 To - Spending review Topic 1]]+Dataset[[#This Row],[2027/28 To - Spending review Topic 2]]+Dataset[[#This Row],[2027/28 To - Spending review Topic 3]]+Dataset[[#This Row],[2027/28 To - Spending review Topic 4]]+Dataset[[#This Row],[2027/28 To - Other reallocations]]","v":0},{"$f":"Dataset[[#This Row],[2028/29 To - Spending review Topic 1]]+Dataset[[#This Row],[2028/29 To - Spending review Topic 2]]+Dataset[[#This Row],[2028/29 To - Spending review Topic 3]]+Dataset[[#This Row],[2028/29 To - Spending review Topic 4]]+Dataset[[#This Row],[2028/29 To - Other reallocations]]","v":0},{"$f":"Dataset[[#This Row],[2029/30 To - Spending review Topic 1]]+Dataset[[#This Row],[2029/30 To - Spending review Topic 2]]+Dataset[[#This Row],[2029/30 To - Spending review Topic 3]]+Dataset[[#This Row],[2029/30 To - Spending review Topic 4]]+Dataset[[#This Row],[2029/30 To - Other reallocations]]","v":0},{"$f":"Dataset[[#This Row],[2027/28 Targeted savings]]+Dataset[[#This Row],[2027/28 From - Total]]","v":0},{"$f":"Dataset[[#This Row],[2028/29 Targeted savings]]+Dataset[[#This Row],[2028/29 From - Total]]","v":0},{"$f":"Dataset[[#This Row],[2029/30 Targeted savings]]+Dataset[[#This Row],[2029/30 From - Total]]","v":0},{"$f":"Dataset[[#This Row],[2026/27 Targeted savings]]","v":0},{"$f":"SUM(Dataset[[#This Row],[2027/28 Targeted savings]],Dataset[[#This Row],[2027/28 From - Total]],Dataset[[#This Row],[2027/28 To - Total]])","v":0},{"$f":"SUM(Dataset[[#This Row],[2028/29 Targeted savings]],Dataset[[#This Row],[2028/29 From - Total]],Dataset[[#This Row],[2028/29 To - Total]])","v":0},{"$f":"SUM(Dataset[[#This Row],[2029/30 Targeted savings]],Dataset[[#This Row],[2029/30 From - Total]],Dataset[[#This Row],[2029/30 To - Total]])","v":0},{"$f":"Dataset[[#This Row],[2026/27 Baseline]]+Dataset[[#This Row],[2026/27 Total change]]","v":0},{"$f":"Dataset[[#This Row],[2027/28 Baseline]]+Dataset[[#This Row],[2027/28 Total change]]","v":0},{"$f":"Dataset[[#This Row],[2028/29 Baseline]]+Dataset[[#This Row],[2028/29 Total change]]","v":0},{"$f":"Dataset[[#This Row],[2029/30 Baseline]]+Dataset[[#This Row],[2029/30 Total change]]","v":0}]
["NAT|Non-transfer item","30|Medsas inventory interface","2027_28","MTEC2027",30,1,4,32685,165,"30","01","04","032685","000165","30|01|04|000165","01","01","02","29","29","01|01|02|29|29","National","Communications and Digital Technologies","Administration","Corporate Services","Non-transfer item","Current","Current payments","Goods and services","Medsas inventory interface","Medsas inventory interface","Economic development","Economic regulation and infrastructure","NAT",0,0,0,0,0,0,0,0,0,0,0,null,null,null,null,null,null,null,null,null,null,null,null,null,null,null,null,null,null,null,null,null,null,null,null,null,null,null,null,null,null,null,null,null,null,{"$f":"Dataset[[#This Row],[2027/28 From - Spending review Topic 1]]+Dataset[[#This Row],[2027/28 From - Spending review Topic 2]]+Dataset[[#This Row],[2027/28 From - Spending review Topic 3]]+Dataset[[#This Row],[2027/28 From - Spending review Topic 4]]+Dataset[[#This Row],[2027/28 From - Other reallocations]]","v":0},{"$f":"Dataset[[#This Row],[2028/29 From - Spending review Topic 1]]+Dataset[[#This Row],[2028/29 From - Spending review Topic 2]]+Dataset[[#This Row],[2028/29 From - Spending review Topic 3]]+Dataset[[#This Row],[2028/29 From - Spending review Topic 4]]+Dataset[[#This Row],[2028/29 From - Other reallocations]]","v":0},{"$f":"Dataset[[#This Row],[2029/30 From - Spending review Topic 1]]+Dataset[[#This Row],[2029/30 From - Spending review Topic 2]]+Dataset[[#This Row],[2029/30 From - Spending review Topic 3]]+Dataset[[#This Row],[2029/30 From - Spending review Topic 4]]+Dataset[[#This Row],[2029/30 From - Other reallocations]]","v":0},{"$f":"Dataset[[#This Row],[2027/28 To - Spending review Topic 1]]+Dataset[[#This Row],[2027/28 To - Spending review Topic 2]]+Dataset[[#This Row],[2027/28 To - Spending review Topic 3]]+Dataset[[#This Row],[2027/28 To - Spending review Topic 4]]+Dataset[[#This Row],[2027/28 To - Other reallocations]]","v":0},{"$f":"Dataset[[#This Row],[2028/29 To - Spending review Topic 1]]+Dataset[[#This Row],[2028/29 To - Spending review Topic 2]]+Dataset[[#This Row],[2028/29 To - Spending review Topic 3]]+Dataset[[#This Row],[2028/29 To - Spending review Topic 4]]+Dataset[[#This Row],[2028/29 To - Other reallocations]]","v":0},{"$f":"Dataset[[#This Row],[2029/30 To - Spending review Topic 1]]+Dataset[[#This Row],[2029/30 To - Spending review Topic 2]]+Dataset[[#This Row],[2029/30 To - Spending review Topic 3]]+Dataset[[#This Row],[2029/30 To - Spending review Topic 4]]+Dataset[[#This Row],[2029/30 To - Other reallocations]]","v":0},{"$f":"Dataset[[#This Row],[2027/28 Targeted savings]]+Dataset[[#This Row],[2027/28 From - Total]]","v":0},{"$f":"Dataset[[#This Row],[2028/29 Targeted savings]]+Dataset[[#This Row],[2028/29 From - Total]]","v":0},{"$f":"Dataset[[#This Row],[2029/30 Targeted savings]]+Dataset[[#This Row],[2029/30 From - Total]]","v":0},{"$f":"Dataset[[#This Row],[2026/27 Targeted savings]]","v":0},{"$f":"SUM(Dataset[[#This Row],[2027/28 Targeted savings]],Dataset[[#This Row],[2027/28 From - Total]],Dataset[[#This Row],[2027/28 To - Total]])","v":0},{"$f":"SUM(Dataset[[#This Row],[2028/29 Targeted savings]],Dataset[[#This Row],[2028/29 From - Total]],Dataset[[#This Row],[2028/29 To - Total]])","v":0},{"$f":"SUM(Dataset[[#This Row],[2029/30 Targeted savings]],Dataset[[#This Row],[2029/30 From - Total]],Dataset[[#This Row],[2029/30 To - Total]])","v":0},{"$f":"Dataset[[#This Row],[2026/27 Baseline]]+Dataset[[#This Row],[2026/27 Total change]]","v":0},{"$f":"Dataset[[#This Row],[2027/28 Baseline]]+Dataset[[#This Row],[2027/28 Total change]]","v":0},{"$f":"Dataset[[#This Row],[2028/29 Baseline]]+Dataset[[#This Row],[2028/29 Total change]]","v":0},{"$f":"Dataset[[#This Row],[2029/30 Baseline]]+Dataset[[#This Row],[2029/30 Total change]]","v":0}]
["NAT|Non-transfer item","30|Inventory: Other supplies","2027_28","MTEC2027",30,1,4,32686,166,"30","01","04","032686","000166","30|01|04|000166","01","01","02","30","30","01|01|02|30|30","National","Communications and Digital Technologies","Administration","Corporate Services","Non-transfer item","Current","Current payments","Goods and services","Inventory: Other supplies","Inventory: Other supplies","Economic development","Economic regulation and infrastructure","NAT",0,0,0,0,0,0,0,0,0,0,0,null,null,null,null,null,null,null,null,null,null,null,null,null,null,null,null,null,null,null,null,null,null,null,null,null,null,null,null,null,null,null,null,null,null,{"$f":"Dataset[[#This Row],[2027/28 From - Spending review Topic 1]]+Dataset[[#This Row],[2027/28 From - Spending review Topic 2]]+Dataset[[#This Row],[2027/28 From - Spending review Topic 3]]+Dataset[[#This Row],[2027/28 From - Spending review Topic 4]]+Dataset[[#This Row],[2027/28 From - Other reallocations]]","v":0},{"$f":"Dataset[[#This Row],[2028/29 From - Spending review Topic 1]]+Dataset[[#This Row],[2028/29 From - Spending review Topic 2]]+Dataset[[#This Row],[2028/29 From - Spending review Topic 3]]+Dataset[[#This Row],[2028/29 From - Spending review Topic 4]]+Dataset[[#This Row],[2028/29 From - Other reallocations]]","v":0},{"$f":"Dataset[[#This Row],[2029/30 From - Spending review Topic 1]]+Dataset[[#This Row],[2029/30 From - Spending review Topic 2]]+Dataset[[#This Row],[2029/30 From - Spending review Topic 3]]+Dataset[[#This Row],[2029/30 From - Spending review Topic 4]]+Dataset[[#This Row],[2029/30 From - Other reallocations]]","v":0},{"$f":"Dataset[[#This Row],[2027/28 To - Spending review Topic 1]]+Dataset[[#This Row],[2027/28 To - Spending review Topic 2]]+Dataset[[#This Row],[2027/28 To - Spending review Topic 3]]+Dataset[[#This Row],[2027/28 To - Spending review Topic 4]]+Dataset[[#This Row],[2027/28 To - Other reallocations]]","v":0},{"$f":"Dataset[[#This Row],[2028/29 To - Spending review Topic 1]]+Dataset[[#This Row],[2028/29 To - Spending review Topic 2]]+Dataset[[#This Row],[2028/29 To - Spending review Topic 3]]+Dataset[[#This Row],[2028/29 To - Spending review Topic 4]]+Dataset[[#This Row],[2028/29 To - Other reallocations]]","v":0},{"$f":"Dataset[[#This Row],[2029/30 To - Spending review Topic 1]]+Dataset[[#This Row],[2029/30 To - Spending review Topic 2]]+Dataset[[#This Row],[2029/30 To - Spending review Topic 3]]+Dataset[[#This Row],[2029/30 To - Spending review Topic 4]]+Dataset[[#This Row],[2029/30 To - Other reallocations]]","v":0},{"$f":"Dataset[[#This Row],[2027/28 Targeted savings]]+Dataset[[#This Row],[2027/28 From - Total]]","v":0},{"$f":"Dataset[[#This Row],[2028/29 Targeted savings]]+Dataset[[#This Row],[2028/29 From - Total]]","v":0},{"$f":"Dataset[[#This Row],[2029/30 Targeted savings]]+Dataset[[#This Row],[2029/30 From - Total]]","v":0},{"$f":"Dataset[[#This Row],[2026/27 Targeted savings]]","v":0},{"$f":"SUM(Dataset[[#This Row],[2027/28 Targeted savings]],Dataset[[#This Row],[2027/28 From - Total]],Dataset[[#This Row],[2027/28 To - Total]])","v":0},{"$f":"SUM(Dataset[[#This Row],[2028/29 Targeted savings]],Dataset[[#This Row],[2028/29 From - Total]],Dataset[[#This Row],[2028/29 To - Total]])","v":0},{"$f":"SUM(Dataset[[#This Row],[2029/30 Targeted savings]],Dataset[[#This Row],[2029/30 From - Total]],Dataset[[#This Row],[2029/30 To - Total]])","v":0},{"$f":"Dataset[[#This Row],[2026/27 Baseline]]+Dataset[[#This Row],[2026/27 Total change]]","v":0},{"$f":"Dataset[[#This Row],[2027/28 Baseline]]+Dataset[[#This Row],[2027/28 Total change]]","v":0},{"$f":"Dataset[[#This Row],[2028/29 Baseline]]+Dataset[[#This Row],[2028/29 Total change]]","v":0},{"$f":"Dataset[[#This Row],[2029/30 Baseline]]+Dataset[[#This Row],[2029/30 Total change]]","v":0}]
["NAT|Non-transfer","30|Consumable supplies","2027_28","MTEC2027",30,1,4,32687,167,"30","01","04","032687","000167","30|01|04|000167","01","01","02","31","31","01|01|02|31|31","National","Communications and Digital Technologies","Administration","Financial Management","Non-transfer","Current","Current payments","Goods and services","Consumable supplies","Consumable supplies","Economic development","Economic regulation and infrastructure","NAT",39,94,10,56,56,56,152,50,100,103,106,null,null,null,null,null,null,null,null,null,null,null,null,null,null,null,null,null,null,null,null,null,null,null,null,null,null,null,null,null,null,null,null,null,null,{"$f":"Dataset[[#This Row],[2027/28 From - Spending review Topic 1]]+Dataset[[#This Row],[2027/28 From - Spending review Topic 2]]+Dataset[[#This Row],[2027/28 From - Spending review Topic 3]]+Dataset[[#This Row],[2027/28 From - Spending review Topic 4]]+Dataset[[#This Row],[2027/28 From - Other reallocations]]","v":0},{"$f":"Dataset[[#This Row],[2028/29 From - Spending review Topic 1]]+Dataset[[#This Row],[2028/29 From - Spending review Topic 2]]+Dataset[[#This Row],[2028/29 From - Spending review Topic 3]]+Dataset[[#This Row],[2028/29 From - Spending review Topic 4]]+Dataset[[#This Row],[2028/29 From - Other reallocations]]","v":0},{"$f":"Dataset[[#This Row],[2029/30 From - Spending review Topic 1]]+Dataset[[#This Row],[2029/30 From - Spending review Topic 2]]+Dataset[[#This Row],[2029/30 From - Spending review Topic 3]]+Dataset[[#This Row],[2029/30 From - Spending review Topic 4]]+Dataset[[#This Row],[2029/30 From - Other reallocations]]","v":0},{"$f":"Dataset[[#This Row],[2027/28 To - Spending review Topic 1]]+Dataset[[#This Row],[2027/28 To - Spending review Topic 2]]+Dataset[[#This Row],[2027/28 To - Spending review Topic 3]]+Dataset[[#This Row],[2027/28 To - Spending review Topic 4]]+Dataset[[#This Row],[2027/28 To - Other reallocations]]","v":0},{"$f":"Dataset[[#This Row],[2028/29 To - Spending review Topic 1]]+Dataset[[#This Row],[2028/29 To - Spending review Topic 2]]+Dataset[[#This Row],[2028/29 To - Spending review Topic 3]]+Dataset[[#This Row],[2028/29 To - Spending review Topic 4]]+Dataset[[#This Row],[2028/29 To - Other reallocations]]","v":0},{"$f":"Dataset[[#This Row],[2029/30 To - Spending review Topic 1]]+Dataset[[#This Row],[2029/30 To - Spending review Topic 2]]+Dataset[[#This Row],[2029/30 To - Spending review Topic 3]]+Dataset[[#This Row],[2029/30 To - Spending review Topic 4]]+Dataset[[#This Row],[2029/30 To - Other reallocations]]","v":0},{"$f":"Dataset[[#This Row],[2027/28 Targeted savings]]+Dataset[[#This Row],[2027/28 From - Total]]","v":0},{"$f":"Dataset[[#This Row],[2028/29 Targeted savings]]+Dataset[[#This Row],[2028/29 From - Total]]","v":0},{"$f":"Dataset[[#This Row],[2029/30 Targeted savings]]+Dataset[[#This Row],[2029/30 From - Total]]","v":0},{"$f":"Dataset[[#This Row],[2026/27 Targeted savings]]","v":0},{"$f":"SUM(Dataset[[#This Row],[2027/28 Targeted savings]],Dataset[[#This Row],[2027/28 From - Total]],Dataset[[#This Row],[2027/28 To - Total]])","v":0},{"$f":"SUM(Dataset[[#This Row],[2028/29 Targeted savings]],Dataset[[#This Row],[2028/29 From - Total]],Dataset[[#This Row],[2028/29 To - Total]])","v":0},{"$f":"SUM(Dataset[[#This Row],[2029/30 Targeted savings]],Dataset[[#This Row],[2029/30 From - Total]],Dataset[[#This Row],[2029/30 To - Total]])","v":0},{"$f":"Dataset[[#This Row],[2026/27 Baseline]]+Dataset[[#This Row],[2026/27 Total change]]","v":50},{"$f":"Dataset[[#This Row],[2027/28 Baseline]]+Dataset[[#This Row],[2027/28 Total change]]","v":100},{"$f":"Dataset[[#This Row],[2028/29 Baseline]]+Dataset[[#This Row],[2028/29 Total change]]","v":103},{"$f":"Dataset[[#This Row],[2029/30 Baseline]]+Dataset[[#This Row],[2029/30 Total change]]","v":106}]
["NAT|Non-transfer","30|Consumables: Stationery, printing and office supplies","2027_28","MTEC2027",30,1,4,32688,168,"30","01","04","032688","000168","30|01|04|000168","01","01","02","32","32","01|01|02|32|32","National","Communications and Digital Technologies","Administration","Financial Management","Non-transfer","Current","Current payments","Goods and services","Consumables: Stationery, printing and office supplies","Consumables: Stationery, printing and office supplies","Economic development","Economic regulation and infrastructure","NAT",-299,1214,-138,962,462,462,193,1135,351,362,373,null,null,null,null,null,null,null,null,null,null,null,null,null,null,null,null,null,null,null,null,null,null,null,null,null,null,null,null,null,null,null,null,null,null,{"$f":"Dataset[[#This Row],[2027/28 From - Spending review Topic 1]]+Dataset[[#This Row],[2027/28 From - Spending review Topic 2]]+Dataset[[#This Row],[2027/28 From - Spending review Topic 3]]+Dataset[[#This Row],[2027/28 From - Spending review Topic 4]]+Dataset[[#This Row],[2027/28 From - Other reallocations]]","v":0},{"$f":"Dataset[[#This Row],[2028/29 From - Spending review Topic 1]]+Dataset[[#This Row],[2028/29 From - Spending review Topic 2]]+Dataset[[#This Row],[2028/29 From - Spending review Topic 3]]+Dataset[[#This Row],[2028/29 From - Spending review Topic 4]]+Dataset[[#This Row],[2028/29 From - Other reallocations]]","v":0},{"$f":"Dataset[[#This Row],[2029/30 From - Spending review Topic 1]]+Dataset[[#This Row],[2029/30 From - Spending review Topic 2]]+Dataset[[#This Row],[2029/30 From - Spending review Topic 3]]+Dataset[[#This Row],[2029/30 From - Spending review Topic 4]]+Dataset[[#This Row],[2029/30 From - Other reallocations]]","v":0},{"$f":"Dataset[[#This Row],[2027/28 To - Spending review Topic 1]]+Dataset[[#This Row],[2027/28 To - Spending review Topic 2]]+Dataset[[#This Row],[2027/28 To - Spending review Topic 3]]+Dataset[[#This Row],[2027/28 To - Spending review Topic 4]]+Dataset[[#This Row],[2027/28 To - Other reallocations]]","v":0},{"$f":"Dataset[[#This Row],[2028/29 To - Spending review Topic 1]]+Dataset[[#This Row],[2028/29 To - Spending review Topic 2]]+Dataset[[#This Row],[2028/29 To - Spending review Topic 3]]+Dataset[[#This Row],[2028/29 To - Spending review Topic 4]]+Dataset[[#This Row],[2028/29 To - Other reallocations]]","v":0},{"$f":"Dataset[[#This Row],[2029/30 To - Spending review Topic 1]]+Dataset[[#This Row],[2029/30 To - Spending review Topic 2]]+Dataset[[#This Row],[2029/30 To - Spending review Topic 3]]+Dataset[[#This Row],[2029/30 To - Spending review Topic 4]]+Dataset[[#This Row],[2029/30 To - Other reallocations]]","v":0},{"$f":"Dataset[[#This Row],[2027/28 Targeted savings]]+Dataset[[#This Row],[2027/28 From - Total]]","v":0},{"$f":"Dataset[[#This Row],[2028/29 Targeted savings]]+Dataset[[#This Row],[2028/29 From - Total]]","v":0},{"$f":"Dataset[[#This Row],[2029/30 Targeted savings]]+Dataset[[#This Row],[2029/30 From - Total]]","v":0},{"$f":"Dataset[[#This Row],[2026/27 Targeted savings]]","v":0},{"$f":"SUM(Dataset[[#This Row],[2027/28 Targeted savings]],Dataset[[#This Row],[2027/28 From - Total]],Dataset[[#This Row],[2027/28 To - Total]])","v":0},{"$f":"SUM(Dataset[[#This Row],[2028/29 Targeted savings]],Dataset[[#This Row],[2028/29 From - Total]],Dataset[[#This Row],[2028/29 To - Total]])","v":0},{"$f":"SUM(Dataset[[#This Row],[2029/30 Targeted savings]],Dataset[[#This Row],[2029/30 From - Total]],Dataset[[#This Row],[2029/30 To - Total]])","v":0},{"$f":"Dataset[[#This Row],[2026/27 Baseline]]+Dataset[[#This Row],[2026/27 Total change]]","v":1135},{"$f":"Dataset[[#This Row],[2027/28 Baseline]]+Dataset[[#This Row],[2027/28 Total change]]","v":351},{"$f":"Dataset[[#This Row],[2028/29 Baseline]]+Dataset[[#This Row],[2028/29 Total change]]","v":362},{"$f":"Dataset[[#This Row],[2029/30 Baseline]]+Dataset[[#This Row],[2029/30 Total change]]","v":373}]
["NAT|Non-transfer","30|Operating leases","2027_28","MTEC2027",30,1,4,32689,169,"30","01","04","032689","000169","30|01|04|000169","01","01","02","33","33","01|01|02|33|33","National","Communications and Digital Technologies","Administration","Financial Management","Non-transfer","Current","Current payments","Goods and services","Operating leases","Operating leases","Economic development","Economic regulation and infrastructure","NAT",152,219,303,270,270,270,289,242,210,216,223,null,null,null,null,null,null,null,null,null,null,null,null,null,null,null,null,null,null,null,null,null,null,null,null,null,null,null,null,null,null,null,null,null,null,{"$f":"Dataset[[#This Row],[2027/28 From - Spending review Topic 1]]+Dataset[[#This Row],[2027/28 From - Spending review Topic 2]]+Dataset[[#This Row],[2027/28 From - Spending review Topic 3]]+Dataset[[#This Row],[2027/28 From - Spending review Topic 4]]+Dataset[[#This Row],[2027/28 From - Other reallocations]]","v":0},{"$f":"Dataset[[#This Row],[2028/29 From - Spending review Topic 1]]+Dataset[[#This Row],[2028/29 From - Spending review Topic 2]]+Dataset[[#This Row],[2028/29 From - Spending review Topic 3]]+Dataset[[#This Row],[2028/29 From - Spending review Topic 4]]+Dataset[[#This Row],[2028/29 From - Other reallocations]]","v":0},{"$f":"Dataset[[#This Row],[2029/30 From - Spending review Topic 1]]+Dataset[[#This Row],[2029/30 From - Spending review Topic 2]]+Dataset[[#This Row],[2029/30 From - Spending review Topic 3]]+Dataset[[#This Row],[2029/30 From - Spending review Topic 4]]+Dataset[[#This Row],[2029/30 From - Other reallocations]]","v":0},{"$f":"Dataset[[#This Row],[2027/28 To - Spending review Topic 1]]+Dataset[[#This Row],[2027/28 To - Spending review Topic 2]]+Dataset[[#This Row],[2027/28 To - Spending review Topic 3]]+Dataset[[#This Row],[2027/28 To - Spending review Topic 4]]+Dataset[[#This Row],[2027/28 To - Other reallocations]]","v":0},{"$f":"Dataset[[#This Row],[2028/29 To - Spending review Topic 1]]+Dataset[[#This Row],[2028/29 To - Spending review Topic 2]]+Dataset[[#This Row],[2028/29 To - Spending review Topic 3]]+Dataset[[#This Row],[2028/29 To - Spending review Topic 4]]+Dataset[[#This Row],[2028/29 To - Other reallocations]]","v":0},{"$f":"Dataset[[#This Row],[2029/30 To - Spending review Topic 1]]+Dataset[[#This Row],[2029/30 To - Spending review Topic 2]]+Dataset[[#This Row],[2029/30 To - Spending review Topic 3]]+Dataset[[#This Row],[2029/30 To - Spending review Topic 4]]+Dataset[[#This Row],[2029/30 To - Other reallocations]]","v":0},{"$f":"Dataset[[#This Row],[2027/28 Targeted savings]]+Dataset[[#This Row],[2027/28 From - Total]]","v":0},{"$f":"Dataset[[#This Row],[2028/29 Targeted savings]]+Dataset[[#This Row],[2028/29 From - Total]]","v":0},{"$f":"Dataset[[#This Row],[2029/30 Targeted savings]]+Dataset[[#This Row],[2029/30 From - Total]]","v":0},{"$f":"Dataset[[#This Row],[2026/27 Targeted savings]]","v":0},{"$f":"SUM(Dataset[[#This Row],[2027/28 Targeted savings]],Dataset[[#This Row],[2027/28 From - Total]],Dataset[[#This Row],[2027/28 To - Total]])","v":0},{"$f":"SUM(Dataset[[#This Row],[2028/29 Targeted savings]],Dataset[[#This Row],[2028/29 From - Total]],Dataset[[#This Row],[2028/29 To - Total]])","v":0},{"$f":"SUM(Dataset[[#This Row],[2029/30 Targeted savings]],Dataset[[#This Row],[2029/30 From - Total]],Dataset[[#This Row],[2029/30 To - Total]])","v":0},{"$f":"Dataset[[#This Row],[2026/27 Baseline]]+Dataset[[#This Row],[2026/27 Total change]]","v":242},{"$f":"Dataset[[#This Row],[2027/28 Baseline]]+Dataset[[#This Row],[2027/28 Total change]]","v":210},{"$f":"Dataset[[#This Row],[2028/29 Baseline]]+Dataset[[#This Row],[2028/29 Total change]]","v":216},{"$f":"Dataset[[#This Row],[2029/30 Baseline]]+Dataset[[#This Row],[2029/30 Total change]]","v":223}]
["NAT|Non-transfer item","30|Rental and hiring","2027_28","MTEC2027",30,1,4,32690,170,"30","01","04","032690","000170","30|01|04|000170","01","01","02","34","34","01|01|02|34|34","National","Communications and Digital Technologies","Administration","Corporate Services","Non-transfer item","Current","Current payments","Goods and services","Rental and hiring","Rental and hiring","Economic development","Economic regulation and infrastructure","NAT",0,0,0,0,0,0,0,0,0,0,0,null,null,null,null,null,null,null,null,null,null,null,null,null,null,null,null,null,null,null,null,null,null,null,null,null,null,null,null,null,null,null,null,null,null,{"$f":"Dataset[[#This Row],[2027/28 From - Spending review Topic 1]]+Dataset[[#This Row],[2027/28 From - Spending review Topic 2]]+Dataset[[#This Row],[2027/28 From - Spending review Topic 3]]+Dataset[[#This Row],[2027/28 From - Spending review Topic 4]]+Dataset[[#This Row],[2027/28 From - Other reallocations]]","v":0},{"$f":"Dataset[[#This Row],[2028/29 From - Spending review Topic 1]]+Dataset[[#This Row],[2028/29 From - Spending review Topic 2]]+Dataset[[#This Row],[2028/29 From - Spending review Topic 3]]+Dataset[[#This Row],[2028/29 From - Spending review Topic 4]]+Dataset[[#This Row],[2028/29 From - Other reallocations]]","v":0},{"$f":"Dataset[[#This Row],[2029/30 From - Spending review Topic 1]]+Dataset[[#This Row],[2029/30 From - Spending review Topic 2]]+Dataset[[#This Row],[2029/30 From - Spending review Topic 3]]+Dataset[[#This Row],[2029/30 From - Spending review Topic 4]]+Dataset[[#This Row],[2029/30 From - Other reallocations]]","v":0},{"$f":"Dataset[[#This Row],[2027/28 To - Spending review Topic 1]]+Dataset[[#This Row],[2027/28 To - Spending review Topic 2]]+Dataset[[#This Row],[2027/28 To - Spending review Topic 3]]+Dataset[[#This Row],[2027/28 To - Spending review Topic 4]]+Dataset[[#This Row],[2027/28 To - Other reallocations]]","v":0},{"$f":"Dataset[[#This Row],[2028/29 To - Spending review Topic 1]]+Dataset[[#This Row],[2028/29 To - Spending review Topic 2]]+Dataset[[#This Row],[2028/29 To - Spending review Topic 3]]+Dataset[[#This Row],[2028/29 To - Spending review Topic 4]]+Dataset[[#This Row],[2028/29 To - Other reallocations]]","v":0},{"$f":"Dataset[[#This Row],[2029/30 To - Spending review Topic 1]]+Dataset[[#This Row],[2029/30 To - Spending review Topic 2]]+Dataset[[#This Row],[2029/30 To - Spending review Topic 3]]+Dataset[[#This Row],[2029/30 To - Spending review Topic 4]]+Dataset[[#This Row],[2029/30 To - Other reallocations]]","v":0},{"$f":"Dataset[[#This Row],[2027/28 Targeted savings]]+Dataset[[#This Row],[2027/28 From - Total]]","v":0},{"$f":"Dataset[[#This Row],[2028/29 Targeted savings]]+Dataset[[#This Row],[2028/29 From - Total]]","v":0},{"$f":"Dataset[[#This Row],[2029/30 Targeted savings]]+Dataset[[#This Row],[2029/30 From - Total]]","v":0},{"$f":"Dataset[[#This Row],[2026/27 Targeted savings]]","v":0},{"$f":"SUM(Dataset[[#This Row],[2027/28 Targeted savings]],Dataset[[#This Row],[2027/28 From - Total]],Dataset[[#This Row],[2027/28 To - Total]])","v":0},{"$f":"SUM(Dataset[[#This Row],[2028/29 Targeted savings]],Dataset[[#This Row],[2028/29 From - Total]],Dataset[[#This Row],[2028/29 To - Total]])","v":0},{"$f":"SUM(Dataset[[#This Row],[2029/30 Targeted savings]],Dataset[[#This Row],[2029/30 From - Total]],Dataset[[#This Row],[2029/30 To - Total]])","v":0},{"$f":"Dataset[[#This Row],[2026/27 Baseline]]+Dataset[[#This Row],[2026/27 Total change]]","v":0},{"$f":"Dataset[[#This Row],[2027/28 Baseline]]+Dataset[[#This Row],[2027/28 Total change]]","v":0},{"$f":"Dataset[[#This Row],[2028/29 Baseline]]+Dataset[[#This Row],[2028/29 Total change]]","v":0},{"$f":"Dataset[[#This Row],[2029/30 Baseline]]+Dataset[[#This Row],[2029/30 Total change]]","v":0}]
["NAT|Non-transfer","30|Property payments","2027_28","MTEC2027",30,1,4,32691,171,"30","01","04","032691","000171","30|01|04|000171","01","01","02","35","35","01|01|02|35|35","National","Communications and Digital Technologies","Administration","Financial Management","Non-transfer","Current","Current payments","Goods and services","Property payments","Property payments","Economic development","Economic regulation and infrastructure","NAT",8419,8508,10556,10015,10005,10005,13491,10606,11596,12058,12421,null,null,null,null,null,null,null,null,null,null,null,null,null,null,null,null,null,null,null,null,null,null,null,null,null,null,null,null,null,null,null,null,null,null,{"$f":"Dataset[[#This Row],[2027/28 From - Spending review Topic 1]]+Dataset[[#This Row],[2027/28 From - Spending review Topic 2]]+Dataset[[#This Row],[2027/28 From - Spending review Topic 3]]+Dataset[[#This Row],[2027/28 From - Spending review Topic 4]]+Dataset[[#This Row],[2027/28 From - Other reallocations]]","v":0},{"$f":"Dataset[[#This Row],[2028/29 From - Spending review Topic 1]]+Dataset[[#This Row],[2028/29 From - Spending review Topic 2]]+Dataset[[#This Row],[2028/29 From - Spending review Topic 3]]+Dataset[[#This Row],[2028/29 From - Spending review Topic 4]]+Dataset[[#This Row],[2028/29 From - Other reallocations]]","v":0},{"$f":"Dataset[[#This Row],[2029/30 From - Spending review Topic 1]]+Dataset[[#This Row],[2029/30 From - Spending review Topic 2]]+Dataset[[#This Row],[2029/30 From - Spending review Topic 3]]+Dataset[[#This Row],[2029/30 From - Spending review Topic 4]]+Dataset[[#This Row],[2029/30 From - Other reallocations]]","v":0},{"$f":"Dataset[[#This Row],[2027/28 To - Spending review Topic 1]]+Dataset[[#This Row],[2027/28 To - Spending review Topic 2]]+Dataset[[#This Row],[2027/28 To - Spending review Topic 3]]+Dataset[[#This Row],[2027/28 To - Spending review Topic 4]]+Dataset[[#This Row],[2027/28 To - Other reallocations]]","v":0},{"$f":"Dataset[[#This Row],[2028/29 To - Spending review Topic 1]]+Dataset[[#This Row],[2028/29 To - Spending review Topic 2]]+Dataset[[#This Row],[2028/29 To - Spending review Topic 3]]+Dataset[[#This Row],[2028/29 To - Spending review Topic 4]]+Dataset[[#This Row],[2028/29 To - Other reallocations]]","v":0},{"$f":"Dataset[[#This Row],[2029/30 To - Spending review Topic 1]]+Dataset[[#This Row],[2029/30 To - Spending review Topic 2]]+Dataset[[#This Row],[2029/30 To - Spending review Topic 3]]+Dataset[[#This Row],[2029/30 To - Spending review Topic 4]]+Dataset[[#This Row],[2029/30 To - Other reallocations]]","v":0},{"$f":"Dataset[[#This Row],[2027/28 Targeted savings]]+Dataset[[#This Row],[2027/28 From - Total]]","v":0},{"$f":"Dataset[[#This Row],[2028/29 Targeted savings]]+Dataset[[#This Row],[2028/29 From - Total]]","v":0},{"$f":"Dataset[[#This Row],[2029/30 Targeted savings]]+Dataset[[#This Row],[2029/30 From - Total]]","v":0},{"$f":"Dataset[[#This Row],[2026/27 Targeted savings]]","v":0},{"$f":"SUM(Dataset[[#This Row],[2027/28 Targeted savings]],Dataset[[#This Row],[2027/28 From - Total]],Dataset[[#This Row],[2027/28 To - Total]])","v":0},{"$f":"SUM(Dataset[[#This Row],[2028/29 Targeted savings]],Dataset[[#This Row],[2028/29 From - Total]],Dataset[[#This Row],[2028/29 To - Total]])","v":0},{"$f":"SUM(Dataset[[#This Row],[2029/30 Targeted savings]],Dataset[[#This Row],[2029/30 From - Total]],Dataset[[#This Row],[2029/30 To - Total]])","v":0},{"$f":"Dataset[[#This Row],[2026/27 Baseline]]+Dataset[[#This Row],[2026/27 Total change]]","v":10606},{"$f":"Dataset[[#This Row],[2027/28 Baseline]]+Dataset[[#This Row],[2027/28 Total change]]","v":11596},{"$f":"Dataset[[#This Row],[2028/29 Baseline]]+Dataset[[#This Row],[2028/29 Total change]]","v":12058},{"$f":"Dataset[[#This Row],[2029/30 Baseline]]+Dataset[[#This Row],[2029/30 Total change]]","v":12421}]
["NAT|Non-transfer item","30|Transport provided: Departmental activity","2027_28","MTEC2027",30,1,4,32692,172,"30","01","04","032692","000172","30|01|04|000172","01","01","02","36","36","01|01|02|36|36","National","Communications and Digital Technologies","Administration","Corporate Services","Non-transfer item","Current","Current payments","Goods and services","Transport provided: Departmental activity","Transport provided: Departmental activity","Economic development","Economic regulation and infrastructure","NAT",0,0,0,0,0,0,0,0,0,0,0,null,null,null,null,null,null,null,null,null,null,null,null,null,null,null,null,null,null,null,null,null,null,null,null,null,null,null,null,null,null,null,null,null,null,{"$f":"Dataset[[#This Row],[2027/28 From - Spending review Topic 1]]+Dataset[[#This Row],[2027/28 From - Spending review Topic 2]]+Dataset[[#This Row],[2027/28 From - Spending review Topic 3]]+Dataset[[#This Row],[2027/28 From - Spending review Topic 4]]+Dataset[[#This Row],[2027/28 From - Other reallocations]]","v":0},{"$f":"Dataset[[#This Row],[2028/29 From - Spending review Topic 1]]+Dataset[[#This Row],[2028/29 From - Spending review Topic 2]]+Dataset[[#This Row],[2028/29 From - Spending review Topic 3]]+Dataset[[#This Row],[2028/29 From - Spending review Topic 4]]+Dataset[[#This Row],[2028/29 From - Other reallocations]]","v":0},{"$f":"Dataset[[#This Row],[2029/30 From - Spending review Topic 1]]+Dataset[[#This Row],[2029/30 From - Spending review Topic 2]]+Dataset[[#This Row],[2029/30 From - Spending review Topic 3]]+Dataset[[#This Row],[2029/30 From - Spending review Topic 4]]+Dataset[[#This Row],[2029/30 From - Other reallocations]]","v":0},{"$f":"Dataset[[#This Row],[2027/28 To - Spending review Topic 1]]+Dataset[[#This Row],[2027/28 To - Spending review Topic 2]]+Dataset[[#This Row],[2027/28 To - Spending review Topic 3]]+Dataset[[#This Row],[2027/28 To - Spending review Topic 4]]+Dataset[[#This Row],[2027/28 To - Other reallocations]]","v":0},{"$f":"Dataset[[#This Row],[2028/29 To - Spending review Topic 1]]+Dataset[[#This Row],[2028/29 To - Spending review Topic 2]]+Dataset[[#This Row],[2028/29 To - Spending review Topic 3]]+Dataset[[#This Row],[2028/29 To - Spending review Topic 4]]+Dataset[[#This Row],[2028/29 To - Other reallocations]]","v":0},{"$f":"Dataset[[#This Row],[2029/30 To - Spending review Topic 1]]+Dataset[[#This Row],[2029/30 To - Spending review Topic 2]]+Dataset[[#This Row],[2029/30 To - Spending review Topic 3]]+Dataset[[#This Row],[2029/30 To - Spending review Topic 4]]+Dataset[[#This Row],[2029/30 To - Other reallocations]]","v":0},{"$f":"Dataset[[#This Row],[2027/28 Targeted savings]]+Dataset[[#This Row],[2027/28 From - Total]]","v":0},{"$f":"Dataset[[#This Row],[2028/29 Targeted savings]]+Dataset[[#This Row],[2028/29 From - Total]]","v":0},{"$f":"Dataset[[#This Row],[2029/30 Targeted savings]]+Dataset[[#This Row],[2029/30 From - Total]]","v":0},{"$f":"Dataset[[#This Row],[2026/27 Targeted savings]]","v":0},{"$f":"SUM(Dataset[[#This Row],[2027/28 Targeted savings]],Dataset[[#This Row],[2027/28 From - Total]],Dataset[[#This Row],[2027/28 To - Total]])","v":0},{"$f":"SUM(Dataset[[#This Row],[2028/29 Targeted savings]],Dataset[[#This Row],[2028/29 From - Total]],Dataset[[#This Row],[2028/29 To - Total]])","v":0},{"$f":"SUM(Dataset[[#This Row],[2029/30 Targeted savings]],Dataset[[#This Row],[2029/30 From - Total]],Dataset[[#This Row],[2029/30 To - Total]])","v":0},{"$f":"Dataset[[#This Row],[2026/27 Baseline]]+Dataset[[#This Row],[2026/27 Total change]]","v":0},{"$f":"Dataset[[#This Row],[2027/28 Baseline]]+Dataset[[#This Row],[2027/28 Total change]]","v":0},{"$f":"Dataset[[#This Row],[2028/29 Baseline]]+Dataset[[#This Row],[2028/29 Total change]]","v":0},{"$f":"Dataset[[#This Row],[2029/30 Baseline]]+Dataset[[#This Row],[2029/30 Total change]]","v":0}]
["NAT|Non-transfer","30|Travel and subsistence","2027_28","MTEC2027",30,1,4,32693,173,"30","01","04","032693","000173","30|01|04|000173","01","01","02","37","37","01|01|02|37|37","National","Communications and Digital Technologies","Administration","Financial Management","Non-transfer","Current","Current payments","Goods and services","Travel and subsistence","Travel and subsistence","Economic development","Economic regulation and infrastructure","NAT",738,1258,1137,1003,903,903,1731,528,915,943,971,null,null,null,null,null,null,null,null,null,null,null,null,null,null,null,null,null,null,null,null,null,null,null,null,null,null,null,null,null,null,null,null,null,null,{"$f":"Dataset[[#This Row],[2027/28 From - Spending review Topic 1]]+Dataset[[#This Row],[2027/28 From - Spending review Topic 2]]+Dataset[[#This Row],[2027/28 From - Spending review Topic 3]]+Dataset[[#This Row],[2027/28 From - Spending review Topic 4]]+Dataset[[#This Row],[2027/28 From - Other reallocations]]","v":0},{"$f":"Dataset[[#This Row],[2028/29 From - Spending review Topic 1]]+Dataset[[#This Row],[2028/29 From - Spending review Topic 2]]+Dataset[[#This Row],[2028/29 From - Spending review Topic 3]]+Dataset[[#This Row],[2028/29 From - Spending review Topic 4]]+Dataset[[#This Row],[2028/29 From - Other reallocations]]","v":0},{"$f":"Dataset[[#This Row],[2029/30 From - Spending review Topic 1]]+Dataset[[#This Row],[2029/30 From - Spending review Topic 2]]+Dataset[[#This Row],[2029/30 From - Spending review Topic 3]]+Dataset[[#This Row],[2029/30 From - Spending review Topic 4]]+Dataset[[#This Row],[2029/30 From - Other reallocations]]","v":0},{"$f":"Dataset[[#This Row],[2027/28 To - Spending review Topic 1]]+Dataset[[#This Row],[2027/28 To - Spending review Topic 2]]+Dataset[[#This Row],[2027/28 To - Spending review Topic 3]]+Dataset[[#This Row],[2027/28 To - Spending review Topic 4]]+Dataset[[#This Row],[2027/28 To - Other reallocations]]","v":0},{"$f":"Dataset[[#This Row],[2028/29 To - Spending review Topic 1]]+Dataset[[#This Row],[2028/29 To - Spending review Topic 2]]+Dataset[[#This Row],[2028/29 To - Spending review Topic 3]]+Dataset[[#This Row],[2028/29 To - Spending review Topic 4]]+Dataset[[#This Row],[2028/29 To - Other reallocations]]","v":0},{"$f":"Dataset[[#This Row],[2029/30 To - Spending review Topic 1]]+Dataset[[#This Row],[2029/30 To - Spending review Topic 2]]+Dataset[[#This Row],[2029/30 To - Spending review Topic 3]]+Dataset[[#This Row],[2029/30 To - Spending review Topic 4]]+Dataset[[#This Row],[2029/30 To - Other reallocations]]","v":0},{"$f":"Dataset[[#This Row],[2027/28 Targeted savings]]+Dataset[[#This Row],[2027/28 From - Total]]","v":0},{"$f":"Dataset[[#This Row],[2028/29 Targeted savings]]+Dataset[[#This Row],[2028/29 From - Total]]","v":0},{"$f":"Dataset[[#This Row],[2029/30 Targeted savings]]+Dataset[[#This Row],[2029/30 From - Total]]","v":0},{"$f":"Dataset[[#This Row],[2026/27 Targeted savings]]","v":0},{"$f":"SUM(Dataset[[#This Row],[2027/28 Targeted savings]],Dataset[[#This Row],[2027/28 From - Total]],Dataset[[#This Row],[2027/28 To - Total]])","v":0},{"$f":"SUM(Dataset[[#This Row],[2028/29 Targeted savings]],Dataset[[#This Row],[2028/29 From - Total]],Dataset[[#This Row],[2028/29 To - Total]])","v":0},{"$f":"SUM(Dataset[[#This Row],[2029/30 Targeted savings]],Dataset[[#This Row],[2029/30 From - Total]],Dataset[[#This Row],[2029/30 To - Total]])","v":0},{"$f":"Dataset[[#This Row],[2026/27 Baseline]]+Dataset[[#This Row],[2026/27 Total change]]","v":528},{"$f":"Dataset[[#This Row],[2027/28 Baseline]]+Dataset[[#This Row],[2027/28 Total change]]","v":915},{"$f":"Dataset[[#This Row],[2028/29 Baseline]]+Dataset[[#This Row],[2028/29 Total change]]","v":943},{"$f":"Dataset[[#This Row],[2029/30 Baseline]]+Dataset[[#This Row],[2029/30 Total change]]","v":971}]
["NAT|Non-transfer","30|Training and development","2027_28","MTEC2027",30,1,4,32694,174,"30","01","04","032694","000174","30|01|04|000174","01","01","02","38","38","01|01|02|38|38","National","Communications and Digital Technologies","Administration","Financial Management","Non-transfer","Current","Current payments","Goods and services","Training and development","Training and development","Economic development","Economic regulation and infrastructure","NAT",110,215,322,220,200,200,543,190,264,272,280,null,null,null,null,null,null,null,null,null,null,null,null,null,null,null,null,null,null,null,null,null,null,null,null,null,null,null,null,null,null,null,null,null,null,{"$f":"Dataset[[#This Row],[2027/28 From - Spending review Topic 1]]+Dataset[[#This Row],[2027/28 From - Spending review Topic 2]]+Dataset[[#This Row],[2027/28 From - Spending review Topic 3]]+Dataset[[#This Row],[2027/28 From - Spending review Topic 4]]+Dataset[[#This Row],[2027/28 From - Other reallocations]]","v":0},{"$f":"Dataset[[#This Row],[2028/29 From - Spending review Topic 1]]+Dataset[[#This Row],[2028/29 From - Spending review Topic 2]]+Dataset[[#This Row],[2028/29 From - Spending review Topic 3]]+Dataset[[#This Row],[2028/29 From - Spending review Topic 4]]+Dataset[[#This Row],[2028/29 From - Other reallocations]]","v":0},{"$f":"Dataset[[#This Row],[2029/30 From - Spending review Topic 1]]+Dataset[[#This Row],[2029/30 From - Spending review Topic 2]]+Dataset[[#This Row],[2029/30 From - Spending review Topic 3]]+Dataset[[#This Row],[2029/30 From - Spending review Topic 4]]+Dataset[[#This Row],[2029/30 From - Other reallocations]]","v":0},{"$f":"Dataset[[#This Row],[2027/28 To - Spending review Topic 1]]+Dataset[[#This Row],[2027/28 To - Spending review Topic 2]]+Dataset[[#This Row],[2027/28 To - Spending review Topic 3]]+Dataset[[#This Row],[2027/28 To - Spending review Topic 4]]+Dataset[[#This Row],[2027/28 To - Other reallocations]]","v":0},{"$f":"Dataset[[#This Row],[2028/29 To - Spending review Topic 1]]+Dataset[[#This Row],[2028/29 To - Spending review Topic 2]]+Dataset[[#This Row],[2028/29 To - Spending review Topic 3]]+Dataset[[#This Row],[2028/29 To - Spending review Topic 4]]+Dataset[[#This Row],[2028/29 To - Other reallocations]]","v":0},{"$f":"Dataset[[#This Row],[2029/30 To - Spending review Topic 1]]+Dataset[[#This Row],[2029/30 To - Spending review Topic 2]]+Dataset[[#This Row],[2029/30 To - Spending review Topic 3]]+Dataset[[#This Row],[2029/30 To - Spending review Topic 4]]+Dataset[[#This Row],[2029/30 To - Other reallocations]]","v":0},{"$f":"Dataset[[#This Row],[2027/28 Targeted savings]]+Dataset[[#This Row],[2027/28 From - Total]]","v":0},{"$f":"Dataset[[#This Row],[2028/29 Targeted savings]]+Dataset[[#This Row],[2028/29 From - Total]]","v":0},{"$f":"Dataset[[#This Row],[2029/30 Targeted savings]]+Dataset[[#This Row],[2029/30 From - Total]]","v":0},{"$f":"Dataset[[#This Row],[2026/27 Targeted savings]]","v":0},{"$f":"SUM(Dataset[[#This Row],[2027/28 Targeted savings]],Dataset[[#This Row],[2027/28 From - Total]],Dataset[[#This Row],[2027/28 To - Total]])","v":0},{"$f":"SUM(Dataset[[#This Row],[2028/29 Targeted savings]],Dataset[[#This Row],[2028/29 From - Total]],Dataset[[#This Row],[2028/29 To - Total]])","v":0},{"$f":"SUM(Dataset[[#This Row],[2029/30 Targeted savings]],Dataset[[#This Row],[2029/30 From - Total]],Dataset[[#This Row],[2029/30 To - Total]])","v":0},{"$f":"Dataset[[#This Row],[2026/27 Baseline]]+Dataset[[#This Row],[2026/27 Total change]]","v":190},{"$f":"Dataset[[#This Row],[2027/28 Baseline]]+Dataset[[#This Row],[2027/28 Total change]]","v":264},{"$f":"Dataset[[#This Row],[2028/29 Baseline]]+Dataset[[#This Row],[2028/29 Total change]]","v":272},{"$f":"Dataset[[#This Row],[2029/30 Baseline]]+Dataset[[#This Row],[2029/30 Total change]]","v":280}]
["NAT|Non-transfer","30|Operating payments","2027_28","MTEC2027",30,1,4,32695,175,"30","01","04","032695","000175","30|01|04|000175","01","01","02","39","39","01|01|02|39|39","National","Communications and Digital Technologies","Administration","Financial Management","Non-transfer","Current","Current payments","Goods and services","Operating payments","Operating payments","Economic development","Economic regulation and infrastructure","NAT",20,19,9,15,15,15,21,2,109,112,115,null,null,null,null,null,null,null,null,null,null,null,null,null,null,null,null,null,null,null,null,null,null,null,null,null,null,null,null,null,null,null,null,null,null,{"$f":"Dataset[[#This Row],[2027/28 From - Spending review Topic 1]]+Dataset[[#This Row],[2027/28 From - Spending review Topic 2]]+Dataset[[#This Row],[2027/28 From - Spending review Topic 3]]+Dataset[[#This Row],[2027/28 From - Spending review Topic 4]]+Dataset[[#This Row],[2027/28 From - Other reallocations]]","v":0},{"$f":"Dataset[[#This Row],[2028/29 From - Spending review Topic 1]]+Dataset[[#This Row],[2028/29 From - Spending review Topic 2]]+Dataset[[#This Row],[2028/29 From - Spending review Topic 3]]+Dataset[[#This Row],[2028/29 From - Spending review Topic 4]]+Dataset[[#This Row],[2028/29 From - Other reallocations]]","v":0},{"$f":"Dataset[[#This Row],[2029/30 From - Spending review Topic 1]]+Dataset[[#This Row],[2029/30 From - Spending review Topic 2]]+Dataset[[#This Row],[2029/30 From - Spending review Topic 3]]+Dataset[[#This Row],[2029/30 From - Spending review Topic 4]]+Dataset[[#This Row],[2029/30 From - Other reallocations]]","v":0},{"$f":"Dataset[[#This Row],[2027/28 To - Spending review Topic 1]]+Dataset[[#This Row],[2027/28 To - Spending review Topic 2]]+Dataset[[#This Row],[2027/28 To - Spending review Topic 3]]+Dataset[[#This Row],[2027/28 To - Spending review Topic 4]]+Dataset[[#This Row],[2027/28 To - Other reallocations]]","v":0},{"$f":"Dataset[[#This Row],[2028/29 To - Spending review Topic 1]]+Dataset[[#This Row],[2028/29 To - Spending review Topic 2]]+Dataset[[#This Row],[2028/29 To - Spending review Topic 3]]+Dataset[[#This Row],[2028/29 To - Spending review Topic 4]]+Dataset[[#This Row],[2028/29 To - Other reallocations]]","v":0},{"$f":"Dataset[[#This Row],[2029/30 To - Spending review Topic 1]]+Dataset[[#This Row],[2029/30 To - Spending review Topic 2]]+Dataset[[#This Row],[2029/30 To - Spending review Topic 3]]+Dataset[[#This Row],[2029/30 To - Spending review Topic 4]]+Dataset[[#This Row],[2029/30 To - Other reallocations]]","v":0},{"$f":"Dataset[[#This Row],[2027/28 Targeted savings]]+Dataset[[#This Row],[2027/28 From - Total]]","v":0},{"$f":"Dataset[[#This Row],[2028/29 Targeted savings]]+Dataset[[#This Row],[2028/29 From - Total]]","v":0},{"$f":"Dataset[[#This Row],[2029/30 Targeted savings]]+Dataset[[#This Row],[2029/30 From - Total]]","v":0},{"$f":"Dataset[[#This Row],[2026/27 Targeted savings]]","v":0},{"$f":"SUM(Dataset[[#This Row],[2027/28 Targeted savings]],Dataset[[#This Row],[2027/28 From - Total]],Dataset[[#This Row],[2027/28 To - Total]])","v":0},{"$f":"SUM(Dataset[[#This Row],[2028/29 Targeted savings]],Dataset[[#This Row],[2028/29 From - Total]],Dataset[[#This Row],[2028/29 To - Total]])","v":0},{"$f":"SUM(Dataset[[#This Row],[2029/30 Targeted savings]],Dataset[[#This Row],[2029/30 From - Total]],Dataset[[#This Row],[2029/30 To - Total]])","v":0},{"$f":"Dataset[[#This Row],[2026/27 Baseline]]+Dataset[[#This Row],[2026/27 Total change]]","v":2},{"$f":"Dataset[[#This Row],[2027/28 Baseline]]+Dataset[[#This Row],[2027/28 Total change]]","v":109},{"$f":"Dataset[[#This Row],[2028/29 Baseline]]+Dataset[[#This Row],[2028/29 Total change]]","v":112},{"$f":"Dataset[[#This Row],[2029/30 Baseline]]+Dataset[[#This Row],[2029/30 Total change]]","v":115}]
["NAT|Non-transfer","30|Venues and facilities","2027_28","MTEC2027",30,1,4,32696,176,"30","01","04","032696","000176","30|01|04|000176","01","01","02","40","40","01|01|02|40|40","National","Communications and Digital Technologies","Administration","Financial Management","Non-transfer","Current","Current payments","Goods and services","Venues and facilities","Venues and facilities","Economic development","Economic regulation and infrastructure","NAT",14,0,0,10,0,0,25,0,24,24,25,null,null,null,null,null,null,null,null,null,null,null,null,null,null,null,null,null,null,null,null,null,null,null,null,null,null,null,null,null,null,null,null,null,null,{"$f":"Dataset[[#This Row],[2027/28 From - Spending review Topic 1]]+Dataset[[#This Row],[2027/28 From - Spending review Topic 2]]+Dataset[[#This Row],[2027/28 From - Spending review Topic 3]]+Dataset[[#This Row],[2027/28 From - Spending review Topic 4]]+Dataset[[#This Row],[2027/28 From - Other reallocations]]","v":0},{"$f":"Dataset[[#This Row],[2028/29 From - Spending review Topic 1]]+Dataset[[#This Row],[2028/29 From - Spending review Topic 2]]+Dataset[[#This Row],[2028/29 From - Spending review Topic 3]]+Dataset[[#This Row],[2028/29 From - Spending review Topic 4]]+Dataset[[#This Row],[2028/29 From - Other reallocations]]","v":0},{"$f":"Dataset[[#This Row],[2029/30 From - Spending review Topic 1]]+Dataset[[#This Row],[2029/30 From - Spending review Topic 2]]+Dataset[[#This Row],[2029/30 From - Spending review Topic 3]]+Dataset[[#This Row],[2029/30 From - Spending review Topic 4]]+Dataset[[#This Row],[2029/30 From - Other reallocations]]","v":0},{"$f":"Dataset[[#This Row],[2027/28 To - Spending review Topic 1]]+Dataset[[#This Row],[2027/28 To - Spending review Topic 2]]+Dataset[[#This Row],[2027/28 To - Spending review Topic 3]]+Dataset[[#This Row],[2027/28 To - Spending review Topic 4]]+Dataset[[#This Row],[2027/28 To - Other reallocations]]","v":0},{"$f":"Dataset[[#This Row],[2028/29 To - Spending review Topic 1]]+Dataset[[#This Row],[2028/29 To - Spending review Topic 2]]+Dataset[[#This Row],[2028/29 To - Spending review Topic 3]]+Dataset[[#This Row],[2028/29 To - Spending review Topic 4]]+Dataset[[#This Row],[2028/29 To - Other reallocations]]","v":0},{"$f":"Dataset[[#This Row],[2029/30 To - Spending review Topic 1]]+Dataset[[#This Row],[2029/30 To - Spending review Topic 2]]+Dataset[[#This Row],[2029/30 To - Spending review Topic 3]]+Dataset[[#This Row],[2029/30 To - Spending review Topic 4]]+Dataset[[#This Row],[2029/30 To - Other reallocations]]","v":0},{"$f":"Dataset[[#This Row],[2027/28 Targeted savings]]+Dataset[[#This Row],[2027/28 From - Total]]","v":0},{"$f":"Dataset[[#This Row],[2028/29 Targeted savings]]+Dataset[[#This Row],[2028/29 From - Total]]","v":0},{"$f":"Dataset[[#This Row],[2029/30 Targeted savings]]+Dataset[[#This Row],[2029/30 From - Total]]","v":0},{"$f":"Dataset[[#This Row],[2026/27 Targeted savings]]","v":0},{"$f":"SUM(Dataset[[#This Row],[2027/28 Targeted savings]],Dataset[[#This Row],[2027/28 From - Total]],Dataset[[#This Row],[2027/28 To - Total]])","v":0},{"$f":"SUM(Dataset[[#This Row],[2028/29 Targeted savings]],Dataset[[#This Row],[2028/29 From - Total]],Dataset[[#This Row],[2028/29 To - Total]])","v":0},{"$f":"SUM(Dataset[[#This Row],[2029/30 Targeted savings]],Dataset[[#This Row],[2029/30 From - Total]],Dataset[[#This Row],[2029/30 To - Total]])","v":0},{"$f":"Dataset[[#This Row],[2026/27 Baseline]]+Dataset[[#This Row],[2026/27 Total change]]","v":0},{"$f":"Dataset[[#This Row],[2027/28 Baseline]]+Dataset[[#This Row],[2027/28 Total change]]","v":24},{"$f":"Dataset[[#This Row],[2028/29 Baseline]]+Dataset[[#This Row],[2028/29 Total change]]","v":24},{"$f":"Dataset[[#This Row],[2029/30 Baseline]]+Dataset[[#This Row],[2029/30 Total change]]","v":25}]
["NAT|Non-transfer item","30|Interest (Incl. interest on unitary payments (PPP))","2027_28","MTEC2027",30,1,4,32697,177,"30","01","04","032697","000177","30|01|04|000177","01","01","03","41","41","01|01|03|41|41","National","Communications and Digital Technologies","Administration","Corporate Services","Non-transfer item","Current","Current payments","Interest and rent on land","Interest (Incl. interest on unitary payments (PPP))","Interest (Incl. interest on unitary payments (PPP))","Economic development","Economic regulation and infrastructure","NAT",0,0,0,0,0,0,0,0,0,0,0,null,null,null,null,null,null,null,null,null,null,null,null,null,null,null,null,null,null,null,null,null,null,null,null,null,null,null,null,null,null,null,null,null,null,{"$f":"Dataset[[#This Row],[2027/28 From - Spending review Topic 1]]+Dataset[[#This Row],[2027/28 From - Spending review Topic 2]]+Dataset[[#This Row],[2027/28 From - Spending review Topic 3]]+Dataset[[#This Row],[2027/28 From - Spending review Topic 4]]+Dataset[[#This Row],[2027/28 From - Other reallocations]]","v":0},{"$f":"Dataset[[#This Row],[2028/29 From - Spending review Topic 1]]+Dataset[[#This Row],[2028/29 From - Spending review Topic 2]]+Dataset[[#This Row],[2028/29 From - Spending review Topic 3]]+Dataset[[#This Row],[2028/29 From - Spending review Topic 4]]+Dataset[[#This Row],[2028/29 From - Other reallocations]]","v":0},{"$f":"Dataset[[#This Row],[2029/30 From - Spending review Topic 1]]+Dataset[[#This Row],[2029/30 From - Spending review Topic 2]]+Dataset[[#This Row],[2029/30 From - Spending review Topic 3]]+Dataset[[#This Row],[2029/30 From - Spending review Topic 4]]+Dataset[[#This Row],[2029/30 From - Other reallocations]]","v":0},{"$f":"Dataset[[#This Row],[2027/28 To - Spending review Topic 1]]+Dataset[[#This Row],[2027/28 To - Spending review Topic 2]]+Dataset[[#This Row],[2027/28 To - Spending review Topic 3]]+Dataset[[#This Row],[2027/28 To - Spending review Topic 4]]+Dataset[[#This Row],[2027/28 To - Other reallocations]]","v":0},{"$f":"Dataset[[#This Row],[2028/29 To - Spending review Topic 1]]+Dataset[[#This Row],[2028/29 To - Spending review Topic 2]]+Dataset[[#This Row],[2028/29 To - Spending review Topic 3]]+Dataset[[#This Row],[2028/29 To - Spending review Topic 4]]+Dataset[[#This Row],[2028/29 To - Other reallocations]]","v":0},{"$f":"Dataset[[#This Row],[2029/30 To - Spending review Topic 1]]+Dataset[[#This Row],[2029/30 To - Spending review Topic 2]]+Dataset[[#This Row],[2029/30 To - Spending review Topic 3]]+Dataset[[#This Row],[2029/30 To - Spending review Topic 4]]+Dataset[[#This Row],[2029/30 To - Other reallocations]]","v":0},{"$f":"Dataset[[#This Row],[2027/28 Targeted savings]]+Dataset[[#This Row],[2027/28 From - Total]]","v":0},{"$f":"Dataset[[#This Row],[2028/29 Targeted savings]]+Dataset[[#This Row],[2028/29 From - Total]]","v":0},{"$f":"Dataset[[#This Row],[2029/30 Targeted savings]]+Dataset[[#This Row],[2029/30 From - Total]]","v":0},{"$f":"Dataset[[#This Row],[2026/27 Targeted savings]]","v":0},{"$f":"SUM(Dataset[[#This Row],[2027/28 Targeted savings]],Dataset[[#This Row],[2027/28 From - Total]],Dataset[[#This Row],[2027/28 To - Total]])","v":0},{"$f":"SUM(Dataset[[#This Row],[2028/29 Targeted savings]],Dataset[[#This Row],[2028/29 From - Total]],Dataset[[#This Row],[2028/29 To - Total]])","v":0},{"$f":"SUM(Dataset[[#This Row],[2029/30 Targeted savings]],Dataset[[#This Row],[2029/30 From - Total]],Dataset[[#This Row],[2029/30 To - Total]])","v":0},{"$f":"Dataset[[#This Row],[2026/27 Baseline]]+Dataset[[#This Row],[2026/27 Total change]]","v":0},{"$f":"Dataset[[#This Row],[2027/28 Baseline]]+Dataset[[#This Row],[2027/28 Total change]]","v":0},{"$f":"Dataset[[#This Row],[2028/29 Baseline]]+Dataset[[#This Row],[2028/29 Total change]]","v":0},{"$f":"Dataset[[#This Row],[2029/30 Baseline]]+Dataset[[#This Row],[2029/30 Total change]]","v":0}]
["NAT|Non-transfer item","30|Rent on land","2027_28","MTEC2027",30,1,4,32698,178,"30","01","04","032698","000178","30|01|04|000178","01","01","03","42","42","01|01|03|42|42","National","Communications and Digital Technologies","Administration","Corporate Services","Non-transfer item","Current","Current payments","Interest and rent on land","Rent on land","Rent on land","Economic development","Economic regulation and infrastructure","NAT",0,0,0,0,0,0,0,0,0,0,0,null,null,null,null,null,null,null,null,null,null,null,null,null,null,null,null,null,null,null,null,null,null,null,null,null,null,null,null,null,null,null,null,null,null,{"$f":"Dataset[[#This Row],[2027/28 From - Spending review Topic 1]]+Dataset[[#This Row],[2027/28 From - Spending review Topic 2]]+Dataset[[#This Row],[2027/28 From - Spending review Topic 3]]+Dataset[[#This Row],[2027/28 From - Spending review Topic 4]]+Dataset[[#This Row],[2027/28 From - Other reallocations]]","v":0},{"$f":"Dataset[[#This Row],[2028/29 From - Spending review Topic 1]]+Dataset[[#This Row],[2028/29 From - Spending review Topic 2]]+Dataset[[#This Row],[2028/29 From - Spending review Topic 3]]+Dataset[[#This Row],[2028/29 From - Spending review Topic 4]]+Dataset[[#This Row],[2028/29 From - Other reallocations]]","v":0},{"$f":"Dataset[[#This Row],[2029/30 From - Spending review Topic 1]]+Dataset[[#This Row],[2029/30 From - Spending review Topic 2]]+Dataset[[#This Row],[2029/30 From - Spending review Topic 3]]+Dataset[[#This Row],[2029/30 From - Spending review Topic 4]]+Dataset[[#This Row],[2029/30 From - Other reallocations]]","v":0},{"$f":"Dataset[[#This Row],[2027/28 To - Spending review Topic 1]]+Dataset[[#This Row],[2027/28 To - Spending review Topic 2]]+Dataset[[#This Row],[2027/28 To - Spending review Topic 3]]+Dataset[[#This Row],[2027/28 To - Spending review Topic 4]]+Dataset[[#This Row],[2027/28 To - Other reallocations]]","v":0},{"$f":"Dataset[[#This Row],[2028/29 To - Spending review Topic 1]]+Dataset[[#This Row],[2028/29 To - Spending review Topic 2]]+Dataset[[#This Row],[2028/29 To - Spending review Topic 3]]+Dataset[[#This Row],[2028/29 To - Spending review Topic 4]]+Dataset[[#This Row],[2028/29 To - Other reallocations]]","v":0},{"$f":"Dataset[[#This Row],[2029/30 To - Spending review Topic 1]]+Dataset[[#This Row],[2029/30 To - Spending review Topic 2]]+Dataset[[#This Row],[2029/30 To - Spending review Topic 3]]+Dataset[[#This Row],[2029/30 To - Spending review Topic 4]]+Dataset[[#This Row],[2029/30 To - Other reallocations]]","v":0},{"$f":"Dataset[[#This Row],[2027/28 Targeted savings]]+Dataset[[#This Row],[2027/28 From - Total]]","v":0},{"$f":"Dataset[[#This Row],[2028/29 Targeted savings]]+Dataset[[#This Row],[2028/29 From - Total]]","v":0},{"$f":"Dataset[[#This Row],[2029/30 Targeted savings]]+Dataset[[#This Row],[2029/30 From - Total]]","v":0},{"$f":"Dataset[[#This Row],[2026/27 Targeted savings]]","v":0},{"$f":"SUM(Dataset[[#This Row],[2027/28 Targeted savings]],Dataset[[#This Row],[2027/28 From - Total]],Dataset[[#This Row],[2027/28 To - Total]])","v":0},{"$f":"SUM(Dataset[[#This Row],[2028/29 Targeted savings]],Dataset[[#This Row],[2028/29 From - Total]],Dataset[[#This Row],[2028/29 To - Total]])","v":0},{"$f":"SUM(Dataset[[#This Row],[2029/30 Targeted savings]],Dataset[[#This Row],[2029/30 From - Total]],Dataset[[#This Row],[2029/30 To - Total]])","v":0},{"$f":"Dataset[[#This Row],[2026/27 Baseline]]+Dataset[[#This Row],[2026/27 Total change]]","v":0},{"$f":"Dataset[[#This Row],[2027/28 Baseline]]+Dataset[[#This Row],[2027/28 Total change]]","v":0},{"$f":"Dataset[[#This Row],[2028/29 Baseline]]+Dataset[[#This Row],[2028/29 Total change]]","v":0},{"$f":"Dataset[[#This Row],[2029/30 Baseline]]+Dataset[[#This Row],[2029/30 Total change]]","v":0}]
["NAT|Vehicle licences","30|Provincial agencies and funds","2027_28","MTEC2027",30,1,4,32699,179,"30","01","04","032699","000179","30|01|04|000179","01","02","04","43","44","01|02|04|43|44","National","Communications and Digital Technologies","Administration","Financial Management","Vehicle licences","Current","Transfers and subsidies","Provinces and municipalities","Provinces","Provincial agencies and funds","Economic development","Economic regulation and infrastructure","NAT",11,6,3,28,28,28,0,29,30,31,32,null,null,null,null,null,null,null,null,null,null,null,null,null,null,null,null,null,null,null,null,null,null,null,null,null,null,null,null,null,null,null,null,null,null,{"$f":"Dataset[[#This Row],[2027/28 From - Spending review Topic 1]]+Dataset[[#This Row],[2027/28 From - Spending review Topic 2]]+Dataset[[#This Row],[2027/28 From - Spending review Topic 3]]+Dataset[[#This Row],[2027/28 From - Spending review Topic 4]]+Dataset[[#This Row],[2027/28 From - Other reallocations]]","v":0},{"$f":"Dataset[[#This Row],[2028/29 From - Spending review Topic 1]]+Dataset[[#This Row],[2028/29 From - Spending review Topic 2]]+Dataset[[#This Row],[2028/29 From - Spending review Topic 3]]+Dataset[[#This Row],[2028/29 From - Spending review Topic 4]]+Dataset[[#This Row],[2028/29 From - Other reallocations]]","v":0},{"$f":"Dataset[[#This Row],[2029/30 From - Spending review Topic 1]]+Dataset[[#This Row],[2029/30 From - Spending review Topic 2]]+Dataset[[#This Row],[2029/30 From - Spending review Topic 3]]+Dataset[[#This Row],[2029/30 From - Spending review Topic 4]]+Dataset[[#This Row],[2029/30 From - Other reallocations]]","v":0},{"$f":"Dataset[[#This Row],[2027/28 To - Spending review Topic 1]]+Dataset[[#This Row],[2027/28 To - Spending review Topic 2]]+Dataset[[#This Row],[2027/28 To - Spending review Topic 3]]+Dataset[[#This Row],[2027/28 To - Spending review Topic 4]]+Dataset[[#This Row],[2027/28 To - Other reallocations]]","v":0},{"$f":"Dataset[[#This Row],[2028/29 To - Spending review Topic 1]]+Dataset[[#This Row],[2028/29 To - Spending review Topic 2]]+Dataset[[#This Row],[2028/29 To - Spending review Topic 3]]+Dataset[[#This Row],[2028/29 To - Spending review Topic 4]]+Dataset[[#This Row],[2028/29 To - Other reallocations]]","v":0},{"$f":"Dataset[[#This Row],[2029/30 To - Spending review Topic 1]]+Dataset[[#This Row],[2029/30 To - Spending review Topic 2]]+Dataset[[#This Row],[2029/30 To - Spending review Topic 3]]+Dataset[[#This Row],[2029/30 To - Spending review Topic 4]]+Dataset[[#This Row],[2029/30 To - Other reallocations]]","v":0},{"$f":"Dataset[[#This Row],[2027/28 Targeted savings]]+Dataset[[#This Row],[2027/28 From - Total]]","v":0},{"$f":"Dataset[[#This Row],[2028/29 Targeted savings]]+Dataset[[#This Row],[2028/29 From - Total]]","v":0},{"$f":"Dataset[[#This Row],[2029/30 Targeted savings]]+Dataset[[#This Row],[2029/30 From - Total]]","v":0},{"$f":"Dataset[[#This Row],[2026/27 Targeted savings]]","v":0},{"$f":"SUM(Dataset[[#This Row],[2027/28 Targeted savings]],Dataset[[#This Row],[2027/28 From - Total]],Dataset[[#This Row],[2027/28 To - Total]])","v":0},{"$f":"SUM(Dataset[[#This Row],[2028/29 Targeted savings]],Dataset[[#This Row],[2028/29 From - Total]],Dataset[[#This Row],[2028/29 To - Total]])","v":0},{"$f":"SUM(Dataset[[#This Row],[2029/30 Targeted savings]],Dataset[[#This Row],[2029/30 From - Total]],Dataset[[#This Row],[2029/30 To - Total]])","v":0},{"$f":"Dataset[[#This Row],[2026/27 Baseline]]+Dataset[[#This Row],[2026/27 Total change]]","v":29},{"$f":"Dataset[[#This Row],[2027/28 Baseline]]+Dataset[[#This Row],[2027/28 Total change]]","v":30},{"$f":"Dataset[[#This Row],[2028/29 Baseline]]+Dataset[[#This Row],[2028/29 Total change]]","v":31},{"$f":"Dataset[[#This Row],[2029/30 Baseline]]+Dataset[[#This Row],[2029/30 Total change]]","v":32}]
["NAT|Early retirement and voluntary exit programmes","30|Social benefits","2027_28","MTEC2027",30,1,4,32700,180,"30","01","04","032700","000180","30|01|04|000180","01","02","10","52","56","01|02|10|52|56","National","Communications and Digital Technologies","Administration","Financial Management","Early retirement and voluntary exit programmes","Current","Transfers and subsidies","Households","Social benefits","Social benefits","Economic development","Economic regulation and infrastructure","NAT",0,0,0,0,0,0,0,3300,0,0,0,null,null,null,null,null,null,null,null,null,null,null,null,null,null,null,null,null,null,null,null,null,null,null,null,null,null,null,null,null,null,null,null,null,null,{"$f":"Dataset[[#This Row],[2027/28 From - Spending review Topic 1]]+Dataset[[#This Row],[2027/28 From - Spending review Topic 2]]+Dataset[[#This Row],[2027/28 From - Spending review Topic 3]]+Dataset[[#This Row],[2027/28 From - Spending review Topic 4]]+Dataset[[#This Row],[2027/28 From - Other reallocations]]","v":0},{"$f":"Dataset[[#This Row],[2028/29 From - Spending review Topic 1]]+Dataset[[#This Row],[2028/29 From - Spending review Topic 2]]+Dataset[[#This Row],[2028/29 From - Spending review Topic 3]]+Dataset[[#This Row],[2028/29 From - Spending review Topic 4]]+Dataset[[#This Row],[2028/29 From - Other reallocations]]","v":0},{"$f":"Dataset[[#This Row],[2029/30 From - Spending review Topic 1]]+Dataset[[#This Row],[2029/30 From - Spending review Topic 2]]+Dataset[[#This Row],[2029/30 From - Spending review Topic 3]]+Dataset[[#This Row],[2029/30 From - Spending review Topic 4]]+Dataset[[#This Row],[2029/30 From - Other reallocations]]","v":0},{"$f":"Dataset[[#This Row],[2027/28 To - Spending review Topic 1]]+Dataset[[#This Row],[2027/28 To - Spending review Topic 2]]+Dataset[[#This Row],[2027/28 To - Spending review Topic 3]]+Dataset[[#This Row],[2027/28 To - Spending review Topic 4]]+Dataset[[#This Row],[2027/28 To - Other reallocations]]","v":0},{"$f":"Dataset[[#This Row],[2028/29 To - Spending review Topic 1]]+Dataset[[#This Row],[2028/29 To - Spending review Topic 2]]+Dataset[[#This Row],[2028/29 To - Spending review Topic 3]]+Dataset[[#This Row],[2028/29 To - Spending review Topic 4]]+Dataset[[#This Row],[2028/29 To - Other reallocations]]","v":0},{"$f":"Dataset[[#This Row],[2029/30 To - Spending review Topic 1]]+Dataset[[#This Row],[2029/30 To - Spending review Topic 2]]+Dataset[[#This Row],[2029/30 To - Spending review Topic 3]]+Dataset[[#This Row],[2029/30 To - Spending review Topic 4]]+Dataset[[#This Row],[2029/30 To - Other reallocations]]","v":0},{"$f":"Dataset[[#This Row],[2027/28 Targeted savings]]+Dataset[[#This Row],[2027/28 From - Total]]","v":0},{"$f":"Dataset[[#This Row],[2028/29 Targeted savings]]+Dataset[[#This Row],[2028/29 From - Total]]","v":0},{"$f":"Dataset[[#This Row],[2029/30 Targeted savings]]+Dataset[[#This Row],[2029/30 From - Total]]","v":0},{"$f":"Dataset[[#This Row],[2026/27 Targeted savings]]","v":0},{"$f":"SUM(Dataset[[#This Row],[2027/28 Targeted savings]],Dataset[[#This Row],[2027/28 From - Total]],Dataset[[#This Row],[2027/28 To - Total]])","v":0},{"$f":"SUM(Dataset[[#This Row],[2028/29 Targeted savings]],Dataset[[#This Row],[2028/29 From - Total]],Dataset[[#This Row],[2028/29 To - Total]])","v":0},{"$f":"SUM(Dataset[[#This Row],[2029/30 Targeted savings]],Dataset[[#This Row],[2029/30 From - Total]],Dataset[[#This Row],[2029/30 To - Total]])","v":0},{"$f":"Dataset[[#This Row],[2026/27 Baseline]]+Dataset[[#This Row],[2026/27 Total change]]","v":3300},{"$f":"Dataset[[#This Row],[2027/28 Baseline]]+Dataset[[#This Row],[2027/28 Total change]]","v":0},{"$f":"Dataset[[#This Row],[2028/29 Baseline]]+Dataset[[#This Row],[2028/29 Total change]]","v":0},{"$f":"Dataset[[#This Row],[2029/30 Baseline]]+Dataset[[#This Row],[2029/30 Total change]]","v":0}]
["NAT|Employee social benefits","30|Social benefits","2027_28","MTEC2027",30,1,4,32701,181,"30","01","04","032701","000181","30|01|04|000181","01","02","10","52","56","01|02|10|52|56","National","Communications and Digital Technologies","Administration","Financial Management","Employee social benefits","Current","Transfers and subsidies","Households","Social benefits","Social benefits","Economic development","Economic regulation and infrastructure","NAT",153,125,178,0,0,0,0,0,0,0,0,null,null,null,null,null,null,null,null,null,null,null,null,null,null,null,null,null,null,null,null,null,null,null,null,null,null,null,null,null,null,null,null,null,null,{"$f":"Dataset[[#This Row],[2027/28 From - Spending review Topic 1]]+Dataset[[#This Row],[2027/28 From - Spending review Topic 2]]+Dataset[[#This Row],[2027/28 From - Spending review Topic 3]]+Dataset[[#This Row],[2027/28 From - Spending review Topic 4]]+Dataset[[#This Row],[2027/28 From - Other reallocations]]","v":0},{"$f":"Dataset[[#This Row],[2028/29 From - Spending review Topic 1]]+Dataset[[#This Row],[2028/29 From - Spending review Topic 2]]+Dataset[[#This Row],[2028/29 From - Spending review Topic 3]]+Dataset[[#This Row],[2028/29 From - Spending review Topic 4]]+Dataset[[#This Row],[2028/29 From - Other reallocations]]","v":0},{"$f":"Dataset[[#This Row],[2029/30 From - Spending review Topic 1]]+Dataset[[#This Row],[2029/30 From - Spending review Topic 2]]+Dataset[[#This Row],[2029/30 From - Spending review Topic 3]]+Dataset[[#This Row],[2029/30 From - Spending review Topic 4]]+Dataset[[#This Row],[2029/30 From - Other reallocations]]","v":0},{"$f":"Dataset[[#This Row],[2027/28 To - Spending review Topic 1]]+Dataset[[#This Row],[2027/28 To - Spending review Topic 2]]+Dataset[[#This Row],[2027/28 To - Spending review Topic 3]]+Dataset[[#This Row],[2027/28 To - Spending review Topic 4]]+Dataset[[#This Row],[2027/28 To - Other reallocations]]","v":0},{"$f":"Dataset[[#This Row],[2028/29 To - Spending review Topic 1]]+Dataset[[#This Row],[2028/29 To - Spending review Topic 2]]+Dataset[[#This Row],[2028/29 To - Spending review Topic 3]]+Dataset[[#This Row],[2028/29 To - Spending review Topic 4]]+Dataset[[#This Row],[2028/29 To - Other reallocations]]","v":0},{"$f":"Dataset[[#This Row],[2029/30 To - Spending review Topic 1]]+Dataset[[#This Row],[2029/30 To - Spending review Topic 2]]+Dataset[[#This Row],[2029/30 To - Spending review Topic 3]]+Dataset[[#This Row],[2029/30 To - Spending review Topic 4]]+Dataset[[#This Row],[2029/30 To - Other reallocations]]","v":0},{"$f":"Dataset[[#This Row],[2027/28 Targeted savings]]+Dataset[[#This Row],[2027/28 From - Total]]","v":0},{"$f":"Dataset[[#This Row],[2028/29 Targeted savings]]+Dataset[[#This Row],[2028/29 From - Total]]","v":0},{"$f":"Dataset[[#This Row],[2029/30 Targeted savings]]+Dataset[[#This Row],[2029/30 From - Total]]","v":0},{"$f":"Dataset[[#This Row],[2026/27 Targeted savings]]","v":0},{"$f":"SUM(Dataset[[#This Row],[2027/28 Targeted savings]],Dataset[[#This Row],[2027/28 From - Total]],Dataset[[#This Row],[2027/28 To - Total]])","v":0},{"$f":"SUM(Dataset[[#This Row],[2028/29 Targeted savings]],Dataset[[#This Row],[2028/29 From - Total]],Dataset[[#This Row],[2028/29 To - Total]])","v":0},{"$f":"SUM(Dataset[[#This Row],[2029/30 Targeted savings]],Dataset[[#This Row],[2029/30 From - Total]],Dataset[[#This Row],[2029/30 To - Total]])","v":0},{"$f":"Dataset[[#This Row],[2026/27 Baseline]]+Dataset[[#This Row],[2026/27 Total change]]","v":0},{"$f":"Dataset[[#This Row],[2027/28 Baseline]]+Dataset[[#This Row],[2027/28 Total change]]","v":0},{"$f":"Dataset[[#This Row],[2028/29 Baseline]]+Dataset[[#This Row],[2028/29 Total change]]","v":0},{"$f":"Dataset[[#This Row],[2029/30 Baseline]]+Dataset[[#This Row],[2029/30 Total change]]","v":0}]
["NAT|Employee social benefits","30|Other transfers to households","2027_28","MTEC2027",30,1,4,32702,182,"30","01","04","032702","000182","30|01|04|000182","01","02","10","53","57","01|02|10|53|57","National","Communications and Digital Technologies","Administration","Financial Management","Employee social benefits","Current","Transfers and subsidies","Households","Other transfers to households","Other transfers to households","Economic development","Economic regulation and infrastructure","NAT",15,8,20,0,0,0,0,0,0,0,0,null,null,null,null,null,null,null,null,null,null,null,null,null,null,null,null,null,null,null,null,null,null,null,null,null,null,null,null,null,null,null,null,null,null,{"$f":"Dataset[[#This Row],[2027/28 From - Spending review Topic 1]]+Dataset[[#This Row],[2027/28 From - Spending review Topic 2]]+Dataset[[#This Row],[2027/28 From - Spending review Topic 3]]+Dataset[[#This Row],[2027/28 From - Spending review Topic 4]]+Dataset[[#This Row],[2027/28 From - Other reallocations]]","v":0},{"$f":"Dataset[[#This Row],[2028/29 From - Spending review Topic 1]]+Dataset[[#This Row],[2028/29 From - Spending review Topic 2]]+Dataset[[#This Row],[2028/29 From - Spending review Topic 3]]+Dataset[[#This Row],[2028/29 From - Spending review Topic 4]]+Dataset[[#This Row],[2028/29 From - Other reallocations]]","v":0},{"$f":"Dataset[[#This Row],[2029/30 From - Spending review Topic 1]]+Dataset[[#This Row],[2029/30 From - Spending review Topic 2]]+Dataset[[#This Row],[2029/30 From - Spending review Topic 3]]+Dataset[[#This Row],[2029/30 From - Spending review Topic 4]]+Dataset[[#This Row],[2029/30 From - Other reallocations]]","v":0},{"$f":"Dataset[[#This Row],[2027/28 To - Spending review Topic 1]]+Dataset[[#This Row],[2027/28 To - Spending review Topic 2]]+Dataset[[#This Row],[2027/28 To - Spending review Topic 3]]+Dataset[[#This Row],[2027/28 To - Spending review Topic 4]]+Dataset[[#This Row],[2027/28 To - Other reallocations]]","v":0},{"$f":"Dataset[[#This Row],[2028/29 To - Spending review Topic 1]]+Dataset[[#This Row],[2028/29 To - Spending review Topic 2]]+Dataset[[#This Row],[2028/29 To - Spending review Topic 3]]+Dataset[[#This Row],[2028/29 To - Spending review Topic 4]]+Dataset[[#This Row],[2028/29 To - Other reallocations]]","v":0},{"$f":"Dataset[[#This Row],[2029/30 To - Spending review Topic 1]]+Dataset[[#This Row],[2029/30 To - Spending review Topic 2]]+Dataset[[#This Row],[2029/30 To - Spending review Topic 3]]+Dataset[[#This Row],[2029/30 To - Spending review Topic 4]]+Dataset[[#This Row],[2029/30 To - Other reallocations]]","v":0},{"$f":"Dataset[[#This Row],[2027/28 Targeted savings]]+Dataset[[#This Row],[2027/28 From - Total]]","v":0},{"$f":"Dataset[[#This Row],[2028/29 Targeted savings]]+Dataset[[#This Row],[2028/29 From - Total]]","v":0},{"$f":"Dataset[[#This Row],[2029/30 Targeted savings]]+Dataset[[#This Row],[2029/30 From - Total]]","v":0},{"$f":"Dataset[[#This Row],[2026/27 Targeted savings]]","v":0},{"$f":"SUM(Dataset[[#This Row],[2027/28 Targeted savings]],Dataset[[#This Row],[2027/28 From - Total]],Dataset[[#This Row],[2027/28 To - Total]])","v":0},{"$f":"SUM(Dataset[[#This Row],[2028/29 Targeted savings]],Dataset[[#This Row],[2028/29 From - Total]],Dataset[[#This Row],[2028/29 To - Total]])","v":0},{"$f":"SUM(Dataset[[#This Row],[2029/30 Targeted savings]],Dataset[[#This Row],[2029/30 From - Total]],Dataset[[#This Row],[2029/30 To - Total]])","v":0},{"$f":"Dataset[[#This Row],[2026/27 Baseline]]+Dataset[[#This Row],[2026/27 Total change]]","v":0},{"$f":"Dataset[[#This Row],[2027/28 Baseline]]+Dataset[[#This Row],[2027/28 Total change]]","v":0},{"$f":"Dataset[[#This Row],[2028/29 Baseline]]+Dataset[[#This Row],[2028/29 Total change]]","v":0},{"$f":"Dataset[[#This Row],[2029/30 Baseline]]+Dataset[[#This Row],[2029/30 Total change]]","v":0}]
["NAT|Non-transfer item","30|Buildings","2027_28","MTEC2027",30,1,4,32703,183,"30","01","04","032703","000183","30|01|04|000183","02","03","11","54","58","02|03|11|54|58","National","Communications and Digital Technologies","Administration","Corporate Services","Non-transfer item","Capital","Payments for capital assets","Buildings and other fixed structures","Buildings","Buildings","Economic development","Economic regulation and infrastructure","NAT",0,0,0,0,0,0,0,0,0,0,0,null,null,null,null,null,null,null,null,null,null,null,null,null,null,null,null,null,null,null,null,null,null,null,null,null,null,null,null,null,null,null,null,null,null,{"$f":"Dataset[[#This Row],[2027/28 From - Spending review Topic 1]]+Dataset[[#This Row],[2027/28 From - Spending review Topic 2]]+Dataset[[#This Row],[2027/28 From - Spending review Topic 3]]+Dataset[[#This Row],[2027/28 From - Spending review Topic 4]]+Dataset[[#This Row],[2027/28 From - Other reallocations]]","v":0},{"$f":"Dataset[[#This Row],[2028/29 From - Spending review Topic 1]]+Dataset[[#This Row],[2028/29 From - Spending review Topic 2]]+Dataset[[#This Row],[2028/29 From - Spending review Topic 3]]+Dataset[[#This Row],[2028/29 From - Spending review Topic 4]]+Dataset[[#This Row],[2028/29 From - Other reallocations]]","v":0},{"$f":"Dataset[[#This Row],[2029/30 From - Spending review Topic 1]]+Dataset[[#This Row],[2029/30 From - Spending review Topic 2]]+Dataset[[#This Row],[2029/30 From - Spending review Topic 3]]+Dataset[[#This Row],[2029/30 From - Spending review Topic 4]]+Dataset[[#This Row],[2029/30 From - Other reallocations]]","v":0},{"$f":"Dataset[[#This Row],[2027/28 To - Spending review Topic 1]]+Dataset[[#This Row],[2027/28 To - Spending review Topic 2]]+Dataset[[#This Row],[2027/28 To - Spending review Topic 3]]+Dataset[[#This Row],[2027/28 To - Spending review Topic 4]]+Dataset[[#This Row],[2027/28 To - Other reallocations]]","v":0},{"$f":"Dataset[[#This Row],[2028/29 To - Spending review Topic 1]]+Dataset[[#This Row],[2028/29 To - Spending review Topic 2]]+Dataset[[#This Row],[2028/29 To - Spending review Topic 3]]+Dataset[[#This Row],[2028/29 To - Spending review Topic 4]]+Dataset[[#This Row],[2028/29 To - Other reallocations]]","v":0},{"$f":"Dataset[[#This Row],[2029/30 To - Spending review Topic 1]]+Dataset[[#This Row],[2029/30 To - Spending review Topic 2]]+Dataset[[#This Row],[2029/30 To - Spending review Topic 3]]+Dataset[[#This Row],[2029/30 To - Spending review Topic 4]]+Dataset[[#This Row],[2029/30 To - Other reallocations]]","v":0},{"$f":"Dataset[[#This Row],[2027/28 Targeted savings]]+Dataset[[#This Row],[2027/28 From - Total]]","v":0},{"$f":"Dataset[[#This Row],[2028/29 Targeted savings]]+Dataset[[#This Row],[2028/29 From - Total]]","v":0},{"$f":"Dataset[[#This Row],[2029/30 Targeted savings]]+Dataset[[#This Row],[2029/30 From - Total]]","v":0},{"$f":"Dataset[[#This Row],[2026/27 Targeted savings]]","v":0},{"$f":"SUM(Dataset[[#This Row],[2027/28 Targeted savings]],Dataset[[#This Row],[2027/28 From - Total]],Dataset[[#This Row],[2027/28 To - Total]])","v":0},{"$f":"SUM(Dataset[[#This Row],[2028/29 Targeted savings]],Dataset[[#This Row],[2028/29 From - Total]],Dataset[[#This Row],[2028/29 To - Total]])","v":0},{"$f":"SUM(Dataset[[#This Row],[2029/30 Targeted savings]],Dataset[[#This Row],[2029/30 From - Total]],Dataset[[#This Row],[2029/30 To - Total]])","v":0},{"$f":"Dataset[[#This Row],[2026/27 Baseline]]+Dataset[[#This Row],[2026/27 Total change]]","v":0},{"$f":"Dataset[[#This Row],[2027/28 Baseline]]+Dataset[[#This Row],[2027/28 Total change]]","v":0},{"$f":"Dataset[[#This Row],[2028/29 Baseline]]+Dataset[[#This Row],[2028/29 Total change]]","v":0},{"$f":"Dataset[[#This Row],[2029/30 Baseline]]+Dataset[[#This Row],[2029/30 Total change]]","v":0}]
["NAT|Non-transfer item","30|Other fixed structures","2027_28","MTEC2027",30,1,4,32704,184,"30","01","04","032704","000184","30|01|04|000184","02","03","11","55","59","02|03|11|55|59","National","Communications and Digital Technologies","Administration","Corporate Services","Non-transfer item","Capital","Payments for capital assets","Buildings and other fixed structures","Other fixed structures","Other fixed structures","Economic development","Economic regulation and infrastructure","NAT",0,0,0,0,0,0,0,0,0,0,0,null,null,null,null,null,null,null,null,null,null,null,null,null,null,null,null,null,null,null,null,null,null,null,null,null,null,null,null,null,null,null,null,null,null,{"$f":"Dataset[[#This Row],[2027/28 From - Spending review Topic 1]]+Dataset[[#This Row],[2027/28 From - Spending review Topic 2]]+Dataset[[#This Row],[2027/28 From - Spending review Topic 3]]+Dataset[[#This Row],[2027/28 From - Spending review Topic 4]]+Dataset[[#This Row],[2027/28 From - Other reallocations]]","v":0},{"$f":"Dataset[[#This Row],[2028/29 From - Spending review Topic 1]]+Dataset[[#This Row],[2028/29 From - Spending review Topic 2]]+Dataset[[#This Row],[2028/29 From - Spending review Topic 3]]+Dataset[[#This Row],[2028/29 From - Spending review Topic 4]]+Dataset[[#This Row],[2028/29 From - Other reallocations]]","v":0},{"$f":"Dataset[[#This Row],[2029/30 From - Spending review Topic 1]]+Dataset[[#This Row],[2029/30 From - Spending review Topic 2]]+Dataset[[#This Row],[2029/30 From - Spending review Topic 3]]+Dataset[[#This Row],[2029/30 From - Spending review Topic 4]]+Dataset[[#This Row],[2029/30 From - Other reallocations]]","v":0},{"$f":"Dataset[[#This Row],[2027/28 To - Spending review Topic 1]]+Dataset[[#This Row],[2027/28 To - Spending review Topic 2]]+Dataset[[#This Row],[2027/28 To - Spending review Topic 3]]+Dataset[[#This Row],[2027/28 To - Spending review Topic 4]]+Dataset[[#This Row],[2027/28 To - Other reallocations]]","v":0},{"$f":"Dataset[[#This Row],[2028/29 To - Spending review Topic 1]]+Dataset[[#This Row],[2028/29 To - Spending review Topic 2]]+Dataset[[#This Row],[2028/29 To - Spending review Topic 3]]+Dataset[[#This Row],[2028/29 To - Spending review Topic 4]]+Dataset[[#This Row],[2028/29 To - Other reallocations]]","v":0},{"$f":"Dataset[[#This Row],[2029/30 To - Spending review Topic 1]]+Dataset[[#This Row],[2029/30 To - Spending review Topic 2]]+Dataset[[#This Row],[2029/30 To - Spending review Topic 3]]+Dataset[[#This Row],[2029/30 To - Spending review Topic 4]]+Dataset[[#This Row],[2029/30 To - Other reallocations]]","v":0},{"$f":"Dataset[[#This Row],[2027/28 Targeted savings]]+Dataset[[#This Row],[2027/28 From - Total]]","v":0},{"$f":"Dataset[[#This Row],[2028/29 Targeted savings]]+Dataset[[#This Row],[2028/29 From - Total]]","v":0},{"$f":"Dataset[[#This Row],[2029/30 Targeted savings]]+Dataset[[#This Row],[2029/30 From - Total]]","v":0},{"$f":"Dataset[[#This Row],[2026/27 Targeted savings]]","v":0},{"$f":"SUM(Dataset[[#This Row],[2027/28 Targeted savings]],Dataset[[#This Row],[2027/28 From - Total]],Dataset[[#This Row],[2027/28 To - Total]])","v":0},{"$f":"SUM(Dataset[[#This Row],[2028/29 Targeted savings]],Dataset[[#This Row],[2028/29 From - Total]],Dataset[[#This Row],[2028/29 To - Total]])","v":0},{"$f":"SUM(Dataset[[#This Row],[2029/30 Targeted savings]],Dataset[[#This Row],[2029/30 From - Total]],Dataset[[#This Row],[2029/30 To - Total]])","v":0},{"$f":"Dataset[[#This Row],[2026/27 Baseline]]+Dataset[[#This Row],[2026/27 Total change]]","v":0},{"$f":"Dataset[[#This Row],[2027/28 Baseline]]+Dataset[[#This Row],[2027/28 Total change]]","v":0},{"$f":"Dataset[[#This Row],[2028/29 Baseline]]+Dataset[[#This Row],[2028/29 Total change]]","v":0},{"$f":"Dataset[[#This Row],[2029/30 Baseline]]+Dataset[[#This Row],[2029/30 Total change]]","v":0}]
["NAT|Non-transfer","30|Transport equipment","2027_28","MTEC2027",30,1,4,32705,185,"30","01","04","032705","000185","30|01|04|000185","02","03","12","56","60","02|03|12|56|60","National","Communications and Digital Technologies","Administration","Financial Management","Non-transfer","Capital","Payments for capital assets","Machinery and equipment","Transport equipment","Transport equipment","Economic development","Economic regulation and infrastructure","NAT",0,0,0,2000,2000,2000,1497,1107,1151,1187,1223,null,null,null,null,null,null,null,null,null,null,null,null,null,null,null,null,null,null,null,null,null,null,null,null,null,null,null,null,null,null,null,null,null,null,{"$f":"Dataset[[#This Row],[2027/28 From - Spending review Topic 1]]+Dataset[[#This Row],[2027/28 From - Spending review Topic 2]]+Dataset[[#This Row],[2027/28 From - Spending review Topic 3]]+Dataset[[#This Row],[2027/28 From - Spending review Topic 4]]+Dataset[[#This Row],[2027/28 From - Other reallocations]]","v":0},{"$f":"Dataset[[#This Row],[2028/29 From - Spending review Topic 1]]+Dataset[[#This Row],[2028/29 From - Spending review Topic 2]]+Dataset[[#This Row],[2028/29 From - Spending review Topic 3]]+Dataset[[#This Row],[2028/29 From - Spending review Topic 4]]+Dataset[[#This Row],[2028/29 From - Other reallocations]]","v":0},{"$f":"Dataset[[#This Row],[2029/30 From - Spending review Topic 1]]+Dataset[[#This Row],[2029/30 From - Spending review Topic 2]]+Dataset[[#This Row],[2029/30 From - Spending review Topic 3]]+Dataset[[#This Row],[2029/30 From - Spending review Topic 4]]+Dataset[[#This Row],[2029/30 From - Other reallocations]]","v":0},{"$f":"Dataset[[#This Row],[2027/28 To - Spending review Topic 1]]+Dataset[[#This Row],[2027/28 To - Spending review Topic 2]]+Dataset[[#This Row],[2027/28 To - Spending review Topic 3]]+Dataset[[#This Row],[2027/28 To - Spending review Topic 4]]+Dataset[[#This Row],[2027/28 To - Other reallocations]]","v":0},{"$f":"Dataset[[#This Row],[2028/29 To - Spending review Topic 1]]+Dataset[[#This Row],[2028/29 To - Spending review Topic 2]]+Dataset[[#This Row],[2028/29 To - Spending review Topic 3]]+Dataset[[#This Row],[2028/29 To - Spending review Topic 4]]+Dataset[[#This Row],[2028/29 To - Other reallocations]]","v":0},{"$f":"Dataset[[#This Row],[2029/30 To - Spending review Topic 1]]+Dataset[[#This Row],[2029/30 To - Spending review Topic 2]]+Dataset[[#This Row],[2029/30 To - Spending review Topic 3]]+Dataset[[#This Row],[2029/30 To - Spending review Topic 4]]+Dataset[[#This Row],[2029/30 To - Other reallocations]]","v":0},{"$f":"Dataset[[#This Row],[2027/28 Targeted savings]]+Dataset[[#This Row],[2027/28 From - Total]]","v":0},{"$f":"Dataset[[#This Row],[2028/29 Targeted savings]]+Dataset[[#This Row],[2028/29 From - Total]]","v":0},{"$f":"Dataset[[#This Row],[2029/30 Targeted savings]]+Dataset[[#This Row],[2029/30 From - Total]]","v":0},{"$f":"Dataset[[#This Row],[2026/27 Targeted savings]]","v":0},{"$f":"SUM(Dataset[[#This Row],[2027/28 Targeted savings]],Dataset[[#This Row],[2027/28 From - Total]],Dataset[[#This Row],[2027/28 To - Total]])","v":0},{"$f":"SUM(Dataset[[#This Row],[2028/29 Targeted savings]],Dataset[[#This Row],[2028/29 From - Total]],Dataset[[#This Row],[2028/29 To - Total]])","v":0},{"$f":"SUM(Dataset[[#This Row],[2029/30 Targeted savings]],Dataset[[#This Row],[2029/30 From - Total]],Dataset[[#This Row],[2029/30 To - Total]])","v":0},{"$f":"Dataset[[#This Row],[2026/27 Baseline]]+Dataset[[#This Row],[2026/27 Total change]]","v":1107},{"$f":"Dataset[[#This Row],[2027/28 Baseline]]+Dataset[[#This Row],[2027/28 Total change]]","v":1151},{"$f":"Dataset[[#This Row],[2028/29 Baseline]]+Dataset[[#This Row],[2028/29 Total change]]","v":1187},{"$f":"Dataset[[#This Row],[2029/30 Baseline]]+Dataset[[#This Row],[2029/30 Total change]]","v":1223}]
["NAT|Non-transfer","30|Other machinery and equipment","2027_28","MTEC2027",30,1,4,32706,186,"30","01","04","032706","000186","30|01|04|000186","02","03","12","57","61","02|03|12|57|61","National","Communications and Digital Technologies","Administration","Financial Management","Non-transfer","Capital","Payments for capital assets","Machinery and equipment","Other machinery and equipment","Other machinery and equipment","Economic development","Economic regulation and infrastructure","NAT",1103,496,69,473,3473,3473,7680,1393,3046,1573,1620,null,null,null,null,null,null,null,null,null,null,null,null,null,null,null,null,null,null,null,null,null,null,null,null,null,null,null,null,null,null,null,null,null,null,{"$f":"Dataset[[#This Row],[2027/28 From - Spending review Topic 1]]+Dataset[[#This Row],[2027/28 From - Spending review Topic 2]]+Dataset[[#This Row],[2027/28 From - Spending review Topic 3]]+Dataset[[#This Row],[2027/28 From - Spending review Topic 4]]+Dataset[[#This Row],[2027/28 From - Other reallocations]]","v":0},{"$f":"Dataset[[#This Row],[2028/29 From - Spending review Topic 1]]+Dataset[[#This Row],[2028/29 From - Spending review Topic 2]]+Dataset[[#This Row],[2028/29 From - Spending review Topic 3]]+Dataset[[#This Row],[2028/29 From - Spending review Topic 4]]+Dataset[[#This Row],[2028/29 From - Other reallocations]]","v":0},{"$f":"Dataset[[#This Row],[2029/30 From - Spending review Topic 1]]+Dataset[[#This Row],[2029/30 From - Spending review Topic 2]]+Dataset[[#This Row],[2029/30 From - Spending review Topic 3]]+Dataset[[#This Row],[2029/30 From - Spending review Topic 4]]+Dataset[[#This Row],[2029/30 From - Other reallocations]]","v":0},{"$f":"Dataset[[#This Row],[2027/28 To - Spending review Topic 1]]+Dataset[[#This Row],[2027/28 To - Spending review Topic 2]]+Dataset[[#This Row],[2027/28 To - Spending review Topic 3]]+Dataset[[#This Row],[2027/28 To - Spending review Topic 4]]+Dataset[[#This Row],[2027/28 To - Other reallocations]]","v":0},{"$f":"Dataset[[#This Row],[2028/29 To - Spending review Topic 1]]+Dataset[[#This Row],[2028/29 To - Spending review Topic 2]]+Dataset[[#This Row],[2028/29 To - Spending review Topic 3]]+Dataset[[#This Row],[2028/29 To - Spending review Topic 4]]+Dataset[[#This Row],[2028/29 To - Other reallocations]]","v":0},{"$f":"Dataset[[#This Row],[2029/30 To - Spending review Topic 1]]+Dataset[[#This Row],[2029/30 To - Spending review Topic 2]]+Dataset[[#This Row],[2029/30 To - Spending review Topic 3]]+Dataset[[#This Row],[2029/30 To - Spending review Topic 4]]+Dataset[[#This Row],[2029/30 To - Other reallocations]]","v":0},{"$f":"Dataset[[#This Row],[2027/28 Targeted savings]]+Dataset[[#This Row],[2027/28 From - Total]]","v":0},{"$f":"Dataset[[#This Row],[2028/29 Targeted savings]]+Dataset[[#This Row],[2028/29 From - Total]]","v":0},{"$f":"Dataset[[#This Row],[2029/30 Targeted savings]]+Dataset[[#This Row],[2029/30 From - Total]]","v":0},{"$f":"Dataset[[#This Row],[2026/27 Targeted savings]]","v":0},{"$f":"SUM(Dataset[[#This Row],[2027/28 Targeted savings]],Dataset[[#This Row],[2027/28 From - Total]],Dataset[[#This Row],[2027/28 To - Total]])","v":0},{"$f":"SUM(Dataset[[#This Row],[2028/29 Targeted savings]],Dataset[[#This Row],[2028/29 From - Total]],Dataset[[#This Row],[2028/29 To - Total]])","v":0},{"$f":"SUM(Dataset[[#This Row],[2029/30 Targeted savings]],Dataset[[#This Row],[2029/30 From - Total]],Dataset[[#This Row],[2029/30 To - Total]])","v":0},{"$f":"Dataset[[#This Row],[2026/27 Baseline]]+Dataset[[#This Row],[2026/27 Total change]]","v":1393},{"$f":"Dataset[[#This Row],[2027/28 Baseline]]+Dataset[[#This Row],[2027/28 Total change]]","v":3046},{"$f":"Dataset[[#This Row],[2028/29 Baseline]]+Dataset[[#This Row],[2028/29 Total change]]","v":1573},{"$f":"Dataset[[#This Row],[2029/30 Baseline]]+Dataset[[#This Row],[2029/30 Total change]]","v":1620}]
["NAT|Non-transfer item","30|Heritage assets","2027_28","MTEC2027",30,1,4,32707,187,"30","01","04","032707","000187","30|01|04|000187","02","03","13","58","62","02|03|13|58|62","National","Communications and Digital Technologies","Administration","Corporate Services","Non-transfer item","Capital","Payments for capital assets","Heritage assets","Heritage assets","Heritage assets","Economic development","Economic regulation and infrastructure","NAT",0,0,0,0,0,0,0,0,0,0,0,null,null,null,null,null,null,null,null,null,null,null,null,null,null,null,null,null,null,null,null,null,null,null,null,null,null,null,null,null,null,null,null,null,null,{"$f":"Dataset[[#This Row],[2027/28 From - Spending review Topic 1]]+Dataset[[#This Row],[2027/28 From - Spending review Topic 2]]+Dataset[[#This Row],[2027/28 From - Spending review Topic 3]]+Dataset[[#This Row],[2027/28 From - Spending review Topic 4]]+Dataset[[#This Row],[2027/28 From - Other reallocations]]","v":0},{"$f":"Dataset[[#This Row],[2028/29 From - Spending review Topic 1]]+Dataset[[#This Row],[2028/29 From - Spending review Topic 2]]+Dataset[[#This Row],[2028/29 From - Spending review Topic 3]]+Dataset[[#This Row],[2028/29 From - Spending review Topic 4]]+Dataset[[#This Row],[2028/29 From - Other reallocations]]","v":0},{"$f":"Dataset[[#This Row],[2029/30 From - Spending review Topic 1]]+Dataset[[#This Row],[2029/30 From - Spending review Topic 2]]+Dataset[[#This Row],[2029/30 From - Spending review Topic 3]]+Dataset[[#This Row],[2029/30 From - Spending review Topic 4]]+Dataset[[#This Row],[2029/30 From - Other reallocations]]","v":0},{"$f":"Dataset[[#This Row],[2027/28 To - Spending review Topic 1]]+Dataset[[#This Row],[2027/28 To - Spending review Topic 2]]+Dataset[[#This Row],[2027/28 To - Spending review Topic 3]]+Dataset[[#This Row],[2027/28 To - Spending review Topic 4]]+Dataset[[#This Row],[2027/28 To - Other reallocations]]","v":0},{"$f":"Dataset[[#This Row],[2028/29 To - Spending review Topic 1]]+Dataset[[#This Row],[2028/29 To - Spending review Topic 2]]+Dataset[[#This Row],[2028/29 To - Spending review Topic 3]]+Dataset[[#This Row],[2028/29 To - Spending review Topic 4]]+Dataset[[#This Row],[2028/29 To - Other reallocations]]","v":0},{"$f":"Dataset[[#This Row],[2029/30 To - Spending review Topic 1]]+Dataset[[#This Row],[2029/30 To - Spending review Topic 2]]+Dataset[[#This Row],[2029/30 To - Spending review Topic 3]]+Dataset[[#This Row],[2029/30 To - Spending review Topic 4]]+Dataset[[#This Row],[2029/30 To - Other reallocations]]","v":0},{"$f":"Dataset[[#This Row],[2027/28 Targeted savings]]+Dataset[[#This Row],[2027/28 From - Total]]","v":0},{"$f":"Dataset[[#This Row],[2028/29 Targeted savings]]+Dataset[[#This Row],[2028/29 From - Total]]","v":0},{"$f":"Dataset[[#This Row],[2029/30 Targeted savings]]+Dataset[[#This Row],[2029/30 From - Total]]","v":0},{"$f":"Dataset[[#This Row],[2026/27 Targeted savings]]","v":0},{"$f":"SUM(Dataset[[#This Row],[2027/28 Targeted savings]],Dataset[[#This Row],[2027/28 From - Total]],Dataset[[#This Row],[2027/28 To - Total]])","v":0},{"$f":"SUM(Dataset[[#This Row],[2028/29 Targeted savings]],Dataset[[#This Row],[2028/29 From - Total]],Dataset[[#This Row],[2028/29 To - Total]])","v":0},{"$f":"SUM(Dataset[[#This Row],[2029/30 Targeted savings]],Dataset[[#This Row],[2029/30 From - Total]],Dataset[[#This Row],[2029/30 To - Total]])","v":0},{"$f":"Dataset[[#This Row],[2026/27 Baseline]]+Dataset[[#This Row],[2026/27 Total change]]","v":0},{"$f":"Dataset[[#This Row],[2027/28 Baseline]]+Dataset[[#This Row],[2027/28 Total change]]","v":0},{"$f":"Dataset[[#This Row],[2028/29 Baseline]]+Dataset[[#This Row],[2028/29 Total change]]","v":0},{"$f":"Dataset[[#This Row],[2029/30 Baseline]]+Dataset[[#This Row],[2029/30 Total change]]","v":0}]
["NAT|Non-transfer item","30|Specialised military assets","2027_28","MTEC2027",30,1,4,32708,188,"30","01","04","032708","000188","30|01|04|000188","02","03","14","59","63","02|03|14|59|63","National","Communications and Digital Technologies","Administration","Corporate Services","Non-transfer item","Capital","Payments for capital assets","Specialised military assets","Specialised military assets","Specialised military assets","Economic development","Economic regulation and infrastructure","NAT",0,0,0,0,0,0,0,0,0,0,0,null,null,null,null,null,null,null,null,null,null,null,null,null,null,null,null,null,null,null,null,null,null,null,null,null,null,null,null,null,null,null,null,null,null,{"$f":"Dataset[[#This Row],[2027/28 From - Spending review Topic 1]]+Dataset[[#This Row],[2027/28 From - Spending review Topic 2]]+Dataset[[#This Row],[2027/28 From - Spending review Topic 3]]+Dataset[[#This Row],[2027/28 From - Spending review Topic 4]]+Dataset[[#This Row],[2027/28 From - Other reallocations]]","v":0},{"$f":"Dataset[[#This Row],[2028/29 From - Spending review Topic 1]]+Dataset[[#This Row],[2028/29 From - Spending review Topic 2]]+Dataset[[#This Row],[2028/29 From - Spending review Topic 3]]+Dataset[[#This Row],[2028/29 From - Spending review Topic 4]]+Dataset[[#This Row],[2028/29 From - Other reallocations]]","v":0},{"$f":"Dataset[[#This Row],[2029/30 From - Spending review Topic 1]]+Dataset[[#This Row],[2029/30 From - Spending review Topic 2]]+Dataset[[#This Row],[2029/30 From - Spending review Topic 3]]+Dataset[[#This Row],[2029/30 From - Spending review Topic 4]]+Dataset[[#This Row],[2029/30 From - Other reallocations]]","v":0},{"$f":"Dataset[[#This Row],[2027/28 To - Spending review Topic 1]]+Dataset[[#This Row],[2027/28 To - Spending review Topic 2]]+Dataset[[#This Row],[2027/28 To - Spending review Topic 3]]+Dataset[[#This Row],[2027/28 To - Spending review Topic 4]]+Dataset[[#This Row],[2027/28 To - Other reallocations]]","v":0},{"$f":"Dataset[[#This Row],[2028/29 To - Spending review Topic 1]]+Dataset[[#This Row],[2028/29 To - Spending review Topic 2]]+Dataset[[#This Row],[2028/29 To - Spending review Topic 3]]+Dataset[[#This Row],[2028/29 To - Spending review Topic 4]]+Dataset[[#This Row],[2028/29 To - Other reallocations]]","v":0},{"$f":"Dataset[[#This Row],[2029/30 To - Spending review Topic 1]]+Dataset[[#This Row],[2029/30 To - Spending review Topic 2]]+Dataset[[#This Row],[2029/30 To - Spending review Topic 3]]+Dataset[[#This Row],[2029/30 To - Spending review Topic 4]]+Dataset[[#This Row],[2029/30 To - Other reallocations]]","v":0},{"$f":"Dataset[[#This Row],[2027/28 Targeted savings]]+Dataset[[#This Row],[2027/28 From - Total]]","v":0},{"$f":"Dataset[[#This Row],[2028/29 Targeted savings]]+Dataset[[#This Row],[2028/29 From - Total]]","v":0},{"$f":"Dataset[[#This Row],[2029/30 Targeted savings]]+Dataset[[#This Row],[2029/30 From - Total]]","v":0},{"$f":"Dataset[[#This Row],[2026/27 Targeted savings]]","v":0},{"$f":"SUM(Dataset[[#This Row],[2027/28 Targeted savings]],Dataset[[#This Row],[2027/28 From - Total]],Dataset[[#This Row],[2027/28 To - Total]])","v":0},{"$f":"SUM(Dataset[[#This Row],[2028/29 Targeted savings]],Dataset[[#This Row],[2028/29 From - Total]],Dataset[[#This Row],[2028/29 To - Total]])","v":0},{"$f":"SUM(Dataset[[#This Row],[2029/30 Targeted savings]],Dataset[[#This Row],[2029/30 From - Total]],Dataset[[#This Row],[2029/30 To - Total]])","v":0},{"$f":"Dataset[[#This Row],[2026/27 Baseline]]+Dataset[[#This Row],[2026/27 Total change]]","v":0},{"$f":"Dataset[[#This Row],[2027/28 Baseline]]+Dataset[[#This Row],[2027/28 Total change]]","v":0},{"$f":"Dataset[[#This Row],[2028/29 Baseline]]+Dataset[[#This Row],[2028/29 Total change]]","v":0},{"$f":"Dataset[[#This Row],[2029/30 Baseline]]+Dataset[[#This Row],[2029/30 Total change]]","v":0}]
["NAT|Non-transfer item","30|Biological assets","2027_28","MTEC2027",30,1,4,32709,189,"30","01","04","032709","000189","30|01|04|000189","02","03","15","60","64","02|03|15|60|64","National","Communications and Digital Technologies","Administration","Corporate Services","Non-transfer item","Capital","Payments for capital assets","Biological assets","Biological assets","Biological assets","Economic development","Economic regulation and infrastructure","NAT",0,0,0,0,0,0,0,0,0,0,0,null,null,null,null,null,null,null,null,null,null,null,null,null,null,null,null,null,null,null,null,null,null,null,null,null,null,null,null,null,null,null,null,null,null,{"$f":"Dataset[[#This Row],[2027/28 From - Spending review Topic 1]]+Dataset[[#This Row],[2027/28 From - Spending review Topic 2]]+Dataset[[#This Row],[2027/28 From - Spending review Topic 3]]+Dataset[[#This Row],[2027/28 From - Spending review Topic 4]]+Dataset[[#This Row],[2027/28 From - Other reallocations]]","v":0},{"$f":"Dataset[[#This Row],[2028/29 From - Spending review Topic 1]]+Dataset[[#This Row],[2028/29 From - Spending review Topic 2]]+Dataset[[#This Row],[2028/29 From - Spending review Topic 3]]+Dataset[[#This Row],[2028/29 From - Spending review Topic 4]]+Dataset[[#This Row],[2028/29 From - Other reallocations]]","v":0},{"$f":"Dataset[[#This Row],[2029/30 From - Spending review Topic 1]]+Dataset[[#This Row],[2029/30 From - Spending review Topic 2]]+Dataset[[#This Row],[2029/30 From - Spending review Topic 3]]+Dataset[[#This Row],[2029/30 From - Spending review Topic 4]]+Dataset[[#This Row],[2029/30 From - Other reallocations]]","v":0},{"$f":"Dataset[[#This Row],[2027/28 To - Spending review Topic 1]]+Dataset[[#This Row],[2027/28 To - Spending review Topic 2]]+Dataset[[#This Row],[2027/28 To - Spending review Topic 3]]+Dataset[[#This Row],[2027/28 To - Spending review Topic 4]]+Dataset[[#This Row],[2027/28 To - Other reallocations]]","v":0},{"$f":"Dataset[[#This Row],[2028/29 To - Spending review Topic 1]]+Dataset[[#This Row],[2028/29 To - Spending review Topic 2]]+Dataset[[#This Row],[2028/29 To - Spending review Topic 3]]+Dataset[[#This Row],[2028/29 To - Spending review Topic 4]]+Dataset[[#This Row],[2028/29 To - Other reallocations]]","v":0},{"$f":"Dataset[[#This Row],[2029/30 To - Spending review Topic 1]]+Dataset[[#This Row],[2029/30 To - Spending review Topic 2]]+Dataset[[#This Row],[2029/30 To - Spending review Topic 3]]+Dataset[[#This Row],[2029/30 To - Spending review Topic 4]]+Dataset[[#This Row],[2029/30 To - Other reallocations]]","v":0},{"$f":"Dataset[[#This Row],[2027/28 Targeted savings]]+Dataset[[#This Row],[2027/28 From - Total]]","v":0},{"$f":"Dataset[[#This Row],[2028/29 Targeted savings]]+Dataset[[#This Row],[2028/29 From - Total]]","v":0},{"$f":"Dataset[[#This Row],[2029/30 Targeted savings]]+Dataset[[#This Row],[2029/30 From - Total]]","v":0},{"$f":"Dataset[[#This Row],[2026/27 Targeted savings]]","v":0},{"$f":"SUM(Dataset[[#This Row],[2027/28 Targeted savings]],Dataset[[#This Row],[2027/28 From - Total]],Dataset[[#This Row],[2027/28 To - Total]])","v":0},{"$f":"SUM(Dataset[[#This Row],[2028/29 Targeted savings]],Dataset[[#This Row],[2028/29 From - Total]],Dataset[[#This Row],[2028/29 To - Total]])","v":0},{"$f":"SUM(Dataset[[#This Row],[2029/30 Targeted savings]],Dataset[[#This Row],[2029/30 From - Total]],Dataset[[#This Row],[2029/30 To - Total]])","v":0},{"$f":"Dataset[[#This Row],[2026/27 Baseline]]+Dataset[[#This Row],[2026/27 Total change]]","v":0},{"$f":"Dataset[[#This Row],[2027/28 Baseline]]+Dataset[[#This Row],[2027/28 Total change]]","v":0},{"$f":"Dataset[[#This Row],[2028/29 Baseline]]+Dataset[[#This Row],[2028/29 Total change]]","v":0},{"$f":"Dataset[[#This Row],[2029/30 Baseline]]+Dataset[[#This Row],[2029/30 Total change]]","v":0}]
["NAT|Non-transfer item","30|Land and sub-soil assets","2027_28","MTEC2027",30,1,4,32710,190,"30","01","04","032710","000190","30|01|04|000190","02","03","16","61","65","02|03|16|61|65","National","Communications and Digital Technologies","Administration","Corporate Services","Non-transfer item","Capital","Payments for capital assets","Land and sub-soil assets","Land and sub-soil assets","Land and sub-soil assets","Economic development","Economic regulation and infrastructure","NAT",0,0,0,0,0,0,0,0,0,0,0,null,null,null,null,null,null,null,null,null,null,null,null,null,null,null,null,null,null,null,null,null,null,null,null,null,null,null,null,null,null,null,null,null,null,{"$f":"Dataset[[#This Row],[2027/28 From - Spending review Topic 1]]+Dataset[[#This Row],[2027/28 From - Spending review Topic 2]]+Dataset[[#This Row],[2027/28 From - Spending review Topic 3]]+Dataset[[#This Row],[2027/28 From - Spending review Topic 4]]+Dataset[[#This Row],[2027/28 From - Other reallocations]]","v":0},{"$f":"Dataset[[#This Row],[2028/29 From - Spending review Topic 1]]+Dataset[[#This Row],[2028/29 From - Spending review Topic 2]]+Dataset[[#This Row],[2028/29 From - Spending review Topic 3]]+Dataset[[#This Row],[2028/29 From - Spending review Topic 4]]+Dataset[[#This Row],[2028/29 From - Other reallocations]]","v":0},{"$f":"Dataset[[#This Row],[2029/30 From - Spending review Topic 1]]+Dataset[[#This Row],[2029/30 From - Spending review Topic 2]]+Dataset[[#This Row],[2029/30 From - Spending review Topic 3]]+Dataset[[#This Row],[2029/30 From - Spending review Topic 4]]+Dataset[[#This Row],[2029/30 From - Other reallocations]]","v":0},{"$f":"Dataset[[#This Row],[2027/28 To - Spending review Topic 1]]+Dataset[[#This Row],[2027/28 To - Spending review Topic 2]]+Dataset[[#This Row],[2027/28 To - Spending review Topic 3]]+Dataset[[#This Row],[2027/28 To - Spending review Topic 4]]+Dataset[[#This Row],[2027/28 To - Other reallocations]]","v":0},{"$f":"Dataset[[#This Row],[2028/29 To - Spending review Topic 1]]+Dataset[[#This Row],[2028/29 To - Spending review Topic 2]]+Dataset[[#This Row],[2028/29 To - Spending review Topic 3]]+Dataset[[#This Row],[2028/29 To - Spending review Topic 4]]+Dataset[[#This Row],[2028/29 To - Other reallocations]]","v":0},{"$f":"Dataset[[#This Row],[2029/30 To - Spending review Topic 1]]+Dataset[[#This Row],[2029/30 To - Spending review Topic 2]]+Dataset[[#This Row],[2029/30 To - Spending review Topic 3]]+Dataset[[#This Row],[2029/30 To - Spending review Topic 4]]+Dataset[[#This Row],[2029/30 To - Other reallocations]]","v":0},{"$f":"Dataset[[#This Row],[2027/28 Targeted savings]]+Dataset[[#This Row],[2027/28 From - Total]]","v":0},{"$f":"Dataset[[#This Row],[2028/29 Targeted savings]]+Dataset[[#This Row],[2028/29 From - Total]]","v":0},{"$f":"Dataset[[#This Row],[2029/30 Targeted savings]]+Dataset[[#This Row],[2029/30 From - Total]]","v":0},{"$f":"Dataset[[#This Row],[2026/27 Targeted savings]]","v":0},{"$f":"SUM(Dataset[[#This Row],[2027/28 Targeted savings]],Dataset[[#This Row],[2027/28 From - Total]],Dataset[[#This Row],[2027/28 To - Total]])","v":0},{"$f":"SUM(Dataset[[#This Row],[2028/29 Targeted savings]],Dataset[[#This Row],[2028/29 From - Total]],Dataset[[#This Row],[2028/29 To - Total]])","v":0},{"$f":"SUM(Dataset[[#This Row],[2029/30 Targeted savings]],Dataset[[#This Row],[2029/30 From - Total]],Dataset[[#This Row],[2029/30 To - Total]])","v":0},{"$f":"Dataset[[#This Row],[2026/27 Baseline]]+Dataset[[#This Row],[2026/27 Total change]]","v":0},{"$f":"Dataset[[#This Row],[2027/28 Baseline]]+Dataset[[#This Row],[2027/28 Total change]]","v":0},{"$f":"Dataset[[#This Row],[2028/29 Baseline]]+Dataset[[#This Row],[2028/29 Total change]]","v":0},{"$f":"Dataset[[#This Row],[2029/30 Baseline]]+Dataset[[#This Row],[2029/30 Total change]]","v":0}]
["NAT|Non-transfer item","30|Software and other intangible assets","2027_28","MTEC2027",30,1,4,32711,191,"30","01","04","032711","000191","30|01|04|000191","02","03","17","62","66","02|03|17|62|66","National","Communications and Digital Technologies","Administration","Corporate Services","Non-transfer item","Capital","Payments for capital assets","Software and other intangible assets","Software and other intangible assets","Software and other intangible assets","Economic development","Economic regulation and infrastructure","NAT",0,0,0,0,0,0,0,0,0,0,0,null,null,null,null,null,null,null,null,null,null,null,null,null,null,null,null,null,null,null,null,null,null,null,null,null,null,null,null,null,null,null,null,null,null,{"$f":"Dataset[[#This Row],[2027/28 From - Spending review Topic 1]]+Dataset[[#This Row],[2027/28 From - Spending review Topic 2]]+Dataset[[#This Row],[2027/28 From - Spending review Topic 3]]+Dataset[[#This Row],[2027/28 From - Spending review Topic 4]]+Dataset[[#This Row],[2027/28 From - Other reallocations]]","v":0},{"$f":"Dataset[[#This Row],[2028/29 From - Spending review Topic 1]]+Dataset[[#This Row],[2028/29 From - Spending review Topic 2]]+Dataset[[#This Row],[2028/29 From - Spending review Topic 3]]+Dataset[[#This Row],[2028/29 From - Spending review Topic 4]]+Dataset[[#This Row],[2028/29 From - Other reallocations]]","v":0},{"$f":"Dataset[[#This Row],[2029/30 From - Spending review Topic 1]]+Dataset[[#This Row],[2029/30 From - Spending review Topic 2]]+Dataset[[#This Row],[2029/30 From - Spending review Topic 3]]+Dataset[[#This Row],[2029/30 From - Spending review Topic 4]]+Dataset[[#This Row],[2029/30 From - Other reallocations]]","v":0},{"$f":"Dataset[[#This Row],[2027/28 To - Spending review Topic 1]]+Dataset[[#This Row],[2027/28 To - Spending review Topic 2]]+Dataset[[#This Row],[2027/28 To - Spending review Topic 3]]+Dataset[[#This Row],[2027/28 To - Spending review Topic 4]]+Dataset[[#This Row],[2027/28 To - Other reallocations]]","v":0},{"$f":"Dataset[[#This Row],[2028/29 To - Spending review Topic 1]]+Dataset[[#This Row],[2028/29 To - Spending review Topic 2]]+Dataset[[#This Row],[2028/29 To - Spending review Topic 3]]+Dataset[[#This Row],[2028/29 To - Spending review Topic 4]]+Dataset[[#This Row],[2028/29 To - Other reallocations]]","v":0},{"$f":"Dataset[[#This Row],[2029/30 To - Spending review Topic 1]]+Dataset[[#This Row],[2029/30 To - Spending review Topic 2]]+Dataset[[#This Row],[2029/30 To - Spending review Topic 3]]+Dataset[[#This Row],[2029/30 To - Spending review Topic 4]]+Dataset[[#This Row],[2029/30 To - Other reallocations]]","v":0},{"$f":"Dataset[[#This Row],[2027/28 Targeted savings]]+Dataset[[#This Row],[2027/28 From - Total]]","v":0},{"$f":"Dataset[[#This Row],[2028/29 Targeted savings]]+Dataset[[#This Row],[2028/29 From - Total]]","v":0},{"$f":"Dataset[[#This Row],[2029/30 Targeted savings]]+Dataset[[#This Row],[2029/30 From - Total]]","v":0},{"$f":"Dataset[[#This Row],[2026/27 Targeted savings]]","v":0},{"$f":"SUM(Dataset[[#This Row],[2027/28 Targeted savings]],Dataset[[#This Row],[2027/28 From - Total]],Dataset[[#This Row],[2027/28 To - Total]])","v":0},{"$f":"SUM(Dataset[[#This Row],[2028/29 Targeted savings]],Dataset[[#This Row],[2028/29 From - Total]],Dataset[[#This Row],[2028/29 To - Total]])","v":0},{"$f":"SUM(Dataset[[#This Row],[2029/30 Targeted savings]],Dataset[[#This Row],[2029/30 From - Total]],Dataset[[#This Row],[2029/30 To - Total]])","v":0},{"$f":"Dataset[[#This Row],[2026/27 Baseline]]+Dataset[[#This Row],[2026/27 Total change]]","v":0},{"$f":"Dataset[[#This Row],[2027/28 Baseline]]+Dataset[[#This Row],[2027/28 Total change]]","v":0},{"$f":"Dataset[[#This Row],[2028/29 Baseline]]+Dataset[[#This Row],[2028/29 Total change]]","v":0},{"$f":"Dataset[[#This Row],[2029/30 Baseline]]+Dataset[[#This Row],[2029/30 Total change]]","v":0}]
["NAT|Thefts and losses","30|Payments for financial assets","2027_28","MTEC2027",30,1,4,32712,192,"30","01","04","032712","000192","30|01|04|000192","03","04","18","63","67","03|04|18|63|67","National","Communications and Digital Technologies","Administration","Financial Management","Thefts and losses","Payments for financial assets","Payments for financial assets","Payments for financial assets","Payments for financial assets","Payments for financial assets","Economic development","Economic regulation and infrastructure","NAT",361,46,0,0,0,0,0,0,0,0,0,null,null,null,null,null,null,null,null,null,null,null,null,null,null,null,null,null,null,null,null,null,null,null,null,null,null,null,null,null,null,null,null,null,null,{"$f":"Dataset[[#This Row],[2027/28 From - Spending review Topic 1]]+Dataset[[#This Row],[2027/28 From - Spending review Topic 2]]+Dataset[[#This Row],[2027/28 From - Spending review Topic 3]]+Dataset[[#This Row],[2027/28 From - Spending review Topic 4]]+Dataset[[#This Row],[2027/28 From - Other reallocations]]","v":0},{"$f":"Dataset[[#This Row],[2028/29 From - Spending review Topic 1]]+Dataset[[#This Row],[2028/29 From - Spending review Topic 2]]+Dataset[[#This Row],[2028/29 From - Spending review Topic 3]]+Dataset[[#This Row],[2028/29 From - Spending review Topic 4]]+Dataset[[#This Row],[2028/29 From - Other reallocations]]","v":0},{"$f":"Dataset[[#This Row],[2029/30 From - Spending review Topic 1]]+Dataset[[#This Row],[2029/30 From - Spending review Topic 2]]+Dataset[[#This Row],[2029/30 From - Spending review Topic 3]]+Dataset[[#This Row],[2029/30 From - Spending review Topic 4]]+Dataset[[#This Row],[2029/30 From - Other reallocations]]","v":0},{"$f":"Dataset[[#This Row],[2027/28 To - Spending review Topic 1]]+Dataset[[#This Row],[2027/28 To - Spending review Topic 2]]+Dataset[[#This Row],[2027/28 To - Spending review Topic 3]]+Dataset[[#This Row],[2027/28 To - Spending review Topic 4]]+Dataset[[#This Row],[2027/28 To - Other reallocations]]","v":0},{"$f":"Dataset[[#This Row],[2028/29 To - Spending review Topic 1]]+Dataset[[#This Row],[2028/29 To - Spending review Topic 2]]+Dataset[[#This Row],[2028/29 To - Spending review Topic 3]]+Dataset[[#This Row],[2028/29 To - Spending review Topic 4]]+Dataset[[#This Row],[2028/29 To - Other reallocations]]","v":0},{"$f":"Dataset[[#This Row],[2029/30 To - Spending review Topic 1]]+Dataset[[#This Row],[2029/30 To - Spending review Topic 2]]+Dataset[[#This Row],[2029/30 To - Spending review Topic 3]]+Dataset[[#This Row],[2029/30 To - Spending review Topic 4]]+Dataset[[#This Row],[2029/30 To - Other reallocations]]","v":0},{"$f":"Dataset[[#This Row],[2027/28 Targeted savings]]+Dataset[[#This Row],[2027/28 From - Total]]","v":0},{"$f":"Dataset[[#This Row],[2028/29 Targeted savings]]+Dataset[[#This Row],[2028/29 From - Total]]","v":0},{"$f":"Dataset[[#This Row],[2029/30 Targeted savings]]+Dataset[[#This Row],[2029/30 From - Total]]","v":0},{"$f":"Dataset[[#This Row],[2026/27 Targeted savings]]","v":0},{"$f":"SUM(Dataset[[#This Row],[2027/28 Targeted savings]],Dataset[[#This Row],[2027/28 From - Total]],Dataset[[#This Row],[2027/28 To - Total]])","v":0},{"$f":"SUM(Dataset[[#This Row],[2028/29 Targeted savings]],Dataset[[#This Row],[2028/29 From - Total]],Dataset[[#This Row],[2028/29 To - Total]])","v":0},{"$f":"SUM(Dataset[[#This Row],[2029/30 Targeted savings]],Dataset[[#This Row],[2029/30 From - Total]],Dataset[[#This Row],[2029/30 To - Total]])","v":0},{"$f":"Dataset[[#This Row],[2026/27 Baseline]]+Dataset[[#This Row],[2026/27 Total change]]","v":0},{"$f":"Dataset[[#This Row],[2027/28 Baseline]]+Dataset[[#This Row],[2027/28 Total change]]","v":0},{"$f":"Dataset[[#This Row],[2028/29 Baseline]]+Dataset[[#This Row],[2028/29 Total change]]","v":0},{"$f":"Dataset[[#This Row],[2029/30 Baseline]]+Dataset[[#This Row],[2029/30 Total change]]","v":0}]
["NAT|Non-transfer item","30|Salaries and wages","2027_28","MTEC2027",30,1,5,32713,193,"30","01","05","032713","000193","30|01|05|000193","01","01","01","01","01","01|01|01|01|01","National","Communications and Digital Technologies","Administration","Financial Management","Non-transfer item","Current","Current payments","Compensation of employees","Salaries and wages","Salaries and wages","Economic development","Economic regulation and infrastructure","NAT",0,0,0,0,0,0,27414,0,0,0,0,null,null,null,null,null,null,null,null,null,null,null,null,null,null,null,null,null,null,null,null,null,null,null,null,null,null,null,null,null,null,null,null,null,null,{"$f":"Dataset[[#This Row],[2027/28 From - Spending review Topic 1]]+Dataset[[#This Row],[2027/28 From - Spending review Topic 2]]+Dataset[[#This Row],[2027/28 From - Spending review Topic 3]]+Dataset[[#This Row],[2027/28 From - Spending review Topic 4]]+Dataset[[#This Row],[2027/28 From - Other reallocations]]","v":0},{"$f":"Dataset[[#This Row],[2028/29 From - Spending review Topic 1]]+Dataset[[#This Row],[2028/29 From - Spending review Topic 2]]+Dataset[[#This Row],[2028/29 From - Spending review Topic 3]]+Dataset[[#This Row],[2028/29 From - Spending review Topic 4]]+Dataset[[#This Row],[2028/29 From - Other reallocations]]","v":0},{"$f":"Dataset[[#This Row],[2029/30 From - Spending review Topic 1]]+Dataset[[#This Row],[2029/30 From - Spending review Topic 2]]+Dataset[[#This Row],[2029/30 From - Spending review Topic 3]]+Dataset[[#This Row],[2029/30 From - Spending review Topic 4]]+Dataset[[#This Row],[2029/30 From - Other reallocations]]","v":0},{"$f":"Dataset[[#This Row],[2027/28 To - Spending review Topic 1]]+Dataset[[#This Row],[2027/28 To - Spending review Topic 2]]+Dataset[[#This Row],[2027/28 To - Spending review Topic 3]]+Dataset[[#This Row],[2027/28 To - Spending review Topic 4]]+Dataset[[#This Row],[2027/28 To - Other reallocations]]","v":0},{"$f":"Dataset[[#This Row],[2028/29 To - Spending review Topic 1]]+Dataset[[#This Row],[2028/29 To - Spending review Topic 2]]+Dataset[[#This Row],[2028/29 To - Spending review Topic 3]]+Dataset[[#This Row],[2028/29 To - Spending review Topic 4]]+Dataset[[#This Row],[2028/29 To - Other reallocations]]","v":0},{"$f":"Dataset[[#This Row],[2029/30 To - Spending review Topic 1]]+Dataset[[#This Row],[2029/30 To - Spending review Topic 2]]+Dataset[[#This Row],[2029/30 To - Spending review Topic 3]]+Dataset[[#This Row],[2029/30 To - Spending review Topic 4]]+Dataset[[#This Row],[2029/30 To - Other reallocations]]","v":0},{"$f":"Dataset[[#This Row],[2027/28 Targeted savings]]+Dataset[[#This Row],[2027/28 From - Total]]","v":0},{"$f":"Dataset[[#This Row],[2028/29 Targeted savings]]+Dataset[[#This Row],[2028/29 From - Total]]","v":0},{"$f":"Dataset[[#This Row],[2029/30 Targeted savings]]+Dataset[[#This Row],[2029/30 From - Total]]","v":0},{"$f":"Dataset[[#This Row],[2026/27 Targeted savings]]","v":0},{"$f":"SUM(Dataset[[#This Row],[2027/28 Targeted savings]],Dataset[[#This Row],[2027/28 From - Total]],Dataset[[#This Row],[2027/28 To - Total]])","v":0},{"$f":"SUM(Dataset[[#This Row],[2028/29 Targeted savings]],Dataset[[#This Row],[2028/29 From - Total]],Dataset[[#This Row],[2028/29 To - Total]])","v":0},{"$f":"SUM(Dataset[[#This Row],[2029/30 Targeted savings]],Dataset[[#This Row],[2029/30 From - Total]],Dataset[[#This Row],[2029/30 To - Total]])","v":0},{"$f":"Dataset[[#This Row],[2026/27 Baseline]]+Dataset[[#This Row],[2026/27 Total change]]","v":0},{"$f":"Dataset[[#This Row],[2027/28 Baseline]]+Dataset[[#This Row],[2027/28 Total change]]","v":0},{"$f":"Dataset[[#This Row],[2028/29 Baseline]]+Dataset[[#This Row],[2028/29 Total change]]","v":0},{"$f":"Dataset[[#This Row],[2029/30 Baseline]]+Dataset[[#This Row],[2029/30 Total change]]","v":0}]
["NAT|Non-transfer item","30|Social contributions","2027_28","MTEC2027",30,1,5,32714,194,"30","01","05","032714","000194","30|01|05|000194","01","01","01","02","02","01|01|01|02|02","National","Communications and Digital Technologies","Administration","Financial Management","Non-transfer item","Current","Current payments","Compensation of employees","Social contributions","Social contributions","Economic development","Economic regulation and infrastructure","NAT",0,0,0,0,0,0,4098,0,0,0,0,null,null,null,null,null,null,null,null,null,null,null,null,null,null,null,null,null,null,null,null,null,null,null,null,null,null,null,null,null,null,null,null,null,null,{"$f":"Dataset[[#This Row],[2027/28 From - Spending review Topic 1]]+Dataset[[#This Row],[2027/28 From - Spending review Topic 2]]+Dataset[[#This Row],[2027/28 From - Spending review Topic 3]]+Dataset[[#This Row],[2027/28 From - Spending review Topic 4]]+Dataset[[#This Row],[2027/28 From - Other reallocations]]","v":0},{"$f":"Dataset[[#This Row],[2028/29 From - Spending review Topic 1]]+Dataset[[#This Row],[2028/29 From - Spending review Topic 2]]+Dataset[[#This Row],[2028/29 From - Spending review Topic 3]]+Dataset[[#This Row],[2028/29 From - Spending review Topic 4]]+Dataset[[#This Row],[2028/29 From - Other reallocations]]","v":0},{"$f":"Dataset[[#This Row],[2029/30 From - Spending review Topic 1]]+Dataset[[#This Row],[2029/30 From - Spending review Topic 2]]+Dataset[[#This Row],[2029/30 From - Spending review Topic 3]]+Dataset[[#This Row],[2029/30 From - Spending review Topic 4]]+Dataset[[#This Row],[2029/30 From - Other reallocations]]","v":0},{"$f":"Dataset[[#This Row],[2027/28 To - Spending review Topic 1]]+Dataset[[#This Row],[2027/28 To - Spending review Topic 2]]+Dataset[[#This Row],[2027/28 To - Spending review Topic 3]]+Dataset[[#This Row],[2027/28 To - Spending review Topic 4]]+Dataset[[#This Row],[2027/28 To - Other reallocations]]","v":0},{"$f":"Dataset[[#This Row],[2028/29 To - Spending review Topic 1]]+Dataset[[#This Row],[2028/29 To - Spending review Topic 2]]+Dataset[[#This Row],[2028/29 To - Spending review Topic 3]]+Dataset[[#This Row],[2028/29 To - Spending review Topic 4]]+Dataset[[#This Row],[2028/29 To - Other reallocations]]","v":0},{"$f":"Dataset[[#This Row],[2029/30 To - Spending review Topic 1]]+Dataset[[#This Row],[2029/30 To - Spending review Topic 2]]+Dataset[[#This Row],[2029/30 To - Spending review Topic 3]]+Dataset[[#This Row],[2029/30 To - Spending review Topic 4]]+Dataset[[#This Row],[2029/30 To - Other reallocations]]","v":0},{"$f":"Dataset[[#This Row],[2027/28 Targeted savings]]+Dataset[[#This Row],[2027/28 From - Total]]","v":0},{"$f":"Dataset[[#This Row],[2028/29 Targeted savings]]+Dataset[[#This Row],[2028/29 From - Total]]","v":0},{"$f":"Dataset[[#This Row],[2029/30 Targeted savings]]+Dataset[[#This Row],[2029/30 From - Total]]","v":0},{"$f":"Dataset[[#This Row],[2026/27 Targeted savings]]","v":0},{"$f":"SUM(Dataset[[#This Row],[2027/28 Targeted savings]],Dataset[[#This Row],[2027/28 From - Total]],Dataset[[#This Row],[2027/28 To - Total]])","v":0},{"$f":"SUM(Dataset[[#This Row],[2028/29 Targeted savings]],Dataset[[#This Row],[2028/29 From - Total]],Dataset[[#This Row],[2028/29 To - Total]])","v":0},{"$f":"SUM(Dataset[[#This Row],[2029/30 Targeted savings]],Dataset[[#This Row],[2029/30 From - Total]],Dataset[[#This Row],[2029/30 To - Total]])","v":0},{"$f":"Dataset[[#This Row],[2026/27 Baseline]]+Dataset[[#This Row],[2026/27 Total change]]","v":0},{"$f":"Dataset[[#This Row],[2027/28 Baseline]]+Dataset[[#This Row],[2027/28 Total change]]","v":0},{"$f":"Dataset[[#This Row],[2028/29 Baseline]]+Dataset[[#This Row],[2028/29 Total change]]","v":0},{"$f":"Dataset[[#This Row],[2029/30 Baseline]]+Dataset[[#This Row],[2029/30 Total change]]","v":0}]
["NAT|Non-transfer item","30|Administrative fees","2027_28","MTEC2027",30,1,5,32715,195,"30","01","05","032715","000195","30|01|05|000195","01","01","02","03","03","01|01|02|03|03","National","Communications and Digital Technologies","Administration","Financial Management","Non-transfer item","Current","Current payments","Goods and services","Administrative fees","Administrative fees","Economic development","Economic regulation and infrastructure","NAT",0,0,0,0,0,0,147,0,0,0,0,null,null,null,null,null,null,null,null,null,null,null,null,null,null,null,null,null,null,null,null,null,null,null,null,null,null,null,null,null,null,null,null,null,null,{"$f":"Dataset[[#This Row],[2027/28 From - Spending review Topic 1]]+Dataset[[#This Row],[2027/28 From - Spending review Topic 2]]+Dataset[[#This Row],[2027/28 From - Spending review Topic 3]]+Dataset[[#This Row],[2027/28 From - Spending review Topic 4]]+Dataset[[#This Row],[2027/28 From - Other reallocations]]","v":0},{"$f":"Dataset[[#This Row],[2028/29 From - Spending review Topic 1]]+Dataset[[#This Row],[2028/29 From - Spending review Topic 2]]+Dataset[[#This Row],[2028/29 From - Spending review Topic 3]]+Dataset[[#This Row],[2028/29 From - Spending review Topic 4]]+Dataset[[#This Row],[2028/29 From - Other reallocations]]","v":0},{"$f":"Dataset[[#This Row],[2029/30 From - Spending review Topic 1]]+Dataset[[#This Row],[2029/30 From - Spending review Topic 2]]+Dataset[[#This Row],[2029/30 From - Spending review Topic 3]]+Dataset[[#This Row],[2029/30 From - Spending review Topic 4]]+Dataset[[#This Row],[2029/30 From - Other reallocations]]","v":0},{"$f":"Dataset[[#This Row],[2027/28 To - Spending review Topic 1]]+Dataset[[#This Row],[2027/28 To - Spending review Topic 2]]+Dataset[[#This Row],[2027/28 To - Spending review Topic 3]]+Dataset[[#This Row],[2027/28 To - Spending review Topic 4]]+Dataset[[#This Row],[2027/28 To - Other reallocations]]","v":0},{"$f":"Dataset[[#This Row],[2028/29 To - Spending review Topic 1]]+Dataset[[#This Row],[2028/29 To - Spending review Topic 2]]+Dataset[[#This Row],[2028/29 To - Spending review Topic 3]]+Dataset[[#This Row],[2028/29 To - Spending review Topic 4]]+Dataset[[#This Row],[2028/29 To - Other reallocations]]","v":0},{"$f":"Dataset[[#This Row],[2029/30 To - Spending review Topic 1]]+Dataset[[#This Row],[2029/30 To - Spending review Topic 2]]+Dataset[[#This Row],[2029/30 To - Spending review Topic 3]]+Dataset[[#This Row],[2029/30 To - Spending review Topic 4]]+Dataset[[#This Row],[2029/30 To - Other reallocations]]","v":0},{"$f":"Dataset[[#This Row],[2027/28 Targeted savings]]+Dataset[[#This Row],[2027/28 From - Total]]","v":0},{"$f":"Dataset[[#This Row],[2028/29 Targeted savings]]+Dataset[[#This Row],[2028/29 From - Total]]","v":0},{"$f":"Dataset[[#This Row],[2029/30 Targeted savings]]+Dataset[[#This Row],[2029/30 From - Total]]","v":0},{"$f":"Dataset[[#This Row],[2026/27 Targeted savings]]","v":0},{"$f":"SUM(Dataset[[#This Row],[2027/28 Targeted savings]],Dataset[[#This Row],[2027/28 From - Total]],Dataset[[#This Row],[2027/28 To - Total]])","v":0},{"$f":"SUM(Dataset[[#This Row],[2028/29 Targeted savings]],Dataset[[#This Row],[2028/29 From - Total]],Dataset[[#This Row],[2028/29 To - Total]])","v":0},{"$f":"SUM(Dataset[[#This Row],[2029/30 Targeted savings]],Dataset[[#This Row],[2029/30 From - Total]],Dataset[[#This Row],[2029/30 To - Total]])","v":0},{"$f":"Dataset[[#This Row],[2026/27 Baseline]]+Dataset[[#This Row],[2026/27 Total change]]","v":0},{"$f":"Dataset[[#This Row],[2027/28 Baseline]]+Dataset[[#This Row],[2027/28 Total change]]","v":0},{"$f":"Dataset[[#This Row],[2028/29 Baseline]]+Dataset[[#This Row],[2028/29 Total change]]","v":0},{"$f":"Dataset[[#This Row],[2029/30 Baseline]]+Dataset[[#This Row],[2029/30 Total change]]","v":0}]
["NAT|Non-transfer item","30|Advertising","2027_28","MTEC2027",30,1,5,32716,196,"30","01","05","032716","000196","30|01|05|000196","01","01","02","04","04","01|01|02|04|04","National","Communications and Digital Technologies","Administration","Financial Management","Non-transfer item","Current","Current payments","Goods and services","Advertising","Advertising","Economic development","Economic regulation and infrastructure","NAT",0,0,0,0,0,0,0,0,0,0,0,null,null,null,null,null,null,null,null,null,null,null,null,null,null,null,null,null,null,null,null,null,null,null,null,null,null,null,null,null,null,null,null,null,null,{"$f":"Dataset[[#This Row],[2027/28 From - Spending review Topic 1]]+Dataset[[#This Row],[2027/28 From - Spending review Topic 2]]+Dataset[[#This Row],[2027/28 From - Spending review Topic 3]]+Dataset[[#This Row],[2027/28 From - Spending review Topic 4]]+Dataset[[#This Row],[2027/28 From - Other reallocations]]","v":0},{"$f":"Dataset[[#This Row],[2028/29 From - Spending review Topic 1]]+Dataset[[#This Row],[2028/29 From - Spending review Topic 2]]+Dataset[[#This Row],[2028/29 From - Spending review Topic 3]]+Dataset[[#This Row],[2028/29 From - Spending review Topic 4]]+Dataset[[#This Row],[2028/29 From - Other reallocations]]","v":0},{"$f":"Dataset[[#This Row],[2029/30 From - Spending review Topic 1]]+Dataset[[#This Row],[2029/30 From - Spending review Topic 2]]+Dataset[[#This Row],[2029/30 From - Spending review Topic 3]]+Dataset[[#This Row],[2029/30 From - Spending review Topic 4]]+Dataset[[#This Row],[2029/30 From - Other reallocations]]","v":0},{"$f":"Dataset[[#This Row],[2027/28 To - Spending review Topic 1]]+Dataset[[#This Row],[2027/28 To - Spending review Topic 2]]+Dataset[[#This Row],[2027/28 To - Spending review Topic 3]]+Dataset[[#This Row],[2027/28 To - Spending review Topic 4]]+Dataset[[#This Row],[2027/28 To - Other reallocations]]","v":0},{"$f":"Dataset[[#This Row],[2028/29 To - Spending review Topic 1]]+Dataset[[#This Row],[2028/29 To - Spending review Topic 2]]+Dataset[[#This Row],[2028/29 To - Spending review Topic 3]]+Dataset[[#This Row],[2028/29 To - Spending review Topic 4]]+Dataset[[#This Row],[2028/29 To - Other reallocations]]","v":0},{"$f":"Dataset[[#This Row],[2029/30 To - Spending review Topic 1]]+Dataset[[#This Row],[2029/30 To - Spending review Topic 2]]+Dataset[[#This Row],[2029/30 To - Spending review Topic 3]]+Dataset[[#This Row],[2029/30 To - Spending review Topic 4]]+Dataset[[#This Row],[2029/30 To - Other reallocations]]","v":0},{"$f":"Dataset[[#This Row],[2027/28 Targeted savings]]+Dataset[[#This Row],[2027/28 From - Total]]","v":0},{"$f":"Dataset[[#This Row],[2028/29 Targeted savings]]+Dataset[[#This Row],[2028/29 From - Total]]","v":0},{"$f":"Dataset[[#This Row],[2029/30 Targeted savings]]+Dataset[[#This Row],[2029/30 From - Total]]","v":0},{"$f":"Dataset[[#This Row],[2026/27 Targeted savings]]","v":0},{"$f":"SUM(Dataset[[#This Row],[2027/28 Targeted savings]],Dataset[[#This Row],[2027/28 From - Total]],Dataset[[#This Row],[2027/28 To - Total]])","v":0},{"$f":"SUM(Dataset[[#This Row],[2028/29 Targeted savings]],Dataset[[#This Row],[2028/29 From - Total]],Dataset[[#This Row],[2028/29 To - Total]])","v":0},{"$f":"SUM(Dataset[[#This Row],[2029/30 Targeted savings]],Dataset[[#This Row],[2029/30 From - Total]],Dataset[[#This Row],[2029/30 To - Total]])","v":0},{"$f":"Dataset[[#This Row],[2026/27 Baseline]]+Dataset[[#This Row],[2026/27 Total change]]","v":0},{"$f":"Dataset[[#This Row],[2027/28 Baseline]]+Dataset[[#This Row],[2027/28 Total change]]","v":0},{"$f":"Dataset[[#This Row],[2028/29 Baseline]]+Dataset[[#This Row],[2028/29 Total change]]","v":0},{"$f":"Dataset[[#This Row],[2029/30 Baseline]]+Dataset[[#This Row],[2029/30 Total change]]","v":0}]
["NAT|Non-transfer item","30|Minor assets","2027_28","MTEC2027",30,1,5,32717,197,"30","01","05","032717","000197","30|01|05|000197","01","01","02","05","05","01|01|02|05|05","National","Communications and Digital Technologies","Administration","Financial Management","Non-transfer item","Current","Current payments","Goods and services","Minor assets","Minor assets","Economic development","Economic regulation and infrastructure","NAT",0,0,0,0,0,0,456,0,0,0,0,null,null,null,null,null,null,null,null,null,null,null,null,null,null,null,null,null,null,null,null,null,null,null,null,null,null,null,null,null,null,null,null,null,null,{"$f":"Dataset[[#This Row],[2027/28 From - Spending review Topic 1]]+Dataset[[#This Row],[2027/28 From - Spending review Topic 2]]+Dataset[[#This Row],[2027/28 From - Spending review Topic 3]]+Dataset[[#This Row],[2027/28 From - Spending review Topic 4]]+Dataset[[#This Row],[2027/28 From - Other reallocations]]","v":0},{"$f":"Dataset[[#This Row],[2028/29 From - Spending review Topic 1]]+Dataset[[#This Row],[2028/29 From - Spending review Topic 2]]+Dataset[[#This Row],[2028/29 From - Spending review Topic 3]]+Dataset[[#This Row],[2028/29 From - Spending review Topic 4]]+Dataset[[#This Row],[2028/29 From - Other reallocations]]","v":0},{"$f":"Dataset[[#This Row],[2029/30 From - Spending review Topic 1]]+Dataset[[#This Row],[2029/30 From - Spending review Topic 2]]+Dataset[[#This Row],[2029/30 From - Spending review Topic 3]]+Dataset[[#This Row],[2029/30 From - Spending review Topic 4]]+Dataset[[#This Row],[2029/30 From - Other reallocations]]","v":0},{"$f":"Dataset[[#This Row],[2027/28 To - Spending review Topic 1]]+Dataset[[#This Row],[2027/28 To - Spending review Topic 2]]+Dataset[[#This Row],[2027/28 To - Spending review Topic 3]]+Dataset[[#This Row],[2027/28 To - Spending review Topic 4]]+Dataset[[#This Row],[2027/28 To - Other reallocations]]","v":0},{"$f":"Dataset[[#This Row],[2028/29 To - Spending review Topic 1]]+Dataset[[#This Row],[2028/29 To - Spending review Topic 2]]+Dataset[[#This Row],[2028/29 To - Spending review Topic 3]]+Dataset[[#This Row],[2028/29 To - Spending review Topic 4]]+Dataset[[#This Row],[2028/29 To - Other reallocations]]","v":0},{"$f":"Dataset[[#This Row],[2029/30 To - Spending review Topic 1]]+Dataset[[#This Row],[2029/30 To - Spending review Topic 2]]+Dataset[[#This Row],[2029/30 To - Spending review Topic 3]]+Dataset[[#This Row],[2029/30 To - Spending review Topic 4]]+Dataset[[#This Row],[2029/30 To - Other reallocations]]","v":0},{"$f":"Dataset[[#This Row],[2027/28 Targeted savings]]+Dataset[[#This Row],[2027/28 From - Total]]","v":0},{"$f":"Dataset[[#This Row],[2028/29 Targeted savings]]+Dataset[[#This Row],[2028/29 From - Total]]","v":0},{"$f":"Dataset[[#This Row],[2029/30 Targeted savings]]+Dataset[[#This Row],[2029/30 From - Total]]","v":0},{"$f":"Dataset[[#This Row],[2026/27 Targeted savings]]","v":0},{"$f":"SUM(Dataset[[#This Row],[2027/28 Targeted savings]],Dataset[[#This Row],[2027/28 From - Total]],Dataset[[#This Row],[2027/28 To - Total]])","v":0},{"$f":"SUM(Dataset[[#This Row],[2028/29 Targeted savings]],Dataset[[#This Row],[2028/29 From - Total]],Dataset[[#This Row],[2028/29 To - Total]])","v":0},{"$f":"SUM(Dataset[[#This Row],[2029/30 Targeted savings]],Dataset[[#This Row],[2029/30 From - Total]],Dataset[[#This Row],[2029/30 To - Total]])","v":0},{"$f":"Dataset[[#This Row],[2026/27 Baseline]]+Dataset[[#This Row],[2026/27 Total change]]","v":0},{"$f":"Dataset[[#This Row],[2027/28 Baseline]]+Dataset[[#This Row],[2027/28 Total change]]","v":0},{"$f":"Dataset[[#This Row],[2028/29 Baseline]]+Dataset[[#This Row],[2028/29 Total change]]","v":0},{"$f":"Dataset[[#This Row],[2029/30 Baseline]]+Dataset[[#This Row],[2029/30 Total change]]","v":0}]
["NAT|Non-transfer item","30|Audit costs: External","2027_28","MTEC2027",30,1,5,32718,198,"30","01","05","032718","000198","30|01|05|000198","01","01","02","06","06","01|01|02|06|06","National","Communications and Digital Technologies","Administration","Financial Management","Non-transfer item","Current","Current payments","Goods and services","Audit costs: External","Audit costs: External","Economic development","Economic regulation and infrastructure","NAT",0,0,0,0,0,0,5157,0,0,0,0,null,null,null,null,null,null,null,null,null,null,null,null,null,null,null,null,null,null,null,null,null,null,null,null,null,null,null,null,null,null,null,null,null,null,{"$f":"Dataset[[#This Row],[2027/28 From - Spending review Topic 1]]+Dataset[[#This Row],[2027/28 From - Spending review Topic 2]]+Dataset[[#This Row],[2027/28 From - Spending review Topic 3]]+Dataset[[#This Row],[2027/28 From - Spending review Topic 4]]+Dataset[[#This Row],[2027/28 From - Other reallocations]]","v":0},{"$f":"Dataset[[#This Row],[2028/29 From - Spending review Topic 1]]+Dataset[[#This Row],[2028/29 From - Spending review Topic 2]]+Dataset[[#This Row],[2028/29 From - Spending review Topic 3]]+Dataset[[#This Row],[2028/29 From - Spending review Topic 4]]+Dataset[[#This Row],[2028/29 From - Other reallocations]]","v":0},{"$f":"Dataset[[#This Row],[2029/30 From - Spending review Topic 1]]+Dataset[[#This Row],[2029/30 From - Spending review Topic 2]]+Dataset[[#This Row],[2029/30 From - Spending review Topic 3]]+Dataset[[#This Row],[2029/30 From - Spending review Topic 4]]+Dataset[[#This Row],[2029/30 From - Other reallocations]]","v":0},{"$f":"Dataset[[#This Row],[2027/28 To - Spending review Topic 1]]+Dataset[[#This Row],[2027/28 To - Spending review Topic 2]]+Dataset[[#This Row],[2027/28 To - Spending review Topic 3]]+Dataset[[#This Row],[2027/28 To - Spending review Topic 4]]+Dataset[[#This Row],[2027/28 To - Other reallocations]]","v":0},{"$f":"Dataset[[#This Row],[2028/29 To - Spending review Topic 1]]+Dataset[[#This Row],[2028/29 To - Spending review Topic 2]]+Dataset[[#This Row],[2028/29 To - Spending review Topic 3]]+Dataset[[#This Row],[2028/29 To - Spending review Topic 4]]+Dataset[[#This Row],[2028/29 To - Other reallocations]]","v":0},{"$f":"Dataset[[#This Row],[2029/30 To - Spending review Topic 1]]+Dataset[[#This Row],[2029/30 To - Spending review Topic 2]]+Dataset[[#This Row],[2029/30 To - Spending review Topic 3]]+Dataset[[#This Row],[2029/30 To - Spending review Topic 4]]+Dataset[[#This Row],[2029/30 To - Other reallocations]]","v":0},{"$f":"Dataset[[#This Row],[2027/28 Targeted savings]]+Dataset[[#This Row],[2027/28 From - Total]]","v":0},{"$f":"Dataset[[#This Row],[2028/29 Targeted savings]]+Dataset[[#This Row],[2028/29 From - Total]]","v":0},{"$f":"Dataset[[#This Row],[2029/30 Targeted savings]]+Dataset[[#This Row],[2029/30 From - Total]]","v":0},{"$f":"Dataset[[#This Row],[2026/27 Targeted savings]]","v":0},{"$f":"SUM(Dataset[[#This Row],[2027/28 Targeted savings]],Dataset[[#This Row],[2027/28 From - Total]],Dataset[[#This Row],[2027/28 To - Total]])","v":0},{"$f":"SUM(Dataset[[#This Row],[2028/29 Targeted savings]],Dataset[[#This Row],[2028/29 From - Total]],Dataset[[#This Row],[2028/29 To - Total]])","v":0},{"$f":"SUM(Dataset[[#This Row],[2029/30 Targeted savings]],Dataset[[#This Row],[2029/30 From - Total]],Dataset[[#This Row],[2029/30 To - Total]])","v":0},{"$f":"Dataset[[#This Row],[2026/27 Baseline]]+Dataset[[#This Row],[2026/27 Total change]]","v":0},{"$f":"Dataset[[#This Row],[2027/28 Baseline]]+Dataset[[#This Row],[2027/28 Total change]]","v":0},{"$f":"Dataset[[#This Row],[2028/29 Baseline]]+Dataset[[#This Row],[2028/29 Total change]]","v":0},{"$f":"Dataset[[#This Row],[2029/30 Baseline]]+Dataset[[#This Row],[2029/30 Total change]]","v":0}]
["NAT|Non-transfer item","30|Bursaries: Employees","2027_28","MTEC2027",30,1,5,32719,199,"30","01","05","032719","000199","30|01|05|000199","01","01","02","07","07","01|01|02|07|07","National","Communications and Digital Technologies","Administration","Financial Management","Non-transfer item","Current","Current payments","Goods and services","Bursaries: Employees","Bursaries: Employees","Economic development","Economic regulation and infrastructure","NAT",0,0,0,0,0,0,359,0,0,0,0,null,null,null,null,null,null,null,null,null,null,null,null,null,null,null,null,null,null,null,null,null,null,null,null,null,null,null,null,null,null,null,null,null,null,{"$f":"Dataset[[#This Row],[2027/28 From - Spending review Topic 1]]+Dataset[[#This Row],[2027/28 From - Spending review Topic 2]]+Dataset[[#This Row],[2027/28 From - Spending review Topic 3]]+Dataset[[#This Row],[2027/28 From - Spending review Topic 4]]+Dataset[[#This Row],[2027/28 From - Other reallocations]]","v":0},{"$f":"Dataset[[#This Row],[2028/29 From - Spending review Topic 1]]+Dataset[[#This Row],[2028/29 From - Spending review Topic 2]]+Dataset[[#This Row],[2028/29 From - Spending review Topic 3]]+Dataset[[#This Row],[2028/29 From - Spending review Topic 4]]+Dataset[[#This Row],[2028/29 From - Other reallocations]]","v":0},{"$f":"Dataset[[#This Row],[2029/30 From - Spending review Topic 1]]+Dataset[[#This Row],[2029/30 From - Spending review Topic 2]]+Dataset[[#This Row],[2029/30 From - Spending review Topic 3]]+Dataset[[#This Row],[2029/30 From - Spending review Topic 4]]+Dataset[[#This Row],[2029/30 From - Other reallocations]]","v":0},{"$f":"Dataset[[#This Row],[2027/28 To - Spending review Topic 1]]+Dataset[[#This Row],[2027/28 To - Spending review Topic 2]]+Dataset[[#This Row],[2027/28 To - Spending review Topic 3]]+Dataset[[#This Row],[2027/28 To - Spending review Topic 4]]+Dataset[[#This Row],[2027/28 To - Other reallocations]]","v":0},{"$f":"Dataset[[#This Row],[2028/29 To - Spending review Topic 1]]+Dataset[[#This Row],[2028/29 To - Spending review Topic 2]]+Dataset[[#This Row],[2028/29 To - Spending review Topic 3]]+Dataset[[#This Row],[2028/29 To - Spending review Topic 4]]+Dataset[[#This Row],[2028/29 To - Other reallocations]]","v":0},{"$f":"Dataset[[#This Row],[2029/30 To - Spending review Topic 1]]+Dataset[[#This Row],[2029/30 To - Spending review Topic 2]]+Dataset[[#This Row],[2029/30 To - Spending review Topic 3]]+Dataset[[#This Row],[2029/30 To - Spending review Topic 4]]+Dataset[[#This Row],[2029/30 To - Other reallocations]]","v":0},{"$f":"Dataset[[#This Row],[2027/28 Targeted savings]]+Dataset[[#This Row],[2027/28 From - Total]]","v":0},{"$f":"Dataset[[#This Row],[2028/29 Targeted savings]]+Dataset[[#This Row],[2028/29 From - Total]]","v":0},{"$f":"Dataset[[#This Row],[2029/30 Targeted savings]]+Dataset[[#This Row],[2029/30 From - Total]]","v":0},{"$f":"Dataset[[#This Row],[2026/27 Targeted savings]]","v":0},{"$f":"SUM(Dataset[[#This Row],[2027/28 Targeted savings]],Dataset[[#This Row],[2027/28 From - Total]],Dataset[[#This Row],[2027/28 To - Total]])","v":0},{"$f":"SUM(Dataset[[#This Row],[2028/29 Targeted savings]],Dataset[[#This Row],[2028/29 From - Total]],Dataset[[#This Row],[2028/29 To - Total]])","v":0},{"$f":"SUM(Dataset[[#This Row],[2029/30 Targeted savings]],Dataset[[#This Row],[2029/30 From - Total]],Dataset[[#This Row],[2029/30 To - Total]])","v":0},{"$f":"Dataset[[#This Row],[2026/27 Baseline]]+Dataset[[#This Row],[2026/27 Total change]]","v":0},{"$f":"Dataset[[#This Row],[2027/28 Baseline]]+Dataset[[#This Row],[2027/28 Total change]]","v":0},{"$f":"Dataset[[#This Row],[2028/29 Baseline]]+Dataset[[#This Row],[2028/29 Total change]]","v":0},{"$f":"Dataset[[#This Row],[2029/30 Baseline]]+Dataset[[#This Row],[2029/30 Total change]]","v":0}]
["NAT|Non-transfer item","30|Catering: Departmental activities","2027_28","MTEC2027",30,1,5,32720,200,"30","01","05","032720","000200","30|01|05|000200","01","01","02","08","08","01|01|02|08|08","National","Communications and Digital Technologies","Administration","Financial Management","Non-transfer item","Current","Current payments","Goods and services","Catering: Departmental activities","Catering: Departmental activities","Economic development","Economic regulation and infrastructure","NAT",0,0,0,0,0,0,49,0,0,0,0,null,null,null,null,null,null,null,null,null,null,null,null,null,null,null,null,null,null,null,null,null,null,null,null,null,null,null,null,null,null,null,null,null,null,{"$f":"Dataset[[#This Row],[2027/28 From - Spending review Topic 1]]+Dataset[[#This Row],[2027/28 From - Spending review Topic 2]]+Dataset[[#This Row],[2027/28 From - Spending review Topic 3]]+Dataset[[#This Row],[2027/28 From - Spending review Topic 4]]+Dataset[[#This Row],[2027/28 From - Other reallocations]]","v":0},{"$f":"Dataset[[#This Row],[2028/29 From - Spending review Topic 1]]+Dataset[[#This Row],[2028/29 From - Spending review Topic 2]]+Dataset[[#This Row],[2028/29 From - Spending review Topic 3]]+Dataset[[#This Row],[2028/29 From - Spending review Topic 4]]+Dataset[[#This Row],[2028/29 From - Other reallocations]]","v":0},{"$f":"Dataset[[#This Row],[2029/30 From - Spending review Topic 1]]+Dataset[[#This Row],[2029/30 From - Spending review Topic 2]]+Dataset[[#This Row],[2029/30 From - Spending review Topic 3]]+Dataset[[#This Row],[2029/30 From - Spending review Topic 4]]+Dataset[[#This Row],[2029/30 From - Other reallocations]]","v":0},{"$f":"Dataset[[#This Row],[2027/28 To - Spending review Topic 1]]+Dataset[[#This Row],[2027/28 To - Spending review Topic 2]]+Dataset[[#This Row],[2027/28 To - Spending review Topic 3]]+Dataset[[#This Row],[2027/28 To - Spending review Topic 4]]+Dataset[[#This Row],[2027/28 To - Other reallocations]]","v":0},{"$f":"Dataset[[#This Row],[2028/29 To - Spending review Topic 1]]+Dataset[[#This Row],[2028/29 To - Spending review Topic 2]]+Dataset[[#This Row],[2028/29 To - Spending review Topic 3]]+Dataset[[#This Row],[2028/29 To - Spending review Topic 4]]+Dataset[[#This Row],[2028/29 To - Other reallocations]]","v":0},{"$f":"Dataset[[#This Row],[2029/30 To - Spending review Topic 1]]+Dataset[[#This Row],[2029/30 To - Spending review Topic 2]]+Dataset[[#This Row],[2029/30 To - Spending review Topic 3]]+Dataset[[#This Row],[2029/30 To - Spending review Topic 4]]+Dataset[[#This Row],[2029/30 To - Other reallocations]]","v":0},{"$f":"Dataset[[#This Row],[2027/28 Targeted savings]]+Dataset[[#This Row],[2027/28 From - Total]]","v":0},{"$f":"Dataset[[#This Row],[2028/29 Targeted savings]]+Dataset[[#This Row],[2028/29 From - Total]]","v":0},{"$f":"Dataset[[#This Row],[2029/30 Targeted savings]]+Dataset[[#This Row],[2029/30 From - Total]]","v":0},{"$f":"Dataset[[#This Row],[2026/27 Targeted savings]]","v":0},{"$f":"SUM(Dataset[[#This Row],[2027/28 Targeted savings]],Dataset[[#This Row],[2027/28 From - Total]],Dataset[[#This Row],[2027/28 To - Total]])","v":0},{"$f":"SUM(Dataset[[#This Row],[2028/29 Targeted savings]],Dataset[[#This Row],[2028/29 From - Total]],Dataset[[#This Row],[2028/29 To - Total]])","v":0},{"$f":"SUM(Dataset[[#This Row],[2029/30 Targeted savings]],Dataset[[#This Row],[2029/30 From - Total]],Dataset[[#This Row],[2029/30 To - Total]])","v":0},{"$f":"Dataset[[#This Row],[2026/27 Baseline]]+Dataset[[#This Row],[2026/27 Total change]]","v":0},{"$f":"Dataset[[#This Row],[2027/28 Baseline]]+Dataset[[#This Row],[2027/28 Total change]]","v":0},{"$f":"Dataset[[#This Row],[2028/29 Baseline]]+Dataset[[#This Row],[2028/29 Total change]]","v":0},{"$f":"Dataset[[#This Row],[2029/30 Baseline]]+Dataset[[#This Row],[2029/30 Total change]]","v":0}]
["NAT|Non-transfer item","30|Communication (G&S)","2027_28","MTEC2027",30,1,5,32721,201,"30","01","05","032721","000201","30|01|05|000201","01","01","02","09","09","01|01|02|09|09","National","Communications and Digital Technologies","Administration","Financial Management","Non-transfer item","Current","Current payments","Goods and services","Communication (G&S)","Communication (G&S)","Economic development","Economic regulation and infrastructure","NAT",0,0,0,0,0,0,658,0,0,0,0,null,null,null,null,null,null,null,null,null,null,null,null,null,null,null,null,null,null,null,null,null,null,null,null,null,null,null,null,null,null,null,null,null,null,{"$f":"Dataset[[#This Row],[2027/28 From - Spending review Topic 1]]+Dataset[[#This Row],[2027/28 From - Spending review Topic 2]]+Dataset[[#This Row],[2027/28 From - Spending review Topic 3]]+Dataset[[#This Row],[2027/28 From - Spending review Topic 4]]+Dataset[[#This Row],[2027/28 From - Other reallocations]]","v":0},{"$f":"Dataset[[#This Row],[2028/29 From - Spending review Topic 1]]+Dataset[[#This Row],[2028/29 From - Spending review Topic 2]]+Dataset[[#This Row],[2028/29 From - Spending review Topic 3]]+Dataset[[#This Row],[2028/29 From - Spending review Topic 4]]+Dataset[[#This Row],[2028/29 From - Other reallocations]]","v":0},{"$f":"Dataset[[#This Row],[2029/30 From - Spending review Topic 1]]+Dataset[[#This Row],[2029/30 From - Spending review Topic 2]]+Dataset[[#This Row],[2029/30 From - Spending review Topic 3]]+Dataset[[#This Row],[2029/30 From - Spending review Topic 4]]+Dataset[[#This Row],[2029/30 From - Other reallocations]]","v":0},{"$f":"Dataset[[#This Row],[2027/28 To - Spending review Topic 1]]+Dataset[[#This Row],[2027/28 To - Spending review Topic 2]]+Dataset[[#This Row],[2027/28 To - Spending review Topic 3]]+Dataset[[#This Row],[2027/28 To - Spending review Topic 4]]+Dataset[[#This Row],[2027/28 To - Other reallocations]]","v":0},{"$f":"Dataset[[#This Row],[2028/29 To - Spending review Topic 1]]+Dataset[[#This Row],[2028/29 To - Spending review Topic 2]]+Dataset[[#This Row],[2028/29 To - Spending review Topic 3]]+Dataset[[#This Row],[2028/29 To - Spending review Topic 4]]+Dataset[[#This Row],[2028/29 To - Other reallocations]]","v":0},{"$f":"Dataset[[#This Row],[2029/30 To - Spending review Topic 1]]+Dataset[[#This Row],[2029/30 To - Spending review Topic 2]]+Dataset[[#This Row],[2029/30 To - Spending review Topic 3]]+Dataset[[#This Row],[2029/30 To - Spending review Topic 4]]+Dataset[[#This Row],[2029/30 To - Other reallocations]]","v":0},{"$f":"Dataset[[#This Row],[2027/28 Targeted savings]]+Dataset[[#This Row],[2027/28 From - Total]]","v":0},{"$f":"Dataset[[#This Row],[2028/29 Targeted savings]]+Dataset[[#This Row],[2028/29 From - Total]]","v":0},{"$f":"Dataset[[#This Row],[2029/30 Targeted savings]]+Dataset[[#This Row],[2029/30 From - Total]]","v":0},{"$f":"Dataset[[#This Row],[2026/27 Targeted savings]]","v":0},{"$f":"SUM(Dataset[[#This Row],[2027/28 Targeted savings]],Dataset[[#This Row],[2027/28 From - Total]],Dataset[[#This Row],[2027/28 To - Total]])","v":0},{"$f":"SUM(Dataset[[#This Row],[2028/29 Targeted savings]],Dataset[[#This Row],[2028/29 From - Total]],Dataset[[#This Row],[2028/29 To - Total]])","v":0},{"$f":"SUM(Dataset[[#This Row],[2029/30 Targeted savings]],Dataset[[#This Row],[2029/30 From - Total]],Dataset[[#This Row],[2029/30 To - Total]])","v":0},{"$f":"Dataset[[#This Row],[2026/27 Baseline]]+Dataset[[#This Row],[2026/27 Total change]]","v":0},{"$f":"Dataset[[#This Row],[2027/28 Baseline]]+Dataset[[#This Row],[2027/28 Total change]]","v":0},{"$f":"Dataset[[#This Row],[2028/29 Baseline]]+Dataset[[#This Row],[2028/29 Total change]]","v":0},{"$f":"Dataset[[#This Row],[2029/30 Baseline]]+Dataset[[#This Row],[2029/30 Total change]]","v":0}]
["NAT|Non-transfer item","30|Computer services","2027_28","MTEC2027",30,1,5,32722,202,"30","01","05","032722","000202","30|01|05|000202","01","01","02","10","10","01|01|02|10|10","National","Communications and Digital Technologies","Administration","Financial Management","Non-transfer item","Current","Current payments","Goods and services","Computer services","Computer services","Economic development","Economic regulation and infrastructure","NAT",0,0,0,0,0,0,0,0,0,0,0,null,null,null,null,null,null,null,null,null,null,null,null,null,null,null,null,null,null,null,null,null,null,null,null,null,null,null,null,null,null,null,null,null,null,{"$f":"Dataset[[#This Row],[2027/28 From - Spending review Topic 1]]+Dataset[[#This Row],[2027/28 From - Spending review Topic 2]]+Dataset[[#This Row],[2027/28 From - Spending review Topic 3]]+Dataset[[#This Row],[2027/28 From - Spending review Topic 4]]+Dataset[[#This Row],[2027/28 From - Other reallocations]]","v":0},{"$f":"Dataset[[#This Row],[2028/29 From - Spending review Topic 1]]+Dataset[[#This Row],[2028/29 From - Spending review Topic 2]]+Dataset[[#This Row],[2028/29 From - Spending review Topic 3]]+Dataset[[#This Row],[2028/29 From - Spending review Topic 4]]+Dataset[[#This Row],[2028/29 From - Other reallocations]]","v":0},{"$f":"Dataset[[#This Row],[2029/30 From - Spending review Topic 1]]+Dataset[[#This Row],[2029/30 From - Spending review Topic 2]]+Dataset[[#This Row],[2029/30 From - Spending review Topic 3]]+Dataset[[#This Row],[2029/30 From - Spending review Topic 4]]+Dataset[[#This Row],[2029/30 From - Other reallocations]]","v":0},{"$f":"Dataset[[#This Row],[2027/28 To - Spending review Topic 1]]+Dataset[[#This Row],[2027/28 To - Spending review Topic 2]]+Dataset[[#This Row],[2027/28 To - Spending review Topic 3]]+Dataset[[#This Row],[2027/28 To - Spending review Topic 4]]+Dataset[[#This Row],[2027/28 To - Other reallocations]]","v":0},{"$f":"Dataset[[#This Row],[2028/29 To - Spending review Topic 1]]+Dataset[[#This Row],[2028/29 To - Spending review Topic 2]]+Dataset[[#This Row],[2028/29 To - Spending review Topic 3]]+Dataset[[#This Row],[2028/29 To - Spending review Topic 4]]+Dataset[[#This Row],[2028/29 To - Other reallocations]]","v":0},{"$f":"Dataset[[#This Row],[2029/30 To - Spending review Topic 1]]+Dataset[[#This Row],[2029/30 To - Spending review Topic 2]]+Dataset[[#This Row],[2029/30 To - Spending review Topic 3]]+Dataset[[#This Row],[2029/30 To - Spending review Topic 4]]+Dataset[[#This Row],[2029/30 To - Other reallocations]]","v":0},{"$f":"Dataset[[#This Row],[2027/28 Targeted savings]]+Dataset[[#This Row],[2027/28 From - Total]]","v":0},{"$f":"Dataset[[#This Row],[2028/29 Targeted savings]]+Dataset[[#This Row],[2028/29 From - Total]]","v":0},{"$f":"Dataset[[#This Row],[2029/30 Targeted savings]]+Dataset[[#This Row],[2029/30 From - Total]]","v":0},{"$f":"Dataset[[#This Row],[2026/27 Targeted savings]]","v":0},{"$f":"SUM(Dataset[[#This Row],[2027/28 Targeted savings]],Dataset[[#This Row],[2027/28 From - Total]],Dataset[[#This Row],[2027/28 To - Total]])","v":0},{"$f":"SUM(Dataset[[#This Row],[2028/29 Targeted savings]],Dataset[[#This Row],[2028/29 From - Total]],Dataset[[#This Row],[2028/29 To - Total]])","v":0},{"$f":"SUM(Dataset[[#This Row],[2029/30 Targeted savings]],Dataset[[#This Row],[2029/30 From - Total]],Dataset[[#This Row],[2029/30 To - Total]])","v":0},{"$f":"Dataset[[#This Row],[2026/27 Baseline]]+Dataset[[#This Row],[2026/27 Total change]]","v":0},{"$f":"Dataset[[#This Row],[2027/28 Baseline]]+Dataset[[#This Row],[2027/28 Total change]]","v":0},{"$f":"Dataset[[#This Row],[2028/29 Baseline]]+Dataset[[#This Row],[2028/29 Total change]]","v":0},{"$f":"Dataset[[#This Row],[2029/30 Baseline]]+Dataset[[#This Row],[2029/30 Total change]]","v":0}]
["NAT|Non-transfer item","30|Consultants: Business and advisory services","2027_28","MTEC2027",30,1,5,32723,203,"30","01","05","032723","000203","30|01|05|000203","01","01","02","11","11","01|01|02|11|11","National","Communications and Digital Technologies","Administration","Financial Management","Non-transfer item","Current","Current payments","Goods and services","Consultants: Business and advisory services","Consultants: Business and advisory services","Economic development","Economic regulation and infrastructure","NAT",0,0,0,0,0,0,40,0,0,0,0,null,null,null,null,null,null,null,null,null,null,null,null,null,null,null,null,null,null,null,null,null,null,null,null,null,null,null,null,null,null,null,null,null,null,{"$f":"Dataset[[#This Row],[2027/28 From - Spending review Topic 1]]+Dataset[[#This Row],[2027/28 From - Spending review Topic 2]]+Dataset[[#This Row],[2027/28 From - Spending review Topic 3]]+Dataset[[#This Row],[2027/28 From - Spending review Topic 4]]+Dataset[[#This Row],[2027/28 From - Other reallocations]]","v":0},{"$f":"Dataset[[#This Row],[2028/29 From - Spending review Topic 1]]+Dataset[[#This Row],[2028/29 From - Spending review Topic 2]]+Dataset[[#This Row],[2028/29 From - Spending review Topic 3]]+Dataset[[#This Row],[2028/29 From - Spending review Topic 4]]+Dataset[[#This Row],[2028/29 From - Other reallocations]]","v":0},{"$f":"Dataset[[#This Row],[2029/30 From - Spending review Topic 1]]+Dataset[[#This Row],[2029/30 From - Spending review Topic 2]]+Dataset[[#This Row],[2029/30 From - Spending review Topic 3]]+Dataset[[#This Row],[2029/30 From - Spending review Topic 4]]+Dataset[[#This Row],[2029/30 From - Other reallocations]]","v":0},{"$f":"Dataset[[#This Row],[2027/28 To - Spending review Topic 1]]+Dataset[[#This Row],[2027/28 To - Spending review Topic 2]]+Dataset[[#This Row],[2027/28 To - Spending review Topic 3]]+Dataset[[#This Row],[2027/28 To - Spending review Topic 4]]+Dataset[[#This Row],[2027/28 To - Other reallocations]]","v":0},{"$f":"Dataset[[#This Row],[2028/29 To - Spending review Topic 1]]+Dataset[[#This Row],[2028/29 To - Spending review Topic 2]]+Dataset[[#This Row],[2028/29 To - Spending review Topic 3]]+Dataset[[#This Row],[2028/29 To - Spending review Topic 4]]+Dataset[[#This Row],[2028/29 To - Other reallocations]]","v":0},{"$f":"Dataset[[#This Row],[2029/30 To - Spending review Topic 1]]+Dataset[[#This Row],[2029/30 To - Spending review Topic 2]]+Dataset[[#This Row],[2029/30 To - Spending review Topic 3]]+Dataset[[#This Row],[2029/30 To - Spending review Topic 4]]+Dataset[[#This Row],[2029/30 To - Other reallocations]]","v":0},{"$f":"Dataset[[#This Row],[2027/28 Targeted savings]]+Dataset[[#This Row],[2027/28 From - Total]]","v":0},{"$f":"Dataset[[#This Row],[2028/29 Targeted savings]]+Dataset[[#This Row],[2028/29 From - Total]]","v":0},{"$f":"Dataset[[#This Row],[2029/30 Targeted savings]]+Dataset[[#This Row],[2029/30 From - Total]]","v":0},{"$f":"Dataset[[#This Row],[2026/27 Targeted savings]]","v":0},{"$f":"SUM(Dataset[[#This Row],[2027/28 Targeted savings]],Dataset[[#This Row],[2027/28 From - Total]],Dataset[[#This Row],[2027/28 To - Total]])","v":0},{"$f":"SUM(Dataset[[#This Row],[2028/29 Targeted savings]],Dataset[[#This Row],[2028/29 From - Total]],Dataset[[#This Row],[2028/29 To - Total]])","v":0},{"$f":"SUM(Dataset[[#This Row],[2029/30 Targeted savings]],Dataset[[#This Row],[2029/30 From - Total]],Dataset[[#This Row],[2029/30 To - Total]])","v":0},{"$f":"Dataset[[#This Row],[2026/27 Baseline]]+Dataset[[#This Row],[2026/27 Total change]]","v":0},{"$f":"Dataset[[#This Row],[2027/28 Baseline]]+Dataset[[#This Row],[2027/28 Total change]]","v":0},{"$f":"Dataset[[#This Row],[2028/29 Baseline]]+Dataset[[#This Row],[2028/29 Total change]]","v":0},{"$f":"Dataset[[#This Row],[2029/30 Baseline]]+Dataset[[#This Row],[2029/30 Total change]]","v":0}]
["NAT|Non-transfer item","30|Infrastructure and planning services","2027_28","MTEC2027",30,1,5,32724,204,"30","01","05","032724","000204","30|01|05|000204","01","01","02","12","12","01|01|02|12|12","National","Communications and Digital Technologies","Administration","Financial Management","Non-transfer item","Current","Current payments","Goods and services","Infrastructure and planning services","Infrastructure and planning services","Economic development","Economic regulation and infrastructure","NAT",0,0,0,0,0,0,0,0,0,0,0,null,null,null,null,null,null,null,null,null,null,null,null,null,null,null,null,null,null,null,null,null,null,null,null,null,null,null,null,null,null,null,null,null,null,{"$f":"Dataset[[#This Row],[2027/28 From - Spending review Topic 1]]+Dataset[[#This Row],[2027/28 From - Spending review Topic 2]]+Dataset[[#This Row],[2027/28 From - Spending review Topic 3]]+Dataset[[#This Row],[2027/28 From - Spending review Topic 4]]+Dataset[[#This Row],[2027/28 From - Other reallocations]]","v":0},{"$f":"Dataset[[#This Row],[2028/29 From - Spending review Topic 1]]+Dataset[[#This Row],[2028/29 From - Spending review Topic 2]]+Dataset[[#This Row],[2028/29 From - Spending review Topic 3]]+Dataset[[#This Row],[2028/29 From - Spending review Topic 4]]+Dataset[[#This Row],[2028/29 From - Other reallocations]]","v":0},{"$f":"Dataset[[#This Row],[2029/30 From - Spending review Topic 1]]+Dataset[[#This Row],[2029/30 From - Spending review Topic 2]]+Dataset[[#This Row],[2029/30 From - Spending review Topic 3]]+Dataset[[#This Row],[2029/30 From - Spending review Topic 4]]+Dataset[[#This Row],[2029/30 From - Other reallocations]]","v":0},{"$f":"Dataset[[#This Row],[2027/28 To - Spending review Topic 1]]+Dataset[[#This Row],[2027/28 To - Spending review Topic 2]]+Dataset[[#This Row],[2027/28 To - Spending review Topic 3]]+Dataset[[#This Row],[2027/28 To - Spending review Topic 4]]+Dataset[[#This Row],[2027/28 To - Other reallocations]]","v":0},{"$f":"Dataset[[#This Row],[2028/29 To - Spending review Topic 1]]+Dataset[[#This Row],[2028/29 To - Spending review Topic 2]]+Dataset[[#This Row],[2028/29 To - Spending review Topic 3]]+Dataset[[#This Row],[2028/29 To - Spending review Topic 4]]+Dataset[[#This Row],[2028/29 To - Other reallocations]]","v":0},{"$f":"Dataset[[#This Row],[2029/30 To - Spending review Topic 1]]+Dataset[[#This Row],[2029/30 To - Spending review Topic 2]]+Dataset[[#This Row],[2029/30 To - Spending review Topic 3]]+Dataset[[#This Row],[2029/30 To - Spending review Topic 4]]+Dataset[[#This Row],[2029/30 To - Other reallocations]]","v":0},{"$f":"Dataset[[#This Row],[2027/28 Targeted savings]]+Dataset[[#This Row],[2027/28 From - Total]]","v":0},{"$f":"Dataset[[#This Row],[2028/29 Targeted savings]]+Dataset[[#This Row],[2028/29 From - Total]]","v":0},{"$f":"Dataset[[#This Row],[2029/30 Targeted savings]]+Dataset[[#This Row],[2029/30 From - Total]]","v":0},{"$f":"Dataset[[#This Row],[2026/27 Targeted savings]]","v":0},{"$f":"SUM(Dataset[[#This Row],[2027/28 Targeted savings]],Dataset[[#This Row],[2027/28 From - Total]],Dataset[[#This Row],[2027/28 To - Total]])","v":0},{"$f":"SUM(Dataset[[#This Row],[2028/29 Targeted savings]],Dataset[[#This Row],[2028/29 From - Total]],Dataset[[#This Row],[2028/29 To - Total]])","v":0},{"$f":"SUM(Dataset[[#This Row],[2029/30 Targeted savings]],Dataset[[#This Row],[2029/30 From - Total]],Dataset[[#This Row],[2029/30 To - Total]])","v":0},{"$f":"Dataset[[#This Row],[2026/27 Baseline]]+Dataset[[#This Row],[2026/27 Total change]]","v":0},{"$f":"Dataset[[#This Row],[2027/28 Baseline]]+Dataset[[#This Row],[2027/28 Total change]]","v":0},{"$f":"Dataset[[#This Row],[2028/29 Baseline]]+Dataset[[#This Row],[2028/29 Total change]]","v":0},{"$f":"Dataset[[#This Row],[2029/30 Baseline]]+Dataset[[#This Row],[2029/30 Total change]]","v":0}]
["NAT|Non-transfer item","30|Laboratory services","2027_28","MTEC2027",30,1,5,32725,205,"30","01","05","032725","000205","30|01|05|000205","01","01","02","13","13","01|01|02|13|13","National","Communications and Digital Technologies","Administration","Financial Management","Non-transfer item","Current","Current payments","Goods and services","Laboratory services","Laboratory services","Economic development","Economic regulation and infrastructure","NAT",0,0,0,0,0,0,0,0,0,0,0,null,null,null,null,null,null,null,null,null,null,null,null,null,null,null,null,null,null,null,null,null,null,null,null,null,null,null,null,null,null,null,null,null,null,{"$f":"Dataset[[#This Row],[2027/28 From - Spending review Topic 1]]+Dataset[[#This Row],[2027/28 From - Spending review Topic 2]]+Dataset[[#This Row],[2027/28 From - Spending review Topic 3]]+Dataset[[#This Row],[2027/28 From - Spending review Topic 4]]+Dataset[[#This Row],[2027/28 From - Other reallocations]]","v":0},{"$f":"Dataset[[#This Row],[2028/29 From - Spending review Topic 1]]+Dataset[[#This Row],[2028/29 From - Spending review Topic 2]]+Dataset[[#This Row],[2028/29 From - Spending review Topic 3]]+Dataset[[#This Row],[2028/29 From - Spending review Topic 4]]+Dataset[[#This Row],[2028/29 From - Other reallocations]]","v":0},{"$f":"Dataset[[#This Row],[2029/30 From - Spending review Topic 1]]+Dataset[[#This Row],[2029/30 From - Spending review Topic 2]]+Dataset[[#This Row],[2029/30 From - Spending review Topic 3]]+Dataset[[#This Row],[2029/30 From - Spending review Topic 4]]+Dataset[[#This Row],[2029/30 From - Other reallocations]]","v":0},{"$f":"Dataset[[#This Row],[2027/28 To - Spending review Topic 1]]+Dataset[[#This Row],[2027/28 To - Spending review Topic 2]]+Dataset[[#This Row],[2027/28 To - Spending review Topic 3]]+Dataset[[#This Row],[2027/28 To - Spending review Topic 4]]+Dataset[[#This Row],[2027/28 To - Other reallocations]]","v":0},{"$f":"Dataset[[#This Row],[2028/29 To - Spending review Topic 1]]+Dataset[[#This Row],[2028/29 To - Spending review Topic 2]]+Dataset[[#This Row],[2028/29 To - Spending review Topic 3]]+Dataset[[#This Row],[2028/29 To - Spending review Topic 4]]+Dataset[[#This Row],[2028/29 To - Other reallocations]]","v":0},{"$f":"Dataset[[#This Row],[2029/30 To - Spending review Topic 1]]+Dataset[[#This Row],[2029/30 To - Spending review Topic 2]]+Dataset[[#This Row],[2029/30 To - Spending review Topic 3]]+Dataset[[#This Row],[2029/30 To - Spending review Topic 4]]+Dataset[[#This Row],[2029/30 To - Other reallocations]]","v":0},{"$f":"Dataset[[#This Row],[2027/28 Targeted savings]]+Dataset[[#This Row],[2027/28 From - Total]]","v":0},{"$f":"Dataset[[#This Row],[2028/29 Targeted savings]]+Dataset[[#This Row],[2028/29 From - Total]]","v":0},{"$f":"Dataset[[#This Row],[2029/30 Targeted savings]]+Dataset[[#This Row],[2029/30 From - Total]]","v":0},{"$f":"Dataset[[#This Row],[2026/27 Targeted savings]]","v":0},{"$f":"SUM(Dataset[[#This Row],[2027/28 Targeted savings]],Dataset[[#This Row],[2027/28 From - Total]],Dataset[[#This Row],[2027/28 To - Total]])","v":0},{"$f":"SUM(Dataset[[#This Row],[2028/29 Targeted savings]],Dataset[[#This Row],[2028/29 From - Total]],Dataset[[#This Row],[2028/29 To - Total]])","v":0},{"$f":"SUM(Dataset[[#This Row],[2029/30 Targeted savings]],Dataset[[#This Row],[2029/30 From - Total]],Dataset[[#This Row],[2029/30 To - Total]])","v":0},{"$f":"Dataset[[#This Row],[2026/27 Baseline]]+Dataset[[#This Row],[2026/27 Total change]]","v":0},{"$f":"Dataset[[#This Row],[2027/28 Baseline]]+Dataset[[#This Row],[2027/28 Total change]]","v":0},{"$f":"Dataset[[#This Row],[2028/29 Baseline]]+Dataset[[#This Row],[2028/29 Total change]]","v":0},{"$f":"Dataset[[#This Row],[2029/30 Baseline]]+Dataset[[#This Row],[2029/30 Total change]]","v":0}]
["NAT|Non-transfer item","30|Legal services (G&S)","2027_28","MTEC2027",30,1,5,32726,206,"30","01","05","032726","000206","30|01|05|000206","01","01","02","14","14","01|01|02|14|14","National","Communications and Digital Technologies","Administration","Financial Management","Non-transfer item","Current","Current payments","Goods and services","Legal services (G&S)","Legal services (G&S)","Economic development","Economic regulation and infrastructure","NAT",0,0,0,0,0,0,0,0,0,0,0,null,null,null,null,null,null,null,null,null,null,null,null,null,null,null,null,null,null,null,null,null,null,null,null,null,null,null,null,null,null,null,null,null,null,{"$f":"Dataset[[#This Row],[2027/28 From - Spending review Topic 1]]+Dataset[[#This Row],[2027/28 From - Spending review Topic 2]]+Dataset[[#This Row],[2027/28 From - Spending review Topic 3]]+Dataset[[#This Row],[2027/28 From - Spending review Topic 4]]+Dataset[[#This Row],[2027/28 From - Other reallocations]]","v":0},{"$f":"Dataset[[#This Row],[2028/29 From - Spending review Topic 1]]+Dataset[[#This Row],[2028/29 From - Spending review Topic 2]]+Dataset[[#This Row],[2028/29 From - Spending review Topic 3]]+Dataset[[#This Row],[2028/29 From - Spending review Topic 4]]+Dataset[[#This Row],[2028/29 From - Other reallocations]]","v":0},{"$f":"Dataset[[#This Row],[2029/30 From - Spending review Topic 1]]+Dataset[[#This Row],[2029/30 From - Spending review Topic 2]]+Dataset[[#This Row],[2029/30 From - Spending review Topic 3]]+Dataset[[#This Row],[2029/30 From - Spending review Topic 4]]+Dataset[[#This Row],[2029/30 From - Other reallocations]]","v":0},{"$f":"Dataset[[#This Row],[2027/28 To - Spending review Topic 1]]+Dataset[[#This Row],[2027/28 To - Spending review Topic 2]]+Dataset[[#This Row],[2027/28 To - Spending review Topic 3]]+Dataset[[#This Row],[2027/28 To - Spending review Topic 4]]+Dataset[[#This Row],[2027/28 To - Other reallocations]]","v":0},{"$f":"Dataset[[#This Row],[2028/29 To - Spending review Topic 1]]+Dataset[[#This Row],[2028/29 To - Spending review Topic 2]]+Dataset[[#This Row],[2028/29 To - Spending review Topic 3]]+Dataset[[#This Row],[2028/29 To - Spending review Topic 4]]+Dataset[[#This Row],[2028/29 To - Other reallocations]]","v":0},{"$f":"Dataset[[#This Row],[2029/30 To - Spending review Topic 1]]+Dataset[[#This Row],[2029/30 To - Spending review Topic 2]]+Dataset[[#This Row],[2029/30 To - Spending review Topic 3]]+Dataset[[#This Row],[2029/30 To - Spending review Topic 4]]+Dataset[[#This Row],[2029/30 To - Other reallocations]]","v":0},{"$f":"Dataset[[#This Row],[2027/28 Targeted savings]]+Dataset[[#This Row],[2027/28 From - Total]]","v":0},{"$f":"Dataset[[#This Row],[2028/29 Targeted savings]]+Dataset[[#This Row],[2028/29 From - Total]]","v":0},{"$f":"Dataset[[#This Row],[2029/30 Targeted savings]]+Dataset[[#This Row],[2029/30 From - Total]]","v":0},{"$f":"Dataset[[#This Row],[2026/27 Targeted savings]]","v":0},{"$f":"SUM(Dataset[[#This Row],[2027/28 Targeted savings]],Dataset[[#This Row],[2027/28 From - Total]],Dataset[[#This Row],[2027/28 To - Total]])","v":0},{"$f":"SUM(Dataset[[#This Row],[2028/29 Targeted savings]],Dataset[[#This Row],[2028/29 From - Total]],Dataset[[#This Row],[2028/29 To - Total]])","v":0},{"$f":"SUM(Dataset[[#This Row],[2029/30 Targeted savings]],Dataset[[#This Row],[2029/30 From - Total]],Dataset[[#This Row],[2029/30 To - Total]])","v":0},{"$f":"Dataset[[#This Row],[2026/27 Baseline]]+Dataset[[#This Row],[2026/27 Total change]]","v":0},{"$f":"Dataset[[#This Row],[2027/28 Baseline]]+Dataset[[#This Row],[2027/28 Total change]]","v":0},{"$f":"Dataset[[#This Row],[2028/29 Baseline]]+Dataset[[#This Row],[2028/29 Total change]]","v":0},{"$f":"Dataset[[#This Row],[2029/30 Baseline]]+Dataset[[#This Row],[2029/30 Total change]]","v":0}]
["NAT|Non-transfer item","30|Science and technological services","2027_28","MTEC2027",30,1,5,32727,207,"30","01","05","032727","000207","30|01|05|000207","01","01","02","15","15","01|01|02|15|15","National","Communications and Digital Technologies","Administration","Financial Management","Non-transfer item","Current","Current payments","Goods and services","Science and technological services","Science and technological services","Economic development","Economic regulation and infrastructure","NAT",0,0,0,0,0,0,0,0,0,0,0,null,null,null,null,null,null,null,null,null,null,null,null,null,null,null,null,null,null,null,null,null,null,null,null,null,null,null,null,null,null,null,null,null,null,{"$f":"Dataset[[#This Row],[2027/28 From - Spending review Topic 1]]+Dataset[[#This Row],[2027/28 From - Spending review Topic 2]]+Dataset[[#This Row],[2027/28 From - Spending review Topic 3]]+Dataset[[#This Row],[2027/28 From - Spending review Topic 4]]+Dataset[[#This Row],[2027/28 From - Other reallocations]]","v":0},{"$f":"Dataset[[#This Row],[2028/29 From - Spending review Topic 1]]+Dataset[[#This Row],[2028/29 From - Spending review Topic 2]]+Dataset[[#This Row],[2028/29 From - Spending review Topic 3]]+Dataset[[#This Row],[2028/29 From - Spending review Topic 4]]+Dataset[[#This Row],[2028/29 From - Other reallocations]]","v":0},{"$f":"Dataset[[#This Row],[2029/30 From - Spending review Topic 1]]+Dataset[[#This Row],[2029/30 From - Spending review Topic 2]]+Dataset[[#This Row],[2029/30 From - Spending review Topic 3]]+Dataset[[#This Row],[2029/30 From - Spending review Topic 4]]+Dataset[[#This Row],[2029/30 From - Other reallocations]]","v":0},{"$f":"Dataset[[#This Row],[2027/28 To - Spending review Topic 1]]+Dataset[[#This Row],[2027/28 To - Spending review Topic 2]]+Dataset[[#This Row],[2027/28 To - Spending review Topic 3]]+Dataset[[#This Row],[2027/28 To - Spending review Topic 4]]+Dataset[[#This Row],[2027/28 To - Other reallocations]]","v":0},{"$f":"Dataset[[#This Row],[2028/29 To - Spending review Topic 1]]+Dataset[[#This Row],[2028/29 To - Spending review Topic 2]]+Dataset[[#This Row],[2028/29 To - Spending review Topic 3]]+Dataset[[#This Row],[2028/29 To - Spending review Topic 4]]+Dataset[[#This Row],[2028/29 To - Other reallocations]]","v":0},{"$f":"Dataset[[#This Row],[2029/30 To - Spending review Topic 1]]+Dataset[[#This Row],[2029/30 To - Spending review Topic 2]]+Dataset[[#This Row],[2029/30 To - Spending review Topic 3]]+Dataset[[#This Row],[2029/30 To - Spending review Topic 4]]+Dataset[[#This Row],[2029/30 To - Other reallocations]]","v":0},{"$f":"Dataset[[#This Row],[2027/28 Targeted savings]]+Dataset[[#This Row],[2027/28 From - Total]]","v":0},{"$f":"Dataset[[#This Row],[2028/29 Targeted savings]]+Dataset[[#This Row],[2028/29 From - Total]]","v":0},{"$f":"Dataset[[#This Row],[2029/30 Targeted savings]]+Dataset[[#This Row],[2029/30 From - Total]]","v":0},{"$f":"Dataset[[#This Row],[2026/27 Targeted savings]]","v":0},{"$f":"SUM(Dataset[[#This Row],[2027/28 Targeted savings]],Dataset[[#This Row],[2027/28 From - Total]],Dataset[[#This Row],[2027/28 To - Total]])","v":0},{"$f":"SUM(Dataset[[#This Row],[2028/29 Targeted savings]],Dataset[[#This Row],[2028/29 From - Total]],Dataset[[#This Row],[2028/29 To - Total]])","v":0},{"$f":"SUM(Dataset[[#This Row],[2029/30 Targeted savings]],Dataset[[#This Row],[2029/30 From - Total]],Dataset[[#This Row],[2029/30 To - Total]])","v":0},{"$f":"Dataset[[#This Row],[2026/27 Baseline]]+Dataset[[#This Row],[2026/27 Total change]]","v":0},{"$f":"Dataset[[#This Row],[2027/28 Baseline]]+Dataset[[#This Row],[2027/28 Total change]]","v":0},{"$f":"Dataset[[#This Row],[2028/29 Baseline]]+Dataset[[#This Row],[2028/29 Total change]]","v":0},{"$f":"Dataset[[#This Row],[2029/30 Baseline]]+Dataset[[#This Row],[2029/30 Total change]]","v":0}]
["NAT|Non-transfer item","30|Contractors","2027_28","MTEC2027",30,1,5,32728,208,"30","01","05","032728","000208","30|01|05|000208","01","01","02","16","16","01|01|02|16|16","National","Communications and Digital Technologies","Administration","Financial Management","Non-transfer item","Current","Current payments","Goods and services","Contractors","Contractors","Economic development","Economic regulation and infrastructure","NAT",0,0,0,0,0,0,2,0,0,0,0,null,null,null,null,null,null,null,null,null,null,null,null,null,null,null,null,null,null,null,null,null,null,null,null,null,null,null,null,null,null,null,null,null,null,{"$f":"Dataset[[#This Row],[2027/28 From - Spending review Topic 1]]+Dataset[[#This Row],[2027/28 From - Spending review Topic 2]]+Dataset[[#This Row],[2027/28 From - Spending review Topic 3]]+Dataset[[#This Row],[2027/28 From - Spending review Topic 4]]+Dataset[[#This Row],[2027/28 From - Other reallocations]]","v":0},{"$f":"Dataset[[#This Row],[2028/29 From - Spending review Topic 1]]+Dataset[[#This Row],[2028/29 From - Spending review Topic 2]]+Dataset[[#This Row],[2028/29 From - Spending review Topic 3]]+Dataset[[#This Row],[2028/29 From - Spending review Topic 4]]+Dataset[[#This Row],[2028/29 From - Other reallocations]]","v":0},{"$f":"Dataset[[#This Row],[2029/30 From - Spending review Topic 1]]+Dataset[[#This Row],[2029/30 From - Spending review Topic 2]]+Dataset[[#This Row],[2029/30 From - Spending review Topic 3]]+Dataset[[#This Row],[2029/30 From - Spending review Topic 4]]+Dataset[[#This Row],[2029/30 From - Other reallocations]]","v":0},{"$f":"Dataset[[#This Row],[2027/28 To - Spending review Topic 1]]+Dataset[[#This Row],[2027/28 To - Spending review Topic 2]]+Dataset[[#This Row],[2027/28 To - Spending review Topic 3]]+Dataset[[#This Row],[2027/28 To - Spending review Topic 4]]+Dataset[[#This Row],[2027/28 To - Other reallocations]]","v":0},{"$f":"Dataset[[#This Row],[2028/29 To - Spending review Topic 1]]+Dataset[[#This Row],[2028/29 To - Spending review Topic 2]]+Dataset[[#This Row],[2028/29 To - Spending review Topic 3]]+Dataset[[#This Row],[2028/29 To - Spending review Topic 4]]+Dataset[[#This Row],[2028/29 To - Other reallocations]]","v":0},{"$f":"Dataset[[#This Row],[2029/30 To - Spending review Topic 1]]+Dataset[[#This Row],[2029/30 To - Spending review Topic 2]]+Dataset[[#This Row],[2029/30 To - Spending review Topic 3]]+Dataset[[#This Row],[2029/30 To - Spending review Topic 4]]+Dataset[[#This Row],[2029/30 To - Other reallocations]]","v":0},{"$f":"Dataset[[#This Row],[2027/28 Targeted savings]]+Dataset[[#This Row],[2027/28 From - Total]]","v":0},{"$f":"Dataset[[#This Row],[2028/29 Targeted savings]]+Dataset[[#This Row],[2028/29 From - Total]]","v":0},{"$f":"Dataset[[#This Row],[2029/30 Targeted savings]]+Dataset[[#This Row],[2029/30 From - Total]]","v":0},{"$f":"Dataset[[#This Row],[2026/27 Targeted savings]]","v":0},{"$f":"SUM(Dataset[[#This Row],[2027/28 Targeted savings]],Dataset[[#This Row],[2027/28 From - Total]],Dataset[[#This Row],[2027/28 To - Total]])","v":0},{"$f":"SUM(Dataset[[#This Row],[2028/29 Targeted savings]],Dataset[[#This Row],[2028/29 From - Total]],Dataset[[#This Row],[2028/29 To - Total]])","v":0},{"$f":"SUM(Dataset[[#This Row],[2029/30 Targeted savings]],Dataset[[#This Row],[2029/30 From - Total]],Dataset[[#This Row],[2029/30 To - Total]])","v":0},{"$f":"Dataset[[#This Row],[2026/27 Baseline]]+Dataset[[#This Row],[2026/27 Total change]]","v":0},{"$f":"Dataset[[#This Row],[2027/28 Baseline]]+Dataset[[#This Row],[2027/28 Total change]]","v":0},{"$f":"Dataset[[#This Row],[2028/29 Baseline]]+Dataset[[#This Row],[2028/29 Total change]]","v":0},{"$f":"Dataset[[#This Row],[2029/30 Baseline]]+Dataset[[#This Row],[2029/30 Total change]]","v":0}]
["NAT|Non-transfer item","30|Agency and support/outsourced services","2027_28","MTEC2027",30,1,5,32729,209,"30","01","05","032729","000209","30|01|05|000209","01","01","02","17","17","01|01|02|17|17","National","Communications and Digital Technologies","Administration","Financial Management","Non-transfer item","Current","Current payments","Goods and services","Agency and support/outsourced services","Agency and support/outsourced services","Economic development","Economic regulation and infrastructure","NAT",0,0,0,0,0,0,0,0,0,0,0,null,null,null,null,null,null,null,null,null,null,null,null,null,null,null,null,null,null,null,null,null,null,null,null,null,null,null,null,null,null,null,null,null,null,{"$f":"Dataset[[#This Row],[2027/28 From - Spending review Topic 1]]+Dataset[[#This Row],[2027/28 From - Spending review Topic 2]]+Dataset[[#This Row],[2027/28 From - Spending review Topic 3]]+Dataset[[#This Row],[2027/28 From - Spending review Topic 4]]+Dataset[[#This Row],[2027/28 From - Other reallocations]]","v":0},{"$f":"Dataset[[#This Row],[2028/29 From - Spending review Topic 1]]+Dataset[[#This Row],[2028/29 From - Spending review Topic 2]]+Dataset[[#This Row],[2028/29 From - Spending review Topic 3]]+Dataset[[#This Row],[2028/29 From - Spending review Topic 4]]+Dataset[[#This Row],[2028/29 From - Other reallocations]]","v":0},{"$f":"Dataset[[#This Row],[2029/30 From - Spending review Topic 1]]+Dataset[[#This Row],[2029/30 From - Spending review Topic 2]]+Dataset[[#This Row],[2029/30 From - Spending review Topic 3]]+Dataset[[#This Row],[2029/30 From - Spending review Topic 4]]+Dataset[[#This Row],[2029/30 From - Other reallocations]]","v":0},{"$f":"Dataset[[#This Row],[2027/28 To - Spending review Topic 1]]+Dataset[[#This Row],[2027/28 To - Spending review Topic 2]]+Dataset[[#This Row],[2027/28 To - Spending review Topic 3]]+Dataset[[#This Row],[2027/28 To - Spending review Topic 4]]+Dataset[[#This Row],[2027/28 To - Other reallocations]]","v":0},{"$f":"Dataset[[#This Row],[2028/29 To - Spending review Topic 1]]+Dataset[[#This Row],[2028/29 To - Spending review Topic 2]]+Dataset[[#This Row],[2028/29 To - Spending review Topic 3]]+Dataset[[#This Row],[2028/29 To - Spending review Topic 4]]+Dataset[[#This Row],[2028/29 To - Other reallocations]]","v":0},{"$f":"Dataset[[#This Row],[2029/30 To - Spending review Topic 1]]+Dataset[[#This Row],[2029/30 To - Spending review Topic 2]]+Dataset[[#This Row],[2029/30 To - Spending review Topic 3]]+Dataset[[#This Row],[2029/30 To - Spending review Topic 4]]+Dataset[[#This Row],[2029/30 To - Other reallocations]]","v":0},{"$f":"Dataset[[#This Row],[2027/28 Targeted savings]]+Dataset[[#This Row],[2027/28 From - Total]]","v":0},{"$f":"Dataset[[#This Row],[2028/29 Targeted savings]]+Dataset[[#This Row],[2028/29 From - Total]]","v":0},{"$f":"Dataset[[#This Row],[2029/30 Targeted savings]]+Dataset[[#This Row],[2029/30 From - Total]]","v":0},{"$f":"Dataset[[#This Row],[2026/27 Targeted savings]]","v":0},{"$f":"SUM(Dataset[[#This Row],[2027/28 Targeted savings]],Dataset[[#This Row],[2027/28 From - Total]],Dataset[[#This Row],[2027/28 To - Total]])","v":0},{"$f":"SUM(Dataset[[#This Row],[2028/29 Targeted savings]],Dataset[[#This Row],[2028/29 From - Total]],Dataset[[#This Row],[2028/29 To - Total]])","v":0},{"$f":"SUM(Dataset[[#This Row],[2029/30 Targeted savings]],Dataset[[#This Row],[2029/30 From - Total]],Dataset[[#This Row],[2029/30 To - Total]])","v":0},{"$f":"Dataset[[#This Row],[2026/27 Baseline]]+Dataset[[#This Row],[2026/27 Total change]]","v":0},{"$f":"Dataset[[#This Row],[2027/28 Baseline]]+Dataset[[#This Row],[2027/28 Total change]]","v":0},{"$f":"Dataset[[#This Row],[2028/29 Baseline]]+Dataset[[#This Row],[2028/29 Total change]]","v":0},{"$f":"Dataset[[#This Row],[2029/30 Baseline]]+Dataset[[#This Row],[2029/30 Total change]]","v":0}]
["NAT|Non-transfer item","30|Entertainment","2027_28","MTEC2027",30,1,5,32730,210,"30","01","05","032730","000210","30|01|05|000210","01","01","02","18","18","01|01|02|18|18","National","Communications and Digital Technologies","Administration","Financial Management","Non-transfer item","Current","Current payments","Goods and services","Entertainment","Entertainment","Economic development","Economic regulation and infrastructure","NAT",0,0,0,0,0,0,0,0,0,0,0,null,null,null,null,null,null,null,null,null,null,null,null,null,null,null,null,null,null,null,null,null,null,null,null,null,null,null,null,null,null,null,null,null,null,{"$f":"Dataset[[#This Row],[2027/28 From - Spending review Topic 1]]+Dataset[[#This Row],[2027/28 From - Spending review Topic 2]]+Dataset[[#This Row],[2027/28 From - Spending review Topic 3]]+Dataset[[#This Row],[2027/28 From - Spending review Topic 4]]+Dataset[[#This Row],[2027/28 From - Other reallocations]]","v":0},{"$f":"Dataset[[#This Row],[2028/29 From - Spending review Topic 1]]+Dataset[[#This Row],[2028/29 From - Spending review Topic 2]]+Dataset[[#This Row],[2028/29 From - Spending review Topic 3]]+Dataset[[#This Row],[2028/29 From - Spending review Topic 4]]+Dataset[[#This Row],[2028/29 From - Other reallocations]]","v":0},{"$f":"Dataset[[#This Row],[2029/30 From - Spending review Topic 1]]+Dataset[[#This Row],[2029/30 From - Spending review Topic 2]]+Dataset[[#This Row],[2029/30 From - Spending review Topic 3]]+Dataset[[#This Row],[2029/30 From - Spending review Topic 4]]+Dataset[[#This Row],[2029/30 From - Other reallocations]]","v":0},{"$f":"Dataset[[#This Row],[2027/28 To - Spending review Topic 1]]+Dataset[[#This Row],[2027/28 To - Spending review Topic 2]]+Dataset[[#This Row],[2027/28 To - Spending review Topic 3]]+Dataset[[#This Row],[2027/28 To - Spending review Topic 4]]+Dataset[[#This Row],[2027/28 To - Other reallocations]]","v":0},{"$f":"Dataset[[#This Row],[2028/29 To - Spending review Topic 1]]+Dataset[[#This Row],[2028/29 To - Spending review Topic 2]]+Dataset[[#This Row],[2028/29 To - Spending review Topic 3]]+Dataset[[#This Row],[2028/29 To - Spending review Topic 4]]+Dataset[[#This Row],[2028/29 To - Other reallocations]]","v":0},{"$f":"Dataset[[#This Row],[2029/30 To - Spending review Topic 1]]+Dataset[[#This Row],[2029/30 To - Spending review Topic 2]]+Dataset[[#This Row],[2029/30 To - Spending review Topic 3]]+Dataset[[#This Row],[2029/30 To - Spending review Topic 4]]+Dataset[[#This Row],[2029/30 To - Other reallocations]]","v":0},{"$f":"Dataset[[#This Row],[2027/28 Targeted savings]]+Dataset[[#This Row],[2027/28 From - Total]]","v":0},{"$f":"Dataset[[#This Row],[2028/29 Targeted savings]]+Dataset[[#This Row],[2028/29 From - Total]]","v":0},{"$f":"Dataset[[#This Row],[2029/30 Targeted savings]]+Dataset[[#This Row],[2029/30 From - Total]]","v":0},{"$f":"Dataset[[#This Row],[2026/27 Targeted savings]]","v":0},{"$f":"SUM(Dataset[[#This Row],[2027/28 Targeted savings]],Dataset[[#This Row],[2027/28 From - Total]],Dataset[[#This Row],[2027/28 To - Total]])","v":0},{"$f":"SUM(Dataset[[#This Row],[2028/29 Targeted savings]],Dataset[[#This Row],[2028/29 From - Total]],Dataset[[#This Row],[2028/29 To - Total]])","v":0},{"$f":"SUM(Dataset[[#This Row],[2029/30 Targeted savings]],Dataset[[#This Row],[2029/30 From - Total]],Dataset[[#This Row],[2029/30 To - Total]])","v":0},{"$f":"Dataset[[#This Row],[2026/27 Baseline]]+Dataset[[#This Row],[2026/27 Total change]]","v":0},{"$f":"Dataset[[#This Row],[2027/28 Baseline]]+Dataset[[#This Row],[2027/28 Total change]]","v":0},{"$f":"Dataset[[#This Row],[2028/29 Baseline]]+Dataset[[#This Row],[2028/29 Total change]]","v":0},{"$f":"Dataset[[#This Row],[2029/30 Baseline]]+Dataset[[#This Row],[2029/30 Total change]]","v":0}]
["NAT|Non-transfer item","30|Fleet services (including government motor transport)","2027_28","MTEC2027",30,1,5,32731,211,"30","01","05","032731","000211","30|01|05|000211","01","01","02","19","19","01|01|02|19|19","National","Communications and Digital Technologies","Administration","Financial Management","Non-transfer item","Current","Current payments","Goods and services","Fleet services (including government motor transport)","Fleet services (including government motor transport)","Economic development","Economic regulation and infrastructure","NAT",0,0,0,0,0,0,122,0,0,0,0,null,null,null,null,null,null,null,null,null,null,null,null,null,null,null,null,null,null,null,null,null,null,null,null,null,null,null,null,null,null,null,null,null,null,{"$f":"Dataset[[#This Row],[2027/28 From - Spending review Topic 1]]+Dataset[[#This Row],[2027/28 From - Spending review Topic 2]]+Dataset[[#This Row],[2027/28 From - Spending review Topic 3]]+Dataset[[#This Row],[2027/28 From - Spending review Topic 4]]+Dataset[[#This Row],[2027/28 From - Other reallocations]]","v":0},{"$f":"Dataset[[#This Row],[2028/29 From - Spending review Topic 1]]+Dataset[[#This Row],[2028/29 From - Spending review Topic 2]]+Dataset[[#This Row],[2028/29 From - Spending review Topic 3]]+Dataset[[#This Row],[2028/29 From - Spending review Topic 4]]+Dataset[[#This Row],[2028/29 From - Other reallocations]]","v":0},{"$f":"Dataset[[#This Row],[2029/30 From - Spending review Topic 1]]+Dataset[[#This Row],[2029/30 From - Spending review Topic 2]]+Dataset[[#This Row],[2029/30 From - Spending review Topic 3]]+Dataset[[#This Row],[2029/30 From - Spending review Topic 4]]+Dataset[[#This Row],[2029/30 From - Other reallocations]]","v":0},{"$f":"Dataset[[#This Row],[2027/28 To - Spending review Topic 1]]+Dataset[[#This Row],[2027/28 To - Spending review Topic 2]]+Dataset[[#This Row],[2027/28 To - Spending review Topic 3]]+Dataset[[#This Row],[2027/28 To - Spending review Topic 4]]+Dataset[[#This Row],[2027/28 To - Other reallocations]]","v":0},{"$f":"Dataset[[#This Row],[2028/29 To - Spending review Topic 1]]+Dataset[[#This Row],[2028/29 To - Spending review Topic 2]]+Dataset[[#This Row],[2028/29 To - Spending review Topic 3]]+Dataset[[#This Row],[2028/29 To - Spending review Topic 4]]+Dataset[[#This Row],[2028/29 To - Other reallocations]]","v":0},{"$f":"Dataset[[#This Row],[2029/30 To - Spending review Topic 1]]+Dataset[[#This Row],[2029/30 To - Spending review Topic 2]]+Dataset[[#This Row],[2029/30 To - Spending review Topic 3]]+Dataset[[#This Row],[2029/30 To - Spending review Topic 4]]+Dataset[[#This Row],[2029/30 To - Other reallocations]]","v":0},{"$f":"Dataset[[#This Row],[2027/28 Targeted savings]]+Dataset[[#This Row],[2027/28 From - Total]]","v":0},{"$f":"Dataset[[#This Row],[2028/29 Targeted savings]]+Dataset[[#This Row],[2028/29 From - Total]]","v":0},{"$f":"Dataset[[#This Row],[2029/30 Targeted savings]]+Dataset[[#This Row],[2029/30 From - Total]]","v":0},{"$f":"Dataset[[#This Row],[2026/27 Targeted savings]]","v":0},{"$f":"SUM(Dataset[[#This Row],[2027/28 Targeted savings]],Dataset[[#This Row],[2027/28 From - Total]],Dataset[[#This Row],[2027/28 To - Total]])","v":0},{"$f":"SUM(Dataset[[#This Row],[2028/29 Targeted savings]],Dataset[[#This Row],[2028/29 From - Total]],Dataset[[#This Row],[2028/29 To - Total]])","v":0},{"$f":"SUM(Dataset[[#This Row],[2029/30 Targeted savings]],Dataset[[#This Row],[2029/30 From - Total]],Dataset[[#This Row],[2029/30 To - Total]])","v":0},{"$f":"Dataset[[#This Row],[2026/27 Baseline]]+Dataset[[#This Row],[2026/27 Total change]]","v":0},{"$f":"Dataset[[#This Row],[2027/28 Baseline]]+Dataset[[#This Row],[2027/28 Total change]]","v":0},{"$f":"Dataset[[#This Row],[2028/29 Baseline]]+Dataset[[#This Row],[2028/29 Total change]]","v":0},{"$f":"Dataset[[#This Row],[2029/30 Baseline]]+Dataset[[#This Row],[2029/30 Total change]]","v":0}]
["NAT|Non-transfer item","30|Housing","2027_28","MTEC2027",30,1,5,32732,212,"30","01","05","032732","000212","30|01|05|000212","01","01","02","20","20","01|01|02|20|20","National","Communications and Digital Technologies","Administration","Financial Management","Non-transfer item","Current","Current payments","Goods and services","Housing","Housing","Economic development","Economic regulation and infrastructure","NAT",0,0,0,0,0,0,0,0,0,0,0,null,null,null,null,null,null,null,null,null,null,null,null,null,null,null,null,null,null,null,null,null,null,null,null,null,null,null,null,null,null,null,null,null,null,{"$f":"Dataset[[#This Row],[2027/28 From - Spending review Topic 1]]+Dataset[[#This Row],[2027/28 From - Spending review Topic 2]]+Dataset[[#This Row],[2027/28 From - Spending review Topic 3]]+Dataset[[#This Row],[2027/28 From - Spending review Topic 4]]+Dataset[[#This Row],[2027/28 From - Other reallocations]]","v":0},{"$f":"Dataset[[#This Row],[2028/29 From - Spending review Topic 1]]+Dataset[[#This Row],[2028/29 From - Spending review Topic 2]]+Dataset[[#This Row],[2028/29 From - Spending review Topic 3]]+Dataset[[#This Row],[2028/29 From - Spending review Topic 4]]+Dataset[[#This Row],[2028/29 From - Other reallocations]]","v":0},{"$f":"Dataset[[#This Row],[2029/30 From - Spending review Topic 1]]+Dataset[[#This Row],[2029/30 From - Spending review Topic 2]]+Dataset[[#This Row],[2029/30 From - Spending review Topic 3]]+Dataset[[#This Row],[2029/30 From - Spending review Topic 4]]+Dataset[[#This Row],[2029/30 From - Other reallocations]]","v":0},{"$f":"Dataset[[#This Row],[2027/28 To - Spending review Topic 1]]+Dataset[[#This Row],[2027/28 To - Spending review Topic 2]]+Dataset[[#This Row],[2027/28 To - Spending review Topic 3]]+Dataset[[#This Row],[2027/28 To - Spending review Topic 4]]+Dataset[[#This Row],[2027/28 To - Other reallocations]]","v":0},{"$f":"Dataset[[#This Row],[2028/29 To - Spending review Topic 1]]+Dataset[[#This Row],[2028/29 To - Spending review Topic 2]]+Dataset[[#This Row],[2028/29 To - Spending review Topic 3]]+Dataset[[#This Row],[2028/29 To - Spending review Topic 4]]+Dataset[[#This Row],[2028/29 To - Other reallocations]]","v":0},{"$f":"Dataset[[#This Row],[2029/30 To - Spending review Topic 1]]+Dataset[[#This Row],[2029/30 To - Spending review Topic 2]]+Dataset[[#This Row],[2029/30 To - Spending review Topic 3]]+Dataset[[#This Row],[2029/30 To - Spending review Topic 4]]+Dataset[[#This Row],[2029/30 To - Other reallocations]]","v":0},{"$f":"Dataset[[#This Row],[2027/28 Targeted savings]]+Dataset[[#This Row],[2027/28 From - Total]]","v":0},{"$f":"Dataset[[#This Row],[2028/29 Targeted savings]]+Dataset[[#This Row],[2028/29 From - Total]]","v":0},{"$f":"Dataset[[#This Row],[2029/30 Targeted savings]]+Dataset[[#This Row],[2029/30 From - Total]]","v":0},{"$f":"Dataset[[#This Row],[2026/27 Targeted savings]]","v":0},{"$f":"SUM(Dataset[[#This Row],[2027/28 Targeted savings]],Dataset[[#This Row],[2027/28 From - Total]],Dataset[[#This Row],[2027/28 To - Total]])","v":0},{"$f":"SUM(Dataset[[#This Row],[2028/29 Targeted savings]],Dataset[[#This Row],[2028/29 From - Total]],Dataset[[#This Row],[2028/29 To - Total]])","v":0},{"$f":"SUM(Dataset[[#This Row],[2029/30 Targeted savings]],Dataset[[#This Row],[2029/30 From - Total]],Dataset[[#This Row],[2029/30 To - Total]])","v":0},{"$f":"Dataset[[#This Row],[2026/27 Baseline]]+Dataset[[#This Row],[2026/27 Total change]]","v":0},{"$f":"Dataset[[#This Row],[2027/28 Baseline]]+Dataset[[#This Row],[2027/28 Total change]]","v":0},{"$f":"Dataset[[#This Row],[2028/29 Baseline]]+Dataset[[#This Row],[2028/29 Total change]]","v":0},{"$f":"Dataset[[#This Row],[2029/30 Baseline]]+Dataset[[#This Row],[2029/30 Total change]]","v":0}]
["NAT|Non-transfer item","30|Inventory: Clothing material and accessories","2027_28","MTEC2027",30,1,5,32733,213,"30","01","05","032733","000213","30|01|05|000213","01","01","02","21","21","01|01|02|21|21","National","Communications and Digital Technologies","Administration","Financial Management","Non-transfer item","Current","Current payments","Goods and services","Inventory: Clothing material and accessories","Inventory: Clothing material and accessories","Economic development","Economic regulation and infrastructure","NAT",0,0,0,0,0,0,0,0,0,0,0,null,null,null,null,null,null,null,null,null,null,null,null,null,null,null,null,null,null,null,null,null,null,null,null,null,null,null,null,null,null,null,null,null,null,{"$f":"Dataset[[#This Row],[2027/28 From - Spending review Topic 1]]+Dataset[[#This Row],[2027/28 From - Spending review Topic 2]]+Dataset[[#This Row],[2027/28 From - Spending review Topic 3]]+Dataset[[#This Row],[2027/28 From - Spending review Topic 4]]+Dataset[[#This Row],[2027/28 From - Other reallocations]]","v":0},{"$f":"Dataset[[#This Row],[2028/29 From - Spending review Topic 1]]+Dataset[[#This Row],[2028/29 From - Spending review Topic 2]]+Dataset[[#This Row],[2028/29 From - Spending review Topic 3]]+Dataset[[#This Row],[2028/29 From - Spending review Topic 4]]+Dataset[[#This Row],[2028/29 From - Other reallocations]]","v":0},{"$f":"Dataset[[#This Row],[2029/30 From - Spending review Topic 1]]+Dataset[[#This Row],[2029/30 From - Spending review Topic 2]]+Dataset[[#This Row],[2029/30 From - Spending review Topic 3]]+Dataset[[#This Row],[2029/30 From - Spending review Topic 4]]+Dataset[[#This Row],[2029/30 From - Other reallocations]]","v":0},{"$f":"Dataset[[#This Row],[2027/28 To - Spending review Topic 1]]+Dataset[[#This Row],[2027/28 To - Spending review Topic 2]]+Dataset[[#This Row],[2027/28 To - Spending review Topic 3]]+Dataset[[#This Row],[2027/28 To - Spending review Topic 4]]+Dataset[[#This Row],[2027/28 To - Other reallocations]]","v":0},{"$f":"Dataset[[#This Row],[2028/29 To - Spending review Topic 1]]+Dataset[[#This Row],[2028/29 To - Spending review Topic 2]]+Dataset[[#This Row],[2028/29 To - Spending review Topic 3]]+Dataset[[#This Row],[2028/29 To - Spending review Topic 4]]+Dataset[[#This Row],[2028/29 To - Other reallocations]]","v":0},{"$f":"Dataset[[#This Row],[2029/30 To - Spending review Topic 1]]+Dataset[[#This Row],[2029/30 To - Spending review Topic 2]]+Dataset[[#This Row],[2029/30 To - Spending review Topic 3]]+Dataset[[#This Row],[2029/30 To - Spending review Topic 4]]+Dataset[[#This Row],[2029/30 To - Other reallocations]]","v":0},{"$f":"Dataset[[#This Row],[2027/28 Targeted savings]]+Dataset[[#This Row],[2027/28 From - Total]]","v":0},{"$f":"Dataset[[#This Row],[2028/29 Targeted savings]]+Dataset[[#This Row],[2028/29 From - Total]]","v":0},{"$f":"Dataset[[#This Row],[2029/30 Targeted savings]]+Dataset[[#This Row],[2029/30 From - Total]]","v":0},{"$f":"Dataset[[#This Row],[2026/27 Targeted savings]]","v":0},{"$f":"SUM(Dataset[[#This Row],[2027/28 Targeted savings]],Dataset[[#This Row],[2027/28 From - Total]],Dataset[[#This Row],[2027/28 To - Total]])","v":0},{"$f":"SUM(Dataset[[#This Row],[2028/29 Targeted savings]],Dataset[[#This Row],[2028/29 From - Total]],Dataset[[#This Row],[2028/29 To - Total]])","v":0},{"$f":"SUM(Dataset[[#This Row],[2029/30 Targeted savings]],Dataset[[#This Row],[2029/30 From - Total]],Dataset[[#This Row],[2029/30 To - Total]])","v":0},{"$f":"Dataset[[#This Row],[2026/27 Baseline]]+Dataset[[#This Row],[2026/27 Total change]]","v":0},{"$f":"Dataset[[#This Row],[2027/28 Baseline]]+Dataset[[#This Row],[2027/28 Total change]]","v":0},{"$f":"Dataset[[#This Row],[2028/29 Baseline]]+Dataset[[#This Row],[2028/29 Total change]]","v":0},{"$f":"Dataset[[#This Row],[2029/30 Baseline]]+Dataset[[#This Row],[2029/30 Total change]]","v":0}]
["NAT|Non-transfer item","30|Inventory: Farming supplies","2027_28","MTEC2027",30,1,5,32734,214,"30","01","05","032734","000214","30|01|05|000214","01","01","02","22","22","01|01|02|22|22","National","Communications and Digital Technologies","Administration","Financial Management","Non-transfer item","Current","Current payments","Goods and services","Inventory: Farming supplies","Inventory: Farming supplies","Economic development","Economic regulation and infrastructure","NAT",0,0,0,0,0,0,0,0,0,0,0,null,null,null,null,null,null,null,null,null,null,null,null,null,null,null,null,null,null,null,null,null,null,null,null,null,null,null,null,null,null,null,null,null,null,{"$f":"Dataset[[#This Row],[2027/28 From - Spending review Topic 1]]+Dataset[[#This Row],[2027/28 From - Spending review Topic 2]]+Dataset[[#This Row],[2027/28 From - Spending review Topic 3]]+Dataset[[#This Row],[2027/28 From - Spending review Topic 4]]+Dataset[[#This Row],[2027/28 From - Other reallocations]]","v":0},{"$f":"Dataset[[#This Row],[2028/29 From - Spending review Topic 1]]+Dataset[[#This Row],[2028/29 From - Spending review Topic 2]]+Dataset[[#This Row],[2028/29 From - Spending review Topic 3]]+Dataset[[#This Row],[2028/29 From - Spending review Topic 4]]+Dataset[[#This Row],[2028/29 From - Other reallocations]]","v":0},{"$f":"Dataset[[#This Row],[2029/30 From - Spending review Topic 1]]+Dataset[[#This Row],[2029/30 From - Spending review Topic 2]]+Dataset[[#This Row],[2029/30 From - Spending review Topic 3]]+Dataset[[#This Row],[2029/30 From - Spending review Topic 4]]+Dataset[[#This Row],[2029/30 From - Other reallocations]]","v":0},{"$f":"Dataset[[#This Row],[2027/28 To - Spending review Topic 1]]+Dataset[[#This Row],[2027/28 To - Spending review Topic 2]]+Dataset[[#This Row],[2027/28 To - Spending review Topic 3]]+Dataset[[#This Row],[2027/28 To - Spending review Topic 4]]+Dataset[[#This Row],[2027/28 To - Other reallocations]]","v":0},{"$f":"Dataset[[#This Row],[2028/29 To - Spending review Topic 1]]+Dataset[[#This Row],[2028/29 To - Spending review Topic 2]]+Dataset[[#This Row],[2028/29 To - Spending review Topic 3]]+Dataset[[#This Row],[2028/29 To - Spending review Topic 4]]+Dataset[[#This Row],[2028/29 To - Other reallocations]]","v":0},{"$f":"Dataset[[#This Row],[2029/30 To - Spending review Topic 1]]+Dataset[[#This Row],[2029/30 To - Spending review Topic 2]]+Dataset[[#This Row],[2029/30 To - Spending review Topic 3]]+Dataset[[#This Row],[2029/30 To - Spending review Topic 4]]+Dataset[[#This Row],[2029/30 To - Other reallocations]]","v":0},{"$f":"Dataset[[#This Row],[2027/28 Targeted savings]]+Dataset[[#This Row],[2027/28 From - Total]]","v":0},{"$f":"Dataset[[#This Row],[2028/29 Targeted savings]]+Dataset[[#This Row],[2028/29 From - Total]]","v":0},{"$f":"Dataset[[#This Row],[2029/30 Targeted savings]]+Dataset[[#This Row],[2029/30 From - Total]]","v":0},{"$f":"Dataset[[#This Row],[2026/27 Targeted savings]]","v":0},{"$f":"SUM(Dataset[[#This Row],[2027/28 Targeted savings]],Dataset[[#This Row],[2027/28 From - Total]],Dataset[[#This Row],[2027/28 To - Total]])","v":0},{"$f":"SUM(Dataset[[#This Row],[2028/29 Targeted savings]],Dataset[[#This Row],[2028/29 From - Total]],Dataset[[#This Row],[2028/29 To - Total]])","v":0},{"$f":"SUM(Dataset[[#This Row],[2029/30 Targeted savings]],Dataset[[#This Row],[2029/30 From - Total]],Dataset[[#This Row],[2029/30 To - Total]])","v":0},{"$f":"Dataset[[#This Row],[2026/27 Baseline]]+Dataset[[#This Row],[2026/27 Total change]]","v":0},{"$f":"Dataset[[#This Row],[2027/28 Baseline]]+Dataset[[#This Row],[2027/28 Total change]]","v":0},{"$f":"Dataset[[#This Row],[2028/29 Baseline]]+Dataset[[#This Row],[2028/29 Total change]]","v":0},{"$f":"Dataset[[#This Row],[2029/30 Baseline]]+Dataset[[#This Row],[2029/30 Total change]]","v":0}]
["NAT|Non-transfer item","30|Inventory: Food and food supplies","2027_28","MTEC2027",30,1,5,32735,215,"30","01","05","032735","000215","30|01|05|000215","01","01","02","23","23","01|01|02|23|23","National","Communications and Digital Technologies","Administration","Financial Management","Non-transfer item","Current","Current payments","Goods and services","Inventory: Food and food supplies","Inventory: Food and food supplies","Economic development","Economic regulation and infrastructure","NAT",0,0,0,0,0,0,0,0,0,0,0,null,null,null,null,null,null,null,null,null,null,null,null,null,null,null,null,null,null,null,null,null,null,null,null,null,null,null,null,null,null,null,null,null,null,{"$f":"Dataset[[#This Row],[2027/28 From - Spending review Topic 1]]+Dataset[[#This Row],[2027/28 From - Spending review Topic 2]]+Dataset[[#This Row],[2027/28 From - Spending review Topic 3]]+Dataset[[#This Row],[2027/28 From - Spending review Topic 4]]+Dataset[[#This Row],[2027/28 From - Other reallocations]]","v":0},{"$f":"Dataset[[#This Row],[2028/29 From - Spending review Topic 1]]+Dataset[[#This Row],[2028/29 From - Spending review Topic 2]]+Dataset[[#This Row],[2028/29 From - Spending review Topic 3]]+Dataset[[#This Row],[2028/29 From - Spending review Topic 4]]+Dataset[[#This Row],[2028/29 From - Other reallocations]]","v":0},{"$f":"Dataset[[#This Row],[2029/30 From - Spending review Topic 1]]+Dataset[[#This Row],[2029/30 From - Spending review Topic 2]]+Dataset[[#This Row],[2029/30 From - Spending review Topic 3]]+Dataset[[#This Row],[2029/30 From - Spending review Topic 4]]+Dataset[[#This Row],[2029/30 From - Other reallocations]]","v":0},{"$f":"Dataset[[#This Row],[2027/28 To - Spending review Topic 1]]+Dataset[[#This Row],[2027/28 To - Spending review Topic 2]]+Dataset[[#This Row],[2027/28 To - Spending review Topic 3]]+Dataset[[#This Row],[2027/28 To - Spending review Topic 4]]+Dataset[[#This Row],[2027/28 To - Other reallocations]]","v":0},{"$f":"Dataset[[#This Row],[2028/29 To - Spending review Topic 1]]+Dataset[[#This Row],[2028/29 To - Spending review Topic 2]]+Dataset[[#This Row],[2028/29 To - Spending review Topic 3]]+Dataset[[#This Row],[2028/29 To - Spending review Topic 4]]+Dataset[[#This Row],[2028/29 To - Other reallocations]]","v":0},{"$f":"Dataset[[#This Row],[2029/30 To - Spending review Topic 1]]+Dataset[[#This Row],[2029/30 To - Spending review Topic 2]]+Dataset[[#This Row],[2029/30 To - Spending review Topic 3]]+Dataset[[#This Row],[2029/30 To - Spending review Topic 4]]+Dataset[[#This Row],[2029/30 To - Other reallocations]]","v":0},{"$f":"Dataset[[#This Row],[2027/28 Targeted savings]]+Dataset[[#This Row],[2027/28 From - Total]]","v":0},{"$f":"Dataset[[#This Row],[2028/29 Targeted savings]]+Dataset[[#This Row],[2028/29 From - Total]]","v":0},{"$f":"Dataset[[#This Row],[2029/30 Targeted savings]]+Dataset[[#This Row],[2029/30 From - Total]]","v":0},{"$f":"Dataset[[#This Row],[2026/27 Targeted savings]]","v":0},{"$f":"SUM(Dataset[[#This Row],[2027/28 Targeted savings]],Dataset[[#This Row],[2027/28 From - Total]],Dataset[[#This Row],[2027/28 To - Total]])","v":0},{"$f":"SUM(Dataset[[#This Row],[2028/29 Targeted savings]],Dataset[[#This Row],[2028/29 From - Total]],Dataset[[#This Row],[2028/29 To - Total]])","v":0},{"$f":"SUM(Dataset[[#This Row],[2029/30 Targeted savings]],Dataset[[#This Row],[2029/30 From - Total]],Dataset[[#This Row],[2029/30 To - Total]])","v":0},{"$f":"Dataset[[#This Row],[2026/27 Baseline]]+Dataset[[#This Row],[2026/27 Total change]]","v":0},{"$f":"Dataset[[#This Row],[2027/28 Baseline]]+Dataset[[#This Row],[2027/28 Total change]]","v":0},{"$f":"Dataset[[#This Row],[2028/29 Baseline]]+Dataset[[#This Row],[2028/29 Total change]]","v":0},{"$f":"Dataset[[#This Row],[2029/30 Baseline]]+Dataset[[#This Row],[2029/30 Total change]]","v":0}]
["NAT|Non-transfer item","30|Inventory: Fuel, oil and gas","2027_28","MTEC2027",30,1,5,32736,216,"30","01","05","032736","000216","30|01|05|000216","01","01","02","24","24","01|01|02|24|24","National","Communications and Digital Technologies","Administration","Financial Management","Non-transfer item","Current","Current payments","Goods and services","Inventory: Fuel, oil and gas","Inventory: Fuel, oil and gas","Economic development","Economic regulation and infrastructure","NAT",0,0,0,0,0,0,0,0,0,0,0,null,null,null,null,null,null,null,null,null,null,null,null,null,null,null,null,null,null,null,null,null,null,null,null,null,null,null,null,null,null,null,null,null,null,{"$f":"Dataset[[#This Row],[2027/28 From - Spending review Topic 1]]+Dataset[[#This Row],[2027/28 From - Spending review Topic 2]]+Dataset[[#This Row],[2027/28 From - Spending review Topic 3]]+Dataset[[#This Row],[2027/28 From - Spending review Topic 4]]+Dataset[[#This Row],[2027/28 From - Other reallocations]]","v":0},{"$f":"Dataset[[#This Row],[2028/29 From - Spending review Topic 1]]+Dataset[[#This Row],[2028/29 From - Spending review Topic 2]]+Dataset[[#This Row],[2028/29 From - Spending review Topic 3]]+Dataset[[#This Row],[2028/29 From - Spending review Topic 4]]+Dataset[[#This Row],[2028/29 From - Other reallocations]]","v":0},{"$f":"Dataset[[#This Row],[2029/30 From - Spending review Topic 1]]+Dataset[[#This Row],[2029/30 From - Spending review Topic 2]]+Dataset[[#This Row],[2029/30 From - Spending review Topic 3]]+Dataset[[#This Row],[2029/30 From - Spending review Topic 4]]+Dataset[[#This Row],[2029/30 From - Other reallocations]]","v":0},{"$f":"Dataset[[#This Row],[2027/28 To - Spending review Topic 1]]+Dataset[[#This Row],[2027/28 To - Spending review Topic 2]]+Dataset[[#This Row],[2027/28 To - Spending review Topic 3]]+Dataset[[#This Row],[2027/28 To - Spending review Topic 4]]+Dataset[[#This Row],[2027/28 To - Other reallocations]]","v":0},{"$f":"Dataset[[#This Row],[2028/29 To - Spending review Topic 1]]+Dataset[[#This Row],[2028/29 To - Spending review Topic 2]]+Dataset[[#This Row],[2028/29 To - Spending review Topic 3]]+Dataset[[#This Row],[2028/29 To - Spending review Topic 4]]+Dataset[[#This Row],[2028/29 To - Other reallocations]]","v":0},{"$f":"Dataset[[#This Row],[2029/30 To - Spending review Topic 1]]+Dataset[[#This Row],[2029/30 To - Spending review Topic 2]]+Dataset[[#This Row],[2029/30 To - Spending review Topic 3]]+Dataset[[#This Row],[2029/30 To - Spending review Topic 4]]+Dataset[[#This Row],[2029/30 To - Other reallocations]]","v":0},{"$f":"Dataset[[#This Row],[2027/28 Targeted savings]]+Dataset[[#This Row],[2027/28 From - Total]]","v":0},{"$f":"Dataset[[#This Row],[2028/29 Targeted savings]]+Dataset[[#This Row],[2028/29 From - Total]]","v":0},{"$f":"Dataset[[#This Row],[2029/30 Targeted savings]]+Dataset[[#This Row],[2029/30 From - Total]]","v":0},{"$f":"Dataset[[#This Row],[2026/27 Targeted savings]]","v":0},{"$f":"SUM(Dataset[[#This Row],[2027/28 Targeted savings]],Dataset[[#This Row],[2027/28 From - Total]],Dataset[[#This Row],[2027/28 To - Total]])","v":0},{"$f":"SUM(Dataset[[#This Row],[2028/29 Targeted savings]],Dataset[[#This Row],[2028/29 From - Total]],Dataset[[#This Row],[2028/29 To - Total]])","v":0},{"$f":"SUM(Dataset[[#This Row],[2029/30 Targeted savings]],Dataset[[#This Row],[2029/30 From - Total]],Dataset[[#This Row],[2029/30 To - Total]])","v":0},{"$f":"Dataset[[#This Row],[2026/27 Baseline]]+Dataset[[#This Row],[2026/27 Total change]]","v":0},{"$f":"Dataset[[#This Row],[2027/28 Baseline]]+Dataset[[#This Row],[2027/28 Total change]]","v":0},{"$f":"Dataset[[#This Row],[2028/29 Baseline]]+Dataset[[#This Row],[2028/29 Total change]]","v":0},{"$f":"Dataset[[#This Row],[2029/30 Baseline]]+Dataset[[#This Row],[2029/30 Total change]]","v":0}]
["NAT|Non-transfer item","30|Inventory: Learner and teacher support material","2027_28","MTEC2027",30,1,5,32737,217,"30","01","05","032737","000217","30|01|05|000217","01","01","02","25","25","01|01|02|25|25","National","Communications and Digital Technologies","Administration","Financial Management","Non-transfer item","Current","Current payments","Goods and services","Inventory: Learner and teacher support material","Inventory: Learner and teacher support material","Economic development","Economic regulation and infrastructure","NAT",0,0,0,0,0,0,0,0,0,0,0,null,null,null,null,null,null,null,null,null,null,null,null,null,null,null,null,null,null,null,null,null,null,null,null,null,null,null,null,null,null,null,null,null,null,{"$f":"Dataset[[#This Row],[2027/28 From - Spending review Topic 1]]+Dataset[[#This Row],[2027/28 From - Spending review Topic 2]]+Dataset[[#This Row],[2027/28 From - Spending review Topic 3]]+Dataset[[#This Row],[2027/28 From - Spending review Topic 4]]+Dataset[[#This Row],[2027/28 From - Other reallocations]]","v":0},{"$f":"Dataset[[#This Row],[2028/29 From - Spending review Topic 1]]+Dataset[[#This Row],[2028/29 From - Spending review Topic 2]]+Dataset[[#This Row],[2028/29 From - Spending review Topic 3]]+Dataset[[#This Row],[2028/29 From - Spending review Topic 4]]+Dataset[[#This Row],[2028/29 From - Other reallocations]]","v":0},{"$f":"Dataset[[#This Row],[2029/30 From - Spending review Topic 1]]+Dataset[[#This Row],[2029/30 From - Spending review Topic 2]]+Dataset[[#This Row],[2029/30 From - Spending review Topic 3]]+Dataset[[#This Row],[2029/30 From - Spending review Topic 4]]+Dataset[[#This Row],[2029/30 From - Other reallocations]]","v":0},{"$f":"Dataset[[#This Row],[2027/28 To - Spending review Topic 1]]+Dataset[[#This Row],[2027/28 To - Spending review Topic 2]]+Dataset[[#This Row],[2027/28 To - Spending review Topic 3]]+Dataset[[#This Row],[2027/28 To - Spending review Topic 4]]+Dataset[[#This Row],[2027/28 To - Other reallocations]]","v":0},{"$f":"Dataset[[#This Row],[2028/29 To - Spending review Topic 1]]+Dataset[[#This Row],[2028/29 To - Spending review Topic 2]]+Dataset[[#This Row],[2028/29 To - Spending review Topic 3]]+Dataset[[#This Row],[2028/29 To - Spending review Topic 4]]+Dataset[[#This Row],[2028/29 To - Other reallocations]]","v":0},{"$f":"Dataset[[#This Row],[2029/30 To - Spending review Topic 1]]+Dataset[[#This Row],[2029/30 To - Spending review Topic 2]]+Dataset[[#This Row],[2029/30 To - Spending review Topic 3]]+Dataset[[#This Row],[2029/30 To - Spending review Topic 4]]+Dataset[[#This Row],[2029/30 To - Other reallocations]]","v":0},{"$f":"Dataset[[#This Row],[2027/28 Targeted savings]]+Dataset[[#This Row],[2027/28 From - Total]]","v":0},{"$f":"Dataset[[#This Row],[2028/29 Targeted savings]]+Dataset[[#This Row],[2028/29 From - Total]]","v":0},{"$f":"Dataset[[#This Row],[2029/30 Targeted savings]]+Dataset[[#This Row],[2029/30 From - Total]]","v":0},{"$f":"Dataset[[#This Row],[2026/27 Targeted savings]]","v":0},{"$f":"SUM(Dataset[[#This Row],[2027/28 Targeted savings]],Dataset[[#This Row],[2027/28 From - Total]],Dataset[[#This Row],[2027/28 To - Total]])","v":0},{"$f":"SUM(Dataset[[#This Row],[2028/29 Targeted savings]],Dataset[[#This Row],[2028/29 From - Total]],Dataset[[#This Row],[2028/29 To - Total]])","v":0},{"$f":"SUM(Dataset[[#This Row],[2029/30 Targeted savings]],Dataset[[#This Row],[2029/30 From - Total]],Dataset[[#This Row],[2029/30 To - Total]])","v":0},{"$f":"Dataset[[#This Row],[2026/27 Baseline]]+Dataset[[#This Row],[2026/27 Total change]]","v":0},{"$f":"Dataset[[#This Row],[2027/28 Baseline]]+Dataset[[#This Row],[2027/28 Total change]]","v":0},{"$f":"Dataset[[#This Row],[2028/29 Baseline]]+Dataset[[#This Row],[2028/29 Total change]]","v":0},{"$f":"Dataset[[#This Row],[2029/30 Baseline]]+Dataset[[#This Row],[2029/30 Total change]]","v":0}]
["NAT|Non-transfer item","30|Inventory: Materials and supplies","2027_28","MTEC2027",30,1,5,32738,218,"30","01","05","032738","000218","30|01|05|000218","01","01","02","26","26","01|01|02|26|26","National","Communications and Digital Technologies","Administration","Financial Management","Non-transfer item","Current","Current payments","Goods and services","Inventory: Materials and supplies","Inventory: Materials and supplies","Economic development","Economic regulation and infrastructure","NAT",0,0,0,0,0,0,0,0,0,0,0,null,null,null,null,null,null,null,null,null,null,null,null,null,null,null,null,null,null,null,null,null,null,null,null,null,null,null,null,null,null,null,null,null,null,{"$f":"Dataset[[#This Row],[2027/28 From - Spending review Topic 1]]+Dataset[[#This Row],[2027/28 From - Spending review Topic 2]]+Dataset[[#This Row],[2027/28 From - Spending review Topic 3]]+Dataset[[#This Row],[2027/28 From - Spending review Topic 4]]+Dataset[[#This Row],[2027/28 From - Other reallocations]]","v":0},{"$f":"Dataset[[#This Row],[2028/29 From - Spending review Topic 1]]+Dataset[[#This Row],[2028/29 From - Spending review Topic 2]]+Dataset[[#This Row],[2028/29 From - Spending review Topic 3]]+Dataset[[#This Row],[2028/29 From - Spending review Topic 4]]+Dataset[[#This Row],[2028/29 From - Other reallocations]]","v":0},{"$f":"Dataset[[#This Row],[2029/30 From - Spending review Topic 1]]+Dataset[[#This Row],[2029/30 From - Spending review Topic 2]]+Dataset[[#This Row],[2029/30 From - Spending review Topic 3]]+Dataset[[#This Row],[2029/30 From - Spending review Topic 4]]+Dataset[[#This Row],[2029/30 From - Other reallocations]]","v":0},{"$f":"Dataset[[#This Row],[2027/28 To - Spending review Topic 1]]+Dataset[[#This Row],[2027/28 To - Spending review Topic 2]]+Dataset[[#This Row],[2027/28 To - Spending review Topic 3]]+Dataset[[#This Row],[2027/28 To - Spending review Topic 4]]+Dataset[[#This Row],[2027/28 To - Other reallocations]]","v":0},{"$f":"Dataset[[#This Row],[2028/29 To - Spending review Topic 1]]+Dataset[[#This Row],[2028/29 To - Spending review Topic 2]]+Dataset[[#This Row],[2028/29 To - Spending review Topic 3]]+Dataset[[#This Row],[2028/29 To - Spending review Topic 4]]+Dataset[[#This Row],[2028/29 To - Other reallocations]]","v":0},{"$f":"Dataset[[#This Row],[2029/30 To - Spending review Topic 1]]+Dataset[[#This Row],[2029/30 To - Spending review Topic 2]]+Dataset[[#This Row],[2029/30 To - Spending review Topic 3]]+Dataset[[#This Row],[2029/30 To - Spending review Topic 4]]+Dataset[[#This Row],[2029/30 To - Other reallocations]]","v":0},{"$f":"Dataset[[#This Row],[2027/28 Targeted savings]]+Dataset[[#This Row],[2027/28 From - Total]]","v":0},{"$f":"Dataset[[#This Row],[2028/29 Targeted savings]]+Dataset[[#This Row],[2028/29 From - Total]]","v":0},{"$f":"Dataset[[#This Row],[2029/30 Targeted savings]]+Dataset[[#This Row],[2029/30 From - Total]]","v":0},{"$f":"Dataset[[#This Row],[2026/27 Targeted savings]]","v":0},{"$f":"SUM(Dataset[[#This Row],[2027/28 Targeted savings]],Dataset[[#This Row],[2027/28 From - Total]],Dataset[[#This Row],[2027/28 To - Total]])","v":0},{"$f":"SUM(Dataset[[#This Row],[2028/29 Targeted savings]],Dataset[[#This Row],[2028/29 From - Total]],Dataset[[#This Row],[2028/29 To - Total]])","v":0},{"$f":"SUM(Dataset[[#This Row],[2029/30 Targeted savings]],Dataset[[#This Row],[2029/30 From - Total]],Dataset[[#This Row],[2029/30 To - Total]])","v":0},{"$f":"Dataset[[#This Row],[2026/27 Baseline]]+Dataset[[#This Row],[2026/27 Total change]]","v":0},{"$f":"Dataset[[#This Row],[2027/28 Baseline]]+Dataset[[#This Row],[2027/28 Total change]]","v":0},{"$f":"Dataset[[#This Row],[2028/29 Baseline]]+Dataset[[#This Row],[2028/29 Total change]]","v":0},{"$f":"Dataset[[#This Row],[2029/30 Baseline]]+Dataset[[#This Row],[2029/30 Total change]]","v":0}]
["NAT|Non-transfer item","30|Inventory: Medical supplies","2027_28","MTEC2027",30,1,5,32739,219,"30","01","05","032739","000219","30|01|05|000219","01","01","02","27","27","01|01|02|27|27","National","Communications and Digital Technologies","Administration","Financial Management","Non-transfer item","Current","Current payments","Goods and services","Inventory: Medical supplies","Inventory: Medical supplies","Economic development","Economic regulation and infrastructure","NAT",0,0,0,0,0,0,0,0,0,0,0,null,null,null,null,null,null,null,null,null,null,null,null,null,null,null,null,null,null,null,null,null,null,null,null,null,null,null,null,null,null,null,null,null,null,{"$f":"Dataset[[#This Row],[2027/28 From - Spending review Topic 1]]+Dataset[[#This Row],[2027/28 From - Spending review Topic 2]]+Dataset[[#This Row],[2027/28 From - Spending review Topic 3]]+Dataset[[#This Row],[2027/28 From - Spending review Topic 4]]+Dataset[[#This Row],[2027/28 From - Other reallocations]]","v":0},{"$f":"Dataset[[#This Row],[2028/29 From - Spending review Topic 1]]+Dataset[[#This Row],[2028/29 From - Spending review Topic 2]]+Dataset[[#This Row],[2028/29 From - Spending review Topic 3]]+Dataset[[#This Row],[2028/29 From - Spending review Topic 4]]+Dataset[[#This Row],[2028/29 From - Other reallocations]]","v":0},{"$f":"Dataset[[#This Row],[2029/30 From - Spending review Topic 1]]+Dataset[[#This Row],[2029/30 From - Spending review Topic 2]]+Dataset[[#This Row],[2029/30 From - Spending review Topic 3]]+Dataset[[#This Row],[2029/30 From - Spending review Topic 4]]+Dataset[[#This Row],[2029/30 From - Other reallocations]]","v":0},{"$f":"Dataset[[#This Row],[2027/28 To - Spending review Topic 1]]+Dataset[[#This Row],[2027/28 To - Spending review Topic 2]]+Dataset[[#This Row],[2027/28 To - Spending review Topic 3]]+Dataset[[#This Row],[2027/28 To - Spending review Topic 4]]+Dataset[[#This Row],[2027/28 To - Other reallocations]]","v":0},{"$f":"Dataset[[#This Row],[2028/29 To - Spending review Topic 1]]+Dataset[[#This Row],[2028/29 To - Spending review Topic 2]]+Dataset[[#This Row],[2028/29 To - Spending review Topic 3]]+Dataset[[#This Row],[2028/29 To - Spending review Topic 4]]+Dataset[[#This Row],[2028/29 To - Other reallocations]]","v":0},{"$f":"Dataset[[#This Row],[2029/30 To - Spending review Topic 1]]+Dataset[[#This Row],[2029/30 To - Spending review Topic 2]]+Dataset[[#This Row],[2029/30 To - Spending review Topic 3]]+Dataset[[#This Row],[2029/30 To - Spending review Topic 4]]+Dataset[[#This Row],[2029/30 To - Other reallocations]]","v":0},{"$f":"Dataset[[#This Row],[2027/28 Targeted savings]]+Dataset[[#This Row],[2027/28 From - Total]]","v":0},{"$f":"Dataset[[#This Row],[2028/29 Targeted savings]]+Dataset[[#This Row],[2028/29 From - Total]]","v":0},{"$f":"Dataset[[#This Row],[2029/30 Targeted savings]]+Dataset[[#This Row],[2029/30 From - Total]]","v":0},{"$f":"Dataset[[#This Row],[2026/27 Targeted savings]]","v":0},{"$f":"SUM(Dataset[[#This Row],[2027/28 Targeted savings]],Dataset[[#This Row],[2027/28 From - Total]],Dataset[[#This Row],[2027/28 To - Total]])","v":0},{"$f":"SUM(Dataset[[#This Row],[2028/29 Targeted savings]],Dataset[[#This Row],[2028/29 From - Total]],Dataset[[#This Row],[2028/29 To - Total]])","v":0},{"$f":"SUM(Dataset[[#This Row],[2029/30 Targeted savings]],Dataset[[#This Row],[2029/30 From - Total]],Dataset[[#This Row],[2029/30 To - Total]])","v":0},{"$f":"Dataset[[#This Row],[2026/27 Baseline]]+Dataset[[#This Row],[2026/27 Total change]]","v":0},{"$f":"Dataset[[#This Row],[2027/28 Baseline]]+Dataset[[#This Row],[2027/28 Total change]]","v":0},{"$f":"Dataset[[#This Row],[2028/29 Baseline]]+Dataset[[#This Row],[2028/29 Total change]]","v":0},{"$f":"Dataset[[#This Row],[2029/30 Baseline]]+Dataset[[#This Row],[2029/30 Total change]]","v":0}]
["NAT|Non-transfer item","30|Inventory: Medicine","2027_28","MTEC2027",30,1,5,32740,220,"30","01","05","032740","000220","30|01|05|000220","01","01","02","28","28","01|01|02|28|28","National","Communications and Digital Technologies","Administration","Financial Management","Non-transfer item","Current","Current payments","Goods and services","Inventory: Medicine","Inventory: Medicine","Economic development","Economic regulation and infrastructure","NAT",0,0,0,0,0,0,0,0,0,0,0,null,null,null,null,null,null,null,null,null,null,null,null,null,null,null,null,null,null,null,null,null,null,null,null,null,null,null,null,null,null,null,null,null,null,{"$f":"Dataset[[#This Row],[2027/28 From - Spending review Topic 1]]+Dataset[[#This Row],[2027/28 From - Spending review Topic 2]]+Dataset[[#This Row],[2027/28 From - Spending review Topic 3]]+Dataset[[#This Row],[2027/28 From - Spending review Topic 4]]+Dataset[[#This Row],[2027/28 From - Other reallocations]]","v":0},{"$f":"Dataset[[#This Row],[2028/29 From - Spending review Topic 1]]+Dataset[[#This Row],[2028/29 From - Spending review Topic 2]]+Dataset[[#This Row],[2028/29 From - Spending review Topic 3]]+Dataset[[#This Row],[2028/29 From - Spending review Topic 4]]+Dataset[[#This Row],[2028/29 From - Other reallocations]]","v":0},{"$f":"Dataset[[#This Row],[2029/30 From - Spending review Topic 1]]+Dataset[[#This Row],[2029/30 From - Spending review Topic 2]]+Dataset[[#This Row],[2029/30 From - Spending review Topic 3]]+Dataset[[#This Row],[2029/30 From - Spending review Topic 4]]+Dataset[[#This Row],[2029/30 From - Other reallocations]]","v":0},{"$f":"Dataset[[#This Row],[2027/28 To - Spending review Topic 1]]+Dataset[[#This Row],[2027/28 To - Spending review Topic 2]]+Dataset[[#This Row],[2027/28 To - Spending review Topic 3]]+Dataset[[#This Row],[2027/28 To - Spending review Topic 4]]+Dataset[[#This Row],[2027/28 To - Other reallocations]]","v":0},{"$f":"Dataset[[#This Row],[2028/29 To - Spending review Topic 1]]+Dataset[[#This Row],[2028/29 To - Spending review Topic 2]]+Dataset[[#This Row],[2028/29 To - Spending review Topic 3]]+Dataset[[#This Row],[2028/29 To - Spending review Topic 4]]+Dataset[[#This Row],[2028/29 To - Other reallocations]]","v":0},{"$f":"Dataset[[#This Row],[2029/30 To - Spending review Topic 1]]+Dataset[[#This Row],[2029/30 To - Spending review Topic 2]]+Dataset[[#This Row],[2029/30 To - Spending review Topic 3]]+Dataset[[#This Row],[2029/30 To - Spending review Topic 4]]+Dataset[[#This Row],[2029/30 To - Other reallocations]]","v":0},{"$f":"Dataset[[#This Row],[2027/28 Targeted savings]]+Dataset[[#This Row],[2027/28 From - Total]]","v":0},{"$f":"Dataset[[#This Row],[2028/29 Targeted savings]]+Dataset[[#This Row],[2028/29 From - Total]]","v":0},{"$f":"Dataset[[#This Row],[2029/30 Targeted savings]]+Dataset[[#This Row],[2029/30 From - Total]]","v":0},{"$f":"Dataset[[#This Row],[2026/27 Targeted savings]]","v":0},{"$f":"SUM(Dataset[[#This Row],[2027/28 Targeted savings]],Dataset[[#This Row],[2027/28 From - Total]],Dataset[[#This Row],[2027/28 To - Total]])","v":0},{"$f":"SUM(Dataset[[#This Row],[2028/29 Targeted savings]],Dataset[[#This Row],[2028/29 From - Total]],Dataset[[#This Row],[2028/29 To - Total]])","v":0},{"$f":"SUM(Dataset[[#This Row],[2029/30 Targeted savings]],Dataset[[#This Row],[2029/30 From - Total]],Dataset[[#This Row],[2029/30 To - Total]])","v":0},{"$f":"Dataset[[#This Row],[2026/27 Baseline]]+Dataset[[#This Row],[2026/27 Total change]]","v":0},{"$f":"Dataset[[#This Row],[2027/28 Baseline]]+Dataset[[#This Row],[2027/28 Total change]]","v":0},{"$f":"Dataset[[#This Row],[2028/29 Baseline]]+Dataset[[#This Row],[2028/29 Total change]]","v":0},{"$f":"Dataset[[#This Row],[2029/30 Baseline]]+Dataset[[#This Row],[2029/30 Total change]]","v":0}]
["NAT|Non-transfer item","30|Medsas inventory interface","2027_28","MTEC2027",30,1,5,32741,221,"30","01","05","032741","000221","30|01|05|000221","01","01","02","29","29","01|01|02|29|29","National","Communications and Digital Technologies","Administration","Financial Management","Non-transfer item","Current","Current payments","Goods and services","Medsas inventory interface","Medsas inventory interface","Economic development","Economic regulation and infrastructure","NAT",0,0,0,0,0,0,0,0,0,0,0,null,null,null,null,null,null,null,null,null,null,null,null,null,null,null,null,null,null,null,null,null,null,null,null,null,null,null,null,null,null,null,null,null,null,{"$f":"Dataset[[#This Row],[2027/28 From - Spending review Topic 1]]+Dataset[[#This Row],[2027/28 From - Spending review Topic 2]]+Dataset[[#This Row],[2027/28 From - Spending review Topic 3]]+Dataset[[#This Row],[2027/28 From - Spending review Topic 4]]+Dataset[[#This Row],[2027/28 From - Other reallocations]]","v":0},{"$f":"Dataset[[#This Row],[2028/29 From - Spending review Topic 1]]+Dataset[[#This Row],[2028/29 From - Spending review Topic 2]]+Dataset[[#This Row],[2028/29 From - Spending review Topic 3]]+Dataset[[#This Row],[2028/29 From - Spending review Topic 4]]+Dataset[[#This Row],[2028/29 From - Other reallocations]]","v":0},{"$f":"Dataset[[#This Row],[2029/30 From - Spending review Topic 1]]+Dataset[[#This Row],[2029/30 From - Spending review Topic 2]]+Dataset[[#This Row],[2029/30 From - Spending review Topic 3]]+Dataset[[#This Row],[2029/30 From - Spending review Topic 4]]+Dataset[[#This Row],[2029/30 From - Other reallocations]]","v":0},{"$f":"Dataset[[#This Row],[2027/28 To - Spending review Topic 1]]+Dataset[[#This Row],[2027/28 To - Spending review Topic 2]]+Dataset[[#This Row],[2027/28 To - Spending review Topic 3]]+Dataset[[#This Row],[2027/28 To - Spending review Topic 4]]+Dataset[[#This Row],[2027/28 To - Other reallocations]]","v":0},{"$f":"Dataset[[#This Row],[2028/29 To - Spending review Topic 1]]+Dataset[[#This Row],[2028/29 To - Spending review Topic 2]]+Dataset[[#This Row],[2028/29 To - Spending review Topic 3]]+Dataset[[#This Row],[2028/29 To - Spending review Topic 4]]+Dataset[[#This Row],[2028/29 To - Other reallocations]]","v":0},{"$f":"Dataset[[#This Row],[2029/30 To - Spending review Topic 1]]+Dataset[[#This Row],[2029/30 To - Spending review Topic 2]]+Dataset[[#This Row],[2029/30 To - Spending review Topic 3]]+Dataset[[#This Row],[2029/30 To - Spending review Topic 4]]+Dataset[[#This Row],[2029/30 To - Other reallocations]]","v":0},{"$f":"Dataset[[#This Row],[2027/28 Targeted savings]]+Dataset[[#This Row],[2027/28 From - Total]]","v":0},{"$f":"Dataset[[#This Row],[2028/29 Targeted savings]]+Dataset[[#This Row],[2028/29 From - Total]]","v":0},{"$f":"Dataset[[#This Row],[2029/30 Targeted savings]]+Dataset[[#This Row],[2029/30 From - Total]]","v":0},{"$f":"Dataset[[#This Row],[2026/27 Targeted savings]]","v":0},{"$f":"SUM(Dataset[[#This Row],[2027/28 Targeted savings]],Dataset[[#This Row],[2027/28 From - Total]],Dataset[[#This Row],[2027/28 To - Total]])","v":0},{"$f":"SUM(Dataset[[#This Row],[2028/29 Targeted savings]],Dataset[[#This Row],[2028/29 From - Total]],Dataset[[#This Row],[2028/29 To - Total]])","v":0},{"$f":"SUM(Dataset[[#This Row],[2029/30 Targeted savings]],Dataset[[#This Row],[2029/30 From - Total]],Dataset[[#This Row],[2029/30 To - Total]])","v":0},{"$f":"Dataset[[#This Row],[2026/27 Baseline]]+Dataset[[#This Row],[2026/27 Total change]]","v":0},{"$f":"Dataset[[#This Row],[2027/28 Baseline]]+Dataset[[#This Row],[2027/28 Total change]]","v":0},{"$f":"Dataset[[#This Row],[2028/29 Baseline]]+Dataset[[#This Row],[2028/29 Total change]]","v":0},{"$f":"Dataset[[#This Row],[2029/30 Baseline]]+Dataset[[#This Row],[2029/30 Total change]]","v":0}]
["NAT|Non-transfer item","30|Inventory: Other supplies","2027_28","MTEC2027",30,1,5,32742,222,"30","01","05","032742","000222","30|01|05|000222","01","01","02","30","30","01|01|02|30|30","National","Communications and Digital Technologies","Administration","Financial Management","Non-transfer item","Current","Current payments","Goods and services","Inventory: Other supplies","Inventory: Other supplies","Economic development","Economic regulation and infrastructure","NAT",0,0,0,0,0,0,0,0,0,0,0,null,null,null,null,null,null,null,null,null,null,null,null,null,null,null,null,null,null,null,null,null,null,null,null,null,null,null,null,null,null,null,null,null,null,{"$f":"Dataset[[#This Row],[2027/28 From - Spending review Topic 1]]+Dataset[[#This Row],[2027/28 From - Spending review Topic 2]]+Dataset[[#This Row],[2027/28 From - Spending review Topic 3]]+Dataset[[#This Row],[2027/28 From - Spending review Topic 4]]+Dataset[[#This Row],[2027/28 From - Other reallocations]]","v":0},{"$f":"Dataset[[#This Row],[2028/29 From - Spending review Topic 1]]+Dataset[[#This Row],[2028/29 From - Spending review Topic 2]]+Dataset[[#This Row],[2028/29 From - Spending review Topic 3]]+Dataset[[#This Row],[2028/29 From - Spending review Topic 4]]+Dataset[[#This Row],[2028/29 From - Other reallocations]]","v":0},{"$f":"Dataset[[#This Row],[2029/30 From - Spending review Topic 1]]+Dataset[[#This Row],[2029/30 From - Spending review Topic 2]]+Dataset[[#This Row],[2029/30 From - Spending review Topic 3]]+Dataset[[#This Row],[2029/30 From - Spending review Topic 4]]+Dataset[[#This Row],[2029/30 From - Other reallocations]]","v":0},{"$f":"Dataset[[#This Row],[2027/28 To - Spending review Topic 1]]+Dataset[[#This Row],[2027/28 To - Spending review Topic 2]]+Dataset[[#This Row],[2027/28 To - Spending review Topic 3]]+Dataset[[#This Row],[2027/28 To - Spending review Topic 4]]+Dataset[[#This Row],[2027/28 To - Other reallocations]]","v":0},{"$f":"Dataset[[#This Row],[2028/29 To - Spending review Topic 1]]+Dataset[[#This Row],[2028/29 To - Spending review Topic 2]]+Dataset[[#This Row],[2028/29 To - Spending review Topic 3]]+Dataset[[#This Row],[2028/29 To - Spending review Topic 4]]+Dataset[[#This Row],[2028/29 To - Other reallocations]]","v":0},{"$f":"Dataset[[#This Row],[2029/30 To - Spending review Topic 1]]+Dataset[[#This Row],[2029/30 To - Spending review Topic 2]]+Dataset[[#This Row],[2029/30 To - Spending review Topic 3]]+Dataset[[#This Row],[2029/30 To - Spending review Topic 4]]+Dataset[[#This Row],[2029/30 To - Other reallocations]]","v":0},{"$f":"Dataset[[#This Row],[2027/28 Targeted savings]]+Dataset[[#This Row],[2027/28 From - Total]]","v":0},{"$f":"Dataset[[#This Row],[2028/29 Targeted savings]]+Dataset[[#This Row],[2028/29 From - Total]]","v":0},{"$f":"Dataset[[#This Row],[2029/30 Targeted savings]]+Dataset[[#This Row],[2029/30 From - Total]]","v":0},{"$f":"Dataset[[#This Row],[2026/27 Targeted savings]]","v":0},{"$f":"SUM(Dataset[[#This Row],[2027/28 Targeted savings]],Dataset[[#This Row],[2027/28 From - Total]],Dataset[[#This Row],[2027/28 To - Total]])","v":0},{"$f":"SUM(Dataset[[#This Row],[2028/29 Targeted savings]],Dataset[[#This Row],[2028/29 From - Total]],Dataset[[#This Row],[2028/29 To - Total]])","v":0},{"$f":"SUM(Dataset[[#This Row],[2029/30 Targeted savings]],Dataset[[#This Row],[2029/30 From - Total]],Dataset[[#This Row],[2029/30 To - Total]])","v":0},{"$f":"Dataset[[#This Row],[2026/27 Baseline]]+Dataset[[#This Row],[2026/27 Total change]]","v":0},{"$f":"Dataset[[#This Row],[2027/28 Baseline]]+Dataset[[#This Row],[2027/28 Total change]]","v":0},{"$f":"Dataset[[#This Row],[2028/29 Baseline]]+Dataset[[#This Row],[2028/29 Total change]]","v":0},{"$f":"Dataset[[#This Row],[2029/30 Baseline]]+Dataset[[#This Row],[2029/30 Total change]]","v":0}]
["NAT|Non-transfer item","30|Consumable supplies","2027_28","MTEC2027",30,1,5,32743,223,"30","01","05","032743","000223","30|01|05|000223","01","01","02","31","31","01|01|02|31|31","National","Communications and Digital Technologies","Administration","Financial Management","Non-transfer item","Current","Current payments","Goods and services","Consumable supplies","Consumable supplies","Economic development","Economic regulation and infrastructure","NAT",0,0,0,0,0,0,152,0,0,0,0,null,null,null,null,null,null,null,null,null,null,null,null,null,null,null,null,null,null,null,null,null,null,null,null,null,null,null,null,null,null,null,null,null,null,{"$f":"Dataset[[#This Row],[2027/28 From - Spending review Topic 1]]+Dataset[[#This Row],[2027/28 From - Spending review Topic 2]]+Dataset[[#This Row],[2027/28 From - Spending review Topic 3]]+Dataset[[#This Row],[2027/28 From - Spending review Topic 4]]+Dataset[[#This Row],[2027/28 From - Other reallocations]]","v":0},{"$f":"Dataset[[#This Row],[2028/29 From - Spending review Topic 1]]+Dataset[[#This Row],[2028/29 From - Spending review Topic 2]]+Dataset[[#This Row],[2028/29 From - Spending review Topic 3]]+Dataset[[#This Row],[2028/29 From - Spending review Topic 4]]+Dataset[[#This Row],[2028/29 From - Other reallocations]]","v":0},{"$f":"Dataset[[#This Row],[2029/30 From - Spending review Topic 1]]+Dataset[[#This Row],[2029/30 From - Spending review Topic 2]]+Dataset[[#This Row],[2029/30 From - Spending review Topic 3]]+Dataset[[#This Row],[2029/30 From - Spending review Topic 4]]+Dataset[[#This Row],[2029/30 From - Other reallocations]]","v":0},{"$f":"Dataset[[#This Row],[2027/28 To - Spending review Topic 1]]+Dataset[[#This Row],[2027/28 To - Spending review Topic 2]]+Dataset[[#This Row],[2027/28 To - Spending review Topic 3]]+Dataset[[#This Row],[2027/28 To - Spending review Topic 4]]+Dataset[[#This Row],[2027/28 To - Other reallocations]]","v":0},{"$f":"Dataset[[#This Row],[2028/29 To - Spending review Topic 1]]+Dataset[[#This Row],[2028/29 To - Spending review Topic 2]]+Dataset[[#This Row],[2028/29 To - Spending review Topic 3]]+Dataset[[#This Row],[2028/29 To - Spending review Topic 4]]+Dataset[[#This Row],[2028/29 To - Other reallocations]]","v":0},{"$f":"Dataset[[#This Row],[2029/30 To - Spending review Topic 1]]+Dataset[[#This Row],[2029/30 To - Spending review Topic 2]]+Dataset[[#This Row],[2029/30 To - Spending review Topic 3]]+Dataset[[#This Row],[2029/30 To - Spending review Topic 4]]+Dataset[[#This Row],[2029/30 To - Other reallocations]]","v":0},{"$f":"Dataset[[#This Row],[2027/28 Targeted savings]]+Dataset[[#This Row],[2027/28 From - Total]]","v":0},{"$f":"Dataset[[#This Row],[2028/29 Targeted savings]]+Dataset[[#This Row],[2028/29 From - Total]]","v":0},{"$f":"Dataset[[#This Row],[2029/30 Targeted savings]]+Dataset[[#This Row],[2029/30 From - Total]]","v":0},{"$f":"Dataset[[#This Row],[2026/27 Targeted savings]]","v":0},{"$f":"SUM(Dataset[[#This Row],[2027/28 Targeted savings]],Dataset[[#This Row],[2027/28 From - Total]],Dataset[[#This Row],[2027/28 To - Total]])","v":0},{"$f":"SUM(Dataset[[#This Row],[2028/29 Targeted savings]],Dataset[[#This Row],[2028/29 From - Total]],Dataset[[#This Row],[2028/29 To - Total]])","v":0},{"$f":"SUM(Dataset[[#This Row],[2029/30 Targeted savings]],Dataset[[#This Row],[2029/30 From - Total]],Dataset[[#This Row],[2029/30 To - Total]])","v":0},{"$f":"Dataset[[#This Row],[2026/27 Baseline]]+Dataset[[#This Row],[2026/27 Total change]]","v":0},{"$f":"Dataset[[#This Row],[2027/28 Baseline]]+Dataset[[#This Row],[2027/28 Total change]]","v":0},{"$f":"Dataset[[#This Row],[2028/29 Baseline]]+Dataset[[#This Row],[2028/29 Total change]]","v":0},{"$f":"Dataset[[#This Row],[2029/30 Baseline]]+Dataset[[#This Row],[2029/30 Total change]]","v":0}]
["NAT|Non-transfer item","30|Consumables: Stationery, printing and office supplies","2027_28","MTEC2027",30,1,5,32744,224,"30","01","05","032744","000224","30|01|05|000224","01","01","02","32","32","01|01|02|32|32","National","Communications and Digital Technologies","Administration","Financial Management","Non-transfer item","Current","Current payments","Goods and services","Consumables: Stationery, printing and office supplies","Consumables: Stationery, printing and office supplies","Economic development","Economic regulation and infrastructure","NAT",0,0,0,0,0,0,193,0,0,0,0,null,null,null,null,null,null,null,null,null,null,null,null,null,null,null,null,null,null,null,null,null,null,null,null,null,null,null,null,null,null,null,null,null,null,{"$f":"Dataset[[#This Row],[2027/28 From - Spending review Topic 1]]+Dataset[[#This Row],[2027/28 From - Spending review Topic 2]]+Dataset[[#This Row],[2027/28 From - Spending review Topic 3]]+Dataset[[#This Row],[2027/28 From - Spending review Topic 4]]+Dataset[[#This Row],[2027/28 From - Other reallocations]]","v":0},{"$f":"Dataset[[#This Row],[2028/29 From - Spending review Topic 1]]+Dataset[[#This Row],[2028/29 From - Spending review Topic 2]]+Dataset[[#This Row],[2028/29 From - Spending review Topic 3]]+Dataset[[#This Row],[2028/29 From - Spending review Topic 4]]+Dataset[[#This Row],[2028/29 From - Other reallocations]]","v":0},{"$f":"Dataset[[#This Row],[2029/30 From - Spending review Topic 1]]+Dataset[[#This Row],[2029/30 From - Spending review Topic 2]]+Dataset[[#This Row],[2029/30 From - Spending review Topic 3]]+Dataset[[#This Row],[2029/30 From - Spending review Topic 4]]+Dataset[[#This Row],[2029/30 From - Other reallocations]]","v":0},{"$f":"Dataset[[#This Row],[2027/28 To - Spending review Topic 1]]+Dataset[[#This Row],[2027/28 To - Spending review Topic 2]]+Dataset[[#This Row],[2027/28 To - Spending review Topic 3]]+Dataset[[#This Row],[2027/28 To - Spending review Topic 4]]+Dataset[[#This Row],[2027/28 To - Other reallocations]]","v":0},{"$f":"Dataset[[#This Row],[2028/29 To - Spending review Topic 1]]+Dataset[[#This Row],[2028/29 To - Spending review Topic 2]]+Dataset[[#This Row],[2028/29 To - Spending review Topic 3]]+Dataset[[#This Row],[2028/29 To - Spending review Topic 4]]+Dataset[[#This Row],[2028/29 To - Other reallocations]]","v":0},{"$f":"Dataset[[#This Row],[2029/30 To - Spending review Topic 1]]+Dataset[[#This Row],[2029/30 To - Spending review Topic 2]]+Dataset[[#This Row],[2029/30 To - Spending review Topic 3]]+Dataset[[#This Row],[2029/30 To - Spending review Topic 4]]+Dataset[[#This Row],[2029/30 To - Other reallocations]]","v":0},{"$f":"Dataset[[#This Row],[2027/28 Targeted savings]]+Dataset[[#This Row],[2027/28 From - Total]]","v":0},{"$f":"Dataset[[#This Row],[2028/29 Targeted savings]]+Dataset[[#This Row],[2028/29 From - Total]]","v":0},{"$f":"Dataset[[#This Row],[2029/30 Targeted savings]]+Dataset[[#This Row],[2029/30 From - Total]]","v":0},{"$f":"Dataset[[#This Row],[2026/27 Targeted savings]]","v":0},{"$f":"SUM(Dataset[[#This Row],[2027/28 Targeted savings]],Dataset[[#This Row],[2027/28 From - Total]],Dataset[[#This Row],[2027/28 To - Total]])","v":0},{"$f":"SUM(Dataset[[#This Row],[2028/29 Targeted savings]],Dataset[[#This Row],[2028/29 From - Total]],Dataset[[#This Row],[2028/29 To - Total]])","v":0},{"$f":"SUM(Dataset[[#This Row],[2029/30 Targeted savings]],Dataset[[#This Row],[2029/30 From - Total]],Dataset[[#This Row],[2029/30 To - Total]])","v":0},{"$f":"Dataset[[#This Row],[2026/27 Baseline]]+Dataset[[#This Row],[2026/27 Total change]]","v":0},{"$f":"Dataset[[#This Row],[2027/28 Baseline]]+Dataset[[#This Row],[2027/28 Total change]]","v":0},{"$f":"Dataset[[#This Row],[2028/29 Baseline]]+Dataset[[#This Row],[2028/29 Total change]]","v":0},{"$f":"Dataset[[#This Row],[2029/30 Baseline]]+Dataset[[#This Row],[2029/30 Total change]]","v":0}]
["NAT|Non-transfer","30|Operating leases","2027_28","MTEC2027",30,1,5,32745,225,"30","01","05","032745","000225","30|01|05|000225","01","01","02","33","33","01|01|02|33|33","National","Communications and Digital Technologies","Administration","Office Accommodation","Non-transfer","Current","Current payments","Goods and services","Operating leases","Operating leases","Economic development","Economic regulation and infrastructure","NAT",26735,28339,27536,31204,30878,30878,34345,29500,30484,30968,31900,null,null,null,null,null,null,null,null,null,null,null,null,null,null,null,null,null,null,null,null,null,null,null,null,null,null,null,null,null,null,null,null,null,null,{"$f":"Dataset[[#This Row],[2027/28 From - Spending review Topic 1]]+Dataset[[#This Row],[2027/28 From - Spending review Topic 2]]+Dataset[[#This Row],[2027/28 From - Spending review Topic 3]]+Dataset[[#This Row],[2027/28 From - Spending review Topic 4]]+Dataset[[#This Row],[2027/28 From - Other reallocations]]","v":0},{"$f":"Dataset[[#This Row],[2028/29 From - Spending review Topic 1]]+Dataset[[#This Row],[2028/29 From - Spending review Topic 2]]+Dataset[[#This Row],[2028/29 From - Spending review Topic 3]]+Dataset[[#This Row],[2028/29 From - Spending review Topic 4]]+Dataset[[#This Row],[2028/29 From - Other reallocations]]","v":0},{"$f":"Dataset[[#This Row],[2029/30 From - Spending review Topic 1]]+Dataset[[#This Row],[2029/30 From - Spending review Topic 2]]+Dataset[[#This Row],[2029/30 From - Spending review Topic 3]]+Dataset[[#This Row],[2029/30 From - Spending review Topic 4]]+Dataset[[#This Row],[2029/30 From - Other reallocations]]","v":0},{"$f":"Dataset[[#This Row],[2027/28 To - Spending review Topic 1]]+Dataset[[#This Row],[2027/28 To - Spending review Topic 2]]+Dataset[[#This Row],[2027/28 To - Spending review Topic 3]]+Dataset[[#This Row],[2027/28 To - Spending review Topic 4]]+Dataset[[#This Row],[2027/28 To - Other reallocations]]","v":0},{"$f":"Dataset[[#This Row],[2028/29 To - Spending review Topic 1]]+Dataset[[#This Row],[2028/29 To - Spending review Topic 2]]+Dataset[[#This Row],[2028/29 To - Spending review Topic 3]]+Dataset[[#This Row],[2028/29 To - Spending review Topic 4]]+Dataset[[#This Row],[2028/29 To - Other reallocations]]","v":0},{"$f":"Dataset[[#This Row],[2029/30 To - Spending review Topic 1]]+Dataset[[#This Row],[2029/30 To - Spending review Topic 2]]+Dataset[[#This Row],[2029/30 To - Spending review Topic 3]]+Dataset[[#This Row],[2029/30 To - Spending review Topic 4]]+Dataset[[#This Row],[2029/30 To - Other reallocations]]","v":0},{"$f":"Dataset[[#This Row],[2027/28 Targeted savings]]+Dataset[[#This Row],[2027/28 From - Total]]","v":0},{"$f":"Dataset[[#This Row],[2028/29 Targeted savings]]+Dataset[[#This Row],[2028/29 From - Total]]","v":0},{"$f":"Dataset[[#This Row],[2029/30 Targeted savings]]+Dataset[[#This Row],[2029/30 From - Total]]","v":0},{"$f":"Dataset[[#This Row],[2026/27 Targeted savings]]","v":0},{"$f":"SUM(Dataset[[#This Row],[2027/28 Targeted savings]],Dataset[[#This Row],[2027/28 From - Total]],Dataset[[#This Row],[2027/28 To - Total]])","v":0},{"$f":"SUM(Dataset[[#This Row],[2028/29 Targeted savings]],Dataset[[#This Row],[2028/29 From - Total]],Dataset[[#This Row],[2028/29 To - Total]])","v":0},{"$f":"SUM(Dataset[[#This Row],[2029/30 Targeted savings]],Dataset[[#This Row],[2029/30 From - Total]],Dataset[[#This Row],[2029/30 To - Total]])","v":0},{"$f":"Dataset[[#This Row],[2026/27 Baseline]]+Dataset[[#This Row],[2026/27 Total change]]","v":29500},{"$f":"Dataset[[#This Row],[2027/28 Baseline]]+Dataset[[#This Row],[2027/28 Total change]]","v":30484},{"$f":"Dataset[[#This Row],[2028/29 Baseline]]+Dataset[[#This Row],[2028/29 Total change]]","v":30968},{"$f":"Dataset[[#This Row],[2029/30 Baseline]]+Dataset[[#This Row],[2029/30 Total change]]","v":31900}]
["NAT|Non-transfer item","30|Rental and hiring","2027_28","MTEC2027",30,1,5,32746,226,"30","01","05","032746","000226","30|01|05|000226","01","01","02","34","34","01|01|02|34|34","National","Communications and Digital Technologies","Administration","Financial Management","Non-transfer item","Current","Current payments","Goods and services","Rental and hiring","Rental and hiring","Economic development","Economic regulation and infrastructure","NAT",0,0,0,0,0,0,0,0,0,0,0,null,null,null,null,null,null,null,null,null,null,null,null,null,null,null,null,null,null,null,null,null,null,null,null,null,null,null,null,null,null,null,null,null,null,{"$f":"Dataset[[#This Row],[2027/28 From - Spending review Topic 1]]+Dataset[[#This Row],[2027/28 From - Spending review Topic 2]]+Dataset[[#This Row],[2027/28 From - Spending review Topic 3]]+Dataset[[#This Row],[2027/28 From - Spending review Topic 4]]+Dataset[[#This Row],[2027/28 From - Other reallocations]]","v":0},{"$f":"Dataset[[#This Row],[2028/29 From - Spending review Topic 1]]+Dataset[[#This Row],[2028/29 From - Spending review Topic 2]]+Dataset[[#This Row],[2028/29 From - Spending review Topic 3]]+Dataset[[#This Row],[2028/29 From - Spending review Topic 4]]+Dataset[[#This Row],[2028/29 From - Other reallocations]]","v":0},{"$f":"Dataset[[#This Row],[2029/30 From - Spending review Topic 1]]+Dataset[[#This Row],[2029/30 From - Spending review Topic 2]]+Dataset[[#This Row],[2029/30 From - Spending review Topic 3]]+Dataset[[#This Row],[2029/30 From - Spending review Topic 4]]+Dataset[[#This Row],[2029/30 From - Other reallocations]]","v":0},{"$f":"Dataset[[#This Row],[2027/28 To - Spending review Topic 1]]+Dataset[[#This Row],[2027/28 To - Spending review Topic 2]]+Dataset[[#This Row],[2027/28 To - Spending review Topic 3]]+Dataset[[#This Row],[2027/28 To - Spending review Topic 4]]+Dataset[[#This Row],[2027/28 To - Other reallocations]]","v":0},{"$f":"Dataset[[#This Row],[2028/29 To - Spending review Topic 1]]+Dataset[[#This Row],[2028/29 To - Spending review Topic 2]]+Dataset[[#This Row],[2028/29 To - Spending review Topic 3]]+Dataset[[#This Row],[2028/29 To - Spending review Topic 4]]+Dataset[[#This Row],[2028/29 To - Other reallocations]]","v":0},{"$f":"Dataset[[#This Row],[2029/30 To - Spending review Topic 1]]+Dataset[[#This Row],[2029/30 To - Spending review Topic 2]]+Dataset[[#This Row],[2029/30 To - Spending review Topic 3]]+Dataset[[#This Row],[2029/30 To - Spending review Topic 4]]+Dataset[[#This Row],[2029/30 To - Other reallocations]]","v":0},{"$f":"Dataset[[#This Row],[2027/28 Targeted savings]]+Dataset[[#This Row],[2027/28 From - Total]]","v":0},{"$f":"Dataset[[#This Row],[2028/29 Targeted savings]]+Dataset[[#This Row],[2028/29 From - Total]]","v":0},{"$f":"Dataset[[#This Row],[2029/30 Targeted savings]]+Dataset[[#This Row],[2029/30 From - Total]]","v":0},{"$f":"Dataset[[#This Row],[2026/27 Targeted savings]]","v":0},{"$f":"SUM(Dataset[[#This Row],[2027/28 Targeted savings]],Dataset[[#This Row],[2027/28 From - Total]],Dataset[[#This Row],[2027/28 To - Total]])","v":0},{"$f":"SUM(Dataset[[#This Row],[2028/29 Targeted savings]],Dataset[[#This Row],[2028/29 From - Total]],Dataset[[#This Row],[2028/29 To - Total]])","v":0},{"$f":"SUM(Dataset[[#This Row],[2029/30 Targeted savings]],Dataset[[#This Row],[2029/30 From - Total]],Dataset[[#This Row],[2029/30 To - Total]])","v":0},{"$f":"Dataset[[#This Row],[2026/27 Baseline]]+Dataset[[#This Row],[2026/27 Total change]]","v":0},{"$f":"Dataset[[#This Row],[2027/28 Baseline]]+Dataset[[#This Row],[2027/28 Total change]]","v":0},{"$f":"Dataset[[#This Row],[2028/29 Baseline]]+Dataset[[#This Row],[2028/29 Total change]]","v":0},{"$f":"Dataset[[#This Row],[2029/30 Baseline]]+Dataset[[#This Row],[2029/30 Total change]]","v":0}]
["NAT|Non-transfer","30|Property payments","2027_28","MTEC2027",30,1,5,32747,227,"30","01","05","032747","000227","30|01|05|000227","01","01","02","35","35","01|01|02|35|35","National","Communications and Digital Technologies","Administration","Office Accommodation","Non-transfer","Current","Current payments","Goods and services","Property payments","Property payments","Economic development","Economic regulation and infrastructure","NAT",6365,5830,6021,4655,4655,4655,6914,6500,6786,6585,6783,null,null,null,null,null,null,null,null,null,null,null,null,null,null,null,null,null,null,null,null,null,null,null,null,null,null,null,null,null,null,null,null,null,null,{"$f":"Dataset[[#This Row],[2027/28 From - Spending review Topic 1]]+Dataset[[#This Row],[2027/28 From - Spending review Topic 2]]+Dataset[[#This Row],[2027/28 From - Spending review Topic 3]]+Dataset[[#This Row],[2027/28 From - Spending review Topic 4]]+Dataset[[#This Row],[2027/28 From - Other reallocations]]","v":0},{"$f":"Dataset[[#This Row],[2028/29 From - Spending review Topic 1]]+Dataset[[#This Row],[2028/29 From - Spending review Topic 2]]+Dataset[[#This Row],[2028/29 From - Spending review Topic 3]]+Dataset[[#This Row],[2028/29 From - Spending review Topic 4]]+Dataset[[#This Row],[2028/29 From - Other reallocations]]","v":0},{"$f":"Dataset[[#This Row],[2029/30 From - Spending review Topic 1]]+Dataset[[#This Row],[2029/30 From - Spending review Topic 2]]+Dataset[[#This Row],[2029/30 From - Spending review Topic 3]]+Dataset[[#This Row],[2029/30 From - Spending review Topic 4]]+Dataset[[#This Row],[2029/30 From - Other reallocations]]","v":0},{"$f":"Dataset[[#This Row],[2027/28 To - Spending review Topic 1]]+Dataset[[#This Row],[2027/28 To - Spending review Topic 2]]+Dataset[[#This Row],[2027/28 To - Spending review Topic 3]]+Dataset[[#This Row],[2027/28 To - Spending review Topic 4]]+Dataset[[#This Row],[2027/28 To - Other reallocations]]","v":0},{"$f":"Dataset[[#This Row],[2028/29 To - Spending review Topic 1]]+Dataset[[#This Row],[2028/29 To - Spending review Topic 2]]+Dataset[[#This Row],[2028/29 To - Spending review Topic 3]]+Dataset[[#This Row],[2028/29 To - Spending review Topic 4]]+Dataset[[#This Row],[2028/29 To - Other reallocations]]","v":0},{"$f":"Dataset[[#This Row],[2029/30 To - Spending review Topic 1]]+Dataset[[#This Row],[2029/30 To - Spending review Topic 2]]+Dataset[[#This Row],[2029/30 To - Spending review Topic 3]]+Dataset[[#This Row],[2029/30 To - Spending review Topic 4]]+Dataset[[#This Row],[2029/30 To - Other reallocations]]","v":0},{"$f":"Dataset[[#This Row],[2027/28 Targeted savings]]+Dataset[[#This Row],[2027/28 From - Total]]","v":0},{"$f":"Dataset[[#This Row],[2028/29 Targeted savings]]+Dataset[[#This Row],[2028/29 From - Total]]","v":0},{"$f":"Dataset[[#This Row],[2029/30 Targeted savings]]+Dataset[[#This Row],[2029/30 From - Total]]","v":0},{"$f":"Dataset[[#This Row],[2026/27 Targeted savings]]","v":0},{"$f":"SUM(Dataset[[#This Row],[2027/28 Targeted savings]],Dataset[[#This Row],[2027/28 From - Total]],Dataset[[#This Row],[2027/28 To - Total]])","v":0},{"$f":"SUM(Dataset[[#This Row],[2028/29 Targeted savings]],Dataset[[#This Row],[2028/29 From - Total]],Dataset[[#This Row],[2028/29 To - Total]])","v":0},{"$f":"SUM(Dataset[[#This Row],[2029/30 Targeted savings]],Dataset[[#This Row],[2029/30 From - Total]],Dataset[[#This Row],[2029/30 To - Total]])","v":0},{"$f":"Dataset[[#This Row],[2026/27 Baseline]]+Dataset[[#This Row],[2026/27 Total change]]","v":6500},{"$f":"Dataset[[#This Row],[2027/28 Baseline]]+Dataset[[#This Row],[2027/28 Total change]]","v":6786},{"$f":"Dataset[[#This Row],[2028/29 Baseline]]+Dataset[[#This Row],[2028/29 Total change]]","v":6585},{"$f":"Dataset[[#This Row],[2029/30 Baseline]]+Dataset[[#This Row],[2029/30 Total change]]","v":6783}]
["NAT|Non-transfer item","30|Transport provided: Departmental activity","2027_28","MTEC2027",30,1,5,32748,228,"30","01","05","032748","000228","30|01|05|000228","01","01","02","36","36","01|01|02|36|36","National","Communications and Digital Technologies","Administration","Financial Management","Non-transfer item","Current","Current payments","Goods and services","Transport provided: Departmental activity","Transport provided: Departmental activity","Economic development","Economic regulation and infrastructure","NAT",0,0,0,0,0,0,0,0,0,0,0,null,null,null,null,null,null,null,null,null,null,null,null,null,null,null,null,null,null,null,null,null,null,null,null,null,null,null,null,null,null,null,null,null,null,{"$f":"Dataset[[#This Row],[2027/28 From - Spending review Topic 1]]+Dataset[[#This Row],[2027/28 From - Spending review Topic 2]]+Dataset[[#This Row],[2027/28 From - Spending review Topic 3]]+Dataset[[#This Row],[2027/28 From - Spending review Topic 4]]+Dataset[[#This Row],[2027/28 From - Other reallocations]]","v":0},{"$f":"Dataset[[#This Row],[2028/29 From - Spending review Topic 1]]+Dataset[[#This Row],[2028/29 From - Spending review Topic 2]]+Dataset[[#This Row],[2028/29 From - Spending review Topic 3]]+Dataset[[#This Row],[2028/29 From - Spending review Topic 4]]+Dataset[[#This Row],[2028/29 From - Other reallocations]]","v":0},{"$f":"Dataset[[#This Row],[2029/30 From - Spending review Topic 1]]+Dataset[[#This Row],[2029/30 From - Spending review Topic 2]]+Dataset[[#This Row],[2029/30 From - Spending review Topic 3]]+Dataset[[#This Row],[2029/30 From - Spending review Topic 4]]+Dataset[[#This Row],[2029/30 From - Other reallocations]]","v":0},{"$f":"Dataset[[#This Row],[2027/28 To - Spending review Topic 1]]+Dataset[[#This Row],[2027/28 To - Spending review Topic 2]]+Dataset[[#This Row],[2027/28 To - Spending review Topic 3]]+Dataset[[#This Row],[2027/28 To - Spending review Topic 4]]+Dataset[[#This Row],[2027/28 To - Other reallocations]]","v":0},{"$f":"Dataset[[#This Row],[2028/29 To - Spending review Topic 1]]+Dataset[[#This Row],[2028/29 To - Spending review Topic 2]]+Dataset[[#This Row],[2028/29 To - Spending review Topic 3]]+Dataset[[#This Row],[2028/29 To - Spending review Topic 4]]+Dataset[[#This Row],[2028/29 To - Other reallocations]]","v":0},{"$f":"Dataset[[#This Row],[2029/30 To - Spending review Topic 1]]+Dataset[[#This Row],[2029/30 To - Spending review Topic 2]]+Dataset[[#This Row],[2029/30 To - Spending review Topic 3]]+Dataset[[#This Row],[2029/30 To - Spending review Topic 4]]+Dataset[[#This Row],[2029/30 To - Other reallocations]]","v":0},{"$f":"Dataset[[#This Row],[2027/28 Targeted savings]]+Dataset[[#This Row],[2027/28 From - Total]]","v":0},{"$f":"Dataset[[#This Row],[2028/29 Targeted savings]]+Dataset[[#This Row],[2028/29 From - Total]]","v":0},{"$f":"Dataset[[#This Row],[2029/30 Targeted savings]]+Dataset[[#This Row],[2029/30 From - Total]]","v":0},{"$f":"Dataset[[#This Row],[2026/27 Targeted savings]]","v":0},{"$f":"SUM(Dataset[[#This Row],[2027/28 Targeted savings]],Dataset[[#This Row],[2027/28 From - Total]],Dataset[[#This Row],[2027/28 To - Total]])","v":0},{"$f":"SUM(Dataset[[#This Row],[2028/29 Targeted savings]],Dataset[[#This Row],[2028/29 From - Total]],Dataset[[#This Row],[2028/29 To - Total]])","v":0},{"$f":"SUM(Dataset[[#This Row],[2029/30 Targeted savings]],Dataset[[#This Row],[2029/30 From - Total]],Dataset[[#This Row],[2029/30 To - Total]])","v":0},{"$f":"Dataset[[#This Row],[2026/27 Baseline]]+Dataset[[#This Row],[2026/27 Total change]]","v":0},{"$f":"Dataset[[#This Row],[2027/28 Baseline]]+Dataset[[#This Row],[2027/28 Total change]]","v":0},{"$f":"Dataset[[#This Row],[2028/29 Baseline]]+Dataset[[#This Row],[2028/29 Total change]]","v":0},{"$f":"Dataset[[#This Row],[2029/30 Baseline]]+Dataset[[#This Row],[2029/30 Total change]]","v":0}]
["NAT|Non-transfer item","30|Travel and subsistence","2027_28","MTEC2027",30,1,5,32749,229,"30","01","05","032749","000229","30|01|05|000229","01","01","02","37","37","01|01|02|37|37","National","Communications and Digital Technologies","Administration","Financial Management","Non-transfer item","Current","Current payments","Goods and services","Travel and subsistence","Travel and subsistence","Economic development","Economic regulation and infrastructure","NAT",0,0,0,0,0,0,1731,0,0,0,0,null,null,null,null,null,null,null,null,null,null,null,null,null,null,null,null,null,null,null,null,null,null,null,null,null,null,null,null,null,null,null,null,null,null,{"$f":"Dataset[[#This Row],[2027/28 From - Spending review Topic 1]]+Dataset[[#This Row],[2027/28 From - Spending review Topic 2]]+Dataset[[#This Row],[2027/28 From - Spending review Topic 3]]+Dataset[[#This Row],[2027/28 From - Spending review Topic 4]]+Dataset[[#This Row],[2027/28 From - Other reallocations]]","v":0},{"$f":"Dataset[[#This Row],[2028/29 From - Spending review Topic 1]]+Dataset[[#This Row],[2028/29 From - Spending review Topic 2]]+Dataset[[#This Row],[2028/29 From - Spending review Topic 3]]+Dataset[[#This Row],[2028/29 From - Spending review Topic 4]]+Dataset[[#This Row],[2028/29 From - Other reallocations]]","v":0},{"$f":"Dataset[[#This Row],[2029/30 From - Spending review Topic 1]]+Dataset[[#This Row],[2029/30 From - Spending review Topic 2]]+Dataset[[#This Row],[2029/30 From - Spending review Topic 3]]+Dataset[[#This Row],[2029/30 From - Spending review Topic 4]]+Dataset[[#This Row],[2029/30 From - Other reallocations]]","v":0},{"$f":"Dataset[[#This Row],[2027/28 To - Spending review Topic 1]]+Dataset[[#This Row],[2027/28 To - Spending review Topic 2]]+Dataset[[#This Row],[2027/28 To - Spending review Topic 3]]+Dataset[[#This Row],[2027/28 To - Spending review Topic 4]]+Dataset[[#This Row],[2027/28 To - Other reallocations]]","v":0},{"$f":"Dataset[[#This Row],[2028/29 To - Spending review Topic 1]]+Dataset[[#This Row],[2028/29 To - Spending review Topic 2]]+Dataset[[#This Row],[2028/29 To - Spending review Topic 3]]+Dataset[[#This Row],[2028/29 To - Spending review Topic 4]]+Dataset[[#This Row],[2028/29 To - Other reallocations]]","v":0},{"$f":"Dataset[[#This Row],[2029/30 To - Spending review Topic 1]]+Dataset[[#This Row],[2029/30 To - Spending review Topic 2]]+Dataset[[#This Row],[2029/30 To - Spending review Topic 3]]+Dataset[[#This Row],[2029/30 To - Spending review Topic 4]]+Dataset[[#This Row],[2029/30 To - Other reallocations]]","v":0},{"$f":"Dataset[[#This Row],[2027/28 Targeted savings]]+Dataset[[#This Row],[2027/28 From - Total]]","v":0},{"$f":"Dataset[[#This Row],[2028/29 Targeted savings]]+Dataset[[#This Row],[2028/29 From - Total]]","v":0},{"$f":"Dataset[[#This Row],[2029/30 Targeted savings]]+Dataset[[#This Row],[2029/30 From - Total]]","v":0},{"$f":"Dataset[[#This Row],[2026/27 Targeted savings]]","v":0},{"$f":"SUM(Dataset[[#This Row],[2027/28 Targeted savings]],Dataset[[#This Row],[2027/28 From - Total]],Dataset[[#This Row],[2027/28 To - Total]])","v":0},{"$f":"SUM(Dataset[[#This Row],[2028/29 Targeted savings]],Dataset[[#This Row],[2028/29 From - Total]],Dataset[[#This Row],[2028/29 To - Total]])","v":0},{"$f":"SUM(Dataset[[#This Row],[2029/30 Targeted savings]],Dataset[[#This Row],[2029/30 From - Total]],Dataset[[#This Row],[2029/30 To - Total]])","v":0},{"$f":"Dataset[[#This Row],[2026/27 Baseline]]+Dataset[[#This Row],[2026/27 Total change]]","v":0},{"$f":"Dataset[[#This Row],[2027/28 Baseline]]+Dataset[[#This Row],[2027/28 Total change]]","v":0},{"$f":"Dataset[[#This Row],[2028/29 Baseline]]+Dataset[[#This Row],[2028/29 Total change]]","v":0},{"$f":"Dataset[[#This Row],[2029/30 Baseline]]+Dataset[[#This Row],[2029/30 Total change]]","v":0}]
["NAT|Non-transfer item","30|Training and development","2027_28","MTEC2027",30,1,5,32750,230,"30","01","05","032750","000230","30|01|05|000230","01","01","02","38","38","01|01|02|38|38","National","Communications and Digital Technologies","Administration","Financial Management","Non-transfer item","Current","Current payments","Goods and services","Training and development","Training and development","Economic development","Economic regulation and infrastructure","NAT",0,0,0,0,0,0,543,0,0,0,0,null,null,null,null,null,null,null,null,null,null,null,null,null,null,null,null,null,null,null,null,null,null,null,null,null,null,null,null,null,null,null,null,null,null,{"$f":"Dataset[[#This Row],[2027/28 From - Spending review Topic 1]]+Dataset[[#This Row],[2027/28 From - Spending review Topic 2]]+Dataset[[#This Row],[2027/28 From - Spending review Topic 3]]+Dataset[[#This Row],[2027/28 From - Spending review Topic 4]]+Dataset[[#This Row],[2027/28 From - Other reallocations]]","v":0},{"$f":"Dataset[[#This Row],[2028/29 From - Spending review Topic 1]]+Dataset[[#This Row],[2028/29 From - Spending review Topic 2]]+Dataset[[#This Row],[2028/29 From - Spending review Topic 3]]+Dataset[[#This Row],[2028/29 From - Spending review Topic 4]]+Dataset[[#This Row],[2028/29 From - Other reallocations]]","v":0},{"$f":"Dataset[[#This Row],[2029/30 From - Spending review Topic 1]]+Dataset[[#This Row],[2029/30 From - Spending review Topic 2]]+Dataset[[#This Row],[2029/30 From - Spending review Topic 3]]+Dataset[[#This Row],[2029/30 From - Spending review Topic 4]]+Dataset[[#This Row],[2029/30 From - Other reallocations]]","v":0},{"$f":"Dataset[[#This Row],[2027/28 To - Spending review Topic 1]]+Dataset[[#This Row],[2027/28 To - Spending review Topic 2]]+Dataset[[#This Row],[2027/28 To - Spending review Topic 3]]+Dataset[[#This Row],[2027/28 To - Spending review Topic 4]]+Dataset[[#This Row],[2027/28 To - Other reallocations]]","v":0},{"$f":"Dataset[[#This Row],[2028/29 To - Spending review Topic 1]]+Dataset[[#This Row],[2028/29 To - Spending review Topic 2]]+Dataset[[#This Row],[2028/29 To - Spending review Topic 3]]+Dataset[[#This Row],[2028/29 To - Spending review Topic 4]]+Dataset[[#This Row],[2028/29 To - Other reallocations]]","v":0},{"$f":"Dataset[[#This Row],[2029/30 To - Spending review Topic 1]]+Dataset[[#This Row],[2029/30 To - Spending review Topic 2]]+Dataset[[#This Row],[2029/30 To - Spending review Topic 3]]+Dataset[[#This Row],[2029/30 To - Spending review Topic 4]]+Dataset[[#This Row],[2029/30 To - Other reallocations]]","v":0},{"$f":"Dataset[[#This Row],[2027/28 Targeted savings]]+Dataset[[#This Row],[2027/28 From - Total]]","v":0},{"$f":"Dataset[[#This Row],[2028/29 Targeted savings]]+Dataset[[#This Row],[2028/29 From - Total]]","v":0},{"$f":"Dataset[[#This Row],[2029/30 Targeted savings]]+Dataset[[#This Row],[2029/30 From - Total]]","v":0},{"$f":"Dataset[[#This Row],[2026/27 Targeted savings]]","v":0},{"$f":"SUM(Dataset[[#This Row],[2027/28 Targeted savings]],Dataset[[#This Row],[2027/28 From - Total]],Dataset[[#This Row],[2027/28 To - Total]])","v":0},{"$f":"SUM(Dataset[[#This Row],[2028/29 Targeted savings]],Dataset[[#This Row],[2028/29 From - Total]],Dataset[[#This Row],[2028/29 To - Total]])","v":0},{"$f":"SUM(Dataset[[#This Row],[2029/30 Targeted savings]],Dataset[[#This Row],[2029/30 From - Total]],Dataset[[#This Row],[2029/30 To - Total]])","v":0},{"$f":"Dataset[[#This Row],[2026/27 Baseline]]+Dataset[[#This Row],[2026/27 Total change]]","v":0},{"$f":"Dataset[[#This Row],[2027/28 Baseline]]+Dataset[[#This Row],[2027/28 Total change]]","v":0},{"$f":"Dataset[[#This Row],[2028/29 Baseline]]+Dataset[[#This Row],[2028/29 Total change]]","v":0},{"$f":"Dataset[[#This Row],[2029/30 Baseline]]+Dataset[[#This Row],[2029/30 Total change]]","v":0}]
["NAT|Non-transfer item","30|Operating payments","2027_28","MTEC2027",30,1,5,32751,231,"30","01","05","032751","000231","30|01|05|000231","01","01","02","39","39","01|01|02|39|39","National","Communications and Digital Technologies","Administration","Financial Management","Non-transfer item","Current","Current payments","Goods and services","Operating payments","Operating payments","Economic development","Economic regulation and infrastructure","NAT",0,0,0,0,0,0,21,0,0,0,0,null,null,null,null,null,null,null,null,null,null,null,null,null,null,null,null,null,null,null,null,null,null,null,null,null,null,null,null,null,null,null,null,null,null,{"$f":"Dataset[[#This Row],[2027/28 From - Spending review Topic 1]]+Dataset[[#This Row],[2027/28 From - Spending review Topic 2]]+Dataset[[#This Row],[2027/28 From - Spending review Topic 3]]+Dataset[[#This Row],[2027/28 From - Spending review Topic 4]]+Dataset[[#This Row],[2027/28 From - Other reallocations]]","v":0},{"$f":"Dataset[[#This Row],[2028/29 From - Spending review Topic 1]]+Dataset[[#This Row],[2028/29 From - Spending review Topic 2]]+Dataset[[#This Row],[2028/29 From - Spending review Topic 3]]+Dataset[[#This Row],[2028/29 From - Spending review Topic 4]]+Dataset[[#This Row],[2028/29 From - Other reallocations]]","v":0},{"$f":"Dataset[[#This Row],[2029/30 From - Spending review Topic 1]]+Dataset[[#This Row],[2029/30 From - Spending review Topic 2]]+Dataset[[#This Row],[2029/30 From - Spending review Topic 3]]+Dataset[[#This Row],[2029/30 From - Spending review Topic 4]]+Dataset[[#This Row],[2029/30 From - Other reallocations]]","v":0},{"$f":"Dataset[[#This Row],[2027/28 To - Spending review Topic 1]]+Dataset[[#This Row],[2027/28 To - Spending review Topic 2]]+Dataset[[#This Row],[2027/28 To - Spending review Topic 3]]+Dataset[[#This Row],[2027/28 To - Spending review Topic 4]]+Dataset[[#This Row],[2027/28 To - Other reallocations]]","v":0},{"$f":"Dataset[[#This Row],[2028/29 To - Spending review Topic 1]]+Dataset[[#This Row],[2028/29 To - Spending review Topic 2]]+Dataset[[#This Row],[2028/29 To - Spending review Topic 3]]+Dataset[[#This Row],[2028/29 To - Spending review Topic 4]]+Dataset[[#This Row],[2028/29 To - Other reallocations]]","v":0},{"$f":"Dataset[[#This Row],[2029/30 To - Spending review Topic 1]]+Dataset[[#This Row],[2029/30 To - Spending review Topic 2]]+Dataset[[#This Row],[2029/30 To - Spending review Topic 3]]+Dataset[[#This Row],[2029/30 To - Spending review Topic 4]]+Dataset[[#This Row],[2029/30 To - Other reallocations]]","v":0},{"$f":"Dataset[[#This Row],[2027/28 Targeted savings]]+Dataset[[#This Row],[2027/28 From - Total]]","v":0},{"$f":"Dataset[[#This Row],[2028/29 Targeted savings]]+Dataset[[#This Row],[2028/29 From - Total]]","v":0},{"$f":"Dataset[[#This Row],[2029/30 Targeted savings]]+Dataset[[#This Row],[2029/30 From - Total]]","v":0},{"$f":"Dataset[[#This Row],[2026/27 Targeted savings]]","v":0},{"$f":"SUM(Dataset[[#This Row],[2027/28 Targeted savings]],Dataset[[#This Row],[2027/28 From - Total]],Dataset[[#This Row],[2027/28 To - Total]])","v":0},{"$f":"SUM(Dataset[[#This Row],[2028/29 Targeted savings]],Dataset[[#This Row],[2028/29 From - Total]],Dataset[[#This Row],[2028/29 To - Total]])","v":0},{"$f":"SUM(Dataset[[#This Row],[2029/30 Targeted savings]],Dataset[[#This Row],[2029/30 From - Total]],Dataset[[#This Row],[2029/30 To - Total]])","v":0},{"$f":"Dataset[[#This Row],[2026/27 Baseline]]+Dataset[[#This Row],[2026/27 Total change]]","v":0},{"$f":"Dataset[[#This Row],[2027/28 Baseline]]+Dataset[[#This Row],[2027/28 Total change]]","v":0},{"$f":"Dataset[[#This Row],[2028/29 Baseline]]+Dataset[[#This Row],[2028/29 Total change]]","v":0},{"$f":"Dataset[[#This Row],[2029/30 Baseline]]+Dataset[[#This Row],[2029/30 Total change]]","v":0}]
["NAT|Non-transfer item","30|Venues and facilities","2027_28","MTEC2027",30,1,5,32752,232,"30","01","05","032752","000232","30|01|05|000232","01","01","02","40","40","01|01|02|40|40","National","Communications and Digital Technologies","Administration","Financial Management","Non-transfer item","Current","Current payments","Goods and services","Venues and facilities","Venues and facilities","Economic development","Economic regulation and infrastructure","NAT",0,0,0,0,0,0,25,0,0,0,0,null,null,null,null,null,null,null,null,null,null,null,null,null,null,null,null,null,null,null,null,null,null,null,null,null,null,null,null,null,null,null,null,null,null,{"$f":"Dataset[[#This Row],[2027/28 From - Spending review Topic 1]]+Dataset[[#This Row],[2027/28 From - Spending review Topic 2]]+Dataset[[#This Row],[2027/28 From - Spending review Topic 3]]+Dataset[[#This Row],[2027/28 From - Spending review Topic 4]]+Dataset[[#This Row],[2027/28 From - Other reallocations]]","v":0},{"$f":"Dataset[[#This Row],[2028/29 From - Spending review Topic 1]]+Dataset[[#This Row],[2028/29 From - Spending review Topic 2]]+Dataset[[#This Row],[2028/29 From - Spending review Topic 3]]+Dataset[[#This Row],[2028/29 From - Spending review Topic 4]]+Dataset[[#This Row],[2028/29 From - Other reallocations]]","v":0},{"$f":"Dataset[[#This Row],[2029/30 From - Spending review Topic 1]]+Dataset[[#This Row],[2029/30 From - Spending review Topic 2]]+Dataset[[#This Row],[2029/30 From - Spending review Topic 3]]+Dataset[[#This Row],[2029/30 From - Spending review Topic 4]]+Dataset[[#This Row],[2029/30 From - Other reallocations]]","v":0},{"$f":"Dataset[[#This Row],[2027/28 To - Spending review Topic 1]]+Dataset[[#This Row],[2027/28 To - Spending review Topic 2]]+Dataset[[#This Row],[2027/28 To - Spending review Topic 3]]+Dataset[[#This Row],[2027/28 To - Spending review Topic 4]]+Dataset[[#This Row],[2027/28 To - Other reallocations]]","v":0},{"$f":"Dataset[[#This Row],[2028/29 To - Spending review Topic 1]]+Dataset[[#This Row],[2028/29 To - Spending review Topic 2]]+Dataset[[#This Row],[2028/29 To - Spending review Topic 3]]+Dataset[[#This Row],[2028/29 To - Spending review Topic 4]]+Dataset[[#This Row],[2028/29 To - Other reallocations]]","v":0},{"$f":"Dataset[[#This Row],[2029/30 To - Spending review Topic 1]]+Dataset[[#This Row],[2029/30 To - Spending review Topic 2]]+Dataset[[#This Row],[2029/30 To - Spending review Topic 3]]+Dataset[[#This Row],[2029/30 To - Spending review Topic 4]]+Dataset[[#This Row],[2029/30 To - Other reallocations]]","v":0},{"$f":"Dataset[[#This Row],[2027/28 Targeted savings]]+Dataset[[#This Row],[2027/28 From - Total]]","v":0},{"$f":"Dataset[[#This Row],[2028/29 Targeted savings]]+Dataset[[#This Row],[2028/29 From - Total]]","v":0},{"$f":"Dataset[[#This Row],[2029/30 Targeted savings]]+Dataset[[#This Row],[2029/30 From - Total]]","v":0},{"$f":"Dataset[[#This Row],[2026/27 Targeted savings]]","v":0},{"$f":"SUM(Dataset[[#This Row],[2027/28 Targeted savings]],Dataset[[#This Row],[2027/28 From - Total]],Dataset[[#This Row],[2027/28 To - Total]])","v":0},{"$f":"SUM(Dataset[[#This Row],[2028/29 Targeted savings]],Dataset[[#This Row],[2028/29 From - Total]],Dataset[[#This Row],[2028/29 To - Total]])","v":0},{"$f":"SUM(Dataset[[#This Row],[2029/30 Targeted savings]],Dataset[[#This Row],[2029/30 From - Total]],Dataset[[#This Row],[2029/30 To - Total]])","v":0},{"$f":"Dataset[[#This Row],[2026/27 Baseline]]+Dataset[[#This Row],[2026/27 Total change]]","v":0},{"$f":"Dataset[[#This Row],[2027/28 Baseline]]+Dataset[[#This Row],[2027/28 Total change]]","v":0},{"$f":"Dataset[[#This Row],[2028/29 Baseline]]+Dataset[[#This Row],[2028/29 Total change]]","v":0},{"$f":"Dataset[[#This Row],[2029/30 Baseline]]+Dataset[[#This Row],[2029/30 Total change]]","v":0}]
["NAT|Non-transfer item","30|Interest (Incl. interest on unitary payments (PPP))","2027_28","MTEC2027",30,1,5,32753,233,"30","01","05","032753","000233","30|01|05|000233","01","01","03","41","41","01|01|03|41|41","National","Communications and Digital Technologies","Administration","Financial Management","Non-transfer item","Current","Current payments","Interest and rent on land","Interest (Incl. interest on unitary payments (PPP))","Interest (Incl. interest on unitary payments (PPP))","Economic development","Economic regulation and infrastructure","NAT",0,0,0,0,0,0,0,0,0,0,0,null,null,null,null,null,null,null,null,null,null,null,null,null,null,null,null,null,null,null,null,null,null,null,null,null,null,null,null,null,null,null,null,null,null,{"$f":"Dataset[[#This Row],[2027/28 From - Spending review Topic 1]]+Dataset[[#This Row],[2027/28 From - Spending review Topic 2]]+Dataset[[#This Row],[2027/28 From - Spending review Topic 3]]+Dataset[[#This Row],[2027/28 From - Spending review Topic 4]]+Dataset[[#This Row],[2027/28 From - Other reallocations]]","v":0},{"$f":"Dataset[[#This Row],[2028/29 From - Spending review Topic 1]]+Dataset[[#This Row],[2028/29 From - Spending review Topic 2]]+Dataset[[#This Row],[2028/29 From - Spending review Topic 3]]+Dataset[[#This Row],[2028/29 From - Spending review Topic 4]]+Dataset[[#This Row],[2028/29 From - Other reallocations]]","v":0},{"$f":"Dataset[[#This Row],[2029/30 From - Spending review Topic 1]]+Dataset[[#This Row],[2029/30 From - Spending review Topic 2]]+Dataset[[#This Row],[2029/30 From - Spending review Topic 3]]+Dataset[[#This Row],[2029/30 From - Spending review Topic 4]]+Dataset[[#This Row],[2029/30 From - Other reallocations]]","v":0},{"$f":"Dataset[[#This Row],[2027/28 To - Spending review Topic 1]]+Dataset[[#This Row],[2027/28 To - Spending review Topic 2]]+Dataset[[#This Row],[2027/28 To - Spending review Topic 3]]+Dataset[[#This Row],[2027/28 To - Spending review Topic 4]]+Dataset[[#This Row],[2027/28 To - Other reallocations]]","v":0},{"$f":"Dataset[[#This Row],[2028/29 To - Spending review Topic 1]]+Dataset[[#This Row],[2028/29 To - Spending review Topic 2]]+Dataset[[#This Row],[2028/29 To - Spending review Topic 3]]+Dataset[[#This Row],[2028/29 To - Spending review Topic 4]]+Dataset[[#This Row],[2028/29 To - Other reallocations]]","v":0},{"$f":"Dataset[[#This Row],[2029/30 To - Spending review Topic 1]]+Dataset[[#This Row],[2029/30 To - Spending review Topic 2]]+Dataset[[#This Row],[2029/30 To - Spending review Topic 3]]+Dataset[[#This Row],[2029/30 To - Spending review Topic 4]]+Dataset[[#This Row],[2029/30 To - Other reallocations]]","v":0},{"$f":"Dataset[[#This Row],[2027/28 Targeted savings]]+Dataset[[#This Row],[2027/28 From - Total]]","v":0},{"$f":"Dataset[[#This Row],[2028/29 Targeted savings]]+Dataset[[#This Row],[2028/29 From - Total]]","v":0},{"$f":"Dataset[[#This Row],[2029/30 Targeted savings]]+Dataset[[#This Row],[2029/30 From - Total]]","v":0},{"$f":"Dataset[[#This Row],[2026/27 Targeted savings]]","v":0},{"$f":"SUM(Dataset[[#This Row],[2027/28 Targeted savings]],Dataset[[#This Row],[2027/28 From - Total]],Dataset[[#This Row],[2027/28 To - Total]])","v":0},{"$f":"SUM(Dataset[[#This Row],[2028/29 Targeted savings]],Dataset[[#This Row],[2028/29 From - Total]],Dataset[[#This Row],[2028/29 To - Total]])","v":0},{"$f":"SUM(Dataset[[#This Row],[2029/30 Targeted savings]],Dataset[[#This Row],[2029/30 From - Total]],Dataset[[#This Row],[2029/30 To - Total]])","v":0},{"$f":"Dataset[[#This Row],[2026/27 Baseline]]+Dataset[[#This Row],[2026/27 Total change]]","v":0},{"$f":"Dataset[[#This Row],[2027/28 Baseline]]+Dataset[[#This Row],[2027/28 Total change]]","v":0},{"$f":"Dataset[[#This Row],[2028/29 Baseline]]+Dataset[[#This Row],[2028/29 Total change]]","v":0},{"$f":"Dataset[[#This Row],[2029/30 Baseline]]+Dataset[[#This Row],[2029/30 Total change]]","v":0}]
["NAT|Non-transfer item","30|Rent on land","2027_28","MTEC2027",30,1,5,32754,234,"30","01","05","032754","000234","30|01|05|000234","01","01","03","42","42","01|01|03|42|42","National","Communications and Digital Technologies","Administration","Financial Management","Non-transfer item","Current","Current payments","Interest and rent on land","Rent on land","Rent on land","Economic development","Economic regulation and infrastructure","NAT",0,0,0,0,0,0,0,0,0,0,0,null,null,null,null,null,null,null,null,null,null,null,null,null,null,null,null,null,null,null,null,null,null,null,null,null,null,null,null,null,null,null,null,null,null,{"$f":"Dataset[[#This Row],[2027/28 From - Spending review Topic 1]]+Dataset[[#This Row],[2027/28 From - Spending review Topic 2]]+Dataset[[#This Row],[2027/28 From - Spending review Topic 3]]+Dataset[[#This Row],[2027/28 From - Spending review Topic 4]]+Dataset[[#This Row],[2027/28 From - Other reallocations]]","v":0},{"$f":"Dataset[[#This Row],[2028/29 From - Spending review Topic 1]]+Dataset[[#This Row],[2028/29 From - Spending review Topic 2]]+Dataset[[#This Row],[2028/29 From - Spending review Topic 3]]+Dataset[[#This Row],[2028/29 From - Spending review Topic 4]]+Dataset[[#This Row],[2028/29 From - Other reallocations]]","v":0},{"$f":"Dataset[[#This Row],[2029/30 From - Spending review Topic 1]]+Dataset[[#This Row],[2029/30 From - Spending review Topic 2]]+Dataset[[#This Row],[2029/30 From - Spending review Topic 3]]+Dataset[[#This Row],[2029/30 From - Spending review Topic 4]]+Dataset[[#This Row],[2029/30 From - Other reallocations]]","v":0},{"$f":"Dataset[[#This Row],[2027/28 To - Spending review Topic 1]]+Dataset[[#This Row],[2027/28 To - Spending review Topic 2]]+Dataset[[#This Row],[2027/28 To - Spending review Topic 3]]+Dataset[[#This Row],[2027/28 To - Spending review Topic 4]]+Dataset[[#This Row],[2027/28 To - Other reallocations]]","v":0},{"$f":"Dataset[[#This Row],[2028/29 To - Spending review Topic 1]]+Dataset[[#This Row],[2028/29 To - Spending review Topic 2]]+Dataset[[#This Row],[2028/29 To - Spending review Topic 3]]+Dataset[[#This Row],[2028/29 To - Spending review Topic 4]]+Dataset[[#This Row],[2028/29 To - Other reallocations]]","v":0},{"$f":"Dataset[[#This Row],[2029/30 To - Spending review Topic 1]]+Dataset[[#This Row],[2029/30 To - Spending review Topic 2]]+Dataset[[#This Row],[2029/30 To - Spending review Topic 3]]+Dataset[[#This Row],[2029/30 To - Spending review Topic 4]]+Dataset[[#This Row],[2029/30 To - Other reallocations]]","v":0},{"$f":"Dataset[[#This Row],[2027/28 Targeted savings]]+Dataset[[#This Row],[2027/28 From - Total]]","v":0},{"$f":"Dataset[[#This Row],[2028/29 Targeted savings]]+Dataset[[#This Row],[2028/29 From - Total]]","v":0},{"$f":"Dataset[[#This Row],[2029/30 Targeted savings]]+Dataset[[#This Row],[2029/30 From - Total]]","v":0},{"$f":"Dataset[[#This Row],[2026/27 Targeted savings]]","v":0},{"$f":"SUM(Dataset[[#This Row],[2027/28 Targeted savings]],Dataset[[#This Row],[2027/28 From - Total]],Dataset[[#This Row],[2027/28 To - Total]])","v":0},{"$f":"SUM(Dataset[[#This Row],[2028/29 Targeted savings]],Dataset[[#This Row],[2028/29 From - Total]],Dataset[[#This Row],[2028/29 To - Total]])","v":0},{"$f":"SUM(Dataset[[#This Row],[2029/30 Targeted savings]],Dataset[[#This Row],[2029/30 From - Total]],Dataset[[#This Row],[2029/30 To - Total]])","v":0},{"$f":"Dataset[[#This Row],[2026/27 Baseline]]+Dataset[[#This Row],[2026/27 Total change]]","v":0},{"$f":"Dataset[[#This Row],[2027/28 Baseline]]+Dataset[[#This Row],[2027/28 Total change]]","v":0},{"$f":"Dataset[[#This Row],[2028/29 Baseline]]+Dataset[[#This Row],[2028/29 Total change]]","v":0},{"$f":"Dataset[[#This Row],[2029/30 Baseline]]+Dataset[[#This Row],[2029/30 Total change]]","v":0}]
["NAT|Non-transfer item","30|Buildings","2027_28","MTEC2027",30,1,5,32755,235,"30","01","05","032755","000235","30|01|05|000235","02","03","11","54","58","02|03|11|54|58","National","Communications and Digital Technologies","Administration","Financial Management","Non-transfer item","Capital","Payments for capital assets","Buildings and other fixed structures","Buildings","Buildings","Economic development","Economic regulation and infrastructure","NAT",0,0,0,0,0,0,0,0,0,0,0,null,null,null,null,null,null,null,null,null,null,null,null,null,null,null,null,null,null,null,null,null,null,null,null,null,null,null,null,null,null,null,null,null,null,{"$f":"Dataset[[#This Row],[2027/28 From - Spending review Topic 1]]+Dataset[[#This Row],[2027/28 From - Spending review Topic 2]]+Dataset[[#This Row],[2027/28 From - Spending review Topic 3]]+Dataset[[#This Row],[2027/28 From - Spending review Topic 4]]+Dataset[[#This Row],[2027/28 From - Other reallocations]]","v":0},{"$f":"Dataset[[#This Row],[2028/29 From - Spending review Topic 1]]+Dataset[[#This Row],[2028/29 From - Spending review Topic 2]]+Dataset[[#This Row],[2028/29 From - Spending review Topic 3]]+Dataset[[#This Row],[2028/29 From - Spending review Topic 4]]+Dataset[[#This Row],[2028/29 From - Other reallocations]]","v":0},{"$f":"Dataset[[#This Row],[2029/30 From - Spending review Topic 1]]+Dataset[[#This Row],[2029/30 From - Spending review Topic 2]]+Dataset[[#This Row],[2029/30 From - Spending review Topic 3]]+Dataset[[#This Row],[2029/30 From - Spending review Topic 4]]+Dataset[[#This Row],[2029/30 From - Other reallocations]]","v":0},{"$f":"Dataset[[#This Row],[2027/28 To - Spending review Topic 1]]+Dataset[[#This Row],[2027/28 To - Spending review Topic 2]]+Dataset[[#This Row],[2027/28 To - Spending review Topic 3]]+Dataset[[#This Row],[2027/28 To - Spending review Topic 4]]+Dataset[[#This Row],[2027/28 To - Other reallocations]]","v":0},{"$f":"Dataset[[#This Row],[2028/29 To - Spending review Topic 1]]+Dataset[[#This Row],[2028/29 To - Spending review Topic 2]]+Dataset[[#This Row],[2028/29 To - Spending review Topic 3]]+Dataset[[#This Row],[2028/29 To - Spending review Topic 4]]+Dataset[[#This Row],[2028/29 To - Other reallocations]]","v":0},{"$f":"Dataset[[#This Row],[2029/30 To - Spending review Topic 1]]+Dataset[[#This Row],[2029/30 To - Spending review Topic 2]]+Dataset[[#This Row],[2029/30 To - Spending review Topic 3]]+Dataset[[#This Row],[2029/30 To - Spending review Topic 4]]+Dataset[[#This Row],[2029/30 To - Other reallocations]]","v":0},{"$f":"Dataset[[#This Row],[2027/28 Targeted savings]]+Dataset[[#This Row],[2027/28 From - Total]]","v":0},{"$f":"Dataset[[#This Row],[2028/29 Targeted savings]]+Dataset[[#This Row],[2028/29 From - Total]]","v":0},{"$f":"Dataset[[#This Row],[2029/30 Targeted savings]]+Dataset[[#This Row],[2029/30 From - Total]]","v":0},{"$f":"Dataset[[#This Row],[2026/27 Targeted savings]]","v":0},{"$f":"SUM(Dataset[[#This Row],[2027/28 Targeted savings]],Dataset[[#This Row],[2027/28 From - Total]],Dataset[[#This Row],[2027/28 To - Total]])","v":0},{"$f":"SUM(Dataset[[#This Row],[2028/29 Targeted savings]],Dataset[[#This Row],[2028/29 From - Total]],Dataset[[#This Row],[2028/29 To - Total]])","v":0},{"$f":"SUM(Dataset[[#This Row],[2029/30 Targeted savings]],Dataset[[#This Row],[2029/30 From - Total]],Dataset[[#This Row],[2029/30 To - Total]])","v":0},{"$f":"Dataset[[#This Row],[2026/27 Baseline]]+Dataset[[#This Row],[2026/27 Total change]]","v":0},{"$f":"Dataset[[#This Row],[2027/28 Baseline]]+Dataset[[#This Row],[2027/28 Total change]]","v":0},{"$f":"Dataset[[#This Row],[2028/29 Baseline]]+Dataset[[#This Row],[2028/29 Total change]]","v":0},{"$f":"Dataset[[#This Row],[2029/30 Baseline]]+Dataset[[#This Row],[2029/30 Total change]]","v":0}]
["NAT|Non-transfer item","30|Other fixed structures","2027_28","MTEC2027",30,1,5,32756,236,"30","01","05","032756","000236","30|01|05|000236","02","03","11","55","59","02|03|11|55|59","National","Communications and Digital Technologies","Administration","Financial Management","Non-transfer item","Capital","Payments for capital assets","Buildings and other fixed structures","Other fixed structures","Other fixed structures","Economic development","Economic regulation and infrastructure","NAT",0,0,0,0,0,0,0,0,0,0,0,null,null,null,null,null,null,null,null,null,null,null,null,null,null,null,null,null,null,null,null,null,null,null,null,null,null,null,null,null,null,null,null,null,null,{"$f":"Dataset[[#This Row],[2027/28 From - Spending review Topic 1]]+Dataset[[#This Row],[2027/28 From - Spending review Topic 2]]+Dataset[[#This Row],[2027/28 From - Spending review Topic 3]]+Dataset[[#This Row],[2027/28 From - Spending review Topic 4]]+Dataset[[#This Row],[2027/28 From - Other reallocations]]","v":0},{"$f":"Dataset[[#This Row],[2028/29 From - Spending review Topic 1]]+Dataset[[#This Row],[2028/29 From - Spending review Topic 2]]+Dataset[[#This Row],[2028/29 From - Spending review Topic 3]]+Dataset[[#This Row],[2028/29 From - Spending review Topic 4]]+Dataset[[#This Row],[2028/29 From - Other reallocations]]","v":0},{"$f":"Dataset[[#This Row],[2029/30 From - Spending review Topic 1]]+Dataset[[#This Row],[2029/30 From - Spending review Topic 2]]+Dataset[[#This Row],[2029/30 From - Spending review Topic 3]]+Dataset[[#This Row],[2029/30 From - Spending review Topic 4]]+Dataset[[#This Row],[2029/30 From - Other reallocations]]","v":0},{"$f":"Dataset[[#This Row],[2027/28 To - Spending review Topic 1]]+Dataset[[#This Row],[2027/28 To - Spending review Topic 2]]+Dataset[[#This Row],[2027/28 To - Spending review Topic 3]]+Dataset[[#This Row],[2027/28 To - Spending review Topic 4]]+Dataset[[#This Row],[2027/28 To - Other reallocations]]","v":0},{"$f":"Dataset[[#This Row],[2028/29 To - Spending review Topic 1]]+Dataset[[#This Row],[2028/29 To - Spending review Topic 2]]+Dataset[[#This Row],[2028/29 To - Spending review Topic 3]]+Dataset[[#This Row],[2028/29 To - Spending review Topic 4]]+Dataset[[#This Row],[2028/29 To - Other reallocations]]","v":0},{"$f":"Dataset[[#This Row],[2029/30 To - Spending review Topic 1]]+Dataset[[#This Row],[2029/30 To - Spending review Topic 2]]+Dataset[[#This Row],[2029/30 To - Spending review Topic 3]]+Dataset[[#This Row],[2029/30 To - Spending review Topic 4]]+Dataset[[#This Row],[2029/30 To - Other reallocations]]","v":0},{"$f":"Dataset[[#This Row],[2027/28 Targeted savings]]+Dataset[[#This Row],[2027/28 From - Total]]","v":0},{"$f":"Dataset[[#This Row],[2028/29 Targeted savings]]+Dataset[[#This Row],[2028/29 From - Total]]","v":0},{"$f":"Dataset[[#This Row],[2029/30 Targeted savings]]+Dataset[[#This Row],[2029/30 From - Total]]","v":0},{"$f":"Dataset[[#This Row],[2026/27 Targeted savings]]","v":0},{"$f":"SUM(Dataset[[#This Row],[2027/28 Targeted savings]],Dataset[[#This Row],[2027/28 From - Total]],Dataset[[#This Row],[2027/28 To - Total]])","v":0},{"$f":"SUM(Dataset[[#This Row],[2028/29 Targeted savings]],Dataset[[#This Row],[2028/29 From - Total]],Dataset[[#This Row],[2028/29 To - Total]])","v":0},{"$f":"SUM(Dataset[[#This Row],[2029/30 Targeted savings]],Dataset[[#This Row],[2029/30 From - Total]],Dataset[[#This Row],[2029/30 To - Total]])","v":0},{"$f":"Dataset[[#This Row],[2026/27 Baseline]]+Dataset[[#This Row],[2026/27 Total change]]","v":0},{"$f":"Dataset[[#This Row],[2027/28 Baseline]]+Dataset[[#This Row],[2027/28 Total change]]","v":0},{"$f":"Dataset[[#This Row],[2028/29 Baseline]]+Dataset[[#This Row],[2028/29 Total change]]","v":0},{"$f":"Dataset[[#This Row],[2029/30 Baseline]]+Dataset[[#This Row],[2029/30 Total change]]","v":0}]
["NAT|Non-transfer item","30|Transport equipment","2027_28","MTEC2027",30,1,5,32757,237,"30","01","05","032757","000237","30|01|05|000237","02","03","12","56","60","02|03|12|56|60","National","Communications and Digital Technologies","Administration","Financial Management","Non-transfer item","Capital","Payments for capital assets","Machinery and equipment","Transport equipment","Transport equipment","Economic development","Economic regulation and infrastructure","NAT",0,0,0,0,0,0,1497,0,0,0,0,null,null,null,null,null,null,null,null,null,null,null,null,null,null,null,null,null,null,null,null,null,null,null,null,null,null,null,null,null,null,null,null,null,null,{"$f":"Dataset[[#This Row],[2027/28 From - Spending review Topic 1]]+Dataset[[#This Row],[2027/28 From - Spending review Topic 2]]+Dataset[[#This Row],[2027/28 From - Spending review Topic 3]]+Dataset[[#This Row],[2027/28 From - Spending review Topic 4]]+Dataset[[#This Row],[2027/28 From - Other reallocations]]","v":0},{"$f":"Dataset[[#This Row],[2028/29 From - Spending review Topic 1]]+Dataset[[#This Row],[2028/29 From - Spending review Topic 2]]+Dataset[[#This Row],[2028/29 From - Spending review Topic 3]]+Dataset[[#This Row],[2028/29 From - Spending review Topic 4]]+Dataset[[#This Row],[2028/29 From - Other reallocations]]","v":0},{"$f":"Dataset[[#This Row],[2029/30 From - Spending review Topic 1]]+Dataset[[#This Row],[2029/30 From - Spending review Topic 2]]+Dataset[[#This Row],[2029/30 From - Spending review Topic 3]]+Dataset[[#This Row],[2029/30 From - Spending review Topic 4]]+Dataset[[#This Row],[2029/30 From - Other reallocations]]","v":0},{"$f":"Dataset[[#This Row],[2027/28 To - Spending review Topic 1]]+Dataset[[#This Row],[2027/28 To - Spending review Topic 2]]+Dataset[[#This Row],[2027/28 To - Spending review Topic 3]]+Dataset[[#This Row],[2027/28 To - Spending review Topic 4]]+Dataset[[#This Row],[2027/28 To - Other reallocations]]","v":0},{"$f":"Dataset[[#This Row],[2028/29 To - Spending review Topic 1]]+Dataset[[#This Row],[2028/29 To - Spending review Topic 2]]+Dataset[[#This Row],[2028/29 To - Spending review Topic 3]]+Dataset[[#This Row],[2028/29 To - Spending review Topic 4]]+Dataset[[#This Row],[2028/29 To - Other reallocations]]","v":0},{"$f":"Dataset[[#This Row],[2029/30 To - Spending review Topic 1]]+Dataset[[#This Row],[2029/30 To - Spending review Topic 2]]+Dataset[[#This Row],[2029/30 To - Spending review Topic 3]]+Dataset[[#This Row],[2029/30 To - Spending review Topic 4]]+Dataset[[#This Row],[2029/30 To - Other reallocations]]","v":0},{"$f":"Dataset[[#This Row],[2027/28 Targeted savings]]+Dataset[[#This Row],[2027/28 From - Total]]","v":0},{"$f":"Dataset[[#This Row],[2028/29 Targeted savings]]+Dataset[[#This Row],[2028/29 From - Total]]","v":0},{"$f":"Dataset[[#This Row],[2029/30 Targeted savings]]+Dataset[[#This Row],[2029/30 From - Total]]","v":0},{"$f":"Dataset[[#This Row],[2026/27 Targeted savings]]","v":0},{"$f":"SUM(Dataset[[#This Row],[2027/28 Targeted savings]],Dataset[[#This Row],[2027/28 From - Total]],Dataset[[#This Row],[2027/28 To - Total]])","v":0},{"$f":"SUM(Dataset[[#This Row],[2028/29 Targeted savings]],Dataset[[#This Row],[2028/29 From - Total]],Dataset[[#This Row],[2028/29 To - Total]])","v":0},{"$f":"SUM(Dataset[[#This Row],[2029/30 Targeted savings]],Dataset[[#This Row],[2029/30 From - Total]],Dataset[[#This Row],[2029/30 To - Total]])","v":0},{"$f":"Dataset[[#This Row],[2026/27 Baseline]]+Dataset[[#This Row],[2026/27 Total change]]","v":0},{"$f":"Dataset[[#This Row],[2027/28 Baseline]]+Dataset[[#This Row],[2027/28 Total change]]","v":0},{"$f":"Dataset[[#This Row],[2028/29 Baseline]]+Dataset[[#This Row],[2028/29 Total change]]","v":0},{"$f":"Dataset[[#This Row],[2029/30 Baseline]]+Dataset[[#This Row],[2029/30 Total change]]","v":0}]
["NAT|Non-transfer item","30|Other machinery and equipment","2027_28","MTEC2027",30,1,5,32758,238,"30","01","05","032758","000238","30|01|05|000238","02","03","12","57","61","02|03|12|57|61","National","Communications and Digital Technologies","Administration","Financial Management","Non-transfer item","Capital","Payments for capital assets","Machinery and equipment","Other machinery and equipment","Other machinery and equipment","Economic development","Economic regulation and infrastructure","NAT",0,0,0,0,0,0,7680,0,0,0,0,null,null,null,null,null,null,null,null,null,null,null,null,null,null,null,null,null,null,null,null,null,null,null,null,null,null,null,null,null,null,null,null,null,null,{"$f":"Dataset[[#This Row],[2027/28 From - Spending review Topic 1]]+Dataset[[#This Row],[2027/28 From - Spending review Topic 2]]+Dataset[[#This Row],[2027/28 From - Spending review Topic 3]]+Dataset[[#This Row],[2027/28 From - Spending review Topic 4]]+Dataset[[#This Row],[2027/28 From - Other reallocations]]","v":0},{"$f":"Dataset[[#This Row],[2028/29 From - Spending review Topic 1]]+Dataset[[#This Row],[2028/29 From - Spending review Topic 2]]+Dataset[[#This Row],[2028/29 From - Spending review Topic 3]]+Dataset[[#This Row],[2028/29 From - Spending review Topic 4]]+Dataset[[#This Row],[2028/29 From - Other reallocations]]","v":0},{"$f":"Dataset[[#This Row],[2029/30 From - Spending review Topic 1]]+Dataset[[#This Row],[2029/30 From - Spending review Topic 2]]+Dataset[[#This Row],[2029/30 From - Spending review Topic 3]]+Dataset[[#This Row],[2029/30 From - Spending review Topic 4]]+Dataset[[#This Row],[2029/30 From - Other reallocations]]","v":0},{"$f":"Dataset[[#This Row],[2027/28 To - Spending review Topic 1]]+Dataset[[#This Row],[2027/28 To - Spending review Topic 2]]+Dataset[[#This Row],[2027/28 To - Spending review Topic 3]]+Dataset[[#This Row],[2027/28 To - Spending review Topic 4]]+Dataset[[#This Row],[2027/28 To - Other reallocations]]","v":0},{"$f":"Dataset[[#This Row],[2028/29 To - Spending review Topic 1]]+Dataset[[#This Row],[2028/29 To - Spending review Topic 2]]+Dataset[[#This Row],[2028/29 To - Spending review Topic 3]]+Dataset[[#This Row],[2028/29 To - Spending review Topic 4]]+Dataset[[#This Row],[2028/29 To - Other reallocations]]","v":0},{"$f":"Dataset[[#This Row],[2029/30 To - Spending review Topic 1]]+Dataset[[#This Row],[2029/30 To - Spending review Topic 2]]+Dataset[[#This Row],[2029/30 To - Spending review Topic 3]]+Dataset[[#This Row],[2029/30 To - Spending review Topic 4]]+Dataset[[#This Row],[2029/30 To - Other reallocations]]","v":0},{"$f":"Dataset[[#This Row],[2027/28 Targeted savings]]+Dataset[[#This Row],[2027/28 From - Total]]","v":0},{"$f":"Dataset[[#This Row],[2028/29 Targeted savings]]+Dataset[[#This Row],[2028/29 From - Total]]","v":0},{"$f":"Dataset[[#This Row],[2029/30 Targeted savings]]+Dataset[[#This Row],[2029/30 From - Total]]","v":0},{"$f":"Dataset[[#This Row],[2026/27 Targeted savings]]","v":0},{"$f":"SUM(Dataset[[#This Row],[2027/28 Targeted savings]],Dataset[[#This Row],[2027/28 From - Total]],Dataset[[#This Row],[2027/28 To - Total]])","v":0},{"$f":"SUM(Dataset[[#This Row],[2028/29 Targeted savings]],Dataset[[#This Row],[2028/29 From - Total]],Dataset[[#This Row],[2028/29 To - Total]])","v":0},{"$f":"SUM(Dataset[[#This Row],[2029/30 Targeted savings]],Dataset[[#This Row],[2029/30 From - Total]],Dataset[[#This Row],[2029/30 To - Total]])","v":0},{"$f":"Dataset[[#This Row],[2026/27 Baseline]]+Dataset[[#This Row],[2026/27 Total change]]","v":0},{"$f":"Dataset[[#This Row],[2027/28 Baseline]]+Dataset[[#This Row],[2027/28 Total change]]","v":0},{"$f":"Dataset[[#This Row],[2028/29 Baseline]]+Dataset[[#This Row],[2028/29 Total change]]","v":0},{"$f":"Dataset[[#This Row],[2029/30 Baseline]]+Dataset[[#This Row],[2029/30 Total change]]","v":0}]
["NAT|Non-transfer item","30|Heritage assets","2027_28","MTEC2027",30,1,5,32759,239,"30","01","05","032759","000239","30|01|05|000239","02","03","13","58","62","02|03|13|58|62","National","Communications and Digital Technologies","Administration","Financial Management","Non-transfer item","Capital","Payments for capital assets","Heritage assets","Heritage assets","Heritage assets","Economic development","Economic regulation and infrastructure","NAT",0,0,0,0,0,0,0,0,0,0,0,null,null,null,null,null,null,null,null,null,null,null,null,null,null,null,null,null,null,null,null,null,null,null,null,null,null,null,null,null,null,null,null,null,null,{"$f":"Dataset[[#This Row],[2027/28 From - Spending review Topic 1]]+Dataset[[#This Row],[2027/28 From - Spending review Topic 2]]+Dataset[[#This Row],[2027/28 From - Spending review Topic 3]]+Dataset[[#This Row],[2027/28 From - Spending review Topic 4]]+Dataset[[#This Row],[2027/28 From - Other reallocations]]","v":0},{"$f":"Dataset[[#This Row],[2028/29 From - Spending review Topic 1]]+Dataset[[#This Row],[2028/29 From - Spending review Topic 2]]+Dataset[[#This Row],[2028/29 From - Spending review Topic 3]]+Dataset[[#This Row],[2028/29 From - Spending review Topic 4]]+Dataset[[#This Row],[2028/29 From - Other reallocations]]","v":0},{"$f":"Dataset[[#This Row],[2029/30 From - Spending review Topic 1]]+Dataset[[#This Row],[2029/30 From - Spending review Topic 2]]+Dataset[[#This Row],[2029/30 From - Spending review Topic 3]]+Dataset[[#This Row],[2029/30 From - Spending review Topic 4]]+Dataset[[#This Row],[2029/30 From - Other reallocations]]","v":0},{"$f":"Dataset[[#This Row],[2027/28 To - Spending review Topic 1]]+Dataset[[#This Row],[2027/28 To - Spending review Topic 2]]+Dataset[[#This Row],[2027/28 To - Spending review Topic 3]]+Dataset[[#This Row],[2027/28 To - Spending review Topic 4]]+Dataset[[#This Row],[2027/28 To - Other reallocations]]","v":0},{"$f":"Dataset[[#This Row],[2028/29 To - Spending review Topic 1]]+Dataset[[#This Row],[2028/29 To - Spending review Topic 2]]+Dataset[[#This Row],[2028/29 To - Spending review Topic 3]]+Dataset[[#This Row],[2028/29 To - Spending review Topic 4]]+Dataset[[#This Row],[2028/29 To - Other reallocations]]","v":0},{"$f":"Dataset[[#This Row],[2029/30 To - Spending review Topic 1]]+Dataset[[#This Row],[2029/30 To - Spending review Topic 2]]+Dataset[[#This Row],[2029/30 To - Spending review Topic 3]]+Dataset[[#This Row],[2029/30 To - Spending review Topic 4]]+Dataset[[#This Row],[2029/30 To - Other reallocations]]","v":0},{"$f":"Dataset[[#This Row],[2027/28 Targeted savings]]+Dataset[[#This Row],[2027/28 From - Total]]","v":0},{"$f":"Dataset[[#This Row],[2028/29 Targeted savings]]+Dataset[[#This Row],[2028/29 From - Total]]","v":0},{"$f":"Dataset[[#This Row],[2029/30 Targeted savings]]+Dataset[[#This Row],[2029/30 From - Total]]","v":0},{"$f":"Dataset[[#This Row],[2026/27 Targeted savings]]","v":0},{"$f":"SUM(Dataset[[#This Row],[2027/28 Targeted savings]],Dataset[[#This Row],[2027/28 From - Total]],Dataset[[#This Row],[2027/28 To - Total]])","v":0},{"$f":"SUM(Dataset[[#This Row],[2028/29 Targeted savings]],Dataset[[#This Row],[2028/29 From - Total]],Dataset[[#This Row],[2028/29 To - Total]])","v":0},{"$f":"SUM(Dataset[[#This Row],[2029/30 Targeted savings]],Dataset[[#This Row],[2029/30 From - Total]],Dataset[[#This Row],[2029/30 To - Total]])","v":0},{"$f":"Dataset[[#This Row],[2026/27 Baseline]]+Dataset[[#This Row],[2026/27 Total change]]","v":0},{"$f":"Dataset[[#This Row],[2027/28 Baseline]]+Dataset[[#This Row],[2027/28 Total change]]","v":0},{"$f":"Dataset[[#This Row],[2028/29 Baseline]]+Dataset[[#This Row],[2028/29 Total change]]","v":0},{"$f":"Dataset[[#This Row],[2029/30 Baseline]]+Dataset[[#This Row],[2029/30 Total change]]","v":0}]
["NAT|Non-transfer item","30|Specialised military assets","2027_28","MTEC2027",30,1,5,32760,240,"30","01","05","032760","000240","30|01|05|000240","02","03","14","59","63","02|03|14|59|63","National","Communications and Digital Technologies","Administration","Financial Management","Non-transfer item","Capital","Payments for capital assets","Specialised military assets","Specialised military assets","Specialised military assets","Economic development","Economic regulation and infrastructure","NAT",0,0,0,0,0,0,0,0,0,0,0,null,null,null,null,null,null,null,null,null,null,null,null,null,null,null,null,null,null,null,null,null,null,null,null,null,null,null,null,null,null,null,null,null,null,{"$f":"Dataset[[#This Row],[2027/28 From - Spending review Topic 1]]+Dataset[[#This Row],[2027/28 From - Spending review Topic 2]]+Dataset[[#This Row],[2027/28 From - Spending review Topic 3]]+Dataset[[#This Row],[2027/28 From - Spending review Topic 4]]+Dataset[[#This Row],[2027/28 From - Other reallocations]]","v":0},{"$f":"Dataset[[#This Row],[2028/29 From - Spending review Topic 1]]+Dataset[[#This Row],[2028/29 From - Spending review Topic 2]]+Dataset[[#This Row],[2028/29 From - Spending review Topic 3]]+Dataset[[#This Row],[2028/29 From - Spending review Topic 4]]+Dataset[[#This Row],[2028/29 From - Other reallocations]]","v":0},{"$f":"Dataset[[#This Row],[2029/30 From - Spending review Topic 1]]+Dataset[[#This Row],[2029/30 From - Spending review Topic 2]]+Dataset[[#This Row],[2029/30 From - Spending review Topic 3]]+Dataset[[#This Row],[2029/30 From - Spending review Topic 4]]+Dataset[[#This Row],[2029/30 From - Other reallocations]]","v":0},{"$f":"Dataset[[#This Row],[2027/28 To - Spending review Topic 1]]+Dataset[[#This Row],[2027/28 To - Spending review Topic 2]]+Dataset[[#This Row],[2027/28 To - Spending review Topic 3]]+Dataset[[#This Row],[2027/28 To - Spending review Topic 4]]+Dataset[[#This Row],[2027/28 To - Other reallocations]]","v":0},{"$f":"Dataset[[#This Row],[2028/29 To - Spending review Topic 1]]+Dataset[[#This Row],[2028/29 To - Spending review Topic 2]]+Dataset[[#This Row],[2028/29 To - Spending review Topic 3]]+Dataset[[#This Row],[2028/29 To - Spending review Topic 4]]+Dataset[[#This Row],[2028/29 To - Other reallocations]]","v":0},{"$f":"Dataset[[#This Row],[2029/30 To - Spending review Topic 1]]+Dataset[[#This Row],[2029/30 To - Spending review Topic 2]]+Dataset[[#This Row],[2029/30 To - Spending review Topic 3]]+Dataset[[#This Row],[2029/30 To - Spending review Topic 4]]+Dataset[[#This Row],[2029/30 To - Other reallocations]]","v":0},{"$f":"Dataset[[#This Row],[2027/28 Targeted savings]]+Dataset[[#This Row],[2027/28 From - Total]]","v":0},{"$f":"Dataset[[#This Row],[2028/29 Targeted savings]]+Dataset[[#This Row],[2028/29 From - Total]]","v":0},{"$f":"Dataset[[#This Row],[2029/30 Targeted savings]]+Dataset[[#This Row],[2029/30 From - Total]]","v":0},{"$f":"Dataset[[#This Row],[2026/27 Targeted savings]]","v":0},{"$f":"SUM(Dataset[[#This Row],[2027/28 Targeted savings]],Dataset[[#This Row],[2027/28 From - Total]],Dataset[[#This Row],[2027/28 To - Total]])","v":0},{"$f":"SUM(Dataset[[#This Row],[2028/29 Targeted savings]],Dataset[[#This Row],[2028/29 From - Total]],Dataset[[#This Row],[2028/29 To - Total]])","v":0},{"$f":"SUM(Dataset[[#This Row],[2029/30 Targeted savings]],Dataset[[#This Row],[2029/30 From - Total]],Dataset[[#This Row],[2029/30 To - Total]])","v":0},{"$f":"Dataset[[#This Row],[2026/27 Baseline]]+Dataset[[#This Row],[2026/27 Total change]]","v":0},{"$f":"Dataset[[#This Row],[2027/28 Baseline]]+Dataset[[#This Row],[2027/28 Total change]]","v":0},{"$f":"Dataset[[#This Row],[2028/29 Baseline]]+Dataset[[#This Row],[2028/29 Total change]]","v":0},{"$f":"Dataset[[#This Row],[2029/30 Baseline]]+Dataset[[#This Row],[2029/30 Total change]]","v":0}]
["NAT|Non-transfer item","30|Biological assets","2027_28","MTEC2027",30,1,5,32761,241,"30","01","05","032761","000241","30|01|05|000241","02","03","15","60","64","02|03|15|60|64","National","Communications and Digital Technologies","Administration","Financial Management","Non-transfer item","Capital","Payments for capital assets","Biological assets","Biological assets","Biological assets","Economic development","Economic regulation and infrastructure","NAT",0,0,0,0,0,0,0,0,0,0,0,null,null,null,null,null,null,null,null,null,null,null,null,null,null,null,null,null,null,null,null,null,null,null,null,null,null,null,null,null,null,null,null,null,null,{"$f":"Dataset[[#This Row],[2027/28 From - Spending review Topic 1]]+Dataset[[#This Row],[2027/28 From - Spending review Topic 2]]+Dataset[[#This Row],[2027/28 From - Spending review Topic 3]]+Dataset[[#This Row],[2027/28 From - Spending review Topic 4]]+Dataset[[#This Row],[2027/28 From - Other reallocations]]","v":0},{"$f":"Dataset[[#This Row],[2028/29 From - Spending review Topic 1]]+Dataset[[#This Row],[2028/29 From - Spending review Topic 2]]+Dataset[[#This Row],[2028/29 From - Spending review Topic 3]]+Dataset[[#This Row],[2028/29 From - Spending review Topic 4]]+Dataset[[#This Row],[2028/29 From - Other reallocations]]","v":0},{"$f":"Dataset[[#This Row],[2029/30 From - Spending review Topic 1]]+Dataset[[#This Row],[2029/30 From - Spending review Topic 2]]+Dataset[[#This Row],[2029/30 From - Spending review Topic 3]]+Dataset[[#This Row],[2029/30 From - Spending review Topic 4]]+Dataset[[#This Row],[2029/30 From - Other reallocations]]","v":0},{"$f":"Dataset[[#This Row],[2027/28 To - Spending review Topic 1]]+Dataset[[#This Row],[2027/28 To - Spending review Topic 2]]+Dataset[[#This Row],[2027/28 To - Spending review Topic 3]]+Dataset[[#This Row],[2027/28 To - Spending review Topic 4]]+Dataset[[#This Row],[2027/28 To - Other reallocations]]","v":0},{"$f":"Dataset[[#This Row],[2028/29 To - Spending review Topic 1]]+Dataset[[#This Row],[2028/29 To - Spending review Topic 2]]+Dataset[[#This Row],[2028/29 To - Spending review Topic 3]]+Dataset[[#This Row],[2028/29 To - Spending review Topic 4]]+Dataset[[#This Row],[2028/29 To - Other reallocations]]","v":0},{"$f":"Dataset[[#This Row],[2029/30 To - Spending review Topic 1]]+Dataset[[#This Row],[2029/30 To - Spending review Topic 2]]+Dataset[[#This Row],[2029/30 To - Spending review Topic 3]]+Dataset[[#This Row],[2029/30 To - Spending review Topic 4]]+Dataset[[#This Row],[2029/30 To - Other reallocations]]","v":0},{"$f":"Dataset[[#This Row],[2027/28 Targeted savings]]+Dataset[[#This Row],[2027/28 From - Total]]","v":0},{"$f":"Dataset[[#This Row],[2028/29 Targeted savings]]+Dataset[[#This Row],[2028/29 From - Total]]","v":0},{"$f":"Dataset[[#This Row],[2029/30 Targeted savings]]+Dataset[[#This Row],[2029/30 From - Total]]","v":0},{"$f":"Dataset[[#This Row],[2026/27 Targeted savings]]","v":0},{"$f":"SUM(Dataset[[#This Row],[2027/28 Targeted savings]],Dataset[[#This Row],[2027/28 From - Total]],Dataset[[#This Row],[2027/28 To - Total]])","v":0},{"$f":"SUM(Dataset[[#This Row],[2028/29 Targeted savings]],Dataset[[#This Row],[2028/29 From - Total]],Dataset[[#This Row],[2028/29 To - Total]])","v":0},{"$f":"SUM(Dataset[[#This Row],[2029/30 Targeted savings]],Dataset[[#This Row],[2029/30 From - Total]],Dataset[[#This Row],[2029/30 To - Total]])","v":0},{"$f":"Dataset[[#This Row],[2026/27 Baseline]]+Dataset[[#This Row],[2026/27 Total change]]","v":0},{"$f":"Dataset[[#This Row],[2027/28 Baseline]]+Dataset[[#This Row],[2027/28 Total change]]","v":0},{"$f":"Dataset[[#This Row],[2028/29 Baseline]]+Dataset[[#This Row],[2028/29 Total change]]","v":0},{"$f":"Dataset[[#This Row],[2029/30 Baseline]]+Dataset[[#This Row],[2029/30 Total change]]","v":0}]
["NAT|Non-transfer item","30|Land and sub-soil assets","2027_28","MTEC2027",30,1,5,32762,242,"30","01","05","032762","000242","30|01|05|000242","02","03","16","61","65","02|03|16|61|65","National","Communications and Digital Technologies","Administration","Financial Management","Non-transfer item","Capital","Payments for capital assets","Land and sub-soil assets","Land and sub-soil assets","Land and sub-soil assets","Economic development","Economic regulation and infrastructure","NAT",0,0,0,0,0,0,0,0,0,0,0,null,null,null,null,null,null,null,null,null,null,null,null,null,null,null,null,null,null,null,null,null,null,null,null,null,null,null,null,null,null,null,null,null,null,{"$f":"Dataset[[#This Row],[2027/28 From - Spending review Topic 1]]+Dataset[[#This Row],[2027/28 From - Spending review Topic 2]]+Dataset[[#This Row],[2027/28 From - Spending review Topic 3]]+Dataset[[#This Row],[2027/28 From - Spending review Topic 4]]+Dataset[[#This Row],[2027/28 From - Other reallocations]]","v":0},{"$f":"Dataset[[#This Row],[2028/29 From - Spending review Topic 1]]+Dataset[[#This Row],[2028/29 From - Spending review Topic 2]]+Dataset[[#This Row],[2028/29 From - Spending review Topic 3]]+Dataset[[#This Row],[2028/29 From - Spending review Topic 4]]+Dataset[[#This Row],[2028/29 From - Other reallocations]]","v":0},{"$f":"Dataset[[#This Row],[2029/30 From - Spending review Topic 1]]+Dataset[[#This Row],[2029/30 From - Spending review Topic 2]]+Dataset[[#This Row],[2029/30 From - Spending review Topic 3]]+Dataset[[#This Row],[2029/30 From - Spending review Topic 4]]+Dataset[[#This Row],[2029/30 From - Other reallocations]]","v":0},{"$f":"Dataset[[#This Row],[2027/28 To - Spending review Topic 1]]+Dataset[[#This Row],[2027/28 To - Spending review Topic 2]]+Dataset[[#This Row],[2027/28 To - Spending review Topic 3]]+Dataset[[#This Row],[2027/28 To - Spending review Topic 4]]+Dataset[[#This Row],[2027/28 To - Other reallocations]]","v":0},{"$f":"Dataset[[#This Row],[2028/29 To - Spending review Topic 1]]+Dataset[[#This Row],[2028/29 To - Spending review Topic 2]]+Dataset[[#This Row],[2028/29 To - Spending review Topic 3]]+Dataset[[#This Row],[2028/29 To - Spending review Topic 4]]+Dataset[[#This Row],[2028/29 To - Other reallocations]]","v":0},{"$f":"Dataset[[#This Row],[2029/30 To - Spending review Topic 1]]+Dataset[[#This Row],[2029/30 To - Spending review Topic 2]]+Dataset[[#This Row],[2029/30 To - Spending review Topic 3]]+Dataset[[#This Row],[2029/30 To - Spending review Topic 4]]+Dataset[[#This Row],[2029/30 To - Other reallocations]]","v":0},{"$f":"Dataset[[#This Row],[2027/28 Targeted savings]]+Dataset[[#This Row],[2027/28 From - Total]]","v":0},{"$f":"Dataset[[#This Row],[2028/29 Targeted savings]]+Dataset[[#This Row],[2028/29 From - Total]]","v":0},{"$f":"Dataset[[#This Row],[2029/30 Targeted savings]]+Dataset[[#This Row],[2029/30 From - Total]]","v":0},{"$f":"Dataset[[#This Row],[2026/27 Targeted savings]]","v":0},{"$f":"SUM(Dataset[[#This Row],[2027/28 Targeted savings]],Dataset[[#This Row],[2027/28 From - Total]],Dataset[[#This Row],[2027/28 To - Total]])","v":0},{"$f":"SUM(Dataset[[#This Row],[2028/29 Targeted savings]],Dataset[[#This Row],[2028/29 From - Total]],Dataset[[#This Row],[2028/29 To - Total]])","v":0},{"$f":"SUM(Dataset[[#This Row],[2029/30 Targeted savings]],Dataset[[#This Row],[2029/30 From - Total]],Dataset[[#This Row],[2029/30 To - Total]])","v":0},{"$f":"Dataset[[#This Row],[2026/27 Baseline]]+Dataset[[#This Row],[2026/27 Total change]]","v":0},{"$f":"Dataset[[#This Row],[2027/28 Baseline]]+Dataset[[#This Row],[2027/28 Total change]]","v":0},{"$f":"Dataset[[#This Row],[2028/29 Baseline]]+Dataset[[#This Row],[2028/29 Total change]]","v":0},{"$f":"Dataset[[#This Row],[2029/30 Baseline]]+Dataset[[#This Row],[2029/30 Total change]]","v":0}]
["NAT|Non-transfer item","30|Software and other intangible assets","2027_28","MTEC2027",30,1,5,32763,243,"30","01","05","032763","000243","30|01|05|000243","02","03","17","62","66","02|03|17|62|66","National","Communications and Digital Technologies","Administration","Financial Management","Non-transfer item","Capital","Payments for capital assets","Software and other intangible assets","Software and other intangible assets","Software and other intangible assets","Economic development","Economic regulation and infrastructure","NAT",0,0,0,0,0,0,0,0,0,0,0,null,null,null,null,null,null,null,null,null,null,null,null,null,null,null,null,null,null,null,null,null,null,null,null,null,null,null,null,null,null,null,null,null,null,{"$f":"Dataset[[#This Row],[2027/28 From - Spending review Topic 1]]+Dataset[[#This Row],[2027/28 From - Spending review Topic 2]]+Dataset[[#This Row],[2027/28 From - Spending review Topic 3]]+Dataset[[#This Row],[2027/28 From - Spending review Topic 4]]+Dataset[[#This Row],[2027/28 From - Other reallocations]]","v":0},{"$f":"Dataset[[#This Row],[2028/29 From - Spending review Topic 1]]+Dataset[[#This Row],[2028/29 From - Spending review Topic 2]]+Dataset[[#This Row],[2028/29 From - Spending review Topic 3]]+Dataset[[#This Row],[2028/29 From - Spending review Topic 4]]+Dataset[[#This Row],[2028/29 From - Other reallocations]]","v":0},{"$f":"Dataset[[#This Row],[2029/30 From - Spending review Topic 1]]+Dataset[[#This Row],[2029/30 From - Spending review Topic 2]]+Dataset[[#This Row],[2029/30 From - Spending review Topic 3]]+Dataset[[#This Row],[2029/30 From - Spending review Topic 4]]+Dataset[[#This Row],[2029/30 From - Other reallocations]]","v":0},{"$f":"Dataset[[#This Row],[2027/28 To - Spending review Topic 1]]+Dataset[[#This Row],[2027/28 To - Spending review Topic 2]]+Dataset[[#This Row],[2027/28 To - Spending review Topic 3]]+Dataset[[#This Row],[2027/28 To - Spending review Topic 4]]+Dataset[[#This Row],[2027/28 To - Other reallocations]]","v":0},{"$f":"Dataset[[#This Row],[2028/29 To - Spending review Topic 1]]+Dataset[[#This Row],[2028/29 To - Spending review Topic 2]]+Dataset[[#This Row],[2028/29 To - Spending review Topic 3]]+Dataset[[#This Row],[2028/29 To - Spending review Topic 4]]+Dataset[[#This Row],[2028/29 To - Other reallocations]]","v":0},{"$f":"Dataset[[#This Row],[2029/30 To - Spending review Topic 1]]+Dataset[[#This Row],[2029/30 To - Spending review Topic 2]]+Dataset[[#This Row],[2029/30 To - Spending review Topic 3]]+Dataset[[#This Row],[2029/30 To - Spending review Topic 4]]+Dataset[[#This Row],[2029/30 To - Other reallocations]]","v":0},{"$f":"Dataset[[#This Row],[2027/28 Targeted savings]]+Dataset[[#This Row],[2027/28 From - Total]]","v":0},{"$f":"Dataset[[#This Row],[2028/29 Targeted savings]]+Dataset[[#This Row],[2028/29 From - Total]]","v":0},{"$f":"Dataset[[#This Row],[2029/30 Targeted savings]]+Dataset[[#This Row],[2029/30 From - Total]]","v":0},{"$f":"Dataset[[#This Row],[2026/27 Targeted savings]]","v":0},{"$f":"SUM(Dataset[[#This Row],[2027/28 Targeted savings]],Dataset[[#This Row],[2027/28 From - Total]],Dataset[[#This Row],[2027/28 To - Total]])","v":0},{"$f":"SUM(Dataset[[#This Row],[2028/29 Targeted savings]],Dataset[[#This Row],[2028/29 From - Total]],Dataset[[#This Row],[2028/29 To - Total]])","v":0},{"$f":"SUM(Dataset[[#This Row],[2029/30 Targeted savings]],Dataset[[#This Row],[2029/30 From - Total]],Dataset[[#This Row],[2029/30 To - Total]])","v":0},{"$f":"Dataset[[#This Row],[2026/27 Baseline]]+Dataset[[#This Row],[2026/27 Total change]]","v":0},{"$f":"Dataset[[#This Row],[2027/28 Baseline]]+Dataset[[#This Row],[2027/28 Total change]]","v":0},{"$f":"Dataset[[#This Row],[2028/29 Baseline]]+Dataset[[#This Row],[2028/29 Total change]]","v":0},{"$f":"Dataset[[#This Row],[2029/30 Baseline]]+Dataset[[#This Row],[2029/30 Total change]]","v":0}]
["NAT|Non-transfer item","30|Salaries and wages","2027_28","MTEC2027",30,1,6,32764,244,"30","01","06","032764","000244","30|01|06|000244","01","01","01","01","01","01|01|01|01|01","National","Communications and Digital Technologies","Administration","Office Accommodation","Non-transfer item","Current","Current payments","Compensation of employees","Salaries and wages","Salaries and wages","Economic development","Economic regulation and infrastructure","NAT",0,0,0,0,0,0,0,0,0,0,0,null,null,null,null,null,null,null,null,null,null,null,null,null,null,null,null,null,null,null,null,null,null,null,null,null,null,null,null,null,null,null,null,null,null,{"$f":"Dataset[[#This Row],[2027/28 From - Spending review Topic 1]]+Dataset[[#This Row],[2027/28 From - Spending review Topic 2]]+Dataset[[#This Row],[2027/28 From - Spending review Topic 3]]+Dataset[[#This Row],[2027/28 From - Spending review Topic 4]]+Dataset[[#This Row],[2027/28 From - Other reallocations]]","v":0},{"$f":"Dataset[[#This Row],[2028/29 From - Spending review Topic 1]]+Dataset[[#This Row],[2028/29 From - Spending review Topic 2]]+Dataset[[#This Row],[2028/29 From - Spending review Topic 3]]+Dataset[[#This Row],[2028/29 From - Spending review Topic 4]]+Dataset[[#This Row],[2028/29 From - Other reallocations]]","v":0},{"$f":"Dataset[[#This Row],[2029/30 From - Spending review Topic 1]]+Dataset[[#This Row],[2029/30 From - Spending review Topic 2]]+Dataset[[#This Row],[2029/30 From - Spending review Topic 3]]+Dataset[[#This Row],[2029/30 From - Spending review Topic 4]]+Dataset[[#This Row],[2029/30 From - Other reallocations]]","v":0},{"$f":"Dataset[[#This Row],[2027/28 To - Spending review Topic 1]]+Dataset[[#This Row],[2027/28 To - Spending review Topic 2]]+Dataset[[#This Row],[2027/28 To - Spending review Topic 3]]+Dataset[[#This Row],[2027/28 To - Spending review Topic 4]]+Dataset[[#This Row],[2027/28 To - Other reallocations]]","v":0},{"$f":"Dataset[[#This Row],[2028/29 To - Spending review Topic 1]]+Dataset[[#This Row],[2028/29 To - Spending review Topic 2]]+Dataset[[#This Row],[2028/29 To - Spending review Topic 3]]+Dataset[[#This Row],[2028/29 To - Spending review Topic 4]]+Dataset[[#This Row],[2028/29 To - Other reallocations]]","v":0},{"$f":"Dataset[[#This Row],[2029/30 To - Spending review Topic 1]]+Dataset[[#This Row],[2029/30 To - Spending review Topic 2]]+Dataset[[#This Row],[2029/30 To - Spending review Topic 3]]+Dataset[[#This Row],[2029/30 To - Spending review Topic 4]]+Dataset[[#This Row],[2029/30 To - Other reallocations]]","v":0},{"$f":"Dataset[[#This Row],[2027/28 Targeted savings]]+Dataset[[#This Row],[2027/28 From - Total]]","v":0},{"$f":"Dataset[[#This Row],[2028/29 Targeted savings]]+Dataset[[#This Row],[2028/29 From - Total]]","v":0},{"$f":"Dataset[[#This Row],[2029/30 Targeted savings]]+Dataset[[#This Row],[2029/30 From - Total]]","v":0},{"$f":"Dataset[[#This Row],[2026/27 Targeted savings]]","v":0},{"$f":"SUM(Dataset[[#This Row],[2027/28 Targeted savings]],Dataset[[#This Row],[2027/28 From - Total]],Dataset[[#This Row],[2027/28 To - Total]])","v":0},{"$f":"SUM(Dataset[[#This Row],[2028/29 Targeted savings]],Dataset[[#This Row],[2028/29 From - Total]],Dataset[[#This Row],[2028/29 To - Total]])","v":0},{"$f":"SUM(Dataset[[#This Row],[2029/30 Targeted savings]],Dataset[[#This Row],[2029/30 From - Total]],Dataset[[#This Row],[2029/30 To - Total]])","v":0},{"$f":"Dataset[[#This Row],[2026/27 Baseline]]+Dataset[[#This Row],[2026/27 Total change]]","v":0},{"$f":"Dataset[[#This Row],[2027/28 Baseline]]+Dataset[[#This Row],[2027/28 Total change]]","v":0},{"$f":"Dataset[[#This Row],[2028/29 Baseline]]+Dataset[[#This Row],[2028/29 Total change]]","v":0},{"$f":"Dataset[[#This Row],[2029/30 Baseline]]+Dataset[[#This Row],[2029/30 Total change]]","v":0}]
["NAT|Non-transfer item","30|Social contributions","2027_28","MTEC2027",30,1,6,32765,245,"30","01","06","032765","000245","30|01|06|000245","01","01","01","02","02","01|01|01|02|02","National","Communications and Digital Technologies","Administration","Office Accommodation","Non-transfer item","Current","Current payments","Compensation of employees","Social contributions","Social contributions","Economic development","Economic regulation and infrastructure","NAT",0,0,0,0,0,0,0,0,0,0,0,null,null,null,null,null,null,null,null,null,null,null,null,null,null,null,null,null,null,null,null,null,null,null,null,null,null,null,null,null,null,null,null,null,null,{"$f":"Dataset[[#This Row],[2027/28 From - Spending review Topic 1]]+Dataset[[#This Row],[2027/28 From - Spending review Topic 2]]+Dataset[[#This Row],[2027/28 From - Spending review Topic 3]]+Dataset[[#This Row],[2027/28 From - Spending review Topic 4]]+Dataset[[#This Row],[2027/28 From - Other reallocations]]","v":0},{"$f":"Dataset[[#This Row],[2028/29 From - Spending review Topic 1]]+Dataset[[#This Row],[2028/29 From - Spending review Topic 2]]+Dataset[[#This Row],[2028/29 From - Spending review Topic 3]]+Dataset[[#This Row],[2028/29 From - Spending review Topic 4]]+Dataset[[#This Row],[2028/29 From - Other reallocations]]","v":0},{"$f":"Dataset[[#This Row],[2029/30 From - Spending review Topic 1]]+Dataset[[#This Row],[2029/30 From - Spending review Topic 2]]+Dataset[[#This Row],[2029/30 From - Spending review Topic 3]]+Dataset[[#This Row],[2029/30 From - Spending review Topic 4]]+Dataset[[#This Row],[2029/30 From - Other reallocations]]","v":0},{"$f":"Dataset[[#This Row],[2027/28 To - Spending review Topic 1]]+Dataset[[#This Row],[2027/28 To - Spending review Topic 2]]+Dataset[[#This Row],[2027/28 To - Spending review Topic 3]]+Dataset[[#This Row],[2027/28 To - Spending review Topic 4]]+Dataset[[#This Row],[2027/28 To - Other reallocations]]","v":0},{"$f":"Dataset[[#This Row],[2028/29 To - Spending review Topic 1]]+Dataset[[#This Row],[2028/29 To - Spending review Topic 2]]+Dataset[[#This Row],[2028/29 To - Spending review Topic 3]]+Dataset[[#This Row],[2028/29 To - Spending review Topic 4]]+Dataset[[#This Row],[2028/29 To - Other reallocations]]","v":0},{"$f":"Dataset[[#This Row],[2029/30 To - Spending review Topic 1]]+Dataset[[#This Row],[2029/30 To - Spending review Topic 2]]+Dataset[[#This Row],[2029/30 To - Spending review Topic 3]]+Dataset[[#This Row],[2029/30 To - Spending review Topic 4]]+Dataset[[#This Row],[2029/30 To - Other reallocations]]","v":0},{"$f":"Dataset[[#This Row],[2027/28 Targeted savings]]+Dataset[[#This Row],[2027/28 From - Total]]","v":0},{"$f":"Dataset[[#This Row],[2028/29 Targeted savings]]+Dataset[[#This Row],[2028/29 From - Total]]","v":0},{"$f":"Dataset[[#This Row],[2029/30 Targeted savings]]+Dataset[[#This Row],[2029/30 From - Total]]","v":0},{"$f":"Dataset[[#This Row],[2026/27 Targeted savings]]","v":0},{"$f":"SUM(Dataset[[#This Row],[2027/28 Targeted savings]],Dataset[[#This Row],[2027/28 From - Total]],Dataset[[#This Row],[2027/28 To - Total]])","v":0},{"$f":"SUM(Dataset[[#This Row],[2028/29 Targeted savings]],Dataset[[#This Row],[2028/29 From - Total]],Dataset[[#This Row],[2028/29 To - Total]])","v":0},{"$f":"SUM(Dataset[[#This Row],[2029/30 Targeted savings]],Dataset[[#This Row],[2029/30 From - Total]],Dataset[[#This Row],[2029/30 To - Total]])","v":0},{"$f":"Dataset[[#This Row],[2026/27 Baseline]]+Dataset[[#This Row],[2026/27 Total change]]","v":0},{"$f":"Dataset[[#This Row],[2027/28 Baseline]]+Dataset[[#This Row],[2027/28 Total change]]","v":0},{"$f":"Dataset[[#This Row],[2028/29 Baseline]]+Dataset[[#This Row],[2028/29 Total change]]","v":0},{"$f":"Dataset[[#This Row],[2029/30 Baseline]]+Dataset[[#This Row],[2029/30 Total change]]","v":0}]
["NAT|Non-transfer item","30|Administrative fees","2027_28","MTEC2027",30,1,6,32766,246,"30","01","06","032766","000246","30|01|06|000246","01","01","02","03","03","01|01|02|03|03","National","Communications and Digital Technologies","Administration","Office Accommodation","Non-transfer item","Current","Current payments","Goods and services","Administrative fees","Administrative fees","Economic development","Economic regulation and infrastructure","NAT",0,0,0,0,0,0,0,0,0,0,0,null,null,null,null,null,null,null,null,null,null,null,null,null,null,null,null,null,null,null,null,null,null,null,null,null,null,null,null,null,null,null,null,null,null,{"$f":"Dataset[[#This Row],[2027/28 From - Spending review Topic 1]]+Dataset[[#This Row],[2027/28 From - Spending review Topic 2]]+Dataset[[#This Row],[2027/28 From - Spending review Topic 3]]+Dataset[[#This Row],[2027/28 From - Spending review Topic 4]]+Dataset[[#This Row],[2027/28 From - Other reallocations]]","v":0},{"$f":"Dataset[[#This Row],[2028/29 From - Spending review Topic 1]]+Dataset[[#This Row],[2028/29 From - Spending review Topic 2]]+Dataset[[#This Row],[2028/29 From - Spending review Topic 3]]+Dataset[[#This Row],[2028/29 From - Spending review Topic 4]]+Dataset[[#This Row],[2028/29 From - Other reallocations]]","v":0},{"$f":"Dataset[[#This Row],[2029/30 From - Spending review Topic 1]]+Dataset[[#This Row],[2029/30 From - Spending review Topic 2]]+Dataset[[#This Row],[2029/30 From - Spending review Topic 3]]+Dataset[[#This Row],[2029/30 From - Spending review Topic 4]]+Dataset[[#This Row],[2029/30 From - Other reallocations]]","v":0},{"$f":"Dataset[[#This Row],[2027/28 To - Spending review Topic 1]]+Dataset[[#This Row],[2027/28 To - Spending review Topic 2]]+Dataset[[#This Row],[2027/28 To - Spending review Topic 3]]+Dataset[[#This Row],[2027/28 To - Spending review Topic 4]]+Dataset[[#This Row],[2027/28 To - Other reallocations]]","v":0},{"$f":"Dataset[[#This Row],[2028/29 To - Spending review Topic 1]]+Dataset[[#This Row],[2028/29 To - Spending review Topic 2]]+Dataset[[#This Row],[2028/29 To - Spending review Topic 3]]+Dataset[[#This Row],[2028/29 To - Spending review Topic 4]]+Dataset[[#This Row],[2028/29 To - Other reallocations]]","v":0},{"$f":"Dataset[[#This Row],[2029/30 To - Spending review Topic 1]]+Dataset[[#This Row],[2029/30 To - Spending review Topic 2]]+Dataset[[#This Row],[2029/30 To - Spending review Topic 3]]+Dataset[[#This Row],[2029/30 To - Spending review Topic 4]]+Dataset[[#This Row],[2029/30 To - Other reallocations]]","v":0},{"$f":"Dataset[[#This Row],[2027/28 Targeted savings]]+Dataset[[#This Row],[2027/28 From - Total]]","v":0},{"$f":"Dataset[[#This Row],[2028/29 Targeted savings]]+Dataset[[#This Row],[2028/29 From - Total]]","v":0},{"$f":"Dataset[[#This Row],[2029/30 Targeted savings]]+Dataset[[#This Row],[2029/30 From - Total]]","v":0},{"$f":"Dataset[[#This Row],[2026/27 Targeted savings]]","v":0},{"$f":"SUM(Dataset[[#This Row],[2027/28 Targeted savings]],Dataset[[#This Row],[2027/28 From - Total]],Dataset[[#This Row],[2027/28 To - Total]])","v":0},{"$f":"SUM(Dataset[[#This Row],[2028/29 Targeted savings]],Dataset[[#This Row],[2028/29 From - Total]],Dataset[[#This Row],[2028/29 To - Total]])","v":0},{"$f":"SUM(Dataset[[#This Row],[2029/30 Targeted savings]],Dataset[[#This Row],[2029/30 From - Total]],Dataset[[#This Row],[2029/30 To - Total]])","v":0},{"$f":"Dataset[[#This Row],[2026/27 Baseline]]+Dataset[[#This Row],[2026/27 Total change]]","v":0},{"$f":"Dataset[[#This Row],[2027/28 Baseline]]+Dataset[[#This Row],[2027/28 Total change]]","v":0},{"$f":"Dataset[[#This Row],[2028/29 Baseline]]+Dataset[[#This Row],[2028/29 Total change]]","v":0},{"$f":"Dataset[[#This Row],[2029/30 Baseline]]+Dataset[[#This Row],[2029/30 Total change]]","v":0}]
["NAT|Non-transfer item","30|Advertising","2027_28","MTEC2027",30,1,6,32767,247,"30","01","06","032767","000247","30|01|06|000247","01","01","02","04","04","01|01|02|04|04","National","Communications and Digital Technologies","Administration","Office Accommodation","Non-transfer item","Current","Current payments","Goods and services","Advertising","Advertising","Economic development","Economic regulation and infrastructure","NAT",0,0,0,0,0,0,0,0,0,0,0,null,null,null,null,null,null,null,null,null,null,null,null,null,null,null,null,null,null,null,null,null,null,null,null,null,null,null,null,null,null,null,null,null,null,{"$f":"Dataset[[#This Row],[2027/28 From - Spending review Topic 1]]+Dataset[[#This Row],[2027/28 From - Spending review Topic 2]]+Dataset[[#This Row],[2027/28 From - Spending review Topic 3]]+Dataset[[#This Row],[2027/28 From - Spending review Topic 4]]+Dataset[[#This Row],[2027/28 From - Other reallocations]]","v":0},{"$f":"Dataset[[#This Row],[2028/29 From - Spending review Topic 1]]+Dataset[[#This Row],[2028/29 From - Spending review Topic 2]]+Dataset[[#This Row],[2028/29 From - Spending review Topic 3]]+Dataset[[#This Row],[2028/29 From - Spending review Topic 4]]+Dataset[[#This Row],[2028/29 From - Other reallocations]]","v":0},{"$f":"Dataset[[#This Row],[2029/30 From - Spending review Topic 1]]+Dataset[[#This Row],[2029/30 From - Spending review Topic 2]]+Dataset[[#This Row],[2029/30 From - Spending review Topic 3]]+Dataset[[#This Row],[2029/30 From - Spending review Topic 4]]+Dataset[[#This Row],[2029/30 From - Other reallocations]]","v":0},{"$f":"Dataset[[#This Row],[2027/28 To - Spending review Topic 1]]+Dataset[[#This Row],[2027/28 To - Spending review Topic 2]]+Dataset[[#This Row],[2027/28 To - Spending review Topic 3]]+Dataset[[#This Row],[2027/28 To - Spending review Topic 4]]+Dataset[[#This Row],[2027/28 To - Other reallocations]]","v":0},{"$f":"Dataset[[#This Row],[2028/29 To - Spending review Topic 1]]+Dataset[[#This Row],[2028/29 To - Spending review Topic 2]]+Dataset[[#This Row],[2028/29 To - Spending review Topic 3]]+Dataset[[#This Row],[2028/29 To - Spending review Topic 4]]+Dataset[[#This Row],[2028/29 To - Other reallocations]]","v":0},{"$f":"Dataset[[#This Row],[2029/30 To - Spending review Topic 1]]+Dataset[[#This Row],[2029/30 To - Spending review Topic 2]]+Dataset[[#This Row],[2029/30 To - Spending review Topic 3]]+Dataset[[#This Row],[2029/30 To - Spending review Topic 4]]+Dataset[[#This Row],[2029/30 To - Other reallocations]]","v":0},{"$f":"Dataset[[#This Row],[2027/28 Targeted savings]]+Dataset[[#This Row],[2027/28 From - Total]]","v":0},{"$f":"Dataset[[#This Row],[2028/29 Targeted savings]]+Dataset[[#This Row],[2028/29 From - Total]]","v":0},{"$f":"Dataset[[#This Row],[2029/30 Targeted savings]]+Dataset[[#This Row],[2029/30 From - Total]]","v":0},{"$f":"Dataset[[#This Row],[2026/27 Targeted savings]]","v":0},{"$f":"SUM(Dataset[[#This Row],[2027/28 Targeted savings]],Dataset[[#This Row],[2027/28 From - Total]],Dataset[[#This Row],[2027/28 To - Total]])","v":0},{"$f":"SUM(Dataset[[#This Row],[2028/29 Targeted savings]],Dataset[[#This Row],[2028/29 From - Total]],Dataset[[#This Row],[2028/29 To - Total]])","v":0},{"$f":"SUM(Dataset[[#This Row],[2029/30 Targeted savings]],Dataset[[#This Row],[2029/30 From - Total]],Dataset[[#This Row],[2029/30 To - Total]])","v":0},{"$f":"Dataset[[#This Row],[2026/27 Baseline]]+Dataset[[#This Row],[2026/27 Total change]]","v":0},{"$f":"Dataset[[#This Row],[2027/28 Baseline]]+Dataset[[#This Row],[2027/28 Total change]]","v":0},{"$f":"Dataset[[#This Row],[2028/29 Baseline]]+Dataset[[#This Row],[2028/29 Total change]]","v":0},{"$f":"Dataset[[#This Row],[2029/30 Baseline]]+Dataset[[#This Row],[2029/30 Total change]]","v":0}]
["NAT|Non-transfer item","30|Minor assets","2027_28","MTEC2027",30,1,6,32768,248,"30","01","06","032768","000248","30|01|06|000248","01","01","02","05","05","01|01|02|05|05","National","Communications and Digital Technologies","Administration","Office Accommodation","Non-transfer item","Current","Current payments","Goods and services","Minor assets","Minor assets","Economic development","Economic regulation and infrastructure","NAT",0,0,0,0,0,0,0,0,0,0,0,null,null,null,null,null,null,null,null,null,null,null,null,null,null,null,null,null,null,null,null,null,null,null,null,null,null,null,null,null,null,null,null,null,null,{"$f":"Dataset[[#This Row],[2027/28 From - Spending review Topic 1]]+Dataset[[#This Row],[2027/28 From - Spending review Topic 2]]+Dataset[[#This Row],[2027/28 From - Spending review Topic 3]]+Dataset[[#This Row],[2027/28 From - Spending review Topic 4]]+Dataset[[#This Row],[2027/28 From - Other reallocations]]","v":0},{"$f":"Dataset[[#This Row],[2028/29 From - Spending review Topic 1]]+Dataset[[#This Row],[2028/29 From - Spending review Topic 2]]+Dataset[[#This Row],[2028/29 From - Spending review Topic 3]]+Dataset[[#This Row],[2028/29 From - Spending review Topic 4]]+Dataset[[#This Row],[2028/29 From - Other reallocations]]","v":0},{"$f":"Dataset[[#This Row],[2029/30 From - Spending review Topic 1]]+Dataset[[#This Row],[2029/30 From - Spending review Topic 2]]+Dataset[[#This Row],[2029/30 From - Spending review Topic 3]]+Dataset[[#This Row],[2029/30 From - Spending review Topic 4]]+Dataset[[#This Row],[2029/30 From - Other reallocations]]","v":0},{"$f":"Dataset[[#This Row],[2027/28 To - Spending review Topic 1]]+Dataset[[#This Row],[2027/28 To - Spending review Topic 2]]+Dataset[[#This Row],[2027/28 To - Spending review Topic 3]]+Dataset[[#This Row],[2027/28 To - Spending review Topic 4]]+Dataset[[#This Row],[2027/28 To - Other reallocations]]","v":0},{"$f":"Dataset[[#This Row],[2028/29 To - Spending review Topic 1]]+Dataset[[#This Row],[2028/29 To - Spending review Topic 2]]+Dataset[[#This Row],[2028/29 To - Spending review Topic 3]]+Dataset[[#This Row],[2028/29 To - Spending review Topic 4]]+Dataset[[#This Row],[2028/29 To - Other reallocations]]","v":0},{"$f":"Dataset[[#This Row],[2029/30 To - Spending review Topic 1]]+Dataset[[#This Row],[2029/30 To - Spending review Topic 2]]+Dataset[[#This Row],[2029/30 To - Spending review Topic 3]]+Dataset[[#This Row],[2029/30 To - Spending review Topic 4]]+Dataset[[#This Row],[2029/30 To - Other reallocations]]","v":0},{"$f":"Dataset[[#This Row],[2027/28 Targeted savings]]+Dataset[[#This Row],[2027/28 From - Total]]","v":0},{"$f":"Dataset[[#This Row],[2028/29 Targeted savings]]+Dataset[[#This Row],[2028/29 From - Total]]","v":0},{"$f":"Dataset[[#This Row],[2029/30 Targeted savings]]+Dataset[[#This Row],[2029/30 From - Total]]","v":0},{"$f":"Dataset[[#This Row],[2026/27 Targeted savings]]","v":0},{"$f":"SUM(Dataset[[#This Row],[2027/28 Targeted savings]],Dataset[[#This Row],[2027/28 From - Total]],Dataset[[#This Row],[2027/28 To - Total]])","v":0},{"$f":"SUM(Dataset[[#This Row],[2028/29 Targeted savings]],Dataset[[#This Row],[2028/29 From - Total]],Dataset[[#This Row],[2028/29 To - Total]])","v":0},{"$f":"SUM(Dataset[[#This Row],[2029/30 Targeted savings]],Dataset[[#This Row],[2029/30 From - Total]],Dataset[[#This Row],[2029/30 To - Total]])","v":0},{"$f":"Dataset[[#This Row],[2026/27 Baseline]]+Dataset[[#This Row],[2026/27 Total change]]","v":0},{"$f":"Dataset[[#This Row],[2027/28 Baseline]]+Dataset[[#This Row],[2027/28 Total change]]","v":0},{"$f":"Dataset[[#This Row],[2028/29 Baseline]]+Dataset[[#This Row],[2028/29 Total change]]","v":0},{"$f":"Dataset[[#This Row],[2029/30 Baseline]]+Dataset[[#This Row],[2029/30 Total change]]","v":0}]
["NAT|Non-transfer item","30|Audit costs: External","2027_28","MTEC2027",30,1,6,32769,249,"30","01","06","032769","000249","30|01|06|000249","01","01","02","06","06","01|01|02|06|06","National","Communications and Digital Technologies","Administration","Office Accommodation","Non-transfer item","Current","Current payments","Goods and services","Audit costs: External","Audit costs: External","Economic development","Economic regulation and infrastructure","NAT",0,0,0,0,0,0,0,0,0,0,0,null,null,null,null,null,null,null,null,null,null,null,null,null,null,null,null,null,null,null,null,null,null,null,null,null,null,null,null,null,null,null,null,null,null,{"$f":"Dataset[[#This Row],[2027/28 From - Spending review Topic 1]]+Dataset[[#This Row],[2027/28 From - Spending review Topic 2]]+Dataset[[#This Row],[2027/28 From - Spending review Topic 3]]+Dataset[[#This Row],[2027/28 From - Spending review Topic 4]]+Dataset[[#This Row],[2027/28 From - Other reallocations]]","v":0},{"$f":"Dataset[[#This Row],[2028/29 From - Spending review Topic 1]]+Dataset[[#This Row],[2028/29 From - Spending review Topic 2]]+Dataset[[#This Row],[2028/29 From - Spending review Topic 3]]+Dataset[[#This Row],[2028/29 From - Spending review Topic 4]]+Dataset[[#This Row],[2028/29 From - Other reallocations]]","v":0},{"$f":"Dataset[[#This Row],[2029/30 From - Spending review Topic 1]]+Dataset[[#This Row],[2029/30 From - Spending review Topic 2]]+Dataset[[#This Row],[2029/30 From - Spending review Topic 3]]+Dataset[[#This Row],[2029/30 From - Spending review Topic 4]]+Dataset[[#This Row],[2029/30 From - Other reallocations]]","v":0},{"$f":"Dataset[[#This Row],[2027/28 To - Spending review Topic 1]]+Dataset[[#This Row],[2027/28 To - Spending review Topic 2]]+Dataset[[#This Row],[2027/28 To - Spending review Topic 3]]+Dataset[[#This Row],[2027/28 To - Spending review Topic 4]]+Dataset[[#This Row],[2027/28 To - Other reallocations]]","v":0},{"$f":"Dataset[[#This Row],[2028/29 To - Spending review Topic 1]]+Dataset[[#This Row],[2028/29 To - Spending review Topic 2]]+Dataset[[#This Row],[2028/29 To - Spending review Topic 3]]+Dataset[[#This Row],[2028/29 To - Spending review Topic 4]]+Dataset[[#This Row],[2028/29 To - Other reallocations]]","v":0},{"$f":"Dataset[[#This Row],[2029/30 To - Spending review Topic 1]]+Dataset[[#This Row],[2029/30 To - Spending review Topic 2]]+Dataset[[#This Row],[2029/30 To - Spending review Topic 3]]+Dataset[[#This Row],[2029/30 To - Spending review Topic 4]]+Dataset[[#This Row],[2029/30 To - Other reallocations]]","v":0},{"$f":"Dataset[[#This Row],[2027/28 Targeted savings]]+Dataset[[#This Row],[2027/28 From - Total]]","v":0},{"$f":"Dataset[[#This Row],[2028/29 Targeted savings]]+Dataset[[#This Row],[2028/29 From - Total]]","v":0},{"$f":"Dataset[[#This Row],[2029/30 Targeted savings]]+Dataset[[#This Row],[2029/30 From - Total]]","v":0},{"$f":"Dataset[[#This Row],[2026/27 Targeted savings]]","v":0},{"$f":"SUM(Dataset[[#This Row],[2027/28 Targeted savings]],Dataset[[#This Row],[2027/28 From - Total]],Dataset[[#This Row],[2027/28 To - Total]])","v":0},{"$f":"SUM(Dataset[[#This Row],[2028/29 Targeted savings]],Dataset[[#This Row],[2028/29 From - Total]],Dataset[[#This Row],[2028/29 To - Total]])","v":0},{"$f":"SUM(Dataset[[#This Row],[2029/30 Targeted savings]],Dataset[[#This Row],[2029/30 From - Total]],Dataset[[#This Row],[2029/30 To - Total]])","v":0},{"$f":"Dataset[[#This Row],[2026/27 Baseline]]+Dataset[[#This Row],[2026/27 Total change]]","v":0},{"$f":"Dataset[[#This Row],[2027/28 Baseline]]+Dataset[[#This Row],[2027/28 Total change]]","v":0},{"$f":"Dataset[[#This Row],[2028/29 Baseline]]+Dataset[[#This Row],[2028/29 Total change]]","v":0},{"$f":"Dataset[[#This Row],[2029/30 Baseline]]+Dataset[[#This Row],[2029/30 Total change]]","v":0}]
["NAT|Non-transfer item","30|Bursaries: Employees","2027_28","MTEC2027",30,1,6,32770,250,"30","01","06","032770","000250","30|01|06|000250","01","01","02","07","07","01|01|02|07|07","National","Communications and Digital Technologies","Administration","Office Accommodation","Non-transfer item","Current","Current payments","Goods and services","Bursaries: Employees","Bursaries: Employees","Economic development","Economic regulation and infrastructure","NAT",0,0,0,0,0,0,0,0,0,0,0,null,null,null,null,null,null,null,null,null,null,null,null,null,null,null,null,null,null,null,null,null,null,null,null,null,null,null,null,null,null,null,null,null,null,{"$f":"Dataset[[#This Row],[2027/28 From - Spending review Topic 1]]+Dataset[[#This Row],[2027/28 From - Spending review Topic 2]]+Dataset[[#This Row],[2027/28 From - Spending review Topic 3]]+Dataset[[#This Row],[2027/28 From - Spending review Topic 4]]+Dataset[[#This Row],[2027/28 From - Other reallocations]]","v":0},{"$f":"Dataset[[#This Row],[2028/29 From - Spending review Topic 1]]+Dataset[[#This Row],[2028/29 From - Spending review Topic 2]]+Dataset[[#This Row],[2028/29 From - Spending review Topic 3]]+Dataset[[#This Row],[2028/29 From - Spending review Topic 4]]+Dataset[[#This Row],[2028/29 From - Other reallocations]]","v":0},{"$f":"Dataset[[#This Row],[2029/30 From - Spending review Topic 1]]+Dataset[[#This Row],[2029/30 From - Spending review Topic 2]]+Dataset[[#This Row],[2029/30 From - Spending review Topic 3]]+Dataset[[#This Row],[2029/30 From - Spending review Topic 4]]+Dataset[[#This Row],[2029/30 From - Other reallocations]]","v":0},{"$f":"Dataset[[#This Row],[2027/28 To - Spending review Topic 1]]+Dataset[[#This Row],[2027/28 To - Spending review Topic 2]]+Dataset[[#This Row],[2027/28 To - Spending review Topic 3]]+Dataset[[#This Row],[2027/28 To - Spending review Topic 4]]+Dataset[[#This Row],[2027/28 To - Other reallocations]]","v":0},{"$f":"Dataset[[#This Row],[2028/29 To - Spending review Topic 1]]+Dataset[[#This Row],[2028/29 To - Spending review Topic 2]]+Dataset[[#This Row],[2028/29 To - Spending review Topic 3]]+Dataset[[#This Row],[2028/29 To - Spending review Topic 4]]+Dataset[[#This Row],[2028/29 To - Other reallocations]]","v":0},{"$f":"Dataset[[#This Row],[2029/30 To - Spending review Topic 1]]+Dataset[[#This Row],[2029/30 To - Spending review Topic 2]]+Dataset[[#This Row],[2029/30 To - Spending review Topic 3]]+Dataset[[#This Row],[2029/30 To - Spending review Topic 4]]+Dataset[[#This Row],[2029/30 To - Other reallocations]]","v":0},{"$f":"Dataset[[#This Row],[2027/28 Targeted savings]]+Dataset[[#This Row],[2027/28 From - Total]]","v":0},{"$f":"Dataset[[#This Row],[2028/29 Targeted savings]]+Dataset[[#This Row],[2028/29 From - Total]]","v":0},{"$f":"Dataset[[#This Row],[2029/30 Targeted savings]]+Dataset[[#This Row],[2029/30 From - Total]]","v":0},{"$f":"Dataset[[#This Row],[2026/27 Targeted savings]]","v":0},{"$f":"SUM(Dataset[[#This Row],[2027/28 Targeted savings]],Dataset[[#This Row],[2027/28 From - Total]],Dataset[[#This Row],[2027/28 To - Total]])","v":0},{"$f":"SUM(Dataset[[#This Row],[2028/29 Targeted savings]],Dataset[[#This Row],[2028/29 From - Total]],Dataset[[#This Row],[2028/29 To - Total]])","v":0},{"$f":"SUM(Dataset[[#This Row],[2029/30 Targeted savings]],Dataset[[#This Row],[2029/30 From - Total]],Dataset[[#This Row],[2029/30 To - Total]])","v":0},{"$f":"Dataset[[#This Row],[2026/27 Baseline]]+Dataset[[#This Row],[2026/27 Total change]]","v":0},{"$f":"Dataset[[#This Row],[2027/28 Baseline]]+Dataset[[#This Row],[2027/28 Total change]]","v":0},{"$f":"Dataset[[#This Row],[2028/29 Baseline]]+Dataset[[#This Row],[2028/29 Total change]]","v":0},{"$f":"Dataset[[#This Row],[2029/30 Baseline]]+Dataset[[#This Row],[2029/30 Total change]]","v":0}]
["NAT|Non-transfer item","30|Catering: Departmental activities","2027_28","MTEC2027",30,1,6,32771,251,"30","01","06","032771","000251","30|01|06|000251","01","01","02","08","08","01|01|02|08|08","National","Communications and Digital Technologies","Administration","Office Accommodation","Non-transfer item","Current","Current payments","Goods and services","Catering: Departmental activities","Catering: Departmental activities","Economic development","Economic regulation and infrastructure","NAT",0,0,0,0,0,0,0,0,0,0,0,null,null,null,null,null,null,null,null,null,null,null,null,null,null,null,null,null,null,null,null,null,null,null,null,null,null,null,null,null,null,null,null,null,null,{"$f":"Dataset[[#This Row],[2027/28 From - Spending review Topic 1]]+Dataset[[#This Row],[2027/28 From - Spending review Topic 2]]+Dataset[[#This Row],[2027/28 From - Spending review Topic 3]]+Dataset[[#This Row],[2027/28 From - Spending review Topic 4]]+Dataset[[#This Row],[2027/28 From - Other reallocations]]","v":0},{"$f":"Dataset[[#This Row],[2028/29 From - Spending review Topic 1]]+Dataset[[#This Row],[2028/29 From - Spending review Topic 2]]+Dataset[[#This Row],[2028/29 From - Spending review Topic 3]]+Dataset[[#This Row],[2028/29 From - Spending review Topic 4]]+Dataset[[#This Row],[2028/29 From - Other reallocations]]","v":0},{"$f":"Dataset[[#This Row],[2029/30 From - Spending review Topic 1]]+Dataset[[#This Row],[2029/30 From - Spending review Topic 2]]+Dataset[[#This Row],[2029/30 From - Spending review Topic 3]]+Dataset[[#This Row],[2029/30 From - Spending review Topic 4]]+Dataset[[#This Row],[2029/30 From - Other reallocations]]","v":0},{"$f":"Dataset[[#This Row],[2027/28 To - Spending review Topic 1]]+Dataset[[#This Row],[2027/28 To - Spending review Topic 2]]+Dataset[[#This Row],[2027/28 To - Spending review Topic 3]]+Dataset[[#This Row],[2027/28 To - Spending review Topic 4]]+Dataset[[#This Row],[2027/28 To - Other reallocations]]","v":0},{"$f":"Dataset[[#This Row],[2028/29 To - Spending review Topic 1]]+Dataset[[#This Row],[2028/29 To - Spending review Topic 2]]+Dataset[[#This Row],[2028/29 To - Spending review Topic 3]]+Dataset[[#This Row],[2028/29 To - Spending review Topic 4]]+Dataset[[#This Row],[2028/29 To - Other reallocations]]","v":0},{"$f":"Dataset[[#This Row],[2029/30 To - Spending review Topic 1]]+Dataset[[#This Row],[2029/30 To - Spending review Topic 2]]+Dataset[[#This Row],[2029/30 To - Spending review Topic 3]]+Dataset[[#This Row],[2029/30 To - Spending review Topic 4]]+Dataset[[#This Row],[2029/30 To - Other reallocations]]","v":0},{"$f":"Dataset[[#This Row],[2027/28 Targeted savings]]+Dataset[[#This Row],[2027/28 From - Total]]","v":0},{"$f":"Dataset[[#This Row],[2028/29 Targeted savings]]+Dataset[[#This Row],[2028/29 From - Total]]","v":0},{"$f":"Dataset[[#This Row],[2029/30 Targeted savings]]+Dataset[[#This Row],[2029/30 From - Total]]","v":0},{"$f":"Dataset[[#This Row],[2026/27 Targeted savings]]","v":0},{"$f":"SUM(Dataset[[#This Row],[2027/28 Targeted savings]],Dataset[[#This Row],[2027/28 From - Total]],Dataset[[#This Row],[2027/28 To - Total]])","v":0},{"$f":"SUM(Dataset[[#This Row],[2028/29 Targeted savings]],Dataset[[#This Row],[2028/29 From - Total]],Dataset[[#This Row],[2028/29 To - Total]])","v":0},{"$f":"SUM(Dataset[[#This Row],[2029/30 Targeted savings]],Dataset[[#This Row],[2029/30 From - Total]],Dataset[[#This Row],[2029/30 To - Total]])","v":0},{"$f":"Dataset[[#This Row],[2026/27 Baseline]]+Dataset[[#This Row],[2026/27 Total change]]","v":0},{"$f":"Dataset[[#This Row],[2027/28 Baseline]]+Dataset[[#This Row],[2027/28 Total change]]","v":0},{"$f":"Dataset[[#This Row],[2028/29 Baseline]]+Dataset[[#This Row],[2028/29 Total change]]","v":0},{"$f":"Dataset[[#This Row],[2029/30 Baseline]]+Dataset[[#This Row],[2029/30 Total change]]","v":0}]
["NAT|Non-transfer item","30|Communication (G&S)","2027_28","MTEC2027",30,1,6,32772,252,"30","01","06","032772","000252","30|01|06|000252","01","01","02","09","09","01|01|02|09|09","National","Communications and Digital Technologies","Administration","Office Accommodation","Non-transfer item","Current","Current payments","Goods and services","Communication (G&S)","Communication (G&S)","Economic development","Economic regulation and infrastructure","NAT",0,0,0,0,0,0,0,0,0,0,0,null,null,null,null,null,null,null,null,null,null,null,null,null,null,null,null,null,null,null,null,null,null,null,null,null,null,null,null,null,null,null,null,null,null,{"$f":"Dataset[[#This Row],[2027/28 From - Spending review Topic 1]]+Dataset[[#This Row],[2027/28 From - Spending review Topic 2]]+Dataset[[#This Row],[2027/28 From - Spending review Topic 3]]+Dataset[[#This Row],[2027/28 From - Spending review Topic 4]]+Dataset[[#This Row],[2027/28 From - Other reallocations]]","v":0},{"$f":"Dataset[[#This Row],[2028/29 From - Spending review Topic 1]]+Dataset[[#This Row],[2028/29 From - Spending review Topic 2]]+Dataset[[#This Row],[2028/29 From - Spending review Topic 3]]+Dataset[[#This Row],[2028/29 From - Spending review Topic 4]]+Dataset[[#This Row],[2028/29 From - Other reallocations]]","v":0},{"$f":"Dataset[[#This Row],[2029/30 From - Spending review Topic 1]]+Dataset[[#This Row],[2029/30 From - Spending review Topic 2]]+Dataset[[#This Row],[2029/30 From - Spending review Topic 3]]+Dataset[[#This Row],[2029/30 From - Spending review Topic 4]]+Dataset[[#This Row],[2029/30 From - Other reallocations]]","v":0},{"$f":"Dataset[[#This Row],[2027/28 To - Spending review Topic 1]]+Dataset[[#This Row],[2027/28 To - Spending review Topic 2]]+Dataset[[#This Row],[2027/28 To - Spending review Topic 3]]+Dataset[[#This Row],[2027/28 To - Spending review Topic 4]]+Dataset[[#This Row],[2027/28 To - Other reallocations]]","v":0},{"$f":"Dataset[[#This Row],[2028/29 To - Spending review Topic 1]]+Dataset[[#This Row],[2028/29 To - Spending review Topic 2]]+Dataset[[#This Row],[2028/29 To - Spending review Topic 3]]+Dataset[[#This Row],[2028/29 To - Spending review Topic 4]]+Dataset[[#This Row],[2028/29 To - Other reallocations]]","v":0},{"$f":"Dataset[[#This Row],[2029/30 To - Spending review Topic 1]]+Dataset[[#This Row],[2029/30 To - Spending review Topic 2]]+Dataset[[#This Row],[2029/30 To - Spending review Topic 3]]+Dataset[[#This Row],[2029/30 To - Spending review Topic 4]]+Dataset[[#This Row],[2029/30 To - Other reallocations]]","v":0},{"$f":"Dataset[[#This Row],[2027/28 Targeted savings]]+Dataset[[#This Row],[2027/28 From - Total]]","v":0},{"$f":"Dataset[[#This Row],[2028/29 Targeted savings]]+Dataset[[#This Row],[2028/29 From - Total]]","v":0},{"$f":"Dataset[[#This Row],[2029/30 Targeted savings]]+Dataset[[#This Row],[2029/30 From - Total]]","v":0},{"$f":"Dataset[[#This Row],[2026/27 Targeted savings]]","v":0},{"$f":"SUM(Dataset[[#This Row],[2027/28 Targeted savings]],Dataset[[#This Row],[2027/28 From - Total]],Dataset[[#This Row],[2027/28 To - Total]])","v":0},{"$f":"SUM(Dataset[[#This Row],[2028/29 Targeted savings]],Dataset[[#This Row],[2028/29 From - Total]],Dataset[[#This Row],[2028/29 To - Total]])","v":0},{"$f":"SUM(Dataset[[#This Row],[2029/30 Targeted savings]],Dataset[[#This Row],[2029/30 From - Total]],Dataset[[#This Row],[2029/30 To - Total]])","v":0},{"$f":"Dataset[[#This Row],[2026/27 Baseline]]+Dataset[[#This Row],[2026/27 Total change]]","v":0},{"$f":"Dataset[[#This Row],[2027/28 Baseline]]+Dataset[[#This Row],[2027/28 Total change]]","v":0},{"$f":"Dataset[[#This Row],[2028/29 Baseline]]+Dataset[[#This Row],[2028/29 Total change]]","v":0},{"$f":"Dataset[[#This Row],[2029/30 Baseline]]+Dataset[[#This Row],[2029/30 Total change]]","v":0}]
["NAT|Non-transfer item","30|Computer services","2027_28","MTEC2027",30,1,6,32773,253,"30","01","06","032773","000253","30|01|06|000253","01","01","02","10","10","01|01|02|10|10","National","Communications and Digital Technologies","Administration","Office Accommodation","Non-transfer item","Current","Current payments","Goods and services","Computer services","Computer services","Economic development","Economic regulation and infrastructure","NAT",0,0,0,0,0,0,0,0,0,0,0,null,null,null,null,null,null,null,null,null,null,null,null,null,null,null,null,null,null,null,null,null,null,null,null,null,null,null,null,null,null,null,null,null,null,{"$f":"Dataset[[#This Row],[2027/28 From - Spending review Topic 1]]+Dataset[[#This Row],[2027/28 From - Spending review Topic 2]]+Dataset[[#This Row],[2027/28 From - Spending review Topic 3]]+Dataset[[#This Row],[2027/28 From - Spending review Topic 4]]+Dataset[[#This Row],[2027/28 From - Other reallocations]]","v":0},{"$f":"Dataset[[#This Row],[2028/29 From - Spending review Topic 1]]+Dataset[[#This Row],[2028/29 From - Spending review Topic 2]]+Dataset[[#This Row],[2028/29 From - Spending review Topic 3]]+Dataset[[#This Row],[2028/29 From - Spending review Topic 4]]+Dataset[[#This Row],[2028/29 From - Other reallocations]]","v":0},{"$f":"Dataset[[#This Row],[2029/30 From - Spending review Topic 1]]+Dataset[[#This Row],[2029/30 From - Spending review Topic 2]]+Dataset[[#This Row],[2029/30 From - Spending review Topic 3]]+Dataset[[#This Row],[2029/30 From - Spending review Topic 4]]+Dataset[[#This Row],[2029/30 From - Other reallocations]]","v":0},{"$f":"Dataset[[#This Row],[2027/28 To - Spending review Topic 1]]+Dataset[[#This Row],[2027/28 To - Spending review Topic 2]]+Dataset[[#This Row],[2027/28 To - Spending review Topic 3]]+Dataset[[#This Row],[2027/28 To - Spending review Topic 4]]+Dataset[[#This Row],[2027/28 To - Other reallocations]]","v":0},{"$f":"Dataset[[#This Row],[2028/29 To - Spending review Topic 1]]+Dataset[[#This Row],[2028/29 To - Spending review Topic 2]]+Dataset[[#This Row],[2028/29 To - Spending review Topic 3]]+Dataset[[#This Row],[2028/29 To - Spending review Topic 4]]+Dataset[[#This Row],[2028/29 To - Other reallocations]]","v":0},{"$f":"Dataset[[#This Row],[2029/30 To - Spending review Topic 1]]+Dataset[[#This Row],[2029/30 To - Spending review Topic 2]]+Dataset[[#This Row],[2029/30 To - Spending review Topic 3]]+Dataset[[#This Row],[2029/30 To - Spending review Topic 4]]+Dataset[[#This Row],[2029/30 To - Other reallocations]]","v":0},{"$f":"Dataset[[#This Row],[2027/28 Targeted savings]]+Dataset[[#This Row],[2027/28 From - Total]]","v":0},{"$f":"Dataset[[#This Row],[2028/29 Targeted savings]]+Dataset[[#This Row],[2028/29 From - Total]]","v":0},{"$f":"Dataset[[#This Row],[2029/30 Targeted savings]]+Dataset[[#This Row],[2029/30 From - Total]]","v":0},{"$f":"Dataset[[#This Row],[2026/27 Targeted savings]]","v":0},{"$f":"SUM(Dataset[[#This Row],[2027/28 Targeted savings]],Dataset[[#This Row],[2027/28 From - Total]],Dataset[[#This Row],[2027/28 To - Total]])","v":0},{"$f":"SUM(Dataset[[#This Row],[2028/29 Targeted savings]],Dataset[[#This Row],[2028/29 From - Total]],Dataset[[#This Row],[2028/29 To - Total]])","v":0},{"$f":"SUM(Dataset[[#This Row],[2029/30 Targeted savings]],Dataset[[#This Row],[2029/30 From - Total]],Dataset[[#This Row],[2029/30 To - Total]])","v":0},{"$f":"Dataset[[#This Row],[2026/27 Baseline]]+Dataset[[#This Row],[2026/27 Total change]]","v":0},{"$f":"Dataset[[#This Row],[2027/28 Baseline]]+Dataset[[#This Row],[2027/28 Total change]]","v":0},{"$f":"Dataset[[#This Row],[2028/29 Baseline]]+Dataset[[#This Row],[2028/29 Total change]]","v":0},{"$f":"Dataset[[#This Row],[2029/30 Baseline]]+Dataset[[#This Row],[2029/30 Total change]]","v":0}]
["NAT|Non-transfer item","30|Consultants: Business and advisory services","2027_28","MTEC2027",30,1,6,32774,254,"30","01","06","032774","000254","30|01|06|000254","01","01","02","11","11","01|01|02|11|11","National","Communications and Digital Technologies","Administration","Office Accommodation","Non-transfer item","Current","Current payments","Goods and services","Consultants: Business and advisory services","Consultants: Business and advisory services","Economic development","Economic regulation and infrastructure","NAT",0,0,0,0,0,0,0,0,0,0,0,null,null,null,null,null,null,null,null,null,null,null,null,null,null,null,null,null,null,null,null,null,null,null,null,null,null,null,null,null,null,null,null,null,null,{"$f":"Dataset[[#This Row],[2027/28 From - Spending review Topic 1]]+Dataset[[#This Row],[2027/28 From - Spending review Topic 2]]+Dataset[[#This Row],[2027/28 From - Spending review Topic 3]]+Dataset[[#This Row],[2027/28 From - Spending review Topic 4]]+Dataset[[#This Row],[2027/28 From - Other reallocations]]","v":0},{"$f":"Dataset[[#This Row],[2028/29 From - Spending review Topic 1]]+Dataset[[#This Row],[2028/29 From - Spending review Topic 2]]+Dataset[[#This Row],[2028/29 From - Spending review Topic 3]]+Dataset[[#This Row],[2028/29 From - Spending review Topic 4]]+Dataset[[#This Row],[2028/29 From - Other reallocations]]","v":0},{"$f":"Dataset[[#This Row],[2029/30 From - Spending review Topic 1]]+Dataset[[#This Row],[2029/30 From - Spending review Topic 2]]+Dataset[[#This Row],[2029/30 From - Spending review Topic 3]]+Dataset[[#This Row],[2029/30 From - Spending review Topic 4]]+Dataset[[#This Row],[2029/30 From - Other reallocations]]","v":0},{"$f":"Dataset[[#This Row],[2027/28 To - Spending review Topic 1]]+Dataset[[#This Row],[2027/28 To - Spending review Topic 2]]+Dataset[[#This Row],[2027/28 To - Spending review Topic 3]]+Dataset[[#This Row],[2027/28 To - Spending review Topic 4]]+Dataset[[#This Row],[2027/28 To - Other reallocations]]","v":0},{"$f":"Dataset[[#This Row],[2028/29 To - Spending review Topic 1]]+Dataset[[#This Row],[2028/29 To - Spending review Topic 2]]+Dataset[[#This Row],[2028/29 To - Spending review Topic 3]]+Dataset[[#This Row],[2028/29 To - Spending review Topic 4]]+Dataset[[#This Row],[2028/29 To - Other reallocations]]","v":0},{"$f":"Dataset[[#This Row],[2029/30 To - Spending review Topic 1]]+Dataset[[#This Row],[2029/30 To - Spending review Topic 2]]+Dataset[[#This Row],[2029/30 To - Spending review Topic 3]]+Dataset[[#This Row],[2029/30 To - Spending review Topic 4]]+Dataset[[#This Row],[2029/30 To - Other reallocations]]","v":0},{"$f":"Dataset[[#This Row],[2027/28 Targeted savings]]+Dataset[[#This Row],[2027/28 From - Total]]","v":0},{"$f":"Dataset[[#This Row],[2028/29 Targeted savings]]+Dataset[[#This Row],[2028/29 From - Total]]","v":0},{"$f":"Dataset[[#This Row],[2029/30 Targeted savings]]+Dataset[[#This Row],[2029/30 From - Total]]","v":0},{"$f":"Dataset[[#This Row],[2026/27 Targeted savings]]","v":0},{"$f":"SUM(Dataset[[#This Row],[2027/28 Targeted savings]],Dataset[[#This Row],[2027/28 From - Total]],Dataset[[#This Row],[2027/28 To - Total]])","v":0},{"$f":"SUM(Dataset[[#This Row],[2028/29 Targeted savings]],Dataset[[#This Row],[2028/29 From - Total]],Dataset[[#This Row],[2028/29 To - Total]])","v":0},{"$f":"SUM(Dataset[[#This Row],[2029/30 Targeted savings]],Dataset[[#This Row],[2029/30 From - Total]],Dataset[[#This Row],[2029/30 To - Total]])","v":0},{"$f":"Dataset[[#This Row],[2026/27 Baseline]]+Dataset[[#This Row],[2026/27 Total change]]","v":0},{"$f":"Dataset[[#This Row],[2027/28 Baseline]]+Dataset[[#This Row],[2027/28 Total change]]","v":0},{"$f":"Dataset[[#This Row],[2028/29 Baseline]]+Dataset[[#This Row],[2028/29 Total change]]","v":0},{"$f":"Dataset[[#This Row],[2029/30 Baseline]]+Dataset[[#This Row],[2029/30 Total change]]","v":0}]
["NAT|Non-transfer item","30|Infrastructure and planning services","2027_28","MTEC2027",30,1,6,32775,255,"30","01","06","032775","000255","30|01|06|000255","01","01","02","12","12","01|01|02|12|12","National","Communications and Digital Technologies","Administration","Office Accommodation","Non-transfer item","Current","Current payments","Goods and services","Infrastructure and planning services","Infrastructure and planning services","Economic development","Economic regulation and infrastructure","NAT",0,0,0,0,0,0,0,0,0,0,0,null,null,null,null,null,null,null,null,null,null,null,null,null,null,null,null,null,null,null,null,null,null,null,null,null,null,null,null,null,null,null,null,null,null,{"$f":"Dataset[[#This Row],[2027/28 From - Spending review Topic 1]]+Dataset[[#This Row],[2027/28 From - Spending review Topic 2]]+Dataset[[#This Row],[2027/28 From - Spending review Topic 3]]+Dataset[[#This Row],[2027/28 From - Spending review Topic 4]]+Dataset[[#This Row],[2027/28 From - Other reallocations]]","v":0},{"$f":"Dataset[[#This Row],[2028/29 From - Spending review Topic 1]]+Dataset[[#This Row],[2028/29 From - Spending review Topic 2]]+Dataset[[#This Row],[2028/29 From - Spending review Topic 3]]+Dataset[[#This Row],[2028/29 From - Spending review Topic 4]]+Dataset[[#This Row],[2028/29 From - Other reallocations]]","v":0},{"$f":"Dataset[[#This Row],[2029/30 From - Spending review Topic 1]]+Dataset[[#This Row],[2029/30 From - Spending review Topic 2]]+Dataset[[#This Row],[2029/30 From - Spending review Topic 3]]+Dataset[[#This Row],[2029/30 From - Spending review Topic 4]]+Dataset[[#This Row],[2029/30 From - Other reallocations]]","v":0},{"$f":"Dataset[[#This Row],[2027/28 To - Spending review Topic 1]]+Dataset[[#This Row],[2027/28 To - Spending review Topic 2]]+Dataset[[#This Row],[2027/28 To - Spending review Topic 3]]+Dataset[[#This Row],[2027/28 To - Spending review Topic 4]]+Dataset[[#This Row],[2027/28 To - Other reallocations]]","v":0},{"$f":"Dataset[[#This Row],[2028/29 To - Spending review Topic 1]]+Dataset[[#This Row],[2028/29 To - Spending review Topic 2]]+Dataset[[#This Row],[2028/29 To - Spending review Topic 3]]+Dataset[[#This Row],[2028/29 To - Spending review Topic 4]]+Dataset[[#This Row],[2028/29 To - Other reallocations]]","v":0},{"$f":"Dataset[[#This Row],[2029/30 To - Spending review Topic 1]]+Dataset[[#This Row],[2029/30 To - Spending review Topic 2]]+Dataset[[#This Row],[2029/30 To - Spending review Topic 3]]+Dataset[[#This Row],[2029/30 To - Spending review Topic 4]]+Dataset[[#This Row],[2029/30 To - Other reallocations]]","v":0},{"$f":"Dataset[[#This Row],[2027/28 Targeted savings]]+Dataset[[#This Row],[2027/28 From - Total]]","v":0},{"$f":"Dataset[[#This Row],[2028/29 Targeted savings]]+Dataset[[#This Row],[2028/29 From - Total]]","v":0},{"$f":"Dataset[[#This Row],[2029/30 Targeted savings]]+Dataset[[#This Row],[2029/30 From - Total]]","v":0},{"$f":"Dataset[[#This Row],[2026/27 Targeted savings]]","v":0},{"$f":"SUM(Dataset[[#This Row],[2027/28 Targeted savings]],Dataset[[#This Row],[2027/28 From - Total]],Dataset[[#This Row],[2027/28 To - Total]])","v":0},{"$f":"SUM(Dataset[[#This Row],[2028/29 Targeted savings]],Dataset[[#This Row],[2028/29 From - Total]],Dataset[[#This Row],[2028/29 To - Total]])","v":0},{"$f":"SUM(Dataset[[#This Row],[2029/30 Targeted savings]],Dataset[[#This Row],[2029/30 From - Total]],Dataset[[#This Row],[2029/30 To - Total]])","v":0},{"$f":"Dataset[[#This Row],[2026/27 Baseline]]+Dataset[[#This Row],[2026/27 Total change]]","v":0},{"$f":"Dataset[[#This Row],[2027/28 Baseline]]+Dataset[[#This Row],[2027/28 Total change]]","v":0},{"$f":"Dataset[[#This Row],[2028/29 Baseline]]+Dataset[[#This Row],[2028/29 Total change]]","v":0},{"$f":"Dataset[[#This Row],[2029/30 Baseline]]+Dataset[[#This Row],[2029/30 Total change]]","v":0}]
["NAT|Non-transfer item","30|Laboratory services","2027_28","MTEC2027",30,1,6,32776,256,"30","01","06","032776","000256","30|01|06|000256","01","01","02","13","13","01|01|02|13|13","National","Communications and Digital Technologies","Administration","Office Accommodation","Non-transfer item","Current","Current payments","Goods and services","Laboratory services","Laboratory services","Economic development","Economic regulation and infrastructure","NAT",0,0,0,0,0,0,0,0,0,0,0,null,null,null,null,null,null,null,null,null,null,null,null,null,null,null,null,null,null,null,null,null,null,null,null,null,null,null,null,null,null,null,null,null,null,{"$f":"Dataset[[#This Row],[2027/28 From - Spending review Topic 1]]+Dataset[[#This Row],[2027/28 From - Spending review Topic 2]]+Dataset[[#This Row],[2027/28 From - Spending review Topic 3]]+Dataset[[#This Row],[2027/28 From - Spending review Topic 4]]+Dataset[[#This Row],[2027/28 From - Other reallocations]]","v":0},{"$f":"Dataset[[#This Row],[2028/29 From - Spending review Topic 1]]+Dataset[[#This Row],[2028/29 From - Spending review Topic 2]]+Dataset[[#This Row],[2028/29 From - Spending review Topic 3]]+Dataset[[#This Row],[2028/29 From - Spending review Topic 4]]+Dataset[[#This Row],[2028/29 From - Other reallocations]]","v":0},{"$f":"Dataset[[#This Row],[2029/30 From - Spending review Topic 1]]+Dataset[[#This Row],[2029/30 From - Spending review Topic 2]]+Dataset[[#This Row],[2029/30 From - Spending review Topic 3]]+Dataset[[#This Row],[2029/30 From - Spending review Topic 4]]+Dataset[[#This Row],[2029/30 From - Other reallocations]]","v":0},{"$f":"Dataset[[#This Row],[2027/28 To - Spending review Topic 1]]+Dataset[[#This Row],[2027/28 To - Spending review Topic 2]]+Dataset[[#This Row],[2027/28 To - Spending review Topic 3]]+Dataset[[#This Row],[2027/28 To - Spending review Topic 4]]+Dataset[[#This Row],[2027/28 To - Other reallocations]]","v":0},{"$f":"Dataset[[#This Row],[2028/29 To - Spending review Topic 1]]+Dataset[[#This Row],[2028/29 To - Spending review Topic 2]]+Dataset[[#This Row],[2028/29 To - Spending review Topic 3]]+Dataset[[#This Row],[2028/29 To - Spending review Topic 4]]+Dataset[[#This Row],[2028/29 To - Other reallocations]]","v":0},{"$f":"Dataset[[#This Row],[2029/30 To - Spending review Topic 1]]+Dataset[[#This Row],[2029/30 To - Spending review Topic 2]]+Dataset[[#This Row],[2029/30 To - Spending review Topic 3]]+Dataset[[#This Row],[2029/30 To - Spending review Topic 4]]+Dataset[[#This Row],[2029/30 To - Other reallocations]]","v":0},{"$f":"Dataset[[#This Row],[2027/28 Targeted savings]]+Dataset[[#This Row],[2027/28 From - Total]]","v":0},{"$f":"Dataset[[#This Row],[2028/29 Targeted savings]]+Dataset[[#This Row],[2028/29 From - Total]]","v":0},{"$f":"Dataset[[#This Row],[2029/30 Targeted savings]]+Dataset[[#This Row],[2029/30 From - Total]]","v":0},{"$f":"Dataset[[#This Row],[2026/27 Targeted savings]]","v":0},{"$f":"SUM(Dataset[[#This Row],[2027/28 Targeted savings]],Dataset[[#This Row],[2027/28 From - Total]],Dataset[[#This Row],[2027/28 To - Total]])","v":0},{"$f":"SUM(Dataset[[#This Row],[2028/29 Targeted savings]],Dataset[[#This Row],[2028/29 From - Total]],Dataset[[#This Row],[2028/29 To - Total]])","v":0},{"$f":"SUM(Dataset[[#This Row],[2029/30 Targeted savings]],Dataset[[#This Row],[2029/30 From - Total]],Dataset[[#This Row],[2029/30 To - Total]])","v":0},{"$f":"Dataset[[#This Row],[2026/27 Baseline]]+Dataset[[#This Row],[2026/27 Total change]]","v":0},{"$f":"Dataset[[#This Row],[2027/28 Baseline]]+Dataset[[#This Row],[2027/28 Total change]]","v":0},{"$f":"Dataset[[#This Row],[2028/29 Baseline]]+Dataset[[#This Row],[2028/29 Total change]]","v":0},{"$f":"Dataset[[#This Row],[2029/30 Baseline]]+Dataset[[#This Row],[2029/30 Total change]]","v":0}]
["NAT|Non-transfer item","30|Legal services (G&S)","2027_28","MTEC2027",30,1,6,32777,257,"30","01","06","032777","000257","30|01|06|000257","01","01","02","14","14","01|01|02|14|14","National","Communications and Digital Technologies","Administration","Office Accommodation","Non-transfer item","Current","Current payments","Goods and services","Legal services (G&S)","Legal services (G&S)","Economic development","Economic regulation and infrastructure","NAT",0,0,0,0,0,0,0,0,0,0,0,null,null,null,null,null,null,null,null,null,null,null,null,null,null,null,null,null,null,null,null,null,null,null,null,null,null,null,null,null,null,null,null,null,null,{"$f":"Dataset[[#This Row],[2027/28 From - Spending review Topic 1]]+Dataset[[#This Row],[2027/28 From - Spending review Topic 2]]+Dataset[[#This Row],[2027/28 From - Spending review Topic 3]]+Dataset[[#This Row],[2027/28 From - Spending review Topic 4]]+Dataset[[#This Row],[2027/28 From - Other reallocations]]","v":0},{"$f":"Dataset[[#This Row],[2028/29 From - Spending review Topic 1]]+Dataset[[#This Row],[2028/29 From - Spending review Topic 2]]+Dataset[[#This Row],[2028/29 From - Spending review Topic 3]]+Dataset[[#This Row],[2028/29 From - Spending review Topic 4]]+Dataset[[#This Row],[2028/29 From - Other reallocations]]","v":0},{"$f":"Dataset[[#This Row],[2029/30 From - Spending review Topic 1]]+Dataset[[#This Row],[2029/30 From - Spending review Topic 2]]+Dataset[[#This Row],[2029/30 From - Spending review Topic 3]]+Dataset[[#This Row],[2029/30 From - Spending review Topic 4]]+Dataset[[#This Row],[2029/30 From - Other reallocations]]","v":0},{"$f":"Dataset[[#This Row],[2027/28 To - Spending review Topic 1]]+Dataset[[#This Row],[2027/28 To - Spending review Topic 2]]+Dataset[[#This Row],[2027/28 To - Spending review Topic 3]]+Dataset[[#This Row],[2027/28 To - Spending review Topic 4]]+Dataset[[#This Row],[2027/28 To - Other reallocations]]","v":0},{"$f":"Dataset[[#This Row],[2028/29 To - Spending review Topic 1]]+Dataset[[#This Row],[2028/29 To - Spending review Topic 2]]+Dataset[[#This Row],[2028/29 To - Spending review Topic 3]]+Dataset[[#This Row],[2028/29 To - Spending review Topic 4]]+Dataset[[#This Row],[2028/29 To - Other reallocations]]","v":0},{"$f":"Dataset[[#This Row],[2029/30 To - Spending review Topic 1]]+Dataset[[#This Row],[2029/30 To - Spending review Topic 2]]+Dataset[[#This Row],[2029/30 To - Spending review Topic 3]]+Dataset[[#This Row],[2029/30 To - Spending review Topic 4]]+Dataset[[#This Row],[2029/30 To - Other reallocations]]","v":0},{"$f":"Dataset[[#This Row],[2027/28 Targeted savings]]+Dataset[[#This Row],[2027/28 From - Total]]","v":0},{"$f":"Dataset[[#This Row],[2028/29 Targeted savings]]+Dataset[[#This Row],[2028/29 From - Total]]","v":0},{"$f":"Dataset[[#This Row],[2029/30 Targeted savings]]+Dataset[[#This Row],[2029/30 From - Total]]","v":0},{"$f":"Dataset[[#This Row],[2026/27 Targeted savings]]","v":0},{"$f":"SUM(Dataset[[#This Row],[2027/28 Targeted savings]],Dataset[[#This Row],[2027/28 From - Total]],Dataset[[#This Row],[2027/28 To - Total]])","v":0},{"$f":"SUM(Dataset[[#This Row],[2028/29 Targeted savings]],Dataset[[#This Row],[2028/29 From - Total]],Dataset[[#This Row],[2028/29 To - Total]])","v":0},{"$f":"SUM(Dataset[[#This Row],[2029/30 Targeted savings]],Dataset[[#This Row],[2029/30 From - Total]],Dataset[[#This Row],[2029/30 To - Total]])","v":0},{"$f":"Dataset[[#This Row],[2026/27 Baseline]]+Dataset[[#This Row],[2026/27 Total change]]","v":0},{"$f":"Dataset[[#This Row],[2027/28 Baseline]]+Dataset[[#This Row],[2027/28 Total change]]","v":0},{"$f":"Dataset[[#This Row],[2028/29 Baseline]]+Dataset[[#This Row],[2028/29 Total change]]","v":0},{"$f":"Dataset[[#This Row],[2029/30 Baseline]]+Dataset[[#This Row],[2029/30 Total change]]","v":0}]
["NAT|Non-transfer item","30|Science and technological services","2027_28","MTEC2027",30,1,6,32778,258,"30","01","06","032778","000258","30|01|06|000258","01","01","02","15","15","01|01|02|15|15","National","Communications and Digital Technologies","Administration","Office Accommodation","Non-transfer item","Current","Current payments","Goods and services","Science and technological services","Science and technological services","Economic development","Economic regulation and infrastructure","NAT",0,0,0,0,0,0,0,0,0,0,0,null,null,null,null,null,null,null,null,null,null,null,null,null,null,null,null,null,null,null,null,null,null,null,null,null,null,null,null,null,null,null,null,null,null,{"$f":"Dataset[[#This Row],[2027/28 From - Spending review Topic 1]]+Dataset[[#This Row],[2027/28 From - Spending review Topic 2]]+Dataset[[#This Row],[2027/28 From - Spending review Topic 3]]+Dataset[[#This Row],[2027/28 From - Spending review Topic 4]]+Dataset[[#This Row],[2027/28 From - Other reallocations]]","v":0},{"$f":"Dataset[[#This Row],[2028/29 From - Spending review Topic 1]]+Dataset[[#This Row],[2028/29 From - Spending review Topic 2]]+Dataset[[#This Row],[2028/29 From - Spending review Topic 3]]+Dataset[[#This Row],[2028/29 From - Spending review Topic 4]]+Dataset[[#This Row],[2028/29 From - Other reallocations]]","v":0},{"$f":"Dataset[[#This Row],[2029/30 From - Spending review Topic 1]]+Dataset[[#This Row],[2029/30 From - Spending review Topic 2]]+Dataset[[#This Row],[2029/30 From - Spending review Topic 3]]+Dataset[[#This Row],[2029/30 From - Spending review Topic 4]]+Dataset[[#This Row],[2029/30 From - Other reallocations]]","v":0},{"$f":"Dataset[[#This Row],[2027/28 To - Spending review Topic 1]]+Dataset[[#This Row],[2027/28 To - Spending review Topic 2]]+Dataset[[#This Row],[2027/28 To - Spending review Topic 3]]+Dataset[[#This Row],[2027/28 To - Spending review Topic 4]]+Dataset[[#This Row],[2027/28 To - Other reallocations]]","v":0},{"$f":"Dataset[[#This Row],[2028/29 To - Spending review Topic 1]]+Dataset[[#This Row],[2028/29 To - Spending review Topic 2]]+Dataset[[#This Row],[2028/29 To - Spending review Topic 3]]+Dataset[[#This Row],[2028/29 To - Spending review Topic 4]]+Dataset[[#This Row],[2028/29 To - Other reallocations]]","v":0},{"$f":"Dataset[[#This Row],[2029/30 To - Spending review Topic 1]]+Dataset[[#This Row],[2029/30 To - Spending review Topic 2]]+Dataset[[#This Row],[2029/30 To - Spending review Topic 3]]+Dataset[[#This Row],[2029/30 To - Spending review Topic 4]]+Dataset[[#This Row],[2029/30 To - Other reallocations]]","v":0},{"$f":"Dataset[[#This Row],[2027/28 Targeted savings]]+Dataset[[#This Row],[2027/28 From - Total]]","v":0},{"$f":"Dataset[[#This Row],[2028/29 Targeted savings]]+Dataset[[#This Row],[2028/29 From - Total]]","v":0},{"$f":"Dataset[[#This Row],[2029/30 Targeted savings]]+Dataset[[#This Row],[2029/30 From - Total]]","v":0},{"$f":"Dataset[[#This Row],[2026/27 Targeted savings]]","v":0},{"$f":"SUM(Dataset[[#This Row],[2027/28 Targeted savings]],Dataset[[#This Row],[2027/28 From - Total]],Dataset[[#This Row],[2027/28 To - Total]])","v":0},{"$f":"SUM(Dataset[[#This Row],[2028/29 Targeted savings]],Dataset[[#This Row],[2028/29 From - Total]],Dataset[[#This Row],[2028/29 To - Total]])","v":0},{"$f":"SUM(Dataset[[#This Row],[2029/30 Targeted savings]],Dataset[[#This Row],[2029/30 From - Total]],Dataset[[#This Row],[2029/30 To - Total]])","v":0},{"$f":"Dataset[[#This Row],[2026/27 Baseline]]+Dataset[[#This Row],[2026/27 Total change]]","v":0},{"$f":"Dataset[[#This Row],[2027/28 Baseline]]+Dataset[[#This Row],[2027/28 Total change]]","v":0},{"$f":"Dataset[[#This Row],[2028/29 Baseline]]+Dataset[[#This Row],[2028/29 Total change]]","v":0},{"$f":"Dataset[[#This Row],[2029/30 Baseline]]+Dataset[[#This Row],[2029/30 Total change]]","v":0}]
["NAT|Non-transfer item","30|Contractors","2027_28","MTEC2027",30,1,6,32779,259,"30","01","06","032779","000259","30|01|06|000259","01","01","02","16","16","01|01|02|16|16","National","Communications and Digital Technologies","Administration","Office Accommodation","Non-transfer item","Current","Current payments","Goods and services","Contractors","Contractors","Economic development","Economic regulation and infrastructure","NAT",0,0,0,0,0,0,0,0,0,0,0,null,null,null,null,null,null,null,null,null,null,null,null,null,null,null,null,null,null,null,null,null,null,null,null,null,null,null,null,null,null,null,null,null,null,{"$f":"Dataset[[#This Row],[2027/28 From - Spending review Topic 1]]+Dataset[[#This Row],[2027/28 From - Spending review Topic 2]]+Dataset[[#This Row],[2027/28 From - Spending review Topic 3]]+Dataset[[#This Row],[2027/28 From - Spending review Topic 4]]+Dataset[[#This Row],[2027/28 From - Other reallocations]]","v":0},{"$f":"Dataset[[#This Row],[2028/29 From - Spending review Topic 1]]+Dataset[[#This Row],[2028/29 From - Spending review Topic 2]]+Dataset[[#This Row],[2028/29 From - Spending review Topic 3]]+Dataset[[#This Row],[2028/29 From - Spending review Topic 4]]+Dataset[[#This Row],[2028/29 From - Other reallocations]]","v":0},{"$f":"Dataset[[#This Row],[2029/30 From - Spending review Topic 1]]+Dataset[[#This Row],[2029/30 From - Spending review Topic 2]]+Dataset[[#This Row],[2029/30 From - Spending review Topic 3]]+Dataset[[#This Row],[2029/30 From - Spending review Topic 4]]+Dataset[[#This Row],[2029/30 From - Other reallocations]]","v":0},{"$f":"Dataset[[#This Row],[2027/28 To - Spending review Topic 1]]+Dataset[[#This Row],[2027/28 To - Spending review Topic 2]]+Dataset[[#This Row],[2027/28 To - Spending review Topic 3]]+Dataset[[#This Row],[2027/28 To - Spending review Topic 4]]+Dataset[[#This Row],[2027/28 To - Other reallocations]]","v":0},{"$f":"Dataset[[#This Row],[2028/29 To - Spending review Topic 1]]+Dataset[[#This Row],[2028/29 To - Spending review Topic 2]]+Dataset[[#This Row],[2028/29 To - Spending review Topic 3]]+Dataset[[#This Row],[2028/29 To - Spending review Topic 4]]+Dataset[[#This Row],[2028/29 To - Other reallocations]]","v":0},{"$f":"Dataset[[#This Row],[2029/30 To - Spending review Topic 1]]+Dataset[[#This Row],[2029/30 To - Spending review Topic 2]]+Dataset[[#This Row],[2029/30 To - Spending review Topic 3]]+Dataset[[#This Row],[2029/30 To - Spending review Topic 4]]+Dataset[[#This Row],[2029/30 To - Other reallocations]]","v":0},{"$f":"Dataset[[#This Row],[2027/28 Targeted savings]]+Dataset[[#This Row],[2027/28 From - Total]]","v":0},{"$f":"Dataset[[#This Row],[2028/29 Targeted savings]]+Dataset[[#This Row],[2028/29 From - Total]]","v":0},{"$f":"Dataset[[#This Row],[2029/30 Targeted savings]]+Dataset[[#This Row],[2029/30 From - Total]]","v":0},{"$f":"Dataset[[#This Row],[2026/27 Targeted savings]]","v":0},{"$f":"SUM(Dataset[[#This Row],[2027/28 Targeted savings]],Dataset[[#This Row],[2027/28 From - Total]],Dataset[[#This Row],[2027/28 To - Total]])","v":0},{"$f":"SUM(Dataset[[#This Row],[2028/29 Targeted savings]],Dataset[[#This Row],[2028/29 From - Total]],Dataset[[#This Row],[2028/29 To - Total]])","v":0},{"$f":"SUM(Dataset[[#This Row],[2029/30 Targeted savings]],Dataset[[#This Row],[2029/30 From - Total]],Dataset[[#This Row],[2029/30 To - Total]])","v":0},{"$f":"Dataset[[#This Row],[2026/27 Baseline]]+Dataset[[#This Row],[2026/27 Total change]]","v":0},{"$f":"Dataset[[#This Row],[2027/28 Baseline]]+Dataset[[#This Row],[2027/28 Total change]]","v":0},{"$f":"Dataset[[#This Row],[2028/29 Baseline]]+Dataset[[#This Row],[2028/29 Total change]]","v":0},{"$f":"Dataset[[#This Row],[2029/30 Baseline]]+Dataset[[#This Row],[2029/30 Total change]]","v":0}]
["NAT|Non-transfer item","30|Agency and support/outsourced services","2027_28","MTEC2027",30,1,6,32780,260,"30","01","06","032780","000260","30|01|06|000260","01","01","02","17","17","01|01|02|17|17","National","Communications and Digital Technologies","Administration","Office Accommodation","Non-transfer item","Current","Current payments","Goods and services","Agency and support/outsourced services","Agency and support/outsourced services","Economic development","Economic regulation and infrastructure","NAT",0,0,0,0,0,0,0,0,0,0,0,null,null,null,null,null,null,null,null,null,null,null,null,null,null,null,null,null,null,null,null,null,null,null,null,null,null,null,null,null,null,null,null,null,null,{"$f":"Dataset[[#This Row],[2027/28 From - Spending review Topic 1]]+Dataset[[#This Row],[2027/28 From - Spending review Topic 2]]+Dataset[[#This Row],[2027/28 From - Spending review Topic 3]]+Dataset[[#This Row],[2027/28 From - Spending review Topic 4]]+Dataset[[#This Row],[2027/28 From - Other reallocations]]","v":0},{"$f":"Dataset[[#This Row],[2028/29 From - Spending review Topic 1]]+Dataset[[#This Row],[2028/29 From - Spending review Topic 2]]+Dataset[[#This Row],[2028/29 From - Spending review Topic 3]]+Dataset[[#This Row],[2028/29 From - Spending review Topic 4]]+Dataset[[#This Row],[2028/29 From - Other reallocations]]","v":0},{"$f":"Dataset[[#This Row],[2029/30 From - Spending review Topic 1]]+Dataset[[#This Row],[2029/30 From - Spending review Topic 2]]+Dataset[[#This Row],[2029/30 From - Spending review Topic 3]]+Dataset[[#This Row],[2029/30 From - Spending review Topic 4]]+Dataset[[#This Row],[2029/30 From - Other reallocations]]","v":0},{"$f":"Dataset[[#This Row],[2027/28 To - Spending review Topic 1]]+Dataset[[#This Row],[2027/28 To - Spending review Topic 2]]+Dataset[[#This Row],[2027/28 To - Spending review Topic 3]]+Dataset[[#This Row],[2027/28 To - Spending review Topic 4]]+Dataset[[#This Row],[2027/28 To - Other reallocations]]","v":0},{"$f":"Dataset[[#This Row],[2028/29 To - Spending review Topic 1]]+Dataset[[#This Row],[2028/29 To - Spending review Topic 2]]+Dataset[[#This Row],[2028/29 To - Spending review Topic 3]]+Dataset[[#This Row],[2028/29 To - Spending review Topic 4]]+Dataset[[#This Row],[2028/29 To - Other reallocations]]","v":0},{"$f":"Dataset[[#This Row],[2029/30 To - Spending review Topic 1]]+Dataset[[#This Row],[2029/30 To - Spending review Topic 2]]+Dataset[[#This Row],[2029/30 To - Spending review Topic 3]]+Dataset[[#This Row],[2029/30 To - Spending review Topic 4]]+Dataset[[#This Row],[2029/30 To - Other reallocations]]","v":0},{"$f":"Dataset[[#This Row],[2027/28 Targeted savings]]+Dataset[[#This Row],[2027/28 From - Total]]","v":0},{"$f":"Dataset[[#This Row],[2028/29 Targeted savings]]+Dataset[[#This Row],[2028/29 From - Total]]","v":0},{"$f":"Dataset[[#This Row],[2029/30 Targeted savings]]+Dataset[[#This Row],[2029/30 From - Total]]","v":0},{"$f":"Dataset[[#This Row],[2026/27 Targeted savings]]","v":0},{"$f":"SUM(Dataset[[#This Row],[2027/28 Targeted savings]],Dataset[[#This Row],[2027/28 From - Total]],Dataset[[#This Row],[2027/28 To - Total]])","v":0},{"$f":"SUM(Dataset[[#This Row],[2028/29 Targeted savings]],Dataset[[#This Row],[2028/29 From - Total]],Dataset[[#This Row],[2028/29 To - Total]])","v":0},{"$f":"SUM(Dataset[[#This Row],[2029/30 Targeted savings]],Dataset[[#This Row],[2029/30 From - Total]],Dataset[[#This Row],[2029/30 To - Total]])","v":0},{"$f":"Dataset[[#This Row],[2026/27 Baseline]]+Dataset[[#This Row],[2026/27 Total change]]","v":0},{"$f":"Dataset[[#This Row],[2027/28 Baseline]]+Dataset[[#This Row],[2027/28 Total change]]","v":0},{"$f":"Dataset[[#This Row],[2028/29 Baseline]]+Dataset[[#This Row],[2028/29 Total change]]","v":0},{"$f":"Dataset[[#This Row],[2029/30 Baseline]]+Dataset[[#This Row],[2029/30 Total change]]","v":0}]
["NAT|Non-transfer item","30|Entertainment","2027_28","MTEC2027",30,1,6,32781,261,"30","01","06","032781","000261","30|01|06|000261","01","01","02","18","18","01|01|02|18|18","National","Communications and Digital Technologies","Administration","Office Accommodation","Non-transfer item","Current","Current payments","Goods and services","Entertainment","Entertainment","Economic development","Economic regulation and infrastructure","NAT",0,0,0,0,0,0,0,0,0,0,0,null,null,null,null,null,null,null,null,null,null,null,null,null,null,null,null,null,null,null,null,null,null,null,null,null,null,null,null,null,null,null,null,null,null,{"$f":"Dataset[[#This Row],[2027/28 From - Spending review Topic 1]]+Dataset[[#This Row],[2027/28 From - Spending review Topic 2]]+Dataset[[#This Row],[2027/28 From - Spending review Topic 3]]+Dataset[[#This Row],[2027/28 From - Spending review Topic 4]]+Dataset[[#This Row],[2027/28 From - Other reallocations]]","v":0},{"$f":"Dataset[[#This Row],[2028/29 From - Spending review Topic 1]]+Dataset[[#This Row],[2028/29 From - Spending review Topic 2]]+Dataset[[#This Row],[2028/29 From - Spending review Topic 3]]+Dataset[[#This Row],[2028/29 From - Spending review Topic 4]]+Dataset[[#This Row],[2028/29 From - Other reallocations]]","v":0},{"$f":"Dataset[[#This Row],[2029/30 From - Spending review Topic 1]]+Dataset[[#This Row],[2029/30 From - Spending review Topic 2]]+Dataset[[#This Row],[2029/30 From - Spending review Topic 3]]+Dataset[[#This Row],[2029/30 From - Spending review Topic 4]]+Dataset[[#This Row],[2029/30 From - Other reallocations]]","v":0},{"$f":"Dataset[[#This Row],[2027/28 To - Spending review Topic 1]]+Dataset[[#This Row],[2027/28 To - Spending review Topic 2]]+Dataset[[#This Row],[2027/28 To - Spending review Topic 3]]+Dataset[[#This Row],[2027/28 To - Spending review Topic 4]]+Dataset[[#This Row],[2027/28 To - Other reallocations]]","v":0},{"$f":"Dataset[[#This Row],[2028/29 To - Spending review Topic 1]]+Dataset[[#This Row],[2028/29 To - Spending review Topic 2]]+Dataset[[#This Row],[2028/29 To - Spending review Topic 3]]+Dataset[[#This Row],[2028/29 To - Spending review Topic 4]]+Dataset[[#This Row],[2028/29 To - Other reallocations]]","v":0},{"$f":"Dataset[[#This Row],[2029/30 To - Spending review Topic 1]]+Dataset[[#This Row],[2029/30 To - Spending review Topic 2]]+Dataset[[#This Row],[2029/30 To - Spending review Topic 3]]+Dataset[[#This Row],[2029/30 To - Spending review Topic 4]]+Dataset[[#This Row],[2029/30 To - Other reallocations]]","v":0},{"$f":"Dataset[[#This Row],[2027/28 Targeted savings]]+Dataset[[#This Row],[2027/28 From - Total]]","v":0},{"$f":"Dataset[[#This Row],[2028/29 Targeted savings]]+Dataset[[#This Row],[2028/29 From - Total]]","v":0},{"$f":"Dataset[[#This Row],[2029/30 Targeted savings]]+Dataset[[#This Row],[2029/30 From - Total]]","v":0},{"$f":"Dataset[[#This Row],[2026/27 Targeted savings]]","v":0},{"$f":"SUM(Dataset[[#This Row],[2027/28 Targeted savings]],Dataset[[#This Row],[2027/28 From - Total]],Dataset[[#This Row],[2027/28 To - Total]])","v":0},{"$f":"SUM(Dataset[[#This Row],[2028/29 Targeted savings]],Dataset[[#This Row],[2028/29 From - Total]],Dataset[[#This Row],[2028/29 To - Total]])","v":0},{"$f":"SUM(Dataset[[#This Row],[2029/30 Targeted savings]],Dataset[[#This Row],[2029/30 From - Total]],Dataset[[#This Row],[2029/30 To - Total]])","v":0},{"$f":"Dataset[[#This Row],[2026/27 Baseline]]+Dataset[[#This Row],[2026/27 Total change]]","v":0},{"$f":"Dataset[[#This Row],[2027/28 Baseline]]+Dataset[[#This Row],[2027/28 Total change]]","v":0},{"$f":"Dataset[[#This Row],[2028/29 Baseline]]+Dataset[[#This Row],[2028/29 Total change]]","v":0},{"$f":"Dataset[[#This Row],[2029/30 Baseline]]+Dataset[[#This Row],[2029/30 Total change]]","v":0}]
["NAT|Non-transfer item","30|Fleet services (including government motor transport)","2027_28","MTEC2027",30,1,6,32782,262,"30","01","06","032782","000262","30|01|06|000262","01","01","02","19","19","01|01|02|19|19","National","Communications and Digital Technologies","Administration","Office Accommodation","Non-transfer item","Current","Current payments","Goods and services","Fleet services (including government motor transport)","Fleet services (including government motor transport)","Economic development","Economic regulation and infrastructure","NAT",0,0,0,0,0,0,0,0,0,0,0,null,null,null,null,null,null,null,null,null,null,null,null,null,null,null,null,null,null,null,null,null,null,null,null,null,null,null,null,null,null,null,null,null,null,{"$f":"Dataset[[#This Row],[2027/28 From - Spending review Topic 1]]+Dataset[[#This Row],[2027/28 From - Spending review Topic 2]]+Dataset[[#This Row],[2027/28 From - Spending review Topic 3]]+Dataset[[#This Row],[2027/28 From - Spending review Topic 4]]+Dataset[[#This Row],[2027/28 From - Other reallocations]]","v":0},{"$f":"Dataset[[#This Row],[2028/29 From - Spending review Topic 1]]+Dataset[[#This Row],[2028/29 From - Spending review Topic 2]]+Dataset[[#This Row],[2028/29 From - Spending review Topic 3]]+Dataset[[#This Row],[2028/29 From - Spending review Topic 4]]+Dataset[[#This Row],[2028/29 From - Other reallocations]]","v":0},{"$f":"Dataset[[#This Row],[2029/30 From - Spending review Topic 1]]+Dataset[[#This Row],[2029/30 From - Spending review Topic 2]]+Dataset[[#This Row],[2029/30 From - Spending review Topic 3]]+Dataset[[#This Row],[2029/30 From - Spending review Topic 4]]+Dataset[[#This Row],[2029/30 From - Other reallocations]]","v":0},{"$f":"Dataset[[#This Row],[2027/28 To - Spending review Topic 1]]+Dataset[[#This Row],[2027/28 To - Spending review Topic 2]]+Dataset[[#This Row],[2027/28 To - Spending review Topic 3]]+Dataset[[#This Row],[2027/28 To - Spending review Topic 4]]+Dataset[[#This Row],[2027/28 To - Other reallocations]]","v":0},{"$f":"Dataset[[#This Row],[2028/29 To - Spending review Topic 1]]+Dataset[[#This Row],[2028/29 To - Spending review Topic 2]]+Dataset[[#This Row],[2028/29 To - Spending review Topic 3]]+Dataset[[#This Row],[2028/29 To - Spending review Topic 4]]+Dataset[[#This Row],[2028/29 To - Other reallocations]]","v":0},{"$f":"Dataset[[#This Row],[2029/30 To - Spending review Topic 1]]+Dataset[[#This Row],[2029/30 To - Spending review Topic 2]]+Dataset[[#This Row],[2029/30 To - Spending review Topic 3]]+Dataset[[#This Row],[2029/30 To - Spending review Topic 4]]+Dataset[[#This Row],[2029/30 To - Other reallocations]]","v":0},{"$f":"Dataset[[#This Row],[2027/28 Targeted savings]]+Dataset[[#This Row],[2027/28 From - Total]]","v":0},{"$f":"Dataset[[#This Row],[2028/29 Targeted savings]]+Dataset[[#This Row],[2028/29 From - Total]]","v":0},{"$f":"Dataset[[#This Row],[2029/30 Targeted savings]]+Dataset[[#This Row],[2029/30 From - Total]]","v":0},{"$f":"Dataset[[#This Row],[2026/27 Targeted savings]]","v":0},{"$f":"SUM(Dataset[[#This Row],[2027/28 Targeted savings]],Dataset[[#This Row],[2027/28 From - Total]],Dataset[[#This Row],[2027/28 To - Total]])","v":0},{"$f":"SUM(Dataset[[#This Row],[2028/29 Targeted savings]],Dataset[[#This Row],[2028/29 From - Total]],Dataset[[#This Row],[2028/29 To - Total]])","v":0},{"$f":"SUM(Dataset[[#This Row],[2029/30 Targeted savings]],Dataset[[#This Row],[2029/30 From - Total]],Dataset[[#This Row],[2029/30 To - Total]])","v":0},{"$f":"Dataset[[#This Row],[2026/27 Baseline]]+Dataset[[#This Row],[2026/27 Total change]]","v":0},{"$f":"Dataset[[#This Row],[2027/28 Baseline]]+Dataset[[#This Row],[2027/28 Total change]]","v":0},{"$f":"Dataset[[#This Row],[2028/29 Baseline]]+Dataset[[#This Row],[2028/29 Total change]]","v":0},{"$f":"Dataset[[#This Row],[2029/30 Baseline]]+Dataset[[#This Row],[2029/30 Total change]]","v":0}]
["NAT|Non-transfer item","30|Housing","2027_28","MTEC2027",30,1,6,32783,263,"30","01","06","032783","000263","30|01|06|000263","01","01","02","20","20","01|01|02|20|20","National","Communications and Digital Technologies","Administration","Office Accommodation","Non-transfer item","Current","Current payments","Goods and services","Housing","Housing","Economic development","Economic regulation and infrastructure","NAT",0,0,0,0,0,0,0,0,0,0,0,null,null,null,null,null,null,null,null,null,null,null,null,null,null,null,null,null,null,null,null,null,null,null,null,null,null,null,null,null,null,null,null,null,null,{"$f":"Dataset[[#This Row],[2027/28 From - Spending review Topic 1]]+Dataset[[#This Row],[2027/28 From - Spending review Topic 2]]+Dataset[[#This Row],[2027/28 From - Spending review Topic 3]]+Dataset[[#This Row],[2027/28 From - Spending review Topic 4]]+Dataset[[#This Row],[2027/28 From - Other reallocations]]","v":0},{"$f":"Dataset[[#This Row],[2028/29 From - Spending review Topic 1]]+Dataset[[#This Row],[2028/29 From - Spending review Topic 2]]+Dataset[[#This Row],[2028/29 From - Spending review Topic 3]]+Dataset[[#This Row],[2028/29 From - Spending review Topic 4]]+Dataset[[#This Row],[2028/29 From - Other reallocations]]","v":0},{"$f":"Dataset[[#This Row],[2029/30 From - Spending review Topic 1]]+Dataset[[#This Row],[2029/30 From - Spending review Topic 2]]+Dataset[[#This Row],[2029/30 From - Spending review Topic 3]]+Dataset[[#This Row],[2029/30 From - Spending review Topic 4]]+Dataset[[#This Row],[2029/30 From - Other reallocations]]","v":0},{"$f":"Dataset[[#This Row],[2027/28 To - Spending review Topic 1]]+Dataset[[#This Row],[2027/28 To - Spending review Topic 2]]+Dataset[[#This Row],[2027/28 To - Spending review Topic 3]]+Dataset[[#This Row],[2027/28 To - Spending review Topic 4]]+Dataset[[#This Row],[2027/28 To - Other reallocations]]","v":0},{"$f":"Dataset[[#This Row],[2028/29 To - Spending review Topic 1]]+Dataset[[#This Row],[2028/29 To - Spending review Topic 2]]+Dataset[[#This Row],[2028/29 To - Spending review Topic 3]]+Dataset[[#This Row],[2028/29 To - Spending review Topic 4]]+Dataset[[#This Row],[2028/29 To - Other reallocations]]","v":0},{"$f":"Dataset[[#This Row],[2029/30 To - Spending review Topic 1]]+Dataset[[#This Row],[2029/30 To - Spending review Topic 2]]+Dataset[[#This Row],[2029/30 To - Spending review Topic 3]]+Dataset[[#This Row],[2029/30 To - Spending review Topic 4]]+Dataset[[#This Row],[2029/30 To - Other reallocations]]","v":0},{"$f":"Dataset[[#This Row],[2027/28 Targeted savings]]+Dataset[[#This Row],[2027/28 From - Total]]","v":0},{"$f":"Dataset[[#This Row],[2028/29 Targeted savings]]+Dataset[[#This Row],[2028/29 From - Total]]","v":0},{"$f":"Dataset[[#This Row],[2029/30 Targeted savings]]+Dataset[[#This Row],[2029/30 From - Total]]","v":0},{"$f":"Dataset[[#This Row],[2026/27 Targeted savings]]","v":0},{"$f":"SUM(Dataset[[#This Row],[2027/28 Targeted savings]],Dataset[[#This Row],[2027/28 From - Total]],Dataset[[#This Row],[2027/28 To - Total]])","v":0},{"$f":"SUM(Dataset[[#This Row],[2028/29 Targeted savings]],Dataset[[#This Row],[2028/29 From - Total]],Dataset[[#This Row],[2028/29 To - Total]])","v":0},{"$f":"SUM(Dataset[[#This Row],[2029/30 Targeted savings]],Dataset[[#This Row],[2029/30 From - Total]],Dataset[[#This Row],[2029/30 To - Total]])","v":0},{"$f":"Dataset[[#This Row],[2026/27 Baseline]]+Dataset[[#This Row],[2026/27 Total change]]","v":0},{"$f":"Dataset[[#This Row],[2027/28 Baseline]]+Dataset[[#This Row],[2027/28 Total change]]","v":0},{"$f":"Dataset[[#This Row],[2028/29 Baseline]]+Dataset[[#This Row],[2028/29 Total change]]","v":0},{"$f":"Dataset[[#This Row],[2029/30 Baseline]]+Dataset[[#This Row],[2029/30 Total change]]","v":0}]
["NAT|Non-transfer item","30|Inventory: Clothing material and accessories","2027_28","MTEC2027",30,1,6,32784,264,"30","01","06","032784","000264","30|01|06|000264","01","01","02","21","21","01|01|02|21|21","National","Communications and Digital Technologies","Administration","Office Accommodation","Non-transfer item","Current","Current payments","Goods and services","Inventory: Clothing material and accessories","Inventory: Clothing material and accessories","Economic development","Economic regulation and infrastructure","NAT",0,0,0,0,0,0,0,0,0,0,0,null,null,null,null,null,null,null,null,null,null,null,null,null,null,null,null,null,null,null,null,null,null,null,null,null,null,null,null,null,null,null,null,null,null,{"$f":"Dataset[[#This Row],[2027/28 From - Spending review Topic 1]]+Dataset[[#This Row],[2027/28 From - Spending review Topic 2]]+Dataset[[#This Row],[2027/28 From - Spending review Topic 3]]+Dataset[[#This Row],[2027/28 From - Spending review Topic 4]]+Dataset[[#This Row],[2027/28 From - Other reallocations]]","v":0},{"$f":"Dataset[[#This Row],[2028/29 From - Spending review Topic 1]]+Dataset[[#This Row],[2028/29 From - Spending review Topic 2]]+Dataset[[#This Row],[2028/29 From - Spending review Topic 3]]+Dataset[[#This Row],[2028/29 From - Spending review Topic 4]]+Dataset[[#This Row],[2028/29 From - Other reallocations]]","v":0},{"$f":"Dataset[[#This Row],[2029/30 From - Spending review Topic 1]]+Dataset[[#This Row],[2029/30 From - Spending review Topic 2]]+Dataset[[#This Row],[2029/30 From - Spending review Topic 3]]+Dataset[[#This Row],[2029/30 From - Spending review Topic 4]]+Dataset[[#This Row],[2029/30 From - Other reallocations]]","v":0},{"$f":"Dataset[[#This Row],[2027/28 To - Spending review Topic 1]]+Dataset[[#This Row],[2027/28 To - Spending review Topic 2]]+Dataset[[#This Row],[2027/28 To - Spending review Topic 3]]+Dataset[[#This Row],[2027/28 To - Spending review Topic 4]]+Dataset[[#This Row],[2027/28 To - Other reallocations]]","v":0},{"$f":"Dataset[[#This Row],[2028/29 To - Spending review Topic 1]]+Dataset[[#This Row],[2028/29 To - Spending review Topic 2]]+Dataset[[#This Row],[2028/29 To - Spending review Topic 3]]+Dataset[[#This Row],[2028/29 To - Spending review Topic 4]]+Dataset[[#This Row],[2028/29 To - Other reallocations]]","v":0},{"$f":"Dataset[[#This Row],[2029/30 To - Spending review Topic 1]]+Dataset[[#This Row],[2029/30 To - Spending review Topic 2]]+Dataset[[#This Row],[2029/30 To - Spending review Topic 3]]+Dataset[[#This Row],[2029/30 To - Spending review Topic 4]]+Dataset[[#This Row],[2029/30 To - Other reallocations]]","v":0},{"$f":"Dataset[[#This Row],[2027/28 Targeted savings]]+Dataset[[#This Row],[2027/28 From - Total]]","v":0},{"$f":"Dataset[[#This Row],[2028/29 Targeted savings]]+Dataset[[#This Row],[2028/29 From - Total]]","v":0},{"$f":"Dataset[[#This Row],[2029/30 Targeted savings]]+Dataset[[#This Row],[2029/30 From - Total]]","v":0},{"$f":"Dataset[[#This Row],[2026/27 Targeted savings]]","v":0},{"$f":"SUM(Dataset[[#This Row],[2027/28 Targeted savings]],Dataset[[#This Row],[2027/28 From - Total]],Dataset[[#This Row],[2027/28 To - Total]])","v":0},{"$f":"SUM(Dataset[[#This Row],[2028/29 Targeted savings]],Dataset[[#This Row],[2028/29 From - Total]],Dataset[[#This Row],[2028/29 To - Total]])","v":0},{"$f":"SUM(Dataset[[#This Row],[2029/30 Targeted savings]],Dataset[[#This Row],[2029/30 From - Total]],Dataset[[#This Row],[2029/30 To - Total]])","v":0},{"$f":"Dataset[[#This Row],[2026/27 Baseline]]+Dataset[[#This Row],[2026/27 Total change]]","v":0},{"$f":"Dataset[[#This Row],[2027/28 Baseline]]+Dataset[[#This Row],[2027/28 Total change]]","v":0},{"$f":"Dataset[[#This Row],[2028/29 Baseline]]+Dataset[[#This Row],[2028/29 Total change]]","v":0},{"$f":"Dataset[[#This Row],[2029/30 Baseline]]+Dataset[[#This Row],[2029/30 Total change]]","v":0}]
["NAT|Non-transfer item","30|Inventory: Farming supplies","2027_28","MTEC2027",30,1,6,32785,265,"30","01","06","032785","000265","30|01|06|000265","01","01","02","22","22","01|01|02|22|22","National","Communications and Digital Technologies","Administration","Office Accommodation","Non-transfer item","Current","Current payments","Goods and services","Inventory: Farming supplies","Inventory: Farming supplies","Economic development","Economic regulation and infrastructure","NAT",0,0,0,0,0,0,0,0,0,0,0,null,null,null,null,null,null,null,null,null,null,null,null,null,null,null,null,null,null,null,null,null,null,null,null,null,null,null,null,null,null,null,null,null,null,{"$f":"Dataset[[#This Row],[2027/28 From - Spending review Topic 1]]+Dataset[[#This Row],[2027/28 From - Spending review Topic 2]]+Dataset[[#This Row],[2027/28 From - Spending review Topic 3]]+Dataset[[#This Row],[2027/28 From - Spending review Topic 4]]+Dataset[[#This Row],[2027/28 From - Other reallocations]]","v":0},{"$f":"Dataset[[#This Row],[2028/29 From - Spending review Topic 1]]+Dataset[[#This Row],[2028/29 From - Spending review Topic 2]]+Dataset[[#This Row],[2028/29 From - Spending review Topic 3]]+Dataset[[#This Row],[2028/29 From - Spending review Topic 4]]+Dataset[[#This Row],[2028/29 From - Other reallocations]]","v":0},{"$f":"Dataset[[#This Row],[2029/30 From - Spending review Topic 1]]+Dataset[[#This Row],[2029/30 From - Spending review Topic 2]]+Dataset[[#This Row],[2029/30 From - Spending review Topic 3]]+Dataset[[#This Row],[2029/30 From - Spending review Topic 4]]+Dataset[[#This Row],[2029/30 From - Other reallocations]]","v":0},{"$f":"Dataset[[#This Row],[2027/28 To - Spending review Topic 1]]+Dataset[[#This Row],[2027/28 To - Spending review Topic 2]]+Dataset[[#This Row],[2027/28 To - Spending review Topic 3]]+Dataset[[#This Row],[2027/28 To - Spending review Topic 4]]+Dataset[[#This Row],[2027/28 To - Other reallocations]]","v":0},{"$f":"Dataset[[#This Row],[2028/29 To - Spending review Topic 1]]+Dataset[[#This Row],[2028/29 To - Spending review Topic 2]]+Dataset[[#This Row],[2028/29 To - Spending review Topic 3]]+Dataset[[#This Row],[2028/29 To - Spending review Topic 4]]+Dataset[[#This Row],[2028/29 To - Other reallocations]]","v":0},{"$f":"Dataset[[#This Row],[2029/30 To - Spending review Topic 1]]+Dataset[[#This Row],[2029/30 To - Spending review Topic 2]]+Dataset[[#This Row],[2029/30 To - Spending review Topic 3]]+Dataset[[#This Row],[2029/30 To - Spending review Topic 4]]+Dataset[[#This Row],[2029/30 To - Other reallocations]]","v":0},{"$f":"Dataset[[#This Row],[2027/28 Targeted savings]]+Dataset[[#This Row],[2027/28 From - Total]]","v":0},{"$f":"Dataset[[#This Row],[2028/29 Targeted savings]]+Dataset[[#This Row],[2028/29 From - Total]]","v":0},{"$f":"Dataset[[#This Row],[2029/30 Targeted savings]]+Dataset[[#This Row],[2029/30 From - Total]]","v":0},{"$f":"Dataset[[#This Row],[2026/27 Targeted savings]]","v":0},{"$f":"SUM(Dataset[[#This Row],[2027/28 Targeted savings]],Dataset[[#This Row],[2027/28 From - Total]],Dataset[[#This Row],[2027/28 To - Total]])","v":0},{"$f":"SUM(Dataset[[#This Row],[2028/29 Targeted savings]],Dataset[[#This Row],[2028/29 From - Total]],Dataset[[#This Row],[2028/29 To - Total]])","v":0},{"$f":"SUM(Dataset[[#This Row],[2029/30 Targeted savings]],Dataset[[#This Row],[2029/30 From - Total]],Dataset[[#This Row],[2029/30 To - Total]])","v":0},{"$f":"Dataset[[#This Row],[2026/27 Baseline]]+Dataset[[#This Row],[2026/27 Total change]]","v":0},{"$f":"Dataset[[#This Row],[2027/28 Baseline]]+Dataset[[#This Row],[2027/28 Total change]]","v":0},{"$f":"Dataset[[#This Row],[2028/29 Baseline]]+Dataset[[#This Row],[2028/29 Total change]]","v":0},{"$f":"Dataset[[#This Row],[2029/30 Baseline]]+Dataset[[#This Row],[2029/30 Total change]]","v":0}]
["NAT|Non-transfer item","30|Inventory: Food and food supplies","2027_28","MTEC2027",30,1,6,32786,266,"30","01","06","032786","000266","30|01|06|000266","01","01","02","23","23","01|01|02|23|23","National","Communications and Digital Technologies","Administration","Office Accommodation","Non-transfer item","Current","Current payments","Goods and services","Inventory: Food and food supplies","Inventory: Food and food supplies","Economic development","Economic regulation and infrastructure","NAT",0,0,0,0,0,0,0,0,0,0,0,null,null,null,null,null,null,null,null,null,null,null,null,null,null,null,null,null,null,null,null,null,null,null,null,null,null,null,null,null,null,null,null,null,null,{"$f":"Dataset[[#This Row],[2027/28 From - Spending review Topic 1]]+Dataset[[#This Row],[2027/28 From - Spending review Topic 2]]+Dataset[[#This Row],[2027/28 From - Spending review Topic 3]]+Dataset[[#This Row],[2027/28 From - Spending review Topic 4]]+Dataset[[#This Row],[2027/28 From - Other reallocations]]","v":0},{"$f":"Dataset[[#This Row],[2028/29 From - Spending review Topic 1]]+Dataset[[#This Row],[2028/29 From - Spending review Topic 2]]+Dataset[[#This Row],[2028/29 From - Spending review Topic 3]]+Dataset[[#This Row],[2028/29 From - Spending review Topic 4]]+Dataset[[#This Row],[2028/29 From - Other reallocations]]","v":0},{"$f":"Dataset[[#This Row],[2029/30 From - Spending review Topic 1]]+Dataset[[#This Row],[2029/30 From - Spending review Topic 2]]+Dataset[[#This Row],[2029/30 From - Spending review Topic 3]]+Dataset[[#This Row],[2029/30 From - Spending review Topic 4]]+Dataset[[#This Row],[2029/30 From - Other reallocations]]","v":0},{"$f":"Dataset[[#This Row],[2027/28 To - Spending review Topic 1]]+Dataset[[#This Row],[2027/28 To - Spending review Topic 2]]+Dataset[[#This Row],[2027/28 To - Spending review Topic 3]]+Dataset[[#This Row],[2027/28 To - Spending review Topic 4]]+Dataset[[#This Row],[2027/28 To - Other reallocations]]","v":0},{"$f":"Dataset[[#This Row],[2028/29 To - Spending review Topic 1]]+Dataset[[#This Row],[2028/29 To - Spending review Topic 2]]+Dataset[[#This Row],[2028/29 To - Spending review Topic 3]]+Dataset[[#This Row],[2028/29 To - Spending review Topic 4]]+Dataset[[#This Row],[2028/29 To - Other reallocations]]","v":0},{"$f":"Dataset[[#This Row],[2029/30 To - Spending review Topic 1]]+Dataset[[#This Row],[2029/30 To - Spending review Topic 2]]+Dataset[[#This Row],[2029/30 To - Spending review Topic 3]]+Dataset[[#This Row],[2029/30 To - Spending review Topic 4]]+Dataset[[#This Row],[2029/30 To - Other reallocations]]","v":0},{"$f":"Dataset[[#This Row],[2027/28 Targeted savings]]+Dataset[[#This Row],[2027/28 From - Total]]","v":0},{"$f":"Dataset[[#This Row],[2028/29 Targeted savings]]+Dataset[[#This Row],[2028/29 From - Total]]","v":0},{"$f":"Dataset[[#This Row],[2029/30 Targeted savings]]+Dataset[[#This Row],[2029/30 From - Total]]","v":0},{"$f":"Dataset[[#This Row],[2026/27 Targeted savings]]","v":0},{"$f":"SUM(Dataset[[#This Row],[2027/28 Targeted savings]],Dataset[[#This Row],[2027/28 From - Total]],Dataset[[#This Row],[2027/28 To - Total]])","v":0},{"$f":"SUM(Dataset[[#This Row],[2028/29 Targeted savings]],Dataset[[#This Row],[2028/29 From - Total]],Dataset[[#This Row],[2028/29 To - Total]])","v":0},{"$f":"SUM(Dataset[[#This Row],[2029/30 Targeted savings]],Dataset[[#This Row],[2029/30 From - Total]],Dataset[[#This Row],[2029/30 To - Total]])","v":0},{"$f":"Dataset[[#This Row],[2026/27 Baseline]]+Dataset[[#This Row],[2026/27 Total change]]","v":0},{"$f":"Dataset[[#This Row],[2027/28 Baseline]]+Dataset[[#This Row],[2027/28 Total change]]","v":0},{"$f":"Dataset[[#This Row],[2028/29 Baseline]]+Dataset[[#This Row],[2028/29 Total change]]","v":0},{"$f":"Dataset[[#This Row],[2029/30 Baseline]]+Dataset[[#This Row],[2029/30 Total change]]","v":0}]
["NAT|Non-transfer item","30|Inventory: Fuel, oil and gas","2027_28","MTEC2027",30,1,6,32787,267,"30","01","06","032787","000267","30|01|06|000267","01","01","02","24","24","01|01|02|24|24","National","Communications and Digital Technologies","Administration","Office Accommodation","Non-transfer item","Current","Current payments","Goods and services","Inventory: Fuel, oil and gas","Inventory: Fuel, oil and gas","Economic development","Economic regulation and infrastructure","NAT",0,0,0,0,0,0,0,0,0,0,0,null,null,null,null,null,null,null,null,null,null,null,null,null,null,null,null,null,null,null,null,null,null,null,null,null,null,null,null,null,null,null,null,null,null,{"$f":"Dataset[[#This Row],[2027/28 From - Spending review Topic 1]]+Dataset[[#This Row],[2027/28 From - Spending review Topic 2]]+Dataset[[#This Row],[2027/28 From - Spending review Topic 3]]+Dataset[[#This Row],[2027/28 From - Spending review Topic 4]]+Dataset[[#This Row],[2027/28 From - Other reallocations]]","v":0},{"$f":"Dataset[[#This Row],[2028/29 From - Spending review Topic 1]]+Dataset[[#This Row],[2028/29 From - Spending review Topic 2]]+Dataset[[#This Row],[2028/29 From - Spending review Topic 3]]+Dataset[[#This Row],[2028/29 From - Spending review Topic 4]]+Dataset[[#This Row],[2028/29 From - Other reallocations]]","v":0},{"$f":"Dataset[[#This Row],[2029/30 From - Spending review Topic 1]]+Dataset[[#This Row],[2029/30 From - Spending review Topic 2]]+Dataset[[#This Row],[2029/30 From - Spending review Topic 3]]+Dataset[[#This Row],[2029/30 From - Spending review Topic 4]]+Dataset[[#This Row],[2029/30 From - Other reallocations]]","v":0},{"$f":"Dataset[[#This Row],[2027/28 To - Spending review Topic 1]]+Dataset[[#This Row],[2027/28 To - Spending review Topic 2]]+Dataset[[#This Row],[2027/28 To - Spending review Topic 3]]+Dataset[[#This Row],[2027/28 To - Spending review Topic 4]]+Dataset[[#This Row],[2027/28 To - Other reallocations]]","v":0},{"$f":"Dataset[[#This Row],[2028/29 To - Spending review Topic 1]]+Dataset[[#This Row],[2028/29 To - Spending review Topic 2]]+Dataset[[#This Row],[2028/29 To - Spending review Topic 3]]+Dataset[[#This Row],[2028/29 To - Spending review Topic 4]]+Dataset[[#This Row],[2028/29 To - Other reallocations]]","v":0},{"$f":"Dataset[[#This Row],[2029/30 To - Spending review Topic 1]]+Dataset[[#This Row],[2029/30 To - Spending review Topic 2]]+Dataset[[#This Row],[2029/30 To - Spending review Topic 3]]+Dataset[[#This Row],[2029/30 To - Spending review Topic 4]]+Dataset[[#This Row],[2029/30 To - Other reallocations]]","v":0},{"$f":"Dataset[[#This Row],[2027/28 Targeted savings]]+Dataset[[#This Row],[2027/28 From - Total]]","v":0},{"$f":"Dataset[[#This Row],[2028/29 Targeted savings]]+Dataset[[#This Row],[2028/29 From - Total]]","v":0},{"$f":"Dataset[[#This Row],[2029/30 Targeted savings]]+Dataset[[#This Row],[2029/30 From - Total]]","v":0},{"$f":"Dataset[[#This Row],[2026/27 Targeted savings]]","v":0},{"$f":"SUM(Dataset[[#This Row],[2027/28 Targeted savings]],Dataset[[#This Row],[2027/28 From - Total]],Dataset[[#This Row],[2027/28 To - Total]])","v":0},{"$f":"SUM(Dataset[[#This Row],[2028/29 Targeted savings]],Dataset[[#This Row],[2028/29 From - Total]],Dataset[[#This Row],[2028/29 To - Total]])","v":0},{"$f":"SUM(Dataset[[#This Row],[2029/30 Targeted savings]],Dataset[[#This Row],[2029/30 From - Total]],Dataset[[#This Row],[2029/30 To - Total]])","v":0},{"$f":"Dataset[[#This Row],[2026/27 Baseline]]+Dataset[[#This Row],[2026/27 Total change]]","v":0},{"$f":"Dataset[[#This Row],[2027/28 Baseline]]+Dataset[[#This Row],[2027/28 Total change]]","v":0},{"$f":"Dataset[[#This Row],[2028/29 Baseline]]+Dataset[[#This Row],[2028/29 Total change]]","v":0},{"$f":"Dataset[[#This Row],[2029/30 Baseline]]+Dataset[[#This Row],[2029/30 Total change]]","v":0}]
["NAT|Non-transfer item","30|Inventory: Learner and teacher support material","2027_28","MTEC2027",30,1,6,32788,268,"30","01","06","032788","000268","30|01|06|000268","01","01","02","25","25","01|01|02|25|25","National","Communications and Digital Technologies","Administration","Office Accommodation","Non-transfer item","Current","Current payments","Goods and services","Inventory: Learner and teacher support material","Inventory: Learner and teacher support material","Economic development","Economic regulation and infrastructure","NAT",0,0,0,0,0,0,0,0,0,0,0,null,null,null,null,null,null,null,null,null,null,null,null,null,null,null,null,null,null,null,null,null,null,null,null,null,null,null,null,null,null,null,null,null,null,{"$f":"Dataset[[#This Row],[2027/28 From - Spending review Topic 1]]+Dataset[[#This Row],[2027/28 From - Spending review Topic 2]]+Dataset[[#This Row],[2027/28 From - Spending review Topic 3]]+Dataset[[#This Row],[2027/28 From - Spending review Topic 4]]+Dataset[[#This Row],[2027/28 From - Other reallocations]]","v":0},{"$f":"Dataset[[#This Row],[2028/29 From - Spending review Topic 1]]+Dataset[[#This Row],[2028/29 From - Spending review Topic 2]]+Dataset[[#This Row],[2028/29 From - Spending review Topic 3]]+Dataset[[#This Row],[2028/29 From - Spending review Topic 4]]+Dataset[[#This Row],[2028/29 From - Other reallocations]]","v":0},{"$f":"Dataset[[#This Row],[2029/30 From - Spending review Topic 1]]+Dataset[[#This Row],[2029/30 From - Spending review Topic 2]]+Dataset[[#This Row],[2029/30 From - Spending review Topic 3]]+Dataset[[#This Row],[2029/30 From - Spending review Topic 4]]+Dataset[[#This Row],[2029/30 From - Other reallocations]]","v":0},{"$f":"Dataset[[#This Row],[2027/28 To - Spending review Topic 1]]+Dataset[[#This Row],[2027/28 To - Spending review Topic 2]]+Dataset[[#This Row],[2027/28 To - Spending review Topic 3]]+Dataset[[#This Row],[2027/28 To - Spending review Topic 4]]+Dataset[[#This Row],[2027/28 To - Other reallocations]]","v":0},{"$f":"Dataset[[#This Row],[2028/29 To - Spending review Topic 1]]+Dataset[[#This Row],[2028/29 To - Spending review Topic 2]]+Dataset[[#This Row],[2028/29 To - Spending review Topic 3]]+Dataset[[#This Row],[2028/29 To - Spending review Topic 4]]+Dataset[[#This Row],[2028/29 To - Other reallocations]]","v":0},{"$f":"Dataset[[#This Row],[2029/30 To - Spending review Topic 1]]+Dataset[[#This Row],[2029/30 To - Spending review Topic 2]]+Dataset[[#This Row],[2029/30 To - Spending review Topic 3]]+Dataset[[#This Row],[2029/30 To - Spending review Topic 4]]+Dataset[[#This Row],[2029/30 To - Other reallocations]]","v":0},{"$f":"Dataset[[#This Row],[2027/28 Targeted savings]]+Dataset[[#This Row],[2027/28 From - Total]]","v":0},{"$f":"Dataset[[#This Row],[2028/29 Targeted savings]]+Dataset[[#This Row],[2028/29 From - Total]]","v":0},{"$f":"Dataset[[#This Row],[2029/30 Targeted savings]]+Dataset[[#This Row],[2029/30 From - Total]]","v":0},{"$f":"Dataset[[#This Row],[2026/27 Targeted savings]]","v":0},{"$f":"SUM(Dataset[[#This Row],[2027/28 Targeted savings]],Dataset[[#This Row],[2027/28 From - Total]],Dataset[[#This Row],[2027/28 To - Total]])","v":0},{"$f":"SUM(Dataset[[#This Row],[2028/29 Targeted savings]],Dataset[[#This Row],[2028/29 From - Total]],Dataset[[#This Row],[2028/29 To - Total]])","v":0},{"$f":"SUM(Dataset[[#This Row],[2029/30 Targeted savings]],Dataset[[#This Row],[2029/30 From - Total]],Dataset[[#This Row],[2029/30 To - Total]])","v":0},{"$f":"Dataset[[#This Row],[2026/27 Baseline]]+Dataset[[#This Row],[2026/27 Total change]]","v":0},{"$f":"Dataset[[#This Row],[2027/28 Baseline]]+Dataset[[#This Row],[2027/28 Total change]]","v":0},{"$f":"Dataset[[#This Row],[2028/29 Baseline]]+Dataset[[#This Row],[2028/29 Total change]]","v":0},{"$f":"Dataset[[#This Row],[2029/30 Baseline]]+Dataset[[#This Row],[2029/30 Total change]]","v":0}]
["NAT|Non-transfer item","30|Inventory: Materials and supplies","2027_28","MTEC2027",30,1,6,32789,269,"30","01","06","032789","000269","30|01|06|000269","01","01","02","26","26","01|01|02|26|26","National","Communications and Digital Technologies","Administration","Office Accommodation","Non-transfer item","Current","Current payments","Goods and services","Inventory: Materials and supplies","Inventory: Materials and supplies","Economic development","Economic regulation and infrastructure","NAT",0,0,0,0,0,0,0,0,0,0,0,null,null,null,null,null,null,null,null,null,null,null,null,null,null,null,null,null,null,null,null,null,null,null,null,null,null,null,null,null,null,null,null,null,null,{"$f":"Dataset[[#This Row],[2027/28 From - Spending review Topic 1]]+Dataset[[#This Row],[2027/28 From - Spending review Topic 2]]+Dataset[[#This Row],[2027/28 From - Spending review Topic 3]]+Dataset[[#This Row],[2027/28 From - Spending review Topic 4]]+Dataset[[#This Row],[2027/28 From - Other reallocations]]","v":0},{"$f":"Dataset[[#This Row],[2028/29 From - Spending review Topic 1]]+Dataset[[#This Row],[2028/29 From - Spending review Topic 2]]+Dataset[[#This Row],[2028/29 From - Spending review Topic 3]]+Dataset[[#This Row],[2028/29 From - Spending review Topic 4]]+Dataset[[#This Row],[2028/29 From - Other reallocations]]","v":0},{"$f":"Dataset[[#This Row],[2029/30 From - Spending review Topic 1]]+Dataset[[#This Row],[2029/30 From - Spending review Topic 2]]+Dataset[[#This Row],[2029/30 From - Spending review Topic 3]]+Dataset[[#This Row],[2029/30 From - Spending review Topic 4]]+Dataset[[#This Row],[2029/30 From - Other reallocations]]","v":0},{"$f":"Dataset[[#This Row],[2027/28 To - Spending review Topic 1]]+Dataset[[#This Row],[2027/28 To - Spending review Topic 2]]+Dataset[[#This Row],[2027/28 To - Spending review Topic 3]]+Dataset[[#This Row],[2027/28 To - Spending review Topic 4]]+Dataset[[#This Row],[2027/28 To - Other reallocations]]","v":0},{"$f":"Dataset[[#This Row],[2028/29 To - Spending review Topic 1]]+Dataset[[#This Row],[2028/29 To - Spending review Topic 2]]+Dataset[[#This Row],[2028/29 To - Spending review Topic 3]]+Dataset[[#This Row],[2028/29 To - Spending review Topic 4]]+Dataset[[#This Row],[2028/29 To - Other reallocations]]","v":0},{"$f":"Dataset[[#This Row],[2029/30 To - Spending review Topic 1]]+Dataset[[#This Row],[2029/30 To - Spending review Topic 2]]+Dataset[[#This Row],[2029/30 To - Spending review Topic 3]]+Dataset[[#This Row],[2029/30 To - Spending review Topic 4]]+Dataset[[#This Row],[2029/30 To - Other reallocations]]","v":0},{"$f":"Dataset[[#This Row],[2027/28 Targeted savings]]+Dataset[[#This Row],[2027/28 From - Total]]","v":0},{"$f":"Dataset[[#This Row],[2028/29 Targeted savings]]+Dataset[[#This Row],[2028/29 From - Total]]","v":0},{"$f":"Dataset[[#This Row],[2029/30 Targeted savings]]+Dataset[[#This Row],[2029/30 From - Total]]","v":0},{"$f":"Dataset[[#This Row],[2026/27 Targeted savings]]","v":0},{"$f":"SUM(Dataset[[#This Row],[2027/28 Targeted savings]],Dataset[[#This Row],[2027/28 From - Total]],Dataset[[#This Row],[2027/28 To - Total]])","v":0},{"$f":"SUM(Dataset[[#This Row],[2028/29 Targeted savings]],Dataset[[#This Row],[2028/29 From - Total]],Dataset[[#This Row],[2028/29 To - Total]])","v":0},{"$f":"SUM(Dataset[[#This Row],[2029/30 Targeted savings]],Dataset[[#This Row],[2029/30 From - Total]],Dataset[[#This Row],[2029/30 To - Total]])","v":0},{"$f":"Dataset[[#This Row],[2026/27 Baseline]]+Dataset[[#This Row],[2026/27 Total change]]","v":0},{"$f":"Dataset[[#This Row],[2027/28 Baseline]]+Dataset[[#This Row],[2027/28 Total change]]","v":0},{"$f":"Dataset[[#This Row],[2028/29 Baseline]]+Dataset[[#This Row],[2028/29 Total change]]","v":0},{"$f":"Dataset[[#This Row],[2029/30 Baseline]]+Dataset[[#This Row],[2029/30 Total change]]","v":0}]
["NAT|Non-transfer item","30|Inventory: Medical supplies","2027_28","MTEC2027",30,1,6,32790,270,"30","01","06","032790","000270","30|01|06|000270","01","01","02","27","27","01|01|02|27|27","National","Communications and Digital Technologies","Administration","Office Accommodation","Non-transfer item","Current","Current payments","Goods and services","Inventory: Medical supplies","Inventory: Medical supplies","Economic development","Economic regulation and infrastructure","NAT",0,0,0,0,0,0,0,0,0,0,0,null,null,null,null,null,null,null,null,null,null,null,null,null,null,null,null,null,null,null,null,null,null,null,null,null,null,null,null,null,null,null,null,null,null,{"$f":"Dataset[[#This Row],[2027/28 From - Spending review Topic 1]]+Dataset[[#This Row],[2027/28 From - Spending review Topic 2]]+Dataset[[#This Row],[2027/28 From - Spending review Topic 3]]+Dataset[[#This Row],[2027/28 From - Spending review Topic 4]]+Dataset[[#This Row],[2027/28 From - Other reallocations]]","v":0},{"$f":"Dataset[[#This Row],[2028/29 From - Spending review Topic 1]]+Dataset[[#This Row],[2028/29 From - Spending review Topic 2]]+Dataset[[#This Row],[2028/29 From - Spending review Topic 3]]+Dataset[[#This Row],[2028/29 From - Spending review Topic 4]]+Dataset[[#This Row],[2028/29 From - Other reallocations]]","v":0},{"$f":"Dataset[[#This Row],[2029/30 From - Spending review Topic 1]]+Dataset[[#This Row],[2029/30 From - Spending review Topic 2]]+Dataset[[#This Row],[2029/30 From - Spending review Topic 3]]+Dataset[[#This Row],[2029/30 From - Spending review Topic 4]]+Dataset[[#This Row],[2029/30 From - Other reallocations]]","v":0},{"$f":"Dataset[[#This Row],[2027/28 To - Spending review Topic 1]]+Dataset[[#This Row],[2027/28 To - Spending review Topic 2]]+Dataset[[#This Row],[2027/28 To - Spending review Topic 3]]+Dataset[[#This Row],[2027/28 To - Spending review Topic 4]]+Dataset[[#This Row],[2027/28 To - Other reallocations]]","v":0},{"$f":"Dataset[[#This Row],[2028/29 To - Spending review Topic 1]]+Dataset[[#This Row],[2028/29 To - Spending review Topic 2]]+Dataset[[#This Row],[2028/29 To - Spending review Topic 3]]+Dataset[[#This Row],[2028/29 To - Spending review Topic 4]]+Dataset[[#This Row],[2028/29 To - Other reallocations]]","v":0},{"$f":"Dataset[[#This Row],[2029/30 To - Spending review Topic 1]]+Dataset[[#This Row],[2029/30 To - Spending review Topic 2]]+Dataset[[#This Row],[2029/30 To - Spending review Topic 3]]+Dataset[[#This Row],[2029/30 To - Spending review Topic 4]]+Dataset[[#This Row],[2029/30 To - Other reallocations]]","v":0},{"$f":"Dataset[[#This Row],[2027/28 Targeted savings]]+Dataset[[#This Row],[2027/28 From - Total]]","v":0},{"$f":"Dataset[[#This Row],[2028/29 Targeted savings]]+Dataset[[#This Row],[2028/29 From - Total]]","v":0},{"$f":"Dataset[[#This Row],[2029/30 Targeted savings]]+Dataset[[#This Row],[2029/30 From - Total]]","v":0},{"$f":"Dataset[[#This Row],[2026/27 Targeted savings]]","v":0},{"$f":"SUM(Dataset[[#This Row],[2027/28 Targeted savings]],Dataset[[#This Row],[2027/28 From - Total]],Dataset[[#This Row],[2027/28 To - Total]])","v":0},{"$f":"SUM(Dataset[[#This Row],[2028/29 Targeted savings]],Dataset[[#This Row],[2028/29 From - Total]],Dataset[[#This Row],[2028/29 To - Total]])","v":0},{"$f":"SUM(Dataset[[#This Row],[2029/30 Targeted savings]],Dataset[[#This Row],[2029/30 From - Total]],Dataset[[#This Row],[2029/30 To - Total]])","v":0},{"$f":"Dataset[[#This Row],[2026/27 Baseline]]+Dataset[[#This Row],[2026/27 Total change]]","v":0},{"$f":"Dataset[[#This Row],[2027/28 Baseline]]+Dataset[[#This Row],[2027/28 Total change]]","v":0},{"$f":"Dataset[[#This Row],[2028/29 Baseline]]+Dataset[[#This Row],[2028/29 Total change]]","v":0},{"$f":"Dataset[[#This Row],[2029/30 Baseline]]+Dataset[[#This Row],[2029/30 Total change]]","v":0}]
["NAT|Non-transfer item","30|Inventory: Medicine","2027_28","MTEC2027",30,1,6,32791,271,"30","01","06","032791","000271","30|01|06|000271","01","01","02","28","28","01|01|02|28|28","National","Communications and Digital Technologies","Administration","Office Accommodation","Non-transfer item","Current","Current payments","Goods and services","Inventory: Medicine","Inventory: Medicine","Economic development","Economic regulation and infrastructure","NAT",0,0,0,0,0,0,0,0,0,0,0,null,null,null,null,null,null,null,null,null,null,null,null,null,null,null,null,null,null,null,null,null,null,null,null,null,null,null,null,null,null,null,null,null,null,{"$f":"Dataset[[#This Row],[2027/28 From - Spending review Topic 1]]+Dataset[[#This Row],[2027/28 From - Spending review Topic 2]]+Dataset[[#This Row],[2027/28 From - Spending review Topic 3]]+Dataset[[#This Row],[2027/28 From - Spending review Topic 4]]+Dataset[[#This Row],[2027/28 From - Other reallocations]]","v":0},{"$f":"Dataset[[#This Row],[2028/29 From - Spending review Topic 1]]+Dataset[[#This Row],[2028/29 From - Spending review Topic 2]]+Dataset[[#This Row],[2028/29 From - Spending review Topic 3]]+Dataset[[#This Row],[2028/29 From - Spending review Topic 4]]+Dataset[[#This Row],[2028/29 From - Other reallocations]]","v":0},{"$f":"Dataset[[#This Row],[2029/30 From - Spending review Topic 1]]+Dataset[[#This Row],[2029/30 From - Spending review Topic 2]]+Dataset[[#This Row],[2029/30 From - Spending review Topic 3]]+Dataset[[#This Row],[2029/30 From - Spending review Topic 4]]+Dataset[[#This Row],[2029/30 From - Other reallocations]]","v":0},{"$f":"Dataset[[#This Row],[2027/28 To - Spending review Topic 1]]+Dataset[[#This Row],[2027/28 To - Spending review Topic 2]]+Dataset[[#This Row],[2027/28 To - Spending review Topic 3]]+Dataset[[#This Row],[2027/28 To - Spending review Topic 4]]+Dataset[[#This Row],[2027/28 To - Other reallocations]]","v":0},{"$f":"Dataset[[#This Row],[2028/29 To - Spending review Topic 1]]+Dataset[[#This Row],[2028/29 To - Spending review Topic 2]]+Dataset[[#This Row],[2028/29 To - Spending review Topic 3]]+Dataset[[#This Row],[2028/29 To - Spending review Topic 4]]+Dataset[[#This Row],[2028/29 To - Other reallocations]]","v":0},{"$f":"Dataset[[#This Row],[2029/30 To - Spending review Topic 1]]+Dataset[[#This Row],[2029/30 To - Spending review Topic 2]]+Dataset[[#This Row],[2029/30 To - Spending review Topic 3]]+Dataset[[#This Row],[2029/30 To - Spending review Topic 4]]+Dataset[[#This Row],[2029/30 To - Other reallocations]]","v":0},{"$f":"Dataset[[#This Row],[2027/28 Targeted savings]]+Dataset[[#This Row],[2027/28 From - Total]]","v":0},{"$f":"Dataset[[#This Row],[2028/29 Targeted savings]]+Dataset[[#This Row],[2028/29 From - Total]]","v":0},{"$f":"Dataset[[#This Row],[2029/30 Targeted savings]]+Dataset[[#This Row],[2029/30 From - Total]]","v":0},{"$f":"Dataset[[#This Row],[2026/27 Targeted savings]]","v":0},{"$f":"SUM(Dataset[[#This Row],[2027/28 Targeted savings]],Dataset[[#This Row],[2027/28 From - Total]],Dataset[[#This Row],[2027/28 To - Total]])","v":0},{"$f":"SUM(Dataset[[#This Row],[2028/29 Targeted savings]],Dataset[[#This Row],[2028/29 From - Total]],Dataset[[#This Row],[2028/29 To - Total]])","v":0},{"$f":"SUM(Dataset[[#This Row],[2029/30 Targeted savings]],Dataset[[#This Row],[2029/30 From - Total]],Dataset[[#This Row],[2029/30 To - Total]])","v":0},{"$f":"Dataset[[#This Row],[2026/27 Baseline]]+Dataset[[#This Row],[2026/27 Total change]]","v":0},{"$f":"Dataset[[#This Row],[2027/28 Baseline]]+Dataset[[#This Row],[2027/28 Total change]]","v":0},{"$f":"Dataset[[#This Row],[2028/29 Baseline]]+Dataset[[#This Row],[2028/29 Total change]]","v":0},{"$f":"Dataset[[#This Row],[2029/30 Baseline]]+Dataset[[#This Row],[2029/30 Total change]]","v":0}]
["NAT|Non-transfer item","30|Medsas inventory interface","2027_28","MTEC2027",30,1,6,32792,272,"30","01","06","032792","000272","30|01|06|000272","01","01","02","29","29","01|01|02|29|29","National","Communications and Digital Technologies","Administration","Office Accommodation","Non-transfer item","Current","Current payments","Goods and services","Medsas inventory interface","Medsas inventory interface","Economic development","Economic regulation and infrastructure","NAT",0,0,0,0,0,0,0,0,0,0,0,null,null,null,null,null,null,null,null,null,null,null,null,null,null,null,null,null,null,null,null,null,null,null,null,null,null,null,null,null,null,null,null,null,null,{"$f":"Dataset[[#This Row],[2027/28 From - Spending review Topic 1]]+Dataset[[#This Row],[2027/28 From - Spending review Topic 2]]+Dataset[[#This Row],[2027/28 From - Spending review Topic 3]]+Dataset[[#This Row],[2027/28 From - Spending review Topic 4]]+Dataset[[#This Row],[2027/28 From - Other reallocations]]","v":0},{"$f":"Dataset[[#This Row],[2028/29 From - Spending review Topic 1]]+Dataset[[#This Row],[2028/29 From - Spending review Topic 2]]+Dataset[[#This Row],[2028/29 From - Spending review Topic 3]]+Dataset[[#This Row],[2028/29 From - Spending review Topic 4]]+Dataset[[#This Row],[2028/29 From - Other reallocations]]","v":0},{"$f":"Dataset[[#This Row],[2029/30 From - Spending review Topic 1]]+Dataset[[#This Row],[2029/30 From - Spending review Topic 2]]+Dataset[[#This Row],[2029/30 From - Spending review Topic 3]]+Dataset[[#This Row],[2029/30 From - Spending review Topic 4]]+Dataset[[#This Row],[2029/30 From - Other reallocations]]","v":0},{"$f":"Dataset[[#This Row],[2027/28 To - Spending review Topic 1]]+Dataset[[#This Row],[2027/28 To - Spending review Topic 2]]+Dataset[[#This Row],[2027/28 To - Spending review Topic 3]]+Dataset[[#This Row],[2027/28 To - Spending review Topic 4]]+Dataset[[#This Row],[2027/28 To - Other reallocations]]","v":0},{"$f":"Dataset[[#This Row],[2028/29 To - Spending review Topic 1]]+Dataset[[#This Row],[2028/29 To - Spending review Topic 2]]+Dataset[[#This Row],[2028/29 To - Spending review Topic 3]]+Dataset[[#This Row],[2028/29 To - Spending review Topic 4]]+Dataset[[#This Row],[2028/29 To - Other reallocations]]","v":0},{"$f":"Dataset[[#This Row],[2029/30 To - Spending review Topic 1]]+Dataset[[#This Row],[2029/30 To - Spending review Topic 2]]+Dataset[[#This Row],[2029/30 To - Spending review Topic 3]]+Dataset[[#This Row],[2029/30 To - Spending review Topic 4]]+Dataset[[#This Row],[2029/30 To - Other reallocations]]","v":0},{"$f":"Dataset[[#This Row],[2027/28 Targeted savings]]+Dataset[[#This Row],[2027/28 From - Total]]","v":0},{"$f":"Dataset[[#This Row],[2028/29 Targeted savings]]+Dataset[[#This Row],[2028/29 From - Total]]","v":0},{"$f":"Dataset[[#This Row],[2029/30 Targeted savings]]+Dataset[[#This Row],[2029/30 From - Total]]","v":0},{"$f":"Dataset[[#This Row],[2026/27 Targeted savings]]","v":0},{"$f":"SUM(Dataset[[#This Row],[2027/28 Targeted savings]],Dataset[[#This Row],[2027/28 From - Total]],Dataset[[#This Row],[2027/28 To - Total]])","v":0},{"$f":"SUM(Dataset[[#This Row],[2028/29 Targeted savings]],Dataset[[#This Row],[2028/29 From - Total]],Dataset[[#This Row],[2028/29 To - Total]])","v":0},{"$f":"SUM(Dataset[[#This Row],[2029/30 Targeted savings]],Dataset[[#This Row],[2029/30 From - Total]],Dataset[[#This Row],[2029/30 To - Total]])","v":0},{"$f":"Dataset[[#This Row],[2026/27 Baseline]]+Dataset[[#This Row],[2026/27 Total change]]","v":0},{"$f":"Dataset[[#This Row],[2027/28 Baseline]]+Dataset[[#This Row],[2027/28 Total change]]","v":0},{"$f":"Dataset[[#This Row],[2028/29 Baseline]]+Dataset[[#This Row],[2028/29 Total change]]","v":0},{"$f":"Dataset[[#This Row],[2029/30 Baseline]]+Dataset[[#This Row],[2029/30 Total change]]","v":0}]
["NAT|Non-transfer item","30|Inventory: Other supplies","2027_28","MTEC2027",30,1,6,32793,273,"30","01","06","032793","000273","30|01|06|000273","01","01","02","30","30","01|01|02|30|30","National","Communications and Digital Technologies","Administration","Office Accommodation","Non-transfer item","Current","Current payments","Goods and services","Inventory: Other supplies","Inventory: Other supplies","Economic development","Economic regulation and infrastructure","NAT",0,0,0,0,0,0,0,0,0,0,0,null,null,null,null,null,null,null,null,null,null,null,null,null,null,null,null,null,null,null,null,null,null,null,null,null,null,null,null,null,null,null,null,null,null,{"$f":"Dataset[[#This Row],[2027/28 From - Spending review Topic 1]]+Dataset[[#This Row],[2027/28 From - Spending review Topic 2]]+Dataset[[#This Row],[2027/28 From - Spending review Topic 3]]+Dataset[[#This Row],[2027/28 From - Spending review Topic 4]]+Dataset[[#This Row],[2027/28 From - Other reallocations]]","v":0},{"$f":"Dataset[[#This Row],[2028/29 From - Spending review Topic 1]]+Dataset[[#This Row],[2028/29 From - Spending review Topic 2]]+Dataset[[#This Row],[2028/29 From - Spending review Topic 3]]+Dataset[[#This Row],[2028/29 From - Spending review Topic 4]]+Dataset[[#This Row],[2028/29 From - Other reallocations]]","v":0},{"$f":"Dataset[[#This Row],[2029/30 From - Spending review Topic 1]]+Dataset[[#This Row],[2029/30 From - Spending review Topic 2]]+Dataset[[#This Row],[2029/30 From - Spending review Topic 3]]+Dataset[[#This Row],[2029/30 From - Spending review Topic 4]]+Dataset[[#This Row],[2029/30 From - Other reallocations]]","v":0},{"$f":"Dataset[[#This Row],[2027/28 To - Spending review Topic 1]]+Dataset[[#This Row],[2027/28 To - Spending review Topic 2]]+Dataset[[#This Row],[2027/28 To - Spending review Topic 3]]+Dataset[[#This Row],[2027/28 To - Spending review Topic 4]]+Dataset[[#This Row],[2027/28 To - Other reallocations]]","v":0},{"$f":"Dataset[[#This Row],[2028/29 To - Spending review Topic 1]]+Dataset[[#This Row],[2028/29 To - Spending review Topic 2]]+Dataset[[#This Row],[2028/29 To - Spending review Topic 3]]+Dataset[[#This Row],[2028/29 To - Spending review Topic 4]]+Dataset[[#This Row],[2028/29 To - Other reallocations]]","v":0},{"$f":"Dataset[[#This Row],[2029/30 To - Spending review Topic 1]]+Dataset[[#This Row],[2029/30 To - Spending review Topic 2]]+Dataset[[#This Row],[2029/30 To - Spending review Topic 3]]+Dataset[[#This Row],[2029/30 To - Spending review Topic 4]]+Dataset[[#This Row],[2029/30 To - Other reallocations]]","v":0},{"$f":"Dataset[[#This Row],[2027/28 Targeted savings]]+Dataset[[#This Row],[2027/28 From - Total]]","v":0},{"$f":"Dataset[[#This Row],[2028/29 Targeted savings]]+Dataset[[#This Row],[2028/29 From - Total]]","v":0},{"$f":"Dataset[[#This Row],[2029/30 Targeted savings]]+Dataset[[#This Row],[2029/30 From - Total]]","v":0},{"$f":"Dataset[[#This Row],[2026/27 Targeted savings]]","v":0},{"$f":"SUM(Dataset[[#This Row],[2027/28 Targeted savings]],Dataset[[#This Row],[2027/28 From - Total]],Dataset[[#This Row],[2027/28 To - Total]])","v":0},{"$f":"SUM(Dataset[[#This Row],[2028/29 Targeted savings]],Dataset[[#This Row],[2028/29 From - Total]],Dataset[[#This Row],[2028/29 To - Total]])","v":0},{"$f":"SUM(Dataset[[#This Row],[2029/30 Targeted savings]],Dataset[[#This Row],[2029/30 From - Total]],Dataset[[#This Row],[2029/30 To - Total]])","v":0},{"$f":"Dataset[[#This Row],[2026/27 Baseline]]+Dataset[[#This Row],[2026/27 Total change]]","v":0},{"$f":"Dataset[[#This Row],[2027/28 Baseline]]+Dataset[[#This Row],[2027/28 Total change]]","v":0},{"$f":"Dataset[[#This Row],[2028/29 Baseline]]+Dataset[[#This Row],[2028/29 Total change]]","v":0},{"$f":"Dataset[[#This Row],[2029/30 Baseline]]+Dataset[[#This Row],[2029/30 Total change]]","v":0}]
["NAT|Non-transfer item","30|Consumable supplies","2027_28","MTEC2027",30,1,6,32794,274,"30","01","06","032794","000274","30|01|06|000274","01","01","02","31","31","01|01|02|31|31","National","Communications and Digital Technologies","Administration","Office Accommodation","Non-transfer item","Current","Current payments","Goods and services","Consumable supplies","Consumable supplies","Economic development","Economic regulation and infrastructure","NAT",0,0,0,0,0,0,0,0,0,0,0,null,null,null,null,null,null,null,null,null,null,null,null,null,null,null,null,null,null,null,null,null,null,null,null,null,null,null,null,null,null,null,null,null,null,{"$f":"Dataset[[#This Row],[2027/28 From - Spending review Topic 1]]+Dataset[[#This Row],[2027/28 From - Spending review Topic 2]]+Dataset[[#This Row],[2027/28 From - Spending review Topic 3]]+Dataset[[#This Row],[2027/28 From - Spending review Topic 4]]+Dataset[[#This Row],[2027/28 From - Other reallocations]]","v":0},{"$f":"Dataset[[#This Row],[2028/29 From - Spending review Topic 1]]+Dataset[[#This Row],[2028/29 From - Spending review Topic 2]]+Dataset[[#This Row],[2028/29 From - Spending review Topic 3]]+Dataset[[#This Row],[2028/29 From - Spending review Topic 4]]+Dataset[[#This Row],[2028/29 From - Other reallocations]]","v":0},{"$f":"Dataset[[#This Row],[2029/30 From - Spending review Topic 1]]+Dataset[[#This Row],[2029/30 From - Spending review Topic 2]]+Dataset[[#This Row],[2029/30 From - Spending review Topic 3]]+Dataset[[#This Row],[2029/30 From - Spending review Topic 4]]+Dataset[[#This Row],[2029/30 From - Other reallocations]]","v":0},{"$f":"Dataset[[#This Row],[2027/28 To - Spending review Topic 1]]+Dataset[[#This Row],[2027/28 To - Spending review Topic 2]]+Dataset[[#This Row],[2027/28 To - Spending review Topic 3]]+Dataset[[#This Row],[2027/28 To - Spending review Topic 4]]+Dataset[[#This Row],[2027/28 To - Other reallocations]]","v":0},{"$f":"Dataset[[#This Row],[2028/29 To - Spending review Topic 1]]+Dataset[[#This Row],[2028/29 To - Spending review Topic 2]]+Dataset[[#This Row],[2028/29 To - Spending review Topic 3]]+Dataset[[#This Row],[2028/29 To - Spending review Topic 4]]+Dataset[[#This Row],[2028/29 To - Other reallocations]]","v":0},{"$f":"Dataset[[#This Row],[2029/30 To - Spending review Topic 1]]+Dataset[[#This Row],[2029/30 To - Spending review Topic 2]]+Dataset[[#This Row],[2029/30 To - Spending review Topic 3]]+Dataset[[#This Row],[2029/30 To - Spending review Topic 4]]+Dataset[[#This Row],[2029/30 To - Other reallocations]]","v":0},{"$f":"Dataset[[#This Row],[2027/28 Targeted savings]]+Dataset[[#This Row],[2027/28 From - Total]]","v":0},{"$f":"Dataset[[#This Row],[2028/29 Targeted savings]]+Dataset[[#This Row],[2028/29 From - Total]]","v":0},{"$f":"Dataset[[#This Row],[2029/30 Targeted savings]]+Dataset[[#This Row],[2029/30 From - Total]]","v":0},{"$f":"Dataset[[#This Row],[2026/27 Targeted savings]]","v":0},{"$f":"SUM(Dataset[[#This Row],[2027/28 Targeted savings]],Dataset[[#This Row],[2027/28 From - Total]],Dataset[[#This Row],[2027/28 To - Total]])","v":0},{"$f":"SUM(Dataset[[#This Row],[2028/29 Targeted savings]],Dataset[[#This Row],[2028/29 From - Total]],Dataset[[#This Row],[2028/29 To - Total]])","v":0},{"$f":"SUM(Dataset[[#This Row],[2029/30 Targeted savings]],Dataset[[#This Row],[2029/30 From - Total]],Dataset[[#This Row],[2029/30 To - Total]])","v":0},{"$f":"Dataset[[#This Row],[2026/27 Baseline]]+Dataset[[#This Row],[2026/27 Total change]]","v":0},{"$f":"Dataset[[#This Row],[2027/28 Baseline]]+Dataset[[#This Row],[2027/28 Total change]]","v":0},{"$f":"Dataset[[#This Row],[2028/29 Baseline]]+Dataset[[#This Row],[2028/29 Total change]]","v":0},{"$f":"Dataset[[#This Row],[2029/30 Baseline]]+Dataset[[#This Row],[2029/30 Total change]]","v":0}]
["NAT|Non-transfer item","30|Consumables: Stationery, printing and office supplies","2027_28","MTEC2027",30,1,6,32795,275,"30","01","06","032795","000275","30|01|06|000275","01","01","02","32","32","01|01|02|32|32","National","Communications and Digital Technologies","Administration","Office Accommodation","Non-transfer item","Current","Current payments","Goods and services","Consumables: Stationery, printing and office supplies","Consumables: Stationery, printing and office supplies","Economic development","Economic regulation and infrastructure","NAT",0,0,0,0,0,0,0,0,0,0,0,null,null,null,null,null,null,null,null,null,null,null,null,null,null,null,null,null,null,null,null,null,null,null,null,null,null,null,null,null,null,null,null,null,null,{"$f":"Dataset[[#This Row],[2027/28 From - Spending review Topic 1]]+Dataset[[#This Row],[2027/28 From - Spending review Topic 2]]+Dataset[[#This Row],[2027/28 From - Spending review Topic 3]]+Dataset[[#This Row],[2027/28 From - Spending review Topic 4]]+Dataset[[#This Row],[2027/28 From - Other reallocations]]","v":0},{"$f":"Dataset[[#This Row],[2028/29 From - Spending review Topic 1]]+Dataset[[#This Row],[2028/29 From - Spending review Topic 2]]+Dataset[[#This Row],[2028/29 From - Spending review Topic 3]]+Dataset[[#This Row],[2028/29 From - Spending review Topic 4]]+Dataset[[#This Row],[2028/29 From - Other reallocations]]","v":0},{"$f":"Dataset[[#This Row],[2029/30 From - Spending review Topic 1]]+Dataset[[#This Row],[2029/30 From - Spending review Topic 2]]+Dataset[[#This Row],[2029/30 From - Spending review Topic 3]]+Dataset[[#This Row],[2029/30 From - Spending review Topic 4]]+Dataset[[#This Row],[2029/30 From - Other reallocations]]","v":0},{"$f":"Dataset[[#This Row],[2027/28 To - Spending review Topic 1]]+Dataset[[#This Row],[2027/28 To - Spending review Topic 2]]+Dataset[[#This Row],[2027/28 To - Spending review Topic 3]]+Dataset[[#This Row],[2027/28 To - Spending review Topic 4]]+Dataset[[#This Row],[2027/28 To - Other reallocations]]","v":0},{"$f":"Dataset[[#This Row],[2028/29 To - Spending review Topic 1]]+Dataset[[#This Row],[2028/29 To - Spending review Topic 2]]+Dataset[[#This Row],[2028/29 To - Spending review Topic 3]]+Dataset[[#This Row],[2028/29 To - Spending review Topic 4]]+Dataset[[#This Row],[2028/29 To - Other reallocations]]","v":0},{"$f":"Dataset[[#This Row],[2029/30 To - Spending review Topic 1]]+Dataset[[#This Row],[2029/30 To - Spending review Topic 2]]+Dataset[[#This Row],[2029/30 To - Spending review Topic 3]]+Dataset[[#This Row],[2029/30 To - Spending review Topic 4]]+Dataset[[#This Row],[2029/30 To - Other reallocations]]","v":0},{"$f":"Dataset[[#This Row],[2027/28 Targeted savings]]+Dataset[[#This Row],[2027/28 From - Total]]","v":0},{"$f":"Dataset[[#This Row],[2028/29 Targeted savings]]+Dataset[[#This Row],[2028/29 From - Total]]","v":0},{"$f":"Dataset[[#This Row],[2029/30 Targeted savings]]+Dataset[[#This Row],[2029/30 From - Total]]","v":0},{"$f":"Dataset[[#This Row],[2026/27 Targeted savings]]","v":0},{"$f":"SUM(Dataset[[#This Row],[2027/28 Targeted savings]],Dataset[[#This Row],[2027/28 From - Total]],Dataset[[#This Row],[2027/28 To - Total]])","v":0},{"$f":"SUM(Dataset[[#This Row],[2028/29 Targeted savings]],Dataset[[#This Row],[2028/29 From - Total]],Dataset[[#This Row],[2028/29 To - Total]])","v":0},{"$f":"SUM(Dataset[[#This Row],[2029/30 Targeted savings]],Dataset[[#This Row],[2029/30 From - Total]],Dataset[[#This Row],[2029/30 To - Total]])","v":0},{"$f":"Dataset[[#This Row],[2026/27 Baseline]]+Dataset[[#This Row],[2026/27 Total change]]","v":0},{"$f":"Dataset[[#This Row],[2027/28 Baseline]]+Dataset[[#This Row],[2027/28 Total change]]","v":0},{"$f":"Dataset[[#This Row],[2028/29 Baseline]]+Dataset[[#This Row],[2028/29 Total change]]","v":0},{"$f":"Dataset[[#This Row],[2029/30 Baseline]]+Dataset[[#This Row],[2029/30 Total change]]","v":0}]
["NAT|Non-transfer item","30|Operating leases","2027_28","MTEC2027",30,1,6,32796,276,"30","01","06","032796","000276","30|01|06|000276","01","01","02","33","33","01|01|02|33|33","National","Communications and Digital Technologies","Administration","Office Accommodation","Non-transfer item","Current","Current payments","Goods and services","Operating leases","Operating leases","Economic development","Economic regulation and infrastructure","NAT",0,0,0,0,0,0,34345,0,0,0,0,null,null,null,null,null,null,null,null,null,null,null,null,null,null,null,null,null,null,null,null,null,null,null,null,null,null,null,null,null,null,null,null,null,null,{"$f":"Dataset[[#This Row],[2027/28 From - Spending review Topic 1]]+Dataset[[#This Row],[2027/28 From - Spending review Topic 2]]+Dataset[[#This Row],[2027/28 From - Spending review Topic 3]]+Dataset[[#This Row],[2027/28 From - Spending review Topic 4]]+Dataset[[#This Row],[2027/28 From - Other reallocations]]","v":0},{"$f":"Dataset[[#This Row],[2028/29 From - Spending review Topic 1]]+Dataset[[#This Row],[2028/29 From - Spending review Topic 2]]+Dataset[[#This Row],[2028/29 From - Spending review Topic 3]]+Dataset[[#This Row],[2028/29 From - Spending review Topic 4]]+Dataset[[#This Row],[2028/29 From - Other reallocations]]","v":0},{"$f":"Dataset[[#This Row],[2029/30 From - Spending review Topic 1]]+Dataset[[#This Row],[2029/30 From - Spending review Topic 2]]+Dataset[[#This Row],[2029/30 From - Spending review Topic 3]]+Dataset[[#This Row],[2029/30 From - Spending review Topic 4]]+Dataset[[#This Row],[2029/30 From - Other reallocations]]","v":0},{"$f":"Dataset[[#This Row],[2027/28 To - Spending review Topic 1]]+Dataset[[#This Row],[2027/28 To - Spending review Topic 2]]+Dataset[[#This Row],[2027/28 To - Spending review Topic 3]]+Dataset[[#This Row],[2027/28 To - Spending review Topic 4]]+Dataset[[#This Row],[2027/28 To - Other reallocations]]","v":0},{"$f":"Dataset[[#This Row],[2028/29 To - Spending review Topic 1]]+Dataset[[#This Row],[2028/29 To - Spending review Topic 2]]+Dataset[[#This Row],[2028/29 To - Spending review Topic 3]]+Dataset[[#This Row],[2028/29 To - Spending review Topic 4]]+Dataset[[#This Row],[2028/29 To - Other reallocations]]","v":0},{"$f":"Dataset[[#This Row],[2029/30 To - Spending review Topic 1]]+Dataset[[#This Row],[2029/30 To - Spending review Topic 2]]+Dataset[[#This Row],[2029/30 To - Spending review Topic 3]]+Dataset[[#This Row],[2029/30 To - Spending review Topic 4]]+Dataset[[#This Row],[2029/30 To - Other reallocations]]","v":0},{"$f":"Dataset[[#This Row],[2027/28 Targeted savings]]+Dataset[[#This Row],[2027/28 From - Total]]","v":0},{"$f":"Dataset[[#This Row],[2028/29 Targeted savings]]+Dataset[[#This Row],[2028/29 From - Total]]","v":0},{"$f":"Dataset[[#This Row],[2029/30 Targeted savings]]+Dataset[[#This Row],[2029/30 From - Total]]","v":0},{"$f":"Dataset[[#This Row],[2026/27 Targeted savings]]","v":0},{"$f":"SUM(Dataset[[#This Row],[2027/28 Targeted savings]],Dataset[[#This Row],[2027/28 From - Total]],Dataset[[#This Row],[2027/28 To - Total]])","v":0},{"$f":"SUM(Dataset[[#This Row],[2028/29 Targeted savings]],Dataset[[#This Row],[2028/29 From - Total]],Dataset[[#This Row],[2028/29 To - Total]])","v":0},{"$f":"SUM(Dataset[[#This Row],[2029/30 Targeted savings]],Dataset[[#This Row],[2029/30 From - Total]],Dataset[[#This Row],[2029/30 To - Total]])","v":0},{"$f":"Dataset[[#This Row],[2026/27 Baseline]]+Dataset[[#This Row],[2026/27 Total change]]","v":0},{"$f":"Dataset[[#This Row],[2027/28 Baseline]]+Dataset[[#This Row],[2027/28 Total change]]","v":0},{"$f":"Dataset[[#This Row],[2028/29 Baseline]]+Dataset[[#This Row],[2028/29 Total change]]","v":0},{"$f":"Dataset[[#This Row],[2029/30 Baseline]]+Dataset[[#This Row],[2029/30 Total change]]","v":0}]
["NAT|Non-transfer item","30|Rental and hiring","2027_28","MTEC2027",30,1,6,32797,277,"30","01","06","032797","000277","30|01|06|000277","01","01","02","34","34","01|01|02|34|34","National","Communications and Digital Technologies","Administration","Office Accommodation","Non-transfer item","Current","Current payments","Goods and services","Rental and hiring","Rental and hiring","Economic development","Economic regulation and infrastructure","NAT",0,0,0,0,0,0,0,0,0,0,0,null,null,null,null,null,null,null,null,null,null,null,null,null,null,null,null,null,null,null,null,null,null,null,null,null,null,null,null,null,null,null,null,null,null,{"$f":"Dataset[[#This Row],[2027/28 From - Spending review Topic 1]]+Dataset[[#This Row],[2027/28 From - Spending review Topic 2]]+Dataset[[#This Row],[2027/28 From - Spending review Topic 3]]+Dataset[[#This Row],[2027/28 From - Spending review Topic 4]]+Dataset[[#This Row],[2027/28 From - Other reallocations]]","v":0},{"$f":"Dataset[[#This Row],[2028/29 From - Spending review Topic 1]]+Dataset[[#This Row],[2028/29 From - Spending review Topic 2]]+Dataset[[#This Row],[2028/29 From - Spending review Topic 3]]+Dataset[[#This Row],[2028/29 From - Spending review Topic 4]]+Dataset[[#This Row],[2028/29 From - Other reallocations]]","v":0},{"$f":"Dataset[[#This Row],[2029/30 From - Spending review Topic 1]]+Dataset[[#This Row],[2029/30 From - Spending review Topic 2]]+Dataset[[#This Row],[2029/30 From - Spending review Topic 3]]+Dataset[[#This Row],[2029/30 From - Spending review Topic 4]]+Dataset[[#This Row],[2029/30 From - Other reallocations]]","v":0},{"$f":"Dataset[[#This Row],[2027/28 To - Spending review Topic 1]]+Dataset[[#This Row],[2027/28 To - Spending review Topic 2]]+Dataset[[#This Row],[2027/28 To - Spending review Topic 3]]+Dataset[[#This Row],[2027/28 To - Spending review Topic 4]]+Dataset[[#This Row],[2027/28 To - Other reallocations]]","v":0},{"$f":"Dataset[[#This Row],[2028/29 To - Spending review Topic 1]]+Dataset[[#This Row],[2028/29 To - Spending review Topic 2]]+Dataset[[#This Row],[2028/29 To - Spending review Topic 3]]+Dataset[[#This Row],[2028/29 To - Spending review Topic 4]]+Dataset[[#This Row],[2028/29 To - Other reallocations]]","v":0},{"$f":"Dataset[[#This Row],[2029/30 To - Spending review Topic 1]]+Dataset[[#This Row],[2029/30 To - Spending review Topic 2]]+Dataset[[#This Row],[2029/30 To - Spending review Topic 3]]+Dataset[[#This Row],[2029/30 To - Spending review Topic 4]]+Dataset[[#This Row],[2029/30 To - Other reallocations]]","v":0},{"$f":"Dataset[[#This Row],[2027/28 Targeted savings]]+Dataset[[#This Row],[2027/28 From - Total]]","v":0},{"$f":"Dataset[[#This Row],[2028/29 Targeted savings]]+Dataset[[#This Row],[2028/29 From - Total]]","v":0},{"$f":"Dataset[[#This Row],[2029/30 Targeted savings]]+Dataset[[#This Row],[2029/30 From - Total]]","v":0},{"$f":"Dataset[[#This Row],[2026/27 Targeted savings]]","v":0},{"$f":"SUM(Dataset[[#This Row],[2027/28 Targeted savings]],Dataset[[#This Row],[2027/28 From - Total]],Dataset[[#This Row],[2027/28 To - Total]])","v":0},{"$f":"SUM(Dataset[[#This Row],[2028/29 Targeted savings]],Dataset[[#This Row],[2028/29 From - Total]],Dataset[[#This Row],[2028/29 To - Total]])","v":0},{"$f":"SUM(Dataset[[#This Row],[2029/30 Targeted savings]],Dataset[[#This Row],[2029/30 From - Total]],Dataset[[#This Row],[2029/30 To - Total]])","v":0},{"$f":"Dataset[[#This Row],[2026/27 Baseline]]+Dataset[[#This Row],[2026/27 Total change]]","v":0},{"$f":"Dataset[[#This Row],[2027/28 Baseline]]+Dataset[[#This Row],[2027/28 Total change]]","v":0},{"$f":"Dataset[[#This Row],[2028/29 Baseline]]+Dataset[[#This Row],[2028/29 Total change]]","v":0},{"$f":"Dataset[[#This Row],[2029/30 Baseline]]+Dataset[[#This Row],[2029/30 Total change]]","v":0}]
["NAT|Non-transfer item","30|Property payments","2027_28","MTEC2027",30,1,6,32798,278,"30","01","06","032798","000278","30|01|06|000278","01","01","02","35","35","01|01|02|35|35","National","Communications and Digital Technologies","Administration","Office Accommodation","Non-transfer item","Current","Current payments","Goods and services","Property payments","Property payments","Economic development","Economic regulation and infrastructure","NAT",0,0,0,0,0,0,6914,0,0,0,0,null,null,null,null,null,null,null,null,null,null,null,null,null,null,null,null,null,null,null,null,null,null,null,null,null,null,null,null,null,null,null,null,null,null,{"$f":"Dataset[[#This Row],[2027/28 From - Spending review Topic 1]]+Dataset[[#This Row],[2027/28 From - Spending review Topic 2]]+Dataset[[#This Row],[2027/28 From - Spending review Topic 3]]+Dataset[[#This Row],[2027/28 From - Spending review Topic 4]]+Dataset[[#This Row],[2027/28 From - Other reallocations]]","v":0},{"$f":"Dataset[[#This Row],[2028/29 From - Spending review Topic 1]]+Dataset[[#This Row],[2028/29 From - Spending review Topic 2]]+Dataset[[#This Row],[2028/29 From - Spending review Topic 3]]+Dataset[[#This Row],[2028/29 From - Spending review Topic 4]]+Dataset[[#This Row],[2028/29 From - Other reallocations]]","v":0},{"$f":"Dataset[[#This Row],[2029/30 From - Spending review Topic 1]]+Dataset[[#This Row],[2029/30 From - Spending review Topic 2]]+Dataset[[#This Row],[2029/30 From - Spending review Topic 3]]+Dataset[[#This Row],[2029/30 From - Spending review Topic 4]]+Dataset[[#This Row],[2029/30 From - Other reallocations]]","v":0},{"$f":"Dataset[[#This Row],[2027/28 To - Spending review Topic 1]]+Dataset[[#This Row],[2027/28 To - Spending review Topic 2]]+Dataset[[#This Row],[2027/28 To - Spending review Topic 3]]+Dataset[[#This Row],[2027/28 To - Spending review Topic 4]]+Dataset[[#This Row],[2027/28 To - Other reallocations]]","v":0},{"$f":"Dataset[[#This Row],[2028/29 To - Spending review Topic 1]]+Dataset[[#This Row],[2028/29 To - Spending review Topic 2]]+Dataset[[#This Row],[2028/29 To - Spending review Topic 3]]+Dataset[[#This Row],[2028/29 To - Spending review Topic 4]]+Dataset[[#This Row],[2028/29 To - Other reallocations]]","v":0},{"$f":"Dataset[[#This Row],[2029/30 To - Spending review Topic 1]]+Dataset[[#This Row],[2029/30 To - Spending review Topic 2]]+Dataset[[#This Row],[2029/30 To - Spending review Topic 3]]+Dataset[[#This Row],[2029/30 To - Spending review Topic 4]]+Dataset[[#This Row],[2029/30 To - Other reallocations]]","v":0},{"$f":"Dataset[[#This Row],[2027/28 Targeted savings]]+Dataset[[#This Row],[2027/28 From - Total]]","v":0},{"$f":"Dataset[[#This Row],[2028/29 Targeted savings]]+Dataset[[#This Row],[2028/29 From - Total]]","v":0},{"$f":"Dataset[[#This Row],[2029/30 Targeted savings]]+Dataset[[#This Row],[2029/30 From - Total]]","v":0},{"$f":"Dataset[[#This Row],[2026/27 Targeted savings]]","v":0},{"$f":"SUM(Dataset[[#This Row],[2027/28 Targeted savings]],Dataset[[#This Row],[2027/28 From - Total]],Dataset[[#This Row],[2027/28 To - Total]])","v":0},{"$f":"SUM(Dataset[[#This Row],[2028/29 Targeted savings]],Dataset[[#This Row],[2028/29 From - Total]],Dataset[[#This Row],[2028/29 To - Total]])","v":0},{"$f":"SUM(Dataset[[#This Row],[2029/30 Targeted savings]],Dataset[[#This Row],[2029/30 From - Total]],Dataset[[#This Row],[2029/30 To - Total]])","v":0},{"$f":"Dataset[[#This Row],[2026/27 Baseline]]+Dataset[[#This Row],[2026/27 Total change]]","v":0},{"$f":"Dataset[[#This Row],[2027/28 Baseline]]+Dataset[[#This Row],[2027/28 Total change]]","v":0},{"$f":"Dataset[[#This Row],[2028/29 Baseline]]+Dataset[[#This Row],[2028/29 Total change]]","v":0},{"$f":"Dataset[[#This Row],[2029/30 Baseline]]+Dataset[[#This Row],[2029/30 Total change]]","v":0}]
["NAT|Non-transfer item","30|Transport provided: Departmental activity","2027_28","MTEC2027",30,1,6,32799,279,"30","01","06","032799","000279","30|01|06|000279","01","01","02","36","36","01|01|02|36|36","National","Communications and Digital Technologies","Administration","Office Accommodation","Non-transfer item","Current","Current payments","Goods and services","Transport provided: Departmental activity","Transport provided: Departmental activity","Economic development","Economic regulation and infrastructure","NAT",0,0,0,0,0,0,0,0,0,0,0,null,null,null,null,null,null,null,null,null,null,null,null,null,null,null,null,null,null,null,null,null,null,null,null,null,null,null,null,null,null,null,null,null,null,{"$f":"Dataset[[#This Row],[2027/28 From - Spending review Topic 1]]+Dataset[[#This Row],[2027/28 From - Spending review Topic 2]]+Dataset[[#This Row],[2027/28 From - Spending review Topic 3]]+Dataset[[#This Row],[2027/28 From - Spending review Topic 4]]+Dataset[[#This Row],[2027/28 From - Other reallocations]]","v":0},{"$f":"Dataset[[#This Row],[2028/29 From - Spending review Topic 1]]+Dataset[[#This Row],[2028/29 From - Spending review Topic 2]]+Dataset[[#This Row],[2028/29 From - Spending review Topic 3]]+Dataset[[#This Row],[2028/29 From - Spending review Topic 4]]+Dataset[[#This Row],[2028/29 From - Other reallocations]]","v":0},{"$f":"Dataset[[#This Row],[2029/30 From - Spending review Topic 1]]+Dataset[[#This Row],[2029/30 From - Spending review Topic 2]]+Dataset[[#This Row],[2029/30 From - Spending review Topic 3]]+Dataset[[#This Row],[2029/30 From - Spending review Topic 4]]+Dataset[[#This Row],[2029/30 From - Other reallocations]]","v":0},{"$f":"Dataset[[#This Row],[2027/28 To - Spending review Topic 1]]+Dataset[[#This Row],[2027/28 To - Spending review Topic 2]]+Dataset[[#This Row],[2027/28 To - Spending review Topic 3]]+Dataset[[#This Row],[2027/28 To - Spending review Topic 4]]+Dataset[[#This Row],[2027/28 To - Other reallocations]]","v":0},{"$f":"Dataset[[#This Row],[2028/29 To - Spending review Topic 1]]+Dataset[[#This Row],[2028/29 To - Spending review Topic 2]]+Dataset[[#This Row],[2028/29 To - Spending review Topic 3]]+Dataset[[#This Row],[2028/29 To - Spending review Topic 4]]+Dataset[[#This Row],[2028/29 To - Other reallocations]]","v":0},{"$f":"Dataset[[#This Row],[2029/30 To - Spending review Topic 1]]+Dataset[[#This Row],[2029/30 To - Spending review Topic 2]]+Dataset[[#This Row],[2029/30 To - Spending review Topic 3]]+Dataset[[#This Row],[2029/30 To - Spending review Topic 4]]+Dataset[[#This Row],[2029/30 To - Other reallocations]]","v":0},{"$f":"Dataset[[#This Row],[2027/28 Targeted savings]]+Dataset[[#This Row],[2027/28 From - Total]]","v":0},{"$f":"Dataset[[#This Row],[2028/29 Targeted savings]]+Dataset[[#This Row],[2028/29 From - Total]]","v":0},{"$f":"Dataset[[#This Row],[2029/30 Targeted savings]]+Dataset[[#This Row],[2029/30 From - Total]]","v":0},{"$f":"Dataset[[#This Row],[2026/27 Targeted savings]]","v":0},{"$f":"SUM(Dataset[[#This Row],[2027/28 Targeted savings]],Dataset[[#This Row],[2027/28 From - Total]],Dataset[[#This Row],[2027/28 To - Total]])","v":0},{"$f":"SUM(Dataset[[#This Row],[2028/29 Targeted savings]],Dataset[[#This Row],[2028/29 From - Total]],Dataset[[#This Row],[2028/29 To - Total]])","v":0},{"$f":"SUM(Dataset[[#This Row],[2029/30 Targeted savings]],Dataset[[#This Row],[2029/30 From - Total]],Dataset[[#This Row],[2029/30 To - Total]])","v":0},{"$f":"Dataset[[#This Row],[2026/27 Baseline]]+Dataset[[#This Row],[2026/27 Total change]]","v":0},{"$f":"Dataset[[#This Row],[2027/28 Baseline]]+Dataset[[#This Row],[2027/28 Total change]]","v":0},{"$f":"Dataset[[#This Row],[2028/29 Baseline]]+Dataset[[#This Row],[2028/29 Total change]]","v":0},{"$f":"Dataset[[#This Row],[2029/30 Baseline]]+Dataset[[#This Row],[2029/30 Total change]]","v":0}]
["NAT|Non-transfer item","30|Travel and subsistence","2027_28","MTEC2027",30,1,6,32800,280,"30","01","06","032800","000280","30|01|06|000280","01","01","02","37","37","01|01|02|37|37","National","Communications and Digital Technologies","Administration","Office Accommodation","Non-transfer item","Current","Current payments","Goods and services","Travel and subsistence","Travel and subsistence","Economic development","Economic regulation and infrastructure","NAT",0,0,0,0,0,0,0,0,0,0,0,null,null,null,null,null,null,null,null,null,null,null,null,null,null,null,null,null,null,null,null,null,null,null,null,null,null,null,null,null,null,null,null,null,null,{"$f":"Dataset[[#This Row],[2027/28 From - Spending review Topic 1]]+Dataset[[#This Row],[2027/28 From - Spending review Topic 2]]+Dataset[[#This Row],[2027/28 From - Spending review Topic 3]]+Dataset[[#This Row],[2027/28 From - Spending review Topic 4]]+Dataset[[#This Row],[2027/28 From - Other reallocations]]","v":0},{"$f":"Dataset[[#This Row],[2028/29 From - Spending review Topic 1]]+Dataset[[#This Row],[2028/29 From - Spending review Topic 2]]+Dataset[[#This Row],[2028/29 From - Spending review Topic 3]]+Dataset[[#This Row],[2028/29 From - Spending review Topic 4]]+Dataset[[#This Row],[2028/29 From - Other reallocations]]","v":0},{"$f":"Dataset[[#This Row],[2029/30 From - Spending review Topic 1]]+Dataset[[#This Row],[2029/30 From - Spending review Topic 2]]+Dataset[[#This Row],[2029/30 From - Spending review Topic 3]]+Dataset[[#This Row],[2029/30 From - Spending review Topic 4]]+Dataset[[#This Row],[2029/30 From - Other reallocations]]","v":0},{"$f":"Dataset[[#This Row],[2027/28 To - Spending review Topic 1]]+Dataset[[#This Row],[2027/28 To - Spending review Topic 2]]+Dataset[[#This Row],[2027/28 To - Spending review Topic 3]]+Dataset[[#This Row],[2027/28 To - Spending review Topic 4]]+Dataset[[#This Row],[2027/28 To - Other reallocations]]","v":0},{"$f":"Dataset[[#This Row],[2028/29 To - Spending review Topic 1]]+Dataset[[#This Row],[2028/29 To - Spending review Topic 2]]+Dataset[[#This Row],[2028/29 To - Spending review Topic 3]]+Dataset[[#This Row],[2028/29 To - Spending review Topic 4]]+Dataset[[#This Row],[2028/29 To - Other reallocations]]","v":0},{"$f":"Dataset[[#This Row],[2029/30 To - Spending review Topic 1]]+Dataset[[#This Row],[2029/30 To - Spending review Topic 2]]+Dataset[[#This Row],[2029/30 To - Spending review Topic 3]]+Dataset[[#This Row],[2029/30 To - Spending review Topic 4]]+Dataset[[#This Row],[2029/30 To - Other reallocations]]","v":0},{"$f":"Dataset[[#This Row],[2027/28 Targeted savings]]+Dataset[[#This Row],[2027/28 From - Total]]","v":0},{"$f":"Dataset[[#This Row],[2028/29 Targeted savings]]+Dataset[[#This Row],[2028/29 From - Total]]","v":0},{"$f":"Dataset[[#This Row],[2029/30 Targeted savings]]+Dataset[[#This Row],[2029/30 From - Total]]","v":0},{"$f":"Dataset[[#This Row],[2026/27 Targeted savings]]","v":0},{"$f":"SUM(Dataset[[#This Row],[2027/28 Targeted savings]],Dataset[[#This Row],[2027/28 From - Total]],Dataset[[#This Row],[2027/28 To - Total]])","v":0},{"$f":"SUM(Dataset[[#This Row],[2028/29 Targeted savings]],Dataset[[#This Row],[2028/29 From - Total]],Dataset[[#This Row],[2028/29 To - Total]])","v":0},{"$f":"SUM(Dataset[[#This Row],[2029/30 Targeted savings]],Dataset[[#This Row],[2029/30 From - Total]],Dataset[[#This Row],[2029/30 To - Total]])","v":0},{"$f":"Dataset[[#This Row],[2026/27 Baseline]]+Dataset[[#This Row],[2026/27 Total change]]","v":0},{"$f":"Dataset[[#This Row],[2027/28 Baseline]]+Dataset[[#This Row],[2027/28 Total change]]","v":0},{"$f":"Dataset[[#This Row],[2028/29 Baseline]]+Dataset[[#This Row],[2028/29 Total change]]","v":0},{"$f":"Dataset[[#This Row],[2029/30 Baseline]]+Dataset[[#This Row],[2029/30 Total change]]","v":0}]
["NAT|Non-transfer item","30|Training and development","2027_28","MTEC2027",30,1,6,32801,281,"30","01","06","032801","000281","30|01|06|000281","01","01","02","38","38","01|01|02|38|38","National","Communications and Digital Technologies","Administration","Office Accommodation","Non-transfer item","Current","Current payments","Goods and services","Training and development","Training and development","Economic development","Economic regulation and infrastructure","NAT",0,0,0,0,0,0,0,0,0,0,0,null,null,null,null,null,null,null,null,null,null,null,null,null,null,null,null,null,null,null,null,null,null,null,null,null,null,null,null,null,null,null,null,null,null,{"$f":"Dataset[[#This Row],[2027/28 From - Spending review Topic 1]]+Dataset[[#This Row],[2027/28 From - Spending review Topic 2]]+Dataset[[#This Row],[2027/28 From - Spending review Topic 3]]+Dataset[[#This Row],[2027/28 From - Spending review Topic 4]]+Dataset[[#This Row],[2027/28 From - Other reallocations]]","v":0},{"$f":"Dataset[[#This Row],[2028/29 From - Spending review Topic 1]]+Dataset[[#This Row],[2028/29 From - Spending review Topic 2]]+Dataset[[#This Row],[2028/29 From - Spending review Topic 3]]+Dataset[[#This Row],[2028/29 From - Spending review Topic 4]]+Dataset[[#This Row],[2028/29 From - Other reallocations]]","v":0},{"$f":"Dataset[[#This Row],[2029/30 From - Spending review Topic 1]]+Dataset[[#This Row],[2029/30 From - Spending review Topic 2]]+Dataset[[#This Row],[2029/30 From - Spending review Topic 3]]+Dataset[[#This Row],[2029/30 From - Spending review Topic 4]]+Dataset[[#This Row],[2029/30 From - Other reallocations]]","v":0},{"$f":"Dataset[[#This Row],[2027/28 To - Spending review Topic 1]]+Dataset[[#This Row],[2027/28 To - Spending review Topic 2]]+Dataset[[#This Row],[2027/28 To - Spending review Topic 3]]+Dataset[[#This Row],[2027/28 To - Spending review Topic 4]]+Dataset[[#This Row],[2027/28 To - Other reallocations]]","v":0},{"$f":"Dataset[[#This Row],[2028/29 To - Spending review Topic 1]]+Dataset[[#This Row],[2028/29 To - Spending review Topic 2]]+Dataset[[#This Row],[2028/29 To - Spending review Topic 3]]+Dataset[[#This Row],[2028/29 To - Spending review Topic 4]]+Dataset[[#This Row],[2028/29 To - Other reallocations]]","v":0},{"$f":"Dataset[[#This Row],[2029/30 To - Spending review Topic 1]]+Dataset[[#This Row],[2029/30 To - Spending review Topic 2]]+Dataset[[#This Row],[2029/30 To - Spending review Topic 3]]+Dataset[[#This Row],[2029/30 To - Spending review Topic 4]]+Dataset[[#This Row],[2029/30 To - Other reallocations]]","v":0},{"$f":"Dataset[[#This Row],[2027/28 Targeted savings]]+Dataset[[#This Row],[2027/28 From - Total]]","v":0},{"$f":"Dataset[[#This Row],[2028/29 Targeted savings]]+Dataset[[#This Row],[2028/29 From - Total]]","v":0},{"$f":"Dataset[[#This Row],[2029/30 Targeted savings]]+Dataset[[#This Row],[2029/30 From - Total]]","v":0},{"$f":"Dataset[[#This Row],[2026/27 Targeted savings]]","v":0},{"$f":"SUM(Dataset[[#This Row],[2027/28 Targeted savings]],Dataset[[#This Row],[2027/28 From - Total]],Dataset[[#This Row],[2027/28 To - Total]])","v":0},{"$f":"SUM(Dataset[[#This Row],[2028/29 Targeted savings]],Dataset[[#This Row],[2028/29 From - Total]],Dataset[[#This Row],[2028/29 To - Total]])","v":0},{"$f":"SUM(Dataset[[#This Row],[2029/30 Targeted savings]],Dataset[[#This Row],[2029/30 From - Total]],Dataset[[#This Row],[2029/30 To - Total]])","v":0},{"$f":"Dataset[[#This Row],[2026/27 Baseline]]+Dataset[[#This Row],[2026/27 Total change]]","v":0},{"$f":"Dataset[[#This Row],[2027/28 Baseline]]+Dataset[[#This Row],[2027/28 Total change]]","v":0},{"$f":"Dataset[[#This Row],[2028/29 Baseline]]+Dataset[[#This Row],[2028/29 Total change]]","v":0},{"$f":"Dataset[[#This Row],[2029/30 Baseline]]+Dataset[[#This Row],[2029/30 Total change]]","v":0}]
["NAT|Non-transfer item","30|Operating payments","2027_28","MTEC2027",30,1,6,32802,282,"30","01","06","032802","000282","30|01|06|000282","01","01","02","39","39","01|01|02|39|39","National","Communications and Digital Technologies","Administration","Office Accommodation","Non-transfer item","Current","Current payments","Goods and services","Operating payments","Operating payments","Economic development","Economic regulation and infrastructure","NAT",0,0,0,0,0,0,0,0,0,0,0,null,null,null,null,null,null,null,null,null,null,null,null,null,null,null,null,null,null,null,null,null,null,null,null,null,null,null,null,null,null,null,null,null,null,{"$f":"Dataset[[#This Row],[2027/28 From - Spending review Topic 1]]+Dataset[[#This Row],[2027/28 From - Spending review Topic 2]]+Dataset[[#This Row],[2027/28 From - Spending review Topic 3]]+Dataset[[#This Row],[2027/28 From - Spending review Topic 4]]+Dataset[[#This Row],[2027/28 From - Other reallocations]]","v":0},{"$f":"Dataset[[#This Row],[2028/29 From - Spending review Topic 1]]+Dataset[[#This Row],[2028/29 From - Spending review Topic 2]]+Dataset[[#This Row],[2028/29 From - Spending review Topic 3]]+Dataset[[#This Row],[2028/29 From - Spending review Topic 4]]+Dataset[[#This Row],[2028/29 From - Other reallocations]]","v":0},{"$f":"Dataset[[#This Row],[2029/30 From - Spending review Topic 1]]+Dataset[[#This Row],[2029/30 From - Spending review Topic 2]]+Dataset[[#This Row],[2029/30 From - Spending review Topic 3]]+Dataset[[#This Row],[2029/30 From - Spending review Topic 4]]+Dataset[[#This Row],[2029/30 From - Other reallocations]]","v":0},{"$f":"Dataset[[#This Row],[2027/28 To - Spending review Topic 1]]+Dataset[[#This Row],[2027/28 To - Spending review Topic 2]]+Dataset[[#This Row],[2027/28 To - Spending review Topic 3]]+Dataset[[#This Row],[2027/28 To - Spending review Topic 4]]+Dataset[[#This Row],[2027/28 To - Other reallocations]]","v":0},{"$f":"Dataset[[#This Row],[2028/29 To - Spending review Topic 1]]+Dataset[[#This Row],[2028/29 To - Spending review Topic 2]]+Dataset[[#This Row],[2028/29 To - Spending review Topic 3]]+Dataset[[#This Row],[2028/29 To - Spending review Topic 4]]+Dataset[[#This Row],[2028/29 To - Other reallocations]]","v":0},{"$f":"Dataset[[#This Row],[2029/30 To - Spending review Topic 1]]+Dataset[[#This Row],[2029/30 To - Spending review Topic 2]]+Dataset[[#This Row],[2029/30 To - Spending review Topic 3]]+Dataset[[#This Row],[2029/30 To - Spending review Topic 4]]+Dataset[[#This Row],[2029/30 To - Other reallocations]]","v":0},{"$f":"Dataset[[#This Row],[2027/28 Targeted savings]]+Dataset[[#This Row],[2027/28 From - Total]]","v":0},{"$f":"Dataset[[#This Row],[2028/29 Targeted savings]]+Dataset[[#This Row],[2028/29 From - Total]]","v":0},{"$f":"Dataset[[#This Row],[2029/30 Targeted savings]]+Dataset[[#This Row],[2029/30 From - Total]]","v":0},{"$f":"Dataset[[#This Row],[2026/27 Targeted savings]]","v":0},{"$f":"SUM(Dataset[[#This Row],[2027/28 Targeted savings]],Dataset[[#This Row],[2027/28 From - Total]],Dataset[[#This Row],[2027/28 To - Total]])","v":0},{"$f":"SUM(Dataset[[#This Row],[2028/29 Targeted savings]],Dataset[[#This Row],[2028/29 From - Total]],Dataset[[#This Row],[2028/29 To - Total]])","v":0},{"$f":"SUM(Dataset[[#This Row],[2029/30 Targeted savings]],Dataset[[#This Row],[2029/30 From - Total]],Dataset[[#This Row],[2029/30 To - Total]])","v":0},{"$f":"Dataset[[#This Row],[2026/27 Baseline]]+Dataset[[#This Row],[2026/27 Total change]]","v":0},{"$f":"Dataset[[#This Row],[2027/28 Baseline]]+Dataset[[#This Row],[2027/28 Total change]]","v":0},{"$f":"Dataset[[#This Row],[2028/29 Baseline]]+Dataset[[#This Row],[2028/29 Total change]]","v":0},{"$f":"Dataset[[#This Row],[2029/30 Baseline]]+Dataset[[#This Row],[2029/30 Total change]]","v":0}]
["NAT|Non-transfer item","30|Venues and facilities","2027_28","MTEC2027",30,1,6,32803,283,"30","01","06","032803","000283","30|01|06|000283","01","01","02","40","40","01|01|02|40|40","National","Communications and Digital Technologies","Administration","Office Accommodation","Non-transfer item","Current","Current payments","Goods and services","Venues and facilities","Venues and facilities","Economic development","Economic regulation and infrastructure","NAT",0,0,0,0,0,0,0,0,0,0,0,null,null,null,null,null,null,null,null,null,null,null,null,null,null,null,null,null,null,null,null,null,null,null,null,null,null,null,null,null,null,null,null,null,null,{"$f":"Dataset[[#This Row],[2027/28 From - Spending review Topic 1]]+Dataset[[#This Row],[2027/28 From - Spending review Topic 2]]+Dataset[[#This Row],[2027/28 From - Spending review Topic 3]]+Dataset[[#This Row],[2027/28 From - Spending review Topic 4]]+Dataset[[#This Row],[2027/28 From - Other reallocations]]","v":0},{"$f":"Dataset[[#This Row],[2028/29 From - Spending review Topic 1]]+Dataset[[#This Row],[2028/29 From - Spending review Topic 2]]+Dataset[[#This Row],[2028/29 From - Spending review Topic 3]]+Dataset[[#This Row],[2028/29 From - Spending review Topic 4]]+Dataset[[#This Row],[2028/29 From - Other reallocations]]","v":0},{"$f":"Dataset[[#This Row],[2029/30 From - Spending review Topic 1]]+Dataset[[#This Row],[2029/30 From - Spending review Topic 2]]+Dataset[[#This Row],[2029/30 From - Spending review Topic 3]]+Dataset[[#This Row],[2029/30 From - Spending review Topic 4]]+Dataset[[#This Row],[2029/30 From - Other reallocations]]","v":0},{"$f":"Dataset[[#This Row],[2027/28 To - Spending review Topic 1]]+Dataset[[#This Row],[2027/28 To - Spending review Topic 2]]+Dataset[[#This Row],[2027/28 To - Spending review Topic 3]]+Dataset[[#This Row],[2027/28 To - Spending review Topic 4]]+Dataset[[#This Row],[2027/28 To - Other reallocations]]","v":0},{"$f":"Dataset[[#This Row],[2028/29 To - Spending review Topic 1]]+Dataset[[#This Row],[2028/29 To - Spending review Topic 2]]+Dataset[[#This Row],[2028/29 To - Spending review Topic 3]]+Dataset[[#This Row],[2028/29 To - Spending review Topic 4]]+Dataset[[#This Row],[2028/29 To - Other reallocations]]","v":0},{"$f":"Dataset[[#This Row],[2029/30 To - Spending review Topic 1]]+Dataset[[#This Row],[2029/30 To - Spending review Topic 2]]+Dataset[[#This Row],[2029/30 To - Spending review Topic 3]]+Dataset[[#This Row],[2029/30 To - Spending review Topic 4]]+Dataset[[#This Row],[2029/30 To - Other reallocations]]","v":0},{"$f":"Dataset[[#This Row],[2027/28 Targeted savings]]+Dataset[[#This Row],[2027/28 From - Total]]","v":0},{"$f":"Dataset[[#This Row],[2028/29 Targeted savings]]+Dataset[[#This Row],[2028/29 From - Total]]","v":0},{"$f":"Dataset[[#This Row],[2029/30 Targeted savings]]+Dataset[[#This Row],[2029/30 From - Total]]","v":0},{"$f":"Dataset[[#This Row],[2026/27 Targeted savings]]","v":0},{"$f":"SUM(Dataset[[#This Row],[2027/28 Targeted savings]],Dataset[[#This Row],[2027/28 From - Total]],Dataset[[#This Row],[2027/28 To - Total]])","v":0},{"$f":"SUM(Dataset[[#This Row],[2028/29 Targeted savings]],Dataset[[#This Row],[2028/29 From - Total]],Dataset[[#This Row],[2028/29 To - Total]])","v":0},{"$f":"SUM(Dataset[[#This Row],[2029/30 Targeted savings]],Dataset[[#This Row],[2029/30 From - Total]],Dataset[[#This Row],[2029/30 To - Total]])","v":0},{"$f":"Dataset[[#This Row],[2026/27 Baseline]]+Dataset[[#This Row],[2026/27 Total change]]","v":0},{"$f":"Dataset[[#This Row],[2027/28 Baseline]]+Dataset[[#This Row],[2027/28 Total change]]","v":0},{"$f":"Dataset[[#This Row],[2028/29 Baseline]]+Dataset[[#This Row],[2028/29 Total change]]","v":0},{"$f":"Dataset[[#This Row],[2029/30 Baseline]]+Dataset[[#This Row],[2029/30 Total change]]","v":0}]
["NAT|Non-transfer item","30|Interest (Incl. interest on unitary payments (PPP))","2027_28","MTEC2027",30,1,6,32804,284,"30","01","06","032804","000284","30|01|06|000284","01","01","03","41","41","01|01|03|41|41","National","Communications and Digital Technologies","Administration","Office Accommodation","Non-transfer item","Current","Current payments","Interest and rent on land","Interest (Incl. interest on unitary payments (PPP))","Interest (Incl. interest on unitary payments (PPP))","Economic development","Economic regulation and infrastructure","NAT",0,0,0,0,0,0,0,0,0,0,0,null,null,null,null,null,null,null,null,null,null,null,null,null,null,null,null,null,null,null,null,null,null,null,null,null,null,null,null,null,null,null,null,null,null,{"$f":"Dataset[[#This Row],[2027/28 From - Spending review Topic 1]]+Dataset[[#This Row],[2027/28 From - Spending review Topic 2]]+Dataset[[#This Row],[2027/28 From - Spending review Topic 3]]+Dataset[[#This Row],[2027/28 From - Spending review Topic 4]]+Dataset[[#This Row],[2027/28 From - Other reallocations]]","v":0},{"$f":"Dataset[[#This Row],[2028/29 From - Spending review Topic 1]]+Dataset[[#This Row],[2028/29 From - Spending review Topic 2]]+Dataset[[#This Row],[2028/29 From - Spending review Topic 3]]+Dataset[[#This Row],[2028/29 From - Spending review Topic 4]]+Dataset[[#This Row],[2028/29 From - Other reallocations]]","v":0},{"$f":"Dataset[[#This Row],[2029/30 From - Spending review Topic 1]]+Dataset[[#This Row],[2029/30 From - Spending review Topic 2]]+Dataset[[#This Row],[2029/30 From - Spending review Topic 3]]+Dataset[[#This Row],[2029/30 From - Spending review Topic 4]]+Dataset[[#This Row],[2029/30 From - Other reallocations]]","v":0},{"$f":"Dataset[[#This Row],[2027/28 To - Spending review Topic 1]]+Dataset[[#This Row],[2027/28 To - Spending review Topic 2]]+Dataset[[#This Row],[2027/28 To - Spending review Topic 3]]+Dataset[[#This Row],[2027/28 To - Spending review Topic 4]]+Dataset[[#This Row],[2027/28 To - Other reallocations]]","v":0},{"$f":"Dataset[[#This Row],[2028/29 To - Spending review Topic 1]]+Dataset[[#This Row],[2028/29 To - Spending review Topic 2]]+Dataset[[#This Row],[2028/29 To - Spending review Topic 3]]+Dataset[[#This Row],[2028/29 To - Spending review Topic 4]]+Dataset[[#This Row],[2028/29 To - Other reallocations]]","v":0},{"$f":"Dataset[[#This Row],[2029/30 To - Spending review Topic 1]]+Dataset[[#This Row],[2029/30 To - Spending review Topic 2]]+Dataset[[#This Row],[2029/30 To - Spending review Topic 3]]+Dataset[[#This Row],[2029/30 To - Spending review Topic 4]]+Dataset[[#This Row],[2029/30 To - Other reallocations]]","v":0},{"$f":"Dataset[[#This Row],[2027/28 Targeted savings]]+Dataset[[#This Row],[2027/28 From - Total]]","v":0},{"$f":"Dataset[[#This Row],[2028/29 Targeted savings]]+Dataset[[#This Row],[2028/29 From - Total]]","v":0},{"$f":"Dataset[[#This Row],[2029/30 Targeted savings]]+Dataset[[#This Row],[2029/30 From - Total]]","v":0},{"$f":"Dataset[[#This Row],[2026/27 Targeted savings]]","v":0},{"$f":"SUM(Dataset[[#This Row],[2027/28 Targeted savings]],Dataset[[#This Row],[2027/28 From - Total]],Dataset[[#This Row],[2027/28 To - Total]])","v":0},{"$f":"SUM(Dataset[[#This Row],[2028/29 Targeted savings]],Dataset[[#This Row],[2028/29 From - Total]],Dataset[[#This Row],[2028/29 To - Total]])","v":0},{"$f":"SUM(Dataset[[#This Row],[2029/30 Targeted savings]],Dataset[[#This Row],[2029/30 From - Total]],Dataset[[#This Row],[2029/30 To - Total]])","v":0},{"$f":"Dataset[[#This Row],[2026/27 Baseline]]+Dataset[[#This Row],[2026/27 Total change]]","v":0},{"$f":"Dataset[[#This Row],[2027/28 Baseline]]+Dataset[[#This Row],[2027/28 Total change]]","v":0},{"$f":"Dataset[[#This Row],[2028/29 Baseline]]+Dataset[[#This Row],[2028/29 Total change]]","v":0},{"$f":"Dataset[[#This Row],[2029/30 Baseline]]+Dataset[[#This Row],[2029/30 Total change]]","v":0}]
["NAT|Non-transfer item","30|Rent on land","2027_28","MTEC2027",30,1,6,32805,285,"30","01","06","032805","000285","30|01|06|000285","01","01","03","42","42","01|01|03|42|42","National","Communications and Digital Technologies","Administration","Office Accommodation","Non-transfer item","Current","Current payments","Interest and rent on land","Rent on land","Rent on land","Economic development","Economic regulation and infrastructure","NAT",0,0,0,0,0,0,0,0,0,0,0,null,null,null,null,null,null,null,null,null,null,null,null,null,null,null,null,null,null,null,null,null,null,null,null,null,null,null,null,null,null,null,null,null,null,{"$f":"Dataset[[#This Row],[2027/28 From - Spending review Topic 1]]+Dataset[[#This Row],[2027/28 From - Spending review Topic 2]]+Dataset[[#This Row],[2027/28 From - Spending review Topic 3]]+Dataset[[#This Row],[2027/28 From - Spending review Topic 4]]+Dataset[[#This Row],[2027/28 From - Other reallocations]]","v":0},{"$f":"Dataset[[#This Row],[2028/29 From - Spending review Topic 1]]+Dataset[[#This Row],[2028/29 From - Spending review Topic 2]]+Dataset[[#This Row],[2028/29 From - Spending review Topic 3]]+Dataset[[#This Row],[2028/29 From - Spending review Topic 4]]+Dataset[[#This Row],[2028/29 From - Other reallocations]]","v":0},{"$f":"Dataset[[#This Row],[2029/30 From - Spending review Topic 1]]+Dataset[[#This Row],[2029/30 From - Spending review Topic 2]]+Dataset[[#This Row],[2029/30 From - Spending review Topic 3]]+Dataset[[#This Row],[2029/30 From - Spending review Topic 4]]+Dataset[[#This Row],[2029/30 From - Other reallocations]]","v":0},{"$f":"Dataset[[#This Row],[2027/28 To - Spending review Topic 1]]+Dataset[[#This Row],[2027/28 To - Spending review Topic 2]]+Dataset[[#This Row],[2027/28 To - Spending review Topic 3]]+Dataset[[#This Row],[2027/28 To - Spending review Topic 4]]+Dataset[[#This Row],[2027/28 To - Other reallocations]]","v":0},{"$f":"Dataset[[#This Row],[2028/29 To - Spending review Topic 1]]+Dataset[[#This Row],[2028/29 To - Spending review Topic 2]]+Dataset[[#This Row],[2028/29 To - Spending review Topic 3]]+Dataset[[#This Row],[2028/29 To - Spending review Topic 4]]+Dataset[[#This Row],[2028/29 To - Other reallocations]]","v":0},{"$f":"Dataset[[#This Row],[2029/30 To - Spending review Topic 1]]+Dataset[[#This Row],[2029/30 To - Spending review Topic 2]]+Dataset[[#This Row],[2029/30 To - Spending review Topic 3]]+Dataset[[#This Row],[2029/30 To - Spending review Topic 4]]+Dataset[[#This Row],[2029/30 To - Other reallocations]]","v":0},{"$f":"Dataset[[#This Row],[2027/28 Targeted savings]]+Dataset[[#This Row],[2027/28 From - Total]]","v":0},{"$f":"Dataset[[#This Row],[2028/29 Targeted savings]]+Dataset[[#This Row],[2028/29 From - Total]]","v":0},{"$f":"Dataset[[#This Row],[2029/30 Targeted savings]]+Dataset[[#This Row],[2029/30 From - Total]]","v":0},{"$f":"Dataset[[#This Row],[2026/27 Targeted savings]]","v":0},{"$f":"SUM(Dataset[[#This Row],[2027/28 Targeted savings]],Dataset[[#This Row],[2027/28 From - Total]],Dataset[[#This Row],[2027/28 To - Total]])","v":0},{"$f":"SUM(Dataset[[#This Row],[2028/29 Targeted savings]],Dataset[[#This Row],[2028/29 From - Total]],Dataset[[#This Row],[2028/29 To - Total]])","v":0},{"$f":"SUM(Dataset[[#This Row],[2029/30 Targeted savings]],Dataset[[#This Row],[2029/30 From - Total]],Dataset[[#This Row],[2029/30 To - Total]])","v":0},{"$f":"Dataset[[#This Row],[2026/27 Baseline]]+Dataset[[#This Row],[2026/27 Total change]]","v":0},{"$f":"Dataset[[#This Row],[2027/28 Baseline]]+Dataset[[#This Row],[2027/28 Total change]]","v":0},{"$f":"Dataset[[#This Row],[2028/29 Baseline]]+Dataset[[#This Row],[2028/29 Total change]]","v":0},{"$f":"Dataset[[#This Row],[2029/30 Baseline]]+Dataset[[#This Row],[2029/30 Total change]]","v":0}]
["NAT|Non-transfer item","30|Buildings","2027_28","MTEC2027",30,1,6,32806,286,"30","01","06","032806","000286","30|01|06|000286","02","03","11","54","58","02|03|11|54|58","National","Communications and Digital Technologies","Administration","Office Accommodation","Non-transfer item","Capital","Payments for capital assets","Buildings and other fixed structures","Buildings","Buildings","Economic development","Economic regulation and infrastructure","NAT",0,0,0,0,0,0,0,0,0,0,0,null,null,null,null,null,null,null,null,null,null,null,null,null,null,null,null,null,null,null,null,null,null,null,null,null,null,null,null,null,null,null,null,null,null,{"$f":"Dataset[[#This Row],[2027/28 From - Spending review Topic 1]]+Dataset[[#This Row],[2027/28 From - Spending review Topic 2]]+Dataset[[#This Row],[2027/28 From - Spending review Topic 3]]+Dataset[[#This Row],[2027/28 From - Spending review Topic 4]]+Dataset[[#This Row],[2027/28 From - Other reallocations]]","v":0},{"$f":"Dataset[[#This Row],[2028/29 From - Spending review Topic 1]]+Dataset[[#This Row],[2028/29 From - Spending review Topic 2]]+Dataset[[#This Row],[2028/29 From - Spending review Topic 3]]+Dataset[[#This Row],[2028/29 From - Spending review Topic 4]]+Dataset[[#This Row],[2028/29 From - Other reallocations]]","v":0},{"$f":"Dataset[[#This Row],[2029/30 From - Spending review Topic 1]]+Dataset[[#This Row],[2029/30 From - Spending review Topic 2]]+Dataset[[#This Row],[2029/30 From - Spending review Topic 3]]+Dataset[[#This Row],[2029/30 From - Spending review Topic 4]]+Dataset[[#This Row],[2029/30 From - Other reallocations]]","v":0},{"$f":"Dataset[[#This Row],[2027/28 To - Spending review Topic 1]]+Dataset[[#This Row],[2027/28 To - Spending review Topic 2]]+Dataset[[#This Row],[2027/28 To - Spending review Topic 3]]+Dataset[[#This Row],[2027/28 To - Spending review Topic 4]]+Dataset[[#This Row],[2027/28 To - Other reallocations]]","v":0},{"$f":"Dataset[[#This Row],[2028/29 To - Spending review Topic 1]]+Dataset[[#This Row],[2028/29 To - Spending review Topic 2]]+Dataset[[#This Row],[2028/29 To - Spending review Topic 3]]+Dataset[[#This Row],[2028/29 To - Spending review Topic 4]]+Dataset[[#This Row],[2028/29 To - Other reallocations]]","v":0},{"$f":"Dataset[[#This Row],[2029/30 To - Spending review Topic 1]]+Dataset[[#This Row],[2029/30 To - Spending review Topic 2]]+Dataset[[#This Row],[2029/30 To - Spending review Topic 3]]+Dataset[[#This Row],[2029/30 To - Spending review Topic 4]]+Dataset[[#This Row],[2029/30 To - Other reallocations]]","v":0},{"$f":"Dataset[[#This Row],[2027/28 Targeted savings]]+Dataset[[#This Row],[2027/28 From - Total]]","v":0},{"$f":"Dataset[[#This Row],[2028/29 Targeted savings]]+Dataset[[#This Row],[2028/29 From - Total]]","v":0},{"$f":"Dataset[[#This Row],[2029/30 Targeted savings]]+Dataset[[#This Row],[2029/30 From - Total]]","v":0},{"$f":"Dataset[[#This Row],[2026/27 Targeted savings]]","v":0},{"$f":"SUM(Dataset[[#This Row],[2027/28 Targeted savings]],Dataset[[#This Row],[2027/28 From - Total]],Dataset[[#This Row],[2027/28 To - Total]])","v":0},{"$f":"SUM(Dataset[[#This Row],[2028/29 Targeted savings]],Dataset[[#This Row],[2028/29 From - Total]],Dataset[[#This Row],[2028/29 To - Total]])","v":0},{"$f":"SUM(Dataset[[#This Row],[2029/30 Targeted savings]],Dataset[[#This Row],[2029/30 From - Total]],Dataset[[#This Row],[2029/30 To - Total]])","v":0},{"$f":"Dataset[[#This Row],[2026/27 Baseline]]+Dataset[[#This Row],[2026/27 Total change]]","v":0},{"$f":"Dataset[[#This Row],[2027/28 Baseline]]+Dataset[[#This Row],[2027/28 Total change]]","v":0},{"$f":"Dataset[[#This Row],[2028/29 Baseline]]+Dataset[[#This Row],[2028/29 Total change]]","v":0},{"$f":"Dataset[[#This Row],[2029/30 Baseline]]+Dataset[[#This Row],[2029/30 Total change]]","v":0}]
["NAT|Non-transfer item","30|Other fixed structures","2027_28","MTEC2027",30,1,6,32807,287,"30","01","06","032807","000287","30|01|06|000287","02","03","11","55","59","02|03|11|55|59","National","Communications and Digital Technologies","Administration","Office Accommodation","Non-transfer item","Capital","Payments for capital assets","Buildings and other fixed structures","Other fixed structures","Other fixed structures","Economic development","Economic regulation and infrastructure","NAT",0,0,0,0,0,0,0,0,0,0,0,null,null,null,null,null,null,null,null,null,null,null,null,null,null,null,null,null,null,null,null,null,null,null,null,null,null,null,null,null,null,null,null,null,null,{"$f":"Dataset[[#This Row],[2027/28 From - Spending review Topic 1]]+Dataset[[#This Row],[2027/28 From - Spending review Topic 2]]+Dataset[[#This Row],[2027/28 From - Spending review Topic 3]]+Dataset[[#This Row],[2027/28 From - Spending review Topic 4]]+Dataset[[#This Row],[2027/28 From - Other reallocations]]","v":0},{"$f":"Dataset[[#This Row],[2028/29 From - Spending review Topic 1]]+Dataset[[#This Row],[2028/29 From - Spending review Topic 2]]+Dataset[[#This Row],[2028/29 From - Spending review Topic 3]]+Dataset[[#This Row],[2028/29 From - Spending review Topic 4]]+Dataset[[#This Row],[2028/29 From - Other reallocations]]","v":0},{"$f":"Dataset[[#This Row],[2029/30 From - Spending review Topic 1]]+Dataset[[#This Row],[2029/30 From - Spending review Topic 2]]+Dataset[[#This Row],[2029/30 From - Spending review Topic 3]]+Dataset[[#This Row],[2029/30 From - Spending review Topic 4]]+Dataset[[#This Row],[2029/30 From - Other reallocations]]","v":0},{"$f":"Dataset[[#This Row],[2027/28 To - Spending review Topic 1]]+Dataset[[#This Row],[2027/28 To - Spending review Topic 2]]+Dataset[[#This Row],[2027/28 To - Spending review Topic 3]]+Dataset[[#This Row],[2027/28 To - Spending review Topic 4]]+Dataset[[#This Row],[2027/28 To - Other reallocations]]","v":0},{"$f":"Dataset[[#This Row],[2028/29 To - Spending review Topic 1]]+Dataset[[#This Row],[2028/29 To - Spending review Topic 2]]+Dataset[[#This Row],[2028/29 To - Spending review Topic 3]]+Dataset[[#This Row],[2028/29 To - Spending review Topic 4]]+Dataset[[#This Row],[2028/29 To - Other reallocations]]","v":0},{"$f":"Dataset[[#This Row],[2029/30 To - Spending review Topic 1]]+Dataset[[#This Row],[2029/30 To - Spending review Topic 2]]+Dataset[[#This Row],[2029/30 To - Spending review Topic 3]]+Dataset[[#This Row],[2029/30 To - Spending review Topic 4]]+Dataset[[#This Row],[2029/30 To - Other reallocations]]","v":0},{"$f":"Dataset[[#This Row],[2027/28 Targeted savings]]+Dataset[[#This Row],[2027/28 From - Total]]","v":0},{"$f":"Dataset[[#This Row],[2028/29 Targeted savings]]+Dataset[[#This Row],[2028/29 From - Total]]","v":0},{"$f":"Dataset[[#This Row],[2029/30 Targeted savings]]+Dataset[[#This Row],[2029/30 From - Total]]","v":0},{"$f":"Dataset[[#This Row],[2026/27 Targeted savings]]","v":0},{"$f":"SUM(Dataset[[#This Row],[2027/28 Targeted savings]],Dataset[[#This Row],[2027/28 From - Total]],Dataset[[#This Row],[2027/28 To - Total]])","v":0},{"$f":"SUM(Dataset[[#This Row],[2028/29 Targeted savings]],Dataset[[#This Row],[2028/29 From - Total]],Dataset[[#This Row],[2028/29 To - Total]])","v":0},{"$f":"SUM(Dataset[[#This Row],[2029/30 Targeted savings]],Dataset[[#This Row],[2029/30 From - Total]],Dataset[[#This Row],[2029/30 To - Total]])","v":0},{"$f":"Dataset[[#This Row],[2026/27 Baseline]]+Dataset[[#This Row],[2026/27 Total change]]","v":0},{"$f":"Dataset[[#This Row],[2027/28 Baseline]]+Dataset[[#This Row],[2027/28 Total change]]","v":0},{"$f":"Dataset[[#This Row],[2028/29 Baseline]]+Dataset[[#This Row],[2028/29 Total change]]","v":0},{"$f":"Dataset[[#This Row],[2029/30 Baseline]]+Dataset[[#This Row],[2029/30 Total change]]","v":0}]
["NAT|Non-transfer item","30|Transport equipment","2027_28","MTEC2027",30,1,6,32808,288,"30","01","06","032808","000288","30|01|06|000288","02","03","12","56","60","02|03|12|56|60","National","Communications and Digital Technologies","Administration","Office Accommodation","Non-transfer item","Capital","Payments for capital assets","Machinery and equipment","Transport equipment","Transport equipment","Economic development","Economic regulation and infrastructure","NAT",0,0,0,0,0,0,0,0,0,0,0,null,null,null,null,null,null,null,null,null,null,null,null,null,null,null,null,null,null,null,null,null,null,null,null,null,null,null,null,null,null,null,null,null,null,{"$f":"Dataset[[#This Row],[2027/28 From - Spending review Topic 1]]+Dataset[[#This Row],[2027/28 From - Spending review Topic 2]]+Dataset[[#This Row],[2027/28 From - Spending review Topic 3]]+Dataset[[#This Row],[2027/28 From - Spending review Topic 4]]+Dataset[[#This Row],[2027/28 From - Other reallocations]]","v":0},{"$f":"Dataset[[#This Row],[2028/29 From - Spending review Topic 1]]+Dataset[[#This Row],[2028/29 From - Spending review Topic 2]]+Dataset[[#This Row],[2028/29 From - Spending review Topic 3]]+Dataset[[#This Row],[2028/29 From - Spending review Topic 4]]+Dataset[[#This Row],[2028/29 From - Other reallocations]]","v":0},{"$f":"Dataset[[#This Row],[2029/30 From - Spending review Topic 1]]+Dataset[[#This Row],[2029/30 From - Spending review Topic 2]]+Dataset[[#This Row],[2029/30 From - Spending review Topic 3]]+Dataset[[#This Row],[2029/30 From - Spending review Topic 4]]+Dataset[[#This Row],[2029/30 From - Other reallocations]]","v":0},{"$f":"Dataset[[#This Row],[2027/28 To - Spending review Topic 1]]+Dataset[[#This Row],[2027/28 To - Spending review Topic 2]]+Dataset[[#This Row],[2027/28 To - Spending review Topic 3]]+Dataset[[#This Row],[2027/28 To - Spending review Topic 4]]+Dataset[[#This Row],[2027/28 To - Other reallocations]]","v":0},{"$f":"Dataset[[#This Row],[2028/29 To - Spending review Topic 1]]+Dataset[[#This Row],[2028/29 To - Spending review Topic 2]]+Dataset[[#This Row],[2028/29 To - Spending review Topic 3]]+Dataset[[#This Row],[2028/29 To - Spending review Topic 4]]+Dataset[[#This Row],[2028/29 To - Other reallocations]]","v":0},{"$f":"Dataset[[#This Row],[2029/30 To - Spending review Topic 1]]+Dataset[[#This Row],[2029/30 To - Spending review Topic 2]]+Dataset[[#This Row],[2029/30 To - Spending review Topic 3]]+Dataset[[#This Row],[2029/30 To - Spending review Topic 4]]+Dataset[[#This Row],[2029/30 To - Other reallocations]]","v":0},{"$f":"Dataset[[#This Row],[2027/28 Targeted savings]]+Dataset[[#This Row],[2027/28 From - Total]]","v":0},{"$f":"Dataset[[#This Row],[2028/29 Targeted savings]]+Dataset[[#This Row],[2028/29 From - Total]]","v":0},{"$f":"Dataset[[#This Row],[2029/30 Targeted savings]]+Dataset[[#This Row],[2029/30 From - Total]]","v":0},{"$f":"Dataset[[#This Row],[2026/27 Targeted savings]]","v":0},{"$f":"SUM(Dataset[[#This Row],[2027/28 Targeted savings]],Dataset[[#This Row],[2027/28 From - Total]],Dataset[[#This Row],[2027/28 To - Total]])","v":0},{"$f":"SUM(Dataset[[#This Row],[2028/29 Targeted savings]],Dataset[[#This Row],[2028/29 From - Total]],Dataset[[#This Row],[2028/29 To - Total]])","v":0},{"$f":"SUM(Dataset[[#This Row],[2029/30 Targeted savings]],Dataset[[#This Row],[2029/30 From - Total]],Dataset[[#This Row],[2029/30 To - Total]])","v":0},{"$f":"Dataset[[#This Row],[2026/27 Baseline]]+Dataset[[#This Row],[2026/27 Total change]]","v":0},{"$f":"Dataset[[#This Row],[2027/28 Baseline]]+Dataset[[#This Row],[2027/28 Total change]]","v":0},{"$f":"Dataset[[#This Row],[2028/29 Baseline]]+Dataset[[#This Row],[2028/29 Total change]]","v":0},{"$f":"Dataset[[#This Row],[2029/30 Baseline]]+Dataset[[#This Row],[2029/30 Total change]]","v":0}]
["NAT|Non-transfer item","30|Other machinery and equipment","2027_28","MTEC2027",30,1,6,32809,289,"30","01","06","032809","000289","30|01|06|000289","02","03","12","57","61","02|03|12|57|61","National","Communications and Digital Technologies","Administration","Office Accommodation","Non-transfer item","Capital","Payments for capital assets","Machinery and equipment","Other machinery and equipment","Other machinery and equipment","Economic development","Economic regulation and infrastructure","NAT",0,0,0,0,0,0,0,0,0,0,0,null,null,null,null,null,null,null,null,null,null,null,null,null,null,null,null,null,null,null,null,null,null,null,null,null,null,null,null,null,null,null,null,null,null,{"$f":"Dataset[[#This Row],[2027/28 From - Spending review Topic 1]]+Dataset[[#This Row],[2027/28 From - Spending review Topic 2]]+Dataset[[#This Row],[2027/28 From - Spending review Topic 3]]+Dataset[[#This Row],[2027/28 From - Spending review Topic 4]]+Dataset[[#This Row],[2027/28 From - Other reallocations]]","v":0},{"$f":"Dataset[[#This Row],[2028/29 From - Spending review Topic 1]]+Dataset[[#This Row],[2028/29 From - Spending review Topic 2]]+Dataset[[#This Row],[2028/29 From - Spending review Topic 3]]+Dataset[[#This Row],[2028/29 From - Spending review Topic 4]]+Dataset[[#This Row],[2028/29 From - Other reallocations]]","v":0},{"$f":"Dataset[[#This Row],[2029/30 From - Spending review Topic 1]]+Dataset[[#This Row],[2029/30 From - Spending review Topic 2]]+Dataset[[#This Row],[2029/30 From - Spending review Topic 3]]+Dataset[[#This Row],[2029/30 From - Spending review Topic 4]]+Dataset[[#This Row],[2029/30 From - Other reallocations]]","v":0},{"$f":"Dataset[[#This Row],[2027/28 To - Spending review Topic 1]]+Dataset[[#This Row],[2027/28 To - Spending review Topic 2]]+Dataset[[#This Row],[2027/28 To - Spending review Topic 3]]+Dataset[[#This Row],[2027/28 To - Spending review Topic 4]]+Dataset[[#This Row],[2027/28 To - Other reallocations]]","v":0},{"$f":"Dataset[[#This Row],[2028/29 To - Spending review Topic 1]]+Dataset[[#This Row],[2028/29 To - Spending review Topic 2]]+Dataset[[#This Row],[2028/29 To - Spending review Topic 3]]+Dataset[[#This Row],[2028/29 To - Spending review Topic 4]]+Dataset[[#This Row],[2028/29 To - Other reallocations]]","v":0},{"$f":"Dataset[[#This Row],[2029/30 To - Spending review Topic 1]]+Dataset[[#This Row],[2029/30 To - Spending review Topic 2]]+Dataset[[#This Row],[2029/30 To - Spending review Topic 3]]+Dataset[[#This Row],[2029/30 To - Spending review Topic 4]]+Dataset[[#This Row],[2029/30 To - Other reallocations]]","v":0},{"$f":"Dataset[[#This Row],[2027/28 Targeted savings]]+Dataset[[#This Row],[2027/28 From - Total]]","v":0},{"$f":"Dataset[[#This Row],[2028/29 Targeted savings]]+Dataset[[#This Row],[2028/29 From - Total]]","v":0},{"$f":"Dataset[[#This Row],[2029/30 Targeted savings]]+Dataset[[#This Row],[2029/30 From - Total]]","v":0},{"$f":"Dataset[[#This Row],[2026/27 Targeted savings]]","v":0},{"$f":"SUM(Dataset[[#This Row],[2027/28 Targeted savings]],Dataset[[#This Row],[2027/28 From - Total]],Dataset[[#This Row],[2027/28 To - Total]])","v":0},{"$f":"SUM(Dataset[[#This Row],[2028/29 Targeted savings]],Dataset[[#This Row],[2028/29 From - Total]],Dataset[[#This Row],[2028/29 To - Total]])","v":0},{"$f":"SUM(Dataset[[#This Row],[2029/30 Targeted savings]],Dataset[[#This Row],[2029/30 From - Total]],Dataset[[#This Row],[2029/30 To - Total]])","v":0},{"$f":"Dataset[[#This Row],[2026/27 Baseline]]+Dataset[[#This Row],[2026/27 Total change]]","v":0},{"$f":"Dataset[[#This Row],[2027/28 Baseline]]+Dataset[[#This Row],[2027/28 Total change]]","v":0},{"$f":"Dataset[[#This Row],[2028/29 Baseline]]+Dataset[[#This Row],[2028/29 Total change]]","v":0},{"$f":"Dataset[[#This Row],[2029/30 Baseline]]+Dataset[[#This Row],[2029/30 Total change]]","v":0}]
["NAT|Non-transfer item","30|Heritage assets","2027_28","MTEC2027",30,1,6,32810,290,"30","01","06","032810","000290","30|01|06|000290","02","03","13","58","62","02|03|13|58|62","National","Communications and Digital Technologies","Administration","Office Accommodation","Non-transfer item","Capital","Payments for capital assets","Heritage assets","Heritage assets","Heritage assets","Economic development","Economic regulation and infrastructure","NAT",0,0,0,0,0,0,0,0,0,0,0,null,null,null,null,null,null,null,null,null,null,null,null,null,null,null,null,null,null,null,null,null,null,null,null,null,null,null,null,null,null,null,null,null,null,{"$f":"Dataset[[#This Row],[2027/28 From - Spending review Topic 1]]+Dataset[[#This Row],[2027/28 From - Spending review Topic 2]]+Dataset[[#This Row],[2027/28 From - Spending review Topic 3]]+Dataset[[#This Row],[2027/28 From - Spending review Topic 4]]+Dataset[[#This Row],[2027/28 From - Other reallocations]]","v":0},{"$f":"Dataset[[#This Row],[2028/29 From - Spending review Topic 1]]+Dataset[[#This Row],[2028/29 From - Spending review Topic 2]]+Dataset[[#This Row],[2028/29 From - Spending review Topic 3]]+Dataset[[#This Row],[2028/29 From - Spending review Topic 4]]+Dataset[[#This Row],[2028/29 From - Other reallocations]]","v":0},{"$f":"Dataset[[#This Row],[2029/30 From - Spending review Topic 1]]+Dataset[[#This Row],[2029/30 From - Spending review Topic 2]]+Dataset[[#This Row],[2029/30 From - Spending review Topic 3]]+Dataset[[#This Row],[2029/30 From - Spending review Topic 4]]+Dataset[[#This Row],[2029/30 From - Other reallocations]]","v":0},{"$f":"Dataset[[#This Row],[2027/28 To - Spending review Topic 1]]+Dataset[[#This Row],[2027/28 To - Spending review Topic 2]]+Dataset[[#This Row],[2027/28 To - Spending review Topic 3]]+Dataset[[#This Row],[2027/28 To - Spending review Topic 4]]+Dataset[[#This Row],[2027/28 To - Other reallocations]]","v":0},{"$f":"Dataset[[#This Row],[2028/29 To - Spending review Topic 1]]+Dataset[[#This Row],[2028/29 To - Spending review Topic 2]]+Dataset[[#This Row],[2028/29 To - Spending review Topic 3]]+Dataset[[#This Row],[2028/29 To - Spending review Topic 4]]+Dataset[[#This Row],[2028/29 To - Other reallocations]]","v":0},{"$f":"Dataset[[#This Row],[2029/30 To - Spending review Topic 1]]+Dataset[[#This Row],[2029/30 To - Spending review Topic 2]]+Dataset[[#This Row],[2029/30 To - Spending review Topic 3]]+Dataset[[#This Row],[2029/30 To - Spending review Topic 4]]+Dataset[[#This Row],[2029/30 To - Other reallocations]]","v":0},{"$f":"Dataset[[#This Row],[2027/28 Targeted savings]]+Dataset[[#This Row],[2027/28 From - Total]]","v":0},{"$f":"Dataset[[#This Row],[2028/29 Targeted savings]]+Dataset[[#This Row],[2028/29 From - Total]]","v":0},{"$f":"Dataset[[#This Row],[2029/30 Targeted savings]]+Dataset[[#This Row],[2029/30 From - Total]]","v":0},{"$f":"Dataset[[#This Row],[2026/27 Targeted savings]]","v":0},{"$f":"SUM(Dataset[[#This Row],[2027/28 Targeted savings]],Dataset[[#This Row],[2027/28 From - Total]],Dataset[[#This Row],[2027/28 To - Total]])","v":0},{"$f":"SUM(Dataset[[#This Row],[2028/29 Targeted savings]],Dataset[[#This Row],[2028/29 From - Total]],Dataset[[#This Row],[2028/29 To - Total]])","v":0},{"$f":"SUM(Dataset[[#This Row],[2029/30 Targeted savings]],Dataset[[#This Row],[2029/30 From - Total]],Dataset[[#This Row],[2029/30 To - Total]])","v":0},{"$f":"Dataset[[#This Row],[2026/27 Baseline]]+Dataset[[#This Row],[2026/27 Total change]]","v":0},{"$f":"Dataset[[#This Row],[2027/28 Baseline]]+Dataset[[#This Row],[2027/28 Total change]]","v":0},{"$f":"Dataset[[#This Row],[2028/29 Baseline]]+Dataset[[#This Row],[2028/29 Total change]]","v":0},{"$f":"Dataset[[#This Row],[2029/30 Baseline]]+Dataset[[#This Row],[2029/30 Total change]]","v":0}]
["NAT|Non-transfer item","30|Specialised military assets","2027_28","MTEC2027",30,1,6,32811,291,"30","01","06","032811","000291","30|01|06|000291","02","03","14","59","63","02|03|14|59|63","National","Communications and Digital Technologies","Administration","Office Accommodation","Non-transfer item","Capital","Payments for capital assets","Specialised military assets","Specialised military assets","Specialised military assets","Economic development","Economic regulation and infrastructure","NAT",0,0,0,0,0,0,0,0,0,0,0,null,null,null,null,null,null,null,null,null,null,null,null,null,null,null,null,null,null,null,null,null,null,null,null,null,null,null,null,null,null,null,null,null,null,{"$f":"Dataset[[#This Row],[2027/28 From - Spending review Topic 1]]+Dataset[[#This Row],[2027/28 From - Spending review Topic 2]]+Dataset[[#This Row],[2027/28 From - Spending review Topic 3]]+Dataset[[#This Row],[2027/28 From - Spending review Topic 4]]+Dataset[[#This Row],[2027/28 From - Other reallocations]]","v":0},{"$f":"Dataset[[#This Row],[2028/29 From - Spending review Topic 1]]+Dataset[[#This Row],[2028/29 From - Spending review Topic 2]]+Dataset[[#This Row],[2028/29 From - Spending review Topic 3]]+Dataset[[#This Row],[2028/29 From - Spending review Topic 4]]+Dataset[[#This Row],[2028/29 From - Other reallocations]]","v":0},{"$f":"Dataset[[#This Row],[2029/30 From - Spending review Topic 1]]+Dataset[[#This Row],[2029/30 From - Spending review Topic 2]]+Dataset[[#This Row],[2029/30 From - Spending review Topic 3]]+Dataset[[#This Row],[2029/30 From - Spending review Topic 4]]+Dataset[[#This Row],[2029/30 From - Other reallocations]]","v":0},{"$f":"Dataset[[#This Row],[2027/28 To - Spending review Topic 1]]+Dataset[[#This Row],[2027/28 To - Spending review Topic 2]]+Dataset[[#This Row],[2027/28 To - Spending review Topic 3]]+Dataset[[#This Row],[2027/28 To - Spending review Topic 4]]+Dataset[[#This Row],[2027/28 To - Other reallocations]]","v":0},{"$f":"Dataset[[#This Row],[2028/29 To - Spending review Topic 1]]+Dataset[[#This Row],[2028/29 To - Spending review Topic 2]]+Dataset[[#This Row],[2028/29 To - Spending review Topic 3]]+Dataset[[#This Row],[2028/29 To - Spending review Topic 4]]+Dataset[[#This Row],[2028/29 To - Other reallocations]]","v":0},{"$f":"Dataset[[#This Row],[2029/30 To - Spending review Topic 1]]+Dataset[[#This Row],[2029/30 To - Spending review Topic 2]]+Dataset[[#This Row],[2029/30 To - Spending review Topic 3]]+Dataset[[#This Row],[2029/30 To - Spending review Topic 4]]+Dataset[[#This Row],[2029/30 To - Other reallocations]]","v":0},{"$f":"Dataset[[#This Row],[2027/28 Targeted savings]]+Dataset[[#This Row],[2027/28 From - Total]]","v":0},{"$f":"Dataset[[#This Row],[2028/29 Targeted savings]]+Dataset[[#This Row],[2028/29 From - Total]]","v":0},{"$f":"Dataset[[#This Row],[2029/30 Targeted savings]]+Dataset[[#This Row],[2029/30 From - Total]]","v":0},{"$f":"Dataset[[#This Row],[2026/27 Targeted savings]]","v":0},{"$f":"SUM(Dataset[[#This Row],[2027/28 Targeted savings]],Dataset[[#This Row],[2027/28 From - Total]],Dataset[[#This Row],[2027/28 To - Total]])","v":0},{"$f":"SUM(Dataset[[#This Row],[2028/29 Targeted savings]],Dataset[[#This Row],[2028/29 From - Total]],Dataset[[#This Row],[2028/29 To - Total]])","v":0},{"$f":"SUM(Dataset[[#This Row],[2029/30 Targeted savings]],Dataset[[#This Row],[2029/30 From - Total]],Dataset[[#This Row],[2029/30 To - Total]])","v":0},{"$f":"Dataset[[#This Row],[2026/27 Baseline]]+Dataset[[#This Row],[2026/27 Total change]]","v":0},{"$f":"Dataset[[#This Row],[2027/28 Baseline]]+Dataset[[#This Row],[2027/28 Total change]]","v":0},{"$f":"Dataset[[#This Row],[2028/29 Baseline]]+Dataset[[#This Row],[2028/29 Total change]]","v":0},{"$f":"Dataset[[#This Row],[2029/30 Baseline]]+Dataset[[#This Row],[2029/30 Total change]]","v":0}]
["NAT|Non-transfer item","30|Biological assets","2027_28","MTEC2027",30,1,6,32812,292,"30","01","06","032812","000292","30|01|06|000292","02","03","15","60","64","02|03|15|60|64","National","Communications and Digital Technologies","Administration","Office Accommodation","Non-transfer item","Capital","Payments for capital assets","Biological assets","Biological assets","Biological assets","Economic development","Economic regulation and infrastructure","NAT",0,0,0,0,0,0,0,0,0,0,0,null,null,null,null,null,null,null,null,null,null,null,null,null,null,null,null,null,null,null,null,null,null,null,null,null,null,null,null,null,null,null,null,null,null,{"$f":"Dataset[[#This Row],[2027/28 From - Spending review Topic 1]]+Dataset[[#This Row],[2027/28 From - Spending review Topic 2]]+Dataset[[#This Row],[2027/28 From - Spending review Topic 3]]+Dataset[[#This Row],[2027/28 From - Spending review Topic 4]]+Dataset[[#This Row],[2027/28 From - Other reallocations]]","v":0},{"$f":"Dataset[[#This Row],[2028/29 From - Spending review Topic 1]]+Dataset[[#This Row],[2028/29 From - Spending review Topic 2]]+Dataset[[#This Row],[2028/29 From - Spending review Topic 3]]+Dataset[[#This Row],[2028/29 From - Spending review Topic 4]]+Dataset[[#This Row],[2028/29 From - Other reallocations]]","v":0},{"$f":"Dataset[[#This Row],[2029/30 From - Spending review Topic 1]]+Dataset[[#This Row],[2029/30 From - Spending review Topic 2]]+Dataset[[#This Row],[2029/30 From - Spending review Topic 3]]+Dataset[[#This Row],[2029/30 From - Spending review Topic 4]]+Dataset[[#This Row],[2029/30 From - Other reallocations]]","v":0},{"$f":"Dataset[[#This Row],[2027/28 To - Spending review Topic 1]]+Dataset[[#This Row],[2027/28 To - Spending review Topic 2]]+Dataset[[#This Row],[2027/28 To - Spending review Topic 3]]+Dataset[[#This Row],[2027/28 To - Spending review Topic 4]]+Dataset[[#This Row],[2027/28 To - Other reallocations]]","v":0},{"$f":"Dataset[[#This Row],[2028/29 To - Spending review Topic 1]]+Dataset[[#This Row],[2028/29 To - Spending review Topic 2]]+Dataset[[#This Row],[2028/29 To - Spending review Topic 3]]+Dataset[[#This Row],[2028/29 To - Spending review Topic 4]]+Dataset[[#This Row],[2028/29 To - Other reallocations]]","v":0},{"$f":"Dataset[[#This Row],[2029/30 To - Spending review Topic 1]]+Dataset[[#This Row],[2029/30 To - Spending review Topic 2]]+Dataset[[#This Row],[2029/30 To - Spending review Topic 3]]+Dataset[[#This Row],[2029/30 To - Spending review Topic 4]]+Dataset[[#This Row],[2029/30 To - Other reallocations]]","v":0},{"$f":"Dataset[[#This Row],[2027/28 Targeted savings]]+Dataset[[#This Row],[2027/28 From - Total]]","v":0},{"$f":"Dataset[[#This Row],[2028/29 Targeted savings]]+Dataset[[#This Row],[2028/29 From - Total]]","v":0},{"$f":"Dataset[[#This Row],[2029/30 Targeted savings]]+Dataset[[#This Row],[2029/30 From - Total]]","v":0},{"$f":"Dataset[[#This Row],[2026/27 Targeted savings]]","v":0},{"$f":"SUM(Dataset[[#This Row],[2027/28 Targeted savings]],Dataset[[#This Row],[2027/28 From - Total]],Dataset[[#This Row],[2027/28 To - Total]])","v":0},{"$f":"SUM(Dataset[[#This Row],[2028/29 Targeted savings]],Dataset[[#This Row],[2028/29 From - Total]],Dataset[[#This Row],[2028/29 To - Total]])","v":0},{"$f":"SUM(Dataset[[#This Row],[2029/30 Targeted savings]],Dataset[[#This Row],[2029/30 From - Total]],Dataset[[#This Row],[2029/30 To - Total]])","v":0},{"$f":"Dataset[[#This Row],[2026/27 Baseline]]+Dataset[[#This Row],[2026/27 Total change]]","v":0},{"$f":"Dataset[[#This Row],[2027/28 Baseline]]+Dataset[[#This Row],[2027/28 Total change]]","v":0},{"$f":"Dataset[[#This Row],[2028/29 Baseline]]+Dataset[[#This Row],[2028/29 Total change]]","v":0},{"$f":"Dataset[[#This Row],[2029/30 Baseline]]+Dataset[[#This Row],[2029/30 Total change]]","v":0}]
["NAT|Non-transfer item","30|Land and sub-soil assets","2027_28","MTEC2027",30,1,6,32813,293,"30","01","06","032813","000293","30|01|06|000293","02","03","16","61","65","02|03|16|61|65","National","Communications and Digital Technologies","Administration","Office Accommodation","Non-transfer item","Capital","Payments for capital assets","Land and sub-soil assets","Land and sub-soil assets","Land and sub-soil assets","Economic development","Economic regulation and infrastructure","NAT",0,0,0,0,0,0,0,0,0,0,0,null,null,null,null,null,null,null,null,null,null,null,null,null,null,null,null,null,null,null,null,null,null,null,null,null,null,null,null,null,null,null,null,null,null,{"$f":"Dataset[[#This Row],[2027/28 From - Spending review Topic 1]]+Dataset[[#This Row],[2027/28 From - Spending review Topic 2]]+Dataset[[#This Row],[2027/28 From - Spending review Topic 3]]+Dataset[[#This Row],[2027/28 From - Spending review Topic 4]]+Dataset[[#This Row],[2027/28 From - Other reallocations]]","v":0},{"$f":"Dataset[[#This Row],[2028/29 From - Spending review Topic 1]]+Dataset[[#This Row],[2028/29 From - Spending review Topic 2]]+Dataset[[#This Row],[2028/29 From - Spending review Topic 3]]+Dataset[[#This Row],[2028/29 From - Spending review Topic 4]]+Dataset[[#This Row],[2028/29 From - Other reallocations]]","v":0},{"$f":"Dataset[[#This Row],[2029/30 From - Spending review Topic 1]]+Dataset[[#This Row],[2029/30 From - Spending review Topic 2]]+Dataset[[#This Row],[2029/30 From - Spending review Topic 3]]+Dataset[[#This Row],[2029/30 From - Spending review Topic 4]]+Dataset[[#This Row],[2029/30 From - Other reallocations]]","v":0},{"$f":"Dataset[[#This Row],[2027/28 To - Spending review Topic 1]]+Dataset[[#This Row],[2027/28 To - Spending review Topic 2]]+Dataset[[#This Row],[2027/28 To - Spending review Topic 3]]+Dataset[[#This Row],[2027/28 To - Spending review Topic 4]]+Dataset[[#This Row],[2027/28 To - Other reallocations]]","v":0},{"$f":"Dataset[[#This Row],[2028/29 To - Spending review Topic 1]]+Dataset[[#This Row],[2028/29 To - Spending review Topic 2]]+Dataset[[#This Row],[2028/29 To - Spending review Topic 3]]+Dataset[[#This Row],[2028/29 To - Spending review Topic 4]]+Dataset[[#This Row],[2028/29 To - Other reallocations]]","v":0},{"$f":"Dataset[[#This Row],[2029/30 To - Spending review Topic 1]]+Dataset[[#This Row],[2029/30 To - Spending review Topic 2]]+Dataset[[#This Row],[2029/30 To - Spending review Topic 3]]+Dataset[[#This Row],[2029/30 To - Spending review Topic 4]]+Dataset[[#This Row],[2029/30 To - Other reallocations]]","v":0},{"$f":"Dataset[[#This Row],[2027/28 Targeted savings]]+Dataset[[#This Row],[2027/28 From - Total]]","v":0},{"$f":"Dataset[[#This Row],[2028/29 Targeted savings]]+Dataset[[#This Row],[2028/29 From - Total]]","v":0},{"$f":"Dataset[[#This Row],[2029/30 Targeted savings]]+Dataset[[#This Row],[2029/30 From - Total]]","v":0},{"$f":"Dataset[[#This Row],[2026/27 Targeted savings]]","v":0},{"$f":"SUM(Dataset[[#This Row],[2027/28 Targeted savings]],Dataset[[#This Row],[2027/28 From - Total]],Dataset[[#This Row],[2027/28 To - Total]])","v":0},{"$f":"SUM(Dataset[[#This Row],[2028/29 Targeted savings]],Dataset[[#This Row],[2028/29 From - Total]],Dataset[[#This Row],[2028/29 To - Total]])","v":0},{"$f":"SUM(Dataset[[#This Row],[2029/30 Targeted savings]],Dataset[[#This Row],[2029/30 From - Total]],Dataset[[#This Row],[2029/30 To - Total]])","v":0},{"$f":"Dataset[[#This Row],[2026/27 Baseline]]+Dataset[[#This Row],[2026/27 Total change]]","v":0},{"$f":"Dataset[[#This Row],[2027/28 Baseline]]+Dataset[[#This Row],[2027/28 Total change]]","v":0},{"$f":"Dataset[[#This Row],[2028/29 Baseline]]+Dataset[[#This Row],[2028/29 Total change]]","v":0},{"$f":"Dataset[[#This Row],[2029/30 Baseline]]+Dataset[[#This Row],[2029/30 Total change]]","v":0}]
["NAT|Non-transfer item","30|Software and other intangible assets","2027_28","MTEC2027",30,1,6,32814,294,"30","01","06","032814","000294","30|01|06|000294","02","03","17","62","66","02|03|17|62|66","National","Communications and Digital Technologies","Administration","Office Accommodation","Non-transfer item","Capital","Payments for capital assets","Software and other intangible assets","Software and other intangible assets","Software and other intangible assets","Economic development","Economic regulation and infrastructure","NAT",0,0,0,0,0,0,0,0,0,0,0,null,null,null,null,null,null,null,null,null,null,null,null,null,null,null,null,null,null,null,null,null,null,null,null,null,null,null,null,null,null,null,null,null,null,{"$f":"Dataset[[#This Row],[2027/28 From - Spending review Topic 1]]+Dataset[[#This Row],[2027/28 From - Spending review Topic 2]]+Dataset[[#This Row],[2027/28 From - Spending review Topic 3]]+Dataset[[#This Row],[2027/28 From - Spending review Topic 4]]+Dataset[[#This Row],[2027/28 From - Other reallocations]]","v":0},{"$f":"Dataset[[#This Row],[2028/29 From - Spending review Topic 1]]+Dataset[[#This Row],[2028/29 From - Spending review Topic 2]]+Dataset[[#This Row],[2028/29 From - Spending review Topic 3]]+Dataset[[#This Row],[2028/29 From - Spending review Topic 4]]+Dataset[[#This Row],[2028/29 From - Other reallocations]]","v":0},{"$f":"Dataset[[#This Row],[2029/30 From - Spending review Topic 1]]+Dataset[[#This Row],[2029/30 From - Spending review Topic 2]]+Dataset[[#This Row],[2029/30 From - Spending review Topic 3]]+Dataset[[#This Row],[2029/30 From - Spending review Topic 4]]+Dataset[[#This Row],[2029/30 From - Other reallocations]]","v":0},{"$f":"Dataset[[#This Row],[2027/28 To - Spending review Topic 1]]+Dataset[[#This Row],[2027/28 To - Spending review Topic 2]]+Dataset[[#This Row],[2027/28 To - Spending review Topic 3]]+Dataset[[#This Row],[2027/28 To - Spending review Topic 4]]+Dataset[[#This Row],[2027/28 To - Other reallocations]]","v":0},{"$f":"Dataset[[#This Row],[2028/29 To - Spending review Topic 1]]+Dataset[[#This Row],[2028/29 To - Spending review Topic 2]]+Dataset[[#This Row],[2028/29 To - Spending review Topic 3]]+Dataset[[#This Row],[2028/29 To - Spending review Topic 4]]+Dataset[[#This Row],[2028/29 To - Other reallocations]]","v":0},{"$f":"Dataset[[#This Row],[2029/30 To - Spending review Topic 1]]+Dataset[[#This Row],[2029/30 To - Spending review Topic 2]]+Dataset[[#This Row],[2029/30 To - Spending review Topic 3]]+Dataset[[#This Row],[2029/30 To - Spending review Topic 4]]+Dataset[[#This Row],[2029/30 To - Other reallocations]]","v":0},{"$f":"Dataset[[#This Row],[2027/28 Targeted savings]]+Dataset[[#This Row],[2027/28 From - Total]]","v":0},{"$f":"Dataset[[#This Row],[2028/29 Targeted savings]]+Dataset[[#This Row],[2028/29 From - Total]]","v":0},{"$f":"Dataset[[#This Row],[2029/30 Targeted savings]]+Dataset[[#This Row],[2029/30 From - Total]]","v":0},{"$f":"Dataset[[#This Row],[2026/27 Targeted savings]]","v":0},{"$f":"SUM(Dataset[[#This Row],[2027/28 Targeted savings]],Dataset[[#This Row],[2027/28 From - Total]],Dataset[[#This Row],[2027/28 To - Total]])","v":0},{"$f":"SUM(Dataset[[#This Row],[2028/29 Targeted savings]],Dataset[[#This Row],[2028/29 From - Total]],Dataset[[#This Row],[2028/29 To - Total]])","v":0},{"$f":"SUM(Dataset[[#This Row],[2029/30 Targeted savings]],Dataset[[#This Row],[2029/30 From - Total]],Dataset[[#This Row],[2029/30 To - Total]])","v":0},{"$f":"Dataset[[#This Row],[2026/27 Baseline]]+Dataset[[#This Row],[2026/27 Total change]]","v":0},{"$f":"Dataset[[#This Row],[2027/28 Baseline]]+Dataset[[#This Row],[2027/28 Total change]]","v":0},{"$f":"Dataset[[#This Row],[2028/29 Baseline]]+Dataset[[#This Row],[2028/29 Total change]]","v":0},{"$f":"Dataset[[#This Row],[2029/30 Baseline]]+Dataset[[#This Row],[2029/30 Total change]]","v":0}]
["NAT|Non-transfer","30|Salaries and wages","2027_28","MTEC2027",30,2,1,32815,295,"30","02","01","032815","000295","30|02|01|000295","01","01","01","01","01","01|01|01|01|01","National","Communications and Digital Technologies","ICT Transformation, Global Partnerships and State-Owned Enterprises Governance","Programme Management for ICT Transformation, Global Partnerships and State-Owned Enterprises Governance","Non-transfer","Current","Current payments","Compensation of employees","Salaries and wages","Salaries and wages","Economic development","Economic regulation and infrastructure","NAT",2611,715,92,2317,2517,2517,0,2855,3373,3489,3594,null,null,null,null,null,null,null,null,null,null,null,null,null,null,null,null,null,null,null,null,null,null,null,null,null,null,null,null,null,null,null,null,null,null,{"$f":"Dataset[[#This Row],[2027/28 From - Spending review Topic 1]]+Dataset[[#This Row],[2027/28 From - Spending review Topic 2]]+Dataset[[#This Row],[2027/28 From - Spending review Topic 3]]+Dataset[[#This Row],[2027/28 From - Spending review Topic 4]]+Dataset[[#This Row],[2027/28 From - Other reallocations]]","v":0},{"$f":"Dataset[[#This Row],[2028/29 From - Spending review Topic 1]]+Dataset[[#This Row],[2028/29 From - Spending review Topic 2]]+Dataset[[#This Row],[2028/29 From - Spending review Topic 3]]+Dataset[[#This Row],[2028/29 From - Spending review Topic 4]]+Dataset[[#This Row],[2028/29 From - Other reallocations]]","v":0},{"$f":"Dataset[[#This Row],[2029/30 From - Spending review Topic 1]]+Dataset[[#This Row],[2029/30 From - Spending review Topic 2]]+Dataset[[#This Row],[2029/30 From - Spending review Topic 3]]+Dataset[[#This Row],[2029/30 From - Spending review Topic 4]]+Dataset[[#This Row],[2029/30 From - Other reallocations]]","v":0},{"$f":"Dataset[[#This Row],[2027/28 To - Spending review Topic 1]]+Dataset[[#This Row],[2027/28 To - Spending review Topic 2]]+Dataset[[#This Row],[2027/28 To - Spending review Topic 3]]+Dataset[[#This Row],[2027/28 To - Spending review Topic 4]]+Dataset[[#This Row],[2027/28 To - Other reallocations]]","v":0},{"$f":"Dataset[[#This Row],[2028/29 To - Spending review Topic 1]]+Dataset[[#This Row],[2028/29 To - Spending review Topic 2]]+Dataset[[#This Row],[2028/29 To - Spending review Topic 3]]+Dataset[[#This Row],[2028/29 To - Spending review Topic 4]]+Dataset[[#This Row],[2028/29 To - Other reallocations]]","v":0},{"$f":"Dataset[[#This Row],[2029/30 To - Spending review Topic 1]]+Dataset[[#This Row],[2029/30 To - Spending review Topic 2]]+Dataset[[#This Row],[2029/30 To - Spending review Topic 3]]+Dataset[[#This Row],[2029/30 To - Spending review Topic 4]]+Dataset[[#This Row],[2029/30 To - Other reallocations]]","v":0},{"$f":"Dataset[[#This Row],[2027/28 Targeted savings]]+Dataset[[#This Row],[2027/28 From - Total]]","v":0},{"$f":"Dataset[[#This Row],[2028/29 Targeted savings]]+Dataset[[#This Row],[2028/29 From - Total]]","v":0},{"$f":"Dataset[[#This Row],[2029/30 Targeted savings]]+Dataset[[#This Row],[2029/30 From - Total]]","v":0},{"$f":"Dataset[[#This Row],[2026/27 Targeted savings]]","v":0},{"$f":"SUM(Dataset[[#This Row],[2027/28 Targeted savings]],Dataset[[#This Row],[2027/28 From - Total]],Dataset[[#This Row],[2027/28 To - Total]])","v":0},{"$f":"SUM(Dataset[[#This Row],[2028/29 Targeted savings]],Dataset[[#This Row],[2028/29 From - Total]],Dataset[[#This Row],[2028/29 To - Total]])","v":0},{"$f":"SUM(Dataset[[#This Row],[2029/30 Targeted savings]],Dataset[[#This Row],[2029/30 From - Total]],Dataset[[#This Row],[2029/30 To - Total]])","v":0},{"$f":"Dataset[[#This Row],[2026/27 Baseline]]+Dataset[[#This Row],[2026/27 Total change]]","v":2855},{"$f":"Dataset[[#This Row],[2027/28 Baseline]]+Dataset[[#This Row],[2027/28 Total change]]","v":3373},{"$f":"Dataset[[#This Row],[2028/29 Baseline]]+Dataset[[#This Row],[2028/29 Total change]]","v":3489},{"$f":"Dataset[[#This Row],[2029/30 Baseline]]+Dataset[[#This Row],[2029/30 Total change]]","v":3594}]
["NAT|Non-transfer","30|Social contributions","2027_28","MTEC2027",30,2,1,32816,296,"30","02","01","032816","000296","30|02|01|000296","01","01","01","02","02","01|01|01|02|02","National","Communications and Digital Technologies","ICT Transformation, Global Partnerships and State-Owned Enterprises Governance","Programme Management for ICT Transformation, Global Partnerships and State-Owned Enterprises Governance","Non-transfer","Current","Current payments","Compensation of employees","Social contributions","Social contributions","Economic development","Economic regulation and infrastructure","NAT",229,75,0,205,205,205,0,320,330,337,347,null,null,null,null,null,null,null,null,null,null,null,null,null,null,null,null,null,null,null,null,null,null,null,null,null,null,null,null,null,null,null,null,null,null,{"$f":"Dataset[[#This Row],[2027/28 From - Spending review Topic 1]]+Dataset[[#This Row],[2027/28 From - Spending review Topic 2]]+Dataset[[#This Row],[2027/28 From - Spending review Topic 3]]+Dataset[[#This Row],[2027/28 From - Spending review Topic 4]]+Dataset[[#This Row],[2027/28 From - Other reallocations]]","v":0},{"$f":"Dataset[[#This Row],[2028/29 From - Spending review Topic 1]]+Dataset[[#This Row],[2028/29 From - Spending review Topic 2]]+Dataset[[#This Row],[2028/29 From - Spending review Topic 3]]+Dataset[[#This Row],[2028/29 From - Spending review Topic 4]]+Dataset[[#This Row],[2028/29 From - Other reallocations]]","v":0},{"$f":"Dataset[[#This Row],[2029/30 From - Spending review Topic 1]]+Dataset[[#This Row],[2029/30 From - Spending review Topic 2]]+Dataset[[#This Row],[2029/30 From - Spending review Topic 3]]+Dataset[[#This Row],[2029/30 From - Spending review Topic 4]]+Dataset[[#This Row],[2029/30 From - Other reallocations]]","v":0},{"$f":"Dataset[[#This Row],[2027/28 To - Spending review Topic 1]]+Dataset[[#This Row],[2027/28 To - Spending review Topic 2]]+Dataset[[#This Row],[2027/28 To - Spending review Topic 3]]+Dataset[[#This Row],[2027/28 To - Spending review Topic 4]]+Dataset[[#This Row],[2027/28 To - Other reallocations]]","v":0},{"$f":"Dataset[[#This Row],[2028/29 To - Spending review Topic 1]]+Dataset[[#This Row],[2028/29 To - Spending review Topic 2]]+Dataset[[#This Row],[2028/29 To - Spending review Topic 3]]+Dataset[[#This Row],[2028/29 To - Spending review Topic 4]]+Dataset[[#This Row],[2028/29 To - Other reallocations]]","v":0},{"$f":"Dataset[[#This Row],[2029/30 To - Spending review Topic 1]]+Dataset[[#This Row],[2029/30 To - Spending review Topic 2]]+Dataset[[#This Row],[2029/30 To - Spending review Topic 3]]+Dataset[[#This Row],[2029/30 To - Spending review Topic 4]]+Dataset[[#This Row],[2029/30 To - Other reallocations]]","v":0},{"$f":"Dataset[[#This Row],[2027/28 Targeted savings]]+Dataset[[#This Row],[2027/28 From - Total]]","v":0},{"$f":"Dataset[[#This Row],[2028/29 Targeted savings]]+Dataset[[#This Row],[2028/29 From - Total]]","v":0},{"$f":"Dataset[[#This Row],[2029/30 Targeted savings]]+Dataset[[#This Row],[2029/30 From - Total]]","v":0},{"$f":"Dataset[[#This Row],[2026/27 Targeted savings]]","v":0},{"$f":"SUM(Dataset[[#This Row],[2027/28 Targeted savings]],Dataset[[#This Row],[2027/28 From - Total]],Dataset[[#This Row],[2027/28 To - Total]])","v":0},{"$f":"SUM(Dataset[[#This Row],[2028/29 Targeted savings]],Dataset[[#This Row],[2028/29 From - Total]],Dataset[[#This Row],[2028/29 To - Total]])","v":0},{"$f":"SUM(Dataset[[#This Row],[2029/30 Targeted savings]],Dataset[[#This Row],[2029/30 From - Total]],Dataset[[#This Row],[2029/30 To - Total]])","v":0},{"$f":"Dataset[[#This Row],[2026/27 Baseline]]+Dataset[[#This Row],[2026/27 Total change]]","v":320},{"$f":"Dataset[[#This Row],[2027/28 Baseline]]+Dataset[[#This Row],[2027/28 Total change]]","v":330},{"$f":"Dataset[[#This Row],[2028/29 Baseline]]+Dataset[[#This Row],[2028/29 Total change]]","v":337},{"$f":"Dataset[[#This Row],[2029/30 Baseline]]+Dataset[[#This Row],[2029/30 Total change]]","v":347}]
["NAT|Non-transfer","30|Administrative fees","2027_28","MTEC2027",30,2,1,32817,297,"30","02","01","032817","000297","30|02|01|000297","01","01","02","03","03","01|01|02|03|03","National","Communications and Digital Technologies","ICT Transformation, Global Partnerships and State-Owned Enterprises Governance","Programme Management for ICT Transformation, Global Partnerships and State-Owned Enterprises Governance","Non-transfer","Current","Current payments","Goods and services","Administrative fees","Administrative fees","Economic development","Economic regulation and infrastructure","NAT",0,1,9,70,70,70,0,70,130,134,138,null,null,null,null,null,null,null,null,null,null,null,null,null,null,null,null,null,null,null,null,null,null,null,null,null,null,null,null,null,null,null,null,null,null,{"$f":"Dataset[[#This Row],[2027/28 From - Spending review Topic 1]]+Dataset[[#This Row],[2027/28 From - Spending review Topic 2]]+Dataset[[#This Row],[2027/28 From - Spending review Topic 3]]+Dataset[[#This Row],[2027/28 From - Spending review Topic 4]]+Dataset[[#This Row],[2027/28 From - Other reallocations]]","v":0},{"$f":"Dataset[[#This Row],[2028/29 From - Spending review Topic 1]]+Dataset[[#This Row],[2028/29 From - Spending review Topic 2]]+Dataset[[#This Row],[2028/29 From - Spending review Topic 3]]+Dataset[[#This Row],[2028/29 From - Spending review Topic 4]]+Dataset[[#This Row],[2028/29 From - Other reallocations]]","v":0},{"$f":"Dataset[[#This Row],[2029/30 From - Spending review Topic 1]]+Dataset[[#This Row],[2029/30 From - Spending review Topic 2]]+Dataset[[#This Row],[2029/30 From - Spending review Topic 3]]+Dataset[[#This Row],[2029/30 From - Spending review Topic 4]]+Dataset[[#This Row],[2029/30 From - Other reallocations]]","v":0},{"$f":"Dataset[[#This Row],[2027/28 To - Spending review Topic 1]]+Dataset[[#This Row],[2027/28 To - Spending review Topic 2]]+Dataset[[#This Row],[2027/28 To - Spending review Topic 3]]+Dataset[[#This Row],[2027/28 To - Spending review Topic 4]]+Dataset[[#This Row],[2027/28 To - Other reallocations]]","v":0},{"$f":"Dataset[[#This Row],[2028/29 To - Spending review Topic 1]]+Dataset[[#This Row],[2028/29 To - Spending review Topic 2]]+Dataset[[#This Row],[2028/29 To - Spending review Topic 3]]+Dataset[[#This Row],[2028/29 To - Spending review Topic 4]]+Dataset[[#This Row],[2028/29 To - Other reallocations]]","v":0},{"$f":"Dataset[[#This Row],[2029/30 To - Spending review Topic 1]]+Dataset[[#This Row],[2029/30 To - Spending review Topic 2]]+Dataset[[#This Row],[2029/30 To - Spending review Topic 3]]+Dataset[[#This Row],[2029/30 To - Spending review Topic 4]]+Dataset[[#This Row],[2029/30 To - Other reallocations]]","v":0},{"$f":"Dataset[[#This Row],[2027/28 Targeted savings]]+Dataset[[#This Row],[2027/28 From - Total]]","v":0},{"$f":"Dataset[[#This Row],[2028/29 Targeted savings]]+Dataset[[#This Row],[2028/29 From - Total]]","v":0},{"$f":"Dataset[[#This Row],[2029/30 Targeted savings]]+Dataset[[#This Row],[2029/30 From - Total]]","v":0},{"$f":"Dataset[[#This Row],[2026/27 Targeted savings]]","v":0},{"$f":"SUM(Dataset[[#This Row],[2027/28 Targeted savings]],Dataset[[#This Row],[2027/28 From - Total]],Dataset[[#This Row],[2027/28 To - Total]])","v":0},{"$f":"SUM(Dataset[[#This Row],[2028/29 Targeted savings]],Dataset[[#This Row],[2028/29 From - Total]],Dataset[[#This Row],[2028/29 To - Total]])","v":0},{"$f":"SUM(Dataset[[#This Row],[2029/30 Targeted savings]],Dataset[[#This Row],[2029/30 From - Total]],Dataset[[#This Row],[2029/30 To - Total]])","v":0},{"$f":"Dataset[[#This Row],[2026/27 Baseline]]+Dataset[[#This Row],[2026/27 Total change]]","v":70},{"$f":"Dataset[[#This Row],[2027/28 Baseline]]+Dataset[[#This Row],[2027/28 Total change]]","v":130},{"$f":"Dataset[[#This Row],[2028/29 Baseline]]+Dataset[[#This Row],[2028/29 Total change]]","v":134},{"$f":"Dataset[[#This Row],[2029/30 Baseline]]+Dataset[[#This Row],[2029/30 Total change]]","v":138}]
["NAT|Non-transfer","30|Advertising","2027_28","MTEC2027",30,2,1,32818,298,"30","02","01","032818","000298","30|02|01|000298","01","01","02","04","04","01|01|02|04|04","National","Communications and Digital Technologies","ICT Transformation, Global Partnerships and State-Owned Enterprises Governance","Programme Management for ICT Transformation, Global Partnerships and State-Owned Enterprises Governance","Non-transfer","Current","Current payments","Goods and services","Advertising","Advertising","Economic development","Economic regulation and infrastructure","NAT",0,0,0,10,10,10,0,30,35,0,0,null,null,null,null,null,null,null,null,null,null,null,null,null,null,null,null,null,null,null,null,null,null,null,null,null,null,null,null,null,null,null,null,null,null,{"$f":"Dataset[[#This Row],[2027/28 From - Spending review Topic 1]]+Dataset[[#This Row],[2027/28 From - Spending review Topic 2]]+Dataset[[#This Row],[2027/28 From - Spending review Topic 3]]+Dataset[[#This Row],[2027/28 From - Spending review Topic 4]]+Dataset[[#This Row],[2027/28 From - Other reallocations]]","v":0},{"$f":"Dataset[[#This Row],[2028/29 From - Spending review Topic 1]]+Dataset[[#This Row],[2028/29 From - Spending review Topic 2]]+Dataset[[#This Row],[2028/29 From - Spending review Topic 3]]+Dataset[[#This Row],[2028/29 From - Spending review Topic 4]]+Dataset[[#This Row],[2028/29 From - Other reallocations]]","v":0},{"$f":"Dataset[[#This Row],[2029/30 From - Spending review Topic 1]]+Dataset[[#This Row],[2029/30 From - Spending review Topic 2]]+Dataset[[#This Row],[2029/30 From - Spending review Topic 3]]+Dataset[[#This Row],[2029/30 From - Spending review Topic 4]]+Dataset[[#This Row],[2029/30 From - Other reallocations]]","v":0},{"$f":"Dataset[[#This Row],[2027/28 To - Spending review Topic 1]]+Dataset[[#This Row],[2027/28 To - Spending review Topic 2]]+Dataset[[#This Row],[2027/28 To - Spending review Topic 3]]+Dataset[[#This Row],[2027/28 To - Spending review Topic 4]]+Dataset[[#This Row],[2027/28 To - Other reallocations]]","v":0},{"$f":"Dataset[[#This Row],[2028/29 To - Spending review Topic 1]]+Dataset[[#This Row],[2028/29 To - Spending review Topic 2]]+Dataset[[#This Row],[2028/29 To - Spending review Topic 3]]+Dataset[[#This Row],[2028/29 To - Spending review Topic 4]]+Dataset[[#This Row],[2028/29 To - Other reallocations]]","v":0},{"$f":"Dataset[[#This Row],[2029/30 To - Spending review Topic 1]]+Dataset[[#This Row],[2029/30 To - Spending review Topic 2]]+Dataset[[#This Row],[2029/30 To - Spending review Topic 3]]+Dataset[[#This Row],[2029/30 To - Spending review Topic 4]]+Dataset[[#This Row],[2029/30 To - Other reallocations]]","v":0},{"$f":"Dataset[[#This Row],[2027/28 Targeted savings]]+Dataset[[#This Row],[2027/28 From - Total]]","v":0},{"$f":"Dataset[[#This Row],[2028/29 Targeted savings]]+Dataset[[#This Row],[2028/29 From - Total]]","v":0},{"$f":"Dataset[[#This Row],[2029/30 Targeted savings]]+Dataset[[#This Row],[2029/30 From - Total]]","v":0},{"$f":"Dataset[[#This Row],[2026/27 Targeted savings]]","v":0},{"$f":"SUM(Dataset[[#This Row],[2027/28 Targeted savings]],Dataset[[#This Row],[2027/28 From - Total]],Dataset[[#This Row],[2027/28 To - Total]])","v":0},{"$f":"SUM(Dataset[[#This Row],[2028/29 Targeted savings]],Dataset[[#This Row],[2028/29 From - Total]],Dataset[[#This Row],[2028/29 To - Total]])","v":0},{"$f":"SUM(Dataset[[#This Row],[2029/30 Targeted savings]],Dataset[[#This Row],[2029/30 From - Total]],Dataset[[#This Row],[2029/30 To - Total]])","v":0},{"$f":"Dataset[[#This Row],[2026/27 Baseline]]+Dataset[[#This Row],[2026/27 Total change]]","v":30},{"$f":"Dataset[[#This Row],[2027/28 Baseline]]+Dataset[[#This Row],[2027/28 Total change]]","v":35},{"$f":"Dataset[[#This Row],[2028/29 Baseline]]+Dataset[[#This Row],[2028/29 Total change]]","v":0},{"$f":"Dataset[[#This Row],[2029/30 Baseline]]+Dataset[[#This Row],[2029/30 Total change]]","v":0}]
["NAT|Non-transfer","30|Minor assets","2027_28","MTEC2027",30,2,1,32819,299,"30","02","01","032819","000299","30|02|01|000299","01","01","02","05","05","01|01|02|05|05","National","Communications and Digital Technologies","ICT Transformation, Global Partnerships and State-Owned Enterprises Governance","Programme Management for ICT Transformation, Global Partnerships and State-Owned Enterprises Governance","Non-transfer","Current","Current payments","Goods and services","Minor assets","Minor assets","Economic development","Economic regulation and infrastructure","NAT",0,0,0,60,60,60,0,50,55,0,0,null,null,null,null,null,null,null,null,null,null,null,null,null,null,null,null,null,null,null,null,null,null,null,null,null,null,null,null,null,null,null,null,null,null,{"$f":"Dataset[[#This Row],[2027/28 From - Spending review Topic 1]]+Dataset[[#This Row],[2027/28 From - Spending review Topic 2]]+Dataset[[#This Row],[2027/28 From - Spending review Topic 3]]+Dataset[[#This Row],[2027/28 From - Spending review Topic 4]]+Dataset[[#This Row],[2027/28 From - Other reallocations]]","v":0},{"$f":"Dataset[[#This Row],[2028/29 From - Spending review Topic 1]]+Dataset[[#This Row],[2028/29 From - Spending review Topic 2]]+Dataset[[#This Row],[2028/29 From - Spending review Topic 3]]+Dataset[[#This Row],[2028/29 From - Spending review Topic 4]]+Dataset[[#This Row],[2028/29 From - Other reallocations]]","v":0},{"$f":"Dataset[[#This Row],[2029/30 From - Spending review Topic 1]]+Dataset[[#This Row],[2029/30 From - Spending review Topic 2]]+Dataset[[#This Row],[2029/30 From - Spending review Topic 3]]+Dataset[[#This Row],[2029/30 From - Spending review Topic 4]]+Dataset[[#This Row],[2029/30 From - Other reallocations]]","v":0},{"$f":"Dataset[[#This Row],[2027/28 To - Spending review Topic 1]]+Dataset[[#This Row],[2027/28 To - Spending review Topic 2]]+Dataset[[#This Row],[2027/28 To - Spending review Topic 3]]+Dataset[[#This Row],[2027/28 To - Spending review Topic 4]]+Dataset[[#This Row],[2027/28 To - Other reallocations]]","v":0},{"$f":"Dataset[[#This Row],[2028/29 To - Spending review Topic 1]]+Dataset[[#This Row],[2028/29 To - Spending review Topic 2]]+Dataset[[#This Row],[2028/29 To - Spending review Topic 3]]+Dataset[[#This Row],[2028/29 To - Spending review Topic 4]]+Dataset[[#This Row],[2028/29 To - Other reallocations]]","v":0},{"$f":"Dataset[[#This Row],[2029/30 To - Spending review Topic 1]]+Dataset[[#This Row],[2029/30 To - Spending review Topic 2]]+Dataset[[#This Row],[2029/30 To - Spending review Topic 3]]+Dataset[[#This Row],[2029/30 To - Spending review Topic 4]]+Dataset[[#This Row],[2029/30 To - Other reallocations]]","v":0},{"$f":"Dataset[[#This Row],[2027/28 Targeted savings]]+Dataset[[#This Row],[2027/28 From - Total]]","v":0},{"$f":"Dataset[[#This Row],[2028/29 Targeted savings]]+Dataset[[#This Row],[2028/29 From - Total]]","v":0},{"$f":"Dataset[[#This Row],[2029/30 Targeted savings]]+Dataset[[#This Row],[2029/30 From - Total]]","v":0},{"$f":"Dataset[[#This Row],[2026/27 Targeted savings]]","v":0},{"$f":"SUM(Dataset[[#This Row],[2027/28 Targeted savings]],Dataset[[#This Row],[2027/28 From - Total]],Dataset[[#This Row],[2027/28 To - Total]])","v":0},{"$f":"SUM(Dataset[[#This Row],[2028/29 Targeted savings]],Dataset[[#This Row],[2028/29 From - Total]],Dataset[[#This Row],[2028/29 To - Total]])","v":0},{"$f":"SUM(Dataset[[#This Row],[2029/30 Targeted savings]],Dataset[[#This Row],[2029/30 From - Total]],Dataset[[#This Row],[2029/30 To - Total]])","v":0},{"$f":"Dataset[[#This Row],[2026/27 Baseline]]+Dataset[[#This Row],[2026/27 Total change]]","v":50},{"$f":"Dataset[[#This Row],[2027/28 Baseline]]+Dataset[[#This Row],[2027/28 Total change]]","v":55},{"$f":"Dataset[[#This Row],[2028/29 Baseline]]+Dataset[[#This Row],[2028/29 Total change]]","v":0},{"$f":"Dataset[[#This Row],[2029/30 Baseline]]+Dataset[[#This Row],[2029/30 Total change]]","v":0}]
["NAT|Non-transfer","30|Bursaries: Employees","2027_28","MTEC2027",30,2,1,32820,300,"30","02","01","032820","000300","30|02|01|000300","01","01","02","07","07","01|01|02|07|07","National","Communications and Digital Technologies","ICT Transformation, Global Partnerships and State-Owned Enterprises Governance","Programme Management for ICT Transformation, Global Partnerships and State-Owned Enterprises Governance","Non-transfer","Current","Current payments","Goods and services","Bursaries: Employees","Bursaries: Employees","Economic development","Economic regulation and infrastructure","NAT",0,0,0,20,20,20,0,20,25,0,0,null,null,null,null,null,null,null,null,null,null,null,null,null,null,null,null,null,null,null,null,null,null,null,null,null,null,null,null,null,null,null,null,null,null,{"$f":"Dataset[[#This Row],[2027/28 From - Spending review Topic 1]]+Dataset[[#This Row],[2027/28 From - Spending review Topic 2]]+Dataset[[#This Row],[2027/28 From - Spending review Topic 3]]+Dataset[[#This Row],[2027/28 From - Spending review Topic 4]]+Dataset[[#This Row],[2027/28 From - Other reallocations]]","v":0},{"$f":"Dataset[[#This Row],[2028/29 From - Spending review Topic 1]]+Dataset[[#This Row],[2028/29 From - Spending review Topic 2]]+Dataset[[#This Row],[2028/29 From - Spending review Topic 3]]+Dataset[[#This Row],[2028/29 From - Spending review Topic 4]]+Dataset[[#This Row],[2028/29 From - Other reallocations]]","v":0},{"$f":"Dataset[[#This Row],[2029/30 From - Spending review Topic 1]]+Dataset[[#This Row],[2029/30 From - Spending review Topic 2]]+Dataset[[#This Row],[2029/30 From - Spending review Topic 3]]+Dataset[[#This Row],[2029/30 From - Spending review Topic 4]]+Dataset[[#This Row],[2029/30 From - Other reallocations]]","v":0},{"$f":"Dataset[[#This Row],[2027/28 To - Spending review Topic 1]]+Dataset[[#This Row],[2027/28 To - Spending review Topic 2]]+Dataset[[#This Row],[2027/28 To - Spending review Topic 3]]+Dataset[[#This Row],[2027/28 To - Spending review Topic 4]]+Dataset[[#This Row],[2027/28 To - Other reallocations]]","v":0},{"$f":"Dataset[[#This Row],[2028/29 To - Spending review Topic 1]]+Dataset[[#This Row],[2028/29 To - Spending review Topic 2]]+Dataset[[#This Row],[2028/29 To - Spending review Topic 3]]+Dataset[[#This Row],[2028/29 To - Spending review Topic 4]]+Dataset[[#This Row],[2028/29 To - Other reallocations]]","v":0},{"$f":"Dataset[[#This Row],[2029/30 To - Spending review Topic 1]]+Dataset[[#This Row],[2029/30 To - Spending review Topic 2]]+Dataset[[#This Row],[2029/30 To - Spending review Topic 3]]+Dataset[[#This Row],[2029/30 To - Spending review Topic 4]]+Dataset[[#This Row],[2029/30 To - Other reallocations]]","v":0},{"$f":"Dataset[[#This Row],[2027/28 Targeted savings]]+Dataset[[#This Row],[2027/28 From - Total]]","v":0},{"$f":"Dataset[[#This Row],[2028/29 Targeted savings]]+Dataset[[#This Row],[2028/29 From - Total]]","v":0},{"$f":"Dataset[[#This Row],[2029/30 Targeted savings]]+Dataset[[#This Row],[2029/30 From - Total]]","v":0},{"$f":"Dataset[[#This Row],[2026/27 Targeted savings]]","v":0},{"$f":"SUM(Dataset[[#This Row],[2027/28 Targeted savings]],Dataset[[#This Row],[2027/28 From - Total]],Dataset[[#This Row],[2027/28 To - Total]])","v":0},{"$f":"SUM(Dataset[[#This Row],[2028/29 Targeted savings]],Dataset[[#This Row],[2028/29 From - Total]],Dataset[[#This Row],[2028/29 To - Total]])","v":0},{"$f":"SUM(Dataset[[#This Row],[2029/30 Targeted savings]],Dataset[[#This Row],[2029/30 From - Total]],Dataset[[#This Row],[2029/30 To - Total]])","v":0},{"$f":"Dataset[[#This Row],[2026/27 Baseline]]+Dataset[[#This Row],[2026/27 Total change]]","v":20},{"$f":"Dataset[[#This Row],[2027/28 Baseline]]+Dataset[[#This Row],[2027/28 Total change]]","v":25},{"$f":"Dataset[[#This Row],[2028/29 Baseline]]+Dataset[[#This Row],[2028/29 Total change]]","v":0},{"$f":"Dataset[[#This Row],[2029/30 Baseline]]+Dataset[[#This Row],[2029/30 Total change]]","v":0}]
["NAT|Non-transfer","30|Catering: Departmental activities","2027_28","MTEC2027",30,2,1,32821,301,"30","02","01","032821","000301","30|02|01|000301","01","01","02","08","08","01|01|02|08|08","National","Communications and Digital Technologies","ICT Transformation, Global Partnerships and State-Owned Enterprises Governance","Programme Management for ICT Transformation, Global Partnerships and State-Owned Enterprises Governance","Non-transfer","Current","Current payments","Goods and services","Catering: Departmental activities","Catering: Departmental activities","Economic development","Economic regulation and infrastructure","NAT",0,0,0,50,50,50,0,50,39,0,0,null,null,null,null,null,null,null,null,null,null,null,null,null,null,null,null,null,null,null,null,null,null,null,null,null,null,null,null,null,null,null,null,null,null,{"$f":"Dataset[[#This Row],[2027/28 From - Spending review Topic 1]]+Dataset[[#This Row],[2027/28 From - Spending review Topic 2]]+Dataset[[#This Row],[2027/28 From - Spending review Topic 3]]+Dataset[[#This Row],[2027/28 From - Spending review Topic 4]]+Dataset[[#This Row],[2027/28 From - Other reallocations]]","v":0},{"$f":"Dataset[[#This Row],[2028/29 From - Spending review Topic 1]]+Dataset[[#This Row],[2028/29 From - Spending review Topic 2]]+Dataset[[#This Row],[2028/29 From - Spending review Topic 3]]+Dataset[[#This Row],[2028/29 From - Spending review Topic 4]]+Dataset[[#This Row],[2028/29 From - Other reallocations]]","v":0},{"$f":"Dataset[[#This Row],[2029/30 From - Spending review Topic 1]]+Dataset[[#This Row],[2029/30 From - Spending review Topic 2]]+Dataset[[#This Row],[2029/30 From - Spending review Topic 3]]+Dataset[[#This Row],[2029/30 From - Spending review Topic 4]]+Dataset[[#This Row],[2029/30 From - Other reallocations]]","v":0},{"$f":"Dataset[[#This Row],[2027/28 To - Spending review Topic 1]]+Dataset[[#This Row],[2027/28 To - Spending review Topic 2]]+Dataset[[#This Row],[2027/28 To - Spending review Topic 3]]+Dataset[[#This Row],[2027/28 To - Spending review Topic 4]]+Dataset[[#This Row],[2027/28 To - Other reallocations]]","v":0},{"$f":"Dataset[[#This Row],[2028/29 To - Spending review Topic 1]]+Dataset[[#This Row],[2028/29 To - Spending review Topic 2]]+Dataset[[#This Row],[2028/29 To - Spending review Topic 3]]+Dataset[[#This Row],[2028/29 To - Spending review Topic 4]]+Dataset[[#This Row],[2028/29 To - Other reallocations]]","v":0},{"$f":"Dataset[[#This Row],[2029/30 To - Spending review Topic 1]]+Dataset[[#This Row],[2029/30 To - Spending review Topic 2]]+Dataset[[#This Row],[2029/30 To - Spending review Topic 3]]+Dataset[[#This Row],[2029/30 To - Spending review Topic 4]]+Dataset[[#This Row],[2029/30 To - Other reallocations]]","v":0},{"$f":"Dataset[[#This Row],[2027/28 Targeted savings]]+Dataset[[#This Row],[2027/28 From - Total]]","v":0},{"$f":"Dataset[[#This Row],[2028/29 Targeted savings]]+Dataset[[#This Row],[2028/29 From - Total]]","v":0},{"$f":"Dataset[[#This Row],[2029/30 Targeted savings]]+Dataset[[#This Row],[2029/30 From - Total]]","v":0},{"$f":"Dataset[[#This Row],[2026/27 Targeted savings]]","v":0},{"$f":"SUM(Dataset[[#This Row],[2027/28 Targeted savings]],Dataset[[#This Row],[2027/28 From - Total]],Dataset[[#This Row],[2027/28 To - Total]])","v":0},{"$f":"SUM(Dataset[[#This Row],[2028/29 Targeted savings]],Dataset[[#This Row],[2028/29 From - Total]],Dataset[[#This Row],[2028/29 To - Total]])","v":0},{"$f":"SUM(Dataset[[#This Row],[2029/30 Targeted savings]],Dataset[[#This Row],[2029/30 From - Total]],Dataset[[#This Row],[2029/30 To - Total]])","v":0},{"$f":"Dataset[[#This Row],[2026/27 Baseline]]+Dataset[[#This Row],[2026/27 Total change]]","v":50},{"$f":"Dataset[[#This Row],[2027/28 Baseline]]+Dataset[[#This Row],[2027/28 Total change]]","v":39},{"$f":"Dataset[[#This Row],[2028/29 Baseline]]+Dataset[[#This Row],[2028/29 Total change]]","v":0},{"$f":"Dataset[[#This Row],[2029/30 Baseline]]+Dataset[[#This Row],[2029/30 Total change]]","v":0}]
["NAT|Non-transfer","30|Communication (G&S)","2027_28","MTEC2027",30,2,1,32822,302,"30","02","01","032822","000302","30|02|01|000302","01","01","02","09","09","01|01|02|09|09","National","Communications and Digital Technologies","ICT Transformation, Global Partnerships and State-Owned Enterprises Governance","Programme Management for ICT Transformation, Global Partnerships and State-Owned Enterprises Governance","Non-transfer","Current","Current payments","Goods and services","Communication (G&S)","Communication (G&S)","Economic development","Economic regulation and infrastructure","NAT",8,1,18,10,10,10,0,31,61,63,65,null,null,null,null,null,null,null,null,null,null,null,null,null,null,null,null,null,null,null,null,null,null,null,null,null,null,null,null,null,null,null,null,null,null,{"$f":"Dataset[[#This Row],[2027/28 From - Spending review Topic 1]]+Dataset[[#This Row],[2027/28 From - Spending review Topic 2]]+Dataset[[#This Row],[2027/28 From - Spending review Topic 3]]+Dataset[[#This Row],[2027/28 From - Spending review Topic 4]]+Dataset[[#This Row],[2027/28 From - Other reallocations]]","v":0},{"$f":"Dataset[[#This Row],[2028/29 From - Spending review Topic 1]]+Dataset[[#This Row],[2028/29 From - Spending review Topic 2]]+Dataset[[#This Row],[2028/29 From - Spending review Topic 3]]+Dataset[[#This Row],[2028/29 From - Spending review Topic 4]]+Dataset[[#This Row],[2028/29 From - Other reallocations]]","v":0},{"$f":"Dataset[[#This Row],[2029/30 From - Spending review Topic 1]]+Dataset[[#This Row],[2029/30 From - Spending review Topic 2]]+Dataset[[#This Row],[2029/30 From - Spending review Topic 3]]+Dataset[[#This Row],[2029/30 From - Spending review Topic 4]]+Dataset[[#This Row],[2029/30 From - Other reallocations]]","v":0},{"$f":"Dataset[[#This Row],[2027/28 To - Spending review Topic 1]]+Dataset[[#This Row],[2027/28 To - Spending review Topic 2]]+Dataset[[#This Row],[2027/28 To - Spending review Topic 3]]+Dataset[[#This Row],[2027/28 To - Spending review Topic 4]]+Dataset[[#This Row],[2027/28 To - Other reallocations]]","v":0},{"$f":"Dataset[[#This Row],[2028/29 To - Spending review Topic 1]]+Dataset[[#This Row],[2028/29 To - Spending review Topic 2]]+Dataset[[#This Row],[2028/29 To - Spending review Topic 3]]+Dataset[[#This Row],[2028/29 To - Spending review Topic 4]]+Dataset[[#This Row],[2028/29 To - Other reallocations]]","v":0},{"$f":"Dataset[[#This Row],[2029/30 To - Spending review Topic 1]]+Dataset[[#This Row],[2029/30 To - Spending review Topic 2]]+Dataset[[#This Row],[2029/30 To - Spending review Topic 3]]+Dataset[[#This Row],[2029/30 To - Spending review Topic 4]]+Dataset[[#This Row],[2029/30 To - Other reallocations]]","v":0},{"$f":"Dataset[[#This Row],[2027/28 Targeted savings]]+Dataset[[#This Row],[2027/28 From - Total]]","v":0},{"$f":"Dataset[[#This Row],[2028/29 Targeted savings]]+Dataset[[#This Row],[2028/29 From - Total]]","v":0},{"$f":"Dataset[[#This Row],[2029/30 Targeted savings]]+Dataset[[#This Row],[2029/30 From - Total]]","v":0},{"$f":"Dataset[[#This Row],[2026/27 Targeted savings]]","v":0},{"$f":"SUM(Dataset[[#This Row],[2027/28 Targeted savings]],Dataset[[#This Row],[2027/28 From - Total]],Dataset[[#This Row],[2027/28 To - Total]])","v":0},{"$f":"SUM(Dataset[[#This Row],[2028/29 Targeted savings]],Dataset[[#This Row],[2028/29 From - Total]],Dataset[[#This Row],[2028/29 To - Total]])","v":0},{"$f":"SUM(Dataset[[#This Row],[2029/30 Targeted savings]],Dataset[[#This Row],[2029/30 From - Total]],Dataset[[#This Row],[2029/30 To - Total]])","v":0},{"$f":"Dataset[[#This Row],[2026/27 Baseline]]+Dataset[[#This Row],[2026/27 Total change]]","v":31},{"$f":"Dataset[[#This Row],[2027/28 Baseline]]+Dataset[[#This Row],[2027/28 Total change]]","v":61},{"$f":"Dataset[[#This Row],[2028/29 Baseline]]+Dataset[[#This Row],[2028/29 Total change]]","v":63},{"$f":"Dataset[[#This Row],[2029/30 Baseline]]+Dataset[[#This Row],[2029/30 Total change]]","v":65}]
["NAT|Non-transfer","30|Entertainment","2027_28","MTEC2027",30,2,1,32823,303,"30","02","01","032823","000303","30|02|01|000303","01","01","02","18","18","01|01|02|18|18","National","Communications and Digital Technologies","ICT Transformation, Global Partnerships and State-Owned Enterprises Governance","Programme Management for ICT Transformation, Global Partnerships and State-Owned Enterprises Governance","Non-transfer","Current","Current payments","Goods and services","Entertainment","Entertainment","Economic development","Economic regulation and infrastructure","NAT",0,0,0,50,50,50,0,20,0,0,0,null,null,null,null,null,null,null,null,null,null,null,null,null,null,null,null,null,null,null,null,null,null,null,null,null,null,null,null,null,null,null,null,null,null,{"$f":"Dataset[[#This Row],[2027/28 From - Spending review Topic 1]]+Dataset[[#This Row],[2027/28 From - Spending review Topic 2]]+Dataset[[#This Row],[2027/28 From - Spending review Topic 3]]+Dataset[[#This Row],[2027/28 From - Spending review Topic 4]]+Dataset[[#This Row],[2027/28 From - Other reallocations]]","v":0},{"$f":"Dataset[[#This Row],[2028/29 From - Spending review Topic 1]]+Dataset[[#This Row],[2028/29 From - Spending review Topic 2]]+Dataset[[#This Row],[2028/29 From - Spending review Topic 3]]+Dataset[[#This Row],[2028/29 From - Spending review Topic 4]]+Dataset[[#This Row],[2028/29 From - Other reallocations]]","v":0},{"$f":"Dataset[[#This Row],[2029/30 From - Spending review Topic 1]]+Dataset[[#This Row],[2029/30 From - Spending review Topic 2]]+Dataset[[#This Row],[2029/30 From - Spending review Topic 3]]+Dataset[[#This Row],[2029/30 From - Spending review Topic 4]]+Dataset[[#This Row],[2029/30 From - Other reallocations]]","v":0},{"$f":"Dataset[[#This Row],[2027/28 To - Spending review Topic 1]]+Dataset[[#This Row],[2027/28 To - Spending review Topic 2]]+Dataset[[#This Row],[2027/28 To - Spending review Topic 3]]+Dataset[[#This Row],[2027/28 To - Spending review Topic 4]]+Dataset[[#This Row],[2027/28 To - Other reallocations]]","v":0},{"$f":"Dataset[[#This Row],[2028/29 To - Spending review Topic 1]]+Dataset[[#This Row],[2028/29 To - Spending review Topic 2]]+Dataset[[#This Row],[2028/29 To - Spending review Topic 3]]+Dataset[[#This Row],[2028/29 To - Spending review Topic 4]]+Dataset[[#This Row],[2028/29 To - Other reallocations]]","v":0},{"$f":"Dataset[[#This Row],[2029/30 To - Spending review Topic 1]]+Dataset[[#This Row],[2029/30 To - Spending review Topic 2]]+Dataset[[#This Row],[2029/30 To - Spending review Topic 3]]+Dataset[[#This Row],[2029/30 To - Spending review Topic 4]]+Dataset[[#This Row],[2029/30 To - Other reallocations]]","v":0},{"$f":"Dataset[[#This Row],[2027/28 Targeted savings]]+Dataset[[#This Row],[2027/28 From - Total]]","v":0},{"$f":"Dataset[[#This Row],[2028/29 Targeted savings]]+Dataset[[#This Row],[2028/29 From - Total]]","v":0},{"$f":"Dataset[[#This Row],[2029/30 Targeted savings]]+Dataset[[#This Row],[2029/30 From - Total]]","v":0},{"$f":"Dataset[[#This Row],[2026/27 Targeted savings]]","v":0},{"$f":"SUM(Dataset[[#This Row],[2027/28 Targeted savings]],Dataset[[#This Row],[2027/28 From - Total]],Dataset[[#This Row],[2027/28 To - Total]])","v":0},{"$f":"SUM(Dataset[[#This Row],[2028/29 Targeted savings]],Dataset[[#This Row],[2028/29 From - Total]],Dataset[[#This Row],[2028/29 To - Total]])","v":0},{"$f":"SUM(Dataset[[#This Row],[2029/30 Targeted savings]],Dataset[[#This Row],[2029/30 From - Total]],Dataset[[#This Row],[2029/30 To - Total]])","v":0},{"$f":"Dataset[[#This Row],[2026/27 Baseline]]+Dataset[[#This Row],[2026/27 Total change]]","v":20},{"$f":"Dataset[[#This Row],[2027/28 Baseline]]+Dataset[[#This Row],[2027/28 Total change]]","v":0},{"$f":"Dataset[[#This Row],[2028/29 Baseline]]+Dataset[[#This Row],[2028/29 Total change]]","v":0},{"$f":"Dataset[[#This Row],[2029/30 Baseline]]+Dataset[[#This Row],[2029/30 Total change]]","v":0}]
["NAT|Non-transfer","30|Consumable supplies","2027_28","MTEC2027",30,2,1,32824,304,"30","02","01","032824","000304","30|02|01|000304","01","01","02","31","31","01|01|02|31|31","National","Communications and Digital Technologies","ICT Transformation, Global Partnerships and State-Owned Enterprises Governance","Programme Management for ICT Transformation, Global Partnerships and State-Owned Enterprises Governance","Non-transfer","Current","Current payments","Goods and services","Consumable supplies","Consumable supplies","Economic development","Economic regulation and infrastructure","NAT",0,0,0,50,50,50,0,37,0,0,0,null,null,null,null,null,null,null,null,null,null,null,null,null,null,null,null,null,null,null,null,null,null,null,null,null,null,null,null,null,null,null,null,null,null,{"$f":"Dataset[[#This Row],[2027/28 From - Spending review Topic 1]]+Dataset[[#This Row],[2027/28 From - Spending review Topic 2]]+Dataset[[#This Row],[2027/28 From - Spending review Topic 3]]+Dataset[[#This Row],[2027/28 From - Spending review Topic 4]]+Dataset[[#This Row],[2027/28 From - Other reallocations]]","v":0},{"$f":"Dataset[[#This Row],[2028/29 From - Spending review Topic 1]]+Dataset[[#This Row],[2028/29 From - Spending review Topic 2]]+Dataset[[#This Row],[2028/29 From - Spending review Topic 3]]+Dataset[[#This Row],[2028/29 From - Spending review Topic 4]]+Dataset[[#This Row],[2028/29 From - Other reallocations]]","v":0},{"$f":"Dataset[[#This Row],[2029/30 From - Spending review Topic 1]]+Dataset[[#This Row],[2029/30 From - Spending review Topic 2]]+Dataset[[#This Row],[2029/30 From - Spending review Topic 3]]+Dataset[[#This Row],[2029/30 From - Spending review Topic 4]]+Dataset[[#This Row],[2029/30 From - Other reallocations]]","v":0},{"$f":"Dataset[[#This Row],[2027/28 To - Spending review Topic 1]]+Dataset[[#This Row],[2027/28 To - Spending review Topic 2]]+Dataset[[#This Row],[2027/28 To - Spending review Topic 3]]+Dataset[[#This Row],[2027/28 To - Spending review Topic 4]]+Dataset[[#This Row],[2027/28 To - Other reallocations]]","v":0},{"$f":"Dataset[[#This Row],[2028/29 To - Spending review Topic 1]]+Dataset[[#This Row],[2028/29 To - Spending review Topic 2]]+Dataset[[#This Row],[2028/29 To - Spending review Topic 3]]+Dataset[[#This Row],[2028/29 To - Spending review Topic 4]]+Dataset[[#This Row],[2028/29 To - Other reallocations]]","v":0},{"$f":"Dataset[[#This Row],[2029/30 To - Spending review Topic 1]]+Dataset[[#This Row],[2029/30 To - Spending review Topic 2]]+Dataset[[#This Row],[2029/30 To - Spending review Topic 3]]+Dataset[[#This Row],[2029/30 To - Spending review Topic 4]]+Dataset[[#This Row],[2029/30 To - Other reallocations]]","v":0},{"$f":"Dataset[[#This Row],[2027/28 Targeted savings]]+Dataset[[#This Row],[2027/28 From - Total]]","v":0},{"$f":"Dataset[[#This Row],[2028/29 Targeted savings]]+Dataset[[#This Row],[2028/29 From - Total]]","v":0},{"$f":"Dataset[[#This Row],[2029/30 Targeted savings]]+Dataset[[#This Row],[2029/30 From - Total]]","v":0},{"$f":"Dataset[[#This Row],[2026/27 Targeted savings]]","v":0},{"$f":"SUM(Dataset[[#This Row],[2027/28 Targeted savings]],Dataset[[#This Row],[2027/28 From - Total]],Dataset[[#This Row],[2027/28 To - Total]])","v":0},{"$f":"SUM(Dataset[[#This Row],[2028/29 Targeted savings]],Dataset[[#This Row],[2028/29 From - Total]],Dataset[[#This Row],[2028/29 To - Total]])","v":0},{"$f":"SUM(Dataset[[#This Row],[2029/30 Targeted savings]],Dataset[[#This Row],[2029/30 From - Total]],Dataset[[#This Row],[2029/30 To - Total]])","v":0},{"$f":"Dataset[[#This Row],[2026/27 Baseline]]+Dataset[[#This Row],[2026/27 Total change]]","v":37},{"$f":"Dataset[[#This Row],[2027/28 Baseline]]+Dataset[[#This Row],[2027/28 Total change]]","v":0},{"$f":"Dataset[[#This Row],[2028/29 Baseline]]+Dataset[[#This Row],[2028/29 Total change]]","v":0},{"$f":"Dataset[[#This Row],[2029/30 Baseline]]+Dataset[[#This Row],[2029/30 Total change]]","v":0}]
["NAT|Non-transfer","30|Consumables: Stationery, printing and office supplies","2027_28","MTEC2027",30,2,1,32825,305,"30","02","01","032825","000305","30|02|01|000305","01","01","02","32","32","01|01|02|32|32","National","Communications and Digital Technologies","ICT Transformation, Global Partnerships and State-Owned Enterprises Governance","Programme Management for ICT Transformation, Global Partnerships and State-Owned Enterprises Governance","Non-transfer","Current","Current payments","Goods and services","Consumables: Stationery, printing and office supplies","Consumables: Stationery, printing and office supplies","Economic development","Economic regulation and infrastructure","NAT",0,0,0,25,25,25,0,25,0,0,0,null,null,null,null,null,null,null,null,null,null,null,null,null,null,null,null,null,null,null,null,null,null,null,null,null,null,null,null,null,null,null,null,null,null,{"$f":"Dataset[[#This Row],[2027/28 From - Spending review Topic 1]]+Dataset[[#This Row],[2027/28 From - Spending review Topic 2]]+Dataset[[#This Row],[2027/28 From - Spending review Topic 3]]+Dataset[[#This Row],[2027/28 From - Spending review Topic 4]]+Dataset[[#This Row],[2027/28 From - Other reallocations]]","v":0},{"$f":"Dataset[[#This Row],[2028/29 From - Spending review Topic 1]]+Dataset[[#This Row],[2028/29 From - Spending review Topic 2]]+Dataset[[#This Row],[2028/29 From - Spending review Topic 3]]+Dataset[[#This Row],[2028/29 From - Spending review Topic 4]]+Dataset[[#This Row],[2028/29 From - Other reallocations]]","v":0},{"$f":"Dataset[[#This Row],[2029/30 From - Spending review Topic 1]]+Dataset[[#This Row],[2029/30 From - Spending review Topic 2]]+Dataset[[#This Row],[2029/30 From - Spending review Topic 3]]+Dataset[[#This Row],[2029/30 From - Spending review Topic 4]]+Dataset[[#This Row],[2029/30 From - Other reallocations]]","v":0},{"$f":"Dataset[[#This Row],[2027/28 To - Spending review Topic 1]]+Dataset[[#This Row],[2027/28 To - Spending review Topic 2]]+Dataset[[#This Row],[2027/28 To - Spending review Topic 3]]+Dataset[[#This Row],[2027/28 To - Spending review Topic 4]]+Dataset[[#This Row],[2027/28 To - Other reallocations]]","v":0},{"$f":"Dataset[[#This Row],[2028/29 To - Spending review Topic 1]]+Dataset[[#This Row],[2028/29 To - Spending review Topic 2]]+Dataset[[#This Row],[2028/29 To - Spending review Topic 3]]+Dataset[[#This Row],[2028/29 To - Spending review Topic 4]]+Dataset[[#This Row],[2028/29 To - Other reallocations]]","v":0},{"$f":"Dataset[[#This Row],[2029/30 To - Spending review Topic 1]]+Dataset[[#This Row],[2029/30 To - Spending review Topic 2]]+Dataset[[#This Row],[2029/30 To - Spending review Topic 3]]+Dataset[[#This Row],[2029/30 To - Spending review Topic 4]]+Dataset[[#This Row],[2029/30 To - Other reallocations]]","v":0},{"$f":"Dataset[[#This Row],[2027/28 Targeted savings]]+Dataset[[#This Row],[2027/28 From - Total]]","v":0},{"$f":"Dataset[[#This Row],[2028/29 Targeted savings]]+Dataset[[#This Row],[2028/29 From - Total]]","v":0},{"$f":"Dataset[[#This Row],[2029/30 Targeted savings]]+Dataset[[#This Row],[2029/30 From - Total]]","v":0},{"$f":"Dataset[[#This Row],[2026/27 Targeted savings]]","v":0},{"$f":"SUM(Dataset[[#This Row],[2027/28 Targeted savings]],Dataset[[#This Row],[2027/28 From - Total]],Dataset[[#This Row],[2027/28 To - Total]])","v":0},{"$f":"SUM(Dataset[[#This Row],[2028/29 Targeted savings]],Dataset[[#This Row],[2028/29 From - Total]],Dataset[[#This Row],[2028/29 To - Total]])","v":0},{"$f":"SUM(Dataset[[#This Row],[2029/30 Targeted savings]],Dataset[[#This Row],[2029/30 From - Total]],Dataset[[#This Row],[2029/30 To - Total]])","v":0},{"$f":"Dataset[[#This Row],[2026/27 Baseline]]+Dataset[[#This Row],[2026/27 Total change]]","v":25},{"$f":"Dataset[[#This Row],[2027/28 Baseline]]+Dataset[[#This Row],[2027/28 Total change]]","v":0},{"$f":"Dataset[[#This Row],[2028/29 Baseline]]+Dataset[[#This Row],[2028/29 Total change]]","v":0},{"$f":"Dataset[[#This Row],[2029/30 Baseline]]+Dataset[[#This Row],[2029/30 Total change]]","v":0}]
["NAT|Non-transfer","30|Travel and subsistence","2027_28","MTEC2027",30,2,1,32826,306,"30","02","01","032826","000306","30|02|01|000306","01","01","02","37","37","01|01|02|37|37","National","Communications and Digital Technologies","ICT Transformation, Global Partnerships and State-Owned Enterprises Governance","Programme Management for ICT Transformation, Global Partnerships and State-Owned Enterprises Governance","Non-transfer","Current","Current payments","Goods and services","Travel and subsistence","Travel and subsistence","Economic development","Economic regulation and infrastructure","NAT",157,87,1453,140,140,140,0,402,738,762,785,null,null,null,null,null,null,null,null,null,null,null,null,null,null,null,null,null,null,null,null,null,null,null,null,null,null,null,null,null,null,null,null,null,null,{"$f":"Dataset[[#This Row],[2027/28 From - Spending review Topic 1]]+Dataset[[#This Row],[2027/28 From - Spending review Topic 2]]+Dataset[[#This Row],[2027/28 From - Spending review Topic 3]]+Dataset[[#This Row],[2027/28 From - Spending review Topic 4]]+Dataset[[#This Row],[2027/28 From - Other reallocations]]","v":0},{"$f":"Dataset[[#This Row],[2028/29 From - Spending review Topic 1]]+Dataset[[#This Row],[2028/29 From - Spending review Topic 2]]+Dataset[[#This Row],[2028/29 From - Spending review Topic 3]]+Dataset[[#This Row],[2028/29 From - Spending review Topic 4]]+Dataset[[#This Row],[2028/29 From - Other reallocations]]","v":0},{"$f":"Dataset[[#This Row],[2029/30 From - Spending review Topic 1]]+Dataset[[#This Row],[2029/30 From - Spending review Topic 2]]+Dataset[[#This Row],[2029/30 From - Spending review Topic 3]]+Dataset[[#This Row],[2029/30 From - Spending review Topic 4]]+Dataset[[#This Row],[2029/30 From - Other reallocations]]","v":0},{"$f":"Dataset[[#This Row],[2027/28 To - Spending review Topic 1]]+Dataset[[#This Row],[2027/28 To - Spending review Topic 2]]+Dataset[[#This Row],[2027/28 To - Spending review Topic 3]]+Dataset[[#This Row],[2027/28 To - Spending review Topic 4]]+Dataset[[#This Row],[2027/28 To - Other reallocations]]","v":0},{"$f":"Dataset[[#This Row],[2028/29 To - Spending review Topic 1]]+Dataset[[#This Row],[2028/29 To - Spending review Topic 2]]+Dataset[[#This Row],[2028/29 To - Spending review Topic 3]]+Dataset[[#This Row],[2028/29 To - Spending review Topic 4]]+Dataset[[#This Row],[2028/29 To - Other reallocations]]","v":0},{"$f":"Dataset[[#This Row],[2029/30 To - Spending review Topic 1]]+Dataset[[#This Row],[2029/30 To - Spending review Topic 2]]+Dataset[[#This Row],[2029/30 To - Spending review Topic 3]]+Dataset[[#This Row],[2029/30 To - Spending review Topic 4]]+Dataset[[#This Row],[2029/30 To - Other reallocations]]","v":0},{"$f":"Dataset[[#This Row],[2027/28 Targeted savings]]+Dataset[[#This Row],[2027/28 From - Total]]","v":0},{"$f":"Dataset[[#This Row],[2028/29 Targeted savings]]+Dataset[[#This Row],[2028/29 From - Total]]","v":0},{"$f":"Dataset[[#This Row],[2029/30 Targeted savings]]+Dataset[[#This Row],[2029/30 From - Total]]","v":0},{"$f":"Dataset[[#This Row],[2026/27 Targeted savings]]","v":0},{"$f":"SUM(Dataset[[#This Row],[2027/28 Targeted savings]],Dataset[[#This Row],[2027/28 From - Total]],Dataset[[#This Row],[2027/28 To - Total]])","v":0},{"$f":"SUM(Dataset[[#This Row],[2028/29 Targeted savings]],Dataset[[#This Row],[2028/29 From - Total]],Dataset[[#This Row],[2028/29 To - Total]])","v":0},{"$f":"SUM(Dataset[[#This Row],[2029/30 Targeted savings]],Dataset[[#This Row],[2029/30 From - Total]],Dataset[[#This Row],[2029/30 To - Total]])","v":0},{"$f":"Dataset[[#This Row],[2026/27 Baseline]]+Dataset[[#This Row],[2026/27 Total change]]","v":402},{"$f":"Dataset[[#This Row],[2027/28 Baseline]]+Dataset[[#This Row],[2027/28 Total change]]","v":738},{"$f":"Dataset[[#This Row],[2028/29 Baseline]]+Dataset[[#This Row],[2028/29 Total change]]","v":762},{"$f":"Dataset[[#This Row],[2029/30 Baseline]]+Dataset[[#This Row],[2029/30 Total change]]","v":785}]
["NAT|Non-transfer","30|Training and development","2027_28","MTEC2027",30,2,1,32827,307,"30","02","01","032827","000307","30|02|01|000307","01","01","02","38","38","01|01|02|38|38","National","Communications and Digital Technologies","ICT Transformation, Global Partnerships and State-Owned Enterprises Governance","Programme Management for ICT Transformation, Global Partnerships and State-Owned Enterprises Governance","Non-transfer","Current","Current payments","Goods and services","Training and development","Training and development","Economic development","Economic regulation and infrastructure","NAT",0,0,0,10,10,10,0,15,13,13,13,null,null,null,null,null,null,null,null,null,null,null,null,null,null,null,null,null,null,null,null,null,null,null,null,null,null,null,null,null,null,null,null,null,null,{"$f":"Dataset[[#This Row],[2027/28 From - Spending review Topic 1]]+Dataset[[#This Row],[2027/28 From - Spending review Topic 2]]+Dataset[[#This Row],[2027/28 From - Spending review Topic 3]]+Dataset[[#This Row],[2027/28 From - Spending review Topic 4]]+Dataset[[#This Row],[2027/28 From - Other reallocations]]","v":0},{"$f":"Dataset[[#This Row],[2028/29 From - Spending review Topic 1]]+Dataset[[#This Row],[2028/29 From - Spending review Topic 2]]+Dataset[[#This Row],[2028/29 From - Spending review Topic 3]]+Dataset[[#This Row],[2028/29 From - Spending review Topic 4]]+Dataset[[#This Row],[2028/29 From - Other reallocations]]","v":0},{"$f":"Dataset[[#This Row],[2029/30 From - Spending review Topic 1]]+Dataset[[#This Row],[2029/30 From - Spending review Topic 2]]+Dataset[[#This Row],[2029/30 From - Spending review Topic 3]]+Dataset[[#This Row],[2029/30 From - Spending review Topic 4]]+Dataset[[#This Row],[2029/30 From - Other reallocations]]","v":0},{"$f":"Dataset[[#This Row],[2027/28 To - Spending review Topic 1]]+Dataset[[#This Row],[2027/28 To - Spending review Topic 2]]+Dataset[[#This Row],[2027/28 To - Spending review Topic 3]]+Dataset[[#This Row],[2027/28 To - Spending review Topic 4]]+Dataset[[#This Row],[2027/28 To - Other reallocations]]","v":0},{"$f":"Dataset[[#This Row],[2028/29 To - Spending review Topic 1]]+Dataset[[#This Row],[2028/29 To - Spending review Topic 2]]+Dataset[[#This Row],[2028/29 To - Spending review Topic 3]]+Dataset[[#This Row],[2028/29 To - Spending review Topic 4]]+Dataset[[#This Row],[2028/29 To - Other reallocations]]","v":0},{"$f":"Dataset[[#This Row],[2029/30 To - Spending review Topic 1]]+Dataset[[#This Row],[2029/30 To - Spending review Topic 2]]+Dataset[[#This Row],[2029/30 To - Spending review Topic 3]]+Dataset[[#This Row],[2029/30 To - Spending review Topic 4]]+Dataset[[#This Row],[2029/30 To - Other reallocations]]","v":0},{"$f":"Dataset[[#This Row],[2027/28 Targeted savings]]+Dataset[[#This Row],[2027/28 From - Total]]","v":0},{"$f":"Dataset[[#This Row],[2028/29 Targeted savings]]+Dataset[[#This Row],[2028/29 From - Total]]","v":0},{"$f":"Dataset[[#This Row],[2029/30 Targeted savings]]+Dataset[[#This Row],[2029/30 From - Total]]","v":0},{"$f":"Dataset[[#This Row],[2026/27 Targeted savings]]","v":0},{"$f":"SUM(Dataset[[#This Row],[2027/28 Targeted savings]],Dataset[[#This Row],[2027/28 From - Total]],Dataset[[#This Row],[2027/28 To - Total]])","v":0},{"$f":"SUM(Dataset[[#This Row],[2028/29 Targeted savings]],Dataset[[#This Row],[2028/29 From - Total]],Dataset[[#This Row],[2028/29 To - Total]])","v":0},{"$f":"SUM(Dataset[[#This Row],[2029/30 Targeted savings]],Dataset[[#This Row],[2029/30 From - Total]],Dataset[[#This Row],[2029/30 To - Total]])","v":0},{"$f":"Dataset[[#This Row],[2026/27 Baseline]]+Dataset[[#This Row],[2026/27 Total change]]","v":15},{"$f":"Dataset[[#This Row],[2027/28 Baseline]]+Dataset[[#This Row],[2027/28 Total change]]","v":13},{"$f":"Dataset[[#This Row],[2028/29 Baseline]]+Dataset[[#This Row],[2028/29 Total change]]","v":13},{"$f":"Dataset[[#This Row],[2029/30 Baseline]]+Dataset[[#This Row],[2029/30 Total change]]","v":13}]
["NAT|Non-transfer","30|Venues and facilities","2027_28","MTEC2027",30,2,1,32828,308,"30","02","01","032828","000308","30|02|01|000308","01","01","02","40","40","01|01|02|40|40","National","Communications and Digital Technologies","ICT Transformation, Global Partnerships and State-Owned Enterprises Governance","Programme Management for ICT Transformation, Global Partnerships and State-Owned Enterprises Governance","Non-transfer","Current","Current payments","Goods and services","Venues and facilities","Venues and facilities","Economic development","Economic regulation and infrastructure","NAT",0,0,0,300,300,300,0,300,0,0,0,null,null,null,null,null,null,null,null,null,null,null,null,null,null,null,null,null,null,null,null,null,null,null,null,null,null,null,null,null,null,null,null,null,null,{"$f":"Dataset[[#This Row],[2027/28 From - Spending review Topic 1]]+Dataset[[#This Row],[2027/28 From - Spending review Topic 2]]+Dataset[[#This Row],[2027/28 From - Spending review Topic 3]]+Dataset[[#This Row],[2027/28 From - Spending review Topic 4]]+Dataset[[#This Row],[2027/28 From - Other reallocations]]","v":0},{"$f":"Dataset[[#This Row],[2028/29 From - Spending review Topic 1]]+Dataset[[#This Row],[2028/29 From - Spending review Topic 2]]+Dataset[[#This Row],[2028/29 From - Spending review Topic 3]]+Dataset[[#This Row],[2028/29 From - Spending review Topic 4]]+Dataset[[#This Row],[2028/29 From - Other reallocations]]","v":0},{"$f":"Dataset[[#This Row],[2029/30 From - Spending review Topic 1]]+Dataset[[#This Row],[2029/30 From - Spending review Topic 2]]+Dataset[[#This Row],[2029/30 From - Spending review Topic 3]]+Dataset[[#This Row],[2029/30 From - Spending review Topic 4]]+Dataset[[#This Row],[2029/30 From - Other reallocations]]","v":0},{"$f":"Dataset[[#This Row],[2027/28 To - Spending review Topic 1]]+Dataset[[#This Row],[2027/28 To - Spending review Topic 2]]+Dataset[[#This Row],[2027/28 To - Spending review Topic 3]]+Dataset[[#This Row],[2027/28 To - Spending review Topic 4]]+Dataset[[#This Row],[2027/28 To - Other reallocations]]","v":0},{"$f":"Dataset[[#This Row],[2028/29 To - Spending review Topic 1]]+Dataset[[#This Row],[2028/29 To - Spending review Topic 2]]+Dataset[[#This Row],[2028/29 To - Spending review Topic 3]]+Dataset[[#This Row],[2028/29 To - Spending review Topic 4]]+Dataset[[#This Row],[2028/29 To - Other reallocations]]","v":0},{"$f":"Dataset[[#This Row],[2029/30 To - Spending review Topic 1]]+Dataset[[#This Row],[2029/30 To - Spending review Topic 2]]+Dataset[[#This Row],[2029/30 To - Spending review Topic 3]]+Dataset[[#This Row],[2029/30 To - Spending review Topic 4]]+Dataset[[#This Row],[2029/30 To - Other reallocations]]","v":0},{"$f":"Dataset[[#This Row],[2027/28 Targeted savings]]+Dataset[[#This Row],[2027/28 From - Total]]","v":0},{"$f":"Dataset[[#This Row],[2028/29 Targeted savings]]+Dataset[[#This Row],[2028/29 From - Total]]","v":0},{"$f":"Dataset[[#This Row],[2029/30 Targeted savings]]+Dataset[[#This Row],[2029/30 From - Total]]","v":0},{"$f":"Dataset[[#This Row],[2026/27 Targeted savings]]","v":0},{"$f":"SUM(Dataset[[#This Row],[2027/28 Targeted savings]],Dataset[[#This Row],[2027/28 From - Total]],Dataset[[#This Row],[2027/28 To - Total]])","v":0},{"$f":"SUM(Dataset[[#This Row],[2028/29 Targeted savings]],Dataset[[#This Row],[2028/29 From - Total]],Dataset[[#This Row],[2028/29 To - Total]])","v":0},{"$f":"SUM(Dataset[[#This Row],[2029/30 Targeted savings]],Dataset[[#This Row],[2029/30 From - Total]],Dataset[[#This Row],[2029/30 To - Total]])","v":0},{"$f":"Dataset[[#This Row],[2026/27 Baseline]]+Dataset[[#This Row],[2026/27 Total change]]","v":300},{"$f":"Dataset[[#This Row],[2027/28 Baseline]]+Dataset[[#This Row],[2027/28 Total change]]","v":0},{"$f":"Dataset[[#This Row],[2028/29 Baseline]]+Dataset[[#This Row],[2028/29 Total change]]","v":0},{"$f":"Dataset[[#This Row],[2029/30 Baseline]]+Dataset[[#This Row],[2029/30 Total change]]","v":0}]
["NAT|Households","30|Social benefits","2027_28","MTEC2027",30,2,1,32829,309,"30","02","01","032829","000309","30|02|01|000309","01","02","10","52","56","01|02|10|52|56","National","Communications and Digital Technologies","ICT Transformation, Global Partnerships and State-Owned Enterprises Governance","Programme Management for ICT Transformation, Global Partnerships and State-Owned Enterprises Governance","Households","Current","Transfers and subsidies","Households","Social benefits","Social benefits","Economic development","Economic regulation and infrastructure","NAT",0,36,0,0,0,0,0,0,0,0,0,null,null,null,null,null,null,null,null,null,null,null,null,null,null,null,null,null,null,null,null,null,null,null,null,null,null,null,null,null,null,null,null,null,null,{"$f":"Dataset[[#This Row],[2027/28 From - Spending review Topic 1]]+Dataset[[#This Row],[2027/28 From - Spending review Topic 2]]+Dataset[[#This Row],[2027/28 From - Spending review Topic 3]]+Dataset[[#This Row],[2027/28 From - Spending review Topic 4]]+Dataset[[#This Row],[2027/28 From - Other reallocations]]","v":0},{"$f":"Dataset[[#This Row],[2028/29 From - Spending review Topic 1]]+Dataset[[#This Row],[2028/29 From - Spending review Topic 2]]+Dataset[[#This Row],[2028/29 From - Spending review Topic 3]]+Dataset[[#This Row],[2028/29 From - Spending review Topic 4]]+Dataset[[#This Row],[2028/29 From - Other reallocations]]","v":0},{"$f":"Dataset[[#This Row],[2029/30 From - Spending review Topic 1]]+Dataset[[#This Row],[2029/30 From - Spending review Topic 2]]+Dataset[[#This Row],[2029/30 From - Spending review Topic 3]]+Dataset[[#This Row],[2029/30 From - Spending review Topic 4]]+Dataset[[#This Row],[2029/30 From - Other reallocations]]","v":0},{"$f":"Dataset[[#This Row],[2027/28 To - Spending review Topic 1]]+Dataset[[#This Row],[2027/28 To - Spending review Topic 2]]+Dataset[[#This Row],[2027/28 To - Spending review Topic 3]]+Dataset[[#This Row],[2027/28 To - Spending review Topic 4]]+Dataset[[#This Row],[2027/28 To - Other reallocations]]","v":0},{"$f":"Dataset[[#This Row],[2028/29 To - Spending review Topic 1]]+Dataset[[#This Row],[2028/29 To - Spending review Topic 2]]+Dataset[[#This Row],[2028/29 To - Spending review Topic 3]]+Dataset[[#This Row],[2028/29 To - Spending review Topic 4]]+Dataset[[#This Row],[2028/29 To - Other reallocations]]","v":0},{"$f":"Dataset[[#This Row],[2029/30 To - Spending review Topic 1]]+Dataset[[#This Row],[2029/30 To - Spending review Topic 2]]+Dataset[[#This Row],[2029/30 To - Spending review Topic 3]]+Dataset[[#This Row],[2029/30 To - Spending review Topic 4]]+Dataset[[#This Row],[2029/30 To - Other reallocations]]","v":0},{"$f":"Dataset[[#This Row],[2027/28 Targeted savings]]+Dataset[[#This Row],[2027/28 From - Total]]","v":0},{"$f":"Dataset[[#This Row],[2028/29 Targeted savings]]+Dataset[[#This Row],[2028/29 From - Total]]","v":0},{"$f":"Dataset[[#This Row],[2029/30 Targeted savings]]+Dataset[[#This Row],[2029/30 From - Total]]","v":0},{"$f":"Dataset[[#This Row],[2026/27 Targeted savings]]","v":0},{"$f":"SUM(Dataset[[#This Row],[2027/28 Targeted savings]],Dataset[[#This Row],[2027/28 From - Total]],Dataset[[#This Row],[2027/28 To - Total]])","v":0},{"$f":"SUM(Dataset[[#This Row],[2028/29 Targeted savings]],Dataset[[#This Row],[2028/29 From - Total]],Dataset[[#This Row],[2028/29 To - Total]])","v":0},{"$f":"SUM(Dataset[[#This Row],[2029/30 Targeted savings]],Dataset[[#This Row],[2029/30 From - Total]],Dataset[[#This Row],[2029/30 To - Total]])","v":0},{"$f":"Dataset[[#This Row],[2026/27 Baseline]]+Dataset[[#This Row],[2026/27 Total change]]","v":0},{"$f":"Dataset[[#This Row],[2027/28 Baseline]]+Dataset[[#This Row],[2027/28 Total change]]","v":0},{"$f":"Dataset[[#This Row],[2028/29 Baseline]]+Dataset[[#This Row],[2028/29 Total change]]","v":0},{"$f":"Dataset[[#This Row],[2029/30 Baseline]]+Dataset[[#This Row],[2029/30 Total change]]","v":0}]
["NAT|Non-transfer","30|Other machinery and equipment","2027_28","MTEC2027",30,2,1,32830,310,"30","02","01","032830","000310","30|02|01|000310","02","03","12","57","61","02|03|12|57|61","National","Communications and Digital Technologies","ICT Transformation, Global Partnerships and State-Owned Enterprises Governance","Programme Management for ICT Transformation, Global Partnerships and State-Owned Enterprises Governance","Non-transfer","Capital","Payments for capital assets","Machinery and equipment","Other machinery and equipment","Other machinery and equipment","Economic development","Economic regulation and infrastructure","NAT",0,0,0,77,77,77,0,0,0,0,0,null,null,null,null,null,null,null,null,null,null,null,null,null,null,null,null,null,null,null,null,null,null,null,null,null,null,null,null,null,null,null,null,null,null,{"$f":"Dataset[[#This Row],[2027/28 From - Spending review Topic 1]]+Dataset[[#This Row],[2027/28 From - Spending review Topic 2]]+Dataset[[#This Row],[2027/28 From - Spending review Topic 3]]+Dataset[[#This Row],[2027/28 From - Spending review Topic 4]]+Dataset[[#This Row],[2027/28 From - Other reallocations]]","v":0},{"$f":"Dataset[[#This Row],[2028/29 From - Spending review Topic 1]]+Dataset[[#This Row],[2028/29 From - Spending review Topic 2]]+Dataset[[#This Row],[2028/29 From - Spending review Topic 3]]+Dataset[[#This Row],[2028/29 From - Spending review Topic 4]]+Dataset[[#This Row],[2028/29 From - Other reallocations]]","v":0},{"$f":"Dataset[[#This Row],[2029/30 From - Spending review Topic 1]]+Dataset[[#This Row],[2029/30 From - Spending review Topic 2]]+Dataset[[#This Row],[2029/30 From - Spending review Topic 3]]+Dataset[[#This Row],[2029/30 From - Spending review Topic 4]]+Dataset[[#This Row],[2029/30 From - Other reallocations]]","v":0},{"$f":"Dataset[[#This Row],[2027/28 To - Spending review Topic 1]]+Dataset[[#This Row],[2027/28 To - Spending review Topic 2]]+Dataset[[#This Row],[2027/28 To - Spending review Topic 3]]+Dataset[[#This Row],[2027/28 To - Spending review Topic 4]]+Dataset[[#This Row],[2027/28 To - Other reallocations]]","v":0},{"$f":"Dataset[[#This Row],[2028/29 To - Spending review Topic 1]]+Dataset[[#This Row],[2028/29 To - Spending review Topic 2]]+Dataset[[#This Row],[2028/29 To - Spending review Topic 3]]+Dataset[[#This Row],[2028/29 To - Spending review Topic 4]]+Dataset[[#This Row],[2028/29 To - Other reallocations]]","v":0},{"$f":"Dataset[[#This Row],[2029/30 To - Spending review Topic 1]]+Dataset[[#This Row],[2029/30 To - Spending review Topic 2]]+Dataset[[#This Row],[2029/30 To - Spending review Topic 3]]+Dataset[[#This Row],[2029/30 To - Spending review Topic 4]]+Dataset[[#This Row],[2029/30 To - Other reallocations]]","v":0},{"$f":"Dataset[[#This Row],[2027/28 Targeted savings]]+Dataset[[#This Row],[2027/28 From - Total]]","v":0},{"$f":"Dataset[[#This Row],[2028/29 Targeted savings]]+Dataset[[#This Row],[2028/29 From - Total]]","v":0},{"$f":"Dataset[[#This Row],[2029/30 Targeted savings]]+Dataset[[#This Row],[2029/30 From - Total]]","v":0},{"$f":"Dataset[[#This Row],[2026/27 Targeted savings]]","v":0},{"$f":"SUM(Dataset[[#This Row],[2027/28 Targeted savings]],Dataset[[#This Row],[2027/28 From - Total]],Dataset[[#This Row],[2027/28 To - Total]])","v":0},{"$f":"SUM(Dataset[[#This Row],[2028/29 Targeted savings]],Dataset[[#This Row],[2028/29 From - Total]],Dataset[[#This Row],[2028/29 To - Total]])","v":0},{"$f":"SUM(Dataset[[#This Row],[2029/30 Targeted savings]],Dataset[[#This Row],[2029/30 From - Total]],Dataset[[#This Row],[2029/30 To - Total]])","v":0},{"$f":"Dataset[[#This Row],[2026/27 Baseline]]+Dataset[[#This Row],[2026/27 Total change]]","v":0},{"$f":"Dataset[[#This Row],[2027/28 Baseline]]+Dataset[[#This Row],[2027/28 Total change]]","v":0},{"$f":"Dataset[[#This Row],[2028/29 Baseline]]+Dataset[[#This Row],[2028/29 Total change]]","v":0},{"$f":"Dataset[[#This Row],[2029/30 Baseline]]+Dataset[[#This Row],[2029/30 Total change]]","v":0}]
["NAT|Non-transfer","30|Salaries and wages","2027_28","MTEC2027",30,2,2,32831,311,"30","02","02","032831","000311","30|02|02|000311","01","01","01","01","01","01|01|01|01|01","National","Communications and Digital Technologies","ICT Transformation, Global Partnerships and State-Owned Enterprises Governance","International Relations, Partnerships and Stakeholder Management","Non-transfer","Current","Current payments","Compensation of employees","Salaries and wages","Salaries and wages","Economic development","Economic regulation and infrastructure","NAT",27074,27085,17086,21218,16908,16908,0,18991,20612,20465,21081,null,null,null,null,null,null,null,null,null,null,null,null,null,null,null,null,null,null,null,null,null,null,null,null,null,null,null,null,null,null,null,null,null,null,{"$f":"Dataset[[#This Row],[2027/28 From - Spending review Topic 1]]+Dataset[[#This Row],[2027/28 From - Spending review Topic 2]]+Dataset[[#This Row],[2027/28 From - Spending review Topic 3]]+Dataset[[#This Row],[2027/28 From - Spending review Topic 4]]+Dataset[[#This Row],[2027/28 From - Other reallocations]]","v":0},{"$f":"Dataset[[#This Row],[2028/29 From - Spending review Topic 1]]+Dataset[[#This Row],[2028/29 From - Spending review Topic 2]]+Dataset[[#This Row],[2028/29 From - Spending review Topic 3]]+Dataset[[#This Row],[2028/29 From - Spending review Topic 4]]+Dataset[[#This Row],[2028/29 From - Other reallocations]]","v":0},{"$f":"Dataset[[#This Row],[2029/30 From - Spending review Topic 1]]+Dataset[[#This Row],[2029/30 From - Spending review Topic 2]]+Dataset[[#This Row],[2029/30 From - Spending review Topic 3]]+Dataset[[#This Row],[2029/30 From - Spending review Topic 4]]+Dataset[[#This Row],[2029/30 From - Other reallocations]]","v":0},{"$f":"Dataset[[#This Row],[2027/28 To - Spending review Topic 1]]+Dataset[[#This Row],[2027/28 To - Spending review Topic 2]]+Dataset[[#This Row],[2027/28 To - Spending review Topic 3]]+Dataset[[#This Row],[2027/28 To - Spending review Topic 4]]+Dataset[[#This Row],[2027/28 To - Other reallocations]]","v":0},{"$f":"Dataset[[#This Row],[2028/29 To - Spending review Topic 1]]+Dataset[[#This Row],[2028/29 To - Spending review Topic 2]]+Dataset[[#This Row],[2028/29 To - Spending review Topic 3]]+Dataset[[#This Row],[2028/29 To - Spending review Topic 4]]+Dataset[[#This Row],[2028/29 To - Other reallocations]]","v":0},{"$f":"Dataset[[#This Row],[2029/30 To - Spending review Topic 1]]+Dataset[[#This Row],[2029/30 To - Spending review Topic 2]]+Dataset[[#This Row],[2029/30 To - Spending review Topic 3]]+Dataset[[#This Row],[2029/30 To - Spending review Topic 4]]+Dataset[[#This Row],[2029/30 To - Other reallocations]]","v":0},{"$f":"Dataset[[#This Row],[2027/28 Targeted savings]]+Dataset[[#This Row],[2027/28 From - Total]]","v":0},{"$f":"Dataset[[#This Row],[2028/29 Targeted savings]]+Dataset[[#This Row],[2028/29 From - Total]]","v":0},{"$f":"Dataset[[#This Row],[2029/30 Targeted savings]]+Dataset[[#This Row],[2029/30 From - Total]]","v":0},{"$f":"Dataset[[#This Row],[2026/27 Targeted savings]]","v":0},{"$f":"SUM(Dataset[[#This Row],[2027/28 Targeted savings]],Dataset[[#This Row],[2027/28 From - Total]],Dataset[[#This Row],[2027/28 To - Total]])","v":0},{"$f":"SUM(Dataset[[#This Row],[2028/29 Targeted savings]],Dataset[[#This Row],[2028/29 From - Total]],Dataset[[#This Row],[2028/29 To - Total]])","v":0},{"$f":"SUM(Dataset[[#This Row],[2029/30 Targeted savings]],Dataset[[#This Row],[2029/30 From - Total]],Dataset[[#This Row],[2029/30 To - Total]])","v":0},{"$f":"Dataset[[#This Row],[2026/27 Baseline]]+Dataset[[#This Row],[2026/27 Total change]]","v":18991},{"$f":"Dataset[[#This Row],[2027/28 Baseline]]+Dataset[[#This Row],[2027/28 Total change]]","v":20612},{"$f":"Dataset[[#This Row],[2028/29 Baseline]]+Dataset[[#This Row],[2028/29 Total change]]","v":20465},{"$f":"Dataset[[#This Row],[2029/30 Baseline]]+Dataset[[#This Row],[2029/30 Total change]]","v":21081}]
["NAT|Non-transfer","30|Social contributions","2027_28","MTEC2027",30,2,2,32832,312,"30","02","02","032832","000312","30|02|02|000312","01","01","01","02","02","01|01|01|02|02","National","Communications and Digital Technologies","ICT Transformation, Global Partnerships and State-Owned Enterprises Governance","International Relations, Partnerships and Stakeholder Management","Non-transfer","Current","Current payments","Compensation of employees","Social contributions","Social contributions","Economic development","Economic regulation and infrastructure","NAT",2876,2956,3010,2960,2960,2960,0,2864,2332,2491,2566,null,null,null,null,null,null,null,null,null,null,null,null,null,null,null,null,null,null,null,null,null,null,null,null,null,null,null,null,null,null,null,null,null,null,{"$f":"Dataset[[#This Row],[2027/28 From - Spending review Topic 1]]+Dataset[[#This Row],[2027/28 From - Spending review Topic 2]]+Dataset[[#This Row],[2027/28 From - Spending review Topic 3]]+Dataset[[#This Row],[2027/28 From - Spending review Topic 4]]+Dataset[[#This Row],[2027/28 From - Other reallocations]]","v":0},{"$f":"Dataset[[#This Row],[2028/29 From - Spending review Topic 1]]+Dataset[[#This Row],[2028/29 From - Spending review Topic 2]]+Dataset[[#This Row],[2028/29 From - Spending review Topic 3]]+Dataset[[#This Row],[2028/29 From - Spending review Topic 4]]+Dataset[[#This Row],[2028/29 From - Other reallocations]]","v":0},{"$f":"Dataset[[#This Row],[2029/30 From - Spending review Topic 1]]+Dataset[[#This Row],[2029/30 From - Spending review Topic 2]]+Dataset[[#This Row],[2029/30 From - Spending review Topic 3]]+Dataset[[#This Row],[2029/30 From - Spending review Topic 4]]+Dataset[[#This Row],[2029/30 From - Other reallocations]]","v":0},{"$f":"Dataset[[#This Row],[2027/28 To - Spending review Topic 1]]+Dataset[[#This Row],[2027/28 To - Spending review Topic 2]]+Dataset[[#This Row],[2027/28 To - Spending review Topic 3]]+Dataset[[#This Row],[2027/28 To - Spending review Topic 4]]+Dataset[[#This Row],[2027/28 To - Other reallocations]]","v":0},{"$f":"Dataset[[#This Row],[2028/29 To - Spending review Topic 1]]+Dataset[[#This Row],[2028/29 To - Spending review Topic 2]]+Dataset[[#This Row],[2028/29 To - Spending review Topic 3]]+Dataset[[#This Row],[2028/29 To - Spending review Topic 4]]+Dataset[[#This Row],[2028/29 To - Other reallocations]]","v":0},{"$f":"Dataset[[#This Row],[2029/30 To - Spending review Topic 1]]+Dataset[[#This Row],[2029/30 To - Spending review Topic 2]]+Dataset[[#This Row],[2029/30 To - Spending review Topic 3]]+Dataset[[#This Row],[2029/30 To - Spending review Topic 4]]+Dataset[[#This Row],[2029/30 To - Other reallocations]]","v":0},{"$f":"Dataset[[#This Row],[2027/28 Targeted savings]]+Dataset[[#This Row],[2027/28 From - Total]]","v":0},{"$f":"Dataset[[#This Row],[2028/29 Targeted savings]]+Dataset[[#This Row],[2028/29 From - Total]]","v":0},{"$f":"Dataset[[#This Row],[2029/30 Targeted savings]]+Dataset[[#This Row],[2029/30 From - Total]]","v":0},{"$f":"Dataset[[#This Row],[2026/27 Targeted savings]]","v":0},{"$f":"SUM(Dataset[[#This Row],[2027/28 Targeted savings]],Dataset[[#This Row],[2027/28 From - Total]],Dataset[[#This Row],[2027/28 To - Total]])","v":0},{"$f":"SUM(Dataset[[#This Row],[2028/29 Targeted savings]],Dataset[[#This Row],[2028/29 From - Total]],Dataset[[#This Row],[2028/29 To - Total]])","v":0},{"$f":"SUM(Dataset[[#This Row],[2029/30 Targeted savings]],Dataset[[#This Row],[2029/30 From - Total]],Dataset[[#This Row],[2029/30 To - Total]])","v":0},{"$f":"Dataset[[#This Row],[2026/27 Baseline]]+Dataset[[#This Row],[2026/27 Total change]]","v":2864},{"$f":"Dataset[[#This Row],[2027/28 Baseline]]+Dataset[[#This Row],[2027/28 Total change]]","v":2332},{"$f":"Dataset[[#This Row],[2028/29 Baseline]]+Dataset[[#This Row],[2028/29 Total change]]","v":2491},{"$f":"Dataset[[#This Row],[2029/30 Baseline]]+Dataset[[#This Row],[2029/30 Total change]]","v":2566}]
["NAT|Non-transfer","30|Administrative fees","2027_28","MTEC2027",30,2,2,32833,313,"30","02","02","032833","000313","30|02|02|000313","01","01","02","03","03","01|01|02|03|03","National","Communications and Digital Technologies","ICT Transformation, Global Partnerships and State-Owned Enterprises Governance","International Relations, Partnerships and Stakeholder Management","Non-transfer","Current","Current payments","Goods and services","Administrative fees","Administrative fees","Economic development","Economic regulation and infrastructure","NAT",45,282,113,35,1435,1435,0,210,220,433,446,null,null,null,null,null,null,null,null,null,null,null,null,null,null,null,null,null,null,null,null,null,null,null,null,null,null,null,null,null,null,null,null,null,null,{"$f":"Dataset[[#This Row],[2027/28 From - Spending review Topic 1]]+Dataset[[#This Row],[2027/28 From - Spending review Topic 2]]+Dataset[[#This Row],[2027/28 From - Spending review Topic 3]]+Dataset[[#This Row],[2027/28 From - Spending review Topic 4]]+Dataset[[#This Row],[2027/28 From - Other reallocations]]","v":0},{"$f":"Dataset[[#This Row],[2028/29 From - Spending review Topic 1]]+Dataset[[#This Row],[2028/29 From - Spending review Topic 2]]+Dataset[[#This Row],[2028/29 From - Spending review Topic 3]]+Dataset[[#This Row],[2028/29 From - Spending review Topic 4]]+Dataset[[#This Row],[2028/29 From - Other reallocations]]","v":0},{"$f":"Dataset[[#This Row],[2029/30 From - Spending review Topic 1]]+Dataset[[#This Row],[2029/30 From - Spending review Topic 2]]+Dataset[[#This Row],[2029/30 From - Spending review Topic 3]]+Dataset[[#This Row],[2029/30 From - Spending review Topic 4]]+Dataset[[#This Row],[2029/30 From - Other reallocations]]","v":0},{"$f":"Dataset[[#This Row],[2027/28 To - Spending review Topic 1]]+Dataset[[#This Row],[2027/28 To - Spending review Topic 2]]+Dataset[[#This Row],[2027/28 To - Spending review Topic 3]]+Dataset[[#This Row],[2027/28 To - Spending review Topic 4]]+Dataset[[#This Row],[2027/28 To - Other reallocations]]","v":0},{"$f":"Dataset[[#This Row],[2028/29 To - Spending review Topic 1]]+Dataset[[#This Row],[2028/29 To - Spending review Topic 2]]+Dataset[[#This Row],[2028/29 To - Spending review Topic 3]]+Dataset[[#This Row],[2028/29 To - Spending review Topic 4]]+Dataset[[#This Row],[2028/29 To - Other reallocations]]","v":0},{"$f":"Dataset[[#This Row],[2029/30 To - Spending review Topic 1]]+Dataset[[#This Row],[2029/30 To - Spending review Topic 2]]+Dataset[[#This Row],[2029/30 To - Spending review Topic 3]]+Dataset[[#This Row],[2029/30 To - Spending review Topic 4]]+Dataset[[#This Row],[2029/30 To - Other reallocations]]","v":0},{"$f":"Dataset[[#This Row],[2027/28 Targeted savings]]+Dataset[[#This Row],[2027/28 From - Total]]","v":0},{"$f":"Dataset[[#This Row],[2028/29 Targeted savings]]+Dataset[[#This Row],[2028/29 From - Total]]","v":0},{"$f":"Dataset[[#This Row],[2029/30 Targeted savings]]+Dataset[[#This Row],[2029/30 From - Total]]","v":0},{"$f":"Dataset[[#This Row],[2026/27 Targeted savings]]","v":0},{"$f":"SUM(Dataset[[#This Row],[2027/28 Targeted savings]],Dataset[[#This Row],[2027/28 From - Total]],Dataset[[#This Row],[2027/28 To - Total]])","v":0},{"$f":"SUM(Dataset[[#This Row],[2028/29 Targeted savings]],Dataset[[#This Row],[2028/29 From - Total]],Dataset[[#This Row],[2028/29 To - Total]])","v":0},{"$f":"SUM(Dataset[[#This Row],[2029/30 Targeted savings]],Dataset[[#This Row],[2029/30 From - Total]],Dataset[[#This Row],[2029/30 To - Total]])","v":0},{"$f":"Dataset[[#This Row],[2026/27 Baseline]]+Dataset[[#This Row],[2026/27 Total change]]","v":210},{"$f":"Dataset[[#This Row],[2027/28 Baseline]]+Dataset[[#This Row],[2027/28 Total change]]","v":220},{"$f":"Dataset[[#This Row],[2028/29 Baseline]]+Dataset[[#This Row],[2028/29 Total change]]","v":433},{"$f":"Dataset[[#This Row],[2029/30 Baseline]]+Dataset[[#This Row],[2029/30 Total change]]","v":446}]
["NAT|Non-transfer","30|Advertising","2027_28","MTEC2027",30,2,2,32834,314,"30","02","02","032834","000314","30|02|02|000314","01","01","02","04","04","01|01|02|04|04","National","Communications and Digital Technologies","ICT Transformation, Global Partnerships and State-Owned Enterprises Governance","International Relations, Partnerships and Stakeholder Management","Non-transfer","Current","Current payments","Goods and services","Advertising","Advertising","Economic development","Economic regulation and infrastructure","NAT",371,499,19,5,1005,1005,0,180,24,24,25,null,null,null,null,null,null,null,null,null,null,null,null,null,null,null,null,null,null,null,null,null,null,null,null,null,null,null,null,null,null,null,null,null,null,{"$f":"Dataset[[#This Row],[2027/28 From - Spending review Topic 1]]+Dataset[[#This Row],[2027/28 From - Spending review Topic 2]]+Dataset[[#This Row],[2027/28 From - Spending review Topic 3]]+Dataset[[#This Row],[2027/28 From - Spending review Topic 4]]+Dataset[[#This Row],[2027/28 From - Other reallocations]]","v":0},{"$f":"Dataset[[#This Row],[2028/29 From - Spending review Topic 1]]+Dataset[[#This Row],[2028/29 From - Spending review Topic 2]]+Dataset[[#This Row],[2028/29 From - Spending review Topic 3]]+Dataset[[#This Row],[2028/29 From - Spending review Topic 4]]+Dataset[[#This Row],[2028/29 From - Other reallocations]]","v":0},{"$f":"Dataset[[#This Row],[2029/30 From - Spending review Topic 1]]+Dataset[[#This Row],[2029/30 From - Spending review Topic 2]]+Dataset[[#This Row],[2029/30 From - Spending review Topic 3]]+Dataset[[#This Row],[2029/30 From - Spending review Topic 4]]+Dataset[[#This Row],[2029/30 From - Other reallocations]]","v":0},{"$f":"Dataset[[#This Row],[2027/28 To - Spending review Topic 1]]+Dataset[[#This Row],[2027/28 To - Spending review Topic 2]]+Dataset[[#This Row],[2027/28 To - Spending review Topic 3]]+Dataset[[#This Row],[2027/28 To - Spending review Topic 4]]+Dataset[[#This Row],[2027/28 To - Other reallocations]]","v":0},{"$f":"Dataset[[#This Row],[2028/29 To - Spending review Topic 1]]+Dataset[[#This Row],[2028/29 To - Spending review Topic 2]]+Dataset[[#This Row],[2028/29 To - Spending review Topic 3]]+Dataset[[#This Row],[2028/29 To - Spending review Topic 4]]+Dataset[[#This Row],[2028/29 To - Other reallocations]]","v":0},{"$f":"Dataset[[#This Row],[2029/30 To - Spending review Topic 1]]+Dataset[[#This Row],[2029/30 To - Spending review Topic 2]]+Dataset[[#This Row],[2029/30 To - Spending review Topic 3]]+Dataset[[#This Row],[2029/30 To - Spending review Topic 4]]+Dataset[[#This Row],[2029/30 To - Other reallocations]]","v":0},{"$f":"Dataset[[#This Row],[2027/28 Targeted savings]]+Dataset[[#This Row],[2027/28 From - Total]]","v":0},{"$f":"Dataset[[#This Row],[2028/29 Targeted savings]]+Dataset[[#This Row],[2028/29 From - Total]]","v":0},{"$f":"Dataset[[#This Row],[2029/30 Targeted savings]]+Dataset[[#This Row],[2029/30 From - Total]]","v":0},{"$f":"Dataset[[#This Row],[2026/27 Targeted savings]]","v":0},{"$f":"SUM(Dataset[[#This Row],[2027/28 Targeted savings]],Dataset[[#This Row],[2027/28 From - Total]],Dataset[[#This Row],[2027/28 To - Total]])","v":0},{"$f":"SUM(Dataset[[#This Row],[2028/29 Targeted savings]],Dataset[[#This Row],[2028/29 From - Total]],Dataset[[#This Row],[2028/29 To - Total]])","v":0},{"$f":"SUM(Dataset[[#This Row],[2029/30 Targeted savings]],Dataset[[#This Row],[2029/30 From - Total]],Dataset[[#This Row],[2029/30 To - Total]])","v":0},{"$f":"Dataset[[#This Row],[2026/27 Baseline]]+Dataset[[#This Row],[2026/27 Total change]]","v":180},{"$f":"Dataset[[#This Row],[2027/28 Baseline]]+Dataset[[#This Row],[2027/28 Total change]]","v":24},{"$f":"Dataset[[#This Row],[2028/29 Baseline]]+Dataset[[#This Row],[2028/29 Total change]]","v":24},{"$f":"Dataset[[#This Row],[2029/30 Baseline]]+Dataset[[#This Row],[2029/30 Total change]]","v":25}]
["NAT|Non-transfer","30|Minor assets","2027_28","MTEC2027",30,2,2,32835,315,"30","02","02","032835","000315","30|02|02|000315","01","01","02","05","05","01|01|02|05|05","National","Communications and Digital Technologies","ICT Transformation, Global Partnerships and State-Owned Enterprises Governance","International Relations, Partnerships and Stakeholder Management","Non-transfer","Current","Current payments","Goods and services","Minor assets","Minor assets","Economic development","Economic regulation and infrastructure","NAT",0,0,2,13,13,13,0,119,171,177,182,null,null,null,null,null,null,null,null,null,null,null,null,null,null,null,null,null,null,null,null,null,null,null,null,null,null,null,null,null,null,null,null,null,null,{"$f":"Dataset[[#This Row],[2027/28 From - Spending review Topic 1]]+Dataset[[#This Row],[2027/28 From - Spending review Topic 2]]+Dataset[[#This Row],[2027/28 From - Spending review Topic 3]]+Dataset[[#This Row],[2027/28 From - Spending review Topic 4]]+Dataset[[#This Row],[2027/28 From - Other reallocations]]","v":0},{"$f":"Dataset[[#This Row],[2028/29 From - Spending review Topic 1]]+Dataset[[#This Row],[2028/29 From - Spending review Topic 2]]+Dataset[[#This Row],[2028/29 From - Spending review Topic 3]]+Dataset[[#This Row],[2028/29 From - Spending review Topic 4]]+Dataset[[#This Row],[2028/29 From - Other reallocations]]","v":0},{"$f":"Dataset[[#This Row],[2029/30 From - Spending review Topic 1]]+Dataset[[#This Row],[2029/30 From - Spending review Topic 2]]+Dataset[[#This Row],[2029/30 From - Spending review Topic 3]]+Dataset[[#This Row],[2029/30 From - Spending review Topic 4]]+Dataset[[#This Row],[2029/30 From - Other reallocations]]","v":0},{"$f":"Dataset[[#This Row],[2027/28 To - Spending review Topic 1]]+Dataset[[#This Row],[2027/28 To - Spending review Topic 2]]+Dataset[[#This Row],[2027/28 To - Spending review Topic 3]]+Dataset[[#This Row],[2027/28 To - Spending review Topic 4]]+Dataset[[#This Row],[2027/28 To - Other reallocations]]","v":0},{"$f":"Dataset[[#This Row],[2028/29 To - Spending review Topic 1]]+Dataset[[#This Row],[2028/29 To - Spending review Topic 2]]+Dataset[[#This Row],[2028/29 To - Spending review Topic 3]]+Dataset[[#This Row],[2028/29 To - Spending review Topic 4]]+Dataset[[#This Row],[2028/29 To - Other reallocations]]","v":0},{"$f":"Dataset[[#This Row],[2029/30 To - Spending review Topic 1]]+Dataset[[#This Row],[2029/30 To - Spending review Topic 2]]+Dataset[[#This Row],[2029/30 To - Spending review Topic 3]]+Dataset[[#This Row],[2029/30 To - Spending review Topic 4]]+Dataset[[#This Row],[2029/30 To - Other reallocations]]","v":0},{"$f":"Dataset[[#This Row],[2027/28 Targeted savings]]+Dataset[[#This Row],[2027/28 From - Total]]","v":0},{"$f":"Dataset[[#This Row],[2028/29 Targeted savings]]+Dataset[[#This Row],[2028/29 From - Total]]","v":0},{"$f":"Dataset[[#This Row],[2029/30 Targeted savings]]+Dataset[[#This Row],[2029/30 From - Total]]","v":0},{"$f":"Dataset[[#This Row],[2026/27 Targeted savings]]","v":0},{"$f":"SUM(Dataset[[#This Row],[2027/28 Targeted savings]],Dataset[[#This Row],[2027/28 From - Total]],Dataset[[#This Row],[2027/28 To - Total]])","v":0},{"$f":"SUM(Dataset[[#This Row],[2028/29 Targeted savings]],Dataset[[#This Row],[2028/29 From - Total]],Dataset[[#This Row],[2028/29 To - Total]])","v":0},{"$f":"SUM(Dataset[[#This Row],[2029/30 Targeted savings]],Dataset[[#This Row],[2029/30 From - Total]],Dataset[[#This Row],[2029/30 To - Total]])","v":0},{"$f":"Dataset[[#This Row],[2026/27 Baseline]]+Dataset[[#This Row],[2026/27 Total change]]","v":119},{"$f":"Dataset[[#This Row],[2027/28 Baseline]]+Dataset[[#This Row],[2027/28 Total change]]","v":171},{"$f":"Dataset[[#This Row],[2028/29 Baseline]]+Dataset[[#This Row],[2028/29 Total change]]","v":177},{"$f":"Dataset[[#This Row],[2029/30 Baseline]]+Dataset[[#This Row],[2029/30 Total change]]","v":182}]
["NAT|Non-transfer","30|Bursaries: Employees","2027_28","MTEC2027",30,2,2,32836,316,"30","02","02","032836","000316","30|02|02|000316","01","01","02","07","07","01|01|02|07|07","National","Communications and Digital Technologies","ICT Transformation, Global Partnerships and State-Owned Enterprises Governance","International Relations, Partnerships and Stakeholder Management","Non-transfer","Current","Current payments","Goods and services","Bursaries: Employees","Bursaries: Employees","Economic development","Economic regulation and infrastructure","NAT",14,0,34,20,20,20,0,110,94,97,100,null,null,null,null,null,null,null,null,null,null,null,null,null,null,null,null,null,null,null,null,null,null,null,null,null,null,null,null,null,null,null,null,null,null,{"$f":"Dataset[[#This Row],[2027/28 From - Spending review Topic 1]]+Dataset[[#This Row],[2027/28 From - Spending review Topic 2]]+Dataset[[#This Row],[2027/28 From - Spending review Topic 3]]+Dataset[[#This Row],[2027/28 From - Spending review Topic 4]]+Dataset[[#This Row],[2027/28 From - Other reallocations]]","v":0},{"$f":"Dataset[[#This Row],[2028/29 From - Spending review Topic 1]]+Dataset[[#This Row],[2028/29 From - Spending review Topic 2]]+Dataset[[#This Row],[2028/29 From - Spending review Topic 3]]+Dataset[[#This Row],[2028/29 From - Spending review Topic 4]]+Dataset[[#This Row],[2028/29 From - Other reallocations]]","v":0},{"$f":"Dataset[[#This Row],[2029/30 From - Spending review Topic 1]]+Dataset[[#This Row],[2029/30 From - Spending review Topic 2]]+Dataset[[#This Row],[2029/30 From - Spending review Topic 3]]+Dataset[[#This Row],[2029/30 From - Spending review Topic 4]]+Dataset[[#This Row],[2029/30 From - Other reallocations]]","v":0},{"$f":"Dataset[[#This Row],[2027/28 To - Spending review Topic 1]]+Dataset[[#This Row],[2027/28 To - Spending review Topic 2]]+Dataset[[#This Row],[2027/28 To - Spending review Topic 3]]+Dataset[[#This Row],[2027/28 To - Spending review Topic 4]]+Dataset[[#This Row],[2027/28 To - Other reallocations]]","v":0},{"$f":"Dataset[[#This Row],[2028/29 To - Spending review Topic 1]]+Dataset[[#This Row],[2028/29 To - Spending review Topic 2]]+Dataset[[#This Row],[2028/29 To - Spending review Topic 3]]+Dataset[[#This Row],[2028/29 To - Spending review Topic 4]]+Dataset[[#This Row],[2028/29 To - Other reallocations]]","v":0},{"$f":"Dataset[[#This Row],[2029/30 To - Spending review Topic 1]]+Dataset[[#This Row],[2029/30 To - Spending review Topic 2]]+Dataset[[#This Row],[2029/30 To - Spending review Topic 3]]+Dataset[[#This Row],[2029/30 To - Spending review Topic 4]]+Dataset[[#This Row],[2029/30 To - Other reallocations]]","v":0},{"$f":"Dataset[[#This Row],[2027/28 Targeted savings]]+Dataset[[#This Row],[2027/28 From - Total]]","v":0},{"$f":"Dataset[[#This Row],[2028/29 Targeted savings]]+Dataset[[#This Row],[2028/29 From - Total]]","v":0},{"$f":"Dataset[[#This Row],[2029/30 Targeted savings]]+Dataset[[#This Row],[2029/30 From - Total]]","v":0},{"$f":"Dataset[[#This Row],[2026/27 Targeted savings]]","v":0},{"$f":"SUM(Dataset[[#This Row],[2027/28 Targeted savings]],Dataset[[#This Row],[2027/28 From - Total]],Dataset[[#This Row],[2027/28 To - Total]])","v":0},{"$f":"SUM(Dataset[[#This Row],[2028/29 Targeted savings]],Dataset[[#This Row],[2028/29 From - Total]],Dataset[[#This Row],[2028/29 To - Total]])","v":0},{"$f":"SUM(Dataset[[#This Row],[2029/30 Targeted savings]],Dataset[[#This Row],[2029/30 From - Total]],Dataset[[#This Row],[2029/30 To - Total]])","v":0},{"$f":"Dataset[[#This Row],[2026/27 Baseline]]+Dataset[[#This Row],[2026/27 Total change]]","v":110},{"$f":"Dataset[[#This Row],[2027/28 Baseline]]+Dataset[[#This Row],[2027/28 Total change]]","v":94},{"$f":"Dataset[[#This Row],[2028/29 Baseline]]+Dataset[[#This Row],[2028/29 Total change]]","v":97},{"$f":"Dataset[[#This Row],[2029/30 Baseline]]+Dataset[[#This Row],[2029/30 Total change]]","v":100}]
["NAT|Non-transfer","30|Catering: Departmental activities","2027_28","MTEC2027",30,2,2,32837,317,"30","02","02","032837","000317","30|02|02|000317","01","01","02","08","08","01|01|02|08|08","National","Communications and Digital Technologies","ICT Transformation, Global Partnerships and State-Owned Enterprises Governance","International Relations, Partnerships and Stakeholder Management","Non-transfer","Current","Current payments","Goods and services","Catering: Departmental activities","Catering: Departmental activities","Economic development","Economic regulation and infrastructure","NAT",53,26,60,10,10,10,0,85,142,277,285,null,null,null,null,null,null,null,null,null,null,null,null,null,null,null,null,null,null,null,null,null,null,null,null,null,null,null,null,null,null,null,null,null,null,{"$f":"Dataset[[#This Row],[2027/28 From - Spending review Topic 1]]+Dataset[[#This Row],[2027/28 From - Spending review Topic 2]]+Dataset[[#This Row],[2027/28 From - Spending review Topic 3]]+Dataset[[#This Row],[2027/28 From - Spending review Topic 4]]+Dataset[[#This Row],[2027/28 From - Other reallocations]]","v":0},{"$f":"Dataset[[#This Row],[2028/29 From - Spending review Topic 1]]+Dataset[[#This Row],[2028/29 From - Spending review Topic 2]]+Dataset[[#This Row],[2028/29 From - Spending review Topic 3]]+Dataset[[#This Row],[2028/29 From - Spending review Topic 4]]+Dataset[[#This Row],[2028/29 From - Other reallocations]]","v":0},{"$f":"Dataset[[#This Row],[2029/30 From - Spending review Topic 1]]+Dataset[[#This Row],[2029/30 From - Spending review Topic 2]]+Dataset[[#This Row],[2029/30 From - Spending review Topic 3]]+Dataset[[#This Row],[2029/30 From - Spending review Topic 4]]+Dataset[[#This Row],[2029/30 From - Other reallocations]]","v":0},{"$f":"Dataset[[#This Row],[2027/28 To - Spending review Topic 1]]+Dataset[[#This Row],[2027/28 To - Spending review Topic 2]]+Dataset[[#This Row],[2027/28 To - Spending review Topic 3]]+Dataset[[#This Row],[2027/28 To - Spending review Topic 4]]+Dataset[[#This Row],[2027/28 To - Other reallocations]]","v":0},{"$f":"Dataset[[#This Row],[2028/29 To - Spending review Topic 1]]+Dataset[[#This Row],[2028/29 To - Spending review Topic 2]]+Dataset[[#This Row],[2028/29 To - Spending review Topic 3]]+Dataset[[#This Row],[2028/29 To - Spending review Topic 4]]+Dataset[[#This Row],[2028/29 To - Other reallocations]]","v":0},{"$f":"Dataset[[#This Row],[2029/30 To - Spending review Topic 1]]+Dataset[[#This Row],[2029/30 To - Spending review Topic 2]]+Dataset[[#This Row],[2029/30 To - Spending review Topic 3]]+Dataset[[#This Row],[2029/30 To - Spending review Topic 4]]+Dataset[[#This Row],[2029/30 To - Other reallocations]]","v":0},{"$f":"Dataset[[#This Row],[2027/28 Targeted savings]]+Dataset[[#This Row],[2027/28 From - Total]]","v":0},{"$f":"Dataset[[#This Row],[2028/29 Targeted savings]]+Dataset[[#This Row],[2028/29 From - Total]]","v":0},{"$f":"Dataset[[#This Row],[2029/30 Targeted savings]]+Dataset[[#This Row],[2029/30 From - Total]]","v":0},{"$f":"Dataset[[#This Row],[2026/27 Targeted savings]]","v":0},{"$f":"SUM(Dataset[[#This Row],[2027/28 Targeted savings]],Dataset[[#This Row],[2027/28 From - Total]],Dataset[[#This Row],[2027/28 To - Total]])","v":0},{"$f":"SUM(Dataset[[#This Row],[2028/29 Targeted savings]],Dataset[[#This Row],[2028/29 From - Total]],Dataset[[#This Row],[2028/29 To - Total]])","v":0},{"$f":"SUM(Dataset[[#This Row],[2029/30 Targeted savings]],Dataset[[#This Row],[2029/30 From - Total]],Dataset[[#This Row],[2029/30 To - Total]])","v":0},{"$f":"Dataset[[#This Row],[2026/27 Baseline]]+Dataset[[#This Row],[2026/27 Total change]]","v":85},{"$f":"Dataset[[#This Row],[2027/28 Baseline]]+Dataset[[#This Row],[2027/28 Total change]]","v":142},{"$f":"Dataset[[#This Row],[2028/29 Baseline]]+Dataset[[#This Row],[2028/29 Total change]]","v":277},{"$f":"Dataset[[#This Row],[2029/30 Baseline]]+Dataset[[#This Row],[2029/30 Total change]]","v":285}]
["NAT|Non-transfer","30|Communication (G&S)","2027_28","MTEC2027",30,2,2,32838,318,"30","02","02","032838","000318","30|02|02|000318","01","01","02","09","09","01|01|02|09|09","National","Communications and Digital Technologies","ICT Transformation, Global Partnerships and State-Owned Enterprises Governance","International Relations, Partnerships and Stakeholder Management","Non-transfer","Current","Current payments","Goods and services","Communication (G&S)","Communication (G&S)","Economic development","Economic regulation and infrastructure","NAT",805,379,171,212,214,214,0,135,192,301,310,null,null,null,null,null,null,null,null,null,null,null,null,null,null,null,null,null,null,null,null,null,null,null,null,null,null,null,null,null,null,null,null,null,null,{"$f":"Dataset[[#This Row],[2027/28 From - Spending review Topic 1]]+Dataset[[#This Row],[2027/28 From - Spending review Topic 2]]+Dataset[[#This Row],[2027/28 From - Spending review Topic 3]]+Dataset[[#This Row],[2027/28 From - Spending review Topic 4]]+Dataset[[#This Row],[2027/28 From - Other reallocations]]","v":0},{"$f":"Dataset[[#This Row],[2028/29 From - Spending review Topic 1]]+Dataset[[#This Row],[2028/29 From - Spending review Topic 2]]+Dataset[[#This Row],[2028/29 From - Spending review Topic 3]]+Dataset[[#This Row],[2028/29 From - Spending review Topic 4]]+Dataset[[#This Row],[2028/29 From - Other reallocations]]","v":0},{"$f":"Dataset[[#This Row],[2029/30 From - Spending review Topic 1]]+Dataset[[#This Row],[2029/30 From - Spending review Topic 2]]+Dataset[[#This Row],[2029/30 From - Spending review Topic 3]]+Dataset[[#This Row],[2029/30 From - Spending review Topic 4]]+Dataset[[#This Row],[2029/30 From - Other reallocations]]","v":0},{"$f":"Dataset[[#This Row],[2027/28 To - Spending review Topic 1]]+Dataset[[#This Row],[2027/28 To - Spending review Topic 2]]+Dataset[[#This Row],[2027/28 To - Spending review Topic 3]]+Dataset[[#This Row],[2027/28 To - Spending review Topic 4]]+Dataset[[#This Row],[2027/28 To - Other reallocations]]","v":0},{"$f":"Dataset[[#This Row],[2028/29 To - Spending review Topic 1]]+Dataset[[#This Row],[2028/29 To - Spending review Topic 2]]+Dataset[[#This Row],[2028/29 To - Spending review Topic 3]]+Dataset[[#This Row],[2028/29 To - Spending review Topic 4]]+Dataset[[#This Row],[2028/29 To - Other reallocations]]","v":0},{"$f":"Dataset[[#This Row],[2029/30 To - Spending review Topic 1]]+Dataset[[#This Row],[2029/30 To - Spending review Topic 2]]+Dataset[[#This Row],[2029/30 To - Spending review Topic 3]]+Dataset[[#This Row],[2029/30 To - Spending review Topic 4]]+Dataset[[#This Row],[2029/30 To - Other reallocations]]","v":0},{"$f":"Dataset[[#This Row],[2027/28 Targeted savings]]+Dataset[[#This Row],[2027/28 From - Total]]","v":0},{"$f":"Dataset[[#This Row],[2028/29 Targeted savings]]+Dataset[[#This Row],[2028/29 From - Total]]","v":0},{"$f":"Dataset[[#This Row],[2029/30 Targeted savings]]+Dataset[[#This Row],[2029/30 From - Total]]","v":0},{"$f":"Dataset[[#This Row],[2026/27 Targeted savings]]","v":0},{"$f":"SUM(Dataset[[#This Row],[2027/28 Targeted savings]],Dataset[[#This Row],[2027/28 From - Total]],Dataset[[#This Row],[2027/28 To - Total]])","v":0},{"$f":"SUM(Dataset[[#This Row],[2028/29 Targeted savings]],Dataset[[#This Row],[2028/29 From - Total]],Dataset[[#This Row],[2028/29 To - Total]])","v":0},{"$f":"SUM(Dataset[[#This Row],[2029/30 Targeted savings]],Dataset[[#This Row],[2029/30 From - Total]],Dataset[[#This Row],[2029/30 To - Total]])","v":0},{"$f":"Dataset[[#This Row],[2026/27 Baseline]]+Dataset[[#This Row],[2026/27 Total change]]","v":135},{"$f":"Dataset[[#This Row],[2027/28 Baseline]]+Dataset[[#This Row],[2027/28 Total change]]","v":192},{"$f":"Dataset[[#This Row],[2028/29 Baseline]]+Dataset[[#This Row],[2028/29 Total change]]","v":301},{"$f":"Dataset[[#This Row],[2029/30 Baseline]]+Dataset[[#This Row],[2029/30 Total change]]","v":310}]
["NAT|Non-transfer","30|Contractors","2027_28","MTEC2027",30,2,2,32839,319,"30","02","02","032839","000319","30|02|02|000319","01","01","02","16","16","01|01|02|16|16","National","Communications and Digital Technologies","ICT Transformation, Global Partnerships and State-Owned Enterprises Governance","International Relations, Partnerships and Stakeholder Management","Non-transfer","Current","Current payments","Goods and services","Contractors","Contractors","Economic development","Economic regulation and infrastructure","NAT",30,2969,250,4194,4194,4194,0,2250,1417,1461,1505,null,null,null,null,null,null,null,null,null,null,null,null,null,null,null,null,null,null,null,null,null,null,null,null,null,null,null,null,null,null,null,null,null,null,{"$f":"Dataset[[#This Row],[2027/28 From - Spending review Topic 1]]+Dataset[[#This Row],[2027/28 From - Spending review Topic 2]]+Dataset[[#This Row],[2027/28 From - Spending review Topic 3]]+Dataset[[#This Row],[2027/28 From - Spending review Topic 4]]+Dataset[[#This Row],[2027/28 From - Other reallocations]]","v":0},{"$f":"Dataset[[#This Row],[2028/29 From - Spending review Topic 1]]+Dataset[[#This Row],[2028/29 From - Spending review Topic 2]]+Dataset[[#This Row],[2028/29 From - Spending review Topic 3]]+Dataset[[#This Row],[2028/29 From - Spending review Topic 4]]+Dataset[[#This Row],[2028/29 From - Other reallocations]]","v":0},{"$f":"Dataset[[#This Row],[2029/30 From - Spending review Topic 1]]+Dataset[[#This Row],[2029/30 From - Spending review Topic 2]]+Dataset[[#This Row],[2029/30 From - Spending review Topic 3]]+Dataset[[#This Row],[2029/30 From - Spending review Topic 4]]+Dataset[[#This Row],[2029/30 From - Other reallocations]]","v":0},{"$f":"Dataset[[#This Row],[2027/28 To - Spending review Topic 1]]+Dataset[[#This Row],[2027/28 To - Spending review Topic 2]]+Dataset[[#This Row],[2027/28 To - Spending review Topic 3]]+Dataset[[#This Row],[2027/28 To - Spending review Topic 4]]+Dataset[[#This Row],[2027/28 To - Other reallocations]]","v":0},{"$f":"Dataset[[#This Row],[2028/29 To - Spending review Topic 1]]+Dataset[[#This Row],[2028/29 To - Spending review Topic 2]]+Dataset[[#This Row],[2028/29 To - Spending review Topic 3]]+Dataset[[#This Row],[2028/29 To - Spending review Topic 4]]+Dataset[[#This Row],[2028/29 To - Other reallocations]]","v":0},{"$f":"Dataset[[#This Row],[2029/30 To - Spending review Topic 1]]+Dataset[[#This Row],[2029/30 To - Spending review Topic 2]]+Dataset[[#This Row],[2029/30 To - Spending review Topic 3]]+Dataset[[#This Row],[2029/30 To - Spending review Topic 4]]+Dataset[[#This Row],[2029/30 To - Other reallocations]]","v":0},{"$f":"Dataset[[#This Row],[2027/28 Targeted savings]]+Dataset[[#This Row],[2027/28 From - Total]]","v":0},{"$f":"Dataset[[#This Row],[2028/29 Targeted savings]]+Dataset[[#This Row],[2028/29 From - Total]]","v":0},{"$f":"Dataset[[#This Row],[2029/30 Targeted savings]]+Dataset[[#This Row],[2029/30 From - Total]]","v":0},{"$f":"Dataset[[#This Row],[2026/27 Targeted savings]]","v":0},{"$f":"SUM(Dataset[[#This Row],[2027/28 Targeted savings]],Dataset[[#This Row],[2027/28 From - Total]],Dataset[[#This Row],[2027/28 To - Total]])","v":0},{"$f":"SUM(Dataset[[#This Row],[2028/29 Targeted savings]],Dataset[[#This Row],[2028/29 From - Total]],Dataset[[#This Row],[2028/29 To - Total]])","v":0},{"$f":"SUM(Dataset[[#This Row],[2029/30 Targeted savings]],Dataset[[#This Row],[2029/30 From - Total]],Dataset[[#This Row],[2029/30 To - Total]])","v":0},{"$f":"Dataset[[#This Row],[2026/27 Baseline]]+Dataset[[#This Row],[2026/27 Total change]]","v":2250},{"$f":"Dataset[[#This Row],[2027/28 Baseline]]+Dataset[[#This Row],[2027/28 Total change]]","v":1417},{"$f":"Dataset[[#This Row],[2028/29 Baseline]]+Dataset[[#This Row],[2028/29 Total change]]","v":1461},{"$f":"Dataset[[#This Row],[2029/30 Baseline]]+Dataset[[#This Row],[2029/30 Total change]]","v":1505}]
["NAT|Non-transfer","30|Entertainment","2027_28","MTEC2027",30,2,2,32840,320,"30","02","02","032840","000320","30|02|02|000320","01","01","02","18","18","01|01|02|18|18","National","Communications and Digital Technologies","ICT Transformation, Global Partnerships and State-Owned Enterprises Governance","International Relations, Partnerships and Stakeholder Management","Non-transfer","Current","Current payments","Goods and services","Entertainment","Entertainment","Economic development","Economic regulation and infrastructure","NAT",0,0,0,0,0,0,0,9,16,16,16,null,null,null,null,null,null,null,null,null,null,null,null,null,null,null,null,null,null,null,null,null,null,null,null,null,null,null,null,null,null,null,null,null,null,{"$f":"Dataset[[#This Row],[2027/28 From - Spending review Topic 1]]+Dataset[[#This Row],[2027/28 From - Spending review Topic 2]]+Dataset[[#This Row],[2027/28 From - Spending review Topic 3]]+Dataset[[#This Row],[2027/28 From - Spending review Topic 4]]+Dataset[[#This Row],[2027/28 From - Other reallocations]]","v":0},{"$f":"Dataset[[#This Row],[2028/29 From - Spending review Topic 1]]+Dataset[[#This Row],[2028/29 From - Spending review Topic 2]]+Dataset[[#This Row],[2028/29 From - Spending review Topic 3]]+Dataset[[#This Row],[2028/29 From - Spending review Topic 4]]+Dataset[[#This Row],[2028/29 From - Other reallocations]]","v":0},{"$f":"Dataset[[#This Row],[2029/30 From - Spending review Topic 1]]+Dataset[[#This Row],[2029/30 From - Spending review Topic 2]]+Dataset[[#This Row],[2029/30 From - Spending review Topic 3]]+Dataset[[#This Row],[2029/30 From - Spending review Topic 4]]+Dataset[[#This Row],[2029/30 From - Other reallocations]]","v":0},{"$f":"Dataset[[#This Row],[2027/28 To - Spending review Topic 1]]+Dataset[[#This Row],[2027/28 To - Spending review Topic 2]]+Dataset[[#This Row],[2027/28 To - Spending review Topic 3]]+Dataset[[#This Row],[2027/28 To - Spending review Topic 4]]+Dataset[[#This Row],[2027/28 To - Other reallocations]]","v":0},{"$f":"Dataset[[#This Row],[2028/29 To - Spending review Topic 1]]+Dataset[[#This Row],[2028/29 To - Spending review Topic 2]]+Dataset[[#This Row],[2028/29 To - Spending review Topic 3]]+Dataset[[#This Row],[2028/29 To - Spending review Topic 4]]+Dataset[[#This Row],[2028/29 To - Other reallocations]]","v":0},{"$f":"Dataset[[#This Row],[2029/30 To - Spending review Topic 1]]+Dataset[[#This Row],[2029/30 To - Spending review Topic 2]]+Dataset[[#This Row],[2029/30 To - Spending review Topic 3]]+Dataset[[#This Row],[2029/30 To - Spending review Topic 4]]+Dataset[[#This Row],[2029/30 To - Other reallocations]]","v":0},{"$f":"Dataset[[#This Row],[2027/28 Targeted savings]]+Dataset[[#This Row],[2027/28 From - Total]]","v":0},{"$f":"Dataset[[#This Row],[2028/29 Targeted savings]]+Dataset[[#This Row],[2028/29 From - Total]]","v":0},{"$f":"Dataset[[#This Row],[2029/30 Targeted savings]]+Dataset[[#This Row],[2029/30 From - Total]]","v":0},{"$f":"Dataset[[#This Row],[2026/27 Targeted savings]]","v":0},{"$f":"SUM(Dataset[[#This Row],[2027/28 Targeted savings]],Dataset[[#This Row],[2027/28 From - Total]],Dataset[[#This Row],[2027/28 To - Total]])","v":0},{"$f":"SUM(Dataset[[#This Row],[2028/29 Targeted savings]],Dataset[[#This Row],[2028/29 From - Total]],Dataset[[#This Row],[2028/29 To - Total]])","v":0},{"$f":"SUM(Dataset[[#This Row],[2029/30 Targeted savings]],Dataset[[#This Row],[2029/30 From - Total]],Dataset[[#This Row],[2029/30 To - Total]])","v":0},{"$f":"Dataset[[#This Row],[2026/27 Baseline]]+Dataset[[#This Row],[2026/27 Total change]]","v":9},{"$f":"Dataset[[#This Row],[2027/28 Baseline]]+Dataset[[#This Row],[2027/28 Total change]]","v":16},{"$f":"Dataset[[#This Row],[2028/29 Baseline]]+Dataset[[#This Row],[2028/29 Total change]]","v":16},{"$f":"Dataset[[#This Row],[2029/30 Baseline]]+Dataset[[#This Row],[2029/30 Total change]]","v":16}]
["NAT|Non-transfer","30|Consumable supplies","2027_28","MTEC2027",30,2,2,32841,321,"30","02","02","032841","000321","30|02|02|000321","01","01","02","31","31","01|01|02|31|31","National","Communications and Digital Technologies","ICT Transformation, Global Partnerships and State-Owned Enterprises Governance","International Relations, Partnerships and Stakeholder Management","Non-transfer","Current","Current payments","Goods and services","Consumable supplies","Consumable supplies","Economic development","Economic regulation and infrastructure","NAT",6,12,4,16,16,16,0,48,20,20,21,null,null,null,null,null,null,null,null,null,null,null,null,null,null,null,null,null,null,null,null,null,null,null,null,null,null,null,null,null,null,null,null,null,null,{"$f":"Dataset[[#This Row],[2027/28 From - Spending review Topic 1]]+Dataset[[#This Row],[2027/28 From - Spending review Topic 2]]+Dataset[[#This Row],[2027/28 From - Spending review Topic 3]]+Dataset[[#This Row],[2027/28 From - Spending review Topic 4]]+Dataset[[#This Row],[2027/28 From - Other reallocations]]","v":0},{"$f":"Dataset[[#This Row],[2028/29 From - Spending review Topic 1]]+Dataset[[#This Row],[2028/29 From - Spending review Topic 2]]+Dataset[[#This Row],[2028/29 From - Spending review Topic 3]]+Dataset[[#This Row],[2028/29 From - Spending review Topic 4]]+Dataset[[#This Row],[2028/29 From - Other reallocations]]","v":0},{"$f":"Dataset[[#This Row],[2029/30 From - Spending review Topic 1]]+Dataset[[#This Row],[2029/30 From - Spending review Topic 2]]+Dataset[[#This Row],[2029/30 From - Spending review Topic 3]]+Dataset[[#This Row],[2029/30 From - Spending review Topic 4]]+Dataset[[#This Row],[2029/30 From - Other reallocations]]","v":0},{"$f":"Dataset[[#This Row],[2027/28 To - Spending review Topic 1]]+Dataset[[#This Row],[2027/28 To - Spending review Topic 2]]+Dataset[[#This Row],[2027/28 To - Spending review Topic 3]]+Dataset[[#This Row],[2027/28 To - Spending review Topic 4]]+Dataset[[#This Row],[2027/28 To - Other reallocations]]","v":0},{"$f":"Dataset[[#This Row],[2028/29 To - Spending review Topic 1]]+Dataset[[#This Row],[2028/29 To - Spending review Topic 2]]+Dataset[[#This Row],[2028/29 To - Spending review Topic 3]]+Dataset[[#This Row],[2028/29 To - Spending review Topic 4]]+Dataset[[#This Row],[2028/29 To - Other reallocations]]","v":0},{"$f":"Dataset[[#This Row],[2029/30 To - Spending review Topic 1]]+Dataset[[#This Row],[2029/30 To - Spending review Topic 2]]+Dataset[[#This Row],[2029/30 To - Spending review Topic 3]]+Dataset[[#This Row],[2029/30 To - Spending review Topic 4]]+Dataset[[#This Row],[2029/30 To - Other reallocations]]","v":0},{"$f":"Dataset[[#This Row],[2027/28 Targeted savings]]+Dataset[[#This Row],[2027/28 From - Total]]","v":0},{"$f":"Dataset[[#This Row],[2028/29 Targeted savings]]+Dataset[[#This Row],[2028/29 From - Total]]","v":0},{"$f":"Dataset[[#This Row],[2029/30 Targeted savings]]+Dataset[[#This Row],[2029/30 From - Total]]","v":0},{"$f":"Dataset[[#This Row],[2026/27 Targeted savings]]","v":0},{"$f":"SUM(Dataset[[#This Row],[2027/28 Targeted savings]],Dataset[[#This Row],[2027/28 From - Total]],Dataset[[#This Row],[2027/28 To - Total]])","v":0},{"$f":"SUM(Dataset[[#This Row],[2028/29 Targeted savings]],Dataset[[#This Row],[2028/29 From - Total]],Dataset[[#This Row],[2028/29 To - Total]])","v":0},{"$f":"SUM(Dataset[[#This Row],[2029/30 Targeted savings]],Dataset[[#This Row],[2029/30 From - Total]],Dataset[[#This Row],[2029/30 To - Total]])","v":0},{"$f":"Dataset[[#This Row],[2026/27 Baseline]]+Dataset[[#This Row],[2026/27 Total change]]","v":48},{"$f":"Dataset[[#This Row],[2027/28 Baseline]]+Dataset[[#This Row],[2027/28 Total change]]","v":20},{"$f":"Dataset[[#This Row],[2028/29 Baseline]]+Dataset[[#This Row],[2028/29 Total change]]","v":20},{"$f":"Dataset[[#This Row],[2029/30 Baseline]]+Dataset[[#This Row],[2029/30 Total change]]","v":21}]
["NAT|Non-transfer","30|Consumables: Stationery, printing and office supplies","2027_28","MTEC2027",30,2,2,32842,322,"30","02","02","032842","000322","30|02|02|000322","01","01","02","32","32","01|01|02|32|32","National","Communications and Digital Technologies","ICT Transformation, Global Partnerships and State-Owned Enterprises Governance","International Relations, Partnerships and Stakeholder Management","Non-transfer","Current","Current payments","Goods and services","Consumables: Stationery, printing and office supplies","Consumables: Stationery, printing and office supplies","Economic development","Economic regulation and infrastructure","NAT",51,30,25,5,5,5,0,132,191,197,203,null,null,null,null,null,null,null,null,null,null,null,null,null,null,null,null,null,null,null,null,null,null,null,null,null,null,null,null,null,null,null,null,null,null,{"$f":"Dataset[[#This Row],[2027/28 From - Spending review Topic 1]]+Dataset[[#This Row],[2027/28 From - Spending review Topic 2]]+Dataset[[#This Row],[2027/28 From - Spending review Topic 3]]+Dataset[[#This Row],[2027/28 From - Spending review Topic 4]]+Dataset[[#This Row],[2027/28 From - Other reallocations]]","v":0},{"$f":"Dataset[[#This Row],[2028/29 From - Spending review Topic 1]]+Dataset[[#This Row],[2028/29 From - Spending review Topic 2]]+Dataset[[#This Row],[2028/29 From - Spending review Topic 3]]+Dataset[[#This Row],[2028/29 From - Spending review Topic 4]]+Dataset[[#This Row],[2028/29 From - Other reallocations]]","v":0},{"$f":"Dataset[[#This Row],[2029/30 From - Spending review Topic 1]]+Dataset[[#This Row],[2029/30 From - Spending review Topic 2]]+Dataset[[#This Row],[2029/30 From - Spending review Topic 3]]+Dataset[[#This Row],[2029/30 From - Spending review Topic 4]]+Dataset[[#This Row],[2029/30 From - Other reallocations]]","v":0},{"$f":"Dataset[[#This Row],[2027/28 To - Spending review Topic 1]]+Dataset[[#This Row],[2027/28 To - Spending review Topic 2]]+Dataset[[#This Row],[2027/28 To - Spending review Topic 3]]+Dataset[[#This Row],[2027/28 To - Spending review Topic 4]]+Dataset[[#This Row],[2027/28 To - Other reallocations]]","v":0},{"$f":"Dataset[[#This Row],[2028/29 To - Spending review Topic 1]]+Dataset[[#This Row],[2028/29 To - Spending review Topic 2]]+Dataset[[#This Row],[2028/29 To - Spending review Topic 3]]+Dataset[[#This Row],[2028/29 To - Spending review Topic 4]]+Dataset[[#This Row],[2028/29 To - Other reallocations]]","v":0},{"$f":"Dataset[[#This Row],[2029/30 To - Spending review Topic 1]]+Dataset[[#This Row],[2029/30 To - Spending review Topic 2]]+Dataset[[#This Row],[2029/30 To - Spending review Topic 3]]+Dataset[[#This Row],[2029/30 To - Spending review Topic 4]]+Dataset[[#This Row],[2029/30 To - Other reallocations]]","v":0},{"$f":"Dataset[[#This Row],[2027/28 Targeted savings]]+Dataset[[#This Row],[2027/28 From - Total]]","v":0},{"$f":"Dataset[[#This Row],[2028/29 Targeted savings]]+Dataset[[#This Row],[2028/29 From - Total]]","v":0},{"$f":"Dataset[[#This Row],[2029/30 Targeted savings]]+Dataset[[#This Row],[2029/30 From - Total]]","v":0},{"$f":"Dataset[[#This Row],[2026/27 Targeted savings]]","v":0},{"$f":"SUM(Dataset[[#This Row],[2027/28 Targeted savings]],Dataset[[#This Row],[2027/28 From - Total]],Dataset[[#This Row],[2027/28 To - Total]])","v":0},{"$f":"SUM(Dataset[[#This Row],[2028/29 Targeted savings]],Dataset[[#This Row],[2028/29 From - Total]],Dataset[[#This Row],[2028/29 To - Total]])","v":0},{"$f":"SUM(Dataset[[#This Row],[2029/30 Targeted savings]],Dataset[[#This Row],[2029/30 From - Total]],Dataset[[#This Row],[2029/30 To - Total]])","v":0},{"$f":"Dataset[[#This Row],[2026/27 Baseline]]+Dataset[[#This Row],[2026/27 Total change]]","v":132},{"$f":"Dataset[[#This Row],[2027/28 Baseline]]+Dataset[[#This Row],[2027/28 Total change]]","v":191},{"$f":"Dataset[[#This Row],[2028/29 Baseline]]+Dataset[[#This Row],[2028/29 Total change]]","v":197},{"$f":"Dataset[[#This Row],[2029/30 Baseline]]+Dataset[[#This Row],[2029/30 Total change]]","v":203}]
["NAT|Non-transfer","30|Operating leases","2027_28","MTEC2027",30,2,2,32843,323,"30","02","02","032843","000323","30|02|02|000323","01","01","02","33","33","01|01|02|33|33","National","Communications and Digital Technologies","ICT Transformation, Global Partnerships and State-Owned Enterprises Governance","International Relations, Partnerships and Stakeholder Management","Non-transfer","Current","Current payments","Goods and services","Operating leases","Operating leases","Economic development","Economic regulation and infrastructure","NAT",100,89,125,110,110,110,0,100,128,338,348,null,null,null,null,null,null,null,null,null,null,null,null,null,null,null,null,null,null,null,null,null,null,null,null,null,null,null,null,null,null,null,null,null,null,{"$f":"Dataset[[#This Row],[2027/28 From - Spending review Topic 1]]+Dataset[[#This Row],[2027/28 From - Spending review Topic 2]]+Dataset[[#This Row],[2027/28 From - Spending review Topic 3]]+Dataset[[#This Row],[2027/28 From - Spending review Topic 4]]+Dataset[[#This Row],[2027/28 From - Other reallocations]]","v":0},{"$f":"Dataset[[#This Row],[2028/29 From - Spending review Topic 1]]+Dataset[[#This Row],[2028/29 From - Spending review Topic 2]]+Dataset[[#This Row],[2028/29 From - Spending review Topic 3]]+Dataset[[#This Row],[2028/29 From - Spending review Topic 4]]+Dataset[[#This Row],[2028/29 From - Other reallocations]]","v":0},{"$f":"Dataset[[#This Row],[2029/30 From - Spending review Topic 1]]+Dataset[[#This Row],[2029/30 From - Spending review Topic 2]]+Dataset[[#This Row],[2029/30 From - Spending review Topic 3]]+Dataset[[#This Row],[2029/30 From - Spending review Topic 4]]+Dataset[[#This Row],[2029/30 From - Other reallocations]]","v":0},{"$f":"Dataset[[#This Row],[2027/28 To - Spending review Topic 1]]+Dataset[[#This Row],[2027/28 To - Spending review Topic 2]]+Dataset[[#This Row],[2027/28 To - Spending review Topic 3]]+Dataset[[#This Row],[2027/28 To - Spending review Topic 4]]+Dataset[[#This Row],[2027/28 To - Other reallocations]]","v":0},{"$f":"Dataset[[#This Row],[2028/29 To - Spending review Topic 1]]+Dataset[[#This Row],[2028/29 To - Spending review Topic 2]]+Dataset[[#This Row],[2028/29 To - Spending review Topic 3]]+Dataset[[#This Row],[2028/29 To - Spending review Topic 4]]+Dataset[[#This Row],[2028/29 To - Other reallocations]]","v":0},{"$f":"Dataset[[#This Row],[2029/30 To - Spending review Topic 1]]+Dataset[[#This Row],[2029/30 To - Spending review Topic 2]]+Dataset[[#This Row],[2029/30 To - Spending review Topic 3]]+Dataset[[#This Row],[2029/30 To - Spending review Topic 4]]+Dataset[[#This Row],[2029/30 To - Other reallocations]]","v":0},{"$f":"Dataset[[#This Row],[2027/28 Targeted savings]]+Dataset[[#This Row],[2027/28 From - Total]]","v":0},{"$f":"Dataset[[#This Row],[2028/29 Targeted savings]]+Dataset[[#This Row],[2028/29 From - Total]]","v":0},{"$f":"Dataset[[#This Row],[2029/30 Targeted savings]]+Dataset[[#This Row],[2029/30 From - Total]]","v":0},{"$f":"Dataset[[#This Row],[2026/27 Targeted savings]]","v":0},{"$f":"SUM(Dataset[[#This Row],[2027/28 Targeted savings]],Dataset[[#This Row],[2027/28 From - Total]],Dataset[[#This Row],[2027/28 To - Total]])","v":0},{"$f":"SUM(Dataset[[#This Row],[2028/29 Targeted savings]],Dataset[[#This Row],[2028/29 From - Total]],Dataset[[#This Row],[2028/29 To - Total]])","v":0},{"$f":"SUM(Dataset[[#This Row],[2029/30 Targeted savings]],Dataset[[#This Row],[2029/30 From - Total]],Dataset[[#This Row],[2029/30 To - Total]])","v":0},{"$f":"Dataset[[#This Row],[2026/27 Baseline]]+Dataset[[#This Row],[2026/27 Total change]]","v":100},{"$f":"Dataset[[#This Row],[2027/28 Baseline]]+Dataset[[#This Row],[2027/28 Total change]]","v":128},{"$f":"Dataset[[#This Row],[2028/29 Baseline]]+Dataset[[#This Row],[2028/29 Total change]]","v":338},{"$f":"Dataset[[#This Row],[2029/30 Baseline]]+Dataset[[#This Row],[2029/30 Total change]]","v":348}]
["NAT|Non-transfer","30|Rental and hiring","2027_28","MTEC2027",30,2,2,32844,324,"30","02","02","032844","000324","30|02|02|000324","01","01","02","34","34","01|01|02|34|34","National","Communications and Digital Technologies","ICT Transformation, Global Partnerships and State-Owned Enterprises Governance","International Relations, Partnerships and Stakeholder Management","Non-transfer","Current","Current payments","Goods and services","Rental and hiring","Rental and hiring","Economic development","Economic regulation and infrastructure","NAT",350,0,0,0,0,0,0,0,0,0,0,null,null,null,null,null,null,null,null,null,null,null,null,null,null,null,null,null,null,null,null,null,null,null,null,null,null,null,null,null,null,null,null,null,null,{"$f":"Dataset[[#This Row],[2027/28 From - Spending review Topic 1]]+Dataset[[#This Row],[2027/28 From - Spending review Topic 2]]+Dataset[[#This Row],[2027/28 From - Spending review Topic 3]]+Dataset[[#This Row],[2027/28 From - Spending review Topic 4]]+Dataset[[#This Row],[2027/28 From - Other reallocations]]","v":0},{"$f":"Dataset[[#This Row],[2028/29 From - Spending review Topic 1]]+Dataset[[#This Row],[2028/29 From - Spending review Topic 2]]+Dataset[[#This Row],[2028/29 From - Spending review Topic 3]]+Dataset[[#This Row],[2028/29 From - Spending review Topic 4]]+Dataset[[#This Row],[2028/29 From - Other reallocations]]","v":0},{"$f":"Dataset[[#This Row],[2029/30 From - Spending review Topic 1]]+Dataset[[#This Row],[2029/30 From - Spending review Topic 2]]+Dataset[[#This Row],[2029/30 From - Spending review Topic 3]]+Dataset[[#This Row],[2029/30 From - Spending review Topic 4]]+Dataset[[#This Row],[2029/30 From - Other reallocations]]","v":0},{"$f":"Dataset[[#This Row],[2027/28 To - Spending review Topic 1]]+Dataset[[#This Row],[2027/28 To - Spending review Topic 2]]+Dataset[[#This Row],[2027/28 To - Spending review Topic 3]]+Dataset[[#This Row],[2027/28 To - Spending review Topic 4]]+Dataset[[#This Row],[2027/28 To - Other reallocations]]","v":0},{"$f":"Dataset[[#This Row],[2028/29 To - Spending review Topic 1]]+Dataset[[#This Row],[2028/29 To - Spending review Topic 2]]+Dataset[[#This Row],[2028/29 To - Spending review Topic 3]]+Dataset[[#This Row],[2028/29 To - Spending review Topic 4]]+Dataset[[#This Row],[2028/29 To - Other reallocations]]","v":0},{"$f":"Dataset[[#This Row],[2029/30 To - Spending review Topic 1]]+Dataset[[#This Row],[2029/30 To - Spending review Topic 2]]+Dataset[[#This Row],[2029/30 To - Spending review Topic 3]]+Dataset[[#This Row],[2029/30 To - Spending review Topic 4]]+Dataset[[#This Row],[2029/30 To - Other reallocations]]","v":0},{"$f":"Dataset[[#This Row],[2027/28 Targeted savings]]+Dataset[[#This Row],[2027/28 From - Total]]","v":0},{"$f":"Dataset[[#This Row],[2028/29 Targeted savings]]+Dataset[[#This Row],[2028/29 From - Total]]","v":0},{"$f":"Dataset[[#This Row],[2029/30 Targeted savings]]+Dataset[[#This Row],[2029/30 From - Total]]","v":0},{"$f":"Dataset[[#This Row],[2026/27 Targeted savings]]","v":0},{"$f":"SUM(Dataset[[#This Row],[2027/28 Targeted savings]],Dataset[[#This Row],[2027/28 From - Total]],Dataset[[#This Row],[2027/28 To - Total]])","v":0},{"$f":"SUM(Dataset[[#This Row],[2028/29 Targeted savings]],Dataset[[#This Row],[2028/29 From - Total]],Dataset[[#This Row],[2028/29 To - Total]])","v":0},{"$f":"SUM(Dataset[[#This Row],[2029/30 Targeted savings]],Dataset[[#This Row],[2029/30 From - Total]],Dataset[[#This Row],[2029/30 To - Total]])","v":0},{"$f":"Dataset[[#This Row],[2026/27 Baseline]]+Dataset[[#This Row],[2026/27 Total change]]","v":0},{"$f":"Dataset[[#This Row],[2027/28 Baseline]]+Dataset[[#This Row],[2027/28 Total change]]","v":0},{"$f":"Dataset[[#This Row],[2028/29 Baseline]]+Dataset[[#This Row],[2028/29 Total change]]","v":0},{"$f":"Dataset[[#This Row],[2029/30 Baseline]]+Dataset[[#This Row],[2029/30 Total change]]","v":0}]
["NAT|Non-transfer","30|Travel and subsistence","2027_28","MTEC2027",30,2,2,32845,325,"30","02","02","032845","000325","30|02|02|000325","01","01","02","37","37","01|01|02|37|37","National","Communications and Digital Technologies","ICT Transformation, Global Partnerships and State-Owned Enterprises Governance","International Relations, Partnerships and Stakeholder Management","Non-transfer","Current","Current payments","Goods and services","Travel and subsistence","Travel and subsistence","Economic development","Economic regulation and infrastructure","NAT",5744,7031,4718,10841,13964,13964,0,3473,3422,3528,3634,null,null,null,null,null,null,null,null,null,null,null,null,null,null,null,null,null,null,null,null,null,null,null,null,null,null,null,null,null,null,null,null,null,null,{"$f":"Dataset[[#This Row],[2027/28 From - Spending review Topic 1]]+Dataset[[#This Row],[2027/28 From - Spending review Topic 2]]+Dataset[[#This Row],[2027/28 From - Spending review Topic 3]]+Dataset[[#This Row],[2027/28 From - Spending review Topic 4]]+Dataset[[#This Row],[2027/28 From - Other reallocations]]","v":0},{"$f":"Dataset[[#This Row],[2028/29 From - Spending review Topic 1]]+Dataset[[#This Row],[2028/29 From - Spending review Topic 2]]+Dataset[[#This Row],[2028/29 From - Spending review Topic 3]]+Dataset[[#This Row],[2028/29 From - Spending review Topic 4]]+Dataset[[#This Row],[2028/29 From - Other reallocations]]","v":0},{"$f":"Dataset[[#This Row],[2029/30 From - Spending review Topic 1]]+Dataset[[#This Row],[2029/30 From - Spending review Topic 2]]+Dataset[[#This Row],[2029/30 From - Spending review Topic 3]]+Dataset[[#This Row],[2029/30 From - Spending review Topic 4]]+Dataset[[#This Row],[2029/30 From - Other reallocations]]","v":0},{"$f":"Dataset[[#This Row],[2027/28 To - Spending review Topic 1]]+Dataset[[#This Row],[2027/28 To - Spending review Topic 2]]+Dataset[[#This Row],[2027/28 To - Spending review Topic 3]]+Dataset[[#This Row],[2027/28 To - Spending review Topic 4]]+Dataset[[#This Row],[2027/28 To - Other reallocations]]","v":0},{"$f":"Dataset[[#This Row],[2028/29 To - Spending review Topic 1]]+Dataset[[#This Row],[2028/29 To - Spending review Topic 2]]+Dataset[[#This Row],[2028/29 To - Spending review Topic 3]]+Dataset[[#This Row],[2028/29 To - Spending review Topic 4]]+Dataset[[#This Row],[2028/29 To - Other reallocations]]","v":0},{"$f":"Dataset[[#This Row],[2029/30 To - Spending review Topic 1]]+Dataset[[#This Row],[2029/30 To - Spending review Topic 2]]+Dataset[[#This Row],[2029/30 To - Spending review Topic 3]]+Dataset[[#This Row],[2029/30 To - Spending review Topic 4]]+Dataset[[#This Row],[2029/30 To - Other reallocations]]","v":0},{"$f":"Dataset[[#This Row],[2027/28 Targeted savings]]+Dataset[[#This Row],[2027/28 From - Total]]","v":0},{"$f":"Dataset[[#This Row],[2028/29 Targeted savings]]+Dataset[[#This Row],[2028/29 From - Total]]","v":0},{"$f":"Dataset[[#This Row],[2029/30 Targeted savings]]+Dataset[[#This Row],[2029/30 From - Total]]","v":0},{"$f":"Dataset[[#This Row],[2026/27 Targeted savings]]","v":0},{"$f":"SUM(Dataset[[#This Row],[2027/28 Targeted savings]],Dataset[[#This Row],[2027/28 From - Total]],Dataset[[#This Row],[2027/28 To - Total]])","v":0},{"$f":"SUM(Dataset[[#This Row],[2028/29 Targeted savings]],Dataset[[#This Row],[2028/29 From - Total]],Dataset[[#This Row],[2028/29 To - Total]])","v":0},{"$f":"SUM(Dataset[[#This Row],[2029/30 Targeted savings]],Dataset[[#This Row],[2029/30 From - Total]],Dataset[[#This Row],[2029/30 To - Total]])","v":0},{"$f":"Dataset[[#This Row],[2026/27 Baseline]]+Dataset[[#This Row],[2026/27 Total change]]","v":3473},{"$f":"Dataset[[#This Row],[2027/28 Baseline]]+Dataset[[#This Row],[2027/28 Total change]]","v":3422},{"$f":"Dataset[[#This Row],[2028/29 Baseline]]+Dataset[[#This Row],[2028/29 Total change]]","v":3528},{"$f":"Dataset[[#This Row],[2029/30 Baseline]]+Dataset[[#This Row],[2029/30 Total change]]","v":3634}]
["NAT|Non-transfer","30|Training and development","2027_28","MTEC2027",30,2,2,32846,326,"30","02","02","032846","000326","30|02|02|000326","01","01","02","38","38","01|01|02|38|38","National","Communications and Digital Technologies","ICT Transformation, Global Partnerships and State-Owned Enterprises Governance","International Relations, Partnerships and Stakeholder Management","Non-transfer","Current","Current payments","Goods and services","Training and development","Training and development","Economic development","Economic regulation and infrastructure","NAT",85,0,0,50,25,25,0,0,96,99,102,null,null,null,null,null,null,null,null,null,null,null,null,null,null,null,null,null,null,null,null,null,null,null,null,null,null,null,null,null,null,null,null,null,null,{"$f":"Dataset[[#This Row],[2027/28 From - Spending review Topic 1]]+Dataset[[#This Row],[2027/28 From - Spending review Topic 2]]+Dataset[[#This Row],[2027/28 From - Spending review Topic 3]]+Dataset[[#This Row],[2027/28 From - Spending review Topic 4]]+Dataset[[#This Row],[2027/28 From - Other reallocations]]","v":0},{"$f":"Dataset[[#This Row],[2028/29 From - Spending review Topic 1]]+Dataset[[#This Row],[2028/29 From - Spending review Topic 2]]+Dataset[[#This Row],[2028/29 From - Spending review Topic 3]]+Dataset[[#This Row],[2028/29 From - Spending review Topic 4]]+Dataset[[#This Row],[2028/29 From - Other reallocations]]","v":0},{"$f":"Dataset[[#This Row],[2029/30 From - Spending review Topic 1]]+Dataset[[#This Row],[2029/30 From - Spending review Topic 2]]+Dataset[[#This Row],[2029/30 From - Spending review Topic 3]]+Dataset[[#This Row],[2029/30 From - Spending review Topic 4]]+Dataset[[#This Row],[2029/30 From - Other reallocations]]","v":0},{"$f":"Dataset[[#This Row],[2027/28 To - Spending review Topic 1]]+Dataset[[#This Row],[2027/28 To - Spending review Topic 2]]+Dataset[[#This Row],[2027/28 To - Spending review Topic 3]]+Dataset[[#This Row],[2027/28 To - Spending review Topic 4]]+Dataset[[#This Row],[2027/28 To - Other reallocations]]","v":0},{"$f":"Dataset[[#This Row],[2028/29 To - Spending review Topic 1]]+Dataset[[#This Row],[2028/29 To - Spending review Topic 2]]+Dataset[[#This Row],[2028/29 To - Spending review Topic 3]]+Dataset[[#This Row],[2028/29 To - Spending review Topic 4]]+Dataset[[#This Row],[2028/29 To - Other reallocations]]","v":0},{"$f":"Dataset[[#This Row],[2029/30 To - Spending review Topic 1]]+Dataset[[#This Row],[2029/30 To - Spending review Topic 2]]+Dataset[[#This Row],[2029/30 To - Spending review Topic 3]]+Dataset[[#This Row],[2029/30 To - Spending review Topic 4]]+Dataset[[#This Row],[2029/30 To - Other reallocations]]","v":0},{"$f":"Dataset[[#This Row],[2027/28 Targeted savings]]+Dataset[[#This Row],[2027/28 From - Total]]","v":0},{"$f":"Dataset[[#This Row],[2028/29 Targeted savings]]+Dataset[[#This Row],[2028/29 From - Total]]","v":0},{"$f":"Dataset[[#This Row],[2029/30 Targeted savings]]+Dataset[[#This Row],[2029/30 From - Total]]","v":0},{"$f":"Dataset[[#This Row],[2026/27 Targeted savings]]","v":0},{"$f":"SUM(Dataset[[#This Row],[2027/28 Targeted savings]],Dataset[[#This Row],[2027/28 From - Total]],Dataset[[#This Row],[2027/28 To - Total]])","v":0},{"$f":"SUM(Dataset[[#This Row],[2028/29 Targeted savings]],Dataset[[#This Row],[2028/29 From - Total]],Dataset[[#This Row],[2028/29 To - Total]])","v":0},{"$f":"SUM(Dataset[[#This Row],[2029/30 Targeted savings]],Dataset[[#This Row],[2029/30 From - Total]],Dataset[[#This Row],[2029/30 To - Total]])","v":0},{"$f":"Dataset[[#This Row],[2026/27 Baseline]]+Dataset[[#This Row],[2026/27 Total change]]","v":0},{"$f":"Dataset[[#This Row],[2027/28 Baseline]]+Dataset[[#This Row],[2027/28 Total change]]","v":96},{"$f":"Dataset[[#This Row],[2028/29 Baseline]]+Dataset[[#This Row],[2028/29 Total change]]","v":99},{"$f":"Dataset[[#This Row],[2029/30 Baseline]]+Dataset[[#This Row],[2029/30 Total change]]","v":102}]
["NAT|Non-transfer","30|Operating payments","2027_28","MTEC2027",30,2,2,32847,327,"30","02","02","032847","000327","30|02|02|000327","01","01","02","39","39","01|01|02|39|39","National","Communications and Digital Technologies","ICT Transformation, Global Partnerships and State-Owned Enterprises Governance","International Relations, Partnerships and Stakeholder Management","Non-transfer","Current","Current payments","Goods and services","Operating payments","Operating payments","Economic development","Economic regulation and infrastructure","NAT",268,18,70,80,80,80,0,299,420,433,446,null,null,null,null,null,null,null,null,null,null,null,null,null,null,null,null,null,null,null,null,null,null,null,null,null,null,null,null,null,null,null,null,null,null,{"$f":"Dataset[[#This Row],[2027/28 From - Spending review Topic 1]]+Dataset[[#This Row],[2027/28 From - Spending review Topic 2]]+Dataset[[#This Row],[2027/28 From - Spending review Topic 3]]+Dataset[[#This Row],[2027/28 From - Spending review Topic 4]]+Dataset[[#This Row],[2027/28 From - Other reallocations]]","v":0},{"$f":"Dataset[[#This Row],[2028/29 From - Spending review Topic 1]]+Dataset[[#This Row],[2028/29 From - Spending review Topic 2]]+Dataset[[#This Row],[2028/29 From - Spending review Topic 3]]+Dataset[[#This Row],[2028/29 From - Spending review Topic 4]]+Dataset[[#This Row],[2028/29 From - Other reallocations]]","v":0},{"$f":"Dataset[[#This Row],[2029/30 From - Spending review Topic 1]]+Dataset[[#This Row],[2029/30 From - Spending review Topic 2]]+Dataset[[#This Row],[2029/30 From - Spending review Topic 3]]+Dataset[[#This Row],[2029/30 From - Spending review Topic 4]]+Dataset[[#This Row],[2029/30 From - Other reallocations]]","v":0},{"$f":"Dataset[[#This Row],[2027/28 To - Spending review Topic 1]]+Dataset[[#This Row],[2027/28 To - Spending review Topic 2]]+Dataset[[#This Row],[2027/28 To - Spending review Topic 3]]+Dataset[[#This Row],[2027/28 To - Spending review Topic 4]]+Dataset[[#This Row],[2027/28 To - Other reallocations]]","v":0},{"$f":"Dataset[[#This Row],[2028/29 To - Spending review Topic 1]]+Dataset[[#This Row],[2028/29 To - Spending review Topic 2]]+Dataset[[#This Row],[2028/29 To - Spending review Topic 3]]+Dataset[[#This Row],[2028/29 To - Spending review Topic 4]]+Dataset[[#This Row],[2028/29 To - Other reallocations]]","v":0},{"$f":"Dataset[[#This Row],[2029/30 To - Spending review Topic 1]]+Dataset[[#This Row],[2029/30 To - Spending review Topic 2]]+Dataset[[#This Row],[2029/30 To - Spending review Topic 3]]+Dataset[[#This Row],[2029/30 To - Spending review Topic 4]]+Dataset[[#This Row],[2029/30 To - Other reallocations]]","v":0},{"$f":"Dataset[[#This Row],[2027/28 Targeted savings]]+Dataset[[#This Row],[2027/28 From - Total]]","v":0},{"$f":"Dataset[[#This Row],[2028/29 Targeted savings]]+Dataset[[#This Row],[2028/29 From - Total]]","v":0},{"$f":"Dataset[[#This Row],[2029/30 Targeted savings]]+Dataset[[#This Row],[2029/30 From - Total]]","v":0},{"$f":"Dataset[[#This Row],[2026/27 Targeted savings]]","v":0},{"$f":"SUM(Dataset[[#This Row],[2027/28 Targeted savings]],Dataset[[#This Row],[2027/28 From - Total]],Dataset[[#This Row],[2027/28 To - Total]])","v":0},{"$f":"SUM(Dataset[[#This Row],[2028/29 Targeted savings]],Dataset[[#This Row],[2028/29 From - Total]],Dataset[[#This Row],[2028/29 To - Total]])","v":0},{"$f":"SUM(Dataset[[#This Row],[2029/30 Targeted savings]],Dataset[[#This Row],[2029/30 From - Total]],Dataset[[#This Row],[2029/30 To - Total]])","v":0},{"$f":"Dataset[[#This Row],[2026/27 Baseline]]+Dataset[[#This Row],[2026/27 Total change]]","v":299},{"$f":"Dataset[[#This Row],[2027/28 Baseline]]+Dataset[[#This Row],[2027/28 Total change]]","v":420},{"$f":"Dataset[[#This Row],[2028/29 Baseline]]+Dataset[[#This Row],[2028/29 Total change]]","v":433},{"$f":"Dataset[[#This Row],[2029/30 Baseline]]+Dataset[[#This Row],[2029/30 Total change]]","v":446}]
["NAT|Non-transfer","30|Venues and facilities","2027_28","MTEC2027",30,2,2,32848,328,"30","02","02","032848","000328","30|02|02|000328","01","01","02","40","40","01|01|02|40|40","National","Communications and Digital Technologies","ICT Transformation, Global Partnerships and State-Owned Enterprises Governance","International Relations, Partnerships and Stakeholder Management","Non-transfer","Current","Current payments","Goods and services","Venues and facilities","Venues and facilities","Economic development","Economic regulation and infrastructure","NAT",553,3225,752,3867,29971,29971,0,0,909,1806,1860,null,null,null,null,null,null,null,null,null,null,null,null,null,null,null,null,null,null,null,null,null,null,null,null,null,null,null,null,null,null,null,null,null,null,{"$f":"Dataset[[#This Row],[2027/28 From - Spending review Topic 1]]+Dataset[[#This Row],[2027/28 From - Spending review Topic 2]]+Dataset[[#This Row],[2027/28 From - Spending review Topic 3]]+Dataset[[#This Row],[2027/28 From - Spending review Topic 4]]+Dataset[[#This Row],[2027/28 From - Other reallocations]]","v":0},{"$f":"Dataset[[#This Row],[2028/29 From - Spending review Topic 1]]+Dataset[[#This Row],[2028/29 From - Spending review Topic 2]]+Dataset[[#This Row],[2028/29 From - Spending review Topic 3]]+Dataset[[#This Row],[2028/29 From - Spending review Topic 4]]+Dataset[[#This Row],[2028/29 From - Other reallocations]]","v":0},{"$f":"Dataset[[#This Row],[2029/30 From - Spending review Topic 1]]+Dataset[[#This Row],[2029/30 From - Spending review Topic 2]]+Dataset[[#This Row],[2029/30 From - Spending review Topic 3]]+Dataset[[#This Row],[2029/30 From - Spending review Topic 4]]+Dataset[[#This Row],[2029/30 From - Other reallocations]]","v":0},{"$f":"Dataset[[#This Row],[2027/28 To - Spending review Topic 1]]+Dataset[[#This Row],[2027/28 To - Spending review Topic 2]]+Dataset[[#This Row],[2027/28 To - Spending review Topic 3]]+Dataset[[#This Row],[2027/28 To - Spending review Topic 4]]+Dataset[[#This Row],[2027/28 To - Other reallocations]]","v":0},{"$f":"Dataset[[#This Row],[2028/29 To - Spending review Topic 1]]+Dataset[[#This Row],[2028/29 To - Spending review Topic 2]]+Dataset[[#This Row],[2028/29 To - Spending review Topic 3]]+Dataset[[#This Row],[2028/29 To - Spending review Topic 4]]+Dataset[[#This Row],[2028/29 To - Other reallocations]]","v":0},{"$f":"Dataset[[#This Row],[2029/30 To - Spending review Topic 1]]+Dataset[[#This Row],[2029/30 To - Spending review Topic 2]]+Dataset[[#This Row],[2029/30 To - Spending review Topic 3]]+Dataset[[#This Row],[2029/30 To - Spending review Topic 4]]+Dataset[[#This Row],[2029/30 To - Other reallocations]]","v":0},{"$f":"Dataset[[#This Row],[2027/28 Targeted savings]]+Dataset[[#This Row],[2027/28 From - Total]]","v":0},{"$f":"Dataset[[#This Row],[2028/29 Targeted savings]]+Dataset[[#This Row],[2028/29 From - Total]]","v":0},{"$f":"Dataset[[#This Row],[2029/30 Targeted savings]]+Dataset[[#This Row],[2029/30 From - Total]]","v":0},{"$f":"Dataset[[#This Row],[2026/27 Targeted savings]]","v":0},{"$f":"SUM(Dataset[[#This Row],[2027/28 Targeted savings]],Dataset[[#This Row],[2027/28 From - Total]],Dataset[[#This Row],[2027/28 To - Total]])","v":0},{"$f":"SUM(Dataset[[#This Row],[2028/29 Targeted savings]],Dataset[[#This Row],[2028/29 From - Total]],Dataset[[#This Row],[2028/29 To - Total]])","v":0},{"$f":"SUM(Dataset[[#This Row],[2029/30 Targeted savings]],Dataset[[#This Row],[2029/30 From - Total]],Dataset[[#This Row],[2029/30 To - Total]])","v":0},{"$f":"Dataset[[#This Row],[2026/27 Baseline]]+Dataset[[#This Row],[2026/27 Total change]]","v":0},{"$f":"Dataset[[#This Row],[2027/28 Baseline]]+Dataset[[#This Row],[2027/28 Total change]]","v":909},{"$f":"Dataset[[#This Row],[2028/29 Baseline]]+Dataset[[#This Row],[2028/29 Total change]]","v":1806},{"$f":"Dataset[[#This Row],[2029/30 Baseline]]+Dataset[[#This Row],[2029/30 Total change]]","v":1860}]
["NAT|Smart Africa Alliance","30|Foreign governments and international organisations","2027_28","MTEC2027",30,2,2,32849,329,"30","02","02","032849","000329","30|02|02|000329","01","02","07","48","50","01|02|07|48|50","National","Communications and Digital Technologies","ICT Transformation, Global Partnerships and State-Owned Enterprises Governance","International Relations, Partnerships and Stakeholder Management","Smart Africa Alliance","Current","Transfers and subsidies","Foreign governments and international organisations","Foreign governments and international organisations","Foreign governments and international organisations","Economic development","Economic regulation and infrastructure","NAT",794,913,957,1000,1000,1000,0,0,0,0,0,null,null,null,null,null,null,null,null,null,null,null,null,null,null,null,null,null,null,null,null,null,null,null,null,null,null,null,null,null,null,null,null,null,null,{"$f":"Dataset[[#This Row],[2027/28 From - Spending review Topic 1]]+Dataset[[#This Row],[2027/28 From - Spending review Topic 2]]+Dataset[[#This Row],[2027/28 From - Spending review Topic 3]]+Dataset[[#This Row],[2027/28 From - Spending review Topic 4]]+Dataset[[#This Row],[2027/28 From - Other reallocations]]","v":0},{"$f":"Dataset[[#This Row],[2028/29 From - Spending review Topic 1]]+Dataset[[#This Row],[2028/29 From - Spending review Topic 2]]+Dataset[[#This Row],[2028/29 From - Spending review Topic 3]]+Dataset[[#This Row],[2028/29 From - Spending review Topic 4]]+Dataset[[#This Row],[2028/29 From - Other reallocations]]","v":0},{"$f":"Dataset[[#This Row],[2029/30 From - Spending review Topic 1]]+Dataset[[#This Row],[2029/30 From - Spending review Topic 2]]+Dataset[[#This Row],[2029/30 From - Spending review Topic 3]]+Dataset[[#This Row],[2029/30 From - Spending review Topic 4]]+Dataset[[#This Row],[2029/30 From - Other reallocations]]","v":0},{"$f":"Dataset[[#This Row],[2027/28 To - Spending review Topic 1]]+Dataset[[#This Row],[2027/28 To - Spending review Topic 2]]+Dataset[[#This Row],[2027/28 To - Spending review Topic 3]]+Dataset[[#This Row],[2027/28 To - Spending review Topic 4]]+Dataset[[#This Row],[2027/28 To - Other reallocations]]","v":0},{"$f":"Dataset[[#This Row],[2028/29 To - Spending review Topic 1]]+Dataset[[#This Row],[2028/29 To - Spending review Topic 2]]+Dataset[[#This Row],[2028/29 To - Spending review Topic 3]]+Dataset[[#This Row],[2028/29 To - Spending review Topic 4]]+Dataset[[#This Row],[2028/29 To - Other reallocations]]","v":0},{"$f":"Dataset[[#This Row],[2029/30 To - Spending review Topic 1]]+Dataset[[#This Row],[2029/30 To - Spending review Topic 2]]+Dataset[[#This Row],[2029/30 To - Spending review Topic 3]]+Dataset[[#This Row],[2029/30 To - Spending review Topic 4]]+Dataset[[#This Row],[2029/30 To - Other reallocations]]","v":0},{"$f":"Dataset[[#This Row],[2027/28 Targeted savings]]+Dataset[[#This Row],[2027/28 From - Total]]","v":0},{"$f":"Dataset[[#This Row],[2028/29 Targeted savings]]+Dataset[[#This Row],[2028/29 From - Total]]","v":0},{"$f":"Dataset[[#This Row],[2029/30 Targeted savings]]+Dataset[[#This Row],[2029/30 From - Total]]","v":0},{"$f":"Dataset[[#This Row],[2026/27 Targeted savings]]","v":0},{"$f":"SUM(Dataset[[#This Row],[2027/28 Targeted savings]],Dataset[[#This Row],[2027/28 From - Total]],Dataset[[#This Row],[2027/28 To - Total]])","v":0},{"$f":"SUM(Dataset[[#This Row],[2028/29 Targeted savings]],Dataset[[#This Row],[2028/29 From - Total]],Dataset[[#This Row],[2028/29 To - Total]])","v":0},{"$f":"SUM(Dataset[[#This Row],[2029/30 Targeted savings]],Dataset[[#This Row],[2029/30 From - Total]],Dataset[[#This Row],[2029/30 To - Total]])","v":0},{"$f":"Dataset[[#This Row],[2026/27 Baseline]]+Dataset[[#This Row],[2026/27 Total change]]","v":0},{"$f":"Dataset[[#This Row],[2027/28 Baseline]]+Dataset[[#This Row],[2027/28 Total change]]","v":0},{"$f":"Dataset[[#This Row],[2028/29 Baseline]]+Dataset[[#This Row],[2028/29 Total change]]","v":0},{"$f":"Dataset[[#This Row],[2029/30 Baseline]]+Dataset[[#This Row],[2029/30 Total change]]","v":0}]
["NAT|Universal Postal Union","30|Foreign governments and international organisations","2027_28","MTEC2027",30,2,2,32850,330,"30","02","02","032850","000330","30|02|02|000330","01","02","07","48","50","01|02|07|48|50","National","Communications and Digital Technologies","ICT Transformation, Global Partnerships and State-Owned Enterprises Governance","International Relations, Partnerships and Stakeholder Management","Universal Postal Union","Current","Transfers and subsidies","Foreign governments and international organisations","Foreign governments and international organisations","Foreign governments and international organisations","Economic development","Economic regulation and infrastructure","NAT",7532,9087,8983,9100,9100,9100,0,8633,8977,9256,9535,null,null,null,null,null,null,null,null,null,null,null,null,null,null,null,null,null,null,null,null,null,null,null,null,null,null,null,null,null,null,null,null,null,null,{"$f":"Dataset[[#This Row],[2027/28 From - Spending review Topic 1]]+Dataset[[#This Row],[2027/28 From - Spending review Topic 2]]+Dataset[[#This Row],[2027/28 From - Spending review Topic 3]]+Dataset[[#This Row],[2027/28 From - Spending review Topic 4]]+Dataset[[#This Row],[2027/28 From - Other reallocations]]","v":0},{"$f":"Dataset[[#This Row],[2028/29 From - Spending review Topic 1]]+Dataset[[#This Row],[2028/29 From - Spending review Topic 2]]+Dataset[[#This Row],[2028/29 From - Spending review Topic 3]]+Dataset[[#This Row],[2028/29 From - Spending review Topic 4]]+Dataset[[#This Row],[2028/29 From - Other reallocations]]","v":0},{"$f":"Dataset[[#This Row],[2029/30 From - Spending review Topic 1]]+Dataset[[#This Row],[2029/30 From - Spending review Topic 2]]+Dataset[[#This Row],[2029/30 From - Spending review Topic 3]]+Dataset[[#This Row],[2029/30 From - Spending review Topic 4]]+Dataset[[#This Row],[2029/30 From - Other reallocations]]","v":0},{"$f":"Dataset[[#This Row],[2027/28 To - Spending review Topic 1]]+Dataset[[#This Row],[2027/28 To - Spending review Topic 2]]+Dataset[[#This Row],[2027/28 To - Spending review Topic 3]]+Dataset[[#This Row],[2027/28 To - Spending review Topic 4]]+Dataset[[#This Row],[2027/28 To - Other reallocations]]","v":0},{"$f":"Dataset[[#This Row],[2028/29 To - Spending review Topic 1]]+Dataset[[#This Row],[2028/29 To - Spending review Topic 2]]+Dataset[[#This Row],[2028/29 To - Spending review Topic 3]]+Dataset[[#This Row],[2028/29 To - Spending review Topic 4]]+Dataset[[#This Row],[2028/29 To - Other reallocations]]","v":0},{"$f":"Dataset[[#This Row],[2029/30 To - Spending review Topic 1]]+Dataset[[#This Row],[2029/30 To - Spending review Topic 2]]+Dataset[[#This Row],[2029/30 To - Spending review Topic 3]]+Dataset[[#This Row],[2029/30 To - Spending review Topic 4]]+Dataset[[#This Row],[2029/30 To - Other reallocations]]","v":0},{"$f":"Dataset[[#This Row],[2027/28 Targeted savings]]+Dataset[[#This Row],[2027/28 From - Total]]","v":0},{"$f":"Dataset[[#This Row],[2028/29 Targeted savings]]+Dataset[[#This Row],[2028/29 From - Total]]","v":0},{"$f":"Dataset[[#This Row],[2029/30 Targeted savings]]+Dataset[[#This Row],[2029/30 From - Total]]","v":0},{"$f":"Dataset[[#This Row],[2026/27 Targeted savings]]","v":0},{"$f":"SUM(Dataset[[#This Row],[2027/28 Targeted savings]],Dataset[[#This Row],[2027/28 From - Total]],Dataset[[#This Row],[2027/28 To - Total]])","v":0},{"$f":"SUM(Dataset[[#This Row],[2028/29 Targeted savings]],Dataset[[#This Row],[2028/29 From - Total]],Dataset[[#This Row],[2028/29 To - Total]])","v":0},{"$f":"SUM(Dataset[[#This Row],[2029/30 Targeted savings]],Dataset[[#This Row],[2029/30 From - Total]],Dataset[[#This Row],[2029/30 To - Total]])","v":0},{"$f":"Dataset[[#This Row],[2026/27 Baseline]]+Dataset[[#This Row],[2026/27 Total change]]","v":8633},{"$f":"Dataset[[#This Row],[2027/28 Baseline]]+Dataset[[#This Row],[2027/28 Total change]]","v":8977},{"$f":"Dataset[[#This Row],[2028/29 Baseline]]+Dataset[[#This Row],[2028/29 Total change]]","v":9256},{"$f":"Dataset[[#This Row],[2029/30 Baseline]]+Dataset[[#This Row],[2029/30 Total change]]","v":9535}]
["NAT|Pan-African Postal Union","30|Foreign governments and international organisations","2027_28","MTEC2027",30,2,2,32851,331,"30","02","02","032851","000331","30|02|02|000331","01","02","07","48","50","01|02|07|48|50","National","Communications and Digital Technologies","ICT Transformation, Global Partnerships and State-Owned Enterprises Governance","International Relations, Partnerships and Stakeholder Management","Pan-African Postal Union","Current","Transfers and subsidies","Foreign governments and international organisations","Foreign governments and international organisations","Foreign governments and international organisations","Economic development","Economic regulation and infrastructure","NAT",2123,1403,1412,1527,1527,1527,0,1589,1652,1703,1754,null,null,null,null,null,null,null,null,null,null,null,null,null,null,null,null,null,null,null,null,null,null,null,null,null,null,null,null,null,null,null,null,null,null,{"$f":"Dataset[[#This Row],[2027/28 From - Spending review Topic 1]]+Dataset[[#This Row],[2027/28 From - Spending review Topic 2]]+Dataset[[#This Row],[2027/28 From - Spending review Topic 3]]+Dataset[[#This Row],[2027/28 From - Spending review Topic 4]]+Dataset[[#This Row],[2027/28 From - Other reallocations]]","v":0},{"$f":"Dataset[[#This Row],[2028/29 From - Spending review Topic 1]]+Dataset[[#This Row],[2028/29 From - Spending review Topic 2]]+Dataset[[#This Row],[2028/29 From - Spending review Topic 3]]+Dataset[[#This Row],[2028/29 From - Spending review Topic 4]]+Dataset[[#This Row],[2028/29 From - Other reallocations]]","v":0},{"$f":"Dataset[[#This Row],[2029/30 From - Spending review Topic 1]]+Dataset[[#This Row],[2029/30 From - Spending review Topic 2]]+Dataset[[#This Row],[2029/30 From - Spending review Topic 3]]+Dataset[[#This Row],[2029/30 From - Spending review Topic 4]]+Dataset[[#This Row],[2029/30 From - Other reallocations]]","v":0},{"$f":"Dataset[[#This Row],[2027/28 To - Spending review Topic 1]]+Dataset[[#This Row],[2027/28 To - Spending review Topic 2]]+Dataset[[#This Row],[2027/28 To - Spending review Topic 3]]+Dataset[[#This Row],[2027/28 To - Spending review Topic 4]]+Dataset[[#This Row],[2027/28 To - Other reallocations]]","v":0},{"$f":"Dataset[[#This Row],[2028/29 To - Spending review Topic 1]]+Dataset[[#This Row],[2028/29 To - Spending review Topic 2]]+Dataset[[#This Row],[2028/29 To - Spending review Topic 3]]+Dataset[[#This Row],[2028/29 To - Spending review Topic 4]]+Dataset[[#This Row],[2028/29 To - Other reallocations]]","v":0},{"$f":"Dataset[[#This Row],[2029/30 To - Spending review Topic 1]]+Dataset[[#This Row],[2029/30 To - Spending review Topic 2]]+Dataset[[#This Row],[2029/30 To - Spending review Topic 3]]+Dataset[[#This Row],[2029/30 To - Spending review Topic 4]]+Dataset[[#This Row],[2029/30 To - Other reallocations]]","v":0},{"$f":"Dataset[[#This Row],[2027/28 Targeted savings]]+Dataset[[#This Row],[2027/28 From - Total]]","v":0},{"$f":"Dataset[[#This Row],[2028/29 Targeted savings]]+Dataset[[#This Row],[2028/29 From - Total]]","v":0},{"$f":"Dataset[[#This Row],[2029/30 Targeted savings]]+Dataset[[#This Row],[2029/30 From - Total]]","v":0},{"$f":"Dataset[[#This Row],[2026/27 Targeted savings]]","v":0},{"$f":"SUM(Dataset[[#This Row],[2027/28 Targeted savings]],Dataset[[#This Row],[2027/28 From - Total]],Dataset[[#This Row],[2027/28 To - Total]])","v":0},{"$f":"SUM(Dataset[[#This Row],[2028/29 Targeted savings]],Dataset[[#This Row],[2028/29 From - Total]],Dataset[[#This Row],[2028/29 To - Total]])","v":0},{"$f":"SUM(Dataset[[#This Row],[2029/30 Targeted savings]],Dataset[[#This Row],[2029/30 From - Total]],Dataset[[#This Row],[2029/30 To - Total]])","v":0},{"$f":"Dataset[[#This Row],[2026/27 Baseline]]+Dataset[[#This Row],[2026/27 Total change]]","v":1589},{"$f":"Dataset[[#This Row],[2027/28 Baseline]]+Dataset[[#This Row],[2027/28 Total change]]","v":1652},{"$f":"Dataset[[#This Row],[2028/29 Baseline]]+Dataset[[#This Row],[2028/29 Total change]]","v":1703},{"$f":"Dataset[[#This Row],[2029/30 Baseline]]+Dataset[[#This Row],[2029/30 Total change]]","v":1754}]
["NAT|Organisation for Economic Cooperation and Development","30|Foreign governments and international organisations","2027_28","MTEC2027",30,2,2,32852,332,"30","02","02","032852","000332","30|02|02|000332","01","02","07","48","50","01|02|07|48|50","National","Communications and Digital Technologies","ICT Transformation, Global Partnerships and State-Owned Enterprises Governance","International Relations, Partnerships and Stakeholder Management","Organisation for Economic Cooperation and Development","Current","Transfers and subsidies","Foreign governments and international organisations","Foreign governments and international organisations","Foreign governments and international organisations","Economic development","Economic regulation and infrastructure","NAT",218,232,280,290,290,290,0,729,758,782,806,null,null,null,null,null,null,null,null,null,null,null,null,null,null,null,null,null,null,null,null,null,null,null,null,null,null,null,null,null,null,null,null,null,null,{"$f":"Dataset[[#This Row],[2027/28 From - Spending review Topic 1]]+Dataset[[#This Row],[2027/28 From - Spending review Topic 2]]+Dataset[[#This Row],[2027/28 From - Spending review Topic 3]]+Dataset[[#This Row],[2027/28 From - Spending review Topic 4]]+Dataset[[#This Row],[2027/28 From - Other reallocations]]","v":0},{"$f":"Dataset[[#This Row],[2028/29 From - Spending review Topic 1]]+Dataset[[#This Row],[2028/29 From - Spending review Topic 2]]+Dataset[[#This Row],[2028/29 From - Spending review Topic 3]]+Dataset[[#This Row],[2028/29 From - Spending review Topic 4]]+Dataset[[#This Row],[2028/29 From - Other reallocations]]","v":0},{"$f":"Dataset[[#This Row],[2029/30 From - Spending review Topic 1]]+Dataset[[#This Row],[2029/30 From - Spending review Topic 2]]+Dataset[[#This Row],[2029/30 From - Spending review Topic 3]]+Dataset[[#This Row],[2029/30 From - Spending review Topic 4]]+Dataset[[#This Row],[2029/30 From - Other reallocations]]","v":0},{"$f":"Dataset[[#This Row],[2027/28 To - Spending review Topic 1]]+Dataset[[#This Row],[2027/28 To - Spending review Topic 2]]+Dataset[[#This Row],[2027/28 To - Spending review Topic 3]]+Dataset[[#This Row],[2027/28 To - Spending review Topic 4]]+Dataset[[#This Row],[2027/28 To - Other reallocations]]","v":0},{"$f":"Dataset[[#This Row],[2028/29 To - Spending review Topic 1]]+Dataset[[#This Row],[2028/29 To - Spending review Topic 2]]+Dataset[[#This Row],[2028/29 To - Spending review Topic 3]]+Dataset[[#This Row],[2028/29 To - Spending review Topic 4]]+Dataset[[#This Row],[2028/29 To - Other reallocations]]","v":0},{"$f":"Dataset[[#This Row],[2029/30 To - Spending review Topic 1]]+Dataset[[#This Row],[2029/30 To - Spending review Topic 2]]+Dataset[[#This Row],[2029/30 To - Spending review Topic 3]]+Dataset[[#This Row],[2029/30 To - Spending review Topic 4]]+Dataset[[#This Row],[2029/30 To - Other reallocations]]","v":0},{"$f":"Dataset[[#This Row],[2027/28 Targeted savings]]+Dataset[[#This Row],[2027/28 From - Total]]","v":0},{"$f":"Dataset[[#This Row],[2028/29 Targeted savings]]+Dataset[[#This Row],[2028/29 From - Total]]","v":0},{"$f":"Dataset[[#This Row],[2029/30 Targeted savings]]+Dataset[[#This Row],[2029/30 From - Total]]","v":0},{"$f":"Dataset[[#This Row],[2026/27 Targeted savings]]","v":0},{"$f":"SUM(Dataset[[#This Row],[2027/28 Targeted savings]],Dataset[[#This Row],[2027/28 From - Total]],Dataset[[#This Row],[2027/28 To - Total]])","v":0},{"$f":"SUM(Dataset[[#This Row],[2028/29 Targeted savings]],Dataset[[#This Row],[2028/29 From - Total]],Dataset[[#This Row],[2028/29 To - Total]])","v":0},{"$f":"SUM(Dataset[[#This Row],[2029/30 Targeted savings]],Dataset[[#This Row],[2029/30 From - Total]],Dataset[[#This Row],[2029/30 To - Total]])","v":0},{"$f":"Dataset[[#This Row],[2026/27 Baseline]]+Dataset[[#This Row],[2026/27 Total change]]","v":729},{"$f":"Dataset[[#This Row],[2027/28 Baseline]]+Dataset[[#This Row],[2027/28 Total change]]","v":758},{"$f":"Dataset[[#This Row],[2028/29 Baseline]]+Dataset[[#This Row],[2028/29 Total change]]","v":782},{"$f":"Dataset[[#This Row],[2029/30 Baseline]]+Dataset[[#This Row],[2029/30 Total change]]","v":806}]
["NAT|International Telecommunication Union","30|Foreign governments and international organisations","2027_28","MTEC2027",30,2,2,32853,333,"30","02","02","032853","000333","30|02|02|000333","01","02","07","48","50","01|02|07|48|50","National","Communications and Digital Technologies","ICT Transformation, Global Partnerships and State-Owned Enterprises Governance","International Relations, Partnerships and Stakeholder Management","International Telecommunication Union","Current","Transfers and subsidies","Foreign governments and international organisations","Foreign governments and international organisations","Foreign governments and international organisations","Economic development","Economic regulation and infrastructure","NAT",22218,26587,26204,28633,30307,30307,0,30380,31593,32575,33556,null,null,null,null,null,null,null,null,null,null,null,null,null,null,null,null,null,null,null,null,null,null,null,null,null,null,null,null,null,null,null,null,null,null,{"$f":"Dataset[[#This Row],[2027/28 From - Spending review Topic 1]]+Dataset[[#This Row],[2027/28 From - Spending review Topic 2]]+Dataset[[#This Row],[2027/28 From - Spending review Topic 3]]+Dataset[[#This Row],[2027/28 From - Spending review Topic 4]]+Dataset[[#This Row],[2027/28 From - Other reallocations]]","v":0},{"$f":"Dataset[[#This Row],[2028/29 From - Spending review Topic 1]]+Dataset[[#This Row],[2028/29 From - Spending review Topic 2]]+Dataset[[#This Row],[2028/29 From - Spending review Topic 3]]+Dataset[[#This Row],[2028/29 From - Spending review Topic 4]]+Dataset[[#This Row],[2028/29 From - Other reallocations]]","v":0},{"$f":"Dataset[[#This Row],[2029/30 From - Spending review Topic 1]]+Dataset[[#This Row],[2029/30 From - Spending review Topic 2]]+Dataset[[#This Row],[2029/30 From - Spending review Topic 3]]+Dataset[[#This Row],[2029/30 From - Spending review Topic 4]]+Dataset[[#This Row],[2029/30 From - Other reallocations]]","v":0},{"$f":"Dataset[[#This Row],[2027/28 To - Spending review Topic 1]]+Dataset[[#This Row],[2027/28 To - Spending review Topic 2]]+Dataset[[#This Row],[2027/28 To - Spending review Topic 3]]+Dataset[[#This Row],[2027/28 To - Spending review Topic 4]]+Dataset[[#This Row],[2027/28 To - Other reallocations]]","v":0},{"$f":"Dataset[[#This Row],[2028/29 To - Spending review Topic 1]]+Dataset[[#This Row],[2028/29 To - Spending review Topic 2]]+Dataset[[#This Row],[2028/29 To - Spending review Topic 3]]+Dataset[[#This Row],[2028/29 To - Spending review Topic 4]]+Dataset[[#This Row],[2028/29 To - Other reallocations]]","v":0},{"$f":"Dataset[[#This Row],[2029/30 To - Spending review Topic 1]]+Dataset[[#This Row],[2029/30 To - Spending review Topic 2]]+Dataset[[#This Row],[2029/30 To - Spending review Topic 3]]+Dataset[[#This Row],[2029/30 To - Spending review Topic 4]]+Dataset[[#This Row],[2029/30 To - Other reallocations]]","v":0},{"$f":"Dataset[[#This Row],[2027/28 Targeted savings]]+Dataset[[#This Row],[2027/28 From - Total]]","v":0},{"$f":"Dataset[[#This Row],[2028/29 Targeted savings]]+Dataset[[#This Row],[2028/29 From - Total]]","v":0},{"$f":"Dataset[[#This Row],[2029/30 Targeted savings]]+Dataset[[#This Row],[2029/30 From - Total]]","v":0},{"$f":"Dataset[[#This Row],[2026/27 Targeted savings]]","v":0},{"$f":"SUM(Dataset[[#This Row],[2027/28 Targeted savings]],Dataset[[#This Row],[2027/28 From - Total]],Dataset[[#This Row],[2027/28 To - Total]])","v":0},{"$f":"SUM(Dataset[[#This Row],[2028/29 Targeted savings]],Dataset[[#This Row],[2028/29 From - Total]],Dataset[[#This Row],[2028/29 To - Total]])","v":0},{"$f":"SUM(Dataset[[#This Row],[2029/30 Targeted savings]],Dataset[[#This Row],[2029/30 From - Total]],Dataset[[#This Row],[2029/30 To - Total]])","v":0},{"$f":"Dataset[[#This Row],[2026/27 Baseline]]+Dataset[[#This Row],[2026/27 Total change]]","v":30380},{"$f":"Dataset[[#This Row],[2027/28 Baseline]]+Dataset[[#This Row],[2027/28 Total change]]","v":31593},{"$f":"Dataset[[#This Row],[2028/29 Baseline]]+Dataset[[#This Row],[2028/29 Total change]]","v":32575},{"$f":"Dataset[[#This Row],[2029/30 Baseline]]+Dataset[[#This Row],[2029/30 Total change]]","v":33556}]
["NAT|DONA Foundation","30|Foreign governments and international organisations","2027_28","MTEC2027",30,2,2,32854,334,"30","02","02","032854","000334","30|02|02|000334","01","02","07","48","50","01|02|07|48|50","National","Communications and Digital Technologies","ICT Transformation, Global Partnerships and State-Owned Enterprises Governance","International Relations, Partnerships and Stakeholder Management","DONA Foundation","Current","Transfers and subsidies","Foreign governments and international organisations","Foreign governments and international organisations","Foreign governments and international organisations","Economic development","Economic regulation and infrastructure","NAT",1240,1568,1576,1700,1700,1700,0,2113,2197,2266,2334,null,null,null,null,null,null,null,null,null,null,null,null,null,null,null,null,null,null,null,null,null,null,null,null,null,null,null,null,null,null,null,null,null,null,{"$f":"Dataset[[#This Row],[2027/28 From - Spending review Topic 1]]+Dataset[[#This Row],[2027/28 From - Spending review Topic 2]]+Dataset[[#This Row],[2027/28 From - Spending review Topic 3]]+Dataset[[#This Row],[2027/28 From - Spending review Topic 4]]+Dataset[[#This Row],[2027/28 From - Other reallocations]]","v":0},{"$f":"Dataset[[#This Row],[2028/29 From - Spending review Topic 1]]+Dataset[[#This Row],[2028/29 From - Spending review Topic 2]]+Dataset[[#This Row],[2028/29 From - Spending review Topic 3]]+Dataset[[#This Row],[2028/29 From - Spending review Topic 4]]+Dataset[[#This Row],[2028/29 From - Other reallocations]]","v":0},{"$f":"Dataset[[#This Row],[2029/30 From - Spending review Topic 1]]+Dataset[[#This Row],[2029/30 From - Spending review Topic 2]]+Dataset[[#This Row],[2029/30 From - Spending review Topic 3]]+Dataset[[#This Row],[2029/30 From - Spending review Topic 4]]+Dataset[[#This Row],[2029/30 From - Other reallocations]]","v":0},{"$f":"Dataset[[#This Row],[2027/28 To - Spending review Topic 1]]+Dataset[[#This Row],[2027/28 To - Spending review Topic 2]]+Dataset[[#This Row],[2027/28 To - Spending review Topic 3]]+Dataset[[#This Row],[2027/28 To - Spending review Topic 4]]+Dataset[[#This Row],[2027/28 To - Other reallocations]]","v":0},{"$f":"Dataset[[#This Row],[2028/29 To - Spending review Topic 1]]+Dataset[[#This Row],[2028/29 To - Spending review Topic 2]]+Dataset[[#This Row],[2028/29 To - Spending review Topic 3]]+Dataset[[#This Row],[2028/29 To - Spending review Topic 4]]+Dataset[[#This Row],[2028/29 To - Other reallocations]]","v":0},{"$f":"Dataset[[#This Row],[2029/30 To - Spending review Topic 1]]+Dataset[[#This Row],[2029/30 To - Spending review Topic 2]]+Dataset[[#This Row],[2029/30 To - Spending review Topic 3]]+Dataset[[#This Row],[2029/30 To - Spending review Topic 4]]+Dataset[[#This Row],[2029/30 To - Other reallocations]]","v":0},{"$f":"Dataset[[#This Row],[2027/28 Targeted savings]]+Dataset[[#This Row],[2027/28 From - Total]]","v":0},{"$f":"Dataset[[#This Row],[2028/29 Targeted savings]]+Dataset[[#This Row],[2028/29 From - Total]]","v":0},{"$f":"Dataset[[#This Row],[2029/30 Targeted savings]]+Dataset[[#This Row],[2029/30 From - Total]]","v":0},{"$f":"Dataset[[#This Row],[2026/27 Targeted savings]]","v":0},{"$f":"SUM(Dataset[[#This Row],[2027/28 Targeted savings]],Dataset[[#This Row],[2027/28 From - Total]],Dataset[[#This Row],[2027/28 To - Total]])","v":0},{"$f":"SUM(Dataset[[#This Row],[2028/29 Targeted savings]],Dataset[[#This Row],[2028/29 From - Total]],Dataset[[#This Row],[2028/29 To - Total]])","v":0},{"$f":"SUM(Dataset[[#This Row],[2029/30 Targeted savings]],Dataset[[#This Row],[2029/30 From - Total]],Dataset[[#This Row],[2029/30 To - Total]])","v":0},{"$f":"Dataset[[#This Row],[2026/27 Baseline]]+Dataset[[#This Row],[2026/27 Total change]]","v":2113},{"$f":"Dataset[[#This Row],[2027/28 Baseline]]+Dataset[[#This Row],[2027/28 Total change]]","v":2197},{"$f":"Dataset[[#This Row],[2028/29 Baseline]]+Dataset[[#This Row],[2028/29 Total change]]","v":2266},{"$f":"Dataset[[#This Row],[2029/30 Baseline]]+Dataset[[#This Row],[2029/30 Total change]]","v":2334}]
["NAT|African Telecommunications Union","30|Foreign governments and international organisations","2027_28","MTEC2027",30,2,2,32855,335,"30","02","02","032855","000335","30|02|02|000335","01","02","07","48","50","01|02|07|48|50","National","Communications and Digital Technologies","ICT Transformation, Global Partnerships and State-Owned Enterprises Governance","International Relations, Partnerships and Stakeholder Management","African Telecommunications Union","Current","Transfers and subsidies","Foreign governments and international organisations","Foreign governments and international organisations","Foreign governments and international organisations","Economic development","Economic regulation and infrastructure","NAT",1281,1326,1408,1500,2847,2847,0,2073,2156,2223,2290,null,null,null,null,null,null,null,null,null,null,null,null,null,null,null,null,null,null,null,null,null,null,null,null,null,null,null,null,null,null,null,null,null,null,{"$f":"Dataset[[#This Row],[2027/28 From - Spending review Topic 1]]+Dataset[[#This Row],[2027/28 From - Spending review Topic 2]]+Dataset[[#This Row],[2027/28 From - Spending review Topic 3]]+Dataset[[#This Row],[2027/28 From - Spending review Topic 4]]+Dataset[[#This Row],[2027/28 From - Other reallocations]]","v":0},{"$f":"Dataset[[#This Row],[2028/29 From - Spending review Topic 1]]+Dataset[[#This Row],[2028/29 From - Spending review Topic 2]]+Dataset[[#This Row],[2028/29 From - Spending review Topic 3]]+Dataset[[#This Row],[2028/29 From - Spending review Topic 4]]+Dataset[[#This Row],[2028/29 From - Other reallocations]]","v":0},{"$f":"Dataset[[#This Row],[2029/30 From - Spending review Topic 1]]+Dataset[[#This Row],[2029/30 From - Spending review Topic 2]]+Dataset[[#This Row],[2029/30 From - Spending review Topic 3]]+Dataset[[#This Row],[2029/30 From - Spending review Topic 4]]+Dataset[[#This Row],[2029/30 From - Other reallocations]]","v":0},{"$f":"Dataset[[#This Row],[2027/28 To - Spending review Topic 1]]+Dataset[[#This Row],[2027/28 To - Spending review Topic 2]]+Dataset[[#This Row],[2027/28 To - Spending review Topic 3]]+Dataset[[#This Row],[2027/28 To - Spending review Topic 4]]+Dataset[[#This Row],[2027/28 To - Other reallocations]]","v":0},{"$f":"Dataset[[#This Row],[2028/29 To - Spending review Topic 1]]+Dataset[[#This Row],[2028/29 To - Spending review Topic 2]]+Dataset[[#This Row],[2028/29 To - Spending review Topic 3]]+Dataset[[#This Row],[2028/29 To - Spending review Topic 4]]+Dataset[[#This Row],[2028/29 To - Other reallocations]]","v":0},{"$f":"Dataset[[#This Row],[2029/30 To - Spending review Topic 1]]+Dataset[[#This Row],[2029/30 To - Spending review Topic 2]]+Dataset[[#This Row],[2029/30 To - Spending review Topic 3]]+Dataset[[#This Row],[2029/30 To - Spending review Topic 4]]+Dataset[[#This Row],[2029/30 To - Other reallocations]]","v":0},{"$f":"Dataset[[#This Row],[2027/28 Targeted savings]]+Dataset[[#This Row],[2027/28 From - Total]]","v":0},{"$f":"Dataset[[#This Row],[2028/29 Targeted savings]]+Dataset[[#This Row],[2028/29 From - Total]]","v":0},{"$f":"Dataset[[#This Row],[2029/30 Targeted savings]]+Dataset[[#This Row],[2029/30 From - Total]]","v":0},{"$f":"Dataset[[#This Row],[2026/27 Targeted savings]]","v":0},{"$f":"SUM(Dataset[[#This Row],[2027/28 Targeted savings]],Dataset[[#This Row],[2027/28 From - Total]],Dataset[[#This Row],[2027/28 To - Total]])","v":0},{"$f":"SUM(Dataset[[#This Row],[2028/29 Targeted savings]],Dataset[[#This Row],[2028/29 From - Total]],Dataset[[#This Row],[2028/29 To - Total]])","v":0},{"$f":"SUM(Dataset[[#This Row],[2029/30 Targeted savings]],Dataset[[#This Row],[2029/30 From - Total]],Dataset[[#This Row],[2029/30 To - Total]])","v":0},{"$f":"Dataset[[#This Row],[2026/27 Baseline]]+Dataset[[#This Row],[2026/27 Total change]]","v":2073},{"$f":"Dataset[[#This Row],[2027/28 Baseline]]+Dataset[[#This Row],[2027/28 Total change]]","v":2156},{"$f":"Dataset[[#This Row],[2028/29 Baseline]]+Dataset[[#This Row],[2028/29 Total change]]","v":2223},{"$f":"Dataset[[#This Row],[2029/30 Baseline]]+Dataset[[#This Row],[2029/30 Total change]]","v":2290}]
["NAT|Households","30|Social benefits","2027_28","MTEC2027",30,2,2,32856,336,"30","02","02","032856","000336","30|02|02|000336","01","02","10","52","56","01|02|10|52|56","National","Communications and Digital Technologies","ICT Transformation, Global Partnerships and State-Owned Enterprises Governance","International Relations, Partnerships and Stakeholder Management","Households","Current","Transfers and subsidies","Households","Social benefits","Social benefits","Economic development","Economic regulation and infrastructure","NAT",183,92,184,0,0,0,0,0,0,0,0,null,null,null,null,null,null,null,null,null,null,null,null,null,null,null,null,null,null,null,null,null,null,null,null,null,null,null,null,null,null,null,null,null,null,{"$f":"Dataset[[#This Row],[2027/28 From - Spending review Topic 1]]+Dataset[[#This Row],[2027/28 From - Spending review Topic 2]]+Dataset[[#This Row],[2027/28 From - Spending review Topic 3]]+Dataset[[#This Row],[2027/28 From - Spending review Topic 4]]+Dataset[[#This Row],[2027/28 From - Other reallocations]]","v":0},{"$f":"Dataset[[#This Row],[2028/29 From - Spending review Topic 1]]+Dataset[[#This Row],[2028/29 From - Spending review Topic 2]]+Dataset[[#This Row],[2028/29 From - Spending review Topic 3]]+Dataset[[#This Row],[2028/29 From - Spending review Topic 4]]+Dataset[[#This Row],[2028/29 From - Other reallocations]]","v":0},{"$f":"Dataset[[#This Row],[2029/30 From - Spending review Topic 1]]+Dataset[[#This Row],[2029/30 From - Spending review Topic 2]]+Dataset[[#This Row],[2029/30 From - Spending review Topic 3]]+Dataset[[#This Row],[2029/30 From - Spending review Topic 4]]+Dataset[[#This Row],[2029/30 From - Other reallocations]]","v":0},{"$f":"Dataset[[#This Row],[2027/28 To - Spending review Topic 1]]+Dataset[[#This Row],[2027/28 To - Spending review Topic 2]]+Dataset[[#This Row],[2027/28 To - Spending review Topic 3]]+Dataset[[#This Row],[2027/28 To - Spending review Topic 4]]+Dataset[[#This Row],[2027/28 To - Other reallocations]]","v":0},{"$f":"Dataset[[#This Row],[2028/29 To - Spending review Topic 1]]+Dataset[[#This Row],[2028/29 To - Spending review Topic 2]]+Dataset[[#This Row],[2028/29 To - Spending review Topic 3]]+Dataset[[#This Row],[2028/29 To - Spending review Topic 4]]+Dataset[[#This Row],[2028/29 To - Other reallocations]]","v":0},{"$f":"Dataset[[#This Row],[2029/30 To - Spending review Topic 1]]+Dataset[[#This Row],[2029/30 To - Spending review Topic 2]]+Dataset[[#This Row],[2029/30 To - Spending review Topic 3]]+Dataset[[#This Row],[2029/30 To - Spending review Topic 4]]+Dataset[[#This Row],[2029/30 To - Other reallocations]]","v":0},{"$f":"Dataset[[#This Row],[2027/28 Targeted savings]]+Dataset[[#This Row],[2027/28 From - Total]]","v":0},{"$f":"Dataset[[#This Row],[2028/29 Targeted savings]]+Dataset[[#This Row],[2028/29 From - Total]]","v":0},{"$f":"Dataset[[#This Row],[2029/30 Targeted savings]]+Dataset[[#This Row],[2029/30 From - Total]]","v":0},{"$f":"Dataset[[#This Row],[2026/27 Targeted savings]]","v":0},{"$f":"SUM(Dataset[[#This Row],[2027/28 Targeted savings]],Dataset[[#This Row],[2027/28 From - Total]],Dataset[[#This Row],[2027/28 To - Total]])","v":0},{"$f":"SUM(Dataset[[#This Row],[2028/29 Targeted savings]],Dataset[[#This Row],[2028/29 From - Total]],Dataset[[#This Row],[2028/29 To - Total]])","v":0},{"$f":"SUM(Dataset[[#This Row],[2029/30 Targeted savings]],Dataset[[#This Row],[2029/30 From - Total]],Dataset[[#This Row],[2029/30 To - Total]])","v":0},{"$f":"Dataset[[#This Row],[2026/27 Baseline]]+Dataset[[#This Row],[2026/27 Total change]]","v":0},{"$f":"Dataset[[#This Row],[2027/28 Baseline]]+Dataset[[#This Row],[2027/28 Total change]]","v":0},{"$f":"Dataset[[#This Row],[2028/29 Baseline]]+Dataset[[#This Row],[2028/29 Total change]]","v":0},{"$f":"Dataset[[#This Row],[2029/30 Baseline]]+Dataset[[#This Row],[2029/30 Total change]]","v":0}]
["NAT|Households","30|Other transfers to households","2027_28","MTEC2027",30,2,2,32857,337,"30","02","02","032857","000337","30|02|02|000337","01","02","10","53","57","01|02|10|53|57","National","Communications and Digital Technologies","ICT Transformation, Global Partnerships and State-Owned Enterprises Governance","International Relations, Partnerships and Stakeholder Management","Households","Current","Transfers and subsidies","Households","Other transfers to households","Other transfers to households","Economic development","Economic regulation and infrastructure","NAT",13,24,4,0,0,0,0,0,0,0,0,null,null,null,null,null,null,null,null,null,null,null,null,null,null,null,null,null,null,null,null,null,null,null,null,null,null,null,null,null,null,null,null,null,null,{"$f":"Dataset[[#This Row],[2027/28 From - Spending review Topic 1]]+Dataset[[#This Row],[2027/28 From - Spending review Topic 2]]+Dataset[[#This Row],[2027/28 From - Spending review Topic 3]]+Dataset[[#This Row],[2027/28 From - Spending review Topic 4]]+Dataset[[#This Row],[2027/28 From - Other reallocations]]","v":0},{"$f":"Dataset[[#This Row],[2028/29 From - Spending review Topic 1]]+Dataset[[#This Row],[2028/29 From - Spending review Topic 2]]+Dataset[[#This Row],[2028/29 From - Spending review Topic 3]]+Dataset[[#This Row],[2028/29 From - Spending review Topic 4]]+Dataset[[#This Row],[2028/29 From - Other reallocations]]","v":0},{"$f":"Dataset[[#This Row],[2029/30 From - Spending review Topic 1]]+Dataset[[#This Row],[2029/30 From - Spending review Topic 2]]+Dataset[[#This Row],[2029/30 From - Spending review Topic 3]]+Dataset[[#This Row],[2029/30 From - Spending review Topic 4]]+Dataset[[#This Row],[2029/30 From - Other reallocations]]","v":0},{"$f":"Dataset[[#This Row],[2027/28 To - Spending review Topic 1]]+Dataset[[#This Row],[2027/28 To - Spending review Topic 2]]+Dataset[[#This Row],[2027/28 To - Spending review Topic 3]]+Dataset[[#This Row],[2027/28 To - Spending review Topic 4]]+Dataset[[#This Row],[2027/28 To - Other reallocations]]","v":0},{"$f":"Dataset[[#This Row],[2028/29 To - Spending review Topic 1]]+Dataset[[#This Row],[2028/29 To - Spending review Topic 2]]+Dataset[[#This Row],[2028/29 To - Spending review Topic 3]]+Dataset[[#This Row],[2028/29 To - Spending review Topic 4]]+Dataset[[#This Row],[2028/29 To - Other reallocations]]","v":0},{"$f":"Dataset[[#This Row],[2029/30 To - Spending review Topic 1]]+Dataset[[#This Row],[2029/30 To - Spending review Topic 2]]+Dataset[[#This Row],[2029/30 To - Spending review Topic 3]]+Dataset[[#This Row],[2029/30 To - Spending review Topic 4]]+Dataset[[#This Row],[2029/30 To - Other reallocations]]","v":0},{"$f":"Dataset[[#This Row],[2027/28 Targeted savings]]+Dataset[[#This Row],[2027/28 From - Total]]","v":0},{"$f":"Dataset[[#This Row],[2028/29 Targeted savings]]+Dataset[[#This Row],[2028/29 From - Total]]","v":0},{"$f":"Dataset[[#This Row],[2029/30 Targeted savings]]+Dataset[[#This Row],[2029/30 From - Total]]","v":0},{"$f":"Dataset[[#This Row],[2026/27 Targeted savings]]","v":0},{"$f":"SUM(Dataset[[#This Row],[2027/28 Targeted savings]],Dataset[[#This Row],[2027/28 From - Total]],Dataset[[#This Row],[2027/28 To - Total]])","v":0},{"$f":"SUM(Dataset[[#This Row],[2028/29 Targeted savings]],Dataset[[#This Row],[2028/29 From - Total]],Dataset[[#This Row],[2028/29 To - Total]])","v":0},{"$f":"SUM(Dataset[[#This Row],[2029/30 Targeted savings]],Dataset[[#This Row],[2029/30 From - Total]],Dataset[[#This Row],[2029/30 To - Total]])","v":0},{"$f":"Dataset[[#This Row],[2026/27 Baseline]]+Dataset[[#This Row],[2026/27 Total change]]","v":0},{"$f":"Dataset[[#This Row],[2027/28 Baseline]]+Dataset[[#This Row],[2027/28 Total change]]","v":0},{"$f":"Dataset[[#This Row],[2028/29 Baseline]]+Dataset[[#This Row],[2028/29 Total change]]","v":0},{"$f":"Dataset[[#This Row],[2029/30 Baseline]]+Dataset[[#This Row],[2029/30 Total change]]","v":0}]
["NAT|Non-transfer","30|Other machinery and equipment","2027_28","MTEC2027",30,2,2,32858,338,"30","02","02","032858","000338","30|02|02|000338","02","03","12","57","61","02|03|12|57|61","National","Communications and Digital Technologies","ICT Transformation, Global Partnerships and State-Owned Enterprises Governance","International Relations, Partnerships and Stakeholder Management","Non-transfer","Capital","Payments for capital assets","Machinery and equipment","Other machinery and equipment","Other machinery and equipment","Economic development","Economic regulation and infrastructure","NAT",157,189,58,876,876,876,0,0,0,718,740,null,null,null,null,null,null,null,null,null,null,null,null,null,null,null,null,null,null,null,null,null,null,null,null,null,null,null,null,null,null,null,null,null,null,{"$f":"Dataset[[#This Row],[2027/28 From - Spending review Topic 1]]+Dataset[[#This Row],[2027/28 From - Spending review Topic 2]]+Dataset[[#This Row],[2027/28 From - Spending review Topic 3]]+Dataset[[#This Row],[2027/28 From - Spending review Topic 4]]+Dataset[[#This Row],[2027/28 From - Other reallocations]]","v":0},{"$f":"Dataset[[#This Row],[2028/29 From - Spending review Topic 1]]+Dataset[[#This Row],[2028/29 From - Spending review Topic 2]]+Dataset[[#This Row],[2028/29 From - Spending review Topic 3]]+Dataset[[#This Row],[2028/29 From - Spending review Topic 4]]+Dataset[[#This Row],[2028/29 From - Other reallocations]]","v":0},{"$f":"Dataset[[#This Row],[2029/30 From - Spending review Topic 1]]+Dataset[[#This Row],[2029/30 From - Spending review Topic 2]]+Dataset[[#This Row],[2029/30 From - Spending review Topic 3]]+Dataset[[#This Row],[2029/30 From - Spending review Topic 4]]+Dataset[[#This Row],[2029/30 From - Other reallocations]]","v":0},{"$f":"Dataset[[#This Row],[2027/28 To - Spending review Topic 1]]+Dataset[[#This Row],[2027/28 To - Spending review Topic 2]]+Dataset[[#This Row],[2027/28 To - Spending review Topic 3]]+Dataset[[#This Row],[2027/28 To - Spending review Topic 4]]+Dataset[[#This Row],[2027/28 To - Other reallocations]]","v":0},{"$f":"Dataset[[#This Row],[2028/29 To - Spending review Topic 1]]+Dataset[[#This Row],[2028/29 To - Spending review Topic 2]]+Dataset[[#This Row],[2028/29 To - Spending review Topic 3]]+Dataset[[#This Row],[2028/29 To - Spending review Topic 4]]+Dataset[[#This Row],[2028/29 To - Other reallocations]]","v":0},{"$f":"Dataset[[#This Row],[2029/30 To - Spending review Topic 1]]+Dataset[[#This Row],[2029/30 To - Spending review Topic 2]]+Dataset[[#This Row],[2029/30 To - Spending review Topic 3]]+Dataset[[#This Row],[2029/30 To - Spending review Topic 4]]+Dataset[[#This Row],[2029/30 To - Other reallocations]]","v":0},{"$f":"Dataset[[#This Row],[2027/28 Targeted savings]]+Dataset[[#This Row],[2027/28 From - Total]]","v":0},{"$f":"Dataset[[#This Row],[2028/29 Targeted savings]]+Dataset[[#This Row],[2028/29 From - Total]]","v":0},{"$f":"Dataset[[#This Row],[2029/30 Targeted savings]]+Dataset[[#This Row],[2029/30 From - Total]]","v":0},{"$f":"Dataset[[#This Row],[2026/27 Targeted savings]]","v":0},{"$f":"SUM(Dataset[[#This Row],[2027/28 Targeted savings]],Dataset[[#This Row],[2027/28 From - Total]],Dataset[[#This Row],[2027/28 To - Total]])","v":0},{"$f":"SUM(Dataset[[#This Row],[2028/29 Targeted savings]],Dataset[[#This Row],[2028/29 From - Total]],Dataset[[#This Row],[2028/29 To - Total]])","v":0},{"$f":"SUM(Dataset[[#This Row],[2029/30 Targeted savings]],Dataset[[#This Row],[2029/30 From - Total]],Dataset[[#This Row],[2029/30 To - Total]])","v":0},{"$f":"Dataset[[#This Row],[2026/27 Baseline]]+Dataset[[#This Row],[2026/27 Total change]]","v":0},{"$f":"Dataset[[#This Row],[2027/28 Baseline]]+Dataset[[#This Row],[2027/28 Total change]]","v":0},{"$f":"Dataset[[#This Row],[2028/29 Baseline]]+Dataset[[#This Row],[2028/29 Total change]]","v":718},{"$f":"Dataset[[#This Row],[2029/30 Baseline]]+Dataset[[#This Row],[2029/30 Total change]]","v":740}]
["NAT|Thefts and losses","30|Payments for financial assets","2027_28","MTEC2027",30,2,2,32859,339,"30","02","02","032859","000339","30|02|02|000339","03","04","18","63","67","03|04|18|63|67","National","Communications and Digital Technologies","ICT Transformation, Global Partnerships and State-Owned Enterprises Governance","International Relations, Partnerships and Stakeholder Management","Thefts and losses","Payments for financial assets","Payments for financial assets","Payments for financial assets","Payments for financial assets","Payments for financial assets","Economic development","Economic regulation and infrastructure","NAT",0,0,42,0,0,0,0,0,0,0,0,null,null,null,null,null,null,null,null,null,null,null,null,null,null,null,null,null,null,null,null,null,null,null,null,null,null,null,null,null,null,null,null,null,null,{"$f":"Dataset[[#This Row],[2027/28 From - Spending review Topic 1]]+Dataset[[#This Row],[2027/28 From - Spending review Topic 2]]+Dataset[[#This Row],[2027/28 From - Spending review Topic 3]]+Dataset[[#This Row],[2027/28 From - Spending review Topic 4]]+Dataset[[#This Row],[2027/28 From - Other reallocations]]","v":0},{"$f":"Dataset[[#This Row],[2028/29 From - Spending review Topic 1]]+Dataset[[#This Row],[2028/29 From - Spending review Topic 2]]+Dataset[[#This Row],[2028/29 From - Spending review Topic 3]]+Dataset[[#This Row],[2028/29 From - Spending review Topic 4]]+Dataset[[#This Row],[2028/29 From - Other reallocations]]","v":0},{"$f":"Dataset[[#This Row],[2029/30 From - Spending review Topic 1]]+Dataset[[#This Row],[2029/30 From - Spending review Topic 2]]+Dataset[[#This Row],[2029/30 From - Spending review Topic 3]]+Dataset[[#This Row],[2029/30 From - Spending review Topic 4]]+Dataset[[#This Row],[2029/30 From - Other reallocations]]","v":0},{"$f":"Dataset[[#This Row],[2027/28 To - Spending review Topic 1]]+Dataset[[#This Row],[2027/28 To - Spending review Topic 2]]+Dataset[[#This Row],[2027/28 To - Spending review Topic 3]]+Dataset[[#This Row],[2027/28 To - Spending review Topic 4]]+Dataset[[#This Row],[2027/28 To - Other reallocations]]","v":0},{"$f":"Dataset[[#This Row],[2028/29 To - Spending review Topic 1]]+Dataset[[#This Row],[2028/29 To - Spending review Topic 2]]+Dataset[[#This Row],[2028/29 To - Spending review Topic 3]]+Dataset[[#This Row],[2028/29 To - Spending review Topic 4]]+Dataset[[#This Row],[2028/29 To - Other reallocations]]","v":0},{"$f":"Dataset[[#This Row],[2029/30 To - Spending review Topic 1]]+Dataset[[#This Row],[2029/30 To - Spending review Topic 2]]+Dataset[[#This Row],[2029/30 To - Spending review Topic 3]]+Dataset[[#This Row],[2029/30 To - Spending review Topic 4]]+Dataset[[#This Row],[2029/30 To - Other reallocations]]","v":0},{"$f":"Dataset[[#This Row],[2027/28 Targeted savings]]+Dataset[[#This Row],[2027/28 From - Total]]","v":0},{"$f":"Dataset[[#This Row],[2028/29 Targeted savings]]+Dataset[[#This Row],[2028/29 From - Total]]","v":0},{"$f":"Dataset[[#This Row],[2029/30 Targeted savings]]+Dataset[[#This Row],[2029/30 From - Total]]","v":0},{"$f":"Dataset[[#This Row],[2026/27 Targeted savings]]","v":0},{"$f":"SUM(Dataset[[#This Row],[2027/28 Targeted savings]],Dataset[[#This Row],[2027/28 From - Total]],Dataset[[#This Row],[2027/28 To - Total]])","v":0},{"$f":"SUM(Dataset[[#This Row],[2028/29 Targeted savings]],Dataset[[#This Row],[2028/29 From - Total]],Dataset[[#This Row],[2028/29 To - Total]])","v":0},{"$f":"SUM(Dataset[[#This Row],[2029/30 Targeted savings]],Dataset[[#This Row],[2029/30 From - Total]],Dataset[[#This Row],[2029/30 To - Total]])","v":0},{"$f":"Dataset[[#This Row],[2026/27 Baseline]]+Dataset[[#This Row],[2026/27 Total change]]","v":0},{"$f":"Dataset[[#This Row],[2027/28 Baseline]]+Dataset[[#This Row],[2027/28 Total change]]","v":0},{"$f":"Dataset[[#This Row],[2028/29 Baseline]]+Dataset[[#This Row],[2028/29 Total change]]","v":0},{"$f":"Dataset[[#This Row],[2029/30 Baseline]]+Dataset[[#This Row],[2029/30 Total change]]","v":0}]
["NAT|Non-transfer","30|Salaries and wages","2027_28","MTEC2027",30,2,3,32860,340,"30","02","03","032860","000340","30|02|03|000340","01","01","01","01","01","01|01|01|01|01","National","Communications and Digital Technologies","ICT Transformation, Global Partnerships and State-Owned Enterprises Governance","State-Owned Enterprise Governance and Investment Management","Non-transfer","Current","Current payments","Compensation of employees","Salaries and wages","Salaries and wages","Economic development","Economic regulation and infrastructure","NAT",3919,4061,4342,4189,4739,4739,0,8571,7381,7494,7720,null,null,null,null,null,null,null,null,null,null,null,null,null,null,null,null,null,null,null,null,null,null,null,null,null,null,null,null,null,null,null,null,null,null,{"$f":"Dataset[[#This Row],[2027/28 From - Spending review Topic 1]]+Dataset[[#This Row],[2027/28 From - Spending review Topic 2]]+Dataset[[#This Row],[2027/28 From - Spending review Topic 3]]+Dataset[[#This Row],[2027/28 From - Spending review Topic 4]]+Dataset[[#This Row],[2027/28 From - Other reallocations]]","v":0},{"$f":"Dataset[[#This Row],[2028/29 From - Spending review Topic 1]]+Dataset[[#This Row],[2028/29 From - Spending review Topic 2]]+Dataset[[#This Row],[2028/29 From - Spending review Topic 3]]+Dataset[[#This Row],[2028/29 From - Spending review Topic 4]]+Dataset[[#This Row],[2028/29 From - Other reallocations]]","v":0},{"$f":"Dataset[[#This Row],[2029/30 From - Spending review Topic 1]]+Dataset[[#This Row],[2029/30 From - Spending review Topic 2]]+Dataset[[#This Row],[2029/30 From - Spending review Topic 3]]+Dataset[[#This Row],[2029/30 From - Spending review Topic 4]]+Dataset[[#This Row],[2029/30 From - Other reallocations]]","v":0},{"$f":"Dataset[[#This Row],[2027/28 To - Spending review Topic 1]]+Dataset[[#This Row],[2027/28 To - Spending review Topic 2]]+Dataset[[#This Row],[2027/28 To - Spending review Topic 3]]+Dataset[[#This Row],[2027/28 To - Spending review Topic 4]]+Dataset[[#This Row],[2027/28 To - Other reallocations]]","v":0},{"$f":"Dataset[[#This Row],[2028/29 To - Spending review Topic 1]]+Dataset[[#This Row],[2028/29 To - Spending review Topic 2]]+Dataset[[#This Row],[2028/29 To - Spending review Topic 3]]+Dataset[[#This Row],[2028/29 To - Spending review Topic 4]]+Dataset[[#This Row],[2028/29 To - Other reallocations]]","v":0},{"$f":"Dataset[[#This Row],[2029/30 To - Spending review Topic 1]]+Dataset[[#This Row],[2029/30 To - Spending review Topic 2]]+Dataset[[#This Row],[2029/30 To - Spending review Topic 3]]+Dataset[[#This Row],[2029/30 To - Spending review Topic 4]]+Dataset[[#This Row],[2029/30 To - Other reallocations]]","v":0},{"$f":"Dataset[[#This Row],[2027/28 Targeted savings]]+Dataset[[#This Row],[2027/28 From - Total]]","v":0},{"$f":"Dataset[[#This Row],[2028/29 Targeted savings]]+Dataset[[#This Row],[2028/29 From - Total]]","v":0},{"$f":"Dataset[[#This Row],[2029/30 Targeted savings]]+Dataset[[#This Row],[2029/30 From - Total]]","v":0},{"$f":"Dataset[[#This Row],[2026/27 Targeted savings]]","v":0},{"$f":"SUM(Dataset[[#This Row],[2027/28 Targeted savings]],Dataset[[#This Row],[2027/28 From - Total]],Dataset[[#This Row],[2027/28 To - Total]])","v":0},{"$f":"SUM(Dataset[[#This Row],[2028/29 Targeted savings]],Dataset[[#This Row],[2028/29 From - Total]],Dataset[[#This Row],[2028/29 To - Total]])","v":0},{"$f":"SUM(Dataset[[#This Row],[2029/30 Targeted savings]],Dataset[[#This Row],[2029/30 From - Total]],Dataset[[#This Row],[2029/30 To - Total]])","v":0},{"$f":"Dataset[[#This Row],[2026/27 Baseline]]+Dataset[[#This Row],[2026/27 Total change]]","v":8571},{"$f":"Dataset[[#This Row],[2027/28 Baseline]]+Dataset[[#This Row],[2027/28 Total change]]","v":7381},{"$f":"Dataset[[#This Row],[2028/29 Baseline]]+Dataset[[#This Row],[2028/29 Total change]]","v":7494},{"$f":"Dataset[[#This Row],[2029/30 Baseline]]+Dataset[[#This Row],[2029/30 Total change]]","v":7720}]
["NAT|Non-transfer","30|Social contributions","2027_28","MTEC2027",30,2,3,32861,341,"30","02","03","032861","000341","30|02|03|000341","01","01","01","02","02","01|01|01|02|02","National","Communications and Digital Technologies","ICT Transformation, Global Partnerships and State-Owned Enterprises Governance","State-Owned Enterprise Governance and Investment Management","Non-transfer","Current","Current payments","Compensation of employees","Social contributions","Social contributions","Economic development","Economic regulation and infrastructure","NAT",447,476,505,500,350,350,0,1217,1307,1400,1442,null,null,null,null,null,null,null,null,null,null,null,null,null,null,null,null,null,null,null,null,null,null,null,null,null,null,null,null,null,null,null,null,null,null,{"$f":"Dataset[[#This Row],[2027/28 From - Spending review Topic 1]]+Dataset[[#This Row],[2027/28 From - Spending review Topic 2]]+Dataset[[#This Row],[2027/28 From - Spending review Topic 3]]+Dataset[[#This Row],[2027/28 From - Spending review Topic 4]]+Dataset[[#This Row],[2027/28 From - Other reallocations]]","v":0},{"$f":"Dataset[[#This Row],[2028/29 From - Spending review Topic 1]]+Dataset[[#This Row],[2028/29 From - Spending review Topic 2]]+Dataset[[#This Row],[2028/29 From - Spending review Topic 3]]+Dataset[[#This Row],[2028/29 From - Spending review Topic 4]]+Dataset[[#This Row],[2028/29 From - Other reallocations]]","v":0},{"$f":"Dataset[[#This Row],[2029/30 From - Spending review Topic 1]]+Dataset[[#This Row],[2029/30 From - Spending review Topic 2]]+Dataset[[#This Row],[2029/30 From - Spending review Topic 3]]+Dataset[[#This Row],[2029/30 From - Spending review Topic 4]]+Dataset[[#This Row],[2029/30 From - Other reallocations]]","v":0},{"$f":"Dataset[[#This Row],[2027/28 To - Spending review Topic 1]]+Dataset[[#This Row],[2027/28 To - Spending review Topic 2]]+Dataset[[#This Row],[2027/28 To - Spending review Topic 3]]+Dataset[[#This Row],[2027/28 To - Spending review Topic 4]]+Dataset[[#This Row],[2027/28 To - Other reallocations]]","v":0},{"$f":"Dataset[[#This Row],[2028/29 To - Spending review Topic 1]]+Dataset[[#This Row],[2028/29 To - Spending review Topic 2]]+Dataset[[#This Row],[2028/29 To - Spending review Topic 3]]+Dataset[[#This Row],[2028/29 To - Spending review Topic 4]]+Dataset[[#This Row],[2028/29 To - Other reallocations]]","v":0},{"$f":"Dataset[[#This Row],[2029/30 To - Spending review Topic 1]]+Dataset[[#This Row],[2029/30 To - Spending review Topic 2]]+Dataset[[#This Row],[2029/30 To - Spending review Topic 3]]+Dataset[[#This Row],[2029/30 To - Spending review Topic 4]]+Dataset[[#This Row],[2029/30 To - Other reallocations]]","v":0},{"$f":"Dataset[[#This Row],[2027/28 Targeted savings]]+Dataset[[#This Row],[2027/28 From - Total]]","v":0},{"$f":"Dataset[[#This Row],[2028/29 Targeted savings]]+Dataset[[#This Row],[2028/29 From - Total]]","v":0},{"$f":"Dataset[[#This Row],[2029/30 Targeted savings]]+Dataset[[#This Row],[2029/30 From - Total]]","v":0},{"$f":"Dataset[[#This Row],[2026/27 Targeted savings]]","v":0},{"$f":"SUM(Dataset[[#This Row],[2027/28 Targeted savings]],Dataset[[#This Row],[2027/28 From - Total]],Dataset[[#This Row],[2027/28 To - Total]])","v":0},{"$f":"SUM(Dataset[[#This Row],[2028/29 Targeted savings]],Dataset[[#This Row],[2028/29 From - Total]],Dataset[[#This Row],[2028/29 To - Total]])","v":0},{"$f":"SUM(Dataset[[#This Row],[2029/30 Targeted savings]],Dataset[[#This Row],[2029/30 From - Total]],Dataset[[#This Row],[2029/30 To - Total]])","v":0},{"$f":"Dataset[[#This Row],[2026/27 Baseline]]+Dataset[[#This Row],[2026/27 Total change]]","v":1217},{"$f":"Dataset[[#This Row],[2027/28 Baseline]]+Dataset[[#This Row],[2027/28 Total change]]","v":1307},{"$f":"Dataset[[#This Row],[2028/29 Baseline]]+Dataset[[#This Row],[2028/29 Total change]]","v":1400},{"$f":"Dataset[[#This Row],[2029/30 Baseline]]+Dataset[[#This Row],[2029/30 Total change]]","v":1442}]
["NAT|Non-transfer","30|Administrative fees","2027_28","MTEC2027",30,2,3,32862,342,"30","02","03","032862","000342","30|02|03|000342","01","01","02","03","03","01|01|02|03|03","National","Communications and Digital Technologies","ICT Transformation, Global Partnerships and State-Owned Enterprises Governance","State-Owned Enterprise Governance and Investment Management","Non-transfer","Current","Current payments","Goods and services","Administrative fees","Administrative fees","Economic development","Economic regulation and infrastructure","NAT",1,0,0,0,0,0,0,0,186,192,198,null,null,null,null,null,null,null,null,null,null,null,null,null,null,null,null,null,null,null,null,null,null,null,null,null,null,null,null,null,null,null,null,null,null,{"$f":"Dataset[[#This Row],[2027/28 From - Spending review Topic 1]]+Dataset[[#This Row],[2027/28 From - Spending review Topic 2]]+Dataset[[#This Row],[2027/28 From - Spending review Topic 3]]+Dataset[[#This Row],[2027/28 From - Spending review Topic 4]]+Dataset[[#This Row],[2027/28 From - Other reallocations]]","v":0},{"$f":"Dataset[[#This Row],[2028/29 From - Spending review Topic 1]]+Dataset[[#This Row],[2028/29 From - Spending review Topic 2]]+Dataset[[#This Row],[2028/29 From - Spending review Topic 3]]+Dataset[[#This Row],[2028/29 From - Spending review Topic 4]]+Dataset[[#This Row],[2028/29 From - Other reallocations]]","v":0},{"$f":"Dataset[[#This Row],[2029/30 From - Spending review Topic 1]]+Dataset[[#This Row],[2029/30 From - Spending review Topic 2]]+Dataset[[#This Row],[2029/30 From - Spending review Topic 3]]+Dataset[[#This Row],[2029/30 From - Spending review Topic 4]]+Dataset[[#This Row],[2029/30 From - Other reallocations]]","v":0},{"$f":"Dataset[[#This Row],[2027/28 To - Spending review Topic 1]]+Dataset[[#This Row],[2027/28 To - Spending review Topic 2]]+Dataset[[#This Row],[2027/28 To - Spending review Topic 3]]+Dataset[[#This Row],[2027/28 To - Spending review Topic 4]]+Dataset[[#This Row],[2027/28 To - Other reallocations]]","v":0},{"$f":"Dataset[[#This Row],[2028/29 To - Spending review Topic 1]]+Dataset[[#This Row],[2028/29 To - Spending review Topic 2]]+Dataset[[#This Row],[2028/29 To - Spending review Topic 3]]+Dataset[[#This Row],[2028/29 To - Spending review Topic 4]]+Dataset[[#This Row],[2028/29 To - Other reallocations]]","v":0},{"$f":"Dataset[[#This Row],[2029/30 To - Spending review Topic 1]]+Dataset[[#This Row],[2029/30 To - Spending review Topic 2]]+Dataset[[#This Row],[2029/30 To - Spending review Topic 3]]+Dataset[[#This Row],[2029/30 To - Spending review Topic 4]]+Dataset[[#This Row],[2029/30 To - Other reallocations]]","v":0},{"$f":"Dataset[[#This Row],[2027/28 Targeted savings]]+Dataset[[#This Row],[2027/28 From - Total]]","v":0},{"$f":"Dataset[[#This Row],[2028/29 Targeted savings]]+Dataset[[#This Row],[2028/29 From - Total]]","v":0},{"$f":"Dataset[[#This Row],[2029/30 Targeted savings]]+Dataset[[#This Row],[2029/30 From - Total]]","v":0},{"$f":"Dataset[[#This Row],[2026/27 Targeted savings]]","v":0},{"$f":"SUM(Dataset[[#This Row],[2027/28 Targeted savings]],Dataset[[#This Row],[2027/28 From - Total]],Dataset[[#This Row],[2027/28 To - Total]])","v":0},{"$f":"SUM(Dataset[[#This Row],[2028/29 Targeted savings]],Dataset[[#This Row],[2028/29 From - Total]],Dataset[[#This Row],[2028/29 To - Total]])","v":0},{"$f":"SUM(Dataset[[#This Row],[2029/30 Targeted savings]],Dataset[[#This Row],[2029/30 From - Total]],Dataset[[#This Row],[2029/30 To - Total]])","v":0},{"$f":"Dataset[[#This Row],[2026/27 Baseline]]+Dataset[[#This Row],[2026/27 Total change]]","v":0},{"$f":"Dataset[[#This Row],[2027/28 Baseline]]+Dataset[[#This Row],[2027/28 Total change]]","v":186},{"$f":"Dataset[[#This Row],[2028/29 Baseline]]+Dataset[[#This Row],[2028/29 Total change]]","v":192},{"$f":"Dataset[[#This Row],[2029/30 Baseline]]+Dataset[[#This Row],[2029/30 Total change]]","v":198}]
["NAT|Non-transfer","30|Advertising","2027_28","MTEC2027",30,2,3,32863,343,"30","02","03","032863","000343","30|02|03|000343","01","01","02","04","04","01|01|02|04|04","National","Communications and Digital Technologies","ICT Transformation, Global Partnerships and State-Owned Enterprises Governance","State-Owned Enterprise Governance and Investment Management","Non-transfer","Current","Current payments","Goods and services","Advertising","Advertising","Economic development","Economic regulation and infrastructure","NAT",10,1195,673,50,50,50,0,840,1047,0,0,null,null,null,null,null,null,null,null,null,null,null,null,null,null,null,null,null,null,null,null,null,null,null,null,null,null,null,null,null,null,null,null,null,null,{"$f":"Dataset[[#This Row],[2027/28 From - Spending review Topic 1]]+Dataset[[#This Row],[2027/28 From - Spending review Topic 2]]+Dataset[[#This Row],[2027/28 From - Spending review Topic 3]]+Dataset[[#This Row],[2027/28 From - Spending review Topic 4]]+Dataset[[#This Row],[2027/28 From - Other reallocations]]","v":0},{"$f":"Dataset[[#This Row],[2028/29 From - Spending review Topic 1]]+Dataset[[#This Row],[2028/29 From - Spending review Topic 2]]+Dataset[[#This Row],[2028/29 From - Spending review Topic 3]]+Dataset[[#This Row],[2028/29 From - Spending review Topic 4]]+Dataset[[#This Row],[2028/29 From - Other reallocations]]","v":0},{"$f":"Dataset[[#This Row],[2029/30 From - Spending review Topic 1]]+Dataset[[#This Row],[2029/30 From - Spending review Topic 2]]+Dataset[[#This Row],[2029/30 From - Spending review Topic 3]]+Dataset[[#This Row],[2029/30 From - Spending review Topic 4]]+Dataset[[#This Row],[2029/30 From - Other reallocations]]","v":0},{"$f":"Dataset[[#This Row],[2027/28 To - Spending review Topic 1]]+Dataset[[#This Row],[2027/28 To - Spending review Topic 2]]+Dataset[[#This Row],[2027/28 To - Spending review Topic 3]]+Dataset[[#This Row],[2027/28 To - Spending review Topic 4]]+Dataset[[#This Row],[2027/28 To - Other reallocations]]","v":0},{"$f":"Dataset[[#This Row],[2028/29 To - Spending review Topic 1]]+Dataset[[#This Row],[2028/29 To - Spending review Topic 2]]+Dataset[[#This Row],[2028/29 To - Spending review Topic 3]]+Dataset[[#This Row],[2028/29 To - Spending review Topic 4]]+Dataset[[#This Row],[2028/29 To - Other reallocations]]","v":0},{"$f":"Dataset[[#This Row],[2029/30 To - Spending review Topic 1]]+Dataset[[#This Row],[2029/30 To - Spending review Topic 2]]+Dataset[[#This Row],[2029/30 To - Spending review Topic 3]]+Dataset[[#This Row],[2029/30 To - Spending review Topic 4]]+Dataset[[#This Row],[2029/30 To - Other reallocations]]","v":0},{"$f":"Dataset[[#This Row],[2027/28 Targeted savings]]+Dataset[[#This Row],[2027/28 From - Total]]","v":0},{"$f":"Dataset[[#This Row],[2028/29 Targeted savings]]+Dataset[[#This Row],[2028/29 From - Total]]","v":0},{"$f":"Dataset[[#This Row],[2029/30 Targeted savings]]+Dataset[[#This Row],[2029/30 From - Total]]","v":0},{"$f":"Dataset[[#This Row],[2026/27 Targeted savings]]","v":0},{"$f":"SUM(Dataset[[#This Row],[2027/28 Targeted savings]],Dataset[[#This Row],[2027/28 From - Total]],Dataset[[#This Row],[2027/28 To - Total]])","v":0},{"$f":"SUM(Dataset[[#This Row],[2028/29 Targeted savings]],Dataset[[#This Row],[2028/29 From - Total]],Dataset[[#This Row],[2028/29 To - Total]])","v":0},{"$f":"SUM(Dataset[[#This Row],[2029/30 Targeted savings]],Dataset[[#This Row],[2029/30 From - Total]],Dataset[[#This Row],[2029/30 To - Total]])","v":0},{"$f":"Dataset[[#This Row],[2026/27 Baseline]]+Dataset[[#This Row],[2026/27 Total change]]","v":840},{"$f":"Dataset[[#This Row],[2027/28 Baseline]]+Dataset[[#This Row],[2027/28 Total change]]","v":1047},{"$f":"Dataset[[#This Row],[2028/29 Baseline]]+Dataset[[#This Row],[2028/29 Total change]]","v":0},{"$f":"Dataset[[#This Row],[2029/30 Baseline]]+Dataset[[#This Row],[2029/30 Total change]]","v":0}]
["NAT|Non-transfer","30|Minor assets","2027_28","MTEC2027",30,2,3,32864,344,"30","02","03","032864","000344","30|02|03|000344","01","01","02","05","05","01|01|02|05|05","National","Communications and Digital Technologies","ICT Transformation, Global Partnerships and State-Owned Enterprises Governance","State-Owned Enterprise Governance and Investment Management","Non-transfer","Current","Current payments","Goods and services","Minor assets","Minor assets","Economic development","Economic regulation and infrastructure","NAT",0,0,0,0,0,0,0,0,15,15,15,null,null,null,null,null,null,null,null,null,null,null,null,null,null,null,null,null,null,null,null,null,null,null,null,null,null,null,null,null,null,null,null,null,null,{"$f":"Dataset[[#This Row],[2027/28 From - Spending review Topic 1]]+Dataset[[#This Row],[2027/28 From - Spending review Topic 2]]+Dataset[[#This Row],[2027/28 From - Spending review Topic 3]]+Dataset[[#This Row],[2027/28 From - Spending review Topic 4]]+Dataset[[#This Row],[2027/28 From - Other reallocations]]","v":0},{"$f":"Dataset[[#This Row],[2028/29 From - Spending review Topic 1]]+Dataset[[#This Row],[2028/29 From - Spending review Topic 2]]+Dataset[[#This Row],[2028/29 From - Spending review Topic 3]]+Dataset[[#This Row],[2028/29 From - Spending review Topic 4]]+Dataset[[#This Row],[2028/29 From - Other reallocations]]","v":0},{"$f":"Dataset[[#This Row],[2029/30 From - Spending review Topic 1]]+Dataset[[#This Row],[2029/30 From - Spending review Topic 2]]+Dataset[[#This Row],[2029/30 From - Spending review Topic 3]]+Dataset[[#This Row],[2029/30 From - Spending review Topic 4]]+Dataset[[#This Row],[2029/30 From - Other reallocations]]","v":0},{"$f":"Dataset[[#This Row],[2027/28 To - Spending review Topic 1]]+Dataset[[#This Row],[2027/28 To - Spending review Topic 2]]+Dataset[[#This Row],[2027/28 To - Spending review Topic 3]]+Dataset[[#This Row],[2027/28 To - Spending review Topic 4]]+Dataset[[#This Row],[2027/28 To - Other reallocations]]","v":0},{"$f":"Dataset[[#This Row],[2028/29 To - Spending review Topic 1]]+Dataset[[#This Row],[2028/29 To - Spending review Topic 2]]+Dataset[[#This Row],[2028/29 To - Spending review Topic 3]]+Dataset[[#This Row],[2028/29 To - Spending review Topic 4]]+Dataset[[#This Row],[2028/29 To - Other reallocations]]","v":0},{"$f":"Dataset[[#This Row],[2029/30 To - Spending review Topic 1]]+Dataset[[#This Row],[2029/30 To - Spending review Topic 2]]+Dataset[[#This Row],[2029/30 To - Spending review Topic 3]]+Dataset[[#This Row],[2029/30 To - Spending review Topic 4]]+Dataset[[#This Row],[2029/30 To - Other reallocations]]","v":0},{"$f":"Dataset[[#This Row],[2027/28 Targeted savings]]+Dataset[[#This Row],[2027/28 From - Total]]","v":0},{"$f":"Dataset[[#This Row],[2028/29 Targeted savings]]+Dataset[[#This Row],[2028/29 From - Total]]","v":0},{"$f":"Dataset[[#This Row],[2029/30 Targeted savings]]+Dataset[[#This Row],[2029/30 From - Total]]","v":0},{"$f":"Dataset[[#This Row],[2026/27 Targeted savings]]","v":0},{"$f":"SUM(Dataset[[#This Row],[2027/28 Targeted savings]],Dataset[[#This Row],[2027/28 From - Total]],Dataset[[#This Row],[2027/28 To - Total]])","v":0},{"$f":"SUM(Dataset[[#This Row],[2028/29 Targeted savings]],Dataset[[#This Row],[2028/29 From - Total]],Dataset[[#This Row],[2028/29 To - Total]])","v":0},{"$f":"SUM(Dataset[[#This Row],[2029/30 Targeted savings]],Dataset[[#This Row],[2029/30 From - Total]],Dataset[[#This Row],[2029/30 To - Total]])","v":0},{"$f":"Dataset[[#This Row],[2026/27 Baseline]]+Dataset[[#This Row],[2026/27 Total change]]","v":0},{"$f":"Dataset[[#This Row],[2027/28 Baseline]]+Dataset[[#This Row],[2027/28 Total change]]","v":15},{"$f":"Dataset[[#This Row],[2028/29 Baseline]]+Dataset[[#This Row],[2028/29 Total change]]","v":15},{"$f":"Dataset[[#This Row],[2029/30 Baseline]]+Dataset[[#This Row],[2029/30 Total change]]","v":15}]
["NAT|Non-transfer","30|Audit costs: External","2027_28","MTEC2027",30,2,3,32865,345,"30","02","03","032865","000345","30|02|03|000345","01","01","02","06","06","01|01|02|06|06","National","Communications and Digital Technologies","ICT Transformation, Global Partnerships and State-Owned Enterprises Governance","State-Owned Enterprise Governance and Investment Management","Non-transfer","Current","Current payments","Goods and services","Audit costs: External","Audit costs: External","Economic development","Economic regulation and infrastructure","NAT",0,0,0,773,773,773,0,0,0,0,0,null,null,null,null,null,null,null,null,null,null,null,null,null,null,null,null,null,null,null,null,null,null,null,null,null,null,null,null,null,null,null,null,null,null,{"$f":"Dataset[[#This Row],[2027/28 From - Spending review Topic 1]]+Dataset[[#This Row],[2027/28 From - Spending review Topic 2]]+Dataset[[#This Row],[2027/28 From - Spending review Topic 3]]+Dataset[[#This Row],[2027/28 From - Spending review Topic 4]]+Dataset[[#This Row],[2027/28 From - Other reallocations]]","v":0},{"$f":"Dataset[[#This Row],[2028/29 From - Spending review Topic 1]]+Dataset[[#This Row],[2028/29 From - Spending review Topic 2]]+Dataset[[#This Row],[2028/29 From - Spending review Topic 3]]+Dataset[[#This Row],[2028/29 From - Spending review Topic 4]]+Dataset[[#This Row],[2028/29 From - Other reallocations]]","v":0},{"$f":"Dataset[[#This Row],[2029/30 From - Spending review Topic 1]]+Dataset[[#This Row],[2029/30 From - Spending review Topic 2]]+Dataset[[#This Row],[2029/30 From - Spending review Topic 3]]+Dataset[[#This Row],[2029/30 From - Spending review Topic 4]]+Dataset[[#This Row],[2029/30 From - Other reallocations]]","v":0},{"$f":"Dataset[[#This Row],[2027/28 To - Spending review Topic 1]]+Dataset[[#This Row],[2027/28 To - Spending review Topic 2]]+Dataset[[#This Row],[2027/28 To - Spending review Topic 3]]+Dataset[[#This Row],[2027/28 To - Spending review Topic 4]]+Dataset[[#This Row],[2027/28 To - Other reallocations]]","v":0},{"$f":"Dataset[[#This Row],[2028/29 To - Spending review Topic 1]]+Dataset[[#This Row],[2028/29 To - Spending review Topic 2]]+Dataset[[#This Row],[2028/29 To - Spending review Topic 3]]+Dataset[[#This Row],[2028/29 To - Spending review Topic 4]]+Dataset[[#This Row],[2028/29 To - Other reallocations]]","v":0},{"$f":"Dataset[[#This Row],[2029/30 To - Spending review Topic 1]]+Dataset[[#This Row],[2029/30 To - Spending review Topic 2]]+Dataset[[#This Row],[2029/30 To - Spending review Topic 3]]+Dataset[[#This Row],[2029/30 To - Spending review Topic 4]]+Dataset[[#This Row],[2029/30 To - Other reallocations]]","v":0},{"$f":"Dataset[[#This Row],[2027/28 Targeted savings]]+Dataset[[#This Row],[2027/28 From - Total]]","v":0},{"$f":"Dataset[[#This Row],[2028/29 Targeted savings]]+Dataset[[#This Row],[2028/29 From - Total]]","v":0},{"$f":"Dataset[[#This Row],[2029/30 Targeted savings]]+Dataset[[#This Row],[2029/30 From - Total]]","v":0},{"$f":"Dataset[[#This Row],[2026/27 Targeted savings]]","v":0},{"$f":"SUM(Dataset[[#This Row],[2027/28 Targeted savings]],Dataset[[#This Row],[2027/28 From - Total]],Dataset[[#This Row],[2027/28 To - Total]])","v":0},{"$f":"SUM(Dataset[[#This Row],[2028/29 Targeted savings]],Dataset[[#This Row],[2028/29 From - Total]],Dataset[[#This Row],[2028/29 To - Total]])","v":0},{"$f":"SUM(Dataset[[#This Row],[2029/30 Targeted savings]],Dataset[[#This Row],[2029/30 From - Total]],Dataset[[#This Row],[2029/30 To - Total]])","v":0},{"$f":"Dataset[[#This Row],[2026/27 Baseline]]+Dataset[[#This Row],[2026/27 Total change]]","v":0},{"$f":"Dataset[[#This Row],[2027/28 Baseline]]+Dataset[[#This Row],[2027/28 Total change]]","v":0},{"$f":"Dataset[[#This Row],[2028/29 Baseline]]+Dataset[[#This Row],[2028/29 Total change]]","v":0},{"$f":"Dataset[[#This Row],[2029/30 Baseline]]+Dataset[[#This Row],[2029/30 Total change]]","v":0}]
["NAT|Non-transfer","30|Bursaries: Employees","2027_28","MTEC2027",30,2,3,32866,346,"30","02","03","032866","000346","30|02|03|000346","01","01","02","07","07","01|01|02|07|07","National","Communications and Digital Technologies","ICT Transformation, Global Partnerships and State-Owned Enterprises Governance","State-Owned Enterprise Governance and Investment Management","Non-transfer","Current","Current payments","Goods and services","Bursaries: Employees","Bursaries: Employees","Economic development","Economic regulation and infrastructure","NAT",0,5,0,30,30,30,0,60,74,77,79,null,null,null,null,null,null,null,null,null,null,null,null,null,null,null,null,null,null,null,null,null,null,null,null,null,null,null,null,null,null,null,null,null,null,{"$f":"Dataset[[#This Row],[2027/28 From - Spending review Topic 1]]+Dataset[[#This Row],[2027/28 From - Spending review Topic 2]]+Dataset[[#This Row],[2027/28 From - Spending review Topic 3]]+Dataset[[#This Row],[2027/28 From - Spending review Topic 4]]+Dataset[[#This Row],[2027/28 From - Other reallocations]]","v":0},{"$f":"Dataset[[#This Row],[2028/29 From - Spending review Topic 1]]+Dataset[[#This Row],[2028/29 From - Spending review Topic 2]]+Dataset[[#This Row],[2028/29 From - Spending review Topic 3]]+Dataset[[#This Row],[2028/29 From - Spending review Topic 4]]+Dataset[[#This Row],[2028/29 From - Other reallocations]]","v":0},{"$f":"Dataset[[#This Row],[2029/30 From - Spending review Topic 1]]+Dataset[[#This Row],[2029/30 From - Spending review Topic 2]]+Dataset[[#This Row],[2029/30 From - Spending review Topic 3]]+Dataset[[#This Row],[2029/30 From - Spending review Topic 4]]+Dataset[[#This Row],[2029/30 From - Other reallocations]]","v":0},{"$f":"Dataset[[#This Row],[2027/28 To - Spending review Topic 1]]+Dataset[[#This Row],[2027/28 To - Spending review Topic 2]]+Dataset[[#This Row],[2027/28 To - Spending review Topic 3]]+Dataset[[#This Row],[2027/28 To - Spending review Topic 4]]+Dataset[[#This Row],[2027/28 To - Other reallocations]]","v":0},{"$f":"Dataset[[#This Row],[2028/29 To - Spending review Topic 1]]+Dataset[[#This Row],[2028/29 To - Spending review Topic 2]]+Dataset[[#This Row],[2028/29 To - Spending review Topic 3]]+Dataset[[#This Row],[2028/29 To - Spending review Topic 4]]+Dataset[[#This Row],[2028/29 To - Other reallocations]]","v":0},{"$f":"Dataset[[#This Row],[2029/30 To - Spending review Topic 1]]+Dataset[[#This Row],[2029/30 To - Spending review Topic 2]]+Dataset[[#This Row],[2029/30 To - Spending review Topic 3]]+Dataset[[#This Row],[2029/30 To - Spending review Topic 4]]+Dataset[[#This Row],[2029/30 To - Other reallocations]]","v":0},{"$f":"Dataset[[#This Row],[2027/28 Targeted savings]]+Dataset[[#This Row],[2027/28 From - Total]]","v":0},{"$f":"Dataset[[#This Row],[2028/29 Targeted savings]]+Dataset[[#This Row],[2028/29 From - Total]]","v":0},{"$f":"Dataset[[#This Row],[2029/30 Targeted savings]]+Dataset[[#This Row],[2029/30 From - Total]]","v":0},{"$f":"Dataset[[#This Row],[2026/27 Targeted savings]]","v":0},{"$f":"SUM(Dataset[[#This Row],[2027/28 Targeted savings]],Dataset[[#This Row],[2027/28 From - Total]],Dataset[[#This Row],[2027/28 To - Total]])","v":0},{"$f":"SUM(Dataset[[#This Row],[2028/29 Targeted savings]],Dataset[[#This Row],[2028/29 From - Total]],Dataset[[#This Row],[2028/29 To - Total]])","v":0},{"$f":"SUM(Dataset[[#This Row],[2029/30 Targeted savings]],Dataset[[#This Row],[2029/30 From - Total]],Dataset[[#This Row],[2029/30 To - Total]])","v":0},{"$f":"Dataset[[#This Row],[2026/27 Baseline]]+Dataset[[#This Row],[2026/27 Total change]]","v":60},{"$f":"Dataset[[#This Row],[2027/28 Baseline]]+Dataset[[#This Row],[2027/28 Total change]]","v":74},{"$f":"Dataset[[#This Row],[2028/29 Baseline]]+Dataset[[#This Row],[2028/29 Total change]]","v":77},{"$f":"Dataset[[#This Row],[2029/30 Baseline]]+Dataset[[#This Row],[2029/30 Total change]]","v":79}]
["NAT|Non-transfer","30|Catering: Departmental activities","2027_28","MTEC2027",30,2,3,32867,347,"30","02","03","032867","000347","30|02|03|000347","01","01","02","08","08","01|01|02|08|08","National","Communications and Digital Technologies","ICT Transformation, Global Partnerships and State-Owned Enterprises Governance","State-Owned Enterprise Governance and Investment Management","Non-transfer","Current","Current payments","Goods and services","Catering: Departmental activities","Catering: Departmental activities","Economic development","Economic regulation and infrastructure","NAT",0,0,2,15,15,15,0,40,4,4,4,null,null,null,null,null,null,null,null,null,null,null,null,null,null,null,null,null,null,null,null,null,null,null,null,null,null,null,null,null,null,null,null,null,null,{"$f":"Dataset[[#This Row],[2027/28 From - Spending review Topic 1]]+Dataset[[#This Row],[2027/28 From - Spending review Topic 2]]+Dataset[[#This Row],[2027/28 From - Spending review Topic 3]]+Dataset[[#This Row],[2027/28 From - Spending review Topic 4]]+Dataset[[#This Row],[2027/28 From - Other reallocations]]","v":0},{"$f":"Dataset[[#This Row],[2028/29 From - Spending review Topic 1]]+Dataset[[#This Row],[2028/29 From - Spending review Topic 2]]+Dataset[[#This Row],[2028/29 From - Spending review Topic 3]]+Dataset[[#This Row],[2028/29 From - Spending review Topic 4]]+Dataset[[#This Row],[2028/29 From - Other reallocations]]","v":0},{"$f":"Dataset[[#This Row],[2029/30 From - Spending review Topic 1]]+Dataset[[#This Row],[2029/30 From - Spending review Topic 2]]+Dataset[[#This Row],[2029/30 From - Spending review Topic 3]]+Dataset[[#This Row],[2029/30 From - Spending review Topic 4]]+Dataset[[#This Row],[2029/30 From - Other reallocations]]","v":0},{"$f":"Dataset[[#This Row],[2027/28 To - Spending review Topic 1]]+Dataset[[#This Row],[2027/28 To - Spending review Topic 2]]+Dataset[[#This Row],[2027/28 To - Spending review Topic 3]]+Dataset[[#This Row],[2027/28 To - Spending review Topic 4]]+Dataset[[#This Row],[2027/28 To - Other reallocations]]","v":0},{"$f":"Dataset[[#This Row],[2028/29 To - Spending review Topic 1]]+Dataset[[#This Row],[2028/29 To - Spending review Topic 2]]+Dataset[[#This Row],[2028/29 To - Spending review Topic 3]]+Dataset[[#This Row],[2028/29 To - Spending review Topic 4]]+Dataset[[#This Row],[2028/29 To - Other reallocations]]","v":0},{"$f":"Dataset[[#This Row],[2029/30 To - Spending review Topic 1]]+Dataset[[#This Row],[2029/30 To - Spending review Topic 2]]+Dataset[[#This Row],[2029/30 To - Spending review Topic 3]]+Dataset[[#This Row],[2029/30 To - Spending review Topic 4]]+Dataset[[#This Row],[2029/30 To - Other reallocations]]","v":0},{"$f":"Dataset[[#This Row],[2027/28 Targeted savings]]+Dataset[[#This Row],[2027/28 From - Total]]","v":0},{"$f":"Dataset[[#This Row],[2028/29 Targeted savings]]+Dataset[[#This Row],[2028/29 From - Total]]","v":0},{"$f":"Dataset[[#This Row],[2029/30 Targeted savings]]+Dataset[[#This Row],[2029/30 From - Total]]","v":0},{"$f":"Dataset[[#This Row],[2026/27 Targeted savings]]","v":0},{"$f":"SUM(Dataset[[#This Row],[2027/28 Targeted savings]],Dataset[[#This Row],[2027/28 From - Total]],Dataset[[#This Row],[2027/28 To - Total]])","v":0},{"$f":"SUM(Dataset[[#This Row],[2028/29 Targeted savings]],Dataset[[#This Row],[2028/29 From - Total]],Dataset[[#This Row],[2028/29 To - Total]])","v":0},{"$f":"SUM(Dataset[[#This Row],[2029/30 Targeted savings]],Dataset[[#This Row],[2029/30 From - Total]],Dataset[[#This Row],[2029/30 To - Total]])","v":0},{"$f":"Dataset[[#This Row],[2026/27 Baseline]]+Dataset[[#This Row],[2026/27 Total change]]","v":40},{"$f":"Dataset[[#This Row],[2027/28 Baseline]]+Dataset[[#This Row],[2027/28 Total change]]","v":4},{"$f":"Dataset[[#This Row],[2028/29 Baseline]]+Dataset[[#This Row],[2028/29 Total change]]","v":4},{"$f":"Dataset[[#This Row],[2029/30 Baseline]]+Dataset[[#This Row],[2029/30 Total change]]","v":4}]
["NAT|Non-transfer","30|Communication (G&S)","2027_28","MTEC2027",30,2,3,32868,348,"30","02","03","032868","000348","30|02|03|000348","01","01","02","09","09","01|01|02|09|09","National","Communications and Digital Technologies","ICT Transformation, Global Partnerships and State-Owned Enterprises Governance","State-Owned Enterprise Governance and Investment Management","Non-transfer","Current","Current payments","Goods and services","Communication (G&S)","Communication (G&S)","Economic development","Economic regulation and infrastructure","NAT",164,91,78,114,114,114,0,130,239,246,253,null,null,null,null,null,null,null,null,null,null,null,null,null,null,null,null,null,null,null,null,null,null,null,null,null,null,null,null,null,null,null,null,null,null,{"$f":"Dataset[[#This Row],[2027/28 From - Spending review Topic 1]]+Dataset[[#This Row],[2027/28 From - Spending review Topic 2]]+Dataset[[#This Row],[2027/28 From - Spending review Topic 3]]+Dataset[[#This Row],[2027/28 From - Spending review Topic 4]]+Dataset[[#This Row],[2027/28 From - Other reallocations]]","v":0},{"$f":"Dataset[[#This Row],[2028/29 From - Spending review Topic 1]]+Dataset[[#This Row],[2028/29 From - Spending review Topic 2]]+Dataset[[#This Row],[2028/29 From - Spending review Topic 3]]+Dataset[[#This Row],[2028/29 From - Spending review Topic 4]]+Dataset[[#This Row],[2028/29 From - Other reallocations]]","v":0},{"$f":"Dataset[[#This Row],[2029/30 From - Spending review Topic 1]]+Dataset[[#This Row],[2029/30 From - Spending review Topic 2]]+Dataset[[#This Row],[2029/30 From - Spending review Topic 3]]+Dataset[[#This Row],[2029/30 From - Spending review Topic 4]]+Dataset[[#This Row],[2029/30 From - Other reallocations]]","v":0},{"$f":"Dataset[[#This Row],[2027/28 To - Spending review Topic 1]]+Dataset[[#This Row],[2027/28 To - Spending review Topic 2]]+Dataset[[#This Row],[2027/28 To - Spending review Topic 3]]+Dataset[[#This Row],[2027/28 To - Spending review Topic 4]]+Dataset[[#This Row],[2027/28 To - Other reallocations]]","v":0},{"$f":"Dataset[[#This Row],[2028/29 To - Spending review Topic 1]]+Dataset[[#This Row],[2028/29 To - Spending review Topic 2]]+Dataset[[#This Row],[2028/29 To - Spending review Topic 3]]+Dataset[[#This Row],[2028/29 To - Spending review Topic 4]]+Dataset[[#This Row],[2028/29 To - Other reallocations]]","v":0},{"$f":"Dataset[[#This Row],[2029/30 To - Spending review Topic 1]]+Dataset[[#This Row],[2029/30 To - Spending review Topic 2]]+Dataset[[#This Row],[2029/30 To - Spending review Topic 3]]+Dataset[[#This Row],[2029/30 To - Spending review Topic 4]]+Dataset[[#This Row],[2029/30 To - Other reallocations]]","v":0},{"$f":"Dataset[[#This Row],[2027/28 Targeted savings]]+Dataset[[#This Row],[2027/28 From - Total]]","v":0},{"$f":"Dataset[[#This Row],[2028/29 Targeted savings]]+Dataset[[#This Row],[2028/29 From - Total]]","v":0},{"$f":"Dataset[[#This Row],[2029/30 Targeted savings]]+Dataset[[#This Row],[2029/30 From - Total]]","v":0},{"$f":"Dataset[[#This Row],[2026/27 Targeted savings]]","v":0},{"$f":"SUM(Dataset[[#This Row],[2027/28 Targeted savings]],Dataset[[#This Row],[2027/28 From - Total]],Dataset[[#This Row],[2027/28 To - Total]])","v":0},{"$f":"SUM(Dataset[[#This Row],[2028/29 Targeted savings]],Dataset[[#This Row],[2028/29 From - Total]],Dataset[[#This Row],[2028/29 To - Total]])","v":0},{"$f":"SUM(Dataset[[#This Row],[2029/30 Targeted savings]],Dataset[[#This Row],[2029/30 From - Total]],Dataset[[#This Row],[2029/30 To - Total]])","v":0},{"$f":"Dataset[[#This Row],[2026/27 Baseline]]+Dataset[[#This Row],[2026/27 Total change]]","v":130},{"$f":"Dataset[[#This Row],[2027/28 Baseline]]+Dataset[[#This Row],[2027/28 Total change]]","v":239},{"$f":"Dataset[[#This Row],[2028/29 Baseline]]+Dataset[[#This Row],[2028/29 Total change]]","v":246},{"$f":"Dataset[[#This Row],[2029/30 Baseline]]+Dataset[[#This Row],[2029/30 Total change]]","v":253}]
["NAT|Non-transfer","30|Computer services","2027_28","MTEC2027",30,2,3,32869,349,"30","02","03","032869","000349","30|02|03|000349","01","01","02","10","10","01|01|02|10|10","National","Communications and Digital Technologies","ICT Transformation, Global Partnerships and State-Owned Enterprises Governance","State-Owned Enterprise Governance and Investment Management","Non-transfer","Current","Current payments","Goods and services","Computer services","Computer services","Economic development","Economic regulation and infrastructure","NAT",0,0,0,0,0,0,0,2000,0,0,0,null,null,null,null,null,null,null,null,null,null,null,null,null,null,null,null,null,null,null,null,null,null,null,null,null,null,null,null,null,null,null,null,null,null,{"$f":"Dataset[[#This Row],[2027/28 From - Spending review Topic 1]]+Dataset[[#This Row],[2027/28 From - Spending review Topic 2]]+Dataset[[#This Row],[2027/28 From - Spending review Topic 3]]+Dataset[[#This Row],[2027/28 From - Spending review Topic 4]]+Dataset[[#This Row],[2027/28 From - Other reallocations]]","v":0},{"$f":"Dataset[[#This Row],[2028/29 From - Spending review Topic 1]]+Dataset[[#This Row],[2028/29 From - Spending review Topic 2]]+Dataset[[#This Row],[2028/29 From - Spending review Topic 3]]+Dataset[[#This Row],[2028/29 From - Spending review Topic 4]]+Dataset[[#This Row],[2028/29 From - Other reallocations]]","v":0},{"$f":"Dataset[[#This Row],[2029/30 From - Spending review Topic 1]]+Dataset[[#This Row],[2029/30 From - Spending review Topic 2]]+Dataset[[#This Row],[2029/30 From - Spending review Topic 3]]+Dataset[[#This Row],[2029/30 From - Spending review Topic 4]]+Dataset[[#This Row],[2029/30 From - Other reallocations]]","v":0},{"$f":"Dataset[[#This Row],[2027/28 To - Spending review Topic 1]]+Dataset[[#This Row],[2027/28 To - Spending review Topic 2]]+Dataset[[#This Row],[2027/28 To - Spending review Topic 3]]+Dataset[[#This Row],[2027/28 To - Spending review Topic 4]]+Dataset[[#This Row],[2027/28 To - Other reallocations]]","v":0},{"$f":"Dataset[[#This Row],[2028/29 To - Spending review Topic 1]]+Dataset[[#This Row],[2028/29 To - Spending review Topic 2]]+Dataset[[#This Row],[2028/29 To - Spending review Topic 3]]+Dataset[[#This Row],[2028/29 To - Spending review Topic 4]]+Dataset[[#This Row],[2028/29 To - Other reallocations]]","v":0},{"$f":"Dataset[[#This Row],[2029/30 To - Spending review Topic 1]]+Dataset[[#This Row],[2029/30 To - Spending review Topic 2]]+Dataset[[#This Row],[2029/30 To - Spending review Topic 3]]+Dataset[[#This Row],[2029/30 To - Spending review Topic 4]]+Dataset[[#This Row],[2029/30 To - Other reallocations]]","v":0},{"$f":"Dataset[[#This Row],[2027/28 Targeted savings]]+Dataset[[#This Row],[2027/28 From - Total]]","v":0},{"$f":"Dataset[[#This Row],[2028/29 Targeted savings]]+Dataset[[#This Row],[2028/29 From - Total]]","v":0},{"$f":"Dataset[[#This Row],[2029/30 Targeted savings]]+Dataset[[#This Row],[2029/30 From - Total]]","v":0},{"$f":"Dataset[[#This Row],[2026/27 Targeted savings]]","v":0},{"$f":"SUM(Dataset[[#This Row],[2027/28 Targeted savings]],Dataset[[#This Row],[2027/28 From - Total]],Dataset[[#This Row],[2027/28 To - Total]])","v":0},{"$f":"SUM(Dataset[[#This Row],[2028/29 Targeted savings]],Dataset[[#This Row],[2028/29 From - Total]],Dataset[[#This Row],[2028/29 To - Total]])","v":0},{"$f":"SUM(Dataset[[#This Row],[2029/30 Targeted savings]],Dataset[[#This Row],[2029/30 From - Total]],Dataset[[#This Row],[2029/30 To - Total]])","v":0},{"$f":"Dataset[[#This Row],[2026/27 Baseline]]+Dataset[[#This Row],[2026/27 Total change]]","v":2000},{"$f":"Dataset[[#This Row],[2027/28 Baseline]]+Dataset[[#This Row],[2027/28 Total change]]","v":0},{"$f":"Dataset[[#This Row],[2028/29 Baseline]]+Dataset[[#This Row],[2028/29 Total change]]","v":0},{"$f":"Dataset[[#This Row],[2029/30 Baseline]]+Dataset[[#This Row],[2029/30 Total change]]","v":0}]
["NAT|Non-transfer","30|Consultants: Business and advisory services","2027_28","MTEC2027",30,2,3,32870,350,"30","02","03","032870","000350","30|02|03|000350","01","01","02","11","11","01|01|02|11|11","National","Communications and Digital Technologies","ICT Transformation, Global Partnerships and State-Owned Enterprises Governance","State-Owned Enterprise Governance and Investment Management","Non-transfer","Current","Current payments","Goods and services","Consultants: Business and advisory services","Consultants: Business and advisory services","Economic development","Economic regulation and infrastructure","NAT",8,0,0,357,2257,2257,0,500,461,476,490,null,null,null,null,null,null,null,null,null,null,null,null,null,null,null,null,null,null,null,null,null,null,null,null,null,null,null,null,null,null,null,null,null,null,{"$f":"Dataset[[#This Row],[2027/28 From - Spending review Topic 1]]+Dataset[[#This Row],[2027/28 From - Spending review Topic 2]]+Dataset[[#This Row],[2027/28 From - Spending review Topic 3]]+Dataset[[#This Row],[2027/28 From - Spending review Topic 4]]+Dataset[[#This Row],[2027/28 From - Other reallocations]]","v":0},{"$f":"Dataset[[#This Row],[2028/29 From - Spending review Topic 1]]+Dataset[[#This Row],[2028/29 From - Spending review Topic 2]]+Dataset[[#This Row],[2028/29 From - Spending review Topic 3]]+Dataset[[#This Row],[2028/29 From - Spending review Topic 4]]+Dataset[[#This Row],[2028/29 From - Other reallocations]]","v":0},{"$f":"Dataset[[#This Row],[2029/30 From - Spending review Topic 1]]+Dataset[[#This Row],[2029/30 From - Spending review Topic 2]]+Dataset[[#This Row],[2029/30 From - Spending review Topic 3]]+Dataset[[#This Row],[2029/30 From - Spending review Topic 4]]+Dataset[[#This Row],[2029/30 From - Other reallocations]]","v":0},{"$f":"Dataset[[#This Row],[2027/28 To - Spending review Topic 1]]+Dataset[[#This Row],[2027/28 To - Spending review Topic 2]]+Dataset[[#This Row],[2027/28 To - Spending review Topic 3]]+Dataset[[#This Row],[2027/28 To - Spending review Topic 4]]+Dataset[[#This Row],[2027/28 To - Other reallocations]]","v":0},{"$f":"Dataset[[#This Row],[2028/29 To - Spending review Topic 1]]+Dataset[[#This Row],[2028/29 To - Spending review Topic 2]]+Dataset[[#This Row],[2028/29 To - Spending review Topic 3]]+Dataset[[#This Row],[2028/29 To - Spending review Topic 4]]+Dataset[[#This Row],[2028/29 To - Other reallocations]]","v":0},{"$f":"Dataset[[#This Row],[2029/30 To - Spending review Topic 1]]+Dataset[[#This Row],[2029/30 To - Spending review Topic 2]]+Dataset[[#This Row],[2029/30 To - Spending review Topic 3]]+Dataset[[#This Row],[2029/30 To - Spending review Topic 4]]+Dataset[[#This Row],[2029/30 To - Other reallocations]]","v":0},{"$f":"Dataset[[#This Row],[2027/28 Targeted savings]]+Dataset[[#This Row],[2027/28 From - Total]]","v":0},{"$f":"Dataset[[#This Row],[2028/29 Targeted savings]]+Dataset[[#This Row],[2028/29 From - Total]]","v":0},{"$f":"Dataset[[#This Row],[2029/30 Targeted savings]]+Dataset[[#This Row],[2029/30 From - Total]]","v":0},{"$f":"Dataset[[#This Row],[2026/27 Targeted savings]]","v":0},{"$f":"SUM(Dataset[[#This Row],[2027/28 Targeted savings]],Dataset[[#This Row],[2027/28 From - Total]],Dataset[[#This Row],[2027/28 To - Total]])","v":0},{"$f":"SUM(Dataset[[#This Row],[2028/29 Targeted savings]],Dataset[[#This Row],[2028/29 From - Total]],Dataset[[#This Row],[2028/29 To - Total]])","v":0},{"$f":"SUM(Dataset[[#This Row],[2029/30 Targeted savings]],Dataset[[#This Row],[2029/30 From - Total]],Dataset[[#This Row],[2029/30 To - Total]])","v":0},{"$f":"Dataset[[#This Row],[2026/27 Baseline]]+Dataset[[#This Row],[2026/27 Total change]]","v":500},{"$f":"Dataset[[#This Row],[2027/28 Baseline]]+Dataset[[#This Row],[2027/28 Total change]]","v":461},{"$f":"Dataset[[#This Row],[2028/29 Baseline]]+Dataset[[#This Row],[2028/29 Total change]]","v":476},{"$f":"Dataset[[#This Row],[2029/30 Baseline]]+Dataset[[#This Row],[2029/30 Total change]]","v":490}]
["NAT|Non-transfer","30|Legal services (G&S)","2027_28","MTEC2027",30,2,3,32871,351,"30","02","03","032871","000351","30|02|03|000351","01","01","02","14","14","01|01|02|14|14","National","Communications and Digital Technologies","ICT Transformation, Global Partnerships and State-Owned Enterprises Governance","State-Owned Enterprise Governance and Investment Management","Non-transfer","Current","Current payments","Goods and services","Legal services (G&S)","Legal services (G&S)","Economic development","Economic regulation and infrastructure","NAT",0,0,0,100,100,100,0,0,0,0,0,null,null,null,null,null,null,null,null,null,null,null,null,null,null,null,null,null,null,null,null,null,null,null,null,null,null,null,null,null,null,null,null,null,null,{"$f":"Dataset[[#This Row],[2027/28 From - Spending review Topic 1]]+Dataset[[#This Row],[2027/28 From - Spending review Topic 2]]+Dataset[[#This Row],[2027/28 From - Spending review Topic 3]]+Dataset[[#This Row],[2027/28 From - Spending review Topic 4]]+Dataset[[#This Row],[2027/28 From - Other reallocations]]","v":0},{"$f":"Dataset[[#This Row],[2028/29 From - Spending review Topic 1]]+Dataset[[#This Row],[2028/29 From - Spending review Topic 2]]+Dataset[[#This Row],[2028/29 From - Spending review Topic 3]]+Dataset[[#This Row],[2028/29 From - Spending review Topic 4]]+Dataset[[#This Row],[2028/29 From - Other reallocations]]","v":0},{"$f":"Dataset[[#This Row],[2029/30 From - Spending review Topic 1]]+Dataset[[#This Row],[2029/30 From - Spending review Topic 2]]+Dataset[[#This Row],[2029/30 From - Spending review Topic 3]]+Dataset[[#This Row],[2029/30 From - Spending review Topic 4]]+Dataset[[#This Row],[2029/30 From - Other reallocations]]","v":0},{"$f":"Dataset[[#This Row],[2027/28 To - Spending review Topic 1]]+Dataset[[#This Row],[2027/28 To - Spending review Topic 2]]+Dataset[[#This Row],[2027/28 To - Spending review Topic 3]]+Dataset[[#This Row],[2027/28 To - Spending review Topic 4]]+Dataset[[#This Row],[2027/28 To - Other reallocations]]","v":0},{"$f":"Dataset[[#This Row],[2028/29 To - Spending review Topic 1]]+Dataset[[#This Row],[2028/29 To - Spending review Topic 2]]+Dataset[[#This Row],[2028/29 To - Spending review Topic 3]]+Dataset[[#This Row],[2028/29 To - Spending review Topic 4]]+Dataset[[#This Row],[2028/29 To - Other reallocations]]","v":0},{"$f":"Dataset[[#This Row],[2029/30 To - Spending review Topic 1]]+Dataset[[#This Row],[2029/30 To - Spending review Topic 2]]+Dataset[[#This Row],[2029/30 To - Spending review Topic 3]]+Dataset[[#This Row],[2029/30 To - Spending review Topic 4]]+Dataset[[#This Row],[2029/30 To - Other reallocations]]","v":0},{"$f":"Dataset[[#This Row],[2027/28 Targeted savings]]+Dataset[[#This Row],[2027/28 From - Total]]","v":0},{"$f":"Dataset[[#This Row],[2028/29 Targeted savings]]+Dataset[[#This Row],[2028/29 From - Total]]","v":0},{"$f":"Dataset[[#This Row],[2029/30 Targeted savings]]+Dataset[[#This Row],[2029/30 From - Total]]","v":0},{"$f":"Dataset[[#This Row],[2026/27 Targeted savings]]","v":0},{"$f":"SUM(Dataset[[#This Row],[2027/28 Targeted savings]],Dataset[[#This Row],[2027/28 From - Total]],Dataset[[#This Row],[2027/28 To - Total]])","v":0},{"$f":"SUM(Dataset[[#This Row],[2028/29 Targeted savings]],Dataset[[#This Row],[2028/29 From - Total]],Dataset[[#This Row],[2028/29 To - Total]])","v":0},{"$f":"SUM(Dataset[[#This Row],[2029/30 Targeted savings]],Dataset[[#This Row],[2029/30 From - Total]],Dataset[[#This Row],[2029/30 To - Total]])","v":0},{"$f":"Dataset[[#This Row],[2026/27 Baseline]]+Dataset[[#This Row],[2026/27 Total change]]","v":0},{"$f":"Dataset[[#This Row],[2027/28 Baseline]]+Dataset[[#This Row],[2027/28 Total change]]","v":0},{"$f":"Dataset[[#This Row],[2028/29 Baseline]]+Dataset[[#This Row],[2028/29 Total change]]","v":0},{"$f":"Dataset[[#This Row],[2029/30 Baseline]]+Dataset[[#This Row],[2029/30 Total change]]","v":0}]
["NAT|Non-transfer","30|Agency and support/outsourced services","2027_28","MTEC2027",30,2,3,32872,352,"30","02","03","032872","000352","30|02|03|000352","01","01","02","17","17","01|01|02|17|17","National","Communications and Digital Technologies","ICT Transformation, Global Partnerships and State-Owned Enterprises Governance","State-Owned Enterprise Governance and Investment Management","Non-transfer","Current","Current payments","Goods and services","Agency and support/outsourced services","Agency and support/outsourced services","Economic development","Economic regulation and infrastructure","NAT",0,0,0,0,0,0,0,0,158,163,168,null,null,null,null,null,null,null,null,null,null,null,null,null,null,null,null,null,null,null,null,null,null,null,null,null,null,null,null,null,null,null,null,null,null,{"$f":"Dataset[[#This Row],[2027/28 From - Spending review Topic 1]]+Dataset[[#This Row],[2027/28 From - Spending review Topic 2]]+Dataset[[#This Row],[2027/28 From - Spending review Topic 3]]+Dataset[[#This Row],[2027/28 From - Spending review Topic 4]]+Dataset[[#This Row],[2027/28 From - Other reallocations]]","v":0},{"$f":"Dataset[[#This Row],[2028/29 From - Spending review Topic 1]]+Dataset[[#This Row],[2028/29 From - Spending review Topic 2]]+Dataset[[#This Row],[2028/29 From - Spending review Topic 3]]+Dataset[[#This Row],[2028/29 From - Spending review Topic 4]]+Dataset[[#This Row],[2028/29 From - Other reallocations]]","v":0},{"$f":"Dataset[[#This Row],[2029/30 From - Spending review Topic 1]]+Dataset[[#This Row],[2029/30 From - Spending review Topic 2]]+Dataset[[#This Row],[2029/30 From - Spending review Topic 3]]+Dataset[[#This Row],[2029/30 From - Spending review Topic 4]]+Dataset[[#This Row],[2029/30 From - Other reallocations]]","v":0},{"$f":"Dataset[[#This Row],[2027/28 To - Spending review Topic 1]]+Dataset[[#This Row],[2027/28 To - Spending review Topic 2]]+Dataset[[#This Row],[2027/28 To - Spending review Topic 3]]+Dataset[[#This Row],[2027/28 To - Spending review Topic 4]]+Dataset[[#This Row],[2027/28 To - Other reallocations]]","v":0},{"$f":"Dataset[[#This Row],[2028/29 To - Spending review Topic 1]]+Dataset[[#This Row],[2028/29 To - Spending review Topic 2]]+Dataset[[#This Row],[2028/29 To - Spending review Topic 3]]+Dataset[[#This Row],[2028/29 To - Spending review Topic 4]]+Dataset[[#This Row],[2028/29 To - Other reallocations]]","v":0},{"$f":"Dataset[[#This Row],[2029/30 To - Spending review Topic 1]]+Dataset[[#This Row],[2029/30 To - Spending review Topic 2]]+Dataset[[#This Row],[2029/30 To - Spending review Topic 3]]+Dataset[[#This Row],[2029/30 To - Spending review Topic 4]]+Dataset[[#This Row],[2029/30 To - Other reallocations]]","v":0},{"$f":"Dataset[[#This Row],[2027/28 Targeted savings]]+Dataset[[#This Row],[2027/28 From - Total]]","v":0},{"$f":"Dataset[[#This Row],[2028/29 Targeted savings]]+Dataset[[#This Row],[2028/29 From - Total]]","v":0},{"$f":"Dataset[[#This Row],[2029/30 Targeted savings]]+Dataset[[#This Row],[2029/30 From - Total]]","v":0},{"$f":"Dataset[[#This Row],[2026/27 Targeted savings]]","v":0},{"$f":"SUM(Dataset[[#This Row],[2027/28 Targeted savings]],Dataset[[#This Row],[2027/28 From - Total]],Dataset[[#This Row],[2027/28 To - Total]])","v":0},{"$f":"SUM(Dataset[[#This Row],[2028/29 Targeted savings]],Dataset[[#This Row],[2028/29 From - Total]],Dataset[[#This Row],[2028/29 To - Total]])","v":0},{"$f":"SUM(Dataset[[#This Row],[2029/30 Targeted savings]],Dataset[[#This Row],[2029/30 From - Total]],Dataset[[#This Row],[2029/30 To - Total]])","v":0},{"$f":"Dataset[[#This Row],[2026/27 Baseline]]+Dataset[[#This Row],[2026/27 Total change]]","v":0},{"$f":"Dataset[[#This Row],[2027/28 Baseline]]+Dataset[[#This Row],[2027/28 Total change]]","v":158},{"$f":"Dataset[[#This Row],[2028/29 Baseline]]+Dataset[[#This Row],[2028/29 Total change]]","v":163},{"$f":"Dataset[[#This Row],[2029/30 Baseline]]+Dataset[[#This Row],[2029/30 Total change]]","v":168}]
["NAT|Non-transfer","30|Entertainment","2027_28","MTEC2027",30,2,3,32873,353,"30","02","03","032873","000353","30|02|03|000353","01","01","02","18","18","01|01|02|18|18","National","Communications and Digital Technologies","ICT Transformation, Global Partnerships and State-Owned Enterprises Governance","State-Owned Enterprise Governance and Investment Management","Non-transfer","Current","Current payments","Goods and services","Entertainment","Entertainment","Economic development","Economic regulation and infrastructure","NAT",0,0,0,0,0,0,0,4,2,2,2,null,null,null,null,null,null,null,null,null,null,null,null,null,null,null,null,null,null,null,null,null,null,null,null,null,null,null,null,null,null,null,null,null,null,{"$f":"Dataset[[#This Row],[2027/28 From - Spending review Topic 1]]+Dataset[[#This Row],[2027/28 From - Spending review Topic 2]]+Dataset[[#This Row],[2027/28 From - Spending review Topic 3]]+Dataset[[#This Row],[2027/28 From - Spending review Topic 4]]+Dataset[[#This Row],[2027/28 From - Other reallocations]]","v":0},{"$f":"Dataset[[#This Row],[2028/29 From - Spending review Topic 1]]+Dataset[[#This Row],[2028/29 From - Spending review Topic 2]]+Dataset[[#This Row],[2028/29 From - Spending review Topic 3]]+Dataset[[#This Row],[2028/29 From - Spending review Topic 4]]+Dataset[[#This Row],[2028/29 From - Other reallocations]]","v":0},{"$f":"Dataset[[#This Row],[2029/30 From - Spending review Topic 1]]+Dataset[[#This Row],[2029/30 From - Spending review Topic 2]]+Dataset[[#This Row],[2029/30 From - Spending review Topic 3]]+Dataset[[#This Row],[2029/30 From - Spending review Topic 4]]+Dataset[[#This Row],[2029/30 From - Other reallocations]]","v":0},{"$f":"Dataset[[#This Row],[2027/28 To - Spending review Topic 1]]+Dataset[[#This Row],[2027/28 To - Spending review Topic 2]]+Dataset[[#This Row],[2027/28 To - Spending review Topic 3]]+Dataset[[#This Row],[2027/28 To - Spending review Topic 4]]+Dataset[[#This Row],[2027/28 To - Other reallocations]]","v":0},{"$f":"Dataset[[#This Row],[2028/29 To - Spending review Topic 1]]+Dataset[[#This Row],[2028/29 To - Spending review Topic 2]]+Dataset[[#This Row],[2028/29 To - Spending review Topic 3]]+Dataset[[#This Row],[2028/29 To - Spending review Topic 4]]+Dataset[[#This Row],[2028/29 To - Other reallocations]]","v":0},{"$f":"Dataset[[#This Row],[2029/30 To - Spending review Topic 1]]+Dataset[[#This Row],[2029/30 To - Spending review Topic 2]]+Dataset[[#This Row],[2029/30 To - Spending review Topic 3]]+Dataset[[#This Row],[2029/30 To - Spending review Topic 4]]+Dataset[[#This Row],[2029/30 To - Other reallocations]]","v":0},{"$f":"Dataset[[#This Row],[2027/28 Targeted savings]]+Dataset[[#This Row],[2027/28 From - Total]]","v":0},{"$f":"Dataset[[#This Row],[2028/29 Targeted savings]]+Dataset[[#This Row],[2028/29 From - Total]]","v":0},{"$f":"Dataset[[#This Row],[2029/30 Targeted savings]]+Dataset[[#This Row],[2029/30 From - Total]]","v":0},{"$f":"Dataset[[#This Row],[2026/27 Targeted savings]]","v":0},{"$f":"SUM(Dataset[[#This Row],[2027/28 Targeted savings]],Dataset[[#This Row],[2027/28 From - Total]],Dataset[[#This Row],[2027/28 To - Total]])","v":0},{"$f":"SUM(Dataset[[#This Row],[2028/29 Targeted savings]],Dataset[[#This Row],[2028/29 From - Total]],Dataset[[#This Row],[2028/29 To - Total]])","v":0},{"$f":"SUM(Dataset[[#This Row],[2029/30 Targeted savings]],Dataset[[#This Row],[2029/30 From - Total]],Dataset[[#This Row],[2029/30 To - Total]])","v":0},{"$f":"Dataset[[#This Row],[2026/27 Baseline]]+Dataset[[#This Row],[2026/27 Total change]]","v":4},{"$f":"Dataset[[#This Row],[2027/28 Baseline]]+Dataset[[#This Row],[2027/28 Total change]]","v":2},{"$f":"Dataset[[#This Row],[2028/29 Baseline]]+Dataset[[#This Row],[2028/29 Total change]]","v":2},{"$f":"Dataset[[#This Row],[2029/30 Baseline]]+Dataset[[#This Row],[2029/30 Total change]]","v":2}]
["NAT|Non-transfer","30|Consumable supplies","2027_28","MTEC2027",30,2,3,32874,354,"30","02","03","032874","000354","30|02|03|000354","01","01","02","31","31","01|01|02|31|31","National","Communications and Digital Technologies","ICT Transformation, Global Partnerships and State-Owned Enterprises Governance","State-Owned Enterprise Governance and Investment Management","Non-transfer","Current","Current payments","Goods and services","Consumable supplies","Consumable supplies","Economic development","Economic regulation and infrastructure","NAT",0,4,0,0,0,0,0,0,1,1,1,null,null,null,null,null,null,null,null,null,null,null,null,null,null,null,null,null,null,null,null,null,null,null,null,null,null,null,null,null,null,null,null,null,null,{"$f":"Dataset[[#This Row],[2027/28 From - Spending review Topic 1]]+Dataset[[#This Row],[2027/28 From - Spending review Topic 2]]+Dataset[[#This Row],[2027/28 From - Spending review Topic 3]]+Dataset[[#This Row],[2027/28 From - Spending review Topic 4]]+Dataset[[#This Row],[2027/28 From - Other reallocations]]","v":0},{"$f":"Dataset[[#This Row],[2028/29 From - Spending review Topic 1]]+Dataset[[#This Row],[2028/29 From - Spending review Topic 2]]+Dataset[[#This Row],[2028/29 From - Spending review Topic 3]]+Dataset[[#This Row],[2028/29 From - Spending review Topic 4]]+Dataset[[#This Row],[2028/29 From - Other reallocations]]","v":0},{"$f":"Dataset[[#This Row],[2029/30 From - Spending review Topic 1]]+Dataset[[#This Row],[2029/30 From - Spending review Topic 2]]+Dataset[[#This Row],[2029/30 From - Spending review Topic 3]]+Dataset[[#This Row],[2029/30 From - Spending review Topic 4]]+Dataset[[#This Row],[2029/30 From - Other reallocations]]","v":0},{"$f":"Dataset[[#This Row],[2027/28 To - Spending review Topic 1]]+Dataset[[#This Row],[2027/28 To - Spending review Topic 2]]+Dataset[[#This Row],[2027/28 To - Spending review Topic 3]]+Dataset[[#This Row],[2027/28 To - Spending review Topic 4]]+Dataset[[#This Row],[2027/28 To - Other reallocations]]","v":0},{"$f":"Dataset[[#This Row],[2028/29 To - Spending review Topic 1]]+Dataset[[#This Row],[2028/29 To - Spending review Topic 2]]+Dataset[[#This Row],[2028/29 To - Spending review Topic 3]]+Dataset[[#This Row],[2028/29 To - Spending review Topic 4]]+Dataset[[#This Row],[2028/29 To - Other reallocations]]","v":0},{"$f":"Dataset[[#This Row],[2029/30 To - Spending review Topic 1]]+Dataset[[#This Row],[2029/30 To - Spending review Topic 2]]+Dataset[[#This Row],[2029/30 To - Spending review Topic 3]]+Dataset[[#This Row],[2029/30 To - Spending review Topic 4]]+Dataset[[#This Row],[2029/30 To - Other reallocations]]","v":0},{"$f":"Dataset[[#This Row],[2027/28 Targeted savings]]+Dataset[[#This Row],[2027/28 From - Total]]","v":0},{"$f":"Dataset[[#This Row],[2028/29 Targeted savings]]+Dataset[[#This Row],[2028/29 From - Total]]","v":0},{"$f":"Dataset[[#This Row],[2029/30 Targeted savings]]+Dataset[[#This Row],[2029/30 From - Total]]","v":0},{"$f":"Dataset[[#This Row],[2026/27 Targeted savings]]","v":0},{"$f":"SUM(Dataset[[#This Row],[2027/28 Targeted savings]],Dataset[[#This Row],[2027/28 From - Total]],Dataset[[#This Row],[2027/28 To - Total]])","v":0},{"$f":"SUM(Dataset[[#This Row],[2028/29 Targeted savings]],Dataset[[#This Row],[2028/29 From - Total]],Dataset[[#This Row],[2028/29 To - Total]])","v":0},{"$f":"SUM(Dataset[[#This Row],[2029/30 Targeted savings]],Dataset[[#This Row],[2029/30 From - Total]],Dataset[[#This Row],[2029/30 To - Total]])","v":0},{"$f":"Dataset[[#This Row],[2026/27 Baseline]]+Dataset[[#This Row],[2026/27 Total change]]","v":0},{"$f":"Dataset[[#This Row],[2027/28 Baseline]]+Dataset[[#This Row],[2027/28 Total change]]","v":1},{"$f":"Dataset[[#This Row],[2028/29 Baseline]]+Dataset[[#This Row],[2028/29 Total change]]","v":1},{"$f":"Dataset[[#This Row],[2029/30 Baseline]]+Dataset[[#This Row],[2029/30 Total change]]","v":1}]
["NAT|Non-transfer","30|Consumables: Stationery, printing and office supplies","2027_28","MTEC2027",30,2,3,32875,355,"30","02","03","032875","000355","30|02|03|000355","01","01","02","32","32","01|01|02|32|32","National","Communications and Digital Technologies","ICT Transformation, Global Partnerships and State-Owned Enterprises Governance","State-Owned Enterprise Governance and Investment Management","Non-transfer","Current","Current payments","Goods and services","Consumables: Stationery, printing and office supplies","Consumables: Stationery, printing and office supplies","Economic development","Economic regulation and infrastructure","NAT",0,42,38,20,20,20,0,10,91,94,97,null,null,null,null,null,null,null,null,null,null,null,null,null,null,null,null,null,null,null,null,null,null,null,null,null,null,null,null,null,null,null,null,null,null,{"$f":"Dataset[[#This Row],[2027/28 From - Spending review Topic 1]]+Dataset[[#This Row],[2027/28 From - Spending review Topic 2]]+Dataset[[#This Row],[2027/28 From - Spending review Topic 3]]+Dataset[[#This Row],[2027/28 From - Spending review Topic 4]]+Dataset[[#This Row],[2027/28 From - Other reallocations]]","v":0},{"$f":"Dataset[[#This Row],[2028/29 From - Spending review Topic 1]]+Dataset[[#This Row],[2028/29 From - Spending review Topic 2]]+Dataset[[#This Row],[2028/29 From - Spending review Topic 3]]+Dataset[[#This Row],[2028/29 From - Spending review Topic 4]]+Dataset[[#This Row],[2028/29 From - Other reallocations]]","v":0},{"$f":"Dataset[[#This Row],[2029/30 From - Spending review Topic 1]]+Dataset[[#This Row],[2029/30 From - Spending review Topic 2]]+Dataset[[#This Row],[2029/30 From - Spending review Topic 3]]+Dataset[[#This Row],[2029/30 From - Spending review Topic 4]]+Dataset[[#This Row],[2029/30 From - Other reallocations]]","v":0},{"$f":"Dataset[[#This Row],[2027/28 To - Spending review Topic 1]]+Dataset[[#This Row],[2027/28 To - Spending review Topic 2]]+Dataset[[#This Row],[2027/28 To - Spending review Topic 3]]+Dataset[[#This Row],[2027/28 To - Spending review Topic 4]]+Dataset[[#This Row],[2027/28 To - Other reallocations]]","v":0},{"$f":"Dataset[[#This Row],[2028/29 To - Spending review Topic 1]]+Dataset[[#This Row],[2028/29 To - Spending review Topic 2]]+Dataset[[#This Row],[2028/29 To - Spending review Topic 3]]+Dataset[[#This Row],[2028/29 To - Spending review Topic 4]]+Dataset[[#This Row],[2028/29 To - Other reallocations]]","v":0},{"$f":"Dataset[[#This Row],[2029/30 To - Spending review Topic 1]]+Dataset[[#This Row],[2029/30 To - Spending review Topic 2]]+Dataset[[#This Row],[2029/30 To - Spending review Topic 3]]+Dataset[[#This Row],[2029/30 To - Spending review Topic 4]]+Dataset[[#This Row],[2029/30 To - Other reallocations]]","v":0},{"$f":"Dataset[[#This Row],[2027/28 Targeted savings]]+Dataset[[#This Row],[2027/28 From - Total]]","v":0},{"$f":"Dataset[[#This Row],[2028/29 Targeted savings]]+Dataset[[#This Row],[2028/29 From - Total]]","v":0},{"$f":"Dataset[[#This Row],[2029/30 Targeted savings]]+Dataset[[#This Row],[2029/30 From - Total]]","v":0},{"$f":"Dataset[[#This Row],[2026/27 Targeted savings]]","v":0},{"$f":"SUM(Dataset[[#This Row],[2027/28 Targeted savings]],Dataset[[#This Row],[2027/28 From - Total]],Dataset[[#This Row],[2027/28 To - Total]])","v":0},{"$f":"SUM(Dataset[[#This Row],[2028/29 Targeted savings]],Dataset[[#This Row],[2028/29 From - Total]],Dataset[[#This Row],[2028/29 To - Total]])","v":0},{"$f":"SUM(Dataset[[#This Row],[2029/30 Targeted savings]],Dataset[[#This Row],[2029/30 From - Total]],Dataset[[#This Row],[2029/30 To - Total]])","v":0},{"$f":"Dataset[[#This Row],[2026/27 Baseline]]+Dataset[[#This Row],[2026/27 Total change]]","v":10},{"$f":"Dataset[[#This Row],[2027/28 Baseline]]+Dataset[[#This Row],[2027/28 Total change]]","v":91},{"$f":"Dataset[[#This Row],[2028/29 Baseline]]+Dataset[[#This Row],[2028/29 Total change]]","v":94},{"$f":"Dataset[[#This Row],[2029/30 Baseline]]+Dataset[[#This Row],[2029/30 Total change]]","v":97}]
["NAT|Non-transfer","30|Operating leases","2027_28","MTEC2027",30,2,3,32876,356,"30","02","03","032876","000356","30|02|03|000356","01","01","02","33","33","01|01|02|33|33","National","Communications and Digital Technologies","ICT Transformation, Global Partnerships and State-Owned Enterprises Governance","State-Owned Enterprise Governance and Investment Management","Non-transfer","Current","Current payments","Goods and services","Operating leases","Operating leases","Economic development","Economic regulation and infrastructure","NAT",0,0,0,0,0,0,0,7,0,0,0,null,null,null,null,null,null,null,null,null,null,null,null,null,null,null,null,null,null,null,null,null,null,null,null,null,null,null,null,null,null,null,null,null,null,{"$f":"Dataset[[#This Row],[2027/28 From - Spending review Topic 1]]+Dataset[[#This Row],[2027/28 From - Spending review Topic 2]]+Dataset[[#This Row],[2027/28 From - Spending review Topic 3]]+Dataset[[#This Row],[2027/28 From - Spending review Topic 4]]+Dataset[[#This Row],[2027/28 From - Other reallocations]]","v":0},{"$f":"Dataset[[#This Row],[2028/29 From - Spending review Topic 1]]+Dataset[[#This Row],[2028/29 From - Spending review Topic 2]]+Dataset[[#This Row],[2028/29 From - Spending review Topic 3]]+Dataset[[#This Row],[2028/29 From - Spending review Topic 4]]+Dataset[[#This Row],[2028/29 From - Other reallocations]]","v":0},{"$f":"Dataset[[#This Row],[2029/30 From - Spending review Topic 1]]+Dataset[[#This Row],[2029/30 From - Spending review Topic 2]]+Dataset[[#This Row],[2029/30 From - Spending review Topic 3]]+Dataset[[#This Row],[2029/30 From - Spending review Topic 4]]+Dataset[[#This Row],[2029/30 From - Other reallocations]]","v":0},{"$f":"Dataset[[#This Row],[2027/28 To - Spending review Topic 1]]+Dataset[[#This Row],[2027/28 To - Spending review Topic 2]]+Dataset[[#This Row],[2027/28 To - Spending review Topic 3]]+Dataset[[#This Row],[2027/28 To - Spending review Topic 4]]+Dataset[[#This Row],[2027/28 To - Other reallocations]]","v":0},{"$f":"Dataset[[#This Row],[2028/29 To - Spending review Topic 1]]+Dataset[[#This Row],[2028/29 To - Spending review Topic 2]]+Dataset[[#This Row],[2028/29 To - Spending review Topic 3]]+Dataset[[#This Row],[2028/29 To - Spending review Topic 4]]+Dataset[[#This Row],[2028/29 To - Other reallocations]]","v":0},{"$f":"Dataset[[#This Row],[2029/30 To - Spending review Topic 1]]+Dataset[[#This Row],[2029/30 To - Spending review Topic 2]]+Dataset[[#This Row],[2029/30 To - Spending review Topic 3]]+Dataset[[#This Row],[2029/30 To - Spending review Topic 4]]+Dataset[[#This Row],[2029/30 To - Other reallocations]]","v":0},{"$f":"Dataset[[#This Row],[2027/28 Targeted savings]]+Dataset[[#This Row],[2027/28 From - Total]]","v":0},{"$f":"Dataset[[#This Row],[2028/29 Targeted savings]]+Dataset[[#This Row],[2028/29 From - Total]]","v":0},{"$f":"Dataset[[#This Row],[2029/30 Targeted savings]]+Dataset[[#This Row],[2029/30 From - Total]]","v":0},{"$f":"Dataset[[#This Row],[2026/27 Targeted savings]]","v":0},{"$f":"SUM(Dataset[[#This Row],[2027/28 Targeted savings]],Dataset[[#This Row],[2027/28 From - Total]],Dataset[[#This Row],[2027/28 To - Total]])","v":0},{"$f":"SUM(Dataset[[#This Row],[2028/29 Targeted savings]],Dataset[[#This Row],[2028/29 From - Total]],Dataset[[#This Row],[2028/29 To - Total]])","v":0},{"$f":"SUM(Dataset[[#This Row],[2029/30 Targeted savings]],Dataset[[#This Row],[2029/30 From - Total]],Dataset[[#This Row],[2029/30 To - Total]])","v":0},{"$f":"Dataset[[#This Row],[2026/27 Baseline]]+Dataset[[#This Row],[2026/27 Total change]]","v":7},{"$f":"Dataset[[#This Row],[2027/28 Baseline]]+Dataset[[#This Row],[2027/28 Total change]]","v":0},{"$f":"Dataset[[#This Row],[2028/29 Baseline]]+Dataset[[#This Row],[2028/29 Total change]]","v":0},{"$f":"Dataset[[#This Row],[2029/30 Baseline]]+Dataset[[#This Row],[2029/30 Total change]]","v":0}]
["NAT|Non-transfer","30|Travel and subsistence","2027_28","MTEC2027",30,2,3,32877,357,"30","02","03","032877","000357","30|02|03|000357","01","01","02","37","37","01|01|02|37|37","National","Communications and Digital Technologies","ICT Transformation, Global Partnerships and State-Owned Enterprises Governance","State-Owned Enterprise Governance and Investment Management","Non-transfer","Current","Current payments","Goods and services","Travel and subsistence","Travel and subsistence","Economic development","Economic regulation and infrastructure","NAT",40,31,5,210,210,210,0,309,210,216,223,null,null,null,null,null,null,null,null,null,null,null,null,null,null,null,null,null,null,null,null,null,null,null,null,null,null,null,null,null,null,null,null,null,null,{"$f":"Dataset[[#This Row],[2027/28 From - Spending review Topic 1]]+Dataset[[#This Row],[2027/28 From - Spending review Topic 2]]+Dataset[[#This Row],[2027/28 From - Spending review Topic 3]]+Dataset[[#This Row],[2027/28 From - Spending review Topic 4]]+Dataset[[#This Row],[2027/28 From - Other reallocations]]","v":0},{"$f":"Dataset[[#This Row],[2028/29 From - Spending review Topic 1]]+Dataset[[#This Row],[2028/29 From - Spending review Topic 2]]+Dataset[[#This Row],[2028/29 From - Spending review Topic 3]]+Dataset[[#This Row],[2028/29 From - Spending review Topic 4]]+Dataset[[#This Row],[2028/29 From - Other reallocations]]","v":0},{"$f":"Dataset[[#This Row],[2029/30 From - Spending review Topic 1]]+Dataset[[#This Row],[2029/30 From - Spending review Topic 2]]+Dataset[[#This Row],[2029/30 From - Spending review Topic 3]]+Dataset[[#This Row],[2029/30 From - Spending review Topic 4]]+Dataset[[#This Row],[2029/30 From - Other reallocations]]","v":0},{"$f":"Dataset[[#This Row],[2027/28 To - Spending review Topic 1]]+Dataset[[#This Row],[2027/28 To - Spending review Topic 2]]+Dataset[[#This Row],[2027/28 To - Spending review Topic 3]]+Dataset[[#This Row],[2027/28 To - Spending review Topic 4]]+Dataset[[#This Row],[2027/28 To - Other reallocations]]","v":0},{"$f":"Dataset[[#This Row],[2028/29 To - Spending review Topic 1]]+Dataset[[#This Row],[2028/29 To - Spending review Topic 2]]+Dataset[[#This Row],[2028/29 To - Spending review Topic 3]]+Dataset[[#This Row],[2028/29 To - Spending review Topic 4]]+Dataset[[#This Row],[2028/29 To - Other reallocations]]","v":0},{"$f":"Dataset[[#This Row],[2029/30 To - Spending review Topic 1]]+Dataset[[#This Row],[2029/30 To - Spending review Topic 2]]+Dataset[[#This Row],[2029/30 To - Spending review Topic 3]]+Dataset[[#This Row],[2029/30 To - Spending review Topic 4]]+Dataset[[#This Row],[2029/30 To - Other reallocations]]","v":0},{"$f":"Dataset[[#This Row],[2027/28 Targeted savings]]+Dataset[[#This Row],[2027/28 From - Total]]","v":0},{"$f":"Dataset[[#This Row],[2028/29 Targeted savings]]+Dataset[[#This Row],[2028/29 From - Total]]","v":0},{"$f":"Dataset[[#This Row],[2029/30 Targeted savings]]+Dataset[[#This Row],[2029/30 From - Total]]","v":0},{"$f":"Dataset[[#This Row],[2026/27 Targeted savings]]","v":0},{"$f":"SUM(Dataset[[#This Row],[2027/28 Targeted savings]],Dataset[[#This Row],[2027/28 From - Total]],Dataset[[#This Row],[2027/28 To - Total]])","v":0},{"$f":"SUM(Dataset[[#This Row],[2028/29 Targeted savings]],Dataset[[#This Row],[2028/29 From - Total]],Dataset[[#This Row],[2028/29 To - Total]])","v":0},{"$f":"SUM(Dataset[[#This Row],[2029/30 Targeted savings]],Dataset[[#This Row],[2029/30 From - Total]],Dataset[[#This Row],[2029/30 To - Total]])","v":0},{"$f":"Dataset[[#This Row],[2026/27 Baseline]]+Dataset[[#This Row],[2026/27 Total change]]","v":309},{"$f":"Dataset[[#This Row],[2027/28 Baseline]]+Dataset[[#This Row],[2027/28 Total change]]","v":210},{"$f":"Dataset[[#This Row],[2028/29 Baseline]]+Dataset[[#This Row],[2028/29 Total change]]","v":216},{"$f":"Dataset[[#This Row],[2029/30 Baseline]]+Dataset[[#This Row],[2029/30 Total change]]","v":223}]
["NAT|Non-transfer","30|Training and development","2027_28","MTEC2027",30,2,3,32878,358,"30","02","03","032878","000358","30|02|03|000358","01","01","02","38","38","01|01|02|38|38","National","Communications and Digital Technologies","ICT Transformation, Global Partnerships and State-Owned Enterprises Governance","State-Owned Enterprise Governance and Investment Management","Non-transfer","Current","Current payments","Goods and services","Training and development","Training and development","Economic development","Economic regulation and infrastructure","NAT",15,17,43,25,25,25,0,80,67,69,71,null,null,null,null,null,null,null,null,null,null,null,null,null,null,null,null,null,null,null,null,null,null,null,null,null,null,null,null,null,null,null,null,null,null,{"$f":"Dataset[[#This Row],[2027/28 From - Spending review Topic 1]]+Dataset[[#This Row],[2027/28 From - Spending review Topic 2]]+Dataset[[#This Row],[2027/28 From - Spending review Topic 3]]+Dataset[[#This Row],[2027/28 From - Spending review Topic 4]]+Dataset[[#This Row],[2027/28 From - Other reallocations]]","v":0},{"$f":"Dataset[[#This Row],[2028/29 From - Spending review Topic 1]]+Dataset[[#This Row],[2028/29 From - Spending review Topic 2]]+Dataset[[#This Row],[2028/29 From - Spending review Topic 3]]+Dataset[[#This Row],[2028/29 From - Spending review Topic 4]]+Dataset[[#This Row],[2028/29 From - Other reallocations]]","v":0},{"$f":"Dataset[[#This Row],[2029/30 From - Spending review Topic 1]]+Dataset[[#This Row],[2029/30 From - Spending review Topic 2]]+Dataset[[#This Row],[2029/30 From - Spending review Topic 3]]+Dataset[[#This Row],[2029/30 From - Spending review Topic 4]]+Dataset[[#This Row],[2029/30 From - Other reallocations]]","v":0},{"$f":"Dataset[[#This Row],[2027/28 To - Spending review Topic 1]]+Dataset[[#This Row],[2027/28 To - Spending review Topic 2]]+Dataset[[#This Row],[2027/28 To - Spending review Topic 3]]+Dataset[[#This Row],[2027/28 To - Spending review Topic 4]]+Dataset[[#This Row],[2027/28 To - Other reallocations]]","v":0},{"$f":"Dataset[[#This Row],[2028/29 To - Spending review Topic 1]]+Dataset[[#This Row],[2028/29 To - Spending review Topic 2]]+Dataset[[#This Row],[2028/29 To - Spending review Topic 3]]+Dataset[[#This Row],[2028/29 To - Spending review Topic 4]]+Dataset[[#This Row],[2028/29 To - Other reallocations]]","v":0},{"$f":"Dataset[[#This Row],[2029/30 To - Spending review Topic 1]]+Dataset[[#This Row],[2029/30 To - Spending review Topic 2]]+Dataset[[#This Row],[2029/30 To - Spending review Topic 3]]+Dataset[[#This Row],[2029/30 To - Spending review Topic 4]]+Dataset[[#This Row],[2029/30 To - Other reallocations]]","v":0},{"$f":"Dataset[[#This Row],[2027/28 Targeted savings]]+Dataset[[#This Row],[2027/28 From - Total]]","v":0},{"$f":"Dataset[[#This Row],[2028/29 Targeted savings]]+Dataset[[#This Row],[2028/29 From - Total]]","v":0},{"$f":"Dataset[[#This Row],[2029/30 Targeted savings]]+Dataset[[#This Row],[2029/30 From - Total]]","v":0},{"$f":"Dataset[[#This Row],[2026/27 Targeted savings]]","v":0},{"$f":"SUM(Dataset[[#This Row],[2027/28 Targeted savings]],Dataset[[#This Row],[2027/28 From - Total]],Dataset[[#This Row],[2027/28 To - Total]])","v":0},{"$f":"SUM(Dataset[[#This Row],[2028/29 Targeted savings]],Dataset[[#This Row],[2028/29 From - Total]],Dataset[[#This Row],[2028/29 To - Total]])","v":0},{"$f":"SUM(Dataset[[#This Row],[2029/30 Targeted savings]],Dataset[[#This Row],[2029/30 From - Total]],Dataset[[#This Row],[2029/30 To - Total]])","v":0},{"$f":"Dataset[[#This Row],[2026/27 Baseline]]+Dataset[[#This Row],[2026/27 Total change]]","v":80},{"$f":"Dataset[[#This Row],[2027/28 Baseline]]+Dataset[[#This Row],[2027/28 Total change]]","v":67},{"$f":"Dataset[[#This Row],[2028/29 Baseline]]+Dataset[[#This Row],[2028/29 Total change]]","v":69},{"$f":"Dataset[[#This Row],[2029/30 Baseline]]+Dataset[[#This Row],[2029/30 Total change]]","v":71}]
["NAT|Non-transfer","30|Operating payments","2027_28","MTEC2027",30,2,3,32879,359,"30","02","03","032879","000359","30|02|03|000359","01","01","02","39","39","01|01|02|39|39","National","Communications and Digital Technologies","ICT Transformation, Global Partnerships and State-Owned Enterprises Governance","State-Owned Enterprise Governance and Investment Management","Non-transfer","Current","Current payments","Goods and services","Operating payments","Operating payments","Economic development","Economic regulation and infrastructure","NAT",7,0,0,30,30,30,0,0,32,33,34,null,null,null,null,null,null,null,null,null,null,null,null,null,null,null,null,null,null,null,null,null,null,null,null,null,null,null,null,null,null,null,null,null,null,{"$f":"Dataset[[#This Row],[2027/28 From - Spending review Topic 1]]+Dataset[[#This Row],[2027/28 From - Spending review Topic 2]]+Dataset[[#This Row],[2027/28 From - Spending review Topic 3]]+Dataset[[#This Row],[2027/28 From - Spending review Topic 4]]+Dataset[[#This Row],[2027/28 From - Other reallocations]]","v":0},{"$f":"Dataset[[#This Row],[2028/29 From - Spending review Topic 1]]+Dataset[[#This Row],[2028/29 From - Spending review Topic 2]]+Dataset[[#This Row],[2028/29 From - Spending review Topic 3]]+Dataset[[#This Row],[2028/29 From - Spending review Topic 4]]+Dataset[[#This Row],[2028/29 From - Other reallocations]]","v":0},{"$f":"Dataset[[#This Row],[2029/30 From - Spending review Topic 1]]+Dataset[[#This Row],[2029/30 From - Spending review Topic 2]]+Dataset[[#This Row],[2029/30 From - Spending review Topic 3]]+Dataset[[#This Row],[2029/30 From - Spending review Topic 4]]+Dataset[[#This Row],[2029/30 From - Other reallocations]]","v":0},{"$f":"Dataset[[#This Row],[2027/28 To - Spending review Topic 1]]+Dataset[[#This Row],[2027/28 To - Spending review Topic 2]]+Dataset[[#This Row],[2027/28 To - Spending review Topic 3]]+Dataset[[#This Row],[2027/28 To - Spending review Topic 4]]+Dataset[[#This Row],[2027/28 To - Other reallocations]]","v":0},{"$f":"Dataset[[#This Row],[2028/29 To - Spending review Topic 1]]+Dataset[[#This Row],[2028/29 To - Spending review Topic 2]]+Dataset[[#This Row],[2028/29 To - Spending review Topic 3]]+Dataset[[#This Row],[2028/29 To - Spending review Topic 4]]+Dataset[[#This Row],[2028/29 To - Other reallocations]]","v":0},{"$f":"Dataset[[#This Row],[2029/30 To - Spending review Topic 1]]+Dataset[[#This Row],[2029/30 To - Spending review Topic 2]]+Dataset[[#This Row],[2029/30 To - Spending review Topic 3]]+Dataset[[#This Row],[2029/30 To - Spending review Topic 4]]+Dataset[[#This Row],[2029/30 To - Other reallocations]]","v":0},{"$f":"Dataset[[#This Row],[2027/28 Targeted savings]]+Dataset[[#This Row],[2027/28 From - Total]]","v":0},{"$f":"Dataset[[#This Row],[2028/29 Targeted savings]]+Dataset[[#This Row],[2028/29 From - Total]]","v":0},{"$f":"Dataset[[#This Row],[2029/30 Targeted savings]]+Dataset[[#This Row],[2029/30 From - Total]]","v":0},{"$f":"Dataset[[#This Row],[2026/27 Targeted savings]]","v":0},{"$f":"SUM(Dataset[[#This Row],[2027/28 Targeted savings]],Dataset[[#This Row],[2027/28 From - Total]],Dataset[[#This Row],[2027/28 To - Total]])","v":0},{"$f":"SUM(Dataset[[#This Row],[2028/29 Targeted savings]],Dataset[[#This Row],[2028/29 From - Total]],Dataset[[#This Row],[2028/29 To - Total]])","v":0},{"$f":"SUM(Dataset[[#This Row],[2029/30 Targeted savings]],Dataset[[#This Row],[2029/30 From - Total]],Dataset[[#This Row],[2029/30 To - Total]])","v":0},{"$f":"Dataset[[#This Row],[2026/27 Baseline]]+Dataset[[#This Row],[2026/27 Total change]]","v":0},{"$f":"Dataset[[#This Row],[2027/28 Baseline]]+Dataset[[#This Row],[2027/28 Total change]]","v":32},{"$f":"Dataset[[#This Row],[2028/29 Baseline]]+Dataset[[#This Row],[2028/29 Total change]]","v":33},{"$f":"Dataset[[#This Row],[2029/30 Baseline]]+Dataset[[#This Row],[2029/30 Total change]]","v":34}]
["NAT|Non-transfer","30|Venues and facilities","2027_28","MTEC2027",30,2,3,32880,360,"30","02","03","032880","000360","30|02|03|000360","01","01","02","40","40","01|01|02|40|40","National","Communications and Digital Technologies","ICT Transformation, Global Partnerships and State-Owned Enterprises Governance","State-Owned Enterprise Governance and Investment Management","Non-transfer","Current","Current payments","Goods and services","Venues and facilities","Venues and facilities","Economic development","Economic regulation and infrastructure","NAT",0,0,0,0,0,0,0,20,0,0,0,null,null,null,null,null,null,null,null,null,null,null,null,null,null,null,null,null,null,null,null,null,null,null,null,null,null,null,null,null,null,null,null,null,null,{"$f":"Dataset[[#This Row],[2027/28 From - Spending review Topic 1]]+Dataset[[#This Row],[2027/28 From - Spending review Topic 2]]+Dataset[[#This Row],[2027/28 From - Spending review Topic 3]]+Dataset[[#This Row],[2027/28 From - Spending review Topic 4]]+Dataset[[#This Row],[2027/28 From - Other reallocations]]","v":0},{"$f":"Dataset[[#This Row],[2028/29 From - Spending review Topic 1]]+Dataset[[#This Row],[2028/29 From - Spending review Topic 2]]+Dataset[[#This Row],[2028/29 From - Spending review Topic 3]]+Dataset[[#This Row],[2028/29 From - Spending review Topic 4]]+Dataset[[#This Row],[2028/29 From - Other reallocations]]","v":0},{"$f":"Dataset[[#This Row],[2029/30 From - Spending review Topic 1]]+Dataset[[#This Row],[2029/30 From - Spending review Topic 2]]+Dataset[[#This Row],[2029/30 From - Spending review Topic 3]]+Dataset[[#This Row],[2029/30 From - Spending review Topic 4]]+Dataset[[#This Row],[2029/30 From - Other reallocations]]","v":0},{"$f":"Dataset[[#This Row],[2027/28 To - Spending review Topic 1]]+Dataset[[#This Row],[2027/28 To - Spending review Topic 2]]+Dataset[[#This Row],[2027/28 To - Spending review Topic 3]]+Dataset[[#This Row],[2027/28 To - Spending review Topic 4]]+Dataset[[#This Row],[2027/28 To - Other reallocations]]","v":0},{"$f":"Dataset[[#This Row],[2028/29 To - Spending review Topic 1]]+Dataset[[#This Row],[2028/29 To - Spending review Topic 2]]+Dataset[[#This Row],[2028/29 To - Spending review Topic 3]]+Dataset[[#This Row],[2028/29 To - Spending review Topic 4]]+Dataset[[#This Row],[2028/29 To - Other reallocations]]","v":0},{"$f":"Dataset[[#This Row],[2029/30 To - Spending review Topic 1]]+Dataset[[#This Row],[2029/30 To - Spending review Topic 2]]+Dataset[[#This Row],[2029/30 To - Spending review Topic 3]]+Dataset[[#This Row],[2029/30 To - Spending review Topic 4]]+Dataset[[#This Row],[2029/30 To - Other reallocations]]","v":0},{"$f":"Dataset[[#This Row],[2027/28 Targeted savings]]+Dataset[[#This Row],[2027/28 From - Total]]","v":0},{"$f":"Dataset[[#This Row],[2028/29 Targeted savings]]+Dataset[[#This Row],[2028/29 From - Total]]","v":0},{"$f":"Dataset[[#This Row],[2029/30 Targeted savings]]+Dataset[[#This Row],[2029/30 From - Total]]","v":0},{"$f":"Dataset[[#This Row],[2026/27 Targeted savings]]","v":0},{"$f":"SUM(Dataset[[#This Row],[2027/28 Targeted savings]],Dataset[[#This Row],[2027/28 From - Total]],Dataset[[#This Row],[2027/28 To - Total]])","v":0},{"$f":"SUM(Dataset[[#This Row],[2028/29 Targeted savings]],Dataset[[#This Row],[2028/29 From - Total]],Dataset[[#This Row],[2028/29 To - Total]])","v":0},{"$f":"SUM(Dataset[[#This Row],[2029/30 Targeted savings]],Dataset[[#This Row],[2029/30 From - Total]],Dataset[[#This Row],[2029/30 To - Total]])","v":0},{"$f":"Dataset[[#This Row],[2026/27 Baseline]]+Dataset[[#This Row],[2026/27 Total change]]","v":20},{"$f":"Dataset[[#This Row],[2027/28 Baseline]]+Dataset[[#This Row],[2027/28 Total change]]","v":0},{"$f":"Dataset[[#This Row],[2028/29 Baseline]]+Dataset[[#This Row],[2028/29 Total change]]","v":0},{"$f":"Dataset[[#This Row],[2029/30 Baseline]]+Dataset[[#This Row],[2029/30 Total change]]","v":0}]
["NAT|Households","30|Other transfers to households","2027_28","MTEC2027",30,2,3,32881,361,"30","02","03","032881","000361","30|02|03|000361","01","02","10","53","57","01|02|10|53|57","National","Communications and Digital Technologies","ICT Transformation, Global Partnerships and State-Owned Enterprises Governance","State-Owned Enterprise Governance and Investment Management","Households","Current","Transfers and subsidies","Households","Other transfers to households","Other transfers to households","Economic development","Economic regulation and infrastructure","NAT",0,2,0,0,0,0,0,0,0,0,0,null,null,null,null,null,null,null,null,null,null,null,null,null,null,null,null,null,null,null,null,null,null,null,null,null,null,null,null,null,null,null,null,null,null,{"$f":"Dataset[[#This Row],[2027/28 From - Spending review Topic 1]]+Dataset[[#This Row],[2027/28 From - Spending review Topic 2]]+Dataset[[#This Row],[2027/28 From - Spending review Topic 3]]+Dataset[[#This Row],[2027/28 From - Spending review Topic 4]]+Dataset[[#This Row],[2027/28 From - Other reallocations]]","v":0},{"$f":"Dataset[[#This Row],[2028/29 From - Spending review Topic 1]]+Dataset[[#This Row],[2028/29 From - Spending review Topic 2]]+Dataset[[#This Row],[2028/29 From - Spending review Topic 3]]+Dataset[[#This Row],[2028/29 From - Spending review Topic 4]]+Dataset[[#This Row],[2028/29 From - Other reallocations]]","v":0},{"$f":"Dataset[[#This Row],[2029/30 From - Spending review Topic 1]]+Dataset[[#This Row],[2029/30 From - Spending review Topic 2]]+Dataset[[#This Row],[2029/30 From - Spending review Topic 3]]+Dataset[[#This Row],[2029/30 From - Spending review Topic 4]]+Dataset[[#This Row],[2029/30 From - Other reallocations]]","v":0},{"$f":"Dataset[[#This Row],[2027/28 To - Spending review Topic 1]]+Dataset[[#This Row],[2027/28 To - Spending review Topic 2]]+Dataset[[#This Row],[2027/28 To - Spending review Topic 3]]+Dataset[[#This Row],[2027/28 To - Spending review Topic 4]]+Dataset[[#This Row],[2027/28 To - Other reallocations]]","v":0},{"$f":"Dataset[[#This Row],[2028/29 To - Spending review Topic 1]]+Dataset[[#This Row],[2028/29 To - Spending review Topic 2]]+Dataset[[#This Row],[2028/29 To - Spending review Topic 3]]+Dataset[[#This Row],[2028/29 To - Spending review Topic 4]]+Dataset[[#This Row],[2028/29 To - Other reallocations]]","v":0},{"$f":"Dataset[[#This Row],[2029/30 To - Spending review Topic 1]]+Dataset[[#This Row],[2029/30 To - Spending review Topic 2]]+Dataset[[#This Row],[2029/30 To - Spending review Topic 3]]+Dataset[[#This Row],[2029/30 To - Spending review Topic 4]]+Dataset[[#This Row],[2029/30 To - Other reallocations]]","v":0},{"$f":"Dataset[[#This Row],[2027/28 Targeted savings]]+Dataset[[#This Row],[2027/28 From - Total]]","v":0},{"$f":"Dataset[[#This Row],[2028/29 Targeted savings]]+Dataset[[#This Row],[2028/29 From - Total]]","v":0},{"$f":"Dataset[[#This Row],[2029/30 Targeted savings]]+Dataset[[#This Row],[2029/30 From - Total]]","v":0},{"$f":"Dataset[[#This Row],[2026/27 Targeted savings]]","v":0},{"$f":"SUM(Dataset[[#This Row],[2027/28 Targeted savings]],Dataset[[#This Row],[2027/28 From - Total]],Dataset[[#This Row],[2027/28 To - Total]])","v":0},{"$f":"SUM(Dataset[[#This Row],[2028/29 Targeted savings]],Dataset[[#This Row],[2028/29 From - Total]],Dataset[[#This Row],[2028/29 To - Total]])","v":0},{"$f":"SUM(Dataset[[#This Row],[2029/30 Targeted savings]],Dataset[[#This Row],[2029/30 From - Total]],Dataset[[#This Row],[2029/30 To - Total]])","v":0},{"$f":"Dataset[[#This Row],[2026/27 Baseline]]+Dataset[[#This Row],[2026/27 Total change]]","v":0},{"$f":"Dataset[[#This Row],[2027/28 Baseline]]+Dataset[[#This Row],[2027/28 Total change]]","v":0},{"$f":"Dataset[[#This Row],[2028/29 Baseline]]+Dataset[[#This Row],[2028/29 Total change]]","v":0},{"$f":"Dataset[[#This Row],[2029/30 Baseline]]+Dataset[[#This Row],[2029/30 Total change]]","v":0}]
["NAT|Non-transfer","30|Other machinery and equipment","2027_28","MTEC2027",30,2,3,32882,362,"30","02","03","032882","000362","30|02|03|000362","02","03","12","57","61","02|03|12|57|61","National","Communications and Digital Technologies","ICT Transformation, Global Partnerships and State-Owned Enterprises Governance","State-Owned Enterprise Governance and Investment Management","Non-transfer","Capital","Payments for capital assets","Machinery and equipment","Other machinery and equipment","Other machinery and equipment","Economic development","Economic regulation and infrastructure","NAT",0,0,68,73,73,73,0,100,104,81,83,null,null,null,null,null,null,null,null,null,null,null,null,null,null,null,null,null,null,null,null,null,null,null,null,null,null,null,null,null,null,null,null,null,null,{"$f":"Dataset[[#This Row],[2027/28 From - Spending review Topic 1]]+Dataset[[#This Row],[2027/28 From - Spending review Topic 2]]+Dataset[[#This Row],[2027/28 From - Spending review Topic 3]]+Dataset[[#This Row],[2027/28 From - Spending review Topic 4]]+Dataset[[#This Row],[2027/28 From - Other reallocations]]","v":0},{"$f":"Dataset[[#This Row],[2028/29 From - Spending review Topic 1]]+Dataset[[#This Row],[2028/29 From - Spending review Topic 2]]+Dataset[[#This Row],[2028/29 From - Spending review Topic 3]]+Dataset[[#This Row],[2028/29 From - Spending review Topic 4]]+Dataset[[#This Row],[2028/29 From - Other reallocations]]","v":0},{"$f":"Dataset[[#This Row],[2029/30 From - Spending review Topic 1]]+Dataset[[#This Row],[2029/30 From - Spending review Topic 2]]+Dataset[[#This Row],[2029/30 From - Spending review Topic 3]]+Dataset[[#This Row],[2029/30 From - Spending review Topic 4]]+Dataset[[#This Row],[2029/30 From - Other reallocations]]","v":0},{"$f":"Dataset[[#This Row],[2027/28 To - Spending review Topic 1]]+Dataset[[#This Row],[2027/28 To - Spending review Topic 2]]+Dataset[[#This Row],[2027/28 To - Spending review Topic 3]]+Dataset[[#This Row],[2027/28 To - Spending review Topic 4]]+Dataset[[#This Row],[2027/28 To - Other reallocations]]","v":0},{"$f":"Dataset[[#This Row],[2028/29 To - Spending review Topic 1]]+Dataset[[#This Row],[2028/29 To - Spending review Topic 2]]+Dataset[[#This Row],[2028/29 To - Spending review Topic 3]]+Dataset[[#This Row],[2028/29 To - Spending review Topic 4]]+Dataset[[#This Row],[2028/29 To - Other reallocations]]","v":0},{"$f":"Dataset[[#This Row],[2029/30 To - Spending review Topic 1]]+Dataset[[#This Row],[2029/30 To - Spending review Topic 2]]+Dataset[[#This Row],[2029/30 To - Spending review Topic 3]]+Dataset[[#This Row],[2029/30 To - Spending review Topic 4]]+Dataset[[#This Row],[2029/30 To - Other reallocations]]","v":0},{"$f":"Dataset[[#This Row],[2027/28 Targeted savings]]+Dataset[[#This Row],[2027/28 From - Total]]","v":0},{"$f":"Dataset[[#This Row],[2028/29 Targeted savings]]+Dataset[[#This Row],[2028/29 From - Total]]","v":0},{"$f":"Dataset[[#This Row],[2029/30 Targeted savings]]+Dataset[[#This Row],[2029/30 From - Total]]","v":0},{"$f":"Dataset[[#This Row],[2026/27 Targeted savings]]","v":0},{"$f":"SUM(Dataset[[#This Row],[2027/28 Targeted savings]],Dataset[[#This Row],[2027/28 From - Total]],Dataset[[#This Row],[2027/28 To - Total]])","v":0},{"$f":"SUM(Dataset[[#This Row],[2028/29 Targeted savings]],Dataset[[#This Row],[2028/29 From - Total]],Dataset[[#This Row],[2028/29 To - Total]])","v":0},{"$f":"SUM(Dataset[[#This Row],[2029/30 Targeted savings]],Dataset[[#This Row],[2029/30 From - Total]],Dataset[[#This Row],[2029/30 To - Total]])","v":0},{"$f":"Dataset[[#This Row],[2026/27 Baseline]]+Dataset[[#This Row],[2026/27 Total change]]","v":100},{"$f":"Dataset[[#This Row],[2027/28 Baseline]]+Dataset[[#This Row],[2027/28 Total change]]","v":104},{"$f":"Dataset[[#This Row],[2028/29 Baseline]]+Dataset[[#This Row],[2028/29 Total change]]","v":81},{"$f":"Dataset[[#This Row],[2029/30 Baseline]]+Dataset[[#This Row],[2029/30 Total change]]","v":83}]
["NAT|Non-transfer","30|Salaries and wages","2027_28","MTEC2027",30,2,4,32883,363,"30","02","04","032883","000363","30|02|04|000363","01","01","01","01","01","01|01|01|01|01","National","Communications and Digital Technologies","ICT Transformation, Global Partnerships and State-Owned Enterprises Governance","ICT Sector Transformation Programmes","Non-transfer","Current","Current payments","Compensation of employees","Salaries and wages","Salaries and wages","Economic development","Economic regulation and infrastructure","NAT",6969,7219,8067,8673,7173,7173,0,8206,10247,10687,11009,null,null,null,null,null,null,null,null,null,null,null,null,null,null,null,null,null,null,null,null,null,null,null,null,null,null,null,null,null,null,null,null,null,null,{"$f":"Dataset[[#This Row],[2027/28 From - Spending review Topic 1]]+Dataset[[#This Row],[2027/28 From - Spending review Topic 2]]+Dataset[[#This Row],[2027/28 From - Spending review Topic 3]]+Dataset[[#This Row],[2027/28 From - Spending review Topic 4]]+Dataset[[#This Row],[2027/28 From - Other reallocations]]","v":0},{"$f":"Dataset[[#This Row],[2028/29 From - Spending review Topic 1]]+Dataset[[#This Row],[2028/29 From - Spending review Topic 2]]+Dataset[[#This Row],[2028/29 From - Spending review Topic 3]]+Dataset[[#This Row],[2028/29 From - Spending review Topic 4]]+Dataset[[#This Row],[2028/29 From - Other reallocations]]","v":0},{"$f":"Dataset[[#This Row],[2029/30 From - Spending review Topic 1]]+Dataset[[#This Row],[2029/30 From - Spending review Topic 2]]+Dataset[[#This Row],[2029/30 From - Spending review Topic 3]]+Dataset[[#This Row],[2029/30 From - Spending review Topic 4]]+Dataset[[#This Row],[2029/30 From - Other reallocations]]","v":0},{"$f":"Dataset[[#This Row],[2027/28 To - Spending review Topic 1]]+Dataset[[#This Row],[2027/28 To - Spending review Topic 2]]+Dataset[[#This Row],[2027/28 To - Spending review Topic 3]]+Dataset[[#This Row],[2027/28 To - Spending review Topic 4]]+Dataset[[#This Row],[2027/28 To - Other reallocations]]","v":0},{"$f":"Dataset[[#This Row],[2028/29 To - Spending review Topic 1]]+Dataset[[#This Row],[2028/29 To - Spending review Topic 2]]+Dataset[[#This Row],[2028/29 To - Spending review Topic 3]]+Dataset[[#This Row],[2028/29 To - Spending review Topic 4]]+Dataset[[#This Row],[2028/29 To - Other reallocations]]","v":0},{"$f":"Dataset[[#This Row],[2029/30 To - Spending review Topic 1]]+Dataset[[#This Row],[2029/30 To - Spending review Topic 2]]+Dataset[[#This Row],[2029/30 To - Spending review Topic 3]]+Dataset[[#This Row],[2029/30 To - Spending review Topic 4]]+Dataset[[#This Row],[2029/30 To - Other reallocations]]","v":0},{"$f":"Dataset[[#This Row],[2027/28 Targeted savings]]+Dataset[[#This Row],[2027/28 From - Total]]","v":0},{"$f":"Dataset[[#This Row],[2028/29 Targeted savings]]+Dataset[[#This Row],[2028/29 From - Total]]","v":0},{"$f":"Dataset[[#This Row],[2029/30 Targeted savings]]+Dataset[[#This Row],[2029/30 From - Total]]","v":0},{"$f":"Dataset[[#This Row],[2026/27 Targeted savings]]","v":0},{"$f":"SUM(Dataset[[#This Row],[2027/28 Targeted savings]],Dataset[[#This Row],[2027/28 From - Total]],Dataset[[#This Row],[2027/28 To - Total]])","v":0},{"$f":"SUM(Dataset[[#This Row],[2028/29 Targeted savings]],Dataset[[#This Row],[2028/29 From - Total]],Dataset[[#This Row],[2028/29 To - Total]])","v":0},{"$f":"SUM(Dataset[[#This Row],[2029/30 Targeted savings]],Dataset[[#This Row],[2029/30 From - Total]],Dataset[[#This Row],[2029/30 To - Total]])","v":0},{"$f":"Dataset[[#This Row],[2026/27 Baseline]]+Dataset[[#This Row],[2026/27 Total change]]","v":8206},{"$f":"Dataset[[#This Row],[2027/28 Baseline]]+Dataset[[#This Row],[2027/28 Total change]]","v":10247},{"$f":"Dataset[[#This Row],[2028/29 Baseline]]+Dataset[[#This Row],[2028/29 Total change]]","v":10687},{"$f":"Dataset[[#This Row],[2029/30 Baseline]]+Dataset[[#This Row],[2029/30 Total change]]","v":11009}]
["NAT|Non-transfer","30|Social contributions","2027_28","MTEC2027",30,2,4,32884,364,"30","02","04","032884","000364","30|02|04|000364","01","01","01","02","02","01|01|01|02|02","National","Communications and Digital Technologies","ICT Transformation, Global Partnerships and State-Owned Enterprises Governance","ICT Sector Transformation Programmes","Non-transfer","Current","Current payments","Compensation of employees","Social contributions","Social contributions","Economic development","Economic regulation and infrastructure","NAT",1001,1026,1101,1227,1227,1227,0,1282,1121,1171,1206,null,null,null,null,null,null,null,null,null,null,null,null,null,null,null,null,null,null,null,null,null,null,null,null,null,null,null,null,null,null,null,null,null,null,{"$f":"Dataset[[#This Row],[2027/28 From - Spending review Topic 1]]+Dataset[[#This Row],[2027/28 From - Spending review Topic 2]]+Dataset[[#This Row],[2027/28 From - Spending review Topic 3]]+Dataset[[#This Row],[2027/28 From - Spending review Topic 4]]+Dataset[[#This Row],[2027/28 From - Other reallocations]]","v":0},{"$f":"Dataset[[#This Row],[2028/29 From - Spending review Topic 1]]+Dataset[[#This Row],[2028/29 From - Spending review Topic 2]]+Dataset[[#This Row],[2028/29 From - Spending review Topic 3]]+Dataset[[#This Row],[2028/29 From - Spending review Topic 4]]+Dataset[[#This Row],[2028/29 From - Other reallocations]]","v":0},{"$f":"Dataset[[#This Row],[2029/30 From - Spending review Topic 1]]+Dataset[[#This Row],[2029/30 From - Spending review Topic 2]]+Dataset[[#This Row],[2029/30 From - Spending review Topic 3]]+Dataset[[#This Row],[2029/30 From - Spending review Topic 4]]+Dataset[[#This Row],[2029/30 From - Other reallocations]]","v":0},{"$f":"Dataset[[#This Row],[2027/28 To - Spending review Topic 1]]+Dataset[[#This Row],[2027/28 To - Spending review Topic 2]]+Dataset[[#This Row],[2027/28 To - Spending review Topic 3]]+Dataset[[#This Row],[2027/28 To - Spending review Topic 4]]+Dataset[[#This Row],[2027/28 To - Other reallocations]]","v":0},{"$f":"Dataset[[#This Row],[2028/29 To - Spending review Topic 1]]+Dataset[[#This Row],[2028/29 To - Spending review Topic 2]]+Dataset[[#This Row],[2028/29 To - Spending review Topic 3]]+Dataset[[#This Row],[2028/29 To - Spending review Topic 4]]+Dataset[[#This Row],[2028/29 To - Other reallocations]]","v":0},{"$f":"Dataset[[#This Row],[2029/30 To - Spending review Topic 1]]+Dataset[[#This Row],[2029/30 To - Spending review Topic 2]]+Dataset[[#This Row],[2029/30 To - Spending review Topic 3]]+Dataset[[#This Row],[2029/30 To - Spending review Topic 4]]+Dataset[[#This Row],[2029/30 To - Other reallocations]]","v":0},{"$f":"Dataset[[#This Row],[2027/28 Targeted savings]]+Dataset[[#This Row],[2027/28 From - Total]]","v":0},{"$f":"Dataset[[#This Row],[2028/29 Targeted savings]]+Dataset[[#This Row],[2028/29 From - Total]]","v":0},{"$f":"Dataset[[#This Row],[2029/30 Targeted savings]]+Dataset[[#This Row],[2029/30 From - Total]]","v":0},{"$f":"Dataset[[#This Row],[2026/27 Targeted savings]]","v":0},{"$f":"SUM(Dataset[[#This Row],[2027/28 Targeted savings]],Dataset[[#This Row],[2027/28 From - Total]],Dataset[[#This Row],[2027/28 To - Total]])","v":0},{"$f":"SUM(Dataset[[#This Row],[2028/29 Targeted savings]],Dataset[[#This Row],[2028/29 From - Total]],Dataset[[#This Row],[2028/29 To - Total]])","v":0},{"$f":"SUM(Dataset[[#This Row],[2029/30 Targeted savings]],Dataset[[#This Row],[2029/30 From - Total]],Dataset[[#This Row],[2029/30 To - Total]])","v":0},{"$f":"Dataset[[#This Row],[2026/27 Baseline]]+Dataset[[#This Row],[2026/27 Total change]]","v":1282},{"$f":"Dataset[[#This Row],[2027/28 Baseline]]+Dataset[[#This Row],[2027/28 Total change]]","v":1121},{"$f":"Dataset[[#This Row],[2028/29 Baseline]]+Dataset[[#This Row],[2028/29 Total change]]","v":1171},{"$f":"Dataset[[#This Row],[2029/30 Baseline]]+Dataset[[#This Row],[2029/30 Total change]]","v":1206}]
["NAT|Non-transfer","30|Administrative fees","2027_28","MTEC2027",30,2,4,32885,365,"30","02","04","032885","000365","30|02|04|000365","01","01","02","03","03","01|01|02|03|03","National","Communications and Digital Technologies","ICT Transformation, Global Partnerships and State-Owned Enterprises Governance","ICT Sector Transformation Programmes","Non-transfer","Current","Current payments","Goods and services","Administrative fees","Administrative fees","Economic development","Economic regulation and infrastructure","NAT",383,314,404,140,140,140,0,405,440,40,41,null,null,null,null,null,null,null,null,null,null,null,null,null,null,null,null,null,null,null,null,null,null,null,null,null,null,null,null,null,null,null,null,null,null,{"$f":"Dataset[[#This Row],[2027/28 From - Spending review Topic 1]]+Dataset[[#This Row],[2027/28 From - Spending review Topic 2]]+Dataset[[#This Row],[2027/28 From - Spending review Topic 3]]+Dataset[[#This Row],[2027/28 From - Spending review Topic 4]]+Dataset[[#This Row],[2027/28 From - Other reallocations]]","v":0},{"$f":"Dataset[[#This Row],[2028/29 From - Spending review Topic 1]]+Dataset[[#This Row],[2028/29 From - Spending review Topic 2]]+Dataset[[#This Row],[2028/29 From - Spending review Topic 3]]+Dataset[[#This Row],[2028/29 From - Spending review Topic 4]]+Dataset[[#This Row],[2028/29 From - Other reallocations]]","v":0},{"$f":"Dataset[[#This Row],[2029/30 From - Spending review Topic 1]]+Dataset[[#This Row],[2029/30 From - Spending review Topic 2]]+Dataset[[#This Row],[2029/30 From - Spending review Topic 3]]+Dataset[[#This Row],[2029/30 From - Spending review Topic 4]]+Dataset[[#This Row],[2029/30 From - Other reallocations]]","v":0},{"$f":"Dataset[[#This Row],[2027/28 To - Spending review Topic 1]]+Dataset[[#This Row],[2027/28 To - Spending review Topic 2]]+Dataset[[#This Row],[2027/28 To - Spending review Topic 3]]+Dataset[[#This Row],[2027/28 To - Spending review Topic 4]]+Dataset[[#This Row],[2027/28 To - Other reallocations]]","v":0},{"$f":"Dataset[[#This Row],[2028/29 To - Spending review Topic 1]]+Dataset[[#This Row],[2028/29 To - Spending review Topic 2]]+Dataset[[#This Row],[2028/29 To - Spending review Topic 3]]+Dataset[[#This Row],[2028/29 To - Spending review Topic 4]]+Dataset[[#This Row],[2028/29 To - Other reallocations]]","v":0},{"$f":"Dataset[[#This Row],[2029/30 To - Spending review Topic 1]]+Dataset[[#This Row],[2029/30 To - Spending review Topic 2]]+Dataset[[#This Row],[2029/30 To - Spending review Topic 3]]+Dataset[[#This Row],[2029/30 To - Spending review Topic 4]]+Dataset[[#This Row],[2029/30 To - Other reallocations]]","v":0},{"$f":"Dataset[[#This Row],[2027/28 Targeted savings]]+Dataset[[#This Row],[2027/28 From - Total]]","v":0},{"$f":"Dataset[[#This Row],[2028/29 Targeted savings]]+Dataset[[#This Row],[2028/29 From - Total]]","v":0},{"$f":"Dataset[[#This Row],[2029/30 Targeted savings]]+Dataset[[#This Row],[2029/30 From - Total]]","v":0},{"$f":"Dataset[[#This Row],[2026/27 Targeted savings]]","v":0},{"$f":"SUM(Dataset[[#This Row],[2027/28 Targeted savings]],Dataset[[#This Row],[2027/28 From - Total]],Dataset[[#This Row],[2027/28 To - Total]])","v":0},{"$f":"SUM(Dataset[[#This Row],[2028/29 Targeted savings]],Dataset[[#This Row],[2028/29 From - Total]],Dataset[[#This Row],[2028/29 To - Total]])","v":0},{"$f":"SUM(Dataset[[#This Row],[2029/30 Targeted savings]],Dataset[[#This Row],[2029/30 From - Total]],Dataset[[#This Row],[2029/30 To - Total]])","v":0},{"$f":"Dataset[[#This Row],[2026/27 Baseline]]+Dataset[[#This Row],[2026/27 Total change]]","v":405},{"$f":"Dataset[[#This Row],[2027/28 Baseline]]+Dataset[[#This Row],[2027/28 Total change]]","v":440},{"$f":"Dataset[[#This Row],[2028/29 Baseline]]+Dataset[[#This Row],[2028/29 Total change]]","v":40},{"$f":"Dataset[[#This Row],[2029/30 Baseline]]+Dataset[[#This Row],[2029/30 Total change]]","v":41}]
["NAT|Non-transfer","30|Advertising","2027_28","MTEC2027",30,2,4,32886,366,"30","02","04","032886","000366","30|02|04|000366","01","01","02","04","04","01|01|02|04|04","National","Communications and Digital Technologies","ICT Transformation, Global Partnerships and State-Owned Enterprises Governance","ICT Sector Transformation Programmes","Non-transfer","Current","Current payments","Goods and services","Advertising","Advertising","Economic development","Economic regulation and infrastructure","NAT",1136,1023,291,300,300,300,0,300,350,300,309,null,null,null,null,null,null,null,null,null,null,null,null,null,null,null,null,null,null,null,null,null,null,null,null,null,null,null,null,null,null,null,null,null,null,{"$f":"Dataset[[#This Row],[2027/28 From - Spending review Topic 1]]+Dataset[[#This Row],[2027/28 From - Spending review Topic 2]]+Dataset[[#This Row],[2027/28 From - Spending review Topic 3]]+Dataset[[#This Row],[2027/28 From - Spending review Topic 4]]+Dataset[[#This Row],[2027/28 From - Other reallocations]]","v":0},{"$f":"Dataset[[#This Row],[2028/29 From - Spending review Topic 1]]+Dataset[[#This Row],[2028/29 From - Spending review Topic 2]]+Dataset[[#This Row],[2028/29 From - Spending review Topic 3]]+Dataset[[#This Row],[2028/29 From - Spending review Topic 4]]+Dataset[[#This Row],[2028/29 From - Other reallocations]]","v":0},{"$f":"Dataset[[#This Row],[2029/30 From - Spending review Topic 1]]+Dataset[[#This Row],[2029/30 From - Spending review Topic 2]]+Dataset[[#This Row],[2029/30 From - Spending review Topic 3]]+Dataset[[#This Row],[2029/30 From - Spending review Topic 4]]+Dataset[[#This Row],[2029/30 From - Other reallocations]]","v":0},{"$f":"Dataset[[#This Row],[2027/28 To - Spending review Topic 1]]+Dataset[[#This Row],[2027/28 To - Spending review Topic 2]]+Dataset[[#This Row],[2027/28 To - Spending review Topic 3]]+Dataset[[#This Row],[2027/28 To - Spending review Topic 4]]+Dataset[[#This Row],[2027/28 To - Other reallocations]]","v":0},{"$f":"Dataset[[#This Row],[2028/29 To - Spending review Topic 1]]+Dataset[[#This Row],[2028/29 To - Spending review Topic 2]]+Dataset[[#This Row],[2028/29 To - Spending review Topic 3]]+Dataset[[#This Row],[2028/29 To - Spending review Topic 4]]+Dataset[[#This Row],[2028/29 To - Other reallocations]]","v":0},{"$f":"Dataset[[#This Row],[2029/30 To - Spending review Topic 1]]+Dataset[[#This Row],[2029/30 To - Spending review Topic 2]]+Dataset[[#This Row],[2029/30 To - Spending review Topic 3]]+Dataset[[#This Row],[2029/30 To - Spending review Topic 4]]+Dataset[[#This Row],[2029/30 To - Other reallocations]]","v":0},{"$f":"Dataset[[#This Row],[2027/28 Targeted savings]]+Dataset[[#This Row],[2027/28 From - Total]]","v":0},{"$f":"Dataset[[#This Row],[2028/29 Targeted savings]]+Dataset[[#This Row],[2028/29 From - Total]]","v":0},{"$f":"Dataset[[#This Row],[2029/30 Targeted savings]]+Dataset[[#This Row],[2029/30 From - Total]]","v":0},{"$f":"Dataset[[#This Row],[2026/27 Targeted savings]]","v":0},{"$f":"SUM(Dataset[[#This Row],[2027/28 Targeted savings]],Dataset[[#This Row],[2027/28 From - Total]],Dataset[[#This Row],[2027/28 To - Total]])","v":0},{"$f":"SUM(Dataset[[#This Row],[2028/29 Targeted savings]],Dataset[[#This Row],[2028/29 From - Total]],Dataset[[#This Row],[2028/29 To - Total]])","v":0},{"$f":"SUM(Dataset[[#This Row],[2029/30 Targeted savings]],Dataset[[#This Row],[2029/30 From - Total]],Dataset[[#This Row],[2029/30 To - Total]])","v":0},{"$f":"Dataset[[#This Row],[2026/27 Baseline]]+Dataset[[#This Row],[2026/27 Total change]]","v":300},{"$f":"Dataset[[#This Row],[2027/28 Baseline]]+Dataset[[#This Row],[2027/28 Total change]]","v":350},{"$f":"Dataset[[#This Row],[2028/29 Baseline]]+Dataset[[#This Row],[2028/29 Total change]]","v":300},{"$f":"Dataset[[#This Row],[2029/30 Baseline]]+Dataset[[#This Row],[2029/30 Total change]]","v":309}]
["NAT|Non-transfer","30|Minor assets","2027_28","MTEC2027",30,2,4,32887,367,"30","02","04","032887","000367","30|02|04|000367","01","01","02","05","05","01|01|02|05|05","National","Communications and Digital Technologies","ICT Transformation, Global Partnerships and State-Owned Enterprises Governance","ICT Sector Transformation Programmes","Non-transfer","Current","Current payments","Goods and services","Minor assets","Minor assets","Economic development","Economic regulation and infrastructure","NAT",0,10,0,0,0,0,0,0,0,0,0,null,null,null,null,null,null,null,null,null,null,null,null,null,null,null,null,null,null,null,null,null,null,null,null,null,null,null,null,null,null,null,null,null,null,{"$f":"Dataset[[#This Row],[2027/28 From - Spending review Topic 1]]+Dataset[[#This Row],[2027/28 From - Spending review Topic 2]]+Dataset[[#This Row],[2027/28 From - Spending review Topic 3]]+Dataset[[#This Row],[2027/28 From - Spending review Topic 4]]+Dataset[[#This Row],[2027/28 From - Other reallocations]]","v":0},{"$f":"Dataset[[#This Row],[2028/29 From - Spending review Topic 1]]+Dataset[[#This Row],[2028/29 From - Spending review Topic 2]]+Dataset[[#This Row],[2028/29 From - Spending review Topic 3]]+Dataset[[#This Row],[2028/29 From - Spending review Topic 4]]+Dataset[[#This Row],[2028/29 From - Other reallocations]]","v":0},{"$f":"Dataset[[#This Row],[2029/30 From - Spending review Topic 1]]+Dataset[[#This Row],[2029/30 From - Spending review Topic 2]]+Dataset[[#This Row],[2029/30 From - Spending review Topic 3]]+Dataset[[#This Row],[2029/30 From - Spending review Topic 4]]+Dataset[[#This Row],[2029/30 From - Other reallocations]]","v":0},{"$f":"Dataset[[#This Row],[2027/28 To - Spending review Topic 1]]+Dataset[[#This Row],[2027/28 To - Spending review Topic 2]]+Dataset[[#This Row],[2027/28 To - Spending review Topic 3]]+Dataset[[#This Row],[2027/28 To - Spending review Topic 4]]+Dataset[[#This Row],[2027/28 To - Other reallocations]]","v":0},{"$f":"Dataset[[#This Row],[2028/29 To - Spending review Topic 1]]+Dataset[[#This Row],[2028/29 To - Spending review Topic 2]]+Dataset[[#This Row],[2028/29 To - Spending review Topic 3]]+Dataset[[#This Row],[2028/29 To - Spending review Topic 4]]+Dataset[[#This Row],[2028/29 To - Other reallocations]]","v":0},{"$f":"Dataset[[#This Row],[2029/30 To - Spending review Topic 1]]+Dataset[[#This Row],[2029/30 To - Spending review Topic 2]]+Dataset[[#This Row],[2029/30 To - Spending review Topic 3]]+Dataset[[#This Row],[2029/30 To - Spending review Topic 4]]+Dataset[[#This Row],[2029/30 To - Other reallocations]]","v":0},{"$f":"Dataset[[#This Row],[2027/28 Targeted savings]]+Dataset[[#This Row],[2027/28 From - Total]]","v":0},{"$f":"Dataset[[#This Row],[2028/29 Targeted savings]]+Dataset[[#This Row],[2028/29 From - Total]]","v":0},{"$f":"Dataset[[#This Row],[2029/30 Targeted savings]]+Dataset[[#This Row],[2029/30 From - Total]]","v":0},{"$f":"Dataset[[#This Row],[2026/27 Targeted savings]]","v":0},{"$f":"SUM(Dataset[[#This Row],[2027/28 Targeted savings]],Dataset[[#This Row],[2027/28 From - Total]],Dataset[[#This Row],[2027/28 To - Total]])","v":0},{"$f":"SUM(Dataset[[#This Row],[2028/29 Targeted savings]],Dataset[[#This Row],[2028/29 From - Total]],Dataset[[#This Row],[2028/29 To - Total]])","v":0},{"$f":"SUM(Dataset[[#This Row],[2029/30 Targeted savings]],Dataset[[#This Row],[2029/30 From - Total]],Dataset[[#This Row],[2029/30 To - Total]])","v":0},{"$f":"Dataset[[#This Row],[2026/27 Baseline]]+Dataset[[#This Row],[2026/27 Total change]]","v":0},{"$f":"Dataset[[#This Row],[2027/28 Baseline]]+Dataset[[#This Row],[2027/28 Total change]]","v":0},{"$f":"Dataset[[#This Row],[2028/29 Baseline]]+Dataset[[#This Row],[2028/29 Total change]]","v":0},{"$f":"Dataset[[#This Row],[2029/30 Baseline]]+Dataset[[#This Row],[2029/30 Total change]]","v":0}]
["NAT|Non-transfer","30|Bursaries: Employees","2027_28","MTEC2027",30,2,4,32888,368,"30","02","04","032888","000368","30|02|04|000368","01","01","02","07","07","01|01|02|07|07","National","Communications and Digital Technologies","ICT Transformation, Global Partnerships and State-Owned Enterprises Governance","ICT Sector Transformation Programmes","Non-transfer","Current","Current payments","Goods and services","Bursaries: Employees","Bursaries: Employees","Economic development","Economic regulation and infrastructure","NAT",0,0,80,0,0,0,0,100,140,0,0,null,null,null,null,null,null,null,null,null,null,null,null,null,null,null,null,null,null,null,null,null,null,null,null,null,null,null,null,null,null,null,null,null,null,{"$f":"Dataset[[#This Row],[2027/28 From - Spending review Topic 1]]+Dataset[[#This Row],[2027/28 From - Spending review Topic 2]]+Dataset[[#This Row],[2027/28 From - Spending review Topic 3]]+Dataset[[#This Row],[2027/28 From - Spending review Topic 4]]+Dataset[[#This Row],[2027/28 From - Other reallocations]]","v":0},{"$f":"Dataset[[#This Row],[2028/29 From - Spending review Topic 1]]+Dataset[[#This Row],[2028/29 From - Spending review Topic 2]]+Dataset[[#This Row],[2028/29 From - Spending review Topic 3]]+Dataset[[#This Row],[2028/29 From - Spending review Topic 4]]+Dataset[[#This Row],[2028/29 From - Other reallocations]]","v":0},{"$f":"Dataset[[#This Row],[2029/30 From - Spending review Topic 1]]+Dataset[[#This Row],[2029/30 From - Spending review Topic 2]]+Dataset[[#This Row],[2029/30 From - Spending review Topic 3]]+Dataset[[#This Row],[2029/30 From - Spending review Topic 4]]+Dataset[[#This Row],[2029/30 From - Other reallocations]]","v":0},{"$f":"Dataset[[#This Row],[2027/28 To - Spending review Topic 1]]+Dataset[[#This Row],[2027/28 To - Spending review Topic 2]]+Dataset[[#This Row],[2027/28 To - Spending review Topic 3]]+Dataset[[#This Row],[2027/28 To - Spending review Topic 4]]+Dataset[[#This Row],[2027/28 To - Other reallocations]]","v":0},{"$f":"Dataset[[#This Row],[2028/29 To - Spending review Topic 1]]+Dataset[[#This Row],[2028/29 To - Spending review Topic 2]]+Dataset[[#This Row],[2028/29 To - Spending review Topic 3]]+Dataset[[#This Row],[2028/29 To - Spending review Topic 4]]+Dataset[[#This Row],[2028/29 To - Other reallocations]]","v":0},{"$f":"Dataset[[#This Row],[2029/30 To - Spending review Topic 1]]+Dataset[[#This Row],[2029/30 To - Spending review Topic 2]]+Dataset[[#This Row],[2029/30 To - Spending review Topic 3]]+Dataset[[#This Row],[2029/30 To - Spending review Topic 4]]+Dataset[[#This Row],[2029/30 To - Other reallocations]]","v":0},{"$f":"Dataset[[#This Row],[2027/28 Targeted savings]]+Dataset[[#This Row],[2027/28 From - Total]]","v":0},{"$f":"Dataset[[#This Row],[2028/29 Targeted savings]]+Dataset[[#This Row],[2028/29 From - Total]]","v":0},{"$f":"Dataset[[#This Row],[2029/30 Targeted savings]]+Dataset[[#This Row],[2029/30 From - Total]]","v":0},{"$f":"Dataset[[#This Row],[2026/27 Targeted savings]]","v":0},{"$f":"SUM(Dataset[[#This Row],[2027/28 Targeted savings]],Dataset[[#This Row],[2027/28 From - Total]],Dataset[[#This Row],[2027/28 To - Total]])","v":0},{"$f":"SUM(Dataset[[#This Row],[2028/29 Targeted savings]],Dataset[[#This Row],[2028/29 From - Total]],Dataset[[#This Row],[2028/29 To - Total]])","v":0},{"$f":"SUM(Dataset[[#This Row],[2029/30 Targeted savings]],Dataset[[#This Row],[2029/30 From - Total]],Dataset[[#This Row],[2029/30 To - Total]])","v":0},{"$f":"Dataset[[#This Row],[2026/27 Baseline]]+Dataset[[#This Row],[2026/27 Total change]]","v":100},{"$f":"Dataset[[#This Row],[2027/28 Baseline]]+Dataset[[#This Row],[2027/28 Total change]]","v":140},{"$f":"Dataset[[#This Row],[2028/29 Baseline]]+Dataset[[#This Row],[2028/29 Total change]]","v":0},{"$f":"Dataset[[#This Row],[2029/30 Baseline]]+Dataset[[#This Row],[2029/30 Total change]]","v":0}]
["NAT|Non-transfer","30|Catering: Departmental activities","2027_28","MTEC2027",30,2,4,32889,369,"30","02","04","032889","000369","30|02|04|000369","01","01","02","08","08","01|01|02|08|08","National","Communications and Digital Technologies","ICT Transformation, Global Partnerships and State-Owned Enterprises Governance","ICT Sector Transformation Programmes","Non-transfer","Current","Current payments","Goods and services","Catering: Departmental activities","Catering: Departmental activities","Economic development","Economic regulation and infrastructure","NAT",489,602,755,350,350,350,0,357,360,350,361,null,null,null,null,null,null,null,null,null,null,null,null,null,null,null,null,null,null,null,null,null,null,null,null,null,null,null,null,null,null,null,null,null,null,{"$f":"Dataset[[#This Row],[2027/28 From - Spending review Topic 1]]+Dataset[[#This Row],[2027/28 From - Spending review Topic 2]]+Dataset[[#This Row],[2027/28 From - Spending review Topic 3]]+Dataset[[#This Row],[2027/28 From - Spending review Topic 4]]+Dataset[[#This Row],[2027/28 From - Other reallocations]]","v":0},{"$f":"Dataset[[#This Row],[2028/29 From - Spending review Topic 1]]+Dataset[[#This Row],[2028/29 From - Spending review Topic 2]]+Dataset[[#This Row],[2028/29 From - Spending review Topic 3]]+Dataset[[#This Row],[2028/29 From - Spending review Topic 4]]+Dataset[[#This Row],[2028/29 From - Other reallocations]]","v":0},{"$f":"Dataset[[#This Row],[2029/30 From - Spending review Topic 1]]+Dataset[[#This Row],[2029/30 From - Spending review Topic 2]]+Dataset[[#This Row],[2029/30 From - Spending review Topic 3]]+Dataset[[#This Row],[2029/30 From - Spending review Topic 4]]+Dataset[[#This Row],[2029/30 From - Other reallocations]]","v":0},{"$f":"Dataset[[#This Row],[2027/28 To - Spending review Topic 1]]+Dataset[[#This Row],[2027/28 To - Spending review Topic 2]]+Dataset[[#This Row],[2027/28 To - Spending review Topic 3]]+Dataset[[#This Row],[2027/28 To - Spending review Topic 4]]+Dataset[[#This Row],[2027/28 To - Other reallocations]]","v":0},{"$f":"Dataset[[#This Row],[2028/29 To - Spending review Topic 1]]+Dataset[[#This Row],[2028/29 To - Spending review Topic 2]]+Dataset[[#This Row],[2028/29 To - Spending review Topic 3]]+Dataset[[#This Row],[2028/29 To - Spending review Topic 4]]+Dataset[[#This Row],[2028/29 To - Other reallocations]]","v":0},{"$f":"Dataset[[#This Row],[2029/30 To - Spending review Topic 1]]+Dataset[[#This Row],[2029/30 To - Spending review Topic 2]]+Dataset[[#This Row],[2029/30 To - Spending review Topic 3]]+Dataset[[#This Row],[2029/30 To - Spending review Topic 4]]+Dataset[[#This Row],[2029/30 To - Other reallocations]]","v":0},{"$f":"Dataset[[#This Row],[2027/28 Targeted savings]]+Dataset[[#This Row],[2027/28 From - Total]]","v":0},{"$f":"Dataset[[#This Row],[2028/29 Targeted savings]]+Dataset[[#This Row],[2028/29 From - Total]]","v":0},{"$f":"Dataset[[#This Row],[2029/30 Targeted savings]]+Dataset[[#This Row],[2029/30 From - Total]]","v":0},{"$f":"Dataset[[#This Row],[2026/27 Targeted savings]]","v":0},{"$f":"SUM(Dataset[[#This Row],[2027/28 Targeted savings]],Dataset[[#This Row],[2027/28 From - Total]],Dataset[[#This Row],[2027/28 To - Total]])","v":0},{"$f":"SUM(Dataset[[#This Row],[2028/29 Targeted savings]],Dataset[[#This Row],[2028/29 From - Total]],Dataset[[#This Row],[2028/29 To - Total]])","v":0},{"$f":"SUM(Dataset[[#This Row],[2029/30 Targeted savings]],Dataset[[#This Row],[2029/30 From - Total]],Dataset[[#This Row],[2029/30 To - Total]])","v":0},{"$f":"Dataset[[#This Row],[2026/27 Baseline]]+Dataset[[#This Row],[2026/27 Total change]]","v":357},{"$f":"Dataset[[#This Row],[2027/28 Baseline]]+Dataset[[#This Row],[2027/28 Total change]]","v":360},{"$f":"Dataset[[#This Row],[2028/29 Baseline]]+Dataset[[#This Row],[2028/29 Total change]]","v":350},{"$f":"Dataset[[#This Row],[2029/30 Baseline]]+Dataset[[#This Row],[2029/30 Total change]]","v":361}]
["NAT|Non-transfer","30|Communication (G&S)","2027_28","MTEC2027",30,2,4,32890,370,"30","02","04","032890","000370","30|02|04|000370","01","01","02","09","09","01|01|02|09|09","National","Communications and Digital Technologies","ICT Transformation, Global Partnerships and State-Owned Enterprises Governance","ICT Sector Transformation Programmes","Non-transfer","Current","Current payments","Goods and services","Communication (G&S)","Communication (G&S)","Economic development","Economic regulation and infrastructure","NAT",89,198,103,100,100,100,0,223,230,100,103,null,null,null,null,null,null,null,null,null,null,null,null,null,null,null,null,null,null,null,null,null,null,null,null,null,null,null,null,null,null,null,null,null,null,{"$f":"Dataset[[#This Row],[2027/28 From - Spending review Topic 1]]+Dataset[[#This Row],[2027/28 From - Spending review Topic 2]]+Dataset[[#This Row],[2027/28 From - Spending review Topic 3]]+Dataset[[#This Row],[2027/28 From - Spending review Topic 4]]+Dataset[[#This Row],[2027/28 From - Other reallocations]]","v":0},{"$f":"Dataset[[#This Row],[2028/29 From - Spending review Topic 1]]+Dataset[[#This Row],[2028/29 From - Spending review Topic 2]]+Dataset[[#This Row],[2028/29 From - Spending review Topic 3]]+Dataset[[#This Row],[2028/29 From - Spending review Topic 4]]+Dataset[[#This Row],[2028/29 From - Other reallocations]]","v":0},{"$f":"Dataset[[#This Row],[2029/30 From - Spending review Topic 1]]+Dataset[[#This Row],[2029/30 From - Spending review Topic 2]]+Dataset[[#This Row],[2029/30 From - Spending review Topic 3]]+Dataset[[#This Row],[2029/30 From - Spending review Topic 4]]+Dataset[[#This Row],[2029/30 From - Other reallocations]]","v":0},{"$f":"Dataset[[#This Row],[2027/28 To - Spending review Topic 1]]+Dataset[[#This Row],[2027/28 To - Spending review Topic 2]]+Dataset[[#This Row],[2027/28 To - Spending review Topic 3]]+Dataset[[#This Row],[2027/28 To - Spending review Topic 4]]+Dataset[[#This Row],[2027/28 To - Other reallocations]]","v":0},{"$f":"Dataset[[#This Row],[2028/29 To - Spending review Topic 1]]+Dataset[[#This Row],[2028/29 To - Spending review Topic 2]]+Dataset[[#This Row],[2028/29 To - Spending review Topic 3]]+Dataset[[#This Row],[2028/29 To - Spending review Topic 4]]+Dataset[[#This Row],[2028/29 To - Other reallocations]]","v":0},{"$f":"Dataset[[#This Row],[2029/30 To - Spending review Topic 1]]+Dataset[[#This Row],[2029/30 To - Spending review Topic 2]]+Dataset[[#This Row],[2029/30 To - Spending review Topic 3]]+Dataset[[#This Row],[2029/30 To - Spending review Topic 4]]+Dataset[[#This Row],[2029/30 To - Other reallocations]]","v":0},{"$f":"Dataset[[#This Row],[2027/28 Targeted savings]]+Dataset[[#This Row],[2027/28 From - Total]]","v":0},{"$f":"Dataset[[#This Row],[2028/29 Targeted savings]]+Dataset[[#This Row],[2028/29 From - Total]]","v":0},{"$f":"Dataset[[#This Row],[2029/30 Targeted savings]]+Dataset[[#This Row],[2029/30 From - Total]]","v":0},{"$f":"Dataset[[#This Row],[2026/27 Targeted savings]]","v":0},{"$f":"SUM(Dataset[[#This Row],[2027/28 Targeted savings]],Dataset[[#This Row],[2027/28 From - Total]],Dataset[[#This Row],[2027/28 To - Total]])","v":0},{"$f":"SUM(Dataset[[#This Row],[2028/29 Targeted savings]],Dataset[[#This Row],[2028/29 From - Total]],Dataset[[#This Row],[2028/29 To - Total]])","v":0},{"$f":"SUM(Dataset[[#This Row],[2029/30 Targeted savings]],Dataset[[#This Row],[2029/30 From - Total]],Dataset[[#This Row],[2029/30 To - Total]])","v":0},{"$f":"Dataset[[#This Row],[2026/27 Baseline]]+Dataset[[#This Row],[2026/27 Total change]]","v":223},{"$f":"Dataset[[#This Row],[2027/28 Baseline]]+Dataset[[#This Row],[2027/28 Total change]]","v":230},{"$f":"Dataset[[#This Row],[2028/29 Baseline]]+Dataset[[#This Row],[2028/29 Total change]]","v":100},{"$f":"Dataset[[#This Row],[2029/30 Baseline]]+Dataset[[#This Row],[2029/30 Total change]]","v":103}]
["NAT|Non-transfer","30|Consultants: Business and advisory services","2027_28","MTEC2027",30,2,4,32891,371,"30","02","04","032891","000371","30|02|04|000371","01","01","02","11","11","01|01|02|11|11","National","Communications and Digital Technologies","ICT Transformation, Global Partnerships and State-Owned Enterprises Governance","ICT Sector Transformation Programmes","Non-transfer","Current","Current payments","Goods and services","Consultants: Business and advisory services","Consultants: Business and advisory services","Economic development","Economic regulation and infrastructure","NAT",0,0,79,100,100,100,0,0,100,100,103,null,null,null,null,null,null,null,null,null,null,null,null,null,null,null,null,null,null,null,null,null,null,null,null,null,null,null,null,null,null,null,null,null,null,{"$f":"Dataset[[#This Row],[2027/28 From - Spending review Topic 1]]+Dataset[[#This Row],[2027/28 From - Spending review Topic 2]]+Dataset[[#This Row],[2027/28 From - Spending review Topic 3]]+Dataset[[#This Row],[2027/28 From - Spending review Topic 4]]+Dataset[[#This Row],[2027/28 From - Other reallocations]]","v":0},{"$f":"Dataset[[#This Row],[2028/29 From - Spending review Topic 1]]+Dataset[[#This Row],[2028/29 From - Spending review Topic 2]]+Dataset[[#This Row],[2028/29 From - Spending review Topic 3]]+Dataset[[#This Row],[2028/29 From - Spending review Topic 4]]+Dataset[[#This Row],[2028/29 From - Other reallocations]]","v":0},{"$f":"Dataset[[#This Row],[2029/30 From - Spending review Topic 1]]+Dataset[[#This Row],[2029/30 From - Spending review Topic 2]]+Dataset[[#This Row],[2029/30 From - Spending review Topic 3]]+Dataset[[#This Row],[2029/30 From - Spending review Topic 4]]+Dataset[[#This Row],[2029/30 From - Other reallocations]]","v":0},{"$f":"Dataset[[#This Row],[2027/28 To - Spending review Topic 1]]+Dataset[[#This Row],[2027/28 To - Spending review Topic 2]]+Dataset[[#This Row],[2027/28 To - Spending review Topic 3]]+Dataset[[#This Row],[2027/28 To - Spending review Topic 4]]+Dataset[[#This Row],[2027/28 To - Other reallocations]]","v":0},{"$f":"Dataset[[#This Row],[2028/29 To - Spending review Topic 1]]+Dataset[[#This Row],[2028/29 To - Spending review Topic 2]]+Dataset[[#This Row],[2028/29 To - Spending review Topic 3]]+Dataset[[#This Row],[2028/29 To - Spending review Topic 4]]+Dataset[[#This Row],[2028/29 To - Other reallocations]]","v":0},{"$f":"Dataset[[#This Row],[2029/30 To - Spending review Topic 1]]+Dataset[[#This Row],[2029/30 To - Spending review Topic 2]]+Dataset[[#This Row],[2029/30 To - Spending review Topic 3]]+Dataset[[#This Row],[2029/30 To - Spending review Topic 4]]+Dataset[[#This Row],[2029/30 To - Other reallocations]]","v":0},{"$f":"Dataset[[#This Row],[2027/28 Targeted savings]]+Dataset[[#This Row],[2027/28 From - Total]]","v":0},{"$f":"Dataset[[#This Row],[2028/29 Targeted savings]]+Dataset[[#This Row],[2028/29 From - Total]]","v":0},{"$f":"Dataset[[#This Row],[2029/30 Targeted savings]]+Dataset[[#This Row],[2029/30 From - Total]]","v":0},{"$f":"Dataset[[#This Row],[2026/27 Targeted savings]]","v":0},{"$f":"SUM(Dataset[[#This Row],[2027/28 Targeted savings]],Dataset[[#This Row],[2027/28 From - Total]],Dataset[[#This Row],[2027/28 To - Total]])","v":0},{"$f":"SUM(Dataset[[#This Row],[2028/29 Targeted savings]],Dataset[[#This Row],[2028/29 From - Total]],Dataset[[#This Row],[2028/29 To - Total]])","v":0},{"$f":"SUM(Dataset[[#This Row],[2029/30 Targeted savings]],Dataset[[#This Row],[2029/30 From - Total]],Dataset[[#This Row],[2029/30 To - Total]])","v":0},{"$f":"Dataset[[#This Row],[2026/27 Baseline]]+Dataset[[#This Row],[2026/27 Total change]]","v":0},{"$f":"Dataset[[#This Row],[2027/28 Baseline]]+Dataset[[#This Row],[2027/28 Total change]]","v":100},{"$f":"Dataset[[#This Row],[2028/29 Baseline]]+Dataset[[#This Row],[2028/29 Total change]]","v":100},{"$f":"Dataset[[#This Row],[2029/30 Baseline]]+Dataset[[#This Row],[2029/30 Total change]]","v":103}]
["NAT|Non-transfer","30|Contractors","2027_28","MTEC2027",30,2,4,32892,372,"30","02","04","032892","000372","30|02|04|000372","01","01","02","16","16","01|01|02|16|16","National","Communications and Digital Technologies","ICT Transformation, Global Partnerships and State-Owned Enterprises Governance","ICT Sector Transformation Programmes","Non-transfer","Current","Current payments","Goods and services","Contractors","Contractors","Economic development","Economic regulation and infrastructure","NAT",84,140,252,184,184,184,0,253,284,227,234,null,null,null,null,null,null,null,null,null,null,null,null,null,null,null,null,null,null,null,null,null,null,null,null,null,null,null,null,null,null,null,null,null,null,{"$f":"Dataset[[#This Row],[2027/28 From - Spending review Topic 1]]+Dataset[[#This Row],[2027/28 From - Spending review Topic 2]]+Dataset[[#This Row],[2027/28 From - Spending review Topic 3]]+Dataset[[#This Row],[2027/28 From - Spending review Topic 4]]+Dataset[[#This Row],[2027/28 From - Other reallocations]]","v":0},{"$f":"Dataset[[#This Row],[2028/29 From - Spending review Topic 1]]+Dataset[[#This Row],[2028/29 From - Spending review Topic 2]]+Dataset[[#This Row],[2028/29 From - Spending review Topic 3]]+Dataset[[#This Row],[2028/29 From - Spending review Topic 4]]+Dataset[[#This Row],[2028/29 From - Other reallocations]]","v":0},{"$f":"Dataset[[#This Row],[2029/30 From - Spending review Topic 1]]+Dataset[[#This Row],[2029/30 From - Spending review Topic 2]]+Dataset[[#This Row],[2029/30 From - Spending review Topic 3]]+Dataset[[#This Row],[2029/30 From - Spending review Topic 4]]+Dataset[[#This Row],[2029/30 From - Other reallocations]]","v":0},{"$f":"Dataset[[#This Row],[2027/28 To - Spending review Topic 1]]+Dataset[[#This Row],[2027/28 To - Spending review Topic 2]]+Dataset[[#This Row],[2027/28 To - Spending review Topic 3]]+Dataset[[#This Row],[2027/28 To - Spending review Topic 4]]+Dataset[[#This Row],[2027/28 To - Other reallocations]]","v":0},{"$f":"Dataset[[#This Row],[2028/29 To - Spending review Topic 1]]+Dataset[[#This Row],[2028/29 To - Spending review Topic 2]]+Dataset[[#This Row],[2028/29 To - Spending review Topic 3]]+Dataset[[#This Row],[2028/29 To - Spending review Topic 4]]+Dataset[[#This Row],[2028/29 To - Other reallocations]]","v":0},{"$f":"Dataset[[#This Row],[2029/30 To - Spending review Topic 1]]+Dataset[[#This Row],[2029/30 To - Spending review Topic 2]]+Dataset[[#This Row],[2029/30 To - Spending review Topic 3]]+Dataset[[#This Row],[2029/30 To - Spending review Topic 4]]+Dataset[[#This Row],[2029/30 To - Other reallocations]]","v":0},{"$f":"Dataset[[#This Row],[2027/28 Targeted savings]]+Dataset[[#This Row],[2027/28 From - Total]]","v":0},{"$f":"Dataset[[#This Row],[2028/29 Targeted savings]]+Dataset[[#This Row],[2028/29 From - Total]]","v":0},{"$f":"Dataset[[#This Row],[2029/30 Targeted savings]]+Dataset[[#This Row],[2029/30 From - Total]]","v":0},{"$f":"Dataset[[#This Row],[2026/27 Targeted savings]]","v":0},{"$f":"SUM(Dataset[[#This Row],[2027/28 Targeted savings]],Dataset[[#This Row],[2027/28 From - Total]],Dataset[[#This Row],[2027/28 To - Total]])","v":0},{"$f":"SUM(Dataset[[#This Row],[2028/29 Targeted savings]],Dataset[[#This Row],[2028/29 From - Total]],Dataset[[#This Row],[2028/29 To - Total]])","v":0},{"$f":"SUM(Dataset[[#This Row],[2029/30 Targeted savings]],Dataset[[#This Row],[2029/30 From - Total]],Dataset[[#This Row],[2029/30 To - Total]])","v":0},{"$f":"Dataset[[#This Row],[2026/27 Baseline]]+Dataset[[#This Row],[2026/27 Total change]]","v":253},{"$f":"Dataset[[#This Row],[2027/28 Baseline]]+Dataset[[#This Row],[2027/28 Total change]]","v":284},{"$f":"Dataset[[#This Row],[2028/29 Baseline]]+Dataset[[#This Row],[2028/29 Total change]]","v":227},{"$f":"Dataset[[#This Row],[2029/30 Baseline]]+Dataset[[#This Row],[2029/30 Total change]]","v":234}]
["NAT|Non-transfer","30|Fleet services (including government motor transport)","2027_28","MTEC2027",30,2,4,32893,373,"30","02","04","032893","000373","30|02|04|000373","01","01","02","19","19","01|01|02|19|19","National","Communications and Digital Technologies","ICT Transformation, Global Partnerships and State-Owned Enterprises Governance","ICT Sector Transformation Programmes","Non-transfer","Current","Current payments","Goods and services","Fleet services (including government motor transport)","Fleet services (including government motor transport)","Economic development","Economic regulation and infrastructure","NAT",7,12,5,10,10,10,0,10,10,10,10,null,null,null,null,null,null,null,null,null,null,null,null,null,null,null,null,null,null,null,null,null,null,null,null,null,null,null,null,null,null,null,null,null,null,{"$f":"Dataset[[#This Row],[2027/28 From - Spending review Topic 1]]+Dataset[[#This Row],[2027/28 From - Spending review Topic 2]]+Dataset[[#This Row],[2027/28 From - Spending review Topic 3]]+Dataset[[#This Row],[2027/28 From - Spending review Topic 4]]+Dataset[[#This Row],[2027/28 From - Other reallocations]]","v":0},{"$f":"Dataset[[#This Row],[2028/29 From - Spending review Topic 1]]+Dataset[[#This Row],[2028/29 From - Spending review Topic 2]]+Dataset[[#This Row],[2028/29 From - Spending review Topic 3]]+Dataset[[#This Row],[2028/29 From - Spending review Topic 4]]+Dataset[[#This Row],[2028/29 From - Other reallocations]]","v":0},{"$f":"Dataset[[#This Row],[2029/30 From - Spending review Topic 1]]+Dataset[[#This Row],[2029/30 From - Spending review Topic 2]]+Dataset[[#This Row],[2029/30 From - Spending review Topic 3]]+Dataset[[#This Row],[2029/30 From - Spending review Topic 4]]+Dataset[[#This Row],[2029/30 From - Other reallocations]]","v":0},{"$f":"Dataset[[#This Row],[2027/28 To - Spending review Topic 1]]+Dataset[[#This Row],[2027/28 To - Spending review Topic 2]]+Dataset[[#This Row],[2027/28 To - Spending review Topic 3]]+Dataset[[#This Row],[2027/28 To - Spending review Topic 4]]+Dataset[[#This Row],[2027/28 To - Other reallocations]]","v":0},{"$f":"Dataset[[#This Row],[2028/29 To - Spending review Topic 1]]+Dataset[[#This Row],[2028/29 To - Spending review Topic 2]]+Dataset[[#This Row],[2028/29 To - Spending review Topic 3]]+Dataset[[#This Row],[2028/29 To - Spending review Topic 4]]+Dataset[[#This Row],[2028/29 To - Other reallocations]]","v":0},{"$f":"Dataset[[#This Row],[2029/30 To - Spending review Topic 1]]+Dataset[[#This Row],[2029/30 To - Spending review Topic 2]]+Dataset[[#This Row],[2029/30 To - Spending review Topic 3]]+Dataset[[#This Row],[2029/30 To - Spending review Topic 4]]+Dataset[[#This Row],[2029/30 To - Other reallocations]]","v":0},{"$f":"Dataset[[#This Row],[2027/28 Targeted savings]]+Dataset[[#This Row],[2027/28 From - Total]]","v":0},{"$f":"Dataset[[#This Row],[2028/29 Targeted savings]]+Dataset[[#This Row],[2028/29 From - Total]]","v":0},{"$f":"Dataset[[#This Row],[2029/30 Targeted savings]]+Dataset[[#This Row],[2029/30 From - Total]]","v":0},{"$f":"Dataset[[#This Row],[2026/27 Targeted savings]]","v":0},{"$f":"SUM(Dataset[[#This Row],[2027/28 Targeted savings]],Dataset[[#This Row],[2027/28 From - Total]],Dataset[[#This Row],[2027/28 To - Total]])","v":0},{"$f":"SUM(Dataset[[#This Row],[2028/29 Targeted savings]],Dataset[[#This Row],[2028/29 From - Total]],Dataset[[#This Row],[2028/29 To - Total]])","v":0},{"$f":"SUM(Dataset[[#This Row],[2029/30 Targeted savings]],Dataset[[#This Row],[2029/30 From - Total]],Dataset[[#This Row],[2029/30 To - Total]])","v":0},{"$f":"Dataset[[#This Row],[2026/27 Baseline]]+Dataset[[#This Row],[2026/27 Total change]]","v":10},{"$f":"Dataset[[#This Row],[2027/28 Baseline]]+Dataset[[#This Row],[2027/28 Total change]]","v":10},{"$f":"Dataset[[#This Row],[2028/29 Baseline]]+Dataset[[#This Row],[2028/29 Total change]]","v":10},{"$f":"Dataset[[#This Row],[2029/30 Baseline]]+Dataset[[#This Row],[2029/30 Total change]]","v":10}]
["NAT|Non-transfer","30|Consumable supplies","2027_28","MTEC2027",30,2,4,32894,374,"30","02","04","032894","000374","30|02|04|000374","01","01","02","31","31","01|01|02|31|31","National","Communications and Digital Technologies","ICT Transformation, Global Partnerships and State-Owned Enterprises Governance","ICT Sector Transformation Programmes","Non-transfer","Current","Current payments","Goods and services","Consumable supplies","Consumable supplies","Economic development","Economic regulation and infrastructure","NAT",0,3,0,2,2,2,0,0,2,2,2,null,null,null,null,null,null,null,null,null,null,null,null,null,null,null,null,null,null,null,null,null,null,null,null,null,null,null,null,null,null,null,null,null,null,{"$f":"Dataset[[#This Row],[2027/28 From - Spending review Topic 1]]+Dataset[[#This Row],[2027/28 From - Spending review Topic 2]]+Dataset[[#This Row],[2027/28 From - Spending review Topic 3]]+Dataset[[#This Row],[2027/28 From - Spending review Topic 4]]+Dataset[[#This Row],[2027/28 From - Other reallocations]]","v":0},{"$f":"Dataset[[#This Row],[2028/29 From - Spending review Topic 1]]+Dataset[[#This Row],[2028/29 From - Spending review Topic 2]]+Dataset[[#This Row],[2028/29 From - Spending review Topic 3]]+Dataset[[#This Row],[2028/29 From - Spending review Topic 4]]+Dataset[[#This Row],[2028/29 From - Other reallocations]]","v":0},{"$f":"Dataset[[#This Row],[2029/30 From - Spending review Topic 1]]+Dataset[[#This Row],[2029/30 From - Spending review Topic 2]]+Dataset[[#This Row],[2029/30 From - Spending review Topic 3]]+Dataset[[#This Row],[2029/30 From - Spending review Topic 4]]+Dataset[[#This Row],[2029/30 From - Other reallocations]]","v":0},{"$f":"Dataset[[#This Row],[2027/28 To - Spending review Topic 1]]+Dataset[[#This Row],[2027/28 To - Spending review Topic 2]]+Dataset[[#This Row],[2027/28 To - Spending review Topic 3]]+Dataset[[#This Row],[2027/28 To - Spending review Topic 4]]+Dataset[[#This Row],[2027/28 To - Other reallocations]]","v":0},{"$f":"Dataset[[#This Row],[2028/29 To - Spending review Topic 1]]+Dataset[[#This Row],[2028/29 To - Spending review Topic 2]]+Dataset[[#This Row],[2028/29 To - Spending review Topic 3]]+Dataset[[#This Row],[2028/29 To - Spending review Topic 4]]+Dataset[[#This Row],[2028/29 To - Other reallocations]]","v":0},{"$f":"Dataset[[#This Row],[2029/30 To - Spending review Topic 1]]+Dataset[[#This Row],[2029/30 To - Spending review Topic 2]]+Dataset[[#This Row],[2029/30 To - Spending review Topic 3]]+Dataset[[#This Row],[2029/30 To - Spending review Topic 4]]+Dataset[[#This Row],[2029/30 To - Other reallocations]]","v":0},{"$f":"Dataset[[#This Row],[2027/28 Targeted savings]]+Dataset[[#This Row],[2027/28 From - Total]]","v":0},{"$f":"Dataset[[#This Row],[2028/29 Targeted savings]]+Dataset[[#This Row],[2028/29 From - Total]]","v":0},{"$f":"Dataset[[#This Row],[2029/30 Targeted savings]]+Dataset[[#This Row],[2029/30 From - Total]]","v":0},{"$f":"Dataset[[#This Row],[2026/27 Targeted savings]]","v":0},{"$f":"SUM(Dataset[[#This Row],[2027/28 Targeted savings]],Dataset[[#This Row],[2027/28 From - Total]],Dataset[[#This Row],[2027/28 To - Total]])","v":0},{"$f":"SUM(Dataset[[#This Row],[2028/29 Targeted savings]],Dataset[[#This Row],[2028/29 From - Total]],Dataset[[#This Row],[2028/29 To - Total]])","v":0},{"$f":"SUM(Dataset[[#This Row],[2029/30 Targeted savings]],Dataset[[#This Row],[2029/30 From - Total]],Dataset[[#This Row],[2029/30 To - Total]])","v":0},{"$f":"Dataset[[#This Row],[2026/27 Baseline]]+Dataset[[#This Row],[2026/27 Total change]]","v":0},{"$f":"Dataset[[#This Row],[2027/28 Baseline]]+Dataset[[#This Row],[2027/28 Total change]]","v":2},{"$f":"Dataset[[#This Row],[2028/29 Baseline]]+Dataset[[#This Row],[2028/29 Total change]]","v":2},{"$f":"Dataset[[#This Row],[2029/30 Baseline]]+Dataset[[#This Row],[2029/30 Total change]]","v":2}]
["NAT|Non-transfer","30|Consumables: Stationery, printing and office supplies","2027_28","MTEC2027",30,2,4,32895,375,"30","02","04","032895","000375","30|02|04|000375","01","01","02","32","32","01|01|02|32|32","National","Communications and Digital Technologies","ICT Transformation, Global Partnerships and State-Owned Enterprises Governance","ICT Sector Transformation Programmes","Non-transfer","Current","Current payments","Goods and services","Consumables: Stationery, printing and office supplies","Consumables: Stationery, printing and office supplies","Economic development","Economic regulation and infrastructure","NAT",0,0,10,30,30,30,0,22,30,30,31,null,null,null,null,null,null,null,null,null,null,null,null,null,null,null,null,null,null,null,null,null,null,null,null,null,null,null,null,null,null,null,null,null,null,{"$f":"Dataset[[#This Row],[2027/28 From - Spending review Topic 1]]+Dataset[[#This Row],[2027/28 From - Spending review Topic 2]]+Dataset[[#This Row],[2027/28 From - Spending review Topic 3]]+Dataset[[#This Row],[2027/28 From - Spending review Topic 4]]+Dataset[[#This Row],[2027/28 From - Other reallocations]]","v":0},{"$f":"Dataset[[#This Row],[2028/29 From - Spending review Topic 1]]+Dataset[[#This Row],[2028/29 From - Spending review Topic 2]]+Dataset[[#This Row],[2028/29 From - Spending review Topic 3]]+Dataset[[#This Row],[2028/29 From - Spending review Topic 4]]+Dataset[[#This Row],[2028/29 From - Other reallocations]]","v":0},{"$f":"Dataset[[#This Row],[2029/30 From - Spending review Topic 1]]+Dataset[[#This Row],[2029/30 From - Spending review Topic 2]]+Dataset[[#This Row],[2029/30 From - Spending review Topic 3]]+Dataset[[#This Row],[2029/30 From - Spending review Topic 4]]+Dataset[[#This Row],[2029/30 From - Other reallocations]]","v":0},{"$f":"Dataset[[#This Row],[2027/28 To - Spending review Topic 1]]+Dataset[[#This Row],[2027/28 To - Spending review Topic 2]]+Dataset[[#This Row],[2027/28 To - Spending review Topic 3]]+Dataset[[#This Row],[2027/28 To - Spending review Topic 4]]+Dataset[[#This Row],[2027/28 To - Other reallocations]]","v":0},{"$f":"Dataset[[#This Row],[2028/29 To - Spending review Topic 1]]+Dataset[[#This Row],[2028/29 To - Spending review Topic 2]]+Dataset[[#This Row],[2028/29 To - Spending review Topic 3]]+Dataset[[#This Row],[2028/29 To - Spending review Topic 4]]+Dataset[[#This Row],[2028/29 To - Other reallocations]]","v":0},{"$f":"Dataset[[#This Row],[2029/30 To - Spending review Topic 1]]+Dataset[[#This Row],[2029/30 To - Spending review Topic 2]]+Dataset[[#This Row],[2029/30 To - Spending review Topic 3]]+Dataset[[#This Row],[2029/30 To - Spending review Topic 4]]+Dataset[[#This Row],[2029/30 To - Other reallocations]]","v":0},{"$f":"Dataset[[#This Row],[2027/28 Targeted savings]]+Dataset[[#This Row],[2027/28 From - Total]]","v":0},{"$f":"Dataset[[#This Row],[2028/29 Targeted savings]]+Dataset[[#This Row],[2028/29 From - Total]]","v":0},{"$f":"Dataset[[#This Row],[2029/30 Targeted savings]]+Dataset[[#This Row],[2029/30 From - Total]]","v":0},{"$f":"Dataset[[#This Row],[2026/27 Targeted savings]]","v":0},{"$f":"SUM(Dataset[[#This Row],[2027/28 Targeted savings]],Dataset[[#This Row],[2027/28 From - Total]],Dataset[[#This Row],[2027/28 To - Total]])","v":0},{"$f":"SUM(Dataset[[#This Row],[2028/29 Targeted savings]],Dataset[[#This Row],[2028/29 From - Total]],Dataset[[#This Row],[2028/29 To - Total]])","v":0},{"$f":"SUM(Dataset[[#This Row],[2029/30 Targeted savings]],Dataset[[#This Row],[2029/30 From - Total]],Dataset[[#This Row],[2029/30 To - Total]])","v":0},{"$f":"Dataset[[#This Row],[2026/27 Baseline]]+Dataset[[#This Row],[2026/27 Total change]]","v":22},{"$f":"Dataset[[#This Row],[2027/28 Baseline]]+Dataset[[#This Row],[2027/28 Total change]]","v":30},{"$f":"Dataset[[#This Row],[2028/29 Baseline]]+Dataset[[#This Row],[2028/29 Total change]]","v":30},{"$f":"Dataset[[#This Row],[2029/30 Baseline]]+Dataset[[#This Row],[2029/30 Total change]]","v":31}]
["NAT|Non-transfer","30|Operating leases","2027_28","MTEC2027",30,2,4,32896,376,"30","02","04","032896","000376","30|02|04|000376","01","01","02","33","33","01|01|02|33|33","National","Communications and Digital Technologies","ICT Transformation, Global Partnerships and State-Owned Enterprises Governance","ICT Sector Transformation Programmes","Non-transfer","Current","Current payments","Goods and services","Operating leases","Operating leases","Economic development","Economic regulation and infrastructure","NAT",0,37,38,40,40,40,0,80,40,40,41,null,null,null,null,null,null,null,null,null,null,null,null,null,null,null,null,null,null,null,null,null,null,null,null,null,null,null,null,null,null,null,null,null,null,{"$f":"Dataset[[#This Row],[2027/28 From - Spending review Topic 1]]+Dataset[[#This Row],[2027/28 From - Spending review Topic 2]]+Dataset[[#This Row],[2027/28 From - Spending review Topic 3]]+Dataset[[#This Row],[2027/28 From - Spending review Topic 4]]+Dataset[[#This Row],[2027/28 From - Other reallocations]]","v":0},{"$f":"Dataset[[#This Row],[2028/29 From - Spending review Topic 1]]+Dataset[[#This Row],[2028/29 From - Spending review Topic 2]]+Dataset[[#This Row],[2028/29 From - Spending review Topic 3]]+Dataset[[#This Row],[2028/29 From - Spending review Topic 4]]+Dataset[[#This Row],[2028/29 From - Other reallocations]]","v":0},{"$f":"Dataset[[#This Row],[2029/30 From - Spending review Topic 1]]+Dataset[[#This Row],[2029/30 From - Spending review Topic 2]]+Dataset[[#This Row],[2029/30 From - Spending review Topic 3]]+Dataset[[#This Row],[2029/30 From - Spending review Topic 4]]+Dataset[[#This Row],[2029/30 From - Other reallocations]]","v":0},{"$f":"Dataset[[#This Row],[2027/28 To - Spending review Topic 1]]+Dataset[[#This Row],[2027/28 To - Spending review Topic 2]]+Dataset[[#This Row],[2027/28 To - Spending review Topic 3]]+Dataset[[#This Row],[2027/28 To - Spending review Topic 4]]+Dataset[[#This Row],[2027/28 To - Other reallocations]]","v":0},{"$f":"Dataset[[#This Row],[2028/29 To - Spending review Topic 1]]+Dataset[[#This Row],[2028/29 To - Spending review Topic 2]]+Dataset[[#This Row],[2028/29 To - Spending review Topic 3]]+Dataset[[#This Row],[2028/29 To - Spending review Topic 4]]+Dataset[[#This Row],[2028/29 To - Other reallocations]]","v":0},{"$f":"Dataset[[#This Row],[2029/30 To - Spending review Topic 1]]+Dataset[[#This Row],[2029/30 To - Spending review Topic 2]]+Dataset[[#This Row],[2029/30 To - Spending review Topic 3]]+Dataset[[#This Row],[2029/30 To - Spending review Topic 4]]+Dataset[[#This Row],[2029/30 To - Other reallocations]]","v":0},{"$f":"Dataset[[#This Row],[2027/28 Targeted savings]]+Dataset[[#This Row],[2027/28 From - Total]]","v":0},{"$f":"Dataset[[#This Row],[2028/29 Targeted savings]]+Dataset[[#This Row],[2028/29 From - Total]]","v":0},{"$f":"Dataset[[#This Row],[2029/30 Targeted savings]]+Dataset[[#This Row],[2029/30 From - Total]]","v":0},{"$f":"Dataset[[#This Row],[2026/27 Targeted savings]]","v":0},{"$f":"SUM(Dataset[[#This Row],[2027/28 Targeted savings]],Dataset[[#This Row],[2027/28 From - Total]],Dataset[[#This Row],[2027/28 To - Total]])","v":0},{"$f":"SUM(Dataset[[#This Row],[2028/29 Targeted savings]],Dataset[[#This Row],[2028/29 From - Total]],Dataset[[#This Row],[2028/29 To - Total]])","v":0},{"$f":"SUM(Dataset[[#This Row],[2029/30 Targeted savings]],Dataset[[#This Row],[2029/30 From - Total]],Dataset[[#This Row],[2029/30 To - Total]])","v":0},{"$f":"Dataset[[#This Row],[2026/27 Baseline]]+Dataset[[#This Row],[2026/27 Total change]]","v":80},{"$f":"Dataset[[#This Row],[2027/28 Baseline]]+Dataset[[#This Row],[2027/28 Total change]]","v":40},{"$f":"Dataset[[#This Row],[2028/29 Baseline]]+Dataset[[#This Row],[2028/29 Total change]]","v":40},{"$f":"Dataset[[#This Row],[2029/30 Baseline]]+Dataset[[#This Row],[2029/30 Total change]]","v":41}]
["NAT|Non-transfer","30|Rental and hiring","2027_28","MTEC2027",30,2,4,32897,377,"30","02","04","032897","000377","30|02|04|000377","01","01","02","34","34","01|01|02|34|34","National","Communications and Digital Technologies","ICT Transformation, Global Partnerships and State-Owned Enterprises Governance","ICT Sector Transformation Programmes","Non-transfer","Current","Current payments","Goods and services","Rental and hiring","Rental and hiring","Economic development","Economic regulation and infrastructure","NAT",67,20,24,25,25,25,0,45,25,25,26,null,null,null,null,null,null,null,null,null,null,null,null,null,null,null,null,null,null,null,null,null,null,null,null,null,null,null,null,null,null,null,null,null,null,{"$f":"Dataset[[#This Row],[2027/28 From - Spending review Topic 1]]+Dataset[[#This Row],[2027/28 From - Spending review Topic 2]]+Dataset[[#This Row],[2027/28 From - Spending review Topic 3]]+Dataset[[#This Row],[2027/28 From - Spending review Topic 4]]+Dataset[[#This Row],[2027/28 From - Other reallocations]]","v":0},{"$f":"Dataset[[#This Row],[2028/29 From - Spending review Topic 1]]+Dataset[[#This Row],[2028/29 From - Spending review Topic 2]]+Dataset[[#This Row],[2028/29 From - Spending review Topic 3]]+Dataset[[#This Row],[2028/29 From - Spending review Topic 4]]+Dataset[[#This Row],[2028/29 From - Other reallocations]]","v":0},{"$f":"Dataset[[#This Row],[2029/30 From - Spending review Topic 1]]+Dataset[[#This Row],[2029/30 From - Spending review Topic 2]]+Dataset[[#This Row],[2029/30 From - Spending review Topic 3]]+Dataset[[#This Row],[2029/30 From - Spending review Topic 4]]+Dataset[[#This Row],[2029/30 From - Other reallocations]]","v":0},{"$f":"Dataset[[#This Row],[2027/28 To - Spending review Topic 1]]+Dataset[[#This Row],[2027/28 To - Spending review Topic 2]]+Dataset[[#This Row],[2027/28 To - Spending review Topic 3]]+Dataset[[#This Row],[2027/28 To - Spending review Topic 4]]+Dataset[[#This Row],[2027/28 To - Other reallocations]]","v":0},{"$f":"Dataset[[#This Row],[2028/29 To - Spending review Topic 1]]+Dataset[[#This Row],[2028/29 To - Spending review Topic 2]]+Dataset[[#This Row],[2028/29 To - Spending review Topic 3]]+Dataset[[#This Row],[2028/29 To - Spending review Topic 4]]+Dataset[[#This Row],[2028/29 To - Other reallocations]]","v":0},{"$f":"Dataset[[#This Row],[2029/30 To - Spending review Topic 1]]+Dataset[[#This Row],[2029/30 To - Spending review Topic 2]]+Dataset[[#This Row],[2029/30 To - Spending review Topic 3]]+Dataset[[#This Row],[2029/30 To - Spending review Topic 4]]+Dataset[[#This Row],[2029/30 To - Other reallocations]]","v":0},{"$f":"Dataset[[#This Row],[2027/28 Targeted savings]]+Dataset[[#This Row],[2027/28 From - Total]]","v":0},{"$f":"Dataset[[#This Row],[2028/29 Targeted savings]]+Dataset[[#This Row],[2028/29 From - Total]]","v":0},{"$f":"Dataset[[#This Row],[2029/30 Targeted savings]]+Dataset[[#This Row],[2029/30 From - Total]]","v":0},{"$f":"Dataset[[#This Row],[2026/27 Targeted savings]]","v":0},{"$f":"SUM(Dataset[[#This Row],[2027/28 Targeted savings]],Dataset[[#This Row],[2027/28 From - Total]],Dataset[[#This Row],[2027/28 To - Total]])","v":0},{"$f":"SUM(Dataset[[#This Row],[2028/29 Targeted savings]],Dataset[[#This Row],[2028/29 From - Total]],Dataset[[#This Row],[2028/29 To - Total]])","v":0},{"$f":"SUM(Dataset[[#This Row],[2029/30 Targeted savings]],Dataset[[#This Row],[2029/30 From - Total]],Dataset[[#This Row],[2029/30 To - Total]])","v":0},{"$f":"Dataset[[#This Row],[2026/27 Baseline]]+Dataset[[#This Row],[2026/27 Total change]]","v":45},{"$f":"Dataset[[#This Row],[2027/28 Baseline]]+Dataset[[#This Row],[2027/28 Total change]]","v":25},{"$f":"Dataset[[#This Row],[2028/29 Baseline]]+Dataset[[#This Row],[2028/29 Total change]]","v":25},{"$f":"Dataset[[#This Row],[2029/30 Baseline]]+Dataset[[#This Row],[2029/30 Total change]]","v":26}]
["NAT|Non-transfer","30|Travel and subsistence","2027_28","MTEC2027",30,2,4,32898,378,"30","02","04","032898","000378","30|02|04|000378","01","01","02","37","37","01|01|02|37|37","National","Communications and Digital Technologies","ICT Transformation, Global Partnerships and State-Owned Enterprises Governance","ICT Sector Transformation Programmes","Non-transfer","Current","Current payments","Goods and services","Travel and subsistence","Travel and subsistence","Economic development","Economic regulation and infrastructure","NAT",4340,3542,4008,2842,2842,2842,0,3257,4201,3700,3811,null,null,null,null,null,null,null,null,null,null,null,null,null,null,null,null,null,null,null,null,null,null,null,null,null,null,null,null,null,null,null,null,null,null,{"$f":"Dataset[[#This Row],[2027/28 From - Spending review Topic 1]]+Dataset[[#This Row],[2027/28 From - Spending review Topic 2]]+Dataset[[#This Row],[2027/28 From - Spending review Topic 3]]+Dataset[[#This Row],[2027/28 From - Spending review Topic 4]]+Dataset[[#This Row],[2027/28 From - Other reallocations]]","v":0},{"$f":"Dataset[[#This Row],[2028/29 From - Spending review Topic 1]]+Dataset[[#This Row],[2028/29 From - Spending review Topic 2]]+Dataset[[#This Row],[2028/29 From - Spending review Topic 3]]+Dataset[[#This Row],[2028/29 From - Spending review Topic 4]]+Dataset[[#This Row],[2028/29 From - Other reallocations]]","v":0},{"$f":"Dataset[[#This Row],[2029/30 From - Spending review Topic 1]]+Dataset[[#This Row],[2029/30 From - Spending review Topic 2]]+Dataset[[#This Row],[2029/30 From - Spending review Topic 3]]+Dataset[[#This Row],[2029/30 From - Spending review Topic 4]]+Dataset[[#This Row],[2029/30 From - Other reallocations]]","v":0},{"$f":"Dataset[[#This Row],[2027/28 To - Spending review Topic 1]]+Dataset[[#This Row],[2027/28 To - Spending review Topic 2]]+Dataset[[#This Row],[2027/28 To - Spending review Topic 3]]+Dataset[[#This Row],[2027/28 To - Spending review Topic 4]]+Dataset[[#This Row],[2027/28 To - Other reallocations]]","v":0},{"$f":"Dataset[[#This Row],[2028/29 To - Spending review Topic 1]]+Dataset[[#This Row],[2028/29 To - Spending review Topic 2]]+Dataset[[#This Row],[2028/29 To - Spending review Topic 3]]+Dataset[[#This Row],[2028/29 To - Spending review Topic 4]]+Dataset[[#This Row],[2028/29 To - Other reallocations]]","v":0},{"$f":"Dataset[[#This Row],[2029/30 To - Spending review Topic 1]]+Dataset[[#This Row],[2029/30 To - Spending review Topic 2]]+Dataset[[#This Row],[2029/30 To - Spending review Topic 3]]+Dataset[[#This Row],[2029/30 To - Spending review Topic 4]]+Dataset[[#This Row],[2029/30 To - Other reallocations]]","v":0},{"$f":"Dataset[[#This Row],[2027/28 Targeted savings]]+Dataset[[#This Row],[2027/28 From - Total]]","v":0},{"$f":"Dataset[[#This Row],[2028/29 Targeted savings]]+Dataset[[#This Row],[2028/29 From - Total]]","v":0},{"$f":"Dataset[[#This Row],[2029/30 Targeted savings]]+Dataset[[#This Row],[2029/30 From - Total]]","v":0},{"$f":"Dataset[[#This Row],[2026/27 Targeted savings]]","v":0},{"$f":"SUM(Dataset[[#This Row],[2027/28 Targeted savings]],Dataset[[#This Row],[2027/28 From - Total]],Dataset[[#This Row],[2027/28 To - Total]])","v":0},{"$f":"SUM(Dataset[[#This Row],[2028/29 Targeted savings]],Dataset[[#This Row],[2028/29 From - Total]],Dataset[[#This Row],[2028/29 To - Total]])","v":0},{"$f":"SUM(Dataset[[#This Row],[2029/30 Targeted savings]],Dataset[[#This Row],[2029/30 From - Total]],Dataset[[#This Row],[2029/30 To - Total]])","v":0},{"$f":"Dataset[[#This Row],[2026/27 Baseline]]+Dataset[[#This Row],[2026/27 Total change]]","v":3257},{"$f":"Dataset[[#This Row],[2027/28 Baseline]]+Dataset[[#This Row],[2027/28 Total change]]","v":4201},{"$f":"Dataset[[#This Row],[2028/29 Baseline]]+Dataset[[#This Row],[2028/29 Total change]]","v":3700},{"$f":"Dataset[[#This Row],[2029/30 Baseline]]+Dataset[[#This Row],[2029/30 Total change]]","v":3811}]
["NAT|Non-transfer","30|Training and development","2027_28","MTEC2027",30,2,4,32899,379,"30","02","04","032899","000379","30|02|04|000379","01","01","02","38","38","01|01|02|38|38","National","Communications and Digital Technologies","ICT Transformation, Global Partnerships and State-Owned Enterprises Governance","ICT Sector Transformation Programmes","Non-transfer","Current","Current payments","Goods and services","Training and development","Training and development","Economic development","Economic regulation and infrastructure","NAT",0,0,0,50,50,50,0,84,150,50,52,null,null,null,null,null,null,null,null,null,null,null,null,null,null,null,null,null,null,null,null,null,null,null,null,null,null,null,null,null,null,null,null,null,null,{"$f":"Dataset[[#This Row],[2027/28 From - Spending review Topic 1]]+Dataset[[#This Row],[2027/28 From - Spending review Topic 2]]+Dataset[[#This Row],[2027/28 From - Spending review Topic 3]]+Dataset[[#This Row],[2027/28 From - Spending review Topic 4]]+Dataset[[#This Row],[2027/28 From - Other reallocations]]","v":0},{"$f":"Dataset[[#This Row],[2028/29 From - Spending review Topic 1]]+Dataset[[#This Row],[2028/29 From - Spending review Topic 2]]+Dataset[[#This Row],[2028/29 From - Spending review Topic 3]]+Dataset[[#This Row],[2028/29 From - Spending review Topic 4]]+Dataset[[#This Row],[2028/29 From - Other reallocations]]","v":0},{"$f":"Dataset[[#This Row],[2029/30 From - Spending review Topic 1]]+Dataset[[#This Row],[2029/30 From - Spending review Topic 2]]+Dataset[[#This Row],[2029/30 From - Spending review Topic 3]]+Dataset[[#This Row],[2029/30 From - Spending review Topic 4]]+Dataset[[#This Row],[2029/30 From - Other reallocations]]","v":0},{"$f":"Dataset[[#This Row],[2027/28 To - Spending review Topic 1]]+Dataset[[#This Row],[2027/28 To - Spending review Topic 2]]+Dataset[[#This Row],[2027/28 To - Spending review Topic 3]]+Dataset[[#This Row],[2027/28 To - Spending review Topic 4]]+Dataset[[#This Row],[2027/28 To - Other reallocations]]","v":0},{"$f":"Dataset[[#This Row],[2028/29 To - Spending review Topic 1]]+Dataset[[#This Row],[2028/29 To - Spending review Topic 2]]+Dataset[[#This Row],[2028/29 To - Spending review Topic 3]]+Dataset[[#This Row],[2028/29 To - Spending review Topic 4]]+Dataset[[#This Row],[2028/29 To - Other reallocations]]","v":0},{"$f":"Dataset[[#This Row],[2029/30 To - Spending review Topic 1]]+Dataset[[#This Row],[2029/30 To - Spending review Topic 2]]+Dataset[[#This Row],[2029/30 To - Spending review Topic 3]]+Dataset[[#This Row],[2029/30 To - Spending review Topic 4]]+Dataset[[#This Row],[2029/30 To - Other reallocations]]","v":0},{"$f":"Dataset[[#This Row],[2027/28 Targeted savings]]+Dataset[[#This Row],[2027/28 From - Total]]","v":0},{"$f":"Dataset[[#This Row],[2028/29 Targeted savings]]+Dataset[[#This Row],[2028/29 From - Total]]","v":0},{"$f":"Dataset[[#This Row],[2029/30 Targeted savings]]+Dataset[[#This Row],[2029/30 From - Total]]","v":0},{"$f":"Dataset[[#This Row],[2026/27 Targeted savings]]","v":0},{"$f":"SUM(Dataset[[#This Row],[2027/28 Targeted savings]],Dataset[[#This Row],[2027/28 From - Total]],Dataset[[#This Row],[2027/28 To - Total]])","v":0},{"$f":"SUM(Dataset[[#This Row],[2028/29 Targeted savings]],Dataset[[#This Row],[2028/29 From - Total]],Dataset[[#This Row],[2028/29 To - Total]])","v":0},{"$f":"SUM(Dataset[[#This Row],[2029/30 Targeted savings]],Dataset[[#This Row],[2029/30 From - Total]],Dataset[[#This Row],[2029/30 To - Total]])","v":0},{"$f":"Dataset[[#This Row],[2026/27 Baseline]]+Dataset[[#This Row],[2026/27 Total change]]","v":84},{"$f":"Dataset[[#This Row],[2027/28 Baseline]]+Dataset[[#This Row],[2027/28 Total change]]","v":150},{"$f":"Dataset[[#This Row],[2028/29 Baseline]]+Dataset[[#This Row],[2028/29 Total change]]","v":50},{"$f":"Dataset[[#This Row],[2029/30 Baseline]]+Dataset[[#This Row],[2029/30 Total change]]","v":52}]
["NAT|Non-transfer","30|Operating payments","2027_28","MTEC2027",30,2,4,32900,380,"30","02","04","032900","000380","30|02|04|000380","01","01","02","39","39","01|01|02|39|39","National","Communications and Digital Technologies","ICT Transformation, Global Partnerships and State-Owned Enterprises Governance","ICT Sector Transformation Programmes","Non-transfer","Current","Current payments","Goods and services","Operating payments","Operating payments","Economic development","Economic regulation and infrastructure","NAT",35,33,5,5,5,5,0,15,25,5,5,null,null,null,null,null,null,null,null,null,null,null,null,null,null,null,null,null,null,null,null,null,null,null,null,null,null,null,null,null,null,null,null,null,null,{"$f":"Dataset[[#This Row],[2027/28 From - Spending review Topic 1]]+Dataset[[#This Row],[2027/28 From - Spending review Topic 2]]+Dataset[[#This Row],[2027/28 From - Spending review Topic 3]]+Dataset[[#This Row],[2027/28 From - Spending review Topic 4]]+Dataset[[#This Row],[2027/28 From - Other reallocations]]","v":0},{"$f":"Dataset[[#This Row],[2028/29 From - Spending review Topic 1]]+Dataset[[#This Row],[2028/29 From - Spending review Topic 2]]+Dataset[[#This Row],[2028/29 From - Spending review Topic 3]]+Dataset[[#This Row],[2028/29 From - Spending review Topic 4]]+Dataset[[#This Row],[2028/29 From - Other reallocations]]","v":0},{"$f":"Dataset[[#This Row],[2029/30 From - Spending review Topic 1]]+Dataset[[#This Row],[2029/30 From - Spending review Topic 2]]+Dataset[[#This Row],[2029/30 From - Spending review Topic 3]]+Dataset[[#This Row],[2029/30 From - Spending review Topic 4]]+Dataset[[#This Row],[2029/30 From - Other reallocations]]","v":0},{"$f":"Dataset[[#This Row],[2027/28 To - Spending review Topic 1]]+Dataset[[#This Row],[2027/28 To - Spending review Topic 2]]+Dataset[[#This Row],[2027/28 To - Spending review Topic 3]]+Dataset[[#This Row],[2027/28 To - Spending review Topic 4]]+Dataset[[#This Row],[2027/28 To - Other reallocations]]","v":0},{"$f":"Dataset[[#This Row],[2028/29 To - Spending review Topic 1]]+Dataset[[#This Row],[2028/29 To - Spending review Topic 2]]+Dataset[[#This Row],[2028/29 To - Spending review Topic 3]]+Dataset[[#This Row],[2028/29 To - Spending review Topic 4]]+Dataset[[#This Row],[2028/29 To - Other reallocations]]","v":0},{"$f":"Dataset[[#This Row],[2029/30 To - Spending review Topic 1]]+Dataset[[#This Row],[2029/30 To - Spending review Topic 2]]+Dataset[[#This Row],[2029/30 To - Spending review Topic 3]]+Dataset[[#This Row],[2029/30 To - Spending review Topic 4]]+Dataset[[#This Row],[2029/30 To - Other reallocations]]","v":0},{"$f":"Dataset[[#This Row],[2027/28 Targeted savings]]+Dataset[[#This Row],[2027/28 From - Total]]","v":0},{"$f":"Dataset[[#This Row],[2028/29 Targeted savings]]+Dataset[[#This Row],[2028/29 From - Total]]","v":0},{"$f":"Dataset[[#This Row],[2029/30 Targeted savings]]+Dataset[[#This Row],[2029/30 From - Total]]","v":0},{"$f":"Dataset[[#This Row],[2026/27 Targeted savings]]","v":0},{"$f":"SUM(Dataset[[#This Row],[2027/28 Targeted savings]],Dataset[[#This Row],[2027/28 From - Total]],Dataset[[#This Row],[2027/28 To - Total]])","v":0},{"$f":"SUM(Dataset[[#This Row],[2028/29 Targeted savings]],Dataset[[#This Row],[2028/29 From - Total]],Dataset[[#This Row],[2028/29 To - Total]])","v":0},{"$f":"SUM(Dataset[[#This Row],[2029/30 Targeted savings]],Dataset[[#This Row],[2029/30 From - Total]],Dataset[[#This Row],[2029/30 To - Total]])","v":0},{"$f":"Dataset[[#This Row],[2026/27 Baseline]]+Dataset[[#This Row],[2026/27 Total change]]","v":15},{"$f":"Dataset[[#This Row],[2027/28 Baseline]]+Dataset[[#This Row],[2027/28 Total change]]","v":25},{"$f":"Dataset[[#This Row],[2028/29 Baseline]]+Dataset[[#This Row],[2028/29 Total change]]","v":5},{"$f":"Dataset[[#This Row],[2029/30 Baseline]]+Dataset[[#This Row],[2029/30 Total change]]","v":5}]
["NAT|Non-transfer","30|Venues and facilities","2027_28","MTEC2027",30,2,4,32901,381,"30","02","04","032901","000381","30|02|04|000381","01","01","02","40","40","01|01|02|40|40","National","Communications and Digital Technologies","ICT Transformation, Global Partnerships and State-Owned Enterprises Governance","ICT Sector Transformation Programmes","Non-transfer","Current","Current payments","Goods and services","Venues and facilities","Venues and facilities","Economic development","Economic regulation and infrastructure","NAT",2085,1278,1967,1000,1000,1000,0,1449,1000,1100,1133,null,null,null,null,null,null,null,null,null,null,null,null,null,null,null,null,null,null,null,null,null,null,null,null,null,null,null,null,null,null,null,null,null,null,{"$f":"Dataset[[#This Row],[2027/28 From - Spending review Topic 1]]+Dataset[[#This Row],[2027/28 From - Spending review Topic 2]]+Dataset[[#This Row],[2027/28 From - Spending review Topic 3]]+Dataset[[#This Row],[2027/28 From - Spending review Topic 4]]+Dataset[[#This Row],[2027/28 From - Other reallocations]]","v":0},{"$f":"Dataset[[#This Row],[2028/29 From - Spending review Topic 1]]+Dataset[[#This Row],[2028/29 From - Spending review Topic 2]]+Dataset[[#This Row],[2028/29 From - Spending review Topic 3]]+Dataset[[#This Row],[2028/29 From - Spending review Topic 4]]+Dataset[[#This Row],[2028/29 From - Other reallocations]]","v":0},{"$f":"Dataset[[#This Row],[2029/30 From - Spending review Topic 1]]+Dataset[[#This Row],[2029/30 From - Spending review Topic 2]]+Dataset[[#This Row],[2029/30 From - Spending review Topic 3]]+Dataset[[#This Row],[2029/30 From - Spending review Topic 4]]+Dataset[[#This Row],[2029/30 From - Other reallocations]]","v":0},{"$f":"Dataset[[#This Row],[2027/28 To - Spending review Topic 1]]+Dataset[[#This Row],[2027/28 To - Spending review Topic 2]]+Dataset[[#This Row],[2027/28 To - Spending review Topic 3]]+Dataset[[#This Row],[2027/28 To - Spending review Topic 4]]+Dataset[[#This Row],[2027/28 To - Other reallocations]]","v":0},{"$f":"Dataset[[#This Row],[2028/29 To - Spending review Topic 1]]+Dataset[[#This Row],[2028/29 To - Spending review Topic 2]]+Dataset[[#This Row],[2028/29 To - Spending review Topic 3]]+Dataset[[#This Row],[2028/29 To - Spending review Topic 4]]+Dataset[[#This Row],[2028/29 To - Other reallocations]]","v":0},{"$f":"Dataset[[#This Row],[2029/30 To - Spending review Topic 1]]+Dataset[[#This Row],[2029/30 To - Spending review Topic 2]]+Dataset[[#This Row],[2029/30 To - Spending review Topic 3]]+Dataset[[#This Row],[2029/30 To - Spending review Topic 4]]+Dataset[[#This Row],[2029/30 To - Other reallocations]]","v":0},{"$f":"Dataset[[#This Row],[2027/28 Targeted savings]]+Dataset[[#This Row],[2027/28 From - Total]]","v":0},{"$f":"Dataset[[#This Row],[2028/29 Targeted savings]]+Dataset[[#This Row],[2028/29 From - Total]]","v":0},{"$f":"Dataset[[#This Row],[2029/30 Targeted savings]]+Dataset[[#This Row],[2029/30 From - Total]]","v":0},{"$f":"Dataset[[#This Row],[2026/27 Targeted savings]]","v":0},{"$f":"SUM(Dataset[[#This Row],[2027/28 Targeted savings]],Dataset[[#This Row],[2027/28 From - Total]],Dataset[[#This Row],[2027/28 To - Total]])","v":0},{"$f":"SUM(Dataset[[#This Row],[2028/29 Targeted savings]],Dataset[[#This Row],[2028/29 From - Total]],Dataset[[#This Row],[2028/29 To - Total]])","v":0},{"$f":"SUM(Dataset[[#This Row],[2029/30 Targeted savings]],Dataset[[#This Row],[2029/30 From - Total]],Dataset[[#This Row],[2029/30 To - Total]])","v":0},{"$f":"Dataset[[#This Row],[2026/27 Baseline]]+Dataset[[#This Row],[2026/27 Total change]]","v":1449},{"$f":"Dataset[[#This Row],[2027/28 Baseline]]+Dataset[[#This Row],[2027/28 Total change]]","v":1000},{"$f":"Dataset[[#This Row],[2028/29 Baseline]]+Dataset[[#This Row],[2028/29 Total change]]","v":1100},{"$f":"Dataset[[#This Row],[2029/30 Baseline]]+Dataset[[#This Row],[2029/30 Total change]]","v":1133}]
["NAT|Households","30|Social benefits","2027_28","MTEC2027",30,2,4,32902,382,"30","02","04","032902","000382","30|02|04|000382","01","02","10","52","56","01|02|10|52|56","National","Communications and Digital Technologies","ICT Transformation, Global Partnerships and State-Owned Enterprises Governance","ICT Sector Transformation Programmes","Households","Current","Transfers and subsidies","Households","Social benefits","Social benefits","Economic development","Economic regulation and infrastructure","NAT",103,0,0,0,0,0,0,0,0,0,0,null,null,null,null,null,null,null,null,null,null,null,null,null,null,null,null,null,null,null,null,null,null,null,null,null,null,null,null,null,null,null,null,null,null,{"$f":"Dataset[[#This Row],[2027/28 From - Spending review Topic 1]]+Dataset[[#This Row],[2027/28 From - Spending review Topic 2]]+Dataset[[#This Row],[2027/28 From - Spending review Topic 3]]+Dataset[[#This Row],[2027/28 From - Spending review Topic 4]]+Dataset[[#This Row],[2027/28 From - Other reallocations]]","v":0},{"$f":"Dataset[[#This Row],[2028/29 From - Spending review Topic 1]]+Dataset[[#This Row],[2028/29 From - Spending review Topic 2]]+Dataset[[#This Row],[2028/29 From - Spending review Topic 3]]+Dataset[[#This Row],[2028/29 From - Spending review Topic 4]]+Dataset[[#This Row],[2028/29 From - Other reallocations]]","v":0},{"$f":"Dataset[[#This Row],[2029/30 From - Spending review Topic 1]]+Dataset[[#This Row],[2029/30 From - Spending review Topic 2]]+Dataset[[#This Row],[2029/30 From - Spending review Topic 3]]+Dataset[[#This Row],[2029/30 From - Spending review Topic 4]]+Dataset[[#This Row],[2029/30 From - Other reallocations]]","v":0},{"$f":"Dataset[[#This Row],[2027/28 To - Spending review Topic 1]]+Dataset[[#This Row],[2027/28 To - Spending review Topic 2]]+Dataset[[#This Row],[2027/28 To - Spending review Topic 3]]+Dataset[[#This Row],[2027/28 To - Spending review Topic 4]]+Dataset[[#This Row],[2027/28 To - Other reallocations]]","v":0},{"$f":"Dataset[[#This Row],[2028/29 To - Spending review Topic 1]]+Dataset[[#This Row],[2028/29 To - Spending review Topic 2]]+Dataset[[#This Row],[2028/29 To - Spending review Topic 3]]+Dataset[[#This Row],[2028/29 To - Spending review Topic 4]]+Dataset[[#This Row],[2028/29 To - Other reallocations]]","v":0},{"$f":"Dataset[[#This Row],[2029/30 To - Spending review Topic 1]]+Dataset[[#This Row],[2029/30 To - Spending review Topic 2]]+Dataset[[#This Row],[2029/30 To - Spending review Topic 3]]+Dataset[[#This Row],[2029/30 To - Spending review Topic 4]]+Dataset[[#This Row],[2029/30 To - Other reallocations]]","v":0},{"$f":"Dataset[[#This Row],[2027/28 Targeted savings]]+Dataset[[#This Row],[2027/28 From - Total]]","v":0},{"$f":"Dataset[[#This Row],[2028/29 Targeted savings]]+Dataset[[#This Row],[2028/29 From - Total]]","v":0},{"$f":"Dataset[[#This Row],[2029/30 Targeted savings]]+Dataset[[#This Row],[2029/30 From - Total]]","v":0},{"$f":"Dataset[[#This Row],[2026/27 Targeted savings]]","v":0},{"$f":"SUM(Dataset[[#This Row],[2027/28 Targeted savings]],Dataset[[#This Row],[2027/28 From - Total]],Dataset[[#This Row],[2027/28 To - Total]])","v":0},{"$f":"SUM(Dataset[[#This Row],[2028/29 Targeted savings]],Dataset[[#This Row],[2028/29 From - Total]],Dataset[[#This Row],[2028/29 To - Total]])","v":0},{"$f":"SUM(Dataset[[#This Row],[2029/30 Targeted savings]],Dataset[[#This Row],[2029/30 From - Total]],Dataset[[#This Row],[2029/30 To - Total]])","v":0},{"$f":"Dataset[[#This Row],[2026/27 Baseline]]+Dataset[[#This Row],[2026/27 Total change]]","v":0},{"$f":"Dataset[[#This Row],[2027/28 Baseline]]+Dataset[[#This Row],[2027/28 Total change]]","v":0},{"$f":"Dataset[[#This Row],[2028/29 Baseline]]+Dataset[[#This Row],[2028/29 Total change]]","v":0},{"$f":"Dataset[[#This Row],[2029/30 Baseline]]+Dataset[[#This Row],[2029/30 Total change]]","v":0}]
["NAT|Households","30|Other transfers to households","2027_28","MTEC2027",30,2,4,32903,383,"30","02","04","032903","000383","30|02|04|000383","01","02","10","53","57","01|02|10|53|57","National","Communications and Digital Technologies","ICT Transformation, Global Partnerships and State-Owned Enterprises Governance","ICT Sector Transformation Programmes","Households","Current","Transfers and subsidies","Households","Other transfers to households","Other transfers to households","Economic development","Economic regulation and infrastructure","NAT",8,0,0,0,0,0,0,0,0,0,0,null,null,null,null,null,null,null,null,null,null,null,null,null,null,null,null,null,null,null,null,null,null,null,null,null,null,null,null,null,null,null,null,null,null,{"$f":"Dataset[[#This Row],[2027/28 From - Spending review Topic 1]]+Dataset[[#This Row],[2027/28 From - Spending review Topic 2]]+Dataset[[#This Row],[2027/28 From - Spending review Topic 3]]+Dataset[[#This Row],[2027/28 From - Spending review Topic 4]]+Dataset[[#This Row],[2027/28 From - Other reallocations]]","v":0},{"$f":"Dataset[[#This Row],[2028/29 From - Spending review Topic 1]]+Dataset[[#This Row],[2028/29 From - Spending review Topic 2]]+Dataset[[#This Row],[2028/29 From - Spending review Topic 3]]+Dataset[[#This Row],[2028/29 From - Spending review Topic 4]]+Dataset[[#This Row],[2028/29 From - Other reallocations]]","v":0},{"$f":"Dataset[[#This Row],[2029/30 From - Spending review Topic 1]]+Dataset[[#This Row],[2029/30 From - Spending review Topic 2]]+Dataset[[#This Row],[2029/30 From - Spending review Topic 3]]+Dataset[[#This Row],[2029/30 From - Spending review Topic 4]]+Dataset[[#This Row],[2029/30 From - Other reallocations]]","v":0},{"$f":"Dataset[[#This Row],[2027/28 To - Spending review Topic 1]]+Dataset[[#This Row],[2027/28 To - Spending review Topic 2]]+Dataset[[#This Row],[2027/28 To - Spending review Topic 3]]+Dataset[[#This Row],[2027/28 To - Spending review Topic 4]]+Dataset[[#This Row],[2027/28 To - Other reallocations]]","v":0},{"$f":"Dataset[[#This Row],[2028/29 To - Spending review Topic 1]]+Dataset[[#This Row],[2028/29 To - Spending review Topic 2]]+Dataset[[#This Row],[2028/29 To - Spending review Topic 3]]+Dataset[[#This Row],[2028/29 To - Spending review Topic 4]]+Dataset[[#This Row],[2028/29 To - Other reallocations]]","v":0},{"$f":"Dataset[[#This Row],[2029/30 To - Spending review Topic 1]]+Dataset[[#This Row],[2029/30 To - Spending review Topic 2]]+Dataset[[#This Row],[2029/30 To - Spending review Topic 3]]+Dataset[[#This Row],[2029/30 To - Spending review Topic 4]]+Dataset[[#This Row],[2029/30 To - Other reallocations]]","v":0},{"$f":"Dataset[[#This Row],[2027/28 Targeted savings]]+Dataset[[#This Row],[2027/28 From - Total]]","v":0},{"$f":"Dataset[[#This Row],[2028/29 Targeted savings]]+Dataset[[#This Row],[2028/29 From - Total]]","v":0},{"$f":"Dataset[[#This Row],[2029/30 Targeted savings]]+Dataset[[#This Row],[2029/30 From - Total]]","v":0},{"$f":"Dataset[[#This Row],[2026/27 Targeted savings]]","v":0},{"$f":"SUM(Dataset[[#This Row],[2027/28 Targeted savings]],Dataset[[#This Row],[2027/28 From - Total]],Dataset[[#This Row],[2027/28 To - Total]])","v":0},{"$f":"SUM(Dataset[[#This Row],[2028/29 Targeted savings]],Dataset[[#This Row],[2028/29 From - Total]],Dataset[[#This Row],[2028/29 To - Total]])","v":0},{"$f":"SUM(Dataset[[#This Row],[2029/30 Targeted savings]],Dataset[[#This Row],[2029/30 From - Total]],Dataset[[#This Row],[2029/30 To - Total]])","v":0},{"$f":"Dataset[[#This Row],[2026/27 Baseline]]+Dataset[[#This Row],[2026/27 Total change]]","v":0},{"$f":"Dataset[[#This Row],[2027/28 Baseline]]+Dataset[[#This Row],[2027/28 Total change]]","v":0},{"$f":"Dataset[[#This Row],[2028/29 Baseline]]+Dataset[[#This Row],[2028/29 Total change]]","v":0},{"$f":"Dataset[[#This Row],[2029/30 Baseline]]+Dataset[[#This Row],[2029/30 Total change]]","v":0}]
["NAT|Non-transfer","30|Other machinery and equipment","2027_28","MTEC2027",30,2,4,32904,384,"30","02","04","032904","000384","30|02|04|000384","02","03","12","57","61","02|03|12|57|61","National","Communications and Digital Technologies","ICT Transformation, Global Partnerships and State-Owned Enterprises Governance","ICT Sector Transformation Programmes","Non-transfer","Capital","Payments for capital assets","Machinery and equipment","Other machinery and equipment","Other machinery and equipment","Economic development","Economic regulation and infrastructure","NAT",0,24,0,150,150,150,0,0,0,0,0,null,null,null,null,null,null,null,null,null,null,null,null,null,null,null,null,null,null,null,null,null,null,null,null,null,null,null,null,null,null,null,null,null,null,{"$f":"Dataset[[#This Row],[2027/28 From - Spending review Topic 1]]+Dataset[[#This Row],[2027/28 From - Spending review Topic 2]]+Dataset[[#This Row],[2027/28 From - Spending review Topic 3]]+Dataset[[#This Row],[2027/28 From - Spending review Topic 4]]+Dataset[[#This Row],[2027/28 From - Other reallocations]]","v":0},{"$f":"Dataset[[#This Row],[2028/29 From - Spending review Topic 1]]+Dataset[[#This Row],[2028/29 From - Spending review Topic 2]]+Dataset[[#This Row],[2028/29 From - Spending review Topic 3]]+Dataset[[#This Row],[2028/29 From - Spending review Topic 4]]+Dataset[[#This Row],[2028/29 From - Other reallocations]]","v":0},{"$f":"Dataset[[#This Row],[2029/30 From - Spending review Topic 1]]+Dataset[[#This Row],[2029/30 From - Spending review Topic 2]]+Dataset[[#This Row],[2029/30 From - Spending review Topic 3]]+Dataset[[#This Row],[2029/30 From - Spending review Topic 4]]+Dataset[[#This Row],[2029/30 From - Other reallocations]]","v":0},{"$f":"Dataset[[#This Row],[2027/28 To - Spending review Topic 1]]+Dataset[[#This Row],[2027/28 To - Spending review Topic 2]]+Dataset[[#This Row],[2027/28 To - Spending review Topic 3]]+Dataset[[#This Row],[2027/28 To - Spending review Topic 4]]+Dataset[[#This Row],[2027/28 To - Other reallocations]]","v":0},{"$f":"Dataset[[#This Row],[2028/29 To - Spending review Topic 1]]+Dataset[[#This Row],[2028/29 To - Spending review Topic 2]]+Dataset[[#This Row],[2028/29 To - Spending review Topic 3]]+Dataset[[#This Row],[2028/29 To - Spending review Topic 4]]+Dataset[[#This Row],[2028/29 To - Other reallocations]]","v":0},{"$f":"Dataset[[#This Row],[2029/30 To - Spending review Topic 1]]+Dataset[[#This Row],[2029/30 To - Spending review Topic 2]]+Dataset[[#This Row],[2029/30 To - Spending review Topic 3]]+Dataset[[#This Row],[2029/30 To - Spending review Topic 4]]+Dataset[[#This Row],[2029/30 To - Other reallocations]]","v":0},{"$f":"Dataset[[#This Row],[2027/28 Targeted savings]]+Dataset[[#This Row],[2027/28 From - Total]]","v":0},{"$f":"Dataset[[#This Row],[2028/29 Targeted savings]]+Dataset[[#This Row],[2028/29 From - Total]]","v":0},{"$f":"Dataset[[#This Row],[2029/30 Targeted savings]]+Dataset[[#This Row],[2029/30 From - Total]]","v":0},{"$f":"Dataset[[#This Row],[2026/27 Targeted savings]]","v":0},{"$f":"SUM(Dataset[[#This Row],[2027/28 Targeted savings]],Dataset[[#This Row],[2027/28 From - Total]],Dataset[[#This Row],[2027/28 To - Total]])","v":0},{"$f":"SUM(Dataset[[#This Row],[2028/29 Targeted savings]],Dataset[[#This Row],[2028/29 From - Total]],Dataset[[#This Row],[2028/29 To - Total]])","v":0},{"$f":"SUM(Dataset[[#This Row],[2029/30 Targeted savings]],Dataset[[#This Row],[2029/30 From - Total]],Dataset[[#This Row],[2029/30 To - Total]])","v":0},{"$f":"Dataset[[#This Row],[2026/27 Baseline]]+Dataset[[#This Row],[2026/27 Total change]]","v":0},{"$f":"Dataset[[#This Row],[2027/28 Baseline]]+Dataset[[#This Row],[2027/28 Total change]]","v":0},{"$f":"Dataset[[#This Row],[2028/29 Baseline]]+Dataset[[#This Row],[2028/29 Total change]]","v":0},{"$f":"Dataset[[#This Row],[2029/30 Baseline]]+Dataset[[#This Row],[2029/30 Total change]]","v":0}]
["NAT|Non-transfer","30|Salaries and wages","2027_28","MTEC2027",30,3,1,32905,385,"30","03","01","032905","000385","30|03|01|000385","01","01","01","01","01","01|01|01|01|01","National","Communications and Digital Technologies","Media and Content","Programme Management for Media and Content","Non-transfer","Current","Current payments","Compensation of employees","Salaries and wages","Salaries and wages","Economic development","Economic regulation and infrastructure","NAT",1424,623,646,2064,1062,1062,0,2855,3557,3727,3839,null,null,null,null,null,null,null,null,null,null,null,null,null,null,null,null,null,null,null,null,null,null,null,null,null,null,null,null,null,null,null,null,null,null,{"$f":"Dataset[[#This Row],[2027/28 From - Spending review Topic 1]]+Dataset[[#This Row],[2027/28 From - Spending review Topic 2]]+Dataset[[#This Row],[2027/28 From - Spending review Topic 3]]+Dataset[[#This Row],[2027/28 From - Spending review Topic 4]]+Dataset[[#This Row],[2027/28 From - Other reallocations]]","v":0},{"$f":"Dataset[[#This Row],[2028/29 From - Spending review Topic 1]]+Dataset[[#This Row],[2028/29 From - Spending review Topic 2]]+Dataset[[#This Row],[2028/29 From - Spending review Topic 3]]+Dataset[[#This Row],[2028/29 From - Spending review Topic 4]]+Dataset[[#This Row],[2028/29 From - Other reallocations]]","v":0},{"$f":"Dataset[[#This Row],[2029/30 From - Spending review Topic 1]]+Dataset[[#This Row],[2029/30 From - Spending review Topic 2]]+Dataset[[#This Row],[2029/30 From - Spending review Topic 3]]+Dataset[[#This Row],[2029/30 From - Spending review Topic 4]]+Dataset[[#This Row],[2029/30 From - Other reallocations]]","v":0},{"$f":"Dataset[[#This Row],[2027/28 To - Spending review Topic 1]]+Dataset[[#This Row],[2027/28 To - Spending review Topic 2]]+Dataset[[#This Row],[2027/28 To - Spending review Topic 3]]+Dataset[[#This Row],[2027/28 To - Spending review Topic 4]]+Dataset[[#This Row],[2027/28 To - Other reallocations]]","v":0},{"$f":"Dataset[[#This Row],[2028/29 To - Spending review Topic 1]]+Dataset[[#This Row],[2028/29 To - Spending review Topic 2]]+Dataset[[#This Row],[2028/29 To - Spending review Topic 3]]+Dataset[[#This Row],[2028/29 To - Spending review Topic 4]]+Dataset[[#This Row],[2028/29 To - Other reallocations]]","v":0},{"$f":"Dataset[[#This Row],[2029/30 To - Spending review Topic 1]]+Dataset[[#This Row],[2029/30 To - Spending review Topic 2]]+Dataset[[#This Row],[2029/30 To - Spending review Topic 3]]+Dataset[[#This Row],[2029/30 To - Spending review Topic 4]]+Dataset[[#This Row],[2029/30 To - Other reallocations]]","v":0},{"$f":"Dataset[[#This Row],[2027/28 Targeted savings]]+Dataset[[#This Row],[2027/28 From - Total]]","v":0},{"$f":"Dataset[[#This Row],[2028/29 Targeted savings]]+Dataset[[#This Row],[2028/29 From - Total]]","v":0},{"$f":"Dataset[[#This Row],[2029/30 Targeted savings]]+Dataset[[#This Row],[2029/30 From - Total]]","v":0},{"$f":"Dataset[[#This Row],[2026/27 Targeted savings]]","v":0},{"$f":"SUM(Dataset[[#This Row],[2027/28 Targeted savings]],Dataset[[#This Row],[2027/28 From - Total]],Dataset[[#This Row],[2027/28 To - Total]])","v":0},{"$f":"SUM(Dataset[[#This Row],[2028/29 Targeted savings]],Dataset[[#This Row],[2028/29 From - Total]],Dataset[[#This Row],[2028/29 To - Total]])","v":0},{"$f":"SUM(Dataset[[#This Row],[2029/30 Targeted savings]],Dataset[[#This Row],[2029/30 From - Total]],Dataset[[#This Row],[2029/30 To - Total]])","v":0},{"$f":"Dataset[[#This Row],[2026/27 Baseline]]+Dataset[[#This Row],[2026/27 Total change]]","v":2855},{"$f":"Dataset[[#This Row],[2027/28 Baseline]]+Dataset[[#This Row],[2027/28 Total change]]","v":3557},{"$f":"Dataset[[#This Row],[2028/29 Baseline]]+Dataset[[#This Row],[2028/29 Total change]]","v":3727},{"$f":"Dataset[[#This Row],[2029/30 Baseline]]+Dataset[[#This Row],[2029/30 Total change]]","v":3839}]
["NAT|Non-transfer","30|Social contributions","2027_28","MTEC2027",30,3,1,32906,386,"30","03","01","032906","000386","30|03|01|000386","01","01","01","02","02","01|01|01|02|02","National","Communications and Digital Technologies","Media and Content","Programme Management for Media and Content","Non-transfer","Current","Current payments","Compensation of employees","Social contributions","Social contributions","Economic development","Economic regulation and infrastructure","NAT",112,119,125,211,211,211,0,321,351,368,379,null,null,null,null,null,null,null,null,null,null,null,null,null,null,null,null,null,null,null,null,null,null,null,null,null,null,null,null,null,null,null,null,null,null,{"$f":"Dataset[[#This Row],[2027/28 From - Spending review Topic 1]]+Dataset[[#This Row],[2027/28 From - Spending review Topic 2]]+Dataset[[#This Row],[2027/28 From - Spending review Topic 3]]+Dataset[[#This Row],[2027/28 From - Spending review Topic 4]]+Dataset[[#This Row],[2027/28 From - Other reallocations]]","v":0},{"$f":"Dataset[[#This Row],[2028/29 From - Spending review Topic 1]]+Dataset[[#This Row],[2028/29 From - Spending review Topic 2]]+Dataset[[#This Row],[2028/29 From - Spending review Topic 3]]+Dataset[[#This Row],[2028/29 From - Spending review Topic 4]]+Dataset[[#This Row],[2028/29 From - Other reallocations]]","v":0},{"$f":"Dataset[[#This Row],[2029/30 From - Spending review Topic 1]]+Dataset[[#This Row],[2029/30 From - Spending review Topic 2]]+Dataset[[#This Row],[2029/30 From - Spending review Topic 3]]+Dataset[[#This Row],[2029/30 From - Spending review Topic 4]]+Dataset[[#This Row],[2029/30 From - Other reallocations]]","v":0},{"$f":"Dataset[[#This Row],[2027/28 To - Spending review Topic 1]]+Dataset[[#This Row],[2027/28 To - Spending review Topic 2]]+Dataset[[#This Row],[2027/28 To - Spending review Topic 3]]+Dataset[[#This Row],[2027/28 To - Spending review Topic 4]]+Dataset[[#This Row],[2027/28 To - Other reallocations]]","v":0},{"$f":"Dataset[[#This Row],[2028/29 To - Spending review Topic 1]]+Dataset[[#This Row],[2028/29 To - Spending review Topic 2]]+Dataset[[#This Row],[2028/29 To - Spending review Topic 3]]+Dataset[[#This Row],[2028/29 To - Spending review Topic 4]]+Dataset[[#This Row],[2028/29 To - Other reallocations]]","v":0},{"$f":"Dataset[[#This Row],[2029/30 To - Spending review Topic 1]]+Dataset[[#This Row],[2029/30 To - Spending review Topic 2]]+Dataset[[#This Row],[2029/30 To - Spending review Topic 3]]+Dataset[[#This Row],[2029/30 To - Spending review Topic 4]]+Dataset[[#This Row],[2029/30 To - Other reallocations]]","v":0},{"$f":"Dataset[[#This Row],[2027/28 Targeted savings]]+Dataset[[#This Row],[2027/28 From - Total]]","v":0},{"$f":"Dataset[[#This Row],[2028/29 Targeted savings]]+Dataset[[#This Row],[2028/29 From - Total]]","v":0},{"$f":"Dataset[[#This Row],[2029/30 Targeted savings]]+Dataset[[#This Row],[2029/30 From - Total]]","v":0},{"$f":"Dataset[[#This Row],[2026/27 Targeted savings]]","v":0},{"$f":"SUM(Dataset[[#This Row],[2027/28 Targeted savings]],Dataset[[#This Row],[2027/28 From - Total]],Dataset[[#This Row],[2027/28 To - Total]])","v":0},{"$f":"SUM(Dataset[[#This Row],[2028/29 Targeted savings]],Dataset[[#This Row],[2028/29 From - Total]],Dataset[[#This Row],[2028/29 To - Total]])","v":0},{"$f":"SUM(Dataset[[#This Row],[2029/30 Targeted savings]],Dataset[[#This Row],[2029/30 From - Total]],Dataset[[#This Row],[2029/30 To - Total]])","v":0},{"$f":"Dataset[[#This Row],[2026/27 Baseline]]+Dataset[[#This Row],[2026/27 Total change]]","v":321},{"$f":"Dataset[[#This Row],[2027/28 Baseline]]+Dataset[[#This Row],[2027/28 Total change]]","v":351},{"$f":"Dataset[[#This Row],[2028/29 Baseline]]+Dataset[[#This Row],[2028/29 Total change]]","v":368},{"$f":"Dataset[[#This Row],[2029/30 Baseline]]+Dataset[[#This Row],[2029/30 Total change]]","v":379}]
["NAT|Non-transfer","30|Administrative fees","2027_28","MTEC2027",30,3,1,32907,387,"30","03","01","032907","000387","30|03|01|000387","01","01","02","03","03","01|01|02|03|03","National","Communications and Digital Technologies","Media and Content","Programme Management for Media and Content","Non-transfer","Current","Current payments","Goods and services","Administrative fees","Administrative fees","Economic development","Economic regulation and infrastructure","NAT",3,4,8,0,15,15,0,20,22,6,6,null,null,null,null,null,null,null,null,null,null,null,null,null,null,null,null,null,null,null,null,null,null,null,null,null,null,null,null,null,null,null,null,null,null,{"$f":"Dataset[[#This Row],[2027/28 From - Spending review Topic 1]]+Dataset[[#This Row],[2027/28 From - Spending review Topic 2]]+Dataset[[#This Row],[2027/28 From - Spending review Topic 3]]+Dataset[[#This Row],[2027/28 From - Spending review Topic 4]]+Dataset[[#This Row],[2027/28 From - Other reallocations]]","v":0},{"$f":"Dataset[[#This Row],[2028/29 From - Spending review Topic 1]]+Dataset[[#This Row],[2028/29 From - Spending review Topic 2]]+Dataset[[#This Row],[2028/29 From - Spending review Topic 3]]+Dataset[[#This Row],[2028/29 From - Spending review Topic 4]]+Dataset[[#This Row],[2028/29 From - Other reallocations]]","v":0},{"$f":"Dataset[[#This Row],[2029/30 From - Spending review Topic 1]]+Dataset[[#This Row],[2029/30 From - Spending review Topic 2]]+Dataset[[#This Row],[2029/30 From - Spending review Topic 3]]+Dataset[[#This Row],[2029/30 From - Spending review Topic 4]]+Dataset[[#This Row],[2029/30 From - Other reallocations]]","v":0},{"$f":"Dataset[[#This Row],[2027/28 To - Spending review Topic 1]]+Dataset[[#This Row],[2027/28 To - Spending review Topic 2]]+Dataset[[#This Row],[2027/28 To - Spending review Topic 3]]+Dataset[[#This Row],[2027/28 To - Spending review Topic 4]]+Dataset[[#This Row],[2027/28 To - Other reallocations]]","v":0},{"$f":"Dataset[[#This Row],[2028/29 To - Spending review Topic 1]]+Dataset[[#This Row],[2028/29 To - Spending review Topic 2]]+Dataset[[#This Row],[2028/29 To - Spending review Topic 3]]+Dataset[[#This Row],[2028/29 To - Spending review Topic 4]]+Dataset[[#This Row],[2028/29 To - Other reallocations]]","v":0},{"$f":"Dataset[[#This Row],[2029/30 To - Spending review Topic 1]]+Dataset[[#This Row],[2029/30 To - Spending review Topic 2]]+Dataset[[#This Row],[2029/30 To - Spending review Topic 3]]+Dataset[[#This Row],[2029/30 To - Spending review Topic 4]]+Dataset[[#This Row],[2029/30 To - Other reallocations]]","v":0},{"$f":"Dataset[[#This Row],[2027/28 Targeted savings]]+Dataset[[#This Row],[2027/28 From - Total]]","v":0},{"$f":"Dataset[[#This Row],[2028/29 Targeted savings]]+Dataset[[#This Row],[2028/29 From - Total]]","v":0},{"$f":"Dataset[[#This Row],[2029/30 Targeted savings]]+Dataset[[#This Row],[2029/30 From - Total]]","v":0},{"$f":"Dataset[[#This Row],[2026/27 Targeted savings]]","v":0},{"$f":"SUM(Dataset[[#This Row],[2027/28 Targeted savings]],Dataset[[#This Row],[2027/28 From - Total]],Dataset[[#This Row],[2027/28 To - Total]])","v":0},{"$f":"SUM(Dataset[[#This Row],[2028/29 Targeted savings]],Dataset[[#This Row],[2028/29 From - Total]],Dataset[[#This Row],[2028/29 To - Total]])","v":0},{"$f":"SUM(Dataset[[#This Row],[2029/30 Targeted savings]],Dataset[[#This Row],[2029/30 From - Total]],Dataset[[#This Row],[2029/30 To - Total]])","v":0},{"$f":"Dataset[[#This Row],[2026/27 Baseline]]+Dataset[[#This Row],[2026/27 Total change]]","v":20},{"$f":"Dataset[[#This Row],[2027/28 Baseline]]+Dataset[[#This Row],[2027/28 Total change]]","v":22},{"$f":"Dataset[[#This Row],[2028/29 Baseline]]+Dataset[[#This Row],[2028/29 Total change]]","v":6},{"$f":"Dataset[[#This Row],[2029/30 Baseline]]+Dataset[[#This Row],[2029/30 Total change]]","v":6}]
["NAT|Non-transfer","30|Minor assets","2027_28","MTEC2027",30,3,1,32908,388,"30","03","01","032908","000388","30|03|01|000388","01","01","02","05","05","01|01|02|05|05","National","Communications and Digital Technologies","Media and Content","Programme Management for Media and Content","Non-transfer","Current","Current payments","Goods and services","Minor assets","Minor assets","Economic development","Economic regulation and infrastructure","NAT",0,0,0,40,40,40,0,0,27,28,29,null,null,null,null,null,null,null,null,null,null,null,null,null,null,null,null,null,null,null,null,null,null,null,null,null,null,null,null,null,null,null,null,null,null,{"$f":"Dataset[[#This Row],[2027/28 From - Spending review Topic 1]]+Dataset[[#This Row],[2027/28 From - Spending review Topic 2]]+Dataset[[#This Row],[2027/28 From - Spending review Topic 3]]+Dataset[[#This Row],[2027/28 From - Spending review Topic 4]]+Dataset[[#This Row],[2027/28 From - Other reallocations]]","v":0},{"$f":"Dataset[[#This Row],[2028/29 From - Spending review Topic 1]]+Dataset[[#This Row],[2028/29 From - Spending review Topic 2]]+Dataset[[#This Row],[2028/29 From - Spending review Topic 3]]+Dataset[[#This Row],[2028/29 From - Spending review Topic 4]]+Dataset[[#This Row],[2028/29 From - Other reallocations]]","v":0},{"$f":"Dataset[[#This Row],[2029/30 From - Spending review Topic 1]]+Dataset[[#This Row],[2029/30 From - Spending review Topic 2]]+Dataset[[#This Row],[2029/30 From - Spending review Topic 3]]+Dataset[[#This Row],[2029/30 From - Spending review Topic 4]]+Dataset[[#This Row],[2029/30 From - Other reallocations]]","v":0},{"$f":"Dataset[[#This Row],[2027/28 To - Spending review Topic 1]]+Dataset[[#This Row],[2027/28 To - Spending review Topic 2]]+Dataset[[#This Row],[2027/28 To - Spending review Topic 3]]+Dataset[[#This Row],[2027/28 To - Spending review Topic 4]]+Dataset[[#This Row],[2027/28 To - Other reallocations]]","v":0},{"$f":"Dataset[[#This Row],[2028/29 To - Spending review Topic 1]]+Dataset[[#This Row],[2028/29 To - Spending review Topic 2]]+Dataset[[#This Row],[2028/29 To - Spending review Topic 3]]+Dataset[[#This Row],[2028/29 To - Spending review Topic 4]]+Dataset[[#This Row],[2028/29 To - Other reallocations]]","v":0},{"$f":"Dataset[[#This Row],[2029/30 To - Spending review Topic 1]]+Dataset[[#This Row],[2029/30 To - Spending review Topic 2]]+Dataset[[#This Row],[2029/30 To - Spending review Topic 3]]+Dataset[[#This Row],[2029/30 To - Spending review Topic 4]]+Dataset[[#This Row],[2029/30 To - Other reallocations]]","v":0},{"$f":"Dataset[[#This Row],[2027/28 Targeted savings]]+Dataset[[#This Row],[2027/28 From - Total]]","v":0},{"$f":"Dataset[[#This Row],[2028/29 Targeted savings]]+Dataset[[#This Row],[2028/29 From - Total]]","v":0},{"$f":"Dataset[[#This Row],[2029/30 Targeted savings]]+Dataset[[#This Row],[2029/30 From - Total]]","v":0},{"$f":"Dataset[[#This Row],[2026/27 Targeted savings]]","v":0},{"$f":"SUM(Dataset[[#This Row],[2027/28 Targeted savings]],Dataset[[#This Row],[2027/28 From - Total]],Dataset[[#This Row],[2027/28 To - Total]])","v":0},{"$f":"SUM(Dataset[[#This Row],[2028/29 Targeted savings]],Dataset[[#This Row],[2028/29 From - Total]],Dataset[[#This Row],[2028/29 To - Total]])","v":0},{"$f":"SUM(Dataset[[#This Row],[2029/30 Targeted savings]],Dataset[[#This Row],[2029/30 From - Total]],Dataset[[#This Row],[2029/30 To - Total]])","v":0},{"$f":"Dataset[[#This Row],[2026/27 Baseline]]+Dataset[[#This Row],[2026/27 Total change]]","v":0},{"$f":"Dataset[[#This Row],[2027/28 Baseline]]+Dataset[[#This Row],[2027/28 Total change]]","v":27},{"$f":"Dataset[[#This Row],[2028/29 Baseline]]+Dataset[[#This Row],[2028/29 Total change]]","v":28},{"$f":"Dataset[[#This Row],[2029/30 Baseline]]+Dataset[[#This Row],[2029/30 Total change]]","v":29}]
["NAT|Non-transfer","30|Bursaries: Employees","2027_28","MTEC2027",30,3,1,32909,389,"30","03","01","032909","000389","30|03|01|000389","01","01","02","07","07","01|01|02|07|07","National","Communications and Digital Technologies","Media and Content","Programme Management for Media and Content","Non-transfer","Current","Current payments","Goods and services","Bursaries: Employees","Bursaries: Employees","Economic development","Economic regulation and infrastructure","NAT",0,0,0,10,10,10,0,0,0,0,0,null,null,null,null,null,null,null,null,null,null,null,null,null,null,null,null,null,null,null,null,null,null,null,null,null,null,null,null,null,null,null,null,null,null,{"$f":"Dataset[[#This Row],[2027/28 From - Spending review Topic 1]]+Dataset[[#This Row],[2027/28 From - Spending review Topic 2]]+Dataset[[#This Row],[2027/28 From - Spending review Topic 3]]+Dataset[[#This Row],[2027/28 From - Spending review Topic 4]]+Dataset[[#This Row],[2027/28 From - Other reallocations]]","v":0},{"$f":"Dataset[[#This Row],[2028/29 From - Spending review Topic 1]]+Dataset[[#This Row],[2028/29 From - Spending review Topic 2]]+Dataset[[#This Row],[2028/29 From - Spending review Topic 3]]+Dataset[[#This Row],[2028/29 From - Spending review Topic 4]]+Dataset[[#This Row],[2028/29 From - Other reallocations]]","v":0},{"$f":"Dataset[[#This Row],[2029/30 From - Spending review Topic 1]]+Dataset[[#This Row],[2029/30 From - Spending review Topic 2]]+Dataset[[#This Row],[2029/30 From - Spending review Topic 3]]+Dataset[[#This Row],[2029/30 From - Spending review Topic 4]]+Dataset[[#This Row],[2029/30 From - Other reallocations]]","v":0},{"$f":"Dataset[[#This Row],[2027/28 To - Spending review Topic 1]]+Dataset[[#This Row],[2027/28 To - Spending review Topic 2]]+Dataset[[#This Row],[2027/28 To - Spending review Topic 3]]+Dataset[[#This Row],[2027/28 To - Spending review Topic 4]]+Dataset[[#This Row],[2027/28 To - Other reallocations]]","v":0},{"$f":"Dataset[[#This Row],[2028/29 To - Spending review Topic 1]]+Dataset[[#This Row],[2028/29 To - Spending review Topic 2]]+Dataset[[#This Row],[2028/29 To - Spending review Topic 3]]+Dataset[[#This Row],[2028/29 To - Spending review Topic 4]]+Dataset[[#This Row],[2028/29 To - Other reallocations]]","v":0},{"$f":"Dataset[[#This Row],[2029/30 To - Spending review Topic 1]]+Dataset[[#This Row],[2029/30 To - Spending review Topic 2]]+Dataset[[#This Row],[2029/30 To - Spending review Topic 3]]+Dataset[[#This Row],[2029/30 To - Spending review Topic 4]]+Dataset[[#This Row],[2029/30 To - Other reallocations]]","v":0},{"$f":"Dataset[[#This Row],[2027/28 Targeted savings]]+Dataset[[#This Row],[2027/28 From - Total]]","v":0},{"$f":"Dataset[[#This Row],[2028/29 Targeted savings]]+Dataset[[#This Row],[2028/29 From - Total]]","v":0},{"$f":"Dataset[[#This Row],[2029/30 Targeted savings]]+Dataset[[#This Row],[2029/30 From - Total]]","v":0},{"$f":"Dataset[[#This Row],[2026/27 Targeted savings]]","v":0},{"$f":"SUM(Dataset[[#This Row],[2027/28 Targeted savings]],Dataset[[#This Row],[2027/28 From - Total]],Dataset[[#This Row],[2027/28 To - Total]])","v":0},{"$f":"SUM(Dataset[[#This Row],[2028/29 Targeted savings]],Dataset[[#This Row],[2028/29 From - Total]],Dataset[[#This Row],[2028/29 To - Total]])","v":0},{"$f":"SUM(Dataset[[#This Row],[2029/30 Targeted savings]],Dataset[[#This Row],[2029/30 From - Total]],Dataset[[#This Row],[2029/30 To - Total]])","v":0},{"$f":"Dataset[[#This Row],[2026/27 Baseline]]+Dataset[[#This Row],[2026/27 Total change]]","v":0},{"$f":"Dataset[[#This Row],[2027/28 Baseline]]+Dataset[[#This Row],[2027/28 Total change]]","v":0},{"$f":"Dataset[[#This Row],[2028/29 Baseline]]+Dataset[[#This Row],[2028/29 Total change]]","v":0},{"$f":"Dataset[[#This Row],[2029/30 Baseline]]+Dataset[[#This Row],[2029/30 Total change]]","v":0}]
["NAT|Non-transfer","30|Catering: Departmental activities","2027_28","MTEC2027",30,3,1,32910,390,"30","03","01","032910","000390","30|03|01|000390","01","01","02","08","08","01|01|02|08|08","National","Communications and Digital Technologies","Media and Content","Programme Management for Media and Content","Non-transfer","Current","Current payments","Goods and services","Catering: Departmental activities","Catering: Departmental activities","Economic development","Economic regulation and infrastructure","NAT",0,0,0,10,10,10,0,30,32,0,0,null,null,null,null,null,null,null,null,null,null,null,null,null,null,null,null,null,null,null,null,null,null,null,null,null,null,null,null,null,null,null,null,null,null,{"$f":"Dataset[[#This Row],[2027/28 From - Spending review Topic 1]]+Dataset[[#This Row],[2027/28 From - Spending review Topic 2]]+Dataset[[#This Row],[2027/28 From - Spending review Topic 3]]+Dataset[[#This Row],[2027/28 From - Spending review Topic 4]]+Dataset[[#This Row],[2027/28 From - Other reallocations]]","v":0},{"$f":"Dataset[[#This Row],[2028/29 From - Spending review Topic 1]]+Dataset[[#This Row],[2028/29 From - Spending review Topic 2]]+Dataset[[#This Row],[2028/29 From - Spending review Topic 3]]+Dataset[[#This Row],[2028/29 From - Spending review Topic 4]]+Dataset[[#This Row],[2028/29 From - Other reallocations]]","v":0},{"$f":"Dataset[[#This Row],[2029/30 From - Spending review Topic 1]]+Dataset[[#This Row],[2029/30 From - Spending review Topic 2]]+Dataset[[#This Row],[2029/30 From - Spending review Topic 3]]+Dataset[[#This Row],[2029/30 From - Spending review Topic 4]]+Dataset[[#This Row],[2029/30 From - Other reallocations]]","v":0},{"$f":"Dataset[[#This Row],[2027/28 To - Spending review Topic 1]]+Dataset[[#This Row],[2027/28 To - Spending review Topic 2]]+Dataset[[#This Row],[2027/28 To - Spending review Topic 3]]+Dataset[[#This Row],[2027/28 To - Spending review Topic 4]]+Dataset[[#This Row],[2027/28 To - Other reallocations]]","v":0},{"$f":"Dataset[[#This Row],[2028/29 To - Spending review Topic 1]]+Dataset[[#This Row],[2028/29 To - Spending review Topic 2]]+Dataset[[#This Row],[2028/29 To - Spending review Topic 3]]+Dataset[[#This Row],[2028/29 To - Spending review Topic 4]]+Dataset[[#This Row],[2028/29 To - Other reallocations]]","v":0},{"$f":"Dataset[[#This Row],[2029/30 To - Spending review Topic 1]]+Dataset[[#This Row],[2029/30 To - Spending review Topic 2]]+Dataset[[#This Row],[2029/30 To - Spending review Topic 3]]+Dataset[[#This Row],[2029/30 To - Spending review Topic 4]]+Dataset[[#This Row],[2029/30 To - Other reallocations]]","v":0},{"$f":"Dataset[[#This Row],[2027/28 Targeted savings]]+Dataset[[#This Row],[2027/28 From - Total]]","v":0},{"$f":"Dataset[[#This Row],[2028/29 Targeted savings]]+Dataset[[#This Row],[2028/29 From - Total]]","v":0},{"$f":"Dataset[[#This Row],[2029/30 Targeted savings]]+Dataset[[#This Row],[2029/30 From - Total]]","v":0},{"$f":"Dataset[[#This Row],[2026/27 Targeted savings]]","v":0},{"$f":"SUM(Dataset[[#This Row],[2027/28 Targeted savings]],Dataset[[#This Row],[2027/28 From - Total]],Dataset[[#This Row],[2027/28 To - Total]])","v":0},{"$f":"SUM(Dataset[[#This Row],[2028/29 Targeted savings]],Dataset[[#This Row],[2028/29 From - Total]],Dataset[[#This Row],[2028/29 To - Total]])","v":0},{"$f":"SUM(Dataset[[#This Row],[2029/30 Targeted savings]],Dataset[[#This Row],[2029/30 From - Total]],Dataset[[#This Row],[2029/30 To - Total]])","v":0},{"$f":"Dataset[[#This Row],[2026/27 Baseline]]+Dataset[[#This Row],[2026/27 Total change]]","v":30},{"$f":"Dataset[[#This Row],[2027/28 Baseline]]+Dataset[[#This Row],[2027/28 Total change]]","v":32},{"$f":"Dataset[[#This Row],[2028/29 Baseline]]+Dataset[[#This Row],[2028/29 Total change]]","v":0},{"$f":"Dataset[[#This Row],[2029/30 Baseline]]+Dataset[[#This Row],[2029/30 Total change]]","v":0}]
["NAT|Non-transfer","30|Communication (G&S)","2027_28","MTEC2027",30,3,1,32911,391,"30","03","01","032911","000391","30|03|01|000391","01","01","02","09","09","01|01|02|09|09","National","Communications and Digital Technologies","Media and Content","Programme Management for Media and Content","Non-transfer","Current","Current payments","Goods and services","Communication (G&S)","Communication (G&S)","Economic development","Economic regulation and infrastructure","NAT",6,0,28,50,50,50,0,80,116,119,123,null,null,null,null,null,null,null,null,null,null,null,null,null,null,null,null,null,null,null,null,null,null,null,null,null,null,null,null,null,null,null,null,null,null,{"$f":"Dataset[[#This Row],[2027/28 From - Spending review Topic 1]]+Dataset[[#This Row],[2027/28 From - Spending review Topic 2]]+Dataset[[#This Row],[2027/28 From - Spending review Topic 3]]+Dataset[[#This Row],[2027/28 From - Spending review Topic 4]]+Dataset[[#This Row],[2027/28 From - Other reallocations]]","v":0},{"$f":"Dataset[[#This Row],[2028/29 From - Spending review Topic 1]]+Dataset[[#This Row],[2028/29 From - Spending review Topic 2]]+Dataset[[#This Row],[2028/29 From - Spending review Topic 3]]+Dataset[[#This Row],[2028/29 From - Spending review Topic 4]]+Dataset[[#This Row],[2028/29 From - Other reallocations]]","v":0},{"$f":"Dataset[[#This Row],[2029/30 From - Spending review Topic 1]]+Dataset[[#This Row],[2029/30 From - Spending review Topic 2]]+Dataset[[#This Row],[2029/30 From - Spending review Topic 3]]+Dataset[[#This Row],[2029/30 From - Spending review Topic 4]]+Dataset[[#This Row],[2029/30 From - Other reallocations]]","v":0},{"$f":"Dataset[[#This Row],[2027/28 To - Spending review Topic 1]]+Dataset[[#This Row],[2027/28 To - Spending review Topic 2]]+Dataset[[#This Row],[2027/28 To - Spending review Topic 3]]+Dataset[[#This Row],[2027/28 To - Spending review Topic 4]]+Dataset[[#This Row],[2027/28 To - Other reallocations]]","v":0},{"$f":"Dataset[[#This Row],[2028/29 To - Spending review Topic 1]]+Dataset[[#This Row],[2028/29 To - Spending review Topic 2]]+Dataset[[#This Row],[2028/29 To - Spending review Topic 3]]+Dataset[[#This Row],[2028/29 To - Spending review Topic 4]]+Dataset[[#This Row],[2028/29 To - Other reallocations]]","v":0},{"$f":"Dataset[[#This Row],[2029/30 To - Spending review Topic 1]]+Dataset[[#This Row],[2029/30 To - Spending review Topic 2]]+Dataset[[#This Row],[2029/30 To - Spending review Topic 3]]+Dataset[[#This Row],[2029/30 To - Spending review Topic 4]]+Dataset[[#This Row],[2029/30 To - Other reallocations]]","v":0},{"$f":"Dataset[[#This Row],[2027/28 Targeted savings]]+Dataset[[#This Row],[2027/28 From - Total]]","v":0},{"$f":"Dataset[[#This Row],[2028/29 Targeted savings]]+Dataset[[#This Row],[2028/29 From - Total]]","v":0},{"$f":"Dataset[[#This Row],[2029/30 Targeted savings]]+Dataset[[#This Row],[2029/30 From - Total]]","v":0},{"$f":"Dataset[[#This Row],[2026/27 Targeted savings]]","v":0},{"$f":"SUM(Dataset[[#This Row],[2027/28 Targeted savings]],Dataset[[#This Row],[2027/28 From - Total]],Dataset[[#This Row],[2027/28 To - Total]])","v":0},{"$f":"SUM(Dataset[[#This Row],[2028/29 Targeted savings]],Dataset[[#This Row],[2028/29 From - Total]],Dataset[[#This Row],[2028/29 To - Total]])","v":0},{"$f":"SUM(Dataset[[#This Row],[2029/30 Targeted savings]],Dataset[[#This Row],[2029/30 From - Total]],Dataset[[#This Row],[2029/30 To - Total]])","v":0},{"$f":"Dataset[[#This Row],[2026/27 Baseline]]+Dataset[[#This Row],[2026/27 Total change]]","v":80},{"$f":"Dataset[[#This Row],[2027/28 Baseline]]+Dataset[[#This Row],[2027/28 Total change]]","v":116},{"$f":"Dataset[[#This Row],[2028/29 Baseline]]+Dataset[[#This Row],[2028/29 Total change]]","v":119},{"$f":"Dataset[[#This Row],[2029/30 Baseline]]+Dataset[[#This Row],[2029/30 Total change]]","v":123}]
["NAT|Non-transfer","30|Entertainment","2027_28","MTEC2027",30,3,1,32912,392,"30","03","01","032912","000392","30|03|01|000392","01","01","02","18","18","01|01|02|18|18","National","Communications and Digital Technologies","Media and Content","Programme Management for Media and Content","Non-transfer","Current","Current payments","Goods and services","Entertainment","Entertainment","Economic development","Economic regulation and infrastructure","NAT",0,0,0,5,5,5,0,0,2,2,2,null,null,null,null,null,null,null,null,null,null,null,null,null,null,null,null,null,null,null,null,null,null,null,null,null,null,null,null,null,null,null,null,null,null,{"$f":"Dataset[[#This Row],[2027/28 From - Spending review Topic 1]]+Dataset[[#This Row],[2027/28 From - Spending review Topic 2]]+Dataset[[#This Row],[2027/28 From - Spending review Topic 3]]+Dataset[[#This Row],[2027/28 From - Spending review Topic 4]]+Dataset[[#This Row],[2027/28 From - Other reallocations]]","v":0},{"$f":"Dataset[[#This Row],[2028/29 From - Spending review Topic 1]]+Dataset[[#This Row],[2028/29 From - Spending review Topic 2]]+Dataset[[#This Row],[2028/29 From - Spending review Topic 3]]+Dataset[[#This Row],[2028/29 From - Spending review Topic 4]]+Dataset[[#This Row],[2028/29 From - Other reallocations]]","v":0},{"$f":"Dataset[[#This Row],[2029/30 From - Spending review Topic 1]]+Dataset[[#This Row],[2029/30 From - Spending review Topic 2]]+Dataset[[#This Row],[2029/30 From - Spending review Topic 3]]+Dataset[[#This Row],[2029/30 From - Spending review Topic 4]]+Dataset[[#This Row],[2029/30 From - Other reallocations]]","v":0},{"$f":"Dataset[[#This Row],[2027/28 To - Spending review Topic 1]]+Dataset[[#This Row],[2027/28 To - Spending review Topic 2]]+Dataset[[#This Row],[2027/28 To - Spending review Topic 3]]+Dataset[[#This Row],[2027/28 To - Spending review Topic 4]]+Dataset[[#This Row],[2027/28 To - Other reallocations]]","v":0},{"$f":"Dataset[[#This Row],[2028/29 To - Spending review Topic 1]]+Dataset[[#This Row],[2028/29 To - Spending review Topic 2]]+Dataset[[#This Row],[2028/29 To - Spending review Topic 3]]+Dataset[[#This Row],[2028/29 To - Spending review Topic 4]]+Dataset[[#This Row],[2028/29 To - Other reallocations]]","v":0},{"$f":"Dataset[[#This Row],[2029/30 To - Spending review Topic 1]]+Dataset[[#This Row],[2029/30 To - Spending review Topic 2]]+Dataset[[#This Row],[2029/30 To - Spending review Topic 3]]+Dataset[[#This Row],[2029/30 To - Spending review Topic 4]]+Dataset[[#This Row],[2029/30 To - Other reallocations]]","v":0},{"$f":"Dataset[[#This Row],[2027/28 Targeted savings]]+Dataset[[#This Row],[2027/28 From - Total]]","v":0},{"$f":"Dataset[[#This Row],[2028/29 Targeted savings]]+Dataset[[#This Row],[2028/29 From - Total]]","v":0},{"$f":"Dataset[[#This Row],[2029/30 Targeted savings]]+Dataset[[#This Row],[2029/30 From - Total]]","v":0},{"$f":"Dataset[[#This Row],[2026/27 Targeted savings]]","v":0},{"$f":"SUM(Dataset[[#This Row],[2027/28 Targeted savings]],Dataset[[#This Row],[2027/28 From - Total]],Dataset[[#This Row],[2027/28 To - Total]])","v":0},{"$f":"SUM(Dataset[[#This Row],[2028/29 Targeted savings]],Dataset[[#This Row],[2028/29 From - Total]],Dataset[[#This Row],[2028/29 To - Total]])","v":0},{"$f":"SUM(Dataset[[#This Row],[2029/30 Targeted savings]],Dataset[[#This Row],[2029/30 From - Total]],Dataset[[#This Row],[2029/30 To - Total]])","v":0},{"$f":"Dataset[[#This Row],[2026/27 Baseline]]+Dataset[[#This Row],[2026/27 Total change]]","v":0},{"$f":"Dataset[[#This Row],[2027/28 Baseline]]+Dataset[[#This Row],[2027/28 Total change]]","v":2},{"$f":"Dataset[[#This Row],[2028/29 Baseline]]+Dataset[[#This Row],[2028/29 Total change]]","v":2},{"$f":"Dataset[[#This Row],[2029/30 Baseline]]+Dataset[[#This Row],[2029/30 Total change]]","v":2}]
["NAT|Non-transfer","30|Consumable supplies","2027_28","MTEC2027",30,3,1,32913,393,"30","03","01","032913","000393","30|03|01|000393","01","01","02","31","31","01|01|02|31|31","National","Communications and Digital Technologies","Media and Content","Programme Management for Media and Content","Non-transfer","Current","Current payments","Goods and services","Consumable supplies","Consumable supplies","Economic development","Economic regulation and infrastructure","NAT",4,1,0,0,0,0,0,0,0,0,0,null,null,null,null,null,null,null,null,null,null,null,null,null,null,null,null,null,null,null,null,null,null,null,null,null,null,null,null,null,null,null,null,null,null,{"$f":"Dataset[[#This Row],[2027/28 From - Spending review Topic 1]]+Dataset[[#This Row],[2027/28 From - Spending review Topic 2]]+Dataset[[#This Row],[2027/28 From - Spending review Topic 3]]+Dataset[[#This Row],[2027/28 From - Spending review Topic 4]]+Dataset[[#This Row],[2027/28 From - Other reallocations]]","v":0},{"$f":"Dataset[[#This Row],[2028/29 From - Spending review Topic 1]]+Dataset[[#This Row],[2028/29 From - Spending review Topic 2]]+Dataset[[#This Row],[2028/29 From - Spending review Topic 3]]+Dataset[[#This Row],[2028/29 From - Spending review Topic 4]]+Dataset[[#This Row],[2028/29 From - Other reallocations]]","v":0},{"$f":"Dataset[[#This Row],[2029/30 From - Spending review Topic 1]]+Dataset[[#This Row],[2029/30 From - Spending review Topic 2]]+Dataset[[#This Row],[2029/30 From - Spending review Topic 3]]+Dataset[[#This Row],[2029/30 From - Spending review Topic 4]]+Dataset[[#This Row],[2029/30 From - Other reallocations]]","v":0},{"$f":"Dataset[[#This Row],[2027/28 To - Spending review Topic 1]]+Dataset[[#This Row],[2027/28 To - Spending review Topic 2]]+Dataset[[#This Row],[2027/28 To - Spending review Topic 3]]+Dataset[[#This Row],[2027/28 To - Spending review Topic 4]]+Dataset[[#This Row],[2027/28 To - Other reallocations]]","v":0},{"$f":"Dataset[[#This Row],[2028/29 To - Spending review Topic 1]]+Dataset[[#This Row],[2028/29 To - Spending review Topic 2]]+Dataset[[#This Row],[2028/29 To - Spending review Topic 3]]+Dataset[[#This Row],[2028/29 To - Spending review Topic 4]]+Dataset[[#This Row],[2028/29 To - Other reallocations]]","v":0},{"$f":"Dataset[[#This Row],[2029/30 To - Spending review Topic 1]]+Dataset[[#This Row],[2029/30 To - Spending review Topic 2]]+Dataset[[#This Row],[2029/30 To - Spending review Topic 3]]+Dataset[[#This Row],[2029/30 To - Spending review Topic 4]]+Dataset[[#This Row],[2029/30 To - Other reallocations]]","v":0},{"$f":"Dataset[[#This Row],[2027/28 Targeted savings]]+Dataset[[#This Row],[2027/28 From - Total]]","v":0},{"$f":"Dataset[[#This Row],[2028/29 Targeted savings]]+Dataset[[#This Row],[2028/29 From - Total]]","v":0},{"$f":"Dataset[[#This Row],[2029/30 Targeted savings]]+Dataset[[#This Row],[2029/30 From - Total]]","v":0},{"$f":"Dataset[[#This Row],[2026/27 Targeted savings]]","v":0},{"$f":"SUM(Dataset[[#This Row],[2027/28 Targeted savings]],Dataset[[#This Row],[2027/28 From - Total]],Dataset[[#This Row],[2027/28 To - Total]])","v":0},{"$f":"SUM(Dataset[[#This Row],[2028/29 Targeted savings]],Dataset[[#This Row],[2028/29 From - Total]],Dataset[[#This Row],[2028/29 To - Total]])","v":0},{"$f":"SUM(Dataset[[#This Row],[2029/30 Targeted savings]],Dataset[[#This Row],[2029/30 From - Total]],Dataset[[#This Row],[2029/30 To - Total]])","v":0},{"$f":"Dataset[[#This Row],[2026/27 Baseline]]+Dataset[[#This Row],[2026/27 Total change]]","v":0},{"$f":"Dataset[[#This Row],[2027/28 Baseline]]+Dataset[[#This Row],[2027/28 Total change]]","v":0},{"$f":"Dataset[[#This Row],[2028/29 Baseline]]+Dataset[[#This Row],[2028/29 Total change]]","v":0},{"$f":"Dataset[[#This Row],[2029/30 Baseline]]+Dataset[[#This Row],[2029/30 Total change]]","v":0}]
["NAT|Non-transfer","30|Consumables: Stationery, printing and office supplies","2027_28","MTEC2027",30,3,1,32914,394,"30","03","01","032914","000394","30|03|01|000394","01","01","02","32","32","01|01|02|32|32","National","Communications and Digital Technologies","Media and Content","Programme Management for Media and Content","Non-transfer","Current","Current payments","Goods and services","Consumables: Stationery, printing and office supplies","Consumables: Stationery, printing and office supplies","Economic development","Economic regulation and infrastructure","NAT",0,0,0,10,15,15,0,52,55,15,15,null,null,null,null,null,null,null,null,null,null,null,null,null,null,null,null,null,null,null,null,null,null,null,null,null,null,null,null,null,null,null,null,null,null,{"$f":"Dataset[[#This Row],[2027/28 From - Spending review Topic 1]]+Dataset[[#This Row],[2027/28 From - Spending review Topic 2]]+Dataset[[#This Row],[2027/28 From - Spending review Topic 3]]+Dataset[[#This Row],[2027/28 From - Spending review Topic 4]]+Dataset[[#This Row],[2027/28 From - Other reallocations]]","v":0},{"$f":"Dataset[[#This Row],[2028/29 From - Spending review Topic 1]]+Dataset[[#This Row],[2028/29 From - Spending review Topic 2]]+Dataset[[#This Row],[2028/29 From - Spending review Topic 3]]+Dataset[[#This Row],[2028/29 From - Spending review Topic 4]]+Dataset[[#This Row],[2028/29 From - Other reallocations]]","v":0},{"$f":"Dataset[[#This Row],[2029/30 From - Spending review Topic 1]]+Dataset[[#This Row],[2029/30 From - Spending review Topic 2]]+Dataset[[#This Row],[2029/30 From - Spending review Topic 3]]+Dataset[[#This Row],[2029/30 From - Spending review Topic 4]]+Dataset[[#This Row],[2029/30 From - Other reallocations]]","v":0},{"$f":"Dataset[[#This Row],[2027/28 To - Spending review Topic 1]]+Dataset[[#This Row],[2027/28 To - Spending review Topic 2]]+Dataset[[#This Row],[2027/28 To - Spending review Topic 3]]+Dataset[[#This Row],[2027/28 To - Spending review Topic 4]]+Dataset[[#This Row],[2027/28 To - Other reallocations]]","v":0},{"$f":"Dataset[[#This Row],[2028/29 To - Spending review Topic 1]]+Dataset[[#This Row],[2028/29 To - Spending review Topic 2]]+Dataset[[#This Row],[2028/29 To - Spending review Topic 3]]+Dataset[[#This Row],[2028/29 To - Spending review Topic 4]]+Dataset[[#This Row],[2028/29 To - Other reallocations]]","v":0},{"$f":"Dataset[[#This Row],[2029/30 To - Spending review Topic 1]]+Dataset[[#This Row],[2029/30 To - Spending review Topic 2]]+Dataset[[#This Row],[2029/30 To - Spending review Topic 3]]+Dataset[[#This Row],[2029/30 To - Spending review Topic 4]]+Dataset[[#This Row],[2029/30 To - Other reallocations]]","v":0},{"$f":"Dataset[[#This Row],[2027/28 Targeted savings]]+Dataset[[#This Row],[2027/28 From - Total]]","v":0},{"$f":"Dataset[[#This Row],[2028/29 Targeted savings]]+Dataset[[#This Row],[2028/29 From - Total]]","v":0},{"$f":"Dataset[[#This Row],[2029/30 Targeted savings]]+Dataset[[#This Row],[2029/30 From - Total]]","v":0},{"$f":"Dataset[[#This Row],[2026/27 Targeted savings]]","v":0},{"$f":"SUM(Dataset[[#This Row],[2027/28 Targeted savings]],Dataset[[#This Row],[2027/28 From - Total]],Dataset[[#This Row],[2027/28 To - Total]])","v":0},{"$f":"SUM(Dataset[[#This Row],[2028/29 Targeted savings]],Dataset[[#This Row],[2028/29 From - Total]],Dataset[[#This Row],[2028/29 To - Total]])","v":0},{"$f":"SUM(Dataset[[#This Row],[2029/30 Targeted savings]],Dataset[[#This Row],[2029/30 From - Total]],Dataset[[#This Row],[2029/30 To - Total]])","v":0},{"$f":"Dataset[[#This Row],[2026/27 Baseline]]+Dataset[[#This Row],[2026/27 Total change]]","v":52},{"$f":"Dataset[[#This Row],[2027/28 Baseline]]+Dataset[[#This Row],[2027/28 Total change]]","v":55},{"$f":"Dataset[[#This Row],[2028/29 Baseline]]+Dataset[[#This Row],[2028/29 Total change]]","v":15},{"$f":"Dataset[[#This Row],[2029/30 Baseline]]+Dataset[[#This Row],[2029/30 Total change]]","v":15}]
["NAT|Non-transfer","30|Operating leases","2027_28","MTEC2027",30,3,1,32915,395,"30","03","01","032915","000395","30|03|01|000395","01","01","02","33","33","01|01|02|33|33","National","Communications and Digital Technologies","Media and Content","Programme Management for Media and Content","Non-transfer","Current","Current payments","Goods and services","Operating leases","Operating leases","Economic development","Economic regulation and infrastructure","NAT",0,0,0,40,70,70,0,50,0,0,0,null,null,null,null,null,null,null,null,null,null,null,null,null,null,null,null,null,null,null,null,null,null,null,null,null,null,null,null,null,null,null,null,null,null,{"$f":"Dataset[[#This Row],[2027/28 From - Spending review Topic 1]]+Dataset[[#This Row],[2027/28 From - Spending review Topic 2]]+Dataset[[#This Row],[2027/28 From - Spending review Topic 3]]+Dataset[[#This Row],[2027/28 From - Spending review Topic 4]]+Dataset[[#This Row],[2027/28 From - Other reallocations]]","v":0},{"$f":"Dataset[[#This Row],[2028/29 From - Spending review Topic 1]]+Dataset[[#This Row],[2028/29 From - Spending review Topic 2]]+Dataset[[#This Row],[2028/29 From - Spending review Topic 3]]+Dataset[[#This Row],[2028/29 From - Spending review Topic 4]]+Dataset[[#This Row],[2028/29 From - Other reallocations]]","v":0},{"$f":"Dataset[[#This Row],[2029/30 From - Spending review Topic 1]]+Dataset[[#This Row],[2029/30 From - Spending review Topic 2]]+Dataset[[#This Row],[2029/30 From - Spending review Topic 3]]+Dataset[[#This Row],[2029/30 From - Spending review Topic 4]]+Dataset[[#This Row],[2029/30 From - Other reallocations]]","v":0},{"$f":"Dataset[[#This Row],[2027/28 To - Spending review Topic 1]]+Dataset[[#This Row],[2027/28 To - Spending review Topic 2]]+Dataset[[#This Row],[2027/28 To - Spending review Topic 3]]+Dataset[[#This Row],[2027/28 To - Spending review Topic 4]]+Dataset[[#This Row],[2027/28 To - Other reallocations]]","v":0},{"$f":"Dataset[[#This Row],[2028/29 To - Spending review Topic 1]]+Dataset[[#This Row],[2028/29 To - Spending review Topic 2]]+Dataset[[#This Row],[2028/29 To - Spending review Topic 3]]+Dataset[[#This Row],[2028/29 To - Spending review Topic 4]]+Dataset[[#This Row],[2028/29 To - Other reallocations]]","v":0},{"$f":"Dataset[[#This Row],[2029/30 To - Spending review Topic 1]]+Dataset[[#This Row],[2029/30 To - Spending review Topic 2]]+Dataset[[#This Row],[2029/30 To - Spending review Topic 3]]+Dataset[[#This Row],[2029/30 To - Spending review Topic 4]]+Dataset[[#This Row],[2029/30 To - Other reallocations]]","v":0},{"$f":"Dataset[[#This Row],[2027/28 Targeted savings]]+Dataset[[#This Row],[2027/28 From - Total]]","v":0},{"$f":"Dataset[[#This Row],[2028/29 Targeted savings]]+Dataset[[#This Row],[2028/29 From - Total]]","v":0},{"$f":"Dataset[[#This Row],[2029/30 Targeted savings]]+Dataset[[#This Row],[2029/30 From - Total]]","v":0},{"$f":"Dataset[[#This Row],[2026/27 Targeted savings]]","v":0},{"$f":"SUM(Dataset[[#This Row],[2027/28 Targeted savings]],Dataset[[#This Row],[2027/28 From - Total]],Dataset[[#This Row],[2027/28 To - Total]])","v":0},{"$f":"SUM(Dataset[[#This Row],[2028/29 Targeted savings]],Dataset[[#This Row],[2028/29 From - Total]],Dataset[[#This Row],[2028/29 To - Total]])","v":0},{"$f":"SUM(Dataset[[#This Row],[2029/30 Targeted savings]],Dataset[[#This Row],[2029/30 From - Total]],Dataset[[#This Row],[2029/30 To - Total]])","v":0},{"$f":"Dataset[[#This Row],[2026/27 Baseline]]+Dataset[[#This Row],[2026/27 Total change]]","v":50},{"$f":"Dataset[[#This Row],[2027/28 Baseline]]+Dataset[[#This Row],[2027/28 Total change]]","v":0},{"$f":"Dataset[[#This Row],[2028/29 Baseline]]+Dataset[[#This Row],[2028/29 Total change]]","v":0},{"$f":"Dataset[[#This Row],[2029/30 Baseline]]+Dataset[[#This Row],[2029/30 Total change]]","v":0}]
["NAT|Non-transfer","30|Travel and subsistence","2027_28","MTEC2027",30,3,1,32916,396,"30","03","01","032916","000396","30|03|01|000396","01","01","02","37","37","01|01|02|37|37","National","Communications and Digital Technologies","Media and Content","Programme Management for Media and Content","Non-transfer","Current","Current payments","Goods and services","Travel and subsistence","Travel and subsistence","Economic development","Economic regulation and infrastructure","NAT",93,304,326,566,516,516,0,758,725,588,606,null,null,null,null,null,null,null,null,null,null,null,null,null,null,null,null,null,null,null,null,null,null,null,null,null,null,null,null,null,null,null,null,null,null,{"$f":"Dataset[[#This Row],[2027/28 From - Spending review Topic 1]]+Dataset[[#This Row],[2027/28 From - Spending review Topic 2]]+Dataset[[#This Row],[2027/28 From - Spending review Topic 3]]+Dataset[[#This Row],[2027/28 From - Spending review Topic 4]]+Dataset[[#This Row],[2027/28 From - Other reallocations]]","v":0},{"$f":"Dataset[[#This Row],[2028/29 From - Spending review Topic 1]]+Dataset[[#This Row],[2028/29 From - Spending review Topic 2]]+Dataset[[#This Row],[2028/29 From - Spending review Topic 3]]+Dataset[[#This Row],[2028/29 From - Spending review Topic 4]]+Dataset[[#This Row],[2028/29 From - Other reallocations]]","v":0},{"$f":"Dataset[[#This Row],[2029/30 From - Spending review Topic 1]]+Dataset[[#This Row],[2029/30 From - Spending review Topic 2]]+Dataset[[#This Row],[2029/30 From - Spending review Topic 3]]+Dataset[[#This Row],[2029/30 From - Spending review Topic 4]]+Dataset[[#This Row],[2029/30 From - Other reallocations]]","v":0},{"$f":"Dataset[[#This Row],[2027/28 To - Spending review Topic 1]]+Dataset[[#This Row],[2027/28 To - Spending review Topic 2]]+Dataset[[#This Row],[2027/28 To - Spending review Topic 3]]+Dataset[[#This Row],[2027/28 To - Spending review Topic 4]]+Dataset[[#This Row],[2027/28 To - Other reallocations]]","v":0},{"$f":"Dataset[[#This Row],[2028/29 To - Spending review Topic 1]]+Dataset[[#This Row],[2028/29 To - Spending review Topic 2]]+Dataset[[#This Row],[2028/29 To - Spending review Topic 3]]+Dataset[[#This Row],[2028/29 To - Spending review Topic 4]]+Dataset[[#This Row],[2028/29 To - Other reallocations]]","v":0},{"$f":"Dataset[[#This Row],[2029/30 To - Spending review Topic 1]]+Dataset[[#This Row],[2029/30 To - Spending review Topic 2]]+Dataset[[#This Row],[2029/30 To - Spending review Topic 3]]+Dataset[[#This Row],[2029/30 To - Spending review Topic 4]]+Dataset[[#This Row],[2029/30 To - Other reallocations]]","v":0},{"$f":"Dataset[[#This Row],[2027/28 Targeted savings]]+Dataset[[#This Row],[2027/28 From - Total]]","v":0},{"$f":"Dataset[[#This Row],[2028/29 Targeted savings]]+Dataset[[#This Row],[2028/29 From - Total]]","v":0},{"$f":"Dataset[[#This Row],[2029/30 Targeted savings]]+Dataset[[#This Row],[2029/30 From - Total]]","v":0},{"$f":"Dataset[[#This Row],[2026/27 Targeted savings]]","v":0},{"$f":"SUM(Dataset[[#This Row],[2027/28 Targeted savings]],Dataset[[#This Row],[2027/28 From - Total]],Dataset[[#This Row],[2027/28 To - Total]])","v":0},{"$f":"SUM(Dataset[[#This Row],[2028/29 Targeted savings]],Dataset[[#This Row],[2028/29 From - Total]],Dataset[[#This Row],[2028/29 To - Total]])","v":0},{"$f":"SUM(Dataset[[#This Row],[2029/30 Targeted savings]],Dataset[[#This Row],[2029/30 From - Total]],Dataset[[#This Row],[2029/30 To - Total]])","v":0},{"$f":"Dataset[[#This Row],[2026/27 Baseline]]+Dataset[[#This Row],[2026/27 Total change]]","v":758},{"$f":"Dataset[[#This Row],[2027/28 Baseline]]+Dataset[[#This Row],[2027/28 Total change]]","v":725},{"$f":"Dataset[[#This Row],[2028/29 Baseline]]+Dataset[[#This Row],[2028/29 Total change]]","v":588},{"$f":"Dataset[[#This Row],[2029/30 Baseline]]+Dataset[[#This Row],[2029/30 Total change]]","v":606}]
["NAT|Non-transfer","30|Training and development","2027_28","MTEC2027",30,3,1,32917,397,"30","03","01","032917","000397","30|03|01|000397","01","01","02","38","38","01|01|02|38|38","National","Communications and Digital Technologies","Media and Content","Programme Management for Media and Content","Non-transfer","Current","Current payments","Goods and services","Training and development","Training and development","Economic development","Economic regulation and infrastructure","NAT",0,0,0,10,10,10,0,50,106,109,112,null,null,null,null,null,null,null,null,null,null,null,null,null,null,null,null,null,null,null,null,null,null,null,null,null,null,null,null,null,null,null,null,null,null,{"$f":"Dataset[[#This Row],[2027/28 From - Spending review Topic 1]]+Dataset[[#This Row],[2027/28 From - Spending review Topic 2]]+Dataset[[#This Row],[2027/28 From - Spending review Topic 3]]+Dataset[[#This Row],[2027/28 From - Spending review Topic 4]]+Dataset[[#This Row],[2027/28 From - Other reallocations]]","v":0},{"$f":"Dataset[[#This Row],[2028/29 From - Spending review Topic 1]]+Dataset[[#This Row],[2028/29 From - Spending review Topic 2]]+Dataset[[#This Row],[2028/29 From - Spending review Topic 3]]+Dataset[[#This Row],[2028/29 From - Spending review Topic 4]]+Dataset[[#This Row],[2028/29 From - Other reallocations]]","v":0},{"$f":"Dataset[[#This Row],[2029/30 From - Spending review Topic 1]]+Dataset[[#This Row],[2029/30 From - Spending review Topic 2]]+Dataset[[#This Row],[2029/30 From - Spending review Topic 3]]+Dataset[[#This Row],[2029/30 From - Spending review Topic 4]]+Dataset[[#This Row],[2029/30 From - Other reallocations]]","v":0},{"$f":"Dataset[[#This Row],[2027/28 To - Spending review Topic 1]]+Dataset[[#This Row],[2027/28 To - Spending review Topic 2]]+Dataset[[#This Row],[2027/28 To - Spending review Topic 3]]+Dataset[[#This Row],[2027/28 To - Spending review Topic 4]]+Dataset[[#This Row],[2027/28 To - Other reallocations]]","v":0},{"$f":"Dataset[[#This Row],[2028/29 To - Spending review Topic 1]]+Dataset[[#This Row],[2028/29 To - Spending review Topic 2]]+Dataset[[#This Row],[2028/29 To - Spending review Topic 3]]+Dataset[[#This Row],[2028/29 To - Spending review Topic 4]]+Dataset[[#This Row],[2028/29 To - Other reallocations]]","v":0},{"$f":"Dataset[[#This Row],[2029/30 To - Spending review Topic 1]]+Dataset[[#This Row],[2029/30 To - Spending review Topic 2]]+Dataset[[#This Row],[2029/30 To - Spending review Topic 3]]+Dataset[[#This Row],[2029/30 To - Spending review Topic 4]]+Dataset[[#This Row],[2029/30 To - Other reallocations]]","v":0},{"$f":"Dataset[[#This Row],[2027/28 Targeted savings]]+Dataset[[#This Row],[2027/28 From - Total]]","v":0},{"$f":"Dataset[[#This Row],[2028/29 Targeted savings]]+Dataset[[#This Row],[2028/29 From - Total]]","v":0},{"$f":"Dataset[[#This Row],[2029/30 Targeted savings]]+Dataset[[#This Row],[2029/30 From - Total]]","v":0},{"$f":"Dataset[[#This Row],[2026/27 Targeted savings]]","v":0},{"$f":"SUM(Dataset[[#This Row],[2027/28 Targeted savings]],Dataset[[#This Row],[2027/28 From - Total]],Dataset[[#This Row],[2027/28 To - Total]])","v":0},{"$f":"SUM(Dataset[[#This Row],[2028/29 Targeted savings]],Dataset[[#This Row],[2028/29 From - Total]],Dataset[[#This Row],[2028/29 To - Total]])","v":0},{"$f":"SUM(Dataset[[#This Row],[2029/30 Targeted savings]],Dataset[[#This Row],[2029/30 From - Total]],Dataset[[#This Row],[2029/30 To - Total]])","v":0},{"$f":"Dataset[[#This Row],[2026/27 Baseline]]+Dataset[[#This Row],[2026/27 Total change]]","v":50},{"$f":"Dataset[[#This Row],[2027/28 Baseline]]+Dataset[[#This Row],[2027/28 Total change]]","v":106},{"$f":"Dataset[[#This Row],[2028/29 Baseline]]+Dataset[[#This Row],[2028/29 Total change]]","v":109},{"$f":"Dataset[[#This Row],[2029/30 Baseline]]+Dataset[[#This Row],[2029/30 Total change]]","v":112}]
["NAT|Households","30|Social benefits","2027_28","MTEC2027",30,3,1,32918,398,"30","03","01","032918","000398","30|03|01|000398","01","02","10","52","56","01|02|10|52|56","National","Communications and Digital Technologies","Media and Content","Programme Management for Media and Content","Households","Current","Transfers and subsidies","Households","Social benefits","Social benefits","Economic development","Economic regulation and infrastructure","NAT",0,58,0,0,0,0,0,0,0,0,0,null,null,null,null,null,null,null,null,null,null,null,null,null,null,null,null,null,null,null,null,null,null,null,null,null,null,null,null,null,null,null,null,null,null,{"$f":"Dataset[[#This Row],[2027/28 From - Spending review Topic 1]]+Dataset[[#This Row],[2027/28 From - Spending review Topic 2]]+Dataset[[#This Row],[2027/28 From - Spending review Topic 3]]+Dataset[[#This Row],[2027/28 From - Spending review Topic 4]]+Dataset[[#This Row],[2027/28 From - Other reallocations]]","v":0},{"$f":"Dataset[[#This Row],[2028/29 From - Spending review Topic 1]]+Dataset[[#This Row],[2028/29 From - Spending review Topic 2]]+Dataset[[#This Row],[2028/29 From - Spending review Topic 3]]+Dataset[[#This Row],[2028/29 From - Spending review Topic 4]]+Dataset[[#This Row],[2028/29 From - Other reallocations]]","v":0},{"$f":"Dataset[[#This Row],[2029/30 From - Spending review Topic 1]]+Dataset[[#This Row],[2029/30 From - Spending review Topic 2]]+Dataset[[#This Row],[2029/30 From - Spending review Topic 3]]+Dataset[[#This Row],[2029/30 From - Spending review Topic 4]]+Dataset[[#This Row],[2029/30 From - Other reallocations]]","v":0},{"$f":"Dataset[[#This Row],[2027/28 To - Spending review Topic 1]]+Dataset[[#This Row],[2027/28 To - Spending review Topic 2]]+Dataset[[#This Row],[2027/28 To - Spending review Topic 3]]+Dataset[[#This Row],[2027/28 To - Spending review Topic 4]]+Dataset[[#This Row],[2027/28 To - Other reallocations]]","v":0},{"$f":"Dataset[[#This Row],[2028/29 To - Spending review Topic 1]]+Dataset[[#This Row],[2028/29 To - Spending review Topic 2]]+Dataset[[#This Row],[2028/29 To - Spending review Topic 3]]+Dataset[[#This Row],[2028/29 To - Spending review Topic 4]]+Dataset[[#This Row],[2028/29 To - Other reallocations]]","v":0},{"$f":"Dataset[[#This Row],[2029/30 To - Spending review Topic 1]]+Dataset[[#This Row],[2029/30 To - Spending review Topic 2]]+Dataset[[#This Row],[2029/30 To - Spending review Topic 3]]+Dataset[[#This Row],[2029/30 To - Spending review Topic 4]]+Dataset[[#This Row],[2029/30 To - Other reallocations]]","v":0},{"$f":"Dataset[[#This Row],[2027/28 Targeted savings]]+Dataset[[#This Row],[2027/28 From - Total]]","v":0},{"$f":"Dataset[[#This Row],[2028/29 Targeted savings]]+Dataset[[#This Row],[2028/29 From - Total]]","v":0},{"$f":"Dataset[[#This Row],[2029/30 Targeted savings]]+Dataset[[#This Row],[2029/30 From - Total]]","v":0},{"$f":"Dataset[[#This Row],[2026/27 Targeted savings]]","v":0},{"$f":"SUM(Dataset[[#This Row],[2027/28 Targeted savings]],Dataset[[#This Row],[2027/28 From - Total]],Dataset[[#This Row],[2027/28 To - Total]])","v":0},{"$f":"SUM(Dataset[[#This Row],[2028/29 Targeted savings]],Dataset[[#This Row],[2028/29 From - Total]],Dataset[[#This Row],[2028/29 To - Total]])","v":0},{"$f":"SUM(Dataset[[#This Row],[2029/30 Targeted savings]],Dataset[[#This Row],[2029/30 From - Total]],Dataset[[#This Row],[2029/30 To - Total]])","v":0},{"$f":"Dataset[[#This Row],[2026/27 Baseline]]+Dataset[[#This Row],[2026/27 Total change]]","v":0},{"$f":"Dataset[[#This Row],[2027/28 Baseline]]+Dataset[[#This Row],[2027/28 Total change]]","v":0},{"$f":"Dataset[[#This Row],[2028/29 Baseline]]+Dataset[[#This Row],[2028/29 Total change]]","v":0},{"$f":"Dataset[[#This Row],[2029/30 Baseline]]+Dataset[[#This Row],[2029/30 Total change]]","v":0}]
["NAT|Non-transfer","30|Other machinery and equipment","2027_28","MTEC2027",30,3,1,32919,399,"30","03","01","032919","000399","30|03|01|000399","02","03","12","57","61","02|03|12|57|61","National","Communications and Digital Technologies","Media and Content","Programme Management for Media and Content","Non-transfer","Capital","Payments for capital assets","Machinery and equipment","Other machinery and equipment","Other machinery and equipment","Economic development","Economic regulation and infrastructure","NAT",0,0,0,35,35,35,0,10,10,0,0,null,null,null,null,null,null,null,null,null,null,null,null,null,null,null,null,null,null,null,null,null,null,null,null,null,null,null,null,null,null,null,null,null,null,{"$f":"Dataset[[#This Row],[2027/28 From - Spending review Topic 1]]+Dataset[[#This Row],[2027/28 From - Spending review Topic 2]]+Dataset[[#This Row],[2027/28 From - Spending review Topic 3]]+Dataset[[#This Row],[2027/28 From - Spending review Topic 4]]+Dataset[[#This Row],[2027/28 From - Other reallocations]]","v":0},{"$f":"Dataset[[#This Row],[2028/29 From - Spending review Topic 1]]+Dataset[[#This Row],[2028/29 From - Spending review Topic 2]]+Dataset[[#This Row],[2028/29 From - Spending review Topic 3]]+Dataset[[#This Row],[2028/29 From - Spending review Topic 4]]+Dataset[[#This Row],[2028/29 From - Other reallocations]]","v":0},{"$f":"Dataset[[#This Row],[2029/30 From - Spending review Topic 1]]+Dataset[[#This Row],[2029/30 From - Spending review Topic 2]]+Dataset[[#This Row],[2029/30 From - Spending review Topic 3]]+Dataset[[#This Row],[2029/30 From - Spending review Topic 4]]+Dataset[[#This Row],[2029/30 From - Other reallocations]]","v":0},{"$f":"Dataset[[#This Row],[2027/28 To - Spending review Topic 1]]+Dataset[[#This Row],[2027/28 To - Spending review Topic 2]]+Dataset[[#This Row],[2027/28 To - Spending review Topic 3]]+Dataset[[#This Row],[2027/28 To - Spending review Topic 4]]+Dataset[[#This Row],[2027/28 To - Other reallocations]]","v":0},{"$f":"Dataset[[#This Row],[2028/29 To - Spending review Topic 1]]+Dataset[[#This Row],[2028/29 To - Spending review Topic 2]]+Dataset[[#This Row],[2028/29 To - Spending review Topic 3]]+Dataset[[#This Row],[2028/29 To - Spending review Topic 4]]+Dataset[[#This Row],[2028/29 To - Other reallocations]]","v":0},{"$f":"Dataset[[#This Row],[2029/30 To - Spending review Topic 1]]+Dataset[[#This Row],[2029/30 To - Spending review Topic 2]]+Dataset[[#This Row],[2029/30 To - Spending review Topic 3]]+Dataset[[#This Row],[2029/30 To - Spending review Topic 4]]+Dataset[[#This Row],[2029/30 To - Other reallocations]]","v":0},{"$f":"Dataset[[#This Row],[2027/28 Targeted savings]]+Dataset[[#This Row],[2027/28 From - Total]]","v":0},{"$f":"Dataset[[#This Row],[2028/29 Targeted savings]]+Dataset[[#This Row],[2028/29 From - Total]]","v":0},{"$f":"Dataset[[#This Row],[2029/30 Targeted savings]]+Dataset[[#This Row],[2029/30 From - Total]]","v":0},{"$f":"Dataset[[#This Row],[2026/27 Targeted savings]]","v":0},{"$f":"SUM(Dataset[[#This Row],[2027/28 Targeted savings]],Dataset[[#This Row],[2027/28 From - Total]],Dataset[[#This Row],[2027/28 To - Total]])","v":0},{"$f":"SUM(Dataset[[#This Row],[2028/29 Targeted savings]],Dataset[[#This Row],[2028/29 From - Total]],Dataset[[#This Row],[2028/29 To - Total]])","v":0},{"$f":"SUM(Dataset[[#This Row],[2029/30 Targeted savings]],Dataset[[#This Row],[2029/30 From - Total]],Dataset[[#This Row],[2029/30 To - Total]])","v":0},{"$f":"Dataset[[#This Row],[2026/27 Baseline]]+Dataset[[#This Row],[2026/27 Total change]]","v":10},{"$f":"Dataset[[#This Row],[2027/28 Baseline]]+Dataset[[#This Row],[2027/28 Total change]]","v":10},{"$f":"Dataset[[#This Row],[2028/29 Baseline]]+Dataset[[#This Row],[2028/29 Total change]]","v":0},{"$f":"Dataset[[#This Row],[2029/30 Baseline]]+Dataset[[#This Row],[2029/30 Total change]]","v":0}]
["NAT|Non-transfer","30|Salaries and wages","2027_28","MTEC2027",30,3,2,32920,400,"30","03","02","032920","000400","30|03|02|000400","01","01","01","01","01","01|01|01|01|01","National","Communications and Digital Technologies","Media and Content","Content Classification and Online Safety","Non-transfer","Current","Current payments","Compensation of employees","Salaries and wages","Salaries and wages","Economic development","Economic regulation and infrastructure","NAT",0,0,4715,5491,5491,5491,0,8771,8080,11015,11347,null,null,null,null,null,null,null,null,null,null,null,null,null,null,null,null,null,null,null,null,null,null,null,null,null,null,null,null,null,null,null,null,null,null,{"$f":"Dataset[[#This Row],[2027/28 From - Spending review Topic 1]]+Dataset[[#This Row],[2027/28 From - Spending review Topic 2]]+Dataset[[#This Row],[2027/28 From - Spending review Topic 3]]+Dataset[[#This Row],[2027/28 From - Spending review Topic 4]]+Dataset[[#This Row],[2027/28 From - Other reallocations]]","v":0},{"$f":"Dataset[[#This Row],[2028/29 From - Spending review Topic 1]]+Dataset[[#This Row],[2028/29 From - Spending review Topic 2]]+Dataset[[#This Row],[2028/29 From - Spending review Topic 3]]+Dataset[[#This Row],[2028/29 From - Spending review Topic 4]]+Dataset[[#This Row],[2028/29 From - Other reallocations]]","v":0},{"$f":"Dataset[[#This Row],[2029/30 From - Spending review Topic 1]]+Dataset[[#This Row],[2029/30 From - Spending review Topic 2]]+Dataset[[#This Row],[2029/30 From - Spending review Topic 3]]+Dataset[[#This Row],[2029/30 From - Spending review Topic 4]]+Dataset[[#This Row],[2029/30 From - Other reallocations]]","v":0},{"$f":"Dataset[[#This Row],[2027/28 To - Spending review Topic 1]]+Dataset[[#This Row],[2027/28 To - Spending review Topic 2]]+Dataset[[#This Row],[2027/28 To - Spending review Topic 3]]+Dataset[[#This Row],[2027/28 To - Spending review Topic 4]]+Dataset[[#This Row],[2027/28 To - Other reallocations]]","v":0},{"$f":"Dataset[[#This Row],[2028/29 To - Spending review Topic 1]]+Dataset[[#This Row],[2028/29 To - Spending review Topic 2]]+Dataset[[#This Row],[2028/29 To - Spending review Topic 3]]+Dataset[[#This Row],[2028/29 To - Spending review Topic 4]]+Dataset[[#This Row],[2028/29 To - Other reallocations]]","v":0},{"$f":"Dataset[[#This Row],[2029/30 To - Spending review Topic 1]]+Dataset[[#This Row],[2029/30 To - Spending review Topic 2]]+Dataset[[#This Row],[2029/30 To - Spending review Topic 3]]+Dataset[[#This Row],[2029/30 To - Spending review Topic 4]]+Dataset[[#This Row],[2029/30 To - Other reallocations]]","v":0},{"$f":"Dataset[[#This Row],[2027/28 Targeted savings]]+Dataset[[#This Row],[2027/28 From - Total]]","v":0},{"$f":"Dataset[[#This Row],[2028/29 Targeted savings]]+Dataset[[#This Row],[2028/29 From - Total]]","v":0},{"$f":"Dataset[[#This Row],[2029/30 Targeted savings]]+Dataset[[#This Row],[2029/30 From - Total]]","v":0},{"$f":"Dataset[[#This Row],[2026/27 Targeted savings]]","v":0},{"$f":"SUM(Dataset[[#This Row],[2027/28 Targeted savings]],Dataset[[#This Row],[2027/28 From - Total]],Dataset[[#This Row],[2027/28 To - Total]])","v":0},{"$f":"SUM(Dataset[[#This Row],[2028/29 Targeted savings]],Dataset[[#This Row],[2028/29 From - Total]],Dataset[[#This Row],[2028/29 To - Total]])","v":0},{"$f":"SUM(Dataset[[#This Row],[2029/30 Targeted savings]],Dataset[[#This Row],[2029/30 From - Total]],Dataset[[#This Row],[2029/30 To - Total]])","v":0},{"$f":"Dataset[[#This Row],[2026/27 Baseline]]+Dataset[[#This Row],[2026/27 Total change]]","v":8771},{"$f":"Dataset[[#This Row],[2027/28 Baseline]]+Dataset[[#This Row],[2027/28 Total change]]","v":8080},{"$f":"Dataset[[#This Row],[2028/29 Baseline]]+Dataset[[#This Row],[2028/29 Total change]]","v":11015},{"$f":"Dataset[[#This Row],[2029/30 Baseline]]+Dataset[[#This Row],[2029/30 Total change]]","v":11347}]
["NAT|Non-transfer","30|Social contributions","2027_28","MTEC2027",30,3,2,32921,401,"30","03","02","032921","000401","30|03|02|000401","01","01","01","02","02","01|01|01|02|02","National","Communications and Digital Technologies","Media and Content","Content Classification and Online Safety","Non-transfer","Current","Current payments","Compensation of employees","Social contributions","Social contributions","Economic development","Economic regulation and infrastructure","NAT",0,0,0,684,684,684,0,352,618,563,580,null,null,null,null,null,null,null,null,null,null,null,null,null,null,null,null,null,null,null,null,null,null,null,null,null,null,null,null,null,null,null,null,null,null,{"$f":"Dataset[[#This Row],[2027/28 From - Spending review Topic 1]]+Dataset[[#This Row],[2027/28 From - Spending review Topic 2]]+Dataset[[#This Row],[2027/28 From - Spending review Topic 3]]+Dataset[[#This Row],[2027/28 From - Spending review Topic 4]]+Dataset[[#This Row],[2027/28 From - Other reallocations]]","v":0},{"$f":"Dataset[[#This Row],[2028/29 From - Spending review Topic 1]]+Dataset[[#This Row],[2028/29 From - Spending review Topic 2]]+Dataset[[#This Row],[2028/29 From - Spending review Topic 3]]+Dataset[[#This Row],[2028/29 From - Spending review Topic 4]]+Dataset[[#This Row],[2028/29 From - Other reallocations]]","v":0},{"$f":"Dataset[[#This Row],[2029/30 From - Spending review Topic 1]]+Dataset[[#This Row],[2029/30 From - Spending review Topic 2]]+Dataset[[#This Row],[2029/30 From - Spending review Topic 3]]+Dataset[[#This Row],[2029/30 From - Spending review Topic 4]]+Dataset[[#This Row],[2029/30 From - Other reallocations]]","v":0},{"$f":"Dataset[[#This Row],[2027/28 To - Spending review Topic 1]]+Dataset[[#This Row],[2027/28 To - Spending review Topic 2]]+Dataset[[#This Row],[2027/28 To - Spending review Topic 3]]+Dataset[[#This Row],[2027/28 To - Spending review Topic 4]]+Dataset[[#This Row],[2027/28 To - Other reallocations]]","v":0},{"$f":"Dataset[[#This Row],[2028/29 To - Spending review Topic 1]]+Dataset[[#This Row],[2028/29 To - Spending review Topic 2]]+Dataset[[#This Row],[2028/29 To - Spending review Topic 3]]+Dataset[[#This Row],[2028/29 To - Spending review Topic 4]]+Dataset[[#This Row],[2028/29 To - Other reallocations]]","v":0},{"$f":"Dataset[[#This Row],[2029/30 To - Spending review Topic 1]]+Dataset[[#This Row],[2029/30 To - Spending review Topic 2]]+Dataset[[#This Row],[2029/30 To - Spending review Topic 3]]+Dataset[[#This Row],[2029/30 To - Spending review Topic 4]]+Dataset[[#This Row],[2029/30 To - Other reallocations]]","v":0},{"$f":"Dataset[[#This Row],[2027/28 Targeted savings]]+Dataset[[#This Row],[2027/28 From - Total]]","v":0},{"$f":"Dataset[[#This Row],[2028/29 Targeted savings]]+Dataset[[#This Row],[2028/29 From - Total]]","v":0},{"$f":"Dataset[[#This Row],[2029/30 Targeted savings]]+Dataset[[#This Row],[2029/30 From - Total]]","v":0},{"$f":"Dataset[[#This Row],[2026/27 Targeted savings]]","v":0},{"$f":"SUM(Dataset[[#This Row],[2027/28 Targeted savings]],Dataset[[#This Row],[2027/28 From - Total]],Dataset[[#This Row],[2027/28 To - Total]])","v":0},{"$f":"SUM(Dataset[[#This Row],[2028/29 Targeted savings]],Dataset[[#This Row],[2028/29 From - Total]],Dataset[[#This Row],[2028/29 To - Total]])","v":0},{"$f":"SUM(Dataset[[#This Row],[2029/30 Targeted savings]],Dataset[[#This Row],[2029/30 From - Total]],Dataset[[#This Row],[2029/30 To - Total]])","v":0},{"$f":"Dataset[[#This Row],[2026/27 Baseline]]+Dataset[[#This Row],[2026/27 Total change]]","v":352},{"$f":"Dataset[[#This Row],[2027/28 Baseline]]+Dataset[[#This Row],[2027/28 Total change]]","v":618},{"$f":"Dataset[[#This Row],[2028/29 Baseline]]+Dataset[[#This Row],[2028/29 Total change]]","v":563},{"$f":"Dataset[[#This Row],[2029/30 Baseline]]+Dataset[[#This Row],[2029/30 Total change]]","v":580}]
["NAT|Non-transfer","30|Administrative fees","2027_28","MTEC2027",30,3,2,32922,402,"30","03","02","032922","000402","30|03|02|000402","01","01","02","03","03","01|01|02|03|03","National","Communications and Digital Technologies","Media and Content","Content Classification and Online Safety","Non-transfer","Current","Current payments","Goods and services","Administrative fees","Administrative fees","Economic development","Economic regulation and infrastructure","NAT",1,6,4,36,36,36,0,20,15,0,0,null,null,null,null,null,null,null,null,null,null,null,null,null,null,null,null,null,null,null,null,null,null,null,null,null,null,null,null,null,null,null,null,null,null,{"$f":"Dataset[[#This Row],[2027/28 From - Spending review Topic 1]]+Dataset[[#This Row],[2027/28 From - Spending review Topic 2]]+Dataset[[#This Row],[2027/28 From - Spending review Topic 3]]+Dataset[[#This Row],[2027/28 From - Spending review Topic 4]]+Dataset[[#This Row],[2027/28 From - Other reallocations]]","v":0},{"$f":"Dataset[[#This Row],[2028/29 From - Spending review Topic 1]]+Dataset[[#This Row],[2028/29 From - Spending review Topic 2]]+Dataset[[#This Row],[2028/29 From - Spending review Topic 3]]+Dataset[[#This Row],[2028/29 From - Spending review Topic 4]]+Dataset[[#This Row],[2028/29 From - Other reallocations]]","v":0},{"$f":"Dataset[[#This Row],[2029/30 From - Spending review Topic 1]]+Dataset[[#This Row],[2029/30 From - Spending review Topic 2]]+Dataset[[#This Row],[2029/30 From - Spending review Topic 3]]+Dataset[[#This Row],[2029/30 From - Spending review Topic 4]]+Dataset[[#This Row],[2029/30 From - Other reallocations]]","v":0},{"$f":"Dataset[[#This Row],[2027/28 To - Spending review Topic 1]]+Dataset[[#This Row],[2027/28 To - Spending review Topic 2]]+Dataset[[#This Row],[2027/28 To - Spending review Topic 3]]+Dataset[[#This Row],[2027/28 To - Spending review Topic 4]]+Dataset[[#This Row],[2027/28 To - Other reallocations]]","v":0},{"$f":"Dataset[[#This Row],[2028/29 To - Spending review Topic 1]]+Dataset[[#This Row],[2028/29 To - Spending review Topic 2]]+Dataset[[#This Row],[2028/29 To - Spending review Topic 3]]+Dataset[[#This Row],[2028/29 To - Spending review Topic 4]]+Dataset[[#This Row],[2028/29 To - Other reallocations]]","v":0},{"$f":"Dataset[[#This Row],[2029/30 To - Spending review Topic 1]]+Dataset[[#This Row],[2029/30 To - Spending review Topic 2]]+Dataset[[#This Row],[2029/30 To - Spending review Topic 3]]+Dataset[[#This Row],[2029/30 To - Spending review Topic 4]]+Dataset[[#This Row],[2029/30 To - Other reallocations]]","v":0},{"$f":"Dataset[[#This Row],[2027/28 Targeted savings]]+Dataset[[#This Row],[2027/28 From - Total]]","v":0},{"$f":"Dataset[[#This Row],[2028/29 Targeted savings]]+Dataset[[#This Row],[2028/29 From - Total]]","v":0},{"$f":"Dataset[[#This Row],[2029/30 Targeted savings]]+Dataset[[#This Row],[2029/30 From - Total]]","v":0},{"$f":"Dataset[[#This Row],[2026/27 Targeted savings]]","v":0},{"$f":"SUM(Dataset[[#This Row],[2027/28 Targeted savings]],Dataset[[#This Row],[2027/28 From - Total]],Dataset[[#This Row],[2027/28 To - Total]])","v":0},{"$f":"SUM(Dataset[[#This Row],[2028/29 Targeted savings]],Dataset[[#This Row],[2028/29 From - Total]],Dataset[[#This Row],[2028/29 To - Total]])","v":0},{"$f":"SUM(Dataset[[#This Row],[2029/30 Targeted savings]],Dataset[[#This Row],[2029/30 From - Total]],Dataset[[#This Row],[2029/30 To - Total]])","v":0},{"$f":"Dataset[[#This Row],[2026/27 Baseline]]+Dataset[[#This Row],[2026/27 Total change]]","v":20},{"$f":"Dataset[[#This Row],[2027/28 Baseline]]+Dataset[[#This Row],[2027/28 Total change]]","v":15},{"$f":"Dataset[[#This Row],[2028/29 Baseline]]+Dataset[[#This Row],[2028/29 Total change]]","v":0},{"$f":"Dataset[[#This Row],[2029/30 Baseline]]+Dataset[[#This Row],[2029/30 Total change]]","v":0}]
["NAT|Non-transfer","30|Minor assets","2027_28","MTEC2027",30,3,2,32923,403,"30","03","02","032923","000403","30|03|02|000403","01","01","02","05","05","01|01|02|05|05","National","Communications and Digital Technologies","Media and Content","Content Classification and Online Safety","Non-transfer","Current","Current payments","Goods and services","Minor assets","Minor assets","Economic development","Economic regulation and infrastructure","NAT",0,0,5,16,16,16,0,0,0,0,0,null,null,null,null,null,null,null,null,null,null,null,null,null,null,null,null,null,null,null,null,null,null,null,null,null,null,null,null,null,null,null,null,null,null,{"$f":"Dataset[[#This Row],[2027/28 From - Spending review Topic 1]]+Dataset[[#This Row],[2027/28 From - Spending review Topic 2]]+Dataset[[#This Row],[2027/28 From - Spending review Topic 3]]+Dataset[[#This Row],[2027/28 From - Spending review Topic 4]]+Dataset[[#This Row],[2027/28 From - Other reallocations]]","v":0},{"$f":"Dataset[[#This Row],[2028/29 From - Spending review Topic 1]]+Dataset[[#This Row],[2028/29 From - Spending review Topic 2]]+Dataset[[#This Row],[2028/29 From - Spending review Topic 3]]+Dataset[[#This Row],[2028/29 From - Spending review Topic 4]]+Dataset[[#This Row],[2028/29 From - Other reallocations]]","v":0},{"$f":"Dataset[[#This Row],[2029/30 From - Spending review Topic 1]]+Dataset[[#This Row],[2029/30 From - Spending review Topic 2]]+Dataset[[#This Row],[2029/30 From - Spending review Topic 3]]+Dataset[[#This Row],[2029/30 From - Spending review Topic 4]]+Dataset[[#This Row],[2029/30 From - Other reallocations]]","v":0},{"$f":"Dataset[[#This Row],[2027/28 To - Spending review Topic 1]]+Dataset[[#This Row],[2027/28 To - Spending review Topic 2]]+Dataset[[#This Row],[2027/28 To - Spending review Topic 3]]+Dataset[[#This Row],[2027/28 To - Spending review Topic 4]]+Dataset[[#This Row],[2027/28 To - Other reallocations]]","v":0},{"$f":"Dataset[[#This Row],[2028/29 To - Spending review Topic 1]]+Dataset[[#This Row],[2028/29 To - Spending review Topic 2]]+Dataset[[#This Row],[2028/29 To - Spending review Topic 3]]+Dataset[[#This Row],[2028/29 To - Spending review Topic 4]]+Dataset[[#This Row],[2028/29 To - Other reallocations]]","v":0},{"$f":"Dataset[[#This Row],[2029/30 To - Spending review Topic 1]]+Dataset[[#This Row],[2029/30 To - Spending review Topic 2]]+Dataset[[#This Row],[2029/30 To - Spending review Topic 3]]+Dataset[[#This Row],[2029/30 To - Spending review Topic 4]]+Dataset[[#This Row],[2029/30 To - Other reallocations]]","v":0},{"$f":"Dataset[[#This Row],[2027/28 Targeted savings]]+Dataset[[#This Row],[2027/28 From - Total]]","v":0},{"$f":"Dataset[[#This Row],[2028/29 Targeted savings]]+Dataset[[#This Row],[2028/29 From - Total]]","v":0},{"$f":"Dataset[[#This Row],[2029/30 Targeted savings]]+Dataset[[#This Row],[2029/30 From - Total]]","v":0},{"$f":"Dataset[[#This Row],[2026/27 Targeted savings]]","v":0},{"$f":"SUM(Dataset[[#This Row],[2027/28 Targeted savings]],Dataset[[#This Row],[2027/28 From - Total]],Dataset[[#This Row],[2027/28 To - Total]])","v":0},{"$f":"SUM(Dataset[[#This Row],[2028/29 Targeted savings]],Dataset[[#This Row],[2028/29 From - Total]],Dataset[[#This Row],[2028/29 To - Total]])","v":0},{"$f":"SUM(Dataset[[#This Row],[2029/30 Targeted savings]],Dataset[[#This Row],[2029/30 From - Total]],Dataset[[#This Row],[2029/30 To - Total]])","v":0},{"$f":"Dataset[[#This Row],[2026/27 Baseline]]+Dataset[[#This Row],[2026/27 Total change]]","v":0},{"$f":"Dataset[[#This Row],[2027/28 Baseline]]+Dataset[[#This Row],[2027/28 Total change]]","v":0},{"$f":"Dataset[[#This Row],[2028/29 Baseline]]+Dataset[[#This Row],[2028/29 Total change]]","v":0},{"$f":"Dataset[[#This Row],[2029/30 Baseline]]+Dataset[[#This Row],[2029/30 Total change]]","v":0}]
["NAT|Non-transfer","30|Bursaries: Employees","2027_28","MTEC2027",30,3,2,32924,404,"30","03","02","032924","000404","30|03|02|000404","01","01","02","07","07","01|01|02|07|07","National","Communications and Digital Technologies","Media and Content","Content Classification and Online Safety","Non-transfer","Current","Current payments","Goods and services","Bursaries: Employees","Bursaries: Employees","Economic development","Economic regulation and infrastructure","NAT",1,0,0,20,20,20,0,0,0,0,0,null,null,null,null,null,null,null,null,null,null,null,null,null,null,null,null,null,null,null,null,null,null,null,null,null,null,null,null,null,null,null,null,null,null,{"$f":"Dataset[[#This Row],[2027/28 From - Spending review Topic 1]]+Dataset[[#This Row],[2027/28 From - Spending review Topic 2]]+Dataset[[#This Row],[2027/28 From - Spending review Topic 3]]+Dataset[[#This Row],[2027/28 From - Spending review Topic 4]]+Dataset[[#This Row],[2027/28 From - Other reallocations]]","v":0},{"$f":"Dataset[[#This Row],[2028/29 From - Spending review Topic 1]]+Dataset[[#This Row],[2028/29 From - Spending review Topic 2]]+Dataset[[#This Row],[2028/29 From - Spending review Topic 3]]+Dataset[[#This Row],[2028/29 From - Spending review Topic 4]]+Dataset[[#This Row],[2028/29 From - Other reallocations]]","v":0},{"$f":"Dataset[[#This Row],[2029/30 From - Spending review Topic 1]]+Dataset[[#This Row],[2029/30 From - Spending review Topic 2]]+Dataset[[#This Row],[2029/30 From - Spending review Topic 3]]+Dataset[[#This Row],[2029/30 From - Spending review Topic 4]]+Dataset[[#This Row],[2029/30 From - Other reallocations]]","v":0},{"$f":"Dataset[[#This Row],[2027/28 To - Spending review Topic 1]]+Dataset[[#This Row],[2027/28 To - Spending review Topic 2]]+Dataset[[#This Row],[2027/28 To - Spending review Topic 3]]+Dataset[[#This Row],[2027/28 To - Spending review Topic 4]]+Dataset[[#This Row],[2027/28 To - Other reallocations]]","v":0},{"$f":"Dataset[[#This Row],[2028/29 To - Spending review Topic 1]]+Dataset[[#This Row],[2028/29 To - Spending review Topic 2]]+Dataset[[#This Row],[2028/29 To - Spending review Topic 3]]+Dataset[[#This Row],[2028/29 To - Spending review Topic 4]]+Dataset[[#This Row],[2028/29 To - Other reallocations]]","v":0},{"$f":"Dataset[[#This Row],[2029/30 To - Spending review Topic 1]]+Dataset[[#This Row],[2029/30 To - Spending review Topic 2]]+Dataset[[#This Row],[2029/30 To - Spending review Topic 3]]+Dataset[[#This Row],[2029/30 To - Spending review Topic 4]]+Dataset[[#This Row],[2029/30 To - Other reallocations]]","v":0},{"$f":"Dataset[[#This Row],[2027/28 Targeted savings]]+Dataset[[#This Row],[2027/28 From - Total]]","v":0},{"$f":"Dataset[[#This Row],[2028/29 Targeted savings]]+Dataset[[#This Row],[2028/29 From - Total]]","v":0},{"$f":"Dataset[[#This Row],[2029/30 Targeted savings]]+Dataset[[#This Row],[2029/30 From - Total]]","v":0},{"$f":"Dataset[[#This Row],[2026/27 Targeted savings]]","v":0},{"$f":"SUM(Dataset[[#This Row],[2027/28 Targeted savings]],Dataset[[#This Row],[2027/28 From - Total]],Dataset[[#This Row],[2027/28 To - Total]])","v":0},{"$f":"SUM(Dataset[[#This Row],[2028/29 Targeted savings]],Dataset[[#This Row],[2028/29 From - Total]],Dataset[[#This Row],[2028/29 To - Total]])","v":0},{"$f":"SUM(Dataset[[#This Row],[2029/30 Targeted savings]],Dataset[[#This Row],[2029/30 From - Total]],Dataset[[#This Row],[2029/30 To - Total]])","v":0},{"$f":"Dataset[[#This Row],[2026/27 Baseline]]+Dataset[[#This Row],[2026/27 Total change]]","v":0},{"$f":"Dataset[[#This Row],[2027/28 Baseline]]+Dataset[[#This Row],[2027/28 Total change]]","v":0},{"$f":"Dataset[[#This Row],[2028/29 Baseline]]+Dataset[[#This Row],[2028/29 Total change]]","v":0},{"$f":"Dataset[[#This Row],[2029/30 Baseline]]+Dataset[[#This Row],[2029/30 Total change]]","v":0}]
["NAT|Non-transfer","30|Catering: Departmental activities","2027_28","MTEC2027",30,3,2,32925,405,"30","03","02","032925","000405","30|03|02|000405","01","01","02","08","08","01|01|02|08|08","National","Communications and Digital Technologies","Media and Content","Content Classification and Online Safety","Non-transfer","Current","Current payments","Goods and services","Catering: Departmental activities","Catering: Departmental activities","Economic development","Economic regulation and infrastructure","NAT",8,0,0,2,2,2,0,30,25,0,0,null,null,null,null,null,null,null,null,null,null,null,null,null,null,null,null,null,null,null,null,null,null,null,null,null,null,null,null,null,null,null,null,null,null,{"$f":"Dataset[[#This Row],[2027/28 From - Spending review Topic 1]]+Dataset[[#This Row],[2027/28 From - Spending review Topic 2]]+Dataset[[#This Row],[2027/28 From - Spending review Topic 3]]+Dataset[[#This Row],[2027/28 From - Spending review Topic 4]]+Dataset[[#This Row],[2027/28 From - Other reallocations]]","v":0},{"$f":"Dataset[[#This Row],[2028/29 From - Spending review Topic 1]]+Dataset[[#This Row],[2028/29 From - Spending review Topic 2]]+Dataset[[#This Row],[2028/29 From - Spending review Topic 3]]+Dataset[[#This Row],[2028/29 From - Spending review Topic 4]]+Dataset[[#This Row],[2028/29 From - Other reallocations]]","v":0},{"$f":"Dataset[[#This Row],[2029/30 From - Spending review Topic 1]]+Dataset[[#This Row],[2029/30 From - Spending review Topic 2]]+Dataset[[#This Row],[2029/30 From - Spending review Topic 3]]+Dataset[[#This Row],[2029/30 From - Spending review Topic 4]]+Dataset[[#This Row],[2029/30 From - Other reallocations]]","v":0},{"$f":"Dataset[[#This Row],[2027/28 To - Spending review Topic 1]]+Dataset[[#This Row],[2027/28 To - Spending review Topic 2]]+Dataset[[#This Row],[2027/28 To - Spending review Topic 3]]+Dataset[[#This Row],[2027/28 To - Spending review Topic 4]]+Dataset[[#This Row],[2027/28 To - Other reallocations]]","v":0},{"$f":"Dataset[[#This Row],[2028/29 To - Spending review Topic 1]]+Dataset[[#This Row],[2028/29 To - Spending review Topic 2]]+Dataset[[#This Row],[2028/29 To - Spending review Topic 3]]+Dataset[[#This Row],[2028/29 To - Spending review Topic 4]]+Dataset[[#This Row],[2028/29 To - Other reallocations]]","v":0},{"$f":"Dataset[[#This Row],[2029/30 To - Spending review Topic 1]]+Dataset[[#This Row],[2029/30 To - Spending review Topic 2]]+Dataset[[#This Row],[2029/30 To - Spending review Topic 3]]+Dataset[[#This Row],[2029/30 To - Spending review Topic 4]]+Dataset[[#This Row],[2029/30 To - Other reallocations]]","v":0},{"$f":"Dataset[[#This Row],[2027/28 Targeted savings]]+Dataset[[#This Row],[2027/28 From - Total]]","v":0},{"$f":"Dataset[[#This Row],[2028/29 Targeted savings]]+Dataset[[#This Row],[2028/29 From - Total]]","v":0},{"$f":"Dataset[[#This Row],[2029/30 Targeted savings]]+Dataset[[#This Row],[2029/30 From - Total]]","v":0},{"$f":"Dataset[[#This Row],[2026/27 Targeted savings]]","v":0},{"$f":"SUM(Dataset[[#This Row],[2027/28 Targeted savings]],Dataset[[#This Row],[2027/28 From - Total]],Dataset[[#This Row],[2027/28 To - Total]])","v":0},{"$f":"SUM(Dataset[[#This Row],[2028/29 Targeted savings]],Dataset[[#This Row],[2028/29 From - Total]],Dataset[[#This Row],[2028/29 To - Total]])","v":0},{"$f":"SUM(Dataset[[#This Row],[2029/30 Targeted savings]],Dataset[[#This Row],[2029/30 From - Total]],Dataset[[#This Row],[2029/30 To - Total]])","v":0},{"$f":"Dataset[[#This Row],[2026/27 Baseline]]+Dataset[[#This Row],[2026/27 Total change]]","v":30},{"$f":"Dataset[[#This Row],[2027/28 Baseline]]+Dataset[[#This Row],[2027/28 Total change]]","v":25},{"$f":"Dataset[[#This Row],[2028/29 Baseline]]+Dataset[[#This Row],[2028/29 Total change]]","v":0},{"$f":"Dataset[[#This Row],[2029/30 Baseline]]+Dataset[[#This Row],[2029/30 Total change]]","v":0}]
["NAT|Non-transfer","30|Communication (G&S)","2027_28","MTEC2027",30,3,2,32926,406,"30","03","02","032926","000406","30|03|02|000406","01","01","02","09","09","01|01|02|09|09","National","Communications and Digital Technologies","Media and Content","Content Classification and Online Safety","Non-transfer","Current","Current payments","Goods and services","Communication (G&S)","Communication (G&S)","Economic development","Economic regulation and infrastructure","NAT",152,113,108,225,225,225,0,80,85,0,0,null,null,null,null,null,null,null,null,null,null,null,null,null,null,null,null,null,null,null,null,null,null,null,null,null,null,null,null,null,null,null,null,null,null,{"$f":"Dataset[[#This Row],[2027/28 From - Spending review Topic 1]]+Dataset[[#This Row],[2027/28 From - Spending review Topic 2]]+Dataset[[#This Row],[2027/28 From - Spending review Topic 3]]+Dataset[[#This Row],[2027/28 From - Spending review Topic 4]]+Dataset[[#This Row],[2027/28 From - Other reallocations]]","v":0},{"$f":"Dataset[[#This Row],[2028/29 From - Spending review Topic 1]]+Dataset[[#This Row],[2028/29 From - Spending review Topic 2]]+Dataset[[#This Row],[2028/29 From - Spending review Topic 3]]+Dataset[[#This Row],[2028/29 From - Spending review Topic 4]]+Dataset[[#This Row],[2028/29 From - Other reallocations]]","v":0},{"$f":"Dataset[[#This Row],[2029/30 From - Spending review Topic 1]]+Dataset[[#This Row],[2029/30 From - Spending review Topic 2]]+Dataset[[#This Row],[2029/30 From - Spending review Topic 3]]+Dataset[[#This Row],[2029/30 From - Spending review Topic 4]]+Dataset[[#This Row],[2029/30 From - Other reallocations]]","v":0},{"$f":"Dataset[[#This Row],[2027/28 To - Spending review Topic 1]]+Dataset[[#This Row],[2027/28 To - Spending review Topic 2]]+Dataset[[#This Row],[2027/28 To - Spending review Topic 3]]+Dataset[[#This Row],[2027/28 To - Spending review Topic 4]]+Dataset[[#This Row],[2027/28 To - Other reallocations]]","v":0},{"$f":"Dataset[[#This Row],[2028/29 To - Spending review Topic 1]]+Dataset[[#This Row],[2028/29 To - Spending review Topic 2]]+Dataset[[#This Row],[2028/29 To - Spending review Topic 3]]+Dataset[[#This Row],[2028/29 To - Spending review Topic 4]]+Dataset[[#This Row],[2028/29 To - Other reallocations]]","v":0},{"$f":"Dataset[[#This Row],[2029/30 To - Spending review Topic 1]]+Dataset[[#This Row],[2029/30 To - Spending review Topic 2]]+Dataset[[#This Row],[2029/30 To - Spending review Topic 3]]+Dataset[[#This Row],[2029/30 To - Spending review Topic 4]]+Dataset[[#This Row],[2029/30 To - Other reallocations]]","v":0},{"$f":"Dataset[[#This Row],[2027/28 Targeted savings]]+Dataset[[#This Row],[2027/28 From - Total]]","v":0},{"$f":"Dataset[[#This Row],[2028/29 Targeted savings]]+Dataset[[#This Row],[2028/29 From - Total]]","v":0},{"$f":"Dataset[[#This Row],[2029/30 Targeted savings]]+Dataset[[#This Row],[2029/30 From - Total]]","v":0},{"$f":"Dataset[[#This Row],[2026/27 Targeted savings]]","v":0},{"$f":"SUM(Dataset[[#This Row],[2027/28 Targeted savings]],Dataset[[#This Row],[2027/28 From - Total]],Dataset[[#This Row],[2027/28 To - Total]])","v":0},{"$f":"SUM(Dataset[[#This Row],[2028/29 Targeted savings]],Dataset[[#This Row],[2028/29 From - Total]],Dataset[[#This Row],[2028/29 To - Total]])","v":0},{"$f":"SUM(Dataset[[#This Row],[2029/30 Targeted savings]],Dataset[[#This Row],[2029/30 From - Total]],Dataset[[#This Row],[2029/30 To - Total]])","v":0},{"$f":"Dataset[[#This Row],[2026/27 Baseline]]+Dataset[[#This Row],[2026/27 Total change]]","v":80},{"$f":"Dataset[[#This Row],[2027/28 Baseline]]+Dataset[[#This Row],[2027/28 Total change]]","v":85},{"$f":"Dataset[[#This Row],[2028/29 Baseline]]+Dataset[[#This Row],[2028/29 Total change]]","v":0},{"$f":"Dataset[[#This Row],[2029/30 Baseline]]+Dataset[[#This Row],[2029/30 Total change]]","v":0}]
["NAT|Non-transfer","30|Consultants: Business and advisory services","2027_28","MTEC2027",30,3,2,32927,407,"30","03","02","032927","000407","30|03|02|000407","01","01","02","11","11","01|01|02|11|11","National","Communications and Digital Technologies","Media and Content","Content Classification and Online Safety","Non-transfer","Current","Current payments","Goods and services","Consultants: Business and advisory services","Consultants: Business and advisory services","Economic development","Economic regulation and infrastructure","NAT",0,0,0,0,0,0,0,4500,2000,0,0,null,null,null,null,null,null,null,null,null,null,null,null,null,null,null,null,null,null,null,null,null,null,null,null,null,null,null,null,null,null,null,null,null,null,{"$f":"Dataset[[#This Row],[2027/28 From - Spending review Topic 1]]+Dataset[[#This Row],[2027/28 From - Spending review Topic 2]]+Dataset[[#This Row],[2027/28 From - Spending review Topic 3]]+Dataset[[#This Row],[2027/28 From - Spending review Topic 4]]+Dataset[[#This Row],[2027/28 From - Other reallocations]]","v":0},{"$f":"Dataset[[#This Row],[2028/29 From - Spending review Topic 1]]+Dataset[[#This Row],[2028/29 From - Spending review Topic 2]]+Dataset[[#This Row],[2028/29 From - Spending review Topic 3]]+Dataset[[#This Row],[2028/29 From - Spending review Topic 4]]+Dataset[[#This Row],[2028/29 From - Other reallocations]]","v":0},{"$f":"Dataset[[#This Row],[2029/30 From - Spending review Topic 1]]+Dataset[[#This Row],[2029/30 From - Spending review Topic 2]]+Dataset[[#This Row],[2029/30 From - Spending review Topic 3]]+Dataset[[#This Row],[2029/30 From - Spending review Topic 4]]+Dataset[[#This Row],[2029/30 From - Other reallocations]]","v":0},{"$f":"Dataset[[#This Row],[2027/28 To - Spending review Topic 1]]+Dataset[[#This Row],[2027/28 To - Spending review Topic 2]]+Dataset[[#This Row],[2027/28 To - Spending review Topic 3]]+Dataset[[#This Row],[2027/28 To - Spending review Topic 4]]+Dataset[[#This Row],[2027/28 To - Other reallocations]]","v":0},{"$f":"Dataset[[#This Row],[2028/29 To - Spending review Topic 1]]+Dataset[[#This Row],[2028/29 To - Spending review Topic 2]]+Dataset[[#This Row],[2028/29 To - Spending review Topic 3]]+Dataset[[#This Row],[2028/29 To - Spending review Topic 4]]+Dataset[[#This Row],[2028/29 To - Other reallocations]]","v":0},{"$f":"Dataset[[#This Row],[2029/30 To - Spending review Topic 1]]+Dataset[[#This Row],[2029/30 To - Spending review Topic 2]]+Dataset[[#This Row],[2029/30 To - Spending review Topic 3]]+Dataset[[#This Row],[2029/30 To - Spending review Topic 4]]+Dataset[[#This Row],[2029/30 To - Other reallocations]]","v":0},{"$f":"Dataset[[#This Row],[2027/28 Targeted savings]]+Dataset[[#This Row],[2027/28 From - Total]]","v":0},{"$f":"Dataset[[#This Row],[2028/29 Targeted savings]]+Dataset[[#This Row],[2028/29 From - Total]]","v":0},{"$f":"Dataset[[#This Row],[2029/30 Targeted savings]]+Dataset[[#This Row],[2029/30 From - Total]]","v":0},{"$f":"Dataset[[#This Row],[2026/27 Targeted savings]]","v":0},{"$f":"SUM(Dataset[[#This Row],[2027/28 Targeted savings]],Dataset[[#This Row],[2027/28 From - Total]],Dataset[[#This Row],[2027/28 To - Total]])","v":0},{"$f":"SUM(Dataset[[#This Row],[2028/29 Targeted savings]],Dataset[[#This Row],[2028/29 From - Total]],Dataset[[#This Row],[2028/29 To - Total]])","v":0},{"$f":"SUM(Dataset[[#This Row],[2029/30 Targeted savings]],Dataset[[#This Row],[2029/30 From - Total]],Dataset[[#This Row],[2029/30 To - Total]])","v":0},{"$f":"Dataset[[#This Row],[2026/27 Baseline]]+Dataset[[#This Row],[2026/27 Total change]]","v":4500},{"$f":"Dataset[[#This Row],[2027/28 Baseline]]+Dataset[[#This Row],[2027/28 Total change]]","v":2000},{"$f":"Dataset[[#This Row],[2028/29 Baseline]]+Dataset[[#This Row],[2028/29 Total change]]","v":0},{"$f":"Dataset[[#This Row],[2029/30 Baseline]]+Dataset[[#This Row],[2029/30 Total change]]","v":0}]
["NAT|Non-transfer","30|Contractors","2027_28","MTEC2027",30,3,2,32928,408,"30","03","02","032928","000408","30|03|02|000408","01","01","02","16","16","01|01|02|16|16","National","Communications and Digital Technologies","Media and Content","Content Classification and Online Safety","Non-transfer","Current","Current payments","Goods and services","Contractors","Contractors","Economic development","Economic regulation and infrastructure","NAT",0,0,10,0,0,0,0,0,0,0,0,null,null,null,null,null,null,null,null,null,null,null,null,null,null,null,null,null,null,null,null,null,null,null,null,null,null,null,null,null,null,null,null,null,null,{"$f":"Dataset[[#This Row],[2027/28 From - Spending review Topic 1]]+Dataset[[#This Row],[2027/28 From - Spending review Topic 2]]+Dataset[[#This Row],[2027/28 From - Spending review Topic 3]]+Dataset[[#This Row],[2027/28 From - Spending review Topic 4]]+Dataset[[#This Row],[2027/28 From - Other reallocations]]","v":0},{"$f":"Dataset[[#This Row],[2028/29 From - Spending review Topic 1]]+Dataset[[#This Row],[2028/29 From - Spending review Topic 2]]+Dataset[[#This Row],[2028/29 From - Spending review Topic 3]]+Dataset[[#This Row],[2028/29 From - Spending review Topic 4]]+Dataset[[#This Row],[2028/29 From - Other reallocations]]","v":0},{"$f":"Dataset[[#This Row],[2029/30 From - Spending review Topic 1]]+Dataset[[#This Row],[2029/30 From - Spending review Topic 2]]+Dataset[[#This Row],[2029/30 From - Spending review Topic 3]]+Dataset[[#This Row],[2029/30 From - Spending review Topic 4]]+Dataset[[#This Row],[2029/30 From - Other reallocations]]","v":0},{"$f":"Dataset[[#This Row],[2027/28 To - Spending review Topic 1]]+Dataset[[#This Row],[2027/28 To - Spending review Topic 2]]+Dataset[[#This Row],[2027/28 To - Spending review Topic 3]]+Dataset[[#This Row],[2027/28 To - Spending review Topic 4]]+Dataset[[#This Row],[2027/28 To - Other reallocations]]","v":0},{"$f":"Dataset[[#This Row],[2028/29 To - Spending review Topic 1]]+Dataset[[#This Row],[2028/29 To - Spending review Topic 2]]+Dataset[[#This Row],[2028/29 To - Spending review Topic 3]]+Dataset[[#This Row],[2028/29 To - Spending review Topic 4]]+Dataset[[#This Row],[2028/29 To - Other reallocations]]","v":0},{"$f":"Dataset[[#This Row],[2029/30 To - Spending review Topic 1]]+Dataset[[#This Row],[2029/30 To - Spending review Topic 2]]+Dataset[[#This Row],[2029/30 To - Spending review Topic 3]]+Dataset[[#This Row],[2029/30 To - Spending review Topic 4]]+Dataset[[#This Row],[2029/30 To - Other reallocations]]","v":0},{"$f":"Dataset[[#This Row],[2027/28 Targeted savings]]+Dataset[[#This Row],[2027/28 From - Total]]","v":0},{"$f":"Dataset[[#This Row],[2028/29 Targeted savings]]+Dataset[[#This Row],[2028/29 From - Total]]","v":0},{"$f":"Dataset[[#This Row],[2029/30 Targeted savings]]+Dataset[[#This Row],[2029/30 From - Total]]","v":0},{"$f":"Dataset[[#This Row],[2026/27 Targeted savings]]","v":0},{"$f":"SUM(Dataset[[#This Row],[2027/28 Targeted savings]],Dataset[[#This Row],[2027/28 From - Total]],Dataset[[#This Row],[2027/28 To - Total]])","v":0},{"$f":"SUM(Dataset[[#This Row],[2028/29 Targeted savings]],Dataset[[#This Row],[2028/29 From - Total]],Dataset[[#This Row],[2028/29 To - Total]])","v":0},{"$f":"SUM(Dataset[[#This Row],[2029/30 Targeted savings]],Dataset[[#This Row],[2029/30 From - Total]],Dataset[[#This Row],[2029/30 To - Total]])","v":0},{"$f":"Dataset[[#This Row],[2026/27 Baseline]]+Dataset[[#This Row],[2026/27 Total change]]","v":0},{"$f":"Dataset[[#This Row],[2027/28 Baseline]]+Dataset[[#This Row],[2027/28 Total change]]","v":0},{"$f":"Dataset[[#This Row],[2028/29 Baseline]]+Dataset[[#This Row],[2028/29 Total change]]","v":0},{"$f":"Dataset[[#This Row],[2029/30 Baseline]]+Dataset[[#This Row],[2029/30 Total change]]","v":0}]
["NAT|Non-transfer","30|Entertainment","2027_28","MTEC2027",30,3,2,32929,409,"30","03","02","032929","000409","30|03|02|000409","01","01","02","18","18","01|01|02|18|18","National","Communications and Digital Technologies","Media and Content","Content Classification and Online Safety","Non-transfer","Current","Current payments","Goods and services","Entertainment","Entertainment","Economic development","Economic regulation and infrastructure","NAT",0,0,0,2,2,2,0,0,0,0,0,null,null,null,null,null,null,null,null,null,null,null,null,null,null,null,null,null,null,null,null,null,null,null,null,null,null,null,null,null,null,null,null,null,null,{"$f":"Dataset[[#This Row],[2027/28 From - Spending review Topic 1]]+Dataset[[#This Row],[2027/28 From - Spending review Topic 2]]+Dataset[[#This Row],[2027/28 From - Spending review Topic 3]]+Dataset[[#This Row],[2027/28 From - Spending review Topic 4]]+Dataset[[#This Row],[2027/28 From - Other reallocations]]","v":0},{"$f":"Dataset[[#This Row],[2028/29 From - Spending review Topic 1]]+Dataset[[#This Row],[2028/29 From - Spending review Topic 2]]+Dataset[[#This Row],[2028/29 From - Spending review Topic 3]]+Dataset[[#This Row],[2028/29 From - Spending review Topic 4]]+Dataset[[#This Row],[2028/29 From - Other reallocations]]","v":0},{"$f":"Dataset[[#This Row],[2029/30 From - Spending review Topic 1]]+Dataset[[#This Row],[2029/30 From - Spending review Topic 2]]+Dataset[[#This Row],[2029/30 From - Spending review Topic 3]]+Dataset[[#This Row],[2029/30 From - Spending review Topic 4]]+Dataset[[#This Row],[2029/30 From - Other reallocations]]","v":0},{"$f":"Dataset[[#This Row],[2027/28 To - Spending review Topic 1]]+Dataset[[#This Row],[2027/28 To - Spending review Topic 2]]+Dataset[[#This Row],[2027/28 To - Spending review Topic 3]]+Dataset[[#This Row],[2027/28 To - Spending review Topic 4]]+Dataset[[#This Row],[2027/28 To - Other reallocations]]","v":0},{"$f":"Dataset[[#This Row],[2028/29 To - Spending review Topic 1]]+Dataset[[#This Row],[2028/29 To - Spending review Topic 2]]+Dataset[[#This Row],[2028/29 To - Spending review Topic 3]]+Dataset[[#This Row],[2028/29 To - Spending review Topic 4]]+Dataset[[#This Row],[2028/29 To - Other reallocations]]","v":0},{"$f":"Dataset[[#This Row],[2029/30 To - Spending review Topic 1]]+Dataset[[#This Row],[2029/30 To - Spending review Topic 2]]+Dataset[[#This Row],[2029/30 To - Spending review Topic 3]]+Dataset[[#This Row],[2029/30 To - Spending review Topic 4]]+Dataset[[#This Row],[2029/30 To - Other reallocations]]","v":0},{"$f":"Dataset[[#This Row],[2027/28 Targeted savings]]+Dataset[[#This Row],[2027/28 From - Total]]","v":0},{"$f":"Dataset[[#This Row],[2028/29 Targeted savings]]+Dataset[[#This Row],[2028/29 From - Total]]","v":0},{"$f":"Dataset[[#This Row],[2029/30 Targeted savings]]+Dataset[[#This Row],[2029/30 From - Total]]","v":0},{"$f":"Dataset[[#This Row],[2026/27 Targeted savings]]","v":0},{"$f":"SUM(Dataset[[#This Row],[2027/28 Targeted savings]],Dataset[[#This Row],[2027/28 From - Total]],Dataset[[#This Row],[2027/28 To - Total]])","v":0},{"$f":"SUM(Dataset[[#This Row],[2028/29 Targeted savings]],Dataset[[#This Row],[2028/29 From - Total]],Dataset[[#This Row],[2028/29 To - Total]])","v":0},{"$f":"SUM(Dataset[[#This Row],[2029/30 Targeted savings]],Dataset[[#This Row],[2029/30 From - Total]],Dataset[[#This Row],[2029/30 To - Total]])","v":0},{"$f":"Dataset[[#This Row],[2026/27 Baseline]]+Dataset[[#This Row],[2026/27 Total change]]","v":0},{"$f":"Dataset[[#This Row],[2027/28 Baseline]]+Dataset[[#This Row],[2027/28 Total change]]","v":0},{"$f":"Dataset[[#This Row],[2028/29 Baseline]]+Dataset[[#This Row],[2028/29 Total change]]","v":0},{"$f":"Dataset[[#This Row],[2029/30 Baseline]]+Dataset[[#This Row],[2029/30 Total change]]","v":0}]
["NAT|Non-transfer","30|Consumable supplies","2027_28","MTEC2027",30,3,2,32930,410,"30","03","02","032930","000410","30|03|02|000410","01","01","02","31","31","01|01|02|31|31","National","Communications and Digital Technologies","Media and Content","Content Classification and Online Safety","Non-transfer","Current","Current payments","Goods and services","Consumable supplies","Consumable supplies","Economic development","Economic regulation and infrastructure","NAT",1,2,0,1,1,1,0,0,0,0,0,null,null,null,null,null,null,null,null,null,null,null,null,null,null,null,null,null,null,null,null,null,null,null,null,null,null,null,null,null,null,null,null,null,null,{"$f":"Dataset[[#This Row],[2027/28 From - Spending review Topic 1]]+Dataset[[#This Row],[2027/28 From - Spending review Topic 2]]+Dataset[[#This Row],[2027/28 From - Spending review Topic 3]]+Dataset[[#This Row],[2027/28 From - Spending review Topic 4]]+Dataset[[#This Row],[2027/28 From - Other reallocations]]","v":0},{"$f":"Dataset[[#This Row],[2028/29 From - Spending review Topic 1]]+Dataset[[#This Row],[2028/29 From - Spending review Topic 2]]+Dataset[[#This Row],[2028/29 From - Spending review Topic 3]]+Dataset[[#This Row],[2028/29 From - Spending review Topic 4]]+Dataset[[#This Row],[2028/29 From - Other reallocations]]","v":0},{"$f":"Dataset[[#This Row],[2029/30 From - Spending review Topic 1]]+Dataset[[#This Row],[2029/30 From - Spending review Topic 2]]+Dataset[[#This Row],[2029/30 From - Spending review Topic 3]]+Dataset[[#This Row],[2029/30 From - Spending review Topic 4]]+Dataset[[#This Row],[2029/30 From - Other reallocations]]","v":0},{"$f":"Dataset[[#This Row],[2027/28 To - Spending review Topic 1]]+Dataset[[#This Row],[2027/28 To - Spending review Topic 2]]+Dataset[[#This Row],[2027/28 To - Spending review Topic 3]]+Dataset[[#This Row],[2027/28 To - Spending review Topic 4]]+Dataset[[#This Row],[2027/28 To - Other reallocations]]","v":0},{"$f":"Dataset[[#This Row],[2028/29 To - Spending review Topic 1]]+Dataset[[#This Row],[2028/29 To - Spending review Topic 2]]+Dataset[[#This Row],[2028/29 To - Spending review Topic 3]]+Dataset[[#This Row],[2028/29 To - Spending review Topic 4]]+Dataset[[#This Row],[2028/29 To - Other reallocations]]","v":0},{"$f":"Dataset[[#This Row],[2029/30 To - Spending review Topic 1]]+Dataset[[#This Row],[2029/30 To - Spending review Topic 2]]+Dataset[[#This Row],[2029/30 To - Spending review Topic 3]]+Dataset[[#This Row],[2029/30 To - Spending review Topic 4]]+Dataset[[#This Row],[2029/30 To - Other reallocations]]","v":0},{"$f":"Dataset[[#This Row],[2027/28 Targeted savings]]+Dataset[[#This Row],[2027/28 From - Total]]","v":0},{"$f":"Dataset[[#This Row],[2028/29 Targeted savings]]+Dataset[[#This Row],[2028/29 From - Total]]","v":0},{"$f":"Dataset[[#This Row],[2029/30 Targeted savings]]+Dataset[[#This Row],[2029/30 From - Total]]","v":0},{"$f":"Dataset[[#This Row],[2026/27 Targeted savings]]","v":0},{"$f":"SUM(Dataset[[#This Row],[2027/28 Targeted savings]],Dataset[[#This Row],[2027/28 From - Total]],Dataset[[#This Row],[2027/28 To - Total]])","v":0},{"$f":"SUM(Dataset[[#This Row],[2028/29 Targeted savings]],Dataset[[#This Row],[2028/29 From - Total]],Dataset[[#This Row],[2028/29 To - Total]])","v":0},{"$f":"SUM(Dataset[[#This Row],[2029/30 Targeted savings]],Dataset[[#This Row],[2029/30 From - Total]],Dataset[[#This Row],[2029/30 To - Total]])","v":0},{"$f":"Dataset[[#This Row],[2026/27 Baseline]]+Dataset[[#This Row],[2026/27 Total change]]","v":0},{"$f":"Dataset[[#This Row],[2027/28 Baseline]]+Dataset[[#This Row],[2027/28 Total change]]","v":0},{"$f":"Dataset[[#This Row],[2028/29 Baseline]]+Dataset[[#This Row],[2028/29 Total change]]","v":0},{"$f":"Dataset[[#This Row],[2029/30 Baseline]]+Dataset[[#This Row],[2029/30 Total change]]","v":0}]
["NAT|Non-transfer","30|Consumables: Stationery, printing and office supplies","2027_28","MTEC2027",30,3,2,32931,411,"30","03","02","032931","000411","30|03|02|000411","01","01","02","32","32","01|01|02|32|32","National","Communications and Digital Technologies","Media and Content","Content Classification and Online Safety","Non-transfer","Current","Current payments","Goods and services","Consumables: Stationery, printing and office supplies","Consumables: Stationery, printing and office supplies","Economic development","Economic regulation and infrastructure","NAT",24,23,0,62,62,62,0,40,45,0,0,null,null,null,null,null,null,null,null,null,null,null,null,null,null,null,null,null,null,null,null,null,null,null,null,null,null,null,null,null,null,null,null,null,null,{"$f":"Dataset[[#This Row],[2027/28 From - Spending review Topic 1]]+Dataset[[#This Row],[2027/28 From - Spending review Topic 2]]+Dataset[[#This Row],[2027/28 From - Spending review Topic 3]]+Dataset[[#This Row],[2027/28 From - Spending review Topic 4]]+Dataset[[#This Row],[2027/28 From - Other reallocations]]","v":0},{"$f":"Dataset[[#This Row],[2028/29 From - Spending review Topic 1]]+Dataset[[#This Row],[2028/29 From - Spending review Topic 2]]+Dataset[[#This Row],[2028/29 From - Spending review Topic 3]]+Dataset[[#This Row],[2028/29 From - Spending review Topic 4]]+Dataset[[#This Row],[2028/29 From - Other reallocations]]","v":0},{"$f":"Dataset[[#This Row],[2029/30 From - Spending review Topic 1]]+Dataset[[#This Row],[2029/30 From - Spending review Topic 2]]+Dataset[[#This Row],[2029/30 From - Spending review Topic 3]]+Dataset[[#This Row],[2029/30 From - Spending review Topic 4]]+Dataset[[#This Row],[2029/30 From - Other reallocations]]","v":0},{"$f":"Dataset[[#This Row],[2027/28 To - Spending review Topic 1]]+Dataset[[#This Row],[2027/28 To - Spending review Topic 2]]+Dataset[[#This Row],[2027/28 To - Spending review Topic 3]]+Dataset[[#This Row],[2027/28 To - Spending review Topic 4]]+Dataset[[#This Row],[2027/28 To - Other reallocations]]","v":0},{"$f":"Dataset[[#This Row],[2028/29 To - Spending review Topic 1]]+Dataset[[#This Row],[2028/29 To - Spending review Topic 2]]+Dataset[[#This Row],[2028/29 To - Spending review Topic 3]]+Dataset[[#This Row],[2028/29 To - Spending review Topic 4]]+Dataset[[#This Row],[2028/29 To - Other reallocations]]","v":0},{"$f":"Dataset[[#This Row],[2029/30 To - Spending review Topic 1]]+Dataset[[#This Row],[2029/30 To - Spending review Topic 2]]+Dataset[[#This Row],[2029/30 To - Spending review Topic 3]]+Dataset[[#This Row],[2029/30 To - Spending review Topic 4]]+Dataset[[#This Row],[2029/30 To - Other reallocations]]","v":0},{"$f":"Dataset[[#This Row],[2027/28 Targeted savings]]+Dataset[[#This Row],[2027/28 From - Total]]","v":0},{"$f":"Dataset[[#This Row],[2028/29 Targeted savings]]+Dataset[[#This Row],[2028/29 From - Total]]","v":0},{"$f":"Dataset[[#This Row],[2029/30 Targeted savings]]+Dataset[[#This Row],[2029/30 From - Total]]","v":0},{"$f":"Dataset[[#This Row],[2026/27 Targeted savings]]","v":0},{"$f":"SUM(Dataset[[#This Row],[2027/28 Targeted savings]],Dataset[[#This Row],[2027/28 From - Total]],Dataset[[#This Row],[2027/28 To - Total]])","v":0},{"$f":"SUM(Dataset[[#This Row],[2028/29 Targeted savings]],Dataset[[#This Row],[2028/29 From - Total]],Dataset[[#This Row],[2028/29 To - Total]])","v":0},{"$f":"SUM(Dataset[[#This Row],[2029/30 Targeted savings]],Dataset[[#This Row],[2029/30 From - Total]],Dataset[[#This Row],[2029/30 To - Total]])","v":0},{"$f":"Dataset[[#This Row],[2026/27 Baseline]]+Dataset[[#This Row],[2026/27 Total change]]","v":40},{"$f":"Dataset[[#This Row],[2027/28 Baseline]]+Dataset[[#This Row],[2027/28 Total change]]","v":45},{"$f":"Dataset[[#This Row],[2028/29 Baseline]]+Dataset[[#This Row],[2028/29 Total change]]","v":0},{"$f":"Dataset[[#This Row],[2029/30 Baseline]]+Dataset[[#This Row],[2029/30 Total change]]","v":0}]
["NAT|Non-transfer","30|Operating leases","2027_28","MTEC2027",30,3,2,32932,412,"30","03","02","032932","000412","30|03|02|000412","01","01","02","33","33","01|01|02|33|33","National","Communications and Digital Technologies","Media and Content","Content Classification and Online Safety","Non-transfer","Current","Current payments","Goods and services","Operating leases","Operating leases","Economic development","Economic regulation and infrastructure","NAT",0,1,12,15,15,15,0,51,55,0,0,null,null,null,null,null,null,null,null,null,null,null,null,null,null,null,null,null,null,null,null,null,null,null,null,null,null,null,null,null,null,null,null,null,null,{"$f":"Dataset[[#This Row],[2027/28 From - Spending review Topic 1]]+Dataset[[#This Row],[2027/28 From - Spending review Topic 2]]+Dataset[[#This Row],[2027/28 From - Spending review Topic 3]]+Dataset[[#This Row],[2027/28 From - Spending review Topic 4]]+Dataset[[#This Row],[2027/28 From - Other reallocations]]","v":0},{"$f":"Dataset[[#This Row],[2028/29 From - Spending review Topic 1]]+Dataset[[#This Row],[2028/29 From - Spending review Topic 2]]+Dataset[[#This Row],[2028/29 From - Spending review Topic 3]]+Dataset[[#This Row],[2028/29 From - Spending review Topic 4]]+Dataset[[#This Row],[2028/29 From - Other reallocations]]","v":0},{"$f":"Dataset[[#This Row],[2029/30 From - Spending review Topic 1]]+Dataset[[#This Row],[2029/30 From - Spending review Topic 2]]+Dataset[[#This Row],[2029/30 From - Spending review Topic 3]]+Dataset[[#This Row],[2029/30 From - Spending review Topic 4]]+Dataset[[#This Row],[2029/30 From - Other reallocations]]","v":0},{"$f":"Dataset[[#This Row],[2027/28 To - Spending review Topic 1]]+Dataset[[#This Row],[2027/28 To - Spending review Topic 2]]+Dataset[[#This Row],[2027/28 To - Spending review Topic 3]]+Dataset[[#This Row],[2027/28 To - Spending review Topic 4]]+Dataset[[#This Row],[2027/28 To - Other reallocations]]","v":0},{"$f":"Dataset[[#This Row],[2028/29 To - Spending review Topic 1]]+Dataset[[#This Row],[2028/29 To - Spending review Topic 2]]+Dataset[[#This Row],[2028/29 To - Spending review Topic 3]]+Dataset[[#This Row],[2028/29 To - Spending review Topic 4]]+Dataset[[#This Row],[2028/29 To - Other reallocations]]","v":0},{"$f":"Dataset[[#This Row],[2029/30 To - Spending review Topic 1]]+Dataset[[#This Row],[2029/30 To - Spending review Topic 2]]+Dataset[[#This Row],[2029/30 To - Spending review Topic 3]]+Dataset[[#This Row],[2029/30 To - Spending review Topic 4]]+Dataset[[#This Row],[2029/30 To - Other reallocations]]","v":0},{"$f":"Dataset[[#This Row],[2027/28 Targeted savings]]+Dataset[[#This Row],[2027/28 From - Total]]","v":0},{"$f":"Dataset[[#This Row],[2028/29 Targeted savings]]+Dataset[[#This Row],[2028/29 From - Total]]","v":0},{"$f":"Dataset[[#This Row],[2029/30 Targeted savings]]+Dataset[[#This Row],[2029/30 From - Total]]","v":0},{"$f":"Dataset[[#This Row],[2026/27 Targeted savings]]","v":0},{"$f":"SUM(Dataset[[#This Row],[2027/28 Targeted savings]],Dataset[[#This Row],[2027/28 From - Total]],Dataset[[#This Row],[2027/28 To - Total]])","v":0},{"$f":"SUM(Dataset[[#This Row],[2028/29 Targeted savings]],Dataset[[#This Row],[2028/29 From - Total]],Dataset[[#This Row],[2028/29 To - Total]])","v":0},{"$f":"SUM(Dataset[[#This Row],[2029/30 Targeted savings]],Dataset[[#This Row],[2029/30 From - Total]],Dataset[[#This Row],[2029/30 To - Total]])","v":0},{"$f":"Dataset[[#This Row],[2026/27 Baseline]]+Dataset[[#This Row],[2026/27 Total change]]","v":51},{"$f":"Dataset[[#This Row],[2027/28 Baseline]]+Dataset[[#This Row],[2027/28 Total change]]","v":55},{"$f":"Dataset[[#This Row],[2028/29 Baseline]]+Dataset[[#This Row],[2028/29 Total change]]","v":0},{"$f":"Dataset[[#This Row],[2029/30 Baseline]]+Dataset[[#This Row],[2029/30 Total change]]","v":0}]
["NAT|Non-transfer","30|Travel and subsistence","2027_28","MTEC2027",30,3,2,32933,413,"30","03","02","032933","000413","30|03|02|000413","01","01","02","37","37","01|01|02|37|37","National","Communications and Digital Technologies","Media and Content","Content Classification and Online Safety","Non-transfer","Current","Current payments","Goods and services","Travel and subsistence","Travel and subsistence","Economic development","Economic regulation and infrastructure","NAT",48,202,128,582,582,582,0,799,803,408,420,null,null,null,null,null,null,null,null,null,null,null,null,null,null,null,null,null,null,null,null,null,null,null,null,null,null,null,null,null,null,null,null,null,null,{"$f":"Dataset[[#This Row],[2027/28 From - Spending review Topic 1]]+Dataset[[#This Row],[2027/28 From - Spending review Topic 2]]+Dataset[[#This Row],[2027/28 From - Spending review Topic 3]]+Dataset[[#This Row],[2027/28 From - Spending review Topic 4]]+Dataset[[#This Row],[2027/28 From - Other reallocations]]","v":0},{"$f":"Dataset[[#This Row],[2028/29 From - Spending review Topic 1]]+Dataset[[#This Row],[2028/29 From - Spending review Topic 2]]+Dataset[[#This Row],[2028/29 From - Spending review Topic 3]]+Dataset[[#This Row],[2028/29 From - Spending review Topic 4]]+Dataset[[#This Row],[2028/29 From - Other reallocations]]","v":0},{"$f":"Dataset[[#This Row],[2029/30 From - Spending review Topic 1]]+Dataset[[#This Row],[2029/30 From - Spending review Topic 2]]+Dataset[[#This Row],[2029/30 From - Spending review Topic 3]]+Dataset[[#This Row],[2029/30 From - Spending review Topic 4]]+Dataset[[#This Row],[2029/30 From - Other reallocations]]","v":0},{"$f":"Dataset[[#This Row],[2027/28 To - Spending review Topic 1]]+Dataset[[#This Row],[2027/28 To - Spending review Topic 2]]+Dataset[[#This Row],[2027/28 To - Spending review Topic 3]]+Dataset[[#This Row],[2027/28 To - Spending review Topic 4]]+Dataset[[#This Row],[2027/28 To - Other reallocations]]","v":0},{"$f":"Dataset[[#This Row],[2028/29 To - Spending review Topic 1]]+Dataset[[#This Row],[2028/29 To - Spending review Topic 2]]+Dataset[[#This Row],[2028/29 To - Spending review Topic 3]]+Dataset[[#This Row],[2028/29 To - Spending review Topic 4]]+Dataset[[#This Row],[2028/29 To - Other reallocations]]","v":0},{"$f":"Dataset[[#This Row],[2029/30 To - Spending review Topic 1]]+Dataset[[#This Row],[2029/30 To - Spending review Topic 2]]+Dataset[[#This Row],[2029/30 To - Spending review Topic 3]]+Dataset[[#This Row],[2029/30 To - Spending review Topic 4]]+Dataset[[#This Row],[2029/30 To - Other reallocations]]","v":0},{"$f":"Dataset[[#This Row],[2027/28 Targeted savings]]+Dataset[[#This Row],[2027/28 From - Total]]","v":0},{"$f":"Dataset[[#This Row],[2028/29 Targeted savings]]+Dataset[[#This Row],[2028/29 From - Total]]","v":0},{"$f":"Dataset[[#This Row],[2029/30 Targeted savings]]+Dataset[[#This Row],[2029/30 From - Total]]","v":0},{"$f":"Dataset[[#This Row],[2026/27 Targeted savings]]","v":0},{"$f":"SUM(Dataset[[#This Row],[2027/28 Targeted savings]],Dataset[[#This Row],[2027/28 From - Total]],Dataset[[#This Row],[2027/28 To - Total]])","v":0},{"$f":"SUM(Dataset[[#This Row],[2028/29 Targeted savings]],Dataset[[#This Row],[2028/29 From - Total]],Dataset[[#This Row],[2028/29 To - Total]])","v":0},{"$f":"SUM(Dataset[[#This Row],[2029/30 Targeted savings]],Dataset[[#This Row],[2029/30 From - Total]],Dataset[[#This Row],[2029/30 To - Total]])","v":0},{"$f":"Dataset[[#This Row],[2026/27 Baseline]]+Dataset[[#This Row],[2026/27 Total change]]","v":799},{"$f":"Dataset[[#This Row],[2027/28 Baseline]]+Dataset[[#This Row],[2027/28 Total change]]","v":803},{"$f":"Dataset[[#This Row],[2028/29 Baseline]]+Dataset[[#This Row],[2028/29 Total change]]","v":408},{"$f":"Dataset[[#This Row],[2029/30 Baseline]]+Dataset[[#This Row],[2029/30 Total change]]","v":420}]
["NAT|Non-transfer","30|Training and development","2027_28","MTEC2027",30,3,2,32934,414,"30","03","02","032934","000414","30|03|02|000414","01","01","02","38","38","01|01|02|38|38","National","Communications and Digital Technologies","Media and Content","Content Classification and Online Safety","Non-transfer","Current","Current payments","Goods and services","Training and development","Training and development","Economic development","Economic regulation and infrastructure","NAT",0,0,0,10,10,10,0,70,100,0,0,null,null,null,null,null,null,null,null,null,null,null,null,null,null,null,null,null,null,null,null,null,null,null,null,null,null,null,null,null,null,null,null,null,null,{"$f":"Dataset[[#This Row],[2027/28 From - Spending review Topic 1]]+Dataset[[#This Row],[2027/28 From - Spending review Topic 2]]+Dataset[[#This Row],[2027/28 From - Spending review Topic 3]]+Dataset[[#This Row],[2027/28 From - Spending review Topic 4]]+Dataset[[#This Row],[2027/28 From - Other reallocations]]","v":0},{"$f":"Dataset[[#This Row],[2028/29 From - Spending review Topic 1]]+Dataset[[#This Row],[2028/29 From - Spending review Topic 2]]+Dataset[[#This Row],[2028/29 From - Spending review Topic 3]]+Dataset[[#This Row],[2028/29 From - Spending review Topic 4]]+Dataset[[#This Row],[2028/29 From - Other reallocations]]","v":0},{"$f":"Dataset[[#This Row],[2029/30 From - Spending review Topic 1]]+Dataset[[#This Row],[2029/30 From - Spending review Topic 2]]+Dataset[[#This Row],[2029/30 From - Spending review Topic 3]]+Dataset[[#This Row],[2029/30 From - Spending review Topic 4]]+Dataset[[#This Row],[2029/30 From - Other reallocations]]","v":0},{"$f":"Dataset[[#This Row],[2027/28 To - Spending review Topic 1]]+Dataset[[#This Row],[2027/28 To - Spending review Topic 2]]+Dataset[[#This Row],[2027/28 To - Spending review Topic 3]]+Dataset[[#This Row],[2027/28 To - Spending review Topic 4]]+Dataset[[#This Row],[2027/28 To - Other reallocations]]","v":0},{"$f":"Dataset[[#This Row],[2028/29 To - Spending review Topic 1]]+Dataset[[#This Row],[2028/29 To - Spending review Topic 2]]+Dataset[[#This Row],[2028/29 To - Spending review Topic 3]]+Dataset[[#This Row],[2028/29 To - Spending review Topic 4]]+Dataset[[#This Row],[2028/29 To - Other reallocations]]","v":0},{"$f":"Dataset[[#This Row],[2029/30 To - Spending review Topic 1]]+Dataset[[#This Row],[2029/30 To - Spending review Topic 2]]+Dataset[[#This Row],[2029/30 To - Spending review Topic 3]]+Dataset[[#This Row],[2029/30 To - Spending review Topic 4]]+Dataset[[#This Row],[2029/30 To - Other reallocations]]","v":0},{"$f":"Dataset[[#This Row],[2027/28 Targeted savings]]+Dataset[[#This Row],[2027/28 From - Total]]","v":0},{"$f":"Dataset[[#This Row],[2028/29 Targeted savings]]+Dataset[[#This Row],[2028/29 From - Total]]","v":0},{"$f":"Dataset[[#This Row],[2029/30 Targeted savings]]+Dataset[[#This Row],[2029/30 From - Total]]","v":0},{"$f":"Dataset[[#This Row],[2026/27 Targeted savings]]","v":0},{"$f":"SUM(Dataset[[#This Row],[2027/28 Targeted savings]],Dataset[[#This Row],[2027/28 From - Total]],Dataset[[#This Row],[2027/28 To - Total]])","v":0},{"$f":"SUM(Dataset[[#This Row],[2028/29 Targeted savings]],Dataset[[#This Row],[2028/29 From - Total]],Dataset[[#This Row],[2028/29 To - Total]])","v":0},{"$f":"SUM(Dataset[[#This Row],[2029/30 Targeted savings]],Dataset[[#This Row],[2029/30 From - Total]],Dataset[[#This Row],[2029/30 To - Total]])","v":0},{"$f":"Dataset[[#This Row],[2026/27 Baseline]]+Dataset[[#This Row],[2026/27 Total change]]","v":70},{"$f":"Dataset[[#This Row],[2027/28 Baseline]]+Dataset[[#This Row],[2027/28 Total change]]","v":100},{"$f":"Dataset[[#This Row],[2028/29 Baseline]]+Dataset[[#This Row],[2028/29 Total change]]","v":0},{"$f":"Dataset[[#This Row],[2029/30 Baseline]]+Dataset[[#This Row],[2029/30 Total change]]","v":0}]
["NAT|Non-transfer","30|Operating payments","2027_28","MTEC2027",30,3,2,32935,415,"30","03","02","032935","000415","30|03|02|000415","01","01","02","39","39","01|01|02|39|39","National","Communications and Digital Technologies","Media and Content","Content Classification and Online Safety","Non-transfer","Current","Current payments","Goods and services","Operating payments","Operating payments","Economic development","Economic regulation and infrastructure","NAT",0,24,0,0,0,0,0,0,0,0,0,null,null,null,null,null,null,null,null,null,null,null,null,null,null,null,null,null,null,null,null,null,null,null,null,null,null,null,null,null,null,null,null,null,null,{"$f":"Dataset[[#This Row],[2027/28 From - Spending review Topic 1]]+Dataset[[#This Row],[2027/28 From - Spending review Topic 2]]+Dataset[[#This Row],[2027/28 From - Spending review Topic 3]]+Dataset[[#This Row],[2027/28 From - Spending review Topic 4]]+Dataset[[#This Row],[2027/28 From - Other reallocations]]","v":0},{"$f":"Dataset[[#This Row],[2028/29 From - Spending review Topic 1]]+Dataset[[#This Row],[2028/29 From - Spending review Topic 2]]+Dataset[[#This Row],[2028/29 From - Spending review Topic 3]]+Dataset[[#This Row],[2028/29 From - Spending review Topic 4]]+Dataset[[#This Row],[2028/29 From - Other reallocations]]","v":0},{"$f":"Dataset[[#This Row],[2029/30 From - Spending review Topic 1]]+Dataset[[#This Row],[2029/30 From - Spending review Topic 2]]+Dataset[[#This Row],[2029/30 From - Spending review Topic 3]]+Dataset[[#This Row],[2029/30 From - Spending review Topic 4]]+Dataset[[#This Row],[2029/30 From - Other reallocations]]","v":0},{"$f":"Dataset[[#This Row],[2027/28 To - Spending review Topic 1]]+Dataset[[#This Row],[2027/28 To - Spending review Topic 2]]+Dataset[[#This Row],[2027/28 To - Spending review Topic 3]]+Dataset[[#This Row],[2027/28 To - Spending review Topic 4]]+Dataset[[#This Row],[2027/28 To - Other reallocations]]","v":0},{"$f":"Dataset[[#This Row],[2028/29 To - Spending review Topic 1]]+Dataset[[#This Row],[2028/29 To - Spending review Topic 2]]+Dataset[[#This Row],[2028/29 To - Spending review Topic 3]]+Dataset[[#This Row],[2028/29 To - Spending review Topic 4]]+Dataset[[#This Row],[2028/29 To - Other reallocations]]","v":0},{"$f":"Dataset[[#This Row],[2029/30 To - Spending review Topic 1]]+Dataset[[#This Row],[2029/30 To - Spending review Topic 2]]+Dataset[[#This Row],[2029/30 To - Spending review Topic 3]]+Dataset[[#This Row],[2029/30 To - Spending review Topic 4]]+Dataset[[#This Row],[2029/30 To - Other reallocations]]","v":0},{"$f":"Dataset[[#This Row],[2027/28 Targeted savings]]+Dataset[[#This Row],[2027/28 From - Total]]","v":0},{"$f":"Dataset[[#This Row],[2028/29 Targeted savings]]+Dataset[[#This Row],[2028/29 From - Total]]","v":0},{"$f":"Dataset[[#This Row],[2029/30 Targeted savings]]+Dataset[[#This Row],[2029/30 From - Total]]","v":0},{"$f":"Dataset[[#This Row],[2026/27 Targeted savings]]","v":0},{"$f":"SUM(Dataset[[#This Row],[2027/28 Targeted savings]],Dataset[[#This Row],[2027/28 From - Total]],Dataset[[#This Row],[2027/28 To - Total]])","v":0},{"$f":"SUM(Dataset[[#This Row],[2028/29 Targeted savings]],Dataset[[#This Row],[2028/29 From - Total]],Dataset[[#This Row],[2028/29 To - Total]])","v":0},{"$f":"SUM(Dataset[[#This Row],[2029/30 Targeted savings]],Dataset[[#This Row],[2029/30 From - Total]],Dataset[[#This Row],[2029/30 To - Total]])","v":0},{"$f":"Dataset[[#This Row],[2026/27 Baseline]]+Dataset[[#This Row],[2026/27 Total change]]","v":0},{"$f":"Dataset[[#This Row],[2027/28 Baseline]]+Dataset[[#This Row],[2027/28 Total change]]","v":0},{"$f":"Dataset[[#This Row],[2028/29 Baseline]]+Dataset[[#This Row],[2028/29 Total change]]","v":0},{"$f":"Dataset[[#This Row],[2029/30 Baseline]]+Dataset[[#This Row],[2029/30 Total change]]","v":0}]
["NAT|Film and Publication Board","30|Departmental agencies (non-business entities)","2027_28","MTEC2027",30,3,2,32936,416,"30","03","02","032936","000416","30|03|02|000416","01","02","05","46","48","01|02|05|46|48","National","Communications and Digital Technologies","Media and Content","Content Classification and Online Safety","Film and Publication Board","Current","Transfers and subsidies","Departmental agencies and accounts","Departmental agencies (non-business entities)","Departmental agencies (non-business entities)","Economic development","Economic regulation and infrastructure","NAT",102870,103860,103098,107717,107717,107717,0,112070,116543,120165,123783,null,null,null,null,null,null,null,null,null,null,null,null,null,null,null,null,null,null,null,null,null,null,null,null,null,null,null,null,null,null,null,null,null,null,{"$f":"Dataset[[#This Row],[2027/28 From - Spending review Topic 1]]+Dataset[[#This Row],[2027/28 From - Spending review Topic 2]]+Dataset[[#This Row],[2027/28 From - Spending review Topic 3]]+Dataset[[#This Row],[2027/28 From - Spending review Topic 4]]+Dataset[[#This Row],[2027/28 From - Other reallocations]]","v":0},{"$f":"Dataset[[#This Row],[2028/29 From - Spending review Topic 1]]+Dataset[[#This Row],[2028/29 From - Spending review Topic 2]]+Dataset[[#This Row],[2028/29 From - Spending review Topic 3]]+Dataset[[#This Row],[2028/29 From - Spending review Topic 4]]+Dataset[[#This Row],[2028/29 From - Other reallocations]]","v":0},{"$f":"Dataset[[#This Row],[2029/30 From - Spending review Topic 1]]+Dataset[[#This Row],[2029/30 From - Spending review Topic 2]]+Dataset[[#This Row],[2029/30 From - Spending review Topic 3]]+Dataset[[#This Row],[2029/30 From - Spending review Topic 4]]+Dataset[[#This Row],[2029/30 From - Other reallocations]]","v":0},{"$f":"Dataset[[#This Row],[2027/28 To - Spending review Topic 1]]+Dataset[[#This Row],[2027/28 To - Spending review Topic 2]]+Dataset[[#This Row],[2027/28 To - Spending review Topic 3]]+Dataset[[#This Row],[2027/28 To - Spending review Topic 4]]+Dataset[[#This Row],[2027/28 To - Other reallocations]]","v":0},{"$f":"Dataset[[#This Row],[2028/29 To - Spending review Topic 1]]+Dataset[[#This Row],[2028/29 To - Spending review Topic 2]]+Dataset[[#This Row],[2028/29 To - Spending review Topic 3]]+Dataset[[#This Row],[2028/29 To - Spending review Topic 4]]+Dataset[[#This Row],[2028/29 To - Other reallocations]]","v":0},{"$f":"Dataset[[#This Row],[2029/30 To - Spending review Topic 1]]+Dataset[[#This Row],[2029/30 To - Spending review Topic 2]]+Dataset[[#This Row],[2029/30 To - Spending review Topic 3]]+Dataset[[#This Row],[2029/30 To - Spending review Topic 4]]+Dataset[[#This Row],[2029/30 To - Other reallocations]]","v":0},{"$f":"Dataset[[#This Row],[2027/28 Targeted savings]]+Dataset[[#This Row],[2027/28 From - Total]]","v":0},{"$f":"Dataset[[#This Row],[2028/29 Targeted savings]]+Dataset[[#This Row],[2028/29 From - Total]]","v":0},{"$f":"Dataset[[#This Row],[2029/30 Targeted savings]]+Dataset[[#This Row],[2029/30 From - Total]]","v":0},{"$f":"Dataset[[#This Row],[2026/27 Targeted savings]]","v":0},{"$f":"SUM(Dataset[[#This Row],[2027/28 Targeted savings]],Dataset[[#This Row],[2027/28 From - Total]],Dataset[[#This Row],[2027/28 To - Total]])","v":0},{"$f":"SUM(Dataset[[#This Row],[2028/29 Targeted savings]],Dataset[[#This Row],[2028/29 From - Total]],Dataset[[#This Row],[2028/29 To - Total]])","v":0},{"$f":"SUM(Dataset[[#This Row],[2029/30 Targeted savings]],Dataset[[#This Row],[2029/30 From - Total]],Dataset[[#This Row],[2029/30 To - Total]])","v":0},{"$f":"Dataset[[#This Row],[2026/27 Baseline]]+Dataset[[#This Row],[2026/27 Total change]]","v":112070},{"$f":"Dataset[[#This Row],[2027/28 Baseline]]+Dataset[[#This Row],[2027/28 Total change]]","v":116543},{"$f":"Dataset[[#This Row],[2028/29 Baseline]]+Dataset[[#This Row],[2028/29 Total change]]","v":120165},{"$f":"Dataset[[#This Row],[2029/30 Baseline]]+Dataset[[#This Row],[2029/30 Total change]]","v":123783}]
["NAT|Non-transfer","30|Other machinery and equipment","2027_28","MTEC2027",30,3,2,32937,417,"30","03","02","032937","000417","30|03|02|000417","02","03","12","57","61","02|03|12|57|61","National","Communications and Digital Technologies","Media and Content","Content Classification and Online Safety","Non-transfer","Capital","Payments for capital assets","Machinery and equipment","Other machinery and equipment","Other machinery and equipment","Economic development","Economic regulation and infrastructure","NAT",0,0,0,132,132,132,0,10,10,0,0,null,null,null,null,null,null,null,null,null,null,null,null,null,null,null,null,null,null,null,null,null,null,null,null,null,null,null,null,null,null,null,null,null,null,{"$f":"Dataset[[#This Row],[2027/28 From - Spending review Topic 1]]+Dataset[[#This Row],[2027/28 From - Spending review Topic 2]]+Dataset[[#This Row],[2027/28 From - Spending review Topic 3]]+Dataset[[#This Row],[2027/28 From - Spending review Topic 4]]+Dataset[[#This Row],[2027/28 From - Other reallocations]]","v":0},{"$f":"Dataset[[#This Row],[2028/29 From - Spending review Topic 1]]+Dataset[[#This Row],[2028/29 From - Spending review Topic 2]]+Dataset[[#This Row],[2028/29 From - Spending review Topic 3]]+Dataset[[#This Row],[2028/29 From - Spending review Topic 4]]+Dataset[[#This Row],[2028/29 From - Other reallocations]]","v":0},{"$f":"Dataset[[#This Row],[2029/30 From - Spending review Topic 1]]+Dataset[[#This Row],[2029/30 From - Spending review Topic 2]]+Dataset[[#This Row],[2029/30 From - Spending review Topic 3]]+Dataset[[#This Row],[2029/30 From - Spending review Topic 4]]+Dataset[[#This Row],[2029/30 From - Other reallocations]]","v":0},{"$f":"Dataset[[#This Row],[2027/28 To - Spending review Topic 1]]+Dataset[[#This Row],[2027/28 To - Spending review Topic 2]]+Dataset[[#This Row],[2027/28 To - Spending review Topic 3]]+Dataset[[#This Row],[2027/28 To - Spending review Topic 4]]+Dataset[[#This Row],[2027/28 To - Other reallocations]]","v":0},{"$f":"Dataset[[#This Row],[2028/29 To - Spending review Topic 1]]+Dataset[[#This Row],[2028/29 To - Spending review Topic 2]]+Dataset[[#This Row],[2028/29 To - Spending review Topic 3]]+Dataset[[#This Row],[2028/29 To - Spending review Topic 4]]+Dataset[[#This Row],[2028/29 To - Other reallocations]]","v":0},{"$f":"Dataset[[#This Row],[2029/30 To - Spending review Topic 1]]+Dataset[[#This Row],[2029/30 To - Spending review Topic 2]]+Dataset[[#This Row],[2029/30 To - Spending review Topic 3]]+Dataset[[#This Row],[2029/30 To - Spending review Topic 4]]+Dataset[[#This Row],[2029/30 To - Other reallocations]]","v":0},{"$f":"Dataset[[#This Row],[2027/28 Targeted savings]]+Dataset[[#This Row],[2027/28 From - Total]]","v":0},{"$f":"Dataset[[#This Row],[2028/29 Targeted savings]]+Dataset[[#This Row],[2028/29 From - Total]]","v":0},{"$f":"Dataset[[#This Row],[2029/30 Targeted savings]]+Dataset[[#This Row],[2029/30 From - Total]]","v":0},{"$f":"Dataset[[#This Row],[2026/27 Targeted savings]]","v":0},{"$f":"SUM(Dataset[[#This Row],[2027/28 Targeted savings]],Dataset[[#This Row],[2027/28 From - Total]],Dataset[[#This Row],[2027/28 To - Total]])","v":0},{"$f":"SUM(Dataset[[#This Row],[2028/29 Targeted savings]],Dataset[[#This Row],[2028/29 From - Total]],Dataset[[#This Row],[2028/29 To - Total]])","v":0},{"$f":"SUM(Dataset[[#This Row],[2029/30 Targeted savings]],Dataset[[#This Row],[2029/30 From - Total]],Dataset[[#This Row],[2029/30 To - Total]])","v":0},{"$f":"Dataset[[#This Row],[2026/27 Baseline]]+Dataset[[#This Row],[2026/27 Total change]]","v":10},{"$f":"Dataset[[#This Row],[2027/28 Baseline]]+Dataset[[#This Row],[2027/28 Total change]]","v":10},{"$f":"Dataset[[#This Row],[2028/29 Baseline]]+Dataset[[#This Row],[2028/29 Total change]]","v":0},{"$f":"Dataset[[#This Row],[2029/30 Baseline]]+Dataset[[#This Row],[2029/30 Total change]]","v":0}]
["NAT|Non-transfer","30|Salaries and wages","2027_28","MTEC2027",30,3,3,32938,418,"30","03","03","032938","000418","30|03|03|000418","01","01","01","01","01","01|01|01|01|01","National","Communications and Digital Technologies","Media and Content","Public and Community Media Services","Non-transfer","Current","Current payments","Compensation of employees","Salaries and wages","Salaries and wages","Economic development","Economic regulation and infrastructure","NAT",0,0,4715,5777,4977,4977,0,9141,13538,9928,10227,null,null,null,null,null,null,null,null,null,null,null,null,null,null,null,null,null,null,null,null,null,null,null,null,null,null,null,null,null,null,null,null,null,null,{"$f":"Dataset[[#This Row],[2027/28 From - Spending review Topic 1]]+Dataset[[#This Row],[2027/28 From - Spending review Topic 2]]+Dataset[[#This Row],[2027/28 From - Spending review Topic 3]]+Dataset[[#This Row],[2027/28 From - Spending review Topic 4]]+Dataset[[#This Row],[2027/28 From - Other reallocations]]","v":0},{"$f":"Dataset[[#This Row],[2028/29 From - Spending review Topic 1]]+Dataset[[#This Row],[2028/29 From - Spending review Topic 2]]+Dataset[[#This Row],[2028/29 From - Spending review Topic 3]]+Dataset[[#This Row],[2028/29 From - Spending review Topic 4]]+Dataset[[#This Row],[2028/29 From - Other reallocations]]","v":0},{"$f":"Dataset[[#This Row],[2029/30 From - Spending review Topic 1]]+Dataset[[#This Row],[2029/30 From - Spending review Topic 2]]+Dataset[[#This Row],[2029/30 From - Spending review Topic 3]]+Dataset[[#This Row],[2029/30 From - Spending review Topic 4]]+Dataset[[#This Row],[2029/30 From - Other reallocations]]","v":0},{"$f":"Dataset[[#This Row],[2027/28 To - Spending review Topic 1]]+Dataset[[#This Row],[2027/28 To - Spending review Topic 2]]+Dataset[[#This Row],[2027/28 To - Spending review Topic 3]]+Dataset[[#This Row],[2027/28 To - Spending review Topic 4]]+Dataset[[#This Row],[2027/28 To - Other reallocations]]","v":0},{"$f":"Dataset[[#This Row],[2028/29 To - Spending review Topic 1]]+Dataset[[#This Row],[2028/29 To - Spending review Topic 2]]+Dataset[[#This Row],[2028/29 To - Spending review Topic 3]]+Dataset[[#This Row],[2028/29 To - Spending review Topic 4]]+Dataset[[#This Row],[2028/29 To - Other reallocations]]","v":0},{"$f":"Dataset[[#This Row],[2029/30 To - Spending review Topic 1]]+Dataset[[#This Row],[2029/30 To - Spending review Topic 2]]+Dataset[[#This Row],[2029/30 To - Spending review Topic 3]]+Dataset[[#This Row],[2029/30 To - Spending review Topic 4]]+Dataset[[#This Row],[2029/30 To - Other reallocations]]","v":0},{"$f":"Dataset[[#This Row],[2027/28 Targeted savings]]+Dataset[[#This Row],[2027/28 From - Total]]","v":0},{"$f":"Dataset[[#This Row],[2028/29 Targeted savings]]+Dataset[[#This Row],[2028/29 From - Total]]","v":0},{"$f":"Dataset[[#This Row],[2029/30 Targeted savings]]+Dataset[[#This Row],[2029/30 From - Total]]","v":0},{"$f":"Dataset[[#This Row],[2026/27 Targeted savings]]","v":0},{"$f":"SUM(Dataset[[#This Row],[2027/28 Targeted savings]],Dataset[[#This Row],[2027/28 From - Total]],Dataset[[#This Row],[2027/28 To - Total]])","v":0},{"$f":"SUM(Dataset[[#This Row],[2028/29 Targeted savings]],Dataset[[#This Row],[2028/29 From - Total]],Dataset[[#This Row],[2028/29 To - Total]])","v":0},{"$f":"SUM(Dataset[[#This Row],[2029/30 Targeted savings]],Dataset[[#This Row],[2029/30 From - Total]],Dataset[[#This Row],[2029/30 To - Total]])","v":0},{"$f":"Dataset[[#This Row],[2026/27 Baseline]]+Dataset[[#This Row],[2026/27 Total change]]","v":9141},{"$f":"Dataset[[#This Row],[2027/28 Baseline]]+Dataset[[#This Row],[2027/28 Total change]]","v":13538},{"$f":"Dataset[[#This Row],[2028/29 Baseline]]+Dataset[[#This Row],[2028/29 Total change]]","v":9928},{"$f":"Dataset[[#This Row],[2029/30 Baseline]]+Dataset[[#This Row],[2029/30 Total change]]","v":10227}]
["NAT|Non-transfer","30|Social contributions","2027_28","MTEC2027",30,3,3,32939,419,"30","03","03","032939","000419","30|03|03|000419","01","01","01","02","02","01|01|01|02|02","National","Communications and Digital Technologies","Media and Content","Public and Community Media Services","Non-transfer","Current","Current payments","Compensation of employees","Social contributions","Social contributions","Economic development","Economic regulation and infrastructure","NAT",0,0,0,254,254,254,0,354,1329,1606,1654,null,null,null,null,null,null,null,null,null,null,null,null,null,null,null,null,null,null,null,null,null,null,null,null,null,null,null,null,null,null,null,null,null,null,{"$f":"Dataset[[#This Row],[2027/28 From - Spending review Topic 1]]+Dataset[[#This Row],[2027/28 From - Spending review Topic 2]]+Dataset[[#This Row],[2027/28 From - Spending review Topic 3]]+Dataset[[#This Row],[2027/28 From - Spending review Topic 4]]+Dataset[[#This Row],[2027/28 From - Other reallocations]]","v":0},{"$f":"Dataset[[#This Row],[2028/29 From - Spending review Topic 1]]+Dataset[[#This Row],[2028/29 From - Spending review Topic 2]]+Dataset[[#This Row],[2028/29 From - Spending review Topic 3]]+Dataset[[#This Row],[2028/29 From - Spending review Topic 4]]+Dataset[[#This Row],[2028/29 From - Other reallocations]]","v":0},{"$f":"Dataset[[#This Row],[2029/30 From - Spending review Topic 1]]+Dataset[[#This Row],[2029/30 From - Spending review Topic 2]]+Dataset[[#This Row],[2029/30 From - Spending review Topic 3]]+Dataset[[#This Row],[2029/30 From - Spending review Topic 4]]+Dataset[[#This Row],[2029/30 From - Other reallocations]]","v":0},{"$f":"Dataset[[#This Row],[2027/28 To - Spending review Topic 1]]+Dataset[[#This Row],[2027/28 To - Spending review Topic 2]]+Dataset[[#This Row],[2027/28 To - Spending review Topic 3]]+Dataset[[#This Row],[2027/28 To - Spending review Topic 4]]+Dataset[[#This Row],[2027/28 To - Other reallocations]]","v":0},{"$f":"Dataset[[#This Row],[2028/29 To - Spending review Topic 1]]+Dataset[[#This Row],[2028/29 To - Spending review Topic 2]]+Dataset[[#This Row],[2028/29 To - Spending review Topic 3]]+Dataset[[#This Row],[2028/29 To - Spending review Topic 4]]+Dataset[[#This Row],[2028/29 To - Other reallocations]]","v":0},{"$f":"Dataset[[#This Row],[2029/30 To - Spending review Topic 1]]+Dataset[[#This Row],[2029/30 To - Spending review Topic 2]]+Dataset[[#This Row],[2029/30 To - Spending review Topic 3]]+Dataset[[#This Row],[2029/30 To - Spending review Topic 4]]+Dataset[[#This Row],[2029/30 To - Other reallocations]]","v":0},{"$f":"Dataset[[#This Row],[2027/28 Targeted savings]]+Dataset[[#This Row],[2027/28 From - Total]]","v":0},{"$f":"Dataset[[#This Row],[2028/29 Targeted savings]]+Dataset[[#This Row],[2028/29 From - Total]]","v":0},{"$f":"Dataset[[#This Row],[2029/30 Targeted savings]]+Dataset[[#This Row],[2029/30 From - Total]]","v":0},{"$f":"Dataset[[#This Row],[2026/27 Targeted savings]]","v":0},{"$f":"SUM(Dataset[[#This Row],[2027/28 Targeted savings]],Dataset[[#This Row],[2027/28 From - Total]],Dataset[[#This Row],[2027/28 To - Total]])","v":0},{"$f":"SUM(Dataset[[#This Row],[2028/29 Targeted savings]],Dataset[[#This Row],[2028/29 From - Total]],Dataset[[#This Row],[2028/29 To - Total]])","v":0},{"$f":"SUM(Dataset[[#This Row],[2029/30 Targeted savings]],Dataset[[#This Row],[2029/30 From - Total]],Dataset[[#This Row],[2029/30 To - Total]])","v":0},{"$f":"Dataset[[#This Row],[2026/27 Baseline]]+Dataset[[#This Row],[2026/27 Total change]]","v":354},{"$f":"Dataset[[#This Row],[2027/28 Baseline]]+Dataset[[#This Row],[2027/28 Total change]]","v":1329},{"$f":"Dataset[[#This Row],[2028/29 Baseline]]+Dataset[[#This Row],[2028/29 Total change]]","v":1606},{"$f":"Dataset[[#This Row],[2029/30 Baseline]]+Dataset[[#This Row],[2029/30 Total change]]","v":1654}]
["NAT|Non-transfer","30|Administrative fees","2027_28","MTEC2027",30,3,3,32940,420,"30","03","03","032940","000420","30|03|03|000420","01","01","02","03","03","01|01|02|03|03","National","Communications and Digital Technologies","Media and Content","Public and Community Media Services","Non-transfer","Current","Current payments","Goods and services","Administrative fees","Administrative fees","Economic development","Economic regulation and infrastructure","NAT",0,0,3,5,5,5,0,35,36,0,0,null,null,null,null,null,null,null,null,null,null,null,null,null,null,null,null,null,null,null,null,null,null,null,null,null,null,null,null,null,null,null,null,null,null,{"$f":"Dataset[[#This Row],[2027/28 From - Spending review Topic 1]]+Dataset[[#This Row],[2027/28 From - Spending review Topic 2]]+Dataset[[#This Row],[2027/28 From - Spending review Topic 3]]+Dataset[[#This Row],[2027/28 From - Spending review Topic 4]]+Dataset[[#This Row],[2027/28 From - Other reallocations]]","v":0},{"$f":"Dataset[[#This Row],[2028/29 From - Spending review Topic 1]]+Dataset[[#This Row],[2028/29 From - Spending review Topic 2]]+Dataset[[#This Row],[2028/29 From - Spending review Topic 3]]+Dataset[[#This Row],[2028/29 From - Spending review Topic 4]]+Dataset[[#This Row],[2028/29 From - Other reallocations]]","v":0},{"$f":"Dataset[[#This Row],[2029/30 From - Spending review Topic 1]]+Dataset[[#This Row],[2029/30 From - Spending review Topic 2]]+Dataset[[#This Row],[2029/30 From - Spending review Topic 3]]+Dataset[[#This Row],[2029/30 From - Spending review Topic 4]]+Dataset[[#This Row],[2029/30 From - Other reallocations]]","v":0},{"$f":"Dataset[[#This Row],[2027/28 To - Spending review Topic 1]]+Dataset[[#This Row],[2027/28 To - Spending review Topic 2]]+Dataset[[#This Row],[2027/28 To - Spending review Topic 3]]+Dataset[[#This Row],[2027/28 To - Spending review Topic 4]]+Dataset[[#This Row],[2027/28 To - Other reallocations]]","v":0},{"$f":"Dataset[[#This Row],[2028/29 To - Spending review Topic 1]]+Dataset[[#This Row],[2028/29 To - Spending review Topic 2]]+Dataset[[#This Row],[2028/29 To - Spending review Topic 3]]+Dataset[[#This Row],[2028/29 To - Spending review Topic 4]]+Dataset[[#This Row],[2028/29 To - Other reallocations]]","v":0},{"$f":"Dataset[[#This Row],[2029/30 To - Spending review Topic 1]]+Dataset[[#This Row],[2029/30 To - Spending review Topic 2]]+Dataset[[#This Row],[2029/30 To - Spending review Topic 3]]+Dataset[[#This Row],[2029/30 To - Spending review Topic 4]]+Dataset[[#This Row],[2029/30 To - Other reallocations]]","v":0},{"$f":"Dataset[[#This Row],[2027/28 Targeted savings]]+Dataset[[#This Row],[2027/28 From - Total]]","v":0},{"$f":"Dataset[[#This Row],[2028/29 Targeted savings]]+Dataset[[#This Row],[2028/29 From - Total]]","v":0},{"$f":"Dataset[[#This Row],[2029/30 Targeted savings]]+Dataset[[#This Row],[2029/30 From - Total]]","v":0},{"$f":"Dataset[[#This Row],[2026/27 Targeted savings]]","v":0},{"$f":"SUM(Dataset[[#This Row],[2027/28 Targeted savings]],Dataset[[#This Row],[2027/28 From - Total]],Dataset[[#This Row],[2027/28 To - Total]])","v":0},{"$f":"SUM(Dataset[[#This Row],[2028/29 Targeted savings]],Dataset[[#This Row],[2028/29 From - Total]],Dataset[[#This Row],[2028/29 To - Total]])","v":0},{"$f":"SUM(Dataset[[#This Row],[2029/30 Targeted savings]],Dataset[[#This Row],[2029/30 From - Total]],Dataset[[#This Row],[2029/30 To - Total]])","v":0},{"$f":"Dataset[[#This Row],[2026/27 Baseline]]+Dataset[[#This Row],[2026/27 Total change]]","v":35},{"$f":"Dataset[[#This Row],[2027/28 Baseline]]+Dataset[[#This Row],[2027/28 Total change]]","v":36},{"$f":"Dataset[[#This Row],[2028/29 Baseline]]+Dataset[[#This Row],[2028/29 Total change]]","v":0},{"$f":"Dataset[[#This Row],[2029/30 Baseline]]+Dataset[[#This Row],[2029/30 Total change]]","v":0}]
["NAT|Non-transfer","30|Advertising","2027_28","MTEC2027",30,3,3,32941,421,"30","03","03","032941","000421","30|03|03|000421","01","01","02","04","04","01|01|02|04|04","National","Communications and Digital Technologies","Media and Content","Public and Community Media Services","Non-transfer","Current","Current payments","Goods and services","Advertising","Advertising","Economic development","Economic regulation and infrastructure","NAT",0,3,0,0,0,0,0,0,0,0,0,null,null,null,null,null,null,null,null,null,null,null,null,null,null,null,null,null,null,null,null,null,null,null,null,null,null,null,null,null,null,null,null,null,null,{"$f":"Dataset[[#This Row],[2027/28 From - Spending review Topic 1]]+Dataset[[#This Row],[2027/28 From - Spending review Topic 2]]+Dataset[[#This Row],[2027/28 From - Spending review Topic 3]]+Dataset[[#This Row],[2027/28 From - Spending review Topic 4]]+Dataset[[#This Row],[2027/28 From - Other reallocations]]","v":0},{"$f":"Dataset[[#This Row],[2028/29 From - Spending review Topic 1]]+Dataset[[#This Row],[2028/29 From - Spending review Topic 2]]+Dataset[[#This Row],[2028/29 From - Spending review Topic 3]]+Dataset[[#This Row],[2028/29 From - Spending review Topic 4]]+Dataset[[#This Row],[2028/29 From - Other reallocations]]","v":0},{"$f":"Dataset[[#This Row],[2029/30 From - Spending review Topic 1]]+Dataset[[#This Row],[2029/30 From - Spending review Topic 2]]+Dataset[[#This Row],[2029/30 From - Spending review Topic 3]]+Dataset[[#This Row],[2029/30 From - Spending review Topic 4]]+Dataset[[#This Row],[2029/30 From - Other reallocations]]","v":0},{"$f":"Dataset[[#This Row],[2027/28 To - Spending review Topic 1]]+Dataset[[#This Row],[2027/28 To - Spending review Topic 2]]+Dataset[[#This Row],[2027/28 To - Spending review Topic 3]]+Dataset[[#This Row],[2027/28 To - Spending review Topic 4]]+Dataset[[#This Row],[2027/28 To - Other reallocations]]","v":0},{"$f":"Dataset[[#This Row],[2028/29 To - Spending review Topic 1]]+Dataset[[#This Row],[2028/29 To - Spending review Topic 2]]+Dataset[[#This Row],[2028/29 To - Spending review Topic 3]]+Dataset[[#This Row],[2028/29 To - Spending review Topic 4]]+Dataset[[#This Row],[2028/29 To - Other reallocations]]","v":0},{"$f":"Dataset[[#This Row],[2029/30 To - Spending review Topic 1]]+Dataset[[#This Row],[2029/30 To - Spending review Topic 2]]+Dataset[[#This Row],[2029/30 To - Spending review Topic 3]]+Dataset[[#This Row],[2029/30 To - Spending review Topic 4]]+Dataset[[#This Row],[2029/30 To - Other reallocations]]","v":0},{"$f":"Dataset[[#This Row],[2027/28 Targeted savings]]+Dataset[[#This Row],[2027/28 From - Total]]","v":0},{"$f":"Dataset[[#This Row],[2028/29 Targeted savings]]+Dataset[[#This Row],[2028/29 From - Total]]","v":0},{"$f":"Dataset[[#This Row],[2029/30 Targeted savings]]+Dataset[[#This Row],[2029/30 From - Total]]","v":0},{"$f":"Dataset[[#This Row],[2026/27 Targeted savings]]","v":0},{"$f":"SUM(Dataset[[#This Row],[2027/28 Targeted savings]],Dataset[[#This Row],[2027/28 From - Total]],Dataset[[#This Row],[2027/28 To - Total]])","v":0},{"$f":"SUM(Dataset[[#This Row],[2028/29 Targeted savings]],Dataset[[#This Row],[2028/29 From - Total]],Dataset[[#This Row],[2028/29 To - Total]])","v":0},{"$f":"SUM(Dataset[[#This Row],[2029/30 Targeted savings]],Dataset[[#This Row],[2029/30 From - Total]],Dataset[[#This Row],[2029/30 To - Total]])","v":0},{"$f":"Dataset[[#This Row],[2026/27 Baseline]]+Dataset[[#This Row],[2026/27 Total change]]","v":0},{"$f":"Dataset[[#This Row],[2027/28 Baseline]]+Dataset[[#This Row],[2027/28 Total change]]","v":0},{"$f":"Dataset[[#This Row],[2028/29 Baseline]]+Dataset[[#This Row],[2028/29 Total change]]","v":0},{"$f":"Dataset[[#This Row],[2029/30 Baseline]]+Dataset[[#This Row],[2029/30 Total change]]","v":0}]
["NAT|Non-transfer","30|Bursaries: Employees","2027_28","MTEC2027",30,3,3,32942,422,"30","03","03","032942","000422","30|03|03|000422","01","01","02","07","07","01|01|02|07|07","National","Communications and Digital Technologies","Media and Content","Public and Community Media Services","Non-transfer","Current","Current payments","Goods and services","Bursaries: Employees","Bursaries: Employees","Economic development","Economic regulation and infrastructure","NAT",0,0,0,20,20,20,0,0,0,0,0,null,null,null,null,null,null,null,null,null,null,null,null,null,null,null,null,null,null,null,null,null,null,null,null,null,null,null,null,null,null,null,null,null,null,{"$f":"Dataset[[#This Row],[2027/28 From - Spending review Topic 1]]+Dataset[[#This Row],[2027/28 From - Spending review Topic 2]]+Dataset[[#This Row],[2027/28 From - Spending review Topic 3]]+Dataset[[#This Row],[2027/28 From - Spending review Topic 4]]+Dataset[[#This Row],[2027/28 From - Other reallocations]]","v":0},{"$f":"Dataset[[#This Row],[2028/29 From - Spending review Topic 1]]+Dataset[[#This Row],[2028/29 From - Spending review Topic 2]]+Dataset[[#This Row],[2028/29 From - Spending review Topic 3]]+Dataset[[#This Row],[2028/29 From - Spending review Topic 4]]+Dataset[[#This Row],[2028/29 From - Other reallocations]]","v":0},{"$f":"Dataset[[#This Row],[2029/30 From - Spending review Topic 1]]+Dataset[[#This Row],[2029/30 From - Spending review Topic 2]]+Dataset[[#This Row],[2029/30 From - Spending review Topic 3]]+Dataset[[#This Row],[2029/30 From - Spending review Topic 4]]+Dataset[[#This Row],[2029/30 From - Other reallocations]]","v":0},{"$f":"Dataset[[#This Row],[2027/28 To - Spending review Topic 1]]+Dataset[[#This Row],[2027/28 To - Spending review Topic 2]]+Dataset[[#This Row],[2027/28 To - Spending review Topic 3]]+Dataset[[#This Row],[2027/28 To - Spending review Topic 4]]+Dataset[[#This Row],[2027/28 To - Other reallocations]]","v":0},{"$f":"Dataset[[#This Row],[2028/29 To - Spending review Topic 1]]+Dataset[[#This Row],[2028/29 To - Spending review Topic 2]]+Dataset[[#This Row],[2028/29 To - Spending review Topic 3]]+Dataset[[#This Row],[2028/29 To - Spending review Topic 4]]+Dataset[[#This Row],[2028/29 To - Other reallocations]]","v":0},{"$f":"Dataset[[#This Row],[2029/30 To - Spending review Topic 1]]+Dataset[[#This Row],[2029/30 To - Spending review Topic 2]]+Dataset[[#This Row],[2029/30 To - Spending review Topic 3]]+Dataset[[#This Row],[2029/30 To - Spending review Topic 4]]+Dataset[[#This Row],[2029/30 To - Other reallocations]]","v":0},{"$f":"Dataset[[#This Row],[2027/28 Targeted savings]]+Dataset[[#This Row],[2027/28 From - Total]]","v":0},{"$f":"Dataset[[#This Row],[2028/29 Targeted savings]]+Dataset[[#This Row],[2028/29 From - Total]]","v":0},{"$f":"Dataset[[#This Row],[2029/30 Targeted savings]]+Dataset[[#This Row],[2029/30 From - Total]]","v":0},{"$f":"Dataset[[#This Row],[2026/27 Targeted savings]]","v":0},{"$f":"SUM(Dataset[[#This Row],[2027/28 Targeted savings]],Dataset[[#This Row],[2027/28 From - Total]],Dataset[[#This Row],[2027/28 To - Total]])","v":0},{"$f":"SUM(Dataset[[#This Row],[2028/29 Targeted savings]],Dataset[[#This Row],[2028/29 From - Total]],Dataset[[#This Row],[2028/29 To - Total]])","v":0},{"$f":"SUM(Dataset[[#This Row],[2029/30 Targeted savings]],Dataset[[#This Row],[2029/30 From - Total]],Dataset[[#This Row],[2029/30 To - Total]])","v":0},{"$f":"Dataset[[#This Row],[2026/27 Baseline]]+Dataset[[#This Row],[2026/27 Total change]]","v":0},{"$f":"Dataset[[#This Row],[2027/28 Baseline]]+Dataset[[#This Row],[2027/28 Total change]]","v":0},{"$f":"Dataset[[#This Row],[2028/29 Baseline]]+Dataset[[#This Row],[2028/29 Total change]]","v":0},{"$f":"Dataset[[#This Row],[2029/30 Baseline]]+Dataset[[#This Row],[2029/30 Total change]]","v":0}]
["NAT|Non-transfer","30|Catering: Departmental activities","2027_28","MTEC2027",30,3,3,32943,423,"30","03","03","032943","000423","30|03|03|000423","01","01","02","08","08","01|01|02|08|08","National","Communications and Digital Technologies","Media and Content","Public and Community Media Services","Non-transfer","Current","Current payments","Goods and services","Catering: Departmental activities","Catering: Departmental activities","Economic development","Economic regulation and infrastructure","NAT",0,0,0,0,3,3,0,0,0,0,0,null,null,null,null,null,null,null,null,null,null,null,null,null,null,null,null,null,null,null,null,null,null,null,null,null,null,null,null,null,null,null,null,null,null,{"$f":"Dataset[[#This Row],[2027/28 From - Spending review Topic 1]]+Dataset[[#This Row],[2027/28 From - Spending review Topic 2]]+Dataset[[#This Row],[2027/28 From - Spending review Topic 3]]+Dataset[[#This Row],[2027/28 From - Spending review Topic 4]]+Dataset[[#This Row],[2027/28 From - Other reallocations]]","v":0},{"$f":"Dataset[[#This Row],[2028/29 From - Spending review Topic 1]]+Dataset[[#This Row],[2028/29 From - Spending review Topic 2]]+Dataset[[#This Row],[2028/29 From - Spending review Topic 3]]+Dataset[[#This Row],[2028/29 From - Spending review Topic 4]]+Dataset[[#This Row],[2028/29 From - Other reallocations]]","v":0},{"$f":"Dataset[[#This Row],[2029/30 From - Spending review Topic 1]]+Dataset[[#This Row],[2029/30 From - Spending review Topic 2]]+Dataset[[#This Row],[2029/30 From - Spending review Topic 3]]+Dataset[[#This Row],[2029/30 From - Spending review Topic 4]]+Dataset[[#This Row],[2029/30 From - Other reallocations]]","v":0},{"$f":"Dataset[[#This Row],[2027/28 To - Spending review Topic 1]]+Dataset[[#This Row],[2027/28 To - Spending review Topic 2]]+Dataset[[#This Row],[2027/28 To - Spending review Topic 3]]+Dataset[[#This Row],[2027/28 To - Spending review Topic 4]]+Dataset[[#This Row],[2027/28 To - Other reallocations]]","v":0},{"$f":"Dataset[[#This Row],[2028/29 To - Spending review Topic 1]]+Dataset[[#This Row],[2028/29 To - Spending review Topic 2]]+Dataset[[#This Row],[2028/29 To - Spending review Topic 3]]+Dataset[[#This Row],[2028/29 To - Spending review Topic 4]]+Dataset[[#This Row],[2028/29 To - Other reallocations]]","v":0},{"$f":"Dataset[[#This Row],[2029/30 To - Spending review Topic 1]]+Dataset[[#This Row],[2029/30 To - Spending review Topic 2]]+Dataset[[#This Row],[2029/30 To - Spending review Topic 3]]+Dataset[[#This Row],[2029/30 To - Spending review Topic 4]]+Dataset[[#This Row],[2029/30 To - Other reallocations]]","v":0},{"$f":"Dataset[[#This Row],[2027/28 Targeted savings]]+Dataset[[#This Row],[2027/28 From - Total]]","v":0},{"$f":"Dataset[[#This Row],[2028/29 Targeted savings]]+Dataset[[#This Row],[2028/29 From - Total]]","v":0},{"$f":"Dataset[[#This Row],[2029/30 Targeted savings]]+Dataset[[#This Row],[2029/30 From - Total]]","v":0},{"$f":"Dataset[[#This Row],[2026/27 Targeted savings]]","v":0},{"$f":"SUM(Dataset[[#This Row],[2027/28 Targeted savings]],Dataset[[#This Row],[2027/28 From - Total]],Dataset[[#This Row],[2027/28 To - Total]])","v":0},{"$f":"SUM(Dataset[[#This Row],[2028/29 Targeted savings]],Dataset[[#This Row],[2028/29 From - Total]],Dataset[[#This Row],[2028/29 To - Total]])","v":0},{"$f":"SUM(Dataset[[#This Row],[2029/30 Targeted savings]],Dataset[[#This Row],[2029/30 From - Total]],Dataset[[#This Row],[2029/30 To - Total]])","v":0},{"$f":"Dataset[[#This Row],[2026/27 Baseline]]+Dataset[[#This Row],[2026/27 Total change]]","v":0},{"$f":"Dataset[[#This Row],[2027/28 Baseline]]+Dataset[[#This Row],[2027/28 Total change]]","v":0},{"$f":"Dataset[[#This Row],[2028/29 Baseline]]+Dataset[[#This Row],[2028/29 Total change]]","v":0},{"$f":"Dataset[[#This Row],[2029/30 Baseline]]+Dataset[[#This Row],[2029/30 Total change]]","v":0}]
["NAT|Non-transfer","30|Communication (G&S)","2027_28","MTEC2027",30,3,3,32944,424,"30","03","03","032944","000424","30|03|03|000424","01","01","02","09","09","01|01|02|09|09","National","Communications and Digital Technologies","Media and Content","Public and Community Media Services","Non-transfer","Current","Current payments","Goods and services","Communication (G&S)","Communication (G&S)","Economic development","Economic regulation and infrastructure","NAT",0,9,4,0,0,0,0,68,73,55,57,null,null,null,null,null,null,null,null,null,null,null,null,null,null,null,null,null,null,null,null,null,null,null,null,null,null,null,null,null,null,null,null,null,null,{"$f":"Dataset[[#This Row],[2027/28 From - Spending review Topic 1]]+Dataset[[#This Row],[2027/28 From - Spending review Topic 2]]+Dataset[[#This Row],[2027/28 From - Spending review Topic 3]]+Dataset[[#This Row],[2027/28 From - Spending review Topic 4]]+Dataset[[#This Row],[2027/28 From - Other reallocations]]","v":0},{"$f":"Dataset[[#This Row],[2028/29 From - Spending review Topic 1]]+Dataset[[#This Row],[2028/29 From - Spending review Topic 2]]+Dataset[[#This Row],[2028/29 From - Spending review Topic 3]]+Dataset[[#This Row],[2028/29 From - Spending review Topic 4]]+Dataset[[#This Row],[2028/29 From - Other reallocations]]","v":0},{"$f":"Dataset[[#This Row],[2029/30 From - Spending review Topic 1]]+Dataset[[#This Row],[2029/30 From - Spending review Topic 2]]+Dataset[[#This Row],[2029/30 From - Spending review Topic 3]]+Dataset[[#This Row],[2029/30 From - Spending review Topic 4]]+Dataset[[#This Row],[2029/30 From - Other reallocations]]","v":0},{"$f":"Dataset[[#This Row],[2027/28 To - Spending review Topic 1]]+Dataset[[#This Row],[2027/28 To - Spending review Topic 2]]+Dataset[[#This Row],[2027/28 To - Spending review Topic 3]]+Dataset[[#This Row],[2027/28 To - Spending review Topic 4]]+Dataset[[#This Row],[2027/28 To - Other reallocations]]","v":0},{"$f":"Dataset[[#This Row],[2028/29 To - Spending review Topic 1]]+Dataset[[#This Row],[2028/29 To - Spending review Topic 2]]+Dataset[[#This Row],[2028/29 To - Spending review Topic 3]]+Dataset[[#This Row],[2028/29 To - Spending review Topic 4]]+Dataset[[#This Row],[2028/29 To - Other reallocations]]","v":0},{"$f":"Dataset[[#This Row],[2029/30 To - Spending review Topic 1]]+Dataset[[#This Row],[2029/30 To - Spending review Topic 2]]+Dataset[[#This Row],[2029/30 To - Spending review Topic 3]]+Dataset[[#This Row],[2029/30 To - Spending review Topic 4]]+Dataset[[#This Row],[2029/30 To - Other reallocations]]","v":0},{"$f":"Dataset[[#This Row],[2027/28 Targeted savings]]+Dataset[[#This Row],[2027/28 From - Total]]","v":0},{"$f":"Dataset[[#This Row],[2028/29 Targeted savings]]+Dataset[[#This Row],[2028/29 From - Total]]","v":0},{"$f":"Dataset[[#This Row],[2029/30 Targeted savings]]+Dataset[[#This Row],[2029/30 From - Total]]","v":0},{"$f":"Dataset[[#This Row],[2026/27 Targeted savings]]","v":0},{"$f":"SUM(Dataset[[#This Row],[2027/28 Targeted savings]],Dataset[[#This Row],[2027/28 From - Total]],Dataset[[#This Row],[2027/28 To - Total]])","v":0},{"$f":"SUM(Dataset[[#This Row],[2028/29 Targeted savings]],Dataset[[#This Row],[2028/29 From - Total]],Dataset[[#This Row],[2028/29 To - Total]])","v":0},{"$f":"SUM(Dataset[[#This Row],[2029/30 Targeted savings]],Dataset[[#This Row],[2029/30 From - Total]],Dataset[[#This Row],[2029/30 To - Total]])","v":0},{"$f":"Dataset[[#This Row],[2026/27 Baseline]]+Dataset[[#This Row],[2026/27 Total change]]","v":68},{"$f":"Dataset[[#This Row],[2027/28 Baseline]]+Dataset[[#This Row],[2027/28 Total change]]","v":73},{"$f":"Dataset[[#This Row],[2028/29 Baseline]]+Dataset[[#This Row],[2028/29 Total change]]","v":55},{"$f":"Dataset[[#This Row],[2029/30 Baseline]]+Dataset[[#This Row],[2029/30 Total change]]","v":57}]
["NAT|Non-transfer","30|Consultants: Business and advisory services","2027_28","MTEC2027",30,3,3,32945,425,"30","03","03","032945","000425","30|03|03|000425","01","01","02","11","11","01|01|02|11|11","National","Communications and Digital Technologies","Media and Content","Public and Community Media Services","Non-transfer","Current","Current payments","Goods and services","Consultants: Business and advisory services","Consultants: Business and advisory services","Economic development","Economic regulation and infrastructure","NAT",0,20,0,116,116,116,0,4500,0,0,0,null,null,null,null,null,null,null,null,null,null,null,null,null,null,null,null,null,null,null,null,null,null,null,null,null,null,null,null,null,null,null,null,null,null,{"$f":"Dataset[[#This Row],[2027/28 From - Spending review Topic 1]]+Dataset[[#This Row],[2027/28 From - Spending review Topic 2]]+Dataset[[#This Row],[2027/28 From - Spending review Topic 3]]+Dataset[[#This Row],[2027/28 From - Spending review Topic 4]]+Dataset[[#This Row],[2027/28 From - Other reallocations]]","v":0},{"$f":"Dataset[[#This Row],[2028/29 From - Spending review Topic 1]]+Dataset[[#This Row],[2028/29 From - Spending review Topic 2]]+Dataset[[#This Row],[2028/29 From - Spending review Topic 3]]+Dataset[[#This Row],[2028/29 From - Spending review Topic 4]]+Dataset[[#This Row],[2028/29 From - Other reallocations]]","v":0},{"$f":"Dataset[[#This Row],[2029/30 From - Spending review Topic 1]]+Dataset[[#This Row],[2029/30 From - Spending review Topic 2]]+Dataset[[#This Row],[2029/30 From - Spending review Topic 3]]+Dataset[[#This Row],[2029/30 From - Spending review Topic 4]]+Dataset[[#This Row],[2029/30 From - Other reallocations]]","v":0},{"$f":"Dataset[[#This Row],[2027/28 To - Spending review Topic 1]]+Dataset[[#This Row],[2027/28 To - Spending review Topic 2]]+Dataset[[#This Row],[2027/28 To - Spending review Topic 3]]+Dataset[[#This Row],[2027/28 To - Spending review Topic 4]]+Dataset[[#This Row],[2027/28 To - Other reallocations]]","v":0},{"$f":"Dataset[[#This Row],[2028/29 To - Spending review Topic 1]]+Dataset[[#This Row],[2028/29 To - Spending review Topic 2]]+Dataset[[#This Row],[2028/29 To - Spending review Topic 3]]+Dataset[[#This Row],[2028/29 To - Spending review Topic 4]]+Dataset[[#This Row],[2028/29 To - Other reallocations]]","v":0},{"$f":"Dataset[[#This Row],[2029/30 To - Spending review Topic 1]]+Dataset[[#This Row],[2029/30 To - Spending review Topic 2]]+Dataset[[#This Row],[2029/30 To - Spending review Topic 3]]+Dataset[[#This Row],[2029/30 To - Spending review Topic 4]]+Dataset[[#This Row],[2029/30 To - Other reallocations]]","v":0},{"$f":"Dataset[[#This Row],[2027/28 Targeted savings]]+Dataset[[#This Row],[2027/28 From - Total]]","v":0},{"$f":"Dataset[[#This Row],[2028/29 Targeted savings]]+Dataset[[#This Row],[2028/29 From - Total]]","v":0},{"$f":"Dataset[[#This Row],[2029/30 Targeted savings]]+Dataset[[#This Row],[2029/30 From - Total]]","v":0},{"$f":"Dataset[[#This Row],[2026/27 Targeted savings]]","v":0},{"$f":"SUM(Dataset[[#This Row],[2027/28 Targeted savings]],Dataset[[#This Row],[2027/28 From - Total]],Dataset[[#This Row],[2027/28 To - Total]])","v":0},{"$f":"SUM(Dataset[[#This Row],[2028/29 Targeted savings]],Dataset[[#This Row],[2028/29 From - Total]],Dataset[[#This Row],[2028/29 To - Total]])","v":0},{"$f":"SUM(Dataset[[#This Row],[2029/30 Targeted savings]],Dataset[[#This Row],[2029/30 From - Total]],Dataset[[#This Row],[2029/30 To - Total]])","v":0},{"$f":"Dataset[[#This Row],[2026/27 Baseline]]+Dataset[[#This Row],[2026/27 Total change]]","v":4500},{"$f":"Dataset[[#This Row],[2027/28 Baseline]]+Dataset[[#This Row],[2027/28 Total change]]","v":0},{"$f":"Dataset[[#This Row],[2028/29 Baseline]]+Dataset[[#This Row],[2028/29 Total change]]","v":0},{"$f":"Dataset[[#This Row],[2029/30 Baseline]]+Dataset[[#This Row],[2029/30 Total change]]","v":0}]
["NAT|Non-transfer","30|Contractors","2027_28","MTEC2027",30,3,3,32946,426,"30","03","03","032946","000426","30|03|03|000426","01","01","02","16","16","01|01|02|16|16","National","Communications and Digital Technologies","Media and Content","Public and Community Media Services","Non-transfer","Current","Current payments","Goods and services","Contractors","Contractors","Economic development","Economic regulation and infrastructure","NAT",0,0,10,0,0,0,0,0,0,0,0,null,null,null,null,null,null,null,null,null,null,null,null,null,null,null,null,null,null,null,null,null,null,null,null,null,null,null,null,null,null,null,null,null,null,{"$f":"Dataset[[#This Row],[2027/28 From - Spending review Topic 1]]+Dataset[[#This Row],[2027/28 From - Spending review Topic 2]]+Dataset[[#This Row],[2027/28 From - Spending review Topic 3]]+Dataset[[#This Row],[2027/28 From - Spending review Topic 4]]+Dataset[[#This Row],[2027/28 From - Other reallocations]]","v":0},{"$f":"Dataset[[#This Row],[2028/29 From - Spending review Topic 1]]+Dataset[[#This Row],[2028/29 From - Spending review Topic 2]]+Dataset[[#This Row],[2028/29 From - Spending review Topic 3]]+Dataset[[#This Row],[2028/29 From - Spending review Topic 4]]+Dataset[[#This Row],[2028/29 From - Other reallocations]]","v":0},{"$f":"Dataset[[#This Row],[2029/30 From - Spending review Topic 1]]+Dataset[[#This Row],[2029/30 From - Spending review Topic 2]]+Dataset[[#This Row],[2029/30 From - Spending review Topic 3]]+Dataset[[#This Row],[2029/30 From - Spending review Topic 4]]+Dataset[[#This Row],[2029/30 From - Other reallocations]]","v":0},{"$f":"Dataset[[#This Row],[2027/28 To - Spending review Topic 1]]+Dataset[[#This Row],[2027/28 To - Spending review Topic 2]]+Dataset[[#This Row],[2027/28 To - Spending review Topic 3]]+Dataset[[#This Row],[2027/28 To - Spending review Topic 4]]+Dataset[[#This Row],[2027/28 To - Other reallocations]]","v":0},{"$f":"Dataset[[#This Row],[2028/29 To - Spending review Topic 1]]+Dataset[[#This Row],[2028/29 To - Spending review Topic 2]]+Dataset[[#This Row],[2028/29 To - Spending review Topic 3]]+Dataset[[#This Row],[2028/29 To - Spending review Topic 4]]+Dataset[[#This Row],[2028/29 To - Other reallocations]]","v":0},{"$f":"Dataset[[#This Row],[2029/30 To - Spending review Topic 1]]+Dataset[[#This Row],[2029/30 To - Spending review Topic 2]]+Dataset[[#This Row],[2029/30 To - Spending review Topic 3]]+Dataset[[#This Row],[2029/30 To - Spending review Topic 4]]+Dataset[[#This Row],[2029/30 To - Other reallocations]]","v":0},{"$f":"Dataset[[#This Row],[2027/28 Targeted savings]]+Dataset[[#This Row],[2027/28 From - Total]]","v":0},{"$f":"Dataset[[#This Row],[2028/29 Targeted savings]]+Dataset[[#This Row],[2028/29 From - Total]]","v":0},{"$f":"Dataset[[#This Row],[2029/30 Targeted savings]]+Dataset[[#This Row],[2029/30 From - Total]]","v":0},{"$f":"Dataset[[#This Row],[2026/27 Targeted savings]]","v":0},{"$f":"SUM(Dataset[[#This Row],[2027/28 Targeted savings]],Dataset[[#This Row],[2027/28 From - Total]],Dataset[[#This Row],[2027/28 To - Total]])","v":0},{"$f":"SUM(Dataset[[#This Row],[2028/29 Targeted savings]],Dataset[[#This Row],[2028/29 From - Total]],Dataset[[#This Row],[2028/29 To - Total]])","v":0},{"$f":"SUM(Dataset[[#This Row],[2029/30 Targeted savings]],Dataset[[#This Row],[2029/30 From - Total]],Dataset[[#This Row],[2029/30 To - Total]])","v":0},{"$f":"Dataset[[#This Row],[2026/27 Baseline]]+Dataset[[#This Row],[2026/27 Total change]]","v":0},{"$f":"Dataset[[#This Row],[2027/28 Baseline]]+Dataset[[#This Row],[2027/28 Total change]]","v":0},{"$f":"Dataset[[#This Row],[2028/29 Baseline]]+Dataset[[#This Row],[2028/29 Total change]]","v":0},{"$f":"Dataset[[#This Row],[2029/30 Baseline]]+Dataset[[#This Row],[2029/30 Total change]]","v":0}]
["NAT|Non-transfer","30|Agency and support/outsourced services","2027_28","MTEC2027",30,3,3,32947,427,"30","03","03","032947","000427","30|03|03|000427","01","01","02","17","17","01|01|02|17|17","National","Communications and Digital Technologies","Media and Content","Public and Community Media Services","Non-transfer","Current","Current payments","Goods and services","Agency and support/outsourced services","Agency and support/outsourced services","Economic development","Economic regulation and infrastructure","NAT",0,0,0,2,2,2,0,0,0,0,0,null,null,null,null,null,null,null,null,null,null,null,null,null,null,null,null,null,null,null,null,null,null,null,null,null,null,null,null,null,null,null,null,null,null,{"$f":"Dataset[[#This Row],[2027/28 From - Spending review Topic 1]]+Dataset[[#This Row],[2027/28 From - Spending review Topic 2]]+Dataset[[#This Row],[2027/28 From - Spending review Topic 3]]+Dataset[[#This Row],[2027/28 From - Spending review Topic 4]]+Dataset[[#This Row],[2027/28 From - Other reallocations]]","v":0},{"$f":"Dataset[[#This Row],[2028/29 From - Spending review Topic 1]]+Dataset[[#This Row],[2028/29 From - Spending review Topic 2]]+Dataset[[#This Row],[2028/29 From - Spending review Topic 3]]+Dataset[[#This Row],[2028/29 From - Spending review Topic 4]]+Dataset[[#This Row],[2028/29 From - Other reallocations]]","v":0},{"$f":"Dataset[[#This Row],[2029/30 From - Spending review Topic 1]]+Dataset[[#This Row],[2029/30 From - Spending review Topic 2]]+Dataset[[#This Row],[2029/30 From - Spending review Topic 3]]+Dataset[[#This Row],[2029/30 From - Spending review Topic 4]]+Dataset[[#This Row],[2029/30 From - Other reallocations]]","v":0},{"$f":"Dataset[[#This Row],[2027/28 To - Spending review Topic 1]]+Dataset[[#This Row],[2027/28 To - Spending review Topic 2]]+Dataset[[#This Row],[2027/28 To - Spending review Topic 3]]+Dataset[[#This Row],[2027/28 To - Spending review Topic 4]]+Dataset[[#This Row],[2027/28 To - Other reallocations]]","v":0},{"$f":"Dataset[[#This Row],[2028/29 To - Spending review Topic 1]]+Dataset[[#This Row],[2028/29 To - Spending review Topic 2]]+Dataset[[#This Row],[2028/29 To - Spending review Topic 3]]+Dataset[[#This Row],[2028/29 To - Spending review Topic 4]]+Dataset[[#This Row],[2028/29 To - Other reallocations]]","v":0},{"$f":"Dataset[[#This Row],[2029/30 To - Spending review Topic 1]]+Dataset[[#This Row],[2029/30 To - Spending review Topic 2]]+Dataset[[#This Row],[2029/30 To - Spending review Topic 3]]+Dataset[[#This Row],[2029/30 To - Spending review Topic 4]]+Dataset[[#This Row],[2029/30 To - Other reallocations]]","v":0},{"$f":"Dataset[[#This Row],[2027/28 Targeted savings]]+Dataset[[#This Row],[2027/28 From - Total]]","v":0},{"$f":"Dataset[[#This Row],[2028/29 Targeted savings]]+Dataset[[#This Row],[2028/29 From - Total]]","v":0},{"$f":"Dataset[[#This Row],[2029/30 Targeted savings]]+Dataset[[#This Row],[2029/30 From - Total]]","v":0},{"$f":"Dataset[[#This Row],[2026/27 Targeted savings]]","v":0},{"$f":"SUM(Dataset[[#This Row],[2027/28 Targeted savings]],Dataset[[#This Row],[2027/28 From - Total]],Dataset[[#This Row],[2027/28 To - Total]])","v":0},{"$f":"SUM(Dataset[[#This Row],[2028/29 Targeted savings]],Dataset[[#This Row],[2028/29 From - Total]],Dataset[[#This Row],[2028/29 To - Total]])","v":0},{"$f":"SUM(Dataset[[#This Row],[2029/30 Targeted savings]],Dataset[[#This Row],[2029/30 From - Total]],Dataset[[#This Row],[2029/30 To - Total]])","v":0},{"$f":"Dataset[[#This Row],[2026/27 Baseline]]+Dataset[[#This Row],[2026/27 Total change]]","v":0},{"$f":"Dataset[[#This Row],[2027/28 Baseline]]+Dataset[[#This Row],[2027/28 Total change]]","v":0},{"$f":"Dataset[[#This Row],[2028/29 Baseline]]+Dataset[[#This Row],[2028/29 Total change]]","v":0},{"$f":"Dataset[[#This Row],[2029/30 Baseline]]+Dataset[[#This Row],[2029/30 Total change]]","v":0}]
["NAT|Non-transfer","30|Consumable supplies","2027_28","MTEC2027",30,3,3,32948,428,"30","03","03","032948","000428","30|03|03|000428","01","01","02","31","31","01|01|02|31|31","National","Communications and Digital Technologies","Media and Content","Public and Community Media Services","Non-transfer","Current","Current payments","Goods and services","Consumable supplies","Consumable supplies","Economic development","Economic regulation and infrastructure","NAT",0,0,0,0,2,2,0,12,15,0,0,null,null,null,null,null,null,null,null,null,null,null,null,null,null,null,null,null,null,null,null,null,null,null,null,null,null,null,null,null,null,null,null,null,null,{"$f":"Dataset[[#This Row],[2027/28 From - Spending review Topic 1]]+Dataset[[#This Row],[2027/28 From - Spending review Topic 2]]+Dataset[[#This Row],[2027/28 From - Spending review Topic 3]]+Dataset[[#This Row],[2027/28 From - Spending review Topic 4]]+Dataset[[#This Row],[2027/28 From - Other reallocations]]","v":0},{"$f":"Dataset[[#This Row],[2028/29 From - Spending review Topic 1]]+Dataset[[#This Row],[2028/29 From - Spending review Topic 2]]+Dataset[[#This Row],[2028/29 From - Spending review Topic 3]]+Dataset[[#This Row],[2028/29 From - Spending review Topic 4]]+Dataset[[#This Row],[2028/29 From - Other reallocations]]","v":0},{"$f":"Dataset[[#This Row],[2029/30 From - Spending review Topic 1]]+Dataset[[#This Row],[2029/30 From - Spending review Topic 2]]+Dataset[[#This Row],[2029/30 From - Spending review Topic 3]]+Dataset[[#This Row],[2029/30 From - Spending review Topic 4]]+Dataset[[#This Row],[2029/30 From - Other reallocations]]","v":0},{"$f":"Dataset[[#This Row],[2027/28 To - Spending review Topic 1]]+Dataset[[#This Row],[2027/28 To - Spending review Topic 2]]+Dataset[[#This Row],[2027/28 To - Spending review Topic 3]]+Dataset[[#This Row],[2027/28 To - Spending review Topic 4]]+Dataset[[#This Row],[2027/28 To - Other reallocations]]","v":0},{"$f":"Dataset[[#This Row],[2028/29 To - Spending review Topic 1]]+Dataset[[#This Row],[2028/29 To - Spending review Topic 2]]+Dataset[[#This Row],[2028/29 To - Spending review Topic 3]]+Dataset[[#This Row],[2028/29 To - Spending review Topic 4]]+Dataset[[#This Row],[2028/29 To - Other reallocations]]","v":0},{"$f":"Dataset[[#This Row],[2029/30 To - Spending review Topic 1]]+Dataset[[#This Row],[2029/30 To - Spending review Topic 2]]+Dataset[[#This Row],[2029/30 To - Spending review Topic 3]]+Dataset[[#This Row],[2029/30 To - Spending review Topic 4]]+Dataset[[#This Row],[2029/30 To - Other reallocations]]","v":0},{"$f":"Dataset[[#This Row],[2027/28 Targeted savings]]+Dataset[[#This Row],[2027/28 From - Total]]","v":0},{"$f":"Dataset[[#This Row],[2028/29 Targeted savings]]+Dataset[[#This Row],[2028/29 From - Total]]","v":0},{"$f":"Dataset[[#This Row],[2029/30 Targeted savings]]+Dataset[[#This Row],[2029/30 From - Total]]","v":0},{"$f":"Dataset[[#This Row],[2026/27 Targeted savings]]","v":0},{"$f":"SUM(Dataset[[#This Row],[2027/28 Targeted savings]],Dataset[[#This Row],[2027/28 From - Total]],Dataset[[#This Row],[2027/28 To - Total]])","v":0},{"$f":"SUM(Dataset[[#This Row],[2028/29 Targeted savings]],Dataset[[#This Row],[2028/29 From - Total]],Dataset[[#This Row],[2028/29 To - Total]])","v":0},{"$f":"SUM(Dataset[[#This Row],[2029/30 Targeted savings]],Dataset[[#This Row],[2029/30 From - Total]],Dataset[[#This Row],[2029/30 To - Total]])","v":0},{"$f":"Dataset[[#This Row],[2026/27 Baseline]]+Dataset[[#This Row],[2026/27 Total change]]","v":12},{"$f":"Dataset[[#This Row],[2027/28 Baseline]]+Dataset[[#This Row],[2027/28 Total change]]","v":15},{"$f":"Dataset[[#This Row],[2028/29 Baseline]]+Dataset[[#This Row],[2028/29 Total change]]","v":0},{"$f":"Dataset[[#This Row],[2029/30 Baseline]]+Dataset[[#This Row],[2029/30 Total change]]","v":0}]
["NAT|Non-transfer","30|Consumables: Stationery, printing and office supplies","2027_28","MTEC2027",30,3,3,32949,429,"30","03","03","032949","000429","30|03|03|000429","01","01","02","32","32","01|01|02|32|32","National","Communications and Digital Technologies","Media and Content","Public and Community Media Services","Non-transfer","Current","Current payments","Goods and services","Consumables: Stationery, printing and office supplies","Consumables: Stationery, printing and office supplies","Economic development","Economic regulation and infrastructure","NAT",0,0,0,0,0,0,0,20,25,0,0,null,null,null,null,null,null,null,null,null,null,null,null,null,null,null,null,null,null,null,null,null,null,null,null,null,null,null,null,null,null,null,null,null,null,{"$f":"Dataset[[#This Row],[2027/28 From - Spending review Topic 1]]+Dataset[[#This Row],[2027/28 From - Spending review Topic 2]]+Dataset[[#This Row],[2027/28 From - Spending review Topic 3]]+Dataset[[#This Row],[2027/28 From - Spending review Topic 4]]+Dataset[[#This Row],[2027/28 From - Other reallocations]]","v":0},{"$f":"Dataset[[#This Row],[2028/29 From - Spending review Topic 1]]+Dataset[[#This Row],[2028/29 From - Spending review Topic 2]]+Dataset[[#This Row],[2028/29 From - Spending review Topic 3]]+Dataset[[#This Row],[2028/29 From - Spending review Topic 4]]+Dataset[[#This Row],[2028/29 From - Other reallocations]]","v":0},{"$f":"Dataset[[#This Row],[2029/30 From - Spending review Topic 1]]+Dataset[[#This Row],[2029/30 From - Spending review Topic 2]]+Dataset[[#This Row],[2029/30 From - Spending review Topic 3]]+Dataset[[#This Row],[2029/30 From - Spending review Topic 4]]+Dataset[[#This Row],[2029/30 From - Other reallocations]]","v":0},{"$f":"Dataset[[#This Row],[2027/28 To - Spending review Topic 1]]+Dataset[[#This Row],[2027/28 To - Spending review Topic 2]]+Dataset[[#This Row],[2027/28 To - Spending review Topic 3]]+Dataset[[#This Row],[2027/28 To - Spending review Topic 4]]+Dataset[[#This Row],[2027/28 To - Other reallocations]]","v":0},{"$f":"Dataset[[#This Row],[2028/29 To - Spending review Topic 1]]+Dataset[[#This Row],[2028/29 To - Spending review Topic 2]]+Dataset[[#This Row],[2028/29 To - Spending review Topic 3]]+Dataset[[#This Row],[2028/29 To - Spending review Topic 4]]+Dataset[[#This Row],[2028/29 To - Other reallocations]]","v":0},{"$f":"Dataset[[#This Row],[2029/30 To - Spending review Topic 1]]+Dataset[[#This Row],[2029/30 To - Spending review Topic 2]]+Dataset[[#This Row],[2029/30 To - Spending review Topic 3]]+Dataset[[#This Row],[2029/30 To - Spending review Topic 4]]+Dataset[[#This Row],[2029/30 To - Other reallocations]]","v":0},{"$f":"Dataset[[#This Row],[2027/28 Targeted savings]]+Dataset[[#This Row],[2027/28 From - Total]]","v":0},{"$f":"Dataset[[#This Row],[2028/29 Targeted savings]]+Dataset[[#This Row],[2028/29 From - Total]]","v":0},{"$f":"Dataset[[#This Row],[2029/30 Targeted savings]]+Dataset[[#This Row],[2029/30 From - Total]]","v":0},{"$f":"Dataset[[#This Row],[2026/27 Targeted savings]]","v":0},{"$f":"SUM(Dataset[[#This Row],[2027/28 Targeted savings]],Dataset[[#This Row],[2027/28 From - Total]],Dataset[[#This Row],[2027/28 To - Total]])","v":0},{"$f":"SUM(Dataset[[#This Row],[2028/29 Targeted savings]],Dataset[[#This Row],[2028/29 From - Total]],Dataset[[#This Row],[2028/29 To - Total]])","v":0},{"$f":"SUM(Dataset[[#This Row],[2029/30 Targeted savings]],Dataset[[#This Row],[2029/30 From - Total]],Dataset[[#This Row],[2029/30 To - Total]])","v":0},{"$f":"Dataset[[#This Row],[2026/27 Baseline]]+Dataset[[#This Row],[2026/27 Total change]]","v":20},{"$f":"Dataset[[#This Row],[2027/28 Baseline]]+Dataset[[#This Row],[2027/28 Total change]]","v":25},{"$f":"Dataset[[#This Row],[2028/29 Baseline]]+Dataset[[#This Row],[2028/29 Total change]]","v":0},{"$f":"Dataset[[#This Row],[2029/30 Baseline]]+Dataset[[#This Row],[2029/30 Total change]]","v":0}]
["NAT|Non-transfer","30|Operating leases","2027_28","MTEC2027",30,3,3,32950,430,"30","03","03","032950","000430","30|03|03|000430","01","01","02","33","33","01|01|02|33|33","National","Communications and Digital Technologies","Media and Content","Public and Community Media Services","Non-transfer","Current","Current payments","Goods and services","Operating leases","Operating leases","Economic development","Economic regulation and infrastructure","NAT",0,0,0,0,0,0,0,15,16,0,0,null,null,null,null,null,null,null,null,null,null,null,null,null,null,null,null,null,null,null,null,null,null,null,null,null,null,null,null,null,null,null,null,null,null,{"$f":"Dataset[[#This Row],[2027/28 From - Spending review Topic 1]]+Dataset[[#This Row],[2027/28 From - Spending review Topic 2]]+Dataset[[#This Row],[2027/28 From - Spending review Topic 3]]+Dataset[[#This Row],[2027/28 From - Spending review Topic 4]]+Dataset[[#This Row],[2027/28 From - Other reallocations]]","v":0},{"$f":"Dataset[[#This Row],[2028/29 From - Spending review Topic 1]]+Dataset[[#This Row],[2028/29 From - Spending review Topic 2]]+Dataset[[#This Row],[2028/29 From - Spending review Topic 3]]+Dataset[[#This Row],[2028/29 From - Spending review Topic 4]]+Dataset[[#This Row],[2028/29 From - Other reallocations]]","v":0},{"$f":"Dataset[[#This Row],[2029/30 From - Spending review Topic 1]]+Dataset[[#This Row],[2029/30 From - Spending review Topic 2]]+Dataset[[#This Row],[2029/30 From - Spending review Topic 3]]+Dataset[[#This Row],[2029/30 From - Spending review Topic 4]]+Dataset[[#This Row],[2029/30 From - Other reallocations]]","v":0},{"$f":"Dataset[[#This Row],[2027/28 To - Spending review Topic 1]]+Dataset[[#This Row],[2027/28 To - Spending review Topic 2]]+Dataset[[#This Row],[2027/28 To - Spending review Topic 3]]+Dataset[[#This Row],[2027/28 To - Spending review Topic 4]]+Dataset[[#This Row],[2027/28 To - Other reallocations]]","v":0},{"$f":"Dataset[[#This Row],[2028/29 To - Spending review Topic 1]]+Dataset[[#This Row],[2028/29 To - Spending review Topic 2]]+Dataset[[#This Row],[2028/29 To - Spending review Topic 3]]+Dataset[[#This Row],[2028/29 To - Spending review Topic 4]]+Dataset[[#This Row],[2028/29 To - Other reallocations]]","v":0},{"$f":"Dataset[[#This Row],[2029/30 To - Spending review Topic 1]]+Dataset[[#This Row],[2029/30 To - Spending review Topic 2]]+Dataset[[#This Row],[2029/30 To - Spending review Topic 3]]+Dataset[[#This Row],[2029/30 To - Spending review Topic 4]]+Dataset[[#This Row],[2029/30 To - Other reallocations]]","v":0},{"$f":"Dataset[[#This Row],[2027/28 Targeted savings]]+Dataset[[#This Row],[2027/28 From - Total]]","v":0},{"$f":"Dataset[[#This Row],[2028/29 Targeted savings]]+Dataset[[#This Row],[2028/29 From - Total]]","v":0},{"$f":"Dataset[[#This Row],[2029/30 Targeted savings]]+Dataset[[#This Row],[2029/30 From - Total]]","v":0},{"$f":"Dataset[[#This Row],[2026/27 Targeted savings]]","v":0},{"$f":"SUM(Dataset[[#This Row],[2027/28 Targeted savings]],Dataset[[#This Row],[2027/28 From - Total]],Dataset[[#This Row],[2027/28 To - Total]])","v":0},{"$f":"SUM(Dataset[[#This Row],[2028/29 Targeted savings]],Dataset[[#This Row],[2028/29 From - Total]],Dataset[[#This Row],[2028/29 To - Total]])","v":0},{"$f":"SUM(Dataset[[#This Row],[2029/30 Targeted savings]],Dataset[[#This Row],[2029/30 From - Total]],Dataset[[#This Row],[2029/30 To - Total]])","v":0},{"$f":"Dataset[[#This Row],[2026/27 Baseline]]+Dataset[[#This Row],[2026/27 Total change]]","v":15},{"$f":"Dataset[[#This Row],[2027/28 Baseline]]+Dataset[[#This Row],[2027/28 Total change]]","v":16},{"$f":"Dataset[[#This Row],[2028/29 Baseline]]+Dataset[[#This Row],[2028/29 Total change]]","v":0},{"$f":"Dataset[[#This Row],[2029/30 Baseline]]+Dataset[[#This Row],[2029/30 Total change]]","v":0}]
["NAT|Non-transfer","30|Travel and subsistence","2027_28","MTEC2027",30,3,3,32951,431,"30","03","03","032951","000431","30|03|03|000431","01","01","02","37","37","01|01|02|37|37","National","Communications and Digital Technologies","Media and Content","Public and Community Media Services","Non-transfer","Current","Current payments","Goods and services","Travel and subsistence","Travel and subsistence","Economic development","Economic regulation and infrastructure","NAT",0,0,52,240,235,235,0,890,900,0,0,null,null,null,null,null,null,null,null,null,null,null,null,null,null,null,null,null,null,null,null,null,null,null,null,null,null,null,null,null,null,null,null,null,null,{"$f":"Dataset[[#This Row],[2027/28 From - Spending review Topic 1]]+Dataset[[#This Row],[2027/28 From - Spending review Topic 2]]+Dataset[[#This Row],[2027/28 From - Spending review Topic 3]]+Dataset[[#This Row],[2027/28 From - Spending review Topic 4]]+Dataset[[#This Row],[2027/28 From - Other reallocations]]","v":0},{"$f":"Dataset[[#This Row],[2028/29 From - Spending review Topic 1]]+Dataset[[#This Row],[2028/29 From - Spending review Topic 2]]+Dataset[[#This Row],[2028/29 From - Spending review Topic 3]]+Dataset[[#This Row],[2028/29 From - Spending review Topic 4]]+Dataset[[#This Row],[2028/29 From - Other reallocations]]","v":0},{"$f":"Dataset[[#This Row],[2029/30 From - Spending review Topic 1]]+Dataset[[#This Row],[2029/30 From - Spending review Topic 2]]+Dataset[[#This Row],[2029/30 From - Spending review Topic 3]]+Dataset[[#This Row],[2029/30 From - Spending review Topic 4]]+Dataset[[#This Row],[2029/30 From - Other reallocations]]","v":0},{"$f":"Dataset[[#This Row],[2027/28 To - Spending review Topic 1]]+Dataset[[#This Row],[2027/28 To - Spending review Topic 2]]+Dataset[[#This Row],[2027/28 To - Spending review Topic 3]]+Dataset[[#This Row],[2027/28 To - Spending review Topic 4]]+Dataset[[#This Row],[2027/28 To - Other reallocations]]","v":0},{"$f":"Dataset[[#This Row],[2028/29 To - Spending review Topic 1]]+Dataset[[#This Row],[2028/29 To - Spending review Topic 2]]+Dataset[[#This Row],[2028/29 To - Spending review Topic 3]]+Dataset[[#This Row],[2028/29 To - Spending review Topic 4]]+Dataset[[#This Row],[2028/29 To - Other reallocations]]","v":0},{"$f":"Dataset[[#This Row],[2029/30 To - Spending review Topic 1]]+Dataset[[#This Row],[2029/30 To - Spending review Topic 2]]+Dataset[[#This Row],[2029/30 To - Spending review Topic 3]]+Dataset[[#This Row],[2029/30 To - Spending review Topic 4]]+Dataset[[#This Row],[2029/30 To - Other reallocations]]","v":0},{"$f":"Dataset[[#This Row],[2027/28 Targeted savings]]+Dataset[[#This Row],[2027/28 From - Total]]","v":0},{"$f":"Dataset[[#This Row],[2028/29 Targeted savings]]+Dataset[[#This Row],[2028/29 From - Total]]","v":0},{"$f":"Dataset[[#This Row],[2029/30 Targeted savings]]+Dataset[[#This Row],[2029/30 From - Total]]","v":0},{"$f":"Dataset[[#This Row],[2026/27 Targeted savings]]","v":0},{"$f":"SUM(Dataset[[#This Row],[2027/28 Targeted savings]],Dataset[[#This Row],[2027/28 From - Total]],Dataset[[#This Row],[2027/28 To - Total]])","v":0},{"$f":"SUM(Dataset[[#This Row],[2028/29 Targeted savings]],Dataset[[#This Row],[2028/29 From - Total]],Dataset[[#This Row],[2028/29 To - Total]])","v":0},{"$f":"SUM(Dataset[[#This Row],[2029/30 Targeted savings]],Dataset[[#This Row],[2029/30 From - Total]],Dataset[[#This Row],[2029/30 To - Total]])","v":0},{"$f":"Dataset[[#This Row],[2026/27 Baseline]]+Dataset[[#This Row],[2026/27 Total change]]","v":890},{"$f":"Dataset[[#This Row],[2027/28 Baseline]]+Dataset[[#This Row],[2027/28 Total change]]","v":900},{"$f":"Dataset[[#This Row],[2028/29 Baseline]]+Dataset[[#This Row],[2028/29 Total change]]","v":0},{"$f":"Dataset[[#This Row],[2029/30 Baseline]]+Dataset[[#This Row],[2029/30 Total change]]","v":0}]
["NAT|Non-transfer","30|Training and development","2027_28","MTEC2027",30,3,3,32952,432,"30","03","03","032952","000432","30|03|03|000432","01","01","02","38","38","01|01|02|38|38","National","Communications and Digital Technologies","Media and Content","Public and Community Media Services","Non-transfer","Current","Current payments","Goods and services","Training and development","Training and development","Economic development","Economic regulation and infrastructure","NAT",0,0,0,0,0,0,0,10,31,0,0,null,null,null,null,null,null,null,null,null,null,null,null,null,null,null,null,null,null,null,null,null,null,null,null,null,null,null,null,null,null,null,null,null,null,{"$f":"Dataset[[#This Row],[2027/28 From - Spending review Topic 1]]+Dataset[[#This Row],[2027/28 From - Spending review Topic 2]]+Dataset[[#This Row],[2027/28 From - Spending review Topic 3]]+Dataset[[#This Row],[2027/28 From - Spending review Topic 4]]+Dataset[[#This Row],[2027/28 From - Other reallocations]]","v":0},{"$f":"Dataset[[#This Row],[2028/29 From - Spending review Topic 1]]+Dataset[[#This Row],[2028/29 From - Spending review Topic 2]]+Dataset[[#This Row],[2028/29 From - Spending review Topic 3]]+Dataset[[#This Row],[2028/29 From - Spending review Topic 4]]+Dataset[[#This Row],[2028/29 From - Other reallocations]]","v":0},{"$f":"Dataset[[#This Row],[2029/30 From - Spending review Topic 1]]+Dataset[[#This Row],[2029/30 From - Spending review Topic 2]]+Dataset[[#This Row],[2029/30 From - Spending review Topic 3]]+Dataset[[#This Row],[2029/30 From - Spending review Topic 4]]+Dataset[[#This Row],[2029/30 From - Other reallocations]]","v":0},{"$f":"Dataset[[#This Row],[2027/28 To - Spending review Topic 1]]+Dataset[[#This Row],[2027/28 To - Spending review Topic 2]]+Dataset[[#This Row],[2027/28 To - Spending review Topic 3]]+Dataset[[#This Row],[2027/28 To - Spending review Topic 4]]+Dataset[[#This Row],[2027/28 To - Other reallocations]]","v":0},{"$f":"Dataset[[#This Row],[2028/29 To - Spending review Topic 1]]+Dataset[[#This Row],[2028/29 To - Spending review Topic 2]]+Dataset[[#This Row],[2028/29 To - Spending review Topic 3]]+Dataset[[#This Row],[2028/29 To - Spending review Topic 4]]+Dataset[[#This Row],[2028/29 To - Other reallocations]]","v":0},{"$f":"Dataset[[#This Row],[2029/30 To - Spending review Topic 1]]+Dataset[[#This Row],[2029/30 To - Spending review Topic 2]]+Dataset[[#This Row],[2029/30 To - Spending review Topic 3]]+Dataset[[#This Row],[2029/30 To - Spending review Topic 4]]+Dataset[[#This Row],[2029/30 To - Other reallocations]]","v":0},{"$f":"Dataset[[#This Row],[2027/28 Targeted savings]]+Dataset[[#This Row],[2027/28 From - Total]]","v":0},{"$f":"Dataset[[#This Row],[2028/29 Targeted savings]]+Dataset[[#This Row],[2028/29 From - Total]]","v":0},{"$f":"Dataset[[#This Row],[2029/30 Targeted savings]]+Dataset[[#This Row],[2029/30 From - Total]]","v":0},{"$f":"Dataset[[#This Row],[2026/27 Targeted savings]]","v":0},{"$f":"SUM(Dataset[[#This Row],[2027/28 Targeted savings]],Dataset[[#This Row],[2027/28 From - Total]],Dataset[[#This Row],[2027/28 To - Total]])","v":0},{"$f":"SUM(Dataset[[#This Row],[2028/29 Targeted savings]],Dataset[[#This Row],[2028/29 From - Total]],Dataset[[#This Row],[2028/29 To - Total]])","v":0},{"$f":"SUM(Dataset[[#This Row],[2029/30 Targeted savings]],Dataset[[#This Row],[2029/30 From - Total]],Dataset[[#This Row],[2029/30 To - Total]])","v":0},{"$f":"Dataset[[#This Row],[2026/27 Baseline]]+Dataset[[#This Row],[2026/27 Total change]]","v":10},{"$f":"Dataset[[#This Row],[2027/28 Baseline]]+Dataset[[#This Row],[2027/28 Total change]]","v":31},{"$f":"Dataset[[#This Row],[2028/29 Baseline]]+Dataset[[#This Row],[2028/29 Total change]]","v":0},{"$f":"Dataset[[#This Row],[2029/30 Baseline]]+Dataset[[#This Row],[2029/30 Total change]]","v":0}]
["NAT|South African Broadcasting Corporation: Programme productions","30|Other transfers to public corporations","2027_28","MTEC2027",30,3,3,32953,433,"30","03","03","032953","000433","30|03|03|000433","01","02","08","49","52","01|02|08|49|52","National","Communications and Digital Technologies","Media and Content","Public and Community Media Services","South African Broadcasting Corporation: Programme productions","Current","Transfers and subsidies","Public corporations and private enterprises","Public corporations","Other transfers to public corporations","Economic development","Economic regulation and infrastructure","NAT",15680,15865,0,13856,13856,13856,0,14416,14991,15457,15922,null,null,null,null,null,null,null,null,null,null,null,null,null,null,null,null,null,null,null,null,null,null,null,null,null,null,null,null,null,null,null,null,null,null,{"$f":"Dataset[[#This Row],[2027/28 From - Spending review Topic 1]]+Dataset[[#This Row],[2027/28 From - Spending review Topic 2]]+Dataset[[#This Row],[2027/28 From - Spending review Topic 3]]+Dataset[[#This Row],[2027/28 From - Spending review Topic 4]]+Dataset[[#This Row],[2027/28 From - Other reallocations]]","v":0},{"$f":"Dataset[[#This Row],[2028/29 From - Spending review Topic 1]]+Dataset[[#This Row],[2028/29 From - Spending review Topic 2]]+Dataset[[#This Row],[2028/29 From - Spending review Topic 3]]+Dataset[[#This Row],[2028/29 From - Spending review Topic 4]]+Dataset[[#This Row],[2028/29 From - Other reallocations]]","v":0},{"$f":"Dataset[[#This Row],[2029/30 From - Spending review Topic 1]]+Dataset[[#This Row],[2029/30 From - Spending review Topic 2]]+Dataset[[#This Row],[2029/30 From - Spending review Topic 3]]+Dataset[[#This Row],[2029/30 From - Spending review Topic 4]]+Dataset[[#This Row],[2029/30 From - Other reallocations]]","v":0},{"$f":"Dataset[[#This Row],[2027/28 To - Spending review Topic 1]]+Dataset[[#This Row],[2027/28 To - Spending review Topic 2]]+Dataset[[#This Row],[2027/28 To - Spending review Topic 3]]+Dataset[[#This Row],[2027/28 To - Spending review Topic 4]]+Dataset[[#This Row],[2027/28 To - Other reallocations]]","v":0},{"$f":"Dataset[[#This Row],[2028/29 To - Spending review Topic 1]]+Dataset[[#This Row],[2028/29 To - Spending review Topic 2]]+Dataset[[#This Row],[2028/29 To - Spending review Topic 3]]+Dataset[[#This Row],[2028/29 To - Spending review Topic 4]]+Dataset[[#This Row],[2028/29 To - Other reallocations]]","v":0},{"$f":"Dataset[[#This Row],[2029/30 To - Spending review Topic 1]]+Dataset[[#This Row],[2029/30 To - Spending review Topic 2]]+Dataset[[#This Row],[2029/30 To - Spending review Topic 3]]+Dataset[[#This Row],[2029/30 To - Spending review Topic 4]]+Dataset[[#This Row],[2029/30 To - Other reallocations]]","v":0},{"$f":"Dataset[[#This Row],[2027/28 Targeted savings]]+Dataset[[#This Row],[2027/28 From - Total]]","v":0},{"$f":"Dataset[[#This Row],[2028/29 Targeted savings]]+Dataset[[#This Row],[2028/29 From - Total]]","v":0},{"$f":"Dataset[[#This Row],[2029/30 Targeted savings]]+Dataset[[#This Row],[2029/30 From - Total]]","v":0},{"$f":"Dataset[[#This Row],[2026/27 Targeted savings]]","v":0},{"$f":"SUM(Dataset[[#This Row],[2027/28 Targeted savings]],Dataset[[#This Row],[2027/28 From - Total]],Dataset[[#This Row],[2027/28 To - Total]])","v":0},{"$f":"SUM(Dataset[[#This Row],[2028/29 Targeted savings]],Dataset[[#This Row],[2028/29 From - Total]],Dataset[[#This Row],[2028/29 To - Total]])","v":0},{"$f":"SUM(Dataset[[#This Row],[2029/30 Targeted savings]],Dataset[[#This Row],[2029/30 From - Total]],Dataset[[#This Row],[2029/30 To - Total]])","v":0},{"$f":"Dataset[[#This Row],[2026/27 Baseline]]+Dataset[[#This Row],[2026/27 Total change]]","v":14416},{"$f":"Dataset[[#This Row],[2027/28 Baseline]]+Dataset[[#This Row],[2027/28 Total change]]","v":14991},{"$f":"Dataset[[#This Row],[2028/29 Baseline]]+Dataset[[#This Row],[2028/29 Total change]]","v":15457},{"$f":"Dataset[[#This Row],[2029/30 Baseline]]+Dataset[[#This Row],[2029/30 Total change]]","v":15922}]
["NAT|South African Broadcasting Corporation: Channel Africa","30|Other transfers to public corporations","2027_28","MTEC2027",30,3,3,32954,434,"30","03","03","032954","000434","30|03|03|000434","01","02","08","49","52","01|02|08|49|52","National","Communications and Digital Technologies","Media and Content","Public and Community Media Services","South African Broadcasting Corporation: Channel Africa","Current","Transfers and subsidies","Public corporations and private enterprises","Public corporations","Other transfers to public corporations","Economic development","Economic regulation and infrastructure","NAT",66581,67368,56314,64256,64256,64256,0,65957,68589,70720,72849,null,null,null,null,null,null,null,null,null,null,null,null,null,null,null,null,null,null,null,null,null,null,null,null,null,null,null,null,null,null,null,null,null,null,{"$f":"Dataset[[#This Row],[2027/28 From - Spending review Topic 1]]+Dataset[[#This Row],[2027/28 From - Spending review Topic 2]]+Dataset[[#This Row],[2027/28 From - Spending review Topic 3]]+Dataset[[#This Row],[2027/28 From - Spending review Topic 4]]+Dataset[[#This Row],[2027/28 From - Other reallocations]]","v":0},{"$f":"Dataset[[#This Row],[2028/29 From - Spending review Topic 1]]+Dataset[[#This Row],[2028/29 From - Spending review Topic 2]]+Dataset[[#This Row],[2028/29 From - Spending review Topic 3]]+Dataset[[#This Row],[2028/29 From - Spending review Topic 4]]+Dataset[[#This Row],[2028/29 From - Other reallocations]]","v":0},{"$f":"Dataset[[#This Row],[2029/30 From - Spending review Topic 1]]+Dataset[[#This Row],[2029/30 From - Spending review Topic 2]]+Dataset[[#This Row],[2029/30 From - Spending review Topic 3]]+Dataset[[#This Row],[2029/30 From - Spending review Topic 4]]+Dataset[[#This Row],[2029/30 From - Other reallocations]]","v":0},{"$f":"Dataset[[#This Row],[2027/28 To - Spending review Topic 1]]+Dataset[[#This Row],[2027/28 To - Spending review Topic 2]]+Dataset[[#This Row],[2027/28 To - Spending review Topic 3]]+Dataset[[#This Row],[2027/28 To - Spending review Topic 4]]+Dataset[[#This Row],[2027/28 To - Other reallocations]]","v":0},{"$f":"Dataset[[#This Row],[2028/29 To - Spending review Topic 1]]+Dataset[[#This Row],[2028/29 To - Spending review Topic 2]]+Dataset[[#This Row],[2028/29 To - Spending review Topic 3]]+Dataset[[#This Row],[2028/29 To - Spending review Topic 4]]+Dataset[[#This Row],[2028/29 To - Other reallocations]]","v":0},{"$f":"Dataset[[#This Row],[2029/30 To - Spending review Topic 1]]+Dataset[[#This Row],[2029/30 To - Spending review Topic 2]]+Dataset[[#This Row],[2029/30 To - Spending review Topic 3]]+Dataset[[#This Row],[2029/30 To - Spending review Topic 4]]+Dataset[[#This Row],[2029/30 To - Other reallocations]]","v":0},{"$f":"Dataset[[#This Row],[2027/28 Targeted savings]]+Dataset[[#This Row],[2027/28 From - Total]]","v":0},{"$f":"Dataset[[#This Row],[2028/29 Targeted savings]]+Dataset[[#This Row],[2028/29 From - Total]]","v":0},{"$f":"Dataset[[#This Row],[2029/30 Targeted savings]]+Dataset[[#This Row],[2029/30 From - Total]]","v":0},{"$f":"Dataset[[#This Row],[2026/27 Targeted savings]]","v":0},{"$f":"SUM(Dataset[[#This Row],[2027/28 Targeted savings]],Dataset[[#This Row],[2027/28 From - Total]],Dataset[[#This Row],[2027/28 To - Total]])","v":0},{"$f":"SUM(Dataset[[#This Row],[2028/29 Targeted savings]],Dataset[[#This Row],[2028/29 From - Total]],Dataset[[#This Row],[2028/29 To - Total]])","v":0},{"$f":"SUM(Dataset[[#This Row],[2029/30 Targeted savings]],Dataset[[#This Row],[2029/30 From - Total]],Dataset[[#This Row],[2029/30 To - Total]])","v":0},{"$f":"Dataset[[#This Row],[2026/27 Baseline]]+Dataset[[#This Row],[2026/27 Total change]]","v":65957},{"$f":"Dataset[[#This Row],[2027/28 Baseline]]+Dataset[[#This Row],[2027/28 Total change]]","v":68589},{"$f":"Dataset[[#This Row],[2028/29 Baseline]]+Dataset[[#This Row],[2028/29 Total change]]","v":70720},{"$f":"Dataset[[#This Row],[2029/30 Baseline]]+Dataset[[#This Row],[2029/30 Total change]]","v":72849}]
["NAT|South African Broadcasting Corporation: Public broadcaster","30|Other transfers to public corporations","2027_28","MTEC2027",30,3,3,32955,435,"30","03","03","032955","000435","30|03|03|000435","01","02","08","49","52","01|02|08|49|52","National","Communications and Digital Technologies","Media and Content","Public and Community Media Services","South African Broadcasting Corporation: Public broadcaster","Current","Transfers and subsidies","Public corporations and private enterprises","Public corporations","Other transfers to public corporations","Economic development","Economic regulation and infrastructure","NAT",133821,148403,0,147822,147822,147822,0,153796,159933,164904,169869,null,null,null,null,null,null,null,null,null,null,null,null,null,null,null,null,null,null,null,null,null,null,null,null,null,null,null,null,null,null,null,null,null,null,{"$f":"Dataset[[#This Row],[2027/28 From - Spending review Topic 1]]+Dataset[[#This Row],[2027/28 From - Spending review Topic 2]]+Dataset[[#This Row],[2027/28 From - Spending review Topic 3]]+Dataset[[#This Row],[2027/28 From - Spending review Topic 4]]+Dataset[[#This Row],[2027/28 From - Other reallocations]]","v":0},{"$f":"Dataset[[#This Row],[2028/29 From - Spending review Topic 1]]+Dataset[[#This Row],[2028/29 From - Spending review Topic 2]]+Dataset[[#This Row],[2028/29 From - Spending review Topic 3]]+Dataset[[#This Row],[2028/29 From - Spending review Topic 4]]+Dataset[[#This Row],[2028/29 From - Other reallocations]]","v":0},{"$f":"Dataset[[#This Row],[2029/30 From - Spending review Topic 1]]+Dataset[[#This Row],[2029/30 From - Spending review Topic 2]]+Dataset[[#This Row],[2029/30 From - Spending review Topic 3]]+Dataset[[#This Row],[2029/30 From - Spending review Topic 4]]+Dataset[[#This Row],[2029/30 From - Other reallocations]]","v":0},{"$f":"Dataset[[#This Row],[2027/28 To - Spending review Topic 1]]+Dataset[[#This Row],[2027/28 To - Spending review Topic 2]]+Dataset[[#This Row],[2027/28 To - Spending review Topic 3]]+Dataset[[#This Row],[2027/28 To - Spending review Topic 4]]+Dataset[[#This Row],[2027/28 To - Other reallocations]]","v":0},{"$f":"Dataset[[#This Row],[2028/29 To - Spending review Topic 1]]+Dataset[[#This Row],[2028/29 To - Spending review Topic 2]]+Dataset[[#This Row],[2028/29 To - Spending review Topic 3]]+Dataset[[#This Row],[2028/29 To - Spending review Topic 4]]+Dataset[[#This Row],[2028/29 To - Other reallocations]]","v":0},{"$f":"Dataset[[#This Row],[2029/30 To - Spending review Topic 1]]+Dataset[[#This Row],[2029/30 To - Spending review Topic 2]]+Dataset[[#This Row],[2029/30 To - Spending review Topic 3]]+Dataset[[#This Row],[2029/30 To - Spending review Topic 4]]+Dataset[[#This Row],[2029/30 To - Other reallocations]]","v":0},{"$f":"Dataset[[#This Row],[2027/28 Targeted savings]]+Dataset[[#This Row],[2027/28 From - Total]]","v":0},{"$f":"Dataset[[#This Row],[2028/29 Targeted savings]]+Dataset[[#This Row],[2028/29 From - Total]]","v":0},{"$f":"Dataset[[#This Row],[2029/30 Targeted savings]]+Dataset[[#This Row],[2029/30 From - Total]]","v":0},{"$f":"Dataset[[#This Row],[2026/27 Targeted savings]]","v":0},{"$f":"SUM(Dataset[[#This Row],[2027/28 Targeted savings]],Dataset[[#This Row],[2027/28 From - Total]],Dataset[[#This Row],[2027/28 To - Total]])","v":0},{"$f":"SUM(Dataset[[#This Row],[2028/29 Targeted savings]],Dataset[[#This Row],[2028/29 From - Total]],Dataset[[#This Row],[2028/29 To - Total]])","v":0},{"$f":"SUM(Dataset[[#This Row],[2029/30 Targeted savings]],Dataset[[#This Row],[2029/30 From - Total]],Dataset[[#This Row],[2029/30 To - Total]])","v":0},{"$f":"Dataset[[#This Row],[2026/27 Baseline]]+Dataset[[#This Row],[2026/27 Total change]]","v":153796},{"$f":"Dataset[[#This Row],[2027/28 Baseline]]+Dataset[[#This Row],[2027/28 Total change]]","v":159933},{"$f":"Dataset[[#This Row],[2028/29 Baseline]]+Dataset[[#This Row],[2028/29 Total change]]","v":164904},{"$f":"Dataset[[#This Row],[2029/30 Baseline]]+Dataset[[#This Row],[2029/30 Total change]]","v":169869}]
["NAT|South African Broadcasting Corporation: 2024 elections coverage","30|Other transfers to public corporations","2027_28","MTEC2027",30,3,3,32956,436,"30","03","03","032956","000436","30|03|03|000436","01","02","08","49","52","01|02|08|49|52","National","Communications and Digital Technologies","Media and Content","Public and Community Media Services","South African Broadcasting Corporation: 2024 elections coverage","Current","Transfers and subsidies","Public corporations and private enterprises","Public corporations","Other transfers to public corporations","Economic development","Economic regulation and infrastructure","NAT",0,35000,0,0,0,0,0,0,0,0,0,null,null,null,null,null,null,null,null,null,null,null,null,null,null,null,null,null,null,null,null,null,null,null,null,null,null,null,null,null,null,null,null,null,null,{"$f":"Dataset[[#This Row],[2027/28 From - Spending review Topic 1]]+Dataset[[#This Row],[2027/28 From - Spending review Topic 2]]+Dataset[[#This Row],[2027/28 From - Spending review Topic 3]]+Dataset[[#This Row],[2027/28 From - Spending review Topic 4]]+Dataset[[#This Row],[2027/28 From - Other reallocations]]","v":0},{"$f":"Dataset[[#This Row],[2028/29 From - Spending review Topic 1]]+Dataset[[#This Row],[2028/29 From - Spending review Topic 2]]+Dataset[[#This Row],[2028/29 From - Spending review Topic 3]]+Dataset[[#This Row],[2028/29 From - Spending review Topic 4]]+Dataset[[#This Row],[2028/29 From - Other reallocations]]","v":0},{"$f":"Dataset[[#This Row],[2029/30 From - Spending review Topic 1]]+Dataset[[#This Row],[2029/30 From - Spending review Topic 2]]+Dataset[[#This Row],[2029/30 From - Spending review Topic 3]]+Dataset[[#This Row],[2029/30 From - Spending review Topic 4]]+Dataset[[#This Row],[2029/30 From - Other reallocations]]","v":0},{"$f":"Dataset[[#This Row],[2027/28 To - Spending review Topic 1]]+Dataset[[#This Row],[2027/28 To - Spending review Topic 2]]+Dataset[[#This Row],[2027/28 To - Spending review Topic 3]]+Dataset[[#This Row],[2027/28 To - Spending review Topic 4]]+Dataset[[#This Row],[2027/28 To - Other reallocations]]","v":0},{"$f":"Dataset[[#This Row],[2028/29 To - Spending review Topic 1]]+Dataset[[#This Row],[2028/29 To - Spending review Topic 2]]+Dataset[[#This Row],[2028/29 To - Spending review Topic 3]]+Dataset[[#This Row],[2028/29 To - Spending review Topic 4]]+Dataset[[#This Row],[2028/29 To - Other reallocations]]","v":0},{"$f":"Dataset[[#This Row],[2029/30 To - Spending review Topic 1]]+Dataset[[#This Row],[2029/30 To - Spending review Topic 2]]+Dataset[[#This Row],[2029/30 To - Spending review Topic 3]]+Dataset[[#This Row],[2029/30 To - Spending review Topic 4]]+Dataset[[#This Row],[2029/30 To - Other reallocations]]","v":0},{"$f":"Dataset[[#This Row],[2027/28 Targeted savings]]+Dataset[[#This Row],[2027/28 From - Total]]","v":0},{"$f":"Dataset[[#This Row],[2028/29 Targeted savings]]+Dataset[[#This Row],[2028/29 From - Total]]","v":0},{"$f":"Dataset[[#This Row],[2029/30 Targeted savings]]+Dataset[[#This Row],[2029/30 From - Total]]","v":0},{"$f":"Dataset[[#This Row],[2026/27 Targeted savings]]","v":0},{"$f":"SUM(Dataset[[#This Row],[2027/28 Targeted savings]],Dataset[[#This Row],[2027/28 From - Total]],Dataset[[#This Row],[2027/28 To - Total]])","v":0},{"$f":"SUM(Dataset[[#This Row],[2028/29 Targeted savings]],Dataset[[#This Row],[2028/29 From - Total]],Dataset[[#This Row],[2028/29 To - Total]])","v":0},{"$f":"SUM(Dataset[[#This Row],[2029/30 Targeted savings]],Dataset[[#This Row],[2029/30 From - Total]],Dataset[[#This Row],[2029/30 To - Total]])","v":0},{"$f":"Dataset[[#This Row],[2026/27 Baseline]]+Dataset[[#This Row],[2026/27 Total change]]","v":0},{"$f":"Dataset[[#This Row],[2027/28 Baseline]]+Dataset[[#This Row],[2027/28 Total change]]","v":0},{"$f":"Dataset[[#This Row],[2028/29 Baseline]]+Dataset[[#This Row],[2028/29 Total change]]","v":0},{"$f":"Dataset[[#This Row],[2029/30 Baseline]]+Dataset[[#This Row],[2029/30 Total change]]","v":0}]
["NAT|South African Broadcasting Corporation: Signal and distribution services","30|Other transfers to public corporations","2027_28","MTEC2027",30,3,3,32957,437,"30","03","03","032957","000437","30|03|03|000437","01","02","08","49","52","01|02|08|49|52","National","Communications and Digital Technologies","Media and Content","Public and Community Media Services","South African Broadcasting Corporation: Signal and distribution services","Current","Transfers and subsidies","Public corporations and private enterprises","Public corporations","Other transfers to public corporations","Economic development","Economic regulation and infrastructure","NAT",0,0,154746,0,0,0,0,0,0,0,0,null,null,null,null,null,null,null,null,null,null,null,null,null,null,null,null,null,null,null,null,null,null,null,null,null,null,null,null,null,null,null,null,null,null,{"$f":"Dataset[[#This Row],[2027/28 From - Spending review Topic 1]]+Dataset[[#This Row],[2027/28 From - Spending review Topic 2]]+Dataset[[#This Row],[2027/28 From - Spending review Topic 3]]+Dataset[[#This Row],[2027/28 From - Spending review Topic 4]]+Dataset[[#This Row],[2027/28 From - Other reallocations]]","v":0},{"$f":"Dataset[[#This Row],[2028/29 From - Spending review Topic 1]]+Dataset[[#This Row],[2028/29 From - Spending review Topic 2]]+Dataset[[#This Row],[2028/29 From - Spending review Topic 3]]+Dataset[[#This Row],[2028/29 From - Spending review Topic 4]]+Dataset[[#This Row],[2028/29 From - Other reallocations]]","v":0},{"$f":"Dataset[[#This Row],[2029/30 From - Spending review Topic 1]]+Dataset[[#This Row],[2029/30 From - Spending review Topic 2]]+Dataset[[#This Row],[2029/30 From - Spending review Topic 3]]+Dataset[[#This Row],[2029/30 From - Spending review Topic 4]]+Dataset[[#This Row],[2029/30 From - Other reallocations]]","v":0},{"$f":"Dataset[[#This Row],[2027/28 To - Spending review Topic 1]]+Dataset[[#This Row],[2027/28 To - Spending review Topic 2]]+Dataset[[#This Row],[2027/28 To - Spending review Topic 3]]+Dataset[[#This Row],[2027/28 To - Spending review Topic 4]]+Dataset[[#This Row],[2027/28 To - Other reallocations]]","v":0},{"$f":"Dataset[[#This Row],[2028/29 To - Spending review Topic 1]]+Dataset[[#This Row],[2028/29 To - Spending review Topic 2]]+Dataset[[#This Row],[2028/29 To - Spending review Topic 3]]+Dataset[[#This Row],[2028/29 To - Spending review Topic 4]]+Dataset[[#This Row],[2028/29 To - Other reallocations]]","v":0},{"$f":"Dataset[[#This Row],[2029/30 To - Spending review Topic 1]]+Dataset[[#This Row],[2029/30 To - Spending review Topic 2]]+Dataset[[#This Row],[2029/30 To - Spending review Topic 3]]+Dataset[[#This Row],[2029/30 To - Spending review Topic 4]]+Dataset[[#This Row],[2029/30 To - Other reallocations]]","v":0},{"$f":"Dataset[[#This Row],[2027/28 Targeted savings]]+Dataset[[#This Row],[2027/28 From - Total]]","v":0},{"$f":"Dataset[[#This Row],[2028/29 Targeted savings]]+Dataset[[#This Row],[2028/29 From - Total]]","v":0},{"$f":"Dataset[[#This Row],[2029/30 Targeted savings]]+Dataset[[#This Row],[2029/30 From - Total]]","v":0},{"$f":"Dataset[[#This Row],[2026/27 Targeted savings]]","v":0},{"$f":"SUM(Dataset[[#This Row],[2027/28 Targeted savings]],Dataset[[#This Row],[2027/28 From - Total]],Dataset[[#This Row],[2027/28 To - Total]])","v":0},{"$f":"SUM(Dataset[[#This Row],[2028/29 Targeted savings]],Dataset[[#This Row],[2028/29 From - Total]],Dataset[[#This Row],[2028/29 To - Total]])","v":0},{"$f":"SUM(Dataset[[#This Row],[2029/30 Targeted savings]],Dataset[[#This Row],[2029/30 From - Total]],Dataset[[#This Row],[2029/30 To - Total]])","v":0},{"$f":"Dataset[[#This Row],[2026/27 Baseline]]+Dataset[[#This Row],[2026/27 Total change]]","v":0},{"$f":"Dataset[[#This Row],[2027/28 Baseline]]+Dataset[[#This Row],[2027/28 Total change]]","v":0},{"$f":"Dataset[[#This Row],[2028/29 Baseline]]+Dataset[[#This Row],[2028/29 Total change]]","v":0},{"$f":"Dataset[[#This Row],[2029/30 Baseline]]+Dataset[[#This Row],[2029/30 Total change]]","v":0}]
["NAT|Households","30|Other transfers to households","2027_28","MTEC2027",30,3,3,32958,438,"30","03","03","032958","000438","30|03|03|000438","01","02","10","53","57","01|02|10|53|57","National","Communications and Digital Technologies","Media and Content","Public and Community Media Services","Households","Current","Transfers and subsidies","Households","Other transfers to households","Other transfers to households","Economic development","Economic regulation and infrastructure","NAT",4,5632,0,0,0,0,0,0,0,0,0,null,null,null,null,null,null,null,null,null,null,null,null,null,null,null,null,null,null,null,null,null,null,null,null,null,null,null,null,null,null,null,null,null,null,{"$f":"Dataset[[#This Row],[2027/28 From - Spending review Topic 1]]+Dataset[[#This Row],[2027/28 From - Spending review Topic 2]]+Dataset[[#This Row],[2027/28 From - Spending review Topic 3]]+Dataset[[#This Row],[2027/28 From - Spending review Topic 4]]+Dataset[[#This Row],[2027/28 From - Other reallocations]]","v":0},{"$f":"Dataset[[#This Row],[2028/29 From - Spending review Topic 1]]+Dataset[[#This Row],[2028/29 From - Spending review Topic 2]]+Dataset[[#This Row],[2028/29 From - Spending review Topic 3]]+Dataset[[#This Row],[2028/29 From - Spending review Topic 4]]+Dataset[[#This Row],[2028/29 From - Other reallocations]]","v":0},{"$f":"Dataset[[#This Row],[2029/30 From - Spending review Topic 1]]+Dataset[[#This Row],[2029/30 From - Spending review Topic 2]]+Dataset[[#This Row],[2029/30 From - Spending review Topic 3]]+Dataset[[#This Row],[2029/30 From - Spending review Topic 4]]+Dataset[[#This Row],[2029/30 From - Other reallocations]]","v":0},{"$f":"Dataset[[#This Row],[2027/28 To - Spending review Topic 1]]+Dataset[[#This Row],[2027/28 To - Spending review Topic 2]]+Dataset[[#This Row],[2027/28 To - Spending review Topic 3]]+Dataset[[#This Row],[2027/28 To - Spending review Topic 4]]+Dataset[[#This Row],[2027/28 To - Other reallocations]]","v":0},{"$f":"Dataset[[#This Row],[2028/29 To - Spending review Topic 1]]+Dataset[[#This Row],[2028/29 To - Spending review Topic 2]]+Dataset[[#This Row],[2028/29 To - Spending review Topic 3]]+Dataset[[#This Row],[2028/29 To - Spending review Topic 4]]+Dataset[[#This Row],[2028/29 To - Other reallocations]]","v":0},{"$f":"Dataset[[#This Row],[2029/30 To - Spending review Topic 1]]+Dataset[[#This Row],[2029/30 To - Spending review Topic 2]]+Dataset[[#This Row],[2029/30 To - Spending review Topic 3]]+Dataset[[#This Row],[2029/30 To - Spending review Topic 4]]+Dataset[[#This Row],[2029/30 To - Other reallocations]]","v":0},{"$f":"Dataset[[#This Row],[2027/28 Targeted savings]]+Dataset[[#This Row],[2027/28 From - Total]]","v":0},{"$f":"Dataset[[#This Row],[2028/29 Targeted savings]]+Dataset[[#This Row],[2028/29 From - Total]]","v":0},{"$f":"Dataset[[#This Row],[2029/30 Targeted savings]]+Dataset[[#This Row],[2029/30 From - Total]]","v":0},{"$f":"Dataset[[#This Row],[2026/27 Targeted savings]]","v":0},{"$f":"SUM(Dataset[[#This Row],[2027/28 Targeted savings]],Dataset[[#This Row],[2027/28 From - Total]],Dataset[[#This Row],[2027/28 To - Total]])","v":0},{"$f":"SUM(Dataset[[#This Row],[2028/29 Targeted savings]],Dataset[[#This Row],[2028/29 From - Total]],Dataset[[#This Row],[2028/29 To - Total]])","v":0},{"$f":"SUM(Dataset[[#This Row],[2029/30 Targeted savings]],Dataset[[#This Row],[2029/30 From - Total]],Dataset[[#This Row],[2029/30 To - Total]])","v":0},{"$f":"Dataset[[#This Row],[2026/27 Baseline]]+Dataset[[#This Row],[2026/27 Total change]]","v":0},{"$f":"Dataset[[#This Row],[2027/28 Baseline]]+Dataset[[#This Row],[2027/28 Total change]]","v":0},{"$f":"Dataset[[#This Row],[2028/29 Baseline]]+Dataset[[#This Row],[2028/29 Total change]]","v":0},{"$f":"Dataset[[#This Row],[2029/30 Baseline]]+Dataset[[#This Row],[2029/30 Total change]]","v":0}]
["NAT|Extension of loans for policy purposes","30|Payments for financial assets","2027_28","MTEC2027",30,3,3,32959,439,"30","03","03","032959","000439","30|03|03|000439","03","04","18","63","67","03|04|18|63|67","National","Communications and Digital Technologies","Media and Content","Public and Community Media Services","Extension of loans for policy purposes","Payments for financial assets","Payments for financial assets","Payments for financial assets","Payments for financial assets","Payments for financial assets","Economic development","Economic regulation and infrastructure","NAT",12477,0,0,0,0,0,0,0,0,0,0,null,null,null,null,null,null,null,null,null,null,null,null,null,null,null,null,null,null,null,null,null,null,null,null,null,null,null,null,null,null,null,null,null,null,{"$f":"Dataset[[#This Row],[2027/28 From - Spending review Topic 1]]+Dataset[[#This Row],[2027/28 From - Spending review Topic 2]]+Dataset[[#This Row],[2027/28 From - Spending review Topic 3]]+Dataset[[#This Row],[2027/28 From - Spending review Topic 4]]+Dataset[[#This Row],[2027/28 From - Other reallocations]]","v":0},{"$f":"Dataset[[#This Row],[2028/29 From - Spending review Topic 1]]+Dataset[[#This Row],[2028/29 From - Spending review Topic 2]]+Dataset[[#This Row],[2028/29 From - Spending review Topic 3]]+Dataset[[#This Row],[2028/29 From - Spending review Topic 4]]+Dataset[[#This Row],[2028/29 From - Other reallocations]]","v":0},{"$f":"Dataset[[#This Row],[2029/30 From - Spending review Topic 1]]+Dataset[[#This Row],[2029/30 From - Spending review Topic 2]]+Dataset[[#This Row],[2029/30 From - Spending review Topic 3]]+Dataset[[#This Row],[2029/30 From - Spending review Topic 4]]+Dataset[[#This Row],[2029/30 From - Other reallocations]]","v":0},{"$f":"Dataset[[#This Row],[2027/28 To - Spending review Topic 1]]+Dataset[[#This Row],[2027/28 To - Spending review Topic 2]]+Dataset[[#This Row],[2027/28 To - Spending review Topic 3]]+Dataset[[#This Row],[2027/28 To - Spending review Topic 4]]+Dataset[[#This Row],[2027/28 To - Other reallocations]]","v":0},{"$f":"Dataset[[#This Row],[2028/29 To - Spending review Topic 1]]+Dataset[[#This Row],[2028/29 To - Spending review Topic 2]]+Dataset[[#This Row],[2028/29 To - Spending review Topic 3]]+Dataset[[#This Row],[2028/29 To - Spending review Topic 4]]+Dataset[[#This Row],[2028/29 To - Other reallocations]]","v":0},{"$f":"Dataset[[#This Row],[2029/30 To - Spending review Topic 1]]+Dataset[[#This Row],[2029/30 To - Spending review Topic 2]]+Dataset[[#This Row],[2029/30 To - Spending review Topic 3]]+Dataset[[#This Row],[2029/30 To - Spending review Topic 4]]+Dataset[[#This Row],[2029/30 To - Other reallocations]]","v":0},{"$f":"Dataset[[#This Row],[2027/28 Targeted savings]]+Dataset[[#This Row],[2027/28 From - Total]]","v":0},{"$f":"Dataset[[#This Row],[2028/29 Targeted savings]]+Dataset[[#This Row],[2028/29 From - Total]]","v":0},{"$f":"Dataset[[#This Row],[2029/30 Targeted savings]]+Dataset[[#This Row],[2029/30 From - Total]]","v":0},{"$f":"Dataset[[#This Row],[2026/27 Targeted savings]]","v":0},{"$f":"SUM(Dataset[[#This Row],[2027/28 Targeted savings]],Dataset[[#This Row],[2027/28 From - Total]],Dataset[[#This Row],[2027/28 To - Total]])","v":0},{"$f":"SUM(Dataset[[#This Row],[2028/29 Targeted savings]],Dataset[[#This Row],[2028/29 From - Total]],Dataset[[#This Row],[2028/29 To - Total]])","v":0},{"$f":"SUM(Dataset[[#This Row],[2029/30 Targeted savings]],Dataset[[#This Row],[2029/30 From - Total]],Dataset[[#This Row],[2029/30 To - Total]])","v":0},{"$f":"Dataset[[#This Row],[2026/27 Baseline]]+Dataset[[#This Row],[2026/27 Total change]]","v":0},{"$f":"Dataset[[#This Row],[2027/28 Baseline]]+Dataset[[#This Row],[2027/28 Total change]]","v":0},{"$f":"Dataset[[#This Row],[2028/29 Baseline]]+Dataset[[#This Row],[2028/29 Total change]]","v":0},{"$f":"Dataset[[#This Row],[2029/30 Baseline]]+Dataset[[#This Row],[2029/30 Total change]]","v":0}]
["NAT|Non-transfer","30|Salaries and wages","2027_28","MTEC2027",30,3,4,32960,440,"30","03","04","032960","000440","30|03|04|000440","01","01","01","01","01","01|01|01|01|01","National","Communications and Digital Technologies","Media and Content","Audio-Visual and Digital Media Industry Support and Services","Non-transfer","Current","Current payments","Compensation of employees","Salaries and wages","Salaries and wages","Economic development","Economic regulation and infrastructure","NAT",8154,5316,5736,6630,5930,5930,0,9188,5190,7265,7484,null,null,null,null,null,null,null,null,null,null,null,null,null,null,null,null,null,null,null,null,null,null,null,null,null,null,null,null,null,null,null,null,null,null,{"$f":"Dataset[[#This Row],[2027/28 From - Spending review Topic 1]]+Dataset[[#This Row],[2027/28 From - Spending review Topic 2]]+Dataset[[#This Row],[2027/28 From - Spending review Topic 3]]+Dataset[[#This Row],[2027/28 From - Spending review Topic 4]]+Dataset[[#This Row],[2027/28 From - Other reallocations]]","v":0},{"$f":"Dataset[[#This Row],[2028/29 From - Spending review Topic 1]]+Dataset[[#This Row],[2028/29 From - Spending review Topic 2]]+Dataset[[#This Row],[2028/29 From - Spending review Topic 3]]+Dataset[[#This Row],[2028/29 From - Spending review Topic 4]]+Dataset[[#This Row],[2028/29 From - Other reallocations]]","v":0},{"$f":"Dataset[[#This Row],[2029/30 From - Spending review Topic 1]]+Dataset[[#This Row],[2029/30 From - Spending review Topic 2]]+Dataset[[#This Row],[2029/30 From - Spending review Topic 3]]+Dataset[[#This Row],[2029/30 From - Spending review Topic 4]]+Dataset[[#This Row],[2029/30 From - Other reallocations]]","v":0},{"$f":"Dataset[[#This Row],[2027/28 To - Spending review Topic 1]]+Dataset[[#This Row],[2027/28 To - Spending review Topic 2]]+Dataset[[#This Row],[2027/28 To - Spending review Topic 3]]+Dataset[[#This Row],[2027/28 To - Spending review Topic 4]]+Dataset[[#This Row],[2027/28 To - Other reallocations]]","v":0},{"$f":"Dataset[[#This Row],[2028/29 To - Spending review Topic 1]]+Dataset[[#This Row],[2028/29 To - Spending review Topic 2]]+Dataset[[#This Row],[2028/29 To - Spending review Topic 3]]+Dataset[[#This Row],[2028/29 To - Spending review Topic 4]]+Dataset[[#This Row],[2028/29 To - Other reallocations]]","v":0},{"$f":"Dataset[[#This Row],[2029/30 To - Spending review Topic 1]]+Dataset[[#This Row],[2029/30 To - Spending review Topic 2]]+Dataset[[#This Row],[2029/30 To - Spending review Topic 3]]+Dataset[[#This Row],[2029/30 To - Spending review Topic 4]]+Dataset[[#This Row],[2029/30 To - Other reallocations]]","v":0},{"$f":"Dataset[[#This Row],[2027/28 Targeted savings]]+Dataset[[#This Row],[2027/28 From - Total]]","v":0},{"$f":"Dataset[[#This Row],[2028/29 Targeted savings]]+Dataset[[#This Row],[2028/29 From - Total]]","v":0},{"$f":"Dataset[[#This Row],[2029/30 Targeted savings]]+Dataset[[#This Row],[2029/30 From - Total]]","v":0},{"$f":"Dataset[[#This Row],[2026/27 Targeted savings]]","v":0},{"$f":"SUM(Dataset[[#This Row],[2027/28 Targeted savings]],Dataset[[#This Row],[2027/28 From - Total]],Dataset[[#This Row],[2027/28 To - Total]])","v":0},{"$f":"SUM(Dataset[[#This Row],[2028/29 Targeted savings]],Dataset[[#This Row],[2028/29 From - Total]],Dataset[[#This Row],[2028/29 To - Total]])","v":0},{"$f":"SUM(Dataset[[#This Row],[2029/30 Targeted savings]],Dataset[[#This Row],[2029/30 From - Total]],Dataset[[#This Row],[2029/30 To - Total]])","v":0},{"$f":"Dataset[[#This Row],[2026/27 Baseline]]+Dataset[[#This Row],[2026/27 Total change]]","v":9188},{"$f":"Dataset[[#This Row],[2027/28 Baseline]]+Dataset[[#This Row],[2027/28 Total change]]","v":5190},{"$f":"Dataset[[#This Row],[2028/29 Baseline]]+Dataset[[#This Row],[2028/29 Total change]]","v":7265},{"$f":"Dataset[[#This Row],[2029/30 Baseline]]+Dataset[[#This Row],[2029/30 Total change]]","v":7484}]
["NAT|Non-transfer","30|Social contributions","2027_28","MTEC2027",30,3,4,32961,441,"30","03","04","032961","000441","30|03|04|000441","01","01","01","02","02","01|01|01|02|02","National","Communications and Digital Technologies","Media and Content","Audio-Visual and Digital Media Industry Support and Services","Non-transfer","Current","Current payments","Compensation of employees","Social contributions","Social contributions","Economic development","Economic regulation and infrastructure","NAT",437,611,646,769,669,669,0,399,418,431,444,null,null,null,null,null,null,null,null,null,null,null,null,null,null,null,null,null,null,null,null,null,null,null,null,null,null,null,null,null,null,null,null,null,null,{"$f":"Dataset[[#This Row],[2027/28 From - Spending review Topic 1]]+Dataset[[#This Row],[2027/28 From - Spending review Topic 2]]+Dataset[[#This Row],[2027/28 From - Spending review Topic 3]]+Dataset[[#This Row],[2027/28 From - Spending review Topic 4]]+Dataset[[#This Row],[2027/28 From - Other reallocations]]","v":0},{"$f":"Dataset[[#This Row],[2028/29 From - Spending review Topic 1]]+Dataset[[#This Row],[2028/29 From - Spending review Topic 2]]+Dataset[[#This Row],[2028/29 From - Spending review Topic 3]]+Dataset[[#This Row],[2028/29 From - Spending review Topic 4]]+Dataset[[#This Row],[2028/29 From - Other reallocations]]","v":0},{"$f":"Dataset[[#This Row],[2029/30 From - Spending review Topic 1]]+Dataset[[#This Row],[2029/30 From - Spending review Topic 2]]+Dataset[[#This Row],[2029/30 From - Spending review Topic 3]]+Dataset[[#This Row],[2029/30 From - Spending review Topic 4]]+Dataset[[#This Row],[2029/30 From - Other reallocations]]","v":0},{"$f":"Dataset[[#This Row],[2027/28 To - Spending review Topic 1]]+Dataset[[#This Row],[2027/28 To - Spending review Topic 2]]+Dataset[[#This Row],[2027/28 To - Spending review Topic 3]]+Dataset[[#This Row],[2027/28 To - Spending review Topic 4]]+Dataset[[#This Row],[2027/28 To - Other reallocations]]","v":0},{"$f":"Dataset[[#This Row],[2028/29 To - Spending review Topic 1]]+Dataset[[#This Row],[2028/29 To - Spending review Topic 2]]+Dataset[[#This Row],[2028/29 To - Spending review Topic 3]]+Dataset[[#This Row],[2028/29 To - Spending review Topic 4]]+Dataset[[#This Row],[2028/29 To - Other reallocations]]","v":0},{"$f":"Dataset[[#This Row],[2029/30 To - Spending review Topic 1]]+Dataset[[#This Row],[2029/30 To - Spending review Topic 2]]+Dataset[[#This Row],[2029/30 To - Spending review Topic 3]]+Dataset[[#This Row],[2029/30 To - Spending review Topic 4]]+Dataset[[#This Row],[2029/30 To - Other reallocations]]","v":0},{"$f":"Dataset[[#This Row],[2027/28 Targeted savings]]+Dataset[[#This Row],[2027/28 From - Total]]","v":0},{"$f":"Dataset[[#This Row],[2028/29 Targeted savings]]+Dataset[[#This Row],[2028/29 From - Total]]","v":0},{"$f":"Dataset[[#This Row],[2029/30 Targeted savings]]+Dataset[[#This Row],[2029/30 From - Total]]","v":0},{"$f":"Dataset[[#This Row],[2026/27 Targeted savings]]","v":0},{"$f":"SUM(Dataset[[#This Row],[2027/28 Targeted savings]],Dataset[[#This Row],[2027/28 From - Total]],Dataset[[#This Row],[2027/28 To - Total]])","v":0},{"$f":"SUM(Dataset[[#This Row],[2028/29 Targeted savings]],Dataset[[#This Row],[2028/29 From - Total]],Dataset[[#This Row],[2028/29 To - Total]])","v":0},{"$f":"SUM(Dataset[[#This Row],[2029/30 Targeted savings]],Dataset[[#This Row],[2029/30 From - Total]],Dataset[[#This Row],[2029/30 To - Total]])","v":0},{"$f":"Dataset[[#This Row],[2026/27 Baseline]]+Dataset[[#This Row],[2026/27 Total change]]","v":399},{"$f":"Dataset[[#This Row],[2027/28 Baseline]]+Dataset[[#This Row],[2027/28 Total change]]","v":418},{"$f":"Dataset[[#This Row],[2028/29 Baseline]]+Dataset[[#This Row],[2028/29 Total change]]","v":431},{"$f":"Dataset[[#This Row],[2029/30 Baseline]]+Dataset[[#This Row],[2029/30 Total change]]","v":444}]
["NAT|Non-transfer","30|Administrative fees","2027_28","MTEC2027",30,3,4,32962,442,"30","03","04","032962","000442","30|03|04|000442","01","01","02","03","03","01|01|02|03|03","National","Communications and Digital Technologies","Media and Content","Audio-Visual and Digital Media Industry Support and Services","Non-transfer","Current","Current payments","Goods and services","Administrative fees","Administrative fees","Economic development","Economic regulation and infrastructure","NAT",8,6,12,78,78,78,0,10,53,55,57,null,null,null,null,null,null,null,null,null,null,null,null,null,null,null,null,null,null,null,null,null,null,null,null,null,null,null,null,null,null,null,null,null,null,{"$f":"Dataset[[#This Row],[2027/28 From - Spending review Topic 1]]+Dataset[[#This Row],[2027/28 From - Spending review Topic 2]]+Dataset[[#This Row],[2027/28 From - Spending review Topic 3]]+Dataset[[#This Row],[2027/28 From - Spending review Topic 4]]+Dataset[[#This Row],[2027/28 From - Other reallocations]]","v":0},{"$f":"Dataset[[#This Row],[2028/29 From - Spending review Topic 1]]+Dataset[[#This Row],[2028/29 From - Spending review Topic 2]]+Dataset[[#This Row],[2028/29 From - Spending review Topic 3]]+Dataset[[#This Row],[2028/29 From - Spending review Topic 4]]+Dataset[[#This Row],[2028/29 From - Other reallocations]]","v":0},{"$f":"Dataset[[#This Row],[2029/30 From - Spending review Topic 1]]+Dataset[[#This Row],[2029/30 From - Spending review Topic 2]]+Dataset[[#This Row],[2029/30 From - Spending review Topic 3]]+Dataset[[#This Row],[2029/30 From - Spending review Topic 4]]+Dataset[[#This Row],[2029/30 From - Other reallocations]]","v":0},{"$f":"Dataset[[#This Row],[2027/28 To - Spending review Topic 1]]+Dataset[[#This Row],[2027/28 To - Spending review Topic 2]]+Dataset[[#This Row],[2027/28 To - Spending review Topic 3]]+Dataset[[#This Row],[2027/28 To - Spending review Topic 4]]+Dataset[[#This Row],[2027/28 To - Other reallocations]]","v":0},{"$f":"Dataset[[#This Row],[2028/29 To - Spending review Topic 1]]+Dataset[[#This Row],[2028/29 To - Spending review Topic 2]]+Dataset[[#This Row],[2028/29 To - Spending review Topic 3]]+Dataset[[#This Row],[2028/29 To - Spending review Topic 4]]+Dataset[[#This Row],[2028/29 To - Other reallocations]]","v":0},{"$f":"Dataset[[#This Row],[2029/30 To - Spending review Topic 1]]+Dataset[[#This Row],[2029/30 To - Spending review Topic 2]]+Dataset[[#This Row],[2029/30 To - Spending review Topic 3]]+Dataset[[#This Row],[2029/30 To - Spending review Topic 4]]+Dataset[[#This Row],[2029/30 To - Other reallocations]]","v":0},{"$f":"Dataset[[#This Row],[2027/28 Targeted savings]]+Dataset[[#This Row],[2027/28 From - Total]]","v":0},{"$f":"Dataset[[#This Row],[2028/29 Targeted savings]]+Dataset[[#This Row],[2028/29 From - Total]]","v":0},{"$f":"Dataset[[#This Row],[2029/30 Targeted savings]]+Dataset[[#This Row],[2029/30 From - Total]]","v":0},{"$f":"Dataset[[#This Row],[2026/27 Targeted savings]]","v":0},{"$f":"SUM(Dataset[[#This Row],[2027/28 Targeted savings]],Dataset[[#This Row],[2027/28 From - Total]],Dataset[[#This Row],[2027/28 To - Total]])","v":0},{"$f":"SUM(Dataset[[#This Row],[2028/29 Targeted savings]],Dataset[[#This Row],[2028/29 From - Total]],Dataset[[#This Row],[2028/29 To - Total]])","v":0},{"$f":"SUM(Dataset[[#This Row],[2029/30 Targeted savings]],Dataset[[#This Row],[2029/30 From - Total]],Dataset[[#This Row],[2029/30 To - Total]])","v":0},{"$f":"Dataset[[#This Row],[2026/27 Baseline]]+Dataset[[#This Row],[2026/27 Total change]]","v":10},{"$f":"Dataset[[#This Row],[2027/28 Baseline]]+Dataset[[#This Row],[2027/28 Total change]]","v":53},{"$f":"Dataset[[#This Row],[2028/29 Baseline]]+Dataset[[#This Row],[2028/29 Total change]]","v":55},{"$f":"Dataset[[#This Row],[2029/30 Baseline]]+Dataset[[#This Row],[2029/30 Total change]]","v":57}]
["NAT|Non-transfer","30|Minor assets","2027_28","MTEC2027",30,3,4,32963,443,"30","03","04","032963","000443","30|03|04|000443","01","01","02","05","05","01|01|02|05|05","National","Communications and Digital Technologies","Media and Content","Audio-Visual and Digital Media Industry Support and Services","Non-transfer","Current","Current payments","Goods and services","Minor assets","Minor assets","Economic development","Economic regulation and infrastructure","NAT",0,0,0,0,0,0,0,60,0,0,0,null,null,null,null,null,null,null,null,null,null,null,null,null,null,null,null,null,null,null,null,null,null,null,null,null,null,null,null,null,null,null,null,null,null,{"$f":"Dataset[[#This Row],[2027/28 From - Spending review Topic 1]]+Dataset[[#This Row],[2027/28 From - Spending review Topic 2]]+Dataset[[#This Row],[2027/28 From - Spending review Topic 3]]+Dataset[[#This Row],[2027/28 From - Spending review Topic 4]]+Dataset[[#This Row],[2027/28 From - Other reallocations]]","v":0},{"$f":"Dataset[[#This Row],[2028/29 From - Spending review Topic 1]]+Dataset[[#This Row],[2028/29 From - Spending review Topic 2]]+Dataset[[#This Row],[2028/29 From - Spending review Topic 3]]+Dataset[[#This Row],[2028/29 From - Spending review Topic 4]]+Dataset[[#This Row],[2028/29 From - Other reallocations]]","v":0},{"$f":"Dataset[[#This Row],[2029/30 From - Spending review Topic 1]]+Dataset[[#This Row],[2029/30 From - Spending review Topic 2]]+Dataset[[#This Row],[2029/30 From - Spending review Topic 3]]+Dataset[[#This Row],[2029/30 From - Spending review Topic 4]]+Dataset[[#This Row],[2029/30 From - Other reallocations]]","v":0},{"$f":"Dataset[[#This Row],[2027/28 To - Spending review Topic 1]]+Dataset[[#This Row],[2027/28 To - Spending review Topic 2]]+Dataset[[#This Row],[2027/28 To - Spending review Topic 3]]+Dataset[[#This Row],[2027/28 To - Spending review Topic 4]]+Dataset[[#This Row],[2027/28 To - Other reallocations]]","v":0},{"$f":"Dataset[[#This Row],[2028/29 To - Spending review Topic 1]]+Dataset[[#This Row],[2028/29 To - Spending review Topic 2]]+Dataset[[#This Row],[2028/29 To - Spending review Topic 3]]+Dataset[[#This Row],[2028/29 To - Spending review Topic 4]]+Dataset[[#This Row],[2028/29 To - Other reallocations]]","v":0},{"$f":"Dataset[[#This Row],[2029/30 To - Spending review Topic 1]]+Dataset[[#This Row],[2029/30 To - Spending review Topic 2]]+Dataset[[#This Row],[2029/30 To - Spending review Topic 3]]+Dataset[[#This Row],[2029/30 To - Spending review Topic 4]]+Dataset[[#This Row],[2029/30 To - Other reallocations]]","v":0},{"$f":"Dataset[[#This Row],[2027/28 Targeted savings]]+Dataset[[#This Row],[2027/28 From - Total]]","v":0},{"$f":"Dataset[[#This Row],[2028/29 Targeted savings]]+Dataset[[#This Row],[2028/29 From - Total]]","v":0},{"$f":"Dataset[[#This Row],[2029/30 Targeted savings]]+Dataset[[#This Row],[2029/30 From - Total]]","v":0},{"$f":"Dataset[[#This Row],[2026/27 Targeted savings]]","v":0},{"$f":"SUM(Dataset[[#This Row],[2027/28 Targeted savings]],Dataset[[#This Row],[2027/28 From - Total]],Dataset[[#This Row],[2027/28 To - Total]])","v":0},{"$f":"SUM(Dataset[[#This Row],[2028/29 Targeted savings]],Dataset[[#This Row],[2028/29 From - Total]],Dataset[[#This Row],[2028/29 To - Total]])","v":0},{"$f":"SUM(Dataset[[#This Row],[2029/30 Targeted savings]],Dataset[[#This Row],[2029/30 From - Total]],Dataset[[#This Row],[2029/30 To - Total]])","v":0},{"$f":"Dataset[[#This Row],[2026/27 Baseline]]+Dataset[[#This Row],[2026/27 Total change]]","v":60},{"$f":"Dataset[[#This Row],[2027/28 Baseline]]+Dataset[[#This Row],[2027/28 Total change]]","v":0},{"$f":"Dataset[[#This Row],[2028/29 Baseline]]+Dataset[[#This Row],[2028/29 Total change]]","v":0},{"$f":"Dataset[[#This Row],[2029/30 Baseline]]+Dataset[[#This Row],[2029/30 Total change]]","v":0}]
["NAT|Non-transfer","30|Catering: Departmental activities","2027_28","MTEC2027",30,3,4,32964,444,"30","03","04","032964","000444","30|03|04|000444","01","01","02","08","08","01|01|02|08|08","National","Communications and Digital Technologies","Media and Content","Audio-Visual and Digital Media Industry Support and Services","Non-transfer","Current","Current payments","Goods and services","Catering: Departmental activities","Catering: Departmental activities","Economic development","Economic regulation and infrastructure","NAT",0,0,0,0,0,0,0,50,0,0,0,null,null,null,null,null,null,null,null,null,null,null,null,null,null,null,null,null,null,null,null,null,null,null,null,null,null,null,null,null,null,null,null,null,null,{"$f":"Dataset[[#This Row],[2027/28 From - Spending review Topic 1]]+Dataset[[#This Row],[2027/28 From - Spending review Topic 2]]+Dataset[[#This Row],[2027/28 From - Spending review Topic 3]]+Dataset[[#This Row],[2027/28 From - Spending review Topic 4]]+Dataset[[#This Row],[2027/28 From - Other reallocations]]","v":0},{"$f":"Dataset[[#This Row],[2028/29 From - Spending review Topic 1]]+Dataset[[#This Row],[2028/29 From - Spending review Topic 2]]+Dataset[[#This Row],[2028/29 From - Spending review Topic 3]]+Dataset[[#This Row],[2028/29 From - Spending review Topic 4]]+Dataset[[#This Row],[2028/29 From - Other reallocations]]","v":0},{"$f":"Dataset[[#This Row],[2029/30 From - Spending review Topic 1]]+Dataset[[#This Row],[2029/30 From - Spending review Topic 2]]+Dataset[[#This Row],[2029/30 From - Spending review Topic 3]]+Dataset[[#This Row],[2029/30 From - Spending review Topic 4]]+Dataset[[#This Row],[2029/30 From - Other reallocations]]","v":0},{"$f":"Dataset[[#This Row],[2027/28 To - Spending review Topic 1]]+Dataset[[#This Row],[2027/28 To - Spending review Topic 2]]+Dataset[[#This Row],[2027/28 To - Spending review Topic 3]]+Dataset[[#This Row],[2027/28 To - Spending review Topic 4]]+Dataset[[#This Row],[2027/28 To - Other reallocations]]","v":0},{"$f":"Dataset[[#This Row],[2028/29 To - Spending review Topic 1]]+Dataset[[#This Row],[2028/29 To - Spending review Topic 2]]+Dataset[[#This Row],[2028/29 To - Spending review Topic 3]]+Dataset[[#This Row],[2028/29 To - Spending review Topic 4]]+Dataset[[#This Row],[2028/29 To - Other reallocations]]","v":0},{"$f":"Dataset[[#This Row],[2029/30 To - Spending review Topic 1]]+Dataset[[#This Row],[2029/30 To - Spending review Topic 2]]+Dataset[[#This Row],[2029/30 To - Spending review Topic 3]]+Dataset[[#This Row],[2029/30 To - Spending review Topic 4]]+Dataset[[#This Row],[2029/30 To - Other reallocations]]","v":0},{"$f":"Dataset[[#This Row],[2027/28 Targeted savings]]+Dataset[[#This Row],[2027/28 From - Total]]","v":0},{"$f":"Dataset[[#This Row],[2028/29 Targeted savings]]+Dataset[[#This Row],[2028/29 From - Total]]","v":0},{"$f":"Dataset[[#This Row],[2029/30 Targeted savings]]+Dataset[[#This Row],[2029/30 From - Total]]","v":0},{"$f":"Dataset[[#This Row],[2026/27 Targeted savings]]","v":0},{"$f":"SUM(Dataset[[#This Row],[2027/28 Targeted savings]],Dataset[[#This Row],[2027/28 From - Total]],Dataset[[#This Row],[2027/28 To - Total]])","v":0},{"$f":"SUM(Dataset[[#This Row],[2028/29 Targeted savings]],Dataset[[#This Row],[2028/29 From - Total]],Dataset[[#This Row],[2028/29 To - Total]])","v":0},{"$f":"SUM(Dataset[[#This Row],[2029/30 Targeted savings]],Dataset[[#This Row],[2029/30 From - Total]],Dataset[[#This Row],[2029/30 To - Total]])","v":0},{"$f":"Dataset[[#This Row],[2026/27 Baseline]]+Dataset[[#This Row],[2026/27 Total change]]","v":50},{"$f":"Dataset[[#This Row],[2027/28 Baseline]]+Dataset[[#This Row],[2027/28 Total change]]","v":0},{"$f":"Dataset[[#This Row],[2028/29 Baseline]]+Dataset[[#This Row],[2028/29 Total change]]","v":0},{"$f":"Dataset[[#This Row],[2029/30 Baseline]]+Dataset[[#This Row],[2029/30 Total change]]","v":0}]
["NAT|Non-transfer","30|Communication (G&S)","2027_28","MTEC2027",30,3,4,32965,445,"30","03","04","032965","000445","30|03|04|000445","01","01","02","09","09","01|01|02|09|09","National","Communications and Digital Technologies","Media and Content","Audio-Visual and Digital Media Industry Support and Services","Non-transfer","Current","Current payments","Goods and services","Communication (G&S)","Communication (G&S)","Economic development","Economic regulation and infrastructure","NAT",82,125,572,18,18,18,0,76,27,28,29,null,null,null,null,null,null,null,null,null,null,null,null,null,null,null,null,null,null,null,null,null,null,null,null,null,null,null,null,null,null,null,null,null,null,{"$f":"Dataset[[#This Row],[2027/28 From - Spending review Topic 1]]+Dataset[[#This Row],[2027/28 From - Spending review Topic 2]]+Dataset[[#This Row],[2027/28 From - Spending review Topic 3]]+Dataset[[#This Row],[2027/28 From - Spending review Topic 4]]+Dataset[[#This Row],[2027/28 From - Other reallocations]]","v":0},{"$f":"Dataset[[#This Row],[2028/29 From - Spending review Topic 1]]+Dataset[[#This Row],[2028/29 From - Spending review Topic 2]]+Dataset[[#This Row],[2028/29 From - Spending review Topic 3]]+Dataset[[#This Row],[2028/29 From - Spending review Topic 4]]+Dataset[[#This Row],[2028/29 From - Other reallocations]]","v":0},{"$f":"Dataset[[#This Row],[2029/30 From - Spending review Topic 1]]+Dataset[[#This Row],[2029/30 From - Spending review Topic 2]]+Dataset[[#This Row],[2029/30 From - Spending review Topic 3]]+Dataset[[#This Row],[2029/30 From - Spending review Topic 4]]+Dataset[[#This Row],[2029/30 From - Other reallocations]]","v":0},{"$f":"Dataset[[#This Row],[2027/28 To - Spending review Topic 1]]+Dataset[[#This Row],[2027/28 To - Spending review Topic 2]]+Dataset[[#This Row],[2027/28 To - Spending review Topic 3]]+Dataset[[#This Row],[2027/28 To - Spending review Topic 4]]+Dataset[[#This Row],[2027/28 To - Other reallocations]]","v":0},{"$f":"Dataset[[#This Row],[2028/29 To - Spending review Topic 1]]+Dataset[[#This Row],[2028/29 To - Spending review Topic 2]]+Dataset[[#This Row],[2028/29 To - Spending review Topic 3]]+Dataset[[#This Row],[2028/29 To - Spending review Topic 4]]+Dataset[[#This Row],[2028/29 To - Other reallocations]]","v":0},{"$f":"Dataset[[#This Row],[2029/30 To - Spending review Topic 1]]+Dataset[[#This Row],[2029/30 To - Spending review Topic 2]]+Dataset[[#This Row],[2029/30 To - Spending review Topic 3]]+Dataset[[#This Row],[2029/30 To - Spending review Topic 4]]+Dataset[[#This Row],[2029/30 To - Other reallocations]]","v":0},{"$f":"Dataset[[#This Row],[2027/28 Targeted savings]]+Dataset[[#This Row],[2027/28 From - Total]]","v":0},{"$f":"Dataset[[#This Row],[2028/29 Targeted savings]]+Dataset[[#This Row],[2028/29 From - Total]]","v":0},{"$f":"Dataset[[#This Row],[2029/30 Targeted savings]]+Dataset[[#This Row],[2029/30 From - Total]]","v":0},{"$f":"Dataset[[#This Row],[2026/27 Targeted savings]]","v":0},{"$f":"SUM(Dataset[[#This Row],[2027/28 Targeted savings]],Dataset[[#This Row],[2027/28 From - Total]],Dataset[[#This Row],[2027/28 To - Total]])","v":0},{"$f":"SUM(Dataset[[#This Row],[2028/29 Targeted savings]],Dataset[[#This Row],[2028/29 From - Total]],Dataset[[#This Row],[2028/29 To - Total]])","v":0},{"$f":"SUM(Dataset[[#This Row],[2029/30 Targeted savings]],Dataset[[#This Row],[2029/30 From - Total]],Dataset[[#This Row],[2029/30 To - Total]])","v":0},{"$f":"Dataset[[#This Row],[2026/27 Baseline]]+Dataset[[#This Row],[2026/27 Total change]]","v":76},{"$f":"Dataset[[#This Row],[2027/28 Baseline]]+Dataset[[#This Row],[2027/28 Total change]]","v":27},{"$f":"Dataset[[#This Row],[2028/29 Baseline]]+Dataset[[#This Row],[2028/29 Total change]]","v":28},{"$f":"Dataset[[#This Row],[2029/30 Baseline]]+Dataset[[#This Row],[2029/30 Total change]]","v":29}]
["NAT|Non-transfer","30|Consultants: Business and advisory services","2027_28","MTEC2027",30,3,4,32966,446,"30","03","04","032966","000446","30|03|04|000446","01","01","02","11","11","01|01|02|11|11","National","Communications and Digital Technologies","Media and Content","Audio-Visual and Digital Media Industry Support and Services","Non-transfer","Current","Current payments","Goods and services","Consultants: Business and advisory services","Consultants: Business and advisory services","Economic development","Economic regulation and infrastructure","NAT",0,0,0,0,2600,2600,0,6000,7380,2314,2384,null,null,null,null,null,null,null,null,null,null,null,null,null,null,null,null,null,null,null,null,null,null,null,null,null,null,null,null,null,null,null,null,null,null,{"$f":"Dataset[[#This Row],[2027/28 From - Spending review Topic 1]]+Dataset[[#This Row],[2027/28 From - Spending review Topic 2]]+Dataset[[#This Row],[2027/28 From - Spending review Topic 3]]+Dataset[[#This Row],[2027/28 From - Spending review Topic 4]]+Dataset[[#This Row],[2027/28 From - Other reallocations]]","v":0},{"$f":"Dataset[[#This Row],[2028/29 From - Spending review Topic 1]]+Dataset[[#This Row],[2028/29 From - Spending review Topic 2]]+Dataset[[#This Row],[2028/29 From - Spending review Topic 3]]+Dataset[[#This Row],[2028/29 From - Spending review Topic 4]]+Dataset[[#This Row],[2028/29 From - Other reallocations]]","v":0},{"$f":"Dataset[[#This Row],[2029/30 From - Spending review Topic 1]]+Dataset[[#This Row],[2029/30 From - Spending review Topic 2]]+Dataset[[#This Row],[2029/30 From - Spending review Topic 3]]+Dataset[[#This Row],[2029/30 From - Spending review Topic 4]]+Dataset[[#This Row],[2029/30 From - Other reallocations]]","v":0},{"$f":"Dataset[[#This Row],[2027/28 To - Spending review Topic 1]]+Dataset[[#This Row],[2027/28 To - Spending review Topic 2]]+Dataset[[#This Row],[2027/28 To - Spending review Topic 3]]+Dataset[[#This Row],[2027/28 To - Spending review Topic 4]]+Dataset[[#This Row],[2027/28 To - Other reallocations]]","v":0},{"$f":"Dataset[[#This Row],[2028/29 To - Spending review Topic 1]]+Dataset[[#This Row],[2028/29 To - Spending review Topic 2]]+Dataset[[#This Row],[2028/29 To - Spending review Topic 3]]+Dataset[[#This Row],[2028/29 To - Spending review Topic 4]]+Dataset[[#This Row],[2028/29 To - Other reallocations]]","v":0},{"$f":"Dataset[[#This Row],[2029/30 To - Spending review Topic 1]]+Dataset[[#This Row],[2029/30 To - Spending review Topic 2]]+Dataset[[#This Row],[2029/30 To - Spending review Topic 3]]+Dataset[[#This Row],[2029/30 To - Spending review Topic 4]]+Dataset[[#This Row],[2029/30 To - Other reallocations]]","v":0},{"$f":"Dataset[[#This Row],[2027/28 Targeted savings]]+Dataset[[#This Row],[2027/28 From - Total]]","v":0},{"$f":"Dataset[[#This Row],[2028/29 Targeted savings]]+Dataset[[#This Row],[2028/29 From - Total]]","v":0},{"$f":"Dataset[[#This Row],[2029/30 Targeted savings]]+Dataset[[#This Row],[2029/30 From - Total]]","v":0},{"$f":"Dataset[[#This Row],[2026/27 Targeted savings]]","v":0},{"$f":"SUM(Dataset[[#This Row],[2027/28 Targeted savings]],Dataset[[#This Row],[2027/28 From - Total]],Dataset[[#This Row],[2027/28 To - Total]])","v":0},{"$f":"SUM(Dataset[[#This Row],[2028/29 Targeted savings]],Dataset[[#This Row],[2028/29 From - Total]],Dataset[[#This Row],[2028/29 To - Total]])","v":0},{"$f":"SUM(Dataset[[#This Row],[2029/30 Targeted savings]],Dataset[[#This Row],[2029/30 From - Total]],Dataset[[#This Row],[2029/30 To - Total]])","v":0},{"$f":"Dataset[[#This Row],[2026/27 Baseline]]+Dataset[[#This Row],[2026/27 Total change]]","v":6000},{"$f":"Dataset[[#This Row],[2027/28 Baseline]]+Dataset[[#This Row],[2027/28 Total change]]","v":7380},{"$f":"Dataset[[#This Row],[2028/29 Baseline]]+Dataset[[#This Row],[2028/29 Total change]]","v":2314},{"$f":"Dataset[[#This Row],[2029/30 Baseline]]+Dataset[[#This Row],[2029/30 Total change]]","v":2384}]
["NAT|Non-transfer","30|Legal services (G&S)","2027_28","MTEC2027",30,3,4,32967,447,"30","03","04","032967","000447","30|03|04|000447","01","01","02","14","14","01|01|02|14|14","National","Communications and Digital Technologies","Media and Content","Audio-Visual and Digital Media Industry Support and Services","Non-transfer","Current","Current payments","Goods and services","Legal services (G&S)","Legal services (G&S)","Economic development","Economic regulation and infrastructure","NAT",0,0,0,0,0,0,0,0,1,331,341,null,null,null,null,null,null,null,null,null,null,null,null,null,null,null,null,null,null,null,null,null,null,null,null,null,null,null,null,null,null,null,null,null,null,{"$f":"Dataset[[#This Row],[2027/28 From - Spending review Topic 1]]+Dataset[[#This Row],[2027/28 From - Spending review Topic 2]]+Dataset[[#This Row],[2027/28 From - Spending review Topic 3]]+Dataset[[#This Row],[2027/28 From - Spending review Topic 4]]+Dataset[[#This Row],[2027/28 From - Other reallocations]]","v":0},{"$f":"Dataset[[#This Row],[2028/29 From - Spending review Topic 1]]+Dataset[[#This Row],[2028/29 From - Spending review Topic 2]]+Dataset[[#This Row],[2028/29 From - Spending review Topic 3]]+Dataset[[#This Row],[2028/29 From - Spending review Topic 4]]+Dataset[[#This Row],[2028/29 From - Other reallocations]]","v":0},{"$f":"Dataset[[#This Row],[2029/30 From - Spending review Topic 1]]+Dataset[[#This Row],[2029/30 From - Spending review Topic 2]]+Dataset[[#This Row],[2029/30 From - Spending review Topic 3]]+Dataset[[#This Row],[2029/30 From - Spending review Topic 4]]+Dataset[[#This Row],[2029/30 From - Other reallocations]]","v":0},{"$f":"Dataset[[#This Row],[2027/28 To - Spending review Topic 1]]+Dataset[[#This Row],[2027/28 To - Spending review Topic 2]]+Dataset[[#This Row],[2027/28 To - Spending review Topic 3]]+Dataset[[#This Row],[2027/28 To - Spending review Topic 4]]+Dataset[[#This Row],[2027/28 To - Other reallocations]]","v":0},{"$f":"Dataset[[#This Row],[2028/29 To - Spending review Topic 1]]+Dataset[[#This Row],[2028/29 To - Spending review Topic 2]]+Dataset[[#This Row],[2028/29 To - Spending review Topic 3]]+Dataset[[#This Row],[2028/29 To - Spending review Topic 4]]+Dataset[[#This Row],[2028/29 To - Other reallocations]]","v":0},{"$f":"Dataset[[#This Row],[2029/30 To - Spending review Topic 1]]+Dataset[[#This Row],[2029/30 To - Spending review Topic 2]]+Dataset[[#This Row],[2029/30 To - Spending review Topic 3]]+Dataset[[#This Row],[2029/30 To - Spending review Topic 4]]+Dataset[[#This Row],[2029/30 To - Other reallocations]]","v":0},{"$f":"Dataset[[#This Row],[2027/28 Targeted savings]]+Dataset[[#This Row],[2027/28 From - Total]]","v":0},{"$f":"Dataset[[#This Row],[2028/29 Targeted savings]]+Dataset[[#This Row],[2028/29 From - Total]]","v":0},{"$f":"Dataset[[#This Row],[2029/30 Targeted savings]]+Dataset[[#This Row],[2029/30 From - Total]]","v":0},{"$f":"Dataset[[#This Row],[2026/27 Targeted savings]]","v":0},{"$f":"SUM(Dataset[[#This Row],[2027/28 Targeted savings]],Dataset[[#This Row],[2027/28 From - Total]],Dataset[[#This Row],[2027/28 To - Total]])","v":0},{"$f":"SUM(Dataset[[#This Row],[2028/29 Targeted savings]],Dataset[[#This Row],[2028/29 From - Total]],Dataset[[#This Row],[2028/29 To - Total]])","v":0},{"$f":"SUM(Dataset[[#This Row],[2029/30 Targeted savings]],Dataset[[#This Row],[2029/30 From - Total]],Dataset[[#This Row],[2029/30 To - Total]])","v":0},{"$f":"Dataset[[#This Row],[2026/27 Baseline]]+Dataset[[#This Row],[2026/27 Total change]]","v":0},{"$f":"Dataset[[#This Row],[2027/28 Baseline]]+Dataset[[#This Row],[2027/28 Total change]]","v":1},{"$f":"Dataset[[#This Row],[2028/29 Baseline]]+Dataset[[#This Row],[2028/29 Total change]]","v":331},{"$f":"Dataset[[#This Row],[2029/30 Baseline]]+Dataset[[#This Row],[2029/30 Total change]]","v":341}]
["NAT|Non-transfer","30|Agency and support/outsourced services","2027_28","MTEC2027",30,3,4,32968,448,"30","03","04","032968","000448","30|03|04|000448","01","01","02","17","17","01|01|02|17|17","National","Communications and Digital Technologies","Media and Content","Audio-Visual and Digital Media Industry Support and Services","Non-transfer","Current","Current payments","Goods and services","Agency and support/outsourced services","Agency and support/outsourced services","Economic development","Economic regulation and infrastructure","NAT",0,0,0,0,0,0,0,0,0,249,256,null,null,null,null,null,null,null,null,null,null,null,null,null,null,null,null,null,null,null,null,null,null,null,null,null,null,null,null,null,null,null,null,null,null,{"$f":"Dataset[[#This Row],[2027/28 From - Spending review Topic 1]]+Dataset[[#This Row],[2027/28 From - Spending review Topic 2]]+Dataset[[#This Row],[2027/28 From - Spending review Topic 3]]+Dataset[[#This Row],[2027/28 From - Spending review Topic 4]]+Dataset[[#This Row],[2027/28 From - Other reallocations]]","v":0},{"$f":"Dataset[[#This Row],[2028/29 From - Spending review Topic 1]]+Dataset[[#This Row],[2028/29 From - Spending review Topic 2]]+Dataset[[#This Row],[2028/29 From - Spending review Topic 3]]+Dataset[[#This Row],[2028/29 From - Spending review Topic 4]]+Dataset[[#This Row],[2028/29 From - Other reallocations]]","v":0},{"$f":"Dataset[[#This Row],[2029/30 From - Spending review Topic 1]]+Dataset[[#This Row],[2029/30 From - Spending review Topic 2]]+Dataset[[#This Row],[2029/30 From - Spending review Topic 3]]+Dataset[[#This Row],[2029/30 From - Spending review Topic 4]]+Dataset[[#This Row],[2029/30 From - Other reallocations]]","v":0},{"$f":"Dataset[[#This Row],[2027/28 To - Spending review Topic 1]]+Dataset[[#This Row],[2027/28 To - Spending review Topic 2]]+Dataset[[#This Row],[2027/28 To - Spending review Topic 3]]+Dataset[[#This Row],[2027/28 To - Spending review Topic 4]]+Dataset[[#This Row],[2027/28 To - Other reallocations]]","v":0},{"$f":"Dataset[[#This Row],[2028/29 To - Spending review Topic 1]]+Dataset[[#This Row],[2028/29 To - Spending review Topic 2]]+Dataset[[#This Row],[2028/29 To - Spending review Topic 3]]+Dataset[[#This Row],[2028/29 To - Spending review Topic 4]]+Dataset[[#This Row],[2028/29 To - Other reallocations]]","v":0},{"$f":"Dataset[[#This Row],[2029/30 To - Spending review Topic 1]]+Dataset[[#This Row],[2029/30 To - Spending review Topic 2]]+Dataset[[#This Row],[2029/30 To - Spending review Topic 3]]+Dataset[[#This Row],[2029/30 To - Spending review Topic 4]]+Dataset[[#This Row],[2029/30 To - Other reallocations]]","v":0},{"$f":"Dataset[[#This Row],[2027/28 Targeted savings]]+Dataset[[#This Row],[2027/28 From - Total]]","v":0},{"$f":"Dataset[[#This Row],[2028/29 Targeted savings]]+Dataset[[#This Row],[2028/29 From - Total]]","v":0},{"$f":"Dataset[[#This Row],[2029/30 Targeted savings]]+Dataset[[#This Row],[2029/30 From - Total]]","v":0},{"$f":"Dataset[[#This Row],[2026/27 Targeted savings]]","v":0},{"$f":"SUM(Dataset[[#This Row],[2027/28 Targeted savings]],Dataset[[#This Row],[2027/28 From - Total]],Dataset[[#This Row],[2027/28 To - Total]])","v":0},{"$f":"SUM(Dataset[[#This Row],[2028/29 Targeted savings]],Dataset[[#This Row],[2028/29 From - Total]],Dataset[[#This Row],[2028/29 To - Total]])","v":0},{"$f":"SUM(Dataset[[#This Row],[2029/30 Targeted savings]],Dataset[[#This Row],[2029/30 From - Total]],Dataset[[#This Row],[2029/30 To - Total]])","v":0},{"$f":"Dataset[[#This Row],[2026/27 Baseline]]+Dataset[[#This Row],[2026/27 Total change]]","v":0},{"$f":"Dataset[[#This Row],[2027/28 Baseline]]+Dataset[[#This Row],[2027/28 Total change]]","v":0},{"$f":"Dataset[[#This Row],[2028/29 Baseline]]+Dataset[[#This Row],[2028/29 Total change]]","v":249},{"$f":"Dataset[[#This Row],[2029/30 Baseline]]+Dataset[[#This Row],[2029/30 Total change]]","v":256}]
["NAT|Non-transfer","30|Entertainment","2027_28","MTEC2027",30,3,4,32969,449,"30","03","04","032969","000449","30|03|04|000449","01","01","02","18","18","01|01|02|18|18","National","Communications and Digital Technologies","Media and Content","Audio-Visual and Digital Media Industry Support and Services","Non-transfer","Current","Current payments","Goods and services","Entertainment","Entertainment","Economic development","Economic regulation and infrastructure","NAT",0,0,0,0,0,0,0,0,45,46,47,null,null,null,null,null,null,null,null,null,null,null,null,null,null,null,null,null,null,null,null,null,null,null,null,null,null,null,null,null,null,null,null,null,null,{"$f":"Dataset[[#This Row],[2027/28 From - Spending review Topic 1]]+Dataset[[#This Row],[2027/28 From - Spending review Topic 2]]+Dataset[[#This Row],[2027/28 From - Spending review Topic 3]]+Dataset[[#This Row],[2027/28 From - Spending review Topic 4]]+Dataset[[#This Row],[2027/28 From - Other reallocations]]","v":0},{"$f":"Dataset[[#This Row],[2028/29 From - Spending review Topic 1]]+Dataset[[#This Row],[2028/29 From - Spending review Topic 2]]+Dataset[[#This Row],[2028/29 From - Spending review Topic 3]]+Dataset[[#This Row],[2028/29 From - Spending review Topic 4]]+Dataset[[#This Row],[2028/29 From - Other reallocations]]","v":0},{"$f":"Dataset[[#This Row],[2029/30 From - Spending review Topic 1]]+Dataset[[#This Row],[2029/30 From - Spending review Topic 2]]+Dataset[[#This Row],[2029/30 From - Spending review Topic 3]]+Dataset[[#This Row],[2029/30 From - Spending review Topic 4]]+Dataset[[#This Row],[2029/30 From - Other reallocations]]","v":0},{"$f":"Dataset[[#This Row],[2027/28 To - Spending review Topic 1]]+Dataset[[#This Row],[2027/28 To - Spending review Topic 2]]+Dataset[[#This Row],[2027/28 To - Spending review Topic 3]]+Dataset[[#This Row],[2027/28 To - Spending review Topic 4]]+Dataset[[#This Row],[2027/28 To - Other reallocations]]","v":0},{"$f":"Dataset[[#This Row],[2028/29 To - Spending review Topic 1]]+Dataset[[#This Row],[2028/29 To - Spending review Topic 2]]+Dataset[[#This Row],[2028/29 To - Spending review Topic 3]]+Dataset[[#This Row],[2028/29 To - Spending review Topic 4]]+Dataset[[#This Row],[2028/29 To - Other reallocations]]","v":0},{"$f":"Dataset[[#This Row],[2029/30 To - Spending review Topic 1]]+Dataset[[#This Row],[2029/30 To - Spending review Topic 2]]+Dataset[[#This Row],[2029/30 To - Spending review Topic 3]]+Dataset[[#This Row],[2029/30 To - Spending review Topic 4]]+Dataset[[#This Row],[2029/30 To - Other reallocations]]","v":0},{"$f":"Dataset[[#This Row],[2027/28 Targeted savings]]+Dataset[[#This Row],[2027/28 From - Total]]","v":0},{"$f":"Dataset[[#This Row],[2028/29 Targeted savings]]+Dataset[[#This Row],[2028/29 From - Total]]","v":0},{"$f":"Dataset[[#This Row],[2029/30 Targeted savings]]+Dataset[[#This Row],[2029/30 From - Total]]","v":0},{"$f":"Dataset[[#This Row],[2026/27 Targeted savings]]","v":0},{"$f":"SUM(Dataset[[#This Row],[2027/28 Targeted savings]],Dataset[[#This Row],[2027/28 From - Total]],Dataset[[#This Row],[2027/28 To - Total]])","v":0},{"$f":"SUM(Dataset[[#This Row],[2028/29 Targeted savings]],Dataset[[#This Row],[2028/29 From - Total]],Dataset[[#This Row],[2028/29 To - Total]])","v":0},{"$f":"SUM(Dataset[[#This Row],[2029/30 Targeted savings]],Dataset[[#This Row],[2029/30 From - Total]],Dataset[[#This Row],[2029/30 To - Total]])","v":0},{"$f":"Dataset[[#This Row],[2026/27 Baseline]]+Dataset[[#This Row],[2026/27 Total change]]","v":0},{"$f":"Dataset[[#This Row],[2027/28 Baseline]]+Dataset[[#This Row],[2027/28 Total change]]","v":45},{"$f":"Dataset[[#This Row],[2028/29 Baseline]]+Dataset[[#This Row],[2028/29 Total change]]","v":46},{"$f":"Dataset[[#This Row],[2029/30 Baseline]]+Dataset[[#This Row],[2029/30 Total change]]","v":47}]
["NAT|Non-transfer","30|Consumable supplies","2027_28","MTEC2027",30,3,4,32970,450,"30","03","04","032970","000450","30|03|04|000450","01","01","02","31","31","01|01|02|31|31","National","Communications and Digital Technologies","Media and Content","Audio-Visual and Digital Media Industry Support and Services","Non-transfer","Current","Current payments","Goods and services","Consumable supplies","Consumable supplies","Economic development","Economic regulation and infrastructure","NAT",1,0,0,0,0,0,0,15,27,28,29,null,null,null,null,null,null,null,null,null,null,null,null,null,null,null,null,null,null,null,null,null,null,null,null,null,null,null,null,null,null,null,null,null,null,{"$f":"Dataset[[#This Row],[2027/28 From - Spending review Topic 1]]+Dataset[[#This Row],[2027/28 From - Spending review Topic 2]]+Dataset[[#This Row],[2027/28 From - Spending review Topic 3]]+Dataset[[#This Row],[2027/28 From - Spending review Topic 4]]+Dataset[[#This Row],[2027/28 From - Other reallocations]]","v":0},{"$f":"Dataset[[#This Row],[2028/29 From - Spending review Topic 1]]+Dataset[[#This Row],[2028/29 From - Spending review Topic 2]]+Dataset[[#This Row],[2028/29 From - Spending review Topic 3]]+Dataset[[#This Row],[2028/29 From - Spending review Topic 4]]+Dataset[[#This Row],[2028/29 From - Other reallocations]]","v":0},{"$f":"Dataset[[#This Row],[2029/30 From - Spending review Topic 1]]+Dataset[[#This Row],[2029/30 From - Spending review Topic 2]]+Dataset[[#This Row],[2029/30 From - Spending review Topic 3]]+Dataset[[#This Row],[2029/30 From - Spending review Topic 4]]+Dataset[[#This Row],[2029/30 From - Other reallocations]]","v":0},{"$f":"Dataset[[#This Row],[2027/28 To - Spending review Topic 1]]+Dataset[[#This Row],[2027/28 To - Spending review Topic 2]]+Dataset[[#This Row],[2027/28 To - Spending review Topic 3]]+Dataset[[#This Row],[2027/28 To - Spending review Topic 4]]+Dataset[[#This Row],[2027/28 To - Other reallocations]]","v":0},{"$f":"Dataset[[#This Row],[2028/29 To - Spending review Topic 1]]+Dataset[[#This Row],[2028/29 To - Spending review Topic 2]]+Dataset[[#This Row],[2028/29 To - Spending review Topic 3]]+Dataset[[#This Row],[2028/29 To - Spending review Topic 4]]+Dataset[[#This Row],[2028/29 To - Other reallocations]]","v":0},{"$f":"Dataset[[#This Row],[2029/30 To - Spending review Topic 1]]+Dataset[[#This Row],[2029/30 To - Spending review Topic 2]]+Dataset[[#This Row],[2029/30 To - Spending review Topic 3]]+Dataset[[#This Row],[2029/30 To - Spending review Topic 4]]+Dataset[[#This Row],[2029/30 To - Other reallocations]]","v":0},{"$f":"Dataset[[#This Row],[2027/28 Targeted savings]]+Dataset[[#This Row],[2027/28 From - Total]]","v":0},{"$f":"Dataset[[#This Row],[2028/29 Targeted savings]]+Dataset[[#This Row],[2028/29 From - Total]]","v":0},{"$f":"Dataset[[#This Row],[2029/30 Targeted savings]]+Dataset[[#This Row],[2029/30 From - Total]]","v":0},{"$f":"Dataset[[#This Row],[2026/27 Targeted savings]]","v":0},{"$f":"SUM(Dataset[[#This Row],[2027/28 Targeted savings]],Dataset[[#This Row],[2027/28 From - Total]],Dataset[[#This Row],[2027/28 To - Total]])","v":0},{"$f":"SUM(Dataset[[#This Row],[2028/29 Targeted savings]],Dataset[[#This Row],[2028/29 From - Total]],Dataset[[#This Row],[2028/29 To - Total]])","v":0},{"$f":"SUM(Dataset[[#This Row],[2029/30 Targeted savings]],Dataset[[#This Row],[2029/30 From - Total]],Dataset[[#This Row],[2029/30 To - Total]])","v":0},{"$f":"Dataset[[#This Row],[2026/27 Baseline]]+Dataset[[#This Row],[2026/27 Total change]]","v":15},{"$f":"Dataset[[#This Row],[2027/28 Baseline]]+Dataset[[#This Row],[2027/28 Total change]]","v":27},{"$f":"Dataset[[#This Row],[2028/29 Baseline]]+Dataset[[#This Row],[2028/29 Total change]]","v":28},{"$f":"Dataset[[#This Row],[2029/30 Baseline]]+Dataset[[#This Row],[2029/30 Total change]]","v":29}]
["NAT|Non-transfer","30|Consumables: Stationery, printing and office supplies","2027_28","MTEC2027",30,3,4,32971,451,"30","03","04","032971","000451","30|03|04|000451","01","01","02","32","32","01|01|02|32|32","National","Communications and Digital Technologies","Media and Content","Audio-Visual and Digital Media Industry Support and Services","Non-transfer","Current","Current payments","Goods and services","Consumables: Stationery, printing and office supplies","Consumables: Stationery, printing and office supplies","Economic development","Economic regulation and infrastructure","NAT",22,0,0,0,0,0,0,0,254,262,270,null,null,null,null,null,null,null,null,null,null,null,null,null,null,null,null,null,null,null,null,null,null,null,null,null,null,null,null,null,null,null,null,null,null,{"$f":"Dataset[[#This Row],[2027/28 From - Spending review Topic 1]]+Dataset[[#This Row],[2027/28 From - Spending review Topic 2]]+Dataset[[#This Row],[2027/28 From - Spending review Topic 3]]+Dataset[[#This Row],[2027/28 From - Spending review Topic 4]]+Dataset[[#This Row],[2027/28 From - Other reallocations]]","v":0},{"$f":"Dataset[[#This Row],[2028/29 From - Spending review Topic 1]]+Dataset[[#This Row],[2028/29 From - Spending review Topic 2]]+Dataset[[#This Row],[2028/29 From - Spending review Topic 3]]+Dataset[[#This Row],[2028/29 From - Spending review Topic 4]]+Dataset[[#This Row],[2028/29 From - Other reallocations]]","v":0},{"$f":"Dataset[[#This Row],[2029/30 From - Spending review Topic 1]]+Dataset[[#This Row],[2029/30 From - Spending review Topic 2]]+Dataset[[#This Row],[2029/30 From - Spending review Topic 3]]+Dataset[[#This Row],[2029/30 From - Spending review Topic 4]]+Dataset[[#This Row],[2029/30 From - Other reallocations]]","v":0},{"$f":"Dataset[[#This Row],[2027/28 To - Spending review Topic 1]]+Dataset[[#This Row],[2027/28 To - Spending review Topic 2]]+Dataset[[#This Row],[2027/28 To - Spending review Topic 3]]+Dataset[[#This Row],[2027/28 To - Spending review Topic 4]]+Dataset[[#This Row],[2027/28 To - Other reallocations]]","v":0},{"$f":"Dataset[[#This Row],[2028/29 To - Spending review Topic 1]]+Dataset[[#This Row],[2028/29 To - Spending review Topic 2]]+Dataset[[#This Row],[2028/29 To - Spending review Topic 3]]+Dataset[[#This Row],[2028/29 To - Spending review Topic 4]]+Dataset[[#This Row],[2028/29 To - Other reallocations]]","v":0},{"$f":"Dataset[[#This Row],[2029/30 To - Spending review Topic 1]]+Dataset[[#This Row],[2029/30 To - Spending review Topic 2]]+Dataset[[#This Row],[2029/30 To - Spending review Topic 3]]+Dataset[[#This Row],[2029/30 To - Spending review Topic 4]]+Dataset[[#This Row],[2029/30 To - Other reallocations]]","v":0},{"$f":"Dataset[[#This Row],[2027/28 Targeted savings]]+Dataset[[#This Row],[2027/28 From - Total]]","v":0},{"$f":"Dataset[[#This Row],[2028/29 Targeted savings]]+Dataset[[#This Row],[2028/29 From - Total]]","v":0},{"$f":"Dataset[[#This Row],[2029/30 Targeted savings]]+Dataset[[#This Row],[2029/30 From - Total]]","v":0},{"$f":"Dataset[[#This Row],[2026/27 Targeted savings]]","v":0},{"$f":"SUM(Dataset[[#This Row],[2027/28 Targeted savings]],Dataset[[#This Row],[2027/28 From - Total]],Dataset[[#This Row],[2027/28 To - Total]])","v":0},{"$f":"SUM(Dataset[[#This Row],[2028/29 Targeted savings]],Dataset[[#This Row],[2028/29 From - Total]],Dataset[[#This Row],[2028/29 To - Total]])","v":0},{"$f":"SUM(Dataset[[#This Row],[2029/30 Targeted savings]],Dataset[[#This Row],[2029/30 From - Total]],Dataset[[#This Row],[2029/30 To - Total]])","v":0},{"$f":"Dataset[[#This Row],[2026/27 Baseline]]+Dataset[[#This Row],[2026/27 Total change]]","v":0},{"$f":"Dataset[[#This Row],[2027/28 Baseline]]+Dataset[[#This Row],[2027/28 Total change]]","v":254},{"$f":"Dataset[[#This Row],[2028/29 Baseline]]+Dataset[[#This Row],[2028/29 Total change]]","v":262},{"$f":"Dataset[[#This Row],[2029/30 Baseline]]+Dataset[[#This Row],[2029/30 Total change]]","v":270}]
["NAT|Non-transfer","30|Travel and subsistence","2027_28","MTEC2027",30,3,4,32972,452,"30","03","04","032972","000452","30|03|04|000452","01","01","02","37","37","01|01|02|37|37","National","Communications and Digital Technologies","Media and Content","Audio-Visual and Digital Media Industry Support and Services","Non-transfer","Current","Current payments","Goods and services","Travel and subsistence","Travel and subsistence","Economic development","Economic regulation and infrastructure","NAT",464,879,472,150,148,148,0,739,1241,1280,1319,null,null,null,null,null,null,null,null,null,null,null,null,null,null,null,null,null,null,null,null,null,null,null,null,null,null,null,null,null,null,null,null,null,null,{"$f":"Dataset[[#This Row],[2027/28 From - Spending review Topic 1]]+Dataset[[#This Row],[2027/28 From - Spending review Topic 2]]+Dataset[[#This Row],[2027/28 From - Spending review Topic 3]]+Dataset[[#This Row],[2027/28 From - Spending review Topic 4]]+Dataset[[#This Row],[2027/28 From - Other reallocations]]","v":0},{"$f":"Dataset[[#This Row],[2028/29 From - Spending review Topic 1]]+Dataset[[#This Row],[2028/29 From - Spending review Topic 2]]+Dataset[[#This Row],[2028/29 From - Spending review Topic 3]]+Dataset[[#This Row],[2028/29 From - Spending review Topic 4]]+Dataset[[#This Row],[2028/29 From - Other reallocations]]","v":0},{"$f":"Dataset[[#This Row],[2029/30 From - Spending review Topic 1]]+Dataset[[#This Row],[2029/30 From - Spending review Topic 2]]+Dataset[[#This Row],[2029/30 From - Spending review Topic 3]]+Dataset[[#This Row],[2029/30 From - Spending review Topic 4]]+Dataset[[#This Row],[2029/30 From - Other reallocations]]","v":0},{"$f":"Dataset[[#This Row],[2027/28 To - Spending review Topic 1]]+Dataset[[#This Row],[2027/28 To - Spending review Topic 2]]+Dataset[[#This Row],[2027/28 To - Spending review Topic 3]]+Dataset[[#This Row],[2027/28 To - Spending review Topic 4]]+Dataset[[#This Row],[2027/28 To - Other reallocations]]","v":0},{"$f":"Dataset[[#This Row],[2028/29 To - Spending review Topic 1]]+Dataset[[#This Row],[2028/29 To - Spending review Topic 2]]+Dataset[[#This Row],[2028/29 To - Spending review Topic 3]]+Dataset[[#This Row],[2028/29 To - Spending review Topic 4]]+Dataset[[#This Row],[2028/29 To - Other reallocations]]","v":0},{"$f":"Dataset[[#This Row],[2029/30 To - Spending review Topic 1]]+Dataset[[#This Row],[2029/30 To - Spending review Topic 2]]+Dataset[[#This Row],[2029/30 To - Spending review Topic 3]]+Dataset[[#This Row],[2029/30 To - Spending review Topic 4]]+Dataset[[#This Row],[2029/30 To - Other reallocations]]","v":0},{"$f":"Dataset[[#This Row],[2027/28 Targeted savings]]+Dataset[[#This Row],[2027/28 From - Total]]","v":0},{"$f":"Dataset[[#This Row],[2028/29 Targeted savings]]+Dataset[[#This Row],[2028/29 From - Total]]","v":0},{"$f":"Dataset[[#This Row],[2029/30 Targeted savings]]+Dataset[[#This Row],[2029/30 From - Total]]","v":0},{"$f":"Dataset[[#This Row],[2026/27 Targeted savings]]","v":0},{"$f":"SUM(Dataset[[#This Row],[2027/28 Targeted savings]],Dataset[[#This Row],[2027/28 From - Total]],Dataset[[#This Row],[2027/28 To - Total]])","v":0},{"$f":"SUM(Dataset[[#This Row],[2028/29 Targeted savings]],Dataset[[#This Row],[2028/29 From - Total]],Dataset[[#This Row],[2028/29 To - Total]])","v":0},{"$f":"SUM(Dataset[[#This Row],[2029/30 Targeted savings]],Dataset[[#This Row],[2029/30 From - Total]],Dataset[[#This Row],[2029/30 To - Total]])","v":0},{"$f":"Dataset[[#This Row],[2026/27 Baseline]]+Dataset[[#This Row],[2026/27 Total change]]","v":739},{"$f":"Dataset[[#This Row],[2027/28 Baseline]]+Dataset[[#This Row],[2027/28 Total change]]","v":1241},{"$f":"Dataset[[#This Row],[2028/29 Baseline]]+Dataset[[#This Row],[2028/29 Total change]]","v":1280},{"$f":"Dataset[[#This Row],[2029/30 Baseline]]+Dataset[[#This Row],[2029/30 Total change]]","v":1319}]
["NAT|Non-transfer","30|Training and development","2027_28","MTEC2027",30,3,4,32973,453,"30","03","04","032973","000453","30|03|04|000453","01","01","02","38","38","01|01|02|38|38","National","Communications and Digital Technologies","Media and Content","Audio-Visual and Digital Media Industry Support and Services","Non-transfer","Current","Current payments","Goods and services","Training and development","Training and development","Economic development","Economic regulation and infrastructure","NAT",39,0,0,70,70,70,0,0,0,0,0,null,null,null,null,null,null,null,null,null,null,null,null,null,null,null,null,null,null,null,null,null,null,null,null,null,null,null,null,null,null,null,null,null,null,{"$f":"Dataset[[#This Row],[2027/28 From - Spending review Topic 1]]+Dataset[[#This Row],[2027/28 From - Spending review Topic 2]]+Dataset[[#This Row],[2027/28 From - Spending review Topic 3]]+Dataset[[#This Row],[2027/28 From - Spending review Topic 4]]+Dataset[[#This Row],[2027/28 From - Other reallocations]]","v":0},{"$f":"Dataset[[#This Row],[2028/29 From - Spending review Topic 1]]+Dataset[[#This Row],[2028/29 From - Spending review Topic 2]]+Dataset[[#This Row],[2028/29 From - Spending review Topic 3]]+Dataset[[#This Row],[2028/29 From - Spending review Topic 4]]+Dataset[[#This Row],[2028/29 From - Other reallocations]]","v":0},{"$f":"Dataset[[#This Row],[2029/30 From - Spending review Topic 1]]+Dataset[[#This Row],[2029/30 From - Spending review Topic 2]]+Dataset[[#This Row],[2029/30 From - Spending review Topic 3]]+Dataset[[#This Row],[2029/30 From - Spending review Topic 4]]+Dataset[[#This Row],[2029/30 From - Other reallocations]]","v":0},{"$f":"Dataset[[#This Row],[2027/28 To - Spending review Topic 1]]+Dataset[[#This Row],[2027/28 To - Spending review Topic 2]]+Dataset[[#This Row],[2027/28 To - Spending review Topic 3]]+Dataset[[#This Row],[2027/28 To - Spending review Topic 4]]+Dataset[[#This Row],[2027/28 To - Other reallocations]]","v":0},{"$f":"Dataset[[#This Row],[2028/29 To - Spending review Topic 1]]+Dataset[[#This Row],[2028/29 To - Spending review Topic 2]]+Dataset[[#This Row],[2028/29 To - Spending review Topic 3]]+Dataset[[#This Row],[2028/29 To - Spending review Topic 4]]+Dataset[[#This Row],[2028/29 To - Other reallocations]]","v":0},{"$f":"Dataset[[#This Row],[2029/30 To - Spending review Topic 1]]+Dataset[[#This Row],[2029/30 To - Spending review Topic 2]]+Dataset[[#This Row],[2029/30 To - Spending review Topic 3]]+Dataset[[#This Row],[2029/30 To - Spending review Topic 4]]+Dataset[[#This Row],[2029/30 To - Other reallocations]]","v":0},{"$f":"Dataset[[#This Row],[2027/28 Targeted savings]]+Dataset[[#This Row],[2027/28 From - Total]]","v":0},{"$f":"Dataset[[#This Row],[2028/29 Targeted savings]]+Dataset[[#This Row],[2028/29 From - Total]]","v":0},{"$f":"Dataset[[#This Row],[2029/30 Targeted savings]]+Dataset[[#This Row],[2029/30 From - Total]]","v":0},{"$f":"Dataset[[#This Row],[2026/27 Targeted savings]]","v":0},{"$f":"SUM(Dataset[[#This Row],[2027/28 Targeted savings]],Dataset[[#This Row],[2027/28 From - Total]],Dataset[[#This Row],[2027/28 To - Total]])","v":0},{"$f":"SUM(Dataset[[#This Row],[2028/29 Targeted savings]],Dataset[[#This Row],[2028/29 From - Total]],Dataset[[#This Row],[2028/29 To - Total]])","v":0},{"$f":"SUM(Dataset[[#This Row],[2029/30 Targeted savings]],Dataset[[#This Row],[2029/30 From - Total]],Dataset[[#This Row],[2029/30 To - Total]])","v":0},{"$f":"Dataset[[#This Row],[2026/27 Baseline]]+Dataset[[#This Row],[2026/27 Total change]]","v":0},{"$f":"Dataset[[#This Row],[2027/28 Baseline]]+Dataset[[#This Row],[2027/28 Total change]]","v":0},{"$f":"Dataset[[#This Row],[2028/29 Baseline]]+Dataset[[#This Row],[2028/29 Total change]]","v":0},{"$f":"Dataset[[#This Row],[2029/30 Baseline]]+Dataset[[#This Row],[2029/30 Total change]]","v":0}]
["NAT|Non-transfer","30|Venues and facilities","2027_28","MTEC2027",30,3,4,32974,454,"30","03","04","032974","000454","30|03|04|000454","01","01","02","40","40","01|01|02|40|40","National","Communications and Digital Technologies","Media and Content","Audio-Visual and Digital Media Industry Support and Services","Non-transfer","Current","Current payments","Goods and services","Venues and facilities","Venues and facilities","Economic development","Economic regulation and infrastructure","NAT",0,0,0,683,683,683,0,100,620,639,658,null,null,null,null,null,null,null,null,null,null,null,null,null,null,null,null,null,null,null,null,null,null,null,null,null,null,null,null,null,null,null,null,null,null,{"$f":"Dataset[[#This Row],[2027/28 From - Spending review Topic 1]]+Dataset[[#This Row],[2027/28 From - Spending review Topic 2]]+Dataset[[#This Row],[2027/28 From - Spending review Topic 3]]+Dataset[[#This Row],[2027/28 From - Spending review Topic 4]]+Dataset[[#This Row],[2027/28 From - Other reallocations]]","v":0},{"$f":"Dataset[[#This Row],[2028/29 From - Spending review Topic 1]]+Dataset[[#This Row],[2028/29 From - Spending review Topic 2]]+Dataset[[#This Row],[2028/29 From - Spending review Topic 3]]+Dataset[[#This Row],[2028/29 From - Spending review Topic 4]]+Dataset[[#This Row],[2028/29 From - Other reallocations]]","v":0},{"$f":"Dataset[[#This Row],[2029/30 From - Spending review Topic 1]]+Dataset[[#This Row],[2029/30 From - Spending review Topic 2]]+Dataset[[#This Row],[2029/30 From - Spending review Topic 3]]+Dataset[[#This Row],[2029/30 From - Spending review Topic 4]]+Dataset[[#This Row],[2029/30 From - Other reallocations]]","v":0},{"$f":"Dataset[[#This Row],[2027/28 To - Spending review Topic 1]]+Dataset[[#This Row],[2027/28 To - Spending review Topic 2]]+Dataset[[#This Row],[2027/28 To - Spending review Topic 3]]+Dataset[[#This Row],[2027/28 To - Spending review Topic 4]]+Dataset[[#This Row],[2027/28 To - Other reallocations]]","v":0},{"$f":"Dataset[[#This Row],[2028/29 To - Spending review Topic 1]]+Dataset[[#This Row],[2028/29 To - Spending review Topic 2]]+Dataset[[#This Row],[2028/29 To - Spending review Topic 3]]+Dataset[[#This Row],[2028/29 To - Spending review Topic 4]]+Dataset[[#This Row],[2028/29 To - Other reallocations]]","v":0},{"$f":"Dataset[[#This Row],[2029/30 To - Spending review Topic 1]]+Dataset[[#This Row],[2029/30 To - Spending review Topic 2]]+Dataset[[#This Row],[2029/30 To - Spending review Topic 3]]+Dataset[[#This Row],[2029/30 To - Spending review Topic 4]]+Dataset[[#This Row],[2029/30 To - Other reallocations]]","v":0},{"$f":"Dataset[[#This Row],[2027/28 Targeted savings]]+Dataset[[#This Row],[2027/28 From - Total]]","v":0},{"$f":"Dataset[[#This Row],[2028/29 Targeted savings]]+Dataset[[#This Row],[2028/29 From - Total]]","v":0},{"$f":"Dataset[[#This Row],[2029/30 Targeted savings]]+Dataset[[#This Row],[2029/30 From - Total]]","v":0},{"$f":"Dataset[[#This Row],[2026/27 Targeted savings]]","v":0},{"$f":"SUM(Dataset[[#This Row],[2027/28 Targeted savings]],Dataset[[#This Row],[2027/28 From - Total]],Dataset[[#This Row],[2027/28 To - Total]])","v":0},{"$f":"SUM(Dataset[[#This Row],[2028/29 Targeted savings]],Dataset[[#This Row],[2028/29 From - Total]],Dataset[[#This Row],[2028/29 To - Total]])","v":0},{"$f":"SUM(Dataset[[#This Row],[2029/30 Targeted savings]],Dataset[[#This Row],[2029/30 From - Total]],Dataset[[#This Row],[2029/30 To - Total]])","v":0},{"$f":"Dataset[[#This Row],[2026/27 Baseline]]+Dataset[[#This Row],[2026/27 Total change]]","v":100},{"$f":"Dataset[[#This Row],[2027/28 Baseline]]+Dataset[[#This Row],[2027/28 Total change]]","v":620},{"$f":"Dataset[[#This Row],[2028/29 Baseline]]+Dataset[[#This Row],[2028/29 Total change]]","v":639},{"$f":"Dataset[[#This Row],[2029/30 Baseline]]+Dataset[[#This Row],[2029/30 Total change]]","v":658}]
["NAT|Households","30|Social benefits","2027_28","MTEC2027",30,3,4,32975,455,"30","03","04","032975","000455","30|03|04|000455","01","02","10","52","56","01|02|10|52|56","National","Communications and Digital Technologies","Media and Content","Audio-Visual and Digital Media Industry Support and Services","Households","Current","Transfers and subsidies","Households","Social benefits","Social benefits","Economic development","Economic regulation and infrastructure","NAT",312,117,77,0,0,0,0,0,0,0,0,null,null,null,null,null,null,null,null,null,null,null,null,null,null,null,null,null,null,null,null,null,null,null,null,null,null,null,null,null,null,null,null,null,null,{"$f":"Dataset[[#This Row],[2027/28 From - Spending review Topic 1]]+Dataset[[#This Row],[2027/28 From - Spending review Topic 2]]+Dataset[[#This Row],[2027/28 From - Spending review Topic 3]]+Dataset[[#This Row],[2027/28 From - Spending review Topic 4]]+Dataset[[#This Row],[2027/28 From - Other reallocations]]","v":0},{"$f":"Dataset[[#This Row],[2028/29 From - Spending review Topic 1]]+Dataset[[#This Row],[2028/29 From - Spending review Topic 2]]+Dataset[[#This Row],[2028/29 From - Spending review Topic 3]]+Dataset[[#This Row],[2028/29 From - Spending review Topic 4]]+Dataset[[#This Row],[2028/29 From - Other reallocations]]","v":0},{"$f":"Dataset[[#This Row],[2029/30 From - Spending review Topic 1]]+Dataset[[#This Row],[2029/30 From - Spending review Topic 2]]+Dataset[[#This Row],[2029/30 From - Spending review Topic 3]]+Dataset[[#This Row],[2029/30 From - Spending review Topic 4]]+Dataset[[#This Row],[2029/30 From - Other reallocations]]","v":0},{"$f":"Dataset[[#This Row],[2027/28 To - Spending review Topic 1]]+Dataset[[#This Row],[2027/28 To - Spending review Topic 2]]+Dataset[[#This Row],[2027/28 To - Spending review Topic 3]]+Dataset[[#This Row],[2027/28 To - Spending review Topic 4]]+Dataset[[#This Row],[2027/28 To - Other reallocations]]","v":0},{"$f":"Dataset[[#This Row],[2028/29 To - Spending review Topic 1]]+Dataset[[#This Row],[2028/29 To - Spending review Topic 2]]+Dataset[[#This Row],[2028/29 To - Spending review Topic 3]]+Dataset[[#This Row],[2028/29 To - Spending review Topic 4]]+Dataset[[#This Row],[2028/29 To - Other reallocations]]","v":0},{"$f":"Dataset[[#This Row],[2029/30 To - Spending review Topic 1]]+Dataset[[#This Row],[2029/30 To - Spending review Topic 2]]+Dataset[[#This Row],[2029/30 To - Spending review Topic 3]]+Dataset[[#This Row],[2029/30 To - Spending review Topic 4]]+Dataset[[#This Row],[2029/30 To - Other reallocations]]","v":0},{"$f":"Dataset[[#This Row],[2027/28 Targeted savings]]+Dataset[[#This Row],[2027/28 From - Total]]","v":0},{"$f":"Dataset[[#This Row],[2028/29 Targeted savings]]+Dataset[[#This Row],[2028/29 From - Total]]","v":0},{"$f":"Dataset[[#This Row],[2029/30 Targeted savings]]+Dataset[[#This Row],[2029/30 From - Total]]","v":0},{"$f":"Dataset[[#This Row],[2026/27 Targeted savings]]","v":0},{"$f":"SUM(Dataset[[#This Row],[2027/28 Targeted savings]],Dataset[[#This Row],[2027/28 From - Total]],Dataset[[#This Row],[2027/28 To - Total]])","v":0},{"$f":"SUM(Dataset[[#This Row],[2028/29 Targeted savings]],Dataset[[#This Row],[2028/29 From - Total]],Dataset[[#This Row],[2028/29 To - Total]])","v":0},{"$f":"SUM(Dataset[[#This Row],[2029/30 Targeted savings]],Dataset[[#This Row],[2029/30 From - Total]],Dataset[[#This Row],[2029/30 To - Total]])","v":0},{"$f":"Dataset[[#This Row],[2026/27 Baseline]]+Dataset[[#This Row],[2026/27 Total change]]","v":0},{"$f":"Dataset[[#This Row],[2027/28 Baseline]]+Dataset[[#This Row],[2027/28 Total change]]","v":0},{"$f":"Dataset[[#This Row],[2028/29 Baseline]]+Dataset[[#This Row],[2028/29 Total change]]","v":0},{"$f":"Dataset[[#This Row],[2029/30 Baseline]]+Dataset[[#This Row],[2029/30 Total change]]","v":0}]
["NAT|Households","30|Other transfers to households","2027_28","MTEC2027",30,3,4,32976,456,"30","03","04","032976","000456","30|03|04|000456","01","02","10","53","57","01|02|10|53|57","National","Communications and Digital Technologies","Media and Content","Audio-Visual and Digital Media Industry Support and Services","Households","Current","Transfers and subsidies","Households","Other transfers to households","Other transfers to households","Economic development","Economic regulation and infrastructure","NAT",0,0,0,0,2,2,0,0,0,0,0,null,null,null,null,null,null,null,null,null,null,null,null,null,null,null,null,null,null,null,null,null,null,null,null,null,null,null,null,null,null,null,null,null,null,{"$f":"Dataset[[#This Row],[2027/28 From - Spending review Topic 1]]+Dataset[[#This Row],[2027/28 From - Spending review Topic 2]]+Dataset[[#This Row],[2027/28 From - Spending review Topic 3]]+Dataset[[#This Row],[2027/28 From - Spending review Topic 4]]+Dataset[[#This Row],[2027/28 From - Other reallocations]]","v":0},{"$f":"Dataset[[#This Row],[2028/29 From - Spending review Topic 1]]+Dataset[[#This Row],[2028/29 From - Spending review Topic 2]]+Dataset[[#This Row],[2028/29 From - Spending review Topic 3]]+Dataset[[#This Row],[2028/29 From - Spending review Topic 4]]+Dataset[[#This Row],[2028/29 From - Other reallocations]]","v":0},{"$f":"Dataset[[#This Row],[2029/30 From - Spending review Topic 1]]+Dataset[[#This Row],[2029/30 From - Spending review Topic 2]]+Dataset[[#This Row],[2029/30 From - Spending review Topic 3]]+Dataset[[#This Row],[2029/30 From - Spending review Topic 4]]+Dataset[[#This Row],[2029/30 From - Other reallocations]]","v":0},{"$f":"Dataset[[#This Row],[2027/28 To - Spending review Topic 1]]+Dataset[[#This Row],[2027/28 To - Spending review Topic 2]]+Dataset[[#This Row],[2027/28 To - Spending review Topic 3]]+Dataset[[#This Row],[2027/28 To - Spending review Topic 4]]+Dataset[[#This Row],[2027/28 To - Other reallocations]]","v":0},{"$f":"Dataset[[#This Row],[2028/29 To - Spending review Topic 1]]+Dataset[[#This Row],[2028/29 To - Spending review Topic 2]]+Dataset[[#This Row],[2028/29 To - Spending review Topic 3]]+Dataset[[#This Row],[2028/29 To - Spending review Topic 4]]+Dataset[[#This Row],[2028/29 To - Other reallocations]]","v":0},{"$f":"Dataset[[#This Row],[2029/30 To - Spending review Topic 1]]+Dataset[[#This Row],[2029/30 To - Spending review Topic 2]]+Dataset[[#This Row],[2029/30 To - Spending review Topic 3]]+Dataset[[#This Row],[2029/30 To - Spending review Topic 4]]+Dataset[[#This Row],[2029/30 To - Other reallocations]]","v":0},{"$f":"Dataset[[#This Row],[2027/28 Targeted savings]]+Dataset[[#This Row],[2027/28 From - Total]]","v":0},{"$f":"Dataset[[#This Row],[2028/29 Targeted savings]]+Dataset[[#This Row],[2028/29 From - Total]]","v":0},{"$f":"Dataset[[#This Row],[2029/30 Targeted savings]]+Dataset[[#This Row],[2029/30 From - Total]]","v":0},{"$f":"Dataset[[#This Row],[2026/27 Targeted savings]]","v":0},{"$f":"SUM(Dataset[[#This Row],[2027/28 Targeted savings]],Dataset[[#This Row],[2027/28 From - Total]],Dataset[[#This Row],[2027/28 To - Total]])","v":0},{"$f":"SUM(Dataset[[#This Row],[2028/29 Targeted savings]],Dataset[[#This Row],[2028/29 From - Total]],Dataset[[#This Row],[2028/29 To - Total]])","v":0},{"$f":"SUM(Dataset[[#This Row],[2029/30 Targeted savings]],Dataset[[#This Row],[2029/30 From - Total]],Dataset[[#This Row],[2029/30 To - Total]])","v":0},{"$f":"Dataset[[#This Row],[2026/27 Baseline]]+Dataset[[#This Row],[2026/27 Total change]]","v":0},{"$f":"Dataset[[#This Row],[2027/28 Baseline]]+Dataset[[#This Row],[2027/28 Total change]]","v":0},{"$f":"Dataset[[#This Row],[2028/29 Baseline]]+Dataset[[#This Row],[2028/29 Total change]]","v":0},{"$f":"Dataset[[#This Row],[2029/30 Baseline]]+Dataset[[#This Row],[2029/30 Total change]]","v":0}]
["NAT|Non-transfer","30|Other machinery and equipment","2027_28","MTEC2027",30,3,4,32977,457,"30","03","04","032977","000457","30|03|04|000457","02","03","12","57","61","02|03|12|57|61","National","Communications and Digital Technologies","Media and Content","Audio-Visual and Digital Media Industry Support and Services","Non-transfer","Capital","Payments for capital assets","Machinery and equipment","Other machinery and equipment","Other machinery and equipment","Economic development","Economic regulation and infrastructure","NAT",0,0,0,61,61,61,0,0,0,0,0,null,null,null,null,null,null,null,null,null,null,null,null,null,null,null,null,null,null,null,null,null,null,null,null,null,null,null,null,null,null,null,null,null,null,{"$f":"Dataset[[#This Row],[2027/28 From - Spending review Topic 1]]+Dataset[[#This Row],[2027/28 From - Spending review Topic 2]]+Dataset[[#This Row],[2027/28 From - Spending review Topic 3]]+Dataset[[#This Row],[2027/28 From - Spending review Topic 4]]+Dataset[[#This Row],[2027/28 From - Other reallocations]]","v":0},{"$f":"Dataset[[#This Row],[2028/29 From - Spending review Topic 1]]+Dataset[[#This Row],[2028/29 From - Spending review Topic 2]]+Dataset[[#This Row],[2028/29 From - Spending review Topic 3]]+Dataset[[#This Row],[2028/29 From - Spending review Topic 4]]+Dataset[[#This Row],[2028/29 From - Other reallocations]]","v":0},{"$f":"Dataset[[#This Row],[2029/30 From - Spending review Topic 1]]+Dataset[[#This Row],[2029/30 From - Spending review Topic 2]]+Dataset[[#This Row],[2029/30 From - Spending review Topic 3]]+Dataset[[#This Row],[2029/30 From - Spending review Topic 4]]+Dataset[[#This Row],[2029/30 From - Other reallocations]]","v":0},{"$f":"Dataset[[#This Row],[2027/28 To - Spending review Topic 1]]+Dataset[[#This Row],[2027/28 To - Spending review Topic 2]]+Dataset[[#This Row],[2027/28 To - Spending review Topic 3]]+Dataset[[#This Row],[2027/28 To - Spending review Topic 4]]+Dataset[[#This Row],[2027/28 To - Other reallocations]]","v":0},{"$f":"Dataset[[#This Row],[2028/29 To - Spending review Topic 1]]+Dataset[[#This Row],[2028/29 To - Spending review Topic 2]]+Dataset[[#This Row],[2028/29 To - Spending review Topic 3]]+Dataset[[#This Row],[2028/29 To - Spending review Topic 4]]+Dataset[[#This Row],[2028/29 To - Other reallocations]]","v":0},{"$f":"Dataset[[#This Row],[2029/30 To - Spending review Topic 1]]+Dataset[[#This Row],[2029/30 To - Spending review Topic 2]]+Dataset[[#This Row],[2029/30 To - Spending review Topic 3]]+Dataset[[#This Row],[2029/30 To - Spending review Topic 4]]+Dataset[[#This Row],[2029/30 To - Other reallocations]]","v":0},{"$f":"Dataset[[#This Row],[2027/28 Targeted savings]]+Dataset[[#This Row],[2027/28 From - Total]]","v":0},{"$f":"Dataset[[#This Row],[2028/29 Targeted savings]]+Dataset[[#This Row],[2028/29 From - Total]]","v":0},{"$f":"Dataset[[#This Row],[2029/30 Targeted savings]]+Dataset[[#This Row],[2029/30 From - Total]]","v":0},{"$f":"Dataset[[#This Row],[2026/27 Targeted savings]]","v":0},{"$f":"SUM(Dataset[[#This Row],[2027/28 Targeted savings]],Dataset[[#This Row],[2027/28 From - Total]],Dataset[[#This Row],[2027/28 To - Total]])","v":0},{"$f":"SUM(Dataset[[#This Row],[2028/29 Targeted savings]],Dataset[[#This Row],[2028/29 From - Total]],Dataset[[#This Row],[2028/29 To - Total]])","v":0},{"$f":"SUM(Dataset[[#This Row],[2029/30 Targeted savings]],Dataset[[#This Row],[2029/30 From - Total]],Dataset[[#This Row],[2029/30 To - Total]])","v":0},{"$f":"Dataset[[#This Row],[2026/27 Baseline]]+Dataset[[#This Row],[2026/27 Total change]]","v":0},{"$f":"Dataset[[#This Row],[2027/28 Baseline]]+Dataset[[#This Row],[2027/28 Total change]]","v":0},{"$f":"Dataset[[#This Row],[2028/29 Baseline]]+Dataset[[#This Row],[2028/29 Total change]]","v":0},{"$f":"Dataset[[#This Row],[2029/30 Baseline]]+Dataset[[#This Row],[2029/30 Total change]]","v":0}]
["NAT|Non-transfer","30|Salaries and wages","2027_28","MTEC2027",30,4,1,32978,458,"30","04","01","032978","000458","30|04|01|000458","01","01","01","01","01","01|01|01|01|01","National","Communications and Digital Technologies","Digital Communication, Access and Services","Programme Management for Digital Communication, Access and Services","Non-transfer","Current","Current payments","Compensation of employees","Salaries and wages","Salaries and wages","Economic development","Economic regulation and infrastructure","NAT",2871,2988,2687,3350,2400,2400,0,2871,3041,3897,4014,null,null,null,null,null,null,null,null,null,null,null,null,null,null,null,null,null,null,null,null,null,null,null,null,null,null,null,null,null,null,null,null,null,null,{"$f":"Dataset[[#This Row],[2027/28 From - Spending review Topic 1]]+Dataset[[#This Row],[2027/28 From - Spending review Topic 2]]+Dataset[[#This Row],[2027/28 From - Spending review Topic 3]]+Dataset[[#This Row],[2027/28 From - Spending review Topic 4]]+Dataset[[#This Row],[2027/28 From - Other reallocations]]","v":0},{"$f":"Dataset[[#This Row],[2028/29 From - Spending review Topic 1]]+Dataset[[#This Row],[2028/29 From - Spending review Topic 2]]+Dataset[[#This Row],[2028/29 From - Spending review Topic 3]]+Dataset[[#This Row],[2028/29 From - Spending review Topic 4]]+Dataset[[#This Row],[2028/29 From - Other reallocations]]","v":0},{"$f":"Dataset[[#This Row],[2029/30 From - Spending review Topic 1]]+Dataset[[#This Row],[2029/30 From - Spending review Topic 2]]+Dataset[[#This Row],[2029/30 From - Spending review Topic 3]]+Dataset[[#This Row],[2029/30 From - Spending review Topic 4]]+Dataset[[#This Row],[2029/30 From - Other reallocations]]","v":0},{"$f":"Dataset[[#This Row],[2027/28 To - Spending review Topic 1]]+Dataset[[#This Row],[2027/28 To - Spending review Topic 2]]+Dataset[[#This Row],[2027/28 To - Spending review Topic 3]]+Dataset[[#This Row],[2027/28 To - Spending review Topic 4]]+Dataset[[#This Row],[2027/28 To - Other reallocations]]","v":0},{"$f":"Dataset[[#This Row],[2028/29 To - Spending review Topic 1]]+Dataset[[#This Row],[2028/29 To - Spending review Topic 2]]+Dataset[[#This Row],[2028/29 To - Spending review Topic 3]]+Dataset[[#This Row],[2028/29 To - Spending review Topic 4]]+Dataset[[#This Row],[2028/29 To - Other reallocations]]","v":0},{"$f":"Dataset[[#This Row],[2029/30 To - Spending review Topic 1]]+Dataset[[#This Row],[2029/30 To - Spending review Topic 2]]+Dataset[[#This Row],[2029/30 To - Spending review Topic 3]]+Dataset[[#This Row],[2029/30 To - Spending review Topic 4]]+Dataset[[#This Row],[2029/30 To - Other reallocations]]","v":0},{"$f":"Dataset[[#This Row],[2027/28 Targeted savings]]+Dataset[[#This Row],[2027/28 From - Total]]","v":0},{"$f":"Dataset[[#This Row],[2028/29 Targeted savings]]+Dataset[[#This Row],[2028/29 From - Total]]","v":0},{"$f":"Dataset[[#This Row],[2029/30 Targeted savings]]+Dataset[[#This Row],[2029/30 From - Total]]","v":0},{"$f":"Dataset[[#This Row],[2026/27 Targeted savings]]","v":0},{"$f":"SUM(Dataset[[#This Row],[2027/28 Targeted savings]],Dataset[[#This Row],[2027/28 From - Total]],Dataset[[#This Row],[2027/28 To - Total]])","v":0},{"$f":"SUM(Dataset[[#This Row],[2028/29 Targeted savings]],Dataset[[#This Row],[2028/29 From - Total]],Dataset[[#This Row],[2028/29 To - Total]])","v":0},{"$f":"SUM(Dataset[[#This Row],[2029/30 Targeted savings]],Dataset[[#This Row],[2029/30 From - Total]],Dataset[[#This Row],[2029/30 To - Total]])","v":0},{"$f":"Dataset[[#This Row],[2026/27 Baseline]]+Dataset[[#This Row],[2026/27 Total change]]","v":2871},{"$f":"Dataset[[#This Row],[2027/28 Baseline]]+Dataset[[#This Row],[2027/28 Total change]]","v":3041},{"$f":"Dataset[[#This Row],[2028/29 Baseline]]+Dataset[[#This Row],[2028/29 Total change]]","v":3897},{"$f":"Dataset[[#This Row],[2029/30 Baseline]]+Dataset[[#This Row],[2029/30 Total change]]","v":4014}]
["NAT|Non-transfer","30|Social contributions","2027_28","MTEC2027",30,4,1,32979,459,"30","04","01","032979","000459","30|04|01|000459","01","01","01","02","02","01|01|01|02|02","National","Communications and Digital Technologies","Digital Communication, Access and Services","Programme Management for Digital Communication, Access and Services","Non-transfer","Current","Current payments","Compensation of employees","Social contributions","Social contributions","Economic development","Economic regulation and infrastructure","NAT",323,332,241,400,400,400,0,305,319,329,339,null,null,null,null,null,null,null,null,null,null,null,null,null,null,null,null,null,null,null,null,null,null,null,null,null,null,null,null,null,null,null,null,null,null,{"$f":"Dataset[[#This Row],[2027/28 From - Spending review Topic 1]]+Dataset[[#This Row],[2027/28 From - Spending review Topic 2]]+Dataset[[#This Row],[2027/28 From - Spending review Topic 3]]+Dataset[[#This Row],[2027/28 From - Spending review Topic 4]]+Dataset[[#This Row],[2027/28 From - Other reallocations]]","v":0},{"$f":"Dataset[[#This Row],[2028/29 From - Spending review Topic 1]]+Dataset[[#This Row],[2028/29 From - Spending review Topic 2]]+Dataset[[#This Row],[2028/29 From - Spending review Topic 3]]+Dataset[[#This Row],[2028/29 From - Spending review Topic 4]]+Dataset[[#This Row],[2028/29 From - Other reallocations]]","v":0},{"$f":"Dataset[[#This Row],[2029/30 From - Spending review Topic 1]]+Dataset[[#This Row],[2029/30 From - Spending review Topic 2]]+Dataset[[#This Row],[2029/30 From - Spending review Topic 3]]+Dataset[[#This Row],[2029/30 From - Spending review Topic 4]]+Dataset[[#This Row],[2029/30 From - Other reallocations]]","v":0},{"$f":"Dataset[[#This Row],[2027/28 To - Spending review Topic 1]]+Dataset[[#This Row],[2027/28 To - Spending review Topic 2]]+Dataset[[#This Row],[2027/28 To - Spending review Topic 3]]+Dataset[[#This Row],[2027/28 To - Spending review Topic 4]]+Dataset[[#This Row],[2027/28 To - Other reallocations]]","v":0},{"$f":"Dataset[[#This Row],[2028/29 To - Spending review Topic 1]]+Dataset[[#This Row],[2028/29 To - Spending review Topic 2]]+Dataset[[#This Row],[2028/29 To - Spending review Topic 3]]+Dataset[[#This Row],[2028/29 To - Spending review Topic 4]]+Dataset[[#This Row],[2028/29 To - Other reallocations]]","v":0},{"$f":"Dataset[[#This Row],[2029/30 To - Spending review Topic 1]]+Dataset[[#This Row],[2029/30 To - Spending review Topic 2]]+Dataset[[#This Row],[2029/30 To - Spending review Topic 3]]+Dataset[[#This Row],[2029/30 To - Spending review Topic 4]]+Dataset[[#This Row],[2029/30 To - Other reallocations]]","v":0},{"$f":"Dataset[[#This Row],[2027/28 Targeted savings]]+Dataset[[#This Row],[2027/28 From - Total]]","v":0},{"$f":"Dataset[[#This Row],[2028/29 Targeted savings]]+Dataset[[#This Row],[2028/29 From - Total]]","v":0},{"$f":"Dataset[[#This Row],[2029/30 Targeted savings]]+Dataset[[#This Row],[2029/30 From - Total]]","v":0},{"$f":"Dataset[[#This Row],[2026/27 Targeted savings]]","v":0},{"$f":"SUM(Dataset[[#This Row],[2027/28 Targeted savings]],Dataset[[#This Row],[2027/28 From - Total]],Dataset[[#This Row],[2027/28 To - Total]])","v":0},{"$f":"SUM(Dataset[[#This Row],[2028/29 Targeted savings]],Dataset[[#This Row],[2028/29 From - Total]],Dataset[[#This Row],[2028/29 To - Total]])","v":0},{"$f":"SUM(Dataset[[#This Row],[2029/30 Targeted savings]],Dataset[[#This Row],[2029/30 From - Total]],Dataset[[#This Row],[2029/30 To - Total]])","v":0},{"$f":"Dataset[[#This Row],[2026/27 Baseline]]+Dataset[[#This Row],[2026/27 Total change]]","v":305},{"$f":"Dataset[[#This Row],[2027/28 Baseline]]+Dataset[[#This Row],[2027/28 Total change]]","v":319},{"$f":"Dataset[[#This Row],[2028/29 Baseline]]+Dataset[[#This Row],[2028/29 Total change]]","v":329},{"$f":"Dataset[[#This Row],[2029/30 Baseline]]+Dataset[[#This Row],[2029/30 Total change]]","v":339}]
["NAT|Non-transfer","30|Administrative fees","2027_28","MTEC2027",30,4,1,32980,460,"30","04","01","032980","000460","30|04|01|000460","01","01","02","03","03","01|01|02|03|03","National","Communications and Digital Technologies","Digital Communication, Access and Services","Programme Management for Digital Communication, Access and Services","Non-transfer","Current","Current payments","Goods and services","Administrative fees","Administrative fees","Economic development","Economic regulation and infrastructure","NAT",0,4,5,14,14,14,0,14,60,62,64,null,null,null,null,null,null,null,null,null,null,null,null,null,null,null,null,null,null,null,null,null,null,null,null,null,null,null,null,null,null,null,null,null,null,{"$f":"Dataset[[#This Row],[2027/28 From - Spending review Topic 1]]+Dataset[[#This Row],[2027/28 From - Spending review Topic 2]]+Dataset[[#This Row],[2027/28 From - Spending review Topic 3]]+Dataset[[#This Row],[2027/28 From - Spending review Topic 4]]+Dataset[[#This Row],[2027/28 From - Other reallocations]]","v":0},{"$f":"Dataset[[#This Row],[2028/29 From - Spending review Topic 1]]+Dataset[[#This Row],[2028/29 From - Spending review Topic 2]]+Dataset[[#This Row],[2028/29 From - Spending review Topic 3]]+Dataset[[#This Row],[2028/29 From - Spending review Topic 4]]+Dataset[[#This Row],[2028/29 From - Other reallocations]]","v":0},{"$f":"Dataset[[#This Row],[2029/30 From - Spending review Topic 1]]+Dataset[[#This Row],[2029/30 From - Spending review Topic 2]]+Dataset[[#This Row],[2029/30 From - Spending review Topic 3]]+Dataset[[#This Row],[2029/30 From - Spending review Topic 4]]+Dataset[[#This Row],[2029/30 From - Other reallocations]]","v":0},{"$f":"Dataset[[#This Row],[2027/28 To - Spending review Topic 1]]+Dataset[[#This Row],[2027/28 To - Spending review Topic 2]]+Dataset[[#This Row],[2027/28 To - Spending review Topic 3]]+Dataset[[#This Row],[2027/28 To - Spending review Topic 4]]+Dataset[[#This Row],[2027/28 To - Other reallocations]]","v":0},{"$f":"Dataset[[#This Row],[2028/29 To - Spending review Topic 1]]+Dataset[[#This Row],[2028/29 To - Spending review Topic 2]]+Dataset[[#This Row],[2028/29 To - Spending review Topic 3]]+Dataset[[#This Row],[2028/29 To - Spending review Topic 4]]+Dataset[[#This Row],[2028/29 To - Other reallocations]]","v":0},{"$f":"Dataset[[#This Row],[2029/30 To - Spending review Topic 1]]+Dataset[[#This Row],[2029/30 To - Spending review Topic 2]]+Dataset[[#This Row],[2029/30 To - Spending review Topic 3]]+Dataset[[#This Row],[2029/30 To - Spending review Topic 4]]+Dataset[[#This Row],[2029/30 To - Other reallocations]]","v":0},{"$f":"Dataset[[#This Row],[2027/28 Targeted savings]]+Dataset[[#This Row],[2027/28 From - Total]]","v":0},{"$f":"Dataset[[#This Row],[2028/29 Targeted savings]]+Dataset[[#This Row],[2028/29 From - Total]]","v":0},{"$f":"Dataset[[#This Row],[2029/30 Targeted savings]]+Dataset[[#This Row],[2029/30 From - Total]]","v":0},{"$f":"Dataset[[#This Row],[2026/27 Targeted savings]]","v":0},{"$f":"SUM(Dataset[[#This Row],[2027/28 Targeted savings]],Dataset[[#This Row],[2027/28 From - Total]],Dataset[[#This Row],[2027/28 To - Total]])","v":0},{"$f":"SUM(Dataset[[#This Row],[2028/29 Targeted savings]],Dataset[[#This Row],[2028/29 From - Total]],Dataset[[#This Row],[2028/29 To - Total]])","v":0},{"$f":"SUM(Dataset[[#This Row],[2029/30 Targeted savings]],Dataset[[#This Row],[2029/30 From - Total]],Dataset[[#This Row],[2029/30 To - Total]])","v":0},{"$f":"Dataset[[#This Row],[2026/27 Baseline]]+Dataset[[#This Row],[2026/27 Total change]]","v":14},{"$f":"Dataset[[#This Row],[2027/28 Baseline]]+Dataset[[#This Row],[2027/28 Total change]]","v":60},{"$f":"Dataset[[#This Row],[2028/29 Baseline]]+Dataset[[#This Row],[2028/29 Total change]]","v":62},{"$f":"Dataset[[#This Row],[2029/30 Baseline]]+Dataset[[#This Row],[2029/30 Total change]]","v":64}]
["NAT|Non-transfer","30|Minor assets","2027_28","MTEC2027",30,4,1,32981,461,"30","04","01","032981","000461","30|04|01|000461","01","01","02","05","05","01|01|02|05|05","National","Communications and Digital Technologies","Digital Communication, Access and Services","Programme Management for Digital Communication, Access and Services","Non-transfer","Current","Current payments","Goods and services","Minor assets","Minor assets","Economic development","Economic regulation and infrastructure","NAT",1,0,0,0,0,0,0,0,0,0,0,null,null,null,null,null,null,null,null,null,null,null,null,null,null,null,null,null,null,null,null,null,null,null,null,null,null,null,null,null,null,null,null,null,null,{"$f":"Dataset[[#This Row],[2027/28 From - Spending review Topic 1]]+Dataset[[#This Row],[2027/28 From - Spending review Topic 2]]+Dataset[[#This Row],[2027/28 From - Spending review Topic 3]]+Dataset[[#This Row],[2027/28 From - Spending review Topic 4]]+Dataset[[#This Row],[2027/28 From - Other reallocations]]","v":0},{"$f":"Dataset[[#This Row],[2028/29 From - Spending review Topic 1]]+Dataset[[#This Row],[2028/29 From - Spending review Topic 2]]+Dataset[[#This Row],[2028/29 From - Spending review Topic 3]]+Dataset[[#This Row],[2028/29 From - Spending review Topic 4]]+Dataset[[#This Row],[2028/29 From - Other reallocations]]","v":0},{"$f":"Dataset[[#This Row],[2029/30 From - Spending review Topic 1]]+Dataset[[#This Row],[2029/30 From - Spending review Topic 2]]+Dataset[[#This Row],[2029/30 From - Spending review Topic 3]]+Dataset[[#This Row],[2029/30 From - Spending review Topic 4]]+Dataset[[#This Row],[2029/30 From - Other reallocations]]","v":0},{"$f":"Dataset[[#This Row],[2027/28 To - Spending review Topic 1]]+Dataset[[#This Row],[2027/28 To - Spending review Topic 2]]+Dataset[[#This Row],[2027/28 To - Spending review Topic 3]]+Dataset[[#This Row],[2027/28 To - Spending review Topic 4]]+Dataset[[#This Row],[2027/28 To - Other reallocations]]","v":0},{"$f":"Dataset[[#This Row],[2028/29 To - Spending review Topic 1]]+Dataset[[#This Row],[2028/29 To - Spending review Topic 2]]+Dataset[[#This Row],[2028/29 To - Spending review Topic 3]]+Dataset[[#This Row],[2028/29 To - Spending review Topic 4]]+Dataset[[#This Row],[2028/29 To - Other reallocations]]","v":0},{"$f":"Dataset[[#This Row],[2029/30 To - Spending review Topic 1]]+Dataset[[#This Row],[2029/30 To - Spending review Topic 2]]+Dataset[[#This Row],[2029/30 To - Spending review Topic 3]]+Dataset[[#This Row],[2029/30 To - Spending review Topic 4]]+Dataset[[#This Row],[2029/30 To - Other reallocations]]","v":0},{"$f":"Dataset[[#This Row],[2027/28 Targeted savings]]+Dataset[[#This Row],[2027/28 From - Total]]","v":0},{"$f":"Dataset[[#This Row],[2028/29 Targeted savings]]+Dataset[[#This Row],[2028/29 From - Total]]","v":0},{"$f":"Dataset[[#This Row],[2029/30 Targeted savings]]+Dataset[[#This Row],[2029/30 From - Total]]","v":0},{"$f":"Dataset[[#This Row],[2026/27 Targeted savings]]","v":0},{"$f":"SUM(Dataset[[#This Row],[2027/28 Targeted savings]],Dataset[[#This Row],[2027/28 From - Total]],Dataset[[#This Row],[2027/28 To - Total]])","v":0},{"$f":"SUM(Dataset[[#This Row],[2028/29 Targeted savings]],Dataset[[#This Row],[2028/29 From - Total]],Dataset[[#This Row],[2028/29 To - Total]])","v":0},{"$f":"SUM(Dataset[[#This Row],[2029/30 Targeted savings]],Dataset[[#This Row],[2029/30 From - Total]],Dataset[[#This Row],[2029/30 To - Total]])","v":0},{"$f":"Dataset[[#This Row],[2026/27 Baseline]]+Dataset[[#This Row],[2026/27 Total change]]","v":0},{"$f":"Dataset[[#This Row],[2027/28 Baseline]]+Dataset[[#This Row],[2027/28 Total change]]","v":0},{"$f":"Dataset[[#This Row],[2028/29 Baseline]]+Dataset[[#This Row],[2028/29 Total change]]","v":0},{"$f":"Dataset[[#This Row],[2029/30 Baseline]]+Dataset[[#This Row],[2029/30 Total change]]","v":0}]
["NAT|Non-transfer","30|Bursaries: Employees","2027_28","MTEC2027",30,4,1,32982,462,"30","04","01","032982","000462","30|04|01|000462","01","01","02","07","07","01|01|02|07|07","National","Communications and Digital Technologies","Digital Communication, Access and Services","Programme Management for Digital Communication, Access and Services","Non-transfer","Current","Current payments","Goods and services","Bursaries: Employees","Bursaries: Employees","Economic development","Economic regulation and infrastructure","NAT",0,0,0,30,30,30,0,60,0,0,0,null,null,null,null,null,null,null,null,null,null,null,null,null,null,null,null,null,null,null,null,null,null,null,null,null,null,null,null,null,null,null,null,null,null,{"$f":"Dataset[[#This Row],[2027/28 From - Spending review Topic 1]]+Dataset[[#This Row],[2027/28 From - Spending review Topic 2]]+Dataset[[#This Row],[2027/28 From - Spending review Topic 3]]+Dataset[[#This Row],[2027/28 From - Spending review Topic 4]]+Dataset[[#This Row],[2027/28 From - Other reallocations]]","v":0},{"$f":"Dataset[[#This Row],[2028/29 From - Spending review Topic 1]]+Dataset[[#This Row],[2028/29 From - Spending review Topic 2]]+Dataset[[#This Row],[2028/29 From - Spending review Topic 3]]+Dataset[[#This Row],[2028/29 From - Spending review Topic 4]]+Dataset[[#This Row],[2028/29 From - Other reallocations]]","v":0},{"$f":"Dataset[[#This Row],[2029/30 From - Spending review Topic 1]]+Dataset[[#This Row],[2029/30 From - Spending review Topic 2]]+Dataset[[#This Row],[2029/30 From - Spending review Topic 3]]+Dataset[[#This Row],[2029/30 From - Spending review Topic 4]]+Dataset[[#This Row],[2029/30 From - Other reallocations]]","v":0},{"$f":"Dataset[[#This Row],[2027/28 To - Spending review Topic 1]]+Dataset[[#This Row],[2027/28 To - Spending review Topic 2]]+Dataset[[#This Row],[2027/28 To - Spending review Topic 3]]+Dataset[[#This Row],[2027/28 To - Spending review Topic 4]]+Dataset[[#This Row],[2027/28 To - Other reallocations]]","v":0},{"$f":"Dataset[[#This Row],[2028/29 To - Spending review Topic 1]]+Dataset[[#This Row],[2028/29 To - Spending review Topic 2]]+Dataset[[#This Row],[2028/29 To - Spending review Topic 3]]+Dataset[[#This Row],[2028/29 To - Spending review Topic 4]]+Dataset[[#This Row],[2028/29 To - Other reallocations]]","v":0},{"$f":"Dataset[[#This Row],[2029/30 To - Spending review Topic 1]]+Dataset[[#This Row],[2029/30 To - Spending review Topic 2]]+Dataset[[#This Row],[2029/30 To - Spending review Topic 3]]+Dataset[[#This Row],[2029/30 To - Spending review Topic 4]]+Dataset[[#This Row],[2029/30 To - Other reallocations]]","v":0},{"$f":"Dataset[[#This Row],[2027/28 Targeted savings]]+Dataset[[#This Row],[2027/28 From - Total]]","v":0},{"$f":"Dataset[[#This Row],[2028/29 Targeted savings]]+Dataset[[#This Row],[2028/29 From - Total]]","v":0},{"$f":"Dataset[[#This Row],[2029/30 Targeted savings]]+Dataset[[#This Row],[2029/30 From - Total]]","v":0},{"$f":"Dataset[[#This Row],[2026/27 Targeted savings]]","v":0},{"$f":"SUM(Dataset[[#This Row],[2027/28 Targeted savings]],Dataset[[#This Row],[2027/28 From - Total]],Dataset[[#This Row],[2027/28 To - Total]])","v":0},{"$f":"SUM(Dataset[[#This Row],[2028/29 Targeted savings]],Dataset[[#This Row],[2028/29 From - Total]],Dataset[[#This Row],[2028/29 To - Total]])","v":0},{"$f":"SUM(Dataset[[#This Row],[2029/30 Targeted savings]],Dataset[[#This Row],[2029/30 From - Total]],Dataset[[#This Row],[2029/30 To - Total]])","v":0},{"$f":"Dataset[[#This Row],[2026/27 Baseline]]+Dataset[[#This Row],[2026/27 Total change]]","v":60},{"$f":"Dataset[[#This Row],[2027/28 Baseline]]+Dataset[[#This Row],[2027/28 Total change]]","v":0},{"$f":"Dataset[[#This Row],[2028/29 Baseline]]+Dataset[[#This Row],[2028/29 Total change]]","v":0},{"$f":"Dataset[[#This Row],[2029/30 Baseline]]+Dataset[[#This Row],[2029/30 Total change]]","v":0}]
["NAT|Non-transfer","30|Catering: Departmental activities","2027_28","MTEC2027",30,4,1,32983,463,"30","04","01","032983","000463","30|04|01|000463","01","01","02","08","08","01|01|02|08|08","National","Communications and Digital Technologies","Digital Communication, Access and Services","Programme Management for Digital Communication, Access and Services","Non-transfer","Current","Current payments","Goods and services","Catering: Departmental activities","Catering: Departmental activities","Economic development","Economic regulation and infrastructure","NAT",29,29,2,20,20,20,0,20,100,103,106,null,null,null,null,null,null,null,null,null,null,null,null,null,null,null,null,null,null,null,null,null,null,null,null,null,null,null,null,null,null,null,null,null,null,{"$f":"Dataset[[#This Row],[2027/28 From - Spending review Topic 1]]+Dataset[[#This Row],[2027/28 From - Spending review Topic 2]]+Dataset[[#This Row],[2027/28 From - Spending review Topic 3]]+Dataset[[#This Row],[2027/28 From - Spending review Topic 4]]+Dataset[[#This Row],[2027/28 From - Other reallocations]]","v":0},{"$f":"Dataset[[#This Row],[2028/29 From - Spending review Topic 1]]+Dataset[[#This Row],[2028/29 From - Spending review Topic 2]]+Dataset[[#This Row],[2028/29 From - Spending review Topic 3]]+Dataset[[#This Row],[2028/29 From - Spending review Topic 4]]+Dataset[[#This Row],[2028/29 From - Other reallocations]]","v":0},{"$f":"Dataset[[#This Row],[2029/30 From - Spending review Topic 1]]+Dataset[[#This Row],[2029/30 From - Spending review Topic 2]]+Dataset[[#This Row],[2029/30 From - Spending review Topic 3]]+Dataset[[#This Row],[2029/30 From - Spending review Topic 4]]+Dataset[[#This Row],[2029/30 From - Other reallocations]]","v":0},{"$f":"Dataset[[#This Row],[2027/28 To - Spending review Topic 1]]+Dataset[[#This Row],[2027/28 To - Spending review Topic 2]]+Dataset[[#This Row],[2027/28 To - Spending review Topic 3]]+Dataset[[#This Row],[2027/28 To - Spending review Topic 4]]+Dataset[[#This Row],[2027/28 To - Other reallocations]]","v":0},{"$f":"Dataset[[#This Row],[2028/29 To - Spending review Topic 1]]+Dataset[[#This Row],[2028/29 To - Spending review Topic 2]]+Dataset[[#This Row],[2028/29 To - Spending review Topic 3]]+Dataset[[#This Row],[2028/29 To - Spending review Topic 4]]+Dataset[[#This Row],[2028/29 To - Other reallocations]]","v":0},{"$f":"Dataset[[#This Row],[2029/30 To - Spending review Topic 1]]+Dataset[[#This Row],[2029/30 To - Spending review Topic 2]]+Dataset[[#This Row],[2029/30 To - Spending review Topic 3]]+Dataset[[#This Row],[2029/30 To - Spending review Topic 4]]+Dataset[[#This Row],[2029/30 To - Other reallocations]]","v":0},{"$f":"Dataset[[#This Row],[2027/28 Targeted savings]]+Dataset[[#This Row],[2027/28 From - Total]]","v":0},{"$f":"Dataset[[#This Row],[2028/29 Targeted savings]]+Dataset[[#This Row],[2028/29 From - Total]]","v":0},{"$f":"Dataset[[#This Row],[2029/30 Targeted savings]]+Dataset[[#This Row],[2029/30 From - Total]]","v":0},{"$f":"Dataset[[#This Row],[2026/27 Targeted savings]]","v":0},{"$f":"SUM(Dataset[[#This Row],[2027/28 Targeted savings]],Dataset[[#This Row],[2027/28 From - Total]],Dataset[[#This Row],[2027/28 To - Total]])","v":0},{"$f":"SUM(Dataset[[#This Row],[2028/29 Targeted savings]],Dataset[[#This Row],[2028/29 From - Total]],Dataset[[#This Row],[2028/29 To - Total]])","v":0},{"$f":"SUM(Dataset[[#This Row],[2029/30 Targeted savings]],Dataset[[#This Row],[2029/30 From - Total]],Dataset[[#This Row],[2029/30 To - Total]])","v":0},{"$f":"Dataset[[#This Row],[2026/27 Baseline]]+Dataset[[#This Row],[2026/27 Total change]]","v":20},{"$f":"Dataset[[#This Row],[2027/28 Baseline]]+Dataset[[#This Row],[2027/28 Total change]]","v":100},{"$f":"Dataset[[#This Row],[2028/29 Baseline]]+Dataset[[#This Row],[2028/29 Total change]]","v":103},{"$f":"Dataset[[#This Row],[2029/30 Baseline]]+Dataset[[#This Row],[2029/30 Total change]]","v":106}]
["NAT|Non-transfer","30|Communication (G&S)","2027_28","MTEC2027",30,4,1,32984,464,"30","04","01","032984","000464","30|04|01|000464","01","01","02","09","09","01|01|02|09|09","National","Communications and Digital Technologies","Digital Communication, Access and Services","Programme Management for Digital Communication, Access and Services","Non-transfer","Current","Current payments","Goods and services","Communication (G&S)","Communication (G&S)","Economic development","Economic regulation and infrastructure","NAT",26,47,84,77,77,77,0,90,104,107,110,null,null,null,null,null,null,null,null,null,null,null,null,null,null,null,null,null,null,null,null,null,null,null,null,null,null,null,null,null,null,null,null,null,null,{"$f":"Dataset[[#This Row],[2027/28 From - Spending review Topic 1]]+Dataset[[#This Row],[2027/28 From - Spending review Topic 2]]+Dataset[[#This Row],[2027/28 From - Spending review Topic 3]]+Dataset[[#This Row],[2027/28 From - Spending review Topic 4]]+Dataset[[#This Row],[2027/28 From - Other reallocations]]","v":0},{"$f":"Dataset[[#This Row],[2028/29 From - Spending review Topic 1]]+Dataset[[#This Row],[2028/29 From - Spending review Topic 2]]+Dataset[[#This Row],[2028/29 From - Spending review Topic 3]]+Dataset[[#This Row],[2028/29 From - Spending review Topic 4]]+Dataset[[#This Row],[2028/29 From - Other reallocations]]","v":0},{"$f":"Dataset[[#This Row],[2029/30 From - Spending review Topic 1]]+Dataset[[#This Row],[2029/30 From - Spending review Topic 2]]+Dataset[[#This Row],[2029/30 From - Spending review Topic 3]]+Dataset[[#This Row],[2029/30 From - Spending review Topic 4]]+Dataset[[#This Row],[2029/30 From - Other reallocations]]","v":0},{"$f":"Dataset[[#This Row],[2027/28 To - Spending review Topic 1]]+Dataset[[#This Row],[2027/28 To - Spending review Topic 2]]+Dataset[[#This Row],[2027/28 To - Spending review Topic 3]]+Dataset[[#This Row],[2027/28 To - Spending review Topic 4]]+Dataset[[#This Row],[2027/28 To - Other reallocations]]","v":0},{"$f":"Dataset[[#This Row],[2028/29 To - Spending review Topic 1]]+Dataset[[#This Row],[2028/29 To - Spending review Topic 2]]+Dataset[[#This Row],[2028/29 To - Spending review Topic 3]]+Dataset[[#This Row],[2028/29 To - Spending review Topic 4]]+Dataset[[#This Row],[2028/29 To - Other reallocations]]","v":0},{"$f":"Dataset[[#This Row],[2029/30 To - Spending review Topic 1]]+Dataset[[#This Row],[2029/30 To - Spending review Topic 2]]+Dataset[[#This Row],[2029/30 To - Spending review Topic 3]]+Dataset[[#This Row],[2029/30 To - Spending review Topic 4]]+Dataset[[#This Row],[2029/30 To - Other reallocations]]","v":0},{"$f":"Dataset[[#This Row],[2027/28 Targeted savings]]+Dataset[[#This Row],[2027/28 From - Total]]","v":0},{"$f":"Dataset[[#This Row],[2028/29 Targeted savings]]+Dataset[[#This Row],[2028/29 From - Total]]","v":0},{"$f":"Dataset[[#This Row],[2029/30 Targeted savings]]+Dataset[[#This Row],[2029/30 From - Total]]","v":0},{"$f":"Dataset[[#This Row],[2026/27 Targeted savings]]","v":0},{"$f":"SUM(Dataset[[#This Row],[2027/28 Targeted savings]],Dataset[[#This Row],[2027/28 From - Total]],Dataset[[#This Row],[2027/28 To - Total]])","v":0},{"$f":"SUM(Dataset[[#This Row],[2028/29 Targeted savings]],Dataset[[#This Row],[2028/29 From - Total]],Dataset[[#This Row],[2028/29 To - Total]])","v":0},{"$f":"SUM(Dataset[[#This Row],[2029/30 Targeted savings]],Dataset[[#This Row],[2029/30 From - Total]],Dataset[[#This Row],[2029/30 To - Total]])","v":0},{"$f":"Dataset[[#This Row],[2026/27 Baseline]]+Dataset[[#This Row],[2026/27 Total change]]","v":90},{"$f":"Dataset[[#This Row],[2027/28 Baseline]]+Dataset[[#This Row],[2027/28 Total change]]","v":104},{"$f":"Dataset[[#This Row],[2028/29 Baseline]]+Dataset[[#This Row],[2028/29 Total change]]","v":107},{"$f":"Dataset[[#This Row],[2029/30 Baseline]]+Dataset[[#This Row],[2029/30 Total change]]","v":110}]
["NAT|Non-transfer","30|Contractors","2027_28","MTEC2027",30,4,1,32985,465,"30","04","01","032985","000465","30|04|01|000465","01","01","02","16","16","01|01|02|16|16","National","Communications and Digital Technologies","Digital Communication, Access and Services","Programme Management for Digital Communication, Access and Services","Non-transfer","Current","Current payments","Goods and services","Contractors","Contractors","Economic development","Economic regulation and infrastructure","NAT",20,0,0,0,0,0,0,30,0,0,0,null,null,null,null,null,null,null,null,null,null,null,null,null,null,null,null,null,null,null,null,null,null,null,null,null,null,null,null,null,null,null,null,null,null,{"$f":"Dataset[[#This Row],[2027/28 From - Spending review Topic 1]]+Dataset[[#This Row],[2027/28 From - Spending review Topic 2]]+Dataset[[#This Row],[2027/28 From - Spending review Topic 3]]+Dataset[[#This Row],[2027/28 From - Spending review Topic 4]]+Dataset[[#This Row],[2027/28 From - Other reallocations]]","v":0},{"$f":"Dataset[[#This Row],[2028/29 From - Spending review Topic 1]]+Dataset[[#This Row],[2028/29 From - Spending review Topic 2]]+Dataset[[#This Row],[2028/29 From - Spending review Topic 3]]+Dataset[[#This Row],[2028/29 From - Spending review Topic 4]]+Dataset[[#This Row],[2028/29 From - Other reallocations]]","v":0},{"$f":"Dataset[[#This Row],[2029/30 From - Spending review Topic 1]]+Dataset[[#This Row],[2029/30 From - Spending review Topic 2]]+Dataset[[#This Row],[2029/30 From - Spending review Topic 3]]+Dataset[[#This Row],[2029/30 From - Spending review Topic 4]]+Dataset[[#This Row],[2029/30 From - Other reallocations]]","v":0},{"$f":"Dataset[[#This Row],[2027/28 To - Spending review Topic 1]]+Dataset[[#This Row],[2027/28 To - Spending review Topic 2]]+Dataset[[#This Row],[2027/28 To - Spending review Topic 3]]+Dataset[[#This Row],[2027/28 To - Spending review Topic 4]]+Dataset[[#This Row],[2027/28 To - Other reallocations]]","v":0},{"$f":"Dataset[[#This Row],[2028/29 To - Spending review Topic 1]]+Dataset[[#This Row],[2028/29 To - Spending review Topic 2]]+Dataset[[#This Row],[2028/29 To - Spending review Topic 3]]+Dataset[[#This Row],[2028/29 To - Spending review Topic 4]]+Dataset[[#This Row],[2028/29 To - Other reallocations]]","v":0},{"$f":"Dataset[[#This Row],[2029/30 To - Spending review Topic 1]]+Dataset[[#This Row],[2029/30 To - Spending review Topic 2]]+Dataset[[#This Row],[2029/30 To - Spending review Topic 3]]+Dataset[[#This Row],[2029/30 To - Spending review Topic 4]]+Dataset[[#This Row],[2029/30 To - Other reallocations]]","v":0},{"$f":"Dataset[[#This Row],[2027/28 Targeted savings]]+Dataset[[#This Row],[2027/28 From - Total]]","v":0},{"$f":"Dataset[[#This Row],[2028/29 Targeted savings]]+Dataset[[#This Row],[2028/29 From - Total]]","v":0},{"$f":"Dataset[[#This Row],[2029/30 Targeted savings]]+Dataset[[#This Row],[2029/30 From - Total]]","v":0},{"$f":"Dataset[[#This Row],[2026/27 Targeted savings]]","v":0},{"$f":"SUM(Dataset[[#This Row],[2027/28 Targeted savings]],Dataset[[#This Row],[2027/28 From - Total]],Dataset[[#This Row],[2027/28 To - Total]])","v":0},{"$f":"SUM(Dataset[[#This Row],[2028/29 Targeted savings]],Dataset[[#This Row],[2028/29 From - Total]],Dataset[[#This Row],[2028/29 To - Total]])","v":0},{"$f":"SUM(Dataset[[#This Row],[2029/30 Targeted savings]],Dataset[[#This Row],[2029/30 From - Total]],Dataset[[#This Row],[2029/30 To - Total]])","v":0},{"$f":"Dataset[[#This Row],[2026/27 Baseline]]+Dataset[[#This Row],[2026/27 Total change]]","v":30},{"$f":"Dataset[[#This Row],[2027/28 Baseline]]+Dataset[[#This Row],[2027/28 Total change]]","v":0},{"$f":"Dataset[[#This Row],[2028/29 Baseline]]+Dataset[[#This Row],[2028/29 Total change]]","v":0},{"$f":"Dataset[[#This Row],[2029/30 Baseline]]+Dataset[[#This Row],[2029/30 Total change]]","v":0}]
["NAT|Non-transfer","30|Entertainment","2027_28","MTEC2027",30,4,1,32986,466,"30","04","01","032986","000466","30|04|01|000466","01","01","02","18","18","01|01|02|18|18","National","Communications and Digital Technologies","Digital Communication, Access and Services","Programme Management for Digital Communication, Access and Services","Non-transfer","Current","Current payments","Goods and services","Entertainment","Entertainment","Economic development","Economic regulation and infrastructure","NAT",0,0,0,5,5,5,0,10,5,5,5,null,null,null,null,null,null,null,null,null,null,null,null,null,null,null,null,null,null,null,null,null,null,null,null,null,null,null,null,null,null,null,null,null,null,{"$f":"Dataset[[#This Row],[2027/28 From - Spending review Topic 1]]+Dataset[[#This Row],[2027/28 From - Spending review Topic 2]]+Dataset[[#This Row],[2027/28 From - Spending review Topic 3]]+Dataset[[#This Row],[2027/28 From - Spending review Topic 4]]+Dataset[[#This Row],[2027/28 From - Other reallocations]]","v":0},{"$f":"Dataset[[#This Row],[2028/29 From - Spending review Topic 1]]+Dataset[[#This Row],[2028/29 From - Spending review Topic 2]]+Dataset[[#This Row],[2028/29 From - Spending review Topic 3]]+Dataset[[#This Row],[2028/29 From - Spending review Topic 4]]+Dataset[[#This Row],[2028/29 From - Other reallocations]]","v":0},{"$f":"Dataset[[#This Row],[2029/30 From - Spending review Topic 1]]+Dataset[[#This Row],[2029/30 From - Spending review Topic 2]]+Dataset[[#This Row],[2029/30 From - Spending review Topic 3]]+Dataset[[#This Row],[2029/30 From - Spending review Topic 4]]+Dataset[[#This Row],[2029/30 From - Other reallocations]]","v":0},{"$f":"Dataset[[#This Row],[2027/28 To - Spending review Topic 1]]+Dataset[[#This Row],[2027/28 To - Spending review Topic 2]]+Dataset[[#This Row],[2027/28 To - Spending review Topic 3]]+Dataset[[#This Row],[2027/28 To - Spending review Topic 4]]+Dataset[[#This Row],[2027/28 To - Other reallocations]]","v":0},{"$f":"Dataset[[#This Row],[2028/29 To - Spending review Topic 1]]+Dataset[[#This Row],[2028/29 To - Spending review Topic 2]]+Dataset[[#This Row],[2028/29 To - Spending review Topic 3]]+Dataset[[#This Row],[2028/29 To - Spending review Topic 4]]+Dataset[[#This Row],[2028/29 To - Other reallocations]]","v":0},{"$f":"Dataset[[#This Row],[2029/30 To - Spending review Topic 1]]+Dataset[[#This Row],[2029/30 To - Spending review Topic 2]]+Dataset[[#This Row],[2029/30 To - Spending review Topic 3]]+Dataset[[#This Row],[2029/30 To - Spending review Topic 4]]+Dataset[[#This Row],[2029/30 To - Other reallocations]]","v":0},{"$f":"Dataset[[#This Row],[2027/28 Targeted savings]]+Dataset[[#This Row],[2027/28 From - Total]]","v":0},{"$f":"Dataset[[#This Row],[2028/29 Targeted savings]]+Dataset[[#This Row],[2028/29 From - Total]]","v":0},{"$f":"Dataset[[#This Row],[2029/30 Targeted savings]]+Dataset[[#This Row],[2029/30 From - Total]]","v":0},{"$f":"Dataset[[#This Row],[2026/27 Targeted savings]]","v":0},{"$f":"SUM(Dataset[[#This Row],[2027/28 Targeted savings]],Dataset[[#This Row],[2027/28 From - Total]],Dataset[[#This Row],[2027/28 To - Total]])","v":0},{"$f":"SUM(Dataset[[#This Row],[2028/29 Targeted savings]],Dataset[[#This Row],[2028/29 From - Total]],Dataset[[#This Row],[2028/29 To - Total]])","v":0},{"$f":"SUM(Dataset[[#This Row],[2029/30 Targeted savings]],Dataset[[#This Row],[2029/30 From - Total]],Dataset[[#This Row],[2029/30 To - Total]])","v":0},{"$f":"Dataset[[#This Row],[2026/27 Baseline]]+Dataset[[#This Row],[2026/27 Total change]]","v":10},{"$f":"Dataset[[#This Row],[2027/28 Baseline]]+Dataset[[#This Row],[2027/28 Total change]]","v":5},{"$f":"Dataset[[#This Row],[2028/29 Baseline]]+Dataset[[#This Row],[2028/29 Total change]]","v":5},{"$f":"Dataset[[#This Row],[2029/30 Baseline]]+Dataset[[#This Row],[2029/30 Total change]]","v":5}]
["NAT|Non-transfer","30|Consumable supplies","2027_28","MTEC2027",30,4,1,32987,467,"30","04","01","032987","000467","30|04|01|000467","01","01","02","31","31","01|01|02|31|31","National","Communications and Digital Technologies","Digital Communication, Access and Services","Programme Management for Digital Communication, Access and Services","Non-transfer","Current","Current payments","Goods and services","Consumable supplies","Consumable supplies","Economic development","Economic regulation and infrastructure","NAT",3,3,0,0,0,0,0,5,7,7,7,null,null,null,null,null,null,null,null,null,null,null,null,null,null,null,null,null,null,null,null,null,null,null,null,null,null,null,null,null,null,null,null,null,null,{"$f":"Dataset[[#This Row],[2027/28 From - Spending review Topic 1]]+Dataset[[#This Row],[2027/28 From - Spending review Topic 2]]+Dataset[[#This Row],[2027/28 From - Spending review Topic 3]]+Dataset[[#This Row],[2027/28 From - Spending review Topic 4]]+Dataset[[#This Row],[2027/28 From - Other reallocations]]","v":0},{"$f":"Dataset[[#This Row],[2028/29 From - Spending review Topic 1]]+Dataset[[#This Row],[2028/29 From - Spending review Topic 2]]+Dataset[[#This Row],[2028/29 From - Spending review Topic 3]]+Dataset[[#This Row],[2028/29 From - Spending review Topic 4]]+Dataset[[#This Row],[2028/29 From - Other reallocations]]","v":0},{"$f":"Dataset[[#This Row],[2029/30 From - Spending review Topic 1]]+Dataset[[#This Row],[2029/30 From - Spending review Topic 2]]+Dataset[[#This Row],[2029/30 From - Spending review Topic 3]]+Dataset[[#This Row],[2029/30 From - Spending review Topic 4]]+Dataset[[#This Row],[2029/30 From - Other reallocations]]","v":0},{"$f":"Dataset[[#This Row],[2027/28 To - Spending review Topic 1]]+Dataset[[#This Row],[2027/28 To - Spending review Topic 2]]+Dataset[[#This Row],[2027/28 To - Spending review Topic 3]]+Dataset[[#This Row],[2027/28 To - Spending review Topic 4]]+Dataset[[#This Row],[2027/28 To - Other reallocations]]","v":0},{"$f":"Dataset[[#This Row],[2028/29 To - Spending review Topic 1]]+Dataset[[#This Row],[2028/29 To - Spending review Topic 2]]+Dataset[[#This Row],[2028/29 To - Spending review Topic 3]]+Dataset[[#This Row],[2028/29 To - Spending review Topic 4]]+Dataset[[#This Row],[2028/29 To - Other reallocations]]","v":0},{"$f":"Dataset[[#This Row],[2029/30 To - Spending review Topic 1]]+Dataset[[#This Row],[2029/30 To - Spending review Topic 2]]+Dataset[[#This Row],[2029/30 To - Spending review Topic 3]]+Dataset[[#This Row],[2029/30 To - Spending review Topic 4]]+Dataset[[#This Row],[2029/30 To - Other reallocations]]","v":0},{"$f":"Dataset[[#This Row],[2027/28 Targeted savings]]+Dataset[[#This Row],[2027/28 From - Total]]","v":0},{"$f":"Dataset[[#This Row],[2028/29 Targeted savings]]+Dataset[[#This Row],[2028/29 From - Total]]","v":0},{"$f":"Dataset[[#This Row],[2029/30 Targeted savings]]+Dataset[[#This Row],[2029/30 From - Total]]","v":0},{"$f":"Dataset[[#This Row],[2026/27 Targeted savings]]","v":0},{"$f":"SUM(Dataset[[#This Row],[2027/28 Targeted savings]],Dataset[[#This Row],[2027/28 From - Total]],Dataset[[#This Row],[2027/28 To - Total]])","v":0},{"$f":"SUM(Dataset[[#This Row],[2028/29 Targeted savings]],Dataset[[#This Row],[2028/29 From - Total]],Dataset[[#This Row],[2028/29 To - Total]])","v":0},{"$f":"SUM(Dataset[[#This Row],[2029/30 Targeted savings]],Dataset[[#This Row],[2029/30 From - Total]],Dataset[[#This Row],[2029/30 To - Total]])","v":0},{"$f":"Dataset[[#This Row],[2026/27 Baseline]]+Dataset[[#This Row],[2026/27 Total change]]","v":5},{"$f":"Dataset[[#This Row],[2027/28 Baseline]]+Dataset[[#This Row],[2027/28 Total change]]","v":7},{"$f":"Dataset[[#This Row],[2028/29 Baseline]]+Dataset[[#This Row],[2028/29 Total change]]","v":7},{"$f":"Dataset[[#This Row],[2029/30 Baseline]]+Dataset[[#This Row],[2029/30 Total change]]","v":7}]
["NAT|Non-transfer","30|Consumables: Stationery, printing and office supplies","2027_28","MTEC2027",30,4,1,32988,468,"30","04","01","032988","000468","30|04|01|000468","01","01","02","32","32","01|01|02|32|32","National","Communications and Digital Technologies","Digital Communication, Access and Services","Programme Management for Digital Communication, Access and Services","Non-transfer","Current","Current payments","Goods and services","Consumables: Stationery, printing and office supplies","Consumables: Stationery, printing and office supplies","Economic development","Economic regulation and infrastructure","NAT",0,1,7,21,21,21,0,40,6,6,6,null,null,null,null,null,null,null,null,null,null,null,null,null,null,null,null,null,null,null,null,null,null,null,null,null,null,null,null,null,null,null,null,null,null,{"$f":"Dataset[[#This Row],[2027/28 From - Spending review Topic 1]]+Dataset[[#This Row],[2027/28 From - Spending review Topic 2]]+Dataset[[#This Row],[2027/28 From - Spending review Topic 3]]+Dataset[[#This Row],[2027/28 From - Spending review Topic 4]]+Dataset[[#This Row],[2027/28 From - Other reallocations]]","v":0},{"$f":"Dataset[[#This Row],[2028/29 From - Spending review Topic 1]]+Dataset[[#This Row],[2028/29 From - Spending review Topic 2]]+Dataset[[#This Row],[2028/29 From - Spending review Topic 3]]+Dataset[[#This Row],[2028/29 From - Spending review Topic 4]]+Dataset[[#This Row],[2028/29 From - Other reallocations]]","v":0},{"$f":"Dataset[[#This Row],[2029/30 From - Spending review Topic 1]]+Dataset[[#This Row],[2029/30 From - Spending review Topic 2]]+Dataset[[#This Row],[2029/30 From - Spending review Topic 3]]+Dataset[[#This Row],[2029/30 From - Spending review Topic 4]]+Dataset[[#This Row],[2029/30 From - Other reallocations]]","v":0},{"$f":"Dataset[[#This Row],[2027/28 To - Spending review Topic 1]]+Dataset[[#This Row],[2027/28 To - Spending review Topic 2]]+Dataset[[#This Row],[2027/28 To - Spending review Topic 3]]+Dataset[[#This Row],[2027/28 To - Spending review Topic 4]]+Dataset[[#This Row],[2027/28 To - Other reallocations]]","v":0},{"$f":"Dataset[[#This Row],[2028/29 To - Spending review Topic 1]]+Dataset[[#This Row],[2028/29 To - Spending review Topic 2]]+Dataset[[#This Row],[2028/29 To - Spending review Topic 3]]+Dataset[[#This Row],[2028/29 To - Spending review Topic 4]]+Dataset[[#This Row],[2028/29 To - Other reallocations]]","v":0},{"$f":"Dataset[[#This Row],[2029/30 To - Spending review Topic 1]]+Dataset[[#This Row],[2029/30 To - Spending review Topic 2]]+Dataset[[#This Row],[2029/30 To - Spending review Topic 3]]+Dataset[[#This Row],[2029/30 To - Spending review Topic 4]]+Dataset[[#This Row],[2029/30 To - Other reallocations]]","v":0},{"$f":"Dataset[[#This Row],[2027/28 Targeted savings]]+Dataset[[#This Row],[2027/28 From - Total]]","v":0},{"$f":"Dataset[[#This Row],[2028/29 Targeted savings]]+Dataset[[#This Row],[2028/29 From - Total]]","v":0},{"$f":"Dataset[[#This Row],[2029/30 Targeted savings]]+Dataset[[#This Row],[2029/30 From - Total]]","v":0},{"$f":"Dataset[[#This Row],[2026/27 Targeted savings]]","v":0},{"$f":"SUM(Dataset[[#This Row],[2027/28 Targeted savings]],Dataset[[#This Row],[2027/28 From - Total]],Dataset[[#This Row],[2027/28 To - Total]])","v":0},{"$f":"SUM(Dataset[[#This Row],[2028/29 Targeted savings]],Dataset[[#This Row],[2028/29 From - Total]],Dataset[[#This Row],[2028/29 To - Total]])","v":0},{"$f":"SUM(Dataset[[#This Row],[2029/30 Targeted savings]],Dataset[[#This Row],[2029/30 From - Total]],Dataset[[#This Row],[2029/30 To - Total]])","v":0},{"$f":"Dataset[[#This Row],[2026/27 Baseline]]+Dataset[[#This Row],[2026/27 Total change]]","v":40},{"$f":"Dataset[[#This Row],[2027/28 Baseline]]+Dataset[[#This Row],[2027/28 Total change]]","v":6},{"$f":"Dataset[[#This Row],[2028/29 Baseline]]+Dataset[[#This Row],[2028/29 Total change]]","v":6},{"$f":"Dataset[[#This Row],[2029/30 Baseline]]+Dataset[[#This Row],[2029/30 Total change]]","v":6}]
["NAT|Non-transfer","30|Operating leases","2027_28","MTEC2027",30,4,1,32989,469,"30","04","01","032989","000469","30|04|01|000469","01","01","02","33","33","01|01|02|33|33","National","Communications and Digital Technologies","Digital Communication, Access and Services","Programme Management for Digital Communication, Access and Services","Non-transfer","Current","Current payments","Goods and services","Operating leases","Operating leases","Economic development","Economic regulation and infrastructure","NAT",0,0,0,30,30,30,0,100,0,0,0,null,null,null,null,null,null,null,null,null,null,null,null,null,null,null,null,null,null,null,null,null,null,null,null,null,null,null,null,null,null,null,null,null,null,{"$f":"Dataset[[#This Row],[2027/28 From - Spending review Topic 1]]+Dataset[[#This Row],[2027/28 From - Spending review Topic 2]]+Dataset[[#This Row],[2027/28 From - Spending review Topic 3]]+Dataset[[#This Row],[2027/28 From - Spending review Topic 4]]+Dataset[[#This Row],[2027/28 From - Other reallocations]]","v":0},{"$f":"Dataset[[#This Row],[2028/29 From - Spending review Topic 1]]+Dataset[[#This Row],[2028/29 From - Spending review Topic 2]]+Dataset[[#This Row],[2028/29 From - Spending review Topic 3]]+Dataset[[#This Row],[2028/29 From - Spending review Topic 4]]+Dataset[[#This Row],[2028/29 From - Other reallocations]]","v":0},{"$f":"Dataset[[#This Row],[2029/30 From - Spending review Topic 1]]+Dataset[[#This Row],[2029/30 From - Spending review Topic 2]]+Dataset[[#This Row],[2029/30 From - Spending review Topic 3]]+Dataset[[#This Row],[2029/30 From - Spending review Topic 4]]+Dataset[[#This Row],[2029/30 From - Other reallocations]]","v":0},{"$f":"Dataset[[#This Row],[2027/28 To - Spending review Topic 1]]+Dataset[[#This Row],[2027/28 To - Spending review Topic 2]]+Dataset[[#This Row],[2027/28 To - Spending review Topic 3]]+Dataset[[#This Row],[2027/28 To - Spending review Topic 4]]+Dataset[[#This Row],[2027/28 To - Other reallocations]]","v":0},{"$f":"Dataset[[#This Row],[2028/29 To - Spending review Topic 1]]+Dataset[[#This Row],[2028/29 To - Spending review Topic 2]]+Dataset[[#This Row],[2028/29 To - Spending review Topic 3]]+Dataset[[#This Row],[2028/29 To - Spending review Topic 4]]+Dataset[[#This Row],[2028/29 To - Other reallocations]]","v":0},{"$f":"Dataset[[#This Row],[2029/30 To - Spending review Topic 1]]+Dataset[[#This Row],[2029/30 To - Spending review Topic 2]]+Dataset[[#This Row],[2029/30 To - Spending review Topic 3]]+Dataset[[#This Row],[2029/30 To - Spending review Topic 4]]+Dataset[[#This Row],[2029/30 To - Other reallocations]]","v":0},{"$f":"Dataset[[#This Row],[2027/28 Targeted savings]]+Dataset[[#This Row],[2027/28 From - Total]]","v":0},{"$f":"Dataset[[#This Row],[2028/29 Targeted savings]]+Dataset[[#This Row],[2028/29 From - Total]]","v":0},{"$f":"Dataset[[#This Row],[2029/30 Targeted savings]]+Dataset[[#This Row],[2029/30 From - Total]]","v":0},{"$f":"Dataset[[#This Row],[2026/27 Targeted savings]]","v":0},{"$f":"SUM(Dataset[[#This Row],[2027/28 Targeted savings]],Dataset[[#This Row],[2027/28 From - Total]],Dataset[[#This Row],[2027/28 To - Total]])","v":0},{"$f":"SUM(Dataset[[#This Row],[2028/29 Targeted savings]],Dataset[[#This Row],[2028/29 From - Total]],Dataset[[#This Row],[2028/29 To - Total]])","v":0},{"$f":"SUM(Dataset[[#This Row],[2029/30 Targeted savings]],Dataset[[#This Row],[2029/30 From - Total]],Dataset[[#This Row],[2029/30 To - Total]])","v":0},{"$f":"Dataset[[#This Row],[2026/27 Baseline]]+Dataset[[#This Row],[2026/27 Total change]]","v":100},{"$f":"Dataset[[#This Row],[2027/28 Baseline]]+Dataset[[#This Row],[2027/28 Total change]]","v":0},{"$f":"Dataset[[#This Row],[2028/29 Baseline]]+Dataset[[#This Row],[2028/29 Total change]]","v":0},{"$f":"Dataset[[#This Row],[2029/30 Baseline]]+Dataset[[#This Row],[2029/30 Total change]]","v":0}]
["NAT|Non-transfer","30|Rental and hiring","2027_28","MTEC2027",30,4,1,32990,470,"30","04","01","032990","000470","30|04|01|000470","01","01","02","34","34","01|01|02|34|34","National","Communications and Digital Technologies","Digital Communication, Access and Services","Programme Management for Digital Communication, Access and Services","Non-transfer","Current","Current payments","Goods and services","Rental and hiring","Rental and hiring","Economic development","Economic regulation and infrastructure","NAT",0,0,0,0,0,0,0,0,44,45,46,null,null,null,null,null,null,null,null,null,null,null,null,null,null,null,null,null,null,null,null,null,null,null,null,null,null,null,null,null,null,null,null,null,null,{"$f":"Dataset[[#This Row],[2027/28 From - Spending review Topic 1]]+Dataset[[#This Row],[2027/28 From - Spending review Topic 2]]+Dataset[[#This Row],[2027/28 From - Spending review Topic 3]]+Dataset[[#This Row],[2027/28 From - Spending review Topic 4]]+Dataset[[#This Row],[2027/28 From - Other reallocations]]","v":0},{"$f":"Dataset[[#This Row],[2028/29 From - Spending review Topic 1]]+Dataset[[#This Row],[2028/29 From - Spending review Topic 2]]+Dataset[[#This Row],[2028/29 From - Spending review Topic 3]]+Dataset[[#This Row],[2028/29 From - Spending review Topic 4]]+Dataset[[#This Row],[2028/29 From - Other reallocations]]","v":0},{"$f":"Dataset[[#This Row],[2029/30 From - Spending review Topic 1]]+Dataset[[#This Row],[2029/30 From - Spending review Topic 2]]+Dataset[[#This Row],[2029/30 From - Spending review Topic 3]]+Dataset[[#This Row],[2029/30 From - Spending review Topic 4]]+Dataset[[#This Row],[2029/30 From - Other reallocations]]","v":0},{"$f":"Dataset[[#This Row],[2027/28 To - Spending review Topic 1]]+Dataset[[#This Row],[2027/28 To - Spending review Topic 2]]+Dataset[[#This Row],[2027/28 To - Spending review Topic 3]]+Dataset[[#This Row],[2027/28 To - Spending review Topic 4]]+Dataset[[#This Row],[2027/28 To - Other reallocations]]","v":0},{"$f":"Dataset[[#This Row],[2028/29 To - Spending review Topic 1]]+Dataset[[#This Row],[2028/29 To - Spending review Topic 2]]+Dataset[[#This Row],[2028/29 To - Spending review Topic 3]]+Dataset[[#This Row],[2028/29 To - Spending review Topic 4]]+Dataset[[#This Row],[2028/29 To - Other reallocations]]","v":0},{"$f":"Dataset[[#This Row],[2029/30 To - Spending review Topic 1]]+Dataset[[#This Row],[2029/30 To - Spending review Topic 2]]+Dataset[[#This Row],[2029/30 To - Spending review Topic 3]]+Dataset[[#This Row],[2029/30 To - Spending review Topic 4]]+Dataset[[#This Row],[2029/30 To - Other reallocations]]","v":0},{"$f":"Dataset[[#This Row],[2027/28 Targeted savings]]+Dataset[[#This Row],[2027/28 From - Total]]","v":0},{"$f":"Dataset[[#This Row],[2028/29 Targeted savings]]+Dataset[[#This Row],[2028/29 From - Total]]","v":0},{"$f":"Dataset[[#This Row],[2029/30 Targeted savings]]+Dataset[[#This Row],[2029/30 From - Total]]","v":0},{"$f":"Dataset[[#This Row],[2026/27 Targeted savings]]","v":0},{"$f":"SUM(Dataset[[#This Row],[2027/28 Targeted savings]],Dataset[[#This Row],[2027/28 From - Total]],Dataset[[#This Row],[2027/28 To - Total]])","v":0},{"$f":"SUM(Dataset[[#This Row],[2028/29 Targeted savings]],Dataset[[#This Row],[2028/29 From - Total]],Dataset[[#This Row],[2028/29 To - Total]])","v":0},{"$f":"SUM(Dataset[[#This Row],[2029/30 Targeted savings]],Dataset[[#This Row],[2029/30 From - Total]],Dataset[[#This Row],[2029/30 To - Total]])","v":0},{"$f":"Dataset[[#This Row],[2026/27 Baseline]]+Dataset[[#This Row],[2026/27 Total change]]","v":0},{"$f":"Dataset[[#This Row],[2027/28 Baseline]]+Dataset[[#This Row],[2027/28 Total change]]","v":44},{"$f":"Dataset[[#This Row],[2028/29 Baseline]]+Dataset[[#This Row],[2028/29 Total change]]","v":45},{"$f":"Dataset[[#This Row],[2029/30 Baseline]]+Dataset[[#This Row],[2029/30 Total change]]","v":46}]
["NAT|Non-transfer","30|Travel and subsistence","2027_28","MTEC2027",30,4,1,32991,471,"30","04","01","032991","000471","30|04|01|000471","01","01","02","37","37","01|01|02|37|37","National","Communications and Digital Technologies","Digital Communication, Access and Services","Programme Management for Digital Communication, Access and Services","Non-transfer","Current","Current payments","Goods and services","Travel and subsistence","Travel and subsistence","Economic development","Economic regulation and infrastructure","NAT",26,201,139,425,425,425,0,621,746,402,414,null,null,null,null,null,null,null,null,null,null,null,null,null,null,null,null,null,null,null,null,null,null,null,null,null,null,null,null,null,null,null,null,null,null,{"$f":"Dataset[[#This Row],[2027/28 From - Spending review Topic 1]]+Dataset[[#This Row],[2027/28 From - Spending review Topic 2]]+Dataset[[#This Row],[2027/28 From - Spending review Topic 3]]+Dataset[[#This Row],[2027/28 From - Spending review Topic 4]]+Dataset[[#This Row],[2027/28 From - Other reallocations]]","v":0},{"$f":"Dataset[[#This Row],[2028/29 From - Spending review Topic 1]]+Dataset[[#This Row],[2028/29 From - Spending review Topic 2]]+Dataset[[#This Row],[2028/29 From - Spending review Topic 3]]+Dataset[[#This Row],[2028/29 From - Spending review Topic 4]]+Dataset[[#This Row],[2028/29 From - Other reallocations]]","v":0},{"$f":"Dataset[[#This Row],[2029/30 From - Spending review Topic 1]]+Dataset[[#This Row],[2029/30 From - Spending review Topic 2]]+Dataset[[#This Row],[2029/30 From - Spending review Topic 3]]+Dataset[[#This Row],[2029/30 From - Spending review Topic 4]]+Dataset[[#This Row],[2029/30 From - Other reallocations]]","v":0},{"$f":"Dataset[[#This Row],[2027/28 To - Spending review Topic 1]]+Dataset[[#This Row],[2027/28 To - Spending review Topic 2]]+Dataset[[#This Row],[2027/28 To - Spending review Topic 3]]+Dataset[[#This Row],[2027/28 To - Spending review Topic 4]]+Dataset[[#This Row],[2027/28 To - Other reallocations]]","v":0},{"$f":"Dataset[[#This Row],[2028/29 To - Spending review Topic 1]]+Dataset[[#This Row],[2028/29 To - Spending review Topic 2]]+Dataset[[#This Row],[2028/29 To - Spending review Topic 3]]+Dataset[[#This Row],[2028/29 To - Spending review Topic 4]]+Dataset[[#This Row],[2028/29 To - Other reallocations]]","v":0},{"$f":"Dataset[[#This Row],[2029/30 To - Spending review Topic 1]]+Dataset[[#This Row],[2029/30 To - Spending review Topic 2]]+Dataset[[#This Row],[2029/30 To - Spending review Topic 3]]+Dataset[[#This Row],[2029/30 To - Spending review Topic 4]]+Dataset[[#This Row],[2029/30 To - Other reallocations]]","v":0},{"$f":"Dataset[[#This Row],[2027/28 Targeted savings]]+Dataset[[#This Row],[2027/28 From - Total]]","v":0},{"$f":"Dataset[[#This Row],[2028/29 Targeted savings]]+Dataset[[#This Row],[2028/29 From - Total]]","v":0},{"$f":"Dataset[[#This Row],[2029/30 Targeted savings]]+Dataset[[#This Row],[2029/30 From - Total]]","v":0},{"$f":"Dataset[[#This Row],[2026/27 Targeted savings]]","v":0},{"$f":"SUM(Dataset[[#This Row],[2027/28 Targeted savings]],Dataset[[#This Row],[2027/28 From - Total]],Dataset[[#This Row],[2027/28 To - Total]])","v":0},{"$f":"SUM(Dataset[[#This Row],[2028/29 Targeted savings]],Dataset[[#This Row],[2028/29 From - Total]],Dataset[[#This Row],[2028/29 To - Total]])","v":0},{"$f":"SUM(Dataset[[#This Row],[2029/30 Targeted savings]],Dataset[[#This Row],[2029/30 From - Total]],Dataset[[#This Row],[2029/30 To - Total]])","v":0},{"$f":"Dataset[[#This Row],[2026/27 Baseline]]+Dataset[[#This Row],[2026/27 Total change]]","v":621},{"$f":"Dataset[[#This Row],[2027/28 Baseline]]+Dataset[[#This Row],[2027/28 Total change]]","v":746},{"$f":"Dataset[[#This Row],[2028/29 Baseline]]+Dataset[[#This Row],[2028/29 Total change]]","v":402},{"$f":"Dataset[[#This Row],[2029/30 Baseline]]+Dataset[[#This Row],[2029/30 Total change]]","v":414}]
["NAT|Non-transfer","30|Training and development","2027_28","MTEC2027",30,4,1,32992,472,"30","04","01","032992","000472","30|04|01|000472","01","01","02","38","38","01|01|02|38|38","National","Communications and Digital Technologies","Digital Communication, Access and Services","Programme Management for Digital Communication, Access and Services","Non-transfer","Current","Current payments","Goods and services","Training and development","Training and development","Economic development","Economic regulation and infrastructure","NAT",0,0,0,30,30,30,0,30,24,24,25,null,null,null,null,null,null,null,null,null,null,null,null,null,null,null,null,null,null,null,null,null,null,null,null,null,null,null,null,null,null,null,null,null,null,{"$f":"Dataset[[#This Row],[2027/28 From - Spending review Topic 1]]+Dataset[[#This Row],[2027/28 From - Spending review Topic 2]]+Dataset[[#This Row],[2027/28 From - Spending review Topic 3]]+Dataset[[#This Row],[2027/28 From - Spending review Topic 4]]+Dataset[[#This Row],[2027/28 From - Other reallocations]]","v":0},{"$f":"Dataset[[#This Row],[2028/29 From - Spending review Topic 1]]+Dataset[[#This Row],[2028/29 From - Spending review Topic 2]]+Dataset[[#This Row],[2028/29 From - Spending review Topic 3]]+Dataset[[#This Row],[2028/29 From - Spending review Topic 4]]+Dataset[[#This Row],[2028/29 From - Other reallocations]]","v":0},{"$f":"Dataset[[#This Row],[2029/30 From - Spending review Topic 1]]+Dataset[[#This Row],[2029/30 From - Spending review Topic 2]]+Dataset[[#This Row],[2029/30 From - Spending review Topic 3]]+Dataset[[#This Row],[2029/30 From - Spending review Topic 4]]+Dataset[[#This Row],[2029/30 From - Other reallocations]]","v":0},{"$f":"Dataset[[#This Row],[2027/28 To - Spending review Topic 1]]+Dataset[[#This Row],[2027/28 To - Spending review Topic 2]]+Dataset[[#This Row],[2027/28 To - Spending review Topic 3]]+Dataset[[#This Row],[2027/28 To - Spending review Topic 4]]+Dataset[[#This Row],[2027/28 To - Other reallocations]]","v":0},{"$f":"Dataset[[#This Row],[2028/29 To - Spending review Topic 1]]+Dataset[[#This Row],[2028/29 To - Spending review Topic 2]]+Dataset[[#This Row],[2028/29 To - Spending review Topic 3]]+Dataset[[#This Row],[2028/29 To - Spending review Topic 4]]+Dataset[[#This Row],[2028/29 To - Other reallocations]]","v":0},{"$f":"Dataset[[#This Row],[2029/30 To - Spending review Topic 1]]+Dataset[[#This Row],[2029/30 To - Spending review Topic 2]]+Dataset[[#This Row],[2029/30 To - Spending review Topic 3]]+Dataset[[#This Row],[2029/30 To - Spending review Topic 4]]+Dataset[[#This Row],[2029/30 To - Other reallocations]]","v":0},{"$f":"Dataset[[#This Row],[2027/28 Targeted savings]]+Dataset[[#This Row],[2027/28 From - Total]]","v":0},{"$f":"Dataset[[#This Row],[2028/29 Targeted savings]]+Dataset[[#This Row],[2028/29 From - Total]]","v":0},{"$f":"Dataset[[#This Row],[2029/30 Targeted savings]]+Dataset[[#This Row],[2029/30 From - Total]]","v":0},{"$f":"Dataset[[#This Row],[2026/27 Targeted savings]]","v":0},{"$f":"SUM(Dataset[[#This Row],[2027/28 Targeted savings]],Dataset[[#This Row],[2027/28 From - Total]],Dataset[[#This Row],[2027/28 To - Total]])","v":0},{"$f":"SUM(Dataset[[#This Row],[2028/29 Targeted savings]],Dataset[[#This Row],[2028/29 From - Total]],Dataset[[#This Row],[2028/29 To - Total]])","v":0},{"$f":"SUM(Dataset[[#This Row],[2029/30 Targeted savings]],Dataset[[#This Row],[2029/30 From - Total]],Dataset[[#This Row],[2029/30 To - Total]])","v":0},{"$f":"Dataset[[#This Row],[2026/27 Baseline]]+Dataset[[#This Row],[2026/27 Total change]]","v":30},{"$f":"Dataset[[#This Row],[2027/28 Baseline]]+Dataset[[#This Row],[2027/28 Total change]]","v":24},{"$f":"Dataset[[#This Row],[2028/29 Baseline]]+Dataset[[#This Row],[2028/29 Total change]]","v":24},{"$f":"Dataset[[#This Row],[2029/30 Baseline]]+Dataset[[#This Row],[2029/30 Total change]]","v":25}]
["NAT|Non-transfer","30|Venues and facilities","2027_28","MTEC2027",30,4,1,32993,473,"30","04","01","032993","000473","30|04|01|000473","01","01","02","40","40","01|01|02|40|40","National","Communications and Digital Technologies","Digital Communication, Access and Services","Programme Management for Digital Communication, Access and Services","Non-transfer","Current","Current payments","Goods and services","Venues and facilities","Venues and facilities","Economic development","Economic regulation and infrastructure","NAT",0,0,0,30,30,30,0,30,0,0,0,null,null,null,null,null,null,null,null,null,null,null,null,null,null,null,null,null,null,null,null,null,null,null,null,null,null,null,null,null,null,null,null,null,null,{"$f":"Dataset[[#This Row],[2027/28 From - Spending review Topic 1]]+Dataset[[#This Row],[2027/28 From - Spending review Topic 2]]+Dataset[[#This Row],[2027/28 From - Spending review Topic 3]]+Dataset[[#This Row],[2027/28 From - Spending review Topic 4]]+Dataset[[#This Row],[2027/28 From - Other reallocations]]","v":0},{"$f":"Dataset[[#This Row],[2028/29 From - Spending review Topic 1]]+Dataset[[#This Row],[2028/29 From - Spending review Topic 2]]+Dataset[[#This Row],[2028/29 From - Spending review Topic 3]]+Dataset[[#This Row],[2028/29 From - Spending review Topic 4]]+Dataset[[#This Row],[2028/29 From - Other reallocations]]","v":0},{"$f":"Dataset[[#This Row],[2029/30 From - Spending review Topic 1]]+Dataset[[#This Row],[2029/30 From - Spending review Topic 2]]+Dataset[[#This Row],[2029/30 From - Spending review Topic 3]]+Dataset[[#This Row],[2029/30 From - Spending review Topic 4]]+Dataset[[#This Row],[2029/30 From - Other reallocations]]","v":0},{"$f":"Dataset[[#This Row],[2027/28 To - Spending review Topic 1]]+Dataset[[#This Row],[2027/28 To - Spending review Topic 2]]+Dataset[[#This Row],[2027/28 To - Spending review Topic 3]]+Dataset[[#This Row],[2027/28 To - Spending review Topic 4]]+Dataset[[#This Row],[2027/28 To - Other reallocations]]","v":0},{"$f":"Dataset[[#This Row],[2028/29 To - Spending review Topic 1]]+Dataset[[#This Row],[2028/29 To - Spending review Topic 2]]+Dataset[[#This Row],[2028/29 To - Spending review Topic 3]]+Dataset[[#This Row],[2028/29 To - Spending review Topic 4]]+Dataset[[#This Row],[2028/29 To - Other reallocations]]","v":0},{"$f":"Dataset[[#This Row],[2029/30 To - Spending review Topic 1]]+Dataset[[#This Row],[2029/30 To - Spending review Topic 2]]+Dataset[[#This Row],[2029/30 To - Spending review Topic 3]]+Dataset[[#This Row],[2029/30 To - Spending review Topic 4]]+Dataset[[#This Row],[2029/30 To - Other reallocations]]","v":0},{"$f":"Dataset[[#This Row],[2027/28 Targeted savings]]+Dataset[[#This Row],[2027/28 From - Total]]","v":0},{"$f":"Dataset[[#This Row],[2028/29 Targeted savings]]+Dataset[[#This Row],[2028/29 From - Total]]","v":0},{"$f":"Dataset[[#This Row],[2029/30 Targeted savings]]+Dataset[[#This Row],[2029/30 From - Total]]","v":0},{"$f":"Dataset[[#This Row],[2026/27 Targeted savings]]","v":0},{"$f":"SUM(Dataset[[#This Row],[2027/28 Targeted savings]],Dataset[[#This Row],[2027/28 From - Total]],Dataset[[#This Row],[2027/28 To - Total]])","v":0},{"$f":"SUM(Dataset[[#This Row],[2028/29 Targeted savings]],Dataset[[#This Row],[2028/29 From - Total]],Dataset[[#This Row],[2028/29 To - Total]])","v":0},{"$f":"SUM(Dataset[[#This Row],[2029/30 Targeted savings]],Dataset[[#This Row],[2029/30 From - Total]],Dataset[[#This Row],[2029/30 To - Total]])","v":0},{"$f":"Dataset[[#This Row],[2026/27 Baseline]]+Dataset[[#This Row],[2026/27 Total change]]","v":30},{"$f":"Dataset[[#This Row],[2027/28 Baseline]]+Dataset[[#This Row],[2027/28 Total change]]","v":0},{"$f":"Dataset[[#This Row],[2028/29 Baseline]]+Dataset[[#This Row],[2028/29 Total change]]","v":0},{"$f":"Dataset[[#This Row],[2029/30 Baseline]]+Dataset[[#This Row],[2029/30 Total change]]","v":0}]
["NAT|Households","30|Social benefits","2027_28","MTEC2027",30,4,1,32994,474,"30","04","01","032994","000474","30|04|01|000474","01","02","10","52","56","01|02|10|52|56","National","Communications and Digital Technologies","Digital Communication, Access and Services","Programme Management for Digital Communication, Access and Services","Households","Current","Transfers and subsidies","Households","Social benefits","Social benefits","Economic development","Economic regulation and infrastructure","NAT",0,21,0,0,0,0,0,0,0,0,0,null,null,null,null,null,null,null,null,null,null,null,null,null,null,null,null,null,null,null,null,null,null,null,null,null,null,null,null,null,null,null,null,null,null,{"$f":"Dataset[[#This Row],[2027/28 From - Spending review Topic 1]]+Dataset[[#This Row],[2027/28 From - Spending review Topic 2]]+Dataset[[#This Row],[2027/28 From - Spending review Topic 3]]+Dataset[[#This Row],[2027/28 From - Spending review Topic 4]]+Dataset[[#This Row],[2027/28 From - Other reallocations]]","v":0},{"$f":"Dataset[[#This Row],[2028/29 From - Spending review Topic 1]]+Dataset[[#This Row],[2028/29 From - Spending review Topic 2]]+Dataset[[#This Row],[2028/29 From - Spending review Topic 3]]+Dataset[[#This Row],[2028/29 From - Spending review Topic 4]]+Dataset[[#This Row],[2028/29 From - Other reallocations]]","v":0},{"$f":"Dataset[[#This Row],[2029/30 From - Spending review Topic 1]]+Dataset[[#This Row],[2029/30 From - Spending review Topic 2]]+Dataset[[#This Row],[2029/30 From - Spending review Topic 3]]+Dataset[[#This Row],[2029/30 From - Spending review Topic 4]]+Dataset[[#This Row],[2029/30 From - Other reallocations]]","v":0},{"$f":"Dataset[[#This Row],[2027/28 To - Spending review Topic 1]]+Dataset[[#This Row],[2027/28 To - Spending review Topic 2]]+Dataset[[#This Row],[2027/28 To - Spending review Topic 3]]+Dataset[[#This Row],[2027/28 To - Spending review Topic 4]]+Dataset[[#This Row],[2027/28 To - Other reallocations]]","v":0},{"$f":"Dataset[[#This Row],[2028/29 To - Spending review Topic 1]]+Dataset[[#This Row],[2028/29 To - Spending review Topic 2]]+Dataset[[#This Row],[2028/29 To - Spending review Topic 3]]+Dataset[[#This Row],[2028/29 To - Spending review Topic 4]]+Dataset[[#This Row],[2028/29 To - Other reallocations]]","v":0},{"$f":"Dataset[[#This Row],[2029/30 To - Spending review Topic 1]]+Dataset[[#This Row],[2029/30 To - Spending review Topic 2]]+Dataset[[#This Row],[2029/30 To - Spending review Topic 3]]+Dataset[[#This Row],[2029/30 To - Spending review Topic 4]]+Dataset[[#This Row],[2029/30 To - Other reallocations]]","v":0},{"$f":"Dataset[[#This Row],[2027/28 Targeted savings]]+Dataset[[#This Row],[2027/28 From - Total]]","v":0},{"$f":"Dataset[[#This Row],[2028/29 Targeted savings]]+Dataset[[#This Row],[2028/29 From - Total]]","v":0},{"$f":"Dataset[[#This Row],[2029/30 Targeted savings]]+Dataset[[#This Row],[2029/30 From - Total]]","v":0},{"$f":"Dataset[[#This Row],[2026/27 Targeted savings]]","v":0},{"$f":"SUM(Dataset[[#This Row],[2027/28 Targeted savings]],Dataset[[#This Row],[2027/28 From - Total]],Dataset[[#This Row],[2027/28 To - Total]])","v":0},{"$f":"SUM(Dataset[[#This Row],[2028/29 Targeted savings]],Dataset[[#This Row],[2028/29 From - Total]],Dataset[[#This Row],[2028/29 To - Total]])","v":0},{"$f":"SUM(Dataset[[#This Row],[2029/30 Targeted savings]],Dataset[[#This Row],[2029/30 From - Total]],Dataset[[#This Row],[2029/30 To - Total]])","v":0},{"$f":"Dataset[[#This Row],[2026/27 Baseline]]+Dataset[[#This Row],[2026/27 Total change]]","v":0},{"$f":"Dataset[[#This Row],[2027/28 Baseline]]+Dataset[[#This Row],[2027/28 Total change]]","v":0},{"$f":"Dataset[[#This Row],[2028/29 Baseline]]+Dataset[[#This Row],[2028/29 Total change]]","v":0},{"$f":"Dataset[[#This Row],[2029/30 Baseline]]+Dataset[[#This Row],[2029/30 Total change]]","v":0}]
["NAT|Households","30|Other transfers to households","2027_28","MTEC2027",30,4,1,32995,475,"30","04","01","032995","000475","30|04|01|000475","01","02","10","53","57","01|02|10|53|57","National","Communications and Digital Technologies","Digital Communication, Access and Services","Programme Management for Digital Communication, Access and Services","Households","Current","Transfers and subsidies","Households","Other transfers to households","Other transfers to households","Economic development","Economic regulation and infrastructure","NAT",0,0,2,0,0,0,0,0,0,0,0,null,null,null,null,null,null,null,null,null,null,null,null,null,null,null,null,null,null,null,null,null,null,null,null,null,null,null,null,null,null,null,null,null,null,{"$f":"Dataset[[#This Row],[2027/28 From - Spending review Topic 1]]+Dataset[[#This Row],[2027/28 From - Spending review Topic 2]]+Dataset[[#This Row],[2027/28 From - Spending review Topic 3]]+Dataset[[#This Row],[2027/28 From - Spending review Topic 4]]+Dataset[[#This Row],[2027/28 From - Other reallocations]]","v":0},{"$f":"Dataset[[#This Row],[2028/29 From - Spending review Topic 1]]+Dataset[[#This Row],[2028/29 From - Spending review Topic 2]]+Dataset[[#This Row],[2028/29 From - Spending review Topic 3]]+Dataset[[#This Row],[2028/29 From - Spending review Topic 4]]+Dataset[[#This Row],[2028/29 From - Other reallocations]]","v":0},{"$f":"Dataset[[#This Row],[2029/30 From - Spending review Topic 1]]+Dataset[[#This Row],[2029/30 From - Spending review Topic 2]]+Dataset[[#This Row],[2029/30 From - Spending review Topic 3]]+Dataset[[#This Row],[2029/30 From - Spending review Topic 4]]+Dataset[[#This Row],[2029/30 From - Other reallocations]]","v":0},{"$f":"Dataset[[#This Row],[2027/28 To - Spending review Topic 1]]+Dataset[[#This Row],[2027/28 To - Spending review Topic 2]]+Dataset[[#This Row],[2027/28 To - Spending review Topic 3]]+Dataset[[#This Row],[2027/28 To - Spending review Topic 4]]+Dataset[[#This Row],[2027/28 To - Other reallocations]]","v":0},{"$f":"Dataset[[#This Row],[2028/29 To - Spending review Topic 1]]+Dataset[[#This Row],[2028/29 To - Spending review Topic 2]]+Dataset[[#This Row],[2028/29 To - Spending review Topic 3]]+Dataset[[#This Row],[2028/29 To - Spending review Topic 4]]+Dataset[[#This Row],[2028/29 To - Other reallocations]]","v":0},{"$f":"Dataset[[#This Row],[2029/30 To - Spending review Topic 1]]+Dataset[[#This Row],[2029/30 To - Spending review Topic 2]]+Dataset[[#This Row],[2029/30 To - Spending review Topic 3]]+Dataset[[#This Row],[2029/30 To - Spending review Topic 4]]+Dataset[[#This Row],[2029/30 To - Other reallocations]]","v":0},{"$f":"Dataset[[#This Row],[2027/28 Targeted savings]]+Dataset[[#This Row],[2027/28 From - Total]]","v":0},{"$f":"Dataset[[#This Row],[2028/29 Targeted savings]]+Dataset[[#This Row],[2028/29 From - Total]]","v":0},{"$f":"Dataset[[#This Row],[2029/30 Targeted savings]]+Dataset[[#This Row],[2029/30 From - Total]]","v":0},{"$f":"Dataset[[#This Row],[2026/27 Targeted savings]]","v":0},{"$f":"SUM(Dataset[[#This Row],[2027/28 Targeted savings]],Dataset[[#This Row],[2027/28 From - Total]],Dataset[[#This Row],[2027/28 To - Total]])","v":0},{"$f":"SUM(Dataset[[#This Row],[2028/29 Targeted savings]],Dataset[[#This Row],[2028/29 From - Total]],Dataset[[#This Row],[2028/29 To - Total]])","v":0},{"$f":"SUM(Dataset[[#This Row],[2029/30 Targeted savings]],Dataset[[#This Row],[2029/30 From - Total]],Dataset[[#This Row],[2029/30 To - Total]])","v":0},{"$f":"Dataset[[#This Row],[2026/27 Baseline]]+Dataset[[#This Row],[2026/27 Total change]]","v":0},{"$f":"Dataset[[#This Row],[2027/28 Baseline]]+Dataset[[#This Row],[2027/28 Total change]]","v":0},{"$f":"Dataset[[#This Row],[2028/29 Baseline]]+Dataset[[#This Row],[2028/29 Total change]]","v":0},{"$f":"Dataset[[#This Row],[2029/30 Baseline]]+Dataset[[#This Row],[2029/30 Total change]]","v":0}]
["NAT|Non-transfer","30|Other machinery and equipment","2027_28","MTEC2027",30,4,1,32996,476,"30","04","01","032996","000476","30|04|01|000476","02","03","12","57","61","02|03|12|57|61","National","Communications and Digital Technologies","Digital Communication, Access and Services","Programme Management for Digital Communication, Access and Services","Non-transfer","Capital","Payments for capital assets","Machinery and equipment","Other machinery and equipment","Other machinery and equipment","Economic development","Economic regulation and infrastructure","NAT",0,79,0,0,0,0,0,0,0,0,0,null,null,null,null,null,null,null,null,null,null,null,null,null,null,null,null,null,null,null,null,null,null,null,null,null,null,null,null,null,null,null,null,null,null,{"$f":"Dataset[[#This Row],[2027/28 From - Spending review Topic 1]]+Dataset[[#This Row],[2027/28 From - Spending review Topic 2]]+Dataset[[#This Row],[2027/28 From - Spending review Topic 3]]+Dataset[[#This Row],[2027/28 From - Spending review Topic 4]]+Dataset[[#This Row],[2027/28 From - Other reallocations]]","v":0},{"$f":"Dataset[[#This Row],[2028/29 From - Spending review Topic 1]]+Dataset[[#This Row],[2028/29 From - Spending review Topic 2]]+Dataset[[#This Row],[2028/29 From - Spending review Topic 3]]+Dataset[[#This Row],[2028/29 From - Spending review Topic 4]]+Dataset[[#This Row],[2028/29 From - Other reallocations]]","v":0},{"$f":"Dataset[[#This Row],[2029/30 From - Spending review Topic 1]]+Dataset[[#This Row],[2029/30 From - Spending review Topic 2]]+Dataset[[#This Row],[2029/30 From - Spending review Topic 3]]+Dataset[[#This Row],[2029/30 From - Spending review Topic 4]]+Dataset[[#This Row],[2029/30 From - Other reallocations]]","v":0},{"$f":"Dataset[[#This Row],[2027/28 To - Spending review Topic 1]]+Dataset[[#This Row],[2027/28 To - Spending review Topic 2]]+Dataset[[#This Row],[2027/28 To - Spending review Topic 3]]+Dataset[[#This Row],[2027/28 To - Spending review Topic 4]]+Dataset[[#This Row],[2027/28 To - Other reallocations]]","v":0},{"$f":"Dataset[[#This Row],[2028/29 To - Spending review Topic 1]]+Dataset[[#This Row],[2028/29 To - Spending review Topic 2]]+Dataset[[#This Row],[2028/29 To - Spending review Topic 3]]+Dataset[[#This Row],[2028/29 To - Spending review Topic 4]]+Dataset[[#This Row],[2028/29 To - Other reallocations]]","v":0},{"$f":"Dataset[[#This Row],[2029/30 To - Spending review Topic 1]]+Dataset[[#This Row],[2029/30 To - Spending review Topic 2]]+Dataset[[#This Row],[2029/30 To - Spending review Topic 3]]+Dataset[[#This Row],[2029/30 To - Spending review Topic 4]]+Dataset[[#This Row],[2029/30 To - Other reallocations]]","v":0},{"$f":"Dataset[[#This Row],[2027/28 Targeted savings]]+Dataset[[#This Row],[2027/28 From - Total]]","v":0},{"$f":"Dataset[[#This Row],[2028/29 Targeted savings]]+Dataset[[#This Row],[2028/29 From - Total]]","v":0},{"$f":"Dataset[[#This Row],[2029/30 Targeted savings]]+Dataset[[#This Row],[2029/30 From - Total]]","v":0},{"$f":"Dataset[[#This Row],[2026/27 Targeted savings]]","v":0},{"$f":"SUM(Dataset[[#This Row],[2027/28 Targeted savings]],Dataset[[#This Row],[2027/28 From - Total]],Dataset[[#This Row],[2027/28 To - Total]])","v":0},{"$f":"SUM(Dataset[[#This Row],[2028/29 Targeted savings]],Dataset[[#This Row],[2028/29 From - Total]],Dataset[[#This Row],[2028/29 To - Total]])","v":0},{"$f":"SUM(Dataset[[#This Row],[2029/30 Targeted savings]],Dataset[[#This Row],[2029/30 From - Total]],Dataset[[#This Row],[2029/30 To - Total]])","v":0},{"$f":"Dataset[[#This Row],[2026/27 Baseline]]+Dataset[[#This Row],[2026/27 Total change]]","v":0},{"$f":"Dataset[[#This Row],[2027/28 Baseline]]+Dataset[[#This Row],[2027/28 Total change]]","v":0},{"$f":"Dataset[[#This Row],[2028/29 Baseline]]+Dataset[[#This Row],[2028/29 Total change]]","v":0},{"$f":"Dataset[[#This Row],[2029/30 Baseline]]+Dataset[[#This Row],[2029/30 Total change]]","v":0}]
["NAT|Non-transfer","30|Salaries and wages","2027_28","MTEC2027",30,4,2,32997,477,"30","04","02","032997","000477","30|04|02|000477","01","01","01","01","01","01|01|01|01|01","National","Communications and Digital Technologies","Digital Communication, Access and Services","Regulatory Compliance","Non-transfer","Current","Current payments","Compensation of employees","Salaries and wages","Salaries and wages","Economic development","Economic regulation and infrastructure","NAT",116,0,0,709,0,0,0,5687,4254,3624,3733,null,null,null,null,null,null,null,null,null,null,null,null,null,null,null,null,null,null,null,null,null,null,null,null,null,null,null,null,null,null,null,null,null,null,{"$f":"Dataset[[#This Row],[2027/28 From - Spending review Topic 1]]+Dataset[[#This Row],[2027/28 From - Spending review Topic 2]]+Dataset[[#This Row],[2027/28 From - Spending review Topic 3]]+Dataset[[#This Row],[2027/28 From - Spending review Topic 4]]+Dataset[[#This Row],[2027/28 From - Other reallocations]]","v":0},{"$f":"Dataset[[#This Row],[2028/29 From - Spending review Topic 1]]+Dataset[[#This Row],[2028/29 From - Spending review Topic 2]]+Dataset[[#This Row],[2028/29 From - Spending review Topic 3]]+Dataset[[#This Row],[2028/29 From - Spending review Topic 4]]+Dataset[[#This Row],[2028/29 From - Other reallocations]]","v":0},{"$f":"Dataset[[#This Row],[2029/30 From - Spending review Topic 1]]+Dataset[[#This Row],[2029/30 From - Spending review Topic 2]]+Dataset[[#This Row],[2029/30 From - Spending review Topic 3]]+Dataset[[#This Row],[2029/30 From - Spending review Topic 4]]+Dataset[[#This Row],[2029/30 From - Other reallocations]]","v":0},{"$f":"Dataset[[#This Row],[2027/28 To - Spending review Topic 1]]+Dataset[[#This Row],[2027/28 To - Spending review Topic 2]]+Dataset[[#This Row],[2027/28 To - Spending review Topic 3]]+Dataset[[#This Row],[2027/28 To - Spending review Topic 4]]+Dataset[[#This Row],[2027/28 To - Other reallocations]]","v":0},{"$f":"Dataset[[#This Row],[2028/29 To - Spending review Topic 1]]+Dataset[[#This Row],[2028/29 To - Spending review Topic 2]]+Dataset[[#This Row],[2028/29 To - Spending review Topic 3]]+Dataset[[#This Row],[2028/29 To - Spending review Topic 4]]+Dataset[[#This Row],[2028/29 To - Other reallocations]]","v":0},{"$f":"Dataset[[#This Row],[2029/30 To - Spending review Topic 1]]+Dataset[[#This Row],[2029/30 To - Spending review Topic 2]]+Dataset[[#This Row],[2029/30 To - Spending review Topic 3]]+Dataset[[#This Row],[2029/30 To - Spending review Topic 4]]+Dataset[[#This Row],[2029/30 To - Other reallocations]]","v":0},{"$f":"Dataset[[#This Row],[2027/28 Targeted savings]]+Dataset[[#This Row],[2027/28 From - Total]]","v":0},{"$f":"Dataset[[#This Row],[2028/29 Targeted savings]]+Dataset[[#This Row],[2028/29 From - Total]]","v":0},{"$f":"Dataset[[#This Row],[2029/30 Targeted savings]]+Dataset[[#This Row],[2029/30 From - Total]]","v":0},{"$f":"Dataset[[#This Row],[2026/27 Targeted savings]]","v":0},{"$f":"SUM(Dataset[[#This Row],[2027/28 Targeted savings]],Dataset[[#This Row],[2027/28 From - Total]],Dataset[[#This Row],[2027/28 To - Total]])","v":0},{"$f":"SUM(Dataset[[#This Row],[2028/29 Targeted savings]],Dataset[[#This Row],[2028/29 From - Total]],Dataset[[#This Row],[2028/29 To - Total]])","v":0},{"$f":"SUM(Dataset[[#This Row],[2029/30 Targeted savings]],Dataset[[#This Row],[2029/30 From - Total]],Dataset[[#This Row],[2029/30 To - Total]])","v":0},{"$f":"Dataset[[#This Row],[2026/27 Baseline]]+Dataset[[#This Row],[2026/27 Total change]]","v":5687},{"$f":"Dataset[[#This Row],[2027/28 Baseline]]+Dataset[[#This Row],[2027/28 Total change]]","v":4254},{"$f":"Dataset[[#This Row],[2028/29 Baseline]]+Dataset[[#This Row],[2028/29 Total change]]","v":3624},{"$f":"Dataset[[#This Row],[2029/30 Baseline]]+Dataset[[#This Row],[2029/30 Total change]]","v":3733}]
["NAT|Non-transfer","30|Social contributions","2027_28","MTEC2027",30,4,2,32998,478,"30","04","02","032998","000478","30|04|02|000478","01","01","01","02","02","01|01|01|02|02","National","Communications and Digital Technologies","Digital Communication, Access and Services","Regulatory Compliance","Non-transfer","Current","Current payments","Compensation of employees","Social contributions","Social contributions","Economic development","Economic regulation and infrastructure","NAT",0,0,0,0,0,0,0,860,897,925,953,null,null,null,null,null,null,null,null,null,null,null,null,null,null,null,null,null,null,null,null,null,null,null,null,null,null,null,null,null,null,null,null,null,null,{"$f":"Dataset[[#This Row],[2027/28 From - Spending review Topic 1]]+Dataset[[#This Row],[2027/28 From - Spending review Topic 2]]+Dataset[[#This Row],[2027/28 From - Spending review Topic 3]]+Dataset[[#This Row],[2027/28 From - Spending review Topic 4]]+Dataset[[#This Row],[2027/28 From - Other reallocations]]","v":0},{"$f":"Dataset[[#This Row],[2028/29 From - Spending review Topic 1]]+Dataset[[#This Row],[2028/29 From - Spending review Topic 2]]+Dataset[[#This Row],[2028/29 From - Spending review Topic 3]]+Dataset[[#This Row],[2028/29 From - Spending review Topic 4]]+Dataset[[#This Row],[2028/29 From - Other reallocations]]","v":0},{"$f":"Dataset[[#This Row],[2029/30 From - Spending review Topic 1]]+Dataset[[#This Row],[2029/30 From - Spending review Topic 2]]+Dataset[[#This Row],[2029/30 From - Spending review Topic 3]]+Dataset[[#This Row],[2029/30 From - Spending review Topic 4]]+Dataset[[#This Row],[2029/30 From - Other reallocations]]","v":0},{"$f":"Dataset[[#This Row],[2027/28 To - Spending review Topic 1]]+Dataset[[#This Row],[2027/28 To - Spending review Topic 2]]+Dataset[[#This Row],[2027/28 To - Spending review Topic 3]]+Dataset[[#This Row],[2027/28 To - Spending review Topic 4]]+Dataset[[#This Row],[2027/28 To - Other reallocations]]","v":0},{"$f":"Dataset[[#This Row],[2028/29 To - Spending review Topic 1]]+Dataset[[#This Row],[2028/29 To - Spending review Topic 2]]+Dataset[[#This Row],[2028/29 To - Spending review Topic 3]]+Dataset[[#This Row],[2028/29 To - Spending review Topic 4]]+Dataset[[#This Row],[2028/29 To - Other reallocations]]","v":0},{"$f":"Dataset[[#This Row],[2029/30 To - Spending review Topic 1]]+Dataset[[#This Row],[2029/30 To - Spending review Topic 2]]+Dataset[[#This Row],[2029/30 To - Spending review Topic 3]]+Dataset[[#This Row],[2029/30 To - Spending review Topic 4]]+Dataset[[#This Row],[2029/30 To - Other reallocations]]","v":0},{"$f":"Dataset[[#This Row],[2027/28 Targeted savings]]+Dataset[[#This Row],[2027/28 From - Total]]","v":0},{"$f":"Dataset[[#This Row],[2028/29 Targeted savings]]+Dataset[[#This Row],[2028/29 From - Total]]","v":0},{"$f":"Dataset[[#This Row],[2029/30 Targeted savings]]+Dataset[[#This Row],[2029/30 From - Total]]","v":0},{"$f":"Dataset[[#This Row],[2026/27 Targeted savings]]","v":0},{"$f":"SUM(Dataset[[#This Row],[2027/28 Targeted savings]],Dataset[[#This Row],[2027/28 From - Total]],Dataset[[#This Row],[2027/28 To - Total]])","v":0},{"$f":"SUM(Dataset[[#This Row],[2028/29 Targeted savings]],Dataset[[#This Row],[2028/29 From - Total]],Dataset[[#This Row],[2028/29 To - Total]])","v":0},{"$f":"SUM(Dataset[[#This Row],[2029/30 Targeted savings]],Dataset[[#This Row],[2029/30 From - Total]],Dataset[[#This Row],[2029/30 To - Total]])","v":0},{"$f":"Dataset[[#This Row],[2026/27 Baseline]]+Dataset[[#This Row],[2026/27 Total change]]","v":860},{"$f":"Dataset[[#This Row],[2027/28 Baseline]]+Dataset[[#This Row],[2027/28 Total change]]","v":897},{"$f":"Dataset[[#This Row],[2028/29 Baseline]]+Dataset[[#This Row],[2028/29 Total change]]","v":925},{"$f":"Dataset[[#This Row],[2029/30 Baseline]]+Dataset[[#This Row],[2029/30 Total change]]","v":953}]
["NAT|Non-transfer","30|Administrative fees","2027_28","MTEC2027",30,4,2,32999,479,"30","04","02","032999","000479","30|04|02|000479","01","01","02","03","03","01|01|02|03|03","National","Communications and Digital Technologies","Digital Communication, Access and Services","Regulatory Compliance","Non-transfer","Current","Current payments","Goods and services","Administrative fees","Administrative fees","Economic development","Economic regulation and infrastructure","NAT",0,0,1,10,10,10,0,5,5,5,5,null,null,null,null,null,null,null,null,null,null,null,null,null,null,null,null,null,null,null,null,null,null,null,null,null,null,null,null,null,null,null,null,null,null,{"$f":"Dataset[[#This Row],[2027/28 From - Spending review Topic 1]]+Dataset[[#This Row],[2027/28 From - Spending review Topic 2]]+Dataset[[#This Row],[2027/28 From - Spending review Topic 3]]+Dataset[[#This Row],[2027/28 From - Spending review Topic 4]]+Dataset[[#This Row],[2027/28 From - Other reallocations]]","v":0},{"$f":"Dataset[[#This Row],[2028/29 From - Spending review Topic 1]]+Dataset[[#This Row],[2028/29 From - Spending review Topic 2]]+Dataset[[#This Row],[2028/29 From - Spending review Topic 3]]+Dataset[[#This Row],[2028/29 From - Spending review Topic 4]]+Dataset[[#This Row],[2028/29 From - Other reallocations]]","v":0},{"$f":"Dataset[[#This Row],[2029/30 From - Spending review Topic 1]]+Dataset[[#This Row],[2029/30 From - Spending review Topic 2]]+Dataset[[#This Row],[2029/30 From - Spending review Topic 3]]+Dataset[[#This Row],[2029/30 From - Spending review Topic 4]]+Dataset[[#This Row],[2029/30 From - Other reallocations]]","v":0},{"$f":"Dataset[[#This Row],[2027/28 To - Spending review Topic 1]]+Dataset[[#This Row],[2027/28 To - Spending review Topic 2]]+Dataset[[#This Row],[2027/28 To - Spending review Topic 3]]+Dataset[[#This Row],[2027/28 To - Spending review Topic 4]]+Dataset[[#This Row],[2027/28 To - Other reallocations]]","v":0},{"$f":"Dataset[[#This Row],[2028/29 To - Spending review Topic 1]]+Dataset[[#This Row],[2028/29 To - Spending review Topic 2]]+Dataset[[#This Row],[2028/29 To - Spending review Topic 3]]+Dataset[[#This Row],[2028/29 To - Spending review Topic 4]]+Dataset[[#This Row],[2028/29 To - Other reallocations]]","v":0},{"$f":"Dataset[[#This Row],[2029/30 To - Spending review Topic 1]]+Dataset[[#This Row],[2029/30 To - Spending review Topic 2]]+Dataset[[#This Row],[2029/30 To - Spending review Topic 3]]+Dataset[[#This Row],[2029/30 To - Spending review Topic 4]]+Dataset[[#This Row],[2029/30 To - Other reallocations]]","v":0},{"$f":"Dataset[[#This Row],[2027/28 Targeted savings]]+Dataset[[#This Row],[2027/28 From - Total]]","v":0},{"$f":"Dataset[[#This Row],[2028/29 Targeted savings]]+Dataset[[#This Row],[2028/29 From - Total]]","v":0},{"$f":"Dataset[[#This Row],[2029/30 Targeted savings]]+Dataset[[#This Row],[2029/30 From - Total]]","v":0},{"$f":"Dataset[[#This Row],[2026/27 Targeted savings]]","v":0},{"$f":"SUM(Dataset[[#This Row],[2027/28 Targeted savings]],Dataset[[#This Row],[2027/28 From - Total]],Dataset[[#This Row],[2027/28 To - Total]])","v":0},{"$f":"SUM(Dataset[[#This Row],[2028/29 Targeted savings]],Dataset[[#This Row],[2028/29 From - Total]],Dataset[[#This Row],[2028/29 To - Total]])","v":0},{"$f":"SUM(Dataset[[#This Row],[2029/30 Targeted savings]],Dataset[[#This Row],[2029/30 From - Total]],Dataset[[#This Row],[2029/30 To - Total]])","v":0},{"$f":"Dataset[[#This Row],[2026/27 Baseline]]+Dataset[[#This Row],[2026/27 Total change]]","v":5},{"$f":"Dataset[[#This Row],[2027/28 Baseline]]+Dataset[[#This Row],[2027/28 Total change]]","v":5},{"$f":"Dataset[[#This Row],[2028/29 Baseline]]+Dataset[[#This Row],[2028/29 Total change]]","v":5},{"$f":"Dataset[[#This Row],[2029/30 Baseline]]+Dataset[[#This Row],[2029/30 Total change]]","v":5}]
["NAT|Non-transfer","30|Minor assets","2027_28","MTEC2027",30,4,2,33000,480,"30","04","02","033000","000480","30|04|02|000480","01","01","02","05","05","01|01|02|05|05","National","Communications and Digital Technologies","Digital Communication, Access and Services","Regulatory Compliance","Non-transfer","Current","Current payments","Goods and services","Minor assets","Minor assets","Economic development","Economic regulation and infrastructure","NAT",0,0,0,10,10,10,0,0,0,0,0,null,null,null,null,null,null,null,null,null,null,null,null,null,null,null,null,null,null,null,null,null,null,null,null,null,null,null,null,null,null,null,null,null,null,{"$f":"Dataset[[#This Row],[2027/28 From - Spending review Topic 1]]+Dataset[[#This Row],[2027/28 From - Spending review Topic 2]]+Dataset[[#This Row],[2027/28 From - Spending review Topic 3]]+Dataset[[#This Row],[2027/28 From - Spending review Topic 4]]+Dataset[[#This Row],[2027/28 From - Other reallocations]]","v":0},{"$f":"Dataset[[#This Row],[2028/29 From - Spending review Topic 1]]+Dataset[[#This Row],[2028/29 From - Spending review Topic 2]]+Dataset[[#This Row],[2028/29 From - Spending review Topic 3]]+Dataset[[#This Row],[2028/29 From - Spending review Topic 4]]+Dataset[[#This Row],[2028/29 From - Other reallocations]]","v":0},{"$f":"Dataset[[#This Row],[2029/30 From - Spending review Topic 1]]+Dataset[[#This Row],[2029/30 From - Spending review Topic 2]]+Dataset[[#This Row],[2029/30 From - Spending review Topic 3]]+Dataset[[#This Row],[2029/30 From - Spending review Topic 4]]+Dataset[[#This Row],[2029/30 From - Other reallocations]]","v":0},{"$f":"Dataset[[#This Row],[2027/28 To - Spending review Topic 1]]+Dataset[[#This Row],[2027/28 To - Spending review Topic 2]]+Dataset[[#This Row],[2027/28 To - Spending review Topic 3]]+Dataset[[#This Row],[2027/28 To - Spending review Topic 4]]+Dataset[[#This Row],[2027/28 To - Other reallocations]]","v":0},{"$f":"Dataset[[#This Row],[2028/29 To - Spending review Topic 1]]+Dataset[[#This Row],[2028/29 To - Spending review Topic 2]]+Dataset[[#This Row],[2028/29 To - Spending review Topic 3]]+Dataset[[#This Row],[2028/29 To - Spending review Topic 4]]+Dataset[[#This Row],[2028/29 To - Other reallocations]]","v":0},{"$f":"Dataset[[#This Row],[2029/30 To - Spending review Topic 1]]+Dataset[[#This Row],[2029/30 To - Spending review Topic 2]]+Dataset[[#This Row],[2029/30 To - Spending review Topic 3]]+Dataset[[#This Row],[2029/30 To - Spending review Topic 4]]+Dataset[[#This Row],[2029/30 To - Other reallocations]]","v":0},{"$f":"Dataset[[#This Row],[2027/28 Targeted savings]]+Dataset[[#This Row],[2027/28 From - Total]]","v":0},{"$f":"Dataset[[#This Row],[2028/29 Targeted savings]]+Dataset[[#This Row],[2028/29 From - Total]]","v":0},{"$f":"Dataset[[#This Row],[2029/30 Targeted savings]]+Dataset[[#This Row],[2029/30 From - Total]]","v":0},{"$f":"Dataset[[#This Row],[2026/27 Targeted savings]]","v":0},{"$f":"SUM(Dataset[[#This Row],[2027/28 Targeted savings]],Dataset[[#This Row],[2027/28 From - Total]],Dataset[[#This Row],[2027/28 To - Total]])","v":0},{"$f":"SUM(Dataset[[#This Row],[2028/29 Targeted savings]],Dataset[[#This Row],[2028/29 From - Total]],Dataset[[#This Row],[2028/29 To - Total]])","v":0},{"$f":"SUM(Dataset[[#This Row],[2029/30 Targeted savings]],Dataset[[#This Row],[2029/30 From - Total]],Dataset[[#This Row],[2029/30 To - Total]])","v":0},{"$f":"Dataset[[#This Row],[2026/27 Baseline]]+Dataset[[#This Row],[2026/27 Total change]]","v":0},{"$f":"Dataset[[#This Row],[2027/28 Baseline]]+Dataset[[#This Row],[2027/28 Total change]]","v":0},{"$f":"Dataset[[#This Row],[2028/29 Baseline]]+Dataset[[#This Row],[2028/29 Total change]]","v":0},{"$f":"Dataset[[#This Row],[2029/30 Baseline]]+Dataset[[#This Row],[2029/30 Total change]]","v":0}]
["NAT|Non-transfer","30|Catering: Departmental activities","2027_28","MTEC2027",30,4,2,33001,481,"30","04","02","033001","000481","30|04|02|000481","01","01","02","08","08","01|01|02|08|08","National","Communications and Digital Technologies","Digital Communication, Access and Services","Regulatory Compliance","Non-transfer","Current","Current payments","Goods and services","Catering: Departmental activities","Catering: Departmental activities","Economic development","Economic regulation and infrastructure","NAT",0,0,0,0,0,0,0,50,51,53,55,null,null,null,null,null,null,null,null,null,null,null,null,null,null,null,null,null,null,null,null,null,null,null,null,null,null,null,null,null,null,null,null,null,null,{"$f":"Dataset[[#This Row],[2027/28 From - Spending review Topic 1]]+Dataset[[#This Row],[2027/28 From - Spending review Topic 2]]+Dataset[[#This Row],[2027/28 From - Spending review Topic 3]]+Dataset[[#This Row],[2027/28 From - Spending review Topic 4]]+Dataset[[#This Row],[2027/28 From - Other reallocations]]","v":0},{"$f":"Dataset[[#This Row],[2028/29 From - Spending review Topic 1]]+Dataset[[#This Row],[2028/29 From - Spending review Topic 2]]+Dataset[[#This Row],[2028/29 From - Spending review Topic 3]]+Dataset[[#This Row],[2028/29 From - Spending review Topic 4]]+Dataset[[#This Row],[2028/29 From - Other reallocations]]","v":0},{"$f":"Dataset[[#This Row],[2029/30 From - Spending review Topic 1]]+Dataset[[#This Row],[2029/30 From - Spending review Topic 2]]+Dataset[[#This Row],[2029/30 From - Spending review Topic 3]]+Dataset[[#This Row],[2029/30 From - Spending review Topic 4]]+Dataset[[#This Row],[2029/30 From - Other reallocations]]","v":0},{"$f":"Dataset[[#This Row],[2027/28 To - Spending review Topic 1]]+Dataset[[#This Row],[2027/28 To - Spending review Topic 2]]+Dataset[[#This Row],[2027/28 To - Spending review Topic 3]]+Dataset[[#This Row],[2027/28 To - Spending review Topic 4]]+Dataset[[#This Row],[2027/28 To - Other reallocations]]","v":0},{"$f":"Dataset[[#This Row],[2028/29 To - Spending review Topic 1]]+Dataset[[#This Row],[2028/29 To - Spending review Topic 2]]+Dataset[[#This Row],[2028/29 To - Spending review Topic 3]]+Dataset[[#This Row],[2028/29 To - Spending review Topic 4]]+Dataset[[#This Row],[2028/29 To - Other reallocations]]","v":0},{"$f":"Dataset[[#This Row],[2029/30 To - Spending review Topic 1]]+Dataset[[#This Row],[2029/30 To - Spending review Topic 2]]+Dataset[[#This Row],[2029/30 To - Spending review Topic 3]]+Dataset[[#This Row],[2029/30 To - Spending review Topic 4]]+Dataset[[#This Row],[2029/30 To - Other reallocations]]","v":0},{"$f":"Dataset[[#This Row],[2027/28 Targeted savings]]+Dataset[[#This Row],[2027/28 From - Total]]","v":0},{"$f":"Dataset[[#This Row],[2028/29 Targeted savings]]+Dataset[[#This Row],[2028/29 From - Total]]","v":0},{"$f":"Dataset[[#This Row],[2029/30 Targeted savings]]+Dataset[[#This Row],[2029/30 From - Total]]","v":0},{"$f":"Dataset[[#This Row],[2026/27 Targeted savings]]","v":0},{"$f":"SUM(Dataset[[#This Row],[2027/28 Targeted savings]],Dataset[[#This Row],[2027/28 From - Total]],Dataset[[#This Row],[2027/28 To - Total]])","v":0},{"$f":"SUM(Dataset[[#This Row],[2028/29 Targeted savings]],Dataset[[#This Row],[2028/29 From - Total]],Dataset[[#This Row],[2028/29 To - Total]])","v":0},{"$f":"SUM(Dataset[[#This Row],[2029/30 Targeted savings]],Dataset[[#This Row],[2029/30 From - Total]],Dataset[[#This Row],[2029/30 To - Total]])","v":0},{"$f":"Dataset[[#This Row],[2026/27 Baseline]]+Dataset[[#This Row],[2026/27 Total change]]","v":50},{"$f":"Dataset[[#This Row],[2027/28 Baseline]]+Dataset[[#This Row],[2027/28 Total change]]","v":51},{"$f":"Dataset[[#This Row],[2028/29 Baseline]]+Dataset[[#This Row],[2028/29 Total change]]","v":53},{"$f":"Dataset[[#This Row],[2029/30 Baseline]]+Dataset[[#This Row],[2029/30 Total change]]","v":55}]
["NAT|Non-transfer","30|Communication (G&S)","2027_28","MTEC2027",30,4,2,33002,482,"30","04","02","033002","000482","30|04|02|000482","01","01","02","09","09","01|01|02|09|09","National","Communications and Digital Technologies","Digital Communication, Access and Services","Regulatory Compliance","Non-transfer","Current","Current payments","Goods and services","Communication (G&S)","Communication (G&S)","Economic development","Economic regulation and infrastructure","NAT",39,10,0,20,20,20,0,38,40,41,42,null,null,null,null,null,null,null,null,null,null,null,null,null,null,null,null,null,null,null,null,null,null,null,null,null,null,null,null,null,null,null,null,null,null,{"$f":"Dataset[[#This Row],[2027/28 From - Spending review Topic 1]]+Dataset[[#This Row],[2027/28 From - Spending review Topic 2]]+Dataset[[#This Row],[2027/28 From - Spending review Topic 3]]+Dataset[[#This Row],[2027/28 From - Spending review Topic 4]]+Dataset[[#This Row],[2027/28 From - Other reallocations]]","v":0},{"$f":"Dataset[[#This Row],[2028/29 From - Spending review Topic 1]]+Dataset[[#This Row],[2028/29 From - Spending review Topic 2]]+Dataset[[#This Row],[2028/29 From - Spending review Topic 3]]+Dataset[[#This Row],[2028/29 From - Spending review Topic 4]]+Dataset[[#This Row],[2028/29 From - Other reallocations]]","v":0},{"$f":"Dataset[[#This Row],[2029/30 From - Spending review Topic 1]]+Dataset[[#This Row],[2029/30 From - Spending review Topic 2]]+Dataset[[#This Row],[2029/30 From - Spending review Topic 3]]+Dataset[[#This Row],[2029/30 From - Spending review Topic 4]]+Dataset[[#This Row],[2029/30 From - Other reallocations]]","v":0},{"$f":"Dataset[[#This Row],[2027/28 To - Spending review Topic 1]]+Dataset[[#This Row],[2027/28 To - Spending review Topic 2]]+Dataset[[#This Row],[2027/28 To - Spending review Topic 3]]+Dataset[[#This Row],[2027/28 To - Spending review Topic 4]]+Dataset[[#This Row],[2027/28 To - Other reallocations]]","v":0},{"$f":"Dataset[[#This Row],[2028/29 To - Spending review Topic 1]]+Dataset[[#This Row],[2028/29 To - Spending review Topic 2]]+Dataset[[#This Row],[2028/29 To - Spending review Topic 3]]+Dataset[[#This Row],[2028/29 To - Spending review Topic 4]]+Dataset[[#This Row],[2028/29 To - Other reallocations]]","v":0},{"$f":"Dataset[[#This Row],[2029/30 To - Spending review Topic 1]]+Dataset[[#This Row],[2029/30 To - Spending review Topic 2]]+Dataset[[#This Row],[2029/30 To - Spending review Topic 3]]+Dataset[[#This Row],[2029/30 To - Spending review Topic 4]]+Dataset[[#This Row],[2029/30 To - Other reallocations]]","v":0},{"$f":"Dataset[[#This Row],[2027/28 Targeted savings]]+Dataset[[#This Row],[2027/28 From - Total]]","v":0},{"$f":"Dataset[[#This Row],[2028/29 Targeted savings]]+Dataset[[#This Row],[2028/29 From - Total]]","v":0},{"$f":"Dataset[[#This Row],[2029/30 Targeted savings]]+Dataset[[#This Row],[2029/30 From - Total]]","v":0},{"$f":"Dataset[[#This Row],[2026/27 Targeted savings]]","v":0},{"$f":"SUM(Dataset[[#This Row],[2027/28 Targeted savings]],Dataset[[#This Row],[2027/28 From - Total]],Dataset[[#This Row],[2027/28 To - Total]])","v":0},{"$f":"SUM(Dataset[[#This Row],[2028/29 Targeted savings]],Dataset[[#This Row],[2028/29 From - Total]],Dataset[[#This Row],[2028/29 To - Total]])","v":0},{"$f":"SUM(Dataset[[#This Row],[2029/30 Targeted savings]],Dataset[[#This Row],[2029/30 From - Total]],Dataset[[#This Row],[2029/30 To - Total]])","v":0},{"$f":"Dataset[[#This Row],[2026/27 Baseline]]+Dataset[[#This Row],[2026/27 Total change]]","v":38},{"$f":"Dataset[[#This Row],[2027/28 Baseline]]+Dataset[[#This Row],[2027/28 Total change]]","v":40},{"$f":"Dataset[[#This Row],[2028/29 Baseline]]+Dataset[[#This Row],[2028/29 Total change]]","v":41},{"$f":"Dataset[[#This Row],[2029/30 Baseline]]+Dataset[[#This Row],[2029/30 Total change]]","v":42}]
["NAT|Non-transfer","30|Consumable supplies","2027_28","MTEC2027",30,4,2,33003,483,"30","04","02","033003","000483","30|04|02|000483","01","01","02","31","31","01|01|02|31|31","National","Communications and Digital Technologies","Digital Communication, Access and Services","Regulatory Compliance","Non-transfer","Current","Current payments","Goods and services","Consumable supplies","Consumable supplies","Economic development","Economic regulation and infrastructure","NAT",0,0,0,0,0,0,0,19,20,20,21,null,null,null,null,null,null,null,null,null,null,null,null,null,null,null,null,null,null,null,null,null,null,null,null,null,null,null,null,null,null,null,null,null,null,{"$f":"Dataset[[#This Row],[2027/28 From - Spending review Topic 1]]+Dataset[[#This Row],[2027/28 From - Spending review Topic 2]]+Dataset[[#This Row],[2027/28 From - Spending review Topic 3]]+Dataset[[#This Row],[2027/28 From - Spending review Topic 4]]+Dataset[[#This Row],[2027/28 From - Other reallocations]]","v":0},{"$f":"Dataset[[#This Row],[2028/29 From - Spending review Topic 1]]+Dataset[[#This Row],[2028/29 From - Spending review Topic 2]]+Dataset[[#This Row],[2028/29 From - Spending review Topic 3]]+Dataset[[#This Row],[2028/29 From - Spending review Topic 4]]+Dataset[[#This Row],[2028/29 From - Other reallocations]]","v":0},{"$f":"Dataset[[#This Row],[2029/30 From - Spending review Topic 1]]+Dataset[[#This Row],[2029/30 From - Spending review Topic 2]]+Dataset[[#This Row],[2029/30 From - Spending review Topic 3]]+Dataset[[#This Row],[2029/30 From - Spending review Topic 4]]+Dataset[[#This Row],[2029/30 From - Other reallocations]]","v":0},{"$f":"Dataset[[#This Row],[2027/28 To - Spending review Topic 1]]+Dataset[[#This Row],[2027/28 To - Spending review Topic 2]]+Dataset[[#This Row],[2027/28 To - Spending review Topic 3]]+Dataset[[#This Row],[2027/28 To - Spending review Topic 4]]+Dataset[[#This Row],[2027/28 To - Other reallocations]]","v":0},{"$f":"Dataset[[#This Row],[2028/29 To - Spending review Topic 1]]+Dataset[[#This Row],[2028/29 To - Spending review Topic 2]]+Dataset[[#This Row],[2028/29 To - Spending review Topic 3]]+Dataset[[#This Row],[2028/29 To - Spending review Topic 4]]+Dataset[[#This Row],[2028/29 To - Other reallocations]]","v":0},{"$f":"Dataset[[#This Row],[2029/30 To - Spending review Topic 1]]+Dataset[[#This Row],[2029/30 To - Spending review Topic 2]]+Dataset[[#This Row],[2029/30 To - Spending review Topic 3]]+Dataset[[#This Row],[2029/30 To - Spending review Topic 4]]+Dataset[[#This Row],[2029/30 To - Other reallocations]]","v":0},{"$f":"Dataset[[#This Row],[2027/28 Targeted savings]]+Dataset[[#This Row],[2027/28 From - Total]]","v":0},{"$f":"Dataset[[#This Row],[2028/29 Targeted savings]]+Dataset[[#This Row],[2028/29 From - Total]]","v":0},{"$f":"Dataset[[#This Row],[2029/30 Targeted savings]]+Dataset[[#This Row],[2029/30 From - Total]]","v":0},{"$f":"Dataset[[#This Row],[2026/27 Targeted savings]]","v":0},{"$f":"SUM(Dataset[[#This Row],[2027/28 Targeted savings]],Dataset[[#This Row],[2027/28 From - Total]],Dataset[[#This Row],[2027/28 To - Total]])","v":0},{"$f":"SUM(Dataset[[#This Row],[2028/29 Targeted savings]],Dataset[[#This Row],[2028/29 From - Total]],Dataset[[#This Row],[2028/29 To - Total]])","v":0},{"$f":"SUM(Dataset[[#This Row],[2029/30 Targeted savings]],Dataset[[#This Row],[2029/30 From - Total]],Dataset[[#This Row],[2029/30 To - Total]])","v":0},{"$f":"Dataset[[#This Row],[2026/27 Baseline]]+Dataset[[#This Row],[2026/27 Total change]]","v":19},{"$f":"Dataset[[#This Row],[2027/28 Baseline]]+Dataset[[#This Row],[2027/28 Total change]]","v":20},{"$f":"Dataset[[#This Row],[2028/29 Baseline]]+Dataset[[#This Row],[2028/29 Total change]]","v":20},{"$f":"Dataset[[#This Row],[2029/30 Baseline]]+Dataset[[#This Row],[2029/30 Total change]]","v":21}]
["NAT|Non-transfer","30|Consumables: Stationery, printing and office supplies","2027_28","MTEC2027",30,4,2,33004,484,"30","04","02","033004","000484","30|04|02|000484","01","01","02","32","32","01|01|02|32|32","National","Communications and Digital Technologies","Digital Communication, Access and Services","Regulatory Compliance","Non-transfer","Current","Current payments","Goods and services","Consumables: Stationery, printing and office supplies","Consumables: Stationery, printing and office supplies","Economic development","Economic regulation and infrastructure","NAT",0,0,0,16,16,16,0,199,207,213,219,null,null,null,null,null,null,null,null,null,null,null,null,null,null,null,null,null,null,null,null,null,null,null,null,null,null,null,null,null,null,null,null,null,null,{"$f":"Dataset[[#This Row],[2027/28 From - Spending review Topic 1]]+Dataset[[#This Row],[2027/28 From - Spending review Topic 2]]+Dataset[[#This Row],[2027/28 From - Spending review Topic 3]]+Dataset[[#This Row],[2027/28 From - Spending review Topic 4]]+Dataset[[#This Row],[2027/28 From - Other reallocations]]","v":0},{"$f":"Dataset[[#This Row],[2028/29 From - Spending review Topic 1]]+Dataset[[#This Row],[2028/29 From - Spending review Topic 2]]+Dataset[[#This Row],[2028/29 From - Spending review Topic 3]]+Dataset[[#This Row],[2028/29 From - Spending review Topic 4]]+Dataset[[#This Row],[2028/29 From - Other reallocations]]","v":0},{"$f":"Dataset[[#This Row],[2029/30 From - Spending review Topic 1]]+Dataset[[#This Row],[2029/30 From - Spending review Topic 2]]+Dataset[[#This Row],[2029/30 From - Spending review Topic 3]]+Dataset[[#This Row],[2029/30 From - Spending review Topic 4]]+Dataset[[#This Row],[2029/30 From - Other reallocations]]","v":0},{"$f":"Dataset[[#This Row],[2027/28 To - Spending review Topic 1]]+Dataset[[#This Row],[2027/28 To - Spending review Topic 2]]+Dataset[[#This Row],[2027/28 To - Spending review Topic 3]]+Dataset[[#This Row],[2027/28 To - Spending review Topic 4]]+Dataset[[#This Row],[2027/28 To - Other reallocations]]","v":0},{"$f":"Dataset[[#This Row],[2028/29 To - Spending review Topic 1]]+Dataset[[#This Row],[2028/29 To - Spending review Topic 2]]+Dataset[[#This Row],[2028/29 To - Spending review Topic 3]]+Dataset[[#This Row],[2028/29 To - Spending review Topic 4]]+Dataset[[#This Row],[2028/29 To - Other reallocations]]","v":0},{"$f":"Dataset[[#This Row],[2029/30 To - Spending review Topic 1]]+Dataset[[#This Row],[2029/30 To - Spending review Topic 2]]+Dataset[[#This Row],[2029/30 To - Spending review Topic 3]]+Dataset[[#This Row],[2029/30 To - Spending review Topic 4]]+Dataset[[#This Row],[2029/30 To - Other reallocations]]","v":0},{"$f":"Dataset[[#This Row],[2027/28 Targeted savings]]+Dataset[[#This Row],[2027/28 From - Total]]","v":0},{"$f":"Dataset[[#This Row],[2028/29 Targeted savings]]+Dataset[[#This Row],[2028/29 From - Total]]","v":0},{"$f":"Dataset[[#This Row],[2029/30 Targeted savings]]+Dataset[[#This Row],[2029/30 From - Total]]","v":0},{"$f":"Dataset[[#This Row],[2026/27 Targeted savings]]","v":0},{"$f":"SUM(Dataset[[#This Row],[2027/28 Targeted savings]],Dataset[[#This Row],[2027/28 From - Total]],Dataset[[#This Row],[2027/28 To - Total]])","v":0},{"$f":"SUM(Dataset[[#This Row],[2028/29 Targeted savings]],Dataset[[#This Row],[2028/29 From - Total]],Dataset[[#This Row],[2028/29 To - Total]])","v":0},{"$f":"SUM(Dataset[[#This Row],[2029/30 Targeted savings]],Dataset[[#This Row],[2029/30 From - Total]],Dataset[[#This Row],[2029/30 To - Total]])","v":0},{"$f":"Dataset[[#This Row],[2026/27 Baseline]]+Dataset[[#This Row],[2026/27 Total change]]","v":199},{"$f":"Dataset[[#This Row],[2027/28 Baseline]]+Dataset[[#This Row],[2027/28 Total change]]","v":207},{"$f":"Dataset[[#This Row],[2028/29 Baseline]]+Dataset[[#This Row],[2028/29 Total change]]","v":213},{"$f":"Dataset[[#This Row],[2029/30 Baseline]]+Dataset[[#This Row],[2029/30 Total change]]","v":219}]
["NAT|Non-transfer","30|Travel and subsistence","2027_28","MTEC2027",30,4,2,33005,485,"30","04","02","033005","000485","30|04|02|000485","01","01","02","37","37","01|01|02|37|37","National","Communications and Digital Technologies","Digital Communication, Access and Services","Regulatory Compliance","Non-transfer","Current","Current payments","Goods and services","Travel and subsistence","Travel and subsistence","Economic development","Economic regulation and infrastructure","NAT",0,0,15,205,205,205,0,728,762,246,253,null,null,null,null,null,null,null,null,null,null,null,null,null,null,null,null,null,null,null,null,null,null,null,null,null,null,null,null,null,null,null,null,null,null,{"$f":"Dataset[[#This Row],[2027/28 From - Spending review Topic 1]]+Dataset[[#This Row],[2027/28 From - Spending review Topic 2]]+Dataset[[#This Row],[2027/28 From - Spending review Topic 3]]+Dataset[[#This Row],[2027/28 From - Spending review Topic 4]]+Dataset[[#This Row],[2027/28 From - Other reallocations]]","v":0},{"$f":"Dataset[[#This Row],[2028/29 From - Spending review Topic 1]]+Dataset[[#This Row],[2028/29 From - Spending review Topic 2]]+Dataset[[#This Row],[2028/29 From - Spending review Topic 3]]+Dataset[[#This Row],[2028/29 From - Spending review Topic 4]]+Dataset[[#This Row],[2028/29 From - Other reallocations]]","v":0},{"$f":"Dataset[[#This Row],[2029/30 From - Spending review Topic 1]]+Dataset[[#This Row],[2029/30 From - Spending review Topic 2]]+Dataset[[#This Row],[2029/30 From - Spending review Topic 3]]+Dataset[[#This Row],[2029/30 From - Spending review Topic 4]]+Dataset[[#This Row],[2029/30 From - Other reallocations]]","v":0},{"$f":"Dataset[[#This Row],[2027/28 To - Spending review Topic 1]]+Dataset[[#This Row],[2027/28 To - Spending review Topic 2]]+Dataset[[#This Row],[2027/28 To - Spending review Topic 3]]+Dataset[[#This Row],[2027/28 To - Spending review Topic 4]]+Dataset[[#This Row],[2027/28 To - Other reallocations]]","v":0},{"$f":"Dataset[[#This Row],[2028/29 To - Spending review Topic 1]]+Dataset[[#This Row],[2028/29 To - Spending review Topic 2]]+Dataset[[#This Row],[2028/29 To - Spending review Topic 3]]+Dataset[[#This Row],[2028/29 To - Spending review Topic 4]]+Dataset[[#This Row],[2028/29 To - Other reallocations]]","v":0},{"$f":"Dataset[[#This Row],[2029/30 To - Spending review Topic 1]]+Dataset[[#This Row],[2029/30 To - Spending review Topic 2]]+Dataset[[#This Row],[2029/30 To - Spending review Topic 3]]+Dataset[[#This Row],[2029/30 To - Spending review Topic 4]]+Dataset[[#This Row],[2029/30 To - Other reallocations]]","v":0},{"$f":"Dataset[[#This Row],[2027/28 Targeted savings]]+Dataset[[#This Row],[2027/28 From - Total]]","v":0},{"$f":"Dataset[[#This Row],[2028/29 Targeted savings]]+Dataset[[#This Row],[2028/29 From - Total]]","v":0},{"$f":"Dataset[[#This Row],[2029/30 Targeted savings]]+Dataset[[#This Row],[2029/30 From - Total]]","v":0},{"$f":"Dataset[[#This Row],[2026/27 Targeted savings]]","v":0},{"$f":"SUM(Dataset[[#This Row],[2027/28 Targeted savings]],Dataset[[#This Row],[2027/28 From - Total]],Dataset[[#This Row],[2027/28 To - Total]])","v":0},{"$f":"SUM(Dataset[[#This Row],[2028/29 Targeted savings]],Dataset[[#This Row],[2028/29 From - Total]],Dataset[[#This Row],[2028/29 To - Total]])","v":0},{"$f":"SUM(Dataset[[#This Row],[2029/30 Targeted savings]],Dataset[[#This Row],[2029/30 From - Total]],Dataset[[#This Row],[2029/30 To - Total]])","v":0},{"$f":"Dataset[[#This Row],[2026/27 Baseline]]+Dataset[[#This Row],[2026/27 Total change]]","v":728},{"$f":"Dataset[[#This Row],[2027/28 Baseline]]+Dataset[[#This Row],[2027/28 Total change]]","v":762},{"$f":"Dataset[[#This Row],[2028/29 Baseline]]+Dataset[[#This Row],[2028/29 Total change]]","v":246},{"$f":"Dataset[[#This Row],[2029/30 Baseline]]+Dataset[[#This Row],[2029/30 Total change]]","v":253}]
["NAT|Non-transfer","30|Training and development","2027_28","MTEC2027",30,4,2,33006,486,"30","04","02","033006","000486","30|04|02|000486","01","01","02","38","38","01|01|02|38|38","National","Communications and Digital Technologies","Digital Communication, Access and Services","Regulatory Compliance","Non-transfer","Current","Current payments","Goods and services","Training and development","Training and development","Economic development","Economic regulation and infrastructure","NAT",0,0,15,30,30,30,0,0,0,0,0,null,null,null,null,null,null,null,null,null,null,null,null,null,null,null,null,null,null,null,null,null,null,null,null,null,null,null,null,null,null,null,null,null,null,{"$f":"Dataset[[#This Row],[2027/28 From - Spending review Topic 1]]+Dataset[[#This Row],[2027/28 From - Spending review Topic 2]]+Dataset[[#This Row],[2027/28 From - Spending review Topic 3]]+Dataset[[#This Row],[2027/28 From - Spending review Topic 4]]+Dataset[[#This Row],[2027/28 From - Other reallocations]]","v":0},{"$f":"Dataset[[#This Row],[2028/29 From - Spending review Topic 1]]+Dataset[[#This Row],[2028/29 From - Spending review Topic 2]]+Dataset[[#This Row],[2028/29 From - Spending review Topic 3]]+Dataset[[#This Row],[2028/29 From - Spending review Topic 4]]+Dataset[[#This Row],[2028/29 From - Other reallocations]]","v":0},{"$f":"Dataset[[#This Row],[2029/30 From - Spending review Topic 1]]+Dataset[[#This Row],[2029/30 From - Spending review Topic 2]]+Dataset[[#This Row],[2029/30 From - Spending review Topic 3]]+Dataset[[#This Row],[2029/30 From - Spending review Topic 4]]+Dataset[[#This Row],[2029/30 From - Other reallocations]]","v":0},{"$f":"Dataset[[#This Row],[2027/28 To - Spending review Topic 1]]+Dataset[[#This Row],[2027/28 To - Spending review Topic 2]]+Dataset[[#This Row],[2027/28 To - Spending review Topic 3]]+Dataset[[#This Row],[2027/28 To - Spending review Topic 4]]+Dataset[[#This Row],[2027/28 To - Other reallocations]]","v":0},{"$f":"Dataset[[#This Row],[2028/29 To - Spending review Topic 1]]+Dataset[[#This Row],[2028/29 To - Spending review Topic 2]]+Dataset[[#This Row],[2028/29 To - Spending review Topic 3]]+Dataset[[#This Row],[2028/29 To - Spending review Topic 4]]+Dataset[[#This Row],[2028/29 To - Other reallocations]]","v":0},{"$f":"Dataset[[#This Row],[2029/30 To - Spending review Topic 1]]+Dataset[[#This Row],[2029/30 To - Spending review Topic 2]]+Dataset[[#This Row],[2029/30 To - Spending review Topic 3]]+Dataset[[#This Row],[2029/30 To - Spending review Topic 4]]+Dataset[[#This Row],[2029/30 To - Other reallocations]]","v":0},{"$f":"Dataset[[#This Row],[2027/28 Targeted savings]]+Dataset[[#This Row],[2027/28 From - Total]]","v":0},{"$f":"Dataset[[#This Row],[2028/29 Targeted savings]]+Dataset[[#This Row],[2028/29 From - Total]]","v":0},{"$f":"Dataset[[#This Row],[2029/30 Targeted savings]]+Dataset[[#This Row],[2029/30 From - Total]]","v":0},{"$f":"Dataset[[#This Row],[2026/27 Targeted savings]]","v":0},{"$f":"SUM(Dataset[[#This Row],[2027/28 Targeted savings]],Dataset[[#This Row],[2027/28 From - Total]],Dataset[[#This Row],[2027/28 To - Total]])","v":0},{"$f":"SUM(Dataset[[#This Row],[2028/29 Targeted savings]],Dataset[[#This Row],[2028/29 From - Total]],Dataset[[#This Row],[2028/29 To - Total]])","v":0},{"$f":"SUM(Dataset[[#This Row],[2029/30 Targeted savings]],Dataset[[#This Row],[2029/30 From - Total]],Dataset[[#This Row],[2029/30 To - Total]])","v":0},{"$f":"Dataset[[#This Row],[2026/27 Baseline]]+Dataset[[#This Row],[2026/27 Total change]]","v":0},{"$f":"Dataset[[#This Row],[2027/28 Baseline]]+Dataset[[#This Row],[2027/28 Total change]]","v":0},{"$f":"Dataset[[#This Row],[2028/29 Baseline]]+Dataset[[#This Row],[2028/29 Total change]]","v":0},{"$f":"Dataset[[#This Row],[2029/30 Baseline]]+Dataset[[#This Row],[2029/30 Total change]]","v":0}]
["NAT|Non-transfer","30|Operating payments","2027_28","MTEC2027",30,4,2,33007,487,"30","04","02","033007","000487","30|04|02|000487","01","01","02","39","39","01|01|02|39|39","National","Communications and Digital Technologies","Digital Communication, Access and Services","Regulatory Compliance","Non-transfer","Current","Current payments","Goods and services","Operating payments","Operating payments","Economic development","Economic regulation and infrastructure","NAT",0,0,0,0,0,0,0,80,83,86,89,null,null,null,null,null,null,null,null,null,null,null,null,null,null,null,null,null,null,null,null,null,null,null,null,null,null,null,null,null,null,null,null,null,null,{"$f":"Dataset[[#This Row],[2027/28 From - Spending review Topic 1]]+Dataset[[#This Row],[2027/28 From - Spending review Topic 2]]+Dataset[[#This Row],[2027/28 From - Spending review Topic 3]]+Dataset[[#This Row],[2027/28 From - Spending review Topic 4]]+Dataset[[#This Row],[2027/28 From - Other reallocations]]","v":0},{"$f":"Dataset[[#This Row],[2028/29 From - Spending review Topic 1]]+Dataset[[#This Row],[2028/29 From - Spending review Topic 2]]+Dataset[[#This Row],[2028/29 From - Spending review Topic 3]]+Dataset[[#This Row],[2028/29 From - Spending review Topic 4]]+Dataset[[#This Row],[2028/29 From - Other reallocations]]","v":0},{"$f":"Dataset[[#This Row],[2029/30 From - Spending review Topic 1]]+Dataset[[#This Row],[2029/30 From - Spending review Topic 2]]+Dataset[[#This Row],[2029/30 From - Spending review Topic 3]]+Dataset[[#This Row],[2029/30 From - Spending review Topic 4]]+Dataset[[#This Row],[2029/30 From - Other reallocations]]","v":0},{"$f":"Dataset[[#This Row],[2027/28 To - Spending review Topic 1]]+Dataset[[#This Row],[2027/28 To - Spending review Topic 2]]+Dataset[[#This Row],[2027/28 To - Spending review Topic 3]]+Dataset[[#This Row],[2027/28 To - Spending review Topic 4]]+Dataset[[#This Row],[2027/28 To - Other reallocations]]","v":0},{"$f":"Dataset[[#This Row],[2028/29 To - Spending review Topic 1]]+Dataset[[#This Row],[2028/29 To - Spending review Topic 2]]+Dataset[[#This Row],[2028/29 To - Spending review Topic 3]]+Dataset[[#This Row],[2028/29 To - Spending review Topic 4]]+Dataset[[#This Row],[2028/29 To - Other reallocations]]","v":0},{"$f":"Dataset[[#This Row],[2029/30 To - Spending review Topic 1]]+Dataset[[#This Row],[2029/30 To - Spending review Topic 2]]+Dataset[[#This Row],[2029/30 To - Spending review Topic 3]]+Dataset[[#This Row],[2029/30 To - Spending review Topic 4]]+Dataset[[#This Row],[2029/30 To - Other reallocations]]","v":0},{"$f":"Dataset[[#This Row],[2027/28 Targeted savings]]+Dataset[[#This Row],[2027/28 From - Total]]","v":0},{"$f":"Dataset[[#This Row],[2028/29 Targeted savings]]+Dataset[[#This Row],[2028/29 From - Total]]","v":0},{"$f":"Dataset[[#This Row],[2029/30 Targeted savings]]+Dataset[[#This Row],[2029/30 From - Total]]","v":0},{"$f":"Dataset[[#This Row],[2026/27 Targeted savings]]","v":0},{"$f":"SUM(Dataset[[#This Row],[2027/28 Targeted savings]],Dataset[[#This Row],[2027/28 From - Total]],Dataset[[#This Row],[2027/28 To - Total]])","v":0},{"$f":"SUM(Dataset[[#This Row],[2028/29 Targeted savings]],Dataset[[#This Row],[2028/29 From - Total]],Dataset[[#This Row],[2028/29 To - Total]])","v":0},{"$f":"SUM(Dataset[[#This Row],[2029/30 Targeted savings]],Dataset[[#This Row],[2029/30 From - Total]],Dataset[[#This Row],[2029/30 To - Total]])","v":0},{"$f":"Dataset[[#This Row],[2026/27 Baseline]]+Dataset[[#This Row],[2026/27 Total change]]","v":80},{"$f":"Dataset[[#This Row],[2027/28 Baseline]]+Dataset[[#This Row],[2027/28 Total change]]","v":83},{"$f":"Dataset[[#This Row],[2028/29 Baseline]]+Dataset[[#This Row],[2028/29 Total change]]","v":86},{"$f":"Dataset[[#This Row],[2029/30 Baseline]]+Dataset[[#This Row],[2029/30 Total change]]","v":89}]
["NAT|Independent Communications Authority of South Africa","30|Departmental agencies (non-business entities)","2027_28","MTEC2027",30,4,2,33008,488,"30","04","02","033008","000488","30|04|02|000488","01","02","05","46","48","01|02|05|46|48","National","Communications and Digital Technologies","Digital Communication, Access and Services","Regulatory Compliance","Independent Communications Authority of South Africa","Current","Transfers and subsidies","Departmental agencies and accounts","Departmental agencies (non-business entities)","Departmental agencies (non-business entities)","Economic development","Economic regulation and infrastructure","NAT",769431,473947,470470,588128,588128,588128,0,506671,526891,543267,559626,null,null,null,null,null,null,null,null,null,null,null,null,null,null,null,null,null,null,null,null,null,null,null,null,null,null,null,null,null,null,null,null,null,null,{"$f":"Dataset[[#This Row],[2027/28 From - Spending review Topic 1]]+Dataset[[#This Row],[2027/28 From - Spending review Topic 2]]+Dataset[[#This Row],[2027/28 From - Spending review Topic 3]]+Dataset[[#This Row],[2027/28 From - Spending review Topic 4]]+Dataset[[#This Row],[2027/28 From - Other reallocations]]","v":0},{"$f":"Dataset[[#This Row],[2028/29 From - Spending review Topic 1]]+Dataset[[#This Row],[2028/29 From - Spending review Topic 2]]+Dataset[[#This Row],[2028/29 From - Spending review Topic 3]]+Dataset[[#This Row],[2028/29 From - Spending review Topic 4]]+Dataset[[#This Row],[2028/29 From - Other reallocations]]","v":0},{"$f":"Dataset[[#This Row],[2029/30 From - Spending review Topic 1]]+Dataset[[#This Row],[2029/30 From - Spending review Topic 2]]+Dataset[[#This Row],[2029/30 From - Spending review Topic 3]]+Dataset[[#This Row],[2029/30 From - Spending review Topic 4]]+Dataset[[#This Row],[2029/30 From - Other reallocations]]","v":0},{"$f":"Dataset[[#This Row],[2027/28 To - Spending review Topic 1]]+Dataset[[#This Row],[2027/28 To - Spending review Topic 2]]+Dataset[[#This Row],[2027/28 To - Spending review Topic 3]]+Dataset[[#This Row],[2027/28 To - Spending review Topic 4]]+Dataset[[#This Row],[2027/28 To - Other reallocations]]","v":0},{"$f":"Dataset[[#This Row],[2028/29 To - Spending review Topic 1]]+Dataset[[#This Row],[2028/29 To - Spending review Topic 2]]+Dataset[[#This Row],[2028/29 To - Spending review Topic 3]]+Dataset[[#This Row],[2028/29 To - Spending review Topic 4]]+Dataset[[#This Row],[2028/29 To - Other reallocations]]","v":0},{"$f":"Dataset[[#This Row],[2029/30 To - Spending review Topic 1]]+Dataset[[#This Row],[2029/30 To - Spending review Topic 2]]+Dataset[[#This Row],[2029/30 To - Spending review Topic 3]]+Dataset[[#This Row],[2029/30 To - Spending review Topic 4]]+Dataset[[#This Row],[2029/30 To - Other reallocations]]","v":0},{"$f":"Dataset[[#This Row],[2027/28 Targeted savings]]+Dataset[[#This Row],[2027/28 From - Total]]","v":0},{"$f":"Dataset[[#This Row],[2028/29 Targeted savings]]+Dataset[[#This Row],[2028/29 From - Total]]","v":0},{"$f":"Dataset[[#This Row],[2029/30 Targeted savings]]+Dataset[[#This Row],[2029/30 From - Total]]","v":0},{"$f":"Dataset[[#This Row],[2026/27 Targeted savings]]","v":0},{"$f":"SUM(Dataset[[#This Row],[2027/28 Targeted savings]],Dataset[[#This Row],[2027/28 From - Total]],Dataset[[#This Row],[2027/28 To - Total]])","v":0},{"$f":"SUM(Dataset[[#This Row],[2028/29 Targeted savings]],Dataset[[#This Row],[2028/29 From - Total]],Dataset[[#This Row],[2028/29 To - Total]])","v":0},{"$f":"SUM(Dataset[[#This Row],[2029/30 Targeted savings]],Dataset[[#This Row],[2029/30 From - Total]],Dataset[[#This Row],[2029/30 To - Total]])","v":0},{"$f":"Dataset[[#This Row],[2026/27 Baseline]]+Dataset[[#This Row],[2026/27 Total change]]","v":506671},{"$f":"Dataset[[#This Row],[2027/28 Baseline]]+Dataset[[#This Row],[2027/28 Total change]]","v":526891},{"$f":"Dataset[[#This Row],[2028/29 Baseline]]+Dataset[[#This Row],[2028/29 Total change]]","v":543267},{"$f":"Dataset[[#This Row],[2029/30 Baseline]]+Dataset[[#This Row],[2029/30 Total change]]","v":559626}]
["NAT|Households","30|Social benefits","2027_28","MTEC2027",30,4,2,33009,489,"30","04","02","033009","000489","30|04|02|000489","01","02","10","52","56","01|02|10|52|56","National","Communications and Digital Technologies","Digital Communication, Access and Services","Regulatory Compliance","Households","Current","Transfers and subsidies","Households","Social benefits","Social benefits","Economic development","Economic regulation and infrastructure","NAT",142,0,0,0,0,0,0,0,0,0,0,null,null,null,null,null,null,null,null,null,null,null,null,null,null,null,null,null,null,null,null,null,null,null,null,null,null,null,null,null,null,null,null,null,null,{"$f":"Dataset[[#This Row],[2027/28 From - Spending review Topic 1]]+Dataset[[#This Row],[2027/28 From - Spending review Topic 2]]+Dataset[[#This Row],[2027/28 From - Spending review Topic 3]]+Dataset[[#This Row],[2027/28 From - Spending review Topic 4]]+Dataset[[#This Row],[2027/28 From - Other reallocations]]","v":0},{"$f":"Dataset[[#This Row],[2028/29 From - Spending review Topic 1]]+Dataset[[#This Row],[2028/29 From - Spending review Topic 2]]+Dataset[[#This Row],[2028/29 From - Spending review Topic 3]]+Dataset[[#This Row],[2028/29 From - Spending review Topic 4]]+Dataset[[#This Row],[2028/29 From - Other reallocations]]","v":0},{"$f":"Dataset[[#This Row],[2029/30 From - Spending review Topic 1]]+Dataset[[#This Row],[2029/30 From - Spending review Topic 2]]+Dataset[[#This Row],[2029/30 From - Spending review Topic 3]]+Dataset[[#This Row],[2029/30 From - Spending review Topic 4]]+Dataset[[#This Row],[2029/30 From - Other reallocations]]","v":0},{"$f":"Dataset[[#This Row],[2027/28 To - Spending review Topic 1]]+Dataset[[#This Row],[2027/28 To - Spending review Topic 2]]+Dataset[[#This Row],[2027/28 To - Spending review Topic 3]]+Dataset[[#This Row],[2027/28 To - Spending review Topic 4]]+Dataset[[#This Row],[2027/28 To - Other reallocations]]","v":0},{"$f":"Dataset[[#This Row],[2028/29 To - Spending review Topic 1]]+Dataset[[#This Row],[2028/29 To - Spending review Topic 2]]+Dataset[[#This Row],[2028/29 To - Spending review Topic 3]]+Dataset[[#This Row],[2028/29 To - Spending review Topic 4]]+Dataset[[#This Row],[2028/29 To - Other reallocations]]","v":0},{"$f":"Dataset[[#This Row],[2029/30 To - Spending review Topic 1]]+Dataset[[#This Row],[2029/30 To - Spending review Topic 2]]+Dataset[[#This Row],[2029/30 To - Spending review Topic 3]]+Dataset[[#This Row],[2029/30 To - Spending review Topic 4]]+Dataset[[#This Row],[2029/30 To - Other reallocations]]","v":0},{"$f":"Dataset[[#This Row],[2027/28 Targeted savings]]+Dataset[[#This Row],[2027/28 From - Total]]","v":0},{"$f":"Dataset[[#This Row],[2028/29 Targeted savings]]+Dataset[[#This Row],[2028/29 From - Total]]","v":0},{"$f":"Dataset[[#This Row],[2029/30 Targeted savings]]+Dataset[[#This Row],[2029/30 From - Total]]","v":0},{"$f":"Dataset[[#This Row],[2026/27 Targeted savings]]","v":0},{"$f":"SUM(Dataset[[#This Row],[2027/28 Targeted savings]],Dataset[[#This Row],[2027/28 From - Total]],Dataset[[#This Row],[2027/28 To - Total]])","v":0},{"$f":"SUM(Dataset[[#This Row],[2028/29 Targeted savings]],Dataset[[#This Row],[2028/29 From - Total]],Dataset[[#This Row],[2028/29 To - Total]])","v":0},{"$f":"SUM(Dataset[[#This Row],[2029/30 Targeted savings]],Dataset[[#This Row],[2029/30 From - Total]],Dataset[[#This Row],[2029/30 To - Total]])","v":0},{"$f":"Dataset[[#This Row],[2026/27 Baseline]]+Dataset[[#This Row],[2026/27 Total change]]","v":0},{"$f":"Dataset[[#This Row],[2027/28 Baseline]]+Dataset[[#This Row],[2027/28 Total change]]","v":0},{"$f":"Dataset[[#This Row],[2028/29 Baseline]]+Dataset[[#This Row],[2028/29 Total change]]","v":0},{"$f":"Dataset[[#This Row],[2029/30 Baseline]]+Dataset[[#This Row],[2029/30 Total change]]","v":0}]
["NAT|Non-transfer","30|Other machinery and equipment","2027_28","MTEC2027",30,4,2,33010,490,"30","04","02","033010","000490","30|04|02|000490","02","03","12","57","61","02|03|12|57|61","National","Communications and Digital Technologies","Digital Communication, Access and Services","Regulatory Compliance","Non-transfer","Capital","Payments for capital assets","Machinery and equipment","Other machinery and equipment","Other machinery and equipment","Economic development","Economic regulation and infrastructure","NAT",0,0,0,0,0,0,0,0,0,254,262,null,null,null,null,null,null,null,null,null,null,null,null,null,null,null,null,null,null,null,null,null,null,null,null,null,null,null,null,null,null,null,null,null,null,{"$f":"Dataset[[#This Row],[2027/28 From - Spending review Topic 1]]+Dataset[[#This Row],[2027/28 From - Spending review Topic 2]]+Dataset[[#This Row],[2027/28 From - Spending review Topic 3]]+Dataset[[#This Row],[2027/28 From - Spending review Topic 4]]+Dataset[[#This Row],[2027/28 From - Other reallocations]]","v":0},{"$f":"Dataset[[#This Row],[2028/29 From - Spending review Topic 1]]+Dataset[[#This Row],[2028/29 From - Spending review Topic 2]]+Dataset[[#This Row],[2028/29 From - Spending review Topic 3]]+Dataset[[#This Row],[2028/29 From - Spending review Topic 4]]+Dataset[[#This Row],[2028/29 From - Other reallocations]]","v":0},{"$f":"Dataset[[#This Row],[2029/30 From - Spending review Topic 1]]+Dataset[[#This Row],[2029/30 From - Spending review Topic 2]]+Dataset[[#This Row],[2029/30 From - Spending review Topic 3]]+Dataset[[#This Row],[2029/30 From - Spending review Topic 4]]+Dataset[[#This Row],[2029/30 From - Other reallocations]]","v":0},{"$f":"Dataset[[#This Row],[2027/28 To - Spending review Topic 1]]+Dataset[[#This Row],[2027/28 To - Spending review Topic 2]]+Dataset[[#This Row],[2027/28 To - Spending review Topic 3]]+Dataset[[#This Row],[2027/28 To - Spending review Topic 4]]+Dataset[[#This Row],[2027/28 To - Other reallocations]]","v":0},{"$f":"Dataset[[#This Row],[2028/29 To - Spending review Topic 1]]+Dataset[[#This Row],[2028/29 To - Spending review Topic 2]]+Dataset[[#This Row],[2028/29 To - Spending review Topic 3]]+Dataset[[#This Row],[2028/29 To - Spending review Topic 4]]+Dataset[[#This Row],[2028/29 To - Other reallocations]]","v":0},{"$f":"Dataset[[#This Row],[2029/30 To - Spending review Topic 1]]+Dataset[[#This Row],[2029/30 To - Spending review Topic 2]]+Dataset[[#This Row],[2029/30 To - Spending review Topic 3]]+Dataset[[#This Row],[2029/30 To - Spending review Topic 4]]+Dataset[[#This Row],[2029/30 To - Other reallocations]]","v":0},{"$f":"Dataset[[#This Row],[2027/28 Targeted savings]]+Dataset[[#This Row],[2027/28 From - Total]]","v":0},{"$f":"Dataset[[#This Row],[2028/29 Targeted savings]]+Dataset[[#This Row],[2028/29 From - Total]]","v":0},{"$f":"Dataset[[#This Row],[2029/30 Targeted savings]]+Dataset[[#This Row],[2029/30 From - Total]]","v":0},{"$f":"Dataset[[#This Row],[2026/27 Targeted savings]]","v":0},{"$f":"SUM(Dataset[[#This Row],[2027/28 Targeted savings]],Dataset[[#This Row],[2027/28 From - Total]],Dataset[[#This Row],[2027/28 To - Total]])","v":0},{"$f":"SUM(Dataset[[#This Row],[2028/29 Targeted savings]],Dataset[[#This Row],[2028/29 From - Total]],Dataset[[#This Row],[2028/29 To - Total]])","v":0},{"$f":"SUM(Dataset[[#This Row],[2029/30 Targeted savings]],Dataset[[#This Row],[2029/30 From - Total]],Dataset[[#This Row],[2029/30 To - Total]])","v":0},{"$f":"Dataset[[#This Row],[2026/27 Baseline]]+Dataset[[#This Row],[2026/27 Total change]]","v":0},{"$f":"Dataset[[#This Row],[2027/28 Baseline]]+Dataset[[#This Row],[2027/28 Total change]]","v":0},{"$f":"Dataset[[#This Row],[2028/29 Baseline]]+Dataset[[#This Row],[2028/29 Total change]]","v":254},{"$f":"Dataset[[#This Row],[2029/30 Baseline]]+Dataset[[#This Row],[2029/30 Total change]]","v":262}]
["NAT|Non-transfer","30|Salaries and wages","2027_28","MTEC2027",30,4,3,33011,491,"30","04","03","033011","000491","30|04|03|000491","01","01","01","01","01","01|01|01|01|01","National","Communications and Digital Technologies","Digital Communication, Access and Services","Digital and Postal Access and Service","Non-transfer","Current","Current payments","Compensation of employees","Salaries and wages","Salaries and wages","Economic development","Economic regulation and infrastructure","NAT",26351,22641,20265,21522,23691,23691,0,20466,23576,25398,26163,null,null,null,null,null,null,null,null,null,null,null,null,null,null,null,null,null,null,null,null,null,null,null,null,null,null,null,null,null,null,null,null,null,null,{"$f":"Dataset[[#This Row],[2027/28 From - Spending review Topic 1]]+Dataset[[#This Row],[2027/28 From - Spending review Topic 2]]+Dataset[[#This Row],[2027/28 From - Spending review Topic 3]]+Dataset[[#This Row],[2027/28 From - Spending review Topic 4]]+Dataset[[#This Row],[2027/28 From - Other reallocations]]","v":0},{"$f":"Dataset[[#This Row],[2028/29 From - Spending review Topic 1]]+Dataset[[#This Row],[2028/29 From - Spending review Topic 2]]+Dataset[[#This Row],[2028/29 From - Spending review Topic 3]]+Dataset[[#This Row],[2028/29 From - Spending review Topic 4]]+Dataset[[#This Row],[2028/29 From - Other reallocations]]","v":0},{"$f":"Dataset[[#This Row],[2029/30 From - Spending review Topic 1]]+Dataset[[#This Row],[2029/30 From - Spending review Topic 2]]+Dataset[[#This Row],[2029/30 From - Spending review Topic 3]]+Dataset[[#This Row],[2029/30 From - Spending review Topic 4]]+Dataset[[#This Row],[2029/30 From - Other reallocations]]","v":0},{"$f":"Dataset[[#This Row],[2027/28 To - Spending review Topic 1]]+Dataset[[#This Row],[2027/28 To - Spending review Topic 2]]+Dataset[[#This Row],[2027/28 To - Spending review Topic 3]]+Dataset[[#This Row],[2027/28 To - Spending review Topic 4]]+Dataset[[#This Row],[2027/28 To - Other reallocations]]","v":0},{"$f":"Dataset[[#This Row],[2028/29 To - Spending review Topic 1]]+Dataset[[#This Row],[2028/29 To - Spending review Topic 2]]+Dataset[[#This Row],[2028/29 To - Spending review Topic 3]]+Dataset[[#This Row],[2028/29 To - Spending review Topic 4]]+Dataset[[#This Row],[2028/29 To - Other reallocations]]","v":0},{"$f":"Dataset[[#This Row],[2029/30 To - Spending review Topic 1]]+Dataset[[#This Row],[2029/30 To - Spending review Topic 2]]+Dataset[[#This Row],[2029/30 To - Spending review Topic 3]]+Dataset[[#This Row],[2029/30 To - Spending review Topic 4]]+Dataset[[#This Row],[2029/30 To - Other reallocations]]","v":0},{"$f":"Dataset[[#This Row],[2027/28 Targeted savings]]+Dataset[[#This Row],[2027/28 From - Total]]","v":0},{"$f":"Dataset[[#This Row],[2028/29 Targeted savings]]+Dataset[[#This Row],[2028/29 From - Total]]","v":0},{"$f":"Dataset[[#This Row],[2029/30 Targeted savings]]+Dataset[[#This Row],[2029/30 From - Total]]","v":0},{"$f":"Dataset[[#This Row],[2026/27 Targeted savings]]","v":0},{"$f":"SUM(Dataset[[#This Row],[2027/28 Targeted savings]],Dataset[[#This Row],[2027/28 From - Total]],Dataset[[#This Row],[2027/28 To - Total]])","v":0},{"$f":"SUM(Dataset[[#This Row],[2028/29 Targeted savings]],Dataset[[#This Row],[2028/29 From - Total]],Dataset[[#This Row],[2028/29 To - Total]])","v":0},{"$f":"SUM(Dataset[[#This Row],[2029/30 Targeted savings]],Dataset[[#This Row],[2029/30 From - Total]],Dataset[[#This Row],[2029/30 To - Total]])","v":0},{"$f":"Dataset[[#This Row],[2026/27 Baseline]]+Dataset[[#This Row],[2026/27 Total change]]","v":20466},{"$f":"Dataset[[#This Row],[2027/28 Baseline]]+Dataset[[#This Row],[2027/28 Total change]]","v":23576},{"$f":"Dataset[[#This Row],[2028/29 Baseline]]+Dataset[[#This Row],[2028/29 Total change]]","v":25398},{"$f":"Dataset[[#This Row],[2029/30 Baseline]]+Dataset[[#This Row],[2029/30 Total change]]","v":26163}]
["NAT|Non-transfer","30|Social contributions","2027_28","MTEC2027",30,4,3,33012,492,"30","04","03","033012","000492","30|04|03|000492","01","01","01","02","02","01|01|01|02|02","National","Communications and Digital Technologies","Digital Communication, Access and Services","Digital and Postal Access and Service","Non-transfer","Current","Current payments","Compensation of employees","Social contributions","Social contributions","Economic development","Economic regulation and infrastructure","NAT",3219,2843,2931,955,755,755,0,2216,3418,3511,3617,null,null,null,null,null,null,null,null,null,null,null,null,null,null,null,null,null,null,null,null,null,null,null,null,null,null,null,null,null,null,null,null,null,null,{"$f":"Dataset[[#This Row],[2027/28 From - Spending review Topic 1]]+Dataset[[#This Row],[2027/28 From - Spending review Topic 2]]+Dataset[[#This Row],[2027/28 From - Spending review Topic 3]]+Dataset[[#This Row],[2027/28 From - Spending review Topic 4]]+Dataset[[#This Row],[2027/28 From - Other reallocations]]","v":0},{"$f":"Dataset[[#This Row],[2028/29 From - Spending review Topic 1]]+Dataset[[#This Row],[2028/29 From - Spending review Topic 2]]+Dataset[[#This Row],[2028/29 From - Spending review Topic 3]]+Dataset[[#This Row],[2028/29 From - Spending review Topic 4]]+Dataset[[#This Row],[2028/29 From - Other reallocations]]","v":0},{"$f":"Dataset[[#This Row],[2029/30 From - Spending review Topic 1]]+Dataset[[#This Row],[2029/30 From - Spending review Topic 2]]+Dataset[[#This Row],[2029/30 From - Spending review Topic 3]]+Dataset[[#This Row],[2029/30 From - Spending review Topic 4]]+Dataset[[#This Row],[2029/30 From - Other reallocations]]","v":0},{"$f":"Dataset[[#This Row],[2027/28 To - Spending review Topic 1]]+Dataset[[#This Row],[2027/28 To - Spending review Topic 2]]+Dataset[[#This Row],[2027/28 To - Spending review Topic 3]]+Dataset[[#This Row],[2027/28 To - Spending review Topic 4]]+Dataset[[#This Row],[2027/28 To - Other reallocations]]","v":0},{"$f":"Dataset[[#This Row],[2028/29 To - Spending review Topic 1]]+Dataset[[#This Row],[2028/29 To - Spending review Topic 2]]+Dataset[[#This Row],[2028/29 To - Spending review Topic 3]]+Dataset[[#This Row],[2028/29 To - Spending review Topic 4]]+Dataset[[#This Row],[2028/29 To - Other reallocations]]","v":0},{"$f":"Dataset[[#This Row],[2029/30 To - Spending review Topic 1]]+Dataset[[#This Row],[2029/30 To - Spending review Topic 2]]+Dataset[[#This Row],[2029/30 To - Spending review Topic 3]]+Dataset[[#This Row],[2029/30 To - Spending review Topic 4]]+Dataset[[#This Row],[2029/30 To - Other reallocations]]","v":0},{"$f":"Dataset[[#This Row],[2027/28 Targeted savings]]+Dataset[[#This Row],[2027/28 From - Total]]","v":0},{"$f":"Dataset[[#This Row],[2028/29 Targeted savings]]+Dataset[[#This Row],[2028/29 From - Total]]","v":0},{"$f":"Dataset[[#This Row],[2029/30 Targeted savings]]+Dataset[[#This Row],[2029/30 From - Total]]","v":0},{"$f":"Dataset[[#This Row],[2026/27 Targeted savings]]","v":0},{"$f":"SUM(Dataset[[#This Row],[2027/28 Targeted savings]],Dataset[[#This Row],[2027/28 From - Total]],Dataset[[#This Row],[2027/28 To - Total]])","v":0},{"$f":"SUM(Dataset[[#This Row],[2028/29 Targeted savings]],Dataset[[#This Row],[2028/29 From - Total]],Dataset[[#This Row],[2028/29 To - Total]])","v":0},{"$f":"SUM(Dataset[[#This Row],[2029/30 Targeted savings]],Dataset[[#This Row],[2029/30 From - Total]],Dataset[[#This Row],[2029/30 To - Total]])","v":0},{"$f":"Dataset[[#This Row],[2026/27 Baseline]]+Dataset[[#This Row],[2026/27 Total change]]","v":2216},{"$f":"Dataset[[#This Row],[2027/28 Baseline]]+Dataset[[#This Row],[2027/28 Total change]]","v":3418},{"$f":"Dataset[[#This Row],[2028/29 Baseline]]+Dataset[[#This Row],[2028/29 Total change]]","v":3511},{"$f":"Dataset[[#This Row],[2029/30 Baseline]]+Dataset[[#This Row],[2029/30 Total change]]","v":3617}]
["NAT|Non-transfer","30|Administrative fees","2027_28","MTEC2027",30,4,3,33013,493,"30","04","03","033013","000493","30|04|03|000493","01","01","02","03","03","01|01|02|03|03","National","Communications and Digital Technologies","Digital Communication, Access and Services","Digital and Postal Access and Service","Non-transfer","Current","Current payments","Goods and services","Administrative fees","Administrative fees","Economic development","Economic regulation and infrastructure","NAT",30,20,8,93,91,91,0,30,26,130,134,null,null,null,null,null,null,null,null,null,null,null,null,null,null,null,null,null,null,null,null,null,null,null,null,null,null,null,null,null,null,null,null,null,null,{"$f":"Dataset[[#This Row],[2027/28 From - Spending review Topic 1]]+Dataset[[#This Row],[2027/28 From - Spending review Topic 2]]+Dataset[[#This Row],[2027/28 From - Spending review Topic 3]]+Dataset[[#This Row],[2027/28 From - Spending review Topic 4]]+Dataset[[#This Row],[2027/28 From - Other reallocations]]","v":0},{"$f":"Dataset[[#This Row],[2028/29 From - Spending review Topic 1]]+Dataset[[#This Row],[2028/29 From - Spending review Topic 2]]+Dataset[[#This Row],[2028/29 From - Spending review Topic 3]]+Dataset[[#This Row],[2028/29 From - Spending review Topic 4]]+Dataset[[#This Row],[2028/29 From - Other reallocations]]","v":0},{"$f":"Dataset[[#This Row],[2029/30 From - Spending review Topic 1]]+Dataset[[#This Row],[2029/30 From - Spending review Topic 2]]+Dataset[[#This Row],[2029/30 From - Spending review Topic 3]]+Dataset[[#This Row],[2029/30 From - Spending review Topic 4]]+Dataset[[#This Row],[2029/30 From - Other reallocations]]","v":0},{"$f":"Dataset[[#This Row],[2027/28 To - Spending review Topic 1]]+Dataset[[#This Row],[2027/28 To - Spending review Topic 2]]+Dataset[[#This Row],[2027/28 To - Spending review Topic 3]]+Dataset[[#This Row],[2027/28 To - Spending review Topic 4]]+Dataset[[#This Row],[2027/28 To - Other reallocations]]","v":0},{"$f":"Dataset[[#This Row],[2028/29 To - Spending review Topic 1]]+Dataset[[#This Row],[2028/29 To - Spending review Topic 2]]+Dataset[[#This Row],[2028/29 To - Spending review Topic 3]]+Dataset[[#This Row],[2028/29 To - Spending review Topic 4]]+Dataset[[#This Row],[2028/29 To - Other reallocations]]","v":0},{"$f":"Dataset[[#This Row],[2029/30 To - Spending review Topic 1]]+Dataset[[#This Row],[2029/30 To - Spending review Topic 2]]+Dataset[[#This Row],[2029/30 To - Spending review Topic 3]]+Dataset[[#This Row],[2029/30 To - Spending review Topic 4]]+Dataset[[#This Row],[2029/30 To - Other reallocations]]","v":0},{"$f":"Dataset[[#This Row],[2027/28 Targeted savings]]+Dataset[[#This Row],[2027/28 From - Total]]","v":0},{"$f":"Dataset[[#This Row],[2028/29 Targeted savings]]+Dataset[[#This Row],[2028/29 From - Total]]","v":0},{"$f":"Dataset[[#This Row],[2029/30 Targeted savings]]+Dataset[[#This Row],[2029/30 From - Total]]","v":0},{"$f":"Dataset[[#This Row],[2026/27 Targeted savings]]","v":0},{"$f":"SUM(Dataset[[#This Row],[2027/28 Targeted savings]],Dataset[[#This Row],[2027/28 From - Total]],Dataset[[#This Row],[2027/28 To - Total]])","v":0},{"$f":"SUM(Dataset[[#This Row],[2028/29 Targeted savings]],Dataset[[#This Row],[2028/29 From - Total]],Dataset[[#This Row],[2028/29 To - Total]])","v":0},{"$f":"SUM(Dataset[[#This Row],[2029/30 Targeted savings]],Dataset[[#This Row],[2029/30 From - Total]],Dataset[[#This Row],[2029/30 To - Total]])","v":0},{"$f":"Dataset[[#This Row],[2026/27 Baseline]]+Dataset[[#This Row],[2026/27 Total change]]","v":30},{"$f":"Dataset[[#This Row],[2027/28 Baseline]]+Dataset[[#This Row],[2027/28 Total change]]","v":26},{"$f":"Dataset[[#This Row],[2028/29 Baseline]]+Dataset[[#This Row],[2028/29 Total change]]","v":130},{"$f":"Dataset[[#This Row],[2029/30 Baseline]]+Dataset[[#This Row],[2029/30 Total change]]","v":134}]
["NAT|Non-transfer","30|Advertising","2027_28","MTEC2027",30,4,3,33014,494,"30","04","03","033014","000494","30|04|03|000494","01","01","02","04","04","01|01|02|04|04","National","Communications and Digital Technologies","Digital Communication, Access and Services","Digital and Postal Access and Service","Non-transfer","Current","Current payments","Goods and services","Advertising","Advertising","Economic development","Economic regulation and infrastructure","NAT",212,242,121,305,305,305,0,203,251,259,267,null,null,null,null,null,null,null,null,null,null,null,null,null,null,null,null,null,null,null,null,null,null,null,null,null,null,null,null,null,null,null,null,null,null,{"$f":"Dataset[[#This Row],[2027/28 From - Spending review Topic 1]]+Dataset[[#This Row],[2027/28 From - Spending review Topic 2]]+Dataset[[#This Row],[2027/28 From - Spending review Topic 3]]+Dataset[[#This Row],[2027/28 From - Spending review Topic 4]]+Dataset[[#This Row],[2027/28 From - Other reallocations]]","v":0},{"$f":"Dataset[[#This Row],[2028/29 From - Spending review Topic 1]]+Dataset[[#This Row],[2028/29 From - Spending review Topic 2]]+Dataset[[#This Row],[2028/29 From - Spending review Topic 3]]+Dataset[[#This Row],[2028/29 From - Spending review Topic 4]]+Dataset[[#This Row],[2028/29 From - Other reallocations]]","v":0},{"$f":"Dataset[[#This Row],[2029/30 From - Spending review Topic 1]]+Dataset[[#This Row],[2029/30 From - Spending review Topic 2]]+Dataset[[#This Row],[2029/30 From - Spending review Topic 3]]+Dataset[[#This Row],[2029/30 From - Spending review Topic 4]]+Dataset[[#This Row],[2029/30 From - Other reallocations]]","v":0},{"$f":"Dataset[[#This Row],[2027/28 To - Spending review Topic 1]]+Dataset[[#This Row],[2027/28 To - Spending review Topic 2]]+Dataset[[#This Row],[2027/28 To - Spending review Topic 3]]+Dataset[[#This Row],[2027/28 To - Spending review Topic 4]]+Dataset[[#This Row],[2027/28 To - Other reallocations]]","v":0},{"$f":"Dataset[[#This Row],[2028/29 To - Spending review Topic 1]]+Dataset[[#This Row],[2028/29 To - Spending review Topic 2]]+Dataset[[#This Row],[2028/29 To - Spending review Topic 3]]+Dataset[[#This Row],[2028/29 To - Spending review Topic 4]]+Dataset[[#This Row],[2028/29 To - Other reallocations]]","v":0},{"$f":"Dataset[[#This Row],[2029/30 To - Spending review Topic 1]]+Dataset[[#This Row],[2029/30 To - Spending review Topic 2]]+Dataset[[#This Row],[2029/30 To - Spending review Topic 3]]+Dataset[[#This Row],[2029/30 To - Spending review Topic 4]]+Dataset[[#This Row],[2029/30 To - Other reallocations]]","v":0},{"$f":"Dataset[[#This Row],[2027/28 Targeted savings]]+Dataset[[#This Row],[2027/28 From - Total]]","v":0},{"$f":"Dataset[[#This Row],[2028/29 Targeted savings]]+Dataset[[#This Row],[2028/29 From - Total]]","v":0},{"$f":"Dataset[[#This Row],[2029/30 Targeted savings]]+Dataset[[#This Row],[2029/30 From - Total]]","v":0},{"$f":"Dataset[[#This Row],[2026/27 Targeted savings]]","v":0},{"$f":"SUM(Dataset[[#This Row],[2027/28 Targeted savings]],Dataset[[#This Row],[2027/28 From - Total]],Dataset[[#This Row],[2027/28 To - Total]])","v":0},{"$f":"SUM(Dataset[[#This Row],[2028/29 Targeted savings]],Dataset[[#This Row],[2028/29 From - Total]],Dataset[[#This Row],[2028/29 To - Total]])","v":0},{"$f":"SUM(Dataset[[#This Row],[2029/30 Targeted savings]],Dataset[[#This Row],[2029/30 From - Total]],Dataset[[#This Row],[2029/30 To - Total]])","v":0},{"$f":"Dataset[[#This Row],[2026/27 Baseline]]+Dataset[[#This Row],[2026/27 Total change]]","v":203},{"$f":"Dataset[[#This Row],[2027/28 Baseline]]+Dataset[[#This Row],[2027/28 Total change]]","v":251},{"$f":"Dataset[[#This Row],[2028/29 Baseline]]+Dataset[[#This Row],[2028/29 Total change]]","v":259},{"$f":"Dataset[[#This Row],[2029/30 Baseline]]+Dataset[[#This Row],[2029/30 Total change]]","v":267}]
["NAT|Non-transfer","30|Minor assets","2027_28","MTEC2027",30,4,3,33015,495,"30","04","03","033015","000495","30|04|03|000495","01","01","02","05","05","01|01|02|05|05","National","Communications and Digital Technologies","Digital Communication, Access and Services","Digital and Postal Access and Service","Non-transfer","Current","Current payments","Goods and services","Minor assets","Minor assets","Economic development","Economic regulation and infrastructure","NAT",2,0,0,16,16,16,0,3,6,148,152,null,null,null,null,null,null,null,null,null,null,null,null,null,null,null,null,null,null,null,null,null,null,null,null,null,null,null,null,null,null,null,null,null,null,{"$f":"Dataset[[#This Row],[2027/28 From - Spending review Topic 1]]+Dataset[[#This Row],[2027/28 From - Spending review Topic 2]]+Dataset[[#This Row],[2027/28 From - Spending review Topic 3]]+Dataset[[#This Row],[2027/28 From - Spending review Topic 4]]+Dataset[[#This Row],[2027/28 From - Other reallocations]]","v":0},{"$f":"Dataset[[#This Row],[2028/29 From - Spending review Topic 1]]+Dataset[[#This Row],[2028/29 From - Spending review Topic 2]]+Dataset[[#This Row],[2028/29 From - Spending review Topic 3]]+Dataset[[#This Row],[2028/29 From - Spending review Topic 4]]+Dataset[[#This Row],[2028/29 From - Other reallocations]]","v":0},{"$f":"Dataset[[#This Row],[2029/30 From - Spending review Topic 1]]+Dataset[[#This Row],[2029/30 From - Spending review Topic 2]]+Dataset[[#This Row],[2029/30 From - Spending review Topic 3]]+Dataset[[#This Row],[2029/30 From - Spending review Topic 4]]+Dataset[[#This Row],[2029/30 From - Other reallocations]]","v":0},{"$f":"Dataset[[#This Row],[2027/28 To - Spending review Topic 1]]+Dataset[[#This Row],[2027/28 To - Spending review Topic 2]]+Dataset[[#This Row],[2027/28 To - Spending review Topic 3]]+Dataset[[#This Row],[2027/28 To - Spending review Topic 4]]+Dataset[[#This Row],[2027/28 To - Other reallocations]]","v":0},{"$f":"Dataset[[#This Row],[2028/29 To - Spending review Topic 1]]+Dataset[[#This Row],[2028/29 To - Spending review Topic 2]]+Dataset[[#This Row],[2028/29 To - Spending review Topic 3]]+Dataset[[#This Row],[2028/29 To - Spending review Topic 4]]+Dataset[[#This Row],[2028/29 To - Other reallocations]]","v":0},{"$f":"Dataset[[#This Row],[2029/30 To - Spending review Topic 1]]+Dataset[[#This Row],[2029/30 To - Spending review Topic 2]]+Dataset[[#This Row],[2029/30 To - Spending review Topic 3]]+Dataset[[#This Row],[2029/30 To - Spending review Topic 4]]+Dataset[[#This Row],[2029/30 To - Other reallocations]]","v":0},{"$f":"Dataset[[#This Row],[2027/28 Targeted savings]]+Dataset[[#This Row],[2027/28 From - Total]]","v":0},{"$f":"Dataset[[#This Row],[2028/29 Targeted savings]]+Dataset[[#This Row],[2028/29 From - Total]]","v":0},{"$f":"Dataset[[#This Row],[2029/30 Targeted savings]]+Dataset[[#This Row],[2029/30 From - Total]]","v":0},{"$f":"Dataset[[#This Row],[2026/27 Targeted savings]]","v":0},{"$f":"SUM(Dataset[[#This Row],[2027/28 Targeted savings]],Dataset[[#This Row],[2027/28 From - Total]],Dataset[[#This Row],[2027/28 To - Total]])","v":0},{"$f":"SUM(Dataset[[#This Row],[2028/29 Targeted savings]],Dataset[[#This Row],[2028/29 From - Total]],Dataset[[#This Row],[2028/29 To - Total]])","v":0},{"$f":"SUM(Dataset[[#This Row],[2029/30 Targeted savings]],Dataset[[#This Row],[2029/30 From - Total]],Dataset[[#This Row],[2029/30 To - Total]])","v":0},{"$f":"Dataset[[#This Row],[2026/27 Baseline]]+Dataset[[#This Row],[2026/27 Total change]]","v":3},{"$f":"Dataset[[#This Row],[2027/28 Baseline]]+Dataset[[#This Row],[2027/28 Total change]]","v":6},{"$f":"Dataset[[#This Row],[2028/29 Baseline]]+Dataset[[#This Row],[2028/29 Total change]]","v":148},{"$f":"Dataset[[#This Row],[2029/30 Baseline]]+Dataset[[#This Row],[2029/30 Total change]]","v":152}]
["NAT|Non-transfer","30|Bursaries: Employees","2027_28","MTEC2027",30,4,3,33016,496,"30","04","03","033016","000496","30|04|03|000496","01","01","02","07","07","01|01|02|07|07","National","Communications and Digital Technologies","Digital Communication, Access and Services","Digital and Postal Access and Service","Non-transfer","Current","Current payments","Goods and services","Bursaries: Employees","Bursaries: Employees","Economic development","Economic regulation and infrastructure","NAT",292,217,41,170,170,170,0,0,0,403,415,null,null,null,null,null,null,null,null,null,null,null,null,null,null,null,null,null,null,null,null,null,null,null,null,null,null,null,null,null,null,null,null,null,null,{"$f":"Dataset[[#This Row],[2027/28 From - Spending review Topic 1]]+Dataset[[#This Row],[2027/28 From - Spending review Topic 2]]+Dataset[[#This Row],[2027/28 From - Spending review Topic 3]]+Dataset[[#This Row],[2027/28 From - Spending review Topic 4]]+Dataset[[#This Row],[2027/28 From - Other reallocations]]","v":0},{"$f":"Dataset[[#This Row],[2028/29 From - Spending review Topic 1]]+Dataset[[#This Row],[2028/29 From - Spending review Topic 2]]+Dataset[[#This Row],[2028/29 From - Spending review Topic 3]]+Dataset[[#This Row],[2028/29 From - Spending review Topic 4]]+Dataset[[#This Row],[2028/29 From - Other reallocations]]","v":0},{"$f":"Dataset[[#This Row],[2029/30 From - Spending review Topic 1]]+Dataset[[#This Row],[2029/30 From - Spending review Topic 2]]+Dataset[[#This Row],[2029/30 From - Spending review Topic 3]]+Dataset[[#This Row],[2029/30 From - Spending review Topic 4]]+Dataset[[#This Row],[2029/30 From - Other reallocations]]","v":0},{"$f":"Dataset[[#This Row],[2027/28 To - Spending review Topic 1]]+Dataset[[#This Row],[2027/28 To - Spending review Topic 2]]+Dataset[[#This Row],[2027/28 To - Spending review Topic 3]]+Dataset[[#This Row],[2027/28 To - Spending review Topic 4]]+Dataset[[#This Row],[2027/28 To - Other reallocations]]","v":0},{"$f":"Dataset[[#This Row],[2028/29 To - Spending review Topic 1]]+Dataset[[#This Row],[2028/29 To - Spending review Topic 2]]+Dataset[[#This Row],[2028/29 To - Spending review Topic 3]]+Dataset[[#This Row],[2028/29 To - Spending review Topic 4]]+Dataset[[#This Row],[2028/29 To - Other reallocations]]","v":0},{"$f":"Dataset[[#This Row],[2029/30 To - Spending review Topic 1]]+Dataset[[#This Row],[2029/30 To - Spending review Topic 2]]+Dataset[[#This Row],[2029/30 To - Spending review Topic 3]]+Dataset[[#This Row],[2029/30 To - Spending review Topic 4]]+Dataset[[#This Row],[2029/30 To - Other reallocations]]","v":0},{"$f":"Dataset[[#This Row],[2027/28 Targeted savings]]+Dataset[[#This Row],[2027/28 From - Total]]","v":0},{"$f":"Dataset[[#This Row],[2028/29 Targeted savings]]+Dataset[[#This Row],[2028/29 From - Total]]","v":0},{"$f":"Dataset[[#This Row],[2029/30 Targeted savings]]+Dataset[[#This Row],[2029/30 From - Total]]","v":0},{"$f":"Dataset[[#This Row],[2026/27 Targeted savings]]","v":0},{"$f":"SUM(Dataset[[#This Row],[2027/28 Targeted savings]],Dataset[[#This Row],[2027/28 From - Total]],Dataset[[#This Row],[2027/28 To - Total]])","v":0},{"$f":"SUM(Dataset[[#This Row],[2028/29 Targeted savings]],Dataset[[#This Row],[2028/29 From - Total]],Dataset[[#This Row],[2028/29 To - Total]])","v":0},{"$f":"SUM(Dataset[[#This Row],[2029/30 Targeted savings]],Dataset[[#This Row],[2029/30 From - Total]],Dataset[[#This Row],[2029/30 To - Total]])","v":0},{"$f":"Dataset[[#This Row],[2026/27 Baseline]]+Dataset[[#This Row],[2026/27 Total change]]","v":0},{"$f":"Dataset[[#This Row],[2027/28 Baseline]]+Dataset[[#This Row],[2027/28 Total change]]","v":0},{"$f":"Dataset[[#This Row],[2028/29 Baseline]]+Dataset[[#This Row],[2028/29 Total change]]","v":403},{"$f":"Dataset[[#This Row],[2029/30 Baseline]]+Dataset[[#This Row],[2029/30 Total change]]","v":415}]
["NAT|Non-transfer","30|Catering: Departmental activities","2027_28","MTEC2027",30,4,3,33017,497,"30","04","03","033017","000497","30|04|03|000497","01","01","02","08","08","01|01|02|08|08","National","Communications and Digital Technologies","Digital Communication, Access and Services","Digital and Postal Access and Service","Non-transfer","Current","Current payments","Goods and services","Catering: Departmental activities","Catering: Departmental activities","Economic development","Economic regulation and infrastructure","NAT",20,4,3,10,10,10,0,8,6,202,208,null,null,null,null,null,null,null,null,null,null,null,null,null,null,null,null,null,null,null,null,null,null,null,null,null,null,null,null,null,null,null,null,null,null,{"$f":"Dataset[[#This Row],[2027/28 From - Spending review Topic 1]]+Dataset[[#This Row],[2027/28 From - Spending review Topic 2]]+Dataset[[#This Row],[2027/28 From - Spending review Topic 3]]+Dataset[[#This Row],[2027/28 From - Spending review Topic 4]]+Dataset[[#This Row],[2027/28 From - Other reallocations]]","v":0},{"$f":"Dataset[[#This Row],[2028/29 From - Spending review Topic 1]]+Dataset[[#This Row],[2028/29 From - Spending review Topic 2]]+Dataset[[#This Row],[2028/29 From - Spending review Topic 3]]+Dataset[[#This Row],[2028/29 From - Spending review Topic 4]]+Dataset[[#This Row],[2028/29 From - Other reallocations]]","v":0},{"$f":"Dataset[[#This Row],[2029/30 From - Spending review Topic 1]]+Dataset[[#This Row],[2029/30 From - Spending review Topic 2]]+Dataset[[#This Row],[2029/30 From - Spending review Topic 3]]+Dataset[[#This Row],[2029/30 From - Spending review Topic 4]]+Dataset[[#This Row],[2029/30 From - Other reallocations]]","v":0},{"$f":"Dataset[[#This Row],[2027/28 To - Spending review Topic 1]]+Dataset[[#This Row],[2027/28 To - Spending review Topic 2]]+Dataset[[#This Row],[2027/28 To - Spending review Topic 3]]+Dataset[[#This Row],[2027/28 To - Spending review Topic 4]]+Dataset[[#This Row],[2027/28 To - Other reallocations]]","v":0},{"$f":"Dataset[[#This Row],[2028/29 To - Spending review Topic 1]]+Dataset[[#This Row],[2028/29 To - Spending review Topic 2]]+Dataset[[#This Row],[2028/29 To - Spending review Topic 3]]+Dataset[[#This Row],[2028/29 To - Spending review Topic 4]]+Dataset[[#This Row],[2028/29 To - Other reallocations]]","v":0},{"$f":"Dataset[[#This Row],[2029/30 To - Spending review Topic 1]]+Dataset[[#This Row],[2029/30 To - Spending review Topic 2]]+Dataset[[#This Row],[2029/30 To - Spending review Topic 3]]+Dataset[[#This Row],[2029/30 To - Spending review Topic 4]]+Dataset[[#This Row],[2029/30 To - Other reallocations]]","v":0},{"$f":"Dataset[[#This Row],[2027/28 Targeted savings]]+Dataset[[#This Row],[2027/28 From - Total]]","v":0},{"$f":"Dataset[[#This Row],[2028/29 Targeted savings]]+Dataset[[#This Row],[2028/29 From - Total]]","v":0},{"$f":"Dataset[[#This Row],[2029/30 Targeted savings]]+Dataset[[#This Row],[2029/30 From - Total]]","v":0},{"$f":"Dataset[[#This Row],[2026/27 Targeted savings]]","v":0},{"$f":"SUM(Dataset[[#This Row],[2027/28 Targeted savings]],Dataset[[#This Row],[2027/28 From - Total]],Dataset[[#This Row],[2027/28 To - Total]])","v":0},{"$f":"SUM(Dataset[[#This Row],[2028/29 Targeted savings]],Dataset[[#This Row],[2028/29 From - Total]],Dataset[[#This Row],[2028/29 To - Total]])","v":0},{"$f":"SUM(Dataset[[#This Row],[2029/30 Targeted savings]],Dataset[[#This Row],[2029/30 From - Total]],Dataset[[#This Row],[2029/30 To - Total]])","v":0},{"$f":"Dataset[[#This Row],[2026/27 Baseline]]+Dataset[[#This Row],[2026/27 Total change]]","v":8},{"$f":"Dataset[[#This Row],[2027/28 Baseline]]+Dataset[[#This Row],[2027/28 Total change]]","v":6},{"$f":"Dataset[[#This Row],[2028/29 Baseline]]+Dataset[[#This Row],[2028/29 Total change]]","v":202},{"$f":"Dataset[[#This Row],[2029/30 Baseline]]+Dataset[[#This Row],[2029/30 Total change]]","v":208}]
["NAT|Non-transfer","30|Communication (G&S)","2027_28","MTEC2027",30,4,3,33018,498,"30","04","03","033018","000498","30|04|03|000498","01","01","02","09","09","01|01|02|09|09","National","Communications and Digital Technologies","Digital Communication, Access and Services","Digital and Postal Access and Service","Non-transfer","Current","Current payments","Goods and services","Communication (G&S)","Communication (G&S)","Economic development","Economic regulation and infrastructure","NAT",365,328,345,587,587,587,0,270,339,659,679,null,null,null,null,null,null,null,null,null,null,null,null,null,null,null,null,null,null,null,null,null,null,null,null,null,null,null,null,null,null,null,null,null,null,{"$f":"Dataset[[#This Row],[2027/28 From - Spending review Topic 1]]+Dataset[[#This Row],[2027/28 From - Spending review Topic 2]]+Dataset[[#This Row],[2027/28 From - Spending review Topic 3]]+Dataset[[#This Row],[2027/28 From - Spending review Topic 4]]+Dataset[[#This Row],[2027/28 From - Other reallocations]]","v":0},{"$f":"Dataset[[#This Row],[2028/29 From - Spending review Topic 1]]+Dataset[[#This Row],[2028/29 From - Spending review Topic 2]]+Dataset[[#This Row],[2028/29 From - Spending review Topic 3]]+Dataset[[#This Row],[2028/29 From - Spending review Topic 4]]+Dataset[[#This Row],[2028/29 From - Other reallocations]]","v":0},{"$f":"Dataset[[#This Row],[2029/30 From - Spending review Topic 1]]+Dataset[[#This Row],[2029/30 From - Spending review Topic 2]]+Dataset[[#This Row],[2029/30 From - Spending review Topic 3]]+Dataset[[#This Row],[2029/30 From - Spending review Topic 4]]+Dataset[[#This Row],[2029/30 From - Other reallocations]]","v":0},{"$f":"Dataset[[#This Row],[2027/28 To - Spending review Topic 1]]+Dataset[[#This Row],[2027/28 To - Spending review Topic 2]]+Dataset[[#This Row],[2027/28 To - Spending review Topic 3]]+Dataset[[#This Row],[2027/28 To - Spending review Topic 4]]+Dataset[[#This Row],[2027/28 To - Other reallocations]]","v":0},{"$f":"Dataset[[#This Row],[2028/29 To - Spending review Topic 1]]+Dataset[[#This Row],[2028/29 To - Spending review Topic 2]]+Dataset[[#This Row],[2028/29 To - Spending review Topic 3]]+Dataset[[#This Row],[2028/29 To - Spending review Topic 4]]+Dataset[[#This Row],[2028/29 To - Other reallocations]]","v":0},{"$f":"Dataset[[#This Row],[2029/30 To - Spending review Topic 1]]+Dataset[[#This Row],[2029/30 To - Spending review Topic 2]]+Dataset[[#This Row],[2029/30 To - Spending review Topic 3]]+Dataset[[#This Row],[2029/30 To - Spending review Topic 4]]+Dataset[[#This Row],[2029/30 To - Other reallocations]]","v":0},{"$f":"Dataset[[#This Row],[2027/28 Targeted savings]]+Dataset[[#This Row],[2027/28 From - Total]]","v":0},{"$f":"Dataset[[#This Row],[2028/29 Targeted savings]]+Dataset[[#This Row],[2028/29 From - Total]]","v":0},{"$f":"Dataset[[#This Row],[2029/30 Targeted savings]]+Dataset[[#This Row],[2029/30 From - Total]]","v":0},{"$f":"Dataset[[#This Row],[2026/27 Targeted savings]]","v":0},{"$f":"SUM(Dataset[[#This Row],[2027/28 Targeted savings]],Dataset[[#This Row],[2027/28 From - Total]],Dataset[[#This Row],[2027/28 To - Total]])","v":0},{"$f":"SUM(Dataset[[#This Row],[2028/29 Targeted savings]],Dataset[[#This Row],[2028/29 From - Total]],Dataset[[#This Row],[2028/29 To - Total]])","v":0},{"$f":"SUM(Dataset[[#This Row],[2029/30 Targeted savings]],Dataset[[#This Row],[2029/30 From - Total]],Dataset[[#This Row],[2029/30 To - Total]])","v":0},{"$f":"Dataset[[#This Row],[2026/27 Baseline]]+Dataset[[#This Row],[2026/27 Total change]]","v":270},{"$f":"Dataset[[#This Row],[2027/28 Baseline]]+Dataset[[#This Row],[2027/28 Total change]]","v":339},{"$f":"Dataset[[#This Row],[2028/29 Baseline]]+Dataset[[#This Row],[2028/29 Total change]]","v":659},{"$f":"Dataset[[#This Row],[2029/30 Baseline]]+Dataset[[#This Row],[2029/30 Total change]]","v":679}]
["NAT|Non-transfer","30|Consultants: Business and advisory services","2027_28","MTEC2027",30,4,3,33019,499,"30","04","03","033019","000499","30|04|03|000499","01","01","02","11","11","01|01|02|11|11","National","Communications and Digital Technologies","Digital Communication, Access and Services","Digital and Postal Access and Service","Non-transfer","Current","Current payments","Goods and services","Consultants: Business and advisory services","Consultants: Business and advisory services","Economic development","Economic regulation and infrastructure","NAT",2958,0,0,175,175,175,0,83,0,833,858,null,null,null,null,null,null,null,null,null,null,null,null,null,null,null,null,null,null,null,null,null,null,null,null,null,null,null,null,null,null,null,null,null,null,{"$f":"Dataset[[#This Row],[2027/28 From - Spending review Topic 1]]+Dataset[[#This Row],[2027/28 From - Spending review Topic 2]]+Dataset[[#This Row],[2027/28 From - Spending review Topic 3]]+Dataset[[#This Row],[2027/28 From - Spending review Topic 4]]+Dataset[[#This Row],[2027/28 From - Other reallocations]]","v":0},{"$f":"Dataset[[#This Row],[2028/29 From - Spending review Topic 1]]+Dataset[[#This Row],[2028/29 From - Spending review Topic 2]]+Dataset[[#This Row],[2028/29 From - Spending review Topic 3]]+Dataset[[#This Row],[2028/29 From - Spending review Topic 4]]+Dataset[[#This Row],[2028/29 From - Other reallocations]]","v":0},{"$f":"Dataset[[#This Row],[2029/30 From - Spending review Topic 1]]+Dataset[[#This Row],[2029/30 From - Spending review Topic 2]]+Dataset[[#This Row],[2029/30 From - Spending review Topic 3]]+Dataset[[#This Row],[2029/30 From - Spending review Topic 4]]+Dataset[[#This Row],[2029/30 From - Other reallocations]]","v":0},{"$f":"Dataset[[#This Row],[2027/28 To - Spending review Topic 1]]+Dataset[[#This Row],[2027/28 To - Spending review Topic 2]]+Dataset[[#This Row],[2027/28 To - Spending review Topic 3]]+Dataset[[#This Row],[2027/28 To - Spending review Topic 4]]+Dataset[[#This Row],[2027/28 To - Other reallocations]]","v":0},{"$f":"Dataset[[#This Row],[2028/29 To - Spending review Topic 1]]+Dataset[[#This Row],[2028/29 To - Spending review Topic 2]]+Dataset[[#This Row],[2028/29 To - Spending review Topic 3]]+Dataset[[#This Row],[2028/29 To - Spending review Topic 4]]+Dataset[[#This Row],[2028/29 To - Other reallocations]]","v":0},{"$f":"Dataset[[#This Row],[2029/30 To - Spending review Topic 1]]+Dataset[[#This Row],[2029/30 To - Spending review Topic 2]]+Dataset[[#This Row],[2029/30 To - Spending review Topic 3]]+Dataset[[#This Row],[2029/30 To - Spending review Topic 4]]+Dataset[[#This Row],[2029/30 To - Other reallocations]]","v":0},{"$f":"Dataset[[#This Row],[2027/28 Targeted savings]]+Dataset[[#This Row],[2027/28 From - Total]]","v":0},{"$f":"Dataset[[#This Row],[2028/29 Targeted savings]]+Dataset[[#This Row],[2028/29 From - Total]]","v":0},{"$f":"Dataset[[#This Row],[2029/30 Targeted savings]]+Dataset[[#This Row],[2029/30 From - Total]]","v":0},{"$f":"Dataset[[#This Row],[2026/27 Targeted savings]]","v":0},{"$f":"SUM(Dataset[[#This Row],[2027/28 Targeted savings]],Dataset[[#This Row],[2027/28 From - Total]],Dataset[[#This Row],[2027/28 To - Total]])","v":0},{"$f":"SUM(Dataset[[#This Row],[2028/29 Targeted savings]],Dataset[[#This Row],[2028/29 From - Total]],Dataset[[#This Row],[2028/29 To - Total]])","v":0},{"$f":"SUM(Dataset[[#This Row],[2029/30 Targeted savings]],Dataset[[#This Row],[2029/30 From - Total]],Dataset[[#This Row],[2029/30 To - Total]])","v":0},{"$f":"Dataset[[#This Row],[2026/27 Baseline]]+Dataset[[#This Row],[2026/27 Total change]]","v":83},{"$f":"Dataset[[#This Row],[2027/28 Baseline]]+Dataset[[#This Row],[2027/28 Total change]]","v":0},{"$f":"Dataset[[#This Row],[2028/29 Baseline]]+Dataset[[#This Row],[2028/29 Total change]]","v":833},{"$f":"Dataset[[#This Row],[2029/30 Baseline]]+Dataset[[#This Row],[2029/30 Total change]]","v":858}]
["NAT|Non-transfer","30|Legal services (G&S)","2027_28","MTEC2027",30,4,3,33020,500,"30","04","03","033020","000500","30|04|03|000500","01","01","02","14","14","01|01|02|14|14","National","Communications and Digital Technologies","Digital Communication, Access and Services","Digital and Postal Access and Service","Non-transfer","Current","Current payments","Goods and services","Legal services (G&S)","Legal services (G&S)","Economic development","Economic regulation and infrastructure","NAT",0,0,0,145,145,145,0,0,0,0,0,null,null,null,null,null,null,null,null,null,null,null,null,null,null,null,null,null,null,null,null,null,null,null,null,null,null,null,null,null,null,null,null,null,null,{"$f":"Dataset[[#This Row],[2027/28 From - Spending review Topic 1]]+Dataset[[#This Row],[2027/28 From - Spending review Topic 2]]+Dataset[[#This Row],[2027/28 From - Spending review Topic 3]]+Dataset[[#This Row],[2027/28 From - Spending review Topic 4]]+Dataset[[#This Row],[2027/28 From - Other reallocations]]","v":0},{"$f":"Dataset[[#This Row],[2028/29 From - Spending review Topic 1]]+Dataset[[#This Row],[2028/29 From - Spending review Topic 2]]+Dataset[[#This Row],[2028/29 From - Spending review Topic 3]]+Dataset[[#This Row],[2028/29 From - Spending review Topic 4]]+Dataset[[#This Row],[2028/29 From - Other reallocations]]","v":0},{"$f":"Dataset[[#This Row],[2029/30 From - Spending review Topic 1]]+Dataset[[#This Row],[2029/30 From - Spending review Topic 2]]+Dataset[[#This Row],[2029/30 From - Spending review Topic 3]]+Dataset[[#This Row],[2029/30 From - Spending review Topic 4]]+Dataset[[#This Row],[2029/30 From - Other reallocations]]","v":0},{"$f":"Dataset[[#This Row],[2027/28 To - Spending review Topic 1]]+Dataset[[#This Row],[2027/28 To - Spending review Topic 2]]+Dataset[[#This Row],[2027/28 To - Spending review Topic 3]]+Dataset[[#This Row],[2027/28 To - Spending review Topic 4]]+Dataset[[#This Row],[2027/28 To - Other reallocations]]","v":0},{"$f":"Dataset[[#This Row],[2028/29 To - Spending review Topic 1]]+Dataset[[#This Row],[2028/29 To - Spending review Topic 2]]+Dataset[[#This Row],[2028/29 To - Spending review Topic 3]]+Dataset[[#This Row],[2028/29 To - Spending review Topic 4]]+Dataset[[#This Row],[2028/29 To - Other reallocations]]","v":0},{"$f":"Dataset[[#This Row],[2029/30 To - Spending review Topic 1]]+Dataset[[#This Row],[2029/30 To - Spending review Topic 2]]+Dataset[[#This Row],[2029/30 To - Spending review Topic 3]]+Dataset[[#This Row],[2029/30 To - Spending review Topic 4]]+Dataset[[#This Row],[2029/30 To - Other reallocations]]","v":0},{"$f":"Dataset[[#This Row],[2027/28 Targeted savings]]+Dataset[[#This Row],[2027/28 From - Total]]","v":0},{"$f":"Dataset[[#This Row],[2028/29 Targeted savings]]+Dataset[[#This Row],[2028/29 From - Total]]","v":0},{"$f":"Dataset[[#This Row],[2029/30 Targeted savings]]+Dataset[[#This Row],[2029/30 From - Total]]","v":0},{"$f":"Dataset[[#This Row],[2026/27 Targeted savings]]","v":0},{"$f":"SUM(Dataset[[#This Row],[2027/28 Targeted savings]],Dataset[[#This Row],[2027/28 From - Total]],Dataset[[#This Row],[2027/28 To - Total]])","v":0},{"$f":"SUM(Dataset[[#This Row],[2028/29 Targeted savings]],Dataset[[#This Row],[2028/29 From - Total]],Dataset[[#This Row],[2028/29 To - Total]])","v":0},{"$f":"SUM(Dataset[[#This Row],[2029/30 Targeted savings]],Dataset[[#This Row],[2029/30 From - Total]],Dataset[[#This Row],[2029/30 To - Total]])","v":0},{"$f":"Dataset[[#This Row],[2026/27 Baseline]]+Dataset[[#This Row],[2026/27 Total change]]","v":0},{"$f":"Dataset[[#This Row],[2027/28 Baseline]]+Dataset[[#This Row],[2027/28 Total change]]","v":0},{"$f":"Dataset[[#This Row],[2028/29 Baseline]]+Dataset[[#This Row],[2028/29 Total change]]","v":0},{"$f":"Dataset[[#This Row],[2029/30 Baseline]]+Dataset[[#This Row],[2029/30 Total change]]","v":0}]
["NAT|Non-transfer","30|Contractors","2027_28","MTEC2027",30,4,3,33021,501,"30","04","03","033021","000501","30|04|03|000501","01","01","02","16","16","01|01|02|16|16","National","Communications and Digital Technologies","Digital Communication, Access and Services","Digital and Postal Access and Service","Non-transfer","Current","Current payments","Goods and services","Contractors","Contractors","Economic development","Economic regulation and infrastructure","NAT",0,7,12,20,20,20,0,40,22,22,23,null,null,null,null,null,null,null,null,null,null,null,null,null,null,null,null,null,null,null,null,null,null,null,null,null,null,null,null,null,null,null,null,null,null,{"$f":"Dataset[[#This Row],[2027/28 From - Spending review Topic 1]]+Dataset[[#This Row],[2027/28 From - Spending review Topic 2]]+Dataset[[#This Row],[2027/28 From - Spending review Topic 3]]+Dataset[[#This Row],[2027/28 From - Spending review Topic 4]]+Dataset[[#This Row],[2027/28 From - Other reallocations]]","v":0},{"$f":"Dataset[[#This Row],[2028/29 From - Spending review Topic 1]]+Dataset[[#This Row],[2028/29 From - Spending review Topic 2]]+Dataset[[#This Row],[2028/29 From - Spending review Topic 3]]+Dataset[[#This Row],[2028/29 From - Spending review Topic 4]]+Dataset[[#This Row],[2028/29 From - Other reallocations]]","v":0},{"$f":"Dataset[[#This Row],[2029/30 From - Spending review Topic 1]]+Dataset[[#This Row],[2029/30 From - Spending review Topic 2]]+Dataset[[#This Row],[2029/30 From - Spending review Topic 3]]+Dataset[[#This Row],[2029/30 From - Spending review Topic 4]]+Dataset[[#This Row],[2029/30 From - Other reallocations]]","v":0},{"$f":"Dataset[[#This Row],[2027/28 To - Spending review Topic 1]]+Dataset[[#This Row],[2027/28 To - Spending review Topic 2]]+Dataset[[#This Row],[2027/28 To - Spending review Topic 3]]+Dataset[[#This Row],[2027/28 To - Spending review Topic 4]]+Dataset[[#This Row],[2027/28 To - Other reallocations]]","v":0},{"$f":"Dataset[[#This Row],[2028/29 To - Spending review Topic 1]]+Dataset[[#This Row],[2028/29 To - Spending review Topic 2]]+Dataset[[#This Row],[2028/29 To - Spending review Topic 3]]+Dataset[[#This Row],[2028/29 To - Spending review Topic 4]]+Dataset[[#This Row],[2028/29 To - Other reallocations]]","v":0},{"$f":"Dataset[[#This Row],[2029/30 To - Spending review Topic 1]]+Dataset[[#This Row],[2029/30 To - Spending review Topic 2]]+Dataset[[#This Row],[2029/30 To - Spending review Topic 3]]+Dataset[[#This Row],[2029/30 To - Spending review Topic 4]]+Dataset[[#This Row],[2029/30 To - Other reallocations]]","v":0},{"$f":"Dataset[[#This Row],[2027/28 Targeted savings]]+Dataset[[#This Row],[2027/28 From - Total]]","v":0},{"$f":"Dataset[[#This Row],[2028/29 Targeted savings]]+Dataset[[#This Row],[2028/29 From - Total]]","v":0},{"$f":"Dataset[[#This Row],[2029/30 Targeted savings]]+Dataset[[#This Row],[2029/30 From - Total]]","v":0},{"$f":"Dataset[[#This Row],[2026/27 Targeted savings]]","v":0},{"$f":"SUM(Dataset[[#This Row],[2027/28 Targeted savings]],Dataset[[#This Row],[2027/28 From - Total]],Dataset[[#This Row],[2027/28 To - Total]])","v":0},{"$f":"SUM(Dataset[[#This Row],[2028/29 Targeted savings]],Dataset[[#This Row],[2028/29 From - Total]],Dataset[[#This Row],[2028/29 To - Total]])","v":0},{"$f":"SUM(Dataset[[#This Row],[2029/30 Targeted savings]],Dataset[[#This Row],[2029/30 From - Total]],Dataset[[#This Row],[2029/30 To - Total]])","v":0},{"$f":"Dataset[[#This Row],[2026/27 Baseline]]+Dataset[[#This Row],[2026/27 Total change]]","v":40},{"$f":"Dataset[[#This Row],[2027/28 Baseline]]+Dataset[[#This Row],[2027/28 Total change]]","v":22},{"$f":"Dataset[[#This Row],[2028/29 Baseline]]+Dataset[[#This Row],[2028/29 Total change]]","v":22},{"$f":"Dataset[[#This Row],[2029/30 Baseline]]+Dataset[[#This Row],[2029/30 Total change]]","v":23}]
["NAT|Non-transfer","30|Entertainment","2027_28","MTEC2027",30,4,3,33022,502,"30","04","03","033022","000502","30|04|03|000502","01","01","02","18","18","01|01|02|18|18","National","Communications and Digital Technologies","Digital Communication, Access and Services","Digital and Postal Access and Service","Non-transfer","Current","Current payments","Goods and services","Entertainment","Entertainment","Economic development","Economic regulation and infrastructure","NAT",0,0,0,2,2,2,0,0,31,32,33,null,null,null,null,null,null,null,null,null,null,null,null,null,null,null,null,null,null,null,null,null,null,null,null,null,null,null,null,null,null,null,null,null,null,{"$f":"Dataset[[#This Row],[2027/28 From - Spending review Topic 1]]+Dataset[[#This Row],[2027/28 From - Spending review Topic 2]]+Dataset[[#This Row],[2027/28 From - Spending review Topic 3]]+Dataset[[#This Row],[2027/28 From - Spending review Topic 4]]+Dataset[[#This Row],[2027/28 From - Other reallocations]]","v":0},{"$f":"Dataset[[#This Row],[2028/29 From - Spending review Topic 1]]+Dataset[[#This Row],[2028/29 From - Spending review Topic 2]]+Dataset[[#This Row],[2028/29 From - Spending review Topic 3]]+Dataset[[#This Row],[2028/29 From - Spending review Topic 4]]+Dataset[[#This Row],[2028/29 From - Other reallocations]]","v":0},{"$f":"Dataset[[#This Row],[2029/30 From - Spending review Topic 1]]+Dataset[[#This Row],[2029/30 From - Spending review Topic 2]]+Dataset[[#This Row],[2029/30 From - Spending review Topic 3]]+Dataset[[#This Row],[2029/30 From - Spending review Topic 4]]+Dataset[[#This Row],[2029/30 From - Other reallocations]]","v":0},{"$f":"Dataset[[#This Row],[2027/28 To - Spending review Topic 1]]+Dataset[[#This Row],[2027/28 To - Spending review Topic 2]]+Dataset[[#This Row],[2027/28 To - Spending review Topic 3]]+Dataset[[#This Row],[2027/28 To - Spending review Topic 4]]+Dataset[[#This Row],[2027/28 To - Other reallocations]]","v":0},{"$f":"Dataset[[#This Row],[2028/29 To - Spending review Topic 1]]+Dataset[[#This Row],[2028/29 To - Spending review Topic 2]]+Dataset[[#This Row],[2028/29 To - Spending review Topic 3]]+Dataset[[#This Row],[2028/29 To - Spending review Topic 4]]+Dataset[[#This Row],[2028/29 To - Other reallocations]]","v":0},{"$f":"Dataset[[#This Row],[2029/30 To - Spending review Topic 1]]+Dataset[[#This Row],[2029/30 To - Spending review Topic 2]]+Dataset[[#This Row],[2029/30 To - Spending review Topic 3]]+Dataset[[#This Row],[2029/30 To - Spending review Topic 4]]+Dataset[[#This Row],[2029/30 To - Other reallocations]]","v":0},{"$f":"Dataset[[#This Row],[2027/28 Targeted savings]]+Dataset[[#This Row],[2027/28 From - Total]]","v":0},{"$f":"Dataset[[#This Row],[2028/29 Targeted savings]]+Dataset[[#This Row],[2028/29 From - Total]]","v":0},{"$f":"Dataset[[#This Row],[2029/30 Targeted savings]]+Dataset[[#This Row],[2029/30 From - Total]]","v":0},{"$f":"Dataset[[#This Row],[2026/27 Targeted savings]]","v":0},{"$f":"SUM(Dataset[[#This Row],[2027/28 Targeted savings]],Dataset[[#This Row],[2027/28 From - Total]],Dataset[[#This Row],[2027/28 To - Total]])","v":0},{"$f":"SUM(Dataset[[#This Row],[2028/29 Targeted savings]],Dataset[[#This Row],[2028/29 From - Total]],Dataset[[#This Row],[2028/29 To - Total]])","v":0},{"$f":"SUM(Dataset[[#This Row],[2029/30 Targeted savings]],Dataset[[#This Row],[2029/30 From - Total]],Dataset[[#This Row],[2029/30 To - Total]])","v":0},{"$f":"Dataset[[#This Row],[2026/27 Baseline]]+Dataset[[#This Row],[2026/27 Total change]]","v":0},{"$f":"Dataset[[#This Row],[2027/28 Baseline]]+Dataset[[#This Row],[2027/28 Total change]]","v":31},{"$f":"Dataset[[#This Row],[2028/29 Baseline]]+Dataset[[#This Row],[2028/29 Total change]]","v":32},{"$f":"Dataset[[#This Row],[2029/30 Baseline]]+Dataset[[#This Row],[2029/30 Total change]]","v":33}]
["NAT|Non-transfer","30|Consumable supplies","2027_28","MTEC2027",30,4,3,33023,503,"30","04","03","033023","000503","30|04|03|000503","01","01","02","31","31","01|01|02|31|31","National","Communications and Digital Technologies","Digital Communication, Access and Services","Digital and Postal Access and Service","Non-transfer","Current","Current payments","Goods and services","Consumable supplies","Consumable supplies","Economic development","Economic regulation and infrastructure","NAT",13,7,6,27,27,27,0,32,96,99,102,null,null,null,null,null,null,null,null,null,null,null,null,null,null,null,null,null,null,null,null,null,null,null,null,null,null,null,null,null,null,null,null,null,null,{"$f":"Dataset[[#This Row],[2027/28 From - Spending review Topic 1]]+Dataset[[#This Row],[2027/28 From - Spending review Topic 2]]+Dataset[[#This Row],[2027/28 From - Spending review Topic 3]]+Dataset[[#This Row],[2027/28 From - Spending review Topic 4]]+Dataset[[#This Row],[2027/28 From - Other reallocations]]","v":0},{"$f":"Dataset[[#This Row],[2028/29 From - Spending review Topic 1]]+Dataset[[#This Row],[2028/29 From - Spending review Topic 2]]+Dataset[[#This Row],[2028/29 From - Spending review Topic 3]]+Dataset[[#This Row],[2028/29 From - Spending review Topic 4]]+Dataset[[#This Row],[2028/29 From - Other reallocations]]","v":0},{"$f":"Dataset[[#This Row],[2029/30 From - Spending review Topic 1]]+Dataset[[#This Row],[2029/30 From - Spending review Topic 2]]+Dataset[[#This Row],[2029/30 From - Spending review Topic 3]]+Dataset[[#This Row],[2029/30 From - Spending review Topic 4]]+Dataset[[#This Row],[2029/30 From - Other reallocations]]","v":0},{"$f":"Dataset[[#This Row],[2027/28 To - Spending review Topic 1]]+Dataset[[#This Row],[2027/28 To - Spending review Topic 2]]+Dataset[[#This Row],[2027/28 To - Spending review Topic 3]]+Dataset[[#This Row],[2027/28 To - Spending review Topic 4]]+Dataset[[#This Row],[2027/28 To - Other reallocations]]","v":0},{"$f":"Dataset[[#This Row],[2028/29 To - Spending review Topic 1]]+Dataset[[#This Row],[2028/29 To - Spending review Topic 2]]+Dataset[[#This Row],[2028/29 To - Spending review Topic 3]]+Dataset[[#This Row],[2028/29 To - Spending review Topic 4]]+Dataset[[#This Row],[2028/29 To - Other reallocations]]","v":0},{"$f":"Dataset[[#This Row],[2029/30 To - Spending review Topic 1]]+Dataset[[#This Row],[2029/30 To - Spending review Topic 2]]+Dataset[[#This Row],[2029/30 To - Spending review Topic 3]]+Dataset[[#This Row],[2029/30 To - Spending review Topic 4]]+Dataset[[#This Row],[2029/30 To - Other reallocations]]","v":0},{"$f":"Dataset[[#This Row],[2027/28 Targeted savings]]+Dataset[[#This Row],[2027/28 From - Total]]","v":0},{"$f":"Dataset[[#This Row],[2028/29 Targeted savings]]+Dataset[[#This Row],[2028/29 From - Total]]","v":0},{"$f":"Dataset[[#This Row],[2029/30 Targeted savings]]+Dataset[[#This Row],[2029/30 From - Total]]","v":0},{"$f":"Dataset[[#This Row],[2026/27 Targeted savings]]","v":0},{"$f":"SUM(Dataset[[#This Row],[2027/28 Targeted savings]],Dataset[[#This Row],[2027/28 From - Total]],Dataset[[#This Row],[2027/28 To - Total]])","v":0},{"$f":"SUM(Dataset[[#This Row],[2028/29 Targeted savings]],Dataset[[#This Row],[2028/29 From - Total]],Dataset[[#This Row],[2028/29 To - Total]])","v":0},{"$f":"SUM(Dataset[[#This Row],[2029/30 Targeted savings]],Dataset[[#This Row],[2029/30 From - Total]],Dataset[[#This Row],[2029/30 To - Total]])","v":0},{"$f":"Dataset[[#This Row],[2026/27 Baseline]]+Dataset[[#This Row],[2026/27 Total change]]","v":32},{"$f":"Dataset[[#This Row],[2027/28 Baseline]]+Dataset[[#This Row],[2027/28 Total change]]","v":96},{"$f":"Dataset[[#This Row],[2028/29 Baseline]]+Dataset[[#This Row],[2028/29 Total change]]","v":99},{"$f":"Dataset[[#This Row],[2029/30 Baseline]]+Dataset[[#This Row],[2029/30 Total change]]","v":102}]
["NAT|Non-transfer","30|Consumables: Stationery, printing and office supplies","2027_28","MTEC2027",30,4,3,33024,504,"30","04","03","033024","000504","30|04|03|000504","01","01","02","32","32","01|01|02|32|32","National","Communications and Digital Technologies","Digital Communication, Access and Services","Digital and Postal Access and Service","Non-transfer","Current","Current payments","Goods and services","Consumables: Stationery, printing and office supplies","Consumables: Stationery, printing and office supplies","Economic development","Economic regulation and infrastructure","NAT",38,280,29,295,295,295,0,274,221,677,697,null,null,null,null,null,null,null,null,null,null,null,null,null,null,null,null,null,null,null,null,null,null,null,null,null,null,null,null,null,null,null,null,null,null,{"$f":"Dataset[[#This Row],[2027/28 From - Spending review Topic 1]]+Dataset[[#This Row],[2027/28 From - Spending review Topic 2]]+Dataset[[#This Row],[2027/28 From - Spending review Topic 3]]+Dataset[[#This Row],[2027/28 From - Spending review Topic 4]]+Dataset[[#This Row],[2027/28 From - Other reallocations]]","v":0},{"$f":"Dataset[[#This Row],[2028/29 From - Spending review Topic 1]]+Dataset[[#This Row],[2028/29 From - Spending review Topic 2]]+Dataset[[#This Row],[2028/29 From - Spending review Topic 3]]+Dataset[[#This Row],[2028/29 From - Spending review Topic 4]]+Dataset[[#This Row],[2028/29 From - Other reallocations]]","v":0},{"$f":"Dataset[[#This Row],[2029/30 From - Spending review Topic 1]]+Dataset[[#This Row],[2029/30 From - Spending review Topic 2]]+Dataset[[#This Row],[2029/30 From - Spending review Topic 3]]+Dataset[[#This Row],[2029/30 From - Spending review Topic 4]]+Dataset[[#This Row],[2029/30 From - Other reallocations]]","v":0},{"$f":"Dataset[[#This Row],[2027/28 To - Spending review Topic 1]]+Dataset[[#This Row],[2027/28 To - Spending review Topic 2]]+Dataset[[#This Row],[2027/28 To - Spending review Topic 3]]+Dataset[[#This Row],[2027/28 To - Spending review Topic 4]]+Dataset[[#This Row],[2027/28 To - Other reallocations]]","v":0},{"$f":"Dataset[[#This Row],[2028/29 To - Spending review Topic 1]]+Dataset[[#This Row],[2028/29 To - Spending review Topic 2]]+Dataset[[#This Row],[2028/29 To - Spending review Topic 3]]+Dataset[[#This Row],[2028/29 To - Spending review Topic 4]]+Dataset[[#This Row],[2028/29 To - Other reallocations]]","v":0},{"$f":"Dataset[[#This Row],[2029/30 To - Spending review Topic 1]]+Dataset[[#This Row],[2029/30 To - Spending review Topic 2]]+Dataset[[#This Row],[2029/30 To - Spending review Topic 3]]+Dataset[[#This Row],[2029/30 To - Spending review Topic 4]]+Dataset[[#This Row],[2029/30 To - Other reallocations]]","v":0},{"$f":"Dataset[[#This Row],[2027/28 Targeted savings]]+Dataset[[#This Row],[2027/28 From - Total]]","v":0},{"$f":"Dataset[[#This Row],[2028/29 Targeted savings]]+Dataset[[#This Row],[2028/29 From - Total]]","v":0},{"$f":"Dataset[[#This Row],[2029/30 Targeted savings]]+Dataset[[#This Row],[2029/30 From - Total]]","v":0},{"$f":"Dataset[[#This Row],[2026/27 Targeted savings]]","v":0},{"$f":"SUM(Dataset[[#This Row],[2027/28 Targeted savings]],Dataset[[#This Row],[2027/28 From - Total]],Dataset[[#This Row],[2027/28 To - Total]])","v":0},{"$f":"SUM(Dataset[[#This Row],[2028/29 Targeted savings]],Dataset[[#This Row],[2028/29 From - Total]],Dataset[[#This Row],[2028/29 To - Total]])","v":0},{"$f":"SUM(Dataset[[#This Row],[2029/30 Targeted savings]],Dataset[[#This Row],[2029/30 From - Total]],Dataset[[#This Row],[2029/30 To - Total]])","v":0},{"$f":"Dataset[[#This Row],[2026/27 Baseline]]+Dataset[[#This Row],[2026/27 Total change]]","v":274},{"$f":"Dataset[[#This Row],[2027/28 Baseline]]+Dataset[[#This Row],[2027/28 Total change]]","v":221},{"$f":"Dataset[[#This Row],[2028/29 Baseline]]+Dataset[[#This Row],[2028/29 Total change]]","v":677},{"$f":"Dataset[[#This Row],[2029/30 Baseline]]+Dataset[[#This Row],[2029/30 Total change]]","v":697}]
["NAT|Non-transfer","30|Operating leases","2027_28","MTEC2027",30,4,3,33025,505,"30","04","03","033025","000505","30|04|03|000505","01","01","02","33","33","01|01|02|33|33","National","Communications and Digital Technologies","Digital Communication, Access and Services","Digital and Postal Access and Service","Non-transfer","Current","Current payments","Goods and services","Operating leases","Operating leases","Economic development","Economic regulation and infrastructure","NAT",63,68,43,139,139,139,0,180,201,207,213,null,null,null,null,null,null,null,null,null,null,null,null,null,null,null,null,null,null,null,null,null,null,null,null,null,null,null,null,null,null,null,null,null,null,{"$f":"Dataset[[#This Row],[2027/28 From - Spending review Topic 1]]+Dataset[[#This Row],[2027/28 From - Spending review Topic 2]]+Dataset[[#This Row],[2027/28 From - Spending review Topic 3]]+Dataset[[#This Row],[2027/28 From - Spending review Topic 4]]+Dataset[[#This Row],[2027/28 From - Other reallocations]]","v":0},{"$f":"Dataset[[#This Row],[2028/29 From - Spending review Topic 1]]+Dataset[[#This Row],[2028/29 From - Spending review Topic 2]]+Dataset[[#This Row],[2028/29 From - Spending review Topic 3]]+Dataset[[#This Row],[2028/29 From - Spending review Topic 4]]+Dataset[[#This Row],[2028/29 From - Other reallocations]]","v":0},{"$f":"Dataset[[#This Row],[2029/30 From - Spending review Topic 1]]+Dataset[[#This Row],[2029/30 From - Spending review Topic 2]]+Dataset[[#This Row],[2029/30 From - Spending review Topic 3]]+Dataset[[#This Row],[2029/30 From - Spending review Topic 4]]+Dataset[[#This Row],[2029/30 From - Other reallocations]]","v":0},{"$f":"Dataset[[#This Row],[2027/28 To - Spending review Topic 1]]+Dataset[[#This Row],[2027/28 To - Spending review Topic 2]]+Dataset[[#This Row],[2027/28 To - Spending review Topic 3]]+Dataset[[#This Row],[2027/28 To - Spending review Topic 4]]+Dataset[[#This Row],[2027/28 To - Other reallocations]]","v":0},{"$f":"Dataset[[#This Row],[2028/29 To - Spending review Topic 1]]+Dataset[[#This Row],[2028/29 To - Spending review Topic 2]]+Dataset[[#This Row],[2028/29 To - Spending review Topic 3]]+Dataset[[#This Row],[2028/29 To - Spending review Topic 4]]+Dataset[[#This Row],[2028/29 To - Other reallocations]]","v":0},{"$f":"Dataset[[#This Row],[2029/30 To - Spending review Topic 1]]+Dataset[[#This Row],[2029/30 To - Spending review Topic 2]]+Dataset[[#This Row],[2029/30 To - Spending review Topic 3]]+Dataset[[#This Row],[2029/30 To - Spending review Topic 4]]+Dataset[[#This Row],[2029/30 To - Other reallocations]]","v":0},{"$f":"Dataset[[#This Row],[2027/28 Targeted savings]]+Dataset[[#This Row],[2027/28 From - Total]]","v":0},{"$f":"Dataset[[#This Row],[2028/29 Targeted savings]]+Dataset[[#This Row],[2028/29 From - Total]]","v":0},{"$f":"Dataset[[#This Row],[2029/30 Targeted savings]]+Dataset[[#This Row],[2029/30 From - Total]]","v":0},{"$f":"Dataset[[#This Row],[2026/27 Targeted savings]]","v":0},{"$f":"SUM(Dataset[[#This Row],[2027/28 Targeted savings]],Dataset[[#This Row],[2027/28 From - Total]],Dataset[[#This Row],[2027/28 To - Total]])","v":0},{"$f":"SUM(Dataset[[#This Row],[2028/29 Targeted savings]],Dataset[[#This Row],[2028/29 From - Total]],Dataset[[#This Row],[2028/29 To - Total]])","v":0},{"$f":"SUM(Dataset[[#This Row],[2029/30 Targeted savings]],Dataset[[#This Row],[2029/30 From - Total]],Dataset[[#This Row],[2029/30 To - Total]])","v":0},{"$f":"Dataset[[#This Row],[2026/27 Baseline]]+Dataset[[#This Row],[2026/27 Total change]]","v":180},{"$f":"Dataset[[#This Row],[2027/28 Baseline]]+Dataset[[#This Row],[2027/28 Total change]]","v":201},{"$f":"Dataset[[#This Row],[2028/29 Baseline]]+Dataset[[#This Row],[2028/29 Total change]]","v":207},{"$f":"Dataset[[#This Row],[2029/30 Baseline]]+Dataset[[#This Row],[2029/30 Total change]]","v":213}]
["NAT|Non-transfer","30|Travel and subsistence","2027_28","MTEC2027",30,4,3,33026,506,"30","04","03","033026","000506","30|04|03|000506","01","01","02","37","37","01|01|02|37|37","National","Communications and Digital Technologies","Digital Communication, Access and Services","Digital and Postal Access and Service","Non-transfer","Current","Current payments","Goods and services","Travel and subsistence","Travel and subsistence","Economic development","Economic regulation and infrastructure","NAT",1867,1801,1524,2836,2836,2836,0,1292,1327,3946,4065,null,null,null,null,null,null,null,null,null,null,null,null,null,null,null,null,null,null,null,null,null,null,null,null,null,null,null,null,null,null,null,null,null,null,{"$f":"Dataset[[#This Row],[2027/28 From - Spending review Topic 1]]+Dataset[[#This Row],[2027/28 From - Spending review Topic 2]]+Dataset[[#This Row],[2027/28 From - Spending review Topic 3]]+Dataset[[#This Row],[2027/28 From - Spending review Topic 4]]+Dataset[[#This Row],[2027/28 From - Other reallocations]]","v":0},{"$f":"Dataset[[#This Row],[2028/29 From - Spending review Topic 1]]+Dataset[[#This Row],[2028/29 From - Spending review Topic 2]]+Dataset[[#This Row],[2028/29 From - Spending review Topic 3]]+Dataset[[#This Row],[2028/29 From - Spending review Topic 4]]+Dataset[[#This Row],[2028/29 From - Other reallocations]]","v":0},{"$f":"Dataset[[#This Row],[2029/30 From - Spending review Topic 1]]+Dataset[[#This Row],[2029/30 From - Spending review Topic 2]]+Dataset[[#This Row],[2029/30 From - Spending review Topic 3]]+Dataset[[#This Row],[2029/30 From - Spending review Topic 4]]+Dataset[[#This Row],[2029/30 From - Other reallocations]]","v":0},{"$f":"Dataset[[#This Row],[2027/28 To - Spending review Topic 1]]+Dataset[[#This Row],[2027/28 To - Spending review Topic 2]]+Dataset[[#This Row],[2027/28 To - Spending review Topic 3]]+Dataset[[#This Row],[2027/28 To - Spending review Topic 4]]+Dataset[[#This Row],[2027/28 To - Other reallocations]]","v":0},{"$f":"Dataset[[#This Row],[2028/29 To - Spending review Topic 1]]+Dataset[[#This Row],[2028/29 To - Spending review Topic 2]]+Dataset[[#This Row],[2028/29 To - Spending review Topic 3]]+Dataset[[#This Row],[2028/29 To - Spending review Topic 4]]+Dataset[[#This Row],[2028/29 To - Other reallocations]]","v":0},{"$f":"Dataset[[#This Row],[2029/30 To - Spending review Topic 1]]+Dataset[[#This Row],[2029/30 To - Spending review Topic 2]]+Dataset[[#This Row],[2029/30 To - Spending review Topic 3]]+Dataset[[#This Row],[2029/30 To - Spending review Topic 4]]+Dataset[[#This Row],[2029/30 To - Other reallocations]]","v":0},{"$f":"Dataset[[#This Row],[2027/28 Targeted savings]]+Dataset[[#This Row],[2027/28 From - Total]]","v":0},{"$f":"Dataset[[#This Row],[2028/29 Targeted savings]]+Dataset[[#This Row],[2028/29 From - Total]]","v":0},{"$f":"Dataset[[#This Row],[2029/30 Targeted savings]]+Dataset[[#This Row],[2029/30 From - Total]]","v":0},{"$f":"Dataset[[#This Row],[2026/27 Targeted savings]]","v":0},{"$f":"SUM(Dataset[[#This Row],[2027/28 Targeted savings]],Dataset[[#This Row],[2027/28 From - Total]],Dataset[[#This Row],[2027/28 To - Total]])","v":0},{"$f":"SUM(Dataset[[#This Row],[2028/29 Targeted savings]],Dataset[[#This Row],[2028/29 From - Total]],Dataset[[#This Row],[2028/29 To - Total]])","v":0},{"$f":"SUM(Dataset[[#This Row],[2029/30 Targeted savings]],Dataset[[#This Row],[2029/30 From - Total]],Dataset[[#This Row],[2029/30 To - Total]])","v":0},{"$f":"Dataset[[#This Row],[2026/27 Baseline]]+Dataset[[#This Row],[2026/27 Total change]]","v":1292},{"$f":"Dataset[[#This Row],[2027/28 Baseline]]+Dataset[[#This Row],[2027/28 Total change]]","v":1327},{"$f":"Dataset[[#This Row],[2028/29 Baseline]]+Dataset[[#This Row],[2028/29 Total change]]","v":3946},{"$f":"Dataset[[#This Row],[2029/30 Baseline]]+Dataset[[#This Row],[2029/30 Total change]]","v":4065}]
["NAT|Non-transfer","30|Training and development","2027_28","MTEC2027",30,4,3,33027,507,"30","04","03","033027","000507","30|04|03|000507","01","01","02","38","38","01|01|02|38|38","National","Communications and Digital Technologies","Digital Communication, Access and Services","Digital and Postal Access and Service","Non-transfer","Current","Current payments","Goods and services","Training and development","Training and development","Economic development","Economic regulation and infrastructure","NAT",30,134,0,174,174,174,0,100,187,708,729,null,null,null,null,null,null,null,null,null,null,null,null,null,null,null,null,null,null,null,null,null,null,null,null,null,null,null,null,null,null,null,null,null,null,{"$f":"Dataset[[#This Row],[2027/28 From - Spending review Topic 1]]+Dataset[[#This Row],[2027/28 From - Spending review Topic 2]]+Dataset[[#This Row],[2027/28 From - Spending review Topic 3]]+Dataset[[#This Row],[2027/28 From - Spending review Topic 4]]+Dataset[[#This Row],[2027/28 From - Other reallocations]]","v":0},{"$f":"Dataset[[#This Row],[2028/29 From - Spending review Topic 1]]+Dataset[[#This Row],[2028/29 From - Spending review Topic 2]]+Dataset[[#This Row],[2028/29 From - Spending review Topic 3]]+Dataset[[#This Row],[2028/29 From - Spending review Topic 4]]+Dataset[[#This Row],[2028/29 From - Other reallocations]]","v":0},{"$f":"Dataset[[#This Row],[2029/30 From - Spending review Topic 1]]+Dataset[[#This Row],[2029/30 From - Spending review Topic 2]]+Dataset[[#This Row],[2029/30 From - Spending review Topic 3]]+Dataset[[#This Row],[2029/30 From - Spending review Topic 4]]+Dataset[[#This Row],[2029/30 From - Other reallocations]]","v":0},{"$f":"Dataset[[#This Row],[2027/28 To - Spending review Topic 1]]+Dataset[[#This Row],[2027/28 To - Spending review Topic 2]]+Dataset[[#This Row],[2027/28 To - Spending review Topic 3]]+Dataset[[#This Row],[2027/28 To - Spending review Topic 4]]+Dataset[[#This Row],[2027/28 To - Other reallocations]]","v":0},{"$f":"Dataset[[#This Row],[2028/29 To - Spending review Topic 1]]+Dataset[[#This Row],[2028/29 To - Spending review Topic 2]]+Dataset[[#This Row],[2028/29 To - Spending review Topic 3]]+Dataset[[#This Row],[2028/29 To - Spending review Topic 4]]+Dataset[[#This Row],[2028/29 To - Other reallocations]]","v":0},{"$f":"Dataset[[#This Row],[2029/30 To - Spending review Topic 1]]+Dataset[[#This Row],[2029/30 To - Spending review Topic 2]]+Dataset[[#This Row],[2029/30 To - Spending review Topic 3]]+Dataset[[#This Row],[2029/30 To - Spending review Topic 4]]+Dataset[[#This Row],[2029/30 To - Other reallocations]]","v":0},{"$f":"Dataset[[#This Row],[2027/28 Targeted savings]]+Dataset[[#This Row],[2027/28 From - Total]]","v":0},{"$f":"Dataset[[#This Row],[2028/29 Targeted savings]]+Dataset[[#This Row],[2028/29 From - Total]]","v":0},{"$f":"Dataset[[#This Row],[2029/30 Targeted savings]]+Dataset[[#This Row],[2029/30 From - Total]]","v":0},{"$f":"Dataset[[#This Row],[2026/27 Targeted savings]]","v":0},{"$f":"SUM(Dataset[[#This Row],[2027/28 Targeted savings]],Dataset[[#This Row],[2027/28 From - Total]],Dataset[[#This Row],[2027/28 To - Total]])","v":0},{"$f":"SUM(Dataset[[#This Row],[2028/29 Targeted savings]],Dataset[[#This Row],[2028/29 From - Total]],Dataset[[#This Row],[2028/29 To - Total]])","v":0},{"$f":"SUM(Dataset[[#This Row],[2029/30 Targeted savings]],Dataset[[#This Row],[2029/30 From - Total]],Dataset[[#This Row],[2029/30 To - Total]])","v":0},{"$f":"Dataset[[#This Row],[2026/27 Baseline]]+Dataset[[#This Row],[2026/27 Total change]]","v":100},{"$f":"Dataset[[#This Row],[2027/28 Baseline]]+Dataset[[#This Row],[2027/28 Total change]]","v":187},{"$f":"Dataset[[#This Row],[2028/29 Baseline]]+Dataset[[#This Row],[2028/29 Total change]]","v":708},{"$f":"Dataset[[#This Row],[2029/30 Baseline]]+Dataset[[#This Row],[2029/30 Total change]]","v":729}]
["NAT|Non-transfer","30|Operating payments","2027_28","MTEC2027",30,4,3,33028,508,"30","04","03","033028","000508","30|04|03|000508","01","01","02","39","39","01|01|02|39|39","National","Communications and Digital Technologies","Digital Communication, Access and Services","Digital and Postal Access and Service","Non-transfer","Current","Current payments","Goods and services","Operating payments","Operating payments","Economic development","Economic regulation and infrastructure","NAT",10,242,24,5,5,5,0,15,0,104,107,null,null,null,null,null,null,null,null,null,null,null,null,null,null,null,null,null,null,null,null,null,null,null,null,null,null,null,null,null,null,null,null,null,null,{"$f":"Dataset[[#This Row],[2027/28 From - Spending review Topic 1]]+Dataset[[#This Row],[2027/28 From - Spending review Topic 2]]+Dataset[[#This Row],[2027/28 From - Spending review Topic 3]]+Dataset[[#This Row],[2027/28 From - Spending review Topic 4]]+Dataset[[#This Row],[2027/28 From - Other reallocations]]","v":0},{"$f":"Dataset[[#This Row],[2028/29 From - Spending review Topic 1]]+Dataset[[#This Row],[2028/29 From - Spending review Topic 2]]+Dataset[[#This Row],[2028/29 From - Spending review Topic 3]]+Dataset[[#This Row],[2028/29 From - Spending review Topic 4]]+Dataset[[#This Row],[2028/29 From - Other reallocations]]","v":0},{"$f":"Dataset[[#This Row],[2029/30 From - Spending review Topic 1]]+Dataset[[#This Row],[2029/30 From - Spending review Topic 2]]+Dataset[[#This Row],[2029/30 From - Spending review Topic 3]]+Dataset[[#This Row],[2029/30 From - Spending review Topic 4]]+Dataset[[#This Row],[2029/30 From - Other reallocations]]","v":0},{"$f":"Dataset[[#This Row],[2027/28 To - Spending review Topic 1]]+Dataset[[#This Row],[2027/28 To - Spending review Topic 2]]+Dataset[[#This Row],[2027/28 To - Spending review Topic 3]]+Dataset[[#This Row],[2027/28 To - Spending review Topic 4]]+Dataset[[#This Row],[2027/28 To - Other reallocations]]","v":0},{"$f":"Dataset[[#This Row],[2028/29 To - Spending review Topic 1]]+Dataset[[#This Row],[2028/29 To - Spending review Topic 2]]+Dataset[[#This Row],[2028/29 To - Spending review Topic 3]]+Dataset[[#This Row],[2028/29 To - Spending review Topic 4]]+Dataset[[#This Row],[2028/29 To - Other reallocations]]","v":0},{"$f":"Dataset[[#This Row],[2029/30 To - Spending review Topic 1]]+Dataset[[#This Row],[2029/30 To - Spending review Topic 2]]+Dataset[[#This Row],[2029/30 To - Spending review Topic 3]]+Dataset[[#This Row],[2029/30 To - Spending review Topic 4]]+Dataset[[#This Row],[2029/30 To - Other reallocations]]","v":0},{"$f":"Dataset[[#This Row],[2027/28 Targeted savings]]+Dataset[[#This Row],[2027/28 From - Total]]","v":0},{"$f":"Dataset[[#This Row],[2028/29 Targeted savings]]+Dataset[[#This Row],[2028/29 From - Total]]","v":0},{"$f":"Dataset[[#This Row],[2029/30 Targeted savings]]+Dataset[[#This Row],[2029/30 From - Total]]","v":0},{"$f":"Dataset[[#This Row],[2026/27 Targeted savings]]","v":0},{"$f":"SUM(Dataset[[#This Row],[2027/28 Targeted savings]],Dataset[[#This Row],[2027/28 From - Total]],Dataset[[#This Row],[2027/28 To - Total]])","v":0},{"$f":"SUM(Dataset[[#This Row],[2028/29 Targeted savings]],Dataset[[#This Row],[2028/29 From - Total]],Dataset[[#This Row],[2028/29 To - Total]])","v":0},{"$f":"SUM(Dataset[[#This Row],[2029/30 Targeted savings]],Dataset[[#This Row],[2029/30 From - Total]],Dataset[[#This Row],[2029/30 To - Total]])","v":0},{"$f":"Dataset[[#This Row],[2026/27 Baseline]]+Dataset[[#This Row],[2026/27 Total change]]","v":15},{"$f":"Dataset[[#This Row],[2027/28 Baseline]]+Dataset[[#This Row],[2027/28 Total change]]","v":0},{"$f":"Dataset[[#This Row],[2028/29 Baseline]]+Dataset[[#This Row],[2028/29 Total change]]","v":104},{"$f":"Dataset[[#This Row],[2029/30 Baseline]]+Dataset[[#This Row],[2029/30 Total change]]","v":107}]
["NAT|Non-transfer","30|Venues and facilities","2027_28","MTEC2027",30,4,3,33029,509,"30","04","03","033029","000509","30|04|03|000509","01","01","02","40","40","01|01|02|40|40","National","Communications and Digital Technologies","Digital Communication, Access and Services","Digital and Postal Access and Service","Non-transfer","Current","Current payments","Goods and services","Venues and facilities","Venues and facilities","Economic development","Economic regulation and infrastructure","NAT",314,0,0,8,8,8,0,70,0,215,221,null,null,null,null,null,null,null,null,null,null,null,null,null,null,null,null,null,null,null,null,null,null,null,null,null,null,null,null,null,null,null,null,null,null,{"$f":"Dataset[[#This Row],[2027/28 From - Spending review Topic 1]]+Dataset[[#This Row],[2027/28 From - Spending review Topic 2]]+Dataset[[#This Row],[2027/28 From - Spending review Topic 3]]+Dataset[[#This Row],[2027/28 From - Spending review Topic 4]]+Dataset[[#This Row],[2027/28 From - Other reallocations]]","v":0},{"$f":"Dataset[[#This Row],[2028/29 From - Spending review Topic 1]]+Dataset[[#This Row],[2028/29 From - Spending review Topic 2]]+Dataset[[#This Row],[2028/29 From - Spending review Topic 3]]+Dataset[[#This Row],[2028/29 From - Spending review Topic 4]]+Dataset[[#This Row],[2028/29 From - Other reallocations]]","v":0},{"$f":"Dataset[[#This Row],[2029/30 From - Spending review Topic 1]]+Dataset[[#This Row],[2029/30 From - Spending review Topic 2]]+Dataset[[#This Row],[2029/30 From - Spending review Topic 3]]+Dataset[[#This Row],[2029/30 From - Spending review Topic 4]]+Dataset[[#This Row],[2029/30 From - Other reallocations]]","v":0},{"$f":"Dataset[[#This Row],[2027/28 To - Spending review Topic 1]]+Dataset[[#This Row],[2027/28 To - Spending review Topic 2]]+Dataset[[#This Row],[2027/28 To - Spending review Topic 3]]+Dataset[[#This Row],[2027/28 To - Spending review Topic 4]]+Dataset[[#This Row],[2027/28 To - Other reallocations]]","v":0},{"$f":"Dataset[[#This Row],[2028/29 To - Spending review Topic 1]]+Dataset[[#This Row],[2028/29 To - Spending review Topic 2]]+Dataset[[#This Row],[2028/29 To - Spending review Topic 3]]+Dataset[[#This Row],[2028/29 To - Spending review Topic 4]]+Dataset[[#This Row],[2028/29 To - Other reallocations]]","v":0},{"$f":"Dataset[[#This Row],[2029/30 To - Spending review Topic 1]]+Dataset[[#This Row],[2029/30 To - Spending review Topic 2]]+Dataset[[#This Row],[2029/30 To - Spending review Topic 3]]+Dataset[[#This Row],[2029/30 To - Spending review Topic 4]]+Dataset[[#This Row],[2029/30 To - Other reallocations]]","v":0},{"$f":"Dataset[[#This Row],[2027/28 Targeted savings]]+Dataset[[#This Row],[2027/28 From - Total]]","v":0},{"$f":"Dataset[[#This Row],[2028/29 Targeted savings]]+Dataset[[#This Row],[2028/29 From - Total]]","v":0},{"$f":"Dataset[[#This Row],[2029/30 Targeted savings]]+Dataset[[#This Row],[2029/30 From - Total]]","v":0},{"$f":"Dataset[[#This Row],[2026/27 Targeted savings]]","v":0},{"$f":"SUM(Dataset[[#This Row],[2027/28 Targeted savings]],Dataset[[#This Row],[2027/28 From - Total]],Dataset[[#This Row],[2027/28 To - Total]])","v":0},{"$f":"SUM(Dataset[[#This Row],[2028/29 Targeted savings]],Dataset[[#This Row],[2028/29 From - Total]],Dataset[[#This Row],[2028/29 To - Total]])","v":0},{"$f":"SUM(Dataset[[#This Row],[2029/30 Targeted savings]],Dataset[[#This Row],[2029/30 From - Total]],Dataset[[#This Row],[2029/30 To - Total]])","v":0},{"$f":"Dataset[[#This Row],[2026/27 Baseline]]+Dataset[[#This Row],[2026/27 Total change]]","v":70},{"$f":"Dataset[[#This Row],[2027/28 Baseline]]+Dataset[[#This Row],[2027/28 Total change]]","v":0},{"$f":"Dataset[[#This Row],[2028/29 Baseline]]+Dataset[[#This Row],[2028/29 Total change]]","v":215},{"$f":"Dataset[[#This Row],[2029/30 Baseline]]+Dataset[[#This Row],[2029/30 Total change]]","v":221}]
["NAT|Universal Service and Access Agency of South Africa","30|Departmental agencies (non-business entities)","2027_28","MTEC2027",30,4,3,33030,510,"30","04","03","033030","000510","30|04|03|000510","01","02","05","46","48","01|02|05|46|48","National","Communications and Digital Technologies","Digital Communication, Access and Services","Digital and Postal Access and Service","Universal Service and Access Agency of South Africa","Current","Transfers and subsidies","Departmental agencies and accounts","Departmental agencies (non-business entities)","Departmental agencies (non-business entities)","Economic development","Economic regulation and infrastructure","NAT",86033,82655,81685,85344,85344,85344,0,88793,92337,95206,98073,null,null,null,null,null,null,null,null,null,null,null,null,null,null,null,null,null,null,null,null,null,null,null,null,null,null,null,null,null,null,null,null,null,null,{"$f":"Dataset[[#This Row],[2027/28 From - Spending review Topic 1]]+Dataset[[#This Row],[2027/28 From - Spending review Topic 2]]+Dataset[[#This Row],[2027/28 From - Spending review Topic 3]]+Dataset[[#This Row],[2027/28 From - Spending review Topic 4]]+Dataset[[#This Row],[2027/28 From - Other reallocations]]","v":0},{"$f":"Dataset[[#This Row],[2028/29 From - Spending review Topic 1]]+Dataset[[#This Row],[2028/29 From - Spending review Topic 2]]+Dataset[[#This Row],[2028/29 From - Spending review Topic 3]]+Dataset[[#This Row],[2028/29 From - Spending review Topic 4]]+Dataset[[#This Row],[2028/29 From - Other reallocations]]","v":0},{"$f":"Dataset[[#This Row],[2029/30 From - Spending review Topic 1]]+Dataset[[#This Row],[2029/30 From - Spending review Topic 2]]+Dataset[[#This Row],[2029/30 From - Spending review Topic 3]]+Dataset[[#This Row],[2029/30 From - Spending review Topic 4]]+Dataset[[#This Row],[2029/30 From - Other reallocations]]","v":0},{"$f":"Dataset[[#This Row],[2027/28 To - Spending review Topic 1]]+Dataset[[#This Row],[2027/28 To - Spending review Topic 2]]+Dataset[[#This Row],[2027/28 To - Spending review Topic 3]]+Dataset[[#This Row],[2027/28 To - Spending review Topic 4]]+Dataset[[#This Row],[2027/28 To - Other reallocations]]","v":0},{"$f":"Dataset[[#This Row],[2028/29 To - Spending review Topic 1]]+Dataset[[#This Row],[2028/29 To - Spending review Topic 2]]+Dataset[[#This Row],[2028/29 To - Spending review Topic 3]]+Dataset[[#This Row],[2028/29 To - Spending review Topic 4]]+Dataset[[#This Row],[2028/29 To - Other reallocations]]","v":0},{"$f":"Dataset[[#This Row],[2029/30 To - Spending review Topic 1]]+Dataset[[#This Row],[2029/30 To - Spending review Topic 2]]+Dataset[[#This Row],[2029/30 To - Spending review Topic 3]]+Dataset[[#This Row],[2029/30 To - Spending review Topic 4]]+Dataset[[#This Row],[2029/30 To - Other reallocations]]","v":0},{"$f":"Dataset[[#This Row],[2027/28 Targeted savings]]+Dataset[[#This Row],[2027/28 From - Total]]","v":0},{"$f":"Dataset[[#This Row],[2028/29 Targeted savings]]+Dataset[[#This Row],[2028/29 From - Total]]","v":0},{"$f":"Dataset[[#This Row],[2029/30 Targeted savings]]+Dataset[[#This Row],[2029/30 From - Total]]","v":0},{"$f":"Dataset[[#This Row],[2026/27 Targeted savings]]","v":0},{"$f":"SUM(Dataset[[#This Row],[2027/28 Targeted savings]],Dataset[[#This Row],[2027/28 From - Total]],Dataset[[#This Row],[2027/28 To - Total]])","v":0},{"$f":"SUM(Dataset[[#This Row],[2028/29 Targeted savings]],Dataset[[#This Row],[2028/29 From - Total]],Dataset[[#This Row],[2028/29 To - Total]])","v":0},{"$f":"SUM(Dataset[[#This Row],[2029/30 Targeted savings]],Dataset[[#This Row],[2029/30 From - Total]],Dataset[[#This Row],[2029/30 To - Total]])","v":0},{"$f":"Dataset[[#This Row],[2026/27 Baseline]]+Dataset[[#This Row],[2026/27 Total change]]","v":88793},{"$f":"Dataset[[#This Row],[2027/28 Baseline]]+Dataset[[#This Row],[2027/28 Total change]]","v":92337},{"$f":"Dataset[[#This Row],[2028/29 Baseline]]+Dataset[[#This Row],[2028/29 Total change]]","v":95206},{"$f":"Dataset[[#This Row],[2029/30 Baseline]]+Dataset[[#This Row],[2029/30 Total change]]","v":98073}]
["NAT|Universal Service and Access Fund","30|Departmental agencies (non-business entities)","2027_28","MTEC2027",30,4,3,33031,511,"30","04","03","033031","000511","30|04|03|000511","01","02","05","46","48","01|02|05|46|48","National","Communications and Digital Technologies","Digital Communication, Access and Services","Digital and Postal Access and Service","Universal Service and Access Fund","Current","Transfers and subsidies","Departmental agencies and accounts","Departmental agencies (non-business entities)","Departmental agencies (non-business entities)","Economic development","Economic regulation and infrastructure","NAT",66777,64303,52629,54987,54987,54987,0,57209,59492,61341,63188,null,null,null,null,null,null,null,null,null,null,null,null,null,null,null,null,null,null,null,null,null,null,null,null,null,null,null,null,null,null,null,null,null,null,{"$f":"Dataset[[#This Row],[2027/28 From - Spending review Topic 1]]+Dataset[[#This Row],[2027/28 From - Spending review Topic 2]]+Dataset[[#This Row],[2027/28 From - Spending review Topic 3]]+Dataset[[#This Row],[2027/28 From - Spending review Topic 4]]+Dataset[[#This Row],[2027/28 From - Other reallocations]]","v":0},{"$f":"Dataset[[#This Row],[2028/29 From - Spending review Topic 1]]+Dataset[[#This Row],[2028/29 From - Spending review Topic 2]]+Dataset[[#This Row],[2028/29 From - Spending review Topic 3]]+Dataset[[#This Row],[2028/29 From - Spending review Topic 4]]+Dataset[[#This Row],[2028/29 From - Other reallocations]]","v":0},{"$f":"Dataset[[#This Row],[2029/30 From - Spending review Topic 1]]+Dataset[[#This Row],[2029/30 From - Spending review Topic 2]]+Dataset[[#This Row],[2029/30 From - Spending review Topic 3]]+Dataset[[#This Row],[2029/30 From - Spending review Topic 4]]+Dataset[[#This Row],[2029/30 From - Other reallocations]]","v":0},{"$f":"Dataset[[#This Row],[2027/28 To - Spending review Topic 1]]+Dataset[[#This Row],[2027/28 To - Spending review Topic 2]]+Dataset[[#This Row],[2027/28 To - Spending review Topic 3]]+Dataset[[#This Row],[2027/28 To - Spending review Topic 4]]+Dataset[[#This Row],[2027/28 To - Other reallocations]]","v":0},{"$f":"Dataset[[#This Row],[2028/29 To - Spending review Topic 1]]+Dataset[[#This Row],[2028/29 To - Spending review Topic 2]]+Dataset[[#This Row],[2028/29 To - Spending review Topic 3]]+Dataset[[#This Row],[2028/29 To - Spending review Topic 4]]+Dataset[[#This Row],[2028/29 To - Other reallocations]]","v":0},{"$f":"Dataset[[#This Row],[2029/30 To - Spending review Topic 1]]+Dataset[[#This Row],[2029/30 To - Spending review Topic 2]]+Dataset[[#This Row],[2029/30 To - Spending review Topic 3]]+Dataset[[#This Row],[2029/30 To - Spending review Topic 4]]+Dataset[[#This Row],[2029/30 To - Other reallocations]]","v":0},{"$f":"Dataset[[#This Row],[2027/28 Targeted savings]]+Dataset[[#This Row],[2027/28 From - Total]]","v":0},{"$f":"Dataset[[#This Row],[2028/29 Targeted savings]]+Dataset[[#This Row],[2028/29 From - Total]]","v":0},{"$f":"Dataset[[#This Row],[2029/30 Targeted savings]]+Dataset[[#This Row],[2029/30 From - Total]]","v":0},{"$f":"Dataset[[#This Row],[2026/27 Targeted savings]]","v":0},{"$f":"SUM(Dataset[[#This Row],[2027/28 Targeted savings]],Dataset[[#This Row],[2027/28 From - Total]],Dataset[[#This Row],[2027/28 To - Total]])","v":0},{"$f":"SUM(Dataset[[#This Row],[2028/29 Targeted savings]],Dataset[[#This Row],[2028/29 From - Total]],Dataset[[#This Row],[2028/29 To - Total]])","v":0},{"$f":"SUM(Dataset[[#This Row],[2029/30 Targeted savings]],Dataset[[#This Row],[2029/30 From - Total]],Dataset[[#This Row],[2029/30 To - Total]])","v":0},{"$f":"Dataset[[#This Row],[2026/27 Baseline]]+Dataset[[#This Row],[2026/27 Total change]]","v":57209},{"$f":"Dataset[[#This Row],[2027/28 Baseline]]+Dataset[[#This Row],[2027/28 Total change]]","v":59492},{"$f":"Dataset[[#This Row],[2028/29 Baseline]]+Dataset[[#This Row],[2028/29 Total change]]","v":61341},{"$f":"Dataset[[#This Row],[2029/30 Baseline]]+Dataset[[#This Row],[2029/30 Total change]]","v":63188}]
["NAT|South African Post Office","30|Subsidies on products and production (pe)","2027_28","MTEC2027",30,4,3,33032,512,"30","04","03","033032","000512","30|04|03|000512","01","02","08","50","53","01|02|08|50|53","National","Communications and Digital Technologies","Digital Communication, Access and Services","Digital and Postal Access and Service","South African Post Office","Current","Transfers and subsidies","Public corporations and private enterprises","Private enterprises","Subsidies on products and production (pe)","Economic development","Economic regulation and infrastructure","NAT",519273,524270,697815,572357,572357,572357,0,595488,619252,638498,657724,null,null,null,null,null,null,null,null,null,null,null,null,null,null,null,null,null,null,null,null,null,null,null,null,null,null,null,null,null,null,null,null,null,null,{"$f":"Dataset[[#This Row],[2027/28 From - Spending review Topic 1]]+Dataset[[#This Row],[2027/28 From - Spending review Topic 2]]+Dataset[[#This Row],[2027/28 From - Spending review Topic 3]]+Dataset[[#This Row],[2027/28 From - Spending review Topic 4]]+Dataset[[#This Row],[2027/28 From - Other reallocations]]","v":0},{"$f":"Dataset[[#This Row],[2028/29 From - Spending review Topic 1]]+Dataset[[#This Row],[2028/29 From - Spending review Topic 2]]+Dataset[[#This Row],[2028/29 From - Spending review Topic 3]]+Dataset[[#This Row],[2028/29 From - Spending review Topic 4]]+Dataset[[#This Row],[2028/29 From - Other reallocations]]","v":0},{"$f":"Dataset[[#This Row],[2029/30 From - Spending review Topic 1]]+Dataset[[#This Row],[2029/30 From - Spending review Topic 2]]+Dataset[[#This Row],[2029/30 From - Spending review Topic 3]]+Dataset[[#This Row],[2029/30 From - Spending review Topic 4]]+Dataset[[#This Row],[2029/30 From - Other reallocations]]","v":0},{"$f":"Dataset[[#This Row],[2027/28 To - Spending review Topic 1]]+Dataset[[#This Row],[2027/28 To - Spending review Topic 2]]+Dataset[[#This Row],[2027/28 To - Spending review Topic 3]]+Dataset[[#This Row],[2027/28 To - Spending review Topic 4]]+Dataset[[#This Row],[2027/28 To - Other reallocations]]","v":0},{"$f":"Dataset[[#This Row],[2028/29 To - Spending review Topic 1]]+Dataset[[#This Row],[2028/29 To - Spending review Topic 2]]+Dataset[[#This Row],[2028/29 To - Spending review Topic 3]]+Dataset[[#This Row],[2028/29 To - Spending review Topic 4]]+Dataset[[#This Row],[2028/29 To - Other reallocations]]","v":0},{"$f":"Dataset[[#This Row],[2029/30 To - Spending review Topic 1]]+Dataset[[#This Row],[2029/30 To - Spending review Topic 2]]+Dataset[[#This Row],[2029/30 To - Spending review Topic 3]]+Dataset[[#This Row],[2029/30 To - Spending review Topic 4]]+Dataset[[#This Row],[2029/30 To - Other reallocations]]","v":0},{"$f":"Dataset[[#This Row],[2027/28 Targeted savings]]+Dataset[[#This Row],[2027/28 From - Total]]","v":0},{"$f":"Dataset[[#This Row],[2028/29 Targeted savings]]+Dataset[[#This Row],[2028/29 From - Total]]","v":0},{"$f":"Dataset[[#This Row],[2029/30 Targeted savings]]+Dataset[[#This Row],[2029/30 From - Total]]","v":0},{"$f":"Dataset[[#This Row],[2026/27 Targeted savings]]","v":0},{"$f":"SUM(Dataset[[#This Row],[2027/28 Targeted savings]],Dataset[[#This Row],[2027/28 From - Total]],Dataset[[#This Row],[2027/28 To - Total]])","v":0},{"$f":"SUM(Dataset[[#This Row],[2028/29 Targeted savings]],Dataset[[#This Row],[2028/29 From - Total]],Dataset[[#This Row],[2028/29 To - Total]])","v":0},{"$f":"SUM(Dataset[[#This Row],[2029/30 Targeted savings]],Dataset[[#This Row],[2029/30 From - Total]],Dataset[[#This Row],[2029/30 To - Total]])","v":0},{"$f":"Dataset[[#This Row],[2026/27 Baseline]]+Dataset[[#This Row],[2026/27 Total change]]","v":595488},{"$f":"Dataset[[#This Row],[2027/28 Baseline]]+Dataset[[#This Row],[2027/28 Total change]]","v":619252},{"$f":"Dataset[[#This Row],[2028/29 Baseline]]+Dataset[[#This Row],[2028/29 Total change]]","v":638498},{"$f":"Dataset[[#This Row],[2029/30 Baseline]]+Dataset[[#This Row],[2029/30 Total change]]","v":657724}]
["NAT|Households","30|Social benefits","2027_28","MTEC2027",30,4,3,33033,513,"30","04","03","033033","000513","30|04|03|000513","01","02","10","52","56","01|02|10|52|56","National","Communications and Digital Technologies","Digital Communication, Access and Services","Digital and Postal Access and Service","Households","Current","Transfers and subsidies","Households","Social benefits","Social benefits","Economic development","Economic regulation and infrastructure","NAT",0,44,0,0,0,0,0,0,0,0,0,null,null,null,null,null,null,null,null,null,null,null,null,null,null,null,null,null,null,null,null,null,null,null,null,null,null,null,null,null,null,null,null,null,null,{"$f":"Dataset[[#This Row],[2027/28 From - Spending review Topic 1]]+Dataset[[#This Row],[2027/28 From - Spending review Topic 2]]+Dataset[[#This Row],[2027/28 From - Spending review Topic 3]]+Dataset[[#This Row],[2027/28 From - Spending review Topic 4]]+Dataset[[#This Row],[2027/28 From - Other reallocations]]","v":0},{"$f":"Dataset[[#This Row],[2028/29 From - Spending review Topic 1]]+Dataset[[#This Row],[2028/29 From - Spending review Topic 2]]+Dataset[[#This Row],[2028/29 From - Spending review Topic 3]]+Dataset[[#This Row],[2028/29 From - Spending review Topic 4]]+Dataset[[#This Row],[2028/29 From - Other reallocations]]","v":0},{"$f":"Dataset[[#This Row],[2029/30 From - Spending review Topic 1]]+Dataset[[#This Row],[2029/30 From - Spending review Topic 2]]+Dataset[[#This Row],[2029/30 From - Spending review Topic 3]]+Dataset[[#This Row],[2029/30 From - Spending review Topic 4]]+Dataset[[#This Row],[2029/30 From - Other reallocations]]","v":0},{"$f":"Dataset[[#This Row],[2027/28 To - Spending review Topic 1]]+Dataset[[#This Row],[2027/28 To - Spending review Topic 2]]+Dataset[[#This Row],[2027/28 To - Spending review Topic 3]]+Dataset[[#This Row],[2027/28 To - Spending review Topic 4]]+Dataset[[#This Row],[2027/28 To - Other reallocations]]","v":0},{"$f":"Dataset[[#This Row],[2028/29 To - Spending review Topic 1]]+Dataset[[#This Row],[2028/29 To - Spending review Topic 2]]+Dataset[[#This Row],[2028/29 To - Spending review Topic 3]]+Dataset[[#This Row],[2028/29 To - Spending review Topic 4]]+Dataset[[#This Row],[2028/29 To - Other reallocations]]","v":0},{"$f":"Dataset[[#This Row],[2029/30 To - Spending review Topic 1]]+Dataset[[#This Row],[2029/30 To - Spending review Topic 2]]+Dataset[[#This Row],[2029/30 To - Spending review Topic 3]]+Dataset[[#This Row],[2029/30 To - Spending review Topic 4]]+Dataset[[#This Row],[2029/30 To - Other reallocations]]","v":0},{"$f":"Dataset[[#This Row],[2027/28 Targeted savings]]+Dataset[[#This Row],[2027/28 From - Total]]","v":0},{"$f":"Dataset[[#This Row],[2028/29 Targeted savings]]+Dataset[[#This Row],[2028/29 From - Total]]","v":0},{"$f":"Dataset[[#This Row],[2029/30 Targeted savings]]+Dataset[[#This Row],[2029/30 From - Total]]","v":0},{"$f":"Dataset[[#This Row],[2026/27 Targeted savings]]","v":0},{"$f":"SUM(Dataset[[#This Row],[2027/28 Targeted savings]],Dataset[[#This Row],[2027/28 From - Total]],Dataset[[#This Row],[2027/28 To - Total]])","v":0},{"$f":"SUM(Dataset[[#This Row],[2028/29 Targeted savings]],Dataset[[#This Row],[2028/29 From - Total]],Dataset[[#This Row],[2028/29 To - Total]])","v":0},{"$f":"SUM(Dataset[[#This Row],[2029/30 Targeted savings]],Dataset[[#This Row],[2029/30 From - Total]],Dataset[[#This Row],[2029/30 To - Total]])","v":0},{"$f":"Dataset[[#This Row],[2026/27 Baseline]]+Dataset[[#This Row],[2026/27 Total change]]","v":0},{"$f":"Dataset[[#This Row],[2027/28 Baseline]]+Dataset[[#This Row],[2027/28 Total change]]","v":0},{"$f":"Dataset[[#This Row],[2028/29 Baseline]]+Dataset[[#This Row],[2028/29 Total change]]","v":0},{"$f":"Dataset[[#This Row],[2029/30 Baseline]]+Dataset[[#This Row],[2029/30 Total change]]","v":0}]
["NAT|Households","30|Other transfers to households","2027_28","MTEC2027",30,4,3,33034,514,"30","04","03","033034","000514","30|04|03|000514","01","02","10","53","57","01|02|10|53|57","National","Communications and Digital Technologies","Digital Communication, Access and Services","Digital and Postal Access and Service","Households","Current","Transfers and subsidies","Households","Other transfers to households","Other transfers to households","Economic development","Economic regulation and infrastructure","NAT",38,8,4,0,2,2,0,0,0,0,0,null,null,null,null,null,null,null,null,null,null,null,null,null,null,null,null,null,null,null,null,null,null,null,null,null,null,null,null,null,null,null,null,null,null,{"$f":"Dataset[[#This Row],[2027/28 From - Spending review Topic 1]]+Dataset[[#This Row],[2027/28 From - Spending review Topic 2]]+Dataset[[#This Row],[2027/28 From - Spending review Topic 3]]+Dataset[[#This Row],[2027/28 From - Spending review Topic 4]]+Dataset[[#This Row],[2027/28 From - Other reallocations]]","v":0},{"$f":"Dataset[[#This Row],[2028/29 From - Spending review Topic 1]]+Dataset[[#This Row],[2028/29 From - Spending review Topic 2]]+Dataset[[#This Row],[2028/29 From - Spending review Topic 3]]+Dataset[[#This Row],[2028/29 From - Spending review Topic 4]]+Dataset[[#This Row],[2028/29 From - Other reallocations]]","v":0},{"$f":"Dataset[[#This Row],[2029/30 From - Spending review Topic 1]]+Dataset[[#This Row],[2029/30 From - Spending review Topic 2]]+Dataset[[#This Row],[2029/30 From - Spending review Topic 3]]+Dataset[[#This Row],[2029/30 From - Spending review Topic 4]]+Dataset[[#This Row],[2029/30 From - Other reallocations]]","v":0},{"$f":"Dataset[[#This Row],[2027/28 To - Spending review Topic 1]]+Dataset[[#This Row],[2027/28 To - Spending review Topic 2]]+Dataset[[#This Row],[2027/28 To - Spending review Topic 3]]+Dataset[[#This Row],[2027/28 To - Spending review Topic 4]]+Dataset[[#This Row],[2027/28 To - Other reallocations]]","v":0},{"$f":"Dataset[[#This Row],[2028/29 To - Spending review Topic 1]]+Dataset[[#This Row],[2028/29 To - Spending review Topic 2]]+Dataset[[#This Row],[2028/29 To - Spending review Topic 3]]+Dataset[[#This Row],[2028/29 To - Spending review Topic 4]]+Dataset[[#This Row],[2028/29 To - Other reallocations]]","v":0},{"$f":"Dataset[[#This Row],[2029/30 To - Spending review Topic 1]]+Dataset[[#This Row],[2029/30 To - Spending review Topic 2]]+Dataset[[#This Row],[2029/30 To - Spending review Topic 3]]+Dataset[[#This Row],[2029/30 To - Spending review Topic 4]]+Dataset[[#This Row],[2029/30 To - Other reallocations]]","v":0},{"$f":"Dataset[[#This Row],[2027/28 Targeted savings]]+Dataset[[#This Row],[2027/28 From - Total]]","v":0},{"$f":"Dataset[[#This Row],[2028/29 Targeted savings]]+Dataset[[#This Row],[2028/29 From - Total]]","v":0},{"$f":"Dataset[[#This Row],[2029/30 Targeted savings]]+Dataset[[#This Row],[2029/30 From - Total]]","v":0},{"$f":"Dataset[[#This Row],[2026/27 Targeted savings]]","v":0},{"$f":"SUM(Dataset[[#This Row],[2027/28 Targeted savings]],Dataset[[#This Row],[2027/28 From - Total]],Dataset[[#This Row],[2027/28 To - Total]])","v":0},{"$f":"SUM(Dataset[[#This Row],[2028/29 Targeted savings]],Dataset[[#This Row],[2028/29 From - Total]],Dataset[[#This Row],[2028/29 To - Total]])","v":0},{"$f":"SUM(Dataset[[#This Row],[2029/30 Targeted savings]],Dataset[[#This Row],[2029/30 From - Total]],Dataset[[#This Row],[2029/30 To - Total]])","v":0},{"$f":"Dataset[[#This Row],[2026/27 Baseline]]+Dataset[[#This Row],[2026/27 Total change]]","v":0},{"$f":"Dataset[[#This Row],[2027/28 Baseline]]+Dataset[[#This Row],[2027/28 Total change]]","v":0},{"$f":"Dataset[[#This Row],[2028/29 Baseline]]+Dataset[[#This Row],[2028/29 Total change]]","v":0},{"$f":"Dataset[[#This Row],[2029/30 Baseline]]+Dataset[[#This Row],[2029/30 Total change]]","v":0}]
["NAT|Non-transfer","30|Other machinery and equipment","2027_28","MTEC2027",30,4,3,33035,515,"30","04","03","033035","000515","30|04|03|000515","02","03","12","57","61","02|03|12|57|61","National","Communications and Digital Technologies","Digital Communication, Access and Services","Digital and Postal Access and Service","Non-transfer","Capital","Payments for capital assets","Machinery and equipment","Other machinery and equipment","Other machinery and equipment","Economic development","Economic regulation and infrastructure","NAT",244,19,485,781,781,781,0,400,318,699,720,null,null,null,null,null,null,null,null,null,null,null,null,null,null,null,null,null,null,null,null,null,null,null,null,null,null,null,null,null,null,null,null,null,null,{"$f":"Dataset[[#This Row],[2027/28 From - Spending review Topic 1]]+Dataset[[#This Row],[2027/28 From - Spending review Topic 2]]+Dataset[[#This Row],[2027/28 From - Spending review Topic 3]]+Dataset[[#This Row],[2027/28 From - Spending review Topic 4]]+Dataset[[#This Row],[2027/28 From - Other reallocations]]","v":0},{"$f":"Dataset[[#This Row],[2028/29 From - Spending review Topic 1]]+Dataset[[#This Row],[2028/29 From - Spending review Topic 2]]+Dataset[[#This Row],[2028/29 From - Spending review Topic 3]]+Dataset[[#This Row],[2028/29 From - Spending review Topic 4]]+Dataset[[#This Row],[2028/29 From - Other reallocations]]","v":0},{"$f":"Dataset[[#This Row],[2029/30 From - Spending review Topic 1]]+Dataset[[#This Row],[2029/30 From - Spending review Topic 2]]+Dataset[[#This Row],[2029/30 From - Spending review Topic 3]]+Dataset[[#This Row],[2029/30 From - Spending review Topic 4]]+Dataset[[#This Row],[2029/30 From - Other reallocations]]","v":0},{"$f":"Dataset[[#This Row],[2027/28 To - Spending review Topic 1]]+Dataset[[#This Row],[2027/28 To - Spending review Topic 2]]+Dataset[[#This Row],[2027/28 To - Spending review Topic 3]]+Dataset[[#This Row],[2027/28 To - Spending review Topic 4]]+Dataset[[#This Row],[2027/28 To - Other reallocations]]","v":0},{"$f":"Dataset[[#This Row],[2028/29 To - Spending review Topic 1]]+Dataset[[#This Row],[2028/29 To - Spending review Topic 2]]+Dataset[[#This Row],[2028/29 To - Spending review Topic 3]]+Dataset[[#This Row],[2028/29 To - Spending review Topic 4]]+Dataset[[#This Row],[2028/29 To - Other reallocations]]","v":0},{"$f":"Dataset[[#This Row],[2029/30 To - Spending review Topic 1]]+Dataset[[#This Row],[2029/30 To - Spending review Topic 2]]+Dataset[[#This Row],[2029/30 To - Spending review Topic 3]]+Dataset[[#This Row],[2029/30 To - Spending review Topic 4]]+Dataset[[#This Row],[2029/30 To - Other reallocations]]","v":0},{"$f":"Dataset[[#This Row],[2027/28 Targeted savings]]+Dataset[[#This Row],[2027/28 From - Total]]","v":0},{"$f":"Dataset[[#This Row],[2028/29 Targeted savings]]+Dataset[[#This Row],[2028/29 From - Total]]","v":0},{"$f":"Dataset[[#This Row],[2029/30 Targeted savings]]+Dataset[[#This Row],[2029/30 From - Total]]","v":0},{"$f":"Dataset[[#This Row],[2026/27 Targeted savings]]","v":0},{"$f":"SUM(Dataset[[#This Row],[2027/28 Targeted savings]],Dataset[[#This Row],[2027/28 From - Total]],Dataset[[#This Row],[2027/28 To - Total]])","v":0},{"$f":"SUM(Dataset[[#This Row],[2028/29 Targeted savings]],Dataset[[#This Row],[2028/29 From - Total]],Dataset[[#This Row],[2028/29 To - Total]])","v":0},{"$f":"SUM(Dataset[[#This Row],[2029/30 Targeted savings]],Dataset[[#This Row],[2029/30 From - Total]],Dataset[[#This Row],[2029/30 To - Total]])","v":0},{"$f":"Dataset[[#This Row],[2026/27 Baseline]]+Dataset[[#This Row],[2026/27 Total change]]","v":400},{"$f":"Dataset[[#This Row],[2027/28 Baseline]]+Dataset[[#This Row],[2027/28 Total change]]","v":318},{"$f":"Dataset[[#This Row],[2028/29 Baseline]]+Dataset[[#This Row],[2028/29 Total change]]","v":699},{"$f":"Dataset[[#This Row],[2029/30 Baseline]]+Dataset[[#This Row],[2029/30 Total change]]","v":720}]
["NAT|Purchase of equity","30|Payments for financial assets","2027_28","MTEC2027",30,4,3,33036,516,"30","04","03","033036","000516","30|04|03|000516","03","04","18","63","67","03|04|18|63|67","National","Communications and Digital Technologies","Digital Communication, Access and Services","Digital and Postal Access and Service","Purchase of equity","Payments for financial assets","Payments for financial assets","Payments for financial assets","Payments for financial assets","Payments for financial assets","Economic development","Economic regulation and infrastructure","NAT",2400000,0,0,0,0,0,0,0,0,0,0,null,null,null,null,null,null,null,null,null,null,null,null,null,null,null,null,null,null,null,null,null,null,null,null,null,null,null,null,null,null,null,null,null,null,{"$f":"Dataset[[#This Row],[2027/28 From - Spending review Topic 1]]+Dataset[[#This Row],[2027/28 From - Spending review Topic 2]]+Dataset[[#This Row],[2027/28 From - Spending review Topic 3]]+Dataset[[#This Row],[2027/28 From - Spending review Topic 4]]+Dataset[[#This Row],[2027/28 From - Other reallocations]]","v":0},{"$f":"Dataset[[#This Row],[2028/29 From - Spending review Topic 1]]+Dataset[[#This Row],[2028/29 From - Spending review Topic 2]]+Dataset[[#This Row],[2028/29 From - Spending review Topic 3]]+Dataset[[#This Row],[2028/29 From - Spending review Topic 4]]+Dataset[[#This Row],[2028/29 From - Other reallocations]]","v":0},{"$f":"Dataset[[#This Row],[2029/30 From - Spending review Topic 1]]+Dataset[[#This Row],[2029/30 From - Spending review Topic 2]]+Dataset[[#This Row],[2029/30 From - Spending review Topic 3]]+Dataset[[#This Row],[2029/30 From - Spending review Topic 4]]+Dataset[[#This Row],[2029/30 From - Other reallocations]]","v":0},{"$f":"Dataset[[#This Row],[2027/28 To - Spending review Topic 1]]+Dataset[[#This Row],[2027/28 To - Spending review Topic 2]]+Dataset[[#This Row],[2027/28 To - Spending review Topic 3]]+Dataset[[#This Row],[2027/28 To - Spending review Topic 4]]+Dataset[[#This Row],[2027/28 To - Other reallocations]]","v":0},{"$f":"Dataset[[#This Row],[2028/29 To - Spending review Topic 1]]+Dataset[[#This Row],[2028/29 To - Spending review Topic 2]]+Dataset[[#This Row],[2028/29 To - Spending review Topic 3]]+Dataset[[#This Row],[2028/29 To - Spending review Topic 4]]+Dataset[[#This Row],[2028/29 To - Other reallocations]]","v":0},{"$f":"Dataset[[#This Row],[2029/30 To - Spending review Topic 1]]+Dataset[[#This Row],[2029/30 To - Spending review Topic 2]]+Dataset[[#This Row],[2029/30 To - Spending review Topic 3]]+Dataset[[#This Row],[2029/30 To - Spending review Topic 4]]+Dataset[[#This Row],[2029/30 To - Other reallocations]]","v":0},{"$f":"Dataset[[#This Row],[2027/28 Targeted savings]]+Dataset[[#This Row],[2027/28 From - Total]]","v":0},{"$f":"Dataset[[#This Row],[2028/29 Targeted savings]]+Dataset[[#This Row],[2028/29 From - Total]]","v":0},{"$f":"Dataset[[#This Row],[2029/30 Targeted savings]]+Dataset[[#This Row],[2029/30 From - Total]]","v":0},{"$f":"Dataset[[#This Row],[2026/27 Targeted savings]]","v":0},{"$f":"SUM(Dataset[[#This Row],[2027/28 Targeted savings]],Dataset[[#This Row],[2027/28 From - Total]],Dataset[[#This Row],[2027/28 To - Total]])","v":0},{"$f":"SUM(Dataset[[#This Row],[2028/29 Targeted savings]],Dataset[[#This Row],[2028/29 From - Total]],Dataset[[#This Row],[2028/29 To - Total]])","v":0},{"$f":"SUM(Dataset[[#This Row],[2029/30 Targeted savings]],Dataset[[#This Row],[2029/30 From - Total]],Dataset[[#This Row],[2029/30 To - Total]])","v":0},{"$f":"Dataset[[#This Row],[2026/27 Baseline]]+Dataset[[#This Row],[2026/27 Total change]]","v":0},{"$f":"Dataset[[#This Row],[2027/28 Baseline]]+Dataset[[#This Row],[2027/28 Total change]]","v":0},{"$f":"Dataset[[#This Row],[2028/29 Baseline]]+Dataset[[#This Row],[2028/29 Total change]]","v":0},{"$f":"Dataset[[#This Row],[2029/30 Baseline]]+Dataset[[#This Row],[2029/30 Total change]]","v":0}]
["NAT|Non-transfer","30|Salaries and wages","2027_28","MTEC2027",30,4,4,33037,517,"30","04","04","033037","000517","30|04|04|000517","01","01","01","01","01","01|01|01|01|01","National","Communications and Digital Technologies","Digital Communication, Access and Services","Digital Enterprise Development and Small, Medium and Micro Enterprise Support","Non-transfer","Current","Current payments","Compensation of employees","Salaries and wages","Salaries and wages","Economic development","Economic regulation and infrastructure","NAT",2850,2737,2865,8000,4793,4793,0,9339,8504,8768,9032,null,null,null,null,null,null,null,null,null,null,null,null,null,null,null,null,null,null,null,null,null,null,null,null,null,null,null,null,null,null,null,null,null,null,{"$f":"Dataset[[#This Row],[2027/28 From - Spending review Topic 1]]+Dataset[[#This Row],[2027/28 From - Spending review Topic 2]]+Dataset[[#This Row],[2027/28 From - Spending review Topic 3]]+Dataset[[#This Row],[2027/28 From - Spending review Topic 4]]+Dataset[[#This Row],[2027/28 From - Other reallocations]]","v":0},{"$f":"Dataset[[#This Row],[2028/29 From - Spending review Topic 1]]+Dataset[[#This Row],[2028/29 From - Spending review Topic 2]]+Dataset[[#This Row],[2028/29 From - Spending review Topic 3]]+Dataset[[#This Row],[2028/29 From - Spending review Topic 4]]+Dataset[[#This Row],[2028/29 From - Other reallocations]]","v":0},{"$f":"Dataset[[#This Row],[2029/30 From - Spending review Topic 1]]+Dataset[[#This Row],[2029/30 From - Spending review Topic 2]]+Dataset[[#This Row],[2029/30 From - Spending review Topic 3]]+Dataset[[#This Row],[2029/30 From - Spending review Topic 4]]+Dataset[[#This Row],[2029/30 From - Other reallocations]]","v":0},{"$f":"Dataset[[#This Row],[2027/28 To - Spending review Topic 1]]+Dataset[[#This Row],[2027/28 To - Spending review Topic 2]]+Dataset[[#This Row],[2027/28 To - Spending review Topic 3]]+Dataset[[#This Row],[2027/28 To - Spending review Topic 4]]+Dataset[[#This Row],[2027/28 To - Other reallocations]]","v":0},{"$f":"Dataset[[#This Row],[2028/29 To - Spending review Topic 1]]+Dataset[[#This Row],[2028/29 To - Spending review Topic 2]]+Dataset[[#This Row],[2028/29 To - Spending review Topic 3]]+Dataset[[#This Row],[2028/29 To - Spending review Topic 4]]+Dataset[[#This Row],[2028/29 To - Other reallocations]]","v":0},{"$f":"Dataset[[#This Row],[2029/30 To - Spending review Topic 1]]+Dataset[[#This Row],[2029/30 To - Spending review Topic 2]]+Dataset[[#This Row],[2029/30 To - Spending review Topic 3]]+Dataset[[#This Row],[2029/30 To - Spending review Topic 4]]+Dataset[[#This Row],[2029/30 To - Other reallocations]]","v":0},{"$f":"Dataset[[#This Row],[2027/28 Targeted savings]]+Dataset[[#This Row],[2027/28 From - Total]]","v":0},{"$f":"Dataset[[#This Row],[2028/29 Targeted savings]]+Dataset[[#This Row],[2028/29 From - Total]]","v":0},{"$f":"Dataset[[#This Row],[2029/30 Targeted savings]]+Dataset[[#This Row],[2029/30 From - Total]]","v":0},{"$f":"Dataset[[#This Row],[2026/27 Targeted savings]]","v":0},{"$f":"SUM(Dataset[[#This Row],[2027/28 Targeted savings]],Dataset[[#This Row],[2027/28 From - Total]],Dataset[[#This Row],[2027/28 To - Total]])","v":0},{"$f":"SUM(Dataset[[#This Row],[2028/29 Targeted savings]],Dataset[[#This Row],[2028/29 From - Total]],Dataset[[#This Row],[2028/29 To - Total]])","v":0},{"$f":"SUM(Dataset[[#This Row],[2029/30 Targeted savings]],Dataset[[#This Row],[2029/30 From - Total]],Dataset[[#This Row],[2029/30 To - Total]])","v":0},{"$f":"Dataset[[#This Row],[2026/27 Baseline]]+Dataset[[#This Row],[2026/27 Total change]]","v":9339},{"$f":"Dataset[[#This Row],[2027/28 Baseline]]+Dataset[[#This Row],[2027/28 Total change]]","v":8504},{"$f":"Dataset[[#This Row],[2028/29 Baseline]]+Dataset[[#This Row],[2028/29 Total change]]","v":8768},{"$f":"Dataset[[#This Row],[2029/30 Baseline]]+Dataset[[#This Row],[2029/30 Total change]]","v":9032}]
["NAT|Non-transfer","30|Social contributions","2027_28","MTEC2027",30,4,4,33038,518,"30","04","04","033038","000518","30|04|04|000518","01","01","01","02","02","01|01|01|02|02","National","Communications and Digital Technologies","Digital Communication, Access and Services","Digital Enterprise Development and Small, Medium and Micro Enterprise Support","Non-transfer","Current","Current payments","Compensation of employees","Social contributions","Social contributions","Economic development","Economic regulation and infrastructure","NAT",341,309,355,400,400,400,0,649,678,699,720,null,null,null,null,null,null,null,null,null,null,null,null,null,null,null,null,null,null,null,null,null,null,null,null,null,null,null,null,null,null,null,null,null,null,{"$f":"Dataset[[#This Row],[2027/28 From - Spending review Topic 1]]+Dataset[[#This Row],[2027/28 From - Spending review Topic 2]]+Dataset[[#This Row],[2027/28 From - Spending review Topic 3]]+Dataset[[#This Row],[2027/28 From - Spending review Topic 4]]+Dataset[[#This Row],[2027/28 From - Other reallocations]]","v":0},{"$f":"Dataset[[#This Row],[2028/29 From - Spending review Topic 1]]+Dataset[[#This Row],[2028/29 From - Spending review Topic 2]]+Dataset[[#This Row],[2028/29 From - Spending review Topic 3]]+Dataset[[#This Row],[2028/29 From - Spending review Topic 4]]+Dataset[[#This Row],[2028/29 From - Other reallocations]]","v":0},{"$f":"Dataset[[#This Row],[2029/30 From - Spending review Topic 1]]+Dataset[[#This Row],[2029/30 From - Spending review Topic 2]]+Dataset[[#This Row],[2029/30 From - Spending review Topic 3]]+Dataset[[#This Row],[2029/30 From - Spending review Topic 4]]+Dataset[[#This Row],[2029/30 From - Other reallocations]]","v":0},{"$f":"Dataset[[#This Row],[2027/28 To - Spending review Topic 1]]+Dataset[[#This Row],[2027/28 To - Spending review Topic 2]]+Dataset[[#This Row],[2027/28 To - Spending review Topic 3]]+Dataset[[#This Row],[2027/28 To - Spending review Topic 4]]+Dataset[[#This Row],[2027/28 To - Other reallocations]]","v":0},{"$f":"Dataset[[#This Row],[2028/29 To - Spending review Topic 1]]+Dataset[[#This Row],[2028/29 To - Spending review Topic 2]]+Dataset[[#This Row],[2028/29 To - Spending review Topic 3]]+Dataset[[#This Row],[2028/29 To - Spending review Topic 4]]+Dataset[[#This Row],[2028/29 To - Other reallocations]]","v":0},{"$f":"Dataset[[#This Row],[2029/30 To - Spending review Topic 1]]+Dataset[[#This Row],[2029/30 To - Spending review Topic 2]]+Dataset[[#This Row],[2029/30 To - Spending review Topic 3]]+Dataset[[#This Row],[2029/30 To - Spending review Topic 4]]+Dataset[[#This Row],[2029/30 To - Other reallocations]]","v":0},{"$f":"Dataset[[#This Row],[2027/28 Targeted savings]]+Dataset[[#This Row],[2027/28 From - Total]]","v":0},{"$f":"Dataset[[#This Row],[2028/29 Targeted savings]]+Dataset[[#This Row],[2028/29 From - Total]]","v":0},{"$f":"Dataset[[#This Row],[2029/30 Targeted savings]]+Dataset[[#This Row],[2029/30 From - Total]]","v":0},{"$f":"Dataset[[#This Row],[2026/27 Targeted savings]]","v":0},{"$f":"SUM(Dataset[[#This Row],[2027/28 Targeted savings]],Dataset[[#This Row],[2027/28 From - Total]],Dataset[[#This Row],[2027/28 To - Total]])","v":0},{"$f":"SUM(Dataset[[#This Row],[2028/29 Targeted savings]],Dataset[[#This Row],[2028/29 From - Total]],Dataset[[#This Row],[2028/29 To - Total]])","v":0},{"$f":"SUM(Dataset[[#This Row],[2029/30 Targeted savings]],Dataset[[#This Row],[2029/30 From - Total]],Dataset[[#This Row],[2029/30 To - Total]])","v":0},{"$f":"Dataset[[#This Row],[2026/27 Baseline]]+Dataset[[#This Row],[2026/27 Total change]]","v":649},{"$f":"Dataset[[#This Row],[2027/28 Baseline]]+Dataset[[#This Row],[2027/28 Total change]]","v":678},{"$f":"Dataset[[#This Row],[2028/29 Baseline]]+Dataset[[#This Row],[2028/29 Total change]]","v":699},{"$f":"Dataset[[#This Row],[2029/30 Baseline]]+Dataset[[#This Row],[2029/30 Total change]]","v":720}]
["NAT|Non-transfer","30|Administrative fees","2027_28","MTEC2027",30,4,4,33039,519,"30","04","04","033039","000519","30|04|04|000519","01","01","02","03","03","01|01|02|03|03","National","Communications and Digital Technologies","Digital Communication, Access and Services","Digital Enterprise Development and Small, Medium and Micro Enterprise Support","Non-transfer","Current","Current payments","Goods and services","Administrative fees","Administrative fees","Economic development","Economic regulation and infrastructure","NAT",9,5,10,8,20,20,0,19,41,42,43,null,null,null,null,null,null,null,null,null,null,null,null,null,null,null,null,null,null,null,null,null,null,null,null,null,null,null,null,null,null,null,null,null,null,{"$f":"Dataset[[#This Row],[2027/28 From - Spending review Topic 1]]+Dataset[[#This Row],[2027/28 From - Spending review Topic 2]]+Dataset[[#This Row],[2027/28 From - Spending review Topic 3]]+Dataset[[#This Row],[2027/28 From - Spending review Topic 4]]+Dataset[[#This Row],[2027/28 From - Other reallocations]]","v":0},{"$f":"Dataset[[#This Row],[2028/29 From - Spending review Topic 1]]+Dataset[[#This Row],[2028/29 From - Spending review Topic 2]]+Dataset[[#This Row],[2028/29 From - Spending review Topic 3]]+Dataset[[#This Row],[2028/29 From - Spending review Topic 4]]+Dataset[[#This Row],[2028/29 From - Other reallocations]]","v":0},{"$f":"Dataset[[#This Row],[2029/30 From - Spending review Topic 1]]+Dataset[[#This Row],[2029/30 From - Spending review Topic 2]]+Dataset[[#This Row],[2029/30 From - Spending review Topic 3]]+Dataset[[#This Row],[2029/30 From - Spending review Topic 4]]+Dataset[[#This Row],[2029/30 From - Other reallocations]]","v":0},{"$f":"Dataset[[#This Row],[2027/28 To - Spending review Topic 1]]+Dataset[[#This Row],[2027/28 To - Spending review Topic 2]]+Dataset[[#This Row],[2027/28 To - Spending review Topic 3]]+Dataset[[#This Row],[2027/28 To - Spending review Topic 4]]+Dataset[[#This Row],[2027/28 To - Other reallocations]]","v":0},{"$f":"Dataset[[#This Row],[2028/29 To - Spending review Topic 1]]+Dataset[[#This Row],[2028/29 To - Spending review Topic 2]]+Dataset[[#This Row],[2028/29 To - Spending review Topic 3]]+Dataset[[#This Row],[2028/29 To - Spending review Topic 4]]+Dataset[[#This Row],[2028/29 To - Other reallocations]]","v":0},{"$f":"Dataset[[#This Row],[2029/30 To - Spending review Topic 1]]+Dataset[[#This Row],[2029/30 To - Spending review Topic 2]]+Dataset[[#This Row],[2029/30 To - Spending review Topic 3]]+Dataset[[#This Row],[2029/30 To - Spending review Topic 4]]+Dataset[[#This Row],[2029/30 To - Other reallocations]]","v":0},{"$f":"Dataset[[#This Row],[2027/28 Targeted savings]]+Dataset[[#This Row],[2027/28 From - Total]]","v":0},{"$f":"Dataset[[#This Row],[2028/29 Targeted savings]]+Dataset[[#This Row],[2028/29 From - Total]]","v":0},{"$f":"Dataset[[#This Row],[2029/30 Targeted savings]]+Dataset[[#This Row],[2029/30 From - Total]]","v":0},{"$f":"Dataset[[#This Row],[2026/27 Targeted savings]]","v":0},{"$f":"SUM(Dataset[[#This Row],[2027/28 Targeted savings]],Dataset[[#This Row],[2027/28 From - Total]],Dataset[[#This Row],[2027/28 To - Total]])","v":0},{"$f":"SUM(Dataset[[#This Row],[2028/29 Targeted savings]],Dataset[[#This Row],[2028/29 From - Total]],Dataset[[#This Row],[2028/29 To - Total]])","v":0},{"$f":"SUM(Dataset[[#This Row],[2029/30 Targeted savings]],Dataset[[#This Row],[2029/30 From - Total]],Dataset[[#This Row],[2029/30 To - Total]])","v":0},{"$f":"Dataset[[#This Row],[2026/27 Baseline]]+Dataset[[#This Row],[2026/27 Total change]]","v":19},{"$f":"Dataset[[#This Row],[2027/28 Baseline]]+Dataset[[#This Row],[2027/28 Total change]]","v":41},{"$f":"Dataset[[#This Row],[2028/29 Baseline]]+Dataset[[#This Row],[2028/29 Total change]]","v":42},{"$f":"Dataset[[#This Row],[2029/30 Baseline]]+Dataset[[#This Row],[2029/30 Total change]]","v":43}]
["NAT|Non-transfer","30|Advertising","2027_28","MTEC2027",30,4,4,33040,520,"30","04","04","033040","000520","30|04|04|000520","01","01","02","04","04","01|01|02|04|04","National","Communications and Digital Technologies","Digital Communication, Access and Services","Digital Enterprise Development and Small, Medium and Micro Enterprise Support","Non-transfer","Current","Current payments","Goods and services","Advertising","Advertising","Economic development","Economic regulation and infrastructure","NAT",1025,291,44,200,188,188,0,50,79,391,403,null,null,null,null,null,null,null,null,null,null,null,null,null,null,null,null,null,null,null,null,null,null,null,null,null,null,null,null,null,null,null,null,null,null,{"$f":"Dataset[[#This Row],[2027/28 From - Spending review Topic 1]]+Dataset[[#This Row],[2027/28 From - Spending review Topic 2]]+Dataset[[#This Row],[2027/28 From - Spending review Topic 3]]+Dataset[[#This Row],[2027/28 From - Spending review Topic 4]]+Dataset[[#This Row],[2027/28 From - Other reallocations]]","v":0},{"$f":"Dataset[[#This Row],[2028/29 From - Spending review Topic 1]]+Dataset[[#This Row],[2028/29 From - Spending review Topic 2]]+Dataset[[#This Row],[2028/29 From - Spending review Topic 3]]+Dataset[[#This Row],[2028/29 From - Spending review Topic 4]]+Dataset[[#This Row],[2028/29 From - Other reallocations]]","v":0},{"$f":"Dataset[[#This Row],[2029/30 From - Spending review Topic 1]]+Dataset[[#This Row],[2029/30 From - Spending review Topic 2]]+Dataset[[#This Row],[2029/30 From - Spending review Topic 3]]+Dataset[[#This Row],[2029/30 From - Spending review Topic 4]]+Dataset[[#This Row],[2029/30 From - Other reallocations]]","v":0},{"$f":"Dataset[[#This Row],[2027/28 To - Spending review Topic 1]]+Dataset[[#This Row],[2027/28 To - Spending review Topic 2]]+Dataset[[#This Row],[2027/28 To - Spending review Topic 3]]+Dataset[[#This Row],[2027/28 To - Spending review Topic 4]]+Dataset[[#This Row],[2027/28 To - Other reallocations]]","v":0},{"$f":"Dataset[[#This Row],[2028/29 To - Spending review Topic 1]]+Dataset[[#This Row],[2028/29 To - Spending review Topic 2]]+Dataset[[#This Row],[2028/29 To - Spending review Topic 3]]+Dataset[[#This Row],[2028/29 To - Spending review Topic 4]]+Dataset[[#This Row],[2028/29 To - Other reallocations]]","v":0},{"$f":"Dataset[[#This Row],[2029/30 To - Spending review Topic 1]]+Dataset[[#This Row],[2029/30 To - Spending review Topic 2]]+Dataset[[#This Row],[2029/30 To - Spending review Topic 3]]+Dataset[[#This Row],[2029/30 To - Spending review Topic 4]]+Dataset[[#This Row],[2029/30 To - Other reallocations]]","v":0},{"$f":"Dataset[[#This Row],[2027/28 Targeted savings]]+Dataset[[#This Row],[2027/28 From - Total]]","v":0},{"$f":"Dataset[[#This Row],[2028/29 Targeted savings]]+Dataset[[#This Row],[2028/29 From - Total]]","v":0},{"$f":"Dataset[[#This Row],[2029/30 Targeted savings]]+Dataset[[#This Row],[2029/30 From - Total]]","v":0},{"$f":"Dataset[[#This Row],[2026/27 Targeted savings]]","v":0},{"$f":"SUM(Dataset[[#This Row],[2027/28 Targeted savings]],Dataset[[#This Row],[2027/28 From - Total]],Dataset[[#This Row],[2027/28 To - Total]])","v":0},{"$f":"SUM(Dataset[[#This Row],[2028/29 Targeted savings]],Dataset[[#This Row],[2028/29 From - Total]],Dataset[[#This Row],[2028/29 To - Total]])","v":0},{"$f":"SUM(Dataset[[#This Row],[2029/30 Targeted savings]],Dataset[[#This Row],[2029/30 From - Total]],Dataset[[#This Row],[2029/30 To - Total]])","v":0},{"$f":"Dataset[[#This Row],[2026/27 Baseline]]+Dataset[[#This Row],[2026/27 Total change]]","v":50},{"$f":"Dataset[[#This Row],[2027/28 Baseline]]+Dataset[[#This Row],[2027/28 Total change]]","v":79},{"$f":"Dataset[[#This Row],[2028/29 Baseline]]+Dataset[[#This Row],[2028/29 Total change]]","v":391},{"$f":"Dataset[[#This Row],[2029/30 Baseline]]+Dataset[[#This Row],[2029/30 Total change]]","v":403}]
["NAT|Non-transfer","30|Minor assets","2027_28","MTEC2027",30,4,4,33041,521,"30","04","04","033041","000521","30|04|04|000521","01","01","02","05","05","01|01|02|05|05","National","Communications and Digital Technologies","Digital Communication, Access and Services","Digital Enterprise Development and Small, Medium and Micro Enterprise Support","Non-transfer","Current","Current payments","Goods and services","Minor assets","Minor assets","Economic development","Economic regulation and infrastructure","NAT",0,0,0,0,0,0,0,100,69,71,73,null,null,null,null,null,null,null,null,null,null,null,null,null,null,null,null,null,null,null,null,null,null,null,null,null,null,null,null,null,null,null,null,null,null,{"$f":"Dataset[[#This Row],[2027/28 From - Spending review Topic 1]]+Dataset[[#This Row],[2027/28 From - Spending review Topic 2]]+Dataset[[#This Row],[2027/28 From - Spending review Topic 3]]+Dataset[[#This Row],[2027/28 From - Spending review Topic 4]]+Dataset[[#This Row],[2027/28 From - Other reallocations]]","v":0},{"$f":"Dataset[[#This Row],[2028/29 From - Spending review Topic 1]]+Dataset[[#This Row],[2028/29 From - Spending review Topic 2]]+Dataset[[#This Row],[2028/29 From - Spending review Topic 3]]+Dataset[[#This Row],[2028/29 From - Spending review Topic 4]]+Dataset[[#This Row],[2028/29 From - Other reallocations]]","v":0},{"$f":"Dataset[[#This Row],[2029/30 From - Spending review Topic 1]]+Dataset[[#This Row],[2029/30 From - Spending review Topic 2]]+Dataset[[#This Row],[2029/30 From - Spending review Topic 3]]+Dataset[[#This Row],[2029/30 From - Spending review Topic 4]]+Dataset[[#This Row],[2029/30 From - Other reallocations]]","v":0},{"$f":"Dataset[[#This Row],[2027/28 To - Spending review Topic 1]]+Dataset[[#This Row],[2027/28 To - Spending review Topic 2]]+Dataset[[#This Row],[2027/28 To - Spending review Topic 3]]+Dataset[[#This Row],[2027/28 To - Spending review Topic 4]]+Dataset[[#This Row],[2027/28 To - Other reallocations]]","v":0},{"$f":"Dataset[[#This Row],[2028/29 To - Spending review Topic 1]]+Dataset[[#This Row],[2028/29 To - Spending review Topic 2]]+Dataset[[#This Row],[2028/29 To - Spending review Topic 3]]+Dataset[[#This Row],[2028/29 To - Spending review Topic 4]]+Dataset[[#This Row],[2028/29 To - Other reallocations]]","v":0},{"$f":"Dataset[[#This Row],[2029/30 To - Spending review Topic 1]]+Dataset[[#This Row],[2029/30 To - Spending review Topic 2]]+Dataset[[#This Row],[2029/30 To - Spending review Topic 3]]+Dataset[[#This Row],[2029/30 To - Spending review Topic 4]]+Dataset[[#This Row],[2029/30 To - Other reallocations]]","v":0},{"$f":"Dataset[[#This Row],[2027/28 Targeted savings]]+Dataset[[#This Row],[2027/28 From - Total]]","v":0},{"$f":"Dataset[[#This Row],[2028/29 Targeted savings]]+Dataset[[#This Row],[2028/29 From - Total]]","v":0},{"$f":"Dataset[[#This Row],[2029/30 Targeted savings]]+Dataset[[#This Row],[2029/30 From - Total]]","v":0},{"$f":"Dataset[[#This Row],[2026/27 Targeted savings]]","v":0},{"$f":"SUM(Dataset[[#This Row],[2027/28 Targeted savings]],Dataset[[#This Row],[2027/28 From - Total]],Dataset[[#This Row],[2027/28 To - Total]])","v":0},{"$f":"SUM(Dataset[[#This Row],[2028/29 Targeted savings]],Dataset[[#This Row],[2028/29 From - Total]],Dataset[[#This Row],[2028/29 To - Total]])","v":0},{"$f":"SUM(Dataset[[#This Row],[2029/30 Targeted savings]],Dataset[[#This Row],[2029/30 From - Total]],Dataset[[#This Row],[2029/30 To - Total]])","v":0},{"$f":"Dataset[[#This Row],[2026/27 Baseline]]+Dataset[[#This Row],[2026/27 Total change]]","v":100},{"$f":"Dataset[[#This Row],[2027/28 Baseline]]+Dataset[[#This Row],[2027/28 Total change]]","v":69},{"$f":"Dataset[[#This Row],[2028/29 Baseline]]+Dataset[[#This Row],[2028/29 Total change]]","v":71},{"$f":"Dataset[[#This Row],[2029/30 Baseline]]+Dataset[[#This Row],[2029/30 Total change]]","v":73}]
["NAT|Non-transfer","30|Bursaries: Employees","2027_28","MTEC2027",30,4,4,33042,522,"30","04","04","033042","000522","30|04|04|000522","01","01","02","07","07","01|01|02|07|07","National","Communications and Digital Technologies","Digital Communication, Access and Services","Digital Enterprise Development and Small, Medium and Micro Enterprise Support","Non-transfer","Current","Current payments","Goods and services","Bursaries: Employees","Bursaries: Employees","Economic development","Economic regulation and infrastructure","NAT",0,0,0,100,0,0,0,0,0,303,312,null,null,null,null,null,null,null,null,null,null,null,null,null,null,null,null,null,null,null,null,null,null,null,null,null,null,null,null,null,null,null,null,null,null,{"$f":"Dataset[[#This Row],[2027/28 From - Spending review Topic 1]]+Dataset[[#This Row],[2027/28 From - Spending review Topic 2]]+Dataset[[#This Row],[2027/28 From - Spending review Topic 3]]+Dataset[[#This Row],[2027/28 From - Spending review Topic 4]]+Dataset[[#This Row],[2027/28 From - Other reallocations]]","v":0},{"$f":"Dataset[[#This Row],[2028/29 From - Spending review Topic 1]]+Dataset[[#This Row],[2028/29 From - Spending review Topic 2]]+Dataset[[#This Row],[2028/29 From - Spending review Topic 3]]+Dataset[[#This Row],[2028/29 From - Spending review Topic 4]]+Dataset[[#This Row],[2028/29 From - Other reallocations]]","v":0},{"$f":"Dataset[[#This Row],[2029/30 From - Spending review Topic 1]]+Dataset[[#This Row],[2029/30 From - Spending review Topic 2]]+Dataset[[#This Row],[2029/30 From - Spending review Topic 3]]+Dataset[[#This Row],[2029/30 From - Spending review Topic 4]]+Dataset[[#This Row],[2029/30 From - Other reallocations]]","v":0},{"$f":"Dataset[[#This Row],[2027/28 To - Spending review Topic 1]]+Dataset[[#This Row],[2027/28 To - Spending review Topic 2]]+Dataset[[#This Row],[2027/28 To - Spending review Topic 3]]+Dataset[[#This Row],[2027/28 To - Spending review Topic 4]]+Dataset[[#This Row],[2027/28 To - Other reallocations]]","v":0},{"$f":"Dataset[[#This Row],[2028/29 To - Spending review Topic 1]]+Dataset[[#This Row],[2028/29 To - Spending review Topic 2]]+Dataset[[#This Row],[2028/29 To - Spending review Topic 3]]+Dataset[[#This Row],[2028/29 To - Spending review Topic 4]]+Dataset[[#This Row],[2028/29 To - Other reallocations]]","v":0},{"$f":"Dataset[[#This Row],[2029/30 To - Spending review Topic 1]]+Dataset[[#This Row],[2029/30 To - Spending review Topic 2]]+Dataset[[#This Row],[2029/30 To - Spending review Topic 3]]+Dataset[[#This Row],[2029/30 To - Spending review Topic 4]]+Dataset[[#This Row],[2029/30 To - Other reallocations]]","v":0},{"$f":"Dataset[[#This Row],[2027/28 Targeted savings]]+Dataset[[#This Row],[2027/28 From - Total]]","v":0},{"$f":"Dataset[[#This Row],[2028/29 Targeted savings]]+Dataset[[#This Row],[2028/29 From - Total]]","v":0},{"$f":"Dataset[[#This Row],[2029/30 Targeted savings]]+Dataset[[#This Row],[2029/30 From - Total]]","v":0},{"$f":"Dataset[[#This Row],[2026/27 Targeted savings]]","v":0},{"$f":"SUM(Dataset[[#This Row],[2027/28 Targeted savings]],Dataset[[#This Row],[2027/28 From - Total]],Dataset[[#This Row],[2027/28 To - Total]])","v":0},{"$f":"SUM(Dataset[[#This Row],[2028/29 Targeted savings]],Dataset[[#This Row],[2028/29 From - Total]],Dataset[[#This Row],[2028/29 To - Total]])","v":0},{"$f":"SUM(Dataset[[#This Row],[2029/30 Targeted savings]],Dataset[[#This Row],[2029/30 From - Total]],Dataset[[#This Row],[2029/30 To - Total]])","v":0},{"$f":"Dataset[[#This Row],[2026/27 Baseline]]+Dataset[[#This Row],[2026/27 Total change]]","v":0},{"$f":"Dataset[[#This Row],[2027/28 Baseline]]+Dataset[[#This Row],[2027/28 Total change]]","v":0},{"$f":"Dataset[[#This Row],[2028/29 Baseline]]+Dataset[[#This Row],[2028/29 Total change]]","v":303},{"$f":"Dataset[[#This Row],[2029/30 Baseline]]+Dataset[[#This Row],[2029/30 Total change]]","v":312}]
["NAT|Non-transfer","30|Catering: Departmental activities","2027_28","MTEC2027",30,4,4,33043,523,"30","04","04","033043","000523","30|04|04|000523","01","01","02","08","08","01|01|02|08|08","National","Communications and Digital Technologies","Digital Communication, Access and Services","Digital Enterprise Development and Small, Medium and Micro Enterprise Support","Non-transfer","Current","Current payments","Goods and services","Catering: Departmental activities","Catering: Departmental activities","Economic development","Economic regulation and infrastructure","NAT",0,289,172,480,730,730,0,590,99,102,105,null,null,null,null,null,null,null,null,null,null,null,null,null,null,null,null,null,null,null,null,null,null,null,null,null,null,null,null,null,null,null,null,null,null,{"$f":"Dataset[[#This Row],[2027/28 From - Spending review Topic 1]]+Dataset[[#This Row],[2027/28 From - Spending review Topic 2]]+Dataset[[#This Row],[2027/28 From - Spending review Topic 3]]+Dataset[[#This Row],[2027/28 From - Spending review Topic 4]]+Dataset[[#This Row],[2027/28 From - Other reallocations]]","v":0},{"$f":"Dataset[[#This Row],[2028/29 From - Spending review Topic 1]]+Dataset[[#This Row],[2028/29 From - Spending review Topic 2]]+Dataset[[#This Row],[2028/29 From - Spending review Topic 3]]+Dataset[[#This Row],[2028/29 From - Spending review Topic 4]]+Dataset[[#This Row],[2028/29 From - Other reallocations]]","v":0},{"$f":"Dataset[[#This Row],[2029/30 From - Spending review Topic 1]]+Dataset[[#This Row],[2029/30 From - Spending review Topic 2]]+Dataset[[#This Row],[2029/30 From - Spending review Topic 3]]+Dataset[[#This Row],[2029/30 From - Spending review Topic 4]]+Dataset[[#This Row],[2029/30 From - Other reallocations]]","v":0},{"$f":"Dataset[[#This Row],[2027/28 To - Spending review Topic 1]]+Dataset[[#This Row],[2027/28 To - Spending review Topic 2]]+Dataset[[#This Row],[2027/28 To - Spending review Topic 3]]+Dataset[[#This Row],[2027/28 To - Spending review Topic 4]]+Dataset[[#This Row],[2027/28 To - Other reallocations]]","v":0},{"$f":"Dataset[[#This Row],[2028/29 To - Spending review Topic 1]]+Dataset[[#This Row],[2028/29 To - Spending review Topic 2]]+Dataset[[#This Row],[2028/29 To - Spending review Topic 3]]+Dataset[[#This Row],[2028/29 To - Spending review Topic 4]]+Dataset[[#This Row],[2028/29 To - Other reallocations]]","v":0},{"$f":"Dataset[[#This Row],[2029/30 To - Spending review Topic 1]]+Dataset[[#This Row],[2029/30 To - Spending review Topic 2]]+Dataset[[#This Row],[2029/30 To - Spending review Topic 3]]+Dataset[[#This Row],[2029/30 To - Spending review Topic 4]]+Dataset[[#This Row],[2029/30 To - Other reallocations]]","v":0},{"$f":"Dataset[[#This Row],[2027/28 Targeted savings]]+Dataset[[#This Row],[2027/28 From - Total]]","v":0},{"$f":"Dataset[[#This Row],[2028/29 Targeted savings]]+Dataset[[#This Row],[2028/29 From - Total]]","v":0},{"$f":"Dataset[[#This Row],[2029/30 Targeted savings]]+Dataset[[#This Row],[2029/30 From - Total]]","v":0},{"$f":"Dataset[[#This Row],[2026/27 Targeted savings]]","v":0},{"$f":"SUM(Dataset[[#This Row],[2027/28 Targeted savings]],Dataset[[#This Row],[2027/28 From - Total]],Dataset[[#This Row],[2027/28 To - Total]])","v":0},{"$f":"SUM(Dataset[[#This Row],[2028/29 Targeted savings]],Dataset[[#This Row],[2028/29 From - Total]],Dataset[[#This Row],[2028/29 To - Total]])","v":0},{"$f":"SUM(Dataset[[#This Row],[2029/30 Targeted savings]],Dataset[[#This Row],[2029/30 From - Total]],Dataset[[#This Row],[2029/30 To - Total]])","v":0},{"$f":"Dataset[[#This Row],[2026/27 Baseline]]+Dataset[[#This Row],[2026/27 Total change]]","v":590},{"$f":"Dataset[[#This Row],[2027/28 Baseline]]+Dataset[[#This Row],[2027/28 Total change]]","v":99},{"$f":"Dataset[[#This Row],[2028/29 Baseline]]+Dataset[[#This Row],[2028/29 Total change]]","v":102},{"$f":"Dataset[[#This Row],[2029/30 Baseline]]+Dataset[[#This Row],[2029/30 Total change]]","v":105}]
["NAT|Non-transfer","30|Communication (G&S)","2027_28","MTEC2027",30,4,4,33044,524,"30","04","04","033044","000524","30|04|04|000524","01","01","02","09","09","01|01|02|09|09","National","Communications and Digital Technologies","Digital Communication, Access and Services","Digital Enterprise Development and Small, Medium and Micro Enterprise Support","Non-transfer","Current","Current payments","Goods and services","Communication (G&S)","Communication (G&S)","Economic development","Economic regulation and infrastructure","NAT",135,118,100,86,86,86,0,130,121,125,129,null,null,null,null,null,null,null,null,null,null,null,null,null,null,null,null,null,null,null,null,null,null,null,null,null,null,null,null,null,null,null,null,null,null,{"$f":"Dataset[[#This Row],[2027/28 From - Spending review Topic 1]]+Dataset[[#This Row],[2027/28 From - Spending review Topic 2]]+Dataset[[#This Row],[2027/28 From - Spending review Topic 3]]+Dataset[[#This Row],[2027/28 From - Spending review Topic 4]]+Dataset[[#This Row],[2027/28 From - Other reallocations]]","v":0},{"$f":"Dataset[[#This Row],[2028/29 From - Spending review Topic 1]]+Dataset[[#This Row],[2028/29 From - Spending review Topic 2]]+Dataset[[#This Row],[2028/29 From - Spending review Topic 3]]+Dataset[[#This Row],[2028/29 From - Spending review Topic 4]]+Dataset[[#This Row],[2028/29 From - Other reallocations]]","v":0},{"$f":"Dataset[[#This Row],[2029/30 From - Spending review Topic 1]]+Dataset[[#This Row],[2029/30 From - Spending review Topic 2]]+Dataset[[#This Row],[2029/30 From - Spending review Topic 3]]+Dataset[[#This Row],[2029/30 From - Spending review Topic 4]]+Dataset[[#This Row],[2029/30 From - Other reallocations]]","v":0},{"$f":"Dataset[[#This Row],[2027/28 To - Spending review Topic 1]]+Dataset[[#This Row],[2027/28 To - Spending review Topic 2]]+Dataset[[#This Row],[2027/28 To - Spending review Topic 3]]+Dataset[[#This Row],[2027/28 To - Spending review Topic 4]]+Dataset[[#This Row],[2027/28 To - Other reallocations]]","v":0},{"$f":"Dataset[[#This Row],[2028/29 To - Spending review Topic 1]]+Dataset[[#This Row],[2028/29 To - Spending review Topic 2]]+Dataset[[#This Row],[2028/29 To - Spending review Topic 3]]+Dataset[[#This Row],[2028/29 To - Spending review Topic 4]]+Dataset[[#This Row],[2028/29 To - Other reallocations]]","v":0},{"$f":"Dataset[[#This Row],[2029/30 To - Spending review Topic 1]]+Dataset[[#This Row],[2029/30 To - Spending review Topic 2]]+Dataset[[#This Row],[2029/30 To - Spending review Topic 3]]+Dataset[[#This Row],[2029/30 To - Spending review Topic 4]]+Dataset[[#This Row],[2029/30 To - Other reallocations]]","v":0},{"$f":"Dataset[[#This Row],[2027/28 Targeted savings]]+Dataset[[#This Row],[2027/28 From - Total]]","v":0},{"$f":"Dataset[[#This Row],[2028/29 Targeted savings]]+Dataset[[#This Row],[2028/29 From - Total]]","v":0},{"$f":"Dataset[[#This Row],[2029/30 Targeted savings]]+Dataset[[#This Row],[2029/30 From - Total]]","v":0},{"$f":"Dataset[[#This Row],[2026/27 Targeted savings]]","v":0},{"$f":"SUM(Dataset[[#This Row],[2027/28 Targeted savings]],Dataset[[#This Row],[2027/28 From - Total]],Dataset[[#This Row],[2027/28 To - Total]])","v":0},{"$f":"SUM(Dataset[[#This Row],[2028/29 Targeted savings]],Dataset[[#This Row],[2028/29 From - Total]],Dataset[[#This Row],[2028/29 To - Total]])","v":0},{"$f":"SUM(Dataset[[#This Row],[2029/30 Targeted savings]],Dataset[[#This Row],[2029/30 From - Total]],Dataset[[#This Row],[2029/30 To - Total]])","v":0},{"$f":"Dataset[[#This Row],[2026/27 Baseline]]+Dataset[[#This Row],[2026/27 Total change]]","v":130},{"$f":"Dataset[[#This Row],[2027/28 Baseline]]+Dataset[[#This Row],[2027/28 Total change]]","v":121},{"$f":"Dataset[[#This Row],[2028/29 Baseline]]+Dataset[[#This Row],[2028/29 Total change]]","v":125},{"$f":"Dataset[[#This Row],[2029/30 Baseline]]+Dataset[[#This Row],[2029/30 Total change]]","v":129}]
["NAT|Non-transfer","30|Computer services","2027_28","MTEC2027",30,4,4,33045,525,"30","04","04","033045","000525","30|04|04|000525","01","01","02","10","10","01|01|02|10|10","National","Communications and Digital Technologies","Digital Communication, Access and Services","Digital Enterprise Development and Small, Medium and Micro Enterprise Support","Non-transfer","Current","Current payments","Goods and services","Computer services","Computer services","Economic development","Economic regulation and infrastructure","NAT",0,400,0,50,0,0,0,100,178,184,190,null,null,null,null,null,null,null,null,null,null,null,null,null,null,null,null,null,null,null,null,null,null,null,null,null,null,null,null,null,null,null,null,null,null,{"$f":"Dataset[[#This Row],[2027/28 From - Spending review Topic 1]]+Dataset[[#This Row],[2027/28 From - Spending review Topic 2]]+Dataset[[#This Row],[2027/28 From - Spending review Topic 3]]+Dataset[[#This Row],[2027/28 From - Spending review Topic 4]]+Dataset[[#This Row],[2027/28 From - Other reallocations]]","v":0},{"$f":"Dataset[[#This Row],[2028/29 From - Spending review Topic 1]]+Dataset[[#This Row],[2028/29 From - Spending review Topic 2]]+Dataset[[#This Row],[2028/29 From - Spending review Topic 3]]+Dataset[[#This Row],[2028/29 From - Spending review Topic 4]]+Dataset[[#This Row],[2028/29 From - Other reallocations]]","v":0},{"$f":"Dataset[[#This Row],[2029/30 From - Spending review Topic 1]]+Dataset[[#This Row],[2029/30 From - Spending review Topic 2]]+Dataset[[#This Row],[2029/30 From - Spending review Topic 3]]+Dataset[[#This Row],[2029/30 From - Spending review Topic 4]]+Dataset[[#This Row],[2029/30 From - Other reallocations]]","v":0},{"$f":"Dataset[[#This Row],[2027/28 To - Spending review Topic 1]]+Dataset[[#This Row],[2027/28 To - Spending review Topic 2]]+Dataset[[#This Row],[2027/28 To - Spending review Topic 3]]+Dataset[[#This Row],[2027/28 To - Spending review Topic 4]]+Dataset[[#This Row],[2027/28 To - Other reallocations]]","v":0},{"$f":"Dataset[[#This Row],[2028/29 To - Spending review Topic 1]]+Dataset[[#This Row],[2028/29 To - Spending review Topic 2]]+Dataset[[#This Row],[2028/29 To - Spending review Topic 3]]+Dataset[[#This Row],[2028/29 To - Spending review Topic 4]]+Dataset[[#This Row],[2028/29 To - Other reallocations]]","v":0},{"$f":"Dataset[[#This Row],[2029/30 To - Spending review Topic 1]]+Dataset[[#This Row],[2029/30 To - Spending review Topic 2]]+Dataset[[#This Row],[2029/30 To - Spending review Topic 3]]+Dataset[[#This Row],[2029/30 To - Spending review Topic 4]]+Dataset[[#This Row],[2029/30 To - Other reallocations]]","v":0},{"$f":"Dataset[[#This Row],[2027/28 Targeted savings]]+Dataset[[#This Row],[2027/28 From - Total]]","v":0},{"$f":"Dataset[[#This Row],[2028/29 Targeted savings]]+Dataset[[#This Row],[2028/29 From - Total]]","v":0},{"$f":"Dataset[[#This Row],[2029/30 Targeted savings]]+Dataset[[#This Row],[2029/30 From - Total]]","v":0},{"$f":"Dataset[[#This Row],[2026/27 Targeted savings]]","v":0},{"$f":"SUM(Dataset[[#This Row],[2027/28 Targeted savings]],Dataset[[#This Row],[2027/28 From - Total]],Dataset[[#This Row],[2027/28 To - Total]])","v":0},{"$f":"SUM(Dataset[[#This Row],[2028/29 Targeted savings]],Dataset[[#This Row],[2028/29 From - Total]],Dataset[[#This Row],[2028/29 To - Total]])","v":0},{"$f":"SUM(Dataset[[#This Row],[2029/30 Targeted savings]],Dataset[[#This Row],[2029/30 From - Total]],Dataset[[#This Row],[2029/30 To - Total]])","v":0},{"$f":"Dataset[[#This Row],[2026/27 Baseline]]+Dataset[[#This Row],[2026/27 Total change]]","v":100},{"$f":"Dataset[[#This Row],[2027/28 Baseline]]+Dataset[[#This Row],[2027/28 Total change]]","v":178},{"$f":"Dataset[[#This Row],[2028/29 Baseline]]+Dataset[[#This Row],[2028/29 Total change]]","v":184},{"$f":"Dataset[[#This Row],[2029/30 Baseline]]+Dataset[[#This Row],[2029/30 Total change]]","v":190}]
["NAT|Non-transfer","30|Consultants: Business and advisory services","2027_28","MTEC2027",30,4,4,33046,526,"30","04","04","033046","000526","30|04|04|000526","01","01","02","11","11","01|01|02|11|11","National","Communications and Digital Technologies","Digital Communication, Access and Services","Digital Enterprise Development and Small, Medium and Micro Enterprise Support","Non-transfer","Current","Current payments","Goods and services","Consultants: Business and advisory services","Consultants: Business and advisory services","Economic development","Economic regulation and infrastructure","NAT",0,0,0,250,150,150,0,0,264,687,708,null,null,null,null,null,null,null,null,null,null,null,null,null,null,null,null,null,null,null,null,null,null,null,null,null,null,null,null,null,null,null,null,null,null,{"$f":"Dataset[[#This Row],[2027/28 From - Spending review Topic 1]]+Dataset[[#This Row],[2027/28 From - Spending review Topic 2]]+Dataset[[#This Row],[2027/28 From - Spending review Topic 3]]+Dataset[[#This Row],[2027/28 From - Spending review Topic 4]]+Dataset[[#This Row],[2027/28 From - Other reallocations]]","v":0},{"$f":"Dataset[[#This Row],[2028/29 From - Spending review Topic 1]]+Dataset[[#This Row],[2028/29 From - Spending review Topic 2]]+Dataset[[#This Row],[2028/29 From - Spending review Topic 3]]+Dataset[[#This Row],[2028/29 From - Spending review Topic 4]]+Dataset[[#This Row],[2028/29 From - Other reallocations]]","v":0},{"$f":"Dataset[[#This Row],[2029/30 From - Spending review Topic 1]]+Dataset[[#This Row],[2029/30 From - Spending review Topic 2]]+Dataset[[#This Row],[2029/30 From - Spending review Topic 3]]+Dataset[[#This Row],[2029/30 From - Spending review Topic 4]]+Dataset[[#This Row],[2029/30 From - Other reallocations]]","v":0},{"$f":"Dataset[[#This Row],[2027/28 To - Spending review Topic 1]]+Dataset[[#This Row],[2027/28 To - Spending review Topic 2]]+Dataset[[#This Row],[2027/28 To - Spending review Topic 3]]+Dataset[[#This Row],[2027/28 To - Spending review Topic 4]]+Dataset[[#This Row],[2027/28 To - Other reallocations]]","v":0},{"$f":"Dataset[[#This Row],[2028/29 To - Spending review Topic 1]]+Dataset[[#This Row],[2028/29 To - Spending review Topic 2]]+Dataset[[#This Row],[2028/29 To - Spending review Topic 3]]+Dataset[[#This Row],[2028/29 To - Spending review Topic 4]]+Dataset[[#This Row],[2028/29 To - Other reallocations]]","v":0},{"$f":"Dataset[[#This Row],[2029/30 To - Spending review Topic 1]]+Dataset[[#This Row],[2029/30 To - Spending review Topic 2]]+Dataset[[#This Row],[2029/30 To - Spending review Topic 3]]+Dataset[[#This Row],[2029/30 To - Spending review Topic 4]]+Dataset[[#This Row],[2029/30 To - Other reallocations]]","v":0},{"$f":"Dataset[[#This Row],[2027/28 Targeted savings]]+Dataset[[#This Row],[2027/28 From - Total]]","v":0},{"$f":"Dataset[[#This Row],[2028/29 Targeted savings]]+Dataset[[#This Row],[2028/29 From - Total]]","v":0},{"$f":"Dataset[[#This Row],[2029/30 Targeted savings]]+Dataset[[#This Row],[2029/30 From - Total]]","v":0},{"$f":"Dataset[[#This Row],[2026/27 Targeted savings]]","v":0},{"$f":"SUM(Dataset[[#This Row],[2027/28 Targeted savings]],Dataset[[#This Row],[2027/28 From - Total]],Dataset[[#This Row],[2027/28 To - Total]])","v":0},{"$f":"SUM(Dataset[[#This Row],[2028/29 Targeted savings]],Dataset[[#This Row],[2028/29 From - Total]],Dataset[[#This Row],[2028/29 To - Total]])","v":0},{"$f":"SUM(Dataset[[#This Row],[2029/30 Targeted savings]],Dataset[[#This Row],[2029/30 From - Total]],Dataset[[#This Row],[2029/30 To - Total]])","v":0},{"$f":"Dataset[[#This Row],[2026/27 Baseline]]+Dataset[[#This Row],[2026/27 Total change]]","v":0},{"$f":"Dataset[[#This Row],[2027/28 Baseline]]+Dataset[[#This Row],[2027/28 Total change]]","v":264},{"$f":"Dataset[[#This Row],[2028/29 Baseline]]+Dataset[[#This Row],[2028/29 Total change]]","v":687},{"$f":"Dataset[[#This Row],[2029/30 Baseline]]+Dataset[[#This Row],[2029/30 Total change]]","v":708}]
["NAT|Non-transfer","30|Entertainment","2027_28","MTEC2027",30,4,4,33047,527,"30","04","04","033047","000527","30|04|04|000527","01","01","02","18","18","01|01|02|18|18","National","Communications and Digital Technologies","Digital Communication, Access and Services","Digital Enterprise Development and Small, Medium and Micro Enterprise Support","Non-transfer","Current","Current payments","Goods and services","Entertainment","Entertainment","Economic development","Economic regulation and infrastructure","NAT",0,0,0,0,0,0,0,0,4,4,4,null,null,null,null,null,null,null,null,null,null,null,null,null,null,null,null,null,null,null,null,null,null,null,null,null,null,null,null,null,null,null,null,null,null,{"$f":"Dataset[[#This Row],[2027/28 From - Spending review Topic 1]]+Dataset[[#This Row],[2027/28 From - Spending review Topic 2]]+Dataset[[#This Row],[2027/28 From - Spending review Topic 3]]+Dataset[[#This Row],[2027/28 From - Spending review Topic 4]]+Dataset[[#This Row],[2027/28 From - Other reallocations]]","v":0},{"$f":"Dataset[[#This Row],[2028/29 From - Spending review Topic 1]]+Dataset[[#This Row],[2028/29 From - Spending review Topic 2]]+Dataset[[#This Row],[2028/29 From - Spending review Topic 3]]+Dataset[[#This Row],[2028/29 From - Spending review Topic 4]]+Dataset[[#This Row],[2028/29 From - Other reallocations]]","v":0},{"$f":"Dataset[[#This Row],[2029/30 From - Spending review Topic 1]]+Dataset[[#This Row],[2029/30 From - Spending review Topic 2]]+Dataset[[#This Row],[2029/30 From - Spending review Topic 3]]+Dataset[[#This Row],[2029/30 From - Spending review Topic 4]]+Dataset[[#This Row],[2029/30 From - Other reallocations]]","v":0},{"$f":"Dataset[[#This Row],[2027/28 To - Spending review Topic 1]]+Dataset[[#This Row],[2027/28 To - Spending review Topic 2]]+Dataset[[#This Row],[2027/28 To - Spending review Topic 3]]+Dataset[[#This Row],[2027/28 To - Spending review Topic 4]]+Dataset[[#This Row],[2027/28 To - Other reallocations]]","v":0},{"$f":"Dataset[[#This Row],[2028/29 To - Spending review Topic 1]]+Dataset[[#This Row],[2028/29 To - Spending review Topic 2]]+Dataset[[#This Row],[2028/29 To - Spending review Topic 3]]+Dataset[[#This Row],[2028/29 To - Spending review Topic 4]]+Dataset[[#This Row],[2028/29 To - Other reallocations]]","v":0},{"$f":"Dataset[[#This Row],[2029/30 To - Spending review Topic 1]]+Dataset[[#This Row],[2029/30 To - Spending review Topic 2]]+Dataset[[#This Row],[2029/30 To - Spending review Topic 3]]+Dataset[[#This Row],[2029/30 To - Spending review Topic 4]]+Dataset[[#This Row],[2029/30 To - Other reallocations]]","v":0},{"$f":"Dataset[[#This Row],[2027/28 Targeted savings]]+Dataset[[#This Row],[2027/28 From - Total]]","v":0},{"$f":"Dataset[[#This Row],[2028/29 Targeted savings]]+Dataset[[#This Row],[2028/29 From - Total]]","v":0},{"$f":"Dataset[[#This Row],[2029/30 Targeted savings]]+Dataset[[#This Row],[2029/30 From - Total]]","v":0},{"$f":"Dataset[[#This Row],[2026/27 Targeted savings]]","v":0},{"$f":"SUM(Dataset[[#This Row],[2027/28 Targeted savings]],Dataset[[#This Row],[2027/28 From - Total]],Dataset[[#This Row],[2027/28 To - Total]])","v":0},{"$f":"SUM(Dataset[[#This Row],[2028/29 Targeted savings]],Dataset[[#This Row],[2028/29 From - Total]],Dataset[[#This Row],[2028/29 To - Total]])","v":0},{"$f":"SUM(Dataset[[#This Row],[2029/30 Targeted savings]],Dataset[[#This Row],[2029/30 From - Total]],Dataset[[#This Row],[2029/30 To - Total]])","v":0},{"$f":"Dataset[[#This Row],[2026/27 Baseline]]+Dataset[[#This Row],[2026/27 Total change]]","v":0},{"$f":"Dataset[[#This Row],[2027/28 Baseline]]+Dataset[[#This Row],[2027/28 Total change]]","v":4},{"$f":"Dataset[[#This Row],[2028/29 Baseline]]+Dataset[[#This Row],[2028/29 Total change]]","v":4},{"$f":"Dataset[[#This Row],[2029/30 Baseline]]+Dataset[[#This Row],[2029/30 Total change]]","v":4}]
["NAT|Non-transfer","30|Consumable supplies","2027_28","MTEC2027",30,4,4,33048,528,"30","04","04","033048","000528","30|04|04|000528","01","01","02","31","31","01|01|02|31|31","National","Communications and Digital Technologies","Digital Communication, Access and Services","Digital Enterprise Development and Small, Medium and Micro Enterprise Support","Non-transfer","Current","Current payments","Goods and services","Consumable supplies","Consumable supplies","Economic development","Economic regulation and infrastructure","NAT",1,2,2,0,2,2,0,0,0,0,0,null,null,null,null,null,null,null,null,null,null,null,null,null,null,null,null,null,null,null,null,null,null,null,null,null,null,null,null,null,null,null,null,null,null,{"$f":"Dataset[[#This Row],[2027/28 From - Spending review Topic 1]]+Dataset[[#This Row],[2027/28 From - Spending review Topic 2]]+Dataset[[#This Row],[2027/28 From - Spending review Topic 3]]+Dataset[[#This Row],[2027/28 From - Spending review Topic 4]]+Dataset[[#This Row],[2027/28 From - Other reallocations]]","v":0},{"$f":"Dataset[[#This Row],[2028/29 From - Spending review Topic 1]]+Dataset[[#This Row],[2028/29 From - Spending review Topic 2]]+Dataset[[#This Row],[2028/29 From - Spending review Topic 3]]+Dataset[[#This Row],[2028/29 From - Spending review Topic 4]]+Dataset[[#This Row],[2028/29 From - Other reallocations]]","v":0},{"$f":"Dataset[[#This Row],[2029/30 From - Spending review Topic 1]]+Dataset[[#This Row],[2029/30 From - Spending review Topic 2]]+Dataset[[#This Row],[2029/30 From - Spending review Topic 3]]+Dataset[[#This Row],[2029/30 From - Spending review Topic 4]]+Dataset[[#This Row],[2029/30 From - Other reallocations]]","v":0},{"$f":"Dataset[[#This Row],[2027/28 To - Spending review Topic 1]]+Dataset[[#This Row],[2027/28 To - Spending review Topic 2]]+Dataset[[#This Row],[2027/28 To - Spending review Topic 3]]+Dataset[[#This Row],[2027/28 To - Spending review Topic 4]]+Dataset[[#This Row],[2027/28 To - Other reallocations]]","v":0},{"$f":"Dataset[[#This Row],[2028/29 To - Spending review Topic 1]]+Dataset[[#This Row],[2028/29 To - Spending review Topic 2]]+Dataset[[#This Row],[2028/29 To - Spending review Topic 3]]+Dataset[[#This Row],[2028/29 To - Spending review Topic 4]]+Dataset[[#This Row],[2028/29 To - Other reallocations]]","v":0},{"$f":"Dataset[[#This Row],[2029/30 To - Spending review Topic 1]]+Dataset[[#This Row],[2029/30 To - Spending review Topic 2]]+Dataset[[#This Row],[2029/30 To - Spending review Topic 3]]+Dataset[[#This Row],[2029/30 To - Spending review Topic 4]]+Dataset[[#This Row],[2029/30 To - Other reallocations]]","v":0},{"$f":"Dataset[[#This Row],[2027/28 Targeted savings]]+Dataset[[#This Row],[2027/28 From - Total]]","v":0},{"$f":"Dataset[[#This Row],[2028/29 Targeted savings]]+Dataset[[#This Row],[2028/29 From - Total]]","v":0},{"$f":"Dataset[[#This Row],[2029/30 Targeted savings]]+Dataset[[#This Row],[2029/30 From - Total]]","v":0},{"$f":"Dataset[[#This Row],[2026/27 Targeted savings]]","v":0},{"$f":"SUM(Dataset[[#This Row],[2027/28 Targeted savings]],Dataset[[#This Row],[2027/28 From - Total]],Dataset[[#This Row],[2027/28 To - Total]])","v":0},{"$f":"SUM(Dataset[[#This Row],[2028/29 Targeted savings]],Dataset[[#This Row],[2028/29 From - Total]],Dataset[[#This Row],[2028/29 To - Total]])","v":0},{"$f":"SUM(Dataset[[#This Row],[2029/30 Targeted savings]],Dataset[[#This Row],[2029/30 From - Total]],Dataset[[#This Row],[2029/30 To - Total]])","v":0},{"$f":"Dataset[[#This Row],[2026/27 Baseline]]+Dataset[[#This Row],[2026/27 Total change]]","v":0},{"$f":"Dataset[[#This Row],[2027/28 Baseline]]+Dataset[[#This Row],[2027/28 Total change]]","v":0},{"$f":"Dataset[[#This Row],[2028/29 Baseline]]+Dataset[[#This Row],[2028/29 Total change]]","v":0},{"$f":"Dataset[[#This Row],[2029/30 Baseline]]+Dataset[[#This Row],[2029/30 Total change]]","v":0}]
["NAT|Non-transfer","30|Consumables: Stationery, printing and office supplies","2027_28","MTEC2027",30,4,4,33049,529,"30","04","04","033049","000529","30|04|04|000529","01","01","02","32","32","01|01|02|32|32","National","Communications and Digital Technologies","Digital Communication, Access and Services","Digital Enterprise Development and Small, Medium and Micro Enterprise Support","Non-transfer","Current","Current payments","Goods and services","Consumables: Stationery, printing and office supplies","Consumables: Stationery, printing and office supplies","Economic development","Economic regulation and infrastructure","NAT",7,10,0,14,14,14,0,8,9,9,9,null,null,null,null,null,null,null,null,null,null,null,null,null,null,null,null,null,null,null,null,null,null,null,null,null,null,null,null,null,null,null,null,null,null,{"$f":"Dataset[[#This Row],[2027/28 From - Spending review Topic 1]]+Dataset[[#This Row],[2027/28 From - Spending review Topic 2]]+Dataset[[#This Row],[2027/28 From - Spending review Topic 3]]+Dataset[[#This Row],[2027/28 From - Spending review Topic 4]]+Dataset[[#This Row],[2027/28 From - Other reallocations]]","v":0},{"$f":"Dataset[[#This Row],[2028/29 From - Spending review Topic 1]]+Dataset[[#This Row],[2028/29 From - Spending review Topic 2]]+Dataset[[#This Row],[2028/29 From - Spending review Topic 3]]+Dataset[[#This Row],[2028/29 From - Spending review Topic 4]]+Dataset[[#This Row],[2028/29 From - Other reallocations]]","v":0},{"$f":"Dataset[[#This Row],[2029/30 From - Spending review Topic 1]]+Dataset[[#This Row],[2029/30 From - Spending review Topic 2]]+Dataset[[#This Row],[2029/30 From - Spending review Topic 3]]+Dataset[[#This Row],[2029/30 From - Spending review Topic 4]]+Dataset[[#This Row],[2029/30 From - Other reallocations]]","v":0},{"$f":"Dataset[[#This Row],[2027/28 To - Spending review Topic 1]]+Dataset[[#This Row],[2027/28 To - Spending review Topic 2]]+Dataset[[#This Row],[2027/28 To - Spending review Topic 3]]+Dataset[[#This Row],[2027/28 To - Spending review Topic 4]]+Dataset[[#This Row],[2027/28 To - Other reallocations]]","v":0},{"$f":"Dataset[[#This Row],[2028/29 To - Spending review Topic 1]]+Dataset[[#This Row],[2028/29 To - Spending review Topic 2]]+Dataset[[#This Row],[2028/29 To - Spending review Topic 3]]+Dataset[[#This Row],[2028/29 To - Spending review Topic 4]]+Dataset[[#This Row],[2028/29 To - Other reallocations]]","v":0},{"$f":"Dataset[[#This Row],[2029/30 To - Spending review Topic 1]]+Dataset[[#This Row],[2029/30 To - Spending review Topic 2]]+Dataset[[#This Row],[2029/30 To - Spending review Topic 3]]+Dataset[[#This Row],[2029/30 To - Spending review Topic 4]]+Dataset[[#This Row],[2029/30 To - Other reallocations]]","v":0},{"$f":"Dataset[[#This Row],[2027/28 Targeted savings]]+Dataset[[#This Row],[2027/28 From - Total]]","v":0},{"$f":"Dataset[[#This Row],[2028/29 Targeted savings]]+Dataset[[#This Row],[2028/29 From - Total]]","v":0},{"$f":"Dataset[[#This Row],[2029/30 Targeted savings]]+Dataset[[#This Row],[2029/30 From - Total]]","v":0},{"$f":"Dataset[[#This Row],[2026/27 Targeted savings]]","v":0},{"$f":"SUM(Dataset[[#This Row],[2027/28 Targeted savings]],Dataset[[#This Row],[2027/28 From - Total]],Dataset[[#This Row],[2027/28 To - Total]])","v":0},{"$f":"SUM(Dataset[[#This Row],[2028/29 Targeted savings]],Dataset[[#This Row],[2028/29 From - Total]],Dataset[[#This Row],[2028/29 To - Total]])","v":0},{"$f":"SUM(Dataset[[#This Row],[2029/30 Targeted savings]],Dataset[[#This Row],[2029/30 From - Total]],Dataset[[#This Row],[2029/30 To - Total]])","v":0},{"$f":"Dataset[[#This Row],[2026/27 Baseline]]+Dataset[[#This Row],[2026/27 Total change]]","v":8},{"$f":"Dataset[[#This Row],[2027/28 Baseline]]+Dataset[[#This Row],[2027/28 Total change]]","v":9},{"$f":"Dataset[[#This Row],[2028/29 Baseline]]+Dataset[[#This Row],[2028/29 Total change]]","v":9},{"$f":"Dataset[[#This Row],[2029/30 Baseline]]+Dataset[[#This Row],[2029/30 Total change]]","v":9}]
["NAT|Non-transfer","30|Travel and subsistence","2027_28","MTEC2027",30,4,4,33050,530,"30","04","04","033050","000530","30|04|04|000530","01","01","02","37","37","01|01|02|37|37","National","Communications and Digital Technologies","Digital Communication, Access and Services","Digital Enterprise Development and Small, Medium and Micro Enterprise Support","Non-transfer","Current","Current payments","Goods and services","Travel and subsistence","Travel and subsistence","Economic development","Economic regulation and infrastructure","NAT",346,422,485,356,376,376,0,319,580,598,616,null,null,null,null,null,null,null,null,null,null,null,null,null,null,null,null,null,null,null,null,null,null,null,null,null,null,null,null,null,null,null,null,null,null,{"$f":"Dataset[[#This Row],[2027/28 From - Spending review Topic 1]]+Dataset[[#This Row],[2027/28 From - Spending review Topic 2]]+Dataset[[#This Row],[2027/28 From - Spending review Topic 3]]+Dataset[[#This Row],[2027/28 From - Spending review Topic 4]]+Dataset[[#This Row],[2027/28 From - Other reallocations]]","v":0},{"$f":"Dataset[[#This Row],[2028/29 From - Spending review Topic 1]]+Dataset[[#This Row],[2028/29 From - Spending review Topic 2]]+Dataset[[#This Row],[2028/29 From - Spending review Topic 3]]+Dataset[[#This Row],[2028/29 From - Spending review Topic 4]]+Dataset[[#This Row],[2028/29 From - Other reallocations]]","v":0},{"$f":"Dataset[[#This Row],[2029/30 From - Spending review Topic 1]]+Dataset[[#This Row],[2029/30 From - Spending review Topic 2]]+Dataset[[#This Row],[2029/30 From - Spending review Topic 3]]+Dataset[[#This Row],[2029/30 From - Spending review Topic 4]]+Dataset[[#This Row],[2029/30 From - Other reallocations]]","v":0},{"$f":"Dataset[[#This Row],[2027/28 To - Spending review Topic 1]]+Dataset[[#This Row],[2027/28 To - Spending review Topic 2]]+Dataset[[#This Row],[2027/28 To - Spending review Topic 3]]+Dataset[[#This Row],[2027/28 To - Spending review Topic 4]]+Dataset[[#This Row],[2027/28 To - Other reallocations]]","v":0},{"$f":"Dataset[[#This Row],[2028/29 To - Spending review Topic 1]]+Dataset[[#This Row],[2028/29 To - Spending review Topic 2]]+Dataset[[#This Row],[2028/29 To - Spending review Topic 3]]+Dataset[[#This Row],[2028/29 To - Spending review Topic 4]]+Dataset[[#This Row],[2028/29 To - Other reallocations]]","v":0},{"$f":"Dataset[[#This Row],[2029/30 To - Spending review Topic 1]]+Dataset[[#This Row],[2029/30 To - Spending review Topic 2]]+Dataset[[#This Row],[2029/30 To - Spending review Topic 3]]+Dataset[[#This Row],[2029/30 To - Spending review Topic 4]]+Dataset[[#This Row],[2029/30 To - Other reallocations]]","v":0},{"$f":"Dataset[[#This Row],[2027/28 Targeted savings]]+Dataset[[#This Row],[2027/28 From - Total]]","v":0},{"$f":"Dataset[[#This Row],[2028/29 Targeted savings]]+Dataset[[#This Row],[2028/29 From - Total]]","v":0},{"$f":"Dataset[[#This Row],[2029/30 Targeted savings]]+Dataset[[#This Row],[2029/30 From - Total]]","v":0},{"$f":"Dataset[[#This Row],[2026/27 Targeted savings]]","v":0},{"$f":"SUM(Dataset[[#This Row],[2027/28 Targeted savings]],Dataset[[#This Row],[2027/28 From - Total]],Dataset[[#This Row],[2027/28 To - Total]])","v":0},{"$f":"SUM(Dataset[[#This Row],[2028/29 Targeted savings]],Dataset[[#This Row],[2028/29 From - Total]],Dataset[[#This Row],[2028/29 To - Total]])","v":0},{"$f":"SUM(Dataset[[#This Row],[2029/30 Targeted savings]],Dataset[[#This Row],[2029/30 From - Total]],Dataset[[#This Row],[2029/30 To - Total]])","v":0},{"$f":"Dataset[[#This Row],[2026/27 Baseline]]+Dataset[[#This Row],[2026/27 Total change]]","v":319},{"$f":"Dataset[[#This Row],[2027/28 Baseline]]+Dataset[[#This Row],[2027/28 Total change]]","v":580},{"$f":"Dataset[[#This Row],[2028/29 Baseline]]+Dataset[[#This Row],[2028/29 Total change]]","v":598},{"$f":"Dataset[[#This Row],[2029/30 Baseline]]+Dataset[[#This Row],[2029/30 Total change]]","v":616}]
["NAT|Non-transfer","30|Training and development","2027_28","MTEC2027",30,4,4,33051,531,"30","04","04","033051","000531","30|04|04|000531","01","01","02","38","38","01|01|02|38|38","National","Communications and Digital Technologies","Digital Communication, Access and Services","Digital Enterprise Development and Small, Medium and Micro Enterprise Support","Non-transfer","Current","Current payments","Goods and services","Training and development","Training and development","Economic development","Economic regulation and infrastructure","NAT",32,17,0,15,15,15,0,8,0,0,0,null,null,null,null,null,null,null,null,null,null,null,null,null,null,null,null,null,null,null,null,null,null,null,null,null,null,null,null,null,null,null,null,null,null,{"$f":"Dataset[[#This Row],[2027/28 From - Spending review Topic 1]]+Dataset[[#This Row],[2027/28 From - Spending review Topic 2]]+Dataset[[#This Row],[2027/28 From - Spending review Topic 3]]+Dataset[[#This Row],[2027/28 From - Spending review Topic 4]]+Dataset[[#This Row],[2027/28 From - Other reallocations]]","v":0},{"$f":"Dataset[[#This Row],[2028/29 From - Spending review Topic 1]]+Dataset[[#This Row],[2028/29 From - Spending review Topic 2]]+Dataset[[#This Row],[2028/29 From - Spending review Topic 3]]+Dataset[[#This Row],[2028/29 From - Spending review Topic 4]]+Dataset[[#This Row],[2028/29 From - Other reallocations]]","v":0},{"$f":"Dataset[[#This Row],[2029/30 From - Spending review Topic 1]]+Dataset[[#This Row],[2029/30 From - Spending review Topic 2]]+Dataset[[#This Row],[2029/30 From - Spending review Topic 3]]+Dataset[[#This Row],[2029/30 From - Spending review Topic 4]]+Dataset[[#This Row],[2029/30 From - Other reallocations]]","v":0},{"$f":"Dataset[[#This Row],[2027/28 To - Spending review Topic 1]]+Dataset[[#This Row],[2027/28 To - Spending review Topic 2]]+Dataset[[#This Row],[2027/28 To - Spending review Topic 3]]+Dataset[[#This Row],[2027/28 To - Spending review Topic 4]]+Dataset[[#This Row],[2027/28 To - Other reallocations]]","v":0},{"$f":"Dataset[[#This Row],[2028/29 To - Spending review Topic 1]]+Dataset[[#This Row],[2028/29 To - Spending review Topic 2]]+Dataset[[#This Row],[2028/29 To - Spending review Topic 3]]+Dataset[[#This Row],[2028/29 To - Spending review Topic 4]]+Dataset[[#This Row],[2028/29 To - Other reallocations]]","v":0},{"$f":"Dataset[[#This Row],[2029/30 To - Spending review Topic 1]]+Dataset[[#This Row],[2029/30 To - Spending review Topic 2]]+Dataset[[#This Row],[2029/30 To - Spending review Topic 3]]+Dataset[[#This Row],[2029/30 To - Spending review Topic 4]]+Dataset[[#This Row],[2029/30 To - Other reallocations]]","v":0},{"$f":"Dataset[[#This Row],[2027/28 Targeted savings]]+Dataset[[#This Row],[2027/28 From - Total]]","v":0},{"$f":"Dataset[[#This Row],[2028/29 Targeted savings]]+Dataset[[#This Row],[2028/29 From - Total]]","v":0},{"$f":"Dataset[[#This Row],[2029/30 Targeted savings]]+Dataset[[#This Row],[2029/30 From - Total]]","v":0},{"$f":"Dataset[[#This Row],[2026/27 Targeted savings]]","v":0},{"$f":"SUM(Dataset[[#This Row],[2027/28 Targeted savings]],Dataset[[#This Row],[2027/28 From - Total]],Dataset[[#This Row],[2027/28 To - Total]])","v":0},{"$f":"SUM(Dataset[[#This Row],[2028/29 Targeted savings]],Dataset[[#This Row],[2028/29 From - Total]],Dataset[[#This Row],[2028/29 To - Total]])","v":0},{"$f":"SUM(Dataset[[#This Row],[2029/30 Targeted savings]],Dataset[[#This Row],[2029/30 From - Total]],Dataset[[#This Row],[2029/30 To - Total]])","v":0},{"$f":"Dataset[[#This Row],[2026/27 Baseline]]+Dataset[[#This Row],[2026/27 Total change]]","v":8},{"$f":"Dataset[[#This Row],[2027/28 Baseline]]+Dataset[[#This Row],[2027/28 Total change]]","v":0},{"$f":"Dataset[[#This Row],[2028/29 Baseline]]+Dataset[[#This Row],[2028/29 Total change]]","v":0},{"$f":"Dataset[[#This Row],[2029/30 Baseline]]+Dataset[[#This Row],[2029/30 Total change]]","v":0}]
["NAT|Non-transfer","30|Operating payments","2027_28","MTEC2027",30,4,4,33052,532,"30","04","04","033052","000532","30|04|04|000532","01","01","02","39","39","01|01|02|39|39","National","Communications and Digital Technologies","Digital Communication, Access and Services","Digital Enterprise Development and Small, Medium and Micro Enterprise Support","Non-transfer","Current","Current payments","Goods and services","Operating payments","Operating payments","Economic development","Economic regulation and infrastructure","NAT",0,32,0,0,0,0,0,0,0,0,0,null,null,null,null,null,null,null,null,null,null,null,null,null,null,null,null,null,null,null,null,null,null,null,null,null,null,null,null,null,null,null,null,null,null,{"$f":"Dataset[[#This Row],[2027/28 From - Spending review Topic 1]]+Dataset[[#This Row],[2027/28 From - Spending review Topic 2]]+Dataset[[#This Row],[2027/28 From - Spending review Topic 3]]+Dataset[[#This Row],[2027/28 From - Spending review Topic 4]]+Dataset[[#This Row],[2027/28 From - Other reallocations]]","v":0},{"$f":"Dataset[[#This Row],[2028/29 From - Spending review Topic 1]]+Dataset[[#This Row],[2028/29 From - Spending review Topic 2]]+Dataset[[#This Row],[2028/29 From - Spending review Topic 3]]+Dataset[[#This Row],[2028/29 From - Spending review Topic 4]]+Dataset[[#This Row],[2028/29 From - Other reallocations]]","v":0},{"$f":"Dataset[[#This Row],[2029/30 From - Spending review Topic 1]]+Dataset[[#This Row],[2029/30 From - Spending review Topic 2]]+Dataset[[#This Row],[2029/30 From - Spending review Topic 3]]+Dataset[[#This Row],[2029/30 From - Spending review Topic 4]]+Dataset[[#This Row],[2029/30 From - Other reallocations]]","v":0},{"$f":"Dataset[[#This Row],[2027/28 To - Spending review Topic 1]]+Dataset[[#This Row],[2027/28 To - Spending review Topic 2]]+Dataset[[#This Row],[2027/28 To - Spending review Topic 3]]+Dataset[[#This Row],[2027/28 To - Spending review Topic 4]]+Dataset[[#This Row],[2027/28 To - Other reallocations]]","v":0},{"$f":"Dataset[[#This Row],[2028/29 To - Spending review Topic 1]]+Dataset[[#This Row],[2028/29 To - Spending review Topic 2]]+Dataset[[#This Row],[2028/29 To - Spending review Topic 3]]+Dataset[[#This Row],[2028/29 To - Spending review Topic 4]]+Dataset[[#This Row],[2028/29 To - Other reallocations]]","v":0},{"$f":"Dataset[[#This Row],[2029/30 To - Spending review Topic 1]]+Dataset[[#This Row],[2029/30 To - Spending review Topic 2]]+Dataset[[#This Row],[2029/30 To - Spending review Topic 3]]+Dataset[[#This Row],[2029/30 To - Spending review Topic 4]]+Dataset[[#This Row],[2029/30 To - Other reallocations]]","v":0},{"$f":"Dataset[[#This Row],[2027/28 Targeted savings]]+Dataset[[#This Row],[2027/28 From - Total]]","v":0},{"$f":"Dataset[[#This Row],[2028/29 Targeted savings]]+Dataset[[#This Row],[2028/29 From - Total]]","v":0},{"$f":"Dataset[[#This Row],[2029/30 Targeted savings]]+Dataset[[#This Row],[2029/30 From - Total]]","v":0},{"$f":"Dataset[[#This Row],[2026/27 Targeted savings]]","v":0},{"$f":"SUM(Dataset[[#This Row],[2027/28 Targeted savings]],Dataset[[#This Row],[2027/28 From - Total]],Dataset[[#This Row],[2027/28 To - Total]])","v":0},{"$f":"SUM(Dataset[[#This Row],[2028/29 Targeted savings]],Dataset[[#This Row],[2028/29 From - Total]],Dataset[[#This Row],[2028/29 To - Total]])","v":0},{"$f":"SUM(Dataset[[#This Row],[2029/30 Targeted savings]],Dataset[[#This Row],[2029/30 From - Total]],Dataset[[#This Row],[2029/30 To - Total]])","v":0},{"$f":"Dataset[[#This Row],[2026/27 Baseline]]+Dataset[[#This Row],[2026/27 Total change]]","v":0},{"$f":"Dataset[[#This Row],[2027/28 Baseline]]+Dataset[[#This Row],[2027/28 Total change]]","v":0},{"$f":"Dataset[[#This Row],[2028/29 Baseline]]+Dataset[[#This Row],[2028/29 Total change]]","v":0},{"$f":"Dataset[[#This Row],[2029/30 Baseline]]+Dataset[[#This Row],[2029/30 Total change]]","v":0}]
["NAT|Non-transfer","30|Venues and facilities","2027_28","MTEC2027",30,4,4,33053,533,"30","04","04","033053","000533","30|04|04|000533","01","01","02","40","40","01|01|02|40|40","National","Communications and Digital Technologies","Digital Communication, Access and Services","Digital Enterprise Development and Small, Medium and Micro Enterprise Support","Non-transfer","Current","Current payments","Goods and services","Venues and facilities","Venues and facilities","Economic development","Economic regulation and infrastructure","NAT",0,0,0,146,122,122,0,60,0,0,0,null,null,null,null,null,null,null,null,null,null,null,null,null,null,null,null,null,null,null,null,null,null,null,null,null,null,null,null,null,null,null,null,null,null,{"$f":"Dataset[[#This Row],[2027/28 From - Spending review Topic 1]]+Dataset[[#This Row],[2027/28 From - Spending review Topic 2]]+Dataset[[#This Row],[2027/28 From - Spending review Topic 3]]+Dataset[[#This Row],[2027/28 From - Spending review Topic 4]]+Dataset[[#This Row],[2027/28 From - Other reallocations]]","v":0},{"$f":"Dataset[[#This Row],[2028/29 From - Spending review Topic 1]]+Dataset[[#This Row],[2028/29 From - Spending review Topic 2]]+Dataset[[#This Row],[2028/29 From - Spending review Topic 3]]+Dataset[[#This Row],[2028/29 From - Spending review Topic 4]]+Dataset[[#This Row],[2028/29 From - Other reallocations]]","v":0},{"$f":"Dataset[[#This Row],[2029/30 From - Spending review Topic 1]]+Dataset[[#This Row],[2029/30 From - Spending review Topic 2]]+Dataset[[#This Row],[2029/30 From - Spending review Topic 3]]+Dataset[[#This Row],[2029/30 From - Spending review Topic 4]]+Dataset[[#This Row],[2029/30 From - Other reallocations]]","v":0},{"$f":"Dataset[[#This Row],[2027/28 To - Spending review Topic 1]]+Dataset[[#This Row],[2027/28 To - Spending review Topic 2]]+Dataset[[#This Row],[2027/28 To - Spending review Topic 3]]+Dataset[[#This Row],[2027/28 To - Spending review Topic 4]]+Dataset[[#This Row],[2027/28 To - Other reallocations]]","v":0},{"$f":"Dataset[[#This Row],[2028/29 To - Spending review Topic 1]]+Dataset[[#This Row],[2028/29 To - Spending review Topic 2]]+Dataset[[#This Row],[2028/29 To - Spending review Topic 3]]+Dataset[[#This Row],[2028/29 To - Spending review Topic 4]]+Dataset[[#This Row],[2028/29 To - Other reallocations]]","v":0},{"$f":"Dataset[[#This Row],[2029/30 To - Spending review Topic 1]]+Dataset[[#This Row],[2029/30 To - Spending review Topic 2]]+Dataset[[#This Row],[2029/30 To - Spending review Topic 3]]+Dataset[[#This Row],[2029/30 To - Spending review Topic 4]]+Dataset[[#This Row],[2029/30 To - Other reallocations]]","v":0},{"$f":"Dataset[[#This Row],[2027/28 Targeted savings]]+Dataset[[#This Row],[2027/28 From - Total]]","v":0},{"$f":"Dataset[[#This Row],[2028/29 Targeted savings]]+Dataset[[#This Row],[2028/29 From - Total]]","v":0},{"$f":"Dataset[[#This Row],[2029/30 Targeted savings]]+Dataset[[#This Row],[2029/30 From - Total]]","v":0},{"$f":"Dataset[[#This Row],[2026/27 Targeted savings]]","v":0},{"$f":"SUM(Dataset[[#This Row],[2027/28 Targeted savings]],Dataset[[#This Row],[2027/28 From - Total]],Dataset[[#This Row],[2027/28 To - Total]])","v":0},{"$f":"SUM(Dataset[[#This Row],[2028/29 Targeted savings]],Dataset[[#This Row],[2028/29 From - Total]],Dataset[[#This Row],[2028/29 To - Total]])","v":0},{"$f":"SUM(Dataset[[#This Row],[2029/30 Targeted savings]],Dataset[[#This Row],[2029/30 From - Total]],Dataset[[#This Row],[2029/30 To - Total]])","v":0},{"$f":"Dataset[[#This Row],[2026/27 Baseline]]+Dataset[[#This Row],[2026/27 Total change]]","v":60},{"$f":"Dataset[[#This Row],[2027/28 Baseline]]+Dataset[[#This Row],[2027/28 Total change]]","v":0},{"$f":"Dataset[[#This Row],[2028/29 Baseline]]+Dataset[[#This Row],[2028/29 Total change]]","v":0},{"$f":"Dataset[[#This Row],[2029/30 Baseline]]+Dataset[[#This Row],[2029/30 Total change]]","v":0}]
["NAT|Households","30|Social benefits","2027_28","MTEC2027",30,4,4,33054,534,"30","04","04","033054","000534","30|04|04|000534","01","02","10","52","56","01|02|10|52|56","National","Communications and Digital Technologies","Digital Communication, Access and Services","Digital Enterprise Development and Small, Medium and Micro Enterprise Support","Households","Current","Transfers and subsidies","Households","Social benefits","Social benefits","Economic development","Economic regulation and infrastructure","NAT",65,0,100,0,0,0,0,0,0,0,0,null,null,null,null,null,null,null,null,null,null,null,null,null,null,null,null,null,null,null,null,null,null,null,null,null,null,null,null,null,null,null,null,null,null,{"$f":"Dataset[[#This Row],[2027/28 From - Spending review Topic 1]]+Dataset[[#This Row],[2027/28 From - Spending review Topic 2]]+Dataset[[#This Row],[2027/28 From - Spending review Topic 3]]+Dataset[[#This Row],[2027/28 From - Spending review Topic 4]]+Dataset[[#This Row],[2027/28 From - Other reallocations]]","v":0},{"$f":"Dataset[[#This Row],[2028/29 From - Spending review Topic 1]]+Dataset[[#This Row],[2028/29 From - Spending review Topic 2]]+Dataset[[#This Row],[2028/29 From - Spending review Topic 3]]+Dataset[[#This Row],[2028/29 From - Spending review Topic 4]]+Dataset[[#This Row],[2028/29 From - Other reallocations]]","v":0},{"$f":"Dataset[[#This Row],[2029/30 From - Spending review Topic 1]]+Dataset[[#This Row],[2029/30 From - Spending review Topic 2]]+Dataset[[#This Row],[2029/30 From - Spending review Topic 3]]+Dataset[[#This Row],[2029/30 From - Spending review Topic 4]]+Dataset[[#This Row],[2029/30 From - Other reallocations]]","v":0},{"$f":"Dataset[[#This Row],[2027/28 To - Spending review Topic 1]]+Dataset[[#This Row],[2027/28 To - Spending review Topic 2]]+Dataset[[#This Row],[2027/28 To - Spending review Topic 3]]+Dataset[[#This Row],[2027/28 To - Spending review Topic 4]]+Dataset[[#This Row],[2027/28 To - Other reallocations]]","v":0},{"$f":"Dataset[[#This Row],[2028/29 To - Spending review Topic 1]]+Dataset[[#This Row],[2028/29 To - Spending review Topic 2]]+Dataset[[#This Row],[2028/29 To - Spending review Topic 3]]+Dataset[[#This Row],[2028/29 To - Spending review Topic 4]]+Dataset[[#This Row],[2028/29 To - Other reallocations]]","v":0},{"$f":"Dataset[[#This Row],[2029/30 To - Spending review Topic 1]]+Dataset[[#This Row],[2029/30 To - Spending review Topic 2]]+Dataset[[#This Row],[2029/30 To - Spending review Topic 3]]+Dataset[[#This Row],[2029/30 To - Spending review Topic 4]]+Dataset[[#This Row],[2029/30 To - Other reallocations]]","v":0},{"$f":"Dataset[[#This Row],[2027/28 Targeted savings]]+Dataset[[#This Row],[2027/28 From - Total]]","v":0},{"$f":"Dataset[[#This Row],[2028/29 Targeted savings]]+Dataset[[#This Row],[2028/29 From - Total]]","v":0},{"$f":"Dataset[[#This Row],[2029/30 Targeted savings]]+Dataset[[#This Row],[2029/30 From - Total]]","v":0},{"$f":"Dataset[[#This Row],[2026/27 Targeted savings]]","v":0},{"$f":"SUM(Dataset[[#This Row],[2027/28 Targeted savings]],Dataset[[#This Row],[2027/28 From - Total]],Dataset[[#This Row],[2027/28 To - Total]])","v":0},{"$f":"SUM(Dataset[[#This Row],[2028/29 Targeted savings]],Dataset[[#This Row],[2028/29 From - Total]],Dataset[[#This Row],[2028/29 To - Total]])","v":0},{"$f":"SUM(Dataset[[#This Row],[2029/30 Targeted savings]],Dataset[[#This Row],[2029/30 From - Total]],Dataset[[#This Row],[2029/30 To - Total]])","v":0},{"$f":"Dataset[[#This Row],[2026/27 Baseline]]+Dataset[[#This Row],[2026/27 Total change]]","v":0},{"$f":"Dataset[[#This Row],[2027/28 Baseline]]+Dataset[[#This Row],[2027/28 Total change]]","v":0},{"$f":"Dataset[[#This Row],[2028/29 Baseline]]+Dataset[[#This Row],[2028/29 Total change]]","v":0},{"$f":"Dataset[[#This Row],[2029/30 Baseline]]+Dataset[[#This Row],[2029/30 Total change]]","v":0}]
["NAT|Households","30|Other transfers to households","2027_28","MTEC2027",30,4,4,33055,535,"30","04","04","033055","000535","30|04|04|000535","01","02","10","53","57","01|02|10|53|57","National","Communications and Digital Technologies","Digital Communication, Access and Services","Digital Enterprise Development and Small, Medium and Micro Enterprise Support","Households","Current","Transfers and subsidies","Households","Other transfers to households","Other transfers to households","Economic development","Economic regulation and infrastructure","NAT",2,0,0,0,2,2,0,0,0,0,0,null,null,null,null,null,null,null,null,null,null,null,null,null,null,null,null,null,null,null,null,null,null,null,null,null,null,null,null,null,null,null,null,null,null,{"$f":"Dataset[[#This Row],[2027/28 From - Spending review Topic 1]]+Dataset[[#This Row],[2027/28 From - Spending review Topic 2]]+Dataset[[#This Row],[2027/28 From - Spending review Topic 3]]+Dataset[[#This Row],[2027/28 From - Spending review Topic 4]]+Dataset[[#This Row],[2027/28 From - Other reallocations]]","v":0},{"$f":"Dataset[[#This Row],[2028/29 From - Spending review Topic 1]]+Dataset[[#This Row],[2028/29 From - Spending review Topic 2]]+Dataset[[#This Row],[2028/29 From - Spending review Topic 3]]+Dataset[[#This Row],[2028/29 From - Spending review Topic 4]]+Dataset[[#This Row],[2028/29 From - Other reallocations]]","v":0},{"$f":"Dataset[[#This Row],[2029/30 From - Spending review Topic 1]]+Dataset[[#This Row],[2029/30 From - Spending review Topic 2]]+Dataset[[#This Row],[2029/30 From - Spending review Topic 3]]+Dataset[[#This Row],[2029/30 From - Spending review Topic 4]]+Dataset[[#This Row],[2029/30 From - Other reallocations]]","v":0},{"$f":"Dataset[[#This Row],[2027/28 To - Spending review Topic 1]]+Dataset[[#This Row],[2027/28 To - Spending review Topic 2]]+Dataset[[#This Row],[2027/28 To - Spending review Topic 3]]+Dataset[[#This Row],[2027/28 To - Spending review Topic 4]]+Dataset[[#This Row],[2027/28 To - Other reallocations]]","v":0},{"$f":"Dataset[[#This Row],[2028/29 To - Spending review Topic 1]]+Dataset[[#This Row],[2028/29 To - Spending review Topic 2]]+Dataset[[#This Row],[2028/29 To - Spending review Topic 3]]+Dataset[[#This Row],[2028/29 To - Spending review Topic 4]]+Dataset[[#This Row],[2028/29 To - Other reallocations]]","v":0},{"$f":"Dataset[[#This Row],[2029/30 To - Spending review Topic 1]]+Dataset[[#This Row],[2029/30 To - Spending review Topic 2]]+Dataset[[#This Row],[2029/30 To - Spending review Topic 3]]+Dataset[[#This Row],[2029/30 To - Spending review Topic 4]]+Dataset[[#This Row],[2029/30 To - Other reallocations]]","v":0},{"$f":"Dataset[[#This Row],[2027/28 Targeted savings]]+Dataset[[#This Row],[2027/28 From - Total]]","v":0},{"$f":"Dataset[[#This Row],[2028/29 Targeted savings]]+Dataset[[#This Row],[2028/29 From - Total]]","v":0},{"$f":"Dataset[[#This Row],[2029/30 Targeted savings]]+Dataset[[#This Row],[2029/30 From - Total]]","v":0},{"$f":"Dataset[[#This Row],[2026/27 Targeted savings]]","v":0},{"$f":"SUM(Dataset[[#This Row],[2027/28 Targeted savings]],Dataset[[#This Row],[2027/28 From - Total]],Dataset[[#This Row],[2027/28 To - Total]])","v":0},{"$f":"SUM(Dataset[[#This Row],[2028/29 Targeted savings]],Dataset[[#This Row],[2028/29 From - Total]],Dataset[[#This Row],[2028/29 To - Total]])","v":0},{"$f":"SUM(Dataset[[#This Row],[2029/30 Targeted savings]],Dataset[[#This Row],[2029/30 From - Total]],Dataset[[#This Row],[2029/30 To - Total]])","v":0},{"$f":"Dataset[[#This Row],[2026/27 Baseline]]+Dataset[[#This Row],[2026/27 Total change]]","v":0},{"$f":"Dataset[[#This Row],[2027/28 Baseline]]+Dataset[[#This Row],[2027/28 Total change]]","v":0},{"$f":"Dataset[[#This Row],[2028/29 Baseline]]+Dataset[[#This Row],[2028/29 Total change]]","v":0},{"$f":"Dataset[[#This Row],[2029/30 Baseline]]+Dataset[[#This Row],[2029/30 Total change]]","v":0}]
["NAT|Non-transfer","30|Other machinery and equipment","2027_28","MTEC2027",30,4,4,33056,536,"30","04","04","033056","000536","30|04|04|000536","02","03","12","57","61","02|03|12|57|61","National","Communications and Digital Technologies","Digital Communication, Access and Services","Digital Enterprise Development and Small, Medium and Micro Enterprise Support","Non-transfer","Capital","Payments for capital assets","Machinery and equipment","Other machinery and equipment","Other machinery and equipment","Economic development","Economic regulation and infrastructure","NAT",7,79,0,61,61,61,0,200,159,68,70,null,null,null,null,null,null,null,null,null,null,null,null,null,null,null,null,null,null,null,null,null,null,null,null,null,null,null,null,null,null,null,null,null,null,{"$f":"Dataset[[#This Row],[2027/28 From - Spending review Topic 1]]+Dataset[[#This Row],[2027/28 From - Spending review Topic 2]]+Dataset[[#This Row],[2027/28 From - Spending review Topic 3]]+Dataset[[#This Row],[2027/28 From - Spending review Topic 4]]+Dataset[[#This Row],[2027/28 From - Other reallocations]]","v":0},{"$f":"Dataset[[#This Row],[2028/29 From - Spending review Topic 1]]+Dataset[[#This Row],[2028/29 From - Spending review Topic 2]]+Dataset[[#This Row],[2028/29 From - Spending review Topic 3]]+Dataset[[#This Row],[2028/29 From - Spending review Topic 4]]+Dataset[[#This Row],[2028/29 From - Other reallocations]]","v":0},{"$f":"Dataset[[#This Row],[2029/30 From - Spending review Topic 1]]+Dataset[[#This Row],[2029/30 From - Spending review Topic 2]]+Dataset[[#This Row],[2029/30 From - Spending review Topic 3]]+Dataset[[#This Row],[2029/30 From - Spending review Topic 4]]+Dataset[[#This Row],[2029/30 From - Other reallocations]]","v":0},{"$f":"Dataset[[#This Row],[2027/28 To - Spending review Topic 1]]+Dataset[[#This Row],[2027/28 To - Spending review Topic 2]]+Dataset[[#This Row],[2027/28 To - Spending review Topic 3]]+Dataset[[#This Row],[2027/28 To - Spending review Topic 4]]+Dataset[[#This Row],[2027/28 To - Other reallocations]]","v":0},{"$f":"Dataset[[#This Row],[2028/29 To - Spending review Topic 1]]+Dataset[[#This Row],[2028/29 To - Spending review Topic 2]]+Dataset[[#This Row],[2028/29 To - Spending review Topic 3]]+Dataset[[#This Row],[2028/29 To - Spending review Topic 4]]+Dataset[[#This Row],[2028/29 To - Other reallocations]]","v":0},{"$f":"Dataset[[#This Row],[2029/30 To - Spending review Topic 1]]+Dataset[[#This Row],[2029/30 To - Spending review Topic 2]]+Dataset[[#This Row],[2029/30 To - Spending review Topic 3]]+Dataset[[#This Row],[2029/30 To - Spending review Topic 4]]+Dataset[[#This Row],[2029/30 To - Other reallocations]]","v":0},{"$f":"Dataset[[#This Row],[2027/28 Targeted savings]]+Dataset[[#This Row],[2027/28 From - Total]]","v":0},{"$f":"Dataset[[#This Row],[2028/29 Targeted savings]]+Dataset[[#This Row],[2028/29 From - Total]]","v":0},{"$f":"Dataset[[#This Row],[2029/30 Targeted savings]]+Dataset[[#This Row],[2029/30 From - Total]]","v":0},{"$f":"Dataset[[#This Row],[2026/27 Targeted savings]]","v":0},{"$f":"SUM(Dataset[[#This Row],[2027/28 Targeted savings]],Dataset[[#This Row],[2027/28 From - Total]],Dataset[[#This Row],[2027/28 To - Total]])","v":0},{"$f":"SUM(Dataset[[#This Row],[2028/29 Targeted savings]],Dataset[[#This Row],[2028/29 From - Total]],Dataset[[#This Row],[2028/29 To - Total]])","v":0},{"$f":"SUM(Dataset[[#This Row],[2029/30 Targeted savings]],Dataset[[#This Row],[2029/30 From - Total]],Dataset[[#This Row],[2029/30 To - Total]])","v":0},{"$f":"Dataset[[#This Row],[2026/27 Baseline]]+Dataset[[#This Row],[2026/27 Total change]]","v":200},{"$f":"Dataset[[#This Row],[2027/28 Baseline]]+Dataset[[#This Row],[2027/28 Total change]]","v":159},{"$f":"Dataset[[#This Row],[2028/29 Baseline]]+Dataset[[#This Row],[2028/29 Total change]]","v":68},{"$f":"Dataset[[#This Row],[2029/30 Baseline]]+Dataset[[#This Row],[2029/30 Total change]]","v":70}]
["NAT|Non-transfer","30|Salaries and wages","2027_28","MTEC2027",30,5,1,33057,537,"30","05","01","033057","000537","30|05|01|000537","01","01","01","01","01","01|01|01|01|01","National","Communications and Digital Technologies","Digital Infrastructure and Technologies","Programme Management for Digital Infrastructure and Technologies","Non-transfer","Current","Current payments","Compensation of employees","Salaries and wages","Salaries and wages","Economic development","Economic regulation and infrastructure","NAT",1944,2009,2186,2191,1451,1451,0,2766,3767,2950,3039,null,null,null,null,null,null,null,null,null,null,null,null,null,null,null,null,null,null,null,null,null,null,null,null,null,null,null,null,null,null,null,null,null,null,{"$f":"Dataset[[#This Row],[2027/28 From - Spending review Topic 1]]+Dataset[[#This Row],[2027/28 From - Spending review Topic 2]]+Dataset[[#This Row],[2027/28 From - Spending review Topic 3]]+Dataset[[#This Row],[2027/28 From - Spending review Topic 4]]+Dataset[[#This Row],[2027/28 From - Other reallocations]]","v":0},{"$f":"Dataset[[#This Row],[2028/29 From - Spending review Topic 1]]+Dataset[[#This Row],[2028/29 From - Spending review Topic 2]]+Dataset[[#This Row],[2028/29 From - Spending review Topic 3]]+Dataset[[#This Row],[2028/29 From - Spending review Topic 4]]+Dataset[[#This Row],[2028/29 From - Other reallocations]]","v":0},{"$f":"Dataset[[#This Row],[2029/30 From - Spending review Topic 1]]+Dataset[[#This Row],[2029/30 From - Spending review Topic 2]]+Dataset[[#This Row],[2029/30 From - Spending review Topic 3]]+Dataset[[#This Row],[2029/30 From - Spending review Topic 4]]+Dataset[[#This Row],[2029/30 From - Other reallocations]]","v":0},{"$f":"Dataset[[#This Row],[2027/28 To - Spending review Topic 1]]+Dataset[[#This Row],[2027/28 To - Spending review Topic 2]]+Dataset[[#This Row],[2027/28 To - Spending review Topic 3]]+Dataset[[#This Row],[2027/28 To - Spending review Topic 4]]+Dataset[[#This Row],[2027/28 To - Other reallocations]]","v":0},{"$f":"Dataset[[#This Row],[2028/29 To - Spending review Topic 1]]+Dataset[[#This Row],[2028/29 To - Spending review Topic 2]]+Dataset[[#This Row],[2028/29 To - Spending review Topic 3]]+Dataset[[#This Row],[2028/29 To - Spending review Topic 4]]+Dataset[[#This Row],[2028/29 To - Other reallocations]]","v":0},{"$f":"Dataset[[#This Row],[2029/30 To - Spending review Topic 1]]+Dataset[[#This Row],[2029/30 To - Spending review Topic 2]]+Dataset[[#This Row],[2029/30 To - Spending review Topic 3]]+Dataset[[#This Row],[2029/30 To - Spending review Topic 4]]+Dataset[[#This Row],[2029/30 To - Other reallocations]]","v":0},{"$f":"Dataset[[#This Row],[2027/28 Targeted savings]]+Dataset[[#This Row],[2027/28 From - Total]]","v":0},{"$f":"Dataset[[#This Row],[2028/29 Targeted savings]]+Dataset[[#This Row],[2028/29 From - Total]]","v":0},{"$f":"Dataset[[#This Row],[2029/30 Targeted savings]]+Dataset[[#This Row],[2029/30 From - Total]]","v":0},{"$f":"Dataset[[#This Row],[2026/27 Targeted savings]]","v":0},{"$f":"SUM(Dataset[[#This Row],[2027/28 Targeted savings]],Dataset[[#This Row],[2027/28 From - Total]],Dataset[[#This Row],[2027/28 To - Total]])","v":0},{"$f":"SUM(Dataset[[#This Row],[2028/29 Targeted savings]],Dataset[[#This Row],[2028/29 From - Total]],Dataset[[#This Row],[2028/29 To - Total]])","v":0},{"$f":"SUM(Dataset[[#This Row],[2029/30 Targeted savings]],Dataset[[#This Row],[2029/30 From - Total]],Dataset[[#This Row],[2029/30 To - Total]])","v":0},{"$f":"Dataset[[#This Row],[2026/27 Baseline]]+Dataset[[#This Row],[2026/27 Total change]]","v":2766},{"$f":"Dataset[[#This Row],[2027/28 Baseline]]+Dataset[[#This Row],[2027/28 Total change]]","v":3767},{"$f":"Dataset[[#This Row],[2028/29 Baseline]]+Dataset[[#This Row],[2028/29 Total change]]","v":2950},{"$f":"Dataset[[#This Row],[2029/30 Baseline]]+Dataset[[#This Row],[2029/30 Total change]]","v":3039}]
["NAT|Non-transfer","30|Social contributions","2027_28","MTEC2027",30,5,1,33058,538,"30","05","01","033058","000538","30|05|01|000538","01","01","01","02","02","01|01|01|02|02","National","Communications and Digital Technologies","Digital Infrastructure and Technologies","Programme Management for Digital Infrastructure and Technologies","Non-transfer","Current","Current payments","Compensation of employees","Social contributions","Social contributions","Economic development","Economic regulation and infrastructure","NAT",314,327,348,350,350,350,0,293,322,338,348,null,null,null,null,null,null,null,null,null,null,null,null,null,null,null,null,null,null,null,null,null,null,null,null,null,null,null,null,null,null,null,null,null,null,{"$f":"Dataset[[#This Row],[2027/28 From - Spending review Topic 1]]+Dataset[[#This Row],[2027/28 From - Spending review Topic 2]]+Dataset[[#This Row],[2027/28 From - Spending review Topic 3]]+Dataset[[#This Row],[2027/28 From - Spending review Topic 4]]+Dataset[[#This Row],[2027/28 From - Other reallocations]]","v":0},{"$f":"Dataset[[#This Row],[2028/29 From - Spending review Topic 1]]+Dataset[[#This Row],[2028/29 From - Spending review Topic 2]]+Dataset[[#This Row],[2028/29 From - Spending review Topic 3]]+Dataset[[#This Row],[2028/29 From - Spending review Topic 4]]+Dataset[[#This Row],[2028/29 From - Other reallocations]]","v":0},{"$f":"Dataset[[#This Row],[2029/30 From - Spending review Topic 1]]+Dataset[[#This Row],[2029/30 From - Spending review Topic 2]]+Dataset[[#This Row],[2029/30 From - Spending review Topic 3]]+Dataset[[#This Row],[2029/30 From - Spending review Topic 4]]+Dataset[[#This Row],[2029/30 From - Other reallocations]]","v":0},{"$f":"Dataset[[#This Row],[2027/28 To - Spending review Topic 1]]+Dataset[[#This Row],[2027/28 To - Spending review Topic 2]]+Dataset[[#This Row],[2027/28 To - Spending review Topic 3]]+Dataset[[#This Row],[2027/28 To - Spending review Topic 4]]+Dataset[[#This Row],[2027/28 To - Other reallocations]]","v":0},{"$f":"Dataset[[#This Row],[2028/29 To - Spending review Topic 1]]+Dataset[[#This Row],[2028/29 To - Spending review Topic 2]]+Dataset[[#This Row],[2028/29 To - Spending review Topic 3]]+Dataset[[#This Row],[2028/29 To - Spending review Topic 4]]+Dataset[[#This Row],[2028/29 To - Other reallocations]]","v":0},{"$f":"Dataset[[#This Row],[2029/30 To - Spending review Topic 1]]+Dataset[[#This Row],[2029/30 To - Spending review Topic 2]]+Dataset[[#This Row],[2029/30 To - Spending review Topic 3]]+Dataset[[#This Row],[2029/30 To - Spending review Topic 4]]+Dataset[[#This Row],[2029/30 To - Other reallocations]]","v":0},{"$f":"Dataset[[#This Row],[2027/28 Targeted savings]]+Dataset[[#This Row],[2027/28 From - Total]]","v":0},{"$f":"Dataset[[#This Row],[2028/29 Targeted savings]]+Dataset[[#This Row],[2028/29 From - Total]]","v":0},{"$f":"Dataset[[#This Row],[2029/30 Targeted savings]]+Dataset[[#This Row],[2029/30 From - Total]]","v":0},{"$f":"Dataset[[#This Row],[2026/27 Targeted savings]]","v":0},{"$f":"SUM(Dataset[[#This Row],[2027/28 Targeted savings]],Dataset[[#This Row],[2027/28 From - Total]],Dataset[[#This Row],[2027/28 To - Total]])","v":0},{"$f":"SUM(Dataset[[#This Row],[2028/29 Targeted savings]],Dataset[[#This Row],[2028/29 From - Total]],Dataset[[#This Row],[2028/29 To - Total]])","v":0},{"$f":"SUM(Dataset[[#This Row],[2029/30 Targeted savings]],Dataset[[#This Row],[2029/30 From - Total]],Dataset[[#This Row],[2029/30 To - Total]])","v":0},{"$f":"Dataset[[#This Row],[2026/27 Baseline]]+Dataset[[#This Row],[2026/27 Total change]]","v":293},{"$f":"Dataset[[#This Row],[2027/28 Baseline]]+Dataset[[#This Row],[2027/28 Total change]]","v":322},{"$f":"Dataset[[#This Row],[2028/29 Baseline]]+Dataset[[#This Row],[2028/29 Total change]]","v":338},{"$f":"Dataset[[#This Row],[2029/30 Baseline]]+Dataset[[#This Row],[2029/30 Total change]]","v":348}]
["NAT|Non-transfer","30|Administrative fees","2027_28","MTEC2027",30,5,1,33059,539,"30","05","01","033059","000539","30|05|01|000539","01","01","02","03","03","01|01|02|03|03","National","Communications and Digital Technologies","Digital Infrastructure and Technologies","Programme Management for Digital Infrastructure and Technologies","Non-transfer","Current","Current payments","Goods and services","Administrative fees","Administrative fees","Economic development","Economic regulation and infrastructure","NAT",2,5,13,60,60,60,0,13,66,68,70,null,null,null,null,null,null,null,null,null,null,null,null,null,null,null,null,null,null,null,null,null,null,null,null,null,null,null,null,null,null,null,null,null,null,{"$f":"Dataset[[#This Row],[2027/28 From - Spending review Topic 1]]+Dataset[[#This Row],[2027/28 From - Spending review Topic 2]]+Dataset[[#This Row],[2027/28 From - Spending review Topic 3]]+Dataset[[#This Row],[2027/28 From - Spending review Topic 4]]+Dataset[[#This Row],[2027/28 From - Other reallocations]]","v":0},{"$f":"Dataset[[#This Row],[2028/29 From - Spending review Topic 1]]+Dataset[[#This Row],[2028/29 From - Spending review Topic 2]]+Dataset[[#This Row],[2028/29 From - Spending review Topic 3]]+Dataset[[#This Row],[2028/29 From - Spending review Topic 4]]+Dataset[[#This Row],[2028/29 From - Other reallocations]]","v":0},{"$f":"Dataset[[#This Row],[2029/30 From - Spending review Topic 1]]+Dataset[[#This Row],[2029/30 From - Spending review Topic 2]]+Dataset[[#This Row],[2029/30 From - Spending review Topic 3]]+Dataset[[#This Row],[2029/30 From - Spending review Topic 4]]+Dataset[[#This Row],[2029/30 From - Other reallocations]]","v":0},{"$f":"Dataset[[#This Row],[2027/28 To - Spending review Topic 1]]+Dataset[[#This Row],[2027/28 To - Spending review Topic 2]]+Dataset[[#This Row],[2027/28 To - Spending review Topic 3]]+Dataset[[#This Row],[2027/28 To - Spending review Topic 4]]+Dataset[[#This Row],[2027/28 To - Other reallocations]]","v":0},{"$f":"Dataset[[#This Row],[2028/29 To - Spending review Topic 1]]+Dataset[[#This Row],[2028/29 To - Spending review Topic 2]]+Dataset[[#This Row],[2028/29 To - Spending review Topic 3]]+Dataset[[#This Row],[2028/29 To - Spending review Topic 4]]+Dataset[[#This Row],[2028/29 To - Other reallocations]]","v":0},{"$f":"Dataset[[#This Row],[2029/30 To - Spending review Topic 1]]+Dataset[[#This Row],[2029/30 To - Spending review Topic 2]]+Dataset[[#This Row],[2029/30 To - Spending review Topic 3]]+Dataset[[#This Row],[2029/30 To - Spending review Topic 4]]+Dataset[[#This Row],[2029/30 To - Other reallocations]]","v":0},{"$f":"Dataset[[#This Row],[2027/28 Targeted savings]]+Dataset[[#This Row],[2027/28 From - Total]]","v":0},{"$f":"Dataset[[#This Row],[2028/29 Targeted savings]]+Dataset[[#This Row],[2028/29 From - Total]]","v":0},{"$f":"Dataset[[#This Row],[2029/30 Targeted savings]]+Dataset[[#This Row],[2029/30 From - Total]]","v":0},{"$f":"Dataset[[#This Row],[2026/27 Targeted savings]]","v":0},{"$f":"SUM(Dataset[[#This Row],[2027/28 Targeted savings]],Dataset[[#This Row],[2027/28 From - Total]],Dataset[[#This Row],[2027/28 To - Total]])","v":0},{"$f":"SUM(Dataset[[#This Row],[2028/29 Targeted savings]],Dataset[[#This Row],[2028/29 From - Total]],Dataset[[#This Row],[2028/29 To - Total]])","v":0},{"$f":"SUM(Dataset[[#This Row],[2029/30 Targeted savings]],Dataset[[#This Row],[2029/30 From - Total]],Dataset[[#This Row],[2029/30 To - Total]])","v":0},{"$f":"Dataset[[#This Row],[2026/27 Baseline]]+Dataset[[#This Row],[2026/27 Total change]]","v":13},{"$f":"Dataset[[#This Row],[2027/28 Baseline]]+Dataset[[#This Row],[2027/28 Total change]]","v":66},{"$f":"Dataset[[#This Row],[2028/29 Baseline]]+Dataset[[#This Row],[2028/29 Total change]]","v":68},{"$f":"Dataset[[#This Row],[2029/30 Baseline]]+Dataset[[#This Row],[2029/30 Total change]]","v":70}]
["NAT|Non-transfer","30|Bursaries: Employees","2027_28","MTEC2027",30,5,1,33060,540,"30","05","01","033060","000540","30|05|01|000540","01","01","02","07","07","01|01|02|07|07","National","Communications and Digital Technologies","Digital Infrastructure and Technologies","Programme Management for Digital Infrastructure and Technologies","Non-transfer","Current","Current payments","Goods and services","Bursaries: Employees","Bursaries: Employees","Economic development","Economic regulation and infrastructure","NAT",0,9,0,80,80,80,0,0,43,44,45,null,null,null,null,null,null,null,null,null,null,null,null,null,null,null,null,null,null,null,null,null,null,null,null,null,null,null,null,null,null,null,null,null,null,{"$f":"Dataset[[#This Row],[2027/28 From - Spending review Topic 1]]+Dataset[[#This Row],[2027/28 From - Spending review Topic 2]]+Dataset[[#This Row],[2027/28 From - Spending review Topic 3]]+Dataset[[#This Row],[2027/28 From - Spending review Topic 4]]+Dataset[[#This Row],[2027/28 From - Other reallocations]]","v":0},{"$f":"Dataset[[#This Row],[2028/29 From - Spending review Topic 1]]+Dataset[[#This Row],[2028/29 From - Spending review Topic 2]]+Dataset[[#This Row],[2028/29 From - Spending review Topic 3]]+Dataset[[#This Row],[2028/29 From - Spending review Topic 4]]+Dataset[[#This Row],[2028/29 From - Other reallocations]]","v":0},{"$f":"Dataset[[#This Row],[2029/30 From - Spending review Topic 1]]+Dataset[[#This Row],[2029/30 From - Spending review Topic 2]]+Dataset[[#This Row],[2029/30 From - Spending review Topic 3]]+Dataset[[#This Row],[2029/30 From - Spending review Topic 4]]+Dataset[[#This Row],[2029/30 From - Other reallocations]]","v":0},{"$f":"Dataset[[#This Row],[2027/28 To - Spending review Topic 1]]+Dataset[[#This Row],[2027/28 To - Spending review Topic 2]]+Dataset[[#This Row],[2027/28 To - Spending review Topic 3]]+Dataset[[#This Row],[2027/28 To - Spending review Topic 4]]+Dataset[[#This Row],[2027/28 To - Other reallocations]]","v":0},{"$f":"Dataset[[#This Row],[2028/29 To - Spending review Topic 1]]+Dataset[[#This Row],[2028/29 To - Spending review Topic 2]]+Dataset[[#This Row],[2028/29 To - Spending review Topic 3]]+Dataset[[#This Row],[2028/29 To - Spending review Topic 4]]+Dataset[[#This Row],[2028/29 To - Other reallocations]]","v":0},{"$f":"Dataset[[#This Row],[2029/30 To - Spending review Topic 1]]+Dataset[[#This Row],[2029/30 To - Spending review Topic 2]]+Dataset[[#This Row],[2029/30 To - Spending review Topic 3]]+Dataset[[#This Row],[2029/30 To - Spending review Topic 4]]+Dataset[[#This Row],[2029/30 To - Other reallocations]]","v":0},{"$f":"Dataset[[#This Row],[2027/28 Targeted savings]]+Dataset[[#This Row],[2027/28 From - Total]]","v":0},{"$f":"Dataset[[#This Row],[2028/29 Targeted savings]]+Dataset[[#This Row],[2028/29 From - Total]]","v":0},{"$f":"Dataset[[#This Row],[2029/30 Targeted savings]]+Dataset[[#This Row],[2029/30 From - Total]]","v":0},{"$f":"Dataset[[#This Row],[2026/27 Targeted savings]]","v":0},{"$f":"SUM(Dataset[[#This Row],[2027/28 Targeted savings]],Dataset[[#This Row],[2027/28 From - Total]],Dataset[[#This Row],[2027/28 To - Total]])","v":0},{"$f":"SUM(Dataset[[#This Row],[2028/29 Targeted savings]],Dataset[[#This Row],[2028/29 From - Total]],Dataset[[#This Row],[2028/29 To - Total]])","v":0},{"$f":"SUM(Dataset[[#This Row],[2029/30 Targeted savings]],Dataset[[#This Row],[2029/30 From - Total]],Dataset[[#This Row],[2029/30 To - Total]])","v":0},{"$f":"Dataset[[#This Row],[2026/27 Baseline]]+Dataset[[#This Row],[2026/27 Total change]]","v":0},{"$f":"Dataset[[#This Row],[2027/28 Baseline]]+Dataset[[#This Row],[2027/28 Total change]]","v":43},{"$f":"Dataset[[#This Row],[2028/29 Baseline]]+Dataset[[#This Row],[2028/29 Total change]]","v":44},{"$f":"Dataset[[#This Row],[2029/30 Baseline]]+Dataset[[#This Row],[2029/30 Total change]]","v":45}]
["NAT|Non-transfer","30|Catering: Departmental activities","2027_28","MTEC2027",30,5,1,33061,541,"30","05","01","033061","000541","30|05|01|000541","01","01","02","08","08","01|01|02|08|08","National","Communications and Digital Technologies","Digital Infrastructure and Technologies","Programme Management for Digital Infrastructure and Technologies","Non-transfer","Current","Current payments","Goods and services","Catering: Departmental activities","Catering: Departmental activities","Economic development","Economic regulation and infrastructure","NAT",17,3,1,0,0,0,0,3,0,0,0,null,null,null,null,null,null,null,null,null,null,null,null,null,null,null,null,null,null,null,null,null,null,null,null,null,null,null,null,null,null,null,null,null,null,{"$f":"Dataset[[#This Row],[2027/28 From - Spending review Topic 1]]+Dataset[[#This Row],[2027/28 From - Spending review Topic 2]]+Dataset[[#This Row],[2027/28 From - Spending review Topic 3]]+Dataset[[#This Row],[2027/28 From - Spending review Topic 4]]+Dataset[[#This Row],[2027/28 From - Other reallocations]]","v":0},{"$f":"Dataset[[#This Row],[2028/29 From - Spending review Topic 1]]+Dataset[[#This Row],[2028/29 From - Spending review Topic 2]]+Dataset[[#This Row],[2028/29 From - Spending review Topic 3]]+Dataset[[#This Row],[2028/29 From - Spending review Topic 4]]+Dataset[[#This Row],[2028/29 From - Other reallocations]]","v":0},{"$f":"Dataset[[#This Row],[2029/30 From - Spending review Topic 1]]+Dataset[[#This Row],[2029/30 From - Spending review Topic 2]]+Dataset[[#This Row],[2029/30 From - Spending review Topic 3]]+Dataset[[#This Row],[2029/30 From - Spending review Topic 4]]+Dataset[[#This Row],[2029/30 From - Other reallocations]]","v":0},{"$f":"Dataset[[#This Row],[2027/28 To - Spending review Topic 1]]+Dataset[[#This Row],[2027/28 To - Spending review Topic 2]]+Dataset[[#This Row],[2027/28 To - Spending review Topic 3]]+Dataset[[#This Row],[2027/28 To - Spending review Topic 4]]+Dataset[[#This Row],[2027/28 To - Other reallocations]]","v":0},{"$f":"Dataset[[#This Row],[2028/29 To - Spending review Topic 1]]+Dataset[[#This Row],[2028/29 To - Spending review Topic 2]]+Dataset[[#This Row],[2028/29 To - Spending review Topic 3]]+Dataset[[#This Row],[2028/29 To - Spending review Topic 4]]+Dataset[[#This Row],[2028/29 To - Other reallocations]]","v":0},{"$f":"Dataset[[#This Row],[2029/30 To - Spending review Topic 1]]+Dataset[[#This Row],[2029/30 To - Spending review Topic 2]]+Dataset[[#This Row],[2029/30 To - Spending review Topic 3]]+Dataset[[#This Row],[2029/30 To - Spending review Topic 4]]+Dataset[[#This Row],[2029/30 To - Other reallocations]]","v":0},{"$f":"Dataset[[#This Row],[2027/28 Targeted savings]]+Dataset[[#This Row],[2027/28 From - Total]]","v":0},{"$f":"Dataset[[#This Row],[2028/29 Targeted savings]]+Dataset[[#This Row],[2028/29 From - Total]]","v":0},{"$f":"Dataset[[#This Row],[2029/30 Targeted savings]]+Dataset[[#This Row],[2029/30 From - Total]]","v":0},{"$f":"Dataset[[#This Row],[2026/27 Targeted savings]]","v":0},{"$f":"SUM(Dataset[[#This Row],[2027/28 Targeted savings]],Dataset[[#This Row],[2027/28 From - Total]],Dataset[[#This Row],[2027/28 To - Total]])","v":0},{"$f":"SUM(Dataset[[#This Row],[2028/29 Targeted savings]],Dataset[[#This Row],[2028/29 From - Total]],Dataset[[#This Row],[2028/29 To - Total]])","v":0},{"$f":"SUM(Dataset[[#This Row],[2029/30 Targeted savings]],Dataset[[#This Row],[2029/30 From - Total]],Dataset[[#This Row],[2029/30 To - Total]])","v":0},{"$f":"Dataset[[#This Row],[2026/27 Baseline]]+Dataset[[#This Row],[2026/27 Total change]]","v":3},{"$f":"Dataset[[#This Row],[2027/28 Baseline]]+Dataset[[#This Row],[2027/28 Total change]]","v":0},{"$f":"Dataset[[#This Row],[2028/29 Baseline]]+Dataset[[#This Row],[2028/29 Total change]]","v":0},{"$f":"Dataset[[#This Row],[2029/30 Baseline]]+Dataset[[#This Row],[2029/30 Total change]]","v":0}]
["NAT|Non-transfer","30|Communication (G&S)","2027_28","MTEC2027",30,5,1,33062,542,"30","05","01","033062","000542","30|05|01|000542","01","01","02","09","09","01|01|02|09|09","National","Communications and Digital Technologies","Digital Infrastructure and Technologies","Programme Management for Digital Infrastructure and Technologies","Non-transfer","Current","Current payments","Goods and services","Communication (G&S)","Communication (G&S)","Economic development","Economic regulation and infrastructure","NAT",88,92,82,40,40,40,0,0,34,35,36,null,null,null,null,null,null,null,null,null,null,null,null,null,null,null,null,null,null,null,null,null,null,null,null,null,null,null,null,null,null,null,null,null,null,{"$f":"Dataset[[#This Row],[2027/28 From - Spending review Topic 1]]+Dataset[[#This Row],[2027/28 From - Spending review Topic 2]]+Dataset[[#This Row],[2027/28 From - Spending review Topic 3]]+Dataset[[#This Row],[2027/28 From - Spending review Topic 4]]+Dataset[[#This Row],[2027/28 From - Other reallocations]]","v":0},{"$f":"Dataset[[#This Row],[2028/29 From - Spending review Topic 1]]+Dataset[[#This Row],[2028/29 From - Spending review Topic 2]]+Dataset[[#This Row],[2028/29 From - Spending review Topic 3]]+Dataset[[#This Row],[2028/29 From - Spending review Topic 4]]+Dataset[[#This Row],[2028/29 From - Other reallocations]]","v":0},{"$f":"Dataset[[#This Row],[2029/30 From - Spending review Topic 1]]+Dataset[[#This Row],[2029/30 From - Spending review Topic 2]]+Dataset[[#This Row],[2029/30 From - Spending review Topic 3]]+Dataset[[#This Row],[2029/30 From - Spending review Topic 4]]+Dataset[[#This Row],[2029/30 From - Other reallocations]]","v":0},{"$f":"Dataset[[#This Row],[2027/28 To - Spending review Topic 1]]+Dataset[[#This Row],[2027/28 To - Spending review Topic 2]]+Dataset[[#This Row],[2027/28 To - Spending review Topic 3]]+Dataset[[#This Row],[2027/28 To - Spending review Topic 4]]+Dataset[[#This Row],[2027/28 To - Other reallocations]]","v":0},{"$f":"Dataset[[#This Row],[2028/29 To - Spending review Topic 1]]+Dataset[[#This Row],[2028/29 To - Spending review Topic 2]]+Dataset[[#This Row],[2028/29 To - Spending review Topic 3]]+Dataset[[#This Row],[2028/29 To - Spending review Topic 4]]+Dataset[[#This Row],[2028/29 To - Other reallocations]]","v":0},{"$f":"Dataset[[#This Row],[2029/30 To - Spending review Topic 1]]+Dataset[[#This Row],[2029/30 To - Spending review Topic 2]]+Dataset[[#This Row],[2029/30 To - Spending review Topic 3]]+Dataset[[#This Row],[2029/30 To - Spending review Topic 4]]+Dataset[[#This Row],[2029/30 To - Other reallocations]]","v":0},{"$f":"Dataset[[#This Row],[2027/28 Targeted savings]]+Dataset[[#This Row],[2027/28 From - Total]]","v":0},{"$f":"Dataset[[#This Row],[2028/29 Targeted savings]]+Dataset[[#This Row],[2028/29 From - Total]]","v":0},{"$f":"Dataset[[#This Row],[2029/30 Targeted savings]]+Dataset[[#This Row],[2029/30 From - Total]]","v":0},{"$f":"Dataset[[#This Row],[2026/27 Targeted savings]]","v":0},{"$f":"SUM(Dataset[[#This Row],[2027/28 Targeted savings]],Dataset[[#This Row],[2027/28 From - Total]],Dataset[[#This Row],[2027/28 To - Total]])","v":0},{"$f":"SUM(Dataset[[#This Row],[2028/29 Targeted savings]],Dataset[[#This Row],[2028/29 From - Total]],Dataset[[#This Row],[2028/29 To - Total]])","v":0},{"$f":"SUM(Dataset[[#This Row],[2029/30 Targeted savings]],Dataset[[#This Row],[2029/30 From - Total]],Dataset[[#This Row],[2029/30 To - Total]])","v":0},{"$f":"Dataset[[#This Row],[2026/27 Baseline]]+Dataset[[#This Row],[2026/27 Total change]]","v":0},{"$f":"Dataset[[#This Row],[2027/28 Baseline]]+Dataset[[#This Row],[2027/28 Total change]]","v":34},{"$f":"Dataset[[#This Row],[2028/29 Baseline]]+Dataset[[#This Row],[2028/29 Total change]]","v":35},{"$f":"Dataset[[#This Row],[2029/30 Baseline]]+Dataset[[#This Row],[2029/30 Total change]]","v":36}]
["NAT|Non-transfer","30|Entertainment","2027_28","MTEC2027",30,5,1,33063,543,"30","05","01","033063","000543","30|05|01|000543","01","01","02","18","18","01|01|02|18|18","National","Communications and Digital Technologies","Digital Infrastructure and Technologies","Programme Management for Digital Infrastructure and Technologies","Non-transfer","Current","Current payments","Goods and services","Entertainment","Entertainment","Economic development","Economic regulation and infrastructure","NAT",0,0,2,4,4,4,0,4,4,4,4,null,null,null,null,null,null,null,null,null,null,null,null,null,null,null,null,null,null,null,null,null,null,null,null,null,null,null,null,null,null,null,null,null,null,{"$f":"Dataset[[#This Row],[2027/28 From - Spending review Topic 1]]+Dataset[[#This Row],[2027/28 From - Spending review Topic 2]]+Dataset[[#This Row],[2027/28 From - Spending review Topic 3]]+Dataset[[#This Row],[2027/28 From - Spending review Topic 4]]+Dataset[[#This Row],[2027/28 From - Other reallocations]]","v":0},{"$f":"Dataset[[#This Row],[2028/29 From - Spending review Topic 1]]+Dataset[[#This Row],[2028/29 From - Spending review Topic 2]]+Dataset[[#This Row],[2028/29 From - Spending review Topic 3]]+Dataset[[#This Row],[2028/29 From - Spending review Topic 4]]+Dataset[[#This Row],[2028/29 From - Other reallocations]]","v":0},{"$f":"Dataset[[#This Row],[2029/30 From - Spending review Topic 1]]+Dataset[[#This Row],[2029/30 From - Spending review Topic 2]]+Dataset[[#This Row],[2029/30 From - Spending review Topic 3]]+Dataset[[#This Row],[2029/30 From - Spending review Topic 4]]+Dataset[[#This Row],[2029/30 From - Other reallocations]]","v":0},{"$f":"Dataset[[#This Row],[2027/28 To - Spending review Topic 1]]+Dataset[[#This Row],[2027/28 To - Spending review Topic 2]]+Dataset[[#This Row],[2027/28 To - Spending review Topic 3]]+Dataset[[#This Row],[2027/28 To - Spending review Topic 4]]+Dataset[[#This Row],[2027/28 To - Other reallocations]]","v":0},{"$f":"Dataset[[#This Row],[2028/29 To - Spending review Topic 1]]+Dataset[[#This Row],[2028/29 To - Spending review Topic 2]]+Dataset[[#This Row],[2028/29 To - Spending review Topic 3]]+Dataset[[#This Row],[2028/29 To - Spending review Topic 4]]+Dataset[[#This Row],[2028/29 To - Other reallocations]]","v":0},{"$f":"Dataset[[#This Row],[2029/30 To - Spending review Topic 1]]+Dataset[[#This Row],[2029/30 To - Spending review Topic 2]]+Dataset[[#This Row],[2029/30 To - Spending review Topic 3]]+Dataset[[#This Row],[2029/30 To - Spending review Topic 4]]+Dataset[[#This Row],[2029/30 To - Other reallocations]]","v":0},{"$f":"Dataset[[#This Row],[2027/28 Targeted savings]]+Dataset[[#This Row],[2027/28 From - Total]]","v":0},{"$f":"Dataset[[#This Row],[2028/29 Targeted savings]]+Dataset[[#This Row],[2028/29 From - Total]]","v":0},{"$f":"Dataset[[#This Row],[2029/30 Targeted savings]]+Dataset[[#This Row],[2029/30 From - Total]]","v":0},{"$f":"Dataset[[#This Row],[2026/27 Targeted savings]]","v":0},{"$f":"SUM(Dataset[[#This Row],[2027/28 Targeted savings]],Dataset[[#This Row],[2027/28 From - Total]],Dataset[[#This Row],[2027/28 To - Total]])","v":0},{"$f":"SUM(Dataset[[#This Row],[2028/29 Targeted savings]],Dataset[[#This Row],[2028/29 From - Total]],Dataset[[#This Row],[2028/29 To - Total]])","v":0},{"$f":"SUM(Dataset[[#This Row],[2029/30 Targeted savings]],Dataset[[#This Row],[2029/30 From - Total]],Dataset[[#This Row],[2029/30 To - Total]])","v":0},{"$f":"Dataset[[#This Row],[2026/27 Baseline]]+Dataset[[#This Row],[2026/27 Total change]]","v":4},{"$f":"Dataset[[#This Row],[2027/28 Baseline]]+Dataset[[#This Row],[2027/28 Total change]]","v":4},{"$f":"Dataset[[#This Row],[2028/29 Baseline]]+Dataset[[#This Row],[2028/29 Total change]]","v":4},{"$f":"Dataset[[#This Row],[2029/30 Baseline]]+Dataset[[#This Row],[2029/30 Total change]]","v":4}]
["NAT|Non-transfer","30|Consumable supplies","2027_28","MTEC2027",30,5,1,33064,544,"30","05","01","033064","000544","30|05|01|000544","01","01","02","31","31","01|01|02|31|31","National","Communications and Digital Technologies","Digital Infrastructure and Technologies","Programme Management for Digital Infrastructure and Technologies","Non-transfer","Current","Current payments","Goods and services","Consumable supplies","Consumable supplies","Economic development","Economic regulation and infrastructure","NAT",6,7,2,0,0,0,0,12,0,0,0,null,null,null,null,null,null,null,null,null,null,null,null,null,null,null,null,null,null,null,null,null,null,null,null,null,null,null,null,null,null,null,null,null,null,{"$f":"Dataset[[#This Row],[2027/28 From - Spending review Topic 1]]+Dataset[[#This Row],[2027/28 From - Spending review Topic 2]]+Dataset[[#This Row],[2027/28 From - Spending review Topic 3]]+Dataset[[#This Row],[2027/28 From - Spending review Topic 4]]+Dataset[[#This Row],[2027/28 From - Other reallocations]]","v":0},{"$f":"Dataset[[#This Row],[2028/29 From - Spending review Topic 1]]+Dataset[[#This Row],[2028/29 From - Spending review Topic 2]]+Dataset[[#This Row],[2028/29 From - Spending review Topic 3]]+Dataset[[#This Row],[2028/29 From - Spending review Topic 4]]+Dataset[[#This Row],[2028/29 From - Other reallocations]]","v":0},{"$f":"Dataset[[#This Row],[2029/30 From - Spending review Topic 1]]+Dataset[[#This Row],[2029/30 From - Spending review Topic 2]]+Dataset[[#This Row],[2029/30 From - Spending review Topic 3]]+Dataset[[#This Row],[2029/30 From - Spending review Topic 4]]+Dataset[[#This Row],[2029/30 From - Other reallocations]]","v":0},{"$f":"Dataset[[#This Row],[2027/28 To - Spending review Topic 1]]+Dataset[[#This Row],[2027/28 To - Spending review Topic 2]]+Dataset[[#This Row],[2027/28 To - Spending review Topic 3]]+Dataset[[#This Row],[2027/28 To - Spending review Topic 4]]+Dataset[[#This Row],[2027/28 To - Other reallocations]]","v":0},{"$f":"Dataset[[#This Row],[2028/29 To - Spending review Topic 1]]+Dataset[[#This Row],[2028/29 To - Spending review Topic 2]]+Dataset[[#This Row],[2028/29 To - Spending review Topic 3]]+Dataset[[#This Row],[2028/29 To - Spending review Topic 4]]+Dataset[[#This Row],[2028/29 To - Other reallocations]]","v":0},{"$f":"Dataset[[#This Row],[2029/30 To - Spending review Topic 1]]+Dataset[[#This Row],[2029/30 To - Spending review Topic 2]]+Dataset[[#This Row],[2029/30 To - Spending review Topic 3]]+Dataset[[#This Row],[2029/30 To - Spending review Topic 4]]+Dataset[[#This Row],[2029/30 To - Other reallocations]]","v":0},{"$f":"Dataset[[#This Row],[2027/28 Targeted savings]]+Dataset[[#This Row],[2027/28 From - Total]]","v":0},{"$f":"Dataset[[#This Row],[2028/29 Targeted savings]]+Dataset[[#This Row],[2028/29 From - Total]]","v":0},{"$f":"Dataset[[#This Row],[2029/30 Targeted savings]]+Dataset[[#This Row],[2029/30 From - Total]]","v":0},{"$f":"Dataset[[#This Row],[2026/27 Targeted savings]]","v":0},{"$f":"SUM(Dataset[[#This Row],[2027/28 Targeted savings]],Dataset[[#This Row],[2027/28 From - Total]],Dataset[[#This Row],[2027/28 To - Total]])","v":0},{"$f":"SUM(Dataset[[#This Row],[2028/29 Targeted savings]],Dataset[[#This Row],[2028/29 From - Total]],Dataset[[#This Row],[2028/29 To - Total]])","v":0},{"$f":"SUM(Dataset[[#This Row],[2029/30 Targeted savings]],Dataset[[#This Row],[2029/30 From - Total]],Dataset[[#This Row],[2029/30 To - Total]])","v":0},{"$f":"Dataset[[#This Row],[2026/27 Baseline]]+Dataset[[#This Row],[2026/27 Total change]]","v":12},{"$f":"Dataset[[#This Row],[2027/28 Baseline]]+Dataset[[#This Row],[2027/28 Total change]]","v":0},{"$f":"Dataset[[#This Row],[2028/29 Baseline]]+Dataset[[#This Row],[2028/29 Total change]]","v":0},{"$f":"Dataset[[#This Row],[2029/30 Baseline]]+Dataset[[#This Row],[2029/30 Total change]]","v":0}]
["NAT|Non-transfer","30|Consumables: Stationery, printing and office supplies","2027_28","MTEC2027",30,5,1,33065,545,"30","05","01","033065","000545","30|05|01|000545","01","01","02","32","32","01|01|02|32|32","National","Communications and Digital Technologies","Digital Infrastructure and Technologies","Programme Management for Digital Infrastructure and Technologies","Non-transfer","Current","Current payments","Goods and services","Consumables: Stationery, printing and office supplies","Consumables: Stationery, printing and office supplies","Economic development","Economic regulation and infrastructure","NAT",42,0,24,50,50,50,0,24,105,108,111,null,null,null,null,null,null,null,null,null,null,null,null,null,null,null,null,null,null,null,null,null,null,null,null,null,null,null,null,null,null,null,null,null,null,{"$f":"Dataset[[#This Row],[2027/28 From - Spending review Topic 1]]+Dataset[[#This Row],[2027/28 From - Spending review Topic 2]]+Dataset[[#This Row],[2027/28 From - Spending review Topic 3]]+Dataset[[#This Row],[2027/28 From - Spending review Topic 4]]+Dataset[[#This Row],[2027/28 From - Other reallocations]]","v":0},{"$f":"Dataset[[#This Row],[2028/29 From - Spending review Topic 1]]+Dataset[[#This Row],[2028/29 From - Spending review Topic 2]]+Dataset[[#This Row],[2028/29 From - Spending review Topic 3]]+Dataset[[#This Row],[2028/29 From - Spending review Topic 4]]+Dataset[[#This Row],[2028/29 From - Other reallocations]]","v":0},{"$f":"Dataset[[#This Row],[2029/30 From - Spending review Topic 1]]+Dataset[[#This Row],[2029/30 From - Spending review Topic 2]]+Dataset[[#This Row],[2029/30 From - Spending review Topic 3]]+Dataset[[#This Row],[2029/30 From - Spending review Topic 4]]+Dataset[[#This Row],[2029/30 From - Other reallocations]]","v":0},{"$f":"Dataset[[#This Row],[2027/28 To - Spending review Topic 1]]+Dataset[[#This Row],[2027/28 To - Spending review Topic 2]]+Dataset[[#This Row],[2027/28 To - Spending review Topic 3]]+Dataset[[#This Row],[2027/28 To - Spending review Topic 4]]+Dataset[[#This Row],[2027/28 To - Other reallocations]]","v":0},{"$f":"Dataset[[#This Row],[2028/29 To - Spending review Topic 1]]+Dataset[[#This Row],[2028/29 To - Spending review Topic 2]]+Dataset[[#This Row],[2028/29 To - Spending review Topic 3]]+Dataset[[#This Row],[2028/29 To - Spending review Topic 4]]+Dataset[[#This Row],[2028/29 To - Other reallocations]]","v":0},{"$f":"Dataset[[#This Row],[2029/30 To - Spending review Topic 1]]+Dataset[[#This Row],[2029/30 To - Spending review Topic 2]]+Dataset[[#This Row],[2029/30 To - Spending review Topic 3]]+Dataset[[#This Row],[2029/30 To - Spending review Topic 4]]+Dataset[[#This Row],[2029/30 To - Other reallocations]]","v":0},{"$f":"Dataset[[#This Row],[2027/28 Targeted savings]]+Dataset[[#This Row],[2027/28 From - Total]]","v":0},{"$f":"Dataset[[#This Row],[2028/29 Targeted savings]]+Dataset[[#This Row],[2028/29 From - Total]]","v":0},{"$f":"Dataset[[#This Row],[2029/30 Targeted savings]]+Dataset[[#This Row],[2029/30 From - Total]]","v":0},{"$f":"Dataset[[#This Row],[2026/27 Targeted savings]]","v":0},{"$f":"SUM(Dataset[[#This Row],[2027/28 Targeted savings]],Dataset[[#This Row],[2027/28 From - Total]],Dataset[[#This Row],[2027/28 To - Total]])","v":0},{"$f":"SUM(Dataset[[#This Row],[2028/29 Targeted savings]],Dataset[[#This Row],[2028/29 From - Total]],Dataset[[#This Row],[2028/29 To - Total]])","v":0},{"$f":"SUM(Dataset[[#This Row],[2029/30 Targeted savings]],Dataset[[#This Row],[2029/30 From - Total]],Dataset[[#This Row],[2029/30 To - Total]])","v":0},{"$f":"Dataset[[#This Row],[2026/27 Baseline]]+Dataset[[#This Row],[2026/27 Total change]]","v":24},{"$f":"Dataset[[#This Row],[2027/28 Baseline]]+Dataset[[#This Row],[2027/28 Total change]]","v":105},{"$f":"Dataset[[#This Row],[2028/29 Baseline]]+Dataset[[#This Row],[2028/29 Total change]]","v":108},{"$f":"Dataset[[#This Row],[2029/30 Baseline]]+Dataset[[#This Row],[2029/30 Total change]]","v":111}]
["NAT|Non-transfer","30|Operating leases","2027_28","MTEC2027",30,5,1,33066,546,"30","05","01","033066","000546","30|05|01|000546","01","01","02","33","33","01|01|02|33|33","National","Communications and Digital Technologies","Digital Infrastructure and Technologies","Programme Management for Digital Infrastructure and Technologies","Non-transfer","Current","Current payments","Goods and services","Operating leases","Operating leases","Economic development","Economic regulation and infrastructure","NAT",0,0,0,50,50,50,0,0,0,0,0,null,null,null,null,null,null,null,null,null,null,null,null,null,null,null,null,null,null,null,null,null,null,null,null,null,null,null,null,null,null,null,null,null,null,{"$f":"Dataset[[#This Row],[2027/28 From - Spending review Topic 1]]+Dataset[[#This Row],[2027/28 From - Spending review Topic 2]]+Dataset[[#This Row],[2027/28 From - Spending review Topic 3]]+Dataset[[#This Row],[2027/28 From - Spending review Topic 4]]+Dataset[[#This Row],[2027/28 From - Other reallocations]]","v":0},{"$f":"Dataset[[#This Row],[2028/29 From - Spending review Topic 1]]+Dataset[[#This Row],[2028/29 From - Spending review Topic 2]]+Dataset[[#This Row],[2028/29 From - Spending review Topic 3]]+Dataset[[#This Row],[2028/29 From - Spending review Topic 4]]+Dataset[[#This Row],[2028/29 From - Other reallocations]]","v":0},{"$f":"Dataset[[#This Row],[2029/30 From - Spending review Topic 1]]+Dataset[[#This Row],[2029/30 From - Spending review Topic 2]]+Dataset[[#This Row],[2029/30 From - Spending review Topic 3]]+Dataset[[#This Row],[2029/30 From - Spending review Topic 4]]+Dataset[[#This Row],[2029/30 From - Other reallocations]]","v":0},{"$f":"Dataset[[#This Row],[2027/28 To - Spending review Topic 1]]+Dataset[[#This Row],[2027/28 To - Spending review Topic 2]]+Dataset[[#This Row],[2027/28 To - Spending review Topic 3]]+Dataset[[#This Row],[2027/28 To - Spending review Topic 4]]+Dataset[[#This Row],[2027/28 To - Other reallocations]]","v":0},{"$f":"Dataset[[#This Row],[2028/29 To - Spending review Topic 1]]+Dataset[[#This Row],[2028/29 To - Spending review Topic 2]]+Dataset[[#This Row],[2028/29 To - Spending review Topic 3]]+Dataset[[#This Row],[2028/29 To - Spending review Topic 4]]+Dataset[[#This Row],[2028/29 To - Other reallocations]]","v":0},{"$f":"Dataset[[#This Row],[2029/30 To - Spending review Topic 1]]+Dataset[[#This Row],[2029/30 To - Spending review Topic 2]]+Dataset[[#This Row],[2029/30 To - Spending review Topic 3]]+Dataset[[#This Row],[2029/30 To - Spending review Topic 4]]+Dataset[[#This Row],[2029/30 To - Other reallocations]]","v":0},{"$f":"Dataset[[#This Row],[2027/28 Targeted savings]]+Dataset[[#This Row],[2027/28 From - Total]]","v":0},{"$f":"Dataset[[#This Row],[2028/29 Targeted savings]]+Dataset[[#This Row],[2028/29 From - Total]]","v":0},{"$f":"Dataset[[#This Row],[2029/30 Targeted savings]]+Dataset[[#This Row],[2029/30 From - Total]]","v":0},{"$f":"Dataset[[#This Row],[2026/27 Targeted savings]]","v":0},{"$f":"SUM(Dataset[[#This Row],[2027/28 Targeted savings]],Dataset[[#This Row],[2027/28 From - Total]],Dataset[[#This Row],[2027/28 To - Total]])","v":0},{"$f":"SUM(Dataset[[#This Row],[2028/29 Targeted savings]],Dataset[[#This Row],[2028/29 From - Total]],Dataset[[#This Row],[2028/29 To - Total]])","v":0},{"$f":"SUM(Dataset[[#This Row],[2029/30 Targeted savings]],Dataset[[#This Row],[2029/30 From - Total]],Dataset[[#This Row],[2029/30 To - Total]])","v":0},{"$f":"Dataset[[#This Row],[2026/27 Baseline]]+Dataset[[#This Row],[2026/27 Total change]]","v":0},{"$f":"Dataset[[#This Row],[2027/28 Baseline]]+Dataset[[#This Row],[2027/28 Total change]]","v":0},{"$f":"Dataset[[#This Row],[2028/29 Baseline]]+Dataset[[#This Row],[2028/29 Total change]]","v":0},{"$f":"Dataset[[#This Row],[2029/30 Baseline]]+Dataset[[#This Row],[2029/30 Total change]]","v":0}]
["NAT|Non-transfer","30|Rental and hiring","2027_28","MTEC2027",30,5,1,33067,547,"30","05","01","033067","000547","30|05|01|000547","01","01","02","34","34","01|01|02|34|34","National","Communications and Digital Technologies","Digital Infrastructure and Technologies","Programme Management for Digital Infrastructure and Technologies","Non-transfer","Current","Current payments","Goods and services","Rental and hiring","Rental and hiring","Economic development","Economic regulation and infrastructure","NAT",0,0,0,20,20,20,0,0,0,0,0,null,null,null,null,null,null,null,null,null,null,null,null,null,null,null,null,null,null,null,null,null,null,null,null,null,null,null,null,null,null,null,null,null,null,{"$f":"Dataset[[#This Row],[2027/28 From - Spending review Topic 1]]+Dataset[[#This Row],[2027/28 From - Spending review Topic 2]]+Dataset[[#This Row],[2027/28 From - Spending review Topic 3]]+Dataset[[#This Row],[2027/28 From - Spending review Topic 4]]+Dataset[[#This Row],[2027/28 From - Other reallocations]]","v":0},{"$f":"Dataset[[#This Row],[2028/29 From - Spending review Topic 1]]+Dataset[[#This Row],[2028/29 From - Spending review Topic 2]]+Dataset[[#This Row],[2028/29 From - Spending review Topic 3]]+Dataset[[#This Row],[2028/29 From - Spending review Topic 4]]+Dataset[[#This Row],[2028/29 From - Other reallocations]]","v":0},{"$f":"Dataset[[#This Row],[2029/30 From - Spending review Topic 1]]+Dataset[[#This Row],[2029/30 From - Spending review Topic 2]]+Dataset[[#This Row],[2029/30 From - Spending review Topic 3]]+Dataset[[#This Row],[2029/30 From - Spending review Topic 4]]+Dataset[[#This Row],[2029/30 From - Other reallocations]]","v":0},{"$f":"Dataset[[#This Row],[2027/28 To - Spending review Topic 1]]+Dataset[[#This Row],[2027/28 To - Spending review Topic 2]]+Dataset[[#This Row],[2027/28 To - Spending review Topic 3]]+Dataset[[#This Row],[2027/28 To - Spending review Topic 4]]+Dataset[[#This Row],[2027/28 To - Other reallocations]]","v":0},{"$f":"Dataset[[#This Row],[2028/29 To - Spending review Topic 1]]+Dataset[[#This Row],[2028/29 To - Spending review Topic 2]]+Dataset[[#This Row],[2028/29 To - Spending review Topic 3]]+Dataset[[#This Row],[2028/29 To - Spending review Topic 4]]+Dataset[[#This Row],[2028/29 To - Other reallocations]]","v":0},{"$f":"Dataset[[#This Row],[2029/30 To - Spending review Topic 1]]+Dataset[[#This Row],[2029/30 To - Spending review Topic 2]]+Dataset[[#This Row],[2029/30 To - Spending review Topic 3]]+Dataset[[#This Row],[2029/30 To - Spending review Topic 4]]+Dataset[[#This Row],[2029/30 To - Other reallocations]]","v":0},{"$f":"Dataset[[#This Row],[2027/28 Targeted savings]]+Dataset[[#This Row],[2027/28 From - Total]]","v":0},{"$f":"Dataset[[#This Row],[2028/29 Targeted savings]]+Dataset[[#This Row],[2028/29 From - Total]]","v":0},{"$f":"Dataset[[#This Row],[2029/30 Targeted savings]]+Dataset[[#This Row],[2029/30 From - Total]]","v":0},{"$f":"Dataset[[#This Row],[2026/27 Targeted savings]]","v":0},{"$f":"SUM(Dataset[[#This Row],[2027/28 Targeted savings]],Dataset[[#This Row],[2027/28 From - Total]],Dataset[[#This Row],[2027/28 To - Total]])","v":0},{"$f":"SUM(Dataset[[#This Row],[2028/29 Targeted savings]],Dataset[[#This Row],[2028/29 From - Total]],Dataset[[#This Row],[2028/29 To - Total]])","v":0},{"$f":"SUM(Dataset[[#This Row],[2029/30 Targeted savings]],Dataset[[#This Row],[2029/30 From - Total]],Dataset[[#This Row],[2029/30 To - Total]])","v":0},{"$f":"Dataset[[#This Row],[2026/27 Baseline]]+Dataset[[#This Row],[2026/27 Total change]]","v":0},{"$f":"Dataset[[#This Row],[2027/28 Baseline]]+Dataset[[#This Row],[2027/28 Total change]]","v":0},{"$f":"Dataset[[#This Row],[2028/29 Baseline]]+Dataset[[#This Row],[2028/29 Total change]]","v":0},{"$f":"Dataset[[#This Row],[2029/30 Baseline]]+Dataset[[#This Row],[2029/30 Total change]]","v":0}]
["NAT|Non-transfer","30|Travel and subsistence","2027_28","MTEC2027",30,5,1,33068,548,"30","05","01","033068","000548","30|05|01|000548","01","01","02","37","37","01|01|02|37|37","National","Communications and Digital Technologies","Digital Infrastructure and Technologies","Programme Management for Digital Infrastructure and Technologies","Non-transfer","Current","Current payments","Goods and services","Travel and subsistence","Travel and subsistence","Economic development","Economic regulation and infrastructure","NAT",546,1005,691,514,514,514,0,969,742,624,643,null,null,null,null,null,null,null,null,null,null,null,null,null,null,null,null,null,null,null,null,null,null,null,null,null,null,null,null,null,null,null,null,null,null,{"$f":"Dataset[[#This Row],[2027/28 From - Spending review Topic 1]]+Dataset[[#This Row],[2027/28 From - Spending review Topic 2]]+Dataset[[#This Row],[2027/28 From - Spending review Topic 3]]+Dataset[[#This Row],[2027/28 From - Spending review Topic 4]]+Dataset[[#This Row],[2027/28 From - Other reallocations]]","v":0},{"$f":"Dataset[[#This Row],[2028/29 From - Spending review Topic 1]]+Dataset[[#This Row],[2028/29 From - Spending review Topic 2]]+Dataset[[#This Row],[2028/29 From - Spending review Topic 3]]+Dataset[[#This Row],[2028/29 From - Spending review Topic 4]]+Dataset[[#This Row],[2028/29 From - Other reallocations]]","v":0},{"$f":"Dataset[[#This Row],[2029/30 From - Spending review Topic 1]]+Dataset[[#This Row],[2029/30 From - Spending review Topic 2]]+Dataset[[#This Row],[2029/30 From - Spending review Topic 3]]+Dataset[[#This Row],[2029/30 From - Spending review Topic 4]]+Dataset[[#This Row],[2029/30 From - Other reallocations]]","v":0},{"$f":"Dataset[[#This Row],[2027/28 To - Spending review Topic 1]]+Dataset[[#This Row],[2027/28 To - Spending review Topic 2]]+Dataset[[#This Row],[2027/28 To - Spending review Topic 3]]+Dataset[[#This Row],[2027/28 To - Spending review Topic 4]]+Dataset[[#This Row],[2027/28 To - Other reallocations]]","v":0},{"$f":"Dataset[[#This Row],[2028/29 To - Spending review Topic 1]]+Dataset[[#This Row],[2028/29 To - Spending review Topic 2]]+Dataset[[#This Row],[2028/29 To - Spending review Topic 3]]+Dataset[[#This Row],[2028/29 To - Spending review Topic 4]]+Dataset[[#This Row],[2028/29 To - Other reallocations]]","v":0},{"$f":"Dataset[[#This Row],[2029/30 To - Spending review Topic 1]]+Dataset[[#This Row],[2029/30 To - Spending review Topic 2]]+Dataset[[#This Row],[2029/30 To - Spending review Topic 3]]+Dataset[[#This Row],[2029/30 To - Spending review Topic 4]]+Dataset[[#This Row],[2029/30 To - Other reallocations]]","v":0},{"$f":"Dataset[[#This Row],[2027/28 Targeted savings]]+Dataset[[#This Row],[2027/28 From - Total]]","v":0},{"$f":"Dataset[[#This Row],[2028/29 Targeted savings]]+Dataset[[#This Row],[2028/29 From - Total]]","v":0},{"$f":"Dataset[[#This Row],[2029/30 Targeted savings]]+Dataset[[#This Row],[2029/30 From - Total]]","v":0},{"$f":"Dataset[[#This Row],[2026/27 Targeted savings]]","v":0},{"$f":"SUM(Dataset[[#This Row],[2027/28 Targeted savings]],Dataset[[#This Row],[2027/28 From - Total]],Dataset[[#This Row],[2027/28 To - Total]])","v":0},{"$f":"SUM(Dataset[[#This Row],[2028/29 Targeted savings]],Dataset[[#This Row],[2028/29 From - Total]],Dataset[[#This Row],[2028/29 To - Total]])","v":0},{"$f":"SUM(Dataset[[#This Row],[2029/30 Targeted savings]],Dataset[[#This Row],[2029/30 From - Total]],Dataset[[#This Row],[2029/30 To - Total]])","v":0},{"$f":"Dataset[[#This Row],[2026/27 Baseline]]+Dataset[[#This Row],[2026/27 Total change]]","v":969},{"$f":"Dataset[[#This Row],[2027/28 Baseline]]+Dataset[[#This Row],[2027/28 Total change]]","v":742},{"$f":"Dataset[[#This Row],[2028/29 Baseline]]+Dataset[[#This Row],[2028/29 Total change]]","v":624},{"$f":"Dataset[[#This Row],[2029/30 Baseline]]+Dataset[[#This Row],[2029/30 Total change]]","v":643}]
["NAT|Non-transfer","30|Training and development","2027_28","MTEC2027",30,5,1,33069,549,"30","05","01","033069","000549","30|05|01|000549","01","01","02","38","38","01|01|02|38|38","National","Communications and Digital Technologies","Digital Infrastructure and Technologies","Programme Management for Digital Infrastructure and Technologies","Non-transfer","Current","Current payments","Goods and services","Training and development","Training and development","Economic development","Economic regulation and infrastructure","NAT",0,17,70,95,95,95,0,25,102,105,108,null,null,null,null,null,null,null,null,null,null,null,null,null,null,null,null,null,null,null,null,null,null,null,null,null,null,null,null,null,null,null,null,null,null,{"$f":"Dataset[[#This Row],[2027/28 From - Spending review Topic 1]]+Dataset[[#This Row],[2027/28 From - Spending review Topic 2]]+Dataset[[#This Row],[2027/28 From - Spending review Topic 3]]+Dataset[[#This Row],[2027/28 From - Spending review Topic 4]]+Dataset[[#This Row],[2027/28 From - Other reallocations]]","v":0},{"$f":"Dataset[[#This Row],[2028/29 From - Spending review Topic 1]]+Dataset[[#This Row],[2028/29 From - Spending review Topic 2]]+Dataset[[#This Row],[2028/29 From - Spending review Topic 3]]+Dataset[[#This Row],[2028/29 From - Spending review Topic 4]]+Dataset[[#This Row],[2028/29 From - Other reallocations]]","v":0},{"$f":"Dataset[[#This Row],[2029/30 From - Spending review Topic 1]]+Dataset[[#This Row],[2029/30 From - Spending review Topic 2]]+Dataset[[#This Row],[2029/30 From - Spending review Topic 3]]+Dataset[[#This Row],[2029/30 From - Spending review Topic 4]]+Dataset[[#This Row],[2029/30 From - Other reallocations]]","v":0},{"$f":"Dataset[[#This Row],[2027/28 To - Spending review Topic 1]]+Dataset[[#This Row],[2027/28 To - Spending review Topic 2]]+Dataset[[#This Row],[2027/28 To - Spending review Topic 3]]+Dataset[[#This Row],[2027/28 To - Spending review Topic 4]]+Dataset[[#This Row],[2027/28 To - Other reallocations]]","v":0},{"$f":"Dataset[[#This Row],[2028/29 To - Spending review Topic 1]]+Dataset[[#This Row],[2028/29 To - Spending review Topic 2]]+Dataset[[#This Row],[2028/29 To - Spending review Topic 3]]+Dataset[[#This Row],[2028/29 To - Spending review Topic 4]]+Dataset[[#This Row],[2028/29 To - Other reallocations]]","v":0},{"$f":"Dataset[[#This Row],[2029/30 To - Spending review Topic 1]]+Dataset[[#This Row],[2029/30 To - Spending review Topic 2]]+Dataset[[#This Row],[2029/30 To - Spending review Topic 3]]+Dataset[[#This Row],[2029/30 To - Spending review Topic 4]]+Dataset[[#This Row],[2029/30 To - Other reallocations]]","v":0},{"$f":"Dataset[[#This Row],[2027/28 Targeted savings]]+Dataset[[#This Row],[2027/28 From - Total]]","v":0},{"$f":"Dataset[[#This Row],[2028/29 Targeted savings]]+Dataset[[#This Row],[2028/29 From - Total]]","v":0},{"$f":"Dataset[[#This Row],[2029/30 Targeted savings]]+Dataset[[#This Row],[2029/30 From - Total]]","v":0},{"$f":"Dataset[[#This Row],[2026/27 Targeted savings]]","v":0},{"$f":"SUM(Dataset[[#This Row],[2027/28 Targeted savings]],Dataset[[#This Row],[2027/28 From - Total]],Dataset[[#This Row],[2027/28 To - Total]])","v":0},{"$f":"SUM(Dataset[[#This Row],[2028/29 Targeted savings]],Dataset[[#This Row],[2028/29 From - Total]],Dataset[[#This Row],[2028/29 To - Total]])","v":0},{"$f":"SUM(Dataset[[#This Row],[2029/30 Targeted savings]],Dataset[[#This Row],[2029/30 From - Total]],Dataset[[#This Row],[2029/30 To - Total]])","v":0},{"$f":"Dataset[[#This Row],[2026/27 Baseline]]+Dataset[[#This Row],[2026/27 Total change]]","v":25},{"$f":"Dataset[[#This Row],[2027/28 Baseline]]+Dataset[[#This Row],[2027/28 Total change]]","v":102},{"$f":"Dataset[[#This Row],[2028/29 Baseline]]+Dataset[[#This Row],[2028/29 Total change]]","v":105},{"$f":"Dataset[[#This Row],[2029/30 Baseline]]+Dataset[[#This Row],[2029/30 Total change]]","v":108}]
["NAT|Employee social benefits","30|Other transfers to households","2027_28","MTEC2027",30,5,1,33070,550,"30","05","01","033070","000550","30|05|01|000550","01","02","10","53","57","01|02|10|53|57","National","Communications and Digital Technologies","Digital Infrastructure and Technologies","Programme Management for Digital Infrastructure and Technologies","Employee social benefits","Current","Transfers and subsidies","Households","Other transfers to households","Other transfers to households","Economic development","Economic regulation and infrastructure","NAT",0,0,2,0,0,0,0,0,0,0,0,null,null,null,null,null,null,null,null,null,null,null,null,null,null,null,null,null,null,null,null,null,null,null,null,null,null,null,null,null,null,null,null,null,null,{"$f":"Dataset[[#This Row],[2027/28 From - Spending review Topic 1]]+Dataset[[#This Row],[2027/28 From - Spending review Topic 2]]+Dataset[[#This Row],[2027/28 From - Spending review Topic 3]]+Dataset[[#This Row],[2027/28 From - Spending review Topic 4]]+Dataset[[#This Row],[2027/28 From - Other reallocations]]","v":0},{"$f":"Dataset[[#This Row],[2028/29 From - Spending review Topic 1]]+Dataset[[#This Row],[2028/29 From - Spending review Topic 2]]+Dataset[[#This Row],[2028/29 From - Spending review Topic 3]]+Dataset[[#This Row],[2028/29 From - Spending review Topic 4]]+Dataset[[#This Row],[2028/29 From - Other reallocations]]","v":0},{"$f":"Dataset[[#This Row],[2029/30 From - Spending review Topic 1]]+Dataset[[#This Row],[2029/30 From - Spending review Topic 2]]+Dataset[[#This Row],[2029/30 From - Spending review Topic 3]]+Dataset[[#This Row],[2029/30 From - Spending review Topic 4]]+Dataset[[#This Row],[2029/30 From - Other reallocations]]","v":0},{"$f":"Dataset[[#This Row],[2027/28 To - Spending review Topic 1]]+Dataset[[#This Row],[2027/28 To - Spending review Topic 2]]+Dataset[[#This Row],[2027/28 To - Spending review Topic 3]]+Dataset[[#This Row],[2027/28 To - Spending review Topic 4]]+Dataset[[#This Row],[2027/28 To - Other reallocations]]","v":0},{"$f":"Dataset[[#This Row],[2028/29 To - Spending review Topic 1]]+Dataset[[#This Row],[2028/29 To - Spending review Topic 2]]+Dataset[[#This Row],[2028/29 To - Spending review Topic 3]]+Dataset[[#This Row],[2028/29 To - Spending review Topic 4]]+Dataset[[#This Row],[2028/29 To - Other reallocations]]","v":0},{"$f":"Dataset[[#This Row],[2029/30 To - Spending review Topic 1]]+Dataset[[#This Row],[2029/30 To - Spending review Topic 2]]+Dataset[[#This Row],[2029/30 To - Spending review Topic 3]]+Dataset[[#This Row],[2029/30 To - Spending review Topic 4]]+Dataset[[#This Row],[2029/30 To - Other reallocations]]","v":0},{"$f":"Dataset[[#This Row],[2027/28 Targeted savings]]+Dataset[[#This Row],[2027/28 From - Total]]","v":0},{"$f":"Dataset[[#This Row],[2028/29 Targeted savings]]+Dataset[[#This Row],[2028/29 From - Total]]","v":0},{"$f":"Dataset[[#This Row],[2029/30 Targeted savings]]+Dataset[[#This Row],[2029/30 From - Total]]","v":0},{"$f":"Dataset[[#This Row],[2026/27 Targeted savings]]","v":0},{"$f":"SUM(Dataset[[#This Row],[2027/28 Targeted savings]],Dataset[[#This Row],[2027/28 From - Total]],Dataset[[#This Row],[2027/28 To - Total]])","v":0},{"$f":"SUM(Dataset[[#This Row],[2028/29 Targeted savings]],Dataset[[#This Row],[2028/29 From - Total]],Dataset[[#This Row],[2028/29 To - Total]])","v":0},{"$f":"SUM(Dataset[[#This Row],[2029/30 Targeted savings]],Dataset[[#This Row],[2029/30 From - Total]],Dataset[[#This Row],[2029/30 To - Total]])","v":0},{"$f":"Dataset[[#This Row],[2026/27 Baseline]]+Dataset[[#This Row],[2026/27 Total change]]","v":0},{"$f":"Dataset[[#This Row],[2027/28 Baseline]]+Dataset[[#This Row],[2027/28 Total change]]","v":0},{"$f":"Dataset[[#This Row],[2028/29 Baseline]]+Dataset[[#This Row],[2028/29 Total change]]","v":0},{"$f":"Dataset[[#This Row],[2029/30 Baseline]]+Dataset[[#This Row],[2029/30 Total change]]","v":0}]
["NAT|Non-transfer","30|Other machinery and equipment","2027_28","MTEC2027",30,5,1,33071,551,"30","05","01","033071","000551","30|05|01|000551","02","03","12","57","61","02|03|12|57|61","National","Communications and Digital Technologies","Digital Infrastructure and Technologies","Programme Management for Digital Infrastructure and Technologies","Non-transfer","Capital","Payments for capital assets","Machinery and equipment","Other machinery and equipment","Other machinery and equipment","Economic development","Economic regulation and infrastructure","NAT",216,0,0,0,0,0,0,0,0,0,0,null,null,null,null,null,null,null,null,null,null,null,null,null,null,null,null,null,null,null,null,null,null,null,null,null,null,null,null,null,null,null,null,null,null,{"$f":"Dataset[[#This Row],[2027/28 From - Spending review Topic 1]]+Dataset[[#This Row],[2027/28 From - Spending review Topic 2]]+Dataset[[#This Row],[2027/28 From - Spending review Topic 3]]+Dataset[[#This Row],[2027/28 From - Spending review Topic 4]]+Dataset[[#This Row],[2027/28 From - Other reallocations]]","v":0},{"$f":"Dataset[[#This Row],[2028/29 From - Spending review Topic 1]]+Dataset[[#This Row],[2028/29 From - Spending review Topic 2]]+Dataset[[#This Row],[2028/29 From - Spending review Topic 3]]+Dataset[[#This Row],[2028/29 From - Spending review Topic 4]]+Dataset[[#This Row],[2028/29 From - Other reallocations]]","v":0},{"$f":"Dataset[[#This Row],[2029/30 From - Spending review Topic 1]]+Dataset[[#This Row],[2029/30 From - Spending review Topic 2]]+Dataset[[#This Row],[2029/30 From - Spending review Topic 3]]+Dataset[[#This Row],[2029/30 From - Spending review Topic 4]]+Dataset[[#This Row],[2029/30 From - Other reallocations]]","v":0},{"$f":"Dataset[[#This Row],[2027/28 To - Spending review Topic 1]]+Dataset[[#This Row],[2027/28 To - Spending review Topic 2]]+Dataset[[#This Row],[2027/28 To - Spending review Topic 3]]+Dataset[[#This Row],[2027/28 To - Spending review Topic 4]]+Dataset[[#This Row],[2027/28 To - Other reallocations]]","v":0},{"$f":"Dataset[[#This Row],[2028/29 To - Spending review Topic 1]]+Dataset[[#This Row],[2028/29 To - Spending review Topic 2]]+Dataset[[#This Row],[2028/29 To - Spending review Topic 3]]+Dataset[[#This Row],[2028/29 To - Spending review Topic 4]]+Dataset[[#This Row],[2028/29 To - Other reallocations]]","v":0},{"$f":"Dataset[[#This Row],[2029/30 To - Spending review Topic 1]]+Dataset[[#This Row],[2029/30 To - Spending review Topic 2]]+Dataset[[#This Row],[2029/30 To - Spending review Topic 3]]+Dataset[[#This Row],[2029/30 To - Spending review Topic 4]]+Dataset[[#This Row],[2029/30 To - Other reallocations]]","v":0},{"$f":"Dataset[[#This Row],[2027/28 Targeted savings]]+Dataset[[#This Row],[2027/28 From - Total]]","v":0},{"$f":"Dataset[[#This Row],[2028/29 Targeted savings]]+Dataset[[#This Row],[2028/29 From - Total]]","v":0},{"$f":"Dataset[[#This Row],[2029/30 Targeted savings]]+Dataset[[#This Row],[2029/30 From - Total]]","v":0},{"$f":"Dataset[[#This Row],[2026/27 Targeted savings]]","v":0},{"$f":"SUM(Dataset[[#This Row],[2027/28 Targeted savings]],Dataset[[#This Row],[2027/28 From - Total]],Dataset[[#This Row],[2027/28 To - Total]])","v":0},{"$f":"SUM(Dataset[[#This Row],[2028/29 Targeted savings]],Dataset[[#This Row],[2028/29 From - Total]],Dataset[[#This Row],[2028/29 To - Total]])","v":0},{"$f":"SUM(Dataset[[#This Row],[2029/30 Targeted savings]],Dataset[[#This Row],[2029/30 From - Total]],Dataset[[#This Row],[2029/30 To - Total]])","v":0},{"$f":"Dataset[[#This Row],[2026/27 Baseline]]+Dataset[[#This Row],[2026/27 Total change]]","v":0},{"$f":"Dataset[[#This Row],[2027/28 Baseline]]+Dataset[[#This Row],[2027/28 Total change]]","v":0},{"$f":"Dataset[[#This Row],[2028/29 Baseline]]+Dataset[[#This Row],[2028/29 Total change]]","v":0},{"$f":"Dataset[[#This Row],[2029/30 Baseline]]+Dataset[[#This Row],[2029/30 Total change]]","v":0}]
["NAT|Non-transfer","30|Salaries and wages","2027_28","MTEC2027",30,5,2,33072,552,"30","05","02","033072","000552","30|05|02|000552","01","01","01","01","01","01|01|01|01|01","National","Communications and Digital Technologies","Digital Infrastructure and Technologies","Broadband","Non-transfer","Current","Current payments","Compensation of employees","Salaries and wages","Salaries and wages","Economic development","Economic regulation and infrastructure","NAT",22476,24077,23533,27787,25887,25887,0,31078,28205,28077,28922,null,null,null,null,null,null,null,null,null,null,null,null,null,null,null,null,null,null,null,null,null,null,null,null,null,null,null,null,null,null,null,null,null,null,{"$f":"Dataset[[#This Row],[2027/28 From - Spending review Topic 1]]+Dataset[[#This Row],[2027/28 From - Spending review Topic 2]]+Dataset[[#This Row],[2027/28 From - Spending review Topic 3]]+Dataset[[#This Row],[2027/28 From - Spending review Topic 4]]+Dataset[[#This Row],[2027/28 From - Other reallocations]]","v":0},{"$f":"Dataset[[#This Row],[2028/29 From - Spending review Topic 1]]+Dataset[[#This Row],[2028/29 From - Spending review Topic 2]]+Dataset[[#This Row],[2028/29 From - Spending review Topic 3]]+Dataset[[#This Row],[2028/29 From - Spending review Topic 4]]+Dataset[[#This Row],[2028/29 From - Other reallocations]]","v":0},{"$f":"Dataset[[#This Row],[2029/30 From - Spending review Topic 1]]+Dataset[[#This Row],[2029/30 From - Spending review Topic 2]]+Dataset[[#This Row],[2029/30 From - Spending review Topic 3]]+Dataset[[#This Row],[2029/30 From - Spending review Topic 4]]+Dataset[[#This Row],[2029/30 From - Other reallocations]]","v":0},{"$f":"Dataset[[#This Row],[2027/28 To - Spending review Topic 1]]+Dataset[[#This Row],[2027/28 To - Spending review Topic 2]]+Dataset[[#This Row],[2027/28 To - Spending review Topic 3]]+Dataset[[#This Row],[2027/28 To - Spending review Topic 4]]+Dataset[[#This Row],[2027/28 To - Other reallocations]]","v":0},{"$f":"Dataset[[#This Row],[2028/29 To - Spending review Topic 1]]+Dataset[[#This Row],[2028/29 To - Spending review Topic 2]]+Dataset[[#This Row],[2028/29 To - Spending review Topic 3]]+Dataset[[#This Row],[2028/29 To - Spending review Topic 4]]+Dataset[[#This Row],[2028/29 To - Other reallocations]]","v":0},{"$f":"Dataset[[#This Row],[2029/30 To - Spending review Topic 1]]+Dataset[[#This Row],[2029/30 To - Spending review Topic 2]]+Dataset[[#This Row],[2029/30 To - Spending review Topic 3]]+Dataset[[#This Row],[2029/30 To - Spending review Topic 4]]+Dataset[[#This Row],[2029/30 To - Other reallocations]]","v":0},{"$f":"Dataset[[#This Row],[2027/28 Targeted savings]]+Dataset[[#This Row],[2027/28 From - Total]]","v":0},{"$f":"Dataset[[#This Row],[2028/29 Targeted savings]]+Dataset[[#This Row],[2028/29 From - Total]]","v":0},{"$f":"Dataset[[#This Row],[2029/30 Targeted savings]]+Dataset[[#This Row],[2029/30 From - Total]]","v":0},{"$f":"Dataset[[#This Row],[2026/27 Targeted savings]]","v":0},{"$f":"SUM(Dataset[[#This Row],[2027/28 Targeted savings]],Dataset[[#This Row],[2027/28 From - Total]],Dataset[[#This Row],[2027/28 To - Total]])","v":0},{"$f":"SUM(Dataset[[#This Row],[2028/29 Targeted savings]],Dataset[[#This Row],[2028/29 From - Total]],Dataset[[#This Row],[2028/29 To - Total]])","v":0},{"$f":"SUM(Dataset[[#This Row],[2029/30 Targeted savings]],Dataset[[#This Row],[2029/30 From - Total]],Dataset[[#This Row],[2029/30 To - Total]])","v":0},{"$f":"Dataset[[#This Row],[2026/27 Baseline]]+Dataset[[#This Row],[2026/27 Total change]]","v":31078},{"$f":"Dataset[[#This Row],[2027/28 Baseline]]+Dataset[[#This Row],[2027/28 Total change]]","v":28205},{"$f":"Dataset[[#This Row],[2028/29 Baseline]]+Dataset[[#This Row],[2028/29 Total change]]","v":28077},{"$f":"Dataset[[#This Row],[2029/30 Baseline]]+Dataset[[#This Row],[2029/30 Total change]]","v":28922}]
["NAT|Non-transfer","30|Social contributions","2027_28","MTEC2027",30,5,2,33073,553,"30","05","02","033073","000553","30|05|02|000553","01","01","01","02","02","01|01|01|02|02","National","Communications and Digital Technologies","Digital Infrastructure and Technologies","Broadband","Non-transfer","Current","Current payments","Compensation of employees","Social contributions","Social contributions","Economic development","Economic regulation and infrastructure","NAT",2404,2640,2560,2654,2554,2554,0,2862,3021,3115,3209,null,null,null,null,null,null,null,null,null,null,null,null,null,null,null,null,null,null,null,null,null,null,null,null,null,null,null,null,null,null,null,null,null,null,{"$f":"Dataset[[#This Row],[2027/28 From - Spending review Topic 1]]+Dataset[[#This Row],[2027/28 From - Spending review Topic 2]]+Dataset[[#This Row],[2027/28 From - Spending review Topic 3]]+Dataset[[#This Row],[2027/28 From - Spending review Topic 4]]+Dataset[[#This Row],[2027/28 From - Other reallocations]]","v":0},{"$f":"Dataset[[#This Row],[2028/29 From - Spending review Topic 1]]+Dataset[[#This Row],[2028/29 From - Spending review Topic 2]]+Dataset[[#This Row],[2028/29 From - Spending review Topic 3]]+Dataset[[#This Row],[2028/29 From - Spending review Topic 4]]+Dataset[[#This Row],[2028/29 From - Other reallocations]]","v":0},{"$f":"Dataset[[#This Row],[2029/30 From - Spending review Topic 1]]+Dataset[[#This Row],[2029/30 From - Spending review Topic 2]]+Dataset[[#This Row],[2029/30 From - Spending review Topic 3]]+Dataset[[#This Row],[2029/30 From - Spending review Topic 4]]+Dataset[[#This Row],[2029/30 From - Other reallocations]]","v":0},{"$f":"Dataset[[#This Row],[2027/28 To - Spending review Topic 1]]+Dataset[[#This Row],[2027/28 To - Spending review Topic 2]]+Dataset[[#This Row],[2027/28 To - Spending review Topic 3]]+Dataset[[#This Row],[2027/28 To - Spending review Topic 4]]+Dataset[[#This Row],[2027/28 To - Other reallocations]]","v":0},{"$f":"Dataset[[#This Row],[2028/29 To - Spending review Topic 1]]+Dataset[[#This Row],[2028/29 To - Spending review Topic 2]]+Dataset[[#This Row],[2028/29 To - Spending review Topic 3]]+Dataset[[#This Row],[2028/29 To - Spending review Topic 4]]+Dataset[[#This Row],[2028/29 To - Other reallocations]]","v":0},{"$f":"Dataset[[#This Row],[2029/30 To - Spending review Topic 1]]+Dataset[[#This Row],[2029/30 To - Spending review Topic 2]]+Dataset[[#This Row],[2029/30 To - Spending review Topic 3]]+Dataset[[#This Row],[2029/30 To - Spending review Topic 4]]+Dataset[[#This Row],[2029/30 To - Other reallocations]]","v":0},{"$f":"Dataset[[#This Row],[2027/28 Targeted savings]]+Dataset[[#This Row],[2027/28 From - Total]]","v":0},{"$f":"Dataset[[#This Row],[2028/29 Targeted savings]]+Dataset[[#This Row],[2028/29 From - Total]]","v":0},{"$f":"Dataset[[#This Row],[2029/30 Targeted savings]]+Dataset[[#This Row],[2029/30 From - Total]]","v":0},{"$f":"Dataset[[#This Row],[2026/27 Targeted savings]]","v":0},{"$f":"SUM(Dataset[[#This Row],[2027/28 Targeted savings]],Dataset[[#This Row],[2027/28 From - Total]],Dataset[[#This Row],[2027/28 To - Total]])","v":0},{"$f":"SUM(Dataset[[#This Row],[2028/29 Targeted savings]],Dataset[[#This Row],[2028/29 From - Total]],Dataset[[#This Row],[2028/29 To - Total]])","v":0},{"$f":"SUM(Dataset[[#This Row],[2029/30 Targeted savings]],Dataset[[#This Row],[2029/30 From - Total]],Dataset[[#This Row],[2029/30 To - Total]])","v":0},{"$f":"Dataset[[#This Row],[2026/27 Baseline]]+Dataset[[#This Row],[2026/27 Total change]]","v":2862},{"$f":"Dataset[[#This Row],[2027/28 Baseline]]+Dataset[[#This Row],[2027/28 Total change]]","v":3021},{"$f":"Dataset[[#This Row],[2028/29 Baseline]]+Dataset[[#This Row],[2028/29 Total change]]","v":3115},{"$f":"Dataset[[#This Row],[2029/30 Baseline]]+Dataset[[#This Row],[2029/30 Total change]]","v":3209}]
["NAT|Non-transfer","30|Administrative fees","2027_28","MTEC2027",30,5,2,33074,554,"30","05","02","033074","000554","30|05|02|000554","01","01","02","03","03","01|01|02|03|03","National","Communications and Digital Technologies","Digital Infrastructure and Technologies","Broadband","Non-transfer","Current","Current payments","Goods and services","Administrative fees","Administrative fees","Economic development","Economic regulation and infrastructure","NAT",27,65,47,293,153,153,0,118,274,283,292,null,null,null,null,null,null,null,null,null,null,null,null,null,null,null,null,null,null,null,null,null,null,null,null,null,null,null,null,null,null,null,null,null,null,{"$f":"Dataset[[#This Row],[2027/28 From - Spending review Topic 1]]+Dataset[[#This Row],[2027/28 From - Spending review Topic 2]]+Dataset[[#This Row],[2027/28 From - Spending review Topic 3]]+Dataset[[#This Row],[2027/28 From - Spending review Topic 4]]+Dataset[[#This Row],[2027/28 From - Other reallocations]]","v":0},{"$f":"Dataset[[#This Row],[2028/29 From - Spending review Topic 1]]+Dataset[[#This Row],[2028/29 From - Spending review Topic 2]]+Dataset[[#This Row],[2028/29 From - Spending review Topic 3]]+Dataset[[#This Row],[2028/29 From - Spending review Topic 4]]+Dataset[[#This Row],[2028/29 From - Other reallocations]]","v":0},{"$f":"Dataset[[#This Row],[2029/30 From - Spending review Topic 1]]+Dataset[[#This Row],[2029/30 From - Spending review Topic 2]]+Dataset[[#This Row],[2029/30 From - Spending review Topic 3]]+Dataset[[#This Row],[2029/30 From - Spending review Topic 4]]+Dataset[[#This Row],[2029/30 From - Other reallocations]]","v":0},{"$f":"Dataset[[#This Row],[2027/28 To - Spending review Topic 1]]+Dataset[[#This Row],[2027/28 To - Spending review Topic 2]]+Dataset[[#This Row],[2027/28 To - Spending review Topic 3]]+Dataset[[#This Row],[2027/28 To - Spending review Topic 4]]+Dataset[[#This Row],[2027/28 To - Other reallocations]]","v":0},{"$f":"Dataset[[#This Row],[2028/29 To - Spending review Topic 1]]+Dataset[[#This Row],[2028/29 To - Spending review Topic 2]]+Dataset[[#This Row],[2028/29 To - Spending review Topic 3]]+Dataset[[#This Row],[2028/29 To - Spending review Topic 4]]+Dataset[[#This Row],[2028/29 To - Other reallocations]]","v":0},{"$f":"Dataset[[#This Row],[2029/30 To - Spending review Topic 1]]+Dataset[[#This Row],[2029/30 To - Spending review Topic 2]]+Dataset[[#This Row],[2029/30 To - Spending review Topic 3]]+Dataset[[#This Row],[2029/30 To - Spending review Topic 4]]+Dataset[[#This Row],[2029/30 To - Other reallocations]]","v":0},{"$f":"Dataset[[#This Row],[2027/28 Targeted savings]]+Dataset[[#This Row],[2027/28 From - Total]]","v":0},{"$f":"Dataset[[#This Row],[2028/29 Targeted savings]]+Dataset[[#This Row],[2028/29 From - Total]]","v":0},{"$f":"Dataset[[#This Row],[2029/30 Targeted savings]]+Dataset[[#This Row],[2029/30 From - Total]]","v":0},{"$f":"Dataset[[#This Row],[2026/27 Targeted savings]]","v":0},{"$f":"SUM(Dataset[[#This Row],[2027/28 Targeted savings]],Dataset[[#This Row],[2027/28 From - Total]],Dataset[[#This Row],[2027/28 To - Total]])","v":0},{"$f":"SUM(Dataset[[#This Row],[2028/29 Targeted savings]],Dataset[[#This Row],[2028/29 From - Total]],Dataset[[#This Row],[2028/29 To - Total]])","v":0},{"$f":"SUM(Dataset[[#This Row],[2029/30 Targeted savings]],Dataset[[#This Row],[2029/30 From - Total]],Dataset[[#This Row],[2029/30 To - Total]])","v":0},{"$f":"Dataset[[#This Row],[2026/27 Baseline]]+Dataset[[#This Row],[2026/27 Total change]]","v":118},{"$f":"Dataset[[#This Row],[2027/28 Baseline]]+Dataset[[#This Row],[2027/28 Total change]]","v":274},{"$f":"Dataset[[#This Row],[2028/29 Baseline]]+Dataset[[#This Row],[2028/29 Total change]]","v":283},{"$f":"Dataset[[#This Row],[2029/30 Baseline]]+Dataset[[#This Row],[2029/30 Total change]]","v":292}]
["NAT|Non-transfer","30|Advertising","2027_28","MTEC2027",30,5,2,33075,555,"30","05","02","033075","000555","30|05|02|000555","01","01","02","04","04","01|01|02|04|04","National","Communications and Digital Technologies","Digital Infrastructure and Technologies","Broadband","Non-transfer","Current","Current payments","Goods and services","Advertising","Advertising","Economic development","Economic regulation and infrastructure","NAT",82,852,1130,678,428,428,0,737,502,126,130,null,null,null,null,null,null,null,null,null,null,null,null,null,null,null,null,null,null,null,null,null,null,null,null,null,null,null,null,null,null,null,null,null,null,{"$f":"Dataset[[#This Row],[2027/28 From - Spending review Topic 1]]+Dataset[[#This Row],[2027/28 From - Spending review Topic 2]]+Dataset[[#This Row],[2027/28 From - Spending review Topic 3]]+Dataset[[#This Row],[2027/28 From - Spending review Topic 4]]+Dataset[[#This Row],[2027/28 From - Other reallocations]]","v":0},{"$f":"Dataset[[#This Row],[2028/29 From - Spending review Topic 1]]+Dataset[[#This Row],[2028/29 From - Spending review Topic 2]]+Dataset[[#This Row],[2028/29 From - Spending review Topic 3]]+Dataset[[#This Row],[2028/29 From - Spending review Topic 4]]+Dataset[[#This Row],[2028/29 From - Other reallocations]]","v":0},{"$f":"Dataset[[#This Row],[2029/30 From - Spending review Topic 1]]+Dataset[[#This Row],[2029/30 From - Spending review Topic 2]]+Dataset[[#This Row],[2029/30 From - Spending review Topic 3]]+Dataset[[#This Row],[2029/30 From - Spending review Topic 4]]+Dataset[[#This Row],[2029/30 From - Other reallocations]]","v":0},{"$f":"Dataset[[#This Row],[2027/28 To - Spending review Topic 1]]+Dataset[[#This Row],[2027/28 To - Spending review Topic 2]]+Dataset[[#This Row],[2027/28 To - Spending review Topic 3]]+Dataset[[#This Row],[2027/28 To - Spending review Topic 4]]+Dataset[[#This Row],[2027/28 To - Other reallocations]]","v":0},{"$f":"Dataset[[#This Row],[2028/29 To - Spending review Topic 1]]+Dataset[[#This Row],[2028/29 To - Spending review Topic 2]]+Dataset[[#This Row],[2028/29 To - Spending review Topic 3]]+Dataset[[#This Row],[2028/29 To - Spending review Topic 4]]+Dataset[[#This Row],[2028/29 To - Other reallocations]]","v":0},{"$f":"Dataset[[#This Row],[2029/30 To - Spending review Topic 1]]+Dataset[[#This Row],[2029/30 To - Spending review Topic 2]]+Dataset[[#This Row],[2029/30 To - Spending review Topic 3]]+Dataset[[#This Row],[2029/30 To - Spending review Topic 4]]+Dataset[[#This Row],[2029/30 To - Other reallocations]]","v":0},{"$f":"Dataset[[#This Row],[2027/28 Targeted savings]]+Dataset[[#This Row],[2027/28 From - Total]]","v":0},{"$f":"Dataset[[#This Row],[2028/29 Targeted savings]]+Dataset[[#This Row],[2028/29 From - Total]]","v":0},{"$f":"Dataset[[#This Row],[2029/30 Targeted savings]]+Dataset[[#This Row],[2029/30 From - Total]]","v":0},{"$f":"Dataset[[#This Row],[2026/27 Targeted savings]]","v":0},{"$f":"SUM(Dataset[[#This Row],[2027/28 Targeted savings]],Dataset[[#This Row],[2027/28 From - Total]],Dataset[[#This Row],[2027/28 To - Total]])","v":0},{"$f":"SUM(Dataset[[#This Row],[2028/29 Targeted savings]],Dataset[[#This Row],[2028/29 From - Total]],Dataset[[#This Row],[2028/29 To - Total]])","v":0},{"$f":"SUM(Dataset[[#This Row],[2029/30 Targeted savings]],Dataset[[#This Row],[2029/30 From - Total]],Dataset[[#This Row],[2029/30 To - Total]])","v":0},{"$f":"Dataset[[#This Row],[2026/27 Baseline]]+Dataset[[#This Row],[2026/27 Total change]]","v":737},{"$f":"Dataset[[#This Row],[2027/28 Baseline]]+Dataset[[#This Row],[2027/28 Total change]]","v":502},{"$f":"Dataset[[#This Row],[2028/29 Baseline]]+Dataset[[#This Row],[2028/29 Total change]]","v":126},{"$f":"Dataset[[#This Row],[2029/30 Baseline]]+Dataset[[#This Row],[2029/30 Total change]]","v":130}]
["NAT|Non-transfer","30|Minor assets","2027_28","MTEC2027",30,5,2,33076,556,"30","05","02","033076","000556","30|05|02|000556","01","01","02","05","05","01|01|02|05|05","National","Communications and Digital Technologies","Digital Infrastructure and Technologies","Broadband","Non-transfer","Current","Current payments","Goods and services","Minor assets","Minor assets","Economic development","Economic regulation and infrastructure","NAT",1,1,1,141,11,11,0,22,145,150,155,null,null,null,null,null,null,null,null,null,null,null,null,null,null,null,null,null,null,null,null,null,null,null,null,null,null,null,null,null,null,null,null,null,null,{"$f":"Dataset[[#This Row],[2027/28 From - Spending review Topic 1]]+Dataset[[#This Row],[2027/28 From - Spending review Topic 2]]+Dataset[[#This Row],[2027/28 From - Spending review Topic 3]]+Dataset[[#This Row],[2027/28 From - Spending review Topic 4]]+Dataset[[#This Row],[2027/28 From - Other reallocations]]","v":0},{"$f":"Dataset[[#This Row],[2028/29 From - Spending review Topic 1]]+Dataset[[#This Row],[2028/29 From - Spending review Topic 2]]+Dataset[[#This Row],[2028/29 From - Spending review Topic 3]]+Dataset[[#This Row],[2028/29 From - Spending review Topic 4]]+Dataset[[#This Row],[2028/29 From - Other reallocations]]","v":0},{"$f":"Dataset[[#This Row],[2029/30 From - Spending review Topic 1]]+Dataset[[#This Row],[2029/30 From - Spending review Topic 2]]+Dataset[[#This Row],[2029/30 From - Spending review Topic 3]]+Dataset[[#This Row],[2029/30 From - Spending review Topic 4]]+Dataset[[#This Row],[2029/30 From - Other reallocations]]","v":0},{"$f":"Dataset[[#This Row],[2027/28 To - Spending review Topic 1]]+Dataset[[#This Row],[2027/28 To - Spending review Topic 2]]+Dataset[[#This Row],[2027/28 To - Spending review Topic 3]]+Dataset[[#This Row],[2027/28 To - Spending review Topic 4]]+Dataset[[#This Row],[2027/28 To - Other reallocations]]","v":0},{"$f":"Dataset[[#This Row],[2028/29 To - Spending review Topic 1]]+Dataset[[#This Row],[2028/29 To - Spending review Topic 2]]+Dataset[[#This Row],[2028/29 To - Spending review Topic 3]]+Dataset[[#This Row],[2028/29 To - Spending review Topic 4]]+Dataset[[#This Row],[2028/29 To - Other reallocations]]","v":0},{"$f":"Dataset[[#This Row],[2029/30 To - Spending review Topic 1]]+Dataset[[#This Row],[2029/30 To - Spending review Topic 2]]+Dataset[[#This Row],[2029/30 To - Spending review Topic 3]]+Dataset[[#This Row],[2029/30 To - Spending review Topic 4]]+Dataset[[#This Row],[2029/30 To - Other reallocations]]","v":0},{"$f":"Dataset[[#This Row],[2027/28 Targeted savings]]+Dataset[[#This Row],[2027/28 From - Total]]","v":0},{"$f":"Dataset[[#This Row],[2028/29 Targeted savings]]+Dataset[[#This Row],[2028/29 From - Total]]","v":0},{"$f":"Dataset[[#This Row],[2029/30 Targeted savings]]+Dataset[[#This Row],[2029/30 From - Total]]","v":0},{"$f":"Dataset[[#This Row],[2026/27 Targeted savings]]","v":0},{"$f":"SUM(Dataset[[#This Row],[2027/28 Targeted savings]],Dataset[[#This Row],[2027/28 From - Total]],Dataset[[#This Row],[2027/28 To - Total]])","v":0},{"$f":"SUM(Dataset[[#This Row],[2028/29 Targeted savings]],Dataset[[#This Row],[2028/29 From - Total]],Dataset[[#This Row],[2028/29 To - Total]])","v":0},{"$f":"SUM(Dataset[[#This Row],[2029/30 Targeted savings]],Dataset[[#This Row],[2029/30 From - Total]],Dataset[[#This Row],[2029/30 To - Total]])","v":0},{"$f":"Dataset[[#This Row],[2026/27 Baseline]]+Dataset[[#This Row],[2026/27 Total change]]","v":22},{"$f":"Dataset[[#This Row],[2027/28 Baseline]]+Dataset[[#This Row],[2027/28 Total change]]","v":145},{"$f":"Dataset[[#This Row],[2028/29 Baseline]]+Dataset[[#This Row],[2028/29 Total change]]","v":150},{"$f":"Dataset[[#This Row],[2029/30 Baseline]]+Dataset[[#This Row],[2029/30 Total change]]","v":155}]
["NAT|Non-transfer","30|Audit costs: External","2027_28","MTEC2027",30,5,2,33077,557,"30","05","02","033077","000557","30|05|02|000557","01","01","02","06","06","01|01|02|06|06","National","Communications and Digital Technologies","Digital Infrastructure and Technologies","Broadband","Non-transfer","Current","Current payments","Goods and services","Audit costs: External","Audit costs: External","Economic development","Economic regulation and infrastructure","NAT",0,0,0,170,70,70,0,0,1266,1305,1344,null,null,null,null,null,null,null,null,null,null,null,null,null,null,null,null,null,null,null,null,null,null,null,null,null,null,null,null,null,null,null,null,null,null,{"$f":"Dataset[[#This Row],[2027/28 From - Spending review Topic 1]]+Dataset[[#This Row],[2027/28 From - Spending review Topic 2]]+Dataset[[#This Row],[2027/28 From - Spending review Topic 3]]+Dataset[[#This Row],[2027/28 From - Spending review Topic 4]]+Dataset[[#This Row],[2027/28 From - Other reallocations]]","v":0},{"$f":"Dataset[[#This Row],[2028/29 From - Spending review Topic 1]]+Dataset[[#This Row],[2028/29 From - Spending review Topic 2]]+Dataset[[#This Row],[2028/29 From - Spending review Topic 3]]+Dataset[[#This Row],[2028/29 From - Spending review Topic 4]]+Dataset[[#This Row],[2028/29 From - Other reallocations]]","v":0},{"$f":"Dataset[[#This Row],[2029/30 From - Spending review Topic 1]]+Dataset[[#This Row],[2029/30 From - Spending review Topic 2]]+Dataset[[#This Row],[2029/30 From - Spending review Topic 3]]+Dataset[[#This Row],[2029/30 From - Spending review Topic 4]]+Dataset[[#This Row],[2029/30 From - Other reallocations]]","v":0},{"$f":"Dataset[[#This Row],[2027/28 To - Spending review Topic 1]]+Dataset[[#This Row],[2027/28 To - Spending review Topic 2]]+Dataset[[#This Row],[2027/28 To - Spending review Topic 3]]+Dataset[[#This Row],[2027/28 To - Spending review Topic 4]]+Dataset[[#This Row],[2027/28 To - Other reallocations]]","v":0},{"$f":"Dataset[[#This Row],[2028/29 To - Spending review Topic 1]]+Dataset[[#This Row],[2028/29 To - Spending review Topic 2]]+Dataset[[#This Row],[2028/29 To - Spending review Topic 3]]+Dataset[[#This Row],[2028/29 To - Spending review Topic 4]]+Dataset[[#This Row],[2028/29 To - Other reallocations]]","v":0},{"$f":"Dataset[[#This Row],[2029/30 To - Spending review Topic 1]]+Dataset[[#This Row],[2029/30 To - Spending review Topic 2]]+Dataset[[#This Row],[2029/30 To - Spending review Topic 3]]+Dataset[[#This Row],[2029/30 To - Spending review Topic 4]]+Dataset[[#This Row],[2029/30 To - Other reallocations]]","v":0},{"$f":"Dataset[[#This Row],[2027/28 Targeted savings]]+Dataset[[#This Row],[2027/28 From - Total]]","v":0},{"$f":"Dataset[[#This Row],[2028/29 Targeted savings]]+Dataset[[#This Row],[2028/29 From - Total]]","v":0},{"$f":"Dataset[[#This Row],[2029/30 Targeted savings]]+Dataset[[#This Row],[2029/30 From - Total]]","v":0},{"$f":"Dataset[[#This Row],[2026/27 Targeted savings]]","v":0},{"$f":"SUM(Dataset[[#This Row],[2027/28 Targeted savings]],Dataset[[#This Row],[2027/28 From - Total]],Dataset[[#This Row],[2027/28 To - Total]])","v":0},{"$f":"SUM(Dataset[[#This Row],[2028/29 Targeted savings]],Dataset[[#This Row],[2028/29 From - Total]],Dataset[[#This Row],[2028/29 To - Total]])","v":0},{"$f":"SUM(Dataset[[#This Row],[2029/30 Targeted savings]],Dataset[[#This Row],[2029/30 From - Total]],Dataset[[#This Row],[2029/30 To - Total]])","v":0},{"$f":"Dataset[[#This Row],[2026/27 Baseline]]+Dataset[[#This Row],[2026/27 Total change]]","v":0},{"$f":"Dataset[[#This Row],[2027/28 Baseline]]+Dataset[[#This Row],[2027/28 Total change]]","v":1266},{"$f":"Dataset[[#This Row],[2028/29 Baseline]]+Dataset[[#This Row],[2028/29 Total change]]","v":1305},{"$f":"Dataset[[#This Row],[2029/30 Baseline]]+Dataset[[#This Row],[2029/30 Total change]]","v":1344}]
["NAT|Non-transfer","30|Bursaries: Employees","2027_28","MTEC2027",30,5,2,33078,558,"30","05","02","033078","000558","30|05|02|000558","01","01","02","07","07","01|01|02|07|07","National","Communications and Digital Technologies","Digital Infrastructure and Technologies","Broadband","Non-transfer","Current","Current payments","Goods and services","Bursaries: Employees","Bursaries: Employees","Economic development","Economic regulation and infrastructure","NAT",8,0,126,643,393,393,0,400,312,321,331,null,null,null,null,null,null,null,null,null,null,null,null,null,null,null,null,null,null,null,null,null,null,null,null,null,null,null,null,null,null,null,null,null,null,{"$f":"Dataset[[#This Row],[2027/28 From - Spending review Topic 1]]+Dataset[[#This Row],[2027/28 From - Spending review Topic 2]]+Dataset[[#This Row],[2027/28 From - Spending review Topic 3]]+Dataset[[#This Row],[2027/28 From - Spending review Topic 4]]+Dataset[[#This Row],[2027/28 From - Other reallocations]]","v":0},{"$f":"Dataset[[#This Row],[2028/29 From - Spending review Topic 1]]+Dataset[[#This Row],[2028/29 From - Spending review Topic 2]]+Dataset[[#This Row],[2028/29 From - Spending review Topic 3]]+Dataset[[#This Row],[2028/29 From - Spending review Topic 4]]+Dataset[[#This Row],[2028/29 From - Other reallocations]]","v":0},{"$f":"Dataset[[#This Row],[2029/30 From - Spending review Topic 1]]+Dataset[[#This Row],[2029/30 From - Spending review Topic 2]]+Dataset[[#This Row],[2029/30 From - Spending review Topic 3]]+Dataset[[#This Row],[2029/30 From - Spending review Topic 4]]+Dataset[[#This Row],[2029/30 From - Other reallocations]]","v":0},{"$f":"Dataset[[#This Row],[2027/28 To - Spending review Topic 1]]+Dataset[[#This Row],[2027/28 To - Spending review Topic 2]]+Dataset[[#This Row],[2027/28 To - Spending review Topic 3]]+Dataset[[#This Row],[2027/28 To - Spending review Topic 4]]+Dataset[[#This Row],[2027/28 To - Other reallocations]]","v":0},{"$f":"Dataset[[#This Row],[2028/29 To - Spending review Topic 1]]+Dataset[[#This Row],[2028/29 To - Spending review Topic 2]]+Dataset[[#This Row],[2028/29 To - Spending review Topic 3]]+Dataset[[#This Row],[2028/29 To - Spending review Topic 4]]+Dataset[[#This Row],[2028/29 To - Other reallocations]]","v":0},{"$f":"Dataset[[#This Row],[2029/30 To - Spending review Topic 1]]+Dataset[[#This Row],[2029/30 To - Spending review Topic 2]]+Dataset[[#This Row],[2029/30 To - Spending review Topic 3]]+Dataset[[#This Row],[2029/30 To - Spending review Topic 4]]+Dataset[[#This Row],[2029/30 To - Other reallocations]]","v":0},{"$f":"Dataset[[#This Row],[2027/28 Targeted savings]]+Dataset[[#This Row],[2027/28 From - Total]]","v":0},{"$f":"Dataset[[#This Row],[2028/29 Targeted savings]]+Dataset[[#This Row],[2028/29 From - Total]]","v":0},{"$f":"Dataset[[#This Row],[2029/30 Targeted savings]]+Dataset[[#This Row],[2029/30 From - Total]]","v":0},{"$f":"Dataset[[#This Row],[2026/27 Targeted savings]]","v":0},{"$f":"SUM(Dataset[[#This Row],[2027/28 Targeted savings]],Dataset[[#This Row],[2027/28 From - Total]],Dataset[[#This Row],[2027/28 To - Total]])","v":0},{"$f":"SUM(Dataset[[#This Row],[2028/29 Targeted savings]],Dataset[[#This Row],[2028/29 From - Total]],Dataset[[#This Row],[2028/29 To - Total]])","v":0},{"$f":"SUM(Dataset[[#This Row],[2029/30 Targeted savings]],Dataset[[#This Row],[2029/30 From - Total]],Dataset[[#This Row],[2029/30 To - Total]])","v":0},{"$f":"Dataset[[#This Row],[2026/27 Baseline]]+Dataset[[#This Row],[2026/27 Total change]]","v":400},{"$f":"Dataset[[#This Row],[2027/28 Baseline]]+Dataset[[#This Row],[2027/28 Total change]]","v":312},{"$f":"Dataset[[#This Row],[2028/29 Baseline]]+Dataset[[#This Row],[2028/29 Total change]]","v":321},{"$f":"Dataset[[#This Row],[2029/30 Baseline]]+Dataset[[#This Row],[2029/30 Total change]]","v":331}]
["NAT|Non-transfer","30|Catering: Departmental activities","2027_28","MTEC2027",30,5,2,33079,559,"30","05","02","033079","000559","30|05|02|000559","01","01","02","08","08","01|01|02|08|08","National","Communications and Digital Technologies","Digital Infrastructure and Technologies","Broadband","Non-transfer","Current","Current payments","Goods and services","Catering: Departmental activities","Catering: Departmental activities","Economic development","Economic regulation and infrastructure","NAT",97,39,501,44,14,14,0,129,182,188,194,null,null,null,null,null,null,null,null,null,null,null,null,null,null,null,null,null,null,null,null,null,null,null,null,null,null,null,null,null,null,null,null,null,null,{"$f":"Dataset[[#This Row],[2027/28 From - Spending review Topic 1]]+Dataset[[#This Row],[2027/28 From - Spending review Topic 2]]+Dataset[[#This Row],[2027/28 From - Spending review Topic 3]]+Dataset[[#This Row],[2027/28 From - Spending review Topic 4]]+Dataset[[#This Row],[2027/28 From - Other reallocations]]","v":0},{"$f":"Dataset[[#This Row],[2028/29 From - Spending review Topic 1]]+Dataset[[#This Row],[2028/29 From - Spending review Topic 2]]+Dataset[[#This Row],[2028/29 From - Spending review Topic 3]]+Dataset[[#This Row],[2028/29 From - Spending review Topic 4]]+Dataset[[#This Row],[2028/29 From - Other reallocations]]","v":0},{"$f":"Dataset[[#This Row],[2029/30 From - Spending review Topic 1]]+Dataset[[#This Row],[2029/30 From - Spending review Topic 2]]+Dataset[[#This Row],[2029/30 From - Spending review Topic 3]]+Dataset[[#This Row],[2029/30 From - Spending review Topic 4]]+Dataset[[#This Row],[2029/30 From - Other reallocations]]","v":0},{"$f":"Dataset[[#This Row],[2027/28 To - Spending review Topic 1]]+Dataset[[#This Row],[2027/28 To - Spending review Topic 2]]+Dataset[[#This Row],[2027/28 To - Spending review Topic 3]]+Dataset[[#This Row],[2027/28 To - Spending review Topic 4]]+Dataset[[#This Row],[2027/28 To - Other reallocations]]","v":0},{"$f":"Dataset[[#This Row],[2028/29 To - Spending review Topic 1]]+Dataset[[#This Row],[2028/29 To - Spending review Topic 2]]+Dataset[[#This Row],[2028/29 To - Spending review Topic 3]]+Dataset[[#This Row],[2028/29 To - Spending review Topic 4]]+Dataset[[#This Row],[2028/29 To - Other reallocations]]","v":0},{"$f":"Dataset[[#This Row],[2029/30 To - Spending review Topic 1]]+Dataset[[#This Row],[2029/30 To - Spending review Topic 2]]+Dataset[[#This Row],[2029/30 To - Spending review Topic 3]]+Dataset[[#This Row],[2029/30 To - Spending review Topic 4]]+Dataset[[#This Row],[2029/30 To - Other reallocations]]","v":0},{"$f":"Dataset[[#This Row],[2027/28 Targeted savings]]+Dataset[[#This Row],[2027/28 From - Total]]","v":0},{"$f":"Dataset[[#This Row],[2028/29 Targeted savings]]+Dataset[[#This Row],[2028/29 From - Total]]","v":0},{"$f":"Dataset[[#This Row],[2029/30 Targeted savings]]+Dataset[[#This Row],[2029/30 From - Total]]","v":0},{"$f":"Dataset[[#This Row],[2026/27 Targeted savings]]","v":0},{"$f":"SUM(Dataset[[#This Row],[2027/28 Targeted savings]],Dataset[[#This Row],[2027/28 From - Total]],Dataset[[#This Row],[2027/28 To - Total]])","v":0},{"$f":"SUM(Dataset[[#This Row],[2028/29 Targeted savings]],Dataset[[#This Row],[2028/29 From - Total]],Dataset[[#This Row],[2028/29 To - Total]])","v":0},{"$f":"SUM(Dataset[[#This Row],[2029/30 Targeted savings]],Dataset[[#This Row],[2029/30 From - Total]],Dataset[[#This Row],[2029/30 To - Total]])","v":0},{"$f":"Dataset[[#This Row],[2026/27 Baseline]]+Dataset[[#This Row],[2026/27 Total change]]","v":129},{"$f":"Dataset[[#This Row],[2027/28 Baseline]]+Dataset[[#This Row],[2027/28 Total change]]","v":182},{"$f":"Dataset[[#This Row],[2028/29 Baseline]]+Dataset[[#This Row],[2028/29 Total change]]","v":188},{"$f":"Dataset[[#This Row],[2029/30 Baseline]]+Dataset[[#This Row],[2029/30 Total change]]","v":194}]
["NAT|Non-transfer","30|Communication (G&S)","2027_28","MTEC2027",30,5,2,33080,560,"30","05","02","033080","000560","30|05|02|000560","01","01","02","09","09","01|01|02|09|09","National","Communications and Digital Technologies","Digital Infrastructure and Technologies","Broadband","Non-transfer","Current","Current payments","Goods and services","Communication (G&S)","Communication (G&S)","Economic development","Economic regulation and infrastructure","NAT",497,444,409,850,520,520,0,585,1173,1209,1245,null,null,null,null,null,null,null,null,null,null,null,null,null,null,null,null,null,null,null,null,null,null,null,null,null,null,null,null,null,null,null,null,null,null,{"$f":"Dataset[[#This Row],[2027/28 From - Spending review Topic 1]]+Dataset[[#This Row],[2027/28 From - Spending review Topic 2]]+Dataset[[#This Row],[2027/28 From - Spending review Topic 3]]+Dataset[[#This Row],[2027/28 From - Spending review Topic 4]]+Dataset[[#This Row],[2027/28 From - Other reallocations]]","v":0},{"$f":"Dataset[[#This Row],[2028/29 From - Spending review Topic 1]]+Dataset[[#This Row],[2028/29 From - Spending review Topic 2]]+Dataset[[#This Row],[2028/29 From - Spending review Topic 3]]+Dataset[[#This Row],[2028/29 From - Spending review Topic 4]]+Dataset[[#This Row],[2028/29 From - Other reallocations]]","v":0},{"$f":"Dataset[[#This Row],[2029/30 From - Spending review Topic 1]]+Dataset[[#This Row],[2029/30 From - Spending review Topic 2]]+Dataset[[#This Row],[2029/30 From - Spending review Topic 3]]+Dataset[[#This Row],[2029/30 From - Spending review Topic 4]]+Dataset[[#This Row],[2029/30 From - Other reallocations]]","v":0},{"$f":"Dataset[[#This Row],[2027/28 To - Spending review Topic 1]]+Dataset[[#This Row],[2027/28 To - Spending review Topic 2]]+Dataset[[#This Row],[2027/28 To - Spending review Topic 3]]+Dataset[[#This Row],[2027/28 To - Spending review Topic 4]]+Dataset[[#This Row],[2027/28 To - Other reallocations]]","v":0},{"$f":"Dataset[[#This Row],[2028/29 To - Spending review Topic 1]]+Dataset[[#This Row],[2028/29 To - Spending review Topic 2]]+Dataset[[#This Row],[2028/29 To - Spending review Topic 3]]+Dataset[[#This Row],[2028/29 To - Spending review Topic 4]]+Dataset[[#This Row],[2028/29 To - Other reallocations]]","v":0},{"$f":"Dataset[[#This Row],[2029/30 To - Spending review Topic 1]]+Dataset[[#This Row],[2029/30 To - Spending review Topic 2]]+Dataset[[#This Row],[2029/30 To - Spending review Topic 3]]+Dataset[[#This Row],[2029/30 To - Spending review Topic 4]]+Dataset[[#This Row],[2029/30 To - Other reallocations]]","v":0},{"$f":"Dataset[[#This Row],[2027/28 Targeted savings]]+Dataset[[#This Row],[2027/28 From - Total]]","v":0},{"$f":"Dataset[[#This Row],[2028/29 Targeted savings]]+Dataset[[#This Row],[2028/29 From - Total]]","v":0},{"$f":"Dataset[[#This Row],[2029/30 Targeted savings]]+Dataset[[#This Row],[2029/30 From - Total]]","v":0},{"$f":"Dataset[[#This Row],[2026/27 Targeted savings]]","v":0},{"$f":"SUM(Dataset[[#This Row],[2027/28 Targeted savings]],Dataset[[#This Row],[2027/28 From - Total]],Dataset[[#This Row],[2027/28 To - Total]])","v":0},{"$f":"SUM(Dataset[[#This Row],[2028/29 Targeted savings]],Dataset[[#This Row],[2028/29 From - Total]],Dataset[[#This Row],[2028/29 To - Total]])","v":0},{"$f":"SUM(Dataset[[#This Row],[2029/30 Targeted savings]],Dataset[[#This Row],[2029/30 From - Total]],Dataset[[#This Row],[2029/30 To - Total]])","v":0},{"$f":"Dataset[[#This Row],[2026/27 Baseline]]+Dataset[[#This Row],[2026/27 Total change]]","v":585},{"$f":"Dataset[[#This Row],[2027/28 Baseline]]+Dataset[[#This Row],[2027/28 Total change]]","v":1173},{"$f":"Dataset[[#This Row],[2028/29 Baseline]]+Dataset[[#This Row],[2028/29 Total change]]","v":1209},{"$f":"Dataset[[#This Row],[2029/30 Baseline]]+Dataset[[#This Row],[2029/30 Total change]]","v":1245}]
["NAT|Non-transfer","30|Computer services","2027_28","MTEC2027",30,5,2,33081,561,"30","05","02","033081","000561","30|05|02|000561","01","01","02","10","10","01|01|02|10|10","National","Communications and Digital Technologies","Digital Infrastructure and Technologies","Broadband","Non-transfer","Current","Current payments","Goods and services","Computer services","Computer services","Economic development","Economic regulation and infrastructure","NAT",204078,1150786,703116,228016,1232498,1232498,0,224250,243676,258326,266105,null,null,null,null,null,null,null,null,null,null,null,null,null,null,null,null,null,null,null,null,null,null,null,null,null,null,null,null,null,null,null,null,null,null,{"$f":"Dataset[[#This Row],[2027/28 From - Spending review Topic 1]]+Dataset[[#This Row],[2027/28 From - Spending review Topic 2]]+Dataset[[#This Row],[2027/28 From - Spending review Topic 3]]+Dataset[[#This Row],[2027/28 From - Spending review Topic 4]]+Dataset[[#This Row],[2027/28 From - Other reallocations]]","v":0},{"$f":"Dataset[[#This Row],[2028/29 From - Spending review Topic 1]]+Dataset[[#This Row],[2028/29 From - Spending review Topic 2]]+Dataset[[#This Row],[2028/29 From - Spending review Topic 3]]+Dataset[[#This Row],[2028/29 From - Spending review Topic 4]]+Dataset[[#This Row],[2028/29 From - Other reallocations]]","v":0},{"$f":"Dataset[[#This Row],[2029/30 From - Spending review Topic 1]]+Dataset[[#This Row],[2029/30 From - Spending review Topic 2]]+Dataset[[#This Row],[2029/30 From - Spending review Topic 3]]+Dataset[[#This Row],[2029/30 From - Spending review Topic 4]]+Dataset[[#This Row],[2029/30 From - Other reallocations]]","v":0},{"$f":"Dataset[[#This Row],[2027/28 To - Spending review Topic 1]]+Dataset[[#This Row],[2027/28 To - Spending review Topic 2]]+Dataset[[#This Row],[2027/28 To - Spending review Topic 3]]+Dataset[[#This Row],[2027/28 To - Spending review Topic 4]]+Dataset[[#This Row],[2027/28 To - Other reallocations]]","v":0},{"$f":"Dataset[[#This Row],[2028/29 To - Spending review Topic 1]]+Dataset[[#This Row],[2028/29 To - Spending review Topic 2]]+Dataset[[#This Row],[2028/29 To - Spending review Topic 3]]+Dataset[[#This Row],[2028/29 To - Spending review Topic 4]]+Dataset[[#This Row],[2028/29 To - Other reallocations]]","v":0},{"$f":"Dataset[[#This Row],[2029/30 To - Spending review Topic 1]]+Dataset[[#This Row],[2029/30 To - Spending review Topic 2]]+Dataset[[#This Row],[2029/30 To - Spending review Topic 3]]+Dataset[[#This Row],[2029/30 To - Spending review Topic 4]]+Dataset[[#This Row],[2029/30 To - Other reallocations]]","v":0},{"$f":"Dataset[[#This Row],[2027/28 Targeted savings]]+Dataset[[#This Row],[2027/28 From - Total]]","v":0},{"$f":"Dataset[[#This Row],[2028/29 Targeted savings]]+Dataset[[#This Row],[2028/29 From - Total]]","v":0},{"$f":"Dataset[[#This Row],[2029/30 Targeted savings]]+Dataset[[#This Row],[2029/30 From - Total]]","v":0},{"$f":"Dataset[[#This Row],[2026/27 Targeted savings]]","v":0},{"$f":"SUM(Dataset[[#This Row],[2027/28 Targeted savings]],Dataset[[#This Row],[2027/28 From - Total]],Dataset[[#This Row],[2027/28 To - Total]])","v":0},{"$f":"SUM(Dataset[[#This Row],[2028/29 Targeted savings]],Dataset[[#This Row],[2028/29 From - Total]],Dataset[[#This Row],[2028/29 To - Total]])","v":0},{"$f":"SUM(Dataset[[#This Row],[2029/30 Targeted savings]],Dataset[[#This Row],[2029/30 From - Total]],Dataset[[#This Row],[2029/30 To - Total]])","v":0},{"$f":"Dataset[[#This Row],[2026/27 Baseline]]+Dataset[[#This Row],[2026/27 Total change]]","v":224250},{"$f":"Dataset[[#This Row],[2027/28 Baseline]]+Dataset[[#This Row],[2027/28 Total change]]","v":243676},{"$f":"Dataset[[#This Row],[2028/29 Baseline]]+Dataset[[#This Row],[2028/29 Total change]]","v":258326},{"$f":"Dataset[[#This Row],[2029/30 Baseline]]+Dataset[[#This Row],[2029/30 Total change]]","v":266105}]
["NAT|Non-transfer","30|Consultants: Business and advisory services","2027_28","MTEC2027",30,5,2,33082,562,"30","05","02","033082","000562","30|05|02|000562","01","01","02","11","11","01|01|02|11|11","National","Communications and Digital Technologies","Digital Infrastructure and Technologies","Broadband","Non-transfer","Current","Current payments","Goods and services","Consultants: Business and advisory services","Consultants: Business and advisory services","Economic development","Economic regulation and infrastructure","NAT",207308,1208,4987,4245,5245,5245,0,16750,5749,5927,6105,null,null,null,null,null,null,null,null,null,null,null,null,null,null,null,null,null,null,null,null,null,null,null,null,null,null,null,null,null,null,null,null,null,null,{"$f":"Dataset[[#This Row],[2027/28 From - Spending review Topic 1]]+Dataset[[#This Row],[2027/28 From - Spending review Topic 2]]+Dataset[[#This Row],[2027/28 From - Spending review Topic 3]]+Dataset[[#This Row],[2027/28 From - Spending review Topic 4]]+Dataset[[#This Row],[2027/28 From - Other reallocations]]","v":0},{"$f":"Dataset[[#This Row],[2028/29 From - Spending review Topic 1]]+Dataset[[#This Row],[2028/29 From - Spending review Topic 2]]+Dataset[[#This Row],[2028/29 From - Spending review Topic 3]]+Dataset[[#This Row],[2028/29 From - Spending review Topic 4]]+Dataset[[#This Row],[2028/29 From - Other reallocations]]","v":0},{"$f":"Dataset[[#This Row],[2029/30 From - Spending review Topic 1]]+Dataset[[#This Row],[2029/30 From - Spending review Topic 2]]+Dataset[[#This Row],[2029/30 From - Spending review Topic 3]]+Dataset[[#This Row],[2029/30 From - Spending review Topic 4]]+Dataset[[#This Row],[2029/30 From - Other reallocations]]","v":0},{"$f":"Dataset[[#This Row],[2027/28 To - Spending review Topic 1]]+Dataset[[#This Row],[2027/28 To - Spending review Topic 2]]+Dataset[[#This Row],[2027/28 To - Spending review Topic 3]]+Dataset[[#This Row],[2027/28 To - Spending review Topic 4]]+Dataset[[#This Row],[2027/28 To - Other reallocations]]","v":0},{"$f":"Dataset[[#This Row],[2028/29 To - Spending review Topic 1]]+Dataset[[#This Row],[2028/29 To - Spending review Topic 2]]+Dataset[[#This Row],[2028/29 To - Spending review Topic 3]]+Dataset[[#This Row],[2028/29 To - Spending review Topic 4]]+Dataset[[#This Row],[2028/29 To - Other reallocations]]","v":0},{"$f":"Dataset[[#This Row],[2029/30 To - Spending review Topic 1]]+Dataset[[#This Row],[2029/30 To - Spending review Topic 2]]+Dataset[[#This Row],[2029/30 To - Spending review Topic 3]]+Dataset[[#This Row],[2029/30 To - Spending review Topic 4]]+Dataset[[#This Row],[2029/30 To - Other reallocations]]","v":0},{"$f":"Dataset[[#This Row],[2027/28 Targeted savings]]+Dataset[[#This Row],[2027/28 From - Total]]","v":0},{"$f":"Dataset[[#This Row],[2028/29 Targeted savings]]+Dataset[[#This Row],[2028/29 From - Total]]","v":0},{"$f":"Dataset[[#This Row],[2029/30 Targeted savings]]+Dataset[[#This Row],[2029/30 From - Total]]","v":0},{"$f":"Dataset[[#This Row],[2026/27 Targeted savings]]","v":0},{"$f":"SUM(Dataset[[#This Row],[2027/28 Targeted savings]],Dataset[[#This Row],[2027/28 From - Total]],Dataset[[#This Row],[2027/28 To - Total]])","v":0},{"$f":"SUM(Dataset[[#This Row],[2028/29 Targeted savings]],Dataset[[#This Row],[2028/29 From - Total]],Dataset[[#This Row],[2028/29 To - Total]])","v":0},{"$f":"SUM(Dataset[[#This Row],[2029/30 Targeted savings]],Dataset[[#This Row],[2029/30 From - Total]],Dataset[[#This Row],[2029/30 To - Total]])","v":0},{"$f":"Dataset[[#This Row],[2026/27 Baseline]]+Dataset[[#This Row],[2026/27 Total change]]","v":16750},{"$f":"Dataset[[#This Row],[2027/28 Baseline]]+Dataset[[#This Row],[2027/28 Total change]]","v":5749},{"$f":"Dataset[[#This Row],[2028/29 Baseline]]+Dataset[[#This Row],[2028/29 Total change]]","v":5927},{"$f":"Dataset[[#This Row],[2029/30 Baseline]]+Dataset[[#This Row],[2029/30 Total change]]","v":6105}]
["NAT|Non-transfer","30|Contractors","2027_28","MTEC2027",30,5,2,33083,563,"30","05","02","033083","000563","30|05|02|000563","01","01","02","16","16","01|01|02|16|16","National","Communications and Digital Technologies","Digital Infrastructure and Technologies","Broadband","Non-transfer","Current","Current payments","Goods and services","Contractors","Contractors","Economic development","Economic regulation and infrastructure","NAT",0,34,344,0,0,0,0,355,0,0,0,null,null,null,null,null,null,null,null,null,null,null,null,null,null,null,null,null,null,null,null,null,null,null,null,null,null,null,null,null,null,null,null,null,null,{"$f":"Dataset[[#This Row],[2027/28 From - Spending review Topic 1]]+Dataset[[#This Row],[2027/28 From - Spending review Topic 2]]+Dataset[[#This Row],[2027/28 From - Spending review Topic 3]]+Dataset[[#This Row],[2027/28 From - Spending review Topic 4]]+Dataset[[#This Row],[2027/28 From - Other reallocations]]","v":0},{"$f":"Dataset[[#This Row],[2028/29 From - Spending review Topic 1]]+Dataset[[#This Row],[2028/29 From - Spending review Topic 2]]+Dataset[[#This Row],[2028/29 From - Spending review Topic 3]]+Dataset[[#This Row],[2028/29 From - Spending review Topic 4]]+Dataset[[#This Row],[2028/29 From - Other reallocations]]","v":0},{"$f":"Dataset[[#This Row],[2029/30 From - Spending review Topic 1]]+Dataset[[#This Row],[2029/30 From - Spending review Topic 2]]+Dataset[[#This Row],[2029/30 From - Spending review Topic 3]]+Dataset[[#This Row],[2029/30 From - Spending review Topic 4]]+Dataset[[#This Row],[2029/30 From - Other reallocations]]","v":0},{"$f":"Dataset[[#This Row],[2027/28 To - Spending review Topic 1]]+Dataset[[#This Row],[2027/28 To - Spending review Topic 2]]+Dataset[[#This Row],[2027/28 To - Spending review Topic 3]]+Dataset[[#This Row],[2027/28 To - Spending review Topic 4]]+Dataset[[#This Row],[2027/28 To - Other reallocations]]","v":0},{"$f":"Dataset[[#This Row],[2028/29 To - Spending review Topic 1]]+Dataset[[#This Row],[2028/29 To - Spending review Topic 2]]+Dataset[[#This Row],[2028/29 To - Spending review Topic 3]]+Dataset[[#This Row],[2028/29 To - Spending review Topic 4]]+Dataset[[#This Row],[2028/29 To - Other reallocations]]","v":0},{"$f":"Dataset[[#This Row],[2029/30 To - Spending review Topic 1]]+Dataset[[#This Row],[2029/30 To - Spending review Topic 2]]+Dataset[[#This Row],[2029/30 To - Spending review Topic 3]]+Dataset[[#This Row],[2029/30 To - Spending review Topic 4]]+Dataset[[#This Row],[2029/30 To - Other reallocations]]","v":0},{"$f":"Dataset[[#This Row],[2027/28 Targeted savings]]+Dataset[[#This Row],[2027/28 From - Total]]","v":0},{"$f":"Dataset[[#This Row],[2028/29 Targeted savings]]+Dataset[[#This Row],[2028/29 From - Total]]","v":0},{"$f":"Dataset[[#This Row],[2029/30 Targeted savings]]+Dataset[[#This Row],[2029/30 From - Total]]","v":0},{"$f":"Dataset[[#This Row],[2026/27 Targeted savings]]","v":0},{"$f":"SUM(Dataset[[#This Row],[2027/28 Targeted savings]],Dataset[[#This Row],[2027/28 From - Total]],Dataset[[#This Row],[2027/28 To - Total]])","v":0},{"$f":"SUM(Dataset[[#This Row],[2028/29 Targeted savings]],Dataset[[#This Row],[2028/29 From - Total]],Dataset[[#This Row],[2028/29 To - Total]])","v":0},{"$f":"SUM(Dataset[[#This Row],[2029/30 Targeted savings]],Dataset[[#This Row],[2029/30 From - Total]],Dataset[[#This Row],[2029/30 To - Total]])","v":0},{"$f":"Dataset[[#This Row],[2026/27 Baseline]]+Dataset[[#This Row],[2026/27 Total change]]","v":355},{"$f":"Dataset[[#This Row],[2027/28 Baseline]]+Dataset[[#This Row],[2027/28 Total change]]","v":0},{"$f":"Dataset[[#This Row],[2028/29 Baseline]]+Dataset[[#This Row],[2028/29 Total change]]","v":0},{"$f":"Dataset[[#This Row],[2029/30 Baseline]]+Dataset[[#This Row],[2029/30 Total change]]","v":0}]
["NAT|Non-transfer","30|Entertainment","2027_28","MTEC2027",30,5,2,33084,564,"30","05","02","033084","000564","30|05|02|000564","01","01","02","18","18","01|01|02|18|18","National","Communications and Digital Technologies","Digital Infrastructure and Technologies","Broadband","Non-transfer","Current","Current payments","Goods and services","Entertainment","Entertainment","Economic development","Economic regulation and infrastructure","NAT",0,0,0,61,61,61,0,38,82,85,88,null,null,null,null,null,null,null,null,null,null,null,null,null,null,null,null,null,null,null,null,null,null,null,null,null,null,null,null,null,null,null,null,null,null,{"$f":"Dataset[[#This Row],[2027/28 From - Spending review Topic 1]]+Dataset[[#This Row],[2027/28 From - Spending review Topic 2]]+Dataset[[#This Row],[2027/28 From - Spending review Topic 3]]+Dataset[[#This Row],[2027/28 From - Spending review Topic 4]]+Dataset[[#This Row],[2027/28 From - Other reallocations]]","v":0},{"$f":"Dataset[[#This Row],[2028/29 From - Spending review Topic 1]]+Dataset[[#This Row],[2028/29 From - Spending review Topic 2]]+Dataset[[#This Row],[2028/29 From - Spending review Topic 3]]+Dataset[[#This Row],[2028/29 From - Spending review Topic 4]]+Dataset[[#This Row],[2028/29 From - Other reallocations]]","v":0},{"$f":"Dataset[[#This Row],[2029/30 From - Spending review Topic 1]]+Dataset[[#This Row],[2029/30 From - Spending review Topic 2]]+Dataset[[#This Row],[2029/30 From - Spending review Topic 3]]+Dataset[[#This Row],[2029/30 From - Spending review Topic 4]]+Dataset[[#This Row],[2029/30 From - Other reallocations]]","v":0},{"$f":"Dataset[[#This Row],[2027/28 To - Spending review Topic 1]]+Dataset[[#This Row],[2027/28 To - Spending review Topic 2]]+Dataset[[#This Row],[2027/28 To - Spending review Topic 3]]+Dataset[[#This Row],[2027/28 To - Spending review Topic 4]]+Dataset[[#This Row],[2027/28 To - Other reallocations]]","v":0},{"$f":"Dataset[[#This Row],[2028/29 To - Spending review Topic 1]]+Dataset[[#This Row],[2028/29 To - Spending review Topic 2]]+Dataset[[#This Row],[2028/29 To - Spending review Topic 3]]+Dataset[[#This Row],[2028/29 To - Spending review Topic 4]]+Dataset[[#This Row],[2028/29 To - Other reallocations]]","v":0},{"$f":"Dataset[[#This Row],[2029/30 To - Spending review Topic 1]]+Dataset[[#This Row],[2029/30 To - Spending review Topic 2]]+Dataset[[#This Row],[2029/30 To - Spending review Topic 3]]+Dataset[[#This Row],[2029/30 To - Spending review Topic 4]]+Dataset[[#This Row],[2029/30 To - Other reallocations]]","v":0},{"$f":"Dataset[[#This Row],[2027/28 Targeted savings]]+Dataset[[#This Row],[2027/28 From - Total]]","v":0},{"$f":"Dataset[[#This Row],[2028/29 Targeted savings]]+Dataset[[#This Row],[2028/29 From - Total]]","v":0},{"$f":"Dataset[[#This Row],[2029/30 Targeted savings]]+Dataset[[#This Row],[2029/30 From - Total]]","v":0},{"$f":"Dataset[[#This Row],[2026/27 Targeted savings]]","v":0},{"$f":"SUM(Dataset[[#This Row],[2027/28 Targeted savings]],Dataset[[#This Row],[2027/28 From - Total]],Dataset[[#This Row],[2027/28 To - Total]])","v":0},{"$f":"SUM(Dataset[[#This Row],[2028/29 Targeted savings]],Dataset[[#This Row],[2028/29 From - Total]],Dataset[[#This Row],[2028/29 To - Total]])","v":0},{"$f":"SUM(Dataset[[#This Row],[2029/30 Targeted savings]],Dataset[[#This Row],[2029/30 From - Total]],Dataset[[#This Row],[2029/30 To - Total]])","v":0},{"$f":"Dataset[[#This Row],[2026/27 Baseline]]+Dataset[[#This Row],[2026/27 Total change]]","v":38},{"$f":"Dataset[[#This Row],[2027/28 Baseline]]+Dataset[[#This Row],[2027/28 Total change]]","v":82},{"$f":"Dataset[[#This Row],[2028/29 Baseline]]+Dataset[[#This Row],[2028/29 Total change]]","v":85},{"$f":"Dataset[[#This Row],[2029/30 Baseline]]+Dataset[[#This Row],[2029/30 Total change]]","v":88}]
["NAT|Non-transfer","30|Consumable supplies","2027_28","MTEC2027",30,5,2,33085,565,"30","05","02","033085","000565","30|05|02|000565","01","01","02","31","31","01|01|02|31|31","National","Communications and Digital Technologies","Digital Infrastructure and Technologies","Broadband","Non-transfer","Current","Current payments","Goods and services","Consumable supplies","Consumable supplies","Economic development","Economic regulation and infrastructure","NAT",2,6,2,45,45,45,0,88,72,74,76,null,null,null,null,null,null,null,null,null,null,null,null,null,null,null,null,null,null,null,null,null,null,null,null,null,null,null,null,null,null,null,null,null,null,{"$f":"Dataset[[#This Row],[2027/28 From - Spending review Topic 1]]+Dataset[[#This Row],[2027/28 From - Spending review Topic 2]]+Dataset[[#This Row],[2027/28 From - Spending review Topic 3]]+Dataset[[#This Row],[2027/28 From - Spending review Topic 4]]+Dataset[[#This Row],[2027/28 From - Other reallocations]]","v":0},{"$f":"Dataset[[#This Row],[2028/29 From - Spending review Topic 1]]+Dataset[[#This Row],[2028/29 From - Spending review Topic 2]]+Dataset[[#This Row],[2028/29 From - Spending review Topic 3]]+Dataset[[#This Row],[2028/29 From - Spending review Topic 4]]+Dataset[[#This Row],[2028/29 From - Other reallocations]]","v":0},{"$f":"Dataset[[#This Row],[2029/30 From - Spending review Topic 1]]+Dataset[[#This Row],[2029/30 From - Spending review Topic 2]]+Dataset[[#This Row],[2029/30 From - Spending review Topic 3]]+Dataset[[#This Row],[2029/30 From - Spending review Topic 4]]+Dataset[[#This Row],[2029/30 From - Other reallocations]]","v":0},{"$f":"Dataset[[#This Row],[2027/28 To - Spending review Topic 1]]+Dataset[[#This Row],[2027/28 To - Spending review Topic 2]]+Dataset[[#This Row],[2027/28 To - Spending review Topic 3]]+Dataset[[#This Row],[2027/28 To - Spending review Topic 4]]+Dataset[[#This Row],[2027/28 To - Other reallocations]]","v":0},{"$f":"Dataset[[#This Row],[2028/29 To - Spending review Topic 1]]+Dataset[[#This Row],[2028/29 To - Spending review Topic 2]]+Dataset[[#This Row],[2028/29 To - Spending review Topic 3]]+Dataset[[#This Row],[2028/29 To - Spending review Topic 4]]+Dataset[[#This Row],[2028/29 To - Other reallocations]]","v":0},{"$f":"Dataset[[#This Row],[2029/30 To - Spending review Topic 1]]+Dataset[[#This Row],[2029/30 To - Spending review Topic 2]]+Dataset[[#This Row],[2029/30 To - Spending review Topic 3]]+Dataset[[#This Row],[2029/30 To - Spending review Topic 4]]+Dataset[[#This Row],[2029/30 To - Other reallocations]]","v":0},{"$f":"Dataset[[#This Row],[2027/28 Targeted savings]]+Dataset[[#This Row],[2027/28 From - Total]]","v":0},{"$f":"Dataset[[#This Row],[2028/29 Targeted savings]]+Dataset[[#This Row],[2028/29 From - Total]]","v":0},{"$f":"Dataset[[#This Row],[2029/30 Targeted savings]]+Dataset[[#This Row],[2029/30 From - Total]]","v":0},{"$f":"Dataset[[#This Row],[2026/27 Targeted savings]]","v":0},{"$f":"SUM(Dataset[[#This Row],[2027/28 Targeted savings]],Dataset[[#This Row],[2027/28 From - Total]],Dataset[[#This Row],[2027/28 To - Total]])","v":0},{"$f":"SUM(Dataset[[#This Row],[2028/29 Targeted savings]],Dataset[[#This Row],[2028/29 From - Total]],Dataset[[#This Row],[2028/29 To - Total]])","v":0},{"$f":"SUM(Dataset[[#This Row],[2029/30 Targeted savings]],Dataset[[#This Row],[2029/30 From - Total]],Dataset[[#This Row],[2029/30 To - Total]])","v":0},{"$f":"Dataset[[#This Row],[2026/27 Baseline]]+Dataset[[#This Row],[2026/27 Total change]]","v":88},{"$f":"Dataset[[#This Row],[2027/28 Baseline]]+Dataset[[#This Row],[2027/28 Total change]]","v":72},{"$f":"Dataset[[#This Row],[2028/29 Baseline]]+Dataset[[#This Row],[2028/29 Total change]]","v":74},{"$f":"Dataset[[#This Row],[2029/30 Baseline]]+Dataset[[#This Row],[2029/30 Total change]]","v":76}]
["NAT|Non-transfer","30|Consumables: Stationery, printing and office supplies","2027_28","MTEC2027",30,5,2,33086,566,"30","05","02","033086","000566","30|05|02|000566","01","01","02","32","32","01|01|02|32|32","National","Communications and Digital Technologies","Digital Infrastructure and Technologies","Broadband","Non-transfer","Current","Current payments","Goods and services","Consumables: Stationery, printing and office supplies","Consumables: Stationery, printing and office supplies","Economic development","Economic regulation and infrastructure","NAT",4,24,6,1068,938,938,0,147,106,1140,1174,null,null,null,null,null,null,null,null,null,null,null,null,null,null,null,null,null,null,null,null,null,null,null,null,null,null,null,null,null,null,null,null,null,null,{"$f":"Dataset[[#This Row],[2027/28 From - Spending review Topic 1]]+Dataset[[#This Row],[2027/28 From - Spending review Topic 2]]+Dataset[[#This Row],[2027/28 From - Spending review Topic 3]]+Dataset[[#This Row],[2027/28 From - Spending review Topic 4]]+Dataset[[#This Row],[2027/28 From - Other reallocations]]","v":0},{"$f":"Dataset[[#This Row],[2028/29 From - Spending review Topic 1]]+Dataset[[#This Row],[2028/29 From - Spending review Topic 2]]+Dataset[[#This Row],[2028/29 From - Spending review Topic 3]]+Dataset[[#This Row],[2028/29 From - Spending review Topic 4]]+Dataset[[#This Row],[2028/29 From - Other reallocations]]","v":0},{"$f":"Dataset[[#This Row],[2029/30 From - Spending review Topic 1]]+Dataset[[#This Row],[2029/30 From - Spending review Topic 2]]+Dataset[[#This Row],[2029/30 From - Spending review Topic 3]]+Dataset[[#This Row],[2029/30 From - Spending review Topic 4]]+Dataset[[#This Row],[2029/30 From - Other reallocations]]","v":0},{"$f":"Dataset[[#This Row],[2027/28 To - Spending review Topic 1]]+Dataset[[#This Row],[2027/28 To - Spending review Topic 2]]+Dataset[[#This Row],[2027/28 To - Spending review Topic 3]]+Dataset[[#This Row],[2027/28 To - Spending review Topic 4]]+Dataset[[#This Row],[2027/28 To - Other reallocations]]","v":0},{"$f":"Dataset[[#This Row],[2028/29 To - Spending review Topic 1]]+Dataset[[#This Row],[2028/29 To - Spending review Topic 2]]+Dataset[[#This Row],[2028/29 To - Spending review Topic 3]]+Dataset[[#This Row],[2028/29 To - Spending review Topic 4]]+Dataset[[#This Row],[2028/29 To - Other reallocations]]","v":0},{"$f":"Dataset[[#This Row],[2029/30 To - Spending review Topic 1]]+Dataset[[#This Row],[2029/30 To - Spending review Topic 2]]+Dataset[[#This Row],[2029/30 To - Spending review Topic 3]]+Dataset[[#This Row],[2029/30 To - Spending review Topic 4]]+Dataset[[#This Row],[2029/30 To - Other reallocations]]","v":0},{"$f":"Dataset[[#This Row],[2027/28 Targeted savings]]+Dataset[[#This Row],[2027/28 From - Total]]","v":0},{"$f":"Dataset[[#This Row],[2028/29 Targeted savings]]+Dataset[[#This Row],[2028/29 From - Total]]","v":0},{"$f":"Dataset[[#This Row],[2029/30 Targeted savings]]+Dataset[[#This Row],[2029/30 From - Total]]","v":0},{"$f":"Dataset[[#This Row],[2026/27 Targeted savings]]","v":0},{"$f":"SUM(Dataset[[#This Row],[2027/28 Targeted savings]],Dataset[[#This Row],[2027/28 From - Total]],Dataset[[#This Row],[2027/28 To - Total]])","v":0},{"$f":"SUM(Dataset[[#This Row],[2028/29 Targeted savings]],Dataset[[#This Row],[2028/29 From - Total]],Dataset[[#This Row],[2028/29 To - Total]])","v":0},{"$f":"SUM(Dataset[[#This Row],[2029/30 Targeted savings]],Dataset[[#This Row],[2029/30 From - Total]],Dataset[[#This Row],[2029/30 To - Total]])","v":0},{"$f":"Dataset[[#This Row],[2026/27 Baseline]]+Dataset[[#This Row],[2026/27 Total change]]","v":147},{"$f":"Dataset[[#This Row],[2027/28 Baseline]]+Dataset[[#This Row],[2027/28 Total change]]","v":106},{"$f":"Dataset[[#This Row],[2028/29 Baseline]]+Dataset[[#This Row],[2028/29 Total change]]","v":1140},{"$f":"Dataset[[#This Row],[2029/30 Baseline]]+Dataset[[#This Row],[2029/30 Total change]]","v":1174}]
["NAT|Non-transfer","30|Operating leases","2027_28","MTEC2027",30,5,2,33087,567,"30","05","02","033087","000567","30|05|02|000567","01","01","02","33","33","01|01|02|33|33","National","Communications and Digital Technologies","Digital Infrastructure and Technologies","Broadband","Non-transfer","Current","Current payments","Goods and services","Operating leases","Operating leases","Economic development","Economic regulation and infrastructure","NAT",61,51,50,170,150,150,0,238,315,325,335,null,null,null,null,null,null,null,null,null,null,null,null,null,null,null,null,null,null,null,null,null,null,null,null,null,null,null,null,null,null,null,null,null,null,{"$f":"Dataset[[#This Row],[2027/28 From - Spending review Topic 1]]+Dataset[[#This Row],[2027/28 From - Spending review Topic 2]]+Dataset[[#This Row],[2027/28 From - Spending review Topic 3]]+Dataset[[#This Row],[2027/28 From - Spending review Topic 4]]+Dataset[[#This Row],[2027/28 From - Other reallocations]]","v":0},{"$f":"Dataset[[#This Row],[2028/29 From - Spending review Topic 1]]+Dataset[[#This Row],[2028/29 From - Spending review Topic 2]]+Dataset[[#This Row],[2028/29 From - Spending review Topic 3]]+Dataset[[#This Row],[2028/29 From - Spending review Topic 4]]+Dataset[[#This Row],[2028/29 From - Other reallocations]]","v":0},{"$f":"Dataset[[#This Row],[2029/30 From - Spending review Topic 1]]+Dataset[[#This Row],[2029/30 From - Spending review Topic 2]]+Dataset[[#This Row],[2029/30 From - Spending review Topic 3]]+Dataset[[#This Row],[2029/30 From - Spending review Topic 4]]+Dataset[[#This Row],[2029/30 From - Other reallocations]]","v":0},{"$f":"Dataset[[#This Row],[2027/28 To - Spending review Topic 1]]+Dataset[[#This Row],[2027/28 To - Spending review Topic 2]]+Dataset[[#This Row],[2027/28 To - Spending review Topic 3]]+Dataset[[#This Row],[2027/28 To - Spending review Topic 4]]+Dataset[[#This Row],[2027/28 To - Other reallocations]]","v":0},{"$f":"Dataset[[#This Row],[2028/29 To - Spending review Topic 1]]+Dataset[[#This Row],[2028/29 To - Spending review Topic 2]]+Dataset[[#This Row],[2028/29 To - Spending review Topic 3]]+Dataset[[#This Row],[2028/29 To - Spending review Topic 4]]+Dataset[[#This Row],[2028/29 To - Other reallocations]]","v":0},{"$f":"Dataset[[#This Row],[2029/30 To - Spending review Topic 1]]+Dataset[[#This Row],[2029/30 To - Spending review Topic 2]]+Dataset[[#This Row],[2029/30 To - Spending review Topic 3]]+Dataset[[#This Row],[2029/30 To - Spending review Topic 4]]+Dataset[[#This Row],[2029/30 To - Other reallocations]]","v":0},{"$f":"Dataset[[#This Row],[2027/28 Targeted savings]]+Dataset[[#This Row],[2027/28 From - Total]]","v":0},{"$f":"Dataset[[#This Row],[2028/29 Targeted savings]]+Dataset[[#This Row],[2028/29 From - Total]]","v":0},{"$f":"Dataset[[#This Row],[2029/30 Targeted savings]]+Dataset[[#This Row],[2029/30 From - Total]]","v":0},{"$f":"Dataset[[#This Row],[2026/27 Targeted savings]]","v":0},{"$f":"SUM(Dataset[[#This Row],[2027/28 Targeted savings]],Dataset[[#This Row],[2027/28 From - Total]],Dataset[[#This Row],[2027/28 To - Total]])","v":0},{"$f":"SUM(Dataset[[#This Row],[2028/29 Targeted savings]],Dataset[[#This Row],[2028/29 From - Total]],Dataset[[#This Row],[2028/29 To - Total]])","v":0},{"$f":"SUM(Dataset[[#This Row],[2029/30 Targeted savings]],Dataset[[#This Row],[2029/30 From - Total]],Dataset[[#This Row],[2029/30 To - Total]])","v":0},{"$f":"Dataset[[#This Row],[2026/27 Baseline]]+Dataset[[#This Row],[2026/27 Total change]]","v":238},{"$f":"Dataset[[#This Row],[2027/28 Baseline]]+Dataset[[#This Row],[2027/28 Total change]]","v":315},{"$f":"Dataset[[#This Row],[2028/29 Baseline]]+Dataset[[#This Row],[2028/29 Total change]]","v":325},{"$f":"Dataset[[#This Row],[2029/30 Baseline]]+Dataset[[#This Row],[2029/30 Total change]]","v":335}]
["NAT|Non-transfer","30|Rental and hiring","2027_28","MTEC2027",30,5,2,33088,568,"30","05","02","033088","000568","30|05|02|000568","01","01","02","34","34","01|01|02|34|34","National","Communications and Digital Technologies","Digital Infrastructure and Technologies","Broadband","Non-transfer","Current","Current payments","Goods and services","Rental and hiring","Rental and hiring","Economic development","Economic regulation and infrastructure","NAT",0,0,637,20,20,20,0,22,13,13,13,null,null,null,null,null,null,null,null,null,null,null,null,null,null,null,null,null,null,null,null,null,null,null,null,null,null,null,null,null,null,null,null,null,null,{"$f":"Dataset[[#This Row],[2027/28 From - Spending review Topic 1]]+Dataset[[#This Row],[2027/28 From - Spending review Topic 2]]+Dataset[[#This Row],[2027/28 From - Spending review Topic 3]]+Dataset[[#This Row],[2027/28 From - Spending review Topic 4]]+Dataset[[#This Row],[2027/28 From - Other reallocations]]","v":0},{"$f":"Dataset[[#This Row],[2028/29 From - Spending review Topic 1]]+Dataset[[#This Row],[2028/29 From - Spending review Topic 2]]+Dataset[[#This Row],[2028/29 From - Spending review Topic 3]]+Dataset[[#This Row],[2028/29 From - Spending review Topic 4]]+Dataset[[#This Row],[2028/29 From - Other reallocations]]","v":0},{"$f":"Dataset[[#This Row],[2029/30 From - Spending review Topic 1]]+Dataset[[#This Row],[2029/30 From - Spending review Topic 2]]+Dataset[[#This Row],[2029/30 From - Spending review Topic 3]]+Dataset[[#This Row],[2029/30 From - Spending review Topic 4]]+Dataset[[#This Row],[2029/30 From - Other reallocations]]","v":0},{"$f":"Dataset[[#This Row],[2027/28 To - Spending review Topic 1]]+Dataset[[#This Row],[2027/28 To - Spending review Topic 2]]+Dataset[[#This Row],[2027/28 To - Spending review Topic 3]]+Dataset[[#This Row],[2027/28 To - Spending review Topic 4]]+Dataset[[#This Row],[2027/28 To - Other reallocations]]","v":0},{"$f":"Dataset[[#This Row],[2028/29 To - Spending review Topic 1]]+Dataset[[#This Row],[2028/29 To - Spending review Topic 2]]+Dataset[[#This Row],[2028/29 To - Spending review Topic 3]]+Dataset[[#This Row],[2028/29 To - Spending review Topic 4]]+Dataset[[#This Row],[2028/29 To - Other reallocations]]","v":0},{"$f":"Dataset[[#This Row],[2029/30 To - Spending review Topic 1]]+Dataset[[#This Row],[2029/30 To - Spending review Topic 2]]+Dataset[[#This Row],[2029/30 To - Spending review Topic 3]]+Dataset[[#This Row],[2029/30 To - Spending review Topic 4]]+Dataset[[#This Row],[2029/30 To - Other reallocations]]","v":0},{"$f":"Dataset[[#This Row],[2027/28 Targeted savings]]+Dataset[[#This Row],[2027/28 From - Total]]","v":0},{"$f":"Dataset[[#This Row],[2028/29 Targeted savings]]+Dataset[[#This Row],[2028/29 From - Total]]","v":0},{"$f":"Dataset[[#This Row],[2029/30 Targeted savings]]+Dataset[[#This Row],[2029/30 From - Total]]","v":0},{"$f":"Dataset[[#This Row],[2026/27 Targeted savings]]","v":0},{"$f":"SUM(Dataset[[#This Row],[2027/28 Targeted savings]],Dataset[[#This Row],[2027/28 From - Total]],Dataset[[#This Row],[2027/28 To - Total]])","v":0},{"$f":"SUM(Dataset[[#This Row],[2028/29 Targeted savings]],Dataset[[#This Row],[2028/29 From - Total]],Dataset[[#This Row],[2028/29 To - Total]])","v":0},{"$f":"SUM(Dataset[[#This Row],[2029/30 Targeted savings]],Dataset[[#This Row],[2029/30 From - Total]],Dataset[[#This Row],[2029/30 To - Total]])","v":0},{"$f":"Dataset[[#This Row],[2026/27 Baseline]]+Dataset[[#This Row],[2026/27 Total change]]","v":22},{"$f":"Dataset[[#This Row],[2027/28 Baseline]]+Dataset[[#This Row],[2027/28 Total change]]","v":13},{"$f":"Dataset[[#This Row],[2028/29 Baseline]]+Dataset[[#This Row],[2028/29 Total change]]","v":13},{"$f":"Dataset[[#This Row],[2029/30 Baseline]]+Dataset[[#This Row],[2029/30 Total change]]","v":13}]
["NAT|Non-transfer","30|Travel and subsistence","2027_28","MTEC2027",30,5,2,33089,569,"30","05","02","033089","000569","30|05|02|000569","01","01","02","37","37","01|01|02|37|37","National","Communications and Digital Technologies","Digital Infrastructure and Technologies","Broadband","Non-transfer","Current","Current payments","Goods and services","Travel and subsistence","Travel and subsistence","Economic development","Economic regulation and infrastructure","NAT",3369,7328,3258,7338,4738,4738,0,6149,6741,7982,8222,null,null,null,null,null,null,null,null,null,null,null,null,null,null,null,null,null,null,null,null,null,null,null,null,null,null,null,null,null,null,null,null,null,null,{"$f":"Dataset[[#This Row],[2027/28 From - Spending review Topic 1]]+Dataset[[#This Row],[2027/28 From - Spending review Topic 2]]+Dataset[[#This Row],[2027/28 From - Spending review Topic 3]]+Dataset[[#This Row],[2027/28 From - Spending review Topic 4]]+Dataset[[#This Row],[2027/28 From - Other reallocations]]","v":0},{"$f":"Dataset[[#This Row],[2028/29 From - Spending review Topic 1]]+Dataset[[#This Row],[2028/29 From - Spending review Topic 2]]+Dataset[[#This Row],[2028/29 From - Spending review Topic 3]]+Dataset[[#This Row],[2028/29 From - Spending review Topic 4]]+Dataset[[#This Row],[2028/29 From - Other reallocations]]","v":0},{"$f":"Dataset[[#This Row],[2029/30 From - Spending review Topic 1]]+Dataset[[#This Row],[2029/30 From - Spending review Topic 2]]+Dataset[[#This Row],[2029/30 From - Spending review Topic 3]]+Dataset[[#This Row],[2029/30 From - Spending review Topic 4]]+Dataset[[#This Row],[2029/30 From - Other reallocations]]","v":0},{"$f":"Dataset[[#This Row],[2027/28 To - Spending review Topic 1]]+Dataset[[#This Row],[2027/28 To - Spending review Topic 2]]+Dataset[[#This Row],[2027/28 To - Spending review Topic 3]]+Dataset[[#This Row],[2027/28 To - Spending review Topic 4]]+Dataset[[#This Row],[2027/28 To - Other reallocations]]","v":0},{"$f":"Dataset[[#This Row],[2028/29 To - Spending review Topic 1]]+Dataset[[#This Row],[2028/29 To - Spending review Topic 2]]+Dataset[[#This Row],[2028/29 To - Spending review Topic 3]]+Dataset[[#This Row],[2028/29 To - Spending review Topic 4]]+Dataset[[#This Row],[2028/29 To - Other reallocations]]","v":0},{"$f":"Dataset[[#This Row],[2029/30 To - Spending review Topic 1]]+Dataset[[#This Row],[2029/30 To - Spending review Topic 2]]+Dataset[[#This Row],[2029/30 To - Spending review Topic 3]]+Dataset[[#This Row],[2029/30 To - Spending review Topic 4]]+Dataset[[#This Row],[2029/30 To - Other reallocations]]","v":0},{"$f":"Dataset[[#This Row],[2027/28 Targeted savings]]+Dataset[[#This Row],[2027/28 From - Total]]","v":0},{"$f":"Dataset[[#This Row],[2028/29 Targeted savings]]+Dataset[[#This Row],[2028/29 From - Total]]","v":0},{"$f":"Dataset[[#This Row],[2029/30 Targeted savings]]+Dataset[[#This Row],[2029/30 From - Total]]","v":0},{"$f":"Dataset[[#This Row],[2026/27 Targeted savings]]","v":0},{"$f":"SUM(Dataset[[#This Row],[2027/28 Targeted savings]],Dataset[[#This Row],[2027/28 From - Total]],Dataset[[#This Row],[2027/28 To - Total]])","v":0},{"$f":"SUM(Dataset[[#This Row],[2028/29 Targeted savings]],Dataset[[#This Row],[2028/29 From - Total]],Dataset[[#This Row],[2028/29 To - Total]])","v":0},{"$f":"SUM(Dataset[[#This Row],[2029/30 Targeted savings]],Dataset[[#This Row],[2029/30 From - Total]],Dataset[[#This Row],[2029/30 To - Total]])","v":0},{"$f":"Dataset[[#This Row],[2026/27 Baseline]]+Dataset[[#This Row],[2026/27 Total change]]","v":6149},{"$f":"Dataset[[#This Row],[2027/28 Baseline]]+Dataset[[#This Row],[2027/28 Total change]]","v":6741},{"$f":"Dataset[[#This Row],[2028/29 Baseline]]+Dataset[[#This Row],[2028/29 Total change]]","v":7982},{"$f":"Dataset[[#This Row],[2029/30 Baseline]]+Dataset[[#This Row],[2029/30 Total change]]","v":8222}]
["NAT|Non-transfer","30|Training and development","2027_28","MTEC2027",30,5,2,33090,570,"30","05","02","033090","000570","30|05|02|000570","01","01","02","38","38","01|01|02|38|38","National","Communications and Digital Technologies","Digital Infrastructure and Technologies","Broadband","Non-transfer","Current","Current payments","Goods and services","Training and development","Training and development","Economic development","Economic regulation and infrastructure","NAT",80,114,87,290,240,240,0,141,146,357,368,null,null,null,null,null,null,null,null,null,null,null,null,null,null,null,null,null,null,null,null,null,null,null,null,null,null,null,null,null,null,null,null,null,null,{"$f":"Dataset[[#This Row],[2027/28 From - Spending review Topic 1]]+Dataset[[#This Row],[2027/28 From - Spending review Topic 2]]+Dataset[[#This Row],[2027/28 From - Spending review Topic 3]]+Dataset[[#This Row],[2027/28 From - Spending review Topic 4]]+Dataset[[#This Row],[2027/28 From - Other reallocations]]","v":0},{"$f":"Dataset[[#This Row],[2028/29 From - Spending review Topic 1]]+Dataset[[#This Row],[2028/29 From - Spending review Topic 2]]+Dataset[[#This Row],[2028/29 From - Spending review Topic 3]]+Dataset[[#This Row],[2028/29 From - Spending review Topic 4]]+Dataset[[#This Row],[2028/29 From - Other reallocations]]","v":0},{"$f":"Dataset[[#This Row],[2029/30 From - Spending review Topic 1]]+Dataset[[#This Row],[2029/30 From - Spending review Topic 2]]+Dataset[[#This Row],[2029/30 From - Spending review Topic 3]]+Dataset[[#This Row],[2029/30 From - Spending review Topic 4]]+Dataset[[#This Row],[2029/30 From - Other reallocations]]","v":0},{"$f":"Dataset[[#This Row],[2027/28 To - Spending review Topic 1]]+Dataset[[#This Row],[2027/28 To - Spending review Topic 2]]+Dataset[[#This Row],[2027/28 To - Spending review Topic 3]]+Dataset[[#This Row],[2027/28 To - Spending review Topic 4]]+Dataset[[#This Row],[2027/28 To - Other reallocations]]","v":0},{"$f":"Dataset[[#This Row],[2028/29 To - Spending review Topic 1]]+Dataset[[#This Row],[2028/29 To - Spending review Topic 2]]+Dataset[[#This Row],[2028/29 To - Spending review Topic 3]]+Dataset[[#This Row],[2028/29 To - Spending review Topic 4]]+Dataset[[#This Row],[2028/29 To - Other reallocations]]","v":0},{"$f":"Dataset[[#This Row],[2029/30 To - Spending review Topic 1]]+Dataset[[#This Row],[2029/30 To - Spending review Topic 2]]+Dataset[[#This Row],[2029/30 To - Spending review Topic 3]]+Dataset[[#This Row],[2029/30 To - Spending review Topic 4]]+Dataset[[#This Row],[2029/30 To - Other reallocations]]","v":0},{"$f":"Dataset[[#This Row],[2027/28 Targeted savings]]+Dataset[[#This Row],[2027/28 From - Total]]","v":0},{"$f":"Dataset[[#This Row],[2028/29 Targeted savings]]+Dataset[[#This Row],[2028/29 From - Total]]","v":0},{"$f":"Dataset[[#This Row],[2029/30 Targeted savings]]+Dataset[[#This Row],[2029/30 From - Total]]","v":0},{"$f":"Dataset[[#This Row],[2026/27 Targeted savings]]","v":0},{"$f":"SUM(Dataset[[#This Row],[2027/28 Targeted savings]],Dataset[[#This Row],[2027/28 From - Total]],Dataset[[#This Row],[2027/28 To - Total]])","v":0},{"$f":"SUM(Dataset[[#This Row],[2028/29 Targeted savings]],Dataset[[#This Row],[2028/29 From - Total]],Dataset[[#This Row],[2028/29 To - Total]])","v":0},{"$f":"SUM(Dataset[[#This Row],[2029/30 Targeted savings]],Dataset[[#This Row],[2029/30 From - Total]],Dataset[[#This Row],[2029/30 To - Total]])","v":0},{"$f":"Dataset[[#This Row],[2026/27 Baseline]]+Dataset[[#This Row],[2026/27 Total change]]","v":141},{"$f":"Dataset[[#This Row],[2027/28 Baseline]]+Dataset[[#This Row],[2027/28 Total change]]","v":146},{"$f":"Dataset[[#This Row],[2028/29 Baseline]]+Dataset[[#This Row],[2028/29 Total change]]","v":357},{"$f":"Dataset[[#This Row],[2029/30 Baseline]]+Dataset[[#This Row],[2029/30 Total change]]","v":368}]
["NAT|Non-transfer","30|Operating payments","2027_28","MTEC2027",30,5,2,33091,571,"30","05","02","033091","000571","30|05|02|000571","01","01","02","39","39","01|01|02|39|39","National","Communications and Digital Technologies","Digital Infrastructure and Technologies","Broadband","Non-transfer","Current","Current payments","Goods and services","Operating payments","Operating payments","Economic development","Economic regulation and infrastructure","NAT",419,4,10,0,0,0,0,0,6,6,6,null,null,null,null,null,null,null,null,null,null,null,null,null,null,null,null,null,null,null,null,null,null,null,null,null,null,null,null,null,null,null,null,null,null,{"$f":"Dataset[[#This Row],[2027/28 From - Spending review Topic 1]]+Dataset[[#This Row],[2027/28 From - Spending review Topic 2]]+Dataset[[#This Row],[2027/28 From - Spending review Topic 3]]+Dataset[[#This Row],[2027/28 From - Spending review Topic 4]]+Dataset[[#This Row],[2027/28 From - Other reallocations]]","v":0},{"$f":"Dataset[[#This Row],[2028/29 From - Spending review Topic 1]]+Dataset[[#This Row],[2028/29 From - Spending review Topic 2]]+Dataset[[#This Row],[2028/29 From - Spending review Topic 3]]+Dataset[[#This Row],[2028/29 From - Spending review Topic 4]]+Dataset[[#This Row],[2028/29 From - Other reallocations]]","v":0},{"$f":"Dataset[[#This Row],[2029/30 From - Spending review Topic 1]]+Dataset[[#This Row],[2029/30 From - Spending review Topic 2]]+Dataset[[#This Row],[2029/30 From - Spending review Topic 3]]+Dataset[[#This Row],[2029/30 From - Spending review Topic 4]]+Dataset[[#This Row],[2029/30 From - Other reallocations]]","v":0},{"$f":"Dataset[[#This Row],[2027/28 To - Spending review Topic 1]]+Dataset[[#This Row],[2027/28 To - Spending review Topic 2]]+Dataset[[#This Row],[2027/28 To - Spending review Topic 3]]+Dataset[[#This Row],[2027/28 To - Spending review Topic 4]]+Dataset[[#This Row],[2027/28 To - Other reallocations]]","v":0},{"$f":"Dataset[[#This Row],[2028/29 To - Spending review Topic 1]]+Dataset[[#This Row],[2028/29 To - Spending review Topic 2]]+Dataset[[#This Row],[2028/29 To - Spending review Topic 3]]+Dataset[[#This Row],[2028/29 To - Spending review Topic 4]]+Dataset[[#This Row],[2028/29 To - Other reallocations]]","v":0},{"$f":"Dataset[[#This Row],[2029/30 To - Spending review Topic 1]]+Dataset[[#This Row],[2029/30 To - Spending review Topic 2]]+Dataset[[#This Row],[2029/30 To - Spending review Topic 3]]+Dataset[[#This Row],[2029/30 To - Spending review Topic 4]]+Dataset[[#This Row],[2029/30 To - Other reallocations]]","v":0},{"$f":"Dataset[[#This Row],[2027/28 Targeted savings]]+Dataset[[#This Row],[2027/28 From - Total]]","v":0},{"$f":"Dataset[[#This Row],[2028/29 Targeted savings]]+Dataset[[#This Row],[2028/29 From - Total]]","v":0},{"$f":"Dataset[[#This Row],[2029/30 Targeted savings]]+Dataset[[#This Row],[2029/30 From - Total]]","v":0},{"$f":"Dataset[[#This Row],[2026/27 Targeted savings]]","v":0},{"$f":"SUM(Dataset[[#This Row],[2027/28 Targeted savings]],Dataset[[#This Row],[2027/28 From - Total]],Dataset[[#This Row],[2027/28 To - Total]])","v":0},{"$f":"SUM(Dataset[[#This Row],[2028/29 Targeted savings]],Dataset[[#This Row],[2028/29 From - Total]],Dataset[[#This Row],[2028/29 To - Total]])","v":0},{"$f":"SUM(Dataset[[#This Row],[2029/30 Targeted savings]],Dataset[[#This Row],[2029/30 From - Total]],Dataset[[#This Row],[2029/30 To - Total]])","v":0},{"$f":"Dataset[[#This Row],[2026/27 Baseline]]+Dataset[[#This Row],[2026/27 Total change]]","v":0},{"$f":"Dataset[[#This Row],[2027/28 Baseline]]+Dataset[[#This Row],[2027/28 Total change]]","v":6},{"$f":"Dataset[[#This Row],[2028/29 Baseline]]+Dataset[[#This Row],[2028/29 Total change]]","v":6},{"$f":"Dataset[[#This Row],[2029/30 Baseline]]+Dataset[[#This Row],[2029/30 Total change]]","v":6}]
["NAT|Non-transfer","30|Venues and facilities","2027_28","MTEC2027",30,5,2,33092,572,"30","05","02","033092","000572","30|05|02|000572","01","01","02","40","40","01|01|02|40|40","National","Communications and Digital Technologies","Digital Infrastructure and Technologies","Broadband","Non-transfer","Current","Current payments","Goods and services","Venues and facilities","Venues and facilities","Economic development","Economic regulation and infrastructure","NAT",42,315,3,919,449,449,0,585,599,1133,1167,null,null,null,null,null,null,null,null,null,null,null,null,null,null,null,null,null,null,null,null,null,null,null,null,null,null,null,null,null,null,null,null,null,null,{"$f":"Dataset[[#This Row],[2027/28 From - Spending review Topic 1]]+Dataset[[#This Row],[2027/28 From - Spending review Topic 2]]+Dataset[[#This Row],[2027/28 From - Spending review Topic 3]]+Dataset[[#This Row],[2027/28 From - Spending review Topic 4]]+Dataset[[#This Row],[2027/28 From - Other reallocations]]","v":0},{"$f":"Dataset[[#This Row],[2028/29 From - Spending review Topic 1]]+Dataset[[#This Row],[2028/29 From - Spending review Topic 2]]+Dataset[[#This Row],[2028/29 From - Spending review Topic 3]]+Dataset[[#This Row],[2028/29 From - Spending review Topic 4]]+Dataset[[#This Row],[2028/29 From - Other reallocations]]","v":0},{"$f":"Dataset[[#This Row],[2029/30 From - Spending review Topic 1]]+Dataset[[#This Row],[2029/30 From - Spending review Topic 2]]+Dataset[[#This Row],[2029/30 From - Spending review Topic 3]]+Dataset[[#This Row],[2029/30 From - Spending review Topic 4]]+Dataset[[#This Row],[2029/30 From - Other reallocations]]","v":0},{"$f":"Dataset[[#This Row],[2027/28 To - Spending review Topic 1]]+Dataset[[#This Row],[2027/28 To - Spending review Topic 2]]+Dataset[[#This Row],[2027/28 To - Spending review Topic 3]]+Dataset[[#This Row],[2027/28 To - Spending review Topic 4]]+Dataset[[#This Row],[2027/28 To - Other reallocations]]","v":0},{"$f":"Dataset[[#This Row],[2028/29 To - Spending review Topic 1]]+Dataset[[#This Row],[2028/29 To - Spending review Topic 2]]+Dataset[[#This Row],[2028/29 To - Spending review Topic 3]]+Dataset[[#This Row],[2028/29 To - Spending review Topic 4]]+Dataset[[#This Row],[2028/29 To - Other reallocations]]","v":0},{"$f":"Dataset[[#This Row],[2029/30 To - Spending review Topic 1]]+Dataset[[#This Row],[2029/30 To - Spending review Topic 2]]+Dataset[[#This Row],[2029/30 To - Spending review Topic 3]]+Dataset[[#This Row],[2029/30 To - Spending review Topic 4]]+Dataset[[#This Row],[2029/30 To - Other reallocations]]","v":0},{"$f":"Dataset[[#This Row],[2027/28 Targeted savings]]+Dataset[[#This Row],[2027/28 From - Total]]","v":0},{"$f":"Dataset[[#This Row],[2028/29 Targeted savings]]+Dataset[[#This Row],[2028/29 From - Total]]","v":0},{"$f":"Dataset[[#This Row],[2029/30 Targeted savings]]+Dataset[[#This Row],[2029/30 From - Total]]","v":0},{"$f":"Dataset[[#This Row],[2026/27 Targeted savings]]","v":0},{"$f":"SUM(Dataset[[#This Row],[2027/28 Targeted savings]],Dataset[[#This Row],[2027/28 From - Total]],Dataset[[#This Row],[2027/28 To - Total]])","v":0},{"$f":"SUM(Dataset[[#This Row],[2028/29 Targeted savings]],Dataset[[#This Row],[2028/29 From - Total]],Dataset[[#This Row],[2028/29 To - Total]])","v":0},{"$f":"SUM(Dataset[[#This Row],[2029/30 Targeted savings]],Dataset[[#This Row],[2029/30 From - Total]],Dataset[[#This Row],[2029/30 To - Total]])","v":0},{"$f":"Dataset[[#This Row],[2026/27 Baseline]]+Dataset[[#This Row],[2026/27 Total change]]","v":585},{"$f":"Dataset[[#This Row],[2027/28 Baseline]]+Dataset[[#This Row],[2027/28 Total change]]","v":599},{"$f":"Dataset[[#This Row],[2028/29 Baseline]]+Dataset[[#This Row],[2028/29 Total change]]","v":1133},{"$f":"Dataset[[#This Row],[2029/30 Baseline]]+Dataset[[#This Row],[2029/30 Total change]]","v":1167}]
["NAT|Employee social benefits","30|Social benefits","2027_28","MTEC2027",30,5,2,33093,573,"30","05","02","033093","000573","30|05|02|000573","01","02","10","52","56","01|02|10|52|56","National","Communications and Digital Technologies","Digital Infrastructure and Technologies","Broadband","Employee social benefits","Current","Transfers and subsidies","Households","Social benefits","Social benefits","Economic development","Economic regulation and infrastructure","NAT",0,24,117,0,0,0,0,0,0,0,0,null,null,null,null,null,null,null,null,null,null,null,null,null,null,null,null,null,null,null,null,null,null,null,null,null,null,null,null,null,null,null,null,null,null,{"$f":"Dataset[[#This Row],[2027/28 From - Spending review Topic 1]]+Dataset[[#This Row],[2027/28 From - Spending review Topic 2]]+Dataset[[#This Row],[2027/28 From - Spending review Topic 3]]+Dataset[[#This Row],[2027/28 From - Spending review Topic 4]]+Dataset[[#This Row],[2027/28 From - Other reallocations]]","v":0},{"$f":"Dataset[[#This Row],[2028/29 From - Spending review Topic 1]]+Dataset[[#This Row],[2028/29 From - Spending review Topic 2]]+Dataset[[#This Row],[2028/29 From - Spending review Topic 3]]+Dataset[[#This Row],[2028/29 From - Spending review Topic 4]]+Dataset[[#This Row],[2028/29 From - Other reallocations]]","v":0},{"$f":"Dataset[[#This Row],[2029/30 From - Spending review Topic 1]]+Dataset[[#This Row],[2029/30 From - Spending review Topic 2]]+Dataset[[#This Row],[2029/30 From - Spending review Topic 3]]+Dataset[[#This Row],[2029/30 From - Spending review Topic 4]]+Dataset[[#This Row],[2029/30 From - Other reallocations]]","v":0},{"$f":"Dataset[[#This Row],[2027/28 To - Spending review Topic 1]]+Dataset[[#This Row],[2027/28 To - Spending review Topic 2]]+Dataset[[#This Row],[2027/28 To - Spending review Topic 3]]+Dataset[[#This Row],[2027/28 To - Spending review Topic 4]]+Dataset[[#This Row],[2027/28 To - Other reallocations]]","v":0},{"$f":"Dataset[[#This Row],[2028/29 To - Spending review Topic 1]]+Dataset[[#This Row],[2028/29 To - Spending review Topic 2]]+Dataset[[#This Row],[2028/29 To - Spending review Topic 3]]+Dataset[[#This Row],[2028/29 To - Spending review Topic 4]]+Dataset[[#This Row],[2028/29 To - Other reallocations]]","v":0},{"$f":"Dataset[[#This Row],[2029/30 To - Spending review Topic 1]]+Dataset[[#This Row],[2029/30 To - Spending review Topic 2]]+Dataset[[#This Row],[2029/30 To - Spending review Topic 3]]+Dataset[[#This Row],[2029/30 To - Spending review Topic 4]]+Dataset[[#This Row],[2029/30 To - Other reallocations]]","v":0},{"$f":"Dataset[[#This Row],[2027/28 Targeted savings]]+Dataset[[#This Row],[2027/28 From - Total]]","v":0},{"$f":"Dataset[[#This Row],[2028/29 Targeted savings]]+Dataset[[#This Row],[2028/29 From - Total]]","v":0},{"$f":"Dataset[[#This Row],[2029/30 Targeted savings]]+Dataset[[#This Row],[2029/30 From - Total]]","v":0},{"$f":"Dataset[[#This Row],[2026/27 Targeted savings]]","v":0},{"$f":"SUM(Dataset[[#This Row],[2027/28 Targeted savings]],Dataset[[#This Row],[2027/28 From - Total]],Dataset[[#This Row],[2027/28 To - Total]])","v":0},{"$f":"SUM(Dataset[[#This Row],[2028/29 Targeted savings]],Dataset[[#This Row],[2028/29 From - Total]],Dataset[[#This Row],[2028/29 To - Total]])","v":0},{"$f":"SUM(Dataset[[#This Row],[2029/30 Targeted savings]],Dataset[[#This Row],[2029/30 From - Total]],Dataset[[#This Row],[2029/30 To - Total]])","v":0},{"$f":"Dataset[[#This Row],[2026/27 Baseline]]+Dataset[[#This Row],[2026/27 Total change]]","v":0},{"$f":"Dataset[[#This Row],[2027/28 Baseline]]+Dataset[[#This Row],[2027/28 Total change]]","v":0},{"$f":"Dataset[[#This Row],[2028/29 Baseline]]+Dataset[[#This Row],[2028/29 Total change]]","v":0},{"$f":"Dataset[[#This Row],[2029/30 Baseline]]+Dataset[[#This Row],[2029/30 Total change]]","v":0}]
["NAT|Employee social benefits","30|Other transfers to households","2027_28","MTEC2027",30,5,2,33094,574,"30","05","02","033094","000574","30|05|02|000574","01","02","10","53","57","01|02|10|53|57","National","Communications and Digital Technologies","Digital Infrastructure and Technologies","Broadband","Employee social benefits","Current","Transfers and subsidies","Households","Other transfers to households","Other transfers to households","Economic development","Economic regulation and infrastructure","NAT",4,6,10,0,0,0,0,0,0,0,0,null,null,null,null,null,null,null,null,null,null,null,null,null,null,null,null,null,null,null,null,null,null,null,null,null,null,null,null,null,null,null,null,null,null,{"$f":"Dataset[[#This Row],[2027/28 From - Spending review Topic 1]]+Dataset[[#This Row],[2027/28 From - Spending review Topic 2]]+Dataset[[#This Row],[2027/28 From - Spending review Topic 3]]+Dataset[[#This Row],[2027/28 From - Spending review Topic 4]]+Dataset[[#This Row],[2027/28 From - Other reallocations]]","v":0},{"$f":"Dataset[[#This Row],[2028/29 From - Spending review Topic 1]]+Dataset[[#This Row],[2028/29 From - Spending review Topic 2]]+Dataset[[#This Row],[2028/29 From - Spending review Topic 3]]+Dataset[[#This Row],[2028/29 From - Spending review Topic 4]]+Dataset[[#This Row],[2028/29 From - Other reallocations]]","v":0},{"$f":"Dataset[[#This Row],[2029/30 From - Spending review Topic 1]]+Dataset[[#This Row],[2029/30 From - Spending review Topic 2]]+Dataset[[#This Row],[2029/30 From - Spending review Topic 3]]+Dataset[[#This Row],[2029/30 From - Spending review Topic 4]]+Dataset[[#This Row],[2029/30 From - Other reallocations]]","v":0},{"$f":"Dataset[[#This Row],[2027/28 To - Spending review Topic 1]]+Dataset[[#This Row],[2027/28 To - Spending review Topic 2]]+Dataset[[#This Row],[2027/28 To - Spending review Topic 3]]+Dataset[[#This Row],[2027/28 To - Spending review Topic 4]]+Dataset[[#This Row],[2027/28 To - Other reallocations]]","v":0},{"$f":"Dataset[[#This Row],[2028/29 To - Spending review Topic 1]]+Dataset[[#This Row],[2028/29 To - Spending review Topic 2]]+Dataset[[#This Row],[2028/29 To - Spending review Topic 3]]+Dataset[[#This Row],[2028/29 To - Spending review Topic 4]]+Dataset[[#This Row],[2028/29 To - Other reallocations]]","v":0},{"$f":"Dataset[[#This Row],[2029/30 To - Spending review Topic 1]]+Dataset[[#This Row],[2029/30 To - Spending review Topic 2]]+Dataset[[#This Row],[2029/30 To - Spending review Topic 3]]+Dataset[[#This Row],[2029/30 To - Spending review Topic 4]]+Dataset[[#This Row],[2029/30 To - Other reallocations]]","v":0},{"$f":"Dataset[[#This Row],[2027/28 Targeted savings]]+Dataset[[#This Row],[2027/28 From - Total]]","v":0},{"$f":"Dataset[[#This Row],[2028/29 Targeted savings]]+Dataset[[#This Row],[2028/29 From - Total]]","v":0},{"$f":"Dataset[[#This Row],[2029/30 Targeted savings]]+Dataset[[#This Row],[2029/30 From - Total]]","v":0},{"$f":"Dataset[[#This Row],[2026/27 Targeted savings]]","v":0},{"$f":"SUM(Dataset[[#This Row],[2027/28 Targeted savings]],Dataset[[#This Row],[2027/28 From - Total]],Dataset[[#This Row],[2027/28 To - Total]])","v":0},{"$f":"SUM(Dataset[[#This Row],[2028/29 Targeted savings]],Dataset[[#This Row],[2028/29 From - Total]],Dataset[[#This Row],[2028/29 To - Total]])","v":0},{"$f":"SUM(Dataset[[#This Row],[2029/30 Targeted savings]],Dataset[[#This Row],[2029/30 From - Total]],Dataset[[#This Row],[2029/30 To - Total]])","v":0},{"$f":"Dataset[[#This Row],[2026/27 Baseline]]+Dataset[[#This Row],[2026/27 Total change]]","v":0},{"$f":"Dataset[[#This Row],[2027/28 Baseline]]+Dataset[[#This Row],[2027/28 Total change]]","v":0},{"$f":"Dataset[[#This Row],[2028/29 Baseline]]+Dataset[[#This Row],[2028/29 Total change]]","v":0},{"$f":"Dataset[[#This Row],[2029/30 Baseline]]+Dataset[[#This Row],[2029/30 Total change]]","v":0}]
["NAT|Non-transfer","30|Other machinery and equipment","2027_28","MTEC2027",30,5,2,33095,575,"30","05","02","033095","000575","30|05|02|000575","02","03","12","57","61","02|03|12|57|61","National","Communications and Digital Technologies","Digital Infrastructure and Technologies","Broadband","Non-transfer","Capital","Payments for capital assets","Machinery and equipment","Other machinery and equipment","Other machinery and equipment","Economic development","Economic regulation and infrastructure","NAT",29,99,8,1395,1395,1395,0,435,470,344,354,null,null,null,null,null,null,null,null,null,null,null,null,null,null,null,null,null,null,null,null,null,null,null,null,null,null,null,null,null,null,null,null,null,null,{"$f":"Dataset[[#This Row],[2027/28 From - Spending review Topic 1]]+Dataset[[#This Row],[2027/28 From - Spending review Topic 2]]+Dataset[[#This Row],[2027/28 From - Spending review Topic 3]]+Dataset[[#This Row],[2027/28 From - Spending review Topic 4]]+Dataset[[#This Row],[2027/28 From - Other reallocations]]","v":0},{"$f":"Dataset[[#This Row],[2028/29 From - Spending review Topic 1]]+Dataset[[#This Row],[2028/29 From - Spending review Topic 2]]+Dataset[[#This Row],[2028/29 From - Spending review Topic 3]]+Dataset[[#This Row],[2028/29 From - Spending review Topic 4]]+Dataset[[#This Row],[2028/29 From - Other reallocations]]","v":0},{"$f":"Dataset[[#This Row],[2029/30 From - Spending review Topic 1]]+Dataset[[#This Row],[2029/30 From - Spending review Topic 2]]+Dataset[[#This Row],[2029/30 From - Spending review Topic 3]]+Dataset[[#This Row],[2029/30 From - Spending review Topic 4]]+Dataset[[#This Row],[2029/30 From - Other reallocations]]","v":0},{"$f":"Dataset[[#This Row],[2027/28 To - Spending review Topic 1]]+Dataset[[#This Row],[2027/28 To - Spending review Topic 2]]+Dataset[[#This Row],[2027/28 To - Spending review Topic 3]]+Dataset[[#This Row],[2027/28 To - Spending review Topic 4]]+Dataset[[#This Row],[2027/28 To - Other reallocations]]","v":0},{"$f":"Dataset[[#This Row],[2028/29 To - Spending review Topic 1]]+Dataset[[#This Row],[2028/29 To - Spending review Topic 2]]+Dataset[[#This Row],[2028/29 To - Spending review Topic 3]]+Dataset[[#This Row],[2028/29 To - Spending review Topic 4]]+Dataset[[#This Row],[2028/29 To - Other reallocations]]","v":0},{"$f":"Dataset[[#This Row],[2029/30 To - Spending review Topic 1]]+Dataset[[#This Row],[2029/30 To - Spending review Topic 2]]+Dataset[[#This Row],[2029/30 To - Spending review Topic 3]]+Dataset[[#This Row],[2029/30 To - Spending review Topic 4]]+Dataset[[#This Row],[2029/30 To - Other reallocations]]","v":0},{"$f":"Dataset[[#This Row],[2027/28 Targeted savings]]+Dataset[[#This Row],[2027/28 From - Total]]","v":0},{"$f":"Dataset[[#This Row],[2028/29 Targeted savings]]+Dataset[[#This Row],[2028/29 From - Total]]","v":0},{"$f":"Dataset[[#This Row],[2029/30 Targeted savings]]+Dataset[[#This Row],[2029/30 From - Total]]","v":0},{"$f":"Dataset[[#This Row],[2026/27 Targeted savings]]","v":0},{"$f":"SUM(Dataset[[#This Row],[2027/28 Targeted savings]],Dataset[[#This Row],[2027/28 From - Total]],Dataset[[#This Row],[2027/28 To - Total]])","v":0},{"$f":"SUM(Dataset[[#This Row],[2028/29 Targeted savings]],Dataset[[#This Row],[2028/29 From - Total]],Dataset[[#This Row],[2028/29 To - Total]])","v":0},{"$f":"SUM(Dataset[[#This Row],[2029/30 Targeted savings]],Dataset[[#This Row],[2029/30 From - Total]],Dataset[[#This Row],[2029/30 To - Total]])","v":0},{"$f":"Dataset[[#This Row],[2026/27 Baseline]]+Dataset[[#This Row],[2026/27 Total change]]","v":435},{"$f":"Dataset[[#This Row],[2027/28 Baseline]]+Dataset[[#This Row],[2027/28 Total change]]","v":470},{"$f":"Dataset[[#This Row],[2028/29 Baseline]]+Dataset[[#This Row],[2028/29 Total change]]","v":344},{"$f":"Dataset[[#This Row],[2029/30 Baseline]]+Dataset[[#This Row],[2029/30 Total change]]","v":354}]
["NAT|Non-transfer","30|Software and other intangible assets","2027_28","MTEC2027",30,5,2,33096,576,"30","05","02","033096","000576","30|05|02|000576","02","03","17","62","66","02|03|17|62|66","National","Communications and Digital Technologies","Digital Infrastructure and Technologies","Broadband","Non-transfer","Capital","Payments for capital assets","Software and other intangible assets","Software and other intangible assets","Software and other intangible assets","Economic development","Economic regulation and infrastructure","NAT",0,0,0,0,0,0,0,0,0,123,127,null,null,null,null,null,null,null,null,null,null,null,null,null,null,null,null,null,null,null,null,null,null,null,null,null,null,null,null,null,null,null,null,null,null,{"$f":"Dataset[[#This Row],[2027/28 From - Spending review Topic 1]]+Dataset[[#This Row],[2027/28 From - Spending review Topic 2]]+Dataset[[#This Row],[2027/28 From - Spending review Topic 3]]+Dataset[[#This Row],[2027/28 From - Spending review Topic 4]]+Dataset[[#This Row],[2027/28 From - Other reallocations]]","v":0},{"$f":"Dataset[[#This Row],[2028/29 From - Spending review Topic 1]]+Dataset[[#This Row],[2028/29 From - Spending review Topic 2]]+Dataset[[#This Row],[2028/29 From - Spending review Topic 3]]+Dataset[[#This Row],[2028/29 From - Spending review Topic 4]]+Dataset[[#This Row],[2028/29 From - Other reallocations]]","v":0},{"$f":"Dataset[[#This Row],[2029/30 From - Spending review Topic 1]]+Dataset[[#This Row],[2029/30 From - Spending review Topic 2]]+Dataset[[#This Row],[2029/30 From - Spending review Topic 3]]+Dataset[[#This Row],[2029/30 From - Spending review Topic 4]]+Dataset[[#This Row],[2029/30 From - Other reallocations]]","v":0},{"$f":"Dataset[[#This Row],[2027/28 To - Spending review Topic 1]]+Dataset[[#This Row],[2027/28 To - Spending review Topic 2]]+Dataset[[#This Row],[2027/28 To - Spending review Topic 3]]+Dataset[[#This Row],[2027/28 To - Spending review Topic 4]]+Dataset[[#This Row],[2027/28 To - Other reallocations]]","v":0},{"$f":"Dataset[[#This Row],[2028/29 To - Spending review Topic 1]]+Dataset[[#This Row],[2028/29 To - Spending review Topic 2]]+Dataset[[#This Row],[2028/29 To - Spending review Topic 3]]+Dataset[[#This Row],[2028/29 To - Spending review Topic 4]]+Dataset[[#This Row],[2028/29 To - Other reallocations]]","v":0},{"$f":"Dataset[[#This Row],[2029/30 To - Spending review Topic 1]]+Dataset[[#This Row],[2029/30 To - Spending review Topic 2]]+Dataset[[#This Row],[2029/30 To - Spending review Topic 3]]+Dataset[[#This Row],[2029/30 To - Spending review Topic 4]]+Dataset[[#This Row],[2029/30 To - Other reallocations]]","v":0},{"$f":"Dataset[[#This Row],[2027/28 Targeted savings]]+Dataset[[#This Row],[2027/28 From - Total]]","v":0},{"$f":"Dataset[[#This Row],[2028/29 Targeted savings]]+Dataset[[#This Row],[2028/29 From - Total]]","v":0},{"$f":"Dataset[[#This Row],[2029/30 Targeted savings]]+Dataset[[#This Row],[2029/30 From - Total]]","v":0},{"$f":"Dataset[[#This Row],[2026/27 Targeted savings]]","v":0},{"$f":"SUM(Dataset[[#This Row],[2027/28 Targeted savings]],Dataset[[#This Row],[2027/28 From - Total]],Dataset[[#This Row],[2027/28 To - Total]])","v":0},{"$f":"SUM(Dataset[[#This Row],[2028/29 Targeted savings]],Dataset[[#This Row],[2028/29 From - Total]],Dataset[[#This Row],[2028/29 To - Total]])","v":0},{"$f":"SUM(Dataset[[#This Row],[2029/30 Targeted savings]],Dataset[[#This Row],[2029/30 From - Total]],Dataset[[#This Row],[2029/30 To - Total]])","v":0},{"$f":"Dataset[[#This Row],[2026/27 Baseline]]+Dataset[[#This Row],[2026/27 Total change]]","v":0},{"$f":"Dataset[[#This Row],[2027/28 Baseline]]+Dataset[[#This Row],[2027/28 Total change]]","v":0},{"$f":"Dataset[[#This Row],[2028/29 Baseline]]+Dataset[[#This Row],[2028/29 Total change]]","v":123},{"$f":"Dataset[[#This Row],[2029/30 Baseline]]+Dataset[[#This Row],[2029/30 Total change]]","v":127}]
["NAT|Thefts and losses","30|Payments for financial assets","2027_28","MTEC2027",30,5,2,33097,577,"30","05","02","033097","000577","30|05|02|000577","03","04","18","63","67","03|04|18|63|67","National","Communications and Digital Technologies","Digital Infrastructure and Technologies","Broadband","Thefts and losses","Payments for financial assets","Payments for financial assets","Payments for financial assets","Payments for financial assets","Payments for financial assets","Economic development","Economic regulation and infrastructure","NAT",0,0,48,0,0,0,0,0,0,0,0,null,null,null,null,null,null,null,null,null,null,null,null,null,null,null,null,null,null,null,null,null,null,null,null,null,null,null,null,null,null,null,null,null,null,{"$f":"Dataset[[#This Row],[2027/28 From - Spending review Topic 1]]+Dataset[[#This Row],[2027/28 From - Spending review Topic 2]]+Dataset[[#This Row],[2027/28 From - Spending review Topic 3]]+Dataset[[#This Row],[2027/28 From - Spending review Topic 4]]+Dataset[[#This Row],[2027/28 From - Other reallocations]]","v":0},{"$f":"Dataset[[#This Row],[2028/29 From - Spending review Topic 1]]+Dataset[[#This Row],[2028/29 From - Spending review Topic 2]]+Dataset[[#This Row],[2028/29 From - Spending review Topic 3]]+Dataset[[#This Row],[2028/29 From - Spending review Topic 4]]+Dataset[[#This Row],[2028/29 From - Other reallocations]]","v":0},{"$f":"Dataset[[#This Row],[2029/30 From - Spending review Topic 1]]+Dataset[[#This Row],[2029/30 From - Spending review Topic 2]]+Dataset[[#This Row],[2029/30 From - Spending review Topic 3]]+Dataset[[#This Row],[2029/30 From - Spending review Topic 4]]+Dataset[[#This Row],[2029/30 From - Other reallocations]]","v":0},{"$f":"Dataset[[#This Row],[2027/28 To - Spending review Topic 1]]+Dataset[[#This Row],[2027/28 To - Spending review Topic 2]]+Dataset[[#This Row],[2027/28 To - Spending review Topic 3]]+Dataset[[#This Row],[2027/28 To - Spending review Topic 4]]+Dataset[[#This Row],[2027/28 To - Other reallocations]]","v":0},{"$f":"Dataset[[#This Row],[2028/29 To - Spending review Topic 1]]+Dataset[[#This Row],[2028/29 To - Spending review Topic 2]]+Dataset[[#This Row],[2028/29 To - Spending review Topic 3]]+Dataset[[#This Row],[2028/29 To - Spending review Topic 4]]+Dataset[[#This Row],[2028/29 To - Other reallocations]]","v":0},{"$f":"Dataset[[#This Row],[2029/30 To - Spending review Topic 1]]+Dataset[[#This Row],[2029/30 To - Spending review Topic 2]]+Dataset[[#This Row],[2029/30 To - Spending review Topic 3]]+Dataset[[#This Row],[2029/30 To - Spending review Topic 4]]+Dataset[[#This Row],[2029/30 To - Other reallocations]]","v":0},{"$f":"Dataset[[#This Row],[2027/28 Targeted savings]]+Dataset[[#This Row],[2027/28 From - Total]]","v":0},{"$f":"Dataset[[#This Row],[2028/29 Targeted savings]]+Dataset[[#This Row],[2028/29 From - Total]]","v":0},{"$f":"Dataset[[#This Row],[2029/30 Targeted savings]]+Dataset[[#This Row],[2029/30 From - Total]]","v":0},{"$f":"Dataset[[#This Row],[2026/27 Targeted savings]]","v":0},{"$f":"SUM(Dataset[[#This Row],[2027/28 Targeted savings]],Dataset[[#This Row],[2027/28 From - Total]],Dataset[[#This Row],[2027/28 To - Total]])","v":0},{"$f":"SUM(Dataset[[#This Row],[2028/29 Targeted savings]],Dataset[[#This Row],[2028/29 From - Total]],Dataset[[#This Row],[2028/29 To - Total]])","v":0},{"$f":"SUM(Dataset[[#This Row],[2029/30 Targeted savings]],Dataset[[#This Row],[2029/30 From - Total]],Dataset[[#This Row],[2029/30 To - Total]])","v":0},{"$f":"Dataset[[#This Row],[2026/27 Baseline]]+Dataset[[#This Row],[2026/27 Total change]]","v":0},{"$f":"Dataset[[#This Row],[2027/28 Baseline]]+Dataset[[#This Row],[2027/28 Total change]]","v":0},{"$f":"Dataset[[#This Row],[2028/29 Baseline]]+Dataset[[#This Row],[2028/29 Total change]]","v":0},{"$f":"Dataset[[#This Row],[2029/30 Baseline]]+Dataset[[#This Row],[2029/30 Total change]]","v":0}]
["NAT|Non-transfer","30|Salaries and wages","2027_28","MTEC2027",30,5,3,33098,578,"30","05","03","033098","000578","30|05|03|000578","01","01","01","01","01","01|01|01|01|01","National","Communications and Digital Technologies","Digital Infrastructure and Technologies","Digital Infrastructure and Broadcasting Technologies","Non-transfer","Current","Current payments","Compensation of employees","Salaries and wages","Salaries and wages","Economic development","Economic regulation and infrastructure","NAT",6849,4567,4556,8222,3075,3075,0,6125,10149,10227,10535,null,null,null,null,null,null,null,null,null,null,null,null,null,null,null,null,null,null,null,null,null,null,null,null,null,null,null,null,null,null,null,null,null,null,{"$f":"Dataset[[#This Row],[2027/28 From - Spending review Topic 1]]+Dataset[[#This Row],[2027/28 From - Spending review Topic 2]]+Dataset[[#This Row],[2027/28 From - Spending review Topic 3]]+Dataset[[#This Row],[2027/28 From - Spending review Topic 4]]+Dataset[[#This Row],[2027/28 From - Other reallocations]]","v":0},{"$f":"Dataset[[#This Row],[2028/29 From - Spending review Topic 1]]+Dataset[[#This Row],[2028/29 From - Spending review Topic 2]]+Dataset[[#This Row],[2028/29 From - Spending review Topic 3]]+Dataset[[#This Row],[2028/29 From - Spending review Topic 4]]+Dataset[[#This Row],[2028/29 From - Other reallocations]]","v":0},{"$f":"Dataset[[#This Row],[2029/30 From - Spending review Topic 1]]+Dataset[[#This Row],[2029/30 From - Spending review Topic 2]]+Dataset[[#This Row],[2029/30 From - Spending review Topic 3]]+Dataset[[#This Row],[2029/30 From - Spending review Topic 4]]+Dataset[[#This Row],[2029/30 From - Other reallocations]]","v":0},{"$f":"Dataset[[#This Row],[2027/28 To - Spending review Topic 1]]+Dataset[[#This Row],[2027/28 To - Spending review Topic 2]]+Dataset[[#This Row],[2027/28 To - Spending review Topic 3]]+Dataset[[#This Row],[2027/28 To - Spending review Topic 4]]+Dataset[[#This Row],[2027/28 To - Other reallocations]]","v":0},{"$f":"Dataset[[#This Row],[2028/29 To - Spending review Topic 1]]+Dataset[[#This Row],[2028/29 To - Spending review Topic 2]]+Dataset[[#This Row],[2028/29 To - Spending review Topic 3]]+Dataset[[#This Row],[2028/29 To - Spending review Topic 4]]+Dataset[[#This Row],[2028/29 To - Other reallocations]]","v":0},{"$f":"Dataset[[#This Row],[2029/30 To - Spending review Topic 1]]+Dataset[[#This Row],[2029/30 To - Spending review Topic 2]]+Dataset[[#This Row],[2029/30 To - Spending review Topic 3]]+Dataset[[#This Row],[2029/30 To - Spending review Topic 4]]+Dataset[[#This Row],[2029/30 To - Other reallocations]]","v":0},{"$f":"Dataset[[#This Row],[2027/28 Targeted savings]]+Dataset[[#This Row],[2027/28 From - Total]]","v":0},{"$f":"Dataset[[#This Row],[2028/29 Targeted savings]]+Dataset[[#This Row],[2028/29 From - Total]]","v":0},{"$f":"Dataset[[#This Row],[2029/30 Targeted savings]]+Dataset[[#This Row],[2029/30 From - Total]]","v":0},{"$f":"Dataset[[#This Row],[2026/27 Targeted savings]]","v":0},{"$f":"SUM(Dataset[[#This Row],[2027/28 Targeted savings]],Dataset[[#This Row],[2027/28 From - Total]],Dataset[[#This Row],[2027/28 To - Total]])","v":0},{"$f":"SUM(Dataset[[#This Row],[2028/29 Targeted savings]],Dataset[[#This Row],[2028/29 From - Total]],Dataset[[#This Row],[2028/29 To - Total]])","v":0},{"$f":"SUM(Dataset[[#This Row],[2029/30 Targeted savings]],Dataset[[#This Row],[2029/30 From - Total]],Dataset[[#This Row],[2029/30 To - Total]])","v":0},{"$f":"Dataset[[#This Row],[2026/27 Baseline]]+Dataset[[#This Row],[2026/27 Total change]]","v":6125},{"$f":"Dataset[[#This Row],[2027/28 Baseline]]+Dataset[[#This Row],[2027/28 Total change]]","v":10149},{"$f":"Dataset[[#This Row],[2028/29 Baseline]]+Dataset[[#This Row],[2028/29 Total change]]","v":10227},{"$f":"Dataset[[#This Row],[2029/30 Baseline]]+Dataset[[#This Row],[2029/30 Total change]]","v":10535}]
["NAT|Non-transfer","30|Social contributions","2027_28","MTEC2027",30,5,3,33099,579,"30","05","03","033099","000579","30|05|03|000579","01","01","01","02","02","01|01|01|02|02","National","Communications and Digital Technologies","Digital Infrastructure and Technologies","Digital Infrastructure and Broadcasting Technologies","Non-transfer","Current","Current payments","Compensation of employees","Social contributions","Social contributions","Economic development","Economic regulation and infrastructure","NAT",512,566,601,600,340,340,0,682,713,735,757,null,null,null,null,null,null,null,null,null,null,null,null,null,null,null,null,null,null,null,null,null,null,null,null,null,null,null,null,null,null,null,null,null,null,{"$f":"Dataset[[#This Row],[2027/28 From - Spending review Topic 1]]+Dataset[[#This Row],[2027/28 From - Spending review Topic 2]]+Dataset[[#This Row],[2027/28 From - Spending review Topic 3]]+Dataset[[#This Row],[2027/28 From - Spending review Topic 4]]+Dataset[[#This Row],[2027/28 From - Other reallocations]]","v":0},{"$f":"Dataset[[#This Row],[2028/29 From - Spending review Topic 1]]+Dataset[[#This Row],[2028/29 From - Spending review Topic 2]]+Dataset[[#This Row],[2028/29 From - Spending review Topic 3]]+Dataset[[#This Row],[2028/29 From - Spending review Topic 4]]+Dataset[[#This Row],[2028/29 From - Other reallocations]]","v":0},{"$f":"Dataset[[#This Row],[2029/30 From - Spending review Topic 1]]+Dataset[[#This Row],[2029/30 From - Spending review Topic 2]]+Dataset[[#This Row],[2029/30 From - Spending review Topic 3]]+Dataset[[#This Row],[2029/30 From - Spending review Topic 4]]+Dataset[[#This Row],[2029/30 From - Other reallocations]]","v":0},{"$f":"Dataset[[#This Row],[2027/28 To - Spending review Topic 1]]+Dataset[[#This Row],[2027/28 To - Spending review Topic 2]]+Dataset[[#This Row],[2027/28 To - Spending review Topic 3]]+Dataset[[#This Row],[2027/28 To - Spending review Topic 4]]+Dataset[[#This Row],[2027/28 To - Other reallocations]]","v":0},{"$f":"Dataset[[#This Row],[2028/29 To - Spending review Topic 1]]+Dataset[[#This Row],[2028/29 To - Spending review Topic 2]]+Dataset[[#This Row],[2028/29 To - Spending review Topic 3]]+Dataset[[#This Row],[2028/29 To - Spending review Topic 4]]+Dataset[[#This Row],[2028/29 To - Other reallocations]]","v":0},{"$f":"Dataset[[#This Row],[2029/30 To - Spending review Topic 1]]+Dataset[[#This Row],[2029/30 To - Spending review Topic 2]]+Dataset[[#This Row],[2029/30 To - Spending review Topic 3]]+Dataset[[#This Row],[2029/30 To - Spending review Topic 4]]+Dataset[[#This Row],[2029/30 To - Other reallocations]]","v":0},{"$f":"Dataset[[#This Row],[2027/28 Targeted savings]]+Dataset[[#This Row],[2027/28 From - Total]]","v":0},{"$f":"Dataset[[#This Row],[2028/29 Targeted savings]]+Dataset[[#This Row],[2028/29 From - Total]]","v":0},{"$f":"Dataset[[#This Row],[2029/30 Targeted savings]]+Dataset[[#This Row],[2029/30 From - Total]]","v":0},{"$f":"Dataset[[#This Row],[2026/27 Targeted savings]]","v":0},{"$f":"SUM(Dataset[[#This Row],[2027/28 Targeted savings]],Dataset[[#This Row],[2027/28 From - Total]],Dataset[[#This Row],[2027/28 To - Total]])","v":0},{"$f":"SUM(Dataset[[#This Row],[2028/29 Targeted savings]],Dataset[[#This Row],[2028/29 From - Total]],Dataset[[#This Row],[2028/29 To - Total]])","v":0},{"$f":"SUM(Dataset[[#This Row],[2029/30 Targeted savings]],Dataset[[#This Row],[2029/30 From - Total]],Dataset[[#This Row],[2029/30 To - Total]])","v":0},{"$f":"Dataset[[#This Row],[2026/27 Baseline]]+Dataset[[#This Row],[2026/27 Total change]]","v":682},{"$f":"Dataset[[#This Row],[2027/28 Baseline]]+Dataset[[#This Row],[2027/28 Total change]]","v":713},{"$f":"Dataset[[#This Row],[2028/29 Baseline]]+Dataset[[#This Row],[2028/29 Total change]]","v":735},{"$f":"Dataset[[#This Row],[2029/30 Baseline]]+Dataset[[#This Row],[2029/30 Total change]]","v":757}]
["NAT|Non-transfer","30|Administrative fees","2027_28","MTEC2027",30,5,3,33100,580,"30","05","03","033100","000580","30|05|03|000580","01","01","02","03","03","01|01|02|03|03","National","Communications and Digital Technologies","Digital Infrastructure and Technologies","Digital Infrastructure and Broadcasting Technologies","Non-transfer","Current","Current payments","Goods and services","Administrative fees","Administrative fees","Economic development","Economic regulation and infrastructure","NAT",319,159,69,200,150,150,0,30,206,212,218,null,null,null,null,null,null,null,null,null,null,null,null,null,null,null,null,null,null,null,null,null,null,null,null,null,null,null,null,null,null,null,null,null,null,{"$f":"Dataset[[#This Row],[2027/28 From - Spending review Topic 1]]+Dataset[[#This Row],[2027/28 From - Spending review Topic 2]]+Dataset[[#This Row],[2027/28 From - Spending review Topic 3]]+Dataset[[#This Row],[2027/28 From - Spending review Topic 4]]+Dataset[[#This Row],[2027/28 From - Other reallocations]]","v":0},{"$f":"Dataset[[#This Row],[2028/29 From - Spending review Topic 1]]+Dataset[[#This Row],[2028/29 From - Spending review Topic 2]]+Dataset[[#This Row],[2028/29 From - Spending review Topic 3]]+Dataset[[#This Row],[2028/29 From - Spending review Topic 4]]+Dataset[[#This Row],[2028/29 From - Other reallocations]]","v":0},{"$f":"Dataset[[#This Row],[2029/30 From - Spending review Topic 1]]+Dataset[[#This Row],[2029/30 From - Spending review Topic 2]]+Dataset[[#This Row],[2029/30 From - Spending review Topic 3]]+Dataset[[#This Row],[2029/30 From - Spending review Topic 4]]+Dataset[[#This Row],[2029/30 From - Other reallocations]]","v":0},{"$f":"Dataset[[#This Row],[2027/28 To - Spending review Topic 1]]+Dataset[[#This Row],[2027/28 To - Spending review Topic 2]]+Dataset[[#This Row],[2027/28 To - Spending review Topic 3]]+Dataset[[#This Row],[2027/28 To - Spending review Topic 4]]+Dataset[[#This Row],[2027/28 To - Other reallocations]]","v":0},{"$f":"Dataset[[#This Row],[2028/29 To - Spending review Topic 1]]+Dataset[[#This Row],[2028/29 To - Spending review Topic 2]]+Dataset[[#This Row],[2028/29 To - Spending review Topic 3]]+Dataset[[#This Row],[2028/29 To - Spending review Topic 4]]+Dataset[[#This Row],[2028/29 To - Other reallocations]]","v":0},{"$f":"Dataset[[#This Row],[2029/30 To - Spending review Topic 1]]+Dataset[[#This Row],[2029/30 To - Spending review Topic 2]]+Dataset[[#This Row],[2029/30 To - Spending review Topic 3]]+Dataset[[#This Row],[2029/30 To - Spending review Topic 4]]+Dataset[[#This Row],[2029/30 To - Other reallocations]]","v":0},{"$f":"Dataset[[#This Row],[2027/28 Targeted savings]]+Dataset[[#This Row],[2027/28 From - Total]]","v":0},{"$f":"Dataset[[#This Row],[2028/29 Targeted savings]]+Dataset[[#This Row],[2028/29 From - Total]]","v":0},{"$f":"Dataset[[#This Row],[2029/30 Targeted savings]]+Dataset[[#This Row],[2029/30 From - Total]]","v":0},{"$f":"Dataset[[#This Row],[2026/27 Targeted savings]]","v":0},{"$f":"SUM(Dataset[[#This Row],[2027/28 Targeted savings]],Dataset[[#This Row],[2027/28 From - Total]],Dataset[[#This Row],[2027/28 To - Total]])","v":0},{"$f":"SUM(Dataset[[#This Row],[2028/29 Targeted savings]],Dataset[[#This Row],[2028/29 From - Total]],Dataset[[#This Row],[2028/29 To - Total]])","v":0},{"$f":"SUM(Dataset[[#This Row],[2029/30 Targeted savings]],Dataset[[#This Row],[2029/30 From - Total]],Dataset[[#This Row],[2029/30 To - Total]])","v":0},{"$f":"Dataset[[#This Row],[2026/27 Baseline]]+Dataset[[#This Row],[2026/27 Total change]]","v":30},{"$f":"Dataset[[#This Row],[2027/28 Baseline]]+Dataset[[#This Row],[2027/28 Total change]]","v":206},{"$f":"Dataset[[#This Row],[2028/29 Baseline]]+Dataset[[#This Row],[2028/29 Total change]]","v":212},{"$f":"Dataset[[#This Row],[2029/30 Baseline]]+Dataset[[#This Row],[2029/30 Total change]]","v":218}]
["NAT|Non-transfer","30|Advertising","2027_28","MTEC2027",30,5,3,33101,581,"30","05","03","033101","000581","30|05|03|000581","01","01","02","04","04","01|01|02|04|04","National","Communications and Digital Technologies","Digital Infrastructure and Technologies","Digital Infrastructure and Broadcasting Technologies","Non-transfer","Current","Current payments","Goods and services","Advertising","Advertising","Economic development","Economic regulation and infrastructure","NAT",1886,366,0,300,150,150,0,30,7,1451,1495,null,null,null,null,null,null,null,null,null,null,null,null,null,null,null,null,null,null,null,null,null,null,null,null,null,null,null,null,null,null,null,null,null,null,{"$f":"Dataset[[#This Row],[2027/28 From - Spending review Topic 1]]+Dataset[[#This Row],[2027/28 From - Spending review Topic 2]]+Dataset[[#This Row],[2027/28 From - Spending review Topic 3]]+Dataset[[#This Row],[2027/28 From - Spending review Topic 4]]+Dataset[[#This Row],[2027/28 From - Other reallocations]]","v":0},{"$f":"Dataset[[#This Row],[2028/29 From - Spending review Topic 1]]+Dataset[[#This Row],[2028/29 From - Spending review Topic 2]]+Dataset[[#This Row],[2028/29 From - Spending review Topic 3]]+Dataset[[#This Row],[2028/29 From - Spending review Topic 4]]+Dataset[[#This Row],[2028/29 From - Other reallocations]]","v":0},{"$f":"Dataset[[#This Row],[2029/30 From - Spending review Topic 1]]+Dataset[[#This Row],[2029/30 From - Spending review Topic 2]]+Dataset[[#This Row],[2029/30 From - Spending review Topic 3]]+Dataset[[#This Row],[2029/30 From - Spending review Topic 4]]+Dataset[[#This Row],[2029/30 From - Other reallocations]]","v":0},{"$f":"Dataset[[#This Row],[2027/28 To - Spending review Topic 1]]+Dataset[[#This Row],[2027/28 To - Spending review Topic 2]]+Dataset[[#This Row],[2027/28 To - Spending review Topic 3]]+Dataset[[#This Row],[2027/28 To - Spending review Topic 4]]+Dataset[[#This Row],[2027/28 To - Other reallocations]]","v":0},{"$f":"Dataset[[#This Row],[2028/29 To - Spending review Topic 1]]+Dataset[[#This Row],[2028/29 To - Spending review Topic 2]]+Dataset[[#This Row],[2028/29 To - Spending review Topic 3]]+Dataset[[#This Row],[2028/29 To - Spending review Topic 4]]+Dataset[[#This Row],[2028/29 To - Other reallocations]]","v":0},{"$f":"Dataset[[#This Row],[2029/30 To - Spending review Topic 1]]+Dataset[[#This Row],[2029/30 To - Spending review Topic 2]]+Dataset[[#This Row],[2029/30 To - Spending review Topic 3]]+Dataset[[#This Row],[2029/30 To - Spending review Topic 4]]+Dataset[[#This Row],[2029/30 To - Other reallocations]]","v":0},{"$f":"Dataset[[#This Row],[2027/28 Targeted savings]]+Dataset[[#This Row],[2027/28 From - Total]]","v":0},{"$f":"Dataset[[#This Row],[2028/29 Targeted savings]]+Dataset[[#This Row],[2028/29 From - Total]]","v":0},{"$f":"Dataset[[#This Row],[2029/30 Targeted savings]]+Dataset[[#This Row],[2029/30 From - Total]]","v":0},{"$f":"Dataset[[#This Row],[2026/27 Targeted savings]]","v":0},{"$f":"SUM(Dataset[[#This Row],[2027/28 Targeted savings]],Dataset[[#This Row],[2027/28 From - Total]],Dataset[[#This Row],[2027/28 To - Total]])","v":0},{"$f":"SUM(Dataset[[#This Row],[2028/29 Targeted savings]],Dataset[[#This Row],[2028/29 From - Total]],Dataset[[#This Row],[2028/29 To - Total]])","v":0},{"$f":"SUM(Dataset[[#This Row],[2029/30 Targeted savings]],Dataset[[#This Row],[2029/30 From - Total]],Dataset[[#This Row],[2029/30 To - Total]])","v":0},{"$f":"Dataset[[#This Row],[2026/27 Baseline]]+Dataset[[#This Row],[2026/27 Total change]]","v":30},{"$f":"Dataset[[#This Row],[2027/28 Baseline]]+Dataset[[#This Row],[2027/28 Total change]]","v":7},{"$f":"Dataset[[#This Row],[2028/29 Baseline]]+Dataset[[#This Row],[2028/29 Total change]]","v":1451},{"$f":"Dataset[[#This Row],[2029/30 Baseline]]+Dataset[[#This Row],[2029/30 Total change]]","v":1495}]
["NAT|Non-transfer","30|Minor assets","2027_28","MTEC2027",30,5,3,33102,582,"30","05","03","033102","000582","30|05|03|000582","01","01","02","05","05","01|01|02|05|05","National","Communications and Digital Technologies","Digital Infrastructure and Technologies","Digital Infrastructure and Broadcasting Technologies","Non-transfer","Current","Current payments","Goods and services","Minor assets","Minor assets","Economic development","Economic regulation and infrastructure","NAT",81,0,0,0,0,0,0,0,0,0,0,null,null,null,null,null,null,null,null,null,null,null,null,null,null,null,null,null,null,null,null,null,null,null,null,null,null,null,null,null,null,null,null,null,null,{"$f":"Dataset[[#This Row],[2027/28 From - Spending review Topic 1]]+Dataset[[#This Row],[2027/28 From - Spending review Topic 2]]+Dataset[[#This Row],[2027/28 From - Spending review Topic 3]]+Dataset[[#This Row],[2027/28 From - Spending review Topic 4]]+Dataset[[#This Row],[2027/28 From - Other reallocations]]","v":0},{"$f":"Dataset[[#This Row],[2028/29 From - Spending review Topic 1]]+Dataset[[#This Row],[2028/29 From - Spending review Topic 2]]+Dataset[[#This Row],[2028/29 From - Spending review Topic 3]]+Dataset[[#This Row],[2028/29 From - Spending review Topic 4]]+Dataset[[#This Row],[2028/29 From - Other reallocations]]","v":0},{"$f":"Dataset[[#This Row],[2029/30 From - Spending review Topic 1]]+Dataset[[#This Row],[2029/30 From - Spending review Topic 2]]+Dataset[[#This Row],[2029/30 From - Spending review Topic 3]]+Dataset[[#This Row],[2029/30 From - Spending review Topic 4]]+Dataset[[#This Row],[2029/30 From - Other reallocations]]","v":0},{"$f":"Dataset[[#This Row],[2027/28 To - Spending review Topic 1]]+Dataset[[#This Row],[2027/28 To - Spending review Topic 2]]+Dataset[[#This Row],[2027/28 To - Spending review Topic 3]]+Dataset[[#This Row],[2027/28 To - Spending review Topic 4]]+Dataset[[#This Row],[2027/28 To - Other reallocations]]","v":0},{"$f":"Dataset[[#This Row],[2028/29 To - Spending review Topic 1]]+Dataset[[#This Row],[2028/29 To - Spending review Topic 2]]+Dataset[[#This Row],[2028/29 To - Spending review Topic 3]]+Dataset[[#This Row],[2028/29 To - Spending review Topic 4]]+Dataset[[#This Row],[2028/29 To - Other reallocations]]","v":0},{"$f":"Dataset[[#This Row],[2029/30 To - Spending review Topic 1]]+Dataset[[#This Row],[2029/30 To - Spending review Topic 2]]+Dataset[[#This Row],[2029/30 To - Spending review Topic 3]]+Dataset[[#This Row],[2029/30 To - Spending review Topic 4]]+Dataset[[#This Row],[2029/30 To - Other reallocations]]","v":0},{"$f":"Dataset[[#This Row],[2027/28 Targeted savings]]+Dataset[[#This Row],[2027/28 From - Total]]","v":0},{"$f":"Dataset[[#This Row],[2028/29 Targeted savings]]+Dataset[[#This Row],[2028/29 From - Total]]","v":0},{"$f":"Dataset[[#This Row],[2029/30 Targeted savings]]+Dataset[[#This Row],[2029/30 From - Total]]","v":0},{"$f":"Dataset[[#This Row],[2026/27 Targeted savings]]","v":0},{"$f":"SUM(Dataset[[#This Row],[2027/28 Targeted savings]],Dataset[[#This Row],[2027/28 From - Total]],Dataset[[#This Row],[2027/28 To - Total]])","v":0},{"$f":"SUM(Dataset[[#This Row],[2028/29 Targeted savings]],Dataset[[#This Row],[2028/29 From - Total]],Dataset[[#This Row],[2028/29 To - Total]])","v":0},{"$f":"SUM(Dataset[[#This Row],[2029/30 Targeted savings]],Dataset[[#This Row],[2029/30 From - Total]],Dataset[[#This Row],[2029/30 To - Total]])","v":0},{"$f":"Dataset[[#This Row],[2026/27 Baseline]]+Dataset[[#This Row],[2026/27 Total change]]","v":0},{"$f":"Dataset[[#This Row],[2027/28 Baseline]]+Dataset[[#This Row],[2027/28 Total change]]","v":0},{"$f":"Dataset[[#This Row],[2028/29 Baseline]]+Dataset[[#This Row],[2028/29 Total change]]","v":0},{"$f":"Dataset[[#This Row],[2029/30 Baseline]]+Dataset[[#This Row],[2029/30 Total change]]","v":0}]
["NAT|Non-transfer","30|Bursaries: Employees","2027_28","MTEC2027",30,5,3,33103,583,"30","05","03","033103","000583","30|05|03|000583","01","01","02","07","07","01|01|02|07|07","National","Communications and Digital Technologies","Digital Infrastructure and Technologies","Digital Infrastructure and Broadcasting Technologies","Non-transfer","Current","Current payments","Goods and services","Bursaries: Employees","Bursaries: Employees","Economic development","Economic regulation and infrastructure","NAT",74,86,80,80,80,80,0,55,79,82,84,null,null,null,null,null,null,null,null,null,null,null,null,null,null,null,null,null,null,null,null,null,null,null,null,null,null,null,null,null,null,null,null,null,null,{"$f":"Dataset[[#This Row],[2027/28 From - Spending review Topic 1]]+Dataset[[#This Row],[2027/28 From - Spending review Topic 2]]+Dataset[[#This Row],[2027/28 From - Spending review Topic 3]]+Dataset[[#This Row],[2027/28 From - Spending review Topic 4]]+Dataset[[#This Row],[2027/28 From - Other reallocations]]","v":0},{"$f":"Dataset[[#This Row],[2028/29 From - Spending review Topic 1]]+Dataset[[#This Row],[2028/29 From - Spending review Topic 2]]+Dataset[[#This Row],[2028/29 From - Spending review Topic 3]]+Dataset[[#This Row],[2028/29 From - Spending review Topic 4]]+Dataset[[#This Row],[2028/29 From - Other reallocations]]","v":0},{"$f":"Dataset[[#This Row],[2029/30 From - Spending review Topic 1]]+Dataset[[#This Row],[2029/30 From - Spending review Topic 2]]+Dataset[[#This Row],[2029/30 From - Spending review Topic 3]]+Dataset[[#This Row],[2029/30 From - Spending review Topic 4]]+Dataset[[#This Row],[2029/30 From - Other reallocations]]","v":0},{"$f":"Dataset[[#This Row],[2027/28 To - Spending review Topic 1]]+Dataset[[#This Row],[2027/28 To - Spending review Topic 2]]+Dataset[[#This Row],[2027/28 To - Spending review Topic 3]]+Dataset[[#This Row],[2027/28 To - Spending review Topic 4]]+Dataset[[#This Row],[2027/28 To - Other reallocations]]","v":0},{"$f":"Dataset[[#This Row],[2028/29 To - Spending review Topic 1]]+Dataset[[#This Row],[2028/29 To - Spending review Topic 2]]+Dataset[[#This Row],[2028/29 To - Spending review Topic 3]]+Dataset[[#This Row],[2028/29 To - Spending review Topic 4]]+Dataset[[#This Row],[2028/29 To - Other reallocations]]","v":0},{"$f":"Dataset[[#This Row],[2029/30 To - Spending review Topic 1]]+Dataset[[#This Row],[2029/30 To - Spending review Topic 2]]+Dataset[[#This Row],[2029/30 To - Spending review Topic 3]]+Dataset[[#This Row],[2029/30 To - Spending review Topic 4]]+Dataset[[#This Row],[2029/30 To - Other reallocations]]","v":0},{"$f":"Dataset[[#This Row],[2027/28 Targeted savings]]+Dataset[[#This Row],[2027/28 From - Total]]","v":0},{"$f":"Dataset[[#This Row],[2028/29 Targeted savings]]+Dataset[[#This Row],[2028/29 From - Total]]","v":0},{"$f":"Dataset[[#This Row],[2029/30 Targeted savings]]+Dataset[[#This Row],[2029/30 From - Total]]","v":0},{"$f":"Dataset[[#This Row],[2026/27 Targeted savings]]","v":0},{"$f":"SUM(Dataset[[#This Row],[2027/28 Targeted savings]],Dataset[[#This Row],[2027/28 From - Total]],Dataset[[#This Row],[2027/28 To - Total]])","v":0},{"$f":"SUM(Dataset[[#This Row],[2028/29 Targeted savings]],Dataset[[#This Row],[2028/29 From - Total]],Dataset[[#This Row],[2028/29 To - Total]])","v":0},{"$f":"SUM(Dataset[[#This Row],[2029/30 Targeted savings]],Dataset[[#This Row],[2029/30 From - Total]],Dataset[[#This Row],[2029/30 To - Total]])","v":0},{"$f":"Dataset[[#This Row],[2026/27 Baseline]]+Dataset[[#This Row],[2026/27 Total change]]","v":55},{"$f":"Dataset[[#This Row],[2027/28 Baseline]]+Dataset[[#This Row],[2027/28 Total change]]","v":79},{"$f":"Dataset[[#This Row],[2028/29 Baseline]]+Dataset[[#This Row],[2028/29 Total change]]","v":82},{"$f":"Dataset[[#This Row],[2029/30 Baseline]]+Dataset[[#This Row],[2029/30 Total change]]","v":84}]
["NAT|Non-transfer","30|Catering: Departmental activities","2027_28","MTEC2027",30,5,3,33104,584,"30","05","03","033104","000584","30|05|03|000584","01","01","02","08","08","01|01|02|08|08","National","Communications and Digital Technologies","Digital Infrastructure and Technologies","Digital Infrastructure and Broadcasting Technologies","Non-transfer","Current","Current payments","Goods and services","Catering: Departmental activities","Catering: Departmental activities","Economic development","Economic regulation and infrastructure","NAT",791,32,5,0,0,0,0,0,0,0,0,null,null,null,null,null,null,null,null,null,null,null,null,null,null,null,null,null,null,null,null,null,null,null,null,null,null,null,null,null,null,null,null,null,null,{"$f":"Dataset[[#This Row],[2027/28 From - Spending review Topic 1]]+Dataset[[#This Row],[2027/28 From - Spending review Topic 2]]+Dataset[[#This Row],[2027/28 From - Spending review Topic 3]]+Dataset[[#This Row],[2027/28 From - Spending review Topic 4]]+Dataset[[#This Row],[2027/28 From - Other reallocations]]","v":0},{"$f":"Dataset[[#This Row],[2028/29 From - Spending review Topic 1]]+Dataset[[#This Row],[2028/29 From - Spending review Topic 2]]+Dataset[[#This Row],[2028/29 From - Spending review Topic 3]]+Dataset[[#This Row],[2028/29 From - Spending review Topic 4]]+Dataset[[#This Row],[2028/29 From - Other reallocations]]","v":0},{"$f":"Dataset[[#This Row],[2029/30 From - Spending review Topic 1]]+Dataset[[#This Row],[2029/30 From - Spending review Topic 2]]+Dataset[[#This Row],[2029/30 From - Spending review Topic 3]]+Dataset[[#This Row],[2029/30 From - Spending review Topic 4]]+Dataset[[#This Row],[2029/30 From - Other reallocations]]","v":0},{"$f":"Dataset[[#This Row],[2027/28 To - Spending review Topic 1]]+Dataset[[#This Row],[2027/28 To - Spending review Topic 2]]+Dataset[[#This Row],[2027/28 To - Spending review Topic 3]]+Dataset[[#This Row],[2027/28 To - Spending review Topic 4]]+Dataset[[#This Row],[2027/28 To - Other reallocations]]","v":0},{"$f":"Dataset[[#This Row],[2028/29 To - Spending review Topic 1]]+Dataset[[#This Row],[2028/29 To - Spending review Topic 2]]+Dataset[[#This Row],[2028/29 To - Spending review Topic 3]]+Dataset[[#This Row],[2028/29 To - Spending review Topic 4]]+Dataset[[#This Row],[2028/29 To - Other reallocations]]","v":0},{"$f":"Dataset[[#This Row],[2029/30 To - Spending review Topic 1]]+Dataset[[#This Row],[2029/30 To - Spending review Topic 2]]+Dataset[[#This Row],[2029/30 To - Spending review Topic 3]]+Dataset[[#This Row],[2029/30 To - Spending review Topic 4]]+Dataset[[#This Row],[2029/30 To - Other reallocations]]","v":0},{"$f":"Dataset[[#This Row],[2027/28 Targeted savings]]+Dataset[[#This Row],[2027/28 From - Total]]","v":0},{"$f":"Dataset[[#This Row],[2028/29 Targeted savings]]+Dataset[[#This Row],[2028/29 From - Total]]","v":0},{"$f":"Dataset[[#This Row],[2029/30 Targeted savings]]+Dataset[[#This Row],[2029/30 From - Total]]","v":0},{"$f":"Dataset[[#This Row],[2026/27 Targeted savings]]","v":0},{"$f":"SUM(Dataset[[#This Row],[2027/28 Targeted savings]],Dataset[[#This Row],[2027/28 From - Total]],Dataset[[#This Row],[2027/28 To - Total]])","v":0},{"$f":"SUM(Dataset[[#This Row],[2028/29 Targeted savings]],Dataset[[#This Row],[2028/29 From - Total]],Dataset[[#This Row],[2028/29 To - Total]])","v":0},{"$f":"SUM(Dataset[[#This Row],[2029/30 Targeted savings]],Dataset[[#This Row],[2029/30 From - Total]],Dataset[[#This Row],[2029/30 To - Total]])","v":0},{"$f":"Dataset[[#This Row],[2026/27 Baseline]]+Dataset[[#This Row],[2026/27 Total change]]","v":0},{"$f":"Dataset[[#This Row],[2027/28 Baseline]]+Dataset[[#This Row],[2027/28 Total change]]","v":0},{"$f":"Dataset[[#This Row],[2028/29 Baseline]]+Dataset[[#This Row],[2028/29 Total change]]","v":0},{"$f":"Dataset[[#This Row],[2029/30 Baseline]]+Dataset[[#This Row],[2029/30 Total change]]","v":0}]
["NAT|Non-transfer","30|Communication (G&S)","2027_28","MTEC2027",30,5,3,33105,585,"30","05","03","033105","000585","30|05|03|000585","01","01","02","09","09","01|01|02|09|09","National","Communications and Digital Technologies","Digital Infrastructure and Technologies","Digital Infrastructure and Broadcasting Technologies","Non-transfer","Current","Current payments","Goods and services","Communication (G&S)","Communication (G&S)","Economic development","Economic regulation and infrastructure","NAT",107,85,82,77,77,77,0,96,20,20,21,null,null,null,null,null,null,null,null,null,null,null,null,null,null,null,null,null,null,null,null,null,null,null,null,null,null,null,null,null,null,null,null,null,null,{"$f":"Dataset[[#This Row],[2027/28 From - Spending review Topic 1]]+Dataset[[#This Row],[2027/28 From - Spending review Topic 2]]+Dataset[[#This Row],[2027/28 From - Spending review Topic 3]]+Dataset[[#This Row],[2027/28 From - Spending review Topic 4]]+Dataset[[#This Row],[2027/28 From - Other reallocations]]","v":0},{"$f":"Dataset[[#This Row],[2028/29 From - Spending review Topic 1]]+Dataset[[#This Row],[2028/29 From - Spending review Topic 2]]+Dataset[[#This Row],[2028/29 From - Spending review Topic 3]]+Dataset[[#This Row],[2028/29 From - Spending review Topic 4]]+Dataset[[#This Row],[2028/29 From - Other reallocations]]","v":0},{"$f":"Dataset[[#This Row],[2029/30 From - Spending review Topic 1]]+Dataset[[#This Row],[2029/30 From - Spending review Topic 2]]+Dataset[[#This Row],[2029/30 From - Spending review Topic 3]]+Dataset[[#This Row],[2029/30 From - Spending review Topic 4]]+Dataset[[#This Row],[2029/30 From - Other reallocations]]","v":0},{"$f":"Dataset[[#This Row],[2027/28 To - Spending review Topic 1]]+Dataset[[#This Row],[2027/28 To - Spending review Topic 2]]+Dataset[[#This Row],[2027/28 To - Spending review Topic 3]]+Dataset[[#This Row],[2027/28 To - Spending review Topic 4]]+Dataset[[#This Row],[2027/28 To - Other reallocations]]","v":0},{"$f":"Dataset[[#This Row],[2028/29 To - Spending review Topic 1]]+Dataset[[#This Row],[2028/29 To - Spending review Topic 2]]+Dataset[[#This Row],[2028/29 To - Spending review Topic 3]]+Dataset[[#This Row],[2028/29 To - Spending review Topic 4]]+Dataset[[#This Row],[2028/29 To - Other reallocations]]","v":0},{"$f":"Dataset[[#This Row],[2029/30 To - Spending review Topic 1]]+Dataset[[#This Row],[2029/30 To - Spending review Topic 2]]+Dataset[[#This Row],[2029/30 To - Spending review Topic 3]]+Dataset[[#This Row],[2029/30 To - Spending review Topic 4]]+Dataset[[#This Row],[2029/30 To - Other reallocations]]","v":0},{"$f":"Dataset[[#This Row],[2027/28 Targeted savings]]+Dataset[[#This Row],[2027/28 From - Total]]","v":0},{"$f":"Dataset[[#This Row],[2028/29 Targeted savings]]+Dataset[[#This Row],[2028/29 From - Total]]","v":0},{"$f":"Dataset[[#This Row],[2029/30 Targeted savings]]+Dataset[[#This Row],[2029/30 From - Total]]","v":0},{"$f":"Dataset[[#This Row],[2026/27 Targeted savings]]","v":0},{"$f":"SUM(Dataset[[#This Row],[2027/28 Targeted savings]],Dataset[[#This Row],[2027/28 From - Total]],Dataset[[#This Row],[2027/28 To - Total]])","v":0},{"$f":"SUM(Dataset[[#This Row],[2028/29 Targeted savings]],Dataset[[#This Row],[2028/29 From - Total]],Dataset[[#This Row],[2028/29 To - Total]])","v":0},{"$f":"SUM(Dataset[[#This Row],[2029/30 Targeted savings]],Dataset[[#This Row],[2029/30 From - Total]],Dataset[[#This Row],[2029/30 To - Total]])","v":0},{"$f":"Dataset[[#This Row],[2026/27 Baseline]]+Dataset[[#This Row],[2026/27 Total change]]","v":96},{"$f":"Dataset[[#This Row],[2027/28 Baseline]]+Dataset[[#This Row],[2027/28 Total change]]","v":20},{"$f":"Dataset[[#This Row],[2028/29 Baseline]]+Dataset[[#This Row],[2028/29 Total change]]","v":20},{"$f":"Dataset[[#This Row],[2029/30 Baseline]]+Dataset[[#This Row],[2029/30 Total change]]","v":21}]
["NAT|Non-transfer","30|Legal services (G&S)","2027_28","MTEC2027",30,5,3,33106,586,"30","05","03","033106","000586","30|05|03|000586","01","01","02","14","14","01|01|02|14|14","National","Communications and Digital Technologies","Digital Infrastructure and Technologies","Digital Infrastructure and Broadcasting Technologies","Non-transfer","Current","Current payments","Goods and services","Legal services (G&S)","Legal services (G&S)","Economic development","Economic regulation and infrastructure","NAT",0,0,0,60,30,30,0,0,68,70,72,null,null,null,null,null,null,null,null,null,null,null,null,null,null,null,null,null,null,null,null,null,null,null,null,null,null,null,null,null,null,null,null,null,null,{"$f":"Dataset[[#This Row],[2027/28 From - Spending review Topic 1]]+Dataset[[#This Row],[2027/28 From - Spending review Topic 2]]+Dataset[[#This Row],[2027/28 From - Spending review Topic 3]]+Dataset[[#This Row],[2027/28 From - Spending review Topic 4]]+Dataset[[#This Row],[2027/28 From - Other reallocations]]","v":0},{"$f":"Dataset[[#This Row],[2028/29 From - Spending review Topic 1]]+Dataset[[#This Row],[2028/29 From - Spending review Topic 2]]+Dataset[[#This Row],[2028/29 From - Spending review Topic 3]]+Dataset[[#This Row],[2028/29 From - Spending review Topic 4]]+Dataset[[#This Row],[2028/29 From - Other reallocations]]","v":0},{"$f":"Dataset[[#This Row],[2029/30 From - Spending review Topic 1]]+Dataset[[#This Row],[2029/30 From - Spending review Topic 2]]+Dataset[[#This Row],[2029/30 From - Spending review Topic 3]]+Dataset[[#This Row],[2029/30 From - Spending review Topic 4]]+Dataset[[#This Row],[2029/30 From - Other reallocations]]","v":0},{"$f":"Dataset[[#This Row],[2027/28 To - Spending review Topic 1]]+Dataset[[#This Row],[2027/28 To - Spending review Topic 2]]+Dataset[[#This Row],[2027/28 To - Spending review Topic 3]]+Dataset[[#This Row],[2027/28 To - Spending review Topic 4]]+Dataset[[#This Row],[2027/28 To - Other reallocations]]","v":0},{"$f":"Dataset[[#This Row],[2028/29 To - Spending review Topic 1]]+Dataset[[#This Row],[2028/29 To - Spending review Topic 2]]+Dataset[[#This Row],[2028/29 To - Spending review Topic 3]]+Dataset[[#This Row],[2028/29 To - Spending review Topic 4]]+Dataset[[#This Row],[2028/29 To - Other reallocations]]","v":0},{"$f":"Dataset[[#This Row],[2029/30 To - Spending review Topic 1]]+Dataset[[#This Row],[2029/30 To - Spending review Topic 2]]+Dataset[[#This Row],[2029/30 To - Spending review Topic 3]]+Dataset[[#This Row],[2029/30 To - Spending review Topic 4]]+Dataset[[#This Row],[2029/30 To - Other reallocations]]","v":0},{"$f":"Dataset[[#This Row],[2027/28 Targeted savings]]+Dataset[[#This Row],[2027/28 From - Total]]","v":0},{"$f":"Dataset[[#This Row],[2028/29 Targeted savings]]+Dataset[[#This Row],[2028/29 From - Total]]","v":0},{"$f":"Dataset[[#This Row],[2029/30 Targeted savings]]+Dataset[[#This Row],[2029/30 From - Total]]","v":0},{"$f":"Dataset[[#This Row],[2026/27 Targeted savings]]","v":0},{"$f":"SUM(Dataset[[#This Row],[2027/28 Targeted savings]],Dataset[[#This Row],[2027/28 From - Total]],Dataset[[#This Row],[2027/28 To - Total]])","v":0},{"$f":"SUM(Dataset[[#This Row],[2028/29 Targeted savings]],Dataset[[#This Row],[2028/29 From - Total]],Dataset[[#This Row],[2028/29 To - Total]])","v":0},{"$f":"SUM(Dataset[[#This Row],[2029/30 Targeted savings]],Dataset[[#This Row],[2029/30 From - Total]],Dataset[[#This Row],[2029/30 To - Total]])","v":0},{"$f":"Dataset[[#This Row],[2026/27 Baseline]]+Dataset[[#This Row],[2026/27 Total change]]","v":0},{"$f":"Dataset[[#This Row],[2027/28 Baseline]]+Dataset[[#This Row],[2027/28 Total change]]","v":68},{"$f":"Dataset[[#This Row],[2028/29 Baseline]]+Dataset[[#This Row],[2028/29 Total change]]","v":70},{"$f":"Dataset[[#This Row],[2029/30 Baseline]]+Dataset[[#This Row],[2029/30 Total change]]","v":72}]
["NAT|Non-transfer","30|Contractors","2027_28","MTEC2027",30,5,3,33107,587,"30","05","03","033107","000587","30|05|03|000587","01","01","02","16","16","01|01|02|16|16","National","Communications and Digital Technologies","Digital Infrastructure and Technologies","Digital Infrastructure and Broadcasting Technologies","Non-transfer","Current","Current payments","Goods and services","Contractors","Contractors","Economic development","Economic regulation and infrastructure","NAT",5,42,0,0,0,0,0,0,0,1120,1154,null,null,null,null,null,null,null,null,null,null,null,null,null,null,null,null,null,null,null,null,null,null,null,null,null,null,null,null,null,null,null,null,null,null,{"$f":"Dataset[[#This Row],[2027/28 From - Spending review Topic 1]]+Dataset[[#This Row],[2027/28 From - Spending review Topic 2]]+Dataset[[#This Row],[2027/28 From - Spending review Topic 3]]+Dataset[[#This Row],[2027/28 From - Spending review Topic 4]]+Dataset[[#This Row],[2027/28 From - Other reallocations]]","v":0},{"$f":"Dataset[[#This Row],[2028/29 From - Spending review Topic 1]]+Dataset[[#This Row],[2028/29 From - Spending review Topic 2]]+Dataset[[#This Row],[2028/29 From - Spending review Topic 3]]+Dataset[[#This Row],[2028/29 From - Spending review Topic 4]]+Dataset[[#This Row],[2028/29 From - Other reallocations]]","v":0},{"$f":"Dataset[[#This Row],[2029/30 From - Spending review Topic 1]]+Dataset[[#This Row],[2029/30 From - Spending review Topic 2]]+Dataset[[#This Row],[2029/30 From - Spending review Topic 3]]+Dataset[[#This Row],[2029/30 From - Spending review Topic 4]]+Dataset[[#This Row],[2029/30 From - Other reallocations]]","v":0},{"$f":"Dataset[[#This Row],[2027/28 To - Spending review Topic 1]]+Dataset[[#This Row],[2027/28 To - Spending review Topic 2]]+Dataset[[#This Row],[2027/28 To - Spending review Topic 3]]+Dataset[[#This Row],[2027/28 To - Spending review Topic 4]]+Dataset[[#This Row],[2027/28 To - Other reallocations]]","v":0},{"$f":"Dataset[[#This Row],[2028/29 To - Spending review Topic 1]]+Dataset[[#This Row],[2028/29 To - Spending review Topic 2]]+Dataset[[#This Row],[2028/29 To - Spending review Topic 3]]+Dataset[[#This Row],[2028/29 To - Spending review Topic 4]]+Dataset[[#This Row],[2028/29 To - Other reallocations]]","v":0},{"$f":"Dataset[[#This Row],[2029/30 To - Spending review Topic 1]]+Dataset[[#This Row],[2029/30 To - Spending review Topic 2]]+Dataset[[#This Row],[2029/30 To - Spending review Topic 3]]+Dataset[[#This Row],[2029/30 To - Spending review Topic 4]]+Dataset[[#This Row],[2029/30 To - Other reallocations]]","v":0},{"$f":"Dataset[[#This Row],[2027/28 Targeted savings]]+Dataset[[#This Row],[2027/28 From - Total]]","v":0},{"$f":"Dataset[[#This Row],[2028/29 Targeted savings]]+Dataset[[#This Row],[2028/29 From - Total]]","v":0},{"$f":"Dataset[[#This Row],[2029/30 Targeted savings]]+Dataset[[#This Row],[2029/30 From - Total]]","v":0},{"$f":"Dataset[[#This Row],[2026/27 Targeted savings]]","v":0},{"$f":"SUM(Dataset[[#This Row],[2027/28 Targeted savings]],Dataset[[#This Row],[2027/28 From - Total]],Dataset[[#This Row],[2027/28 To - Total]])","v":0},{"$f":"SUM(Dataset[[#This Row],[2028/29 Targeted savings]],Dataset[[#This Row],[2028/29 From - Total]],Dataset[[#This Row],[2028/29 To - Total]])","v":0},{"$f":"SUM(Dataset[[#This Row],[2029/30 Targeted savings]],Dataset[[#This Row],[2029/30 From - Total]],Dataset[[#This Row],[2029/30 To - Total]])","v":0},{"$f":"Dataset[[#This Row],[2026/27 Baseline]]+Dataset[[#This Row],[2026/27 Total change]]","v":0},{"$f":"Dataset[[#This Row],[2027/28 Baseline]]+Dataset[[#This Row],[2027/28 Total change]]","v":0},{"$f":"Dataset[[#This Row],[2028/29 Baseline]]+Dataset[[#This Row],[2028/29 Total change]]","v":1120},{"$f":"Dataset[[#This Row],[2029/30 Baseline]]+Dataset[[#This Row],[2029/30 Total change]]","v":1154}]
["NAT|Non-transfer","30|Fleet services (including government motor transport)","2027_28","MTEC2027",30,5,3,33108,588,"30","05","03","033108","000588","30|05|03|000588","01","01","02","19","19","01|01|02|19|19","National","Communications and Digital Technologies","Digital Infrastructure and Technologies","Digital Infrastructure and Broadcasting Technologies","Non-transfer","Current","Current payments","Goods and services","Fleet services (including government motor transport)","Fleet services (including government motor transport)","Economic development","Economic regulation and infrastructure","NAT",973,409,288,542,442,442,0,402,420,949,978,null,null,null,null,null,null,null,null,null,null,null,null,null,null,null,null,null,null,null,null,null,null,null,null,null,null,null,null,null,null,null,null,null,null,{"$f":"Dataset[[#This Row],[2027/28 From - Spending review Topic 1]]+Dataset[[#This Row],[2027/28 From - Spending review Topic 2]]+Dataset[[#This Row],[2027/28 From - Spending review Topic 3]]+Dataset[[#This Row],[2027/28 From - Spending review Topic 4]]+Dataset[[#This Row],[2027/28 From - Other reallocations]]","v":0},{"$f":"Dataset[[#This Row],[2028/29 From - Spending review Topic 1]]+Dataset[[#This Row],[2028/29 From - Spending review Topic 2]]+Dataset[[#This Row],[2028/29 From - Spending review Topic 3]]+Dataset[[#This Row],[2028/29 From - Spending review Topic 4]]+Dataset[[#This Row],[2028/29 From - Other reallocations]]","v":0},{"$f":"Dataset[[#This Row],[2029/30 From - Spending review Topic 1]]+Dataset[[#This Row],[2029/30 From - Spending review Topic 2]]+Dataset[[#This Row],[2029/30 From - Spending review Topic 3]]+Dataset[[#This Row],[2029/30 From - Spending review Topic 4]]+Dataset[[#This Row],[2029/30 From - Other reallocations]]","v":0},{"$f":"Dataset[[#This Row],[2027/28 To - Spending review Topic 1]]+Dataset[[#This Row],[2027/28 To - Spending review Topic 2]]+Dataset[[#This Row],[2027/28 To - Spending review Topic 3]]+Dataset[[#This Row],[2027/28 To - Spending review Topic 4]]+Dataset[[#This Row],[2027/28 To - Other reallocations]]","v":0},{"$f":"Dataset[[#This Row],[2028/29 To - Spending review Topic 1]]+Dataset[[#This Row],[2028/29 To - Spending review Topic 2]]+Dataset[[#This Row],[2028/29 To - Spending review Topic 3]]+Dataset[[#This Row],[2028/29 To - Spending review Topic 4]]+Dataset[[#This Row],[2028/29 To - Other reallocations]]","v":0},{"$f":"Dataset[[#This Row],[2029/30 To - Spending review Topic 1]]+Dataset[[#This Row],[2029/30 To - Spending review Topic 2]]+Dataset[[#This Row],[2029/30 To - Spending review Topic 3]]+Dataset[[#This Row],[2029/30 To - Spending review Topic 4]]+Dataset[[#This Row],[2029/30 To - Other reallocations]]","v":0},{"$f":"Dataset[[#This Row],[2027/28 Targeted savings]]+Dataset[[#This Row],[2027/28 From - Total]]","v":0},{"$f":"Dataset[[#This Row],[2028/29 Targeted savings]]+Dataset[[#This Row],[2028/29 From - Total]]","v":0},{"$f":"Dataset[[#This Row],[2029/30 Targeted savings]]+Dataset[[#This Row],[2029/30 From - Total]]","v":0},{"$f":"Dataset[[#This Row],[2026/27 Targeted savings]]","v":0},{"$f":"SUM(Dataset[[#This Row],[2027/28 Targeted savings]],Dataset[[#This Row],[2027/28 From - Total]],Dataset[[#This Row],[2027/28 To - Total]])","v":0},{"$f":"SUM(Dataset[[#This Row],[2028/29 Targeted savings]],Dataset[[#This Row],[2028/29 From - Total]],Dataset[[#This Row],[2028/29 To - Total]])","v":0},{"$f":"SUM(Dataset[[#This Row],[2029/30 Targeted savings]],Dataset[[#This Row],[2029/30 From - Total]],Dataset[[#This Row],[2029/30 To - Total]])","v":0},{"$f":"Dataset[[#This Row],[2026/27 Baseline]]+Dataset[[#This Row],[2026/27 Total change]]","v":402},{"$f":"Dataset[[#This Row],[2027/28 Baseline]]+Dataset[[#This Row],[2027/28 Total change]]","v":420},{"$f":"Dataset[[#This Row],[2028/29 Baseline]]+Dataset[[#This Row],[2028/29 Total change]]","v":949},{"$f":"Dataset[[#This Row],[2029/30 Baseline]]+Dataset[[#This Row],[2029/30 Total change]]","v":978}]
["NAT|Non-transfer","30|Consumable supplies","2027_28","MTEC2027",30,5,3,33109,589,"30","05","03","033109","000589","30|05|03|000589","01","01","02","31","31","01|01|02|31|31","National","Communications and Digital Technologies","Digital Infrastructure and Technologies","Digital Infrastructure and Broadcasting Technologies","Non-transfer","Current","Current payments","Goods and services","Consumable supplies","Consumable supplies","Economic development","Economic regulation and infrastructure","NAT",1,0,0,5,5,5,0,0,17,17,18,null,null,null,null,null,null,null,null,null,null,null,null,null,null,null,null,null,null,null,null,null,null,null,null,null,null,null,null,null,null,null,null,null,null,{"$f":"Dataset[[#This Row],[2027/28 From - Spending review Topic 1]]+Dataset[[#This Row],[2027/28 From - Spending review Topic 2]]+Dataset[[#This Row],[2027/28 From - Spending review Topic 3]]+Dataset[[#This Row],[2027/28 From - Spending review Topic 4]]+Dataset[[#This Row],[2027/28 From - Other reallocations]]","v":0},{"$f":"Dataset[[#This Row],[2028/29 From - Spending review Topic 1]]+Dataset[[#This Row],[2028/29 From - Spending review Topic 2]]+Dataset[[#This Row],[2028/29 From - Spending review Topic 3]]+Dataset[[#This Row],[2028/29 From - Spending review Topic 4]]+Dataset[[#This Row],[2028/29 From - Other reallocations]]","v":0},{"$f":"Dataset[[#This Row],[2029/30 From - Spending review Topic 1]]+Dataset[[#This Row],[2029/30 From - Spending review Topic 2]]+Dataset[[#This Row],[2029/30 From - Spending review Topic 3]]+Dataset[[#This Row],[2029/30 From - Spending review Topic 4]]+Dataset[[#This Row],[2029/30 From - Other reallocations]]","v":0},{"$f":"Dataset[[#This Row],[2027/28 To - Spending review Topic 1]]+Dataset[[#This Row],[2027/28 To - Spending review Topic 2]]+Dataset[[#This Row],[2027/28 To - Spending review Topic 3]]+Dataset[[#This Row],[2027/28 To - Spending review Topic 4]]+Dataset[[#This Row],[2027/28 To - Other reallocations]]","v":0},{"$f":"Dataset[[#This Row],[2028/29 To - Spending review Topic 1]]+Dataset[[#This Row],[2028/29 To - Spending review Topic 2]]+Dataset[[#This Row],[2028/29 To - Spending review Topic 3]]+Dataset[[#This Row],[2028/29 To - Spending review Topic 4]]+Dataset[[#This Row],[2028/29 To - Other reallocations]]","v":0},{"$f":"Dataset[[#This Row],[2029/30 To - Spending review Topic 1]]+Dataset[[#This Row],[2029/30 To - Spending review Topic 2]]+Dataset[[#This Row],[2029/30 To - Spending review Topic 3]]+Dataset[[#This Row],[2029/30 To - Spending review Topic 4]]+Dataset[[#This Row],[2029/30 To - Other reallocations]]","v":0},{"$f":"Dataset[[#This Row],[2027/28 Targeted savings]]+Dataset[[#This Row],[2027/28 From - Total]]","v":0},{"$f":"Dataset[[#This Row],[2028/29 Targeted savings]]+Dataset[[#This Row],[2028/29 From - Total]]","v":0},{"$f":"Dataset[[#This Row],[2029/30 Targeted savings]]+Dataset[[#This Row],[2029/30 From - Total]]","v":0},{"$f":"Dataset[[#This Row],[2026/27 Targeted savings]]","v":0},{"$f":"SUM(Dataset[[#This Row],[2027/28 Targeted savings]],Dataset[[#This Row],[2027/28 From - Total]],Dataset[[#This Row],[2027/28 To - Total]])","v":0},{"$f":"SUM(Dataset[[#This Row],[2028/29 Targeted savings]],Dataset[[#This Row],[2028/29 From - Total]],Dataset[[#This Row],[2028/29 To - Total]])","v":0},{"$f":"SUM(Dataset[[#This Row],[2029/30 Targeted savings]],Dataset[[#This Row],[2029/30 From - Total]],Dataset[[#This Row],[2029/30 To - Total]])","v":0},{"$f":"Dataset[[#This Row],[2026/27 Baseline]]+Dataset[[#This Row],[2026/27 Total change]]","v":0},{"$f":"Dataset[[#This Row],[2027/28 Baseline]]+Dataset[[#This Row],[2027/28 Total change]]","v":17},{"$f":"Dataset[[#This Row],[2028/29 Baseline]]+Dataset[[#This Row],[2028/29 Total change]]","v":17},{"$f":"Dataset[[#This Row],[2029/30 Baseline]]+Dataset[[#This Row],[2029/30 Total change]]","v":18}]
["NAT|Non-transfer","30|Consumables: Stationery, printing and office supplies","2027_28","MTEC2027",30,5,3,33110,590,"30","05","03","033110","000590","30|05|03|000590","01","01","02","32","32","01|01|02|32|32","National","Communications and Digital Technologies","Digital Infrastructure and Technologies","Digital Infrastructure and Broadcasting Technologies","Non-transfer","Current","Current payments","Goods and services","Consumables: Stationery, printing and office supplies","Consumables: Stationery, printing and office supplies","Economic development","Economic regulation and infrastructure","NAT",2,0,0,17,17,17,0,10,19,19,20,null,null,null,null,null,null,null,null,null,null,null,null,null,null,null,null,null,null,null,null,null,null,null,null,null,null,null,null,null,null,null,null,null,null,{"$f":"Dataset[[#This Row],[2027/28 From - Spending review Topic 1]]+Dataset[[#This Row],[2027/28 From - Spending review Topic 2]]+Dataset[[#This Row],[2027/28 From - Spending review Topic 3]]+Dataset[[#This Row],[2027/28 From - Spending review Topic 4]]+Dataset[[#This Row],[2027/28 From - Other reallocations]]","v":0},{"$f":"Dataset[[#This Row],[2028/29 From - Spending review Topic 1]]+Dataset[[#This Row],[2028/29 From - Spending review Topic 2]]+Dataset[[#This Row],[2028/29 From - Spending review Topic 3]]+Dataset[[#This Row],[2028/29 From - Spending review Topic 4]]+Dataset[[#This Row],[2028/29 From - Other reallocations]]","v":0},{"$f":"Dataset[[#This Row],[2029/30 From - Spending review Topic 1]]+Dataset[[#This Row],[2029/30 From - Spending review Topic 2]]+Dataset[[#This Row],[2029/30 From - Spending review Topic 3]]+Dataset[[#This Row],[2029/30 From - Spending review Topic 4]]+Dataset[[#This Row],[2029/30 From - Other reallocations]]","v":0},{"$f":"Dataset[[#This Row],[2027/28 To - Spending review Topic 1]]+Dataset[[#This Row],[2027/28 To - Spending review Topic 2]]+Dataset[[#This Row],[2027/28 To - Spending review Topic 3]]+Dataset[[#This Row],[2027/28 To - Spending review Topic 4]]+Dataset[[#This Row],[2027/28 To - Other reallocations]]","v":0},{"$f":"Dataset[[#This Row],[2028/29 To - Spending review Topic 1]]+Dataset[[#This Row],[2028/29 To - Spending review Topic 2]]+Dataset[[#This Row],[2028/29 To - Spending review Topic 3]]+Dataset[[#This Row],[2028/29 To - Spending review Topic 4]]+Dataset[[#This Row],[2028/29 To - Other reallocations]]","v":0},{"$f":"Dataset[[#This Row],[2029/30 To - Spending review Topic 1]]+Dataset[[#This Row],[2029/30 To - Spending review Topic 2]]+Dataset[[#This Row],[2029/30 To - Spending review Topic 3]]+Dataset[[#This Row],[2029/30 To - Spending review Topic 4]]+Dataset[[#This Row],[2029/30 To - Other reallocations]]","v":0},{"$f":"Dataset[[#This Row],[2027/28 Targeted savings]]+Dataset[[#This Row],[2027/28 From - Total]]","v":0},{"$f":"Dataset[[#This Row],[2028/29 Targeted savings]]+Dataset[[#This Row],[2028/29 From - Total]]","v":0},{"$f":"Dataset[[#This Row],[2029/30 Targeted savings]]+Dataset[[#This Row],[2029/30 From - Total]]","v":0},{"$f":"Dataset[[#This Row],[2026/27 Targeted savings]]","v":0},{"$f":"SUM(Dataset[[#This Row],[2027/28 Targeted savings]],Dataset[[#This Row],[2027/28 From - Total]],Dataset[[#This Row],[2027/28 To - Total]])","v":0},{"$f":"SUM(Dataset[[#This Row],[2028/29 Targeted savings]],Dataset[[#This Row],[2028/29 From - Total]],Dataset[[#This Row],[2028/29 To - Total]])","v":0},{"$f":"SUM(Dataset[[#This Row],[2029/30 Targeted savings]],Dataset[[#This Row],[2029/30 From - Total]],Dataset[[#This Row],[2029/30 To - Total]])","v":0},{"$f":"Dataset[[#This Row],[2026/27 Baseline]]+Dataset[[#This Row],[2026/27 Total change]]","v":10},{"$f":"Dataset[[#This Row],[2027/28 Baseline]]+Dataset[[#This Row],[2027/28 Total change]]","v":19},{"$f":"Dataset[[#This Row],[2028/29 Baseline]]+Dataset[[#This Row],[2028/29 Total change]]","v":19},{"$f":"Dataset[[#This Row],[2029/30 Baseline]]+Dataset[[#This Row],[2029/30 Total change]]","v":20}]
["NAT|Non-transfer","30|Rental and hiring","2027_28","MTEC2027",30,5,3,33111,591,"30","05","03","033111","000591","30|05|03|000591","01","01","02","34","34","01|01|02|34|34","National","Communications and Digital Technologies","Digital Infrastructure and Technologies","Digital Infrastructure and Broadcasting Technologies","Non-transfer","Current","Current payments","Goods and services","Rental and hiring","Rental and hiring","Economic development","Economic regulation and infrastructure","NAT",4,0,0,0,0,0,0,0,0,0,0,null,null,null,null,null,null,null,null,null,null,null,null,null,null,null,null,null,null,null,null,null,null,null,null,null,null,null,null,null,null,null,null,null,null,{"$f":"Dataset[[#This Row],[2027/28 From - Spending review Topic 1]]+Dataset[[#This Row],[2027/28 From - Spending review Topic 2]]+Dataset[[#This Row],[2027/28 From - Spending review Topic 3]]+Dataset[[#This Row],[2027/28 From - Spending review Topic 4]]+Dataset[[#This Row],[2027/28 From - Other reallocations]]","v":0},{"$f":"Dataset[[#This Row],[2028/29 From - Spending review Topic 1]]+Dataset[[#This Row],[2028/29 From - Spending review Topic 2]]+Dataset[[#This Row],[2028/29 From - Spending review Topic 3]]+Dataset[[#This Row],[2028/29 From - Spending review Topic 4]]+Dataset[[#This Row],[2028/29 From - Other reallocations]]","v":0},{"$f":"Dataset[[#This Row],[2029/30 From - Spending review Topic 1]]+Dataset[[#This Row],[2029/30 From - Spending review Topic 2]]+Dataset[[#This Row],[2029/30 From - Spending review Topic 3]]+Dataset[[#This Row],[2029/30 From - Spending review Topic 4]]+Dataset[[#This Row],[2029/30 From - Other reallocations]]","v":0},{"$f":"Dataset[[#This Row],[2027/28 To - Spending review Topic 1]]+Dataset[[#This Row],[2027/28 To - Spending review Topic 2]]+Dataset[[#This Row],[2027/28 To - Spending review Topic 3]]+Dataset[[#This Row],[2027/28 To - Spending review Topic 4]]+Dataset[[#This Row],[2027/28 To - Other reallocations]]","v":0},{"$f":"Dataset[[#This Row],[2028/29 To - Spending review Topic 1]]+Dataset[[#This Row],[2028/29 To - Spending review Topic 2]]+Dataset[[#This Row],[2028/29 To - Spending review Topic 3]]+Dataset[[#This Row],[2028/29 To - Spending review Topic 4]]+Dataset[[#This Row],[2028/29 To - Other reallocations]]","v":0},{"$f":"Dataset[[#This Row],[2029/30 To - Spending review Topic 1]]+Dataset[[#This Row],[2029/30 To - Spending review Topic 2]]+Dataset[[#This Row],[2029/30 To - Spending review Topic 3]]+Dataset[[#This Row],[2029/30 To - Spending review Topic 4]]+Dataset[[#This Row],[2029/30 To - Other reallocations]]","v":0},{"$f":"Dataset[[#This Row],[2027/28 Targeted savings]]+Dataset[[#This Row],[2027/28 From - Total]]","v":0},{"$f":"Dataset[[#This Row],[2028/29 Targeted savings]]+Dataset[[#This Row],[2028/29 From - Total]]","v":0},{"$f":"Dataset[[#This Row],[2029/30 Targeted savings]]+Dataset[[#This Row],[2029/30 From - Total]]","v":0},{"$f":"Dataset[[#This Row],[2026/27 Targeted savings]]","v":0},{"$f":"SUM(Dataset[[#This Row],[2027/28 Targeted savings]],Dataset[[#This Row],[2027/28 From - Total]],Dataset[[#This Row],[2027/28 To - Total]])","v":0},{"$f":"SUM(Dataset[[#This Row],[2028/29 Targeted savings]],Dataset[[#This Row],[2028/29 From - Total]],Dataset[[#This Row],[2028/29 To - Total]])","v":0},{"$f":"SUM(Dataset[[#This Row],[2029/30 Targeted savings]],Dataset[[#This Row],[2029/30 From - Total]],Dataset[[#This Row],[2029/30 To - Total]])","v":0},{"$f":"Dataset[[#This Row],[2026/27 Baseline]]+Dataset[[#This Row],[2026/27 Total change]]","v":0},{"$f":"Dataset[[#This Row],[2027/28 Baseline]]+Dataset[[#This Row],[2027/28 Total change]]","v":0},{"$f":"Dataset[[#This Row],[2028/29 Baseline]]+Dataset[[#This Row],[2028/29 Total change]]","v":0},{"$f":"Dataset[[#This Row],[2029/30 Baseline]]+Dataset[[#This Row],[2029/30 Total change]]","v":0}]
["NAT|Non-transfer","30|Travel and subsistence","2027_28","MTEC2027",30,5,3,33112,592,"30","05","03","033112","000592","30|05|03|000592","01","01","02","37","37","01|01|02|37|37","National","Communications and Digital Technologies","Digital Infrastructure and Technologies","Digital Infrastructure and Broadcasting Technologies","Non-transfer","Current","Current payments","Goods and services","Travel and subsistence","Travel and subsistence","Economic development","Economic regulation and infrastructure","NAT",17470,8886,3310,3699,3099,3099,0,2365,2288,5866,6043,null,null,null,null,null,null,null,null,null,null,null,null,null,null,null,null,null,null,null,null,null,null,null,null,null,null,null,null,null,null,null,null,null,null,{"$f":"Dataset[[#This Row],[2027/28 From - Spending review Topic 1]]+Dataset[[#This Row],[2027/28 From - Spending review Topic 2]]+Dataset[[#This Row],[2027/28 From - Spending review Topic 3]]+Dataset[[#This Row],[2027/28 From - Spending review Topic 4]]+Dataset[[#This Row],[2027/28 From - Other reallocations]]","v":0},{"$f":"Dataset[[#This Row],[2028/29 From - Spending review Topic 1]]+Dataset[[#This Row],[2028/29 From - Spending review Topic 2]]+Dataset[[#This Row],[2028/29 From - Spending review Topic 3]]+Dataset[[#This Row],[2028/29 From - Spending review Topic 4]]+Dataset[[#This Row],[2028/29 From - Other reallocations]]","v":0},{"$f":"Dataset[[#This Row],[2029/30 From - Spending review Topic 1]]+Dataset[[#This Row],[2029/30 From - Spending review Topic 2]]+Dataset[[#This Row],[2029/30 From - Spending review Topic 3]]+Dataset[[#This Row],[2029/30 From - Spending review Topic 4]]+Dataset[[#This Row],[2029/30 From - Other reallocations]]","v":0},{"$f":"Dataset[[#This Row],[2027/28 To - Spending review Topic 1]]+Dataset[[#This Row],[2027/28 To - Spending review Topic 2]]+Dataset[[#This Row],[2027/28 To - Spending review Topic 3]]+Dataset[[#This Row],[2027/28 To - Spending review Topic 4]]+Dataset[[#This Row],[2027/28 To - Other reallocations]]","v":0},{"$f":"Dataset[[#This Row],[2028/29 To - Spending review Topic 1]]+Dataset[[#This Row],[2028/29 To - Spending review Topic 2]]+Dataset[[#This Row],[2028/29 To - Spending review Topic 3]]+Dataset[[#This Row],[2028/29 To - Spending review Topic 4]]+Dataset[[#This Row],[2028/29 To - Other reallocations]]","v":0},{"$f":"Dataset[[#This Row],[2029/30 To - Spending review Topic 1]]+Dataset[[#This Row],[2029/30 To - Spending review Topic 2]]+Dataset[[#This Row],[2029/30 To - Spending review Topic 3]]+Dataset[[#This Row],[2029/30 To - Spending review Topic 4]]+Dataset[[#This Row],[2029/30 To - Other reallocations]]","v":0},{"$f":"Dataset[[#This Row],[2027/28 Targeted savings]]+Dataset[[#This Row],[2027/28 From - Total]]","v":0},{"$f":"Dataset[[#This Row],[2028/29 Targeted savings]]+Dataset[[#This Row],[2028/29 From - Total]]","v":0},{"$f":"Dataset[[#This Row],[2029/30 Targeted savings]]+Dataset[[#This Row],[2029/30 From - Total]]","v":0},{"$f":"Dataset[[#This Row],[2026/27 Targeted savings]]","v":0},{"$f":"SUM(Dataset[[#This Row],[2027/28 Targeted savings]],Dataset[[#This Row],[2027/28 From - Total]],Dataset[[#This Row],[2027/28 To - Total]])","v":0},{"$f":"SUM(Dataset[[#This Row],[2028/29 Targeted savings]],Dataset[[#This Row],[2028/29 From - Total]],Dataset[[#This Row],[2028/29 To - Total]])","v":0},{"$f":"SUM(Dataset[[#This Row],[2029/30 Targeted savings]],Dataset[[#This Row],[2029/30 From - Total]],Dataset[[#This Row],[2029/30 To - Total]])","v":0},{"$f":"Dataset[[#This Row],[2026/27 Baseline]]+Dataset[[#This Row],[2026/27 Total change]]","v":2365},{"$f":"Dataset[[#This Row],[2027/28 Baseline]]+Dataset[[#This Row],[2027/28 Total change]]","v":2288},{"$f":"Dataset[[#This Row],[2028/29 Baseline]]+Dataset[[#This Row],[2028/29 Total change]]","v":5866},{"$f":"Dataset[[#This Row],[2029/30 Baseline]]+Dataset[[#This Row],[2029/30 Total change]]","v":6043}]
["NAT|Non-transfer","30|Training and development","2027_28","MTEC2027",30,5,3,33113,593,"30","05","03","033113","000593","30|05|03|000593","01","01","02","38","38","01|01|02|38|38","National","Communications and Digital Technologies","Digital Infrastructure and Technologies","Digital Infrastructure and Broadcasting Technologies","Non-transfer","Current","Current payments","Goods and services","Training and development","Training and development","Economic development","Economic regulation and infrastructure","NAT",0,90,0,0,0,0,0,0,0,0,0,null,null,null,null,null,null,null,null,null,null,null,null,null,null,null,null,null,null,null,null,null,null,null,null,null,null,null,null,null,null,null,null,null,null,{"$f":"Dataset[[#This Row],[2027/28 From - Spending review Topic 1]]+Dataset[[#This Row],[2027/28 From - Spending review Topic 2]]+Dataset[[#This Row],[2027/28 From - Spending review Topic 3]]+Dataset[[#This Row],[2027/28 From - Spending review Topic 4]]+Dataset[[#This Row],[2027/28 From - Other reallocations]]","v":0},{"$f":"Dataset[[#This Row],[2028/29 From - Spending review Topic 1]]+Dataset[[#This Row],[2028/29 From - Spending review Topic 2]]+Dataset[[#This Row],[2028/29 From - Spending review Topic 3]]+Dataset[[#This Row],[2028/29 From - Spending review Topic 4]]+Dataset[[#This Row],[2028/29 From - Other reallocations]]","v":0},{"$f":"Dataset[[#This Row],[2029/30 From - Spending review Topic 1]]+Dataset[[#This Row],[2029/30 From - Spending review Topic 2]]+Dataset[[#This Row],[2029/30 From - Spending review Topic 3]]+Dataset[[#This Row],[2029/30 From - Spending review Topic 4]]+Dataset[[#This Row],[2029/30 From - Other reallocations]]","v":0},{"$f":"Dataset[[#This Row],[2027/28 To - Spending review Topic 1]]+Dataset[[#This Row],[2027/28 To - Spending review Topic 2]]+Dataset[[#This Row],[2027/28 To - Spending review Topic 3]]+Dataset[[#This Row],[2027/28 To - Spending review Topic 4]]+Dataset[[#This Row],[2027/28 To - Other reallocations]]","v":0},{"$f":"Dataset[[#This Row],[2028/29 To - Spending review Topic 1]]+Dataset[[#This Row],[2028/29 To - Spending review Topic 2]]+Dataset[[#This Row],[2028/29 To - Spending review Topic 3]]+Dataset[[#This Row],[2028/29 To - Spending review Topic 4]]+Dataset[[#This Row],[2028/29 To - Other reallocations]]","v":0},{"$f":"Dataset[[#This Row],[2029/30 To - Spending review Topic 1]]+Dataset[[#This Row],[2029/30 To - Spending review Topic 2]]+Dataset[[#This Row],[2029/30 To - Spending review Topic 3]]+Dataset[[#This Row],[2029/30 To - Spending review Topic 4]]+Dataset[[#This Row],[2029/30 To - Other reallocations]]","v":0},{"$f":"Dataset[[#This Row],[2027/28 Targeted savings]]+Dataset[[#This Row],[2027/28 From - Total]]","v":0},{"$f":"Dataset[[#This Row],[2028/29 Targeted savings]]+Dataset[[#This Row],[2028/29 From - Total]]","v":0},{"$f":"Dataset[[#This Row],[2029/30 Targeted savings]]+Dataset[[#This Row],[2029/30 From - Total]]","v":0},{"$f":"Dataset[[#This Row],[2026/27 Targeted savings]]","v":0},{"$f":"SUM(Dataset[[#This Row],[2027/28 Targeted savings]],Dataset[[#This Row],[2027/28 From - Total]],Dataset[[#This Row],[2027/28 To - Total]])","v":0},{"$f":"SUM(Dataset[[#This Row],[2028/29 Targeted savings]],Dataset[[#This Row],[2028/29 From - Total]],Dataset[[#This Row],[2028/29 To - Total]])","v":0},{"$f":"SUM(Dataset[[#This Row],[2029/30 Targeted savings]],Dataset[[#This Row],[2029/30 From - Total]],Dataset[[#This Row],[2029/30 To - Total]])","v":0},{"$f":"Dataset[[#This Row],[2026/27 Baseline]]+Dataset[[#This Row],[2026/27 Total change]]","v":0},{"$f":"Dataset[[#This Row],[2027/28 Baseline]]+Dataset[[#This Row],[2027/28 Total change]]","v":0},{"$f":"Dataset[[#This Row],[2028/29 Baseline]]+Dataset[[#This Row],[2028/29 Total change]]","v":0},{"$f":"Dataset[[#This Row],[2029/30 Baseline]]+Dataset[[#This Row],[2029/30 Total change]]","v":0}]
["NAT|Non-transfer","30|Operating payments","2027_28","MTEC2027",30,5,3,33114,594,"30","05","03","033114","000594","30|05|03|000594","01","01","02","39","39","01|01|02|39|39","National","Communications and Digital Technologies","Digital Infrastructure and Technologies","Digital Infrastructure and Broadcasting Technologies","Non-transfer","Current","Current payments","Goods and services","Operating payments","Operating payments","Economic development","Economic regulation and infrastructure","NAT",18,46,1,120,50,50,0,12,7,316,326,null,null,null,null,null,null,null,null,null,null,null,null,null,null,null,null,null,null,null,null,null,null,null,null,null,null,null,null,null,null,null,null,null,null,{"$f":"Dataset[[#This Row],[2027/28 From - Spending review Topic 1]]+Dataset[[#This Row],[2027/28 From - Spending review Topic 2]]+Dataset[[#This Row],[2027/28 From - Spending review Topic 3]]+Dataset[[#This Row],[2027/28 From - Spending review Topic 4]]+Dataset[[#This Row],[2027/28 From - Other reallocations]]","v":0},{"$f":"Dataset[[#This Row],[2028/29 From - Spending review Topic 1]]+Dataset[[#This Row],[2028/29 From - Spending review Topic 2]]+Dataset[[#This Row],[2028/29 From - Spending review Topic 3]]+Dataset[[#This Row],[2028/29 From - Spending review Topic 4]]+Dataset[[#This Row],[2028/29 From - Other reallocations]]","v":0},{"$f":"Dataset[[#This Row],[2029/30 From - Spending review Topic 1]]+Dataset[[#This Row],[2029/30 From - Spending review Topic 2]]+Dataset[[#This Row],[2029/30 From - Spending review Topic 3]]+Dataset[[#This Row],[2029/30 From - Spending review Topic 4]]+Dataset[[#This Row],[2029/30 From - Other reallocations]]","v":0},{"$f":"Dataset[[#This Row],[2027/28 To - Spending review Topic 1]]+Dataset[[#This Row],[2027/28 To - Spending review Topic 2]]+Dataset[[#This Row],[2027/28 To - Spending review Topic 3]]+Dataset[[#This Row],[2027/28 To - Spending review Topic 4]]+Dataset[[#This Row],[2027/28 To - Other reallocations]]","v":0},{"$f":"Dataset[[#This Row],[2028/29 To - Spending review Topic 1]]+Dataset[[#This Row],[2028/29 To - Spending review Topic 2]]+Dataset[[#This Row],[2028/29 To - Spending review Topic 3]]+Dataset[[#This Row],[2028/29 To - Spending review Topic 4]]+Dataset[[#This Row],[2028/29 To - Other reallocations]]","v":0},{"$f":"Dataset[[#This Row],[2029/30 To - Spending review Topic 1]]+Dataset[[#This Row],[2029/30 To - Spending review Topic 2]]+Dataset[[#This Row],[2029/30 To - Spending review Topic 3]]+Dataset[[#This Row],[2029/30 To - Spending review Topic 4]]+Dataset[[#This Row],[2029/30 To - Other reallocations]]","v":0},{"$f":"Dataset[[#This Row],[2027/28 Targeted savings]]+Dataset[[#This Row],[2027/28 From - Total]]","v":0},{"$f":"Dataset[[#This Row],[2028/29 Targeted savings]]+Dataset[[#This Row],[2028/29 From - Total]]","v":0},{"$f":"Dataset[[#This Row],[2029/30 Targeted savings]]+Dataset[[#This Row],[2029/30 From - Total]]","v":0},{"$f":"Dataset[[#This Row],[2026/27 Targeted savings]]","v":0},{"$f":"SUM(Dataset[[#This Row],[2027/28 Targeted savings]],Dataset[[#This Row],[2027/28 From - Total]],Dataset[[#This Row],[2027/28 To - Total]])","v":0},{"$f":"SUM(Dataset[[#This Row],[2028/29 Targeted savings]],Dataset[[#This Row],[2028/29 From - Total]],Dataset[[#This Row],[2028/29 To - Total]])","v":0},{"$f":"SUM(Dataset[[#This Row],[2029/30 Targeted savings]],Dataset[[#This Row],[2029/30 From - Total]],Dataset[[#This Row],[2029/30 To - Total]])","v":0},{"$f":"Dataset[[#This Row],[2026/27 Baseline]]+Dataset[[#This Row],[2026/27 Total change]]","v":12},{"$f":"Dataset[[#This Row],[2027/28 Baseline]]+Dataset[[#This Row],[2027/28 Total change]]","v":7},{"$f":"Dataset[[#This Row],[2028/29 Baseline]]+Dataset[[#This Row],[2028/29 Total change]]","v":316},{"$f":"Dataset[[#This Row],[2029/30 Baseline]]+Dataset[[#This Row],[2029/30 Total change]]","v":326}]
["NAT|Non-transfer","30|Venues and facilities","2027_28","MTEC2027",30,5,3,33115,595,"30","05","03","033115","000595","30|05|03|000595","01","01","02","40","40","01|01|02|40|40","National","Communications and Digital Technologies","Digital Infrastructure and Technologies","Digital Infrastructure and Broadcasting Technologies","Non-transfer","Current","Current payments","Goods and services","Venues and facilities","Venues and facilities","Economic development","Economic regulation and infrastructure","NAT",3,0,1,0,0,0,0,0,0,0,0,null,null,null,null,null,null,null,null,null,null,null,null,null,null,null,null,null,null,null,null,null,null,null,null,null,null,null,null,null,null,null,null,null,null,{"$f":"Dataset[[#This Row],[2027/28 From - Spending review Topic 1]]+Dataset[[#This Row],[2027/28 From - Spending review Topic 2]]+Dataset[[#This Row],[2027/28 From - Spending review Topic 3]]+Dataset[[#This Row],[2027/28 From - Spending review Topic 4]]+Dataset[[#This Row],[2027/28 From - Other reallocations]]","v":0},{"$f":"Dataset[[#This Row],[2028/29 From - Spending review Topic 1]]+Dataset[[#This Row],[2028/29 From - Spending review Topic 2]]+Dataset[[#This Row],[2028/29 From - Spending review Topic 3]]+Dataset[[#This Row],[2028/29 From - Spending review Topic 4]]+Dataset[[#This Row],[2028/29 From - Other reallocations]]","v":0},{"$f":"Dataset[[#This Row],[2029/30 From - Spending review Topic 1]]+Dataset[[#This Row],[2029/30 From - Spending review Topic 2]]+Dataset[[#This Row],[2029/30 From - Spending review Topic 3]]+Dataset[[#This Row],[2029/30 From - Spending review Topic 4]]+Dataset[[#This Row],[2029/30 From - Other reallocations]]","v":0},{"$f":"Dataset[[#This Row],[2027/28 To - Spending review Topic 1]]+Dataset[[#This Row],[2027/28 To - Spending review Topic 2]]+Dataset[[#This Row],[2027/28 To - Spending review Topic 3]]+Dataset[[#This Row],[2027/28 To - Spending review Topic 4]]+Dataset[[#This Row],[2027/28 To - Other reallocations]]","v":0},{"$f":"Dataset[[#This Row],[2028/29 To - Spending review Topic 1]]+Dataset[[#This Row],[2028/29 To - Spending review Topic 2]]+Dataset[[#This Row],[2028/29 To - Spending review Topic 3]]+Dataset[[#This Row],[2028/29 To - Spending review Topic 4]]+Dataset[[#This Row],[2028/29 To - Other reallocations]]","v":0},{"$f":"Dataset[[#This Row],[2029/30 To - Spending review Topic 1]]+Dataset[[#This Row],[2029/30 To - Spending review Topic 2]]+Dataset[[#This Row],[2029/30 To - Spending review Topic 3]]+Dataset[[#This Row],[2029/30 To - Spending review Topic 4]]+Dataset[[#This Row],[2029/30 To - Other reallocations]]","v":0},{"$f":"Dataset[[#This Row],[2027/28 Targeted savings]]+Dataset[[#This Row],[2027/28 From - Total]]","v":0},{"$f":"Dataset[[#This Row],[2028/29 Targeted savings]]+Dataset[[#This Row],[2028/29 From - Total]]","v":0},{"$f":"Dataset[[#This Row],[2029/30 Targeted savings]]+Dataset[[#This Row],[2029/30 From - Total]]","v":0},{"$f":"Dataset[[#This Row],[2026/27 Targeted savings]]","v":0},{"$f":"SUM(Dataset[[#This Row],[2027/28 Targeted savings]],Dataset[[#This Row],[2027/28 From - Total]],Dataset[[#This Row],[2027/28 To - Total]])","v":0},{"$f":"SUM(Dataset[[#This Row],[2028/29 Targeted savings]],Dataset[[#This Row],[2028/29 From - Total]],Dataset[[#This Row],[2028/29 To - Total]])","v":0},{"$f":"SUM(Dataset[[#This Row],[2029/30 Targeted savings]],Dataset[[#This Row],[2029/30 From - Total]],Dataset[[#This Row],[2029/30 To - Total]])","v":0},{"$f":"Dataset[[#This Row],[2026/27 Baseline]]+Dataset[[#This Row],[2026/27 Total change]]","v":0},{"$f":"Dataset[[#This Row],[2027/28 Baseline]]+Dataset[[#This Row],[2027/28 Total change]]","v":0},{"$f":"Dataset[[#This Row],[2028/29 Baseline]]+Dataset[[#This Row],[2028/29 Total change]]","v":0},{"$f":"Dataset[[#This Row],[2029/30 Baseline]]+Dataset[[#This Row],[2029/30 Total change]]","v":0}]
["NAT|Vehicle licences","30|Provincial agencies and funds","2027_28","MTEC2027",30,5,3,33116,596,"30","05","03","033116","000596","30|05|03|000596","01","02","04","43","44","01|02|04|43|44","National","Communications and Digital Technologies","Digital Infrastructure and Technologies","Digital Infrastructure and Broadcasting Technologies","Vehicle licences","Current","Transfers and subsidies","Provinces and municipalities","Provinces","Provincial agencies and funds","Economic development","Economic regulation and infrastructure","NAT",5,10,9,0,0,0,0,0,0,0,0,null,null,null,null,null,null,null,null,null,null,null,null,null,null,null,null,null,null,null,null,null,null,null,null,null,null,null,null,null,null,null,null,null,null,{"$f":"Dataset[[#This Row],[2027/28 From - Spending review Topic 1]]+Dataset[[#This Row],[2027/28 From - Spending review Topic 2]]+Dataset[[#This Row],[2027/28 From - Spending review Topic 3]]+Dataset[[#This Row],[2027/28 From - Spending review Topic 4]]+Dataset[[#This Row],[2027/28 From - Other reallocations]]","v":0},{"$f":"Dataset[[#This Row],[2028/29 From - Spending review Topic 1]]+Dataset[[#This Row],[2028/29 From - Spending review Topic 2]]+Dataset[[#This Row],[2028/29 From - Spending review Topic 3]]+Dataset[[#This Row],[2028/29 From - Spending review Topic 4]]+Dataset[[#This Row],[2028/29 From - Other reallocations]]","v":0},{"$f":"Dataset[[#This Row],[2029/30 From - Spending review Topic 1]]+Dataset[[#This Row],[2029/30 From - Spending review Topic 2]]+Dataset[[#This Row],[2029/30 From - Spending review Topic 3]]+Dataset[[#This Row],[2029/30 From - Spending review Topic 4]]+Dataset[[#This Row],[2029/30 From - Other reallocations]]","v":0},{"$f":"Dataset[[#This Row],[2027/28 To - Spending review Topic 1]]+Dataset[[#This Row],[2027/28 To - Spending review Topic 2]]+Dataset[[#This Row],[2027/28 To - Spending review Topic 3]]+Dataset[[#This Row],[2027/28 To - Spending review Topic 4]]+Dataset[[#This Row],[2027/28 To - Other reallocations]]","v":0},{"$f":"Dataset[[#This Row],[2028/29 To - Spending review Topic 1]]+Dataset[[#This Row],[2028/29 To - Spending review Topic 2]]+Dataset[[#This Row],[2028/29 To - Spending review Topic 3]]+Dataset[[#This Row],[2028/29 To - Spending review Topic 4]]+Dataset[[#This Row],[2028/29 To - Other reallocations]]","v":0},{"$f":"Dataset[[#This Row],[2029/30 To - Spending review Topic 1]]+Dataset[[#This Row],[2029/30 To - Spending review Topic 2]]+Dataset[[#This Row],[2029/30 To - Spending review Topic 3]]+Dataset[[#This Row],[2029/30 To - Spending review Topic 4]]+Dataset[[#This Row],[2029/30 To - Other reallocations]]","v":0},{"$f":"Dataset[[#This Row],[2027/28 Targeted savings]]+Dataset[[#This Row],[2027/28 From - Total]]","v":0},{"$f":"Dataset[[#This Row],[2028/29 Targeted savings]]+Dataset[[#This Row],[2028/29 From - Total]]","v":0},{"$f":"Dataset[[#This Row],[2029/30 Targeted savings]]+Dataset[[#This Row],[2029/30 From - Total]]","v":0},{"$f":"Dataset[[#This Row],[2026/27 Targeted savings]]","v":0},{"$f":"SUM(Dataset[[#This Row],[2027/28 Targeted savings]],Dataset[[#This Row],[2027/28 From - Total]],Dataset[[#This Row],[2027/28 To - Total]])","v":0},{"$f":"SUM(Dataset[[#This Row],[2028/29 Targeted savings]],Dataset[[#This Row],[2028/29 From - Total]],Dataset[[#This Row],[2028/29 To - Total]])","v":0},{"$f":"SUM(Dataset[[#This Row],[2029/30 Targeted savings]],Dataset[[#This Row],[2029/30 From - Total]],Dataset[[#This Row],[2029/30 To - Total]])","v":0},{"$f":"Dataset[[#This Row],[2026/27 Baseline]]+Dataset[[#This Row],[2026/27 Total change]]","v":0},{"$f":"Dataset[[#This Row],[2027/28 Baseline]]+Dataset[[#This Row],[2027/28 Total change]]","v":0},{"$f":"Dataset[[#This Row],[2028/29 Baseline]]+Dataset[[#This Row],[2028/29 Total change]]","v":0},{"$f":"Dataset[[#This Row],[2029/30 Baseline]]+Dataset[[#This Row],[2029/30 Total change]]","v":0}]
["NAT|Universal Service and Access Fund: Broadcasting digital migration","30|Departmental agencies (non-business entities)","2027_28","MTEC2027",30,5,3,33117,597,"30","05","03","033117","000597","30|05|03|000597","01","02","05","46","48","01|02|05|46|48","National","Communications and Digital Technologies","Digital Infrastructure and Technologies","Digital Infrastructure and Broadcasting Technologies","Universal Service and Access Fund: Broadcasting digital migration","Current","Transfers and subsidies","Departmental agencies and accounts","Departmental agencies (non-business entities)","Departmental agencies (non-business entities)","Economic development","Economic regulation and infrastructure","NAT",59406,0,0,0,0,0,0,0,0,0,0,null,null,null,null,null,null,null,null,null,null,null,null,null,null,null,null,null,null,null,null,null,null,null,null,null,null,null,null,null,null,null,null,null,null,{"$f":"Dataset[[#This Row],[2027/28 From - Spending review Topic 1]]+Dataset[[#This Row],[2027/28 From - Spending review Topic 2]]+Dataset[[#This Row],[2027/28 From - Spending review Topic 3]]+Dataset[[#This Row],[2027/28 From - Spending review Topic 4]]+Dataset[[#This Row],[2027/28 From - Other reallocations]]","v":0},{"$f":"Dataset[[#This Row],[2028/29 From - Spending review Topic 1]]+Dataset[[#This Row],[2028/29 From - Spending review Topic 2]]+Dataset[[#This Row],[2028/29 From - Spending review Topic 3]]+Dataset[[#This Row],[2028/29 From - Spending review Topic 4]]+Dataset[[#This Row],[2028/29 From - Other reallocations]]","v":0},{"$f":"Dataset[[#This Row],[2029/30 From - Spending review Topic 1]]+Dataset[[#This Row],[2029/30 From - Spending review Topic 2]]+Dataset[[#This Row],[2029/30 From - Spending review Topic 3]]+Dataset[[#This Row],[2029/30 From - Spending review Topic 4]]+Dataset[[#This Row],[2029/30 From - Other reallocations]]","v":0},{"$f":"Dataset[[#This Row],[2027/28 To - Spending review Topic 1]]+Dataset[[#This Row],[2027/28 To - Spending review Topic 2]]+Dataset[[#This Row],[2027/28 To - Spending review Topic 3]]+Dataset[[#This Row],[2027/28 To - Spending review Topic 4]]+Dataset[[#This Row],[2027/28 To - Other reallocations]]","v":0},{"$f":"Dataset[[#This Row],[2028/29 To - Spending review Topic 1]]+Dataset[[#This Row],[2028/29 To - Spending review Topic 2]]+Dataset[[#This Row],[2028/29 To - Spending review Topic 3]]+Dataset[[#This Row],[2028/29 To - Spending review Topic 4]]+Dataset[[#This Row],[2028/29 To - Other reallocations]]","v":0},{"$f":"Dataset[[#This Row],[2029/30 To - Spending review Topic 1]]+Dataset[[#This Row],[2029/30 To - Spending review Topic 2]]+Dataset[[#This Row],[2029/30 To - Spending review Topic 3]]+Dataset[[#This Row],[2029/30 To - Spending review Topic 4]]+Dataset[[#This Row],[2029/30 To - Other reallocations]]","v":0},{"$f":"Dataset[[#This Row],[2027/28 Targeted savings]]+Dataset[[#This Row],[2027/28 From - Total]]","v":0},{"$f":"Dataset[[#This Row],[2028/29 Targeted savings]]+Dataset[[#This Row],[2028/29 From - Total]]","v":0},{"$f":"Dataset[[#This Row],[2029/30 Targeted savings]]+Dataset[[#This Row],[2029/30 From - Total]]","v":0},{"$f":"Dataset[[#This Row],[2026/27 Targeted savings]]","v":0},{"$f":"SUM(Dataset[[#This Row],[2027/28 Targeted savings]],Dataset[[#This Row],[2027/28 From - Total]],Dataset[[#This Row],[2027/28 To - Total]])","v":0},{"$f":"SUM(Dataset[[#This Row],[2028/29 Targeted savings]],Dataset[[#This Row],[2028/29 From - Total]],Dataset[[#This Row],[2028/29 To - Total]])","v":0},{"$f":"SUM(Dataset[[#This Row],[2029/30 Targeted savings]],Dataset[[#This Row],[2029/30 From - Total]],Dataset[[#This Row],[2029/30 To - Total]])","v":0},{"$f":"Dataset[[#This Row],[2026/27 Baseline]]+Dataset[[#This Row],[2026/27 Total change]]","v":0},{"$f":"Dataset[[#This Row],[2027/28 Baseline]]+Dataset[[#This Row],[2027/28 Total change]]","v":0},{"$f":"Dataset[[#This Row],[2028/29 Baseline]]+Dataset[[#This Row],[2028/29 Total change]]","v":0},{"$f":"Dataset[[#This Row],[2029/30 Baseline]]+Dataset[[#This Row],[2029/30 Total change]]","v":0}]
["NAT|Sentech: Operations","30|Other transfers to public corporations","2027_28","MTEC2027",30,5,3,33118,598,"30","05","03","033118","000598","30|05|03|000598","01","02","08","49","52","01|02|08|49|52","National","Communications and Digital Technologies","Digital Infrastructure and Technologies","Digital Infrastructure and Broadcasting Technologies","Sentech: Operations","Current","Transfers and subsidies","Public corporations and private enterprises","Public corporations","Other transfers to public corporations","Economic development","Economic regulation and infrastructure","NAT",0,0,0,0,700000,700000,0,0,0,0,0,null,null,null,null,null,null,null,null,null,null,null,null,null,null,null,null,null,null,null,null,null,null,null,null,null,null,null,null,null,null,null,null,null,null,{"$f":"Dataset[[#This Row],[2027/28 From - Spending review Topic 1]]+Dataset[[#This Row],[2027/28 From - Spending review Topic 2]]+Dataset[[#This Row],[2027/28 From - Spending review Topic 3]]+Dataset[[#This Row],[2027/28 From - Spending review Topic 4]]+Dataset[[#This Row],[2027/28 From - Other reallocations]]","v":0},{"$f":"Dataset[[#This Row],[2028/29 From - Spending review Topic 1]]+Dataset[[#This Row],[2028/29 From - Spending review Topic 2]]+Dataset[[#This Row],[2028/29 From - Spending review Topic 3]]+Dataset[[#This Row],[2028/29 From - Spending review Topic 4]]+Dataset[[#This Row],[2028/29 From - Other reallocations]]","v":0},{"$f":"Dataset[[#This Row],[2029/30 From - Spending review Topic 1]]+Dataset[[#This Row],[2029/30 From - Spending review Topic 2]]+Dataset[[#This Row],[2029/30 From - Spending review Topic 3]]+Dataset[[#This Row],[2029/30 From - Spending review Topic 4]]+Dataset[[#This Row],[2029/30 From - Other reallocations]]","v":0},{"$f":"Dataset[[#This Row],[2027/28 To - Spending review Topic 1]]+Dataset[[#This Row],[2027/28 To - Spending review Topic 2]]+Dataset[[#This Row],[2027/28 To - Spending review Topic 3]]+Dataset[[#This Row],[2027/28 To - Spending review Topic 4]]+Dataset[[#This Row],[2027/28 To - Other reallocations]]","v":0},{"$f":"Dataset[[#This Row],[2028/29 To - Spending review Topic 1]]+Dataset[[#This Row],[2028/29 To - Spending review Topic 2]]+Dataset[[#This Row],[2028/29 To - Spending review Topic 3]]+Dataset[[#This Row],[2028/29 To - Spending review Topic 4]]+Dataset[[#This Row],[2028/29 To - Other reallocations]]","v":0},{"$f":"Dataset[[#This Row],[2029/30 To - Spending review Topic 1]]+Dataset[[#This Row],[2029/30 To - Spending review Topic 2]]+Dataset[[#This Row],[2029/30 To - Spending review Topic 3]]+Dataset[[#This Row],[2029/30 To - Spending review Topic 4]]+Dataset[[#This Row],[2029/30 To - Other reallocations]]","v":0},{"$f":"Dataset[[#This Row],[2027/28 Targeted savings]]+Dataset[[#This Row],[2027/28 From - Total]]","v":0},{"$f":"Dataset[[#This Row],[2028/29 Targeted savings]]+Dataset[[#This Row],[2028/29 From - Total]]","v":0},{"$f":"Dataset[[#This Row],[2029/30 Targeted savings]]+Dataset[[#This Row],[2029/30 From - Total]]","v":0},{"$f":"Dataset[[#This Row],[2026/27 Targeted savings]]","v":0},{"$f":"SUM(Dataset[[#This Row],[2027/28 Targeted savings]],Dataset[[#This Row],[2027/28 From - Total]],Dataset[[#This Row],[2027/28 To - Total]])","v":0},{"$f":"SUM(Dataset[[#This Row],[2028/29 Targeted savings]],Dataset[[#This Row],[2028/29 From - Total]],Dataset[[#This Row],[2028/29 To - Total]])","v":0},{"$f":"SUM(Dataset[[#This Row],[2029/30 Targeted savings]],Dataset[[#This Row],[2029/30 From - Total]],Dataset[[#This Row],[2029/30 To - Total]])","v":0},{"$f":"Dataset[[#This Row],[2026/27 Baseline]]+Dataset[[#This Row],[2026/27 Total change]]","v":0},{"$f":"Dataset[[#This Row],[2027/28 Baseline]]+Dataset[[#This Row],[2027/28 Total change]]","v":0},{"$f":"Dataset[[#This Row],[2028/29 Baseline]]+Dataset[[#This Row],[2028/29 Total change]]","v":0},{"$f":"Dataset[[#This Row],[2029/30 Baseline]]+Dataset[[#This Row],[2029/30 Total change]]","v":0}]
["NAT|Employee social benefits","30|Social benefits","2027_28","MTEC2027",30,5,3,33119,599,"30","05","03","033119","000599","30|05|03|000599","01","02","10","52","56","01|02|10|52|56","National","Communications and Digital Technologies","Digital Infrastructure and Technologies","Digital Infrastructure and Broadcasting Technologies","Employee social benefits","Current","Transfers and subsidies","Households","Social benefits","Social benefits","Economic development","Economic regulation and infrastructure","NAT",362,22,115,0,133,133,0,0,0,0,0,null,null,null,null,null,null,null,null,null,null,null,null,null,null,null,null,null,null,null,null,null,null,null,null,null,null,null,null,null,null,null,null,null,null,{"$f":"Dataset[[#This Row],[2027/28 From - Spending review Topic 1]]+Dataset[[#This Row],[2027/28 From - Spending review Topic 2]]+Dataset[[#This Row],[2027/28 From - Spending review Topic 3]]+Dataset[[#This Row],[2027/28 From - Spending review Topic 4]]+Dataset[[#This Row],[2027/28 From - Other reallocations]]","v":0},{"$f":"Dataset[[#This Row],[2028/29 From - Spending review Topic 1]]+Dataset[[#This Row],[2028/29 From - Spending review Topic 2]]+Dataset[[#This Row],[2028/29 From - Spending review Topic 3]]+Dataset[[#This Row],[2028/29 From - Spending review Topic 4]]+Dataset[[#This Row],[2028/29 From - Other reallocations]]","v":0},{"$f":"Dataset[[#This Row],[2029/30 From - Spending review Topic 1]]+Dataset[[#This Row],[2029/30 From - Spending review Topic 2]]+Dataset[[#This Row],[2029/30 From - Spending review Topic 3]]+Dataset[[#This Row],[2029/30 From - Spending review Topic 4]]+Dataset[[#This Row],[2029/30 From - Other reallocations]]","v":0},{"$f":"Dataset[[#This Row],[2027/28 To - Spending review Topic 1]]+Dataset[[#This Row],[2027/28 To - Spending review Topic 2]]+Dataset[[#This Row],[2027/28 To - Spending review Topic 3]]+Dataset[[#This Row],[2027/28 To - Spending review Topic 4]]+Dataset[[#This Row],[2027/28 To - Other reallocations]]","v":0},{"$f":"Dataset[[#This Row],[2028/29 To - Spending review Topic 1]]+Dataset[[#This Row],[2028/29 To - Spending review Topic 2]]+Dataset[[#This Row],[2028/29 To - Spending review Topic 3]]+Dataset[[#This Row],[2028/29 To - Spending review Topic 4]]+Dataset[[#This Row],[2028/29 To - Other reallocations]]","v":0},{"$f":"Dataset[[#This Row],[2029/30 To - Spending review Topic 1]]+Dataset[[#This Row],[2029/30 To - Spending review Topic 2]]+Dataset[[#This Row],[2029/30 To - Spending review Topic 3]]+Dataset[[#This Row],[2029/30 To - Spending review Topic 4]]+Dataset[[#This Row],[2029/30 To - Other reallocations]]","v":0},{"$f":"Dataset[[#This Row],[2027/28 Targeted savings]]+Dataset[[#This Row],[2027/28 From - Total]]","v":0},{"$f":"Dataset[[#This Row],[2028/29 Targeted savings]]+Dataset[[#This Row],[2028/29 From - Total]]","v":0},{"$f":"Dataset[[#This Row],[2029/30 Targeted savings]]+Dataset[[#This Row],[2029/30 From - Total]]","v":0},{"$f":"Dataset[[#This Row],[2026/27 Targeted savings]]","v":0},{"$f":"SUM(Dataset[[#This Row],[2027/28 Targeted savings]],Dataset[[#This Row],[2027/28 From - Total]],Dataset[[#This Row],[2027/28 To - Total]])","v":0},{"$f":"SUM(Dataset[[#This Row],[2028/29 Targeted savings]],Dataset[[#This Row],[2028/29 From - Total]],Dataset[[#This Row],[2028/29 To - Total]])","v":0},{"$f":"SUM(Dataset[[#This Row],[2029/30 Targeted savings]],Dataset[[#This Row],[2029/30 From - Total]],Dataset[[#This Row],[2029/30 To - Total]])","v":0},{"$f":"Dataset[[#This Row],[2026/27 Baseline]]+Dataset[[#This Row],[2026/27 Total change]]","v":0},{"$f":"Dataset[[#This Row],[2027/28 Baseline]]+Dataset[[#This Row],[2027/28 Total change]]","v":0},{"$f":"Dataset[[#This Row],[2028/29 Baseline]]+Dataset[[#This Row],[2028/29 Total change]]","v":0},{"$f":"Dataset[[#This Row],[2029/30 Baseline]]+Dataset[[#This Row],[2029/30 Total change]]","v":0}]
["NAT|Sentech: Dual illumination costs relating to the digital migration project","30|Other transfers to public corporations","2027_28","MTEC2027",30,5,3,33120,600,"30","05","03","033120","000600","30|05|03|000600","02","02","08","49","52","02|02|08|49|52","National","Communications and Digital Technologies","Digital Infrastructure and Technologies","Digital Infrastructure and Broadcasting Technologies","Sentech: Dual illumination costs relating to the digital migration project","Capital","Transfers and subsidies","Public corporations and private enterprises","Public corporations","Other transfers to public corporations","Economic development","Economic regulation and infrastructure","NAT",0,0,0,0,189000,189000,0,0,0,0,0,null,null,null,null,null,null,null,null,null,null,null,null,null,null,null,null,null,null,null,null,null,null,null,null,null,null,null,null,null,null,null,null,null,null,{"$f":"Dataset[[#This Row],[2027/28 From - Spending review Topic 1]]+Dataset[[#This Row],[2027/28 From - Spending review Topic 2]]+Dataset[[#This Row],[2027/28 From - Spending review Topic 3]]+Dataset[[#This Row],[2027/28 From - Spending review Topic 4]]+Dataset[[#This Row],[2027/28 From - Other reallocations]]","v":0},{"$f":"Dataset[[#This Row],[2028/29 From - Spending review Topic 1]]+Dataset[[#This Row],[2028/29 From - Spending review Topic 2]]+Dataset[[#This Row],[2028/29 From - Spending review Topic 3]]+Dataset[[#This Row],[2028/29 From - Spending review Topic 4]]+Dataset[[#This Row],[2028/29 From - Other reallocations]]","v":0},{"$f":"Dataset[[#This Row],[2029/30 From - Spending review Topic 1]]+Dataset[[#This Row],[2029/30 From - Spending review Topic 2]]+Dataset[[#This Row],[2029/30 From - Spending review Topic 3]]+Dataset[[#This Row],[2029/30 From - Spending review Topic 4]]+Dataset[[#This Row],[2029/30 From - Other reallocations]]","v":0},{"$f":"Dataset[[#This Row],[2027/28 To - Spending review Topic 1]]+Dataset[[#This Row],[2027/28 To - Spending review Topic 2]]+Dataset[[#This Row],[2027/28 To - Spending review Topic 3]]+Dataset[[#This Row],[2027/28 To - Spending review Topic 4]]+Dataset[[#This Row],[2027/28 To - Other reallocations]]","v":0},{"$f":"Dataset[[#This Row],[2028/29 To - Spending review Topic 1]]+Dataset[[#This Row],[2028/29 To - Spending review Topic 2]]+Dataset[[#This Row],[2028/29 To - Spending review Topic 3]]+Dataset[[#This Row],[2028/29 To - Spending review Topic 4]]+Dataset[[#This Row],[2028/29 To - Other reallocations]]","v":0},{"$f":"Dataset[[#This Row],[2029/30 To - Spending review Topic 1]]+Dataset[[#This Row],[2029/30 To - Spending review Topic 2]]+Dataset[[#This Row],[2029/30 To - Spending review Topic 3]]+Dataset[[#This Row],[2029/30 To - Spending review Topic 4]]+Dataset[[#This Row],[2029/30 To - Other reallocations]]","v":0},{"$f":"Dataset[[#This Row],[2027/28 Targeted savings]]+Dataset[[#This Row],[2027/28 From - Total]]","v":0},{"$f":"Dataset[[#This Row],[2028/29 Targeted savings]]+Dataset[[#This Row],[2028/29 From - Total]]","v":0},{"$f":"Dataset[[#This Row],[2029/30 Targeted savings]]+Dataset[[#This Row],[2029/30 From - Total]]","v":0},{"$f":"Dataset[[#This Row],[2026/27 Targeted savings]]","v":0},{"$f":"SUM(Dataset[[#This Row],[2027/28 Targeted savings]],Dataset[[#This Row],[2027/28 From - Total]],Dataset[[#This Row],[2027/28 To - Total]])","v":0},{"$f":"SUM(Dataset[[#This Row],[2028/29 Targeted savings]],Dataset[[#This Row],[2028/29 From - Total]],Dataset[[#This Row],[2028/29 To - Total]])","v":0},{"$f":"SUM(Dataset[[#This Row],[2029/30 Targeted savings]],Dataset[[#This Row],[2029/30 From - Total]],Dataset[[#This Row],[2029/30 To - Total]])","v":0},{"$f":"Dataset[[#This Row],[2026/27 Baseline]]+Dataset[[#This Row],[2026/27 Total change]]","v":0},{"$f":"Dataset[[#This Row],[2027/28 Baseline]]+Dataset[[#This Row],[2027/28 Total change]]","v":0},{"$f":"Dataset[[#This Row],[2028/29 Baseline]]+Dataset[[#This Row],[2028/29 Total change]]","v":0},{"$f":"Dataset[[#This Row],[2029/30 Baseline]]+Dataset[[#This Row],[2029/30 Total change]]","v":0}]
["NAT|Non-transfer","30|Other machinery and equipment","2027_28","MTEC2027",30,5,3,33121,601,"30","05","03","033121","000601","30|05|03|000601","02","03","12","57","61","02|03|12|57|61","National","Communications and Digital Technologies","Digital Infrastructure and Technologies","Digital Infrastructure and Broadcasting Technologies","Non-transfer","Capital","Payments for capital assets","Machinery and equipment","Other machinery and equipment","Other machinery and equipment","Economic development","Economic regulation and infrastructure","NAT",309,0,0,64,64,64,0,100,104,71,73,null,null,null,null,null,null,null,null,null,null,null,null,null,null,null,null,null,null,null,null,null,null,null,null,null,null,null,null,null,null,null,null,null,null,{"$f":"Dataset[[#This Row],[2027/28 From - Spending review Topic 1]]+Dataset[[#This Row],[2027/28 From - Spending review Topic 2]]+Dataset[[#This Row],[2027/28 From - Spending review Topic 3]]+Dataset[[#This Row],[2027/28 From - Spending review Topic 4]]+Dataset[[#This Row],[2027/28 From - Other reallocations]]","v":0},{"$f":"Dataset[[#This Row],[2028/29 From - Spending review Topic 1]]+Dataset[[#This Row],[2028/29 From - Spending review Topic 2]]+Dataset[[#This Row],[2028/29 From - Spending review Topic 3]]+Dataset[[#This Row],[2028/29 From - Spending review Topic 4]]+Dataset[[#This Row],[2028/29 From - Other reallocations]]","v":0},{"$f":"Dataset[[#This Row],[2029/30 From - Spending review Topic 1]]+Dataset[[#This Row],[2029/30 From - Spending review Topic 2]]+Dataset[[#This Row],[2029/30 From - Spending review Topic 3]]+Dataset[[#This Row],[2029/30 From - Spending review Topic 4]]+Dataset[[#This Row],[2029/30 From - Other reallocations]]","v":0},{"$f":"Dataset[[#This Row],[2027/28 To - Spending review Topic 1]]+Dataset[[#This Row],[2027/28 To - Spending review Topic 2]]+Dataset[[#This Row],[2027/28 To - Spending review Topic 3]]+Dataset[[#This Row],[2027/28 To - Spending review Topic 4]]+Dataset[[#This Row],[2027/28 To - Other reallocations]]","v":0},{"$f":"Dataset[[#This Row],[2028/29 To - Spending review Topic 1]]+Dataset[[#This Row],[2028/29 To - Spending review Topic 2]]+Dataset[[#This Row],[2028/29 To - Spending review Topic 3]]+Dataset[[#This Row],[2028/29 To - Spending review Topic 4]]+Dataset[[#This Row],[2028/29 To - Other reallocations]]","v":0},{"$f":"Dataset[[#This Row],[2029/30 To - Spending review Topic 1]]+Dataset[[#This Row],[2029/30 To - Spending review Topic 2]]+Dataset[[#This Row],[2029/30 To - Spending review Topic 3]]+Dataset[[#This Row],[2029/30 To - Spending review Topic 4]]+Dataset[[#This Row],[2029/30 To - Other reallocations]]","v":0},{"$f":"Dataset[[#This Row],[2027/28 Targeted savings]]+Dataset[[#This Row],[2027/28 From - Total]]","v":0},{"$f":"Dataset[[#This Row],[2028/29 Targeted savings]]+Dataset[[#This Row],[2028/29 From - Total]]","v":0},{"$f":"Dataset[[#This Row],[2029/30 Targeted savings]]+Dataset[[#This Row],[2029/30 From - Total]]","v":0},{"$f":"Dataset[[#This Row],[2026/27 Targeted savings]]","v":0},{"$f":"SUM(Dataset[[#This Row],[2027/28 Targeted savings]],Dataset[[#This Row],[2027/28 From - Total]],Dataset[[#This Row],[2027/28 To - Total]])","v":0},{"$f":"SUM(Dataset[[#This Row],[2028/29 Targeted savings]],Dataset[[#This Row],[2028/29 From - Total]],Dataset[[#This Row],[2028/29 To - Total]])","v":0},{"$f":"SUM(Dataset[[#This Row],[2029/30 Targeted savings]],Dataset[[#This Row],[2029/30 From - Total]],Dataset[[#This Row],[2029/30 To - Total]])","v":0},{"$f":"Dataset[[#This Row],[2026/27 Baseline]]+Dataset[[#This Row],[2026/27 Total change]]","v":100},{"$f":"Dataset[[#This Row],[2027/28 Baseline]]+Dataset[[#This Row],[2027/28 Total change]]","v":104},{"$f":"Dataset[[#This Row],[2028/29 Baseline]]+Dataset[[#This Row],[2028/29 Total change]]","v":71},{"$f":"Dataset[[#This Row],[2029/30 Baseline]]+Dataset[[#This Row],[2029/30 Total change]]","v":73}]
["NAT|Thefts and losses","30|Payments for financial assets","2027_28","MTEC2027",30,5,3,33122,602,"30","05","03","033122","000602","30|05|03|000602","03","04","18","63","67","03|04|18|63|67","National","Communications and Digital Technologies","Digital Infrastructure and Technologies","Digital Infrastructure and Broadcasting Technologies","Thefts and losses","Payments for financial assets","Payments for financial assets","Payments for financial assets","Payments for financial assets","Payments for financial assets","Economic development","Economic regulation and infrastructure","NAT",0,6902,1703,0,0,0,0,0,0,0,0,null,null,null,null,null,null,null,null,null,null,null,null,null,null,null,null,null,null,null,null,null,null,null,null,null,null,null,null,null,null,null,null,null,null,{"$f":"Dataset[[#This Row],[2027/28 From - Spending review Topic 1]]+Dataset[[#This Row],[2027/28 From - Spending review Topic 2]]+Dataset[[#This Row],[2027/28 From - Spending review Topic 3]]+Dataset[[#This Row],[2027/28 From - Spending review Topic 4]]+Dataset[[#This Row],[2027/28 From - Other reallocations]]","v":0},{"$f":"Dataset[[#This Row],[2028/29 From - Spending review Topic 1]]+Dataset[[#This Row],[2028/29 From - Spending review Topic 2]]+Dataset[[#This Row],[2028/29 From - Spending review Topic 3]]+Dataset[[#This Row],[2028/29 From - Spending review Topic 4]]+Dataset[[#This Row],[2028/29 From - Other reallocations]]","v":0},{"$f":"Dataset[[#This Row],[2029/30 From - Spending review Topic 1]]+Dataset[[#This Row],[2029/30 From - Spending review Topic 2]]+Dataset[[#This Row],[2029/30 From - Spending review Topic 3]]+Dataset[[#This Row],[2029/30 From - Spending review Topic 4]]+Dataset[[#This Row],[2029/30 From - Other reallocations]]","v":0},{"$f":"Dataset[[#This Row],[2027/28 To - Spending review Topic 1]]+Dataset[[#This Row],[2027/28 To - Spending review Topic 2]]+Dataset[[#This Row],[2027/28 To - Spending review Topic 3]]+Dataset[[#This Row],[2027/28 To - Spending review Topic 4]]+Dataset[[#This Row],[2027/28 To - Other reallocations]]","v":0},{"$f":"Dataset[[#This Row],[2028/29 To - Spending review Topic 1]]+Dataset[[#This Row],[2028/29 To - Spending review Topic 2]]+Dataset[[#This Row],[2028/29 To - Spending review Topic 3]]+Dataset[[#This Row],[2028/29 To - Spending review Topic 4]]+Dataset[[#This Row],[2028/29 To - Other reallocations]]","v":0},{"$f":"Dataset[[#This Row],[2029/30 To - Spending review Topic 1]]+Dataset[[#This Row],[2029/30 To - Spending review Topic 2]]+Dataset[[#This Row],[2029/30 To - Spending review Topic 3]]+Dataset[[#This Row],[2029/30 To - Spending review Topic 4]]+Dataset[[#This Row],[2029/30 To - Other reallocations]]","v":0},{"$f":"Dataset[[#This Row],[2027/28 Targeted savings]]+Dataset[[#This Row],[2027/28 From - Total]]","v":0},{"$f":"Dataset[[#This Row],[2028/29 Targeted savings]]+Dataset[[#This Row],[2028/29 From - Total]]","v":0},{"$f":"Dataset[[#This Row],[2029/30 Targeted savings]]+Dataset[[#This Row],[2029/30 From - Total]]","v":0},{"$f":"Dataset[[#This Row],[2026/27 Targeted savings]]","v":0},{"$f":"SUM(Dataset[[#This Row],[2027/28 Targeted savings]],Dataset[[#This Row],[2027/28 From - Total]],Dataset[[#This Row],[2027/28 To - Total]])","v":0},{"$f":"SUM(Dataset[[#This Row],[2028/29 Targeted savings]],Dataset[[#This Row],[2028/29 From - Total]],Dataset[[#This Row],[2028/29 To - Total]])","v":0},{"$f":"SUM(Dataset[[#This Row],[2029/30 Targeted savings]],Dataset[[#This Row],[2029/30 From - Total]],Dataset[[#This Row],[2029/30 To - Total]])","v":0},{"$f":"Dataset[[#This Row],[2026/27 Baseline]]+Dataset[[#This Row],[2026/27 Total change]]","v":0},{"$f":"Dataset[[#This Row],[2027/28 Baseline]]+Dataset[[#This Row],[2027/28 Total change]]","v":0},{"$f":"Dataset[[#This Row],[2028/29 Baseline]]+Dataset[[#This Row],[2028/29 Total change]]","v":0},{"$f":"Dataset[[#This Row],[2029/30 Baseline]]+Dataset[[#This Row],[2029/30 Total change]]","v":0}]
["NAT|Non-transfer","30|Salaries and wages","2027_28","MTEC2027",30,6,1,33123,603,"30","06","01","033123","000603","30|06|01|000603","01","01","01","01","01","01|01|01|01|01","National","Communications and Digital Technologies","Digital Society and Economy","Programme Management for Digital Society and Economy","Non-transfer","Current","Current payments","Compensation of employees","Salaries and wages","Salaries and wages","Economic development","Economic regulation and infrastructure","NAT",1989,2068,1607,2306,1606,1606,0,2941,2256,2326,2396,null,null,null,null,null,null,null,null,null,null,null,null,null,null,null,null,null,null,null,null,null,null,null,null,null,null,null,null,null,null,null,null,null,null,{"$f":"Dataset[[#This Row],[2027/28 From - Spending review Topic 1]]+Dataset[[#This Row],[2027/28 From - Spending review Topic 2]]+Dataset[[#This Row],[2027/28 From - Spending review Topic 3]]+Dataset[[#This Row],[2027/28 From - Spending review Topic 4]]+Dataset[[#This Row],[2027/28 From - Other reallocations]]","v":0},{"$f":"Dataset[[#This Row],[2028/29 From - Spending review Topic 1]]+Dataset[[#This Row],[2028/29 From - Spending review Topic 2]]+Dataset[[#This Row],[2028/29 From - Spending review Topic 3]]+Dataset[[#This Row],[2028/29 From - Spending review Topic 4]]+Dataset[[#This Row],[2028/29 From - Other reallocations]]","v":0},{"$f":"Dataset[[#This Row],[2029/30 From - Spending review Topic 1]]+Dataset[[#This Row],[2029/30 From - Spending review Topic 2]]+Dataset[[#This Row],[2029/30 From - Spending review Topic 3]]+Dataset[[#This Row],[2029/30 From - Spending review Topic 4]]+Dataset[[#This Row],[2029/30 From - Other reallocations]]","v":0},{"$f":"Dataset[[#This Row],[2027/28 To - Spending review Topic 1]]+Dataset[[#This Row],[2027/28 To - Spending review Topic 2]]+Dataset[[#This Row],[2027/28 To - Spending review Topic 3]]+Dataset[[#This Row],[2027/28 To - Spending review Topic 4]]+Dataset[[#This Row],[2027/28 To - Other reallocations]]","v":0},{"$f":"Dataset[[#This Row],[2028/29 To - Spending review Topic 1]]+Dataset[[#This Row],[2028/29 To - Spending review Topic 2]]+Dataset[[#This Row],[2028/29 To - Spending review Topic 3]]+Dataset[[#This Row],[2028/29 To - Spending review Topic 4]]+Dataset[[#This Row],[2028/29 To - Other reallocations]]","v":0},{"$f":"Dataset[[#This Row],[2029/30 To - Spending review Topic 1]]+Dataset[[#This Row],[2029/30 To - Spending review Topic 2]]+Dataset[[#This Row],[2029/30 To - Spending review Topic 3]]+Dataset[[#This Row],[2029/30 To - Spending review Topic 4]]+Dataset[[#This Row],[2029/30 To - Other reallocations]]","v":0},{"$f":"Dataset[[#This Row],[2027/28 Targeted savings]]+Dataset[[#This Row],[2027/28 From - Total]]","v":0},{"$f":"Dataset[[#This Row],[2028/29 Targeted savings]]+Dataset[[#This Row],[2028/29 From - Total]]","v":0},{"$f":"Dataset[[#This Row],[2029/30 Targeted savings]]+Dataset[[#This Row],[2029/30 From - Total]]","v":0},{"$f":"Dataset[[#This Row],[2026/27 Targeted savings]]","v":0},{"$f":"SUM(Dataset[[#This Row],[2027/28 Targeted savings]],Dataset[[#This Row],[2027/28 From - Total]],Dataset[[#This Row],[2027/28 To - Total]])","v":0},{"$f":"SUM(Dataset[[#This Row],[2028/29 Targeted savings]],Dataset[[#This Row],[2028/29 From - Total]],Dataset[[#This Row],[2028/29 To - Total]])","v":0},{"$f":"SUM(Dataset[[#This Row],[2029/30 Targeted savings]],Dataset[[#This Row],[2029/30 From - Total]],Dataset[[#This Row],[2029/30 To - Total]])","v":0},{"$f":"Dataset[[#This Row],[2026/27 Baseline]]+Dataset[[#This Row],[2026/27 Total change]]","v":2941},{"$f":"Dataset[[#This Row],[2027/28 Baseline]]+Dataset[[#This Row],[2027/28 Total change]]","v":2256},{"$f":"Dataset[[#This Row],[2028/29 Baseline]]+Dataset[[#This Row],[2028/29 Total change]]","v":2326},{"$f":"Dataset[[#This Row],[2029/30 Baseline]]+Dataset[[#This Row],[2029/30 Total change]]","v":2396}]
["NAT|Non-transfer","30|Social contributions","2027_28","MTEC2027",30,6,1,33124,604,"30","06","01","033124","000604","30|06|01|000604","01","01","01","02","02","01|01|01|02|02","National","Communications and Digital Technologies","Digital Society and Economy","Programme Management for Digital Society and Economy","Non-transfer","Current","Current payments","Compensation of employees","Social contributions","Social contributions","Economic development","Economic regulation and infrastructure","NAT",243,256,161,285,185,185,0,235,246,254,262,null,null,null,null,null,null,null,null,null,null,null,null,null,null,null,null,null,null,null,null,null,null,null,null,null,null,null,null,null,null,null,null,null,null,{"$f":"Dataset[[#This Row],[2027/28 From - Spending review Topic 1]]+Dataset[[#This Row],[2027/28 From - Spending review Topic 2]]+Dataset[[#This Row],[2027/28 From - Spending review Topic 3]]+Dataset[[#This Row],[2027/28 From - Spending review Topic 4]]+Dataset[[#This Row],[2027/28 From - Other reallocations]]","v":0},{"$f":"Dataset[[#This Row],[2028/29 From - Spending review Topic 1]]+Dataset[[#This Row],[2028/29 From - Spending review Topic 2]]+Dataset[[#This Row],[2028/29 From - Spending review Topic 3]]+Dataset[[#This Row],[2028/29 From - Spending review Topic 4]]+Dataset[[#This Row],[2028/29 From - Other reallocations]]","v":0},{"$f":"Dataset[[#This Row],[2029/30 From - Spending review Topic 1]]+Dataset[[#This Row],[2029/30 From - Spending review Topic 2]]+Dataset[[#This Row],[2029/30 From - Spending review Topic 3]]+Dataset[[#This Row],[2029/30 From - Spending review Topic 4]]+Dataset[[#This Row],[2029/30 From - Other reallocations]]","v":0},{"$f":"Dataset[[#This Row],[2027/28 To - Spending review Topic 1]]+Dataset[[#This Row],[2027/28 To - Spending review Topic 2]]+Dataset[[#This Row],[2027/28 To - Spending review Topic 3]]+Dataset[[#This Row],[2027/28 To - Spending review Topic 4]]+Dataset[[#This Row],[2027/28 To - Other reallocations]]","v":0},{"$f":"Dataset[[#This Row],[2028/29 To - Spending review Topic 1]]+Dataset[[#This Row],[2028/29 To - Spending review Topic 2]]+Dataset[[#This Row],[2028/29 To - Spending review Topic 3]]+Dataset[[#This Row],[2028/29 To - Spending review Topic 4]]+Dataset[[#This Row],[2028/29 To - Other reallocations]]","v":0},{"$f":"Dataset[[#This Row],[2029/30 To - Spending review Topic 1]]+Dataset[[#This Row],[2029/30 To - Spending review Topic 2]]+Dataset[[#This Row],[2029/30 To - Spending review Topic 3]]+Dataset[[#This Row],[2029/30 To - Spending review Topic 4]]+Dataset[[#This Row],[2029/30 To - Other reallocations]]","v":0},{"$f":"Dataset[[#This Row],[2027/28 Targeted savings]]+Dataset[[#This Row],[2027/28 From - Total]]","v":0},{"$f":"Dataset[[#This Row],[2028/29 Targeted savings]]+Dataset[[#This Row],[2028/29 From - Total]]","v":0},{"$f":"Dataset[[#This Row],[2029/30 Targeted savings]]+Dataset[[#This Row],[2029/30 From - Total]]","v":0},{"$f":"Dataset[[#This Row],[2026/27 Targeted savings]]","v":0},{"$f":"SUM(Dataset[[#This Row],[2027/28 Targeted savings]],Dataset[[#This Row],[2027/28 From - Total]],Dataset[[#This Row],[2027/28 To - Total]])","v":0},{"$f":"SUM(Dataset[[#This Row],[2028/29 Targeted savings]],Dataset[[#This Row],[2028/29 From - Total]],Dataset[[#This Row],[2028/29 To - Total]])","v":0},{"$f":"SUM(Dataset[[#This Row],[2029/30 Targeted savings]],Dataset[[#This Row],[2029/30 From - Total]],Dataset[[#This Row],[2029/30 To - Total]])","v":0},{"$f":"Dataset[[#This Row],[2026/27 Baseline]]+Dataset[[#This Row],[2026/27 Total change]]","v":235},{"$f":"Dataset[[#This Row],[2027/28 Baseline]]+Dataset[[#This Row],[2027/28 Total change]]","v":246},{"$f":"Dataset[[#This Row],[2028/29 Baseline]]+Dataset[[#This Row],[2028/29 Total change]]","v":254},{"$f":"Dataset[[#This Row],[2029/30 Baseline]]+Dataset[[#This Row],[2029/30 Total change]]","v":262}]
["NAT|Non-transfer","30|Administrative fees","2027_28","MTEC2027",30,6,1,33125,605,"30","06","01","033125","000605","30|06|01|000605","01","01","02","03","03","01|01|02|03|03","National","Communications and Digital Technologies","Digital Society and Economy","Programme Management for Digital Society and Economy","Non-transfer","Current","Current payments","Goods and services","Administrative fees","Administrative fees","Economic development","Economic regulation and infrastructure","NAT",2,4,17,15,15,15,0,25,26,0,0,null,null,null,null,null,null,null,null,null,null,null,null,null,null,null,null,null,null,null,null,null,null,null,null,null,null,null,null,null,null,null,null,null,null,{"$f":"Dataset[[#This Row],[2027/28 From - Spending review Topic 1]]+Dataset[[#This Row],[2027/28 From - Spending review Topic 2]]+Dataset[[#This Row],[2027/28 From - Spending review Topic 3]]+Dataset[[#This Row],[2027/28 From - Spending review Topic 4]]+Dataset[[#This Row],[2027/28 From - Other reallocations]]","v":0},{"$f":"Dataset[[#This Row],[2028/29 From - Spending review Topic 1]]+Dataset[[#This Row],[2028/29 From - Spending review Topic 2]]+Dataset[[#This Row],[2028/29 From - Spending review Topic 3]]+Dataset[[#This Row],[2028/29 From - Spending review Topic 4]]+Dataset[[#This Row],[2028/29 From - Other reallocations]]","v":0},{"$f":"Dataset[[#This Row],[2029/30 From - Spending review Topic 1]]+Dataset[[#This Row],[2029/30 From - Spending review Topic 2]]+Dataset[[#This Row],[2029/30 From - Spending review Topic 3]]+Dataset[[#This Row],[2029/30 From - Spending review Topic 4]]+Dataset[[#This Row],[2029/30 From - Other reallocations]]","v":0},{"$f":"Dataset[[#This Row],[2027/28 To - Spending review Topic 1]]+Dataset[[#This Row],[2027/28 To - Spending review Topic 2]]+Dataset[[#This Row],[2027/28 To - Spending review Topic 3]]+Dataset[[#This Row],[2027/28 To - Spending review Topic 4]]+Dataset[[#This Row],[2027/28 To - Other reallocations]]","v":0},{"$f":"Dataset[[#This Row],[2028/29 To - Spending review Topic 1]]+Dataset[[#This Row],[2028/29 To - Spending review Topic 2]]+Dataset[[#This Row],[2028/29 To - Spending review Topic 3]]+Dataset[[#This Row],[2028/29 To - Spending review Topic 4]]+Dataset[[#This Row],[2028/29 To - Other reallocations]]","v":0},{"$f":"Dataset[[#This Row],[2029/30 To - Spending review Topic 1]]+Dataset[[#This Row],[2029/30 To - Spending review Topic 2]]+Dataset[[#This Row],[2029/30 To - Spending review Topic 3]]+Dataset[[#This Row],[2029/30 To - Spending review Topic 4]]+Dataset[[#This Row],[2029/30 To - Other reallocations]]","v":0},{"$f":"Dataset[[#This Row],[2027/28 Targeted savings]]+Dataset[[#This Row],[2027/28 From - Total]]","v":0},{"$f":"Dataset[[#This Row],[2028/29 Targeted savings]]+Dataset[[#This Row],[2028/29 From - Total]]","v":0},{"$f":"Dataset[[#This Row],[2029/30 Targeted savings]]+Dataset[[#This Row],[2029/30 From - Total]]","v":0},{"$f":"Dataset[[#This Row],[2026/27 Targeted savings]]","v":0},{"$f":"SUM(Dataset[[#This Row],[2027/28 Targeted savings]],Dataset[[#This Row],[2027/28 From - Total]],Dataset[[#This Row],[2027/28 To - Total]])","v":0},{"$f":"SUM(Dataset[[#This Row],[2028/29 Targeted savings]],Dataset[[#This Row],[2028/29 From - Total]],Dataset[[#This Row],[2028/29 To - Total]])","v":0},{"$f":"SUM(Dataset[[#This Row],[2029/30 Targeted savings]],Dataset[[#This Row],[2029/30 From - Total]],Dataset[[#This Row],[2029/30 To - Total]])","v":0},{"$f":"Dataset[[#This Row],[2026/27 Baseline]]+Dataset[[#This Row],[2026/27 Total change]]","v":25},{"$f":"Dataset[[#This Row],[2027/28 Baseline]]+Dataset[[#This Row],[2027/28 Total change]]","v":26},{"$f":"Dataset[[#This Row],[2028/29 Baseline]]+Dataset[[#This Row],[2028/29 Total change]]","v":0},{"$f":"Dataset[[#This Row],[2029/30 Baseline]]+Dataset[[#This Row],[2029/30 Total change]]","v":0}]
["NAT|Non-transfer","30|Minor assets","2027_28","MTEC2027",30,6,1,33126,606,"30","06","01","033126","000606","30|06|01|000606","01","01","02","05","05","01|01|02|05|05","National","Communications and Digital Technologies","Digital Society and Economy","Programme Management for Digital Society and Economy","Non-transfer","Current","Current payments","Goods and services","Minor assets","Minor assets","Economic development","Economic regulation and infrastructure","NAT",0,3,0,0,0,0,0,20,41,42,43,null,null,null,null,null,null,null,null,null,null,null,null,null,null,null,null,null,null,null,null,null,null,null,null,null,null,null,null,null,null,null,null,null,null,{"$f":"Dataset[[#This Row],[2027/28 From - Spending review Topic 1]]+Dataset[[#This Row],[2027/28 From - Spending review Topic 2]]+Dataset[[#This Row],[2027/28 From - Spending review Topic 3]]+Dataset[[#This Row],[2027/28 From - Spending review Topic 4]]+Dataset[[#This Row],[2027/28 From - Other reallocations]]","v":0},{"$f":"Dataset[[#This Row],[2028/29 From - Spending review Topic 1]]+Dataset[[#This Row],[2028/29 From - Spending review Topic 2]]+Dataset[[#This Row],[2028/29 From - Spending review Topic 3]]+Dataset[[#This Row],[2028/29 From - Spending review Topic 4]]+Dataset[[#This Row],[2028/29 From - Other reallocations]]","v":0},{"$f":"Dataset[[#This Row],[2029/30 From - Spending review Topic 1]]+Dataset[[#This Row],[2029/30 From - Spending review Topic 2]]+Dataset[[#This Row],[2029/30 From - Spending review Topic 3]]+Dataset[[#This Row],[2029/30 From - Spending review Topic 4]]+Dataset[[#This Row],[2029/30 From - Other reallocations]]","v":0},{"$f":"Dataset[[#This Row],[2027/28 To - Spending review Topic 1]]+Dataset[[#This Row],[2027/28 To - Spending review Topic 2]]+Dataset[[#This Row],[2027/28 To - Spending review Topic 3]]+Dataset[[#This Row],[2027/28 To - Spending review Topic 4]]+Dataset[[#This Row],[2027/28 To - Other reallocations]]","v":0},{"$f":"Dataset[[#This Row],[2028/29 To - Spending review Topic 1]]+Dataset[[#This Row],[2028/29 To - Spending review Topic 2]]+Dataset[[#This Row],[2028/29 To - Spending review Topic 3]]+Dataset[[#This Row],[2028/29 To - Spending review Topic 4]]+Dataset[[#This Row],[2028/29 To - Other reallocations]]","v":0},{"$f":"Dataset[[#This Row],[2029/30 To - Spending review Topic 1]]+Dataset[[#This Row],[2029/30 To - Spending review Topic 2]]+Dataset[[#This Row],[2029/30 To - Spending review Topic 3]]+Dataset[[#This Row],[2029/30 To - Spending review Topic 4]]+Dataset[[#This Row],[2029/30 To - Other reallocations]]","v":0},{"$f":"Dataset[[#This Row],[2027/28 Targeted savings]]+Dataset[[#This Row],[2027/28 From - Total]]","v":0},{"$f":"Dataset[[#This Row],[2028/29 Targeted savings]]+Dataset[[#This Row],[2028/29 From - Total]]","v":0},{"$f":"Dataset[[#This Row],[2029/30 Targeted savings]]+Dataset[[#This Row],[2029/30 From - Total]]","v":0},{"$f":"Dataset[[#This Row],[2026/27 Targeted savings]]","v":0},{"$f":"SUM(Dataset[[#This Row],[2027/28 Targeted savings]],Dataset[[#This Row],[2027/28 From - Total]],Dataset[[#This Row],[2027/28 To - Total]])","v":0},{"$f":"SUM(Dataset[[#This Row],[2028/29 Targeted savings]],Dataset[[#This Row],[2028/29 From - Total]],Dataset[[#This Row],[2028/29 To - Total]])","v":0},{"$f":"SUM(Dataset[[#This Row],[2029/30 Targeted savings]],Dataset[[#This Row],[2029/30 From - Total]],Dataset[[#This Row],[2029/30 To - Total]])","v":0},{"$f":"Dataset[[#This Row],[2026/27 Baseline]]+Dataset[[#This Row],[2026/27 Total change]]","v":20},{"$f":"Dataset[[#This Row],[2027/28 Baseline]]+Dataset[[#This Row],[2027/28 Total change]]","v":41},{"$f":"Dataset[[#This Row],[2028/29 Baseline]]+Dataset[[#This Row],[2028/29 Total change]]","v":42},{"$f":"Dataset[[#This Row],[2029/30 Baseline]]+Dataset[[#This Row],[2029/30 Total change]]","v":43}]
["NAT|Non-transfer","30|Bursaries: Employees","2027_28","MTEC2027",30,6,1,33127,607,"30","06","01","033127","000607","30|06|01|000607","01","01","02","07","07","01|01|02|07|07","National","Communications and Digital Technologies","Digital Society and Economy","Programme Management for Digital Society and Economy","Non-transfer","Current","Current payments","Goods and services","Bursaries: Employees","Bursaries: Employees","Economic development","Economic regulation and infrastructure","NAT",0,94,8,10,10,10,0,20,91,94,97,null,null,null,null,null,null,null,null,null,null,null,null,null,null,null,null,null,null,null,null,null,null,null,null,null,null,null,null,null,null,null,null,null,null,{"$f":"Dataset[[#This Row],[2027/28 From - Spending review Topic 1]]+Dataset[[#This Row],[2027/28 From - Spending review Topic 2]]+Dataset[[#This Row],[2027/28 From - Spending review Topic 3]]+Dataset[[#This Row],[2027/28 From - Spending review Topic 4]]+Dataset[[#This Row],[2027/28 From - Other reallocations]]","v":0},{"$f":"Dataset[[#This Row],[2028/29 From - Spending review Topic 1]]+Dataset[[#This Row],[2028/29 From - Spending review Topic 2]]+Dataset[[#This Row],[2028/29 From - Spending review Topic 3]]+Dataset[[#This Row],[2028/29 From - Spending review Topic 4]]+Dataset[[#This Row],[2028/29 From - Other reallocations]]","v":0},{"$f":"Dataset[[#This Row],[2029/30 From - Spending review Topic 1]]+Dataset[[#This Row],[2029/30 From - Spending review Topic 2]]+Dataset[[#This Row],[2029/30 From - Spending review Topic 3]]+Dataset[[#This Row],[2029/30 From - Spending review Topic 4]]+Dataset[[#This Row],[2029/30 From - Other reallocations]]","v":0},{"$f":"Dataset[[#This Row],[2027/28 To - Spending review Topic 1]]+Dataset[[#This Row],[2027/28 To - Spending review Topic 2]]+Dataset[[#This Row],[2027/28 To - Spending review Topic 3]]+Dataset[[#This Row],[2027/28 To - Spending review Topic 4]]+Dataset[[#This Row],[2027/28 To - Other reallocations]]","v":0},{"$f":"Dataset[[#This Row],[2028/29 To - Spending review Topic 1]]+Dataset[[#This Row],[2028/29 To - Spending review Topic 2]]+Dataset[[#This Row],[2028/29 To - Spending review Topic 3]]+Dataset[[#This Row],[2028/29 To - Spending review Topic 4]]+Dataset[[#This Row],[2028/29 To - Other reallocations]]","v":0},{"$f":"Dataset[[#This Row],[2029/30 To - Spending review Topic 1]]+Dataset[[#This Row],[2029/30 To - Spending review Topic 2]]+Dataset[[#This Row],[2029/30 To - Spending review Topic 3]]+Dataset[[#This Row],[2029/30 To - Spending review Topic 4]]+Dataset[[#This Row],[2029/30 To - Other reallocations]]","v":0},{"$f":"Dataset[[#This Row],[2027/28 Targeted savings]]+Dataset[[#This Row],[2027/28 From - Total]]","v":0},{"$f":"Dataset[[#This Row],[2028/29 Targeted savings]]+Dataset[[#This Row],[2028/29 From - Total]]","v":0},{"$f":"Dataset[[#This Row],[2029/30 Targeted savings]]+Dataset[[#This Row],[2029/30 From - Total]]","v":0},{"$f":"Dataset[[#This Row],[2026/27 Targeted savings]]","v":0},{"$f":"SUM(Dataset[[#This Row],[2027/28 Targeted savings]],Dataset[[#This Row],[2027/28 From - Total]],Dataset[[#This Row],[2027/28 To - Total]])","v":0},{"$f":"SUM(Dataset[[#This Row],[2028/29 Targeted savings]],Dataset[[#This Row],[2028/29 From - Total]],Dataset[[#This Row],[2028/29 To - Total]])","v":0},{"$f":"SUM(Dataset[[#This Row],[2029/30 Targeted savings]],Dataset[[#This Row],[2029/30 From - Total]],Dataset[[#This Row],[2029/30 To - Total]])","v":0},{"$f":"Dataset[[#This Row],[2026/27 Baseline]]+Dataset[[#This Row],[2026/27 Total change]]","v":20},{"$f":"Dataset[[#This Row],[2027/28 Baseline]]+Dataset[[#This Row],[2027/28 Total change]]","v":91},{"$f":"Dataset[[#This Row],[2028/29 Baseline]]+Dataset[[#This Row],[2028/29 Total change]]","v":94},{"$f":"Dataset[[#This Row],[2029/30 Baseline]]+Dataset[[#This Row],[2029/30 Total change]]","v":97}]
["NAT|Non-transfer","30|Catering: Departmental activities","2027_28","MTEC2027",30,6,1,33128,608,"30","06","01","033128","000608","30|06|01|000608","01","01","02","08","08","01|01|02|08|08","National","Communications and Digital Technologies","Digital Society and Economy","Programme Management for Digital Society and Economy","Non-transfer","Current","Current payments","Goods and services","Catering: Departmental activities","Catering: Departmental activities","Economic development","Economic regulation and infrastructure","NAT",2,1,0,0,0,0,0,0,55,57,59,null,null,null,null,null,null,null,null,null,null,null,null,null,null,null,null,null,null,null,null,null,null,null,null,null,null,null,null,null,null,null,null,null,null,{"$f":"Dataset[[#This Row],[2027/28 From - Spending review Topic 1]]+Dataset[[#This Row],[2027/28 From - Spending review Topic 2]]+Dataset[[#This Row],[2027/28 From - Spending review Topic 3]]+Dataset[[#This Row],[2027/28 From - Spending review Topic 4]]+Dataset[[#This Row],[2027/28 From - Other reallocations]]","v":0},{"$f":"Dataset[[#This Row],[2028/29 From - Spending review Topic 1]]+Dataset[[#This Row],[2028/29 From - Spending review Topic 2]]+Dataset[[#This Row],[2028/29 From - Spending review Topic 3]]+Dataset[[#This Row],[2028/29 From - Spending review Topic 4]]+Dataset[[#This Row],[2028/29 From - Other reallocations]]","v":0},{"$f":"Dataset[[#This Row],[2029/30 From - Spending review Topic 1]]+Dataset[[#This Row],[2029/30 From - Spending review Topic 2]]+Dataset[[#This Row],[2029/30 From - Spending review Topic 3]]+Dataset[[#This Row],[2029/30 From - Spending review Topic 4]]+Dataset[[#This Row],[2029/30 From - Other reallocations]]","v":0},{"$f":"Dataset[[#This Row],[2027/28 To - Spending review Topic 1]]+Dataset[[#This Row],[2027/28 To - Spending review Topic 2]]+Dataset[[#This Row],[2027/28 To - Spending review Topic 3]]+Dataset[[#This Row],[2027/28 To - Spending review Topic 4]]+Dataset[[#This Row],[2027/28 To - Other reallocations]]","v":0},{"$f":"Dataset[[#This Row],[2028/29 To - Spending review Topic 1]]+Dataset[[#This Row],[2028/29 To - Spending review Topic 2]]+Dataset[[#This Row],[2028/29 To - Spending review Topic 3]]+Dataset[[#This Row],[2028/29 To - Spending review Topic 4]]+Dataset[[#This Row],[2028/29 To - Other reallocations]]","v":0},{"$f":"Dataset[[#This Row],[2029/30 To - Spending review Topic 1]]+Dataset[[#This Row],[2029/30 To - Spending review Topic 2]]+Dataset[[#This Row],[2029/30 To - Spending review Topic 3]]+Dataset[[#This Row],[2029/30 To - Spending review Topic 4]]+Dataset[[#This Row],[2029/30 To - Other reallocations]]","v":0},{"$f":"Dataset[[#This Row],[2027/28 Targeted savings]]+Dataset[[#This Row],[2027/28 From - Total]]","v":0},{"$f":"Dataset[[#This Row],[2028/29 Targeted savings]]+Dataset[[#This Row],[2028/29 From - Total]]","v":0},{"$f":"Dataset[[#This Row],[2029/30 Targeted savings]]+Dataset[[#This Row],[2029/30 From - Total]]","v":0},{"$f":"Dataset[[#This Row],[2026/27 Targeted savings]]","v":0},{"$f":"SUM(Dataset[[#This Row],[2027/28 Targeted savings]],Dataset[[#This Row],[2027/28 From - Total]],Dataset[[#This Row],[2027/28 To - Total]])","v":0},{"$f":"SUM(Dataset[[#This Row],[2028/29 Targeted savings]],Dataset[[#This Row],[2028/29 From - Total]],Dataset[[#This Row],[2028/29 To - Total]])","v":0},{"$f":"SUM(Dataset[[#This Row],[2029/30 Targeted savings]],Dataset[[#This Row],[2029/30 From - Total]],Dataset[[#This Row],[2029/30 To - Total]])","v":0},{"$f":"Dataset[[#This Row],[2026/27 Baseline]]+Dataset[[#This Row],[2026/27 Total change]]","v":0},{"$f":"Dataset[[#This Row],[2027/28 Baseline]]+Dataset[[#This Row],[2027/28 Total change]]","v":55},{"$f":"Dataset[[#This Row],[2028/29 Baseline]]+Dataset[[#This Row],[2028/29 Total change]]","v":57},{"$f":"Dataset[[#This Row],[2029/30 Baseline]]+Dataset[[#This Row],[2029/30 Total change]]","v":59}]
["NAT|Non-transfer","30|Communication (G&S)","2027_28","MTEC2027",30,6,1,33129,609,"30","06","01","033129","000609","30|06|01|000609","01","01","02","09","09","01|01|02|09|09","National","Communications and Digital Technologies","Digital Society and Economy","Programme Management for Digital Society and Economy","Non-transfer","Current","Current payments","Goods and services","Communication (G&S)","Communication (G&S)","Economic development","Economic regulation and infrastructure","NAT",37,54,78,67,67,67,0,50,113,116,119,null,null,null,null,null,null,null,null,null,null,null,null,null,null,null,null,null,null,null,null,null,null,null,null,null,null,null,null,null,null,null,null,null,null,{"$f":"Dataset[[#This Row],[2027/28 From - Spending review Topic 1]]+Dataset[[#This Row],[2027/28 From - Spending review Topic 2]]+Dataset[[#This Row],[2027/28 From - Spending review Topic 3]]+Dataset[[#This Row],[2027/28 From - Spending review Topic 4]]+Dataset[[#This Row],[2027/28 From - Other reallocations]]","v":0},{"$f":"Dataset[[#This Row],[2028/29 From - Spending review Topic 1]]+Dataset[[#This Row],[2028/29 From - Spending review Topic 2]]+Dataset[[#This Row],[2028/29 From - Spending review Topic 3]]+Dataset[[#This Row],[2028/29 From - Spending review Topic 4]]+Dataset[[#This Row],[2028/29 From - Other reallocations]]","v":0},{"$f":"Dataset[[#This Row],[2029/30 From - Spending review Topic 1]]+Dataset[[#This Row],[2029/30 From - Spending review Topic 2]]+Dataset[[#This Row],[2029/30 From - Spending review Topic 3]]+Dataset[[#This Row],[2029/30 From - Spending review Topic 4]]+Dataset[[#This Row],[2029/30 From - Other reallocations]]","v":0},{"$f":"Dataset[[#This Row],[2027/28 To - Spending review Topic 1]]+Dataset[[#This Row],[2027/28 To - Spending review Topic 2]]+Dataset[[#This Row],[2027/28 To - Spending review Topic 3]]+Dataset[[#This Row],[2027/28 To - Spending review Topic 4]]+Dataset[[#This Row],[2027/28 To - Other reallocations]]","v":0},{"$f":"Dataset[[#This Row],[2028/29 To - Spending review Topic 1]]+Dataset[[#This Row],[2028/29 To - Spending review Topic 2]]+Dataset[[#This Row],[2028/29 To - Spending review Topic 3]]+Dataset[[#This Row],[2028/29 To - Spending review Topic 4]]+Dataset[[#This Row],[2028/29 To - Other reallocations]]","v":0},{"$f":"Dataset[[#This Row],[2029/30 To - Spending review Topic 1]]+Dataset[[#This Row],[2029/30 To - Spending review Topic 2]]+Dataset[[#This Row],[2029/30 To - Spending review Topic 3]]+Dataset[[#This Row],[2029/30 To - Spending review Topic 4]]+Dataset[[#This Row],[2029/30 To - Other reallocations]]","v":0},{"$f":"Dataset[[#This Row],[2027/28 Targeted savings]]+Dataset[[#This Row],[2027/28 From - Total]]","v":0},{"$f":"Dataset[[#This Row],[2028/29 Targeted savings]]+Dataset[[#This Row],[2028/29 From - Total]]","v":0},{"$f":"Dataset[[#This Row],[2029/30 Targeted savings]]+Dataset[[#This Row],[2029/30 From - Total]]","v":0},{"$f":"Dataset[[#This Row],[2026/27 Targeted savings]]","v":0},{"$f":"SUM(Dataset[[#This Row],[2027/28 Targeted savings]],Dataset[[#This Row],[2027/28 From - Total]],Dataset[[#This Row],[2027/28 To - Total]])","v":0},{"$f":"SUM(Dataset[[#This Row],[2028/29 Targeted savings]],Dataset[[#This Row],[2028/29 From - Total]],Dataset[[#This Row],[2028/29 To - Total]])","v":0},{"$f":"SUM(Dataset[[#This Row],[2029/30 Targeted savings]],Dataset[[#This Row],[2029/30 From - Total]],Dataset[[#This Row],[2029/30 To - Total]])","v":0},{"$f":"Dataset[[#This Row],[2026/27 Baseline]]+Dataset[[#This Row],[2026/27 Total change]]","v":50},{"$f":"Dataset[[#This Row],[2027/28 Baseline]]+Dataset[[#This Row],[2027/28 Total change]]","v":113},{"$f":"Dataset[[#This Row],[2028/29 Baseline]]+Dataset[[#This Row],[2028/29 Total change]]","v":116},{"$f":"Dataset[[#This Row],[2029/30 Baseline]]+Dataset[[#This Row],[2029/30 Total change]]","v":119}]
["NAT|Non-transfer","30|Entertainment","2027_28","MTEC2027",30,6,1,33130,610,"30","06","01","033130","000610","30|06|01|000610","01","01","02","18","18","01|01|02|18|18","National","Communications and Digital Technologies","Digital Society and Economy","Programme Management for Digital Society and Economy","Non-transfer","Current","Current payments","Goods and services","Entertainment","Entertainment","Economic development","Economic regulation and infrastructure","NAT",0,0,0,0,0,0,0,0,2,2,2,null,null,null,null,null,null,null,null,null,null,null,null,null,null,null,null,null,null,null,null,null,null,null,null,null,null,null,null,null,null,null,null,null,null,{"$f":"Dataset[[#This Row],[2027/28 From - Spending review Topic 1]]+Dataset[[#This Row],[2027/28 From - Spending review Topic 2]]+Dataset[[#This Row],[2027/28 From - Spending review Topic 3]]+Dataset[[#This Row],[2027/28 From - Spending review Topic 4]]+Dataset[[#This Row],[2027/28 From - Other reallocations]]","v":0},{"$f":"Dataset[[#This Row],[2028/29 From - Spending review Topic 1]]+Dataset[[#This Row],[2028/29 From - Spending review Topic 2]]+Dataset[[#This Row],[2028/29 From - Spending review Topic 3]]+Dataset[[#This Row],[2028/29 From - Spending review Topic 4]]+Dataset[[#This Row],[2028/29 From - Other reallocations]]","v":0},{"$f":"Dataset[[#This Row],[2029/30 From - Spending review Topic 1]]+Dataset[[#This Row],[2029/30 From - Spending review Topic 2]]+Dataset[[#This Row],[2029/30 From - Spending review Topic 3]]+Dataset[[#This Row],[2029/30 From - Spending review Topic 4]]+Dataset[[#This Row],[2029/30 From - Other reallocations]]","v":0},{"$f":"Dataset[[#This Row],[2027/28 To - Spending review Topic 1]]+Dataset[[#This Row],[2027/28 To - Spending review Topic 2]]+Dataset[[#This Row],[2027/28 To - Spending review Topic 3]]+Dataset[[#This Row],[2027/28 To - Spending review Topic 4]]+Dataset[[#This Row],[2027/28 To - Other reallocations]]","v":0},{"$f":"Dataset[[#This Row],[2028/29 To - Spending review Topic 1]]+Dataset[[#This Row],[2028/29 To - Spending review Topic 2]]+Dataset[[#This Row],[2028/29 To - Spending review Topic 3]]+Dataset[[#This Row],[2028/29 To - Spending review Topic 4]]+Dataset[[#This Row],[2028/29 To - Other reallocations]]","v":0},{"$f":"Dataset[[#This Row],[2029/30 To - Spending review Topic 1]]+Dataset[[#This Row],[2029/30 To - Spending review Topic 2]]+Dataset[[#This Row],[2029/30 To - Spending review Topic 3]]+Dataset[[#This Row],[2029/30 To - Spending review Topic 4]]+Dataset[[#This Row],[2029/30 To - Other reallocations]]","v":0},{"$f":"Dataset[[#This Row],[2027/28 Targeted savings]]+Dataset[[#This Row],[2027/28 From - Total]]","v":0},{"$f":"Dataset[[#This Row],[2028/29 Targeted savings]]+Dataset[[#This Row],[2028/29 From - Total]]","v":0},{"$f":"Dataset[[#This Row],[2029/30 Targeted savings]]+Dataset[[#This Row],[2029/30 From - Total]]","v":0},{"$f":"Dataset[[#This Row],[2026/27 Targeted savings]]","v":0},{"$f":"SUM(Dataset[[#This Row],[2027/28 Targeted savings]],Dataset[[#This Row],[2027/28 From - Total]],Dataset[[#This Row],[2027/28 To - Total]])","v":0},{"$f":"SUM(Dataset[[#This Row],[2028/29 Targeted savings]],Dataset[[#This Row],[2028/29 From - Total]],Dataset[[#This Row],[2028/29 To - Total]])","v":0},{"$f":"SUM(Dataset[[#This Row],[2029/30 Targeted savings]],Dataset[[#This Row],[2029/30 From - Total]],Dataset[[#This Row],[2029/30 To - Total]])","v":0},{"$f":"Dataset[[#This Row],[2026/27 Baseline]]+Dataset[[#This Row],[2026/27 Total change]]","v":0},{"$f":"Dataset[[#This Row],[2027/28 Baseline]]+Dataset[[#This Row],[2027/28 Total change]]","v":2},{"$f":"Dataset[[#This Row],[2028/29 Baseline]]+Dataset[[#This Row],[2028/29 Total change]]","v":2},{"$f":"Dataset[[#This Row],[2029/30 Baseline]]+Dataset[[#This Row],[2029/30 Total change]]","v":2}]
["NAT|Non-transfer","30|Consumable supplies","2027_28","MTEC2027",30,6,1,33131,611,"30","06","01","033131","000611","30|06|01|000611","01","01","02","31","31","01|01|02|31|31","National","Communications and Digital Technologies","Digital Society and Economy","Programme Management for Digital Society and Economy","Non-transfer","Current","Current payments","Goods and services","Consumable supplies","Consumable supplies","Economic development","Economic regulation and infrastructure","NAT",1,1,0,0,0,0,0,0,0,0,0,null,null,null,null,null,null,null,null,null,null,null,null,null,null,null,null,null,null,null,null,null,null,null,null,null,null,null,null,null,null,null,null,null,null,{"$f":"Dataset[[#This Row],[2027/28 From - Spending review Topic 1]]+Dataset[[#This Row],[2027/28 From - Spending review Topic 2]]+Dataset[[#This Row],[2027/28 From - Spending review Topic 3]]+Dataset[[#This Row],[2027/28 From - Spending review Topic 4]]+Dataset[[#This Row],[2027/28 From - Other reallocations]]","v":0},{"$f":"Dataset[[#This Row],[2028/29 From - Spending review Topic 1]]+Dataset[[#This Row],[2028/29 From - Spending review Topic 2]]+Dataset[[#This Row],[2028/29 From - Spending review Topic 3]]+Dataset[[#This Row],[2028/29 From - Spending review Topic 4]]+Dataset[[#This Row],[2028/29 From - Other reallocations]]","v":0},{"$f":"Dataset[[#This Row],[2029/30 From - Spending review Topic 1]]+Dataset[[#This Row],[2029/30 From - Spending review Topic 2]]+Dataset[[#This Row],[2029/30 From - Spending review Topic 3]]+Dataset[[#This Row],[2029/30 From - Spending review Topic 4]]+Dataset[[#This Row],[2029/30 From - Other reallocations]]","v":0},{"$f":"Dataset[[#This Row],[2027/28 To - Spending review Topic 1]]+Dataset[[#This Row],[2027/28 To - Spending review Topic 2]]+Dataset[[#This Row],[2027/28 To - Spending review Topic 3]]+Dataset[[#This Row],[2027/28 To - Spending review Topic 4]]+Dataset[[#This Row],[2027/28 To - Other reallocations]]","v":0},{"$f":"Dataset[[#This Row],[2028/29 To - Spending review Topic 1]]+Dataset[[#This Row],[2028/29 To - Spending review Topic 2]]+Dataset[[#This Row],[2028/29 To - Spending review Topic 3]]+Dataset[[#This Row],[2028/29 To - Spending review Topic 4]]+Dataset[[#This Row],[2028/29 To - Other reallocations]]","v":0},{"$f":"Dataset[[#This Row],[2029/30 To - Spending review Topic 1]]+Dataset[[#This Row],[2029/30 To - Spending review Topic 2]]+Dataset[[#This Row],[2029/30 To - Spending review Topic 3]]+Dataset[[#This Row],[2029/30 To - Spending review Topic 4]]+Dataset[[#This Row],[2029/30 To - Other reallocations]]","v":0},{"$f":"Dataset[[#This Row],[2027/28 Targeted savings]]+Dataset[[#This Row],[2027/28 From - Total]]","v":0},{"$f":"Dataset[[#This Row],[2028/29 Targeted savings]]+Dataset[[#This Row],[2028/29 From - Total]]","v":0},{"$f":"Dataset[[#This Row],[2029/30 Targeted savings]]+Dataset[[#This Row],[2029/30 From - Total]]","v":0},{"$f":"Dataset[[#This Row],[2026/27 Targeted savings]]","v":0},{"$f":"SUM(Dataset[[#This Row],[2027/28 Targeted savings]],Dataset[[#This Row],[2027/28 From - Total]],Dataset[[#This Row],[2027/28 To - Total]])","v":0},{"$f":"SUM(Dataset[[#This Row],[2028/29 Targeted savings]],Dataset[[#This Row],[2028/29 From - Total]],Dataset[[#This Row],[2028/29 To - Total]])","v":0},{"$f":"SUM(Dataset[[#This Row],[2029/30 Targeted savings]],Dataset[[#This Row],[2029/30 From - Total]],Dataset[[#This Row],[2029/30 To - Total]])","v":0},{"$f":"Dataset[[#This Row],[2026/27 Baseline]]+Dataset[[#This Row],[2026/27 Total change]]","v":0},{"$f":"Dataset[[#This Row],[2027/28 Baseline]]+Dataset[[#This Row],[2027/28 Total change]]","v":0},{"$f":"Dataset[[#This Row],[2028/29 Baseline]]+Dataset[[#This Row],[2028/29 Total change]]","v":0},{"$f":"Dataset[[#This Row],[2029/30 Baseline]]+Dataset[[#This Row],[2029/30 Total change]]","v":0}]
["NAT|Non-transfer","30|Consumables: Stationery, printing and office supplies","2027_28","MTEC2027",30,6,1,33132,612,"30","06","01","033132","000612","30|06|01|000612","01","01","02","32","32","01|01|02|32|32","National","Communications and Digital Technologies","Digital Society and Economy","Programme Management for Digital Society and Economy","Non-transfer","Current","Current payments","Goods and services","Consumables: Stationery, printing and office supplies","Consumables: Stationery, printing and office supplies","Economic development","Economic regulation and infrastructure","NAT",0,0,0,15,15,15,0,0,33,34,35,null,null,null,null,null,null,null,null,null,null,null,null,null,null,null,null,null,null,null,null,null,null,null,null,null,null,null,null,null,null,null,null,null,null,{"$f":"Dataset[[#This Row],[2027/28 From - Spending review Topic 1]]+Dataset[[#This Row],[2027/28 From - Spending review Topic 2]]+Dataset[[#This Row],[2027/28 From - Spending review Topic 3]]+Dataset[[#This Row],[2027/28 From - Spending review Topic 4]]+Dataset[[#This Row],[2027/28 From - Other reallocations]]","v":0},{"$f":"Dataset[[#This Row],[2028/29 From - Spending review Topic 1]]+Dataset[[#This Row],[2028/29 From - Spending review Topic 2]]+Dataset[[#This Row],[2028/29 From - Spending review Topic 3]]+Dataset[[#This Row],[2028/29 From - Spending review Topic 4]]+Dataset[[#This Row],[2028/29 From - Other reallocations]]","v":0},{"$f":"Dataset[[#This Row],[2029/30 From - Spending review Topic 1]]+Dataset[[#This Row],[2029/30 From - Spending review Topic 2]]+Dataset[[#This Row],[2029/30 From - Spending review Topic 3]]+Dataset[[#This Row],[2029/30 From - Spending review Topic 4]]+Dataset[[#This Row],[2029/30 From - Other reallocations]]","v":0},{"$f":"Dataset[[#This Row],[2027/28 To - Spending review Topic 1]]+Dataset[[#This Row],[2027/28 To - Spending review Topic 2]]+Dataset[[#This Row],[2027/28 To - Spending review Topic 3]]+Dataset[[#This Row],[2027/28 To - Spending review Topic 4]]+Dataset[[#This Row],[2027/28 To - Other reallocations]]","v":0},{"$f":"Dataset[[#This Row],[2028/29 To - Spending review Topic 1]]+Dataset[[#This Row],[2028/29 To - Spending review Topic 2]]+Dataset[[#This Row],[2028/29 To - Spending review Topic 3]]+Dataset[[#This Row],[2028/29 To - Spending review Topic 4]]+Dataset[[#This Row],[2028/29 To - Other reallocations]]","v":0},{"$f":"Dataset[[#This Row],[2029/30 To - Spending review Topic 1]]+Dataset[[#This Row],[2029/30 To - Spending review Topic 2]]+Dataset[[#This Row],[2029/30 To - Spending review Topic 3]]+Dataset[[#This Row],[2029/30 To - Spending review Topic 4]]+Dataset[[#This Row],[2029/30 To - Other reallocations]]","v":0},{"$f":"Dataset[[#This Row],[2027/28 Targeted savings]]+Dataset[[#This Row],[2027/28 From - Total]]","v":0},{"$f":"Dataset[[#This Row],[2028/29 Targeted savings]]+Dataset[[#This Row],[2028/29 From - Total]]","v":0},{"$f":"Dataset[[#This Row],[2029/30 Targeted savings]]+Dataset[[#This Row],[2029/30 From - Total]]","v":0},{"$f":"Dataset[[#This Row],[2026/27 Targeted savings]]","v":0},{"$f":"SUM(Dataset[[#This Row],[2027/28 Targeted savings]],Dataset[[#This Row],[2027/28 From - Total]],Dataset[[#This Row],[2027/28 To - Total]])","v":0},{"$f":"SUM(Dataset[[#This Row],[2028/29 Targeted savings]],Dataset[[#This Row],[2028/29 From - Total]],Dataset[[#This Row],[2028/29 To - Total]])","v":0},{"$f":"SUM(Dataset[[#This Row],[2029/30 Targeted savings]],Dataset[[#This Row],[2029/30 From - Total]],Dataset[[#This Row],[2029/30 To - Total]])","v":0},{"$f":"Dataset[[#This Row],[2026/27 Baseline]]+Dataset[[#This Row],[2026/27 Total change]]","v":0},{"$f":"Dataset[[#This Row],[2027/28 Baseline]]+Dataset[[#This Row],[2027/28 Total change]]","v":33},{"$f":"Dataset[[#This Row],[2028/29 Baseline]]+Dataset[[#This Row],[2028/29 Total change]]","v":34},{"$f":"Dataset[[#This Row],[2029/30 Baseline]]+Dataset[[#This Row],[2029/30 Total change]]","v":35}]
["NAT|Non-transfer","30|Operating leases","2027_28","MTEC2027",30,6,1,33133,613,"30","06","01","033133","000613","30|06|01|000613","01","01","02","33","33","01|01|02|33|33","National","Communications and Digital Technologies","Digital Society and Economy","Programme Management for Digital Society and Economy","Non-transfer","Current","Current payments","Goods and services","Operating leases","Operating leases","Economic development","Economic regulation and infrastructure","NAT",0,0,0,0,0,0,0,80,0,0,0,null,null,null,null,null,null,null,null,null,null,null,null,null,null,null,null,null,null,null,null,null,null,null,null,null,null,null,null,null,null,null,null,null,null,{"$f":"Dataset[[#This Row],[2027/28 From - Spending review Topic 1]]+Dataset[[#This Row],[2027/28 From - Spending review Topic 2]]+Dataset[[#This Row],[2027/28 From - Spending review Topic 3]]+Dataset[[#This Row],[2027/28 From - Spending review Topic 4]]+Dataset[[#This Row],[2027/28 From - Other reallocations]]","v":0},{"$f":"Dataset[[#This Row],[2028/29 From - Spending review Topic 1]]+Dataset[[#This Row],[2028/29 From - Spending review Topic 2]]+Dataset[[#This Row],[2028/29 From - Spending review Topic 3]]+Dataset[[#This Row],[2028/29 From - Spending review Topic 4]]+Dataset[[#This Row],[2028/29 From - Other reallocations]]","v":0},{"$f":"Dataset[[#This Row],[2029/30 From - Spending review Topic 1]]+Dataset[[#This Row],[2029/30 From - Spending review Topic 2]]+Dataset[[#This Row],[2029/30 From - Spending review Topic 3]]+Dataset[[#This Row],[2029/30 From - Spending review Topic 4]]+Dataset[[#This Row],[2029/30 From - Other reallocations]]","v":0},{"$f":"Dataset[[#This Row],[2027/28 To - Spending review Topic 1]]+Dataset[[#This Row],[2027/28 To - Spending review Topic 2]]+Dataset[[#This Row],[2027/28 To - Spending review Topic 3]]+Dataset[[#This Row],[2027/28 To - Spending review Topic 4]]+Dataset[[#This Row],[2027/28 To - Other reallocations]]","v":0},{"$f":"Dataset[[#This Row],[2028/29 To - Spending review Topic 1]]+Dataset[[#This Row],[2028/29 To - Spending review Topic 2]]+Dataset[[#This Row],[2028/29 To - Spending review Topic 3]]+Dataset[[#This Row],[2028/29 To - Spending review Topic 4]]+Dataset[[#This Row],[2028/29 To - Other reallocations]]","v":0},{"$f":"Dataset[[#This Row],[2029/30 To - Spending review Topic 1]]+Dataset[[#This Row],[2029/30 To - Spending review Topic 2]]+Dataset[[#This Row],[2029/30 To - Spending review Topic 3]]+Dataset[[#This Row],[2029/30 To - Spending review Topic 4]]+Dataset[[#This Row],[2029/30 To - Other reallocations]]","v":0},{"$f":"Dataset[[#This Row],[2027/28 Targeted savings]]+Dataset[[#This Row],[2027/28 From - Total]]","v":0},{"$f":"Dataset[[#This Row],[2028/29 Targeted savings]]+Dataset[[#This Row],[2028/29 From - Total]]","v":0},{"$f":"Dataset[[#This Row],[2029/30 Targeted savings]]+Dataset[[#This Row],[2029/30 From - Total]]","v":0},{"$f":"Dataset[[#This Row],[2026/27 Targeted savings]]","v":0},{"$f":"SUM(Dataset[[#This Row],[2027/28 Targeted savings]],Dataset[[#This Row],[2027/28 From - Total]],Dataset[[#This Row],[2027/28 To - Total]])","v":0},{"$f":"SUM(Dataset[[#This Row],[2028/29 Targeted savings]],Dataset[[#This Row],[2028/29 From - Total]],Dataset[[#This Row],[2028/29 To - Total]])","v":0},{"$f":"SUM(Dataset[[#This Row],[2029/30 Targeted savings]],Dataset[[#This Row],[2029/30 From - Total]],Dataset[[#This Row],[2029/30 To - Total]])","v":0},{"$f":"Dataset[[#This Row],[2026/27 Baseline]]+Dataset[[#This Row],[2026/27 Total change]]","v":80},{"$f":"Dataset[[#This Row],[2027/28 Baseline]]+Dataset[[#This Row],[2027/28 Total change]]","v":0},{"$f":"Dataset[[#This Row],[2028/29 Baseline]]+Dataset[[#This Row],[2028/29 Total change]]","v":0},{"$f":"Dataset[[#This Row],[2029/30 Baseline]]+Dataset[[#This Row],[2029/30 Total change]]","v":0}]
["NAT|Non-transfer","30|Property payments","2027_28","MTEC2027",30,6,1,33134,614,"30","06","01","033134","000614","30|06|01|000614","01","01","02","35","35","01|01|02|35|35","National","Communications and Digital Technologies","Digital Society and Economy","Programme Management for Digital Society and Economy","Non-transfer","Current","Current payments","Goods and services","Property payments","Property payments","Economic development","Economic regulation and infrastructure","NAT",253,0,0,0,0,0,0,0,0,0,0,null,null,null,null,null,null,null,null,null,null,null,null,null,null,null,null,null,null,null,null,null,null,null,null,null,null,null,null,null,null,null,null,null,null,{"$f":"Dataset[[#This Row],[2027/28 From - Spending review Topic 1]]+Dataset[[#This Row],[2027/28 From - Spending review Topic 2]]+Dataset[[#This Row],[2027/28 From - Spending review Topic 3]]+Dataset[[#This Row],[2027/28 From - Spending review Topic 4]]+Dataset[[#This Row],[2027/28 From - Other reallocations]]","v":0},{"$f":"Dataset[[#This Row],[2028/29 From - Spending review Topic 1]]+Dataset[[#This Row],[2028/29 From - Spending review Topic 2]]+Dataset[[#This Row],[2028/29 From - Spending review Topic 3]]+Dataset[[#This Row],[2028/29 From - Spending review Topic 4]]+Dataset[[#This Row],[2028/29 From - Other reallocations]]","v":0},{"$f":"Dataset[[#This Row],[2029/30 From - Spending review Topic 1]]+Dataset[[#This Row],[2029/30 From - Spending review Topic 2]]+Dataset[[#This Row],[2029/30 From - Spending review Topic 3]]+Dataset[[#This Row],[2029/30 From - Spending review Topic 4]]+Dataset[[#This Row],[2029/30 From - Other reallocations]]","v":0},{"$f":"Dataset[[#This Row],[2027/28 To - Spending review Topic 1]]+Dataset[[#This Row],[2027/28 To - Spending review Topic 2]]+Dataset[[#This Row],[2027/28 To - Spending review Topic 3]]+Dataset[[#This Row],[2027/28 To - Spending review Topic 4]]+Dataset[[#This Row],[2027/28 To - Other reallocations]]","v":0},{"$f":"Dataset[[#This Row],[2028/29 To - Spending review Topic 1]]+Dataset[[#This Row],[2028/29 To - Spending review Topic 2]]+Dataset[[#This Row],[2028/29 To - Spending review Topic 3]]+Dataset[[#This Row],[2028/29 To - Spending review Topic 4]]+Dataset[[#This Row],[2028/29 To - Other reallocations]]","v":0},{"$f":"Dataset[[#This Row],[2029/30 To - Spending review Topic 1]]+Dataset[[#This Row],[2029/30 To - Spending review Topic 2]]+Dataset[[#This Row],[2029/30 To - Spending review Topic 3]]+Dataset[[#This Row],[2029/30 To - Spending review Topic 4]]+Dataset[[#This Row],[2029/30 To - Other reallocations]]","v":0},{"$f":"Dataset[[#This Row],[2027/28 Targeted savings]]+Dataset[[#This Row],[2027/28 From - Total]]","v":0},{"$f":"Dataset[[#This Row],[2028/29 Targeted savings]]+Dataset[[#This Row],[2028/29 From - Total]]","v":0},{"$f":"Dataset[[#This Row],[2029/30 Targeted savings]]+Dataset[[#This Row],[2029/30 From - Total]]","v":0},{"$f":"Dataset[[#This Row],[2026/27 Targeted savings]]","v":0},{"$f":"SUM(Dataset[[#This Row],[2027/28 Targeted savings]],Dataset[[#This Row],[2027/28 From - Total]],Dataset[[#This Row],[2027/28 To - Total]])","v":0},{"$f":"SUM(Dataset[[#This Row],[2028/29 Targeted savings]],Dataset[[#This Row],[2028/29 From - Total]],Dataset[[#This Row],[2028/29 To - Total]])","v":0},{"$f":"SUM(Dataset[[#This Row],[2029/30 Targeted savings]],Dataset[[#This Row],[2029/30 From - Total]],Dataset[[#This Row],[2029/30 To - Total]])","v":0},{"$f":"Dataset[[#This Row],[2026/27 Baseline]]+Dataset[[#This Row],[2026/27 Total change]]","v":0},{"$f":"Dataset[[#This Row],[2027/28 Baseline]]+Dataset[[#This Row],[2027/28 Total change]]","v":0},{"$f":"Dataset[[#This Row],[2028/29 Baseline]]+Dataset[[#This Row],[2028/29 Total change]]","v":0},{"$f":"Dataset[[#This Row],[2029/30 Baseline]]+Dataset[[#This Row],[2029/30 Total change]]","v":0}]
["NAT|Non-transfer","30|Travel and subsistence","2027_28","MTEC2027",30,6,1,33135,615,"30","06","01","033135","000615","30|06|01|000615","01","01","02","37","37","01|01|02|37|37","National","Communications and Digital Technologies","Digital Society and Economy","Programme Management for Digital Society and Economy","Non-transfer","Current","Current payments","Goods and services","Travel and subsistence","Travel and subsistence","Economic development","Economic regulation and infrastructure","NAT",235,739,1583,798,798,798,0,675,449,441,454,null,null,null,null,null,null,null,null,null,null,null,null,null,null,null,null,null,null,null,null,null,null,null,null,null,null,null,null,null,null,null,null,null,null,{"$f":"Dataset[[#This Row],[2027/28 From - Spending review Topic 1]]+Dataset[[#This Row],[2027/28 From - Spending review Topic 2]]+Dataset[[#This Row],[2027/28 From - Spending review Topic 3]]+Dataset[[#This Row],[2027/28 From - Spending review Topic 4]]+Dataset[[#This Row],[2027/28 From - Other reallocations]]","v":0},{"$f":"Dataset[[#This Row],[2028/29 From - Spending review Topic 1]]+Dataset[[#This Row],[2028/29 From - Spending review Topic 2]]+Dataset[[#This Row],[2028/29 From - Spending review Topic 3]]+Dataset[[#This Row],[2028/29 From - Spending review Topic 4]]+Dataset[[#This Row],[2028/29 From - Other reallocations]]","v":0},{"$f":"Dataset[[#This Row],[2029/30 From - Spending review Topic 1]]+Dataset[[#This Row],[2029/30 From - Spending review Topic 2]]+Dataset[[#This Row],[2029/30 From - Spending review Topic 3]]+Dataset[[#This Row],[2029/30 From - Spending review Topic 4]]+Dataset[[#This Row],[2029/30 From - Other reallocations]]","v":0},{"$f":"Dataset[[#This Row],[2027/28 To - Spending review Topic 1]]+Dataset[[#This Row],[2027/28 To - Spending review Topic 2]]+Dataset[[#This Row],[2027/28 To - Spending review Topic 3]]+Dataset[[#This Row],[2027/28 To - Spending review Topic 4]]+Dataset[[#This Row],[2027/28 To - Other reallocations]]","v":0},{"$f":"Dataset[[#This Row],[2028/29 To - Spending review Topic 1]]+Dataset[[#This Row],[2028/29 To - Spending review Topic 2]]+Dataset[[#This Row],[2028/29 To - Spending review Topic 3]]+Dataset[[#This Row],[2028/29 To - Spending review Topic 4]]+Dataset[[#This Row],[2028/29 To - Other reallocations]]","v":0},{"$f":"Dataset[[#This Row],[2029/30 To - Spending review Topic 1]]+Dataset[[#This Row],[2029/30 To - Spending review Topic 2]]+Dataset[[#This Row],[2029/30 To - Spending review Topic 3]]+Dataset[[#This Row],[2029/30 To - Spending review Topic 4]]+Dataset[[#This Row],[2029/30 To - Other reallocations]]","v":0},{"$f":"Dataset[[#This Row],[2027/28 Targeted savings]]+Dataset[[#This Row],[2027/28 From - Total]]","v":0},{"$f":"Dataset[[#This Row],[2028/29 Targeted savings]]+Dataset[[#This Row],[2028/29 From - Total]]","v":0},{"$f":"Dataset[[#This Row],[2029/30 Targeted savings]]+Dataset[[#This Row],[2029/30 From - Total]]","v":0},{"$f":"Dataset[[#This Row],[2026/27 Targeted savings]]","v":0},{"$f":"SUM(Dataset[[#This Row],[2027/28 Targeted savings]],Dataset[[#This Row],[2027/28 From - Total]],Dataset[[#This Row],[2027/28 To - Total]])","v":0},{"$f":"SUM(Dataset[[#This Row],[2028/29 Targeted savings]],Dataset[[#This Row],[2028/29 From - Total]],Dataset[[#This Row],[2028/29 To - Total]])","v":0},{"$f":"SUM(Dataset[[#This Row],[2029/30 Targeted savings]],Dataset[[#This Row],[2029/30 From - Total]],Dataset[[#This Row],[2029/30 To - Total]])","v":0},{"$f":"Dataset[[#This Row],[2026/27 Baseline]]+Dataset[[#This Row],[2026/27 Total change]]","v":675},{"$f":"Dataset[[#This Row],[2027/28 Baseline]]+Dataset[[#This Row],[2027/28 Total change]]","v":449},{"$f":"Dataset[[#This Row],[2028/29 Baseline]]+Dataset[[#This Row],[2028/29 Total change]]","v":441},{"$f":"Dataset[[#This Row],[2029/30 Baseline]]+Dataset[[#This Row],[2029/30 Total change]]","v":454}]
["NAT|Non-transfer","30|Training and development","2027_28","MTEC2027",30,6,1,33136,616,"30","06","01","033136","000616","30|06|01|000616","01","01","02","38","38","01|01|02|38|38","National","Communications and Digital Technologies","Digital Society and Economy","Programme Management for Digital Society and Economy","Non-transfer","Current","Current payments","Goods and services","Training and development","Training and development","Economic development","Economic regulation and infrastructure","NAT",0,0,0,0,0,0,0,60,161,166,171,null,null,null,null,null,null,null,null,null,null,null,null,null,null,null,null,null,null,null,null,null,null,null,null,null,null,null,null,null,null,null,null,null,null,{"$f":"Dataset[[#This Row],[2027/28 From - Spending review Topic 1]]+Dataset[[#This Row],[2027/28 From - Spending review Topic 2]]+Dataset[[#This Row],[2027/28 From - Spending review Topic 3]]+Dataset[[#This Row],[2027/28 From - Spending review Topic 4]]+Dataset[[#This Row],[2027/28 From - Other reallocations]]","v":0},{"$f":"Dataset[[#This Row],[2028/29 From - Spending review Topic 1]]+Dataset[[#This Row],[2028/29 From - Spending review Topic 2]]+Dataset[[#This Row],[2028/29 From - Spending review Topic 3]]+Dataset[[#This Row],[2028/29 From - Spending review Topic 4]]+Dataset[[#This Row],[2028/29 From - Other reallocations]]","v":0},{"$f":"Dataset[[#This Row],[2029/30 From - Spending review Topic 1]]+Dataset[[#This Row],[2029/30 From - Spending review Topic 2]]+Dataset[[#This Row],[2029/30 From - Spending review Topic 3]]+Dataset[[#This Row],[2029/30 From - Spending review Topic 4]]+Dataset[[#This Row],[2029/30 From - Other reallocations]]","v":0},{"$f":"Dataset[[#This Row],[2027/28 To - Spending review Topic 1]]+Dataset[[#This Row],[2027/28 To - Spending review Topic 2]]+Dataset[[#This Row],[2027/28 To - Spending review Topic 3]]+Dataset[[#This Row],[2027/28 To - Spending review Topic 4]]+Dataset[[#This Row],[2027/28 To - Other reallocations]]","v":0},{"$f":"Dataset[[#This Row],[2028/29 To - Spending review Topic 1]]+Dataset[[#This Row],[2028/29 To - Spending review Topic 2]]+Dataset[[#This Row],[2028/29 To - Spending review Topic 3]]+Dataset[[#This Row],[2028/29 To - Spending review Topic 4]]+Dataset[[#This Row],[2028/29 To - Other reallocations]]","v":0},{"$f":"Dataset[[#This Row],[2029/30 To - Spending review Topic 1]]+Dataset[[#This Row],[2029/30 To - Spending review Topic 2]]+Dataset[[#This Row],[2029/30 To - Spending review Topic 3]]+Dataset[[#This Row],[2029/30 To - Spending review Topic 4]]+Dataset[[#This Row],[2029/30 To - Other reallocations]]","v":0},{"$f":"Dataset[[#This Row],[2027/28 Targeted savings]]+Dataset[[#This Row],[2027/28 From - Total]]","v":0},{"$f":"Dataset[[#This Row],[2028/29 Targeted savings]]+Dataset[[#This Row],[2028/29 From - Total]]","v":0},{"$f":"Dataset[[#This Row],[2029/30 Targeted savings]]+Dataset[[#This Row],[2029/30 From - Total]]","v":0},{"$f":"Dataset[[#This Row],[2026/27 Targeted savings]]","v":0},{"$f":"SUM(Dataset[[#This Row],[2027/28 Targeted savings]],Dataset[[#This Row],[2027/28 From - Total]],Dataset[[#This Row],[2027/28 To - Total]])","v":0},{"$f":"SUM(Dataset[[#This Row],[2028/29 Targeted savings]],Dataset[[#This Row],[2028/29 From - Total]],Dataset[[#This Row],[2028/29 To - Total]])","v":0},{"$f":"SUM(Dataset[[#This Row],[2029/30 Targeted savings]],Dataset[[#This Row],[2029/30 From - Total]],Dataset[[#This Row],[2029/30 To - Total]])","v":0},{"$f":"Dataset[[#This Row],[2026/27 Baseline]]+Dataset[[#This Row],[2026/27 Total change]]","v":60},{"$f":"Dataset[[#This Row],[2027/28 Baseline]]+Dataset[[#This Row],[2027/28 Total change]]","v":161},{"$f":"Dataset[[#This Row],[2028/29 Baseline]]+Dataset[[#This Row],[2028/29 Total change]]","v":166},{"$f":"Dataset[[#This Row],[2029/30 Baseline]]+Dataset[[#This Row],[2029/30 Total change]]","v":171}]
["NAT|Non-transfer","30|Operating payments","2027_28","MTEC2027",30,6,1,33137,617,"30","06","01","033137","000617","30|06|01|000617","01","01","02","39","39","01|01|02|39|39","National","Communications and Digital Technologies","Digital Society and Economy","Programme Management for Digital Society and Economy","Non-transfer","Current","Current payments","Goods and services","Operating payments","Operating payments","Economic development","Economic regulation and infrastructure","NAT",1,0,0,0,0,0,0,0,0,0,0,null,null,null,null,null,null,null,null,null,null,null,null,null,null,null,null,null,null,null,null,null,null,null,null,null,null,null,null,null,null,null,null,null,null,{"$f":"Dataset[[#This Row],[2027/28 From - Spending review Topic 1]]+Dataset[[#This Row],[2027/28 From - Spending review Topic 2]]+Dataset[[#This Row],[2027/28 From - Spending review Topic 3]]+Dataset[[#This Row],[2027/28 From - Spending review Topic 4]]+Dataset[[#This Row],[2027/28 From - Other reallocations]]","v":0},{"$f":"Dataset[[#This Row],[2028/29 From - Spending review Topic 1]]+Dataset[[#This Row],[2028/29 From - Spending review Topic 2]]+Dataset[[#This Row],[2028/29 From - Spending review Topic 3]]+Dataset[[#This Row],[2028/29 From - Spending review Topic 4]]+Dataset[[#This Row],[2028/29 From - Other reallocations]]","v":0},{"$f":"Dataset[[#This Row],[2029/30 From - Spending review Topic 1]]+Dataset[[#This Row],[2029/30 From - Spending review Topic 2]]+Dataset[[#This Row],[2029/30 From - Spending review Topic 3]]+Dataset[[#This Row],[2029/30 From - Spending review Topic 4]]+Dataset[[#This Row],[2029/30 From - Other reallocations]]","v":0},{"$f":"Dataset[[#This Row],[2027/28 To - Spending review Topic 1]]+Dataset[[#This Row],[2027/28 To - Spending review Topic 2]]+Dataset[[#This Row],[2027/28 To - Spending review Topic 3]]+Dataset[[#This Row],[2027/28 To - Spending review Topic 4]]+Dataset[[#This Row],[2027/28 To - Other reallocations]]","v":0},{"$f":"Dataset[[#This Row],[2028/29 To - Spending review Topic 1]]+Dataset[[#This Row],[2028/29 To - Spending review Topic 2]]+Dataset[[#This Row],[2028/29 To - Spending review Topic 3]]+Dataset[[#This Row],[2028/29 To - Spending review Topic 4]]+Dataset[[#This Row],[2028/29 To - Other reallocations]]","v":0},{"$f":"Dataset[[#This Row],[2029/30 To - Spending review Topic 1]]+Dataset[[#This Row],[2029/30 To - Spending review Topic 2]]+Dataset[[#This Row],[2029/30 To - Spending review Topic 3]]+Dataset[[#This Row],[2029/30 To - Spending review Topic 4]]+Dataset[[#This Row],[2029/30 To - Other reallocations]]","v":0},{"$f":"Dataset[[#This Row],[2027/28 Targeted savings]]+Dataset[[#This Row],[2027/28 From - Total]]","v":0},{"$f":"Dataset[[#This Row],[2028/29 Targeted savings]]+Dataset[[#This Row],[2028/29 From - Total]]","v":0},{"$f":"Dataset[[#This Row],[2029/30 Targeted savings]]+Dataset[[#This Row],[2029/30 From - Total]]","v":0},{"$f":"Dataset[[#This Row],[2026/27 Targeted savings]]","v":0},{"$f":"SUM(Dataset[[#This Row],[2027/28 Targeted savings]],Dataset[[#This Row],[2027/28 From - Total]],Dataset[[#This Row],[2027/28 To - Total]])","v":0},{"$f":"SUM(Dataset[[#This Row],[2028/29 Targeted savings]],Dataset[[#This Row],[2028/29 From - Total]],Dataset[[#This Row],[2028/29 To - Total]])","v":0},{"$f":"SUM(Dataset[[#This Row],[2029/30 Targeted savings]],Dataset[[#This Row],[2029/30 From - Total]],Dataset[[#This Row],[2029/30 To - Total]])","v":0},{"$f":"Dataset[[#This Row],[2026/27 Baseline]]+Dataset[[#This Row],[2026/27 Total change]]","v":0},{"$f":"Dataset[[#This Row],[2027/28 Baseline]]+Dataset[[#This Row],[2027/28 Total change]]","v":0},{"$f":"Dataset[[#This Row],[2028/29 Baseline]]+Dataset[[#This Row],[2028/29 Total change]]","v":0},{"$f":"Dataset[[#This Row],[2029/30 Baseline]]+Dataset[[#This Row],[2029/30 Total change]]","v":0}]
["NAT|Non-transfer","30|Other machinery and equipment","2027_28","MTEC2027",30,6,1,33138,618,"30","06","01","033138","000618","30|06|01|000618","02","03","12","57","61","02|03|12|57|61","National","Communications and Digital Technologies","Digital Society and Economy","Programme Management for Digital Society and Economy","Non-transfer","Capital","Payments for capital assets","Machinery and equipment","Other machinery and equipment","Other machinery and equipment","Economic development","Economic regulation and infrastructure","NAT",0,18,0,0,0,0,0,120,125,0,0,null,null,null,null,null,null,null,null,null,null,null,null,null,null,null,null,null,null,null,null,null,null,null,null,null,null,null,null,null,null,null,null,null,null,{"$f":"Dataset[[#This Row],[2027/28 From - Spending review Topic 1]]+Dataset[[#This Row],[2027/28 From - Spending review Topic 2]]+Dataset[[#This Row],[2027/28 From - Spending review Topic 3]]+Dataset[[#This Row],[2027/28 From - Spending review Topic 4]]+Dataset[[#This Row],[2027/28 From - Other reallocations]]","v":0},{"$f":"Dataset[[#This Row],[2028/29 From - Spending review Topic 1]]+Dataset[[#This Row],[2028/29 From - Spending review Topic 2]]+Dataset[[#This Row],[2028/29 From - Spending review Topic 3]]+Dataset[[#This Row],[2028/29 From - Spending review Topic 4]]+Dataset[[#This Row],[2028/29 From - Other reallocations]]","v":0},{"$f":"Dataset[[#This Row],[2029/30 From - Spending review Topic 1]]+Dataset[[#This Row],[2029/30 From - Spending review Topic 2]]+Dataset[[#This Row],[2029/30 From - Spending review Topic 3]]+Dataset[[#This Row],[2029/30 From - Spending review Topic 4]]+Dataset[[#This Row],[2029/30 From - Other reallocations]]","v":0},{"$f":"Dataset[[#This Row],[2027/28 To - Spending review Topic 1]]+Dataset[[#This Row],[2027/28 To - Spending review Topic 2]]+Dataset[[#This Row],[2027/28 To - Spending review Topic 3]]+Dataset[[#This Row],[2027/28 To - Spending review Topic 4]]+Dataset[[#This Row],[2027/28 To - Other reallocations]]","v":0},{"$f":"Dataset[[#This Row],[2028/29 To - Spending review Topic 1]]+Dataset[[#This Row],[2028/29 To - Spending review Topic 2]]+Dataset[[#This Row],[2028/29 To - Spending review Topic 3]]+Dataset[[#This Row],[2028/29 To - Spending review Topic 4]]+Dataset[[#This Row],[2028/29 To - Other reallocations]]","v":0},{"$f":"Dataset[[#This Row],[2029/30 To - Spending review Topic 1]]+Dataset[[#This Row],[2029/30 To - Spending review Topic 2]]+Dataset[[#This Row],[2029/30 To - Spending review Topic 3]]+Dataset[[#This Row],[2029/30 To - Spending review Topic 4]]+Dataset[[#This Row],[2029/30 To - Other reallocations]]","v":0},{"$f":"Dataset[[#This Row],[2027/28 Targeted savings]]+Dataset[[#This Row],[2027/28 From - Total]]","v":0},{"$f":"Dataset[[#This Row],[2028/29 Targeted savings]]+Dataset[[#This Row],[2028/29 From - Total]]","v":0},{"$f":"Dataset[[#This Row],[2029/30 Targeted savings]]+Dataset[[#This Row],[2029/30 From - Total]]","v":0},{"$f":"Dataset[[#This Row],[2026/27 Targeted savings]]","v":0},{"$f":"SUM(Dataset[[#This Row],[2027/28 Targeted savings]],Dataset[[#This Row],[2027/28 From - Total]],Dataset[[#This Row],[2027/28 To - Total]])","v":0},{"$f":"SUM(Dataset[[#This Row],[2028/29 Targeted savings]],Dataset[[#This Row],[2028/29 From - Total]],Dataset[[#This Row],[2028/29 To - Total]])","v":0},{"$f":"SUM(Dataset[[#This Row],[2029/30 Targeted savings]],Dataset[[#This Row],[2029/30 From - Total]],Dataset[[#This Row],[2029/30 To - Total]])","v":0},{"$f":"Dataset[[#This Row],[2026/27 Baseline]]+Dataset[[#This Row],[2026/27 Total change]]","v":120},{"$f":"Dataset[[#This Row],[2027/28 Baseline]]+Dataset[[#This Row],[2027/28 Total change]]","v":125},{"$f":"Dataset[[#This Row],[2028/29 Baseline]]+Dataset[[#This Row],[2028/29 Total change]]","v":0},{"$f":"Dataset[[#This Row],[2029/30 Baseline]]+Dataset[[#This Row],[2029/30 Total change]]","v":0}]
["NAT|Non-transfer","30|Salaries and wages","2027_28","MTEC2027",30,6,2,33139,619,"30","06","02","033139","000619","30|06|02|000619","01","01","01","01","01","01|01|01|01|01","National","Communications and Digital Technologies","Digital Society and Economy","Digital Society and Economy","Non-transfer","Current","Current payments","Compensation of employees","Salaries and wages","Salaries and wages","Economic development","Economic regulation and infrastructure","NAT",16435,20015,27122,32609,30809,30809,0,32894,34832,35125,36183,null,null,null,null,null,null,null,null,null,null,null,null,null,null,null,null,null,null,null,null,null,null,null,null,null,null,null,null,null,null,null,null,null,null,{"$f":"Dataset[[#This Row],[2027/28 From - Spending review Topic 1]]+Dataset[[#This Row],[2027/28 From - Spending review Topic 2]]+Dataset[[#This Row],[2027/28 From - Spending review Topic 3]]+Dataset[[#This Row],[2027/28 From - Spending review Topic 4]]+Dataset[[#This Row],[2027/28 From - Other reallocations]]","v":0},{"$f":"Dataset[[#This Row],[2028/29 From - Spending review Topic 1]]+Dataset[[#This Row],[2028/29 From - Spending review Topic 2]]+Dataset[[#This Row],[2028/29 From - Spending review Topic 3]]+Dataset[[#This Row],[2028/29 From - Spending review Topic 4]]+Dataset[[#This Row],[2028/29 From - Other reallocations]]","v":0},{"$f":"Dataset[[#This Row],[2029/30 From - Spending review Topic 1]]+Dataset[[#This Row],[2029/30 From - Spending review Topic 2]]+Dataset[[#This Row],[2029/30 From - Spending review Topic 3]]+Dataset[[#This Row],[2029/30 From - Spending review Topic 4]]+Dataset[[#This Row],[2029/30 From - Other reallocations]]","v":0},{"$f":"Dataset[[#This Row],[2027/28 To - Spending review Topic 1]]+Dataset[[#This Row],[2027/28 To - Spending review Topic 2]]+Dataset[[#This Row],[2027/28 To - Spending review Topic 3]]+Dataset[[#This Row],[2027/28 To - Spending review Topic 4]]+Dataset[[#This Row],[2027/28 To - Other reallocations]]","v":0},{"$f":"Dataset[[#This Row],[2028/29 To - Spending review Topic 1]]+Dataset[[#This Row],[2028/29 To - Spending review Topic 2]]+Dataset[[#This Row],[2028/29 To - Spending review Topic 3]]+Dataset[[#This Row],[2028/29 To - Spending review Topic 4]]+Dataset[[#This Row],[2028/29 To - Other reallocations]]","v":0},{"$f":"Dataset[[#This Row],[2029/30 To - Spending review Topic 1]]+Dataset[[#This Row],[2029/30 To - Spending review Topic 2]]+Dataset[[#This Row],[2029/30 To - Spending review Topic 3]]+Dataset[[#This Row],[2029/30 To - Spending review Topic 4]]+Dataset[[#This Row],[2029/30 To - Other reallocations]]","v":0},{"$f":"Dataset[[#This Row],[2027/28 Targeted savings]]+Dataset[[#This Row],[2027/28 From - Total]]","v":0},{"$f":"Dataset[[#This Row],[2028/29 Targeted savings]]+Dataset[[#This Row],[2028/29 From - Total]]","v":0},{"$f":"Dataset[[#This Row],[2029/30 Targeted savings]]+Dataset[[#This Row],[2029/30 From - Total]]","v":0},{"$f":"Dataset[[#This Row],[2026/27 Targeted savings]]","v":0},{"$f":"SUM(Dataset[[#This Row],[2027/28 Targeted savings]],Dataset[[#This Row],[2027/28 From - Total]],Dataset[[#This Row],[2027/28 To - Total]])","v":0},{"$f":"SUM(Dataset[[#This Row],[2028/29 Targeted savings]],Dataset[[#This Row],[2028/29 From - Total]],Dataset[[#This Row],[2028/29 To - Total]])","v":0},{"$f":"SUM(Dataset[[#This Row],[2029/30 Targeted savings]],Dataset[[#This Row],[2029/30 From - Total]],Dataset[[#This Row],[2029/30 To - Total]])","v":0},{"$f":"Dataset[[#This Row],[2026/27 Baseline]]+Dataset[[#This Row],[2026/27 Total change]]","v":32894},{"$f":"Dataset[[#This Row],[2027/28 Baseline]]+Dataset[[#This Row],[2027/28 Total change]]","v":34832},{"$f":"Dataset[[#This Row],[2028/29 Baseline]]+Dataset[[#This Row],[2028/29 Total change]]","v":35125},{"$f":"Dataset[[#This Row],[2029/30 Baseline]]+Dataset[[#This Row],[2029/30 Total change]]","v":36183}]
["NAT|Non-transfer","30|Social contributions","2027_28","MTEC2027",30,6,2,33140,620,"30","06","02","033140","000620","30|06|02|000620","01","01","01","02","02","01|01|01|02|02","National","Communications and Digital Technologies","Digital Society and Economy","Digital Society and Economy","Non-transfer","Current","Current payments","Compensation of employees","Social contributions","Social contributions","Economic development","Economic regulation and infrastructure","NAT",2301,2281,2604,4835,3835,3835,0,3538,4436,4636,4776,null,null,null,null,null,null,null,null,null,null,null,null,null,null,null,null,null,null,null,null,null,null,null,null,null,null,null,null,null,null,null,null,null,null,{"$f":"Dataset[[#This Row],[2027/28 From - Spending review Topic 1]]+Dataset[[#This Row],[2027/28 From - Spending review Topic 2]]+Dataset[[#This Row],[2027/28 From - Spending review Topic 3]]+Dataset[[#This Row],[2027/28 From - Spending review Topic 4]]+Dataset[[#This Row],[2027/28 From - Other reallocations]]","v":0},{"$f":"Dataset[[#This Row],[2028/29 From - Spending review Topic 1]]+Dataset[[#This Row],[2028/29 From - Spending review Topic 2]]+Dataset[[#This Row],[2028/29 From - Spending review Topic 3]]+Dataset[[#This Row],[2028/29 From - Spending review Topic 4]]+Dataset[[#This Row],[2028/29 From - Other reallocations]]","v":0},{"$f":"Dataset[[#This Row],[2029/30 From - Spending review Topic 1]]+Dataset[[#This Row],[2029/30 From - Spending review Topic 2]]+Dataset[[#This Row],[2029/30 From - Spending review Topic 3]]+Dataset[[#This Row],[2029/30 From - Spending review Topic 4]]+Dataset[[#This Row],[2029/30 From - Other reallocations]]","v":0},{"$f":"Dataset[[#This Row],[2027/28 To - Spending review Topic 1]]+Dataset[[#This Row],[2027/28 To - Spending review Topic 2]]+Dataset[[#This Row],[2027/28 To - Spending review Topic 3]]+Dataset[[#This Row],[2027/28 To - Spending review Topic 4]]+Dataset[[#This Row],[2027/28 To - Other reallocations]]","v":0},{"$f":"Dataset[[#This Row],[2028/29 To - Spending review Topic 1]]+Dataset[[#This Row],[2028/29 To - Spending review Topic 2]]+Dataset[[#This Row],[2028/29 To - Spending review Topic 3]]+Dataset[[#This Row],[2028/29 To - Spending review Topic 4]]+Dataset[[#This Row],[2028/29 To - Other reallocations]]","v":0},{"$f":"Dataset[[#This Row],[2029/30 To - Spending review Topic 1]]+Dataset[[#This Row],[2029/30 To - Spending review Topic 2]]+Dataset[[#This Row],[2029/30 To - Spending review Topic 3]]+Dataset[[#This Row],[2029/30 To - Spending review Topic 4]]+Dataset[[#This Row],[2029/30 To - Other reallocations]]","v":0},{"$f":"Dataset[[#This Row],[2027/28 Targeted savings]]+Dataset[[#This Row],[2027/28 From - Total]]","v":0},{"$f":"Dataset[[#This Row],[2028/29 Targeted savings]]+Dataset[[#This Row],[2028/29 From - Total]]","v":0},{"$f":"Dataset[[#This Row],[2029/30 Targeted savings]]+Dataset[[#This Row],[2029/30 From - Total]]","v":0},{"$f":"Dataset[[#This Row],[2026/27 Targeted savings]]","v":0},{"$f":"SUM(Dataset[[#This Row],[2027/28 Targeted savings]],Dataset[[#This Row],[2027/28 From - Total]],Dataset[[#This Row],[2027/28 To - Total]])","v":0},{"$f":"SUM(Dataset[[#This Row],[2028/29 Targeted savings]],Dataset[[#This Row],[2028/29 From - Total]],Dataset[[#This Row],[2028/29 To - Total]])","v":0},{"$f":"SUM(Dataset[[#This Row],[2029/30 Targeted savings]],Dataset[[#This Row],[2029/30 From - Total]],Dataset[[#This Row],[2029/30 To - Total]])","v":0},{"$f":"Dataset[[#This Row],[2026/27 Baseline]]+Dataset[[#This Row],[2026/27 Total change]]","v":3538},{"$f":"Dataset[[#This Row],[2027/28 Baseline]]+Dataset[[#This Row],[2027/28 Total change]]","v":4436},{"$f":"Dataset[[#This Row],[2028/29 Baseline]]+Dataset[[#This Row],[2028/29 Total change]]","v":4636},{"$f":"Dataset[[#This Row],[2029/30 Baseline]]+Dataset[[#This Row],[2029/30 Total change]]","v":4776}]
["NAT|Non-transfer","30|Administrative fees","2027_28","MTEC2027",30,6,2,33141,621,"30","06","02","033141","000621","30|06|02|000621","01","01","02","03","03","01|01|02|03|03","National","Communications and Digital Technologies","Digital Society and Economy","Digital Society and Economy","Non-transfer","Current","Current payments","Goods and services","Administrative fees","Administrative fees","Economic development","Economic regulation and infrastructure","NAT",61,92,64,230,226,226,0,175,322,332,342,null,null,null,null,null,null,null,null,null,null,null,null,null,null,null,null,null,null,null,null,null,null,null,null,null,null,null,null,null,null,null,null,null,null,{"$f":"Dataset[[#This Row],[2027/28 From - Spending review Topic 1]]+Dataset[[#This Row],[2027/28 From - Spending review Topic 2]]+Dataset[[#This Row],[2027/28 From - Spending review Topic 3]]+Dataset[[#This Row],[2027/28 From - Spending review Topic 4]]+Dataset[[#This Row],[2027/28 From - Other reallocations]]","v":0},{"$f":"Dataset[[#This Row],[2028/29 From - Spending review Topic 1]]+Dataset[[#This Row],[2028/29 From - Spending review Topic 2]]+Dataset[[#This Row],[2028/29 From - Spending review Topic 3]]+Dataset[[#This Row],[2028/29 From - Spending review Topic 4]]+Dataset[[#This Row],[2028/29 From - Other reallocations]]","v":0},{"$f":"Dataset[[#This Row],[2029/30 From - Spending review Topic 1]]+Dataset[[#This Row],[2029/30 From - Spending review Topic 2]]+Dataset[[#This Row],[2029/30 From - Spending review Topic 3]]+Dataset[[#This Row],[2029/30 From - Spending review Topic 4]]+Dataset[[#This Row],[2029/30 From - Other reallocations]]","v":0},{"$f":"Dataset[[#This Row],[2027/28 To - Spending review Topic 1]]+Dataset[[#This Row],[2027/28 To - Spending review Topic 2]]+Dataset[[#This Row],[2027/28 To - Spending review Topic 3]]+Dataset[[#This Row],[2027/28 To - Spending review Topic 4]]+Dataset[[#This Row],[2027/28 To - Other reallocations]]","v":0},{"$f":"Dataset[[#This Row],[2028/29 To - Spending review Topic 1]]+Dataset[[#This Row],[2028/29 To - Spending review Topic 2]]+Dataset[[#This Row],[2028/29 To - Spending review Topic 3]]+Dataset[[#This Row],[2028/29 To - Spending review Topic 4]]+Dataset[[#This Row],[2028/29 To - Other reallocations]]","v":0},{"$f":"Dataset[[#This Row],[2029/30 To - Spending review Topic 1]]+Dataset[[#This Row],[2029/30 To - Spending review Topic 2]]+Dataset[[#This Row],[2029/30 To - Spending review Topic 3]]+Dataset[[#This Row],[2029/30 To - Spending review Topic 4]]+Dataset[[#This Row],[2029/30 To - Other reallocations]]","v":0},{"$f":"Dataset[[#This Row],[2027/28 Targeted savings]]+Dataset[[#This Row],[2027/28 From - Total]]","v":0},{"$f":"Dataset[[#This Row],[2028/29 Targeted savings]]+Dataset[[#This Row],[2028/29 From - Total]]","v":0},{"$f":"Dataset[[#This Row],[2029/30 Targeted savings]]+Dataset[[#This Row],[2029/30 From - Total]]","v":0},{"$f":"Dataset[[#This Row],[2026/27 Targeted savings]]","v":0},{"$f":"SUM(Dataset[[#This Row],[2027/28 Targeted savings]],Dataset[[#This Row],[2027/28 From - Total]],Dataset[[#This Row],[2027/28 To - Total]])","v":0},{"$f":"SUM(Dataset[[#This Row],[2028/29 Targeted savings]],Dataset[[#This Row],[2028/29 From - Total]],Dataset[[#This Row],[2028/29 To - Total]])","v":0},{"$f":"SUM(Dataset[[#This Row],[2029/30 Targeted savings]],Dataset[[#This Row],[2029/30 From - Total]],Dataset[[#This Row],[2029/30 To - Total]])","v":0},{"$f":"Dataset[[#This Row],[2026/27 Baseline]]+Dataset[[#This Row],[2026/27 Total change]]","v":175},{"$f":"Dataset[[#This Row],[2027/28 Baseline]]+Dataset[[#This Row],[2027/28 Total change]]","v":322},{"$f":"Dataset[[#This Row],[2028/29 Baseline]]+Dataset[[#This Row],[2028/29 Total change]]","v":332},{"$f":"Dataset[[#This Row],[2029/30 Baseline]]+Dataset[[#This Row],[2029/30 Total change]]","v":342}]
["NAT|Non-transfer","30|Advertising","2027_28","MTEC2027",30,6,2,33142,622,"30","06","02","033142","000622","30|06|02|000622","01","01","02","04","04","01|01|02|04|04","National","Communications and Digital Technologies","Digital Society and Economy","Digital Society and Economy","Non-transfer","Current","Current payments","Goods and services","Advertising","Advertising","Economic development","Economic regulation and infrastructure","NAT",0,1228,338,530,530,530,0,410,495,510,525,null,null,null,null,null,null,null,null,null,null,null,null,null,null,null,null,null,null,null,null,null,null,null,null,null,null,null,null,null,null,null,null,null,null,{"$f":"Dataset[[#This Row],[2027/28 From - Spending review Topic 1]]+Dataset[[#This Row],[2027/28 From - Spending review Topic 2]]+Dataset[[#This Row],[2027/28 From - Spending review Topic 3]]+Dataset[[#This Row],[2027/28 From - Spending review Topic 4]]+Dataset[[#This Row],[2027/28 From - Other reallocations]]","v":0},{"$f":"Dataset[[#This Row],[2028/29 From - Spending review Topic 1]]+Dataset[[#This Row],[2028/29 From - Spending review Topic 2]]+Dataset[[#This Row],[2028/29 From - Spending review Topic 3]]+Dataset[[#This Row],[2028/29 From - Spending review Topic 4]]+Dataset[[#This Row],[2028/29 From - Other reallocations]]","v":0},{"$f":"Dataset[[#This Row],[2029/30 From - Spending review Topic 1]]+Dataset[[#This Row],[2029/30 From - Spending review Topic 2]]+Dataset[[#This Row],[2029/30 From - Spending review Topic 3]]+Dataset[[#This Row],[2029/30 From - Spending review Topic 4]]+Dataset[[#This Row],[2029/30 From - Other reallocations]]","v":0},{"$f":"Dataset[[#This Row],[2027/28 To - Spending review Topic 1]]+Dataset[[#This Row],[2027/28 To - Spending review Topic 2]]+Dataset[[#This Row],[2027/28 To - Spending review Topic 3]]+Dataset[[#This Row],[2027/28 To - Spending review Topic 4]]+Dataset[[#This Row],[2027/28 To - Other reallocations]]","v":0},{"$f":"Dataset[[#This Row],[2028/29 To - Spending review Topic 1]]+Dataset[[#This Row],[2028/29 To - Spending review Topic 2]]+Dataset[[#This Row],[2028/29 To - Spending review Topic 3]]+Dataset[[#This Row],[2028/29 To - Spending review Topic 4]]+Dataset[[#This Row],[2028/29 To - Other reallocations]]","v":0},{"$f":"Dataset[[#This Row],[2029/30 To - Spending review Topic 1]]+Dataset[[#This Row],[2029/30 To - Spending review Topic 2]]+Dataset[[#This Row],[2029/30 To - Spending review Topic 3]]+Dataset[[#This Row],[2029/30 To - Spending review Topic 4]]+Dataset[[#This Row],[2029/30 To - Other reallocations]]","v":0},{"$f":"Dataset[[#This Row],[2027/28 Targeted savings]]+Dataset[[#This Row],[2027/28 From - Total]]","v":0},{"$f":"Dataset[[#This Row],[2028/29 Targeted savings]]+Dataset[[#This Row],[2028/29 From - Total]]","v":0},{"$f":"Dataset[[#This Row],[2029/30 Targeted savings]]+Dataset[[#This Row],[2029/30 From - Total]]","v":0},{"$f":"Dataset[[#This Row],[2026/27 Targeted savings]]","v":0},{"$f":"SUM(Dataset[[#This Row],[2027/28 Targeted savings]],Dataset[[#This Row],[2027/28 From - Total]],Dataset[[#This Row],[2027/28 To - Total]])","v":0},{"$f":"SUM(Dataset[[#This Row],[2028/29 Targeted savings]],Dataset[[#This Row],[2028/29 From - Total]],Dataset[[#This Row],[2028/29 To - Total]])","v":0},{"$f":"SUM(Dataset[[#This Row],[2029/30 Targeted savings]],Dataset[[#This Row],[2029/30 From - Total]],Dataset[[#This Row],[2029/30 To - Total]])","v":0},{"$f":"Dataset[[#This Row],[2026/27 Baseline]]+Dataset[[#This Row],[2026/27 Total change]]","v":410},{"$f":"Dataset[[#This Row],[2027/28 Baseline]]+Dataset[[#This Row],[2027/28 Total change]]","v":495},{"$f":"Dataset[[#This Row],[2028/29 Baseline]]+Dataset[[#This Row],[2028/29 Total change]]","v":510},{"$f":"Dataset[[#This Row],[2029/30 Baseline]]+Dataset[[#This Row],[2029/30 Total change]]","v":525}]
["NAT|Non-transfer","30|Minor assets","2027_28","MTEC2027",30,6,2,33143,623,"30","06","02","033143","000623","30|06|02|000623","01","01","02","05","05","01|01|02|05|05","National","Communications and Digital Technologies","Digital Society and Economy","Digital Society and Economy","Non-transfer","Current","Current payments","Goods and services","Minor assets","Minor assets","Economic development","Economic regulation and infrastructure","NAT",2,1,0,79,79,79,0,180,223,230,237,null,null,null,null,null,null,null,null,null,null,null,null,null,null,null,null,null,null,null,null,null,null,null,null,null,null,null,null,null,null,null,null,null,null,{"$f":"Dataset[[#This Row],[2027/28 From - Spending review Topic 1]]+Dataset[[#This Row],[2027/28 From - Spending review Topic 2]]+Dataset[[#This Row],[2027/28 From - Spending review Topic 3]]+Dataset[[#This Row],[2027/28 From - Spending review Topic 4]]+Dataset[[#This Row],[2027/28 From - Other reallocations]]","v":0},{"$f":"Dataset[[#This Row],[2028/29 From - Spending review Topic 1]]+Dataset[[#This Row],[2028/29 From - Spending review Topic 2]]+Dataset[[#This Row],[2028/29 From - Spending review Topic 3]]+Dataset[[#This Row],[2028/29 From - Spending review Topic 4]]+Dataset[[#This Row],[2028/29 From - Other reallocations]]","v":0},{"$f":"Dataset[[#This Row],[2029/30 From - Spending review Topic 1]]+Dataset[[#This Row],[2029/30 From - Spending review Topic 2]]+Dataset[[#This Row],[2029/30 From - Spending review Topic 3]]+Dataset[[#This Row],[2029/30 From - Spending review Topic 4]]+Dataset[[#This Row],[2029/30 From - Other reallocations]]","v":0},{"$f":"Dataset[[#This Row],[2027/28 To - Spending review Topic 1]]+Dataset[[#This Row],[2027/28 To - Spending review Topic 2]]+Dataset[[#This Row],[2027/28 To - Spending review Topic 3]]+Dataset[[#This Row],[2027/28 To - Spending review Topic 4]]+Dataset[[#This Row],[2027/28 To - Other reallocations]]","v":0},{"$f":"Dataset[[#This Row],[2028/29 To - Spending review Topic 1]]+Dataset[[#This Row],[2028/29 To - Spending review Topic 2]]+Dataset[[#This Row],[2028/29 To - Spending review Topic 3]]+Dataset[[#This Row],[2028/29 To - Spending review Topic 4]]+Dataset[[#This Row],[2028/29 To - Other reallocations]]","v":0},{"$f":"Dataset[[#This Row],[2029/30 To - Spending review Topic 1]]+Dataset[[#This Row],[2029/30 To - Spending review Topic 2]]+Dataset[[#This Row],[2029/30 To - Spending review Topic 3]]+Dataset[[#This Row],[2029/30 To - Spending review Topic 4]]+Dataset[[#This Row],[2029/30 To - Other reallocations]]","v":0},{"$f":"Dataset[[#This Row],[2027/28 Targeted savings]]+Dataset[[#This Row],[2027/28 From - Total]]","v":0},{"$f":"Dataset[[#This Row],[2028/29 Targeted savings]]+Dataset[[#This Row],[2028/29 From - Total]]","v":0},{"$f":"Dataset[[#This Row],[2029/30 Targeted savings]]+Dataset[[#This Row],[2029/30 From - Total]]","v":0},{"$f":"Dataset[[#This Row],[2026/27 Targeted savings]]","v":0},{"$f":"SUM(Dataset[[#This Row],[2027/28 Targeted savings]],Dataset[[#This Row],[2027/28 From - Total]],Dataset[[#This Row],[2027/28 To - Total]])","v":0},{"$f":"SUM(Dataset[[#This Row],[2028/29 Targeted savings]],Dataset[[#This Row],[2028/29 From - Total]],Dataset[[#This Row],[2028/29 To - Total]])","v":0},{"$f":"SUM(Dataset[[#This Row],[2029/30 Targeted savings]],Dataset[[#This Row],[2029/30 From - Total]],Dataset[[#This Row],[2029/30 To - Total]])","v":0},{"$f":"Dataset[[#This Row],[2026/27 Baseline]]+Dataset[[#This Row],[2026/27 Total change]]","v":180},{"$f":"Dataset[[#This Row],[2027/28 Baseline]]+Dataset[[#This Row],[2027/28 Total change]]","v":223},{"$f":"Dataset[[#This Row],[2028/29 Baseline]]+Dataset[[#This Row],[2028/29 Total change]]","v":230},{"$f":"Dataset[[#This Row],[2029/30 Baseline]]+Dataset[[#This Row],[2029/30 Total change]]","v":237}]
["NAT|Non-transfer","30|Bursaries: Employees","2027_28","MTEC2027",30,6,2,33144,624,"30","06","02","033144","000624","30|06|02|000624","01","01","02","07","07","01|01|02|07|07","National","Communications and Digital Technologies","Digital Society and Economy","Digital Society and Economy","Non-transfer","Current","Current payments","Goods and services","Bursaries: Employees","Bursaries: Employees","Economic development","Economic regulation and infrastructure","NAT",180,238,205,280,280,280,0,320,865,892,919,null,null,null,null,null,null,null,null,null,null,null,null,null,null,null,null,null,null,null,null,null,null,null,null,null,null,null,null,null,null,null,null,null,null,{"$f":"Dataset[[#This Row],[2027/28 From - Spending review Topic 1]]+Dataset[[#This Row],[2027/28 From - Spending review Topic 2]]+Dataset[[#This Row],[2027/28 From - Spending review Topic 3]]+Dataset[[#This Row],[2027/28 From - Spending review Topic 4]]+Dataset[[#This Row],[2027/28 From - Other reallocations]]","v":0},{"$f":"Dataset[[#This Row],[2028/29 From - Spending review Topic 1]]+Dataset[[#This Row],[2028/29 From - Spending review Topic 2]]+Dataset[[#This Row],[2028/29 From - Spending review Topic 3]]+Dataset[[#This Row],[2028/29 From - Spending review Topic 4]]+Dataset[[#This Row],[2028/29 From - Other reallocations]]","v":0},{"$f":"Dataset[[#This Row],[2029/30 From - Spending review Topic 1]]+Dataset[[#This Row],[2029/30 From - Spending review Topic 2]]+Dataset[[#This Row],[2029/30 From - Spending review Topic 3]]+Dataset[[#This Row],[2029/30 From - Spending review Topic 4]]+Dataset[[#This Row],[2029/30 From - Other reallocations]]","v":0},{"$f":"Dataset[[#This Row],[2027/28 To - Spending review Topic 1]]+Dataset[[#This Row],[2027/28 To - Spending review Topic 2]]+Dataset[[#This Row],[2027/28 To - Spending review Topic 3]]+Dataset[[#This Row],[2027/28 To - Spending review Topic 4]]+Dataset[[#This Row],[2027/28 To - Other reallocations]]","v":0},{"$f":"Dataset[[#This Row],[2028/29 To - Spending review Topic 1]]+Dataset[[#This Row],[2028/29 To - Spending review Topic 2]]+Dataset[[#This Row],[2028/29 To - Spending review Topic 3]]+Dataset[[#This Row],[2028/29 To - Spending review Topic 4]]+Dataset[[#This Row],[2028/29 To - Other reallocations]]","v":0},{"$f":"Dataset[[#This Row],[2029/30 To - Spending review Topic 1]]+Dataset[[#This Row],[2029/30 To - Spending review Topic 2]]+Dataset[[#This Row],[2029/30 To - Spending review Topic 3]]+Dataset[[#This Row],[2029/30 To - Spending review Topic 4]]+Dataset[[#This Row],[2029/30 To - Other reallocations]]","v":0},{"$f":"Dataset[[#This Row],[2027/28 Targeted savings]]+Dataset[[#This Row],[2027/28 From - Total]]","v":0},{"$f":"Dataset[[#This Row],[2028/29 Targeted savings]]+Dataset[[#This Row],[2028/29 From - Total]]","v":0},{"$f":"Dataset[[#This Row],[2029/30 Targeted savings]]+Dataset[[#This Row],[2029/30 From - Total]]","v":0},{"$f":"Dataset[[#This Row],[2026/27 Targeted savings]]","v":0},{"$f":"SUM(Dataset[[#This Row],[2027/28 Targeted savings]],Dataset[[#This Row],[2027/28 From - Total]],Dataset[[#This Row],[2027/28 To - Total]])","v":0},{"$f":"SUM(Dataset[[#This Row],[2028/29 Targeted savings]],Dataset[[#This Row],[2028/29 From - Total]],Dataset[[#This Row],[2028/29 To - Total]])","v":0},{"$f":"SUM(Dataset[[#This Row],[2029/30 Targeted savings]],Dataset[[#This Row],[2029/30 From - Total]],Dataset[[#This Row],[2029/30 To - Total]])","v":0},{"$f":"Dataset[[#This Row],[2026/27 Baseline]]+Dataset[[#This Row],[2026/27 Total change]]","v":320},{"$f":"Dataset[[#This Row],[2027/28 Baseline]]+Dataset[[#This Row],[2027/28 Total change]]","v":865},{"$f":"Dataset[[#This Row],[2028/29 Baseline]]+Dataset[[#This Row],[2028/29 Total change]]","v":892},{"$f":"Dataset[[#This Row],[2029/30 Baseline]]+Dataset[[#This Row],[2029/30 Total change]]","v":919}]
["NAT|Non-transfer","30|Catering: Departmental activities","2027_28","MTEC2027",30,6,2,33145,625,"30","06","02","033145","000625","30|06|02|000625","01","01","02","08","08","01|01|02|08|08","National","Communications and Digital Technologies","Digital Society and Economy","Digital Society and Economy","Non-transfer","Current","Current payments","Goods and services","Catering: Departmental activities","Catering: Departmental activities","Economic development","Economic regulation and infrastructure","NAT",86,223,263,710,710,710,0,182,784,808,832,null,null,null,null,null,null,null,null,null,null,null,null,null,null,null,null,null,null,null,null,null,null,null,null,null,null,null,null,null,null,null,null,null,null,{"$f":"Dataset[[#This Row],[2027/28 From - Spending review Topic 1]]+Dataset[[#This Row],[2027/28 From - Spending review Topic 2]]+Dataset[[#This Row],[2027/28 From - Spending review Topic 3]]+Dataset[[#This Row],[2027/28 From - Spending review Topic 4]]+Dataset[[#This Row],[2027/28 From - Other reallocations]]","v":0},{"$f":"Dataset[[#This Row],[2028/29 From - Spending review Topic 1]]+Dataset[[#This Row],[2028/29 From - Spending review Topic 2]]+Dataset[[#This Row],[2028/29 From - Spending review Topic 3]]+Dataset[[#This Row],[2028/29 From - Spending review Topic 4]]+Dataset[[#This Row],[2028/29 From - Other reallocations]]","v":0},{"$f":"Dataset[[#This Row],[2029/30 From - Spending review Topic 1]]+Dataset[[#This Row],[2029/30 From - Spending review Topic 2]]+Dataset[[#This Row],[2029/30 From - Spending review Topic 3]]+Dataset[[#This Row],[2029/30 From - Spending review Topic 4]]+Dataset[[#This Row],[2029/30 From - Other reallocations]]","v":0},{"$f":"Dataset[[#This Row],[2027/28 To - Spending review Topic 1]]+Dataset[[#This Row],[2027/28 To - Spending review Topic 2]]+Dataset[[#This Row],[2027/28 To - Spending review Topic 3]]+Dataset[[#This Row],[2027/28 To - Spending review Topic 4]]+Dataset[[#This Row],[2027/28 To - Other reallocations]]","v":0},{"$f":"Dataset[[#This Row],[2028/29 To - Spending review Topic 1]]+Dataset[[#This Row],[2028/29 To - Spending review Topic 2]]+Dataset[[#This Row],[2028/29 To - Spending review Topic 3]]+Dataset[[#This Row],[2028/29 To - Spending review Topic 4]]+Dataset[[#This Row],[2028/29 To - Other reallocations]]","v":0},{"$f":"Dataset[[#This Row],[2029/30 To - Spending review Topic 1]]+Dataset[[#This Row],[2029/30 To - Spending review Topic 2]]+Dataset[[#This Row],[2029/30 To - Spending review Topic 3]]+Dataset[[#This Row],[2029/30 To - Spending review Topic 4]]+Dataset[[#This Row],[2029/30 To - Other reallocations]]","v":0},{"$f":"Dataset[[#This Row],[2027/28 Targeted savings]]+Dataset[[#This Row],[2027/28 From - Total]]","v":0},{"$f":"Dataset[[#This Row],[2028/29 Targeted savings]]+Dataset[[#This Row],[2028/29 From - Total]]","v":0},{"$f":"Dataset[[#This Row],[2029/30 Targeted savings]]+Dataset[[#This Row],[2029/30 From - Total]]","v":0},{"$f":"Dataset[[#This Row],[2026/27 Targeted savings]]","v":0},{"$f":"SUM(Dataset[[#This Row],[2027/28 Targeted savings]],Dataset[[#This Row],[2027/28 From - Total]],Dataset[[#This Row],[2027/28 To - Total]])","v":0},{"$f":"SUM(Dataset[[#This Row],[2028/29 Targeted savings]],Dataset[[#This Row],[2028/29 From - Total]],Dataset[[#This Row],[2028/29 To - Total]])","v":0},{"$f":"SUM(Dataset[[#This Row],[2029/30 Targeted savings]],Dataset[[#This Row],[2029/30 From - Total]],Dataset[[#This Row],[2029/30 To - Total]])","v":0},{"$f":"Dataset[[#This Row],[2026/27 Baseline]]+Dataset[[#This Row],[2026/27 Total change]]","v":182},{"$f":"Dataset[[#This Row],[2027/28 Baseline]]+Dataset[[#This Row],[2027/28 Total change]]","v":784},{"$f":"Dataset[[#This Row],[2028/29 Baseline]]+Dataset[[#This Row],[2028/29 Total change]]","v":808},{"$f":"Dataset[[#This Row],[2029/30 Baseline]]+Dataset[[#This Row],[2029/30 Total change]]","v":832}]
["NAT|Non-transfer","30|Communication (G&S)","2027_28","MTEC2027",30,6,2,33146,626,"30","06","02","033146","000626","30|06|02|000626","01","01","02","09","09","01|01|02|09|09","National","Communications and Digital Technologies","Digital Society and Economy","Digital Society and Economy","Non-transfer","Current","Current payments","Goods and services","Communication (G&S)","Communication (G&S)","Economic development","Economic regulation and infrastructure","NAT",259,263,196,589,589,589,0,404,499,514,529,null,null,null,null,null,null,null,null,null,null,null,null,null,null,null,null,null,null,null,null,null,null,null,null,null,null,null,null,null,null,null,null,null,null,{"$f":"Dataset[[#This Row],[2027/28 From - Spending review Topic 1]]+Dataset[[#This Row],[2027/28 From - Spending review Topic 2]]+Dataset[[#This Row],[2027/28 From - Spending review Topic 3]]+Dataset[[#This Row],[2027/28 From - Spending review Topic 4]]+Dataset[[#This Row],[2027/28 From - Other reallocations]]","v":0},{"$f":"Dataset[[#This Row],[2028/29 From - Spending review Topic 1]]+Dataset[[#This Row],[2028/29 From - Spending review Topic 2]]+Dataset[[#This Row],[2028/29 From - Spending review Topic 3]]+Dataset[[#This Row],[2028/29 From - Spending review Topic 4]]+Dataset[[#This Row],[2028/29 From - Other reallocations]]","v":0},{"$f":"Dataset[[#This Row],[2029/30 From - Spending review Topic 1]]+Dataset[[#This Row],[2029/30 From - Spending review Topic 2]]+Dataset[[#This Row],[2029/30 From - Spending review Topic 3]]+Dataset[[#This Row],[2029/30 From - Spending review Topic 4]]+Dataset[[#This Row],[2029/30 From - Other reallocations]]","v":0},{"$f":"Dataset[[#This Row],[2027/28 To - Spending review Topic 1]]+Dataset[[#This Row],[2027/28 To - Spending review Topic 2]]+Dataset[[#This Row],[2027/28 To - Spending review Topic 3]]+Dataset[[#This Row],[2027/28 To - Spending review Topic 4]]+Dataset[[#This Row],[2027/28 To - Other reallocations]]","v":0},{"$f":"Dataset[[#This Row],[2028/29 To - Spending review Topic 1]]+Dataset[[#This Row],[2028/29 To - Spending review Topic 2]]+Dataset[[#This Row],[2028/29 To - Spending review Topic 3]]+Dataset[[#This Row],[2028/29 To - Spending review Topic 4]]+Dataset[[#This Row],[2028/29 To - Other reallocations]]","v":0},{"$f":"Dataset[[#This Row],[2029/30 To - Spending review Topic 1]]+Dataset[[#This Row],[2029/30 To - Spending review Topic 2]]+Dataset[[#This Row],[2029/30 To - Spending review Topic 3]]+Dataset[[#This Row],[2029/30 To - Spending review Topic 4]]+Dataset[[#This Row],[2029/30 To - Other reallocations]]","v":0},{"$f":"Dataset[[#This Row],[2027/28 Targeted savings]]+Dataset[[#This Row],[2027/28 From - Total]]","v":0},{"$f":"Dataset[[#This Row],[2028/29 Targeted savings]]+Dataset[[#This Row],[2028/29 From - Total]]","v":0},{"$f":"Dataset[[#This Row],[2029/30 Targeted savings]]+Dataset[[#This Row],[2029/30 From - Total]]","v":0},{"$f":"Dataset[[#This Row],[2026/27 Targeted savings]]","v":0},{"$f":"SUM(Dataset[[#This Row],[2027/28 Targeted savings]],Dataset[[#This Row],[2027/28 From - Total]],Dataset[[#This Row],[2027/28 To - Total]])","v":0},{"$f":"SUM(Dataset[[#This Row],[2028/29 Targeted savings]],Dataset[[#This Row],[2028/29 From - Total]],Dataset[[#This Row],[2028/29 To - Total]])","v":0},{"$f":"SUM(Dataset[[#This Row],[2029/30 Targeted savings]],Dataset[[#This Row],[2029/30 From - Total]],Dataset[[#This Row],[2029/30 To - Total]])","v":0},{"$f":"Dataset[[#This Row],[2026/27 Baseline]]+Dataset[[#This Row],[2026/27 Total change]]","v":404},{"$f":"Dataset[[#This Row],[2027/28 Baseline]]+Dataset[[#This Row],[2027/28 Total change]]","v":499},{"$f":"Dataset[[#This Row],[2028/29 Baseline]]+Dataset[[#This Row],[2028/29 Total change]]","v":514},{"$f":"Dataset[[#This Row],[2029/30 Baseline]]+Dataset[[#This Row],[2029/30 Total change]]","v":529}]
["NAT|Non-transfer","30|Computer services","2027_28","MTEC2027",30,6,2,33147,627,"30","06","02","033147","000627","30|06|02|000627","01","01","02","10","10","01|01|02|10|10","National","Communications and Digital Technologies","Digital Society and Economy","Digital Society and Economy","Non-transfer","Current","Current payments","Goods and services","Computer services","Computer services","Economic development","Economic regulation and infrastructure","NAT",789,25,747,575,575,575,0,301,45,46,47,null,null,null,null,null,null,null,null,null,null,null,null,null,null,null,null,null,null,null,null,null,null,null,null,null,null,null,null,null,null,null,null,null,null,{"$f":"Dataset[[#This Row],[2027/28 From - Spending review Topic 1]]+Dataset[[#This Row],[2027/28 From - Spending review Topic 2]]+Dataset[[#This Row],[2027/28 From - Spending review Topic 3]]+Dataset[[#This Row],[2027/28 From - Spending review Topic 4]]+Dataset[[#This Row],[2027/28 From - Other reallocations]]","v":0},{"$f":"Dataset[[#This Row],[2028/29 From - Spending review Topic 1]]+Dataset[[#This Row],[2028/29 From - Spending review Topic 2]]+Dataset[[#This Row],[2028/29 From - Spending review Topic 3]]+Dataset[[#This Row],[2028/29 From - Spending review Topic 4]]+Dataset[[#This Row],[2028/29 From - Other reallocations]]","v":0},{"$f":"Dataset[[#This Row],[2029/30 From - Spending review Topic 1]]+Dataset[[#This Row],[2029/30 From - Spending review Topic 2]]+Dataset[[#This Row],[2029/30 From - Spending review Topic 3]]+Dataset[[#This Row],[2029/30 From - Spending review Topic 4]]+Dataset[[#This Row],[2029/30 From - Other reallocations]]","v":0},{"$f":"Dataset[[#This Row],[2027/28 To - Spending review Topic 1]]+Dataset[[#This Row],[2027/28 To - Spending review Topic 2]]+Dataset[[#This Row],[2027/28 To - Spending review Topic 3]]+Dataset[[#This Row],[2027/28 To - Spending review Topic 4]]+Dataset[[#This Row],[2027/28 To - Other reallocations]]","v":0},{"$f":"Dataset[[#This Row],[2028/29 To - Spending review Topic 1]]+Dataset[[#This Row],[2028/29 To - Spending review Topic 2]]+Dataset[[#This Row],[2028/29 To - Spending review Topic 3]]+Dataset[[#This Row],[2028/29 To - Spending review Topic 4]]+Dataset[[#This Row],[2028/29 To - Other reallocations]]","v":0},{"$f":"Dataset[[#This Row],[2029/30 To - Spending review Topic 1]]+Dataset[[#This Row],[2029/30 To - Spending review Topic 2]]+Dataset[[#This Row],[2029/30 To - Spending review Topic 3]]+Dataset[[#This Row],[2029/30 To - Spending review Topic 4]]+Dataset[[#This Row],[2029/30 To - Other reallocations]]","v":0},{"$f":"Dataset[[#This Row],[2027/28 Targeted savings]]+Dataset[[#This Row],[2027/28 From - Total]]","v":0},{"$f":"Dataset[[#This Row],[2028/29 Targeted savings]]+Dataset[[#This Row],[2028/29 From - Total]]","v":0},{"$f":"Dataset[[#This Row],[2029/30 Targeted savings]]+Dataset[[#This Row],[2029/30 From - Total]]","v":0},{"$f":"Dataset[[#This Row],[2026/27 Targeted savings]]","v":0},{"$f":"SUM(Dataset[[#This Row],[2027/28 Targeted savings]],Dataset[[#This Row],[2027/28 From - Total]],Dataset[[#This Row],[2027/28 To - Total]])","v":0},{"$f":"SUM(Dataset[[#This Row],[2028/29 Targeted savings]],Dataset[[#This Row],[2028/29 From - Total]],Dataset[[#This Row],[2028/29 To - Total]])","v":0},{"$f":"SUM(Dataset[[#This Row],[2029/30 Targeted savings]],Dataset[[#This Row],[2029/30 From - Total]],Dataset[[#This Row],[2029/30 To - Total]])","v":0},{"$f":"Dataset[[#This Row],[2026/27 Baseline]]+Dataset[[#This Row],[2026/27 Total change]]","v":301},{"$f":"Dataset[[#This Row],[2027/28 Baseline]]+Dataset[[#This Row],[2027/28 Total change]]","v":45},{"$f":"Dataset[[#This Row],[2028/29 Baseline]]+Dataset[[#This Row],[2028/29 Total change]]","v":46},{"$f":"Dataset[[#This Row],[2029/30 Baseline]]+Dataset[[#This Row],[2029/30 Total change]]","v":47}]
["NAT|Non-transfer","30|Consultants: Business and advisory services","2027_28","MTEC2027",30,6,2,33148,628,"30","06","02","033148","000628","30|06|02|000628","01","01","02","11","11","01|01|02|11|11","National","Communications and Digital Technologies","Digital Society and Economy","Digital Society and Economy","Non-transfer","Current","Current payments","Goods and services","Consultants: Business and advisory services","Consultants: Business and advisory services","Economic development","Economic regulation and infrastructure","NAT",5818,849,373,6200,5200,5200,0,12950,7486,7900,8138,null,null,null,null,null,null,null,null,null,null,null,null,null,null,null,null,null,null,null,null,null,null,null,null,null,null,null,null,null,null,null,null,null,null,{"$f":"Dataset[[#This Row],[2027/28 From - Spending review Topic 1]]+Dataset[[#This Row],[2027/28 From - Spending review Topic 2]]+Dataset[[#This Row],[2027/28 From - Spending review Topic 3]]+Dataset[[#This Row],[2027/28 From - Spending review Topic 4]]+Dataset[[#This Row],[2027/28 From - Other reallocations]]","v":0},{"$f":"Dataset[[#This Row],[2028/29 From - Spending review Topic 1]]+Dataset[[#This Row],[2028/29 From - Spending review Topic 2]]+Dataset[[#This Row],[2028/29 From - Spending review Topic 3]]+Dataset[[#This Row],[2028/29 From - Spending review Topic 4]]+Dataset[[#This Row],[2028/29 From - Other reallocations]]","v":0},{"$f":"Dataset[[#This Row],[2029/30 From - Spending review Topic 1]]+Dataset[[#This Row],[2029/30 From - Spending review Topic 2]]+Dataset[[#This Row],[2029/30 From - Spending review Topic 3]]+Dataset[[#This Row],[2029/30 From - Spending review Topic 4]]+Dataset[[#This Row],[2029/30 From - Other reallocations]]","v":0},{"$f":"Dataset[[#This Row],[2027/28 To - Spending review Topic 1]]+Dataset[[#This Row],[2027/28 To - Spending review Topic 2]]+Dataset[[#This Row],[2027/28 To - Spending review Topic 3]]+Dataset[[#This Row],[2027/28 To - Spending review Topic 4]]+Dataset[[#This Row],[2027/28 To - Other reallocations]]","v":0},{"$f":"Dataset[[#This Row],[2028/29 To - Spending review Topic 1]]+Dataset[[#This Row],[2028/29 To - Spending review Topic 2]]+Dataset[[#This Row],[2028/29 To - Spending review Topic 3]]+Dataset[[#This Row],[2028/29 To - Spending review Topic 4]]+Dataset[[#This Row],[2028/29 To - Other reallocations]]","v":0},{"$f":"Dataset[[#This Row],[2029/30 To - Spending review Topic 1]]+Dataset[[#This Row],[2029/30 To - Spending review Topic 2]]+Dataset[[#This Row],[2029/30 To - Spending review Topic 3]]+Dataset[[#This Row],[2029/30 To - Spending review Topic 4]]+Dataset[[#This Row],[2029/30 To - Other reallocations]]","v":0},{"$f":"Dataset[[#This Row],[2027/28 Targeted savings]]+Dataset[[#This Row],[2027/28 From - Total]]","v":0},{"$f":"Dataset[[#This Row],[2028/29 Targeted savings]]+Dataset[[#This Row],[2028/29 From - Total]]","v":0},{"$f":"Dataset[[#This Row],[2029/30 Targeted savings]]+Dataset[[#This Row],[2029/30 From - Total]]","v":0},{"$f":"Dataset[[#This Row],[2026/27 Targeted savings]]","v":0},{"$f":"SUM(Dataset[[#This Row],[2027/28 Targeted savings]],Dataset[[#This Row],[2027/28 From - Total]],Dataset[[#This Row],[2027/28 To - Total]])","v":0},{"$f":"SUM(Dataset[[#This Row],[2028/29 Targeted savings]],Dataset[[#This Row],[2028/29 From - Total]],Dataset[[#This Row],[2028/29 To - Total]])","v":0},{"$f":"SUM(Dataset[[#This Row],[2029/30 Targeted savings]],Dataset[[#This Row],[2029/30 From - Total]],Dataset[[#This Row],[2029/30 To - Total]])","v":0},{"$f":"Dataset[[#This Row],[2026/27 Baseline]]+Dataset[[#This Row],[2026/27 Total change]]","v":12950},{"$f":"Dataset[[#This Row],[2027/28 Baseline]]+Dataset[[#This Row],[2027/28 Total change]]","v":7486},{"$f":"Dataset[[#This Row],[2028/29 Baseline]]+Dataset[[#This Row],[2028/29 Total change]]","v":7900},{"$f":"Dataset[[#This Row],[2029/30 Baseline]]+Dataset[[#This Row],[2029/30 Total change]]","v":8138}]
["NAT|Non-transfer","30|Contractors","2027_28","MTEC2027",30,6,2,33149,629,"30","06","02","033149","000629","30|06|02|000629","01","01","02","16","16","01|01|02|16|16","National","Communications and Digital Technologies","Digital Society and Economy","Digital Society and Economy","Non-transfer","Current","Current payments","Goods and services","Contractors","Contractors","Economic development","Economic regulation and infrastructure","NAT",5,9,480,184,184,184,0,0,436,449,463,null,null,null,null,null,null,null,null,null,null,null,null,null,null,null,null,null,null,null,null,null,null,null,null,null,null,null,null,null,null,null,null,null,null,{"$f":"Dataset[[#This Row],[2027/28 From - Spending review Topic 1]]+Dataset[[#This Row],[2027/28 From - Spending review Topic 2]]+Dataset[[#This Row],[2027/28 From - Spending review Topic 3]]+Dataset[[#This Row],[2027/28 From - Spending review Topic 4]]+Dataset[[#This Row],[2027/28 From - Other reallocations]]","v":0},{"$f":"Dataset[[#This Row],[2028/29 From - Spending review Topic 1]]+Dataset[[#This Row],[2028/29 From - Spending review Topic 2]]+Dataset[[#This Row],[2028/29 From - Spending review Topic 3]]+Dataset[[#This Row],[2028/29 From - Spending review Topic 4]]+Dataset[[#This Row],[2028/29 From - Other reallocations]]","v":0},{"$f":"Dataset[[#This Row],[2029/30 From - Spending review Topic 1]]+Dataset[[#This Row],[2029/30 From - Spending review Topic 2]]+Dataset[[#This Row],[2029/30 From - Spending review Topic 3]]+Dataset[[#This Row],[2029/30 From - Spending review Topic 4]]+Dataset[[#This Row],[2029/30 From - Other reallocations]]","v":0},{"$f":"Dataset[[#This Row],[2027/28 To - Spending review Topic 1]]+Dataset[[#This Row],[2027/28 To - Spending review Topic 2]]+Dataset[[#This Row],[2027/28 To - Spending review Topic 3]]+Dataset[[#This Row],[2027/28 To - Spending review Topic 4]]+Dataset[[#This Row],[2027/28 To - Other reallocations]]","v":0},{"$f":"Dataset[[#This Row],[2028/29 To - Spending review Topic 1]]+Dataset[[#This Row],[2028/29 To - Spending review Topic 2]]+Dataset[[#This Row],[2028/29 To - Spending review Topic 3]]+Dataset[[#This Row],[2028/29 To - Spending review Topic 4]]+Dataset[[#This Row],[2028/29 To - Other reallocations]]","v":0},{"$f":"Dataset[[#This Row],[2029/30 To - Spending review Topic 1]]+Dataset[[#This Row],[2029/30 To - Spending review Topic 2]]+Dataset[[#This Row],[2029/30 To - Spending review Topic 3]]+Dataset[[#This Row],[2029/30 To - Spending review Topic 4]]+Dataset[[#This Row],[2029/30 To - Other reallocations]]","v":0},{"$f":"Dataset[[#This Row],[2027/28 Targeted savings]]+Dataset[[#This Row],[2027/28 From - Total]]","v":0},{"$f":"Dataset[[#This Row],[2028/29 Targeted savings]]+Dataset[[#This Row],[2028/29 From - Total]]","v":0},{"$f":"Dataset[[#This Row],[2029/30 Targeted savings]]+Dataset[[#This Row],[2029/30 From - Total]]","v":0},{"$f":"Dataset[[#This Row],[2026/27 Targeted savings]]","v":0},{"$f":"SUM(Dataset[[#This Row],[2027/28 Targeted savings]],Dataset[[#This Row],[2027/28 From - Total]],Dataset[[#This Row],[2027/28 To - Total]])","v":0},{"$f":"SUM(Dataset[[#This Row],[2028/29 Targeted savings]],Dataset[[#This Row],[2028/29 From - Total]],Dataset[[#This Row],[2028/29 To - Total]])","v":0},{"$f":"SUM(Dataset[[#This Row],[2029/30 Targeted savings]],Dataset[[#This Row],[2029/30 From - Total]],Dataset[[#This Row],[2029/30 To - Total]])","v":0},{"$f":"Dataset[[#This Row],[2026/27 Baseline]]+Dataset[[#This Row],[2026/27 Total change]]","v":0},{"$f":"Dataset[[#This Row],[2027/28 Baseline]]+Dataset[[#This Row],[2027/28 Total change]]","v":436},{"$f":"Dataset[[#This Row],[2028/29 Baseline]]+Dataset[[#This Row],[2028/29 Total change]]","v":449},{"$f":"Dataset[[#This Row],[2029/30 Baseline]]+Dataset[[#This Row],[2029/30 Total change]]","v":463}]
["NAT|Non-transfer","30|Entertainment","2027_28","MTEC2027",30,6,2,33150,630,"30","06","02","033150","000630","30|06|02|000630","01","01","02","18","18","01|01|02|18|18","National","Communications and Digital Technologies","Digital Society and Economy","Digital Society and Economy","Non-transfer","Current","Current payments","Goods and services","Entertainment","Entertainment","Economic development","Economic regulation and infrastructure","NAT",0,0,0,10,10,10,0,4,22,22,23,null,null,null,null,null,null,null,null,null,null,null,null,null,null,null,null,null,null,null,null,null,null,null,null,null,null,null,null,null,null,null,null,null,null,{"$f":"Dataset[[#This Row],[2027/28 From - Spending review Topic 1]]+Dataset[[#This Row],[2027/28 From - Spending review Topic 2]]+Dataset[[#This Row],[2027/28 From - Spending review Topic 3]]+Dataset[[#This Row],[2027/28 From - Spending review Topic 4]]+Dataset[[#This Row],[2027/28 From - Other reallocations]]","v":0},{"$f":"Dataset[[#This Row],[2028/29 From - Spending review Topic 1]]+Dataset[[#This Row],[2028/29 From - Spending review Topic 2]]+Dataset[[#This Row],[2028/29 From - Spending review Topic 3]]+Dataset[[#This Row],[2028/29 From - Spending review Topic 4]]+Dataset[[#This Row],[2028/29 From - Other reallocations]]","v":0},{"$f":"Dataset[[#This Row],[2029/30 From - Spending review Topic 1]]+Dataset[[#This Row],[2029/30 From - Spending review Topic 2]]+Dataset[[#This Row],[2029/30 From - Spending review Topic 3]]+Dataset[[#This Row],[2029/30 From - Spending review Topic 4]]+Dataset[[#This Row],[2029/30 From - Other reallocations]]","v":0},{"$f":"Dataset[[#This Row],[2027/28 To - Spending review Topic 1]]+Dataset[[#This Row],[2027/28 To - Spending review Topic 2]]+Dataset[[#This Row],[2027/28 To - Spending review Topic 3]]+Dataset[[#This Row],[2027/28 To - Spending review Topic 4]]+Dataset[[#This Row],[2027/28 To - Other reallocations]]","v":0},{"$f":"Dataset[[#This Row],[2028/29 To - Spending review Topic 1]]+Dataset[[#This Row],[2028/29 To - Spending review Topic 2]]+Dataset[[#This Row],[2028/29 To - Spending review Topic 3]]+Dataset[[#This Row],[2028/29 To - Spending review Topic 4]]+Dataset[[#This Row],[2028/29 To - Other reallocations]]","v":0},{"$f":"Dataset[[#This Row],[2029/30 To - Spending review Topic 1]]+Dataset[[#This Row],[2029/30 To - Spending review Topic 2]]+Dataset[[#This Row],[2029/30 To - Spending review Topic 3]]+Dataset[[#This Row],[2029/30 To - Spending review Topic 4]]+Dataset[[#This Row],[2029/30 To - Other reallocations]]","v":0},{"$f":"Dataset[[#This Row],[2027/28 Targeted savings]]+Dataset[[#This Row],[2027/28 From - Total]]","v":0},{"$f":"Dataset[[#This Row],[2028/29 Targeted savings]]+Dataset[[#This Row],[2028/29 From - Total]]","v":0},{"$f":"Dataset[[#This Row],[2029/30 Targeted savings]]+Dataset[[#This Row],[2029/30 From - Total]]","v":0},{"$f":"Dataset[[#This Row],[2026/27 Targeted savings]]","v":0},{"$f":"SUM(Dataset[[#This Row],[2027/28 Targeted savings]],Dataset[[#This Row],[2027/28 From - Total]],Dataset[[#This Row],[2027/28 To - Total]])","v":0},{"$f":"SUM(Dataset[[#This Row],[2028/29 Targeted savings]],Dataset[[#This Row],[2028/29 From - Total]],Dataset[[#This Row],[2028/29 To - Total]])","v":0},{"$f":"SUM(Dataset[[#This Row],[2029/30 Targeted savings]],Dataset[[#This Row],[2029/30 From - Total]],Dataset[[#This Row],[2029/30 To - Total]])","v":0},{"$f":"Dataset[[#This Row],[2026/27 Baseline]]+Dataset[[#This Row],[2026/27 Total change]]","v":4},{"$f":"Dataset[[#This Row],[2027/28 Baseline]]+Dataset[[#This Row],[2027/28 Total change]]","v":22},{"$f":"Dataset[[#This Row],[2028/29 Baseline]]+Dataset[[#This Row],[2028/29 Total change]]","v":22},{"$f":"Dataset[[#This Row],[2029/30 Baseline]]+Dataset[[#This Row],[2029/30 Total change]]","v":23}]
["NAT|Non-transfer","30|Fleet services (including government motor transport)","2027_28","MTEC2027",30,6,2,33151,631,"30","06","02","033151","000631","30|06|02|000631","01","01","02","19","19","01|01|02|19|19","National","Communications and Digital Technologies","Digital Society and Economy","Digital Society and Economy","Non-transfer","Current","Current payments","Goods and services","Fleet services (including government motor transport)","Fleet services (including government motor transport)","Economic development","Economic regulation and infrastructure","NAT",0,0,0,10,10,10,0,0,0,0,0,null,null,null,null,null,null,null,null,null,null,null,null,null,null,null,null,null,null,null,null,null,null,null,null,null,null,null,null,null,null,null,null,null,null,{"$f":"Dataset[[#This Row],[2027/28 From - Spending review Topic 1]]+Dataset[[#This Row],[2027/28 From - Spending review Topic 2]]+Dataset[[#This Row],[2027/28 From - Spending review Topic 3]]+Dataset[[#This Row],[2027/28 From - Spending review Topic 4]]+Dataset[[#This Row],[2027/28 From - Other reallocations]]","v":0},{"$f":"Dataset[[#This Row],[2028/29 From - Spending review Topic 1]]+Dataset[[#This Row],[2028/29 From - Spending review Topic 2]]+Dataset[[#This Row],[2028/29 From - Spending review Topic 3]]+Dataset[[#This Row],[2028/29 From - Spending review Topic 4]]+Dataset[[#This Row],[2028/29 From - Other reallocations]]","v":0},{"$f":"Dataset[[#This Row],[2029/30 From - Spending review Topic 1]]+Dataset[[#This Row],[2029/30 From - Spending review Topic 2]]+Dataset[[#This Row],[2029/30 From - Spending review Topic 3]]+Dataset[[#This Row],[2029/30 From - Spending review Topic 4]]+Dataset[[#This Row],[2029/30 From - Other reallocations]]","v":0},{"$f":"Dataset[[#This Row],[2027/28 To - Spending review Topic 1]]+Dataset[[#This Row],[2027/28 To - Spending review Topic 2]]+Dataset[[#This Row],[2027/28 To - Spending review Topic 3]]+Dataset[[#This Row],[2027/28 To - Spending review Topic 4]]+Dataset[[#This Row],[2027/28 To - Other reallocations]]","v":0},{"$f":"Dataset[[#This Row],[2028/29 To - Spending review Topic 1]]+Dataset[[#This Row],[2028/29 To - Spending review Topic 2]]+Dataset[[#This Row],[2028/29 To - Spending review Topic 3]]+Dataset[[#This Row],[2028/29 To - Spending review Topic 4]]+Dataset[[#This Row],[2028/29 To - Other reallocations]]","v":0},{"$f":"Dataset[[#This Row],[2029/30 To - Spending review Topic 1]]+Dataset[[#This Row],[2029/30 To - Spending review Topic 2]]+Dataset[[#This Row],[2029/30 To - Spending review Topic 3]]+Dataset[[#This Row],[2029/30 To - Spending review Topic 4]]+Dataset[[#This Row],[2029/30 To - Other reallocations]]","v":0},{"$f":"Dataset[[#This Row],[2027/28 Targeted savings]]+Dataset[[#This Row],[2027/28 From - Total]]","v":0},{"$f":"Dataset[[#This Row],[2028/29 Targeted savings]]+Dataset[[#This Row],[2028/29 From - Total]]","v":0},{"$f":"Dataset[[#This Row],[2029/30 Targeted savings]]+Dataset[[#This Row],[2029/30 From - Total]]","v":0},{"$f":"Dataset[[#This Row],[2026/27 Targeted savings]]","v":0},{"$f":"SUM(Dataset[[#This Row],[2027/28 Targeted savings]],Dataset[[#This Row],[2027/28 From - Total]],Dataset[[#This Row],[2027/28 To - Total]])","v":0},{"$f":"SUM(Dataset[[#This Row],[2028/29 Targeted savings]],Dataset[[#This Row],[2028/29 From - Total]],Dataset[[#This Row],[2028/29 To - Total]])","v":0},{"$f":"SUM(Dataset[[#This Row],[2029/30 Targeted savings]],Dataset[[#This Row],[2029/30 From - Total]],Dataset[[#This Row],[2029/30 To - Total]])","v":0},{"$f":"Dataset[[#This Row],[2026/27 Baseline]]+Dataset[[#This Row],[2026/27 Total change]]","v":0},{"$f":"Dataset[[#This Row],[2027/28 Baseline]]+Dataset[[#This Row],[2027/28 Total change]]","v":0},{"$f":"Dataset[[#This Row],[2028/29 Baseline]]+Dataset[[#This Row],[2028/29 Total change]]","v":0},{"$f":"Dataset[[#This Row],[2029/30 Baseline]]+Dataset[[#This Row],[2029/30 Total change]]","v":0}]
["NAT|Non-transfer","30|Consumable supplies","2027_28","MTEC2027",30,6,2,33152,632,"30","06","02","033152","000632","30|06|02|000632","01","01","02","31","31","01|01|02|31|31","National","Communications and Digital Technologies","Digital Society and Economy","Digital Society and Economy","Non-transfer","Current","Current payments","Goods and services","Consumable supplies","Consumable supplies","Economic development","Economic regulation and infrastructure","NAT",9,8,3,8,8,8,0,50,34,35,36,null,null,null,null,null,null,null,null,null,null,null,null,null,null,null,null,null,null,null,null,null,null,null,null,null,null,null,null,null,null,null,null,null,null,{"$f":"Dataset[[#This Row],[2027/28 From - Spending review Topic 1]]+Dataset[[#This Row],[2027/28 From - Spending review Topic 2]]+Dataset[[#This Row],[2027/28 From - Spending review Topic 3]]+Dataset[[#This Row],[2027/28 From - Spending review Topic 4]]+Dataset[[#This Row],[2027/28 From - Other reallocations]]","v":0},{"$f":"Dataset[[#This Row],[2028/29 From - Spending review Topic 1]]+Dataset[[#This Row],[2028/29 From - Spending review Topic 2]]+Dataset[[#This Row],[2028/29 From - Spending review Topic 3]]+Dataset[[#This Row],[2028/29 From - Spending review Topic 4]]+Dataset[[#This Row],[2028/29 From - Other reallocations]]","v":0},{"$f":"Dataset[[#This Row],[2029/30 From - Spending review Topic 1]]+Dataset[[#This Row],[2029/30 From - Spending review Topic 2]]+Dataset[[#This Row],[2029/30 From - Spending review Topic 3]]+Dataset[[#This Row],[2029/30 From - Spending review Topic 4]]+Dataset[[#This Row],[2029/30 From - Other reallocations]]","v":0},{"$f":"Dataset[[#This Row],[2027/28 To - Spending review Topic 1]]+Dataset[[#This Row],[2027/28 To - Spending review Topic 2]]+Dataset[[#This Row],[2027/28 To - Spending review Topic 3]]+Dataset[[#This Row],[2027/28 To - Spending review Topic 4]]+Dataset[[#This Row],[2027/28 To - Other reallocations]]","v":0},{"$f":"Dataset[[#This Row],[2028/29 To - Spending review Topic 1]]+Dataset[[#This Row],[2028/29 To - Spending review Topic 2]]+Dataset[[#This Row],[2028/29 To - Spending review Topic 3]]+Dataset[[#This Row],[2028/29 To - Spending review Topic 4]]+Dataset[[#This Row],[2028/29 To - Other reallocations]]","v":0},{"$f":"Dataset[[#This Row],[2029/30 To - Spending review Topic 1]]+Dataset[[#This Row],[2029/30 To - Spending review Topic 2]]+Dataset[[#This Row],[2029/30 To - Spending review Topic 3]]+Dataset[[#This Row],[2029/30 To - Spending review Topic 4]]+Dataset[[#This Row],[2029/30 To - Other reallocations]]","v":0},{"$f":"Dataset[[#This Row],[2027/28 Targeted savings]]+Dataset[[#This Row],[2027/28 From - Total]]","v":0},{"$f":"Dataset[[#This Row],[2028/29 Targeted savings]]+Dataset[[#This Row],[2028/29 From - Total]]","v":0},{"$f":"Dataset[[#This Row],[2029/30 Targeted savings]]+Dataset[[#This Row],[2029/30 From - Total]]","v":0},{"$f":"Dataset[[#This Row],[2026/27 Targeted savings]]","v":0},{"$f":"SUM(Dataset[[#This Row],[2027/28 Targeted savings]],Dataset[[#This Row],[2027/28 From - Total]],Dataset[[#This Row],[2027/28 To - Total]])","v":0},{"$f":"SUM(Dataset[[#This Row],[2028/29 Targeted savings]],Dataset[[#This Row],[2028/29 From - Total]],Dataset[[#This Row],[2028/29 To - Total]])","v":0},{"$f":"SUM(Dataset[[#This Row],[2029/30 Targeted savings]],Dataset[[#This Row],[2029/30 From - Total]],Dataset[[#This Row],[2029/30 To - Total]])","v":0},{"$f":"Dataset[[#This Row],[2026/27 Baseline]]+Dataset[[#This Row],[2026/27 Total change]]","v":50},{"$f":"Dataset[[#This Row],[2027/28 Baseline]]+Dataset[[#This Row],[2027/28 Total change]]","v":34},{"$f":"Dataset[[#This Row],[2028/29 Baseline]]+Dataset[[#This Row],[2028/29 Total change]]","v":35},{"$f":"Dataset[[#This Row],[2029/30 Baseline]]+Dataset[[#This Row],[2029/30 Total change]]","v":36}]
["NAT|Non-transfer","30|Consumables: Stationery, printing and office supplies","2027_28","MTEC2027",30,6,2,33153,633,"30","06","02","033153","000633","30|06|02|000633","01","01","02","32","32","01|01|02|32|32","National","Communications and Digital Technologies","Digital Society and Economy","Digital Society and Economy","Non-transfer","Current","Current payments","Goods and services","Consumables: Stationery, printing and office supplies","Consumables: Stationery, printing and office supplies","Economic development","Economic regulation and infrastructure","NAT",10,984,4,395,395,395,0,35,521,537,553,null,null,null,null,null,null,null,null,null,null,null,null,null,null,null,null,null,null,null,null,null,null,null,null,null,null,null,null,null,null,null,null,null,null,{"$f":"Dataset[[#This Row],[2027/28 From - Spending review Topic 1]]+Dataset[[#This Row],[2027/28 From - Spending review Topic 2]]+Dataset[[#This Row],[2027/28 From - Spending review Topic 3]]+Dataset[[#This Row],[2027/28 From - Spending review Topic 4]]+Dataset[[#This Row],[2027/28 From - Other reallocations]]","v":0},{"$f":"Dataset[[#This Row],[2028/29 From - Spending review Topic 1]]+Dataset[[#This Row],[2028/29 From - Spending review Topic 2]]+Dataset[[#This Row],[2028/29 From - Spending review Topic 3]]+Dataset[[#This Row],[2028/29 From - Spending review Topic 4]]+Dataset[[#This Row],[2028/29 From - Other reallocations]]","v":0},{"$f":"Dataset[[#This Row],[2029/30 From - Spending review Topic 1]]+Dataset[[#This Row],[2029/30 From - Spending review Topic 2]]+Dataset[[#This Row],[2029/30 From - Spending review Topic 3]]+Dataset[[#This Row],[2029/30 From - Spending review Topic 4]]+Dataset[[#This Row],[2029/30 From - Other reallocations]]","v":0},{"$f":"Dataset[[#This Row],[2027/28 To - Spending review Topic 1]]+Dataset[[#This Row],[2027/28 To - Spending review Topic 2]]+Dataset[[#This Row],[2027/28 To - Spending review Topic 3]]+Dataset[[#This Row],[2027/28 To - Spending review Topic 4]]+Dataset[[#This Row],[2027/28 To - Other reallocations]]","v":0},{"$f":"Dataset[[#This Row],[2028/29 To - Spending review Topic 1]]+Dataset[[#This Row],[2028/29 To - Spending review Topic 2]]+Dataset[[#This Row],[2028/29 To - Spending review Topic 3]]+Dataset[[#This Row],[2028/29 To - Spending review Topic 4]]+Dataset[[#This Row],[2028/29 To - Other reallocations]]","v":0},{"$f":"Dataset[[#This Row],[2029/30 To - Spending review Topic 1]]+Dataset[[#This Row],[2029/30 To - Spending review Topic 2]]+Dataset[[#This Row],[2029/30 To - Spending review Topic 3]]+Dataset[[#This Row],[2029/30 To - Spending review Topic 4]]+Dataset[[#This Row],[2029/30 To - Other reallocations]]","v":0},{"$f":"Dataset[[#This Row],[2027/28 Targeted savings]]+Dataset[[#This Row],[2027/28 From - Total]]","v":0},{"$f":"Dataset[[#This Row],[2028/29 Targeted savings]]+Dataset[[#This Row],[2028/29 From - Total]]","v":0},{"$f":"Dataset[[#This Row],[2029/30 Targeted savings]]+Dataset[[#This Row],[2029/30 From - Total]]","v":0},{"$f":"Dataset[[#This Row],[2026/27 Targeted savings]]","v":0},{"$f":"SUM(Dataset[[#This Row],[2027/28 Targeted savings]],Dataset[[#This Row],[2027/28 From - Total]],Dataset[[#This Row],[2027/28 To - Total]])","v":0},{"$f":"SUM(Dataset[[#This Row],[2028/29 Targeted savings]],Dataset[[#This Row],[2028/29 From - Total]],Dataset[[#This Row],[2028/29 To - Total]])","v":0},{"$f":"SUM(Dataset[[#This Row],[2029/30 Targeted savings]],Dataset[[#This Row],[2029/30 From - Total]],Dataset[[#This Row],[2029/30 To - Total]])","v":0},{"$f":"Dataset[[#This Row],[2026/27 Baseline]]+Dataset[[#This Row],[2026/27 Total change]]","v":35},{"$f":"Dataset[[#This Row],[2027/28 Baseline]]+Dataset[[#This Row],[2027/28 Total change]]","v":521},{"$f":"Dataset[[#This Row],[2028/29 Baseline]]+Dataset[[#This Row],[2028/29 Total change]]","v":537},{"$f":"Dataset[[#This Row],[2029/30 Baseline]]+Dataset[[#This Row],[2029/30 Total change]]","v":553}]
["NAT|Non-transfer","30|Operating leases","2027_28","MTEC2027",30,6,2,33154,634,"30","06","02","033154","000634","30|06|02|000634","01","01","02","33","33","01|01|02|33|33","National","Communications and Digital Technologies","Digital Society and Economy","Digital Society and Economy","Non-transfer","Current","Current payments","Goods and services","Operating leases","Operating leases","Economic development","Economic regulation and infrastructure","NAT",171,175,216,310,310,310,0,406,558,576,593,null,null,null,null,null,null,null,null,null,null,null,null,null,null,null,null,null,null,null,null,null,null,null,null,null,null,null,null,null,null,null,null,null,null,{"$f":"Dataset[[#This Row],[2027/28 From - Spending review Topic 1]]+Dataset[[#This Row],[2027/28 From - Spending review Topic 2]]+Dataset[[#This Row],[2027/28 From - Spending review Topic 3]]+Dataset[[#This Row],[2027/28 From - Spending review Topic 4]]+Dataset[[#This Row],[2027/28 From - Other reallocations]]","v":0},{"$f":"Dataset[[#This Row],[2028/29 From - Spending review Topic 1]]+Dataset[[#This Row],[2028/29 From - Spending review Topic 2]]+Dataset[[#This Row],[2028/29 From - Spending review Topic 3]]+Dataset[[#This Row],[2028/29 From - Spending review Topic 4]]+Dataset[[#This Row],[2028/29 From - Other reallocations]]","v":0},{"$f":"Dataset[[#This Row],[2029/30 From - Spending review Topic 1]]+Dataset[[#This Row],[2029/30 From - Spending review Topic 2]]+Dataset[[#This Row],[2029/30 From - Spending review Topic 3]]+Dataset[[#This Row],[2029/30 From - Spending review Topic 4]]+Dataset[[#This Row],[2029/30 From - Other reallocations]]","v":0},{"$f":"Dataset[[#This Row],[2027/28 To - Spending review Topic 1]]+Dataset[[#This Row],[2027/28 To - Spending review Topic 2]]+Dataset[[#This Row],[2027/28 To - Spending review Topic 3]]+Dataset[[#This Row],[2027/28 To - Spending review Topic 4]]+Dataset[[#This Row],[2027/28 To - Other reallocations]]","v":0},{"$f":"Dataset[[#This Row],[2028/29 To - Spending review Topic 1]]+Dataset[[#This Row],[2028/29 To - Spending review Topic 2]]+Dataset[[#This Row],[2028/29 To - Spending review Topic 3]]+Dataset[[#This Row],[2028/29 To - Spending review Topic 4]]+Dataset[[#This Row],[2028/29 To - Other reallocations]]","v":0},{"$f":"Dataset[[#This Row],[2029/30 To - Spending review Topic 1]]+Dataset[[#This Row],[2029/30 To - Spending review Topic 2]]+Dataset[[#This Row],[2029/30 To - Spending review Topic 3]]+Dataset[[#This Row],[2029/30 To - Spending review Topic 4]]+Dataset[[#This Row],[2029/30 To - Other reallocations]]","v":0},{"$f":"Dataset[[#This Row],[2027/28 Targeted savings]]+Dataset[[#This Row],[2027/28 From - Total]]","v":0},{"$f":"Dataset[[#This Row],[2028/29 Targeted savings]]+Dataset[[#This Row],[2028/29 From - Total]]","v":0},{"$f":"Dataset[[#This Row],[2029/30 Targeted savings]]+Dataset[[#This Row],[2029/30 From - Total]]","v":0},{"$f":"Dataset[[#This Row],[2026/27 Targeted savings]]","v":0},{"$f":"SUM(Dataset[[#This Row],[2027/28 Targeted savings]],Dataset[[#This Row],[2027/28 From - Total]],Dataset[[#This Row],[2027/28 To - Total]])","v":0},{"$f":"SUM(Dataset[[#This Row],[2028/29 Targeted savings]],Dataset[[#This Row],[2028/29 From - Total]],Dataset[[#This Row],[2028/29 To - Total]])","v":0},{"$f":"SUM(Dataset[[#This Row],[2029/30 Targeted savings]],Dataset[[#This Row],[2029/30 From - Total]],Dataset[[#This Row],[2029/30 To - Total]])","v":0},{"$f":"Dataset[[#This Row],[2026/27 Baseline]]+Dataset[[#This Row],[2026/27 Total change]]","v":406},{"$f":"Dataset[[#This Row],[2027/28 Baseline]]+Dataset[[#This Row],[2027/28 Total change]]","v":558},{"$f":"Dataset[[#This Row],[2028/29 Baseline]]+Dataset[[#This Row],[2028/29 Total change]]","v":576},{"$f":"Dataset[[#This Row],[2029/30 Baseline]]+Dataset[[#This Row],[2029/30 Total change]]","v":593}]
["NAT|Non-transfer","30|Rental and hiring","2027_28","MTEC2027",30,6,2,33155,635,"30","06","02","033155","000635","30|06|02|000635","01","01","02","34","34","01|01|02|34|34","National","Communications and Digital Technologies","Digital Society and Economy","Digital Society and Economy","Non-transfer","Current","Current payments","Goods and services","Rental and hiring","Rental and hiring","Economic development","Economic regulation and infrastructure","NAT",0,65,0,25,25,25,0,0,0,0,0,null,null,null,null,null,null,null,null,null,null,null,null,null,null,null,null,null,null,null,null,null,null,null,null,null,null,null,null,null,null,null,null,null,null,{"$f":"Dataset[[#This Row],[2027/28 From - Spending review Topic 1]]+Dataset[[#This Row],[2027/28 From - Spending review Topic 2]]+Dataset[[#This Row],[2027/28 From - Spending review Topic 3]]+Dataset[[#This Row],[2027/28 From - Spending review Topic 4]]+Dataset[[#This Row],[2027/28 From - Other reallocations]]","v":0},{"$f":"Dataset[[#This Row],[2028/29 From - Spending review Topic 1]]+Dataset[[#This Row],[2028/29 From - Spending review Topic 2]]+Dataset[[#This Row],[2028/29 From - Spending review Topic 3]]+Dataset[[#This Row],[2028/29 From - Spending review Topic 4]]+Dataset[[#This Row],[2028/29 From - Other reallocations]]","v":0},{"$f":"Dataset[[#This Row],[2029/30 From - Spending review Topic 1]]+Dataset[[#This Row],[2029/30 From - Spending review Topic 2]]+Dataset[[#This Row],[2029/30 From - Spending review Topic 3]]+Dataset[[#This Row],[2029/30 From - Spending review Topic 4]]+Dataset[[#This Row],[2029/30 From - Other reallocations]]","v":0},{"$f":"Dataset[[#This Row],[2027/28 To - Spending review Topic 1]]+Dataset[[#This Row],[2027/28 To - Spending review Topic 2]]+Dataset[[#This Row],[2027/28 To - Spending review Topic 3]]+Dataset[[#This Row],[2027/28 To - Spending review Topic 4]]+Dataset[[#This Row],[2027/28 To - Other reallocations]]","v":0},{"$f":"Dataset[[#This Row],[2028/29 To - Spending review Topic 1]]+Dataset[[#This Row],[2028/29 To - Spending review Topic 2]]+Dataset[[#This Row],[2028/29 To - Spending review Topic 3]]+Dataset[[#This Row],[2028/29 To - Spending review Topic 4]]+Dataset[[#This Row],[2028/29 To - Other reallocations]]","v":0},{"$f":"Dataset[[#This Row],[2029/30 To - Spending review Topic 1]]+Dataset[[#This Row],[2029/30 To - Spending review Topic 2]]+Dataset[[#This Row],[2029/30 To - Spending review Topic 3]]+Dataset[[#This Row],[2029/30 To - Spending review Topic 4]]+Dataset[[#This Row],[2029/30 To - Other reallocations]]","v":0},{"$f":"Dataset[[#This Row],[2027/28 Targeted savings]]+Dataset[[#This Row],[2027/28 From - Total]]","v":0},{"$f":"Dataset[[#This Row],[2028/29 Targeted savings]]+Dataset[[#This Row],[2028/29 From - Total]]","v":0},{"$f":"Dataset[[#This Row],[2029/30 Targeted savings]]+Dataset[[#This Row],[2029/30 From - Total]]","v":0},{"$f":"Dataset[[#This Row],[2026/27 Targeted savings]]","v":0},{"$f":"SUM(Dataset[[#This Row],[2027/28 Targeted savings]],Dataset[[#This Row],[2027/28 From - Total]],Dataset[[#This Row],[2027/28 To - Total]])","v":0},{"$f":"SUM(Dataset[[#This Row],[2028/29 Targeted savings]],Dataset[[#This Row],[2028/29 From - Total]],Dataset[[#This Row],[2028/29 To - Total]])","v":0},{"$f":"SUM(Dataset[[#This Row],[2029/30 Targeted savings]],Dataset[[#This Row],[2029/30 From - Total]],Dataset[[#This Row],[2029/30 To - Total]])","v":0},{"$f":"Dataset[[#This Row],[2026/27 Baseline]]+Dataset[[#This Row],[2026/27 Total change]]","v":0},{"$f":"Dataset[[#This Row],[2027/28 Baseline]]+Dataset[[#This Row],[2027/28 Total change]]","v":0},{"$f":"Dataset[[#This Row],[2028/29 Baseline]]+Dataset[[#This Row],[2028/29 Total change]]","v":0},{"$f":"Dataset[[#This Row],[2029/30 Baseline]]+Dataset[[#This Row],[2029/30 Total change]]","v":0}]
["NAT|Non-transfer","30|Property payments","2027_28","MTEC2027",30,6,2,33156,636,"30","06","02","033156","000636","30|06|02|000636","01","01","02","35","35","01|01|02|35|35","National","Communications and Digital Technologies","Digital Society and Economy","Digital Society and Economy","Non-transfer","Current","Current payments","Goods and services","Property payments","Property payments","Economic development","Economic regulation and infrastructure","NAT",0,0,1,0,0,0,0,0,0,0,0,null,null,null,null,null,null,null,null,null,null,null,null,null,null,null,null,null,null,null,null,null,null,null,null,null,null,null,null,null,null,null,null,null,null,{"$f":"Dataset[[#This Row],[2027/28 From - Spending review Topic 1]]+Dataset[[#This Row],[2027/28 From - Spending review Topic 2]]+Dataset[[#This Row],[2027/28 From - Spending review Topic 3]]+Dataset[[#This Row],[2027/28 From - Spending review Topic 4]]+Dataset[[#This Row],[2027/28 From - Other reallocations]]","v":0},{"$f":"Dataset[[#This Row],[2028/29 From - Spending review Topic 1]]+Dataset[[#This Row],[2028/29 From - Spending review Topic 2]]+Dataset[[#This Row],[2028/29 From - Spending review Topic 3]]+Dataset[[#This Row],[2028/29 From - Spending review Topic 4]]+Dataset[[#This Row],[2028/29 From - Other reallocations]]","v":0},{"$f":"Dataset[[#This Row],[2029/30 From - Spending review Topic 1]]+Dataset[[#This Row],[2029/30 From - Spending review Topic 2]]+Dataset[[#This Row],[2029/30 From - Spending review Topic 3]]+Dataset[[#This Row],[2029/30 From - Spending review Topic 4]]+Dataset[[#This Row],[2029/30 From - Other reallocations]]","v":0},{"$f":"Dataset[[#This Row],[2027/28 To - Spending review Topic 1]]+Dataset[[#This Row],[2027/28 To - Spending review Topic 2]]+Dataset[[#This Row],[2027/28 To - Spending review Topic 3]]+Dataset[[#This Row],[2027/28 To - Spending review Topic 4]]+Dataset[[#This Row],[2027/28 To - Other reallocations]]","v":0},{"$f":"Dataset[[#This Row],[2028/29 To - Spending review Topic 1]]+Dataset[[#This Row],[2028/29 To - Spending review Topic 2]]+Dataset[[#This Row],[2028/29 To - Spending review Topic 3]]+Dataset[[#This Row],[2028/29 To - Spending review Topic 4]]+Dataset[[#This Row],[2028/29 To - Other reallocations]]","v":0},{"$f":"Dataset[[#This Row],[2029/30 To - Spending review Topic 1]]+Dataset[[#This Row],[2029/30 To - Spending review Topic 2]]+Dataset[[#This Row],[2029/30 To - Spending review Topic 3]]+Dataset[[#This Row],[2029/30 To - Spending review Topic 4]]+Dataset[[#This Row],[2029/30 To - Other reallocations]]","v":0},{"$f":"Dataset[[#This Row],[2027/28 Targeted savings]]+Dataset[[#This Row],[2027/28 From - Total]]","v":0},{"$f":"Dataset[[#This Row],[2028/29 Targeted savings]]+Dataset[[#This Row],[2028/29 From - Total]]","v":0},{"$f":"Dataset[[#This Row],[2029/30 Targeted savings]]+Dataset[[#This Row],[2029/30 From - Total]]","v":0},{"$f":"Dataset[[#This Row],[2026/27 Targeted savings]]","v":0},{"$f":"SUM(Dataset[[#This Row],[2027/28 Targeted savings]],Dataset[[#This Row],[2027/28 From - Total]],Dataset[[#This Row],[2027/28 To - Total]])","v":0},{"$f":"SUM(Dataset[[#This Row],[2028/29 Targeted savings]],Dataset[[#This Row],[2028/29 From - Total]],Dataset[[#This Row],[2028/29 To - Total]])","v":0},{"$f":"SUM(Dataset[[#This Row],[2029/30 Targeted savings]],Dataset[[#This Row],[2029/30 From - Total]],Dataset[[#This Row],[2029/30 To - Total]])","v":0},{"$f":"Dataset[[#This Row],[2026/27 Baseline]]+Dataset[[#This Row],[2026/27 Total change]]","v":0},{"$f":"Dataset[[#This Row],[2027/28 Baseline]]+Dataset[[#This Row],[2027/28 Total change]]","v":0},{"$f":"Dataset[[#This Row],[2028/29 Baseline]]+Dataset[[#This Row],[2028/29 Total change]]","v":0},{"$f":"Dataset[[#This Row],[2029/30 Baseline]]+Dataset[[#This Row],[2029/30 Total change]]","v":0}]
["NAT|Non-transfer","30|Travel and subsistence","2027_28","MTEC2027",30,6,2,33157,637,"30","06","02","033157","000637","30|06|02|000637","01","01","02","37","37","01|01|02|37|37","National","Communications and Digital Technologies","Digital Society and Economy","Digital Society and Economy","Non-transfer","Current","Current payments","Goods and services","Travel and subsistence","Travel and subsistence","Economic development","Economic regulation and infrastructure","NAT",2584,4562,2890,2211,2211,2211,0,4094,6735,9616,9906,null,null,null,null,null,null,null,null,null,null,null,null,null,null,null,null,null,null,null,null,null,null,null,null,null,null,null,null,null,null,null,null,null,null,{"$f":"Dataset[[#This Row],[2027/28 From - Spending review Topic 1]]+Dataset[[#This Row],[2027/28 From - Spending review Topic 2]]+Dataset[[#This Row],[2027/28 From - Spending review Topic 3]]+Dataset[[#This Row],[2027/28 From - Spending review Topic 4]]+Dataset[[#This Row],[2027/28 From - Other reallocations]]","v":0},{"$f":"Dataset[[#This Row],[2028/29 From - Spending review Topic 1]]+Dataset[[#This Row],[2028/29 From - Spending review Topic 2]]+Dataset[[#This Row],[2028/29 From - Spending review Topic 3]]+Dataset[[#This Row],[2028/29 From - Spending review Topic 4]]+Dataset[[#This Row],[2028/29 From - Other reallocations]]","v":0},{"$f":"Dataset[[#This Row],[2029/30 From - Spending review Topic 1]]+Dataset[[#This Row],[2029/30 From - Spending review Topic 2]]+Dataset[[#This Row],[2029/30 From - Spending review Topic 3]]+Dataset[[#This Row],[2029/30 From - Spending review Topic 4]]+Dataset[[#This Row],[2029/30 From - Other reallocations]]","v":0},{"$f":"Dataset[[#This Row],[2027/28 To - Spending review Topic 1]]+Dataset[[#This Row],[2027/28 To - Spending review Topic 2]]+Dataset[[#This Row],[2027/28 To - Spending review Topic 3]]+Dataset[[#This Row],[2027/28 To - Spending review Topic 4]]+Dataset[[#This Row],[2027/28 To - Other reallocations]]","v":0},{"$f":"Dataset[[#This Row],[2028/29 To - Spending review Topic 1]]+Dataset[[#This Row],[2028/29 To - Spending review Topic 2]]+Dataset[[#This Row],[2028/29 To - Spending review Topic 3]]+Dataset[[#This Row],[2028/29 To - Spending review Topic 4]]+Dataset[[#This Row],[2028/29 To - Other reallocations]]","v":0},{"$f":"Dataset[[#This Row],[2029/30 To - Spending review Topic 1]]+Dataset[[#This Row],[2029/30 To - Spending review Topic 2]]+Dataset[[#This Row],[2029/30 To - Spending review Topic 3]]+Dataset[[#This Row],[2029/30 To - Spending review Topic 4]]+Dataset[[#This Row],[2029/30 To - Other reallocations]]","v":0},{"$f":"Dataset[[#This Row],[2027/28 Targeted savings]]+Dataset[[#This Row],[2027/28 From - Total]]","v":0},{"$f":"Dataset[[#This Row],[2028/29 Targeted savings]]+Dataset[[#This Row],[2028/29 From - Total]]","v":0},{"$f":"Dataset[[#This Row],[2029/30 Targeted savings]]+Dataset[[#This Row],[2029/30 From - Total]]","v":0},{"$f":"Dataset[[#This Row],[2026/27 Targeted savings]]","v":0},{"$f":"SUM(Dataset[[#This Row],[2027/28 Targeted savings]],Dataset[[#This Row],[2027/28 From - Total]],Dataset[[#This Row],[2027/28 To - Total]])","v":0},{"$f":"SUM(Dataset[[#This Row],[2028/29 Targeted savings]],Dataset[[#This Row],[2028/29 From - Total]],Dataset[[#This Row],[2028/29 To - Total]])","v":0},{"$f":"SUM(Dataset[[#This Row],[2029/30 Targeted savings]],Dataset[[#This Row],[2029/30 From - Total]],Dataset[[#This Row],[2029/30 To - Total]])","v":0},{"$f":"Dataset[[#This Row],[2026/27 Baseline]]+Dataset[[#This Row],[2026/27 Total change]]","v":4094},{"$f":"Dataset[[#This Row],[2027/28 Baseline]]+Dataset[[#This Row],[2027/28 Total change]]","v":6735},{"$f":"Dataset[[#This Row],[2028/29 Baseline]]+Dataset[[#This Row],[2028/29 Total change]]","v":9616},{"$f":"Dataset[[#This Row],[2029/30 Baseline]]+Dataset[[#This Row],[2029/30 Total change]]","v":9906}]
["NAT|Non-transfer","30|Training and development","2027_28","MTEC2027",30,6,2,33158,638,"30","06","02","033158","000638","30|06|02|000638","01","01","02","38","38","01|01|02|38|38","National","Communications and Digital Technologies","Digital Society and Economy","Digital Society and Economy","Non-transfer","Current","Current payments","Goods and services","Training and development","Training and development","Economic development","Economic regulation and infrastructure","NAT",75,7177,15,330,330,330,0,290,669,690,711,null,null,null,null,null,null,null,null,null,null,null,null,null,null,null,null,null,null,null,null,null,null,null,null,null,null,null,null,null,null,null,null,null,null,{"$f":"Dataset[[#This Row],[2027/28 From - Spending review Topic 1]]+Dataset[[#This Row],[2027/28 From - Spending review Topic 2]]+Dataset[[#This Row],[2027/28 From - Spending review Topic 3]]+Dataset[[#This Row],[2027/28 From - Spending review Topic 4]]+Dataset[[#This Row],[2027/28 From - Other reallocations]]","v":0},{"$f":"Dataset[[#This Row],[2028/29 From - Spending review Topic 1]]+Dataset[[#This Row],[2028/29 From - Spending review Topic 2]]+Dataset[[#This Row],[2028/29 From - Spending review Topic 3]]+Dataset[[#This Row],[2028/29 From - Spending review Topic 4]]+Dataset[[#This Row],[2028/29 From - Other reallocations]]","v":0},{"$f":"Dataset[[#This Row],[2029/30 From - Spending review Topic 1]]+Dataset[[#This Row],[2029/30 From - Spending review Topic 2]]+Dataset[[#This Row],[2029/30 From - Spending review Topic 3]]+Dataset[[#This Row],[2029/30 From - Spending review Topic 4]]+Dataset[[#This Row],[2029/30 From - Other reallocations]]","v":0},{"$f":"Dataset[[#This Row],[2027/28 To - Spending review Topic 1]]+Dataset[[#This Row],[2027/28 To - Spending review Topic 2]]+Dataset[[#This Row],[2027/28 To - Spending review Topic 3]]+Dataset[[#This Row],[2027/28 To - Spending review Topic 4]]+Dataset[[#This Row],[2027/28 To - Other reallocations]]","v":0},{"$f":"Dataset[[#This Row],[2028/29 To - Spending review Topic 1]]+Dataset[[#This Row],[2028/29 To - Spending review Topic 2]]+Dataset[[#This Row],[2028/29 To - Spending review Topic 3]]+Dataset[[#This Row],[2028/29 To - Spending review Topic 4]]+Dataset[[#This Row],[2028/29 To - Other reallocations]]","v":0},{"$f":"Dataset[[#This Row],[2029/30 To - Spending review Topic 1]]+Dataset[[#This Row],[2029/30 To - Spending review Topic 2]]+Dataset[[#This Row],[2029/30 To - Spending review Topic 3]]+Dataset[[#This Row],[2029/30 To - Spending review Topic 4]]+Dataset[[#This Row],[2029/30 To - Other reallocations]]","v":0},{"$f":"Dataset[[#This Row],[2027/28 Targeted savings]]+Dataset[[#This Row],[2027/28 From - Total]]","v":0},{"$f":"Dataset[[#This Row],[2028/29 Targeted savings]]+Dataset[[#This Row],[2028/29 From - Total]]","v":0},{"$f":"Dataset[[#This Row],[2029/30 Targeted savings]]+Dataset[[#This Row],[2029/30 From - Total]]","v":0},{"$f":"Dataset[[#This Row],[2026/27 Targeted savings]]","v":0},{"$f":"SUM(Dataset[[#This Row],[2027/28 Targeted savings]],Dataset[[#This Row],[2027/28 From - Total]],Dataset[[#This Row],[2027/28 To - Total]])","v":0},{"$f":"SUM(Dataset[[#This Row],[2028/29 Targeted savings]],Dataset[[#This Row],[2028/29 From - Total]],Dataset[[#This Row],[2028/29 To - Total]])","v":0},{"$f":"SUM(Dataset[[#This Row],[2029/30 Targeted savings]],Dataset[[#This Row],[2029/30 From - Total]],Dataset[[#This Row],[2029/30 To - Total]])","v":0},{"$f":"Dataset[[#This Row],[2026/27 Baseline]]+Dataset[[#This Row],[2026/27 Total change]]","v":290},{"$f":"Dataset[[#This Row],[2027/28 Baseline]]+Dataset[[#This Row],[2027/28 Total change]]","v":669},{"$f":"Dataset[[#This Row],[2028/29 Baseline]]+Dataset[[#This Row],[2028/29 Total change]]","v":690},{"$f":"Dataset[[#This Row],[2029/30 Baseline]]+Dataset[[#This Row],[2029/30 Total change]]","v":711}]
["NAT|Non-transfer","30|Operating payments","2027_28","MTEC2027",30,6,2,33159,639,"30","06","02","033159","000639","30|06|02|000639","01","01","02","39","39","01|01|02|39|39","National","Communications and Digital Technologies","Digital Society and Economy","Digital Society and Economy","Non-transfer","Current","Current payments","Goods and services","Operating payments","Operating payments","Economic development","Economic regulation and infrastructure","NAT",25,9,1094,15,15,15,0,9,48,50,52,null,null,null,null,null,null,null,null,null,null,null,null,null,null,null,null,null,null,null,null,null,null,null,null,null,null,null,null,null,null,null,null,null,null,{"$f":"Dataset[[#This Row],[2027/28 From - Spending review Topic 1]]+Dataset[[#This Row],[2027/28 From - Spending review Topic 2]]+Dataset[[#This Row],[2027/28 From - Spending review Topic 3]]+Dataset[[#This Row],[2027/28 From - Spending review Topic 4]]+Dataset[[#This Row],[2027/28 From - Other reallocations]]","v":0},{"$f":"Dataset[[#This Row],[2028/29 From - Spending review Topic 1]]+Dataset[[#This Row],[2028/29 From - Spending review Topic 2]]+Dataset[[#This Row],[2028/29 From - Spending review Topic 3]]+Dataset[[#This Row],[2028/29 From - Spending review Topic 4]]+Dataset[[#This Row],[2028/29 From - Other reallocations]]","v":0},{"$f":"Dataset[[#This Row],[2029/30 From - Spending review Topic 1]]+Dataset[[#This Row],[2029/30 From - Spending review Topic 2]]+Dataset[[#This Row],[2029/30 From - Spending review Topic 3]]+Dataset[[#This Row],[2029/30 From - Spending review Topic 4]]+Dataset[[#This Row],[2029/30 From - Other reallocations]]","v":0},{"$f":"Dataset[[#This Row],[2027/28 To - Spending review Topic 1]]+Dataset[[#This Row],[2027/28 To - Spending review Topic 2]]+Dataset[[#This Row],[2027/28 To - Spending review Topic 3]]+Dataset[[#This Row],[2027/28 To - Spending review Topic 4]]+Dataset[[#This Row],[2027/28 To - Other reallocations]]","v":0},{"$f":"Dataset[[#This Row],[2028/29 To - Spending review Topic 1]]+Dataset[[#This Row],[2028/29 To - Spending review Topic 2]]+Dataset[[#This Row],[2028/29 To - Spending review Topic 3]]+Dataset[[#This Row],[2028/29 To - Spending review Topic 4]]+Dataset[[#This Row],[2028/29 To - Other reallocations]]","v":0},{"$f":"Dataset[[#This Row],[2029/30 To - Spending review Topic 1]]+Dataset[[#This Row],[2029/30 To - Spending review Topic 2]]+Dataset[[#This Row],[2029/30 To - Spending review Topic 3]]+Dataset[[#This Row],[2029/30 To - Spending review Topic 4]]+Dataset[[#This Row],[2029/30 To - Other reallocations]]","v":0},{"$f":"Dataset[[#This Row],[2027/28 Targeted savings]]+Dataset[[#This Row],[2027/28 From - Total]]","v":0},{"$f":"Dataset[[#This Row],[2028/29 Targeted savings]]+Dataset[[#This Row],[2028/29 From - Total]]","v":0},{"$f":"Dataset[[#This Row],[2029/30 Targeted savings]]+Dataset[[#This Row],[2029/30 From - Total]]","v":0},{"$f":"Dataset[[#This Row],[2026/27 Targeted savings]]","v":0},{"$f":"SUM(Dataset[[#This Row],[2027/28 Targeted savings]],Dataset[[#This Row],[2027/28 From - Total]],Dataset[[#This Row],[2027/28 To - Total]])","v":0},{"$f":"SUM(Dataset[[#This Row],[2028/29 Targeted savings]],Dataset[[#This Row],[2028/29 From - Total]],Dataset[[#This Row],[2028/29 To - Total]])","v":0},{"$f":"SUM(Dataset[[#This Row],[2029/30 Targeted savings]],Dataset[[#This Row],[2029/30 From - Total]],Dataset[[#This Row],[2029/30 To - Total]])","v":0},{"$f":"Dataset[[#This Row],[2026/27 Baseline]]+Dataset[[#This Row],[2026/27 Total change]]","v":9},{"$f":"Dataset[[#This Row],[2027/28 Baseline]]+Dataset[[#This Row],[2027/28 Total change]]","v":48},{"$f":"Dataset[[#This Row],[2028/29 Baseline]]+Dataset[[#This Row],[2028/29 Total change]]","v":50},{"$f":"Dataset[[#This Row],[2029/30 Baseline]]+Dataset[[#This Row],[2029/30 Total change]]","v":52}]
["NAT|Non-transfer","30|Venues and facilities","2027_28","MTEC2027",30,6,2,33160,640,"30","06","02","033160","000640","30|06|02|000640","01","01","02","40","40","01|01|02|40|40","National","Communications and Digital Technologies","Digital Society and Economy","Digital Society and Economy","Non-transfer","Current","Current payments","Goods and services","Venues and facilities","Venues and facilities","Economic development","Economic regulation and infrastructure","NAT",451,788,244,1560,1560,1560,0,284,2107,2173,2238,null,null,null,null,null,null,null,null,null,null,null,null,null,null,null,null,null,null,null,null,null,null,null,null,null,null,null,null,null,null,null,null,null,null,{"$f":"Dataset[[#This Row],[2027/28 From - Spending review Topic 1]]+Dataset[[#This Row],[2027/28 From - Spending review Topic 2]]+Dataset[[#This Row],[2027/28 From - Spending review Topic 3]]+Dataset[[#This Row],[2027/28 From - Spending review Topic 4]]+Dataset[[#This Row],[2027/28 From - Other reallocations]]","v":0},{"$f":"Dataset[[#This Row],[2028/29 From - Spending review Topic 1]]+Dataset[[#This Row],[2028/29 From - Spending review Topic 2]]+Dataset[[#This Row],[2028/29 From - Spending review Topic 3]]+Dataset[[#This Row],[2028/29 From - Spending review Topic 4]]+Dataset[[#This Row],[2028/29 From - Other reallocations]]","v":0},{"$f":"Dataset[[#This Row],[2029/30 From - Spending review Topic 1]]+Dataset[[#This Row],[2029/30 From - Spending review Topic 2]]+Dataset[[#This Row],[2029/30 From - Spending review Topic 3]]+Dataset[[#This Row],[2029/30 From - Spending review Topic 4]]+Dataset[[#This Row],[2029/30 From - Other reallocations]]","v":0},{"$f":"Dataset[[#This Row],[2027/28 To - Spending review Topic 1]]+Dataset[[#This Row],[2027/28 To - Spending review Topic 2]]+Dataset[[#This Row],[2027/28 To - Spending review Topic 3]]+Dataset[[#This Row],[2027/28 To - Spending review Topic 4]]+Dataset[[#This Row],[2027/28 To - Other reallocations]]","v":0},{"$f":"Dataset[[#This Row],[2028/29 To - Spending review Topic 1]]+Dataset[[#This Row],[2028/29 To - Spending review Topic 2]]+Dataset[[#This Row],[2028/29 To - Spending review Topic 3]]+Dataset[[#This Row],[2028/29 To - Spending review Topic 4]]+Dataset[[#This Row],[2028/29 To - Other reallocations]]","v":0},{"$f":"Dataset[[#This Row],[2029/30 To - Spending review Topic 1]]+Dataset[[#This Row],[2029/30 To - Spending review Topic 2]]+Dataset[[#This Row],[2029/30 To - Spending review Topic 3]]+Dataset[[#This Row],[2029/30 To - Spending review Topic 4]]+Dataset[[#This Row],[2029/30 To - Other reallocations]]","v":0},{"$f":"Dataset[[#This Row],[2027/28 Targeted savings]]+Dataset[[#This Row],[2027/28 From - Total]]","v":0},{"$f":"Dataset[[#This Row],[2028/29 Targeted savings]]+Dataset[[#This Row],[2028/29 From - Total]]","v":0},{"$f":"Dataset[[#This Row],[2029/30 Targeted savings]]+Dataset[[#This Row],[2029/30 From - Total]]","v":0},{"$f":"Dataset[[#This Row],[2026/27 Targeted savings]]","v":0},{"$f":"SUM(Dataset[[#This Row],[2027/28 Targeted savings]],Dataset[[#This Row],[2027/28 From - Total]],Dataset[[#This Row],[2027/28 To - Total]])","v":0},{"$f":"SUM(Dataset[[#This Row],[2028/29 Targeted savings]],Dataset[[#This Row],[2028/29 From - Total]],Dataset[[#This Row],[2028/29 To - Total]])","v":0},{"$f":"SUM(Dataset[[#This Row],[2029/30 Targeted savings]],Dataset[[#This Row],[2029/30 From - Total]],Dataset[[#This Row],[2029/30 To - Total]])","v":0},{"$f":"Dataset[[#This Row],[2026/27 Baseline]]+Dataset[[#This Row],[2026/27 Total change]]","v":284},{"$f":"Dataset[[#This Row],[2027/28 Baseline]]+Dataset[[#This Row],[2027/28 Total change]]","v":2107},{"$f":"Dataset[[#This Row],[2028/29 Baseline]]+Dataset[[#This Row],[2028/29 Total change]]","v":2173},{"$f":"Dataset[[#This Row],[2029/30 Baseline]]+Dataset[[#This Row],[2029/30 Total change]]","v":2238}]
["NAT|National Electronic Media Institute of South Africa","30|Departmental agencies (non-business entities)","2027_28","MTEC2027",30,6,2,33161,641,"30","06","02","033161","000641","30|06|02|000641","01","02","05","46","48","01|02|05|46|48","National","Communications and Digital Technologies","Digital Society and Economy","Digital Society and Economy","National Electronic Media Institute of South Africa","Current","Transfers and subsidies","Departmental agencies and accounts","Departmental agencies (non-business entities)","Departmental agencies (non-business entities)","Economic development","Economic regulation and infrastructure","NAT",102121,98428,96961,101304,101304,101304,0,105398,109604,113011,116414,null,null,null,null,null,null,null,null,null,null,null,null,null,null,null,null,null,null,null,null,null,null,null,null,null,null,null,null,null,null,null,null,null,null,{"$f":"Dataset[[#This Row],[2027/28 From - Spending review Topic 1]]+Dataset[[#This Row],[2027/28 From - Spending review Topic 2]]+Dataset[[#This Row],[2027/28 From - Spending review Topic 3]]+Dataset[[#This Row],[2027/28 From - Spending review Topic 4]]+Dataset[[#This Row],[2027/28 From - Other reallocations]]","v":0},{"$f":"Dataset[[#This Row],[2028/29 From - Spending review Topic 1]]+Dataset[[#This Row],[2028/29 From - Spending review Topic 2]]+Dataset[[#This Row],[2028/29 From - Spending review Topic 3]]+Dataset[[#This Row],[2028/29 From - Spending review Topic 4]]+Dataset[[#This Row],[2028/29 From - Other reallocations]]","v":0},{"$f":"Dataset[[#This Row],[2029/30 From - Spending review Topic 1]]+Dataset[[#This Row],[2029/30 From - Spending review Topic 2]]+Dataset[[#This Row],[2029/30 From - Spending review Topic 3]]+Dataset[[#This Row],[2029/30 From - Spending review Topic 4]]+Dataset[[#This Row],[2029/30 From - Other reallocations]]","v":0},{"$f":"Dataset[[#This Row],[2027/28 To - Spending review Topic 1]]+Dataset[[#This Row],[2027/28 To - Spending review Topic 2]]+Dataset[[#This Row],[2027/28 To - Spending review Topic 3]]+Dataset[[#This Row],[2027/28 To - Spending review Topic 4]]+Dataset[[#This Row],[2027/28 To - Other reallocations]]","v":0},{"$f":"Dataset[[#This Row],[2028/29 To - Spending review Topic 1]]+Dataset[[#This Row],[2028/29 To - Spending review Topic 2]]+Dataset[[#This Row],[2028/29 To - Spending review Topic 3]]+Dataset[[#This Row],[2028/29 To - Spending review Topic 4]]+Dataset[[#This Row],[2028/29 To - Other reallocations]]","v":0},{"$f":"Dataset[[#This Row],[2029/30 To - Spending review Topic 1]]+Dataset[[#This Row],[2029/30 To - Spending review Topic 2]]+Dataset[[#This Row],[2029/30 To - Spending review Topic 3]]+Dataset[[#This Row],[2029/30 To - Spending review Topic 4]]+Dataset[[#This Row],[2029/30 To - Other reallocations]]","v":0},{"$f":"Dataset[[#This Row],[2027/28 Targeted savings]]+Dataset[[#This Row],[2027/28 From - Total]]","v":0},{"$f":"Dataset[[#This Row],[2028/29 Targeted savings]]+Dataset[[#This Row],[2028/29 From - Total]]","v":0},{"$f":"Dataset[[#This Row],[2029/30 Targeted savings]]+Dataset[[#This Row],[2029/30 From - Total]]","v":0},{"$f":"Dataset[[#This Row],[2026/27 Targeted savings]]","v":0},{"$f":"SUM(Dataset[[#This Row],[2027/28 Targeted savings]],Dataset[[#This Row],[2027/28 From - Total]],Dataset[[#This Row],[2027/28 To - Total]])","v":0},{"$f":"SUM(Dataset[[#This Row],[2028/29 Targeted savings]],Dataset[[#This Row],[2028/29 From - Total]],Dataset[[#This Row],[2028/29 To - Total]])","v":0},{"$f":"SUM(Dataset[[#This Row],[2029/30 Targeted savings]],Dataset[[#This Row],[2029/30 From - Total]],Dataset[[#This Row],[2029/30 To - Total]])","v":0},{"$f":"Dataset[[#This Row],[2026/27 Baseline]]+Dataset[[#This Row],[2026/27 Total change]]","v":105398},{"$f":"Dataset[[#This Row],[2027/28 Baseline]]+Dataset[[#This Row],[2027/28 Total change]]","v":109604},{"$f":"Dataset[[#This Row],[2028/29 Baseline]]+Dataset[[#This Row],[2028/29 Total change]]","v":113011},{"$f":"Dataset[[#This Row],[2029/30 Baseline]]+Dataset[[#This Row],[2029/30 Total change]]","v":116414}]
["NAT|Households","30|Social benefits","2027_28","MTEC2027",30,6,2,33162,642,"30","06","02","033162","000642","30|06|02|000642","01","02","10","52","56","01|02|10|52|56","National","Communications and Digital Technologies","Digital Society and Economy","Digital Society and Economy","Households","Current","Transfers and subsidies","Households","Social benefits","Social benefits","Economic development","Economic regulation and infrastructure","NAT",143,0,0,0,0,0,0,0,0,0,0,null,null,null,null,null,null,null,null,null,null,null,null,null,null,null,null,null,null,null,null,null,null,null,null,null,null,null,null,null,null,null,null,null,null,{"$f":"Dataset[[#This Row],[2027/28 From - Spending review Topic 1]]+Dataset[[#This Row],[2027/28 From - Spending review Topic 2]]+Dataset[[#This Row],[2027/28 From - Spending review Topic 3]]+Dataset[[#This Row],[2027/28 From - Spending review Topic 4]]+Dataset[[#This Row],[2027/28 From - Other reallocations]]","v":0},{"$f":"Dataset[[#This Row],[2028/29 From - Spending review Topic 1]]+Dataset[[#This Row],[2028/29 From - Spending review Topic 2]]+Dataset[[#This Row],[2028/29 From - Spending review Topic 3]]+Dataset[[#This Row],[2028/29 From - Spending review Topic 4]]+Dataset[[#This Row],[2028/29 From - Other reallocations]]","v":0},{"$f":"Dataset[[#This Row],[2029/30 From - Spending review Topic 1]]+Dataset[[#This Row],[2029/30 From - Spending review Topic 2]]+Dataset[[#This Row],[2029/30 From - Spending review Topic 3]]+Dataset[[#This Row],[2029/30 From - Spending review Topic 4]]+Dataset[[#This Row],[2029/30 From - Other reallocations]]","v":0},{"$f":"Dataset[[#This Row],[2027/28 To - Spending review Topic 1]]+Dataset[[#This Row],[2027/28 To - Spending review Topic 2]]+Dataset[[#This Row],[2027/28 To - Spending review Topic 3]]+Dataset[[#This Row],[2027/28 To - Spending review Topic 4]]+Dataset[[#This Row],[2027/28 To - Other reallocations]]","v":0},{"$f":"Dataset[[#This Row],[2028/29 To - Spending review Topic 1]]+Dataset[[#This Row],[2028/29 To - Spending review Topic 2]]+Dataset[[#This Row],[2028/29 To - Spending review Topic 3]]+Dataset[[#This Row],[2028/29 To - Spending review Topic 4]]+Dataset[[#This Row],[2028/29 To - Other reallocations]]","v":0},{"$f":"Dataset[[#This Row],[2029/30 To - Spending review Topic 1]]+Dataset[[#This Row],[2029/30 To - Spending review Topic 2]]+Dataset[[#This Row],[2029/30 To - Spending review Topic 3]]+Dataset[[#This Row],[2029/30 To - Spending review Topic 4]]+Dataset[[#This Row],[2029/30 To - Other reallocations]]","v":0},{"$f":"Dataset[[#This Row],[2027/28 Targeted savings]]+Dataset[[#This Row],[2027/28 From - Total]]","v":0},{"$f":"Dataset[[#This Row],[2028/29 Targeted savings]]+Dataset[[#This Row],[2028/29 From - Total]]","v":0},{"$f":"Dataset[[#This Row],[2029/30 Targeted savings]]+Dataset[[#This Row],[2029/30 From - Total]]","v":0},{"$f":"Dataset[[#This Row],[2026/27 Targeted savings]]","v":0},{"$f":"SUM(Dataset[[#This Row],[2027/28 Targeted savings]],Dataset[[#This Row],[2027/28 From - Total]],Dataset[[#This Row],[2027/28 To - Total]])","v":0},{"$f":"SUM(Dataset[[#This Row],[2028/29 Targeted savings]],Dataset[[#This Row],[2028/29 From - Total]],Dataset[[#This Row],[2028/29 To - Total]])","v":0},{"$f":"SUM(Dataset[[#This Row],[2029/30 Targeted savings]],Dataset[[#This Row],[2029/30 From - Total]],Dataset[[#This Row],[2029/30 To - Total]])","v":0},{"$f":"Dataset[[#This Row],[2026/27 Baseline]]+Dataset[[#This Row],[2026/27 Total change]]","v":0},{"$f":"Dataset[[#This Row],[2027/28 Baseline]]+Dataset[[#This Row],[2027/28 Total change]]","v":0},{"$f":"Dataset[[#This Row],[2028/29 Baseline]]+Dataset[[#This Row],[2028/29 Total change]]","v":0},{"$f":"Dataset[[#This Row],[2029/30 Baseline]]+Dataset[[#This Row],[2029/30 Total change]]","v":0}]
["NAT|Households","30|Other transfers to households","2027_28","MTEC2027",30,6,2,33163,643,"30","06","02","033163","000643","30|06|02|000643","01","02","10","53","57","01|02|10|53|57","National","Communications and Digital Technologies","Digital Society and Economy","Digital Society and Economy","Households","Current","Transfers and subsidies","Households","Other transfers to households","Other transfers to households","Economic development","Economic regulation and infrastructure","NAT",320,2,8,0,0,0,0,0,0,0,0,null,null,null,null,null,null,null,null,null,null,null,null,null,null,null,null,null,null,null,null,null,null,null,null,null,null,null,null,null,null,null,null,null,null,{"$f":"Dataset[[#This Row],[2027/28 From - Spending review Topic 1]]+Dataset[[#This Row],[2027/28 From - Spending review Topic 2]]+Dataset[[#This Row],[2027/28 From - Spending review Topic 3]]+Dataset[[#This Row],[2027/28 From - Spending review Topic 4]]+Dataset[[#This Row],[2027/28 From - Other reallocations]]","v":0},{"$f":"Dataset[[#This Row],[2028/29 From - Spending review Topic 1]]+Dataset[[#This Row],[2028/29 From - Spending review Topic 2]]+Dataset[[#This Row],[2028/29 From - Spending review Topic 3]]+Dataset[[#This Row],[2028/29 From - Spending review Topic 4]]+Dataset[[#This Row],[2028/29 From - Other reallocations]]","v":0},{"$f":"Dataset[[#This Row],[2029/30 From - Spending review Topic 1]]+Dataset[[#This Row],[2029/30 From - Spending review Topic 2]]+Dataset[[#This Row],[2029/30 From - Spending review Topic 3]]+Dataset[[#This Row],[2029/30 From - Spending review Topic 4]]+Dataset[[#This Row],[2029/30 From - Other reallocations]]","v":0},{"$f":"Dataset[[#This Row],[2027/28 To - Spending review Topic 1]]+Dataset[[#This Row],[2027/28 To - Spending review Topic 2]]+Dataset[[#This Row],[2027/28 To - Spending review Topic 3]]+Dataset[[#This Row],[2027/28 To - Spending review Topic 4]]+Dataset[[#This Row],[2027/28 To - Other reallocations]]","v":0},{"$f":"Dataset[[#This Row],[2028/29 To - Spending review Topic 1]]+Dataset[[#This Row],[2028/29 To - Spending review Topic 2]]+Dataset[[#This Row],[2028/29 To - Spending review Topic 3]]+Dataset[[#This Row],[2028/29 To - Spending review Topic 4]]+Dataset[[#This Row],[2028/29 To - Other reallocations]]","v":0},{"$f":"Dataset[[#This Row],[2029/30 To - Spending review Topic 1]]+Dataset[[#This Row],[2029/30 To - Spending review Topic 2]]+Dataset[[#This Row],[2029/30 To - Spending review Topic 3]]+Dataset[[#This Row],[2029/30 To - Spending review Topic 4]]+Dataset[[#This Row],[2029/30 To - Other reallocations]]","v":0},{"$f":"Dataset[[#This Row],[2027/28 Targeted savings]]+Dataset[[#This Row],[2027/28 From - Total]]","v":0},{"$f":"Dataset[[#This Row],[2028/29 Targeted savings]]+Dataset[[#This Row],[2028/29 From - Total]]","v":0},{"$f":"Dataset[[#This Row],[2029/30 Targeted savings]]+Dataset[[#This Row],[2029/30 From - Total]]","v":0},{"$f":"Dataset[[#This Row],[2026/27 Targeted savings]]","v":0},{"$f":"SUM(Dataset[[#This Row],[2027/28 Targeted savings]],Dataset[[#This Row],[2027/28 From - Total]],Dataset[[#This Row],[2027/28 To - Total]])","v":0},{"$f":"SUM(Dataset[[#This Row],[2028/29 Targeted savings]],Dataset[[#This Row],[2028/29 From - Total]],Dataset[[#This Row],[2028/29 To - Total]])","v":0},{"$f":"SUM(Dataset[[#This Row],[2029/30 Targeted savings]],Dataset[[#This Row],[2029/30 From - Total]],Dataset[[#This Row],[2029/30 To - Total]])","v":0},{"$f":"Dataset[[#This Row],[2026/27 Baseline]]+Dataset[[#This Row],[2026/27 Total change]]","v":0},{"$f":"Dataset[[#This Row],[2027/28 Baseline]]+Dataset[[#This Row],[2027/28 Total change]]","v":0},{"$f":"Dataset[[#This Row],[2028/29 Baseline]]+Dataset[[#This Row],[2028/29 Total change]]","v":0},{"$f":"Dataset[[#This Row],[2029/30 Baseline]]+Dataset[[#This Row],[2029/30 Total change]]","v":0}]
["NAT|Non-transfer","30|Other machinery and equipment","2027_28","MTEC2027",30,6,2,33164,644,"30","06","02","033164","000644","30|06|02|000644","02","03","12","57","61","02|03|12|57|61","National","Communications and Digital Technologies","Digital Society and Economy","Digital Society and Economy","Non-transfer","Capital","Payments for capital assets","Machinery and equipment","Other machinery and equipment","Other machinery and equipment","Economic development","Economic regulation and infrastructure","NAT",195,90,0,430,430,430,0,795,642,814,839,null,null,null,null,null,null,null,null,null,null,null,null,null,null,null,null,null,null,null,null,null,null,null,null,null,null,null,null,null,null,null,null,null,null,{"$f":"Dataset[[#This Row],[2027/28 From - Spending review Topic 1]]+Dataset[[#This Row],[2027/28 From - Spending review Topic 2]]+Dataset[[#This Row],[2027/28 From - Spending review Topic 3]]+Dataset[[#This Row],[2027/28 From - Spending review Topic 4]]+Dataset[[#This Row],[2027/28 From - Other reallocations]]","v":0},{"$f":"Dataset[[#This Row],[2028/29 From - Spending review Topic 1]]+Dataset[[#This Row],[2028/29 From - Spending review Topic 2]]+Dataset[[#This Row],[2028/29 From - Spending review Topic 3]]+Dataset[[#This Row],[2028/29 From - Spending review Topic 4]]+Dataset[[#This Row],[2028/29 From - Other reallocations]]","v":0},{"$f":"Dataset[[#This Row],[2029/30 From - Spending review Topic 1]]+Dataset[[#This Row],[2029/30 From - Spending review Topic 2]]+Dataset[[#This Row],[2029/30 From - Spending review Topic 3]]+Dataset[[#This Row],[2029/30 From - Spending review Topic 4]]+Dataset[[#This Row],[2029/30 From - Other reallocations]]","v":0},{"$f":"Dataset[[#This Row],[2027/28 To - Spending review Topic 1]]+Dataset[[#This Row],[2027/28 To - Spending review Topic 2]]+Dataset[[#This Row],[2027/28 To - Spending review Topic 3]]+Dataset[[#This Row],[2027/28 To - Spending review Topic 4]]+Dataset[[#This Row],[2027/28 To - Other reallocations]]","v":0},{"$f":"Dataset[[#This Row],[2028/29 To - Spending review Topic 1]]+Dataset[[#This Row],[2028/29 To - Spending review Topic 2]]+Dataset[[#This Row],[2028/29 To - Spending review Topic 3]]+Dataset[[#This Row],[2028/29 To - Spending review Topic 4]]+Dataset[[#This Row],[2028/29 To - Other reallocations]]","v":0},{"$f":"Dataset[[#This Row],[2029/30 To - Spending review Topic 1]]+Dataset[[#This Row],[2029/30 To - Spending review Topic 2]]+Dataset[[#This Row],[2029/30 To - Spending review Topic 3]]+Dataset[[#This Row],[2029/30 To - Spending review Topic 4]]+Dataset[[#This Row],[2029/30 To - Other reallocations]]","v":0},{"$f":"Dataset[[#This Row],[2027/28 Targeted savings]]+Dataset[[#This Row],[2027/28 From - Total]]","v":0},{"$f":"Dataset[[#This Row],[2028/29 Targeted savings]]+Dataset[[#This Row],[2028/29 From - Total]]","v":0},{"$f":"Dataset[[#This Row],[2029/30 Targeted savings]]+Dataset[[#This Row],[2029/30 From - Total]]","v":0},{"$f":"Dataset[[#This Row],[2026/27 Targeted savings]]","v":0},{"$f":"SUM(Dataset[[#This Row],[2027/28 Targeted savings]],Dataset[[#This Row],[2027/28 From - Total]],Dataset[[#This Row],[2027/28 To - Total]])","v":0},{"$f":"SUM(Dataset[[#This Row],[2028/29 Targeted savings]],Dataset[[#This Row],[2028/29 From - Total]],Dataset[[#This Row],[2028/29 To - Total]])","v":0},{"$f":"SUM(Dataset[[#This Row],[2029/30 Targeted savings]],Dataset[[#This Row],[2029/30 From - Total]],Dataset[[#This Row],[2029/30 To - Total]])","v":0},{"$f":"Dataset[[#This Row],[2026/27 Baseline]]+Dataset[[#This Row],[2026/27 Total change]]","v":795},{"$f":"Dataset[[#This Row],[2027/28 Baseline]]+Dataset[[#This Row],[2027/28 Total change]]","v":642},{"$f":"Dataset[[#This Row],[2028/29 Baseline]]+Dataset[[#This Row],[2028/29 Total change]]","v":814},{"$f":"Dataset[[#This Row],[2029/30 Baseline]]+Dataset[[#This Row],[2029/30 Total change]]","v":839}]

{"sheet":"Programme Assessment Matrix","index":11,"n_rows":3027,"n_cols":114,"rows_kept":3027,"cut":false,"hidden":false,"merged":[[1,1,1,3],[0,1,0,5]]}
[null,"Programme Assessment Matrix"]
[null,"See Matrix Help Notes"]
[]
[null,"Vote No.","Programme No.","Department","Programme","Score"]
[null,30,1,"Communications and Digital Technologies","Administration",{"$f":"SUMIFS(TARS_List2_Heat2_2[Pct],TARS_List2_Heat2_2[Programme],TARS_List2_Summary[[#This Row],[Programme]])","v":0}]
[null,30,2,"Communications and Digital Technologies","ICT Transformation, Global Partnerships and State-Owned Enterprises Governance",{"$f":"SUMIFS(TARS_List2_Heat2_2[Pct],TARS_List2_Heat2_2[Programme],TARS_List2_Summary[[#This Row],[Programme]])","v":0}]
[null,30,3,"Communications and Digital Technologies","Media and Content",{"$f":"SUMIFS(TARS_List2_Heat2_2[Pct],TARS_List2_Heat2_2[Programme],TARS_List2_Summary[[#This Row],[Programme]])","v":0}]
[null,30,4,"Communications and Digital Technologies","Digital Communication, Access and Services",{"$f":"SUMIFS(TARS_List2_Heat2_2[Pct],TARS_List2_Heat2_2[Programme],TARS_List2_Summary[[#This Row],[Programme]])","v":0}]
[null,30,5,"Communications and Digital Technologies","Digital Infrastructure and Technologies",{"$f":"SUMIFS(TARS_List2_Heat2_2[Pct],TARS_List2_Heat2_2[Programme],TARS_List2_Summary[[#This Row],[Programme]])","v":0}]
[null,30,6,"Communications and Digital Technologies","Digital Society and Economy",{"$f":"SUMIFS(TARS_List2_Heat2_2[Pct],TARS_List2_Heat2_2[Programme],TARS_List2_Summary[[#This Row],[Programme]])","v":0}]
[]
[]
[]
[]
[]
[]
[]
[]
[]
[null,null,null,null,null,null,null,null,"Vote No.","Programme No.","Department","Programme","Subprogramme","Group","Criterion","Item","Rating 1","Rating 2","Rating 3","Rating 4","Score","Index"]
[null,null,null,null,null,null,null,null,30,1,"Communications and Digital Technologies","Administration","Ministry","1. Legal mandate and strategic alignment","1.1 Constitutional or legal basis",null,"No legal or constitutional obligation.","Weak or indirect legal justification.","Clear legal or legislative basis.","Directly mandated by the Constitution or national law.",{"$f":"IFERROR(MATCH(TARS_List3[[#This Row],[Item]],TARS_List3[[#This Row],[Rating 1]:[Rating 4]],0),0)","v":0},{"$f":"TARS_List3[[#This Row],[Score]]/4*100","v":0},null,{"$f":"ROUND(RAND()*16,0)","v":12},{"$f":"IF(MROUND(X21,4)>4,MROUND(X21,4)/4,1)","v":3}]
[null,null,null,null,null,null,null,null,30,1,"Communications and Digital Technologies","Administration","Ministry","1. Legal mandate and strategic alignment","1.2 Policy alignment",null,"Not aligned with any known policy or plan.","Minimal or outdated policy link.","Clearly aligned with current sector policy.","Directly linked to strategic national priorities.",{"$f":"IFERROR(MATCH(TARS_List3[[#This Row],[Item]],TARS_List3[[#This Row],[Rating 1]:[Rating 4]],0),0)","v":0},{"$f":"TARS_List3[[#This Row],[Score]]/4*100","v":0},null,8,2]
[null,null,null,null,null,null,null,null,30,1,"Communications and Digital Technologies","Administration","Ministry","1. Legal mandate and strategic alignment","1.3 Institutional role fit",null,"Outside the department’s mandate.","Weak fit or duplication with other institutions.","Within mandate but can be better positioned.","Strong and natural fit with department’s primary functions.",{"$f":"IFERROR(MATCH(TARS_List3[[#This Row],[Item]],TARS_List3[[#This Row],[Rating 1]:[Rating 4]],0),0)","v":0},{"$f":"TARS_List3[[#This Row],[Score]]/4*100","v":0},null,11,3]
[null,null,null,null,null,null,null,null,30,1,"Communications and Digital Technologies","Administration","Ministry","1. Legal mandate and strategic alignment","1.4 Functional duplication",null,"Duplicates existing functions in other entities.","Some overlaps; coordination is unclear.","Limited duplication; some synergy possible.","No duplication; unique and complementary.",{"$f":"IFERROR(MATCH(TARS_List3[[#This Row],[Item]],TARS_List3[[#This Row],[Rating 1]:[Rating 4]],0),0)","v":0},{"$f":"TARS_List3[[#This Row],[Score]]/4*100","v":0},null,9,2]
[null,null,null,null,null,null,null,null,30,1,"Communications and Digital Technologies","Administration","Ministry","2. Performance and effectiveness","2.1 Delivery of outputs",null,"Very low or no outputs delivered.","Inconsistent or poor delivery of outputs.","Mostly delivers expected outputs.","Delivers outputs efficiently and consistently.",{"$f":"IFERROR(MATCH(TARS_List3[[#This Row],[Item]],TARS_List3[[#This Row],[Rating 1]:[Rating 4]],0),0)","v":0},{"$f":"TARS_List3[[#This Row],[Score]]/4*100","v":0},null,5,1]
[null,null,null,null,null,null,null,null,30,1,"Communications and Digital Technologies","Administration","Ministry","2. Performance and effectiveness","2.2 Achievement of outcomes",null,"No evidence of outcome achievement.","Minimal or indirect contribution to outcomes.","Some contribution; outcome indicators present.","Strong evidence of achieving targeted outcomes.",{"$f":"IFERROR(MATCH(TARS_List3[[#This Row],[Item]],TARS_List3[[#This Row],[Rating 1]:[Rating 4]],0),0)","v":0},{"$f":"TARS_List3[[#This Row],[Score]]/4*100","v":0},null,11,3]
[null,null,null,null,null,null,null,null,30,1,"Communications and Digital Technologies","Administration","Ministry","2. Performance and effectiveness","2.3 Responsiveness to need",null,"No identifiable or outdated need addressed.","Weak alignment to needs; limited relevance.","Aligned to sector needs; moderate relevance.","High relevance and responsiveness to urgent needs.",{"$f":"IFERROR(MATCH(TARS_List3[[#This Row],[Item]],TARS_List3[[#This Row],[Rating 1]:[Rating 4]],0),0)","v":0},{"$f":"TARS_List3[[#This Row],[Score]]/4*100","v":0},null,5,1]
[null,null,null,null,null,null,null,null,30,1,"Communications and Digital Technologies","Administration","Ministry","3. Efficiency and delivery model","3.1 Resource use efficiency",null,"Wasteful or inefficient use of resources.","Some inefficiencies and resource misallocation.","Reasonably efficient with manageable waste.","Highly efficient with optimal resource use.",{"$f":"IFERROR(MATCH(TARS_List3[[#This Row],[Item]],TARS_List3[[#This Row],[Rating 1]:[Rating 4]],0),0)","v":0},{"$f":"TARS_List3[[#This Row],[Score]]/4*100","v":0},null,12,3]
[null,null,null,null,null,null,null,null,30,1,"Communications and Digital Technologies","Administration","Ministry","3. Efficiency and delivery model","3.2 Staffing and administrative overheads",null,"Overheads far exceed acceptable levels.","High overheads; delivery impact is diluted.","Balanced overheads; room for improvement.","Lean and efficient administrative cost structure.",{"$f":"IFERROR(MATCH(TARS_List3[[#This Row],[Item]],TARS_List3[[#This Row],[Rating 1]:[Rating 4]],0),0)","v":0},{"$f":"TARS_List3[[#This Row],[Score]]/4*100","v":0},null,1,1]
[null,null,null,null,null,null,null,null,30,1,"Communications and Digital Technologies","Administration","Ministry","3. Efficiency and delivery model","3.3 Delivery model appropriateness",null,"Poorly suited delivery model; high risk.","Suboptimal model; lacks innovation or scale.","Reasonable model; can be improved.","Well-designed and fit-for-purpose delivery model.",{"$f":"IFERROR(MATCH(TARS_List3[[#This Row],[Item]],TARS_List3[[#This Row],[Rating 1]:[Rating 4]],0),0)","v":0},{"$f":"TARS_List3[[#This Row],[Score]]/4*100","v":0},null,10,3]
[null,null,null,null,null,null,null,null,30,1,"Communications and Digital Technologies","Administration","Ministry","3. Efficiency and delivery model","3.4 Cost per output",null,"Cost per output is excessive or unknown.","Higher than acceptable cost with inefficiencies.","Within range, some room for cost reduction.","Low cost per output; good value for money.",{"$f":"IFERROR(MATCH(TARS_List3[[#This Row],[Item]],TARS_List3[[#This Row],[Rating 1]:[Rating 4]],0),0)","v":0},{"$f":"TARS_List3[[#This Row],[Score]]/4*100","v":0},null,15,4]
[null,null,null,null,null,null,null,null,30,1,"Communications and Digital Technologies","Administration","Ministry","3. Efficiency and delivery model","3.5 Institutional capacity",null,"Major capacity gaps; delivery is severely hindered.","Limited capacity; delivery is inconsistent.","Adequate capacity with minor constraints.","Strong capacity; well-resourced and effectively managed.",{"$f":"IFERROR(MATCH(TARS_List3[[#This Row],[Item]],TARS_List3[[#This Row],[Rating 1]:[Rating 4]],0),0)","v":0},{"$f":"TARS_List3[[#This Row],[Score]]/4*100","v":0},null,8,2]
[null,null,null,null,null,null,null,null,30,1,"Communications and Digital Technologies","Administration","Ministry","4. Financial sustainability and external leverage","4.1 Budget discipline",null,"Frequent overspending or misuse of funds.","Irregularities in budget execution.","Generally within budget; few adjustments.","Strong budget discipline and forecasting.",{"$f":"IFERROR(MATCH(TARS_List3[[#This Row],[Item]],TARS_List3[[#This Row],[Rating 1]:[Rating 4]],0),0)","v":0},{"$f":"TARS_List3[[#This Row],[Score]]/4*100","v":0},null,0,1]
[null,null,null,null,null,null,null,null,30,1,"Communications and Digital Technologies","Administration","Ministry","4. Financial sustainability and external leverage","4.2 Medium-term affordability",null,"Not affordable; creates unfunded pressures.","Likely to become unsustainable.","Mostly affordable with some risk.","Fully affordable and fiscally sound.",{"$f":"IFERROR(MATCH(TARS_List3[[#This Row],[Item]],TARS_List3[[#This Row],[Rating 1]:[Rating 4]],0),0)","v":0},{"$f":"TARS_List3[[#This Row],[Score]]/4*100","v":0},null,14,4]
[null,null,null,null,null,null,null,null,30,1,"Communications and Digital Technologies","Administration","Ministry","4. Financial sustainability and external leverage","4.3 External funding potential",null,"No potential for external funding.","Minimal or uncertain funding interest.","Some interest; conditional opportunities exist.","Strong likelihood of attracting external support.",{"$f":"IFERROR(MATCH(TARS_List3[[#This Row],[Item]],TARS_List3[[#This Row],[Rating 1]:[Rating 4]],0),0)","v":0},{"$f":"TARS_List3[[#This Row],[Score]]/4*100","v":0},null,13,3]
[null,null,null,null,null,null,null,null,30,1,"Communications and Digital Technologies","Administration","Departmental Management","1. Legal mandate and strategic alignment","1.1 Constitutional or legal basis",null,"No legal or constitutional obligation.","Weak or indirect legal justification.","Clear legal or legislative basis.","Directly mandated by the Constitution or national law.",{"$f":"IFERROR(MATCH(TARS_List3[[#This Row],[Item]],TARS_List3[[#This Row],[Rating 1]:[Rating 4]],0),0)","v":0},{"$f":"TARS_List3[[#This Row],[Score]]/4*100","v":0},null,0,1]
[null,null,null,null,null,null,null,null,30,1,"Communications and Digital Technologies","Administration","Departmental Management","1. Legal mandate and strategic alignment","1.2 Policy alignment",null,"Not aligned with any known policy or plan.","Minimal or outdated policy link.","Clearly aligned with current sector policy.","Directly linked to strategic national priorities.",{"$f":"IFERROR(MATCH(TARS_List3[[#This Row],[Item]],TARS_List3[[#This Row],[Rating 1]:[Rating 4]],0),0)","v":0},{"$f":"TARS_List3[[#This Row],[Score]]/4*100","v":0},null,6,2]
[null,null,null,null,null,null,null,null,30,1,"Communications and Digital Technologies","Administration","Departmental Management","1. Legal mandate and strategic alignment","1.3 Institutional role fit",null,"Outside the department’s mandate.","Weak fit or duplication with other institutions.","Within mandate but can be better positioned.","Strong and natural fit with department’s primary functions.",{"$f":"IFERROR(MATCH(TARS_List3[[#This Row],[Item]],TARS_List3[[#This Row],[Rating 1]:[Rating 4]],0),0)","v":0},{"$f":"TARS_List3[[#This Row],[Score]]/4*100","v":0},null,6,2]
[null,null,null,null,null,null,null,null,30,1,"Communications and Digital Technologies","Administration","Departmental Management","1. Legal mandate and strategic alignment","1.4 Functional duplication",null,"Duplicates existing functions in other entities.","Some overlaps; coordination is unclear.","Limited duplication; some synergy possible.","No duplication; unique and complementary.",{"$f":"IFERROR(MATCH(TARS_List3[[#This Row],[Item]],TARS_List3[[#This Row],[Rating 1]:[Rating 4]],0),0)","v":0},{"$f":"TARS_List3[[#This Row],[Score]]/4*100","v":0},null,3,1]
[null,null,null,null,null,null,null,null,30,1,"Communications and Digital Technologies","Administration","Departmental Management","2. Performance and effectiveness","2.1 Delivery of outputs",null,"Very low or no outputs delivered.","Inconsistent or poor delivery of outputs.","Mostly delivers expected outputs.","Delivers outputs efficiently and consistently.",{"$f":"IFERROR(MATCH(TARS_List3[[#This Row],[Item]],TARS_List3[[#This Row],[Rating 1]:[Rating 4]],0),0)","v":0},{"$f":"TARS_List3[[#This Row],[Score]]/4*100","v":0},null,15,4]
[null,null,null,null,null,null,null,null,30,1,"Communications and Digital Technologies","Administration","Departmental Management","2. Performance and effectiveness","2.2 Achievement of outcomes",null,"No evidence of outcome achievement.","Minimal or indirect contribution to outcomes.","Some contribution; outcome indicators present.","Strong evidence of achieving targeted outcomes.",{"$f":"IFERROR(MATCH(TARS_List3[[#This Row],[Item]],TARS_List3[[#This Row],[Rating 1]:[Rating 4]],0),0)","v":0},{"$f":"TARS_List3[[#This Row],[Score]]/4*100","v":0},null,16,4]
[null,null,null,null,null,null,null,null,30,1,"Communications and Digital Technologies","Administration","Departmental Management","2. Performance and effectiveness","2.3 Responsiveness to need",null,"No identifiable or outdated need addressed.","Weak alignment to needs; limited relevance.","Aligned to sector needs; moderate relevance.","High relevance and responsiveness to urgent needs.",{"$f":"IFERROR(MATCH(TARS_List3[[#This Row],[Item]],TARS_List3[[#This Row],[Rating 1]:[Rating 4]],0),0)","v":0},{"$f":"TARS_List3[[#This Row],[Score]]/4*100","v":0},null,1,1]
[null,null,null,null,null,null,null,null,30,1,"Communications and Digital Technologies","Administration","Departmental Management","3. Efficiency and delivery model","3.1 Resource use efficiency",null,"Wasteful or inefficient use of resources.","Some inefficiencies and resource misallocation.","Reasonably efficient with manageable waste.","Highly efficient with optimal resource use.",{"$f":"IFERROR(MATCH(TARS_List3[[#This Row],[Item]],TARS_List3[[#This Row],[Rating 1]:[Rating 4]],0),0)","v":0},{"$f":"TARS_List3[[#This Row],[Score]]/4*100","v":0},null,8,2]
[null,null,null,null,null,null,null,null,30,1,"Communications and Digital Technologies","Administration","Departmental Management","3. Efficiency and delivery model","3.2 Staffing and administrative overheads",null,"Overheads far exceed acceptable levels.","High overheads; delivery impact is diluted.","Balanced overheads; room for improvement.","Lean and efficient administrative cost structure.",{"$f":"IFERROR(MATCH(TARS_List3[[#This Row],[Item]],TARS_List3[[#This Row],[Rating 1]:[Rating 4]],0),0)","v":0},{"$f":"TARS_List3[[#This Row],[Score]]/4*100","v":0},null,12,3]
[null,null,null,null,null,null,null,null,30,1,"Communications and Digital Technologies","Administration","Departmental Management","3. Efficiency and delivery model","3.3 Delivery model appropriateness",null,"Poorly suited delivery model; high risk.","Suboptimal model; lacks innovation or scale.","Reasonable model; can be improved.","Well-designed and fit-for-purpose delivery model.",{"$f":"IFERROR(MATCH(TARS_List3[[#This Row],[Item]],TARS_List3[[#This Row],[Rating 1]:[Rating 4]],0),0)","v":0},{"$f":"TARS_List3[[#This Row],[Score]]/4*100","v":0},null,11,3]
[null,null,null,null,null,null,null,null,30,1,"Communications and Digital Technologies","Administration","Departmental Management","3. Efficiency and delivery model","3.4 Cost per output",null,"Cost per output is excessive or unknown.","Higher than acceptable cost with inefficiencies.","Within range, some room for cost reduction.","Low cost per output; good value for money.",{"$f":"IFERROR(MATCH(TARS_List3[[#This Row],[Item]],TARS_List3[[#This Row],[Rating 1]:[Rating 4]],0),0)","v":0},{"$f":"TARS_List3[[#This Row],[Score]]/4*100","v":0},null,6,2]
[null,null,null,null,null,null,null,null,30,1,"Communications and Digital Technologies","Administration","Departmental Management","3. Efficiency and delivery model","3.5 Institutional capacity",null,"Major capacity gaps; delivery is severely hindered.","Limited capacity; delivery is inconsistent.","Adequate capacity with minor constraints.","Strong capacity; well-resourced and effectively managed.",{"$f":"IFERROR(MATCH(TARS_List3[[#This Row],[Item]],TARS_List3[[#This Row],[Rating 1]:[Rating 4]],0),0)","v":0},{"$f":"TARS_List3[[#This Row],[Score]]/4*100","v":0},null,9,2]
[null,null,null,null,null,null,null,null,30,1,"Communications and Digital Technologies","Administration","Departmental Management","4. Financial sustainability and external leverage","4.1 Budget discipline",null,"Frequent overspending or misuse of funds.","Irregularities in budget execution.","Generally within budget; few adjustments.","Strong budget discipline and forecasting.",{"$f":"IFERROR(MATCH(TARS_List3[[#This Row],[Item]],TARS_List3[[#This Row],[Rating 1]:[Rating 4]],0),0)","v":0},{"$f":"TARS_List3[[#This Row],[Score]]/4*100","v":0},null,6,2]
[null,null,null,null,null,null,null,null,30,1,"Communications and Digital Technologies","Administration","Departmental Management","4. Financial sustainability and external leverage","4.2 Medium-term affordability",null,"Not affordable; creates unfunded pressures.","Likely to become unsustainable.","Mostly affordable with some risk.","Fully affordable and fiscally sound.",{"$f":"IFERROR(MATCH(TARS_List3[[#This Row],[Item]],TARS_List3[[#This Row],[Rating 1]:[Rating 4]],0),0)","v":0},{"$f":"TARS_List3[[#This Row],[Score]]/4*100","v":0},null,2,1]
[null,null,null,null,null,null,null,null,30,1,"Communications and Digital Technologies","Administration","Departmental Management","4. Financial sustainability and external leverage","4.3 External funding potential",null,"No potential for external funding.","Minimal or uncertain funding interest.","Some interest; conditional opportunities exist.","Strong likelihood of attracting external support.",{"$f":"IFERROR(MATCH(TARS_List3[[#This Row],[Item]],TARS_List3[[#This Row],[Rating 1]:[Rating 4]],0),0)","v":0},{"$f":"TARS_List3[[#This Row],[Score]]/4*100","v":0},null,3,1]
[null,null,null,null,null,null,null,null,30,1,"Communications and Digital Technologies","Administration","Corporate Services","1. Legal mandate and strategic alignment","1.1 Constitutional or legal basis",null,"No legal or constitutional obligation.","Weak or indirect legal justification.","Clear legal or legislative basis.","Directly mandated by the Constitution or national law.",{"$f":"IFERROR(MATCH(TARS_List3[[#This Row],[Item]],TARS_List3[[#This Row],[Rating 1]:[Rating 4]],0),0)","v":0},{"$f":"TARS_List3[[#This Row],[Score]]/4*100","v":0},null,8,2]
[null,null,null,null,null,null,null,null,30,1,"Communications and Digital Technologies","Administration","Corporate Services","1. Legal mandate and strategic alignment","1.2 Policy alignment",null,"Not aligned with any known policy or plan.","Minimal or outdated policy link.","Clearly aligned with current sector policy.","Directly linked to strategic national priorities.",{"$f":"IFERROR(MATCH(TARS_List3[[#This Row],[Item]],TARS_List3[[#This Row],[Rating 1]:[Rating 4]],0),0)","v":0},{"$f":"TARS_List3[[#This Row],[Score]]/4*100","v":0},null,3,1]
[null,null,null,null,null,null,null,null,30,1,"Communications and Digital Technologies","Administration","Corporate Services","1. Legal mandate and strategic alignment","1.3 Institutional role fit",null,"Outside the department’s mandate.","Weak fit or duplication with other institutions.","Within mandate but can be better positioned.","Strong and natural fit with department’s primary functions.",{"$f":"IFERROR(MATCH(TARS_List3[[#This Row],[Item]],TARS_List3[[#This Row],[Rating 1]:[Rating 4]],0),0)","v":0},{"$f":"TARS_List3[[#This Row],[Score]]/4*100","v":0},null,15,4]
[null,null,null,null,null,null,null,null,30,1,"Communications and Digital Technologies","Administration","Corporate Services","1. Legal mandate and strategic alignment","1.4 Functional duplication",null,"Duplicates existing functions in other entities.","Some overlaps; coordination is unclear.","Limited duplication; some synergy possible.","No duplication; unique and complementary.",{"$f":"IFERROR(MATCH(TARS_List3[[#This Row],[Item]],TARS_List3[[#This Row],[Rating 1]:[Rating 4]],0),0)","v":0},{"$f":"TARS_List3[[#This Row],[Score]]/4*100","v":0},null,12,3]
[null,null,null,null,null,null,null,null,30,1,"Communications and Digital Technologies","Administration","Corporate Services","2. Performance and effectiveness","2.1 Delivery of outputs",null,"Very low or no outputs delivered.","Inconsistent or poor delivery of outputs.","Mostly delivers expected outputs.","Delivers outputs efficiently and consistently.",{"$f":"IFERROR(MATCH(TARS_List3[[#This Row],[Item]],TARS_List3[[#This Row],[Rating 1]:[Rating 4]],0),0)","v":0},{"$f":"TARS_List3[[#This Row],[Score]]/4*100","v":0},null,12,3]
[null,null,null,null,null,null,null,null,30,1,"Communications and Digital Technologies","Administration","Corporate Services","2. Performance and effectiveness","2.2 Achievement of outcomes",null,"No evidence of outcome achievement.","Minimal or indirect contribution to outcomes.","Some contribution; outcome indicators present.","Strong evidence of achieving targeted outcomes.",{"$f":"IFERROR(MATCH(TARS_List3[[#This Row],[Item]],TARS_List3[[#This Row],[Rating 1]:[Rating 4]],0),0)","v":0},{"$f":"TARS_List3[[#This Row],[Score]]/4*100","v":0},null,9,2]
[null,null,null,null,null,null,null,null,30,1,"Communications and Digital Technologies","Administration","Corporate Services","2. Performance and effectiveness","2.3 Responsiveness to need",null,"No identifiable or outdated need addressed.","Weak alignment to needs; limited relevance.","Aligned to sector needs; moderate relevance.","High relevance and responsiveness to urgent needs.",{"$f":"IFERROR(MATCH(TARS_List3[[#This Row],[Item]],TARS_List3[[#This Row],[Rating 1]:[Rating 4]],0),0)","v":0},{"$f":"TARS_List3[[#This Row],[Score]]/4*100","v":0},null,2,1]
[null,null,null,null,null,null,null,null,30,1,"Communications and Digital Technologies","Administration","Corporate Services","3. Efficiency and delivery model","3.1 Resource use efficiency",null,"Wasteful or inefficient use of resources.","Some inefficiencies and resource misallocation.","Reasonably efficient with manageable waste.","Highly efficient with optimal resource use.",{"$f":"IFERROR(MATCH(TARS_List3[[#This Row],[Item]],TARS_List3[[#This Row],[Rating 1]:[Rating 4]],0),0)","v":0},{"$f":"TARS_List3[[#This Row],[Score]]/4*100","v":0},null,7,2]
[null,null,null,null,null,null,null,null,30,1,"Communications and Digital Technologies","Administration","Corporate Services","3. Efficiency and delivery model","3.2 Staffing and administrative overheads",null,"Overheads far exceed acceptable levels.","High overheads; delivery impact is diluted.","Balanced overheads; room for improvement.","Lean and efficient administrative cost structure.",{"$f":"IFERROR(MATCH(TARS_List3[[#This Row],[Item]],TARS_List3[[#This Row],[Rating 1]:[Rating 4]],0),0)","v":0},{"$f":"TARS_List3[[#This Row],[Score]]/4*100","v":0},null,8,2]
[null,null,null,null,null,null,null,null,30,1,"Communications and Digital Technologies","Administration","Corporate Services","3. Efficiency and delivery model","3.3 Delivery model appropriateness",null,"Poorly suited delivery model; high risk.","Suboptimal model; lacks innovation or scale.","Reasonable model; can be improved.","Well-designed and fit-for-purpose delivery model.",{"$f":"IFERROR(MATCH(TARS_List3[[#This Row],[Item]],TARS_List3[[#This Row],[Rating 1]:[Rating 4]],0),0)","v":0},{"$f":"TARS_List3[[#This Row],[Score]]/4*100","v":0},null,2,1]
[null,null,null,null,null,null,null,null,30,1,"Communications and Digital Technologies","Administration","Corporate Services","3. Efficiency and delivery model","3.4 Cost per output",null,"Cost per output is excessive or unknown.","Higher than acceptable cost with inefficiencies.","Within range, some room for cost reduction.","Low cost per output; good value for money.",{"$f":"IFERROR(MATCH(TARS_List3[[#This Row],[Item]],TARS_List3[[#This Row],[Rating 1]:[Rating 4]],0),0)","v":0},{"$f":"TARS_List3[[#This Row],[Score]]/4*100","v":0},null,12,3]
[null,null,null,null,null,null,null,null,30,1,"Communications and Digital Technologies","Administration","Corporate Services","3. Efficiency and delivery model","3.5 Institutional capacity",null,"Major capacity gaps; delivery is severely hindered.","Limited capacity; delivery is inconsistent.","Adequate capacity with minor constraints.","Strong capacity; well-resourced and effectively managed.",{"$f":"IFERROR(MATCH(TARS_List3[[#This Row],[Item]],TARS_List3[[#This Row],[Rating 1]:[Rating 4]],0),0)","v":0},{"$f":"TARS_List3[[#This Row],[Score]]/4*100","v":0},null,3,1]
[null,null,null,null,null,null,null,null,30,1,"Communications and Digital Technologies","Administration","Corporate Services","4. Financial sustainability and external leverage","4.1 Budget discipline",null,"Frequent overspending or misuse of funds.","Irregularities in budget execution.","Generally within budget; few adjustments.","Strong budget discipline and forecasting.",{"$f":"IFERROR(MATCH(TARS_List3[[#This Row],[Item]],TARS_List3[[#This Row],[Rating 1]:[Rating 4]],0),0)","v":0},{"$f":"TARS_List3[[#This Row],[Score]]/4*100","v":0},null,13,3]
[null,null,null,null,null,null,null,null,30,1,"Communications and Digital Technologies","Administration","Corporate Services","4. Financial sustainability and external leverage","4.2 Medium-term affordability",null,"Not affordable; creates unfunded pressures.","Likely to become unsustainable.","Mostly affordable with some risk.","Fully affordable and fiscally sound.",{"$f":"IFERROR(MATCH(TARS_List3[[#This Row],[Item]],TARS_List3[[#This Row],[Rating 1]:[Rating 4]],0),0)","v":0},{"$f":"TARS_List3[[#This Row],[Score]]/4*100","v":0},null,1,1]
[null,null,null,null,null,null,null,null,30,1,"Communications and Digital Technologies","Administration","Corporate Services","4. Financial sustainability and external leverage","4.3 External funding potential",null,"No potential for external funding.","Minimal or uncertain funding interest.","Some interest; conditional opportunities exist.","Strong likelihood of attracting external support.",{"$f":"IFERROR(MATCH(TARS_List3[[#This Row],[Item]],TARS_List3[[#This Row],[Rating 1]:[Rating 4]],0),0)","v":0},{"$f":"TARS_List3[[#This Row],[Score]]/4*100","v":0},null,3,1]
[null,null,null,null,null,null,null,null,30,1,"Communications and Digital Technologies","Administration","Financial Management","1. Legal mandate and strategic alignment","1.1 Constitutional or legal basis",null,"No legal or constitutional obligation.","Weak or indirect legal justification.","Clear legal or legislative basis.","Directly mandated by the Constitution or national law.",{"$f":"IFERROR(MATCH(TARS_List3[[#This Row],[Item]],TARS_List3[[#This Row],[Rating 1]:[Rating 4]],0),0)","v":0},{"$f":"TARS_List3[[#This Row],[Score]]/4*100","v":0},null,3,1]
[null,null,null,null,null,null,null,null,30,1,"Communications and Digital Technologies","Administration","Financial Management","1. Legal mandate and strategic alignment","1.2 Policy alignment",null,"Not aligned with any known policy or plan.","Minimal or outdated policy link.","Clearly aligned with current sector policy.","Directly linked to strategic national priorities.",{"$f":"IFERROR(MATCH(TARS_List3[[#This Row],[Item]],TARS_List3[[#This Row],[Rating 1]:[Rating 4]],0),0)","v":0},{"$f":"TARS_List3[[#This Row],[Score]]/4*100","v":0},null,14,4]
[null,null,null,null,null,null,null,null,30,1,"Communications and Digital Technologies","Administration","Financial Management","1. Legal mandate and strategic alignment","1.3 Institutional role fit",null,"Outside the department’s mandate.","Weak fit or duplication with other institutions.","Within mandate but can be better positioned.","Strong and natural fit with department’s primary functions.",{"$f":"IFERROR(MATCH(TARS_List3[[#This Row],[Item]],TARS_List3[[#This Row],[Rating 1]:[Rating 4]],0),0)","v":0},{"$f":"TARS_List3[[#This Row],[Score]]/4*100","v":0},null,11,3]
[null,null,null,null,null,null,null,null,30,1,"Communications and Digital Technologies","Administration","Financial Management","1. Legal mandate and strategic alignment","1.4 Functional duplication",null,"Duplicates existing functions in other entities.","Some overlaps; coordination is unclear.","Limited duplication; some synergy possible.","No duplication; unique and complementary.",{"$f":"IFERROR(MATCH(TARS_List3[[#This Row],[Item]],TARS_List3[[#This Row],[Rating 1]:[Rating 4]],0),0)","v":0},{"$f":"TARS_List3[[#This Row],[Score]]/4*100","v":0},null,14,4]
[null,null,null,null,null,null,null,null,30,1,"Communications and Digital Technologies","Administration","Financial Management","2. Performance and effectiveness","2.1 Delivery of outputs",null,"Very low or no outputs delivered.","Inconsistent or poor delivery of outputs.","Mostly delivers expected outputs.","Delivers outputs efficiently and consistently.",{"$f":"IFERROR(MATCH(TARS_List3[[#This Row],[Item]],TARS_List3[[#This Row],[Rating 1]:[Rating 4]],0),0)","v":0},{"$f":"TARS_List3[[#This Row],[Score]]/4*100","v":0},null,1,1]
[null,null,null,null,null,null,null,null,30,1,"Communications and Digital Technologies","Administration","Financial Management","2. Performance and effectiveness","2.2 Achievement of outcomes",null,"No evidence of outcome achievement.","Minimal or indirect contribution to outcomes.","Some contribution; outcome indicators present.","Strong evidence of achieving targeted outcomes.",{"$f":"IFERROR(MATCH(TARS_List3[[#This Row],[Item]],TARS_List3[[#This Row],[Rating 1]:[Rating 4]],0),0)","v":0},{"$f":"TARS_List3[[#This Row],[Score]]/4*100","v":0},null,8,2]
[null,null,null,null,null,null,null,null,30,1,"Communications and Digital Technologies","Administration","Financial Management","2. Performance and effectiveness","2.3 Responsiveness to need",null,"No identifiable or outdated need addressed.","Weak alignment to needs; limited relevance.","Aligned to sector needs; moderate relevance.","High relevance and responsiveness to urgent needs.",{"$f":"IFERROR(MATCH(TARS_List3[[#This Row],[Item]],TARS_List3[[#This Row],[Rating 1]:[Rating 4]],0),0)","v":0},{"$f":"TARS_List3[[#This Row],[Score]]/4*100","v":0},null,6,2]
[null,null,null,null,null,null,null,null,30,1,"Communications and Digital Technologies","Administration","Financial Management","3. Efficiency and delivery model","3.1 Resource use efficiency",null,"Wasteful or inefficient use of resources.","Some inefficiencies and resource misallocation.","Reasonably efficient with manageable waste.","Highly efficient with optimal resource use.",{"$f":"IFERROR(MATCH(TARS_List3[[#This Row],[Item]],TARS_List3[[#This Row],[Rating 1]:[Rating 4]],0),0)","v":0},{"$f":"TARS_List3[[#This Row],[Score]]/4*100","v":0},null,0,1]
[null,null,null,null,null,null,null,null,30,1,"Communications and Digital Technologies","Administration","Financial Management","3. Efficiency and delivery model","3.2 Staffing and administrative overheads",null,"Overheads far exceed acceptable levels.","High overheads; delivery impact is diluted.","Balanced overheads; room for improvement.","Lean and efficient administrative cost structure.",{"$f":"IFERROR(MATCH(TARS_List3[[#This Row],[Item]],TARS_List3[[#This Row],[Rating 1]:[Rating 4]],0),0)","v":0},{"$f":"TARS_List3[[#This Row],[Score]]/4*100","v":0},null,11,3]
[null,null,null,null,null,null,null,null,30,1,"Communications and Digital Technologies","Administration","Financial Management","3. Efficiency and delivery model","3.3 Delivery model appropriateness",null,"Poorly suited delivery model; high risk.","Suboptimal model; lacks innovation or scale.","Reasonable model; can be improved.","Well-designed and fit-for-purpose delivery model.",{"$f":"IFERROR(MATCH(TARS_List3[[#This Row],[Item]],TARS_List3[[#This Row],[Rating 1]:[Rating 4]],0),0)","v":0},{"$f":"TARS_List3[[#This Row],[Score]]/4*100","v":0},null,8,2]
[null,null,null,null,null,null,null,null,30,1,"Communications and Digital Technologies","Administration","Financial Management","3. Efficiency and delivery model","3.4 Cost per output",null,"Cost per output is excessive or unknown.","Higher than acceptable cost with inefficiencies.","Within range, some room for cost reduction.","Low cost per output; good value for money.",{"$f":"IFERROR(MATCH(TARS_List3[[#This Row],[Item]],TARS_List3[[#This Row],[Rating 1]:[Rating 4]],0),0)","v":0},{"$f":"TARS_List3[[#This Row],[Score]]/4*100","v":0},null,6,2]
[null,null,null,null,null,null,null,null,30,1,"Communications and Digital Technologies","Administration","Financial Management","3. Efficiency and delivery model","3.5 Institutional capacity",null,"Major capacity gaps; delivery is severely hindered.","Limited capacity; delivery is inconsistent.","Adequate capacity with minor constraints.","Strong capacity; well-resourced and effectively managed.",{"$f":"IFERROR(MATCH(TARS_List3[[#This Row],[Item]],TARS_List3[[#This Row],[Rating 1]:[Rating 4]],0),0)","v":0},{"$f":"TARS_List3[[#This Row],[Score]]/4*100","v":0},null,1,1]
[null,null,null,null,null,null,null,null,30,1,"Communications and Digital Technologies","Administration","Financial Management","4. Financial sustainability and external leverage","4.1 Budget discipline",null,"Frequent overspending or misuse of funds.","Irregularities in budget execution.","Generally within budget; few adjustments.","Strong budget discipline and forecasting.",{"$f":"IFERROR(MATCH(TARS_List3[[#This Row],[Item]],TARS_List3[[#This Row],[Rating 1]:[Rating 4]],0),0)","v":0},{"$f":"TARS_List3[[#This Row],[Score]]/4*100","v":0},null,5,1]
[null,null,null,null,null,null,null,null,30,1,"Communications and Digital Technologies","Administration","Financial Management","4. Financial sustainability and external leverage","4.2 Medium-term affordability",null,"Not affordable; creates unfunded pressures.","Likely to become unsustainable.","Mostly affordable with some risk.","Fully affordable and fiscally sound.",{"$f":"IFERROR(MATCH(TARS_List3[[#This Row],[Item]],TARS_List3[[#This Row],[Rating 1]:[Rating 4]],0),0)","v":0},{"$f":"TARS_List3[[#This Row],[Score]]/4*100","v":0},null,11,3]
[null,null,null,null,null,null,null,null,30,1,"Communications and Digital Technologies","Administration","Financial Management","4. Financial sustainability and external leverage","4.3 External funding potential",null,"No potential for external funding.","Minimal or uncertain funding interest.","Some interest; conditional opportunities exist.","Strong likelihood of attracting external support.",{"$f":"IFERROR(MATCH(TARS_List3[[#This Row],[Item]],TARS_List3[[#This Row],[Rating 1]:[Rating 4]],0),0)","v":0},{"$f":"TARS_List3[[#This Row],[Score]]/4*100","v":0},null,11,3]
[null,null,null,null,null,null,null,null,30,1,"Communications and Digital Technologies","Administration","Office Accommodation","1. Legal mandate and strategic alignment","1.1 Constitutional or legal basis",null,"No legal or constitutional obligation.","Weak or indirect legal justification.","Clear legal or legislative basis.","Directly mandated by the Constitution or national law.",{"$f":"IFERROR(MATCH(TARS_List3[[#This Row],[Item]],TARS_List3[[#This Row],[Rating 1]:[Rating 4]],0),0)","v":0},{"$f":"TARS_List3[[#This Row],[Score]]/4*100","v":0},null,14,4]
[null,null,null,null,null,null,null,null,30,1,"Communications and Digital Technologies","Administration","Office Accommodation","1. Legal mandate and strategic alignment","1.2 Policy alignment",null,"Not aligned with any known policy or plan.","Minimal or outdated policy link.","Clearly aligned with current sector policy.","Directly linked to strategic national priorities.",{"$f":"IFERROR(MATCH(TARS_List3[[#This Row],[Item]],TARS_List3[[#This Row],[Rating 1]:[Rating 4]],0),0)","v":0},{"$f":"TARS_List3[[#This Row],[Score]]/4*100","v":0},null,15,4]
[null,null,null,null,null,null,null,null,30,1,"Communications and Digital Technologies","Administration","Office Accommodation","1. Legal mandate and strategic alignment","1.3 Institutional role fit",null,"Outside the department’s mandate.","Weak fit or duplication with other institutions.","Within mandate but can be better positioned.","Strong and natural fit with department’s primary functions.",{"$f":"IFERROR(MATCH(TARS_List3[[#This Row],[Item]],TARS_List3[[#This Row],[Rating 1]:[Rating 4]],0),0)","v":0},{"$f":"TARS_List3[[#This Row],[Score]]/4*100","v":0},null,7,2]
[null,null,null,null,null,null,null,null,30,1,"Communications and Digital Technologies","Administration","Office Accommodation","1. Legal mandate and strategic alignment","1.4 Functional duplication",null,"Duplicates existing functions in other entities.","Some overlaps; coordination is unclear.","Limited duplication; some synergy possible.","No duplication; unique and complementary.",{"$f":"IFERROR(MATCH(TARS_List3[[#This Row],[Item]],TARS_List3[[#This Row],[Rating 1]:[Rating 4]],0),0)","v":0},{"$f":"TARS_List3[[#This Row],[Score]]/4*100","v":0},null,5,1]
[null,null,null,null,null,null,null,null,30,1,"Communications and Digital Technologies","Administration","Office Accommodation","2. Performance and effectiveness","2.1 Delivery of outputs",null,"Very low or no outputs delivered.","Inconsistent or poor delivery of outputs.","Mostly delivers expected outputs.","Delivers outputs efficiently and consistently.",{"$f":"IFERROR(MATCH(TARS_List3[[#This Row],[Item]],TARS_List3[[#This Row],[Rating 1]:[Rating 4]],0),0)","v":0},{"$f":"TARS_List3[[#This Row],[Score]]/4*100","v":0},null,{"$f":"ROUND(RAND()*16,0)","v":9},{"$f":"IF(MROUND(X85,4)>4,MROUND(X85,4)/4,1)","v":2}]
[null,null,null,null,null,null,null,null,30,1,"Communications and Digital Technologies","Administration","Office Accommodation","2. Performance and effectiveness","2.2 Achievement of outcomes",null,"No evidence of outcome achievement.","Minimal or indirect contribution to outcomes.","Some contribution; outcome indicators present.","Strong evidence of achieving targeted outcomes.",{"$f":"IFERROR(MATCH(TARS_List3[[#This Row],[Item]],TARS_List3[[#This Row],[Rating 1]:[Rating 4]],0),0)","v":0},{"$f":"TARS_List3[[#This Row],[Score]]/4*100","v":0},null,12,3]
[null,null,null,null,null,null,null,null,30,1,"Communications and Digital Technologies","Administration","Office Accommodation","2. Performance and effectiveness","2.3 Responsiveness to need",null,"No identifiable or outdated need addressed.","Weak alignment to needs; limited relevance.","Aligned to sector needs; moderate relevance.","High relevance and responsiveness to urgent needs.",{"$f":"IFERROR(MATCH(TARS_List3[[#This Row],[Item]],TARS_List3[[#This Row],[Rating 1]:[Rating 4]],0),0)","v":0},{"$f":"TARS_List3[[#This Row],[Score]]/4*100","v":0},null,8,2]
[null,null,null,null,null,null,null,null,30,1,"Communications and Digital Technologies","Administration","Office Accommodation","3. Efficiency and delivery model","3.1 Resource use efficiency",null,"Wasteful or inefficient use of resources.","Some inefficiencies and resource misallocation.","Reasonably efficient with manageable waste.","Highly efficient with optimal resource use.",{"$f":"IFERROR(MATCH(TARS_List3[[#This Row],[Item]],TARS_List3[[#This Row],[Rating 1]:[Rating 4]],0),0)","v":0},{"$f":"TARS_List3[[#This Row],[Score]]/4*100","v":0},null,2,1]
[null,null,null,null,null,null,null,null,30,1,"Communications and Digital Technologies","Administration","Office Accommodation","3. Efficiency and delivery model","3.2 Staffing and administrative overheads",null,"Overheads far exceed acceptable levels.","High overheads; delivery impact is diluted.","Balanced overheads; room for improvement.","Lean and efficient administrative cost structure.",{"$f":"IFERROR(MATCH(TARS_List3[[#This Row],[Item]],TARS_List3[[#This Row],[Rating 1]:[Rating 4]],0),0)","v":0},{"$f":"TARS_List3[[#This Row],[Score]]/4*100","v":0},null,13,3]
[null,null,null,null,null,null,null,null,30,1,"Communications and Digital Technologies","Administration","Office Accommodation","3. Efficiency and delivery model","3.3 Delivery model appropriateness",null,"Poorly suited delivery model; high risk.","Suboptimal model; lacks innovation or scale.","Reasonable model; can be improved.","Well-designed and fit-for-purpose delivery model.",{"$f":"IFERROR(MATCH(TARS_List3[[#This Row],[Item]],TARS_List3[[#This Row],[Rating 1]:[Rating 4]],0),0)","v":0},{"$f":"TARS_List3[[#This Row],[Score]]/4*100","v":0},null,10,3]
[null,null,null,null,null,null,null,null,30,1,"Communications and Digital Technologies","Administration","Office Accommodation","3. Efficiency and delivery model","3.4 Cost per output",null,"Cost per output is excessive or unknown.","Higher than acceptable cost with inefficiencies.","Within range, some room for cost reduction.","Low cost per output; good value for money.",{"$f":"IFERROR(MATCH(TARS_List3[[#This Row],[Item]],TARS_List3[[#This Row],[Rating 1]:[Rating 4]],0),0)","v":0},{"$f":"TARS_List3[[#This Row],[Score]]/4*100","v":0},null,5,1]
[null,null,null,null,null,null,null,null,30,1,"Communications and Digital Technologies","Administration","Office Accommodation","3. Efficiency and delivery model","3.5 Institutional capacity",null,"Major capacity gaps; delivery is severely hindered.","Limited capacity; delivery is inconsistent.","Adequate capacity with minor constraints.","Strong capacity; well-resourced and effectively managed.",{"$f":"IFERROR(MATCH(TARS_List3[[#This Row],[Item]],TARS_List3[[#This Row],[Rating 1]:[Rating 4]],0),0)","v":0},{"$f":"TARS_List3[[#This Row],[Score]]/4*100","v":0},null,8,2]
[null,null,null,null,null,null,null,null,30,1,"Communications and Digital Technologies","Administration","Office Accommodation","4. Financial sustainability and external leverage","4.1 Budget discipline",null,"Frequent overspending or misuse of funds.","Irregularities in budget execution.","Generally within budget; few adjustments.","Strong budget discipline and forecasting.",{"$f":"IFERROR(MATCH(TARS_List3[[#This Row],[Item]],TARS_List3[[#This Row],[Rating 1]:[Rating 4]],0),0)","v":0},{"$f":"TARS_List3[[#This Row],[Score]]/4*100","v":0},null,8,2]
[null,null,null,null,null,null,null,null,30,1,"Communications and Digital Technologies","Administration","Office Accommodation","4. Financial sustainability and external leverage","4.2 Medium-term affordability",null,"Not affordable; creates unfunded pressures.","Likely to become unsustainable.","Mostly affordable with some risk.","Fully affordable and fiscally sound.",{"$f":"IFERROR(MATCH(TARS_List3[[#This Row],[Item]],TARS_List3[[#This Row],[Rating 1]:[Rating 4]],0),0)","v":0},{"$f":"TARS_List3[[#This Row],[Score]]/4*100","v":0},null,0,1]
[null,null,null,null,null,null,null,null,30,1,"Communications and Digital Technologies","Administration","Office Accommodation","4. Financial sustainability and external leverage","4.3 External funding potential",null,"No potential for external funding.","Minimal or uncertain funding interest.","Some interest; conditional opportunities exist.","Strong likelihood of attracting external support.",{"$f":"IFERROR(MATCH(TARS_List3[[#This Row],[Item]],TARS_List3[[#This Row],[Rating 1]:[Rating 4]],0),0)","v":0},{"$f":"TARS_List3[[#This Row],[Score]]/4*100","v":0},null,15,4]
[null,null,null,null,null,null,null,null,30,2,"Communications and Digital Technologies","ICT Transformation, Global Partnerships and State-Owned Enterprises Governance","Programme Management for ICT Transformation, Global Partnerships and State-Owned Enterprises Governance","1. Legal mandate and strategic alignment","1.1 Constitutional or legal basis",null,"No legal or constitutional obligation.","Weak or indirect legal justification.","Clear legal or legislative basis.","Directly mandated by the Constitution or national law.",{"$f":"IFERROR(MATCH(TARS_List3[[#This Row],[Item]],TARS_List3[[#This Row],[Rating 1]:[Rating 4]],0),0)","v":0},{"$f":"TARS_List3[[#This Row],[Score]]/4*100","v":0},null,13,3]
[null,null,null,null,null,null,null,null,30,2,"Communications and Digital Technologies","ICT Transformation, Global Partnerships and State-Owned Enterprises Governance","Programme Management for ICT Transformation, Global Partnerships and State-Owned Enterprises Governance","1. Legal mandate and strategic alignment","1.2 Policy alignment",null,"Not aligned with any known policy or plan.","Minimal or outdated policy link.","Clearly aligned with current sector policy.","Directly linked to strategic national priorities.",{"$f":"IFERROR(MATCH(TARS_List3[[#This Row],[Item]],TARS_List3[[#This Row],[Rating 1]:[Rating 4]],0),0)","v":0},{"$f":"TARS_List3[[#This Row],[Score]]/4*100","v":0},null,9,2]
[null,null,null,null,null,null,null,null,30,2,"Communications and Digital Technologies","ICT Transformation, Global Partnerships and State-Owned Enterprises Governance","Programme Management for ICT Transformation, Global Partnerships and State-Owned Enterprises Governance","1. Legal mandate and strategic alignment","1.3 Institutional role fit",null,"Outside the department’s mandate.","Weak fit or duplication with other institutions.","Within mandate but can be better positioned.","Strong and natural fit with department’s primary functions.",{"$f":"IFERROR(MATCH(TARS_List3[[#This Row],[Item]],TARS_List3[[#This Row],[Rating 1]:[Rating 4]],0),0)","v":0},{"$f":"TARS_List3[[#This Row],[Score]]/4*100","v":0},null,1,1]
[null,null,null,null,null,null,null,null,30,2,"Communications and Digital Technologies","ICT Transformation, Global Partnerships and State-Owned Enterprises Governance","Programme Management for ICT Transformation, Global Partnerships and State-Owned Enterprises Governance","1. Legal mandate and strategic alignment","1.4 Functional duplication",null,"Duplicates existing functions in other entities.","Some overlaps; coordination is unclear.","Limited duplication; some synergy possible.","No duplication; unique and complementary.",{"$f":"IFERROR(MATCH(TARS_List3[[#This Row],[Item]],TARS_List3[[#This Row],[Rating 1]:[Rating 4]],0),0)","v":0},{"$f":"TARS_List3[[#This Row],[Score]]/4*100","v":0},null,11,3]
[null,null,null,null,null,null,null,null,30,2,"Communications and Digital Technologies","ICT Transformation, Global Partnerships and State-Owned Enterprises Governance","Programme Management for ICT Transformation, Global Partnerships and State-Owned Enterprises Governance","2. Performance and effectiveness","2.1 Delivery of outputs",null,"Very low or no outputs delivered.","Inconsistent or poor delivery of outputs.","Mostly delivers expected outputs.","Delivers outputs efficiently and consistently.",{"$f":"IFERROR(MATCH(TARS_List3[[#This Row],[Item]],TARS_List3[[#This Row],[Rating 1]:[Rating 4]],0),0)","v":0},{"$f":"TARS_List3[[#This Row],[Score]]/4*100","v":0},null,8,2]
[null,null,null,null,null,null,null,null,30,2,"Communications and Digital Technologies","ICT Transformation, Global Partnerships and State-Owned Enterprises Governance","Programme Management for ICT Transformation, Global Partnerships and State-Owned Enterprises Governance","2. Performance and effectiveness","2.2 Achievement of outcomes",null,"No evidence of outcome achievement.","Minimal or indirect contribution to outcomes.","Some contribution; outcome indicators present.","Strong evidence of achieving targeted outcomes.",{"$f":"IFERROR(MATCH(TARS_List3[[#This Row],[Item]],TARS_List3[[#This Row],[Rating 1]:[Rating 4]],0),0)","v":0},{"$f":"TARS_List3[[#This Row],[Score]]/4*100","v":0},null,1,1]
[null,null,null,null,null,null,null,null,30,2,"Communications and Digital Technologies","ICT Transformation, Global Partnerships and State-Owned Enterprises Governance","Programme Management for ICT Transformation, Global Partnerships and State-Owned Enterprises Governance","2. Performance and effectiveness","2.3 Responsiveness to need",null,"No identifiable or outdated need addressed.","Weak alignment to needs; limited relevance.","Aligned to sector needs; moderate relevance.","High relevance and responsiveness to urgent needs.",{"$f":"IFERROR(MATCH(TARS_List3[[#This Row],[Item]],TARS_List3[[#This Row],[Rating 1]:[Rating 4]],0),0)","v":0},{"$f":"TARS_List3[[#This Row],[Score]]/4*100","v":0},null,3,1]
[null,null,null,null,null,null,null,null,30,2,"Communications and Digital Technologies","ICT Transformation, Global Partnerships and State-Owned Enterprises Governance","Programme Management for ICT Transformation, Global Partnerships and State-Owned Enterprises Governance","3. Efficiency and delivery model","3.1 Resource use efficiency",null,"Wasteful or inefficient use of resources.","Some inefficiencies and resource misallocation.","Reasonably efficient with manageable waste.","Highly efficient with optimal resource use.",{"$f":"IFERROR(MATCH(TARS_List3[[#This Row],[Item]],TARS_List3[[#This Row],[Rating 1]:[Rating 4]],0),0)","v":0},{"$f":"TARS_List3[[#This Row],[Score]]/4*100","v":0},null,15,4]
[null,null,null,null,null,null,null,null,30,2,"Communications and Digital Technologies","ICT Transformation, Global Partnerships and State-Owned Enterprises Governance","Programme Management for ICT Transformation, Global Partnerships and State-Owned Enterprises Governance","3. Efficiency and delivery model","3.2 Staffing and administrative overheads",null,"Overheads far exceed acceptable levels.","High overheads; delivery impact is diluted.","Balanced overheads; room for improvement.","Lean and efficient administrative cost structure.",{"$f":"IFERROR(MATCH(TARS_List3[[#This Row],[Item]],TARS_List3[[#This Row],[Rating 1]:[Rating 4]],0),0)","v":0},{"$f":"TARS_List3[[#This Row],[Score]]/4*100","v":0},null,15,4]
[null,null,null,null,null,null,null,null,30,2,"Communications and Digital Technologies","ICT Transformation, Global Partnerships and State-Owned Enterprises Governance","Programme Management for ICT Transformation, Global Partnerships and State-Owned Enterprises Governance","3. Efficiency and delivery model","3.3 Delivery model appropriateness",null,"Poorly suited delivery model; high risk.","Suboptimal model; lacks innovation or scale.","Reasonable model; can be improved.","Well-designed and fit-for-purpose delivery model.",{"$f":"IFERROR(MATCH(TARS_List3[[#This Row],[Item]],TARS_List3[[#This Row],[Rating 1]:[Rating 4]],0),0)","v":0},{"$f":"TARS_List3[[#This Row],[Score]]/4*100","v":0},null,13,3]
[null,null,null,null,null,null,null,null,30,2,"Communications and Digital Technologies","ICT Transformation, Global Partnerships and State-Owned Enterprises Governance","Programme Management for ICT Transformation, Global Partnerships and State-Owned Enterprises Governance","3. Efficiency and delivery model","3.4 Cost per output",null,"Cost per output is excessive or unknown.","Higher than acceptable cost with inefficiencies.","Within range, some room for cost reduction.","Low cost per output; good value for money.",{"$f":"IFERROR(MATCH(TARS_List3[[#This Row],[Item]],TARS_List3[[#This Row],[Rating 1]:[Rating 4]],0),0)","v":0},{"$f":"TARS_List3[[#This Row],[Score]]/4*100","v":0},null,1,1]
[null,null,null,null,null,null,null,null,30,2,"Communications and Digital Technologies","ICT Transformation, Global Partnerships and State-Owned Enterprises Governance","Programme Management for ICT Transformation, Global Partnerships and State-Owned Enterprises Governance","3. Efficiency and delivery model","3.5 Institutional capacity",null,"Major capacity gaps; delivery is severely hindered.","Limited capacity; delivery is inconsistent.","Adequate capacity with minor constraints.","Strong capacity; well-resourced and effectively managed.",{"$f":"IFERROR(MATCH(TARS_List3[[#This Row],[Item]],TARS_List3[[#This Row],[Rating 1]:[Rating 4]],0),0)","v":0},{"$f":"TARS_List3[[#This Row],[Score]]/4*100","v":0},null,8,2]
[null,null,null,null,null,null,null,null,30,2,"Communications and Digital Technologies","ICT Transformation, Global Partnerships and State-Owned Enterprises Governance","Programme Management for ICT Transformation, Global Partnerships and State-Owned Enterprises Governance","4. Financial sustainability and external leverage","4.1 Budget discipline",null,"Frequent overspending or misuse of funds.","Irregularities in budget execution.","Generally within budget; few adjustments.","Strong budget discipline and forecasting.",{"$f":"IFERROR(MATCH(TARS_List3[[#This Row],[Item]],TARS_List3[[#This Row],[Rating 1]:[Rating 4]],0),0)","v":0},{"$f":"TARS_List3[[#This Row],[Score]]/4*100","v":0},null,10,3]
[null,null,null,null,null,null,null,null,30,2,"Communications and Digital Technologies","ICT Transformation, Global Partnerships and State-Owned Enterprises Governance","Programme Management for ICT Transformation, Global Partnerships and State-Owned Enterprises Governance","4. Financial sustainability and external leverage","4.2 Medium-term affordability",null,"Not affordable; creates unfunded pressures.","Likely to become unsustainable.","Mostly affordable with some risk.","Fully affordable and fiscally sound.",{"$f":"IFERROR(MATCH(TARS_List3[[#This Row],[Item]],TARS_List3[[#This Row],[Rating 1]:[Rating 4]],0),0)","v":0},{"$f":"TARS_List3[[#This Row],[Score]]/4*100","v":0},null,14,4]
[null,null,null,null,null,null,null,null,30,2,"Communications and Digital Technologies","ICT Transformation, Global Partnerships and State-Owned Enterprises Governance","Programme Management for ICT Transformation, Global Partnerships and State-Owned Enterprises Governance","4. Financial sustainability and external leverage","4.3 External funding potential",null,"No potential for external funding.","Minimal or uncertain funding interest.","Some interest; conditional opportunities exist.","Strong likelihood of attracting external support.",{"$f":"IFERROR(MATCH(TARS_List3[[#This Row],[Item]],TARS_List3[[#This Row],[Rating 1]:[Rating 4]],0),0)","v":0},{"$f":"TARS_List3[[#This Row],[Score]]/4*100","v":0},null,2,1]
[null,null,null,null,null,null,null,null,30,2,"Communications and Digital Technologies","ICT Transformation, Global Partnerships and State-Owned Enterprises Governance","International Relations, Partnerships and Stakeholder Management","1. Legal mandate and strategic alignment","1.1 Constitutional or legal basis",null,"No legal or constitutional obligation.","Weak or indirect legal justification.","Clear legal or legislative basis.","Directly mandated by the Constitution or national law.",{"$f":"IFERROR(MATCH(TARS_List3[[#This Row],[Item]],TARS_List3[[#This Row],[Rating 1]:[Rating 4]],0),0)","v":0},{"$f":"TARS_List3[[#This Row],[Score]]/4*100","v":0},null,14,4]
[null,null,null,null,null,null,null,null,30,2,"Communications and Digital Technologies","ICT Transformation, Global Partnerships and State-Owned Enterprises Governance","International Relations, Partnerships and Stakeholder Management","1. Legal mandate and strategic alignment","1.2 Policy alignment",null,"Not aligned with any known policy or plan.","Minimal or outdated policy link.","Clearly aligned with current sector policy.","Directly linked to strategic national priorities.",{"$f":"IFERROR(MATCH(TARS_List3[[#This Row],[Item]],TARS_List3[[#This Row],[Rating 1]:[Rating 4]],0),0)","v":0},{"$f":"TARS_List3[[#This Row],[Score]]/4*100","v":0},null,14,4]
[null,null,null,null,null,null,null,null,30,2,"Communications and Digital Technologies","ICT Transformation, Global Partnerships and State-Owned Enterprises Governance","International Relations, Partnerships and Stakeholder Management","1. Legal mandate and strategic alignment","1.3 Institutional role fit",null,"Outside the department’s mandate.","Weak fit or duplication with other institutions.","Within mandate but can be better positioned.","Strong and natural fit with department’s primary functions.",{"$f":"IFERROR(MATCH(TARS_List3[[#This Row],[Item]],TARS_List3[[#This Row],[Rating 1]:[Rating 4]],0),0)","v":0},{"$f":"TARS_List3[[#This Row],[Score]]/4*100","v":0},null,6,2]
[null,null,null,null,null,null,null,null,30,2,"Communications and Digital Technologies","ICT Transformation, Global Partnerships and State-Owned Enterprises Governance","International Relations, Partnerships and Stakeholder Management","1. Legal mandate and strategic alignment","1.4 Functional duplication",null,"Duplicates existing functions in other entities.","Some overlaps; coordination is unclear.","Limited duplication; some synergy possible.","No duplication; unique and complementary.",{"$f":"IFERROR(MATCH(TARS_List3[[#This Row],[Item]],TARS_List3[[#This Row],[Rating 1]:[Rating 4]],0),0)","v":0},{"$f":"TARS_List3[[#This Row],[Score]]/4*100","v":0},null,7,2]
[null,null,null,null,null,null,null,null,30,2,"Communications and Digital Technologies","ICT Transformation, Global Partnerships and State-Owned Enterprises Governance","International Relations, Partnerships and Stakeholder Management","2. Performance and effectiveness","2.1 Delivery of outputs",null,"Very low or no outputs delivered.","Inconsistent or poor delivery of outputs.","Mostly delivers expected outputs.","Delivers outputs efficiently and consistently.",{"$f":"IFERROR(MATCH(TARS_List3[[#This Row],[Item]],TARS_List3[[#This Row],[Rating 1]:[Rating 4]],0),0)","v":0},{"$f":"TARS_List3[[#This Row],[Score]]/4*100","v":0},null,13,3]
[null,null,null,null,null,null,null,null,30,2,"Communications and Digital Technologies","ICT Transformation, Global Partnerships and State-Owned Enterprises Governance","International Relations, Partnerships and Stakeholder Management","2. Performance and effectiveness","2.2 Achievement of outcomes",null,"No evidence of outcome achievement.","Minimal or indirect contribution to outcomes.","Some contribution; outcome indicators present.","Strong evidence of achieving targeted outcomes.",{"$f":"IFERROR(MATCH(TARS_List3[[#This Row],[Item]],TARS_List3[[#This Row],[Rating 1]:[Rating 4]],0),0)","v":0},{"$f":"TARS_List3[[#This Row],[Score]]/4*100","v":0},null,5,1]
[null,null,null,null,null,null,null,null,30,2,"Communications and Digital Technologies","ICT Transformation, Global Partnerships and State-Owned Enterprises Governance","International Relations, Partnerships and Stakeholder Management","2. Performance and effectiveness","2.3 Responsiveness to need",null,"No identifiable or outdated need addressed.","Weak alignment to needs; limited relevance.","Aligned to sector needs; moderate relevance.","High relevance and responsiveness to urgent needs.",{"$f":"IFERROR(MATCH(TARS_List3[[#This Row],[Item]],TARS_List3[[#This Row],[Rating 1]:[Rating 4]],0),0)","v":0},{"$f":"TARS_List3[[#This Row],[Score]]/4*100","v":0},null,15,4]
[null,null,null,null,null,null,null,null,30,2,"Communications and Digital Technologies","ICT Transformation, Global Partnerships and State-Owned Enterprises Governance","International Relations, Partnerships and Stakeholder Management","3. Efficiency and delivery model","3.1 Resource use efficiency",null,"Wasteful or inefficient use of resources.","Some inefficiencies and resource misallocation.","Reasonably efficient with manageable waste.","Highly efficient with optimal resource use.",{"$f":"IFERROR(MATCH(TARS_List3[[#This Row],[Item]],TARS_List3[[#This Row],[Rating 1]:[Rating 4]],0),0)","v":0},{"$f":"TARS_List3[[#This Row],[Score]]/4*100","v":0},null,1,1]
[null,null,null,null,null,null,null,null,30,2,"Communications and Digital Technologies","ICT Transformation, Global Partnerships and State-Owned Enterprises Governance","International Relations, Partnerships and Stakeholder Management","3. Efficiency and delivery model","3.2 Staffing and administrative overheads",null,"Overheads far exceed acceptable levels.","High overheads; delivery impact is diluted.","Balanced overheads; room for improvement.","Lean and efficient administrative cost structure.",{"$f":"IFERROR(MATCH(TARS_List3[[#This Row],[Item]],TARS_List3[[#This Row],[Rating 1]:[Rating 4]],0),0)","v":0},{"$f":"TARS_List3[[#This Row],[Score]]/4*100","v":0},null,12,3]
[null,null,null,null,null,null,null,null,30,2,"Communications and Digital Technologies","ICT Transformation, Global Partnerships and State-Owned Enterprises Governance","International Relations, Partnerships and Stakeholder Management","3. Efficiency and delivery model","3.3 Delivery model appropriateness",null,"Poorly suited delivery model; high risk.","Suboptimal model; lacks innovation or scale.","Reasonable model; can be improved.","Well-designed and fit-for-purpose delivery model.",{"$f":"IFERROR(MATCH(TARS_List3[[#This Row],[Item]],TARS_List3[[#This Row],[Rating 1]:[Rating 4]],0),0)","v":0},{"$f":"TARS_List3[[#This Row],[Score]]/4*100","v":0},null,2,1]
[null,null,null,null,null,null,null,null,30,2,"Communications and Digital Technologies","ICT Transformation, Global Partnerships and State-Owned Enterprises Governance","International Relations, Partnerships and Stakeholder Management","3. Efficiency and delivery model","3.4 Cost per output",null,"Cost per output is excessive or unknown.","Higher than acceptable cost with inefficiencies.","Within range, some room for cost reduction.","Low cost per output; good value for money.",{"$f":"IFERROR(MATCH(TARS_List3[[#This Row],[Item]],TARS_List3[[#This Row],[Rating 1]:[Rating 4]],0),0)","v":0},{"$f":"TARS_List3[[#This Row],[Score]]/4*100","v":0},null,7,2]
[null,null,null,null,null,null,null,null,30,2,"Communications and Digital Technologies","ICT Transformation, Global Partnerships and State-Owned Enterprises Governance","International Relations, Partnerships and Stakeholder Management","3. Efficiency and delivery model","3.5 Institutional capacity",null,"Major capacity gaps; delivery is severely hindered.","Limited capacity; delivery is inconsistent.","Adequate capacity with minor constraints.","Strong capacity; well-resourced and effectively managed.",{"$f":"IFERROR(MATCH(TARS_List3[[#This Row],[Item]],TARS_List3[[#This Row],[Rating 1]:[Rating 4]],0),0)","v":0},{"$f":"TARS_List3[[#This Row],[Score]]/4*100","v":0},null,13,3]
[null,null,null,null,null,null,null,null,30,2,"Communications and Digital Technologies","ICT Transformation, Global Partnerships and State-Owned Enterprises Governance","International Relations, Partnerships and Stakeholder Management","4. Financial sustainability and external leverage","4.1 Budget discipline",null,"Frequent overspending or misuse of funds.","Irregularities in budget execution.","Generally within budget; few adjustments.","Strong budget discipline and forecasting.",{"$f":"IFERROR(MATCH(TARS_List3[[#This Row],[Item]],TARS_List3[[#This Row],[Rating 1]:[Rating 4]],0),0)","v":0},{"$f":"TARS_List3[[#This Row],[Score]]/4*100","v":0},null,15,4]
[null,null,null,null,null,null,null,null,30,2,"Communications and Digital Technologies","ICT Transformation, Global Partnerships and State-Owned Enterprises Governance","International Relations, Partnerships and Stakeholder Management","4. Financial sustainability and external leverage","4.2 Medium-term affordability",null,"Not affordable; creates unfunded pressures.","Likely to become unsustainable.","Mostly affordable with some risk.","Fully affordable and fiscally sound.",{"$f":"IFERROR(MATCH(TARS_List3[[#This Row],[Item]],TARS_List3[[#This Row],[Rating 1]:[Rating 4]],0),0)","v":0},{"$f":"TARS_List3[[#This Row],[Score]]/4*100","v":0},null,7,2]
[null,null,null,null,null,null,null,null,30,2,"Communications and Digital Technologies","ICT Transformation, Global Partnerships and State-Owned Enterprises Governance","International Relations, Partnerships and Stakeholder Management","4. Financial sustainability and external leverage","4.3 External funding potential",null,"No potential for external funding.","Minimal or uncertain funding interest.","Some interest; conditional opportunities exist.","Strong likelihood of attracting external support.",{"$f":"IFERROR(MATCH(TARS_List3[[#This Row],[Item]],TARS_List3[[#This Row],[Rating 1]:[Rating 4]],0),0)","v":0},{"$f":"TARS_List3[[#This Row],[Score]]/4*100","v":0},null,2,1]
[null,null,null,null,null,null,null,null,30,2,"Communications and Digital Technologies","ICT Transformation, Global Partnerships and State-Owned Enterprises Governance","State-Owned Enterprise Governance and Investment Management","1. Legal mandate and strategic alignment","1.1 Constitutional or legal basis",null,"No legal or constitutional obligation.","Weak or indirect legal justification.","Clear legal or legislative basis.","Directly mandated by the Constitution or national law.",{"$f":"IFERROR(MATCH(TARS_List3[[#This Row],[Item]],TARS_List3[[#This Row],[Rating 1]:[Rating 4]],0),0)","v":0},{"$f":"TARS_List3[[#This Row],[Score]]/4*100","v":0},null,9,2]
[null,null,null,null,null,null,null,null,30,2,"Communications and Digital Technologies","ICT Transformation, Global Partnerships and State-Owned Enterprises Governance","State-Owned Enterprise Governance and Investment Management","1. Legal mandate and strategic alignment","1.2 Policy alignment",null,"Not aligned with any known policy or plan.","Minimal or outdated policy link.","Clearly aligned with current sector policy.","Directly linked to strategic national priorities.",{"$f":"IFERROR(MATCH(TARS_List3[[#This Row],[Item]],TARS_List3[[#This Row],[Rating 1]:[Rating 4]],0),0)","v":0},{"$f":"TARS_List3[[#This Row],[Score]]/4*100","v":0},null,1,1]
[null,null,null,null,null,null,null,null,30,2,"Communications and Digital Technologies","ICT Transformation, Global Partnerships and State-Owned Enterprises Governance","State-Owned Enterprise Governance and Investment Management","1. Legal mandate and strategic alignment","1.3 Institutional role fit",null,"Outside the department’s mandate.","Weak fit or duplication with other institutions.","Within mandate but can be better positioned.","Strong and natural fit with department’s primary functions.",{"$f":"IFERROR(MATCH(TARS_List3[[#This Row],[Item]],TARS_List3[[#This Row],[Rating 1]:[Rating 4]],0),0)","v":0},{"$f":"TARS_List3[[#This Row],[Score]]/4*100","v":0},null,1,1]
[null,null,null,null,null,null,null,null,30,2,"Communications and Digital Technologies","ICT Transformation, Global Partnerships and State-Owned Enterprises Governance","State-Owned Enterprise Governance and Investment Management","1. Legal mandate and strategic alignment","1.4 Functional duplication",null,"Duplicates existing functions in other entities.","Some overlaps; coordination is unclear.","Limited duplication; some synergy possible.","No duplication; unique and complementary.",{"$f":"IFERROR(MATCH(TARS_List3[[#This Row],[Item]],TARS_List3[[#This Row],[Rating 1]:[Rating 4]],0),0)","v":0},{"$f":"TARS_List3[[#This Row],[Score]]/4*100","v":0},null,4,1]
[null,null,null,null,null,null,null,null,30,2,"Communications and Digital Technologies","ICT Transformation, Global Partnerships and State-Owned Enterprises Governance","State-Owned Enterprise Governance and Investment Management","2. Performance and effectiveness","2.1 Delivery of outputs",null,"Very low or no outputs delivered.","Inconsistent or poor delivery of outputs.","Mostly delivers expected outputs.","Delivers outputs efficiently and consistently.",{"$f":"IFERROR(MATCH(TARS_List3[[#This Row],[Item]],TARS_List3[[#This Row],[Rating 1]:[Rating 4]],0),0)","v":0},{"$f":"TARS_List3[[#This Row],[Score]]/4*100","v":0},null,13,3]
[null,null,null,null,null,null,null,null,30,2,"Communications and Digital Technologies","ICT Transformation, Global Partnerships and State-Owned Enterprises Governance","State-Owned Enterprise Governance and Investment Management","2. Performance and effectiveness","2.2 Achievement of outcomes",null,"No evidence of outcome achievement.","Minimal or indirect contribution to outcomes.","Some contribution; outcome indicators present.","Strong evidence of achieving targeted outcomes.",{"$f":"IFERROR(MATCH(TARS_List3[[#This Row],[Item]],TARS_List3[[#This Row],[Rating 1]:[Rating 4]],0),0)","v":0},{"$f":"TARS_List3[[#This Row],[Score]]/4*100","v":0},null,0,1]
[null,null,null,null,null,null,null,null,30,2,"Communications and Digital Technologies","ICT Transformation, Global Partnerships and State-Owned Enterprises Governance","State-Owned Enterprise Governance and Investment Management","2. Performance and effectiveness","2.3 Responsiveness to need",null,"No identifiable or outdated need addressed.","Weak alignment to needs; limited relevance.","Aligned to sector needs; moderate relevance.","High relevance and responsiveness to urgent needs.",{"$f":"IFERROR(MATCH(TARS_List3[[#This Row],[Item]],TARS_List3[[#This Row],[Rating 1]:[Rating 4]],0),0)","v":0},{"$f":"TARS_List3[[#This Row],[Score]]/4*100","v":0},null,5,1]
[null,null,null,null,null,null,null,null,30,2,"Communications and Digital Technologies","ICT Transformation, Global Partnerships and State-Owned Enterprises Governance","State-Owned Enterprise Governance and Investment Management","3. Efficiency and delivery model","3.1 Resource use efficiency",null,"Wasteful or inefficient use of resources.","Some inefficiencies and resource misallocation.","Reasonably efficient with manageable waste.","Highly efficient with optimal resource use.",{"$f":"IFERROR(MATCH(TARS_List3[[#This Row],[Item]],TARS_List3[[#This Row],[Rating 1]:[Rating 4]],0),0)","v":0},{"$f":"TARS_List3[[#This Row],[Score]]/4*100","v":0},null,14,4]
[null,null,null,null,null,null,null,null,30,2,"Communications and Digital Technologies","ICT Transformation, Global Partnerships and State-Owned Enterprises Governance","State-Owned Enterprise Governance and Investment Management","3. Efficiency and delivery model","3.2 Staffing and administrative overheads",null,"Overheads far exceed acceptable levels.","High overheads; delivery impact is diluted.","Balanced overheads; room for improvement.","Lean and efficient administrative cost structure.",{"$f":"IFERROR(MATCH(TARS_List3[[#This Row],[Item]],TARS_List3[[#This Row],[Rating 1]:[Rating 4]],0),0)","v":0},{"$f":"TARS_List3[[#This Row],[Score]]/4*100","v":0},null,3,1]
[null,null,null,null,null,null,null,null,30,2,"Communications and Digital Technologies","ICT Transformation, Global Partnerships and State-Owned Enterprises Governance","State-Owned Enterprise Governance and Investment Management","3. Efficiency and delivery model","3.3 Delivery model appropriateness",null,"Poorly suited delivery model; high risk.","Suboptimal model; lacks innovation or scale.","Reasonable model; can be improved.","Well-designed and fit-for-purpose delivery model.",{"$f":"IFERROR(MATCH(TARS_List3[[#This Row],[Item]],TARS_List3[[#This Row],[Rating 1]:[Rating 4]],0),0)","v":0},{"$f":"TARS_List3[[#This Row],[Score]]/4*100","v":0},null,3,1]
[null,null,null,null,null,null,null,null,30,2,"Communications and Digital Technologies","ICT Transformation, Global Partnerships and State-Owned Enterprises Governance","State-Owned Enterprise Governance and Investment Management","3. Efficiency and delivery model","3.4 Cost per output",null,"Cost per output is excessive or unknown.","Higher than acceptable cost with inefficiencies.","Within range, some room for cost reduction.","Low cost per output; good value for money.",{"$f":"IFERROR(MATCH(TARS_List3[[#This Row],[Item]],TARS_List3[[#This Row],[Rating 1]:[Rating 4]],0),0)","v":0},{"$f":"TARS_List3[[#This Row],[Score]]/4*100","v":0},null,9,2]
[null,null,null,null,null,null,null,null,30,2,"Communications and Digital Technologies","ICT Transformation, Global Partnerships and State-Owned Enterprises Governance","State-Owned Enterprise Governance and Investment Management","3. Efficiency and delivery model","3.5 Institutional capacity",null,"Major capacity gaps; delivery is severely hindered.","Limited capacity; delivery is inconsistent.","Adequate capacity with minor constraints.","Strong capacity; well-resourced and effectively managed.",{"$f":"IFERROR(MATCH(TARS_List3[[#This Row],[Item]],TARS_List3[[#This Row],[Rating 1]:[Rating 4]],0),0)","v":0},{"$f":"TARS_List3[[#This Row],[Score]]/4*100","v":0},null,6,2]
[null,null,null,null,null,null,null,null,30,2,"Communications and Digital Technologies","ICT Transformation, Global Partnerships and State-Owned Enterprises Governance","State-Owned Enterprise Governance and Investment Management","4. Financial sustainability and external leverage","4.1 Budget discipline",null,"Frequent overspending or misuse of funds.","Irregularities in budget execution.","Generally within budget; few adjustments.","Strong budget discipline and forecasting.",{"$f":"IFERROR(MATCH(TARS_List3[[#This Row],[Item]],TARS_List3[[#This Row],[Rating 1]:[Rating 4]],0),0)","v":0},{"$f":"TARS_List3[[#This Row],[Score]]/4*100","v":0},null,11,3]
[null,null,null,null,null,null,null,null,30,2,"Communications and Digital Technologies","ICT Transformation, Global Partnerships and State-Owned Enterprises Governance","State-Owned Enterprise Governance and Investment Management","4. Financial sustainability and external leverage","4.2 Medium-term affordability",null,"Not affordable; creates unfunded pressures.","Likely to become unsustainable.","Mostly affordable with some risk.","Fully affordable and fiscally sound.",{"$f":"IFERROR(MATCH(TARS_List3[[#This Row],[Item]],TARS_List3[[#This Row],[Rating 1]:[Rating 4]],0),0)","v":0},{"$f":"TARS_List3[[#This Row],[Score]]/4*100","v":0},null,13,3]
[null,null,null,null,null,null,null,null,30,2,"Communications and Digital Technologies","ICT Transformation, Global Partnerships and State-Owned Enterprises Governance","State-Owned Enterprise Governance and Investment Management","4. Financial sustainability and external leverage","4.3 External funding potential",null,"No potential for external funding.","Minimal or uncertain funding interest.","Some interest; conditional opportunities exist.","Strong likelihood of attracting external support.",{"$f":"IFERROR(MATCH(TARS_List3[[#This Row],[Item]],TARS_List3[[#This Row],[Rating 1]:[Rating 4]],0),0)","v":0},{"$f":"TARS_List3[[#This Row],[Score]]/4*100","v":0},null,7,2]
[null,null,null,null,null,null,null,null,30,2,"Communications and Digital Technologies","ICT Transformation, Global Partnerships and State-Owned Enterprises Governance","ICT Sector Transformation Programmes","1. Legal mandate and strategic alignment","1.1 Constitutional or legal basis",null,"No legal or constitutional obligation.","Weak or indirect legal justification.","Clear legal or legislative basis.","Directly mandated by the Constitution or national law.",{"$f":"IFERROR(MATCH(TARS_List3[[#This Row],[Item]],TARS_List3[[#This Row],[Rating 1]:[Rating 4]],0),0)","v":0},{"$f":"TARS_List3[[#This Row],[Score]]/4*100","v":0},null,12,3]
[null,null,null,null,null,null,null,null,30,2,"Communications and Digital Technologies","ICT Transformation, Global Partnerships and State-Owned Enterprises Governance","ICT Sector Transformation Programmes","1. Legal mandate and strategic alignment","1.2 Policy alignment",null,"Not aligned with any known policy or plan.","Minimal or outdated policy link.","Clearly aligned with current sector policy.","Directly linked to strategic national priorities.",{"$f":"IFERROR(MATCH(TARS_List3[[#This Row],[Item]],TARS_List3[[#This Row],[Rating 1]:[Rating 4]],0),0)","v":0},{"$f":"TARS_List3[[#This Row],[Score]]/4*100","v":0},null,4,1]
[null,null,null,null,null,null,null,null,30,2,"Communications and Digital Technologies","ICT Transformation, Global Partnerships and State-Owned Enterprises Governance","ICT Sector Transformation Programmes","1. Legal mandate and strategic alignment","1.3 Institutional role fit",null,"Outside the department’s mandate.","Weak fit or duplication with other institutions.","Within mandate but can be better positioned.","Strong and natural fit with department’s primary functions.",{"$f":"IFERROR(MATCH(TARS_List3[[#This Row],[Item]],TARS_List3[[#This Row],[Rating 1]:[Rating 4]],0),0)","v":0},{"$f":"TARS_List3[[#This Row],[Score]]/4*100","v":0},null,11,3]
[null,null,null,null,null,null,null,null,30,2,"Communications and Digital Technologies","ICT Transformation, Global Partnerships and State-Owned Enterprises Governance","ICT Sector Transformation Programmes","1. Legal mandate and strategic alignment","1.4 Functional duplication",null,"Duplicates existing functions in other entities.","Some overlaps; coordination is unclear.","Limited duplication; some synergy possible.","No duplication; unique and complementary.",{"$f":"IFERROR(MATCH(TARS_List3[[#This Row],[Item]],TARS_List3[[#This Row],[Rating 1]:[Rating 4]],0),0)","v":0},{"$f":"TARS_List3[[#This Row],[Score]]/4*100","v":0},null,12,3]
[null,null,null,null,null,null,null,null,30,2,"Communications and Digital Technologies","ICT Transformation, Global Partnerships and State-Owned Enterprises Governance","ICT Sector Transformation Programmes","2. Performance and effectiveness","2.1 Delivery of outputs",null,"Very low or no outputs delivered.","Inconsistent or poor delivery of outputs.","Mostly delivers expected outputs.","Delivers outputs efficiently and consistently.",{"$f":"IFERROR(MATCH(TARS_List3[[#This Row],[Item]],TARS_List3[[#This Row],[Rating 1]:[Rating 4]],0),0)","v":0},{"$f":"TARS_List3[[#This Row],[Score]]/4*100","v":0},null,11,3]
[null,null,null,null,null,null,null,null,30,2,"Communications and Digital Technologies","ICT Transformation, Global Partnerships and State-Owned Enterprises Governance","ICT Sector Transformation Programmes","2. Performance and effectiveness","2.2 Achievement of outcomes",null,"No evidence of outcome achievement.","Minimal or indirect contribution to outcomes.","Some contribution; outcome indicators present.","Strong evidence of achieving targeted outcomes.",{"$f":"IFERROR(MATCH(TARS_List3[[#This Row],[Item]],TARS_List3[[#This Row],[Rating 1]:[Rating 4]],0),0)","v":0},{"$f":"TARS_List3[[#This Row],[Score]]/4*100","v":0},null,12,3]
[null,null,null,null,null,null,null,null,30,2,"Communications and Digital Technologies","ICT Transformation, Global Partnerships and State-Owned Enterprises Governance","ICT Sector Transformation Programmes","2. Performance and effectiveness","2.3 Responsiveness to need",null,"No identifiable or outdated need addressed.","Weak alignment to needs; limited relevance.","Aligned to sector needs; moderate relevance.","High relevance and responsiveness to urgent needs.",{"$f":"IFERROR(MATCH(TARS_List3[[#This Row],[Item]],TARS_List3[[#This Row],[Rating 1]:[Rating 4]],0),0)","v":0},{"$f":"TARS_List3[[#This Row],[Score]]/4*100","v":0},null,3,1]
[null,null,null,null,null,null,null,null,30,2,"Communications and Digital Technologies","ICT Transformation, Global Partnerships and State-Owned Enterprises Governance","ICT Sector Transformation Programmes","3. Efficiency and delivery model","3.1 Resource use efficiency",null,"Wasteful or inefficient use of resources.","Some inefficiencies and resource misallocation.","Reasonably efficient with manageable waste.","Highly efficient with optimal resource use.",{"$f":"IFERROR(MATCH(TARS_List3[[#This Row],[Item]],TARS_List3[[#This Row],[Rating 1]:[Rating 4]],0),0)","v":0},{"$f":"TARS_List3[[#This Row],[Score]]/4*100","v":0},null,14,4]
[null,null,null,null,null,null,null,null,30,2,"Communications and Digital Technologies","ICT Transformation, Global Partnerships and State-Owned Enterprises Governance","ICT Sector Transformation Programmes","3. Efficiency and delivery model","3.2 Staffing and administrative overheads",null,"Overheads far exceed acceptable levels.","High overheads; delivery impact is diluted.","Balanced overheads; room for improvement.","Lean and efficient administrative cost structure.",{"$f":"IFERROR(MATCH(TARS_List3[[#This Row],[Item]],TARS_List3[[#This Row],[Rating 1]:[Rating 4]],0),0)","v":0},{"$f":"TARS_List3[[#This Row],[Score]]/4*100","v":0},null,{"$f":"ROUND(RAND()*16,0)","v":9},{"$f":"IF(MROUND(X149,4)>4,MROUND(X149,4)/4,1)","v":2}]
[null,null,null,null,null,null,null,null,30,2,"Communications and Digital Technologies","ICT Transformation, Global Partnerships and State-Owned Enterprises Governance","ICT Sector Transformation Programmes","3. Efficiency and delivery model","3.3 Delivery model appropriateness",null,"Poorly suited delivery model; high risk.","Suboptimal model; lacks innovation or scale.","Reasonable model; can be improved.","Well-designed and fit-for-purpose delivery model.",{"$f":"IFERROR(MATCH(TARS_List3[[#This Row],[Item]],TARS_List3[[#This Row],[Rating 1]:[Rating 4]],0),0)","v":0},{"$f":"TARS_List3[[#This Row],[Score]]/4*100","v":0},null,11,3]
[null,null,null,null,null,null,null,null,30,2,"Communications and Digital Technologies","ICT Transformation, Global Partnerships and State-Owned Enterprises Governance","ICT Sector Transformation Programmes","3. Efficiency and delivery model","3.4 Cost per output",null,"Cost per output is excessive or unknown.","Higher than acceptable cost with inefficiencies.","Within range, some room for cost reduction.","Low cost per output; good value for money.",{"$f":"IFERROR(MATCH(TARS_List3[[#This Row],[Item]],TARS_List3[[#This Row],[Rating 1]:[Rating 4]],0),0)","v":0},{"$f":"TARS_List3[[#This Row],[Score]]/4*100","v":0},null,10,3]
[null,null,null,null,null,null,null,null,30,2,"Communications and Digital Technologies","ICT Transformation, Global Partnerships and State-Owned Enterprises Governance","ICT Sector Transformation Programmes","3. Efficiency and delivery model","3.5 Institutional capacity",null,"Major capacity gaps; delivery is severely hindered.","Limited capacity; delivery is inconsistent.","Adequate capacity with minor constraints.","Strong capacity; well-resourced and effectively managed.",{"$f":"IFERROR(MATCH(TARS_List3[[#This Row],[Item]],TARS_List3[[#This Row],[Rating 1]:[Rating 4]],0),0)","v":0},{"$f":"TARS_List3[[#This Row],[Score]]/4*100","v":0},null,11,3]
[null,null,null,null,null,null,null,null,30,2,"Communications and Digital Technologies","ICT Transformation, Global Partnerships and State-Owned Enterprises Governance","ICT Sector Transformation Programmes","4. Financial sustainability and external leverage","4.1 Budget discipline",null,"Frequent overspending or misuse of funds.","Irregularities in budget execution.","Generally within budget; few adjustments.","Strong budget discipline and forecasting.",{"$f":"IFERROR(MATCH(TARS_List3[[#This Row],[Item]],TARS_List3[[#This Row],[Rating 1]:[Rating 4]],0),0)","v":0},{"$f":"TARS_List3[[#This Row],[Score]]/4*100","v":0},null,7,2]
[null,null,null,null,null,null,null,null,30,2,"Communications and Digital Technologies","ICT Transformation, Global Partnerships and State-Owned Enterprises Governance","ICT Sector Transformation Programmes","4. Financial sustainability and external leverage","4.2 Medium-term affordability",null,"Not affordable; creates unfunded pressures.","Likely to become unsustainable.","Mostly affordable with some risk.","Fully affordable and fiscally sound.",{"$f":"IFERROR(MATCH(TARS_List3[[#This Row],[Item]],TARS_List3[[#This Row],[Rating 1]:[Rating 4]],0),0)","v":0},{"$f":"TARS_List3[[#This Row],[Score]]/4*100","v":0},null,3,1]
[null,null,null,null,null,null,null,null,30,2,"Communications and Digital Technologies","ICT Transformation, Global Partnerships and State-Owned Enterprises Governance","ICT Sector Transformation Programmes","4. Financial sustainability and external leverage","4.3 External funding potential",null,"No potential for external funding.","Minimal or uncertain funding interest.","Some interest; conditional opportunities exist.","Strong likelihood of attracting external support.",{"$f":"IFERROR(MATCH(TARS_List3[[#This Row],[Item]],TARS_List3[[#This Row],[Rating 1]:[Rating 4]],0),0)","v":0},{"$f":"TARS_List3[[#This Row],[Score]]/4*100","v":0},null,11,3]
[null,null,null,null,null,null,null,null,30,3,"Communications and Digital Technologies","Media and Content","Programme Management for Media and Content","1. Legal mandate and strategic alignment","1.1 Constitutional or legal basis",null,"No legal or constitutional obligation.","Weak or indirect legal justification.","Clear legal or legislative basis.","Directly mandated by the Constitution or national law.",{"$f":"IFERROR(MATCH(TARS_List3[[#This Row],[Item]],TARS_List3[[#This Row],[Rating 1]:[Rating 4]],0),0)","v":0},{"$f":"TARS_List3[[#This Row],[Score]]/4*100","v":0},null,9,2]
[null,null,null,null,null,null,null,null,30,3,"Communications and Digital Technologies","Media and Content","Programme Management for Media and Content","1. Legal mandate and strategic alignment","1.2 Policy alignment",null,"Not aligned with any known policy or plan.","Minimal or outdated policy link.","Clearly aligned with current sector policy.","Directly linked to strategic national priorities.",{"$f":"IFERROR(MATCH(TARS_List3[[#This Row],[Item]],TARS_List3[[#This Row],[Rating 1]:[Rating 4]],0),0)","v":0},{"$f":"TARS_List3[[#This Row],[Score]]/4*100","v":0},null,4,1]
[null,null,null,null,null,null,null,null,30,3,"Communications and Digital Technologies","Media and Content","Programme Management for Media and Content","1. Legal mandate and strategic alignment","1.3 Institutional role fit",null,"Outside the department’s mandate.","Weak fit or duplication with other institutions.","Within mandate but can be better positioned.","Strong and natural fit with department’s primary functions.",{"$f":"IFERROR(MATCH(TARS_List3[[#This Row],[Item]],TARS_List3[[#This Row],[Rating 1]:[Rating 4]],0),0)","v":0},{"$f":"TARS_List3[[#This Row],[Score]]/4*100","v":0},null,6,2]
[null,null,null,null,null,null,null,null,30,3,"Communications and Digital Technologies","Media and Content","Programme Management for Media and Content","1. Legal mandate and strategic alignment","1.4 Functional duplication",null,"Duplicates existing functions in other entities.","Some overlaps; coordination is unclear.","Limited duplication; some synergy possible.","No duplication; unique and complementary.",{"$f":"IFERROR(MATCH(TARS_List3[[#This Row],[Item]],TARS_List3[[#This Row],[Rating 1]:[Rating 4]],0),0)","v":0},{"$f":"TARS_List3[[#This Row],[Score]]/4*100","v":0},null,1,1]
[null,null,null,null,null,null,null,null,30,3,"Communications and Digital Technologies","Media and Content","Programme Management for Media and Content","2. Performance and effectiveness","2.1 Delivery of outputs",null,"Very low or no outputs delivered.","Inconsistent or poor delivery of outputs.","Mostly delivers expected outputs.","Delivers outputs efficiently and consistently.",{"$f":"IFERROR(MATCH(TARS_List3[[#This Row],[Item]],TARS_List3[[#This Row],[Rating 1]:[Rating 4]],0),0)","v":0},{"$f":"TARS_List3[[#This Row],[Score]]/4*100","v":0},null,12,3]
[null,null,null,null,null,null,null,null,30,3,"Communications and Digital Technologies","Media and Content","Programme Management for Media and Content","2. Performance and effectiveness","2.2 Achievement of outcomes",null,"No evidence of outcome achievement.","Minimal or indirect contribution to outcomes.","Some contribution; outcome indicators present.","Strong evidence of achieving targeted outcomes.",{"$f":"IFERROR(MATCH(TARS_List3[[#This Row],[Item]],TARS_List3[[#This Row],[Rating 1]:[Rating 4]],0),0)","v":0},{"$f":"TARS_List3[[#This Row],[Score]]/4*100","v":0},null,1,1]
[null,null,null,null,null,null,null,null,30,3,"Communications and Digital Technologies","Media and Content","Programme Management for Media and Content","2. Performance and effectiveness","2.3 Responsiveness to need",null,"No identifiable or outdated need addressed.","Weak alignment to needs; limited relevance.","Aligned to sector needs; moderate relevance.","High relevance and responsiveness to urgent needs.",{"$f":"IFERROR(MATCH(TARS_List3[[#This Row],[Item]],TARS_List3[[#This Row],[Rating 1]:[Rating 4]],0),0)","v":0},{"$f":"TARS_List3[[#This Row],[Score]]/4*100","v":0},null,10,3]
[null,null,null,null,null,null,null,null,30,3,"Communications and Digital Technologies","Media and Content","Programme Management for Media and Content","3. Efficiency and delivery model","3.1 Resource use efficiency",null,"Wasteful or inefficient use of resources.","Some inefficiencies and resource misallocation.","Reasonably efficient with manageable waste.","Highly efficient with optimal resource use.",{"$f":"IFERROR(MATCH(TARS_List3[[#This Row],[Item]],TARS_List3[[#This Row],[Rating 1]:[Rating 4]],0),0)","v":0},{"$f":"TARS_List3[[#This Row],[Score]]/4*100","v":0},null,8,2]
[null,null,null,null,null,null,null,null,30,3,"Communications and Digital Technologies","Media and Content","Programme Management for Media and Content","3. Efficiency and delivery model","3.2 Staffing and administrative overheads",null,"Overheads far exceed acceptable levels.","High overheads; delivery impact is diluted.","Balanced overheads; room for improvement.","Lean and efficient administrative cost structure.",{"$f":"IFERROR(MATCH(TARS_List3[[#This Row],[Item]],TARS_List3[[#This Row],[Rating 1]:[Rating 4]],0),0)","v":0},{"$f":"TARS_List3[[#This Row],[Score]]/4*100","v":0},null,14,4]
[null,null,null,null,null,null,null,null,30,3,"Communications and Digital Technologies","Media and Content","Programme Management for Media and Content","3. Efficiency and delivery model","3.3 Delivery model appropriateness",null,"Poorly suited delivery model; high risk.","Suboptimal model; lacks innovation or scale.","Reasonable model; can be improved.","Well-designed and fit-for-purpose delivery model.",{"$f":"IFERROR(MATCH(TARS_List3[[#This Row],[Item]],TARS_List3[[#This Row],[Rating 1]:[Rating 4]],0),0)","v":0},{"$f":"TARS_List3[[#This Row],[Score]]/4*100","v":0},null,14,4]
[null,null,null,null,null,null,null,null,30,3,"Communications and Digital Technologies","Media and Content","Programme Management for Media and Content","3. Efficiency and delivery model","3.4 Cost per output",null,"Cost per output is excessive or unknown.","Higher than acceptable cost with inefficiencies.","Within range, some room for cost reduction.","Low cost per output; good value for money.",{"$f":"IFERROR(MATCH(TARS_List3[[#This Row],[Item]],TARS_List3[[#This Row],[Rating 1]:[Rating 4]],0),0)","v":0},{"$f":"TARS_List3[[#This Row],[Score]]/4*100","v":0},null,2,1]
[null,null,null,null,null,null,null,null,30,3,"Communications and Digital Technologies","Media and Content","Programme Management for Media and Content","3. Efficiency and delivery model","3.5 Institutional capacity",null,"Major capacity gaps; delivery is severely hindered.","Limited capacity; delivery is inconsistent.","Adequate capacity with minor constraints.","Strong capacity; well-resourced and effectively managed.",{"$f":"IFERROR(MATCH(TARS_List3[[#This Row],[Item]],TARS_List3[[#This Row],[Rating 1]:[Rating 4]],0),0)","v":0},{"$f":"TARS_List3[[#This Row],[Score]]/4*100","v":0},null,5,1]
[null,null,null,null,null,null,null,null,30,3,"Communications and Digital Technologies","Media and Content","Programme Management for Media and Content","4. Financial sustainability and external leverage","4.1 Budget discipline",null,"Frequent overspending or misuse of funds.","Irregularities in budget execution.","Generally within budget; few adjustments.","Strong budget discipline and forecasting.",{"$f":"IFERROR(MATCH(TARS_List3[[#This Row],[Item]],TARS_List3[[#This Row],[Rating 1]:[Rating 4]],0),0)","v":0},{"$f":"TARS_List3[[#This Row],[Score]]/4*100","v":0},null,4,1]
[null,null,null,null,null,null,null,null,30,3,"Communications and Digital Technologies","Media and Content","Programme Management for Media and Content","4. Financial sustainability and external leverage","4.2 Medium-term affordability",null,"Not affordable; creates unfunded pressures.","Likely to become unsustainable.","Mostly affordable with some risk.","Fully affordable and fiscally sound.",{"$f":"IFERROR(MATCH(TARS_List3[[#This Row],[Item]],TARS_List3[[#This Row],[Rating 1]:[Rating 4]],0),0)","v":0},{"$f":"TARS_List3[[#This Row],[Score]]/4*100","v":0},null,5,1]
[null,null,null,null,null,null,null,null,30,3,"Communications and Digital Technologies","Media and Content","Programme Management for Media and Content","4. Financial sustainability and external leverage","4.3 External funding potential",null,"No potential for external funding.","Minimal or uncertain funding interest.","Some interest; conditional opportunities exist.","Strong likelihood of attracting external support.",{"$f":"IFERROR(MATCH(TARS_List3[[#This Row],[Item]],TARS_List3[[#This Row],[Rating 1]:[Rating 4]],0),0)","v":0},{"$f":"TARS_List3[[#This Row],[Score]]/4*100","v":0},null,14,4]
[null,null,null,null,null,null,null,null,30,3,"Communications and Digital Technologies","Media and Content","Content Classification and Online Safety","1. Legal mandate and strategic alignment","1.1 Constitutional or legal basis",null,"No legal or constitutional obligation.","Weak or indirect legal justification.","Clear legal or legislative basis.","Directly mandated by the Constitution or national law.",{"$f":"IFERROR(MATCH(TARS_List3[[#This Row],[Item]],TARS_List3[[#This Row],[Rating 1]:[Rating 4]],0),0)","v":0},{"$f":"TARS_List3[[#This Row],[Score]]/4*100","v":0},null,11,3]
[null,null,null,null,null,null,null,null,30,3,"Communications and Digital Technologies","Media and Content","Content Classification and Online Safety","1. Legal mandate and strategic alignment","1.2 Policy alignment",null,"Not aligned with any known policy or plan.","Minimal or outdated policy link.","Clearly aligned with current sector policy.","Directly linked to strategic national priorities.",{"$f":"IFERROR(MATCH(TARS_List3[[#This Row],[Item]],TARS_List3[[#This Row],[Rating 1]:[Rating 4]],0),0)","v":0},{"$f":"TARS_List3[[#This Row],[Score]]/4*100","v":0},null,7,2]
[null,null,null,null,null,null,null,null,30,3,"Communications and Digital Technologies","Media and Content","Content Classification and Online Safety","1. Legal mandate and strategic alignment","1.3 Institutional role fit",null,"Outside the department’s mandate.","Weak fit or duplication with other institutions.","Within mandate but can be better positioned.","Strong and natural fit with department’s primary functions.",{"$f":"IFERROR(MATCH(TARS_List3[[#This Row],[Item]],TARS_List3[[#This Row],[Rating 1]:[Rating 4]],0),0)","v":0},{"$f":"TARS_List3[[#This Row],[Score]]/4*100","v":0},null,13,3]
[null,null,null,null,null,null,null,null,30,3,"Communications and Digital Technologies","Media and Content","Content Classification and Online Safety","1. Legal mandate and strategic alignment","1.4 Functional duplication",null,"Duplicates existing functions in other entities.","Some overlaps; coordination is unclear.","Limited duplication; some synergy possible.","No duplication; unique and complementary.",{"$f":"IFERROR(MATCH(TARS_List3[[#This Row],[Item]],TARS_List3[[#This Row],[Rating 1]:[Rating 4]],0),0)","v":0},{"$f":"TARS_List3[[#This Row],[Score]]/4*100","v":0},null,14,4]
[null,null,null,null,null,null,null,null,30,3,"Communications and Digital Technologies","Media and Content","Content Classification and Online Safety","2. Performance and effectiveness","2.1 Delivery of outputs",null,"Very low or no outputs delivered.","Inconsistent or poor delivery of outputs.","Mostly delivers expected outputs.","Delivers outputs efficiently and consistently.",{"$f":"IFERROR(MATCH(TARS_List3[[#This Row],[Item]],TARS_List3[[#This Row],[Rating 1]:[Rating 4]],0),0)","v":0},{"$f":"TARS_List3[[#This Row],[Score]]/4*100","v":0},null,8,2]
[null,null,null,null,null,null,null,null,30,3,"Communications and Digital Technologies","Media and Content","Content Classification and Online Safety","2. Performance and effectiveness","2.2 Achievement of outcomes",null,"No evidence of outcome achievement.","Minimal or indirect contribution to outcomes.","Some contribution; outcome indicators present.","Strong evidence of achieving targeted outcomes.",{"$f":"IFERROR(MATCH(TARS_List3[[#This Row],[Item]],TARS_List3[[#This Row],[Rating 1]:[Rating 4]],0),0)","v":0},{"$f":"TARS_List3[[#This Row],[Score]]/4*100","v":0},null,3,1]
[null,null,null,null,null,null,null,null,30,3,"Communications and Digital Technologies","Media and Content","Content Classification and Online Safety","2. Performance and effectiveness","2.3 Responsiveness to need",null,"No identifiable or outdated need addressed.","Weak alignment to needs; limited relevance.","Aligned to sector needs; moderate relevance.","High relevance and responsiveness to urgent needs.",{"$f":"IFERROR(MATCH(TARS_List3[[#This Row],[Item]],TARS_List3[[#This Row],[Rating 1]:[Rating 4]],0),0)","v":0},{"$f":"TARS_List3[[#This Row],[Score]]/4*100","v":0},null,12,3]
[null,null,null,null,null,null,null,null,30,3,"Communications and Digital Technologies","Media and Content","Content Classification and Online Safety","3. Efficiency and delivery model","3.1 Resource use efficiency",null,"Wasteful or inefficient use of resources.","Some inefficiencies and resource misallocation.","Reasonably efficient with manageable waste.","Highly efficient with optimal resource use.",{"$f":"IFERROR(MATCH(TARS_List3[[#This Row],[Item]],TARS_List3[[#This Row],[Rating 1]:[Rating 4]],0),0)","v":0},{"$f":"TARS_List3[[#This Row],[Score]]/4*100","v":0},null,11,3]
[null,null,null,null,null,null,null,null,30,3,"Communications and Digital Technologies","Media and Content","Content Classification and Online Safety","3. Efficiency and delivery model","3.2 Staffing and administrative overheads",null,"Overheads far exceed acceptable levels.","High overheads; delivery impact is diluted.","Balanced overheads; room for improvement.","Lean and efficient administrative cost structure.",{"$f":"IFERROR(MATCH(TARS_List3[[#This Row],[Item]],TARS_List3[[#This Row],[Rating 1]:[Rating 4]],0),0)","v":0},{"$f":"TARS_List3[[#This Row],[Score]]/4*100","v":0},null,14,4]
[null,null,null,null,null,null,null,null,30,3,"Communications and Digital Technologies","Media and Content","Content Classification and Online Safety","3. Efficiency and delivery model","3.3 Delivery model appropriateness",null,"Poorly suited delivery model; high risk.","Suboptimal model; lacks innovation or scale.","Reasonable model; can be improved.","Well-designed and fit-for-purpose delivery model.",{"$f":"IFERROR(MATCH(TARS_List3[[#This Row],[Item]],TARS_List3[[#This Row],[Rating 1]:[Rating 4]],0),0)","v":0},{"$f":"TARS_List3[[#This Row],[Score]]/4*100","v":0},null,3,1]
[null,null,null,null,null,null,null,null,30,3,"Communications and Digital Technologies","Media and Content","Content Classification and Online Safety","3. Efficiency and delivery model","3.4 Cost per output",null,"Cost per output is excessive or unknown.","Higher than acceptable cost with inefficiencies.","Within range, some room for cost reduction.","Low cost per output; good value for money.",{"$f":"IFERROR(MATCH(TARS_List3[[#This Row],[Item]],TARS_List3[[#This Row],[Rating 1]:[Rating 4]],0),0)","v":0},{"$f":"TARS_List3[[#This Row],[Score]]/4*100","v":0},null,10,3]
[null,null,null,null,null,null,null,null,30,3,"Communications and Digital Technologies","Media and Content","Content Classification and Online Safety","3. Efficiency and delivery model","3.5 Institutional capacity",null,"Major capacity gaps; delivery is severely hindered.","Limited capacity; delivery is inconsistent.","Adequate capacity with minor constraints.","Strong capacity; well-resourced and effectively managed.",{"$f":"IFERROR(MATCH(TARS_List3[[#This Row],[Item]],TARS_List3[[#This Row],[Rating 1]:[Rating 4]],0),0)","v":0},{"$f":"TARS_List3[[#This Row],[Score]]/4*100","v":0},null,9,2]
[null,null,null,null,null,null,null,null,30,3,"Communications and Digital Technologies","Media and Content","Content Classification and Online Safety","4. Financial sustainability and external leverage","4.1 Budget discipline",null,"Frequent overspending or misuse of funds.","Irregularities in budget execution.","Generally within budget; few adjustments.","Strong budget discipline and forecasting.",{"$f":"IFERROR(MATCH(TARS_List3[[#This Row],[Item]],TARS_List3[[#This Row],[Rating 1]:[Rating 4]],0),0)","v":0},{"$f":"TARS_List3[[#This Row],[Score]]/4*100","v":0},null,12,3]
[null,null,null,null,null,null,null,null,30,3,"Communications and Digital Technologies","Media and Content","Content Classification and Online Safety","4. Financial sustainability and external leverage","4.2 Medium-term affordability",null,"Not affordable; creates unfunded pressures.","Likely to become unsustainable.","Mostly affordable with some risk.","Fully affordable and fiscally sound.",{"$f":"IFERROR(MATCH(TARS_List3[[#This Row],[Item]],TARS_List3[[#This Row],[Rating 1]:[Rating 4]],0),0)","v":0},{"$f":"TARS_List3[[#This Row],[Score]]/4*100","v":0},null,10,3]
[null,null,null,null,null,null,null,null,30,3,"Communications and Digital Technologies","Media and Content","Content Classification and Online Safety","4. Financial sustainability and external leverage","4.3 External funding potential",null,"No potential for external funding.","Minimal or uncertain funding interest.","Some interest; conditional opportunities exist.","Strong likelihood of attracting external support.",{"$f":"IFERROR(MATCH(TARS_List3[[#This Row],[Item]],TARS_List3[[#This Row],[Rating 1]:[Rating 4]],0),0)","v":0},{"$f":"TARS_List3[[#This Row],[Score]]/4*100","v":0},null,9,2]
[null,null,null,null,null,null,null,null,30,3,"Communications and Digital Technologies","Media and Content","Public and Community Media Services","1. Legal mandate and strategic alignment","1.1 Constitutional or legal basis",null,"No legal or constitutional obligation.","Weak or indirect legal justification.","Clear legal or legislative basis.","Directly mandated by the Constitution or national law.",{"$f":"IFERROR(MATCH(TARS_List3[[#This Row],[Item]],TARS_List3[[#This Row],[Rating 1]:[Rating 4]],0),0)","v":0},{"$f":"TARS_List3[[#This Row],[Score]]/4*100","v":0},null,14,4]
[null,null,null,null,null,null,null,null,30,3,"Communications and Digital Technologies","Media and Content","Public and Community Media Services","1. Legal mandate and strategic alignment","1.2 Policy alignment",null,"Not aligned with any known policy or plan.","Minimal or outdated policy link.","Clearly aligned with current sector policy.","Directly linked to strategic national priorities.",{"$f":"IFERROR(MATCH(TARS_List3[[#This Row],[Item]],TARS_List3[[#This Row],[Rating 1]:[Rating 4]],0),0)","v":0},{"$f":"TARS_List3[[#This Row],[Score]]/4*100","v":0},null,7,2]
[null,null,null,null,null,null,null,null,30,3,"Communications and Digital Technologies","Media and Content","Public and Community Media Services","1. Legal mandate and strategic alignment","1.3 Institutional role fit",null,"Outside the department’s mandate.","Weak fit or duplication with other institutions.","Within mandate but can be better positioned.","Strong and natural fit with department’s primary functions.",{"$f":"IFERROR(MATCH(TARS_List3[[#This Row],[Item]],TARS_List3[[#This Row],[Rating 1]:[Rating 4]],0),0)","v":0},{"$f":"TARS_List3[[#This Row],[Score]]/4*100","v":0},null,3,1]
[null,null,null,null,null,null,null,null,30,3,"Communications and Digital Technologies","Media and Content","Public and Community Media Services","1. Legal mandate and strategic alignment","1.4 Functional duplication",null,"Duplicates existing functions in other entities.","Some overlaps; coordination is unclear.","Limited duplication; some synergy possible.","No duplication; unique and complementary.",{"$f":"IFERROR(MATCH(TARS_List3[[#This Row],[Item]],TARS_List3[[#This Row],[Rating 1]:[Rating 4]],0),0)","v":0},{"$f":"TARS_List3[[#This Row],[Score]]/4*100","v":0},null,12,3]
[null,null,null,null,null,null,null,null,30,3,"Communications and Digital Technologies","Media and Content","Public and Community Media Services","2. Performance and effectiveness","2.1 Delivery of outputs",null,"Very low or no outputs delivered.","Inconsistent or poor delivery of outputs.","Mostly delivers expected outputs.","Delivers outputs efficiently and consistently.",{"$f":"IFERROR(MATCH(TARS_List3[[#This Row],[Item]],TARS_List3[[#This Row],[Rating 1]:[Rating 4]],0),0)","v":0},{"$f":"TARS_List3[[#This Row],[Score]]/4*100","v":0},null,8,2]
[null,null,null,null,null,null,null,null,30,3,"Communications and Digital Technologies","Media and Content","Public and Community Media Services","2. Performance and effectiveness","2.2 Achievement of outcomes",null,"No evidence of outcome achievement.","Minimal or indirect contribution to outcomes.","Some contribution; outcome indicators present.","Strong evidence of achieving targeted outcomes.",{"$f":"IFERROR(MATCH(TARS_List3[[#This Row],[Item]],TARS_List3[[#This Row],[Rating 1]:[Rating 4]],0),0)","v":0},{"$f":"TARS_List3[[#This Row],[Score]]/4*100","v":0},null,8,2]
[null,null,null,null,null,null,null,null,30,3,"Communications and Digital Technologies","Media and Content","Public and Community Media Services","2. Performance and effectiveness","2.3 Responsiveness to need",null,"No identifiable or outdated need addressed.","Weak alignment to needs; limited relevance.","Aligned to sector needs; moderate relevance.","High relevance and responsiveness to urgent needs.",{"$f":"IFERROR(MATCH(TARS_List3[[#This Row],[Item]],TARS_List3[[#This Row],[Rating 1]:[Rating 4]],0),0)","v":0},{"$f":"TARS_List3[[#This Row],[Score]]/4*100","v":0},null,15,4]
[null,null,null,null,null,null,null,null,30,3,"Communications and Digital Technologies","Media and Content","Public and Community Media Services","3. Efficiency and delivery model","3.1 Resource use efficiency",null,"Wasteful or inefficient use of resources.","Some inefficiencies and resource misallocation.","Reasonably efficient with manageable waste.","Highly efficient with optimal resource use.",{"$f":"IFERROR(MATCH(TARS_List3[[#This Row],[Item]],TARS_List3[[#This Row],[Rating 1]:[Rating 4]],0),0)","v":0},{"$f":"TARS_List3[[#This Row],[Score]]/4*100","v":0},null,4,1]
[null,null,null,null,null,null,null,null,30,3,"Communications and Digital Technologies","Media and Content","Public and Community Media Services","3. Efficiency and delivery model","3.2 Staffing and administrative overheads",null,"Overheads far exceed acceptable levels.","High overheads; delivery impact is diluted.","Balanced overheads; room for improvement.","Lean and efficient administrative cost structure.",{"$f":"IFERROR(MATCH(TARS_List3[[#This Row],[Item]],TARS_List3[[#This Row],[Rating 1]:[Rating 4]],0),0)","v":0},{"$f":"TARS_List3[[#This Row],[Score]]/4*100","v":0},null,8,2]
[null,null,null,null,null,null,null,null,30,3,"Communications and Digital Technologies","Media and Content","Public and Community Media Services","3. Efficiency and delivery model","3.3 Delivery model appropriateness",null,"Poorly suited delivery model; high risk.","Suboptimal model; lacks innovation or scale.","Reasonable model; can be improved.","Well-designed and fit-for-purpose delivery model.",{"$f":"IFERROR(MATCH(TARS_List3[[#This Row],[Item]],TARS_List3[[#This Row],[Rating 1]:[Rating 4]],0),0)","v":0},{"$f":"TARS_List3[[#This Row],[Score]]/4*100","v":0},null,10,3]
[null,null,null,null,null,null,null,null,30,3,"Communications and Digital Technologies","Media and Content","Public and Community Media Services","3. Efficiency and delivery model","3.4 Cost per output",null,"Cost per output is excessive or unknown.","Higher than acceptable cost with inefficiencies.","Within range, some room for cost reduction.","Low cost per output; good value for money.",{"$f":"IFERROR(MATCH(TARS_List3[[#This Row],[Item]],TARS_List3[[#This Row],[Rating 1]:[Rating 4]],0),0)","v":0},{"$f":"TARS_List3[[#This Row],[Score]]/4*100","v":0},null,7,2]
[null,null,null,null,null,null,null,null,30,3,"Communications and Digital Technologies","Media and Content","Public and Community Media Services","3. Efficiency and delivery model","3.5 Institutional capacity",null,"Major capacity gaps; delivery is severely hindered.","Limited capacity; delivery is inconsistent.","Adequate capacity with minor constraints.","Strong capacity; well-resourced and effectively managed.",{"$f":"IFERROR(MATCH(TARS_List3[[#This Row],[Item]],TARS_List3[[#This Row],[Rating 1]:[Rating 4]],0),0)","v":0},{"$f":"TARS_List3[[#This Row],[Score]]/4*100","v":0},null,13,3]
[null,null,null,null,null,null,null,null,30,3,"Communications and Digital Technologies","Media and Content","Public and Community Media Services","4. Financial sustainability and external leverage","4.1 Budget discipline",null,"Frequent overspending or misuse of funds.","Irregularities in budget execution.","Generally within budget; few adjustments.","Strong budget discipline and forecasting.",{"$f":"IFERROR(MATCH(TARS_List3[[#This Row],[Item]],TARS_List3[[#This Row],[Rating 1]:[Rating 4]],0),0)","v":0},{"$f":"TARS_List3[[#This Row],[Score]]/4*100","v":0},null,10,3]
[null,null,null,null,null,null,null,null,30,3,"Communications and Digital Technologies","Media and Content","Public and Community Media Services","4. Financial sustainability and external leverage","4.2 Medium-term affordability",null,"Not affordable; creates unfunded pressures.","Likely to become unsustainable.","Mostly affordable with some risk.","Fully affordable and fiscally sound.",{"$f":"IFERROR(MATCH(TARS_List3[[#This Row],[Item]],TARS_List3[[#This Row],[Rating 1]:[Rating 4]],0),0)","v":0},{"$f":"TARS_List3[[#This Row],[Score]]/4*100","v":0},null,10,3]
[null,null,null,null,null,null,null,null,30,3,"Communications and Digital Technologies","Media and Content","Public and Community Media Services","4. Financial sustainability and external leverage","4.3 External funding potential",null,"No potential for external funding.","Minimal or uncertain funding interest.","Some interest; conditional opportunities exist.","Strong likelihood of attracting external support.",{"$f":"IFERROR(MATCH(TARS_List3[[#This Row],[Item]],TARS_List3[[#This Row],[Rating 1]:[Rating 4]],0),0)","v":0},{"$f":"TARS_List3[[#This Row],[Score]]/4*100","v":0},null,5,1]
[null,null,null,null,null,null,null,null,30,3,"Communications and Digital Technologies","Media and Content","Audio-Visual and Digital Media Industry Support and Services","1. Legal mandate and strategic alignment","1.1 Constitutional or legal basis",null,"No legal or constitutional obligation.","Weak or indirect legal justification.","Clear legal or legislative basis.","Directly mandated by the Constitution or national law.",{"$f":"IFERROR(MATCH(TARS_List3[[#This Row],[Item]],TARS_List3[[#This Row],[Rating 1]:[Rating 4]],0),0)","v":0},{"$f":"TARS_List3[[#This Row],[Score]]/4*100","v":0},null,11,3]
[null,null,null,null,null,null,null,null,30,3,"Communications and Digital Technologies","Media and Content","Audio-Visual and Digital Media Industry Support and Services","1. Legal mandate and strategic alignment","1.2 Policy alignment",null,"Not aligned with any known policy or plan.","Minimal or outdated policy link.","Clearly aligned with current sector policy.","Directly linked to strategic national priorities.",{"$f":"IFERROR(MATCH(TARS_List3[[#This Row],[Item]],TARS_List3[[#This Row],[Rating 1]:[Rating 4]],0),0)","v":0},{"$f":"TARS_List3[[#This Row],[Score]]/4*100","v":0},null,10,3]
[null,null,null,null,null,null,null,null,30,3,"Communications and Digital Technologies","Media and Content","Audio-Visual and Digital Media Industry Support and Services","1. Legal mandate and strategic alignment","1.3 Institutional role fit",null,"Outside the department’s mandate.","Weak fit or duplication with other institutions.","Within mandate but can be better positioned.","Strong and natural fit with department’s primary functions.",{"$f":"IFERROR(MATCH(TARS_List3[[#This Row],[Item]],TARS_List3[[#This Row],[Rating 1]:[Rating 4]],0),0)","v":0},{"$f":"TARS_List3[[#This Row],[Score]]/4*100","v":0},null,15,4]
[null,null,null,null,null,null,null,null,30,3,"Communications and Digital Technologies","Media and Content","Audio-Visual and Digital Media Industry Support and Services","1. Legal mandate and strategic alignment","1.4 Functional duplication",null,"Duplicates existing functions in other entities.","Some overlaps; coordination is unclear.","Limited duplication; some synergy possible.","No duplication; unique and complementary.",{"$f":"IFERROR(MATCH(TARS_List3[[#This Row],[Item]],TARS_List3[[#This Row],[Rating 1]:[Rating 4]],0),0)","v":0},{"$f":"TARS_List3[[#This Row],[Score]]/4*100","v":0},null,15,4]
[null,null,null,null,null,null,null,null,30,3,"Communications and Digital Technologies","Media and Content","Audio-Visual and Digital Media Industry Support and Services","2. Performance and effectiveness","2.1 Delivery of outputs",null,"Very low or no outputs delivered.","Inconsistent or poor delivery of outputs.","Mostly delivers expected outputs.","Delivers outputs efficiently and consistently.",{"$f":"IFERROR(MATCH(TARS_List3[[#This Row],[Item]],TARS_List3[[#This Row],[Rating 1]:[Rating 4]],0),0)","v":0},{"$f":"TARS_List3[[#This Row],[Score]]/4*100","v":0},null,1,1]
[null,null,null,null,null,null,null,null,30,3,"Communications and Digital Technologies","Media and Content","Audio-Visual and Digital Media Industry Support and Services","2. Performance and effectiveness","2.2 Achievement of outcomes",null,"No evidence of outcome achievement.","Minimal or indirect contribution to outcomes.","Some contribution; outcome indicators present.","Strong evidence of achieving targeted outcomes.",{"$f":"IFERROR(MATCH(TARS_List3[[#This Row],[Item]],TARS_List3[[#This Row],[Rating 1]:[Rating 4]],0),0)","v":0},{"$f":"TARS_List3[[#This Row],[Score]]/4*100","v":0},null,12,3]
[null,null,null,null,null,null,null,null,30,3,"Communications and Digital Technologies","Media and Content","Audio-Visual and Digital Media Industry Support and Services","2. Performance and effectiveness","2.3 Responsiveness to need",null,"No identifiable or outdated need addressed.","Weak alignment to needs; limited relevance.","Aligned to sector needs; moderate relevance.","High relevance and responsiveness to urgent needs.",{"$f":"IFERROR(MATCH(TARS_List3[[#This Row],[Item]],TARS_List3[[#This Row],[Rating 1]:[Rating 4]],0),0)","v":0},{"$f":"TARS_List3[[#This Row],[Score]]/4*100","v":0},null,14,4]
[null,null,null,null,null,null,null,null,30,3,"Communications and Digital Technologies","Media and Content","Audio-Visual and Digital Media Industry Support and Services","3. Efficiency and delivery model","3.1 Resource use efficiency",null,"Wasteful or inefficient use of resources.","Some inefficiencies and resource misallocation.","Reasonably efficient with manageable waste.","Highly efficient with optimal resource use.",{"$f":"IFERROR(MATCH(TARS_List3[[#This Row],[Item]],TARS_List3[[#This Row],[Rating 1]:[Rating 4]],0),0)","v":0},{"$f":"TARS_List3[[#This Row],[Score]]/4*100","v":0},null,13,3]
[null,null,null,null,null,null,null,null,30,3,"Communications and Digital Technologies","Media and Content","Audio-Visual and Digital Media Industry Support and Services","3. Efficiency and delivery model","3.2 Staffing and administrative overheads",null,"Overheads far exceed acceptable levels.","High overheads; delivery impact is diluted.","Balanced overheads; room for improvement.","Lean and efficient administrative cost structure.",{"$f":"IFERROR(MATCH(TARS_List3[[#This Row],[Item]],TARS_List3[[#This Row],[Rating 1]:[Rating 4]],0),0)","v":0},{"$f":"TARS_List3[[#This Row],[Score]]/4*100","v":0},null,4,1]
[null,null,null,null,null,null,null,null,30,3,"Communications and Digital Technologies","Media and Content","Audio-Visual and Digital Media Industry Support and Services","3. Efficiency and delivery model","3.3 Delivery model appropriateness",null,"Poorly suited delivery model; high risk.","Suboptimal model; lacks innovation or scale.","Reasonable model; can be improved.","Well-designed and fit-for-purpose delivery model.",{"$f":"IFERROR(MATCH(TARS_List3[[#This Row],[Item]],TARS_List3[[#This Row],[Rating 1]:[Rating 4]],0),0)","v":0},{"$f":"TARS_List3[[#This Row],[Score]]/4*100","v":0},null,8,2]
[null,null,null,null,null,null,null,null,30,3,"Communications and Digital Technologies","Media and Content","Audio-Visual and Digital Media Industry Support and Services","3. Efficiency and delivery model","3.4 Cost per output",null,"Cost per output is excessive or unknown.","Higher than acceptable cost with inefficiencies.","Within range, some room for cost reduction.","Low cost per output; good value for money.",{"$f":"IFERROR(MATCH(TARS_List3[[#This Row],[Item]],TARS_List3[[#This Row],[Rating 1]:[Rating 4]],0),0)","v":0},{"$f":"TARS_List3[[#This Row],[Score]]/4*100","v":0},null,2,1]
[null,null,null,null,null,null,null,null,30,3,"Communications and Digital Technologies","Media and Content","Audio-Visual and Digital Media Industry Support and Services","3. Efficiency and delivery model","3.5 Institutional capacity",null,"Major capacity gaps; delivery is severely hindered.","Limited capacity; delivery is inconsistent.","Adequate capacity with minor constraints.","Strong capacity; well-resourced and effectively managed.",{"$f":"IFERROR(MATCH(TARS_List3[[#This Row],[Item]],TARS_List3[[#This Row],[Rating 1]:[Rating 4]],0),0)","v":0},{"$f":"TARS_List3[[#This Row],[Score]]/4*100","v":0},null,12,3]
[null,null,null,null,null,null,null,null,30,3,"Communications and Digital Technologies","Media and Content","Audio-Visual and Digital Media Industry Support and Services","4. Financial sustainability and external leverage","4.1 Budget discipline",null,"Frequent overspending or misuse of funds.","Irregularities in budget execution.","Generally within budget; few adjustments.","Strong budget discipline and forecasting.",{"$f":"IFERROR(MATCH(TARS_List3[[#This Row],[Item]],TARS_List3[[#This Row],[Rating 1]:[Rating 4]],0),0)","v":0},{"$f":"TARS_List3[[#This Row],[Score]]/4*100","v":0},null,{"$f":"ROUND(RAND()*16,0)","v":6},{"$f":"IF(MROUND(X213,4)>4,MROUND(X213,4)/4,1)","v":2}]
[null,null,null,null,null,null,null,null,30,3,"Communications and Digital Technologies","Media and Content","Audio-Visual and Digital Media Industry Support and Services","4. Financial sustainability and external leverage","4.2 Medium-term affordability",null,"Not affordable; creates unfunded pressures.","Likely to become unsustainable.","Mostly affordable with some risk.","Fully affordable and fiscally sound.",{"$f":"IFERROR(MATCH(TARS_List3[[#This Row],[Item]],TARS_List3[[#This Row],[Rating 1]:[Rating 4]],0),0)","v":0},{"$f":"TARS_List3[[#This Row],[Score]]/4*100","v":0},null,4,1]
[null,null,null,null,null,null,null,null,30,3,"Communications and Digital Technologies","Media and Content","Audio-Visual and Digital Media Industry Support and Services","4. Financial sustainability and external leverage","4.3 External funding potential",null,"No potential for external funding.","Minimal or uncertain funding interest.","Some interest; conditional opportunities exist.","Strong likelihood of attracting external support.",{"$f":"IFERROR(MATCH(TARS_List3[[#This Row],[Item]],TARS_List3[[#This Row],[Rating 1]:[Rating 4]],0),0)","v":0},{"$f":"TARS_List3[[#This Row],[Score]]/4*100","v":0},null,8,2]
[null,null,null,null,null,null,null,null,30,4,"Communications and Digital Technologies","Digital Communication, Access and Services","Programme Management for Digital Communication, Access and Services","1. Legal mandate and strategic alignment","1.1 Constitutional or legal basis",null,"No legal or constitutional obligation.","Weak or indirect legal justification.","Clear legal or legislative basis.","Directly mandated by the Constitution or national law.",{"$f":"IFERROR(MATCH(TARS_List3[[#This Row],[Item]],TARS_List3[[#This Row],[Rating 1]:[Rating 4]],0),0)","v":0},{"$f":"TARS_List3[[#This Row],[Score]]/4*100","v":0},null,11,3]
[null,null,null,null,null,null,null,null,30,4,"Communications and Digital Technologies","Digital Communication, Access and Services","Programme Management for Digital Communication, Access and Services","1. Legal mandate and strategic alignment","1.2 Policy alignment",null,"Not aligned with any known policy or plan.","Minimal or outdated policy link.","Clearly aligned with current sector policy.","Directly linked to strategic national priorities.",{"$f":"IFERROR(MATCH(TARS_List3[[#This Row],[Item]],TARS_List3[[#This Row],[Rating 1]:[Rating 4]],0),0)","v":0},{"$f":"TARS_List3[[#This Row],[Score]]/4*100","v":0},null,12,3]
[null,null,null,null,null,null,null,null,30,4,"Communications and Digital Technologies","Digital Communication, Access and Services","Programme Management for Digital Communication, Access and Services","1. Legal mandate and strategic alignment","1.3 Institutional role fit",null,"Outside the department’s mandate.","Weak fit or duplication with other institutions.","Within mandate but can be better positioned.","Strong and natural fit with department’s primary functions.",{"$f":"IFERROR(MATCH(TARS_List3[[#This Row],[Item]],TARS_List3[[#This Row],[Rating 1]:[Rating 4]],0),0)","v":0},{"$f":"TARS_List3[[#This Row],[Score]]/4*100","v":0},null,3,1]
[null,null,null,null,null,null,null,null,30,4,"Communications and Digital Technologies","Digital Communication, Access and Services","Programme Management for Digital Communication, Access and Services","1. Legal mandate and strategic alignment","1.4 Functional duplication",null,"Duplicates existing functions in other entities.","Some overlaps; coordination is unclear.","Limited duplication; some synergy possible.","No duplication; unique and complementary.",{"$f":"IFERROR(MATCH(TARS_List3[[#This Row],[Item]],TARS_List3[[#This Row],[Rating 1]:[Rating 4]],0),0)","v":0},{"$f":"TARS_List3[[#This Row],[Score]]/4*100","v":0},null,10,3]
[null,null,null,null,null,null,null,null,30,4,"Communications and Digital Technologies","Digital Communication, Access and Services","Programme Management for Digital Communication, Access and Services","2. Performance and effectiveness","2.1 Delivery of outputs",null,"Very low or no outputs delivered.","Inconsistent or poor delivery of outputs.","Mostly delivers expected outputs.","Delivers outputs efficiently and consistently.",{"$f":"IFERROR(MATCH(TARS_List3[[#This Row],[Item]],TARS_List3[[#This Row],[Rating 1]:[Rating 4]],0),0)","v":0},{"$f":"TARS_List3[[#This Row],[Score]]/4*100","v":0},null,2,1]
[null,null,null,null,null,null,null,null,30,4,"Communications and Digital Technologies","Digital Communication, Access and Services","Programme Management for Digital Communication, Access and Services","2. Performance and effectiveness","2.2 Achievement of outcomes",null,"No evidence of outcome achievement.","Minimal or indirect contribution to outcomes.","Some contribution; outcome indicators present.","Strong evidence of achieving targeted outcomes.",{"$f":"IFERROR(MATCH(TARS_List3[[#This Row],[Item]],TARS_List3[[#This Row],[Rating 1]:[Rating 4]],0),0)","v":0},{"$f":"TARS_List3[[#This Row],[Score]]/4*100","v":0},null,5,1]
[null,null,null,null,null,null,null,null,30,4,"Communications and Digital Technologies","Digital Communication, Access and Services","Programme Management for Digital Communication, Access and Services","2. Performance and effectiveness","2.3 Responsiveness to need",null,"No identifiable or outdated need addressed.","Weak alignment to needs; limited relevance.","Aligned to sector needs; moderate relevance.","High relevance and responsiveness to urgent needs.",{"$f":"IFERROR(MATCH(TARS_List3[[#This Row],[Item]],TARS_List3[[#This Row],[Rating 1]:[Rating 4]],0),0)","v":0},{"$f":"TARS_List3[[#This Row],[Score]]/4*100","v":0},null,4,1]
[null,null,null,null,null,null,null,null,30,4,"Communications and Digital Technologies","Digital Communication, Access and Services","Programme Management for Digital Communication, Access and Services","3. Efficiency and delivery model","3.1 Resource use efficiency",null,"Wasteful or inefficient use of resources.","Some inefficiencies and resource misallocation.","Reasonably efficient with manageable waste.","Highly efficient with optimal resource use.",{"$f":"IFERROR(MATCH(TARS_List3[[#This Row],[Item]],TARS_List3[[#This Row],[Rating 1]:[Rating 4]],0),0)","v":0},{"$f":"TARS_List3[[#This Row],[Score]]/4*100","v":0},null,5,1]
[null,null,null,null,null,null,null,null,30,4,"Communications and Digital Technologies","Digital Communication, Access and Services","Programme Management for Digital Communication, Access and Services","3. Efficiency and delivery model","3.2 Staffing and administrative overheads",null,"Overheads far exceed acceptable levels.","High overheads; delivery impact is diluted.","Balanced overheads; room for improvement.","Lean and efficient administrative cost structure.",{"$f":"IFERROR(MATCH(TARS_List3[[#This Row],[Item]],TARS_List3[[#This Row],[Rating 1]:[Rating 4]],0),0)","v":0},{"$f":"TARS_List3[[#This Row],[Score]]/4*100","v":0},null,3,1]
[null,null,null,null,null,null,null,null,30,4,"Communications and Digital Technologies","Digital Communication, Access and Services","Programme Management for Digital Communication, Access and Services","3. Efficiency and delivery model","3.3 Delivery model appropriateness",null,"Poorly suited delivery model; high risk.","Suboptimal model; lacks innovation or scale.","Reasonable model; can be improved.","Well-designed and fit-for-purpose delivery model.",{"$f":"IFERROR(MATCH(TARS_List3[[#This Row],[Item]],TARS_List3[[#This Row],[Rating 1]:[Rating 4]],0),0)","v":0},{"$f":"TARS_List3[[#This Row],[Score]]/4*100","v":0},null,1,1]
[null,null,null,null,null,null,null,null,30,4,"Communications and Digital Technologies","Digital Communication, Access and Services","Programme Management for Digital Communication, Access and Services","3. Efficiency and delivery model","3.4 Cost per output",null,"Cost per output is excessive or unknown.","Higher than acceptable cost with inefficiencies.","Within range, some room for cost reduction.","Low cost per output; good value for money.",{"$f":"IFERROR(MATCH(TARS_List3[[#This Row],[Item]],TARS_List3[[#This Row],[Rating 1]:[Rating 4]],0),0)","v":0},{"$f":"TARS_List3[[#This Row],[Score]]/4*100","v":0},null,3,1]
[null,null,null,null,null,null,null,null,30,4,"Communications and Digital Technologies","Digital Communication, Access and Services","Programme Management for Digital Communication, Access and Services","3. Efficiency and delivery model","3.5 Institutional capacity",null,"Major capacity gaps; delivery is severely hindered.","Limited capacity; delivery is inconsistent.","Adequate capacity with minor constraints.","Strong capacity; well-resourced and effectively managed.",{"$f":"IFERROR(MATCH(TARS_List3[[#This Row],[Item]],TARS_List3[[#This Row],[Rating 1]:[Rating 4]],0),0)","v":0},{"$f":"TARS_List3[[#This Row],[Score]]/4*100","v":0},null,13,3]
[null,null,null,null,null,null,null,null,30,4,"Communications and Digital Technologies","Digital Communication, Access and Services","Programme Management for Digital Communication, Access and Services","4. Financial sustainability and external leverage","4.1 Budget discipline",null,"Frequent overspending or misuse of funds.","Irregularities in budget execution.","Generally within budget; few adjustments.","Strong budget discipline and forecasting.",{"$f":"IFERROR(MATCH(TARS_List3[[#This Row],[Item]],TARS_List3[[#This Row],[Rating 1]:[Rating 4]],0),0)","v":0},{"$f":"TARS_List3[[#This Row],[Score]]/4*100","v":0},null,14,4]
[null,null,null,null,null,null,null,null,30,4,"Communications and Digital Technologies","Digital Communication, Access and Services","Programme Management for Digital Communication, Access and Services","4. Financial sustainability and external leverage","4.2 Medium-term affordability",null,"Not affordable; creates unfunded pressures.","Likely to become unsustainable.","Mostly affordable with some risk.","Fully affordable and fiscally sound.",{"$f":"IFERROR(MATCH(TARS_List3[[#This Row],[Item]],TARS_List3[[#This Row],[Rating 1]:[Rating 4]],0),0)","v":0},{"$f":"TARS_List3[[#This Row],[Score]]/4*100","v":0},null,16,4]
[null,null,null,null,null,null,null,null,30,4,"Communications and Digital Technologies","Digital Communication, Access and Services","Programme Management for Digital Communication, Access and Services","4. Financial sustainability and external leverage","4.3 External funding potential",null,"No potential for external funding.","Minimal or uncertain funding interest.","Some interest; conditional opportunities exist.","Strong likelihood of attracting external support.",{"$f":"IFERROR(MATCH(TARS_List3[[#This Row],[Item]],TARS_List3[[#This Row],[Rating 1]:[Rating 4]],0),0)","v":0},{"$f":"TARS_List3[[#This Row],[Score]]/4*100","v":0},null,13,3]
[null,null,null,null,null,null,null,null,30,4,"Communications and Digital Technologies","Digital Communication, Access and Services","Regulatory Compliance","1. Legal mandate and strategic alignment","1.1 Constitutional or legal basis",null,"No legal or constitutional obligation.","Weak or indirect legal justification.","Clear legal or legislative basis.","Directly mandated by the Constitution or national law.",{"$f":"IFERROR(MATCH(TARS_List3[[#This Row],[Item]],TARS_List3[[#This Row],[Rating 1]:[Rating 4]],0),0)","v":0},{"$f":"TARS_List3[[#This Row],[Score]]/4*100","v":0},null,14,4]
[null,null,null,null,null,null,null,null,30,4,"Communications and Digital Technologies","Digital Communication, Access and Services","Regulatory Compliance","1. Legal mandate and strategic alignment","1.2 Policy alignment",null,"Not aligned with any known policy or plan.","Minimal or outdated policy link.","Clearly aligned with current sector policy.","Directly linked to strategic national priorities.",{"$f":"IFERROR(MATCH(TARS_List3[[#This Row],[Item]],TARS_List3[[#This Row],[Rating 1]:[Rating 4]],0),0)","v":0},{"$f":"TARS_List3[[#This Row],[Score]]/4*100","v":0},null,13,3]
[null,null,null,null,null,null,null,null,30,4,"Communications and Digital Technologies","Digital Communication, Access and Services","Regulatory Compliance","1. Legal mandate and strategic alignment","1.3 Institutional role fit",null,"Outside the department’s mandate.","Weak fit or duplication with other institutions.","Within mandate but can be better positioned.","Strong and natural fit with department’s primary functions.",{"$f":"IFERROR(MATCH(TARS_List3[[#This Row],[Item]],TARS_List3[[#This Row],[Rating 1]:[Rating 4]],0),0)","v":0},{"$f":"TARS_List3[[#This Row],[Score]]/4*100","v":0},null,10,3]
[null,null,null,null,null,null,null,null,30,4,"Communications and Digital Technologies","Digital Communication, Access and Services","Regulatory Compliance","1. Legal mandate and strategic alignment","1.4 Functional duplication",null,"Duplicates existing functions in other entities.","Some overlaps; coordination is unclear.","Limited duplication; some synergy possible.","No duplication; unique and complementary.",{"$f":"IFERROR(MATCH(TARS_List3[[#This Row],[Item]],TARS_List3[[#This Row],[Rating 1]:[Rating 4]],0),0)","v":0},{"$f":"TARS_List3[[#This Row],[Score]]/4*100","v":0},null,12,3]
[null,null,null,null,null,null,null,null,30,4,"Communications and Digital Technologies","Digital Communication, Access and Services","Regulatory Compliance","2. Performance and effectiveness","2.1 Delivery of outputs",null,"Very low or no outputs delivered.","Inconsistent or poor delivery of outputs.","Mostly delivers expected outputs.","Delivers outputs efficiently and consistently.",{"$f":"IFERROR(MATCH(TARS_List3[[#This Row],[Item]],TARS_List3[[#This Row],[Rating 1]:[Rating 4]],0),0)","v":0},{"$f":"TARS_List3[[#This Row],[Score]]/4*100","v":0},null,8,2]
[null,null,null,null,null,null,null,null,30,4,"Communications and Digital Technologies","Digital Communication, Access and Services","Regulatory Compliance","2. Performance and effectiveness","2.2 Achievement of outcomes",null,"No evidence of outcome achievement.","Minimal or indirect contribution to outcomes.","Some contribution; outcome indicators present.","Strong evidence of achieving targeted outcomes.",{"$f":"IFERROR(MATCH(TARS_List3[[#This Row],[Item]],TARS_List3[[#This Row],[Rating 1]:[Rating 4]],0),0)","v":0},{"$f":"TARS_List3[[#This Row],[Score]]/4*100","v":0},null,5,1]
[null,null,null,null,null,null,null,null,30,4,"Communications and Digital Technologies","Digital Communication, Access and Services","Regulatory Compliance","2. Performance and effectiveness","2.3 Responsiveness to need",null,"No identifiable or outdated need addressed.","Weak alignment to needs; limited relevance.","Aligned to sector needs; moderate relevance.","High relevance and responsiveness to urgent needs.",{"$f":"IFERROR(MATCH(TARS_List3[[#This Row],[Item]],TARS_List3[[#This Row],[Rating 1]:[Rating 4]],0),0)","v":0},{"$f":"TARS_List3[[#This Row],[Score]]/4*100","v":0},null,9,2]
[null,null,null,null,null,null,null,null,30,4,"Communications and Digital Technologies","Digital Communication, Access and Services","Regulatory Compliance","3. Efficiency and delivery model","3.1 Resource use efficiency",null,"Wasteful or inefficient use of resources.","Some inefficiencies and resource misallocation.","Reasonably efficient with manageable waste.","Highly efficient with optimal resource use.",{"$f":"IFERROR(MATCH(TARS_List3[[#This Row],[Item]],TARS_List3[[#This Row],[Rating 1]:[Rating 4]],0),0)","v":0},{"$f":"TARS_List3[[#This Row],[Score]]/4*100","v":0},null,15,4]
[null,null,null,null,null,null,null,null,30,4,"Communications and Digital Technologies","Digital Communication, Access and Services","Regulatory Compliance","3. Efficiency and delivery model","3.2 Staffing and administrative overheads",null,"Overheads far exceed acceptable levels.","High overheads; delivery impact is diluted.","Balanced overheads; room for improvement.","Lean and efficient administrative cost structure.",{"$f":"IFERROR(MATCH(TARS_List3[[#This Row],[Item]],TARS_List3[[#This Row],[Rating 1]:[Rating 4]],0),0)","v":0},{"$f":"TARS_List3[[#This Row],[Score]]/4*100","v":0},null,6,2]
[null,null,null,null,null,null,null,null,30,4,"Communications and Digital Technologies","Digital Communication, Access and Services","Regulatory Compliance","3. Efficiency and delivery model","3.3 Delivery model appropriateness",null,"Poorly suited delivery model; high risk.","Suboptimal model; lacks innovation or scale.","Reasonable model; can be improved.","Well-designed and fit-for-purpose delivery model.",{"$f":"IFERROR(MATCH(TARS_List3[[#This Row],[Item]],TARS_List3[[#This Row],[Rating 1]:[Rating 4]],0),0)","v":0},{"$f":"TARS_List3[[#This Row],[Score]]/4*100","v":0},null,1,1]
[null,null,null,null,null,null,null,null,30,4,"Communications and Digital Technologies","Digital Communication, Access and Services","Regulatory Compliance","3. Efficiency and delivery model","3.4 Cost per output",null,"Cost per output is excessive or unknown.","Higher than acceptable cost with inefficiencies.","Within range, some room for cost reduction.","Low cost per output; good value for money.",{"$f":"IFERROR(MATCH(TARS_List3[[#This Row],[Item]],TARS_List3[[#This Row],[Rating 1]:[Rating 4]],0),0)","v":0},{"$f":"TARS_List3[[#This Row],[Score]]/4*100","v":0},null,15,4]
[null,null,null,null,null,null,null,null,30,4,"Communications and Digital Technologies","Digital Communication, Access and Services","Regulatory Compliance","3. Efficiency and delivery model","3.5 Institutional capacity",null,"Major capacity gaps; delivery is severely hindered.","Limited capacity; delivery is inconsistent.","Adequate capacity with minor constraints.","Strong capacity; well-resourced and effectively managed.",{"$f":"IFERROR(MATCH(TARS_List3[[#This Row],[Item]],TARS_List3[[#This Row],[Rating 1]:[Rating 4]],0),0)","v":0},{"$f":"TARS_List3[[#This Row],[Score]]/4*100","v":0},null,12,3]
[null,null,null,null,null,null,null,null,30,4,"Communications and Digital Technologies","Digital Communication, Access and Services","Regulatory Compliance","4. Financial sustainability and external leverage","4.1 Budget discipline",null,"Frequent overspending or misuse of funds.","Irregularities in budget execution.","Generally within budget; few adjustments.","Strong budget discipline and forecasting.",{"$f":"IFERROR(MATCH(TARS_List3[[#This Row],[Item]],TARS_List3[[#This Row],[Rating 1]:[Rating 4]],0),0)","v":0},{"$f":"TARS_List3[[#This Row],[Score]]/4*100","v":0},null,3,1]
[null,null,null,null,null,null,null,null,30,4,"Communications and Digital Technologies","Digital Communication, Access and Services","Regulatory Compliance","4. Financial sustainability and external leverage","4.2 Medium-term affordability",null,"Not affordable; creates unfunded pressures.","Likely to become unsustainable.","Mostly affordable with some risk.","Fully affordable and fiscally sound.",{"$f":"IFERROR(MATCH(TARS_List3[[#This Row],[Item]],TARS_List3[[#This Row],[Rating 1]:[Rating 4]],0),0)","v":0},{"$f":"TARS_List3[[#This Row],[Score]]/4*100","v":0},null,16,4]
[null,null,null,null,null,null,null,null,30,4,"Communications and Digital Technologies","Digital Communication, Access and Services","Regulatory Compliance","4. Financial sustainability and external leverage","4.3 External funding potential",null,"No potential for external funding.","Minimal or uncertain funding interest.","Some interest; conditional opportunities exist.","Strong likelihood of attracting external support.",{"$f":"IFERROR(MATCH(TARS_List3[[#This Row],[Item]],TARS_List3[[#This Row],[Rating 1]:[Rating 4]],0),0)","v":0},{"$f":"TARS_List3[[#This Row],[Score]]/4*100","v":0},null,15,4]
[null,null,null,null,null,null,null,null,30,4,"Communications and Digital Technologies","Digital Communication, Access and Services","Digital and Postal Access and Service","1. Legal mandate and strategic alignment","1.1 Constitutional or legal basis",null,"No legal or constitutional obligation.","Weak or indirect legal justification.","Clear legal or legislative basis.","Directly mandated by the Constitution or national law.",{"$f":"IFERROR(MATCH(TARS_List3[[#This Row],[Item]],TARS_List3[[#This Row],[Rating 1]:[Rating 4]],0),0)","v":0},{"$f":"TARS_List3[[#This Row],[Score]]/4*100","v":0},null,11,3]
[null,null,null,null,null,null,null,null,30,4,"Communications and Digital Technologies","Digital Communication, Access and Services","Digital and Postal Access and Service","1. Legal mandate and strategic alignment","1.2 Policy alignment",null,"Not aligned with any known policy or plan.","Minimal or outdated policy link.","Clearly aligned with current sector policy.","Directly linked to strategic national priorities.",{"$f":"IFERROR(MATCH(TARS_List3[[#This Row],[Item]],TARS_List3[[#This Row],[Rating 1]:[Rating 4]],0),0)","v":0},{"$f":"TARS_List3[[#This Row],[Score]]/4*100","v":0},null,9,2]
[null,null,null,null,null,null,null,null,30,4,"Communications and Digital Technologies","Digital Communication, Access and Services","Digital and Postal Access and Service","1. Legal mandate and strategic alignment","1.3 Institutional role fit",null,"Outside the department’s mandate.","Weak fit or duplication with other institutions.","Within mandate but can be better positioned.","Strong and natural fit with department’s primary functions.",{"$f":"IFERROR(MATCH(TARS_List3[[#This Row],[Item]],TARS_List3[[#This Row],[Rating 1]:[Rating 4]],0),0)","v":0},{"$f":"TARS_List3[[#This Row],[Score]]/4*100","v":0},null,15,4]
[null,null,null,null,null,null,null,null,30,4,"Communications and Digital Technologies","Digital Communication, Access and Services","Digital and Postal Access and Service","1. Legal mandate and strategic alignment","1.4 Functional duplication",null,"Duplicates existing functions in other entities.","Some overlaps; coordination is unclear.","Limited duplication; some synergy possible.","No duplication; unique and complementary.",{"$f":"IFERROR(MATCH(TARS_List3[[#This Row],[Item]],TARS_List3[[#This Row],[Rating 1]:[Rating 4]],0),0)","v":0},{"$f":"TARS_List3[[#This Row],[Score]]/4*100","v":0},null,11,3]
[null,null,null,null,null,null,null,null,30,4,"Communications and Digital Technologies","Digital Communication, Access and Services","Digital and Postal Access and Service","2. Performance and effectiveness","2.1 Delivery of outputs",null,"Very low or no outputs delivered.","Inconsistent or poor delivery of outputs.","Mostly delivers expected outputs.","Delivers outputs efficiently and consistently.",{"$f":"IFERROR(MATCH(TARS_List3[[#This Row],[Item]],TARS_List3[[#This Row],[Rating 1]:[Rating 4]],0),0)","v":0},{"$f":"TARS_List3[[#This Row],[Score]]/4*100","v":0},null,3,1]
[null,null,null,null,null,null,null,null,30,4,"Communications and Digital Technologies","Digital Communication, Access and Services","Digital and Postal Access and Service","2. Performance and effectiveness","2.2 Achievement of outcomes",null,"No evidence of outcome achievement.","Minimal or indirect contribution to outcomes.","Some contribution; outcome indicators present.","Strong evidence of achieving targeted outcomes.",{"$f":"IFERROR(MATCH(TARS_List3[[#This Row],[Item]],TARS_List3[[#This Row],[Rating 1]:[Rating 4]],0),0)","v":0},{"$f":"TARS_List3[[#This Row],[Score]]/4*100","v":0},null,8,2]
[null,null,null,null,null,null,null,null,30,4,"Communications and Digital Technologies","Digital Communication, Access and Services","Digital and Postal Access and Service","2. Performance and effectiveness","2.3 Responsiveness to need",null,"No identifiable or outdated need addressed.","Weak alignment to needs; limited relevance.","Aligned to sector needs; moderate relevance.","High relevance and responsiveness to urgent needs.",{"$f":"IFERROR(MATCH(TARS_List3[[#This Row],[Item]],TARS_List3[[#This Row],[Rating 1]:[Rating 4]],0),0)","v":0},{"$f":"TARS_List3[[#This Row],[Score]]/4*100","v":0},null,3,1]
[null,null,null,null,null,null,null,null,30,4,"Communications and Digital Technologies","Digital Communication, Access and Services","Digital and Postal Access and Service","3. Efficiency and delivery model","3.1 Resource use efficiency",null,"Wasteful or inefficient use of resources.","Some inefficiencies and resource misallocation.","Reasonably efficient with manageable waste.","Highly efficient with optimal resource use.",{"$f":"IFERROR(MATCH(TARS_List3[[#This Row],[Item]],TARS_List3[[#This Row],[Rating 1]:[Rating 4]],0),0)","v":0},{"$f":"TARS_List3[[#This Row],[Score]]/4*100","v":0},null,12,3]
[null,null,null,null,null,null,null,null,30,4,"Communications and Digital Technologies","Digital Communication, Access and Services","Digital and Postal Access and Service","3. Efficiency and delivery model","3.2 Staffing and administrative overheads",null,"Overheads far exceed acceptable levels.","High overheads; delivery impact is diluted.","Balanced overheads; room for improvement.","Lean and efficient administrative cost structure.",{"$f":"IFERROR(MATCH(TARS_List3[[#This Row],[Item]],TARS_List3[[#This Row],[Rating 1]:[Rating 4]],0),0)","v":0},{"$f":"TARS_List3[[#This Row],[Score]]/4*100","v":0},null,9,2]
[null,null,null,null,null,null,null,null,30,4,"Communications and Digital Technologies","Digital Communication, Access and Services","Digital and Postal Access and Service","3. Efficiency and delivery model","3.3 Delivery model appropriateness",null,"Poorly suited delivery model; high risk.","Suboptimal model; lacks innovation or scale.","Reasonable model; can be improved.","Well-designed and fit-for-purpose delivery model.",{"$f":"IFERROR(MATCH(TARS_List3[[#This Row],[Item]],TARS_List3[[#This Row],[Rating 1]:[Rating 4]],0),0)","v":0},{"$f":"TARS_List3[[#This Row],[Score]]/4*100","v":0},null,8,2]
[null,null,null,null,null,null,null,null,30,4,"Communications and Digital Technologies","Digital Communication, Access and Services","Digital and Postal Access and Service","3. Efficiency and delivery model","3.4 Cost per output",null,"Cost per output is excessive or unknown.","Higher than acceptable cost with inefficiencies.","Within range, some room for cost reduction.","Low cost per output; good value for money.",{"$f":"IFERROR(MATCH(TARS_List3[[#This Row],[Item]],TARS_List3[[#This Row],[Rating 1]:[Rating 4]],0),0)","v":0},{"$f":"TARS_List3[[#This Row],[Score]]/4*100","v":0},null,8,2]
[null,null,null,null,null,null,null,null,30,4,"Communications and Digital Technologies","Digital Communication, Access and Services","Digital and Postal Access and Service","3. Efficiency and delivery model","3.5 Institutional capacity",null,"Major capacity gaps; delivery is severely hindered.","Limited capacity; delivery is inconsistent.","Adequate capacity with minor constraints.","Strong capacity; well-resourced and effectively managed.",{"$f":"IFERROR(MATCH(TARS_List3[[#This Row],[Item]],TARS_List3[[#This Row],[Rating 1]:[Rating 4]],0),0)","v":0},{"$f":"TARS_List3[[#This Row],[Score]]/4*100","v":0},null,6,2]
[null,null,null,null,null,null,null,null,30,4,"Communications and Digital Technologies","Digital Communication, Access and Services","Digital and Postal Access and Service","4. Financial sustainability and external leverage","4.1 Budget discipline",null,"Frequent overspending or misuse of funds.","Irregularities in budget execution.","Generally within budget; few adjustments.","Strong budget discipline and forecasting.",{"$f":"IFERROR(MATCH(TARS_List3[[#This Row],[Item]],TARS_List3[[#This Row],[Rating 1]:[Rating 4]],0),0)","v":0},{"$f":"TARS_List3[[#This Row],[Score]]/4*100","v":0},null,1,1]
[null,null,null,null,null,null,null,null,30,4,"Communications and Digital Technologies","Digital Communication, Access and Services","Digital and Postal Access and Service","4. Financial sustainability and external leverage","4.2 Medium-term affordability",null,"Not affordable; creates unfunded pressures.","Likely to become unsustainable.","Mostly affordable with some risk.","Fully affordable and fiscally sound.",{"$f":"IFERROR(MATCH(TARS_List3[[#This Row],[Item]],TARS_List3[[#This Row],[Rating 1]:[Rating 4]],0),0)","v":0},{"$f":"TARS_List3[[#This Row],[Score]]/4*100","v":0},null,0,1]
[null,null,null,null,null,null,null,null,30,4,"Communications and Digital Technologies","Digital Communication, Access and Services","Digital and Postal Access and Service","4. Financial sustainability and external leverage","4.3 External funding potential",null,"No potential for external funding.","Minimal or uncertain funding interest.","Some interest; conditional opportunities exist.","Strong likelihood of attracting external support.",{"$f":"IFERROR(MATCH(TARS_List3[[#This Row],[Item]],TARS_List3[[#This Row],[Rating 1]:[Rating 4]],0),0)","v":0},{"$f":"TARS_List3[[#This Row],[Score]]/4*100","v":0},null,4,1]
[null,null,null,null,null,null,null,null,30,4,"Communications and Digital Technologies","Digital Communication, Access and Services","Digital Enterprise Development and Small, Medium and Micro Enterprise Support","1. Legal mandate and strategic alignment","1.1 Constitutional or legal basis",null,"No legal or constitutional obligation.","Weak or indirect legal justification.","Clear legal or legislative basis.","Directly mandated by the Constitution or national law.",{"$f":"IFERROR(MATCH(TARS_List3[[#This Row],[Item]],TARS_List3[[#This Row],[Rating 1]:[Rating 4]],0),0)","v":0},{"$f":"TARS_List3[[#This Row],[Score]]/4*100","v":0},null,2,1]
[null,null,null,null,null,null,null,null,30,4,"Communications and Digital Technologies","Digital Communication, Access and Services","Digital Enterprise Development and Small, Medium and Micro Enterprise Support","1. Legal mandate and strategic alignment","1.2 Policy alignment",null,"Not aligned with any known policy or plan.","Minimal or outdated policy link.","Clearly aligned with current sector policy.","Directly linked to strategic national priorities.",{"$f":"IFERROR(MATCH(TARS_List3[[#This Row],[Item]],TARS_List3[[#This Row],[Rating 1]:[Rating 4]],0),0)","v":0},{"$f":"TARS_List3[[#This Row],[Score]]/4*100","v":0},null,14,4]
[null,null,null,null,null,null,null,null,30,4,"Communications and Digital Technologies","Digital Communication, Access and Services","Digital Enterprise Development and Small, Medium and Micro Enterprise Support","1. Legal mandate and strategic alignment","1.3 Institutional role fit",null,"Outside the department’s mandate.","Weak fit or duplication with other institutions.","Within mandate but can be better positioned.","Strong and natural fit with department’s primary functions.",{"$f":"IFERROR(MATCH(TARS_List3[[#This Row],[Item]],TARS_List3[[#This Row],[Rating 1]:[Rating 4]],0),0)","v":0},{"$f":"TARS_List3[[#This Row],[Score]]/4*100","v":0},null,5,1]
[null,null,null,null,null,null,null,null,30,4,"Communications and Digital Technologies","Digital Communication, Access and Services","Digital Enterprise Development and Small, Medium and Micro Enterprise Support","1. Legal mandate and strategic alignment","1.4 Functional duplication",null,"Duplicates existing functions in other entities.","Some overlaps; coordination is unclear.","Limited duplication; some synergy possible.","No duplication; unique and complementary.",{"$f":"IFERROR(MATCH(TARS_List3[[#This Row],[Item]],TARS_List3[[#This Row],[Rating 1]:[Rating 4]],0),0)","v":0},{"$f":"TARS_List3[[#This Row],[Score]]/4*100","v":0},null,2,1]
[null,null,null,null,null,null,null,null,30,4,"Communications and Digital Technologies","Digital Communication, Access and Services","Digital Enterprise Development and Small, Medium and Micro Enterprise Support","2. Performance and effectiveness","2.1 Delivery of outputs",null,"Very low or no outputs delivered.","Inconsistent or poor delivery of outputs.","Mostly delivers expected outputs.","Delivers outputs efficiently and consistently.",{"$f":"IFERROR(MATCH(TARS_List3[[#This Row],[Item]],TARS_List3[[#This Row],[Rating 1]:[Rating 4]],0),0)","v":0},{"$f":"TARS_List3[[#This Row],[Score]]/4*100","v":0},null,11,3]
[null,null,null,null,null,null,null,null,30,4,"Communications and Digital Technologies","Digital Communication, Access and Services","Digital Enterprise Development and Small, Medium and Micro Enterprise Support","2. Performance and effectiveness","2.2 Achievement of outcomes",null,"No evidence of outcome achievement.","Minimal or indirect contribution to outcomes.","Some contribution; outcome indicators present.","Strong evidence of achieving targeted outcomes.",{"$f":"IFERROR(MATCH(TARS_List3[[#This Row],[Item]],TARS_List3[[#This Row],[Rating 1]:[Rating 4]],0),0)","v":0},{"$f":"TARS_List3[[#This Row],[Score]]/4*100","v":0},null,15,4]
[null,null,null,null,null,null,null,null,30,4,"Communications and Digital Technologies","Digital Communication, Access and Services","Digital Enterprise Development and Small, Medium and Micro Enterprise Support","2. Performance and effectiveness","2.3 Responsiveness to need",null,"No identifiable or outdated need addressed.","Weak alignment to needs; limited relevance.","Aligned to sector needs; moderate relevance.","High relevance and responsiveness to urgent needs.",{"$f":"IFERROR(MATCH(TARS_List3[[#This Row],[Item]],TARS_List3[[#This Row],[Rating 1]:[Rating 4]],0),0)","v":0},{"$f":"TARS_List3[[#This Row],[Score]]/4*100","v":0},null,12,3]
[null,null,null,null,null,null,null,null,30,4,"Communications and Digital Technologies","Digital Communication, Access and Services","Digital Enterprise Development and Small, Medium and Micro Enterprise Support","3. Efficiency and delivery model","3.1 Resource use efficiency",null,"Wasteful or inefficient use of resources.","Some inefficiencies and resource misallocation.","Reasonably efficient with manageable waste.","Highly efficient with optimal resource use.",{"$f":"IFERROR(MATCH(TARS_List3[[#This Row],[Item]],TARS_List3[[#This Row],[Rating 1]:[Rating 4]],0),0)","v":0},{"$f":"TARS_List3[[#This Row],[Score]]/4*100","v":0},null,1,1]
[null,null,null,null,null,null,null,null,30,4,"Communications and Digital Technologies","Digital Communication, Access and Services","Digital Enterprise Development and Small, Medium and Micro Enterprise Support","3. Efficiency and delivery model","3.2 Staffing and administrative overheads",null,"Overheads far exceed acceptable levels.","High overheads; delivery impact is diluted.","Balanced overheads; room for improvement.","Lean and efficient administrative cost structure.",{"$f":"IFERROR(MATCH(TARS_List3[[#This Row],[Item]],TARS_List3[[#This Row],[Rating 1]:[Rating 4]],0),0)","v":0},{"$f":"TARS_List3[[#This Row],[Score]]/4*100","v":0},null,12,3]
[null,null,null,null,null,null,null,null,30,4,"Communications and Digital Technologies","Digital Communication, Access and Services","Digital Enterprise Development and Small, Medium and Micro Enterprise Support","3. Efficiency and delivery model","3.3 Delivery model appropriateness",null,"Poorly suited delivery model; high risk.","Suboptimal model; lacks innovation or scale.","Reasonable model; can be improved.","Well-designed and fit-for-purpose delivery model.",{"$f":"IFERROR(MATCH(TARS_List3[[#This Row],[Item]],TARS_List3[[#This Row],[Rating 1]:[Rating 4]],0),0)","v":0},{"$f":"TARS_List3[[#This Row],[Score]]/4*100","v":0},null,7,2]
[null,null,null,null,null,null,null,null,30,4,"Communications and Digital Technologies","Digital Communication, Access and Services","Digital Enterprise Development and Small, Medium and Micro Enterprise Support","3. Efficiency and delivery model","3.4 Cost per output",null,"Cost per output is excessive or unknown.","Higher than acceptable cost with inefficiencies.","Within range, some room for cost reduction.","Low cost per output; good value for money.",{"$f":"IFERROR(MATCH(TARS_List3[[#This Row],[Item]],TARS_List3[[#This Row],[Rating 1]:[Rating 4]],0),0)","v":0},{"$f":"TARS_List3[[#This Row],[Score]]/4*100","v":0},null,12,3]
[null,null,null,null,null,null,null,null,30,4,"Communications and Digital Technologies","Digital Communication, Access and Services","Digital Enterprise Development and Small, Medium and Micro Enterprise Support","3. Efficiency and delivery model","3.5 Institutional capacity",null,"Major capacity gaps; delivery is severely hindered.","Limited capacity; delivery is inconsistent.","Adequate capacity with minor constraints.","Strong capacity; well-resourced and effectively managed.",{"$f":"IFERROR(MATCH(TARS_List3[[#This Row],[Item]],TARS_List3[[#This Row],[Rating 1]:[Rating 4]],0),0)","v":0},{"$f":"TARS_List3[[#This Row],[Score]]/4*100","v":0},null,4,1]
[null,null,null,null,null,null,null,null,30,4,"Communications and Digital Technologies","Digital Communication, Access and Services","Digital Enterprise Development and Small, Medium and Micro Enterprise Support","4. Financial sustainability and external leverage","4.1 Budget discipline",null,"Frequent overspending or misuse of funds.","Irregularities in budget execution.","Generally within budget; few adjustments.","Strong budget discipline and forecasting.",{"$f":"IFERROR(MATCH(TARS_List3[[#This Row],[Item]],TARS_List3[[#This Row],[Rating 1]:[Rating 4]],0),0)","v":0},{"$f":"TARS_List3[[#This Row],[Score]]/4*100","v":0},null,16,4]
[null,null,null,null,null,null,null,null,30,4,"Communications and Digital Technologies","Digital Communication, Access and Services","Digital Enterprise Development and Small, Medium and Micro Enterprise Support","4. Financial sustainability and external leverage","4.2 Medium-term affordability",null,"Not affordable; creates unfunded pressures.","Likely to become unsustainable.","Mostly affordable with some risk.","Fully affordable and fiscally sound.",{"$f":"IFERROR(MATCH(TARS_List3[[#This Row],[Item]],TARS_List3[[#This Row],[Rating 1]:[Rating 4]],0),0)","v":0},{"$f":"TARS_List3[[#This Row],[Score]]/4*100","v":0},null,4,1]
[null,null,null,null,null,null,null,null,30,4,"Communications and Digital Technologies","Digital Communication, Access and Services","Digital Enterprise Development and Small, Medium and Micro Enterprise Support","4. Financial sustainability and external leverage","4.3 External funding potential",null,"No potential for external funding.","Minimal or uncertain funding interest.","Some interest; conditional opportunities exist.","Strong likelihood of attracting external support.",{"$f":"IFERROR(MATCH(TARS_List3[[#This Row],[Item]],TARS_List3[[#This Row],[Rating 1]:[Rating 4]],0),0)","v":0},{"$f":"TARS_List3[[#This Row],[Score]]/4*100","v":0},null,9,2]
[null,null,null,null,null,null,null,null,30,5,"Communications and Digital Technologies","Digital Infrastructure and Technologies","Programme Management for Digital Infrastructure and Technologies","1. Legal mandate and strategic alignment","1.1 Constitutional or legal basis",null,"No legal or constitutional obligation.","Weak or indirect legal justification.","Clear legal or legislative basis.","Directly mandated by the Constitution or national law.",{"$f":"IFERROR(MATCH(TARS_List3[[#This Row],[Item]],TARS_List3[[#This Row],[Rating 1]:[Rating 4]],0),0)","v":0},{"$f":"TARS_List3[[#This Row],[Score]]/4*100","v":0},null,7,2]
[null,null,null,null,null,null,null,null,30,5,"Communications and Digital Technologies","Digital Infrastructure and Technologies","Programme Management for Digital Infrastructure and Technologies","1. Legal mandate and strategic alignment","1.2 Policy alignment",null,"Not aligned with any known policy or plan.","Minimal or outdated policy link.","Clearly aligned with current sector policy.","Directly linked to strategic national priorities.",{"$f":"IFERROR(MATCH(TARS_List3[[#This Row],[Item]],TARS_List3[[#This Row],[Rating 1]:[Rating 4]],0),0)","v":0},{"$f":"TARS_List3[[#This Row],[Score]]/4*100","v":0},null,{"$f":"ROUND(RAND()*16,0)","v":1},{"$f":"IF(MROUND(X277,4)>4,MROUND(X277,4)/4,1)","v":1}]
[null,null,null,null,null,null,null,null,30,5,"Communications and Digital Technologies","Digital Infrastructure and Technologies","Programme Management for Digital Infrastructure and Technologies","1. Legal mandate and strategic alignment","1.3 Institutional role fit",null,"Outside the department’s mandate.","Weak fit or duplication with other institutions.","Within mandate but can be better positioned.","Strong and natural fit with department’s primary functions.",{"$f":"IFERROR(MATCH(TARS_List3[[#This Row],[Item]],TARS_List3[[#This Row],[Rating 1]:[Rating 4]],0),0)","v":0},{"$f":"TARS_List3[[#This Row],[Score]]/4*100","v":0},null,4,1]
[null,null,null,null,null,null,null,null,30,5,"Communications and Digital Technologies","Digital Infrastructure and Technologies","Programme Management for Digital Infrastructure and Technologies","1. Legal mandate and strategic alignment","1.4 Functional duplication",null,"Duplicates existing functions in other entities.","Some overlaps; coordination is unclear.","Limited duplication; some synergy possible.","No duplication; unique and complementary.",{"$f":"IFERROR(MATCH(TARS_List3[[#This Row],[Item]],TARS_List3[[#This Row],[Rating 1]:[Rating 4]],0),0)","v":0},{"$f":"TARS_List3[[#This Row],[Score]]/4*100","v":0},null,15,4]
[null,null,null,null,null,null,null,null,30,5,"Communications and Digital Technologies","Digital Infrastructure and Technologies","Programme Management for Digital Infrastructure and Technologies","2. Performance and effectiveness","2.1 Delivery of outputs",null,"Very low or no outputs delivered.","Inconsistent or poor delivery of outputs.","Mostly delivers expected outputs.","Delivers outputs efficiently and consistently.",{"$f":"IFERROR(MATCH(TARS_List3[[#This Row],[Item]],TARS_List3[[#This Row],[Rating 1]:[Rating 4]],0),0)","v":0},{"$f":"TARS_List3[[#This Row],[Score]]/4*100","v":0},null,10,3]
[null,null,null,null,null,null,null,null,30,5,"Communications and Digital Technologies","Digital Infrastructure and Technologies","Programme Management for Digital Infrastructure and Technologies","2. Performance and effectiveness","2.2 Achievement of outcomes",null,"No evidence of outcome achievement.","Minimal or indirect contribution to outcomes.","Some contribution; outcome indicators present.","Strong evidence of achieving targeted outcomes.",{"$f":"IFERROR(MATCH(TARS_List3[[#This Row],[Item]],TARS_List3[[#This Row],[Rating 1]:[Rating 4]],0),0)","v":0},{"$f":"TARS_List3[[#This Row],[Score]]/4*100","v":0},null,7,2]
[null,null,null,null,null,null,null,null,30,5,"Communications and Digital Technologies","Digital Infrastructure and Technologies","Programme Management for Digital Infrastructure and Technologies","2. Performance and effectiveness","2.3 Responsiveness to need",null,"No identifiable or outdated need addressed.","Weak alignment to needs; limited relevance.","Aligned to sector needs; moderate relevance.","High relevance and responsiveness to urgent needs.",{"$f":"IFERROR(MATCH(TARS_List3[[#This Row],[Item]],TARS_List3[[#This Row],[Rating 1]:[Rating 4]],0),0)","v":0},{"$f":"TARS_List3[[#This Row],[Score]]/4*100","v":0},null,15,4]
[null,null,null,null,null,null,null,null,30,5,"Communications and Digital Technologies","Digital Infrastructure and Technologies","Programme Management for Digital Infrastructure and Technologies","3. Efficiency and delivery model","3.1 Resource use efficiency",null,"Wasteful or inefficient use of resources.","Some inefficiencies and resource misallocation.","Reasonably efficient with manageable waste.","Highly efficient with optimal resource use.",{"$f":"IFERROR(MATCH(TARS_List3[[#This Row],[Item]],TARS_List3[[#This Row],[Rating 1]:[Rating 4]],0),0)","v":0},{"$f":"TARS_List3[[#This Row],[Score]]/4*100","v":0},null,6,2]
[null,null,null,null,null,null,null,null,30,5,"Communications and Digital Technologies","Digital Infrastructure and Technologies","Programme Management for Digital Infrastructure and Technologies","3. Efficiency and delivery model","3.2 Staffing and administrative overheads",null,"Overheads far exceed acceptable levels.","High overheads; delivery impact is diluted.","Balanced overheads; room for improvement.","Lean and efficient administrative cost structure.",{"$f":"IFERROR(MATCH(TARS_List3[[#This Row],[Item]],TARS_List3[[#This Row],[Rating 1]:[Rating 4]],0),0)","v":0},{"$f":"TARS_List3[[#This Row],[Score]]/4*100","v":0},null,9,2]
[null,null,null,null,null,null,null,null,30,5,"Communications and Digital Technologies","Digital Infrastructure and Technologies","Programme Management for Digital Infrastructure and Technologies","3. Efficiency and delivery model","3.3 Delivery model appropriateness",null,"Poorly suited delivery model; high risk.","Suboptimal model; lacks innovation or scale.","Reasonable model; can be improved.","Well-designed and fit-for-purpose delivery model.",{"$f":"IFERROR(MATCH(TARS_List3[[#This Row],[Item]],TARS_List3[[#This Row],[Rating 1]:[Rating 4]],0),0)","v":0},{"$f":"TARS_List3[[#This Row],[Score]]/4*100","v":0},null,13,3]
[null,null,null,null,null,null,null,null,30,5,"Communications and Digital Technologies","Digital Infrastructure and Technologies","Programme Management for Digital Infrastructure and Technologies","3. Efficiency and delivery model","3.4 Cost per output",null,"Cost per output is excessive or unknown.","Higher than acceptable cost with inefficiencies.","Within range, some room for cost reduction.","Low cost per output; good value for money.",{"$f":"IFERROR(MATCH(TARS_List3[[#This Row],[Item]],TARS_List3[[#This Row],[Rating 1]:[Rating 4]],0),0)","v":0},{"$f":"TARS_List3[[#This Row],[Score]]/4*100","v":0},null,2,1]
[null,null,null,null,null,null,null,null,30,5,"Communications and Digital Technologies","Digital Infrastructure and Technologies","Programme Management for Digital Infrastructure and Technologies","3. Efficiency and delivery model","3.5 Institutional capacity",null,"Major capacity gaps; delivery is severely hindered.","Limited capacity; delivery is inconsistent.","Adequate capacity with minor constraints.","Strong capacity; well-resourced and effectively managed.",{"$f":"IFERROR(MATCH(TARS_List3[[#This Row],[Item]],TARS_List3[[#This Row],[Rating 1]:[Rating 4]],0),0)","v":0},{"$f":"TARS_List3[[#This Row],[Score]]/4*100","v":0},null,2,1]
[null,null,null,null,null,null,null,null,30,5,"Communications and Digital Technologies","Digital Infrastructure and Technologies","Programme Management for Digital Infrastructure and Technologies","4. Financial sustainability and external leverage","4.1 Budget discipline",null,"Frequent overspending or misuse of funds.","Irregularities in budget execution.","Generally within budget; few adjustments.","Strong budget discipline and forecasting.",{"$f":"IFERROR(MATCH(TARS_List3[[#This Row],[Item]],TARS_List3[[#This Row],[Rating 1]:[Rating 4]],0),0)","v":0},{"$f":"TARS_List3[[#This Row],[Score]]/4*100","v":0},null,15,4]
[null,null,null,null,null,null,null,null,30,5,"Communications and Digital Technologies","Digital Infrastructure and Technologies","Programme Management for Digital Infrastructure and Technologies","4. Financial sustainability and external leverage","4.2 Medium-term affordability",null,"Not affordable; creates unfunded pressures.","Likely to become unsustainable.","Mostly affordable with some risk.","Fully affordable and fiscally sound.",{"$f":"IFERROR(MATCH(TARS_List3[[#This Row],[Item]],TARS_List3[[#This Row],[Rating 1]:[Rating 4]],0),0)","v":0},{"$f":"TARS_List3[[#This Row],[Score]]/4*100","v":0},null,4,1]
[null,null,null,null,null,null,null,null,30,5,"Communications and Digital Technologies","Digital Infrastructure and Technologies","Programme Management for Digital Infrastructure and Technologies","4. Financial sustainability and external leverage","4.3 External funding potential",null,"No potential for external funding.","Minimal or uncertain funding interest.","Some interest; conditional opportunities exist.","Strong likelihood of attracting external support.",{"$f":"IFERROR(MATCH(TARS_List3[[#This Row],[Item]],TARS_List3[[#This Row],[Rating 1]:[Rating 4]],0),0)","v":0},{"$f":"TARS_List3[[#This Row],[Score]]/4*100","v":0},null,11,3]
[null,null,null,null,null,null,null,null,30,5,"Communications and Digital Technologies","Digital Infrastructure and Technologies","Broadband","1. Legal mandate and strategic alignment","1.1 Constitutional or legal basis",null,"No legal or constitutional obligation.","Weak or indirect legal justification.","Clear legal or legislative basis.","Directly mandated by the Constitution or national law.",{"$f":"IFERROR(MATCH(TARS_List3[[#This Row],[Item]],TARS_List3[[#This Row],[Rating 1]:[Rating 4]],0),0)","v":0},{"$f":"TARS_List3[[#This Row],[Score]]/4*100","v":0},null,3,1]
[null,null,null,null,null,null,null,null,30,5,"Communications and Digital Technologies","Digital Infrastructure and Technologies","Broadband","1. Legal mandate and strategic alignment","1.2 Policy alignment",null,"Not aligned with any known policy or plan.","Minimal or outdated policy link.","Clearly aligned with current sector policy.","Directly linked to strategic national priorities.",{"$f":"IFERROR(MATCH(TARS_List3[[#This Row],[Item]],TARS_List3[[#This Row],[Rating 1]:[Rating 4]],0),0)","v":0},{"$f":"TARS_List3[[#This Row],[Score]]/4*100","v":0},null,1,1]
[null,null,null,null,null,null,null,null,30,5,"Communications and Digital Technologies","Digital Infrastructure and Technologies","Broadband","1. Legal mandate and strategic alignment","1.3 Institutional role fit",null,"Outside the department’s mandate.","Weak fit or duplication with other institutions.","Within mandate but can be better positioned.","Strong and natural fit with department’s primary functions.",{"$f":"IFERROR(MATCH(TARS_List3[[#This Row],[Item]],TARS_List3[[#This Row],[Rating 1]:[Rating 4]],0),0)","v":0},{"$f":"TARS_List3[[#This Row],[Score]]/4*100","v":0},null,2,1]
[null,null,null,null,null,null,null,null,30,5,"Communications and Digital Technologies","Digital Infrastructure and Technologies","Broadband","1. Legal mandate and strategic alignment","1.4 Functional duplication",null,"Duplicates existing functions in other entities.","Some overlaps; coordination is unclear.","Limited duplication; some synergy possible.","No duplication; unique and complementary.",{"$f":"IFERROR(MATCH(TARS_List3[[#This Row],[Item]],TARS_List3[[#This Row],[Rating 1]:[Rating 4]],0),0)","v":0},{"$f":"TARS_List3[[#This Row],[Score]]/4*100","v":0},null,6,2]
[null,null,null,null,null,null,null,null,30,5,"Communications and Digital Technologies","Digital Infrastructure and Technologies","Broadband","2. Performance and effectiveness","2.1 Delivery of outputs",null,"Very low or no outputs delivered.","Inconsistent or poor delivery of outputs.","Mostly delivers expected outputs.","Delivers outputs efficiently and consistently.",{"$f":"IFERROR(MATCH(TARS_List3[[#This Row],[Item]],TARS_List3[[#This Row],[Rating 1]:[Rating 4]],0),0)","v":0},{"$f":"TARS_List3[[#This Row],[Score]]/4*100","v":0},null,15,4]
[null,null,null,null,null,null,null,null,30,5,"Communications and Digital Technologies","Digital Infrastructure and Technologies","Broadband","2. Performance and effectiveness","2.2 Achievement of outcomes",null,"No evidence of outcome achievement.","Minimal or indirect contribution to outcomes.","Some contribution; outcome indicators present.","Strong evidence of achieving targeted outcomes.",{"$f":"IFERROR(MATCH(TARS_List3[[#This Row],[Item]],TARS_List3[[#This Row],[Rating 1]:[Rating 4]],0),0)","v":0},{"$f":"TARS_List3[[#This Row],[Score]]/4*100","v":0},null,1,1]
[null,null,null,null,null,null,null,null,30,5,"Communications and Digital Technologies","Digital Infrastructure and Technologies","Broadband","2. Performance and effectiveness","2.3 Responsiveness to need",null,"No identifiable or outdated need addressed.","Weak alignment to needs; limited relevance.","Aligned to sector needs; moderate relevance.","High relevance and responsiveness to urgent needs.",{"$f":"IFERROR(MATCH(TARS_List3[[#This Row],[Item]],TARS_List3[[#This Row],[Rating 1]:[Rating 4]],0),0)","v":0},{"$f":"TARS_List3[[#This Row],[Score]]/4*100","v":0},null,13,3]
[null,null,null,null,null,null,null,null,30,5,"Communications and Digital Technologies","Digital Infrastructure and Technologies","Broadband","3. Efficiency and delivery model","3.1 Resource use efficiency",null,"Wasteful or inefficient use of resources.","Some inefficiencies and resource misallocation.","Reasonably efficient with manageable waste.","Highly efficient with optimal resource use.",{"$f":"IFERROR(MATCH(TARS_List3[[#This Row],[Item]],TARS_List3[[#This Row],[Rating 1]:[Rating 4]],0),0)","v":0},{"$f":"TARS_List3[[#This Row],[Score]]/4*100","v":0},null,7,2]
[null,null,null,null,null,null,null,null,30,5,"Communications and Digital Technologies","Digital Infrastructure and Technologies","Broadband","3. Efficiency and delivery model","3.2 Staffing and administrative overheads",null,"Overheads far exceed acceptable levels.","High overheads; delivery impact is diluted.","Balanced overheads; room for improvement.","Lean and efficient administrative cost structure.",{"$f":"IFERROR(MATCH(TARS_List3[[#This Row],[Item]],TARS_List3[[#This Row],[Rating 1]:[Rating 4]],0),0)","v":0},{"$f":"TARS_List3[[#This Row],[Score]]/4*100","v":0},null,13,3]
[null,null,null,null,null,null,null,null,30,5,"Communications and Digital Technologies","Digital Infrastructure and Technologies","Broadband","3. Efficiency and delivery model","3.3 Delivery model appropriateness",null,"Poorly suited delivery model; high risk.","Suboptimal model; lacks innovation or scale.","Reasonable model; can be improved.","Well-designed and fit-for-purpose delivery model.",{"$f":"IFERROR(MATCH(TARS_List3[[#This Row],[Item]],TARS_List3[[#This Row],[Rating 1]:[Rating 4]],0),0)","v":0},{"$f":"TARS_List3[[#This Row],[Score]]/4*100","v":0},null,4,1]
[null,null,null,null,null,null,null,null,30,5,"Communications and Digital Technologies","Digital Infrastructure and Technologies","Broadband","3. Efficiency and delivery model","3.4 Cost per output",null,"Cost per output is excessive or unknown.","Higher than acceptable cost with inefficiencies.","Within range, some room for cost reduction.","Low cost per output; good value for money.",{"$f":"IFERROR(MATCH(TARS_List3[[#This Row],[Item]],TARS_List3[[#This Row],[Rating 1]:[Rating 4]],0),0)","v":0},{"$f":"TARS_List3[[#This Row],[Score]]/4*100","v":0},null,9,2]
[null,null,null,null,null,null,null,null,30,5,"Communications and Digital Technologies","Digital Infrastructure and Technologies","Broadband","3. Efficiency and delivery model","3.5 Institutional capacity",null,"Major capacity gaps; delivery is severely hindered.","Limited capacity; delivery is inconsistent.","Adequate capacity with minor constraints.","Strong capacity; well-resourced and effectively managed.",{"$f":"IFERROR(MATCH(TARS_List3[[#This Row],[Item]],TARS_List3[[#This Row],[Rating 1]:[Rating 4]],0),0)","v":0},{"$f":"TARS_List3[[#This Row],[Score]]/4*100","v":0},null,14,4]
[null,null,null,null,null,null,null,null,30,5,"Communications and Digital Technologies","Digital Infrastructure and Technologies","Broadband","4. Financial sustainability and external leverage","4.1 Budget discipline",null,"Frequent overspending or misuse of funds.","Irregularities in budget execution.","Generally within budget; few adjustments.","Strong budget discipline and forecasting.",{"$f":"IFERROR(MATCH(TARS_List3[[#This Row],[Item]],TARS_List3[[#This Row],[Rating 1]:[Rating 4]],0),0)","v":0},{"$f":"TARS_List3[[#This Row],[Score]]/4*100","v":0},null,9,2]
[null,null,null,null,null,null,null,null,30,5,"Communications and Digital Technologies","Digital Infrastructure and Technologies","Broadband","4. Financial sustainability and external leverage","4.2 Medium-term affordability",null,"Not affordable; creates unfunded pressures.","Likely to become unsustainable.","Mostly affordable with some risk.","Fully affordable and fiscally sound.",{"$f":"IFERROR(MATCH(TARS_List3[[#This Row],[Item]],TARS_List3[[#This Row],[Rating 1]:[Rating 4]],0),0)","v":0},{"$f":"TARS_List3[[#This Row],[Score]]/4*100","v":0},null,6,2]
[null,null,null,null,null,null,null,null,30,5,"Communications and Digital Technologies","Digital Infrastructure and Technologies","Broadband","4. Financial sustainability and external leverage","4.3 External funding potential",null,"No potential for external funding.","Minimal or uncertain funding interest.","Some interest; conditional opportunities exist.","Strong likelihood of attracting external support.",{"$f":"IFERROR(MATCH(TARS_List3[[#This Row],[Item]],TARS_List3[[#This Row],[Rating 1]:[Rating 4]],0),0)","v":0},{"$f":"TARS_List3[[#This Row],[Score]]/4*100","v":0},null,4,1]
[null,null,null,null,null,null,null,null,30,5,"Communications and Digital Technologies","Digital Infrastructure and Technologies","Digital Infrastructure and Broadcasting Technologies","1. Legal mandate and strategic alignment","1.1 Constitutional or legal basis",null,"No legal or constitutional obligation.","Weak or indirect legal justification.","Clear legal or legislative basis.","Directly mandated by the Constitution or national law.",{"$f":"IFERROR(MATCH(TARS_List3[[#This Row],[Item]],TARS_List3[[#This Row],[Rating 1]:[Rating 4]],0),0)","v":0},{"$f":"TARS_List3[[#This Row],[Score]]/4*100","v":0},null,9,2]
[null,null,null,null,null,null,null,null,30,5,"Communications and Digital Technologies","Digital Infrastructure and Technologies","Digital Infrastructure and Broadcasting Technologies","1. Legal mandate and strategic alignment","1.2 Policy alignment",null,"Not aligned with any known policy or plan.","Minimal or outdated policy link.","Clearly aligned with current sector policy.","Directly linked to strategic national priorities.",{"$f":"IFERROR(MATCH(TARS_List3[[#This Row],[Item]],TARS_List3[[#This Row],[Rating 1]:[Rating 4]],0),0)","v":0},{"$f":"TARS_List3[[#This Row],[Score]]/4*100","v":0},null,11,3]
[null,null,null,null,null,null,null,null,30,5,"Communications and Digital Technologies","Digital Infrastructure and Technologies","Digital Infrastructure and Broadcasting Technologies","1. Legal mandate and strategic alignment","1.3 Institutional role fit",null,"Outside the department’s mandate.","Weak fit or duplication with other institutions.","Within mandate but can be better positioned.","Strong and natural fit with department’s primary functions.",{"$f":"IFERROR(MATCH(TARS_List3[[#This Row],[Item]],TARS_List3[[#This Row],[Rating 1]:[Rating 4]],0),0)","v":0},{"$f":"TARS_List3[[#This Row],[Score]]/4*100","v":0},null,4,1]
[null,null,null,null,null,null,null,null,30,5,"Communications and Digital Technologies","Digital Infrastructure and Technologies","Digital Infrastructure and Broadcasting Technologies","1. Legal mandate and strategic alignment","1.4 Functional duplication",null,"Duplicates existing functions in other entities.","Some overlaps; coordination is unclear.","Limited duplication; some synergy possible.","No duplication; unique and complementary.",{"$f":"IFERROR(MATCH(TARS_List3[[#This Row],[Item]],TARS_List3[[#This Row],[Rating 1]:[Rating 4]],0),0)","v":0},{"$f":"TARS_List3[[#This Row],[Score]]/4*100","v":0},null,13,3]
[null,null,null,null,null,null,null,null,30,5,"Communications and Digital Technologies","Digital Infrastructure and Technologies","Digital Infrastructure and Broadcasting Technologies","2. Performance and effectiveness","2.1 Delivery of outputs",null,"Very low or no outputs delivered.","Inconsistent or poor delivery of outputs.","Mostly delivers expected outputs.","Delivers outputs efficiently and consistently.",{"$f":"IFERROR(MATCH(TARS_List3[[#This Row],[Item]],TARS_List3[[#This Row],[Rating 1]:[Rating 4]],0),0)","v":0},{"$f":"TARS_List3[[#This Row],[Score]]/4*100","v":0},null,16,4]
[null,null,null,null,null,null,null,null,30,5,"Communications and Digital Technologies","Digital Infrastructure and Technologies","Digital Infrastructure and Broadcasting Technologies","2. Performance and effectiveness","2.2 Achievement of outcomes",null,"No evidence of outcome achievement.","Minimal or indirect contribution to outcomes.","Some contribution; outcome indicators present.","Strong evidence of achieving targeted outcomes.",{"$f":"IFERROR(MATCH(TARS_List3[[#This Row],[Item]],TARS_List3[[#This Row],[Rating 1]:[Rating 4]],0),0)","v":0},{"$f":"TARS_List3[[#This Row],[Score]]/4*100","v":0},null,2,1]
[null,null,null,null,null,null,null,null,30,5,"Communications and Digital Technologies","Digital Infrastructure and Technologies","Digital Infrastructure and Broadcasting Technologies","2. Performance and effectiveness","2.3 Responsiveness to need",null,"No identifiable or outdated need addressed.","Weak alignment to needs; limited relevance.","Aligned to sector needs; moderate relevance.","High relevance and responsiveness to urgent needs.",{"$f":"IFERROR(MATCH(TARS_List3[[#This Row],[Item]],TARS_List3[[#This Row],[Rating 1]:[Rating 4]],0),0)","v":0},{"$f":"TARS_List3[[#This Row],[Score]]/4*100","v":0},null,0,1]
[null,null,null,null,null,null,null,null,30,5,"Communications and Digital Technologies","Digital Infrastructure and Technologies","Digital Infrastructure and Broadcasting Technologies","3. Efficiency and delivery model","3.1 Resource use efficiency",null,"Wasteful or inefficient use of resources.","Some inefficiencies and resource misallocation.","Reasonably efficient with manageable waste.","Highly efficient with optimal resource use.",{"$f":"IFERROR(MATCH(TARS_List3[[#This Row],[Item]],TARS_List3[[#This Row],[Rating 1]:[Rating 4]],0),0)","v":0},{"$f":"TARS_List3[[#This Row],[Score]]/4*100","v":0},null,13,3]
[null,null,null,null,null,null,null,null,30,5,"Communications and Digital Technologies","Digital Infrastructure and Technologies","Digital Infrastructure and Broadcasting Technologies","3. Efficiency and delivery model","3.2 Staffing and administrative overheads",null,"Overheads far exceed acceptable levels.","High overheads; delivery impact is diluted.","Balanced overheads; room for improvement.","Lean and efficient administrative cost structure.",{"$f":"IFERROR(MATCH(TARS_List3[[#This Row],[Item]],TARS_List3[[#This Row],[Rating 1]:[Rating 4]],0),0)","v":0},{"$f":"TARS_List3[[#This Row],[Score]]/4*100","v":0},null,8,2]
[null,null,null,null,null,null,null,null,30,5,"Communications and Digital Technologies","Digital Infrastructure and Technologies","Digital Infrastructure and Broadcasting Technologies","3. Efficiency and delivery model","3.3 Delivery model appropriateness",null,"Poorly suited delivery model; high risk.","Suboptimal model; lacks innovation or scale.","Reasonable model; can be improved.","Well-designed and fit-for-purpose delivery model.",{"$f":"IFERROR(MATCH(TARS_List3[[#This Row],[Item]],TARS_List3[[#This Row],[Rating 1]:[Rating 4]],0),0)","v":0},{"$f":"TARS_List3[[#This Row],[Score]]/4*100","v":0},null,5,1]
[null,null,null,null,null,null,null,null,30,5,"Communications and Digital Technologies","Digital Infrastructure and Technologies","Digital Infrastructure and Broadcasting Technologies","3. Efficiency and delivery model","3.4 Cost per output",null,"Cost per output is excessive or unknown.","Higher than acceptable cost with inefficiencies.","Within range, some room for cost reduction.","Low cost per output; good value for money.",{"$f":"IFERROR(MATCH(TARS_List3[[#This Row],[Item]],TARS_List3[[#This Row],[Rating 1]:[Rating 4]],0),0)","v":0},{"$f":"TARS_List3[[#This Row],[Score]]/4*100","v":0},null,16,4]
[null,null,null,null,null,null,null,null,30,5,"Communications and Digital Technologies","Digital Infrastructure and Technologies","Digital Infrastructure and Broadcasting Technologies","3. Efficiency and delivery model","3.5 Institutional capacity",null,"Major capacity gaps; delivery is severely hindered.","Limited capacity; delivery is inconsistent.","Adequate capacity with minor constraints.","Strong capacity; well-resourced and effectively managed.",{"$f":"IFERROR(MATCH(TARS_List3[[#This Row],[Item]],TARS_List3[[#This Row],[Rating 1]:[Rating 4]],0),0)","v":0},{"$f":"TARS_List3[[#This Row],[Score]]/4*100","v":0},null,6,2]
[null,null,null,null,null,null,null,null,30,5,"Communications and Digital Technologies","Digital Infrastructure and Technologies","Digital Infrastructure and Broadcasting Technologies","4. Financial sustainability and external leverage","4.1 Budget discipline",null,"Frequent overspending or misuse of funds.","Irregularities in budget execution.","Generally within budget; few adjustments.","Strong budget discipline and forecasting.",{"$f":"IFERROR(MATCH(TARS_List3[[#This Row],[Item]],TARS_List3[[#This Row],[Rating 1]:[Rating 4]],0),0)","v":0},{"$f":"TARS_List3[[#This Row],[Score]]/4*100","v":0},null,9,2]
[null,null,null,null,null,null,null,null,30,5,"Communications and Digital Technologies","Digital Infrastructure and Technologies","Digital Infrastructure and Broadcasting Technologies","4. Financial sustainability and external leverage","4.2 Medium-term affordability",null,"Not affordable; creates unfunded pressures.","Likely to become unsustainable.","Mostly affordable with some risk.","Fully affordable and fiscally sound.",{"$f":"IFERROR(MATCH(TARS_List3[[#This Row],[Item]],TARS_List3[[#This Row],[Rating 1]:[Rating 4]],0),0)","v":0},{"$f":"TARS_List3[[#This Row],[Score]]/4*100","v":0},null,12,3]
[null,null,null,null,null,null,null,null,30,5,"Communications and Digital Technologies","Digital Infrastructure and Technologies","Digital Infrastructure and Broadcasting Technologies","4. Financial sustainability and external leverage","4.3 External funding potential",null,"No potential for external funding.","Minimal or uncertain funding interest.","Some interest; conditional opportunities exist.","Strong likelihood of attracting external support.",{"$f":"IFERROR(MATCH(TARS_List3[[#This Row],[Item]],TARS_List3[[#This Row],[Rating 1]:[Rating 4]],0),0)","v":0},{"$f":"TARS_List3[[#This Row],[Score]]/4*100","v":0},null,6,2]
[null,null,null,null,null,null,null,null,30,6,"Communications and Digital Technologies","Digital Society and Economy","Programme Management for Digital Society and Economy","1. Legal mandate and strategic alignment","1.1 Constitutional or legal basis",null,"No legal or constitutional obligation.","Weak or indirect legal justification.","Clear legal or legislative basis.","Directly mandated by the Constitution or national law.",{"$f":"IFERROR(MATCH(TARS_List3[[#This Row],[Item]],TARS_List3[[#This Row],[Rating 1]:[Rating 4]],0),0)","v":0},{"$f":"TARS_List3[[#This Row],[Score]]/4*100","v":0},null,7,2]
[null,null,null,null,null,null,null,null,30,6,"Communications and Digital Technologies","Digital Society and Economy","Programme Management for Digital Society and Economy","1. Legal mandate and strategic alignment","1.2 Policy alignment",null,"Not aligned with any known policy or plan.","Minimal or outdated policy link.","Clearly aligned with current sector policy.","Directly linked to strategic national priorities.",{"$f":"IFERROR(MATCH(TARS_List3[[#This Row],[Item]],TARS_List3[[#This Row],[Rating 1]:[Rating 4]],0),0)","v":0},{"$f":"TARS_List3[[#This Row],[Score]]/4*100","v":0},null,14,4]
[null,null,null,null,null,null,null,null,30,6,"Communications and Digital Technologies","Digital Society and Economy","Programme Management for Digital Society and Economy","1. Legal mandate and strategic alignment","1.3 Institutional role fit",null,"Outside the department’s mandate.","Weak fit or duplication with other institutions.","Within mandate but can be better positioned.","Strong and natural fit with department’s primary functions.",{"$f":"IFERROR(MATCH(TARS_List3[[#This Row],[Item]],TARS_List3[[#This Row],[Rating 1]:[Rating 4]],0),0)","v":0},{"$f":"TARS_List3[[#This Row],[Score]]/4*100","v":0},null,2,1]
[null,null,null,null,null,null,null,null,30,6,"Communications and Digital Technologies","Digital Society and Economy","Programme Management for Digital Society and Economy","1. Legal mandate and strategic alignment","1.4 Functional duplication",null,"Duplicates existing functions in other entities.","Some overlaps; coordination is unclear.","Limited duplication; some synergy possible.","No duplication; unique and complementary.",{"$f":"IFERROR(MATCH(TARS_List3[[#This Row],[Item]],TARS_List3[[#This Row],[Rating 1]:[Rating 4]],0),0)","v":0},{"$f":"TARS_List3[[#This Row],[Score]]/4*100","v":0},null,5,1]
[null,null,null,null,null,null,null,null,30,6,"Communications and Digital Technologies","Digital Society and Economy","Programme Management for Digital Society and Economy","2. Performance and effectiveness","2.1 Delivery of outputs",null,"Very low or no outputs delivered.","Inconsistent or poor delivery of outputs.","Mostly delivers expected outputs.","Delivers outputs efficiently and consistently.",{"$f":"IFERROR(MATCH(TARS_List3[[#This Row],[Item]],TARS_List3[[#This Row],[Rating 1]:[Rating 4]],0),0)","v":0},{"$f":"TARS_List3[[#This Row],[Score]]/4*100","v":0},null,1,1]
[null,null,null,null,null,null,null,null,30,6,"Communications and Digital Technologies","Digital Society and Economy","Programme Management for Digital Society and Economy","2. Performance and effectiveness","2.2 Achievement of outcomes",null,"No evidence of outcome achievement.","Minimal or indirect contribution to outcomes.","Some contribution; outcome indicators present.","Strong evidence of achieving targeted outcomes.",{"$f":"IFERROR(MATCH(TARS_List3[[#This Row],[Item]],TARS_List3[[#This Row],[Rating 1]:[Rating 4]],0),0)","v":0},{"$f":"TARS_List3[[#This Row],[Score]]/4*100","v":0},null,7,2]
[null,null,null,null,null,null,null,null,30,6,"Communications and Digital Technologies","Digital Society and Economy","Programme Management for Digital Society and Economy","2. Performance and effectiveness","2.3 Responsiveness to need",null,"No identifiable or outdated need addressed.","Weak alignment to needs; limited relevance.","Aligned to sector needs; moderate relevance.","High relevance and responsiveness to urgent needs.",{"$f":"IFERROR(MATCH(TARS_List3[[#This Row],[Item]],TARS_List3[[#This Row],[Rating 1]:[Rating 4]],0),0)","v":0},{"$f":"TARS_List3[[#This Row],[Score]]/4*100","v":0},null,2,1]
[null,null,null,null,null,null,null,null,30,6,"Communications and Digital Technologies","Digital Society and Economy","Programme Management for Digital Society and Economy","3. Efficiency and delivery model","3.1 Resource use efficiency",null,"Wasteful or inefficient use of resources.","Some inefficiencies and resource misallocation.","Reasonably efficient with manageable waste.","Highly efficient with optimal resource use.",{"$f":"IFERROR(MATCH(TARS_List3[[#This Row],[Item]],TARS_List3[[#This Row],[Rating 1]:[Rating 4]],0),0)","v":0},{"$f":"TARS_List3[[#This Row],[Score]]/4*100","v":0},null,14,4]
[null,null,null,null,null,null,null,null,30,6,"Communications and Digital Technologies","Digital Society and Economy","Programme Management for Digital Society and Economy","3. Efficiency and delivery model","3.2 Staffing and administrative overheads",null,"Overheads far exceed acceptable levels.","High overheads; delivery impact is diluted.","Balanced overheads; room for improvement.","Lean and efficient administrative cost structure.",{"$f":"IFERROR(MATCH(TARS_List3[[#This Row],[Item]],TARS_List3[[#This Row],[Rating 1]:[Rating 4]],0),0)","v":0},{"$f":"TARS_List3[[#This Row],[Score]]/4*100","v":0},null,9,2]
[null,null,null,null,null,null,null,null,30,6,"Communications and Digital Technologies","Digital Society and Economy","Programme Management for Digital Society and Economy","3. Efficiency and delivery model","3.3 Delivery model appropriateness",null,"Poorly suited delivery model; high risk.","Suboptimal model; lacks innovation or scale.","Reasonable model; can be improved.","Well-designed and fit-for-purpose delivery model.",{"$f":"IFERROR(MATCH(TARS_List3[[#This Row],[Item]],TARS_List3[[#This Row],[Rating 1]:[Rating 4]],0),0)","v":0},{"$f":"TARS_List3[[#This Row],[Score]]/4*100","v":0},null,14,4]
[null,null,null,null,null,null,null,null,30,6,"Communications and Digital Technologies","Digital Society and Economy","Programme Management for Digital Society and Economy","3. Efficiency and delivery model","3.4 Cost per output",null,"Cost per output is excessive or unknown.","Higher than acceptable cost with inefficiencies.","Within range, some room for cost reduction.","Low cost per output; good value for money.",{"$f":"IFERROR(MATCH(TARS_List3[[#This Row],[Item]],TARS_List3[[#This Row],[Rating 1]:[Rating 4]],0),0)","v":0},{"$f":"TARS_List3[[#This Row],[Score]]/4*100","v":0},null,12,3]
[null,null,null,null,null,null,null,null,30,6,"Communications and Digital Technologies","Digital Society and Economy","Programme Management for Digital Society and Economy","3. Efficiency and delivery model","3.5 Institutional capacity",null,"Major capacity gaps; delivery is severely hindered.","Limited capacity; delivery is inconsistent.","Adequate capacity with minor constraints.","Strong capacity; well-resourced and effectively managed.",{"$f":"IFERROR(MATCH(TARS_List3[[#This Row],[Item]],TARS_List3[[#This Row],[Rating 1]:[Rating 4]],0),0)","v":0},{"$f":"TARS_List3[[#This Row],[Score]]/4*100","v":0},null,4,1]
[null,null,null,null,null,null,null,null,30,6,"Communications and Digital Technologies","Digital Society and Economy","Programme Management for Digital Society and Economy","4. Financial sustainability and external leverage","4.1 Budget discipline",null,"Frequent overspending or misuse of funds.","Irregularities in budget execution.","Generally within budget; few adjustments.","Strong budget discipline and forecasting.",{"$f":"IFERROR(MATCH(TARS_List3[[#This Row],[Item]],TARS_List3[[#This Row],[Rating 1]:[Rating 4]],0),0)","v":0},{"$f":"TARS_List3[[#This Row],[Score]]/4*100","v":0},null,4,1]
[null,null,null,null,null,null,null,null,30,6,"Communications and Digital Technologies","Digital Society and Economy","Programme Management for Digital Society and Economy","4. Financial sustainability and external leverage","4.2 Medium-term affordability",null,"Not affordable; creates unfunded pressures.","Likely to become unsustainable.","Mostly affordable with some risk.","Fully affordable and fiscally sound.",{"$f":"IFERROR(MATCH(TARS_List3[[#This Row],[Item]],TARS_List3[[#This Row],[Rating 1]:[Rating 4]],0),0)","v":0},{"$f":"TARS_List3[[#This Row],[Score]]/4*100","v":0},null,16,4]
[null,null,null,null,null,null,null,null,30,6,"Communications and Digital Technologies","Digital Society and Economy","Programme Management for Digital Society and Economy","4. Financial sustainability and external leverage","4.3 External funding potential",null,"No potential for external funding.","Minimal or uncertain funding interest.","Some interest; conditional opportunities exist.","Strong likelihood of attracting external support.",{"$f":"IFERROR(MATCH(TARS_List3[[#This Row],[Item]],TARS_List3[[#This Row],[Rating 1]:[Rating 4]],0),0)","v":0},{"$f":"TARS_List3[[#This Row],[Score]]/4*100","v":0},null,4,1]
[null,null,null,null,null,null,null,null,30,6,"Communications and Digital Technologies","Digital Society and Economy","Digital Society and Economy","1. Legal mandate and strategic alignment","1.1 Constitutional or legal basis",null,"No legal or constitutional obligation.","Weak or indirect legal justification.","Clear legal or legislative basis.","Directly mandated by the Constitution or national law.",{"$f":"IFERROR(MATCH(TARS_List3[[#This Row],[Item]],TARS_List3[[#This Row],[Rating 1]:[Rating 4]],0),0)","v":0},{"$f":"TARS_List3[[#This Row],[Score]]/4*100","v":0},null,3,1]
[null,null,null,null,null,null,null,null,30,6,"Communications and Digital Technologies","Digital Society and Economy","Digital Society and Economy","1. Legal mandate and strategic alignment","1.2 Policy alignment",null,"Not aligned with any known policy or plan.","Minimal or outdated policy link.","Clearly aligned with current sector policy.","Directly linked to strategic national priorities.",{"$f":"IFERROR(MATCH(TARS_List3[[#This Row],[Item]],TARS_List3[[#This Row],[Rating 1]:[Rating 4]],0),0)","v":0},{"$f":"TARS_List3[[#This Row],[Score]]/4*100","v":0},null,2,1]
[null,null,null,null,null,null,null,null,30,6,"Communications and Digital Technologies","Digital Society and Economy","Digital Society and Economy","1. Legal mandate and strategic alignment","1.3 Institutional role fit",null,"Outside the department’s mandate.","Weak fit or duplication with other institutions.","Within mandate but can be better positioned.","Strong and natural fit with department’s primary functions.",{"$f":"IFERROR(MATCH(TARS_List3[[#This Row],[Item]],TARS_List3[[#This Row],[Rating 1]:[Rating 4]],0),0)","v":0},{"$f":"TARS_List3[[#This Row],[Score]]/4*100","v":0},null,6,2]
[null,null,null,null,null,null,null,null,30,6,"Communications and Digital Technologies","Digital Society and Economy","Digital Society and Economy","1. Legal mandate and strategic alignment","1.4 Functional duplication",null,"Duplicates existing functions in other entities.","Some overlaps; coordination is unclear.","Limited duplication; some synergy possible.","No duplication; unique and complementary.",{"$f":"IFERROR(MATCH(TARS_List3[[#This Row],[Item]],TARS_List3[[#This Row],[Rating 1]:[Rating 4]],0),0)","v":0},{"$f":"TARS_List3[[#This Row],[Score]]/4*100","v":0},null,4,1]
[null,null,null,null,null,null,null,null,30,6,"Communications and Digital Technologies","Digital Society and Economy","Digital Society and Economy","2. Performance and effectiveness","2.1 Delivery of outputs",null,"Very low or no outputs delivered.","Inconsistent or poor delivery of outputs.","Mostly delivers expected outputs.","Delivers outputs efficiently and consistently.",{"$f":"IFERROR(MATCH(TARS_List3[[#This Row],[Item]],TARS_List3[[#This Row],[Rating 1]:[Rating 4]],0),0)","v":0},{"$f":"TARS_List3[[#This Row],[Score]]/4*100","v":0},null,13,3]
[null,null,null,null,null,null,null,null,30,6,"Communications and Digital Technologies","Digital Society and Economy","Digital Society and Economy","2. Performance and effectiveness","2.2 Achievement of outcomes",null,"No evidence of outcome achievement.","Minimal or indirect contribution to outcomes.","Some contribution; outcome indicators present.","Strong evidence of achieving targeted outcomes.",{"$f":"IFERROR(MATCH(TARS_List3[[#This Row],[Item]],TARS_List3[[#This Row],[Rating 1]:[Rating 4]],0),0)","v":0},{"$f":"TARS_List3[[#This Row],[Score]]/4*100","v":0},null,{"$f":"ROUND(RAND()*16,0)","v":0},{"$f":"IF(MROUND(X341,4)>4,MROUND(X341,4)/4,1)","v":1}]
[null,null,null,null,null,null,null,null,30,6,"Communications and Digital Technologies","Digital Society and Economy","Digital Society and Economy","2. Performance and effectiveness","2.3 Responsiveness to need",null,"No identifiable or outdated need addressed.","Weak alignment to needs; limited relevance.","Aligned to sector needs; moderate relevance.","High relevance and responsiveness to urgent needs.",{"$f":"IFERROR(MATCH(TARS_List3[[#This Row],[Item]],TARS_List3[[#This Row],[Rating 1]:[Rating 4]],0),0)","v":0},{"$f":"TARS_List3[[#This Row],[Score]]/4*100","v":0},null,9,2]
[null,null,null,null,null,null,null,null,30,6,"Communications and Digital Technologies","Digital Society and Economy","Digital Society and Economy","3. Efficiency and delivery model","3.1 Resource use efficiency",null,"Wasteful or inefficient use of resources.","Some inefficiencies and resource misallocation.","Reasonably efficient with manageable waste.","Highly efficient with optimal resource use.",{"$f":"IFERROR(MATCH(TARS_List3[[#This Row],[Item]],TARS_List3[[#This Row],[Rating 1]:[Rating 4]],0),0)","v":0},{"$f":"TARS_List3[[#This Row],[Score]]/4*100","v":0},null,13,3]
[null,null,null,null,null,null,null,null,30,6,"Communications and Digital Technologies","Digital Society and Economy","Digital Society and Economy","3. Efficiency and delivery model","3.2 Staffing and administrative overheads",null,"Overheads far exceed acceptable levels.","High overheads; delivery impact is diluted.","Balanced overheads; room for improvement.","Lean and efficient administrative cost structure.",{"$f":"IFERROR(MATCH(TARS_List3[[#This Row],[Item]],TARS_List3[[#This Row],[Rating 1]:[Rating 4]],0),0)","v":0},{"$f":"TARS_List3[[#This Row],[Score]]/4*100","v":0},null,1,1]
[null,null,null,null,null,null,null,null,30,6,"Communications and Digital Technologies","Digital Society and Economy","Digital Society and Economy","3. Efficiency and delivery model","3.3 Delivery model appropriateness",null,"Poorly suited delivery model; high risk.","Suboptimal model; lacks innovation or scale.","Reasonable model; can be improved.","Well-designed and fit-for-purpose delivery model.",{"$f":"IFERROR(MATCH(TARS_List3[[#This Row],[Item]],TARS_List3[[#This Row],[Rating 1]:[Rating 4]],0),0)","v":0},{"$f":"TARS_List3[[#This Row],[Score]]/4*100","v":0},null,11,3]
[null,null,null,null,null,null,null,null,30,6,"Communications and Digital Technologies","Digital Society and Economy","Digital Society and Economy","3. Efficiency and delivery model","3.4 Cost per output",null,"Cost per output is excessive or unknown.","Higher than acceptable cost with inefficiencies.","Within range, some room for cost reduction.","Low cost per output; good value for money.",{"$f":"IFERROR(MATCH(TARS_List3[[#This Row],[Item]],TARS_List3[[#This Row],[Rating 1]:[Rating 4]],0),0)","v":0},{"$f":"TARS_List3[[#This Row],[Score]]/4*100","v":0},null,8,2]
[null,null,null,null,null,null,null,null,30,6,"Communications and Digital Technologies","Digital Society and Economy","Digital Society and Economy","3. Efficiency and delivery model","3.5 Institutional capacity",null,"Major capacity gaps; delivery is severely hindered.","Limited capacity; delivery is inconsistent.","Adequate capacity with minor constraints.","Strong capacity; well-resourced and effectively managed.",{"$f":"IFERROR(MATCH(TARS_List3[[#This Row],[Item]],TARS_List3[[#This Row],[Rating 1]:[Rating 4]],0),0)","v":0},{"$f":"TARS_List3[[#This Row],[Score]]/4*100","v":0},null,13,3]
[null,null,null,null,null,null,null,null,30,6,"Communications and Digital Technologies","Digital Society and Economy","Digital Society and Economy","4. Financial sustainability and external leverage","4.1 Budget discipline",null,"Frequent overspending or misuse of funds.","Irregularities in budget execution.","Generally within budget; few adjustments.","Strong budget discipline and forecasting.",{"$f":"IFERROR(MATCH(TARS_List3[[#This Row],[Item]],TARS_List3[[#This Row],[Rating 1]:[Rating 4]],0),0)","v":0},{"$f":"TARS_List3[[#This Row],[Score]]/4*100","v":0},null,13,3]
[null,null,null,null,null,null,null,null,30,6,"Communications and Digital Technologies","Digital Society and Economy","Digital Society and Economy","4. Financial sustainability and external leverage","4.2 Medium-term affordability",null,"Not affordable; creates unfunded pressures.","Likely to become unsustainable.","Mostly affordable with some risk.","Fully affordable and fiscally sound.",{"$f":"IFERROR(MATCH(TARS_List3[[#This Row],[Item]],TARS_List3[[#This Row],[Rating 1]:[Rating 4]],0),0)","v":0},{"$f":"TARS_List3[[#This Row],[Score]]/4*100","v":0},null,5,1]
[null,null,null,null,null,null,null,null,30,6,"Communications and Digital Technologies","Digital Society and Economy","Digital Society and Economy","4. Financial sustainability and external leverage","4.3 External funding potential",null,"No potential for external funding.","Minimal or uncertain funding interest.","Some interest; conditional opportunities exist.","Strong likelihood of attracting external support.",{"$f":"IFERROR(MATCH(TARS_List3[[#This Row],[Item]],TARS_List3[[#This Row],[Rating 1]:[Rating 4]],0),0)","v":0},{"$f":"TARS_List3[[#This Row],[Score]]/4*100","v":0},null,11,3]
[null,null,null,null,null,null,null,null,null,null,null,null,null,null,null,null,null,null,null,null,null,null,null,0,1]
[null,null,null,null,null,null,null,null,null,null,null,null,null,null,null,null,null,null,null,null,null,null,null,8,2]
[null,null,null,null,null,null,null,null,null,null,null,null,null,null,null,null,null,null,null,null,null,null,null,3,1]
[null,null,null,null,null,null,null,null,null,null,null,null,null,null,null,null,null,null,null,null,null,null,null,11,3]
[null,null,null,null,null,null,null,null,null,null,null,null,null,null,null,null,null,null,null,null,null,null,null,14,4]
[null,null,null,null,null,null,null,null,null,null,null,null,null,null,null,null,null,null,null,null,null,null,null,14,4]
[null,null,null,null,null,null,null,null,null,null,null,null,null,null,null,null,null,null,null,null,null,null,null,14,4]
[null,null,null,null,null,null,null,null,null,null,null,null,null,null,null,null,null,null,null,null,null,null,null,10,3]
[null,null,null,null,null,null,null,null,null,null,null,null,null,null,null,null,null,null,null,null,null,null,null,4,1]
[null,null,null,null,null,null,null,null,null,null,null,null,null,null,null,null,null,null,null,null,null,null,null,15,4]
[null,null,null,null,null,null,null,null,null,null,null,null,null,null,null,null,null,null,null,null,null,null,null,9,2]
[null,null,null,null,null,null,null,null,null,null,null,null,null,null,null,null,null,null,null,null,null,null,null,6,2]
[null,null,null,null,null,null,null,null,null,null,null,null,null,null,null,null,null,null,null,null,null,null,null,2,1]
[null,null,null,null,null,null,null,null,null,null,null,null,null,null,null,null,null,null,null,null,null,null,null,1,1]
[null,null,null,null,null,null,null,null,null,null,null,null,null,null,null,null,null,null,null,null,null,null,null,15,4]
[null,null,null,null,null,null,null,null,null,null,null,null,null,null,null,null,null,null,null,null,null,null,null,8,2]
[null,null,null,null,null,null,null,null,null,null,null,null,null,null,null,null,null,null,null,null,null,null,null,9,2]
[null,null,null,null,null,null,null,null,null,null,null,null,null,null,null,null,null,null,null,null,null,null,null,3,1]
[null,null,null,null,null,null,null,null,null,null,null,null,null,null,null,null,null,null,null,null,null,null,null,5,1]
[null,null,null,null,null,null,null,null,null,null,null,null,null,null,null,null,null,null,null,null,null,null,null,11,3]
[null,null,null,null,null,null,null,null,null,null,null,null,null,null,null,null,null,null,null,null,null,null,null,14,4]
[null,null,null,null,null,null,null,null,null,null,null,null,null,null,null,null,null,null,null,null,null,null,null,0,1]
[null,null,null,null,null,null,null,null,null,null,null,null,null,null,null,null,null,null,null,null,null,null,null,2,1]
[null,null,null,null,null,null,null,null,null,null,null,null,null,null,null,null,null,null,null,null,null,null,null,5,1]
[null,null,null,null,null,null,null,null,null,null,null,null,null,null,null,null,null,null,null,null,null,null,null,15,4]
[null,null,null,null,null,null,null,null,null,null,null,null,null,null,null,null,null,null,null,null,null,null,null,8,2]
[null,null,null,null,null,null,null,null,null,null,null,null,null,null,null,null,null,null,null,null,null,null,null,6,2]
[null,null,null,null,null,null,null,null,null,null,null,null,null,null,null,null,null,null,null,null,null,null,null,12,3]
[null,null,null,null,null,null,null,null,null,null,null,null,null,null,null,null,null,null,null,null,null,null,null,13,3]
[null,null,null,null,null,null,null,null,null,null,null,null,null,null,null,null,null,null,null,null,null,null,null,8,2]
[null,null,null,null,null,null,null,null,null,null,null,null,null,null,null,null,null,null,null,null,null,null,null,5,1]
[null,null,null,null,null,null,null,null,null,null,null,null,null,null,null,null,null,null,null,null,null,null,null,7,2]
[null,null,null,null,null,null,null,null,null,null,null,null,null,null,null,null,null,null,null,null,null,null,null,4,1]
[null,null,null,null,null,null,null,null,null,null,null,null,null,null,null,null,null,null,null,null,null,null,null,6,2]
[null,null,null,null,null,null,null,null,null,null,null,null,null,null,null,null,null,null,null,null,null,null,null,6,2]
[null,null,null,null,null,null,null,null,null,null,null,null,null,null,null,null,null,null,null,null,null,null,null,13,3]
[null,null,null,null,null,null,null,null,null,null,null,null,null,null,null,null,null,null,null,null,null,null,null,13,3]
[null,null,null,null,null,null,null,null,null,null,null,null,null,null,null,null,null,null,null,null,null,null,null,2,1]
[null,null,null,null,null,null,null,null,null,null,null,null,null,null,null,null,null,null,null,null,null,null,null,7,2]
[null,null,null,null,null,null,null,null,null,null,null,null,null,null,null,null,null,null,null,null,null,null,null,15,4]
[null,null,null,null,null,null,null,null,null,null,null,null,null,null,null,null,null,null,null,null,null,null,null,0,1]
[null,null,null,null,null,null,null,null,null,null,null,null,null,null,null,null,null,null,null,null,null,null,null,1,1]
[null,null,null,null,null,null,null,null,null,null,null,null,null,null,null,null,null,null,null,null,null,null,null,10,3]
[null,null,null,null,null,null,null,null,null,null,null,null,null,null,null,null,null,null,null,null,null,null,null,4,1]
[null,null,null,null,null,null,null,null,null,null,null,null,null,null,null,null,null,null,null,null,null,null,null,3,1]
[null,null,null,null,null,null,null,null,null,null,null,null,null,null,null,null,null,null,null,null,null,null,null,11,3]
[null,null,null,null,null,null,null,null,null,null,null,null,null,null,null,null,null,null,null,null,null,null,null,16,4]
[null,null,null,null,null,null,null,null,null,null,null,null,null,null,null,null,null,null,null,null,null,null,null,9,2]
[null,null,null,null,null,null,null,null,null,null,null,null,null,null,null,null,null,null,null,null,null,null,null,11,3]
[null,null,null,null,null,null,null,null,null,null,null,null,null,null,null,null,null,null,null,null,null,null,null,10,3]
[null,null,null,null,null,null,null,null,null,null,null,null,null,null,null,null,null,null,null,null,null,null,null,4,1]
[null,null,null,null,null,null,null,null,null,null,null,null,null,null,null,null,null,null,null,null,null,null,null,7,2]
[null,null,null,null,null,null,null,null,null,null,null,null,null,null,null,null,null,null,null,null,null,null,null,9,2]
[null,null,null,null,null,null,null,null,null,null,null,null,null,null,null,null,null,null,null,null,null,null,null,10,3]
[null,null,null,null,null,null,null,null,null,null,null,null,null,null,null,null,null,null,null,null,null,null,null,{"$f":"ROUND(RAND()*16,0)","v":13},{"$f":"IF(MROUND(X405,4)>4,MROUND(X405,4)/4,1)","v":3}]
[null,null,null,null,null,null,null,null,null,null,null,null,null,null,null,null,null,null,null,null,null,null,null,2,1]
[null,null,null,null,null,null,null,null,null,null,null,null,null,null,null,null,null,null,null,null,null,null,null,6,2]
[null,null,null,null,null,null,null,null,null,null,null,null,null,null,null,null,null,null,null,null,null,null,null,15,4]
[null,null,null,null,null,null,null,null,null,null,null,null,null,null,null,null,null,null,null,null,null,null,null,10,3]
[null,null,null,null,null,null,null,null,null,null,null,null,null,null,null,null,null,null,null,null,null,null,null,4,1]
[null,null,null,null,null,null,null,null,null,null,null,null,null,null,null,null,null,null,null,null,null,null,null,7,2]
[null,null,null,null,null,null,null,null,null,null,null,null,null,null,null,null,null,null,null,null,null,null,null,6,2]
[null,null,null,null,null,null,null,null,null,null,null,null,null,null,null,null,null,null,null,null,null,null,null,6,2]
[null,null,null,null,null,null,null,null,null,null,null,null,null,null,null,null,null,null,null,null,null,null,null,10,3]
[null,null,null,null,null,null,null,null,null,null,null,null,null,null,null,null,null,null,null,null,null,null,null,16,4]
[null,null,null,null,null,null,null,null,null,null,null,null,null,null,null,null,null,null,null,null,null,null,null,3,1]
[null,null,null,null,null,null,null,null,null,null,null,null,null,null,null,null,null,null,null,null,null,null,null,14,4]
[null,null,null,null,null,null,null,null,null,null,null,null,null,null,null,null,null,null,null,null,null,null,null,4,1]
[null,null,null,null,null,null,null,null,null,null,null,null,null,null,null,null,null,null,null,null,null,null,null,11,3]
[null,null,null,null,null,null,null,null,null,null,null,null,null,null,null,null,null,null,null,null,null,null,null,10,3]
[null,null,null,null,null,null,null,null,null,null,null,null,null,null,null,null,null,null,null,null,null,null,null,6,2]
[null,null,null,null,null,null,null,null,null,null,null,null,null,null,null,null,null,null,null,null,null,null,null,16,4]
[null,null,null,null,null,null,null,null,null,null,null,null,null,null,null,null,null,null,null,null,null,null,null,12,3]
[null,null,null,null,null,null,null,null,null,null,null,null,null,null,null,null,null,null,null,null,null,null,null,10,3]
[null,null,null,null,null,null,null,null,null,null,null,null,null,null,null,null,null,null,null,null,null,null,null,5,1]
[null,null,null,null,null,null,null,null,null,null,null,null,null,null,null,null,null,null,null,null,null,null,null,9,2]
[null,null,null,null,null,null,null,null,null,null,null,null,null,null,null,null,null,null,null,null,null,null,null,4,1]
[null,null,null,null,null,null,null,null,null,null,null,null,null,null,null,null,null,null,null,null,null,null,null,6,2]
[null,null,null,null,null,null,null,null,null,null,null,null,null,null,null,null,null,null,null,null,null,null,null,8,2]
[null,null,null,null,null,null,null,null,null,null,null,null,null,null,null,null,null,null,null,null,null,null,null,9,2]
[null,null,null,null,null,null,null,null,null,null,null,null,null,null,null,null,null,null,null,null,null,null,null,1,1]
[null,null,null,null,null,null,null,null,null,null,null,null,null,null,null,null,null,null,null,null,null,null,null,7,2]
[null,null,null,null,null,null,null,null,null,null,null,null,null,null,null,null,null,null,null,null,null,null,null,2,1]
[null,null,null,null,null,null,null,null,null,null,null,null,null,null,null,null,null,null,null,null,null,null,null,2,1]
[null,null,null,null,null,null,null,null,null,null,null,null,null,null,null,null,null,null,null,null,null,null,null,14,4]
[null,null,null,null,null,null,null,null,null,null,null,null,null,null,null,null,null,null,null,null,null,null,null,9,2]
[null,null,null,null,null,null,null,null,null,null,null,null,null,null,null,null,null,null,null,null,null,null,null,1,1]
[null,null,null,null,null,null,null,null,null,null,null,null,null,null,null,null,null,null,null,null,null,null,null,1,1]
[null,null,null,null,null,null,null,null,null,null,null,null,null,null,null,null,null,null,null,null,null,null,null,14,4]
[null,null,null,null,null,null,null,null,null,null,null,null,null,null,null,null,null,null,null,null,null,null,null,6,2]
[null,null,null,null,null,null,null,null,null,null,null,null,null,null,null,null,null,null,null,null,null,null,null,4,1]
[null,null,null,null,null,null,null,null,null,null,null,null,null,null,null,null,null,null,null,null,null,null,null,4,1]
[null,null,null,null,null,null,null,null,null,null,null,null,null,null,null,null,null,null,null,null,null,null,null,8,2]
[null,null,null,null,null,null,null,null,null,null,null,null,null,null,null,null,null,null,null,null,null,null,null,3,1]
[null,null,null,null,null,null,null,null,null,null,null,null,null,null,null,null,null,null,null,null,null,null,null,6,2]
[null,null,null,null,null,null,null,null,null,null,null,null,null,null,null,null,null,null,null,null,null,null,null,3,1]
[null,null,null,null,null,null,null,null,null,null,null,null,null,null,null,null,null,null,null,null,null,null,null,13,3]
[null,null,null,null,null,null,null,null,null,null,null,null,null,null,null,null,null,null,null,null,null,null,null,15,4]
[null,null,null,null,null,null,null,null,null,null,null,null,null,null,null,null,null,null,null,null,null,null,null,15,4]
[null,null,null,null,null,null,null,null,null,null,null,null,null,null,null,null,null,null,null,null,null,null,null,3,1]
[null,null,null,null,null,null,null,null,null,null,null,null,null,null,null,null,null,null,null,null,null,null,null,2,1]
[null,null,null,null,null,null,null,null,null,null,null,null,null,null,null,null,null,null,null,null,null,null,null,8,2]
[null,null,null,null,null,null,null,null,null,null,null,null,null,null,null,null,null,null,null,null,null,null,null,4,1]
[null,null,null,null,null,null,null,null,null,null,null,null,null,null,null,null,null,null,null,null,null,null,null,11,3]
[null,null,null,null,null,null,null,null,null,null,null,null,null,null,null,null,null,null,null,null,null,null,null,2,1]
[null,null,null,null,null,null,null,null,null,null,null,null,null,null,null,null,null,null,null,null,null,null,null,6,2]
[null,null,null,null,null,null,null,null,null,null,null,null,null,null,null,null,null,null,null,null,null,null,null,3,1]
[null,null,null,null,null,null,null,null,null,null,null,null,null,null,null,null,null,null,null,null,null,null,null,6,2]
[null,null,null,null,null,null,null,null,null,null,null,null,null,null,null,null,null,null,null,null,null,null,null,14,4]
[null,null,null,null,null,null,null,null,null,null,null,null,null,null,null,null,null,null,null,null,null,null,null,14,4]
[null,null,null,null,null,null,null,null,null,null,null,null,null,null,null,null,null,null,null,null,null,null,null,2,1]
[null,null,null,null,null,null,null,null,null,null,null,null,null,null,null,null,null,null,null,null,null,null,null,15,4]
[null,null,null,null,null,null,null,null,null,null,null,null,null,null,null,null,null,null,null,null,null,null,null,9,2]
[null,null,null,null,null,null,null,null,null,null,null,null,null,null,null,null,null,null,null,null,null,null,null,14,4]
[null,null,null,null,null,null,null,null,null,null,null,null,null,null,null,null,null,null,null,null,null,null,null,2,1]
[null,null,null,null,null,null,null,null,null,null,null,null,null,null,null,null,null,null,null,null,null,null,null,11,3]
[null,null,null,null,null,null,null,null,null,null,null,null,null,null,null,null,null,null,null,null,null,null,null,9,2]
[null,null,null,null,null,null,null,null,null,null,null,null,null,null,null,null,null,null,null,null,null,null,null,3,1]
[null,null,null,null,null,null,null,null,null,null,null,null,null,null,null,null,null,null,null,null,null,null,null,{"$f":"ROUND(RAND()*16,0)","v":5},{"$f":"IF(MROUND(X469,4)>4,MROUND(X469,4)/4,1)","v":1}]
[null,null,null,null,null,null,null,null,null,null,null,null,null,null,null,null,null,null,null,null,null,null,null,15,4]
[null,null,null,null,null,null,null,null,null,null,null,null,null,null,null,null,null,null,null,null,null,null,null,6,2]
[null,null,null,null,null,null,null,null,null,null,null,null,null,null,null,null,null,null,null,null,null,null,null,12,3]
[null,null,null,null,null,null,null,null,null,null,null,null,null,null,null,null,null,null,null,null,null,null,null,10,3]
[null,null,null,null,null,null,null,null,null,null,null,null,null,null,null,null,null,null,null,null,null,null,null,12,3]
[null,null,null,null,null,null,null,null,null,null,null,null,null,null,null,null,null,null,null,null,null,null,null,11,3]
[null,null,null,null,null,null,null,null,null,null,null,null,null,null,null,null,null,null,null,null,null,null,null,14,4]
[null,null,null,null,null,null,null,null,null,null,null,null,null,null,null,null,null,null,null,null,null,null,null,6,2]
[null,null,null,null,null,null,null,null,null,null,null,null,null,null,null,null,null,null,null,null,null,null,null,3,1]
[null,null,null,null,null,null,null,null,null,null,null,null,null,null,null,null,null,null,null,null,null,null,null,4,1]
[null,null,null,null,null,null,null,null,null,null,null,null,null,null,null,null,null,null,null,null,null,null,null,13,3]
[null,null,null,null,null,null,null,null,null,null,null,null,null,null,null,null,null,null,null,null,null,null,null,1,1]
[null,null,null,null,null,null,null,null,null,null,null,null,null,null,null,null,null,null,null,null,null,null,null,1,1]
[null,null,null,null,null,null,null,null,null,null,null,null,null,null,null,null,null,null,null,null,null,null,null,9,2]
[null,null,null,null,null,null,null,null,null,null,null,null,null,null,null,null,null,null,null,null,null,null,null,11,3]
[null,null,null,null,null,null,null,null,null,null,null,null,null,null,null,null,null,null,null,null,null,null,null,14,4]
[null,null,null,null,null,null,null,null,null,null,null,null,null,null,null,null,null,null,null,null,null,null,null,15,4]
[null,null,null,null,null,null,null,null,null,null,null,null,null,null,null,null,null,null,null,null,null,null,null,8,2]
[null,null,null,null,null,null,null,null,null,null,null,null,null,null,null,null,null,null,null,null,null,null,null,0,1]
[null,null,null,null,null,null,null,null,null,null,null,null,null,null,null,null,null,null,null,null,null,null,null,15,4]
[null,null,null,null,null,null,null,null,null,null,null,null,null,null,null,null,null,null,null,null,null,null,null,5,1]
[null,null,null,null,null,null,null,null,null,null,null,null,null,null,null,null,null,null,null,null,null,null,null,14,4]
[null,null,null,null,null,null,null,null,null,null,null,null,null,null,null,null,null,null,null,null,null,null,null,2,1]
[null,null,null,null,null,null,null,null,null,null,null,null,null,null,null,null,null,null,null,null,null,null,null,3,1]
[null,null,null,null,null,null,null,null,null,null,null,null,null,null,null,null,null,null,null,null,null,null,null,5,1]
[null,null,null,null,null,null,null,null,null,null,null,null,null,null,null,null,null,null,null,null,null,null,null,11,3]
[null,null,null,null,null,null,null,null,null,null,null,null,null,null,null,null,null,null,null,null,null,null,null,10,3]
[null,null,null,null,null,null,null,null,null,null,null,null,null,null,null,null,null,null,null,null,null,null,null,3,1]
[null,null,null,null,null,null,null,null,null,null,null,null,null,null,null,null,null,null,null,null,null,null,null,14,4]
[null,null,null,null,null,null,null,null,null,null,null,null,null,null,null,null,null,null,null,null,null,null,null,5,1]
[null,null,null,null,null,null,null,null,null,null,null,null,null,null,null,null,null,null,null,null,null,null,null,1,1]
[null,null,null,null,null,null,null,null,null,null,null,null,null,null,null,null,null,null,null,null,null,null,null,15,4]
[null,null,null,null,null,null,null,null,null,null,null,null,null,null,null,null,null,null,null,null,null,null,null,11,3]
[null,null,null,null,null,null,null,null,null,null,null,null,null,null,null,null,null,null,null,null,null,null,null,2,1]
[null,null,null,null,null,null,null,null,null,null,null,null,null,null,null,null,null,null,null,null,null,null,null,5,1]
[null,null,null,null,null,null,null,null,null,null,null,null,null,null,null,null,null,null,null,null,null,null,null,5,1]
[null,null,null,null,null,null,null,null,null,null,null,null,null,null,null,null,null,null,null,null,null,null,null,11,3]
[null,null,null,null,null,null,null,null,null,null,null,null,null,null,null,null,null,null,null,null,null,null,null,9,2]
[null,null,null,null,null,null,null,null,null,null,null,null,null,null,null,null,null,null,null,null,null,null,null,3,1]
[null,null,null,null,null,null,null,null,null,null,null,null,null,null,null,null,null,null,null,null,null,null,null,12,3]
[null,null,null,null,null,null,null,null,null,null,null,null,null,null,null,null,null,null,null,null,null,null,null,9,2]
[null,null,null,null,null,null,null,null,null,null,null,null,null,null,null,null,null,null,null,null,null,null,null,13,3]
[null,null,null,null,null,null,null,null,null,null,null,null,null,null,null,null,null,null,null,null,null,null,null,6,2]
[null,null,null,null,null,null,null,null,null,null,null,null,null,null,null,null,null,null,null,null,null,null,null,12,3]
[null,null,null,null,null,null,null,null,null,null,null,null,null,null,null,null,null,null,null,null,null,null,null,5,1]
[null,null,null,null,null,null,null,null,null,null,null,null,null,null,null,null,null,null,null,null,null,null,null,12,3]
[null,null,null,null,null,null,null,null,null,null,null,null,null,null,null,null,null,null,null,null,null,null,null,3,1]
[null,null,null,null,null,null,null,null,null,null,null,null,null,null,null,null,null,null,null,null,null,null,null,13,3]
[null,null,null,null,null,null,null,null,null,null,null,null,null,null,null,null,null,null,null,null,null,null,null,13,3]
[null,null,null,null,null,null,null,null,null,null,null,null,null,null,null,null,null,null,null,null,null,null,null,15,4]
[null,null,null,null,null,null,null,null,null,null,null,null,null,null,null,null,null,null,null,null,null,null,null,1,1]
[null,null,null,null,null,null,null,null,null,null,null,null,null,null,null,null,null,null,null,null,null,null,null,8,2]
[null,null,null,null,null,null,null,null,null,null,null,null,null,null,null,null,null,null,null,null,null,null,null,8,2]
[null,null,null,null,null,null,null,null,null,null,null,null,null,null,null,null,null,null,null,null,null,null,null,6,2]
[null,null,null,null,null,null,null,null,null,null,null,null,null,null,null,null,null,null,null,null,null,null,null,14,4]
[null,null,null,null,null,null,null,null,null,null,null,null,null,null,null,null,null,null,null,null,null,null,null,11,3]
[null,null,null,null,null,null,null,null,null,null,null,null,null,null,null,null,null,null,null,null,null,null,null,12,3]
[null,null,null,null,null,null,null,null,null,null,null,null,null,null,null,null,null,null,null,null,null,null,null,6,2]
[null,null,null,null,null,null,null,null,null,null,null,null,null,null,null,null,null,null,null,null,null,null,null,4,1]
[null,null,null,null,null,null,null,null,null,null,null,null,null,null,null,null,null,null,null,null,null,null,null,2,1]
[null,null,null,null,null,null,null,null,null,null,null,null,null,null,null,null,null,null,null,null,null,null,null,14,4]
[null,null,null,null,null,null,null,null,null,null,null,null,null,null,null,null,null,null,null,null,null,null,null,4,1]
[null,null,null,null,null,null,null,null,null,null,null,null,null,null,null,null,null,null,null,null,null,null,null,14,4]
[null,null,null,null,null,null,null,null,null,null,null,null,null,null,null,null,null,null,null,null,null,null,null,{"$f":"ROUND(RAND()*16,0)","v":0},{"$f":"IF(MROUND(X533,4)>4,MROUND(X533,4)/4,1)","v":1}]
[null,null,null,null,null,null,null,null,null,null,null,null,null,null,null,null,null,null,null,null,null,null,null,2,1]
[null,null,null,null,null,null,null,null,null,null,null,null,null,null,null,null,null,null,null,null,null,null,null,9,2]
[null,null,null,null,null,null,null,null,null,null,null,null,null,null,null,null,null,null,null,null,null,null,null,6,2]
[null,null,null,null,null,null,null,null,null,null,null,null,null,null,null,null,null,null,null,null,null,null,null,1,1]
[null,null,null,null,null,null,null,null,null,null,null,null,null,null,null,null,null,null,null,null,null,null,null,5,1]
[null,null,null,null,null,null,null,null,null,null,null,null,null,null,null,null,null,null,null,null,null,null,null,10,3]
[null,null,null,null,null,null,null,null,null,null,null,null,null,null,null,null,null,null,null,null,null,null,null,12,3]
[null,null,null,null,null,null,null,null,null,null,null,null,null,null,null,null,null,null,null,null,null,null,null,12,3]
[null,null,null,null,null,null,null,null,null,null,null,null,null,null,null,null,null,null,null,null,null,null,null,10,3]
[null,null,null,null,null,null,null,null,null,null,null,null,null,null,null,null,null,null,null,null,null,null,null,14,4]
[null,null,null,null,null,null,null,null,null,null,null,null,null,null,null,null,null,null,null,null,null,null,null,6,2]
[null,null,null,null,null,null,null,null,null,null,null,null,null,null,null,null,null,null,null,null,null,null,null,10,3]
[null,null,null,null,null,null,null,null,null,null,null,null,null,null,null,null,null,null,null,null,null,null,null,2,1]
[null,null,null,null,null,null,null,null,null,null,null,null,null,null,null,null,null,null,null,null,null,null,null,11,3]
[null,null,null,null,null,null,null,null,null,null,null,null,null,null,null,null,null,null,null,null,null,null,null,3,1]
[null,null,null,null,null,null,null,null,null,null,null,null,null,null,null,null,null,null,null,null,null,null,null,6,2]
[null,null,null,null,null,null,null,null,null,null,null,null,null,null,null,null,null,null,null,null,null,null,null,11,3]
[null,null,null,null,null,null,null,null,null,null,null,null,null,null,null,null,null,null,null,null,null,null,null,6,2]
[null,null,null,null,null,null,null,null,null,null,null,null,null,null,null,null,null,null,null,null,null,null,null,15,4]
[null,null,null,null,null,null,null,null,null,null,null,null,null,null,null,null,null,null,null,null,null,null,null,15,4]
[null,null,null,null,null,null,null,null,null,null,null,null,null,null,null,null,null,null,null,null,null,null,null,15,4]
[null,null,null,null,null,null,null,null,null,null,null,null,null,null,null,null,null,null,null,null,null,null,null,16,4]
[null,null,null,null,null,null,null,null,null,null,null,null,null,null,null,null,null,null,null,null,null,null,null,2,1]
[null,null,null,null,null,null,null,null,null,null,null,null,null,null,null,null,null,null,null,null,null,null,null,14,4]
[null,null,null,null,null,null,null,null,null,null,null,null,null,null,null,null,null,null,null,null,null,null,null,6,2]
[null,null,null,null,null,null,null,null,null,null,null,null,null,null,null,null,null,null,null,null,null,null,null,2,1]
[null,null,null,null,null,null,null,null,null,null,null,null,null,null,null,null,null,null,null,null,null,null,null,5,1]
[null,null,null,null,null,null,null,null,null,null,null,null,null,null,null,null,null,null,null,null,null,null,null,12,3]
[null,null,null,null,null,null,null,null,null,null,null,null,null,null,null,null,null,null,null,null,null,null,null,13,3]
[null,null,null,null,null,null,null,null,null,null,null,null,null,null,null,null,null,null,null,null,null,null,null,14,4]
[null,null,null,null,null,null,null,null,null,null,null,null,null,null,null,null,null,null,null,null,null,null,null,3,1]
[null,null,null,null,null,null,null,null,null,null,null,null,null,null,null,null,null,null,null,null,null,null,null,8,2]
[null,null,null,null,null,null,null,null,null,null,null,null,null,null,null,null,null,null,null,null,null,null,null,2,1]
[null,null,null,null,null,null,null,null,null,null,null,null,null,null,null,null,null,null,null,null,null,null,null,0,1]
[null,null,null,null,null,null,null,null,null,null,null,null,null,null,null,null,null,null,null,null,null,null,null,15,4]
[null,null,null,null,null,null,null,null,null,null,null,null,null,null,null,null,null,null,null,null,null,null,null,10,3]
[null,null,null,null,null,null,null,null,null,null,null,null,null,null,null,null,null,null,null,null,null,null,null,1,1]
[null,null,null,null,null,null,null,null,null,null,null,null,null,null,null,null,null,null,null,null,null,null,null,7,2]
[null,null,null,null,null,null,null,null,null,null,null,null,null,null,null,null,null,null,null,null,null,null,null,12,3]
[null,null,null,null,null,null,null,null,null,null,null,null,null,null,null,null,null,null,null,null,null,null,null,3,1]
[null,null,null,null,null,null,null,null,null,null,null,null,null,null,null,null,null,null,null,null,null,null,null,13,3]
[null,null,null,null,null,null,null,null,null,null,null,null,null,null,null,null,null,null,null,null,null,null,null,5,1]
[null,null,null,null,null,null,null,null,null,null,null,null,null,null,null,null,null,null,null,null,null,null,null,1,1]
[null,null,null,null,null,null,null,null,null,null,null,null,null,null,null,null,null,null,null,null,null,null,null,4,1]
[null,null,null,null,null,null,null,null,null,null,null,null,null,null,null,null,null,null,null,null,null,null,null,14,4]
[null,null,null,null,null,null,null,null,null,null,null,null,null,null,null,null,null,null,null,null,null,null,null,3,1]
[null,null,null,null,null,null,null,null,null,null,null,null,null,null,null,null,null,null,null,null,null,null,null,5,1]
[null,null,null,null,null,null,null,null,null,null,null,null,null,null,null,null,null,null,null,null,null,null,null,1,1]
[null,null,null,null,null,null,null,null,null,null,null,null,null,null,null,null,null,null,null,null,null,null,null,8,2]
[null,null,null,null,null,null,null,null,null,null,null,null,null,null,null,null,null,null,null,null,null,null,null,6,2]
[null,null,null,null,null,null,null,null,null,null,null,null,null,null,null,null,null,null,null,null,null,null,null,7,2]
[null,null,null,null,null,null,null,null,null,null,null,null,null,null,null,null,null,null,null,null,null,null,null,2,1]
[null,null,null,null,null,null,null,null,null,null,null,null,null,null,null,null,null,null,null,null,null,null,null,1,1]
[null,null,null,null,null,null,null,null,null,null,null,null,null,null,null,null,null,null,null,null,null,null,null,12,3]
[null,null,null,null,null,null,null,null,null,null,null,null,null,null,null,null,null,null,null,null,null,null,null,15,4]
[null,null,null,null,null,null,null,null,null,null,null,null,null,null,null,null,null,null,null,null,null,null,null,5,1]
[null,null,null,null,null,null,null,null,null,null,null,null,null,null,null,null,null,null,null,null,null,null,null,12,3]
[null,null,null,null,null,null,null,null,null,null,null,null,null,null,null,null,null,null,null,null,null,null,null,12,3]
[null,null,null,null,null,null,null,null,null,null,null,null,null,null,null,null,null,null,null,null,null,null,null,12,3]
[null,null,null,null,null,null,null,null,null,null,null,null,null,null,null,null,null,null,null,null,null,null,null,5,1]
[null,null,null,null,null,null,null,null,null,null,null,null,null,null,null,null,null,null,null,null,null,null,null,11,3]
[null,null,null,null,null,null,null,null,null,null,null,null,null,null,null,null,null,null,null,null,null,null,null,9,2]
[null,null,null,null,null,null,null,null,null,null,null,null,null,null,null,null,null,null,null,null,null,null,null,7,2]
[null,null,null,null,null,null,null,null,null,null,null,null,null,null,null,null,null,null,null,null,null,null,null,{"$f":"ROUND(RAND()*16,0)","v":14},{"$f":"IF(MROUND(X597,4)>4,MROUND(X597,4)/4,1)","v":4}]
[null,null,null,null,null,null,null,null,null,null,null,null,null,null,null,null,null,null,null,null,null,null,null,1,1]
[null,null,null,null,null,null,null,null,null,null,null,null,null,null,null,null,null,null,null,null,null,null,null,11,3]
[null,null,null,null,null,null,null,null,null,null,null,null,null,null,null,null,null,null,null,null,null,null,null,15,4]
[null,null,null,null,null,null,null,null,null,null,null,null,null,null,null,null,null,null,null,null,null,null,null,1,1]
[null,null,null,null,null,null,null,null,null,null,null,null,null,null,null,null,null,null,null,null,null,null,null,14,4]
[null,null,null,null,null,null,null,null,null,null,null,null,null,null,null,null,null,null,null,null,null,null,null,14,4]
[null,null,null,null,null,null,null,null,null,null,null,null,null,null,null,null,null,null,null,null,null,null,null,0,1]
[null,null,null,null,null,null,null,null,null,null,null,null,null,null,null,null,null,null,null,null,null,null,null,2,1]
[null,null,null,null,null,null,null,null,null,null,null,null,null,null,null,null,null,null,null,null,null,null,null,8,2]
[null,null,null,null,null,null,null,null,null,null,null,null,null,null,null,null,null,null,null,null,null,null,null,5,1]
[null,null,null,null,null,null,null,null,null,null,null,null,null,null,null,null,null,null,null,null,null,null,null,12,3]
[null,null,null,null,null,null,null,null,null,null,null,null,null,null,null,null,null,null,null,null,null,null,null,10,{"$f":"IF(MROUND(X609,4)>4,MROUND(X609,4)/4,1)","v":3}]
[null,null,null,null,null,null,null,null,null,null,null,null,null,null,null,null,null,null,null,null,null,null,null,10,3]
[null,null,null,null,null,null,null,null,null,null,null,null,null,null,null,null,null,null,null,null,null,null,null,7,2]
[null,null,null,null,null,null,null,null,null,null,null,null,null,null,null,null,null,null,null,null,null,null,null,13,3]
[null,null,null,null,null,null,null,null,null,null,null,null,null,null,null,null,null,null,null,null,null,null,null,2,1]
[null,null,null,null,null,null,null,null,null,null,null,null,null,null,null,null,null,null,null,null,null,null,null,1,1]
[null,null,null,null,null,null,null,null,null,null,null,null,null,null,null,null,null,null,null,null,null,null,null,11,3]
[null,null,null,null,null,null,null,null,null,null,null,null,null,null,null,null,null,null,null,null,null,null,null,11,3]
[null,null,null,null,null,null,null,null,null,null,null,null,null,null,null,null,null,null,null,null,null,null,null,3,1]
[null,null,null,null,null,null,null,null,null,null,null,null,null,null,null,null,null,null,null,null,null,null,null,5,1]
[null,null,null,null,null,null,null,null,null,null,null,null,null,null,null,null,null,null,null,null,null,null,null,12,3]
[null,null,null,null,null,null,null,null,null,null,null,null,null,null,null,null,null,null,null,null,null,null,null,12,3]
[null,null,null,null,null,null,null,null,null,null,null,null,null,null,null,null,null,null,null,null,null,null,null,14,4]
[null,null,null,null,null,null,null,null,null,null,null,null,null,null,null,null,null,null,null,null,null,null,null,8,2]
[null,null,null,null,null,null,null,null,null,null,null,null,null,null,null,null,null,null,null,null,null,null,null,12,3]
[null,null,null,null,null,null,null,null,null,null,null,null,null,null,null,null,null,null,null,null,null,null,null,3,1]
[null,null,null,null,null,null,null,null,null,null,null,null,null,null,null,null,null,null,null,null,null,null,null,7,2]
[null,null,null,null,null,null,null,null,null,null,null,null,null,null,null,null,null,null,null,null,null,null,null,9,2]
[null,null,null,null,null,null,null,null,null,null,null,null,null,null,null,null,null,null,null,null,null,null,null,9,2]
[null,null,null,null,null,null,null,null,null,null,null,null,null,null,null,null,null,null,null,null,null,null,null,15,4]
[null,null,null,null,null,null,null,null,null,null,null,null,null,null,null,null,null,null,null,null,null,null,null,7,2]
[null,null,null,null,null,null,null,null,null,null,null,null,null,null,null,null,null,null,null,null,null,null,null,12,3]
[null,null,null,null,null,null,null,null,null,null,null,null,null,null,null,null,null,null,null,null,null,null,null,11,3]
[null,null,null,null,null,null,null,null,null,null,null,null,null,null,null,null,null,null,null,null,null,null,null,7,2]
[null,null,null,null,null,null,null,null,null,null,null,null,null,null,null,null,null,null,null,null,null,null,null,12,3]
[null,null,null,null,null,null,null,null,null,null,null,null,null,null,null,null,null,null,null,null,null,null,null,9,2]
[null,null,null,null,null,null,null,null,null,null,null,null,null,null,null,null,null,null,null,null,null,null,null,15,4]
[]
[]
[]
[]
[]
[]
[]
[]
[]
[]
[]
[]
[]
[]
[]
[]
[]
[]
[]
[]
[]
[]
[]
[]
[]
[]
[]
[]
[]
[]
[]
[]
[]
[]
[]
[]
[]
[]
[]
[]
[]
[]
[]
[]
[]
[]
[]
[]
[]
[]
[]
[]
[]
[]
[]
[]
[]
[]
[]
[]
[]
[]
[]
[]
[]
[]
[]
[]
[]
[]
[]
[]
[]
[]
[]
[]
[]
[]
[]
[]
[]
[]
[]
[]
[]
[]
[]
[]
[]
[]
[]
[]
[]
[]
[]
[]
[]
[]
[]
[]
[]
[]
[]
[]
[]
[]
[]
[]
[]
[]
[]
[]
[]
[]
[]
[]
[]
[]
[]
[]
[]
[]
[]
[]
[]
[]
[]
[]
[]
[]
[]
[]
[]
[]
[]
[]
[]
[]
[]
[]
[]
[]
[]
[]
[]
[]
[]
[]
[]
[]
[]
[]
[]
[]
[]
[]
[]
[]
[]
[]
[]
[]
[]
[]
[]
[]
[]
[]
[]
[]
[]
[]
[]
[]
[]
[]
[]
[]
[]
[]
[]
[]
[]
[]
[]
[]
[]
[]
[]
[]
[]
[]
[]
[]
[]
[]
[]
[]
[]
[]
[]
[]
[]
[]
[]
[]
[]
[]
[]
[]
[]
[]
[]
[]
[]
[]
[]
[]
[]
[]
[]
[]
[]
[]
[]
[]
[]
[]
[]
[]
[]
[]
[]
[]
[]
[]
[]
[]
[]
[]
[]
[]
[]
[]
[]
[]
[]
[]
[]
[]
[]
[]
[]
[]
[]
[]
[]
[]
[]
[]
[]
[]
[]
[]
[]
[]
[]
[]
[]
[]
[]
[]
[]
[]
[]
[]
[]
[]
[]
[]
[]
[]
[]
[]
[]
[]
[]
[]
[]
[]
[]
[]
[]
[]
[]
[]
[]
[]
[]
[]
[]
[]
[]
[]
[]
[]
[]
[]
[]
[]
[]
[]
[]
[]
[]
[]
[]
[]
[]
[]
[]
[]
[]
[]
[]
[]
[]
[]
[]
[]
[]
[]
[]
[]
[]
[]
[]
[]
[]
[]
[]
[]
[]
[]
[]
[]
[]
[]
[]
[]
[]
[]
[]
[]
[]
[]
[]
[]
[]
[]
[]
[]
[]
[]
[]
[]
[]
[]
[]
[]
[]
[]
[]
[]
[]
[]
[]
[]
[]
[]
[]
[]
[]
[]
[]
[]
[]
[]
[]
[]
[]
[]
[]
[]
[]
[]
[]
[]
[]
[]
[]
[]
[]
[]
[]
[]
[]
[]
[]
[]
[]
[]
[]
[]
[]
[]
[]
[]
[]
[]
[]
[]
[]
[]
[]
[]
[]
[]
[]
[]
[]
[]
[]
[]
[]
[]
[]
[]
[]
[]
[]
[]
[]
[]
[]
[]
[]
[]
[]
[]
[]
[]
[]
[]
[]
[]
[]
[]
[]
[]
[]
[]
[]
[]
[]
[]
[]
[]
[]
[]
[]
[]
[]
[]
[]
[]
[]
[]
[]
[]
[]
[]
[]
[]
[]
[]
[]
[]
[]
[]
[]
[]
[]
[]
[]
[]
[]
[]
[]
[]
[]
[]
[]
[]
[]
[]
[]
[]
[]
[]
[]
[]
[]
[]
[]
[]
[]
[]
[]
[]
[]
[]
[]
[]
[]
[]
[]
[]
[]
[]
[]
[]
[]
[]
[]
[]
[]
[]
[]
[]
[]
[]
[]
[]
[]
[]
[]
[]
[]
[]
[]
[]
[]
[]
[]
[]
[]
[]
[]
[]
[]
[]
[]
[]
[]
[]
[]
[]
[]
[]
[]
[]
[]
[]
[]
[]
[]
[]
[]
[]
[]
[]
[]
[]
[]
[]
[]
[]
[]
[]
[]
[]
[]
[]
[]
[]
[]
[]
[]
[]
[]
[]
[]
[]
[]
[]
[]
[]
[]
[]
[]
[]
[]
[]
[]
[]
[]
[]
[]
[]
[]
[]
[]
[]
[]
[]
[]
[]
[]
[]
[]
[]
[]
[]
[]
[]
[]
[]
[]
[]
[]
[]
[]
[]
[]
[]
[]
[]
[]
[]
[]
[]
[]
[]
[]
[]
[]
[]
[]
[]
[]
[]
[]
[]
[]
[]
[]
[]
[]
[]
[]
[]
[]
[]
[]
[]
[]
[]
[]
[]
[]
[]
[]
[]
[]
[]
[]
[]
[]
[]
[]
[]
[]
[]
[]
[]
[]
[]
[]
[]
[]
[]
[]
[]
[]
[]
[]
[]
[]
[]
[]
[]
[]
[]
[]
[]
[]
[]
[]
[]
[]
[]
[]
[]
[]
[]
[]
[]
[]
[]
[]
[]
[]
[]
[]
[]
[]
[]
[]
[]
[]
[]
[]
[]
[]
[]
[]
[]
[]
[]
[]
[]
[]
[]
[]
[]
[]
[]
[]
[]
[]
[]
[]
[]
[]
[]
[]
[]
[]
[]
[]
[]
[]
[]
[]
[]
[]
[]
[]
[]
[]
[]
[]
[]
[]
[]
[]
[]
[]
[]
[]
[]
[]
[]
[]
[]
[]
[]
[]
[]
[]
[]
[]
[]
[]
[]
[]
[]
[]
[]
[]
[]
[]
[]
[]
[]
[]
[]
[]
[]
[]
[]
[]
[]
[]
[]
[]
[]
[]
[]
[]
[]
[]
[]
[]
[]
[]
[]
[]
[]
[]
[]
[]
[]
[]
[]
[]
[]
[]
[]
[]
[]
[]
[]
[]
[]
[]
[]
[]
[]
[]
[]
[]
[]
[]
[]
[]
[]
[]
[]
[]
[]
[]
[]
[]
[]
[]
[]
[]
[]
[]
[]
[]
[]
[]
[]
[]
[]
[]
[]
[]
[]
[]
[]
[]
[]
[]
[]
[]
[]
[]
[]
[]
[]
[]
[]
[]
[]
[]
[]
[]
[]
[]
[]
[]
[]
[]
[]
[]
[]
[]
[]
[]
[]
[]
[]
[]
[]
[]
[]
[]
[]
[]
[]
[]
[]
[]
[]
[]
[]
[]
[]
[]
[]
[]
[]
[]
[]
[]
[]
[]
[]
[]
[]
[]
[]
[]
[]
[]
[]
[]
[]
[]
[]
[]
[]
[]
[]
[]
[]
[]
[]
[]
[]
[]
[]
[]
[]
[]
[]
[]
[]
[]
[]
[]
[]
[]
[]
[]
[]
[]
[]
[]
[]
[]
[]
[]
[]
[]
[]
[]
[]
[]
[]
[]
[]
[]
[]
[]
[]
[]
[]
[]
[]
[]
[]
[]
[]
[]
[]
[]
[]
[]
[]
[]
[]
[]
[]
[]
[]
[]
[]
[]
[]
[]
[]
[]
[]
[]
[]
[]
[]
[]
[]
[]
[]
[]
[]
[]
[]
[]
[]
[]
[]
[]
[]
[]
[]
[]
[]
[]
[]
[]
[]
[]
[]
[]
[]
[]
[]
[]
[]
[]
[]
[]
[]
[]
[]
[]
[]
[]
[]
[]
[]
[]
[]
[]
[]
[]
[]
[]
[]
[]
[]
[]
[]
[]
[]
[]
[]
[]
[]
[]
[]
[]
[]
[]
[]
[]
[]
[]
[]
[]
[]
[]
[]
[]
[]
[]
[]
[]
[]
[]
[]
[]
[]
[]
[]
[]
[]
[]
[]
[]
[]
[]
[]
[]
[]
[]
[]
[]
[]
[]
[]
[]
[]
[]
[]
[]
[]
[]
[]
[]
[]
[]
[]
[]
[]
[]
[]
[]
[]
[]
[]
[]
[]
[]
[]
[]
[]
[]
[]
[]
[]
[]
[]
[]
[]
[]
[]
[]
[]
[]
[]
[]
[]
[]
[]
[]
[]
[]
[]
[]
[]
[]
[]
[]
[]
[]
[]
[]
[]
[]
[]
[]
[]
[]
[]
[]
[]
[]
[]
[]
[]
[]
[]
[]
[]
[]
[]
[]
[]
[]
[]
[]
[]
[]
[]
[]
[]
[]
[]
[]
[]
[]
[]
[]
[]
[]
[]
[]
[]
[]
[]
[]
[]
[]
[]
[]
[]
[]
[]
[]
[]
[]
[]
[]
[]
[]
[]
[]
[]
[]
[]
[]
[]
[]
[]
[]
[]
[]
[]
[]
[]
[]
[]
[]
[]
[]
[]
[]
[]
[]
[]
[]
[]
[]
[]
[]
[]
[]
[]
[]
[]
[]
[]
[]
[]
[]
[]
[]
[]
[]
[]
[]
[]
[]
[]
[]
[]
[]
[]
[]
[]
[]
[]
[]
[]
[]
[]
[]
[]
[]
[]
[]
[]
[]
[]
[]
[]
[]
[null,"Return to Matrix"]
[]
[]
[]
[]
[]
[]
[]
[]
[]
[]
[]
[]
[]
[]
[]
[]
[]
[]
[]
[]
[]
[null,"Return to Matrix"]
[]
[]
[]
[]
[]
[]
[]
[]
[]
[]
[]
[]
[]
[]
[]
[]
[]
[]
[]
[]
[]
[]
[]
[]
[]
[]
[]
[]
[]
[]
[]
[]
[]
[]
[]
[]
[]
[]
[]
[]
[]
[]
[]
[]
[]
[]
[]
[]
[]
[]
[]
[]
[]
[]
[]
[]
[]
[]
[]
[]
[]
[]
[]
[]
[]
[]
[]
[]
[]
[]
[]
[]
[]
[]
[]
[]
[]
[]
[]
[]
[]
[]
[]
[]
[]
[]
[]
[]
[]
[]
[]
[]
[]
[]
[]
[]
[]
[]
[]
[]
[]
[]
[]
[]
[]
[]
[]
[]
[]
[]
[]
[]
[]
[]
[]
[]
[]
[]
[]
[]
[]
[]
[]
[]
[]
[]
[]
[]
[]
[]
[]
[]
[]
[]
[]
[]
[]
[]
[]
[]
[]
[]
[]
[]
[]
[]
[]
[]
[]
[]
[]
[]
[]
[]
[]
[]
[]
[]
[]
[]
[]
[]
[]
[]
[]
[]
[]
[]
[]
[]
[]
[]
[]
[]
[]
[]
[]
[]
[]
[]
[]
[]
[]
[]
[]
[]
[]
[]
[]
[]
[]
[]
[]
[]
[]
[]
[]
[]
[]
[]
[]
[]
[]
[]
[]
[]
[]
[]
[]
[]
[]
[]
[]
[]
[]
[]
[]
[]
[]
[]
[]
[]
[]
[]
[]
[]
[]
[]
[]
[]
[]
[]
[]
[]
[]
[]
[]
[]
[]
[]
[]
[]
[]
[]
[]
[]
[]
[]
[]
[]
[]
[]
[]
[]
[]
[]
[]
[]
[]
[]
[]
[]
[]
[]
[]
[]
[]
[]
[]
[]
[]
[]
[]
[]
[]
[]
[]
[]
[]
[]
[]
[]
[]
[]
[]
[]
[]
[]
[]
[]
[]
[]
[]
[]
[]
[]
[]
[]
[]
[]
[]
[]
[]
[]
[]
[]
[]
[]
[]
[]
[]
[]
[]
[]
[]
[]
[]
[]
[]
[]
[]
[]
[]
[]
[]
[]
[]
[]
[]
[]
[]
[]
[]
[]
[]
[]
[]
[]
[]
[]
[]
[]
[]
[]
[]
[]
[]
[]
[]
[]
[]
[]
[]
[]
[]
[]
[]
[]
[]
[]
[]
[]
[]
[]
[]
[]
[]
[]
[]
[]
[]
[]
[]
[]
[]
[]
[]
[]
[]
[]
[]
[]
[]
[]
[]
[]
[]
[]
[]
[]
[]
[]
[]
[]
[]
[]
[]
[]
[]
[]
[]
[]
[]
[]
[]
[]
[]
[]
[]
[]
[]
[]
[]
[]
[]
[]
[]
[]
[]
[]
[]
[]
[]
[]
[]
[]
[]
[]
[]
[]
[]
[]
[]
[]
[]
[]
[]
[]
[]
[]
[]
[]
[]
[]
[]
[]
[]
[]
[]
[]
[]
[]
[]
[]
[]
[]
[]
[]
[]
[]
[]
[]
[]
[]
[]
[]
[]
[]
[]
[]
[]
[]
[]
[]
[]
[]
[]
[]
[]
[]
[]
[]
[]
[]
[]
[]
[]
[]
[]
[]
[]
[]
[]
[]
[]
[]
[]
[]
[]
[]
[]
[]
[]
[]
[]
[]
[]
[]
[]
[]
[]
[]
[]
[]
[]
[]
[]
[]
[]
[]
[]
[]
[]
[]
[]
[]
[]
[]
[]
[]
[]
[]
[]
[]
[]
[]
[]
[]
[]
[]
[]
[]
[]
[]
[]
[]
[]
[]
[]
[]
[]
[]
[]
[]
[]
[]
[]
[]
[]
[]
[]
[]
[]
[]
[]
[]
[]
[]
[]
[]
[]
[]
[]
[]
[]
[]
[]
[]
[]
[]
[]
[]
[]
[]
[]
[]
[]
[]
[]
[]
[]
[]
[]
[]
[]
[]
[]
[]
[]
[]
[]
[]
[]
[]
[]
[]
[]
[]
[]
[]
[]
[]
[]
[]
[]
[]
[]
[]
[]
[]
[]
[]
[]
[]
[]
[]
[]
[]
[]
[]
[]
[]
[]
[]
[]
[]
[]
[]
[]
[]
[]
[]
[]
[]
[]
[]
[]
[]
[]
[]
[]
[]
[]
[]
[]
[]
[]
[]
[]
[]
[]
[]
[]
[]
[]
[]
[]
[]
[]
[]
[]
[]
[]
[]
[]
[]
[]
[]
[]
[]
[]
[]
[]
[]
[]
[]
[]
[]
[]
[]
[]
[]
[]
[]
[]
[]
[]
[]
[]
[]
[]
[]
[]
[]
[]
[]
[]
[]
[]
[]
[]
[]
[]
[]
[]
[]
[]
[]
[]
[]
[]
[]
[]
[]
[]
[]
[]
[]
[]
[]
[]
[]
[]
[]
[]
[]
[]
[]
[]
[]
[]
[]
[]
[]
[]
[]
[]
[]
[]
[]
[]
[]
[]
[]
[]
[]
[]
[]
[]
[]
[]
[]
[]
[]
[]
[]
[]
[]
[]
[]
[]
[]
[]
[]
[]
[]
[]
[]
[]
[]
[]
[]
[]
[]
[]
[]
[]
[]
[]
[]
[]
[]
[]
[]
[]
[]
[]
[]
[]
[]
[]
[]
[]
[]
[]
[]
[]
[]
[]
[]
[]
[]
[]
[]
[]
[]
[]
[]
[]
[]
[]
[]
[]
[]
[]
[]
[]
[]
[]
[]
[]
[]
[]
[]
[]
[]
[]
[]
[]
[]
[]
[]
[]
[]
[]
[]
[]
[]
[]
[]
[]
[]
[]
[]
[]
[]
[]
[]
[]
[]
[]
[]
[]
[]
[]
[]
[]
[]
[]
[]
[]
[]
[]
[]
[]
[]
[]
[]
[]
[]
[]
[]
[]
[]
[]
[]
[]
[]
[]
[]
[]
[]
[]
[]
[]
[]
[]
[]
[]
[]
[]
[]
[]
[]
[]
[]
[]
[]
[]
[]
[]
[]
[]
[]
[]
[]
[]
[]
[]
[]
[]
[]
[]
[]
[]
[]
[]
[]
[]
[]
[]
[]
[]
[]
[]
[]
[]
[]
[]
[]
[]
[]
[]
[]
[]
[]
[]
[]
[]
[]
[]
[]
[]
[]
[]
[]
[]
[]
[]
[]
[]
[]
[]
[]
[]
[]
[]
[]
[]
[]
[]
[]
[]
[]
[]
[]
[]
[]
[]
[]
[]
[]
[]
[]
[]
[]
[]
[]
[]
[]
[]
[]
[]
[]
[]
[]
[]
[]
[]
[]
[]
[]
[]
[]
[]
[]
[]
[]
[]
[]
[null,null,null,null,null,null,null,null,null,null,null,null,null,null,null,null,null,null,null,null,null,null,null,null,null,null,null,null,null,null,null,null,null,null,null,null,null,null,null,null,null,null,null,null,null,null,null,null,null,null,null,null,null,null,null,null,null,"Programme Assessment Criteria"]
[]
[null,null,null,null,null,null,null,null,null,null,null,null,null,null,null,null,null,null,null,null,null,null,null,null,null,null,null,null,null,null,null,null,null,null,null,null,null,null,null,null,null,null,null,null,null,null,null,null,null,null,null,null,null,null,null,null,null,"No. of criteria",null,{"$f":"SUBTOTAL(3,t_PriorityMatrix[Criterion])","v":15},null,null,null,null,null,null,null,null,null,null,null,null,null,null,null,null,null,null,null,null,null,null,null,null,null,null,null,null,null,null,null,null,null,null,"High","Low"]
[null,null,null,null,null,null,null,null,null,null,null,null,null,null,null,null,null,null,null,null,null,null,null,null,null,null,null,null,null,null,null,null,null,null,null,null,null,null,null,null,null,null,null,null,null,null,null,null,null,null,null,null,null,null,null,null,null,null,null,null,null,null,null,null,null,null,null,null,null,null,null,null,null,null,"Programme/subprogramme identified for targetted savings",null,null,null,null,null,null,null,null,null,null,null,null,null,null,null,null,"Results by Programme/Bin",null,null,1,2,3,4,null,null,null,null,null,null,null,null,null,"Results by Programme/Bin",null,null,1,2,3,4]
[null,null,null,null,null,null,null,null,null,null,null,null,null,null,null,null,null,null,null,null,null,null,null,null,null,null,null,null,null,null,null,null,null,null,null,null,null,null,null,null,null,null,null,null,null,null,null,null,null,null,null,null,null,null,null,null,null,"Group","Criterion","Definition","Rating 1","Rating 2","Rating 3","Rating 4","Source of evidence",null,null,null,null,null,null,null,null,null,"Vote No.","Programme No.","Subprogramme No.","Department","Programme","Subprogramme","Rank","TARS_Indicator",null,null,null,null,"Vote No.","Programme No.","Department","Programme","No. of Subprogrammes","Max","Score","Pct","Score 1","Score 2","Score 3","Score 4",null,null,null,null,"Vote No.","Programme No.","Department","Programme","No. of Subprogrammes","Max","Score","Pct","Score 1","Score 2","Score 3","Score 4"]
[null,null,null,null,null,null,null,null,null,null,null,null,null,null,null,null,null,null,null,null,null,null,null,null,null,null,null,null,null,null,null,null,null,null,null,null,null,null,null,null,null,null,null,null,null,null,null,null,null,null,null,null,null,null,null,null,null,"1. Legal mandate and strategic alignment","1.1 Constitutional or legal basis","Assesses whether the subprogramme is required by the Constitution, legislation, or any binding legal or regulatory framework.","No legal or constitutional obligation.","Weak or indirect legal justification.","Clear legal or legislative basis.","Directly mandated by the Constitution or national law.","Document Review (Legislation, Strategic and Annual Performance Plans)",null,null,null,null,null,null,null,null,null,"30","01","01","Communications and Digital Technologies","Administration","Ministry",null,null,null,null,null,null,30,1,"Communications and Digital Technologies","Administration",{"$f":"COUNTIF(TARS_List3[Programme],TARS_List2_Heat1_2[[#This Row],[Programme]])/CntCriteria","v":5},{"$f":"CntCriteria*TARS_List2_Heat1_2[[#This Row],[No. of Subprogrammes]]*4","v":300},{"$f":"ROUND(IF($E$1=\"\",SUMIFS(TARS_List3[Score],TARS_List3[Programme No.],TARS_List2_Heat1_2[[#This Row],[Programme No.]]),SUMIFS(TARS_List3[Score],TARS_List3[Programme No.],TARS_List2_Heat1_2[[#This Row],[Programme No.]],TARS_List3[Group],$E$1)),1)","v":0},{"$f":"IFERROR(TARS_List2_Heat1_2[[#This Row],[Score]]/TARS_List2_Heat1_2[[#This Row],[Max]],0)","v":0},{"$f":"(SUMIFS(TARS_List3[Score],TARS_List3[Programme],TARS_List2_Heat1_2[[#This Row],[Programme]],TARS_List3[Score],CQ$3003)/CQ$3003)/TARS_List2_Heat1_2[[#This Row],[No. of Subprogrammes]]/CntCriteria","v":0},{"$f":"(SUMIFS(TARS_List3[Score],TARS_List3[Programme],TARS_List2_Heat1_2[[#This Row],[Programme]],TARS_List3[Score],CR$3003)/CR$3003)/TARS_List2_Heat1_2[[#This Row],[No. of Subprogrammes]]/CntCriteria","v":0},{"$f":"(SUMIFS(TARS_List3[Score],TARS_List3[Programme],TARS_List2_Heat1_2[[#This Row],[Programme]],TARS_List3[Score],CS$3003)/CS$3003)/TARS_List2_Heat1_2[[#This Row],[No. of Subprogrammes]]/CntCriteria","v":0},{"$f":"(SUMIFS(TARS_List3[Score],TARS_List3[Programme],TARS_List2_Heat1_2[[#This Row],[Programme]],TARS_List3[Score],CT$3003)/CT$3003)/TARS_List2_Heat1_2[[#This Row],[No. of Subprogrammes]]/CntCriteria","v":0},null,null,null,null,30,1,"Communications and Digital Technologies","Administration",{"$f":"COUNTIF(TARS_List3[Programme],TARS_List2_Heat2_2[[#This Row],[Programme]])/CntCriteria","v":5},{"$f":"CntCriteria*TARS_List2_Heat2_2[[#This Row],[No. of Subprogrammes]]*4","v":300},{"$f":"SUMIFS(TARS_List3[Score],TARS_List3[Programme No.],TARS_List2_Heat2_2[[#This Row],[Programme No.]])","v":0},{"$f":"IFERROR(TARS_List2_Heat2_2[[#This Row],[Score]]/TARS_List2_Heat2_2[[#This Row],[Max]]*100,0)","v":0},{"$f":"SUMPRODUCT(--(TARS_List3[Programme]=TARS_List2_Heat2_2[[#This Row],[Programme]]),--(TARS_List3[Score]=DG$3003))","v":0},{"$f":"SUMPRODUCT(--(TARS_List3[Programme]=TARS_List2_Heat2_2[[#This Row],[Programme]]),--(TARS_List3[Score]=DH$3003))","v":0},{"$f":"SUMPRODUCT(--(TARS_List3[Programme]=TARS_List2_Heat2_2[[#This Row],[Programme]]),--(TARS_List3[Score]=DI$3003))","v":0},{"$f":"SUMPRODUCT(--(TARS_List3[Programme]=TARS_List2_Heat2_2[[#This Row],[Programme]]),--(TARS_List3[Score]=DJ$3003))","v":0}]
[null,null,null,null,null,null,null,null,null,null,null,null,null,null,null,null,null,null,null,null,null,null,null,null,null,null,null,null,null,null,null,null,null,null,null,null,null,null,null,null,null,null,null,null,null,null,null,null,null,null,null,null,null,null,null,null,null,null,"1.2 Policy alignment","Assesses how well the subprogramme aligns with national and sectoral policy frameworks (e.g. MTDP, departmental strategies).","Not aligned with any known policy or plan.","Minimal or outdated policy link.","Clearly aligned with current sector policy.","Directly linked to strategic national priorities.",null,null,null,null,null,null,null,null,null,null,"30","01","02","Communications and Digital Technologies","Administration","Departmental Management",null,null,null,null,null,null,30,2,"Communications and Digital Technologies","ICT Transformation, Global Partnerships and State-Owned Enterprises Governance",{"$f":"COUNTIF(TARS_List3[Programme],TARS_List2_Heat1_2[[#This Row],[Programme]])/CntCriteria","v":4},{"$f":"CntCriteria*TARS_List2_Heat1_2[[#This Row],[No. of Subprogrammes]]*4","v":240},{"$f":"ROUND(IF($E$1=\"\",SUMIFS(TARS_List3[Score],TARS_List3[Programme No.],TARS_List2_Heat1_2[[#This Row],[Programme No.]]),SUMIFS(TARS_List3[Score],TARS_List3[Programme No.],TARS_List2_Heat1_2[[#This Row],[Programme No.]],TARS_List3[Group],$E$1)),1)","v":0},{"$f":"IFERROR(TARS_List2_Heat1_2[[#This Row],[Score]]/TARS_List2_Heat1_2[[#This Row],[Max]],0)","v":0},{"$f":"(SUMIFS(TARS_List3[Score],TARS_List3[Programme],TARS_List2_Heat1_2[[#This Row],[Programme]],TARS_List3[Score],CQ$3003)/CQ$3003)/TARS_List2_Heat1_2[[#This Row],[No. of Subprogrammes]]/CntCriteria","v":0},{"$f":"(SUMIFS(TARS_List3[Score],TARS_List3[Programme],TARS_List2_Heat1_2[[#This Row],[Programme]],TARS_List3[Score],CR$3003)/CR$3003)/TARS_List2_Heat1_2[[#This Row],[No. of Subprogrammes]]/CntCriteria","v":0},{"$f":"(SUMIFS(TARS_List3[Score],TARS_List3[Programme],TARS_List2_Heat1_2[[#This Row],[Programme]],TARS_List3[Score],CS$3003)/CS$3003)/TARS_List2_Heat1_2[[#This Row],[No. of Subprogrammes]]/CntCriteria","v":0},{"$f":"(SUMIFS(TARS_List3[Score],TARS_List3[Programme],TARS_List2_Heat1_2[[#This Row],[Programme]],TARS_List3[Score],CT$3003)/CT$3003)/TARS_List2_Heat1_2[[#This Row],[No. of Subprogrammes]]/CntCriteria","v":0},null,null,null,null,30,2,"Communications and Digital Technologies","ICT Transformation, Global Partnerships and State-Owned Enterprises Governance",{"$f":"COUNTIF(TARS_List3[Programme],TARS_List2_Heat2_2[[#This Row],[Programme]])/CntCriteria","v":4},{"$f":"CntCriteria*TARS_List2_Heat2_2[[#This Row],[No. of Subprogrammes]]*4","v":240},{"$f":"SUMIFS(TARS_List3[Score],TARS_List3[Programme No.],TARS_List2_Heat2_2[[#This Row],[Programme No.]])","v":0},{"$f":"IFERROR(TARS_List2_Heat2_2[[#This Row],[Score]]/TARS_List2_Heat2_2[[#This Row],[Max]]*100,0)","v":0},{"$f":"SUMPRODUCT(--(TARS_List3[Programme]=TARS_List2_Heat2_2[[#This Row],[Programme]]),--(TARS_List3[Score]=DG$3003))","v":0},{"$f":"SUMPRODUCT(--(TARS_List3[Programme]=TARS_List2_Heat2_2[[#This Row],[Programme]]),--(TARS_List3[Score]=DH$3003))","v":0},{"$f":"SUMPRODUCT(--(TARS_List3[Programme]=TARS_List2_Heat2_2[[#This Row],[Programme]]),--(TARS_List3[Score]=DI$3003))","v":0},{"$f":"SUMPRODUCT(--(TARS_List3[Programme]=TARS_List2_Heat2_2[[#This Row],[Programme]]),--(TARS_List3[Score]=DJ$3003))","v":0}]
[null,null,null,null,null,null,null,null,null,null,null,null,null,null,null,null,null,null,null,null,null,null,null,null,null,null,null,null,null,null,null,null,null,null,null,null,null,null,null,null,null,null,null,null,null,null,null,null,null,null,null,null,null,null,null,null,null,null,"1.3 Institutional role fit","Assesses how well the subprogramme fits within the core mandate and competencies of the department.","Outside the department’s mandate.","Weak fit or duplication with other institutions.","Within mandate but can be better positioned.","Strong and natural fit with department’s primary functions.",null,null,null,null,null,null,null,null,null,null,"30","01","03","Communications and Digital Technologies","Administration","Corporate Services",null,null,null,null,null,null,30,3,"Communications and Digital Technologies","Media and Content",{"$f":"COUNTIF(TARS_List3[Programme],TARS_List2_Heat1_2[[#This Row],[Programme]])/CntCriteria","v":4},{"$f":"CntCriteria*TARS_List2_Heat1_2[[#This Row],[No. of Subprogrammes]]*4","v":240},{"$f":"ROUND(IF($E$1=\"\",SUMIFS(TARS_List3[Score],TARS_List3[Programme No.],TARS_List2_Heat1_2[[#This Row],[Programme No.]]),SUMIFS(TARS_List3[Score],TARS_List3[Programme No.],TARS_List2_Heat1_2[[#This Row],[Programme No.]],TARS_List3[Group],$E$1)),1)","v":0},{"$f":"IFERROR(TARS_List2_Heat1_2[[#This Row],[Score]]/TARS_List2_Heat1_2[[#This Row],[Max]],0)","v":0},{"$f":"(SUMIFS(TARS_List3[Score],TARS_List3[Programme],TARS_List2_Heat1_2[[#This Row],[Programme]],TARS_List3[Score],CQ$3003)/CQ$3003)/TARS_List2_Heat1_2[[#This Row],[No. of Subprogrammes]]/CntCriteria","v":0},{"$f":"(SUMIFS(TARS_List3[Score],TARS_List3[Programme],TARS_List2_Heat1_2[[#This Row],[Programme]],TARS_List3[Score],CR$3003)/CR$3003)/TARS_List2_Heat1_2[[#This Row],[No. of Subprogrammes]]/CntCriteria","v":0},{"$f":"(SUMIFS(TARS_List3[Score],TARS_List3[Programme],TARS_List2_Heat1_2[[#This Row],[Programme]],TARS_List3[Score],CS$3003)/CS$3003)/TARS_List2_Heat1_2[[#This Row],[No. of Subprogrammes]]/CntCriteria","v":0},{"$f":"(SUMIFS(TARS_List3[Score],TARS_List3[Programme],TARS_List2_Heat1_2[[#This Row],[Programme]],TARS_List3[Score],CT$3003)/CT$3003)/TARS_List2_Heat1_2[[#This Row],[No. of Subprogrammes]]/CntCriteria","v":0},null,null,null,null,30,3,"Communications and Digital Technologies","Media and Content",{"$f":"COUNTIF(TARS_List3[Programme],TARS_List2_Heat2_2[[#This Row],[Programme]])/CntCriteria","v":4},{"$f":"CntCriteria*TARS_List2_Heat2_2[[#This Row],[No. of Subprogrammes]]*4","v":240},{"$f":"SUMIFS(TARS_List3[Score],TARS_List3[Programme No.],TARS_List2_Heat2_2[[#This Row],[Programme No.]])","v":0},{"$f":"IFERROR(TARS_List2_Heat2_2[[#This Row],[Score]]/TARS_List2_Heat2_2[[#This Row],[Max]]*100,0)","v":0},{"$f":"SUMPRODUCT(--(TARS_List3[Programme]=TARS_List2_Heat2_2[[#This Row],[Programme]]),--(TARS_List3[Score]=DG$3003))","v":0},{"$f":"SUMPRODUCT(--(TARS_List3[Programme]=TARS_List2_Heat2_2[[#This Row],[Programme]]),--(TARS_List3[Score]=DH$3003))","v":0},{"$f":"SUMPRODUCT(--(TARS_List3[Programme]=TARS_List2_Heat2_2[[#This Row],[Programme]]),--(TARS_List3[Score]=DI$3003))","v":0},{"$f":"SUMPRODUCT(--(TARS_List3[Programme]=TARS_List2_Heat2_2[[#This Row],[Programme]]),--(TARS_List3[Score]=DJ$3003))","v":0}]
[null,null,null,null,null,null,null,null,null,null,null,null,null,null,null,null,null,null,null,null,null,null,null,null,null,null,null,null,null,null,null,null,null,null,null,null,null,null,null,null,null,null,null,null,null,null,null,null,null,null,null,null,null,null,null,null,null,null,"1.4 Functional duplication","Assesses the extent to which the subprogramme duplicates other functions or services in government.","Duplicates existing functions in other entities.","Some overlaps; coordination is unclear.","Limited duplication; some synergy possible.","No duplication; unique and complementary.",null,null,null,null,null,null,null,null,null,null,"30","01","04","Communications and Digital Technologies","Administration","Financial Management",null,null,null,null,null,null,30,4,"Communications and Digital Technologies","Digital Communication, Access and Services",{"$f":"COUNTIF(TARS_List3[Programme],TARS_List2_Heat1_2[[#This Row],[Programme]])/CntCriteria","v":4},{"$f":"CntCriteria*TARS_List2_Heat1_2[[#This Row],[No. of Subprogrammes]]*4","v":240},{"$f":"ROUND(IF($E$1=\"\",SUMIFS(TARS_List3[Score],TARS_List3[Programme No.],TARS_List2_Heat1_2[[#This Row],[Programme No.]]),SUMIFS(TARS_List3[Score],TARS_List3[Programme No.],TARS_List2_Heat1_2[[#This Row],[Programme No.]],TARS_List3[Group],$E$1)),1)","v":0},{"$f":"IFERROR(TARS_List2_Heat1_2[[#This Row],[Score]]/TARS_List2_Heat1_2[[#This Row],[Max]],0)","v":0},{"$f":"(SUMIFS(TARS_List3[Score],TARS_List3[Programme],TARS_List2_Heat1_2[[#This Row],[Programme]],TARS_List3[Score],CQ$3003)/CQ$3003)/TARS_List2_Heat1_2[[#This Row],[No. of Subprogrammes]]/CntCriteria","v":0},{"$f":"(SUMIFS(TARS_List3[Score],TARS_List3[Programme],TARS_List2_Heat1_2[[#This Row],[Programme]],TARS_List3[Score],CR$3003)/CR$3003)/TARS_List2_Heat1_2[[#This Row],[No. of Subprogrammes]]/CntCriteria","v":0},{"$f":"(SUMIFS(TARS_List3[Score],TARS_List3[Programme],TARS_List2_Heat1_2[[#This Row],[Programme]],TARS_List3[Score],CS$3003)/CS$3003)/TARS_List2_Heat1_2[[#This Row],[No. of Subprogrammes]]/CntCriteria","v":0},{"$f":"(SUMIFS(TARS_List3[Score],TARS_List3[Programme],TARS_List2_Heat1_2[[#This Row],[Programme]],TARS_List3[Score],CT$3003)/CT$3003)/TARS_List2_Heat1_2[[#This Row],[No. of Subprogrammes]]/CntCriteria","v":0},null,null,null,null,30,4,"Communications and Digital Technologies","Digital Communication, Access and Services",{"$f":"COUNTIF(TARS_List3[Programme],TARS_List2_Heat2_2[[#This Row],[Programme]])/CntCriteria","v":4},{"$f":"CntCriteria*TARS_List2_Heat2_2[[#This Row],[No. of Subprogrammes]]*4","v":240},{"$f":"SUMIFS(TARS_List3[Score],TARS_List3[Programme No.],TARS_List2_Heat2_2[[#This Row],[Programme No.]])","v":0},{"$f":"IFERROR(TARS_List2_Heat2_2[[#This Row],[Score]]/TARS_List2_Heat2_2[[#This Row],[Max]]*100,0)","v":0},{"$f":"SUMPRODUCT(--(TARS_List3[Programme]=TARS_List2_Heat2_2[[#This Row],[Programme]]),--(TARS_List3[Score]=DG$3003))","v":0},{"$f":"SUMPRODUCT(--(TARS_List3[Programme]=TARS_List2_Heat2_2[[#This Row],[Programme]]),--(TARS_List3[Score]=DH$3003))","v":0},{"$f":"SUMPRODUCT(--(TARS_List3[Programme]=TARS_List2_Heat2_2[[#This Row],[Programme]]),--(TARS_List3[Score]=DI$3003))","v":0},{"$f":"SUMPRODUCT(--(TARS_List3[Programme]=TARS_List2_Heat2_2[[#This Row],[Programme]]),--(TARS_List3[Score]=DJ$3003))","v":0}]
[null,null,null,null,null,null,null,null,null,null,null,null,null,null,null,null,null,null,null,null,null,null,null,null,null,null,null,null,null,null,null,null,null,null,null,null,null,null,null,null,null,null,null,null,null,null,null,null,null,null,null,null,null,null,null,null,null,"2. Performance and effectiveness","2.1 Delivery of outputs","Evaluates whether the subprogramme consistently produces its intended deliverables.","Very low or no outputs delivered.","Inconsistent or poor delivery of outputs.","Mostly delivers expected outputs.","Delivers outputs efficiently and consistently.","Performance information, administrative data, monitoring and evaluation reports",null,null,null,null,null,null,null,null,null,"30","01","05","Communications and Digital Technologies","Administration","Office Accommodation",null,null,null,null,null,null,30,5,"Communications and Digital Technologies","Digital Infrastructure and Technologies",{"$f":"COUNTIF(TARS_List3[Programme],TARS_List2_Heat1_2[[#This Row],[Programme]])/CntCriteria","v":3},{"$f":"CntCriteria*TARS_List2_Heat1_2[[#This Row],[No. of Subprogrammes]]*4","v":180},{"$f":"ROUND(IF($E$1=\"\",SUMIFS(TARS_List3[Score],TARS_List3[Programme No.],TARS_List2_Heat1_2[[#This Row],[Programme No.]]),SUMIFS(TARS_List3[Score],TARS_List3[Programme No.],TARS_List2_Heat1_2[[#This Row],[Programme No.]],TARS_List3[Group],$E$1)),1)","v":0},{"$f":"IFERROR(TARS_List2_Heat1_2[[#This Row],[Score]]/TARS_List2_Heat1_2[[#This Row],[Max]],0)","v":0},{"$f":"(SUMIFS(TARS_List3[Score],TARS_List3[Programme],TARS_List2_Heat1_2[[#This Row],[Programme]],TARS_List3[Score],CQ$3003)/CQ$3003)/TARS_List2_Heat1_2[[#This Row],[No. of Subprogrammes]]/CntCriteria","v":0},{"$f":"(SUMIFS(TARS_List3[Score],TARS_List3[Programme],TARS_List2_Heat1_2[[#This Row],[Programme]],TARS_List3[Score],CR$3003)/CR$3003)/TARS_List2_Heat1_2[[#This Row],[No. of Subprogrammes]]/CntCriteria","v":0},{"$f":"(SUMIFS(TARS_List3[Score],TARS_List3[Programme],TARS_List2_Heat1_2[[#This Row],[Programme]],TARS_List3[Score],CS$3003)/CS$3003)/TARS_List2_Heat1_2[[#This Row],[No. of Subprogrammes]]/CntCriteria","v":0},{"$f":"(SUMIFS(TARS_List3[Score],TARS_List3[Programme],TARS_List2_Heat1_2[[#This Row],[Programme]],TARS_List3[Score],CT$3003)/CT$3003)/TARS_List2_Heat1_2[[#This Row],[No. of Subprogrammes]]/CntCriteria","v":0},null,null,null,null,30,5,"Communications and Digital Technologies","Digital Infrastructure and Technologies",{"$f":"COUNTIF(TARS_List3[Programme],TARS_List2_Heat2_2[[#This Row],[Programme]])/CntCriteria","v":3},{"$f":"CntCriteria*TARS_List2_Heat2_2[[#This Row],[No. of Subprogrammes]]*4","v":180},{"$f":"SUMIFS(TARS_List3[Score],TARS_List3[Programme No.],TARS_List2_Heat2_2[[#This Row],[Programme No.]])","v":0},{"$f":"IFERROR(TARS_List2_Heat2_2[[#This Row],[Score]]/TARS_List2_Heat2_2[[#This Row],[Max]]*100,0)","v":0},{"$f":"SUMPRODUCT(--(TARS_List3[Programme]=TARS_List2_Heat2_2[[#This Row],[Programme]]),--(TARS_List3[Score]=DG$3003))","v":0},{"$f":"SUMPRODUCT(--(TARS_List3[Programme]=TARS_List2_Heat2_2[[#This Row],[Programme]]),--(TARS_List3[Score]=DH$3003))","v":0},{"$f":"SUMPRODUCT(--(TARS_List3[Programme]=TARS_List2_Heat2_2[[#This Row],[Programme]]),--(TARS_List3[Score]=DI$3003))","v":0},{"$f":"SUMPRODUCT(--(TARS_List3[Programme]=TARS_List2_Heat2_2[[#This Row],[Programme]]),--(TARS_List3[Score]=DJ$3003))","v":0}]
[null,null,null,null,null,null,null,null,null,null,null,null,null,null,null,null,null,null,null,null,null,null,null,null,null,null,null,null,null,null,null,null,null,null,null,null,null,null,null,null,null,null,null,null,null,null,null,null,null,null,null,null,null,null,null,null,null,null,"2.2 Achievement of outcomes","Measures the extent to which the subprogramme contributes to the desired change or impact.","No evidence of outcome achievement.","Minimal or indirect contribution to outcomes.","Some contribution; outcome indicators present.","Strong evidence of achieving targeted outcomes.",null,null,null,null,null,null,null,null,null,null,"30","02","01","Communications and Digital Technologies","ICT Transformation, Global Partnerships and State-Owned Enterprises Governance","Programme Management for ICT Transformation, Global Partnerships and State-Owned Enterprises Governance",null,null,null,null,null,null,30,6,"Communications and Digital Technologies","Digital Society and Economy",{"$f":"COUNTIF(TARS_List3[Programme],TARS_List2_Heat1_2[[#This Row],[Programme]])/CntCriteria","v":2},{"$f":"CntCriteria*TARS_List2_Heat1_2[[#This Row],[No. of Subprogrammes]]*4","v":120},{"$f":"ROUND(IF($E$1=\"\",SUMIFS(TARS_List3[Score],TARS_List3[Programme No.],TARS_List2_Heat1_2[[#This Row],[Programme No.]]),SUMIFS(TARS_List3[Score],TARS_List3[Programme No.],TARS_List2_Heat1_2[[#This Row],[Programme No.]],TARS_List3[Group],$E$1)),1)","v":0},{"$f":"IFERROR(TARS_List2_Heat1_2[[#This Row],[Score]]/TARS_List2_Heat1_2[[#This Row],[Max]],0)","v":0},{"$f":"(SUMIFS(TARS_List3[Score],TARS_List3[Programme],TARS_List2_Heat1_2[[#This Row],[Programme]],TARS_List3[Score],CQ$3003)/CQ$3003)/TARS_List2_Heat1_2[[#This Row],[No. of Subprogrammes]]/CntCriteria","v":0},{"$f":"(SUMIFS(TARS_List3[Score],TARS_List3[Programme],TARS_List2_Heat1_2[[#This Row],[Programme]],TARS_List3[Score],CR$3003)/CR$3003)/TARS_List2_Heat1_2[[#This Row],[No. of Subprogrammes]]/CntCriteria","v":0},{"$f":"(SUMIFS(TARS_List3[Score],TARS_List3[Programme],TARS_List2_Heat1_2[[#This Row],[Programme]],TARS_List3[Score],CS$3003)/CS$3003)/TARS_List2_Heat1_2[[#This Row],[No. of Subprogrammes]]/CntCriteria","v":0},{"$f":"(SUMIFS(TARS_List3[Score],TARS_List3[Programme],TARS_List2_Heat1_2[[#This Row],[Programme]],TARS_List3[Score],CT$3003)/CT$3003)/TARS_List2_Heat1_2[[#This Row],[No. of Subprogrammes]]/CntCriteria","v":0},null,null,null,null,30,6,"Communications and Digital Technologies","Digital Society and Economy",{"$f":"COUNTIF(TARS_List3[Programme],TARS_List2_Heat2_2[[#This Row],[Programme]])/CntCriteria","v":2},{"$f":"CntCriteria*TARS_List2_Heat2_2[[#This Row],[No. of Subprogrammes]]*4","v":120},{"$f":"SUMIFS(TARS_List3[Score],TARS_List3[Programme No.],TARS_List2_Heat2_2[[#This Row],[Programme No.]])","v":0},{"$f":"IFERROR(TARS_List2_Heat2_2[[#This Row],[Score]]/TARS_List2_Heat2_2[[#This Row],[Max]]*100,0)","v":0},{"$f":"SUMPRODUCT(--(TARS_List3[Programme]=TARS_List2_Heat2_2[[#This Row],[Programme]]),--(TARS_List3[Score]=DG$3003))","v":0},{"$f":"SUMPRODUCT(--(TARS_List3[Programme]=TARS_List2_Heat2_2[[#This Row],[Programme]]),--(TARS_List3[Score]=DH$3003))","v":0},{"$f":"SUMPRODUCT(--(TARS_List3[Programme]=TARS_List2_Heat2_2[[#This Row],[Programme]]),--(TARS_List3[Score]=DI$3003))","v":0},{"$f":"SUMPRODUCT(--(TARS_List3[Programme]=TARS_List2_Heat2_2[[#This Row],[Programme]]),--(TARS_List3[Score]=DJ$3003))","v":0}]
[null,null,null,null,null,null,null,null,null,null,null,null,null,null,null,null,null,null,null,null,null,null,null,null,null,null,null,null,null,null,null,null,null,null,null,null,null,null,null,null,null,null,null,null,null,null,null,null,null,null,null,null,null,null,null,null,null,null,"2.3 Responsiveness to need","Assesses whether the subprogramme is addressing a real, current, and well-defined public or sectoral need.","No identifiable or outdated need addressed.","Weak alignment to needs; limited relevance.","Aligned to sector needs; moderate relevance.","High relevance and responsiveness to urgent needs.",null,null,null,null,null,null,null,null,null,null,"30","02","02","Communications and Digital Technologies","ICT Transformation, Global Partnerships and State-Owned Enterprises Governance","International Relations, Partnerships and Stakeholder Management"]
[null,null,null,null,null,null,null,null,null,null,null,null,null,null,null,null,null,null,null,null,null,null,null,null,null,null,null,null,null,null,null,null,null,null,null,null,null,null,null,null,null,null,null,null,null,null,null,null,null,null,null,null,null,null,null,null,null,"3. Efficiency and delivery model","3.1 Resource use efficiency","Examines whether the subprogramme uses financial, human, and capital resources effectively.","Wasteful or inefficient use of resources.","Some inefficiencies and resource misallocation.","Reasonably efficient with manageable waste.","Highly efficient with optimal resource use.","Expenditure data (BAS, LOGIS), administrative data, performance data",null,null,null,null,null,null,null,null,null,"30","02","03","Communications and Digital Technologies","ICT Transformation, Global Partnerships and State-Owned Enterprises Governance","State-Owned Enterprise Governance and Investment Management"]
[null,null,null,null,null,null,null,null,null,null,null,null,null,null,null,null,null,null,null,null,null,null,null,null,null,null,null,null,null,null,null,null,null,null,null,null,null,null,null,null,null,null,null,null,null,null,null,null,null,null,null,null,null,null,null,null,null,null,"3.2 Staffing and administrative overheads","Evaluates the ratio of administrative and personnel costs relative to service delivery.","Overheads far exceed acceptable levels.","High overheads; delivery impact is diluted.","Balanced overheads; room for improvement.","Lean and efficient administrative cost structure.",null,null,null,null,null,null,null,null,null,null,"30","02","04","Communications and Digital Technologies","ICT Transformation, Global Partnerships and State-Owned Enterprises Governance","ICT Sector Transformation Programmes"]
[null,null,null,null,null,null,null,null,null,null,null,null,null,null,null,null,null,null,null,null,null,null,null,null,null,null,null,null,null,null,null,null,null,null,null,null,null,null,null,null,null,null,null,null,null,null,null,null,null,null,null,null,null,null,null,null,null,null,"3.3 Delivery model appropriateness","Assesses whether the delivery mechanism (e.g. in-house, outsourced, partnership) is well-suited to achieving results.","Poorly suited delivery model; high risk.","Suboptimal model; lacks innovation or scale.","Reasonable model; can be improved.","Well-designed and fit-for-purpose delivery model.",null,null,null,null,null,null,null,null,null,null,"30","03","01","Communications and Digital Technologies","Media and Content","Programme Management for Media and Content"]
[null,null,null,null,null,null,null,null,null,null,null,null,null,null,null,null,null,null,null,null,null,null,null,null,null,null,null,null,null,null,null,null,null,null,null,null,null,null,null,null,null,null,null,null,null,null,null,null,null,null,null,null,null,null,null,null,null,null,"3.4 Cost per output","Measures the unit cost of producing an output compared to benchmarks or past performance.","Cost per output is excessive or unknown.","Higher than acceptable cost with inefficiencies.","Within range, some room for cost reduction.","Low cost per output; good value for money.",null,null,null,null,null,null,null,null,null,null,"30","03","02","Communications and Digital Technologies","Media and Content","Content Classification and Online Safety"]
[null,null,null,null,null,null,null,null,null,null,null,null,null,null,null,null,null,null,null,null,null,null,null,null,null,null,null,null,null,null,null,null,null,null,null,null,null,null,null,null,null,null,null,null,null,null,null,null,null,null,null,null,null,null,null,null,null,null,"3.5 Institutional capacity","Assesses whether the department has the necessary systems, structures, staffing, and skills to implement the subprogramme effectively and manage delivery at scale.","Major capacity gaps; delivery is severely hindered.","Limited capacity; delivery is inconsistent.","Adequate capacity with minor constraints.","Strong capacity; well-resourced and effectively managed.",null,null,null,null,null,null,null,null,null,null,"30","03","03","Communications and Digital Technologies","Media and Content","Public and Community Media Services"]
[null,null,null,null,null,null,null,null,null,null,null,null,null,null,null,null,null,null,null,null,null,null,null,null,null,null,null,null,null,null,null,null,null,null,null,null,null,null,null,null,null,null,null,null,null,null,null,null,null,null,null,null,null,null,null,null,null,"4. Financial sustainability and external leverage","4.1 Budget discipline","Assesses adherence to budgets, including under/overspending, virements, and compliance.","Frequent overspending or misuse of funds.","Irregularities in budget execution.","Generally within budget; few adjustments.","Strong budget discipline and forecasting.","Expenditure data (BAS, LOGIS), administrative data, performance data",null,null,null,null,null,null,null,null,null,"30","03","04","Communications and Digital Technologies","Media and Content","Audio-Visual and Digital Media Industry Support and Services"]
[null,null,null,null,null,null,null,null,null,null,null,null,null,null,null,null,null,null,null,null,null,null,null,null,null,null,null,null,null,null,null,null,null,null,null,null,null,null,null,null,null,null,null,null,null,null,null,null,null,null,null,null,null,null,null,null,null,null,"4.2 Medium-term affordability","Evaluates if the subprogramme is affordable over the MTEF without causing future fiscal strain.","Not affordable; creates unfunded pressures.","Likely to become unsustainable.","Mostly affordable with some risk.","Fully affordable and fiscally sound.",null,null,null,null,null,null,null,null,null,null,"30","04","01","Communications and Digital Technologies","Digital Communication, Access and Services","Programme Management for Digital Communication, Access and Services"]
[null,null,null,null,null,null,null,null,null,null,null,null,null,null,null,null,null,null,null,null,null,null,null,null,null,null,null,null,null,null,null,null,null,null,null,null,null,null,null,null,null,null,null,null,null,null,null,null,null,null,null,null,null,null,null,null,null,null,"4.3 External funding potential","Assesses whether the subprogramme can attract donor, private, or partner funding to reduce fiscal burden.","No potential for external funding.","Minimal or uncertain funding interest.","Some interest; conditional opportunities exist.","Strong likelihood of attracting external support.",null,null,null,null,null,null,null,null,null,null,"30","04","02","Communications and Digital Technologies","Digital Communication, Access and Services","Regulatory Compliance"]
[null,null,null,null,null,null,null,null,null,null,null,null,null,null,null,null,null,null,null,null,null,null,null,null,null,null,null,null,null,null,null,null,null,null,null,null,null,null,null,null,null,null,null,null,null,null,null,null,null,null,null,null,null,null,null,null,null,null,null,null,null,null,null,null,null,null,null,null,null,null,null,null,null,null,"30","04","03","Communications and Digital Technologies","Digital Communication, Access and Services","Digital and Postal Access and Service"]
[null,null,null,null,null,null,null,null,null,null,null,null,null,null,null,null,null,null,null,null,null,null,null,null,null,null,null,null,null,null,null,null,null,null,null,null,null,null,null,null,null,null,null,null,null,null,null,null,null,null,null,null,null,null,null,null,null,null,null,null,null,null,null,null,null,null,null,null,null,null,null,null,null,null,"30","04","04","Communications and Digital Technologies","Digital Communication, Access and Services","Digital Enterprise Development and Small, Medium and Micro Enterprise Support"]
[null,null,null,null,null,null,null,null,null,null,null,null,null,null,null,null,null,null,null,null,null,null,null,null,null,null,null,null,null,null,null,null,null,null,null,null,null,null,null,null,null,null,null,null,null,null,null,null,null,null,null,null,null,null,null,null,null,null,null,null,null,null,null,null,null,null,null,null,null,null,null,null,null,null,"30","05","01","Communications and Digital Technologies","Digital Infrastructure and Technologies","Programme Management for Digital Infrastructure and Technologies"]
[null,null,null,null,null,null,null,null,null,null,null,null,null,null,null,null,null,null,null,null,null,null,null,null,null,null,null,null,null,null,null,null,null,null,null,null,null,null,null,null,null,null,null,null,null,null,null,null,null,null,null,null,null,null,null,null,null,"Groups","Explanatory note",null,null,null,null,null,null,null,null,null,null,null,null,null,null,null,"30","05","02","Communications and Digital Technologies","Digital Infrastructure and Technologies","Broadband"]
[null,null,null,null,null,null,null,null,null,null,null,null,null,null,null,null,null,null,null,null,null,null,null,null,null,null,null,null,null,null,null,null,null,null,null,null,null,null,null,null,null,null,null,null,null,null,null,null,null,null,null,null,null,null,null,null,null,"1. Legal Mandate and Strategic Alignment","Evaluates whether the subprogramme is legally required, fits the department’s core mandate, and aligns with national and sectoral priorities. This ensures that programmes are not only lawful but also strategically relevant to government’s objectives.",null,null,null,null,null,null,null,null,null,null,null,null,null,null,null,"30","05","03","Communications and Digital Technologies","Digital Infrastructure and Technologies","Digital Infrastructure and Broadcasting Technologies"]
[null,null,null,null,null,null,null,null,null,null,null,null,null,null,null,null,null,null,null,null,null,null,null,null,null,null,null,null,null,null,null,null,null,null,null,null,null,null,null,null,null,null,null,null,null,null,null,null,null,null,null,null,null,null,null,null,null,"2. Performance and Effectiveness","Assesses the subprogramme’s ability to deliver results and whether it effectively responds to public needs.",null,null,null,null,null,null,null,null,null,null,null,null,null,null,null,"30","06","01","Communications and Digital Technologies","Digital Society and Economy","Programme Management for Digital Society and Economy"]
[null,null,null,null,null,null,null,null,null,null,null,null,null,null,null,null,null,null,null,null,null,null,null,null,null,null,null,null,null,null,null,null,null,null,null,null,null,null,null,null,null,null,null,null,null,null,null,null,null,null,null,null,null,null,null,null,null,"3. Efficiency and Delivery Model","Measures how well the subprogramme uses resources by evaluating its cost-efficiency, administrative overheads, and whether the delivery approach is appropriate and optimally designed for achieving results.",null,null,null,null,null,null,null,null,null,null,null,null,null,null,null,"30","06","02","Communications and Digital Technologies","Digital Society and Economy","Digital Society and Economy"]
[null,null,null,null,null,null,null,null,null,null,null,null,null,null,null,null,null,null,null,null,null,null,null,null,null,null,null,null,null,null,null,null,null,null,null,null,null,null,null,null,null,null,null,null,null,null,null,null,null,null,null,null,null,null,null,null,null,"4. Financial Sustainability and External Leverage","Reviews the subprogramme’s financial viability over the medium term and its ability to maintain budget discipline, remain affordable, and attract external funding or partnerships to complement public resources."]

{"sheet":"Component Assessment Matrix","index":12,"n_rows":3086,"n_cols":120,"rows_kept":3086,"cut":false,"hidden":false,"merged":[[0,1,0,6],[1,1,1,3]]}
[null,"Component Assessment Matrix",null,null,null,null,null,null,null,null,null,"Component list"]
[null,"See Matrix Help Notes",null,null,null,null,null,null,null,null,null,"Component","Programme","Subprogramme"]
[null,null,null,null,null,null,null,null,null,null,null,null,null,null,{"$f":"IFERROR(OFFSET($CM$3059,0,MATCH(M3,$CN$3060:$CW$3060,0)),\"\")","v":""}]
[null,"Vote No.","Comp No.","Department","Programme","Component","Score",null,null,null,null,null,null,null,""]
[null,null,1,null,null,null,{"$f":"SUMIFS(TARS_List_SpecItems_List237[Pct],TARS_List_SpecItems_List237[Component],TARS_List_SpecItems_List2_Summary[[#This Row],[Component]])","v":0},null,null,null,null,null,null,null,""]
[null,null,null,null,null,null,null,null,null,null,null,null,null,null,""]
[null,null,null,null,null,null,null,null,null,null,null,null,null,null,""]
[null,null,null,null,null,null,null,null,null,null,null,null,null,null,""]
[null,null,null,null,null,null,null,null,null,null,null,null,null,null,""]
[null,null,null,null,null,null,null,null,null,null,null,null,null,null,""]
[null,null,null,null,null,null,null,null,null,null,null,null,null,null,""]
[null,null,null,null,null,null,null,null,null,null,null,null,null,null,""]
[]
[]
[]
[]
[]
[]
[]
[null,null,null,null,null,null,null,null,null,"Vote No.","Programme No.","Department","Programme","Subprogramme","Component","Item","Group","Criterion","Rating 1","Rating 2","Rating 3","Rating 4","Score","Index"]
[null,null,null,null,null,null,null,null,null,null,null,null,null,null,null,null,null,null,null,null,null,null,null,null,null,{"$f":"ROUND(RAND()*16,0)","v":2},{"$f":"IF(MROUND(Z21,4)>4,MROUND(Z21,4)/4,1)","v":1}]
[null,null,null,null,null,null,null,null,null,null,null,null,null,null,null,null,null,null,null,null,null,null,null,null,null,13,{"$f":"IF(MROUND(Z22,4)>4,MROUND(Z22,4)/4,1)","v":3}]
[null,null,null,null,null,null,null,null,null,null,null,null,null,null,null,null,null,null,null,null,null,null,null,null,null,16,4]
[null,null,null,null,null,null,null,null,null,null,null,null,null,null,null,null,null,null,null,null,null,null,null,null,null,11,3]
[null,null,null,null,null,null,null,null,null,null,null,null,null,null,null,null,null,null,null,null,null,null,null,null,null,14,4]
[null,null,null,null,null,null,null,null,null,null,null,null,null,null,null,null,null,null,null,null,null,null,null,null,null,11,3]
[null,null,null,null,null,null,null,null,null,null,null,null,null,null,null,null,null,null,null,null,null,null,null,null,null,11,3]
[null,null,null,null,null,null,null,null,null,null,null,null,null,null,null,null,null,null,null,null,null,null,null,null,null,9,2]
[null,null,null,null,null,null,null,null,null,null,null,null,null,null,null,null,null,null,null,null,null,null,null,null,null,8,2]
[null,null,null,null,null,null,null,null,null,null,null,null,null,null,null,null,null,null,null,null,null,null,null,null,null,14,4]
[null,null,null,null,null,null,null,null,null,null,null,null,null,null,null,null,null,null,null,null,null,null,null,null,null,7,2]
[null,null,null,null,null,null,null,null,null,null,null,null,null,null,null,null,null,null,null,null,null,null,null,null,null,13,3]
[null,null,null,null,null,null,null,null,null,null,null,null,null,null,null,null,null,null,null,null,null,null,null,null,null,9,2]
[null,null,null,null,null,null,null,null,null,null,null,null,null,null,null,null,null,null,null,null,null,null,null,null,null,13,3]
[null,null,null,null,null,null,null,null,null,null,null,null,null,null,null,null,null,null,null,null,null,null,null,null,null,3,1]
[null,null,null,null,null,null,null,null,null,null,null,null,null,null,null,null,null,null,null,null,null,null,null,null,null,14,4]
[null,null,null,null,null,null,null,null,null,null,null,null,null,null,null,null,null,null,null,null,null,null,null,null,null,2,1]
[null,null,null,null,null,null,null,null,null,null,null,null,null,null,null,null,null,null,null,null,null,null,null,null,null,2,1]
[null,null,null,null,null,null,null,null,null,null,null,null,null,null,null,null,null,null,null,null,null,null,null,null,null,13,3]
[null,null,null,null,null,null,null,null,null,null,null,null,null,null,null,null,null,null,null,null,null,null,null,null,null,15,4]
[null,null,null,null,null,null,null,null,null,null,null,null,null,null,null,null,null,null,null,null,null,null,null,null,null,12,3]
[null,null,null,null,null,null,null,null,null,null,null,null,null,null,null,null,null,null,null,null,null,null,null,null,null,11,3]
[null,null,null,null,null,null,null,null,null,null,null,null,null,null,null,null,null,null,null,null,null,null,null,null,null,13,3]
[null,null,null,null,null,null,null,null,null,null,null,null,null,null,null,null,null,null,null,null,null,null,null,null,null,14,4]
[null,null,null,null,null,null,null,null,null,null,null,null,null,null,null,null,null,null,null,null,null,null,null,null,null,12,3]
[null,null,null,null,null,null,null,null,null,null,null,null,null,null,null,null,null,null,null,null,null,null,null,null,null,13,3]
[null,null,null,null,null,null,null,null,null,null,null,null,null,null,null,null,null,null,null,null,null,null,null,null,null,12,3]
[null,null,null,null,null,null,null,null,null,null,null,null,null,null,null,null,null,null,null,null,null,null,null,null,null,4,1]
[null,null,null,null,null,null,null,null,null,null,null,null,null,null,null,null,null,null,null,null,null,null,null,null,null,3,1]
[null,null,null,null,null,null,null,null,null,null,null,null,null,null,null,null,null,null,null,null,null,null,null,null,null,1,1]
[null,null,null,null,null,null,null,null,null,null,null,null,null,null,null,null,null,null,null,null,null,null,null,null,null,2,1]
[null,null,null,null,null,null,null,null,null,null,null,null,null,null,null,null,null,null,null,null,null,null,null,null,null,4,1]
[null,null,null,null,null,null,null,null,null,null,null,null,null,null,null,null,null,null,null,null,null,null,null,null,null,15,4]
[null,null,null,null,null,null,null,null,null,null,null,null,null,null,null,null,null,null,null,null,null,null,null,null,null,4,1]
[null,null,null,null,null,null,null,null,null,null,null,null,null,null,null,null,null,null,null,null,null,null,null,null,null,15,4]
[null,null,null,null,null,null,null,null,null,null,null,null,null,null,null,null,null,null,null,null,null,null,null,null,null,12,3]
[null,null,null,null,null,null,null,null,null,null,null,null,null,null,null,null,null,null,null,null,null,null,null,null,null,15,4]
[null,null,null,null,null,null,null,null,null,null,null,null,null,null,null,null,null,null,null,null,null,null,null,null,null,14,4]
[null,null,null,null,null,null,null,null,null,null,null,null,null,null,null,null,null,null,null,null,null,null,null,null,null,13,3]
[null,null,null,null,null,null,null,null,null,null,null,null,null,null,null,null,null,null,null,null,null,null,null,null,null,14,4]
[null,null,null,null,null,null,null,null,null,null,null,null,null,null,null,null,null,null,null,null,null,null,null,null,null,14,4]
[null,null,null,null,null,null,null,null,null,null,null,null,null,null,null,null,null,null,null,null,null,null,null,null,null,12,3]
[null,null,null,null,null,null,null,null,null,null,null,null,null,null,null,null,null,null,null,null,null,null,null,null,null,1,1]
[null,null,null,null,null,null,null,null,null,null,null,null,null,null,null,null,null,null,null,null,null,null,null,null,null,4,1]
[null,null,null,null,null,null,null,null,null,null,null,null,null,null,null,null,null,null,null,null,null,null,null,null,null,13,3]
[null,null,null,null,null,null,null,null,null,null,null,null,null,null,null,null,null,null,null,null,null,null,null,null,null,9,2]
[null,null,null,null,null,null,null,null,null,null,null,null,null,null,null,null,null,null,null,null,null,null,null,null,null,11,3]
[null,null,null,null,null,null,null,null,null,null,null,null,null,null,null,null,null,null,null,null,null,null,null,null,null,8,2]
[null,null,null,null,null,null,null,null,null,null,null,null,null,null,null,null,null,null,null,null,null,null,null,null,null,3,1]
[null,null,null,null,null,null,null,null,null,null,null,null,null,null,null,null,null,null,null,null,null,null,null,null,null,12,3]
[null,null,null,null,null,null,null,null,null,null,null,null,null,null,null,null,null,null,null,null,null,null,null,null,null,6,2]
[null,null,null,null,null,null,null,null,null,null,null,null,null,null,null,null,null,null,null,null,null,null,null,null,null,6,2]
[null,null,null,null,null,null,null,null,null,null,null,null,null,null,null,null,null,null,null,null,null,null,null,null,null,14,4]
[null,null,null,null,null,null,null,null,null,null,null,null,null,null,null,null,null,null,null,null,null,null,null,null,null,2,1]
[null,null,null,null,null,null,null,null,null,null,null,null,null,null,null,null,null,null,null,null,null,null,null,null,null,15,4]
[null,null,null,null,null,null,null,null,null,null,null,null,null,null,null,null,null,null,null,null,null,null,null,null,null,8,2]
[null,null,null,null,null,null,null,null,null,null,null,null,null,null,null,null,null,null,null,null,null,null,null,null,null,10,3]
[null,null,null,null,null,null,null,null,null,null,null,null,null,null,null,null,null,null,null,null,null,null,null,null,null,9,2]
[null,null,null,null,null,null,null,null,null,null,null,null,null,null,null,null,null,null,null,null,null,null,null,null,null,5,1]
[null,null,null,null,null,null,null,null,null,null,null,null,null,null,null,null,null,null,null,null,null,null,null,null,null,7,2]
[null,null,null,null,null,null,null,null,null,null,null,null,null,null,null,null,null,null,null,null,null,null,null,null,null,13,3]
[null,null,null,null,null,null,null,null,null,null,null,null,null,null,null,null,null,null,null,null,null,null,null,null,null,1,1]
[null,null,null,null,null,null,null,null,null,null,null,null,null,null,null,null,null,null,null,null,null,null,null,null,null,7,2]
[null,null,null,null,null,null,null,null,null,null,null,null,null,null,null,null,null,null,null,null,null,null,null,null,null,{"$f":"ROUND(RAND()*16,0)","v":3},1]
[null,null,null,null,null,null,null,null,null,null,null,null,null,null,null,null,null,null,null,null,null,null,null,null,null,0,1]
[null,null,null,null,null,null,null,null,null,null,null,null,null,null,null,null,null,null,null,null,null,null,null,null,null,1,{"$f":"IF(MROUND(Z86,4)>4,MROUND(Z86,4)/4,1)","v":1}]
[null,null,null,null,null,null,null,null,null,null,null,null,null,null,null,null,null,null,null,null,null,null,null,null,null,4,1]
[null,null,null,null,null,null,null,null,null,null,null,null,null,null,null,null,null,null,null,null,null,null,null,null,null,13,3]
[null,null,null,null,null,null,null,null,null,null,null,null,null,null,null,null,null,null,null,null,null,null,null,null,null,9,2]
[null,null,null,null,null,null,null,null,null,null,null,null,null,null,null,null,null,null,null,null,null,null,null,null,null,6,2]
[null,null,null,null,null,null,null,null,null,null,null,null,null,null,null,null,null,null,null,null,null,null,null,null,null,6,2]
[null,null,null,null,null,null,null,null,null,null,null,null,null,null,null,null,null,null,null,null,null,null,null,null,null,1,1]
[null,null,null,null,null,null,null,null,null,null,null,null,null,null,null,null,null,null,null,null,null,null,null,null,null,14,4]
[null,null,null,null,null,null,null,null,null,null,null,null,null,null,null,null,null,null,null,null,null,null,null,null,null,2,1]
[null,null,null,null,null,null,null,null,null,null,null,null,null,null,null,null,null,null,null,null,null,null,null,null,null,10,3]
[null,null,null,null,null,null,null,null,null,null,null,null,null,null,null,null,null,null,null,null,null,null,null,null,null,null,null,{"$f":"ROUND(RAND()*16,0)","v":6},{"$f":"IF(MROUND(#REF!,4)>4,MROUND(#REF!,4)/4,1)","v":{"$error":"#REF!"}}]
[null,null,null,null,null,null,null,null,null,null,null,null,null,null,null,null,null,null,null,null,null,null,null,null,null,null,null,4,{"$f":"IF(MROUND(#REF!,4)>4,MROUND(#REF!,4)/4,1)","v":{"$error":"#REF!"}}]
[null,null,null,null,null,null,null,null,null,null,null,null,null,null,null,null,null,null,null,null,null,null,null,null,null,null,null,{"$f":"ROUND(RAND()*16,0)","v":12},{"$f":"IF(MROUND(#REF!,4)>4,MROUND(#REF!,4)/4,1)","v":{"$error":"#REF!"}}]
[null,null,null,null,null,null,null,null,null,null,null,null,null,null,null,null,null,null,null,null,null,null,null,null,null,null,null,10,{"$f":"IF(MROUND(#REF!,4)>4,MROUND(#REF!,4)/4,1)","v":{"$error":"#REF!"}}]
[null,null,null,null,null,null,null,null,null,null,null,null,null,null,null,null,null,null,null,null,null,null,null,null,null,null,null,5,{"$f":"IF(MROUND(#REF!,4)>4,MROUND(#REF!,4)/4,1)","v":{"$error":"#REF!"}}]
[null,null,null,null,null,null,null,null,null,null,null,null,null,null,null,null,null,null,null,null,null,null,null,null,null,null,null,14,{"$f":"IF(MROUND(#REF!,4)>4,MROUND(#REF!,4)/4,1)","v":{"$error":"#REF!"}}]
[null,null,null,null,null,null,null,null,null,null,null,null,null,null,null,null,null,null,null,null,null,null,null,null,null,null,null,9,{"$f":"IF(MROUND(#REF!,4)>4,MROUND(#REF!,4)/4,1)","v":{"$error":"#REF!"}}]
[null,null,null,null,null,null,null,null,null,null,null,null,null,null,null,null,null,null,null,null,null,null,null,null,null,null,null,3,{"$f":"IF(MROUND(#REF!,4)>4,MROUND(#REF!,4)/4,1)","v":{"$error":"#REF!"}}]
[null,null,null,null,null,null,null,null,null,null,null,null,null,null,null,null,null,null,null,null,null,null,null,null,null,null,null,1,{"$f":"IF(MROUND(#REF!,4)>4,MROUND(#REF!,4)/4,1)","v":{"$error":"#REF!"}}]
[null,null,null,null,null,null,null,null,null,null,null,null,null,null,null,null,null,null,null,null,null,null,null,null,null,null,null,13,{"$f":"IF(MROUND(#REF!,4)>4,MROUND(#REF!,4)/4,1)","v":{"$error":"#REF!"}}]
[null,null,null,null,null,null,null,null,null,null,null,null,null,null,null,null,null,null,null,null,null,null,null,null,null,null,null,15,{"$f":"IF(MROUND(#REF!,4)>4,MROUND(#REF!,4)/4,1)","v":{"$error":"#REF!"}}]
[null,null,null,null,null,null,null,null,null,null,null,null,null,null,null,null,null,null,null,null,null,null,null,null,null,null,null,10,{"$f":"IF(MROUND(#REF!,4)>4,MROUND(#REF!,4)/4,1)","v":{"$error":"#REF!"}}]
[null,null,null,null,null,null,null,null,null,null,null,null,null,null,null,null,null,null,null,null,null,null,null,null,null,null,null,0,{"$f":"IF(MROUND(#REF!,4)>4,MROUND(#REF!,4)/4,1)","v":{"$error":"#REF!"}}]
[null,null,null,null,null,null,null,null,null,null,null,null,null,null,null,null,null,null,null,null,null,null,null,null,null,null,null,14,{"$f":"IF(MROUND(#REF!,4)>4,MROUND(#REF!,4)/4,1)","v":{"$error":"#REF!"}}]
[null,null,null,null,null,null,null,null,null,null,null,null,null,null,null,null,null,null,null,null,null,null,null,null,null,null,null,10,{"$f":"IF(MROUND(#REF!,4)>4,MROUND(#REF!,4)/4,1)","v":{"$error":"#REF!"}}]
[null,null,null,null,null,null,null,null,null,null,null,null,null,null,null,null,null,null,null,null,null,null,null,null,null,null,null,3,{"$f":"IF(MROUND(#REF!,4)>4,MROUND(#REF!,4)/4,1)","v":{"$error":"#REF!"}}]
[null,null,null,null,null,null,null,null,null,null,null,null,null,null,null,null,null,null,null,null,null,null,null,null,null,null,null,3,{"$f":"IF(MROUND(#REF!,4)>4,MROUND(#REF!,4)/4,1)","v":{"$error":"#REF!"}}]
[null,null,null,null,null,null,null,null,null,null,null,null,null,null,null,null,null,null,null,null,null,null,null,null,null,null,null,15,{"$f":"IF(MROUND(#REF!,4)>4,MROUND(#REF!,4)/4,1)","v":{"$error":"#REF!"}}]
[null,null,null,null,null,null,null,null,null,null,null,null,null,null,null,null,null,null,null,null,null,null,null,null,null,null,null,2,{"$f":"IF(MROUND(#REF!,4)>4,MROUND(#REF!,4)/4,1)","v":{"$error":"#REF!"}}]
[null,null,null,null,null,null,null,null,null,null,null,null,null,null,null,null,null,null,null,null,null,null,null,null,null,null,null,12,{"$f":"IF(MROUND(#REF!,4)>4,MROUND(#REF!,4)/4,1)","v":{"$error":"#REF!"}}]
[null,null,null,null,null,null,null,null,null,null,null,null,null,null,null,null,null,null,null,null,null,null,null,null,null,null,null,12,{"$f":"IF(MROUND(#REF!,4)>4,MROUND(#REF!,4)/4,1)","v":{"$error":"#REF!"}}]
[null,null,null,null,null,null,null,null,null,null,null,null,null,null,null,null,null,null,null,null,null,null,null,null,null,null,null,7,{"$f":"IF(MROUND(#REF!,4)>4,MROUND(#REF!,4)/4,1)","v":{"$error":"#REF!"}}]
[null,null,null,null,null,null,null,null,null,null,null,null,null,null,null,null,null,null,null,null,null,null,null,null,null,null,null,2,{"$f":"IF(MROUND(#REF!,4)>4,MROUND(#REF!,4)/4,1)","v":{"$error":"#REF!"}}]
[null,null,null,null,null,null,null,null,null,null,null,null,null,null,null,null,null,null,null,null,null,null,null,null,null,null,null,10,{"$f":"IF(MROUND(#REF!,4)>4,MROUND(#REF!,4)/4,1)","v":{"$error":"#REF!"}}]
[null,null,null,null,null,null,null,null,null,null,null,null,null,null,null,null,null,null,null,null,null,null,null,null,null,null,null,1,{"$f":"IF(MROUND(#REF!,4)>4,MROUND(#REF!,4)/4,1)","v":{"$error":"#REF!"}}]
[null,null,null,null,null,null,null,null,null,null,null,null,null,null,null,null,null,null,null,null,null,null,null,null,null,null,null,15,{"$f":"IF(MROUND(#REF!,4)>4,MROUND(#REF!,4)/4,1)","v":{"$error":"#REF!"}}]
[null,null,null,null,null,null,null,null,null,null,null,null,null,null,null,null,null,null,null,null,null,null,null,null,null,null,null,12,{"$f":"IF(MROUND(#REF!,4)>4,MROUND(#REF!,4)/4,1)","v":{"$error":"#REF!"}}]
[null,null,null,null,null,null,null,null,null,null,null,null,null,null,null,null,null,null,null,null,null,null,null,null,null,null,null,1,{"$f":"IF(MROUND(#REF!,4)>4,MROUND(#REF!,4)/4,1)","v":{"$error":"#REF!"}}]
[null,null,null,null,null,null,null,null,null,null,null,null,null,null,null,null,null,null,null,null,null,null,null,null,null,null,null,3,{"$f":"IF(MROUND(#REF!,4)>4,MROUND(#REF!,4)/4,1)","v":{"$error":"#REF!"}}]
[null,null,null,null,null,null,null,null,null,null,null,null,null,null,null,null,null,null,null,null,null,null,null,null,null,null,null,9,{"$f":"IF(MROUND(#REF!,4)>4,MROUND(#REF!,4)/4,1)","v":{"$error":"#REF!"}}]
[null,null,null,null,null,null,null,null,null,null,null,null,null,null,null,null,null,null,null,null,null,null,null,null,null,null,null,8,{"$f":"IF(MROUND(#REF!,4)>4,MROUND(#REF!,4)/4,1)","v":{"$error":"#REF!"}}]
[null,null,null,null,null,null,null,null,null,null,null,null,null,null,null,null,null,null,null,null,null,null,null,null,null,null,null,14,{"$f":"IF(MROUND(#REF!,4)>4,MROUND(#REF!,4)/4,1)","v":{"$error":"#REF!"}}]
[null,null,null,null,null,null,null,null,null,null,null,null,null,null,null,null,null,null,null,null,null,null,null,null,null,null,null,8,{"$f":"IF(MROUND(#REF!,4)>4,MROUND(#REF!,4)/4,1)","v":{"$error":"#REF!"}}]
[null,null,null,null,null,null,null,null,null,null,null,null,null,null,null,null,null,null,null,null,null,null,null,null,null,null,null,0,{"$f":"IF(MROUND(#REF!,4)>4,MROUND(#REF!,4)/4,1)","v":{"$error":"#REF!"}}]
[null,null,null,null,null,null,null,null,null,null,null,null,null,null,null,null,null,null,null,null,null,null,null,null,null,null,null,6,{"$f":"IF(MROUND(#REF!,4)>4,MROUND(#REF!,4)/4,1)","v":{"$error":"#REF!"}}]
[null,null,null,null,null,null,null,null,null,null,null,null,null,null,null,null,null,null,null,null,null,null,null,null,null,null,null,13,{"$f":"IF(MROUND(#REF!,4)>4,MROUND(#REF!,4)/4,1)","v":{"$error":"#REF!"}}]
[null,null,null,null,null,null,null,null,null,null,null,null,null,null,null,null,null,null,null,null,null,null,null,null,null,null,null,7,{"$f":"IF(MROUND(#REF!,4)>4,MROUND(#REF!,4)/4,1)","v":{"$error":"#REF!"}}]
[null,null,null,null,null,null,null,null,null,null,null,null,null,null,null,null,null,null,null,null,null,null,null,null,null,null,null,16,{"$f":"IF(MROUND(#REF!,4)>4,MROUND(#REF!,4)/4,1)","v":{"$error":"#REF!"}}]
[null,null,null,null,null,null,null,null,null,null,null,null,null,null,null,null,null,null,null,null,null,null,null,null,null,null,null,5,{"$f":"IF(MROUND(#REF!,4)>4,MROUND(#REF!,4)/4,1)","v":{"$error":"#REF!"}}]
[null,null,null,null,null,null,null,null,null,null,null,null,null,null,null,null,null,null,null,null,null,null,null,null,null,null,null,6,{"$f":"IF(MROUND(#REF!,4)>4,MROUND(#REF!,4)/4,1)","v":{"$error":"#REF!"}}]
[null,null,null,null,null,null,null,null,null,null,null,null,null,null,null,null,null,null,null,null,null,null,null,null,null,null,null,1,{"$f":"IF(MROUND(#REF!,4)>4,MROUND(#REF!,4)/4,1)","v":{"$error":"#REF!"}}]
[null,null,null,null,null,null,null,null,null,null,null,null,null,null,null,null,null,null,null,null,null,null,null,null,null,null,null,4,{"$f":"IF(MROUND(#REF!,4)>4,MROUND(#REF!,4)/4,1)","v":{"$error":"#REF!"}}]
[null,null,null,null,null,null,null,null,null,null,null,null,null,null,null,null,null,null,null,null,null,null,null,null,null,null,null,7,{"$f":"IF(MROUND(#REF!,4)>4,MROUND(#REF!,4)/4,1)","v":{"$error":"#REF!"}}]
[null,null,null,null,null,null,null,null,null,null,null,null,null,null,null,null,null,null,null,null,null,null,null,null,null,null,null,4,{"$f":"IF(MROUND(#REF!,4)>4,MROUND(#REF!,4)/4,1)","v":{"$error":"#REF!"}}]
[null,null,null,null,null,null,null,null,null,null,null,null,null,null,null,null,null,null,null,null,null,null,null,null,null,null,null,2,{"$f":"IF(MROUND(#REF!,4)>4,MROUND(#REF!,4)/4,1)","v":{"$error":"#REF!"}}]
[null,null,null,null,null,null,null,null,null,null,null,null,null,null,null,null,null,null,null,null,null,null,null,null,null,null,null,12,{"$f":"IF(MROUND(#REF!,4)>4,MROUND(#REF!,4)/4,1)","v":{"$error":"#REF!"}}]
[null,null,null,null,null,null,null,null,null,null,null,null,null,null,null,null,null,null,null,null,null,null,null,null,null,null,null,4,{"$f":"IF(MROUND(#REF!,4)>4,MROUND(#REF!,4)/4,1)","v":{"$error":"#REF!"}}]
[null,null,null,null,null,null,null,null,null,null,null,null,null,null,null,null,null,null,null,null,null,null,null,null,null,null,null,4,{"$f":"IF(MROUND(#REF!,4)>4,MROUND(#REF!,4)/4,1)","v":{"$error":"#REF!"}}]
[null,null,null,null,null,null,null,null,null,null,null,null,null,null,null,null,null,null,null,null,null,null,null,null,null,null,null,9,{"$f":"IF(MROUND(#REF!,4)>4,MROUND(#REF!,4)/4,1)","v":{"$error":"#REF!"}}]
[null,null,null,null,null,null,null,null,null,null,null,null,null,null,null,null,null,null,null,null,null,null,null,null,null,null,null,2,{"$f":"IF(MROUND(#REF!,4)>4,MROUND(#REF!,4)/4,1)","v":{"$error":"#REF!"}}]
[null,null,null,null,null,null,null,null,null,null,null,null,null,null,null,null,null,null,null,null,null,null,null,null,null,null,null,12,{"$f":"IF(MROUND(#REF!,4)>4,MROUND(#REF!,4)/4,1)","v":{"$error":"#REF!"}}]
[null,null,null,null,null,null,null,null,null,null,null,null,null,null,null,null,null,null,null,null,null,null,null,null,null,null,null,15,{"$f":"IF(MROUND(#REF!,4)>4,MROUND(#REF!,4)/4,1)","v":{"$error":"#REF!"}}]
[null,null,null,null,null,null,null,null,null,null,null,null,null,null,null,null,null,null,null,null,null,null,null,null,null,null,null,1,{"$f":"IF(MROUND(#REF!,4)>4,MROUND(#REF!,4)/4,1)","v":{"$error":"#REF!"}}]
[null,null,null,null,null,null,null,null,null,null,null,null,null,null,null,null,null,null,null,null,null,null,null,null,null,null,null,1,{"$f":"IF(MROUND(#REF!,4)>4,MROUND(#REF!,4)/4,1)","v":{"$error":"#REF!"}}]
[null,null,null,null,null,null,null,null,null,null,null,null,null,null,null,null,null,null,null,null,null,null,null,null,null,null,null,12,{"$f":"IF(MROUND(#REF!,4)>4,MROUND(#REF!,4)/4,1)","v":{"$error":"#REF!"}}]
[null,null,null,null,null,null,null,null,null,null,null,null,null,null,null,null,null,null,null,null,null,null,null,null,null,null,null,11,{"$f":"IF(MROUND(#REF!,4)>4,MROUND(#REF!,4)/4,1)","v":{"$error":"#REF!"}}]
[null,null,null,null,null,null,null,null,null,null,null,null,null,null,null,null,null,null,null,null,null,null,null,null,null,null,null,3,{"$f":"IF(MROUND(#REF!,4)>4,MROUND(#REF!,4)/4,1)","v":{"$error":"#REF!"}}]
[null,null,null,null,null,null,null,null,null,null,null,null,null,null,null,null,null,null,null,null,null,null,null,null,null,null,null,13,{"$f":"IF(MROUND(#REF!,4)>4,MROUND(#REF!,4)/4,1)","v":{"$error":"#REF!"}}]
[null,null,null,null,null,null,null,null,null,null,null,null,null,null,null,null,null,null,null,null,null,null,null,null,null,null,null,12,{"$f":"IF(MROUND(#REF!,4)>4,MROUND(#REF!,4)/4,1)","v":{"$error":"#REF!"}}]
[null,null,null,null,null,null,null,null,null,null,null,null,null,null,null,null,null,null,null,null,null,null,null,null,null,null,null,9,{"$f":"IF(MROUND(#REF!,4)>4,MROUND(#REF!,4)/4,1)","v":{"$error":"#REF!"}}]
[null,null,null,null,null,null,null,null,null,null,null,null,null,null,null,null,null,null,null,null,null,null,null,null,null,null,null,2,{"$f":"IF(MROUND(#REF!,4)>4,MROUND(#REF!,4)/4,1)","v":{"$error":"#REF!"}}]
[null,null,null,null,null,null,null,null,null,null,null,null,null,null,null,null,null,null,null,null,null,null,null,null,null,null,null,3,{"$f":"IF(MROUND(#REF!,4)>4,MROUND(#REF!,4)/4,1)","v":{"$error":"#REF!"}}]
[null,null,null,null,null,null,null,null,null,null,null,null,null,null,null,null,null,null,null,null,null,null,null,null,null,null,null,5,{"$f":"IF(MROUND(#REF!,4)>4,MROUND(#REF!,4)/4,1)","v":{"$error":"#REF!"}}]
[null,null,null,null,null,null,null,null,null,null,null,null,null,null,null,null,null,null,null,null,null,null,null,null,null,null,null,12,{"$f":"IF(MROUND(#REF!,4)>4,MROUND(#REF!,4)/4,1)","v":{"$error":"#REF!"}}]
[null,null,null,null,null,null,null,null,null,null,null,null,null,null,null,null,null,null,null,null,null,null,null,null,null,null,null,14,{"$f":"IF(MROUND(#REF!,4)>4,MROUND(#REF!,4)/4,1)","v":{"$error":"#REF!"}}]
[null,null,null,null,null,null,null,null,null,null,null,null,null,null,null,null,null,null,null,null,null,null,null,null,null,null,null,5,{"$f":"IF(MROUND(#REF!,4)>4,MROUND(#REF!,4)/4,1)","v":{"$error":"#REF!"}}]
[null,null,null,null,null,null,null,null,null,null,null,null,null,null,null,null,null,null,null,null,null,null,null,null,null,null,null,{"$f":"ROUND(RAND()*16,0)","v":14},{"$f":"IF(MROUND(#REF!,4)>4,MROUND(#REF!,4)/4,1)","v":{"$error":"#REF!"}}]
[null,null,null,null,null,null,null,null,null,null,null,null,null,null,null,null,null,null,null,null,null,null,null,null,null,null,null,12,{"$f":"IF(MROUND(#REF!,4)>4,MROUND(#REF!,4)/4,1)","v":{"$error":"#REF!"}}]
[null,null,null,null,null,null,null,null,null,null,null,null,null,null,null,null,null,null,null,null,null,null,null,null,null,null,null,14,{"$f":"IF(MROUND(#REF!,4)>4,MROUND(#REF!,4)/4,1)","v":{"$error":"#REF!"}}]
[null,null,null,null,null,null,null,null,null,null,null,null,null,null,null,null,null,null,null,null,null,null,null,null,null,null,null,5,{"$f":"IF(MROUND(#REF!,4)>4,MROUND(#REF!,4)/4,1)","v":{"$error":"#REF!"}}]
[null,null,null,null,null,null,null,null,null,null,null,null,null,null,null,null,null,null,null,null,null,null,null,null,null,null,null,2,{"$f":"IF(MROUND(#REF!,4)>4,MROUND(#REF!,4)/4,1)","v":{"$error":"#REF!"}}]
[null,null,null,null,null,null,null,null,null,null,null,null,null,null,null,null,null,null,null,null,null,null,null,null,null,null,null,8,{"$f":"IF(MROUND(#REF!,4)>4,MROUND(#REF!,4)/4,1)","v":{"$error":"#REF!"}}]
[null,null,null,null,null,null,null,null,null,null,null,null,null,null,null,null,null,null,null,null,null,null,null,null,null,null,null,11,{"$f":"IF(MROUND(#REF!,4)>4,MROUND(#REF!,4)/4,1)","v":{"$error":"#REF!"}}]
[null,null,null,null,null,null,null,null,null,null,null,null,null,null,null,null,null,null,null,null,null,null,null,null,null,null,null,12,{"$f":"IF(MROUND(#REF!,4)>4,MROUND(#REF!,4)/4,1)","v":{"$error":"#REF!"}}]
[null,null,null,null,null,null,null,null,null,null,null,null,null,null,null,null,null,null,null,null,null,null,null,null,null,null,null,15,{"$f":"IF(MROUND(#REF!,4)>4,MROUND(#REF!,4)/4,1)","v":{"$error":"#REF!"}}]
[null,null,null,null,null,null,null,null,null,null,null,null,null,null,null,null,null,null,null,null,null,null,null,null,null,null,null,9,{"$f":"IF(MROUND(#REF!,4)>4,MROUND(#REF!,4)/4,1)","v":{"$error":"#REF!"}}]
[null,null,null,null,null,null,null,null,null,null,null,null,null,null,null,null,null,null,null,null,null,null,null,null,null,null,null,12,{"$f":"IF(MROUND(#REF!,4)>4,MROUND(#REF!,4)/4,1)","v":{"$error":"#REF!"}}]
[null,null,null,null,null,null,null,null,null,null,null,null,null,null,null,null,null,null,null,null,null,null,null,null,null,null,null,15,{"$f":"IF(MROUND(#REF!,4)>4,MROUND(#REF!,4)/4,1)","v":{"$error":"#REF!"}}]
[null,null,null,null,null,null,null,null,null,null,null,null,null,null,null,null,null,null,null,null,null,null,null,null,null,null,null,5,{"$f":"IF(MROUND(#REF!,4)>4,MROUND(#REF!,4)/4,1)","v":{"$error":"#REF!"}}]
[null,null,null,null,null,null,null,null,null,null,null,null,null,null,null,null,null,null,null,null,null,null,null,null,null,null,null,9,{"$f":"IF(MROUND(#REF!,4)>4,MROUND(#REF!,4)/4,1)","v":{"$error":"#REF!"}}]
[null,null,null,null,null,null,null,null,null,null,null,null,null,null,null,null,null,null,null,null,null,null,null,null,null,null,null,6,{"$f":"IF(MROUND(#REF!,4)>4,MROUND(#REF!,4)/4,1)","v":{"$error":"#REF!"}}]
[null,null,null,null,null,null,null,null,null,null,null,null,null,null,null,null,null,null,null,null,null,null,null,null,null,null,null,8,{"$f":"IF(MROUND(#REF!,4)>4,MROUND(#REF!,4)/4,1)","v":{"$error":"#REF!"}}]
[null,null,null,null,null,null,null,null,null,null,null,null,null,null,null,null,null,null,null,null,null,null,null,null,null,null,null,5,{"$f":"IF(MROUND(#REF!,4)>4,MROUND(#REF!,4)/4,1)","v":{"$error":"#REF!"}}]
[null,null,null,null,null,null,null,null,null,null,null,null,null,null,null,null,null,null,null,null,null,null,null,null,null,null,null,1,{"$f":"IF(MROUND(#REF!,4)>4,MROUND(#REF!,4)/4,1)","v":{"$error":"#REF!"}}]
[null,null,null,null,null,null,null,null,null,null,null,null,null,null,null,null,null,null,null,null,null,null,null,null,null,null,null,12,{"$f":"IF(MROUND(#REF!,4)>4,MROUND(#REF!,4)/4,1)","v":{"$error":"#REF!"}}]
[null,null,null,null,null,null,null,null,null,null,null,null,null,null,null,null,null,null,null,null,null,null,null,null,null,null,null,4,{"$f":"IF(MROUND(#REF!,4)>4,MROUND(#REF!,4)/4,1)","v":{"$error":"#REF!"}}]
[null,null,null,null,null,null,null,null,null,null,null,null,null,null,null,null,null,null,null,null,null,null,null,null,null,null,null,9,{"$f":"IF(MROUND(#REF!,4)>4,MROUND(#REF!,4)/4,1)","v":{"$error":"#REF!"}}]
[null,null,null,null,null,null,null,null,null,null,null,null,null,null,null,null,null,null,null,null,null,null,null,null,null,null,null,16,{"$f":"IF(MROUND(#REF!,4)>4,MROUND(#REF!,4)/4,1)","v":{"$error":"#REF!"}}]
[null,null,null,null,null,null,null,null,null,null,null,null,null,null,null,null,null,null,null,null,null,null,null,null,null,null,null,15,{"$f":"IF(MROUND(#REF!,4)>4,MROUND(#REF!,4)/4,1)","v":{"$error":"#REF!"}}]
[null,null,null,null,null,null,null,null,null,null,null,null,null,null,null,null,null,null,null,null,null,null,null,null,null,null,null,15,{"$f":"IF(MROUND(#REF!,4)>4,MROUND(#REF!,4)/4,1)","v":{"$error":"#REF!"}}]
[null,null,null,null,null,null,null,null,null,null,null,null,null,null,null,null,null,null,null,null,null,null,null,null,null,null,null,8,{"$f":"IF(MROUND(#REF!,4)>4,MROUND(#REF!,4)/4,1)","v":{"$error":"#REF!"}}]
[null,null,null,null,null,null,null,null,null,null,null,null,null,null,null,null,null,null,null,null,null,null,null,null,null,null,null,11,{"$f":"IF(MROUND(#REF!,4)>4,MROUND(#REF!,4)/4,1)","v":{"$error":"#REF!"}}]
[null,null,null,null,null,null,null,null,null,null,null,null,null,null,null,null,null,null,null,null,null,null,null,null,null,null,null,2,{"$f":"IF(MROUND(#REF!,4)>4,MROUND(#REF!,4)/4,1)","v":{"$error":"#REF!"}}]
[null,null,null,null,null,null,null,null,null,null,null,null,null,null,null,null,null,null,null,null,null,null,null,null,null,null,null,4,{"$f":"IF(MROUND(#REF!,4)>4,MROUND(#REF!,4)/4,1)","v":{"$error":"#REF!"}}]
[null,null,null,null,null,null,null,null,null,null,null,null,null,null,null,null,null,null,null,null,null,null,null,null,null,null,null,12,{"$f":"IF(MROUND(#REF!,4)>4,MROUND(#REF!,4)/4,1)","v":{"$error":"#REF!"}}]
[null,null,null,null,null,null,null,null,null,null,null,null,null,null,null,null,null,null,null,null,null,null,null,null,null,null,null,8,{"$f":"IF(MROUND(#REF!,4)>4,MROUND(#REF!,4)/4,1)","v":{"$error":"#REF!"}}]
[null,null,null,null,null,null,null,null,null,null,null,null,null,null,null,null,null,null,null,null,null,null,null,null,null,null,null,7,{"$f":"IF(MROUND(#REF!,4)>4,MROUND(#REF!,4)/4,1)","v":{"$error":"#REF!"}}]
[null,null,null,null,null,null,null,null,null,null,null,null,null,null,null,null,null,null,null,null,null,null,null,null,null,null,null,2,{"$f":"IF(MROUND(#REF!,4)>4,MROUND(#REF!,4)/4,1)","v":{"$error":"#REF!"}}]
[null,null,null,null,null,null,null,null,null,null,null,null,null,null,null,null,null,null,null,null,null,null,null,null,null,null,null,14,{"$f":"IF(MROUND(#REF!,4)>4,MROUND(#REF!,4)/4,1)","v":{"$error":"#REF!"}}]
[null,null,null,null,null,null,null,null,null,null,null,null,null,null,null,null,null,null,null,null,null,null,null,null,null,null,null,9,{"$f":"IF(MROUND(#REF!,4)>4,MROUND(#REF!,4)/4,1)","v":{"$error":"#REF!"}}]
[null,null,null,null,null,null,null,null,null,null,null,null,null,null,null,null,null,null,null,null,null,null,null,null,null,null,null,16,{"$f":"IF(MROUND(#REF!,4)>4,MROUND(#REF!,4)/4,1)","v":{"$error":"#REF!"}}]
[null,null,null,null,null,null,null,null,null,null,null,null,null,null,null,null,null,null,null,null,null,null,null,null,null,null,null,4,{"$f":"IF(MROUND(#REF!,4)>4,MROUND(#REF!,4)/4,1)","v":{"$error":"#REF!"}}]
[null,null,null,null,null,null,null,null,null,null,null,null,null,null,null,null,null,null,null,null,null,null,null,null,null,null,null,10,{"$f":"IF(MROUND(#REF!,4)>4,MROUND(#REF!,4)/4,1)","v":{"$error":"#REF!"}}]
[null,null,null,null,null,null,null,null,null,null,null,null,null,null,null,null,null,null,null,null,null,null,null,null,null,null,null,7,{"$f":"IF(MROUND(#REF!,4)>4,MROUND(#REF!,4)/4,1)","v":{"$error":"#REF!"}}]
[null,null,null,null,null,null,null,null,null,null,null,null,null,null,null,null,null,null,null,null,null,null,null,null,null,null,null,0,{"$f":"IF(MROUND(#REF!,4)>4,MROUND(#REF!,4)/4,1)","v":{"$error":"#REF!"}}]
[null,null,null,null,null,null,null,null,null,null,null,null,null,null,null,null,null,null,null,null,null,null,null,null,null,null,null,14,{"$f":"IF(MROUND(#REF!,4)>4,MROUND(#REF!,4)/4,1)","v":{"$error":"#REF!"}}]
[null,null,null,null,null,null,null,null,null,null,null,null,null,null,null,null,null,null,null,null,null,null,null,null,null,null,null,15,{"$f":"IF(MROUND(#REF!,4)>4,MROUND(#REF!,4)/4,1)","v":{"$error":"#REF!"}}]
[null,null,null,null,null,null,null,null,null,null,null,null,null,null,null,null,null,null,null,null,null,null,null,null,null,null,null,11,{"$f":"IF(MROUND(#REF!,4)>4,MROUND(#REF!,4)/4,1)","v":{"$error":"#REF!"}}]
[null,null,null,null,null,null,null,null,null,null,null,null,null,null,null,null,null,null,null,null,null,null,null,null,null,null,null,10,{"$f":"IF(MROUND(#REF!,4)>4,MROUND(#REF!,4)/4,1)","v":{"$error":"#REF!"}}]
[null,null,null,null,null,null,null,null,null,null,null,null,null,null,null,null,null,null,null,null,null,null,null,null,null,null,null,13,{"$f":"IF(MROUND(#REF!,4)>4,MROUND(#REF!,4)/4,1)","v":{"$error":"#REF!"}}]
[null,null,null,null,null,null,null,null,null,null,null,null,null,null,null,null,null,null,null,null,null,null,null,null,null,null,null,11,{"$f":"IF(MROUND(#REF!,4)>4,MROUND(#REF!,4)/4,1)","v":{"$error":"#REF!"}}]
[null,null,null,null,null,null,null,null,null,null,null,null,null,null,null,null,null,null,null,null,null,null,null,null,null,null,null,11,{"$f":"IF(MROUND(#REF!,4)>4,MROUND(#REF!,4)/4,1)","v":{"$error":"#REF!"}}]
[null,null,null,null,null,null,null,null,null,null,null,null,null,null,null,null,null,null,null,null,null,null,null,null,null,null,null,0,{"$f":"IF(MROUND(#REF!,4)>4,MROUND(#REF!,4)/4,1)","v":{"$error":"#REF!"}}]
[null,null,null,null,null,null,null,null,null,null,null,null,null,null,null,null,null,null,null,null,null,null,null,null,null,null,null,14,{"$f":"IF(MROUND(#REF!,4)>4,MROUND(#REF!,4)/4,1)","v":{"$error":"#REF!"}}]
[null,null,null,null,null,null,null,null,null,null,null,null,null,null,null,null,null,null,null,null,null,null,null,null,null,null,null,9,{"$f":"IF(MROUND(#REF!,4)>4,MROUND(#REF!,4)/4,1)","v":{"$error":"#REF!"}}]
[null,null,null,null,null,null,null,null,null,null,null,null,null,null,null,null,null,null,null,null,null,null,null,null,null,null,null,10,{"$f":"IF(MROUND(#REF!,4)>4,MROUND(#REF!,4)/4,1)","v":{"$error":"#REF!"}}]
[null,null,null,null,null,null,null,null,null,null,null,null,null,null,null,null,null,null,null,null,null,null,null,null,null,null,null,12,{"$f":"IF(MROUND(#REF!,4)>4,MROUND(#REF!,4)/4,1)","v":{"$error":"#REF!"}}]
[null,null,null,null,null,null,null,null,null,null,null,null,null,null,null,null,null,null,null,null,null,null,null,null,null,null,null,6,{"$f":"IF(MROUND(#REF!,4)>4,MROUND(#REF!,4)/4,1)","v":{"$error":"#REF!"}}]
[null,null,null,null,null,null,null,null,null,null,null,null,null,null,null,null,null,null,null,null,null,null,null,null,null,null,null,11,{"$f":"IF(MROUND(#REF!,4)>4,MROUND(#REF!,4)/4,1)","v":{"$error":"#REF!"}}]
[null,null,null,null,null,null,null,null,null,null,null,null,null,null,null,null,null,null,null,null,null,null,null,null,null,null,null,5,{"$f":"IF(MROUND(#REF!,4)>4,MROUND(#REF!,4)/4,1)","v":{"$error":"#REF!"}}]
[null,null,null,null,null,null,null,null,null,null,null,null,null,null,null,null,null,null,null,null,null,null,null,null,null,null,null,14,{"$f":"IF(MROUND(#REF!,4)>4,MROUND(#REF!,4)/4,1)","v":{"$error":"#REF!"}}]
[null,null,null,null,null,null,null,null,null,null,null,null,null,null,null,null,null,null,null,null,null,null,null,null,null,null,null,2,{"$f":"IF(MROUND(#REF!,4)>4,MROUND(#REF!,4)/4,1)","v":{"$error":"#REF!"}}]
[null,null,null,null,null,null,null,null,null,null,null,null,null,null,null,null,null,null,null,null,null,null,null,null,null,null,null,4,{"$f":"IF(MROUND(#REF!,4)>4,MROUND(#REF!,4)/4,1)","v":{"$error":"#REF!"}}]
[null,null,null,null,null,null,null,null,null,null,null,null,null,null,null,null,null,null,null,null,null,null,null,null,null,null,null,11,{"$f":"IF(MROUND(#REF!,4)>4,MROUND(#REF!,4)/4,1)","v":{"$error":"#REF!"}}]
[null,null,null,null,null,null,null,null,null,null,null,null,null,null,null,null,null,null,null,null,null,null,null,null,null,null,null,11,{"$f":"IF(MROUND(#REF!,4)>4,MROUND(#REF!,4)/4,1)","v":{"$error":"#REF!"}}]
[null,null,null,null,null,null,null,null,null,null,null,null,null,null,null,null,null,null,null,null,null,null,null,null,null,null,null,3,{"$f":"IF(MROUND(#REF!,4)>4,MROUND(#REF!,4)/4,1)","v":{"$error":"#REF!"}}]
[null,null,null,null,null,null,null,null,null,null,null,null,null,null,null,null,null,null,null,null,null,null,null,null,null,null,null,4,{"$f":"IF(MROUND(#REF!,4)>4,MROUND(#REF!,4)/4,1)","v":{"$error":"#REF!"}}]
[null,null,null,null,null,null,null,null,null,null,null,null,null,null,null,null,null,null,null,null,null,null,null,null,null,null,null,3,{"$f":"IF(MROUND(#REF!,4)>4,MROUND(#REF!,4)/4,1)","v":{"$error":"#REF!"}}]
[null,null,null,null,null,null,null,null,null,null,null,null,null,null,null,null,null,null,null,null,null,null,null,null,null,null,null,8,{"$f":"IF(MROUND(#REF!,4)>4,MROUND(#REF!,4)/4,1)","v":{"$error":"#REF!"}}]
[null,null,null,null,null,null,null,null,null,null,null,null,null,null,null,null,null,null,null,null,null,null,null,null,null,null,null,3,{"$f":"IF(MROUND(#REF!,4)>4,MROUND(#REF!,4)/4,1)","v":{"$error":"#REF!"}}]
[null,null,null,null,null,null,null,null,null,null,null,null,null,null,null,null,null,null,null,null,null,null,null,null,null,null,null,{"$f":"ROUND(RAND()*16,0)","v":7},{"$f":"IF(MROUND(#REF!,4)>4,MROUND(#REF!,4)/4,1)","v":{"$error":"#REF!"}}]
[null,null,null,null,null,null,null,null,null,null,null,null,null,null,null,null,null,null,null,null,null,null,null,null,null,null,null,9,{"$f":"IF(MROUND(#REF!,4)>4,MROUND(#REF!,4)/4,1)","v":{"$error":"#REF!"}}]
[null,null,null,null,null,null,null,null,null,null,null,null,null,null,null,null,null,null,null,null,null,null,null,null,null,null,null,1,{"$f":"IF(MROUND(#REF!,4)>4,MROUND(#REF!,4)/4,1)","v":{"$error":"#REF!"}}]
[null,null,null,null,null,null,null,null,null,null,null,null,null,null,null,null,null,null,null,null,null,null,null,null,null,null,null,3,{"$f":"IF(MROUND(#REF!,4)>4,MROUND(#REF!,4)/4,1)","v":{"$error":"#REF!"}}]
[null,null,null,null,null,null,null,null,null,null,null,null,null,null,null,null,null,null,null,null,null,null,null,null,null,null,null,0,{"$f":"IF(MROUND(#REF!,4)>4,MROUND(#REF!,4)/4,1)","v":{"$error":"#REF!"}}]
[null,null,null,null,null,null,null,null,null,null,null,null,null,null,null,null,null,null,null,null,null,null,null,null,null,null,null,10,{"$f":"IF(MROUND(#REF!,4)>4,MROUND(#REF!,4)/4,1)","v":{"$error":"#REF!"}}]
[null,null,null,null,null,null,null,null,null,null,null,null,null,null,null,null,null,null,null,null,null,null,null,null,null,null,null,10,{"$f":"IF(MROUND(#REF!,4)>4,MROUND(#REF!,4)/4,1)","v":{"$error":"#REF!"}}]
[null,null,null,null,null,null,null,null,null,null,null,null,null,null,null,null,null,null,null,null,null,null,null,null,null,null,null,5,{"$f":"IF(MROUND(#REF!,4)>4,MROUND(#REF!,4)/4,1)","v":{"$error":"#REF!"}}]
[null,null,null,null,null,null,null,null,null,null,null,null,null,null,null,null,null,null,null,null,null,null,null,null,null,null,null,16,{"$f":"IF(MROUND(#REF!,4)>4,MROUND(#REF!,4)/4,1)","v":{"$error":"#REF!"}}]
[null,null,null,null,null,null,null,null,null,null,null,null,null,null,null,null,null,null,null,null,null,null,null,null,null,null,null,15,{"$f":"IF(MROUND(#REF!,4)>4,MROUND(#REF!,4)/4,1)","v":{"$error":"#REF!"}}]
[null,null,null,null,null,null,null,null,null,null,null,null,null,null,null,null,null,null,null,null,null,null,null,null,null,null,null,16,{"$f":"IF(MROUND(#REF!,4)>4,MROUND(#REF!,4)/4,1)","v":{"$error":"#REF!"}}]
[null,null,null,null,null,null,null,null,null,null,null,null,null,null,null,null,null,null,null,null,null,null,null,null,null,null,null,2,{"$f":"IF(MROUND(#REF!,4)>4,MROUND(#REF!,4)/4,1)","v":{"$error":"#REF!"}}]
[null,null,null,null,null,null,null,null,null,null,null,null,null,null,null,null,null,null,null,null,null,null,null,null,null,null,null,11,{"$f":"IF(MROUND(#REF!,4)>4,MROUND(#REF!,4)/4,1)","v":{"$error":"#REF!"}}]
[null,null,null,null,null,null,null,null,null,null,null,null,null,null,null,null,null,null,null,null,null,null,null,null,null,null,null,12,{"$f":"IF(MROUND(#REF!,4)>4,MROUND(#REF!,4)/4,1)","v":{"$error":"#REF!"}}]
[null,null,null,null,null,null,null,null,null,null,null,null,null,null,null,null,null,null,null,null,null,null,null,null,null,null,null,1,{"$f":"IF(MROUND(#REF!,4)>4,MROUND(#REF!,4)/4,1)","v":{"$error":"#REF!"}}]
[null,null,null,null,null,null,null,null,null,null,null,null,null,null,null,null,null,null,null,null,null,null,null,null,null,null,null,9,{"$f":"IF(MROUND(#REF!,4)>4,MROUND(#REF!,4)/4,1)","v":{"$error":"#REF!"}}]
[null,null,null,null,null,null,null,null,null,null,null,null,null,null,null,null,null,null,null,null,null,null,null,null,null,null,null,12,{"$f":"IF(MROUND(#REF!,4)>4,MROUND(#REF!,4)/4,1)","v":{"$error":"#REF!"}}]
[null,null,null,null,null,null,null,null,null,null,null,null,null,null,null,null,null,null,null,null,null,null,null,null,null,null,null,15,{"$f":"IF(MROUND(#REF!,4)>4,MROUND(#REF!,4)/4,1)","v":{"$error":"#REF!"}}]
[null,null,null,null,null,null,null,null,null,null,null,null,null,null,null,null,null,null,null,null,null,null,null,null,null,null,null,14,{"$f":"IF(MROUND(#REF!,4)>4,MROUND(#REF!,4)/4,1)","v":{"$error":"#REF!"}}]
[null,null,null,null,null,null,null,null,null,null,null,null,null,null,null,null,null,null,null,null,null,null,null,null,null,null,null,14,{"$f":"IF(MROUND(#REF!,4)>4,MROUND(#REF!,4)/4,1)","v":{"$error":"#REF!"}}]
[null,null,null,null,null,null,null,null,null,null,null,null,null,null,null,null,null,null,null,null,null,null,null,null,null,null,null,11,{"$f":"IF(MROUND(#REF!,4)>4,MROUND(#REF!,4)/4,1)","v":{"$error":"#REF!"}}]
[null,null,null,null,null,null,null,null,null,null,null,null,null,null,null,null,null,null,null,null,null,null,null,null,null,null,null,10,{"$f":"IF(MROUND(#REF!,4)>4,MROUND(#REF!,4)/4,1)","v":{"$error":"#REF!"}}]
[null,null,null,null,null,null,null,null,null,null,null,null,null,null,null,null,null,null,null,null,null,null,null,null,null,null,null,0,{"$f":"IF(MROUND(#REF!,4)>4,MROUND(#REF!,4)/4,1)","v":{"$error":"#REF!"}}]
[null,null,null,null,null,null,null,null,null,null,null,null,null,null,null,null,null,null,null,null,null,null,null,null,null,null,null,4,{"$f":"IF(MROUND(#REF!,4)>4,MROUND(#REF!,4)/4,1)","v":{"$error":"#REF!"}}]
[null,null,null,null,null,null,null,null,null,null,null,null,null,null,null,null,null,null,null,null,null,null,null,null,null,null,null,14,{"$f":"IF(MROUND(#REF!,4)>4,MROUND(#REF!,4)/4,1)","v":{"$error":"#REF!"}}]
[null,null,null,null,null,null,null,null,null,null,null,null,null,null,null,null,null,null,null,null,null,null,null,null,null,null,null,11,{"$f":"IF(MROUND(#REF!,4)>4,MROUND(#REF!,4)/4,1)","v":{"$error":"#REF!"}}]
[null,null,null,null,null,null,null,null,null,null,null,null,null,null,null,null,null,null,null,null,null,null,null,null,null,null,null,16,{"$f":"IF(MROUND(#REF!,4)>4,MROUND(#REF!,4)/4,1)","v":{"$error":"#REF!"}}]
[null,null,null,null,null,null,null,null,null,null,null,null,null,null,null,null,null,null,null,null,null,null,null,null,null,null,null,13,{"$f":"IF(MROUND(#REF!,4)>4,MROUND(#REF!,4)/4,1)","v":{"$error":"#REF!"}}]
[null,null,null,null,null,null,null,null,null,null,null,null,null,null,null,null,null,null,null,null,null,null,null,null,null,null,null,1,{"$f":"IF(MROUND(#REF!,4)>4,MROUND(#REF!,4)/4,1)","v":{"$error":"#REF!"}}]
[null,null,null,null,null,null,null,null,null,null,null,null,null,null,null,null,null,null,null,null,null,null,null,null,null,null,null,2,{"$f":"IF(MROUND(#REF!,4)>4,MROUND(#REF!,4)/4,1)","v":{"$error":"#REF!"}}]
[null,null,null,null,null,null,null,null,null,null,null,null,null,null,null,null,null,null,null,null,null,null,null,null,null,null,null,13,{"$f":"IF(MROUND(#REF!,4)>4,MROUND(#REF!,4)/4,1)","v":{"$error":"#REF!"}}]
[null,null,null,null,null,null,null,null,null,null,null,null,null,null,null,null,null,null,null,null,null,null,null,null,null,null,null,8,{"$f":"IF(MROUND(#REF!,4)>4,MROUND(#REF!,4)/4,1)","v":{"$error":"#REF!"}}]
[null,null,null,null,null,null,null,null,null,null,null,null,null,null,null,null,null,null,null,null,null,null,null,null,null,null,null,12,{"$f":"IF(MROUND(#REF!,4)>4,MROUND(#REF!,4)/4,1)","v":{"$error":"#REF!"}}]
[null,null,null,null,null,null,null,null,null,null,null,null,null,null,null,null,null,null,null,null,null,null,null,null,null,null,null,10,{"$f":"IF(MROUND(#REF!,4)>4,MROUND(#REF!,4)/4,1)","v":{"$error":"#REF!"}}]
[null,null,null,null,null,null,null,null,null,null,null,null,null,null,null,null,null,null,null,null,null,null,null,null,null,null,null,7,{"$f":"IF(MROUND(#REF!,4)>4,MROUND(#REF!,4)/4,1)","v":{"$error":"#REF!"}}]
[null,null,null,null,null,null,null,null,null,null,null,null,null,null,null,null,null,null,null,null,null,null,null,null,null,null,null,15,{"$f":"IF(MROUND(Z20,4)>4,MROUND(Z20,4)/4,1)","v":1}]
[null,null,null,null,null,null,null,null,null,null,null,null,null,null,null,null,null,null,null,null,null,null,null,null,null,null,null,14,1]
[null,null,null,null,null,null,null,null,null,null,null,null,null,null,null,null,null,null,null,null,null,null,null,null,null,null,null,6,3]
[null,null,null,null,null,null,null,null,null,null,null,null,null,null,null,null,null,null,null,null,null,null,null,null,null,null,null,9,4]
[null,null,null,null,null,null,null,null,null,null,null,null,null,null,null,null,null,null,null,null,null,null,null,null,null,null,null,16,3]
[null,null,null,null,null,null,null,null,null,null,null,null,null,null,null,null,null,null,null,null,null,null,null,null,null,null,null,16,4]
[null,null,null,null,null,null,null,null,null,null,null,null,null,null,null,null,null,null,null,null,null,null,null,null,null,null,null,14,3]
[null,null,null,null,null,null,null,null,null,null,null,null,null,null,null,null,null,null,null,null,null,null,null,null,null,null,null,1,3]
[null,null,null,null,null,null,null,null,null,null,null,null,null,null,null,null,null,null,null,null,null,null,null,null,null,null,null,15,2]
[null,null,null,null,null,null,null,null,null,null,null,null,null,null,null,null,null,null,null,null,null,null,null,null,null,null,null,13,2]
[null,null,null,null,null,null,null,null,null,null,null,null,null,null,null,null,null,null,null,null,null,null,null,null,null,null,null,1,4]
[null,null,null,null,null,null,null,null,null,null,null,null,null,null,null,null,null,null,null,null,null,null,null,null,null,null,null,5,2]
[null,null,null,null,null,null,null,null,null,null,null,null,null,null,null,null,null,null,null,null,null,null,null,null,null,null,null,15,3]
[null,null,null,null,null,null,null,null,null,null,null,null,null,null,null,null,null,null,null,null,null,null,null,null,null,null,null,2,2]
[null,null,null,null,null,null,null,null,null,null,null,null,null,null,null,null,null,null,null,null,null,null,null,null,null,null,null,16,3]
[null,null,null,null,null,null,null,null,null,null,null,null,null,null,null,null,null,null,null,null,null,null,null,null,null,null,null,3,1]
[null,null,null,null,null,null,null,null,null,null,null,null,null,null,null,null,null,null,null,null,null,null,null,null,null,null,null,4,4]
[null,null,null,null,null,null,null,null,null,null,null,null,null,null,null,null,null,null,null,null,null,null,null,null,null,null,null,1,1]
[null,null,null,null,null,null,null,null,null,null,null,null,null,null,null,null,null,null,null,null,null,null,null,null,null,null,null,8,1]
[null,null,null,null,null,null,null,null,null,null,null,null,null,null,null,null,null,null,null,null,null,null,null,null,null,null,null,16,3]
[null,null,null,null,null,null,null,null,null,null,null,null,null,null,null,null,null,null,null,null,null,null,null,null,null,null,null,2,4]
[null,null,null,null,null,null,null,null,null,null,null,null,null,null,null,null,null,null,null,null,null,null,null,null,null,null,null,13,3]
[null,null,null,null,null,null,null,null,null,null,null,null,null,null,null,null,null,null,null,null,null,null,null,null,null,null,null,5,3]
[null,null,null,null,null,null,null,null,null,null,null,null,null,null,null,null,null,null,null,null,null,null,null,null,null,null,null,9,3]
[null,null,null,null,null,null,null,null,null,null,null,null,null,null,null,null,null,null,null,null,null,null,null,null,null,null,null,15,4]
[null,null,null,null,null,null,null,null,null,null,null,null,null,null,null,null,null,null,null,null,null,null,null,null,null,null,null,3,3]
[null,null,null,null,null,null,null,null,null,null,null,null,null,null,null,null,null,null,null,null,null,null,null,null,null,null,null,8,3]
[null,null,null,null,null,null,null,null,null,null,null,null,null,null,null,null,null,null,null,null,null,null,null,null,null,null,null,4,3]
[null,null,null,null,null,null,null,null,null,null,null,null,null,null,null,null,null,null,null,null,null,null,null,null,null,null,null,4,1]
[null,null,null,null,null,null,null,null,null,null,null,null,null,null,null,null,null,null,null,null,null,null,null,null,null,null,null,{"$f":"ROUND(RAND()*16,0)","v":12},1]
[null,null,null,null,null,null,null,null,null,null,null,null,null,null,null,null,null,null,null,null,null,null,null,null,null,null,null,14,1]
[null,null,null,null,null,null,null,null,null,null,null,null,null,null,null,null,null,null,null,null,null,null,null,null,null,null,null,9,1]
[null,null,null,null,null,null,null,null,null,null,null,null,null,null,null,null,null,null,null,null,null,null,null,null,null,null,null,15,{"$f":"IF(MROUND(Z52,4)>4,MROUND(Z52,4)/4,1)","v":1}]
[null,null,null,null,null,null,null,null,null,null,null,null,null,null,null,null,null,null,null,null,null,null,null,null,null,null,null,3,4]
[null,null,null,null,null,null,null,null,null,null,null,null,null,null,null,null,null,null,null,null,null,null,null,null,null,null,null,1,1]
[null,null,null,null,null,null,null,null,null,null,null,null,null,null,null,null,null,null,null,null,null,null,null,null,null,null,null,14,4]
[null,null,null,null,null,null,null,null,null,null,null,null,null,null,null,null,null,null,null,null,null,null,null,null,null,null,null,12,3]
[null,null,null,null,null,null,null,null,null,null,null,null,null,null,null,null,null,null,null,null,null,null,null,null,null,null,null,8,4]
[null,null,null,null,null,null,null,null,null,null,null,null,null,null,null,null,null,null,null,null,null,null,null,null,null,null,null,16,4]
[null,null,null,null,null,null,null,null,null,null,null,null,null,null,null,null,null,null,null,null,null,null,null,null,null,null,null,1,3]
[null,null,null,null,null,null,null,null,null,null,null,null,null,null,null,null,null,null,null,null,null,null,null,null,null,null,null,3,4]
[null,null,null,null,null,null,null,null,null,null,null,null,null,null,null,null,null,null,null,null,null,null,null,null,null,null,null,6,4]
[null,null,null,null,null,null,null,null,null,null,null,null,null,null,null,null,null,null,null,null,null,null,null,null,null,null,null,10,3]
[null,null,null,null,null,null,null,null,null,null,null,null,null,null,null,null,null,null,null,null,null,null,null,null,null,null,null,14,1]
[null,null,null,null,null,null,null,null,null,null,null,null,null,null,null,null,null,null,null,null,null,null,null,null,null,null,null,5,1]
[null,null,null,null,null,null,null,null,null,null,null,null,null,null,null,null,null,null,null,null,null,null,null,null,null,null,null,9,3]
[null,null,null,null,null,null,null,null,null,null,null,null,null,null,null,null,null,null,null,null,null,null,null,null,null,null,null,13,2]
[null,null,null,null,null,null,null,null,null,null,null,null,null,null,null,null,null,null,null,null,null,null,null,null,null,null,null,10,3]
[null,null,null,null,null,null,null,null,null,null,null,null,null,null,null,null,null,null,null,null,null,null,null,null,null,null,null,16,2]
[null,null,null,null,null,null,null,null,null,null,null,null,null,null,null,null,null,null,null,null,null,null,null,null,null,null,null,10,1]
[null,null,null,null,null,null,null,null,null,null,null,null,null,null,null,null,null,null,null,null,null,null,null,null,null,null,null,3,3]
[null,null,null,null,null,null,null,null,null,null,null,null,null,null,null,null,null,null,null,null,null,null,null,null,null,null,null,10,2]
[null,null,null,null,null,null,null,null,null,null,null,null,null,null,null,null,null,null,null,null,null,null,null,null,null,null,null,3,2]
[null,null,null,null,null,null,null,null,null,null,null,null,null,null,null,null,null,null,null,null,null,null,null,null,null,null,null,3,4]
[null,null,null,null,null,null,null,null,null,null,null,null,null,null,null,null,null,null,null,null,null,null,null,null,null,null,null,8,1]
[null,null,null,null,null,null,null,null,null,null,null,null,null,null,null,null,null,null,null,null,null,null,null,null,null,null,null,7,4]
[null,null,null,null,null,null,null,null,null,null,null,null,null,null,null,null,null,null,null,null,null,null,null,null,null,null,null,7,2]
[null,null,null,null,null,null,null,null,null,null,null,null,null,null,null,null,null,null,null,null,null,null,null,null,null,null,null,3,3]
[null,null,null,null,null,null,null,null,null,null,null,null,null,null,null,null,null,null,null,null,null,null,null,null,null,null,null,3,2]
[null,null,null,null,null,null,null,null,null,null,null,null,null,null,null,null,null,null,null,null,null,null,null,null,null,null,null,7,1]
[null,null,null,null,null,null,null,null,null,null,null,null,null,null,null,null,null,null,null,null,null,null,null,null,null,null,null,10,2]
[null,null,null,null,null,null,null,null,null,null,null,null,null,null,null,null,null,null,null,null,null,null,null,null,null,null,null,13,3]
[null,null,null,null,null,null,null,null,null,null,null,null,null,null,null,null,null,null,null,null,null,null,null,null,null,null,null,1,1]
[null,null,null,null,null,null,null,null,null,null,null,null,null,null,null,null,null,null,null,null,null,null,null,null,null,null,null,0,2]
[null,null,null,null,null,null,null,null,null,null,null,null,null,null,null,null,null,null,null,null,null,null,null,null,null,null,null,16,{"$f":"IF(MROUND(Z84,4)>4,MROUND(Z84,4)/4,1)","v":1}]
[null,null,null,null,null,null,null,null,null,null,null,null,null,null,null,null,null,null,null,null,null,null,null,null,null,null,null,7,1]
[null,null,null,null,null,null,null,null,null,null,null,null,null,null,null,null,null,null,null,null,null,null,null,null,null,null,null,15,1]
[null,null,null,null,null,null,null,null,null,null,null,null,null,null,null,null,null,null,null,null,null,null,null,null,null,null,null,8,1]
[null,null,null,null,null,null,null,null,null,null,null,null,null,null,null,null,null,null,null,null,null,null,null,null,null,null,null,1,3]
[null,null,null,null,null,null,null,null,null,null,null,null,null,null,null,null,null,null,null,null,null,null,null,null,null,null,null,15,2]
[null,null,null,null,null,null,null,null,null,null,null,null,null,null,null,null,null,null,null,null,null,null,null,null,null,null,null,6,2]
[null,null,null,null,null,null,null,null,null,null,null,null,null,null,null,null,null,null,null,null,null,null,null,null,null,null,null,9,2]
[null,null,null,null,null,null,null,null,null,null,null,null,null,null,null,null,null,null,null,null,null,null,null,null,null,null,null,2,1]
[null,null,null,null,null,null,null,null,null,null,null,null,null,null,null,null,null,null,null,null,null,null,null,null,null,null,null,3,4]
[null,null,null,null,null,null,null,null,null,null,null,null,null,null,null,null,null,null,null,null,null,null,null,null,null,null,null,6,1]
[null,null,null,null,null,null,null,null,null,null,null,null,null,null,null,null,null,null,null,null,null,null,null,null,null,null,null,3,3]
[null,null,null,null,null,null,null,null,null,null,null,null,null,null,null,null,null,null,null,null,null,null,null,null,null,null,null,11,{"$f":"IF(MROUND(AB96,4)>4,MROUND(AB96,4)/4,1)","v":2}]
[null,null,null,null,null,null,null,null,null,null,null,null,null,null,null,null,null,null,null,null,null,null,null,null,null,null,null,2,1]
[null,null,null,null,null,null,null,null,null,null,null,null,null,null,null,null,null,null,null,null,null,null,null,null,null,null,null,10,{"$f":"IF(MROUND(AB98,4)>4,MROUND(AB98,4)/4,1)","v":3}]
[null,null,null,null,null,null,null,null,null,null,null,null,null,null,null,null,null,null,null,null,null,null,null,null,null,null,null,7,3]
[null,null,null,null,null,null,null,null,null,null,null,null,null,null,null,null,null,null,null,null,null,null,null,null,null,null,null,1,1]
[null,null,null,null,null,null,null,null,null,null,null,null,null,null,null,null,null,null,null,null,null,null,null,null,null,null,null,5,4]
[null,null,null,null,null,null,null,null,null,null,null,null,null,null,null,null,null,null,null,null,null,null,null,null,null,null,null,14,2]
[null,null,null,null,null,null,null,null,null,null,null,null,null,null,null,null,null,null,null,null,null,null,null,null,null,null,null,3,1]
[null,null,null,null,null,null,null,null,null,null,null,null,null,null,null,null,null,null,null,null,null,null,null,null,null,null,null,9,1]
[null,null,null,null,null,null,null,null,null,null,null,null,null,null,null,null,null,null,null,null,null,null,null,null,null,null,null,8,3]
[null,null,null,null,null,null,null,null,null,null,null,null,null,null,null,null,null,null,null,null,null,null,null,null,null,null,null,13,4]
[null,null,null,null,null,null,null,null,null,null,null,null,null,null,null,null,null,null,null,null,null,null,null,null,null,null,null,14,3]
[null,null,null,null,null,null,null,null,null,null,null,null,null,null,null,null,null,null,null,null,null,null,null,null,null,null,null,6,1]
[null,null,null,null,null,null,null,null,null,null,null,null,null,null,null,null,null,null,null,null,null,null,null,null,null,null,null,3,4]
[null,null,null,null,null,null,null,null,null,null,null,null,null,null,null,null,null,null,null,null,null,null,null,null,null,null,null,4,3]
[null,null,null,null,null,null,null,null,null,null,null,null,null,null,null,null,null,null,null,null,null,null,null,null,null,null,null,6,1]
[null,null,null,null,null,null,null,null,null,null,null,null,null,null,null,null,null,null,null,null,null,null,null,null,null,null,null,8,1]
[null,null,null,null,null,null,null,null,null,null,null,null,null,null,null,null,null,null,null,null,null,null,null,null,null,null,null,{"$f":"ROUND(RAND()*16,0)","v":8},4]
[null,null,null,null,null,null,null,null,null,null,null,null,null,null,null,null,null,null,null,null,null,null,null,null,null,null,null,6,1]
[null,null,null,null,null,null,null,null,null,null,null,null,null,null,null,null,null,null,null,null,null,null,null,null,null,null,null,15,3]
[null,null,null,null,null,null,null,null,null,null,null,null,null,null,null,null,null,null,null,null,null,null,null,null,null,null,null,15,3]
[null,null,null,null,null,null,null,null,null,null,null,null,null,null,null,null,null,null,null,null,null,null,null,null,null,null,null,6,2]
[null,null,null,null,null,null,null,null,null,null,null,null,null,null,null,null,null,null,null,null,null,null,null,null,null,null,null,10,1]
[null,null,null,null,null,null,null,null,null,null,null,null,null,null,null,null,null,null,null,null,null,null,null,null,null,null,null,4,3]
[null,null,null,null,null,null,null,null,null,null,null,null,null,null,null,null,null,null,null,null,null,null,null,null,null,null,null,9,1]
[null,null,null,null,null,null,null,null,null,null,null,null,null,null,null,null,null,null,null,null,null,null,null,null,null,null,null,4,4]
[null,null,null,null,null,null,null,null,null,null,null,null,null,null,null,null,null,null,null,null,null,null,null,null,null,null,null,9,3]
[null,null,null,null,null,null,null,null,null,null,null,null,null,null,null,null,null,null,null,null,null,null,null,null,null,null,null,0,1]
[null,null,null,null,null,null,null,null,null,null,null,null,null,null,null,null,null,null,null,null,null,null,null,null,null,null,null,7,1]
[null,null,null,null,null,null,null,null,null,null,null,null,null,null,null,null,null,null,null,null,null,null,null,null,null,null,null,7,2]
[null,null,null,null,null,null,null,null,null,null,null,null,null,null,null,null,null,null,null,null,null,null,null,null,null,null,null,14,2]
[null,null,null,null,null,null,null,null,null,null,null,null,null,null,null,null,null,null,null,null,null,null,null,null,null,null,null,3,4]
[null,null,null,null,null,null,null,null,null,null,null,null,null,null,null,null,null,null,null,null,null,null,null,null,null,null,null,5,2]
[null,null,null,null,null,null,null,null,null,null,null,null,null,null,null,null,null,null,null,null,null,null,null,null,null,null,null,11,1]
[null,null,null,null,null,null,null,null,null,null,null,null,null,null,null,null,null,null,null,null,null,null,null,null,null,null,null,11,2]
[null,null,null,null,null,null,null,null,null,null,null,null,null,null,null,null,null,null,null,null,null,null,null,null,null,null,null,7,3]
[null,null,null,null,null,null,null,null,null,null,null,null,null,null,null,null,null,null,null,null,null,null,null,null,null,null,null,15,2]
[null,null,null,null,null,null,null,null,null,null,null,null,null,null,null,null,null,null,null,null,null,null,null,null,null,null,null,13,4]
[null,null,null,null,null,null,null,null,null,null,null,null,null,null,null,null,null,null,null,null,null,null,null,null,null,null,null,6,1]
[null,null,null,null,null,null,null,null,null,null,null,null,null,null,null,null,null,null,null,null,null,null,null,null,null,null,null,15,2]
[null,null,null,null,null,null,null,null,null,null,null,null,null,null,null,null,null,null,null,null,null,null,null,null,null,null,null,6,1]
[null,null,null,null,null,null,null,null,null,null,null,null,null,null,null,null,null,null,null,null,null,null,null,null,null,null,null,11,1]
[null,null,null,null,null,null,null,null,null,null,null,null,null,null,null,null,null,null,null,null,null,null,null,null,null,null,null,8,2]
[null,null,null,null,null,null,null,null,null,null,null,null,null,null,null,null,null,null,null,null,null,null,null,null,null,null,null,12,1]
[null,null,null,null,null,null,null,null,null,null,null,null,null,null,null,null,null,null,null,null,null,null,null,null,null,null,null,0,1]
[null,null,null,null,null,null,null,null,null,null,null,null,null,null,null,null,null,null,null,null,null,null,null,null,null,null,null,2,3]
[null,null,null,null,null,null,null,null,null,null,null,null,null,null,null,null,null,null,null,null,null,null,null,null,null,null,null,8,1]
[null,null,null,null,null,null,null,null,null,null,null,null,null,null,null,null,null,null,null,null,null,null,null,null,null,null,null,6,1]
[null,null,null,null,null,null,null,null,null,null,null,null,null,null,null,null,null,null,null,null,null,null,null,null,null,null,null,10,2]
[null,null,null,null,null,null,null,null,null,null,null,null,null,null,null,null,null,null,null,null,null,null,null,null,null,null,null,11,1]
[null,null,null,null,null,null,null,null,null,null,null,null,null,null,null,null,null,null,null,null,null,null,null,null,null,null,null,15,3]
[null,null,null,null,null,null,null,null,null,null,null,null,null,null,null,null,null,null,null,null,null,null,null,null,null,null,null,4,4]
[null,null,null,null,null,null,null,null,null,null,null,null,null,null,null,null,null,null,null,null,null,null,null,null,null,null,null,15,1]
[null,null,null,null,null,null,null,null,null,null,null,null,null,null,null,null,null,null,null,null,null,null,null,null,null,null,null,2,1]
[null,null,null,null,null,null,null,null,null,null,null,null,null,null,null,null,null,null,null,null,null,null,null,null,null,null,null,11,3]
[null,null,null,null,null,null,null,null,null,null,null,null,null,null,null,null,null,null,null,null,null,null,null,null,null,null,null,14,3]
[null,null,null,null,null,null,null,null,null,null,null,null,null,null,null,null,null,null,null,null,null,null,null,null,null,null,null,null,1]
[null,null,null,null,null,null,null,null,null,null,null,null,null,null,null,null,null,null,null,null,null,null,null,null,null,null,null,null,3]
[null,null,null,null,null,null,null,null,null,null,null,null,null,null,null,null,null,null,null,null,null,null,null,null,null,null,null,null,3]
[null,null,null,null,null,null,null,null,null,null,null,null,null,null,null,null,null,null,null,null,null,null,null,null,null,null,null,null,2]
[null,null,null,null,null,null,null,null,null,null,null,null,null,null,null,null,null,null,null,null,null,null,null,null,null,null,null,null,1]
[null,null,null,null,null,null,null,null,null,null,null,null,null,null,null,null,null,null,null,null,null,null,null,null,null,null,null,null,1]
[null,null,null,null,null,null,null,null,null,null,null,null,null,null,null,null,null,null,null,null,null,null,null,null,null,null,null,null,1]
[null,null,null,null,null,null,null,null,null,null,null,null,null,null,null,null,null,null,null,null,null,null,null,null,null,null,null,null,3]
[null,null,null,null,null,null,null,null,null,null,null,null,null,null,null,null,null,null,null,null,null,null,null,null,null,null,null,null,4]
[null,null,null,null,null,null,null,null,null,null,null,null,null,null,null,null,null,null,null,null,null,null,null,null,null,null,null,null,1]
[null,null,null,null,null,null,null,null,null,null,null,null,null,null,null,null,null,null,null,null,null,null,null,null,null,null,null,null,{"$f":"IF(MROUND(AB162,4)>4,MROUND(AB162,4)/4,1)","v":4}]
[null,null,null,null,null,null,null,null,null,null,null,null,null,null,null,null,null,null,null,null,null,null,null,null,null,null,null,null,3]
[null,null,null,null,null,null,null,null,null,null,null,null,null,null,null,null,null,null,null,null,null,null,null,null,null,null,null,null,4]
[null,null,null,null,null,null,null,null,null,null,null,null,null,null,null,null,null,null,null,null,null,null,null,null,null,null,null,null,1]
[null,null,null,null,null,null,null,null,null,null,null,null,null,null,null,null,null,null,null,null,null,null,null,null,null,null,null,null,1]
[null,null,null,null,null,null,null,null,null,null,null,null,null,null,null,null,null,null,null,null,null,null,null,null,null,null,null,null,2]
[null,null,null,null,null,null,null,null,null,null,null,null,null,null,null,null,null,null,null,null,null,null,null,null,null,null,null,null,3]
[null,null,null,null,null,null,null,null,null,null,null,null,null,null,null,null,null,null,null,null,null,null,null,null,null,null,null,null,3]
[null,null,null,null,null,null,null,null,null,null,null,null,null,null,null,null,null,null,null,null,null,null,null,null,null,null,null,null,4]
[null,null,null,null,null,null,null,null,null,null,null,null,null,null,null,null,null,null,null,null,null,null,null,null,null,null,null,null,2]
[null,null,null,null,null,null,null,null,null,null,null,null,null,null,null,null,null,null,null,null,null,null,null,null,null,null,null,null,3]
[null,null,null,null,null,null,null,null,null,null,null,null,null,null,null,null,null,null,null,null,null,null,null,null,null,null,null,null,4]
[null,null,null,null,null,null,null,null,null,null,null,null,null,null,null,null,null,null,null,null,null,null,null,null,null,null,null,null,1]
[null,null,null,null,null,null,null,null,null,null,null,null,null,null,null,null,null,null,null,null,null,null,null,null,null,null,null,null,2]
[null,null,null,null,null,null,null,null,null,null,null,null,null,null,null,null,null,null,null,null,null,null,null,null,null,null,null,null,2]
[null,null,null,null,null,null,null,null,null,null,null,null,null,null,null,null,null,null,null,null,null,null,null,null,null,null,null,null,2]
[null,null,null,null,null,null,null,null,null,null,null,null,null,null,null,null,null,null,null,null,null,null,null,null,null,null,null,null,1]
[null,null,null,null,null,null,null,null,null,null,null,null,null,null,null,null,null,null,null,null,null,null,null,null,null,null,null,null,1]
[null,null,null,null,null,null,null,null,null,null,null,null,null,null,null,null,null,null,null,null,null,null,null,null,null,null,null,null,3]
[null,null,null,null,null,null,null,null,null,null,null,null,null,null,null,null,null,null,null,null,null,null,null,null,null,null,null,null,1]
[null,null,null,null,null,null,null,null,null,null,null,null,null,null,null,null,null,null,null,null,null,null,null,null,null,null,null,null,2]
[null,null,null,null,null,null,null,null,null,null,null,null,null,null,null,null,null,null,null,null,null,null,null,null,null,null,null,null,4]
[null,null,null,null,null,null,null,null,null,null,null,null,null,null,null,null,null,null,null,null,null,null,null,null,null,null,null,null,4]
[null,null,null,null,null,null,null,null,null,null,null,null,null,null,null,null,null,null,null,null,null,null,null,null,null,null,null,null,4]
[null,null,null,null,null,null,null,null,null,null,null,null,null,null,null,null,null,null,null,null,null,null,null,null,null,null,null,null,2]
[null,null,null,null,null,null,null,null,null,null,null,null,null,null,null,null,null,null,null,null,null,null,null,null,null,null,null,null,3]
[null,null,null,null,null,null,null,null,null,null,null,null,null,null,null,null,null,null,null,null,null,null,null,null,null,null,null,null,1]
[null,null,null,null,null,null,null,null,null,null,null,null,null,null,null,null,null,null,null,null,null,null,null,null,null,null,null,null,1]
[null,null,null,null,null,null,null,null,null,null,null,null,null,null,null,null,null,null,null,null,null,null,null,null,null,null,null,null,3]
[null,null,null,null,null,null,null,null,null,null,null,null,null,null,null,null,null,null,null,null,null,null,null,null,null,null,null,null,2]
[null,null,null,null,null,null,null,null,null,null,null,null,null,null,null,null,null,null,null,null,null,null,null,null,null,null,null,null,2]
[null,null,null,null,null,null,null,null,null,null,null,null,null,null,null,null,null,null,null,null,null,null,null,null,null,null,null,null,1]
[null,null,null,null,null,null,null,null,null,null,null,null,null,null,null,null,null,null,null,null,null,null,null,null,null,null,null,null,4]
[null,null,null,null,null,null,null,null,null,null,null,null,null,null,null,null,null,null,null,null,null,null,null,null,null,null,null,null,2]
[null,null,null,null,null,null,null,null,null,null,null,null,null,null,null,null,null,null,null,null,null,null,null,null,null,null,null,null,4]
[null,null,null,null,null,null,null,null,null,null,null,null,null,null,null,null,null,null,null,null,null,null,null,null,null,null,null,null,1]
[null,null,null,null,null,null,null,null,null,null,null,null,null,null,null,null,null,null,null,null,null,null,null,null,null,null,null,null,3]
[null,null,null,null,null,null,null,null,null,null,null,null,null,null,null,null,null,null,null,null,null,null,null,null,null,null,null,null,2]
[null,null,null,null,null,null,null,null,null,null,null,null,null,null,null,null,null,null,null,null,null,null,null,null,null,null,null,null,1]
[null,null,null,null,null,null,null,null,null,null,null,null,null,null,null,null,null,null,null,null,null,null,null,null,null,null,null,null,4]
[null,null,null,null,null,null,null,null,null,null,null,null,null,null,null,null,null,null,null,null,null,null,null,null,null,null,null,null,4]
[null,null,null,null,null,null,null,null,null,null,null,null,null,null,null,null,null,null,null,null,null,null,null,null,null,null,null,null,3]
[null,null,null,null,null,null,null,null,null,null,null,null,null,null,null,null,null,null,null,null,null,null,null,null,null,null,null,null,3]
[null,null,null,null,null,null,null,null,null,null,null,null,null,null,null,null,null,null,null,null,null,null,null,null,null,null,null,null,3]
[null,null,null,null,null,null,null,null,null,null,null,null,null,null,null,null,null,null,null,null,null,null,null,null,null,null,null,null,3]
[null,null,null,null,null,null,null,null,null,null,null,null,null,null,null,null,null,null,null,null,null,null,null,null,null,null,null,null,3]
[null,null,null,null,null,null,null,null,null,null,null,null,null,null,null,null,null,null,null,null,null,null,null,null,null,null,null,null,1]
[null,null,null,null,null,null,null,null,null,null,null,null,null,null,null,null,null,null,null,null,null,null,null,null,null,null,null,null,4]
[null,null,null,null,null,null,null,null,null,null,null,null,null,null,null,null,null,null,null,null,null,null,null,null,null,null,null,null,2]
[null,null,null,null,null,null,null,null,null,null,null,null,null,null,null,null,null,null,null,null,null,null,null,null,null,null,null,null,3]
[null,null,null,null,null,null,null,null,null,null,null,null,null,null,null,null,null,null,null,null,null,null,null,null,null,null,null,null,3]
[null,null,null,null,null,null,null,null,null,null,null,null,null,null,null,null,null,null,null,null,null,null,null,null,null,null,null,null,2]
[null,null,null,null,null,null,null,null,null,null,null,null,null,null,null,null,null,null,null,null,null,null,null,null,null,null,null,null,3]
[null,null,null,null,null,null,null,null,null,null,null,null,null,null,null,null,null,null,null,null,null,null,null,null,null,null,null,null,1]
[null,null,null,null,null,null,null,null,null,null,null,null,null,null,null,null,null,null,null,null,null,null,null,null,null,null,null,null,4]
[null,null,null,null,null,null,null,null,null,null,null,null,null,null,null,null,null,null,null,null,null,null,null,null,null,null,null,null,1]
[null,null,null,null,null,null,null,null,null,null,null,null,null,null,null,null,null,null,null,null,null,null,null,null,null,null,null,null,1]
[null,null,null,null,null,null,null,null,null,null,null,null,null,null,null,null,null,null,null,null,null,null,null,null,null,null,null,null,3]
[null,null,null,null,null,null,null,null,null,null,null,null,null,null,null,null,null,null,null,null,null,null,null,null,null,null,null,null,3]
[null,null,null,null,null,null,null,null,null,null,null,null,null,null,null,null,null,null,null,null,null,null,null,null,null,null,null,null,1]
[null,null,null,null,null,null,null,null,null,null,null,null,null,null,null,null,null,null,null,null,null,null,null,null,null,null,null,null,1]
[null,null,null,null,null,null,null,null,null,null,null,null,null,null,null,null,null,null,null,null,null,null,null,null,null,null,null,null,1]
[null,null,null,null,null,null,null,null,null,null,null,null,null,null,null,null,null,null,null,null,null,null,null,null,null,null,null,null,2]
[null,null,null,null,null,null,null,null,null,null,null,null,null,null,null,null,null,null,null,null,null,null,null,null,null,null,null,null,1]
[null,null,null,null,null,null,null,null,null,null,null,null,null,null,null,null,null,null,null,null,null,null,null,null,null,null,null,null,{"$f":"IF(MROUND(AB226,4)>4,MROUND(AB226,4)/4,1)","v":2}]
[null,null,null,null,null,null,null,null,null,null,null,null,null,null,null,null,null,null,null,null,null,null,null,null,null,null,null,null,2]
[null,null,null,null,null,null,null,null,null,null,null,null,null,null,null,null,null,null,null,null,null,null,null,null,null,null,null,null,1]
[null,null,null,null,null,null,null,null,null,null,null,null,null,null,null,null,null,null,null,null,null,null,null,null,null,null,null,null,1]
[null,null,null,null,null,null,null,null,null,null,null,null,null,null,null,null,null,null,null,null,null,null,null,null,null,null,null,null,1]
[null,null,null,null,null,null,null,null,null,null,null,null,null,null,null,null,null,null,null,null,null,null,null,null,null,null,null,null,3]
[null,null,null,null,null,null,null,null,null,null,null,null,null,null,null,null,null,null,null,null,null,null,null,null,null,null,null,null,3]
[null,null,null,null,null,null,null,null,null,null,null,null,null,null,null,null,null,null,null,null,null,null,null,null,null,null,null,null,1]
[null,null,null,null,null,null,null,null,null,null,null,null,null,null,null,null,null,null,null,null,null,null,null,null,null,null,null,null,4]
[null,null,null,null,null,null,null,null,null,null,null,null,null,null,null,null,null,null,null,null,null,null,null,null,null,null,null,null,4]
[null,null,null,null,null,null,null,null,null,null,null,null,null,null,null,null,null,null,null,null,null,null,null,null,null,null,null,null,4]
[null,null,null,null,null,null,null,null,null,null,null,null,null,null,null,null,null,null,null,null,null,null,null,null,null,null,null,null,1]
[null,null,null,null,null,null,null,null,null,null,null,null,null,null,null,null,null,null,null,null,null,null,null,null,null,null,null,null,3]
[null,null,null,null,null,null,null,null,null,null,null,null,null,null,null,null,null,null,null,null,null,null,null,null,null,null,null,null,3]
[null,null,null,null,null,null,null,null,null,null,null,null,null,null,null,null,null,null,null,null,null,null,null,null,null,null,null,null,1]
[null,null,null,null,null,null,null,null,null,null,null,null,null,null,null,null,null,null,null,null,null,null,null,null,null,null,null,null,2]
[null,null,null,null,null,null,null,null,null,null,null,null,null,null,null,null,null,null,null,null,null,null,null,null,null,null,null,null,3]
[null,null,null,null,null,null,null,null,null,null,null,null,null,null,null,null,null,null,null,null,null,null,null,null,null,null,null,null,4]
[null,null,null,null,null,null,null,null,null,null,null,null,null,null,null,null,null,null,null,null,null,null,null,null,null,null,null,null,4]
[null,null,null,null,null,null,null,null,null,null,null,null,null,null,null,null,null,null,null,null,null,null,null,null,null,null,null,null,4]
[null,null,null,null,null,null,null,null,null,null,null,null,null,null,null,null,null,null,null,null,null,null,null,null,null,null,null,null,3]
[null,null,null,null,null,null,null,null,null,null,null,null,null,null,null,null,null,null,null,null,null,null,null,null,null,null,null,null,3]
[null,null,null,null,null,null,null,null,null,null,null,null,null,null,null,null,null,null,null,null,null,null,null,null,null,null,null,null,1]
[null,null,null,null,null,null,null,null,null,null,null,null,null,null,null,null,null,null,null,null,null,null,null,null,null,null,null,null,1]
[null,null,null,null,null,null,null,null,null,null,null,null,null,null,null,null,null,null,null,null,null,null,null,null,null,null,null,null,4]
[null,null,null,null,null,null,null,null,null,null,null,null,null,null,null,null,null,null,null,null,null,null,null,null,null,null,null,null,3]
[null,null,null,null,null,null,null,null,null,null,null,null,null,null,null,null,null,null,null,null,null,null,null,null,null,null,null,null,4]
[null,null,null,null,null,null,null,null,null,null,null,null,null,null,null,null,null,null,null,null,null,null,null,null,null,null,null,null,3]
[null,null,null,null,null,null,null,null,null,null,null,null,null,null,null,null,null,null,null,null,null,null,null,null,null,null,null,null,1]
[null,null,null,null,null,null,null,null,null,null,null,null,null,null,null,null,null,null,null,null,null,null,null,null,null,null,null,null,1]
[null,null,null,null,null,null,null,null,null,null,null,null,null,null,null,null,null,null,null,null,null,null,null,null,null,null,null,null,3]
[null,null,null,null,null,null,null,null,null,null,null,null,null,null,null,null,null,null,null,null,null,null,null,null,null,null,null,null,2]
[null,null,null,null,null,null,null,null,null,null,null,null,null,null,null,null,null,null,null,null,null,null,null,null,null,null,null,null,3]
[null,null,null,null,null,null,null,null,null,null,null,null,null,null,null,null,null,null,null,null,null,null,null,null,null,null,null,null,3]
[null,null,null,null,null,null,null,null,null,null,null,null,null,null,null,null,null,null,null,null,null,null,null,null,null,null,null,null,2]
[null,null,null,null,null,null,null,null,null,null,null,null,null,null,null,null,null,null,null,null,null,null,null,null,null,null,null,null,4]
[null,null,null,null,null,null,null,null,null,null,null,null,null,null,null,null,null,null,null,null,null,null,null,null,null,null,null,null,4]
[null,null,null,null,null,null,null,null,null,null,null,null,null,null,null,null,null,null,null,null,null,null,null,null,null,null,null,null,2]
[null,null,null,null,null,null,null,null,null,null,null,null,null,null,null,null,null,null,null,null,null,null,null,null,null,null,null,null,2]
[null,null,null,null,null,null,null,null,null,null,null,null,null,null,null,null,null,null,null,null,null,null,null,null,null,null,null,null,4]
[null,null,null,null,null,null,null,null,null,null,null,null,null,null,null,null,null,null,null,null,null,null,null,null,null,null,null,null,4]
[null,null,null,null,null,null,null,null,null,null,null,null,null,null,null,null,null,null,null,null,null,null,null,null,null,null,null,null,4]
[null,null,null,null,null,null,null,null,null,null,null,null,null,null,null,null,null,null,null,null,null,null,null,null,null,null,null,null,1]
[null,null,null,null,null,null,null,null,null,null,null,null,null,null,null,null,null,null,null,null,null,null,null,null,null,null,null,null,4]
[null,null,null,null,null,null,null,null,null,null,null,null,null,null,null,null,null,null,null,null,null,null,null,null,null,null,null,null,3]
[null,null,null,null,null,null,null,null,null,null,null,null,null,null,null,null,null,null,null,null,null,null,null,null,null,null,null,null,1]
[null,null,null,null,null,null,null,null,null,null,null,null,null,null,null,null,null,null,null,null,null,null,null,null,null,null,null,null,1]
[null,null,null,null,null,null,null,null,null,null,null,null,null,null,null,null,null,null,null,null,null,null,null,null,null,null,null,null,4]
[null,null,null,null,null,null,null,null,null,null,null,null,null,null,null,null,null,null,null,null,null,null,null,null,null,null,null,null,1]
[null,null,null,null,null,null,null,null,null,null,null,null,null,null,null,null,null,null,null,null,null,null,null,null,null,null,null,null,4]
[null,null,null,null,null,null,null,null,null,null,null,null,null,null,null,null,null,null,null,null,null,null,null,null,null,null,null,null,1]
[null,null,null,null,null,null,null,null,null,null,null,null,null,null,null,null,null,null,null,null,null,null,null,null,null,null,null,null,1]
[null,null,null,null,null,null,null,null,null,null,null,null,null,null,null,null,null,null,null,null,null,null,null,null,null,null,null,null,1]
[null,null,null,null,null,null,null,null,null,null,null,null,null,null,null,null,null,null,null,null,null,null,null,null,null,null,null,null,2]
[null,null,null,null,null,null,null,null,null,null,null,null,null,null,null,null,null,null,null,null,null,null,null,null,null,null,null,null,4]
[null,null,null,null,null,null,null,null,null,null,null,null,null,null,null,null,null,null,null,null,null,null,null,null,null,null,null,null,1]
[null,null,null,null,null,null,null,null,null,null,null,null,null,null,null,null,null,null,null,null,null,null,null,null,null,null,null,null,3]
[null,null,null,null,null,null,null,null,null,null,null,null,null,null,null,null,null,null,null,null,null,null,null,null,null,null,null,null,1]
[null,null,null,null,null,null,null,null,null,null,null,null,null,null,null,null,null,null,null,null,null,null,null,null,null,null,null,null,2]
[null,null,null,null,null,null,null,null,null,null,null,null,null,null,null,null,null,null,null,null,null,null,null,null,null,null,null,null,4]
[null,null,null,null,null,null,null,null,null,null,null,null,null,null,null,null,null,null,null,null,null,null,null,null,null,null,null,null,1]
[null,null,null,null,null,null,null,null,null,null,null,null,null,null,null,null,null,null,null,null,null,null,null,null,null,null,null,null,2]
[null,null,null,null,null,null,null,null,null,null,null,null,null,null,null,null,null,null,null,null,null,null,null,null,null,null,null,null,1]
[null,null,null,null,null,null,null,null,null,null,null,null,null,null,null,null,null,null,null,null,null,null,null,null,null,null,null,null,1]
[null,null,null,null,null,null,null,null,null,null,null,null,null,null,null,null,null,null,null,null,null,null,null,null,null,null,null,null,{"$f":"IF(MROUND(AB290,4)>4,MROUND(AB290,4)/4,1)","v":3}]
[null,null,null,null,null,null,null,null,null,null,null,null,null,null,null,null,null,null,null,null,null,null,null,null,null,null,null,null,4]
[null,null,null,null,null,null,null,null,null,null,null,null,null,null,null,null,null,null,null,null,null,null,null,null,null,null,null,null,2]
[null,null,null,null,null,null,null,null,null,null,null,null,null,null,null,null,null,null,null,null,null,null,null,null,null,null,null,null,4]
[null,null,null,null,null,null,null,null,null,null,null,null,null,null,null,null,null,null,null,null,null,null,null,null,null,null,null,null,1]
[null,null,null,null,null,null,null,null,null,null,null,null,null,null,null,null,null,null,null,null,null,null,null,null,null,null,null,null,1]
[null,null,null,null,null,null,null,null,null,null,null,null,null,null,null,null,null,null,null,null,null,null,null,null,null,null,null,null,4]
[null,null,null,null,null,null,null,null,null,null,null,null,null,null,null,null,null,null,null,null,null,null,null,null,null,null,null,null,3]
[null,null,null,null,null,null,null,null,null,null,null,null,null,null,null,null,null,null,null,null,null,null,null,null,null,null,null,null,2]
[null,null,null,null,null,null,null,null,null,null,null,null,null,null,null,null,null,null,null,null,null,null,null,null,null,null,null,null,4]
[null,null,null,null,null,null,null,null,null,null,null,null,null,null,null,null,null,null,null,null,null,null,null,null,null,null,null,null,1]
[null,null,null,null,null,null,null,null,null,null,null,null,null,null,null,null,null,null,null,null,null,null,null,null,null,null,null,null,1]
[null,null,null,null,null,null,null,null,null,null,null,null,null,null,null,null,null,null,null,null,null,null,null,null,null,null,null,null,2]
[null,null,null,null,null,null,null,null,null,null,null,null,null,null,null,null,null,null,null,null,null,null,null,null,null,null,null,null,3]
[null,null,null,null,null,null,null,null,null,null,null,null,null,null,null,null,null,null,null,null,null,null,null,null,null,null,null,null,4]
[null,null,null,null,null,null,null,null,null,null,null,null,null,null,null,null,null,null,null,null,null,null,null,null,null,null,null,null,1]
[null,null,null,null,null,null,null,null,null,null,null,null,null,null,null,null,null,null,null,null,null,null,null,null,null,null,null,null,2]
[null,null,null,null,null,null,null,null,null,null,null,null,null,null,null,null,null,null,null,null,null,null,null,null,null,null,null,null,3]
[null,null,null,null,null,null,null,null,null,null,null,null,null,null,null,null,null,null,null,null,null,null,null,null,null,null,null,null,3]
[null,null,null,null,null,null,null,null,null,null,null,null,null,null,null,null,null,null,null,null,null,null,null,null,null,null,null,null,4]
[null,null,null,null,null,null,null,null,null,null,null,null,null,null,null,null,null,null,null,null,null,null,null,null,null,null,null,null,3]
[null,null,null,null,null,null,null,null,null,null,null,null,null,null,null,null,null,null,null,null,null,null,null,null,null,null,null,null,1]
[null,null,null,null,null,null,null,null,null,null,null,null,null,null,null,null,null,null,null,null,null,null,null,null,null,null,null,null,3]
[null,null,null,null,null,null,null,null,null,null,null,null,null,null,null,null,null,null,null,null,null,null,null,null,null,null,null,null,1]
[null,null,null,null,null,null,null,null,null,null,null,null,null,null,null,null,null,null,null,null,null,null,null,null,null,null,null,null,1]
[null,null,null,null,null,null,null,null,null,null,null,null,null,null,null,null,null,null,null,null,null,null,null,null,null,null,null,null,2]
[null,null,null,null,null,null,null,null,null,null,null,null,null,null,null,null,null,null,null,null,null,null,null,null,null,null,null,null,2]
[null,null,null,null,null,null,null,null,null,null,null,null,null,null,null,null,null,null,null,null,null,null,null,null,null,null,null,null,2]
[null,null,null,null,null,null,null,null,null,null,null,null,null,null,null,null,null,null,null,null,null,null,null,null,null,null,null,null,1]
[null,null,null,null,null,null,null,null,null,null,null,null,null,null,null,null,null,null,null,null,null,null,null,null,null,null,null,null,1]
[null,null,null,null,null,null,null,null,null,null,null,null,null,null,null,null,null,null,null,null,null,null,null,null,null,null,null,null,2]
[null,null,null,null,null,null,null,null,null,null,null,null,null,null,null,null,null,null,null,null,null,null,null,null,null,null,null,null,3]
[null,null,null,null,null,null,null,null,null,null,null,null,null,null,null,null,null,null,null,null,null,null,null,null,null,null,null,null,3]
[null,null,null,null,null,null,null,null,null,null,null,null,null,null,null,null,null,null,null,null,null,null,null,null,null,null,null,null,1]
[null,null,null,null,null,null,null,null,null,null,null,null,null,null,null,null,null,null,null,null,null,null,null,null,null,null,null,null,1]
[null,null,null,null,null,null,null,null,null,null,null,null,null,null,null,null,null,null,null,null,null,null,null,null,null,null,null,null,4]
[null,null,null,null,null,null,null,null,null,null,null,null,null,null,null,null,null,null,null,null,null,null,null,null,null,null,null,null,2]
[null,null,null,null,null,null,null,null,null,null,null,null,null,null,null,null,null,null,null,null,null,null,null,null,null,null,null,null,4]
[null,null,null,null,null,null,null,null,null,null,null,null,null,null,null,null,null,null,null,null,null,null,null,null,null,null,null,null,2]
[null,null,null,null,null,null,null,null,null,null,null,null,null,null,null,null,null,null,null,null,null,null,null,null,null,null,null,null,1]
[null,null,null,null,null,null,null,null,null,null,null,null,null,null,null,null,null,null,null,null,null,null,null,null,null,null,null,null,4]
[null,null,null,null,null,null,null,null,null,null,null,null,null,null,null,null,null,null,null,null,null,null,null,null,null,null,null,null,2]
[null,null,null,null,null,null,null,null,null,null,null,null,null,null,null,null,null,null,null,null,null,null,null,null,null,null,null,null,2]
[null,null,null,null,null,null,null,null,null,null,null,null,null,null,null,null,null,null,null,null,null,null,null,null,null,null,null,null,1]
[null,null,null,null,null,null,null,null,null,null,null,null,null,null,null,null,null,null,null,null,null,null,null,null,null,null,null,null,1]
[null,null,null,null,null,null,null,null,null,null,null,null,null,null,null,null,null,null,null,null,null,null,null,null,null,null,null,null,2]
[null,null,null,null,null,null,null,null,null,null,null,null,null,null,null,null,null,null,null,null,null,null,null,null,null,null,null,null,1]
[null,null,null,null,null,null,null,null,null,null,null,null,null,null,null,null,null,null,null,null,null,null,null,null,null,null,null,null,3]
[null,null,null,null,null,null,null,null,null,null,null,null,null,null,null,null,null,null,null,null,null,null,null,null,null,null,null,null,1]
[null,null,null,null,null,null,null,null,null,null,null,null,null,null,null,null,null,null,null,null,null,null,null,null,null,null,null,null,3]
[null,null,null,null,null,null,null,null,null,null,null,null,null,null,null,null,null,null,null,null,null,null,null,null,null,null,null,null,2]
[null,null,null,null,null,null,null,null,null,null,null,null,null,null,null,null,null,null,null,null,null,null,null,null,null,null,null,null,1]
[null,null,null,null,null,null,null,null,null,null,null,null,null,null,null,null,null,null,null,null,null,null,null,null,null,null,null,null,1]
[null,null,null,null,null,null,null,null,null,null,null,null,null,null,null,null,null,null,null,null,null,null,null,null,null,null,null,null,4]
[null,null,null,null,null,null,null,null,null,null,null,null,null,null,null,null,null,null,null,null,null,null,null,null,null,null,null,null,1]
[null,null,null,null,null,null,null,null,null,null,null,null,null,null,null,null,null,null,null,null,null,null,null,null,null,null,null,null,2]
[null,null,null,null,null,null,null,null,null,null,null,null,null,null,null,null,null,null,null,null,null,null,null,null,null,null,null,null,2]
[null,null,null,null,null,null,null,null,null,null,null,null,null,null,null,null,null,null,null,null,null,null,null,null,null,null,null,null,3]
[null,null,null,null,null,null,null,null,null,null,null,null,null,null,null,null,null,null,null,null,null,null,null,null,null,null,null,null,4]
[null,null,null,null,null,null,null,null,null,null,null,null,null,null,null,null,null,null,null,null,null,null,null,null,null,null,null,null,2]
[null,null,null,null,null,null,null,null,null,null,null,null,null,null,null,null,null,null,null,null,null,null,null,null,null,null,null,null,1]
[null,null,null,null,null,null,null,null,null,null,null,null,null,null,null,null,null,null,null,null,null,null,null,null,null,null,null,null,1]
[null,null,null,null,null,null,null,null,null,null,null,null,null,null,null,null,null,null,null,null,null,null,null,null,null,null,null,null,2]
[null,null,null,null,null,null,null,null,null,null,null,null,null,null,null,null,null,null,null,null,null,null,null,null,null,null,null,null,2]
[null,null,null,null,null,null,null,null,null,null,null,null,null,null,null,null,null,null,null,null,null,null,null,null,null,null,null,null,{"$f":"IF(MROUND(AB354,4)>4,MROUND(AB354,4)/4,1)","v":2}]
[null,null,null,null,null,null,null,null,null,null,null,null,null,null,null,null,null,null,null,null,null,null,null,null,null,null,null,null,2]
[null,null,null,null,null,null,null,null,null,null,null,null,null,null,null,null,null,null,null,null,null,null,null,null,null,null,null,null,4]
[null,null,null,null,null,null,null,null,null,null,null,null,null,null,null,null,null,null,null,null,null,null,null,null,null,null,null,null,4]
[null,null,null,null,null,null,null,null,null,null,null,null,null,null,null,null,null,null,null,null,null,null,null,null,null,null,null,null,2]
[null,null,null,null,null,null,null,null,null,null,null,null,null,null,null,null,null,null,null,null,null,null,null,null,null,null,null,null,3]
[null,null,null,null,null,null,null,null,null,null,null,null,null,null,null,null,null,null,null,null,null,null,null,null,null,null,null,null,1]
[null,null,null,null,null,null,null,null,null,null,null,null,null,null,null,null,null,null,null,null,null,null,null,null,null,null,null,null,2]
[null,null,null,null,null,null,null,null,null,null,null,null,null,null,null,null,null,null,null,null,null,null,null,null,null,null,null,null,1]
[null,null,null,null,null,null,null,null,null,null,null,null,null,null,null,null,null,null,null,null,null,null,null,null,null,null,null,null,2]
[null,null,null,null,null,null,null,null,null,null,null,null,null,null,null,null,null,null,null,null,null,null,null,null,null,null,null,null,1]
[null,null,null,null,null,null,null,null,null,null,null,null,null,null,null,null,null,null,null,null,null,null,null,null,null,null,null,null,2]
[null,null,null,null,null,null,null,null,null,null,null,null,null,null,null,null,null,null,null,null,null,null,null,null,null,null,null,null,2]
[null,null,null,null,null,null,null,null,null,null,null,null,null,null,null,null,null,null,null,null,null,null,null,null,null,null,null,null,4]
[null,null,null,null,null,null,null,null,null,null,null,null,null,null,null,null,null,null,null,null,null,null,null,null,null,null,null,null,1]
[null,null,null,null,null,null,null,null,null,null,null,null,null,null,null,null,null,null,null,null,null,null,null,null,null,null,null,null,1]
[null,null,null,null,null,null,null,null,null,null,null,null,null,null,null,null,null,null,null,null,null,null,null,null,null,null,null,null,3]
[null,null,null,null,null,null,null,null,null,null,null,null,null,null,null,null,null,null,null,null,null,null,null,null,null,null,null,null,3]
[null,null,null,null,null,null,null,null,null,null,null,null,null,null,null,null,null,null,null,null,null,null,null,null,null,null,null,null,2]
[null,null,null,null,null,null,null,null,null,null,null,null,null,null,null,null,null,null,null,null,null,null,null,null,null,null,null,null,4]
[null,null,null,null,null,null,null,null,null,null,null,null,null,null,null,null,null,null,null,null,null,null,null,null,null,null,null,null,3]
[null,null,null,null,null,null,null,null,null,null,null,null,null,null,null,null,null,null,null,null,null,null,null,null,null,null,null,null,2]
[null,null,null,null,null,null,null,null,null,null,null,null,null,null,null,null,null,null,null,null,null,null,null,null,null,null,null,null,4]
[null,null,null,null,null,null,null,null,null,null,null,null,null,null,null,null,null,null,null,null,null,null,null,null,null,null,null,null,2]
[null,null,null,null,null,null,null,null,null,null,null,null,null,null,null,null,null,null,null,null,null,null,null,null,null,null,null,null,3]
[null,null,null,null,null,null,null,null,null,null,null,null,null,null,null,null,null,null,null,null,null,null,null,null,null,null,null,null,2]
[null,null,null,null,null,null,null,null,null,null,null,null,null,null,null,null,null,null,null,null,null,null,null,null,null,null,null,null,3]
[null,null,null,null,null,null,null,null,null,null,null,null,null,null,null,null,null,null,null,null,null,null,null,null,null,null,null,null,1]
[null,null,null,null,null,null,null,null,null,null,null,null,null,null,null,null,null,null,null,null,null,null,null,null,null,null,null,null,1]
[null,null,null,null,null,null,null,null,null,null,null,null,null,null,null,null,null,null,null,null,null,null,null,null,null,null,null,null,2]
[null,null,null,null,null,null,null,null,null,null,null,null,null,null,null,null,null,null,null,null,null,null,null,null,null,null,null,null,2]
[null,null,null,null,null,null,null,null,null,null,null,null,null,null,null,null,null,null,null,null,null,null,null,null,null,null,null,null,3]
[null,null,null,null,null,null,null,null,null,null,null,null,null,null,null,null,null,null,null,null,null,null,null,null,null,null,null,null,3]
[null,null,null,null,null,null,null,null,null,null,null,null,null,null,null,null,null,null,null,null,null,null,null,null,null,null,null,null,4]
[null,null,null,null,null,null,null,null,null,null,null,null,null,null,null,null,null,null,null,null,null,null,null,null,null,null,null,null,1]
[null,null,null,null,null,null,null,null,null,null,null,null,null,null,null,null,null,null,null,null,null,null,null,null,null,null,null,null,4]
[null,null,null,null,null,null,null,null,null,null,null,null,null,null,null,null,null,null,null,null,null,null,null,null,null,null,null,null,1]
[null,null,null,null,null,null,null,null,null,null,null,null,null,null,null,null,null,null,null,null,null,null,null,null,null,null,null,null,3]
[null,null,null,null,null,null,null,null,null,null,null,null,null,null,null,null,null,null,null,null,null,null,null,null,null,null,null,null,4]
[]
[]
[]
[]
[]
[]
[]
[]
[]
[]
[]
[]
[]
[]
[]
[]
[]
[]
[]
[]
[]
[]
[]
[]
[]
[]
[]
[]
[]
[]
[]
[]
[]
[]
[]
[]
[]
[]
[]
[]
[]
[]
[]
[]
[]
[]
[]
[]
[]
[]
[]
[]
[]
[]
[]
[]
[]
[]
[]
[]
[]
[]
[]
[]
[]
[]
[]
[]
[]
[]
[]
[]
[]
[]
[]
[]
[]
[]
[]
[]
[]
[]
[]
[]
[]
[]
[]
[]
[]
[]
[]
[]
[]
[]
[]
[]
[]
[]
[]
[]
[]
[]
[]
[]
[]
[]
[]
[]
[]
[]
[]
[]
[]
[]
[]
[]
[]
[]
[]
[]
[]
[]
[]
[]
[]
[]
[]
[]
[]
[]
[]
[]
[]
[]
[]
[]
[]
[]
[]
[]
[]
[]
[]
[]
[]
[]
[]
[]
[]
[]
[]
[]
[]
[]
[]
[]
[]
[]
[]
[]
[]
[]
[]
[]
[]
[]
[]
[]
[]
[]
[]
[]
[]
[]
[]
[]
[]
[]
[]
[]
[]
[]
[]
[]
[]
[]
[]
[]
[]
[]
[]
[]
[]
[]
[]
[]
[]
[]
[]
[]
[]
[]
[]
[]
[]
[]
[]
[]
[]
[]
[]
[]
[]
[]
[]
[]
[]
[]
[]
[]
[]
[]
[]
[]
[]
[]
[]
[]
[]
[]
[]
[]
[]
[]
[]
[]
[]
[]
[]
[]
[]
[]
[]
[]
[]
[]
[]
[]
[]
[]
[]
[]
[]
[]
[]
[]
[]
[]
[]
[]
[]
[]
[]
[]
[]
[]
[]
[]
[]
[]
[]
[]
[]
[]
[]
[]
[]
[]
[]
[]
[]
[]
[]
[]
[]
[]
[]
[]
[]
[]
[]
[]
[]
[]
[]
[]
[]
[]
[]
[]
[]
[]
[]
[]
[]
[]
[]
[]
[]
[]
[]
[]
[]
[]
[]
[]
[]
[]
[]
[]
[]
[]
[]
[]
[]
[]
[]
[]
[]
[]
[]
[]
[]
[]
[]
[]
[]
[]
[]
[]
[]
[]
[]
[]
[]
[]
[]
[]
[]
[]
[]
[]
[]
[]
[]
[]
[]
[]
[]
[]
[]
[]
[]
[]
[]
[]
[]
[]
[]
[]
[]
[]
[]
[]
[]
[]
[]
[]
[]
[]
[]
[]
[]
[]
[]
[]
[]
[]
[]
[]
[]
[]
[]
[]
[]
[]
[]
[]
[]
[]
[]
[]
[]
[]
[]
[]
[]
[]
[]
[]
[]
[]
[]
[]
[]
[]
[]
[]
[]
[]
[]
[]
[]
[]
[]
[]
[]
[]
[]
[]
[]
[]
[]
[]
[]
[]
[]
[]
[]
[]
[]
[]
[]
[]
[]
[]
[]
[]
[]
[]
[]
[]
[]
[]
[]
[]
[]
[]
[]
[]
[]
[]
[]
[]
[]
[]
[]
[]
[]
[]
[]
[]
[]
[]
[]
[]
[]
[]
[]
[]
[]
[]
[]
[]
[]
[]
[]
[]
[]
[]
[]
[]
[]
[]
[]
[]
[]
[]
[]
[]
[]
[]
[]
[]
[]
[]
[]
[]
[]
[]
[]
[]
[]
[]
[]
[]
[]
[]
[]
[]
[]
[]
[]
[]
[]
[]
[]
[]
[]
[]
[]
[]
[]
[]
[]
[]
[]
[]
[]
[]
[]
[]
[]
[]
[]
[]
[]
[]
[]
[]
[]
[]
[]
[]
[]
[]
[]
[]
[]
[]
[]
[]
[]
[]
[]
[]
[]
[]
[]
[]
[]
[]
[]
[]
[]
[]
[]
[]
[]
[]
[]
[]
[]
[]
[]
[]
[]
[]
[]
[]
[]
[]
[]
[]
[]
[]
[]
[]
[]
[]
[]
[]
[]
[]
[]
[]
[]
[]
[]
[]
[]
[]
[]
[]
[]
[]
[]
[]
[]
[]
[]
[]
[]
[]
[]
[]
[]
[]
[]
[]
[]
[]
[]
[]
[]
[]
[]
[]
[]
[]
[]
[]
[]
[]
[]
[]
[]
[]
[]
[]
[]
[]
[]
[]
[]
[]
[]
[]
[]
[]
[]
[]
[]
[]
[]
[]
[]
[]
[]
[]
[]
[]
[]
[]
[]
[]
[]
[]
[]
[]
[]
[]
[]
[]
[]
[]
[]
[]
[]
[]
[]
[]
[]
[]
[]
[]
[]
[]
[]
[]
[]
[]
[]
[]
[]
[]
[]
[]
[]
[]
[]
[]
[]
[]
[]
[]
[]
[]
[]
[]
[]
[]
[]
[]
[]
[]
[]
[]
[]
[]
[]
[]
[]
[]
[]
[]
[]
[]
[]
[]
[]
[]
[]
[]
[]
[]
[]
[]
[]
[]
[]
[]
[]
[]
[]
[]
[]
[]
[]
[]
[]
[]
[]
[]
[]
[]
[]
[]
[]
[]
[]
[]
[]
[]
[]
[]
[]
[]
[]
[]
[]
[]
[]
[]
[]
[]
[]
[]
[]
[]
[]
[]
[]
[]
[]
[]
[]
[]
[]
[]
[]
[]
[]
[]
[]
[]
[]
[]
[]
[]
[]
[]
[]
[]
[]
[]
[]
[]
[]
[]
[]
[]
[]
[]
[]
[]
[]
[]
[]
[]
[]
[]
[]
[]
[]
[]
[]
[]
[]
[]
[]
[]
[]
[]
[]
[]
[]
[]
[]
[]
[]
[]
[]
[]
[]
[]
[]
[]
[]
[]
[]
[]
[]
[]
[]
[]
[]
[]
[]
[]
[]
[]
[]
[]
[]
[]
[]
[]
[]
[]
[]
[]
[]
[]
[]
[]
[]
[]
[]
[]
[]
[]
[]
[]
[]
[]
[]
[]
[]
[]
[]
[]
[]
[]
[]
[]
[]
[]
[]
[]
[]
[]
[]
[]
[]
[]
[]
[]
[]
[]
[]
[]
[]
[]
[]
[]
[]
[]
[]
[]
[]
[]
[]
[]
[]
[]
[]
[]
[]
[]
[]
[]
[]
[]
[]
[]
[]
[]
[]
[]
[]
[]
[]
[]
[]
[]
[]
[]
[]
[]
[]
[]
[]
[]
[]
[]
[]
[]
[]
[]
[]
[]
[]
[]
[]
[]
[]
[]
[]
[]
[]
[]
[]
[]
[]
[]
[]
[]
[]
[]
[]
[]
[]
[]
[]
[]
[]
[]
[]
[]
[]
[]
[]
[]
[]
[]
[]
[]
[]
[]
[]
[]
[]
[]
[]
[]
[]
[]
[]
[]
[]
[]
[]
[]
[]
[]
[]
[]
[]
[]
[]
[]
[]
[]
[]
[]
[]
[]
[]
[]
[]
[]
[]
[]
[]
[]
[]
[]
[]
[]
[]
[]
[]
[]
[]
[]
[]
[]
[]
[]
[]
[]
[]
[]
[]
[]
[]
[]
[]
[]
[]
[]
[]
[]
[]
[]
[]
[]
[]
[]
[]
[]
[]
[]
[]
[]
[]
[]
[]
[]
[]
[]
[]
[]
[]
[]
[]
[]
[]
[]
[]
[]
[]
[]
[]
[]
[]
[]
[]
[]
[]
[]
[]
[]
[]
[]
[]
[]
[]
[]
[]
[]
[]
[]
[]
[]
[]
[]
[]
[]
[]
[]
[]
[]
[]
[]
[]
[]
[]
[]
[]
[]
[]
[]
[]
[]
[]
[]
[]
[]
[]
[]
[]
[]
[]
[]
[]
[]
[]
[]
[]
[]
[]
[]
[]
[]
[]
[]
[]
[]
[]
[]
[]
[]
[]
[]
[]
[]
[]
[]
[]
[]
[]
[]
[]
[]
[]
[]
[]
[]
[]
[]
[]
[]
[]
[]
[]
[]
[]
[]
[]
[]
[]
[]
[]
[]
[]
[]
[]
[]
[]
[]
[]
[]
[]
[]
[]
[]
[]
[]
[]
[]
[]
[]
[]
[]
[]
[]
[]
[]
[]
[]
[]
[]
[]
[]
[]
[]
[]
[]
[]
[]
[]
[]
[]
[]
[]
[]
[]
[]
[]
[]
[]
[]
[]
[]
[]
[]
[]
[]
[]
[]
[]
[]
[]
[]
[]
[]
[]
[]
[]
[]
[]
[]
[]
[]
[]
[]
[]
[]
[]
[]
[]
[]
[]
[]
[]
[]
[]
[]
[]
[]
[]
[]
[]
[]
[]
[]
[]
[]
[]
[]
[]
[]
[]
[]
[]
[]
[]
[]
[]
[]
[]
[]
[]
[]
[]
[]
[]
[]
[]
[]
[]
[]
[]
[]
[]
[]
[]
[]
[null,"Return to Matrix"]
[]
[]
[]
[]
[]
[]
[]
[]
[]
[]
[]
[]
[]
[]
[]
[]
[]
[]
[]
[]
[]
[null,"Return to Matrix"]
[]
[]
[]
[]
[]
[]
[]
[]
[]
[]
[]
[]
[]
[]
[]
[]
[]
[]
[]
[]
[]
[]
[]
[]
[]
[]
[]
[]
[]
[]
[]
[]
[]
[]
[]
[]
[]
[]
[]
[]
[]
[]
[]
[]
[]
[]
[]
[]
[]
[]
[]
[]
[]
[]
[]
[]
[]
[]
[]
[]
[]
[]
[]
[]
[]
[]
[]
[]
[]
[]
[]
[]
[]
[]
[]
[]
[]
[]
[]
[]
[]
[]
[]
[]
[]
[]
[]
[]
[]
[]
[]
[]
[]
[]
[]
[]
[]
[]
[]
[]
[]
[]
[]
[]
[]
[]
[]
[]
[]
[]
[]
[]
[]
[]
[]
[]
[]
[]
[]
[]
[]
[]
[]
[]
[]
[]
[]
[]
[]
[]
[]
[]
[]
[]
[]
[]
[]
[]
[]
[]
[]
[]
[]
[]
[]
[]
[]
[]
[]
[]
[]
[]
[]
[]
[]
[]
[]
[]
[]
[]
[]
[]
[]
[]
[]
[]
[]
[]
[]
[]
[]
[]
[]
[]
[]
[]
[]
[]
[]
[]
[]
[]
[]
[]
[]
[]
[]
[]
[]
[]
[]
[]
[]
[]
[]
[]
[]
[]
[]
[]
[]
[]
[]
[]
[]
[]
[]
[]
[]
[]
[]
[]
[]
[]
[]
[]
[]
[]
[]
[]
[]
[]
[]
[]
[]
[]
[]
[]
[]
[]
[]
[]
[]
[]
[]
[]
[]
[]
[]
[]
[]
[]
[]
[]
[]
[]
[]
[]
[]
[]
[]
[]
[]
[]
[]
[]
[]
[]
[]
[]
[]
[]
[]
[]
[]
[]
[]
[]
[]
[]
[]
[]
[]
[]
[]
[]
[]
[]
[]
[]
[]
[]
[]
[]
[]
[]
[]
[]
[]
[]
[]
[]
[]
[]
[]
[]
[]
[]
[]
[]
[]
[]
[]
[]
[]
[]
[]
[]
[]
[]
[]
[]
[]
[]
[]
[]
[]
[]
[]
[]
[]
[]
[]
[]
[]
[]
[]
[]
[]
[]
[]
[]
[]
[]
[]
[]
[]
[]
[]
[]
[]
[]
[]
[]
[]
[]
[]
[]
[]
[]
[]
[]
[]
[]
[]
[]
[]
[]
[]
[]
[]
[]
[]
[]
[]
[]
[]
[]
[]
[]
[]
[]
[]
[]
[]
[]
[]
[]
[]
[]
[]
[]
[]
[]
[]
[]
[]
[]
[]
[]
[]
[]
[]
[]
[]
[]
[]
[]
[]
[]
[]
[]
[]
[]
[]
[]
[]
[]
[]
[]
[]
[]
[]
[]
[]
[]
[]
[]
[]
[]
[]
[]
[]
[]
[]
[]
[]
[]
[]
[]
[]
[]
[]
[]
[]
[]
[]
[]
[]
[]
[]
[]
[]
[]
[]
[]
[]
[]
[]
[]
[]
[]
[]
[]
[]
[]
[]
[]
[]
[]
[]
[]
[]
[]
[]
[]
[]
[]
[]
[]
[]
[]
[]
[]
[]
[]
[]
[]
[]
[]
[]
[]
[]
[]
[]
[]
[]
[]
[]
[]
[]
[]
[]
[]
[]
[]
[]
[]
[]
[]
[]
[]
[]
[]
[]
[]
[]
[]
[]
[]
[]
[]
[]
[]
[]
[]
[]
[]
[]
[]
[]
[]
[]
[]
[]
[]
[]
[]
[]
[]
[]
[]
[]
[]
[]
[]
[]
[]
[]
[]
[]
[]
[]
[]
[]
[]
[]
[]
[]
[]
[]
[]
[]
[]
[]
[]
[]
[]
[]
[]
[]
[]
[]
[]
[]
[]
[]
[]
[]
[]
[]
[]
[]
[]
[]
[]
[]
[]
[]
[]
[]
[]
[]
[]
[]
[]
[]
[]
[]
[]
[]
[]
[]
[]
[]
[]
[]
[]
[]
[]
[]
[]
[]
[]
[]
[]
[]
[]
[]
[]
[]
[]
[]
[]
[]
[]
[]
[]
[]
[]
[]
[]
[]
[]
[]
[]
[]
[]
[]
[]
[]
[]
[]
[]
[]
[]
[]
[]
[]
[]
[]
[]
[]
[]
[]
[]
[]
[]
[]
[]
[]
[]
[]
[]
[]
[]
[]
[]
[]
[]
[]
[]
[]
[]
[]
[]
[]
[]
[]
[]
[]
[]
[]
[]
[]
[]
[]
[]
[]
[]
[]
[]
[]
[]
[]
[]
[]
[]
[]
[]
[]
[]
[]
[]
[]
[]
[]
[]
[]
[]
[]
[]
[]
[]
[]
[]
[]
[]
[]
[]
[]
[]
[]
[]
[]
[]
[]
[]
[]
[]
[]
[]
[]
[]
[]
[]
[]
[]
[]
[]
[]
[]
[]
[]
[]
[]
[]
[]
[]
[]
[]
[]
[]
[]
[]
[]
[]
[]
[]
[]
[]
[]
[]
[]
[]
[]
[]
[]
[]
[]
[]
[]
[]
[]
[]
[]
[]
[]
[]
[]
[]
[]
[]
[]
[]
[]
[]
[]
[]
[]
[]
[]
[]
[]
[]
[]
[]
[]
[]
[]
[]
[]
[]
[]
[]
[]
[]
[]
[]
[]
[]
[]
[]
[]
[]
[]
[]
[]
[]
[]
[]
[]
[]
[]
[]
[]
[]
[]
[]
[]
[]
[]
[]
[]
[]
[]
[]
[]
[]
[]
[]
[]
[]
[]
[]
[]
[]
[]
[]
[]
[]
[]
[]
[]
[]
[]
[]
[]
[]
[]
[]
[]
[]
[]
[]
[]
[]
[]
[]
[]
[]
[]
[]
[]
[]
[]
[]
[]
[]
[]
[]
[]
[]
[]
[]
[]
[]
[]
[]
[]
[]
[]
[]
[]
[]
[]
[]
[]
[]
[]
[]
[]
[]
[]
[]
[]
[]
[]
[]
[]
[]
[]
[]
[]
[]
[]
[]
[]
[]
[]
[]
[]
[]
[]
[]
[]
[]
[]
[]
[]
[]
[]
[]
[]
[]
[]
[]
[]
[]
[]
[]
[]
[]
[]
[]
[]
[]
[]
[]
[]
[]
[]
[]
[]
[]
[]
[]
[]
[]
[]
[]
[]
[]
[]
[]
[]
[]
[]
[]
[]
[]
[]
[]
[]
[]
[]
[]
[]
[]
[]
[]
[]
[]
[]
[]
[]
[]
[]
[]
[]
[]
[]
[]
[]
[]
[]
[]
[]
[]
[]
[]
[]
[]
[]
[]
[]
[]
[]
[]
[]
[]
[]
[]
[]
[]
[]
[]
[]
[]
[]
[]
[]
[]
[null,null,null,null,null,null,null,null,null,null,null,null,null,null,null,null,null,null,null,null,null,null,null,null,null,null,null,null,null,null,null,null,null,null,null,null,null,null,null,null,null,null,null,null,null,null,null,null,null,null,null,null,null,null,null,null,null,null,null,null,null,null,null,"Programme Assessment Criteria"]
[]
[null,null,null,null,null,null,null,null,null,null,null,null,null,null,null,null,null,null,null,null,null,null,null,null,null,null,null,null,null,null,null,null,null,null,null,null,null,null,null,null,null,null,null,null,null,null,null,null,null,null,null,null,null,null,null,null,null,null,null,null,null,null,null,"No. of criteria",null,{"$f":"SUBTOTAL(3,t_PriorityMatrix33[Criterion])","v":15}]
[null,null,null,null,null,null,null,null,null,null,null,null,null,null,null,null,null,null,null,null,null,null,null,null,null,null,null,null,null,null,null,null,null,null,null,null,null,null,null,null,null,null,null,null,null,null,null,null,null,null,null,null,null,null,null,null,null,null,null,null,null,null,null,null,null,null,null,null,null,null,null,null,null,null,null,null,null,null,null,null,"Programme/subprogramme identified for targetted savings"]
[null,null,null,null,null,null,null,null,null,null,null,null,null,null,null,null,null,null,null,null,null,null,null,null,null,null,null,null,null,null,null,null,null,null,null,null,null,null,null,null,null,null,null,null,null,null,null,null,null,null,null,null,null,null,null,null,null,null,null,null,null,null,null,"Group","Criterion","Definition","Rating 1","Rating 2","Rating 3","Rating 4","Source of evidence",null,null,null,null,null,null,null,null,null,"Vote No.","Programme No.","Subprogramme No.","Department","Programme","Subprogramme","Rank","TARS_Indicator"]
[null,null,null,null,null,null,null,null,null,null,null,null,null,null,null,null,null,null,null,null,null,null,null,null,null,null,null,null,null,null,null,null,null,null,null,null,null,null,null,null,null,null,null,null,null,null,null,null,null,null,null,null,null,null,null,null,null,null,null,null,null,null,null,"1. Legal mandate and strategic alignment","1.1 Constitutional or legal basis","Assesses whether the subprogramme is required by the Constitution, legislation, or any binding legal or regulatory framework.","No legal or constitutional obligation.","Weak or indirect legal justification.","Clear legal or legislative basis.","Directly mandated by the Constitution or national law.","Document Review (Legislation, Strategic and Annual Performance Plans)",null,null,null,null,null,null,null,null,null,"30","01","01","Communications and Digital Technologies","Administration","Ministry"]
[null,null,null,null,null,null,null,null,null,null,null,null,null,null,null,null,null,null,null,null,null,null,null,null,null,null,null,null,null,null,null,null,null,null,null,null,null,null,null,null,null,null,null,null,null,null,null,null,null,null,null,null,null,null,null,null,null,null,null,null,null,null,null,null,"1.2 Policy alignment","Assesses how well the subprogramme aligns with national and sectoral policy frameworks (e.g. MTDP, departmental strategies).","Not aligned with any known policy or plan.","Minimal or outdated policy link.","Clearly aligned with current sector policy.","Directly linked to strategic national priorities.",null,null,null,null,null,null,null,null,null,null,"30","01","02","Communications and Digital Technologies","Administration","Departmental Management"]
[null,null,null,null,null,null,null,null,null,null,null,null,null,null,null,null,null,null,null,null,null,null,null,null,null,null,null,null,null,null,null,null,null,null,null,null,null,null,null,null,null,null,null,null,null,null,null,null,null,null,null,null,null,null,null,null,null,null,null,null,null,null,null,null,"1.3 Institutional role fit","Assesses how well the subprogramme fits within the core mandate and competencies of the department.","Outside the department’s mandate.","Weak fit or duplication with other institutions.","Within mandate but can be better positioned.","Strong and natural fit with department’s primary functions.",null,null,null,null,null,null,null,null,null,null,"30","01","03","Communications and Digital Technologies","Administration","Corporate Services"]
[null,null,null,null,null,null,null,null,null,null,null,null,null,null,null,null,null,null,null,null,null,null,null,null,null,null,null,null,null,null,null,null,null,null,null,null,null,null,null,null,null,null,null,null,null,null,null,null,null,null,null,null,null,null,null,null,null,null,null,null,null,null,null,null,"1.4 Functional duplication","Assesses the extent to which the subprogramme duplicates other functions or services in government.","Duplicates existing functions in other entities.","Some overlaps; coordination is unclear.","Limited duplication; some synergy possible.","No duplication; unique and complementary.",null,null,null,null,null,null,null,null,null,null,"30","01","04","Communications and Digital Technologies","Administration","Financial Management"]
[null,null,null,null,null,null,null,null,null,null,null,null,null,null,null,null,null,null,null,null,null,null,null,null,null,null,null,null,null,null,null,null,null,null,null,null,null,null,null,null,null,null,null,null,null,null,null,null,null,null,null,null,null,null,null,null,null,null,null,null,null,null,null,"2. Performance and effectiveness","2.1 Delivery of outputs","Evaluates whether the subprogramme consistently produces its intended deliverables.","Very low or no outputs delivered.","Inconsistent or poor delivery of outputs.","Mostly delivers expected outputs.","Delivers outputs efficiently and consistently.","Performance information, administrative data, monitoring and evaluation reports",null,null,null,null,null,null,null,null,null,"30","01","05","Communications and Digital Technologies","Administration","Office Accommodation"]
[null,null,null,null,null,null,null,null,null,null,null,null,null,null,null,null,null,null,null,null,null,null,null,null,null,null,null,null,null,null,null,null,null,null,null,null,null,null,null,null,null,null,null,null,null,null,null,null,null,null,null,null,null,null,null,null,null,null,null,null,null,null,null,null,"2.2 Achievement of outcomes","Measures the extent to which the subprogramme contributes to the desired change or impact.","No evidence of outcome achievement.","Minimal or indirect contribution to outcomes.","Some contribution; outcome indicators present.","Strong evidence of achieving targeted outcomes.",null,null,null,null,null,null,null,null,null,null,"30","02","01","Communications and Digital Technologies","ICT Transformation, Global Partnerships and State-Owned Enterprises Governance","Programme Management for ICT Transformation, Global Partnerships and State-Owned Enterprises Governance"]
[null,null,null,null,null,null,null,null,null,null,null,null,null,null,null,null,null,null,null,null,null,null,null,null,null,null,null,null,null,null,null,null,null,null,null,null,null,null,null,null,null,null,null,null,null,null,null,null,null,null,null,null,null,null,null,null,null,null,null,null,null,null,null,null,"2.3 Responsiveness to need","Assesses whether the subprogramme is addressing a real, current, and well-defined public or sectoral need.","No identifiable or outdated need addressed.","Weak alignment to needs; limited relevance.","Aligned to sector needs; moderate relevance.","High relevance and responsiveness to urgent needs.",null,null,null,null,null,null,null,null,null,null,"30","02","02","Communications and Digital Technologies","ICT Transformation, Global Partnerships and State-Owned Enterprises Governance","International Relations, Partnerships and Stakeholder Management"]
[null,null,null,null,null,null,null,null,null,null,null,null,null,null,null,null,null,null,null,null,null,null,null,null,null,null,null,null,null,null,null,null,null,null,null,null,null,null,null,null,null,null,null,null,null,null,null,null,null,null,null,null,null,null,null,null,null,null,null,null,null,null,null,"3. Efficiency and delivery model","3.1 Resource use efficiency","Examines whether the subprogramme uses financial, human, and capital resources effectively.","Wasteful or inefficient use of resources.","Some inefficiencies and resource misallocation.","Reasonably efficient with manageable waste.","Highly efficient with optimal resource use.","Expenditure data (BAS, LOGIS), administrative data, performance data",null,null,null,null,null,null,null,null,null,"30","02","03","Communications and Digital Technologies","ICT Transformation, Global Partnerships and State-Owned Enterprises Governance","State-Owned Enterprise Governance and Investment Management"]
[null,null,null,null,null,null,null,null,null,null,null,null,null,null,null,null,null,null,null,null,null,null,null,null,null,null,null,null,null,null,null,null,null,null,null,null,null,null,null,null,null,null,null,null,null,null,null,null,null,null,null,null,null,null,null,null,null,null,null,null,null,null,null,null,"3.2 Staffing and administrative overheads","Evaluates the ratio of administrative and personnel costs relative to service delivery.","Overheads far exceed acceptable levels.","High overheads; delivery impact is diluted.","Balanced overheads; room for improvement.","Lean and efficient administrative cost structure.",null,null,null,null,null,null,null,null,null,null,"30","02","04","Communications and Digital Technologies","ICT Transformation, Global Partnerships and State-Owned Enterprises Governance","ICT Sector Transformation Programmes"]
[null,null,null,null,null,null,null,null,null,null,null,null,null,null,null,null,null,null,null,null,null,null,null,null,null,null,null,null,null,null,null,null,null,null,null,null,null,null,null,null,null,null,null,null,null,null,null,null,null,null,null,null,null,null,null,null,null,null,null,null,null,null,null,null,"3.3 Delivery model appropriateness","Assesses whether the delivery mechanism (e.g. in-house, outsourced, partnership) is well-suited to achieving results.","Poorly suited delivery model; high risk.","Suboptimal model; lacks innovation or scale.","Reasonable model; can be improved.","Well-designed and fit-for-purpose delivery model.",null,null,null,null,null,null,null,null,null,null,"30","03","01","Communications and Digital Technologies","Media and Content","Programme Management for Media and Content"]
[null,null,null,null,null,null,null,null,null,null,null,null,null,null,null,null,null,null,null,null,null,null,null,null,null,null,null,null,null,null,null,null,null,null,null,null,null,null,null,null,null,null,null,null,null,null,null,null,null,null,null,null,null,null,null,null,null,null,null,null,null,null,null,null,"3.4 Cost per output","Measures the unit cost of producing an output compared to benchmarks or past performance.","Cost per output is excessive or unknown.","Higher than acceptable cost with inefficiencies.","Within range, some room for cost reduction.","Low cost per output; good value for money.",null,null,null,null,null,null,null,null,null,null,"30","03","02","Communications and Digital Technologies","Media and Content","Content Classification and Online Safety"]
[null,null,null,null,null,null,null,null,null,null,null,null,null,null,null,null,null,null,null,null,null,null,null,null,null,null,null,null,null,null,null,null,null,null,null,null,null,null,null,null,null,null,null,null,null,null,null,null,null,null,null,null,null,null,null,null,null,null,null,null,null,null,null,null,"3.5 Institutional capacity","Assesses whether the department has the necessary systems, structures, staffing, and skills to implement the subprogramme effectively and manage delivery at scale.","Major capacity gaps; delivery is severely hindered.","Limited capacity; delivery is inconsistent.","Adequate capacity with minor constraints.","Strong capacity; well-resourced and effectively managed.",null,null,null,null,null,null,null,null,null,null,"30","03","03","Communications and Digital Technologies","Media and Content","Public and Community Media Services"]
[null,null,null,null,null,null,null,null,null,null,null,null,null,null,null,null,null,null,null,null,null,null,null,null,null,null,null,null,null,null,null,null,null,null,null,null,null,null,null,null,null,null,null,null,null,null,null,null,null,null,null,null,null,null,null,null,null,null,null,null,null,null,null,"4. Financial sustainability and external leverage","4.1 Budget discipline","Assesses adherence to budgets, including under/overspending, virements, and compliance.","Frequent overspending or misuse of funds.","Irregularities in budget execution.","Generally within budget; few adjustments.","Strong budget discipline and forecasting.","Expenditure data (BAS, LOGIS), administrative data, performance data",null,null,null,null,null,null,null,null,null,"30","03","04","Communications and Digital Technologies","Media and Content","Audio-Visual and Digital Media Industry Support and Services"]
[null,null,null,null,null,null,null,null,null,null,null,null,null,null,null,null,null,null,null,null,null,null,null,null,null,null,null,null,null,null,null,null,null,null,null,null,null,null,null,null,null,null,null,null,null,null,null,null,null,null,null,null,null,null,null,null,null,null,null,null,null,null,null,null,"4.2 Medium-term affordability","Evaluates if the subprogramme is affordable over the MTEF without causing future fiscal strain.","Not affordable; creates unfunded pressures.","Likely to become unsustainable.","Mostly affordable with some risk.","Fully affordable and fiscally sound.",null,null,null,null,null,null,null,null,null,null,"30","04","01","Communications and Digital Technologies","Digital Communication, Access and Services","Programme Management for Digital Communication, Access and Services"]
[null,null,null,null,null,null,null,null,null,null,null,null,null,null,null,null,null,null,null,null,null,null,null,null,null,null,null,null,null,null,null,null,null,null,null,null,null,null,null,null,null,null,null,null,null,null,null,null,null,null,null,null,null,null,null,null,null,null,null,null,null,null,null,null,"4.3 External funding potential","Assesses whether the subprogramme can attract donor, private, or partner funding to reduce fiscal burden.","No potential for external funding.","Minimal or uncertain funding interest.","Some interest; conditional opportunities exist.","Strong likelihood of attracting external support.",null,null,null,null,null,null,null,null,null,null,"30","04","02","Communications and Digital Technologies","Digital Communication, Access and Services","Regulatory Compliance"]
[null,null,null,null,null,null,null,null,null,null,null,null,null,null,null,null,null,null,null,null,null,null,null,null,null,null,null,null,null,null,null,null,null,null,null,null,null,null,null,null,null,null,null,null,null,null,null,null,null,null,null,null,null,null,null,null,null,null,null,null,null,null,null,null,null,null,null,null,null,null,null,null,null,null,null,null,null,null,null,null,"30","04","03","Communications and Digital Technologies","Digital Communication, Access and Services","Digital and Postal Access and Service"]
[null,null,null,null,null,null,null,null,null,null,null,null,null,null,null,null,null,null,null,null,null,null,null,null,null,null,null,null,null,null,null,null,null,null,null,null,null,null,null,null,null,null,null,null,null,null,null,null,null,null,null,null,null,null,null,null,null,null,null,null,null,null,null,null,null,null,null,null,null,null,null,null,null,null,null,null,null,null,null,null,"30","04","04","Communications and Digital Technologies","Digital Communication, Access and Services","Digital Enterprise Development and Small, Medium and Micro Enterprise Support"]
[null,null,null,null,null,null,null,null,null,null,null,null,null,null,null,null,null,null,null,null,null,null,null,null,null,null,null,null,null,null,null,null,null,null,null,null,null,null,null,null,null,null,null,null,null,null,null,null,null,null,null,null,null,null,null,null,null,null,null,null,null,null,null,null,null,null,null,null,null,null,null,null,null,null,null,null,null,null,null,null,"30","05","01","Communications and Digital Technologies","Digital Infrastructure and Technologies","Programme Management for Digital Infrastructure and Technologies"]
[null,null,null,null,null,null,null,null,null,null,null,null,null,null,null,null,null,null,null,null,null,null,null,null,null,null,null,null,null,null,null,null,null,null,null,null,null,null,null,null,null,null,null,null,null,null,null,null,null,null,null,null,null,null,null,null,null,null,null,null,null,null,null,"Groups","Explanatory note",null,null,null,null,null,null,null,null,null,null,null,null,null,null,null,"30","05","02","Communications and Digital Technologies","Digital Infrastructure and Technologies","Broadband"]
[null,null,null,null,null,null,null,null,null,null,null,null,null,null,null,null,null,null,null,null,null,null,null,null,null,null,null,null,null,null,null,null,null,null,null,null,null,null,null,null,null,null,null,null,null,null,null,null,null,null,null,null,null,null,null,null,null,null,null,null,null,null,null,"1. Legal Mandate and Strategic Alignment","Evaluates whether the subprogramme is legally required, fits the department’s core mandate, and aligns with national and sectoral priorities. This ensures that programmes are not only lawful but also strategically relevant to government’s objectives.",null,null,null,null,null,null,null,null,null,null,null,null,null,null,null,"30","05","03","Communications and Digital Technologies","Digital Infrastructure and Technologies","Digital Infrastructure and Broadcasting Technologies"]
[null,null,null,null,null,null,null,null,null,null,null,null,null,null,null,null,null,null,null,null,null,null,null,null,null,null,null,null,null,null,null,null,null,null,null,null,null,null,null,null,null,null,null,null,null,null,null,null,null,null,null,null,null,null,null,null,null,null,null,null,null,null,null,"2. Performance and Effectiveness","Assesses the subprogramme’s ability to deliver results and whether it effectively responds to public needs.",null,null,null,null,null,null,null,null,null,null,null,null,null,null,null,"30","06","01","Communications and Digital Technologies","Digital Society and Economy","Programme Management for Digital Society and Economy"]
[null,null,null,null,null,null,null,null,null,null,null,null,null,null,null,null,null,null,null,null,null,null,null,null,null,null,null,null,null,null,null,null,null,null,null,null,null,null,null,null,null,null,null,null,null,null,null,null,null,null,null,null,null,null,null,null,null,null,null,null,null,null,null,"3. Efficiency and Delivery Model","Measures how well the subprogramme uses resources by evaluating its cost-efficiency, administrative overheads, and whether the delivery approach is appropriate and optimally designed for achieving results.",null,null,null,null,null,null,null,null,null,null,null,null,null,null,null,"30","06","02","Communications and Digital Technologies","Digital Society and Economy","Digital Society and Economy"]
[null,null,null,null,null,null,null,null,null,null,null,null,null,null,null,null,null,null,null,null,null,null,null,null,null,null,null,null,null,null,null,null,null,null,null,null,null,null,null,null,null,null,null,null,null,null,null,null,null,null,null,null,null,null,null,null,null,null,null,null,null,null,null,"4. Financial Sustainability and External Leverage","Reviews the subprogramme’s financial viability over the medium term and its ability to maintain budget discipline, remain affordable, and attract external funding or partnerships to complement public resources."]
[]
[]
[]
[]
[]
[]
[]
[]
[]
[]
[]
[]
[]
[]
[]
[]
[null,null,null,null,null,null,null,null,null,null,null,null,null,null,null,null,null,null,null,null,null,null,null,null,null,null,null,null,null,null,null,null,null,null,null,null,null,null,null,null,null,null,null,null,null,null,null,null,null,null,null,null,null,null,null,null,null,null,null,null,null,null,null,null,null,null,null,null,null,null,null,null,null,null,null,null,null,null,null,null,null,null,null,null,null,null,null,null,null,null,null,null,null,null,null,null,null,null,null,null,"High","Low"]
[null,null,null,null,null,null,null,null,null,null,null,null,null,null,null,null,null,null,null,null,null,null,null,null,null,null,null,null,null,null,null,null,null,null,null,null,null,null,null,null,null,null,null,null,null,null,null,null,null,null,null,null,null,null,null,null,null,null,null,null,null,null,null,null,null,null,null,null,null,null,null,null,null,null,null,null,null,null,null,null,null,null,null,null,null,null,null,null,null,null,null,null,null,null,null,null,null,"Results by Programme/Bin",null,null,1,2,3,4,null,null,null,null,null,null,null,null,null,"Results by Programme/Bin",null,null,1,2,3,4]
[null,null,null,null,null,null,null,null,null,null,null,null,null,null,null,null,null,null,null,null,null,null,null,null,null,null,null,null,null,null,null,null,null,null,null,null,null,null,null,null,null,null,null,null,null,null,null,null,null,null,null,null,null,null,null,null,null,null,null,null,null,null,null,null,null,null,null,null,null,null,null,null,null,null,null,null,null,null,null,null,null,null,null,null,null,null,null,null,null,null,"Vote No.","Programme No.","Department","Programme","Subprogramme","Component","No. of Components","Max","Score","Pct","Score 1","Score 2","Score 3","Score 4",null,null,"Vote No.","Programme No.","Department","Programme","Subprogramme","Component","No. of Components","Max","Score","Pct","Score 1","Score 2","Score 3","Score 4"]
[null,null,null,null,null,null,null,null,null,null,null,null,null,null,null,null,null,null,null,null,null,null,null,null,null,null,null,null,null,null,null,null,null,null,null,null,null,null,null,null,null,null,null,null,null,null,null,null,null,null,null,null,null,null,null,null,null,null,null,null,null,null,null,null,null,null,null,null,null,null,null,null,null,null,null,null,null,null,null,null,null,null,null,null,null,null,null,null,null,null,null,null,null,null,null,null,{"$f":"COUNTIF(TARS_List_SpecItems_List[Component],TARS_List_SpecItems_List2[[#This Row],[Component]])/CntCriteria","v":0},{"$f":"CntCriteria*TARS_List_SpecItems_List2[[#This Row],[No. of Components]]*4","v":0},{"$f":"ROUND(IF($E$1=\"\",SUMIFS(TARS_List_SpecItems_List[Score],TARS_List_SpecItems_List[Component],TARS_List_SpecItems_List2[[#This Row],[Component]]),SUMIFS(TARS_List_SpecItems_List[Score],TARS_List_SpecItems_List[Component],TARS_List_SpecItems_List2[[#This Row],[Component]],TARS_List3[Group],$E$1)),1)","v":0},{"$f":"IFERROR(TARS_List2_Heat1_2[[#This Row],[Score]]/TARS_List2_Heat1_2[[#This Row],[Max]],0)","v":0},{"$f":"IFERROR((SUMIFS(TARS_List_SpecItems_List[Score],TARS_List_SpecItems_List[Programme],TARS_List_SpecItems_List2[[#This Row],[Programme]],TARS_List_SpecItems_List[Component],TARS_List_SpecItems_List2[[#This Row],[Component]],TARS_List_SpecItems_List[Score],CW$3003)/CW$3003)/TARS_List_SpecItems_List2[[#This Row],[No. of Components]]/CntCriteria,0)","v":0},{"$f":"IFERROR((SUMIFS(TARS_List_SpecItems_List[Score],TARS_List_SpecItems_List[Programme],TARS_List_SpecItems_List2[[#This Row],[Programme]],TARS_List_SpecItems_List[Component],TARS_List_SpecItems_List2[[#This Row],[Component]],TARS_List_SpecItems_List[Score],CX$3003)/CX$3003)/TARS_List_SpecItems_List2[[#This Row],[No. of Components]]/CntCriteria,0)","v":0},{"$f":"IFERROR((SUMIFS(TARS_List_SpecItems_List[Score],TARS_List_SpecItems_List[Programme],TARS_List_SpecItems_List2[[#This Row],[Programme]],TARS_List_SpecItems_List[Component],TARS_List_SpecItems_List2[[#This Row],[Component]],TARS_List_SpecItems_List[Score],CY$3003)/CY$3003)/TARS_List_SpecItems_List2[[#This Row],[No. of Components]]/CntCriteria,0)","v":0},{"$f":"IFERROR((SUMIFS(TARS_List_SpecItems_List[Score],TARS_List_SpecItems_List[Programme],TARS_List_SpecItems_List2[[#This Row],[Programme]],TARS_List_SpecItems_List[Component],TARS_List_SpecItems_List2[[#This Row],[Component]],TARS_List_SpecItems_List[Score],CZ$3003)/CZ$3003)/TARS_List_SpecItems_List2[[#This Row],[No. of Components]]/CntCriteria,0)","v":0},null,null,null,null,null,null,null,null,{"$f":"COUNTIF(TARS_List_SpecItems_List[Component],TARS_List_SpecItems_List237[[#This Row],[Component]])/CntCriteria","v":0},{"$f":"CntCriteria*TARS_List_SpecItems_List237[[#This Row],[No. of Components]]*4","v":0},{"$f":"ROUND(IF($E$1=\"\",SUMIFS(TARS_List_SpecItems_List[Score],TARS_List_SpecItems_List[Component],TARS_List_SpecItems_List237[[#This Row],[Component]]),SUMIFS(TARS_List_SpecItems_List[Score],TARS_List_SpecItems_List[Component],TARS_List_SpecItems_List237[[#This Row],[Component]],TARS_List3[Group],$E$1)),1)","v":0},{"$f":"IFERROR(TARS_List_SpecItems_List237[[#This Row],[Score]]/TARS_List_SpecItems_List237[[#This Row],[Max]]*100,0)","v":0},{"$f":"SUMPRODUCT(--(TARS_List_SpecItems_List[Component]=TARS_List_SpecItems_List237[[#This Row],[Component]]),--(TARS_List_SpecItems_List[Score]=DM$3045))","v":0},{"$f":"SUMPRODUCT(--(TARS_List_SpecItems_List[Component]=TARS_List_SpecItems_List237[[#This Row],[Component]]),--(TARS_List_SpecItems_List[Score]=DN$3045))","v":0},{"$f":"SUMPRODUCT(--(TARS_List_SpecItems_List[Component]=TARS_List_SpecItems_List237[[#This Row],[Component]]),--(TARS_List_SpecItems_List[Score]=DO$3045))","v":0},{"$f":"SUMPRODUCT(--(TARS_List_SpecItems_List[Component]=TARS_List_SpecItems_List237[[#This Row],[Component]]),--(TARS_List_SpecItems_List[Score]=DP$3045))","v":0}]
[]
[]
[]
[]
[]
[]
[]
[]
[]
[]
[]
[]
[]
[]
[]
[]
[]
[]
[]
[]
[]
[]
[]
[]
[]
[]
[]
[null,null,null,null,null,null,null,null,null,null,null,null,null,null,null,null,null,null,null,null,null,null,null,null,null,null,null,null,null,null,null,null,null,null,null,null,null,null,null,null,null,null,null,null,null,null,null,null,null,null,null,null,null,null,null,null,null,null,null,null,null,null,null,null,null,null,null,null,null,null,null,null,null,null,null,null,null,null,null,null,null,null,null,null,null,null,null,null,null,null,{"$f":"COUNTIF(CN3077:CN3086,\"<>0\")","v":6}]
[null,null,null,null,null,null,null,null,null,null,null,null,null,null,null,null,null,null,null,null,null,null,null,null,null,null,null,null,null,null,null,null,null,null,null,null,null,null,null,null,null,null,null,null,null,null,null,null,null,null,null,null,null,null,null,null,null,null,null,null,null,null,null,null,null,null,null,null,null,null,null,null,null,null,null,null,null,null,null,null,null,null,null,null,null,null,null,null,null,null,"ID","Prog","Start","Count SP"]
[null,null,null,null,null,null,null,null,null,null,null,null,null,null,null,null,null,null,null,null,null,null,null,null,null,null,null,null,null,null,null,null,null,null,null,null,null,null,null,null,null,null,null,null,null,null,null,null,null,null,null,null,null,null,null,null,null,null,null,null,null,null,null,null,null,null,null,null,null,null,null,null,null,null,null,null,null,null,null,null,null,null,null,null,null,null,null,null,null,null,1,{"$f":"IFERROR(INDEX(('Programme Assessment Matrix'!$CA$3005:$CA$3051),MATCH('Component Assessment Matrix'!CM3077,'Programme Assessment Matrix'!$BX$3005:$BX$3051*1,0)),0)","v":"Administration"},{"$f":"IFERROR(MATCH(CN3077,TARS_List[Programme],0),0)","v":1},{"$f":"COUNTIF(TARS_List[Programme],'Component Assessment Matrix'!CN3077)","v":5}]
[null,null,null,null,null,null,null,null,null,null,null,null,null,null,null,null,null,null,null,null,null,null,null,null,null,null,null,null,null,null,null,null,null,null,null,null,null,null,null,null,null,null,null,null,null,null,null,null,null,null,null,null,null,null,null,null,null,null,null,null,null,null,null,null,null,null,null,null,null,null,null,null,null,null,null,null,null,null,null,null,null,null,null,null,null,null,null,null,null,null,2,{"$f":"IFERROR(INDEX(('Programme Assessment Matrix'!$CA$3005:$CA$3051),MATCH('Component Assessment Matrix'!CM3078,'Programme Assessment Matrix'!$BX$3005:$BX$3051*1,0)),0)","v":"ICT Transformation, Global Partnerships and State-Owned Enterprises Governance"},{"$f":"IFERROR(MATCH(CN3078,TARS_List[Programme],0),0)","v":6},{"$f":"COUNTIF(TARS_List[Programme],'Component Assessment Matrix'!CN3078)","v":4}]
[null,null,null,null,null,null,null,null,null,null,null,null,null,null,null,null,null,null,null,null,null,null,null,null,null,null,null,null,null,null,null,null,null,null,null,null,null,null,null,null,null,null,null,null,null,null,null,null,null,null,null,null,null,null,null,null,null,null,null,null,null,null,null,null,null,null,null,null,null,null,null,null,null,null,null,null,null,null,null,null,null,null,null,null,null,null,null,null,null,null,3,{"$f":"IFERROR(INDEX(('Programme Assessment Matrix'!$CA$3005:$CA$3051),MATCH('Component Assessment Matrix'!CM3079,'Programme Assessment Matrix'!$BX$3005:$BX$3051*1,0)),0)","v":"Media and Content"},{"$f":"IFERROR(MATCH(CN3079,TARS_List[Programme],0),0)","v":10},{"$f":"COUNTIF(TARS_List[Programme],'Component Assessment Matrix'!CN3079)","v":4}]
[null,null,null,null,null,null,null,null,null,null,null,null,null,null,null,null,null,null,null,null,null,null,null,null,null,null,null,null,null,null,null,null,null,null,null,null,null,null,null,null,null,null,null,null,null,null,null,null,null,null,null,null,null,null,null,null,null,null,null,null,null,null,null,null,null,null,null,null,null,null,null,null,null,null,null,null,null,null,null,null,null,null,null,null,null,null,null,null,null,null,4,{"$f":"IFERROR(INDEX(('Programme Assessment Matrix'!$CA$3005:$CA$3051),MATCH('Component Assessment Matrix'!CM3080,'Programme Assessment Matrix'!$BX$3005:$BX$3051*1,0)),0)","v":"Digital Communication, Access and Services"},{"$f":"IFERROR(MATCH(CN3080,TARS_List[Programme],0),0)","v":14},{"$f":"COUNTIF(TARS_List[Programme],'Component Assessment Matrix'!CN3080)","v":4}]
[null,null,null,null,null,null,null,null,null,null,null,null,null,null,null,null,null,null,null,null,null,null,null,null,null,null,null,null,null,null,null,null,null,null,null,null,null,null,null,null,null,null,null,null,null,null,null,null,null,null,null,null,null,null,null,null,null,null,null,null,null,null,null,null,null,null,null,null,null,null,null,null,null,null,null,null,null,null,null,null,null,null,null,null,null,null,null,null,null,null,5,{"$f":"IFERROR(INDEX(('Programme Assessment Matrix'!$CA$3005:$CA$3051),MATCH('Component Assessment Matrix'!CM3081,'Programme Assessment Matrix'!$BX$3005:$BX$3051*1,0)),0)","v":"Digital Infrastructure and Technologies"},{"$f":"IFERROR(MATCH(CN3081,TARS_List[Programme],0),0)","v":18},{"$f":"COUNTIF(TARS_List[Programme],'Component Assessment Matrix'!CN3081)","v":3}]
[null,null,null,null,null,null,null,null,null,null,null,null,null,null,null,null,null,null,null,null,null,null,null,null,null,null,null,null,null,null,null,null,null,null,null,null,null,null,null,null,null,null,null,null,null,null,null,null,null,null,null,null,null,null,null,null,null,null,null,null,null,null,null,null,null,null,null,null,null,null,null,null,null,null,null,null,null,null,null,null,null,null,null,null,null,null,null,null,null,null,6,{"$f":"IFERROR(INDEX(('Programme Assessment Matrix'!$CA$3005:$CA$3051),MATCH('Component Assessment Matrix'!CM3082,'Programme Assessment Matrix'!$BX$3005:$BX$3051*1,0)),0)","v":"Digital Society and Economy"},{"$f":"IFERROR(MATCH(CN3082,TARS_List[Programme],0),0)","v":21},{"$f":"COUNTIF(TARS_List[Programme],'Component Assessment Matrix'!CN3082)","v":2}]
[null,null,null,null,null,null,null,null,null,null,null,null,null,null,null,null,null,null,null,null,null,null,null,null,null,null,null,null,null,null,null,null,null,null,null,null,null,null,null,null,null,null,null,null,null,null,null,null,null,null,null,null,null,null,null,null,null,null,null,null,null,null,null,null,null,null,null,null,null,null,null,null,null,null,null,null,null,null,null,null,null,null,null,null,null,null,null,null,null,null,7,{"$f":"IFERROR(INDEX(('Programme Assessment Matrix'!$CA$3005:$CA$3051),MATCH('Component Assessment Matrix'!CM3083,'Programme Assessment Matrix'!$BX$3005:$BX$3051*1,0)),0)","v":0},{"$f":"IFERROR(MATCH(CN3083,TARS_List[Programme],0),0)","v":0},{"$f":"COUNTIF(TARS_List[Programme],'Component Assessment Matrix'!CN3083)","v":0}]
[null,null,null,null,null,null,null,null,null,null,null,null,null,null,null,null,null,null,null,null,null,null,null,null,null,null,null,null,null,null,null,null,null,null,null,null,null,null,null,null,null,null,null,null,null,null,null,null,null,null,null,null,null,null,null,null,null,null,null,null,null,null,null,null,null,null,null,null,null,null,null,null,null,null,null,null,null,null,null,null,null,null,null,null,null,null,null,null,null,null,8,{"$f":"IFERROR(INDEX(('Programme Assessment Matrix'!$CA$3005:$CA$3051),MATCH('Component Assessment Matrix'!CM3084,'Programme Assessment Matrix'!$BX$3005:$BX$3051*1,0)),0)","v":0},{"$f":"IFERROR(MATCH(CN3084,TARS_List[Programme],0),0)","v":0},{"$f":"COUNTIF(TARS_List[Programme],'Component Assessment Matrix'!CN3084)","v":0}]
[null,null,null,null,null,null,null,null,null,null,null,null,null,null,null,null,null,null,null,null,null,null,null,null,null,null,null,null,null,null,null,null,null,null,null,null,null,null,null,null,null,null,null,null,null,null,null,null,null,null,null,null,null,null,null,null,null,null,null,null,null,null,null,null,null,null,null,null,null,null,null,null,null,null,null,null,null,null,null,null,null,null,null,null,null,null,null,null,null,null,9,{"$f":"IFERROR(INDEX(('Programme Assessment Matrix'!$CA$3005:$CA$3051),MATCH('Component Assessment Matrix'!CM3085,'Programme Assessment Matrix'!$BX$3005:$BX$3051*1,0)),0)","v":0},{"$f":"IFERROR(MATCH(CN3085,TARS_List[Programme],0),0)","v":0},{"$f":"COUNTIF(TARS_List[Programme],'Component Assessment Matrix'!CN3085)","v":0}]
[null,null,null,null,null,null,null,null,null,null,null,null,null,null,null,null,null,null,null,null,null,null,null,null,null,null,null,null,null,null,null,null,null,null,null,null,null,null,null,null,null,null,null,null,null,null,null,null,null,null,null,null,null,null,null,null,null,null,null,null,null,null,null,null,null,null,null,null,null,null,null,null,null,null,null,null,null,null,null,null,null,null,null,null,null,null,null,null,null,null,10,{"$f":"IFERROR(INDEX(('Programme Assessment Matrix'!$CA$3005:$CA$3051),MATCH('Component Assessment Matrix'!CM3086,'Programme Assessment Matrix'!$BX$3005:$BX$3051*1,0)),0)","v":0},{"$f":"IFERROR(MATCH(CN3086,TARS_List[Programme],0),0)","v":0},{"$f":"COUNTIF(TARS_List[Programme],'Component Assessment Matrix'!CN3086)","v":0}]

{"sheet":"Summary","index":13,"n_rows":104,"n_cols":26,"rows_kept":104,"cut":false,"hidden":false,"merged":[]}
[]
[]
[null,null,null,null,null,null,{"$f":"Welcome!$B$7&\" \"& MyDeptName","v":"VOTE 30:  Communications and Digital Technologies"}]
[null,null,null,null,null,null,null,null,null,null,null,null,"Growth"]
[null,null,null,null,null,null,"Quick view",{"$f":"MyYear4","v":"2026/27"},{"$f":"MyYear5","v":"2027/28"},{"$f":"MyYear6","v":"2028/29"},{"$f":"MyYear7","v":"2029/30"},"Trend",{"$f":"MyYear5","v":"2027/28"},{"$f":"MyYear6","v":"2028/29"},{"$f":"MyYear7","v":"2029/30"},"Ave Ann"]
[null,null,null,null,null,null,"Compensation of employees",{"$f":"SUMPRODUCT(($G$56:$G$89=$G6)*($M$56:$M$89))","v":347072},{"$f":"SUMPRODUCT(($G$56:$G$89=$G6)*($Q$56:$Q$89))","v":362770},{"$f":"SUMPRODUCT(($G$56:$G$89=$G6)*($U$56:$U$89))","v":374043},{"$f":"SUMPRODUCT(($G$56:$G$89=$G6)*($Y$56:$Y$89))","v":385307},null,{"$f":"IFERROR(I6/H6-1,0)","v":4.5229808224230172E-2},3.1074785676875161E-2,3.0114184732771276E-2,{"$f":"IFERROR(((K6/H6)^(1/3)-1),0)","v":3.5449939047780932E-2}]
[null,null,null,null,null,null,"Goods and services",{"$f":"SUMPRODUCT(($G$56:$G$89=$G7)*($M$56:$M$89))","v":445180},{"$f":"SUMPRODUCT(($G$56:$G$89=$G7)*($Q$56:$Q$89))","v":461613},{"$f":"SUMPRODUCT(($G$56:$G$89=$G7)*($U$56:$U$89))","v":476534},{"$f":"SUMPRODUCT(($G$56:$G$89=$G7)*($Y$56:$Y$89))","v":490874},null,3.6913158722314598E-2,3.2323613069822565E-2,3.009229142096892E-2,3.310578824662791E-2,null,null,{"$f":"X8","v":"2027/28"},{"$f":"Y8","v":"2028/29"},{"$f":"Z8","v":"2029/30"}]
[null,null,null,null,null,null,"Transfers and subsidies",{"$f":"SUMPRODUCT(($G$56:$G$89=$G8)*($M$56:$M$89))","v":1749944},{"$f":"SUMPRODUCT(($G$56:$G$89=$G8)*($Q$56:$Q$89))","v":1816382},{"$f":"SUMPRODUCT(($G$56:$G$89=$G8)*($U$56:$U$89))","v":1872834},{"$f":"SUMPRODUCT(($G$56:$G$89=$G8)*($Y$56:$Y$89))","v":1929227},null,3.7965786333734153E-2,3.1079365463872577E-2,3.0111050952727147E-2,3.3046157784217156E-2,"CoE","Compensation of employees",{"$f":"SUMIF($G$56:$G$89,$R8,$O$56:$O$89)+SUMIF($G$56:$G$89,$R8,$P$56:$P$89)","v":0},{"$f":"SUMIF($G$56:$G$89,$R8,$S$56:$S$89)+SUMIF($G$56:$G$89,$R8,$T$56:$T$89)","v":0},{"$f":"SUMIF($G$56:$G$89,$R8,$W$56:$W$89)+SUMIF($G$56:$G$89,$R8,$X$56:$X$89)","v":0},null,{"$f":"MyYear4","v":"2026/27"},{"$f":"MyYear5","v":"2027/28"},{"$f":"MyYear6","v":"2028/29"},{"$f":"MyYear7","v":"2029/30"}]
[null,null,null,null,null,null,"Payments for capital assets",{"$f":"SUMPRODUCT(($G$56:$G$89=$G9)*($M$56:$M$89))","v":6826},{"$f":"SUMPRODUCT(($G$56:$G$89=$G9)*($Q$56:$Q$89))","v":8389},{"$f":"SUMPRODUCT(($G$56:$G$89=$G9)*($U$56:$U$89))","v":8077},{"$f":"SUMPRODUCT(($G$56:$G$89=$G9)*($Y$56:$Y$89))","v":8321},null,0.22897743920304725,-3.7191560376683808E-2,3.0209236102513248E-2,6.824223841133592E-2,"G&S","Goods and services",{"$f":"SUMIF($G$56:$G$89,$R9,$O$56:$O$89)+SUMIF($G$56:$G$89,$R9,$P$56:$P$89)","v":0},{"$f":"SUMIF($G$56:$G$89,$R9,$S$56:$S$89)+SUMIF($G$56:$G$89,$R9,$T$56:$T$89)","v":0},{"$f":"SUMIF($G$56:$G$89,$R9,$W$56:$W$89)+SUMIF($G$56:$G$89,$R9,$X$56:$X$89)","v":0}]
[null,null,null,null,null,null,"Total",{"$f":"SUMPRODUCT(($G$56:$G$89=$G10)*($M$56:$M$89))","v":2549022},{"$f":"SUMPRODUCT(($G$56:$G$89=$G10)*($Q$56:$Q$89))","v":2649154},{"$f":"SUMPRODUCT(($G$56:$G$89=$G10)*($U$56:$U$89))","v":2731488},{"$f":"SUMPRODUCT(($G$56:$G$89=$G10)*($Y$56:$Y$89))","v":2813729},null,3.9282516981022475E-2,3.1079355900034411E-2,3.0108497639381948E-2,3.3481946032289267E-2,"T&S","Transfers and subsidies",{"$f":"SUMIF($G$56:$G$89,$R10,$O$56:$O$89)+SUMIF($G$56:$G$89,$R10,$P$56:$P$89)","v":0},{"$f":"SUMIF($G$56:$G$89,$R10,$S$56:$S$89)+SUMIF($G$56:$G$89,$R10,$T$56:$T$89)","v":0},{"$f":"SUMIF($G$56:$G$89,$R10,$W$56:$W$89)+SUMIF($G$56:$G$89,$R10,$X$56:$X$89)","v":0}]
[null,null,null,null,null,null,"Composition of spending (% of Total)",null,null,null,null,null,null,null,null,null,"Capital","Payments for capital assets",{"$f":"SUMIF($G$56:$G$89,$R11,$O$56:$O$89)+SUMIF($G$56:$G$89,$R11,$P$56:$P$89)","v":0},{"$f":"SUMIF($G$56:$G$89,$R11,$S$56:$S$89)+SUMIF($G$56:$G$89,$R11,$T$56:$T$89)","v":0},{"$f":"SUMIF($G$56:$G$89,$R11,$W$56:$W$89)+SUMIF($G$56:$G$89,$R11,$X$56:$X$89)","v":0}]
[null,null,null,null,null,null,"Compensation of employees",{"$f":"H6/H$10","v":0.13615888760473624},0.13693805645122933,0.13693744947808667,0.13693820549171579,null,null,null,null,null,"Total","Total",{"$f":"SUMIF($G$56:$G$89,$R12,$O$56:$O$89)+SUMIF($G$56:$G$89,$R12,$P$56:$P$89)","v":0},{"$f":"SUMIF($G$56:$G$89,$R12,$S$56:$S$89)+SUMIF($G$56:$G$89,$R12,$T$56:$T$89)","v":0},{"$f":"SUMIF($G$56:$G$89,$R12,$W$56:$W$89)+SUMIF($G$56:$G$89,$R12,$X$56:$X$89)","v":0}]
[null,null,null,null,null,null,"Goods and services",0.17464737456169463,0.17424921314502667,0.17445948874752515,0.17445674405744122]
[null,null,null,null,null,null,"Transfers and subsidies",0.68651584803897336,0.685646059081503,0.68564606544125395,0.68564776494111546]
[null,null,null,null,null,null,"Payments for capital assets",2.6778897945957314E-3,3.1666713222409872E-3,2.9569963331341747E-3,2.9572855097274825E-3,null,null,null,null,null,null,null,null,null,null,null,{"$f":"IF(H12>0.0595,H12,\"\")","v":0.13615888760473624},0.13693805645122933,0.13693744947808667,0.13693820549171579]
[null,null,null,null,null,null,null,null,null,null,null,null,null,null,null,null,null,null,null,null,null,null,0.17464737456169463,0.17424921314502667,0.17445948874752515,0.17445674405744122]
[null,null,null,null,null,null,"Division of Revenue",{"$f":"MyYear4","v":"2026/27"},{"$f":"MyYear5","v":"2027/28"},{"$f":"MyYear6","v":"2028/29"},{"$f":"MyYear7","v":"2029/30"},"Trend",{"$f":"MyYear5","v":"2027/28"},{"$f":"MyYear6","v":"2028/29"},{"$f":"MyYear7","v":"2029/30"},"Ave Ann",null,null,null,null,null,null,0.68651584803897336,0.685646059081503,0.68564606544125395,0.68564776494111546]
[null,null,null,null,null,null,"National",{"$f":"SUM(H19:H21)","v":2549022},{"$f":"SUM(I19:I21)","v":2649154},2731488,2813729,null,{"$f":"IFERROR(I18/H18-1,0)","v":3.9282516981022475E-2},{"$f":"IFERROR(J18/I18-1,0)","v":3.1079355900034411E-2},{"$f":"IFERROR(K18/J18-1,0)","v":3.0108497639381948E-2},{"$f":"IFERROR(((K18/H18)^(1/3)-1),0)","v":3.3481946032289267E-2},null,null,null,null,null,null,"","","",""]
[null,"NAT",null,null,null,null,"National (excl. indirect grants)",{"$f":"SUMPRODUCT(((Dataset[DOR]=$B19))*Dataset[2026/27 Revised baseline])","v":2549022},{"$f":"SUMPRODUCT(((Dataset[DOR]=$B19))*Dataset[2027/28 Revised baseline])","v":2649154},{"$f":"SUMPRODUCT(((Dataset[DOR]=$B19))*Dataset[2028/29 Revised baseline])","v":2731488},{"$f":"SUMPRODUCT(((Dataset[DOR]=$B19))*Dataset[2029/30 Revised baseline])","v":2813729},null,3.9282516981022475E-2,3.1079355900034411E-2,3.0108497639381948E-2,3.3481946032289267E-2]
[null,"IGP",null,null,null,null,"Provincial indirect grants",{"$f":"SUMPRODUCT(((Dataset[DOR]=$B20))*Dataset[2026/27 Revised baseline])","v":0},{"$f":"SUMPRODUCT(((Dataset[DOR]=$B20))*Dataset[2027/28 Revised baseline])","v":0},{"$f":"SUMPRODUCT(((Dataset[DOR]=$B20))*Dataset[2028/29 Revised baseline])","v":0},{"$f":"SUMPRODUCT(((Dataset[DOR]=$B20))*Dataset[2029/30 Revised baseline])","v":0},null,{"$f":"IFERROR(I20/H20-1,0)","v":0},{"$f":"IFERROR(J20/I20-1,0)","v":0},{"$f":"IFERROR(K20/J20-1,0)","v":0},{"$f":"IFERROR(((K20/H20)^(1/3)-1),0)","v":0}]
[null,"IGM",null,null,null,null,"Local indirect grants",{"$f":"SUMPRODUCT(((Dataset[DOR]=$B21))*Dataset[2026/27 Revised baseline])","v":0},{"$f":"SUMPRODUCT(((Dataset[DOR]=$B21))*Dataset[2027/28 Revised baseline])","v":0},{"$f":"SUMPRODUCT(((Dataset[DOR]=$B21))*Dataset[2028/29 Revised baseline])","v":0},{"$f":"SUMPRODUCT(((Dataset[DOR]=$B21))*Dataset[2029/30 Revised baseline])","v":0},null,{"$f":"IFERROR(I21/H21-1,0)","v":0},{"$f":"IFERROR(J21/I21-1,0)","v":0},{"$f":"IFERROR(K21/J21-1,0)","v":0},{"$f":"IFERROR(((K21/H21)^(1/3)-1),0)","v":0}]
[null,null,null,null,null,null,"Provincial",{"$f":"SUM(H23:H24)","v":0},{"$f":"SUM(I23:I24)","v":0},0,0,null,0,0,0,0]
[null,"PES",null,null,null,null,"Provincial equitable share",{"$f":"SUMPRODUCT(((Dataset[DOR]=$B23))*Dataset[2026/27 Revised baseline])","v":0},{"$f":"SUMPRODUCT(((Dataset[DOR]=$B23))*Dataset[2027/28 Revised baseline])","v":0},{"$f":"SUMPRODUCT(((Dataset[DOR]=$B23))*Dataset[2028/29 Revised baseline])","v":0},{"$f":"SUMPRODUCT(((Dataset[DOR]=$B23))*Dataset[2029/30 Revised baseline])","v":0},null,{"$f":"IFERROR(I23/H23-1,0)","v":0},0,0,{"$f":"IFERROR(((K23/H23)^(1/3)-1),0)","v":0}]
[null,"PCG",null,null,null,null,"Provincial conditional grants",{"$f":"SUMPRODUCT(((Dataset[DOR]=$B24))*Dataset[2026/27 Revised baseline])","v":0},{"$f":"SUMPRODUCT(((Dataset[DOR]=$B24))*Dataset[2027/28 Revised baseline])","v":0},{"$f":"SUMPRODUCT(((Dataset[DOR]=$B24))*Dataset[2028/29 Revised baseline])","v":0},{"$f":"SUMPRODUCT(((Dataset[DOR]=$B24))*Dataset[2029/30 Revised baseline])","v":0},null,0,0,0,0]
[null,null,null,null,null,null,"Local government",{"$f":"SUM(H26:H28)","v":0},{"$f":"SUM(I26:I28)","v":0},0,0,null,{"$f":"IFERROR(I25/H25-1,0)","v":0},{"$f":"IFERROR(J25/I25-1,0)","v":0},{"$f":"IFERROR(K25/J25-1,0)","v":0},{"$f":"IFERROR(((K25/H25)^(1/3)-1),0)","v":0}]
[null,"LES",null,null,null,null,"Local equitable share",{"$f":"SUMPRODUCT(((Dataset[DOR]=$B26))*Dataset[2026/27 Revised baseline])","v":0},{"$f":"SUMPRODUCT(((Dataset[DOR]=$B26))*Dataset[2027/28 Revised baseline])","v":0},{"$f":"SUMPRODUCT(((Dataset[DOR]=$B26))*Dataset[2028/29 Revised baseline])","v":0},{"$f":"SUMPRODUCT(((Dataset[DOR]=$B26))*Dataset[2029/30 Revised baseline])","v":0},null,{"$f":"IFERROR(I26/H26-1,0)","v":0},0,0,{"$f":"IFERROR(((K26/H26)^(1/3)-1),0)","v":0}]
[null,"LCG",null,null,null,null,"Local conditional grants",{"$f":"SUMPRODUCT(((Dataset[DOR]=$B27))*Dataset[2026/27 Revised baseline])","v":0},{"$f":"SUMPRODUCT(((Dataset[DOR]=$B27))*Dataset[2027/28 Revised baseline])","v":0},{"$f":"SUMPRODUCT(((Dataset[DOR]=$B27))*Dataset[2028/29 Revised baseline])","v":0},{"$f":"SUMPRODUCT(((Dataset[DOR]=$B27))*Dataset[2029/30 Revised baseline])","v":0},null,0,0,0,0]
[null,"GFL",null,null,null,null,"General fuel levy ",{"$f":"SUMPRODUCT(((Dataset[DOR]=$B28))*Dataset[2026/27 Revised baseline])","v":0},{"$f":"SUMPRODUCT(((Dataset[DOR]=$B28))*Dataset[2027/28 Revised baseline])","v":0},{"$f":"SUMPRODUCT(((Dataset[DOR]=$B28))*Dataset[2028/29 Revised baseline])","v":0},{"$f":"SUMPRODUCT(((Dataset[DOR]=$B28))*Dataset[2029/30 Revised baseline])","v":0},null,0,0,0,0]
[]
[null,null,null,null,null,null,"Personnel numbers (HRBP)",{"$f":"MyYear4","v":"2026/27"},{"$f":"MyYear5","v":"2027/28"},{"$f":"MyYear6","v":"2028/29"},{"$f":"MyYear7","v":"2029/30"}]
[null,null,null,null,null,null,"Initial headcount",{"$f":"SUM(t_HRBP[2026/27 Initial Headcount])","v":0},{"$f":"SUM(t_HRBP[2027/28 Initial Headcount])","v":0},{"$f":"SUM(t_HRBP[2028/29 Initial Headcount])","v":0},{"$f":"SUM(t_HRBP[2029/30 Initial Headcount])","v":0},null,null,null,null,null,null,{"$f":"W8","v":"2026/27"},"2027/28","2028/29","2029/30"]
[null,null,null,null,null,null,"Vacant funded posts to be filled",{"$f":"SUM(t_HRBP[2026/27 Vacant funded posts to be filled])","v":0},{"$f":"SUM(t_HRBP[2027/28 Vacant funded posts to be filled])","v":0},{"$f":"SUM(t_HRBP[2028/29 Vacant funded posts to be filled])","v":0},{"$f":"SUM(t_HRBP[2029/30 Vacant funded posts to be filled])","v":0},null,null,null,null,null,"Revised head count",{"$f":"IF(H34=0,\"\",H34)","v":""},"","",""]
[null,null,null,null,null,null,"Headcount reductions to be made",{"$f":"SUM(t_HRBP[2026/27 Headcount reductions to be made])","v":0},{"$f":"SUM(t_HRBP[2027/28 Headcount reductions to be made])","v":0},{"$f":"SUM(t_HRBP[2028/29 Headcount reductions to be made])","v":0},{"$f":"SUM(t_HRBP[2029/30 Headcount reductions to be made])","v":0},null,null,null,null,null,"Additions",{"$f":"IF(H32=0,\"\",H32)","v":""},{"$f":"IF(I32=0,\"\",I32)","v":""},{"$f":"IF(J32=0,\"\",J32)","v":""},{"$f":"IF(K32=0,\"\",K32)","v":""}]
[null,null,null,null,null,null,"Revised headcount",{"$f":"SUM(t_HRBP[2026/27 Revised Headcount])","v":0},{"$f":"SUM(t_HRBP[2027/28 Revised Headcount])","v":0},{"$f":"SUM(t_HRBP[2028/29 Revised Headcount])","v":0},{"$f":"SUM(t_HRBP[2029/30 Revised Headcount])","v":0},null,null,null,null,null,"Reductions","","","",""]
[null,null,null,null,null,null,"Change in headcount",{"$f":"H34-H31","v":0},{"$f":"I34-I31","v":0},{"$f":"J34-J31","v":0},{"$f":"K34-K31","v":0}]
[null,null,null,null,null,null,"Cost of vacant posts to be filled",{"$f":"SUM(t_HRBP[2026/27 Cost of vacant posts to be filled])","v":0},{"$f":"SUM(t_HRBP[2027/28 Cost of vacant posts to be filled])","v":0},{"$f":"SUM(t_HRBP[2028/29 Cost of vacant posts to be filled])","v":0},{"$f":"SUM(t_HRBP[2029/30 Cost of vacant posts to be filled])","v":0}]
[null,null,null,null,null,null,"Savings from headcount reductions",{"$f":"SUM(t_HRBP[2026/27 Savings from headcount reductions])","v":0},{"$f":"SUM(t_HRBP[2027/28 Savings from headcount reductions])","v":0},{"$f":"SUM(t_HRBP[2028/29 Savings from headcount reductions])","v":0},{"$f":"SUM(t_HRBP[2029/30 Savings from headcount reductions])","v":0}]
[]
[null,null,null,null,null,null,"Check: CoE (economic) less HRBP annual cost",{"$f":"SUMIFS(Dataset[2026/27 Revised baseline],Dataset[Econ3],\"Compensation of employees\")-SUM(t_HRBP[2026/27 Revised Estimate])","v":347072},{"$f":"SUMIFS(Dataset[2027/28 Revised baseline],Dataset[Econ3],\"Compensation of employees\")-SUM(t_HRBP[2027/28 MTEF Estimate])","v":362770},{"$f":"SUMIFS(Dataset[2028/29 Revised baseline],Dataset[Econ3],\"Compensation of employees\")-SUM(t_HRBP[2028/29 MTEF Estimate])","v":374043},{"$f":"SUMIFS(Dataset[2029/30 Revised baseline],Dataset[Econ3],\"Compensation of employees\")-SUM(t_HRBP[2029/30 MTEF Estimate])","v":385307}]
[]
[null,null,null,null,null,null,"Strategies to reduce headcounts (Indicators)",{"$f":"MyYear4","v":"2026/27"},{"$f":"MyYear5","v":"2027/28"},{"$f":"MyYear6","v":"2028/29"},{"$f":"MyYear7","v":"2029/30"},null,null,null,null,null,null,{"$f":"W8 & \" to \" & Z8","v":"2026/27 to 2029/30"}]
[null,null,null,null,null,null,"1. Employee initiated severance package",{"$f":"HRBP_Data!BA3","v":0},{"$f":"HRBP_Data!BB3","v":0},{"$f":"HRBP_Data!BC3","v":0},{"$f":"HRBP_Data!BD3","v":0},null,null,null,null,null,"Severance",{"$f":"IF(SUM(H42:K42)=0,\"\",SUM(H42:K42))","v":""}]
[null,null,null,null,null,null,"2. Early retirement",{"$f":"HRBP_Data!BA4","v":0},{"$f":"HRBP_Data!BB4","v":0},{"$f":"HRBP_Data!BC4","v":0},{"$f":"HRBP_Data!BD4","v":0},null,null,null,null,null,"Early retirement",""]
[null,null,null,null,null,null,"3. Natural attrition",{"$f":"HRBP_Data!BA5","v":0},{"$f":"HRBP_Data!BB5","v":0},{"$f":"HRBP_Data!BC5","v":0},{"$f":"HRBP_Data!BD5","v":0},null,null,null,null,null,"Natural attrition",""]
[null,null,null,null,null,null,"4. Retirement",{"$f":"HRBP_Data!BA6","v":0},{"$f":"HRBP_Data!BB6","v":0},{"$f":"HRBP_Data!BC6","v":0},{"$f":"HRBP_Data!BD6","v":0},null,null,null,null,null,"Retirement",""]
[null,null,null,null,null,null,"5. Contract termination",{"$f":"HRBP_Data!BA7","v":0},{"$f":"HRBP_Data!BB7","v":0},{"$f":"HRBP_Data!BC7","v":0},{"$f":"HRBP_Data!BD7","v":0},null,null,null,null,null,"Contract termination",""]
[null,null,null,null,null,null,"6. Redeployments (transfers to other departments)",{"$f":"HRBP_Data!BA8","v":0},{"$f":"HRBP_Data!BB8","v":0},{"$f":"HRBP_Data!BC8","v":0},{"$f":"HRBP_Data!BD8","v":0},null,null,null,null,null,"Redeployments",""]
[null,null,null,null,null,null,"Total",{"$f":"SUM(H42:H47)","v":0},0,0,0]
[]
[]
[]
[null,null,null,null,null,null,{"$f":"G3","v":"VOTE 30:  Communications and Digital Technologies"}]
[null,null,null,null,null,null,null,{"$f":"MyYear1","v":"2023/24"},{"$f":"MyYear2","v":"2024/25"},{"$f":"MyYear3","v":"2025/26"},{"$f":"MyYear4","v":"2026/27"},null,null,{"$f":"MyYear5","v":"2027/28"},null,null,null,{"$f":"MyYear6","v":"2028/29"},null,null,null,{"$f":"MyYear7","v":"2029/30"}]
[null,null,null,null,null,null,"Rand thousand","Audited outcome","Audited outcome","Pre-audited outcome","Budget","Adjustment","Revised","Baseline","Decrease","Increase","Revised baseline","Baseline","Decrease","Increase","Revised baseline","Baseline","Decrease","Increase","Revised baseline"]
[null,null,null,null,null,null,"Economic classification"]
[null,null,null,null,null,null,"Current payments",{"$f":"SUM(H57:H59)","v":1603732},{"$f":"SUM(I57:I59)","v":1149475},{"$f":"SUM(J57:J59)","v":344390},792252,{"$f":"SUM(L57:L59)","v":0},792252,824383,0,0,824383,{"$f":"SUM(R57:R59)","v":850577},{"$f":"SUM(S57:S59)","v":0},0,850577,876181,0,0,876181]
[null,null,null,null,null,null,"Compensation of employees",{"$f":"SUMPRODUCT(((Dataset[Econ3]=$G57))*Dataset[2023/24])","v":270655},{"$f":"SUMPRODUCT(((Dataset[Econ3]=$G57))*Dataset[2024/25])","v":273211},{"$f":"SUMPRODUCT(((Dataset[Econ3]=$G57))*Dataset[2025/26 Preliminary outcome])","v":154159},{"$f":"SUMPRODUCT(((Dataset[Econ3]=$G57))*Dataset[2026/27 Baseline])","v":347072},{"$f":"SUMPRODUCT(((Dataset[Econ3]=$G57))*Dataset[2026/27 Targeted savings])","v":0},{"$f":"K57+L57","v":347072},{"$f":"SUMPRODUCT(((Dataset[Econ3]=$G57))*Dataset[2027/28 Baseline])","v":362770},{"$f":"SUMPRODUCT(((Dataset[Econ3]=$G57))*Dataset[2027/28 Total decrease])","v":0},{"$f":"SUMPRODUCT(((Dataset[Econ3]=$G57))*Dataset[2027/28 To - Total])","v":0},{"$f":"N57+O57+P57","v":362770},{"$f":"SUMPRODUCT(((Dataset[Econ3]=$G57))*Dataset[2028/29 Baseline])","v":374043},{"$f":"SUMPRODUCT(((Dataset[Econ3]=$G57))*Dataset[2028/29 Total decrease])","v":0},{"$f":"SUMPRODUCT(((Dataset[Econ3]=$G57))*Dataset[2028/29 To - Total])","v":0},{"$f":"R57+S57+T57","v":374043},{"$f":"SUMPRODUCT(((Dataset[Econ3]=$G57))*Dataset[2029/30 Baseline])","v":385307},{"$f":"SUMPRODUCT(((Dataset[Econ3]=$G57))*Dataset[2029/30 Total decrease])","v":0},{"$f":"SUMPRODUCT(((Dataset[Econ3]=$G57))*Dataset[2029/30 To - Total])","v":0},{"$f":"V57+W57+X57","v":385307}]
[null,null,null,null,null,null,"Goods and services",{"$f":"SUMPRODUCT(((Dataset[Econ3]=$G58))*Dataset[2023/24])","v":1333077},{"$f":"SUMPRODUCT(((Dataset[Econ3]=$G58))*Dataset[2024/25])","v":876264},{"$f":"SUMPRODUCT(((Dataset[Econ3]=$G58))*Dataset[2025/26 Preliminary outcome])","v":190231},{"$f":"SUMPRODUCT(((Dataset[Econ3]=$G58))*Dataset[2026/27 Baseline])","v":445180},{"$f":"SUMPRODUCT(((Dataset[Econ3]=$G58))*Dataset[2026/27 Targeted savings])","v":0},{"$f":"K58+L58","v":445180},{"$f":"SUMPRODUCT(((Dataset[Econ3]=$G58))*Dataset[2027/28 Baseline])","v":461613},{"$f":"SUMPRODUCT(((Dataset[Econ3]=$G58))*Dataset[2027/28 Total decrease])","v":0},{"$f":"SUMPRODUCT(((Dataset[Econ3]=$G58))*Dataset[2027/28 To - Total])","v":0},{"$f":"N58+O58+P58","v":461613},{"$f":"SUMPRODUCT(((Dataset[Econ3]=$G58))*Dataset[2028/29 Baseline])","v":476534},{"$f":"SUMPRODUCT(((Dataset[Econ3]=$G58))*Dataset[2028/29 Total decrease])","v":0},{"$f":"SUMPRODUCT(((Dataset[Econ3]=$G58))*Dataset[2028/29 To - Total])","v":0},{"$f":"R58+S58+T58","v":476534},{"$f":"SUMPRODUCT(((Dataset[Econ3]=$G58))*Dataset[2029/30 Baseline])","v":490874},{"$f":"SUMPRODUCT(((Dataset[Econ3]=$G58))*Dataset[2029/30 Total decrease])","v":0},{"$f":"SUMPRODUCT(((Dataset[Econ3]=$G58))*Dataset[2029/30 To - Total])","v":0},{"$f":"V58+W58+X58","v":490874}]
[null,null,null,null,null,null,"Interest and rent on land",{"$f":"SUMPRODUCT(((Dataset[Econ3]=$G59))*Dataset[2023/24])","v":0},{"$f":"SUMPRODUCT(((Dataset[Econ3]=$G59))*Dataset[2024/25])","v":0},{"$f":"SUMPRODUCT(((Dataset[Econ3]=$G59))*Dataset[2025/26 Preliminary outcome])","v":0},{"$f":"SUMPRODUCT(((Dataset[Econ3]=$G59))*Dataset[2026/27 Baseline])","v":0},{"$f":"SUMPRODUCT(((Dataset[Econ3]=$G59))*Dataset[2026/27 Targeted savings])","v":0},{"$f":"K59+L59","v":0},{"$f":"SUMPRODUCT(((Dataset[Econ3]=$G59))*Dataset[2027/28 Baseline])","v":0},{"$f":"SUMPRODUCT(((Dataset[Econ3]=$G59))*Dataset[2027/28 Total decrease])","v":0},{"$f":"SUMPRODUCT(((Dataset[Econ3]=$G59))*Dataset[2027/28 To - Total])","v":0},0,{"$f":"SUMPRODUCT(((Dataset[Econ3]=$G59))*Dataset[2028/29 Baseline])","v":0},{"$f":"SUMPRODUCT(((Dataset[Econ3]=$G59))*Dataset[2028/29 Total decrease])","v":0},{"$f":"SUMPRODUCT(((Dataset[Econ3]=$G59))*Dataset[2028/29 To - Total])","v":0},0,{"$f":"SUMPRODUCT(((Dataset[Econ3]=$G59))*Dataset[2029/30 Baseline])","v":0},{"$f":"SUMPRODUCT(((Dataset[Econ3]=$G59))*Dataset[2029/30 Total decrease])","v":0},{"$f":"SUMPRODUCT(((Dataset[Econ3]=$G59))*Dataset[2029/30 To - Total])","v":0},0]
[null,null,null,null,null,null,"Transfers and subsidies",{"$f":"SUM(H61,H64,H67:H69,H72:H73)","v":1663384},{"$f":"SUM(I61,I64,I67:I69,I72:I73)","v":1761500},{"$f":"SUM(J61,J64,J67:J69,J72:J73)","v":0},1749944,{"$f":"SUM(L61,L64,L67:L69,L72:L73)","v":0},1749944,1816382,0,0,1816382,{"$f":"SUM(R61,R64,R67:R69,R72:R73)","v":1872834},{"$f":"SUM(S61,S64,S67:S69,S72:S73)","v":0},0,1872834,1929227,0,0,1929227]
[null,null,null,null,null,null,"Provinces and municipalities",{"$f":"SUM(H62:H63)","v":25},{"$f":"SUM(I62:I63)","v":23},{"$f":"SUM(J62:J63)","v":0},29,{"$f":"SUM(L62:L63)","v":0},29,30,0,0,30,{"$f":"SUM(R62:R63)","v":31},{"$f":"SUM(S62:S63)","v":0},0,31,32,0,0,32]
[null,null,null,null,null,null,"Provinces",{"$f":"SUMPRODUCT(((Dataset[Econ4]=$G62))*Dataset[2023/24])","v":25},{"$f":"SUMPRODUCT(((Dataset[Econ4]=$G62))*Dataset[2024/25])","v":23},{"$f":"SUMPRODUCT(((Dataset[Econ4]=$G62))*Dataset[2025/26 Preliminary outcome])","v":0},{"$f":"SUMPRODUCT(((Dataset[Econ4]=$G62))*Dataset[2026/27 Baseline])","v":29},{"$f":"SUMPRODUCT(((Dataset[Econ4]=$G62))*Dataset[2026/27 Targeted savings])","v":0},{"$f":"K62+L62","v":29},{"$f":"SUMPRODUCT(((Dataset[Econ4]=$G62))*Dataset[2027/28 Baseline])","v":30},{"$f":"SUMPRODUCT(((Dataset[Econ4]=$G62))*Dataset[2027/28 Total decrease])","v":0},{"$f":"SUMPRODUCT(((Dataset[Econ4]=$G62))*Dataset[2027/28 To - Total])","v":0},{"$f":"N62+O62+P62","v":30},{"$f":"SUMPRODUCT(((Dataset[Econ4]=$G62))*Dataset[2028/29 Baseline])","v":31},{"$f":"SUMPRODUCT(((Dataset[Econ4]=$G62))*Dataset[2028/29 Total decrease])","v":0},{"$f":"SUMPRODUCT(((Dataset[Econ4]=$G62))*Dataset[2028/29 To - Total])","v":0},{"$f":"R62+S62+T62","v":31},{"$f":"SUMPRODUCT(((Dataset[Econ4]=$G62))*Dataset[2029/30 Baseline])","v":32},{"$f":"SUMPRODUCT(((Dataset[Econ4]=$G62))*Dataset[2029/30 Total decrease])","v":0},{"$f":"SUMPRODUCT(((Dataset[Econ4]=$G62))*Dataset[2029/30 To - Total])","v":0},{"$f":"V62+W62+X62","v":32}]
[null,null,null,null,null,null,"Municipalities",{"$f":"SUMPRODUCT(((Dataset[Econ4]=$G63))*Dataset[2023/24])","v":0},{"$f":"SUMPRODUCT(((Dataset[Econ4]=$G63))*Dataset[2024/25])","v":0},{"$f":"SUMPRODUCT(((Dataset[Econ4]=$G63))*Dataset[2025/26 Preliminary outcome])","v":0},{"$f":"SUMPRODUCT(((Dataset[Econ4]=$G63))*Dataset[2026/27 Baseline])","v":0},{"$f":"SUMPRODUCT(((Dataset[Econ4]=$G63))*Dataset[2026/27 Targeted savings])","v":0},{"$f":"K63+L63","v":0},{"$f":"SUMPRODUCT(((Dataset[Econ4]=$G63))*Dataset[2027/28 Baseline])","v":0},{"$f":"SUMPRODUCT(((Dataset[Econ4]=$G63))*Dataset[2027/28 Total decrease])","v":0},{"$f":"SUMPRODUCT(((Dataset[Econ4]=$G63))*Dataset[2027/28 To - Total])","v":0},{"$f":"N63+O63+P63","v":0},{"$f":"SUMPRODUCT(((Dataset[Econ4]=$G63))*Dataset[2028/29 Baseline])","v":0},{"$f":"SUMPRODUCT(((Dataset[Econ4]=$G63))*Dataset[2028/29 Total decrease])","v":0},{"$f":"SUMPRODUCT(((Dataset[Econ4]=$G63))*Dataset[2028/29 To - Total])","v":0},{"$f":"R63+S63+T63","v":0},{"$f":"SUMPRODUCT(((Dataset[Econ4]=$G63))*Dataset[2029/30 Baseline])","v":0},{"$f":"SUMPRODUCT(((Dataset[Econ4]=$G63))*Dataset[2029/30 Total decrease])","v":0},{"$f":"SUMPRODUCT(((Dataset[Econ4]=$G63))*Dataset[2029/30 To - Total])","v":0},{"$f":"V63+W63+X63","v":0}]
[null,null,null,null,null,null,"Departmental agencies and accounts",{"$f":"SUM(H65:H66)","v":823193},{"$f":"SUM(I65:I66)","v":804843},{"$f":"SUM(J65:J66)","v":0},870141,{"$f":"SUM(L65:L66)","v":0},870141,904867,0,0,904867,{"$f":"SUM(R65:R66)","v":932990},{"$f":"SUM(S65:S66)","v":0},0,932990,961084,0,0,961084]
[null,null,null,null,null,null,"Social security funds",{"$f":"SUMPRODUCT(((Dataset[Econ4]=$G65))*Dataset[2023/24])","v":0},{"$f":"SUMPRODUCT(((Dataset[Econ4]=$G65))*Dataset[2024/25])","v":0},{"$f":"SUMPRODUCT(((Dataset[Econ4]=$G65))*Dataset[2025/26 Preliminary outcome])","v":0},{"$f":"SUMPRODUCT(((Dataset[Econ4]=$G65))*Dataset[2026/27 Baseline])","v":0},{"$f":"SUMPRODUCT(((Dataset[Econ4]=$G65))*Dataset[2026/27 Targeted savings])","v":0},{"$f":"K65+L65","v":0},{"$f":"SUMPRODUCT(((Dataset[Econ4]=$G65))*Dataset[2027/28 Baseline])","v":0},{"$f":"SUMPRODUCT(((Dataset[Econ4]=$G65))*Dataset[2027/28 Total decrease])","v":0},{"$f":"SUMPRODUCT(((Dataset[Econ4]=$G65))*Dataset[2027/28 To - Total])","v":0},{"$f":"N65+O65+P65","v":0},{"$f":"SUMPRODUCT(((Dataset[Econ4]=$G65))*Dataset[2028/29 Baseline])","v":0},{"$f":"SUMPRODUCT(((Dataset[Econ4]=$G65))*Dataset[2028/29 Total decrease])","v":0},{"$f":"SUMPRODUCT(((Dataset[Econ4]=$G65))*Dataset[2028/29 To - Total])","v":0},{"$f":"R65+S65+T65","v":0},{"$f":"SUMPRODUCT(((Dataset[Econ4]=$G65))*Dataset[2029/30 Baseline])","v":0},{"$f":"SUMPRODUCT(((Dataset[Econ4]=$G65))*Dataset[2029/30 Total decrease])","v":0},{"$f":"SUMPRODUCT(((Dataset[Econ4]=$G65))*Dataset[2029/30 To - Total])","v":0},{"$f":"V65+W65+X65","v":0}]
[null,null,null,null,null,null,"Departmental agencies (non-business entities)",{"$f":"SUMPRODUCT(((Dataset[Econ4]=$G66))*Dataset[2023/24])","v":823193},{"$f":"SUMPRODUCT(((Dataset[Econ4]=$G66))*Dataset[2024/25])","v":804843},{"$f":"SUMPRODUCT(((Dataset[Econ4]=$G66))*Dataset[2025/26 Preliminary outcome])","v":0},{"$f":"SUMPRODUCT(((Dataset[Econ4]=$G66))*Dataset[2026/27 Baseline])","v":870141},{"$f":"SUMPRODUCT(((Dataset[Econ4]=$G66))*Dataset[2026/27 Targeted savings])","v":0},870141,{"$f":"SUMPRODUCT(((Dataset[Econ4]=$G66))*Dataset[2027/28 Baseline])","v":904867},{"$f":"SUMPRODUCT(((Dataset[Econ4]=$G66))*Dataset[2027/28 Total decrease])","v":0},{"$f":"SUMPRODUCT(((Dataset[Econ4]=$G66))*Dataset[2027/28 To - Total])","v":0},904867,{"$f":"SUMPRODUCT(((Dataset[Econ4]=$G66))*Dataset[2028/29 Baseline])","v":932990},{"$f":"SUMPRODUCT(((Dataset[Econ4]=$G66))*Dataset[2028/29 Total decrease])","v":0},{"$f":"SUMPRODUCT(((Dataset[Econ4]=$G66))*Dataset[2028/29 To - Total])","v":0},932990,{"$f":"SUMPRODUCT(((Dataset[Econ4]=$G66))*Dataset[2029/30 Baseline])","v":961084},{"$f":"SUMPRODUCT(((Dataset[Econ4]=$G66))*Dataset[2029/30 Total decrease])","v":0},{"$f":"SUMPRODUCT(((Dataset[Econ4]=$G66))*Dataset[2029/30 To - Total])","v":0},961084]
[null,null,null,null,null,null,"Higher education institutions",{"$f":"SUMPRODUCT(((Dataset[Econ4]=$G67))*Dataset[2023/24])","v":0},{"$f":"SUMPRODUCT(((Dataset[Econ4]=$G67))*Dataset[2024/25])","v":0},{"$f":"SUMPRODUCT(((Dataset[Econ4]=$G67))*Dataset[2025/26 Preliminary outcome])","v":0},{"$f":"SUMPRODUCT(((Dataset[Econ4]=$G67))*Dataset[2026/27 Baseline])","v":0},{"$f":"SUMPRODUCT(((Dataset[Econ4]=$G67))*Dataset[2026/27 Targeted savings])","v":0},0,{"$f":"SUMPRODUCT(((Dataset[Econ4]=$G67))*Dataset[2027/28 Baseline])","v":0},{"$f":"SUMPRODUCT(((Dataset[Econ4]=$G67))*Dataset[2027/28 Total decrease])","v":0},{"$f":"SUMPRODUCT(((Dataset[Econ4]=$G67))*Dataset[2027/28 To - Total])","v":0},0,{"$f":"SUMPRODUCT(((Dataset[Econ4]=$G67))*Dataset[2028/29 Baseline])","v":0},{"$f":"SUMPRODUCT(((Dataset[Econ4]=$G67))*Dataset[2028/29 Total decrease])","v":0},{"$f":"SUMPRODUCT(((Dataset[Econ4]=$G67))*Dataset[2028/29 To - Total])","v":0},0,{"$f":"SUMPRODUCT(((Dataset[Econ4]=$G67))*Dataset[2029/30 Baseline])","v":0},{"$f":"SUMPRODUCT(((Dataset[Econ4]=$G67))*Dataset[2029/30 Total decrease])","v":0},{"$f":"SUMPRODUCT(((Dataset[Econ4]=$G67))*Dataset[2029/30 To - Total])","v":0},0]
[null,null,null,null,null,null,"Foreign governments and international organisations",{"$f":"SUMPRODUCT(((Dataset[Econ4]=$G68))*Dataset[2023/24])","v":41116},{"$f":"SUMPRODUCT(((Dataset[Econ4]=$G68))*Dataset[2024/25])","v":40820},{"$f":"SUMPRODUCT(((Dataset[Econ4]=$G68))*Dataset[2025/26 Preliminary outcome])","v":0},{"$f":"SUMPRODUCT(((Dataset[Econ4]=$G68))*Dataset[2026/27 Baseline])","v":45517},{"$f":"SUMPRODUCT(((Dataset[Econ4]=$G68))*Dataset[2026/27 Targeted savings])","v":0},45517,{"$f":"SUMPRODUCT(((Dataset[Econ4]=$G68))*Dataset[2027/28 Baseline])","v":47333},{"$f":"SUMPRODUCT(((Dataset[Econ4]=$G68))*Dataset[2027/28 Total decrease])","v":0},{"$f":"SUMPRODUCT(((Dataset[Econ4]=$G68))*Dataset[2027/28 To - Total])","v":0},47333,{"$f":"SUMPRODUCT(((Dataset[Econ4]=$G68))*Dataset[2028/29 Baseline])","v":48805},{"$f":"SUMPRODUCT(((Dataset[Econ4]=$G68))*Dataset[2028/29 Total decrease])","v":0},{"$f":"SUMPRODUCT(((Dataset[Econ4]=$G68))*Dataset[2028/29 To - Total])","v":0},48805,{"$f":"SUMPRODUCT(((Dataset[Econ4]=$G68))*Dataset[2029/30 Baseline])","v":50275},{"$f":"SUMPRODUCT(((Dataset[Econ4]=$G68))*Dataset[2029/30 Total decrease])","v":0},{"$f":"SUMPRODUCT(((Dataset[Econ4]=$G68))*Dataset[2029/30 To - Total])","v":0},50275]
[null,null,null,null,null,null,"Public corporations and private enterprises",{"$f":"SUM(H70:H71)","v":790906},{"$f":"SUM(I70:I71)","v":908875},{"$f":"SUM(J70:J71)","v":0},829657,{"$f":"SUM(L70:L71)","v":0},829657,862765,0,0,862765,{"$f":"SUM(R70:R71)","v":889579},{"$f":"SUM(S70:S71)","v":0},0,889579,916364,0,0,916364]
[null,null,null,null,null,null,"Public corporations",{"$f":"SUMPRODUCT(((Dataset[Econ4]=$G70))*Dataset[2023/24])","v":266636},{"$f":"SUMPRODUCT(((Dataset[Econ4]=$G70))*Dataset[2024/25])","v":211060},{"$f":"SUMPRODUCT(((Dataset[Econ4]=$G70))*Dataset[2025/26 Preliminary outcome])","v":0},{"$f":"SUMPRODUCT(((Dataset[Econ4]=$G70))*Dataset[2026/27 Baseline])","v":234169},{"$f":"SUMPRODUCT(((Dataset[Econ4]=$G70))*Dataset[2026/27 Targeted savings])","v":0},{"$f":"K70+L70","v":234169},{"$f":"SUMPRODUCT(((Dataset[Econ4]=$G70))*Dataset[2027/28 Baseline])","v":243513},{"$f":"SUMPRODUCT(((Dataset[Econ4]=$G70))*Dataset[2027/28 Total decrease])","v":0},{"$f":"SUMPRODUCT(((Dataset[Econ4]=$G70))*Dataset[2027/28 To - Total])","v":0},{"$f":"N70+O70+P70","v":243513},{"$f":"SUMPRODUCT(((Dataset[Econ4]=$G70))*Dataset[2028/29 Baseline])","v":251081},{"$f":"SUMPRODUCT(((Dataset[Econ4]=$G70))*Dataset[2028/29 Total decrease])","v":0},{"$f":"SUMPRODUCT(((Dataset[Econ4]=$G70))*Dataset[2028/29 To - Total])","v":0},{"$f":"R70+S70+T70","v":251081},{"$f":"SUMPRODUCT(((Dataset[Econ4]=$G70))*Dataset[2029/30 Baseline])","v":258640},{"$f":"SUMPRODUCT(((Dataset[Econ4]=$G70))*Dataset[2029/30 Total decrease])","v":0},{"$f":"SUMPRODUCT(((Dataset[Econ4]=$G70))*Dataset[2029/30 To - Total])","v":0},{"$f":"V70+W70+X70","v":258640}]
[null,null,null,null,null,null,"Private enterprises",{"$f":"SUMPRODUCT(((Dataset[Econ4]=$G71))*Dataset[2023/24])","v":524270},{"$f":"SUMPRODUCT(((Dataset[Econ4]=$G71))*Dataset[2024/25])","v":697815},{"$f":"SUMPRODUCT(((Dataset[Econ4]=$G71))*Dataset[2025/26 Preliminary outcome])","v":0},{"$f":"SUMPRODUCT(((Dataset[Econ4]=$G71))*Dataset[2026/27 Baseline])","v":595488},{"$f":"SUMPRODUCT(((Dataset[Econ4]=$G71))*Dataset[2026/27 Targeted savings])","v":0},595488,{"$f":"SUMPRODUCT(((Dataset[Econ4]=$G71))*Dataset[2027/28 Baseline])","v":619252},{"$f":"SUMPRODUCT(((Dataset[Econ4]=$G71))*Dataset[2027/28 Total decrease])","v":0},{"$f":"SUMPRODUCT(((Dataset[Econ4]=$G71))*Dataset[2027/28 To - Total])","v":0},619252,{"$f":"SUMPRODUCT(((Dataset[Econ4]=$G71))*Dataset[2028/29 Baseline])","v":638498},{"$f":"SUMPRODUCT(((Dataset[Econ4]=$G71))*Dataset[2028/29 Total decrease])","v":0},{"$f":"SUMPRODUCT(((Dataset[Econ4]=$G71))*Dataset[2028/29 To - Total])","v":0},638498,{"$f":"SUMPRODUCT(((Dataset[Econ4]=$G71))*Dataset[2029/30 Baseline])","v":657724},{"$f":"SUMPRODUCT(((Dataset[Econ4]=$G71))*Dataset[2029/30 Total decrease])","v":0},{"$f":"SUMPRODUCT(((Dataset[Econ4]=$G71))*Dataset[2029/30 To - Total])","v":0},657724]
[null,null,null,null,null,null,"Non-profit institutions",{"$f":"SUMPRODUCT(((Dataset[Econ4]=$G72))*Dataset[2023/24])","v":0},{"$f":"SUMPRODUCT(((Dataset[Econ4]=$G72))*Dataset[2024/25])","v":0},{"$f":"SUMPRODUCT(((Dataset[Econ4]=$G72))*Dataset[2025/26 Preliminary outcome])","v":0},{"$f":"SUMPRODUCT(((Dataset[Econ4]=$G72))*Dataset[2026/27 Baseline])","v":0},{"$f":"SUMPRODUCT(((Dataset[Econ4]=$G72))*Dataset[2026/27 Targeted savings])","v":0},{"$f":"K72+L72","v":0},{"$f":"SUMPRODUCT(((Dataset[Econ4]=$G72))*Dataset[2027/28 Baseline])","v":0},{"$f":"SUMPRODUCT(((Dataset[Econ4]=$G72))*Dataset[2027/28 Total decrease])","v":0},{"$f":"SUMPRODUCT(((Dataset[Econ4]=$G72))*Dataset[2027/28 To - Total])","v":0},0,{"$f":"SUMPRODUCT(((Dataset[Econ4]=$G72))*Dataset[2028/29 Baseline])","v":0},{"$f":"SUMPRODUCT(((Dataset[Econ4]=$G72))*Dataset[2028/29 Total decrease])","v":0},{"$f":"SUMPRODUCT(((Dataset[Econ4]=$G72))*Dataset[2028/29 To - Total])","v":0},0,{"$f":"SUMPRODUCT(((Dataset[Econ4]=$G72))*Dataset[2029/30 Baseline])","v":0},{"$f":"SUMPRODUCT(((Dataset[Econ4]=$G72))*Dataset[2029/30 Total decrease])","v":0},{"$f":"SUMPRODUCT(((Dataset[Econ4]=$G72))*Dataset[2029/30 To - Total])","v":0},0]
[null,null,null,null,null,null,"Households",{"$f":"SUM(H74:H75)","v":8144},{"$f":"SUM(I74:I75)","v":6939},{"$f":"SUM(J74:J75)","v":0},4600,{"$f":"SUM(L74:L75)","v":0},4600,1387,0,0,1387,{"$f":"SUM(R74:R75)","v":1429},{"$f":"SUM(S74:S75)","v":0},0,1429,1472,0,0,1472]
[null,null,null,null,null,null,"Social benefits",{"$f":"SUMPRODUCT(((Dataset[Econ4]=$G74))*Dataset[2023/24])","v":2226},{"$f":"SUMPRODUCT(((Dataset[Econ4]=$G74))*Dataset[2024/25])","v":6862},{"$f":"SUMPRODUCT(((Dataset[Econ4]=$G74))*Dataset[2025/26 Preliminary outcome])","v":0},{"$f":"SUMPRODUCT(((Dataset[Econ4]=$G74))*Dataset[2026/27 Baseline])","v":4600},{"$f":"SUMPRODUCT(((Dataset[Econ4]=$G74))*Dataset[2026/27 Targeted savings])","v":0},{"$f":"K74+L74","v":4600},{"$f":"SUMPRODUCT(((Dataset[Econ4]=$G74))*Dataset[2027/28 Baseline])","v":1387},{"$f":"SUMPRODUCT(((Dataset[Econ4]=$G74))*Dataset[2027/28 Total decrease])","v":0},{"$f":"SUMPRODUCT(((Dataset[Econ4]=$G74))*Dataset[2027/28 To - Total])","v":0},{"$f":"N74+O74+P74","v":1387},{"$f":"SUMPRODUCT(((Dataset[Econ4]=$G74))*Dataset[2028/29 Baseline])","v":1429},{"$f":"SUMPRODUCT(((Dataset[Econ4]=$G74))*Dataset[2028/29 Total decrease])","v":0},{"$f":"SUMPRODUCT(((Dataset[Econ4]=$G74))*Dataset[2028/29 To - Total])","v":0},{"$f":"R74+S74+T74","v":1429},{"$f":"SUMPRODUCT(((Dataset[Econ4]=$G74))*Dataset[2029/30 Baseline])","v":1472},{"$f":"SUMPRODUCT(((Dataset[Econ4]=$G74))*Dataset[2029/30 Total decrease])","v":0},{"$f":"SUMPRODUCT(((Dataset[Econ4]=$G74))*Dataset[2029/30 To - Total])","v":0},{"$f":"V74+W74+X74","v":1472}]
[null,null,null,null,null,null,"Other transfers to households",{"$f":"SUMPRODUCT(((Dataset[Econ4]=$G75))*Dataset[2023/24])","v":5918},{"$f":"SUMPRODUCT(((Dataset[Econ4]=$G75))*Dataset[2024/25])","v":77},{"$f":"SUMPRODUCT(((Dataset[Econ4]=$G75))*Dataset[2025/26 Preliminary outcome])","v":0},{"$f":"SUMPRODUCT(((Dataset[Econ4]=$G75))*Dataset[2026/27 Baseline])","v":0},{"$f":"SUMPRODUCT(((Dataset[Econ4]=$G75))*Dataset[2026/27 Targeted savings])","v":0},0,{"$f":"SUMPRODUCT(((Dataset[Econ4]=$G75))*Dataset[2027/28 Baseline])","v":0},{"$f":"SUMPRODUCT(((Dataset[Econ4]=$G75))*Dataset[2027/28 Total decrease])","v":0},{"$f":"SUMPRODUCT(((Dataset[Econ4]=$G75))*Dataset[2027/28 To - Total])","v":0},0,{"$f":"SUMPRODUCT(((Dataset[Econ4]=$G75))*Dataset[2028/29 Baseline])","v":0},{"$f":"SUMPRODUCT(((Dataset[Econ4]=$G75))*Dataset[2028/29 Total decrease])","v":0},{"$f":"SUMPRODUCT(((Dataset[Econ4]=$G75))*Dataset[2028/29 To - Total])","v":0},0,{"$f":"SUMPRODUCT(((Dataset[Econ4]=$G75))*Dataset[2029/30 Baseline])","v":0},{"$f":"SUMPRODUCT(((Dataset[Econ4]=$G75))*Dataset[2029/30 Total decrease])","v":0},{"$f":"SUMPRODUCT(((Dataset[Econ4]=$G75))*Dataset[2029/30 To - Total])","v":0},0]
[null,null,null,null,null,null,"Payments for capital assets",{"$f":"SUM(H77,H80,H83:H87)","v":5569},{"$f":"SUM(I77,I80,I83:I87)","v":2324},{"$f":"SUM(J77,J80,J83:J87)","v":20074},6826,{"$f":"SUM(L77,L80,L83:L87)","v":0},6826,8389,0,0,8389,{"$f":"SUM(R77,R80,R83:R87)","v":8077},{"$f":"SUM(S77,S80,S83:S87)","v":0},0,8077,8321,0,0,8321]
[null,null,null,null,null,null,"Buildings and other fixed structures",{"$f":"SUM(H78:H79)","v":0},{"$f":"SUM(I78:I79)","v":0},{"$f":"SUM(J78:J79)","v":0},0,{"$f":"SUM(L78:L79)","v":0},0,0,0,0,0,{"$f":"SUM(R78:R79)","v":0},{"$f":"SUM(S78:S79)","v":0},0,0,0,0,0,0]
[null,null,null,null,null,null,"Buildings",{"$f":"SUMPRODUCT(((Dataset[Econ4]=$G78))*Dataset[2023/24])","v":0},{"$f":"SUMPRODUCT(((Dataset[Econ4]=$G78))*Dataset[2024/25])","v":0},{"$f":"SUMPRODUCT(((Dataset[Econ4]=$G78))*Dataset[2025/26 Preliminary outcome])","v":0},{"$f":"SUMPRODUCT(((Dataset[Econ4]=$G78))*Dataset[2026/27 Baseline])","v":0},{"$f":"SUMPRODUCT(((Dataset[Econ4]=$G78))*Dataset[2026/27 Targeted savings])","v":0},{"$f":"K78+L78","v":0},{"$f":"SUMPRODUCT(((Dataset[Econ4]=$G78))*Dataset[2027/28 Baseline])","v":0},{"$f":"SUMPRODUCT(((Dataset[Econ4]=$G78))*Dataset[2027/28 Total decrease])","v":0},{"$f":"SUMPRODUCT(((Dataset[Econ4]=$G78))*Dataset[2027/28 To - Total])","v":0},{"$f":"N78+O78+P78","v":0},{"$f":"SUMPRODUCT(((Dataset[Econ4]=$G78))*Dataset[2028/29 Baseline])","v":0},{"$f":"SUMPRODUCT(((Dataset[Econ4]=$G78))*Dataset[2028/29 Total decrease])","v":0},{"$f":"SUMPRODUCT(((Dataset[Econ4]=$G78))*Dataset[2028/29 To - Total])","v":0},{"$f":"R78+S78+T78","v":0},{"$f":"SUMPRODUCT(((Dataset[Econ4]=$G78))*Dataset[2029/30 Baseline])","v":0},{"$f":"SUMPRODUCT(((Dataset[Econ4]=$G78))*Dataset[2029/30 Total decrease])","v":0},{"$f":"SUMPRODUCT(((Dataset[Econ4]=$G78))*Dataset[2029/30 To - Total])","v":0},{"$f":"V78+W78+X78","v":0}]
[null,null,null,null,null,null,"Other fixed structures",{"$f":"SUMPRODUCT(((Dataset[Econ4]=$G79))*Dataset[2023/24])","v":0},{"$f":"SUMPRODUCT(((Dataset[Econ4]=$G79))*Dataset[2024/25])","v":0},{"$f":"SUMPRODUCT(((Dataset[Econ4]=$G79))*Dataset[2025/26 Preliminary outcome])","v":0},{"$f":"SUMPRODUCT(((Dataset[Econ4]=$G79))*Dataset[2026/27 Baseline])","v":0},{"$f":"SUMPRODUCT(((Dataset[Econ4]=$G79))*Dataset[2026/27 Targeted savings])","v":0},0,{"$f":"SUMPRODUCT(((Dataset[Econ4]=$G79))*Dataset[2027/28 Baseline])","v":0},{"$f":"SUMPRODUCT(((Dataset[Econ4]=$G79))*Dataset[2027/28 Total decrease])","v":0},{"$f":"SUMPRODUCT(((Dataset[Econ4]=$G79))*Dataset[2027/28 To - Total])","v":0},0,{"$f":"SUMPRODUCT(((Dataset[Econ4]=$G79))*Dataset[2028/29 Baseline])","v":0},{"$f":"SUMPRODUCT(((Dataset[Econ4]=$G79))*Dataset[2028/29 Total decrease])","v":0},{"$f":"SUMPRODUCT(((Dataset[Econ4]=$G79))*Dataset[2028/29 To - Total])","v":0},0,{"$f":"SUMPRODUCT(((Dataset[Econ4]=$G79))*Dataset[2029/30 Baseline])","v":0},{"$f":"SUMPRODUCT(((Dataset[Econ4]=$G79))*Dataset[2029/30 Total decrease])","v":0},{"$f":"SUMPRODUCT(((Dataset[Econ4]=$G79))*Dataset[2029/30 To - Total])","v":0},0]
[null,null,null,null,null,null,"Machinery and equipment",{"$f":"SUM(H81:H82)","v":4587},{"$f":"SUM(I81:I82)","v":2324},{"$f":"SUM(J81:J82)","v":20074},6826,{"$f":"SUM(L81:L82)","v":0},6826,8389,0,0,8389,{"$f":"SUM(R81:R82)","v":7171},{"$f":"SUM(S81:S82)","v":0},0,7171,7387,0,0,7387]
[null,null,null,null,null,null,"Transport equipment",{"$f":"SUMPRODUCT(((Dataset[Econ4]=$G81))*Dataset[2023/24])","v":0},{"$f":"SUMPRODUCT(((Dataset[Econ4]=$G81))*Dataset[2024/25])","v":760},{"$f":"SUMPRODUCT(((Dataset[Econ4]=$G81))*Dataset[2025/26 Preliminary outcome])","v":2994},{"$f":"SUMPRODUCT(((Dataset[Econ4]=$G81))*Dataset[2026/27 Baseline])","v":1107},{"$f":"SUMPRODUCT(((Dataset[Econ4]=$G81))*Dataset[2026/27 Targeted savings])","v":0},{"$f":"K81+L81","v":1107},{"$f":"SUMPRODUCT(((Dataset[Econ4]=$G81))*Dataset[2027/28 Baseline])","v":1151},{"$f":"SUMPRODUCT(((Dataset[Econ4]=$G81))*Dataset[2027/28 Total decrease])","v":0},{"$f":"SUMPRODUCT(((Dataset[Econ4]=$G81))*Dataset[2027/28 To - Total])","v":0},{"$f":"N81+O81+P81","v":1151},{"$f":"SUMPRODUCT(((Dataset[Econ4]=$G81))*Dataset[2028/29 Baseline])","v":1187},{"$f":"SUMPRODUCT(((Dataset[Econ4]=$G81))*Dataset[2028/29 Total decrease])","v":0},{"$f":"SUMPRODUCT(((Dataset[Econ4]=$G81))*Dataset[2028/29 To - Total])","v":0},{"$f":"R81+S81+T81","v":1187},{"$f":"SUMPRODUCT(((Dataset[Econ4]=$G81))*Dataset[2029/30 Baseline])","v":1223},{"$f":"SUMPRODUCT(((Dataset[Econ4]=$G81))*Dataset[2029/30 Total decrease])","v":0},{"$f":"SUMPRODUCT(((Dataset[Econ4]=$G81))*Dataset[2029/30 To - Total])","v":0},{"$f":"V81+W81+X81","v":1223}]
[null,null,null,null,null,null,"Other machinery and equipment",{"$f":"SUMPRODUCT(((Dataset[Econ4]=$G82))*Dataset[2023/24])","v":4587},{"$f":"SUMPRODUCT(((Dataset[Econ4]=$G82))*Dataset[2024/25])","v":1564},{"$f":"SUMPRODUCT(((Dataset[Econ4]=$G82))*Dataset[2025/26 Preliminary outcome])","v":17080},{"$f":"SUMPRODUCT(((Dataset[Econ4]=$G82))*Dataset[2026/27 Baseline])","v":5719},{"$f":"SUMPRODUCT(((Dataset[Econ4]=$G82))*Dataset[2026/27 Targeted savings])","v":0},5719,{"$f":"SUMPRODUCT(((Dataset[Econ4]=$G82))*Dataset[2027/28 Baseline])","v":7238},{"$f":"SUMPRODUCT(((Dataset[Econ4]=$G82))*Dataset[2027/28 Total decrease])","v":0},{"$f":"SUMPRODUCT(((Dataset[Econ4]=$G82))*Dataset[2027/28 To - Total])","v":0},7238,{"$f":"SUMPRODUCT(((Dataset[Econ4]=$G82))*Dataset[2028/29 Baseline])","v":5984},{"$f":"SUMPRODUCT(((Dataset[Econ4]=$G82))*Dataset[2028/29 Total decrease])","v":0},{"$f":"SUMPRODUCT(((Dataset[Econ4]=$G82))*Dataset[2028/29 To - Total])","v":0},5984,{"$f":"SUMPRODUCT(((Dataset[Econ4]=$G82))*Dataset[2029/30 Baseline])","v":6164},{"$f":"SUMPRODUCT(((Dataset[Econ4]=$G82))*Dataset[2029/30 Total decrease])","v":0},{"$f":"SUMPRODUCT(((Dataset[Econ4]=$G82))*Dataset[2029/30 To - Total])","v":0},6164]
[null,null,null,null,null,null,"Heritage assets",{"$f":"SUMPRODUCT(((Dataset[Econ3]=$G83))*Dataset[2023/24])","v":0},{"$f":"SUMPRODUCT(((Dataset[Econ3]=$G83))*Dataset[2024/25])","v":0},{"$f":"SUMPRODUCT(((Dataset[Econ3]=$G83))*Dataset[2025/26 Preliminary outcome])","v":0},{"$f":"SUMPRODUCT(((Dataset[Econ3]=$G83))*Dataset[2026/27 Baseline])","v":0},{"$f":"SUMPRODUCT(((Dataset[Econ3]=$G83))*Dataset[2026/27 Targeted savings])","v":0},{"$f":"K83+L83","v":0},{"$f":"SUMPRODUCT(((Dataset[Econ3]=$G83))*Dataset[2027/28 Baseline])","v":0},{"$f":"SUMPRODUCT(((Dataset[Econ3]=$G83))*Dataset[2027/28 Total decrease])","v":0},{"$f":"SUMPRODUCT(((Dataset[Econ3]=$G83))*Dataset[2027/28 To - Total])","v":0},{"$f":"N83+O83+P83","v":0},{"$f":"SUMPRODUCT(((Dataset[Econ3]=$G83))*Dataset[2028/29 Baseline])","v":0},{"$f":"SUMPRODUCT(((Dataset[Econ3]=$G83))*Dataset[2028/29 Total decrease])","v":0},{"$f":"SUMPRODUCT(((Dataset[Econ3]=$G83))*Dataset[2028/29 To - Total])","v":0},{"$f":"R83+S83+T83","v":0},{"$f":"SUMPRODUCT(((Dataset[Econ3]=$G83))*Dataset[2029/30 Baseline])","v":0},{"$f":"SUMPRODUCT(((Dataset[Econ3]=$G83))*Dataset[2029/30 Total decrease])","v":0},{"$f":"SUMPRODUCT(((Dataset[Econ3]=$G83))*Dataset[2029/30 To - Total])","v":0},{"$f":"V83+W83+X83","v":0}]
[null,null,null,null,null,null,"Specialised military assets",{"$f":"SUMPRODUCT(((Dataset[Econ3]=$G84))*Dataset[2023/24])","v":0},{"$f":"SUMPRODUCT(((Dataset[Econ3]=$G84))*Dataset[2024/25])","v":0},{"$f":"SUMPRODUCT(((Dataset[Econ3]=$G84))*Dataset[2025/26 Preliminary outcome])","v":0},{"$f":"SUMPRODUCT(((Dataset[Econ3]=$G84))*Dataset[2026/27 Baseline])","v":0},{"$f":"SUMPRODUCT(((Dataset[Econ3]=$G84))*Dataset[2026/27 Targeted savings])","v":0},0,{"$f":"SUMPRODUCT(((Dataset[Econ3]=$G84))*Dataset[2027/28 Baseline])","v":0},{"$f":"SUMPRODUCT(((Dataset[Econ3]=$G84))*Dataset[2027/28 Total decrease])","v":0},{"$f":"SUMPRODUCT(((Dataset[Econ3]=$G84))*Dataset[2027/28 To - Total])","v":0},0,{"$f":"SUMPRODUCT(((Dataset[Econ3]=$G84))*Dataset[2028/29 Baseline])","v":0},{"$f":"SUMPRODUCT(((Dataset[Econ3]=$G84))*Dataset[2028/29 Total decrease])","v":0},{"$f":"SUMPRODUCT(((Dataset[Econ3]=$G84))*Dataset[2028/29 To - Total])","v":0},0,{"$f":"SUMPRODUCT(((Dataset[Econ3]=$G84))*Dataset[2029/30 Baseline])","v":0},{"$f":"SUMPRODUCT(((Dataset[Econ3]=$G84))*Dataset[2029/30 Total decrease])","v":0},{"$f":"SUMPRODUCT(((Dataset[Econ3]=$G84))*Dataset[2029/30 To - Total])","v":0},0]
[null,null,null,null,null,null,"Biological assets",{"$f":"SUMPRODUCT(((Dataset[Econ3]=$G85))*Dataset[2023/24])","v":0},{"$f":"SUMPRODUCT(((Dataset[Econ3]=$G85))*Dataset[2024/25])","v":0},{"$f":"SUMPRODUCT(((Dataset[Econ3]=$G85))*Dataset[2025/26 Preliminary outcome])","v":0},{"$f":"SUMPRODUCT(((Dataset[Econ3]=$G85))*Dataset[2026/27 Baseline])","v":0},{"$f":"SUMPRODUCT(((Dataset[Econ3]=$G85))*Dataset[2026/27 Targeted savings])","v":0},0,{"$f":"SUMPRODUCT(((Dataset[Econ3]=$G85))*Dataset[2027/28 Baseline])","v":0},{"$f":"SUMPRODUCT(((Dataset[Econ3]=$G85))*Dataset[2027/28 Total decrease])","v":0},{"$f":"SUMPRODUCT(((Dataset[Econ3]=$G85))*Dataset[2027/28 To - Total])","v":0},0,{"$f":"SUMPRODUCT(((Dataset[Econ3]=$G85))*Dataset[2028/29 Baseline])","v":0},{"$f":"SUMPRODUCT(((Dataset[Econ3]=$G85))*Dataset[2028/29 Total decrease])","v":0},{"$f":"SUMPRODUCT(((Dataset[Econ3]=$G85))*Dataset[2028/29 To - Total])","v":0},0,{"$f":"SUMPRODUCT(((Dataset[Econ3]=$G85))*Dataset[2029/30 Baseline])","v":0},{"$f":"SUMPRODUCT(((Dataset[Econ3]=$G85))*Dataset[2029/30 Total decrease])","v":0},{"$f":"SUMPRODUCT(((Dataset[Econ3]=$G85))*Dataset[2029/30 To - Total])","v":0},0]
[null,null,null,null,null,null,"Land and sub-soil assets",{"$f":"SUMPRODUCT(((Dataset[Econ3]=$G86))*Dataset[2023/24])","v":0},{"$f":"SUMPRODUCT(((Dataset[Econ3]=$G86))*Dataset[2024/25])","v":0},{"$f":"SUMPRODUCT(((Dataset[Econ3]=$G86))*Dataset[2025/26 Preliminary outcome])","v":0},{"$f":"SUMPRODUCT(((Dataset[Econ3]=$G86))*Dataset[2026/27 Baseline])","v":0},{"$f":"SUMPRODUCT(((Dataset[Econ3]=$G86))*Dataset[2026/27 Targeted savings])","v":0},0,{"$f":"SUMPRODUCT(((Dataset[Econ3]=$G86))*Dataset[2027/28 Baseline])","v":0},{"$f":"SUMPRODUCT(((Dataset[Econ3]=$G86))*Dataset[2027/28 Total decrease])","v":0},{"$f":"SUMPRODUCT(((Dataset[Econ3]=$G86))*Dataset[2027/28 To - Total])","v":0},0,{"$f":"SUMPRODUCT(((Dataset[Econ3]=$G86))*Dataset[2028/29 Baseline])","v":0},{"$f":"SUMPRODUCT(((Dataset[Econ3]=$G86))*Dataset[2028/29 Total decrease])","v":0},{"$f":"SUMPRODUCT(((Dataset[Econ3]=$G86))*Dataset[2028/29 To - Total])","v":0},0,{"$f":"SUMPRODUCT(((Dataset[Econ3]=$G86))*Dataset[2029/30 Baseline])","v":0},{"$f":"SUMPRODUCT(((Dataset[Econ3]=$G86))*Dataset[2029/30 Total decrease])","v":0},{"$f":"SUMPRODUCT(((Dataset[Econ3]=$G86))*Dataset[2029/30 To - Total])","v":0},0]
[null,null,null,null,null,null,"Software and other intangible assets",{"$f":"SUMPRODUCT(((Dataset[Econ3]=$G87))*Dataset[2023/24])","v":982},{"$f":"SUMPRODUCT(((Dataset[Econ3]=$G87))*Dataset[2024/25])","v":0},{"$f":"SUMPRODUCT(((Dataset[Econ3]=$G87))*Dataset[2025/26 Preliminary outcome])","v":0},{"$f":"SUMPRODUCT(((Dataset[Econ3]=$G87))*Dataset[2026/27 Baseline])","v":0},{"$f":"SUMPRODUCT(((Dataset[Econ3]=$G87))*Dataset[2026/27 Targeted savings])","v":0},0,{"$f":"SUMPRODUCT(((Dataset[Econ3]=$G87))*Dataset[2027/28 Baseline])","v":0},{"$f":"SUMPRODUCT(((Dataset[Econ3]=$G87))*Dataset[2027/28 Total decrease])","v":0},{"$f":"SUMPRODUCT(((Dataset[Econ3]=$G87))*Dataset[2027/28 To - Total])","v":0},0,{"$f":"SUMPRODUCT(((Dataset[Econ3]=$G87))*Dataset[2028/29 Baseline])","v":906},{"$f":"SUMPRODUCT(((Dataset[Econ3]=$G87))*Dataset[2028/29 Total decrease])","v":0},{"$f":"SUMPRODUCT(((Dataset[Econ3]=$G87))*Dataset[2028/29 To - Total])","v":0},906,{"$f":"SUMPRODUCT(((Dataset[Econ3]=$G87))*Dataset[2029/30 Baseline])","v":934},{"$f":"SUMPRODUCT(((Dataset[Econ3]=$G87))*Dataset[2029/30 Total decrease])","v":0},{"$f":"SUMPRODUCT(((Dataset[Econ3]=$G87))*Dataset[2029/30 To - Total])","v":0},934]
[null,null,null,null,null,null,"Payments for financial assets",{"$f":"SUMPRODUCT(((Dataset[Econ3]=$G88))*Dataset[2023/24])","v":6970},{"$f":"SUMPRODUCT(((Dataset[Econ3]=$G88))*Dataset[2024/25])","v":1864},{"$f":"SUMPRODUCT(((Dataset[Econ3]=$G88))*Dataset[2025/26 Preliminary outcome])","v":0},{"$f":"SUMPRODUCT(((Dataset[Econ3]=$G88))*Dataset[2026/27 Baseline])","v":0},{"$f":"SUMPRODUCT(((Dataset[Econ3]=$G88))*Dataset[2026/27 Targeted savings])","v":0},0,{"$f":"SUMPRODUCT(((Dataset[Econ3]=$G88))*Dataset[2027/28 Baseline])","v":0},{"$f":"SUMPRODUCT(((Dataset[Econ3]=$G88))*Dataset[2027/28 Total decrease])","v":0},{"$f":"SUMPRODUCT(((Dataset[Econ3]=$G88))*Dataset[2027/28 To - Total])","v":0},0,{"$f":"SUMPRODUCT(((Dataset[Econ3]=$G88))*Dataset[2028/29 Baseline])","v":0},{"$f":"SUMPRODUCT(((Dataset[Econ3]=$G88))*Dataset[2028/29 Total decrease])","v":0},{"$f":"SUMPRODUCT(((Dataset[Econ3]=$G88))*Dataset[2028/29 To - Total])","v":0},0,{"$f":"SUMPRODUCT(((Dataset[Econ3]=$G88))*Dataset[2029/30 Baseline])","v":0},{"$f":"SUMPRODUCT(((Dataset[Econ3]=$G88))*Dataset[2029/30 Total decrease])","v":0},{"$f":"SUMPRODUCT(((Dataset[Econ3]=$G88))*Dataset[2029/30 To - Total])","v":0},0]
[null,null,null,null,null,null,"Total",{"$f":"SUM(H56,H60,H76,H88)","v":3279655},{"$f":"SUM(I56,I60,I76,I88)","v":2915163},{"$f":"SUM(J56,J60,J76,J88)","v":364464},2549022,{"$f":"SUM(L56,L60,L76,L88)","v":0},2549022,2649154,0,0,2649154,{"$f":"SUM(R56,R60,R76,R88)","v":2731488},{"$f":"SUM(S56,S60,S76,S88)","v":0},0,2731488,2813729,0,0,2813729]
[]
[]
[]
[]
[]
[]
[null,null,null,null,null,null,"I, ……………………………………………………..………………………………………., hereby certify that the information provided in this template is complete, true and accurate, and has been compiled in accordance with the requirements set out in the 2027 MTEF Technical Guidelines."]
[]
[]
[]
[]
[null,null,null,null,null,null,"……………….……………………..........……..."]
[null,null,null,null,null,null,{"$f":"\"Chief Financial Officer\"","v":"Chief Financial Officer"}]
[]
[null,null,null,null,null,null,"…………......./……........….../……...….....…..."]

{"sheet":"SRT1","index":14,"n_rows":210,"n_cols":25,"rows_kept":210,"cut":false,"hidden":false,"merged":[[191,19,191,23],[192,19,192,23],[193,19,193,23],[184,19,184,23],[185,19,185,23],[186,19,186,23],[187,19,187,23],[190,19,190,23],[179,19,179,23],[180,19,180,23],[181,19,181,23],[182,19,182,23],[183,19,183,23],[72,6,72,18],[161,19,161,23],[177,19,177,23],[188,19,188,23],[189,19,189,23],[162,19,162,23],[163,19,163,23],[164,19,164,23],[165,19,165,23],[166,19,166,23],[167,19,167,23],[168,19,168,23],[169,19,169,23],[170,19,170,23],[171,19,171,23],[172,19,172,23],[114,19,114,23],[106,19,106,23],[157,19,157,23],[158,19,158,23],[115,19,115,23],[116,19,116,23],[117,19,117,23],[118,19,118,23],[119,19,119,23],[110,19,110,23],[111,19,111,23],[112,19,112,23],[113,19,113,23],[130,19,149,23],[84,6,98,18],[194,19,194,23],[128,19,128,23],[129,19,129,23],[204,19,204,23],[159,19,159,23],[160,19,160,23],[196,19,196,23],[107,19,107,23],[108,19,108,23],[109,19,109,23],[197,19,197,23],[198,19,198,23],[120,19,120,23],[121,19,121,23],[105,19,105,23],[118,24,118,26],[205,19,205,23],[206,19,206,23],[207,19,207,23],[208,19,208,23],[199,19,199,23],[200,19,200,23],[201,19,201,23],[202,19,202,23],[203,19,203,23],[173,19,173,23],[174,19,174,23],[175,19,175,23],[176,19,176,23],[195,19,195,23],[178,19,178,23],[119,24,119,26],[120,24,120,26],[121,24,121,26],[105,24,105,26],[106,24,106,26],[107,24,107,26],[108,24,108,26],[109,24,109,26],[110,24,110,26],[111,24,111,26],[112,24,112,26],[113,24,113,26],[114,24,114,26],[115,24,115,26],[116,24,116,26],[117,24,117,26]]}
[]
[null,null,null,null,null,null,"Spending review topic…"]
[null,{"$f":"IF(G3=\"\",0,1)","v":1},null,null,null,1,{"$f":"SRTopic1","v":"Spending review topic 1"}]
[]
[null,null,null,null,null,null,"Quick view…(Total change)",{"$f":"MyYear5","v":"2027/28"},{"$f":"MyYear6","v":"2028/29"},{"$f":"MyYear7","v":"2029/30"},"MTEF total","Trend"]
[null,null,null,null,null,null,"Compensation of employees",{"$f":"SUMPRODUCT(($G$35:$G$68=$G6)*($J$35:$J$68))","v":0},{"$f":"SUMPRODUCT(($G$35:$G$68=$G6)*($M$35:$M$68))","v":0},{"$f":"SUMPRODUCT(($G$35:$G$68=$G6)*($P$35:$P$68))","v":0},{"$f":"SUM(H6:J6)","v":0},null,null,"CoE"]
[null,null,null,null,null,null,"Goods and services",{"$f":"SUMPRODUCT(($G$35:$G$68=$G7)*($J$35:$J$68))","v":0},{"$f":"SUMPRODUCT(($G$35:$G$68=$G7)*($M$35:$M$68))","v":0},{"$f":"SUMPRODUCT(($G$35:$G$68=$G7)*($P$35:$P$68))","v":0},0,null,null,"G&S"]
[null,null,null,null,null,null,"Transfers and subsidies",{"$f":"SUMPRODUCT(($G$35:$G$68=$G8)*($J$35:$J$68))","v":0},{"$f":"SUMPRODUCT(($G$35:$G$68=$G8)*($M$35:$M$68))","v":0},{"$f":"SUMPRODUCT(($G$35:$G$68=$G8)*($P$35:$P$68))","v":0},0,null,null,"T&S"]
[null,null,null,null,null,null,"Payments for capital assets",{"$f":"SUMPRODUCT(($G$35:$G$68=$G9)*($J$35:$J$68))","v":0},{"$f":"SUMPRODUCT(($G$35:$G$68=$G9)*($M$35:$M$68))","v":0},{"$f":"SUMPRODUCT(($G$35:$G$68=$G9)*($P$35:$P$68))","v":0},0,null,null,"Capital"]
[null,null,null,null,null,null,"Total",{"$f":"SUMPRODUCT(($G$35:$G$68=$G10)*($J$35:$J$68))","v":0},{"$f":"SUMPRODUCT(($G$35:$G$68=$G10)*($M$35:$M$68))","v":0},{"$f":"SUMPRODUCT(($G$35:$G$68=$G10)*($P$35:$P$68))","v":0},0,null,null,"Total"]
[null,null,null,null,null,null,"% of MTEF total",null,null,null,null,null,null,null,null,null,null,null,{"$f":"MyYear5","v":"2027/28"},{"$f":"MyYear6","v":"2028/29"},{"$f":"MyYear7","v":"2029/30"}]
[null,null,null,null,null,null,"Compensation of employees",{"$f":"IFERROR(H6/$K6,\"\")","v":""},"","",null,null,null,null,null,null,null,{"$f":"G12","v":"Compensation of employees"},{"$f":"IF(H12>0.0595,H12,\"\")","v":""},"",""]
[null,null,null,null,null,null,"Goods and services","","","",null,null,null,null,null,null,null,{"$f":"G13","v":"Goods and services"},"","",""]
[null,null,null,null,null,null,"Transfers and subsidies","","","",null,null,null,null,null,null,null,{"$f":"G14","v":"Transfers and subsidies"},"","",""]
[null,null,null,null,null,null,"Payments for capital assets","","","",null,null,null,null,null,null,null,{"$f":"G15","v":"Payments for capital assets"},"","",""]
[]
[null,null,null,null,null,null,"Division of Revenue",{"$f":"MyYear5","v":"2027/28"},{"$f":"MyYear6","v":"2028/29"},{"$f":"MyYear7","v":"2029/30"},"MTEF total","Trend"]
[null,null,null,null,null,null,"National",{"$f":"SUM(H19:H21)","v":0},0,0,{"$f":"SUM(H18:J18)","v":0}]
[{"$f":"$G$3","v":"Spending review topic 1"},"NAT",null,null,null,null,"National (excl. indirect grants)",{"$f":"SUMPRODUCT(((Dataset[DOR]=$B19))*Dataset[2027/28 From - Spending review Topic 1])+SUMPRODUCT(((Dataset[DOR]=$B19))*Dataset[2027/28 To - Spending review Topic 1])","v":0},{"$f":"SUMPRODUCT(((Dataset[DOR]=$B19))*Dataset[2028/29 From - Spending review Topic 1])+SUMPRODUCT(((Dataset[DOR]=$B19))*Dataset[2028/29 To - Spending review Topic 1])","v":0},{"$f":"SUMPRODUCT(((Dataset[DOR]=$B19))*Dataset[2029/30 From - Spending review Topic 1])+SUMPRODUCT(((Dataset[DOR]=$B19))*Dataset[2029/30 To - Spending review Topic 1])","v":0},0]
["Spending review topic 1","IGP",null,null,null,null,"Provincial indirect grants",{"$f":"SUMPRODUCT(((Dataset[DOR]=$B20))*Dataset[2027/28 From - Spending review Topic 1])+SUMPRODUCT(((Dataset[DOR]=$B20))*Dataset[2027/28 To - Spending review Topic 1])","v":0},{"$f":"SUMPRODUCT(((Dataset[DOR]=$B20))*Dataset[2028/29 From - Spending review Topic 1])+SUMPRODUCT(((Dataset[DOR]=$B20))*Dataset[2028/29 To - Spending review Topic 1])","v":0},{"$f":"SUMPRODUCT(((Dataset[DOR]=$B20))*Dataset[2029/30 From - Spending review Topic 1])+SUMPRODUCT(((Dataset[DOR]=$B20))*Dataset[2029/30 To - Spending review Topic 1])","v":0},{"$f":"SUM(H20:J20)","v":0}]
["Spending review topic 1","IGM",null,null,null,null,"Local indirect grants",{"$f":"SUMPRODUCT(((Dataset[DOR]=$B21))*Dataset[2027/28 From - Spending review Topic 1])+SUMPRODUCT(((Dataset[DOR]=$B21))*Dataset[2027/28 To - Spending review Topic 1])","v":0},{"$f":"SUMPRODUCT(((Dataset[DOR]=$B21))*Dataset[2028/29 From - Spending review Topic 1])+SUMPRODUCT(((Dataset[DOR]=$B21))*Dataset[2028/29 To - Spending review Topic 1])","v":0},{"$f":"SUMPRODUCT(((Dataset[DOR]=$B21))*Dataset[2029/30 From - Spending review Topic 1])+SUMPRODUCT(((Dataset[DOR]=$B21))*Dataset[2029/30 To - Spending review Topic 1])","v":0},0]
["Spending review topic 1",null,null,null,null,null,"Provincial",{"$f":"SUMPRODUCT(((Dataset[DOR]=$B22))*Dataset[2027/28 From - Spending review Topic 1])+SUMPRODUCT(((Dataset[DOR]=$B22))*Dataset[2027/28 To - Spending review Topic 1])","v":0},{"$f":"SUMPRODUCT(((Dataset[DOR]=$B22))*Dataset[2028/29 From - Spending review Topic 1])+SUMPRODUCT(((Dataset[DOR]=$B22))*Dataset[2028/29 To - Spending review Topic 1])","v":0},{"$f":"SUMPRODUCT(((Dataset[DOR]=$B22))*Dataset[2029/30 From - Spending review Topic 1])+SUMPRODUCT(((Dataset[DOR]=$B22))*Dataset[2029/30 To - Spending review Topic 1])","v":0},0]
["Spending review topic 1","PES",null,null,null,null,"Provincial equitable share",{"$f":"SUMPRODUCT(((Dataset[DOR]=$B23))*Dataset[2027/28 From - Spending review Topic 1])+SUMPRODUCT(((Dataset[DOR]=$B23))*Dataset[2027/28 To - Spending review Topic 1])","v":0},{"$f":"SUMPRODUCT(((Dataset[DOR]=$B23))*Dataset[2028/29 From - Spending review Topic 1])+SUMPRODUCT(((Dataset[DOR]=$B23))*Dataset[2028/29 To - Spending review Topic 1])","v":0},{"$f":"SUMPRODUCT(((Dataset[DOR]=$B23))*Dataset[2029/30 From - Spending review Topic 1])+SUMPRODUCT(((Dataset[DOR]=$B23))*Dataset[2029/30 To - Spending review Topic 1])","v":0},0]
[{"$f":"$G$3","v":"Spending review topic 1"},"PCG",null,null,null,null,"Provincial conditional grants",{"$f":"SUMPRODUCT(((Dataset[DOR]=$B24))*Dataset[2027/28 From - Spending review Topic 1])+SUMPRODUCT(((Dataset[DOR]=$B24))*Dataset[2027/28 To - Spending review Topic 1])","v":0},{"$f":"SUMPRODUCT(((Dataset[DOR]=$B24))*Dataset[2028/29 From - Spending review Topic 1])+SUMPRODUCT(((Dataset[DOR]=$B24))*Dataset[2028/29 To - Spending review Topic 1])","v":0},{"$f":"SUMPRODUCT(((Dataset[DOR]=$B24))*Dataset[2029/30 From - Spending review Topic 1])+SUMPRODUCT(((Dataset[DOR]=$B24))*Dataset[2029/30 To - Spending review Topic 1])","v":0},0]
["Spending review topic 1",null,null,null,null,null,"Local government",{"$f":"SUMPRODUCT(((Dataset[DOR]=$B25))*Dataset[2027/28 From - Spending review Topic 1])+SUMPRODUCT(((Dataset[DOR]=$B25))*Dataset[2027/28 To - Spending review Topic 1])","v":0},{"$f":"SUMPRODUCT(((Dataset[DOR]=$B25))*Dataset[2028/29 From - Spending review Topic 1])+SUMPRODUCT(((Dataset[DOR]=$B25))*Dataset[2028/29 To - Spending review Topic 1])","v":0},{"$f":"SUMPRODUCT(((Dataset[DOR]=$B25))*Dataset[2029/30 From - Spending review Topic 1])+SUMPRODUCT(((Dataset[DOR]=$B25))*Dataset[2029/30 To - Spending review Topic 1])","v":0},0]
["Spending review topic 1","LES",null,null,null,null,"Local equitable share",{"$f":"SUMPRODUCT(((Dataset[DOR]=$B26))*Dataset[2027/28 From - Spending review Topic 1])+SUMPRODUCT(((Dataset[DOR]=$B26))*Dataset[2027/28 To - Spending review Topic 1])","v":0},{"$f":"SUMPRODUCT(((Dataset[DOR]=$B26))*Dataset[2028/29 From - Spending review Topic 1])+SUMPRODUCT(((Dataset[DOR]=$B26))*Dataset[2028/29 To - Spending review Topic 1])","v":0},{"$f":"SUMPRODUCT(((Dataset[DOR]=$B26))*Dataset[2029/30 From - Spending review Topic 1])+SUMPRODUCT(((Dataset[DOR]=$B26))*Dataset[2029/30 To - Spending review Topic 1])","v":0},0]
["Spending review topic 1","LCG",null,null,null,null,"Local conditional grants",{"$f":"SUMPRODUCT(((Dataset[DOR]=$B27))*Dataset[2027/28 From - Spending review Topic 1])+SUMPRODUCT(((Dataset[DOR]=$B27))*Dataset[2027/28 To - Spending review Topic 1])","v":0},{"$f":"SUMPRODUCT(((Dataset[DOR]=$B27))*Dataset[2028/29 From - Spending review Topic 1])+SUMPRODUCT(((Dataset[DOR]=$B27))*Dataset[2028/29 To - Spending review Topic 1])","v":0},{"$f":"SUMPRODUCT(((Dataset[DOR]=$B27))*Dataset[2029/30 From - Spending review Topic 1])+SUMPRODUCT(((Dataset[DOR]=$B27))*Dataset[2029/30 To - Spending review Topic 1])","v":0},0]
["Spending review topic 1","GFL",null,null,null,null,"General fuel levy ",{"$f":"SUMPRODUCT(((Dataset[DOR]=$B28))*Dataset[2027/28 From - Spending review Topic 1])+SUMPRODUCT(((Dataset[DOR]=$B28))*Dataset[2027/28 To - Spending review Topic 1])","v":0},{"$f":"SUMPRODUCT(((Dataset[DOR]=$B28))*Dataset[2028/29 From - Spending review Topic 1])+SUMPRODUCT(((Dataset[DOR]=$B28))*Dataset[2028/29 To - Spending review Topic 1])","v":0},{"$f":"SUMPRODUCT(((Dataset[DOR]=$B28))*Dataset[2029/30 From - Spending review Topic 1])+SUMPRODUCT(((Dataset[DOR]=$B28))*Dataset[2029/30 To - Spending review Topic 1])","v":0},0]
[]
[]
[null,null,null,null,null,null,{"$f":"G3","v":"Spending review topic 1"}]
[{"$f":"$G$3","v":"Spending review topic 1"},0,null,null,null,null,null,{"$f":"MyYear5","v":"2027/28"},null,null,{"$f":"MyYear6","v":"2028/29"},null,null,{"$f":"MyYear7","v":"2029/30"},null,null,"Total over MTEF"]
[{"$f":"$G$3","v":"Spending review topic 1"},0,null,null,null,null,"Rand thousand","From","To","Total change","From","To","Total change","From","To","Total change","From","To","Total change"]
["Spending review topic 1",0,null,null,null,null,"Economic classification"]
["Spending review topic 1",0,null,null,null,null,"Current payments",{"$f":"SUM(H36:H38)","v":0},{"$f":"SUM(I36:I38)","v":0},0,0,0,{"$f":"SUM(M36:M38)","v":0},0,0,{"$f":"SUM(P36:P38)","v":0},0,0,{"$f":"SUM(S36:S38)","v":0}]
["Spending review topic 1",0,null,null,null,null,"Compensation of employees",{"$f":"SUMPRODUCT(((Dataset[Econ3]=$G36))*Dataset[2027/28 From - Spending review Topic 1]*$B$3)","v":0},{"$f":"SUMPRODUCT(((Dataset[Econ3]=$G36))*Dataset[2027/28 To - Spending review Topic 1]*$B$3)","v":0},{"$f":"H36+I36","v":0},{"$f":"SUMPRODUCT(((Dataset[Econ3]=$G36))*Dataset[2028/29 From - Spending review Topic 1]*$B$3)","v":0},{"$f":"SUMPRODUCT(((Dataset[Econ3]=$G36))*Dataset[2028/29 To - Spending review Topic 1]*$B$3)","v":0},{"$f":"K36+L36","v":0},{"$f":"SUMPRODUCT(((Dataset[Econ3]=$G36))*Dataset[2029/30 From - Spending review Topic 1]*$B$3)","v":0},{"$f":"SUMPRODUCT(((Dataset[Econ3]=$G36))*Dataset[2029/30 To - Spending review Topic 1]*$B$3)","v":0},{"$f":"N36+O36","v":0},{"$f":"SUM(H36,K36,N36)","v":0},0,0]
["Spending review topic 1",0,null,null,null,null,"Goods and services",{"$f":"SUMPRODUCT(((Dataset[Econ3]=$G37))*Dataset[2027/28 From - Spending review Topic 1]*$B$3)","v":0},{"$f":"SUMPRODUCT(((Dataset[Econ3]=$G37))*Dataset[2027/28 To - Spending review Topic 1]*$B$3)","v":0},0,{"$f":"SUMPRODUCT(((Dataset[Econ3]=$G37))*Dataset[2028/29 From - Spending review Topic 1]*$B$3)","v":0},{"$f":"SUMPRODUCT(((Dataset[Econ3]=$G37))*Dataset[2028/29 To - Spending review Topic 1]*$B$3)","v":0},0,{"$f":"SUMPRODUCT(((Dataset[Econ3]=$G37))*Dataset[2029/30 From - Spending review Topic 1]*$B$3)","v":0},{"$f":"SUMPRODUCT(((Dataset[Econ3]=$G37))*Dataset[2029/30 To - Spending review Topic 1]*$B$3)","v":0},0,{"$f":"SUM(H37,K37,N37)","v":0},{"$f":"SUM(I37,L37,O37)","v":0},{"$f":"SUM(J37,M37,P37)","v":0}]
["Spending review topic 1",0,null,null,null,null,"Interest and rent on land",{"$f":"SUMPRODUCT(((Dataset[Econ3]=$G38))*Dataset[2027/28 From - Spending review Topic 1]*$B$3)","v":0},{"$f":"SUMPRODUCT(((Dataset[Econ3]=$G38))*Dataset[2027/28 To - Spending review Topic 1]*$B$3)","v":0},0,{"$f":"SUMPRODUCT(((Dataset[Econ3]=$G38))*Dataset[2028/29 From - Spending review Topic 1]*$B$3)","v":0},{"$f":"SUMPRODUCT(((Dataset[Econ3]=$G38))*Dataset[2028/29 To - Spending review Topic 1]*$B$3)","v":0},0,{"$f":"SUMPRODUCT(((Dataset[Econ3]=$G38))*Dataset[2029/30 From - Spending review Topic 1]*$B$3)","v":0},{"$f":"SUMPRODUCT(((Dataset[Econ3]=$G38))*Dataset[2029/30 To - Spending review Topic 1]*$B$3)","v":0},0,0,0,0]
["Spending review topic 1",0,null,null,null,null,"Transfers and subsidies",{"$f":"SUM(H40,H43,H46:H48,H51:H52)","v":0},{"$f":"SUM(I40,I43,I46:I48,I51:I52)","v":0},0,{"$f":"SUM(K40,K43,K46:K48,K51:K52)","v":0},0,0,0,0,{"$f":"SUM(P40,P43,P46:P48,P51:P52)","v":0},0,0,{"$f":"SUM(S40,S43,S46:S48,S51:S52)","v":0}]
["Spending review topic 1",0,null,null,null,null,"Provinces and municipalities",{"$f":"SUM(H41:H42)","v":0},{"$f":"SUM(I41:I42)","v":0},0,{"$f":"SUM(K41:K42)","v":0},0,0,0,0,{"$f":"SUM(P41:P42)","v":0},0,0,{"$f":"SUM(S41:S42)","v":0}]
["Spending review topic 1",0,null,null,null,null,"Provinces",{"$f":"SUMPRODUCT(((Dataset[Econ4]=$G41))*Dataset[2027/28 From - Spending review Topic 1]*$B$3)","v":0},{"$f":"SUMPRODUCT(((Dataset[Econ4]=$G41))*Dataset[2027/28 To - Spending review Topic 1]*$B$3)","v":0},{"$f":"H41+I41","v":0},{"$f":"SUMPRODUCT(((Dataset[Econ4]=$G41))*Dataset[2028/29 From - Spending review Topic 1]*$B$3)","v":0},{"$f":"SUMPRODUCT(((Dataset[Econ4]=$G41))*Dataset[2028/29 To - Spending review Topic 1]*$B$3)","v":0},{"$f":"K41+L41","v":0},{"$f":"SUMPRODUCT(((Dataset[Econ4]=$G41))*Dataset[2029/30 From - Spending review Topic 1]*$B$3)","v":0},{"$f":"SUMPRODUCT(((Dataset[Econ4]=$G41))*Dataset[2029/30 To - Spending review Topic 1]*$B$3)","v":0},{"$f":"N41+O41","v":0},{"$f":"SUM(H41,K41,N41)","v":0},{"$f":"SUM(I41,L41,O41)","v":0},{"$f":"SUM(J41,M41,P41)","v":0}]
["Spending review topic 1",0,null,null,null,null,"Municipalities",{"$f":"SUMPRODUCT(((Dataset[Econ4]=$G42))*Dataset[2027/28 From - Spending review Topic 1]*$B$3)","v":0},{"$f":"SUMPRODUCT(((Dataset[Econ4]=$G42))*Dataset[2027/28 To - Spending review Topic 1]*$B$3)","v":0},0,{"$f":"SUMPRODUCT(((Dataset[Econ4]=$G42))*Dataset[2028/29 From - Spending review Topic 1]*$B$3)","v":0},{"$f":"SUMPRODUCT(((Dataset[Econ4]=$G42))*Dataset[2028/29 To - Spending review Topic 1]*$B$3)","v":0},0,{"$f":"SUMPRODUCT(((Dataset[Econ4]=$G42))*Dataset[2029/30 From - Spending review Topic 1]*$B$3)","v":0},{"$f":"SUMPRODUCT(((Dataset[Econ4]=$G42))*Dataset[2029/30 To - Spending review Topic 1]*$B$3)","v":0},0,0,0,0]
["Spending review topic 1",0,null,null,null,null,"Departmental agencies and accounts",{"$f":"SUM(H44:H45)","v":0},{"$f":"SUM(I44:I45)","v":0},0,{"$f":"SUM(K44:K45)","v":0},0,0,0,0,{"$f":"SUM(P44:P45)","v":0},0,0,{"$f":"SUM(S44:S45)","v":0}]
["Spending review topic 1",0,null,null,null,null,"Social security funds",{"$f":"SUMPRODUCT(((Dataset[Econ4]=$G44))*Dataset[2027/28 From - Spending review Topic 1]*$B$3)","v":0},{"$f":"SUMPRODUCT(((Dataset[Econ4]=$G44))*Dataset[2027/28 To - Spending review Topic 1]*$B$3)","v":0},{"$f":"H44+I44","v":0},{"$f":"SUMPRODUCT(((Dataset[Econ4]=$G44))*Dataset[2028/29 From - Spending review Topic 1]*$B$3)","v":0},{"$f":"SUMPRODUCT(((Dataset[Econ4]=$G44))*Dataset[2028/29 To - Spending review Topic 1]*$B$3)","v":0},{"$f":"K44+L44","v":0},{"$f":"SUMPRODUCT(((Dataset[Econ4]=$G44))*Dataset[2029/30 From - Spending review Topic 1]*$B$3)","v":0},{"$f":"SUMPRODUCT(((Dataset[Econ4]=$G44))*Dataset[2029/30 To - Spending review Topic 1]*$B$3)","v":0},{"$f":"N44+O44","v":0},{"$f":"SUM(H44,K44,N44)","v":0},{"$f":"SUM(I44,L44,O44)","v":0},{"$f":"SUM(J44,M44,P44)","v":0}]
["Spending review topic 1",0,null,null,null,null,"Departmental agencies (non-business entities)",{"$f":"SUMPRODUCT(((Dataset[Econ4]=$G45))*Dataset[2027/28 From - Spending review Topic 1]*$B$3)","v":0},{"$f":"SUMPRODUCT(((Dataset[Econ4]=$G45))*Dataset[2027/28 To - Spending review Topic 1]*$B$3)","v":0},0,{"$f":"SUMPRODUCT(((Dataset[Econ4]=$G45))*Dataset[2028/29 From - Spending review Topic 1]*$B$3)","v":0},{"$f":"SUMPRODUCT(((Dataset[Econ4]=$G45))*Dataset[2028/29 To - Spending review Topic 1]*$B$3)","v":0},0,{"$f":"SUMPRODUCT(((Dataset[Econ4]=$G45))*Dataset[2029/30 From - Spending review Topic 1]*$B$3)","v":0},{"$f":"SUMPRODUCT(((Dataset[Econ4]=$G45))*Dataset[2029/30 To - Spending review Topic 1]*$B$3)","v":0},0,0,0,0]
["Spending review topic 1",0,null,null,null,null,"Higher education institutions",{"$f":"SUMPRODUCT(((Dataset[Econ3]=$G46))*Dataset[2027/28 From - Spending review Topic 1]*$B$3)","v":0},{"$f":"SUMPRODUCT(((Dataset[Econ3]=$G46))*Dataset[2027/28 To - Spending review Topic 1]*$B$3)","v":0},0,{"$f":"SUMPRODUCT(((Dataset[Econ3]=$G46))*Dataset[2028/29 From - Spending review Topic 1]*$B$3)","v":0},{"$f":"SUMPRODUCT(((Dataset[Econ3]=$G46))*Dataset[2028/29 To - Spending review Topic 1]*$B$3)","v":0},0,{"$f":"SUMPRODUCT(((Dataset[Econ3]=$G46))*Dataset[2029/30 From - Spending review Topic 1]*$B$3)","v":0},{"$f":"SUMPRODUCT(((Dataset[Econ3]=$G46))*Dataset[2029/30 To - Spending review Topic 1]*$B$3)","v":0},0,0,0,0]
["Spending review topic 1",0,null,null,null,null,"Foreign governments and international organisations",{"$f":"SUMPRODUCT(((Dataset[Econ3]=$G47))*Dataset[2027/28 From - Spending review Topic 1]*$B$3)","v":0},{"$f":"SUMPRODUCT(((Dataset[Econ3]=$G47))*Dataset[2027/28 To - Spending review Topic 1]*$B$3)","v":0},0,{"$f":"SUMPRODUCT(((Dataset[Econ3]=$G47))*Dataset[2028/29 From - Spending review Topic 1]*$B$3)","v":0},{"$f":"SUMPRODUCT(((Dataset[Econ3]=$G47))*Dataset[2028/29 To - Spending review Topic 1]*$B$3)","v":0},0,{"$f":"SUMPRODUCT(((Dataset[Econ3]=$G47))*Dataset[2029/30 From - Spending review Topic 1]*$B$3)","v":0},{"$f":"SUMPRODUCT(((Dataset[Econ3]=$G47))*Dataset[2029/30 To - Spending review Topic 1]*$B$3)","v":0},0,0,0,0]
["Spending review topic 1",0,null,null,null,null,"Public corporations and private enterprises",{"$f":"SUM(H49:H50)","v":0},{"$f":"SUM(I49:I50)","v":0},0,{"$f":"SUM(K49:K50)","v":0},0,0,0,0,{"$f":"SUM(P49:P50)","v":0},0,0,{"$f":"SUM(S49:S50)","v":0}]
["Spending review topic 1",0,null,null,null,null,"Public corporations",{"$f":"SUMPRODUCT(((Dataset[Econ4]=$G49))*Dataset[2027/28 From - Spending review Topic 1]*$B$3)","v":0},{"$f":"SUMPRODUCT(((Dataset[Econ4]=$G49))*Dataset[2027/28 To - Spending review Topic 1]*$B$3)","v":0},{"$f":"H49+I49","v":0},{"$f":"SUMPRODUCT(((Dataset[Econ4]=$G49))*Dataset[2028/29 From - Spending review Topic 1]*$B$3)","v":0},{"$f":"SUMPRODUCT(((Dataset[Econ4]=$G49))*Dataset[2028/29 To - Spending review Topic 1]*$B$3)","v":0},{"$f":"K49+L49","v":0},{"$f":"SUMPRODUCT(((Dataset[Econ4]=$G49))*Dataset[2029/30 From - Spending review Topic 1]*$B$3)","v":0},{"$f":"SUMPRODUCT(((Dataset[Econ4]=$G49))*Dataset[2029/30 To - Spending review Topic 1]*$B$3)","v":0},{"$f":"N49+O49","v":0},{"$f":"SUM(H49,K49,N49)","v":0},{"$f":"SUM(I49,L49,O49)","v":0},{"$f":"SUM(J49,M49,P49)","v":0}]
["Spending review topic 1",0,null,null,null,null,"Private enterprises",{"$f":"SUMPRODUCT(((Dataset[Econ4]=$G50))*Dataset[2027/28 From - Spending review Topic 1]*$B$3)","v":0},{"$f":"SUMPRODUCT(((Dataset[Econ4]=$G50))*Dataset[2027/28 To - Spending review Topic 1]*$B$3)","v":0},0,{"$f":"SUMPRODUCT(((Dataset[Econ4]=$G50))*Dataset[2028/29 From - Spending review Topic 1]*$B$3)","v":0},{"$f":"SUMPRODUCT(((Dataset[Econ4]=$G50))*Dataset[2028/29 To - Spending review Topic 1]*$B$3)","v":0},0,{"$f":"SUMPRODUCT(((Dataset[Econ4]=$G50))*Dataset[2029/30 From - Spending review Topic 1]*$B$3)","v":0},{"$f":"SUMPRODUCT(((Dataset[Econ4]=$G50))*Dataset[2029/30 To - Spending review Topic 1]*$B$3)","v":0},0,0,0,0]
["Spending review topic 1",0,null,null,null,null,"Non-profit institutions",{"$f":"SUMPRODUCT(((Dataset[Econ3]=$G51))*Dataset[2027/28 From - Spending review Topic 1]*$B$3)","v":0},{"$f":"SUMPRODUCT(((Dataset[Econ3]=$G51))*Dataset[2027/28 To - Spending review Topic 1]*$B$3)","v":0},0,{"$f":"SUMPRODUCT(((Dataset[Econ3]=$G51))*Dataset[2028/29 From - Spending review Topic 1]*$B$3)","v":0},{"$f":"SUMPRODUCT(((Dataset[Econ3]=$G51))*Dataset[2028/29 To - Spending review Topic 1]*$B$3)","v":0},0,{"$f":"SUMPRODUCT(((Dataset[Econ3]=$G51))*Dataset[2029/30 From - Spending review Topic 1]*$B$3)","v":0},{"$f":"SUMPRODUCT(((Dataset[Econ3]=$G51))*Dataset[2029/30 To - Spending review Topic 1]*$B$3)","v":0},0,0,0,0]
["Spending review topic 1",0,null,null,null,null,"Households",{"$f":"SUM(H53:H54)","v":0},{"$f":"SUM(I53:I54)","v":0},0,{"$f":"SUM(K53:K54)","v":0},0,0,0,0,{"$f":"SUM(P53:P54)","v":0},0,0,{"$f":"SUM(S53:S54)","v":0}]
["Spending review topic 1",0,null,null,null,null,"Social benefits",{"$f":"SUMPRODUCT(((Dataset[Econ4]=$G53))*Dataset[2027/28 From - Spending review Topic 1]*$B$3)","v":0},{"$f":"SUMPRODUCT(((Dataset[Econ4]=$G53))*Dataset[2027/28 To - Spending review Topic 1]*$B$3)","v":0},{"$f":"H53+I53","v":0},{"$f":"SUMPRODUCT(((Dataset[Econ4]=$G53))*Dataset[2028/29 From - Spending review Topic 1]*$B$3)","v":0},{"$f":"SUMPRODUCT(((Dataset[Econ4]=$G53))*Dataset[2028/29 To - Spending review Topic 1]*$B$3)","v":0},{"$f":"K53+L53","v":0},{"$f":"SUMPRODUCT(((Dataset[Econ4]=$G53))*Dataset[2029/30 From - Spending review Topic 1]*$B$3)","v":0},{"$f":"SUMPRODUCT(((Dataset[Econ4]=$G53))*Dataset[2029/30 To - Spending review Topic 1]*$B$3)","v":0},{"$f":"N53+O53","v":0},{"$f":"SUM(H53,K53,N53)","v":0},{"$f":"SUM(I53,L53,O53)","v":0},{"$f":"SUM(J53,M53,P53)","v":0}]
["Spending review topic 1",0,null,null,null,null,"Other transfers to households",{"$f":"SUMPRODUCT(((Dataset[Econ4]=$G54))*Dataset[2027/28 From - Spending review Topic 1]*$B$3)","v":0},{"$f":"SUMPRODUCT(((Dataset[Econ4]=$G54))*Dataset[2027/28 To - Spending review Topic 1]*$B$3)","v":0},0,{"$f":"SUMPRODUCT(((Dataset[Econ4]=$G54))*Dataset[2028/29 From - Spending review Topic 1]*$B$3)","v":0},{"$f":"SUMPRODUCT(((Dataset[Econ4]=$G54))*Dataset[2028/29 To - Spending review Topic 1]*$B$3)","v":0},0,{"$f":"SUMPRODUCT(((Dataset[Econ4]=$G54))*Dataset[2029/30 From - Spending review Topic 1]*$B$3)","v":0},{"$f":"SUMPRODUCT(((Dataset[Econ4]=$G54))*Dataset[2029/30 To - Spending review Topic 1]*$B$3)","v":0},0,0,0,0]
["Spending review topic 1",0,null,null,null,null,"Payments for capital assets",{"$f":"SUM(H56,H59,H62:H66)","v":0},{"$f":"SUM(I56,I59,I62:I66)","v":0},0,{"$f":"SUM(K56,K59,K62:K66)","v":0},0,0,0,0,{"$f":"SUM(P56,P59,P62:P66)","v":0},0,0,{"$f":"SUM(S56,S59,S62:S66)","v":0}]
["Spending review topic 1",0,null,null,null,null,"Buildings and other fixed structures",{"$f":"SUM(H57:H58)","v":0},{"$f":"SUM(I57:I58)","v":0},0,{"$f":"SUM(K57:K58)","v":0},0,0,0,0,{"$f":"SUM(P57:P58)","v":0},0,0,{"$f":"SUM(S57:S58)","v":0}]
["Spending review topic 1",0,null,null,null,null,"Buildings",{"$f":"SUMPRODUCT(((Dataset[Econ4]=$G57))*Dataset[2027/28 From - Spending review Topic 1]*$B$3)","v":0},{"$f":"SUMPRODUCT(((Dataset[Econ4]=$G57))*Dataset[2027/28 To - Spending review Topic 1]*$B$3)","v":0},{"$f":"H57+I57","v":0},{"$f":"SUMPRODUCT(((Dataset[Econ4]=$G57))*Dataset[2028/29 From - Spending review Topic 1]*$B$3)","v":0},{"$f":"SUMPRODUCT(((Dataset[Econ4]=$G57))*Dataset[2028/29 To - Spending review Topic 1]*$B$3)","v":0},{"$f":"K57+L57","v":0},{"$f":"SUMPRODUCT(((Dataset[Econ4]=$G57))*Dataset[2029/30 From - Spending review Topic 1]*$B$3)","v":0},{"$f":"SUMPRODUCT(((Dataset[Econ4]=$G57))*Dataset[2029/30 To - Spending review Topic 1]*$B$3)","v":0},{"$f":"N57+O57","v":0},{"$f":"SUM(H57,K57,N57)","v":0},{"$f":"SUM(I57,L57,O57)","v":0},{"$f":"SUM(J57,M57,P57)","v":0}]
["Spending review topic 1",0,null,null,null,null,"Other fixed structures",{"$f":"SUMPRODUCT(((Dataset[Econ4]=$G58))*Dataset[2027/28 From - Spending review Topic 1]*$B$3)","v":0},{"$f":"SUMPRODUCT(((Dataset[Econ4]=$G58))*Dataset[2027/28 To - Spending review Topic 1]*$B$3)","v":0},0,{"$f":"SUMPRODUCT(((Dataset[Econ4]=$G58))*Dataset[2028/29 From - Spending review Topic 1]*$B$3)","v":0},{"$f":"SUMPRODUCT(((Dataset[Econ4]=$G58))*Dataset[2028/29 To - Spending review Topic 1]*$B$3)","v":0},0,{"$f":"SUMPRODUCT(((Dataset[Econ4]=$G58))*Dataset[2029/30 From - Spending review Topic 1]*$B$3)","v":0},{"$f":"SUMPRODUCT(((Dataset[Econ4]=$G58))*Dataset[2029/30 To - Spending review Topic 1]*$B$3)","v":0},0,0,0,0]
["Spending review topic 1",0,null,null,null,null,"Machinery and equipment",{"$f":"SUM(H60:H61)","v":0},{"$f":"SUM(I60:I61)","v":0},0,{"$f":"SUM(K60:K61)","v":0},0,0,0,0,{"$f":"SUM(P60:P61)","v":0},0,0,{"$f":"SUM(S60:S61)","v":0}]
["Spending review topic 1",0,null,null,null,null,"Transport equipment",{"$f":"SUMPRODUCT(((Dataset[Econ4]=$G60))*Dataset[2027/28 From - Spending review Topic 1]*$B$3)","v":0},{"$f":"SUMPRODUCT(((Dataset[Econ4]=$G60))*Dataset[2027/28 To - Spending review Topic 1]*$B$3)","v":0},{"$f":"H60+I60","v":0},{"$f":"SUMPRODUCT(((Dataset[Econ4]=$G60))*Dataset[2028/29 From - Spending review Topic 1]*$B$3)","v":0},{"$f":"SUMPRODUCT(((Dataset[Econ4]=$G60))*Dataset[2028/29 To - Spending review Topic 1]*$B$3)","v":0},{"$f":"K60+L60","v":0},{"$f":"SUMPRODUCT(((Dataset[Econ4]=$G60))*Dataset[2029/30 From - Spending review Topic 1]*$B$3)","v":0},{"$f":"SUMPRODUCT(((Dataset[Econ4]=$G60))*Dataset[2029/30 To - Spending review Topic 1]*$B$3)","v":0},{"$f":"N60+O60","v":0},{"$f":"SUM(H60,K60,N60)","v":0},{"$f":"SUM(I60,L60,O60)","v":0},{"$f":"SUM(J60,M60,P60)","v":0}]
["Spending review topic 1",0,null,null,null,null,"Other machinery and equipment",{"$f":"SUMPRODUCT(((Dataset[Econ4]=$G61))*Dataset[2027/28 From - Spending review Topic 1]*$B$3)","v":0},{"$f":"SUMPRODUCT(((Dataset[Econ4]=$G61))*Dataset[2027/28 To - Spending review Topic 1]*$B$3)","v":0},0,{"$f":"SUMPRODUCT(((Dataset[Econ4]=$G61))*Dataset[2028/29 From - Spending review Topic 1]*$B$3)","v":0},{"$f":"SUMPRODUCT(((Dataset[Econ4]=$G61))*Dataset[2028/29 To - Spending review Topic 1]*$B$3)","v":0},0,{"$f":"SUMPRODUCT(((Dataset[Econ4]=$G61))*Dataset[2029/30 From - Spending review Topic 1]*$B$3)","v":0},{"$f":"SUMPRODUCT(((Dataset[Econ4]=$G61))*Dataset[2029/30 To - Spending review Topic 1]*$B$3)","v":0},0,0,0,0]
["Spending review topic 1",0,null,null,null,null,"Heritage assets",{"$f":"SUMPRODUCT(((Dataset[Econ3]=$G62))*Dataset[2027/28 From - Spending review Topic 1]*$B$3)","v":0},{"$f":"SUMPRODUCT(((Dataset[Econ3]=$G62))*Dataset[2027/28 To - Spending review Topic 1]*$B$3)","v":0},0,{"$f":"SUMPRODUCT(((Dataset[Econ3]=$G62))*Dataset[2028/29 From - Spending review Topic 1]*$B$3)","v":0},{"$f":"SUMPRODUCT(((Dataset[Econ3]=$G62))*Dataset[2028/29 To - Spending review Topic 1]*$B$3)","v":0},0,{"$f":"SUMPRODUCT(((Dataset[Econ3]=$G62))*Dataset[2029/30 From - Spending review Topic 1]*$B$3)","v":0},{"$f":"SUMPRODUCT(((Dataset[Econ3]=$G62))*Dataset[2029/30 To - Spending review Topic 1]*$B$3)","v":0},0,0,0,0]
["Spending review topic 1",0,null,null,null,null,"Specialised military assets",{"$f":"SUMPRODUCT(((Dataset[Econ3]=$G63))*Dataset[2027/28 From - Spending review Topic 1]*$B$3)","v":0},{"$f":"SUMPRODUCT(((Dataset[Econ3]=$G63))*Dataset[2027/28 To - Spending review Topic 1]*$B$3)","v":0},0,{"$f":"SUMPRODUCT(((Dataset[Econ3]=$G63))*Dataset[2028/29 From - Spending review Topic 1]*$B$3)","v":0},{"$f":"SUMPRODUCT(((Dataset[Econ3]=$G63))*Dataset[2028/29 To - Spending review Topic 1]*$B$3)","v":0},0,{"$f":"SUMPRODUCT(((Dataset[Econ3]=$G63))*Dataset[2029/30 From - Spending review Topic 1]*$B$3)","v":0},{"$f":"SUMPRODUCT(((Dataset[Econ3]=$G63))*Dataset[2029/30 To - Spending review Topic 1]*$B$3)","v":0},0,0,0,0]
["Spending review topic 1",0,null,null,null,null,"Biological assets",{"$f":"SUMPRODUCT(((Dataset[Econ3]=$G64))*Dataset[2027/28 From - Spending review Topic 1]*$B$3)","v":0},{"$f":"SUMPRODUCT(((Dataset[Econ3]=$G64))*Dataset[2027/28 To - Spending review Topic 1]*$B$3)","v":0},0,{"$f":"SUMPRODUCT(((Dataset[Econ3]=$G64))*Dataset[2028/29 From - Spending review Topic 1]*$B$3)","v":0},{"$f":"SUMPRODUCT(((Dataset[Econ3]=$G64))*Dataset[2028/29 To - Spending review Topic 1]*$B$3)","v":0},0,{"$f":"SUMPRODUCT(((Dataset[Econ3]=$G64))*Dataset[2029/30 From - Spending review Topic 1]*$B$3)","v":0},{"$f":"SUMPRODUCT(((Dataset[Econ3]=$G64))*Dataset[2029/30 To - Spending review Topic 1]*$B$3)","v":0},0,0,0,0]
["Spending review topic 1",0,null,null,null,null,"Land and sub-soil assets",{"$f":"SUMPRODUCT(((Dataset[Econ3]=$G65))*Dataset[2027/28 From - Spending review Topic 1]*$B$3)","v":0},{"$f":"SUMPRODUCT(((Dataset[Econ3]=$G65))*Dataset[2027/28 To - Spending review Topic 1]*$B$3)","v":0},0,{"$f":"SUMPRODUCT(((Dataset[Econ3]=$G65))*Dataset[2028/29 From - Spending review Topic 1]*$B$3)","v":0},{"$f":"SUMPRODUCT(((Dataset[Econ3]=$G65))*Dataset[2028/29 To - Spending review Topic 1]*$B$3)","v":0},0,{"$f":"SUMPRODUCT(((Dataset[Econ3]=$G65))*Dataset[2029/30 From - Spending review Topic 1]*$B$3)","v":0},{"$f":"SUMPRODUCT(((Dataset[Econ3]=$G65))*Dataset[2029/30 To - Spending review Topic 1]*$B$3)","v":0},0,0,0,0]
["Spending review topic 1",0,null,null,null,null,"Software and other intangible assets",{"$f":"SUMPRODUCT(((Dataset[Econ3]=$G66))*Dataset[2027/28 From - Spending review Topic 1]*$B$3)","v":0},{"$f":"SUMPRODUCT(((Dataset[Econ3]=$G66))*Dataset[2027/28 To - Spending review Topic 1]*$B$3)","v":0},0,{"$f":"SUMPRODUCT(((Dataset[Econ3]=$G66))*Dataset[2028/29 From - Spending review Topic 1]*$B$3)","v":0},{"$f":"SUMPRODUCT(((Dataset[Econ3]=$G66))*Dataset[2028/29 To - Spending review Topic 1]*$B$3)","v":0},0,{"$f":"SUMPRODUCT(((Dataset[Econ3]=$G66))*Dataset[2029/30 From - Spending review Topic 1]*$B$3)","v":0},{"$f":"SUMPRODUCT(((Dataset[Econ3]=$G66))*Dataset[2029/30 To - Spending review Topic 1]*$B$3)","v":0},0,0,0,0]
["Spending review topic 1",0,null,null,null,null,"Payments for financial assets",{"$f":"SUMPRODUCT(((Dataset[Econ3]=$G67))*Dataset[2027/28 From - Spending review Topic 1]*$B$3)","v":0},{"$f":"SUMPRODUCT(((Dataset[Econ3]=$G67))*Dataset[2027/28 To - Spending review Topic 1]*$B$3)","v":0},0,{"$f":"SUMPRODUCT(((Dataset[Econ3]=$G67))*Dataset[2028/29 From - Spending review Topic 1]*$B$3)","v":0},{"$f":"SUMPRODUCT(((Dataset[Econ3]=$G67))*Dataset[2028/29 To - Spending review Topic 1]*$B$3)","v":0},0,{"$f":"SUMPRODUCT(((Dataset[Econ3]=$G67))*Dataset[2029/30 From - Spending review Topic 1]*$B$3)","v":0},{"$f":"SUMPRODUCT(((Dataset[Econ3]=$G67))*Dataset[2029/30 To - Spending review Topic 1]*$B$3)","v":0},0,0,0,0]
["Spending review topic 1",0,null,null,null,null,"Total",{"$f":"SUM(H35,H39,H55,H67)","v":0},{"$f":"SUM(I35,I39,I55,I67)","v":0},0,0,0,{"$f":"SUM(M35,M39,M55,M67)","v":0},0,0,{"$f":"SUM(P35,P39,P55,P67)","v":0},0,0,{"$f":"SUM(S35,S39,S55,S67)","v":0}]
[]
[]
[]
[]
[null,null,null,null,null,null,{"$f":"\"IMPACT OF ADJUSTMENTS: \" &UPPER($G$3)","v":"IMPACT OF ADJUSTMENTS: SPENDING REVIEW TOPIC 1"}]
[]
[null,null,null,null,null,1,"Impact of adjustments on expenditure"]
[{"$f":"$G$3","v":"Spending review topic 1"},5,null,null,null,null,null,{"$f":"MyYear4","v":"2026/27"},null,null,{"$f":"MyYear5","v":"2027/28"},null,null,{"$f":"MyYear6","v":"2028/29"},null,null,{"$f":"MyYear7","v":"2029/30"}]
["Spending review topic 1",5,null,null,null,null,null,"Current expenditure","Potential expenditure @ benchmark level","% Savings if benchmark is achieved","Original number","Change in expenditure","Saving as % of original number","Original number","Change in expenditure","Saving as % of original number","Original number","Change in expenditure","Saving as % of original number"]
["Spending review topic 1",5,null,null,null,null,"Total",null,null,{"$f":"IFERROR((H78-I78)/-H78,\"\")","v":""},null,null,{"$f":"IFERROR((K78-L78)/-K78,\"\")","v":""},null,null,{"$f":"IFERROR((N78-O78)/-N78,\"\")","v":""},null,null,{"$f":"IFERROR((Q78-R78)/-Q78,\"\")","v":""}]
[]
[]
[]
[]
[]
[null,null,null,null,null,2,"Summary of impact on service delivery/policy area due to adjustments"]
[{"$f":"$G$3","v":"Spending review topic 1"},1]
["Spending review topic 1",1]
["Spending review topic 1",1]
["Spending review topic 1",1]
["Spending review topic 1",1]
["Spending review topic 1",1]
["Spending review topic 1",1]
["Spending review topic 1",1]
["Spending review topic 1",1]
["Spending review topic 1",1]
["Spending review topic 1",1]
["Spending review topic 1",1]
["Spending review topic 1",1]
["Spending review topic 1",1]
["Spending review topic 1",1]
[]
[]
[]
[]
[]
[null,null,null,null,null,3,"Impact of adjustments on performance indicators"]
[{"$f":"$G$3","v":"Spending review topic 1"},2,null,null,null,null,null,{"$f":"MyYear4","v":"2026/27"},null,null,{"$f":"MyYear5","v":"2027/28"},null,null,{"$f":"MyYear6","v":"2028/29"},null,null,{"$f":"MyYear7","v":"2029/30"},null,null," Comment",null,null,null,null,"Related MTSF Priority"]
["Spending review topic 1",2,null,null,null,null,"Performance indicator","Current performance","Performance @ benchmark level","Change","Original target","Revised target","Change","Original target","Revised target","Change","Original target","Revised target","Change"]
["Spending review topic 1",2]
["Spending review topic 1",2]
["Spending review topic 1",2]
["Spending review topic 1",2]
["Spending review topic 1",2]
["Spending review topic 1",2]
["Spending review topic 1",2]
["Spending review topic 1",2]
["Spending review topic 1",2]
["Spending review topic 1",2]
["Spending review topic 1",2]
["Spending review topic 1",2]
["Spending review topic 1",2]
["Spending review topic 1",2]
["Spending review topic 1",2]
[]
[]
[]
[]
[]
[null,null,null,null,null,4,"Impact of adjustments on personnel headcount numbers"]
[{"$f":"$G$3","v":"Spending review topic 1"},4,null,null,null,null,null,{"$f":"MyYear4","v":"2026/27"},null,null,{"$f":"MyYear5","v":"2027/28"},null,null,{"$f":"MyYear6","v":"2028/29"},null,null,{"$f":"MyYear7","v":"2029/30"},null,null," Comment"]
["Spending review topic 1",4,null,null,null,null,"Salary level","Current number","Potential number if benchmark is achieved","Change in number","Original number","Revised number","Change in number","Original number","Revised number","Change in number","Original number","Revised number","Change in number"]
["Spending review topic 1",4,null,null,null,null,1,null,null,{"$f":"I131-H131","v":0},null,null,{"$f":"L131-K131","v":0},null,null,{"$f":"O131-N131","v":0},null,null,{"$f":"R131-Q131","v":0}]
["Spending review topic 1",4,null,null,null,null,2,null,null,0,null,null,0,null,null,0,null,null,0]
["Spending review topic 1",4,null,null,null,null,3,null,null,0,null,null,0,null,null,0,null,null,0]
["Spending review topic 1",4,null,null,null,null,4,null,null,0,null,null,0,null,null,0,null,null,0]
["Spending review topic 1",4,null,null,null,null,5,null,null,0,null,null,0,null,null,0,null,null,0]
["Spending review topic 1",4,null,null,null,null,6,null,null,0,null,null,0,null,null,0,null,null,0]
["Spending review topic 1",4,null,null,null,null,7,null,null,0,null,null,0,null,null,0,null,null,0]
["Spending review topic 1",4,null,null,null,null,8,null,null,0,null,null,0,null,null,0,null,null,0]
["Spending review topic 1",4,null,null,null,null,9,null,null,0,null,null,0,null,null,0,null,null,0]
["Spending review topic 1",4,null,null,null,null,10,null,null,0,null,null,0,null,null,0,null,null,0]
["Spending review topic 1",4,null,null,null,null,11,null,null,0,null,null,0,null,null,0,null,null,0]
["Spending review topic 1",4,null,null,null,null,12,null,null,0,null,null,0,null,null,0,null,null,0]
["Spending review topic 1",4,null,null,null,null,13,null,null,0,null,null,0,null,null,0,null,null,0]
["Spending review topic 1",4,null,null,null,null,14,null,null,0,null,null,0,null,null,0,null,null,0]
["Spending review topic 1",4,null,null,null,null,15,null,null,0,null,null,0,null,null,0,null,null,0]
["Spending review topic 1",4,null,null,null,null,16,null,null,0,null,null,0,null,null,0,null,null,0]
["Spending review topic 1",4,null,null,null,null,"Other",null,null,0,null,null,0,null,null,0,null,null,0]
["Spending review topic 1",4,null,null,null,null,"Other",null,null,0,null,null,0,null,null,0,null,null,0]
["Spending review topic 1",4,null,null,null,null,"Other",null,null,0,null,null,0,null,null,0,null,null,0]
["Spending review topic 1",4,null,null,null,null,"Other",null,null,0,null,null,0,null,null,0,null,null,0]
["Spending review topic 1",4,null,null,null,null,"Total",{"$f":"SUM(H131:H150)","v":0},0,0,{"$f":"SUM(K131:K150)","v":0},0,0,0,0,0,0,0,0]
[]
[]
[]
[]
[]
[null,null,null,null,null,5,"Impact of adjustments on infrastructure projects"]
[{"$f":"$G$3","v":"Spending review topic 1"},3,null,null,null,null,null,{"$f":"MyYear4","v":"2026/27"},null,null,{"$f":"MyYear5","v":"2027/28"},null,null,{"$f":"MyYear6","v":"2028/29"},null,null,{"$f":"MyYear7","v":"2029/30"},null,null," Comment"]
["Spending review topic 1",3,null,null,null,null,"Project name","Current number","Market or best in class benchmark","Change","Original amount","Revised amount","Change","Original amount","Revised amount","Change","Original amount","Revised amount","Change"]
["Spending review topic 1",3,null,null,null,null,null,null,null,{"$f":"I160-H160","v":0},null,null,{"$f":"L160-K160","v":0},null,null,{"$f":"O160-N160","v":0},null,null,{"$f":"R160-Q160","v":0}]
["Spending review topic 1",3,null,null,null,null,null,null,null,0,null,null,0,null,null,0,null,null,0]
["Spending review topic 1",3,null,null,null,null,null,null,null,{"$f":"I162-H162","v":0},null,null,{"$f":"L162-K162","v":0},null,null,{"$f":"O162-N162","v":0},null,null,{"$f":"R162-Q162","v":0}]
["Spending review topic 1",3,null,null,null,null,null,null,null,0,null,null,0,null,null,0,null,null,0]
["Spending review topic 1",3,null,null,null,null,null,null,null,0,null,null,0,null,null,0,null,null,0]
["Spending review topic 1",3,null,null,null,null,null,null,null,0,null,null,0,null,null,0,null,null,0]
["Spending review topic 1",3,null,null,null,null,null,null,null,0,null,null,0,null,null,0,null,null,0]
["Spending review topic 1",3,null,null,null,null,null,null,null,0,null,null,0,null,null,0,null,null,0]
["Spending review topic 1",3,null,null,null,null,null,null,null,0,null,null,0,null,null,0,null,null,0]
["Spending review topic 1",3,null,null,null,null,null,null,null,0,null,null,0,null,null,0,null,null,0]
["Spending review topic 1",3,null,null,null,null,null,null,null,0,null,null,0,null,null,0,null,null,0]
["Spending review topic 1",3,null,null,null,null,null,null,null,0,null,null,0,null,null,0,null,null,0]
["Spending review topic 1",3,null,null,null,null,null,null,null,0,null,null,0,null,null,0,null,null,0]
["Spending review topic 1",3,null,null,null,null,null,null,null,{"$f":"I173-H173","v":0},null,null,{"$f":"L173-K173","v":0},null,null,{"$f":"O173-N173","v":0},null,null,{"$f":"R173-Q173","v":0}]
["Spending review topic 1",3,null,null,null,null,null,null,null,0,null,null,0,null,null,0,null,null,0]
["Spending review topic 1",3,null,null,null,null,null,null,null,0,null,null,0,null,null,0,null,null,0]
["Spending review topic 1",3,null,null,null,null,null,null,null,0,null,null,0,null,null,0,null,null,0]
["Spending review topic 1",3,null,null,null,null,null,null,null,0,null,null,0,null,null,0,null,null,0]
["Spending review topic 1",3,null,null,null,null,null,null,null,0,null,null,0,null,null,0,null,null,0]
["Spending review topic 1",3,null,null,null,null,null,null,null,{"$f":"I179-H179","v":0},null,null,{"$f":"L179-K179","v":0},null,null,{"$f":"O179-N179","v":0},null,null,{"$f":"R179-Q179","v":0}]
["Spending review topic 1",3,null,null,null,null,null,null,null,0,null,null,0,null,null,0,null,null,0]
["Spending review topic 1",3,null,null,null,null,null,null,null,0,null,null,0,null,null,0,null,null,0]
["Spending review topic 1",3,null,null,null,null,null,null,null,0,null,null,0,null,null,0,null,null,0]
["Spending review topic 1",3,null,null,null,null,null,null,null,0,null,null,0,null,null,0,null,null,0]
["Spending review topic 1",3,null,null,null,null,null,null,null,0,null,null,0,null,null,0,null,null,0]
["Spending review topic 1",3,null,null,null,null,null,null,null,0,null,null,0,null,null,0,null,null,0]
["Spending review topic 1",3,null,null,null,null,null,null,null,0,null,null,0,null,null,0,null,null,0]
["Spending review topic 1",3,null,null,null,null,null,null,null,0,null,null,0,null,null,0,null,null,0]
["Spending review topic 1",3,null,null,null,null,null,null,null,0,null,null,0,null,null,0,null,null,0]
["Spending review topic 1",3,null,null,null,null,null,null,null,0,null,null,0,null,null,0,null,null,0]
["Spending review topic 1",3,null,null,null,null,null,null,null,0,null,null,0,null,null,0,null,null,0]
["Spending review topic 1",3,null,null,null,null,null,null,null,0,null,null,0,null,null,0,null,null,0]
["Spending review topic 1",3,null,null,null,null,null,null,null,0,null,null,0,null,null,0,null,null,0]
["Spending review topic 1",3,null,null,null,null,null,null,null,0,null,null,0,null,null,0,null,null,0]
["Spending review topic 1",3,null,null,null,null,null,null,null,0,null,null,0,null,null,0,null,null,0]
["Spending review topic 1",3,null,null,null,null,null,null,null,0,null,null,0,null,null,0,null,null,0]
["Spending review topic 1",3,null,null,null,null,null,null,null,0,null,null,0,null,null,0,null,null,0]
["Spending review topic 1",3,null,null,null,null,null,null,null,0,null,null,0,null,null,0,null,null,0]
["Spending review topic 1",3,null,null,null,null,null,null,null,0,null,null,0,null,null,0,null,null,0]
["Spending review topic 1",3,null,null,null,null,null,null,null,0,null,null,0,null,null,0,null,null,0]
["Spending review topic 1",3,null,null,null,null,null,null,null,0,null,null,0,null,null,0,null,null,0]
["Spending review topic 1",3,null,null,null,null,null,null,null,0,null,null,0,null,null,0,null,null,0]
["Spending review topic 1",3,null,null,null,null,null,null,null,0,null,null,0,null,null,0,null,null,0]
["Spending review topic 1",3,null,null,null,null,null,null,null,0,null,null,0,null,null,0,null,null,0]
["Spending review topic 1",3,null,null,null,null,null,null,null,0,null,null,0,null,null,0,null,null,0]
["Spending review topic 1",3,null,null,null,null,null,null,null,0,null,null,0,null,null,0,null,null,0]
["Spending review topic 1",3,null,null,null,null,null,null,null,0,null,null,0,null,null,0,null,null,0]
["Spending review topic 1",3,null,null,null,null,null,null,null,0,null,null,0,null,null,0,null,null,0]
["Spending review topic 1",3,null,null,null,null,null,null,null,0,null,null,0,null,null,0,null,null,0]
["Spending review topic 1",3,null,null,null,null,null,null,null,0,null,null,0,null,null,0,null,null,0]
["Spending review topic 1",3,null,null,null,null,"Total",{"$f":"SUM(H160:H209)","v":0},0,0,{"$f":"SUM(K160:K209)","v":0},0,0,0,0,0,0,0,0]

{"sheet":"SRT2","index":15,"n_rows":210,"n_cols":25,"rows_kept":210,"cut":false,"hidden":false,"merged":[[208,19,208,23],[202,19,202,23],[203,19,203,23],[204,19,204,23],[205,19,205,23],[206,19,206,23],[207,19,207,23],[201,19,201,23],[190,19,190,23],[191,19,191,23],[192,19,192,23],[193,19,193,23],[194,19,194,23],[195,19,195,23],[196,19,196,23],[197,19,197,23],[198,19,198,23],[199,19,199,23],[200,19,200,23],[189,19,189,23],[178,19,178,23],[179,19,179,23],[180,19,180,23],[181,19,181,23],[182,19,182,23],[183,19,183,23],[184,19,184,23],[185,19,185,23],[186,19,186,23],[187,19,187,23],[188,19,188,23],[177,19,177,23],[166,19,166,23],[167,19,167,23],[168,19,168,23],[169,19,169,23],[170,19,170,23],[171,19,171,23],[172,19,172,23],[173,19,173,23],[174,19,174,23],[175,19,175,23],[176,19,176,23],[165,19,165,23],[128,19,128,23],[129,19,129,23],[130,19,149,23],[157,19,157,23],[158,19,158,23],[159,19,159,23],[160,19,160,23],[161,19,161,23],[162,19,162,23],[163,19,163,23],[164,19,164,23],[119,19,119,23],[119,24,119,26],[120,19,120,23],[120,24,120,26],[121,19,121,23],[121,24,121,26],[116,19,116,23],[116,24,116,26],[117,19,117,23],[117,24,117,26],[118,19,118,23],[118,24,118,26],[113,19,113,23],[113,24,113,26],[114,19,114,23],[114,24,114,26],[115,19,115,23],[115,24,115,26],[110,19,110,23],[110,24,110,26],[111,19,111,23],[111,24,111,26],[112,19,112,23],[112,24,112,26],[107,19,107,23],[107,24,107,26],[108,19,108,23],[108,24,108,26],[109,19,109,23],[109,24,109,26],[72,6,72,18],[84,6,98,18],[105,19,105,23],[105,24,105,26],[106,19,106,23],[106,24,106,26]]}
[]
[null,null,null,null,null,null,"Spending review topic…"]
[null,{"$f":"IF(G3=\"\",0,1)","v":1},null,null,null,2,{"$f":"SRTopic2","v":"Spending review topic 2"}]
[]
[null,null,null,null,null,null,"Quick view…(Total change)",{"$f":"MyYear5","v":"2027/28"},{"$f":"MyYear6","v":"2028/29"},{"$f":"MyYear7","v":"2029/30"},"MTEF total","Trend"]
[null,null,null,null,null,null,"Compensation of employees",{"$f":"SUMPRODUCT(($G$35:$G$68=$G6)*($J$35:$J$68))","v":0},{"$f":"SUMPRODUCT(($G$35:$G$68=$G6)*($M$35:$M$68))","v":0},{"$f":"SUMPRODUCT(($G$35:$G$68=$G6)*($P$35:$P$68))","v":0},{"$f":"SUM(H6:J6)","v":0},null,null,"CoE"]
[null,null,null,null,null,null,"Goods and services",{"$f":"SUMPRODUCT(($G$35:$G$68=$G7)*($J$35:$J$68))","v":0},{"$f":"SUMPRODUCT(($G$35:$G$68=$G7)*($M$35:$M$68))","v":0},{"$f":"SUMPRODUCT(($G$35:$G$68=$G7)*($P$35:$P$68))","v":0},0,null,null,"G&S"]
[null,null,null,null,null,null,"Transfers and subsidies",{"$f":"SUMPRODUCT(($G$35:$G$68=$G8)*($J$35:$J$68))","v":0},{"$f":"SUMPRODUCT(($G$35:$G$68=$G8)*($M$35:$M$68))","v":0},{"$f":"SUMPRODUCT(($G$35:$G$68=$G8)*($P$35:$P$68))","v":0},0,null,null,"T&S"]
[null,null,null,null,null,null,"Payments for capital assets",{"$f":"SUMPRODUCT(($G$35:$G$68=$G9)*($J$35:$J$68))","v":0},{"$f":"SUMPRODUCT(($G$35:$G$68=$G9)*($M$35:$M$68))","v":0},{"$f":"SUMPRODUCT(($G$35:$G$68=$G9)*($P$35:$P$68))","v":0},0,null,null,"Capital"]
[null,null,null,null,null,null,"Total",{"$f":"SUMPRODUCT(($G$35:$G$68=$G10)*($J$35:$J$68))","v":0},{"$f":"SUMPRODUCT(($G$35:$G$68=$G10)*($M$35:$M$68))","v":0},{"$f":"SUMPRODUCT(($G$35:$G$68=$G10)*($P$35:$P$68))","v":0},0,null,null,"Total"]
[null,null,null,null,null,null,"% of MTEF total",null,null,null,null,null,null,null,null,null,null,null,{"$f":"MyYear5","v":"2027/28"},{"$f":"MyYear6","v":"2028/29"},{"$f":"MyYear7","v":"2029/30"}]
[null,null,null,null,null,null,"Compensation of employees",{"$f":"IFERROR(H6/$K6,\"\")","v":""},"","",null,null,null,null,null,null,null,{"$f":"G12","v":"Compensation of employees"},{"$f":"IF(H12>0.0595,H12,\"\")","v":""},"",""]
[null,null,null,null,null,null,"Goods and services","","","",null,null,null,null,null,null,null,{"$f":"G13","v":"Goods and services"},"","",""]
[null,null,null,null,null,null,"Transfers and subsidies","","","",null,null,null,null,null,null,null,{"$f":"G14","v":"Transfers and subsidies"},"","",""]
[null,null,null,null,null,null,"Payments for capital assets","","","",null,null,null,null,null,null,null,{"$f":"G15","v":"Payments for capital assets"},"","",""]
[]
[null,null,null,null,null,null,"Division of Revenue",{"$f":"MyYear5","v":"2027/28"},{"$f":"MyYear6","v":"2028/29"},{"$f":"MyYear7","v":"2029/30"},"MTEF total","Trend"]
[null,null,null,null,null,null,"National",{"$f":"SUM(H19:H21)","v":0},0,0,{"$f":"SUM(H18:J18)","v":0}]
[{"$f":"$G$3","v":"Spending review topic 2"},"NAT",null,null,null,null,"National (excl. indirect grants)",{"$f":"SUMPRODUCT(((Dataset[DOR]=$B19))*Dataset[2027/28 From - Spending review Topic 2])+SUMPRODUCT(((Dataset[DOR]=$B19))*Dataset[2027/28 To - Spending review Topic 2])","v":0},{"$f":"SUMPRODUCT(((Dataset[DOR]=$B19))*Dataset[2028/29 From - Spending review Topic 2])+SUMPRODUCT(((Dataset[DOR]=$B19))*Dataset[2028/29 To - Spending review Topic 2])","v":0},{"$f":"SUMPRODUCT(((Dataset[DOR]=$B19))*Dataset[2029/30 From - Spending review Topic 2])+SUMPRODUCT(((Dataset[DOR]=$B19))*Dataset[2029/30 To - Spending review Topic 2])","v":0},0]
["Spending review topic 2","IGP",null,null,null,null,"Provincial indirect grants",{"$f":"SUMPRODUCT(((Dataset[DOR]=$B20))*Dataset[2027/28 From - Spending review Topic 2])+SUMPRODUCT(((Dataset[DOR]=$B20))*Dataset[2027/28 To - Spending review Topic 2])","v":0},{"$f":"SUMPRODUCT(((Dataset[DOR]=$B20))*Dataset[2028/29 From - Spending review Topic 2])+SUMPRODUCT(((Dataset[DOR]=$B20))*Dataset[2028/29 To - Spending review Topic 2])","v":0},{"$f":"SUMPRODUCT(((Dataset[DOR]=$B20))*Dataset[2029/30 From - Spending review Topic 2])+SUMPRODUCT(((Dataset[DOR]=$B20))*Dataset[2029/30 To - Spending review Topic 2])","v":0},0]
["Spending review topic 2","IGM",null,null,null,null,"Local indirect grants",{"$f":"SUMPRODUCT(((Dataset[DOR]=$B21))*Dataset[2027/28 From - Spending review Topic 2])+SUMPRODUCT(((Dataset[DOR]=$B21))*Dataset[2027/28 To - Spending review Topic 2])","v":0},{"$f":"SUMPRODUCT(((Dataset[DOR]=$B21))*Dataset[2028/29 From - Spending review Topic 2])+SUMPRODUCT(((Dataset[DOR]=$B21))*Dataset[2028/29 To - Spending review Topic 2])","v":0},{"$f":"SUMPRODUCT(((Dataset[DOR]=$B21))*Dataset[2029/30 From - Spending review Topic 2])+SUMPRODUCT(((Dataset[DOR]=$B21))*Dataset[2029/30 To - Spending review Topic 2])","v":0},0]
["Spending review topic 2",null,null,null,null,null,"Provincial",{"$f":"SUMPRODUCT(((Dataset[DOR]=$B22))*Dataset[2027/28 From - Spending review Topic 2])+SUMPRODUCT(((Dataset[DOR]=$B22))*Dataset[2027/28 To - Spending review Topic 2])","v":0},{"$f":"SUMPRODUCT(((Dataset[DOR]=$B22))*Dataset[2028/29 From - Spending review Topic 2])+SUMPRODUCT(((Dataset[DOR]=$B22))*Dataset[2028/29 To - Spending review Topic 2])","v":0},{"$f":"SUMPRODUCT(((Dataset[DOR]=$B22))*Dataset[2029/30 From - Spending review Topic 2])+SUMPRODUCT(((Dataset[DOR]=$B22))*Dataset[2029/30 To - Spending review Topic 2])","v":0},0]
["Spending review topic 2","PES",null,null,null,null,"Provincial equitable share",{"$f":"SUMPRODUCT(((Dataset[DOR]=$B23))*Dataset[2027/28 From - Spending review Topic 2])+SUMPRODUCT(((Dataset[DOR]=$B23))*Dataset[2027/28 To - Spending review Topic 2])","v":0},{"$f":"SUMPRODUCT(((Dataset[DOR]=$B23))*Dataset[2028/29 From - Spending review Topic 2])+SUMPRODUCT(((Dataset[DOR]=$B23))*Dataset[2028/29 To - Spending review Topic 2])","v":0},{"$f":"SUMPRODUCT(((Dataset[DOR]=$B23))*Dataset[2029/30 From - Spending review Topic 2])+SUMPRODUCT(((Dataset[DOR]=$B23))*Dataset[2029/30 To - Spending review Topic 2])","v":0},0]
["Spending review topic 2","PCG",null,null,null,null,"Provincial conditional grants",{"$f":"SUMPRODUCT(((Dataset[DOR]=$B24))*Dataset[2027/28 From - Spending review Topic 2])+SUMPRODUCT(((Dataset[DOR]=$B24))*Dataset[2027/28 To - Spending review Topic 2])","v":0},{"$f":"SUMPRODUCT(((Dataset[DOR]=$B24))*Dataset[2028/29 From - Spending review Topic 2])+SUMPRODUCT(((Dataset[DOR]=$B24))*Dataset[2028/29 To - Spending review Topic 2])","v":0},{"$f":"SUMPRODUCT(((Dataset[DOR]=$B24))*Dataset[2029/30 From - Spending review Topic 2])+SUMPRODUCT(((Dataset[DOR]=$B24))*Dataset[2029/30 To - Spending review Topic 2])","v":0},0]
["Spending review topic 2",null,null,null,null,null,"Local government",{"$f":"SUMPRODUCT(((Dataset[DOR]=$B25))*Dataset[2027/28 From - Spending review Topic 2])+SUMPRODUCT(((Dataset[DOR]=$B25))*Dataset[2027/28 To - Spending review Topic 2])","v":0},{"$f":"SUMPRODUCT(((Dataset[DOR]=$B25))*Dataset[2028/29 From - Spending review Topic 2])+SUMPRODUCT(((Dataset[DOR]=$B25))*Dataset[2028/29 To - Spending review Topic 2])","v":0},{"$f":"SUMPRODUCT(((Dataset[DOR]=$B25))*Dataset[2029/30 From - Spending review Topic 2])+SUMPRODUCT(((Dataset[DOR]=$B25))*Dataset[2029/30 To - Spending review Topic 2])","v":0},0]
["Spending review topic 2","LES",null,null,null,null,"Local equitable share",{"$f":"SUMPRODUCT(((Dataset[DOR]=$B26))*Dataset[2027/28 From - Spending review Topic 2])+SUMPRODUCT(((Dataset[DOR]=$B26))*Dataset[2027/28 To - Spending review Topic 2])","v":0},{"$f":"SUMPRODUCT(((Dataset[DOR]=$B26))*Dataset[2028/29 From - Spending review Topic 2])+SUMPRODUCT(((Dataset[DOR]=$B26))*Dataset[2028/29 To - Spending review Topic 2])","v":0},{"$f":"SUMPRODUCT(((Dataset[DOR]=$B26))*Dataset[2029/30 From - Spending review Topic 2])+SUMPRODUCT(((Dataset[DOR]=$B26))*Dataset[2029/30 To - Spending review Topic 2])","v":0},0]
["Spending review topic 2","LCG",null,null,null,null,"Local conditional grants",{"$f":"SUMPRODUCT(((Dataset[DOR]=$B27))*Dataset[2027/28 From - Spending review Topic 2])+SUMPRODUCT(((Dataset[DOR]=$B27))*Dataset[2027/28 To - Spending review Topic 2])","v":0},{"$f":"SUMPRODUCT(((Dataset[DOR]=$B27))*Dataset[2028/29 From - Spending review Topic 2])+SUMPRODUCT(((Dataset[DOR]=$B27))*Dataset[2028/29 To - Spending review Topic 2])","v":0},{"$f":"SUMPRODUCT(((Dataset[DOR]=$B27))*Dataset[2029/30 From - Spending review Topic 2])+SUMPRODUCT(((Dataset[DOR]=$B27))*Dataset[2029/30 To - Spending review Topic 2])","v":0},0]
["Spending review topic 2","GFL",null,null,null,null,"General fuel levy ",{"$f":"SUMPRODUCT(((Dataset[DOR]=$B28))*Dataset[2027/28 From - Spending review Topic 2])+SUMPRODUCT(((Dataset[DOR]=$B28))*Dataset[2027/28 To - Spending review Topic 2])","v":0},{"$f":"SUMPRODUCT(((Dataset[DOR]=$B28))*Dataset[2028/29 From - Spending review Topic 2])+SUMPRODUCT(((Dataset[DOR]=$B28))*Dataset[2028/29 To - Spending review Topic 2])","v":0},{"$f":"SUMPRODUCT(((Dataset[DOR]=$B28))*Dataset[2029/30 From - Spending review Topic 2])+SUMPRODUCT(((Dataset[DOR]=$B28))*Dataset[2029/30 To - Spending review Topic 2])","v":0},0]
[]
[]
[null,null,null,null,null,null,{"$f":"G3","v":"Spending review topic 2"}]
[{"$f":"$G$3","v":"Spending review topic 2"},0,null,null,null,null,null,{"$f":"MyYear5","v":"2027/28"},null,null,{"$f":"MyYear6","v":"2028/29"},null,null,{"$f":"MyYear7","v":"2029/30"},null,null,"Total over MTEF"]
[{"$f":"$G$3","v":"Spending review topic 2"},0,null,null,null,null,"Rand thousand","From","To","Total change","From","To","Total change","From","To","Total change","From","To","Total change"]
["Spending review topic 2",0,null,null,null,null,"Economic classification"]
["Spending review topic 2",0,null,null,null,null,"Current payments",{"$f":"SUM(H36:H38)","v":0},0,0,0,0,0,0,0,0,0,0,0]
["Spending review topic 2",0,null,null,null,null,"Compensation of employees",{"$f":"SUMPRODUCT(((Dataset[Econ3]=$G36))*Dataset[2027/28 From - Spending review Topic 2]*$B$3)","v":0},{"$f":"SUMPRODUCT(((Dataset[Econ3]=$G36))*Dataset[2027/28 To - Spending review Topic 2]*$B$3)","v":0},{"$f":"H36+I36","v":0},{"$f":"SUMPRODUCT(((Dataset[Econ3]=$G36))*Dataset[2028/29 From - Spending review Topic 2]*$B$3)","v":0},{"$f":"SUMPRODUCT(((Dataset[Econ3]=$G36))*Dataset[2028/29 To - Spending review Topic 2]*$B$3)","v":0},{"$f":"K36+L36","v":0},{"$f":"SUMPRODUCT(((Dataset[Econ3]=$G36))*Dataset[2029/30 From - Spending review Topic 2]*$B$3)","v":0},{"$f":"SUMPRODUCT(((Dataset[Econ3]=$G36))*Dataset[2029/30 To - Spending review Topic 2]*$B$3)","v":0},{"$f":"N36+O36","v":0},{"$f":"SUM(H36,K36,N36)","v":0},0,0]
["Spending review topic 2",0,null,null,null,null,"Goods and services",{"$f":"SUMPRODUCT(((Dataset[Econ3]=$G37))*Dataset[2027/28 From - Spending review Topic 2]*$B$3)","v":0},{"$f":"SUMPRODUCT(((Dataset[Econ3]=$G37))*Dataset[2027/28 To - Spending review Topic 2]*$B$3)","v":0},0,{"$f":"SUMPRODUCT(((Dataset[Econ3]=$G37))*Dataset[2028/29 From - Spending review Topic 2]*$B$3)","v":0},{"$f":"SUMPRODUCT(((Dataset[Econ3]=$G37))*Dataset[2028/29 To - Spending review Topic 2]*$B$3)","v":0},0,{"$f":"SUMPRODUCT(((Dataset[Econ3]=$G37))*Dataset[2029/30 From - Spending review Topic 2]*$B$3)","v":0},{"$f":"SUMPRODUCT(((Dataset[Econ3]=$G37))*Dataset[2029/30 To - Spending review Topic 2]*$B$3)","v":0},0,0,0,0]
["Spending review topic 2",0,null,null,null,null,"Interest and rent on land",{"$f":"SUMPRODUCT(((Dataset[Econ3]=$G38))*Dataset[2027/28 From - Spending review Topic 2]*$B$3)","v":0},{"$f":"SUMPRODUCT(((Dataset[Econ3]=$G38))*Dataset[2027/28 To - Spending review Topic 2]*$B$3)","v":0},0,{"$f":"SUMPRODUCT(((Dataset[Econ3]=$G38))*Dataset[2028/29 From - Spending review Topic 2]*$B$3)","v":0},{"$f":"SUMPRODUCT(((Dataset[Econ3]=$G38))*Dataset[2028/29 To - Spending review Topic 2]*$B$3)","v":0},0,{"$f":"SUMPRODUCT(((Dataset[Econ3]=$G38))*Dataset[2029/30 From - Spending review Topic 2]*$B$3)","v":0},{"$f":"SUMPRODUCT(((Dataset[Econ3]=$G38))*Dataset[2029/30 To - Spending review Topic 2]*$B$3)","v":0},0,0,0,0]
["Spending review topic 2",0,null,null,null,null,"Transfers and subsidies",{"$f":"SUM(H40,H43,H46:H48,H51:H52)","v":0},0,0,0,0,0,0,0,0,0,0,0]
["Spending review topic 2",0,null,null,null,null,"Provinces and municipalities",{"$f":"SUM(H41:H42)","v":0},0,0,0,0,0,0,0,0,0,0,0]
["Spending review topic 2",0,null,null,null,null,"Provinces",{"$f":"SUMPRODUCT(((Dataset[Econ4]=$G41))*Dataset[2027/28 From - Spending review Topic 2]*$B$3)","v":0},{"$f":"SUMPRODUCT(((Dataset[Econ4]=$G41))*Dataset[2027/28 To - Spending review Topic 2]*$B$3)","v":0},{"$f":"H41+I41","v":0},{"$f":"SUMPRODUCT(((Dataset[Econ4]=$G41))*Dataset[2028/29 From - Spending review Topic 2]*$B$3)","v":0},{"$f":"SUMPRODUCT(((Dataset[Econ4]=$G41))*Dataset[2028/29 To - Spending review Topic 2]*$B$3)","v":0},{"$f":"K41+L41","v":0},{"$f":"SUMPRODUCT(((Dataset[Econ4]=$G41))*Dataset[2029/30 From - Spending review Topic 2]*$B$3)","v":0},{"$f":"SUMPRODUCT(((Dataset[Econ4]=$G41))*Dataset[2029/30 To - Spending review Topic 2]*$B$3)","v":0},{"$f":"N41+O41","v":0},{"$f":"SUM(H41,K41,N41)","v":0},0,0]
["Spending review topic 2",0,null,null,null,null,"Municipalities",{"$f":"SUMPRODUCT(((Dataset[Econ4]=$G42))*Dataset[2027/28 From - Spending review Topic 2]*$B$3)","v":0},{"$f":"SUMPRODUCT(((Dataset[Econ4]=$G42))*Dataset[2027/28 To - Spending review Topic 2]*$B$3)","v":0},0,{"$f":"SUMPRODUCT(((Dataset[Econ4]=$G42))*Dataset[2028/29 From - Spending review Topic 2]*$B$3)","v":0},{"$f":"SUMPRODUCT(((Dataset[Econ4]=$G42))*Dataset[2028/29 To - Spending review Topic 2]*$B$3)","v":0},0,{"$f":"SUMPRODUCT(((Dataset[Econ4]=$G42))*Dataset[2029/30 From - Spending review Topic 2]*$B$3)","v":0},{"$f":"SUMPRODUCT(((Dataset[Econ4]=$G42))*Dataset[2029/30 To - Spending review Topic 2]*$B$3)","v":0},0,0,0,0]
["Spending review topic 2",0,null,null,null,null,"Departmental agencies and accounts",{"$f":"SUM(H44:H45)","v":0},0,0,0,0,0,0,0,0,0,0,0]
["Spending review topic 2",0,null,null,null,null,"Social security funds",{"$f":"SUMPRODUCT(((Dataset[Econ4]=$G44))*Dataset[2027/28 From - Spending review Topic 2]*$B$3)","v":0},{"$f":"SUMPRODUCT(((Dataset[Econ4]=$G44))*Dataset[2027/28 To - Spending review Topic 2]*$B$3)","v":0},{"$f":"H44+I44","v":0},{"$f":"SUMPRODUCT(((Dataset[Econ4]=$G44))*Dataset[2028/29 From - Spending review Topic 2]*$B$3)","v":0},{"$f":"SUMPRODUCT(((Dataset[Econ4]=$G44))*Dataset[2028/29 To - Spending review Topic 2]*$B$3)","v":0},{"$f":"K44+L44","v":0},{"$f":"SUMPRODUCT(((Dataset[Econ4]=$G44))*Dataset[2029/30 From - Spending review Topic 2]*$B$3)","v":0},{"$f":"SUMPRODUCT(((Dataset[Econ4]=$G44))*Dataset[2029/30 To - Spending review Topic 2]*$B$3)","v":0},{"$f":"N44+O44","v":0},{"$f":"SUM(H44,K44,N44)","v":0},0,0]
["Spending review topic 2",0,null,null,null,null,"Departmental agencies (non-business entities)",{"$f":"SUMPRODUCT(((Dataset[Econ4]=$G45))*Dataset[2027/28 From - Spending review Topic 2]*$B$3)","v":0},{"$f":"SUMPRODUCT(((Dataset[Econ4]=$G45))*Dataset[2027/28 To - Spending review Topic 2]*$B$3)","v":0},0,{"$f":"SUMPRODUCT(((Dataset[Econ4]=$G45))*Dataset[2028/29 From - Spending review Topic 2]*$B$3)","v":0},{"$f":"SUMPRODUCT(((Dataset[Econ4]=$G45))*Dataset[2028/29 To - Spending review Topic 2]*$B$3)","v":0},0,{"$f":"SUMPRODUCT(((Dataset[Econ4]=$G45))*Dataset[2029/30 From - Spending review Topic 2]*$B$3)","v":0},{"$f":"SUMPRODUCT(((Dataset[Econ4]=$G45))*Dataset[2029/30 To - Spending review Topic 2]*$B$3)","v":0},0,0,0,0]
["Spending review topic 2",0,null,null,null,null,"Higher education institutions",{"$f":"SUMPRODUCT(((Dataset[Econ3]=$G46))*Dataset[2027/28 From - Spending review Topic 2]*$B$3)","v":0},{"$f":"SUMPRODUCT(((Dataset[Econ3]=$G46))*Dataset[2027/28 To - Spending review Topic 2]*$B$3)","v":0},0,{"$f":"SUMPRODUCT(((Dataset[Econ3]=$G46))*Dataset[2028/29 From - Spending review Topic 2]*$B$3)","v":0},{"$f":"SUMPRODUCT(((Dataset[Econ3]=$G46))*Dataset[2028/29 To - Spending review Topic 2]*$B$3)","v":0},0,{"$f":"SUMPRODUCT(((Dataset[Econ3]=$G46))*Dataset[2029/30 From - Spending review Topic 2]*$B$3)","v":0},{"$f":"SUMPRODUCT(((Dataset[Econ3]=$G46))*Dataset[2029/30 To - Spending review Topic 2]*$B$3)","v":0},0,0,0,0]
["Spending review topic 2",0,null,null,null,null,"Foreign governments and international organisations",{"$f":"SUMPRODUCT(((Dataset[Econ3]=$G47))*Dataset[2027/28 From - Spending review Topic 2]*$B$3)","v":0},{"$f":"SUMPRODUCT(((Dataset[Econ3]=$G47))*Dataset[2027/28 To - Spending review Topic 2]*$B$3)","v":0},0,{"$f":"SUMPRODUCT(((Dataset[Econ3]=$G47))*Dataset[2028/29 From - Spending review Topic 2]*$B$3)","v":0},{"$f":"SUMPRODUCT(((Dataset[Econ3]=$G47))*Dataset[2028/29 To - Spending review Topic 2]*$B$3)","v":0},0,{"$f":"SUMPRODUCT(((Dataset[Econ3]=$G47))*Dataset[2029/30 From - Spending review Topic 2]*$B$3)","v":0},{"$f":"SUMPRODUCT(((Dataset[Econ3]=$G47))*Dataset[2029/30 To - Spending review Topic 2]*$B$3)","v":0},0,0,0,0]
["Spending review topic 2",0,null,null,null,null,"Public corporations and private enterprises",{"$f":"SUM(H49:H50)","v":0},0,0,0,0,0,0,0,0,0,0,0]
["Spending review topic 2",0,null,null,null,null,"Public corporations",{"$f":"SUMPRODUCT(((Dataset[Econ4]=$G49))*Dataset[2027/28 From - Spending review Topic 2]*$B$3)","v":0},{"$f":"SUMPRODUCT(((Dataset[Econ4]=$G49))*Dataset[2027/28 To - Spending review Topic 2]*$B$3)","v":0},{"$f":"H49+I49","v":0},{"$f":"SUMPRODUCT(((Dataset[Econ4]=$G49))*Dataset[2028/29 From - Spending review Topic 2]*$B$3)","v":0},{"$f":"SUMPRODUCT(((Dataset[Econ4]=$G49))*Dataset[2028/29 To - Spending review Topic 2]*$B$3)","v":0},{"$f":"K49+L49","v":0},{"$f":"SUMPRODUCT(((Dataset[Econ4]=$G49))*Dataset[2029/30 From - Spending review Topic 2]*$B$3)","v":0},{"$f":"SUMPRODUCT(((Dataset[Econ4]=$G49))*Dataset[2029/30 To - Spending review Topic 2]*$B$3)","v":0},{"$f":"N49+O49","v":0},{"$f":"SUM(H49,K49,N49)","v":0},0,0]
["Spending review topic 2",0,null,null,null,null,"Private enterprises",{"$f":"SUMPRODUCT(((Dataset[Econ4]=$G50))*Dataset[2027/28 From - Spending review Topic 2]*$B$3)","v":0},{"$f":"SUMPRODUCT(((Dataset[Econ4]=$G50))*Dataset[2027/28 To - Spending review Topic 2]*$B$3)","v":0},0,{"$f":"SUMPRODUCT(((Dataset[Econ4]=$G50))*Dataset[2028/29 From - Spending review Topic 2]*$B$3)","v":0},{"$f":"SUMPRODUCT(((Dataset[Econ4]=$G50))*Dataset[2028/29 To - Spending review Topic 2]*$B$3)","v":0},0,{"$f":"SUMPRODUCT(((Dataset[Econ4]=$G50))*Dataset[2029/30 From - Spending review Topic 2]*$B$3)","v":0},{"$f":"SUMPRODUCT(((Dataset[Econ4]=$G50))*Dataset[2029/30 To - Spending review Topic 2]*$B$3)","v":0},0,0,0,0]
["Spending review topic 2",0,null,null,null,null,"Non-profit institutions",{"$f":"SUMPRODUCT(((Dataset[Econ3]=$G51))*Dataset[2027/28 From - Spending review Topic 2]*$B$3)","v":0},{"$f":"SUMPRODUCT(((Dataset[Econ3]=$G51))*Dataset[2027/28 To - Spending review Topic 2]*$B$3)","v":0},0,{"$f":"SUMPRODUCT(((Dataset[Econ3]=$G51))*Dataset[2028/29 From - Spending review Topic 2]*$B$3)","v":0},{"$f":"SUMPRODUCT(((Dataset[Econ3]=$G51))*Dataset[2028/29 To - Spending review Topic 2]*$B$3)","v":0},0,{"$f":"SUMPRODUCT(((Dataset[Econ3]=$G51))*Dataset[2029/30 From - Spending review Topic 2]*$B$3)","v":0},{"$f":"SUMPRODUCT(((Dataset[Econ3]=$G51))*Dataset[2029/30 To - Spending review Topic 2]*$B$3)","v":0},0,0,0,0]
["Spending review topic 2",0,null,null,null,null,"Households",{"$f":"SUM(H53:H54)","v":0},0,0,0,0,0,0,0,0,0,0,0]
["Spending review topic 2",0,null,null,null,null,"Social benefits",{"$f":"SUMPRODUCT(((Dataset[Econ4]=$G53))*Dataset[2027/28 From - Spending review Topic 2]*$B$3)","v":0},{"$f":"SUMPRODUCT(((Dataset[Econ4]=$G53))*Dataset[2027/28 To - Spending review Topic 2]*$B$3)","v":0},{"$f":"H53+I53","v":0},{"$f":"SUMPRODUCT(((Dataset[Econ4]=$G53))*Dataset[2028/29 From - Spending review Topic 2]*$B$3)","v":0},{"$f":"SUMPRODUCT(((Dataset[Econ4]=$G53))*Dataset[2028/29 To - Spending review Topic 2]*$B$3)","v":0},{"$f":"K53+L53","v":0},{"$f":"SUMPRODUCT(((Dataset[Econ4]=$G53))*Dataset[2029/30 From - Spending review Topic 2]*$B$3)","v":0},{"$f":"SUMPRODUCT(((Dataset[Econ4]=$G53))*Dataset[2029/30 To - Spending review Topic 2]*$B$3)","v":0},{"$f":"N53+O53","v":0},{"$f":"SUM(H53,K53,N53)","v":0},0,0]
["Spending review topic 2",0,null,null,null,null,"Other transfers to households",{"$f":"SUMPRODUCT(((Dataset[Econ4]=$G54))*Dataset[2027/28 From - Spending review Topic 2]*$B$3)","v":0},{"$f":"SUMPRODUCT(((Dataset[Econ4]=$G54))*Dataset[2027/28 To - Spending review Topic 2]*$B$3)","v":0},0,{"$f":"SUMPRODUCT(((Dataset[Econ4]=$G54))*Dataset[2028/29 From - Spending review Topic 2]*$B$3)","v":0},{"$f":"SUMPRODUCT(((Dataset[Econ4]=$G54))*Dataset[2028/29 To - Spending review Topic 2]*$B$3)","v":0},0,{"$f":"SUMPRODUCT(((Dataset[Econ4]=$G54))*Dataset[2029/30 From - Spending review Topic 2]*$B$3)","v":0},{"$f":"SUMPRODUCT(((Dataset[Econ4]=$G54))*Dataset[2029/30 To - Spending review Topic 2]*$B$3)","v":0},0,0,0,0]
["Spending review topic 2",0,null,null,null,null,"Payments for capital assets",{"$f":"SUM(H56,H59,H62:H66)","v":0},0,0,0,0,0,0,0,0,0,0,0]
["Spending review topic 2",0,null,null,null,null,"Buildings and other fixed structures",{"$f":"SUM(H57:H58)","v":0},0,0,0,0,0,0,0,0,0,0,0]
["Spending review topic 2",0,null,null,null,null,"Buildings",{"$f":"SUMPRODUCT(((Dataset[Econ4]=$G57))*Dataset[2027/28 From - Spending review Topic 2]*$B$3)","v":0},{"$f":"SUMPRODUCT(((Dataset[Econ4]=$G57))*Dataset[2027/28 To - Spending review Topic 2]*$B$3)","v":0},{"$f":"H57+I57","v":0},{"$f":"SUMPRODUCT(((Dataset[Econ4]=$G57))*Dataset[2028/29 From - Spending review Topic 2]*$B$3)","v":0},{"$f":"SUMPRODUCT(((Dataset[Econ4]=$G57))*Dataset[2028/29 To - Spending review Topic 2]*$B$3)","v":0},{"$f":"K57+L57","v":0},{"$f":"SUMPRODUCT(((Dataset[Econ4]=$G57))*Dataset[2029/30 From - Spending review Topic 2]*$B$3)","v":0},{"$f":"SUMPRODUCT(((Dataset[Econ4]=$G57))*Dataset[2029/30 To - Spending review Topic 2]*$B$3)","v":0},{"$f":"N57+O57","v":0},{"$f":"SUM(H57,K57,N57)","v":0},0,0]
["Spending review topic 2",0,null,null,null,null,"Other fixed structures",{"$f":"SUMPRODUCT(((Dataset[Econ4]=$G58))*Dataset[2027/28 From - Spending review Topic 2]*$B$3)","v":0},{"$f":"SUMPRODUCT(((Dataset[Econ4]=$G58))*Dataset[2027/28 To - Spending review Topic 2]*$B$3)","v":0},0,{"$f":"SUMPRODUCT(((Dataset[Econ4]=$G58))*Dataset[2028/29 From - Spending review Topic 2]*$B$3)","v":0},{"$f":"SUMPRODUCT(((Dataset[Econ4]=$G58))*Dataset[2028/29 To - Spending review Topic 2]*$B$3)","v":0},0,{"$f":"SUMPRODUCT(((Dataset[Econ4]=$G58))*Dataset[2029/30 From - Spending review Topic 2]*$B$3)","v":0},{"$f":"SUMPRODUCT(((Dataset[Econ4]=$G58))*Dataset[2029/30 To - Spending review Topic 2]*$B$3)","v":0},0,0,0,0]
["Spending review topic 2",0,null,null,null,null,"Machinery and equipment",{"$f":"SUM(H60:H61)","v":0},0,0,0,0,0,0,0,0,0,0,0]
["Spending review topic 2",0,null,null,null,null,"Transport equipment",{"$f":"SUMPRODUCT(((Dataset[Econ4]=$G60))*Dataset[2027/28 From - Spending review Topic 2]*$B$3)","v":0},{"$f":"SUMPRODUCT(((Dataset[Econ4]=$G60))*Dataset[2027/28 To - Spending review Topic 2]*$B$3)","v":0},{"$f":"H60+I60","v":0},{"$f":"SUMPRODUCT(((Dataset[Econ4]=$G60))*Dataset[2028/29 From - Spending review Topic 2]*$B$3)","v":0},{"$f":"SUMPRODUCT(((Dataset[Econ4]=$G60))*Dataset[2028/29 To - Spending review Topic 2]*$B$3)","v":0},{"$f":"K60+L60","v":0},{"$f":"SUMPRODUCT(((Dataset[Econ4]=$G60))*Dataset[2029/30 From - Spending review Topic 2]*$B$3)","v":0},{"$f":"SUMPRODUCT(((Dataset[Econ4]=$G60))*Dataset[2029/30 To - Spending review Topic 2]*$B$3)","v":0},{"$f":"N60+O60","v":0},{"$f":"SUM(H60,K60,N60)","v":0},0,0]
["Spending review topic 2",0,null,null,null,null,"Other machinery and equipment",{"$f":"SUMPRODUCT(((Dataset[Econ4]=$G61))*Dataset[2027/28 From - Spending review Topic 2]*$B$3)","v":0},{"$f":"SUMPRODUCT(((Dataset[Econ4]=$G61))*Dataset[2027/28 To - Spending review Topic 2]*$B$3)","v":0},0,{"$f":"SUMPRODUCT(((Dataset[Econ4]=$G61))*Dataset[2028/29 From - Spending review Topic 2]*$B$3)","v":0},{"$f":"SUMPRODUCT(((Dataset[Econ4]=$G61))*Dataset[2028/29 To - Spending review Topic 2]*$B$3)","v":0},0,{"$f":"SUMPRODUCT(((Dataset[Econ4]=$G61))*Dataset[2029/30 From - Spending review Topic 2]*$B$3)","v":0},{"$f":"SUMPRODUCT(((Dataset[Econ4]=$G61))*Dataset[2029/30 To - Spending review Topic 2]*$B$3)","v":0},0,0,0,0]
["Spending review topic 2",0,null,null,null,null,"Heritage assets",{"$f":"SUMPRODUCT(((Dataset[Econ3]=$G62))*Dataset[2027/28 From - Spending review Topic 2]*$B$3)","v":0},{"$f":"SUMPRODUCT(((Dataset[Econ3]=$G62))*Dataset[2027/28 To - Spending review Topic 2]*$B$3)","v":0},0,{"$f":"SUMPRODUCT(((Dataset[Econ3]=$G62))*Dataset[2028/29 From - Spending review Topic 2]*$B$3)","v":0},{"$f":"SUMPRODUCT(((Dataset[Econ3]=$G62))*Dataset[2028/29 To - Spending review Topic 2]*$B$3)","v":0},0,{"$f":"SUMPRODUCT(((Dataset[Econ3]=$G62))*Dataset[2029/30 From - Spending review Topic 2]*$B$3)","v":0},{"$f":"SUMPRODUCT(((Dataset[Econ3]=$G62))*Dataset[2029/30 To - Spending review Topic 2]*$B$3)","v":0},0,0,0,0]
["Spending review topic 2",0,null,null,null,null,"Specialised military assets",{"$f":"SUMPRODUCT(((Dataset[Econ3]=$G63))*Dataset[2027/28 From - Spending review Topic 2]*$B$3)","v":0},{"$f":"SUMPRODUCT(((Dataset[Econ3]=$G63))*Dataset[2027/28 To - Spending review Topic 2]*$B$3)","v":0},0,{"$f":"SUMPRODUCT(((Dataset[Econ3]=$G63))*Dataset[2028/29 From - Spending review Topic 2]*$B$3)","v":0},{"$f":"SUMPRODUCT(((Dataset[Econ3]=$G63))*Dataset[2028/29 To - Spending review Topic 2]*$B$3)","v":0},0,{"$f":"SUMPRODUCT(((Dataset[Econ3]=$G63))*Dataset[2029/30 From - Spending review Topic 2]*$B$3)","v":0},{"$f":"SUMPRODUCT(((Dataset[Econ3]=$G63))*Dataset[2029/30 To - Spending review Topic 2]*$B$3)","v":0},0,0,0,0]
["Spending review topic 2",0,null,null,null,null,"Biological assets",{"$f":"SUMPRODUCT(((Dataset[Econ3]=$G64))*Dataset[2027/28 From - Spending review Topic 2]*$B$3)","v":0},{"$f":"SUMPRODUCT(((Dataset[Econ3]=$G64))*Dataset[2027/28 To - Spending review Topic 2]*$B$3)","v":0},0,{"$f":"SUMPRODUCT(((Dataset[Econ3]=$G64))*Dataset[2028/29 From - Spending review Topic 2]*$B$3)","v":0},{"$f":"SUMPRODUCT(((Dataset[Econ3]=$G64))*Dataset[2028/29 To - Spending review Topic 2]*$B$3)","v":0},0,{"$f":"SUMPRODUCT(((Dataset[Econ3]=$G64))*Dataset[2029/30 From - Spending review Topic 2]*$B$3)","v":0},{"$f":"SUMPRODUCT(((Dataset[Econ3]=$G64))*Dataset[2029/30 To - Spending review Topic 2]*$B$3)","v":0},0,0,0,0]
["Spending review topic 2",0,null,null,null,null,"Land and sub-soil assets",{"$f":"SUMPRODUCT(((Dataset[Econ3]=$G65))*Dataset[2027/28 From - Spending review Topic 2]*$B$3)","v":0},{"$f":"SUMPRODUCT(((Dataset[Econ3]=$G65))*Dataset[2027/28 To - Spending review Topic 2]*$B$3)","v":0},0,{"$f":"SUMPRODUCT(((Dataset[Econ3]=$G65))*Dataset[2028/29 From - Spending review Topic 2]*$B$3)","v":0},{"$f":"SUMPRODUCT(((Dataset[Econ3]=$G65))*Dataset[2028/29 To - Spending review Topic 2]*$B$3)","v":0},0,{"$f":"SUMPRODUCT(((Dataset[Econ3]=$G65))*Dataset[2029/30 From - Spending review Topic 2]*$B$3)","v":0},{"$f":"SUMPRODUCT(((Dataset[Econ3]=$G65))*Dataset[2029/30 To - Spending review Topic 2]*$B$3)","v":0},0,0,0,0]
["Spending review topic 2",0,null,null,null,null,"Software and other intangible assets",{"$f":"SUMPRODUCT(((Dataset[Econ3]=$G66))*Dataset[2027/28 From - Spending review Topic 2]*$B$3)","v":0},{"$f":"SUMPRODUCT(((Dataset[Econ3]=$G66))*Dataset[2027/28 To - Spending review Topic 2]*$B$3)","v":0},0,{"$f":"SUMPRODUCT(((Dataset[Econ3]=$G66))*Dataset[2028/29 From - Spending review Topic 2]*$B$3)","v":0},{"$f":"SUMPRODUCT(((Dataset[Econ3]=$G66))*Dataset[2028/29 To - Spending review Topic 2]*$B$3)","v":0},0,{"$f":"SUMPRODUCT(((Dataset[Econ3]=$G66))*Dataset[2029/30 From - Spending review Topic 2]*$B$3)","v":0},{"$f":"SUMPRODUCT(((Dataset[Econ3]=$G66))*Dataset[2029/30 To - Spending review Topic 2]*$B$3)","v":0},0,0,0,0]
["Spending review topic 2",0,null,null,null,null,"Payments for financial assets",{"$f":"SUMPRODUCT(((Dataset[Econ3]=$G67))*Dataset[2027/28 From - Spending review Topic 2]*$B$3)","v":0},{"$f":"SUMPRODUCT(((Dataset[Econ3]=$G67))*Dataset[2027/28 To - Spending review Topic 2]*$B$3)","v":0},0,{"$f":"SUMPRODUCT(((Dataset[Econ3]=$G67))*Dataset[2028/29 From - Spending review Topic 2]*$B$3)","v":0},{"$f":"SUMPRODUCT(((Dataset[Econ3]=$G67))*Dataset[2028/29 To - Spending review Topic 2]*$B$3)","v":0},0,{"$f":"SUMPRODUCT(((Dataset[Econ3]=$G67))*Dataset[2029/30 From - Spending review Topic 2]*$B$3)","v":0},{"$f":"SUMPRODUCT(((Dataset[Econ3]=$G67))*Dataset[2029/30 To - Spending review Topic 2]*$B$3)","v":0},0,0,0,0]
["Spending review topic 2",0,null,null,null,null,"Total",{"$f":"SUM(H35,H39,H55,H67)","v":0},0,0,0,0,0,0,0,0,0,0,0]
[]
[]
[]
[]
[null,null,null,null,null,null,{"$f":"\"IMPACT OF ADJUSTMENTS: \" &UPPER($G$3)","v":"IMPACT OF ADJUSTMENTS: SPENDING REVIEW TOPIC 2"}]
[]
[null,null,null,null,null,1,"Impact of adjustments on expenditure"]
[{"$f":"$G$3","v":"Spending review topic 2"},5,null,null,null,null,null,{"$f":"MyYear4","v":"2026/27"},null,null,{"$f":"MyYear5","v":"2027/28"},null,null,{"$f":"MyYear6","v":"2028/29"},null,null,{"$f":"MyYear7","v":"2029/30"}]
["Spending review topic 2",5,null,null,null,null,null,"Current expenditure","Potential expenditure @ benchmark level","% Savings if benchmark is achieved","Original number","Change in expenditure","Saving as % of original number","Original number","Change in expenditure","Saving as % of original number","Original number","Change in expenditure","Saving as % of original number"]
["Spending review topic 2",5,null,null,null,null,"Total",null,null,{"$f":"IFERROR((H78-I78)/-H78,\"\")","v":""},null,null,{"$f":"IFERROR((K78-L78)/-K78,\"\")","v":""},null,null,{"$f":"IFERROR((N78-O78)/-N78,\"\")","v":""},null,null,{"$f":"IFERROR((Q78-R78)/-Q78,\"\")","v":""}]
[]
[]
[]
[]
[]
[null,null,null,null,null,2,"Summary of impact on service delivery/policy area due to adjustments"]
[{"$f":"$G$3","v":"Spending review topic 2"},1]
["Spending review topic 2",1]
["Spending review topic 2",1]
["Spending review topic 2",1]
["Spending review topic 2",1]
["Spending review topic 2",1]
["Spending review topic 2",1]
["Spending review topic 2",1]
["Spending review topic 2",1]
["Spending review topic 2",1]
["Spending review topic 2",1]
["Spending review topic 2",1]
["Spending review topic 2",1]
["Spending review topic 2",1]
["Spending review topic 2",1]
[]
[]
[]
[]
[]
[null,null,null,null,null,3,"Impact of adjustments on performance indicators"]
[{"$f":"$G$3","v":"Spending review topic 2"},2,null,null,null,null,null,{"$f":"MyYear4","v":"2026/27"},null,null,{"$f":"MyYear5","v":"2027/28"},null,null,{"$f":"MyYear6","v":"2028/29"},null,null,{"$f":"MyYear7","v":"2029/30"},null,null," Comment",null,null,null,null,"Related MTSF Priority"]
["Spending review topic 2",2,null,null,null,null,"Performance indicator","Current performance","Performance @ benchmark level","Change","Original target","Revised target","Change","Original target","Revised target","Change","Original target","Revised target","Change"]
["Spending review topic 2",2]
["Spending review topic 2",2]
["Spending review topic 2",2]
["Spending review topic 2",2]
["Spending review topic 2",2]
["Spending review topic 2",2]
["Spending review topic 2",2]
["Spending review topic 2",2]
["Spending review topic 2",2]
["Spending review topic 2",2]
["Spending review topic 2",2]
["Spending review topic 2",2]
["Spending review topic 2",2]
["Spending review topic 2",2]
["Spending review topic 2",2]
[]
[]
[]
[]
[]
[null,null,null,null,null,4,"Impact of adjustments on personnel headcount numbers"]
[{"$f":"$G$3","v":"Spending review topic 2"},4,null,null,null,null,null,{"$f":"MyYear4","v":"2026/27"},null,null,{"$f":"MyYear5","v":"2027/28"},null,null,{"$f":"MyYear6","v":"2028/29"},null,null,{"$f":"MyYear7","v":"2029/30"},null,null," Comment"]
["Spending review topic 2",4,null,null,null,null,"Salary level","Current number","Potential number if benchmark is achieved","Change in number","Original number","Revised number","Change in number","Original number","Revised number","Change in number","Original number","Revised number","Change in number"]
["Spending review topic 2",4,null,null,null,null,1,null,null,{"$f":"I131-H131","v":0},null,null,{"$f":"L131-K131","v":0},null,null,{"$f":"O131-N131","v":0},null,null,{"$f":"R131-Q131","v":0}]
["Spending review topic 2",4,null,null,null,null,2,null,null,0,null,null,0,null,null,0,null,null,0]
["Spending review topic 2",4,null,null,null,null,3,null,null,0,null,null,0,null,null,0,null,null,0]
["Spending review topic 2",4,null,null,null,null,4,null,null,0,null,null,0,null,null,0,null,null,0]
["Spending review topic 2",4,null,null,null,null,5,null,null,0,null,null,0,null,null,0,null,null,0]
["Spending review topic 2",4,null,null,null,null,6,null,null,0,null,null,0,null,null,0,null,null,0]
["Spending review topic 2",4,null,null,null,null,7,null,null,0,null,null,0,null,null,0,null,null,0]
["Spending review topic 2",4,null,null,null,null,8,null,null,0,null,null,0,null,null,0,null,null,0]
["Spending review topic 2",4,null,null,null,null,9,null,null,0,null,null,0,null,null,0,null,null,0]
["Spending review topic 2",4,null,null,null,null,10,null,null,0,null,null,0,null,null,0,null,null,0]
["Spending review topic 2",4,null,null,null,null,11,null,null,0,null,null,0,null,null,0,null,null,0]
["Spending review topic 2",4,null,null,null,null,12,null,null,0,null,null,0,null,null,0,null,null,0]
["Spending review topic 2",4,null,null,null,null,13,null,null,0,null,null,0,null,null,0,null,null,0]
["Spending review topic 2",4,null,null,null,null,14,null,null,0,null,null,0,null,null,0,null,null,0]
["Spending review topic 2",4,null,null,null,null,15,null,null,0,null,null,0,null,null,0,null,null,0]
["Spending review topic 2",4,null,null,null,null,16,null,null,0,null,null,0,null,null,0,null,null,0]
["Spending review topic 2",4,null,null,null,null,"Other",null,null,0,null,null,0,null,null,0,null,null,0]
["Spending review topic 2",4,null,null,null,null,"Other",null,null,0,null,null,0,null,null,0,null,null,0]
["Spending review topic 2",4,null,null,null,null,"Other",null,null,0,null,null,0,null,null,0,null,null,0]
["Spending review topic 2",4,null,null,null,null,"Other",null,null,0,null,null,0,null,null,0,null,null,0]
["Spending review topic 2",4,null,null,null,null,"Total",{"$f":"SUM(H131:H150)","v":0},0,0,{"$f":"SUM(K131:K150)","v":0},0,0,0,0,0,0,0,0]
[]
[]
[]
[]
[]
[null,null,null,null,null,5,"Impact of adjustments on infrastructure projects"]
[{"$f":"$G$3","v":"Spending review topic 2"},3,null,null,null,null,null,{"$f":"MyYear4","v":"2026/27"},null,null,{"$f":"MyYear5","v":"2027/28"},null,null,{"$f":"MyYear6","v":"2028/29"},null,null,{"$f":"MyYear7","v":"2029/30"},null,null," Comment"]
["Spending review topic 2",3,null,null,null,null,"Project name","Current number","Market or best in class benchmark","Change","Original amount","Revised amount","Change","Original amount","Revised amount","Change","Original amount","Revised amount","Change"]
["Spending review topic 2",3,null,null,null,null,null,null,null,{"$f":"I160-H160","v":0},null,null,{"$f":"L160-K160","v":0},null,null,{"$f":"O160-N160","v":0},null,null,{"$f":"R160-Q160","v":0}]
["Spending review topic 2",3,null,null,null,null,null,null,null,0,null,null,0,null,null,0,null,null,0]
["Spending review topic 2",3,null,null,null,null,null,null,null,0,null,null,0,null,null,0,null,null,0]
["Spending review topic 2",3,null,null,null,null,null,null,null,0,null,null,0,null,null,0,null,null,0]
["Spending review topic 2",3,null,null,null,null,null,null,null,0,null,null,0,null,null,0,null,null,0]
["Spending review topic 2",3,null,null,null,null,null,null,null,0,null,null,0,null,null,0,null,null,0]
["Spending review topic 2",3,null,null,null,null,null,null,null,0,null,null,0,null,null,0,null,null,0]
["Spending review topic 2",3,null,null,null,null,null,null,null,0,null,null,0,null,null,0,null,null,0]
["Spending review topic 2",3,null,null,null,null,null,null,null,0,null,null,0,null,null,0,null,null,0]
["Spending review topic 2",3,null,null,null,null,null,null,null,0,null,null,0,null,null,0,null,null,0]
["Spending review topic 2",3,null,null,null,null,null,null,null,0,null,null,0,null,null,0,null,null,0]
["Spending review topic 2",3,null,null,null,null,null,null,null,0,null,null,0,null,null,0,null,null,0]
["Spending review topic 2",3,null,null,null,null,null,null,null,0,null,null,0,null,null,0,null,null,0]
["Spending review topic 2",3,null,null,null,null,null,null,null,0,null,null,0,null,null,0,null,null,0]
["Spending review topic 2",3,null,null,null,null,null,null,null,0,null,null,0,null,null,0,null,null,0]
["Spending review topic 2",3,null,null,null,null,null,null,null,0,null,null,0,null,null,0,null,null,0]
["Spending review topic 2",3,null,null,null,null,null,null,null,0,null,null,0,null,null,0,null,null,0]
["Spending review topic 2",3,null,null,null,null,null,null,null,0,null,null,0,null,null,0,null,null,0]
["Spending review topic 2",3,null,null,null,null,null,null,null,0,null,null,0,null,null,0,null,null,0]
["Spending review topic 2",3,null,null,null,null,null,null,null,0,null,null,0,null,null,0,null,null,0]
["Spending review topic 2",3,null,null,null,null,null,null,null,0,null,null,0,null,null,0,null,null,0]
["Spending review topic 2",3,null,null,null,null,null,null,null,0,null,null,0,null,null,0,null,null,0]
["Spending review topic 2",3,null,null,null,null,null,null,null,0,null,null,0,null,null,0,null,null,0]
["Spending review topic 2",3,null,null,null,null,null,null,null,0,null,null,0,null,null,0,null,null,0]
["Spending review topic 2",3,null,null,null,null,null,null,null,0,null,null,0,null,null,0,null,null,0]
["Spending review topic 2",3,null,null,null,null,null,null,null,0,null,null,0,null,null,0,null,null,0]
["Spending review topic 2",3,null,null,null,null,null,null,null,0,null,null,0,null,null,0,null,null,0]
["Spending review topic 2",3,null,null,null,null,null,null,null,0,null,null,0,null,null,0,null,null,0]
["Spending review topic 2",3,null,null,null,null,null,null,null,0,null,null,0,null,null,0,null,null,0]
["Spending review topic 2",3,null,null,null,null,null,null,null,0,null,null,0,null,null,0,null,null,0]
["Spending review topic 2",3,null,null,null,null,null,null,null,0,null,null,0,null,null,0,null,null,0]
["Spending review topic 2",3,null,null,null,null,null,null,null,0,null,null,0,null,null,0,null,null,0]
["Spending review topic 2",3,null,null,null,null,null,null,null,0,null,null,0,null,null,0,null,null,0]
["Spending review topic 2",3,null,null,null,null,null,null,null,0,null,null,0,null,null,0,null,null,0]
["Spending review topic 2",3,null,null,null,null,null,null,null,0,null,null,0,null,null,0,null,null,0]
["Spending review topic 2",3,null,null,null,null,null,null,null,0,null,null,0,null,null,0,null,null,0]
["Spending review topic 2",3,null,null,null,null,null,null,null,0,null,null,0,null,null,0,null,null,0]
["Spending review topic 2",3,null,null,null,null,null,null,null,0,null,null,0,null,null,0,null,null,0]
["Spending review topic 2",3,null,null,null,null,null,null,null,0,null,null,0,null,null,0,null,null,0]
["Spending review topic 2",3,null,null,null,null,null,null,null,0,null,null,0,null,null,0,null,null,0]
["Spending review topic 2",3,null,null,null,null,null,null,null,0,null,null,0,null,null,0,null,null,0]
["Spending review topic 2",3,null,null,null,null,null,null,null,0,null,null,0,null,null,0,null,null,0]
["Spending review topic 2",3,null,null,null,null,null,null,null,0,null,null,0,null,null,0,null,null,0]
["Spending review topic 2",3,null,null,null,null,null,null,null,0,null,null,0,null,null,0,null,null,0]
["Spending review topic 2",3,null,null,null,null,null,null,null,0,null,null,0,null,null,0,null,null,0]
["Spending review topic 2",3,null,null,null,null,null,null,null,0,null,null,0,null,null,0,null,null,0]
["Spending review topic 2",3,null,null,null,null,null,null,null,0,null,null,0,null,null,0,null,null,0]
["Spending review topic 2",3,null,null,null,null,null,null,null,0,null,null,0,null,null,0,null,null,0]
["Spending review topic 2",3,null,null,null,null,null,null,null,0,null,null,0,null,null,0,null,null,0]
["Spending review topic 2",3,null,null,null,null,null,null,null,0,null,null,0,null,null,0,null,null,0]
["Spending review topic 2",3,null,null,null,null,"Total",{"$f":"SUM(H160:H209)","v":0},0,0,0,0,0,0,0,0,0,0,0]

{"sheet":"SRT3","index":16,"n_rows":210,"n_cols":25,"rows_kept":210,"cut":false,"hidden":false,"merged":[[208,19,208,23],[202,19,202,23],[203,19,203,23],[204,19,204,23],[205,19,205,23],[206,19,206,23],[207,19,207,23],[201,19,201,23],[190,19,190,23],[191,19,191,23],[192,19,192,23],[193,19,193,23],[194,19,194,23],[195,19,195,23],[196,19,196,23],[197,19,197,23],[198,19,198,23],[199,19,199,23],[200,19,200,23],[189,19,189,23],[178,19,178,23],[179,19,179,23],[180,19,180,23],[181,19,181,23],[182,19,182,23],[183,19,183,23],[184,19,184,23],[185,19,185,23],[186,19,186,23],[187,19,187,23],[188,19,188,23],[177,19,177,23],[166,19,166,23],[167,19,167,23],[168,19,168,23],[169,19,169,23],[170,19,170,23],[171,19,171,23],[172,19,172,23],[173,19,173,23],[174,19,174,23],[175,19,175,23],[176,19,176,23],[165,19,165,23],[128,19,128,23],[129,19,129,23],[130,19,149,23],[157,19,157,23],[158,19,158,23],[159,19,159,23],[160,19,160,23],[161,19,161,23],[162,19,162,23],[163,19,163,23],[164,19,164,23],[119,19,119,23],[119,24,119,26],[120,19,120,23],[120,24,120,26],[121,19,121,23],[121,24,121,26],[116,19,116,23],[116,24,116,26],[117,19,117,23],[117,24,117,26],[118,19,118,23],[118,24,118,26],[113,19,113,23],[113,24,113,26],[114,19,114,23],[114,24,114,26],[115,19,115,23],[115,24,115,26],[110,19,110,23],[110,24,110,26],[111,19,111,23],[111,24,111,26],[112,19,112,23],[112,24,112,26],[107,19,107,23],[107,24,107,26],[108,19,108,23],[108,24,108,26],[109,19,109,23],[109,24,109,26],[72,6,72,18],[84,6,98,18],[105,19,105,23],[105,24,105,26],[106,19,106,23],[106,24,106,26]]}
[]
[null,null,null,null,null,null,"Spending review topic…"]
[null,{"$f":"IF(G3=\"\",0,1)","v":1},null,null,null,3,{"$f":"SRTopic3","v":"Spending review topic 3"}]
[]
[null,null,null,null,null,null,"Quick view…(Total change)",{"$f":"MyYear5","v":"2027/28"},{"$f":"MyYear6","v":"2028/29"},{"$f":"MyYear7","v":"2029/30"},"MTEF total","Trend"]
[null,null,null,null,null,null,"Compensation of employees",{"$f":"SUMPRODUCT(($G$35:$G$68=$G6)*($J$35:$J$68))","v":0},{"$f":"SUMPRODUCT(($G$35:$G$68=$G6)*($M$35:$M$68))","v":0},{"$f":"SUMPRODUCT(($G$35:$G$68=$G6)*($P$35:$P$68))","v":0},{"$f":"SUM(H6:J6)","v":0},null,null,"CoE"]
[null,null,null,null,null,null,"Goods and services",{"$f":"SUMPRODUCT(($G$35:$G$68=$G7)*($J$35:$J$68))","v":0},{"$f":"SUMPRODUCT(($G$35:$G$68=$G7)*($M$35:$M$68))","v":0},{"$f":"SUMPRODUCT(($G$35:$G$68=$G7)*($P$35:$P$68))","v":0},0,null,null,"G&S"]
[null,null,null,null,null,null,"Transfers and subsidies",{"$f":"SUMPRODUCT(($G$35:$G$68=$G8)*($J$35:$J$68))","v":0},{"$f":"SUMPRODUCT(($G$35:$G$68=$G8)*($M$35:$M$68))","v":0},{"$f":"SUMPRODUCT(($G$35:$G$68=$G8)*($P$35:$P$68))","v":0},0,null,null,"T&S"]
[null,null,null,null,null,null,"Payments for capital assets",{"$f":"SUMPRODUCT(($G$35:$G$68=$G9)*($J$35:$J$68))","v":0},{"$f":"SUMPRODUCT(($G$35:$G$68=$G9)*($M$35:$M$68))","v":0},{"$f":"SUMPRODUCT(($G$35:$G$68=$G9)*($P$35:$P$68))","v":0},0,null,null,"Capital"]
[null,null,null,null,null,null,"Total",{"$f":"SUMPRODUCT(($G$35:$G$68=$G10)*($J$35:$J$68))","v":0},{"$f":"SUMPRODUCT(($G$35:$G$68=$G10)*($M$35:$M$68))","v":0},{"$f":"SUMPRODUCT(($G$35:$G$68=$G10)*($P$35:$P$68))","v":0},0,null,null,"Total"]
[null,null,null,null,null,null,"% of MTEF total",null,null,null,null,null,null,null,null,null,null,null,{"$f":"MyYear5","v":"2027/28"},{"$f":"MyYear6","v":"2028/29"},{"$f":"MyYear7","v":"2029/30"}]
[null,null,null,null,null,null,"Compensation of employees",{"$f":"IFERROR(H6/$K6,\"\")","v":""},"","",null,null,null,null,null,null,null,{"$f":"G12","v":"Compensation of employees"},{"$f":"IF(H12>0.0595,H12,\"\")","v":""},"",""]
[null,null,null,null,null,null,"Goods and services","","","",null,null,null,null,null,null,null,{"$f":"G13","v":"Goods and services"},"","",""]
[null,null,null,null,null,null,"Transfers and subsidies","","","",null,null,null,null,null,null,null,{"$f":"G14","v":"Transfers and subsidies"},"","",""]
[null,null,null,null,null,null,"Payments for capital assets","","","",null,null,null,null,null,null,null,{"$f":"G15","v":"Payments for capital assets"},"","",""]
[]
[null,null,null,null,null,null,"Division of Revenue",{"$f":"MyYear5","v":"2027/28"},{"$f":"MyYear6","v":"2028/29"},{"$f":"MyYear7","v":"2029/30"},"MTEF total","Trend"]
[null,null,null,null,null,null,"National",{"$f":"SUM(H19:H21)","v":0},0,0,{"$f":"SUM(H18:J18)","v":0}]
[{"$f":"$G$3","v":"Spending review topic 3"},"NAT",null,null,null,null,"National (excl. indirect grants)",{"$f":"SUMPRODUCT(((Dataset[DOR]=$B19))*Dataset[2027/28 From - Spending review Topic 3])+SUMPRODUCT(((Dataset[DOR]=$B19))*Dataset[2027/28 To - Spending review Topic 3])","v":0},{"$f":"SUMPRODUCT(((Dataset[DOR]=$B19))*Dataset[2028/29 From - Spending review Topic 3])+SUMPRODUCT(((Dataset[DOR]=$B19))*Dataset[2028/29 To - Spending review Topic 3])","v":0},{"$f":"SUMPRODUCT(((Dataset[DOR]=$B19))*Dataset[2029/30 From - Spending review Topic 3])+SUMPRODUCT(((Dataset[DOR]=$B19))*Dataset[2029/30 To - Spending review Topic 3])","v":0},0]
["Spending review topic 3","IGP",null,null,null,null,"Provincial indirect grants",{"$f":"SUMPRODUCT(((Dataset[DOR]=$B20))*Dataset[2027/28 From - Spending review Topic 3])+SUMPRODUCT(((Dataset[DOR]=$B20))*Dataset[2027/28 To - Spending review Topic 3])","v":0},{"$f":"SUMPRODUCT(((Dataset[DOR]=$B20))*Dataset[2028/29 From - Spending review Topic 3])+SUMPRODUCT(((Dataset[DOR]=$B20))*Dataset[2028/29 To - Spending review Topic 3])","v":0},{"$f":"SUMPRODUCT(((Dataset[DOR]=$B20))*Dataset[2029/30 From - Spending review Topic 3])+SUMPRODUCT(((Dataset[DOR]=$B20))*Dataset[2029/30 To - Spending review Topic 3])","v":0},0]
["Spending review topic 3","IGM",null,null,null,null,"Local indirect grants",{"$f":"SUMPRODUCT(((Dataset[DOR]=$B21))*Dataset[2027/28 From - Spending review Topic 3])+SUMPRODUCT(((Dataset[DOR]=$B21))*Dataset[2027/28 To - Spending review Topic 3])","v":0},{"$f":"SUMPRODUCT(((Dataset[DOR]=$B21))*Dataset[2028/29 From - Spending review Topic 3])+SUMPRODUCT(((Dataset[DOR]=$B21))*Dataset[2028/29 To - Spending review Topic 3])","v":0},{"$f":"SUMPRODUCT(((Dataset[DOR]=$B21))*Dataset[2029/30 From - Spending review Topic 3])+SUMPRODUCT(((Dataset[DOR]=$B21))*Dataset[2029/30 To - Spending review Topic 3])","v":0},0]
["Spending review topic 3",null,null,null,null,null,"Provincial",{"$f":"SUMPRODUCT(((Dataset[DOR]=$B22))*Dataset[2027/28 From - Spending review Topic 3])+SUMPRODUCT(((Dataset[DOR]=$B22))*Dataset[2027/28 To - Spending review Topic 3])","v":0},{"$f":"SUMPRODUCT(((Dataset[DOR]=$B22))*Dataset[2028/29 From - Spending review Topic 3])+SUMPRODUCT(((Dataset[DOR]=$B22))*Dataset[2028/29 To - Spending review Topic 3])","v":0},{"$f":"SUMPRODUCT(((Dataset[DOR]=$B22))*Dataset[2029/30 From - Spending review Topic 3])+SUMPRODUCT(((Dataset[DOR]=$B22))*Dataset[2029/30 To - Spending review Topic 3])","v":0},0]
["Spending review topic 3","PES",null,null,null,null,"Provincial equitable share",{"$f":"SUMPRODUCT(((Dataset[DOR]=$B23))*Dataset[2027/28 From - Spending review Topic 3])+SUMPRODUCT(((Dataset[DOR]=$B23))*Dataset[2027/28 To - Spending review Topic 3])","v":0},{"$f":"SUMPRODUCT(((Dataset[DOR]=$B23))*Dataset[2028/29 From - Spending review Topic 3])+SUMPRODUCT(((Dataset[DOR]=$B23))*Dataset[2028/29 To - Spending review Topic 3])","v":0},{"$f":"SUMPRODUCT(((Dataset[DOR]=$B23))*Dataset[2029/30 From - Spending review Topic 3])+SUMPRODUCT(((Dataset[DOR]=$B23))*Dataset[2029/30 To - Spending review Topic 3])","v":0},0]
["Spending review topic 3","PCG",null,null,null,null,"Provincial conditional grants",{"$f":"SUMPRODUCT(((Dataset[DOR]=$B24))*Dataset[2027/28 From - Spending review Topic 3])+SUMPRODUCT(((Dataset[DOR]=$B24))*Dataset[2027/28 To - Spending review Topic 3])","v":0},{"$f":"SUMPRODUCT(((Dataset[DOR]=$B24))*Dataset[2028/29 From - Spending review Topic 3])+SUMPRODUCT(((Dataset[DOR]=$B24))*Dataset[2028/29 To - Spending review Topic 3])","v":0},{"$f":"SUMPRODUCT(((Dataset[DOR]=$B24))*Dataset[2029/30 From - Spending review Topic 3])+SUMPRODUCT(((Dataset[DOR]=$B24))*Dataset[2029/30 To - Spending review Topic 3])","v":0},0]
["Spending review topic 3",null,null,null,null,null,"Local government",{"$f":"SUMPRODUCT(((Dataset[DOR]=$B25))*Dataset[2027/28 From - Spending review Topic 3])+SUMPRODUCT(((Dataset[DOR]=$B25))*Dataset[2027/28 To - Spending review Topic 3])","v":0},{"$f":"SUMPRODUCT(((Dataset[DOR]=$B25))*Dataset[2028/29 From - Spending review Topic 3])+SUMPRODUCT(((Dataset[DOR]=$B25))*Dataset[2028/29 To - Spending review Topic 3])","v":0},{"$f":"SUMPRODUCT(((Dataset[DOR]=$B25))*Dataset[2029/30 From - Spending review Topic 3])+SUMPRODUCT(((Dataset[DOR]=$B25))*Dataset[2029/30 To - Spending review Topic 3])","v":0},0]
["Spending review topic 3","LES",null,null,null,null,"Local equitable share",{"$f":"SUMPRODUCT(((Dataset[DOR]=$B26))*Dataset[2027/28 From - Spending review Topic 3])+SUMPRODUCT(((Dataset[DOR]=$B26))*Dataset[2027/28 To - Spending review Topic 3])","v":0},{"$f":"SUMPRODUCT(((Dataset[DOR]=$B26))*Dataset[2028/29 From - Spending review Topic 3])+SUMPRODUCT(((Dataset[DOR]=$B26))*Dataset[2028/29 To - Spending review Topic 3])","v":0},{"$f":"SUMPRODUCT(((Dataset[DOR]=$B26))*Dataset[2029/30 From - Spending review Topic 3])+SUMPRODUCT(((Dataset[DOR]=$B26))*Dataset[2029/30 To - Spending review Topic 3])","v":0},0]
["Spending review topic 3","LCG",null,null,null,null,"Local conditional grants",{"$f":"SUMPRODUCT(((Dataset[DOR]=$B27))*Dataset[2027/28 From - Spending review Topic 3])+SUMPRODUCT(((Dataset[DOR]=$B27))*Dataset[2027/28 To - Spending review Topic 3])","v":0},{"$f":"SUMPRODUCT(((Dataset[DOR]=$B27))*Dataset[2028/29 From - Spending review Topic 3])+SUMPRODUCT(((Dataset[DOR]=$B27))*Dataset[2028/29 To - Spending review Topic 3])","v":0},{"$f":"SUMPRODUCT(((Dataset[DOR]=$B27))*Dataset[2029/30 From - Spending review Topic 3])+SUMPRODUCT(((Dataset[DOR]=$B27))*Dataset[2029/30 To - Spending review Topic 3])","v":0},0]
["Spending review topic 3","GFL",null,null,null,null,"General fuel levy ",{"$f":"SUMPRODUCT(((Dataset[DOR]=$B28))*Dataset[2027/28 From - Spending review Topic 3])+SUMPRODUCT(((Dataset[DOR]=$B28))*Dataset[2027/28 To - Spending review Topic 3])","v":0},{"$f":"SUMPRODUCT(((Dataset[DOR]=$B28))*Dataset[2028/29 From - Spending review Topic 3])+SUMPRODUCT(((Dataset[DOR]=$B28))*Dataset[2028/29 To - Spending review Topic 3])","v":0},{"$f":"SUMPRODUCT(((Dataset[DOR]=$B28))*Dataset[2029/30 From - Spending review Topic 3])+SUMPRODUCT(((Dataset[DOR]=$B28))*Dataset[2029/30 To - Spending review Topic 3])","v":0},0]
[]
[]
[null,null,null,null,null,null,{"$f":"G3","v":"Spending review topic 3"}]
[{"$f":"$G$3","v":"Spending review topic 3"},0,null,null,null,null,null,{"$f":"MyYear5","v":"2027/28"},null,null,{"$f":"MyYear6","v":"2028/29"},null,null,{"$f":"MyYear7","v":"2029/30"},null,null,"Total over MTEF"]
[{"$f":"$G$3","v":"Spending review topic 3"},0,null,null,null,null,"Rand thousand","From","To","Total change","From","To","Total change","From","To","Total change","From","To","Total change"]
["Spending review topic 3",0,null,null,null,null,"Economic classification"]
["Spending review topic 3",0,null,null,null,null,"Current payments",{"$f":"SUM(H36:H38)","v":0},0,0,0,0,0,0,0,0,0,0,0]
["Spending review topic 3",0,null,null,null,null,"Compensation of employees",{"$f":"SUMPRODUCT(((Dataset[Econ3]=$G36))*Dataset[2027/28 From - Spending review Topic 3]*$B$3)","v":0},{"$f":"SUMPRODUCT(((Dataset[Econ3]=$G36))*Dataset[2027/28 To - Spending review Topic 3]*$B$3)","v":0},{"$f":"H36+I36","v":0},{"$f":"SUMPRODUCT(((Dataset[Econ3]=$G36))*Dataset[2028/29 From - Spending review Topic 3]*$B$3)","v":0},{"$f":"SUMPRODUCT(((Dataset[Econ3]=$G36))*Dataset[2028/29 To - Spending review Topic 3]*$B$3)","v":0},{"$f":"K36+L36","v":0},{"$f":"SUMPRODUCT(((Dataset[Econ3]=$G36))*Dataset[2029/30 From - Spending review Topic 3]*$B$3)","v":0},{"$f":"SUMPRODUCT(((Dataset[Econ3]=$G36))*Dataset[2029/30 To - Spending review Topic 3]*$B$3)","v":0},{"$f":"N36+O36","v":0},{"$f":"SUM(H36,K36,N36)","v":0},0,0]
["Spending review topic 3",0,null,null,null,null,"Goods and services",{"$f":"SUMPRODUCT(((Dataset[Econ3]=$G37))*Dataset[2027/28 From - Spending review Topic 3]*$B$3)","v":0},{"$f":"SUMPRODUCT(((Dataset[Econ3]=$G37))*Dataset[2027/28 To - Spending review Topic 3]*$B$3)","v":0},0,{"$f":"SUMPRODUCT(((Dataset[Econ3]=$G37))*Dataset[2028/29 From - Spending review Topic 3]*$B$3)","v":0},{"$f":"SUMPRODUCT(((Dataset[Econ3]=$G37))*Dataset[2028/29 To - Spending review Topic 3]*$B$3)","v":0},0,{"$f":"SUMPRODUCT(((Dataset[Econ3]=$G37))*Dataset[2029/30 From - Spending review Topic 3]*$B$3)","v":0},{"$f":"SUMPRODUCT(((Dataset[Econ3]=$G37))*Dataset[2029/30 To - Spending review Topic 3]*$B$3)","v":0},0,0,0,0]
["Spending review topic 3",0,null,null,null,null,"Interest and rent on land",{"$f":"SUMPRODUCT(((Dataset[Econ3]=$G38))*Dataset[2027/28 From - Spending review Topic 3]*$B$3)","v":0},{"$f":"SUMPRODUCT(((Dataset[Econ3]=$G38))*Dataset[2027/28 To - Spending review Topic 3]*$B$3)","v":0},0,{"$f":"SUMPRODUCT(((Dataset[Econ3]=$G38))*Dataset[2028/29 From - Spending review Topic 3]*$B$3)","v":0},{"$f":"SUMPRODUCT(((Dataset[Econ3]=$G38))*Dataset[2028/29 To - Spending review Topic 3]*$B$3)","v":0},0,{"$f":"SUMPRODUCT(((Dataset[Econ3]=$G38))*Dataset[2029/30 From - Spending review Topic 3]*$B$3)","v":0},{"$f":"SUMPRODUCT(((Dataset[Econ3]=$G38))*Dataset[2029/30 To - Spending review Topic 3]*$B$3)","v":0},0,0,0,0]
["Spending review topic 3",0,null,null,null,null,"Transfers and subsidies",{"$f":"SUM(H40,H43,H46:H48,H51:H52)","v":0},0,0,0,0,0,0,0,0,0,0,0]
["Spending review topic 3",0,null,null,null,null,"Provinces and municipalities",{"$f":"SUM(H41:H42)","v":0},0,0,0,0,0,0,0,0,0,0,0]
["Spending review topic 3",0,null,null,null,null,"Provinces",{"$f":"SUMPRODUCT(((Dataset[Econ4]=$G41))*Dataset[2027/28 From - Spending review Topic 3]*$B$3)","v":0},{"$f":"SUMPRODUCT(((Dataset[Econ4]=$G41))*Dataset[2027/28 To - Spending review Topic 3]*$B$3)","v":0},{"$f":"H41+I41","v":0},{"$f":"SUMPRODUCT(((Dataset[Econ4]=$G41))*Dataset[2028/29 From - Spending review Topic 3]*$B$3)","v":0},{"$f":"SUMPRODUCT(((Dataset[Econ4]=$G41))*Dataset[2028/29 To - Spending review Topic 3]*$B$3)","v":0},{"$f":"K41+L41","v":0},{"$f":"SUMPRODUCT(((Dataset[Econ4]=$G41))*Dataset[2029/30 From - Spending review Topic 3]*$B$3)","v":0},{"$f":"SUMPRODUCT(((Dataset[Econ4]=$G41))*Dataset[2029/30 To - Spending review Topic 3]*$B$3)","v":0},{"$f":"N41+O41","v":0},{"$f":"SUM(H41,K41,N41)","v":0},0,0]
["Spending review topic 3",0,null,null,null,null,"Municipalities",{"$f":"SUMPRODUCT(((Dataset[Econ4]=$G42))*Dataset[2027/28 From - Spending review Topic 3]*$B$3)","v":0},{"$f":"SUMPRODUCT(((Dataset[Econ4]=$G42))*Dataset[2027/28 To - Spending review Topic 3]*$B$3)","v":0},0,{"$f":"SUMPRODUCT(((Dataset[Econ4]=$G42))*Dataset[2028/29 From - Spending review Topic 3]*$B$3)","v":0},{"$f":"SUMPRODUCT(((Dataset[Econ4]=$G42))*Dataset[2028/29 To - Spending review Topic 3]*$B$3)","v":0},0,{"$f":"SUMPRODUCT(((Dataset[Econ4]=$G42))*Dataset[2029/30 From - Spending review Topic 3]*$B$3)","v":0},{"$f":"SUMPRODUCT(((Dataset[Econ4]=$G42))*Dataset[2029/30 To - Spending review Topic 3]*$B$3)","v":0},0,0,0,0]
["Spending review topic 3",0,null,null,null,null,"Departmental agencies and accounts",{"$f":"SUM(H44:H45)","v":0},0,0,0,0,0,0,0,0,0,0,0]
["Spending review topic 3",0,null,null,null,null,"Social security funds",{"$f":"SUMPRODUCT(((Dataset[Econ4]=$G44))*Dataset[2027/28 From - Spending review Topic 3]*$B$3)","v":0},{"$f":"SUMPRODUCT(((Dataset[Econ4]=$G44))*Dataset[2027/28 To - Spending review Topic 3]*$B$3)","v":0},{"$f":"H44+I44","v":0},{"$f":"SUMPRODUCT(((Dataset[Econ4]=$G44))*Dataset[2028/29 From - Spending review Topic 3]*$B$3)","v":0},{"$f":"SUMPRODUCT(((Dataset[Econ4]=$G44))*Dataset[2028/29 To - Spending review Topic 3]*$B$3)","v":0},{"$f":"K44+L44","v":0},{"$f":"SUMPRODUCT(((Dataset[Econ4]=$G44))*Dataset[2029/30 From - Spending review Topic 3]*$B$3)","v":0},{"$f":"SUMPRODUCT(((Dataset[Econ4]=$G44))*Dataset[2029/30 To - Spending review Topic 3]*$B$3)","v":0},{"$f":"N44+O44","v":0},{"$f":"SUM(H44,K44,N44)","v":0},0,0]
["Spending review topic 3",0,null,null,null,null,"Departmental agencies (non-business entities)",{"$f":"SUMPRODUCT(((Dataset[Econ4]=$G45))*Dataset[2027/28 From - Spending review Topic 3]*$B$3)","v":0},{"$f":"SUMPRODUCT(((Dataset[Econ4]=$G45))*Dataset[2027/28 To - Spending review Topic 3]*$B$3)","v":0},0,{"$f":"SUMPRODUCT(((Dataset[Econ4]=$G45))*Dataset[2028/29 From - Spending review Topic 3]*$B$3)","v":0},{"$f":"SUMPRODUCT(((Dataset[Econ4]=$G45))*Dataset[2028/29 To - Spending review Topic 3]*$B$3)","v":0},0,{"$f":"SUMPRODUCT(((Dataset[Econ4]=$G45))*Dataset[2029/30 From - Spending review Topic 3]*$B$3)","v":0},{"$f":"SUMPRODUCT(((Dataset[Econ4]=$G45))*Dataset[2029/30 To - Spending review Topic 3]*$B$3)","v":0},0,0,0,0]
["Spending review topic 3",0,null,null,null,null,"Higher education institutions",{"$f":"SUMPRODUCT(((Dataset[Econ3]=$G46))*Dataset[2027/28 From - Spending review Topic 3]*$B$3)","v":0},{"$f":"SUMPRODUCT(((Dataset[Econ3]=$G46))*Dataset[2027/28 To - Spending review Topic 3]*$B$3)","v":0},0,{"$f":"SUMPRODUCT(((Dataset[Econ3]=$G46))*Dataset[2028/29 From - Spending review Topic 3]*$B$3)","v":0},{"$f":"SUMPRODUCT(((Dataset[Econ3]=$G46))*Dataset[2028/29 To - Spending review Topic 3]*$B$3)","v":0},0,{"$f":"SUMPRODUCT(((Dataset[Econ3]=$G46))*Dataset[2029/30 From - Spending review Topic 3]*$B$3)","v":0},{"$f":"SUMPRODUCT(((Dataset[Econ3]=$G46))*Dataset[2029/30 To - Spending review Topic 3]*$B$3)","v":0},0,0,0,0]
["Spending review topic 3",0,null,null,null,null,"Foreign governments and international organisations",{"$f":"SUMPRODUCT(((Dataset[Econ3]=$G47))*Dataset[2027/28 From - Spending review Topic 3]*$B$3)","v":0},{"$f":"SUMPRODUCT(((Dataset[Econ3]=$G47))*Dataset[2027/28 To - Spending review Topic 3]*$B$3)","v":0},0,{"$f":"SUMPRODUCT(((Dataset[Econ3]=$G47))*Dataset[2028/29 From - Spending review Topic 3]*$B$3)","v":0},{"$f":"SUMPRODUCT(((Dataset[Econ3]=$G47))*Dataset[2028/29 To - Spending review Topic 3]*$B$3)","v":0},0,{"$f":"SUMPRODUCT(((Dataset[Econ3]=$G47))*Dataset[2029/30 From - Spending review Topic 3]*$B$3)","v":0},{"$f":"SUMPRODUCT(((Dataset[Econ3]=$G47))*Dataset[2029/30 To - Spending review Topic 3]*$B$3)","v":0},0,0,0,0]
["Spending review topic 3",0,null,null,null,null,"Public corporations and private enterprises",{"$f":"SUM(H49:H50)","v":0},0,0,0,0,0,0,0,0,0,0,0]
["Spending review topic 3",0,null,null,null,null,"Public corporations",{"$f":"SUMPRODUCT(((Dataset[Econ4]=$G49))*Dataset[2027/28 From - Spending review Topic 3]*$B$3)","v":0},{"$f":"SUMPRODUCT(((Dataset[Econ4]=$G49))*Dataset[2027/28 To - Spending review Topic 3]*$B$3)","v":0},{"$f":"H49+I49","v":0},{"$f":"SUMPRODUCT(((Dataset[Econ4]=$G49))*Dataset[2028/29 From - Spending review Topic 3]*$B$3)","v":0},{"$f":"SUMPRODUCT(((Dataset[Econ4]=$G49))*Dataset[2028/29 To - Spending review Topic 3]*$B$3)","v":0},{"$f":"K49+L49","v":0},{"$f":"SUMPRODUCT(((Dataset[Econ4]=$G49))*Dataset[2029/30 From - Spending review Topic 3]*$B$3)","v":0},{"$f":"SUMPRODUCT(((Dataset[Econ4]=$G49))*Dataset[2029/30 To - Spending review Topic 3]*$B$3)","v":0},{"$f":"N49+O49","v":0},{"$f":"SUM(H49,K49,N49)","v":0},0,0]
["Spending review topic 3",0,null,null,null,null,"Private enterprises",{"$f":"SUMPRODUCT(((Dataset[Econ4]=$G50))*Dataset[2027/28 From - Spending review Topic 3]*$B$3)","v":0},{"$f":"SUMPRODUCT(((Dataset[Econ4]=$G50))*Dataset[2027/28 To - Spending review Topic 3]*$B$3)","v":0},0,{"$f":"SUMPRODUCT(((Dataset[Econ4]=$G50))*Dataset[2028/29 From - Spending review Topic 3]*$B$3)","v":0},{"$f":"SUMPRODUCT(((Dataset[Econ4]=$G50))*Dataset[2028/29 To - Spending review Topic 3]*$B$3)","v":0},0,{"$f":"SUMPRODUCT(((Dataset[Econ4]=$G50))*Dataset[2029/30 From - Spending review Topic 3]*$B$3)","v":0},{"$f":"SUMPRODUCT(((Dataset[Econ4]=$G50))*Dataset[2029/30 To - Spending review Topic 3]*$B$3)","v":0},0,0,0,0]
["Spending review topic 3",0,null,null,null,null,"Non-profit institutions",{"$f":"SUMPRODUCT(((Dataset[Econ3]=$G51))*Dataset[2027/28 From - Spending review Topic 3]*$B$3)","v":0},{"$f":"SUMPRODUCT(((Dataset[Econ3]=$G51))*Dataset[2027/28 To - Spending review Topic 3]*$B$3)","v":0},0,{"$f":"SUMPRODUCT(((Dataset[Econ3]=$G51))*Dataset[2028/29 From - Spending review Topic 3]*$B$3)","v":0},{"$f":"SUMPRODUCT(((Dataset[Econ3]=$G51))*Dataset[2028/29 To - Spending review Topic 3]*$B$3)","v":0},0,{"$f":"SUMPRODUCT(((Dataset[Econ3]=$G51))*Dataset[2029/30 From - Spending review Topic 3]*$B$3)","v":0},{"$f":"SUMPRODUCT(((Dataset[Econ3]=$G51))*Dataset[2029/30 To - Spending review Topic 3]*$B$3)","v":0},0,0,0,0]
["Spending review topic 3",0,null,null,null,null,"Households",{"$f":"SUM(H53:H54)","v":0},0,0,0,0,0,0,0,0,0,0,0]
["Spending review topic 3",0,null,null,null,null,"Social benefits",{"$f":"SUMPRODUCT(((Dataset[Econ4]=$G53))*Dataset[2027/28 From - Spending review Topic 3]*$B$3)","v":0},{"$f":"SUMPRODUCT(((Dataset[Econ4]=$G53))*Dataset[2027/28 To - Spending review Topic 3]*$B$3)","v":0},{"$f":"H53+I53","v":0},{"$f":"SUMPRODUCT(((Dataset[Econ4]=$G53))*Dataset[2028/29 From - Spending review Topic 3]*$B$3)","v":0},{"$f":"SUMPRODUCT(((Dataset[Econ4]=$G53))*Dataset[2028/29 To - Spending review Topic 3]*$B$3)","v":0},{"$f":"K53+L53","v":0},{"$f":"SUMPRODUCT(((Dataset[Econ4]=$G53))*Dataset[2029/30 From - Spending review Topic 3]*$B$3)","v":0},{"$f":"SUMPRODUCT(((Dataset[Econ4]=$G53))*Dataset[2029/30 To - Spending review Topic 3]*$B$3)","v":0},{"$f":"N53+O53","v":0},{"$f":"SUM(H53,K53,N53)","v":0},0,0]
["Spending review topic 3",0,null,null,null,null,"Other transfers to households",{"$f":"SUMPRODUCT(((Dataset[Econ4]=$G54))*Dataset[2027/28 From - Spending review Topic 3]*$B$3)","v":0},{"$f":"SUMPRODUCT(((Dataset[Econ4]=$G54))*Dataset[2027/28 To - Spending review Topic 3]*$B$3)","v":0},0,{"$f":"SUMPRODUCT(((Dataset[Econ4]=$G54))*Dataset[2028/29 From - Spending review Topic 3]*$B$3)","v":0},{"$f":"SUMPRODUCT(((Dataset[Econ4]=$G54))*Dataset[2028/29 To - Spending review Topic 3]*$B$3)","v":0},0,{"$f":"SUMPRODUCT(((Dataset[Econ4]=$G54))*Dataset[2029/30 From - Spending review Topic 3]*$B$3)","v":0},{"$f":"SUMPRODUCT(((Dataset[Econ4]=$G54))*Dataset[2029/30 To - Spending review Topic 3]*$B$3)","v":0},0,0,0,0]
["Spending review topic 3",0,null,null,null,null,"Payments for capital assets",{"$f":"SUM(H56,H59,H62:H66)","v":0},0,0,0,0,0,0,0,0,0,0,0]
["Spending review topic 3",0,null,null,null,null,"Buildings and other fixed structures",{"$f":"SUM(H57:H58)","v":0},0,0,0,0,0,0,0,0,0,0,0]
["Spending review topic 3",0,null,null,null,null,"Buildings",{"$f":"SUMPRODUCT(((Dataset[Econ4]=$G57))*Dataset[2027/28 From - Spending review Topic 3]*$B$3)","v":0},{"$f":"SUMPRODUCT(((Dataset[Econ4]=$G57))*Dataset[2027/28 To - Spending review Topic 3]*$B$3)","v":0},{"$f":"H57+I57","v":0},{"$f":"SUMPRODUCT(((Dataset[Econ4]=$G57))*Dataset[2028/29 From - Spending review Topic 3]*$B$3)","v":0},{"$f":"SUMPRODUCT(((Dataset[Econ4]=$G57))*Dataset[2028/29 To - Spending review Topic 3]*$B$3)","v":0},{"$f":"K57+L57","v":0},{"$f":"SUMPRODUCT(((Dataset[Econ4]=$G57))*Dataset[2029/30 From - Spending review Topic 3]*$B$3)","v":0},{"$f":"SUMPRODUCT(((Dataset[Econ4]=$G57))*Dataset[2029/30 To - Spending review Topic 3]*$B$3)","v":0},{"$f":"N57+O57","v":0},{"$f":"SUM(H57,K57,N57)","v":0},0,0]
["Spending review topic 3",0,null,null,null,null,"Other fixed structures",{"$f":"SUMPRODUCT(((Dataset[Econ4]=$G58))*Dataset[2027/28 From - Spending review Topic 3]*$B$3)","v":0},{"$f":"SUMPRODUCT(((Dataset[Econ4]=$G58))*Dataset[2027/28 To - Spending review Topic 3]*$B$3)","v":0},0,{"$f":"SUMPRODUCT(((Dataset[Econ4]=$G58))*Dataset[2028/29 From - Spending review Topic 3]*$B$3)","v":0},{"$f":"SUMPRODUCT(((Dataset[Econ4]=$G58))*Dataset[2028/29 To - Spending review Topic 3]*$B$3)","v":0},0,{"$f":"SUMPRODUCT(((Dataset[Econ4]=$G58))*Dataset[2029/30 From - Spending review Topic 3]*$B$3)","v":0},{"$f":"SUMPRODUCT(((Dataset[Econ4]=$G58))*Dataset[2029/30 To - Spending review Topic 3]*$B$3)","v":0},0,0,0,0]
["Spending review topic 3",0,null,null,null,null,"Machinery and equipment",{"$f":"SUM(H60:H61)","v":0},0,0,0,0,0,0,0,0,0,0,0]
["Spending review topic 3",0,null,null,null,null,"Transport equipment",{"$f":"SUMPRODUCT(((Dataset[Econ4]=$G60))*Dataset[2027/28 From - Spending review Topic 3]*$B$3)","v":0},{"$f":"SUMPRODUCT(((Dataset[Econ4]=$G60))*Dataset[2027/28 To - Spending review Topic 3]*$B$3)","v":0},{"$f":"H60+I60","v":0},{"$f":"SUMPRODUCT(((Dataset[Econ4]=$G60))*Dataset[2028/29 From - Spending review Topic 3]*$B$3)","v":0},{"$f":"SUMPRODUCT(((Dataset[Econ4]=$G60))*Dataset[2028/29 To - Spending review Topic 3]*$B$3)","v":0},{"$f":"K60+L60","v":0},{"$f":"SUMPRODUCT(((Dataset[Econ4]=$G60))*Dataset[2029/30 From - Spending review Topic 3]*$B$3)","v":0},{"$f":"SUMPRODUCT(((Dataset[Econ4]=$G60))*Dataset[2029/30 To - Spending review Topic 3]*$B$3)","v":0},{"$f":"N60+O60","v":0},{"$f":"SUM(H60,K60,N60)","v":0},0,0]
["Spending review topic 3",0,null,null,null,null,"Other machinery and equipment",{"$f":"SUMPRODUCT(((Dataset[Econ4]=$G61))*Dataset[2027/28 From - Spending review Topic 3]*$B$3)","v":0},{"$f":"SUMPRODUCT(((Dataset[Econ4]=$G61))*Dataset[2027/28 To - Spending review Topic 3]*$B$3)","v":0},0,{"$f":"SUMPRODUCT(((Dataset[Econ4]=$G61))*Dataset[2028/29 From - Spending review Topic 3]*$B$3)","v":0},{"$f":"SUMPRODUCT(((Dataset[Econ4]=$G61))*Dataset[2028/29 To - Spending review Topic 3]*$B$3)","v":0},0,{"$f":"SUMPRODUCT(((Dataset[Econ4]=$G61))*Dataset[2029/30 From - Spending review Topic 3]*$B$3)","v":0},{"$f":"SUMPRODUCT(((Dataset[Econ4]=$G61))*Dataset[2029/30 To - Spending review Topic 3]*$B$3)","v":0},0,0,0,0]
["Spending review topic 3",0,null,null,null,null,"Heritage assets",{"$f":"SUMPRODUCT(((Dataset[Econ3]=$G62))*Dataset[2027/28 From - Spending review Topic 3]*$B$3)","v":0},{"$f":"SUMPRODUCT(((Dataset[Econ3]=$G62))*Dataset[2027/28 To - Spending review Topic 3]*$B$3)","v":0},0,{"$f":"SUMPRODUCT(((Dataset[Econ3]=$G62))*Dataset[2028/29 From - Spending review Topic 3]*$B$3)","v":0},{"$f":"SUMPRODUCT(((Dataset[Econ3]=$G62))*Dataset[2028/29 To - Spending review Topic 3]*$B$3)","v":0},0,{"$f":"SUMPRODUCT(((Dataset[Econ3]=$G62))*Dataset[2029/30 From - Spending review Topic 3]*$B$3)","v":0},{"$f":"SUMPRODUCT(((Dataset[Econ3]=$G62))*Dataset[2029/30 To - Spending review Topic 3]*$B$3)","v":0},0,0,0,0]
["Spending review topic 3",0,null,null,null,null,"Specialised military assets",{"$f":"SUMPRODUCT(((Dataset[Econ3]=$G63))*Dataset[2027/28 From - Spending review Topic 3]*$B$3)","v":0},{"$f":"SUMPRODUCT(((Dataset[Econ3]=$G63))*Dataset[2027/28 To - Spending review Topic 3]*$B$3)","v":0},0,{"$f":"SUMPRODUCT(((Dataset[Econ3]=$G63))*Dataset[2028/29 From - Spending review Topic 3]*$B$3)","v":0},{"$f":"SUMPRODUCT(((Dataset[Econ3]=$G63))*Dataset[2028/29 To - Spending review Topic 3]*$B$3)","v":0},0,{"$f":"SUMPRODUCT(((Dataset[Econ3]=$G63))*Dataset[2029/30 From - Spending review Topic 3]*$B$3)","v":0},{"$f":"SUMPRODUCT(((Dataset[Econ3]=$G63))*Dataset[2029/30 To - Spending review Topic 3]*$B$3)","v":0},0,0,0,0]
["Spending review topic 3",0,null,null,null,null,"Biological assets",{"$f":"SUMPRODUCT(((Dataset[Econ3]=$G64))*Dataset[2027/28 From - Spending review Topic 3]*$B$3)","v":0},{"$f":"SUMPRODUCT(((Dataset[Econ3]=$G64))*Dataset[2027/28 To - Spending review Topic 3]*$B$3)","v":0},0,{"$f":"SUMPRODUCT(((Dataset[Econ3]=$G64))*Dataset[2028/29 From - Spending review Topic 3]*$B$3)","v":0},{"$f":"SUMPRODUCT(((Dataset[Econ3]=$G64))*Dataset[2028/29 To - Spending review Topic 3]*$B$3)","v":0},0,{"$f":"SUMPRODUCT(((Dataset[Econ3]=$G64))*Dataset[2029/30 From - Spending review Topic 3]*$B$3)","v":0},{"$f":"SUMPRODUCT(((Dataset[Econ3]=$G64))*Dataset[2029/30 To - Spending review Topic 3]*$B$3)","v":0},0,0,0,0]
["Spending review topic 3",0,null,null,null,null,"Land and sub-soil assets",{"$f":"SUMPRODUCT(((Dataset[Econ3]=$G65))*Dataset[2027/28 From - Spending review Topic 3]*$B$3)","v":0},{"$f":"SUMPRODUCT(((Dataset[Econ3]=$G65))*Dataset[2027/28 To - Spending review Topic 3]*$B$3)","v":0},0,{"$f":"SUMPRODUCT(((Dataset[Econ3]=$G65))*Dataset[2028/29 From - Spending review Topic 3]*$B$3)","v":0},{"$f":"SUMPRODUCT(((Dataset[Econ3]=$G65))*Dataset[2028/29 To - Spending review Topic 3]*$B$3)","v":0},0,{"$f":"SUMPRODUCT(((Dataset[Econ3]=$G65))*Dataset[2029/30 From - Spending review Topic 3]*$B$3)","v":0},{"$f":"SUMPRODUCT(((Dataset[Econ3]=$G65))*Dataset[2029/30 To - Spending review Topic 3]*$B$3)","v":0},0,0,0,0]
["Spending review topic 3",0,null,null,null,null,"Software and other intangible assets",{"$f":"SUMPRODUCT(((Dataset[Econ3]=$G66))*Dataset[2027/28 From - Spending review Topic 3]*$B$3)","v":0},{"$f":"SUMPRODUCT(((Dataset[Econ3]=$G66))*Dataset[2027/28 To - Spending review Topic 3]*$B$3)","v":0},0,{"$f":"SUMPRODUCT(((Dataset[Econ3]=$G66))*Dataset[2028/29 From - Spending review Topic 3]*$B$3)","v":0},{"$f":"SUMPRODUCT(((Dataset[Econ3]=$G66))*Dataset[2028/29 To - Spending review Topic 3]*$B$3)","v":0},0,{"$f":"SUMPRODUCT(((Dataset[Econ3]=$G66))*Dataset[2029/30 From - Spending review Topic 3]*$B$3)","v":0},{"$f":"SUMPRODUCT(((Dataset[Econ3]=$G66))*Dataset[2029/30 To - Spending review Topic 3]*$B$3)","v":0},0,0,0,0]
["Spending review topic 3",0,null,null,null,null,"Payments for financial assets",{"$f":"SUMPRODUCT(((Dataset[Econ3]=$G67))*Dataset[2027/28 From - Spending review Topic 3]*$B$3)","v":0},{"$f":"SUMPRODUCT(((Dataset[Econ3]=$G67))*Dataset[2027/28 To - Spending review Topic 3]*$B$3)","v":0},0,{"$f":"SUMPRODUCT(((Dataset[Econ3]=$G67))*Dataset[2028/29 From - Spending review Topic 3]*$B$3)","v":0},{"$f":"SUMPRODUCT(((Dataset[Econ3]=$G67))*Dataset[2028/29 To - Spending review Topic 3]*$B$3)","v":0},0,{"$f":"SUMPRODUCT(((Dataset[Econ3]=$G67))*Dataset[2029/30 From - Spending review Topic 3]*$B$3)","v":0},{"$f":"SUMPRODUCT(((Dataset[Econ3]=$G67))*Dataset[2029/30 To - Spending review Topic 3]*$B$3)","v":0},0,0,0,0]
["Spending review topic 3",0,null,null,null,null,"Total",{"$f":"SUM(H35,H39,H55,H67)","v":0},0,0,0,0,0,0,0,0,0,0,0]
[]
[]
[]
[]
[null,null,null,null,null,null,{"$f":"\"IMPACT OF ADJUSTMENTS: \" &UPPER($G$3)","v":"IMPACT OF ADJUSTMENTS: SPENDING REVIEW TOPIC 3"}]
[]
[null,null,null,null,null,1,"Impact of adjustments on expenditure"]
[{"$f":"$G$3","v":"Spending review topic 3"},5,null,null,null,null,null,{"$f":"MyYear4","v":"2026/27"},null,null,{"$f":"MyYear5","v":"2027/28"},null,null,{"$f":"MyYear6","v":"2028/29"},null,null,{"$f":"MyYear7","v":"2029/30"}]
["Spending review topic 3",5,null,null,null,null,null,"Current expenditure","Potential expenditure @ benchmark level","% Savings if benchmark is achieved","Original number","Change in expenditure","Saving as % of original number","Original number","Change in expenditure","Saving as % of original number","Original number","Change in expenditure","Saving as % of original number"]
["Spending review topic 3",5,null,null,null,null,"Total",null,null,{"$f":"IFERROR((H78-I78)/-H78,\"\")","v":""},null,null,{"$f":"IFERROR((K78-L78)/-K78,\"\")","v":""},null,null,{"$f":"IFERROR((N78-O78)/-N78,\"\")","v":""},null,null,{"$f":"IFERROR((Q78-R78)/-Q78,\"\")","v":""}]
[]
[]
[]
[]
[]
[null,null,null,null,null,2,"Summary of impact on service delivery/policy area due to adjustments"]
[{"$f":"$G$3","v":"Spending review topic 3"},1]
["Spending review topic 3",1]
["Spending review topic 3",1]
["Spending review topic 3",1]
["Spending review topic 3",1]
["Spending review topic 3",1]
["Spending review topic 3",1]
["Spending review topic 3",1]
["Spending review topic 3",1]
["Spending review topic 3",1]
["Spending review topic 3",1]
["Spending review topic 3",1]
["Spending review topic 3",1]
["Spending review topic 3",1]
["Spending review topic 3",1]
[]
[]
[]
[]
[]
[null,null,null,null,null,3,"Impact of adjustments on performance indicators"]
[{"$f":"$G$3","v":"Spending review topic 3"},2,null,null,null,null,null,{"$f":"MyYear4","v":"2026/27"},null,null,{"$f":"MyYear5","v":"2027/28"},null,null,{"$f":"MyYear6","v":"2028/29"},null,null,{"$f":"MyYear7","v":"2029/30"},null,null," Comment",null,null,null,null,"Related MTSF Priority"]
["Spending review topic 3",2,null,null,null,null,"Performance indicator","Current performance","Performance @ benchmark level","Change","Original target","Revised target","Change","Original target","Revised target","Change","Original target","Revised target","Change"]
["Spending review topic 3",2]
["Spending review topic 3",2]
["Spending review topic 3",2]
["Spending review topic 3",2]
["Spending review topic 3",2]
["Spending review topic 3",2]
["Spending review topic 3",2]
["Spending review topic 3",2]
["Spending review topic 3",2]
["Spending review topic 3",2]
["Spending review topic 3",2]
["Spending review topic 3",2]
["Spending review topic 3",2]
["Spending review topic 3",2]
["Spending review topic 3",2]
[]
[]
[]
[]
[]
[null,null,null,null,null,4,"Impact of adjustments on personnel headcount numbers"]
[{"$f":"$G$3","v":"Spending review topic 3"},4,null,null,null,null,null,{"$f":"MyYear4","v":"2026/27"},null,null,{"$f":"MyYear5","v":"2027/28"},null,null,{"$f":"MyYear6","v":"2028/29"},null,null,{"$f":"MyYear7","v":"2029/30"},null,null," Comment"]
["Spending review topic 3",4,null,null,null,null,"Salary level","Current number","Potential number if benchmark is achieved","Change in number","Original number","Revised number","Change in number","Original number","Revised number","Change in number","Original number","Revised number","Change in number"]
["Spending review topic 3",4,null,null,null,null,1,null,null,{"$f":"I131-H131","v":0},null,null,{"$f":"L131-K131","v":0},null,null,{"$f":"O131-N131","v":0},null,null,{"$f":"R131-Q131","v":0}]
["Spending review topic 3",4,null,null,null,null,2,null,null,0,null,null,0,null,null,0,null,null,0]
["Spending review topic 3",4,null,null,null,null,3,null,null,0,null,null,0,null,null,0,null,null,0]
["Spending review topic 3",4,null,null,null,null,4,null,null,0,null,null,0,null,null,0,null,null,0]
["Spending review topic 3",4,null,null,null,null,5,null,null,0,null,null,0,null,null,0,null,null,0]
["Spending review topic 3",4,null,null,null,null,6,null,null,0,null,null,0,null,null,0,null,null,0]
["Spending review topic 3",4,null,null,null,null,7,null,null,0,null,null,0,null,null,0,null,null,0]
["Spending review topic 3",4,null,null,null,null,8,null,null,0,null,null,0,null,null,0,null,null,0]
["Spending review topic 3",4,null,null,null,null,9,null,null,0,null,null,0,null,null,0,null,null,0]
["Spending review topic 3",4,null,null,null,null,10,null,null,0,null,null,0,null,null,0,null,null,0]
["Spending review topic 3",4,null,null,null,null,11,null,null,0,null,null,0,null,null,0,null,null,0]
["Spending review topic 3",4,null,null,null,null,12,null,null,0,null,null,0,null,null,0,null,null,0]
["Spending review topic 3",4,null,null,null,null,13,null,null,0,null,null,0,null,null,0,null,null,0]
["Spending review topic 3",4,null,null,null,null,14,null,null,0,null,null,0,null,null,0,null,null,0]
["Spending review topic 3",4,null,null,null,null,15,null,null,0,null,null,0,null,null,0,null,null,0]
["Spending review topic 3",4,null,null,null,null,16,null,null,0,null,null,0,null,null,0,null,null,0]
["Spending review topic 3",4,null,null,null,null,"Other",null,null,0,null,null,0,null,null,0,null,null,0]
["Spending review topic 3",4,null,null,null,null,"Other",null,null,0,null,null,0,null,null,0,null,null,0]
["Spending review topic 3",4,null,null,null,null,"Other",null,null,0,null,null,0,null,null,0,null,null,0]
["Spending review topic 3",4,null,null,null,null,"Other",null,null,0,null,null,0,null,null,0,null,null,0]
["Spending review topic 3",4,null,null,null,null,"Total",{"$f":"SUM(H131:H150)","v":0},0,0,{"$f":"SUM(K131:K150)","v":0},0,0,0,0,0,0,0,0]
[]
[]
[]
[]
[]
[null,null,null,null,null,5,"Impact of adjustments on infrastructure projects"]
[{"$f":"$G$3","v":"Spending review topic 3"},3,null,null,null,null,null,{"$f":"MyYear4","v":"2026/27"},null,null,{"$f":"MyYear5","v":"2027/28"},null,null,{"$f":"MyYear6","v":"2028/29"},null,null,{"$f":"MyYear7","v":"2029/30"},null,null," Comment"]
["Spending review topic 3",3,null,null,null,null,"Project name","Current number","Market or best in class benchmark","Change","Original amount","Revised amount","Change","Original amount","Revised amount","Change","Original amount","Revised amount","Change"]
["Spending review topic 3",3,null,null,null,null,null,null,null,{"$f":"I160-H160","v":0},null,null,{"$f":"L160-K160","v":0},null,null,{"$f":"O160-N160","v":0},null,null,{"$f":"R160-Q160","v":0}]
["Spending review topic 3",3,null,null,null,null,null,null,null,0,null,null,0,null,null,0,null,null,0]
["Spending review topic 3",3,null,null,null,null,null,null,null,0,null,null,0,null,null,0,null,null,0]
["Spending review topic 3",3,null,null,null,null,null,null,null,0,null,null,0,null,null,0,null,null,0]
["Spending review topic 3",3,null,null,null,null,null,null,null,0,null,null,0,null,null,0,null,null,0]
["Spending review topic 3",3,null,null,null,null,null,null,null,0,null,null,0,null,null,0,null,null,0]
["Spending review topic 3",3,null,null,null,null,null,null,null,0,null,null,0,null,null,0,null,null,0]
["Spending review topic 3",3,null,null,null,null,null,null,null,0,null,null,0,null,null,0,null,null,0]
["Spending review topic 3",3,null,null,null,null,null,null,null,0,null,null,0,null,null,0,null,null,0]
["Spending review topic 3",3,null,null,null,null,null,null,null,0,null,null,0,null,null,0,null,null,0]
["Spending review topic 3",3,null,null,null,null,null,null,null,0,null,null,0,null,null,0,null,null,0]
["Spending review topic 3",3,null,null,null,null,null,null,null,0,null,null,0,null,null,0,null,null,0]
["Spending review topic 3",3,null,null,null,null,null,null,null,0,null,null,0,null,null,0,null,null,0]
["Spending review topic 3",3,null,null,null,null,null,null,null,0,null,null,0,null,null,0,null,null,0]
["Spending review topic 3",3,null,null,null,null,null,null,null,0,null,null,0,null,null,0,null,null,0]
["Spending review topic 3",3,null,null,null,null,null,null,null,0,null,null,0,null,null,0,null,null,0]
["Spending review topic 3",3,null,null,null,null,null,null,null,0,null,null,0,null,null,0,null,null,0]
["Spending review topic 3",3,null,null,null,null,null,null,null,0,null,null,0,null,null,0,null,null,0]
["Spending review topic 3",3,null,null,null,null,null,null,null,0,null,null,0,null,null,0,null,null,0]
["Spending review topic 3",3,null,null,null,null,null,null,null,0,null,null,0,null,null,0,null,null,0]
["Spending review topic 3",3,null,null,null,null,null,null,null,0,null,null,0,null,null,0,null,null,0]
["Spending review topic 3",3,null,null,null,null,null,null,null,0,null,null,0,null,null,0,null,null,0]
["Spending review topic 3",3,null,null,null,null,null,null,null,0,null,null,0,null,null,0,null,null,0]
["Spending review topic 3",3,null,null,null,null,null,null,null,0,null,null,0,null,null,0,null,null,0]
["Spending review topic 3",3,null,null,null,null,null,null,null,0,null,null,0,null,null,0,null,null,0]
["Spending review topic 3",3,null,null,null,null,null,null,null,0,null,null,0,null,null,0,null,null,0]
["Spending review topic 3",3,null,null,null,null,null,null,null,0,null,null,0,null,null,0,null,null,0]
["Spending review topic 3",3,null,null,null,null,null,null,null,0,null,null,0,null,null,0,null,null,0]
["Spending review topic 3",3,null,null,null,null,null,null,null,0,null,null,0,null,null,0,null,null,0]
["Spending review topic 3",3,null,null,null,null,null,null,null,0,null,null,0,null,null,0,null,null,0]
["Spending review topic 3",3,null,null,null,null,null,null,null,0,null,null,0,null,null,0,null,null,0]
["Spending review topic 3",3,null,null,null,null,null,null,null,0,null,null,0,null,null,0,null,null,0]
["Spending review topic 3",3,null,null,null,null,null,null,null,0,null,null,0,null,null,0,null,null,0]
["Spending review topic 3",3,null,null,null,null,null,null,null,0,null,null,0,null,null,0,null,null,0]
["Spending review topic 3",3,null,null,null,null,null,null,null,0,null,null,0,null,null,0,null,null,0]
["Spending review topic 3",3,null,null,null,null,null,null,null,0,null,null,0,null,null,0,null,null,0]
["Spending review topic 3",3,null,null,null,null,null,null,null,0,null,null,0,null,null,0,null,null,0]
["Spending review topic 3",3,null,null,null,null,null,null,null,0,null,null,0,null,null,0,null,null,0]
["Spending review topic 3",3,null,null,null,null,null,null,null,0,null,null,0,null,null,0,null,null,0]
["Spending review topic 3",3,null,null,null,null,null,null,null,0,null,null,0,null,null,0,null,null,0]
["Spending review topic 3",3,null,null,null,null,null,null,null,0,null,null,0,null,null,0,null,null,0]
["Spending review topic 3",3,null,null,null,null,null,null,null,0,null,null,0,null,null,0,null,null,0]
["Spending review topic 3",3,null,null,null,null,null,null,null,0,null,null,0,null,null,0,null,null,0]
["Spending review topic 3",3,null,null,null,null,null,null,null,0,null,null,0,null,null,0,null,null,0]
["Spending review topic 3",3,null,null,null,null,null,null,null,0,null,null,0,null,null,0,null,null,0]
["Spending review topic 3",3,null,null,null,null,null,null,null,0,null,null,0,null,null,0,null,null,0]
["Spending review topic 3",3,null,null,null,null,null,null,null,0,null,null,0,null,null,0,null,null,0]
["Spending review topic 3",3,null,null,null,null,null,null,null,0,null,null,0,null,null,0,null,null,0]
["Spending review topic 3",3,null,null,null,null,null,null,null,0,null,null,0,null,null,0,null,null,0]
["Spending review topic 3",3,null,null,null,null,null,null,null,0,null,null,0,null,null,0,null,null,0]
["Spending review topic 3",3,null,null,null,null,"Total",{"$f":"SUM(H160:H209)","v":0},0,0,0,0,0,0,0,0,0,0,0]

{"sheet":"SRT4","index":17,"n_rows":210,"n_cols":25,"rows_kept":210,"cut":false,"hidden":false,"merged":[[208,19,208,23],[202,19,202,23],[203,19,203,23],[204,19,204,23],[205,19,205,23],[206,19,206,23],[207,19,207,23],[201,19,201,23],[190,19,190,23],[191,19,191,23],[192,19,192,23],[193,19,193,23],[194,19,194,23],[195,19,195,23],[196,19,196,23],[197,19,197,23],[198,19,198,23],[199,19,199,23],[200,19,200,23],[189,19,189,23],[178,19,178,23],[179,19,179,23],[180,19,180,23],[181,19,181,23],[182,19,182,23],[183,19,183,23],[184,19,184,23],[185,19,185,23],[186,19,186,23],[187,19,187,23],[188,19,188,23],[177,19,177,23],[166,19,166,23],[167,19,167,23],[168,19,168,23],[169,19,169,23],[170,19,170,23],[171,19,171,23],[172,19,172,23],[173,19,173,23],[174,19,174,23],[175,19,175,23],[176,19,176,23],[165,19,165,23],[128,19,128,23],[129,19,129,23],[130,19,149,23],[157,19,157,23],[158,19,158,23],[159,19,159,23],[160,19,160,23],[161,19,161,23],[162,19,162,23],[163,19,163,23],[164,19,164,23],[119,19,119,23],[119,24,119,26],[120,19,120,23],[120,24,120,26],[121,19,121,23],[121,24,121,26],[116,19,116,23],[116,24,116,26],[117,19,117,23],[117,24,117,26],[118,19,118,23],[118,24,118,26],[113,19,113,23],[113,24,113,26],[114,19,114,23],[114,24,114,26],[115,19,115,23],[115,24,115,26],[110,19,110,23],[110,24,110,26],[111,19,111,23],[111,24,111,26],[112,19,112,23],[112,24,112,26],[107,19,107,23],[107,24,107,26],[108,19,108,23],[108,24,108,26],[109,19,109,23],[109,24,109,26],[72,6,72,18],[84,6,98,18],[105,19,105,23],[105,24,105,26],[106,19,106,23],[106,24,106,26]]}
[]
[null,null,null,null,null,null,"Spending review topic…"]
[null,{"$f":"IF(G3=\"\",0,1)","v":1},null,null,null,4,{"$f":"SRTopic4","v":"Spending review topic 4"}]
[]
[null,null,null,null,null,null,"Quick view…(Total change)",{"$f":"MyYear5","v":"2027/28"},{"$f":"MyYear6","v":"2028/29"},{"$f":"MyYear7","v":"2029/30"},"MTEF total","Trend"]
[null,null,null,null,null,null,"Compensation of employees",{"$f":"SUMPRODUCT(($G$35:$G$68=$G6)*($J$35:$J$68))","v":0},{"$f":"SUMPRODUCT(($G$35:$G$68=$G6)*($M$35:$M$68))","v":0},{"$f":"SUMPRODUCT(($G$35:$G$68=$G6)*($P$35:$P$68))","v":0},{"$f":"SUM(H6:J6)","v":0},null,null,"CoE"]
[null,null,null,null,null,null,"Goods and services",{"$f":"SUMPRODUCT(($G$35:$G$68=$G7)*($J$35:$J$68))","v":0},{"$f":"SUMPRODUCT(($G$35:$G$68=$G7)*($M$35:$M$68))","v":0},{"$f":"SUMPRODUCT(($G$35:$G$68=$G7)*($P$35:$P$68))","v":0},0,null,null,"G&S"]
[null,null,null,null,null,null,"Transfers and subsidies",{"$f":"SUMPRODUCT(($G$35:$G$68=$G8)*($J$35:$J$68))","v":0},{"$f":"SUMPRODUCT(($G$35:$G$68=$G8)*($M$35:$M$68))","v":0},{"$f":"SUMPRODUCT(($G$35:$G$68=$G8)*($P$35:$P$68))","v":0},0,null,null,"T&S"]
[null,null,null,null,null,null,"Payments for capital assets",{"$f":"SUMPRODUCT(($G$35:$G$68=$G9)*($J$35:$J$68))","v":0},{"$f":"SUMPRODUCT(($G$35:$G$68=$G9)*($M$35:$M$68))","v":0},{"$f":"SUMPRODUCT(($G$35:$G$68=$G9)*($P$35:$P$68))","v":0},0,null,null,"Capital"]
[null,null,null,null,null,null,"Total",{"$f":"SUMPRODUCT(($G$35:$G$68=$G10)*($J$35:$J$68))","v":0},{"$f":"SUMPRODUCT(($G$35:$G$68=$G10)*($M$35:$M$68))","v":0},{"$f":"SUMPRODUCT(($G$35:$G$68=$G10)*($P$35:$P$68))","v":0},0,null,null,"Total"]
[null,null,null,null,null,null,"% of MTEF total",null,null,null,null,null,null,null,null,null,null,null,{"$f":"MyYear5","v":"2027/28"},{"$f":"MyYear6","v":"2028/29"},{"$f":"MyYear7","v":"2029/30"}]
[null,null,null,null,null,null,"Compensation of employees",{"$f":"IFERROR(H6/$K6,\"\")","v":""},"","",null,null,null,null,null,null,null,{"$f":"G12","v":"Compensation of employees"},{"$f":"IF(H12>0.0595,H12,\"\")","v":""},"",""]
[null,null,null,null,null,null,"Goods and services","","","",null,null,null,null,null,null,null,{"$f":"G13","v":"Goods and services"},"","",""]
[null,null,null,null,null,null,"Transfers and subsidies","","","",null,null,null,null,null,null,null,{"$f":"G14","v":"Transfers and subsidies"},"","",""]
[null,null,null,null,null,null,"Payments for capital assets","","","",null,null,null,null,null,null,null,{"$f":"G15","v":"Payments for capital assets"},"","",""]
[]
[null,null,null,null,null,null,"Division of Revenue",{"$f":"MyYear5","v":"2027/28"},{"$f":"MyYear6","v":"2028/29"},{"$f":"MyYear7","v":"2029/30"},"MTEF total","Trend"]
[null,null,null,null,null,null,"National",{"$f":"SUM(H19:H21)","v":0},0,0,{"$f":"SUM(H18:J18)","v":0}]
[{"$f":"$G$3","v":"Spending review topic 4"},"NAT",null,null,null,null,"National (excl. indirect grants)",{"$f":"SUMPRODUCT(((Dataset[DOR]=$B19))*Dataset[2027/28 From - Spending review Topic 4])+SUMPRODUCT(((Dataset[DOR]=$B19))*Dataset[2027/28 To - Spending review Topic 4])","v":0},{"$f":"SUMPRODUCT(((Dataset[DOR]=$B19))*Dataset[2028/29 From - Spending review Topic 4])+SUMPRODUCT(((Dataset[DOR]=$B19))*Dataset[2028/29 To - Spending review Topic 4])","v":0},{"$f":"SUMPRODUCT(((Dataset[DOR]=$B19))*Dataset[2029/30 From - Spending review Topic 4])+SUMPRODUCT(((Dataset[DOR]=$B19))*Dataset[2029/30 To - Spending review Topic 4])","v":0},0]
["Spending review topic 4","IGP",null,null,null,null,"Provincial indirect grants",{"$f":"SUMPRODUCT(((Dataset[DOR]=$B20))*Dataset[2027/28 From - Spending review Topic 4])+SUMPRODUCT(((Dataset[DOR]=$B20))*Dataset[2027/28 To - Spending review Topic 4])","v":0},{"$f":"SUMPRODUCT(((Dataset[DOR]=$B20))*Dataset[2028/29 From - Spending review Topic 4])+SUMPRODUCT(((Dataset[DOR]=$B20))*Dataset[2028/29 To - Spending review Topic 4])","v":0},{"$f":"SUMPRODUCT(((Dataset[DOR]=$B20))*Dataset[2029/30 From - Spending review Topic 4])+SUMPRODUCT(((Dataset[DOR]=$B20))*Dataset[2029/30 To - Spending review Topic 4])","v":0},0]
["Spending review topic 4","IGM",null,null,null,null,"Local indirect grants",{"$f":"SUMPRODUCT(((Dataset[DOR]=$B21))*Dataset[2027/28 From - Spending review Topic 4])+SUMPRODUCT(((Dataset[DOR]=$B21))*Dataset[2027/28 To - Spending review Topic 4])","v":0},{"$f":"SUMPRODUCT(((Dataset[DOR]=$B21))*Dataset[2028/29 From - Spending review Topic 4])+SUMPRODUCT(((Dataset[DOR]=$B21))*Dataset[2028/29 To - Spending review Topic 4])","v":0},{"$f":"SUMPRODUCT(((Dataset[DOR]=$B21))*Dataset[2029/30 From - Spending review Topic 4])+SUMPRODUCT(((Dataset[DOR]=$B21))*Dataset[2029/30 To - Spending review Topic 4])","v":0},0]
["Spending review topic 4",null,null,null,null,null,"Provincial",{"$f":"SUMPRODUCT(((Dataset[DOR]=$B22))*Dataset[2027/28 From - Spending review Topic 4])+SUMPRODUCT(((Dataset[DOR]=$B22))*Dataset[2027/28 To - Spending review Topic 4])","v":0},{"$f":"SUMPRODUCT(((Dataset[DOR]=$B22))*Dataset[2028/29 From - Spending review Topic 4])+SUMPRODUCT(((Dataset[DOR]=$B22))*Dataset[2028/29 To - Spending review Topic 4])","v":0},{"$f":"SUMPRODUCT(((Dataset[DOR]=$B22))*Dataset[2029/30 From - Spending review Topic 4])+SUMPRODUCT(((Dataset[DOR]=$B22))*Dataset[2029/30 To - Spending review Topic 4])","v":0},0]
["Spending review topic 4","PES",null,null,null,null,"Provincial equitable share",{"$f":"SUMPRODUCT(((Dataset[DOR]=$B23))*Dataset[2027/28 From - Spending review Topic 4])+SUMPRODUCT(((Dataset[DOR]=$B23))*Dataset[2027/28 To - Spending review Topic 4])","v":0},{"$f":"SUMPRODUCT(((Dataset[DOR]=$B23))*Dataset[2028/29 From - Spending review Topic 4])+SUMPRODUCT(((Dataset[DOR]=$B23))*Dataset[2028/29 To - Spending review Topic 4])","v":0},{"$f":"SUMPRODUCT(((Dataset[DOR]=$B23))*Dataset[2029/30 From - Spending review Topic 4])+SUMPRODUCT(((Dataset[DOR]=$B23))*Dataset[2029/30 To - Spending review Topic 4])","v":0},0]
["Spending review topic 4","PCG",null,null,null,null,"Provincial conditional grants",{"$f":"SUMPRODUCT(((Dataset[DOR]=$B24))*Dataset[2027/28 From - Spending review Topic 4])+SUMPRODUCT(((Dataset[DOR]=$B24))*Dataset[2027/28 To - Spending review Topic 4])","v":0},{"$f":"SUMPRODUCT(((Dataset[DOR]=$B24))*Dataset[2028/29 From - Spending review Topic 4])+SUMPRODUCT(((Dataset[DOR]=$B24))*Dataset[2028/29 To - Spending review Topic 4])","v":0},{"$f":"SUMPRODUCT(((Dataset[DOR]=$B24))*Dataset[2029/30 From - Spending review Topic 4])+SUMPRODUCT(((Dataset[DOR]=$B24))*Dataset[2029/30 To - Spending review Topic 4])","v":0},0]
["Spending review topic 4",null,null,null,null,null,"Local government",{"$f":"SUMPRODUCT(((Dataset[DOR]=$B25))*Dataset[2027/28 From - Spending review Topic 4])+SUMPRODUCT(((Dataset[DOR]=$B25))*Dataset[2027/28 To - Spending review Topic 4])","v":0},{"$f":"SUMPRODUCT(((Dataset[DOR]=$B25))*Dataset[2028/29 From - Spending review Topic 4])+SUMPRODUCT(((Dataset[DOR]=$B25))*Dataset[2028/29 To - Spending review Topic 4])","v":0},{"$f":"SUMPRODUCT(((Dataset[DOR]=$B25))*Dataset[2029/30 From - Spending review Topic 4])+SUMPRODUCT(((Dataset[DOR]=$B25))*Dataset[2029/30 To - Spending review Topic 4])","v":0},0]
["Spending review topic 4","LES",null,null,null,null,"Local equitable share",{"$f":"SUMPRODUCT(((Dataset[DOR]=$B26))*Dataset[2027/28 From - Spending review Topic 4])+SUMPRODUCT(((Dataset[DOR]=$B26))*Dataset[2027/28 To - Spending review Topic 4])","v":0},{"$f":"SUMPRODUCT(((Dataset[DOR]=$B26))*Dataset[2028/29 From - Spending review Topic 4])+SUMPRODUCT(((Dataset[DOR]=$B26))*Dataset[2028/29 To - Spending review Topic 4])","v":0},{"$f":"SUMPRODUCT(((Dataset[DOR]=$B26))*Dataset[2029/30 From - Spending review Topic 4])+SUMPRODUCT(((Dataset[DOR]=$B26))*Dataset[2029/30 To - Spending review Topic 4])","v":0},0]
["Spending review topic 4","LCG",null,null,null,null,"Local conditional grants",{"$f":"SUMPRODUCT(((Dataset[DOR]=$B27))*Dataset[2027/28 From - Spending review Topic 4])+SUMPRODUCT(((Dataset[DOR]=$B27))*Dataset[2027/28 To - Spending review Topic 4])","v":0},{"$f":"SUMPRODUCT(((Dataset[DOR]=$B27))*Dataset[2028/29 From - Spending review Topic 4])+SUMPRODUCT(((Dataset[DOR]=$B27))*Dataset[2028/29 To - Spending review Topic 4])","v":0},{"$f":"SUMPRODUCT(((Dataset[DOR]=$B27))*Dataset[2029/30 From - Spending review Topic 4])+SUMPRODUCT(((Dataset[DOR]=$B27))*Dataset[2029/30 To - Spending review Topic 4])","v":0},0]
["Spending review topic 4","GFL",null,null,null,null,"General fuel levy ",{"$f":"SUMPRODUCT(((Dataset[DOR]=$B28))*Dataset[2027/28 From - Spending review Topic 4])+SUMPRODUCT(((Dataset[DOR]=$B28))*Dataset[2027/28 To - Spending review Topic 4])","v":0},{"$f":"SUMPRODUCT(((Dataset[DOR]=$B28))*Dataset[2028/29 From - Spending review Topic 4])+SUMPRODUCT(((Dataset[DOR]=$B28))*Dataset[2028/29 To - Spending review Topic 4])","v":0},{"$f":"SUMPRODUCT(((Dataset[DOR]=$B28))*Dataset[2029/30 From - Spending review Topic 4])+SUMPRODUCT(((Dataset[DOR]=$B28))*Dataset[2029/30 To - Spending review Topic 4])","v":0},0]
[]
[]
[null,null,null,null,null,null,{"$f":"G3","v":"Spending review topic 4"}]
[{"$f":"$G$3","v":"Spending review topic 4"},0,null,null,null,null,null,{"$f":"MyYear5","v":"2027/28"},null,null,{"$f":"MyYear6","v":"2028/29"},null,null,{"$f":"MyYear7","v":"2029/30"},null,null,"Total over MTEF"]
[{"$f":"$G$3","v":"Spending review topic 4"},0,null,null,null,null,"Rand thousand","From","To","Total change","From","To","Total change","From","To","Total change","From","To","Total change"]
["Spending review topic 4",0,null,null,null,null,"Economic classification"]
["Spending review topic 4",0,null,null,null,null,"Current payments",{"$f":"SUM(H36:H38)","v":0},0,0,0,0,0,0,0,0,0,0,0]
["Spending review topic 4",0,null,null,null,null,"Compensation of employees",{"$f":"SUMPRODUCT(((Dataset[Econ3]=$G36))*Dataset[2027/28 From - Spending review Topic 4]*$B$3)","v":0},{"$f":"SUMPRODUCT(((Dataset[Econ3]=$G36))*Dataset[2027/28 To - Spending review Topic 4]*$B$3)","v":0},{"$f":"H36+I36","v":0},{"$f":"SUMPRODUCT(((Dataset[Econ3]=$G36))*Dataset[2028/29 From - Spending review Topic 4]*$B$3)","v":0},{"$f":"SUMPRODUCT(((Dataset[Econ3]=$G36))*Dataset[2028/29 To - Spending review Topic 4]*$B$3)","v":0},{"$f":"K36+L36","v":0},{"$f":"SUMPRODUCT(((Dataset[Econ3]=$G36))*Dataset[2029/30 From - Spending review Topic 4]*$B$3)","v":0},{"$f":"SUMPRODUCT(((Dataset[Econ3]=$G36))*Dataset[2029/30 To - Spending review Topic 4]*$B$3)","v":0},{"$f":"N36+O36","v":0},{"$f":"SUM(H36,K36,N36)","v":0},0,0]
["Spending review topic 4",0,null,null,null,null,"Goods and services",{"$f":"SUMPRODUCT(((Dataset[Econ3]=$G37))*Dataset[2027/28 From - Spending review Topic 4]*$B$3)","v":0},{"$f":"SUMPRODUCT(((Dataset[Econ3]=$G37))*Dataset[2027/28 To - Spending review Topic 4]*$B$3)","v":0},0,{"$f":"SUMPRODUCT(((Dataset[Econ3]=$G37))*Dataset[2028/29 From - Spending review Topic 4]*$B$3)","v":0},{"$f":"SUMPRODUCT(((Dataset[Econ3]=$G37))*Dataset[2028/29 To - Spending review Topic 4]*$B$3)","v":0},0,{"$f":"SUMPRODUCT(((Dataset[Econ3]=$G37))*Dataset[2029/30 From - Spending review Topic 4]*$B$3)","v":0},{"$f":"SUMPRODUCT(((Dataset[Econ3]=$G37))*Dataset[2029/30 To - Spending review Topic 4]*$B$3)","v":0},0,0,0,0]
["Spending review topic 4",0,null,null,null,null,"Interest and rent on land",{"$f":"SUMPRODUCT(((Dataset[Econ3]=$G38))*Dataset[2027/28 From - Spending review Topic 4]*$B$3)","v":0},{"$f":"SUMPRODUCT(((Dataset[Econ3]=$G38))*Dataset[2027/28 To - Spending review Topic 4]*$B$3)","v":0},0,{"$f":"SUMPRODUCT(((Dataset[Econ3]=$G38))*Dataset[2028/29 From - Spending review Topic 4]*$B$3)","v":0},{"$f":"SUMPRODUCT(((Dataset[Econ3]=$G38))*Dataset[2028/29 To - Spending review Topic 4]*$B$3)","v":0},0,{"$f":"SUMPRODUCT(((Dataset[Econ3]=$G38))*Dataset[2029/30 From - Spending review Topic 4]*$B$3)","v":0},{"$f":"SUMPRODUCT(((Dataset[Econ3]=$G38))*Dataset[2029/30 To - Spending review Topic 4]*$B$3)","v":0},0,0,0,0]
["Spending review topic 4",0,null,null,null,null,"Transfers and subsidies",{"$f":"SUM(H40,H43,H46:H48,H51:H52)","v":0},0,0,0,0,0,0,0,0,0,0,0]
["Spending review topic 4",0,null,null,null,null,"Provinces and municipalities",{"$f":"SUM(H41:H42)","v":0},0,0,0,0,0,0,0,0,0,0,0]
["Spending review topic 4",0,null,null,null,null,"Provinces",{"$f":"SUMPRODUCT(((Dataset[Econ4]=$G41))*Dataset[2027/28 From - Spending review Topic 4]*$B$3)","v":0},{"$f":"SUMPRODUCT(((Dataset[Econ4]=$G41))*Dataset[2027/28 To - Spending review Topic 4]*$B$3)","v":0},{"$f":"H41+I41","v":0},{"$f":"SUMPRODUCT(((Dataset[Econ4]=$G41))*Dataset[2028/29 From - Spending review Topic 4]*$B$3)","v":0},{"$f":"SUMPRODUCT(((Dataset[Econ4]=$G41))*Dataset[2028/29 To - Spending review Topic 4]*$B$3)","v":0},{"$f":"K41+L41","v":0},{"$f":"SUMPRODUCT(((Dataset[Econ4]=$G41))*Dataset[2029/30 From - Spending review Topic 4]*$B$3)","v":0},{"$f":"SUMPRODUCT(((Dataset[Econ4]=$G41))*Dataset[2029/30 To - Spending review Topic 4]*$B$3)","v":0},{"$f":"N41+O41","v":0},{"$f":"SUM(H41,K41,N41)","v":0},0,0]
["Spending review topic 4",0,null,null,null,null,"Municipalities",{"$f":"SUMPRODUCT(((Dataset[Econ4]=$G42))*Dataset[2027/28 From - Spending review Topic 4]*$B$3)","v":0},{"$f":"SUMPRODUCT(((Dataset[Econ4]=$G42))*Dataset[2027/28 To - Spending review Topic 4]*$B$3)","v":0},0,{"$f":"SUMPRODUCT(((Dataset[Econ4]=$G42))*Dataset[2028/29 From - Spending review Topic 4]*$B$3)","v":0},{"$f":"SUMPRODUCT(((Dataset[Econ4]=$G42))*Dataset[2028/29 To - Spending review Topic 4]*$B$3)","v":0},0,{"$f":"SUMPRODUCT(((Dataset[Econ4]=$G42))*Dataset[2029/30 From - Spending review Topic 4]*$B$3)","v":0},{"$f":"SUMPRODUCT(((Dataset[Econ4]=$G42))*Dataset[2029/30 To - Spending review Topic 4]*$B$3)","v":0},0,0,0,0]
["Spending review topic 4",0,null,null,null,null,"Departmental agencies and accounts",{"$f":"SUM(H44:H45)","v":0},0,0,0,0,0,0,0,0,0,0,0]
["Spending review topic 4",0,null,null,null,null,"Social security funds",{"$f":"SUMPRODUCT(((Dataset[Econ4]=$G44))*Dataset[2027/28 From - Spending review Topic 4]*$B$3)","v":0},{"$f":"SUMPRODUCT(((Dataset[Econ4]=$G44))*Dataset[2027/28 To - Spending review Topic 4]*$B$3)","v":0},{"$f":"H44+I44","v":0},{"$f":"SUMPRODUCT(((Dataset[Econ4]=$G44))*Dataset[2028/29 From - Spending review Topic 4]*$B$3)","v":0},{"$f":"SUMPRODUCT(((Dataset[Econ4]=$G44))*Dataset[2028/29 To - Spending review Topic 4]*$B$3)","v":0},{"$f":"K44+L44","v":0},{"$f":"SUMPRODUCT(((Dataset[Econ4]=$G44))*Dataset[2029/30 From - Spending review Topic 4]*$B$3)","v":0},{"$f":"SUMPRODUCT(((Dataset[Econ4]=$G44))*Dataset[2029/30 To - Spending review Topic 4]*$B$3)","v":0},{"$f":"N44+O44","v":0},{"$f":"SUM(H44,K44,N44)","v":0},0,0]
["Spending review topic 4",0,null,null,null,null,"Departmental agencies (non-business entities)",{"$f":"SUMPRODUCT(((Dataset[Econ4]=$G45))*Dataset[2027/28 From - Spending review Topic 4]*$B$3)","v":0},{"$f":"SUMPRODUCT(((Dataset[Econ4]=$G45))*Dataset[2027/28 To - Spending review Topic 4]*$B$3)","v":0},0,{"$f":"SUMPRODUCT(((Dataset[Econ4]=$G45))*Dataset[2028/29 From - Spending review Topic 4]*$B$3)","v":0},{"$f":"SUMPRODUCT(((Dataset[Econ4]=$G45))*Dataset[2028/29 To - Spending review Topic 4]*$B$3)","v":0},0,{"$f":"SUMPRODUCT(((Dataset[Econ4]=$G45))*Dataset[2029/30 From - Spending review Topic 4]*$B$3)","v":0},{"$f":"SUMPRODUCT(((Dataset[Econ4]=$G45))*Dataset[2029/30 To - Spending review Topic 4]*$B$3)","v":0},0,0,0,0]
["Spending review topic 4",0,null,null,null,null,"Higher education institutions",{"$f":"SUMPRODUCT(((Dataset[Econ3]=$G46))*Dataset[2027/28 From - Spending review Topic 4]*$B$3)","v":0},{"$f":"SUMPRODUCT(((Dataset[Econ3]=$G46))*Dataset[2027/28 To - Spending review Topic 4]*$B$3)","v":0},0,{"$f":"SUMPRODUCT(((Dataset[Econ3]=$G46))*Dataset[2028/29 From - Spending review Topic 4]*$B$3)","v":0},{"$f":"SUMPRODUCT(((Dataset[Econ3]=$G46))*Dataset[2028/29 To - Spending review Topic 4]*$B$3)","v":0},0,{"$f":"SUMPRODUCT(((Dataset[Econ3]=$G46))*Dataset[2029/30 From - Spending review Topic 4]*$B$3)","v":0},{"$f":"SUMPRODUCT(((Dataset[Econ3]=$G46))*Dataset[2029/30 To - Spending review Topic 4]*$B$3)","v":0},0,0,0,0]
["Spending review topic 4",0,null,null,null,null,"Foreign governments and international organisations",{"$f":"SUMPRODUCT(((Dataset[Econ3]=$G47))*Dataset[2027/28 From - Spending review Topic 4]*$B$3)","v":0},{"$f":"SUMPRODUCT(((Dataset[Econ3]=$G47))*Dataset[2027/28 To - Spending review Topic 4]*$B$3)","v":0},0,{"$f":"SUMPRODUCT(((Dataset[Econ3]=$G47))*Dataset[2028/29 From - Spending review Topic 4]*$B$3)","v":0},{"$f":"SUMPRODUCT(((Dataset[Econ3]=$G47))*Dataset[2028/29 To - Spending review Topic 4]*$B$3)","v":0},0,{"$f":"SUMPRODUCT(((Dataset[Econ3]=$G47))*Dataset[2029/30 From - Spending review Topic 4]*$B$3)","v":0},{"$f":"SUMPRODUCT(((Dataset[Econ3]=$G47))*Dataset[2029/30 To - Spending review Topic 4]*$B$3)","v":0},0,0,0,0]
["Spending review topic 4",0,null,null,null,null,"Public corporations and private enterprises",{"$f":"SUM(H49:H50)","v":0},0,0,0,0,0,0,0,0,0,0,0]
["Spending review topic 4",0,null,null,null,null,"Public corporations",{"$f":"SUMPRODUCT(((Dataset[Econ4]=$G49))*Dataset[2027/28 From - Spending review Topic 4]*$B$3)","v":0},{"$f":"SUMPRODUCT(((Dataset[Econ4]=$G49))*Dataset[2027/28 To - Spending review Topic 4]*$B$3)","v":0},{"$f":"H49+I49","v":0},{"$f":"SUMPRODUCT(((Dataset[Econ4]=$G49))*Dataset[2028/29 From - Spending review Topic 4]*$B$3)","v":0},{"$f":"SUMPRODUCT(((Dataset[Econ4]=$G49))*Dataset[2028/29 To - Spending review Topic 4]*$B$3)","v":0},{"$f":"K49+L49","v":0},{"$f":"SUMPRODUCT(((Dataset[Econ4]=$G49))*Dataset[2029/30 From - Spending review Topic 4]*$B$3)","v":0},{"$f":"SUMPRODUCT(((Dataset[Econ4]=$G49))*Dataset[2029/30 To - Spending review Topic 4]*$B$3)","v":0},{"$f":"N49+O49","v":0},{"$f":"SUM(H49,K49,N49)","v":0},0,0]
["Spending review topic 4",0,null,null,null,null,"Private enterprises",{"$f":"SUMPRODUCT(((Dataset[Econ4]=$G50))*Dataset[2027/28 From - Spending review Topic 4]*$B$3)","v":0},{"$f":"SUMPRODUCT(((Dataset[Econ4]=$G50))*Dataset[2027/28 To - Spending review Topic 4]*$B$3)","v":0},0,{"$f":"SUMPRODUCT(((Dataset[Econ4]=$G50))*Dataset[2028/29 From - Spending review Topic 4]*$B$3)","v":0},{"$f":"SUMPRODUCT(((Dataset[Econ4]=$G50))*Dataset[2028/29 To - Spending review Topic 4]*$B$3)","v":0},0,{"$f":"SUMPRODUCT(((Dataset[Econ4]=$G50))*Dataset[2029/30 From - Spending review Topic 4]*$B$3)","v":0},{"$f":"SUMPRODUCT(((Dataset[Econ4]=$G50))*Dataset[2029/30 To - Spending review Topic 4]*$B$3)","v":0},0,0,0,0]
["Spending review topic 4",0,null,null,null,null,"Non-profit institutions",{"$f":"SUMPRODUCT(((Dataset[Econ3]=$G51))*Dataset[2027/28 From - Spending review Topic 4]*$B$3)","v":0},{"$f":"SUMPRODUCT(((Dataset[Econ3]=$G51))*Dataset[2027/28 To - Spending review Topic 4]*$B$3)","v":0},0,{"$f":"SUMPRODUCT(((Dataset[Econ3]=$G51))*Dataset[2028/29 From - Spending review Topic 4]*$B$3)","v":0},{"$f":"SUMPRODUCT(((Dataset[Econ3]=$G51))*Dataset[2028/29 To - Spending review Topic 4]*$B$3)","v":0},0,{"$f":"SUMPRODUCT(((Dataset[Econ3]=$G51))*Dataset[2029/30 From - Spending review Topic 4]*$B$3)","v":0},{"$f":"SUMPRODUCT(((Dataset[Econ3]=$G51))*Dataset[2029/30 To - Spending review Topic 4]*$B$3)","v":0},0,0,0,0]
["Spending review topic 4",0,null,null,null,null,"Households",{"$f":"SUM(H53:H54)","v":0},0,0,0,0,0,0,0,0,0,0,0]
["Spending review topic 4",0,null,null,null,null,"Social benefits",{"$f":"SUMPRODUCT(((Dataset[Econ4]=$G53))*Dataset[2027/28 From - Spending review Topic 4]*$B$3)","v":0},{"$f":"SUMPRODUCT(((Dataset[Econ4]=$G53))*Dataset[2027/28 To - Spending review Topic 4]*$B$3)","v":0},{"$f":"H53+I53","v":0},{"$f":"SUMPRODUCT(((Dataset[Econ4]=$G53))*Dataset[2028/29 From - Spending review Topic 4]*$B$3)","v":0},{"$f":"SUMPRODUCT(((Dataset[Econ4]=$G53))*Dataset[2028/29 To - Spending review Topic 4]*$B$3)","v":0},{"$f":"K53+L53","v":0},{"$f":"SUMPRODUCT(((Dataset[Econ4]=$G53))*Dataset[2029/30 From - Spending review Topic 4]*$B$3)","v":0},{"$f":"SUMPRODUCT(((Dataset[Econ4]=$G53))*Dataset[2029/30 To - Spending review Topic 4]*$B$3)","v":0},{"$f":"N53+O53","v":0},{"$f":"SUM(H53,K53,N53)","v":0},0,0]
["Spending review topic 4",0,null,null,null,null,"Other transfers to households",{"$f":"SUMPRODUCT(((Dataset[Econ4]=$G54))*Dataset[2027/28 From - Spending review Topic 4]*$B$3)","v":0},{"$f":"SUMPRODUCT(((Dataset[Econ4]=$G54))*Dataset[2027/28 To - Spending review Topic 4]*$B$3)","v":0},0,{"$f":"SUMPRODUCT(((Dataset[Econ4]=$G54))*Dataset[2028/29 From - Spending review Topic 4]*$B$3)","v":0},{"$f":"SUMPRODUCT(((Dataset[Econ4]=$G54))*Dataset[2028/29 To - Spending review Topic 4]*$B$3)","v":0},0,{"$f":"SUMPRODUCT(((Dataset[Econ4]=$G54))*Dataset[2029/30 From - Spending review Topic 4]*$B$3)","v":0},{"$f":"SUMPRODUCT(((Dataset[Econ4]=$G54))*Dataset[2029/30 To - Spending review Topic 4]*$B$3)","v":0},0,0,0,0]
["Spending review topic 4",0,null,null,null,null,"Payments for capital assets",{"$f":"SUM(H56,H59,H62:H66)","v":0},0,0,0,0,0,0,0,0,0,0,0]
["Spending review topic 4",0,null,null,null,null,"Buildings and other fixed structures",{"$f":"SUM(H57:H58)","v":0},0,0,0,0,0,0,0,0,0,0,0]
["Spending review topic 4",0,null,null,null,null,"Buildings",{"$f":"SUMPRODUCT(((Dataset[Econ4]=$G57))*Dataset[2027/28 From - Spending review Topic 4]*$B$3)","v":0},{"$f":"SUMPRODUCT(((Dataset[Econ4]=$G57))*Dataset[2027/28 To - Spending review Topic 4]*$B$3)","v":0},{"$f":"H57+I57","v":0},{"$f":"SUMPRODUCT(((Dataset[Econ4]=$G57))*Dataset[2028/29 From - Spending review Topic 4]*$B$3)","v":0},{"$f":"SUMPRODUCT(((Dataset[Econ4]=$G57))*Dataset[2028/29 To - Spending review Topic 4]*$B$3)","v":0},{"$f":"K57+L57","v":0},{"$f":"SUMPRODUCT(((Dataset[Econ4]=$G57))*Dataset[2029/30 From - Spending review Topic 4]*$B$3)","v":0},{"$f":"SUMPRODUCT(((Dataset[Econ4]=$G57))*Dataset[2029/30 To - Spending review Topic 4]*$B$3)","v":0},{"$f":"N57+O57","v":0},{"$f":"SUM(H57,K57,N57)","v":0},0,0]
["Spending review topic 4",0,null,null,null,null,"Other fixed structures",{"$f":"SUMPRODUCT(((Dataset[Econ4]=$G58))*Dataset[2027/28 From - Spending review Topic 4]*$B$3)","v":0},{"$f":"SUMPRODUCT(((Dataset[Econ4]=$G58))*Dataset[2027/28 To - Spending review Topic 4]*$B$3)","v":0},0,{"$f":"SUMPRODUCT(((Dataset[Econ4]=$G58))*Dataset[2028/29 From - Spending review Topic 4]*$B$3)","v":0},{"$f":"SUMPRODUCT(((Dataset[Econ4]=$G58))*Dataset[2028/29 To - Spending review Topic 4]*$B$3)","v":0},0,{"$f":"SUMPRODUCT(((Dataset[Econ4]=$G58))*Dataset[2029/30 From - Spending review Topic 4]*$B$3)","v":0},{"$f":"SUMPRODUCT(((Dataset[Econ4]=$G58))*Dataset[2029/30 To - Spending review Topic 4]*$B$3)","v":0},0,0,0,0]
["Spending review topic 4",0,null,null,null,null,"Machinery and equipment",{"$f":"SUM(H60:H61)","v":0},0,0,0,0,0,0,0,0,0,0,0]
["Spending review topic 4",0,null,null,null,null,"Transport equipment",{"$f":"SUMPRODUCT(((Dataset[Econ4]=$G60))*Dataset[2027/28 From - Spending review Topic 4]*$B$3)","v":0},{"$f":"SUMPRODUCT(((Dataset[Econ4]=$G60))*Dataset[2027/28 To - Spending review Topic 4]*$B$3)","v":0},{"$f":"H60+I60","v":0},{"$f":"SUMPRODUCT(((Dataset[Econ4]=$G60))*Dataset[2028/29 From - Spending review Topic 4]*$B$3)","v":0},{"$f":"SUMPRODUCT(((Dataset[Econ4]=$G60))*Dataset[2028/29 To - Spending review Topic 4]*$B$3)","v":0},{"$f":"K60+L60","v":0},{"$f":"SUMPRODUCT(((Dataset[Econ4]=$G60))*Dataset[2029/30 From - Spending review Topic 4]*$B$3)","v":0},{"$f":"SUMPRODUCT(((Dataset[Econ4]=$G60))*Dataset[2029/30 To - Spending review Topic 4]*$B$3)","v":0},{"$f":"N60+O60","v":0},{"$f":"SUM(H60,K60,N60)","v":0},0,0]
["Spending review topic 4",0,null,null,null,null,"Other machinery and equipment",{"$f":"SUMPRODUCT(((Dataset[Econ4]=$G61))*Dataset[2027/28 From - Spending review Topic 4]*$B$3)","v":0},{"$f":"SUMPRODUCT(((Dataset[Econ4]=$G61))*Dataset[2027/28 To - Spending review Topic 4]*$B$3)","v":0},0,{"$f":"SUMPRODUCT(((Dataset[Econ4]=$G61))*Dataset[2028/29 From - Spending review Topic 4]*$B$3)","v":0},{"$f":"SUMPRODUCT(((Dataset[Econ4]=$G61))*Dataset[2028/29 To - Spending review Topic 4]*$B$3)","v":0},0,{"$f":"SUMPRODUCT(((Dataset[Econ4]=$G61))*Dataset[2029/30 From - Spending review Topic 4]*$B$3)","v":0},{"$f":"SUMPRODUCT(((Dataset[Econ4]=$G61))*Dataset[2029/30 To - Spending review Topic 4]*$B$3)","v":0},0,0,0,0]
["Spending review topic 4",0,null,null,null,null,"Heritage assets",{"$f":"SUMPRODUCT(((Dataset[Econ3]=$G62))*Dataset[2027/28 From - Spending review Topic 4]*$B$3)","v":0},{"$f":"SUMPRODUCT(((Dataset[Econ3]=$G62))*Dataset[2027/28 To - Spending review Topic 4]*$B$3)","v":0},0,{"$f":"SUMPRODUCT(((Dataset[Econ3]=$G62))*Dataset[2028/29 From - Spending review Topic 4]*$B$3)","v":0},{"$f":"SUMPRODUCT(((Dataset[Econ3]=$G62))*Dataset[2028/29 To - Spending review Topic 4]*$B$3)","v":0},0,{"$f":"SUMPRODUCT(((Dataset[Econ3]=$G62))*Dataset[2029/30 From - Spending review Topic 4]*$B$3)","v":0},{"$f":"SUMPRODUCT(((Dataset[Econ3]=$G62))*Dataset[2029/30 To - Spending review Topic 4]*$B$3)","v":0},0,0,0,0]
["Spending review topic 4",0,null,null,null,null,"Specialised military assets",{"$f":"SUMPRODUCT(((Dataset[Econ3]=$G63))*Dataset[2027/28 From - Spending review Topic 4]*$B$3)","v":0},{"$f":"SUMPRODUCT(((Dataset[Econ3]=$G63))*Dataset[2027/28 To - Spending review Topic 4]*$B$3)","v":0},0,{"$f":"SUMPRODUCT(((Dataset[Econ3]=$G63))*Dataset[2028/29 From - Spending review Topic 4]*$B$3)","v":0},{"$f":"SUMPRODUCT(((Dataset[Econ3]=$G63))*Dataset[2028/29 To - Spending review Topic 4]*$B$3)","v":0},0,{"$f":"SUMPRODUCT(((Dataset[Econ3]=$G63))*Dataset[2029/30 From - Spending review Topic 4]*$B$3)","v":0},{"$f":"SUMPRODUCT(((Dataset[Econ3]=$G63))*Dataset[2029/30 To - Spending review Topic 4]*$B$3)","v":0},0,0,0,0]
["Spending review topic 4",0,null,null,null,null,"Biological assets",{"$f":"SUMPRODUCT(((Dataset[Econ3]=$G64))*Dataset[2027/28 From - Spending review Topic 4]*$B$3)","v":0},{"$f":"SUMPRODUCT(((Dataset[Econ3]=$G64))*Dataset[2027/28 To - Spending review Topic 4]*$B$3)","v":0},0,{"$f":"SUMPRODUCT(((Dataset[Econ3]=$G64))*Dataset[2028/29 From - Spending review Topic 4]*$B$3)","v":0},{"$f":"SUMPRODUCT(((Dataset[Econ3]=$G64))*Dataset[2028/29 To - Spending review Topic 4]*$B$3)","v":0},0,{"$f":"SUMPRODUCT(((Dataset[Econ3]=$G64))*Dataset[2029/30 From - Spending review Topic 4]*$B$3)","v":0},{"$f":"SUMPRODUCT(((Dataset[Econ3]=$G64))*Dataset[2029/30 To - Spending review Topic 4]*$B$3)","v":0},0,0,0,0]
["Spending review topic 4",0,null,null,null,null,"Land and sub-soil assets",{"$f":"SUMPRODUCT(((Dataset[Econ3]=$G65))*Dataset[2027/28 From - Spending review Topic 4]*$B$3)","v":0},{"$f":"SUMPRODUCT(((Dataset[Econ3]=$G65))*Dataset[2027/28 To - Spending review Topic 4]*$B$3)","v":0},0,{"$f":"SUMPRODUCT(((Dataset[Econ3]=$G65))*Dataset[2028/29 From - Spending review Topic 4]*$B$3)","v":0},{"$f":"SUMPRODUCT(((Dataset[Econ3]=$G65))*Dataset[2028/29 To - Spending review Topic 4]*$B$3)","v":0},0,{"$f":"SUMPRODUCT(((Dataset[Econ3]=$G65))*Dataset[2029/30 From - Spending review Topic 4]*$B$3)","v":0},{"$f":"SUMPRODUCT(((Dataset[Econ3]=$G65))*Dataset[2029/30 To - Spending review Topic 4]*$B$3)","v":0},0,0,0,0]
["Spending review topic 4",0,null,null,null,null,"Software and other intangible assets",{"$f":"SUMPRODUCT(((Dataset[Econ3]=$G66))*Dataset[2027/28 From - Spending review Topic 4]*$B$3)","v":0},{"$f":"SUMPRODUCT(((Dataset[Econ3]=$G66))*Dataset[2027/28 To - Spending review Topic 4]*$B$3)","v":0},0,{"$f":"SUMPRODUCT(((Dataset[Econ3]=$G66))*Dataset[2028/29 From - Spending review Topic 4]*$B$3)","v":0},{"$f":"SUMPRODUCT(((Dataset[Econ3]=$G66))*Dataset[2028/29 To - Spending review Topic 4]*$B$3)","v":0},0,{"$f":"SUMPRODUCT(((Dataset[Econ3]=$G66))*Dataset[2029/30 From - Spending review Topic 4]*$B$3)","v":0},{"$f":"SUMPRODUCT(((Dataset[Econ3]=$G66))*Dataset[2029/30 To - Spending review Topic 4]*$B$3)","v":0},0,0,0,0]
["Spending review topic 4",0,null,null,null,null,"Payments for financial assets",{"$f":"SUMPRODUCT(((Dataset[Econ3]=$G67))*Dataset[2027/28 From - Spending review Topic 4]*$B$3)","v":0},{"$f":"SUMPRODUCT(((Dataset[Econ3]=$G67))*Dataset[2027/28 To - Spending review Topic 4]*$B$3)","v":0},0,{"$f":"SUMPRODUCT(((Dataset[Econ3]=$G67))*Dataset[2028/29 From - Spending review Topic 4]*$B$3)","v":0},{"$f":"SUMPRODUCT(((Dataset[Econ3]=$G67))*Dataset[2028/29 To - Spending review Topic 4]*$B$3)","v":0},0,{"$f":"SUMPRODUCT(((Dataset[Econ3]=$G67))*Dataset[2029/30 From - Spending review Topic 4]*$B$3)","v":0},{"$f":"SUMPRODUCT(((Dataset[Econ3]=$G67))*Dataset[2029/30 To - Spending review Topic 4]*$B$3)","v":0},0,0,0,0]
["Spending review topic 4",0,null,null,null,null,"Total",{"$f":"SUM(H35,H39,H55,H67)","v":0},0,0,0,0,0,0,0,0,0,0,0]
[]
[]
[]
[]
[null,null,null,null,null,null,{"$f":"\"IMPACT OF ADJUSTMENTS: \" &UPPER($G$3)","v":"IMPACT OF ADJUSTMENTS: SPENDING REVIEW TOPIC 4"}]
[]
[null,null,null,null,null,1,"Impact of adjustments on expenditure"]
[{"$f":"$G$3","v":"Spending review topic 4"},5,null,null,null,null,null,{"$f":"MyYear4","v":"2026/27"},null,null,{"$f":"MyYear5","v":"2027/28"},null,null,{"$f":"MyYear6","v":"2028/29"},null,null,{"$f":"MyYear7","v":"2029/30"}]
["Spending review topic 4",5,null,null,null,null,null,"Current expenditure","Potential expenditure @ benchmark level","% Savings if benchmark is achieved","Original number","Change in expenditure","Saving as % of original number","Original number","Change in expenditure","Saving as % of original number","Original number","Change in expenditure","Saving as % of original number"]
["Spending review topic 4",5,null,null,null,null,"Total",null,null,{"$f":"IFERROR((H78-I78)/-H78,\"\")","v":""},null,null,{"$f":"IFERROR((K78-L78)/-K78,\"\")","v":""},null,null,{"$f":"IFERROR((N78-O78)/-N78,\"\")","v":""},null,null,{"$f":"IFERROR((Q78-R78)/-Q78,\"\")","v":""}]
[]
[]
[]
[]
[]
[null,null,null,null,null,2,"Summary of impact on service delivery/policy area due to adjustments"]
[{"$f":"$G$3","v":"Spending review topic 4"},1]
["Spending review topic 4",1]
["Spending review topic 4",1]
["Spending review topic 4",1]
["Spending review topic 4",1]
["Spending review topic 4",1]
["Spending review topic 4",1]
["Spending review topic 4",1]
["Spending review topic 4",1]
["Spending review topic 4",1]
["Spending review topic 4",1]
["Spending review topic 4",1]
["Spending review topic 4",1]
["Spending review topic 4",1]
["Spending review topic 4",1]
[]
[]
[]
[]
[]
[null,null,null,null,null,3,"Impact of adjustments on performance indicators"]
[{"$f":"$G$3","v":"Spending review topic 4"},2,null,null,null,null,null,{"$f":"MyYear4","v":"2026/27"},null,null,{"$f":"MyYear5","v":"2027/28"},null,null,{"$f":"MyYear6","v":"2028/29"},null,null,{"$f":"MyYear7","v":"2029/30"},null,null," Comment",null,null,null,null,"Related MTSF Priority"]
["Spending review topic 4",2,null,null,null,null,"Performance indicator","Current performance","Performance @ benchmark level","Change","Original target","Revised target","Change","Original target","Revised target","Change","Original target","Revised target","Change"]
["Spending review topic 4",2]
["Spending review topic 4",2]
["Spending review topic 4",2]
["Spending review topic 4",2]
["Spending review topic 4",2]
["Spending review topic 4",2]
["Spending review topic 4",2]
["Spending review topic 4",2]
["Spending review topic 4",2]
["Spending review topic 4",2]
["Spending review topic 4",2]
["Spending review topic 4",2]
["Spending review topic 4",2]
["Spending review topic 4",2]
["Spending review topic 4",2]
[]
[]
[]
[]
[]
[null,null,null,null,null,4,"Impact of adjustments on personnel headcount numbers"]
[{"$f":"$G$3","v":"Spending review topic 4"},4,null,null,null,null,null,{"$f":"MyYear4","v":"2026/27"},null,null,{"$f":"MyYear5","v":"2027/28"},null,null,{"$f":"MyYear6","v":"2028/29"},null,null,{"$f":"MyYear7","v":"2029/30"},null,null," Comment"]
["Spending review topic 4",4,null,null,null,null,"Salary level","Current number","Potential number if benchmark is achieved","Change in number","Original number","Revised number","Change in number","Original number","Revised number","Change in number","Original number","Revised number","Change in number"]
["Spending review topic 4",4,null,null,null,null,1,null,null,{"$f":"I131-H131","v":0},null,null,{"$f":"L131-K131","v":0},null,null,{"$f":"O131-N131","v":0},null,null,{"$f":"R131-Q131","v":0}]
["Spending review topic 4",4,null,null,null,null,2,null,null,0,null,null,0,null,null,0,null,null,0]
["Spending review topic 4",4,null,null,null,null,3,null,null,0,null,null,0,null,null,0,null,null,0]
["Spending review topic 4",4,null,null,null,null,4,null,null,0,null,null,0,null,null,0,null,null,0]
["Spending review topic 4",4,null,null,null,null,5,null,null,0,null,null,0,null,null,0,null,null,0]
["Spending review topic 4",4,null,null,null,null,6,null,null,0,null,null,0,null,null,0,null,null,0]
["Spending review topic 4",4,null,null,null,null,7,null,null,0,null,null,0,null,null,0,null,null,0]
["Spending review topic 4",4,null,null,null,null,8,null,null,0,null,null,0,null,null,0,null,null,0]
["Spending review topic 4",4,null,null,null,null,9,null,null,0,null,null,0,null,null,0,null,null,0]
["Spending review topic 4",4,null,null,null,null,10,null,null,0,null,null,0,null,null,0,null,null,0]
["Spending review topic 4",4,null,null,null,null,11,null,null,0,null,null,0,null,null,0,null,null,0]
["Spending review topic 4",4,null,null,null,null,12,null,null,0,null,null,0,null,null,0,null,null,0]
["Spending review topic 4",4,null,null,null,null,13,null,null,0,null,null,0,null,null,0,null,null,0]
["Spending review topic 4",4,null,null,null,null,14,null,null,0,null,null,0,null,null,0,null,null,0]
["Spending review topic 4",4,null,null,null,null,15,null,null,0,null,null,0,null,null,0,null,null,0]
["Spending review topic 4",4,null,null,null,null,16,null,null,0,null,null,0,null,null,0,null,null,0]
["Spending review topic 4",4,null,null,null,null,"Other",null,null,0,null,null,0,null,null,0,null,null,0]
["Spending review topic 4",4,null,null,null,null,"Other",null,null,0,null,null,0,null,null,0,null,null,0]
["Spending review topic 4",4,null,null,null,null,"Other",null,null,0,null,null,0,null,null,0,null,null,0]
["Spending review topic 4",4,null,null,null,null,"Other",null,null,0,null,null,0,null,null,0,null,null,0]
["Spending review topic 4",4,null,null,null,null,"Total",{"$f":"SUM(H131:H150)","v":0},0,0,{"$f":"SUM(K131:K150)","v":0},0,0,0,0,0,0,0,0]
[]
[]
[]
[]
[]
[null,null,null,null,null,5,"Impact of adjustments on infrastructure projects"]
[{"$f":"$G$3","v":"Spending review topic 4"},3,null,null,null,null,null,{"$f":"MyYear4","v":"2026/27"},null,null,{"$f":"MyYear5","v":"2027/28"},null,null,{"$f":"MyYear6","v":"2028/29"},null,null,{"$f":"MyYear7","v":"2029/30"},null,null," Comment"]
["Spending review topic 4",3,null,null,null,null,"Project name","Current number","Market or best in class benchmark","Change","Original amount","Revised amount","Change","Original amount","Revised amount","Change","Original amount","Revised amount","Change"]
["Spending review topic 4",3,null,null,null,null,null,null,null,{"$f":"I160-H160","v":0},null,null,{"$f":"L160-K160","v":0},null,null,{"$f":"O160-N160","v":0},null,null,{"$f":"R160-Q160","v":0}]
["Spending review topic 4",3,null,null,null,null,null,null,null,0,null,null,0,null,null,0,null,null,0]
["Spending review topic 4",3,null,null,null,null,null,null,null,0,null,null,0,null,null,0,null,null,0]
["Spending review topic 4",3,null,null,null,null,null,null,null,0,null,null,0,null,null,0,null,null,0]
["Spending review topic 4",3,null,null,null,null,null,null,null,0,null,null,0,null,null,0,null,null,0]
["Spending review topic 4",3,null,null,null,null,null,null,null,0,null,null,0,null,null,0,null,null,0]
["Spending review topic 4",3,null,null,null,null,null,null,null,0,null,null,0,null,null,0,null,null,0]
["Spending review topic 4",3,null,null,null,null,null,null,null,0,null,null,0,null,null,0,null,null,0]
["Spending review topic 4",3,null,null,null,null,null,null,null,0,null,null,0,null,null,0,null,null,0]
["Spending review topic 4",3,null,null,null,null,null,null,null,0,null,null,0,null,null,0,null,null,0]
["Spending review topic 4",3,null,null,null,null,null,null,null,0,null,null,0,null,null,0,null,null,0]
["Spending review topic 4",3,null,null,null,null,null,null,null,0,null,null,0,null,null,0,null,null,0]
["Spending review topic 4",3,null,null,null,null,null,null,null,0,null,null,0,null,null,0,null,null,0]
["Spending review topic 4",3,null,null,null,null,null,null,null,0,null,null,0,null,null,0,null,null,0]
["Spending review topic 4",3,null,null,null,null,null,null,null,0,null,null,0,null,null,0,null,null,0]
["Spending review topic 4",3,null,null,null,null,null,null,null,0,null,null,0,null,null,0,null,null,0]
["Spending review topic 4",3,null,null,null,null,null,null,null,0,null,null,0,null,null,0,null,null,0]
["Spending review topic 4",3,null,null,null,null,null,null,null,0,null,null,0,null,null,0,null,null,0]
["Spending review topic 4",3,null,null,null,null,null,null,null,0,null,null,0,null,null,0,null,null,0]
["Spending review topic 4",3,null,null,null,null,null,null,null,0,null,null,0,null,null,0,null,null,0]
["Spending review topic 4",3,null,null,null,null,null,null,null,0,null,null,0,null,null,0,null,null,0]
["Spending review topic 4",3,null,null,null,null,null,null,null,0,null,null,0,null,null,0,null,null,0]
["Spending review topic 4",3,null,null,null,null,null,null,null,0,null,null,0,null,null,0,null,null,0]
["Spending review topic 4",3,null,null,null,null,null,null,null,0,null,null,0,null,null,0,null,null,0]
["Spending review topic 4",3,null,null,null,null,null,null,null,0,null,null,0,null,null,0,null,null,0]
["Spending review topic 4",3,null,null,null,null,null,null,null,0,null,null,0,null,null,0,null,null,0]
["Spending review topic 4",3,null,null,null,null,null,null,null,0,null,null,0,null,null,0,null,null,0]
["Spending review topic 4",3,null,null,null,null,null,null,null,0,null,null,0,null,null,0,null,null,0]
["Spending review topic 4",3,null,null,null,null,null,null,null,0,null,null,0,null,null,0,null,null,0]
["Spending review topic 4",3,null,null,null,null,null,null,null,0,null,null,0,null,null,0,null,null,0]
["Spending review topic 4",3,null,null,null,null,null,null,null,0,null,null,0,null,null,0,null,null,0]
["Spending review topic 4",3,null,null,null,null,null,null,null,0,null,null,0,null,null,0,null,null,0]
["Spending review topic 4",3,null,null,null,null,null,null,null,0,null,null,0,null,null,0,null,null,0]
["Spending review topic 4",3,null,null,null,null,null,null,null,0,null,null,0,null,null,0,null,null,0]
["Spending review topic 4",3,null,null,null,null,null,null,null,0,null,null,0,null,null,0,null,null,0]
["Spending review topic 4",3,null,null,null,null,null,null,null,0,null,null,0,null,null,0,null,null,0]
["Spending review topic 4",3,null,null,null,null,null,null,null,0,null,null,0,null,null,0,null,null,0]
["Spending review topic 4",3,null,null,null,null,null,null,null,0,null,null,0,null,null,0,null,null,0]
["Spending review topic 4",3,null,null,null,null,null,null,null,0,null,null,0,null,null,0,null,null,0]
["Spending review topic 4",3,null,null,null,null,null,null,null,0,null,null,0,null,null,0,null,null,0]
["Spending review topic 4",3,null,null,null,null,null,null,null,0,null,null,0,null,null,0,null,null,0]
["Spending review topic 4",3,null,null,null,null,null,null,null,0,null,null,0,null,null,0,null,null,0]
["Spending review topic 4",3,null,null,null,null,null,null,null,0,null,null,0,null,null,0,null,null,0]
["Spending review topic 4",3,null,null,null,null,null,null,null,0,null,null,0,null,null,0,null,null,0]
["Spending review topic 4",3,null,null,null,null,null,null,null,0,null,null,0,null,null,0,null,null,0]
["Spending review topic 4",3,null,null,null,null,null,null,null,0,null,null,0,null,null,0,null,null,0]
["Spending review topic 4",3,null,null,null,null,null,null,null,0,null,null,0,null,null,0,null,null,0]
["Spending review topic 4",3,null,null,null,null,null,null,null,0,null,null,0,null,null,0,null,null,0]
["Spending review topic 4",3,null,null,null,null,null,null,null,0,null,null,0,null,null,0,null,null,0]
["Spending review topic 4",3,null,null,null,null,null,null,null,0,null,null,0,null,null,0,null,null,0]
["Spending review topic 4",3,null,null,null,null,"Total",{"$f":"SUM(H160:H209)","v":0},0,0,0,0,0,0,0,0,0,0,0]

{"sheet":"Other reallocations","index":18,"n_rows":210,"n_cols":25,"rows_kept":210,"cut":false,"hidden":false,"merged":[[208,19,208,23],[202,19,202,23],[203,19,203,23],[204,19,204,23],[205,19,205,23],[206,19,206,23],[207,19,207,23],[201,19,201,23],[190,19,190,23],[191,19,191,23],[192,19,192,23],[193,19,193,23],[194,19,194,23],[195,19,195,23],[196,19,196,23],[197,19,197,23],[198,19,198,23],[199,19,199,23],[200,19,200,23],[189,19,189,23],[178,19,178,23],[179,19,179,23],[180,19,180,23],[181,19,181,23],[182,19,182,23],[183,19,183,23],[184,19,184,23],[185,19,185,23],[186,19,186,23],[187,19,187,23],[188,19,188,23],[177,19,177,23],[166,19,166,23],[167,19,167,23],[168,19,168,23],[169,19,169,23],[170,19,170,23],[171,19,171,23],[172,19,172,23],[173,19,173,23],[174,19,174,23],[175,19,175,23],[176,19,176,23],[165,19,165,23],[128,19,128,23],[129,19,129,23],[130,19,149,23],[157,19,157,23],[158,19,158,23],[159,19,159,23],[160,19,160,23],[161,19,161,23],[162,19,162,23],[163,19,163,23],[164,19,164,23],[119,19,119,23],[119,24,119,26],[120,19,120,23],[120,24,120,26],[121,19,121,23],[121,24,121,26],[116,19,116,23],[116,24,116,26],[117,19,117,23],[117,24,117,26],[118,19,118,23],[118,24,118,26],[113,19,113,23],[113,24,113,26],[114,19,114,23],[114,24,114,26],[115,19,115,23],[115,24,115,26],[110,19,110,23],[110,24,110,26],[111,19,111,23],[111,24,111,26],[112,19,112,23],[112,24,112,26],[107,19,107,23],[107,24,107,26],[108,19,108,23],[108,24,108,26],[109,19,109,23],[109,24,109,26],[72,6,72,18],[84,6,98,18],[105,19,105,23],[105,24,105,26],[106,19,106,23],[106,24,106,26]]}
[]
[]
[null,{"$f":"IF(G3=\"\",0,1)","v":1},null,null,null,5,{"$f":"\"Other reallocations\"","v":"Other reallocations"}]
[]
[null,null,null,null,null,null,"Quick view…(Total change)",{"$f":"MyYear5","v":"2027/28"},{"$f":"MyYear6","v":"2028/29"},{"$f":"MyYear7","v":"2029/30"},"MTEF total","Trend"]
[null,null,null,null,null,null,"Compensation of employees",{"$f":"SUMPRODUCT(($G$35:$G$68=$G6)*($J$35:$J$68))","v":0},{"$f":"SUMPRODUCT(($G$35:$G$68=$G6)*($M$35:$M$68))","v":0},{"$f":"SUMPRODUCT(($G$35:$G$68=$G6)*($P$35:$P$68))","v":0},{"$f":"SUM(H6:J6)","v":0},null,null,"CoE"]
[null,null,null,null,null,null,"Goods and services",{"$f":"SUMPRODUCT(($G$35:$G$68=$G7)*($J$35:$J$68))","v":0},{"$f":"SUMPRODUCT(($G$35:$G$68=$G7)*($M$35:$M$68))","v":0},{"$f":"SUMPRODUCT(($G$35:$G$68=$G7)*($P$35:$P$68))","v":0},0,null,null,"G&S"]
[null,null,null,null,null,null,"Transfers and subsidies",{"$f":"SUMPRODUCT(($G$35:$G$68=$G8)*($J$35:$J$68))","v":0},{"$f":"SUMPRODUCT(($G$35:$G$68=$G8)*($M$35:$M$68))","v":0},{"$f":"SUMPRODUCT(($G$35:$G$68=$G8)*($P$35:$P$68))","v":0},0,null,null,"T&S"]
[null,null,null,null,null,null,"Payments for capital assets",{"$f":"SUMPRODUCT(($G$35:$G$68=$G9)*($J$35:$J$68))","v":0},{"$f":"SUMPRODUCT(($G$35:$G$68=$G9)*($M$35:$M$68))","v":0},{"$f":"SUMPRODUCT(($G$35:$G$68=$G9)*($P$35:$P$68))","v":0},0,null,null,"Capital"]
[null,null,null,null,null,null,"Total",{"$f":"SUMPRODUCT(($G$35:$G$68=$G10)*($J$35:$J$68))","v":0},{"$f":"SUMPRODUCT(($G$35:$G$68=$G10)*($M$35:$M$68))","v":0},{"$f":"SUMPRODUCT(($G$35:$G$68=$G10)*($P$35:$P$68))","v":0},0,null,null,"Total"]
[null,null,null,null,null,null,"% of MTEF total",null,null,null,null,null,null,null,null,null,null,null,{"$f":"MyYear5","v":"2027/28"},{"$f":"MyYear6","v":"2028/29"},{"$f":"MyYear7","v":"2029/30"}]
[null,null,null,null,null,null,"Compensation of employees",{"$f":"IFERROR(H6/$K6,\"\")","v":""},"","",null,null,null,null,null,null,null,{"$f":"G12","v":"Compensation of employees"},{"$f":"IF(H12>0.0595,H12,\"\")","v":""},"",""]
[null,null,null,null,null,null,"Goods and services","","","",null,null,null,null,null,null,null,{"$f":"G13","v":"Goods and services"},"","",""]
[null,null,null,null,null,null,"Transfers and subsidies","","","",null,null,null,null,null,null,null,{"$f":"G14","v":"Transfers and subsidies"},"","",""]
[null,null,null,null,null,null,"Payments for capital assets","","","",null,null,null,null,null,null,null,{"$f":"G15","v":"Payments for capital assets"},"","",""]
[]
[null,null,null,null,null,null,"Division of Revenue",{"$f":"MyYear5","v":"2027/28"},{"$f":"MyYear6","v":"2028/29"},{"$f":"MyYear7","v":"2029/30"},"MTEF total","Trend"]
[null,null,null,null,null,null,"National",{"$f":"SUM(H19:H21)","v":0},0,0,{"$f":"SUM(H18:J18)","v":0}]
[{"$f":"$G$3","v":"Other reallocations"},"NAT",null,null,null,null,"National (excl. indirect grants)",{"$f":"SUMPRODUCT(((Dataset[DOR]=$B19))*Dataset[2027/28 From - Other reallocations])+SUMPRODUCT(((Dataset[DOR]=$B19))*Dataset[2027/28 To - Other reallocations])","v":0},{"$f":"SUMPRODUCT(((Dataset[DOR]=$B19))*Dataset[2028/29 From - Other reallocations])+SUMPRODUCT(((Dataset[DOR]=$B19))*Dataset[2028/29 To - Other reallocations])","v":0},{"$f":"SUMPRODUCT(((Dataset[DOR]=$B19))*Dataset[2029/30 From - Other reallocations])+SUMPRODUCT(((Dataset[DOR]=$B19))*Dataset[2029/30 To - Other reallocations])","v":0},0]
["Other reallocations","IGP",null,null,null,null,"Provincial indirect grants",{"$f":"SUMPRODUCT(((Dataset[DOR]=$B20))*Dataset[2027/28 From - Other reallocations])+SUMPRODUCT(((Dataset[DOR]=$B20))*Dataset[2027/28 To - Other reallocations])","v":0},{"$f":"SUMPRODUCT(((Dataset[DOR]=$B20))*Dataset[2028/29 From - Other reallocations])+SUMPRODUCT(((Dataset[DOR]=$B20))*Dataset[2028/29 To - Other reallocations])","v":0},{"$f":"SUMPRODUCT(((Dataset[DOR]=$B20))*Dataset[2029/30 From - Other reallocations])+SUMPRODUCT(((Dataset[DOR]=$B20))*Dataset[2029/30 To - Other reallocations])","v":0},0]
["Other reallocations","IGM",null,null,null,null,"Local indirect grants",{"$f":"SUMPRODUCT(((Dataset[DOR]=$B21))*Dataset[2027/28 From - Other reallocations])+SUMPRODUCT(((Dataset[DOR]=$B21))*Dataset[2027/28 To - Other reallocations])","v":0},{"$f":"SUMPRODUCT(((Dataset[DOR]=$B21))*Dataset[2028/29 From - Other reallocations])+SUMPRODUCT(((Dataset[DOR]=$B21))*Dataset[2028/29 To - Other reallocations])","v":0},{"$f":"SUMPRODUCT(((Dataset[DOR]=$B21))*Dataset[2029/30 From - Other reallocations])+SUMPRODUCT(((Dataset[DOR]=$B21))*Dataset[2029/30 To - Other reallocations])","v":0},0]
["Other reallocations",null,null,null,null,null,"Provincial",{"$f":"SUMPRODUCT(((Dataset[DOR]=$B22))*Dataset[2027/28 From - Other reallocations])+SUMPRODUCT(((Dataset[DOR]=$B22))*Dataset[2027/28 To - Other reallocations])","v":0},{"$f":"SUMPRODUCT(((Dataset[DOR]=$B22))*Dataset[2028/29 From - Other reallocations])+SUMPRODUCT(((Dataset[DOR]=$B22))*Dataset[2028/29 To - Other reallocations])","v":0},{"$f":"SUMPRODUCT(((Dataset[DOR]=$B22))*Dataset[2029/30 From - Other reallocations])+SUMPRODUCT(((Dataset[DOR]=$B22))*Dataset[2029/30 To - Other reallocations])","v":0},0]
["Other reallocations","PES",null,null,null,null,"Provincial equitable share",{"$f":"SUMPRODUCT(((Dataset[DOR]=$B23))*Dataset[2027/28 From - Other reallocations])+SUMPRODUCT(((Dataset[DOR]=$B23))*Dataset[2027/28 To - Other reallocations])","v":0},{"$f":"SUMPRODUCT(((Dataset[DOR]=$B23))*Dataset[2028/29 From - Other reallocations])+SUMPRODUCT(((Dataset[DOR]=$B23))*Dataset[2028/29 To - Other reallocations])","v":0},{"$f":"SUMPRODUCT(((Dataset[DOR]=$B23))*Dataset[2029/30 From - Other reallocations])+SUMPRODUCT(((Dataset[DOR]=$B23))*Dataset[2029/30 To - Other reallocations])","v":0},0]
["Other reallocations","PCG",null,null,null,null,"Provincial conditional grants",{"$f":"SUMPRODUCT(((Dataset[DOR]=$B24))*Dataset[2027/28 From - Other reallocations])+SUMPRODUCT(((Dataset[DOR]=$B24))*Dataset[2027/28 To - Other reallocations])","v":0},{"$f":"SUMPRODUCT(((Dataset[DOR]=$B24))*Dataset[2028/29 From - Other reallocations])+SUMPRODUCT(((Dataset[DOR]=$B24))*Dataset[2028/29 To - Other reallocations])","v":0},{"$f":"SUMPRODUCT(((Dataset[DOR]=$B24))*Dataset[2029/30 From - Other reallocations])+SUMPRODUCT(((Dataset[DOR]=$B24))*Dataset[2029/30 To - Other reallocations])","v":0},0]
["Other reallocations",null,null,null,null,null,"Local government",{"$f":"SUMPRODUCT(((Dataset[DOR]=$B25))*Dataset[2027/28 From - Other reallocations])+SUMPRODUCT(((Dataset[DOR]=$B25))*Dataset[2027/28 To - Other reallocations])","v":0},{"$f":"SUMPRODUCT(((Dataset[DOR]=$B25))*Dataset[2028/29 From - Other reallocations])+SUMPRODUCT(((Dataset[DOR]=$B25))*Dataset[2028/29 To - Other reallocations])","v":0},{"$f":"SUMPRODUCT(((Dataset[DOR]=$B25))*Dataset[2029/30 From - Other reallocations])+SUMPRODUCT(((Dataset[DOR]=$B25))*Dataset[2029/30 To - Other reallocations])","v":0},0]
["Other reallocations","LES",null,null,null,null,"Local equitable share",{"$f":"SUMPRODUCT(((Dataset[DOR]=$B26))*Dataset[2027/28 From - Other reallocations])+SUMPRODUCT(((Dataset[DOR]=$B26))*Dataset[2027/28 To - Other reallocations])","v":0},{"$f":"SUMPRODUCT(((Dataset[DOR]=$B26))*Dataset[2028/29 From - Other reallocations])+SUMPRODUCT(((Dataset[DOR]=$B26))*Dataset[2028/29 To - Other reallocations])","v":0},{"$f":"SUMPRODUCT(((Dataset[DOR]=$B26))*Dataset[2029/30 From - Other reallocations])+SUMPRODUCT(((Dataset[DOR]=$B26))*Dataset[2029/30 To - Other reallocations])","v":0},0]
["Other reallocations","LCG",null,null,null,null,"Local conditional grants",{"$f":"SUMPRODUCT(((Dataset[DOR]=$B27))*Dataset[2027/28 From - Other reallocations])+SUMPRODUCT(((Dataset[DOR]=$B27))*Dataset[2027/28 To - Other reallocations])","v":0},{"$f":"SUMPRODUCT(((Dataset[DOR]=$B27))*Dataset[2028/29 From - Other reallocations])+SUMPRODUCT(((Dataset[DOR]=$B27))*Dataset[2028/29 To - Other reallocations])","v":0},{"$f":"SUMPRODUCT(((Dataset[DOR]=$B27))*Dataset[2029/30 From - Other reallocations])+SUMPRODUCT(((Dataset[DOR]=$B27))*Dataset[2029/30 To - Other reallocations])","v":0},0]
["Other reallocations","GFL",null,null,null,null,"General fuel levy ",{"$f":"SUMPRODUCT(((Dataset[DOR]=$B28))*Dataset[2027/28 From - Other reallocations])+SUMPRODUCT(((Dataset[DOR]=$B28))*Dataset[2027/28 To - Other reallocations])","v":0},{"$f":"SUMPRODUCT(((Dataset[DOR]=$B28))*Dataset[2028/29 From - Other reallocations])+SUMPRODUCT(((Dataset[DOR]=$B28))*Dataset[2028/29 To - Other reallocations])","v":0},{"$f":"SUMPRODUCT(((Dataset[DOR]=$B28))*Dataset[2029/30 From - Other reallocations])+SUMPRODUCT(((Dataset[DOR]=$B28))*Dataset[2029/30 To - Other reallocations])","v":0},0]
[]
[]
[null,null,null,null,null,null,{"$f":"G3","v":"Other reallocations"}]
[{"$f":"$G$3","v":"Other reallocations"},0,null,null,null,null,null,{"$f":"MyYear5","v":"2027/28"},null,null,{"$f":"MyYear6","v":"2028/29"},null,null,{"$f":"MyYear7","v":"2029/30"},null,null,"Total over MTEF"]
[{"$f":"$G$3","v":"Other reallocations"},0,null,null,null,null,"Rand thousand","From","To","Total change","From","To","Total change","From","To","Total change","From","To","Total change"]
["Other reallocations",0,null,null,null,null,"Economic classification"]
["Other reallocations",0,null,null,null,null,"Current payments",{"$f":"SUM(H36:H38)","v":0},0,0,0,0,0,0,0,0,0,0,0]
["Other reallocations",0,null,null,null,null,"Compensation of employees",{"$f":"SUMPRODUCT(((Dataset[Econ3]=$G36))*Dataset[2027/28 From - Other reallocations]*$B$3)","v":0},{"$f":"SUMPRODUCT(((Dataset[Econ3]=$G36))*Dataset[2027/28 To - Other reallocations]*$B$3)","v":0},{"$f":"H36+I36","v":0},{"$f":"SUMPRODUCT(((Dataset[Econ3]=$G36))*Dataset[2028/29 From - Other reallocations]*$B$3)","v":0},{"$f":"SUMPRODUCT(((Dataset[Econ3]=$G36))*Dataset[2028/29 To - Other reallocations]*$B$3)","v":0},{"$f":"K36+L36","v":0},{"$f":"SUMPRODUCT(((Dataset[Econ3]=$G36))*Dataset[2029/30 From - Other reallocations]*$B$3)","v":0},{"$f":"SUMPRODUCT(((Dataset[Econ3]=$G36))*Dataset[2029/30 To - Other reallocations]*$B$3)","v":0},{"$f":"N36+O36","v":0},{"$f":"SUM(H36,K36,N36)","v":0},0,0]
["Other reallocations",0,null,null,null,null,"Goods and services",{"$f":"SUMPRODUCT(((Dataset[Econ3]=$G37))*Dataset[2027/28 From - Other reallocations]*$B$3)","v":0},{"$f":"SUMPRODUCT(((Dataset[Econ3]=$G37))*Dataset[2027/28 To - Other reallocations]*$B$3)","v":0},0,{"$f":"SUMPRODUCT(((Dataset[Econ3]=$G37))*Dataset[2028/29 From - Other reallocations]*$B$3)","v":0},{"$f":"SUMPRODUCT(((Dataset[Econ3]=$G37))*Dataset[2028/29 To - Other reallocations]*$B$3)","v":0},0,{"$f":"SUMPRODUCT(((Dataset[Econ3]=$G37))*Dataset[2029/30 From - Other reallocations]*$B$3)","v":0},{"$f":"SUMPRODUCT(((Dataset[Econ3]=$G37))*Dataset[2029/30 To - Other reallocations]*$B$3)","v":0},0,0,0,0]
["Other reallocations",0,null,null,null,null,"Interest and rent on land",{"$f":"SUMPRODUCT(((Dataset[Econ3]=$G38))*Dataset[2027/28 From - Other reallocations]*$B$3)","v":0},{"$f":"SUMPRODUCT(((Dataset[Econ3]=$G38))*Dataset[2027/28 To - Other reallocations]*$B$3)","v":0},0,{"$f":"SUMPRODUCT(((Dataset[Econ3]=$G38))*Dataset[2028/29 From - Other reallocations]*$B$3)","v":0},{"$f":"SUMPRODUCT(((Dataset[Econ3]=$G38))*Dataset[2028/29 To - Other reallocations]*$B$3)","v":0},0,{"$f":"SUMPRODUCT(((Dataset[Econ3]=$G38))*Dataset[2029/30 From - Other reallocations]*$B$3)","v":0},{"$f":"SUMPRODUCT(((Dataset[Econ3]=$G38))*Dataset[2029/30 To - Other reallocations]*$B$3)","v":0},0,0,0,0]
["Other reallocations",0,null,null,null,null,"Transfers and subsidies",{"$f":"SUM(H40,H43,H46:H48,H51:H52)","v":0},0,0,0,0,0,0,0,0,0,0,0]
["Other reallocations",0,null,null,null,null,"Provinces and municipalities",{"$f":"SUM(H41:H42)","v":0},0,0,0,0,0,0,0,0,0,0,0]
["Other reallocations",0,null,null,null,null,"Provinces",{"$f":"SUMPRODUCT(((Dataset[Econ4]=$G41))*Dataset[2027/28 From - Other reallocations]*$B$3)","v":0},{"$f":"SUMPRODUCT(((Dataset[Econ4]=$G41))*Dataset[2027/28 To - Other reallocations]*$B$3)","v":0},{"$f":"H41+I41","v":0},{"$f":"SUMPRODUCT(((Dataset[Econ4]=$G41))*Dataset[2028/29 From - Other reallocations]*$B$3)","v":0},{"$f":"SUMPRODUCT(((Dataset[Econ4]=$G41))*Dataset[2028/29 To - Other reallocations]*$B$3)","v":0},{"$f":"K41+L41","v":0},{"$f":"SUMPRODUCT(((Dataset[Econ4]=$G41))*Dataset[2029/30 From - Other reallocations]*$B$3)","v":0},{"$f":"SUMPRODUCT(((Dataset[Econ4]=$G41))*Dataset[2029/30 To - Other reallocations]*$B$3)","v":0},{"$f":"N41+O41","v":0},{"$f":"SUM(H41,K41,N41)","v":0},0,0]
["Other reallocations",0,null,null,null,null,"Municipalities",{"$f":"SUMPRODUCT(((Dataset[Econ4]=$G42))*Dataset[2027/28 From - Other reallocations]*$B$3)","v":0},{"$f":"SUMPRODUCT(((Dataset[Econ4]=$G42))*Dataset[2027/28 To - Other reallocations]*$B$3)","v":0},0,{"$f":"SUMPRODUCT(((Dataset[Econ4]=$G42))*Dataset[2028/29 From - Other reallocations]*$B$3)","v":0},{"$f":"SUMPRODUCT(((Dataset[Econ4]=$G42))*Dataset[2028/29 To - Other reallocations]*$B$3)","v":0},0,{"$f":"SUMPRODUCT(((Dataset[Econ4]=$G42))*Dataset[2029/30 From - Other reallocations]*$B$3)","v":0},{"$f":"SUMPRODUCT(((Dataset[Econ4]=$G42))*Dataset[2029/30 To - Other reallocations]*$B$3)","v":0},0,0,0,0]
["Other reallocations",0,null,null,null,null,"Departmental agencies and accounts",{"$f":"SUM(H44:H45)","v":0},0,0,0,0,0,0,0,0,0,0,0]
["Other reallocations",0,null,null,null,null,"Social security funds",{"$f":"SUMPRODUCT(((Dataset[Econ4]=$G44))*Dataset[2027/28 From - Other reallocations]*$B$3)","v":0},{"$f":"SUMPRODUCT(((Dataset[Econ4]=$G44))*Dataset[2027/28 To - Other reallocations]*$B$3)","v":0},{"$f":"H44+I44","v":0},{"$f":"SUMPRODUCT(((Dataset[Econ4]=$G44))*Dataset[2028/29 From - Other reallocations]*$B$3)","v":0},{"$f":"SUMPRODUCT(((Dataset[Econ4]=$G44))*Dataset[2028/29 To - Other reallocations]*$B$3)","v":0},{"$f":"K44+L44","v":0},{"$f":"SUMPRODUCT(((Dataset[Econ4]=$G44))*Dataset[2029/30 From - Other reallocations]*$B$3)","v":0},{"$f":"SUMPRODUCT(((Dataset[Econ4]=$G44))*Dataset[2029/30 To - Other reallocations]*$B$3)","v":0},{"$f":"N44+O44","v":0},{"$f":"SUM(H44,K44,N44)","v":0},0,0]
["Other reallocations",0,null,null,null,null,"Departmental agencies (non-business entities)",{"$f":"SUMPRODUCT(((Dataset[Econ4]=$G45))*Dataset[2027/28 From - Other reallocations]*$B$3)","v":0},{"$f":"SUMPRODUCT(((Dataset[Econ4]=$G45))*Dataset[2027/28 To - Other reallocations]*$B$3)","v":0},0,{"$f":"SUMPRODUCT(((Dataset[Econ4]=$G45))*Dataset[2028/29 From - Other reallocations]*$B$3)","v":0},{"$f":"SUMPRODUCT(((Dataset[Econ4]=$G45))*Dataset[2028/29 To - Other reallocations]*$B$3)","v":0},0,{"$f":"SUMPRODUCT(((Dataset[Econ4]=$G45))*Dataset[2029/30 From - Other reallocations]*$B$3)","v":0},{"$f":"SUMPRODUCT(((Dataset[Econ4]=$G45))*Dataset[2029/30 To - Other reallocations]*$B$3)","v":0},0,0,0,0]
["Other reallocations",0,null,null,null,null,"Higher education institutions",{"$f":"SUMPRODUCT(((Dataset[Econ3]=$G46))*Dataset[2027/28 From - Other reallocations]*$B$3)","v":0},{"$f":"SUMPRODUCT(((Dataset[Econ3]=$G46))*Dataset[2027/28 To - Other reallocations]*$B$3)","v":0},0,{"$f":"SUMPRODUCT(((Dataset[Econ3]=$G46))*Dataset[2028/29 From - Other reallocations]*$B$3)","v":0},{"$f":"SUMPRODUCT(((Dataset[Econ3]=$G46))*Dataset[2028/29 To - Other reallocations]*$B$3)","v":0},0,{"$f":"SUMPRODUCT(((Dataset[Econ3]=$G46))*Dataset[2029/30 From - Other reallocations]*$B$3)","v":0},{"$f":"SUMPRODUCT(((Dataset[Econ3]=$G46))*Dataset[2029/30 To - Other reallocations]*$B$3)","v":0},0,0,0,0]
["Other reallocations",0,null,null,null,null,"Foreign governments and international organisations",{"$f":"SUMPRODUCT(((Dataset[Econ3]=$G47))*Dataset[2027/28 From - Other reallocations]*$B$3)","v":0},{"$f":"SUMPRODUCT(((Dataset[Econ3]=$G47))*Dataset[2027/28 To - Other reallocations]*$B$3)","v":0},0,{"$f":"SUMPRODUCT(((Dataset[Econ3]=$G47))*Dataset[2028/29 From - Other reallocations]*$B$3)","v":0},{"$f":"SUMPRODUCT(((Dataset[Econ3]=$G47))*Dataset[2028/29 To - Other reallocations]*$B$3)","v":0},0,{"$f":"SUMPRODUCT(((Dataset[Econ3]=$G47))*Dataset[2029/30 From - Other reallocations]*$B$3)","v":0},{"$f":"SUMPRODUCT(((Dataset[Econ3]=$G47))*Dataset[2029/30 To - Other reallocations]*$B$3)","v":0},0,0,0,0]
["Other reallocations",0,null,null,null,null,"Public corporations and private enterprises",{"$f":"SUM(H49:H50)","v":0},0,0,0,0,0,0,0,0,0,0,0]
["Other reallocations",0,null,null,null,null,"Public corporations",{"$f":"SUMPRODUCT(((Dataset[Econ4]=$G49))*Dataset[2027/28 From - Other reallocations]*$B$3)","v":0},{"$f":"SUMPRODUCT(((Dataset[Econ4]=$G49))*Dataset[2027/28 To - Other reallocations]*$B$3)","v":0},{"$f":"H49+I49","v":0},{"$f":"SUMPRODUCT(((Dataset[Econ4]=$G49))*Dataset[2028/29 From - Other reallocations]*$B$3)","v":0},{"$f":"SUMPRODUCT(((Dataset[Econ4]=$G49))*Dataset[2028/29 To - Other reallocations]*$B$3)","v":0},{"$f":"K49+L49","v":0},{"$f":"SUMPRODUCT(((Dataset[Econ4]=$G49))*Dataset[2029/30 From - Other reallocations]*$B$3)","v":0},{"$f":"SUMPRODUCT(((Dataset[Econ4]=$G49))*Dataset[2029/30 To - Other reallocations]*$B$3)","v":0},{"$f":"N49+O49","v":0},{"$f":"SUM(H49,K49,N49)","v":0},0,0]
["Other reallocations",0,null,null,null,null,"Private enterprises",{"$f":"SUMPRODUCT(((Dataset[Econ4]=$G50))*Dataset[2027/28 From - Other reallocations]*$B$3)","v":0},{"$f":"SUMPRODUCT(((Dataset[Econ4]=$G50))*Dataset[2027/28 To - Other reallocations]*$B$3)","v":0},0,{"$f":"SUMPRODUCT(((Dataset[Econ4]=$G50))*Dataset[2028/29 From - Other reallocations]*$B$3)","v":0},{"$f":"SUMPRODUCT(((Dataset[Econ4]=$G50))*Dataset[2028/29 To - Other reallocations]*$B$3)","v":0},0,{"$f":"SUMPRODUCT(((Dataset[Econ4]=$G50))*Dataset[2029/30 From - Other reallocations]*$B$3)","v":0},{"$f":"SUMPRODUCT(((Dataset[Econ4]=$G50))*Dataset[2029/30 To - Other reallocations]*$B$3)","v":0},0,0,0,0]
["Other reallocations",0,null,null,null,null,"Non-profit institutions",{"$f":"SUMPRODUCT(((Dataset[Econ3]=$G51))*Dataset[2027/28 From - Other reallocations]*$B$3)","v":0},{"$f":"SUMPRODUCT(((Dataset[Econ3]=$G51))*Dataset[2027/28 To - Other reallocations]*$B$3)","v":0},0,{"$f":"SUMPRODUCT(((Dataset[Econ3]=$G51))*Dataset[2028/29 From - Other reallocations]*$B$3)","v":0},{"$f":"SUMPRODUCT(((Dataset[Econ3]=$G51))*Dataset[2028/29 To - Other reallocations]*$B$3)","v":0},0,{"$f":"SUMPRODUCT(((Dataset[Econ3]=$G51))*Dataset[2029/30 From - Other reallocations]*$B$3)","v":0},{"$f":"SUMPRODUCT(((Dataset[Econ3]=$G51))*Dataset[2029/30 To - Other reallocations]*$B$3)","v":0},0,0,0,0]
["Other reallocations",0,null,null,null,null,"Households",{"$f":"SUM(H53:H54)","v":0},0,0,0,0,0,0,0,0,0,0,0]
["Other reallocations",0,null,null,null,null,"Social benefits",{"$f":"SUMPRODUCT(((Dataset[Econ4]=$G53))*Dataset[2027/28 From - Other reallocations]*$B$3)","v":0},{"$f":"SUMPRODUCT(((Dataset[Econ4]=$G53))*Dataset[2027/28 To - Other reallocations]*$B$3)","v":0},{"$f":"H53+I53","v":0},{"$f":"SUMPRODUCT(((Dataset[Econ4]=$G53))*Dataset[2028/29 From - Other reallocations]*$B$3)","v":0},{"$f":"SUMPRODUCT(((Dataset[Econ4]=$G53))*Dataset[2028/29 To - Other reallocations]*$B$3)","v":0},{"$f":"K53+L53","v":0},{"$f":"SUMPRODUCT(((Dataset[Econ4]=$G53))*Dataset[2029/30 From - Other reallocations]*$B$3)","v":0},{"$f":"SUMPRODUCT(((Dataset[Econ4]=$G53))*Dataset[2029/30 To - Other reallocations]*$B$3)","v":0},{"$f":"N53+O53","v":0},{"$f":"SUM(H53,K53,N53)","v":0},0,0]
["Other reallocations",0,null,null,null,null,"Other transfers to households",{"$f":"SUMPRODUCT(((Dataset[Econ4]=$G54))*Dataset[2027/28 From - Other reallocations]*$B$3)","v":0},{"$f":"SUMPRODUCT(((Dataset[Econ4]=$G54))*Dataset[2027/28 To - Other reallocations]*$B$3)","v":0},0,{"$f":"SUMPRODUCT(((Dataset[Econ4]=$G54))*Dataset[2028/29 From - Other reallocations]*$B$3)","v":0},{"$f":"SUMPRODUCT(((Dataset[Econ4]=$G54))*Dataset[2028/29 To - Other reallocations]*$B$3)","v":0},0,{"$f":"SUMPRODUCT(((Dataset[Econ4]=$G54))*Dataset[2029/30 From - Other reallocations]*$B$3)","v":0},{"$f":"SUMPRODUCT(((Dataset[Econ4]=$G54))*Dataset[2029/30 To - Other reallocations]*$B$3)","v":0},0,0,0,0]
["Other reallocations",0,null,null,null,null,"Payments for capital assets",{"$f":"SUM(H56,H59,H62:H66)","v":0},0,0,0,0,0,0,0,0,0,0,0]
["Other reallocations",0,null,null,null,null,"Buildings and other fixed structures",{"$f":"SUM(H57:H58)","v":0},0,0,0,0,0,0,0,0,0,0,0]
["Other reallocations",0,null,null,null,null,"Buildings",{"$f":"SUMPRODUCT(((Dataset[Econ4]=$G57))*Dataset[2027/28 From - Other reallocations]*$B$3)","v":0},{"$f":"SUMPRODUCT(((Dataset[Econ4]=$G57))*Dataset[2027/28 To - Other reallocations]*$B$3)","v":0},{"$f":"H57+I57","v":0},{"$f":"SUMPRODUCT(((Dataset[Econ4]=$G57))*Dataset[2028/29 From - Other reallocations]*$B$3)","v":0},{"$f":"SUMPRODUCT(((Dataset[Econ4]=$G57))*Dataset[2028/29 To - Other reallocations]*$B$3)","v":0},{"$f":"K57+L57","v":0},{"$f":"SUMPRODUCT(((Dataset[Econ4]=$G57))*Dataset[2029/30 From - Other reallocations]*$B$3)","v":0},{"$f":"SUMPRODUCT(((Dataset[Econ4]=$G57))*Dataset[2029/30 To - Other reallocations]*$B$3)","v":0},{"$f":"N57+O57","v":0},{"$f":"SUM(H57,K57,N57)","v":0},0,0]
["Other reallocations",0,null,null,null,null,"Other fixed structures",{"$f":"SUMPRODUCT(((Dataset[Econ4]=$G58))*Dataset[2027/28 From - Other reallocations]*$B$3)","v":0},{"$f":"SUMPRODUCT(((Dataset[Econ4]=$G58))*Dataset[2027/28 To - Other reallocations]*$B$3)","v":0},0,{"$f":"SUMPRODUCT(((Dataset[Econ4]=$G58))*Dataset[2028/29 From - Other reallocations]*$B$3)","v":0},{"$f":"SUMPRODUCT(((Dataset[Econ4]=$G58))*Dataset[2028/29 To - Other reallocations]*$B$3)","v":0},0,{"$f":"SUMPRODUCT(((Dataset[Econ4]=$G58))*Dataset[2029/30 From - Other reallocations]*$B$3)","v":0},{"$f":"SUMPRODUCT(((Dataset[Econ4]=$G58))*Dataset[2029/30 To - Other reallocations]*$B$3)","v":0},0,0,0,0]
["Other reallocations",0,null,null,null,null,"Machinery and equipment",{"$f":"SUM(H60:H61)","v":0},0,0,0,0,0,0,0,0,0,0,0]
["Other reallocations",0,null,null,null,null,"Transport equipment",{"$f":"SUMPRODUCT(((Dataset[Econ4]=$G60))*Dataset[2027/28 From - Other reallocations]*$B$3)","v":0},{"$f":"SUMPRODUCT(((Dataset[Econ4]=$G60))*Dataset[2027/28 To - Other reallocations]*$B$3)","v":0},{"$f":"H60+I60","v":0},{"$f":"SUMPRODUCT(((Dataset[Econ4]=$G60))*Dataset[2028/29 From - Other reallocations]*$B$3)","v":0},{"$f":"SUMPRODUCT(((Dataset[Econ4]=$G60))*Dataset[2028/29 To - Other reallocations]*$B$3)","v":0},{"$f":"K60+L60","v":0},{"$f":"SUMPRODUCT(((Dataset[Econ4]=$G60))*Dataset[2029/30 From - Other reallocations]*$B$3)","v":0},{"$f":"SUMPRODUCT(((Dataset[Econ4]=$G60))*Dataset[2029/30 To - Other reallocations]*$B$3)","v":0},{"$f":"N60+O60","v":0},{"$f":"SUM(H60,K60,N60)","v":0},0,0]
["Other reallocations",0,null,null,null,null,"Other machinery and equipment",{"$f":"SUMPRODUCT(((Dataset[Econ4]=$G61))*Dataset[2027/28 From - Other reallocations]*$B$3)","v":0},{"$f":"SUMPRODUCT(((Dataset[Econ4]=$G61))*Dataset[2027/28 To - Other reallocations]*$B$3)","v":0},0,{"$f":"SUMPRODUCT(((Dataset[Econ4]=$G61))*Dataset[2028/29 From - Other reallocations]*$B$3)","v":0},{"$f":"SUMPRODUCT(((Dataset[Econ4]=$G61))*Dataset[2028/29 To - Other reallocations]*$B$3)","v":0},0,{"$f":"SUMPRODUCT(((Dataset[Econ4]=$G61))*Dataset[2029/30 From - Other reallocations]*$B$3)","v":0},{"$f":"SUMPRODUCT(((Dataset[Econ4]=$G61))*Dataset[2029/30 To - Other reallocations]*$B$3)","v":0},0,0,0,0]
["Other reallocations",0,null,null,null,null,"Heritage assets",{"$f":"SUMPRODUCT(((Dataset[Econ3]=$G62))*Dataset[2027/28 From - Other reallocations]*$B$3)","v":0},{"$f":"SUMPRODUCT(((Dataset[Econ3]=$G62))*Dataset[2027/28 To - Other reallocations]*$B$3)","v":0},0,{"$f":"SUMPRODUCT(((Dataset[Econ3]=$G62))*Dataset[2028/29 From - Other reallocations]*$B$3)","v":0},{"$f":"SUMPRODUCT(((Dataset[Econ3]=$G62))*Dataset[2028/29 To - Other reallocations]*$B$3)","v":0},0,{"$f":"SUMPRODUCT(((Dataset[Econ3]=$G62))*Dataset[2029/30 From - Other reallocations]*$B$3)","v":0},{"$f":"SUMPRODUCT(((Dataset[Econ3]=$G62))*Dataset[2029/30 To - Other reallocations]*$B$3)","v":0},0,0,0,0]
["Other reallocations",0,null,null,null,null,"Specialised military assets",{"$f":"SUMPRODUCT(((Dataset[Econ3]=$G63))*Dataset[2027/28 From - Other reallocations]*$B$3)","v":0},{"$f":"SUMPRODUCT(((Dataset[Econ3]=$G63))*Dataset[2027/28 To - Other reallocations]*$B$3)","v":0},0,{"$f":"SUMPRODUCT(((Dataset[Econ3]=$G63))*Dataset[2028/29 From - Other reallocations]*$B$3)","v":0},{"$f":"SUMPRODUCT(((Dataset[Econ3]=$G63))*Dataset[2028/29 To - Other reallocations]*$B$3)","v":0},0,{"$f":"SUMPRODUCT(((Dataset[Econ3]=$G63))*Dataset[2029/30 From - Other reallocations]*$B$3)","v":0},{"$f":"SUMPRODUCT(((Dataset[Econ3]=$G63))*Dataset[2029/30 To - Other reallocations]*$B$3)","v":0},0,0,0,0]
["Other reallocations",0,null,null,null,null,"Biological assets",{"$f":"SUMPRODUCT(((Dataset[Econ3]=$G64))*Dataset[2027/28 From - Other reallocations]*$B$3)","v":0},{"$f":"SUMPRODUCT(((Dataset[Econ3]=$G64))*Dataset[2027/28 To - Other reallocations]*$B$3)","v":0},0,{"$f":"SUMPRODUCT(((Dataset[Econ3]=$G64))*Dataset[2028/29 From - Other reallocations]*$B$3)","v":0},{"$f":"SUMPRODUCT(((Dataset[Econ3]=$G64))*Dataset[2028/29 To - Other reallocations]*$B$3)","v":0},0,{"$f":"SUMPRODUCT(((Dataset[Econ3]=$G64))*Dataset[2029/30 From - Other reallocations]*$B$3)","v":0},{"$f":"SUMPRODUCT(((Dataset[Econ3]=$G64))*Dataset[2029/30 To - Other reallocations]*$B$3)","v":0},0,0,0,0]
["Other reallocations",0,null,null,null,null,"Land and sub-soil assets",{"$f":"SUMPRODUCT(((Dataset[Econ3]=$G65))*Dataset[2027/28 From - Other reallocations]*$B$3)","v":0},{"$f":"SUMPRODUCT(((Dataset[Econ3]=$G65))*Dataset[2027/28 To - Other reallocations]*$B$3)","v":0},0,{"$f":"SUMPRODUCT(((Dataset[Econ3]=$G65))*Dataset[2028/29 From - Other reallocations]*$B$3)","v":0},{"$f":"SUMPRODUCT(((Dataset[Econ3]=$G65))*Dataset[2028/29 To - Other reallocations]*$B$3)","v":0},0,{"$f":"SUMPRODUCT(((Dataset[Econ3]=$G65))*Dataset[2029/30 From - Other reallocations]*$B$3)","v":0},{"$f":"SUMPRODUCT(((Dataset[Econ3]=$G65))*Dataset[2029/30 To - Other reallocations]*$B$3)","v":0},0,0,0,0]
["Other reallocations",0,null,null,null,null,"Software and other intangible assets",{"$f":"SUMPRODUCT(((Dataset[Econ3]=$G66))*Dataset[2027/28 From - Other reallocations]*$B$3)","v":0},{"$f":"SUMPRODUCT(((Dataset[Econ3]=$G66))*Dataset[2027/28 To - Other reallocations]*$B$3)","v":0},0,{"$f":"SUMPRODUCT(((Dataset[Econ3]=$G66))*Dataset[2028/29 From - Other reallocations]*$B$3)","v":0},{"$f":"SUMPRODUCT(((Dataset[Econ3]=$G66))*Dataset[2028/29 To - Other reallocations]*$B$3)","v":0},0,{"$f":"SUMPRODUCT(((Dataset[Econ3]=$G66))*Dataset[2029/30 From - Other reallocations]*$B$3)","v":0},{"$f":"SUMPRODUCT(((Dataset[Econ3]=$G66))*Dataset[2029/30 To - Other reallocations]*$B$3)","v":0},0,0,0,0]
["Other reallocations",0,null,null,null,null,"Payments for financial assets",{"$f":"SUMPRODUCT(((Dataset[Econ3]=$G67))*Dataset[2027/28 From - Other reallocations]*$B$3)","v":0},{"$f":"SUMPRODUCT(((Dataset[Econ3]=$G67))*Dataset[2027/28 To - Other reallocations]*$B$3)","v":0},0,{"$f":"SUMPRODUCT(((Dataset[Econ3]=$G67))*Dataset[2028/29 From - Other reallocations]*$B$3)","v":0},{"$f":"SUMPRODUCT(((Dataset[Econ3]=$G67))*Dataset[2028/29 To - Other reallocations]*$B$3)","v":0},0,{"$f":"SUMPRODUCT(((Dataset[Econ3]=$G67))*Dataset[2029/30 From - Other reallocations]*$B$3)","v":0},{"$f":"SUMPRODUCT(((Dataset[Econ3]=$G67))*Dataset[2029/30 To - Other reallocations]*$B$3)","v":0},0,0,0,0]
["Other reallocations",0,null,null,null,null,"Total",{"$f":"SUM(H35,H39,H55,H67)","v":0},0,0,0,0,0,0,0,0,0,0,0]
[]
[]
[]
[]
[null,null,null,null,null,null,{"$f":"\"IMPACT OF ADJUSTMENTS: \" &UPPER($G$3)","v":"IMPACT OF ADJUSTMENTS: OTHER REALLOCATIONS"}]
[]
[null,null,null,null,null,1,"Impact of adjustments on expenditure"]
[{"$f":"$G$3","v":"Other reallocations"},5,null,null,null,null,null,{"$f":"MyYear4","v":"2026/27"},null,null,{"$f":"MyYear5","v":"2027/28"},null,null,{"$f":"MyYear6","v":"2028/29"},null,null,{"$f":"MyYear7","v":"2029/30"}]
["Other reallocations",5,null,null,null,null,null,"Current expenditure","Potential expenditure @ benchmark level","% Savings if benchmark is achieved","Original number","Change in expenditure","Saving as % of original number","Original number","Change in expenditure","Saving as % of original number","Original number","Change in expenditure","Saving as % of original number"]
["Other reallocations",5,null,null,null,null,"Total",null,null,{"$f":"IFERROR((H78-I78)/H78,\"\")","v":""},null,null,{"$f":"IFERROR(L78/K78,\"\")","v":""},null,null,{"$f":"IFERROR(O78/N78,\"\")","v":""},null,null,{"$f":"IFERROR(R78/Q78,\"\")","v":""}]
[]
[]
[]
[]
[]
[null,null,null,null,null,2,"Summary of impact on service delivery/policy area due to adjustments"]
[{"$f":"$G$3","v":"Other reallocations"},1]
["Other reallocations",1]
["Other reallocations",1]
["Other reallocations",1]
["Other reallocations",1]
["Other reallocations",1]
["Other reallocations",1]
["Other reallocations",1]
["Other reallocations",1]
["Other reallocations",1]
["Other reallocations",1]
["Other reallocations",1]
["Other reallocations",1]
["Other reallocations",1]
["Other reallocations",1]
[]
[]
[]
[]
[]
[null,null,null,null,null,3,"Impact of adjustments on performance indicators"]
[{"$f":"$G$3","v":"Other reallocations"},2,null,null,null,null,null,{"$f":"MyYear4","v":"2026/27"},null,null,{"$f":"MyYear5","v":"2027/28"},null,null,{"$f":"MyYear6","v":"2028/29"},null,null,{"$f":"MyYear7","v":"2029/30"},null,null," Comment",null,null,null,null,"Related MTSF Priority"]
["Other reallocations",2,null,null,null,null,"Performance indicator","Current performance","Performance @ benchmark level","Change","Original target","Revised target","Change","Original target","Revised target","Change","Original target","Revised target","Change"]
["Other reallocations",2]
["Other reallocations",2]
["Other reallocations",2]
["Other reallocations",2]
["Other reallocations",2]
["Other reallocations",2]
["Other reallocations",2]
["Other reallocations",2]
["Other reallocations",2]
["Other reallocations",2]
["Other reallocations",2]
["Other reallocations",2]
["Other reallocations",2]
["Other reallocations",2]
["Other reallocations",2]
[]
[]
[]
[]
[]
[null,null,null,null,null,4,"Impact of adjustments on personnel headcount numbers"]
[{"$f":"$G$3","v":"Other reallocations"},4,null,null,null,null,null,{"$f":"MyYear4","v":"2026/27"},null,null,{"$f":"MyYear5","v":"2027/28"},null,null,{"$f":"MyYear6","v":"2028/29"},null,null,{"$f":"MyYear7","v":"2029/30"},null,null," Comment"]
["Other reallocations",4,null,null,null,null,"Salary level","Current number","Potential number if benchmark is achieved","Change in number","Original number","Revised number","Change in number","Original number","Revised number","Change in number","Original number","Revised number","Change in number"]
["Other reallocations",4,null,null,null,null,1,null,null,{"$f":"I131-H131","v":0},null,null,{"$f":"L131-K131","v":0},null,null,{"$f":"O131-N131","v":0},null,null,{"$f":"R131-Q131","v":0}]
["Other reallocations",4,null,null,null,null,2,null,null,0,null,null,0,null,null,0,null,null,0]
["Other reallocations",4,null,null,null,null,3,null,null,0,null,null,0,null,null,0,null,null,0]
["Other reallocations",4,null,null,null,null,4,null,null,0,null,null,0,null,null,0,null,null,0]
["Other reallocations",4,null,null,null,null,5,null,null,0,null,null,0,null,null,0,null,null,0]
["Other reallocations",4,null,null,null,null,6,null,null,0,null,null,0,null,null,0,null,null,0]
["Other reallocations",4,null,null,null,null,7,null,null,0,null,null,0,null,null,0,null,null,0]
["Other reallocations",4,null,null,null,null,8,null,null,0,null,null,0,null,null,0,null,null,0]
["Other reallocations",4,null,null,null,null,9,null,null,0,null,null,0,null,null,0,null,null,0]
["Other reallocations",4,null,null,null,null,10,null,null,0,null,null,0,null,null,0,null,null,0]
["Other reallocations",4,null,null,null,null,11,null,null,0,null,null,0,null,null,0,null,null,0]
["Other reallocations",4,null,null,null,null,12,null,null,0,null,null,0,null,null,0,null,null,0]
["Other reallocations",4,null,null,null,null,13,null,null,0,null,null,0,null,null,0,null,null,0]
["Other reallocations",4,null,null,null,null,14,null,null,0,null,null,0,null,null,0,null,null,0]
["Other reallocations",4,null,null,null,null,15,null,null,0,null,null,0,null,null,0,null,null,0]
["Other reallocations",4,null,null,null,null,16,null,null,0,null,null,0,null,null,0,null,null,0]
["Other reallocations",4,null,null,null,null,"Other",null,null,0,null,null,0,null,null,0,null,null,0]
["Other reallocations",4,null,null,null,null,"Other",null,null,0,null,null,0,null,null,0,null,null,0]
["Other reallocations",4,null,null,null,null,"Other",null,null,0,null,null,0,null,null,0,null,null,0]
["Other reallocations",4,null,null,null,null,"Other",null,null,0,null,null,0,null,null,0,null,null,0]
["Other reallocations",4,null,null,null,null,"Total",{"$f":"SUM(H131:H150)","v":0},0,0,{"$f":"SUM(K131:K150)","v":0},0,0,0,0,0,0,0,0]
[]
[]
[]
[]
[]
[null,null,null,null,null,5,"Impact of adjustments on infrastructure projects"]
[{"$f":"$G$3","v":"Other reallocations"},3,null,null,null,null,null,{"$f":"MyYear4","v":"2026/27"},null,null,{"$f":"MyYear5","v":"2027/28"},null,null,{"$f":"MyYear6","v":"2028/29"},null,null,{"$f":"MyYear7","v":"2029/30"},null,null," Comment"]
["Other reallocations",3,null,null,null,null,"Project name","Current number","Market or best in class benchmark","Change","Original amount","Revised amount","Change","Original amount","Revised amount","Change","Original amount","Revised amount","Change"]
["Other reallocations",3,null,null,null,null,null,null,null,{"$f":"I160-H160","v":0},null,null,{"$f":"L160-K160","v":0},null,null,{"$f":"O160-N160","v":0},null,null,{"$f":"R160-Q160","v":0}]
["Other reallocations",3,null,null,null,null,null,null,null,0,null,null,0,null,null,0,null,null,0]
["Other reallocations",3,null,null,null,null,null,null,null,0,null,null,0,null,null,0,null,null,0]
["Other reallocations",3,null,null,null,null,null,null,null,0,null,null,0,null,null,0,null,null,0]
["Other reallocations",3,null,null,null,null,null,null,null,0,null,null,0,null,null,0,null,null,0]
["Other reallocations",3,null,null,null,null,null,null,null,0,null,null,0,null,null,0,null,null,0]
["Other reallocations",3,null,null,null,null,null,null,null,0,null,null,0,null,null,0,null,null,0]
["Other reallocations",3,null,null,null,null,null,null,null,0,null,null,0,null,null,0,null,null,0]
["Other reallocations",3,null,null,null,null,null,null,null,0,null,null,0,null,null,0,null,null,0]
["Other reallocations",3,null,null,null,null,null,null,null,0,null,null,0,null,null,0,null,null,0]
["Other reallocations",3,null,null,null,null,null,null,null,0,null,null,0,null,null,0,null,null,0]
["Other reallocations",3,null,null,null,null,null,null,null,0,null,null,0,null,null,0,null,null,0]
["Other reallocations",3,null,null,null,null,null,null,null,0,null,null,0,null,null,0,null,null,0]
["Other reallocations",3,null,null,null,null,null,null,null,0,null,null,0,null,null,0,null,null,0]
["Other reallocations",3,null,null,null,null,null,null,null,0,null,null,0,null,null,0,null,null,0]
["Other reallocations",3,null,null,null,null,null,null,null,0,null,null,0,null,null,0,null,null,0]
["Other reallocations",3,null,null,null,null,null,null,null,0,null,null,0,null,null,0,null,null,0]
["Other reallocations",3,null,null,null,null,null,null,null,0,null,null,0,null,null,0,null,null,0]
["Other reallocations",3,null,null,null,null,null,null,null,0,null,null,0,null,null,0,null,null,0]
["Other reallocations",3,null,null,null,null,null,null,null,0,null,null,0,null,null,0,null,null,0]
["Other reallocations",3,null,null,null,null,null,null,null,0,null,null,0,null,null,0,null,null,0]
["Other reallocations",3,null,null,null,null,null,null,null,0,null,null,0,null,null,0,null,null,0]
["Other reallocations",3,null,null,null,null,null,null,null,0,null,null,0,null,null,0,null,null,0]
["Other reallocations",3,null,null,null,null,null,null,null,0,null,null,0,null,null,0,null,null,0]
["Other reallocations",3,null,null,null,null,null,null,null,0,null,null,0,null,null,0,null,null,0]
["Other reallocations",3,null,null,null,null,null,null,null,0,null,null,0,null,null,0,null,null,0]
["Other reallocations",3,null,null,null,null,null,null,null,0,null,null,0,null,null,0,null,null,0]
["Other reallocations",3,null,null,null,null,null,null,null,0,null,null,0,null,null,0,null,null,0]
["Other reallocations",3,null,null,null,null,null,null,null,0,null,null,0,null,null,0,null,null,0]
["Other reallocations",3,null,null,null,null,null,null,null,0,null,null,0,null,null,0,null,null,0]
["Other reallocations",3,null,null,null,null,null,null,null,0,null,null,0,null,null,0,null,null,0]
["Other reallocations",3,null,null,null,null,null,null,null,0,null,null,0,null,null,0,null,null,0]
["Other reallocations",3,null,null,null,null,null,null,null,0,null,null,0,null,null,0,null,null,0]
["Other reallocations",3,null,null,null,null,null,null,null,0,null,null,0,null,null,0,null,null,0]
["Other reallocations",3,null,null,null,null,null,null,null,0,null,null,0,null,null,0,null,null,0]
["Other reallocations",3,null,null,null,null,null,null,null,0,null,null,0,null,null,0,null,null,0]
["Other reallocations",3,null,null,null,null,null,null,null,0,null,null,0,null,null,0,null,null,0]
["Other reallocations",3,null,null,null,null,null,null,null,0,null,null,0,null,null,0,null,null,0]
["Other reallocations",3,null,null,null,null,null,null,null,0,null,null,0,null,null,0,null,null,0]
["Other reallocations",3,null,null,null,null,null,null,null,0,null,null,0,null,null,0,null,null,0]
["Other reallocations",3,null,null,null,null,null,null,null,0,null,null,0,null,null,0,null,null,0]
["Other reallocations",3,null,null,null,null,null,null,null,0,null,null,0,null,null,0,null,null,0]
["Other reallocations",3,null,null,null,null,null,null,null,0,null,null,0,null,null,0,null,null,0]
["Other reallocations",3,null,null,null,null,null,null,null,0,null,null,0,null,null,0,null,null,0]
["Other reallocations",3,null,null,null,null,null,null,null,0,null,null,0,null,null,0,null,null,0]
["Other reallocations",3,null,null,null,null,null,null,null,0,null,null,0,null,null,0,null,null,0]
["Other reallocations",3,null,null,null,null,null,null,null,0,null,null,0,null,null,0,null,null,0]
["Other reallocations",3,null,null,null,null,null,null,null,0,null,null,0,null,null,0,null,null,0]
["Other reallocations",3,null,null,null,null,null,null,null,0,null,null,0,null,null,0,null,null,0]
["Other reallocations",3,null,null,null,null,null,null,null,0,null,null,0,null,null,0,null,null,0]
["Other reallocations",3,null,null,null,null,"Total",{"$f":"SUM(H160:H209)","v":0},0,0,0,0,0,0,0,0,0,0,0]

{"sheet":"Targeted savings","index":19,"n_rows":210,"n_cols":25,"rows_kept":210,"cut":false,"hidden":false,"merged":[[72,6,72,18],[84,6,98,18],[105,19,105,23],[105,24,105,26],[106,19,106,23],[106,24,106,26],[107,19,107,23],[107,24,107,26],[108,19,108,23],[108,24,108,26],[109,19,109,23],[109,24,109,26],[110,19,110,23],[110,24,110,26],[111,19,111,23],[111,24,111,26],[112,19,112,23],[112,24,112,26],[113,19,113,23],[113,24,113,26],[114,19,114,23],[114,24,114,26],[115,19,115,23],[115,24,115,26],[116,19,116,23],[116,24,116,26],[117,19,117,23],[117,24,117,26],[118,19,118,23],[118,24,118,26],[119,19,119,23],[119,24,119,26],[120,19,120,23],[120,24,120,26],[121,19,121,23],[121,24,121,26],[165,19,165,23],[128,19,128,23],[129,19,129,23],[130,19,149,23],[157,19,157,23],[158,19,158,23],[159,19,159,23],[160,19,160,23],[161,19,161,23],[162,19,162,23],[163,19,163,23],[164,19,164,23],[177,19,177,23],[166,19,166,23],[167,19,167,23],[168,19,168,23],[169,19,169,23],[170,19,170,23],[171,19,171,23],[172,19,172,23],[173,19,173,23],[174,19,174,23],[175,19,175,23],[176,19,176,23],[189,19,189,23],[178,19,178,23],[179,19,179,23],[180,19,180,23],[181,19,181,23],[182,19,182,23],[183,19,183,23],[184,19,184,23],[185,19,185,23],[186,19,186,23],[187,19,187,23],[188,19,188,23],[201,19,201,23],[190,19,190,23],[191,19,191,23],[192,19,192,23],[193,19,193,23],[194,19,194,23],[195,19,195,23],[196,19,196,23],[197,19,197,23],[198,19,198,23],[199,19,199,23],[200,19,200,23],[208,19,208,23],[202,19,202,23],[203,19,203,23],[204,19,204,23],[205,19,205,23],[206,19,206,23],[207,19,207,23]]}
[]
[]
[null,{"$f":"IF(G3=\"\",0,1)","v":1},null,null,null,6,{"$f":"\"Targeted savings\"","v":"Targeted savings"}]
[]
[null,null,null,null,null,null,"Quick view…(Total change)",{"$f":"MyYear5","v":"2027/28"},{"$f":"MyYear6","v":"2028/29"},{"$f":"MyYear7","v":"2029/30"},"MTEF total","Trend"]
[null,null,null,null,null,null,"Compensation of employees",{"$f":"SUMPRODUCT(($G$35:$G$68=$G6)*(I$35:I$68))","v":0},{"$f":"SUMPRODUCT(($G$35:$G$68=$G6)*(J$35:J$68))","v":0},{"$f":"SUMPRODUCT(($G$35:$G$68=$G6)*(K$35:K$68))","v":0},{"$f":"SUM(H6:J6)","v":0},null,null,"CoE"]
[null,null,null,null,null,null,"Goods and services",{"$f":"SUMPRODUCT(($G$35:$G$68=$G7)*(I$35:I$68))","v":0},{"$f":"SUMPRODUCT(($G$35:$G$68=$G7)*(J$35:J$68))","v":0},{"$f":"SUMPRODUCT(($G$35:$G$68=$G7)*(K$35:K$68))","v":0},0,null,null,"G&S"]
[null,null,null,null,null,null,"Transfers and subsidies",{"$f":"SUMPRODUCT(($G$35:$G$68=$G8)*(I$35:I$68))","v":0},{"$f":"SUMPRODUCT(($G$35:$G$68=$G8)*(J$35:J$68))","v":0},{"$f":"SUMPRODUCT(($G$35:$G$68=$G8)*(K$35:K$68))","v":0},0,null,null,"T&S"]
[null,null,null,null,null,null,"Payments for capital assets",{"$f":"SUMPRODUCT(($G$35:$G$68=$G9)*(I$35:I$68))","v":0},{"$f":"SUMPRODUCT(($G$35:$G$68=$G9)*(J$35:J$68))","v":0},{"$f":"SUMPRODUCT(($G$35:$G$68=$G9)*(K$35:K$68))","v":0},0,null,null,"Capital"]
[null,null,null,null,null,null,"Total",{"$f":"SUMPRODUCT(($G$35:$G$68=$G10)*(I$35:I$68))","v":0},{"$f":"SUMPRODUCT(($G$35:$G$68=$G10)*(J$35:J$68))","v":0},{"$f":"SUMPRODUCT(($G$35:$G$68=$G10)*(K$35:K$68))","v":0},0,null,null,"Total"]
[null,null,null,null,null,null,"% of MTEF total",null,null,null,null,null,null,null,null,null,null,null,{"$f":"MyYear5","v":"2027/28"},{"$f":"MyYear6","v":"2028/29"},{"$f":"MyYear7","v":"2029/30"}]
[null,null,null,null,null,null,"Compensation of employees",{"$f":"IFERROR(H6/$K6,\"\")","v":""},"","",null,null,null,null,null,null,null,{"$f":"G12","v":"Compensation of employees"},{"$f":"IF(H12>0.0595,H12,\"\")","v":""},"",""]
[null,null,null,null,null,null,"Goods and services","","","",null,null,null,null,null,null,null,{"$f":"G13","v":"Goods and services"},"","",""]
[null,null,null,null,null,null,"Transfers and subsidies","","","",null,null,null,null,null,null,null,{"$f":"G14","v":"Transfers and subsidies"},"","",""]
[null,null,null,null,null,null,"Payments for capital assets","","","",null,null,null,null,null,null,null,{"$f":"G15","v":"Payments for capital assets"},"","",""]
[]
[null,null,null,null,null,null,"Division of Revenue",{"$f":"MyYear5","v":"2027/28"},{"$f":"MyYear6","v":"2028/29"},{"$f":"MyYear7","v":"2029/30"},"MTEF total","Trend"]
[null,null,null,null,null,null,"National",{"$f":"SUM(H19:H21)","v":0},0,0,{"$f":"SUM(H18:J18)","v":0}]
[{"$f":"$G$3","v":"Targeted savings"},"NAT",null,null,null,null,"National (excl. indirect grants)",{"$f":"SUMPRODUCT(((Dataset[DOR]=$B19))*Dataset[2027/28 Targeted savings])","v":0},{"$f":"SUMPRODUCT(((Dataset[DOR]=$B19))*Dataset[2028/29 Targeted savings])","v":0},{"$f":"SUMPRODUCT(((Dataset[DOR]=$B19))*Dataset[2029/30 Targeted savings])","v":0},0]
["Targeted savings","IGP",null,null,null,null,"Provincial indirect grants",{"$f":"SUMPRODUCT(((Dataset[DOR]=$B20))*Dataset[2027/28 Targeted savings])","v":0},{"$f":"SUMPRODUCT(((Dataset[DOR]=$B20))*Dataset[2028/29 Targeted savings])","v":0},{"$f":"SUMPRODUCT(((Dataset[DOR]=$B20))*Dataset[2029/30 Targeted savings])","v":0},0]
["Targeted savings","IGM",null,null,null,null,"Local indirect grants",{"$f":"SUMPRODUCT(((Dataset[DOR]=$B21))*Dataset[2027/28 Targeted savings])","v":0},{"$f":"SUMPRODUCT(((Dataset[DOR]=$B21))*Dataset[2028/29 Targeted savings])","v":0},{"$f":"SUMPRODUCT(((Dataset[DOR]=$B21))*Dataset[2029/30 Targeted savings])","v":0},0]
["Targeted savings",null,null,null,null,null,"Provincial",{"$f":"SUMPRODUCT(((Dataset[DOR]=$B22))*Dataset[2027/28 Targeted savings])","v":0},{"$f":"SUMPRODUCT(((Dataset[DOR]=$B22))*Dataset[2028/29 Targeted savings])","v":0},{"$f":"SUMPRODUCT(((Dataset[DOR]=$B22))*Dataset[2029/30 Targeted savings])","v":0},0]
["Targeted savings","PES",null,null,null,null,"Provincial equitable share",{"$f":"SUMPRODUCT(((Dataset[DOR]=$B23))*Dataset[2027/28 Targeted savings])","v":0},{"$f":"SUMPRODUCT(((Dataset[DOR]=$B23))*Dataset[2028/29 Targeted savings])","v":0},{"$f":"SUMPRODUCT(((Dataset[DOR]=$B23))*Dataset[2029/30 Targeted savings])","v":0},0]
["Targeted savings","PCG",null,null,null,null,"Provincial conditional grants",{"$f":"SUMPRODUCT(((Dataset[DOR]=$B24))*Dataset[2027/28 Targeted savings])","v":0},{"$f":"SUMPRODUCT(((Dataset[DOR]=$B24))*Dataset[2028/29 Targeted savings])","v":0},{"$f":"SUMPRODUCT(((Dataset[DOR]=$B24))*Dataset[2029/30 Targeted savings])","v":0},0]
["Targeted savings",null,null,null,null,null,"Local government",{"$f":"SUMPRODUCT(((Dataset[DOR]=$B25))*Dataset[2027/28 Targeted savings])","v":0},{"$f":"SUMPRODUCT(((Dataset[DOR]=$B25))*Dataset[2028/29 Targeted savings])","v":0},{"$f":"SUMPRODUCT(((Dataset[DOR]=$B25))*Dataset[2029/30 Targeted savings])","v":0},0]
["Targeted savings","LES",null,null,null,null,"Local equitable share",{"$f":"SUMPRODUCT(((Dataset[DOR]=$B26))*Dataset[2027/28 Targeted savings])","v":0},{"$f":"SUMPRODUCT(((Dataset[DOR]=$B26))*Dataset[2028/29 Targeted savings])","v":0},{"$f":"SUMPRODUCT(((Dataset[DOR]=$B26))*Dataset[2029/30 Targeted savings])","v":0},0]
["Targeted savings","LCG",null,null,null,null,"Local conditional grants",{"$f":"SUMPRODUCT(((Dataset[DOR]=$B27))*Dataset[2027/28 Targeted savings])","v":0},{"$f":"SUMPRODUCT(((Dataset[DOR]=$B27))*Dataset[2028/29 Targeted savings])","v":0},{"$f":"SUMPRODUCT(((Dataset[DOR]=$B27))*Dataset[2029/30 Targeted savings])","v":0},0]
["Targeted savings","GFL",null,null,null,null,"General fuel levy ",{"$f":"SUMPRODUCT(((Dataset[DOR]=$B28))*Dataset[2027/28 Targeted savings])","v":0},{"$f":"SUMPRODUCT(((Dataset[DOR]=$B28))*Dataset[2028/29 Targeted savings])","v":0},{"$f":"SUMPRODUCT(((Dataset[DOR]=$B28))*Dataset[2029/30 Targeted savings])","v":0},0]
[]
[]
[null,null,null,null,null,null,{"$f":"G3","v":"Targeted savings"}]
[{"$f":"$G$3","v":"Targeted savings"},0,null,null,null,null,null,{"$f":"MyYear4","v":"2026/27"},{"$f":"MyYear5","v":"2027/28"},{"$f":"MyYear6","v":"2028/29"},{"$f":"MyYear7","v":"2029/30"},"Total over MTEF"]
[{"$f":"$G$3","v":"Targeted savings"},0,null,null,null,null,"Rand thousand","Saving","Saving","Saving","Saving","Saving"]
["Targeted savings",0,null,null,null,null,"Economic classification"]
["Targeted savings",0,null,null,null,null,"Current payments",{"$f":"SUM(H36:H38)","v":0},{"$f":"SUM(I36:I38)","v":0},0,0,0]
["Targeted savings",0,null,null,null,null,"Compensation of employees",{"$f":"SUMPRODUCT(((Dataset[Econ3]=$G36))*Dataset[2026/27 Targeted savings]*$B$3)","v":0},{"$f":"SUMPRODUCT(((Dataset[Econ3]=$G36))*Dataset[2027/28 Targeted savings]*$B$3)","v":0},{"$f":"SUMPRODUCT(((Dataset[Econ3]=$G36))*Dataset[2028/29 Targeted savings]*$B$3)","v":0},{"$f":"SUMPRODUCT(((Dataset[Econ3]=$G36))*Dataset[2029/30 Targeted savings]*$B$3)","v":0},{"$f":"SUM(I36,J36,K36)","v":0}]
["Targeted savings",0,null,null,null,null,"Goods and services",{"$f":"SUMPRODUCT(((Dataset[Econ3]=$G37))*Dataset[2026/27 Targeted savings]*$B$3)","v":0},{"$f":"SUMPRODUCT(((Dataset[Econ3]=$G37))*Dataset[2027/28 Targeted savings]*$B$3)","v":0},{"$f":"SUMPRODUCT(((Dataset[Econ3]=$G37))*Dataset[2028/29 Targeted savings]*$B$3)","v":0},{"$f":"SUMPRODUCT(((Dataset[Econ3]=$G37))*Dataset[2029/30 Targeted savings]*$B$3)","v":0},{"$f":"SUM(I37,J37,K37)","v":0}]
["Targeted savings",0,null,null,null,null,"Interest and rent on land",{"$f":"SUMPRODUCT(((Dataset[Econ3]=$G38))*Dataset[2026/27 Targeted savings]*$B$3)","v":0},{"$f":"SUMPRODUCT(((Dataset[Econ3]=$G38))*Dataset[2027/28 Targeted savings]*$B$3)","v":0},{"$f":"SUMPRODUCT(((Dataset[Econ3]=$G38))*Dataset[2028/29 Targeted savings]*$B$3)","v":0},{"$f":"SUMPRODUCT(((Dataset[Econ3]=$G38))*Dataset[2029/30 Targeted savings]*$B$3)","v":0},{"$f":"SUM(I38,J38,K38)","v":0}]
["Targeted savings",0,null,null,null,null,"Transfers and subsidies",{"$f":"SUM(H40,H43,H46:H48,H51:H52)","v":0},{"$f":"SUM(I40,I43,I46:I48,I51:I52)","v":0},0,0,0]
["Targeted savings",0,null,null,null,null,"Provinces and municipalities",{"$f":"SUM(H41:H42)","v":0},{"$f":"SUM(I41:I42)","v":0},0,0,0]
["Targeted savings",0,null,null,null,null,"Provinces",{"$f":"SUMPRODUCT(((Dataset[Econ4]=$G41))*Dataset[2026/27 Targeted savings]*$B$3)","v":0},{"$f":"SUMPRODUCT(((Dataset[Econ4]=$G41))*Dataset[2027/28 Targeted savings]*$B$3)","v":0},{"$f":"SUMPRODUCT(((Dataset[Econ4]=$G41))*Dataset[2028/29 Targeted savings]*$B$3)","v":0},{"$f":"SUMPRODUCT(((Dataset[Econ4]=$G41))*Dataset[2029/30 Targeted savings]*$B$3)","v":0},{"$f":"SUM(I41,J41,K41)","v":0}]
["Targeted savings",0,null,null,null,null,"Municipalities",{"$f":"SUMPRODUCT(((Dataset[Econ4]=$G42))*Dataset[2026/27 Targeted savings]*$B$3)","v":0},{"$f":"SUMPRODUCT(((Dataset[Econ4]=$G42))*Dataset[2027/28 Targeted savings]*$B$3)","v":0},{"$f":"SUMPRODUCT(((Dataset[Econ4]=$G42))*Dataset[2028/29 Targeted savings]*$B$3)","v":0},{"$f":"SUMPRODUCT(((Dataset[Econ4]=$G42))*Dataset[2029/30 Targeted savings]*$B$3)","v":0},{"$f":"SUM(I42,J42,K42)","v":0}]
["Targeted savings",0,null,null,null,null,"Departmental agencies and accounts",{"$f":"SUM(H44:H45)","v":0},{"$f":"SUM(I44:I45)","v":0},0,0,0]
["Targeted savings",0,null,null,null,null,"Social security funds",{"$f":"SUMPRODUCT(((Dataset[Econ4]=$G44))*Dataset[2026/27 Targeted savings]*$B$3)","v":0},{"$f":"SUMPRODUCT(((Dataset[Econ4]=$G44))*Dataset[2027/28 Targeted savings]*$B$3)","v":0},{"$f":"SUMPRODUCT(((Dataset[Econ4]=$G44))*Dataset[2028/29 Targeted savings]*$B$3)","v":0},{"$f":"SUMPRODUCT(((Dataset[Econ4]=$G44))*Dataset[2029/30 Targeted savings]*$B$3)","v":0},{"$f":"SUM(I44,J44,K44)","v":0}]
["Targeted savings",0,null,null,null,null,"Departmental agencies (non-business entities)",{"$f":"SUMPRODUCT(((Dataset[Econ4]=$G45))*Dataset[2026/27 Targeted savings]*$B$3)","v":0},{"$f":"SUMPRODUCT(((Dataset[Econ4]=$G45))*Dataset[2027/28 Targeted savings]*$B$3)","v":0},{"$f":"SUMPRODUCT(((Dataset[Econ4]=$G45))*Dataset[2028/29 Targeted savings]*$B$3)","v":0},{"$f":"SUMPRODUCT(((Dataset[Econ4]=$G45))*Dataset[2029/30 Targeted savings]*$B$3)","v":0},{"$f":"SUM(I45,J45,K45)","v":0}]
["Targeted savings",0,null,null,null,null,"Higher education institutions",{"$f":"SUMPRODUCT(((Dataset[Econ3]=$G46))*Dataset[2026/27 Targeted savings]*$B$3)","v":0},{"$f":"SUMPRODUCT(((Dataset[Econ3]=$G46))*Dataset[2027/28 Targeted savings]*$B$3)","v":0},{"$f":"SUMPRODUCT(((Dataset[Econ3]=$G46))*Dataset[2028/29 Targeted savings]*$B$3)","v":0},{"$f":"SUMPRODUCT(((Dataset[Econ3]=$G46))*Dataset[2029/30 Targeted savings]*$B$3)","v":0},{"$f":"SUM(I46,J46,K46)","v":0}]
["Targeted savings",0,null,null,null,null,"Foreign governments and international organisations",{"$f":"SUMPRODUCT(((Dataset[Econ3]=$G47))*Dataset[2026/27 Targeted savings]*$B$3)","v":0},{"$f":"SUMPRODUCT(((Dataset[Econ3]=$G47))*Dataset[2027/28 Targeted savings]*$B$3)","v":0},{"$f":"SUMPRODUCT(((Dataset[Econ3]=$G47))*Dataset[2028/29 Targeted savings]*$B$3)","v":0},{"$f":"SUMPRODUCT(((Dataset[Econ3]=$G47))*Dataset[2029/30 Targeted savings]*$B$3)","v":0},{"$f":"SUM(I47,J47,K47)","v":0}]
["Targeted savings",0,null,null,null,null,"Public corporations and private enterprises",{"$f":"SUM(H49:H50)","v":0},{"$f":"SUM(I49:I50)","v":0},0,0,0]
["Targeted savings",0,null,null,null,null,"Public corporations",{"$f":"SUMPRODUCT(((Dataset[Econ4]=$G49))*Dataset[2026/27 Targeted savings]*$B$3)","v":0},{"$f":"SUMPRODUCT(((Dataset[Econ4]=$G49))*Dataset[2027/28 Targeted savings]*$B$3)","v":0},{"$f":"SUMPRODUCT(((Dataset[Econ4]=$G49))*Dataset[2028/29 Targeted savings]*$B$3)","v":0},{"$f":"SUMPRODUCT(((Dataset[Econ4]=$G49))*Dataset[2029/30 Targeted savings]*$B$3)","v":0},{"$f":"SUM(I49,J49,K49)","v":0}]
["Targeted savings",0,null,null,null,null,"Private enterprises",{"$f":"SUMPRODUCT(((Dataset[Econ4]=$G50))*Dataset[2026/27 Targeted savings]*$B$3)","v":0},{"$f":"SUMPRODUCT(((Dataset[Econ4]=$G50))*Dataset[2027/28 Targeted savings]*$B$3)","v":0},{"$f":"SUMPRODUCT(((Dataset[Econ4]=$G50))*Dataset[2028/29 Targeted savings]*$B$3)","v":0},{"$f":"SUMPRODUCT(((Dataset[Econ4]=$G50))*Dataset[2029/30 Targeted savings]*$B$3)","v":0},{"$f":"SUM(I50,J50,K50)","v":0}]
["Targeted savings",0,null,null,null,null,"Non-profit institutions",{"$f":"SUMPRODUCT(((Dataset[Econ3]=$G51))*Dataset[2026/27 Targeted savings]*$B$3)","v":0},{"$f":"SUMPRODUCT(((Dataset[Econ3]=$G51))*Dataset[2027/28 Targeted savings]*$B$3)","v":0},{"$f":"SUMPRODUCT(((Dataset[Econ3]=$G51))*Dataset[2028/29 Targeted savings]*$B$3)","v":0},{"$f":"SUMPRODUCT(((Dataset[Econ3]=$G51))*Dataset[2029/30 Targeted savings]*$B$3)","v":0},{"$f":"SUM(I51,J51,K51)","v":0}]
["Targeted savings",0,null,null,null,null,"Households",{"$f":"SUM(H53:H54)","v":0},{"$f":"SUM(I53:I54)","v":0},0,0,0]
["Targeted savings",0,null,null,null,null,"Social benefits",{"$f":"SUMPRODUCT(((Dataset[Econ4]=$G53))*Dataset[2026/27 Targeted savings]*$B$3)","v":0},{"$f":"SUMPRODUCT(((Dataset[Econ4]=$G53))*Dataset[2027/28 Targeted savings]*$B$3)","v":0},{"$f":"SUMPRODUCT(((Dataset[Econ4]=$G53))*Dataset[2028/29 Targeted savings]*$B$3)","v":0},{"$f":"SUMPRODUCT(((Dataset[Econ4]=$G53))*Dataset[2029/30 Targeted savings]*$B$3)","v":0},{"$f":"SUM(I53,J53,K53)","v":0}]
["Targeted savings",0,null,null,null,null,"Other transfers to households",{"$f":"SUMPRODUCT(((Dataset[Econ4]=$G54))*Dataset[2026/27 Targeted savings]*$B$3)","v":0},{"$f":"SUMPRODUCT(((Dataset[Econ4]=$G54))*Dataset[2027/28 Targeted savings]*$B$3)","v":0},{"$f":"SUMPRODUCT(((Dataset[Econ4]=$G54))*Dataset[2028/29 Targeted savings]*$B$3)","v":0},{"$f":"SUMPRODUCT(((Dataset[Econ4]=$G54))*Dataset[2029/30 Targeted savings]*$B$3)","v":0},{"$f":"SUM(I54,J54,K54)","v":0}]
["Targeted savings",0,null,null,null,null,"Payments for capital assets",{"$f":"SUM(H56,H59,H62:H66)","v":0},{"$f":"SUM(I56,I59,I62:I66)","v":0},0,0,0]
["Targeted savings",0,null,null,null,null,"Buildings and other fixed structures",{"$f":"SUM(H57:H58)","v":0},{"$f":"SUM(I57:I58)","v":0},0,0,0]
["Targeted savings",0,null,null,null,null,"Buildings",{"$f":"SUMPRODUCT(((Dataset[Econ4]=$G57))*Dataset[2026/27 Targeted savings]*$B$3)","v":0},{"$f":"SUMPRODUCT(((Dataset[Econ4]=$G57))*Dataset[2027/28 Targeted savings]*$B$3)","v":0},{"$f":"SUMPRODUCT(((Dataset[Econ4]=$G57))*Dataset[2028/29 Targeted savings]*$B$3)","v":0},{"$f":"SUMPRODUCT(((Dataset[Econ4]=$G57))*Dataset[2029/30 Targeted savings]*$B$3)","v":0},{"$f":"SUM(I57,J57,K57)","v":0}]
["Targeted savings",0,null,null,null,null,"Other fixed structures",{"$f":"SUMPRODUCT(((Dataset[Econ4]=$G58))*Dataset[2026/27 Targeted savings]*$B$3)","v":0},{"$f":"SUMPRODUCT(((Dataset[Econ4]=$G58))*Dataset[2027/28 Targeted savings]*$B$3)","v":0},{"$f":"SUMPRODUCT(((Dataset[Econ4]=$G58))*Dataset[2028/29 Targeted savings]*$B$3)","v":0},{"$f":"SUMPRODUCT(((Dataset[Econ4]=$G58))*Dataset[2029/30 Targeted savings]*$B$3)","v":0},{"$f":"SUM(I58,J58,K58)","v":0}]
["Targeted savings",0,null,null,null,null,"Machinery and equipment",{"$f":"SUM(H60:H61)","v":0},{"$f":"SUM(I60:I61)","v":0},0,0,0]
["Targeted savings",0,null,null,null,null,"Transport equipment",{"$f":"SUMPRODUCT(((Dataset[Econ4]=$G60))*Dataset[2026/27 Targeted savings]*$B$3)","v":0},{"$f":"SUMPRODUCT(((Dataset[Econ4]=$G60))*Dataset[2027/28 Targeted savings]*$B$3)","v":0},{"$f":"SUMPRODUCT(((Dataset[Econ4]=$G60))*Dataset[2028/29 Targeted savings]*$B$3)","v":0},{"$f":"SUMPRODUCT(((Dataset[Econ4]=$G60))*Dataset[2029/30 Targeted savings]*$B$3)","v":0},{"$f":"SUM(I60,J60,K60)","v":0}]
["Targeted savings",0,null,null,null,null,"Other machinery and equipment",{"$f":"SUMPRODUCT(((Dataset[Econ4]=$G61))*Dataset[2026/27 Targeted savings]*$B$3)","v":0},{"$f":"SUMPRODUCT(((Dataset[Econ4]=$G61))*Dataset[2027/28 Targeted savings]*$B$3)","v":0},{"$f":"SUMPRODUCT(((Dataset[Econ4]=$G61))*Dataset[2028/29 Targeted savings]*$B$3)","v":0},{"$f":"SUMPRODUCT(((Dataset[Econ4]=$G61))*Dataset[2029/30 Targeted savings]*$B$3)","v":0},0]
["Targeted savings",0,null,null,null,null,"Heritage assets",{"$f":"SUMPRODUCT(((Dataset[Econ3]=$G62))*Dataset[2026/27 Targeted savings]*$B$3)","v":0},{"$f":"SUMPRODUCT(((Dataset[Econ3]=$G62))*Dataset[2027/28 Targeted savings]*$B$3)","v":0},{"$f":"SUMPRODUCT(((Dataset[Econ3]=$G62))*Dataset[2028/29 Targeted savings]*$B$3)","v":0},{"$f":"SUMPRODUCT(((Dataset[Econ3]=$G62))*Dataset[2029/30 Targeted savings]*$B$3)","v":0},0]
["Targeted savings",0,null,null,null,null,"Specialised military assets",{"$f":"SUMPRODUCT(((Dataset[Econ3]=$G63))*Dataset[2026/27 Targeted savings]*$B$3)","v":0},{"$f":"SUMPRODUCT(((Dataset[Econ3]=$G63))*Dataset[2027/28 Targeted savings]*$B$3)","v":0},{"$f":"SUMPRODUCT(((Dataset[Econ3]=$G63))*Dataset[2028/29 Targeted savings]*$B$3)","v":0},{"$f":"SUMPRODUCT(((Dataset[Econ3]=$G63))*Dataset[2029/30 Targeted savings]*$B$3)","v":0},0]
["Targeted savings",0,null,null,null,null,"Biological assets",{"$f":"SUMPRODUCT(((Dataset[Econ3]=$G64))*Dataset[2026/27 Targeted savings]*$B$3)","v":0},{"$f":"SUMPRODUCT(((Dataset[Econ3]=$G64))*Dataset[2027/28 Targeted savings]*$B$3)","v":0},{"$f":"SUMPRODUCT(((Dataset[Econ3]=$G64))*Dataset[2028/29 Targeted savings]*$B$3)","v":0},{"$f":"SUMPRODUCT(((Dataset[Econ3]=$G64))*Dataset[2029/30 Targeted savings]*$B$3)","v":0},0]
["Targeted savings",0,null,null,null,null,"Land and sub-soil assets",{"$f":"SUMPRODUCT(((Dataset[Econ3]=$G65))*Dataset[2026/27 Targeted savings]*$B$3)","v":0},{"$f":"SUMPRODUCT(((Dataset[Econ3]=$G65))*Dataset[2027/28 Targeted savings]*$B$3)","v":0},{"$f":"SUMPRODUCT(((Dataset[Econ3]=$G65))*Dataset[2028/29 Targeted savings]*$B$3)","v":0},{"$f":"SUMPRODUCT(((Dataset[Econ3]=$G65))*Dataset[2029/30 Targeted savings]*$B$3)","v":0},0]
["Targeted savings",0,null,null,null,null,"Software and other intangible assets",{"$f":"SUMPRODUCT(((Dataset[Econ3]=$G66))*Dataset[2026/27 Targeted savings]*$B$3)","v":0},{"$f":"SUMPRODUCT(((Dataset[Econ3]=$G66))*Dataset[2027/28 Targeted savings]*$B$3)","v":0},{"$f":"SUMPRODUCT(((Dataset[Econ3]=$G66))*Dataset[2028/29 Targeted savings]*$B$3)","v":0},{"$f":"SUMPRODUCT(((Dataset[Econ3]=$G66))*Dataset[2029/30 Targeted savings]*$B$3)","v":0},0]
["Targeted savings",0,null,null,null,null,"Payments for financial assets",{"$f":"SUMPRODUCT(((Dataset[Econ3]=$G67))*Dataset[2026/27 Targeted savings]*$B$3)","v":0},{"$f":"SUMPRODUCT(((Dataset[Econ3]=$G67))*Dataset[2027/28 Targeted savings]*$B$3)","v":0},{"$f":"SUMPRODUCT(((Dataset[Econ3]=$G67))*Dataset[2028/29 Targeted savings]*$B$3)","v":0},{"$f":"SUMPRODUCT(((Dataset[Econ3]=$G67))*Dataset[2029/30 Targeted savings]*$B$3)","v":0},0]
["Targeted savings",0,null,null,null,null,"Total",{"$f":"SUM(H35,H39,H55,H67)","v":0},{"$f":"SUM(I35,I39,I55,I67)","v":0},0,0,0]
[]
[]
[]
[]
[null,null,null,null,null,null,{"$f":"\"IMPACT OF ADJUSTMENTS: \" &UPPER($G$3)","v":"IMPACT OF ADJUSTMENTS: TARGETED SAVINGS"}]
[]
[null,null,null,null,null,1,"Impact of adjustments on expenditure"]
[{"$f":"$G$3","v":"Targeted savings"},5,null,null,null,null,null,{"$f":"MyYear4","v":"2026/27"},null,null,{"$f":"MyYear5","v":"2027/28"},null,null,{"$f":"MyYear6","v":"2028/29"},null,null,{"$f":"MyYear7","v":"2029/30"}]
["Targeted savings",5,null,null,null,null,null,"Current expenditure","Potential expenditure @ benchmark level","% Savings if benchmark is achieved","Original number","Change in expenditure","Saving as % of original number","Original number","Change in expenditure","Saving as % of original number","Original number","Change in expenditure","Saving as % of original number"]
["Targeted savings",5,null,null,null,null,"Total",null,null,{"$f":"IFERROR((H78-I78)/H78,\"\")","v":""},null,null,{"$f":"IFERROR(L78/K78,\"\")","v":""},null,null,{"$f":"IFERROR(O78/N78,\"\")","v":""},null,null,{"$f":"IFERROR(R78/Q78,\"\")","v":""}]
[]
[]
[]
[]
[]
[null,null,null,null,null,2,"Summary of impact on service delivery/policy area due to adjustments"]
[{"$f":"$G$3","v":"Targeted savings"},1]
["Targeted savings",1]
["Targeted savings",1]
["Targeted savings",1]
["Targeted savings",1]
["Targeted savings",1]
["Targeted savings",1]
["Targeted savings",1]
["Targeted savings",1]
["Targeted savings",1]
["Targeted savings",1]
["Targeted savings",1]
["Targeted savings",1]
["Targeted savings",1]
["Targeted savings",1]
[]
[]
[]
[]
[]
[null,null,null,null,null,3,"Impact of adjustments on performance indicators"]
[{"$f":"$G$3","v":"Targeted savings"},2,null,null,null,null,null,{"$f":"MyYear4","v":"2026/27"},null,null,{"$f":"MyYear5","v":"2027/28"},null,null,{"$f":"MyYear6","v":"2028/29"},null,null,{"$f":"MyYear7","v":"2029/30"},null,null," Comment",null,null,null,null,"Related MTSF Priority"]
["Targeted savings",2,null,null,null,null,"Performance indicator","Current performance","Performance @ benchmark level","Change","Original target","Revised target","Change","Original target","Revised target","Change","Original target","Revised target","Change"]
["Targeted savings",2]
["Targeted savings",2]
["Targeted savings",2]
["Targeted savings",2]
["Targeted savings",2]
["Targeted savings",2]
["Targeted savings",2]
["Targeted savings",2]
["Targeted savings",2]
["Targeted savings",2]
["Targeted savings",2]
["Targeted savings",2]
["Targeted savings",2]
["Targeted savings",2]
["Targeted savings",2]
[]
[]
[]
[]
[]
[null,null,null,null,null,4,"Impact of adjustments on personnel headcount numbers"]
[{"$f":"$G$3","v":"Targeted savings"},4,null,null,null,null,null,{"$f":"MyYear4","v":"2026/27"},null,null,{"$f":"MyYear5","v":"2027/28"},null,null,{"$f":"MyYear6","v":"2028/29"},null,null,{"$f":"MyYear7","v":"2029/30"},null,null," Comment"]
["Targeted savings",4,null,null,null,null,"Salary level","Current number","Potential number if benchmark is achieved","Change in number","Original number","Revised number","Change in number","Original number","Revised number","Change in number","Original number","Revised number","Change in number"]
["Targeted savings",4,null,null,null,null,1,null,null,{"$f":"I131-H131","v":0},null,null,{"$f":"L131-K131","v":0},null,null,{"$f":"O131-N131","v":0},null,null,{"$f":"R131-Q131","v":0}]
["Targeted savings",4,null,null,null,null,2,null,null,0,null,null,0,null,null,0,null,null,0]
["Targeted savings",4,null,null,null,null,3,null,null,0,null,null,0,null,null,0,null,null,0]
["Targeted savings",4,null,null,null,null,4,null,null,0,null,null,0,null,null,0,null,null,0]
["Targeted savings",4,null,null,null,null,5,null,null,0,null,null,0,null,null,0,null,null,0]
["Targeted savings",4,null,null,null,null,6,null,null,0,null,null,0,null,null,0,null,null,0]
["Targeted savings",4,null,null,null,null,7,null,null,0,null,null,0,null,null,0,null,null,0]
["Targeted savings",4,null,null,null,null,8,null,null,0,null,null,0,null,null,0,null,null,0]
["Targeted savings",4,null,null,null,null,9,null,null,0,null,null,0,null,null,0,null,null,0]
["Targeted savings",4,null,null,null,null,10,null,null,0,null,null,0,null,null,0,null,null,0]
["Targeted savings",4,null,null,null,null,11,null,null,0,null,null,0,null,null,0,null,null,0]
["Targeted savings",4,null,null,null,null,12,null,null,0,null,null,0,null,null,0,null,null,0]
["Targeted savings",4,null,null,null,null,13,null,null,0,null,null,0,null,null,0,null,null,0]
["Targeted savings",4,null,null,null,null,14,null,null,0,null,null,0,null,null,0,null,null,0]
["Targeted savings",4,null,null,null,null,15,null,null,0,null,null,0,null,null,0,null,null,0]
["Targeted savings",4,null,null,null,null,16,null,null,0,null,null,0,null,null,0,null,null,0]
["Targeted savings",4,null,null,null,null,"Other",null,null,0,null,null,0,null,null,0,null,null,0]
["Targeted savings",4,null,null,null,null,"Other",null,null,0,null,null,0,null,null,0,null,null,0]
["Targeted savings",4,null,null,null,null,"Other",null,null,0,null,null,0,null,null,0,null,null,0]
["Targeted savings",4,null,null,null,null,"Other",null,null,0,null,null,0,null,null,0,null,null,0]
["Targeted savings",4,null,null,null,null,"Total",{"$f":"SUM(H131:H150)","v":0},0,0,{"$f":"SUM(K131:K150)","v":0},0,0,0,0,0,0,0,0]
[]
[]
[]
[]
[]
[null,null,null,null,null,5,"Impact of adjustments on infrastructure projects"]
[{"$f":"$G$3","v":"Targeted savings"},3,null,null,null,null,null,{"$f":"MyYear4","v":"2026/27"},null,null,{"$f":"MyYear5","v":"2027/28"},null,null,{"$f":"MyYear6","v":"2028/29"},null,null,{"$f":"MyYear7","v":"2029/30"},null,null," Comment"]
["Targeted savings",3,null,null,null,null,"Project name","Current number","Market or best in class benchmark","Change","Original amount","Revised amount","Change","Original amount","Revised amount","Change","Original amount","Revised amount","Change"]
["Targeted savings",3,null,null,null,null,null,null,null,{"$f":"I160-H160","v":0},null,null,{"$f":"L160-K160","v":0},null,null,{"$f":"O160-N160","v":0},null,null,{"$f":"R160-Q160","v":0}]
["Targeted savings",3,null,null,null,null,null,null,null,0,null,null,0,null,null,0,null,null,0]
["Targeted savings",3,null,null,null,null,null,null,null,0,null,null,0,null,null,0,null,null,0]
["Targeted savings",3,null,null,null,null,null,null,null,0,null,null,0,null,null,0,null,null,0]
["Targeted savings",3,null,null,null,null,null,null,null,0,null,null,0,null,null,0,null,null,0]
["Targeted savings",3,null,null,null,null,null,null,null,0,null,null,0,null,null,0,null,null,0]
["Targeted savings",3,null,null,null,null,null,null,null,0,null,null,0,null,null,0,null,null,0]
["Targeted savings",3,null,null,null,null,null,null,null,0,null,null,0,null,null,0,null,null,0]
["Targeted savings",3,null,null,null,null,null,null,null,0,null,null,0,null,null,0,null,null,0]
["Targeted savings",3,null,null,null,null,null,null,null,0,null,null,0,null,null,0,null,null,0]
["Targeted savings",3,null,null,null,null,null,null,null,0,null,null,0,null,null,0,null,null,0]
["Targeted savings",3,null,null,null,null,null,null,null,0,null,null,0,null,null,0,null,null,0]
["Targeted savings",3,null,null,null,null,null,null,null,0,null,null,0,null,null,0,null,null,0]
["Targeted savings",3,null,null,null,null,null,null,null,0,null,null,0,null,null,0,null,null,0]
["Targeted savings",3,null,null,null,null,null,null,null,0,null,null,0,null,null,0,null,null,0]
["Targeted savings",3,null,null,null,null,null,null,null,0,null,null,0,null,null,0,null,null,0]
["Targeted savings",3,null,null,null,null,null,null,null,0,null,null,0,null,null,0,null,null,0]
["Targeted savings",3,null,null,null,null,null,null,null,0,null,null,0,null,null,0,null,null,0]
["Targeted savings",3,null,null,null,null,null,null,null,0,null,null,0,null,null,0,null,null,0]
["Targeted savings",3,null,null,null,null,null,null,null,0,null,null,0,null,null,0,null,null,0]
["Targeted savings",3,null,null,null,null,null,null,null,0,null,null,0,null,null,0,null,null,0]
["Targeted savings",3,null,null,null,null,null,null,null,0,null,null,0,null,null,0,null,null,0]
["Targeted savings",3,null,null,null,null,null,null,null,0,null,null,0,null,null,0,null,null,0]
["Targeted savings",3,null,null,null,null,null,null,null,0,null,null,0,null,null,0,null,null,0]
["Targeted savings",3,null,null,null,null,null,null,null,0,null,null,0,null,null,0,null,null,0]
["Targeted savings",3,null,null,null,null,null,null,null,0,null,null,0,null,null,0,null,null,0]
["Targeted savings",3,null,null,null,null,null,null,null,0,null,null,0,null,null,0,null,null,0]
["Targeted savings",3,null,null,null,null,null,null,null,0,null,null,0,null,null,0,null,null,0]
["Targeted savings",3,null,null,null,null,null,null,null,0,null,null,0,null,null,0,null,null,0]
["Targeted savings",3,null,null,null,null,null,null,null,0,null,null,0,null,null,0,null,null,0]
["Targeted savings",3,null,null,null,null,null,null,null,0,null,null,0,null,null,0,null,null,0]
["Targeted savings",3,null,null,null,null,null,null,null,0,null,null,0,null,null,0,null,null,0]
["Targeted savings",3,null,null,null,null,null,null,null,0,null,null,0,null,null,0,null,null,0]
["Targeted savings",3,null,null,null,null,null,null,null,0,null,null,0,null,null,0,null,null,0]
["Targeted savings",3,null,null,null,null,null,null,null,0,null,null,0,null,null,0,null,null,0]
["Targeted savings",3,null,null,null,null,null,null,null,0,null,null,0,null,null,0,null,null,0]
["Targeted savings",3,null,null,null,null,null,null,null,0,null,null,0,null,null,0,null,null,0]
["Targeted savings",3,null,null,null,null,null,null,null,0,null,null,0,null,null,0,null,null,0]
["Targeted savings",3,null,null,null,null,null,null,null,0,null,null,0,null,null,0,null,null,0]
["Targeted savings",3,null,null,null,null,null,null,null,0,null,null,0,null,null,0,null,null,0]
["Targeted savings",3,null,null,null,null,null,null,null,0,null,null,0,null,null,0,null,null,0]
["Targeted savings",3,null,null,null,null,null,null,null,0,null,null,0,null,null,0,null,null,0]
["Targeted savings",3,null,null,null,null,null,null,null,0,null,null,0,null,null,0,null,null,0]
["Targeted savings",3,null,null,null,null,null,null,null,0,null,null,0,null,null,0,null,null,0]
["Targeted savings",3,null,null,null,null,null,null,null,0,null,null,0,null,null,0,null,null,0]
["Targeted savings",3,null,null,null,null,null,null,null,0,null,null,0,null,null,0,null,null,0]
["Targeted savings",3,null,null,null,null,null,null,null,0,null,null,0,null,null,0,null,null,0]
["Targeted savings",3,null,null,null,null,null,null,null,0,null,null,0,null,null,0,null,null,0]
["Targeted savings",3,null,null,null,null,null,null,null,0,null,null,0,null,null,0,null,null,0]
["Targeted savings",3,null,null,null,null,null,null,null,0,null,null,0,null,null,0,null,null,0]
["Targeted savings",3,null,null,null,null,"Total",{"$f":"SUM(H160:H209)","v":0},0,0,0,0,0,0,0,0,0,0,0]

{"sheet":"Metadata","index":20,"n_rows":26,"n_cols":4,"rows_kept":26,"cut":false,"hidden":true,"merged":[]}
[]
[null,"Metadata"]
[null,"ContextData","ProcessActivity","NAT_MTEC"]
[null,null,"Province","National"]
[null,null,"Department",{"$f":"MyDeptName","v":"Communications and Digital Technologies"}]
[null,null,"Month"]
[null,null,"Fin Year","2027/28"]
[null,null,"VoteNo",{"$f":"MyVoteNo","v":30}]
[null,null,"Identifier"]
[null,null,"ProgSectionCount"]
[null,null,"SubprogSectionCount"]
[null,"SourceRef","name",{"$f":"Welcome!G11","v":0}]
[null,null,"email",{"$f":"Welcome!G12","v":0}]
[null,null,"telephone",{"$f":"Welcome!G13","v":0}]
[null,null,"mobile",{"$f":"Welcome!G14","v":0}]
[null,"Platform","file modified",{"$f":"NOW()","v":46181.707085300928}]
[null,null,"OS version",{"$f":"INFO(\"OSVERSION\")","v":"Windows (64-bit) NT 10.00"}]
[null,null,"Excel version",{"$f":"INFO(\"RELEASE\")","v":"16.0"}]
[null,"SourceControl","SourceIdentifier",{"$f":"CONCATENATE(D3,\"_\",D9,\"_\",D16)","v":"NAT_MTEC__46181.7070853009"}]
[null,null,"Filename",{"$f":"MID(CELL(\"filename\",A1),FIND(\"[\",CELL(\"filename\",A1))+1,FIND(\"]\",CELL(\"filename\",A1))-FIND(\"[\",CELL(\"filename\",A1))-1)","v":"MTEF2027-Vote 30.xlsm"}]
[null,null,"FilePath",{"$f":"LEFT(CELL(\"filename\",A1),FIND(\"[\",CELL(\"filename\",A1),1)-1)","v":"P:\\1. Budget\\2027\\1. MTEC\\MTEC Workbook\\Development\\Master Workbook file\\Model\\Rollout\\"}]
[null,null,"template_versionDate",{"$f":"DATE(2015,6,26)","v":42181}]
[null,null,"LockDate1",{"$f":"DATE(2015,2,8)","v":42043}]
[null,null,"lockDate2",{"$f":"DATE(2015,2,8)","v":42043}]
[null,null,"LockStatus1",1]
[null,null,"LockStatus2",1]

{"sheet":"Sheet1","index":21,"n_rows":50,"n_cols":59,"rows_kept":50,"cut":false,"hidden":true,"merged":[]}
[]
[null,"Department:","Cooperative Governance"]
[null,null,null,null,null,null,null,null,null,null,null,null,null,null,null,null,null,null,null,null,null,null,null,null,null,null,null,null,null,null,null,null,null,"Ceiling Dept",null,null,null,null,null,null,"Ceiling CoE"]
[null,null,null,null,null,null,null,null,null,null,null,null,null,null,null,null,null,null,null,null,"Check Ceilings"]
[null,null,null,null,null,null,null,null,{"$f":"20-COUNTIF(J7:J26,\"\")","v":0},null,null,null,null,null,null,null,null,null,null,null,{"$f":"MyYear5","v":"2027/28"},{"$f":"MyYear6","v":"2028/29"},{"$f":"MyYear7","v":"2029/30"},"Check","Message",null,null,"ShtNames","Lock","Hide",null,null,null,"Vote No. - N","Department","2027/28","2028/29","2029/30",null,null,"Vote No. - N","Department","2027/28","2028/29","2029/30",null,null,"Vote No. - N","Department","2027/28","2028/29","2029/30",null,null,"Vote No. - N","Department","2027/28","2028/29","2029/30"]
[null,"UID_Org","Department","Programme","Subprogramme","Implementation programme","IP No",null,"IP No","Implementation programme",null,null,"ShtName",null,null,null,"Gov_Priority",null,null,"Dept",{"$f":"Data!CP9","v":0},{"$f":"Data!CQ9","v":0},{"$f":"Data!CR9+1","v":1},{"$f":"IF(OR(U6<0,V6<0,W6<0),1,0)","v":0},{"$f":"IF(X6=1,\"Departmental baseline ceiling exceeded!\")","v":false},null,null,"Welcome",1,0,null,null,null,29,"Agriculture",8150566,8405170,8658257,null,null,29,"Agriculture",1740713,1794816,1848859,null,null,29,"Agriculture",8150566,8405170,8658257,null,null,29,"Agriculture",1740713,1794816,1848859]
[null,"03|01|01","Cooperative Governance","Administration","Ministry",null,null,null,1,{"$f":"IFERROR(INDEX(#REF!,MATCH(0,COUNTIF(Sheet1!$J$6:J6,#REF!),0)),\"\")","v":""},null,null,"IP1",null,{"$f":"IFERROR(INDEX((t_PolicyMap[Implementation programme]),MATCH(I7,t_PolicyMap[IP No],0)),\"\")","v":""},null,"Priority 1: A Capable, Ethical and Developmental State",null,null,"CoE",{"$f":"Data!CP12","v":0},{"$f":"Data!CQ12","v":0},{"$f":"Data!CR12","v":0},{"$f":"IF(OR(U7<0,V7<0,W7<0),1,0)","v":0},{"$f":"IF(X7=1,\"Compensation baseline ceiling exceeded!\")","v":false},null,null,"Notes",1,0,null,null,null,16,"Basic Education",41108486,42548570,43829766,null,null,16,"Basic Education",731264,753993,776700,null,null,16,"Basic Education",41108486,42548570,43829766,null,null,16,"Basic Education",731264,753993,776700]
[null,"03|01|02","Cooperative Governance","Administration","Management",null,null,null,2,{"$f":"IFERROR(INDEX(#REF!,MATCH(0,COUNTIF(Sheet1!$J$6:J7,#REF!),0)),\"\")","v":""},null,null,"IP2",null,{"$f":"IFERROR(INDEX((t_PolicyMap[Implementation programme]),MATCH(I8,t_PolicyMap[IP No],0)),\"\")","v":""},null,"Priority 2: Economic Transformation and Job Creation",null,null,null,null,null,null,{"$f":"CeilingCheckDept","v":0},null,null,null,"Index",1,0,null,null,null,45,"Centre for Public Service Innovation",54822,56520,58220,null,null,45,"Centre for Public Service Innovation",34375,35443,36511,null,null,45,"Centre for Public Service Innovation",54822,56520,58220,null,null,45,"Centre for Public Service Innovation",34375,35443,36511]
[null,"03|01|03","Cooperative Governance","Administration","Corporate Services",null,null,null,3,{"$f":"IFERROR(INDEX(#REF!,MATCH(0,COUNTIF(Sheet1!$J$6:J8,#REF!),0)),\"\")","v":""},null,null,"IP3",null,{"$f":"IFERROR(INDEX((t_PolicyMap[Implementation programme]),MATCH(I9,t_PolicyMap[IP No],0)),\"\")","v":""},null,"Priority 3: Education, Skills and Health",null,null,null,null,null,null,null,null,null,null,"Pivot % growth",0,0,null,null,null,21,"Civilian Secretariat for the Police Service",189380,195266,201143,null,null,21,"Civilian Secretariat for the Police Service",148489,153104,157714,null,null,21,"Civilian Secretariat for the Police Service",189380,195266,201143,null,null,21,"Civilian Secretariat for the Police Service",148489,153104,157714]
[null,"03|01|04","Cooperative Governance","Administration","Financial Services",null,null,null,4,{"$f":"IFERROR(INDEX(#REF!,MATCH(0,COUNTIF(Sheet1!$J$6:J9,#REF!),0)),\"\")","v":""},null,null,null,null,{"$f":"IFERROR(INDEX((t_PolicyMap[Implementation programme]),MATCH(I10,t_PolicyMap[IP No],0)),\"\")","v":""},null,"Priority 4: Consolidating the Social Wage through Reliable and Quality Basic Services",null,null,null,null,null,null,null,null,null,null,"Pivot_T",0,0,null,null,null,30,"Communications and Digital Technologies",2649154,2731488,2813729,null,null,30,"Communications and Digital Technologies",362770,374043,385307,null,null,30,"Communications and Digital Technologies",2649154,2731488,2813729,null,null,30,"Communications and Digital Technologies",362770,374043,385307]
[null,"03|01|05","Cooperative Governance","Administration","Internal Audit and Risk Management",null,null,null,5,{"$f":"IFERROR(INDEX(#REF!,MATCH(0,COUNTIF(Sheet1!$J$6:J10,#REF!),0)),\"\")","v":""},null,null,null,null,{"$f":"IFERROR(INDEX((t_PolicyMap[Implementation programme]),MATCH(I11,t_PolicyMap[IP No],0)),\"\")","v":""},null,"Priority 5: Spatial Integration, Human Settlements and Local Government",null,null,null,null,null,null,null,null,null,null,"Service delivery impact",0,0,null,null,null,3,"Cooperative Governance",141530171,145928814,150322929,null,null,3,"Cooperative Governance",493867,509214,524547,null,null,3,"Cooperative Governance",141530171,145928814,150322929,null,null,3,"Cooperative Governance",493867,509214,524547]
[null,"03|01|06","Cooperative Governance","Administration","Office Accommodation",null,null,null,6,{"$f":"IFERROR(INDEX(#REF!,MATCH(0,COUNTIF(Sheet1!$J$6:J11,#REF!),0)),\"\")","v":""},null,null,null,null,{"$f":"IFERROR(INDEX((t_PolicyMap[Implementation programme]),MATCH(I12,t_PolicyMap[IP No],0)),\"\")","v":""},null,"Priority 6: Social Cohesion and Safer Communities",null,null,null,null,null,null,null,null,null,null,"Performance impact",0,0,null,null,null,22,"Correctional Services",31853961,32843954,33832927,null,null,22,"Correctional Services",23018260,23200128,23898716,null,null,22,"Correctional Services",31853961,32843954,33832927,null,null,22,"Correctional Services",23018260,23200128,23898716]
[null,"03|02|01","Cooperative Governance","Regional and Urban Development and Legislative Support","Management: Regional and Urban Development and Legislative Support",null,null,null,7,{"$f":"IFERROR(INDEX(#REF!,MATCH(0,COUNTIF(Sheet1!$J$6:J12,#REF!),0)),\"\")","v":""},null,null,null,null,{"$f":"IFERROR(INDEX((t_PolicyMap[Implementation programme]),MATCH(I13,t_PolicyMap[IP No],0)),\"\")","v":""},null,"Priority 7: A Better Africa and World",null,null,null,null,null,null,null,null,null,null,"Pivot Infra impact",0,0,null,null,null,23,"Defence",59878246,61754363,63613865,null,null,23,"Defence",39357404,40580593,41802532,null,null,23,"Defence",59878246,61754363,63613865,null,null,23,"Defence",39357404,40580593,41802532]
[null,"03|02|02","Cooperative Governance","Regional and Urban Development and Legislative Support","Local Government Legislative Support and Institutional Establishment",null,null,null,8,{"$f":"IFERROR(INDEX(#REF!,MATCH(0,COUNTIF(Sheet1!$J$6:J13,#REF!),0)),\"\")","v":""},null,null,null,null,{"$f":"IFERROR(INDEX((t_PolicyMap[Implementation programme]),MATCH(I14,t_PolicyMap[IP No],0)),\"\")","v":""},null,"Departmental mandate",null,null,null,null,null,null,null,null,null,null,"Pivot Personnel impact",0,0,null,null,null,10,"Electricity and Energy",7074223,6871580,7078487,null,null,10,"Electricity and Energy",404921,417506,430079,null,null,10,"Electricity and Energy",7074223,6871580,7078487,null,null,10,"Electricity and Energy",404921,417506,430079]
[null,"03|02|03","Cooperative Governance","Regional and Urban Development and Legislative Support","Urban Development Planning",null,null,null,9,{"$f":"IFERROR(INDEX(#REF!,MATCH(0,COUNTIF(Sheet1!$J$6:J14,#REF!),0)),\"\")","v":""},null,null,null,null,{"$f":"IFERROR(INDEX((t_PolicyMap[Implementation programme]),MATCH(I15,t_PolicyMap[IP No],0)),\"\")","v":""},null,null,null,null,null,null,null,null,null,null,null,null,"Pivot HRBP",0,0,null,null,null,31,"Employment and Labour",4138911,4267546,4396045,null,null,31,"Employment and Labour",1715813,1769140,1822410,null,null,31,"Employment and Labour",4138911,4267546,4396045,null,null,31,"Employment and Labour",1715813,1769140,1822410]
[null,"03|02|04","Cooperative Governance","Regional and Urban Development and Legislative Support","Spatial Planning Districts and Regions",null,null,null,10,{"$f":"IFERROR(INDEX(#REF!,MATCH(0,COUNTIF(Sheet1!$J$6:J15,#REF!),0)),\"\")","v":""},null,null,null,null,{"$f":"IFERROR(INDEX((t_PolicyMap[Implementation programme]),MATCH(I16,t_PolicyMap[IP No],0)),\"\")","v":""},null,null,null,null,null,null,null,null,null,null,null,null,"Data",1,0,null,null,null,32,"Forestry, Fisheries and the Environment",9851222,10157385,10463234,null,null,32,"Forestry, Fisheries and the Environment",2614786,2696047,2777229,null,null,32,"Forestry, Fisheries and the Environment",9851222,10157385,10463234,null,null,32,"Forestry, Fisheries and the Environment",2614786,2696047,2777229]
[null,"03|02|05","Cooperative Governance","Regional and Urban Development and Legislative Support","Intergovernmental Policy and Practice",null,null,null,11,{"$f":"IFERROR(INDEX(#REF!,MATCH(0,COUNTIF(Sheet1!$J$6:J16,#REF!),0)),\"\")","v":""},null,null,null,null,{"$f":"IFERROR(INDEX((t_PolicyMap[Implementation programme]),MATCH(I17,t_PolicyMap[IP No],0)),\"\")","v":""},null,null,null,null,null,null,null,null,null,null,null,null,"Programme Assessment Matrix",1,0,null,null,null,4,"Government Communication and Information System",837030,863045,889029,null,null,4,"Government Communication and Information System",339194,349736,360267,null,null,4,"Government Communication and Information System",837030,863045,889029,null,null,4,"Government Communication and Information System",339194,349736,360267]
[null,"03|02|06","Cooperative Governance","Regional and Urban Development and Legislative Support","Municipal Demarcation Transition Grant",null,null,null,12,{"$f":"IFERROR(INDEX(#REF!,MATCH(0,COUNTIF(Sheet1!$J$6:J17,#REF!),0)),\"\")","v":""},null,null,null,null,{"$f":"IFERROR(INDEX((t_PolicyMap[Implementation programme]),MATCH(I18,t_PolicyMap[IP No],0)),\"\")","v":""},null,null,null,null,null,null,null,null,null,null,null,null,"Component Assessment Matrix",1,0,null,null,null,18,"Health",69793803,72009303,73811911,null,null,18,"Health",815301,840644,865957,null,null,18,"Health",69793803,72009303,73811911,null,null,18,"Health",815301,840644,865957]
[null,"03|02|07","Cooperative Governance","Regional and Urban Development and Legislative Support","Municipal Demarcation Board",null,null,null,13,{"$f":"IFERROR(INDEX(#REF!,MATCH(0,COUNTIF(Sheet1!$J$6:J18,#REF!),0)),\"\")","v":""},null,null,null,null,{"$f":"IFERROR(INDEX((t_PolicyMap[Implementation programme]),MATCH(I19,t_PolicyMap[IP No],0)),\"\")","v":""},null,null,null,null,null,null,null,null,null,null,null,null,"Summary",1,0,null,null,null,17,"Higher Education",155829223,161539798,166351810,null,null,17,"Higher Education",13912474,14344859,14776803,null,null,17,"Higher Education",155829223,161539798,166351810,null,null,17,"Higher Education",13912474,14344859,14776803]
[null,"03|02|08","Cooperative Governance","Regional and Urban Development and Legislative Support","South African Cities Network",null,null,null,14,{"$f":"IFERROR(INDEX(#REF!,MATCH(0,COUNTIF(Sheet1!$J$6:J19,#REF!),0)),\"\")","v":""},null,null,null,null,{"$f":"IFERROR(INDEX((t_PolicyMap[Implementation programme]),MATCH(I20,t_PolicyMap[IP No],0)),\"\")","v":""},null,null,null,null,null,null,null,null,null,null,null,null,"SRT1",1,0,null,null,null,5,"Home Affairs",12879751,13291494,13691722,null,null,5,"Home Affairs",4596571,4739427,4882137,null,null,5,"Home Affairs",12879751,13291494,13691722,null,null,5,"Home Affairs",4596571,4739427,4882137]
[null,"03|02|09","Cooperative Governance","Regional and Urban Development and Legislative Support","Integrated Urban Development Grant",null,null,null,15,{"$f":"IFERROR(INDEX(#REF!,MATCH(0,COUNTIF(Sheet1!$J$6:J20,#REF!),0)),\"\")","v":""},null,null,null,null,{"$f":"IFERROR(INDEX((t_PolicyMap[Implementation programme]),MATCH(I21,t_PolicyMap[IP No],0)),\"\")","v":""},null,null,null,null,null,null,null,null,null,null,null,null,"SRT2",1,0,null,null,null,33,"Human Settlements",27180443,27212137,28031525,null,null,33,"Human Settlements",498830,514334,529822,null,null,33,"Human Settlements",27180443,27212137,28031525,null,null,33,"Human Settlements",498830,514334,529822]
[null,"03|03|01","Cooperative Governance","Institutional Development","Management: Institutional Development",null,null,null,16,{"$f":"IFERROR(INDEX(#REF!,MATCH(0,COUNTIF(Sheet1!$J$6:J21,#REF!),0)),\"\")","v":""},null,null,null,null,{"$f":"IFERROR(INDEX((t_PolicyMap[Implementation programme]),MATCH(I22,t_PolicyMap[IP No],0)),\"\")","v":""},null,null,null,null,null,null,null,null,null,null,null,null,"SRT3",1,0,null,null,null,24,"Independent Police Investigative Directorate",465427,479893,494343,null,null,24,"Independent Police Investigative Directorate",321353,331341,341321,null,null,24,"Independent Police Investigative Directorate",465427,479893,494343,null,null,24,"Independent Police Investigative Directorate",321353,331341,341321]
[null,"03|03|02","Cooperative Governance","Institutional Development","Municipal Human Resources Management Systems",null,null,null,17,{"$f":"IFERROR(INDEX(#REF!,MATCH(0,COUNTIF(Sheet1!$J$6:J22,#REF!),0)),\"\")","v":""},null,null,null,null,{"$f":"IFERROR(INDEX((t_PolicyMap[Implementation programme]),MATCH(I23,t_PolicyMap[IP No],0)),\"\")","v":""},null,null,null,null,null,null,null,null,null,null,null,null,"SRT4",1,0,null,null,null,6,"International Relations and Cooperation",7475600,7707934,7940027,null,null,6,"International Relations and Cooperation",3537928,3647882,3757723,null,null,6,"International Relations and Cooperation",7475600,7707934,7940027,null,null,6,"International Relations and Cooperation",3537928,3647882,3757723]
[null,"03|03|03","Cooperative Governance","Institutional Development","Municipal Finance",null,null,null,18,{"$f":"IFERROR(INDEX(#REF!,MATCH(0,COUNTIF(Sheet1!$J$6:J23,#REF!),0)),\"\")","v":""},null,null,null,null,{"$f":"IFERROR(INDEX((t_PolicyMap[Implementation programme]),MATCH(I24,t_PolicyMap[IP No],0)),\"\")","v":""},null,null,null,null,null,null,null,null,null,null,null,null,"Other reallocations",1,0,null,null,null,46,"Judicial Inspectorate for Correctional Services",135427,139636,143841,null,null,46,"Judicial Inspectorate for Correctional Services",89873,92668,95459,null,null,46,"Judicial Inspectorate for Correctional Services",135427,139636,143841,null,null,46,"Judicial Inspectorate for Correctional Services",89873,92668,95459]
[null,"03|03|04","Cooperative Governance","Institutional Development","Citizen Engagement",null,null,null,19,{"$f":"IFERROR(INDEX(#REF!,MATCH(0,COUNTIF(Sheet1!$J$6:J24,#REF!),0)),\"\")","v":""},null,null,null,null,{"$f":"IFERROR(INDEX((t_PolicyMap[Implementation programme]),MATCH(I25,t_PolicyMap[IP No],0)),\"\")","v":""},null,null,null,null,null,null,null,null,null,null,null,null,"Targeted savings",1,0,null,null,null,25,"Justice and Constitutional Development",27300947,28146036,28993552,null,null,25,"Justice and Constitutional Development",17174746,17708523,18241749,null,null,25,"Justice and Constitutional Development",27300947,28146036,28993552,null,null,25,"Justice and Constitutional Development",17174746,17708523,18241749]
[null,"03|03|05","Cooperative Governance","Institutional Development","Anti-Corruption and Good Governance",null,null,null,20,{"$f":"IFERROR(INDEX(#REF!,MATCH(0,COUNTIF(Sheet1!$J$6:J25,#REF!),0)),\"\")","v":""},null,null,null,null,{"$f":"IFERROR(INDEX((t_PolicyMap[Implementation programme]),MATCH(I26,t_PolicyMap[IP No],0)),\"\")","v":""},null,null,null,null,null,null,null,null,null,null,null,null,"Metadata",1,1,null,null,null,42,"Land Reform and Rural Development",10715093,11048111,11380779,null,null,42,"Land Reform and Rural Development",2971624,3063981,3156244,null,null,42,"Land Reform and Rural Development",10715093,11048111,11380779,null,null,42,"Land Reform and Rural Development",2971624,3063981,3156244]
[null,"03|03|06","Cooperative Governance","Institutional Development","Municipal Property Rates",null,null,null,null,null,null,null,null,null,null,null,null,null,null,null,null,null,null,null,null,null,null,"Sheet1",0,1,null,null,null,26,"Military Veterans",947565,977015,1006428,null,null,26,"Military Veterans",167683,172895,178101,null,null,26,"Military Veterans",947565,977015,1006428,null,null,26,"Military Veterans",167683,172895,178101]
[null,"03|03|07","Cooperative Governance","Institutional Development","Local Government Equitable Share ",null,null,null,null,null,null,null,null,null,null,null,null,null,null,null,null,null,null,null,null,null,null,"HRBP_Data",1,1,null,null,null,34,"Mineral and Petroleum Resources",2976215,3068712,3161118,null,null,34,"Mineral and Petroleum Resources",990787,1021579,1052344,null,null,34,"Mineral and Petroleum Resources",2976215,3068712,3161118,null,null,34,"Mineral and Petroleum Resources",990787,1021579,1052344]
[null,"03|03|08","Cooperative Governance","Institutional Development","South African Local Government Association",null,null,null,null,null,null,null,null,null,null,null,null,null,null,null,null,null,null,null,null,null,null,"Tables",0,1,null,null,null,7,"National School of Government",248185,255906,263612,null,null,7,"National School of Government",72656,74914,77170,null,null,7,"National School of Government",248185,255906,263612,null,null,7,"National School of Government",72656,74914,77170]
[null,"03|03|09","Cooperative Governance","Institutional Development","Municipal Systems Improvement Grant ",null,null,null,null,null,null,null,null,null,null,null,null,null,null,null,null,null,null,null,null,null,null,null,null,null,null,null,null,8,"National Treasury",1225147002,1271239585,1323080787,null,null,8,"National Treasury",1200212,1237516,1274778,null,null,8,"National Treasury",1225147002,1271239585,1323080787,null,null,8,"National Treasury",1200212,1237516,1274778]
[null,"03|03|11","Cooperative Governance","Institutional Development","United Cities and Local Government of Africa",null,null,null,null,null,null,null,null,null,null,null,null,null,null,null,null,null,null,null,null,null,null,null,null,null,null,null,null,27,"Office of the Chief Justice",3583908,3702026,3813497,null,null,27,"Office of the Chief Justice",2535487,2632499,2711765,null,null,27,"Office of the Chief Justice",3583908,3702026,3813497,null,null,27,"Office of the Chief Justice",2535487,2632499,2711765]
[null,"03|04|01","Cooperative Governance","National Disaster Management Centre","Management: Head of the National Disaster Management Centre",null,null,null,null,null,null,null,null,null,null,null,null,null,null,null,null,null,null,null,null,null,null,null,null,null,null,null,null,2,"Parliament",3560738,3671403,3781954,null,null,2,"Parliament",2076189,2140715,2205176,null,null,2,"Parliament",3560738,3671403,3781954,null,null,2,"Parliament",2076189,2140715,2205176]
[null,"03|04|02","Cooperative Governance","National Disaster Management Centre","Disaster Risk Reduction, Capacity Building and Intervention",null,null,null,null,null,null,null,null,null,null,null,null,null,null,null,null,null,null,null,null,null,null,null,null,null,null,null,null,9,"Planning, Monitoring and Evaluation",550565,567679,584769,null,null,9,"Planning, Monitoring and Evaluation",406385,419018,431637,null,null,9,"Planning, Monitoring and Evaluation",550565,567679,584769,null,null,9,"Planning, Monitoring and Evaluation",406385,419018,431637]
[null,"03|04|03","Cooperative Governance","National Disaster Management Centre","Legislation and Policy Management",null,null,null,null,null,null,null,null,null,null,null,null,null,null,null,null,null,null,null,null,null,null,null,null,null,null,null,null,28,"Police",131680915,135773451,139861787,null,null,28,"Police",106562843,109572346,112871720,null,null,28,"Police",131680915,135773451,139861787,null,null,28,"Police",106562843,109572346,112871720]
[null,"03|04|04","Cooperative Governance","National Disaster Management Centre","Integrated Provincial Disaster Management Support, Monitoring and Evaluation Systems",null,null,null,null,null,null,null,null,null,null,null,null,null,null,null,null,null,null,null,null,null,null,null,null,null,null,null,null,12,"Public Service Commission",367745,379696,391128,null,null,12,"Public Service Commission",287397,296851,305790,null,null,12,"Public Service Commission",367745,379696,391128,null,null,12,"Public Service Commission",287397,296851,305790]
[null,"03|04|05","Cooperative Governance","National Disaster Management Centre","Fire Services",null,null,null,null,null,null,null,null,null,null,null,null,null,null,null,null,null,null,null,null,null,null,null,null,null,null,null,null,11,"Public Service and Administration",616123,635270,654390,null,null,11,"Public Service and Administration",336536,346997,357447,null,null,11,"Public Service and Administration",616123,635270,654390,null,null,11,"Public Service and Administration",336536,346997,357447]
[null,"03|04|06","Cooperative Governance","National Disaster Management Centre","Information Technology, Intelligence and Information Management Systems",null,null,null,null,null,null,null,null,null,null,null,null,null,null,null,null,null,null,null,null,null,null,null,null,null,null,null,null,13,"Public Works and Infrastructure",8233497,8489921,8745554,null,null,13,"Public Works and Infrastructure",713274,735443,757589,null,null,13,"Public Works and Infrastructure",8233497,8489921,8745554,null,null,13,"Public Works and Infrastructure",713274,735443,757589]
[null,"03|04|07","Cooperative Governance","National Disaster Management Centre","Disaster Relief Grant",null,null,null,null,null,null,null,null,null,null,null,null,null,null,null,null,null,null,null,null,null,null,null,null,null,null,null,null,35,"Science, Technology and Innovation",10815433,11120487,11455349,null,null,35,"Science, Technology and Innovation",422717,435853,448975,null,null,35,"Science, Technology and Innovation",10815433,11120487,11455349,null,null,35,"Science, Technology and Innovation",422717,435853,448975]
[null,"03|04|08","Cooperative Governance","National Disaster Management Centre","Municipal Disaster Recovery Grant",null,null,null,null,null,null,null,null,null,null,null,null,null,null,null,null,null,null,null,null,null,null,null,null,null,null,null,null,36,"Small Business Development",3158268,3256425,3354477,null,null,36,"Small Business Development",289603,298604,307595,null,null,36,"Small Business Development",3158268,3256425,3354477,null,null,36,"Small Business Development",289603,298604,307595]
[null,"03|04|09","Cooperative Governance","National Disaster Management Centre","Provincial Disaster Recovery Grant",null,null,null,null,null,null,null,null,null,null,null,null,null,null,null,null,null,null,null,null,null,null,null,null,null,null,null,null,19,"Social Development",277272930,286620567,295251101,null,null,19,"Social Development",649392,669629,689795,null,null,19,"Social Development",277272930,286620567,295251101,null,null,19,"Social Development",649392,669629,689795]
[null,"03|05|01","Cooperative Governance","Local Government Support and Intervention Management","Management: Local Government Support and Interventions",null,null,null,null,null,null,null,null,null,null,null,null,null,null,null,null,null,null,null,null,null,null,null,null,null,null,null,null,37,"Sport, Arts and Culture",6460865,6663530,6864167,null,null,37,"Sport, Arts and Culture",475051,489737,504484,null,null,37,"Sport, Arts and Culture",6460865,6663530,6864167,null,null,37,"Sport, Arts and Culture",475051,489737,504484]
[null,"03|05|02","Cooperative Governance","Local Government Support and Intervention Management","Municipal Performance Monitoring",null,null,null,null,null,null,null,null,null,null,null,null,null,null,null,null,null,null,null,null,null,null,null,null,null,null,null,null,14,"Statistics South Africa",3094215,3201635,3298037,null,null,14,"Statistics South Africa",1996462,2058509,2120497,null,null,14,"Statistics South Africa",3094215,3201635,3298037,null,null,14,"Statistics South Africa",1996462,2058509,2120497]
[null,"03|05|03","Cooperative Governance","Local Government Support and Intervention Management","Local Government Improvement Programme",null,null,null,null,null,null,null,null,null,null,null,null,null,null,null,null,null,null,null,null,null,null,null,null,null,null,null,null,1,"The Presidency",880447,905014,932262,null,null,1,"The Presidency",591779,607374,625664,null,null,1,"The Presidency",880447,905014,932262,null,null,1,"The Presidency",591779,607374,625664]
[null,"03|05|04","Cooperative Governance","Local Government Support and Intervention Management","Litigations and Interventions",null,null,null,null,null,null,null,null,null,null,null,null,null,null,null,null,null,null,null,null,null,null,null,null,null,null,null,null,38,"Tourism",2640637,2722705,2804693,null,null,38,"Tourism",472215,486890,501554,null,null,38,"Tourism",2640637,2722705,2804693,null,null,38,"Tourism",472215,486890,501554]
[null,"03|05|05","Cooperative Governance","Local Government Support and Intervention Management","Municipal Infrastructure Administration",null,null,null,null,null,null,null,null,null,null,null,null,null,null,null,null,null,null,null,null,null,null,null,null,null,null,null,null,39,"Trade, Industry and Competition",10601456,10930944,11260095,null,null,39,"Trade, Industry and Competition",1294447,1333127,1373267,null,null,39,"Trade, Industry and Competition",10601456,10930944,11260095,null,null,39,"Trade, Industry and Competition",1294447,1333127,1373267]
[null,"03|05|06","Cooperative Governance","Local Government Support and Intervention Management","Municipal Infrastructure Grant",null,null,null,null,null,null,null,null,null,null,null,null,null,null,null,null,null,null,null,null,null,null,null,null,null,null,null,null,15,"Traditional Affairs",265451,274388,282650,null,null,15,"Traditional Affairs",150578,155730,160418,null,null,15,"Traditional Affairs",265451,274388,282650,null,null,15,"Traditional Affairs",150578,155730,160418]
[null,"03|05|07","Cooperative Governance","Local Government Support and Intervention Management","Municipal Infrastructure Support Agent",null,null,null,null,null,null,null,null,null,null,null,null,null,null,null,null,null,null,null,null,null,null,null,null,null,null,null,null,40,"Transport",99031245,112301296,99385959,null,null,40,"Transport",694610,716197,737763,null,null,40,"Transport",99031245,112301296,99385959,null,null,40,"Transport",694610,716197,737763]
[null,"03|06|01","Cooperative Governance","Community Work Programme","Management: Community Work Programme",null,null,null,null,null,null,null,null,null,null,null,null,null,null,null,null,null,null,null,null,null,null,null,null,null,null,null,null,41,"Water and Sanitation",21295116,27869270,24793867,null,null,41,"Water and Sanitation",2294407,2365719,2436952,null,null,41,"Water and Sanitation",21295116,27869270,24793867,null,null,41,"Water and Sanitation",2294407,2365719,2436952]
[null,"03|06|02","Cooperative Governance","Community Work Programme","Programme Coordination",null,null,null,null,null,null,null,null,null,null,null,null,null,null,null,null,null,null,null,null,null,null,null,null,null,null,null,null,20,"Women, Youth and Persons with Disabilities",928850,958608,987476,null,null,20,"Women, Youth and Persons with Disabilities",152455,157194,161929,null,null,20,"Women, Youth and Persons with Disabilities",928850,958608,987476,null,null,20,"Women, Youth and Persons with Disabilities",152455,157194,161929]
[null,"03|06|03","Cooperative Governance","Community Work Programme","Partnerships, Norms, Standards and Innovation"]

{"sheet":"HRBP_Data","index":22,"n_rows":321,"n_cols":56,"rows_kept":321,"cut":false,"hidden":true,"merged":[]}
["VoteNo","Department","Programme No","Salary level","2025/26 Establishment: Number of funded posts as at 31 March 2025","2025/26 Establishment: Number of funded posts additional to the establishment","2025/26 FTE\nHeadcount","2025/26 Unit Costs","2025/26 \nOnce-off Payments per person","2025/26 Estimated Outcome","2026/27 Initial Headcount","2026/27 Unit Costs","2026/27 \nOnce-off Payments per person","2026/27 Vacant funded posts to be filled","2026/27 Headcount reductions to be made","2026/27 Revised Headcount","2026/27 Cost of vacant posts to be filled","2026/27 Savings from headcount reductions","2026/27 Revised Estimate","2027/28 Initial Headcount","2027/28 Unit Costs","2027/28 \nOnce-off Payments per person","2027/28 Vacant funded posts to be filled","2027/28 Headcount reductions to be made","2027/28 Revised Headcount","2027/28 Cost of vacant posts to be filled","2027/28 Savings from headcount reductions","2027/28 MTEF Estimate","2028/29 Initial Headcount","2028/29 Unit Costs","2028/29 \nOnce-off Payments per person","2028/29 Vacant funded posts to be filled","2028/29 Headcount reductions to be made","2028/29 Revised Headcount","2028/29 Cost of vacant posts to be filled","2028/29 Savings from headcount reductions","2028/29 MTEF Estimate","2029/30 Initial Headcount","2029/30 Unit Costs","2029/30 \nOnce-off Payments per person","2029/30 Vacant funded posts to be filled","2029/30 Headcount reductions to be made","2029/30 Revised Headcount","2029/30 Cost of vacant posts to be filled","2029/30 Savings from headcount reductions","2029/30 MTEF Estimate","ValueIndi",null,null,null,null,"Strategies to Reduce Headcounts"]
["Vote 36","Small Business Development",1,1,0,0,0,0,0,0,0,0,0,0,0,0,0,0,0,0,0,0,0,0,0,0,0,0,0,0,0,0,0,0,0,0,0,0,0,0,0,0,0,0,0,0,0,null,null,null,null,"Indicators","2026/27","2027/28","2028/29","2029/30"]
["Vote 36","Small Business Development",1,2,0,0,0,0,0,0,0,0,0,0,0,0,0,0,0,0,0,0,0,0,0,0,0,0,0,0,0,0,0,0,0,0,0,0,0,0,0,0,0,0,0,0,0,null,null,null,null,"1. Employee initiated severance package"]
["Vote 36","Small Business Development",1,3,0,0,0,0,0,0,0,0,0,0,0,0,0,0,0,0,0,0,0,0,0,0,0,0,0,0,0,0,0,0,0,0,0,0,0,0,0,0,0,0,0,0,0,null,null,null,null,"2. Early retirement"]
["Vote 36","Small Business Development",1,4,0,0,0,0,0,0,0,0,0,0,0,0,0,0,0,0,0,0,0,0,0,0,0,0,0,0,0,0,0,0,0,0,0,0,0,0,0,0,0,0,0,0,0,null,null,null,null,"3. Natural attrition"]
["Vote 36","Small Business Development",1,5,0,0,0,0,0,0,0,0,0,0,0,0,0,0,0,0,0,0,0,0,0,0,0,0,0,0,0,0,0,0,0,0,0,0,0,0,0,0,0,0,0,0,0,null,null,null,null,"4. Retirement"]
["Vote 36","Small Business Development",1,6,0,0,0,0,0,0,0,0,0,0,0,0,0,0,0,0,0,0,0,0,0,0,0,0,0,0,0,0,0,0,0,0,0,0,0,0,0,0,0,0,0,0,0,null,null,null,null,"5. Contract termination"]
["Vote 36","Small Business Development",1,7,0,0,0,0,0,0,0,0,0,0,0,0,0,0,0,0,0,0,0,0,0,0,0,0,0,0,0,0,0,0,0,0,0,0,0,0,0,0,0,0,0,0,0,null,null,null,null,"6. Redeployments (transfers to other departments)"]
["Vote 36","Small Business Development",1,8,0,0,0,0,0,0,0,0,0,0,0,0,0,0,0,0,0,0,0,0,0,0,0,0,0,0,0,0,0,0,0,0,0,0,0,0,0,0,0,0,0,0,0,null,null,null,null,"Total",0,0,0,0]
["Vote 36","Small Business Development",1,9,0,0,0,0,0,0,0,0,0,0,0,0,0,0,0,0,0,0,0,0,0,0,0,0,0,0,0,0,0,0,0,0,0,0,0,0,0,0,0,0,0,0,0]
["Vote 36","Small Business Development",1,10,0,0,0,0,0,0,0,0,0,0,0,0,0,0,0,0,0,0,0,0,0,0,0,0,0,0,0,0,0,0,0,0,0,0,0,0,0,0,0,0,0,0,0]
["Vote 36","Small Business Development",1,11,0,0,0,0,0,0,0,0,0,0,0,0,0,0,0,0,0,0,0,0,0,0,0,0,0,0,0,0,0,0,0,0,0,0,0,0,0,0,0,0,0,0,0]
["Vote 36","Small Business Development",1,12,0,0,0,0,0,0,0,0,0,0,0,0,0,0,0,0,0,0,0,0,0,0,0,0,0,0,0,0,0,0,0,0,0,0,0,0,0,0,0,0,0,0,0]
["Vote 36","Small Business Development",1,13,0,0,0,0,0,0,0,0,0,0,0,0,0,0,0,0,0,0,0,0,0,0,0,0,0,0,0,0,0,0,0,0,0,0,0,0,0,0,0,0,0,0,0]
["Vote 36","Small Business Development",1,14,0,0,0,0,0,0,0,0,0,0,0,0,0,0,0,0,0,0,0,0,0,0,0,0,0,0,0,0,0,0,0,0,0,0,0,0,0,0,0,0,0,0,0]
["Vote 36","Small Business Development",1,15,0,0,0,0,0,0,0,0,0,0,0,0,0,0,0,0,0,0,0,0,0,0,0,0,0,0,0,0,0,0,0,0,0,0,0,0,0,0,0,0,0,0,0]
["Vote 36","Small Business Development",1,16,0,0,0,0,0,0,0,0,0,0,0,0,0,0,0,0,0,0,0,0,0,0,0,0,0,0,0,0,0,0,0,0,0,0,0,0,0,0,0,0,0,0,0]
["Vote 36","Small Business Development",1,"Deputy Minister",0,0,0,0,0,0,0,0,0,0,0,0,0,0,0,0,0,0,0,0,0,0,0,0,0,0,0,0,0,0,0,0,0,0,0,0,0,0,0,0,0,0,0]
["Vote 36","Small Business Development",1,"Minister",0,0,0,0,0,0,0,0,0,0,0,0,0,0,0,0,0,0,0,0,0,0,0,0,0,0,0,0,0,0,0,0,0,0,0,0,0,0,0,0,0,0,0]
["Vote 36","Small Business Development",1,"Intern",0,0,0,0,0,0,0,0,0,0,0,0,0,0,0,0,0,0,0,0,0,0,0,0,0,0,0,0,0,0,0,0,0,0,0,0,0,0,0,0,0,0,0]
["Vote 36","Small Business Development",1,"Other",0,0,0,0,0,0,0,0,0,0,0,0,0,0,0,0,0,0,0,0,0,0,0,0,0,0,0,0,0,0,0,0,0,0,0,0,0,0,0,0,0,0,0]
["Vote 36","Small Business Development",2,1,0,0,0,0,0,0,0,0,0,0,0,0,0,0,0,0,0,0,0,0,0,0,0,0,0,0,0,0,0,0,0,0,0,0,0,0,0,0,0,0,0,0,0]
["Vote 36","Small Business Development",2,2,0,0,0,0,0,0,0,0,0,0,0,0,0,0,0,0,0,0,0,0,0,0,0,0,0,0,0,0,0,0,0,0,0,0,0,0,0,0,0,0,0,0,0]
["Vote 36","Small Business Development",2,3,0,0,0,0,0,0,0,0,0,0,0,0,0,0,0,0,0,0,0,0,0,0,0,0,0,0,0,0,0,0,0,0,0,0,0,0,0,0,0,0,0,0,0]
["Vote 36","Small Business Development",2,4,0,0,0,0,0,0,0,0,0,0,0,0,0,0,0,0,0,0,0,0,0,0,0,0,0,0,0,0,0,0,0,0,0,0,0,0,0,0,0,0,0,0,0]
["Vote 36","Small Business Development",2,5,0,0,0,0,0,0,0,0,0,0,0,0,0,0,0,0,0,0,0,0,0,0,0,0,0,0,0,0,0,0,0,0,0,0,0,0,0,0,0,0,0,0,0]
["Vote 36","Small Business Development",2,6,0,0,0,0,0,0,0,0,0,0,0,0,0,0,0,0,0,0,0,0,0,0,0,0,0,0,0,0,0,0,0,0,0,0,0,0,0,0,0,0,0,0,0]
["Vote 36","Small Business Development",2,7,0,0,0,0,0,0,0,0,0,0,0,0,0,0,0,0,0,0,0,0,0,0,0,0,0,0,0,0,0,0,0,0,0,0,0,0,0,0,0,0,0,0,0]
["Vote 36","Small Business Development",2,8,0,0,0,0,0,0,0,0,0,0,0,0,0,0,0,0,0,0,0,0,0,0,0,0,0,0,0,0,0,0,0,0,0,0,0,0,0,0,0,0,0,0,0]
["Vote 36","Small Business Development",2,9,0,0,0,0,0,0,0,0,0,0,0,0,0,0,0,0,0,0,0,0,0,0,0,0,0,0,0,0,0,0,0,0,0,0,0,0,0,0,0,0,0,0,0]
["Vote 36","Small Business Development",2,10,0,0,0,0,0,0,0,0,0,0,0,0,0,0,0,0,0,0,0,0,0,0,0,0,0,0,0,0,0,0,0,0,0,0,0,0,0,0,0,0,0,0,0]
["Vote 36","Small Business Development",2,11,0,0,0,0,0,0,0,0,0,0,0,0,0,0,0,0,0,0,0,0,0,0,0,0,0,0,0,0,0,0,0,0,0,0,0,0,0,0,0,0,0,0,0]
["Vote 36","Small Business Development",2,12,0,0,0,0,0,0,0,0,0,0,0,0,0,0,0,0,0,0,0,0,0,0,0,0,0,0,0,0,0,0,0,0,0,0,0,0,0,0,0,0,0,0,0]
["Vote 36","Small Business Development",2,13,0,0,0,0,0,0,0,0,0,0,0,0,0,0,0,0,0,0,0,0,0,0,0,0,0,0,0,0,0,0,0,0,0,0,0,0,0,0,0,0,0,0,0]
["Vote 36","Small Business Development",2,14,0,0,0,0,0,0,0,0,0,0,0,0,0,0,0,0,0,0,0,0,0,0,0,0,0,0,0,0,0,0,0,0,0,0,0,0,0,0,0,0,0,0,0]
["Vote 36","Small Business Development",2,15,0,0,0,0,0,0,0,0,0,0,0,0,0,0,0,0,0,0,0,0,0,0,0,0,0,0,0,0,0,0,0,0,0,0,0,0,0,0,0,0,0,0,0]
["Vote 36","Small Business Development",2,16,0,0,0,0,0,0,0,0,0,0,0,0,0,0,0,0,0,0,0,0,0,0,0,0,0,0,0,0,0,0,0,0,0,0,0,0,0,0,0,0,0,0,0]
["Vote 36","Small Business Development",2,"Deputy Minister",0,0,0,0,0,0,0,0,0,0,0,0,0,0,0,0,0,0,0,0,0,0,0,0,0,0,0,0,0,0,0,0,0,0,0,0,0,0,0,0,0,0,0]
["Vote 36","Small Business Development",2,"Minister",0,0,0,0,0,0,0,0,0,0,0,0,0,0,0,0,0,0,0,0,0,0,0,0,0,0,0,0,0,0,0,0,0,0,0,0,0,0,0,0,0,0,0]
["Vote 36","Small Business Development",2,"Intern",0,0,0,0,0,0,0,0,0,0,0,0,0,0,0,0,0,0,0,0,0,0,0,0,0,0,0,0,0,0,0,0,0,0,0,0,0,0,0,0,0,0,0]
["Vote 36","Small Business Development",2,"Other",0,0,0,0,0,0,0,0,0,0,0,0,0,0,0,0,0,0,0,0,0,0,0,0,0,0,0,0,0,0,0,0,0,0,0,0,0,0,0,0,0,0,0]
["Vote 36","Small Business Development",3,1,0,0,0,0,0,0,0,0,0,0,0,0,0,0,0,0,0,0,0,0,0,0,0,0,0,0,0,0,0,0,0,0,0,0,0,0,0,0,0,0,0,0,0]
["Vote 36","Small Business Development",3,2,0,0,0,0,0,0,0,0,0,0,0,0,0,0,0,0,0,0,0,0,0,0,0,0,0,0,0,0,0,0,0,0,0,0,0,0,0,0,0,0,0,0,0]
["Vote 36","Small Business Development",3,3,0,0,0,0,0,0,0,0,0,0,0,0,0,0,0,0,0,0,0,0,0,0,0,0,0,0,0,0,0,0,0,0,0,0,0,0,0,0,0,0,0,0,0]
["Vote 36","Small Business Development",3,4,0,0,0,0,0,0,0,0,0,0,0,0,0,0,0,0,0,0,0,0,0,0,0,0,0,0,0,0,0,0,0,0,0,0,0,0,0,0,0,0,0,0,0]
["Vote 36","Small Business Development",3,5,0,0,0,0,0,0,0,0,0,0,0,0,0,0,0,0,0,0,0,0,0,0,0,0,0,0,0,0,0,0,0,0,0,0,0,0,0,0,0,0,0,0,0]
["Vote 36","Small Business Development",3,6,0,0,0,0,0,0,0,0,0,0,0,0,0,0,0,0,0,0,0,0,0,0,0,0,0,0,0,0,0,0,0,0,0,0,0,0,0,0,0,0,0,0,0]
["Vote 36","Small Business Development",3,7,0,0,0,0,0,0,0,0,0,0,0,0,0,0,0,0,0,0,0,0,0,0,0,0,0,0,0,0,0,0,0,0,0,0,0,0,0,0,0,0,0,0,0]
["Vote 36","Small Business Development",3,8,0,0,0,0,0,0,0,0,0,0,0,0,0,0,0,0,0,0,0,0,0,0,0,0,0,0,0,0,0,0,0,0,0,0,0,0,0,0,0,0,0,0,0]
["Vote 36","Small Business Development",3,9,0,0,0,0,0,0,0,0,0,0,0,0,0,0,0,0,0,0,0,0,0,0,0,0,0,0,0,0,0,0,0,0,0,0,0,0,0,0,0,0,0,0,0]
["Vote 36","Small Business Development",3,10,0,0,0,0,0,0,0,0,0,0,0,0,0,0,0,0,0,0,0,0,0,0,0,0,0,0,0,0,0,0,0,0,0,0,0,0,0,0,0,0,0,0,0]
["Vote 36","Small Business Development",3,11,0,0,0,0,0,0,0,0,0,0,0,0,0,0,0,0,0,0,0,0,0,0,0,0,0,0,0,0,0,0,0,0,0,0,0,0,0,0,0,0,0,0,0]
["Vote 36","Small Business Development",3,12,0,0,0,0,0,0,0,0,0,0,0,0,0,0,0,0,0,0,0,0,0,0,0,0,0,0,0,0,0,0,0,0,0,0,0,0,0,0,0,0,0,0,0]
["Vote 36","Small Business Development",3,13,0,0,0,0,0,0,0,0,0,0,0,0,0,0,0,0,0,0,0,0,0,0,0,0,0,0,0,0,0,0,0,0,0,0,0,0,0,0,0,0,0,0,0]
["Vote 36","Small Business Development",3,14,0,0,0,0,0,0,0,0,0,0,0,0,0,0,0,0,0,0,0,0,0,0,0,0,0,0,0,0,0,0,0,0,0,0,0,0,0,0,0,0,0,0,0]
["Vote 36","Small Business Development",3,15,0,0,0,0,0,0,0,0,0,0,0,0,0,0,0,0,0,0,0,0,0,0,0,0,0,0,0,0,0,0,0,0,0,0,0,0,0,0,0,0,0,0,0]
["Vote 36","Small Business Development",3,16,0,0,0,0,0,0,0,0,0,0,0,0,0,0,0,0,0,0,0,0,0,0,0,0,0,0,0,0,0,0,0,0,0,0,0,0,0,0,0,0,0,0,0]
["Vote 36","Small Business Development",3,"Deputy Minister",0,0,0,0,0,0,0,0,0,0,0,0,0,0,0,0,0,0,0,0,0,0,0,0,0,0,0,0,0,0,0,0,0,0,0,0,0,0,0,0,0,0,0]
["Vote 36","Small Business Development",3,"Minister",0,0,0,0,0,0,0,0,0,0,0,0,0,0,0,0,0,0,0,0,0,0,0,0,0,0,0,0,0,0,0,0,0,0,0,0,0,0,0,0,0,0,0]
["Vote 36","Small Business Development",3,"Intern",0,0,0,0,0,0,0,0,0,0,0,0,0,0,0,0,0,0,0,0,0,0,0,0,0,0,0,0,0,0,0,0,0,0,0,0,0,0,0,0,0,0,0]
["Vote 36","Small Business Development",3,"Other",0,0,0,0,0,0,0,0,0,0,0,0,0,0,0,0,0,0,0,0,0,0,0,0,0,0,0,0,0,0,0,0,0,0,0,0,0,0,0,0,0,0,0]
["Vote 36","Small Business Development",4,1,0,0,0,0,0,0,0,0,0,0,0,0,0,0,0,0,0,0,0,0,0,0,0,0,0,0,0,0,0,0,0,0,0,0,0,0,0,0,0,0,0,0,0]
["Vote 36","Small Business Development",4,2,0,0,0,0,0,0,0,0,0,0,0,0,0,0,0,0,0,0,0,0,0,0,0,0,0,0,0,0,0,0,0,0,0,0,0,0,0,0,0,0,0,0,0]
["Vote 36","Small Business Development",4,3,0,0,0,0,0,0,0,0,0,0,0,0,0,0,0,0,0,0,0,0,0,0,0,0,0,0,0,0,0,0,0,0,0,0,0,0,0,0,0,0,0,0,0]
["Vote 36","Small Business Development",4,4,0,0,0,0,0,0,0,0,0,0,0,0,0,0,0,0,0,0,0,0,0,0,0,0,0,0,0,0,0,0,0,0,0,0,0,0,0,0,0,0,0,0,0]
["Vote 36","Small Business Development",4,5,0,0,0,0,0,0,0,0,0,0,0,0,0,0,0,0,0,0,0,0,0,0,0,0,0,0,0,0,0,0,0,0,0,0,0,0,0,0,0,0,0,0,0]
["Vote 36","Small Business Development",4,6,0,0,0,0,0,0,0,0,0,0,0,0,0,0,0,0,0,0,0,0,0,0,0,0,0,0,0,0,0,0,0,0,0,0,0,0,0,0,0,0,0,0,0]
["Vote 36","Small Business Development",4,7,0,0,0,0,0,0,0,0,0,0,0,0,0,0,0,0,0,0,0,0,0,0,0,0,0,0,0,0,0,0,0,0,0,0,0,0,0,0,0,0,0,0,0]
["Vote 36","Small Business Development",4,8,0,0,0,0,0,0,0,0,0,0,0,0,0,0,0,0,0,0,0,0,0,0,0,0,0,0,0,0,0,0,0,0,0,0,0,0,0,0,0,0,0,0,0]
["Vote 36","Small Business Development",4,9,0,0,0,0,0,0,0,0,0,0,0,0,0,0,0,0,0,0,0,0,0,0,0,0,0,0,0,0,0,0,0,0,0,0,0,0,0,0,0,0,0,0,0]
["Vote 36","Small Business Development",4,10,0,0,0,0,0,0,0,0,0,0,0,0,0,0,0,0,0,0,0,0,0,0,0,0,0,0,0,0,0,0,0,0,0,0,0,0,0,0,0,0,0,0,0]
["Vote 36","Small Business Development",4,11,0,0,0,0,0,0,0,0,0,0,0,0,0,0,0,0,0,0,0,0,0,0,0,0,0,0,0,0,0,0,0,0,0,0,0,0,0,0,0,0,0,0,0]
["Vote 36","Small Business Development",4,12,0,0,0,0,0,0,0,0,0,0,0,0,0,0,0,0,0,0,0,0,0,0,0,0,0,0,0,0,0,0,0,0,0,0,0,0,0,0,0,0,0,0,0]
["Vote 36","Small Business Development",4,13,0,0,0,0,0,0,0,0,0,0,0,0,0,0,0,0,0,0,0,0,0,0,0,0,0,0,0,0,0,0,0,0,0,0,0,0,0,0,0,0,0,0,0]
["Vote 36","Small Business Development",4,14,0,0,0,0,0,0,0,0,0,0,0,0,0,0,0,0,0,0,0,0,0,0,0,0,0,0,0,0,0,0,0,0,0,0,0,0,0,0,0,0,0,0,0]
["Vote 36","Small Business Development",4,15,0,0,0,0,0,0,0,0,0,0,0,0,0,0,0,0,0,0,0,0,0,0,0,0,0,0,0,0,0,0,0,0,0,0,0,0,0,0,0,0,0,0,0]
["Vote 36","Small Business Development",4,16,0,0,0,0,0,0,0,0,0,0,0,0,0,0,0,0,0,0,0,0,0,0,0,0,0,0,0,0,0,0,0,0,0,0,0,0,0,0,0,0,0,0,0]
["Vote 36","Small Business Development",4,"Deputy Minister",0,0,0,0,0,0,0,0,0,0,0,0,0,0,0,0,0,0,0,0,0,0,0,0,0,0,0,0,0,0,0,0,0,0,0,0,0,0,0,0,0,0,0]
["Vote 36","Small Business Development",4,"Minister",0,0,0,0,0,0,0,0,0,0,0,0,0,0,0,0,0,0,0,0,0,0,0,0,0,0,0,0,0,0,0,0,0,0,0,0,0,0,0,0,0,0,0]
["Vote 36","Small Business Development",4,"Intern",0,0,0,0,0,0,0,0,0,0,0,0,0,0,0,0,0,0,0,0,0,0,0,0,0,0,0,0,0,0,0,0,0,0,0,0,0,0,0,0,0,0,0]
["Vote 36","Small Business Development",4,"Other",0,0,0,0,0,0,0,0,0,0,0,0,0,0,0,0,0,0,0,0,0,0,0,0,0,0,0,0,0,0,0,0,0,0,0,0,0,0,0,0,0,0,0]
["Vote 36","Small Business Development",5,1,0,0,0,0,0,0,0,0,0,0,0,0,0,0,0,0,0,0,0,0,0,0,0,0,0,0,0,0,0,0,0,0,0,0,0,0,0,0,0,0,0,0,0]
["Vote 36","Small Business Development",5,2,0,0,0,0,0,0,0,0,0,0,0,0,0,0,0,0,0,0,0,0,0,0,0,0,0,0,0,0,0,0,0,0,0,0,0,0,0,0,0,0,0,0,0]
["Vote 36","Small Business Development",5,3,0,0,0,0,0,0,0,0,0,0,0,0,0,0,0,0,0,0,0,0,0,0,0,0,0,0,0,0,0,0,0,0,0,0,0,0,0,0,0,0,0,0,0]
["Vote 36","Small Business Development",5,4,0,0,0,0,0,0,0,0,0,0,0,0,0,0,0,0,0,0,0,0,0,0,0,0,0,0,0,0,0,0,0,0,0,0,0,0,0,0,0,0,0,0,0]
["Vote 36","Small Business Development",5,5,0,0,0,0,0,0,0,0,0,0,0,0,0,0,0,0,0,0,0,0,0,0,0,0,0,0,0,0,0,0,0,0,0,0,0,0,0,0,0,0,0,0,0]
["Vote 36","Small Business Development",5,6,0,0,0,0,0,0,0,0,0,0,0,0,0,0,0,0,0,0,0,0,0,0,0,0,0,0,0,0,0,0,0,0,0,0,0,0,0,0,0,0,0,0,0]
["Vote 36","Small Business Development",5,7,0,0,0,0,0,0,0,0,0,0,0,0,0,0,0,0,0,0,0,0,0,0,0,0,0,0,0,0,0,0,0,0,0,0,0,0,0,0,0,0,0,0,0]
["Vote 36","Small Business Development",5,8,0,0,0,0,0,0,0,0,0,0,0,0,0,0,0,0,0,0,0,0,0,0,0,0,0,0,0,0,0,0,0,0,0,0,0,0,0,0,0,0,0,0,0]
["Vote 36","Small Business Development",5,9,0,0,0,0,0,0,0,0,0,0,0,0,0,0,0,0,0,0,0,0,0,0,0,0,0,0,0,0,0,0,0,0,0,0,0,0,0,0,0,0,0,0,0]
["Vote 36","Small Business Development",5,10,0,0,0,0,0,0,0,0,0,0,0,0,0,0,0,0,0,0,0,0,0,0,0,0,0,0,0,0,0,0,0,0,0,0,0,0,0,0,0,0,0,0,0]
["Vote 36","Small Business Development",5,11,0,0,0,0,0,0,0,0,0,0,0,0,0,0,0,0,0,0,0,0,0,0,0,0,0,0,0,0,0,0,0,0,0,0,0,0,0,0,0,0,0,0,0]
["Vote 36","Small Business Development",5,12,0,0,0,0,0,0,0,0,0,0,0,0,0,0,0,0,0,0,0,0,0,0,0,0,0,0,0,0,0,0,0,0,0,0,0,0,0,0,0,0,0,0,0]
["Vote 36","Small Business Development",5,13,0,0,0,0,0,0,0,0,0,0,0,0,0,0,0,0,0,0,0,0,0,0,0,0,0,0,0,0,0,0,0,0,0,0,0,0,0,0,0,0,0,0,0]
["Vote 36","Small Business Development",5,14,0,0,0,0,0,0,0,0,0,0,0,0,0,0,0,0,0,0,0,0,0,0,0,0,0,0,0,0,0,0,0,0,0,0,0,0,0,0,0,0,0,0,0]
["Vote 36","Small Business Development",5,15,0,0,0,0,0,0,0,0,0,0,0,0,0,0,0,0,0,0,0,0,0,0,0,0,0,0,0,0,0,0,0,0,0,0,0,0,0,0,0,0,0,0,0]
["Vote 36","Small Business Development",5,16,0,0,0,0,0,0,0,0,0,0,0,0,0,0,0,0,0,0,0,0,0,0,0,0,0,0,0,0,0,0,0,0,0,0,0,0,0,0,0,0,0,0,0]
["Vote 36","Small Business Development",5,"Deputy Minister",0,0,0,0,0,0,0,0,0,0,0,0,0,0,0,0,0,0,0,0,0,0,0,0,0,0,0,0,0,0,0,0,0,0,0,0,0,0,0,0,0,0,0]
["Vote 36","Small Business Development",5,"Minister",0,0,0,0,0,0,0,0,0,0,0,0,0,0,0,0,0,0,0,0,0,0,0,0,0,0,0,0,0,0,0,0,0,0,0,0,0,0,0,0,0,0,0]
["Vote 36","Small Business Development",5,"Intern",0,0,0,0,0,0,0,0,0,0,0,0,0,0,0,0,0,0,0,0,0,0,0,0,0,0,0,0,0,0,0,0,0,0,0,0,0,0,0,0,0,0,0]
["Vote 36","Small Business Development",5,"Other",0,0,0,0,0,0,0,0,0,0,0,0,0,0,0,0,0,0,0,0,0,0,0,0,0,0,0,0,0,0,0,0,0,0,0,0,0,0,0,0,0,0,0]
["Vote 36","Small Business Development",6,1,0,0,0,0,0,0,0,0,0,0,0,0,0,0,0,0,0,0,0,0,0,0,0,0,0,0,0,0,0,0,0,0,0,0,0,0,0,0,0,0,0,0,0]
["Vote 36","Small Business Development",6,2,0,0,0,0,0,0,0,0,0,0,0,0,0,0,0,0,0,0,0,0,0,0,0,0,0,0,0,0,0,0,0,0,0,0,0,0,0,0,0,0,0,0,0]
["Vote 36","Small Business Development",6,3,0,0,0,0,0,0,0,0,0,0,0,0,0,0,0,0,0,0,0,0,0,0,0,0,0,0,0,0,0,0,0,0,0,0,0,0,0,0,0,0,0,0,0]
["Vote 36","Small Business Development",6,4,0,0,0,0,0,0,0,0,0,0,0,0,0,0,0,0,0,0,0,0,0,0,0,0,0,0,0,0,0,0,0,0,0,0,0,0,0,0,0,0,0,0,0]
["Vote 36","Small Business Development",6,5,0,0,0,0,0,0,0,0,0,0,0,0,0,0,0,0,0,0,0,0,0,0,0,0,0,0,0,0,0,0,0,0,0,0,0,0,0,0,0,0,0,0,0]
["Vote 36","Small Business Development",6,6,0,0,0,0,0,0,0,0,0,0,0,0,0,0,0,0,0,0,0,0,0,0,0,0,0,0,0,0,0,0,0,0,0,0,0,0,0,0,0,0,0,0,0]
["Vote 36","Small Business Development",6,7,0,0,0,0,0,0,0,0,0,0,0,0,0,0,0,0,0,0,0,0,0,0,0,0,0,0,0,0,0,0,0,0,0,0,0,0,0,0,0,0,0,0,0]
["Vote 36","Small Business Development",6,8,0,0,0,0,0,0,0,0,0,0,0,0,0,0,0,0,0,0,0,0,0,0,0,0,0,0,0,0,0,0,0,0,0,0,0,0,0,0,0,0,0,0,0]
["Vote 36","Small Business Development",6,9,0,0,0,0,0,0,0,0,0,0,0,0,0,0,0,0,0,0,0,0,0,0,0,0,0,0,0,0,0,0,0,0,0,0,0,0,0,0,0,0,0,0,0]
["Vote 36","Small Business Development",6,10,0,0,0,0,0,0,0,0,0,0,0,0,0,0,0,0,0,0,0,0,0,0,0,0,0,0,0,0,0,0,0,0,0,0,0,0,0,0,0,0,0,0,0]
["Vote 36","Small Business Development",6,11,0,0,0,0,0,0,0,0,0,0,0,0,0,0,0,0,0,0,0,0,0,0,0,0,0,0,0,0,0,0,0,0,0,0,0,0,0,0,0,0,0,0,0]
["Vote 36","Small Business Development",6,12,0,0,0,0,0,0,0,0,0,0,0,0,0,0,0,0,0,0,0,0,0,0,0,0,0,0,0,0,0,0,0,0,0,0,0,0,0,0,0,0,0,0,0]
["Vote 36","Small Business Development",6,13,0,0,0,0,0,0,0,0,0,0,0,0,0,0,0,0,0,0,0,0,0,0,0,0,0,0,0,0,0,0,0,0,0,0,0,0,0,0,0,0,0,0,0]
["Vote 36","Small Business Development",6,14,0,0,0,0,0,0,0,0,0,0,0,0,0,0,0,0,0,0,0,0,0,0,0,0,0,0,0,0,0,0,0,0,0,0,0,0,0,0,0,0,0,0,0]
["Vote 36","Small Business Development",6,15,0,0,0,0,0,0,0,0,0,0,0,0,0,0,0,0,0,0,0,0,0,0,0,0,0,0,0,0,0,0,0,0,0,0,0,0,0,0,0,0,0,0,0]
["Vote 36","Small Business Development",6,16,0,0,0,0,0,0,0,0,0,0,0,0,0,0,0,0,0,0,0,0,0,0,0,0,0,0,0,0,0,0,0,0,0,0,0,0,0,0,0,0,0,0,0]
["Vote 36","Small Business Development",6,"Deputy Minister",0,0,0,0,0,0,0,0,0,0,0,0,0,0,0,0,0,0,0,0,0,0,0,0,0,0,0,0,0,0,0,0,0,0,0,0,0,0,0,0,0,0,0]
["Vote 36","Small Business Development",6,"Minister",0,0,0,0,0,0,0,0,0,0,0,0,0,0,0,0,0,0,0,0,0,0,0,0,0,0,0,0,0,0,0,0,0,0,0,0,0,0,0,0,0,0,0]
["Vote 36","Small Business Development",6,"Intern",0,0,0,0,0,0,0,0,0,0,0,0,0,0,0,0,0,0,0,0,0,0,0,0,0,0,0,0,0,0,0,0,0,0,0,0,0,0,0,0,0,0,0]
["Vote 36","Small Business Development",6,"Other",0,0,0,0,0,0,0,0,0,0,0,0,0,0,0,0,0,0,0,0,0,0,0,0,0,0,0,0,0,0,0,0,0,0,0,0,0,0,0,0,0,0,0]
["Vote 36","Small Business Development",7,1,0,0,0,0,0,0,0,0,0,0,0,0,0,0,0,0,0,0,0,0,0,0,0,0,0,0,0,0,0,0,0,0,0,0,0,0,0,0,0,0,0,0,0]
["Vote 36","Small Business Development",7,2,0,0,0,0,0,0,0,0,0,0,0,0,0,0,0,0,0,0,0,0,0,0,0,0,0,0,0,0,0,0,0,0,0,0,0,0,0,0,0,0,0,0,0]
["Vote 36","Small Business Development",7,3,0,0,0,0,0,0,0,0,0,0,0,0,0,0,0,0,0,0,0,0,0,0,0,0,0,0,0,0,0,0,0,0,0,0,0,0,0,0,0,0,0,0,0]
["Vote 36","Small Business Development",7,4,0,0,0,0,0,0,0,0,0,0,0,0,0,0,0,0,0,0,0,0,0,0,0,0,0,0,0,0,0,0,0,0,0,0,0,0,0,0,0,0,0,0,0]
["Vote 36","Small Business Development",7,5,0,0,0,0,0,0,0,0,0,0,0,0,0,0,0,0,0,0,0,0,0,0,0,0,0,0,0,0,0,0,0,0,0,0,0,0,0,0,0,0,0,0,0]
["Vote 36","Small Business Development",7,6,0,0,0,0,0,0,0,0,0,0,0,0,0,0,0,0,0,0,0,0,0,0,0,0,0,0,0,0,0,0,0,0,0,0,0,0,0,0,0,0,0,0,0]
["Vote 36","Small Business Development",7,7,0,0,0,0,0,0,0,0,0,0,0,0,0,0,0,0,0,0,0,0,0,0,0,0,0,0,0,0,0,0,0,0,0,0,0,0,0,0,0,0,0,0,0]
["Vote 36","Small Business Development",7,8,0,0,0,0,0,0,0,0,0,0,0,0,0,0,0,0,0,0,0,0,0,0,0,0,0,0,0,0,0,0,0,0,0,0,0,0,0,0,0,0,0,0,0]
["Vote 36","Small Business Development",7,9,0,0,0,0,0,0,0,0,0,0,0,0,0,0,0,0,0,0,0,0,0,0,0,0,0,0,0,0,0,0,0,0,0,0,0,0,0,0,0,0,0,0,0]
["Vote 36","Small Business Development",7,10,0,0,0,0,0,0,0,0,0,0,0,0,0,0,0,0,0,0,0,0,0,0,0,0,0,0,0,0,0,0,0,0,0,0,0,0,0,0,0,0,0,0,0]
["Vote 36","Small Business Development",7,11,0,0,0,0,0,0,0,0,0,0,0,0,0,0,0,0,0,0,0,0,0,0,0,0,0,0,0,0,0,0,0,0,0,0,0,0,0,0,0,0,0,0,0]
["Vote 36","Small Business Development",7,12,0,0,0,0,0,0,0,0,0,0,0,0,0,0,0,0,0,0,0,0,0,0,0,0,0,0,0,0,0,0,0,0,0,0,0,0,0,0,0,0,0,0,0]
["Vote 36","Small Business Development",7,13,0,0,0,0,0,0,0,0,0,0,0,0,0,0,0,0,0,0,0,0,0,0,0,0,0,0,0,0,0,0,0,0,0,0,0,0,0,0,0,0,0,0,0]
["Vote 36","Small Business Development",7,14,0,0,0,0,0,0,0,0,0,0,0,0,0,0,0,0,0,0,0,0,0,0,0,0,0,0,0,0,0,0,0,0,0,0,0,0,0,0,0,0,0,0,0]
["Vote 36","Small Business Development",7,15,0,0,0,0,0,0,0,0,0,0,0,0,0,0,0,0,0,0,0,0,0,0,0,0,0,0,0,0,0,0,0,0,0,0,0,0,0,0,0,0,0,0,0]
["Vote 36","Small Business Development",7,16,0,0,0,0,0,0,0,0,0,0,0,0,0,0,0,0,0,0,0,0,0,0,0,0,0,0,0,0,0,0,0,0,0,0,0,0,0,0,0,0,0,0,0]
["Vote 36","Small Business Development",7,"Deputy Minister",0,0,0,0,0,0,0,0,0,0,0,0,0,0,0,0,0,0,0,0,0,0,0,0,0,0,0,0,0,0,0,0,0,0,0,0,0,0,0,0,0,0,0]
["Vote 36","Small Business Development",7,"Minister",0,0,0,0,0,0,0,0,0,0,0,0,0,0,0,0,0,0,0,0,0,0,0,0,0,0,0,0,0,0,0,0,0,0,0,0,0,0,0,0,0,0,0]
["Vote 36","Small Business Development",7,"Intern",0,0,0,0,0,0,0,0,0,0,0,0,0,0,0,0,0,0,0,0,0,0,0,0,0,0,0,0,0,0,0,0,0,0,0,0,0,0,0,0,0,0,0]
["Vote 36","Small Business Development",7,"Other",0,0,0,0,0,0,0,0,0,0,0,0,0,0,0,0,0,0,0,0,0,0,0,0,0,0,0,0,0,0,0,0,0,0,0,0,0,0,0,0,0,0,0]
["Vote 36","Small Business Development",8,1,0,0,0,0,0,0,0,0,0,0,0,0,0,0,0,0,0,0,0,0,0,0,0,0,0,0,0,0,0,0,0,0,0,0,0,0,0,0,0,0,0,0,0]
["Vote 36","Small Business Development",8,2,0,0,0,0,0,0,0,0,0,0,0,0,0,0,0,0,0,0,0,0,0,0,0,0,0,0,0,0,0,0,0,0,0,0,0,0,0,0,0,0,0,0,0]
["Vote 36","Small Business Development",8,3,0,0,0,0,0,0,0,0,0,0,0,0,0,0,0,0,0,0,0,0,0,0,0,0,0,0,0,0,0,0,0,0,0,0,0,0,0,0,0,0,0,0,0]
["Vote 36","Small Business Development",8,4,0,0,0,0,0,0,0,0,0,0,0,0,0,0,0,0,0,0,0,0,0,0,0,0,0,0,0,0,0,0,0,0,0,0,0,0,0,0,0,0,0,0,0]
["Vote 36","Small Business Development",8,5,0,0,0,0,0,0,0,0,0,0,0,0,0,0,0,0,0,0,0,0,0,0,0,0,0,0,0,0,0,0,0,0,0,0,0,0,0,0,0,0,0,0,0]
["Vote 36","Small Business Development",8,6,0,0,0,0,0,0,0,0,0,0,0,0,0,0,0,0,0,0,0,0,0,0,0,0,0,0,0,0,0,0,0,0,0,0,0,0,0,0,0,0,0,0,0]
["Vote 36","Small Business Development",8,7,0,0,0,0,0,0,0,0,0,0,0,0,0,0,0,0,0,0,0,0,0,0,0,0,0,0,0,0,0,0,0,0,0,0,0,0,0,0,0,0,0,0,0]
["Vote 36","Small Business Development",8,8,0,0,0,0,0,0,0,0,0,0,0,0,0,0,0,0,0,0,0,0,0,0,0,0,0,0,0,0,0,0,0,0,0,0,0,0,0,0,0,0,0,0,0]
["Vote 36","Small Business Development",8,9,0,0,0,0,0,0,0,0,0,0,0,0,0,0,0,0,0,0,0,0,0,0,0,0,0,0,0,0,0,0,0,0,0,0,0,0,0,0,0,0,0,0,0]
["Vote 36","Small Business Development",8,10,0,0,0,0,0,0,0,0,0,0,0,0,0,0,0,0,0,0,0,0,0,0,0,0,0,0,0,0,0,0,0,0,0,0,0,0,0,0,0,0,0,0,0]
["Vote 36","Small Business Development",8,11,0,0,0,0,0,0,0,0,0,0,0,0,0,0,0,0,0,0,0,0,0,0,0,0,0,0,0,0,0,0,0,0,0,0,0,0,0,0,0,0,0,0,0]
["Vote 36","Small Business Development",8,12,0,0,0,0,0,0,0,0,0,0,0,0,0,0,0,0,0,0,0,0,0,0,0,0,0,0,0,0,0,0,0,0,0,0,0,0,0,0,0,0,0,0,0]
["Vote 36","Small Business Development",8,13,0,0,0,0,0,0,0,0,0,0,0,0,0,0,0,0,0,0,0,0,0,0,0,0,0,0,0,0,0,0,0,0,0,0,0,0,0,0,0,0,0,0,0]
["Vote 36","Small Business Development",8,14,0,0,0,0,0,0,0,0,0,0,0,0,0,0,0,0,0,0,0,0,0,0,0,0,0,0,0,0,0,0,0,0,0,0,0,0,0,0,0,0,0,0,0]
["Vote 36","Small Business Development",8,15,0,0,0,0,0,0,0,0,0,0,0,0,0,0,0,0,0,0,0,0,0,0,0,0,0,0,0,0,0,0,0,0,0,0,0,0,0,0,0,0,0,0,0]
["Vote 36","Small Business Development",8,16,0,0,0,0,0,0,0,0,0,0,0,0,0,0,0,0,0,0,0,0,0,0,0,0,0,0,0,0,0,0,0,0,0,0,0,0,0,0,0,0,0,0,0]
["Vote 36","Small Business Development",8,"Deputy Minister",0,0,0,0,0,0,0,0,0,0,0,0,0,0,0,0,0,0,0,0,0,0,0,0,0,0,0,0,0,0,0,0,0,0,0,0,0,0,0,0,0,0,0]
["Vote 36","Small Business Development",8,"Minister",0,0,0,0,0,0,0,0,0,0,0,0,0,0,0,0,0,0,0,0,0,0,0,0,0,0,0,0,0,0,0,0,0,0,0,0,0,0,0,0,0,0,0]
["Vote 36","Small Business Development",8,"Intern",0,0,0,0,0,0,0,0,0,0,0,0,0,0,0,0,0,0,0,0,0,0,0,0,0,0,0,0,0,0,0,0,0,0,0,0,0,0,0,0,0,0,0]
["Vote 36","Small Business Development",8,"Other",0,0,0,0,0,0,0,0,0,0,0,0,0,0,0,0,0,0,0,0,0,0,0,0,0,0,0,0,0,0,0,0,0,0,0,0,0,0,0,0,0,0,0]
["Vote 36","Small Business Development",9,1,0,0,0,0,0,0,0,0,0,0,0,0,0,0,0,0,0,0,0,0,0,0,0,0,0,0,0,0,0,0,0,0,0,0,0,0,0,0,0,0,0,0,0]
["Vote 36","Small Business Development",9,2,0,0,0,0,0,0,0,0,0,0,0,0,0,0,0,0,0,0,0,0,0,0,0,0,0,0,0,0,0,0,0,0,0,0,0,0,0,0,0,0,0,0,0]
["Vote 36","Small Business Development",9,3,0,0,0,0,0,0,0,0,0,0,0,0,0,0,0,0,0,0,0,0,0,0,0,0,0,0,0,0,0,0,0,0,0,0,0,0,0,0,0,0,0,0,0]
["Vote 36","Small Business Development",9,4,0,0,0,0,0,0,0,0,0,0,0,0,0,0,0,0,0,0,0,0,0,0,0,0,0,0,0,0,0,0,0,0,0,0,0,0,0,0,0,0,0,0,0]
["Vote 36","Small Business Development",9,5,0,0,0,0,0,0,0,0,0,0,0,0,0,0,0,0,0,0,0,0,0,0,0,0,0,0,0,0,0,0,0,0,0,0,0,0,0,0,0,0,0,0,0]
["Vote 36","Small Business Development",9,6,0,0,0,0,0,0,0,0,0,0,0,0,0,0,0,0,0,0,0,0,0,0,0,0,0,0,0,0,0,0,0,0,0,0,0,0,0,0,0,0,0,0,0]
["Vote 36","Small Business Development",9,7,0,0,0,0,0,0,0,0,0,0,0,0,0,0,0,0,0,0,0,0,0,0,0,0,0,0,0,0,0,0,0,0,0,0,0,0,0,0,0,0,0,0,0]
["Vote 36","Small Business Development",9,8,0,0,0,0,0,0,0,0,0,0,0,0,0,0,0,0,0,0,0,0,0,0,0,0,0,0,0,0,0,0,0,0,0,0,0,0,0,0,0,0,0,0,0]
["Vote 36","Small Business Development",9,9,0,0,0,0,0,0,0,0,0,0,0,0,0,0,0,0,0,0,0,0,0,0,0,0,0,0,0,0,0,0,0,0,0,0,0,0,0,0,0,0,0,0,0]
["Vote 36","Small Business Development",9,10,0,0,0,0,0,0,0,0,0,0,0,0,0,0,0,0,0,0,0,0,0,0,0,0,0,0,0,0,0,0,0,0,0,0,0,0,0,0,0,0,0,0,0]
["Vote 36","Small Business Development",9,11,0,0,0,0,0,0,0,0,0,0,0,0,0,0,0,0,0,0,0,0,0,0,0,0,0,0,0,0,0,0,0,0,0,0,0,0,0,0,0,0,0,0,0]
["Vote 36","Small Business Development",9,12,0,0,0,0,0,0,0,0,0,0,0,0,0,0,0,0,0,0,0,0,0,0,0,0,0,0,0,0,0,0,0,0,0,0,0,0,0,0,0,0,0,0,0]
["Vote 36","Small Business Development",9,13,0,0,0,0,0,0,0,0,0,0,0,0,0,0,0,0,0,0,0,0,0,0,0,0,0,0,0,0,0,0,0,0,0,0,0,0,0,0,0,0,0,0,0]
["Vote 36","Small Business Development",9,14,0,0,0,0,0,0,0,0,0,0,0,0,0,0,0,0,0,0,0,0,0,0,0,0,0,0,0,0,0,0,0,0,0,0,0,0,0,0,0,0,0,0,0]
["Vote 36","Small Business Development",9,15,0,0,0,0,0,0,0,0,0,0,0,0,0,0,0,0,0,0,0,0,0,0,0,0,0,0,0,0,0,0,0,0,0,0,0,0,0,0,0,0,0,0,0]
["Vote 36","Small Business Development",9,16,0,0,0,0,0,0,0,0,0,0,0,0,0,0,0,0,0,0,0,0,0,0,0,0,0,0,0,0,0,0,0,0,0,0,0,0,0,0,0,0,0,0,0]
["Vote 36","Small Business Development",9,"Deputy Minister",0,0,0,0,0,0,0,0,0,0,0,0,0,0,0,0,0,0,0,0,0,0,0,0,0,0,0,0,0,0,0,0,0,0,0,0,0,0,0,0,0,0,0]
["Vote 36","Small Business Development",9,"Minister",0,0,0,0,0,0,0,0,0,0,0,0,0,0,0,0,0,0,0,0,0,0,0,0,0,0,0,0,0,0,0,0,0,0,0,0,0,0,0,0,0,0,0]
["Vote 36","Small Business Development",9,"Intern",0,0,0,0,0,0,0,0,0,0,0,0,0,0,0,0,0,0,0,0,0,0,0,0,0,0,0,0,0,0,0,0,0,0,0,0,0,0,0,0,0,0,0]
["Vote 36","Small Business Development",9,"Other",0,0,0,0,0,0,0,0,0,0,0,0,0,0,0,0,0,0,0,0,0,0,0,0,0,0,0,0,0,0,0,0,0,0,0,0,0,0,0,0,0,0,0]
["Vote 36","Small Business Development",10,1,0,0,0,0,0,0,0,0,0,0,0,0,0,0,0,0,0,0,0,0,0,0,0,0,0,0,0,0,0,0,0,0,0,0,0,0,0,0,0,0,0,0,0]
["Vote 36","Small Business Development",10,2,0,0,0,0,0,0,0,0,0,0,0,0,0,0,0,0,0,0,0,0,0,0,0,0,0,0,0,0,0,0,0,0,0,0,0,0,0,0,0,0,0,0,0]
["Vote 36","Small Business Development",10,3,0,0,0,0,0,0,0,0,0,0,0,0,0,0,0,0,0,0,0,0,0,0,0,0,0,0,0,0,0,0,0,0,0,0,0,0,0,0,0,0,0,0,0]
["Vote 36","Small Business Development",10,4,0,0,0,0,0,0,0,0,0,0,0,0,0,0,0,0,0,0,0,0,0,0,0,0,0,0,0,0,0,0,0,0,0,0,0,0,0,0,0,0,0,0,0]
["Vote 36","Small Business Development",10,5,0,0,0,0,0,0,0,0,0,0,0,0,0,0,0,0,0,0,0,0,0,0,0,0,0,0,0,0,0,0,0,0,0,0,0,0,0,0,0,0,0,0,0]
["Vote 36","Small Business Development",10,6,0,0,0,0,0,0,0,0,0,0,0,0,0,0,0,0,0,0,0,0,0,0,0,0,0,0,0,0,0,0,0,0,0,0,0,0,0,0,0,0,0,0,0]
["Vote 36","Small Business Development",10,7,0,0,0,0,0,0,0,0,0,0,0,0,0,0,0,0,0,0,0,0,0,0,0,0,0,0,0,0,0,0,0,0,0,0,0,0,0,0,0,0,0,0,0]
["Vote 36","Small Business Development",10,8,0,0,0,0,0,0,0,0,0,0,0,0,0,0,0,0,0,0,0,0,0,0,0,0,0,0,0,0,0,0,0,0,0,0,0,0,0,0,0,0,0,0,0]
["Vote 36","Small Business Development",10,9,0,0,0,0,0,0,0,0,0,0,0,0,0,0,0,0,0,0,0,0,0,0,0,0,0,0,0,0,0,0,0,0,0,0,0,0,0,0,0,0,0,0,0]
["Vote 36","Small Business Development",10,10,0,0,0,0,0,0,0,0,0,0,0,0,0,0,0,0,0,0,0,0,0,0,0,0,0,0,0,0,0,0,0,0,0,0,0,0,0,0,0,0,0,0,0]
["Vote 36","Small Business Development",10,11,0,0,0,0,0,0,0,0,0,0,0,0,0,0,0,0,0,0,0,0,0,0,0,0,0,0,0,0,0,0,0,0,0,0,0,0,0,0,0,0,0,0,0]
["Vote 36","Small Business Development",10,12,0,0,0,0,0,0,0,0,0,0,0,0,0,0,0,0,0,0,0,0,0,0,0,0,0,0,0,0,0,0,0,0,0,0,0,0,0,0,0,0,0,0,0]
["Vote 36","Small Business Development",10,13,0,0,0,0,0,0,0,0,0,0,0,0,0,0,0,0,0,0,0,0,0,0,0,0,0,0,0,0,0,0,0,0,0,0,0,0,0,0,0,0,0,0,0]
["Vote 36","Small Business Development",10,14,0,0,0,0,0,0,0,0,0,0,0,0,0,0,0,0,0,0,0,0,0,0,0,0,0,0,0,0,0,0,0,0,0,0,0,0,0,0,0,0,0,0,0]
["Vote 36","Small Business Development",10,15,0,0,0,0,0,0,0,0,0,0,0,0,0,0,0,0,0,0,0,0,0,0,0,0,0,0,0,0,0,0,0,0,0,0,0,0,0,0,0,0,0,0,0]
["Vote 36","Small Business Development",10,16,0,0,0,0,0,0,0,0,0,0,0,0,0,0,0,0,0,0,0,0,0,0,0,0,0,0,0,0,0,0,0,0,0,0,0,0,0,0,0,0,0,0,0]
["Vote 36","Small Business Development",10,"Deputy Minister",0,0,0,0,0,0,0,0,0,0,0,0,0,0,0,0,0,0,0,0,0,0,0,0,0,0,0,0,0,0,0,0,0,0,0,0,0,0,0,0,0,0,0]
["Vote 36","Small Business Development",10,"Minister",0,0,0,0,0,0,0,0,0,0,0,0,0,0,0,0,0,0,0,0,0,0,0,0,0,0,0,0,0,0,0,0,0,0,0,0,0,0,0,0,0,0,0]
["Vote 36","Small Business Development",10,"Intern",0,0,0,0,0,0,0,0,0,0,0,0,0,0,0,0,0,0,0,0,0,0,0,0,0,0,0,0,0,0,0,0,0,0,0,0,0,0,0,0,0,0,0]
["Vote 36","Small Business Development",10,"Other",0,0,0,0,0,0,0,0,0,0,0,0,0,0,0,0,0,0,0,0,0,0,0,0,0,0,0,0,0,0,0,0,0,0,0,0,0,0,0,0,0,0,0]
["Vote 36","Small Business Development",11,1,0,0,0,0,0,0,0,0,0,0,0,0,0,0,0,0,0,0,0,0,0,0,0,0,0,0,0,0,0,0,0,0,0,0,0,0,0,0,0,0,0,0,0]
["Vote 36","Small Business Development",11,2,0,0,0,0,0,0,0,0,0,0,0,0,0,0,0,0,0,0,0,0,0,0,0,0,0,0,0,0,0,0,0,0,0,0,0,0,0,0,0,0,0,0,0]
["Vote 36","Small Business Development",11,3,0,0,0,0,0,0,0,0,0,0,0,0,0,0,0,0,0,0,0,0,0,0,0,0,0,0,0,0,0,0,0,0,0,0,0,0,0,0,0,0,0,0,0]
["Vote 36","Small Business Development",11,4,0,0,0,0,0,0,0,0,0,0,0,0,0,0,0,0,0,0,0,0,0,0,0,0,0,0,0,0,0,0,0,0,0,0,0,0,0,0,0,0,0,0,0]
["Vote 36","Small Business Development",11,5,0,0,0,0,0,0,0,0,0,0,0,0,0,0,0,0,0,0,0,0,0,0,0,0,0,0,0,0,0,0,0,0,0,0,0,0,0,0,0,0,0,0,0]
["Vote 36","Small Business Development",11,6,0,0,0,0,0,0,0,0,0,0,0,0,0,0,0,0,0,0,0,0,0,0,0,0,0,0,0,0,0,0,0,0,0,0,0,0,0,0,0,0,0,0,0]
["Vote 36","Small Business Development",11,7,0,0,0,0,0,0,0,0,0,0,0,0,0,0,0,0,0,0,0,0,0,0,0,0,0,0,0,0,0,0,0,0,0,0,0,0,0,0,0,0,0,0,0]
["Vote 36","Small Business Development",11,8,0,0,0,0,0,0,0,0,0,0,0,0,0,0,0,0,0,0,0,0,0,0,0,0,0,0,0,0,0,0,0,0,0,0,0,0,0,0,0,0,0,0,0]
["Vote 36","Small Business Development",11,9,0,0,0,0,0,0,0,0,0,0,0,0,0,0,0,0,0,0,0,0,0,0,0,0,0,0,0,0,0,0,0,0,0,0,0,0,0,0,0,0,0,0,0]
["Vote 36","Small Business Development",11,10,0,0,0,0,0,0,0,0,0,0,0,0,0,0,0,0,0,0,0,0,0,0,0,0,0,0,0,0,0,0,0,0,0,0,0,0,0,0,0,0,0,0,0]
["Vote 36","Small Business Development",11,11,0,0,0,0,0,0,0,0,0,0,0,0,0,0,0,0,0,0,0,0,0,0,0,0,0,0,0,0,0,0,0,0,0,0,0,0,0,0,0,0,0,0,0]
["Vote 36","Small Business Development",11,12,0,0,0,0,0,0,0,0,0,0,0,0,0,0,0,0,0,0,0,0,0,0,0,0,0,0,0,0,0,0,0,0,0,0,0,0,0,0,0,0,0,0,0]
["Vote 36","Small Business Development",11,13,0,0,0,0,0,0,0,0,0,0,0,0,0,0,0,0,0,0,0,0,0,0,0,0,0,0,0,0,0,0,0,0,0,0,0,0,0,0,0,0,0,0,0]
["Vote 36","Small Business Development",11,14,0,0,0,0,0,0,0,0,0,0,0,0,0,0,0,0,0,0,0,0,0,0,0,0,0,0,0,0,0,0,0,0,0,0,0,0,0,0,0,0,0,0,0]
["Vote 36","Small Business Development",11,15,0,0,0,0,0,0,0,0,0,0,0,0,0,0,0,0,0,0,0,0,0,0,0,0,0,0,0,0,0,0,0,0,0,0,0,0,0,0,0,0,0,0,0]
["Vote 36","Small Business Development",11,16,0,0,0,0,0,0,0,0,0,0,0,0,0,0,0,0,0,0,0,0,0,0,0,0,0,0,0,0,0,0,0,0,0,0,0,0,0,0,0,0,0,0,0]
["Vote 36","Small Business Development",11,"Deputy Minister",0,0,0,0,0,0,0,0,0,0,0,0,0,0,0,0,0,0,0,0,0,0,0,0,0,0,0,0,0,0,0,0,0,0,0,0,0,0,0,0,0,0,0]
["Vote 36","Small Business Development",11,"Minister",0,0,0,0,0,0,0,0,0,0,0,0,0,0,0,0,0,0,0,0,0,0,0,0,0,0,0,0,0,0,0,0,0,0,0,0,0,0,0,0,0,0,0]
["Vote 36","Small Business Development",11,"Intern",0,0,0,0,0,0,0,0,0,0,0,0,0,0,0,0,0,0,0,0,0,0,0,0,0,0,0,0,0,0,0,0,0,0,0,0,0,0,0,0,0,0,0]
["Vote 36","Small Business Development",11,"Other",0,0,0,0,0,0,0,0,0,0,0,0,0,0,0,0,0,0,0,0,0,0,0,0,0,0,0,0,0,0,0,0,0,0,0,0,0,0,0,0,0,0,0]
["Vote 36","Small Business Development",12,1,0,0,0,0,0,0,0,0,0,0,0,0,0,0,0,0,0,0,0,0,0,0,0,0,0,0,0,0,0,0,0,0,0,0,0,0,0,0,0,0,0,0,0]
["Vote 36","Small Business Development",12,2,0,0,0,0,0,0,0,0,0,0,0,0,0,0,0,0,0,0,0,0,0,0,0,0,0,0,0,0,0,0,0,0,0,0,0,0,0,0,0,0,0,0,0]
["Vote 36","Small Business Development",12,3,0,0,0,0,0,0,0,0,0,0,0,0,0,0,0,0,0,0,0,0,0,0,0,0,0,0,0,0,0,0,0,0,0,0,0,0,0,0,0,0,0,0,0]
["Vote 36","Small Business Development",12,4,0,0,0,0,0,0,0,0,0,0,0,0,0,0,0,0,0,0,0,0,0,0,0,0,0,0,0,0,0,0,0,0,0,0,0,0,0,0,0,0,0,0,0]
["Vote 36","Small Business Development",12,5,0,0,0,0,0,0,0,0,0,0,0,0,0,0,0,0,0,0,0,0,0,0,0,0,0,0,0,0,0,0,0,0,0,0,0,0,0,0,0,0,0,0,0]
["Vote 36","Small Business Development",12,6,0,0,0,0,0,0,0,0,0,0,0,0,0,0,0,0,0,0,0,0,0,0,0,0,0,0,0,0,0,0,0,0,0,0,0,0,0,0,0,0,0,0,0]
["Vote 36","Small Business Development",12,7,0,0,0,0,0,0,0,0,0,0,0,0,0,0,0,0,0,0,0,0,0,0,0,0,0,0,0,0,0,0,0,0,0,0,0,0,0,0,0,0,0,0,0]
["Vote 36","Small Business Development",12,8,0,0,0,0,0,0,0,0,0,0,0,0,0,0,0,0,0,0,0,0,0,0,0,0,0,0,0,0,0,0,0,0,0,0,0,0,0,0,0,0,0,0,0]
["Vote 36","Small Business Development",12,9,0,0,0,0,0,0,0,0,0,0,0,0,0,0,0,0,0,0,0,0,0,0,0,0,0,0,0,0,0,0,0,0,0,0,0,0,0,0,0,0,0,0,0]
["Vote 36","Small Business Development",12,10,0,0,0,0,0,0,0,0,0,0,0,0,0,0,0,0,0,0,0,0,0,0,0,0,0,0,0,0,0,0,0,0,0,0,0,0,0,0,0,0,0,0,0]
["Vote 36","Small Business Development",12,11,0,0,0,0,0,0,0,0,0,0,0,0,0,0,0,0,0,0,0,0,0,0,0,0,0,0,0,0,0,0,0,0,0,0,0,0,0,0,0,0,0,0,0]
["Vote 36","Small Business Development",12,12,0,0,0,0,0,0,0,0,0,0,0,0,0,0,0,0,0,0,0,0,0,0,0,0,0,0,0,0,0,0,0,0,0,0,0,0,0,0,0,0,0,0,0]
["Vote 36","Small Business Development",12,13,0,0,0,0,0,0,0,0,0,0,0,0,0,0,0,0,0,0,0,0,0,0,0,0,0,0,0,0,0,0,0,0,0,0,0,0,0,0,0,0,0,0,0]
["Vote 36","Small Business Development",12,14,0,0,0,0,0,0,0,0,0,0,0,0,0,0,0,0,0,0,0,0,0,0,0,0,0,0,0,0,0,0,0,0,0,0,0,0,0,0,0,0,0,0,0]
["Vote 36","Small Business Development",12,15,0,0,0,0,0,0,0,0,0,0,0,0,0,0,0,0,0,0,0,0,0,0,0,0,0,0,0,0,0,0,0,0,0,0,0,0,0,0,0,0,0,0,0]
["Vote 36","Small Business Development",12,16,0,0,0,0,0,0,0,0,0,0,0,0,0,0,0,0,0,0,0,0,0,0,0,0,0,0,0,0,0,0,0,0,0,0,0,0,0,0,0,0,0,0,0]
["Vote 36","Small Business Development",12,"Deputy Minister",0,0,0,0,0,0,0,0,0,0,0,0,0,0,0,0,0,0,0,0,0,0,0,0,0,0,0,0,0,0,0,0,0,0,0,0,0,0,0,0,0,0,0]
["Vote 36","Small Business Development",12,"Minister",0,0,0,0,0,0,0,0,0,0,0,0,0,0,0,0,0,0,0,0,0,0,0,0,0,0,0,0,0,0,0,0,0,0,0,0,0,0,0,0,0,0,0]
["Vote 36","Small Business Development",12,"Intern",0,0,0,0,0,0,0,0,0,0,0,0,0,0,0,0,0,0,0,0,0,0,0,0,0,0,0,0,0,0,0,0,0,0,0,0,0,0,0,0,0,0,0]
["Vote 36","Small Business Development",12,"Other",0,0,0,0,0,0,0,0,0,0,0,0,0,0,0,0,0,0,0,0,0,0,0,0,0,0,0,0,0,0,0,0,0,0,0,0,0,0,0,0,0,0,0]
["Vote 36","Small Business Development",13,1,0,0,0,0,0,0,0,0,0,0,0,0,0,0,0,0,0,0,0,0,0,0,0,0,0,0,0,0,0,0,0,0,0,0,0,0,0,0,0,0,0,0,0]
["Vote 36","Small Business Development",13,2,0,0,0,0,0,0,0,0,0,0,0,0,0,0,0,0,0,0,0,0,0,0,0,0,0,0,0,0,0,0,0,0,0,0,0,0,0,0,0,0,0,0,0]
["Vote 36","Small Business Development",13,3,0,0,0,0,0,0,0,0,0,0,0,0,0,0,0,0,0,0,0,0,0,0,0,0,0,0,0,0,0,0,0,0,0,0,0,0,0,0,0,0,0,0,0]
["Vote 36","Small Business Development",13,4,0,0,0,0,0,0,0,0,0,0,0,0,0,0,0,0,0,0,0,0,0,0,0,0,0,0,0,0,0,0,0,0,0,0,0,0,0,0,0,0,0,0,0]
["Vote 36","Small Business Development",13,5,0,0,0,0,0,0,0,0,0,0,0,0,0,0,0,0,0,0,0,0,0,0,0,0,0,0,0,0,0,0,0,0,0,0,0,0,0,0,0,0,0,0,0]
["Vote 36","Small Business Development",13,6,0,0,0,0,0,0,0,0,0,0,0,0,0,0,0,0,0,0,0,0,0,0,0,0,0,0,0,0,0,0,0,0,0,0,0,0,0,0,0,0,0,0,0]
["Vote 36","Small Business Development",13,7,0,0,0,0,0,0,0,0,0,0,0,0,0,0,0,0,0,0,0,0,0,0,0,0,0,0,0,0,0,0,0,0,0,0,0,0,0,0,0,0,0,0,0]
["Vote 36","Small Business Development",13,8,0,0,0,0,0,0,0,0,0,0,0,0,0,0,0,0,0,0,0,0,0,0,0,0,0,0,0,0,0,0,0,0,0,0,0,0,0,0,0,0,0,0,0]
["Vote 36","Small Business Development",13,9,0,0,0,0,0,0,0,0,0,0,0,0,0,0,0,0,0,0,0,0,0,0,0,0,0,0,0,0,0,0,0,0,0,0,0,0,0,0,0,0,0,0,0]
["Vote 36","Small Business Development",13,10,0,0,0,0,0,0,0,0,0,0,0,0,0,0,0,0,0,0,0,0,0,0,0,0,0,0,0,0,0,0,0,0,0,0,0,0,0,0,0,0,0,0,0]
["Vote 36","Small Business Development",13,11,0,0,0,0,0,0,0,0,0,0,0,0,0,0,0,0,0,0,0,0,0,0,0,0,0,0,0,0,0,0,0,0,0,0,0,0,0,0,0,0,0,0,0]
["Vote 36","Small Business Development",13,12,0,0,0,0,0,0,0,0,0,0,0,0,0,0,0,0,0,0,0,0,0,0,0,0,0,0,0,0,0,0,0,0,0,0,0,0,0,0,0,0,0,0,0]
["Vote 36","Small Business Development",13,13,0,0,0,0,0,0,0,0,0,0,0,0,0,0,0,0,0,0,0,0,0,0,0,0,0,0,0,0,0,0,0,0,0,0,0,0,0,0,0,0,0,0,0]
["Vote 36","Small Business Development",13,14,0,0,0,0,0,0,0,0,0,0,0,0,0,0,0,0,0,0,0,0,0,0,0,0,0,0,0,0,0,0,0,0,0,0,0,0,0,0,0,0,0,0,0]
["Vote 36","Small Business Development",13,15,0,0,0,0,0,0,0,0,0,0,0,0,0,0,0,0,0,0,0,0,0,0,0,0,0,0,0,0,0,0,0,0,0,0,0,0,0,0,0,0,0,0,0]
["Vote 36","Small Business Development",13,16,0,0,0,0,0,0,0,0,0,0,0,0,0,0,0,0,0,0,0,0,0,0,0,0,0,0,0,0,0,0,0,0,0,0,0,0,0,0,0,0,0,0,0]
["Vote 36","Small Business Development",13,"Deputy Minister",0,0,0,0,0,0,0,0,0,0,0,0,0,0,0,0,0,0,0,0,0,0,0,0,0,0,0,0,0,0,0,0,0,0,0,0,0,0,0,0,0,0,0]
["Vote 36","Small Business Development",13,"Minister",0,0,0,0,0,0,0,0,0,0,0,0,0,0,0,0,0,0,0,0,0,0,0,0,0,0,0,0,0,0,0,0,0,0,0,0,0,0,0,0,0,0,0]
["Vote 36","Small Business Development",13,"Intern",0,0,0,0,0,0,0,0,0,0,0,0,0,0,0,0,0,0,0,0,0,0,0,0,0,0,0,0,0,0,0,0,0,0,0,0,0,0,0,0,0,0,0]
["Vote 36","Small Business Development",13,"Other",0,0,0,0,0,0,0,0,0,0,0,0,0,0,0,0,0,0,0,0,0,0,0,0,0,0,0,0,0,0,0,0,0,0,0,0,0,0,0,0,0,0,0]
["Vote 36","Small Business Development",14,1,0,0,0,0,0,0,0,0,0,0,0,0,0,0,0,0,0,0,0,0,0,0,0,0,0,0,0,0,0,0,0,0,0,0,0,0,0,0,0,0,0,0,0]
["Vote 36","Small Business Development",14,2,0,0,0,0,0,0,0,0,0,0,0,0,0,0,0,0,0,0,0,0,0,0,0,0,0,0,0,0,0,0,0,0,0,0,0,0,0,0,0,0,0,0,0]
["Vote 36","Small Business Development",14,3,0,0,0,0,0,0,0,0,0,0,0,0,0,0,0,0,0,0,0,0,0,0,0,0,0,0,0,0,0,0,0,0,0,0,0,0,0,0,0,0,0,0,0]
["Vote 36","Small Business Development",14,4,0,0,0,0,0,0,0,0,0,0,0,0,0,0,0,0,0,0,0,0,0,0,0,0,0,0,0,0,0,0,0,0,0,0,0,0,0,0,0,0,0,0,0]
["Vote 36","Small Business Development",14,5,0,0,0,0,0,0,0,0,0,0,0,0,0,0,0,0,0,0,0,0,0,0,0,0,0,0,0,0,0,0,0,0,0,0,0,0,0,0,0,0,0,0,0]
["Vote 36","Small Business Development",14,6,0,0,0,0,0,0,0,0,0,0,0,0,0,0,0,0,0,0,0,0,0,0,0,0,0,0,0,0,0,0,0,0,0,0,0,0,0,0,0,0,0,0,0]
["Vote 36","Small Business Development",14,7,0,0,0,0,0,0,0,0,0,0,0,0,0,0,0,0,0,0,0,0,0,0,0,0,0,0,0,0,0,0,0,0,0,0,0,0,0,0,0,0,0,0,0]
["Vote 36","Small Business Development",14,8,0,0,0,0,0,0,0,0,0,0,0,0,0,0,0,0,0,0,0,0,0,0,0,0,0,0,0,0,0,0,0,0,0,0,0,0,0,0,0,0,0,0,0]
["Vote 36","Small Business Development",14,9,0,0,0,0,0,0,0,0,0,0,0,0,0,0,0,0,0,0,0,0,0,0,0,0,0,0,0,0,0,0,0,0,0,0,0,0,0,0,0,0,0,0,0]
["Vote 36","Small Business Development",14,10,0,0,0,0,0,0,0,0,0,0,0,0,0,0,0,0,0,0,0,0,0,0,0,0,0,0,0,0,0,0,0,0,0,0,0,0,0,0,0,0,0,0,0]
["Vote 36","Small Business Development",14,11,0,0,0,0,0,0,0,0,0,0,0,0,0,0,0,0,0,0,0,0,0,0,0,0,0,0,0,0,0,0,0,0,0,0,0,0,0,0,0,0,0,0,0]
["Vote 36","Small Business Development",14,12,0,0,0,0,0,0,0,0,0,0,0,0,0,0,0,0,0,0,0,0,0,0,0,0,0,0,0,0,0,0,0,0,0,0,0,0,0,0,0,0,0,0,0]
["Vote 36","Small Business Development",14,13,0,0,0,0,0,0,0,0,0,0,0,0,0,0,0,0,0,0,0,0,0,0,0,0,0,0,0,0,0,0,0,0,0,0,0,0,0,0,0,0,0,0,0]
["Vote 36","Small Business Development",14,14,0,0,0,0,0,0,0,0,0,0,0,0,0,0,0,0,0,0,0,0,0,0,0,0,0,0,0,0,0,0,0,0,0,0,0,0,0,0,0,0,0,0,0]
["Vote 36","Small Business Development",14,15,0,0,0,0,0,0,0,0,0,0,0,0,0,0,0,0,0,0,0,0,0,0,0,0,0,0,0,0,0,0,0,0,0,0,0,0,0,0,0,0,0,0,0]
["Vote 36","Small Business Development",14,16,0,0,0,0,0,0,0,0,0,0,0,0,0,0,0,0,0,0,0,0,0,0,0,0,0,0,0,0,0,0,0,0,0,0,0,0,0,0,0,0,0,0,0]
["Vote 36","Small Business Development",14,"Deputy Minister",0,0,0,0,0,0,0,0,0,0,0,0,0,0,0,0,0,0,0,0,0,0,0,0,0,0,0,0,0,0,0,0,0,0,0,0,0,0,0,0,0,0,0]
["Vote 36","Small Business Development",14,"Minister",0,0,0,0,0,0,0,0,0,0,0,0,0,0,0,0,0,0,0,0,0,0,0,0,0,0,0,0,0,0,0,0,0,0,0,0,0,0,0,0,0,0,0]
["Vote 36","Small Business Development",14,"Intern",0,0,0,0,0,0,0,0,0,0,0,0,0,0,0,0,0,0,0,0,0,0,0,0,0,0,0,0,0,0,0,0,0,0,0,0,0,0,0,0,0,0,0]
["Vote 36","Small Business Development",14,"Other",0,0,0,0,0,0,0,0,0,0,0,0,0,0,0,0,0,0,0,0,0,0,0,0,0,0,0,0,0,0,0,0,0,0,0,0,0,0,0,0,0,0,0]
["Vote 36","Small Business Development",15,1,0,0,0,0,0,0,0,0,0,0,0,0,0,0,0,0,0,0,0,0,0,0,0,0,0,0,0,0,0,0,0,0,0,0,0,0,0,0,0,0,0,0,0]
["Vote 36","Small Business Development",15,2,0,0,0,0,0,0,0,0,0,0,0,0,0,0,0,0,0,0,0,0,0,0,0,0,0,0,0,0,0,0,0,0,0,0,0,0,0,0,0,0,0,0,0]
["Vote 36","Small Business Development",15,3,0,0,0,0,0,0,0,0,0,0,0,0,0,0,0,0,0,0,0,0,0,0,0,0,0,0,0,0,0,0,0,0,0,0,0,0,0,0,0,0,0,0,0]
["Vote 36","Small Business Development",15,4,0,0,0,0,0,0,0,0,0,0,0,0,0,0,0,0,0,0,0,0,0,0,0,0,0,0,0,0,0,0,0,0,0,0,0,0,0,0,0,0,0,0,0]
["Vote 36","Small Business Development",15,5,0,0,0,0,0,0,0,0,0,0,0,0,0,0,0,0,0,0,0,0,0,0,0,0,0,0,0,0,0,0,0,0,0,0,0,0,0,0,0,0,0,0,0]
["Vote 36","Small Business Development",15,6,0,0,0,0,0,0,0,0,0,0,0,0,0,0,0,0,0,0,0,0,0,0,0,0,0,0,0,0,0,0,0,0,0,0,0,0,0,0,0,0,0,0,0]
["Vote 36","Small Business Development",15,7,0,0,0,0,0,0,0,0,0,0,0,0,0,0,0,0,0,0,0,0,0,0,0,0,0,0,0,0,0,0,0,0,0,0,0,0,0,0,0,0,0,0,0]
["Vote 36","Small Business Development",15,8,0,0,0,0,0,0,0,0,0,0,0,0,0,0,0,0,0,0,0,0,0,0,0,0,0,0,0,0,0,0,0,0,0,0,0,0,0,0,0,0,0,0,0]
["Vote 36","Small Business Development",15,9,0,0,0,0,0,0,0,0,0,0,0,0,0,0,0,0,0,0,0,0,0,0,0,0,0,0,0,0,0,0,0,0,0,0,0,0,0,0,0,0,0,0,0]
["Vote 36","Small Business Development",15,10,0,0,0,0,0,0,0,0,0,0,0,0,0,0,0,0,0,0,0,0,0,0,0,0,0,0,0,0,0,0,0,0,0,0,0,0,0,0,0,0,0,0,0]
["Vote 36","Small Business Development",15,11,0,0,0,0,0,0,0,0,0,0,0,0,0,0,0,0,0,0,0,0,0,0,0,0,0,0,0,0,0,0,0,0,0,0,0,0,0,0,0,0,0,0,0]
["Vote 36","Small Business Development",15,12,0,0,0,0,0,0,0,0,0,0,0,0,0,0,0,0,0,0,0,0,0,0,0,0,0,0,0,0,0,0,0,0,0,0,0,0,0,0,0,0,0,0,0]
["Vote 36","Small Business Development",15,13,0,0,0,0,0,0,0,0,0,0,0,0,0,0,0,0,0,0,0,0,0,0,0,0,0,0,0,0,0,0,0,0,0,0,0,0,0,0,0,0,0,0,0]
["Vote 36","Small Business Development",15,14,0,0,0,0,0,0,0,0,0,0,0,0,0,0,0,0,0,0,0,0,0,0,0,0,0,0,0,0,0,0,0,0,0,0,0,0,0,0,0,0,0,0,0]
["Vote 36","Small Business Development",15,15,0,0,0,0,0,0,0,0,0,0,0,0,0,0,0,0,0,0,0,0,0,0,0,0,0,0,0,0,0,0,0,0,0,0,0,0,0,0,0,0,0,0,0]
["Vote 36","Small Business Development",15,16,0,0,0,0,0,0,0,0,0,0,0,0,0,0,0,0,0,0,0,0,0,0,0,0,0,0,0,0,0,0,0,0,0,0,0,0,0,0,0,0,0,0,0]
["Vote 36","Small Business Development",15,"Deputy Minister",0,0,0,0,0,0,0,0,0,0,0,0,0,0,0,0,0,0,0,0,0,0,0,0,0,0,0,0,0,0,0,0,0,0,0,0,0,0,0,0,0,0,0]
["Vote 36","Small Business Development",15,"Minister",0,0,0,0,0,0,0,0,0,0,0,0,0,0,0,0,0,0,0,0,0,0,0,0,0,0,0,0,0,0,0,0,0,0,0,0,0,0,0,0,0,0,0]
["Vote 36","Small Business Development",15,"Intern",0,0,0,0,0,0,0,0,0,0,0,0,0,0,0,0,0,0,0,0,0,0,0,0,0,0,0,0,0,0,0,0,0,0,0,0,0,0,0,0,0,0,0]
["Vote 36","Small Business Development",15,"Other",0,0,0,0,0,0,0,0,0,0,0,0,0,0,0,0,0,0,0,0,0,0,0,0,0,0,0,0,0,0,0,0,0,0,0,0,0,0,0,0,0,0,0]
["Vote 36","Small Business Development",16,1,0,0,0,0,0,0,0,0,0,0,0,0,0,0,0,0,0,0,0,0,0,0,0,0,0,0,0,0,0,0,0,0,0,0,0,0,0,0,0,0,0,0,0]
["Vote 36","Small Business Development",16,2,0,0,0,0,0,0,0,0,0,0,0,0,0,0,0,0,0,0,0,0,0,0,0,0,0,0,0,0,0,0,0,0,0,0,0,0,0,0,0,0,0,0,0]
["Vote 36","Small Business Development",16,3,0,0,0,0,0,0,0,0,0,0,0,0,0,0,0,0,0,0,0,0,0,0,0,0,0,0,0,0,0,0,0,0,0,0,0,0,0,0,0,0,0,0,0]
["Vote 36","Small Business Development",16,4,0,0,0,0,0,0,0,0,0,0,0,0,0,0,0,0,0,0,0,0,0,0,0,0,0,0,0,0,0,0,0,0,0,0,0,0,0,0,0,0,0,0,0]
["Vote 36","Small Business Development",16,5,0,0,0,0,0,0,0,0,0,0,0,0,0,0,0,0,0,0,0,0,0,0,0,0,0,0,0,0,0,0,0,0,0,0,0,0,0,0,0,0,0,0,0]
["Vote 36","Small Business Development",16,6,0,0,0,0,0,0,0,0,0,0,0,0,0,0,0,0,0,0,0,0,0,0,0,0,0,0,0,0,0,0,0,0,0,0,0,0,0,0,0,0,0,0,0]
["Vote 36","Small Business Development",16,7,0,0,0,0,0,0,0,0,0,0,0,0,0,0,0,0,0,0,0,0,0,0,0,0,0,0,0,0,0,0,0,0,0,0,0,0,0,0,0,0,0,0,0]
["Vote 36","Small Business Development",16,8,0,0,0,0,0,0,0,0,0,0,0,0,0,0,0,0,0,0,0,0,0,0,0,0,0,0,0,0,0,0,0,0,0,0,0,0,0,0,0,0,0,0,0]
["Vote 36","Small Business Development",16,9,0,0,0,0,0,0,0,0,0,0,0,0,0,0,0,0,0,0,0,0,0,0,0,0,0,0,0,0,0,0,0,0,0,0,0,0,0,0,0,0,0,0,0]
["Vote 36","Small Business Development",16,10,0,0,0,0,0,0,0,0,0,0,0,0,0,0,0,0,0,0,0,0,0,0,0,0,0,0,0,0,0,0,0,0,0,0,0,0,0,0,0,0,0,0,0]
["Vote 36","Small Business Development",16,11,0,0,0,0,0,0,0,0,0,0,0,0,0,0,0,0,0,0,0,0,0,0,0,0,0,0,0,0,0,0,0,0,0,0,0,0,0,0,0,0,0,0,0]
["Vote 36","Small Business Development",16,12,0,0,0,0,0,0,0,0,0,0,0,0,0,0,0,0,0,0,0,0,0,0,0,0,0,0,0,0,0,0,0,0,0,0,0,0,0,0,0,0,0,0,0]
["Vote 36","Small Business Development",16,13,0,0,0,0,0,0,0,0,0,0,0,0,0,0,0,0,0,0,0,0,0,0,0,0,0,0,0,0,0,0,0,0,0,0,0,0,0,0,0,0,0,0,0]
["Vote 36","Small Business Development",16,14,0,0,0,0,0,0,0,0,0,0,0,0,0,0,0,0,0,0,0,0,0,0,0,0,0,0,0,0,0,0,0,0,0,0,0,0,0,0,0,0,0,0,0]
["Vote 36","Small Business Development",16,15,0,0,0,0,0,0,0,0,0,0,0,0,0,0,0,0,0,0,0,0,0,0,0,0,0,0,0,0,0,0,0,0,0,0,0,0,0,0,0,0,0,0,0]
["Vote 36","Small Business Development",16,16,0,0,0,0,0,0,0,0,0,0,0,0,0,0,0,0,0,0,0,0,0,0,0,0,0,0,0,0,0,0,0,0,0,0,0,0,0,0,0,0,0,0,0]
["Vote 36","Small Business Development",16,"Deputy Minister",0,0,0,0,0,0,0,0,0,0,0,0,0,0,0,0,0,0,0,0,0,0,0,0,0,0,0,0,0,0,0,0,0,0,0,0,0,0,0,0,0,0,0]
["Vote 36","Small Business Development",16,"Minister",0,0,0,0,0,0,0,0,0,0,0,0,0,0,0,0,0,0,0,0,0,0,0,0,0,0,0,0,0,0,0,0,0,0,0,0,0,0,0,0,0,0,0]
["Vote 36","Small Business Development",16,"Intern",0,0,0,0,0,0,0,0,0,0,0,0,0,0,0,0,0,0,0,0,0,0,0,0,0,0,0,0,0,0,0,0,0,0,0,0,0,0,0,0,0,0,0]
["Vote 36","Small Business Development",16,"Other",0,0,0,0,0,0,0,0,0,0,0,0,0,0,0,0,0,0,0,0,0,0,0,0,0,0,0,0,0,0,0,0,0,0,0,0,0,0,0,0,0,0,0]

{"sheet":"Tables","index":23,"n_rows":1031,"n_cols":53,"rows_kept":1031,"cut":false,"hidden":true,"merged":[]}
[null,null,null,null,null,null,null,null,null,null,null,null,null,null,null,null,null,"Headers: Performance",null,null,null,"Headers: Infrastructure",null,null,null,"Headers: Personnel",null,null,null,"Headers: Dataset",null,null,null,null,null,null,null,null,"Reporting level Indi"]
["Vote No. - N","Vote No.","Department",null,null,"Vote No. - N","Programme No. - N","Subprogramme No. - N","Vote No.","Programme No.","Subprogramme No.","UID_Org","Department","Programme","Subprogramme",null,null,"CurCol","NewCol",null,null,"CurCol","NewCol",null,null,"CurCol","NewCol",null,null,"OldCol","GenCol","NewCol",null,null,"YearNo","Year",null,null,"Econ2","Econ3","Econ4","Level 3","Level 4",null,null,"Salary level","Salary level2","Salary level grouping",null,null,null,"Headings_R","Headings_Gen"]
[1,"01","The Presidency",null,null,1,1,1,"01","01","01","01|01|01","The Presidency","Administration","Management",null,null,"Column1","Unit no",null,null,"Column1","Unit no",null,null,"Column1","Unit no",null,null,"Department","Department","Department",null,null,1,"2023/24",null,null,"Current payments","Compensation of employees","Compensation of employees",1,0,null,null,1,"01","Levels 01 - 06",null,null,null,"Combo_DoR","Combo_DoR"]
[2,"02","Parliament",null,null,1,1,2,"01","01","02","01|01|02","The Presidency","Administration","Support Services to the President",null,null,"Column2","Impact area",null,null,"Column2","Impact area",null,null,"Column2","Impact area",null,null,"Programme","Programme","Programme",null,null,2,"2024/25",null,null,"Current payments","Compensation of employees","Salaries and wages",0,1,null,null,2,"02","Levels 01 - 06",null,null,null,"Combo_Econ","Combo_Econ"]
[3,"03","Cooperative Governance",null,null,1,1,3,"01","01","03","01|01|03","The Presidency","Administration","Support Services to the Deputy President",null,null,"Column3","Unit name",null,null,"Column3","Unit name",null,null,"Column3","Unit name",null,null,"Subprogramme","Subprogramme","Subprogramme",null,null,3,"2025/26",null,null,"Current payments","Compensation of employees","Social contributions",0,1,null,null,3,"03","Levels 01 - 06",null,null,null,"Budget Year","Budget Year"]
[4,"04","Government Communication and Information System",null,null,1,2,1,"01","02","01","01|02|01","The Presidency","Executive Support","Cabinet Services",null,null,"Column4","Performance indicator",null,null,"Column4","Project",null,null,"Column4","Salary level",null,null,"Transfers and subsidies / Payments for financial assets detail","Transfers and subsidies / Payments for financial assets detail","Transfers and subsidies / Payments for financial assets detail",null,null,4,"2026/27",null,null,"Current payments","Goods and services","Goods and services",1,0,null,null,4,"04","Levels 01 - 06",null,null,null,"Process","Process"]
[5,"05","Home Affairs",null,null,1,3,1,"01","03","01","01|03|01","The Presidency","Policy and Research Services","Economy, Trade and Investment",null,null,"Column5","2026/27 Current performance",null,null,"Column5","2026/27 Current Number",null,null,"Column5","2026/27 Original number",null,null,"Econ1","Econ1","Econ1",null,null,5,"2027/28",null,null,"Current payments","Goods and services","Administrative fees",0,1,null,null,5,"05","Levels 01 - 06",null,null,null,"Vote No. - N","Vote No. - N"]
[6,"06","International Relations and Cooperation",null,null,1,3,2,"01","03","02","01|03|02","The Presidency","Policy and Research Services","Socioeconomic Impact Assessment System",null,null,"Column6","2026/27 Performance @ benchmark level",null,null,"Column6","2026/27 Market or best in class benchmark",null,null,"Column6","2026/27 Revised number",null,null,"Econ2","Econ2","Econ2",null,null,6,"2028/29",null,null,"Current payments","Goods and services","Advertising",0,1,null,null,6,"06","Levels 01 - 06",null,null,null,"Programme No. - N","Programme No. - N"]
[7,"07","National School of Government",null,null,1,16,1,"01","16","01","01|16|01","The Presidency","Direct charge against the National Revenue Fund","Salary of the president",null,null,"Column7","2026/27 Change",null,null,"Column7","2026/27 Change",null,null,"Column7","2026/27 Change in number",null,null,"Econ3","Econ3","Econ3",null,null,7,"2029/30",null,null,"Current payments","Goods and services","Agency and support/outsourced services",0,1,null,null,7,"07","Levels 07 - 12",null,null,null,"Subprogramme No. - N","Subprogramme No. - N"]
[8,"08","National Treasury",null,null,1,16,2,"01","16","02","01|16|02","The Presidency","Direct charge against the National Revenue Fund","Salary of the deputy president",null,null,"Column8","2027/28 Original target",null,null,"Column8","2027/28 Original amount",null,null,"Column8","2027/28 Original number",null,null,"Econ4","Econ4","Econ4",null,null,null,null,null,null,"Current payments","Goods and services","Audit costs: External",0,1,null,null,8,"08","Levels 07 - 12",null,null,null,"Index - N","Index - N"]
[9,"09","Planning, Monitoring and Evaluation",null,null,2,1,1,"02","01","01","02|01|01","Parliament","Administration","Executive Authority",null,null,"Column9","2027/28 Revised target",null,null,"Column9","2027/28 Revised amount",null,null,"Column9","2027/28 Revised number",null,null,"Econ5","Econ5","Econ5",null,null,null,null,null,null,"Current payments","Goods and services","Bursaries: Employees",0,1,null,null,9,"09","Levels 07 - 12",null,null,null,"Index - N2","Index - N2"]
[10,"10","Public Enterprises",null,null,2,1,2,"02","01","02","02|01|02","Parliament","Administration","Office of the Secretary",null,null,"Column10","2027/28 Change",null,null,"Column10","2027/28 Change",null,null,"Column10","2027/28 Change in number",null,null,"Function group","Function group","Function group",null,null,null,null,null,null,"Current payments","Goods and services","Catering: Departmental activities",0,1,null,null,10,"10","Levels 07 - 12",null,null,null,"Vote No.","Vote No."]
[11,"11","Public Service and Administration",null,null,2,1,3,"02","01","03","02|01|03","Parliament","Administration","Corporate and Support Services",null,null,"Column11","2028/29 Original target",null,null,"Column11","2028/29 Original amount",null,null,"Column11","2028/29 Original number",null,null,"Technical group","Technical group","Technical group",null,null,null,null,null,null,"Current payments","Goods and services","Communication (G&S)",0,1,null,null,11,"11","Levels 07 - 12",null,null,null,"Programme No.","Programme No."]
[12,"12","Public Service Commission",null,null,2,2,1,"02","02","01","02|02|01","Parliament","Legislation and Oversight","National Assembly",null,null,"Column12","2028/29 Revised target",null,null,"Column12","2028/29 Revised amount",null,null,"Column12","2028/29 Revised number",null,null,"DOR","DOR","DOR",null,null,null,null,null,null,"Current payments","Goods and services","Computer services",0,1,null,null,12,"12","Levels 07 - 12",null,null,null,"Subprogramme No.","Subprogramme No."]
[13,"13","Public Works and Infrastructure",null,null,2,2,2,"02","02","02","02|02|02","Parliament","Legislation and Oversight","National Council of Provinces",null,null,"Column13","2028/29 Change",null,null,"Column13","2028/29 Change",null,null,"Column13","2028/29 Change in number",null,null,"2021/22","Column13","2022/23",null,null,null,null,null,null,"Current payments","Goods and services","Consultants: Business and advisory services",0,1,null,null,13,"13","Levels 13 - 16",null,null,null,"Structure_UID","Structure_UID"]
[14,"14","Statistics South Africa",null,null,2,2,3,"02","02","03","02|02|03","Parliament","Legislation and Oversight","Public Participation and external relations: Shared Services",null,null,"Column14","2029/30 Original target",null,null,"Column14","2029/30 Original amount",null,null,"Column14","2029/30 Original number",null,null,"2022/23","Column14","2023/24",null,null,null,null,null,null,"Current payments","Goods and services","Consumable supplies",0,1,null,null,14,"14","Levels 13 - 16",null,null,null,"Index","Index"]
[15,"15","Traditional Affairs",null,null,2,3,1,"02","03","01","02|03|01","Parliament","Associated Services","Members Facilities",null,null,"Column15","2029/30 Revised target",null,null,"Column15","2029/30 Revised amount",null,null,"Column15","2029/30 Revised number",null,null,"2023/24","Column15","2024/25",null,null,null,null,null,null,"Current payments","Goods and services","Consumables: Stationery, printing and office supplies",0,1,null,null,15,"15","Levels 13 - 16",null,null,null,"Index2","Index2"]
[16,"16","Basic Education",null,null,2,3,2,"02","03","02","02|03|02","Parliament","Associated Services","Transfer to Political Party Allowances",null,null,"Column16","2029/30 Change",null,null,"Column16","2029/30 Change",null,null,"Column16","2029/30 Change in number",null,null,"2024/25 Main appropriation","Column16","2025/26 Main appropriation",null,null,null,null,null,null,"Current payments","Goods and services","Contractors",0,1,null,null,16,"16","Levels 13 - 16",null,null,null,"UID","UID"]
[17,"17","Higher Education and Training",null,null,2,3,3,"02","03","03","02|03|03","Parliament","Associated Services","Transfer: Parliamentary Budget Office",null,null,"Column17","Comment",null,null,"Column17","Comment",null,null,"Column17","Comment",null,null,"2024/25 Adjusted appropriation","Column17","2025/26 Adjusted appropriation",null,null,null,null,null,null,"Current payments","Goods and services","Entertainment",0,1,null,null,"Deputy Minister","Deputy Minister","Other",null,null,null,"Econ1_IDn","Econ1_IDn"]
[18,"18","Health",null,null,2,16,1,"02","16","01","02|16|01","Parliament","Direct charge against the National Revenue Fund","Members' remuneration",null,null,"Column18","Gov Priority",null,null,null,null,null,null,null,null,null,null,"2024/25 Revised estimate","Column18","2025/26 Revised estimate",null,null,null,null,null,null,"Current payments","Goods and services","Fleet services (including government motor transport)",0,1,null,null,"Minister","Minister","Other",null,null,null,"Econ2_IDn","Econ2_IDn"]
[19,"19","Social Development",null,null,3,1,1,"03","01","01","03|01|01","Cooperative Governance","Administration","Ministry",null,null,null,null,null,null,null,null,null,null,null,null,null,null,"2024/25 Preliminary outcome","Column19","2025/26 Preliminary outcome",null,null,null,null,null,null,"Current payments","Goods and services","Housing",0,1,null,null,"Intern","Intern","Other",null,null,null,"Econ3_IDn","Econ3_IDn"]
[20,"20","Women, Youth and Persons with Disabilities",null,null,3,1,2,"03","01","02","03|01|02","Cooperative Governance","Administration","Management",null,null,null,null,null,null,null,null,null,null,null,null,null,null,"2025/26 Baseline","Column20","2026/27 Baseline",null,null,null,null,null,null,"Current payments","Goods and services","Infrastructure and planning services",0,1,null,null,"Other","Other","Other",null,null,null,"Econ4_IDn","Econ4_IDn"]
[21,"21","Civilian Secretariat for the Police Service",null,null,3,1,3,"03","01","03","03|01|03","Cooperative Governance","Administration","Corporate Services",null,null,null,null,null,null,null,null,null,null,null,null,null,null,"2026/27 Baseline","Column21","2027/28 Baseline",null,null,null,null,null,null,"Current payments","Goods and services","Inventory: Clothing material and accessories",0,1,null,null,null,null,null,null,null,null,"Econ5_IDn","Econ5_IDn"]
[22,"22","Correctional Services",null,null,3,1,4,"03","01","04","03|01|04","Cooperative Governance","Administration","Financial Services",null,null,null,null,null,null,null,null,null,null,null,null,null,null,"2027/28 Baseline","Column22","2028/29 Baseline",null,null,null,null,null,null,"Current payments","Goods and services","Inventory: Farming supplies",0,1,null,null,null,null,null,null,null,null,"Econ_UID","Econ_UID"]
[23,"23","Defence",null,null,3,1,5,"03","01","05","03|01|05","Cooperative Governance","Administration","Internal Audit and Risk management",null,null,null,null,null,null,null,null,null,null,null,null,null,null,"2028/29 Baseline","Column23","2029/30 Baseline",null,null,null,null,null,null,"Current payments","Goods and services","Inventory: Food and food supplies",0,1,null,null,null,null,null,null,null,null,"Province","Province"]
[24,"24","Independent Police Investigative Directorate",null,null,3,1,6,"03","01","06","03|01|06","Cooperative Governance","Administration","Office Accommodation",null,null,null,null,null,null,null,null,null,null,null,null,null,null,"2026/27 From - Spending review Topic 1","Column24","2027/28 From - Spending review Topic 1",null,null,null,null,null,null,"Current payments","Goods and services","Inventory: Fuel, oil and gas",0,1,null,null,null,null,null,null,null,null,"Department","Department"]
[25,"25","Justice and Constitutional Development",null,null,3,2,1,"03","02","01","03|02|01","Cooperative Governance","Intergovernmental Support","Management: Intergovernmental Support",null,null,null,null,null,null,null,null,null,null,null,null,null,null,"2027/28 From - Spending review Topic 1","Column25","2028/29 From - Spending review Topic 1",null,null,null,null,null,null,"Current payments","Goods and services","Inventory: Learner and teacher support material",0,1,null,null,null,null,null,null,null,null,"Programme","Programme"]
[26,"26","Military Veterans",null,null,3,2,2,"03","02","02","03|02|02","Cooperative Governance","Intergovernmental Support","Municipal and Provincial Governance Support and Capacity Building",null,null,null,null,null,null,null,null,null,null,null,null,null,null,"2028/29 From - Spending review Topic 1","Column26","2029/30 From - Spending review Topic 1",null,null,null,null,null,null,"Current payments","Goods and services","Inventory: Materials and supplies",0,1,null,null,null,null,null,null,null,null,"Subprogramme","Subprogramme"]
[27,"27","Office of the Chief Justice",null,null,3,2,4,"03","02","04","03|02|04","Cooperative Governance","Intergovernmental Support","Municipal Infrastructure Grant",null,null,null,null,null,null,null,null,null,null,null,null,null,null,"2026/27 To - Spending review Topic 1","Column27","2027/28 To - Spending review Topic 1",null,null,null,null,null,null,"Current payments","Goods and services","Inventory: Medical supplies",0,1,null,null,null,null,null,null,null,null,"Transfers and subsidies / Payments for financial assets detail","Transfers and subsidies / Payments for financial assets detail"]
[28,"28","Police",null,null,3,2,5,"03","02","05","03|02|05","Cooperative Governance","Intergovernmental Support","Integrated urban development grant",null,null,null,null,null,null,null,null,null,null,null,null,null,null,"2027/28 To - Spending review Topic 1","Column28","2028/29 To - Spending review Topic 1",null,null,null,null,null,null,"Current payments","Goods and services","Inventory: Medicine",0,1,null,null,null,null,null,null,null,null,"Econ1","Econ1"]
[29,"29","Agriculture, Land Reform and Rural Development",null,null,3,2,6,"03","02","06","03|02|06","Cooperative Governance","Intergovernmental Support","Municipal Infrastructure Support Agent",null,null,null,null,null,null,null,null,null,null,null,null,null,null,"2028/29 To - Spending review Topic 1","Column29","2029/30 To - Spending review Topic 1",null,null,null,null,null,null,"Current payments","Goods and services","Inventory: Other supplies",0,1,null,null,null,null,null,null,null,null,"Econ2","Econ2"]
[30,"30","Communications and Digital Technologies",null,null,3,3,1,"03","03","01","03|03|01","Cooperative Governance","Intergovernmental Policy and Governance","Management: Intergovernmental Policy and Governance",null,null,null,null,null,null,null,null,null,null,null,null,null,null,"2026/27 From - Spending review Topic 2","Column30","2027/28 From - Spending review Topic 2",null,null,null,null,null,null,"Current payments","Goods and services","Laboratory services",0,1,null,null,null,null,null,null,null,null,"Econ3","Econ3"]
[31,"31","Employment and Labour",null,null,3,3,2,"03","03","02","03|03|02","Cooperative Governance","Intergovernmental Policy and Governance","Municipal Administration and Capacity",null,null,null,null,null,null,null,null,null,null,null,null,null,null,"2027/28 From - Spending review Topic 2","Column31","2028/29 From - Spending review Topic 2",null,null,null,null,null,null,"Current payments","Goods and services","Legal services (G&S)",0,1,null,null,null,null,null,null,null,null,"Econ4","Econ4"]
[32,"32","Forestry, Fisheries and the Environment",null,null,3,3,3,"03","03","03","03|03|03","Cooperative Governance","Intergovernmental Policy and Governance","Municipal Funding and Revenue Support",null,null,null,null,null,null,null,null,null,null,null,null,null,null,"2028/29 From - Spending review Topic 2","Column32","2029/30 From - Spending review Topic 2",null,null,null,null,null,null,"Current payments","Goods and services","Medsas inventory interface",0,1,null,null,null,null,null,null,null,null,"Econ5","Econ5"]
[33,"33","Human Settlements",null,null,3,3,4,"03","03","04","03|03|04","Cooperative Governance","Intergovernmental Policy and Governance","Development Planning",null,null,null,null,null,null,null,null,null,null,null,null,null,null,"2026/27 To - Spending review Topic 2","Column33","2027/28 To - Spending review Topic 2",null,null,null,null,null,null,"Current payments","Goods and services","Minor assets",0,1,null,null,null,null,null,null,null,null,"ValueIndi","ValueIndi"]
[34,"34","Mineral Resources and Energy",null,null,3,3,5,"03","03","05","03|03|05","Cooperative Governance","Intergovernmental Policy and Governance","Municipal Demarcation Board",null,null,null,null,null,null,null,null,null,null,null,null,null,null,"2027/28 To - Spending review Topic 2","Column34","2028/29 To - Spending review Topic 2",null,null,null,null,null,null,"Current payments","Goods and services","Operating leases",0,1,null,null,null,null,null,null,null,null,"Function group","Function group"]
[35,"35","Science and Innovation",null,null,3,3,6,"03","03","06","03|03|06","Cooperative Governance","Intergovernmental Policy and Governance","South African Cities Network",null,null,null,null,null,null,null,null,null,null,null,null,null,null,"2028/29 To - Spending review Topic 2","Column35","2029/30 To - Spending review Topic 2",null,null,null,null,null,null,"Current payments","Goods and services","Operating payments",0,1,null,null,null,null,null,null,null,null,"Technical group","Technical group"]
[36,"36","Small Business Development",null,null,3,3,7,"03","03","07","03|03|07","Cooperative Governance","Intergovernmental Policy and Governance","Municipal Governance",null,null,null,null,null,null,null,null,null,null,null,null,null,null,"2026/27 From - Spending review Topic 3","Column36","2027/28 From - Spending review Topic 3",null,null,null,null,null,null,"Current payments","Goods and services","Property payments",0,1,null,null,null,null,null,null,null,null,"DOR","DOR"]
[37,"37","Sport, Arts and Culture",null,null,3,3,8,"03","03","08","03|03|08","Cooperative Governance","Intergovernmental Policy and Governance","Research and Knowledge Management",null,null,null,null,null,null,null,null,null,null,null,null,null,null,"2027/28 From - Spending review Topic 3","Column37","2028/29 From - Spending review Topic 3",null,null,null,null,null,null,"Current payments","Goods and services","Rental and hiring",0,1,null,null,null,null,null,null,null,null,"2022/23","Column1"]
[38,"38","Tourism",null,null,3,3,9,"03","03","09","03|03|09","Cooperative Governance","Intergovernmental Policy and Governance","South African Local Government Association",null,null,null,null,null,null,null,null,null,null,null,null,null,null,"2028/29 From - Spending review Topic 3","Column38","2029/30 From - Spending review Topic 3",null,null,null,null,null,null,"Current payments","Goods and services","Science and technological services",0,1,null,null,null,null,null,null,null,null,"2023/24","Column2"]
[39,"39","Trade, Industry and Competition",null,null,3,3,10,"03","03","10","03|03|10","Cooperative Governance","Intergovernmental Policy and Governance","United Cities and Local Governments of Africa",null,null,null,null,null,null,null,null,null,null,null,null,null,null,"2026/27 To - Spending review Topic 3","Column39","2027/28 To - Spending review Topic 3",null,null,null,null,null,null,"Current payments","Goods and services","Training and development",0,1,null,null,null,null,null,null,null,null,"2024/25","Column3"]
[40,"40","Transport",null,null,3,3,11,"03","03","11","03|03|11","Cooperative Governance","Intergovernmental Policy and Governance","Local Government Equitable Share",null,null,null,null,null,null,null,null,null,null,null,null,null,null,"2027/28 To - Spending review Topic 3","Column40","2028/29 To - Spending review Topic 3",null,null,null,null,null,null,"Current payments","Goods and services","Transport provided: Departmental activity",0,1,null,null,null,null,null,null,null,null,"2025/26 Main appropriation","Column4"]
[41,"41","Water and Sanitation",null,null,3,3,12,"03","03","12","03|03|12","Cooperative Governance","Intergovernmental Policy and Governance","Municipal Systems Improvement Grant",null,null,null,null,null,null,null,null,null,null,null,null,null,null,"2028/29 To - Spending review Topic 3","Column41","2029/30 To - Spending review Topic 3",null,null,null,null,null,null,"Current payments","Goods and services","Travel and subsistence",0,1,null,null,null,null,null,null,null,null,"2025/26 Adjusted appropriation","Column5"]
[42,"42","Centre for Public Service Innovation",null,null,3,4,1,"03","04","01","03|04|01","Cooperative Governance","National Disaster Management Centre","Management: Head National Disaster Management Centre",null,null,null,null,null,null,null,null,null,null,null,null,null,null,"2026/27 From - Spending review Topic 4","Column42","2027/28 From - Spending review Topic 4",null,null,null,null,null,null,"Current payments","Goods and services","Venues and facilities",0,1,null,null,null,null,null,null,null,null,"2025/26 Revised estimate","Column6"]
[50,"50","Below the line items",null,null,3,4,2,"03","04","02","03|04|02","Cooperative Governance","National Disaster Management Centre","Disaster Policy, Institutional Development and Compliance",null,null,null,null,null,null,null,null,null,null,null,null,null,null,"2027/28 From - Spending review Topic 4","Column43","2028/29 From - Spending review Topic 4",null,null,null,null,null,null,"Current payments","Interest and rent on land","Interest (Incl. interest on unitary payments (PPP))",1,1,null,null,null,null,null,null,null,null,"2025/26 Preliminary outcome","Column7"]
[null,null,null,null,null,3,4,3,"03","04","03","03|04|03","Cooperative Governance","National Disaster Management Centre","Disaster Risk Reduction and Capacity Development",null,null,null,null,null,null,null,null,null,null,null,null,null,null,"2028/29 From - Spending review Topic 4","Column44","2029/30 From - Spending review Topic 4",null,null,null,null,null,null,"Current payments","Interest and rent on land","Rent on land",1,1,null,null,null,null,null,null,null,null,"2026/27 Base","Column8"]
[null,null,null,null,null,3,4,4,"03","04","04","03|04|04","Cooperative Governance","National Disaster Management Centre","Disaster Preparedness, Response and Recovery Coordination",null,null,null,null,null,null,null,null,null,null,null,null,null,null,"2026/27 To - Spending review Topic 4","Column45","2027/28 To - Spending review Topic 4",null,null,null,null,null,null,"Transfers and subsidies","Provinces and municipalities","Municipalities",1,1,null,null,null,null,null,null,null,null,"2027/28 Base","Column9"]
[null,null,null,null,null,3,4,5,"03","04","05","03|04|05","Cooperative Governance","National Disaster Management Centre","Municipal Disaster Recovery Grant",null,null,null,null,null,null,null,null,null,null,null,null,null,null,"2027/28 To - Spending review Topic 4","Column46","2028/29 To - Spending review Topic 4",null,null,null,null,null,null,"Transfers and subsidies","Provinces and municipalities","Provinces",1,1,null,null,null,null,null,null,null,null,"2028/29 Base","Column10"]
[null,null,null,null,null,3,4,6,"03","04","06","03|04|06","Cooperative Governance","National Disaster Management Centre","Disaster Response Grant",null,null,null,null,null,null,null,null,null,null,null,null,null,null,"2028/29 To - Spending review Topic 4","Column47","2029/30 To - Spending review Topic 4",null,null,null,null,null,null,"Transfers and subsidies","Departmental agencies and accounts","Social security funds",1,1,null,null,null,null,null,null,null,null,"2026/27 Tech adjust","Column11"]
[null,null,null,null,null,3,5,1,"03","05","01","03|05|01","Cooperative Governance","Community Work Programme","Coordination, Partnerships and Implementation",null,null,null,null,null,null,null,null,null,null,null,null,null,null,"2026/27 From - Other reallocations","Column48","2027/28 From - Other reallocations",null,null,null,null,null,null,"Transfers and subsidies","Departmental agencies and accounts","Departmental agencies (non-business entities)",1,1,null,null,null,null,null,null,null,null,"2027/28 Tech adjust","Column12"]
[null,null,null,null,null,3,5,2,"03","05","02","03|05|02","Cooperative Governance","Community Work Programme","Monitoring and Evaluation",null,null,null,null,null,null,null,null,null,null,null,null,null,null,"2027/28 From - Other reallocations","Column49","2028/29 From - Other reallocations",null,null,null,null,null,null,"Transfers and subsidies","Higher education institutions","Higher education institutions",1,1,null,null,null,null,null,null,null,null,"2028/29 Tech adjust","Column13"]
[null,null,null,null,null,4,1,1,"04","01","01","04|01|01","Government Communication and Information System","Administration","Departmental Management",null,null,null,null,null,null,null,null,null,null,null,null,null,null,"2028/29 From - Other reallocations","Column50","2029/30 From - Other reallocations",null,null,null,null,null,null,"Transfers and subsidies","Foreign governments and international organisations","Foreign governments and international organisations",1,1,null,null,null,null,null,null,null,null,"2028/29 Non-recurring","Column14"]
[null,null,null,null,null,4,1,2,"04","01","02","04|01|02","Government Communication and Information System","Administration","Corporate Services",null,null,null,null,null,null,null,null,null,null,null,null,null,null,"2026/27 To - Other reallocations","Column51","2027/28 To - Other reallocations",null,null,null,null,null,null,"Transfers and subsidies","Public corporations and private enterprises","Private enterprises",1,1,null,null,null,null,null,null,null,null,"2026/27 Baseline","Column15"]
[null,null,null,null,null,4,1,3,"04","01","03","04|01|03","Government Communication and Information System","Administration","Financial Administration",null,null,null,null,null,null,null,null,null,null,null,null,null,null,"2027/28 To - Other reallocations","Column52","2028/29 To - Other reallocations",null,null,null,null,null,null,"Transfers and subsidies","Public corporations and private enterprises","Public corporations",1,1,null,null,null,null,null,null,null,null,"2027/28 Baseline","Column16"]
[null,null,null,null,null,4,1,4,"04","01","04","04|01|04","Government Communication and Information System","Administration","Internal Audit",null,null,null,null,null,null,null,null,null,null,null,null,null,null,"2028/29 To - Other reallocations","Column53","2029/30 To - Other reallocations",null,null,null,null,null,null,"Transfers and subsidies","Non-profit institutions","Non-profit institutions",1,1,null,null,null,null,null,null,null,null,"2028/29 Baseline","Column17"]
[null,null,null,null,null,4,1,5,"04","01","05","04|01|05","Government Communication and Information System","Administration","Office Accommodation",null,null,null,null,null,null,null,null,null,null,null,null,null,null,"2025/26 Reduction","Column54","2026/27 Reduction",null,null,null,null,null,null,"Transfers and subsidies","Households","Other transfers to households",1,1,null,null,null,null,null,null,null,null,"2029/30 Baseline","Column18"]
[null,null,null,null,null,4,2,1,"04","02","01","04|02|01","Government Communication and Information System","Content Processing and Dissemination","Programme Management for Content Processing and Dissemination",null,null,null,null,null,null,null,null,null,null,null,null,null,null,"2026/27 Reduction","Column55","2027/28 Reduction",null,null,null,null,null,null,"Transfers and subsidies","Households","Social benefits",1,1]
[null,null,null,null,null,4,2,2,"04","02","02","04|02|02","Government Communication and Information System","Content Processing and Dissemination","Policy and Research",null,null,null,null,null,null,null,null,null,null,null,null,null,null,"2027/28 Reduction","Column56","2028/29 Reduction",null,null,null,null,null,null,"Payments for capital assets","Buildings and other fixed structures","Buildings",1,1]
[null,null,null,null,null,4,2,3,"04","02","03","04|02|03","Government Communication and Information System","Content Processing and Dissemination","Products and Platforms",null,null,null,null,null,null,null,null,null,null,null,null,null,null,"2028/29 Reduction","Column57","2029/30 Reduction",null,null,null,null,null,null,"Payments for capital assets","Buildings and other fixed structures","Other fixed structures",1,1]
[null,null,null,null,null,4,2,4,"04","02","04","04|02|04","Government Communication and Information System","Content Processing and Dissemination","Communication Service Agency",null,null,null,null,null,null,null,null,null,null,null,null,null,null,"2026/27 From - Total","Column58","2027/28 From - Total",null,null,null,null,null,null,"Payments for capital assets","Machinery and equipment","Other machinery and equipment",1,1]
[null,null,null,null,null,4,2,5,"04","02","05","04|02|05","Government Communication and Information System","Content Processing and Dissemination","Entity Oversight",null,null,null,null,null,null,null,null,null,null,null,null,null,null,"2027/28 From - Total","Column59","2028/29 From - Total",null,null,null,null,null,null,"Payments for capital assets","Machinery and equipment","Transport equipment",1,1]
[null,null,null,null,null,4,2,6,"04","02","06","04|02|06","Government Communication and Information System","Content Processing and Dissemination","Media Policy",null,null,null,null,null,null,null,null,null,null,null,null,null,null,"2028/29 From - Total","Column60","2029/30 From - Total",null,null,null,null,null,null,"Payments for capital assets","Heritage assets","Heritage assets",1,1]
[null,null,null,null,null,4,3,1,"04","03","01","04|03|01","Government Communication and Information System","Intergovernmental Coordination and Stakeholder Management","Programme Management for Intergovernmental Coordination and Stakeholder Management",null,null,null,null,null,null,null,null,null,null,null,null,null,null,"2026/27 To - Total","Column61","2027/28 To - Total",null,null,null,null,null,null,"Payments for capital assets","Specialised military assets","Specialised military assets",1,1]
[null,null,null,null,null,4,3,2,"04","03","02","04|03|02","Government Communication and Information System","Intergovernmental Coordination and Stakeholder Management","Provincial and Local Liaison",null,null,null,null,null,null,null,null,null,null,null,null,null,null,"2027/28 To - Total","Column62","2028/29 To - Total",null,null,null,null,null,null,"Payments for capital assets","Biological assets","Biological assets",1,1]
[null,null,null,null,null,4,3,3,"04","03","03","04|03|03","Government Communication and Information System","Intergovernmental Coordination and Stakeholder Management","Media Engagement",null,null,null,null,null,null,null,null,null,null,null,null,null,null,"2028/29 To - Total","Column63","2029/30 To - Total",null,null,null,null,null,null,"Payments for capital assets","Land and sub-soil assets","Land and sub-soil assets",1,1]
[null,null,null,null,null,4,3,4,"04","03","04","04|03|04","Government Communication and Information System","Intergovernmental Coordination and Stakeholder Management","Cluster Supervision (Human Development, Social Protection, and Governance and Administration)",null,null,null,null,null,null,null,null,null,null,null,null,null,null,"2026/27 Total decrease","Column64","2027/28 Total decrease",null,null,null,null,null,null,"Payments for capital assets","Software and other intangible assets","Software and other intangible assets",1,1]
[null,null,null,null,null,4,3,5,"04","03","05","04|03|05","Government Communication and Information System","Intergovernmental Coordination and Stakeholder Management","Cluster Supervision (Economic and Infrastructure, Justice and International)",null,null,null,null,null,null,null,null,null,null,null,null,null,null,"2027/28 Total decrease","Column65","2028/29 Total decrease",null,null,null,null,null,null,"Payments for financial assets","Payments for financial assets","Payments for financial assets",1,1]
[null,null,null,null,null,5,1,1,"05","01","01","05|01|01","Home Affairs","Administration","Ministry",null,null,null,null,null,null,null,null,null,null,null,null,null,null,"2028/29 Total decrease","Column66","2029/30 Total decrease"]
[null,null,null,null,null,5,1,2,"05","01","02","05|01|02","Home Affairs","Administration","Management Support Services",null,null,null,null,null,null,null,null,null,null,null,null,null,null,"2024/25 Total change","Column67","2025/26 Total change"]
[null,null,null,null,null,5,1,3,"05","01","03","05|01|03","Home Affairs","Administration","Corporate Services",null,null,null,null,null,null,null,null,null,null,null,null,null,null,"2025/26 Total change","Column68","2026/27 Total change"]
[null,null,null,null,null,5,1,4,"05","01","04","05|01|04","Home Affairs","Administration","Transversal Information Technology Management",null,null,null,null,null,null,null,null,null,null,null,null,null,null,"2026/27 Total change","Column69","2027/28 Total change"]
[null,null,null,null,null,5,1,5,"05","01","05","05|01|05","Home Affairs","Administration","Office Accommodation",null,null,null,null,null,null,null,null,null,null,null,null,null,null,"2027/28 Total change","Column70","2028/29 Total change"]
[null,null,null,null,null,5,2,1,"05","02","01","05|02|01","Home Affairs","Citizen Affairs","Citizen Affairs Management",null,null,null,null,null,null,null,null,null,null,null,null,null,null,"2024/25 Revised baseline","Column71","2025/26 Revised baseline"]
[null,null,null,null,null,5,2,2,"05","02","02","05|02|02","Home Affairs","Citizen Affairs","Status Services",null,null,null,null,null,null,null,null,null,null,null,null,null,null,"2025/26 Revised baseline","Column72","2026/27 Revised baseline"]
[null,null,null,null,null,5,2,3,"05","02","03","05|02|03","Home Affairs","Citizen Affairs","Identification Services",null,null,null,null,null,null,null,null,null,null,null,null,null,null,"2026/27 Revised baseline","Column73","2027/28 Revised baseline"]
[null,null,null,null,null,5,2,4,"05","02","04","05|02|04","Home Affairs","Citizen Affairs","Service Delivery to Provinces",null,null,null,null,null,null,null,null,null,null,null,null,null,null,"2027/28 Revised baseline","Column74","2028/29 Revised baseline"]
[null,null,null,null,null,5,3,1,"05","03","01","05|03|01","Home Affairs","Immigration Affairs","Immigration Affairs Management"]
[null,null,null,null,null,5,3,2,"05","03","02","05|03|02","Home Affairs","Immigration Affairs","Admission Services"]
[null,null,null,null,null,5,3,3,"05","03","03","05|03|03","Home Affairs","Immigration Affairs","Immigration Services"]
[null,null,null,null,null,5,3,4,"05","03","04","05|03|04","Home Affairs","Immigration Affairs","Asylum Seekers"]
[null,null,null,null,null,5,4,1,"05","04","01","05|04|01","Home Affairs","Institutional Support and Transfers","Border Management Authority"]
[null,null,null,null,null,5,4,2,"05","04","02","05|04|02","Home Affairs","Institutional Support and Transfers","Electoral Commission"]
[null,null,null,null,null,5,4,3,"05","04","03","05|04|03","Home Affairs","Institutional Support and Transfers","Represented Political Parties' Fund"]
[null,null,null,null,null,6,1,1,"06","01","01","06|01|01","International Relations and Cooperation","Administration","Ministry"]
[null,null,null,null,null,6,1,2,"06","01","02","06|01|02","International Relations and Cooperation","Administration","Departmental Management"]
[null,null,null,null,null,6,1,3,"06","01","03","06|01|03","International Relations and Cooperation","Administration","Audit Services"]
[null,null,null,null,null,6,1,4,"06","01","04","06|01|04","International Relations and Cooperation","Administration","Financial Management"]
[null,null,null,null,null,6,1,5,"06","01","05","06|01|05","International Relations and Cooperation","Administration","Corporate Services"]
[null,null,null,null,null,6,1,6,"06","01","06","06|01|06","International Relations and Cooperation","Administration","Diplomatic Training, Research and Development"]
[null,null,null,null,null,6,1,7,"06","01","07","06|01|07","International Relations and Cooperation","Administration","Foreign Fixed Assets Management"]
[null,null,null,null,null,6,1,8,"06","01","08","06|01|08","International Relations and Cooperation","Administration","Office Accommodation"]
[null,null,null,null,null,6,1,9,"06","01","09","06|01|09","International Relations and Cooperation","Administration","African Renaissance and International Cooperation Fund Secretariat"]
[null,null,null,null,null,6,2,1,"06","02","01","06|02|01","International Relations and Cooperation","International Relations","Africa"]
[null,null,null,null,null,6,2,2,"06","02","02","06|02|02","International Relations and Cooperation","International Relations","Asia and Middle East"]
[null,null,null,null,null,6,2,3,"06","02","03","06|02|03","International Relations and Cooperation","International Relations","Americas and Caribbean"]
[null,null,null,null,null,6,2,4,"06","02","04","06|02|04","International Relations and Cooperation","International Relations","Europe"]
[null,null,null,null,null,6,3,1,"06","03","01","06|03|01","International Relations and Cooperation","International Cooperation","Global System of Governance"]
[null,null,null,null,null,6,3,2,"06","03","02","06|03|02","International Relations and Cooperation","International Cooperation","Continental Cooperation"]
[null,null,null,null,null,6,3,3,"06","03","03","06|03|03","International Relations and Cooperation","International Cooperation","South-South Cooperation"]
[null,null,null,null,null,6,3,4,"06","03","04","06|03|04","International Relations and Cooperation","International Cooperation","North-South Dialogue"]
[null,null,null,null,null,6,4,1,"06","04","01","06|04|01","International Relations and Cooperation","Public Diplomacy and Protocol Services","Public Diplomacy"]
[null,null,null,null,null,6,4,2,"06","04","02","06|04|02","International Relations and Cooperation","Public Diplomacy and Protocol Services","Protocol Services"]
[null,null,null,null,null,6,5,1,"06","05","01","06|05|01","International Relations and Cooperation","International Transfers","Departmental Agencies"]
[null,null,null,null,null,6,5,2,"06","05","02","06|05|02","International Relations and Cooperation","International Transfers","Membership contribution"]
[null,null,null,null,null,7,1,1,"07","01","01","07|01|01","National School of Government","Administration","Management"]
[null,null,null,null,null,7,1,2,"07","01","02","07|01|02","National School of Government","Administration","Corporate Services"]
[null,null,null,null,null,7,1,3,"07","01","03","07|01|03","National School of Government","Administration","Property Management"]
[null,null,null,null,null,7,2,1,"07","02","01","07|02|01","National School of Government","Public Sector Organisational and Staff Development","National School of Government Training Trading Account"]
[null,null,null,null,null,8,1,1,"08","01","01","08|01|01","National Treasury","Administration","Ministry"]
[null,null,null,null,null,8,1,2,"08","01","02","08|01|02","National Treasury","Administration","Departmental Management"]
[null,null,null,null,null,8,1,3,"08","01","03","08|01|03","National Treasury","Administration","Corporate Services"]
[null,null,null,null,null,8,1,4,"08","01","04","08|01|04","National Treasury","Administration","Enterprise-wide Risk Management"]
[null,null,null,null,null,8,1,5,"08","01","05","08|01|05","National Treasury","Administration","Financial Administration"]
[null,null,null,null,null,8,1,6,"08","01","06","08|01|06","National Treasury","Administration","Legal Services"]
[null,null,null,null,null,8,1,7,"08","01","07","08|01|07","National Treasury","Administration","Internal Audit"]
[null,null,null,null,null,8,1,8,"08","01","08","08|01|08","National Treasury","Administration","Communications"]
[null,null,null,null,null,8,1,9,"08","01","09","08|01|09","National Treasury","Administration","Office Accommodation"]
[null,null,null,null,null,8,2,1,"08","02","01","08|02|01","National Treasury","Economic Policy, Tax, Financial Regulation and Research","Programme Management for Economic Policy, Tax, Financial Regulation and Research"]
[null,null,null,null,null,8,2,2,"08","02","02","08|02|02","National Treasury","Economic Policy, Tax, Financial Regulation and Research","Financial Sector Policy"]
[null,null,null,null,null,8,2,3,"08","02","03","08|02|03","National Treasury","Economic Policy, Tax, Financial Regulation and Research","Tax Policy"]
[null,null,null,null,null,8,2,4,"08","02","04","08|02|04","National Treasury","Economic Policy, Tax, Financial Regulation and Research","Economic Policy"]
[null,null,null,null,null,8,2,5,"08","02","05","08|02|05","National Treasury","Economic Policy, Tax, Financial Regulation and Research","Cooperative Banks Development Agency"]
[null,null,null,null,null,8,3,1,"08","03","01","08|03|01","National Treasury","Public Finance and Budget Management","Programme Management for Public Finance and Budget Management"]
[null,null,null,null,null,8,3,2,"08","03","02","08|03|02","National Treasury","Public Finance and Budget Management","Public Finance"]
[null,null,null,null,null,8,3,3,"08","03","03","08|03|03","National Treasury","Public Finance and Budget Management","Budget Office and Coordination"]
[null,null,null,null,null,8,3,4,"08","03","04","08|03|04","National Treasury","Public Finance and Budget Management","Intergovernmental Relations"]
[null,null,null,null,null,8,3,5,"08","03","05","08|03|05","National Treasury","Public Finance and Budget Management","Financial and Fiscal Commission"]
[null,null,null,null,null,8,3,6,"08","03","06","08|03|06","National Treasury","Public Finance and Budget Management","Facilitation of Conditional Grants"]
[null,null,null,null,null,8,3,7,"08","03","07","08|03|07","National Treasury","Public Finance and Budget Management","Catalytic Infrastructure and Development Support Programme"]
[null,null,null,null,null,8,3,8,"08","03","08","08|03|08","National Treasury","Public Finance and Budget Management","Government Technical Advisory Centre"]
[null,null,null,null,null,8,4,1,"08","04","01","08|04|01","National Treasury","Asset and Liability Management","Programme Management for Asset and Liability Management"]
[null,null,null,null,null,8,4,2,"08","04","02","08|04|02","National Treasury","Asset and Liability Management","State-owned Entity Financial Management and Governance"]
[null,null,null,null,null,8,4,3,"08","04","03","08|04|03","National Treasury","Asset and Liability Management","Government Debt Management"]
[null,null,null,null,null,8,4,4,"08","04","04","08|04|04","National Treasury","Asset and Liability Management","Financial Operations"]
[null,null,null,null,null,8,4,5,"08","04","05","08|04|05","National Treasury","Asset and Liability Management","Strategy and Risk Management"]
[null,null,null,null,null,8,5,1,"08","05","01","08|05|01","National Treasury","Financial Accounting and Supply Chain Management Systems","Programme Management for Financial Accounting and Supply Chain Management Systems"]
[null,null,null,null,null,8,5,2,"08","05","02","08|05|02","National Treasury","Financial Accounting and Supply Chain Management Systems","Office of the Chief Procurement Officer"]
[null,null,null,null,null,8,5,3,"08","05","03","08|05|03","National Treasury","Financial Accounting and Supply Chain Management Systems","Financial Systems"]
[null,null,null,null,null,8,5,4,"08","05","04","08|05|04","National Treasury","Financial Accounting and Supply Chain Management Systems","Financial Reporting for National Accounts"]
[null,null,null,null,null,8,5,5,"08","05","05","08|05|05","National Treasury","Financial Accounting and Supply Chain Management Systems","Financial Management Policy and Compliance Improvement"]
[null,null,null,null,null,8,5,6,"08","05","06","08|05|06","National Treasury","Financial Accounting and Supply Chain Management Systems","Audit Statutory Bodies"]
[null,null,null,null,null,8,5,7,"08","05","07","08|05|07","National Treasury","Financial Accounting and Supply Chain Management Systems","Service Charges: Commercial Banks"]
[null,null,null,null,null,8,6,1,"08","06","01","08|06|01","National Treasury","International Financial Relations","Programme Management for International Financial Relations"]
[null,null,null,null,null,8,6,2,"08","06","02","08|06|02","National Treasury","International Financial Relations","International Economic Cooperation"]
[null,null,null,null,null,8,6,3,"08","06","03","08|06|03","National Treasury","International Financial Relations","African Integration and Support"]
[null,null,null,null,null,8,6,4,"08","06","04","08|06|04","National Treasury","International Financial Relations","International Development Funding Institutions"]
[null,null,null,null,null,8,6,5,"08","06","05","08|06|05","National Treasury","International Financial Relations","International Projects"]
[null,null,null,null,null,8,7,1,"08","07","01","08|07|01","National Treasury","Civil and Military Pensions, Contributions to Funds and Other Benefits","Government Pensions Administration Agency"]
[null,null,null,null,null,8,7,2,"08","07","02","08|07|02","National Treasury","Civil and Military Pensions, Contributions to Funds and Other Benefits","Civil Pensions and Contributions to Funds"]
[null,null,null,null,null,8,7,3,"08","07","03","08|07|03","National Treasury","Civil and Military Pensions, Contributions to Funds and Other Benefits","Military Pensions and Other Benefits"]
[null,null,null,null,null,8,8,1,"08","08","01","08|08|01","National Treasury","Revenue Administration","South African Revenue Service"]
[null,null,null,null,null,8,9,1,"08","09","01","08|09|01","National Treasury","Financial Intelligence and State Security","Financial Intelligence Centre"]
[null,null,null,null,null,8,9,2,"08","09","02","08|09|02","National Treasury","Financial Intelligence and State Security","Secret Services"]
[null,null,null,null,null,8,16,1,"08","16","01","08|16|01","National Treasury","Direct charge against the National Revenue Fund","Provincial Equitable Share"]
[null,null,null,null,null,8,16,2,"08","16","02","08|16|02","National Treasury","Direct charge against the National Revenue Fund","Debt-service costs"]
[null,null,null,null,null,8,16,3,"08","16","03","08|16|03","National Treasury","Direct charge against the National Revenue Fund","General Fuel Levy Sharing with Metropolitan Municipalities"]
[null,null,null,null,null,8,16,4,"08","16","04","08|16|04","National Treasury","Direct charge against the National Revenue Fund","National Revenue Fund payments"]
[null,null,null,null,null,8,16,5,"08","16","05","08|16|05","National Treasury","Direct charge against the National Revenue Fund","Auditor-General of South Africa"]
[null,null,null,null,null,8,16,6,"08","16","06","08|16|06","National Treasury","Direct charge against the National Revenue Fund","Public Finance Management Act (1999) section 70 payment: Land and Agricultural Development Bank of South Africa"]
[null,null,null,null,null,9,1,1,"09","01","01","09|01|01","Planning, Monitoring and Evaluation","Administration","Ministerial Support"]
[null,null,null,null,null,9,1,2,"09","01","02","09|01|02","Planning, Monitoring and Evaluation","Administration","Departmental Management"]
[null,null,null,null,null,9,1,3,"09","01","03","09|01|03","Planning, Monitoring and Evaluation","Administration","Corporate and Financial Services"]
[null,null,null,null,null,9,2,1,"09","02","01","09|02|01","Planning, Monitoring and Evaluation","National Planning Coordination","Management: National Planning Coordination"]
[null,null,null,null,null,9,2,2,"09","02","02","09|02|02","Planning, Monitoring and Evaluation","National Planning Coordination","National Planning Coordination"]
[null,null,null,null,null,9,2,3,"09","02","03","09|02|03","Planning, Monitoring and Evaluation","National Planning Coordination","National Planning Commission Secretariat"]
[null,null,null,null,null,9,3,1,"09","03","01","09|03|01","Planning, Monitoring and Evaluation","Sector Monitoring Services","Management: Sector Monitoring Services"]
[null,null,null,null,null,9,3,2,"09","03","02","09|03|02","Planning, Monitoring and Evaluation","Sector Monitoring Services","Outcomes Monitoring and Support"]
[null,null,null,null,null,9,3,3,"09","03","03","09|03|03","Planning, Monitoring and Evaluation","Sector Monitoring Services","Intervention Support"]
[null,null,null,null,null,9,4,1,"09","04","01","09|04|01","Planning, Monitoring and Evaluation","Public Sector Monitoring and Capacity Development","Management: Public Sector Monitoring and Capacity Development"]
[null,null,null,null,null,9,4,2,"09","04","02","09|04|02","Planning, Monitoring and Evaluation","Public Sector Monitoring and Capacity Development","Public Service Monitoring and Capacity Development"]
[null,null,null,null,null,9,5,1,"09","05","01","09|05|01","Planning, Monitoring and Evaluation","Evidence and Knowledge Systems","Management: Evidence and Knowledge Systems"]
[null,null,null,null,null,9,5,2,"09","05","02","09|05|02","Planning, Monitoring and Evaluation","Evidence and Knowledge Systems","Evaluation, Research, Knowledge and Data Systems"]
[null,null,null,null,null,10,1,1,"10","01","01","10|01|01","Public Enterprises","Administration","Ministry"]
[null,null,null,null,null,10,1,2,"10","01","02","10|01|02","Public Enterprises","Administration","Management"]
[null,null,null,null,null,10,1,3,"10","01","03","10|01|03","Public Enterprises","Administration","Communications"]
[null,null,null,null,null,10,1,4,"10","01","04","10|01|04","Public Enterprises","Administration","Chief Financial Officer"]
[null,null,null,null,null,10,1,5,"10","01","05","10|01|05","Public Enterprises","Administration","Human Resources"]
[null,null,null,null,null,10,1,6,"10","01","06","10|01|06","Public Enterprises","Administration","Internal Audit"]
[null,null,null,null,null,10,1,7,"10","01","07","10|01|07","Public Enterprises","Administration","Corporate Services"]
[null,null,null,null,null,10,1,8,"10","01","08","10|01|08","Public Enterprises","Administration","Office Accommodation"]
[null,null,null,null,null,10,2,1,"10","02","01","10|02|01","Public Enterprises","State-owned Companies Governance Assurance and Performance","Management"]
[null,null,null,null,null,10,2,2,"10","02","02","10|02|02","Public Enterprises","State-owned Companies Governance Assurance and Performance","Legal"]
[null,null,null,null,null,10,2,3,"10","02","03","10|02|03","Public Enterprises","State-owned Companies Governance Assurance and Performance","Governance"]
[null,null,null,null,null,10,2,4,"10","02","04","10|02|04","Public Enterprises","State-owned Companies Governance Assurance and Performance","Financial Assessment and Investment Support"]
[null,null,null,null,null,10,3,1,"10","03","01","10|03|01","Public Enterprises","Business Enhancement, Transformation and Industrialisation","Energy Resources"]
[null,null,null,null,null,10,3,2,"10","03","02","10|03|02","Public Enterprises","Business Enhancement, Transformation and Industrialisation","Research and Economic Modelling"]
[null,null,null,null,null,10,3,3,"10","03","03","10|03|03","Public Enterprises","Business Enhancement, Transformation and Industrialisation","Transport and Defence"]
[null,null,null,null,null,10,3,4,"10","03","04","10|03|04","Public Enterprises","Business Enhancement, Transformation and Industrialisation","Business Enhancement Services"]
[null,null,null,null,null,10,16,1,"10","16","01","10|16|01","Public Enterprises","Direct charge against the National Revenue Fund","Section 70 of the Public Finance Management Act (1999) payment: South African Express Airways SOC Ltd"]
[null,null,null,null,null,10,16,2,"10","16","02","10|16|02","Public Enterprises","Direct charge against the National Revenue Fund","Section 70 of the Public Finance Management Act (1999) payment: South African Airways SOC Ltd"]
[null,null,null,null,null,10,16,3,"10","16","03","10|16|03","Public Enterprises","Direct charge against the National Revenue Fund","Section 70 of the Public Finance Management Act (1999) payment: Denel SOC Ltd"]
[null,null,null,null,null,11,1,1,"11","01","01","11|01|01","Public Service and Administration","Administration","Ministry"]
[null,null,null,null,null,11,1,2,"11","01","02","11|01|02","Public Service and Administration","Administration","Departmental Management"]
[null,null,null,null,null,11,1,3,"11","01","03","11|01|03","Public Service and Administration","Administration","Corporate Services"]
[null,null,null,null,null,11,1,4,"11","01","04","11|01|04","Public Service and Administration","Administration","Finance Administration"]
[null,null,null,null,null,11,1,5,"11","01","05","11|01|05","Public Service and Administration","Administration","Internal Audit"]
[null,null,null,null,null,11,1,6,"11","01","06","11|01|06","Public Service and Administration","Administration","Legal Services"]
[null,null,null,null,null,11,1,7,"11","01","07","11|01|07","Public Service and Administration","Administration","International Relations and Donor Funding"]
[null,null,null,null,null,11,1,8,"11","01","08","11|01|08","Public Service and Administration","Administration","Office Accommodation"]
[null,null,null,null,null,11,2,1,"11","02","01","11|02|01","Public Service and Administration","Human Resource Management and Development","Management: Human Resource Management and Development"]
[null,null,null,null,null,11,2,2,"11","02","02","11|02|02","Public Service and Administration","Human Resource Management and Development","Office of Standards and Compliance"]
[null,null,null,null,null,11,2,3,"11","02","03","11|02|03","Public Service and Administration","Human Resource Management and Development","Human Resource Planning, Employment and Performance Management"]
[null,null,null,null,null,11,2,4,"11","02","04","11|02|04","Public Service and Administration","Human Resource Management and Development","Human Resource Development"]
[null,null,null,null,null,11,2,5,"11","02","05","11|02|05","Public Service and Administration","Human Resource Management and Development","Transformation and Workplace Environment Management"]
[null,null,null,null,null,11,3,1,"11","03","01","11|03|01","Public Service and Administration","Negotiations, Labour Relations and Remuneration Management","Management: Negotiations, Labour Relations and Remuneration Management"]
[null,null,null,null,null,11,3,2,"11","03","02","11|03|02","Public Service and Administration","Negotiations, Labour Relations and Remuneration Management","Negotiations, Labour Relations and Dispute Management"]
[null,null,null,null,null,11,3,3,"11","03","03","11|03|03","Public Service and Administration","Negotiations, Labour Relations and Remuneration Management","Remuneration, Employment Conditions and Human Resource Systems"]
[null,null,null,null,null,11,3,4,"11","03","04","11|03|04","Public Service and Administration","Negotiations, Labour Relations and Remuneration Management","Macro Benefits and Government Employees Housing Scheme"]
[null,null,null,null,null,11,3,5,"11","03","05","11|03|05","Public Service and Administration","Negotiations, Labour Relations and Remuneration Management","Organisational Development, Job Grading and Macro Organisation of the State"]
[null,null,null,null,null,11,3,6,"11","03","06","11|03|06","Public Service and Administration","Negotiations, Labour Relations and Remuneration Management","Public Administration Ethics, Integrity and Disciplinary Technical Assistance Unit"]
[null,null,null,null,null,11,4,1,"11","04","01","11|04|01","Public Service and Administration","e-Government Services and Information Management","Management: e-Government Services and Information Management"]
[null,null,null,null,null,11,4,2,"11","04","02","11|04|02","Public Service and Administration","e-Government Services and Information Management","e-Enablement and ICT Service Infrastructure Management"]
[null,null,null,null,null,11,4,3,"11","04","03","11|04|03","Public Service and Administration","e-Government Services and Information Management","Information and Stakeholder Management"]
[null,null,null,null,null,11,4,4,"11","04","04","11|04|04","Public Service and Administration","e-Government Services and Information Management","ICT Governance and Management"]
[null,null,null,null,null,11,4,5,"11","04","05","11|04|05","Public Service and Administration","e-Government Services and Information Management","Knowledge Management and Innovation"]
[null,null,null,null,null,11,5,1,"11","05","01","11|05|01","Public Service and Administration","Government Service Access and Improvement","Management: Government Service Access and Improvement"]
[null,null,null,null,null,11,5,2,"11","05","02","11|05|02","Public Service and Administration","Government Service Access and Improvement","Operations Management"]
[null,null,null,null,null,11,5,3,"11","05","03","11|05|03","Public Service and Administration","Government Service Access and Improvement","Service Delivery Improvement, Citizen Relations and Public Participation"]
[null,null,null,null,null,11,5,4,"11","05","04","11|05|04","Public Service and Administration","Government Service Access and Improvement","Service Access"]
[null,null,null,null,null,11,5,5,"11","05","05","11|05|05","Public Service and Administration","Government Service Access and Improvement","International Cooperation and Stakeholder Relations"]
[null,null,null,null,null,11,5,6,"11","05","06","11|05|06","Public Service and Administration","Government Service Access and Improvement","Centre for Public Service Innovation"]
[null,null,null,null,null,12,1,1,"12","01","01","12|01|01","Public Service Commission","Administration","Public Service Commission"]
[null,null,null,null,null,12,1,2,"12","01","02","12|01|02","Public Service Commission","Administration","Management"]
[null,null,null,null,null,12,1,3,"12","01","03","12|01|03","Public Service Commission","Administration","Corporate Services"]
[null,null,null,null,null,12,1,4,"12","01","04","12|01|04","Public Service Commission","Administration","Property Management"]
[null,null,null,null,null,12,1,5,"12","01","05","12|01|05","Public Service Commission","Administration","Chief Financial Officer"]
[null,null,null,null,null,12,2,1,"12","02","01","12|02|01","Public Service Commission","Leadership and Management Practices","Labour Relations Improvement"]
[null,null,null,null,null,12,2,2,"12","02","02","12|02|02","Public Service Commission","Leadership and Management Practices","Leadership and Human Resource Reviews"]
[null,null,null,null,null,12,2,3,"12","02","03","12|02|03","Public Service Commission","Leadership and Management Practices","Programme Management: Leadership and Management Practices"]
[null,null,null,null,null,12,3,1,"12","03","01","12|03|01","Public Service Commission","Monitoring and Evaluation","Governance Monitoring"]
[null,null,null,null,null,12,3,2,"12","03","02","12|03|02","Public Service Commission","Monitoring and Evaluation","Service Delivery and Compliance Evaluations"]
[null,null,null,null,null,12,3,3,"12","03","03","12|03|03","Public Service Commission","Monitoring and Evaluation","Programme Management: Monitoring and Evaluation"]
[null,null,null,null,null,12,4,1,"12","04","01","12|04|01","Public Service Commission","Integrity and Anti-corruption","Public Administration Investigations"]
[null,null,null,null,null,12,4,2,"12","04","02","12|04|02","Public Service Commission","Integrity and Anti-corruption","Professional Ethics"]
[null,null,null,null,null,12,4,3,"12","04","03","12|04|03","Public Service Commission","Integrity and Anti-corruption","Programme Management: Integrity and Anti-corruption"]
[null,null,null,null,null,12,5,1,"12","05","01","12|05|01","Public Service Commission","Provincial Coordination","Provincial Operations"]
[null,null,null,null,null,13,1,1,"13","01","01","13|01|01","Public Works and Infrastructure","Administration","Ministry"]
[null,null,null,null,null,13,1,2,"13","01","02","13|01|02","Public Works and Infrastructure","Administration","Management"]
[null,null,null,null,null,13,1,3,"13","01","03","13|01|03","Public Works and Infrastructure","Administration","Corporate Services"]
[null,null,null,null,null,13,1,4,"13","01","04","13|01|04","Public Works and Infrastructure","Administration","Finance and Supply Chain Management"]
[null,null,null,null,null,13,1,5,"13","01","05","13|01|05","Public Works and Infrastructure","Administration","Office Accommodation"]
[null,null,null,null,null,13,2,1,"13","02","01","13|02|01","Public Works and Infrastructure","Intergovernmental Coordination","Monitoring, Evaluation and Reporting"]
[null,null,null,null,null,13,2,2,"13","02","02","13|02|02","Public Works and Infrastructure","Intergovernmental Coordination","Intergovernmental Relations and Coordination"]
[null,null,null,null,null,13,2,3,"13","02","03","13|02|03","Public Works and Infrastructure","Intergovernmental Coordination","Professional Services"]
[null,null,null,null,null,13,3,1,"13","03","01","13|03|01","Public Works and Infrastructure","Expanded Public Works Programme","Expanded Public Works Programme: Monitoring and Evaluation"]
[null,null,null,null,null,13,3,2,"13","03","02","13|03|02","Public Works and Infrastructure","Expanded Public Works Programme","Expanded Public Works Programme: Infrastructure"]
[null,null,null,null,null,13,3,3,"13","03","03","13|03|03","Public Works and Infrastructure","Expanded Public Works Programme","Expanded Public Works Programme: Operations"]
[null,null,null,null,null,13,3,4,"13","03","04","13|03|04","Public Works and Infrastructure","Expanded Public Works Programme","Expanded Public Works Programme: Partnership Support"]
[null,null,null,null,null,13,3,5,"13","03","05","13|03|05","Public Works and Infrastructure","Expanded Public Works Programme","Expanded Public Works Programme: Public Employment Coordinating Commission"]
[null,null,null,null,null,13,4,1,"13","04","01","13|04|01","Public Works and Infrastructure","Property and Construction Industry Policy and Research","Construction Policy Development Programme"]
[null,null,null,null,null,13,4,2,"13","04","02","13|04|02","Public Works and Infrastructure","Property and Construction Industry Policy and Research","Property Policy Development Programme"]
[null,null,null,null,null,13,4,3,"13","04","03","13|04|03","Public Works and Infrastructure","Property and Construction Industry Policy and Research","Construction Industry Development Board"]
[null,null,null,null,null,13,4,4,"13","04","04","13|04|04","Public Works and Infrastructure","Property and Construction Industry Policy and Research","Council for the Built Environment"]
[null,null,null,null,null,13,4,5,"13","04","05","13|04|05","Public Works and Infrastructure","Property and Construction Industry Policy and Research","Independent Development Trust"]
[null,null,null,null,null,13,4,6,"13","04","06","13|04|06","Public Works and Infrastructure","Property and Construction Industry Policy and Research","Construction Education and Training Authority"]
[null,null,null,null,null,13,4,7,"13","04","07","13|04|07","Public Works and Infrastructure","Property and Construction Industry Policy and Research","Property Management Trading Entity"]
[null,null,null,null,null,13,4,8,"13","04","08","13|04|08","Public Works and Infrastructure","Property and Construction Industry Policy and Research","Assistance to Organisations for the Preservation of National Memorials"]
[null,null,null,null,null,13,4,9,"13","04","09","13|04|09","Public Works and Infrastructure","Property and Construction Industry Policy and Research","Infrastructure Development Coordination"]
[null,null,null,null,null,13,5,1,"13","05","01","13|05|01","Public Works and Infrastructure","Prestige Policy","Prestige Accommodation and State Functions"]
[null,null,null,null,null,13,5,2,"13","05","02","13|05|02","Public Works and Infrastructure","Prestige Policy","Parliamentary Villages Management Board"]
[null,null,null,null,null,14,1,1,"14","01","01","14|01|01","Statistics South Africa","Administration","Departmental Management"]
[null,null,null,null,null,14,1,2,"14","01","02","14|01|02","Statistics South Africa","Administration","Corporate Services"]
[null,null,null,null,null,14,1,3,"14","01","03","14|01|03","Statistics South Africa","Administration","Financial Administration"]
[null,null,null,null,null,14,1,4,"14","01","04","14|01|04","Statistics South Africa","Administration","Internal Audit"]
[null,null,null,null,null,14,1,5,"14","01","05","14|01|05","Statistics South Africa","Administration","Office Accommodation"]
[null,null,null,null,null,14,2,1,"14","02","01","14|02|01","Statistics South Africa","Economic Statistics","Programme Management for Economic Statistics"]
[null,null,null,null,null,14,2,2,"14","02","02","14|02|02","Statistics South Africa","Economic Statistics","Business Cycle Indicators"]
[null,null,null,null,null,14,2,3,"14","02","03","14|02|03","Statistics South Africa","Economic Statistics","Structural Industry Statistics"]
[null,null,null,null,null,14,2,4,"14","02","04","14|02|04","Statistics South Africa","Economic Statistics","Price Statistics"]
[null,null,null,null,null,14,2,5,"14","02","05","14|02|05","Statistics South Africa","Economic Statistics","Private Sector Finance Statistics"]
[null,null,null,null,null,14,2,6,"14","02","06","14|02|06","Statistics South Africa","Economic Statistics","Government Finance Statistics"]
[null,null,null,null,null,14,2,7,"14","02","07","14|02|07","Statistics South Africa","Economic Statistics","National Accounts"]
[null,null,null,null,null,14,3,1,"14","03","01","14|03|01","Statistics South Africa","Population and Social Statistics","Programme Management for Population and Social Statistics"]
[null,null,null,null,null,14,3,2,"14","03","02","14|03|02","Statistics South Africa","Population and Social Statistics","Demographic and Population Statistics"]
[null,null,null,null,null,14,3,3,"14","03","03","14|03|03","Statistics South Africa","Population and Social Statistics","Health and Vital Statistics"]
[null,null,null,null,null,14,3,4,"14","03","04","14|03|04","Statistics South Africa","Population and Social Statistics","Social Statistics"]
[null,null,null,null,null,14,3,5,"14","03","05","14|03|05","Statistics South Africa","Population and Social Statistics","Labour Statistics"]
[null,null,null,null,null,14,3,6,"14","03","06","14|03|06","Statistics South Africa","Population and Social Statistics","Poverty and Inequality Statistics"]
[null,null,null,null,null,14,4,1,"14","04","01","14|04|01","Statistics South Africa","Methodology and Statistical Infrastructure","Programme Management for Methodology and Statistical Infrastructure"]
[null,null,null,null,null,14,4,2,"14","04","02","14|04|02","Statistics South Africa","Methodology and Statistical Infrastructure","Statistical Methods"]
[null,null,null,null,null,14,4,3,"14","04","03","14|04|03","Statistics South Africa","Methodology and Statistical Infrastructure","Statistical Standards"]
[null,null,null,null,null,14,4,4,"14","04","04","14|04|04","Statistics South Africa","Methodology and Statistical Infrastructure","Business Register"]
[null,null,null,null,null,14,4,5,"14","04","05","14|04|05","Statistics South Africa","Methodology and Statistical Infrastructure","Geography"]
[null,null,null,null,null,14,4,6,"14","04","06","14|04|06","Statistics South Africa","Methodology and Statistical Infrastructure","Survey Monitoring and Evaluation"]
[null,null,null,null,null,14,4,7,"14","04","07","14|04|07","Statistics South Africa","Methodology and Statistical Infrastructure","Innovation and Research"]
[null,null,null,null,null,14,5,1,"14","05","01","14|05|01","Statistics South Africa","Statistical Support and Informatics","Programme Management for Statistical Support and Informatics"]
[null,null,null,null,null,14,5,2,"14","05","02","14|05|02","Statistics South Africa","Statistical Support and Informatics","Advocacy and Dissemination"]
[null,null,null,null,null,14,5,3,"14","05","03","14|05|03","Statistics South Africa","Statistical Support and Informatics","Business Modernisation"]
[null,null,null,null,null,14,5,4,"14","05","04","14|05|04","Statistics South Africa","Statistical Support and Informatics","Publication Services"]
[null,null,null,null,null,14,5,5,"14","05","05","14|05|05","Statistics South Africa","Statistical Support and Informatics","Information, Communication and Technology"]
[null,null,null,null,null,14,5,6,"14","05","06","14|05|06","Statistics South Africa","Statistical Support and Informatics","Analytical Studies"]
[null,null,null,null,null,14,6,1,"14","06","01","14|06|01","Statistics South Africa","Statistical Operations and Provincial Coordination","Programme Management for Statistical Operations and Provincial Coordination"]
[null,null,null,null,null,14,6,2,"14","06","02","14|06|02","Statistics South Africa","Statistical Operations and Provincial Coordination","Provincial and District Offices"]
[null,null,null,null,null,14,6,3,"14","06","03","14|06|03","Statistics South Africa","Statistical Operations and Provincial Coordination","Data Operations"]
[null,null,null,null,null,14,6,4,"14","06","04","14|06|04","Statistics South Africa","Statistical Operations and Provincial Coordination","Household Survey and Censuses"]
[null,null,null,null,null,14,7,1,"14","07","01","14|07|01","Statistics South Africa","South African National Statistics System","Programme Management for the South African National Statistics System"]
[null,null,null,null,null,14,7,2,"14","07","02","14|07|02","Statistics South Africa","South African National Statistics System","Economic Subsystem"]
[null,null,null,null,null,14,7,3,"14","07","03","14|07|03","Statistics South Africa","South African National Statistics System","Social Subsystem"]
[null,null,null,null,null,14,7,4,"14","07","04","14|07|04","Statistics South Africa","South African National Statistics System","Independent Quality Assessment"]
[null,null,null,null,null,14,7,5,"14","07","05","14|07|05","Statistics South Africa","South African National Statistics System","Statistical Reporting"]
[null,null,null,null,null,14,7,6,"14","07","06","14|07|06","Statistics South Africa","South African National Statistics System","Data and Information Management"]
[null,null,null,null,null,15,1,1,"15","01","01","15|01|01","Traditional Affairs","Administration","Ministry"]
[null,null,null,null,null,15,1,2,"15","01","02","15|01|02","Traditional Affairs","Administration","Management of Traditional Affairs"]
[null,null,null,null,null,15,1,3,"15","01","03","15|01|03","Traditional Affairs","Administration","Corporate Services"]
[null,null,null,null,null,15,1,4,"15","01","04","15|01|04","Traditional Affairs","Administration","Internal Audit"]
[null,null,null,null,null,15,2,1,"15","02","01","15|02|01","Traditional Affairs","Research, Policy and Legislation","Management"]
[null,null,null,null,null,15,2,2,"15","02","02","15|02|02","Traditional Affairs","Research, Policy and Legislation","Policy and Legislation"]
[null,null,null,null,null,15,2,3,"15","02","03","15|02|03","Traditional Affairs","Research, Policy and Legislation","Research and Information Management"]
[null,null,null,null,null,15,3,1,"15","03","01","15|03|01","Traditional Affairs","Institutional Support and Coordination","Management"]
[null,null,null,null,null,15,3,2,"15","03","02","15|03|02","Traditional Affairs","Institutional Support and Coordination","Institutional Development and Capacity Building"]
[null,null,null,null,null,15,3,3,"15","03","03","15|03|03","Traditional Affairs","Institutional Support and Coordination","Intergovernmental Relations and Partnerships"]
[null,null,null,null,null,15,3,4,"15","03","04","15|03|04","Traditional Affairs","Institutional Support and Coordination","National House of Traditional Leaders"]
[null,null,null,null,null,15,3,5,"15","03","05","15|03|05","Traditional Affairs","Institutional Support and Coordination","Commission for the Promotion and Protection of the Rights of Cultural, Religious and Linguistic Communities"]
[null,null,null,null,null,15,3,6,"15","03","06","15|03|06","Traditional Affairs","Institutional Support and Coordination","Disputes and Claims Resolution"]
[null,null,null,null,null,16,1,1,"16","01","01","16|01|01","Basic Education","Administration","Ministry"]
[null,null,null,null,null,16,1,2,"16","01","02","16|01|02","Basic Education","Administration","Department Management"]
[null,null,null,null,null,16,1,3,"16","01","03","16|01|03","Basic Education","Administration","Corporate Services"]
[null,null,null,null,null,16,1,4,"16","01","04","16|01|04","Basic Education","Administration","Office of the Chief Financial Officer"]
[null,null,null,null,null,16,1,5,"16","01","05","16|01|05","Basic Education","Administration","Internal Audit"]
[null,null,null,null,null,16,1,6,"16","01","06","16|01|06","Basic Education","Administration","Office Accommodation"]
[null,null,null,null,null,16,2,1,"16","02","01","16|02|01","Basic Education","Curriculum Policy, Support and Monitoring","Programme Management: Curriculum Policy, Support and Monitoring"]
[null,null,null,null,null,16,2,2,"16","02","02","16|02|02","Basic Education","Curriculum Policy, Support and Monitoring","Curriculum Implementation and Monitoring"]
[null,null,null,null,null,16,2,3,"16","02","03","16|02|03","Basic Education","Curriculum Policy, Support and Monitoring","Curriculum and Quality Enhancement Programmes"]
[null,null,null,null,null,16,2,4,"16","02","04","16|02|04","Basic Education","Curriculum Policy, Support and Monitoring","Early Childhood Development"]
[null,null,null,null,null,16,3,1,"16","03","01","16|03|01","Basic Education","Teachers, Education Human Resources and Institutional Development","Programme Management: Teachers, Education Human Resources and Institutional Development"]
[null,null,null,null,null,16,3,2,"16","03","02","16|03|02","Basic Education","Teachers, Education Human Resources and Institutional Development","Education Human Resources Management"]
[null,null,null,null,null,16,3,3,"16","03","03","16|03|03","Basic Education","Teachers, Education Human Resources and Institutional Development","Education Human Resources Development"]
[null,null,null,null,null,16,3,4,"16","03","04","16|03|04","Basic Education","Teachers, Education Human Resources and Institutional Development","Curriculum and Professional Development Unit"]
[null,null,null,null,null,16,4,1,"16","04","01","16|04|01","Basic Education","Planning, Information and Assessment","Programme Management: Planning, Information and Assessment"]
[null,null,null,null,null,16,4,2,"16","04","02","16|04|02","Basic Education","Planning, Information and Assessment","Financial Planning, Information and Management Systems"]
[null,null,null,null,null,16,4,3,"16","04","03","16|04|03","Basic Education","Planning, Information and Assessment","School Infrastructure"]
[null,null,null,null,null,16,4,4,"16","04","04","16|04|04","Basic Education","Planning, Information and Assessment","National Assessments and Public Examinations"]
[null,null,null,null,null,16,4,5,"16","04","05","16|04|05","Basic Education","Planning, Information and Assessment","National Education Evaluation and Development Unit"]
[null,null,null,null,null,16,4,6,"16","04","06","16|04|06","Basic Education","Planning, Information and Assessment","Planning and Delivery Oversight Unit"]
[null,null,null,null,null,16,5,1,"16","05","01","16|05|01","Basic Education","Educational Enrichment Services","Programme Management: Educational Enrichment Services"]
[null,null,null,null,null,16,5,2,"16","05","02","16|05|02","Basic Education","Educational Enrichment Services","Partnerships in Education"]
[null,null,null,null,null,16,5,3,"16","05","03","16|05|03","Basic Education","Educational Enrichment Services","Care and Support in Schools"]
[null,null,null,null,null,17,1,1,"17","01","01","17|01|01","Higher Education and Training","Administration","Department Management"]
[null,null,null,null,null,17,1,2,"17","01","02","17|01|02","Higher Education and Training","Administration","Corporate Management Services"]
[null,null,null,null,null,17,1,3,"17","01","03","17|01|03","Higher Education and Training","Administration","Office of the Chief Financial Officer"]
[null,null,null,null,null,17,1,4,"17","01","04","17|01|04","Higher Education and Training","Administration","Internal Audit"]
[null,null,null,null,null,17,1,5,"17","01","05","17|01|05","Higher Education and Training","Administration","Office Accommodation"]
[null,null,null,null,null,17,2,1,"17","02","01","17|02|01","Higher Education and Training","Planning, Policy and Strategy","Programme Management: Planning, Policy and Strategy"]
[null,null,null,null,null,17,2,2,"17","02","02","17|02|02","Higher Education and Training","Planning, Policy and Strategy","Human Resource Development Council of South Africa"]
[null,null,null,null,null,17,2,3,"17","02","03","17|02|03","Higher Education and Training","Planning, Policy and Strategy","Policy, Planning, Monitoring and Evaluation"]
[null,null,null,null,null,17,2,4,"17","02","04","17|02|04","Higher Education and Training","Planning, Policy and Strategy","International Relations"]
[null,null,null,null,null,17,2,5,"17","02","05","17|02|05","Higher Education and Training","Planning, Policy and Strategy","Legal and Legislative Services"]
[null,null,null,null,null,17,2,6,"17","02","06","17|02|06","Higher Education and Training","Planning, Policy and Strategy","Social Inclusion and Quality"]
[null,null,null,null,null,17,3,1,"17","03","01","17|03|01","Higher Education and Training","University Education","Programme Management: University Education"]
[null,null,null,null,null,17,3,2,"17","03","02","17|03|02","Higher Education and Training","University Education","University Planning and Institutional Funding"]
[null,null,null,null,null,17,3,3,"17","03","03","17|03|03","Higher Education and Training","University Education","Institutional Governance and Management Support"]
[null,null,null,null,null,17,3,4,"17","03","04","17|03|04","Higher Education and Training","University Education","Higher Education Policy Development and Research"]
[null,null,null,null,null,17,3,5,"17","03","05","17|03|05","Higher Education and Training","University Education","Teaching, Learning and Research Development"]
[null,null,null,null,null,17,3,6,"17","03","06","17|03|06","Higher Education and Training","University Education","University Subsidies"]
[null,null,null,null,null,17,4,1,"17","04","01","17|04|01","Higher Education and Training","Technical and Vocational Education and Training","Programme Management: Technical and Vocational Education and Training"]
[null,null,null,null,null,17,4,2,"17","04","02","17|04|02","Higher Education and Training","Technical and Vocational Education and Training","Technical and Vocational Education and Training System Planning and Institutional Support"]
[null,null,null,null,null,17,4,3,"17","04","03","17|04|03","Higher Education and Training","Technical and Vocational Education and Training","Programmes and Qualifications"]
[null,null,null,null,null,17,4,4,"17","04","04","17|04|04","Higher Education and Training","Technical and Vocational Education and Training","National Examinations and Assessment"]
[null,null,null,null,null,17,4,5,"17","04","05","17|04|05","Higher Education and Training","Technical and Vocational Education and Training","Technical and Vocational Education and Training Financial Planning"]
[null,null,null,null,null,17,4,6,"17","04","06","17|04|06","Higher Education and Training","Technical and Vocational Education and Training","Regional Offices"]
[null,null,null,null,null,17,5,1,"17","05","01","17|05|01","Higher Education and Training","Skills Development","Programme Management: Skills Development"]
[null,null,null,null,null,17,5,2,"17","05","02","17|05|02","Higher Education and Training","Skills Development","Sector Education and Training Authority Coordination"]
[null,null,null,null,null,17,5,3,"17","05","03","17|05|03","Higher Education and Training","Skills Development","National Skills Authority Secretariat"]
[null,null,null,null,null,17,5,4,"17","05","04","17|05|04","Higher Education and Training","Skills Development","Quality Development and Promotion"]
[null,null,null,null,null,17,5,5,"17","05","05","17|05|05","Higher Education and Training","Skills Development","National Artisan Development"]
[null,null,null,null,null,17,6,1,"17","06","01","17|06|01","Higher Education and Training","Community Education and Training","Programme Management: Community Education and Training"]
[null,null,null,null,null,17,6,2,"17","06","02","17|06|02","Higher Education and Training","Community Education and Training","Community Education and Training System Planning, Institutional Development and Support"]
[null,null,null,null,null,17,6,3,"17","06","03","17|06|03","Higher Education and Training","Community Education and Training","Community Education and Training Colleges Financial Planning and Management"]
[null,null,null,null,null,17,6,4,"17","06","04","17|06|04","Higher Education and Training","Community Education and Training","Education, Training and Development Assessment"]
[null,null,null,null,null,17,16,1,"17","16","01","17|16|01","Higher Education and Training","Direct charge against the National Revenue Fund","Sector education and training authorities"]
[null,null,null,null,null,17,16,2,"17","16","02","17|16|02","Higher Education and Training","Direct charge against the National Revenue Fund","National Skills Fund"]
[null,null,null,null,null,18,1,1,"18","01","01","18|01|01","Health","Administration","Ministry"]
[null,null,null,null,null,18,1,2,"18","01","02","18|01|02","Health","Administration","Management"]
[null,null,null,null,null,18,1,3,"18","01","03","18|01|03","Health","Administration","Corporate Services"]
[null,null,null,null,null,18,1,4,"18","01","04","18|01|04","Health","Administration","Property Management"]
[null,null,null,null,null,18,1,5,"18","01","05","18|01|05","Health","Administration","Financial Management"]
[null,null,null,null,null,18,2,1,"18","02","01","18|02|01","Health","National Health Insurance","Programme Management"]
[null,null,null,null,null,18,2,2,"18","02","02","18|02|02","Health","National Health Insurance","Affordable Medicine"]
[null,null,null,null,null,18,2,3,"18","02","03","18|02|03","Health","National Health Insurance","Health Financing and National Health Insurance"]
[null,null,null,null,null,18,3,1,"18","03","01","18|03|01","Health","Communicable and Non-communicable Diseases","Programme Management"]
[null,null,null,null,null,18,3,2,"18","03","02","18|03|02","Health","Communicable and Non-communicable Diseases","HIV, AIDS and STIs"]
[null,null,null,null,null,18,3,3,"18","03","03","18|03|03","Health","Communicable and Non-communicable Diseases","Tuberculosis Management"]
[null,null,null,null,null,18,3,4,"18","03","04","18|03|04","Health","Communicable and Non-communicable Diseases","Women's Maternal and Reproductive Health"]
[null,null,null,null,null,18,3,5,"18","03","05","18|03|05","Health","Communicable and Non-communicable Diseases","Child, Youth and School Health"]
[null,null,null,null,null,18,3,6,"18","03","06","18|03|06","Health","Communicable and Non-communicable Diseases","Communicable Diseases"]
[null,null,null,null,null,18,3,7,"18","03","07","18|03|07","Health","Communicable and Non-communicable Diseases","Non-communicable Diseases"]
[null,null,null,null,null,18,3,8,"18","03","08","18|03|08","Health","Communicable and Non-communicable Diseases","Health Promotion and Nutrition"]
[null,null,null,null,null,18,4,1,"18","04","01","18|04|01","Health","Primary Health Care","Programme Management"]
[null,null,null,null,null,18,4,2,"18","04","02","18|04|02","Health","Primary Health Care","District Health Services"]
[null,null,null,null,null,18,4,3,"18","04","03","18|04|03","Health","Primary Health Care","Environmental and Port Health Services"]
[null,null,null,null,null,18,4,4,"18","04","04","18|04|04","Health","Primary Health Care","Emergency Medical Services and Trauma"]
[null,null,null,null,null,18,5,1,"18","05","01","18|05|01","Health","Hospital Systems","Programme Management"]
[null,null,null,null,null,18,5,2,"18","05","02","18|05|02","Health","Hospital Systems","Health Facilities Infrastructure Management"]
[null,null,null,null,null,18,5,3,"18","05","03","18|05|03","Health","Hospital Systems","Hospital Systems"]
[null,null,null,null,null,18,6,1,"18","06","01","18|06|01","Health","Health System Governance and Human Resources","Programme Management"]
[null,null,null,null,null,18,6,2,"18","06","02","18|06|02","Health","Health System Governance and Human Resources","Policy and Planning"]
[null,null,null,null,null,18,6,3,"18","06","03","18|06|03","Health","Health System Governance and Human Resources","Public Entities Management and Laboratories"]
[null,null,null,null,null,18,6,4,"18","06","04","18|06|04","Health","Health System Governance and Human Resources","Nursing Services"]
[null,null,null,null,null,18,6,5,"18","06","05","18|06|05","Health","Health System Governance and Human Resources","Health Information, Monitoring and Evaluation"]
[null,null,null,null,null,18,6,6,"18","06","06","18|06|06","Health","Health System Governance and Human Resources","Human Resources for Health"]
[null,null,null,null,null,19,1,1,"19","01","01","19|01|01","Social Development","Administration","Ministry"]
[null,null,null,null,null,19,1,2,"19","01","02","19|01|02","Social Development","Administration","Department Management"]
[null,null,null,null,null,19,1,3,"19","01","03","19|01|03","Social Development","Administration","Corporate Management"]
[null,null,null,null,null,19,1,4,"19","01","04","19|01|04","Social Development","Administration","Finance"]
[null,null,null,null,null,19,1,5,"19","01","05","19|01|05","Social Development","Administration","Internal Audit"]
[null,null,null,null,null,19,1,6,"19","01","06","19|01|06","Social Development","Administration","Office Accommodation"]
[null,null,null,null,null,19,2,1,"19","02","01","19|02|01","Social Development","Social Assistance","Old Age"]
[null,null,null,null,null,19,2,2,"19","02","02","19|02|02","Social Development","Social Assistance","War Veterans"]
[null,null,null,null,null,19,2,3,"19","02","03","19|02|03","Social Development","Social Assistance","Disability"]
[null,null,null,null,null,19,2,4,"19","02","04","19|02|04","Social Development","Social Assistance","Foster Care"]
[null,null,null,null,null,19,2,5,"19","02","05","19|02|05","Social Development","Social Assistance","Care Dependency"]
[null,null,null,null,null,19,2,6,"19","02","06","19|02|06","Social Development","Social Assistance","Child Support"]
[null,null,null,null,null,19,2,7,"19","02","07","19|02|07","Social Development","Social Assistance","Grant-in-aid"]
[null,null,null,null,null,19,2,8,"19","02","08","19|02|08","Social Development","Social Assistance","Social Relief of Distress"]
[null,null,null,null,null,19,3,1,"19","03","01","19|03|01","Social Development","Social Security Policy and Administration","Social Security Policy Development"]
[null,null,null,null,null,19,3,2,"19","03","02","19|03|02","Social Development","Social Security Policy and Administration","Appeals Adjudication"]
[null,null,null,null,null,19,3,3,"19","03","03","19|03|03","Social Development","Social Security Policy and Administration","Social Grants Administration"]
[null,null,null,null,null,19,3,4,"19","03","04","19|03|04","Social Development","Social Security Policy and Administration","Social Grants Fraud Investigations"]
[null,null,null,null,null,19,3,5,"19","03","05","19|03|05","Social Development","Social Security Policy and Administration","Programme Management"]
[null,null,null,null,null,19,4,1,"19","04","01","19|04|01","Social Development","Welfare Services Policy Development and Implementation Support","Service Standards"]
[null,null,null,null,null,19,4,2,"19","04","02","19|04|02","Social Development","Welfare Services Policy Development and Implementation Support","Substance Abuse"]
[null,null,null,null,null,19,4,3,"19","04","03","19|04|03","Social Development","Welfare Services Policy Development and Implementation Support","Older Persons"]
[null,null,null,null,null,19,4,4,"19","04","04","19|04|04","Social Development","Welfare Services Policy Development and Implementation Support","People with Disabilities"]
[null,null,null,null,null,19,4,5,"19","04","05","19|04|05","Social Development","Welfare Services Policy Development and Implementation Support","Children"]
[null,null,null,null,null,19,4,6,"19","04","06","19|04|06","Social Development","Welfare Services Policy Development and Implementation Support","Families"]
[null,null,null,null,null,19,4,7,"19","04","07","19|04|07","Social Development","Welfare Services Policy Development and Implementation Support","Social Crime Prevention and Victim Empowerment"]
[null,null,null,null,null,19,4,8,"19","04","08","19|04|08","Social Development","Welfare Services Policy Development and Implementation Support","Youth"]
[null,null,null,null,null,19,4,9,"19","04","09","19|04|09","Social Development","Welfare Services Policy Development and Implementation Support","HIV and AIDS"]
[null,null,null,null,null,19,4,10,"19","04","10","19|04|10","Social Development","Welfare Services Policy Development and Implementation Support","Social Worker Scholarships"]
[null,null,null,null,null,19,4,11,"19","04","11","19|04|11","Social Development","Welfare Services Policy Development and Implementation Support","Programme Management"]
[null,null,null,null,null,19,5,1,"19","05","01","19|05|01","Social Development","Social Policy and Integrated Service Delivery","Social Policy Research and Development"]
[null,null,null,null,null,19,5,2,"19","05","02","19|05|02","Social Development","Social Policy and Integrated Service Delivery","Special Projects and Innovation"]
[null,null,null,null,null,19,5,3,"19","05","03","19|05|03","Social Development","Social Policy and Integrated Service Delivery","Population Policy Promotion"]
[null,null,null,null,null,19,5,4,"19","05","04","19|05|04","Social Development","Social Policy and Integrated Service Delivery","Registration and Monitoring of Non-profit Organisations"]
[null,null,null,null,null,19,5,5,"19","05","05","19|05|05","Social Development","Social Policy and Integrated Service Delivery","Substance Abuse Advisory Services and Oversight"]
[null,null,null,null,null,19,5,6,"19","05","06","19|05|06","Social Development","Social Policy and Integrated Service Delivery","Community Development"]
[null,null,null,null,null,19,5,7,"19","05","07","19|05|07","Social Development","Social Policy and Integrated Service Delivery","National Development Agency"]
[null,null,null,null,null,19,5,8,"19","05","08","19|05|08","Social Development","Social Policy and Integrated Service Delivery","Programme Management"]
[null,null,null,null,null,20,1,1,"20","01","01","20|01|01","Women, Youth and Persons with Disabilities","Administration","Ministry"]
[null,null,null,null,null,20,1,2,"20","01","02","20|01|02","Women, Youth and Persons with Disabilities","Administration","Departmental Management"]
[null,null,null,null,null,20,1,3,"20","01","03","20|01|03","Women, Youth and Persons with Disabilities","Administration","Corporate Services"]
[null,null,null,null,null,20,1,4,"20","01","04","20|01|04","Women, Youth and Persons with Disabilities","Administration","Financial Management"]
[null,null,null,null,null,20,1,5,"20","01","05","20|01|05","Women, Youth and Persons with Disabilities","Administration","Office Accommodation"]
[null,null,null,null,null,20,2,1,"20","02","01","20|02|01","Women, Youth and Persons with Disabilities","Advocacy and Mainstreaming for the Rights of Women","Management: Advocacy and Mainstreaming for the Rights of Women"]
[null,null,null,null,null,20,2,2,"20","02","02","20|02|02","Women, Youth and Persons with Disabilities","Advocacy and Mainstreaming for the Rights of Women","Social Empowerment of Women"]
[null,null,null,null,null,20,2,3,"20","02","03","20|02|03","Women, Youth and Persons with Disabilities","Advocacy and Mainstreaming for the Rights of Women","Economic Empowerment of Women"]
[null,null,null,null,null,20,2,4,"20","02","04","20|02|04","Women, Youth and Persons with Disabilities","Advocacy and Mainstreaming for the Rights of Women","Commission for Gender Equality"]
[null,null,null,null,null,20,3,1,"20","03","01","20|03|01","Women, Youth and Persons with Disabilities","Monitoring, Evaluation, Research and Coordination","Management: Monitoring, Evaluation, Research and Coordination"]
[null,null,null,null,null,20,3,2,"20","03","02","20|03|02","Women, Youth and Persons with Disabilities","Monitoring, Evaluation, Research and Coordination","Research and Knowledge Management"]
[null,null,null,null,null,20,3,3,"20","03","03","20|03|03","Women, Youth and Persons with Disabilities","Monitoring, Evaluation, Research and Coordination","International Relations, Stakeholder Management and Capacity Building"]
[null,null,null,null,null,20,3,4,"20","03","04","20|03|04","Women, Youth and Persons with Disabilities","Monitoring, Evaluation, Research and Coordination","Monitoring and Evaluation: Women,Youth and Persons with Disabilities"]
[null,null,null,null,null,20,4,1,"20","04","01","20|04|01","Women, Youth and Persons with Disabilities","Rights of Persons with Disabilities","Management: Advocacy and Mainstreaming for the Rights of Persons with Disabilities"]
[null,null,null,null,null,20,4,2,"20","04","02","20|04|02","Women, Youth and Persons with Disabilities","Rights of Persons with Disabilities","Advocacy and Mainstreaming for the Rights of Persons with Disabilities"]
[null,null,null,null,null,20,5,1,"20","05","01","20|05|01","Women, Youth and Persons with Disabilities","Rights of Youth","Management: Advocacy and Mainstreaming for the Rights of Youth"]
[null,null,null,null,null,20,5,2,"20","05","02","20|05|02","Women, Youth and Persons with Disabilities","Rights of Youth","Advocacy and Mainstreaming for the Rights of Youth"]
[null,null,null,null,null,20,5,3,"20","05","03","20|05|03","Women, Youth and Persons with Disabilities","Rights of Youth","National Youth Development Agency"]
[null,null,null,null,null,21,1,1,"21","01","01","21|01|01","Civilian Secretariat for the Police Service","Administration","Department Management"]
[null,null,null,null,null,21,1,2,"21","01","02","21|01|02","Civilian Secretariat for the Police Service","Administration","Corporate Services"]
[null,null,null,null,null,21,1,3,"21","01","03","21|01|03","Civilian Secretariat for the Police Service","Administration","Finance Administration"]
[null,null,null,null,null,21,1,4,"21","01","04","21|01|04","Civilian Secretariat for the Police Service","Administration","Office Accommodation"]
[null,null,null,null,null,21,1,5,"21","01","05","21|01|05","Civilian Secretariat for the Police Service","Administration","Internal Audit"]
[null,null,null,null,null,21,2,1,"21","02","01","21|02|01","Civilian Secretariat for the Police Service","Intersectoral Coordination and Strategic Partnerships","Intergovernmental, Civil Society and Public-Private Partnerships"]
[null,null,null,null,null,21,2,2,"21","02","02","21|02|02","Civilian Secretariat for the Police Service","Intersectoral Coordination and Strategic Partnerships","Community Outreach"]
[null,null,null,null,null,21,3,1,"21","03","01","21|03|01","Civilian Secretariat for the Police Service","Legislation and Policy Development","Policy Development and Research"]
[null,null,null,null,null,21,3,2,"21","03","02","21|03|02","Civilian Secretariat for the Police Service","Legislation and Policy Development","Legislation"]
[null,null,null,null,null,21,4,1,"21","04","01","21|04|01","Civilian Secretariat for the Police Service","Civilian Oversight, Monitoring and Evaluations","Police Performance, Conduct and Compliance"]
[null,null,null,null,null,21,4,2,"21","04","02","21|04|02","Civilian Secretariat for the Police Service","Civilian Oversight, Monitoring and Evaluations","Policy and Programme Evaluations"]
[null,null,null,null,null,21,4,3,"21","04","03","21|04|03","Civilian Secretariat for the Police Service","Civilian Oversight, Monitoring and Evaluations","Office of the Directorate for Priority Crime Investigation Judge"]
[null,null,null,null,null,21,4,4,"21","04","04","21|04|04","Civilian Secretariat for the Police Service","Civilian Oversight, Monitoring and Evaluations","National Forensic Oversight and Ethics Board"]
[null,null,null,null,null,22,1,1,"22","01","01","22|01|01","Correctional Services","Administration","Ministry"]
[null,null,null,null,null,22,1,2,"22","01","02","22|01|02","Correctional Services","Administration","Management"]
[null,null,null,null,null,22,1,3,"22","01","03","22|01|03","Correctional Services","Administration","Human Resources"]
[null,null,null,null,null,22,1,4,"22","01","04","22|01|04","Correctional Services","Administration","Finance"]
[null,null,null,null,null,22,1,5,"22","01","05","22|01|05","Correctional Services","Administration","Assurance Services"]
[null,null,null,null,null,22,1,6,"22","01","06","22|01|06","Correctional Services","Administration","Information Technology"]
[null,null,null,null,null,22,1,7,"22","01","07","22|01|07","Correctional Services","Administration","Office Accommodation"]
[null,null,null,null,null,22,2,1,"22","02","01","22|02|01","Correctional Services","Incarceration","Security Operations"]
[null,null,null,null,null,22,2,2,"22","02","02","22|02|02","Correctional Services","Incarceration","Facilities"]
[null,null,null,null,null,22,2,3,"22","02","03","22|02|03","Correctional Services","Incarceration","Remand Detention"]
[null,null,null,null,null,22,2,4,"22","02","04","22|02|04","Correctional Services","Incarceration","Offender Management"]
[null,null,null,null,null,22,2,5,"22","02","05","22|02|05","Correctional Services","Incarceration","Judicial Inspectorate for Correctional Services"]
[null,null,null,null,null,22,3,1,"22","03","01","22|03|01","Correctional Services","Rehabilitation","Correctional Programmes"]
[null,null,null,null,null,22,3,2,"22","03","02","22|03|02","Correctional Services","Rehabilitation","Offender Development"]
[null,null,null,null,null,22,3,3,"22","03","03","22|03|03","Correctional Services","Rehabilitation","Psychological, Social and Spiritual Services"]
[null,null,null,null,null,22,4,1,"22","04","01","22|04|01","Correctional Services","Care","Nutritional Services"]
[null,null,null,null,null,22,4,2,"22","04","02","22|04|02","Correctional Services","Care","Health and Hygiene Services"]
[null,null,null,null,null,22,5,1,"22","05","01","22|05|01","Correctional Services","Social Reintegration","Supervision"]
[null,null,null,null,null,22,5,2,"22","05","02","22|05|02","Correctional Services","Social Reintegration","Community Reintegration"]
[null,null,null,null,null,22,5,3,"22","05","03","22|05|03","Correctional Services","Social Reintegration","Office Accommodation: Community Corrections"]
[null,null,null,null,null,23,1,1,"23","01","01","23|01|01","Defence","Administration","Ministry"]
[null,null,null,null,null,23,1,2,"23","01","02","23|01|02","Defence","Administration","Departmental Direction"]
[null,null,null,null,null,23,1,3,"23","01","03","23|01|03","Defence","Administration","Policy and Planning"]
[null,null,null,null,null,23,1,4,"23","01","04","23|01|04","Defence","Administration","Financial Services"]
[null,null,null,null,null,23,1,5,"23","01","05","23|01|05","Defence","Administration","Human Resources Support Services"]
[null,null,null,null,null,23,1,6,"23","01","06","23|01|06","Defence","Administration","Legal Services"]
[null,null,null,null,null,23,1,7,"23","01","07","23|01|07","Defence","Administration","Inspection and Audit Services"]
[null,null,null,null,null,23,1,8,"23","01","08","23|01|08","Defence","Administration","Acquisition Services"]
[null,null,null,null,null,23,1,9,"23","01","09","23|01|09","Defence","Administration","Communication Services"]
[null,null,null,null,null,23,1,10,"23","01","10","23|01|10","Defence","Administration","South African National Defence Force Command and Control"]
[null,null,null,null,null,23,1,11,"23","01","11","23|01|11","Defence","Administration","Religious Services"]
[null,null,null,null,null,23,1,12,"23","01","12","23|01|12","Defence","Administration","Defence Reserve Direction"]
[null,null,null,null,null,23,1,13,"23","01","13","23|01|13","Defence","Administration","Defence Foreign Relations"]
[null,null,null,null,null,23,1,14,"23","01","14","23|01|14","Defence","Administration","Office Accommodation"]
[null,null,null,null,null,23,2,1,"23","02","01","23|02|01","Defence","Force Employment","Strategic Direction"]
[null,null,null,null,null,23,2,2,"23","02","02","23|02|02","Defence","Force Employment","Operational Direction"]
[null,null,null,null,null,23,2,3,"23","02","03","23|02|03","Defence","Force Employment","Special Operations"]
[null,null,null,null,null,23,2,4,"23","02","04","23|02|04","Defence","Force Employment","Regional Security"]
[null,null,null,null,null,23,2,5,"23","02","05","23|02|05","Defence","Force Employment","Support to the People"]
[null,null,null,null,null,23,3,1,"23","03","01","23|03|01","Defence","Landward Defence","Strategic Direction"]
[null,null,null,null,null,23,3,2,"23","03","02","23|03|02","Defence","Landward Defence","Infantry Capability"]
[null,null,null,null,null,23,3,3,"23","03","03","23|03|03","Defence","Landward Defence","Armour Capability"]
[null,null,null,null,null,23,3,4,"23","03","04","23|03|04","Defence","Landward Defence","Artillery Capability"]
[null,null,null,null,null,23,3,5,"23","03","05","23|03|05","Defence","Landward Defence","Air Defence Artillery Capability"]
[null,null,null,null,null,23,3,6,"23","03","06","23|03|06","Defence","Landward Defence","Engineering Capability"]
[null,null,null,null,null,23,3,7,"23","03","07","23|03|07","Defence","Landward Defence","Operational Intelligence"]
[null,null,null,null,null,23,3,8,"23","03","08","23|03|08","Defence","Landward Defence","Command and Control Capability"]
[null,null,null,null,null,23,3,9,"23","03","09","23|03|09","Defence","Landward Defence","Support Capability"]
[null,null,null,null,null,23,3,10,"23","03","10","23|03|10","Defence","Landward Defence","General Training Capability"]
[null,null,null,null,null,23,3,11,"23","03","11","23|03|11","Defence","Landward Defence","Signal Capability"]
[null,null,null,null,null,23,4,1,"23","04","01","23|04|01","Defence","Air Defence","Strategic Direction"]
[null,null,null,null,null,23,4,2,"23","04","02","23|04|02","Defence","Air Defence","Operational Direction"]
[null,null,null,null,null,23,4,3,"23","04","03","23|04|03","Defence","Air Defence","Helicopter Capability"]
[null,null,null,null,null,23,4,4,"23","04","04","23|04|04","Defence","Air Defence","Transport and Maritime Capability"]
[null,null,null,null,null,23,4,5,"23","04","05","23|04|05","Defence","Air Defence","Air Combat Capability"]
[null,null,null,null,null,23,4,6,"23","04","06","23|04|06","Defence","Air Defence","Operational Support and Intelligence Capability"]
[null,null,null,null,null,23,4,7,"23","04","07","23|04|07","Defence","Air Defence","Command and Control Capability"]
[null,null,null,null,null,23,4,8,"23","04","08","23|04|08","Defence","Air Defence","Base Support Capability"]
[null,null,null,null,null,23,4,9,"23","04","09","23|04|09","Defence","Air Defence","Command Post"]
[null,null,null,null,null,23,4,10,"23","04","10","23|04|10","Defence","Air Defence","Training Capability"]
[null,null,null,null,null,23,4,11,"23","04","11","23|04|11","Defence","Air Defence","Technical Support Services"]
[null,null,null,null,null,23,5,1,"23","05","01","23|05|01","Defence","Maritime Defence","Maritime Direction"]
[null,null,null,null,null,23,5,2,"23","05","02","23|05|02","Defence","Maritime Defence","Maritime Combat Capability"]
[null,null,null,null,null,23,5,3,"23","05","03","23|05|03","Defence","Maritime Defence","Maritime Logistic Support Capability"]
[null,null,null,null,null,23,5,4,"23","05","04","23|05|04","Defence","Maritime Defence","Maritime Human Resources and Training Capability"]
[null,null,null,null,null,23,5,5,"23","05","05","23|05|05","Defence","Maritime Defence","Base Support Capability"]
[null,null,null,null,null,23,6,1,"23","06","01","23|06|01","Defence","Military Health Support","Strategic Direction"]
[null,null,null,null,null,23,6,2,"23","06","02","23|06|02","Defence","Military Health Support","Mobile Military Health Support"]
[null,null,null,null,null,23,6,3,"23","06","03","23|06|03","Defence","Military Health Support","Area Military Health Service"]
[null,null,null,null,null,23,6,4,"23","06","04","23|06|04","Defence","Military Health Support","Specialist/Tertiary Health Service"]
[null,null,null,null,null,23,6,5,"23","06","05","23|06|05","Defence","Military Health Support","Military Health Product Support Capability"]
[null,null,null,null,null,23,6,6,"23","06","06","23|06|06","Defence","Military Health Support","Military Health Maintenance Capability"]
[null,null,null,null,null,23,6,7,"23","06","07","23|06|07","Defence","Military Health Support","Military Health Training Capability"]
[null,null,null,null,null,23,7,1,"23","07","01","23|07|01","Defence","Defence Intelligence","Operations"]
[null,null,null,null,null,23,7,2,"23","07","02","23|07|02","Defence","Defence Intelligence","Defence Intelligence Support Services"]
[null,null,null,null,null,23,8,1,"23","08","01","23|08|01","Defence","General Support","Joint Logistic Services"]
[null,null,null,null,null,23,8,2,"23","08","02","23|08|02","Defence","General Support","Command and Management Information Systems"]
[null,null,null,null,null,23,8,3,"23","08","03","23|08|03","Defence","General Support","Military Police"]
[null,null,null,null,null,23,8,4,"23","08","04","23|08|04","Defence","General Support","Technology Development"]
[null,null,null,null,null,23,8,5,"23","08","05","23|08|05","Defence","General Support","Departmental Support"]
[null,null,null,null,null,24,1,1,"24","01","01","24|01|01","Independent Police Investigative Directorate","Administration","Department Management"]
[null,null,null,null,null,24,1,2,"24","01","02","24|01|02","Independent Police Investigative Directorate","Administration","Corporate Services"]
[null,null,null,null,null,24,1,3,"24","01","03","24|01|03","Independent Police Investigative Directorate","Administration","Office Accommodation"]
[null,null,null,null,null,24,1,4,"24","01","04","24|01|04","Independent Police Investigative Directorate","Administration","Internal Audit"]
[null,null,null,null,null,24,1,5,"24","01","05","24|01|05","Independent Police Investigative Directorate","Administration","Finance Services"]
[null,null,null,null,null,24,2,1,"24","02","01","24|02|01","Independent Police Investigative Directorate","Investigation and Information Management","Investigation Management"]
[null,null,null,null,null,24,2,2,"24","02","02","24|02|02","Independent Police Investigative Directorate","Investigation and Information Management","Investigation Services"]
[null,null,null,null,null,24,2,3,"24","02","03","24|02|03","Independent Police Investigative Directorate","Investigation and Information Management","Information Management"]
[null,null,null,null,null,24,3,1,"24","03","01","24|03|01","Independent Police Investigative Directorate","Legal and Investigation Advisory Services","Legal Support and Administration"]
[null,null,null,null,null,24,3,2,"24","03","02","24|03|02","Independent Police Investigative Directorate","Legal and Investigation Advisory Services","Litigation Advisory Services"]
[null,null,null,null,null,24,3,3,"24","03","03","24|03|03","Independent Police Investigative Directorate","Legal and Investigation Advisory Services","Investigation Advisory Services"]
[null,null,null,null,null,24,4,1,"24","04","01","24|04|01","Independent Police Investigative Directorate","Compliance Monitoring and Stakeholder Management","Compliance Monitoring"]
[null,null,null,null,null,24,4,2,"24","04","02","24|04|02","Independent Police Investigative Directorate","Compliance Monitoring and Stakeholder Management","Stakeholder Management"]
[null,null,null,null,null,25,1,1,"25","01","01","25|01|01","Justice and Constitutional Development","Administration","Ministry"]
[null,null,null,null,null,25,1,2,"25","01","02","25|01|02","Justice and Constitutional Development","Administration","Management"]
[null,null,null,null,null,25,1,3,"25","01","03","25|01|03","Justice and Constitutional Development","Administration","Corporate Services"]
[null,null,null,null,null,25,1,4,"25","01","04","25|01|04","Justice and Constitutional Development","Administration","Financial Administration"]
[null,null,null,null,null,25,1,5,"25","01","05","25|01|05","Justice and Constitutional Development","Administration","Internal Audit"]
[null,null,null,null,null,25,1,6,"25","01","06","25|01|06","Justice and Constitutional Development","Administration","Office Accommodation"]
[null,null,null,null,null,25,2,1,"25","02","01","25|02|01","Justice and Constitutional Development","Lower Court Services","Lower Courts"]
[null,null,null,null,null,25,2,2,"25","02","02","25|02|02","Justice and Constitutional Development","Lower Court Services","Magistrate's Commission"]
[null,null,null,null,null,25,2,3,"25","02","03","25|02|03","Justice and Constitutional Development","Lower Court Services","Facilities Management"]
[null,null,null,null,null,25,2,4,"25","02","04","25|02|04","Justice and Constitutional Development","Lower Court Services","Administration of Lower Courts"]
[null,null,null,null,null,25,3,1,"25","03","01","25|03|01","Justice and Constitutional Development","State Legal Services","State Law Advisers"]
[null,null,null,null,null,25,3,2,"25","03","02","25|03|02","Justice and Constitutional Development","State Legal Services","Litigation and Legal Services"]
[null,null,null,null,null,25,3,3,"25","03","03","25|03|03","Justice and Constitutional Development","State Legal Services","Legislative Development and Law Reform"]
[null,null,null,null,null,25,3,4,"25","03","04","25|03|04","Justice and Constitutional Development","State Legal Services","Master of the High Court"]
[null,null,null,null,null,25,3,5,"25","03","05","25|03|05","Justice and Constitutional Development","State Legal Services","Constitutional Development"]
[null,null,null,null,null,25,3,6,"25","03","06","25|03|06","Justice and Constitutional Development","State Legal Services","Family Advocate"]
[null,null,null,null,null,25,4,1,"25","04","01","25|04|01","Justice and Constitutional Development","National Prosecuting Authority","National Prosecutions Service"]
[null,null,null,null,null,25,4,2,"25","04","02","25|04|02","Justice and Constitutional Development","National Prosecuting Authority","Investigating Directorate"]
[null,null,null,null,null,25,4,3,"25","04","03","25|04|03","Justice and Constitutional Development","National Prosecuting Authority","Asset Forfeiture Unit"]
[null,null,null,null,null,25,4,4,"25","04","04","25|04|04","Justice and Constitutional Development","National Prosecuting Authority","Office for Witness Protection"]
[null,null,null,null,null,25,4,5,"25","04","05","25|04|05","Justice and Constitutional Development","National Prosecuting Authority","Strategy, Operations and Compliance"]
[null,null,null,null,null,25,5,1,"25","05","01","25|05|01","Justice and Constitutional Development","Auxiliary and Associated Services","Legal Aid South Africa"]
[null,null,null,null,null,25,5,2,"25","05","02","25|05|02","Justice and Constitutional Development","Auxiliary and Associated Services","Special Investigating Unit"]
[null,null,null,null,null,25,5,3,"25","05","03","25|05|03","Justice and Constitutional Development","Auxiliary and Associated Services","Public Protector of South Africa"]
[null,null,null,null,null,25,5,4,"25","05","04","25|05|04","Justice and Constitutional Development","Auxiliary and Associated Services","South African Human Rights Commission"]
[null,null,null,null,null,25,5,5,"25","05","05","25|05|05","Justice and Constitutional Development","Auxiliary and Associated Services","Justice Modernisation"]
[null,null,null,null,null,25,5,6,"25","05","06","25|05|06","Justice and Constitutional Development","Auxiliary and Associated Services","Information Regulator"]
[null,null,null,null,null,25,5,7,"25","05","07","25|05|07","Justice and Constitutional Development","Auxiliary and Associated Services","Office of the Legal Services Ombud"]
[null,null,null,null,null,25,5,8,"25","05","08","25|05|08","Justice and Constitutional Development","Auxiliary and Associated Services","President's Fund"]
[null,null,null,null,null,25,16,1,"25","16","01","25|16|01","Justice and Constitutional Development","Direct charge against the National Revenue Fund","Magistrates' salaries"]
[null,null,null,null,null,26,1,1,"26","01","01","26|01|01","Military Veterans","Administration","Management"]
[null,null,null,null,null,26,1,2,"26","01","02","26|01|02","Military Veterans","Administration","Corporate Services"]
[null,null,null,null,null,26,1,3,"26","01","03","26|01|03","Military Veterans","Administration","Financial Administration"]
[null,null,null,null,null,26,1,4,"26","01","04","26|01|04","Military Veterans","Administration","Internal Audit"]
[null,null,null,null,null,26,1,5,"26","01","05","26|01|05","Military Veterans","Administration","Strategic Planning, Policy Development, and Monitoring and Evaluation"]
[null,null,null,null,null,26,1,6,"26","01","06","26|01|06","Military Veterans","Administration","Office Accommodation"]
[null,null,null,null,null,26,2,1,"26","02","01","26|02|01","Military Veterans","Socioeconomic Support","Database and Benefits Management"]
[null,null,null,null,null,26,2,2,"26","02","02","26|02|02","Military Veterans","Socioeconomic Support","Health Care and Wellbeing Support"]
[null,null,null,null,null,26,2,3,"26","02","03","26|02|03","Military Veterans","Socioeconomic Support","Socioeconomic Support Management"]
[null,null,null,null,null,26,3,1,"26","03","01","26|03|01","Military Veterans","Empowerment and Stakeholder Management","Provincial Offices and Stakeholder Relations"]
[null,null,null,null,null,26,3,2,"26","03","02","26|03|02","Military Veterans","Empowerment and Stakeholder Management","Empowerment and Skills Development"]
[null,null,null,null,null,26,3,3,"26","03","03","26|03|03","Military Veterans","Empowerment and Stakeholder Management","Heritage, Memorials, Burials and Honours"]
[null,null,null,null,null,27,1,1,"27","01","01","27|01|01","Office of the Chief Justice","Administration","Management"]
[null,null,null,null,null,27,1,2,"27","01","02","27|01|02","Office of the Chief Justice","Administration","Corporate Services"]
[null,null,null,null,null,27,1,3,"27","01","03","27|01|03","Office of the Chief Justice","Administration","Financial Administration"]
[null,null,null,null,null,27,1,4,"27","01","04","27|01|04","Office of the Chief Justice","Administration","Internal Audit"]
[null,null,null,null,null,27,2,1,"27","02","01","27|02|01","Office of the Chief Justice","Superior Court Services","Administration of Superior Courts"]
[null,null,null,null,null,27,2,2,"27","02","02","27|02|02","Office of the Chief Justice","Superior Court Services","Constitutional Court"]
[null,null,null,null,null,27,2,3,"27","02","03","27|02|03","Office of the Chief Justice","Superior Court Services","Supreme Court of Appeal"]
[null,null,null,null,null,27,2,4,"27","02","04","27|02|04","Office of the Chief Justice","Superior Court Services","High Courts"]
[null,null,null,null,null,27,2,5,"27","02","05","27|02|05","Office of the Chief Justice","Superior Court Services","Specialised Courts"]
[null,null,null,null,null,27,3,1,"27","03","01","27|03|01","Office of the Chief Justice","Judicial Education and Support","South African Judicial Education Institute"]
[null,null,null,null,null,27,3,2,"27","03","02","27|03|02","Office of the Chief Justice","Judicial Education and Support","Judicial Policy, Research and Support"]
[null,null,null,null,null,27,3,3,"27","03","03","27|03|03","Office of the Chief Justice","Judicial Education and Support","Judicial Service Commission"]
[null,null,null,null,null,27,16,1,"27","16","01","27|16|01","Office of the Chief Justice","Direct charge against the National Revenue Fund","Judges' salaries"]
[null,null,null,null,null,28,1,1,"28","01","01","28|01|01","Police","Administration","Ministry"]
[null,null,null,null,null,28,1,2,"28","01","02","28|01|02","Police","Administration","Management"]
[null,null,null,null,null,28,1,3,"28","01","03","28|01|03","Police","Administration","Corporate Services"]
[null,null,null,null,null,28,2,1,"28","02","01","28|02|01","Police","Visible Policing","Crime Prevention"]
[null,null,null,null,null,28,2,2,"28","02","02","28|02|02","Police","Visible Policing","Border Security"]
[null,null,null,null,null,28,2,3,"28","02","03","28|02|03","Police","Visible Policing","Specialised Interventions"]
[null,null,null,null,null,28,2,4,"28","02","04","28|02|04","Police","Visible Policing","Facilities"]
[null,null,null,null,null,28,3,1,"28","03","01","28|03|01","Police","Detective Services","Crime Investigations"]
[null,null,null,null,null,28,3,2,"28","03","02","28|03|02","Police","Detective Services","Criminal Record Centre"]
[null,null,null,null,null,28,3,3,"28","03","03","28|03|03","Police","Detective Services","Forensic Science Laboratory"]
[null,null,null,null,null,28,3,4,"28","03","04","28|03|04","Police","Detective Services","Specialised Investigations"]
[null,null,null,null,null,28,4,1,"28","04","01","28|04|01","Police","Crime Intelligence","Crime Intelligence Operations"]
[null,null,null,null,null,28,4,2,"28","04","02","28|04|02","Police","Crime Intelligence","Intelligence and Information Management"]
[null,null,null,null,null,28,5,1,"28","05","01","28|05|01","Police","Protection and Security Services","VIP Protection Services"]
[null,null,null,null,null,28,5,2,"28","05","02","28|05|02","Police","Protection and Security Services","Static Protection"]
[null,null,null,null,null,28,5,3,"28","05","03","28|05|03","Police","Protection and Security Services","Government Security Regulator"]
[null,null,null,null,null,28,5,4,"28","05","04","28|05|04","Police","Protection and Security Services","Operational Support"]
[null,null,null,null,null,29,1,1,"29","01","01","29|01|01","Agriculture, Land Reform and Rural Development","Administration","Ministry"]
[null,null,null,null,null,29,1,2,"29","01","02","29|01|02","Agriculture, Land Reform and Rural Development","Administration","Department Management"]
[null,null,null,null,null,29,1,3,"29","01","03","29|01|03","Agriculture, Land Reform and Rural Development","Administration","Internal Audit"]
[null,null,null,null,null,29,1,4,"29","01","04","29|01|04","Agriculture, Land Reform and Rural Development","Administration","Financial Management Services"]
[null,null,null,null,null,29,1,5,"29","01","05","29|01|05","Agriculture, Land Reform and Rural Development","Administration","Corporate Support Services"]
[null,null,null,null,null,29,1,6,"29","01","06","29|01|06","Agriculture, Land Reform and Rural Development","Administration","Provincial Operations"]
[null,null,null,null,null,29,1,7,"29","01","07","29|01|07","Agriculture, Land Reform and Rural Development","Administration","Office Accommodation"]
[null,null,null,null,null,29,2,1,"29","02","01","29|02|01","Agriculture, Land Reform and Rural Development","Agricultural Production, Biosecurity and Natural Resources Management","Inspection and Quarantine Services"]
[null,null,null,null,null,29,2,2,"29","02","02","29|02|02","Agriculture, Land Reform and Rural Development","Agricultural Production, Biosecurity and Natural Resources Management","Plant Production and Health"]
[null,null,null,null,null,29,2,3,"29","02","03","29|02|03","Agriculture, Land Reform and Rural Development","Agricultural Production, Biosecurity and Natural Resources Management","Animal Production and Health"]
[null,null,null,null,null,29,2,4,"29","02","04","29|02|04","Agriculture, Land Reform and Rural Development","Agricultural Production, Biosecurity and Natural Resources Management","Natural Resources and Disaster Management"]
[null,null,null,null,null,29,2,5,"29","02","05","29|02|05","Agriculture, Land Reform and Rural Development","Agricultural Production, Biosecurity and Natural Resources Management","Biosecurity"]
[null,null,null,null,null,29,2,6,"29","02","06","29|02|06","Agriculture, Land Reform and Rural Development","Agricultural Production, Biosecurity and Natural Resources Management","Agricultural Research Council"]
[null,null,null,null,null,29,2,7,"29","02","07","29|02|07","Agriculture, Land Reform and Rural Development","Agricultural Production, Biosecurity and Natural Resources Management","Onderstepoort Biological Products"]
[null,null,null,null,null,29,3,1,"29","03","01","29|03|01","Agriculture, Land Reform and Rural Development","Food Security, Land Reform and Restitution","Food Security and Agrarian Reform"]
[null,null,null,null,null,29,3,2,"29","03","02","29|03|02","Agriculture, Land Reform and Rural Development","Food Security, Land Reform and Restitution","Land Redistribution and Tenure Reform"]
[null,null,null,null,null,29,3,3,"29","03","03","29|03|03","Agriculture, Land Reform and Rural Development","Food Security, Land Reform and Restitution","National Extension Support Services and Sector Capacity Development"]
[null,null,null,null,null,29,3,4,"29","03","04","29|03|04","Agriculture, Land Reform and Rural Development","Food Security, Land Reform and Restitution","Land Development and Post-settlement Support"]
[null,null,null,null,null,29,3,5,"29","03","05","29|03|05","Agriculture, Land Reform and Rural Development","Food Security, Land Reform and Restitution","Commission on the Restitution of Land Rights"]
[null,null,null,null,null,29,3,6,"29","03","06","29|03|06","Agriculture, Land Reform and Rural Development","Food Security, Land Reform and Restitution","Restitution"]
[null,null,null,null,null,29,3,7,"29","03","07","29|03|07","Agriculture, Land Reform and Rural Development","Food Security, Land Reform and Restitution","Agricultural Land Holding Account"]
[null,null,null,null,null,29,3,8,"29","03","08","29|03|08","Agriculture, Land Reform and Rural Development","Food Security, Land Reform and Restitution","Ingonyama Trust Board"]
[null,null,null,null,null,29,3,9,"29","03","09","29|03|09","Agriculture, Land Reform and Rural Development","Food Security, Land Reform and Restitution","Office of the Valuer-General"]
[null,null,null,null,null,29,4,1,"29","04","01","29|04|01","Agriculture, Land Reform and Rural Development","Rural Development","National Rural Youth Service Corps"]
[null,null,null,null,null,29,4,2,"29","04","02","29|04|02","Agriculture, Land Reform and Rural Development","Rural Development","Rural Infrastructure Development"]
[null,null,null,null,null,29,4,3,"29","04","03","29|04|03","Agriculture, Land Reform and Rural Development","Rural Development","Technology Research and Development"]
[null,null,null,null,null,29,5,1,"29","05","01","29|05|01","Agriculture, Land Reform and Rural Development","Economic Development, Trade and Marketing","International Relations and Trade"]
[null,null,null,null,null,29,5,2,"29","05","02","29|05|02","Agriculture, Land Reform and Rural Development","Economic Development, Trade and Marketing","Cooperatives Development"]
[null,null,null,null,null,29,5,3,"29","05","03","29|05|03","Agriculture, Land Reform and Rural Development","Economic Development, Trade and Marketing","Agro-Processing, Marketing and Rural Industrial Development"]
[null,null,null,null,null,29,5,4,"29","05","04","29|05|04","Agriculture, Land Reform and Rural Development","Economic Development, Trade and Marketing","National Agricultural Marketing Council"]
[null,null,null,null,null,29,6,1,"29","06","01","29|06|01","Agriculture, Land Reform and Rural Development","Land Administration","National Geomatics Management Services"]
[null,null,null,null,null,29,6,2,"29","06","02","29|06|02","Agriculture, Land Reform and Rural Development","Land Administration","Spatial Planning and Land Use"]
[null,null,null,null,null,29,6,3,"29","06","03","29|06|03","Agriculture, Land Reform and Rural Development","Land Administration","Deeds Registration"]
[null,null,null,null,null,29,6,4,"29","06","04","29|06|04","Agriculture, Land Reform and Rural Development","Land Administration","South African Council of Planners"]
[null,null,null,null,null,29,6,5,"29","06","05","29|06|05","Agriculture, Land Reform and Rural Development","Land Administration","South African Geomatics Council"]
[null,null,null,null,null,29,6,6,"29","06","06","29|06|06","Agriculture, Land Reform and Rural Development","Land Administration","Integrated Land Administration"]
[null,null,null,null,null,30,1,1,"30","01","01","30|01|01","Communications and Digital Technologies","Administration","Ministry"]
[null,null,null,null,null,30,1,2,"30","01","02","30|01|02","Communications and Digital Technologies","Administration","Departmental Management"]
[null,null,null,null,null,30,1,3,"30","01","03","30|01|03","Communications and Digital Technologies","Administration","Internal Audit"]
[null,null,null,null,null,30,1,4,"30","01","04","30|01|04","Communications and Digital Technologies","Administration","Corporate Services"]
[null,null,null,null,null,30,1,5,"30","01","05","30|01|05","Communications and Digital Technologies","Administration","Financial Management"]
[null,null,null,null,null,30,1,6,"30","01","06","30|01|06","Communications and Digital Technologies","Administration","Office Accommodation"]
[null,null,null,null,null,30,2,1,"30","02","01","30|02|01","Communications and Digital Technologies","ICT International Relations and Affairs","Programme Management for ICT International Relations and Affairs"]
[null,null,null,null,null,30,2,2,"30","02","02","30|02|02","Communications and Digital Technologies","ICT International Relations and Affairs","International Affairs"]
[null,null,null,null,null,30,2,3,"30","02","03","30|02|03","Communications and Digital Technologies","ICT International Relations and Affairs","ICT Trade/Partnership"]
[null,null,null,null,null,30,3,1,"30","03","01","30|03|01","Communications and Digital Technologies","ICT Policy Development and Research","Programme Management for ICT Policy Development and Research"]
[null,null,null,null,null,30,3,2,"30","03","02","30|03|02","Communications and Digital Technologies","ICT Policy Development and Research","ICT Policy Development"]
[null,null,null,null,null,30,3,3,"30","03","03","30|03|03","Communications and Digital Technologies","ICT Policy Development and Research","Economic and Market Analysis"]
[null,null,null,null,null,30,3,4,"30","03","04","30|03|04","Communications and Digital Technologies","ICT Policy Development and Research","Research"]
[null,null,null,null,null,30,3,5,"30","03","05","30|03|05","Communications and Digital Technologies","ICT Policy Development and Research","Small, Medium and Micro Enterprise"]
[null,null,null,null,null,30,3,6,"30","03","06","30|03|06","Communications and Digital Technologies","ICT Policy Development and Research","Broadcasting Policy"]
[null,null,null,null,null,30,3,7,"30","03","07","30|03|07","Communications and Digital Technologies","ICT Policy Development and Research","Presidential Commission on 4IR"]
[null,null,null,null,null,30,4,1,"30","04","01","30|04|01","Communications and Digital Technologies","ICT Enterprise and Public Entity Oversight","Programme Management for ICT Enterprise and Public Entity Oversight"]
[null,null,null,null,null,30,4,2,"30","04","02","30|04|02","Communications and Digital Technologies","ICT Enterprise and Public Entity Oversight","Regulatory Institutions"]
[null,null,null,null,null,30,4,3,"30","04","03","30|04|03","Communications and Digital Technologies","ICT Enterprise and Public Entity Oversight","Universal Service and Access"]
[null,null,null,null,null,30,4,4,"30","04","04","30|04|04","Communications and Digital Technologies","ICT Enterprise and Public Entity Oversight","ICT Skills Development"]
[null,null,null,null,null,30,4,5,"30","04","05","30|04|05","Communications and Digital Technologies","ICT Enterprise and Public Entity Oversight","State-owned Enterprise Governance and Support"]
[null,null,null,null,null,30,5,1,"30","05","01","30|05|01","Communications and Digital Technologies","ICT Infrastructure Development and Support","Programme Management for ICT Infrastructure Development and Support"]
[null,null,null,null,null,30,5,2,"30","05","02","30|05|02","Communications and Digital Technologies","ICT Infrastructure Development and Support","Broadband"]
[null,null,null,null,null,30,5,3,"30","05","03","30|05|03","Communications and Digital Technologies","ICT Infrastructure Development and Support","ICT Support"]
[null,null,null,null,null,30,5,4,"30","05","04","30|05|04","Communications and Digital Technologies","ICT Infrastructure Development and Support","Broadcasting Digital Migration"]
[null,null,null,null,null,30,6,1,"30","06","01","30|06|01","Communications and Digital Technologies","ICT Information Society and Capacity Development","Programme Management for ICT Information Society and Capacity Development"]
[null,null,null,null,null,30,6,2,"30","06","02","30|06|02","Communications and Digital Technologies","ICT Information Society and Capacity Development","Information Society Development"]
[null,null,null,null,null,30,6,3,"30","06","03","30|06|03","Communications and Digital Technologies","ICT Information Society and Capacity Development","Capacity Development"]
[null,null,null,null,null,31,1,1,"31","01","01","31|01|01","Employment and Labour","Administration","Ministry"]
[null,null,null,null,null,31,1,2,"31","01","02","31|01|02","Employment and Labour","Administration","Management"]
[null,null,null,null,null,31,1,3,"31","01","03","31|01|03","Employment and Labour","Administration","Corporate Services"]
[null,null,null,null,null,31,1,4,"31","01","04","31|01|04","Employment and Labour","Administration","Office of the Chief Financial Officer"]
[null,null,null,null,null,31,1,5,"31","01","05","31|01|05","Employment and Labour","Administration","Office Accommodation"]
[null,null,null,null,null,31,2,1,"31","02","01","31|02|01","Employment and Labour","Inspection and Enforcement Services","Management and Support Services: Inspection and Enforcement Services"]
[null,null,null,null,null,31,2,2,"31","02","02","31|02|02","Employment and Labour","Inspection and Enforcement Services","Occupational Health and Safety"]
[null,null,null,null,null,31,2,3,"31","02","03","31|02|03","Employment and Labour","Inspection and Enforcement Services","Registration: Inspection and Enforcement Services"]
[null,null,null,null,null,31,2,4,"31","02","04","31|02|04","Employment and Labour","Inspection and Enforcement Services","Compliance, Monitoring and Enforcement Services"]
[null,null,null,null,null,31,2,5,"31","02","05","31|02|05","Employment and Labour","Inspection and Enforcement Services","Training of Staff: Inspection and Enforcement Services"]
[null,null,null,null,null,31,2,6,"31","02","06","31|02|06","Employment and Labour","Inspection and Enforcement Services","Statutory and Advocacy Services"]
[null,null,null,null,null,31,3,1,"31","03","01","31|03|01","Employment and Labour","Public Employment Services","Management and Support Services: Public Employment Services"]
[null,null,null,null,null,31,3,2,"31","03","02","31|03|02","Employment and Labour","Public Employment Services","Employer Services"]
[null,null,null,null,null,31,3,3,"31","03","03","31|03|03","Employment and Labour","Public Employment Services","Work Seeker Services"]
[null,null,null,null,null,31,3,4,"31","03","04","31|03|04","Employment and Labour","Public Employment Services","Designated groups special services"]
[null,null,null,null,null,31,3,5,"31","03","05","31|03|05","Employment and Labour","Public Employment Services","Supported Employment Enterprises"]
[null,null,null,null,null,31,3,6,"31","03","06","31|03|06","Employment and Labour","Public Employment Services","Productivity South Africa"]
[null,null,null,null,null,31,3,7,"31","03","07","31|03|07","Employment and Labour","Public Employment Services","Unemployment Insurance Fund"]
[null,null,null,null,null,31,3,8,"31","03","08","31|03|08","Employment and Labour","Public Employment Services","Compensation Fund"]
[null,null,null,null,null,31,3,9,"31","03","09","31|03|09","Employment and Labour","Public Employment Services","Training of Staff: Public Employment Services"]
[null,null,null,null,null,31,4,1,"31","04","01","31|04|01","Employment and Labour","Labour Policy and Industrial Relations","Management and Support Services: Labour Policy and Industrial Relations"]
[null,null,null,null,null,31,4,2,"31","04","02","31|04|02","Employment and Labour","Labour Policy and Industrial Relations","Strengthen Civil Society"]
[null,null,null,null,null,31,4,3,"31","04","03","31|04|03","Employment and Labour","Labour Policy and Industrial Relations","Collective Bargaining"]
[null,null,null,null,null,31,4,4,"31","04","04","31|04|04","Employment and Labour","Labour Policy and Industrial Relations","Employment Equity"]
[null,null,null,null,null,31,4,5,"31","04","05","31|04|05","Employment and Labour","Labour Policy and Industrial Relations","Employment Standards"]
[null,null,null,null,null,31,4,6,"31","04","06","31|04|06","Employment and Labour","Labour Policy and Industrial Relations","Commission for Conciliation, Mediation and Arbitration"]
[null,null,null,null,null,31,4,7,"31","04","07","31|04|07","Employment and Labour","Labour Policy and Industrial Relations","Research, Policy and Planning"]
[null,null,null,null,null,31,4,8,"31","04","08","31|04|08","Employment and Labour","Labour Policy and Industrial Relations","Labour Market Information and Statistics"]
[null,null,null,null,null,31,4,9,"31","04","09","31|04|09","Employment and Labour","Labour Policy and Industrial Relations","International Labour Matters"]
[null,null,null,null,null,31,4,10,"31","04","10","31|04|10","Employment and Labour","Labour Policy and Industrial Relations","National Economic Development and Labour Council"]
[null,null,null,null,null,32,1,1,"32","01","01","32|01|01","Forestry, Fisheries and the Environment","Administration","Ministry"]
[null,null,null,null,null,32,1,2,"32","01","02","32|01|02","Forestry, Fisheries and the Environment","Administration","Departmental Management"]
[null,null,null,null,null,32,1,3,"32","01","03","32|01|03","Forestry, Fisheries and the Environment","Administration","Corporate Management Services"]
[null,null,null,null,null,32,1,4,"32","01","04","32|01|04","Forestry, Fisheries and the Environment","Administration","Financial Management Services"]
[null,null,null,null,null,32,1,5,"32","01","05","32|01|05","Forestry, Fisheries and the Environment","Administration","Office Accommodation"]
[null,null,null,null,null,32,1,6,"32","01","06","32|01|06","Forestry, Fisheries and the Environment","Administration","Internal Audit"]
[null,null,null,null,null,32,2,1,"32","02","01","32|02|01","Forestry, Fisheries and the Environment","Regulatory Compliance and Monitoring","Regulatory Compliance and Monitoring Management"]
[null,null,null,null,null,32,2,2,"32","02","02","32|02|02","Forestry, Fisheries and the Environment","Regulatory Compliance and Monitoring","Corporate Legal Support and Litigations"]
[null,null,null,null,null,32,2,3,"32","02","03","32|02|03","Forestry, Fisheries and the Environment","Regulatory Compliance and Monitoring","Law Reform and Policy Coordination"]
[null,null,null,null,null,32,2,4,"32","02","04","32|02|04","Forestry, Fisheries and the Environment","Regulatory Compliance and Monitoring","Integrated Environmental Authorisations"]
[null,null,null,null,null,32,2,5,"32","02","05","32|02|05","Forestry, Fisheries and the Environment","Regulatory Compliance and Monitoring","Compliance"]
[null,null,null,null,null,32,2,6,"32","02","06","32|02|06","Forestry, Fisheries and the Environment","Regulatory Compliance and Monitoring","Enforcement"]
[null,null,null,null,null,32,2,7,"32","02","07","32|02|07","Forestry, Fisheries and the Environment","Regulatory Compliance and Monitoring","Appeals and Strategic Environmental Instruments"]
[null,null,null,null,null,32,2,8,"32","02","08","32|02|08","Forestry, Fisheries and the Environment","Regulatory Compliance and Monitoring","Sector Knowledge and Information Management"]
[null,null,null,null,null,32,3,1,"32","03","01","32|03|01","Forestry, Fisheries and the Environment","Oceans and Coasts","Oceans and Coasts Management"]
[null,null,null,null,null,32,3,2,"32","03","02","32|03|02","Forestry, Fisheries and the Environment","Oceans and Coasts","Integrated Coastal Management and Coastal Conservation"]
[null,null,null,null,null,32,3,3,"32","03","03","32|03|03","Forestry, Fisheries and the Environment","Oceans and Coasts","Oceans and Coastal Research"]
[null,null,null,null,null,32,3,4,"32","03","04","32|03|04","Forestry, Fisheries and the Environment","Oceans and Coasts","Oceans Economy and Project Management"]
[null,null,null,null,null,32,3,5,"32","03","05","32|03|05","Forestry, Fisheries and the Environment","Oceans and Coasts","Specialist Monitoring Services"]
[null,null,null,null,null,32,4,1,"32","04","01","32|04|01","Forestry, Fisheries and the Environment","Climate Change and Air Quality","Climate Change and Air Quality Management"]
[null,null,null,null,null,32,4,2,"32","04","02","32|04|02","Forestry, Fisheries and the Environment","Climate Change and Air Quality","Climate Change Mitigation and Specialist Monitoring Services"]
[null,null,null,null,null,32,4,3,"32","04","03","32|04|03","Forestry, Fisheries and the Environment","Climate Change and Air Quality","Climate Change Adaptation"]
[null,null,null,null,null,32,4,4,"32","04","04","32|04|04","Forestry, Fisheries and the Environment","Climate Change and Air Quality","Air Quality Management"]
[null,null,null,null,null,32,4,5,"32","04","05","32|04|05","Forestry, Fisheries and the Environment","Climate Change and Air Quality","International Climate Change Relations and Reporting"]
[null,null,null,null,null,32,4,6,"32","04","06","32|04|06","Forestry, Fisheries and the Environment","Climate Change and Air Quality","International Governance and Resource Mobilisation"]
[null,null,null,null,null,32,4,7,"32","04","07","32|04|07","Forestry, Fisheries and the Environment","Climate Change and Air Quality","South African Weather Service"]
[null,null,null,null,null,32,5,1,"32","05","01","32|05|01","Forestry, Fisheries and the Environment","Biodiversity and Conservation","Biodiversity and Conservation Management"]
[null,null,null,null,null,32,5,2,"32","05","02","32|05|02","Forestry, Fisheries and the Environment","Biodiversity and Conservation","Biodiversity Management and Permitting"]
[null,null,null,null,null,32,5,3,"32","05","03","32|05|03","Forestry, Fisheries and the Environment","Biodiversity and Conservation","Protected Areas Systems Management"]
[null,null,null,null,null,32,5,4,"32","05","04","32|05|04","Forestry, Fisheries and the Environment","Biodiversity and Conservation","Biodiversity Monitoring Specialist Services"]
[null,null,null,null,null,32,5,5,"32","05","05","32|05|05","Forestry, Fisheries and the Environment","Biodiversity and Conservation","Biodiversity Economy and Sustainable Use"]
[null,null,null,null,null,32,5,6,"32","05","06","32|05|06","Forestry, Fisheries and the Environment","Biodiversity and Conservation","iSimangaliso Wetland Park Authority"]
[null,null,null,null,null,32,5,7,"32","05","07","32|05|07","Forestry, Fisheries and the Environment","Biodiversity and Conservation","South African National Parks"]
[null,null,null,null,null,32,5,8,"32","05","08","32|05|08","Forestry, Fisheries and the Environment","Biodiversity and Conservation","South African National Biodiversity Institute"]
[null,null,null,null,null,32,6,1,"32","06","01","32|06|01","Forestry, Fisheries and the Environment","Environmental Programmes","Environmental Programmes Management"]
[null,null,null,null,null,32,6,2,"32","06","02","32|06|02","Forestry, Fisheries and the Environment","Environmental Programmes","Environmental Programme Region 1"]
[null,null,null,null,null,32,6,3,"32","06","03","32|06|03","Forestry, Fisheries and the Environment","Environmental Programmes","Environmental Programme Region 2"]
[null,null,null,null,null,32,6,4,"32","06","04","32|06|04","Forestry, Fisheries and the Environment","Environmental Programmes","Environmental Programme Region 3"]
[null,null,null,null,null,32,6,5,"32","06","05","32|06|05","Forestry, Fisheries and the Environment","Environmental Programmes","Sector Coordination and Quality Management"]
[null,null,null,null,null,32,7,1,"32","07","01","32|07|01","Forestry, Fisheries and the Environment","Chemicals and Waste Management","Chemicals and Waste Management"]
[null,null,null,null,null,32,7,2,"32","07","02","32|07|02","Forestry, Fisheries and the Environment","Chemicals and Waste Management","Hazardous Waste Management and Licensing"]
[null,null,null,null,null,32,7,3,"32","07","03","32|07|03","Forestry, Fisheries and the Environment","Chemicals and Waste Management","Integrated Waste Management"]
[null,null,null,null,null,32,7,4,"32","07","04","32|07|04","Forestry, Fisheries and the Environment","Chemicals and Waste Management","Chemicals and Waste Management Policy and Specialist Monitoring Services"]
[null,null,null,null,null,32,7,5,"32","07","05","32|07|05","Forestry, Fisheries and the Environment","Chemicals and Waste Management","Chemicals and Waste Economy Programme Coordination"]
[null,null,null,null,null,32,7,6,"32","07","06","32|07|06","Forestry, Fisheries and the Environment","Chemicals and Waste Management","Chemicals Management"]
[null,null,null,null,null,32,7,7,"32","07","07","32|07|07","Forestry, Fisheries and the Environment","Chemicals and Waste Management","Waste Bureau"]
[null,null,null,null,null,32,8,1,"32","08","01","32|08|01","Forestry, Fisheries and the Environment","Forestry Management","Forestry Management"]
[null,null,null,null,null,32,8,2,"32","08","02","32|08|02","Forestry, Fisheries and the Environment","Forestry Management","Forest Land Management and Post Settlement Support"]
[null,null,null,null,null,32,8,3,"32","08","03","32|08|03","Forestry, Fisheries and the Environment","Forestry Management","Forestry Development"]
[null,null,null,null,null,32,8,4,"32","08","04","32|08|04","Forestry, Fisheries and the Environment","Forestry Management","Forestry Policy Management"]
[null,null,null,null,null,32,9,1,"32","09","01","32|09|01","Forestry, Fisheries and the Environment","Fisheries Management","Fisheries Management"]
[null,null,null,null,null,32,9,2,"32","09","02","32|09|02","Forestry, Fisheries and the Environment","Fisheries Management","Aquaculture Development and Fresh Water Fisheries"]
[null,null,null,null,null,32,9,3,"32","09","03","32|09|03","Forestry, Fisheries and the Environment","Fisheries Management","Monitoring, Control and Surveillance"]
[null,null,null,null,null,32,9,4,"32","09","04","32|09|04","Forestry, Fisheries and the Environment","Fisheries Management","Marine Resources Management"]
[null,null,null,null,null,32,9,5,"32","09","05","32|09|05","Forestry, Fisheries and the Environment","Fisheries Management","Fisheries Research and Development"]
[null,null,null,null,null,32,9,6,"32","09","06","32|09|06","Forestry, Fisheries and the Environment","Fisheries Management","Marine Living Resources Fund"]
[null,null,null,null,null,33,1,1,"33","01","01","33|01|01","Human Settlements","Administration","Ministry"]
[null,null,null,null,null,33,1,2,"33","01","02","33|01|02","Human Settlements","Administration","Departmental Management"]
[null,null,null,null,null,33,1,3,"33","01","03","33|01|03","Human Settlements","Administration","Corporate Services"]
[null,null,null,null,null,33,1,4,"33","01","04","33|01|04","Human Settlements","Administration","Property Management"]
[null,null,null,null,null,33,1,5,"33","01","05","33|01|05","Human Settlements","Administration","Financial Management"]
[null,null,null,null,null,33,2,1,"33","02","01","33|02|01","Human Settlements","Integrated Human Settlements Planning and Development","Management for Integrated Human Settlements Planning and Development"]
[null,null,null,null,null,33,2,2,"33","02","02","33|02|02","Human Settlements","Integrated Human Settlements Planning and Development","Macro Sector Planning"]
[null,null,null,null,null,33,2,3,"33","02","03","33|02|03","Human Settlements","Integrated Human Settlements Planning and Development","Macro Policy and Research"]
[null,null,null,null,null,33,2,4,"33","02","04","33|02|04","Human Settlements","Integrated Human Settlements Planning and Development","Monitoring and Evaluation"]
[null,null,null,null,null,33,2,5,"33","02","05","33|02|05","Human Settlements","Integrated Human Settlements Planning and Development","Public Entity Oversight"]
[null,null,null,null,null,33,2,6,"33","02","06","33|02|06","Human Settlements","Integrated Human Settlements Planning and Development","Grant Management"]
[null,null,null,null,null,33,2,7,"33","02","07","33|02|07","Human Settlements","Integrated Human Settlements Planning and Development","Capacity Building and Sector Support"]
[null,null,null,null,null,33,3,1,"33","03","01","33|03|01","Human Settlements","Informal Settlements","Management for Informal Settlements"]
[null,null,null,null,null,33,3,2,"33","03","02","33|03|02","Human Settlements","Informal Settlements","Grant Management"]
[null,null,null,null,null,33,3,3,"33","03","03","33|03|03","Human Settlements","Informal Settlements","Capacity Building and Sector Support"]
[null,null,null,null,null,33,4,1,"33","04","01","33|04|01","Human Settlements","Rental and Social Housing","Management for Rental and Social Housing"]
[null,null,null,null,null,33,4,2,"33","04","02","33|04|02","Human Settlements","Rental and Social Housing","Public Entity Oversight"]
[null,null,null,null,null,33,4,3,"33","04","03","33|04|03","Human Settlements","Rental and Social Housing","Capacity Building and Sector Support"]
[null,null,null,null,null,33,5,1,"33","05","01","33|05|01","Human Settlements","Affordable Housing","Management for Affordable Housing"]
[null,null,null,null,null,33,5,2,"33","05","02","33|05|02","Human Settlements","Affordable Housing","Public Entity Oversight"]
[null,null,null,null,null,33,5,3,"33","05","03","33|05|03","Human Settlements","Affordable Housing","Capacity Building and Sector Support"]
[null,null,null,null,null,34,1,1,"34","01","01","34|01|01","Mineral Resources and Energy","Administration","Ministry"]
[null,null,null,null,null,34,1,2,"34","01","02","34|01|02","Mineral Resources and Energy","Administration","Departmental Management"]
[null,null,null,null,null,34,1,3,"34","01","03","34|01|03","Mineral Resources and Energy","Administration","Audit Services"]
[null,null,null,null,null,34,1,4,"34","01","04","34|01|04","Mineral Resources and Energy","Administration","Financial Administration"]
[null,null,null,null,null,34,1,5,"34","01","05","34|01|05","Mineral Resources and Energy","Administration","Corporate Services"]
[null,null,null,null,null,34,1,6,"34","01","06","34|01|06","Mineral Resources and Energy","Administration","Office Accommodation"]
[null,null,null,null,null,34,2,1,"34","02","01","34|02|01","Mineral Resources and Energy","Minerals and Petroleum Regulation","Minerals and Petroleum Management"]
[null,null,null,null,null,34,2,2,"34","02","02","34|02|02","Mineral Resources and Energy","Minerals and Petroleum Regulation","Mineral Regulation and Administration"]
[null,null,null,null,null,34,2,3,"34","02","03","34|02|03","Mineral Resources and Energy","Minerals and Petroleum Regulation","Environmental Enforcement and Compliance"]
[null,null,null,null,null,34,2,4,"34","02","04","34|02|04","Mineral Resources and Energy","Minerals and Petroleum Regulation","Petroleum Compliance Monitoring, Enforcement and Fuel Pricing"]
[null,null,null,null,null,34,2,5,"34","02","05","34|02|05","Mineral Resources and Energy","Minerals and Petroleum Regulation","Petroleum Licensing and Fuel Supply"]
[null,null,null,null,null,34,3,1,"34","03","01","34|03|01","Mineral Resources and Energy","Mining, Minerals and Energy Policy Development","Mining, Minerals and Energy Policy Development Management"]
[null,null,null,null,null,34,3,2,"34","03","02","34|03|02","Mineral Resources and Energy","Mining, Minerals and Energy Policy Development","Minerals and Petroleum Policy"]
[null,null,null,null,null,34,3,3,"34","03","03","34|03|03","Mineral Resources and Energy","Mining, Minerals and Energy Policy Development","Nuclear, Electricity and Gas Policy"]
[null,null,null,null,null,34,3,4,"34","03","04","34|03|04","Mineral Resources and Energy","Mining, Minerals and Energy Policy Development","Economic Analysis and Statistics"]
[null,null,null,null,null,34,3,5,"34","03","05","34|03|05","Mineral Resources and Energy","Mining, Minerals and Energy Policy Development","Economic Growth, Promotion and Global Relations"]
[null,null,null,null,null,34,3,6,"34","03","06","34|03|06","Mineral Resources and Energy","Mining, Minerals and Energy Policy Development","Mineral and Energy Planning"]
[null,null,null,null,null,34,4,1,"34","04","01","34|04|01","Mineral Resources and Energy","Mine Health and Safety Inspectorate","Mine Health and Safety Management"]
[null,null,null,null,null,34,4,2,"34","04","02","34|04|02","Mineral Resources and Energy","Mine Health and Safety Inspectorate","Mine Health and Safety Regions"]
[null,null,null,null,null,34,4,3,"34","04","03","34|04|03","Mineral Resources and Energy","Mine Health and Safety Inspectorate","Occupational Health"]
[null,null,null,null,null,34,5,1,"34","05","01","34|05|01","Mineral Resources and Energy","Mineral and Energy Resources Programmes and Projects","Programmes and Projects Management"]
[null,null,null,null,null,34,5,2,"34","05","02","34|05|02","Mineral Resources and Energy","Mineral and Energy Resources Programmes and Projects","Integrated National Electrification Programme"]
[null,null,null,null,null,34,5,3,"34","05","03","34|05|03","Mineral Resources and Energy","Mineral and Energy Resources Programmes and Projects","Programmes and Projects Management Office"]
[null,null,null,null,null,34,5,4,"34","05","04","34|05|04","Mineral Resources and Energy","Mineral and Energy Resources Programmes and Projects","Regional Programmes and Projects Management Office"]
[null,null,null,null,null,34,5,5,"34","05","05","34|05|05","Mineral Resources and Energy","Mineral and Energy Resources Programmes and Projects","Electricity Infrastructure and Industry Transformation"]
[null,null,null,null,null,34,5,6,"34","05","06","34|05|06","Mineral Resources and Energy","Mineral and Energy Resources Programmes and Projects","Energy Efficiency Projects"]
[null,null,null,null,null,34,5,7,"34","05","07","34|05|07","Mineral Resources and Energy","Mineral and Energy Resources Programmes and Projects","Renewable Energy Projects"]
[null,null,null,null,null,34,5,8,"34","05","08","34|05|08","Mineral Resources and Energy","Mineral and Energy Resources Programmes and Projects","Environmental Management Projects"]
[null,null,null,null,null,34,6,1,"34","06","01","34|06|01","Mineral Resources and Energy","Nuclear Energy Regulation and Management","Nuclear Energy Management"]
[null,null,null,null,null,34,6,2,"34","06","02","34|06|02","Mineral Resources and Energy","Nuclear Energy Regulation and Management","Nuclear Safety and Technology"]
[null,null,null,null,null,34,6,3,"34","06","03","34|06|03","Mineral Resources and Energy","Nuclear Energy Regulation and Management","Nuclear Non-proliferation and Radiation Security"]
[null,null,null,null,null,35,1,1,"35","01","01","35|01|01","Science and Innovation","Administration","Ministry"]
[null,null,null,null,null,35,1,2,"35","01","02","35|01|02","Science and Innovation","Administration","Institutional Planning and Support"]
[null,null,null,null,null,35,1,3,"35","01","03","35|01|03","Science and Innovation","Administration","Corporate Services"]
[null,null,null,null,null,35,1,4,"35","01","04","35|01|04","Science and Innovation","Administration","Office Accommodation"]
[null,null,null,null,null,35,2,1,"35","02","01","35|02|01","Science and Innovation","Technology Innovation","Space Science"]
[null,null,null,null,null,35,2,2,"35","02","02","35|02|02","Science and Innovation","Technology Innovation","Hydrogen and Energy"]
[null,null,null,null,null,35,2,3,"35","02","03","35|02|03","Science and Innovation","Technology Innovation","Bio-innovation"]
[null,null,null,null,null,35,2,4,"35","02","04","35|02|04","Science and Innovation","Technology Innovation","Innovation Priorities and Instruments"]
[null,null,null,null,null,35,2,5,"35","02","05","35|02|05","Science and Innovation","Technology Innovation","National Intellectual Property Management Office"]
[null,null,null,null,null,35,2,6,"35","02","06","35|02|06","Science and Innovation","Technology Innovation","Office of the Deputy Director-General: Technology Innovation"]
[null,null,null,null,null,35,3,1,"35","03","01","35|03|01","Science and Innovation","International Cooperation and Resources","Multilateral Cooperation and Africa"]
[null,null,null,null,null,35,3,2,"35","03","02","35|03|02","Science and Innovation","International Cooperation and Resources","International Resources"]
[null,null,null,null,null,35,3,3,"35","03","03","35|03|03","Science and Innovation","International Cooperation and Resources","Overseas Bilateral Cooperation"]
[null,null,null,null,null,35,3,4,"35","03","04","35|03|04","Science and Innovation","International Cooperation and Resources","Office of the Deputy Director-General: International Cooperation and Resources"]
[null,null,null,null,null,35,4,1,"35","04","01","35|04|01","Science and Innovation","Research Development and Support","Human Capital and Science Promotions"]
[null,null,null,null,null,35,4,2,"35","04","02","35|04|02","Science and Innovation","Research Development and Support","Science Missions"]
[null,null,null,null,null,35,4,3,"35","04","03","35|04|03","Science and Innovation","Research Development and Support","Basic Science and Infrastructure"]
[null,null,null,null,null,35,4,4,"35","04","04","35|04|04","Science and Innovation","Research Development and Support","Astronomy"]
[null,null,null,null,null,35,4,5,"35","04","05","35|04|05","Science and Innovation","Research Development and Support","Office of the Deputy Director-General: Research, Development and Support"]
[null,null,null,null,null,35,5,1,"35","05","01","35|05|01","Science and Innovation","Socioeconomic Innovation Partnerships","Sector Innovation and Green Economy"]
[null,null,null,null,null,35,5,2,"35","05","02","35|05|02","Science and Innovation","Socioeconomic Innovation Partnerships","Innovation for Inclusive Development"]
[null,null,null,null,null,35,5,3,"35","05","03","35|05|03","Science and Innovation","Socioeconomic Innovation Partnerships","Science and Technology Investment"]
[null,null,null,null,null,35,5,4,"35","05","04","35|05|04","Science and Innovation","Socioeconomic Innovation Partnerships","Technology Localisation, Beneficiation and Advanced Manufacturing"]
[null,null,null,null,null,35,5,5,"35","05","05","35|05|05","Science and Innovation","Socioeconomic Innovation Partnerships","Office of the Deputy Director-General: Socioeconomic Innovation Partnership"]
[null,null,null,null,null,36,1,1,"36","01","01","36|01|01","Small Business Development","Administration","Ministry"]
[null,null,null,null,null,36,1,2,"36","01","02","36|01|02","Small Business Development","Administration","Departmental Management"]
[null,null,null,null,null,36,1,3,"36","01","03","36|01|03","Small Business Development","Administration","Corporate Management Services"]
[null,null,null,null,null,36,1,4,"36","01","04","36|01|04","Small Business Development","Administration","Financial Management"]
[null,null,null,null,null,36,2,1,"36","02","01","36|02|01","Small Business Development","Sector Policy and Research","Business Intelligence and Sector-Wide Monitoring and Evaluation"]
[null,null,null,null,null,36,2,2,"36","02","02","36|02|02","Small Business Development","Sector Policy and Research","Intergovernmental Relations and Business Efficiency"]
[null,null,null,null,null,36,2,3,"36","02","03","36|02|03","Small Business Development","Sector Policy and Research","Sector Specific Support"]
[null,null,null,null,null,36,3,1,"36","03","01","36|03|01","Small Business Development","Integrated Cooperatives and Micro Enterprise Development","Integrated Co-operatives and Micro Enterprise Development"]
[null,null,null,null,null,36,3,2,"36","03","02","36|03|02","Small Business Development","Integrated Cooperatives and Micro Enterprise Development","Economic Transformation Initiatives"]
[null,null,null,null,null,36,3,3,"36","03","03","36|03|03","Small Business Development","Integrated Cooperatives and Micro Enterprise Development","Value Chain and Market Access Support"]
[null,null,null,null,null,36,4,1,"36","04","01","36|04|01","Small Business Development","Enterprise Development, Innovation and Entrepreneurship","Enterprise Development, Innovation and Entrepreneurship"]
[null,null,null,null,null,36,4,2,"36","04","02","36|04|02","Small Business Development","Enterprise Development, Innovation and Entrepreneurship","Entrepreneurship and Enterprise Development"]
[null,null,null,null,null,36,4,3,"36","04","03","36|04|03","Small Business Development","Enterprise Development, Innovation and Entrepreneurship","Funding Support and Coordination"]
[null,null,null,null,null,37,1,1,"37","01","01","37|01|01","Sport, Arts and Culture","Administration","Ministry"]
[null,null,null,null,null,37,1,2,"37","01","02","37|01|02","Sport, Arts and Culture","Administration","Management"]
[null,null,null,null,null,37,1,3,"37","01","03","37|01|03","Sport, Arts and Culture","Administration","Strategic Management and Planning"]
[null,null,null,null,null,37,1,4,"37","01","04","37|01|04","Sport, Arts and Culture","Administration","Corporate Services"]
[null,null,null,null,null,37,1,5,"37","01","05","37|01|05","Sport, Arts and Culture","Administration","Office of the Chief Financial Officer"]
[null,null,null,null,null,37,1,6,"37","01","06","37|01|06","Sport, Arts and Culture","Administration","Office Accommodation"]
[null,null,null,null,null,37,2,1,"37","02","01","37|02|01","Sport, Arts and Culture","Recreation Development and Sport Promotion","Winning Nation"]
[null,null,null,null,null,37,2,2,"37","02","02","37|02|02","Sport, Arts and Culture","Recreation Development and Sport Promotion","Active Nation"]
[null,null,null,null,null,37,2,3,"37","02","03","37|02|03","Sport, Arts and Culture","Recreation Development and Sport Promotion","Infrastructure Support"]
[null,null,null,null,null,37,3,1,"37","03","01","37|03|01","Sport, Arts and Culture","Arts and Culture Promotion and Development","National Language Services"]
[null,null,null,null,null,37,3,2,"37","03","02","37|03|02","Sport, Arts and Culture","Arts and Culture Promotion and Development","Pan South African Language Board"]
[null,null,null,null,null,37,3,3,"37","03","03","37|03|03","Sport, Arts and Culture","Arts and Culture Promotion and Development","Cultural and Creative Industries Development"]
[null,null,null,null,null,37,3,4,"37","03","04","37|03|04","Sport, Arts and Culture","Arts and Culture Promotion and Development","International Cooperation"]
[null,null,null,null,null,37,3,5,"37","03","05","37|03|05","Sport, Arts and Culture","Arts and Culture Promotion and Development","Social Cohesion and Nation Building"]
[null,null,null,null,null,37,3,6,"37","03","06","37|03|06","Sport, Arts and Culture","Arts and Culture Promotion and Development","Mzansi Golden Economy"]
[null,null,null,null,null,37,3,7,"37","03","07","37|03|07","Sport, Arts and Culture","Arts and Culture Promotion and Development","Performing Arts Institutions"]
[null,null,null,null,null,37,3,8,"37","03","08","37|03|08","Sport, Arts and Culture","Arts and Culture Promotion and Development","National Film and Video Foundation"]
[null,null,null,null,null,37,3,9,"37","03","09","37|03|09","Sport, Arts and Culture","Arts and Culture Promotion and Development","National Arts Council"]
[null,null,null,null,null,37,4,1,"37","04","01","37|04|01","Sport, Arts and Culture","Heritage Promotion and Preservation","Heritage Promotion"]
[null,null,null,null,null,37,4,2,"37","04","02","37|04|02","Sport, Arts and Culture","Heritage Promotion and Preservation","National Archive Services"]
[null,null,null,null,null,37,4,3,"37","04","03","37|04|03","Sport, Arts and Culture","Heritage Promotion and Preservation","Heritage Institutions"]
[null,null,null,null,null,37,4,4,"37","04","04","37|04|04","Sport, Arts and Culture","Heritage Promotion and Preservation","National Library Services"]
[null,null,null,null,null,37,4,5,"37","04","05","37|04|05","Sport, Arts and Culture","Heritage Promotion and Preservation","Public Library Services"]
[null,null,null,null,null,37,4,6,"37","04","06","37|04|06","Sport, Arts and Culture","Heritage Promotion and Preservation","South African Heritage Resources Agency"]
[null,null,null,null,null,37,4,7,"37","04","07","37|04|07","Sport, Arts and Culture","Heritage Promotion and Preservation","South African Geographical Council"]
[null,null,null,null,null,37,4,8,"37","04","08","37|04|08","Sport, Arts and Culture","Heritage Promotion and Preservation","National Heritage Council"]
[null,null,null,null,null,38,1,1,"38","01","01","38|01|01","Tourism","Administration","Ministry"]
[null,null,null,null,null,38,1,2,"38","01","02","38|01|02","Tourism","Administration","Management"]
[null,null,null,null,null,38,1,3,"38","01","03","38|01|03","Tourism","Administration","Corporate Management"]
[null,null,null,null,null,38,1,4,"38","01","04","38|01|04","Tourism","Administration","Financial Management"]
[null,null,null,null,null,38,1,5,"38","01","05","38|01|05","Tourism","Administration","Office Accommodation"]
[null,null,null,null,null,38,2,1,"38","02","01","38|02|01","Tourism","Tourism Research, Policy and International Relations","Tourism Research, Policy and International Relations Management"]
[null,null,null,null,null,38,2,2,"38","02","02","38|02|02","Tourism","Tourism Research, Policy and International Relations","Research and Knowledge Management"]
[null,null,null,null,null,38,2,3,"38","02","03","38|02|03","Tourism","Tourism Research, Policy and International Relations","Policy Planning and Strategy"]
[null,null,null,null,null,38,2,4,"38","02","04","38|02|04","Tourism","Tourism Research, Policy and International Relations","South African Tourism"]
[null,null,null,null,null,38,2,5,"38","02","05","38|02|05","Tourism","Tourism Research, Policy and International Relations","International Relations and Cooperation"]
[null,null,null,null,null,38,3,1,"38","03","01","38|03|01","Tourism","Destination Development","Destination Development Management"]
[null,null,null,null,null,38,3,2,"38","03","02","38|03|02","Tourism","Destination Development","Tourism Enhancement"]
[null,null,null,null,null,38,3,3,"38","03","03","38|03|03","Tourism","Destination Development","Destination Planning and Investment Coordination"]
[null,null,null,null,null,38,3,4,"38","03","04","38|03|04","Tourism","Destination Development","Working for Tourism"]
[null,null,null,null,null,38,4,1,"38","04","01","38|04|01","Tourism","Tourism Sector Support Services","Tourism Sector Support Services Management"]
[null,null,null,null,null,38,4,2,"38","04","02","38|04|02","Tourism","Tourism Sector Support Services","Tourism Human Resource Development"]
[null,null,null,null,null,38,4,3,"38","04","03","38|04|03","Tourism","Tourism Sector Support Services","Enterprise Development and Transformation"]
[null,null,null,null,null,38,4,4,"38","04","04","38|04|04","Tourism","Tourism Sector Support Services","Tourism Visitor Services"]
[null,null,null,null,null,38,4,5,"38","04","05","38|04|05","Tourism","Tourism Sector Support Services","Tourism incentive programme"]
[null,null,null,null,null,39,1,1,"39","01","01","39|01|01","Trade, Industry and Competition","Administration","Ministry"]
[null,null,null,null,null,39,1,2,"39","01","02","39|01|02","Trade, Industry and Competition","Administration","Office of the Director-General"]
[null,null,null,null,null,39,1,3,"39","01","03","39|01|03","Trade, Industry and Competition","Administration","Corporate Management Services"]
[null,null,null,null,null,39,1,4,"39","01","04","39|01|04","Trade, Industry and Competition","Administration","Office Accommodation"]
[null,null,null,null,null,39,1,5,"39","01","05","39|01|05","Trade, Industry and Competition","Administration","Financial Management"]
[null,null,null,null,null,39,1,6,"39","01","06","39|01|06","Trade, Industry and Competition","Administration","Marketing Communication and Media Relations"]
[null,null,null,null,null,39,2,1,"39","02","01","39|02|01","Trade, Industry and Competition","Trade","International Trade Development"]
[null,null,null,null,null,39,2,2,"39","02","02","39|02|02","Trade, Industry and Competition","Trade","African Multilateral Economic Development"]
[null,null,null,null,null,39,3,1,"39","03","01","39|03|01","Trade, Industry and Competition","Investment and Spatial Industrial Development","Investment Promotion"]
[null,null,null,null,null,39,3,2,"39","03","02","39|03|02","Trade, Industry and Competition","Investment and Spatial Industrial Development","Investment and Interdepartmental Clearing House"]
[null,null,null,null,null,39,3,3,"39","03","03","39|03|03","Trade, Industry and Competition","Investment and Spatial Industrial Development","Investor Support and Aftercare"]
[null,null,null,null,null,39,3,4,"39","03","04","39|03|04","Trade, Industry and Competition","Investment and Spatial Industrial Development","Spatial Industrial Development"]
[null,null,null,null,null,39,4,1,"39","04","01","39|04|01","Trade, Industry and Competition","Sectors","Industrial Competitiveness"]
[null,null,null,null,null,39,4,2,"39","04","02","39|04|02","Trade, Industry and Competition","Sectors","Customised Sector Programmes"]
[null,null,null,null,null,39,5,1,"39","05","01","39|05|01","Trade, Industry and Competition","Regulation","Policy and Legislative Development"]
[null,null,null,null,null,39,5,2,"39","05","02","39|05|02","Trade, Industry and Competition","Regulation","Enforcement and Compliance"]
[null,null,null,null,null,39,5,3,"39","05","03","39|05|03","Trade, Industry and Competition","Regulation","Regulatory Services"]
[null,null,null,null,null,39,6,1,"39","06","01","39|06|01","Trade, Industry and Competition","Incentives","Broadening Participation and Industrial Incentives"]
[null,null,null,null,null,39,6,2,"39","06","02","39|06|02","Trade, Industry and Competition","Incentives","Manufacturing Incentives"]
[null,null,null,null,null,39,6,3,"39","06","03","39|06|03","Trade, Industry and Competition","Incentives","Services Investment Incentives"]
[null,null,null,null,null,39,6,4,"39","06","04","39|06|04","Trade, Industry and Competition","Incentives","Infrastructure Investment Support"]
[null,null,null,null,null,39,6,5,"39","06","05","39|06|05","Trade, Industry and Competition","Incentives","Product and Systems Development"]
[null,null,null,null,null,39,6,6,"39","06","06","39|06|06","Trade, Industry and Competition","Incentives","Strategic Partnership and Customer Care"]
[null,null,null,null,null,39,7,1,"39","07","01","39|07|01","Trade, Industry and Competition","Export","African Bilateral Economic Relations"]
[null,null,null,null,null,39,7,2,"39","07","02","39|07|02","Trade, Industry and Competition","Export","Export Promotion and Marketing"]
[null,null,null,null,null,39,7,3,"39","07","03","39|07|03","Trade, Industry and Competition","Export","Trade and Investment Foreign Services Management Unit"]
[null,null,null,null,null,39,7,4,"39","07","04","39|07|04","Trade, Industry and Competition","Export","Export Development and Support"]
[null,null,null,null,null,39,8,1,"39","08","01","39|08|01","Trade, Industry and Competition","Transformation and Competition","Economic Planning and Advisory"]
[null,null,null,null,null,39,8,2,"39","08","02","39|08|02","Trade, Industry and Competition","Transformation and Competition","Implementation Coordination and Competition Oversight"]
[null,null,null,null,null,39,8,3,"39","08","03","39|08|03","Trade, Industry and Competition","Transformation and Competition","Investment and Development"]
[null,null,null,null,null,39,8,4,"39","08","04","39|08|04","Trade, Industry and Competition","Transformation and Competition","Equity and Empowerment"]
[null,null,null,null,null,39,9,1,"39","09","01","39|09|01","Trade, Industry and Competition","Research","Economic Research and Policy Coordination"]
[null,null,null,null,null,39,9,2,"39","09","02","39|09|02","Trade, Industry and Competition","Research","Macroeconomic and Microeconomic Policy"]
[null,null,null,null,null,39,9,3,"39","09","03","39|09|03","Trade, Industry and Competition","Research","Growth Path and Decent Work"]
[null,null,null,null,null,40,1,1,"40","01","01","40|01|01","Transport","Administration","Ministry"]
[null,null,null,null,null,40,1,2,"40","01","02","40|01|02","Transport","Administration","Management"]
[null,null,null,null,null,40,1,3,"40","01","03","40|01|03","Transport","Administration","Corporate Services"]
[null,null,null,null,null,40,1,4,"40","01","04","40|01|04","Transport","Administration","Communications"]
[null,null,null,null,null,40,1,5,"40","01","05","40|01|05","Transport","Administration","Office Accommodation"]
[null,null,null,null,null,40,2,1,"40","02","01","40|02|01","Transport","Integrated Transport Planning","Macro Sector Planning"]
[null,null,null,null,null,40,2,2,"40","02","02","40|02|02","Transport","Integrated Transport Planning","Freight Logistics"]
[null,null,null,null,null,40,2,3,"40","02","03","40|02|03","Transport","Integrated Transport Planning","Modelling and Economic Analysis"]
[null,null,null,null,null,40,2,4,"40","02","04","40|02|04","Transport","Integrated Transport Planning","Regional Integration"]
[null,null,null,null,null,40,2,5,"40","02","05","40|02|05","Transport","Integrated Transport Planning","Research and Innovation"]
[null,null,null,null,null,40,2,6,"40","02","06","40|02|06","Transport","Integrated Transport Planning","Integrated Transport Planning Administration Support"]
[null,null,null,null,null,40,3,1,"40","03","01","40|03|01","Transport","Rail Transport","Rail Regulation"]
[null,null,null,null,null,40,3,2,"40","03","02","40|03|02","Transport","Rail Transport","Rail Infrastructure and Industry Development"]
[null,null,null,null,null,40,3,3,"40","03","03","40|03|03","Transport","Rail Transport","Rail Operations"]
[null,null,null,null,null,40,3,4,"40","03","04","40|03|04","Transport","Rail Transport","Rail Oversight"]
[null,null,null,null,null,40,3,5,"40","03","05","40|03|05","Transport","Rail Transport","Rail Administration Support"]
[null,null,null,null,null,40,4,1,"40","04","01","40|04|01","Transport","Road Transport","Road Regulation"]
[null,null,null,null,null,40,4,2,"40","04","02","40|04|02","Transport","Road Transport","Road Infrastructure and Industry Development"]
[null,null,null,null,null,40,4,3,"40","04","03","40|04|03","Transport","Road Transport","Road Oversight"]
[null,null,null,null,null,40,4,4,"40","04","04","40|04|04","Transport","Road Transport","Road Administration Support"]
[null,null,null,null,null,40,4,5,"40","04","05","40|04|05","Transport","Road Transport","Road Engineering Standards"]
[null,null,null,null,null,40,5,1,"40","05","01","40|05|01","Transport","Civil Aviation","Aviation Policy and Regulations"]
[null,null,null,null,null,40,5,2,"40","05","02","40|05|02","Transport","Civil Aviation","Aviation Economic Analysis and Industry Development"]
[null,null,null,null,null,40,5,3,"40","05","03","40|05|03","Transport","Civil Aviation","Aviation Safety, Security, Environment, and Search and Rescue"]
[null,null,null,null,null,40,5,4,"40","05","04","40|05|04","Transport","Civil Aviation","Aviation Oversight"]
[null,null,null,null,null,40,5,5,"40","05","05","40|05|05","Transport","Civil Aviation","Aviation Administration Support"]
[null,null,null,null,null,40,6,1,"40","06","01","40|06|01","Transport","Maritime Transport","Maritime Policy Development"]
[null,null,null,null,null,40,6,2,"40","06","02","40|06|02","Transport","Maritime Transport","Maritime Infrastructure and Industry Development"]
[null,null,null,null,null,40,6,3,"40","06","03","40|06|03","Transport","Maritime Transport","Implementation, Monitoring and Evaluation"]
[null,null,null,null,null,40,6,4,"40","06","04","40|06|04","Transport","Maritime Transport","Maritime Oversight"]
[null,null,null,null,null,40,6,5,"40","06","05","40|06|05","Transport","Maritime Transport","Maritime Administration Support"]
[null,null,null,null,null,40,7,1,"40","07","01","40|07|01","Transport","Public Transport","Public Transport Regulation"]
[null,null,null,null,null,40,7,2,"40","07","02","40|07|02","Transport","Public Transport","Rural and Scholar Transport"]
[null,null,null,null,null,40,7,3,"40","07","03","40|07|03","Transport","Public Transport","Public Transport Industry Development"]
[null,null,null,null,null,40,7,4,"40","07","04","40|07|04","Transport","Public Transport","Public Transport Oversight"]
[null,null,null,null,null,40,7,5,"40","07","05","40|07|05","Transport","Public Transport","Public Transport Administration Support"]
[null,null,null,null,null,40,7,6,"40","07","06","40|07|06","Transport","Public Transport","Public Transport Network Development"]
[null,null,null,null,null,40,16,1,"40","16","01","40|16|01","Transport","Direct charge against the National Revenue Fund","International Oil Pollution Compensation Funds"]
[null,null,null,null,null,41,1,1,"41","01","01","41|01|01","Water and Sanitation","Administration","Ministry"]
[null,null,null,null,null,41,1,2,"41","01","02","41|01|02","Water and Sanitation","Administration","Departmental Management"]
[null,null,null,null,null,41,1,3,"41","01","03","41|01|03","Water and Sanitation","Administration","Corporate Services"]
[null,null,null,null,null,41,1,4,"41","01","04","41|01|04","Water and Sanitation","Administration","Financial Management"]
[null,null,null,null,null,41,1,5,"41","01","05","41|01|05","Water and Sanitation","Administration","Office Accommodation"]
[null,null,null,null,null,41,1,6,"41","01","06","41|01|06","Water and Sanitation","Administration","Provincial and International Coordination"]
[null,null,null,null,null,41,2,1,"41","02","01","41|02|01","Water and Sanitation","Water Resources Management","Water Resources Management Support"]
[null,null,null,null,null,41,2,2,"41","02","02","41|02|02","Water and Sanitation","Water Resources Management","Integrated Water Resources Planning"]
[null,null,null,null,null,41,2,3,"41","02","03","41|02|03","Water and Sanitation","Water Resources Management","Water Ecosystems Management"]
[null,null,null,null,null,41,2,4,"41","02","04","41|02|04","Water and Sanitation","Water Resources Management","Water Resources Information and Management"]
[null,null,null,null,null,41,2,5,"41","02","05","41|02|05","Water and Sanitation","Water Resources Management","Water Resources Infrastructure Management"]
[null,null,null,null,null,41,2,6,"41","02","06","41|02|06","Water and Sanitation","Water Resources Management","Water Resources Policy and Strategy"]
[null,null,null,null,null,41,2,7,"41","02","07","41|02|07","Water and Sanitation","Water Resources Management","Water Resources Regulation"]
[null,null,null,null,null,41,2,8,"41","02","08","41|02|08","Water and Sanitation","Water Resources Management","Water Resources Institutional Oversight"]
[null,null,null,null,null,41,3,1,"41","03","01","41|03|01","Water and Sanitation","Water Services Management","Water Services Management Support"]
[null,null,null,null,null,41,3,2,"41","03","02","41|03|02","Water and Sanitation","Water Services Management","Water Services and Local Management"]
[null,null,null,null,null,41,3,3,"41","03","03","41|03|03","Water and Sanitation","Water Services Management","Regional Bulk Infrastructure Grant"]
[null,null,null,null,null,41,3,4,"41","03","04","41|03|04","Water and Sanitation","Water Services Management","Water Services Regulation"]
[null,null,null,null,null,41,3,5,"41","03","05","41|03|05","Water and Sanitation","Water Services Management","Water Services Policy and Strategy"]
[null,null,null,null,null,41,3,6,"41","03","06","41|03|06","Water and Sanitation","Water Services Management","Water Services Infrastructure Grant"]
[null,null,null,null,null,41,3,7,"41","03","07","41|03|07","Water and Sanitation","Water Services Management","Water Services Institutional Oversight"]
[null,null,null,null,null,42,1,1,"42","01","01","42|01|01","Centre for Public Service Innovation","Administration","Executive Support"]
[null,null,null,null,null,42,1,2,"42","01","02","42|01|02","Centre for Public Service Innovation","Administration","Corporate Services"]
[null,null,null,null,null,42,1,3,"42","01","03","42|01|03","Centre for Public Service Innovation","Administration","Office of the Chief Financial Officer"]
[null,null,null,null,null,42,2,1,"42","02","01","42|02|01","Centre for Public Service Innovation","Public Sector Innovation","Research and Development"]
[null,null,null,null,null,42,2,2,"42","02","02","42|02|02","Centre for Public Service Innovation","Public Sector Innovation","Institutional Support and Replication"]
[null,null,null,null,null,42,2,3,"42","02","03","42|02|03","Centre for Public Service Innovation","Public Sector Innovation","Enabling Environment and Stakeholder Management"]
[null,null,null,null,null,50,0,0,"50","00","00","50|00|00","Below the line items","Contingency reserve","Contingency reserve"]
[null,null,null,null,null,50,0,0,"50","00","00","50|00|00","Below the line items","Infrastructure fund","Lufhereng Mixed Use Development - V33: Urban Settlements Development Grant (LCG)"]
[null,null,null,null,null,50,0,0,"50","00","00","50|00|00","Below the line items","Provisional allocations","BFI - Klipfontein Hospital"]
[null,null,null,null,null,50,0,0,"50","00","00","50|00|00","Below the line items","Provisional allocations","Provisional - Employment programmes"]
[null,null,null,null,null,50,0,0,"50","00","00","50|00|00","Below the line items","Provisional allocations","Western Cape Rapid Schools Build Programme (BFI)"]
[null,null,null,null,null,50,0,0,"50","00","00","50|00|00","Below the line items","Infrastructure fund","CDC Return Water Effluent and Basic Infrastructure Projects"]
[null,null,null,null,null,50,0,0,"50","00","00","50|00|00","Below the line items","Provisional allocations","SRD grant"]
[null,null,null,null,null,50,0,0,"50","00","00","50|00|00","Below the line items","Infrastructure fund","SPLM Integrated Bulk Supply System Intervention- V41: Regional Bulk Infrastructure Grant (LCG) : Programme 3: sub prog: Regional Bulk Infrastructure Grant"]
[null,null,null,null,null,50,0,0,"50","00","00","50|00|00","Below the line items","Infrastructure fund","Unallocated"]
[null,null,null,null,null,50,0,0,"50","00","00","50|00|00","Below the line items","Provisional allocations","BFI - Tygerberg Hospital"]
[null,null,null,null,null,50,0,0,"50","00","00","50|00|00","Below the line items","Infrastructure fund","Western Cape Rapid Schools Build Programme"]
[null,null,null,null,null,50,0,0,"50","00","00","50|00|00","Below the line items","Provisional allocations","One free ATM withdrawal per beneficiary"]
[null,null,null,null,null,50,0,0,"50","00","00","50|00|00","Below the line items","Infrastructure fund","uMkhomazi Water Project - Raw Water Component (uMWP-1) - Water Trading Entity: Programme 2: sub prog: Water Resources Infrastructure Management"]
[null,null,null,null,null,50,0,0,"50","00","00","50|00|00","Below the line items","Provisional allocations","General buffer funds"]